{"text_format":"1","workbook":"xlsx","n_sheets":23,"sheets":["1) Hotel information","2) Room configuration","Sheet1","3) Room configuration summary","1- DETAIL COMBINED ROOMS - IT","2- DETAIL TYPOLOGY -DCM","3- DETAIL SUBTYPOLOGY - CONTENT","4- INVENTORY BY ROOM & HOTEL","Sheet3","Sheet2","created","deleted","IT MIGRATION","IT Overview","CheckRoom Contracts","Pricing 3.0 Rate Structure","MAX","BreakfastPrices","CorpRoomTable","CorpRateStructure","HOTEL INFO","hotel data base","VLOOKUP"],"not_rendered":{"charts":0,"images":0,"macros":1,"external_links":2,"defined_names":32,"comments":4,"pivot_tables":7},"unopened":[],"bounds":{"document_bytes":16777216,"sheet_cells":100000,"rows_first":2000,"rows_last":500,"rows_between":2000,"halvings":0,"cell_chars":16384,"cell_head_chars":4096},"cells_cut":0,"cells_raw":0,"read":"whole","date_system":"1900"}

{"sheet":"1) Hotel information","index":0,"n_rows":824,"n_cols":16,"rows_kept":824,"cut":false,"hidden":false,"merged":[[1,1,1,2]]}
[]
[null,"1) Hotel information"]
[]
[null,"TMS center code:"]
[null,"Hotel name:",{"$f":"IFERROR(VLOOKUP(C4,'HOTEL INFO'!$B$3:$I$368,3,FALSE),\"\")","v":""}]
[null,"Center code:",{"$f":"IFERROR(VLOOKUP(C4,'HOTEL INFO'!$B$3:$I$368,2,FALSE),\"\")","v":""}]
[null,"BU:",{"$f":"IFERROR(VLOOKUP(C4,'HOTEL INFO'!$B$3:$I$368,4,FALSE),\"\")","v":""}]
[null,"Country:",{"$f":"IFERROR(VLOOKUP(C4,'HOTEL INFO'!$B$3:$I$368,5,FALSE),\"\")","v":""}]
[null,"City:",{"$f":"IFERROR(VLOOKUP(C4,'HOTEL INFO'!$B$3:$I$368,6,FALSE),\"\")","v":""}]
[]
[null,"Filled out by:"]
[null,"Position:",null,null,null,null,null,null,null,"Urban",null,"Yes"]
[null,"E-mail address:",null,null,null,null,null,null,null,"Resort",null,"No"]
[null,"Tel. number:",null,null,null,null,null,null,null,"Airport"]
[]
[null,"Hotel RM:"]
[null,"e-mail of RM:"]
[null,"Tel. number:"]
[]
[]
[null,"1st currency:",{"$f":"IFERROR(VLOOKUP(C4,'HOTEL INFO'!$B$3:$I$368,8,FALSE),\"\")","v":""}]
[null,"2nd currency (if applies):",{"$f":"IFERROR(VLOOKUP(C4,'HOTEL INFO'!$B$3:$J$368,9,FALSE),\"\")","v":""}]
[null,"Sales tax (VAT) on breakfast (1st currency):"]
[null,"Sales tax (VAT) on breakfast (2nd currency):"]
[]
[null,"Date last modification:"]
[]
[null,"Type of Hotel",{"$f":"IFERROR(VLOOKUP(C4,'HOTEL INFO'!$B$3:$I$368,7,FALSE),\"\")","v":""}]
[null,"Park Sleep & Fly product for sale?",null,"Park Sleep & Fly Rate code "]
[null,"Is your hotel already on Open Pricing for Prepaid Rates?"]
[null,"Do you have Opening Promo rate configured?",null,"Still in use?"]
[null,"Do you need the opening rate? (Refurbishment & Opening Only)"]
[]
[null,null,"Type","Guarantee cost"]
[null,"General GTD/CXL Policy",null,null,null,null,null,null,null,{"$f":"IF(C35=J47,\"Table10\",IF(C35=J46,\"Table9\",IF(C35=J45,\"Table8\",\"\")))","v":""}]
[null,"NEW GTD/CXL Policy"]
[]
[null,"General Meal Plan"]
[]
[null,"Base Room Type 1",null,null,"NEW Base Room Type 1"]
[null,"Base Room Type 2",null,null,"NEW Base Room Type 2"]
[]
[null,"Number of roll-away (extra) beds:"]
[]
[null,null,null,null,null,null,null,null,null,"Non-GTD: free CXL before arrival",null,null,null,null,null,"Guaranteed cost: 100% stay"]
[null,"Rooms with 1 extra bed",{"$f":"COUNTIF(Table2['# extra beds that fit in the room2],1)","v":0},null,null,null,null,null,null,"Guaranteed cost: first night"]
[null,"Rooms with 2 extra bed",{"$f":"COUNTIF(Table2['# extra beds that fit in the room2],2)","v":0},null,null,null,null,null,null,"Guaranteed cost: 100% stay"]
[null,"TOTAL Hab with extra bed",{"$f":"COUNTA(Table2[Type of Extra Bed])","v":0}]
[null,"TOTAL HAB sell in OTAS",{"$f":"VLOOKUP(B51,Sheet3!$N$10:$O$29,2,FALSE)","v":0}]
[]
[null,"Grand Total"]
[]
[null,null,"roll away bed room","sofa bed"]
[null,{"$f":"IF('3) Room configuration summary'!I12<>0,'3) Room configuration summary'!I12,\"\")","v":""}]
[null,{"$f":"IF('3) Room configuration summary'!I13<>0,'3) Room configuration summary'!I13,\"\")","v":""}]
[null,{"$f":"IF('3) Room configuration summary'!I14<>0,'3) Room configuration summary'!I14,\"\")","v":""}]
[null,{"$f":"IF('3) Room configuration summary'!I15<>0,'3) Room configuration summary'!I15,\"\")","v":""}]
[null,{"$f":"IF('3) Room configuration summary'!I16<>0,'3) Room configuration summary'!I16,\"\")","v":""}]
[null,{"$f":"IF('3) Room configuration summary'!I17<>0,'3) Room configuration summary'!I17,\"\")","v":""}]
[null,{"$f":"IF('3) Room configuration summary'!I18<>0,'3) Room configuration summary'!I18,\"\")","v":""}]
[null,{"$f":"IF('3) Room configuration summary'!I19<>0,'3) Room configuration summary'!I19,\"\")","v":""}]
[null,{"$f":"IF('3) Room configuration summary'!I20<>0,'3) Room configuration summary'!I20,\"\")","v":""}]
[null,{"$f":"IF('3) Room configuration summary'!I21<>0,'3) Room configuration summary'!I21,\"\")","v":""}]
[null,{"$f":"IF('3) Room configuration summary'!I22<>0,'3) Room configuration summary'!I22,\"\")","v":""}]
[null,{"$f":"IF('3) Room configuration summary'!I23<>0,'3) Room configuration summary'!I23,\"\")","v":""}]
[null,{"$f":"IF('3) Room configuration summary'!I24<>0,'3) Room configuration summary'!I24,\"\")","v":""}]
[null,{"$f":"IF('3) Room configuration summary'!I25<>0,'3) Room configuration summary'!I25,\"\")","v":""}]
[null,{"$f":"IF('3) Room configuration summary'!I26<>0,'3) Room configuration summary'!I26,\"\")","v":""}]
[null,{"$f":"IF('3) Room configuration summary'!I27<>0,'3) Room configuration summary'!I27,\"\")","v":""}]
[null,{"$f":"IF('3) Room configuration summary'!I28<>0,'3) Room configuration summary'!I28,\"\")","v":""}]
[null,{"$f":"IF('3) Room configuration summary'!I29<>0,'3) Room configuration summary'!I29,\"\")","v":""}]
[null,{"$f":"IF('3) Room configuration summary'!I30<>0,'3) Room configuration summary'!I30,\"\")","v":""}]
[null,{"$f":"IF('3) Room configuration summary'!I31<>0,'3) Room configuration summary'!I31,\"\")","v":""}]
[null,{"$f":"IF('3) Room configuration summary'!I32<>0,'3) Room configuration summary'!I32,\"\")","v":""}]
[null,{"$f":"IF('3) Room configuration summary'!I33<>0,'3) Room configuration summary'!I33,\"\")","v":""}]
[null,{"$f":"IF('3) Room configuration summary'!I34<>0,'3) Room configuration summary'!I34,\"\")","v":""}]
[null,{"$f":"IF('3) Room configuration summary'!I35<>0,'3) Room configuration summary'!I35,\"\")","v":""}]
[]
[]
[]
[]
[]
[]
[]
[]
[]
[]
[]
[]
[]
[]
[]
[]
[]
[]
[]
[]
[]
[]
[]
[]
[]
[]
[]
[]
[]
[]
[]
[]
[]
[]
[]
[]
[]
[]
[]
[]
[]
[]
[]
[]
[]
[]
[]
[]
[]
[]
[]
[]
[]
[]
[]
[]
[]
[]
[]
[]
[]
[]
[]
[]
[]
[]
[]
[]
[]
[]
[]
[]
[]
[]
[]
[]
[]
[]
[]
[]
[]
[]
[]
[]
[]
[]
[]
[]
[]
[]
[]
[]
[]
[]
[]
[]
[]
[]
[]
[]
[]
[]
[]
[]
[]
[]
[]
[]
[]
[]
[]
[]
[]
[]
[]
[]
[]
[]
[]
[]
[]
[]
[]
[]
[]
[]
[]
[]
[]
[]
[]
[]
[]
[]
[]
[]
[]
[]
[]
[]
[]
[]
[]
[]
[]
[]
[]
[]
[]
[]
[]
[]
[]
[]
[]
[]
[]
[]
[]
[]
[]
[]
[]
[]
[]
[]
[]
[]
[]
[]
[]
[]
[]
[]
[]
[]
[]
[]
[]
[]
[]
[]
[]
[]
[]
[]
[]
[]
[]
[]
[]
[]
[]
[]
[]
[]
[]
[]
[]
[]
[]
[]
[]
[]
[]
[]
[]
[]
[]
[]
[]
[]
[]
[]
[]
[]
[]
[]
[]
[]
[]
[]
[]
[]
[]
[]
[]
[]
[]
[]
[]
[]
[]
[]
[]
[]
[]
[]
[]
[]
[]
[]
[]
[]
[]
[]
[]
[]
[]
[]
[]
[]
[]
[]
[]
[]
[]
[]
[]
[]
[]
[]
[]
[]
[]
[]
[]
[]
[]
[]
[]
[]
[]
[]
[]
[]
[]
[]
[]
[]
[]
[]
[]
[]
[]
[]
[]
[]
[]
[]
[]
[]
[]
[]
[]
[]
[]
[]
[]
[]
[]
[]
[]
[]
[]
[]
[]
[]
[]
[]
[]
[]
[]
[]
[]
[]
[]
[]
[]
[]
[]
[]
[]
[]
[]
[]
[]
[]
[]
[]
[]
[]
[]
[]
[]
[]
[]
[]
[]
[]
[]
[]
[]
[]
[]
[]
[]
[]
[]
[]
[]
[]
[]
[]
[]
[]
[]
[]
[]
[]
[]
[]
[]
[]
[]
[]
[]
[]
[]
[]
[]
[]
[]
[]
[]
[]
[]
[]
[]
[]
[]
[]
[]
[]
[]
[]
[]
[]
[]
[]
[]
[]
[]
[]
[]
[]
[]
[]
[]
[]
[]
[]
[]
[]
[]
[]
[]
[]
[]
[]
[]
[]
[]
[]
[]
[]
[]
[]
[]
[]
[]
[]
[]
[]
[]
[]
[]
[]
[]
[]
[]
[]
[]
[]
[]
[]
[]
[]
[]
[]
[]
[]
[]
[]
[]
[]
[]
[]
[]
[]
[]
[]
[]
[]
[]
[]
[]
[]
[]
[]
[]
[]
[]
[]
[]
[]
[]
[]
[]
[]
[]
[]
[]
[]
[]
[]
[]
[]
[]
[]
[]
[]
[]
[]
[]
[]
[]
[]
[]
[]
[]
[]
[]
[]
[]
[]
[]
[]
[]
[]
[]
[]
[]
[]
[]
[]
[]
[]
[]
[]
[]
[]
[]
[]
[]
[]
[]
[]
[]
[]
[]
[]
[]
[]
[]
[]
[]
[]
[]
[]
[]
[]
[]
[]
[]
[]
[]
[]
[]
[]
[]
[]
[]
[]
[]
[]
[]
[]
[]
[]
[]
[]
[]
[]
[]
[]
[]
[]
[]
[]
[]
[]
[]
[]
[]
[]
[]
[]
[]
[]
[]
[]
[]
[]
[]
[]
[]
[]
[]
[]
[]
[]
[]
[]
[]
[]
[]
[]
[]
[]
[]
[]
[]
[]
[]
[]
[]
[]
[]
[]
[]
[]
[]
[]
[]
[]
[]
[]
[]
[]
[]
[]
[]
[]
[]
[]
[]
[]
[]
[]
[]
[]
[]
[]
[]
[]
[]
[]
[]
[]
[]
[]
[]
[]
[]
[]
[]
[]
[]
[]
[]
[]
[]
[]
[]
[]
[]
[]
[]
[]
[]
[]
[]
[]
[]
[]
[]
[]
[]
[]
[]
[]
[]
[]
[]
[]
[]
[]
[]
[]
[]
[]
[]
[]
[]
[]
[]
[]
[]
[]
[]
[]
[]
[]
[]
[]
[]
[]
[]
[]
[]
[]
[]
[]
[]
[]
[]
[]
[]
[]
[]
[]
[]
[]
[]
[]
[]
[]
[]
[]
[]
[]
[]
[]
[]
[]
[]
[]
[]
[]
[]
[]
[]
[]
[]
[]
[]
[]
[]
[]
[]
[]
[]
[]
[]
[]
[]
[null,null,null,null,null,null,null,null,null,null,null,null,"Non-GTD: free CXL before arrival","Guaranteed cost: first night","Guaranteed cost: 100% stay"]
[null,null,null,null,null,null,null,null,null,null,null,null,"16 hours","16 hours","16 hours"]
[null,null,null,null,null,null,null,null,null,null,null,null,"18 hours","18 hours","18 hours"]
[null,null,null,null,null,null,null,null,null,null,null,null,null,"24 hours","24 hours"]
[null,null,null,null,null,null,null,null,null,null,null,null,null,"48 hours","48 hours"]
[null,null,null,null,null,null,null,null,null,null,null,null,null,"72 hours","72 hours"]
[null,null,null,null,null,null,null,null,null,null,null,null,null,"7 days","7 days"]
[null,null,null,null,null,null,null,null,null,null,null,null,null,"14 days","14 days"]
[null,null,null,null,null,null,null,null,null,null,null,null,null,"No CXL allowed","No CXL allowed"]
[null,null,null,null,null,null,null,null,null,null,null,null,null,null,"Non-refundable"]

{"sheet":"2) Room configuration","index":1,"n_rows":1311,"n_cols":20,"rows_kept":1311,"cut":false,"hidden":false,"merged":[[1,1,1,16],[9,1,9,6],[9,8,9,19]]}
[]
[null,"2) Room configuration"]
[]
[null,"a)","Select hotel in TMS"]
[null,"b)","Run /CCSHT/RS_06_26 (In Front Office -> Information systems -> Room Rack)",null,null,null,null,null,null,"/CCSHT/RS_06_26"]
[null,"c)","Enter a date, and you will see all room numbers and current room type"]
[null,"d)","Scroll down the report in order to load all the data, and select both the Room and Room Type column and copy (ctrl + c)"]
[null,"e)","Paste the data below in cell C12 and double check if all is correct."]
[]
[null,"CURRENT ROOM CONFIGURATION",null,null,null,null,null,null,"PROPOSED/NEW ROOM CONFIGURATION"]
[null,"Hotel code","Room #","Current Room Type \n(TMS)","Floor","Current Room type description","Bedding","# extra beds that fit in the room","New Room Type \n(TMS)","New Room type description","Bedding2","Normal \nOcc%","# extra beds that fit in the room2","Type of Extra Bed","Accessible \nroom?","Comments","Change?","Column1","inventario","Changes in Extra Beds?"]
[null,{"$f":"IF(LEN(C12)>0,'1) Hotel information'!$C$4,\"\")","v":""},null,null,null,{"$f":"IFERROR(INDEX(Table1[Room description],MATCH('2) Room configuration'!D12,Table1[TMS],0)),\"\")","v":""},{"$f":"IFERROR(INDEX(Table1[Bedding],MATCH('2) Room configuration'!D12,Table1[TMS],0)),\"\")","v":""},null,null,{"$f":"IFERROR(INDEX(Table1[Room description],MATCH('2) Room configuration'!I12,Table1[TMS],0)),\"\")","v":""},{"$f":"IFERROR(INDEX(Table1[Bedding],MATCH('2) Room configuration'!I12,Table1[TMS],0)),\"\")","v":""},{"$f":"IFERROR(INDEX(Table1[Normal occupancy],MATCH(Table2[[#This Row],[New Room Type \n(TMS)]],Table1[TMS],0)),\"\")","v":""},null,null,null,null,{"$f":"IF(LEN(C12)>0,IF(D12=I12,\"No\",\"Yes\"),\"\")","v":""},{"$f":"IF(Table2[[#This Row],['# extra beds that fit in the room2]]<>0,LEFT(Table2[[#This Row],[New Room Type \n(TMS)]],6),\"\")","v":""},null,{"$f":"IF(Table2[[#This Row],['# extra beds that fit in the room]]<>Table2[[#This Row],['# extra beds that fit in the room2]],\"yes\",\"No\")","v":"No"}]
[null,{"$f":"IF(LEN(C13)>0,'1) Hotel information'!$C$4,\"\")","v":""},null,null,null,{"$f":"IFERROR(INDEX(Table1[Room description],MATCH('2) Room configuration'!D13,Table1[TMS],0)),\"\")","v":""},{"$f":"IFERROR(INDEX(Table1[Bedding],MATCH('2) Room configuration'!D13,Table1[TMS],0)),\"\")","v":""},null,null,{"$f":"IFERROR(INDEX(Table1[Room description],MATCH('2) Room configuration'!I13,Table1[TMS],0)),\"\")","v":""},{"$f":"IFERROR(INDEX(Table1[Bedding],MATCH('2) Room configuration'!I13,Table1[TMS],0)),\"\")","v":""},{"$f":"IFERROR(INDEX(Table1[Normal occupancy],MATCH(Table2[[#This Row],[New Room Type \n(TMS)]],Table1[TMS],0)),\"\")","v":""},null,null,null,null,"",{"$f":"IF(Table2[[#This Row],['# extra beds that fit in the room2]]<>0,LEFT(Table2[[#This Row],[New Room Type \n(TMS)]],6),\"\")","v":""},null,{"$f":"IF(Table2[[#This Row],['# extra beds that fit in the room]]<>Table2[[#This Row],['# extra beds that fit in the room2]],\"yes\",\"No\")","v":"No"}]
[null,{"$f":"IF(LEN(C14)>0,'1) Hotel information'!$C$4,\"\")","v":""},null,null,null,{"$f":"IFERROR(INDEX(Table1[Room description],MATCH('2) Room configuration'!D14,Table1[TMS],0)),\"\")","v":""},{"$f":"IFERROR(INDEX(Table1[Bedding],MATCH('2) Room configuration'!D14,Table1[TMS],0)),\"\")","v":""},null,null,{"$f":"IFERROR(INDEX(Table1[Room description],MATCH('2) Room configuration'!I14,Table1[TMS],0)),\"\")","v":""},{"$f":"IFERROR(INDEX(Table1[Bedding],MATCH('2) Room configuration'!I14,Table1[TMS],0)),\"\")","v":""},{"$f":"IFERROR(INDEX(Table1[Normal occupancy],MATCH(Table2[[#This Row],[New Room Type \n(TMS)]],Table1[TMS],0)),\"\")","v":""},null,null,null,null,"",{"$f":"IF(Table2[[#This Row],['# extra beds that fit in the room2]]<>0,LEFT(Table2[[#This Row],[New Room Type \n(TMS)]],6),\"\")","v":""},null,{"$f":"IF(Table2[[#This Row],['# extra beds that fit in the room]]<>Table2[[#This Row],['# extra beds that fit in the room2]],\"yes\",\"No\")","v":"No"}]
[null,{"$f":"IF(LEN(C15)>0,'1) Hotel information'!$C$4,\"\")","v":""},null,null,null,{"$f":"IFERROR(INDEX(Table1[Room description],MATCH('2) Room configuration'!D15,Table1[TMS],0)),\"\")","v":""},{"$f":"IFERROR(INDEX(Table1[Bedding],MATCH('2) Room configuration'!D15,Table1[TMS],0)),\"\")","v":""},null,null,{"$f":"IFERROR(INDEX(Table1[Room description],MATCH('2) Room configuration'!I15,Table1[TMS],0)),\"\")","v":""},{"$f":"IFERROR(INDEX(Table1[Bedding],MATCH('2) Room configuration'!I15,Table1[TMS],0)),\"\")","v":""},{"$f":"IFERROR(INDEX(Table1[Normal occupancy],MATCH(Table2[[#This Row],[New Room Type \n(TMS)]],Table1[TMS],0)),\"\")","v":""},null,null,null,null,"",{"$f":"IF(Table2[[#This Row],['# extra beds that fit in the room2]]<>0,LEFT(Table2[[#This Row],[New Room Type \n(TMS)]],6),\"\")","v":""},null,{"$f":"IF(Table2[[#This Row],['# extra beds that fit in the room]]<>Table2[[#This Row],['# extra beds that fit in the room2]],\"yes\",\"No\")","v":"No"}]
[null,{"$f":"IF(LEN(C16)>0,'1) Hotel information'!$C$4,\"\")","v":""},null,null,null,{"$f":"IFERROR(INDEX(Table1[Room description],MATCH('2) Room configuration'!D16,Table1[TMS],0)),\"\")","v":""},{"$f":"IFERROR(INDEX(Table1[Bedding],MATCH('2) Room configuration'!D16,Table1[TMS],0)),\"\")","v":""},null,null,{"$f":"IFERROR(INDEX(Table1[Room description],MATCH('2) Room configuration'!I16,Table1[TMS],0)),\"\")","v":""},{"$f":"IFERROR(INDEX(Table1[Bedding],MATCH('2) Room configuration'!I16,Table1[TMS],0)),\"\")","v":""},{"$f":"IFERROR(INDEX(Table1[Normal occupancy],MATCH(Table2[[#This Row],[New Room Type \n(TMS)]],Table1[TMS],0)),\"\")","v":""},null,null,null,null,"",{"$f":"IF(Table2[[#This Row],['# extra beds that fit in the room2]]<>0,LEFT(Table2[[#This Row],[New Room Type \n(TMS)]],6),\"\")","v":""},null,{"$f":"IF(Table2[[#This Row],['# extra beds that fit in the room]]<>Table2[[#This Row],['# extra beds that fit in the room2]],\"yes\",\"No\")","v":"No"}]
[null,{"$f":"IF(LEN(C17)>0,'1) Hotel information'!$C$4,\"\")","v":""},null,null,null,{"$f":"IFERROR(INDEX(Table1[Room description],MATCH('2) Room configuration'!D17,Table1[TMS],0)),\"\")","v":""},{"$f":"IFERROR(INDEX(Table1[Bedding],MATCH('2) Room configuration'!D17,Table1[TMS],0)),\"\")","v":""},null,null,{"$f":"IFERROR(INDEX(Table1[Room description],MATCH('2) Room configuration'!I17,Table1[TMS],0)),\"\")","v":""},{"$f":"IFERROR(INDEX(Table1[Bedding],MATCH('2) Room configuration'!I17,Table1[TMS],0)),\"\")","v":""},{"$f":"IFERROR(INDEX(Table1[Normal occupancy],MATCH(Table2[[#This Row],[New Room Type \n(TMS)]],Table1[TMS],0)),\"\")","v":""},null,null,null,null,"",{"$f":"IF(Table2[[#This Row],['# extra beds that fit in the room2]]<>0,LEFT(Table2[[#This Row],[New Room Type \n(TMS)]],6),\"\")","v":""},null,{"$f":"IF(Table2[[#This Row],['# extra beds that fit in the room]]<>Table2[[#This Row],['# extra beds that fit in the room2]],\"yes\",\"No\")","v":"No"}]
[null,{"$f":"IF(LEN(C18)>0,'1) Hotel information'!$C$4,\"\")","v":""},null,null,null,{"$f":"IFERROR(INDEX(Table1[Room description],MATCH('2) Room configuration'!D18,Table1[TMS],0)),\"\")","v":""},{"$f":"IFERROR(INDEX(Table1[Bedding],MATCH('2) Room configuration'!D18,Table1[TMS],0)),\"\")","v":""},null,null,{"$f":"IFERROR(INDEX(Table1[Room description],MATCH('2) Room configuration'!I18,Table1[TMS],0)),\"\")","v":""},{"$f":"IFERROR(INDEX(Table1[Bedding],MATCH('2) Room configuration'!I18,Table1[TMS],0)),\"\")","v":""},{"$f":"IFERROR(INDEX(Table1[Normal occupancy],MATCH(Table2[[#This Row],[New Room Type \n(TMS)]],Table1[TMS],0)),\"\")","v":""},null,null,null,null,"",{"$f":"IF(Table2[[#This Row],['# extra beds that fit in the room2]]<>0,LEFT(Table2[[#This Row],[New Room Type \n(TMS)]],6),\"\")","v":""},null,{"$f":"IF(Table2[[#This Row],['# extra beds that fit in the room]]<>Table2[[#This Row],['# extra beds that fit in the room2]],\"yes\",\"No\")","v":"No"}]
[null,{"$f":"IF(LEN(C19)>0,'1) Hotel information'!$C$4,\"\")","v":""},null,null,null,{"$f":"IFERROR(INDEX(Table1[Room description],MATCH('2) Room configuration'!D19,Table1[TMS],0)),\"\")","v":""},{"$f":"IFERROR(INDEX(Table1[Bedding],MATCH('2) Room configuration'!D19,Table1[TMS],0)),\"\")","v":""},null,null,{"$f":"IFERROR(INDEX(Table1[Room description],MATCH('2) Room configuration'!I19,Table1[TMS],0)),\"\")","v":""},{"$f":"IFERROR(INDEX(Table1[Bedding],MATCH('2) Room configuration'!I19,Table1[TMS],0)),\"\")","v":""},{"$f":"IFERROR(INDEX(Table1[Normal occupancy],MATCH(Table2[[#This Row],[New Room Type \n(TMS)]],Table1[TMS],0)),\"\")","v":""},null,null,null,null,"",{"$f":"IF(Table2[[#This Row],['# extra beds that fit in the room2]]<>0,LEFT(Table2[[#This Row],[New Room Type \n(TMS)]],6),\"\")","v":""},null,{"$f":"IF(Table2[[#This Row],['# extra beds that fit in the room]]<>Table2[[#This Row],['# extra beds that fit in the room2]],\"yes\",\"No\")","v":"No"}]
[null,{"$f":"IF(LEN(C20)>0,'1) Hotel information'!$C$4,\"\")","v":""},null,null,null,{"$f":"IFERROR(INDEX(Table1[Room description],MATCH('2) Room configuration'!D20,Table1[TMS],0)),\"\")","v":""},{"$f":"IFERROR(INDEX(Table1[Bedding],MATCH('2) Room configuration'!D20,Table1[TMS],0)),\"\")","v":""},null,null,{"$f":"IFERROR(INDEX(Table1[Room description],MATCH('2) Room configuration'!I20,Table1[TMS],0)),\"\")","v":""},{"$f":"IFERROR(INDEX(Table1[Bedding],MATCH('2) Room configuration'!I20,Table1[TMS],0)),\"\")","v":""},{"$f":"IFERROR(INDEX(Table1[Normal occupancy],MATCH(Table2[[#This Row],[New Room Type \n(TMS)]],Table1[TMS],0)),\"\")","v":""},null,null,null,null,"",{"$f":"IF(Table2[[#This Row],['# extra beds that fit in the room2]]<>0,LEFT(Table2[[#This Row],[New Room Type \n(TMS)]],6),\"\")","v":""},null,{"$f":"IF(Table2[[#This Row],['# extra beds that fit in the room]]<>Table2[[#This Row],['# extra beds that fit in the room2]],\"yes\",\"No\")","v":"No"}]
[null,{"$f":"IF(LEN(C21)>0,'1) Hotel information'!$C$4,\"\")","v":""},null,null,null,{"$f":"IFERROR(INDEX(Table1[Room description],MATCH('2) Room configuration'!D21,Table1[TMS],0)),\"\")","v":""},{"$f":"IFERROR(INDEX(Table1[Bedding],MATCH('2) Room configuration'!D21,Table1[TMS],0)),\"\")","v":""},null,null,{"$f":"IFERROR(INDEX(Table1[Room description],MATCH('2) Room configuration'!I21,Table1[TMS],0)),\"\")","v":""},{"$f":"IFERROR(INDEX(Table1[Bedding],MATCH('2) Room configuration'!I21,Table1[TMS],0)),\"\")","v":""},{"$f":"IFERROR(INDEX(Table1[Normal occupancy],MATCH(Table2[[#This Row],[New Room Type \n(TMS)]],Table1[TMS],0)),\"\")","v":""},null,null,null,null,"",{"$f":"IF(Table2[[#This Row],['# extra beds that fit in the room2]]<>0,LEFT(Table2[[#This Row],[New Room Type \n(TMS)]],6),\"\")","v":""},null,{"$f":"IF(Table2[[#This Row],['# extra beds that fit in the room]]<>Table2[[#This Row],['# extra beds that fit in the room2]],\"yes\",\"No\")","v":"No"}]
[null,{"$f":"IF(LEN(C22)>0,'1) Hotel information'!$C$4,\"\")","v":""},null,null,null,{"$f":"IFERROR(INDEX(Table1[Room description],MATCH('2) Room configuration'!D22,Table1[TMS],0)),\"\")","v":""},{"$f":"IFERROR(INDEX(Table1[Bedding],MATCH('2) Room configuration'!D22,Table1[TMS],0)),\"\")","v":""},null,null,{"$f":"IFERROR(INDEX(Table1[Room description],MATCH('2) Room configuration'!I22,Table1[TMS],0)),\"\")","v":""},{"$f":"IFERROR(INDEX(Table1[Bedding],MATCH('2) Room configuration'!I22,Table1[TMS],0)),\"\")","v":""},{"$f":"IFERROR(INDEX(Table1[Normal occupancy],MATCH(Table2[[#This Row],[New Room Type \n(TMS)]],Table1[TMS],0)),\"\")","v":""},null,null,null,null,"",{"$f":"IF(Table2[[#This Row],['# extra beds that fit in the room2]]<>0,LEFT(Table2[[#This Row],[New Room Type \n(TMS)]],6),\"\")","v":""},null,{"$f":"IF(Table2[[#This Row],['# extra beds that fit in the room]]<>Table2[[#This Row],['# extra beds that fit in the room2]],\"yes\",\"No\")","v":"No"}]
[null,{"$f":"IF(LEN(C23)>0,'1) Hotel information'!$C$4,\"\")","v":""},null,null,null,{"$f":"IFERROR(INDEX(Table1[Room description],MATCH('2) Room configuration'!D23,Table1[TMS],0)),\"\")","v":""},{"$f":"IFERROR(INDEX(Table1[Bedding],MATCH('2) Room configuration'!D23,Table1[TMS],0)),\"\")","v":""},null,null,{"$f":"IFERROR(INDEX(Table1[Room description],MATCH('2) Room configuration'!I23,Table1[TMS],0)),\"\")","v":""},{"$f":"IFERROR(INDEX(Table1[Bedding],MATCH('2) Room configuration'!I23,Table1[TMS],0)),\"\")","v":""},{"$f":"IFERROR(INDEX(Table1[Normal occupancy],MATCH(Table2[[#This Row],[New Room Type \n(TMS)]],Table1[TMS],0)),\"\")","v":""},null,null,null,null,"",{"$f":"IF(Table2[[#This Row],['# extra beds that fit in the room2]]<>0,LEFT(Table2[[#This Row],[New Room Type \n(TMS)]],6),\"\")","v":""},null,{"$f":"IF(Table2[[#This Row],['# extra beds that fit in the room]]<>Table2[[#This Row],['# extra beds that fit in the room2]],\"yes\",\"No\")","v":"No"}]
[null,{"$f":"IF(LEN(C24)>0,'1) Hotel information'!$C$4,\"\")","v":""},null,null,null,{"$f":"IFERROR(INDEX(Table1[Room description],MATCH('2) Room configuration'!D24,Table1[TMS],0)),\"\")","v":""},{"$f":"IFERROR(INDEX(Table1[Bedding],MATCH('2) Room configuration'!D24,Table1[TMS],0)),\"\")","v":""},null,null,{"$f":"IFERROR(INDEX(Table1[Room description],MATCH('2) Room configuration'!I24,Table1[TMS],0)),\"\")","v":""},{"$f":"IFERROR(INDEX(Table1[Bedding],MATCH('2) Room configuration'!I24,Table1[TMS],0)),\"\")","v":""},{"$f":"IFERROR(INDEX(Table1[Normal occupancy],MATCH(Table2[[#This Row],[New Room Type \n(TMS)]],Table1[TMS],0)),\"\")","v":""},null,null,null,null,"",{"$f":"IF(Table2[[#This Row],['# extra beds that fit in the room2]]<>0,LEFT(Table2[[#This Row],[New Room Type \n(TMS)]],6),\"\")","v":""},null,{"$f":"IF(Table2[[#This Row],['# extra beds that fit in the room]]<>Table2[[#This Row],['# extra beds that fit in the room2]],\"yes\",\"No\")","v":"No"}]
[null,{"$f":"IF(LEN(C25)>0,'1) Hotel information'!$C$4,\"\")","v":""},null,null,null,{"$f":"IFERROR(INDEX(Table1[Room description],MATCH('2) Room configuration'!D25,Table1[TMS],0)),\"\")","v":""},{"$f":"IFERROR(INDEX(Table1[Bedding],MATCH('2) Room configuration'!D25,Table1[TMS],0)),\"\")","v":""},null,null,{"$f":"IFERROR(INDEX(Table1[Room description],MATCH('2) Room configuration'!I25,Table1[TMS],0)),\"\")","v":""},{"$f":"IFERROR(INDEX(Table1[Bedding],MATCH('2) Room configuration'!I25,Table1[TMS],0)),\"\")","v":""},{"$f":"IFERROR(INDEX(Table1[Normal occupancy],MATCH(Table2[[#This Row],[New Room Type \n(TMS)]],Table1[TMS],0)),\"\")","v":""},null,null,null,null,"",{"$f":"IF(Table2[[#This Row],['# extra beds that fit in the room2]]<>0,LEFT(Table2[[#This Row],[New Room Type \n(TMS)]],6),\"\")","v":""},null,{"$f":"IF(Table2[[#This Row],['# extra beds that fit in the room]]<>Table2[[#This Row],['# extra beds that fit in the room2]],\"yes\",\"No\")","v":"No"}]
[null,{"$f":"IF(LEN(C26)>0,'1) Hotel information'!$C$4,\"\")","v":""},null,null,null,{"$f":"IFERROR(INDEX(Table1[Room description],MATCH('2) Room configuration'!D26,Table1[TMS],0)),\"\")","v":""},{"$f":"IFERROR(INDEX(Table1[Bedding],MATCH('2) Room configuration'!D26,Table1[TMS],0)),\"\")","v":""},null,null,{"$f":"IFERROR(INDEX(Table1[Room description],MATCH('2) Room configuration'!I26,Table1[TMS],0)),\"\")","v":""},{"$f":"IFERROR(INDEX(Table1[Bedding],MATCH('2) Room configuration'!I26,Table1[TMS],0)),\"\")","v":""},{"$f":"IFERROR(INDEX(Table1[Normal occupancy],MATCH(Table2[[#This Row],[New Room Type \n(TMS)]],Table1[TMS],0)),\"\")","v":""},null,null,null,null,"",{"$f":"IF(Table2[[#This Row],['# extra beds that fit in the room2]]<>0,LEFT(Table2[[#This Row],[New Room Type \n(TMS)]],6),\"\")","v":""},null,{"$f":"IF(Table2[[#This Row],['# extra beds that fit in the room]]<>Table2[[#This Row],['# extra beds that fit in the room2]],\"yes\",\"No\")","v":"No"}]
[null,{"$f":"IF(LEN(C27)>0,'1) Hotel information'!$C$4,\"\")","v":""},null,null,null,{"$f":"IFERROR(INDEX(Table1[Room description],MATCH('2) Room configuration'!D27,Table1[TMS],0)),\"\")","v":""},{"$f":"IFERROR(INDEX(Table1[Bedding],MATCH('2) Room configuration'!D27,Table1[TMS],0)),\"\")","v":""},null,null,{"$f":"IFERROR(INDEX(Table1[Room description],MATCH('2) Room configuration'!I27,Table1[TMS],0)),\"\")","v":""},{"$f":"IFERROR(INDEX(Table1[Bedding],MATCH('2) Room configuration'!I27,Table1[TMS],0)),\"\")","v":""},{"$f":"IFERROR(INDEX(Table1[Normal occupancy],MATCH(Table2[[#This Row],[New Room Type \n(TMS)]],Table1[TMS],0)),\"\")","v":""},null,null,null,null,"",{"$f":"IF(Table2[[#This Row],['# extra beds that fit in the room2]]<>0,LEFT(Table2[[#This Row],[New Room Type \n(TMS)]],6),\"\")","v":""},null,{"$f":"IF(Table2[[#This Row],['# extra beds that fit in the room]]<>Table2[[#This Row],['# extra beds that fit in the room2]],\"yes\",\"No\")","v":"No"}]
[null,{"$f":"IF(LEN(C28)>0,'1) Hotel information'!$C$4,\"\")","v":""},null,null,null,{"$f":"IFERROR(INDEX(Table1[Room description],MATCH('2) Room configuration'!D28,Table1[TMS],0)),\"\")","v":""},{"$f":"IFERROR(INDEX(Table1[Bedding],MATCH('2) Room configuration'!D28,Table1[TMS],0)),\"\")","v":""},null,null,{"$f":"IFERROR(INDEX(Table1[Room description],MATCH('2) Room configuration'!I28,Table1[TMS],0)),\"\")","v":""},{"$f":"IFERROR(INDEX(Table1[Bedding],MATCH('2) Room configuration'!I28,Table1[TMS],0)),\"\")","v":""},{"$f":"IFERROR(INDEX(Table1[Normal occupancy],MATCH(Table2[[#This Row],[New Room Type \n(TMS)]],Table1[TMS],0)),\"\")","v":""},null,null,null,null,"",{"$f":"IF(Table2[[#This Row],['# extra beds that fit in the room2]]<>0,LEFT(Table2[[#This Row],[New Room Type \n(TMS)]],6),\"\")","v":""},null,{"$f":"IF(Table2[[#This Row],['# extra beds that fit in the room]]<>Table2[[#This Row],['# extra beds that fit in the room2]],\"yes\",\"No\")","v":"No"}]
[null,{"$f":"IF(LEN(C29)>0,'1) Hotel information'!$C$4,\"\")","v":""},null,null,null,{"$f":"IFERROR(INDEX(Table1[Room description],MATCH('2) Room configuration'!D29,Table1[TMS],0)),\"\")","v":""},{"$f":"IFERROR(INDEX(Table1[Bedding],MATCH('2) Room configuration'!D29,Table1[TMS],0)),\"\")","v":""},null,null,{"$f":"IFERROR(INDEX(Table1[Room description],MATCH('2) Room configuration'!I29,Table1[TMS],0)),\"\")","v":""},{"$f":"IFERROR(INDEX(Table1[Bedding],MATCH('2) Room configuration'!I29,Table1[TMS],0)),\"\")","v":""},{"$f":"IFERROR(INDEX(Table1[Normal occupancy],MATCH(Table2[[#This Row],[New Room Type \n(TMS)]],Table1[TMS],0)),\"\")","v":""},null,null,null,null,"",{"$f":"IF(Table2[[#This Row],['# extra beds that fit in the room2]]<>0,LEFT(Table2[[#This Row],[New Room Type \n(TMS)]],6),\"\")","v":""},null,{"$f":"IF(Table2[[#This Row],['# extra beds that fit in the room]]<>Table2[[#This Row],['# extra beds that fit in the room2]],\"yes\",\"No\")","v":"No"}]
[null,{"$f":"IF(LEN(C30)>0,'1) Hotel information'!$C$4,\"\")","v":""},null,null,null,{"$f":"IFERROR(INDEX(Table1[Room description],MATCH('2) Room configuration'!D30,Table1[TMS],0)),\"\")","v":""},{"$f":"IFERROR(INDEX(Table1[Bedding],MATCH('2) Room configuration'!D30,Table1[TMS],0)),\"\")","v":""},null,null,{"$f":"IFERROR(INDEX(Table1[Room description],MATCH('2) Room configuration'!I30,Table1[TMS],0)),\"\")","v":""},{"$f":"IFERROR(INDEX(Table1[Bedding],MATCH('2) Room configuration'!I30,Table1[TMS],0)),\"\")","v":""},{"$f":"IFERROR(INDEX(Table1[Normal occupancy],MATCH(Table2[[#This Row],[New Room Type \n(TMS)]],Table1[TMS],0)),\"\")","v":""},null,null,null,null,"",{"$f":"IF(Table2[[#This Row],['# extra beds that fit in the room2]]<>0,LEFT(Table2[[#This Row],[New Room Type \n(TMS)]],6),\"\")","v":""},null,{"$f":"IF(Table2[[#This Row],['# extra beds that fit in the room]]<>Table2[[#This Row],['# extra beds that fit in the room2]],\"yes\",\"No\")","v":"No"}]
[null,{"$f":"IF(LEN(C31)>0,'1) Hotel information'!$C$4,\"\")","v":""},null,null,null,{"$f":"IFERROR(INDEX(Table1[Room description],MATCH('2) Room configuration'!D31,Table1[TMS],0)),\"\")","v":""},{"$f":"IFERROR(INDEX(Table1[Bedding],MATCH('2) Room configuration'!D31,Table1[TMS],0)),\"\")","v":""},null,null,{"$f":"IFERROR(INDEX(Table1[Room description],MATCH('2) Room configuration'!I31,Table1[TMS],0)),\"\")","v":""},{"$f":"IFERROR(INDEX(Table1[Bedding],MATCH('2) Room configuration'!I31,Table1[TMS],0)),\"\")","v":""},{"$f":"IFERROR(INDEX(Table1[Normal occupancy],MATCH(Table2[[#This Row],[New Room Type \n(TMS)]],Table1[TMS],0)),\"\")","v":""},null,null,null,null,"",{"$f":"IF(Table2[[#This Row],['# extra beds that fit in the room2]]<>0,LEFT(Table2[[#This Row],[New Room Type \n(TMS)]],6),\"\")","v":""},null,{"$f":"IF(Table2[[#This Row],['# extra beds that fit in the room]]<>Table2[[#This Row],['# extra beds that fit in the room2]],\"yes\",\"No\")","v":"No"}]
[null,{"$f":"IF(LEN(C32)>0,'1) Hotel information'!$C$4,\"\")","v":""},null,null,null,{"$f":"IFERROR(INDEX(Table1[Room description],MATCH('2) Room configuration'!D32,Table1[TMS],0)),\"\")","v":""},{"$f":"IFERROR(INDEX(Table1[Bedding],MATCH('2) Room configuration'!D32,Table1[TMS],0)),\"\")","v":""},null,null,{"$f":"IFERROR(INDEX(Table1[Room description],MATCH('2) Room configuration'!I32,Table1[TMS],0)),\"\")","v":""},{"$f":"IFERROR(INDEX(Table1[Bedding],MATCH('2) Room configuration'!I32,Table1[TMS],0)),\"\")","v":""},{"$f":"IFERROR(INDEX(Table1[Normal occupancy],MATCH(Table2[[#This Row],[New Room Type \n(TMS)]],Table1[TMS],0)),\"\")","v":""},null,null,null,null,"",{"$f":"IF(Table2[[#This Row],['# extra beds that fit in the room2]]<>0,LEFT(Table2[[#This Row],[New Room Type \n(TMS)]],6),\"\")","v":""},null,{"$f":"IF(Table2[[#This Row],['# extra beds that fit in the room]]<>Table2[[#This Row],['# extra beds that fit in the room2]],\"yes\",\"No\")","v":"No"}]
[null,{"$f":"IF(LEN(C33)>0,'1) Hotel information'!$C$4,\"\")","v":""},null,null,null,{"$f":"IFERROR(INDEX(Table1[Room description],MATCH('2) Room configuration'!D33,Table1[TMS],0)),\"\")","v":""},{"$f":"IFERROR(INDEX(Table1[Bedding],MATCH('2) Room configuration'!D33,Table1[TMS],0)),\"\")","v":""},null,null,{"$f":"IFERROR(INDEX(Table1[Room description],MATCH('2) Room configuration'!I33,Table1[TMS],0)),\"\")","v":""},{"$f":"IFERROR(INDEX(Table1[Bedding],MATCH('2) Room configuration'!I33,Table1[TMS],0)),\"\")","v":""},{"$f":"IFERROR(INDEX(Table1[Normal occupancy],MATCH(Table2[[#This Row],[New Room Type \n(TMS)]],Table1[TMS],0)),\"\")","v":""},null,null,null,null,"",{"$f":"IF(Table2[[#This Row],['# extra beds that fit in the room2]]<>0,LEFT(Table2[[#This Row],[New Room Type \n(TMS)]],6),\"\")","v":""},null,{"$f":"IF(Table2[[#This Row],['# extra beds that fit in the room]]<>Table2[[#This Row],['# extra beds that fit in the room2]],\"yes\",\"No\")","v":"No"}]
[null,{"$f":"IF(LEN(C34)>0,'1) Hotel information'!$C$4,\"\")","v":""},null,null,null,{"$f":"IFERROR(INDEX(Table1[Room description],MATCH('2) Room configuration'!D34,Table1[TMS],0)),\"\")","v":""},{"$f":"IFERROR(INDEX(Table1[Bedding],MATCH('2) Room configuration'!D34,Table1[TMS],0)),\"\")","v":""},null,null,{"$f":"IFERROR(INDEX(Table1[Room description],MATCH('2) Room configuration'!I34,Table1[TMS],0)),\"\")","v":""},{"$f":"IFERROR(INDEX(Table1[Bedding],MATCH('2) Room configuration'!I34,Table1[TMS],0)),\"\")","v":""},{"$f":"IFERROR(INDEX(Table1[Normal occupancy],MATCH(Table2[[#This Row],[New Room Type \n(TMS)]],Table1[TMS],0)),\"\")","v":""},null,null,null,null,"",{"$f":"IF(Table2[[#This Row],['# extra beds that fit in the room2]]<>0,LEFT(Table2[[#This Row],[New Room Type \n(TMS)]],6),\"\")","v":""},null,{"$f":"IF(Table2[[#This Row],['# extra beds that fit in the room]]<>Table2[[#This Row],['# extra beds that fit in the room2]],\"yes\",\"No\")","v":"No"}]
[null,{"$f":"IF(LEN(C35)>0,'1) Hotel information'!$C$4,\"\")","v":""},null,null,null,{"$f":"IFERROR(INDEX(Table1[Room description],MATCH('2) Room configuration'!D35,Table1[TMS],0)),\"\")","v":""},{"$f":"IFERROR(INDEX(Table1[Bedding],MATCH('2) Room configuration'!D35,Table1[TMS],0)),\"\")","v":""},null,null,{"$f":"IFERROR(INDEX(Table1[Room description],MATCH('2) Room configuration'!I35,Table1[TMS],0)),\"\")","v":""},{"$f":"IFERROR(INDEX(Table1[Bedding],MATCH('2) Room configuration'!I35,Table1[TMS],0)),\"\")","v":""},{"$f":"IFERROR(INDEX(Table1[Normal occupancy],MATCH(Table2[[#This Row],[New Room Type \n(TMS)]],Table1[TMS],0)),\"\")","v":""},null,null,null,null,"",{"$f":"IF(Table2[[#This Row],['# extra beds that fit in the room2]]<>0,LEFT(Table2[[#This Row],[New Room Type \n(TMS)]],6),\"\")","v":""},null,{"$f":"IF(Table2[[#This Row],['# extra beds that fit in the room]]<>Table2[[#This Row],['# extra beds that fit in the room2]],\"yes\",\"No\")","v":"No"}]
[null,{"$f":"IF(LEN(C36)>0,'1) Hotel information'!$C$4,\"\")","v":""},null,null,null,{"$f":"IFERROR(INDEX(Table1[Room description],MATCH('2) Room configuration'!D36,Table1[TMS],0)),\"\")","v":""},{"$f":"IFERROR(INDEX(Table1[Bedding],MATCH('2) Room configuration'!D36,Table1[TMS],0)),\"\")","v":""},null,null,{"$f":"IFERROR(INDEX(Table1[Room description],MATCH('2) Room configuration'!I36,Table1[TMS],0)),\"\")","v":""},{"$f":"IFERROR(INDEX(Table1[Bedding],MATCH('2) Room configuration'!I36,Table1[TMS],0)),\"\")","v":""},{"$f":"IFERROR(INDEX(Table1[Normal occupancy],MATCH(Table2[[#This Row],[New Room Type \n(TMS)]],Table1[TMS],0)),\"\")","v":""},null,null,null,null,"",{"$f":"IF(Table2[[#This Row],['# extra beds that fit in the room2]]<>0,LEFT(Table2[[#This Row],[New Room Type \n(TMS)]],6),\"\")","v":""},null,{"$f":"IF(Table2[[#This Row],['# extra beds that fit in the room]]<>Table2[[#This Row],['# extra beds that fit in the room2]],\"yes\",\"No\")","v":"No"}]
[null,{"$f":"IF(LEN(C37)>0,'1) Hotel information'!$C$4,\"\")","v":""},null,null,null,{"$f":"IFERROR(INDEX(Table1[Room description],MATCH('2) Room configuration'!D37,Table1[TMS],0)),\"\")","v":""},{"$f":"IFERROR(INDEX(Table1[Bedding],MATCH('2) Room configuration'!D37,Table1[TMS],0)),\"\")","v":""},null,null,{"$f":"IFERROR(INDEX(Table1[Room description],MATCH('2) Room configuration'!I37,Table1[TMS],0)),\"\")","v":""},{"$f":"IFERROR(INDEX(Table1[Bedding],MATCH('2) Room configuration'!I37,Table1[TMS],0)),\"\")","v":""},{"$f":"IFERROR(INDEX(Table1[Normal occupancy],MATCH(Table2[[#This Row],[New Room Type \n(TMS)]],Table1[TMS],0)),\"\")","v":""},null,null,null,null,"",{"$f":"IF(Table2[[#This Row],['# extra beds that fit in the room2]]<>0,LEFT(Table2[[#This Row],[New Room Type \n(TMS)]],6),\"\")","v":""},null,{"$f":"IF(Table2[[#This Row],['# extra beds that fit in the room]]<>Table2[[#This Row],['# extra beds that fit in the room2]],\"yes\",\"No\")","v":"No"}]
[null,{"$f":"IF(LEN(C38)>0,'1) Hotel information'!$C$4,\"\")","v":""},null,null,null,{"$f":"IFERROR(INDEX(Table1[Room description],MATCH('2) Room configuration'!D38,Table1[TMS],0)),\"\")","v":""},{"$f":"IFERROR(INDEX(Table1[Bedding],MATCH('2) Room configuration'!D38,Table1[TMS],0)),\"\")","v":""},null,null,{"$f":"IFERROR(INDEX(Table1[Room description],MATCH('2) Room configuration'!I38,Table1[TMS],0)),\"\")","v":""},{"$f":"IFERROR(INDEX(Table1[Bedding],MATCH('2) Room configuration'!I38,Table1[TMS],0)),\"\")","v":""},{"$f":"IFERROR(INDEX(Table1[Normal occupancy],MATCH(Table2[[#This Row],[New Room Type \n(TMS)]],Table1[TMS],0)),\"\")","v":""},null,null,null,null,"",{"$f":"IF(Table2[[#This Row],['# extra beds that fit in the room2]]<>0,LEFT(Table2[[#This Row],[New Room Type \n(TMS)]],6),\"\")","v":""},null,{"$f":"IF(Table2[[#This Row],['# extra beds that fit in the room]]<>Table2[[#This Row],['# extra beds that fit in the room2]],\"yes\",\"No\")","v":"No"}]
[null,{"$f":"IF(LEN(C39)>0,'1) Hotel information'!$C$4,\"\")","v":""},null,null,null,{"$f":"IFERROR(INDEX(Table1[Room description],MATCH('2) Room configuration'!D39,Table1[TMS],0)),\"\")","v":""},{"$f":"IFERROR(INDEX(Table1[Bedding],MATCH('2) Room configuration'!D39,Table1[TMS],0)),\"\")","v":""},null,null,{"$f":"IFERROR(INDEX(Table1[Room description],MATCH('2) Room configuration'!I39,Table1[TMS],0)),\"\")","v":""},{"$f":"IFERROR(INDEX(Table1[Bedding],MATCH('2) Room configuration'!I39,Table1[TMS],0)),\"\")","v":""},{"$f":"IFERROR(INDEX(Table1[Normal occupancy],MATCH(Table2[[#This Row],[New Room Type \n(TMS)]],Table1[TMS],0)),\"\")","v":""},null,null,null,null,"",{"$f":"IF(Table2[[#This Row],['# extra beds that fit in the room2]]<>0,LEFT(Table2[[#This Row],[New Room Type \n(TMS)]],6),\"\")","v":""},null,{"$f":"IF(Table2[[#This Row],['# extra beds that fit in the room]]<>Table2[[#This Row],['# extra beds that fit in the room2]],\"yes\",\"No\")","v":"No"}]
[null,{"$f":"IF(LEN(C40)>0,'1) Hotel information'!$C$4,\"\")","v":""},null,null,null,{"$f":"IFERROR(INDEX(Table1[Room description],MATCH('2) Room configuration'!D40,Table1[TMS],0)),\"\")","v":""},{"$f":"IFERROR(INDEX(Table1[Bedding],MATCH('2) Room configuration'!D40,Table1[TMS],0)),\"\")","v":""},null,null,{"$f":"IFERROR(INDEX(Table1[Room description],MATCH('2) Room configuration'!I40,Table1[TMS],0)),\"\")","v":""},{"$f":"IFERROR(INDEX(Table1[Bedding],MATCH('2) Room configuration'!I40,Table1[TMS],0)),\"\")","v":""},{"$f":"IFERROR(INDEX(Table1[Normal occupancy],MATCH(Table2[[#This Row],[New Room Type \n(TMS)]],Table1[TMS],0)),\"\")","v":""},null,null,null,null,"",{"$f":"IF(Table2[[#This Row],['# extra beds that fit in the room2]]<>0,LEFT(Table2[[#This Row],[New Room Type \n(TMS)]],6),\"\")","v":""},null,{"$f":"IF(Table2[[#This Row],['# extra beds that fit in the room]]<>Table2[[#This Row],['# extra beds that fit in the room2]],\"yes\",\"No\")","v":"No"}]
[null,{"$f":"IF(LEN(C41)>0,'1) Hotel information'!$C$4,\"\")","v":""},null,null,null,{"$f":"IFERROR(INDEX(Table1[Room description],MATCH('2) Room configuration'!D41,Table1[TMS],0)),\"\")","v":""},{"$f":"IFERROR(INDEX(Table1[Bedding],MATCH('2) Room configuration'!D41,Table1[TMS],0)),\"\")","v":""},null,null,{"$f":"IFERROR(INDEX(Table1[Room description],MATCH('2) Room configuration'!I41,Table1[TMS],0)),\"\")","v":""},{"$f":"IFERROR(INDEX(Table1[Bedding],MATCH('2) Room configuration'!I41,Table1[TMS],0)),\"\")","v":""},{"$f":"IFERROR(INDEX(Table1[Normal occupancy],MATCH(Table2[[#This Row],[New Room Type \n(TMS)]],Table1[TMS],0)),\"\")","v":""},null,null,null,null,"",{"$f":"IF(Table2[[#This Row],['# extra beds that fit in the room2]]<>0,LEFT(Table2[[#This Row],[New Room Type \n(TMS)]],6),\"\")","v":""},null,{"$f":"IF(Table2[[#This Row],['# extra beds that fit in the room]]<>Table2[[#This Row],['# extra beds that fit in the room2]],\"yes\",\"No\")","v":"No"}]
[null,{"$f":"IF(LEN(C42)>0,'1) Hotel information'!$C$4,\"\")","v":""},null,null,null,{"$f":"IFERROR(INDEX(Table1[Room description],MATCH('2) Room configuration'!D42,Table1[TMS],0)),\"\")","v":""},{"$f":"IFERROR(INDEX(Table1[Bedding],MATCH('2) Room configuration'!D42,Table1[TMS],0)),\"\")","v":""},null,null,{"$f":"IFERROR(INDEX(Table1[Room description],MATCH('2) Room configuration'!I42,Table1[TMS],0)),\"\")","v":""},{"$f":"IFERROR(INDEX(Table1[Bedding],MATCH('2) Room configuration'!I42,Table1[TMS],0)),\"\")","v":""},{"$f":"IFERROR(INDEX(Table1[Normal occupancy],MATCH(Table2[[#This Row],[New Room Type \n(TMS)]],Table1[TMS],0)),\"\")","v":""},null,null,null,null,"",{"$f":"IF(Table2[[#This Row],['# extra beds that fit in the room2]]<>0,LEFT(Table2[[#This Row],[New Room Type \n(TMS)]],6),\"\")","v":""},null,{"$f":"IF(Table2[[#This Row],['# extra beds that fit in the room]]<>Table2[[#This Row],['# extra beds that fit in the room2]],\"yes\",\"No\")","v":"No"}]
[null,{"$f":"IF(LEN(C43)>0,'1) Hotel information'!$C$4,\"\")","v":""},null,null,null,{"$f":"IFERROR(INDEX(Table1[Room description],MATCH('2) Room configuration'!D43,Table1[TMS],0)),\"\")","v":""},{"$f":"IFERROR(INDEX(Table1[Bedding],MATCH('2) Room configuration'!D43,Table1[TMS],0)),\"\")","v":""},null,null,{"$f":"IFERROR(INDEX(Table1[Room description],MATCH('2) Room configuration'!I43,Table1[TMS],0)),\"\")","v":""},{"$f":"IFERROR(INDEX(Table1[Bedding],MATCH('2) Room configuration'!I43,Table1[TMS],0)),\"\")","v":""},{"$f":"IFERROR(INDEX(Table1[Normal occupancy],MATCH(Table2[[#This Row],[New Room Type \n(TMS)]],Table1[TMS],0)),\"\")","v":""},null,null,null,null,"",{"$f":"IF(Table2[[#This Row],['# extra beds that fit in the room2]]<>0,LEFT(Table2[[#This Row],[New Room Type \n(TMS)]],6),\"\")","v":""},null,{"$f":"IF(Table2[[#This Row],['# extra beds that fit in the room]]<>Table2[[#This Row],['# extra beds that fit in the room2]],\"yes\",\"No\")","v":"No"}]
[null,{"$f":"IF(LEN(C44)>0,'1) Hotel information'!$C$4,\"\")","v":""},null,null,null,{"$f":"IFERROR(INDEX(Table1[Room description],MATCH('2) Room configuration'!D44,Table1[TMS],0)),\"\")","v":""},{"$f":"IFERROR(INDEX(Table1[Bedding],MATCH('2) Room configuration'!D44,Table1[TMS],0)),\"\")","v":""},null,null,{"$f":"IFERROR(INDEX(Table1[Room description],MATCH('2) Room configuration'!I44,Table1[TMS],0)),\"\")","v":""},{"$f":"IFERROR(INDEX(Table1[Bedding],MATCH('2) Room configuration'!I44,Table1[TMS],0)),\"\")","v":""},{"$f":"IFERROR(INDEX(Table1[Normal occupancy],MATCH(Table2[[#This Row],[New Room Type \n(TMS)]],Table1[TMS],0)),\"\")","v":""},null,null,null,null,"",{"$f":"IF(Table2[[#This Row],['# extra beds that fit in the room2]]<>0,LEFT(Table2[[#This Row],[New Room Type \n(TMS)]],6),\"\")","v":""},null,{"$f":"IF(Table2[[#This Row],['# extra beds that fit in the room]]<>Table2[[#This Row],['# extra beds that fit in the room2]],\"yes\",\"No\")","v":"No"}]
[null,{"$f":"IF(LEN(C45)>0,'1) Hotel information'!$C$4,\"\")","v":""},null,null,null,{"$f":"IFERROR(INDEX(Table1[Room description],MATCH('2) Room configuration'!D45,Table1[TMS],0)),\"\")","v":""},{"$f":"IFERROR(INDEX(Table1[Bedding],MATCH('2) Room configuration'!D45,Table1[TMS],0)),\"\")","v":""},null,null,{"$f":"IFERROR(INDEX(Table1[Room description],MATCH('2) Room configuration'!I45,Table1[TMS],0)),\"\")","v":""},{"$f":"IFERROR(INDEX(Table1[Bedding],MATCH('2) Room configuration'!I45,Table1[TMS],0)),\"\")","v":""},{"$f":"IFERROR(INDEX(Table1[Normal occupancy],MATCH(Table2[[#This Row],[New Room Type \n(TMS)]],Table1[TMS],0)),\"\")","v":""},null,null,null,null,"",{"$f":"IF(Table2[[#This Row],['# extra beds that fit in the room2]]<>0,LEFT(Table2[[#This Row],[New Room Type \n(TMS)]],6),\"\")","v":""},null,{"$f":"IF(Table2[[#This Row],['# extra beds that fit in the room]]<>Table2[[#This Row],['# extra beds that fit in the room2]],\"yes\",\"No\")","v":"No"}]
[null,{"$f":"IF(LEN(C46)>0,'1) Hotel information'!$C$4,\"\")","v":""},null,null,null,{"$f":"IFERROR(INDEX(Table1[Room description],MATCH('2) Room configuration'!D46,Table1[TMS],0)),\"\")","v":""},{"$f":"IFERROR(INDEX(Table1[Bedding],MATCH('2) Room configuration'!D46,Table1[TMS],0)),\"\")","v":""},null,null,{"$f":"IFERROR(INDEX(Table1[Room description],MATCH('2) Room configuration'!I46,Table1[TMS],0)),\"\")","v":""},{"$f":"IFERROR(INDEX(Table1[Bedding],MATCH('2) Room configuration'!I46,Table1[TMS],0)),\"\")","v":""},{"$f":"IFERROR(INDEX(Table1[Normal occupancy],MATCH(Table2[[#This Row],[New Room Type \n(TMS)]],Table1[TMS],0)),\"\")","v":""},null,null,null,null,"",{"$f":"IF(Table2[[#This Row],['# extra beds that fit in the room2]]<>0,LEFT(Table2[[#This Row],[New Room Type \n(TMS)]],6),\"\")","v":""},null,{"$f":"IF(Table2[[#This Row],['# extra beds that fit in the room]]<>Table2[[#This Row],['# extra beds that fit in the room2]],\"yes\",\"No\")","v":"No"}]
[null,{"$f":"IF(LEN(C47)>0,'1) Hotel information'!$C$4,\"\")","v":""},null,null,null,{"$f":"IFERROR(INDEX(Table1[Room description],MATCH('2) Room configuration'!D47,Table1[TMS],0)),\"\")","v":""},{"$f":"IFERROR(INDEX(Table1[Bedding],MATCH('2) Room configuration'!D47,Table1[TMS],0)),\"\")","v":""},null,null,{"$f":"IFERROR(INDEX(Table1[Room description],MATCH('2) Room configuration'!I47,Table1[TMS],0)),\"\")","v":""},{"$f":"IFERROR(INDEX(Table1[Bedding],MATCH('2) Room configuration'!I47,Table1[TMS],0)),\"\")","v":""},{"$f":"IFERROR(INDEX(Table1[Normal occupancy],MATCH(Table2[[#This Row],[New Room Type \n(TMS)]],Table1[TMS],0)),\"\")","v":""},null,null,null,null,"",{"$f":"IF(Table2[[#This Row],['# extra beds that fit in the room2]]<>0,LEFT(Table2[[#This Row],[New Room Type \n(TMS)]],6),\"\")","v":""},null,{"$f":"IF(Table2[[#This Row],['# extra beds that fit in the room]]<>Table2[[#This Row],['# extra beds that fit in the room2]],\"yes\",\"No\")","v":"No"}]
[null,{"$f":"IF(LEN(C48)>0,'1) Hotel information'!$C$4,\"\")","v":""},null,null,null,{"$f":"IFERROR(INDEX(Table1[Room description],MATCH('2) Room configuration'!D48,Table1[TMS],0)),\"\")","v":""},{"$f":"IFERROR(INDEX(Table1[Bedding],MATCH('2) Room configuration'!D48,Table1[TMS],0)),\"\")","v":""},null,null,{"$f":"IFERROR(INDEX(Table1[Room description],MATCH('2) Room configuration'!I48,Table1[TMS],0)),\"\")","v":""},{"$f":"IFERROR(INDEX(Table1[Bedding],MATCH('2) Room configuration'!I48,Table1[TMS],0)),\"\")","v":""},{"$f":"IFERROR(INDEX(Table1[Normal occupancy],MATCH(Table2[[#This Row],[New Room Type \n(TMS)]],Table1[TMS],0)),\"\")","v":""},null,null,null,null,"",{"$f":"IF(Table2[[#This Row],['# extra beds that fit in the room2]]<>0,LEFT(Table2[[#This Row],[New Room Type \n(TMS)]],6),\"\")","v":""},null,{"$f":"IF(Table2[[#This Row],['# extra beds that fit in the room]]<>Table2[[#This Row],['# extra beds that fit in the room2]],\"yes\",\"No\")","v":"No"}]
[null,{"$f":"IF(LEN(C49)>0,'1) Hotel information'!$C$4,\"\")","v":""},null,null,null,{"$f":"IFERROR(INDEX(Table1[Room description],MATCH('2) Room configuration'!D49,Table1[TMS],0)),\"\")","v":""},{"$f":"IFERROR(INDEX(Table1[Bedding],MATCH('2) Room configuration'!D49,Table1[TMS],0)),\"\")","v":""},null,null,{"$f":"IFERROR(INDEX(Table1[Room description],MATCH('2) Room configuration'!I49,Table1[TMS],0)),\"\")","v":""},{"$f":"IFERROR(INDEX(Table1[Bedding],MATCH('2) Room configuration'!I49,Table1[TMS],0)),\"\")","v":""},{"$f":"IFERROR(INDEX(Table1[Normal occupancy],MATCH(Table2[[#This Row],[New Room Type \n(TMS)]],Table1[TMS],0)),\"\")","v":""},null,null,null,null,"",{"$f":"IF(Table2[[#This Row],['# extra beds that fit in the room2]]<>0,LEFT(Table2[[#This Row],[New Room Type \n(TMS)]],6),\"\")","v":""},null,{"$f":"IF(Table2[[#This Row],['# extra beds that fit in the room]]<>Table2[[#This Row],['# extra beds that fit in the room2]],\"yes\",\"No\")","v":"No"}]
[null,{"$f":"IF(LEN(C50)>0,'1) Hotel information'!$C$4,\"\")","v":""},null,null,null,{"$f":"IFERROR(INDEX(Table1[Room description],MATCH('2) Room configuration'!D50,Table1[TMS],0)),\"\")","v":""},{"$f":"IFERROR(INDEX(Table1[Bedding],MATCH('2) Room configuration'!D50,Table1[TMS],0)),\"\")","v":""},null,null,{"$f":"IFERROR(INDEX(Table1[Room description],MATCH('2) Room configuration'!I50,Table1[TMS],0)),\"\")","v":""},{"$f":"IFERROR(INDEX(Table1[Bedding],MATCH('2) Room configuration'!I50,Table1[TMS],0)),\"\")","v":""},{"$f":"IFERROR(INDEX(Table1[Normal occupancy],MATCH(Table2[[#This Row],[New Room Type \n(TMS)]],Table1[TMS],0)),\"\")","v":""},null,null,null,null,"",{"$f":"IF(Table2[[#This Row],['# extra beds that fit in the room2]]<>0,LEFT(Table2[[#This Row],[New Room Type \n(TMS)]],6),\"\")","v":""},null,{"$f":"IF(Table2[[#This Row],['# extra beds that fit in the room]]<>Table2[[#This Row],['# extra beds that fit in the room2]],\"yes\",\"No\")","v":"No"}]
[null,{"$f":"IF(LEN(C51)>0,'1) Hotel information'!$C$4,\"\")","v":""},null,null,null,{"$f":"IFERROR(INDEX(Table1[Room description],MATCH('2) Room configuration'!D51,Table1[TMS],0)),\"\")","v":""},{"$f":"IFERROR(INDEX(Table1[Bedding],MATCH('2) Room configuration'!D51,Table1[TMS],0)),\"\")","v":""},null,null,{"$f":"IFERROR(INDEX(Table1[Room description],MATCH('2) Room configuration'!I51,Table1[TMS],0)),\"\")","v":""},{"$f":"IFERROR(INDEX(Table1[Bedding],MATCH('2) Room configuration'!I51,Table1[TMS],0)),\"\")","v":""},{"$f":"IFERROR(INDEX(Table1[Normal occupancy],MATCH(Table2[[#This Row],[New Room Type \n(TMS)]],Table1[TMS],0)),\"\")","v":""},null,null,null,null,"",{"$f":"IF(Table2[[#This Row],['# extra beds that fit in the room2]]<>0,LEFT(Table2[[#This Row],[New Room Type \n(TMS)]],6),\"\")","v":""},null,{"$f":"IF(Table2[[#This Row],['# extra beds that fit in the room]]<>Table2[[#This Row],['# extra beds that fit in the room2]],\"yes\",\"No\")","v":"No"}]
[null,{"$f":"IF(LEN(C52)>0,'1) Hotel information'!$C$4,\"\")","v":""},null,null,null,{"$f":"IFERROR(INDEX(Table1[Room description],MATCH('2) Room configuration'!D52,Table1[TMS],0)),\"\")","v":""},{"$f":"IFERROR(INDEX(Table1[Bedding],MATCH('2) Room configuration'!D52,Table1[TMS],0)),\"\")","v":""},null,null,{"$f":"IFERROR(INDEX(Table1[Room description],MATCH('2) Room configuration'!I52,Table1[TMS],0)),\"\")","v":""},{"$f":"IFERROR(INDEX(Table1[Bedding],MATCH('2) Room configuration'!I52,Table1[TMS],0)),\"\")","v":""},{"$f":"IFERROR(INDEX(Table1[Normal occupancy],MATCH(Table2[[#This Row],[New Room Type \n(TMS)]],Table1[TMS],0)),\"\")","v":""},null,null,null,null,"",{"$f":"IF(Table2[[#This Row],['# extra beds that fit in the room2]]<>0,LEFT(Table2[[#This Row],[New Room Type \n(TMS)]],6),\"\")","v":""},null,{"$f":"IF(Table2[[#This Row],['# extra beds that fit in the room]]<>Table2[[#This Row],['# extra beds that fit in the room2]],\"yes\",\"No\")","v":"No"}]
[null,{"$f":"IF(LEN(C53)>0,'1) Hotel information'!$C$4,\"\")","v":""},null,null,null,{"$f":"IFERROR(INDEX(Table1[Room description],MATCH('2) Room configuration'!D53,Table1[TMS],0)),\"\")","v":""},{"$f":"IFERROR(INDEX(Table1[Bedding],MATCH('2) Room configuration'!D53,Table1[TMS],0)),\"\")","v":""},null,null,{"$f":"IFERROR(INDEX(Table1[Room description],MATCH('2) Room configuration'!I53,Table1[TMS],0)),\"\")","v":""},{"$f":"IFERROR(INDEX(Table1[Bedding],MATCH('2) Room configuration'!I53,Table1[TMS],0)),\"\")","v":""},{"$f":"IFERROR(INDEX(Table1[Normal occupancy],MATCH(Table2[[#This Row],[New Room Type \n(TMS)]],Table1[TMS],0)),\"\")","v":""},null,null,null,null,"",{"$f":"IF(Table2[[#This Row],['# extra beds that fit in the room2]]<>0,LEFT(Table2[[#This Row],[New Room Type \n(TMS)]],6),\"\")","v":""},null,{"$f":"IF(Table2[[#This Row],['# extra beds that fit in the room]]<>Table2[[#This Row],['# extra beds that fit in the room2]],\"yes\",\"No\")","v":"No"}]
[null,{"$f":"IF(LEN(C54)>0,'1) Hotel information'!$C$4,\"\")","v":""},null,null,null,{"$f":"IFERROR(INDEX(Table1[Room description],MATCH('2) Room configuration'!D54,Table1[TMS],0)),\"\")","v":""},{"$f":"IFERROR(INDEX(Table1[Bedding],MATCH('2) Room configuration'!D54,Table1[TMS],0)),\"\")","v":""},null,null,{"$f":"IFERROR(INDEX(Table1[Room description],MATCH('2) Room configuration'!I54,Table1[TMS],0)),\"\")","v":""},{"$f":"IFERROR(INDEX(Table1[Bedding],MATCH('2) Room configuration'!I54,Table1[TMS],0)),\"\")","v":""},{"$f":"IFERROR(INDEX(Table1[Normal occupancy],MATCH(Table2[[#This Row],[New Room Type \n(TMS)]],Table1[TMS],0)),\"\")","v":""},null,null,null,null,"",{"$f":"IF(Table2[[#This Row],['# extra beds that fit in the room2]]<>0,LEFT(Table2[[#This Row],[New Room Type \n(TMS)]],6),\"\")","v":""},null,{"$f":"IF(Table2[[#This Row],['# extra beds that fit in the room]]<>Table2[[#This Row],['# extra beds that fit in the room2]],\"yes\",\"No\")","v":"No"}]
[null,{"$f":"IF(LEN(C55)>0,'1) Hotel information'!$C$4,\"\")","v":""},null,null,null,{"$f":"IFERROR(INDEX(Table1[Room description],MATCH('2) Room configuration'!D55,Table1[TMS],0)),\"\")","v":""},{"$f":"IFERROR(INDEX(Table1[Bedding],MATCH('2) Room configuration'!D55,Table1[TMS],0)),\"\")","v":""},null,null,{"$f":"IFERROR(INDEX(Table1[Room description],MATCH('2) Room configuration'!I55,Table1[TMS],0)),\"\")","v":""},{"$f":"IFERROR(INDEX(Table1[Bedding],MATCH('2) Room configuration'!I55,Table1[TMS],0)),\"\")","v":""},{"$f":"IFERROR(INDEX(Table1[Normal occupancy],MATCH(Table2[[#This Row],[New Room Type \n(TMS)]],Table1[TMS],0)),\"\")","v":""},null,null,null,null,"",{"$f":"IF(Table2[[#This Row],['# extra beds that fit in the room2]]<>0,LEFT(Table2[[#This Row],[New Room Type \n(TMS)]],6),\"\")","v":""},null,{"$f":"IF(Table2[[#This Row],['# extra beds that fit in the room]]<>Table2[[#This Row],['# extra beds that fit in the room2]],\"yes\",\"No\")","v":"No"}]
[null,{"$f":"IF(LEN(C56)>0,'1) Hotel information'!$C$4,\"\")","v":""},null,null,null,{"$f":"IFERROR(INDEX(Table1[Room description],MATCH('2) Room configuration'!D56,Table1[TMS],0)),\"\")","v":""},{"$f":"IFERROR(INDEX(Table1[Bedding],MATCH('2) Room configuration'!D56,Table1[TMS],0)),\"\")","v":""},null,null,{"$f":"IFERROR(INDEX(Table1[Room description],MATCH('2) Room configuration'!I56,Table1[TMS],0)),\"\")","v":""},{"$f":"IFERROR(INDEX(Table1[Bedding],MATCH('2) Room configuration'!I56,Table1[TMS],0)),\"\")","v":""},{"$f":"IFERROR(INDEX(Table1[Normal occupancy],MATCH(Table2[[#This Row],[New Room Type \n(TMS)]],Table1[TMS],0)),\"\")","v":""},null,null,null,null,"",{"$f":"IF(Table2[[#This Row],['# extra beds that fit in the room2]]<>0,LEFT(Table2[[#This Row],[New Room Type \n(TMS)]],6),\"\")","v":""},null,{"$f":"IF(Table2[[#This Row],['# extra beds that fit in the room]]<>Table2[[#This Row],['# extra beds that fit in the room2]],\"yes\",\"No\")","v":"No"}]
[null,{"$f":"IF(LEN(C57)>0,'1) Hotel information'!$C$4,\"\")","v":""},null,null,null,{"$f":"IFERROR(INDEX(Table1[Room description],MATCH('2) Room configuration'!D57,Table1[TMS],0)),\"\")","v":""},{"$f":"IFERROR(INDEX(Table1[Bedding],MATCH('2) Room configuration'!D57,Table1[TMS],0)),\"\")","v":""},null,null,{"$f":"IFERROR(INDEX(Table1[Room description],MATCH('2) Room configuration'!I57,Table1[TMS],0)),\"\")","v":""},{"$f":"IFERROR(INDEX(Table1[Bedding],MATCH('2) Room configuration'!I57,Table1[TMS],0)),\"\")","v":""},{"$f":"IFERROR(INDEX(Table1[Normal occupancy],MATCH(Table2[[#This Row],[New Room Type \n(TMS)]],Table1[TMS],0)),\"\")","v":""},null,null,null,null,"",{"$f":"IF(Table2[[#This Row],['# extra beds that fit in the room2]]<>0,LEFT(Table2[[#This Row],[New Room Type \n(TMS)]],6),\"\")","v":""},null,{"$f":"IF(Table2[[#This Row],['# extra beds that fit in the room]]<>Table2[[#This Row],['# extra beds that fit in the room2]],\"yes\",\"No\")","v":"No"}]
[null,{"$f":"IF(LEN(C58)>0,'1) Hotel information'!$C$4,\"\")","v":""},null,null,null,{"$f":"IFERROR(INDEX(Table1[Room description],MATCH('2) Room configuration'!D58,Table1[TMS],0)),\"\")","v":""},{"$f":"IFERROR(INDEX(Table1[Bedding],MATCH('2) Room configuration'!D58,Table1[TMS],0)),\"\")","v":""},null,null,{"$f":"IFERROR(INDEX(Table1[Room description],MATCH('2) Room configuration'!I58,Table1[TMS],0)),\"\")","v":""},{"$f":"IFERROR(INDEX(Table1[Bedding],MATCH('2) Room configuration'!I58,Table1[TMS],0)),\"\")","v":""},{"$f":"IFERROR(INDEX(Table1[Normal occupancy],MATCH(Table2[[#This Row],[New Room Type \n(TMS)]],Table1[TMS],0)),\"\")","v":""},null,null,null,null,"",{"$f":"IF(Table2[[#This Row],['# extra beds that fit in the room2]]<>0,LEFT(Table2[[#This Row],[New Room Type \n(TMS)]],6),\"\")","v":""},null,{"$f":"IF(Table2[[#This Row],['# extra beds that fit in the room]]<>Table2[[#This Row],['# extra beds that fit in the room2]],\"yes\",\"No\")","v":"No"}]
[null,{"$f":"IF(LEN(C59)>0,'1) Hotel information'!$C$4,\"\")","v":""},null,null,null,{"$f":"IFERROR(INDEX(Table1[Room description],MATCH('2) Room configuration'!D59,Table1[TMS],0)),\"\")","v":""},{"$f":"IFERROR(INDEX(Table1[Bedding],MATCH('2) Room configuration'!D59,Table1[TMS],0)),\"\")","v":""},null,null,{"$f":"IFERROR(INDEX(Table1[Room description],MATCH('2) Room configuration'!I59,Table1[TMS],0)),\"\")","v":""},{"$f":"IFERROR(INDEX(Table1[Bedding],MATCH('2) Room configuration'!I59,Table1[TMS],0)),\"\")","v":""},{"$f":"IFERROR(INDEX(Table1[Normal occupancy],MATCH(Table2[[#This Row],[New Room Type \n(TMS)]],Table1[TMS],0)),\"\")","v":""},null,null,null,null,"",{"$f":"IF(Table2[[#This Row],['# extra beds that fit in the room2]]<>0,LEFT(Table2[[#This Row],[New Room Type \n(TMS)]],6),\"\")","v":""},null,{"$f":"IF(Table2[[#This Row],['# extra beds that fit in the room]]<>Table2[[#This Row],['# extra beds that fit in the room2]],\"yes\",\"No\")","v":"No"}]
[null,{"$f":"IF(LEN(C60)>0,'1) Hotel information'!$C$4,\"\")","v":""},null,null,null,{"$f":"IFERROR(INDEX(Table1[Room description],MATCH('2) Room configuration'!D60,Table1[TMS],0)),\"\")","v":""},{"$f":"IFERROR(INDEX(Table1[Bedding],MATCH('2) Room configuration'!D60,Table1[TMS],0)),\"\")","v":""},null,null,{"$f":"IFERROR(INDEX(Table1[Room description],MATCH('2) Room configuration'!I60,Table1[TMS],0)),\"\")","v":""},{"$f":"IFERROR(INDEX(Table1[Bedding],MATCH('2) Room configuration'!I60,Table1[TMS],0)),\"\")","v":""},{"$f":"IFERROR(INDEX(Table1[Normal occupancy],MATCH(Table2[[#This Row],[New Room Type \n(TMS)]],Table1[TMS],0)),\"\")","v":""},null,null,null,null,"",{"$f":"IF(Table2[[#This Row],['# extra beds that fit in the room2]]<>0,LEFT(Table2[[#This Row],[New Room Type \n(TMS)]],6),\"\")","v":""},null,{"$f":"IF(Table2[[#This Row],['# extra beds that fit in the room]]<>Table2[[#This Row],['# extra beds that fit in the room2]],\"yes\",\"No\")","v":"No"}]
[null,{"$f":"IF(LEN(C61)>0,'1) Hotel information'!$C$4,\"\")","v":""},null,null,null,{"$f":"IFERROR(INDEX(Table1[Room description],MATCH('2) Room configuration'!D61,Table1[TMS],0)),\"\")","v":""},{"$f":"IFERROR(INDEX(Table1[Bedding],MATCH('2) Room configuration'!D61,Table1[TMS],0)),\"\")","v":""},null,null,{"$f":"IFERROR(INDEX(Table1[Room description],MATCH('2) Room configuration'!I61,Table1[TMS],0)),\"\")","v":""},{"$f":"IFERROR(INDEX(Table1[Bedding],MATCH('2) Room configuration'!I61,Table1[TMS],0)),\"\")","v":""},{"$f":"IFERROR(INDEX(Table1[Normal occupancy],MATCH(Table2[[#This Row],[New Room Type \n(TMS)]],Table1[TMS],0)),\"\")","v":""},null,null,null,null,"",{"$f":"IF(Table2[[#This Row],['# extra beds that fit in the room2]]<>0,LEFT(Table2[[#This Row],[New Room Type \n(TMS)]],6),\"\")","v":""},null,{"$f":"IF(Table2[[#This Row],['# extra beds that fit in the room]]<>Table2[[#This Row],['# extra beds that fit in the room2]],\"yes\",\"No\")","v":"No"}]
[null,{"$f":"IF(LEN(C62)>0,'1) Hotel information'!$C$4,\"\")","v":""},null,null,null,{"$f":"IFERROR(INDEX(Table1[Room description],MATCH('2) Room configuration'!D62,Table1[TMS],0)),\"\")","v":""},{"$f":"IFERROR(INDEX(Table1[Bedding],MATCH('2) Room configuration'!D62,Table1[TMS],0)),\"\")","v":""},null,null,{"$f":"IFERROR(INDEX(Table1[Room description],MATCH('2) Room configuration'!I62,Table1[TMS],0)),\"\")","v":""},{"$f":"IFERROR(INDEX(Table1[Bedding],MATCH('2) Room configuration'!I62,Table1[TMS],0)),\"\")","v":""},{"$f":"IFERROR(INDEX(Table1[Normal occupancy],MATCH(Table2[[#This Row],[New Room Type \n(TMS)]],Table1[TMS],0)),\"\")","v":""},null,null,null,null,"",{"$f":"IF(Table2[[#This Row],['# extra beds that fit in the room2]]<>0,LEFT(Table2[[#This Row],[New Room Type \n(TMS)]],6),\"\")","v":""},null,{"$f":"IF(Table2[[#This Row],['# extra beds that fit in the room]]<>Table2[[#This Row],['# extra beds that fit in the room2]],\"yes\",\"No\")","v":"No"}]
[null,{"$f":"IF(LEN(C63)>0,'1) Hotel information'!$C$4,\"\")","v":""},null,null,null,{"$f":"IFERROR(INDEX(Table1[Room description],MATCH('2) Room configuration'!D63,Table1[TMS],0)),\"\")","v":""},{"$f":"IFERROR(INDEX(Table1[Bedding],MATCH('2) Room configuration'!D63,Table1[TMS],0)),\"\")","v":""},null,null,{"$f":"IFERROR(INDEX(Table1[Room description],MATCH('2) Room configuration'!I63,Table1[TMS],0)),\"\")","v":""},{"$f":"IFERROR(INDEX(Table1[Bedding],MATCH('2) Room configuration'!I63,Table1[TMS],0)),\"\")","v":""},{"$f":"IFERROR(INDEX(Table1[Normal occupancy],MATCH(Table2[[#This Row],[New Room Type \n(TMS)]],Table1[TMS],0)),\"\")","v":""},null,null,null,null,"",{"$f":"IF(Table2[[#This Row],['# extra beds that fit in the room2]]<>0,LEFT(Table2[[#This Row],[New Room Type \n(TMS)]],6),\"\")","v":""},null,{"$f":"IF(Table2[[#This Row],['# extra beds that fit in the room]]<>Table2[[#This Row],['# extra beds that fit in the room2]],\"yes\",\"No\")","v":"No"}]
[null,{"$f":"IF(LEN(C64)>0,'1) Hotel information'!$C$4,\"\")","v":""},null,null,null,{"$f":"IFERROR(INDEX(Table1[Room description],MATCH('2) Room configuration'!D64,Table1[TMS],0)),\"\")","v":""},{"$f":"IFERROR(INDEX(Table1[Bedding],MATCH('2) Room configuration'!D64,Table1[TMS],0)),\"\")","v":""},null,null,{"$f":"IFERROR(INDEX(Table1[Room description],MATCH('2) Room configuration'!I64,Table1[TMS],0)),\"\")","v":""},{"$f":"IFERROR(INDEX(Table1[Bedding],MATCH('2) Room configuration'!I64,Table1[TMS],0)),\"\")","v":""},{"$f":"IFERROR(INDEX(Table1[Normal occupancy],MATCH(Table2[[#This Row],[New Room Type \n(TMS)]],Table1[TMS],0)),\"\")","v":""},null,null,null,null,"",{"$f":"IF(Table2[[#This Row],['# extra beds that fit in the room2]]<>0,LEFT(Table2[[#This Row],[New Room Type \n(TMS)]],6),\"\")","v":""},null,{"$f":"IF(Table2[[#This Row],['# extra beds that fit in the room]]<>Table2[[#This Row],['# extra beds that fit in the room2]],\"yes\",\"No\")","v":"No"}]
[null,{"$f":"IF(LEN(C65)>0,'1) Hotel information'!$C$4,\"\")","v":""},null,null,null,{"$f":"IFERROR(INDEX(Table1[Room description],MATCH('2) Room configuration'!D65,Table1[TMS],0)),\"\")","v":""},{"$f":"IFERROR(INDEX(Table1[Bedding],MATCH('2) Room configuration'!D65,Table1[TMS],0)),\"\")","v":""},null,null,{"$f":"IFERROR(INDEX(Table1[Room description],MATCH('2) Room configuration'!I65,Table1[TMS],0)),\"\")","v":""},{"$f":"IFERROR(INDEX(Table1[Bedding],MATCH('2) Room configuration'!I65,Table1[TMS],0)),\"\")","v":""},{"$f":"IFERROR(INDEX(Table1[Normal occupancy],MATCH(Table2[[#This Row],[New Room Type \n(TMS)]],Table1[TMS],0)),\"\")","v":""},null,null,null,null,"",{"$f":"IF(Table2[[#This Row],['# extra beds that fit in the room2]]<>0,LEFT(Table2[[#This Row],[New Room Type \n(TMS)]],6),\"\")","v":""},null,{"$f":"IF(Table2[[#This Row],['# extra beds that fit in the room]]<>Table2[[#This Row],['# extra beds that fit in the room2]],\"yes\",\"No\")","v":"No"}]
[null,{"$f":"IF(LEN(C66)>0,'1) Hotel information'!$C$4,\"\")","v":""},null,null,null,{"$f":"IFERROR(INDEX(Table1[Room description],MATCH('2) Room configuration'!D66,Table1[TMS],0)),\"\")","v":""},{"$f":"IFERROR(INDEX(Table1[Bedding],MATCH('2) Room configuration'!D66,Table1[TMS],0)),\"\")","v":""},null,null,{"$f":"IFERROR(INDEX(Table1[Room description],MATCH('2) Room configuration'!I66,Table1[TMS],0)),\"\")","v":""},{"$f":"IFERROR(INDEX(Table1[Bedding],MATCH('2) Room configuration'!I66,Table1[TMS],0)),\"\")","v":""},{"$f":"IFERROR(INDEX(Table1[Normal occupancy],MATCH(Table2[[#This Row],[New Room Type \n(TMS)]],Table1[TMS],0)),\"\")","v":""},null,null,null,null,"",{"$f":"IF(Table2[[#This Row],['# extra beds that fit in the room2]]<>0,LEFT(Table2[[#This Row],[New Room Type \n(TMS)]],6),\"\")","v":""},null,{"$f":"IF(Table2[[#This Row],['# extra beds that fit in the room]]<>Table2[[#This Row],['# extra beds that fit in the room2]],\"yes\",\"No\")","v":"No"}]
[null,{"$f":"IF(LEN(C67)>0,'1) Hotel information'!$C$4,\"\")","v":""},null,null,null,{"$f":"IFERROR(INDEX(Table1[Room description],MATCH('2) Room configuration'!D67,Table1[TMS],0)),\"\")","v":""},{"$f":"IFERROR(INDEX(Table1[Bedding],MATCH('2) Room configuration'!D67,Table1[TMS],0)),\"\")","v":""},null,null,{"$f":"IFERROR(INDEX(Table1[Room description],MATCH('2) Room configuration'!I67,Table1[TMS],0)),\"\")","v":""},{"$f":"IFERROR(INDEX(Table1[Bedding],MATCH('2) Room configuration'!I67,Table1[TMS],0)),\"\")","v":""},{"$f":"IFERROR(INDEX(Table1[Normal occupancy],MATCH(Table2[[#This Row],[New Room Type \n(TMS)]],Table1[TMS],0)),\"\")","v":""},null,null,null,null,"",{"$f":"IF(Table2[[#This Row],['# extra beds that fit in the room2]]<>0,LEFT(Table2[[#This Row],[New Room Type \n(TMS)]],6),\"\")","v":""},null,{"$f":"IF(Table2[[#This Row],['# extra beds that fit in the room]]<>Table2[[#This Row],['# extra beds that fit in the room2]],\"yes\",\"No\")","v":"No"}]
[null,{"$f":"IF(LEN(C68)>0,'1) Hotel information'!$C$4,\"\")","v":""},null,null,null,{"$f":"IFERROR(INDEX(Table1[Room description],MATCH('2) Room configuration'!D68,Table1[TMS],0)),\"\")","v":""},{"$f":"IFERROR(INDEX(Table1[Bedding],MATCH('2) Room configuration'!D68,Table1[TMS],0)),\"\")","v":""},null,null,{"$f":"IFERROR(INDEX(Table1[Room description],MATCH('2) Room configuration'!I68,Table1[TMS],0)),\"\")","v":""},{"$f":"IFERROR(INDEX(Table1[Bedding],MATCH('2) Room configuration'!I68,Table1[TMS],0)),\"\")","v":""},{"$f":"IFERROR(INDEX(Table1[Normal occupancy],MATCH(Table2[[#This Row],[New Room Type \n(TMS)]],Table1[TMS],0)),\"\")","v":""},null,null,null,null,"",{"$f":"IF(Table2[[#This Row],['# extra beds that fit in the room2]]<>0,LEFT(Table2[[#This Row],[New Room Type \n(TMS)]],6),\"\")","v":""},null,{"$f":"IF(Table2[[#This Row],['# extra beds that fit in the room]]<>Table2[[#This Row],['# extra beds that fit in the room2]],\"yes\",\"No\")","v":"No"}]
[null,{"$f":"IF(LEN(C69)>0,'1) Hotel information'!$C$4,\"\")","v":""},null,null,null,{"$f":"IFERROR(INDEX(Table1[Room description],MATCH('2) Room configuration'!D69,Table1[TMS],0)),\"\")","v":""},{"$f":"IFERROR(INDEX(Table1[Bedding],MATCH('2) Room configuration'!D69,Table1[TMS],0)),\"\")","v":""},null,null,{"$f":"IFERROR(INDEX(Table1[Room description],MATCH('2) Room configuration'!I69,Table1[TMS],0)),\"\")","v":""},{"$f":"IFERROR(INDEX(Table1[Bedding],MATCH('2) Room configuration'!I69,Table1[TMS],0)),\"\")","v":""},{"$f":"IFERROR(INDEX(Table1[Normal occupancy],MATCH(Table2[[#This Row],[New Room Type \n(TMS)]],Table1[TMS],0)),\"\")","v":""},null,null,null,null,"",{"$f":"IF(Table2[[#This Row],['# extra beds that fit in the room2]]<>0,LEFT(Table2[[#This Row],[New Room Type \n(TMS)]],6),\"\")","v":""},null,{"$f":"IF(Table2[[#This Row],['# extra beds that fit in the room]]<>Table2[[#This Row],['# extra beds that fit in the room2]],\"yes\",\"No\")","v":"No"}]
[null,{"$f":"IF(LEN(C70)>0,'1) Hotel information'!$C$4,\"\")","v":""},null,null,null,{"$f":"IFERROR(INDEX(Table1[Room description],MATCH('2) Room configuration'!D70,Table1[TMS],0)),\"\")","v":""},{"$f":"IFERROR(INDEX(Table1[Bedding],MATCH('2) Room configuration'!D70,Table1[TMS],0)),\"\")","v":""},null,null,{"$f":"IFERROR(INDEX(Table1[Room description],MATCH('2) Room configuration'!I70,Table1[TMS],0)),\"\")","v":""},{"$f":"IFERROR(INDEX(Table1[Bedding],MATCH('2) Room configuration'!I70,Table1[TMS],0)),\"\")","v":""},{"$f":"IFERROR(INDEX(Table1[Normal occupancy],MATCH(Table2[[#This Row],[New Room Type \n(TMS)]],Table1[TMS],0)),\"\")","v":""},null,null,null,null,"",{"$f":"IF(Table2[[#This Row],['# extra beds that fit in the room2]]<>0,LEFT(Table2[[#This Row],[New Room Type \n(TMS)]],6),\"\")","v":""},null,{"$f":"IF(Table2[[#This Row],['# extra beds that fit in the room]]<>Table2[[#This Row],['# extra beds that fit in the room2]],\"yes\",\"No\")","v":"No"}]
[null,{"$f":"IF(LEN(C71)>0,'1) Hotel information'!$C$4,\"\")","v":""},null,null,null,{"$f":"IFERROR(INDEX(Table1[Room description],MATCH('2) Room configuration'!D71,Table1[TMS],0)),\"\")","v":""},{"$f":"IFERROR(INDEX(Table1[Bedding],MATCH('2) Room configuration'!D71,Table1[TMS],0)),\"\")","v":""},null,null,{"$f":"IFERROR(INDEX(Table1[Room description],MATCH('2) Room configuration'!I71,Table1[TMS],0)),\"\")","v":""},{"$f":"IFERROR(INDEX(Table1[Bedding],MATCH('2) Room configuration'!I71,Table1[TMS],0)),\"\")","v":""},{"$f":"IFERROR(INDEX(Table1[Normal occupancy],MATCH(Table2[[#This Row],[New Room Type \n(TMS)]],Table1[TMS],0)),\"\")","v":""},null,null,null,null,"",{"$f":"IF(Table2[[#This Row],['# extra beds that fit in the room2]]<>0,LEFT(Table2[[#This Row],[New Room Type \n(TMS)]],6),\"\")","v":""},null,{"$f":"IF(Table2[[#This Row],['# extra beds that fit in the room]]<>Table2[[#This Row],['# extra beds that fit in the room2]],\"yes\",\"No\")","v":"No"}]
[null,{"$f":"IF(LEN(C72)>0,'1) Hotel information'!$C$4,\"\")","v":""},null,null,null,{"$f":"IFERROR(INDEX(Table1[Room description],MATCH('2) Room configuration'!D72,Table1[TMS],0)),\"\")","v":""},{"$f":"IFERROR(INDEX(Table1[Bedding],MATCH('2) Room configuration'!D72,Table1[TMS],0)),\"\")","v":""},null,null,{"$f":"IFERROR(INDEX(Table1[Room description],MATCH('2) Room configuration'!I72,Table1[TMS],0)),\"\")","v":""},{"$f":"IFERROR(INDEX(Table1[Bedding],MATCH('2) Room configuration'!I72,Table1[TMS],0)),\"\")","v":""},{"$f":"IFERROR(INDEX(Table1[Normal occupancy],MATCH(Table2[[#This Row],[New Room Type \n(TMS)]],Table1[TMS],0)),\"\")","v":""},null,null,null,null,"",{"$f":"IF(Table2[[#This Row],['# extra beds that fit in the room2]]<>0,LEFT(Table2[[#This Row],[New Room Type \n(TMS)]],6),\"\")","v":""},null,{"$f":"IF(Table2[[#This Row],['# extra beds that fit in the room]]<>Table2[[#This Row],['# extra beds that fit in the room2]],\"yes\",\"No\")","v":"No"}]
[null,{"$f":"IF(LEN(C73)>0,'1) Hotel information'!$C$4,\"\")","v":""},null,null,null,{"$f":"IFERROR(INDEX(Table1[Room description],MATCH('2) Room configuration'!D73,Table1[TMS],0)),\"\")","v":""},{"$f":"IFERROR(INDEX(Table1[Bedding],MATCH('2) Room configuration'!D73,Table1[TMS],0)),\"\")","v":""},null,null,{"$f":"IFERROR(INDEX(Table1[Room description],MATCH('2) Room configuration'!I73,Table1[TMS],0)),\"\")","v":""},{"$f":"IFERROR(INDEX(Table1[Bedding],MATCH('2) Room configuration'!I73,Table1[TMS],0)),\"\")","v":""},{"$f":"IFERROR(INDEX(Table1[Normal occupancy],MATCH(Table2[[#This Row],[New Room Type \n(TMS)]],Table1[TMS],0)),\"\")","v":""},null,null,null,null,"",{"$f":"IF(Table2[[#This Row],['# extra beds that fit in the room2]]<>0,LEFT(Table2[[#This Row],[New Room Type \n(TMS)]],6),\"\")","v":""},null,{"$f":"IF(Table2[[#This Row],['# extra beds that fit in the room]]<>Table2[[#This Row],['# extra beds that fit in the room2]],\"yes\",\"No\")","v":"No"}]
[null,{"$f":"IF(LEN(C74)>0,'1) Hotel information'!$C$4,\"\")","v":""},null,null,null,{"$f":"IFERROR(INDEX(Table1[Room description],MATCH('2) Room configuration'!D74,Table1[TMS],0)),\"\")","v":""},{"$f":"IFERROR(INDEX(Table1[Bedding],MATCH('2) Room configuration'!D74,Table1[TMS],0)),\"\")","v":""},null,null,{"$f":"IFERROR(INDEX(Table1[Room description],MATCH('2) Room configuration'!I74,Table1[TMS],0)),\"\")","v":""},{"$f":"IFERROR(INDEX(Table1[Bedding],MATCH('2) Room configuration'!I74,Table1[TMS],0)),\"\")","v":""},{"$f":"IFERROR(INDEX(Table1[Normal occupancy],MATCH(Table2[[#This Row],[New Room Type \n(TMS)]],Table1[TMS],0)),\"\")","v":""},null,null,null,null,"",{"$f":"IF(Table2[[#This Row],['# extra beds that fit in the room2]]<>0,LEFT(Table2[[#This Row],[New Room Type \n(TMS)]],6),\"\")","v":""},null,{"$f":"IF(Table2[[#This Row],['# extra beds that fit in the room]]<>Table2[[#This Row],['# extra beds that fit in the room2]],\"yes\",\"No\")","v":"No"}]
[null,{"$f":"IF(LEN(C75)>0,'1) Hotel information'!$C$4,\"\")","v":""},null,null,null,{"$f":"IFERROR(INDEX(Table1[Room description],MATCH('2) Room configuration'!D75,Table1[TMS],0)),\"\")","v":""},{"$f":"IFERROR(INDEX(Table1[Bedding],MATCH('2) Room configuration'!D75,Table1[TMS],0)),\"\")","v":""},null,null,{"$f":"IFERROR(INDEX(Table1[Room description],MATCH('2) Room configuration'!I75,Table1[TMS],0)),\"\")","v":""},{"$f":"IFERROR(INDEX(Table1[Bedding],MATCH('2) Room configuration'!I75,Table1[TMS],0)),\"\")","v":""},{"$f":"IFERROR(INDEX(Table1[Normal occupancy],MATCH(Table2[[#This Row],[New Room Type \n(TMS)]],Table1[TMS],0)),\"\")","v":""},null,null,null,null,"",{"$f":"IF(Table2[[#This Row],['# extra beds that fit in the room2]]<>0,LEFT(Table2[[#This Row],[New Room Type \n(TMS)]],6),\"\")","v":""},null,{"$f":"IF(Table2[[#This Row],['# extra beds that fit in the room]]<>Table2[[#This Row],['# extra beds that fit in the room2]],\"yes\",\"No\")","v":"No"}]
[null,{"$f":"IF(LEN(C76)>0,'1) Hotel information'!$C$4,\"\")","v":""},null,null,null,{"$f":"IFERROR(INDEX(Table1[Room description],MATCH('2) Room configuration'!D76,Table1[TMS],0)),\"\")","v":""},{"$f":"IFERROR(INDEX(Table1[Bedding],MATCH('2) Room configuration'!D76,Table1[TMS],0)),\"\")","v":""},null,null,{"$f":"IFERROR(INDEX(Table1[Room description],MATCH('2) Room configuration'!I76,Table1[TMS],0)),\"\")","v":""},{"$f":"IFERROR(INDEX(Table1[Bedding],MATCH('2) Room configuration'!I76,Table1[TMS],0)),\"\")","v":""},{"$f":"IFERROR(INDEX(Table1[Normal occupancy],MATCH(Table2[[#This Row],[New Room Type \n(TMS)]],Table1[TMS],0)),\"\")","v":""},null,null,null,null,{"$f":"IF(LEN(C76)>0,IF(D76=I76,\"No\",\"Yes\"),\"\")","v":""},{"$f":"IF(Table2[[#This Row],['# extra beds that fit in the room2]]<>0,LEFT(Table2[[#This Row],[New Room Type \n(TMS)]],6),\"\")","v":""},null,{"$f":"IF(Table2[[#This Row],['# extra beds that fit in the room]]<>Table2[[#This Row],['# extra beds that fit in the room2]],\"yes\",\"No\")","v":"No"}]
[null,{"$f":"IF(LEN(C77)>0,'1) Hotel information'!$C$4,\"\")","v":""},null,null,null,{"$f":"IFERROR(INDEX(Table1[Room description],MATCH('2) Room configuration'!D77,Table1[TMS],0)),\"\")","v":""},{"$f":"IFERROR(INDEX(Table1[Bedding],MATCH('2) Room configuration'!D77,Table1[TMS],0)),\"\")","v":""},null,null,{"$f":"IFERROR(INDEX(Table1[Room description],MATCH('2) Room configuration'!I77,Table1[TMS],0)),\"\")","v":""},{"$f":"IFERROR(INDEX(Table1[Bedding],MATCH('2) Room configuration'!I77,Table1[TMS],0)),\"\")","v":""},{"$f":"IFERROR(INDEX(Table1[Normal occupancy],MATCH(Table2[[#This Row],[New Room Type \n(TMS)]],Table1[TMS],0)),\"\")","v":""},null,null,null,null,"",{"$f":"IF(Table2[[#This Row],['# extra beds that fit in the room2]]<>0,LEFT(Table2[[#This Row],[New Room Type \n(TMS)]],6),\"\")","v":""},null,{"$f":"IF(Table2[[#This Row],['# extra beds that fit in the room]]<>Table2[[#This Row],['# extra beds that fit in the room2]],\"yes\",\"No\")","v":"No"}]
[null,{"$f":"IF(LEN(C78)>0,'1) Hotel information'!$C$4,\"\")","v":""},null,null,null,{"$f":"IFERROR(INDEX(Table1[Room description],MATCH('2) Room configuration'!D78,Table1[TMS],0)),\"\")","v":""},{"$f":"IFERROR(INDEX(Table1[Bedding],MATCH('2) Room configuration'!D78,Table1[TMS],0)),\"\")","v":""},null,null,{"$f":"IFERROR(INDEX(Table1[Room description],MATCH('2) Room configuration'!I78,Table1[TMS],0)),\"\")","v":""},{"$f":"IFERROR(INDEX(Table1[Bedding],MATCH('2) Room configuration'!I78,Table1[TMS],0)),\"\")","v":""},{"$f":"IFERROR(INDEX(Table1[Normal occupancy],MATCH(Table2[[#This Row],[New Room Type \n(TMS)]],Table1[TMS],0)),\"\")","v":""},null,null,null,null,"",{"$f":"IF(Table2[[#This Row],['# extra beds that fit in the room2]]<>0,LEFT(Table2[[#This Row],[New Room Type \n(TMS)]],6),\"\")","v":""},null,{"$f":"IF(Table2[[#This Row],['# extra beds that fit in the room]]<>Table2[[#This Row],['# extra beds that fit in the room2]],\"yes\",\"No\")","v":"No"}]
[null,{"$f":"IF(LEN(C79)>0,'1) Hotel information'!$C$4,\"\")","v":""},null,null,null,{"$f":"IFERROR(INDEX(Table1[Room description],MATCH('2) Room configuration'!D79,Table1[TMS],0)),\"\")","v":""},{"$f":"IFERROR(INDEX(Table1[Bedding],MATCH('2) Room configuration'!D79,Table1[TMS],0)),\"\")","v":""},null,null,{"$f":"IFERROR(INDEX(Table1[Room description],MATCH('2) Room configuration'!I79,Table1[TMS],0)),\"\")","v":""},{"$f":"IFERROR(INDEX(Table1[Bedding],MATCH('2) Room configuration'!I79,Table1[TMS],0)),\"\")","v":""},{"$f":"IFERROR(INDEX(Table1[Normal occupancy],MATCH(Table2[[#This Row],[New Room Type \n(TMS)]],Table1[TMS],0)),\"\")","v":""},null,null,null,null,"",{"$f":"IF(Table2[[#This Row],['# extra beds that fit in the room2]]<>0,LEFT(Table2[[#This Row],[New Room Type \n(TMS)]],6),\"\")","v":""},null,{"$f":"IF(Table2[[#This Row],['# extra beds that fit in the room]]<>Table2[[#This Row],['# extra beds that fit in the room2]],\"yes\",\"No\")","v":"No"}]
[null,{"$f":"IF(LEN(C80)>0,'1) Hotel information'!$C$4,\"\")","v":""},null,null,null,{"$f":"IFERROR(INDEX(Table1[Room description],MATCH('2) Room configuration'!D80,Table1[TMS],0)),\"\")","v":""},{"$f":"IFERROR(INDEX(Table1[Bedding],MATCH('2) Room configuration'!D80,Table1[TMS],0)),\"\")","v":""},null,null,{"$f":"IFERROR(INDEX(Table1[Room description],MATCH('2) Room configuration'!I80,Table1[TMS],0)),\"\")","v":""},{"$f":"IFERROR(INDEX(Table1[Bedding],MATCH('2) Room configuration'!I80,Table1[TMS],0)),\"\")","v":""},{"$f":"IFERROR(INDEX(Table1[Normal occupancy],MATCH(Table2[[#This Row],[New Room Type \n(TMS)]],Table1[TMS],0)),\"\")","v":""},null,null,null,null,"",{"$f":"IF(Table2[[#This Row],['# extra beds that fit in the room2]]<>0,LEFT(Table2[[#This Row],[New Room Type \n(TMS)]],6),\"\")","v":""},null,{"$f":"IF(Table2[[#This Row],['# extra beds that fit in the room]]<>Table2[[#This Row],['# extra beds that fit in the room2]],\"yes\",\"No\")","v":"No"}]
[null,{"$f":"IF(LEN(C81)>0,'1) Hotel information'!$C$4,\"\")","v":""},null,null,null,{"$f":"IFERROR(INDEX(Table1[Room description],MATCH('2) Room configuration'!D81,Table1[TMS],0)),\"\")","v":""},{"$f":"IFERROR(INDEX(Table1[Bedding],MATCH('2) Room configuration'!D81,Table1[TMS],0)),\"\")","v":""},null,null,{"$f":"IFERROR(INDEX(Table1[Room description],MATCH('2) Room configuration'!I81,Table1[TMS],0)),\"\")","v":""},{"$f":"IFERROR(INDEX(Table1[Bedding],MATCH('2) Room configuration'!I81,Table1[TMS],0)),\"\")","v":""},{"$f":"IFERROR(INDEX(Table1[Normal occupancy],MATCH(Table2[[#This Row],[New Room Type \n(TMS)]],Table1[TMS],0)),\"\")","v":""},null,null,null,null,"",{"$f":"IF(Table2[[#This Row],['# extra beds that fit in the room2]]<>0,LEFT(Table2[[#This Row],[New Room Type \n(TMS)]],6),\"\")","v":""},null,{"$f":"IF(Table2[[#This Row],['# extra beds that fit in the room]]<>Table2[[#This Row],['# extra beds that fit in the room2]],\"yes\",\"No\")","v":"No"}]
[null,{"$f":"IF(LEN(C82)>0,'1) Hotel information'!$C$4,\"\")","v":""},null,null,null,{"$f":"IFERROR(INDEX(Table1[Room description],MATCH('2) Room configuration'!D82,Table1[TMS],0)),\"\")","v":""},{"$f":"IFERROR(INDEX(Table1[Bedding],MATCH('2) Room configuration'!D82,Table1[TMS],0)),\"\")","v":""},null,null,{"$f":"IFERROR(INDEX(Table1[Room description],MATCH('2) Room configuration'!I82,Table1[TMS],0)),\"\")","v":""},{"$f":"IFERROR(INDEX(Table1[Bedding],MATCH('2) Room configuration'!I82,Table1[TMS],0)),\"\")","v":""},{"$f":"IFERROR(INDEX(Table1[Normal occupancy],MATCH(Table2[[#This Row],[New Room Type \n(TMS)]],Table1[TMS],0)),\"\")","v":""},null,null,null,null,"",{"$f":"IF(Table2[[#This Row],['# extra beds that fit in the room2]]<>0,LEFT(Table2[[#This Row],[New Room Type \n(TMS)]],6),\"\")","v":""},null,{"$f":"IF(Table2[[#This Row],['# extra beds that fit in the room]]<>Table2[[#This Row],['# extra beds that fit in the room2]],\"yes\",\"No\")","v":"No"}]
[null,{"$f":"IF(LEN(C83)>0,'1) Hotel information'!$C$4,\"\")","v":""},null,null,null,{"$f":"IFERROR(INDEX(Table1[Room description],MATCH('2) Room configuration'!D83,Table1[TMS],0)),\"\")","v":""},{"$f":"IFERROR(INDEX(Table1[Bedding],MATCH('2) Room configuration'!D83,Table1[TMS],0)),\"\")","v":""},null,null,{"$f":"IFERROR(INDEX(Table1[Room description],MATCH('2) Room configuration'!I83,Table1[TMS],0)),\"\")","v":""},{"$f":"IFERROR(INDEX(Table1[Bedding],MATCH('2) Room configuration'!I83,Table1[TMS],0)),\"\")","v":""},{"$f":"IFERROR(INDEX(Table1[Normal occupancy],MATCH(Table2[[#This Row],[New Room Type \n(TMS)]],Table1[TMS],0)),\"\")","v":""},null,null,null,null,"",{"$f":"IF(Table2[[#This Row],['# extra beds that fit in the room2]]<>0,LEFT(Table2[[#This Row],[New Room Type \n(TMS)]],6),\"\")","v":""},null,{"$f":"IF(Table2[[#This Row],['# extra beds that fit in the room]]<>Table2[[#This Row],['# extra beds that fit in the room2]],\"yes\",\"No\")","v":"No"}]
[null,{"$f":"IF(LEN(C84)>0,'1) Hotel information'!$C$4,\"\")","v":""},null,null,null,{"$f":"IFERROR(INDEX(Table1[Room description],MATCH('2) Room configuration'!D84,Table1[TMS],0)),\"\")","v":""},{"$f":"IFERROR(INDEX(Table1[Bedding],MATCH('2) Room configuration'!D84,Table1[TMS],0)),\"\")","v":""},null,null,{"$f":"IFERROR(INDEX(Table1[Room description],MATCH('2) Room configuration'!I84,Table1[TMS],0)),\"\")","v":""},{"$f":"IFERROR(INDEX(Table1[Bedding],MATCH('2) Room configuration'!I84,Table1[TMS],0)),\"\")","v":""},{"$f":"IFERROR(INDEX(Table1[Normal occupancy],MATCH(Table2[[#This Row],[New Room Type \n(TMS)]],Table1[TMS],0)),\"\")","v":""},null,null,null,null,"",{"$f":"IF(Table2[[#This Row],['# extra beds that fit in the room2]]<>0,LEFT(Table2[[#This Row],[New Room Type \n(TMS)]],6),\"\")","v":""},null,{"$f":"IF(Table2[[#This Row],['# extra beds that fit in the room]]<>Table2[[#This Row],['# extra beds that fit in the room2]],\"yes\",\"No\")","v":"No"}]
[null,{"$f":"IF(LEN(C85)>0,'1) Hotel information'!$C$4,\"\")","v":""},null,null,null,{"$f":"IFERROR(INDEX(Table1[Room description],MATCH('2) Room configuration'!D85,Table1[TMS],0)),\"\")","v":""},{"$f":"IFERROR(INDEX(Table1[Bedding],MATCH('2) Room configuration'!D85,Table1[TMS],0)),\"\")","v":""},null,null,{"$f":"IFERROR(INDEX(Table1[Room description],MATCH('2) Room configuration'!I85,Table1[TMS],0)),\"\")","v":""},{"$f":"IFERROR(INDEX(Table1[Bedding],MATCH('2) Room configuration'!I85,Table1[TMS],0)),\"\")","v":""},{"$f":"IFERROR(INDEX(Table1[Normal occupancy],MATCH(Table2[[#This Row],[New Room Type \n(TMS)]],Table1[TMS],0)),\"\")","v":""},null,null,null,null,"",{"$f":"IF(Table2[[#This Row],['# extra beds that fit in the room2]]<>0,LEFT(Table2[[#This Row],[New Room Type \n(TMS)]],6),\"\")","v":""},null,{"$f":"IF(Table2[[#This Row],['# extra beds that fit in the room]]<>Table2[[#This Row],['# extra beds that fit in the room2]],\"yes\",\"No\")","v":"No"}]
[null,{"$f":"IF(LEN(C86)>0,'1) Hotel information'!$C$4,\"\")","v":""},null,null,null,{"$f":"IFERROR(INDEX(Table1[Room description],MATCH('2) Room configuration'!D86,Table1[TMS],0)),\"\")","v":""},{"$f":"IFERROR(INDEX(Table1[Bedding],MATCH('2) Room configuration'!D86,Table1[TMS],0)),\"\")","v":""},null,null,{"$f":"IFERROR(INDEX(Table1[Room description],MATCH('2) Room configuration'!I86,Table1[TMS],0)),\"\")","v":""},{"$f":"IFERROR(INDEX(Table1[Bedding],MATCH('2) Room configuration'!I86,Table1[TMS],0)),\"\")","v":""},{"$f":"IFERROR(INDEX(Table1[Normal occupancy],MATCH(Table2[[#This Row],[New Room Type \n(TMS)]],Table1[TMS],0)),\"\")","v":""},null,null,null,null,"",{"$f":"IF(Table2[[#This Row],['# extra beds that fit in the room2]]<>0,LEFT(Table2[[#This Row],[New Room Type \n(TMS)]],6),\"\")","v":""},null,{"$f":"IF(Table2[[#This Row],['# extra beds that fit in the room]]<>Table2[[#This Row],['# extra beds that fit in the room2]],\"yes\",\"No\")","v":"No"}]
[null,{"$f":"IF(LEN(C87)>0,'1) Hotel information'!$C$4,\"\")","v":""},null,null,null,{"$f":"IFERROR(INDEX(Table1[Room description],MATCH('2) Room configuration'!D87,Table1[TMS],0)),\"\")","v":""},{"$f":"IFERROR(INDEX(Table1[Bedding],MATCH('2) Room configuration'!D87,Table1[TMS],0)),\"\")","v":""},null,null,{"$f":"IFERROR(INDEX(Table1[Room description],MATCH('2) Room configuration'!I87,Table1[TMS],0)),\"\")","v":""},{"$f":"IFERROR(INDEX(Table1[Bedding],MATCH('2) Room configuration'!I87,Table1[TMS],0)),\"\")","v":""},{"$f":"IFERROR(INDEX(Table1[Normal occupancy],MATCH(Table2[[#This Row],[New Room Type \n(TMS)]],Table1[TMS],0)),\"\")","v":""},null,null,null,null,"",{"$f":"IF(Table2[[#This Row],['# extra beds that fit in the room2]]<>0,LEFT(Table2[[#This Row],[New Room Type \n(TMS)]],6),\"\")","v":""},null,{"$f":"IF(Table2[[#This Row],['# extra beds that fit in the room]]<>Table2[[#This Row],['# extra beds that fit in the room2]],\"yes\",\"No\")","v":"No"}]
[null,{"$f":"IF(LEN(C88)>0,'1) Hotel information'!$C$4,\"\")","v":""},null,null,null,{"$f":"IFERROR(INDEX(Table1[Room description],MATCH('2) Room configuration'!D88,Table1[TMS],0)),\"\")","v":""},{"$f":"IFERROR(INDEX(Table1[Bedding],MATCH('2) Room configuration'!D88,Table1[TMS],0)),\"\")","v":""},null,null,{"$f":"IFERROR(INDEX(Table1[Room description],MATCH('2) Room configuration'!I88,Table1[TMS],0)),\"\")","v":""},{"$f":"IFERROR(INDEX(Table1[Bedding],MATCH('2) Room configuration'!I88,Table1[TMS],0)),\"\")","v":""},{"$f":"IFERROR(INDEX(Table1[Normal occupancy],MATCH(Table2[[#This Row],[New Room Type \n(TMS)]],Table1[TMS],0)),\"\")","v":""},null,null,null,null,"",{"$f":"IF(Table2[[#This Row],['# extra beds that fit in the room2]]<>0,LEFT(Table2[[#This Row],[New Room Type \n(TMS)]],6),\"\")","v":""},null,{"$f":"IF(Table2[[#This Row],['# extra beds that fit in the room]]<>Table2[[#This Row],['# extra beds that fit in the room2]],\"yes\",\"No\")","v":"No"}]
[null,{"$f":"IF(LEN(C89)>0,'1) Hotel information'!$C$4,\"\")","v":""},null,null,null,{"$f":"IFERROR(INDEX(Table1[Room description],MATCH('2) Room configuration'!D89,Table1[TMS],0)),\"\")","v":""},{"$f":"IFERROR(INDEX(Table1[Bedding],MATCH('2) Room configuration'!D89,Table1[TMS],0)),\"\")","v":""},null,null,{"$f":"IFERROR(INDEX(Table1[Room description],MATCH('2) Room configuration'!I89,Table1[TMS],0)),\"\")","v":""},{"$f":"IFERROR(INDEX(Table1[Bedding],MATCH('2) Room configuration'!I89,Table1[TMS],0)),\"\")","v":""},{"$f":"IFERROR(INDEX(Table1[Normal occupancy],MATCH(Table2[[#This Row],[New Room Type \n(TMS)]],Table1[TMS],0)),\"\")","v":""},null,null,null,null,"",{"$f":"IF(Table2[[#This Row],['# extra beds that fit in the room2]]<>0,LEFT(Table2[[#This Row],[New Room Type \n(TMS)]],6),\"\")","v":""},null,{"$f":"IF(Table2[[#This Row],['# extra beds that fit in the room]]<>Table2[[#This Row],['# extra beds that fit in the room2]],\"yes\",\"No\")","v":"No"}]
[null,{"$f":"IF(LEN(C90)>0,'1) Hotel information'!$C$4,\"\")","v":""},null,null,null,{"$f":"IFERROR(INDEX(Table1[Room description],MATCH('2) Room configuration'!D90,Table1[TMS],0)),\"\")","v":""},{"$f":"IFERROR(INDEX(Table1[Bedding],MATCH('2) Room configuration'!D90,Table1[TMS],0)),\"\")","v":""},null,null,{"$f":"IFERROR(INDEX(Table1[Room description],MATCH('2) Room configuration'!I90,Table1[TMS],0)),\"\")","v":""},{"$f":"IFERROR(INDEX(Table1[Bedding],MATCH('2) Room configuration'!I90,Table1[TMS],0)),\"\")","v":""},{"$f":"IFERROR(INDEX(Table1[Normal occupancy],MATCH(Table2[[#This Row],[New Room Type \n(TMS)]],Table1[TMS],0)),\"\")","v":""},null,null,null,null,"",{"$f":"IF(Table2[[#This Row],['# extra beds that fit in the room2]]<>0,LEFT(Table2[[#This Row],[New Room Type \n(TMS)]],6),\"\")","v":""},null,{"$f":"IF(Table2[[#This Row],['# extra beds that fit in the room]]<>Table2[[#This Row],['# extra beds that fit in the room2]],\"yes\",\"No\")","v":"No"}]
[null,{"$f":"IF(LEN(C91)>0,'1) Hotel information'!$C$4,\"\")","v":""},null,null,null,{"$f":"IFERROR(INDEX(Table1[Room description],MATCH('2) Room configuration'!D91,Table1[TMS],0)),\"\")","v":""},{"$f":"IFERROR(INDEX(Table1[Bedding],MATCH('2) Room configuration'!D91,Table1[TMS],0)),\"\")","v":""},null,null,{"$f":"IFERROR(INDEX(Table1[Room description],MATCH('2) Room configuration'!I91,Table1[TMS],0)),\"\")","v":""},{"$f":"IFERROR(INDEX(Table1[Bedding],MATCH('2) Room configuration'!I91,Table1[TMS],0)),\"\")","v":""},{"$f":"IFERROR(INDEX(Table1[Normal occupancy],MATCH(Table2[[#This Row],[New Room Type \n(TMS)]],Table1[TMS],0)),\"\")","v":""},null,null,null,null,"",{"$f":"IF(Table2[[#This Row],['# extra beds that fit in the room2]]<>0,LEFT(Table2[[#This Row],[New Room Type \n(TMS)]],6),\"\")","v":""},null,{"$f":"IF(Table2[[#This Row],['# extra beds that fit in the room]]<>Table2[[#This Row],['# extra beds that fit in the room2]],\"yes\",\"No\")","v":"No"}]
[null,{"$f":"IF(LEN(C92)>0,'1) Hotel information'!$C$4,\"\")","v":""},null,null,null,{"$f":"IFERROR(INDEX(Table1[Room description],MATCH('2) Room configuration'!D92,Table1[TMS],0)),\"\")","v":""},{"$f":"IFERROR(INDEX(Table1[Bedding],MATCH('2) Room configuration'!D92,Table1[TMS],0)),\"\")","v":""},null,null,{"$f":"IFERROR(INDEX(Table1[Room description],MATCH('2) Room configuration'!I92,Table1[TMS],0)),\"\")","v":""},{"$f":"IFERROR(INDEX(Table1[Bedding],MATCH('2) Room configuration'!I92,Table1[TMS],0)),\"\")","v":""},{"$f":"IFERROR(INDEX(Table1[Normal occupancy],MATCH(Table2[[#This Row],[New Room Type \n(TMS)]],Table1[TMS],0)),\"\")","v":""},null,null,null,null,"",{"$f":"IF(Table2[[#This Row],['# extra beds that fit in the room2]]<>0,LEFT(Table2[[#This Row],[New Room Type \n(TMS)]],6),\"\")","v":""},null,{"$f":"IF(Table2[[#This Row],['# extra beds that fit in the room]]<>Table2[[#This Row],['# extra beds that fit in the room2]],\"yes\",\"No\")","v":"No"}]
[null,{"$f":"IF(LEN(C93)>0,'1) Hotel information'!$C$4,\"\")","v":""},null,null,null,{"$f":"IFERROR(INDEX(Table1[Room description],MATCH('2) Room configuration'!D93,Table1[TMS],0)),\"\")","v":""},{"$f":"IFERROR(INDEX(Table1[Bedding],MATCH('2) Room configuration'!D93,Table1[TMS],0)),\"\")","v":""},null,null,{"$f":"IFERROR(INDEX(Table1[Room description],MATCH('2) Room configuration'!I93,Table1[TMS],0)),\"\")","v":""},{"$f":"IFERROR(INDEX(Table1[Bedding],MATCH('2) Room configuration'!I93,Table1[TMS],0)),\"\")","v":""},{"$f":"IFERROR(INDEX(Table1[Normal occupancy],MATCH(Table2[[#This Row],[New Room Type \n(TMS)]],Table1[TMS],0)),\"\")","v":""},null,null,null,null,"",{"$f":"IF(Table2[[#This Row],['# extra beds that fit in the room2]]<>0,LEFT(Table2[[#This Row],[New Room Type \n(TMS)]],6),\"\")","v":""},null,{"$f":"IF(Table2[[#This Row],['# extra beds that fit in the room]]<>Table2[[#This Row],['# extra beds that fit in the room2]],\"yes\",\"No\")","v":"No"}]
[null,{"$f":"IF(LEN(C94)>0,'1) Hotel information'!$C$4,\"\")","v":""},null,null,null,{"$f":"IFERROR(INDEX(Table1[Room description],MATCH('2) Room configuration'!D94,Table1[TMS],0)),\"\")","v":""},{"$f":"IFERROR(INDEX(Table1[Bedding],MATCH('2) Room configuration'!D94,Table1[TMS],0)),\"\")","v":""},null,null,{"$f":"IFERROR(INDEX(Table1[Room description],MATCH('2) Room configuration'!I94,Table1[TMS],0)),\"\")","v":""},{"$f":"IFERROR(INDEX(Table1[Bedding],MATCH('2) Room configuration'!I94,Table1[TMS],0)),\"\")","v":""},{"$f":"IFERROR(INDEX(Table1[Normal occupancy],MATCH(Table2[[#This Row],[New Room Type \n(TMS)]],Table1[TMS],0)),\"\")","v":""},null,null,null,null,"",{"$f":"IF(Table2[[#This Row],['# extra beds that fit in the room2]]<>0,LEFT(Table2[[#This Row],[New Room Type \n(TMS)]],6),\"\")","v":""},null,{"$f":"IF(Table2[[#This Row],['# extra beds that fit in the room]]<>Table2[[#This Row],['# extra beds that fit in the room2]],\"yes\",\"No\")","v":"No"}]
[null,{"$f":"IF(LEN(C95)>0,'1) Hotel information'!$C$4,\"\")","v":""},null,null,null,{"$f":"IFERROR(INDEX(Table1[Room description],MATCH('2) Room configuration'!D95,Table1[TMS],0)),\"\")","v":""},{"$f":"IFERROR(INDEX(Table1[Bedding],MATCH('2) Room configuration'!D95,Table1[TMS],0)),\"\")","v":""},null,null,{"$f":"IFERROR(INDEX(Table1[Room description],MATCH('2) Room configuration'!I95,Table1[TMS],0)),\"\")","v":""},{"$f":"IFERROR(INDEX(Table1[Bedding],MATCH('2) Room configuration'!I95,Table1[TMS],0)),\"\")","v":""},{"$f":"IFERROR(INDEX(Table1[Normal occupancy],MATCH(Table2[[#This Row],[New Room Type \n(TMS)]],Table1[TMS],0)),\"\")","v":""},null,null,null,null,"",{"$f":"IF(Table2[[#This Row],['# extra beds that fit in the room2]]<>0,LEFT(Table2[[#This Row],[New Room Type \n(TMS)]],6),\"\")","v":""},null,{"$f":"IF(Table2[[#This Row],['# extra beds that fit in the room]]<>Table2[[#This Row],['# extra beds that fit in the room2]],\"yes\",\"No\")","v":"No"}]
[null,{"$f":"IF(LEN(C96)>0,'1) Hotel information'!$C$4,\"\")","v":""},null,null,null,{"$f":"IFERROR(INDEX(Table1[Room description],MATCH('2) Room configuration'!D96,Table1[TMS],0)),\"\")","v":""},{"$f":"IFERROR(INDEX(Table1[Bedding],MATCH('2) Room configuration'!D96,Table1[TMS],0)),\"\")","v":""},null,null,{"$f":"IFERROR(INDEX(Table1[Room description],MATCH('2) Room configuration'!I96,Table1[TMS],0)),\"\")","v":""},{"$f":"IFERROR(INDEX(Table1[Bedding],MATCH('2) Room configuration'!I96,Table1[TMS],0)),\"\")","v":""},{"$f":"IFERROR(INDEX(Table1[Normal occupancy],MATCH(Table2[[#This Row],[New Room Type \n(TMS)]],Table1[TMS],0)),\"\")","v":""},null,null,null,null,"",{"$f":"IF(Table2[[#This Row],['# extra beds that fit in the room2]]<>0,LEFT(Table2[[#This Row],[New Room Type \n(TMS)]],6),\"\")","v":""},null,{"$f":"IF(Table2[[#This Row],['# extra beds that fit in the room]]<>Table2[[#This Row],['# extra beds that fit in the room2]],\"yes\",\"No\")","v":"No"}]
[null,{"$f":"IF(LEN(C97)>0,'1) Hotel information'!$C$4,\"\")","v":""},null,null,null,{"$f":"IFERROR(INDEX(Table1[Room description],MATCH('2) Room configuration'!D97,Table1[TMS],0)),\"\")","v":""},{"$f":"IFERROR(INDEX(Table1[Bedding],MATCH('2) Room configuration'!D97,Table1[TMS],0)),\"\")","v":""},null,null,{"$f":"IFERROR(INDEX(Table1[Room description],MATCH('2) Room configuration'!I97,Table1[TMS],0)),\"\")","v":""},{"$f":"IFERROR(INDEX(Table1[Bedding],MATCH('2) Room configuration'!I97,Table1[TMS],0)),\"\")","v":""},{"$f":"IFERROR(INDEX(Table1[Normal occupancy],MATCH(Table2[[#This Row],[New Room Type \n(TMS)]],Table1[TMS],0)),\"\")","v":""},null,null,null,null,"",{"$f":"IF(Table2[[#This Row],['# extra beds that fit in the room2]]<>0,LEFT(Table2[[#This Row],[New Room Type \n(TMS)]],6),\"\")","v":""},null,{"$f":"IF(Table2[[#This Row],['# extra beds that fit in the room]]<>Table2[[#This Row],['# extra beds that fit in the room2]],\"yes\",\"No\")","v":"No"}]
[null,{"$f":"IF(LEN(C98)>0,'1) Hotel information'!$C$4,\"\")","v":""},null,null,null,{"$f":"IFERROR(INDEX(Table1[Room description],MATCH('2) Room configuration'!D98,Table1[TMS],0)),\"\")","v":""},{"$f":"IFERROR(INDEX(Table1[Bedding],MATCH('2) Room configuration'!D98,Table1[TMS],0)),\"\")","v":""},null,null,{"$f":"IFERROR(INDEX(Table1[Room description],MATCH('2) Room configuration'!I98,Table1[TMS],0)),\"\")","v":""},{"$f":"IFERROR(INDEX(Table1[Bedding],MATCH('2) Room configuration'!I98,Table1[TMS],0)),\"\")","v":""},{"$f":"IFERROR(INDEX(Table1[Normal occupancy],MATCH(Table2[[#This Row],[New Room Type \n(TMS)]],Table1[TMS],0)),\"\")","v":""},null,null,null,null,"",{"$f":"IF(Table2[[#This Row],['# extra beds that fit in the room2]]<>0,LEFT(Table2[[#This Row],[New Room Type \n(TMS)]],6),\"\")","v":""},null,{"$f":"IF(Table2[[#This Row],['# extra beds that fit in the room]]<>Table2[[#This Row],['# extra beds that fit in the room2]],\"yes\",\"No\")","v":"No"}]
[null,{"$f":"IF(LEN(C99)>0,'1) Hotel information'!$C$4,\"\")","v":""},null,null,null,{"$f":"IFERROR(INDEX(Table1[Room description],MATCH('2) Room configuration'!D99,Table1[TMS],0)),\"\")","v":""},{"$f":"IFERROR(INDEX(Table1[Bedding],MATCH('2) Room configuration'!D99,Table1[TMS],0)),\"\")","v":""},null,null,{"$f":"IFERROR(INDEX(Table1[Room description],MATCH('2) Room configuration'!I99,Table1[TMS],0)),\"\")","v":""},{"$f":"IFERROR(INDEX(Table1[Bedding],MATCH('2) Room configuration'!I99,Table1[TMS],0)),\"\")","v":""},{"$f":"IFERROR(INDEX(Table1[Normal occupancy],MATCH(Table2[[#This Row],[New Room Type \n(TMS)]],Table1[TMS],0)),\"\")","v":""},null,null,null,null,"",{"$f":"IF(Table2[[#This Row],['# extra beds that fit in the room2]]<>0,LEFT(Table2[[#This Row],[New Room Type \n(TMS)]],6),\"\")","v":""},null,{"$f":"IF(Table2[[#This Row],['# extra beds that fit in the room]]<>Table2[[#This Row],['# extra beds that fit in the room2]],\"yes\",\"No\")","v":"No"}]
[null,{"$f":"IF(LEN(C100)>0,'1) Hotel information'!$C$4,\"\")","v":""},null,null,null,{"$f":"IFERROR(INDEX(Table1[Room description],MATCH('2) Room configuration'!D100,Table1[TMS],0)),\"\")","v":""},{"$f":"IFERROR(INDEX(Table1[Bedding],MATCH('2) Room configuration'!D100,Table1[TMS],0)),\"\")","v":""},null,null,{"$f":"IFERROR(INDEX(Table1[Room description],MATCH('2) Room configuration'!I100,Table1[TMS],0)),\"\")","v":""},{"$f":"IFERROR(INDEX(Table1[Bedding],MATCH('2) Room configuration'!I100,Table1[TMS],0)),\"\")","v":""},{"$f":"IFERROR(INDEX(Table1[Normal occupancy],MATCH(Table2[[#This Row],[New Room Type \n(TMS)]],Table1[TMS],0)),\"\")","v":""},null,null,null,null,"",{"$f":"IF(Table2[[#This Row],['# extra beds that fit in the room2]]<>0,LEFT(Table2[[#This Row],[New Room Type \n(TMS)]],6),\"\")","v":""},null,{"$f":"IF(Table2[[#This Row],['# extra beds that fit in the room]]<>Table2[[#This Row],['# extra beds that fit in the room2]],\"yes\",\"No\")","v":"No"}]
[null,{"$f":"IF(LEN(C101)>0,'1) Hotel information'!$C$4,\"\")","v":""},null,null,null,{"$f":"IFERROR(INDEX(Table1[Room description],MATCH('2) Room configuration'!D101,Table1[TMS],0)),\"\")","v":""},{"$f":"IFERROR(INDEX(Table1[Bedding],MATCH('2) Room configuration'!D101,Table1[TMS],0)),\"\")","v":""},null,null,{"$f":"IFERROR(INDEX(Table1[Room description],MATCH('2) Room configuration'!I101,Table1[TMS],0)),\"\")","v":""},{"$f":"IFERROR(INDEX(Table1[Bedding],MATCH('2) Room configuration'!I101,Table1[TMS],0)),\"\")","v":""},{"$f":"IFERROR(INDEX(Table1[Normal occupancy],MATCH(Table2[[#This Row],[New Room Type \n(TMS)]],Table1[TMS],0)),\"\")","v":""},null,null,null,null,"",{"$f":"IF(Table2[[#This Row],['# extra beds that fit in the room2]]<>0,LEFT(Table2[[#This Row],[New Room Type \n(TMS)]],6),\"\")","v":""},null,{"$f":"IF(Table2[[#This Row],['# extra beds that fit in the room]]<>Table2[[#This Row],['# extra beds that fit in the room2]],\"yes\",\"No\")","v":"No"}]
[null,{"$f":"IF(LEN(C102)>0,'1) Hotel information'!$C$4,\"\")","v":""},null,null,null,{"$f":"IFERROR(INDEX(Table1[Room description],MATCH('2) Room configuration'!D102,Table1[TMS],0)),\"\")","v":""},{"$f":"IFERROR(INDEX(Table1[Bedding],MATCH('2) Room configuration'!D102,Table1[TMS],0)),\"\")","v":""},null,null,{"$f":"IFERROR(INDEX(Table1[Room description],MATCH('2) Room configuration'!I102,Table1[TMS],0)),\"\")","v":""},{"$f":"IFERROR(INDEX(Table1[Bedding],MATCH('2) Room configuration'!I102,Table1[TMS],0)),\"\")","v":""},{"$f":"IFERROR(INDEX(Table1[Normal occupancy],MATCH(Table2[[#This Row],[New Room Type \n(TMS)]],Table1[TMS],0)),\"\")","v":""},null,null,null,null,"",{"$f":"IF(Table2[[#This Row],['# extra beds that fit in the room2]]<>0,LEFT(Table2[[#This Row],[New Room Type \n(TMS)]],6),\"\")","v":""},null,{"$f":"IF(Table2[[#This Row],['# extra beds that fit in the room]]<>Table2[[#This Row],['# extra beds that fit in the room2]],\"yes\",\"No\")","v":"No"}]
[null,{"$f":"IF(LEN(C103)>0,'1) Hotel information'!$C$4,\"\")","v":""},null,null,null,{"$f":"IFERROR(INDEX(Table1[Room description],MATCH('2) Room configuration'!D103,Table1[TMS],0)),\"\")","v":""},{"$f":"IFERROR(INDEX(Table1[Bedding],MATCH('2) Room configuration'!D103,Table1[TMS],0)),\"\")","v":""},null,null,{"$f":"IFERROR(INDEX(Table1[Room description],MATCH('2) Room configuration'!I103,Table1[TMS],0)),\"\")","v":""},{"$f":"IFERROR(INDEX(Table1[Bedding],MATCH('2) Room configuration'!I103,Table1[TMS],0)),\"\")","v":""},{"$f":"IFERROR(INDEX(Table1[Normal occupancy],MATCH(Table2[[#This Row],[New Room Type \n(TMS)]],Table1[TMS],0)),\"\")","v":""},null,null,null,null,"",{"$f":"IF(Table2[[#This Row],['# extra beds that fit in the room2]]<>0,LEFT(Table2[[#This Row],[New Room Type \n(TMS)]],6),\"\")","v":""},null,{"$f":"IF(Table2[[#This Row],['# extra beds that fit in the room]]<>Table2[[#This Row],['# extra beds that fit in the room2]],\"yes\",\"No\")","v":"No"}]
[null,{"$f":"IF(LEN(C104)>0,'1) Hotel information'!$C$4,\"\")","v":""},null,null,null,{"$f":"IFERROR(INDEX(Table1[Room description],MATCH('2) Room configuration'!D104,Table1[TMS],0)),\"\")","v":""},{"$f":"IFERROR(INDEX(Table1[Bedding],MATCH('2) Room configuration'!D104,Table1[TMS],0)),\"\")","v":""},null,null,{"$f":"IFERROR(INDEX(Table1[Room description],MATCH('2) Room configuration'!I104,Table1[TMS],0)),\"\")","v":""},{"$f":"IFERROR(INDEX(Table1[Bedding],MATCH('2) Room configuration'!I104,Table1[TMS],0)),\"\")","v":""},{"$f":"IFERROR(INDEX(Table1[Normal occupancy],MATCH(Table2[[#This Row],[New Room Type \n(TMS)]],Table1[TMS],0)),\"\")","v":""},null,null,null,null,"",{"$f":"IF(Table2[[#This Row],['# extra beds that fit in the room2]]<>0,LEFT(Table2[[#This Row],[New Room Type \n(TMS)]],6),\"\")","v":""},null,{"$f":"IF(Table2[[#This Row],['# extra beds that fit in the room]]<>Table2[[#This Row],['# extra beds that fit in the room2]],\"yes\",\"No\")","v":"No"}]
[null,{"$f":"IF(LEN(C105)>0,'1) Hotel information'!$C$4,\"\")","v":""},null,null,null,{"$f":"IFERROR(INDEX(Table1[Room description],MATCH('2) Room configuration'!D105,Table1[TMS],0)),\"\")","v":""},{"$f":"IFERROR(INDEX(Table1[Bedding],MATCH('2) Room configuration'!D105,Table1[TMS],0)),\"\")","v":""},null,null,{"$f":"IFERROR(INDEX(Table1[Room description],MATCH('2) Room configuration'!I105,Table1[TMS],0)),\"\")","v":""},{"$f":"IFERROR(INDEX(Table1[Bedding],MATCH('2) Room configuration'!I105,Table1[TMS],0)),\"\")","v":""},{"$f":"IFERROR(INDEX(Table1[Normal occupancy],MATCH(Table2[[#This Row],[New Room Type \n(TMS)]],Table1[TMS],0)),\"\")","v":""},null,null,null,null,"",{"$f":"IF(Table2[[#This Row],['# extra beds that fit in the room2]]<>0,LEFT(Table2[[#This Row],[New Room Type \n(TMS)]],6),\"\")","v":""},null,{"$f":"IF(Table2[[#This Row],['# extra beds that fit in the room]]<>Table2[[#This Row],['# extra beds that fit in the room2]],\"yes\",\"No\")","v":"No"}]
[null,{"$f":"IF(LEN(C106)>0,'1) Hotel information'!$C$4,\"\")","v":""},null,null,null,{"$f":"IFERROR(INDEX(Table1[Room description],MATCH('2) Room configuration'!D106,Table1[TMS],0)),\"\")","v":""},{"$f":"IFERROR(INDEX(Table1[Bedding],MATCH('2) Room configuration'!D106,Table1[TMS],0)),\"\")","v":""},null,null,{"$f":"IFERROR(INDEX(Table1[Room description],MATCH('2) Room configuration'!I106,Table1[TMS],0)),\"\")","v":""},{"$f":"IFERROR(INDEX(Table1[Bedding],MATCH('2) Room configuration'!I106,Table1[TMS],0)),\"\")","v":""},{"$f":"IFERROR(INDEX(Table1[Normal occupancy],MATCH(Table2[[#This Row],[New Room Type \n(TMS)]],Table1[TMS],0)),\"\")","v":""},null,null,null,null,"",{"$f":"IF(Table2[[#This Row],['# extra beds that fit in the room2]]<>0,LEFT(Table2[[#This Row],[New Room Type \n(TMS)]],6),\"\")","v":""},null,{"$f":"IF(Table2[[#This Row],['# extra beds that fit in the room]]<>Table2[[#This Row],['# extra beds that fit in the room2]],\"yes\",\"No\")","v":"No"}]
[null,{"$f":"IF(LEN(C107)>0,'1) Hotel information'!$C$4,\"\")","v":""},null,null,null,{"$f":"IFERROR(INDEX(Table1[Room description],MATCH('2) Room configuration'!D107,Table1[TMS],0)),\"\")","v":""},{"$f":"IFERROR(INDEX(Table1[Bedding],MATCH('2) Room configuration'!D107,Table1[TMS],0)),\"\")","v":""},null,null,{"$f":"IFERROR(INDEX(Table1[Room description],MATCH('2) Room configuration'!I107,Table1[TMS],0)),\"\")","v":""},{"$f":"IFERROR(INDEX(Table1[Bedding],MATCH('2) Room configuration'!I107,Table1[TMS],0)),\"\")","v":""},{"$f":"IFERROR(INDEX(Table1[Normal occupancy],MATCH(Table2[[#This Row],[New Room Type \n(TMS)]],Table1[TMS],0)),\"\")","v":""},null,null,null,null,"",{"$f":"IF(Table2[[#This Row],['# extra beds that fit in the room2]]<>0,LEFT(Table2[[#This Row],[New Room Type \n(TMS)]],6),\"\")","v":""},null,{"$f":"IF(Table2[[#This Row],['# extra beds that fit in the room]]<>Table2[[#This Row],['# extra beds that fit in the room2]],\"yes\",\"No\")","v":"No"}]
[null,{"$f":"IF(LEN(C108)>0,'1) Hotel information'!$C$4,\"\")","v":""},null,null,null,{"$f":"IFERROR(INDEX(Table1[Room description],MATCH('2) Room configuration'!D108,Table1[TMS],0)),\"\")","v":""},{"$f":"IFERROR(INDEX(Table1[Bedding],MATCH('2) Room configuration'!D108,Table1[TMS],0)),\"\")","v":""},null,null,{"$f":"IFERROR(INDEX(Table1[Room description],MATCH('2) Room configuration'!I108,Table1[TMS],0)),\"\")","v":""},{"$f":"IFERROR(INDEX(Table1[Bedding],MATCH('2) Room configuration'!I108,Table1[TMS],0)),\"\")","v":""},{"$f":"IFERROR(INDEX(Table1[Normal occupancy],MATCH(Table2[[#This Row],[New Room Type \n(TMS)]],Table1[TMS],0)),\"\")","v":""},null,null,null,null,"",{"$f":"IF(Table2[[#This Row],['# extra beds that fit in the room2]]<>0,LEFT(Table2[[#This Row],[New Room Type \n(TMS)]],6),\"\")","v":""},null,{"$f":"IF(Table2[[#This Row],['# extra beds that fit in the room]]<>Table2[[#This Row],['# extra beds that fit in the room2]],\"yes\",\"No\")","v":"No"}]
[null,{"$f":"IF(LEN(C109)>0,'1) Hotel information'!$C$4,\"\")","v":""},null,null,null,{"$f":"IFERROR(INDEX(Table1[Room description],MATCH('2) Room configuration'!D109,Table1[TMS],0)),\"\")","v":""},{"$f":"IFERROR(INDEX(Table1[Bedding],MATCH('2) Room configuration'!D109,Table1[TMS],0)),\"\")","v":""},null,null,{"$f":"IFERROR(INDEX(Table1[Room description],MATCH('2) Room configuration'!I109,Table1[TMS],0)),\"\")","v":""},{"$f":"IFERROR(INDEX(Table1[Bedding],MATCH('2) Room configuration'!I109,Table1[TMS],0)),\"\")","v":""},{"$f":"IFERROR(INDEX(Table1[Normal occupancy],MATCH(Table2[[#This Row],[New Room Type \n(TMS)]],Table1[TMS],0)),\"\")","v":""},null,null,null,null,"",{"$f":"IF(Table2[[#This Row],['# extra beds that fit in the room2]]<>0,LEFT(Table2[[#This Row],[New Room Type \n(TMS)]],6),\"\")","v":""},null,{"$f":"IF(Table2[[#This Row],['# extra beds that fit in the room]]<>Table2[[#This Row],['# extra beds that fit in the room2]],\"yes\",\"No\")","v":"No"}]
[null,{"$f":"IF(LEN(C110)>0,'1) Hotel information'!$C$4,\"\")","v":""},null,null,null,{"$f":"IFERROR(INDEX(Table1[Room description],MATCH('2) Room configuration'!D110,Table1[TMS],0)),\"\")","v":""},{"$f":"IFERROR(INDEX(Table1[Bedding],MATCH('2) Room configuration'!D110,Table1[TMS],0)),\"\")","v":""},null,null,{"$f":"IFERROR(INDEX(Table1[Room description],MATCH('2) Room configuration'!I110,Table1[TMS],0)),\"\")","v":""},{"$f":"IFERROR(INDEX(Table1[Bedding],MATCH('2) Room configuration'!I110,Table1[TMS],0)),\"\")","v":""},{"$f":"IFERROR(INDEX(Table1[Normal occupancy],MATCH(Table2[[#This Row],[New Room Type \n(TMS)]],Table1[TMS],0)),\"\")","v":""},null,null,null,null,"",{"$f":"IF(Table2[[#This Row],['# extra beds that fit in the room2]]<>0,LEFT(Table2[[#This Row],[New Room Type \n(TMS)]],6),\"\")","v":""},null,{"$f":"IF(Table2[[#This Row],['# extra beds that fit in the room]]<>Table2[[#This Row],['# extra beds that fit in the room2]],\"yes\",\"No\")","v":"No"}]
[null,{"$f":"IF(LEN(C111)>0,'1) Hotel information'!$C$4,\"\")","v":""},null,null,null,{"$f":"IFERROR(INDEX(Table1[Room description],MATCH('2) Room configuration'!D111,Table1[TMS],0)),\"\")","v":""},{"$f":"IFERROR(INDEX(Table1[Bedding],MATCH('2) Room configuration'!D111,Table1[TMS],0)),\"\")","v":""},null,null,{"$f":"IFERROR(INDEX(Table1[Room description],MATCH('2) Room configuration'!I111,Table1[TMS],0)),\"\")","v":""},{"$f":"IFERROR(INDEX(Table1[Bedding],MATCH('2) Room configuration'!I111,Table1[TMS],0)),\"\")","v":""},{"$f":"IFERROR(INDEX(Table1[Normal occupancy],MATCH(Table2[[#This Row],[New Room Type \n(TMS)]],Table1[TMS],0)),\"\")","v":""},null,null,null,null,"",{"$f":"IF(Table2[[#This Row],['# extra beds that fit in the room2]]<>0,LEFT(Table2[[#This Row],[New Room Type \n(TMS)]],6),\"\")","v":""},null,{"$f":"IF(Table2[[#This Row],['# extra beds that fit in the room]]<>Table2[[#This Row],['# extra beds that fit in the room2]],\"yes\",\"No\")","v":"No"}]
[null,{"$f":"IF(LEN(C112)>0,'1) Hotel information'!$C$4,\"\")","v":""},null,null,null,{"$f":"IFERROR(INDEX(Table1[Room description],MATCH('2) Room configuration'!D112,Table1[TMS],0)),\"\")","v":""},{"$f":"IFERROR(INDEX(Table1[Bedding],MATCH('2) Room configuration'!D112,Table1[TMS],0)),\"\")","v":""},null,null,{"$f":"IFERROR(INDEX(Table1[Room description],MATCH('2) Room configuration'!I112,Table1[TMS],0)),\"\")","v":""},{"$f":"IFERROR(INDEX(Table1[Bedding],MATCH('2) Room configuration'!I112,Table1[TMS],0)),\"\")","v":""},{"$f":"IFERROR(INDEX(Table1[Normal occupancy],MATCH(Table2[[#This Row],[New Room Type \n(TMS)]],Table1[TMS],0)),\"\")","v":""},null,null,null,null,"",{"$f":"IF(Table2[[#This Row],['# extra beds that fit in the room2]]<>0,LEFT(Table2[[#This Row],[New Room Type \n(TMS)]],6),\"\")","v":""},null,{"$f":"IF(Table2[[#This Row],['# extra beds that fit in the room]]<>Table2[[#This Row],['# extra beds that fit in the room2]],\"yes\",\"No\")","v":"No"}]
[null,{"$f":"IF(LEN(C113)>0,'1) Hotel information'!$C$4,\"\")","v":""},null,null,null,{"$f":"IFERROR(INDEX(Table1[Room description],MATCH('2) Room configuration'!D113,Table1[TMS],0)),\"\")","v":""},{"$f":"IFERROR(INDEX(Table1[Bedding],MATCH('2) Room configuration'!D113,Table1[TMS],0)),\"\")","v":""},null,null,{"$f":"IFERROR(INDEX(Table1[Room description],MATCH('2) Room configuration'!I113,Table1[TMS],0)),\"\")","v":""},{"$f":"IFERROR(INDEX(Table1[Bedding],MATCH('2) Room configuration'!I113,Table1[TMS],0)),\"\")","v":""},{"$f":"IFERROR(INDEX(Table1[Normal occupancy],MATCH(Table2[[#This Row],[New Room Type \n(TMS)]],Table1[TMS],0)),\"\")","v":""},null,null,null,null,"",{"$f":"IF(Table2[[#This Row],['# extra beds that fit in the room2]]<>0,LEFT(Table2[[#This Row],[New Room Type \n(TMS)]],6),\"\")","v":""},null,{"$f":"IF(Table2[[#This Row],['# extra beds that fit in the room]]<>Table2[[#This Row],['# extra beds that fit in the room2]],\"yes\",\"No\")","v":"No"}]
[null,{"$f":"IF(LEN(C114)>0,'1) Hotel information'!$C$4,\"\")","v":""},null,null,null,{"$f":"IFERROR(INDEX(Table1[Room description],MATCH('2) Room configuration'!D114,Table1[TMS],0)),\"\")","v":""},{"$f":"IFERROR(INDEX(Table1[Bedding],MATCH('2) Room configuration'!D114,Table1[TMS],0)),\"\")","v":""},null,null,{"$f":"IFERROR(INDEX(Table1[Room description],MATCH('2) Room configuration'!I114,Table1[TMS],0)),\"\")","v":""},{"$f":"IFERROR(INDEX(Table1[Bedding],MATCH('2) Room configuration'!I114,Table1[TMS],0)),\"\")","v":""},{"$f":"IFERROR(INDEX(Table1[Normal occupancy],MATCH(Table2[[#This Row],[New Room Type \n(TMS)]],Table1[TMS],0)),\"\")","v":""},null,null,null,null,"",{"$f":"IF(Table2[[#This Row],['# extra beds that fit in the room2]]<>0,LEFT(Table2[[#This Row],[New Room Type \n(TMS)]],6),\"\")","v":""},null,{"$f":"IF(Table2[[#This Row],['# extra beds that fit in the room]]<>Table2[[#This Row],['# extra beds that fit in the room2]],\"yes\",\"No\")","v":"No"}]
[null,{"$f":"IF(LEN(C115)>0,'1) Hotel information'!$C$4,\"\")","v":""},null,null,null,{"$f":"IFERROR(INDEX(Table1[Room description],MATCH('2) Room configuration'!D115,Table1[TMS],0)),\"\")","v":""},{"$f":"IFERROR(INDEX(Table1[Bedding],MATCH('2) Room configuration'!D115,Table1[TMS],0)),\"\")","v":""},null,null,{"$f":"IFERROR(INDEX(Table1[Room description],MATCH('2) Room configuration'!I115,Table1[TMS],0)),\"\")","v":""},{"$f":"IFERROR(INDEX(Table1[Bedding],MATCH('2) Room configuration'!I115,Table1[TMS],0)),\"\")","v":""},{"$f":"IFERROR(INDEX(Table1[Normal occupancy],MATCH(Table2[[#This Row],[New Room Type \n(TMS)]],Table1[TMS],0)),\"\")","v":""},null,null,null,null,"",{"$f":"IF(Table2[[#This Row],['# extra beds that fit in the room2]]<>0,LEFT(Table2[[#This Row],[New Room Type \n(TMS)]],6),\"\")","v":""},null,{"$f":"IF(Table2[[#This Row],['# extra beds that fit in the room]]<>Table2[[#This Row],['# extra beds that fit in the room2]],\"yes\",\"No\")","v":"No"}]
[null,{"$f":"IF(LEN(C116)>0,'1) Hotel information'!$C$4,\"\")","v":""},null,null,null,{"$f":"IFERROR(INDEX(Table1[Room description],MATCH('2) Room configuration'!D116,Table1[TMS],0)),\"\")","v":""},{"$f":"IFERROR(INDEX(Table1[Bedding],MATCH('2) Room configuration'!D116,Table1[TMS],0)),\"\")","v":""},null,null,{"$f":"IFERROR(INDEX(Table1[Room description],MATCH('2) Room configuration'!I116,Table1[TMS],0)),\"\")","v":""},{"$f":"IFERROR(INDEX(Table1[Bedding],MATCH('2) Room configuration'!I116,Table1[TMS],0)),\"\")","v":""},{"$f":"IFERROR(INDEX(Table1[Normal occupancy],MATCH(Table2[[#This Row],[New Room Type \n(TMS)]],Table1[TMS],0)),\"\")","v":""},null,null,null,null,"",{"$f":"IF(Table2[[#This Row],['# extra beds that fit in the room2]]<>0,LEFT(Table2[[#This Row],[New Room Type \n(TMS)]],6),\"\")","v":""},null,{"$f":"IF(Table2[[#This Row],['# extra beds that fit in the room]]<>Table2[[#This Row],['# extra beds that fit in the room2]],\"yes\",\"No\")","v":"No"}]
[null,{"$f":"IF(LEN(C117)>0,'1) Hotel information'!$C$4,\"\")","v":""},null,null,null,{"$f":"IFERROR(INDEX(Table1[Room description],MATCH('2) Room configuration'!D117,Table1[TMS],0)),\"\")","v":""},{"$f":"IFERROR(INDEX(Table1[Bedding],MATCH('2) Room configuration'!D117,Table1[TMS],0)),\"\")","v":""},null,null,{"$f":"IFERROR(INDEX(Table1[Room description],MATCH('2) Room configuration'!I117,Table1[TMS],0)),\"\")","v":""},{"$f":"IFERROR(INDEX(Table1[Bedding],MATCH('2) Room configuration'!I117,Table1[TMS],0)),\"\")","v":""},{"$f":"IFERROR(INDEX(Table1[Normal occupancy],MATCH(Table2[[#This Row],[New Room Type \n(TMS)]],Table1[TMS],0)),\"\")","v":""},null,null,null,null,"",{"$f":"IF(Table2[[#This Row],['# extra beds that fit in the room2]]<>0,LEFT(Table2[[#This Row],[New Room Type \n(TMS)]],6),\"\")","v":""},null,{"$f":"IF(Table2[[#This Row],['# extra beds that fit in the room]]<>Table2[[#This Row],['# extra beds that fit in the room2]],\"yes\",\"No\")","v":"No"}]
[null,{"$f":"IF(LEN(C118)>0,'1) Hotel information'!$C$4,\"\")","v":""},null,null,null,{"$f":"IFERROR(INDEX(Table1[Room description],MATCH('2) Room configuration'!D118,Table1[TMS],0)),\"\")","v":""},{"$f":"IFERROR(INDEX(Table1[Bedding],MATCH('2) Room configuration'!D118,Table1[TMS],0)),\"\")","v":""},null,null,{"$f":"IFERROR(INDEX(Table1[Room description],MATCH('2) Room configuration'!I118,Table1[TMS],0)),\"\")","v":""},{"$f":"IFERROR(INDEX(Table1[Bedding],MATCH('2) Room configuration'!I118,Table1[TMS],0)),\"\")","v":""},{"$f":"IFERROR(INDEX(Table1[Normal occupancy],MATCH(Table2[[#This Row],[New Room Type \n(TMS)]],Table1[TMS],0)),\"\")","v":""},null,null,null,null,"",{"$f":"IF(Table2[[#This Row],['# extra beds that fit in the room2]]<>0,LEFT(Table2[[#This Row],[New Room Type \n(TMS)]],6),\"\")","v":""},null,{"$f":"IF(Table2[[#This Row],['# extra beds that fit in the room]]<>Table2[[#This Row],['# extra beds that fit in the room2]],\"yes\",\"No\")","v":"No"}]
[null,{"$f":"IF(LEN(C119)>0,'1) Hotel information'!$C$4,\"\")","v":""},null,null,null,{"$f":"IFERROR(INDEX(Table1[Room description],MATCH('2) Room configuration'!D119,Table1[TMS],0)),\"\")","v":""},{"$f":"IFERROR(INDEX(Table1[Bedding],MATCH('2) Room configuration'!D119,Table1[TMS],0)),\"\")","v":""},null,null,{"$f":"IFERROR(INDEX(Table1[Room description],MATCH('2) Room configuration'!I119,Table1[TMS],0)),\"\")","v":""},{"$f":"IFERROR(INDEX(Table1[Bedding],MATCH('2) Room configuration'!I119,Table1[TMS],0)),\"\")","v":""},{"$f":"IFERROR(INDEX(Table1[Normal occupancy],MATCH(Table2[[#This Row],[New Room Type \n(TMS)]],Table1[TMS],0)),\"\")","v":""},null,null,null,null,"",{"$f":"IF(Table2[[#This Row],['# extra beds that fit in the room2]]<>0,LEFT(Table2[[#This Row],[New Room Type \n(TMS)]],6),\"\")","v":""},null,{"$f":"IF(Table2[[#This Row],['# extra beds that fit in the room]]<>Table2[[#This Row],['# extra beds that fit in the room2]],\"yes\",\"No\")","v":"No"}]
[null,{"$f":"IF(LEN(C120)>0,'1) Hotel information'!$C$4,\"\")","v":""},null,null,null,{"$f":"IFERROR(INDEX(Table1[Room description],MATCH('2) Room configuration'!D120,Table1[TMS],0)),\"\")","v":""},{"$f":"IFERROR(INDEX(Table1[Bedding],MATCH('2) Room configuration'!D120,Table1[TMS],0)),\"\")","v":""},null,null,{"$f":"IFERROR(INDEX(Table1[Room description],MATCH('2) Room configuration'!I120,Table1[TMS],0)),\"\")","v":""},{"$f":"IFERROR(INDEX(Table1[Bedding],MATCH('2) Room configuration'!I120,Table1[TMS],0)),\"\")","v":""},{"$f":"IFERROR(INDEX(Table1[Normal occupancy],MATCH(Table2[[#This Row],[New Room Type \n(TMS)]],Table1[TMS],0)),\"\")","v":""},null,null,null,null,"",{"$f":"IF(Table2[[#This Row],['# extra beds that fit in the room2]]<>0,LEFT(Table2[[#This Row],[New Room Type \n(TMS)]],6),\"\")","v":""},null,{"$f":"IF(Table2[[#This Row],['# extra beds that fit in the room]]<>Table2[[#This Row],['# extra beds that fit in the room2]],\"yes\",\"No\")","v":"No"}]
[null,{"$f":"IF(LEN(C121)>0,'1) Hotel information'!$C$4,\"\")","v":""},null,null,null,{"$f":"IFERROR(INDEX(Table1[Room description],MATCH('2) Room configuration'!D121,Table1[TMS],0)),\"\")","v":""},{"$f":"IFERROR(INDEX(Table1[Bedding],MATCH('2) Room configuration'!D121,Table1[TMS],0)),\"\")","v":""},null,null,{"$f":"IFERROR(INDEX(Table1[Room description],MATCH('2) Room configuration'!I121,Table1[TMS],0)),\"\")","v":""},{"$f":"IFERROR(INDEX(Table1[Bedding],MATCH('2) Room configuration'!I121,Table1[TMS],0)),\"\")","v":""},{"$f":"IFERROR(INDEX(Table1[Normal occupancy],MATCH(Table2[[#This Row],[New Room Type \n(TMS)]],Table1[TMS],0)),\"\")","v":""},null,null,null,null,"",{"$f":"IF(Table2[[#This Row],['# extra beds that fit in the room2]]<>0,LEFT(Table2[[#This Row],[New Room Type \n(TMS)]],6),\"\")","v":""},null,{"$f":"IF(Table2[[#This Row],['# extra beds that fit in the room]]<>Table2[[#This Row],['# extra beds that fit in the room2]],\"yes\",\"No\")","v":"No"}]
[null,{"$f":"IF(LEN(C122)>0,'1) Hotel information'!$C$4,\"\")","v":""},null,null,null,{"$f":"IFERROR(INDEX(Table1[Room description],MATCH('2) Room configuration'!D122,Table1[TMS],0)),\"\")","v":""},{"$f":"IFERROR(INDEX(Table1[Bedding],MATCH('2) Room configuration'!D122,Table1[TMS],0)),\"\")","v":""},null,null,{"$f":"IFERROR(INDEX(Table1[Room description],MATCH('2) Room configuration'!I122,Table1[TMS],0)),\"\")","v":""},{"$f":"IFERROR(INDEX(Table1[Bedding],MATCH('2) Room configuration'!I122,Table1[TMS],0)),\"\")","v":""},{"$f":"IFERROR(INDEX(Table1[Normal occupancy],MATCH(Table2[[#This Row],[New Room Type \n(TMS)]],Table1[TMS],0)),\"\")","v":""},null,null,null,null,"",{"$f":"IF(Table2[[#This Row],['# extra beds that fit in the room2]]<>0,LEFT(Table2[[#This Row],[New Room Type \n(TMS)]],6),\"\")","v":""},null,{"$f":"IF(Table2[[#This Row],['# extra beds that fit in the room]]<>Table2[[#This Row],['# extra beds that fit in the room2]],\"yes\",\"No\")","v":"No"}]
[null,{"$f":"IF(LEN(C123)>0,'1) Hotel information'!$C$4,\"\")","v":""},null,null,null,{"$f":"IFERROR(INDEX(Table1[Room description],MATCH('2) Room configuration'!D123,Table1[TMS],0)),\"\")","v":""},{"$f":"IFERROR(INDEX(Table1[Bedding],MATCH('2) Room configuration'!D123,Table1[TMS],0)),\"\")","v":""},null,null,{"$f":"IFERROR(INDEX(Table1[Room description],MATCH('2) Room configuration'!I123,Table1[TMS],0)),\"\")","v":""},{"$f":"IFERROR(INDEX(Table1[Bedding],MATCH('2) Room configuration'!I123,Table1[TMS],0)),\"\")","v":""},{"$f":"IFERROR(INDEX(Table1[Normal occupancy],MATCH(Table2[[#This Row],[New Room Type \n(TMS)]],Table1[TMS],0)),\"\")","v":""},null,null,null,null,"",{"$f":"IF(Table2[[#This Row],['# extra beds that fit in the room2]]<>0,LEFT(Table2[[#This Row],[New Room Type \n(TMS)]],6),\"\")","v":""},null,{"$f":"IF(Table2[[#This Row],['# extra beds that fit in the room]]<>Table2[[#This Row],['# extra beds that fit in the room2]],\"yes\",\"No\")","v":"No"}]
[null,{"$f":"IF(LEN(C124)>0,'1) Hotel information'!$C$4,\"\")","v":""},null,null,null,{"$f":"IFERROR(INDEX(Table1[Room description],MATCH('2) Room configuration'!D124,Table1[TMS],0)),\"\")","v":""},{"$f":"IFERROR(INDEX(Table1[Bedding],MATCH('2) Room configuration'!D124,Table1[TMS],0)),\"\")","v":""},null,null,{"$f":"IFERROR(INDEX(Table1[Room description],MATCH('2) Room configuration'!I124,Table1[TMS],0)),\"\")","v":""},{"$f":"IFERROR(INDEX(Table1[Bedding],MATCH('2) Room configuration'!I124,Table1[TMS],0)),\"\")","v":""},{"$f":"IFERROR(INDEX(Table1[Normal occupancy],MATCH(Table2[[#This Row],[New Room Type \n(TMS)]],Table1[TMS],0)),\"\")","v":""},null,null,null,null,"",{"$f":"IF(Table2[[#This Row],['# extra beds that fit in the room2]]<>0,LEFT(Table2[[#This Row],[New Room Type \n(TMS)]],6),\"\")","v":""},null,{"$f":"IF(Table2[[#This Row],['# extra beds that fit in the room]]<>Table2[[#This Row],['# extra beds that fit in the room2]],\"yes\",\"No\")","v":"No"}]
[null,{"$f":"IF(LEN(C125)>0,'1) Hotel information'!$C$4,\"\")","v":""},null,null,null,{"$f":"IFERROR(INDEX(Table1[Room description],MATCH('2) Room configuration'!D125,Table1[TMS],0)),\"\")","v":""},{"$f":"IFERROR(INDEX(Table1[Bedding],MATCH('2) Room configuration'!D125,Table1[TMS],0)),\"\")","v":""},null,null,{"$f":"IFERROR(INDEX(Table1[Room description],MATCH('2) Room configuration'!I125,Table1[TMS],0)),\"\")","v":""},{"$f":"IFERROR(INDEX(Table1[Bedding],MATCH('2) Room configuration'!I125,Table1[TMS],0)),\"\")","v":""},{"$f":"IFERROR(INDEX(Table1[Normal occupancy],MATCH(Table2[[#This Row],[New Room Type \n(TMS)]],Table1[TMS],0)),\"\")","v":""},null,null,null,null,"",{"$f":"IF(Table2[[#This Row],['# extra beds that fit in the room2]]<>0,LEFT(Table2[[#This Row],[New Room Type \n(TMS)]],6),\"\")","v":""},null,{"$f":"IF(Table2[[#This Row],['# extra beds that fit in the room]]<>Table2[[#This Row],['# extra beds that fit in the room2]],\"yes\",\"No\")","v":"No"}]
[null,{"$f":"IF(LEN(C126)>0,'1) Hotel information'!$C$4,\"\")","v":""},null,null,null,{"$f":"IFERROR(INDEX(Table1[Room description],MATCH('2) Room configuration'!D126,Table1[TMS],0)),\"\")","v":""},{"$f":"IFERROR(INDEX(Table1[Bedding],MATCH('2) Room configuration'!D126,Table1[TMS],0)),\"\")","v":""},null,null,{"$f":"IFERROR(INDEX(Table1[Room description],MATCH('2) Room configuration'!I126,Table1[TMS],0)),\"\")","v":""},{"$f":"IFERROR(INDEX(Table1[Bedding],MATCH('2) Room configuration'!I126,Table1[TMS],0)),\"\")","v":""},{"$f":"IFERROR(INDEX(Table1[Normal occupancy],MATCH(Table2[[#This Row],[New Room Type \n(TMS)]],Table1[TMS],0)),\"\")","v":""},null,null,null,null,"",{"$f":"IF(Table2[[#This Row],['# extra beds that fit in the room2]]<>0,LEFT(Table2[[#This Row],[New Room Type \n(TMS)]],6),\"\")","v":""},null,{"$f":"IF(Table2[[#This Row],['# extra beds that fit in the room]]<>Table2[[#This Row],['# extra beds that fit in the room2]],\"yes\",\"No\")","v":"No"}]
[null,{"$f":"IF(LEN(C127)>0,'1) Hotel information'!$C$4,\"\")","v":""},null,null,null,{"$f":"IFERROR(INDEX(Table1[Room description],MATCH('2) Room configuration'!D127,Table1[TMS],0)),\"\")","v":""},{"$f":"IFERROR(INDEX(Table1[Bedding],MATCH('2) Room configuration'!D127,Table1[TMS],0)),\"\")","v":""},null,null,{"$f":"IFERROR(INDEX(Table1[Room description],MATCH('2) Room configuration'!I127,Table1[TMS],0)),\"\")","v":""},{"$f":"IFERROR(INDEX(Table1[Bedding],MATCH('2) Room configuration'!I127,Table1[TMS],0)),\"\")","v":""},{"$f":"IFERROR(INDEX(Table1[Normal occupancy],MATCH(Table2[[#This Row],[New Room Type \n(TMS)]],Table1[TMS],0)),\"\")","v":""},null,null,null,null,"",{"$f":"IF(Table2[[#This Row],['# extra beds that fit in the room2]]<>0,LEFT(Table2[[#This Row],[New Room Type \n(TMS)]],6),\"\")","v":""},null,{"$f":"IF(Table2[[#This Row],['# extra beds that fit in the room]]<>Table2[[#This Row],['# extra beds that fit in the room2]],\"yes\",\"No\")","v":"No"}]
[null,{"$f":"IF(LEN(C128)>0,'1) Hotel information'!$C$4,\"\")","v":""},null,null,null,{"$f":"IFERROR(INDEX(Table1[Room description],MATCH('2) Room configuration'!D128,Table1[TMS],0)),\"\")","v":""},{"$f":"IFERROR(INDEX(Table1[Bedding],MATCH('2) Room configuration'!D128,Table1[TMS],0)),\"\")","v":""},null,null,{"$f":"IFERROR(INDEX(Table1[Room description],MATCH('2) Room configuration'!I128,Table1[TMS],0)),\"\")","v":""},{"$f":"IFERROR(INDEX(Table1[Bedding],MATCH('2) Room configuration'!I128,Table1[TMS],0)),\"\")","v":""},{"$f":"IFERROR(INDEX(Table1[Normal occupancy],MATCH(Table2[[#This Row],[New Room Type \n(TMS)]],Table1[TMS],0)),\"\")","v":""},null,null,null,null,"",{"$f":"IF(Table2[[#This Row],['# extra beds that fit in the room2]]<>0,LEFT(Table2[[#This Row],[New Room Type \n(TMS)]],6),\"\")","v":""},null,{"$f":"IF(Table2[[#This Row],['# extra beds that fit in the room]]<>Table2[[#This Row],['# extra beds that fit in the room2]],\"yes\",\"No\")","v":"No"}]
[null,{"$f":"IF(LEN(C129)>0,'1) Hotel information'!$C$4,\"\")","v":""},null,null,null,{"$f":"IFERROR(INDEX(Table1[Room description],MATCH('2) Room configuration'!D129,Table1[TMS],0)),\"\")","v":""},{"$f":"IFERROR(INDEX(Table1[Bedding],MATCH('2) Room configuration'!D129,Table1[TMS],0)),\"\")","v":""},null,null,{"$f":"IFERROR(INDEX(Table1[Room description],MATCH('2) Room configuration'!I129,Table1[TMS],0)),\"\")","v":""},{"$f":"IFERROR(INDEX(Table1[Bedding],MATCH('2) Room configuration'!I129,Table1[TMS],0)),\"\")","v":""},{"$f":"IFERROR(INDEX(Table1[Normal occupancy],MATCH(Table2[[#This Row],[New Room Type \n(TMS)]],Table1[TMS],0)),\"\")","v":""},null,null,null,null,"",{"$f":"IF(Table2[[#This Row],['# extra beds that fit in the room2]]<>0,LEFT(Table2[[#This Row],[New Room Type \n(TMS)]],6),\"\")","v":""},null,{"$f":"IF(Table2[[#This Row],['# extra beds that fit in the room]]<>Table2[[#This Row],['# extra beds that fit in the room2]],\"yes\",\"No\")","v":"No"}]
[null,{"$f":"IF(LEN(C130)>0,'1) Hotel information'!$C$4,\"\")","v":""},null,null,null,{"$f":"IFERROR(INDEX(Table1[Room description],MATCH('2) Room configuration'!D130,Table1[TMS],0)),\"\")","v":""},{"$f":"IFERROR(INDEX(Table1[Bedding],MATCH('2) Room configuration'!D130,Table1[TMS],0)),\"\")","v":""},null,null,{"$f":"IFERROR(INDEX(Table1[Room description],MATCH('2) Room configuration'!I130,Table1[TMS],0)),\"\")","v":""},{"$f":"IFERROR(INDEX(Table1[Bedding],MATCH('2) Room configuration'!I130,Table1[TMS],0)),\"\")","v":""},{"$f":"IFERROR(INDEX(Table1[Normal occupancy],MATCH(Table2[[#This Row],[New Room Type \n(TMS)]],Table1[TMS],0)),\"\")","v":""},null,null,null,null,"",{"$f":"IF(Table2[[#This Row],['# extra beds that fit in the room2]]<>0,LEFT(Table2[[#This Row],[New Room Type \n(TMS)]],6),\"\")","v":""},null,{"$f":"IF(Table2[[#This Row],['# extra beds that fit in the room]]<>Table2[[#This Row],['# extra beds that fit in the room2]],\"yes\",\"No\")","v":"No"}]
[null,{"$f":"IF(LEN(C131)>0,'1) Hotel information'!$C$4,\"\")","v":""},null,null,null,{"$f":"IFERROR(INDEX(Table1[Room description],MATCH('2) Room configuration'!D131,Table1[TMS],0)),\"\")","v":""},{"$f":"IFERROR(INDEX(Table1[Bedding],MATCH('2) Room configuration'!D131,Table1[TMS],0)),\"\")","v":""},null,null,{"$f":"IFERROR(INDEX(Table1[Room description],MATCH('2) Room configuration'!I131,Table1[TMS],0)),\"\")","v":""},{"$f":"IFERROR(INDEX(Table1[Bedding],MATCH('2) Room configuration'!I131,Table1[TMS],0)),\"\")","v":""},{"$f":"IFERROR(INDEX(Table1[Normal occupancy],MATCH(Table2[[#This Row],[New Room Type \n(TMS)]],Table1[TMS],0)),\"\")","v":""},null,null,null,null,"",{"$f":"IF(Table2[[#This Row],['# extra beds that fit in the room2]]<>0,LEFT(Table2[[#This Row],[New Room Type \n(TMS)]],6),\"\")","v":""},null,{"$f":"IF(Table2[[#This Row],['# extra beds that fit in the room]]<>Table2[[#This Row],['# extra beds that fit in the room2]],\"yes\",\"No\")","v":"No"}]
[null,{"$f":"IF(LEN(C132)>0,'1) Hotel information'!$C$4,\"\")","v":""},null,null,null,{"$f":"IFERROR(INDEX(Table1[Room description],MATCH('2) Room configuration'!D132,Table1[TMS],0)),\"\")","v":""},{"$f":"IFERROR(INDEX(Table1[Bedding],MATCH('2) Room configuration'!D132,Table1[TMS],0)),\"\")","v":""},null,null,{"$f":"IFERROR(INDEX(Table1[Room description],MATCH('2) Room configuration'!I132,Table1[TMS],0)),\"\")","v":""},{"$f":"IFERROR(INDEX(Table1[Bedding],MATCH('2) Room configuration'!I132,Table1[TMS],0)),\"\")","v":""},{"$f":"IFERROR(INDEX(Table1[Normal occupancy],MATCH(Table2[[#This Row],[New Room Type \n(TMS)]],Table1[TMS],0)),\"\")","v":""},null,null,null,null,"",{"$f":"IF(Table2[[#This Row],['# extra beds that fit in the room2]]<>0,LEFT(Table2[[#This Row],[New Room Type \n(TMS)]],6),\"\")","v":""},null,{"$f":"IF(Table2[[#This Row],['# extra beds that fit in the room]]<>Table2[[#This Row],['# extra beds that fit in the room2]],\"yes\",\"No\")","v":"No"}]
[null,{"$f":"IF(LEN(C133)>0,'1) Hotel information'!$C$4,\"\")","v":""},null,null,null,{"$f":"IFERROR(INDEX(Table1[Room description],MATCH('2) Room configuration'!D133,Table1[TMS],0)),\"\")","v":""},{"$f":"IFERROR(INDEX(Table1[Bedding],MATCH('2) Room configuration'!D133,Table1[TMS],0)),\"\")","v":""},null,null,{"$f":"IFERROR(INDEX(Table1[Room description],MATCH('2) Room configuration'!I133,Table1[TMS],0)),\"\")","v":""},{"$f":"IFERROR(INDEX(Table1[Bedding],MATCH('2) Room configuration'!I133,Table1[TMS],0)),\"\")","v":""},{"$f":"IFERROR(INDEX(Table1[Normal occupancy],MATCH(Table2[[#This Row],[New Room Type \n(TMS)]],Table1[TMS],0)),\"\")","v":""},null,null,null,null,"",{"$f":"IF(Table2[[#This Row],['# extra beds that fit in the room2]]<>0,LEFT(Table2[[#This Row],[New Room Type \n(TMS)]],6),\"\")","v":""},null,{"$f":"IF(Table2[[#This Row],['# extra beds that fit in the room]]<>Table2[[#This Row],['# extra beds that fit in the room2]],\"yes\",\"No\")","v":"No"}]
[null,{"$f":"IF(LEN(C134)>0,'1) Hotel information'!$C$4,\"\")","v":""},null,null,null,{"$f":"IFERROR(INDEX(Table1[Room description],MATCH('2) Room configuration'!D134,Table1[TMS],0)),\"\")","v":""},{"$f":"IFERROR(INDEX(Table1[Bedding],MATCH('2) Room configuration'!D134,Table1[TMS],0)),\"\")","v":""},null,null,{"$f":"IFERROR(INDEX(Table1[Room description],MATCH('2) Room configuration'!I134,Table1[TMS],0)),\"\")","v":""},{"$f":"IFERROR(INDEX(Table1[Bedding],MATCH('2) Room configuration'!I134,Table1[TMS],0)),\"\")","v":""},{"$f":"IFERROR(INDEX(Table1[Normal occupancy],MATCH(Table2[[#This Row],[New Room Type \n(TMS)]],Table1[TMS],0)),\"\")","v":""},null,null,null,null,"",{"$f":"IF(Table2[[#This Row],['# extra beds that fit in the room2]]<>0,LEFT(Table2[[#This Row],[New Room Type \n(TMS)]],6),\"\")","v":""},null,{"$f":"IF(Table2[[#This Row],['# extra beds that fit in the room]]<>Table2[[#This Row],['# extra beds that fit in the room2]],\"yes\",\"No\")","v":"No"}]
[null,{"$f":"IF(LEN(C135)>0,'1) Hotel information'!$C$4,\"\")","v":""},null,null,null,{"$f":"IFERROR(INDEX(Table1[Room description],MATCH('2) Room configuration'!D135,Table1[TMS],0)),\"\")","v":""},{"$f":"IFERROR(INDEX(Table1[Bedding],MATCH('2) Room configuration'!D135,Table1[TMS],0)),\"\")","v":""},null,null,{"$f":"IFERROR(INDEX(Table1[Room description],MATCH('2) Room configuration'!I135,Table1[TMS],0)),\"\")","v":""},{"$f":"IFERROR(INDEX(Table1[Bedding],MATCH('2) Room configuration'!I135,Table1[TMS],0)),\"\")","v":""},{"$f":"IFERROR(INDEX(Table1[Normal occupancy],MATCH(Table2[[#This Row],[New Room Type \n(TMS)]],Table1[TMS],0)),\"\")","v":""},null,null,null,null,"",{"$f":"IF(Table2[[#This Row],['# extra beds that fit in the room2]]<>0,LEFT(Table2[[#This Row],[New Room Type \n(TMS)]],6),\"\")","v":""},null,{"$f":"IF(Table2[[#This Row],['# extra beds that fit in the room]]<>Table2[[#This Row],['# extra beds that fit in the room2]],\"yes\",\"No\")","v":"No"}]
[null,{"$f":"IF(LEN(C136)>0,'1) Hotel information'!$C$4,\"\")","v":""},null,null,null,{"$f":"IFERROR(INDEX(Table1[Room description],MATCH('2) Room configuration'!D136,Table1[TMS],0)),\"\")","v":""},{"$f":"IFERROR(INDEX(Table1[Bedding],MATCH('2) Room configuration'!D136,Table1[TMS],0)),\"\")","v":""},null,null,{"$f":"IFERROR(INDEX(Table1[Room description],MATCH('2) Room configuration'!I136,Table1[TMS],0)),\"\")","v":""},{"$f":"IFERROR(INDEX(Table1[Bedding],MATCH('2) Room configuration'!I136,Table1[TMS],0)),\"\")","v":""},{"$f":"IFERROR(INDEX(Table1[Normal occupancy],MATCH(Table2[[#This Row],[New Room Type \n(TMS)]],Table1[TMS],0)),\"\")","v":""},null,null,null,null,"",{"$f":"IF(Table2[[#This Row],['# extra beds that fit in the room2]]<>0,LEFT(Table2[[#This Row],[New Room Type \n(TMS)]],6),\"\")","v":""},null,{"$f":"IF(Table2[[#This Row],['# extra beds that fit in the room]]<>Table2[[#This Row],['# extra beds that fit in the room2]],\"yes\",\"No\")","v":"No"}]
[null,{"$f":"IF(LEN(C137)>0,'1) Hotel information'!$C$4,\"\")","v":""},null,null,null,{"$f":"IFERROR(INDEX(Table1[Room description],MATCH('2) Room configuration'!D137,Table1[TMS],0)),\"\")","v":""},{"$f":"IFERROR(INDEX(Table1[Bedding],MATCH('2) Room configuration'!D137,Table1[TMS],0)),\"\")","v":""},null,null,{"$f":"IFERROR(INDEX(Table1[Room description],MATCH('2) Room configuration'!I137,Table1[TMS],0)),\"\")","v":""},{"$f":"IFERROR(INDEX(Table1[Bedding],MATCH('2) Room configuration'!I137,Table1[TMS],0)),\"\")","v":""},{"$f":"IFERROR(INDEX(Table1[Normal occupancy],MATCH(Table2[[#This Row],[New Room Type \n(TMS)]],Table1[TMS],0)),\"\")","v":""},null,null,null,null,"",{"$f":"IF(Table2[[#This Row],['# extra beds that fit in the room2]]<>0,LEFT(Table2[[#This Row],[New Room Type \n(TMS)]],6),\"\")","v":""},null,{"$f":"IF(Table2[[#This Row],['# extra beds that fit in the room]]<>Table2[[#This Row],['# extra beds that fit in the room2]],\"yes\",\"No\")","v":"No"}]
[null,{"$f":"IF(LEN(C138)>0,'1) Hotel information'!$C$4,\"\")","v":""},null,null,null,{"$f":"IFERROR(INDEX(Table1[Room description],MATCH('2) Room configuration'!D138,Table1[TMS],0)),\"\")","v":""},{"$f":"IFERROR(INDEX(Table1[Bedding],MATCH('2) Room configuration'!D138,Table1[TMS],0)),\"\")","v":""},null,null,{"$f":"IFERROR(INDEX(Table1[Room description],MATCH('2) Room configuration'!I138,Table1[TMS],0)),\"\")","v":""},{"$f":"IFERROR(INDEX(Table1[Bedding],MATCH('2) Room configuration'!I138,Table1[TMS],0)),\"\")","v":""},{"$f":"IFERROR(INDEX(Table1[Normal occupancy],MATCH(Table2[[#This Row],[New Room Type \n(TMS)]],Table1[TMS],0)),\"\")","v":""},null,null,null,null,"",{"$f":"IF(Table2[[#This Row],['# extra beds that fit in the room2]]<>0,LEFT(Table2[[#This Row],[New Room Type \n(TMS)]],6),\"\")","v":""},null,{"$f":"IF(Table2[[#This Row],['# extra beds that fit in the room]]<>Table2[[#This Row],['# extra beds that fit in the room2]],\"yes\",\"No\")","v":"No"}]
[null,{"$f":"IF(LEN(C139)>0,'1) Hotel information'!$C$4,\"\")","v":""},null,null,null,{"$f":"IFERROR(INDEX(Table1[Room description],MATCH('2) Room configuration'!D139,Table1[TMS],0)),\"\")","v":""},{"$f":"IFERROR(INDEX(Table1[Bedding],MATCH('2) Room configuration'!D139,Table1[TMS],0)),\"\")","v":""},null,null,{"$f":"IFERROR(INDEX(Table1[Room description],MATCH('2) Room configuration'!I139,Table1[TMS],0)),\"\")","v":""},{"$f":"IFERROR(INDEX(Table1[Bedding],MATCH('2) Room configuration'!I139,Table1[TMS],0)),\"\")","v":""},{"$f":"IFERROR(INDEX(Table1[Normal occupancy],MATCH(Table2[[#This Row],[New Room Type \n(TMS)]],Table1[TMS],0)),\"\")","v":""},null,null,null,null,"",{"$f":"IF(Table2[[#This Row],['# extra beds that fit in the room2]]<>0,LEFT(Table2[[#This Row],[New Room Type \n(TMS)]],6),\"\")","v":""},null,{"$f":"IF(Table2[[#This Row],['# extra beds that fit in the room]]<>Table2[[#This Row],['# extra beds that fit in the room2]],\"yes\",\"No\")","v":"No"}]
[null,{"$f":"IF(LEN(C140)>0,'1) Hotel information'!$C$4,\"\")","v":""},null,null,null,{"$f":"IFERROR(INDEX(Table1[Room description],MATCH('2) Room configuration'!D140,Table1[TMS],0)),\"\")","v":""},{"$f":"IFERROR(INDEX(Table1[Bedding],MATCH('2) Room configuration'!D140,Table1[TMS],0)),\"\")","v":""},null,null,{"$f":"IFERROR(INDEX(Table1[Room description],MATCH('2) Room configuration'!I140,Table1[TMS],0)),\"\")","v":""},{"$f":"IFERROR(INDEX(Table1[Bedding],MATCH('2) Room configuration'!I140,Table1[TMS],0)),\"\")","v":""},{"$f":"IFERROR(INDEX(Table1[Normal occupancy],MATCH(Table2[[#This Row],[New Room Type \n(TMS)]],Table1[TMS],0)),\"\")","v":""},null,null,null,null,{"$f":"IF(LEN(C140)>0,IF(D140=I140,\"No\",\"Yes\"),\"\")","v":""},{"$f":"IF(Table2[[#This Row],['# extra beds that fit in the room2]]<>0,LEFT(Table2[[#This Row],[New Room Type \n(TMS)]],6),\"\")","v":""},null,{"$f":"IF(Table2[[#This Row],['# extra beds that fit in the room]]<>Table2[[#This Row],['# extra beds that fit in the room2]],\"yes\",\"No\")","v":"No"}]
[null,{"$f":"IF(LEN(C141)>0,'1) Hotel information'!$C$4,\"\")","v":""},null,null,null,{"$f":"IFERROR(INDEX(Table1[Room description],MATCH('2) Room configuration'!D141,Table1[TMS],0)),\"\")","v":""},{"$f":"IFERROR(INDEX(Table1[Bedding],MATCH('2) Room configuration'!D141,Table1[TMS],0)),\"\")","v":""},null,null,{"$f":"IFERROR(INDEX(Table1[Room description],MATCH('2) Room configuration'!I141,Table1[TMS],0)),\"\")","v":""},{"$f":"IFERROR(INDEX(Table1[Bedding],MATCH('2) Room configuration'!I141,Table1[TMS],0)),\"\")","v":""},{"$f":"IFERROR(INDEX(Table1[Normal occupancy],MATCH(Table2[[#This Row],[New Room Type \n(TMS)]],Table1[TMS],0)),\"\")","v":""},null,null,null,null,"",{"$f":"IF(Table2[[#This Row],['# extra beds that fit in the room2]]<>0,LEFT(Table2[[#This Row],[New Room Type \n(TMS)]],6),\"\")","v":""},null,{"$f":"IF(Table2[[#This Row],['# extra beds that fit in the room]]<>Table2[[#This Row],['# extra beds that fit in the room2]],\"yes\",\"No\")","v":"No"}]
[null,{"$f":"IF(LEN(C142)>0,'1) Hotel information'!$C$4,\"\")","v":""},null,null,null,{"$f":"IFERROR(INDEX(Table1[Room description],MATCH('2) Room configuration'!D142,Table1[TMS],0)),\"\")","v":""},{"$f":"IFERROR(INDEX(Table1[Bedding],MATCH('2) Room configuration'!D142,Table1[TMS],0)),\"\")","v":""},null,null,{"$f":"IFERROR(INDEX(Table1[Room description],MATCH('2) Room configuration'!I142,Table1[TMS],0)),\"\")","v":""},{"$f":"IFERROR(INDEX(Table1[Bedding],MATCH('2) Room configuration'!I142,Table1[TMS],0)),\"\")","v":""},{"$f":"IFERROR(INDEX(Table1[Normal occupancy],MATCH(Table2[[#This Row],[New Room Type \n(TMS)]],Table1[TMS],0)),\"\")","v":""},null,null,null,null,"",{"$f":"IF(Table2[[#This Row],['# extra beds that fit in the room2]]<>0,LEFT(Table2[[#This Row],[New Room Type \n(TMS)]],6),\"\")","v":""},null,{"$f":"IF(Table2[[#This Row],['# extra beds that fit in the room]]<>Table2[[#This Row],['# extra beds that fit in the room2]],\"yes\",\"No\")","v":"No"}]
[null,{"$f":"IF(LEN(C143)>0,'1) Hotel information'!$C$4,\"\")","v":""},null,null,null,{"$f":"IFERROR(INDEX(Table1[Room description],MATCH('2) Room configuration'!D143,Table1[TMS],0)),\"\")","v":""},{"$f":"IFERROR(INDEX(Table1[Bedding],MATCH('2) Room configuration'!D143,Table1[TMS],0)),\"\")","v":""},null,null,{"$f":"IFERROR(INDEX(Table1[Room description],MATCH('2) Room configuration'!I143,Table1[TMS],0)),\"\")","v":""},{"$f":"IFERROR(INDEX(Table1[Bedding],MATCH('2) Room configuration'!I143,Table1[TMS],0)),\"\")","v":""},{"$f":"IFERROR(INDEX(Table1[Normal occupancy],MATCH(Table2[[#This Row],[New Room Type \n(TMS)]],Table1[TMS],0)),\"\")","v":""},null,null,null,null,"",{"$f":"IF(Table2[[#This Row],['# extra beds that fit in the room2]]<>0,LEFT(Table2[[#This Row],[New Room Type \n(TMS)]],6),\"\")","v":""},null,{"$f":"IF(Table2[[#This Row],['# extra beds that fit in the room]]<>Table2[[#This Row],['# extra beds that fit in the room2]],\"yes\",\"No\")","v":"No"}]
[null,{"$f":"IF(LEN(C144)>0,'1) Hotel information'!$C$4,\"\")","v":""},null,null,null,{"$f":"IFERROR(INDEX(Table1[Room description],MATCH('2) Room configuration'!D144,Table1[TMS],0)),\"\")","v":""},{"$f":"IFERROR(INDEX(Table1[Bedding],MATCH('2) Room configuration'!D144,Table1[TMS],0)),\"\")","v":""},null,null,{"$f":"IFERROR(INDEX(Table1[Room description],MATCH('2) Room configuration'!I144,Table1[TMS],0)),\"\")","v":""},{"$f":"IFERROR(INDEX(Table1[Bedding],MATCH('2) Room configuration'!I144,Table1[TMS],0)),\"\")","v":""},{"$f":"IFERROR(INDEX(Table1[Normal occupancy],MATCH(Table2[[#This Row],[New Room Type \n(TMS)]],Table1[TMS],0)),\"\")","v":""},null,null,null,null,"",{"$f":"IF(Table2[[#This Row],['# extra beds that fit in the room2]]<>0,LEFT(Table2[[#This Row],[New Room Type \n(TMS)]],6),\"\")","v":""},null,{"$f":"IF(Table2[[#This Row],['# extra beds that fit in the room]]<>Table2[[#This Row],['# extra beds that fit in the room2]],\"yes\",\"No\")","v":"No"}]
[null,{"$f":"IF(LEN(C145)>0,'1) Hotel information'!$C$4,\"\")","v":""},null,null,null,{"$f":"IFERROR(INDEX(Table1[Room description],MATCH('2) Room configuration'!D145,Table1[TMS],0)),\"\")","v":""},{"$f":"IFERROR(INDEX(Table1[Bedding],MATCH('2) Room configuration'!D145,Table1[TMS],0)),\"\")","v":""},null,null,{"$f":"IFERROR(INDEX(Table1[Room description],MATCH('2) Room configuration'!I145,Table1[TMS],0)),\"\")","v":""},{"$f":"IFERROR(INDEX(Table1[Bedding],MATCH('2) Room configuration'!I145,Table1[TMS],0)),\"\")","v":""},{"$f":"IFERROR(INDEX(Table1[Normal occupancy],MATCH(Table2[[#This Row],[New Room Type \n(TMS)]],Table1[TMS],0)),\"\")","v":""},null,null,null,null,"",{"$f":"IF(Table2[[#This Row],['# extra beds that fit in the room2]]<>0,LEFT(Table2[[#This Row],[New Room Type \n(TMS)]],6),\"\")","v":""},null,{"$f":"IF(Table2[[#This Row],['# extra beds that fit in the room]]<>Table2[[#This Row],['# extra beds that fit in the room2]],\"yes\",\"No\")","v":"No"}]
[null,{"$f":"IF(LEN(C146)>0,'1) Hotel information'!$C$4,\"\")","v":""},null,null,null,{"$f":"IFERROR(INDEX(Table1[Room description],MATCH('2) Room configuration'!D146,Table1[TMS],0)),\"\")","v":""},{"$f":"IFERROR(INDEX(Table1[Bedding],MATCH('2) Room configuration'!D146,Table1[TMS],0)),\"\")","v":""},null,null,{"$f":"IFERROR(INDEX(Table1[Room description],MATCH('2) Room configuration'!I146,Table1[TMS],0)),\"\")","v":""},{"$f":"IFERROR(INDEX(Table1[Bedding],MATCH('2) Room configuration'!I146,Table1[TMS],0)),\"\")","v":""},{"$f":"IFERROR(INDEX(Table1[Normal occupancy],MATCH(Table2[[#This Row],[New Room Type \n(TMS)]],Table1[TMS],0)),\"\")","v":""},null,null,null,null,"",{"$f":"IF(Table2[[#This Row],['# extra beds that fit in the room2]]<>0,LEFT(Table2[[#This Row],[New Room Type \n(TMS)]],6),\"\")","v":""},null,{"$f":"IF(Table2[[#This Row],['# extra beds that fit in the room]]<>Table2[[#This Row],['# extra beds that fit in the room2]],\"yes\",\"No\")","v":"No"}]
[null,{"$f":"IF(LEN(C147)>0,'1) Hotel information'!$C$4,\"\")","v":""},null,null,null,{"$f":"IFERROR(INDEX(Table1[Room description],MATCH('2) Room configuration'!D147,Table1[TMS],0)),\"\")","v":""},{"$f":"IFERROR(INDEX(Table1[Bedding],MATCH('2) Room configuration'!D147,Table1[TMS],0)),\"\")","v":""},null,null,{"$f":"IFERROR(INDEX(Table1[Room description],MATCH('2) Room configuration'!I147,Table1[TMS],0)),\"\")","v":""},{"$f":"IFERROR(INDEX(Table1[Bedding],MATCH('2) Room configuration'!I147,Table1[TMS],0)),\"\")","v":""},{"$f":"IFERROR(INDEX(Table1[Normal occupancy],MATCH(Table2[[#This Row],[New Room Type \n(TMS)]],Table1[TMS],0)),\"\")","v":""},null,null,null,null,"",{"$f":"IF(Table2[[#This Row],['# extra beds that fit in the room2]]<>0,LEFT(Table2[[#This Row],[New Room Type \n(TMS)]],6),\"\")","v":""},null,{"$f":"IF(Table2[[#This Row],['# extra beds that fit in the room]]<>Table2[[#This Row],['# extra beds that fit in the room2]],\"yes\",\"No\")","v":"No"}]
[null,{"$f":"IF(LEN(C148)>0,'1) Hotel information'!$C$4,\"\")","v":""},null,null,null,{"$f":"IFERROR(INDEX(Table1[Room description],MATCH('2) Room configuration'!D148,Table1[TMS],0)),\"\")","v":""},{"$f":"IFERROR(INDEX(Table1[Bedding],MATCH('2) Room configuration'!D148,Table1[TMS],0)),\"\")","v":""},null,null,{"$f":"IFERROR(INDEX(Table1[Room description],MATCH('2) Room configuration'!I148,Table1[TMS],0)),\"\")","v":""},{"$f":"IFERROR(INDEX(Table1[Bedding],MATCH('2) Room configuration'!I148,Table1[TMS],0)),\"\")","v":""},{"$f":"IFERROR(INDEX(Table1[Normal occupancy],MATCH(Table2[[#This Row],[New Room Type \n(TMS)]],Table1[TMS],0)),\"\")","v":""},null,null,null,null,"",{"$f":"IF(Table2[[#This Row],['# extra beds that fit in the room2]]<>0,LEFT(Table2[[#This Row],[New Room Type \n(TMS)]],6),\"\")","v":""},null,{"$f":"IF(Table2[[#This Row],['# extra beds that fit in the room]]<>Table2[[#This Row],['# extra beds that fit in the room2]],\"yes\",\"No\")","v":"No"}]
[null,{"$f":"IF(LEN(C149)>0,'1) Hotel information'!$C$4,\"\")","v":""},null,null,null,{"$f":"IFERROR(INDEX(Table1[Room description],MATCH('2) Room configuration'!D149,Table1[TMS],0)),\"\")","v":""},{"$f":"IFERROR(INDEX(Table1[Bedding],MATCH('2) Room configuration'!D149,Table1[TMS],0)),\"\")","v":""},null,null,{"$f":"IFERROR(INDEX(Table1[Room description],MATCH('2) Room configuration'!I149,Table1[TMS],0)),\"\")","v":""},{"$f":"IFERROR(INDEX(Table1[Bedding],MATCH('2) Room configuration'!I149,Table1[TMS],0)),\"\")","v":""},{"$f":"IFERROR(INDEX(Table1[Normal occupancy],MATCH(Table2[[#This Row],[New Room Type \n(TMS)]],Table1[TMS],0)),\"\")","v":""},null,null,null,null,"",{"$f":"IF(Table2[[#This Row],['# extra beds that fit in the room2]]<>0,LEFT(Table2[[#This Row],[New Room Type \n(TMS)]],6),\"\")","v":""},null,{"$f":"IF(Table2[[#This Row],['# extra beds that fit in the room]]<>Table2[[#This Row],['# extra beds that fit in the room2]],\"yes\",\"No\")","v":"No"}]
[null,{"$f":"IF(LEN(C150)>0,'1) Hotel information'!$C$4,\"\")","v":""},null,null,null,{"$f":"IFERROR(INDEX(Table1[Room description],MATCH('2) Room configuration'!D150,Table1[TMS],0)),\"\")","v":""},{"$f":"IFERROR(INDEX(Table1[Bedding],MATCH('2) Room configuration'!D150,Table1[TMS],0)),\"\")","v":""},null,null,{"$f":"IFERROR(INDEX(Table1[Room description],MATCH('2) Room configuration'!I150,Table1[TMS],0)),\"\")","v":""},{"$f":"IFERROR(INDEX(Table1[Bedding],MATCH('2) Room configuration'!I150,Table1[TMS],0)),\"\")","v":""},{"$f":"IFERROR(INDEX(Table1[Normal occupancy],MATCH(Table2[[#This Row],[New Room Type \n(TMS)]],Table1[TMS],0)),\"\")","v":""},null,null,null,null,"",{"$f":"IF(Table2[[#This Row],['# extra beds that fit in the room2]]<>0,LEFT(Table2[[#This Row],[New Room Type \n(TMS)]],6),\"\")","v":""},null,{"$f":"IF(Table2[[#This Row],['# extra beds that fit in the room]]<>Table2[[#This Row],['# extra beds that fit in the room2]],\"yes\",\"No\")","v":"No"}]
[null,{"$f":"IF(LEN(C151)>0,'1) Hotel information'!$C$4,\"\")","v":""},null,null,null,{"$f":"IFERROR(INDEX(Table1[Room description],MATCH('2) Room configuration'!D151,Table1[TMS],0)),\"\")","v":""},{"$f":"IFERROR(INDEX(Table1[Bedding],MATCH('2) Room configuration'!D151,Table1[TMS],0)),\"\")","v":""},null,null,{"$f":"IFERROR(INDEX(Table1[Room description],MATCH('2) Room configuration'!I151,Table1[TMS],0)),\"\")","v":""},{"$f":"IFERROR(INDEX(Table1[Bedding],MATCH('2) Room configuration'!I151,Table1[TMS],0)),\"\")","v":""},{"$f":"IFERROR(INDEX(Table1[Normal occupancy],MATCH(Table2[[#This Row],[New Room Type \n(TMS)]],Table1[TMS],0)),\"\")","v":""},null,null,null,null,"",{"$f":"IF(Table2[[#This Row],['# extra beds that fit in the room2]]<>0,LEFT(Table2[[#This Row],[New Room Type \n(TMS)]],6),\"\")","v":""},null,{"$f":"IF(Table2[[#This Row],['# extra beds that fit in the room]]<>Table2[[#This Row],['# extra beds that fit in the room2]],\"yes\",\"No\")","v":"No"}]
[null,{"$f":"IF(LEN(C152)>0,'1) Hotel information'!$C$4,\"\")","v":""},null,null,null,{"$f":"IFERROR(INDEX(Table1[Room description],MATCH('2) Room configuration'!D152,Table1[TMS],0)),\"\")","v":""},{"$f":"IFERROR(INDEX(Table1[Bedding],MATCH('2) Room configuration'!D152,Table1[TMS],0)),\"\")","v":""},null,null,{"$f":"IFERROR(INDEX(Table1[Room description],MATCH('2) Room configuration'!I152,Table1[TMS],0)),\"\")","v":""},{"$f":"IFERROR(INDEX(Table1[Bedding],MATCH('2) Room configuration'!I152,Table1[TMS],0)),\"\")","v":""},{"$f":"IFERROR(INDEX(Table1[Normal occupancy],MATCH(Table2[[#This Row],[New Room Type \n(TMS)]],Table1[TMS],0)),\"\")","v":""},null,null,null,null,"",{"$f":"IF(Table2[[#This Row],['# extra beds that fit in the room2]]<>0,LEFT(Table2[[#This Row],[New Room Type \n(TMS)]],6),\"\")","v":""},null,{"$f":"IF(Table2[[#This Row],['# extra beds that fit in the room]]<>Table2[[#This Row],['# extra beds that fit in the room2]],\"yes\",\"No\")","v":"No"}]
[null,{"$f":"IF(LEN(C153)>0,'1) Hotel information'!$C$4,\"\")","v":""},null,null,null,{"$f":"IFERROR(INDEX(Table1[Room description],MATCH('2) Room configuration'!D153,Table1[TMS],0)),\"\")","v":""},{"$f":"IFERROR(INDEX(Table1[Bedding],MATCH('2) Room configuration'!D153,Table1[TMS],0)),\"\")","v":""},null,null,{"$f":"IFERROR(INDEX(Table1[Room description],MATCH('2) Room configuration'!I153,Table1[TMS],0)),\"\")","v":""},{"$f":"IFERROR(INDEX(Table1[Bedding],MATCH('2) Room configuration'!I153,Table1[TMS],0)),\"\")","v":""},{"$f":"IFERROR(INDEX(Table1[Normal occupancy],MATCH(Table2[[#This Row],[New Room Type \n(TMS)]],Table1[TMS],0)),\"\")","v":""},null,null,null,null,"",{"$f":"IF(Table2[[#This Row],['# extra beds that fit in the room2]]<>0,LEFT(Table2[[#This Row],[New Room Type \n(TMS)]],6),\"\")","v":""},null,{"$f":"IF(Table2[[#This Row],['# extra beds that fit in the room]]<>Table2[[#This Row],['# extra beds that fit in the room2]],\"yes\",\"No\")","v":"No"}]
[null,{"$f":"IF(LEN(C154)>0,'1) Hotel information'!$C$4,\"\")","v":""},null,null,null,{"$f":"IFERROR(INDEX(Table1[Room description],MATCH('2) Room configuration'!D154,Table1[TMS],0)),\"\")","v":""},{"$f":"IFERROR(INDEX(Table1[Bedding],MATCH('2) Room configuration'!D154,Table1[TMS],0)),\"\")","v":""},null,null,{"$f":"IFERROR(INDEX(Table1[Room description],MATCH('2) Room configuration'!I154,Table1[TMS],0)),\"\")","v":""},{"$f":"IFERROR(INDEX(Table1[Bedding],MATCH('2) Room configuration'!I154,Table1[TMS],0)),\"\")","v":""},{"$f":"IFERROR(INDEX(Table1[Normal occupancy],MATCH(Table2[[#This Row],[New Room Type \n(TMS)]],Table1[TMS],0)),\"\")","v":""},null,null,null,null,"",{"$f":"IF(Table2[[#This Row],['# extra beds that fit in the room2]]<>0,LEFT(Table2[[#This Row],[New Room Type \n(TMS)]],6),\"\")","v":""},null,{"$f":"IF(Table2[[#This Row],['# extra beds that fit in the room]]<>Table2[[#This Row],['# extra beds that fit in the room2]],\"yes\",\"No\")","v":"No"}]
[null,{"$f":"IF(LEN(C155)>0,'1) Hotel information'!$C$4,\"\")","v":""},null,null,null,{"$f":"IFERROR(INDEX(Table1[Room description],MATCH('2) Room configuration'!D155,Table1[TMS],0)),\"\")","v":""},{"$f":"IFERROR(INDEX(Table1[Bedding],MATCH('2) Room configuration'!D155,Table1[TMS],0)),\"\")","v":""},null,null,{"$f":"IFERROR(INDEX(Table1[Room description],MATCH('2) Room configuration'!I155,Table1[TMS],0)),\"\")","v":""},{"$f":"IFERROR(INDEX(Table1[Bedding],MATCH('2) Room configuration'!I155,Table1[TMS],0)),\"\")","v":""},{"$f":"IFERROR(INDEX(Table1[Normal occupancy],MATCH(Table2[[#This Row],[New Room Type \n(TMS)]],Table1[TMS],0)),\"\")","v":""},null,null,null,null,"",{"$f":"IF(Table2[[#This Row],['# extra beds that fit in the room2]]<>0,LEFT(Table2[[#This Row],[New Room Type \n(TMS)]],6),\"\")","v":""},null,{"$f":"IF(Table2[[#This Row],['# extra beds that fit in the room]]<>Table2[[#This Row],['# extra beds that fit in the room2]],\"yes\",\"No\")","v":"No"}]
[null,{"$f":"IF(LEN(C156)>0,'1) Hotel information'!$C$4,\"\")","v":""},null,null,null,{"$f":"IFERROR(INDEX(Table1[Room description],MATCH('2) Room configuration'!D156,Table1[TMS],0)),\"\")","v":""},{"$f":"IFERROR(INDEX(Table1[Bedding],MATCH('2) Room configuration'!D156,Table1[TMS],0)),\"\")","v":""},null,null,{"$f":"IFERROR(INDEX(Table1[Room description],MATCH('2) Room configuration'!I156,Table1[TMS],0)),\"\")","v":""},{"$f":"IFERROR(INDEX(Table1[Bedding],MATCH('2) Room configuration'!I156,Table1[TMS],0)),\"\")","v":""},{"$f":"IFERROR(INDEX(Table1[Normal occupancy],MATCH(Table2[[#This Row],[New Room Type \n(TMS)]],Table1[TMS],0)),\"\")","v":""},null,null,null,null,"",{"$f":"IF(Table2[[#This Row],['# extra beds that fit in the room2]]<>0,LEFT(Table2[[#This Row],[New Room Type \n(TMS)]],6),\"\")","v":""},null,{"$f":"IF(Table2[[#This Row],['# extra beds that fit in the room]]<>Table2[[#This Row],['# extra beds that fit in the room2]],\"yes\",\"No\")","v":"No"}]
[null,{"$f":"IF(LEN(C157)>0,'1) Hotel information'!$C$4,\"\")","v":""},null,null,null,{"$f":"IFERROR(INDEX(Table1[Room description],MATCH('2) Room configuration'!D157,Table1[TMS],0)),\"\")","v":""},{"$f":"IFERROR(INDEX(Table1[Bedding],MATCH('2) Room configuration'!D157,Table1[TMS],0)),\"\")","v":""},null,null,{"$f":"IFERROR(INDEX(Table1[Room description],MATCH('2) Room configuration'!I157,Table1[TMS],0)),\"\")","v":""},{"$f":"IFERROR(INDEX(Table1[Bedding],MATCH('2) Room configuration'!I157,Table1[TMS],0)),\"\")","v":""},{"$f":"IFERROR(INDEX(Table1[Normal occupancy],MATCH(Table2[[#This Row],[New Room Type \n(TMS)]],Table1[TMS],0)),\"\")","v":""},null,null,null,null,"",{"$f":"IF(Table2[[#This Row],['# extra beds that fit in the room2]]<>0,LEFT(Table2[[#This Row],[New Room Type \n(TMS)]],6),\"\")","v":""},null,{"$f":"IF(Table2[[#This Row],['# extra beds that fit in the room]]<>Table2[[#This Row],['# extra beds that fit in the room2]],\"yes\",\"No\")","v":"No"}]
[null,{"$f":"IF(LEN(C158)>0,'1) Hotel information'!$C$4,\"\")","v":""},null,null,null,{"$f":"IFERROR(INDEX(Table1[Room description],MATCH('2) Room configuration'!D158,Table1[TMS],0)),\"\")","v":""},{"$f":"IFERROR(INDEX(Table1[Bedding],MATCH('2) Room configuration'!D158,Table1[TMS],0)),\"\")","v":""},null,null,{"$f":"IFERROR(INDEX(Table1[Room description],MATCH('2) Room configuration'!I158,Table1[TMS],0)),\"\")","v":""},{"$f":"IFERROR(INDEX(Table1[Bedding],MATCH('2) Room configuration'!I158,Table1[TMS],0)),\"\")","v":""},{"$f":"IFERROR(INDEX(Table1[Normal occupancy],MATCH(Table2[[#This Row],[New Room Type \n(TMS)]],Table1[TMS],0)),\"\")","v":""},null,null,null,null,"",{"$f":"IF(Table2[[#This Row],['# extra beds that fit in the room2]]<>0,LEFT(Table2[[#This Row],[New Room Type \n(TMS)]],6),\"\")","v":""},null,{"$f":"IF(Table2[[#This Row],['# extra beds that fit in the room]]<>Table2[[#This Row],['# extra beds that fit in the room2]],\"yes\",\"No\")","v":"No"}]
[null,{"$f":"IF(LEN(C159)>0,'1) Hotel information'!$C$4,\"\")","v":""},null,null,null,{"$f":"IFERROR(INDEX(Table1[Room description],MATCH('2) Room configuration'!D159,Table1[TMS],0)),\"\")","v":""},{"$f":"IFERROR(INDEX(Table1[Bedding],MATCH('2) Room configuration'!D159,Table1[TMS],0)),\"\")","v":""},null,null,{"$f":"IFERROR(INDEX(Table1[Room description],MATCH('2) Room configuration'!I159,Table1[TMS],0)),\"\")","v":""},{"$f":"IFERROR(INDEX(Table1[Bedding],MATCH('2) Room configuration'!I159,Table1[TMS],0)),\"\")","v":""},{"$f":"IFERROR(INDEX(Table1[Normal occupancy],MATCH(Table2[[#This Row],[New Room Type \n(TMS)]],Table1[TMS],0)),\"\")","v":""},null,null,null,null,"",{"$f":"IF(Table2[[#This Row],['# extra beds that fit in the room2]]<>0,LEFT(Table2[[#This Row],[New Room Type \n(TMS)]],6),\"\")","v":""},null,{"$f":"IF(Table2[[#This Row],['# extra beds that fit in the room]]<>Table2[[#This Row],['# extra beds that fit in the room2]],\"yes\",\"No\")","v":"No"}]
[null,{"$f":"IF(LEN(C160)>0,'1) Hotel information'!$C$4,\"\")","v":""},null,null,null,{"$f":"IFERROR(INDEX(Table1[Room description],MATCH('2) Room configuration'!D160,Table1[TMS],0)),\"\")","v":""},{"$f":"IFERROR(INDEX(Table1[Bedding],MATCH('2) Room configuration'!D160,Table1[TMS],0)),\"\")","v":""},null,null,{"$f":"IFERROR(INDEX(Table1[Room description],MATCH('2) Room configuration'!I160,Table1[TMS],0)),\"\")","v":""},{"$f":"IFERROR(INDEX(Table1[Bedding],MATCH('2) Room configuration'!I160,Table1[TMS],0)),\"\")","v":""},{"$f":"IFERROR(INDEX(Table1[Normal occupancy],MATCH(Table2[[#This Row],[New Room Type \n(TMS)]],Table1[TMS],0)),\"\")","v":""},null,null,null,null,"",{"$f":"IF(Table2[[#This Row],['# extra beds that fit in the room2]]<>0,LEFT(Table2[[#This Row],[New Room Type \n(TMS)]],6),\"\")","v":""},null,{"$f":"IF(Table2[[#This Row],['# extra beds that fit in the room]]<>Table2[[#This Row],['# extra beds that fit in the room2]],\"yes\",\"No\")","v":"No"}]
[null,{"$f":"IF(LEN(C161)>0,'1) Hotel information'!$C$4,\"\")","v":""},null,null,null,{"$f":"IFERROR(INDEX(Table1[Room description],MATCH('2) Room configuration'!D161,Table1[TMS],0)),\"\")","v":""},{"$f":"IFERROR(INDEX(Table1[Bedding],MATCH('2) Room configuration'!D161,Table1[TMS],0)),\"\")","v":""},null,null,{"$f":"IFERROR(INDEX(Table1[Room description],MATCH('2) Room configuration'!I161,Table1[TMS],0)),\"\")","v":""},{"$f":"IFERROR(INDEX(Table1[Bedding],MATCH('2) Room configuration'!I161,Table1[TMS],0)),\"\")","v":""},{"$f":"IFERROR(INDEX(Table1[Normal occupancy],MATCH(Table2[[#This Row],[New Room Type \n(TMS)]],Table1[TMS],0)),\"\")","v":""},null,null,null,null,"",{"$f":"IF(Table2[[#This Row],['# extra beds that fit in the room2]]<>0,LEFT(Table2[[#This Row],[New Room Type \n(TMS)]],6),\"\")","v":""},null,{"$f":"IF(Table2[[#This Row],['# extra beds that fit in the room]]<>Table2[[#This Row],['# extra beds that fit in the room2]],\"yes\",\"No\")","v":"No"}]
[null,{"$f":"IF(LEN(C162)>0,'1) Hotel information'!$C$4,\"\")","v":""},null,null,null,{"$f":"IFERROR(INDEX(Table1[Room description],MATCH('2) Room configuration'!D162,Table1[TMS],0)),\"\")","v":""},{"$f":"IFERROR(INDEX(Table1[Bedding],MATCH('2) Room configuration'!D162,Table1[TMS],0)),\"\")","v":""},null,null,{"$f":"IFERROR(INDEX(Table1[Room description],MATCH('2) Room configuration'!I162,Table1[TMS],0)),\"\")","v":""},{"$f":"IFERROR(INDEX(Table1[Bedding],MATCH('2) Room configuration'!I162,Table1[TMS],0)),\"\")","v":""},{"$f":"IFERROR(INDEX(Table1[Normal occupancy],MATCH(Table2[[#This Row],[New Room Type \n(TMS)]],Table1[TMS],0)),\"\")","v":""},null,null,null,null,"",{"$f":"IF(Table2[[#This Row],['# extra beds that fit in the room2]]<>0,LEFT(Table2[[#This Row],[New Room Type \n(TMS)]],6),\"\")","v":""},null,{"$f":"IF(Table2[[#This Row],['# extra beds that fit in the room]]<>Table2[[#This Row],['# extra beds that fit in the room2]],\"yes\",\"No\")","v":"No"}]
[null,{"$f":"IF(LEN(C163)>0,'1) Hotel information'!$C$4,\"\")","v":""},null,null,null,{"$f":"IFERROR(INDEX(Table1[Room description],MATCH('2) Room configuration'!D163,Table1[TMS],0)),\"\")","v":""},{"$f":"IFERROR(INDEX(Table1[Bedding],MATCH('2) Room configuration'!D163,Table1[TMS],0)),\"\")","v":""},null,null,{"$f":"IFERROR(INDEX(Table1[Room description],MATCH('2) Room configuration'!I163,Table1[TMS],0)),\"\")","v":""},{"$f":"IFERROR(INDEX(Table1[Bedding],MATCH('2) Room configuration'!I163,Table1[TMS],0)),\"\")","v":""},{"$f":"IFERROR(INDEX(Table1[Normal occupancy],MATCH(Table2[[#This Row],[New Room Type \n(TMS)]],Table1[TMS],0)),\"\")","v":""},null,null,null,null,"",{"$f":"IF(Table2[[#This Row],['# extra beds that fit in the room2]]<>0,LEFT(Table2[[#This Row],[New Room Type \n(TMS)]],6),\"\")","v":""},null,{"$f":"IF(Table2[[#This Row],['# extra beds that fit in the room]]<>Table2[[#This Row],['# extra beds that fit in the room2]],\"yes\",\"No\")","v":"No"}]
[null,{"$f":"IF(LEN(C164)>0,'1) Hotel information'!$C$4,\"\")","v":""},null,null,null,{"$f":"IFERROR(INDEX(Table1[Room description],MATCH('2) Room configuration'!D164,Table1[TMS],0)),\"\")","v":""},{"$f":"IFERROR(INDEX(Table1[Bedding],MATCH('2) Room configuration'!D164,Table1[TMS],0)),\"\")","v":""},null,null,{"$f":"IFERROR(INDEX(Table1[Room description],MATCH('2) Room configuration'!I164,Table1[TMS],0)),\"\")","v":""},{"$f":"IFERROR(INDEX(Table1[Bedding],MATCH('2) Room configuration'!I164,Table1[TMS],0)),\"\")","v":""},{"$f":"IFERROR(INDEX(Table1[Normal occupancy],MATCH(Table2[[#This Row],[New Room Type \n(TMS)]],Table1[TMS],0)),\"\")","v":""},null,null,null,null,"",{"$f":"IF(Table2[[#This Row],['# extra beds that fit in the room2]]<>0,LEFT(Table2[[#This Row],[New Room Type \n(TMS)]],6),\"\")","v":""},null,{"$f":"IF(Table2[[#This Row],['# extra beds that fit in the room]]<>Table2[[#This Row],['# extra beds that fit in the room2]],\"yes\",\"No\")","v":"No"}]
[null,{"$f":"IF(LEN(C165)>0,'1) Hotel information'!$C$4,\"\")","v":""},null,null,null,{"$f":"IFERROR(INDEX(Table1[Room description],MATCH('2) Room configuration'!D165,Table1[TMS],0)),\"\")","v":""},{"$f":"IFERROR(INDEX(Table1[Bedding],MATCH('2) Room configuration'!D165,Table1[TMS],0)),\"\")","v":""},null,null,{"$f":"IFERROR(INDEX(Table1[Room description],MATCH('2) Room configuration'!I165,Table1[TMS],0)),\"\")","v":""},{"$f":"IFERROR(INDEX(Table1[Bedding],MATCH('2) Room configuration'!I165,Table1[TMS],0)),\"\")","v":""},{"$f":"IFERROR(INDEX(Table1[Normal occupancy],MATCH(Table2[[#This Row],[New Room Type \n(TMS)]],Table1[TMS],0)),\"\")","v":""},null,null,null,null,"",{"$f":"IF(Table2[[#This Row],['# extra beds that fit in the room2]]<>0,LEFT(Table2[[#This Row],[New Room Type \n(TMS)]],6),\"\")","v":""},null,{"$f":"IF(Table2[[#This Row],['# extra beds that fit in the room]]<>Table2[[#This Row],['# extra beds that fit in the room2]],\"yes\",\"No\")","v":"No"}]
[null,{"$f":"IF(LEN(C166)>0,'1) Hotel information'!$C$4,\"\")","v":""},null,null,null,{"$f":"IFERROR(INDEX(Table1[Room description],MATCH('2) Room configuration'!D166,Table1[TMS],0)),\"\")","v":""},{"$f":"IFERROR(INDEX(Table1[Bedding],MATCH('2) Room configuration'!D166,Table1[TMS],0)),\"\")","v":""},null,null,{"$f":"IFERROR(INDEX(Table1[Room description],MATCH('2) Room configuration'!I166,Table1[TMS],0)),\"\")","v":""},{"$f":"IFERROR(INDEX(Table1[Bedding],MATCH('2) Room configuration'!I166,Table1[TMS],0)),\"\")","v":""},{"$f":"IFERROR(INDEX(Table1[Normal occupancy],MATCH(Table2[[#This Row],[New Room Type \n(TMS)]],Table1[TMS],0)),\"\")","v":""},null,null,null,null,"",{"$f":"IF(Table2[[#This Row],['# extra beds that fit in the room2]]<>0,LEFT(Table2[[#This Row],[New Room Type \n(TMS)]],6),\"\")","v":""},null,{"$f":"IF(Table2[[#This Row],['# extra beds that fit in the room]]<>Table2[[#This Row],['# extra beds that fit in the room2]],\"yes\",\"No\")","v":"No"}]
[null,{"$f":"IF(LEN(C167)>0,'1) Hotel information'!$C$4,\"\")","v":""},null,null,null,{"$f":"IFERROR(INDEX(Table1[Room description],MATCH('2) Room configuration'!D167,Table1[TMS],0)),\"\")","v":""},{"$f":"IFERROR(INDEX(Table1[Bedding],MATCH('2) Room configuration'!D167,Table1[TMS],0)),\"\")","v":""},null,null,{"$f":"IFERROR(INDEX(Table1[Room description],MATCH('2) Room configuration'!I167,Table1[TMS],0)),\"\")","v":""},{"$f":"IFERROR(INDEX(Table1[Bedding],MATCH('2) Room configuration'!I167,Table1[TMS],0)),\"\")","v":""},{"$f":"IFERROR(INDEX(Table1[Normal occupancy],MATCH(Table2[[#This Row],[New Room Type \n(TMS)]],Table1[TMS],0)),\"\")","v":""},null,null,null,null,"",{"$f":"IF(Table2[[#This Row],['# extra beds that fit in the room2]]<>0,LEFT(Table2[[#This Row],[New Room Type \n(TMS)]],6),\"\")","v":""},null,{"$f":"IF(Table2[[#This Row],['# extra beds that fit in the room]]<>Table2[[#This Row],['# extra beds that fit in the room2]],\"yes\",\"No\")","v":"No"}]
[null,{"$f":"IF(LEN(C168)>0,'1) Hotel information'!$C$4,\"\")","v":""},null,null,null,{"$f":"IFERROR(INDEX(Table1[Room description],MATCH('2) Room configuration'!D168,Table1[TMS],0)),\"\")","v":""},{"$f":"IFERROR(INDEX(Table1[Bedding],MATCH('2) Room configuration'!D168,Table1[TMS],0)),\"\")","v":""},null,null,{"$f":"IFERROR(INDEX(Table1[Room description],MATCH('2) Room configuration'!I168,Table1[TMS],0)),\"\")","v":""},{"$f":"IFERROR(INDEX(Table1[Bedding],MATCH('2) Room configuration'!I168,Table1[TMS],0)),\"\")","v":""},{"$f":"IFERROR(INDEX(Table1[Normal occupancy],MATCH(Table2[[#This Row],[New Room Type \n(TMS)]],Table1[TMS],0)),\"\")","v":""},null,null,null,null,"",{"$f":"IF(Table2[[#This Row],['# extra beds that fit in the room2]]<>0,LEFT(Table2[[#This Row],[New Room Type \n(TMS)]],6),\"\")","v":""},null,{"$f":"IF(Table2[[#This Row],['# extra beds that fit in the room]]<>Table2[[#This Row],['# extra beds that fit in the room2]],\"yes\",\"No\")","v":"No"}]
[null,{"$f":"IF(LEN(C169)>0,'1) Hotel information'!$C$4,\"\")","v":""},null,null,null,{"$f":"IFERROR(INDEX(Table1[Room description],MATCH('2) Room configuration'!D169,Table1[TMS],0)),\"\")","v":""},{"$f":"IFERROR(INDEX(Table1[Bedding],MATCH('2) Room configuration'!D169,Table1[TMS],0)),\"\")","v":""},null,null,{"$f":"IFERROR(INDEX(Table1[Room description],MATCH('2) Room configuration'!I169,Table1[TMS],0)),\"\")","v":""},{"$f":"IFERROR(INDEX(Table1[Bedding],MATCH('2) Room configuration'!I169,Table1[TMS],0)),\"\")","v":""},{"$f":"IFERROR(INDEX(Table1[Normal occupancy],MATCH(Table2[[#This Row],[New Room Type \n(TMS)]],Table1[TMS],0)),\"\")","v":""},null,null,null,null,"",{"$f":"IF(Table2[[#This Row],['# extra beds that fit in the room2]]<>0,LEFT(Table2[[#This Row],[New Room Type \n(TMS)]],6),\"\")","v":""},null,{"$f":"IF(Table2[[#This Row],['# extra beds that fit in the room]]<>Table2[[#This Row],['# extra beds that fit in the room2]],\"yes\",\"No\")","v":"No"}]
[null,{"$f":"IF(LEN(C170)>0,'1) Hotel information'!$C$4,\"\")","v":""},null,null,null,{"$f":"IFERROR(INDEX(Table1[Room description],MATCH('2) Room configuration'!D170,Table1[TMS],0)),\"\")","v":""},{"$f":"IFERROR(INDEX(Table1[Bedding],MATCH('2) Room configuration'!D170,Table1[TMS],0)),\"\")","v":""},null,null,{"$f":"IFERROR(INDEX(Table1[Room description],MATCH('2) Room configuration'!I170,Table1[TMS],0)),\"\")","v":""},{"$f":"IFERROR(INDEX(Table1[Bedding],MATCH('2) Room configuration'!I170,Table1[TMS],0)),\"\")","v":""},{"$f":"IFERROR(INDEX(Table1[Normal occupancy],MATCH(Table2[[#This Row],[New Room Type \n(TMS)]],Table1[TMS],0)),\"\")","v":""},null,null,null,null,"",{"$f":"IF(Table2[[#This Row],['# extra beds that fit in the room2]]<>0,LEFT(Table2[[#This Row],[New Room Type \n(TMS)]],6),\"\")","v":""},null,{"$f":"IF(Table2[[#This Row],['# extra beds that fit in the room]]<>Table2[[#This Row],['# extra beds that fit in the room2]],\"yes\",\"No\")","v":"No"}]
[null,{"$f":"IF(LEN(C171)>0,'1) Hotel information'!$C$4,\"\")","v":""},null,null,null,{"$f":"IFERROR(INDEX(Table1[Room description],MATCH('2) Room configuration'!D171,Table1[TMS],0)),\"\")","v":""},{"$f":"IFERROR(INDEX(Table1[Bedding],MATCH('2) Room configuration'!D171,Table1[TMS],0)),\"\")","v":""},null,null,{"$f":"IFERROR(INDEX(Table1[Room description],MATCH('2) Room configuration'!I171,Table1[TMS],0)),\"\")","v":""},{"$f":"IFERROR(INDEX(Table1[Bedding],MATCH('2) Room configuration'!I171,Table1[TMS],0)),\"\")","v":""},{"$f":"IFERROR(INDEX(Table1[Normal occupancy],MATCH(Table2[[#This Row],[New Room Type \n(TMS)]],Table1[TMS],0)),\"\")","v":""},null,null,null,null,"",{"$f":"IF(Table2[[#This Row],['# extra beds that fit in the room2]]<>0,LEFT(Table2[[#This Row],[New Room Type \n(TMS)]],6),\"\")","v":""},null,{"$f":"IF(Table2[[#This Row],['# extra beds that fit in the room]]<>Table2[[#This Row],['# extra beds that fit in the room2]],\"yes\",\"No\")","v":"No"}]
[null,{"$f":"IF(LEN(C172)>0,'1) Hotel information'!$C$4,\"\")","v":""},null,null,null,{"$f":"IFERROR(INDEX(Table1[Room description],MATCH('2) Room configuration'!D172,Table1[TMS],0)),\"\")","v":""},{"$f":"IFERROR(INDEX(Table1[Bedding],MATCH('2) Room configuration'!D172,Table1[TMS],0)),\"\")","v":""},null,null,{"$f":"IFERROR(INDEX(Table1[Room description],MATCH('2) Room configuration'!I172,Table1[TMS],0)),\"\")","v":""},{"$f":"IFERROR(INDEX(Table1[Bedding],MATCH('2) Room configuration'!I172,Table1[TMS],0)),\"\")","v":""},{"$f":"IFERROR(INDEX(Table1[Normal occupancy],MATCH(Table2[[#This Row],[New Room Type \n(TMS)]],Table1[TMS],0)),\"\")","v":""},null,null,null,null,"",{"$f":"IF(Table2[[#This Row],['# extra beds that fit in the room2]]<>0,LEFT(Table2[[#This Row],[New Room Type \n(TMS)]],6),\"\")","v":""},null,{"$f":"IF(Table2[[#This Row],['# extra beds that fit in the room]]<>Table2[[#This Row],['# extra beds that fit in the room2]],\"yes\",\"No\")","v":"No"}]
[null,{"$f":"IF(LEN(C173)>0,'1) Hotel information'!$C$4,\"\")","v":""},null,null,null,{"$f":"IFERROR(INDEX(Table1[Room description],MATCH('2) Room configuration'!D173,Table1[TMS],0)),\"\")","v":""},{"$f":"IFERROR(INDEX(Table1[Bedding],MATCH('2) Room configuration'!D173,Table1[TMS],0)),\"\")","v":""},null,null,{"$f":"IFERROR(INDEX(Table1[Room description],MATCH('2) Room configuration'!I173,Table1[TMS],0)),\"\")","v":""},{"$f":"IFERROR(INDEX(Table1[Bedding],MATCH('2) Room configuration'!I173,Table1[TMS],0)),\"\")","v":""},{"$f":"IFERROR(INDEX(Table1[Normal occupancy],MATCH(Table2[[#This Row],[New Room Type \n(TMS)]],Table1[TMS],0)),\"\")","v":""},null,null,null,null,"",{"$f":"IF(Table2[[#This Row],['# extra beds that fit in the room2]]<>0,LEFT(Table2[[#This Row],[New Room Type \n(TMS)]],6),\"\")","v":""},null,{"$f":"IF(Table2[[#This Row],['# extra beds that fit in the room]]<>Table2[[#This Row],['# extra beds that fit in the room2]],\"yes\",\"No\")","v":"No"}]
[null,{"$f":"IF(LEN(C174)>0,'1) Hotel information'!$C$4,\"\")","v":""},null,null,null,{"$f":"IFERROR(INDEX(Table1[Room description],MATCH('2) Room configuration'!D174,Table1[TMS],0)),\"\")","v":""},{"$f":"IFERROR(INDEX(Table1[Bedding],MATCH('2) Room configuration'!D174,Table1[TMS],0)),\"\")","v":""},null,null,{"$f":"IFERROR(INDEX(Table1[Room description],MATCH('2) Room configuration'!I174,Table1[TMS],0)),\"\")","v":""},{"$f":"IFERROR(INDEX(Table1[Bedding],MATCH('2) Room configuration'!I174,Table1[TMS],0)),\"\")","v":""},{"$f":"IFERROR(INDEX(Table1[Normal occupancy],MATCH(Table2[[#This Row],[New Room Type \n(TMS)]],Table1[TMS],0)),\"\")","v":""},null,null,null,null,"",{"$f":"IF(Table2[[#This Row],['# extra beds that fit in the room2]]<>0,LEFT(Table2[[#This Row],[New Room Type \n(TMS)]],6),\"\")","v":""},null,{"$f":"IF(Table2[[#This Row],['# extra beds that fit in the room]]<>Table2[[#This Row],['# extra beds that fit in the room2]],\"yes\",\"No\")","v":"No"}]
[null,{"$f":"IF(LEN(C175)>0,'1) Hotel information'!$C$4,\"\")","v":""},null,null,null,{"$f":"IFERROR(INDEX(Table1[Room description],MATCH('2) Room configuration'!D175,Table1[TMS],0)),\"\")","v":""},{"$f":"IFERROR(INDEX(Table1[Bedding],MATCH('2) Room configuration'!D175,Table1[TMS],0)),\"\")","v":""},null,null,{"$f":"IFERROR(INDEX(Table1[Room description],MATCH('2) Room configuration'!I175,Table1[TMS],0)),\"\")","v":""},{"$f":"IFERROR(INDEX(Table1[Bedding],MATCH('2) Room configuration'!I175,Table1[TMS],0)),\"\")","v":""},{"$f":"IFERROR(INDEX(Table1[Normal occupancy],MATCH(Table2[[#This Row],[New Room Type \n(TMS)]],Table1[TMS],0)),\"\")","v":""},null,null,null,null,"",{"$f":"IF(Table2[[#This Row],['# extra beds that fit in the room2]]<>0,LEFT(Table2[[#This Row],[New Room Type \n(TMS)]],6),\"\")","v":""},null,{"$f":"IF(Table2[[#This Row],['# extra beds that fit in the room]]<>Table2[[#This Row],['# extra beds that fit in the room2]],\"yes\",\"No\")","v":"No"}]
[null,{"$f":"IF(LEN(C176)>0,'1) Hotel information'!$C$4,\"\")","v":""},null,null,null,{"$f":"IFERROR(INDEX(Table1[Room description],MATCH('2) Room configuration'!D176,Table1[TMS],0)),\"\")","v":""},{"$f":"IFERROR(INDEX(Table1[Bedding],MATCH('2) Room configuration'!D176,Table1[TMS],0)),\"\")","v":""},null,null,{"$f":"IFERROR(INDEX(Table1[Room description],MATCH('2) Room configuration'!I176,Table1[TMS],0)),\"\")","v":""},{"$f":"IFERROR(INDEX(Table1[Bedding],MATCH('2) Room configuration'!I176,Table1[TMS],0)),\"\")","v":""},{"$f":"IFERROR(INDEX(Table1[Normal occupancy],MATCH(Table2[[#This Row],[New Room Type \n(TMS)]],Table1[TMS],0)),\"\")","v":""},null,null,null,null,"",{"$f":"IF(Table2[[#This Row],['# extra beds that fit in the room2]]<>0,LEFT(Table2[[#This Row],[New Room Type \n(TMS)]],6),\"\")","v":""},null,{"$f":"IF(Table2[[#This Row],['# extra beds that fit in the room]]<>Table2[[#This Row],['# extra beds that fit in the room2]],\"yes\",\"No\")","v":"No"}]
[null,{"$f":"IF(LEN(C177)>0,'1) Hotel information'!$C$4,\"\")","v":""},null,null,null,{"$f":"IFERROR(INDEX(Table1[Room description],MATCH('2) Room configuration'!D177,Table1[TMS],0)),\"\")","v":""},{"$f":"IFERROR(INDEX(Table1[Bedding],MATCH('2) Room configuration'!D177,Table1[TMS],0)),\"\")","v":""},null,null,{"$f":"IFERROR(INDEX(Table1[Room description],MATCH('2) Room configuration'!I177,Table1[TMS],0)),\"\")","v":""},{"$f":"IFERROR(INDEX(Table1[Bedding],MATCH('2) Room configuration'!I177,Table1[TMS],0)),\"\")","v":""},{"$f":"IFERROR(INDEX(Table1[Normal occupancy],MATCH(Table2[[#This Row],[New Room Type \n(TMS)]],Table1[TMS],0)),\"\")","v":""},null,null,null,null,"",{"$f":"IF(Table2[[#This Row],['# extra beds that fit in the room2]]<>0,LEFT(Table2[[#This Row],[New Room Type \n(TMS)]],6),\"\")","v":""},null,{"$f":"IF(Table2[[#This Row],['# extra beds that fit in the room]]<>Table2[[#This Row],['# extra beds that fit in the room2]],\"yes\",\"No\")","v":"No"}]
[null,{"$f":"IF(LEN(C178)>0,'1) Hotel information'!$C$4,\"\")","v":""},null,null,null,{"$f":"IFERROR(INDEX(Table1[Room description],MATCH('2) Room configuration'!D178,Table1[TMS],0)),\"\")","v":""},{"$f":"IFERROR(INDEX(Table1[Bedding],MATCH('2) Room configuration'!D178,Table1[TMS],0)),\"\")","v":""},null,null,{"$f":"IFERROR(INDEX(Table1[Room description],MATCH('2) Room configuration'!I178,Table1[TMS],0)),\"\")","v":""},{"$f":"IFERROR(INDEX(Table1[Bedding],MATCH('2) Room configuration'!I178,Table1[TMS],0)),\"\")","v":""},{"$f":"IFERROR(INDEX(Table1[Normal occupancy],MATCH(Table2[[#This Row],[New Room Type \n(TMS)]],Table1[TMS],0)),\"\")","v":""},null,null,null,null,"",{"$f":"IF(Table2[[#This Row],['# extra beds that fit in the room2]]<>0,LEFT(Table2[[#This Row],[New Room Type \n(TMS)]],6),\"\")","v":""},null,{"$f":"IF(Table2[[#This Row],['# extra beds that fit in the room]]<>Table2[[#This Row],['# extra beds that fit in the room2]],\"yes\",\"No\")","v":"No"}]
[null,{"$f":"IF(LEN(C179)>0,'1) Hotel information'!$C$4,\"\")","v":""},null,null,null,{"$f":"IFERROR(INDEX(Table1[Room description],MATCH('2) Room configuration'!D179,Table1[TMS],0)),\"\")","v":""},{"$f":"IFERROR(INDEX(Table1[Bedding],MATCH('2) Room configuration'!D179,Table1[TMS],0)),\"\")","v":""},null,null,{"$f":"IFERROR(INDEX(Table1[Room description],MATCH('2) Room configuration'!I179,Table1[TMS],0)),\"\")","v":""},{"$f":"IFERROR(INDEX(Table1[Bedding],MATCH('2) Room configuration'!I179,Table1[TMS],0)),\"\")","v":""},{"$f":"IFERROR(INDEX(Table1[Normal occupancy],MATCH(Table2[[#This Row],[New Room Type \n(TMS)]],Table1[TMS],0)),\"\")","v":""},null,null,null,null,"",{"$f":"IF(Table2[[#This Row],['# extra beds that fit in the room2]]<>0,LEFT(Table2[[#This Row],[New Room Type \n(TMS)]],6),\"\")","v":""},null,{"$f":"IF(Table2[[#This Row],['# extra beds that fit in the room]]<>Table2[[#This Row],['# extra beds that fit in the room2]],\"yes\",\"No\")","v":"No"}]
[null,{"$f":"IF(LEN(C180)>0,'1) Hotel information'!$C$4,\"\")","v":""},null,null,null,{"$f":"IFERROR(INDEX(Table1[Room description],MATCH('2) Room configuration'!D180,Table1[TMS],0)),\"\")","v":""},{"$f":"IFERROR(INDEX(Table1[Bedding],MATCH('2) Room configuration'!D180,Table1[TMS],0)),\"\")","v":""},null,null,{"$f":"IFERROR(INDEX(Table1[Room description],MATCH('2) Room configuration'!I180,Table1[TMS],0)),\"\")","v":""},{"$f":"IFERROR(INDEX(Table1[Bedding],MATCH('2) Room configuration'!I180,Table1[TMS],0)),\"\")","v":""},{"$f":"IFERROR(INDEX(Table1[Normal occupancy],MATCH(Table2[[#This Row],[New Room Type \n(TMS)]],Table1[TMS],0)),\"\")","v":""},null,null,null,null,"",{"$f":"IF(Table2[[#This Row],['# extra beds that fit in the room2]]<>0,LEFT(Table2[[#This Row],[New Room Type \n(TMS)]],6),\"\")","v":""},null,{"$f":"IF(Table2[[#This Row],['# extra beds that fit in the room]]<>Table2[[#This Row],['# extra beds that fit in the room2]],\"yes\",\"No\")","v":"No"}]
[null,{"$f":"IF(LEN(C181)>0,'1) Hotel information'!$C$4,\"\")","v":""},null,null,null,{"$f":"IFERROR(INDEX(Table1[Room description],MATCH('2) Room configuration'!D181,Table1[TMS],0)),\"\")","v":""},{"$f":"IFERROR(INDEX(Table1[Bedding],MATCH('2) Room configuration'!D181,Table1[TMS],0)),\"\")","v":""},null,null,{"$f":"IFERROR(INDEX(Table1[Room description],MATCH('2) Room configuration'!I181,Table1[TMS],0)),\"\")","v":""},{"$f":"IFERROR(INDEX(Table1[Bedding],MATCH('2) Room configuration'!I181,Table1[TMS],0)),\"\")","v":""},{"$f":"IFERROR(INDEX(Table1[Normal occupancy],MATCH(Table2[[#This Row],[New Room Type \n(TMS)]],Table1[TMS],0)),\"\")","v":""},null,null,null,null,"",{"$f":"IF(Table2[[#This Row],['# extra beds that fit in the room2]]<>0,LEFT(Table2[[#This Row],[New Room Type \n(TMS)]],6),\"\")","v":""},null,{"$f":"IF(Table2[[#This Row],['# extra beds that fit in the room]]<>Table2[[#This Row],['# extra beds that fit in the room2]],\"yes\",\"No\")","v":"No"}]
[null,{"$f":"IF(LEN(C182)>0,'1) Hotel information'!$C$4,\"\")","v":""},null,null,null,{"$f":"IFERROR(INDEX(Table1[Room description],MATCH('2) Room configuration'!D182,Table1[TMS],0)),\"\")","v":""},{"$f":"IFERROR(INDEX(Table1[Bedding],MATCH('2) Room configuration'!D182,Table1[TMS],0)),\"\")","v":""},null,null,{"$f":"IFERROR(INDEX(Table1[Room description],MATCH('2) Room configuration'!I182,Table1[TMS],0)),\"\")","v":""},{"$f":"IFERROR(INDEX(Table1[Bedding],MATCH('2) Room configuration'!I182,Table1[TMS],0)),\"\")","v":""},{"$f":"IFERROR(INDEX(Table1[Normal occupancy],MATCH(Table2[[#This Row],[New Room Type \n(TMS)]],Table1[TMS],0)),\"\")","v":""},null,null,null,null,"",{"$f":"IF(Table2[[#This Row],['# extra beds that fit in the room2]]<>0,LEFT(Table2[[#This Row],[New Room Type \n(TMS)]],6),\"\")","v":""},null,{"$f":"IF(Table2[[#This Row],['# extra beds that fit in the room]]<>Table2[[#This Row],['# extra beds that fit in the room2]],\"yes\",\"No\")","v":"No"}]
[null,{"$f":"IF(LEN(C183)>0,'1) Hotel information'!$C$4,\"\")","v":""},null,null,null,{"$f":"IFERROR(INDEX(Table1[Room description],MATCH('2) Room configuration'!D183,Table1[TMS],0)),\"\")","v":""},{"$f":"IFERROR(INDEX(Table1[Bedding],MATCH('2) Room configuration'!D183,Table1[TMS],0)),\"\")","v":""},null,null,{"$f":"IFERROR(INDEX(Table1[Room description],MATCH('2) Room configuration'!I183,Table1[TMS],0)),\"\")","v":""},{"$f":"IFERROR(INDEX(Table1[Bedding],MATCH('2) Room configuration'!I183,Table1[TMS],0)),\"\")","v":""},{"$f":"IFERROR(INDEX(Table1[Normal occupancy],MATCH(Table2[[#This Row],[New Room Type \n(TMS)]],Table1[TMS],0)),\"\")","v":""},null,null,null,null,"",{"$f":"IF(Table2[[#This Row],['# extra beds that fit in the room2]]<>0,LEFT(Table2[[#This Row],[New Room Type \n(TMS)]],6),\"\")","v":""},null,{"$f":"IF(Table2[[#This Row],['# extra beds that fit in the room]]<>Table2[[#This Row],['# extra beds that fit in the room2]],\"yes\",\"No\")","v":"No"}]
[null,{"$f":"IF(LEN(C184)>0,'1) Hotel information'!$C$4,\"\")","v":""},null,null,null,{"$f":"IFERROR(INDEX(Table1[Room description],MATCH('2) Room configuration'!D184,Table1[TMS],0)),\"\")","v":""},{"$f":"IFERROR(INDEX(Table1[Bedding],MATCH('2) Room configuration'!D184,Table1[TMS],0)),\"\")","v":""},null,null,{"$f":"IFERROR(INDEX(Table1[Room description],MATCH('2) Room configuration'!I184,Table1[TMS],0)),\"\")","v":""},{"$f":"IFERROR(INDEX(Table1[Bedding],MATCH('2) Room configuration'!I184,Table1[TMS],0)),\"\")","v":""},{"$f":"IFERROR(INDEX(Table1[Normal occupancy],MATCH(Table2[[#This Row],[New Room Type \n(TMS)]],Table1[TMS],0)),\"\")","v":""},null,null,null,null,"",{"$f":"IF(Table2[[#This Row],['# extra beds that fit in the room2]]<>0,LEFT(Table2[[#This Row],[New Room Type \n(TMS)]],6),\"\")","v":""},null,{"$f":"IF(Table2[[#This Row],['# extra beds that fit in the room]]<>Table2[[#This Row],['# extra beds that fit in the room2]],\"yes\",\"No\")","v":"No"}]
[null,{"$f":"IF(LEN(C185)>0,'1) Hotel information'!$C$4,\"\")","v":""},null,null,null,{"$f":"IFERROR(INDEX(Table1[Room description],MATCH('2) Room configuration'!D185,Table1[TMS],0)),\"\")","v":""},{"$f":"IFERROR(INDEX(Table1[Bedding],MATCH('2) Room configuration'!D185,Table1[TMS],0)),\"\")","v":""},null,null,{"$f":"IFERROR(INDEX(Table1[Room description],MATCH('2) Room configuration'!I185,Table1[TMS],0)),\"\")","v":""},{"$f":"IFERROR(INDEX(Table1[Bedding],MATCH('2) Room configuration'!I185,Table1[TMS],0)),\"\")","v":""},{"$f":"IFERROR(INDEX(Table1[Normal occupancy],MATCH(Table2[[#This Row],[New Room Type \n(TMS)]],Table1[TMS],0)),\"\")","v":""},null,null,null,null,"",{"$f":"IF(Table2[[#This Row],['# extra beds that fit in the room2]]<>0,LEFT(Table2[[#This Row],[New Room Type \n(TMS)]],6),\"\")","v":""},null,{"$f":"IF(Table2[[#This Row],['# extra beds that fit in the room]]<>Table2[[#This Row],['# extra beds that fit in the room2]],\"yes\",\"No\")","v":"No"}]
[null,{"$f":"IF(LEN(C186)>0,'1) Hotel information'!$C$4,\"\")","v":""},null,null,null,{"$f":"IFERROR(INDEX(Table1[Room description],MATCH('2) Room configuration'!D186,Table1[TMS],0)),\"\")","v":""},{"$f":"IFERROR(INDEX(Table1[Bedding],MATCH('2) Room configuration'!D186,Table1[TMS],0)),\"\")","v":""},null,null,{"$f":"IFERROR(INDEX(Table1[Room description],MATCH('2) Room configuration'!I186,Table1[TMS],0)),\"\")","v":""},{"$f":"IFERROR(INDEX(Table1[Bedding],MATCH('2) Room configuration'!I186,Table1[TMS],0)),\"\")","v":""},{"$f":"IFERROR(INDEX(Table1[Normal occupancy],MATCH(Table2[[#This Row],[New Room Type \n(TMS)]],Table1[TMS],0)),\"\")","v":""},null,null,null,null,"",{"$f":"IF(Table2[[#This Row],['# extra beds that fit in the room2]]<>0,LEFT(Table2[[#This Row],[New Room Type \n(TMS)]],6),\"\")","v":""},null,{"$f":"IF(Table2[[#This Row],['# extra beds that fit in the room]]<>Table2[[#This Row],['# extra beds that fit in the room2]],\"yes\",\"No\")","v":"No"}]
[null,{"$f":"IF(LEN(C187)>0,'1) Hotel information'!$C$4,\"\")","v":""},null,null,null,{"$f":"IFERROR(INDEX(Table1[Room description],MATCH('2) Room configuration'!D187,Table1[TMS],0)),\"\")","v":""},{"$f":"IFERROR(INDEX(Table1[Bedding],MATCH('2) Room configuration'!D187,Table1[TMS],0)),\"\")","v":""},null,null,{"$f":"IFERROR(INDEX(Table1[Room description],MATCH('2) Room configuration'!I187,Table1[TMS],0)),\"\")","v":""},{"$f":"IFERROR(INDEX(Table1[Bedding],MATCH('2) Room configuration'!I187,Table1[TMS],0)),\"\")","v":""},{"$f":"IFERROR(INDEX(Table1[Normal occupancy],MATCH(Table2[[#This Row],[New Room Type \n(TMS)]],Table1[TMS],0)),\"\")","v":""},null,null,null,null,"",{"$f":"IF(Table2[[#This Row],['# extra beds that fit in the room2]]<>0,LEFT(Table2[[#This Row],[New Room Type \n(TMS)]],6),\"\")","v":""},null,{"$f":"IF(Table2[[#This Row],['# extra beds that fit in the room]]<>Table2[[#This Row],['# extra beds that fit in the room2]],\"yes\",\"No\")","v":"No"}]
[null,{"$f":"IF(LEN(C188)>0,'1) Hotel information'!$C$4,\"\")","v":""},null,null,null,{"$f":"IFERROR(INDEX(Table1[Room description],MATCH('2) Room configuration'!D188,Table1[TMS],0)),\"\")","v":""},{"$f":"IFERROR(INDEX(Table1[Bedding],MATCH('2) Room configuration'!D188,Table1[TMS],0)),\"\")","v":""},null,null,{"$f":"IFERROR(INDEX(Table1[Room description],MATCH('2) Room configuration'!I188,Table1[TMS],0)),\"\")","v":""},{"$f":"IFERROR(INDEX(Table1[Bedding],MATCH('2) Room configuration'!I188,Table1[TMS],0)),\"\")","v":""},{"$f":"IFERROR(INDEX(Table1[Normal occupancy],MATCH(Table2[[#This Row],[New Room Type \n(TMS)]],Table1[TMS],0)),\"\")","v":""},null,null,null,null,"",{"$f":"IF(Table2[[#This Row],['# extra beds that fit in the room2]]<>0,LEFT(Table2[[#This Row],[New Room Type \n(TMS)]],6),\"\")","v":""},null,{"$f":"IF(Table2[[#This Row],['# extra beds that fit in the room]]<>Table2[[#This Row],['# extra beds that fit in the room2]],\"yes\",\"No\")","v":"No"}]
[null,{"$f":"IF(LEN(C189)>0,'1) Hotel information'!$C$4,\"\")","v":""},null,null,null,{"$f":"IFERROR(INDEX(Table1[Room description],MATCH('2) Room configuration'!D189,Table1[TMS],0)),\"\")","v":""},{"$f":"IFERROR(INDEX(Table1[Bedding],MATCH('2) Room configuration'!D189,Table1[TMS],0)),\"\")","v":""},null,null,{"$f":"IFERROR(INDEX(Table1[Room description],MATCH('2) Room configuration'!I189,Table1[TMS],0)),\"\")","v":""},{"$f":"IFERROR(INDEX(Table1[Bedding],MATCH('2) Room configuration'!I189,Table1[TMS],0)),\"\")","v":""},{"$f":"IFERROR(INDEX(Table1[Normal occupancy],MATCH(Table2[[#This Row],[New Room Type \n(TMS)]],Table1[TMS],0)),\"\")","v":""},null,null,null,null,"",{"$f":"IF(Table2[[#This Row],['# extra beds that fit in the room2]]<>0,LEFT(Table2[[#This Row],[New Room Type \n(TMS)]],6),\"\")","v":""},null,{"$f":"IF(Table2[[#This Row],['# extra beds that fit in the room]]<>Table2[[#This Row],['# extra beds that fit in the room2]],\"yes\",\"No\")","v":"No"}]
[null,{"$f":"IF(LEN(C190)>0,'1) Hotel information'!$C$4,\"\")","v":""},null,null,null,{"$f":"IFERROR(INDEX(Table1[Room description],MATCH('2) Room configuration'!D190,Table1[TMS],0)),\"\")","v":""},{"$f":"IFERROR(INDEX(Table1[Bedding],MATCH('2) Room configuration'!D190,Table1[TMS],0)),\"\")","v":""},null,null,{"$f":"IFERROR(INDEX(Table1[Room description],MATCH('2) Room configuration'!I190,Table1[TMS],0)),\"\")","v":""},{"$f":"IFERROR(INDEX(Table1[Bedding],MATCH('2) Room configuration'!I190,Table1[TMS],0)),\"\")","v":""},{"$f":"IFERROR(INDEX(Table1[Normal occupancy],MATCH(Table2[[#This Row],[New Room Type \n(TMS)]],Table1[TMS],0)),\"\")","v":""},null,null,null,null,"",{"$f":"IF(Table2[[#This Row],['# extra beds that fit in the room2]]<>0,LEFT(Table2[[#This Row],[New Room Type \n(TMS)]],6),\"\")","v":""},null,{"$f":"IF(Table2[[#This Row],['# extra beds that fit in the room]]<>Table2[[#This Row],['# extra beds that fit in the room2]],\"yes\",\"No\")","v":"No"}]
[null,{"$f":"IF(LEN(C191)>0,'1) Hotel information'!$C$4,\"\")","v":""},null,null,null,{"$f":"IFERROR(INDEX(Table1[Room description],MATCH('2) Room configuration'!D191,Table1[TMS],0)),\"\")","v":""},{"$f":"IFERROR(INDEX(Table1[Bedding],MATCH('2) Room configuration'!D191,Table1[TMS],0)),\"\")","v":""},null,null,{"$f":"IFERROR(INDEX(Table1[Room description],MATCH('2) Room configuration'!I191,Table1[TMS],0)),\"\")","v":""},{"$f":"IFERROR(INDEX(Table1[Bedding],MATCH('2) Room configuration'!I191,Table1[TMS],0)),\"\")","v":""},{"$f":"IFERROR(INDEX(Table1[Normal occupancy],MATCH(Table2[[#This Row],[New Room Type \n(TMS)]],Table1[TMS],0)),\"\")","v":""},null,null,null,null,"",{"$f":"IF(Table2[[#This Row],['# extra beds that fit in the room2]]<>0,LEFT(Table2[[#This Row],[New Room Type \n(TMS)]],6),\"\")","v":""},null,{"$f":"IF(Table2[[#This Row],['# extra beds that fit in the room]]<>Table2[[#This Row],['# extra beds that fit in the room2]],\"yes\",\"No\")","v":"No"}]
[null,{"$f":"IF(LEN(C192)>0,'1) Hotel information'!$C$4,\"\")","v":""},null,null,null,{"$f":"IFERROR(INDEX(Table1[Room description],MATCH('2) Room configuration'!D192,Table1[TMS],0)),\"\")","v":""},{"$f":"IFERROR(INDEX(Table1[Bedding],MATCH('2) Room configuration'!D192,Table1[TMS],0)),\"\")","v":""},null,null,{"$f":"IFERROR(INDEX(Table1[Room description],MATCH('2) Room configuration'!I192,Table1[TMS],0)),\"\")","v":""},{"$f":"IFERROR(INDEX(Table1[Bedding],MATCH('2) Room configuration'!I192,Table1[TMS],0)),\"\")","v":""},{"$f":"IFERROR(INDEX(Table1[Normal occupancy],MATCH(Table2[[#This Row],[New Room Type \n(TMS)]],Table1[TMS],0)),\"\")","v":""},null,null,null,null,"",{"$f":"IF(Table2[[#This Row],['# extra beds that fit in the room2]]<>0,LEFT(Table2[[#This Row],[New Room Type \n(TMS)]],6),\"\")","v":""},null,{"$f":"IF(Table2[[#This Row],['# extra beds that fit in the room]]<>Table2[[#This Row],['# extra beds that fit in the room2]],\"yes\",\"No\")","v":"No"}]
[null,{"$f":"IF(LEN(C193)>0,'1) Hotel information'!$C$4,\"\")","v":""},null,null,null,{"$f":"IFERROR(INDEX(Table1[Room description],MATCH('2) Room configuration'!D193,Table1[TMS],0)),\"\")","v":""},{"$f":"IFERROR(INDEX(Table1[Bedding],MATCH('2) Room configuration'!D193,Table1[TMS],0)),\"\")","v":""},null,null,{"$f":"IFERROR(INDEX(Table1[Room description],MATCH('2) Room configuration'!I193,Table1[TMS],0)),\"\")","v":""},{"$f":"IFERROR(INDEX(Table1[Bedding],MATCH('2) Room configuration'!I193,Table1[TMS],0)),\"\")","v":""},{"$f":"IFERROR(INDEX(Table1[Normal occupancy],MATCH(Table2[[#This Row],[New Room Type \n(TMS)]],Table1[TMS],0)),\"\")","v":""},null,null,null,null,"",{"$f":"IF(Table2[[#This Row],['# extra beds that fit in the room2]]<>0,LEFT(Table2[[#This Row],[New Room Type \n(TMS)]],6),\"\")","v":""},null,{"$f":"IF(Table2[[#This Row],['# extra beds that fit in the room]]<>Table2[[#This Row],['# extra beds that fit in the room2]],\"yes\",\"No\")","v":"No"}]
[null,{"$f":"IF(LEN(C194)>0,'1) Hotel information'!$C$4,\"\")","v":""},null,null,null,{"$f":"IFERROR(INDEX(Table1[Room description],MATCH('2) Room configuration'!D194,Table1[TMS],0)),\"\")","v":""},{"$f":"IFERROR(INDEX(Table1[Bedding],MATCH('2) Room configuration'!D194,Table1[TMS],0)),\"\")","v":""},null,null,{"$f":"IFERROR(INDEX(Table1[Room description],MATCH('2) Room configuration'!I194,Table1[TMS],0)),\"\")","v":""},{"$f":"IFERROR(INDEX(Table1[Bedding],MATCH('2) Room configuration'!I194,Table1[TMS],0)),\"\")","v":""},{"$f":"IFERROR(INDEX(Table1[Normal occupancy],MATCH(Table2[[#This Row],[New Room Type \n(TMS)]],Table1[TMS],0)),\"\")","v":""},null,null,null,null,"",{"$f":"IF(Table2[[#This Row],['# extra beds that fit in the room2]]<>0,LEFT(Table2[[#This Row],[New Room Type \n(TMS)]],6),\"\")","v":""},null,{"$f":"IF(Table2[[#This Row],['# extra beds that fit in the room]]<>Table2[[#This Row],['# extra beds that fit in the room2]],\"yes\",\"No\")","v":"No"}]
[null,{"$f":"IF(LEN(C195)>0,'1) Hotel information'!$C$4,\"\")","v":""},null,null,null,{"$f":"IFERROR(INDEX(Table1[Room description],MATCH('2) Room configuration'!D195,Table1[TMS],0)),\"\")","v":""},{"$f":"IFERROR(INDEX(Table1[Bedding],MATCH('2) Room configuration'!D195,Table1[TMS],0)),\"\")","v":""},null,null,{"$f":"IFERROR(INDEX(Table1[Room description],MATCH('2) Room configuration'!I195,Table1[TMS],0)),\"\")","v":""},{"$f":"IFERROR(INDEX(Table1[Bedding],MATCH('2) Room configuration'!I195,Table1[TMS],0)),\"\")","v":""},{"$f":"IFERROR(INDEX(Table1[Normal occupancy],MATCH(Table2[[#This Row],[New Room Type \n(TMS)]],Table1[TMS],0)),\"\")","v":""},null,null,null,null,"",{"$f":"IF(Table2[[#This Row],['# extra beds that fit in the room2]]<>0,LEFT(Table2[[#This Row],[New Room Type \n(TMS)]],6),\"\")","v":""},null,{"$f":"IF(Table2[[#This Row],['# extra beds that fit in the room]]<>Table2[[#This Row],['# extra beds that fit in the room2]],\"yes\",\"No\")","v":"No"}]
[null,{"$f":"IF(LEN(C196)>0,'1) Hotel information'!$C$4,\"\")","v":""},null,null,null,{"$f":"IFERROR(INDEX(Table1[Room description],MATCH('2) Room configuration'!D196,Table1[TMS],0)),\"\")","v":""},{"$f":"IFERROR(INDEX(Table1[Bedding],MATCH('2) Room configuration'!D196,Table1[TMS],0)),\"\")","v":""},null,null,{"$f":"IFERROR(INDEX(Table1[Room description],MATCH('2) Room configuration'!I196,Table1[TMS],0)),\"\")","v":""},{"$f":"IFERROR(INDEX(Table1[Bedding],MATCH('2) Room configuration'!I196,Table1[TMS],0)),\"\")","v":""},{"$f":"IFERROR(INDEX(Table1[Normal occupancy],MATCH(Table2[[#This Row],[New Room Type \n(TMS)]],Table1[TMS],0)),\"\")","v":""},null,null,null,null,"",{"$f":"IF(Table2[[#This Row],['# extra beds that fit in the room2]]<>0,LEFT(Table2[[#This Row],[New Room Type \n(TMS)]],6),\"\")","v":""},null,{"$f":"IF(Table2[[#This Row],['# extra beds that fit in the room]]<>Table2[[#This Row],['# extra beds that fit in the room2]],\"yes\",\"No\")","v":"No"}]
[null,{"$f":"IF(LEN(C197)>0,'1) Hotel information'!$C$4,\"\")","v":""},null,null,null,{"$f":"IFERROR(INDEX(Table1[Room description],MATCH('2) Room configuration'!D197,Table1[TMS],0)),\"\")","v":""},{"$f":"IFERROR(INDEX(Table1[Bedding],MATCH('2) Room configuration'!D197,Table1[TMS],0)),\"\")","v":""},null,null,{"$f":"IFERROR(INDEX(Table1[Room description],MATCH('2) Room configuration'!I197,Table1[TMS],0)),\"\")","v":""},{"$f":"IFERROR(INDEX(Table1[Bedding],MATCH('2) Room configuration'!I197,Table1[TMS],0)),\"\")","v":""},{"$f":"IFERROR(INDEX(Table1[Normal occupancy],MATCH(Table2[[#This Row],[New Room Type \n(TMS)]],Table1[TMS],0)),\"\")","v":""},null,null,null,null,"",{"$f":"IF(Table2[[#This Row],['# extra beds that fit in the room2]]<>0,LEFT(Table2[[#This Row],[New Room Type \n(TMS)]],6),\"\")","v":""},null,{"$f":"IF(Table2[[#This Row],['# extra beds that fit in the room]]<>Table2[[#This Row],['# extra beds that fit in the room2]],\"yes\",\"No\")","v":"No"}]
[null,{"$f":"IF(LEN(C198)>0,'1) Hotel information'!$C$4,\"\")","v":""},null,null,null,{"$f":"IFERROR(INDEX(Table1[Room description],MATCH('2) Room configuration'!D198,Table1[TMS],0)),\"\")","v":""},{"$f":"IFERROR(INDEX(Table1[Bedding],MATCH('2) Room configuration'!D198,Table1[TMS],0)),\"\")","v":""},null,null,{"$f":"IFERROR(INDEX(Table1[Room description],MATCH('2) Room configuration'!I198,Table1[TMS],0)),\"\")","v":""},{"$f":"IFERROR(INDEX(Table1[Bedding],MATCH('2) Room configuration'!I198,Table1[TMS],0)),\"\")","v":""},{"$f":"IFERROR(INDEX(Table1[Normal occupancy],MATCH(Table2[[#This Row],[New Room Type \n(TMS)]],Table1[TMS],0)),\"\")","v":""},null,null,null,null,"",{"$f":"IF(Table2[[#This Row],['# extra beds that fit in the room2]]<>0,LEFT(Table2[[#This Row],[New Room Type \n(TMS)]],6),\"\")","v":""},null,{"$f":"IF(Table2[[#This Row],['# extra beds that fit in the room]]<>Table2[[#This Row],['# extra beds that fit in the room2]],\"yes\",\"No\")","v":"No"}]
[null,{"$f":"IF(LEN(C199)>0,'1) Hotel information'!$C$4,\"\")","v":""},null,null,null,{"$f":"IFERROR(INDEX(Table1[Room description],MATCH('2) Room configuration'!D199,Table1[TMS],0)),\"\")","v":""},{"$f":"IFERROR(INDEX(Table1[Bedding],MATCH('2) Room configuration'!D199,Table1[TMS],0)),\"\")","v":""},null,null,{"$f":"IFERROR(INDEX(Table1[Room description],MATCH('2) Room configuration'!I199,Table1[TMS],0)),\"\")","v":""},{"$f":"IFERROR(INDEX(Table1[Bedding],MATCH('2) Room configuration'!I199,Table1[TMS],0)),\"\")","v":""},{"$f":"IFERROR(INDEX(Table1[Normal occupancy],MATCH(Table2[[#This Row],[New Room Type \n(TMS)]],Table1[TMS],0)),\"\")","v":""},null,null,null,null,"",{"$f":"IF(Table2[[#This Row],['# extra beds that fit in the room2]]<>0,LEFT(Table2[[#This Row],[New Room Type \n(TMS)]],6),\"\")","v":""},null,{"$f":"IF(Table2[[#This Row],['# extra beds that fit in the room]]<>Table2[[#This Row],['# extra beds that fit in the room2]],\"yes\",\"No\")","v":"No"}]
[null,{"$f":"IF(LEN(C200)>0,'1) Hotel information'!$C$4,\"\")","v":""},null,null,null,{"$f":"IFERROR(INDEX(Table1[Room description],MATCH('2) Room configuration'!D200,Table1[TMS],0)),\"\")","v":""},{"$f":"IFERROR(INDEX(Table1[Bedding],MATCH('2) Room configuration'!D200,Table1[TMS],0)),\"\")","v":""},null,null,{"$f":"IFERROR(INDEX(Table1[Room description],MATCH('2) Room configuration'!I200,Table1[TMS],0)),\"\")","v":""},{"$f":"IFERROR(INDEX(Table1[Bedding],MATCH('2) Room configuration'!I200,Table1[TMS],0)),\"\")","v":""},{"$f":"IFERROR(INDEX(Table1[Normal occupancy],MATCH(Table2[[#This Row],[New Room Type \n(TMS)]],Table1[TMS],0)),\"\")","v":""},null,null,null,null,"",{"$f":"IF(Table2[[#This Row],['# extra beds that fit in the room2]]<>0,LEFT(Table2[[#This Row],[New Room Type \n(TMS)]],6),\"\")","v":""},null,{"$f":"IF(Table2[[#This Row],['# extra beds that fit in the room]]<>Table2[[#This Row],['# extra beds that fit in the room2]],\"yes\",\"No\")","v":"No"}]
[null,{"$f":"IF(LEN(C201)>0,'1) Hotel information'!$C$4,\"\")","v":""},null,null,null,{"$f":"IFERROR(INDEX(Table1[Room description],MATCH('2) Room configuration'!D201,Table1[TMS],0)),\"\")","v":""},{"$f":"IFERROR(INDEX(Table1[Bedding],MATCH('2) Room configuration'!D201,Table1[TMS],0)),\"\")","v":""},null,null,{"$f":"IFERROR(INDEX(Table1[Room description],MATCH('2) Room configuration'!I201,Table1[TMS],0)),\"\")","v":""},{"$f":"IFERROR(INDEX(Table1[Bedding],MATCH('2) Room configuration'!I201,Table1[TMS],0)),\"\")","v":""},{"$f":"IFERROR(INDEX(Table1[Normal occupancy],MATCH(Table2[[#This Row],[New Room Type \n(TMS)]],Table1[TMS],0)),\"\")","v":""},null,null,null,null,"",{"$f":"IF(Table2[[#This Row],['# extra beds that fit in the room2]]<>0,LEFT(Table2[[#This Row],[New Room Type \n(TMS)]],6),\"\")","v":""},null,{"$f":"IF(Table2[[#This Row],['# extra beds that fit in the room]]<>Table2[[#This Row],['# extra beds that fit in the room2]],\"yes\",\"No\")","v":"No"}]
[null,{"$f":"IF(LEN(C202)>0,'1) Hotel information'!$C$4,\"\")","v":""},null,null,null,{"$f":"IFERROR(INDEX(Table1[Room description],MATCH('2) Room configuration'!D202,Table1[TMS],0)),\"\")","v":""},{"$f":"IFERROR(INDEX(Table1[Bedding],MATCH('2) Room configuration'!D202,Table1[TMS],0)),\"\")","v":""},null,null,{"$f":"IFERROR(INDEX(Table1[Room description],MATCH('2) Room configuration'!I202,Table1[TMS],0)),\"\")","v":""},{"$f":"IFERROR(INDEX(Table1[Bedding],MATCH('2) Room configuration'!I202,Table1[TMS],0)),\"\")","v":""},{"$f":"IFERROR(INDEX(Table1[Normal occupancy],MATCH(Table2[[#This Row],[New Room Type \n(TMS)]],Table1[TMS],0)),\"\")","v":""},null,null,null,null,"",{"$f":"IF(Table2[[#This Row],['# extra beds that fit in the room2]]<>0,LEFT(Table2[[#This Row],[New Room Type \n(TMS)]],6),\"\")","v":""},null,{"$f":"IF(Table2[[#This Row],['# extra beds that fit in the room]]<>Table2[[#This Row],['# extra beds that fit in the room2]],\"yes\",\"No\")","v":"No"}]
[null,{"$f":"IF(LEN(C203)>0,'1) Hotel information'!$C$4,\"\")","v":""},null,null,null,{"$f":"IFERROR(INDEX(Table1[Room description],MATCH('2) Room configuration'!D203,Table1[TMS],0)),\"\")","v":""},{"$f":"IFERROR(INDEX(Table1[Bedding],MATCH('2) Room configuration'!D203,Table1[TMS],0)),\"\")","v":""},null,null,{"$f":"IFERROR(INDEX(Table1[Room description],MATCH('2) Room configuration'!I203,Table1[TMS],0)),\"\")","v":""},{"$f":"IFERROR(INDEX(Table1[Bedding],MATCH('2) Room configuration'!I203,Table1[TMS],0)),\"\")","v":""},{"$f":"IFERROR(INDEX(Table1[Normal occupancy],MATCH(Table2[[#This Row],[New Room Type \n(TMS)]],Table1[TMS],0)),\"\")","v":""},null,null,null,null,"",{"$f":"IF(Table2[[#This Row],['# extra beds that fit in the room2]]<>0,LEFT(Table2[[#This Row],[New Room Type \n(TMS)]],6),\"\")","v":""},null,{"$f":"IF(Table2[[#This Row],['# extra beds that fit in the room]]<>Table2[[#This Row],['# extra beds that fit in the room2]],\"yes\",\"No\")","v":"No"}]
[null,{"$f":"IF(LEN(C204)>0,'1) Hotel information'!$C$4,\"\")","v":""},null,null,null,{"$f":"IFERROR(INDEX(Table1[Room description],MATCH('2) Room configuration'!D204,Table1[TMS],0)),\"\")","v":""},{"$f":"IFERROR(INDEX(Table1[Bedding],MATCH('2) Room configuration'!D204,Table1[TMS],0)),\"\")","v":""},null,null,{"$f":"IFERROR(INDEX(Table1[Room description],MATCH('2) Room configuration'!I204,Table1[TMS],0)),\"\")","v":""},{"$f":"IFERROR(INDEX(Table1[Bedding],MATCH('2) Room configuration'!I204,Table1[TMS],0)),\"\")","v":""},{"$f":"IFERROR(INDEX(Table1[Normal occupancy],MATCH(Table2[[#This Row],[New Room Type \n(TMS)]],Table1[TMS],0)),\"\")","v":""},null,null,null,null,{"$f":"IF(LEN(C204)>0,IF(D204=I204,\"No\",\"Yes\"),\"\")","v":""},{"$f":"IF(Table2[[#This Row],['# extra beds that fit in the room2]]<>0,LEFT(Table2[[#This Row],[New Room Type \n(TMS)]],6),\"\")","v":""},null,{"$f":"IF(Table2[[#This Row],['# extra beds that fit in the room]]<>Table2[[#This Row],['# extra beds that fit in the room2]],\"yes\",\"No\")","v":"No"}]
[null,{"$f":"IF(LEN(C205)>0,'1) Hotel information'!$C$4,\"\")","v":""},null,null,null,{"$f":"IFERROR(INDEX(Table1[Room description],MATCH('2) Room configuration'!D205,Table1[TMS],0)),\"\")","v":""},{"$f":"IFERROR(INDEX(Table1[Bedding],MATCH('2) Room configuration'!D205,Table1[TMS],0)),\"\")","v":""},null,null,{"$f":"IFERROR(INDEX(Table1[Room description],MATCH('2) Room configuration'!I205,Table1[TMS],0)),\"\")","v":""},{"$f":"IFERROR(INDEX(Table1[Bedding],MATCH('2) Room configuration'!I205,Table1[TMS],0)),\"\")","v":""},{"$f":"IFERROR(INDEX(Table1[Normal occupancy],MATCH(Table2[[#This Row],[New Room Type \n(TMS)]],Table1[TMS],0)),\"\")","v":""},null,null,null,null,"",{"$f":"IF(Table2[[#This Row],['# extra beds that fit in the room2]]<>0,LEFT(Table2[[#This Row],[New Room Type \n(TMS)]],6),\"\")","v":""},null,{"$f":"IF(Table2[[#This Row],['# extra beds that fit in the room]]<>Table2[[#This Row],['# extra beds that fit in the room2]],\"yes\",\"No\")","v":"No"}]
[null,{"$f":"IF(LEN(C206)>0,'1) Hotel information'!$C$4,\"\")","v":""},null,null,null,{"$f":"IFERROR(INDEX(Table1[Room description],MATCH('2) Room configuration'!D206,Table1[TMS],0)),\"\")","v":""},{"$f":"IFERROR(INDEX(Table1[Bedding],MATCH('2) Room configuration'!D206,Table1[TMS],0)),\"\")","v":""},null,null,{"$f":"IFERROR(INDEX(Table1[Room description],MATCH('2) Room configuration'!I206,Table1[TMS],0)),\"\")","v":""},{"$f":"IFERROR(INDEX(Table1[Bedding],MATCH('2) Room configuration'!I206,Table1[TMS],0)),\"\")","v":""},{"$f":"IFERROR(INDEX(Table1[Normal occupancy],MATCH(Table2[[#This Row],[New Room Type \n(TMS)]],Table1[TMS],0)),\"\")","v":""},null,null,null,null,"",{"$f":"IF(Table2[[#This Row],['# extra beds that fit in the room2]]<>0,LEFT(Table2[[#This Row],[New Room Type \n(TMS)]],6),\"\")","v":""},null,{"$f":"IF(Table2[[#This Row],['# extra beds that fit in the room]]<>Table2[[#This Row],['# extra beds that fit in the room2]],\"yes\",\"No\")","v":"No"}]
[null,{"$f":"IF(LEN(C207)>0,'1) Hotel information'!$C$4,\"\")","v":""},null,null,null,{"$f":"IFERROR(INDEX(Table1[Room description],MATCH('2) Room configuration'!D207,Table1[TMS],0)),\"\")","v":""},{"$f":"IFERROR(INDEX(Table1[Bedding],MATCH('2) Room configuration'!D207,Table1[TMS],0)),\"\")","v":""},null,null,{"$f":"IFERROR(INDEX(Table1[Room description],MATCH('2) Room configuration'!I207,Table1[TMS],0)),\"\")","v":""},{"$f":"IFERROR(INDEX(Table1[Bedding],MATCH('2) Room configuration'!I207,Table1[TMS],0)),\"\")","v":""},{"$f":"IFERROR(INDEX(Table1[Normal occupancy],MATCH(Table2[[#This Row],[New Room Type \n(TMS)]],Table1[TMS],0)),\"\")","v":""},null,null,null,null,"",{"$f":"IF(Table2[[#This Row],['# extra beds that fit in the room2]]<>0,LEFT(Table2[[#This Row],[New Room Type \n(TMS)]],6),\"\")","v":""},null,{"$f":"IF(Table2[[#This Row],['# extra beds that fit in the room]]<>Table2[[#This Row],['# extra beds that fit in the room2]],\"yes\",\"No\")","v":"No"}]
[null,{"$f":"IF(LEN(C208)>0,'1) Hotel information'!$C$4,\"\")","v":""},null,null,null,{"$f":"IFERROR(INDEX(Table1[Room description],MATCH('2) Room configuration'!D208,Table1[TMS],0)),\"\")","v":""},{"$f":"IFERROR(INDEX(Table1[Bedding],MATCH('2) Room configuration'!D208,Table1[TMS],0)),\"\")","v":""},null,null,{"$f":"IFERROR(INDEX(Table1[Room description],MATCH('2) Room configuration'!I208,Table1[TMS],0)),\"\")","v":""},{"$f":"IFERROR(INDEX(Table1[Bedding],MATCH('2) Room configuration'!I208,Table1[TMS],0)),\"\")","v":""},{"$f":"IFERROR(INDEX(Table1[Normal occupancy],MATCH(Table2[[#This Row],[New Room Type \n(TMS)]],Table1[TMS],0)),\"\")","v":""},null,null,null,null,"",{"$f":"IF(Table2[[#This Row],['# extra beds that fit in the room2]]<>0,LEFT(Table2[[#This Row],[New Room Type \n(TMS)]],6),\"\")","v":""},null,{"$f":"IF(Table2[[#This Row],['# extra beds that fit in the room]]<>Table2[[#This Row],['# extra beds that fit in the room2]],\"yes\",\"No\")","v":"No"}]
[null,{"$f":"IF(LEN(C209)>0,'1) Hotel information'!$C$4,\"\")","v":""},null,null,null,{"$f":"IFERROR(INDEX(Table1[Room description],MATCH('2) Room configuration'!D209,Table1[TMS],0)),\"\")","v":""},{"$f":"IFERROR(INDEX(Table1[Bedding],MATCH('2) Room configuration'!D209,Table1[TMS],0)),\"\")","v":""},null,null,{"$f":"IFERROR(INDEX(Table1[Room description],MATCH('2) Room configuration'!I209,Table1[TMS],0)),\"\")","v":""},{"$f":"IFERROR(INDEX(Table1[Bedding],MATCH('2) Room configuration'!I209,Table1[TMS],0)),\"\")","v":""},{"$f":"IFERROR(INDEX(Table1[Normal occupancy],MATCH(Table2[[#This Row],[New Room Type \n(TMS)]],Table1[TMS],0)),\"\")","v":""},null,null,null,null,"",{"$f":"IF(Table2[[#This Row],['# extra beds that fit in the room2]]<>0,LEFT(Table2[[#This Row],[New Room Type \n(TMS)]],6),\"\")","v":""},null,{"$f":"IF(Table2[[#This Row],['# extra beds that fit in the room]]<>Table2[[#This Row],['# extra beds that fit in the room2]],\"yes\",\"No\")","v":"No"}]
[null,{"$f":"IF(LEN(C210)>0,'1) Hotel information'!$C$4,\"\")","v":""},null,null,null,{"$f":"IFERROR(INDEX(Table1[Room description],MATCH('2) Room configuration'!D210,Table1[TMS],0)),\"\")","v":""},{"$f":"IFERROR(INDEX(Table1[Bedding],MATCH('2) Room configuration'!D210,Table1[TMS],0)),\"\")","v":""},null,null,{"$f":"IFERROR(INDEX(Table1[Room description],MATCH('2) Room configuration'!I210,Table1[TMS],0)),\"\")","v":""},{"$f":"IFERROR(INDEX(Table1[Bedding],MATCH('2) Room configuration'!I210,Table1[TMS],0)),\"\")","v":""},{"$f":"IFERROR(INDEX(Table1[Normal occupancy],MATCH(Table2[[#This Row],[New Room Type \n(TMS)]],Table1[TMS],0)),\"\")","v":""},null,null,null,null,"",{"$f":"IF(Table2[[#This Row],['# extra beds that fit in the room2]]<>0,LEFT(Table2[[#This Row],[New Room Type \n(TMS)]],6),\"\")","v":""},null,{"$f":"IF(Table2[[#This Row],['# extra beds that fit in the room]]<>Table2[[#This Row],['# extra beds that fit in the room2]],\"yes\",\"No\")","v":"No"}]
[null,{"$f":"IF(LEN(C211)>0,'1) Hotel information'!$C$4,\"\")","v":""},null,null,null,{"$f":"IFERROR(INDEX(Table1[Room description],MATCH('2) Room configuration'!D211,Table1[TMS],0)),\"\")","v":""},{"$f":"IFERROR(INDEX(Table1[Bedding],MATCH('2) Room configuration'!D211,Table1[TMS],0)),\"\")","v":""},null,null,{"$f":"IFERROR(INDEX(Table1[Room description],MATCH('2) Room configuration'!I211,Table1[TMS],0)),\"\")","v":""},{"$f":"IFERROR(INDEX(Table1[Bedding],MATCH('2) Room configuration'!I211,Table1[TMS],0)),\"\")","v":""},{"$f":"IFERROR(INDEX(Table1[Normal occupancy],MATCH(Table2[[#This Row],[New Room Type \n(TMS)]],Table1[TMS],0)),\"\")","v":""},null,null,null,null,"",{"$f":"IF(Table2[[#This Row],['# extra beds that fit in the room2]]<>0,LEFT(Table2[[#This Row],[New Room Type \n(TMS)]],6),\"\")","v":""},null,{"$f":"IF(Table2[[#This Row],['# extra beds that fit in the room]]<>Table2[[#This Row],['# extra beds that fit in the room2]],\"yes\",\"No\")","v":"No"}]
[null,{"$f":"IF(LEN(C212)>0,'1) Hotel information'!$C$4,\"\")","v":""},null,null,null,{"$f":"IFERROR(INDEX(Table1[Room description],MATCH('2) Room configuration'!D212,Table1[TMS],0)),\"\")","v":""},{"$f":"IFERROR(INDEX(Table1[Bedding],MATCH('2) Room configuration'!D212,Table1[TMS],0)),\"\")","v":""},null,null,{"$f":"IFERROR(INDEX(Table1[Room description],MATCH('2) Room configuration'!I212,Table1[TMS],0)),\"\")","v":""},{"$f":"IFERROR(INDEX(Table1[Bedding],MATCH('2) Room configuration'!I212,Table1[TMS],0)),\"\")","v":""},{"$f":"IFERROR(INDEX(Table1[Normal occupancy],MATCH(Table2[[#This Row],[New Room Type \n(TMS)]],Table1[TMS],0)),\"\")","v":""},null,null,null,null,"",{"$f":"IF(Table2[[#This Row],['# extra beds that fit in the room2]]<>0,LEFT(Table2[[#This Row],[New Room Type \n(TMS)]],6),\"\")","v":""},null,{"$f":"IF(Table2[[#This Row],['# extra beds that fit in the room]]<>Table2[[#This Row],['# extra beds that fit in the room2]],\"yes\",\"No\")","v":"No"}]
[null,{"$f":"IF(LEN(C213)>0,'1) Hotel information'!$C$4,\"\")","v":""},null,null,null,{"$f":"IFERROR(INDEX(Table1[Room description],MATCH('2) Room configuration'!D213,Table1[TMS],0)),\"\")","v":""},{"$f":"IFERROR(INDEX(Table1[Bedding],MATCH('2) Room configuration'!D213,Table1[TMS],0)),\"\")","v":""},null,null,{"$f":"IFERROR(INDEX(Table1[Room description],MATCH('2) Room configuration'!I213,Table1[TMS],0)),\"\")","v":""},{"$f":"IFERROR(INDEX(Table1[Bedding],MATCH('2) Room configuration'!I213,Table1[TMS],0)),\"\")","v":""},{"$f":"IFERROR(INDEX(Table1[Normal occupancy],MATCH(Table2[[#This Row],[New Room Type \n(TMS)]],Table1[TMS],0)),\"\")","v":""},null,null,null,null,"",{"$f":"IF(Table2[[#This Row],['# extra beds that fit in the room2]]<>0,LEFT(Table2[[#This Row],[New Room Type \n(TMS)]],6),\"\")","v":""},null,{"$f":"IF(Table2[[#This Row],['# extra beds that fit in the room]]<>Table2[[#This Row],['# extra beds that fit in the room2]],\"yes\",\"No\")","v":"No"}]
[null,{"$f":"IF(LEN(C214)>0,'1) Hotel information'!$C$4,\"\")","v":""},null,null,null,{"$f":"IFERROR(INDEX(Table1[Room description],MATCH('2) Room configuration'!D214,Table1[TMS],0)),\"\")","v":""},{"$f":"IFERROR(INDEX(Table1[Bedding],MATCH('2) Room configuration'!D214,Table1[TMS],0)),\"\")","v":""},null,null,{"$f":"IFERROR(INDEX(Table1[Room description],MATCH('2) Room configuration'!I214,Table1[TMS],0)),\"\")","v":""},{"$f":"IFERROR(INDEX(Table1[Bedding],MATCH('2) Room configuration'!I214,Table1[TMS],0)),\"\")","v":""},{"$f":"IFERROR(INDEX(Table1[Normal occupancy],MATCH(Table2[[#This Row],[New Room Type \n(TMS)]],Table1[TMS],0)),\"\")","v":""},null,null,null,null,"",{"$f":"IF(Table2[[#This Row],['# extra beds that fit in the room2]]<>0,LEFT(Table2[[#This Row],[New Room Type \n(TMS)]],6),\"\")","v":""},null,{"$f":"IF(Table2[[#This Row],['# extra beds that fit in the room]]<>Table2[[#This Row],['# extra beds that fit in the room2]],\"yes\",\"No\")","v":"No"}]
[null,{"$f":"IF(LEN(C215)>0,'1) Hotel information'!$C$4,\"\")","v":""},null,null,null,{"$f":"IFERROR(INDEX(Table1[Room description],MATCH('2) Room configuration'!D215,Table1[TMS],0)),\"\")","v":""},{"$f":"IFERROR(INDEX(Table1[Bedding],MATCH('2) Room configuration'!D215,Table1[TMS],0)),\"\")","v":""},null,null,{"$f":"IFERROR(INDEX(Table1[Room description],MATCH('2) Room configuration'!I215,Table1[TMS],0)),\"\")","v":""},{"$f":"IFERROR(INDEX(Table1[Bedding],MATCH('2) Room configuration'!I215,Table1[TMS],0)),\"\")","v":""},{"$f":"IFERROR(INDEX(Table1[Normal occupancy],MATCH(Table2[[#This Row],[New Room Type \n(TMS)]],Table1[TMS],0)),\"\")","v":""},null,null,null,null,"",{"$f":"IF(Table2[[#This Row],['# extra beds that fit in the room2]]<>0,LEFT(Table2[[#This Row],[New Room Type \n(TMS)]],6),\"\")","v":""},null,{"$f":"IF(Table2[[#This Row],['# extra beds that fit in the room]]<>Table2[[#This Row],['# extra beds that fit in the room2]],\"yes\",\"No\")","v":"No"}]
[null,{"$f":"IF(LEN(C216)>0,'1) Hotel information'!$C$4,\"\")","v":""},null,null,null,{"$f":"IFERROR(INDEX(Table1[Room description],MATCH('2) Room configuration'!D216,Table1[TMS],0)),\"\")","v":""},{"$f":"IFERROR(INDEX(Table1[Bedding],MATCH('2) Room configuration'!D216,Table1[TMS],0)),\"\")","v":""},null,null,{"$f":"IFERROR(INDEX(Table1[Room description],MATCH('2) Room configuration'!I216,Table1[TMS],0)),\"\")","v":""},{"$f":"IFERROR(INDEX(Table1[Bedding],MATCH('2) Room configuration'!I216,Table1[TMS],0)),\"\")","v":""},{"$f":"IFERROR(INDEX(Table1[Normal occupancy],MATCH(Table2[[#This Row],[New Room Type \n(TMS)]],Table1[TMS],0)),\"\")","v":""},null,null,null,null,"",{"$f":"IF(Table2[[#This Row],['# extra beds that fit in the room2]]<>0,LEFT(Table2[[#This Row],[New Room Type \n(TMS)]],6),\"\")","v":""},null,{"$f":"IF(Table2[[#This Row],['# extra beds that fit in the room]]<>Table2[[#This Row],['# extra beds that fit in the room2]],\"yes\",\"No\")","v":"No"}]
[null,{"$f":"IF(LEN(C217)>0,'1) Hotel information'!$C$4,\"\")","v":""},null,null,null,{"$f":"IFERROR(INDEX(Table1[Room description],MATCH('2) Room configuration'!D217,Table1[TMS],0)),\"\")","v":""},{"$f":"IFERROR(INDEX(Table1[Bedding],MATCH('2) Room configuration'!D217,Table1[TMS],0)),\"\")","v":""},null,null,{"$f":"IFERROR(INDEX(Table1[Room description],MATCH('2) Room configuration'!I217,Table1[TMS],0)),\"\")","v":""},{"$f":"IFERROR(INDEX(Table1[Bedding],MATCH('2) Room configuration'!I217,Table1[TMS],0)),\"\")","v":""},{"$f":"IFERROR(INDEX(Table1[Normal occupancy],MATCH(Table2[[#This Row],[New Room Type \n(TMS)]],Table1[TMS],0)),\"\")","v":""},null,null,null,null,"",{"$f":"IF(Table2[[#This Row],['# extra beds that fit in the room2]]<>0,LEFT(Table2[[#This Row],[New Room Type \n(TMS)]],6),\"\")","v":""},null,{"$f":"IF(Table2[[#This Row],['# extra beds that fit in the room]]<>Table2[[#This Row],['# extra beds that fit in the room2]],\"yes\",\"No\")","v":"No"}]
[null,{"$f":"IF(LEN(C218)>0,'1) Hotel information'!$C$4,\"\")","v":""},null,null,null,{"$f":"IFERROR(INDEX(Table1[Room description],MATCH('2) Room configuration'!D218,Table1[TMS],0)),\"\")","v":""},{"$f":"IFERROR(INDEX(Table1[Bedding],MATCH('2) Room configuration'!D218,Table1[TMS],0)),\"\")","v":""},null,null,{"$f":"IFERROR(INDEX(Table1[Room description],MATCH('2) Room configuration'!I218,Table1[TMS],0)),\"\")","v":""},{"$f":"IFERROR(INDEX(Table1[Bedding],MATCH('2) Room configuration'!I218,Table1[TMS],0)),\"\")","v":""},{"$f":"IFERROR(INDEX(Table1[Normal occupancy],MATCH(Table2[[#This Row],[New Room Type \n(TMS)]],Table1[TMS],0)),\"\")","v":""},null,null,null,null,"",{"$f":"IF(Table2[[#This Row],['# extra beds that fit in the room2]]<>0,LEFT(Table2[[#This Row],[New Room Type \n(TMS)]],6),\"\")","v":""},null,{"$f":"IF(Table2[[#This Row],['# extra beds that fit in the room]]<>Table2[[#This Row],['# extra beds that fit in the room2]],\"yes\",\"No\")","v":"No"}]
[null,{"$f":"IF(LEN(C219)>0,'1) Hotel information'!$C$4,\"\")","v":""},null,null,null,{"$f":"IFERROR(INDEX(Table1[Room description],MATCH('2) Room configuration'!D219,Table1[TMS],0)),\"\")","v":""},{"$f":"IFERROR(INDEX(Table1[Bedding],MATCH('2) Room configuration'!D219,Table1[TMS],0)),\"\")","v":""},null,null,{"$f":"IFERROR(INDEX(Table1[Room description],MATCH('2) Room configuration'!I219,Table1[TMS],0)),\"\")","v":""},{"$f":"IFERROR(INDEX(Table1[Bedding],MATCH('2) Room configuration'!I219,Table1[TMS],0)),\"\")","v":""},{"$f":"IFERROR(INDEX(Table1[Normal occupancy],MATCH(Table2[[#This Row],[New Room Type \n(TMS)]],Table1[TMS],0)),\"\")","v":""},null,null,null,null,"",{"$f":"IF(Table2[[#This Row],['# extra beds that fit in the room2]]<>0,LEFT(Table2[[#This Row],[New Room Type \n(TMS)]],6),\"\")","v":""},null,{"$f":"IF(Table2[[#This Row],['# extra beds that fit in the room]]<>Table2[[#This Row],['# extra beds that fit in the room2]],\"yes\",\"No\")","v":"No"}]
[null,{"$f":"IF(LEN(C220)>0,'1) Hotel information'!$C$4,\"\")","v":""},null,null,null,{"$f":"IFERROR(INDEX(Table1[Room description],MATCH('2) Room configuration'!D220,Table1[TMS],0)),\"\")","v":""},{"$f":"IFERROR(INDEX(Table1[Bedding],MATCH('2) Room configuration'!D220,Table1[TMS],0)),\"\")","v":""},null,null,{"$f":"IFERROR(INDEX(Table1[Room description],MATCH('2) Room configuration'!I220,Table1[TMS],0)),\"\")","v":""},{"$f":"IFERROR(INDEX(Table1[Bedding],MATCH('2) Room configuration'!I220,Table1[TMS],0)),\"\")","v":""},{"$f":"IFERROR(INDEX(Table1[Normal occupancy],MATCH(Table2[[#This Row],[New Room Type \n(TMS)]],Table1[TMS],0)),\"\")","v":""},null,null,null,null,"",{"$f":"IF(Table2[[#This Row],['# extra beds that fit in the room2]]<>0,LEFT(Table2[[#This Row],[New Room Type \n(TMS)]],6),\"\")","v":""},null,{"$f":"IF(Table2[[#This Row],['# extra beds that fit in the room]]<>Table2[[#This Row],['# extra beds that fit in the room2]],\"yes\",\"No\")","v":"No"}]
[null,{"$f":"IF(LEN(C221)>0,'1) Hotel information'!$C$4,\"\")","v":""},null,null,null,{"$f":"IFERROR(INDEX(Table1[Room description],MATCH('2) Room configuration'!D221,Table1[TMS],0)),\"\")","v":""},{"$f":"IFERROR(INDEX(Table1[Bedding],MATCH('2) Room configuration'!D221,Table1[TMS],0)),\"\")","v":""},null,null,{"$f":"IFERROR(INDEX(Table1[Room description],MATCH('2) Room configuration'!I221,Table1[TMS],0)),\"\")","v":""},{"$f":"IFERROR(INDEX(Table1[Bedding],MATCH('2) Room configuration'!I221,Table1[TMS],0)),\"\")","v":""},{"$f":"IFERROR(INDEX(Table1[Normal occupancy],MATCH(Table2[[#This Row],[New Room Type \n(TMS)]],Table1[TMS],0)),\"\")","v":""},null,null,null,null,"",{"$f":"IF(Table2[[#This Row],['# extra beds that fit in the room2]]<>0,LEFT(Table2[[#This Row],[New Room Type \n(TMS)]],6),\"\")","v":""},null,{"$f":"IF(Table2[[#This Row],['# extra beds that fit in the room]]<>Table2[[#This Row],['# extra beds that fit in the room2]],\"yes\",\"No\")","v":"No"}]
[null,{"$f":"IF(LEN(C222)>0,'1) Hotel information'!$C$4,\"\")","v":""},null,null,null,{"$f":"IFERROR(INDEX(Table1[Room description],MATCH('2) Room configuration'!D222,Table1[TMS],0)),\"\")","v":""},{"$f":"IFERROR(INDEX(Table1[Bedding],MATCH('2) Room configuration'!D222,Table1[TMS],0)),\"\")","v":""},null,null,{"$f":"IFERROR(INDEX(Table1[Room description],MATCH('2) Room configuration'!I222,Table1[TMS],0)),\"\")","v":""},{"$f":"IFERROR(INDEX(Table1[Bedding],MATCH('2) Room configuration'!I222,Table1[TMS],0)),\"\")","v":""},{"$f":"IFERROR(INDEX(Table1[Normal occupancy],MATCH(Table2[[#This Row],[New Room Type \n(TMS)]],Table1[TMS],0)),\"\")","v":""},null,null,null,null,"",{"$f":"IF(Table2[[#This Row],['# extra beds that fit in the room2]]<>0,LEFT(Table2[[#This Row],[New Room Type \n(TMS)]],6),\"\")","v":""},null,{"$f":"IF(Table2[[#This Row],['# extra beds that fit in the room]]<>Table2[[#This Row],['# extra beds that fit in the room2]],\"yes\",\"No\")","v":"No"}]
[null,{"$f":"IF(LEN(C223)>0,'1) Hotel information'!$C$4,\"\")","v":""},null,null,null,{"$f":"IFERROR(INDEX(Table1[Room description],MATCH('2) Room configuration'!D223,Table1[TMS],0)),\"\")","v":""},{"$f":"IFERROR(INDEX(Table1[Bedding],MATCH('2) Room configuration'!D223,Table1[TMS],0)),\"\")","v":""},null,null,{"$f":"IFERROR(INDEX(Table1[Room description],MATCH('2) Room configuration'!I223,Table1[TMS],0)),\"\")","v":""},{"$f":"IFERROR(INDEX(Table1[Bedding],MATCH('2) Room configuration'!I223,Table1[TMS],0)),\"\")","v":""},{"$f":"IFERROR(INDEX(Table1[Normal occupancy],MATCH(Table2[[#This Row],[New Room Type \n(TMS)]],Table1[TMS],0)),\"\")","v":""},null,null,null,null,"",{"$f":"IF(Table2[[#This Row],['# extra beds that fit in the room2]]<>0,LEFT(Table2[[#This Row],[New Room Type \n(TMS)]],6),\"\")","v":""},null,{"$f":"IF(Table2[[#This Row],['# extra beds that fit in the room]]<>Table2[[#This Row],['# extra beds that fit in the room2]],\"yes\",\"No\")","v":"No"}]
[null,{"$f":"IF(LEN(C224)>0,'1) Hotel information'!$C$4,\"\")","v":""},null,null,null,{"$f":"IFERROR(INDEX(Table1[Room description],MATCH('2) Room configuration'!D224,Table1[TMS],0)),\"\")","v":""},{"$f":"IFERROR(INDEX(Table1[Bedding],MATCH('2) Room configuration'!D224,Table1[TMS],0)),\"\")","v":""},null,null,{"$f":"IFERROR(INDEX(Table1[Room description],MATCH('2) Room configuration'!I224,Table1[TMS],0)),\"\")","v":""},{"$f":"IFERROR(INDEX(Table1[Bedding],MATCH('2) Room configuration'!I224,Table1[TMS],0)),\"\")","v":""},{"$f":"IFERROR(INDEX(Table1[Normal occupancy],MATCH(Table2[[#This Row],[New Room Type \n(TMS)]],Table1[TMS],0)),\"\")","v":""},null,null,null,null,"",{"$f":"IF(Table2[[#This Row],['# extra beds that fit in the room2]]<>0,LEFT(Table2[[#This Row],[New Room Type \n(TMS)]],6),\"\")","v":""},null,{"$f":"IF(Table2[[#This Row],['# extra beds that fit in the room]]<>Table2[[#This Row],['# extra beds that fit in the room2]],\"yes\",\"No\")","v":"No"}]
[null,{"$f":"IF(LEN(C225)>0,'1) Hotel information'!$C$4,\"\")","v":""},null,null,null,{"$f":"IFERROR(INDEX(Table1[Room description],MATCH('2) Room configuration'!D225,Table1[TMS],0)),\"\")","v":""},{"$f":"IFERROR(INDEX(Table1[Bedding],MATCH('2) Room configuration'!D225,Table1[TMS],0)),\"\")","v":""},null,null,{"$f":"IFERROR(INDEX(Table1[Room description],MATCH('2) Room configuration'!I225,Table1[TMS],0)),\"\")","v":""},{"$f":"IFERROR(INDEX(Table1[Bedding],MATCH('2) Room configuration'!I225,Table1[TMS],0)),\"\")","v":""},{"$f":"IFERROR(INDEX(Table1[Normal occupancy],MATCH(Table2[[#This Row],[New Room Type \n(TMS)]],Table1[TMS],0)),\"\")","v":""},null,null,null,null,"",{"$f":"IF(Table2[[#This Row],['# extra beds that fit in the room2]]<>0,LEFT(Table2[[#This Row],[New Room Type \n(TMS)]],6),\"\")","v":""},null,{"$f":"IF(Table2[[#This Row],['# extra beds that fit in the room]]<>Table2[[#This Row],['# extra beds that fit in the room2]],\"yes\",\"No\")","v":"No"}]
[null,{"$f":"IF(LEN(C226)>0,'1) Hotel information'!$C$4,\"\")","v":""},null,null,null,{"$f":"IFERROR(INDEX(Table1[Room description],MATCH('2) Room configuration'!D226,Table1[TMS],0)),\"\")","v":""},{"$f":"IFERROR(INDEX(Table1[Bedding],MATCH('2) Room configuration'!D226,Table1[TMS],0)),\"\")","v":""},null,null,{"$f":"IFERROR(INDEX(Table1[Room description],MATCH('2) Room configuration'!I226,Table1[TMS],0)),\"\")","v":""},{"$f":"IFERROR(INDEX(Table1[Bedding],MATCH('2) Room configuration'!I226,Table1[TMS],0)),\"\")","v":""},{"$f":"IFERROR(INDEX(Table1[Normal occupancy],MATCH(Table2[[#This Row],[New Room Type \n(TMS)]],Table1[TMS],0)),\"\")","v":""},null,null,null,null,"",{"$f":"IF(Table2[[#This Row],['# extra beds that fit in the room2]]<>0,LEFT(Table2[[#This Row],[New Room Type \n(TMS)]],6),\"\")","v":""},null,{"$f":"IF(Table2[[#This Row],['# extra beds that fit in the room]]<>Table2[[#This Row],['# extra beds that fit in the room2]],\"yes\",\"No\")","v":"No"}]
[null,{"$f":"IF(LEN(C227)>0,'1) Hotel information'!$C$4,\"\")","v":""},null,null,null,{"$f":"IFERROR(INDEX(Table1[Room description],MATCH('2) Room configuration'!D227,Table1[TMS],0)),\"\")","v":""},{"$f":"IFERROR(INDEX(Table1[Bedding],MATCH('2) Room configuration'!D227,Table1[TMS],0)),\"\")","v":""},null,null,{"$f":"IFERROR(INDEX(Table1[Room description],MATCH('2) Room configuration'!I227,Table1[TMS],0)),\"\")","v":""},{"$f":"IFERROR(INDEX(Table1[Bedding],MATCH('2) Room configuration'!I227,Table1[TMS],0)),\"\")","v":""},{"$f":"IFERROR(INDEX(Table1[Normal occupancy],MATCH(Table2[[#This Row],[New Room Type \n(TMS)]],Table1[TMS],0)),\"\")","v":""},null,null,null,null,"",{"$f":"IF(Table2[[#This Row],['# extra beds that fit in the room2]]<>0,LEFT(Table2[[#This Row],[New Room Type \n(TMS)]],6),\"\")","v":""},null,{"$f":"IF(Table2[[#This Row],['# extra beds that fit in the room]]<>Table2[[#This Row],['# extra beds that fit in the room2]],\"yes\",\"No\")","v":"No"}]
[null,{"$f":"IF(LEN(C228)>0,'1) Hotel information'!$C$4,\"\")","v":""},null,null,null,{"$f":"IFERROR(INDEX(Table1[Room description],MATCH('2) Room configuration'!D228,Table1[TMS],0)),\"\")","v":""},{"$f":"IFERROR(INDEX(Table1[Bedding],MATCH('2) Room configuration'!D228,Table1[TMS],0)),\"\")","v":""},null,null,{"$f":"IFERROR(INDEX(Table1[Room description],MATCH('2) Room configuration'!I228,Table1[TMS],0)),\"\")","v":""},{"$f":"IFERROR(INDEX(Table1[Bedding],MATCH('2) Room configuration'!I228,Table1[TMS],0)),\"\")","v":""},{"$f":"IFERROR(INDEX(Table1[Normal occupancy],MATCH(Table2[[#This Row],[New Room Type \n(TMS)]],Table1[TMS],0)),\"\")","v":""},null,null,null,null,"",{"$f":"IF(Table2[[#This Row],['# extra beds that fit in the room2]]<>0,LEFT(Table2[[#This Row],[New Room Type \n(TMS)]],6),\"\")","v":""},null,{"$f":"IF(Table2[[#This Row],['# extra beds that fit in the room]]<>Table2[[#This Row],['# extra beds that fit in the room2]],\"yes\",\"No\")","v":"No"}]
[null,{"$f":"IF(LEN(C229)>0,'1) Hotel information'!$C$4,\"\")","v":""},null,null,null,{"$f":"IFERROR(INDEX(Table1[Room description],MATCH('2) Room configuration'!D229,Table1[TMS],0)),\"\")","v":""},{"$f":"IFERROR(INDEX(Table1[Bedding],MATCH('2) Room configuration'!D229,Table1[TMS],0)),\"\")","v":""},null,null,{"$f":"IFERROR(INDEX(Table1[Room description],MATCH('2) Room configuration'!I229,Table1[TMS],0)),\"\")","v":""},{"$f":"IFERROR(INDEX(Table1[Bedding],MATCH('2) Room configuration'!I229,Table1[TMS],0)),\"\")","v":""},{"$f":"IFERROR(INDEX(Table1[Normal occupancy],MATCH(Table2[[#This Row],[New Room Type \n(TMS)]],Table1[TMS],0)),\"\")","v":""},null,null,null,null,"",{"$f":"IF(Table2[[#This Row],['# extra beds that fit in the room2]]<>0,LEFT(Table2[[#This Row],[New Room Type \n(TMS)]],6),\"\")","v":""},null,{"$f":"IF(Table2[[#This Row],['# extra beds that fit in the room]]<>Table2[[#This Row],['# extra beds that fit in the room2]],\"yes\",\"No\")","v":"No"}]
[null,{"$f":"IF(LEN(C230)>0,'1) Hotel information'!$C$4,\"\")","v":""},null,null,null,{"$f":"IFERROR(INDEX(Table1[Room description],MATCH('2) Room configuration'!D230,Table1[TMS],0)),\"\")","v":""},{"$f":"IFERROR(INDEX(Table1[Bedding],MATCH('2) Room configuration'!D230,Table1[TMS],0)),\"\")","v":""},null,null,{"$f":"IFERROR(INDEX(Table1[Room description],MATCH('2) Room configuration'!I230,Table1[TMS],0)),\"\")","v":""},{"$f":"IFERROR(INDEX(Table1[Bedding],MATCH('2) Room configuration'!I230,Table1[TMS],0)),\"\")","v":""},{"$f":"IFERROR(INDEX(Table1[Normal occupancy],MATCH(Table2[[#This Row],[New Room Type \n(TMS)]],Table1[TMS],0)),\"\")","v":""},null,null,null,null,"",{"$f":"IF(Table2[[#This Row],['# extra beds that fit in the room2]]<>0,LEFT(Table2[[#This Row],[New Room Type \n(TMS)]],6),\"\")","v":""},null,{"$f":"IF(Table2[[#This Row],['# extra beds that fit in the room]]<>Table2[[#This Row],['# extra beds that fit in the room2]],\"yes\",\"No\")","v":"No"}]
[null,{"$f":"IF(LEN(C231)>0,'1) Hotel information'!$C$4,\"\")","v":""},null,null,null,{"$f":"IFERROR(INDEX(Table1[Room description],MATCH('2) Room configuration'!D231,Table1[TMS],0)),\"\")","v":""},{"$f":"IFERROR(INDEX(Table1[Bedding],MATCH('2) Room configuration'!D231,Table1[TMS],0)),\"\")","v":""},null,null,{"$f":"IFERROR(INDEX(Table1[Room description],MATCH('2) Room configuration'!I231,Table1[TMS],0)),\"\")","v":""},{"$f":"IFERROR(INDEX(Table1[Bedding],MATCH('2) Room configuration'!I231,Table1[TMS],0)),\"\")","v":""},{"$f":"IFERROR(INDEX(Table1[Normal occupancy],MATCH(Table2[[#This Row],[New Room Type \n(TMS)]],Table1[TMS],0)),\"\")","v":""},null,null,null,null,"",{"$f":"IF(Table2[[#This Row],['# extra beds that fit in the room2]]<>0,LEFT(Table2[[#This Row],[New Room Type \n(TMS)]],6),\"\")","v":""},null,{"$f":"IF(Table2[[#This Row],['# extra beds that fit in the room]]<>Table2[[#This Row],['# extra beds that fit in the room2]],\"yes\",\"No\")","v":"No"}]
[null,{"$f":"IF(LEN(C232)>0,'1) Hotel information'!$C$4,\"\")","v":""},null,null,null,{"$f":"IFERROR(INDEX(Table1[Room description],MATCH('2) Room configuration'!D232,Table1[TMS],0)),\"\")","v":""},{"$f":"IFERROR(INDEX(Table1[Bedding],MATCH('2) Room configuration'!D232,Table1[TMS],0)),\"\")","v":""},null,null,{"$f":"IFERROR(INDEX(Table1[Room description],MATCH('2) Room configuration'!I232,Table1[TMS],0)),\"\")","v":""},{"$f":"IFERROR(INDEX(Table1[Bedding],MATCH('2) Room configuration'!I232,Table1[TMS],0)),\"\")","v":""},{"$f":"IFERROR(INDEX(Table1[Normal occupancy],MATCH(Table2[[#This Row],[New Room Type \n(TMS)]],Table1[TMS],0)),\"\")","v":""},null,null,null,null,"",{"$f":"IF(Table2[[#This Row],['# extra beds that fit in the room2]]<>0,LEFT(Table2[[#This Row],[New Room Type \n(TMS)]],6),\"\")","v":""},null,{"$f":"IF(Table2[[#This Row],['# extra beds that fit in the room]]<>Table2[[#This Row],['# extra beds that fit in the room2]],\"yes\",\"No\")","v":"No"}]
[null,{"$f":"IF(LEN(C233)>0,'1) Hotel information'!$C$4,\"\")","v":""},null,null,null,{"$f":"IFERROR(INDEX(Table1[Room description],MATCH('2) Room configuration'!D233,Table1[TMS],0)),\"\")","v":""},{"$f":"IFERROR(INDEX(Table1[Bedding],MATCH('2) Room configuration'!D233,Table1[TMS],0)),\"\")","v":""},null,null,{"$f":"IFERROR(INDEX(Table1[Room description],MATCH('2) Room configuration'!I233,Table1[TMS],0)),\"\")","v":""},{"$f":"IFERROR(INDEX(Table1[Bedding],MATCH('2) Room configuration'!I233,Table1[TMS],0)),\"\")","v":""},{"$f":"IFERROR(INDEX(Table1[Normal occupancy],MATCH(Table2[[#This Row],[New Room Type \n(TMS)]],Table1[TMS],0)),\"\")","v":""},null,null,null,null,"",{"$f":"IF(Table2[[#This Row],['# extra beds that fit in the room2]]<>0,LEFT(Table2[[#This Row],[New Room Type \n(TMS)]],6),\"\")","v":""},null,{"$f":"IF(Table2[[#This Row],['# extra beds that fit in the room]]<>Table2[[#This Row],['# extra beds that fit in the room2]],\"yes\",\"No\")","v":"No"}]
[null,{"$f":"IF(LEN(C234)>0,'1) Hotel information'!$C$4,\"\")","v":""},null,null,null,{"$f":"IFERROR(INDEX(Table1[Room description],MATCH('2) Room configuration'!D234,Table1[TMS],0)),\"\")","v":""},{"$f":"IFERROR(INDEX(Table1[Bedding],MATCH('2) Room configuration'!D234,Table1[TMS],0)),\"\")","v":""},null,null,{"$f":"IFERROR(INDEX(Table1[Room description],MATCH('2) Room configuration'!I234,Table1[TMS],0)),\"\")","v":""},{"$f":"IFERROR(INDEX(Table1[Bedding],MATCH('2) Room configuration'!I234,Table1[TMS],0)),\"\")","v":""},{"$f":"IFERROR(INDEX(Table1[Normal occupancy],MATCH(Table2[[#This Row],[New Room Type \n(TMS)]],Table1[TMS],0)),\"\")","v":""},null,null,null,null,"",{"$f":"IF(Table2[[#This Row],['# extra beds that fit in the room2]]<>0,LEFT(Table2[[#This Row],[New Room Type \n(TMS)]],6),\"\")","v":""},null,{"$f":"IF(Table2[[#This Row],['# extra beds that fit in the room]]<>Table2[[#This Row],['# extra beds that fit in the room2]],\"yes\",\"No\")","v":"No"}]
[null,{"$f":"IF(LEN(C235)>0,'1) Hotel information'!$C$4,\"\")","v":""},null,null,null,{"$f":"IFERROR(INDEX(Table1[Room description],MATCH('2) Room configuration'!D235,Table1[TMS],0)),\"\")","v":""},{"$f":"IFERROR(INDEX(Table1[Bedding],MATCH('2) Room configuration'!D235,Table1[TMS],0)),\"\")","v":""},null,null,{"$f":"IFERROR(INDEX(Table1[Room description],MATCH('2) Room configuration'!I235,Table1[TMS],0)),\"\")","v":""},{"$f":"IFERROR(INDEX(Table1[Bedding],MATCH('2) Room configuration'!I235,Table1[TMS],0)),\"\")","v":""},{"$f":"IFERROR(INDEX(Table1[Normal occupancy],MATCH(Table2[[#This Row],[New Room Type \n(TMS)]],Table1[TMS],0)),\"\")","v":""},null,null,null,null,"",{"$f":"IF(Table2[[#This Row],['# extra beds that fit in the room2]]<>0,LEFT(Table2[[#This Row],[New Room Type \n(TMS)]],6),\"\")","v":""},null,{"$f":"IF(Table2[[#This Row],['# extra beds that fit in the room]]<>Table2[[#This Row],['# extra beds that fit in the room2]],\"yes\",\"No\")","v":"No"}]
[null,{"$f":"IF(LEN(C236)>0,'1) Hotel information'!$C$4,\"\")","v":""},null,null,null,{"$f":"IFERROR(INDEX(Table1[Room description],MATCH('2) Room configuration'!D236,Table1[TMS],0)),\"\")","v":""},{"$f":"IFERROR(INDEX(Table1[Bedding],MATCH('2) Room configuration'!D236,Table1[TMS],0)),\"\")","v":""},null,null,{"$f":"IFERROR(INDEX(Table1[Room description],MATCH('2) Room configuration'!I236,Table1[TMS],0)),\"\")","v":""},{"$f":"IFERROR(INDEX(Table1[Bedding],MATCH('2) Room configuration'!I236,Table1[TMS],0)),\"\")","v":""},{"$f":"IFERROR(INDEX(Table1[Normal occupancy],MATCH(Table2[[#This Row],[New Room Type \n(TMS)]],Table1[TMS],0)),\"\")","v":""},null,null,null,null,"",{"$f":"IF(Table2[[#This Row],['# extra beds that fit in the room2]]<>0,LEFT(Table2[[#This Row],[New Room Type \n(TMS)]],6),\"\")","v":""},null,{"$f":"IF(Table2[[#This Row],['# extra beds that fit in the room]]<>Table2[[#This Row],['# extra beds that fit in the room2]],\"yes\",\"No\")","v":"No"}]
[null,{"$f":"IF(LEN(C237)>0,'1) Hotel information'!$C$4,\"\")","v":""},null,null,null,{"$f":"IFERROR(INDEX(Table1[Room description],MATCH('2) Room configuration'!D237,Table1[TMS],0)),\"\")","v":""},{"$f":"IFERROR(INDEX(Table1[Bedding],MATCH('2) Room configuration'!D237,Table1[TMS],0)),\"\")","v":""},null,null,{"$f":"IFERROR(INDEX(Table1[Room description],MATCH('2) Room configuration'!I237,Table1[TMS],0)),\"\")","v":""},{"$f":"IFERROR(INDEX(Table1[Bedding],MATCH('2) Room configuration'!I237,Table1[TMS],0)),\"\")","v":""},{"$f":"IFERROR(INDEX(Table1[Normal occupancy],MATCH(Table2[[#This Row],[New Room Type \n(TMS)]],Table1[TMS],0)),\"\")","v":""},null,null,null,null,"",{"$f":"IF(Table2[[#This Row],['# extra beds that fit in the room2]]<>0,LEFT(Table2[[#This Row],[New Room Type \n(TMS)]],6),\"\")","v":""},null,{"$f":"IF(Table2[[#This Row],['# extra beds that fit in the room]]<>Table2[[#This Row],['# extra beds that fit in the room2]],\"yes\",\"No\")","v":"No"}]
[null,{"$f":"IF(LEN(C238)>0,'1) Hotel information'!$C$4,\"\")","v":""},null,null,null,{"$f":"IFERROR(INDEX(Table1[Room description],MATCH('2) Room configuration'!D238,Table1[TMS],0)),\"\")","v":""},{"$f":"IFERROR(INDEX(Table1[Bedding],MATCH('2) Room configuration'!D238,Table1[TMS],0)),\"\")","v":""},null,null,{"$f":"IFERROR(INDEX(Table1[Room description],MATCH('2) Room configuration'!I238,Table1[TMS],0)),\"\")","v":""},{"$f":"IFERROR(INDEX(Table1[Bedding],MATCH('2) Room configuration'!I238,Table1[TMS],0)),\"\")","v":""},{"$f":"IFERROR(INDEX(Table1[Normal occupancy],MATCH(Table2[[#This Row],[New Room Type \n(TMS)]],Table1[TMS],0)),\"\")","v":""},null,null,null,null,"",{"$f":"IF(Table2[[#This Row],['# extra beds that fit in the room2]]<>0,LEFT(Table2[[#This Row],[New Room Type \n(TMS)]],6),\"\")","v":""},null,{"$f":"IF(Table2[[#This Row],['# extra beds that fit in the room]]<>Table2[[#This Row],['# extra beds that fit in the room2]],\"yes\",\"No\")","v":"No"}]
[null,{"$f":"IF(LEN(C239)>0,'1) Hotel information'!$C$4,\"\")","v":""},null,null,null,{"$f":"IFERROR(INDEX(Table1[Room description],MATCH('2) Room configuration'!D239,Table1[TMS],0)),\"\")","v":""},{"$f":"IFERROR(INDEX(Table1[Bedding],MATCH('2) Room configuration'!D239,Table1[TMS],0)),\"\")","v":""},null,null,{"$f":"IFERROR(INDEX(Table1[Room description],MATCH('2) Room configuration'!I239,Table1[TMS],0)),\"\")","v":""},{"$f":"IFERROR(INDEX(Table1[Bedding],MATCH('2) Room configuration'!I239,Table1[TMS],0)),\"\")","v":""},{"$f":"IFERROR(INDEX(Table1[Normal occupancy],MATCH(Table2[[#This Row],[New Room Type \n(TMS)]],Table1[TMS],0)),\"\")","v":""},null,null,null,null,"",{"$f":"IF(Table2[[#This Row],['# extra beds that fit in the room2]]<>0,LEFT(Table2[[#This Row],[New Room Type \n(TMS)]],6),\"\")","v":""},null,{"$f":"IF(Table2[[#This Row],['# extra beds that fit in the room]]<>Table2[[#This Row],['# extra beds that fit in the room2]],\"yes\",\"No\")","v":"No"}]
[null,{"$f":"IF(LEN(C240)>0,'1) Hotel information'!$C$4,\"\")","v":""},null,null,null,{"$f":"IFERROR(INDEX(Table1[Room description],MATCH('2) Room configuration'!D240,Table1[TMS],0)),\"\")","v":""},{"$f":"IFERROR(INDEX(Table1[Bedding],MATCH('2) Room configuration'!D240,Table1[TMS],0)),\"\")","v":""},null,null,{"$f":"IFERROR(INDEX(Table1[Room description],MATCH('2) Room configuration'!I240,Table1[TMS],0)),\"\")","v":""},{"$f":"IFERROR(INDEX(Table1[Bedding],MATCH('2) Room configuration'!I240,Table1[TMS],0)),\"\")","v":""},{"$f":"IFERROR(INDEX(Table1[Normal occupancy],MATCH(Table2[[#This Row],[New Room Type \n(TMS)]],Table1[TMS],0)),\"\")","v":""},null,null,null,null,"",{"$f":"IF(Table2[[#This Row],['# extra beds that fit in the room2]]<>0,LEFT(Table2[[#This Row],[New Room Type \n(TMS)]],6),\"\")","v":""},null,{"$f":"IF(Table2[[#This Row],['# extra beds that fit in the room]]<>Table2[[#This Row],['# extra beds that fit in the room2]],\"yes\",\"No\")","v":"No"}]
[null,{"$f":"IF(LEN(C241)>0,'1) Hotel information'!$C$4,\"\")","v":""},null,null,null,{"$f":"IFERROR(INDEX(Table1[Room description],MATCH('2) Room configuration'!D241,Table1[TMS],0)),\"\")","v":""},{"$f":"IFERROR(INDEX(Table1[Bedding],MATCH('2) Room configuration'!D241,Table1[TMS],0)),\"\")","v":""},null,null,{"$f":"IFERROR(INDEX(Table1[Room description],MATCH('2) Room configuration'!I241,Table1[TMS],0)),\"\")","v":""},{"$f":"IFERROR(INDEX(Table1[Bedding],MATCH('2) Room configuration'!I241,Table1[TMS],0)),\"\")","v":""},{"$f":"IFERROR(INDEX(Table1[Normal occupancy],MATCH(Table2[[#This Row],[New Room Type \n(TMS)]],Table1[TMS],0)),\"\")","v":""},null,null,null,null,"",{"$f":"IF(Table2[[#This Row],['# extra beds that fit in the room2]]<>0,LEFT(Table2[[#This Row],[New Room Type \n(TMS)]],6),\"\")","v":""},null,{"$f":"IF(Table2[[#This Row],['# extra beds that fit in the room]]<>Table2[[#This Row],['# extra beds that fit in the room2]],\"yes\",\"No\")","v":"No"}]
[null,{"$f":"IF(LEN(C242)>0,'1) Hotel information'!$C$4,\"\")","v":""},null,null,null,{"$f":"IFERROR(INDEX(Table1[Room description],MATCH('2) Room configuration'!D242,Table1[TMS],0)),\"\")","v":""},{"$f":"IFERROR(INDEX(Table1[Bedding],MATCH('2) Room configuration'!D242,Table1[TMS],0)),\"\")","v":""},null,null,{"$f":"IFERROR(INDEX(Table1[Room description],MATCH('2) Room configuration'!I242,Table1[TMS],0)),\"\")","v":""},{"$f":"IFERROR(INDEX(Table1[Bedding],MATCH('2) Room configuration'!I242,Table1[TMS],0)),\"\")","v":""},{"$f":"IFERROR(INDEX(Table1[Normal occupancy],MATCH(Table2[[#This Row],[New Room Type \n(TMS)]],Table1[TMS],0)),\"\")","v":""},null,null,null,null,"",{"$f":"IF(Table2[[#This Row],['# extra beds that fit in the room2]]<>0,LEFT(Table2[[#This Row],[New Room Type \n(TMS)]],6),\"\")","v":""},null,{"$f":"IF(Table2[[#This Row],['# extra beds that fit in the room]]<>Table2[[#This Row],['# extra beds that fit in the room2]],\"yes\",\"No\")","v":"No"}]
[null,{"$f":"IF(LEN(C243)>0,'1) Hotel information'!$C$4,\"\")","v":""},null,null,null,{"$f":"IFERROR(INDEX(Table1[Room description],MATCH('2) Room configuration'!D243,Table1[TMS],0)),\"\")","v":""},{"$f":"IFERROR(INDEX(Table1[Bedding],MATCH('2) Room configuration'!D243,Table1[TMS],0)),\"\")","v":""},null,null,{"$f":"IFERROR(INDEX(Table1[Room description],MATCH('2) Room configuration'!I243,Table1[TMS],0)),\"\")","v":""},{"$f":"IFERROR(INDEX(Table1[Bedding],MATCH('2) Room configuration'!I243,Table1[TMS],0)),\"\")","v":""},{"$f":"IFERROR(INDEX(Table1[Normal occupancy],MATCH(Table2[[#This Row],[New Room Type \n(TMS)]],Table1[TMS],0)),\"\")","v":""},null,null,null,null,"",{"$f":"IF(Table2[[#This Row],['# extra beds that fit in the room2]]<>0,LEFT(Table2[[#This Row],[New Room Type \n(TMS)]],6),\"\")","v":""},null,{"$f":"IF(Table2[[#This Row],['# extra beds that fit in the room]]<>Table2[[#This Row],['# extra beds that fit in the room2]],\"yes\",\"No\")","v":"No"}]
[null,{"$f":"IF(LEN(C244)>0,'1) Hotel information'!$C$4,\"\")","v":""},null,null,null,{"$f":"IFERROR(INDEX(Table1[Room description],MATCH('2) Room configuration'!D244,Table1[TMS],0)),\"\")","v":""},{"$f":"IFERROR(INDEX(Table1[Bedding],MATCH('2) Room configuration'!D244,Table1[TMS],0)),\"\")","v":""},null,null,{"$f":"IFERROR(INDEX(Table1[Room description],MATCH('2) Room configuration'!I244,Table1[TMS],0)),\"\")","v":""},{"$f":"IFERROR(INDEX(Table1[Bedding],MATCH('2) Room configuration'!I244,Table1[TMS],0)),\"\")","v":""},{"$f":"IFERROR(INDEX(Table1[Normal occupancy],MATCH(Table2[[#This Row],[New Room Type \n(TMS)]],Table1[TMS],0)),\"\")","v":""},null,null,null,null,"",{"$f":"IF(Table2[[#This Row],['# extra beds that fit in the room2]]<>0,LEFT(Table2[[#This Row],[New Room Type \n(TMS)]],6),\"\")","v":""},null,{"$f":"IF(Table2[[#This Row],['# extra beds that fit in the room]]<>Table2[[#This Row],['# extra beds that fit in the room2]],\"yes\",\"No\")","v":"No"}]
[null,{"$f":"IF(LEN(C245)>0,'1) Hotel information'!$C$4,\"\")","v":""},null,null,null,{"$f":"IFERROR(INDEX(Table1[Room description],MATCH('2) Room configuration'!D245,Table1[TMS],0)),\"\")","v":""},{"$f":"IFERROR(INDEX(Table1[Bedding],MATCH('2) Room configuration'!D245,Table1[TMS],0)),\"\")","v":""},null,null,{"$f":"IFERROR(INDEX(Table1[Room description],MATCH('2) Room configuration'!I245,Table1[TMS],0)),\"\")","v":""},{"$f":"IFERROR(INDEX(Table1[Bedding],MATCH('2) Room configuration'!I245,Table1[TMS],0)),\"\")","v":""},{"$f":"IFERROR(INDEX(Table1[Normal occupancy],MATCH(Table2[[#This Row],[New Room Type \n(TMS)]],Table1[TMS],0)),\"\")","v":""},null,null,null,null,"",{"$f":"IF(Table2[[#This Row],['# extra beds that fit in the room2]]<>0,LEFT(Table2[[#This Row],[New Room Type \n(TMS)]],6),\"\")","v":""},null,{"$f":"IF(Table2[[#This Row],['# extra beds that fit in the room]]<>Table2[[#This Row],['# extra beds that fit in the room2]],\"yes\",\"No\")","v":"No"}]
[null,{"$f":"IF(LEN(C246)>0,'1) Hotel information'!$C$4,\"\")","v":""},null,null,null,{"$f":"IFERROR(INDEX(Table1[Room description],MATCH('2) Room configuration'!D246,Table1[TMS],0)),\"\")","v":""},{"$f":"IFERROR(INDEX(Table1[Bedding],MATCH('2) Room configuration'!D246,Table1[TMS],0)),\"\")","v":""},null,null,{"$f":"IFERROR(INDEX(Table1[Room description],MATCH('2) Room configuration'!I246,Table1[TMS],0)),\"\")","v":""},{"$f":"IFERROR(INDEX(Table1[Bedding],MATCH('2) Room configuration'!I246,Table1[TMS],0)),\"\")","v":""},{"$f":"IFERROR(INDEX(Table1[Normal occupancy],MATCH(Table2[[#This Row],[New Room Type \n(TMS)]],Table1[TMS],0)),\"\")","v":""},null,null,null,null,"",{"$f":"IF(Table2[[#This Row],['# extra beds that fit in the room2]]<>0,LEFT(Table2[[#This Row],[New Room Type \n(TMS)]],6),\"\")","v":""},null,{"$f":"IF(Table2[[#This Row],['# extra beds that fit in the room]]<>Table2[[#This Row],['# extra beds that fit in the room2]],\"yes\",\"No\")","v":"No"}]
[null,{"$f":"IF(LEN(C247)>0,'1) Hotel information'!$C$4,\"\")","v":""},null,null,null,{"$f":"IFERROR(INDEX(Table1[Room description],MATCH('2) Room configuration'!D247,Table1[TMS],0)),\"\")","v":""},{"$f":"IFERROR(INDEX(Table1[Bedding],MATCH('2) Room configuration'!D247,Table1[TMS],0)),\"\")","v":""},null,null,{"$f":"IFERROR(INDEX(Table1[Room description],MATCH('2) Room configuration'!I247,Table1[TMS],0)),\"\")","v":""},{"$f":"IFERROR(INDEX(Table1[Bedding],MATCH('2) Room configuration'!I247,Table1[TMS],0)),\"\")","v":""},{"$f":"IFERROR(INDEX(Table1[Normal occupancy],MATCH(Table2[[#This Row],[New Room Type \n(TMS)]],Table1[TMS],0)),\"\")","v":""},null,null,null,null,"",{"$f":"IF(Table2[[#This Row],['# extra beds that fit in the room2]]<>0,LEFT(Table2[[#This Row],[New Room Type \n(TMS)]],6),\"\")","v":""},null,{"$f":"IF(Table2[[#This Row],['# extra beds that fit in the room]]<>Table2[[#This Row],['# extra beds that fit in the room2]],\"yes\",\"No\")","v":"No"}]
[null,{"$f":"IF(LEN(C248)>0,'1) Hotel information'!$C$4,\"\")","v":""},null,null,null,{"$f":"IFERROR(INDEX(Table1[Room description],MATCH('2) Room configuration'!D248,Table1[TMS],0)),\"\")","v":""},{"$f":"IFERROR(INDEX(Table1[Bedding],MATCH('2) Room configuration'!D248,Table1[TMS],0)),\"\")","v":""},null,null,{"$f":"IFERROR(INDEX(Table1[Room description],MATCH('2) Room configuration'!I248,Table1[TMS],0)),\"\")","v":""},{"$f":"IFERROR(INDEX(Table1[Bedding],MATCH('2) Room configuration'!I248,Table1[TMS],0)),\"\")","v":""},{"$f":"IFERROR(INDEX(Table1[Normal occupancy],MATCH(Table2[[#This Row],[New Room Type \n(TMS)]],Table1[TMS],0)),\"\")","v":""},null,null,null,null,"",{"$f":"IF(Table2[[#This Row],['# extra beds that fit in the room2]]<>0,LEFT(Table2[[#This Row],[New Room Type \n(TMS)]],6),\"\")","v":""},null,{"$f":"IF(Table2[[#This Row],['# extra beds that fit in the room]]<>Table2[[#This Row],['# extra beds that fit in the room2]],\"yes\",\"No\")","v":"No"}]
[null,{"$f":"IF(LEN(C249)>0,'1) Hotel information'!$C$4,\"\")","v":""},null,null,null,{"$f":"IFERROR(INDEX(Table1[Room description],MATCH('2) Room configuration'!D249,Table1[TMS],0)),\"\")","v":""},{"$f":"IFERROR(INDEX(Table1[Bedding],MATCH('2) Room configuration'!D249,Table1[TMS],0)),\"\")","v":""},null,null,{"$f":"IFERROR(INDEX(Table1[Room description],MATCH('2) Room configuration'!I249,Table1[TMS],0)),\"\")","v":""},{"$f":"IFERROR(INDEX(Table1[Bedding],MATCH('2) Room configuration'!I249,Table1[TMS],0)),\"\")","v":""},{"$f":"IFERROR(INDEX(Table1[Normal occupancy],MATCH(Table2[[#This Row],[New Room Type \n(TMS)]],Table1[TMS],0)),\"\")","v":""},null,null,null,null,"",{"$f":"IF(Table2[[#This Row],['# extra beds that fit in the room2]]<>0,LEFT(Table2[[#This Row],[New Room Type \n(TMS)]],6),\"\")","v":""},null,{"$f":"IF(Table2[[#This Row],['# extra beds that fit in the room]]<>Table2[[#This Row],['# extra beds that fit in the room2]],\"yes\",\"No\")","v":"No"}]
[null,{"$f":"IF(LEN(C250)>0,'1) Hotel information'!$C$4,\"\")","v":""},null,null,null,{"$f":"IFERROR(INDEX(Table1[Room description],MATCH('2) Room configuration'!D250,Table1[TMS],0)),\"\")","v":""},{"$f":"IFERROR(INDEX(Table1[Bedding],MATCH('2) Room configuration'!D250,Table1[TMS],0)),\"\")","v":""},null,null,{"$f":"IFERROR(INDEX(Table1[Room description],MATCH('2) Room configuration'!I250,Table1[TMS],0)),\"\")","v":""},{"$f":"IFERROR(INDEX(Table1[Bedding],MATCH('2) Room configuration'!I250,Table1[TMS],0)),\"\")","v":""},{"$f":"IFERROR(INDEX(Table1[Normal occupancy],MATCH(Table2[[#This Row],[New Room Type \n(TMS)]],Table1[TMS],0)),\"\")","v":""},null,null,null,null,"",{"$f":"IF(Table2[[#This Row],['# extra beds that fit in the room2]]<>0,LEFT(Table2[[#This Row],[New Room Type \n(TMS)]],6),\"\")","v":""},null,{"$f":"IF(Table2[[#This Row],['# extra beds that fit in the room]]<>Table2[[#This Row],['# extra beds that fit in the room2]],\"yes\",\"No\")","v":"No"}]
[null,{"$f":"IF(LEN(C251)>0,'1) Hotel information'!$C$4,\"\")","v":""},null,null,null,{"$f":"IFERROR(INDEX(Table1[Room description],MATCH('2) Room configuration'!D251,Table1[TMS],0)),\"\")","v":""},{"$f":"IFERROR(INDEX(Table1[Bedding],MATCH('2) Room configuration'!D251,Table1[TMS],0)),\"\")","v":""},null,null,{"$f":"IFERROR(INDEX(Table1[Room description],MATCH('2) Room configuration'!I251,Table1[TMS],0)),\"\")","v":""},{"$f":"IFERROR(INDEX(Table1[Bedding],MATCH('2) Room configuration'!I251,Table1[TMS],0)),\"\")","v":""},{"$f":"IFERROR(INDEX(Table1[Normal occupancy],MATCH(Table2[[#This Row],[New Room Type \n(TMS)]],Table1[TMS],0)),\"\")","v":""},null,null,null,null,"",{"$f":"IF(Table2[[#This Row],['# extra beds that fit in the room2]]<>0,LEFT(Table2[[#This Row],[New Room Type \n(TMS)]],6),\"\")","v":""},null,{"$f":"IF(Table2[[#This Row],['# extra beds that fit in the room]]<>Table2[[#This Row],['# extra beds that fit in the room2]],\"yes\",\"No\")","v":"No"}]
[null,{"$f":"IF(LEN(C252)>0,'1) Hotel information'!$C$4,\"\")","v":""},null,null,null,{"$f":"IFERROR(INDEX(Table1[Room description],MATCH('2) Room configuration'!D252,Table1[TMS],0)),\"\")","v":""},{"$f":"IFERROR(INDEX(Table1[Bedding],MATCH('2) Room configuration'!D252,Table1[TMS],0)),\"\")","v":""},null,null,{"$f":"IFERROR(INDEX(Table1[Room description],MATCH('2) Room configuration'!I252,Table1[TMS],0)),\"\")","v":""},{"$f":"IFERROR(INDEX(Table1[Bedding],MATCH('2) Room configuration'!I252,Table1[TMS],0)),\"\")","v":""},{"$f":"IFERROR(INDEX(Table1[Normal occupancy],MATCH(Table2[[#This Row],[New Room Type \n(TMS)]],Table1[TMS],0)),\"\")","v":""},null,null,null,null,"",{"$f":"IF(Table2[[#This Row],['# extra beds that fit in the room2]]<>0,LEFT(Table2[[#This Row],[New Room Type \n(TMS)]],6),\"\")","v":""},null,{"$f":"IF(Table2[[#This Row],['# extra beds that fit in the room]]<>Table2[[#This Row],['# extra beds that fit in the room2]],\"yes\",\"No\")","v":"No"}]
[null,{"$f":"IF(LEN(C253)>0,'1) Hotel information'!$C$4,\"\")","v":""},null,null,null,{"$f":"IFERROR(INDEX(Table1[Room description],MATCH('2) Room configuration'!D253,Table1[TMS],0)),\"\")","v":""},{"$f":"IFERROR(INDEX(Table1[Bedding],MATCH('2) Room configuration'!D253,Table1[TMS],0)),\"\")","v":""},null,null,{"$f":"IFERROR(INDEX(Table1[Room description],MATCH('2) Room configuration'!I253,Table1[TMS],0)),\"\")","v":""},{"$f":"IFERROR(INDEX(Table1[Bedding],MATCH('2) Room configuration'!I253,Table1[TMS],0)),\"\")","v":""},{"$f":"IFERROR(INDEX(Table1[Normal occupancy],MATCH(Table2[[#This Row],[New Room Type \n(TMS)]],Table1[TMS],0)),\"\")","v":""},null,null,null,null,"",{"$f":"IF(Table2[[#This Row],['# extra beds that fit in the room2]]<>0,LEFT(Table2[[#This Row],[New Room Type \n(TMS)]],6),\"\")","v":""},null,{"$f":"IF(Table2[[#This Row],['# extra beds that fit in the room]]<>Table2[[#This Row],['# extra beds that fit in the room2]],\"yes\",\"No\")","v":"No"}]
[null,{"$f":"IF(LEN(C254)>0,'1) Hotel information'!$C$4,\"\")","v":""},null,null,null,{"$f":"IFERROR(INDEX(Table1[Room description],MATCH('2) Room configuration'!D254,Table1[TMS],0)),\"\")","v":""},{"$f":"IFERROR(INDEX(Table1[Bedding],MATCH('2) Room configuration'!D254,Table1[TMS],0)),\"\")","v":""},null,null,{"$f":"IFERROR(INDEX(Table1[Room description],MATCH('2) Room configuration'!I254,Table1[TMS],0)),\"\")","v":""},{"$f":"IFERROR(INDEX(Table1[Bedding],MATCH('2) Room configuration'!I254,Table1[TMS],0)),\"\")","v":""},{"$f":"IFERROR(INDEX(Table1[Normal occupancy],MATCH(Table2[[#This Row],[New Room Type \n(TMS)]],Table1[TMS],0)),\"\")","v":""},null,null,null,null,"",{"$f":"IF(Table2[[#This Row],['# extra beds that fit in the room2]]<>0,LEFT(Table2[[#This Row],[New Room Type \n(TMS)]],6),\"\")","v":""},null,{"$f":"IF(Table2[[#This Row],['# extra beds that fit in the room]]<>Table2[[#This Row],['# extra beds that fit in the room2]],\"yes\",\"No\")","v":"No"}]
[null,{"$f":"IF(LEN(C255)>0,'1) Hotel information'!$C$4,\"\")","v":""},null,null,null,{"$f":"IFERROR(INDEX(Table1[Room description],MATCH('2) Room configuration'!D255,Table1[TMS],0)),\"\")","v":""},{"$f":"IFERROR(INDEX(Table1[Bedding],MATCH('2) Room configuration'!D255,Table1[TMS],0)),\"\")","v":""},null,null,{"$f":"IFERROR(INDEX(Table1[Room description],MATCH('2) Room configuration'!I255,Table1[TMS],0)),\"\")","v":""},{"$f":"IFERROR(INDEX(Table1[Bedding],MATCH('2) Room configuration'!I255,Table1[TMS],0)),\"\")","v":""},{"$f":"IFERROR(INDEX(Table1[Normal occupancy],MATCH(Table2[[#This Row],[New Room Type \n(TMS)]],Table1[TMS],0)),\"\")","v":""},null,null,null,null,"",{"$f":"IF(Table2[[#This Row],['# extra beds that fit in the room2]]<>0,LEFT(Table2[[#This Row],[New Room Type \n(TMS)]],6),\"\")","v":""},null,{"$f":"IF(Table2[[#This Row],['# extra beds that fit in the room]]<>Table2[[#This Row],['# extra beds that fit in the room2]],\"yes\",\"No\")","v":"No"}]
[null,{"$f":"IF(LEN(C256)>0,'1) Hotel information'!$C$4,\"\")","v":""},null,null,null,{"$f":"IFERROR(INDEX(Table1[Room description],MATCH('2) Room configuration'!D256,Table1[TMS],0)),\"\")","v":""},{"$f":"IFERROR(INDEX(Table1[Bedding],MATCH('2) Room configuration'!D256,Table1[TMS],0)),\"\")","v":""},null,null,{"$f":"IFERROR(INDEX(Table1[Room description],MATCH('2) Room configuration'!I256,Table1[TMS],0)),\"\")","v":""},{"$f":"IFERROR(INDEX(Table1[Bedding],MATCH('2) Room configuration'!I256,Table1[TMS],0)),\"\")","v":""},{"$f":"IFERROR(INDEX(Table1[Normal occupancy],MATCH(Table2[[#This Row],[New Room Type \n(TMS)]],Table1[TMS],0)),\"\")","v":""},null,null,null,null,"",{"$f":"IF(Table2[[#This Row],['# extra beds that fit in the room2]]<>0,LEFT(Table2[[#This Row],[New Room Type \n(TMS)]],6),\"\")","v":""},null,{"$f":"IF(Table2[[#This Row],['# extra beds that fit in the room]]<>Table2[[#This Row],['# extra beds that fit in the room2]],\"yes\",\"No\")","v":"No"}]
[null,{"$f":"IF(LEN(C257)>0,'1) Hotel information'!$C$4,\"\")","v":""},null,null,null,{"$f":"IFERROR(INDEX(Table1[Room description],MATCH('2) Room configuration'!D257,Table1[TMS],0)),\"\")","v":""},{"$f":"IFERROR(INDEX(Table1[Bedding],MATCH('2) Room configuration'!D257,Table1[TMS],0)),\"\")","v":""},null,null,{"$f":"IFERROR(INDEX(Table1[Room description],MATCH('2) Room configuration'!I257,Table1[TMS],0)),\"\")","v":""},{"$f":"IFERROR(INDEX(Table1[Bedding],MATCH('2) Room configuration'!I257,Table1[TMS],0)),\"\")","v":""},{"$f":"IFERROR(INDEX(Table1[Normal occupancy],MATCH(Table2[[#This Row],[New Room Type \n(TMS)]],Table1[TMS],0)),\"\")","v":""},null,null,null,null,"",{"$f":"IF(Table2[[#This Row],['# extra beds that fit in the room2]]<>0,LEFT(Table2[[#This Row],[New Room Type \n(TMS)]],6),\"\")","v":""},null,{"$f":"IF(Table2[[#This Row],['# extra beds that fit in the room]]<>Table2[[#This Row],['# extra beds that fit in the room2]],\"yes\",\"No\")","v":"No"}]
[null,{"$f":"IF(LEN(C258)>0,'1) Hotel information'!$C$4,\"\")","v":""},null,null,null,{"$f":"IFERROR(INDEX(Table1[Room description],MATCH('2) Room configuration'!D258,Table1[TMS],0)),\"\")","v":""},{"$f":"IFERROR(INDEX(Table1[Bedding],MATCH('2) Room configuration'!D258,Table1[TMS],0)),\"\")","v":""},null,null,{"$f":"IFERROR(INDEX(Table1[Room description],MATCH('2) Room configuration'!I258,Table1[TMS],0)),\"\")","v":""},{"$f":"IFERROR(INDEX(Table1[Bedding],MATCH('2) Room configuration'!I258,Table1[TMS],0)),\"\")","v":""},{"$f":"IFERROR(INDEX(Table1[Normal occupancy],MATCH(Table2[[#This Row],[New Room Type \n(TMS)]],Table1[TMS],0)),\"\")","v":""},null,null,null,null,"",{"$f":"IF(Table2[[#This Row],['# extra beds that fit in the room2]]<>0,LEFT(Table2[[#This Row],[New Room Type \n(TMS)]],6),\"\")","v":""},null,{"$f":"IF(Table2[[#This Row],['# extra beds that fit in the room]]<>Table2[[#This Row],['# extra beds that fit in the room2]],\"yes\",\"No\")","v":"No"}]
[null,{"$f":"IF(LEN(C259)>0,'1) Hotel information'!$C$4,\"\")","v":""},null,null,null,{"$f":"IFERROR(INDEX(Table1[Room description],MATCH('2) Room configuration'!D259,Table1[TMS],0)),\"\")","v":""},{"$f":"IFERROR(INDEX(Table1[Bedding],MATCH('2) Room configuration'!D259,Table1[TMS],0)),\"\")","v":""},null,null,{"$f":"IFERROR(INDEX(Table1[Room description],MATCH('2) Room configuration'!I259,Table1[TMS],0)),\"\")","v":""},{"$f":"IFERROR(INDEX(Table1[Bedding],MATCH('2) Room configuration'!I259,Table1[TMS],0)),\"\")","v":""},{"$f":"IFERROR(INDEX(Table1[Normal occupancy],MATCH(Table2[[#This Row],[New Room Type \n(TMS)]],Table1[TMS],0)),\"\")","v":""},null,null,null,null,"",{"$f":"IF(Table2[[#This Row],['# extra beds that fit in the room2]]<>0,LEFT(Table2[[#This Row],[New Room Type \n(TMS)]],6),\"\")","v":""},null,{"$f":"IF(Table2[[#This Row],['# extra beds that fit in the room]]<>Table2[[#This Row],['# extra beds that fit in the room2]],\"yes\",\"No\")","v":"No"}]
[null,{"$f":"IF(LEN(C260)>0,'1) Hotel information'!$C$4,\"\")","v":""},null,null,null,{"$f":"IFERROR(INDEX(Table1[Room description],MATCH('2) Room configuration'!D260,Table1[TMS],0)),\"\")","v":""},{"$f":"IFERROR(INDEX(Table1[Bedding],MATCH('2) Room configuration'!D260,Table1[TMS],0)),\"\")","v":""},null,null,{"$f":"IFERROR(INDEX(Table1[Room description],MATCH('2) Room configuration'!I260,Table1[TMS],0)),\"\")","v":""},{"$f":"IFERROR(INDEX(Table1[Bedding],MATCH('2) Room configuration'!I260,Table1[TMS],0)),\"\")","v":""},{"$f":"IFERROR(INDEX(Table1[Normal occupancy],MATCH(Table2[[#This Row],[New Room Type \n(TMS)]],Table1[TMS],0)),\"\")","v":""},null,null,null,null,"",{"$f":"IF(Table2[[#This Row],['# extra beds that fit in the room2]]<>0,LEFT(Table2[[#This Row],[New Room Type \n(TMS)]],6),\"\")","v":""},null,{"$f":"IF(Table2[[#This Row],['# extra beds that fit in the room]]<>Table2[[#This Row],['# extra beds that fit in the room2]],\"yes\",\"No\")","v":"No"}]
[null,{"$f":"IF(LEN(C261)>0,'1) Hotel information'!$C$4,\"\")","v":""},null,null,null,{"$f":"IFERROR(INDEX(Table1[Room description],MATCH('2) Room configuration'!D261,Table1[TMS],0)),\"\")","v":""},{"$f":"IFERROR(INDEX(Table1[Bedding],MATCH('2) Room configuration'!D261,Table1[TMS],0)),\"\")","v":""},null,null,{"$f":"IFERROR(INDEX(Table1[Room description],MATCH('2) Room configuration'!I261,Table1[TMS],0)),\"\")","v":""},{"$f":"IFERROR(INDEX(Table1[Bedding],MATCH('2) Room configuration'!I261,Table1[TMS],0)),\"\")","v":""},{"$f":"IFERROR(INDEX(Table1[Normal occupancy],MATCH(Table2[[#This Row],[New Room Type \n(TMS)]],Table1[TMS],0)),\"\")","v":""},null,null,null,null,"",{"$f":"IF(Table2[[#This Row],['# extra beds that fit in the room2]]<>0,LEFT(Table2[[#This Row],[New Room Type \n(TMS)]],6),\"\")","v":""},null,{"$f":"IF(Table2[[#This Row],['# extra beds that fit in the room]]<>Table2[[#This Row],['# extra beds that fit in the room2]],\"yes\",\"No\")","v":"No"}]
[null,{"$f":"IF(LEN(C262)>0,'1) Hotel information'!$C$4,\"\")","v":""},null,null,null,{"$f":"IFERROR(INDEX(Table1[Room description],MATCH('2) Room configuration'!D262,Table1[TMS],0)),\"\")","v":""},{"$f":"IFERROR(INDEX(Table1[Bedding],MATCH('2) Room configuration'!D262,Table1[TMS],0)),\"\")","v":""},null,null,{"$f":"IFERROR(INDEX(Table1[Room description],MATCH('2) Room configuration'!I262,Table1[TMS],0)),\"\")","v":""},{"$f":"IFERROR(INDEX(Table1[Bedding],MATCH('2) Room configuration'!I262,Table1[TMS],0)),\"\")","v":""},{"$f":"IFERROR(INDEX(Table1[Normal occupancy],MATCH(Table2[[#This Row],[New Room Type \n(TMS)]],Table1[TMS],0)),\"\")","v":""},null,null,null,null,"",{"$f":"IF(Table2[[#This Row],['# extra beds that fit in the room2]]<>0,LEFT(Table2[[#This Row],[New Room Type \n(TMS)]],6),\"\")","v":""},null,{"$f":"IF(Table2[[#This Row],['# extra beds that fit in the room]]<>Table2[[#This Row],['# extra beds that fit in the room2]],\"yes\",\"No\")","v":"No"}]
[null,{"$f":"IF(LEN(C263)>0,'1) Hotel information'!$C$4,\"\")","v":""},null,null,null,{"$f":"IFERROR(INDEX(Table1[Room description],MATCH('2) Room configuration'!D263,Table1[TMS],0)),\"\")","v":""},{"$f":"IFERROR(INDEX(Table1[Bedding],MATCH('2) Room configuration'!D263,Table1[TMS],0)),\"\")","v":""},null,null,{"$f":"IFERROR(INDEX(Table1[Room description],MATCH('2) Room configuration'!I263,Table1[TMS],0)),\"\")","v":""},{"$f":"IFERROR(INDEX(Table1[Bedding],MATCH('2) Room configuration'!I263,Table1[TMS],0)),\"\")","v":""},{"$f":"IFERROR(INDEX(Table1[Normal occupancy],MATCH(Table2[[#This Row],[New Room Type \n(TMS)]],Table1[TMS],0)),\"\")","v":""},null,null,null,null,"",{"$f":"IF(Table2[[#This Row],['# extra beds that fit in the room2]]<>0,LEFT(Table2[[#This Row],[New Room Type \n(TMS)]],6),\"\")","v":""},null,{"$f":"IF(Table2[[#This Row],['# extra beds that fit in the room]]<>Table2[[#This Row],['# extra beds that fit in the room2]],\"yes\",\"No\")","v":"No"}]
[null,{"$f":"IF(LEN(C264)>0,'1) Hotel information'!$C$4,\"\")","v":""},null,null,null,{"$f":"IFERROR(INDEX(Table1[Room description],MATCH('2) Room configuration'!D264,Table1[TMS],0)),\"\")","v":""},{"$f":"IFERROR(INDEX(Table1[Bedding],MATCH('2) Room configuration'!D264,Table1[TMS],0)),\"\")","v":""},null,null,{"$f":"IFERROR(INDEX(Table1[Room description],MATCH('2) Room configuration'!I264,Table1[TMS],0)),\"\")","v":""},{"$f":"IFERROR(INDEX(Table1[Bedding],MATCH('2) Room configuration'!I264,Table1[TMS],0)),\"\")","v":""},{"$f":"IFERROR(INDEX(Table1[Normal occupancy],MATCH(Table2[[#This Row],[New Room Type \n(TMS)]],Table1[TMS],0)),\"\")","v":""},null,null,null,null,"",{"$f":"IF(Table2[[#This Row],['# extra beds that fit in the room2]]<>0,LEFT(Table2[[#This Row],[New Room Type \n(TMS)]],6),\"\")","v":""},null,{"$f":"IF(Table2[[#This Row],['# extra beds that fit in the room]]<>Table2[[#This Row],['# extra beds that fit in the room2]],\"yes\",\"No\")","v":"No"}]
[null,{"$f":"IF(LEN(C265)>0,'1) Hotel information'!$C$4,\"\")","v":""},null,null,null,{"$f":"IFERROR(INDEX(Table1[Room description],MATCH('2) Room configuration'!D265,Table1[TMS],0)),\"\")","v":""},{"$f":"IFERROR(INDEX(Table1[Bedding],MATCH('2) Room configuration'!D265,Table1[TMS],0)),\"\")","v":""},null,null,{"$f":"IFERROR(INDEX(Table1[Room description],MATCH('2) Room configuration'!I265,Table1[TMS],0)),\"\")","v":""},{"$f":"IFERROR(INDEX(Table1[Bedding],MATCH('2) Room configuration'!I265,Table1[TMS],0)),\"\")","v":""},{"$f":"IFERROR(INDEX(Table1[Normal occupancy],MATCH(Table2[[#This Row],[New Room Type \n(TMS)]],Table1[TMS],0)),\"\")","v":""},null,null,null,null,"",{"$f":"IF(Table2[[#This Row],['# extra beds that fit in the room2]]<>0,LEFT(Table2[[#This Row],[New Room Type \n(TMS)]],6),\"\")","v":""},null,{"$f":"IF(Table2[[#This Row],['# extra beds that fit in the room]]<>Table2[[#This Row],['# extra beds that fit in the room2]],\"yes\",\"No\")","v":"No"}]
[null,{"$f":"IF(LEN(C266)>0,'1) Hotel information'!$C$4,\"\")","v":""},null,null,null,{"$f":"IFERROR(INDEX(Table1[Room description],MATCH('2) Room configuration'!D266,Table1[TMS],0)),\"\")","v":""},{"$f":"IFERROR(INDEX(Table1[Bedding],MATCH('2) Room configuration'!D266,Table1[TMS],0)),\"\")","v":""},null,null,{"$f":"IFERROR(INDEX(Table1[Room description],MATCH('2) Room configuration'!I266,Table1[TMS],0)),\"\")","v":""},{"$f":"IFERROR(INDEX(Table1[Bedding],MATCH('2) Room configuration'!I266,Table1[TMS],0)),\"\")","v":""},{"$f":"IFERROR(INDEX(Table1[Normal occupancy],MATCH(Table2[[#This Row],[New Room Type \n(TMS)]],Table1[TMS],0)),\"\")","v":""},null,null,null,null,"",{"$f":"IF(Table2[[#This Row],['# extra beds that fit in the room2]]<>0,LEFT(Table2[[#This Row],[New Room Type \n(TMS)]],6),\"\")","v":""},null,{"$f":"IF(Table2[[#This Row],['# extra beds that fit in the room]]<>Table2[[#This Row],['# extra beds that fit in the room2]],\"yes\",\"No\")","v":"No"}]
[null,{"$f":"IF(LEN(C267)>0,'1) Hotel information'!$C$4,\"\")","v":""},null,null,null,{"$f":"IFERROR(INDEX(Table1[Room description],MATCH('2) Room configuration'!D267,Table1[TMS],0)),\"\")","v":""},{"$f":"IFERROR(INDEX(Table1[Bedding],MATCH('2) Room configuration'!D267,Table1[TMS],0)),\"\")","v":""},null,null,{"$f":"IFERROR(INDEX(Table1[Room description],MATCH('2) Room configuration'!I267,Table1[TMS],0)),\"\")","v":""},{"$f":"IFERROR(INDEX(Table1[Bedding],MATCH('2) Room configuration'!I267,Table1[TMS],0)),\"\")","v":""},{"$f":"IFERROR(INDEX(Table1[Normal occupancy],MATCH(Table2[[#This Row],[New Room Type \n(TMS)]],Table1[TMS],0)),\"\")","v":""},null,null,null,null,"",{"$f":"IF(Table2[[#This Row],['# extra beds that fit in the room2]]<>0,LEFT(Table2[[#This Row],[New Room Type \n(TMS)]],6),\"\")","v":""},null,{"$f":"IF(Table2[[#This Row],['# extra beds that fit in the room]]<>Table2[[#This Row],['# extra beds that fit in the room2]],\"yes\",\"No\")","v":"No"}]
[null,{"$f":"IF(LEN(C268)>0,'1) Hotel information'!$C$4,\"\")","v":""},null,null,null,{"$f":"IFERROR(INDEX(Table1[Room description],MATCH('2) Room configuration'!D268,Table1[TMS],0)),\"\")","v":""},{"$f":"IFERROR(INDEX(Table1[Bedding],MATCH('2) Room configuration'!D268,Table1[TMS],0)),\"\")","v":""},null,null,{"$f":"IFERROR(INDEX(Table1[Room description],MATCH('2) Room configuration'!I268,Table1[TMS],0)),\"\")","v":""},{"$f":"IFERROR(INDEX(Table1[Bedding],MATCH('2) Room configuration'!I268,Table1[TMS],0)),\"\")","v":""},{"$f":"IFERROR(INDEX(Table1[Normal occupancy],MATCH(Table2[[#This Row],[New Room Type \n(TMS)]],Table1[TMS],0)),\"\")","v":""},null,null,null,null,{"$f":"IF(LEN(C268)>0,IF(D268=I268,\"No\",\"Yes\"),\"\")","v":""},{"$f":"IF(Table2[[#This Row],['# extra beds that fit in the room2]]<>0,LEFT(Table2[[#This Row],[New Room Type \n(TMS)]],6),\"\")","v":""},null,{"$f":"IF(Table2[[#This Row],['# extra beds that fit in the room]]<>Table2[[#This Row],['# extra beds that fit in the room2]],\"yes\",\"No\")","v":"No"}]
[null,{"$f":"IF(LEN(C269)>0,'1) Hotel information'!$C$4,\"\")","v":""},null,null,null,{"$f":"IFERROR(INDEX(Table1[Room description],MATCH('2) Room configuration'!D269,Table1[TMS],0)),\"\")","v":""},{"$f":"IFERROR(INDEX(Table1[Bedding],MATCH('2) Room configuration'!D269,Table1[TMS],0)),\"\")","v":""},null,null,{"$f":"IFERROR(INDEX(Table1[Room description],MATCH('2) Room configuration'!I269,Table1[TMS],0)),\"\")","v":""},{"$f":"IFERROR(INDEX(Table1[Bedding],MATCH('2) Room configuration'!I269,Table1[TMS],0)),\"\")","v":""},{"$f":"IFERROR(INDEX(Table1[Normal occupancy],MATCH(Table2[[#This Row],[New Room Type \n(TMS)]],Table1[TMS],0)),\"\")","v":""},null,null,null,null,"",{"$f":"IF(Table2[[#This Row],['# extra beds that fit in the room2]]<>0,LEFT(Table2[[#This Row],[New Room Type \n(TMS)]],6),\"\")","v":""},null,{"$f":"IF(Table2[[#This Row],['# extra beds that fit in the room]]<>Table2[[#This Row],['# extra beds that fit in the room2]],\"yes\",\"No\")","v":"No"}]
[null,{"$f":"IF(LEN(C270)>0,'1) Hotel information'!$C$4,\"\")","v":""},null,null,null,{"$f":"IFERROR(INDEX(Table1[Room description],MATCH('2) Room configuration'!D270,Table1[TMS],0)),\"\")","v":""},{"$f":"IFERROR(INDEX(Table1[Bedding],MATCH('2) Room configuration'!D270,Table1[TMS],0)),\"\")","v":""},null,null,{"$f":"IFERROR(INDEX(Table1[Room description],MATCH('2) Room configuration'!I270,Table1[TMS],0)),\"\")","v":""},{"$f":"IFERROR(INDEX(Table1[Bedding],MATCH('2) Room configuration'!I270,Table1[TMS],0)),\"\")","v":""},{"$f":"IFERROR(INDEX(Table1[Normal occupancy],MATCH(Table2[[#This Row],[New Room Type \n(TMS)]],Table1[TMS],0)),\"\")","v":""},null,null,null,null,"",{"$f":"IF(Table2[[#This Row],['# extra beds that fit in the room2]]<>0,LEFT(Table2[[#This Row],[New Room Type \n(TMS)]],6),\"\")","v":""},null,{"$f":"IF(Table2[[#This Row],['# extra beds that fit in the room]]<>Table2[[#This Row],['# extra beds that fit in the room2]],\"yes\",\"No\")","v":"No"}]
[null,{"$f":"IF(LEN(C271)>0,'1) Hotel information'!$C$4,\"\")","v":""},null,null,null,{"$f":"IFERROR(INDEX(Table1[Room description],MATCH('2) Room configuration'!D271,Table1[TMS],0)),\"\")","v":""},{"$f":"IFERROR(INDEX(Table1[Bedding],MATCH('2) Room configuration'!D271,Table1[TMS],0)),\"\")","v":""},null,null,{"$f":"IFERROR(INDEX(Table1[Room description],MATCH('2) Room configuration'!I271,Table1[TMS],0)),\"\")","v":""},{"$f":"IFERROR(INDEX(Table1[Bedding],MATCH('2) Room configuration'!I271,Table1[TMS],0)),\"\")","v":""},{"$f":"IFERROR(INDEX(Table1[Normal occupancy],MATCH(Table2[[#This Row],[New Room Type \n(TMS)]],Table1[TMS],0)),\"\")","v":""},null,null,null,null,"",{"$f":"IF(Table2[[#This Row],['# extra beds that fit in the room2]]<>0,LEFT(Table2[[#This Row],[New Room Type \n(TMS)]],6),\"\")","v":""},null,{"$f":"IF(Table2[[#This Row],['# extra beds that fit in the room]]<>Table2[[#This Row],['# extra beds that fit in the room2]],\"yes\",\"No\")","v":"No"}]
[null,{"$f":"IF(LEN(C272)>0,'1) Hotel information'!$C$4,\"\")","v":""},null,null,null,{"$f":"IFERROR(INDEX(Table1[Room description],MATCH('2) Room configuration'!D272,Table1[TMS],0)),\"\")","v":""},{"$f":"IFERROR(INDEX(Table1[Bedding],MATCH('2) Room configuration'!D272,Table1[TMS],0)),\"\")","v":""},null,null,{"$f":"IFERROR(INDEX(Table1[Room description],MATCH('2) Room configuration'!I272,Table1[TMS],0)),\"\")","v":""},{"$f":"IFERROR(INDEX(Table1[Bedding],MATCH('2) Room configuration'!I272,Table1[TMS],0)),\"\")","v":""},{"$f":"IFERROR(INDEX(Table1[Normal occupancy],MATCH(Table2[[#This Row],[New Room Type \n(TMS)]],Table1[TMS],0)),\"\")","v":""},null,null,null,null,"",{"$f":"IF(Table2[[#This Row],['# extra beds that fit in the room2]]<>0,LEFT(Table2[[#This Row],[New Room Type \n(TMS)]],6),\"\")","v":""},null,{"$f":"IF(Table2[[#This Row],['# extra beds that fit in the room]]<>Table2[[#This Row],['# extra beds that fit in the room2]],\"yes\",\"No\")","v":"No"}]
[null,{"$f":"IF(LEN(C273)>0,'1) Hotel information'!$C$4,\"\")","v":""},null,null,null,{"$f":"IFERROR(INDEX(Table1[Room description],MATCH('2) Room configuration'!D273,Table1[TMS],0)),\"\")","v":""},{"$f":"IFERROR(INDEX(Table1[Bedding],MATCH('2) Room configuration'!D273,Table1[TMS],0)),\"\")","v":""},null,null,{"$f":"IFERROR(INDEX(Table1[Room description],MATCH('2) Room configuration'!I273,Table1[TMS],0)),\"\")","v":""},{"$f":"IFERROR(INDEX(Table1[Bedding],MATCH('2) Room configuration'!I273,Table1[TMS],0)),\"\")","v":""},{"$f":"IFERROR(INDEX(Table1[Normal occupancy],MATCH(Table2[[#This Row],[New Room Type \n(TMS)]],Table1[TMS],0)),\"\")","v":""},null,null,null,null,"",{"$f":"IF(Table2[[#This Row],['# extra beds that fit in the room2]]<>0,LEFT(Table2[[#This Row],[New Room Type \n(TMS)]],6),\"\")","v":""},null,{"$f":"IF(Table2[[#This Row],['# extra beds that fit in the room]]<>Table2[[#This Row],['# extra beds that fit in the room2]],\"yes\",\"No\")","v":"No"}]
[null,{"$f":"IF(LEN(C274)>0,'1) Hotel information'!$C$4,\"\")","v":""},null,null,null,{"$f":"IFERROR(INDEX(Table1[Room description],MATCH('2) Room configuration'!D274,Table1[TMS],0)),\"\")","v":""},{"$f":"IFERROR(INDEX(Table1[Bedding],MATCH('2) Room configuration'!D274,Table1[TMS],0)),\"\")","v":""},null,null,{"$f":"IFERROR(INDEX(Table1[Room description],MATCH('2) Room configuration'!I274,Table1[TMS],0)),\"\")","v":""},{"$f":"IFERROR(INDEX(Table1[Bedding],MATCH('2) Room configuration'!I274,Table1[TMS],0)),\"\")","v":""},{"$f":"IFERROR(INDEX(Table1[Normal occupancy],MATCH(Table2[[#This Row],[New Room Type \n(TMS)]],Table1[TMS],0)),\"\")","v":""},null,null,null,null,"",{"$f":"IF(Table2[[#This Row],['# extra beds that fit in the room2]]<>0,LEFT(Table2[[#This Row],[New Room Type \n(TMS)]],6),\"\")","v":""},null,{"$f":"IF(Table2[[#This Row],['# extra beds that fit in the room]]<>Table2[[#This Row],['# extra beds that fit in the room2]],\"yes\",\"No\")","v":"No"}]
[null,{"$f":"IF(LEN(C275)>0,'1) Hotel information'!$C$4,\"\")","v":""},null,null,null,{"$f":"IFERROR(INDEX(Table1[Room description],MATCH('2) Room configuration'!D275,Table1[TMS],0)),\"\")","v":""},{"$f":"IFERROR(INDEX(Table1[Bedding],MATCH('2) Room configuration'!D275,Table1[TMS],0)),\"\")","v":""},null,null,{"$f":"IFERROR(INDEX(Table1[Room description],MATCH('2) Room configuration'!I275,Table1[TMS],0)),\"\")","v":""},{"$f":"IFERROR(INDEX(Table1[Bedding],MATCH('2) Room configuration'!I275,Table1[TMS],0)),\"\")","v":""},{"$f":"IFERROR(INDEX(Table1[Normal occupancy],MATCH(Table2[[#This Row],[New Room Type \n(TMS)]],Table1[TMS],0)),\"\")","v":""},null,null,null,null,"",{"$f":"IF(Table2[[#This Row],['# extra beds that fit in the room2]]<>0,LEFT(Table2[[#This Row],[New Room Type \n(TMS)]],6),\"\")","v":""},null,{"$f":"IF(Table2[[#This Row],['# extra beds that fit in the room]]<>Table2[[#This Row],['# extra beds that fit in the room2]],\"yes\",\"No\")","v":"No"}]
[null,{"$f":"IF(LEN(C276)>0,'1) Hotel information'!$C$4,\"\")","v":""},null,null,null,{"$f":"IFERROR(INDEX(Table1[Room description],MATCH('2) Room configuration'!D276,Table1[TMS],0)),\"\")","v":""},{"$f":"IFERROR(INDEX(Table1[Bedding],MATCH('2) Room configuration'!D276,Table1[TMS],0)),\"\")","v":""},null,null,{"$f":"IFERROR(INDEX(Table1[Room description],MATCH('2) Room configuration'!I276,Table1[TMS],0)),\"\")","v":""},{"$f":"IFERROR(INDEX(Table1[Bedding],MATCH('2) Room configuration'!I276,Table1[TMS],0)),\"\")","v":""},{"$f":"IFERROR(INDEX(Table1[Normal occupancy],MATCH(Table2[[#This Row],[New Room Type \n(TMS)]],Table1[TMS],0)),\"\")","v":""},null,null,null,null,"",{"$f":"IF(Table2[[#This Row],['# extra beds that fit in the room2]]<>0,LEFT(Table2[[#This Row],[New Room Type \n(TMS)]],6),\"\")","v":""},null,{"$f":"IF(Table2[[#This Row],['# extra beds that fit in the room]]<>Table2[[#This Row],['# extra beds that fit in the room2]],\"yes\",\"No\")","v":"No"}]
[null,{"$f":"IF(LEN(C277)>0,'1) Hotel information'!$C$4,\"\")","v":""},null,null,null,{"$f":"IFERROR(INDEX(Table1[Room description],MATCH('2) Room configuration'!D277,Table1[TMS],0)),\"\")","v":""},{"$f":"IFERROR(INDEX(Table1[Bedding],MATCH('2) Room configuration'!D277,Table1[TMS],0)),\"\")","v":""},null,null,{"$f":"IFERROR(INDEX(Table1[Room description],MATCH('2) Room configuration'!I277,Table1[TMS],0)),\"\")","v":""},{"$f":"IFERROR(INDEX(Table1[Bedding],MATCH('2) Room configuration'!I277,Table1[TMS],0)),\"\")","v":""},{"$f":"IFERROR(INDEX(Table1[Normal occupancy],MATCH(Table2[[#This Row],[New Room Type \n(TMS)]],Table1[TMS],0)),\"\")","v":""},null,null,null,null,"",{"$f":"IF(Table2[[#This Row],['# extra beds that fit in the room2]]<>0,LEFT(Table2[[#This Row],[New Room Type \n(TMS)]],6),\"\")","v":""},null,{"$f":"IF(Table2[[#This Row],['# extra beds that fit in the room]]<>Table2[[#This Row],['# extra beds that fit in the room2]],\"yes\",\"No\")","v":"No"}]
[null,{"$f":"IF(LEN(C278)>0,'1) Hotel information'!$C$4,\"\")","v":""},null,null,null,{"$f":"IFERROR(INDEX(Table1[Room description],MATCH('2) Room configuration'!D278,Table1[TMS],0)),\"\")","v":""},{"$f":"IFERROR(INDEX(Table1[Bedding],MATCH('2) Room configuration'!D278,Table1[TMS],0)),\"\")","v":""},null,null,{"$f":"IFERROR(INDEX(Table1[Room description],MATCH('2) Room configuration'!I278,Table1[TMS],0)),\"\")","v":""},{"$f":"IFERROR(INDEX(Table1[Bedding],MATCH('2) Room configuration'!I278,Table1[TMS],0)),\"\")","v":""},{"$f":"IFERROR(INDEX(Table1[Normal occupancy],MATCH(Table2[[#This Row],[New Room Type \n(TMS)]],Table1[TMS],0)),\"\")","v":""},null,null,null,null,"",{"$f":"IF(Table2[[#This Row],['# extra beds that fit in the room2]]<>0,LEFT(Table2[[#This Row],[New Room Type \n(TMS)]],6),\"\")","v":""},null,{"$f":"IF(Table2[[#This Row],['# extra beds that fit in the room]]<>Table2[[#This Row],['# extra beds that fit in the room2]],\"yes\",\"No\")","v":"No"}]
[null,{"$f":"IF(LEN(C279)>0,'1) Hotel information'!$C$4,\"\")","v":""},null,null,null,{"$f":"IFERROR(INDEX(Table1[Room description],MATCH('2) Room configuration'!D279,Table1[TMS],0)),\"\")","v":""},{"$f":"IFERROR(INDEX(Table1[Bedding],MATCH('2) Room configuration'!D279,Table1[TMS],0)),\"\")","v":""},null,null,{"$f":"IFERROR(INDEX(Table1[Room description],MATCH('2) Room configuration'!I279,Table1[TMS],0)),\"\")","v":""},{"$f":"IFERROR(INDEX(Table1[Bedding],MATCH('2) Room configuration'!I279,Table1[TMS],0)),\"\")","v":""},{"$f":"IFERROR(INDEX(Table1[Normal occupancy],MATCH(Table2[[#This Row],[New Room Type \n(TMS)]],Table1[TMS],0)),\"\")","v":""},null,null,null,null,"",{"$f":"IF(Table2[[#This Row],['# extra beds that fit in the room2]]<>0,LEFT(Table2[[#This Row],[New Room Type \n(TMS)]],6),\"\")","v":""},null,{"$f":"IF(Table2[[#This Row],['# extra beds that fit in the room]]<>Table2[[#This Row],['# extra beds that fit in the room2]],\"yes\",\"No\")","v":"No"}]
[null,{"$f":"IF(LEN(C280)>0,'1) Hotel information'!$C$4,\"\")","v":""},null,null,null,{"$f":"IFERROR(INDEX(Table1[Room description],MATCH('2) Room configuration'!D280,Table1[TMS],0)),\"\")","v":""},{"$f":"IFERROR(INDEX(Table1[Bedding],MATCH('2) Room configuration'!D280,Table1[TMS],0)),\"\")","v":""},null,null,{"$f":"IFERROR(INDEX(Table1[Room description],MATCH('2) Room configuration'!I280,Table1[TMS],0)),\"\")","v":""},{"$f":"IFERROR(INDEX(Table1[Bedding],MATCH('2) Room configuration'!I280,Table1[TMS],0)),\"\")","v":""},{"$f":"IFERROR(INDEX(Table1[Normal occupancy],MATCH(Table2[[#This Row],[New Room Type \n(TMS)]],Table1[TMS],0)),\"\")","v":""},null,null,null,null,"",{"$f":"IF(Table2[[#This Row],['# extra beds that fit in the room2]]<>0,LEFT(Table2[[#This Row],[New Room Type \n(TMS)]],6),\"\")","v":""},null,{"$f":"IF(Table2[[#This Row],['# extra beds that fit in the room]]<>Table2[[#This Row],['# extra beds that fit in the room2]],\"yes\",\"No\")","v":"No"}]
[null,{"$f":"IF(LEN(C281)>0,'1) Hotel information'!$C$4,\"\")","v":""},null,null,null,{"$f":"IFERROR(INDEX(Table1[Room description],MATCH('2) Room configuration'!D281,Table1[TMS],0)),\"\")","v":""},{"$f":"IFERROR(INDEX(Table1[Bedding],MATCH('2) Room configuration'!D281,Table1[TMS],0)),\"\")","v":""},null,null,{"$f":"IFERROR(INDEX(Table1[Room description],MATCH('2) Room configuration'!I281,Table1[TMS],0)),\"\")","v":""},{"$f":"IFERROR(INDEX(Table1[Bedding],MATCH('2) Room configuration'!I281,Table1[TMS],0)),\"\")","v":""},{"$f":"IFERROR(INDEX(Table1[Normal occupancy],MATCH(Table2[[#This Row],[New Room Type \n(TMS)]],Table1[TMS],0)),\"\")","v":""},null,null,null,null,"",{"$f":"IF(Table2[[#This Row],['# extra beds that fit in the room2]]<>0,LEFT(Table2[[#This Row],[New Room Type \n(TMS)]],6),\"\")","v":""},null,{"$f":"IF(Table2[[#This Row],['# extra beds that fit in the room]]<>Table2[[#This Row],['# extra beds that fit in the room2]],\"yes\",\"No\")","v":"No"}]
[null,{"$f":"IF(LEN(C282)>0,'1) Hotel information'!$C$4,\"\")","v":""},null,null,null,{"$f":"IFERROR(INDEX(Table1[Room description],MATCH('2) Room configuration'!D282,Table1[TMS],0)),\"\")","v":""},{"$f":"IFERROR(INDEX(Table1[Bedding],MATCH('2) Room configuration'!D282,Table1[TMS],0)),\"\")","v":""},null,null,{"$f":"IFERROR(INDEX(Table1[Room description],MATCH('2) Room configuration'!I282,Table1[TMS],0)),\"\")","v":""},{"$f":"IFERROR(INDEX(Table1[Bedding],MATCH('2) Room configuration'!I282,Table1[TMS],0)),\"\")","v":""},{"$f":"IFERROR(INDEX(Table1[Normal occupancy],MATCH(Table2[[#This Row],[New Room Type \n(TMS)]],Table1[TMS],0)),\"\")","v":""},null,null,null,null,"",{"$f":"IF(Table2[[#This Row],['# extra beds that fit in the room2]]<>0,LEFT(Table2[[#This Row],[New Room Type \n(TMS)]],6),\"\")","v":""},null,{"$f":"IF(Table2[[#This Row],['# extra beds that fit in the room]]<>Table2[[#This Row],['# extra beds that fit in the room2]],\"yes\",\"No\")","v":"No"}]
[null,{"$f":"IF(LEN(C283)>0,'1) Hotel information'!$C$4,\"\")","v":""},null,null,null,{"$f":"IFERROR(INDEX(Table1[Room description],MATCH('2) Room configuration'!D283,Table1[TMS],0)),\"\")","v":""},{"$f":"IFERROR(INDEX(Table1[Bedding],MATCH('2) Room configuration'!D283,Table1[TMS],0)),\"\")","v":""},null,null,{"$f":"IFERROR(INDEX(Table1[Room description],MATCH('2) Room configuration'!I283,Table1[TMS],0)),\"\")","v":""},{"$f":"IFERROR(INDEX(Table1[Bedding],MATCH('2) Room configuration'!I283,Table1[TMS],0)),\"\")","v":""},{"$f":"IFERROR(INDEX(Table1[Normal occupancy],MATCH(Table2[[#This Row],[New Room Type \n(TMS)]],Table1[TMS],0)),\"\")","v":""},null,null,null,null,"",{"$f":"IF(Table2[[#This Row],['# extra beds that fit in the room2]]<>0,LEFT(Table2[[#This Row],[New Room Type \n(TMS)]],6),\"\")","v":""},null,{"$f":"IF(Table2[[#This Row],['# extra beds that fit in the room]]<>Table2[[#This Row],['# extra beds that fit in the room2]],\"yes\",\"No\")","v":"No"}]
[null,{"$f":"IF(LEN(C284)>0,'1) Hotel information'!$C$4,\"\")","v":""},null,null,null,{"$f":"IFERROR(INDEX(Table1[Room description],MATCH('2) Room configuration'!D284,Table1[TMS],0)),\"\")","v":""},{"$f":"IFERROR(INDEX(Table1[Bedding],MATCH('2) Room configuration'!D284,Table1[TMS],0)),\"\")","v":""},null,null,{"$f":"IFERROR(INDEX(Table1[Room description],MATCH('2) Room configuration'!I284,Table1[TMS],0)),\"\")","v":""},{"$f":"IFERROR(INDEX(Table1[Bedding],MATCH('2) Room configuration'!I284,Table1[TMS],0)),\"\")","v":""},{"$f":"IFERROR(INDEX(Table1[Normal occupancy],MATCH(Table2[[#This Row],[New Room Type \n(TMS)]],Table1[TMS],0)),\"\")","v":""},null,null,null,null,"",{"$f":"IF(Table2[[#This Row],['# extra beds that fit in the room2]]<>0,LEFT(Table2[[#This Row],[New Room Type \n(TMS)]],6),\"\")","v":""},null,{"$f":"IF(Table2[[#This Row],['# extra beds that fit in the room]]<>Table2[[#This Row],['# extra beds that fit in the room2]],\"yes\",\"No\")","v":"No"}]
[null,{"$f":"IF(LEN(C285)>0,'1) Hotel information'!$C$4,\"\")","v":""},null,null,null,{"$f":"IFERROR(INDEX(Table1[Room description],MATCH('2) Room configuration'!D285,Table1[TMS],0)),\"\")","v":""},{"$f":"IFERROR(INDEX(Table1[Bedding],MATCH('2) Room configuration'!D285,Table1[TMS],0)),\"\")","v":""},null,null,{"$f":"IFERROR(INDEX(Table1[Room description],MATCH('2) Room configuration'!I285,Table1[TMS],0)),\"\")","v":""},{"$f":"IFERROR(INDEX(Table1[Bedding],MATCH('2) Room configuration'!I285,Table1[TMS],0)),\"\")","v":""},{"$f":"IFERROR(INDEX(Table1[Normal occupancy],MATCH(Table2[[#This Row],[New Room Type \n(TMS)]],Table1[TMS],0)),\"\")","v":""},null,null,null,null,"",{"$f":"IF(Table2[[#This Row],['# extra beds that fit in the room2]]<>0,LEFT(Table2[[#This Row],[New Room Type \n(TMS)]],6),\"\")","v":""},null,{"$f":"IF(Table2[[#This Row],['# extra beds that fit in the room]]<>Table2[[#This Row],['# extra beds that fit in the room2]],\"yes\",\"No\")","v":"No"}]
[null,{"$f":"IF(LEN(C286)>0,'1) Hotel information'!$C$4,\"\")","v":""},null,null,null,{"$f":"IFERROR(INDEX(Table1[Room description],MATCH('2) Room configuration'!D286,Table1[TMS],0)),\"\")","v":""},{"$f":"IFERROR(INDEX(Table1[Bedding],MATCH('2) Room configuration'!D286,Table1[TMS],0)),\"\")","v":""},null,null,{"$f":"IFERROR(INDEX(Table1[Room description],MATCH('2) Room configuration'!I286,Table1[TMS],0)),\"\")","v":""},{"$f":"IFERROR(INDEX(Table1[Bedding],MATCH('2) Room configuration'!I286,Table1[TMS],0)),\"\")","v":""},{"$f":"IFERROR(INDEX(Table1[Normal occupancy],MATCH(Table2[[#This Row],[New Room Type \n(TMS)]],Table1[TMS],0)),\"\")","v":""},null,null,null,null,"",{"$f":"IF(Table2[[#This Row],['# extra beds that fit in the room2]]<>0,LEFT(Table2[[#This Row],[New Room Type \n(TMS)]],6),\"\")","v":""},null,{"$f":"IF(Table2[[#This Row],['# extra beds that fit in the room]]<>Table2[[#This Row],['# extra beds that fit in the room2]],\"yes\",\"No\")","v":"No"}]
[null,{"$f":"IF(LEN(C287)>0,'1) Hotel information'!$C$4,\"\")","v":""},null,null,null,{"$f":"IFERROR(INDEX(Table1[Room description],MATCH('2) Room configuration'!D287,Table1[TMS],0)),\"\")","v":""},{"$f":"IFERROR(INDEX(Table1[Bedding],MATCH('2) Room configuration'!D287,Table1[TMS],0)),\"\")","v":""},null,null,{"$f":"IFERROR(INDEX(Table1[Room description],MATCH('2) Room configuration'!I287,Table1[TMS],0)),\"\")","v":""},{"$f":"IFERROR(INDEX(Table1[Bedding],MATCH('2) Room configuration'!I287,Table1[TMS],0)),\"\")","v":""},{"$f":"IFERROR(INDEX(Table1[Normal occupancy],MATCH(Table2[[#This Row],[New Room Type \n(TMS)]],Table1[TMS],0)),\"\")","v":""},null,null,null,null,"",{"$f":"IF(Table2[[#This Row],['# extra beds that fit in the room2]]<>0,LEFT(Table2[[#This Row],[New Room Type \n(TMS)]],6),\"\")","v":""},null,{"$f":"IF(Table2[[#This Row],['# extra beds that fit in the room]]<>Table2[[#This Row],['# extra beds that fit in the room2]],\"yes\",\"No\")","v":"No"}]
[null,{"$f":"IF(LEN(C288)>0,'1) Hotel information'!$C$4,\"\")","v":""},null,null,null,{"$f":"IFERROR(INDEX(Table1[Room description],MATCH('2) Room configuration'!D288,Table1[TMS],0)),\"\")","v":""},{"$f":"IFERROR(INDEX(Table1[Bedding],MATCH('2) Room configuration'!D288,Table1[TMS],0)),\"\")","v":""},null,null,{"$f":"IFERROR(INDEX(Table1[Room description],MATCH('2) Room configuration'!I288,Table1[TMS],0)),\"\")","v":""},{"$f":"IFERROR(INDEX(Table1[Bedding],MATCH('2) Room configuration'!I288,Table1[TMS],0)),\"\")","v":""},{"$f":"IFERROR(INDEX(Table1[Normal occupancy],MATCH(Table2[[#This Row],[New Room Type \n(TMS)]],Table1[TMS],0)),\"\")","v":""},null,null,null,null,"",{"$f":"IF(Table2[[#This Row],['# extra beds that fit in the room2]]<>0,LEFT(Table2[[#This Row],[New Room Type \n(TMS)]],6),\"\")","v":""},null,{"$f":"IF(Table2[[#This Row],['# extra beds that fit in the room]]<>Table2[[#This Row],['# extra beds that fit in the room2]],\"yes\",\"No\")","v":"No"}]
[null,{"$f":"IF(LEN(C289)>0,'1) Hotel information'!$C$4,\"\")","v":""},null,null,null,{"$f":"IFERROR(INDEX(Table1[Room description],MATCH('2) Room configuration'!D289,Table1[TMS],0)),\"\")","v":""},{"$f":"IFERROR(INDEX(Table1[Bedding],MATCH('2) Room configuration'!D289,Table1[TMS],0)),\"\")","v":""},null,null,{"$f":"IFERROR(INDEX(Table1[Room description],MATCH('2) Room configuration'!I289,Table1[TMS],0)),\"\")","v":""},{"$f":"IFERROR(INDEX(Table1[Bedding],MATCH('2) Room configuration'!I289,Table1[TMS],0)),\"\")","v":""},{"$f":"IFERROR(INDEX(Table1[Normal occupancy],MATCH(Table2[[#This Row],[New Room Type \n(TMS)]],Table1[TMS],0)),\"\")","v":""},null,null,null,null,"",{"$f":"IF(Table2[[#This Row],['# extra beds that fit in the room2]]<>0,LEFT(Table2[[#This Row],[New Room Type \n(TMS)]],6),\"\")","v":""},null,{"$f":"IF(Table2[[#This Row],['# extra beds that fit in the room]]<>Table2[[#This Row],['# extra beds that fit in the room2]],\"yes\",\"No\")","v":"No"}]
[null,{"$f":"IF(LEN(C290)>0,'1) Hotel information'!$C$4,\"\")","v":""},null,null,null,{"$f":"IFERROR(INDEX(Table1[Room description],MATCH('2) Room configuration'!D290,Table1[TMS],0)),\"\")","v":""},{"$f":"IFERROR(INDEX(Table1[Bedding],MATCH('2) Room configuration'!D290,Table1[TMS],0)),\"\")","v":""},null,null,{"$f":"IFERROR(INDEX(Table1[Room description],MATCH('2) Room configuration'!I290,Table1[TMS],0)),\"\")","v":""},{"$f":"IFERROR(INDEX(Table1[Bedding],MATCH('2) Room configuration'!I290,Table1[TMS],0)),\"\")","v":""},{"$f":"IFERROR(INDEX(Table1[Normal occupancy],MATCH(Table2[[#This Row],[New Room Type \n(TMS)]],Table1[TMS],0)),\"\")","v":""},null,null,null,null,"",{"$f":"IF(Table2[[#This Row],['# extra beds that fit in the room2]]<>0,LEFT(Table2[[#This Row],[New Room Type \n(TMS)]],6),\"\")","v":""},null,{"$f":"IF(Table2[[#This Row],['# extra beds that fit in the room]]<>Table2[[#This Row],['# extra beds that fit in the room2]],\"yes\",\"No\")","v":"No"}]
[null,{"$f":"IF(LEN(C291)>0,'1) Hotel information'!$C$4,\"\")","v":""},null,null,null,{"$f":"IFERROR(INDEX(Table1[Room description],MATCH('2) Room configuration'!D291,Table1[TMS],0)),\"\")","v":""},{"$f":"IFERROR(INDEX(Table1[Bedding],MATCH('2) Room configuration'!D291,Table1[TMS],0)),\"\")","v":""},null,null,{"$f":"IFERROR(INDEX(Table1[Room description],MATCH('2) Room configuration'!I291,Table1[TMS],0)),\"\")","v":""},{"$f":"IFERROR(INDEX(Table1[Bedding],MATCH('2) Room configuration'!I291,Table1[TMS],0)),\"\")","v":""},{"$f":"IFERROR(INDEX(Table1[Normal occupancy],MATCH(Table2[[#This Row],[New Room Type \n(TMS)]],Table1[TMS],0)),\"\")","v":""},null,null,null,null,"",{"$f":"IF(Table2[[#This Row],['# extra beds that fit in the room2]]<>0,LEFT(Table2[[#This Row],[New Room Type \n(TMS)]],6),\"\")","v":""},null,{"$f":"IF(Table2[[#This Row],['# extra beds that fit in the room]]<>Table2[[#This Row],['# extra beds that fit in the room2]],\"yes\",\"No\")","v":"No"}]
[null,{"$f":"IF(LEN(C292)>0,'1) Hotel information'!$C$4,\"\")","v":""},null,null,null,{"$f":"IFERROR(INDEX(Table1[Room description],MATCH('2) Room configuration'!D292,Table1[TMS],0)),\"\")","v":""},{"$f":"IFERROR(INDEX(Table1[Bedding],MATCH('2) Room configuration'!D292,Table1[TMS],0)),\"\")","v":""},null,null,{"$f":"IFERROR(INDEX(Table1[Room description],MATCH('2) Room configuration'!I292,Table1[TMS],0)),\"\")","v":""},{"$f":"IFERROR(INDEX(Table1[Bedding],MATCH('2) Room configuration'!I292,Table1[TMS],0)),\"\")","v":""},{"$f":"IFERROR(INDEX(Table1[Normal occupancy],MATCH(Table2[[#This Row],[New Room Type \n(TMS)]],Table1[TMS],0)),\"\")","v":""},null,null,null,null,"",{"$f":"IF(Table2[[#This Row],['# extra beds that fit in the room2]]<>0,LEFT(Table2[[#This Row],[New Room Type \n(TMS)]],6),\"\")","v":""},null,{"$f":"IF(Table2[[#This Row],['# extra beds that fit in the room]]<>Table2[[#This Row],['# extra beds that fit in the room2]],\"yes\",\"No\")","v":"No"}]
[null,{"$f":"IF(LEN(C293)>0,'1) Hotel information'!$C$4,\"\")","v":""},null,null,null,{"$f":"IFERROR(INDEX(Table1[Room description],MATCH('2) Room configuration'!D293,Table1[TMS],0)),\"\")","v":""},{"$f":"IFERROR(INDEX(Table1[Bedding],MATCH('2) Room configuration'!D293,Table1[TMS],0)),\"\")","v":""},null,null,{"$f":"IFERROR(INDEX(Table1[Room description],MATCH('2) Room configuration'!I293,Table1[TMS],0)),\"\")","v":""},{"$f":"IFERROR(INDEX(Table1[Bedding],MATCH('2) Room configuration'!I293,Table1[TMS],0)),\"\")","v":""},{"$f":"IFERROR(INDEX(Table1[Normal occupancy],MATCH(Table2[[#This Row],[New Room Type \n(TMS)]],Table1[TMS],0)),\"\")","v":""},null,null,null,null,"",{"$f":"IF(Table2[[#This Row],['# extra beds that fit in the room2]]<>0,LEFT(Table2[[#This Row],[New Room Type \n(TMS)]],6),\"\")","v":""},null,{"$f":"IF(Table2[[#This Row],['# extra beds that fit in the room]]<>Table2[[#This Row],['# extra beds that fit in the room2]],\"yes\",\"No\")","v":"No"}]
[null,{"$f":"IF(LEN(C294)>0,'1) Hotel information'!$C$4,\"\")","v":""},null,null,null,{"$f":"IFERROR(INDEX(Table1[Room description],MATCH('2) Room configuration'!D294,Table1[TMS],0)),\"\")","v":""},{"$f":"IFERROR(INDEX(Table1[Bedding],MATCH('2) Room configuration'!D294,Table1[TMS],0)),\"\")","v":""},null,null,{"$f":"IFERROR(INDEX(Table1[Room description],MATCH('2) Room configuration'!I294,Table1[TMS],0)),\"\")","v":""},{"$f":"IFERROR(INDEX(Table1[Bedding],MATCH('2) Room configuration'!I294,Table1[TMS],0)),\"\")","v":""},{"$f":"IFERROR(INDEX(Table1[Normal occupancy],MATCH(Table2[[#This Row],[New Room Type \n(TMS)]],Table1[TMS],0)),\"\")","v":""},null,null,null,null,"",{"$f":"IF(Table2[[#This Row],['# extra beds that fit in the room2]]<>0,LEFT(Table2[[#This Row],[New Room Type \n(TMS)]],6),\"\")","v":""},null,{"$f":"IF(Table2[[#This Row],['# extra beds that fit in the room]]<>Table2[[#This Row],['# extra beds that fit in the room2]],\"yes\",\"No\")","v":"No"}]
[null,{"$f":"IF(LEN(C295)>0,'1) Hotel information'!$C$4,\"\")","v":""},null,null,null,{"$f":"IFERROR(INDEX(Table1[Room description],MATCH('2) Room configuration'!D295,Table1[TMS],0)),\"\")","v":""},{"$f":"IFERROR(INDEX(Table1[Bedding],MATCH('2) Room configuration'!D295,Table1[TMS],0)),\"\")","v":""},null,null,{"$f":"IFERROR(INDEX(Table1[Room description],MATCH('2) Room configuration'!I295,Table1[TMS],0)),\"\")","v":""},{"$f":"IFERROR(INDEX(Table1[Bedding],MATCH('2) Room configuration'!I295,Table1[TMS],0)),\"\")","v":""},{"$f":"IFERROR(INDEX(Table1[Normal occupancy],MATCH(Table2[[#This Row],[New Room Type \n(TMS)]],Table1[TMS],0)),\"\")","v":""},null,null,null,null,"",{"$f":"IF(Table2[[#This Row],['# extra beds that fit in the room2]]<>0,LEFT(Table2[[#This Row],[New Room Type \n(TMS)]],6),\"\")","v":""},null,{"$f":"IF(Table2[[#This Row],['# extra beds that fit in the room]]<>Table2[[#This Row],['# extra beds that fit in the room2]],\"yes\",\"No\")","v":"No"}]
[null,{"$f":"IF(LEN(C296)>0,'1) Hotel information'!$C$4,\"\")","v":""},null,null,null,{"$f":"IFERROR(INDEX(Table1[Room description],MATCH('2) Room configuration'!D296,Table1[TMS],0)),\"\")","v":""},{"$f":"IFERROR(INDEX(Table1[Bedding],MATCH('2) Room configuration'!D296,Table1[TMS],0)),\"\")","v":""},null,null,{"$f":"IFERROR(INDEX(Table1[Room description],MATCH('2) Room configuration'!I296,Table1[TMS],0)),\"\")","v":""},{"$f":"IFERROR(INDEX(Table1[Bedding],MATCH('2) Room configuration'!I296,Table1[TMS],0)),\"\")","v":""},{"$f":"IFERROR(INDEX(Table1[Normal occupancy],MATCH(Table2[[#This Row],[New Room Type \n(TMS)]],Table1[TMS],0)),\"\")","v":""},null,null,null,null,"",{"$f":"IF(Table2[[#This Row],['# extra beds that fit in the room2]]<>0,LEFT(Table2[[#This Row],[New Room Type \n(TMS)]],6),\"\")","v":""},null,{"$f":"IF(Table2[[#This Row],['# extra beds that fit in the room]]<>Table2[[#This Row],['# extra beds that fit in the room2]],\"yes\",\"No\")","v":"No"}]
[null,{"$f":"IF(LEN(C297)>0,'1) Hotel information'!$C$4,\"\")","v":""},null,null,null,{"$f":"IFERROR(INDEX(Table1[Room description],MATCH('2) Room configuration'!D297,Table1[TMS],0)),\"\")","v":""},{"$f":"IFERROR(INDEX(Table1[Bedding],MATCH('2) Room configuration'!D297,Table1[TMS],0)),\"\")","v":""},null,null,{"$f":"IFERROR(INDEX(Table1[Room description],MATCH('2) Room configuration'!I297,Table1[TMS],0)),\"\")","v":""},{"$f":"IFERROR(INDEX(Table1[Bedding],MATCH('2) Room configuration'!I297,Table1[TMS],0)),\"\")","v":""},{"$f":"IFERROR(INDEX(Table1[Normal occupancy],MATCH(Table2[[#This Row],[New Room Type \n(TMS)]],Table1[TMS],0)),\"\")","v":""},null,null,null,null,"",{"$f":"IF(Table2[[#This Row],['# extra beds that fit in the room2]]<>0,LEFT(Table2[[#This Row],[New Room Type \n(TMS)]],6),\"\")","v":""},null,{"$f":"IF(Table2[[#This Row],['# extra beds that fit in the room]]<>Table2[[#This Row],['# extra beds that fit in the room2]],\"yes\",\"No\")","v":"No"}]
[null,{"$f":"IF(LEN(C298)>0,'1) Hotel information'!$C$4,\"\")","v":""},null,null,null,{"$f":"IFERROR(INDEX(Table1[Room description],MATCH('2) Room configuration'!D298,Table1[TMS],0)),\"\")","v":""},{"$f":"IFERROR(INDEX(Table1[Bedding],MATCH('2) Room configuration'!D298,Table1[TMS],0)),\"\")","v":""},null,null,{"$f":"IFERROR(INDEX(Table1[Room description],MATCH('2) Room configuration'!I298,Table1[TMS],0)),\"\")","v":""},{"$f":"IFERROR(INDEX(Table1[Bedding],MATCH('2) Room configuration'!I298,Table1[TMS],0)),\"\")","v":""},{"$f":"IFERROR(INDEX(Table1[Normal occupancy],MATCH(Table2[[#This Row],[New Room Type \n(TMS)]],Table1[TMS],0)),\"\")","v":""},null,null,null,null,"",{"$f":"IF(Table2[[#This Row],['# extra beds that fit in the room2]]<>0,LEFT(Table2[[#This Row],[New Room Type \n(TMS)]],6),\"\")","v":""},null,{"$f":"IF(Table2[[#This Row],['# extra beds that fit in the room]]<>Table2[[#This Row],['# extra beds that fit in the room2]],\"yes\",\"No\")","v":"No"}]
[null,{"$f":"IF(LEN(C299)>0,'1) Hotel information'!$C$4,\"\")","v":""},null,null,null,{"$f":"IFERROR(INDEX(Table1[Room description],MATCH('2) Room configuration'!D299,Table1[TMS],0)),\"\")","v":""},{"$f":"IFERROR(INDEX(Table1[Bedding],MATCH('2) Room configuration'!D299,Table1[TMS],0)),\"\")","v":""},null,null,{"$f":"IFERROR(INDEX(Table1[Room description],MATCH('2) Room configuration'!I299,Table1[TMS],0)),\"\")","v":""},{"$f":"IFERROR(INDEX(Table1[Bedding],MATCH('2) Room configuration'!I299,Table1[TMS],0)),\"\")","v":""},{"$f":"IFERROR(INDEX(Table1[Normal occupancy],MATCH(Table2[[#This Row],[New Room Type \n(TMS)]],Table1[TMS],0)),\"\")","v":""},null,null,null,null,"",{"$f":"IF(Table2[[#This Row],['# extra beds that fit in the room2]]<>0,LEFT(Table2[[#This Row],[New Room Type \n(TMS)]],6),\"\")","v":""},null,{"$f":"IF(Table2[[#This Row],['# extra beds that fit in the room]]<>Table2[[#This Row],['# extra beds that fit in the room2]],\"yes\",\"No\")","v":"No"}]
[null,{"$f":"IF(LEN(C300)>0,'1) Hotel information'!$C$4,\"\")","v":""},null,null,null,{"$f":"IFERROR(INDEX(Table1[Room description],MATCH('2) Room configuration'!D300,Table1[TMS],0)),\"\")","v":""},{"$f":"IFERROR(INDEX(Table1[Bedding],MATCH('2) Room configuration'!D300,Table1[TMS],0)),\"\")","v":""},null,null,{"$f":"IFERROR(INDEX(Table1[Room description],MATCH('2) Room configuration'!I300,Table1[TMS],0)),\"\")","v":""},{"$f":"IFERROR(INDEX(Table1[Bedding],MATCH('2) Room configuration'!I300,Table1[TMS],0)),\"\")","v":""},{"$f":"IFERROR(INDEX(Table1[Normal occupancy],MATCH(Table2[[#This Row],[New Room Type \n(TMS)]],Table1[TMS],0)),\"\")","v":""},null,null,null,null,"",{"$f":"IF(Table2[[#This Row],['# extra beds that fit in the room2]]<>0,LEFT(Table2[[#This Row],[New Room Type \n(TMS)]],6),\"\")","v":""},null,{"$f":"IF(Table2[[#This Row],['# extra beds that fit in the room]]<>Table2[[#This Row],['# extra beds that fit in the room2]],\"yes\",\"No\")","v":"No"}]
[null,{"$f":"IF(LEN(C301)>0,'1) Hotel information'!$C$4,\"\")","v":""},null,null,null,{"$f":"IFERROR(INDEX(Table1[Room description],MATCH('2) Room configuration'!D301,Table1[TMS],0)),\"\")","v":""},{"$f":"IFERROR(INDEX(Table1[Bedding],MATCH('2) Room configuration'!D301,Table1[TMS],0)),\"\")","v":""},null,null,{"$f":"IFERROR(INDEX(Table1[Room description],MATCH('2) Room configuration'!I301,Table1[TMS],0)),\"\")","v":""},{"$f":"IFERROR(INDEX(Table1[Bedding],MATCH('2) Room configuration'!I301,Table1[TMS],0)),\"\")","v":""},{"$f":"IFERROR(INDEX(Table1[Normal occupancy],MATCH(Table2[[#This Row],[New Room Type \n(TMS)]],Table1[TMS],0)),\"\")","v":""},null,null,null,null,"",{"$f":"IF(Table2[[#This Row],['# extra beds that fit in the room2]]<>0,LEFT(Table2[[#This Row],[New Room Type \n(TMS)]],6),\"\")","v":""},null,{"$f":"IF(Table2[[#This Row],['# extra beds that fit in the room]]<>Table2[[#This Row],['# extra beds that fit in the room2]],\"yes\",\"No\")","v":"No"}]
[null,{"$f":"IF(LEN(C302)>0,'1) Hotel information'!$C$4,\"\")","v":""},null,null,null,{"$f":"IFERROR(INDEX(Table1[Room description],MATCH('2) Room configuration'!D302,Table1[TMS],0)),\"\")","v":""},{"$f":"IFERROR(INDEX(Table1[Bedding],MATCH('2) Room configuration'!D302,Table1[TMS],0)),\"\")","v":""},null,null,{"$f":"IFERROR(INDEX(Table1[Room description],MATCH('2) Room configuration'!I302,Table1[TMS],0)),\"\")","v":""},{"$f":"IFERROR(INDEX(Table1[Bedding],MATCH('2) Room configuration'!I302,Table1[TMS],0)),\"\")","v":""},{"$f":"IFERROR(INDEX(Table1[Normal occupancy],MATCH(Table2[[#This Row],[New Room Type \n(TMS)]],Table1[TMS],0)),\"\")","v":""},null,null,null,null,"",{"$f":"IF(Table2[[#This Row],['# extra beds that fit in the room2]]<>0,LEFT(Table2[[#This Row],[New Room Type \n(TMS)]],6),\"\")","v":""},null,{"$f":"IF(Table2[[#This Row],['# extra beds that fit in the room]]<>Table2[[#This Row],['# extra beds that fit in the room2]],\"yes\",\"No\")","v":"No"}]
[null,{"$f":"IF(LEN(C303)>0,'1) Hotel information'!$C$4,\"\")","v":""},null,null,null,{"$f":"IFERROR(INDEX(Table1[Room description],MATCH('2) Room configuration'!D303,Table1[TMS],0)),\"\")","v":""},{"$f":"IFERROR(INDEX(Table1[Bedding],MATCH('2) Room configuration'!D303,Table1[TMS],0)),\"\")","v":""},null,null,{"$f":"IFERROR(INDEX(Table1[Room description],MATCH('2) Room configuration'!I303,Table1[TMS],0)),\"\")","v":""},{"$f":"IFERROR(INDEX(Table1[Bedding],MATCH('2) Room configuration'!I303,Table1[TMS],0)),\"\")","v":""},{"$f":"IFERROR(INDEX(Table1[Normal occupancy],MATCH(Table2[[#This Row],[New Room Type \n(TMS)]],Table1[TMS],0)),\"\")","v":""},null,null,null,null,"",{"$f":"IF(Table2[[#This Row],['# extra beds that fit in the room2]]<>0,LEFT(Table2[[#This Row],[New Room Type \n(TMS)]],6),\"\")","v":""},null,{"$f":"IF(Table2[[#This Row],['# extra beds that fit in the room]]<>Table2[[#This Row],['# extra beds that fit in the room2]],\"yes\",\"No\")","v":"No"}]
[null,{"$f":"IF(LEN(C304)>0,'1) Hotel information'!$C$4,\"\")","v":""},null,null,null,{"$f":"IFERROR(INDEX(Table1[Room description],MATCH('2) Room configuration'!D304,Table1[TMS],0)),\"\")","v":""},{"$f":"IFERROR(INDEX(Table1[Bedding],MATCH('2) Room configuration'!D304,Table1[TMS],0)),\"\")","v":""},null,null,{"$f":"IFERROR(INDEX(Table1[Room description],MATCH('2) Room configuration'!I304,Table1[TMS],0)),\"\")","v":""},{"$f":"IFERROR(INDEX(Table1[Bedding],MATCH('2) Room configuration'!I304,Table1[TMS],0)),\"\")","v":""},{"$f":"IFERROR(INDEX(Table1[Normal occupancy],MATCH(Table2[[#This Row],[New Room Type \n(TMS)]],Table1[TMS],0)),\"\")","v":""},null,null,null,null,"",{"$f":"IF(Table2[[#This Row],['# extra beds that fit in the room2]]<>0,LEFT(Table2[[#This Row],[New Room Type \n(TMS)]],6),\"\")","v":""},null,{"$f":"IF(Table2[[#This Row],['# extra beds that fit in the room]]<>Table2[[#This Row],['# extra beds that fit in the room2]],\"yes\",\"No\")","v":"No"}]
[null,{"$f":"IF(LEN(C305)>0,'1) Hotel information'!$C$4,\"\")","v":""},null,null,null,{"$f":"IFERROR(INDEX(Table1[Room description],MATCH('2) Room configuration'!D305,Table1[TMS],0)),\"\")","v":""},{"$f":"IFERROR(INDEX(Table1[Bedding],MATCH('2) Room configuration'!D305,Table1[TMS],0)),\"\")","v":""},null,null,{"$f":"IFERROR(INDEX(Table1[Room description],MATCH('2) Room configuration'!I305,Table1[TMS],0)),\"\")","v":""},{"$f":"IFERROR(INDEX(Table1[Bedding],MATCH('2) Room configuration'!I305,Table1[TMS],0)),\"\")","v":""},{"$f":"IFERROR(INDEX(Table1[Normal occupancy],MATCH(Table2[[#This Row],[New Room Type \n(TMS)]],Table1[TMS],0)),\"\")","v":""},null,null,null,null,"",{"$f":"IF(Table2[[#This Row],['# extra beds that fit in the room2]]<>0,LEFT(Table2[[#This Row],[New Room Type \n(TMS)]],6),\"\")","v":""},null,{"$f":"IF(Table2[[#This Row],['# extra beds that fit in the room]]<>Table2[[#This Row],['# extra beds that fit in the room2]],\"yes\",\"No\")","v":"No"}]
[null,{"$f":"IF(LEN(C306)>0,'1) Hotel information'!$C$4,\"\")","v":""},null,null,null,{"$f":"IFERROR(INDEX(Table1[Room description],MATCH('2) Room configuration'!D306,Table1[TMS],0)),\"\")","v":""},{"$f":"IFERROR(INDEX(Table1[Bedding],MATCH('2) Room configuration'!D306,Table1[TMS],0)),\"\")","v":""},null,null,{"$f":"IFERROR(INDEX(Table1[Room description],MATCH('2) Room configuration'!I306,Table1[TMS],0)),\"\")","v":""},{"$f":"IFERROR(INDEX(Table1[Bedding],MATCH('2) Room configuration'!I306,Table1[TMS],0)),\"\")","v":""},{"$f":"IFERROR(INDEX(Table1[Normal occupancy],MATCH(Table2[[#This Row],[New Room Type \n(TMS)]],Table1[TMS],0)),\"\")","v":""},null,null,null,null,"",{"$f":"IF(Table2[[#This Row],['# extra beds that fit in the room2]]<>0,LEFT(Table2[[#This Row],[New Room Type \n(TMS)]],6),\"\")","v":""},null,{"$f":"IF(Table2[[#This Row],['# extra beds that fit in the room]]<>Table2[[#This Row],['# extra beds that fit in the room2]],\"yes\",\"No\")","v":"No"}]
[null,{"$f":"IF(LEN(C307)>0,'1) Hotel information'!$C$4,\"\")","v":""},null,null,null,{"$f":"IFERROR(INDEX(Table1[Room description],MATCH('2) Room configuration'!D307,Table1[TMS],0)),\"\")","v":""},{"$f":"IFERROR(INDEX(Table1[Bedding],MATCH('2) Room configuration'!D307,Table1[TMS],0)),\"\")","v":""},null,null,{"$f":"IFERROR(INDEX(Table1[Room description],MATCH('2) Room configuration'!I307,Table1[TMS],0)),\"\")","v":""},{"$f":"IFERROR(INDEX(Table1[Bedding],MATCH('2) Room configuration'!I307,Table1[TMS],0)),\"\")","v":""},{"$f":"IFERROR(INDEX(Table1[Normal occupancy],MATCH(Table2[[#This Row],[New Room Type \n(TMS)]],Table1[TMS],0)),\"\")","v":""},null,null,null,null,"",{"$f":"IF(Table2[[#This Row],['# extra beds that fit in the room2]]<>0,LEFT(Table2[[#This Row],[New Room Type \n(TMS)]],6),\"\")","v":""},null,{"$f":"IF(Table2[[#This Row],['# extra beds that fit in the room]]<>Table2[[#This Row],['# extra beds that fit in the room2]],\"yes\",\"No\")","v":"No"}]
[null,{"$f":"IF(LEN(C308)>0,'1) Hotel information'!$C$4,\"\")","v":""},null,null,null,{"$f":"IFERROR(INDEX(Table1[Room description],MATCH('2) Room configuration'!D308,Table1[TMS],0)),\"\")","v":""},{"$f":"IFERROR(INDEX(Table1[Bedding],MATCH('2) Room configuration'!D308,Table1[TMS],0)),\"\")","v":""},null,null,{"$f":"IFERROR(INDEX(Table1[Room description],MATCH('2) Room configuration'!I308,Table1[TMS],0)),\"\")","v":""},{"$f":"IFERROR(INDEX(Table1[Bedding],MATCH('2) Room configuration'!I308,Table1[TMS],0)),\"\")","v":""},{"$f":"IFERROR(INDEX(Table1[Normal occupancy],MATCH(Table2[[#This Row],[New Room Type \n(TMS)]],Table1[TMS],0)),\"\")","v":""},null,null,null,null,"",{"$f":"IF(Table2[[#This Row],['# extra beds that fit in the room2]]<>0,LEFT(Table2[[#This Row],[New Room Type \n(TMS)]],6),\"\")","v":""},null,{"$f":"IF(Table2[[#This Row],['# extra beds that fit in the room]]<>Table2[[#This Row],['# extra beds that fit in the room2]],\"yes\",\"No\")","v":"No"}]
[null,{"$f":"IF(LEN(C309)>0,'1) Hotel information'!$C$4,\"\")","v":""},null,null,null,{"$f":"IFERROR(INDEX(Table1[Room description],MATCH('2) Room configuration'!D309,Table1[TMS],0)),\"\")","v":""},{"$f":"IFERROR(INDEX(Table1[Bedding],MATCH('2) Room configuration'!D309,Table1[TMS],0)),\"\")","v":""},null,null,{"$f":"IFERROR(INDEX(Table1[Room description],MATCH('2) Room configuration'!I309,Table1[TMS],0)),\"\")","v":""},{"$f":"IFERROR(INDEX(Table1[Bedding],MATCH('2) Room configuration'!I309,Table1[TMS],0)),\"\")","v":""},{"$f":"IFERROR(INDEX(Table1[Normal occupancy],MATCH(Table2[[#This Row],[New Room Type \n(TMS)]],Table1[TMS],0)),\"\")","v":""},null,null,null,null,"",{"$f":"IF(Table2[[#This Row],['# extra beds that fit in the room2]]<>0,LEFT(Table2[[#This Row],[New Room Type \n(TMS)]],6),\"\")","v":""},null,{"$f":"IF(Table2[[#This Row],['# extra beds that fit in the room]]<>Table2[[#This Row],['# extra beds that fit in the room2]],\"yes\",\"No\")","v":"No"}]
[null,{"$f":"IF(LEN(C310)>0,'1) Hotel information'!$C$4,\"\")","v":""},null,null,null,{"$f":"IFERROR(INDEX(Table1[Room description],MATCH('2) Room configuration'!D310,Table1[TMS],0)),\"\")","v":""},{"$f":"IFERROR(INDEX(Table1[Bedding],MATCH('2) Room configuration'!D310,Table1[TMS],0)),\"\")","v":""},null,null,{"$f":"IFERROR(INDEX(Table1[Room description],MATCH('2) Room configuration'!I310,Table1[TMS],0)),\"\")","v":""},{"$f":"IFERROR(INDEX(Table1[Bedding],MATCH('2) Room configuration'!I310,Table1[TMS],0)),\"\")","v":""},{"$f":"IFERROR(INDEX(Table1[Normal occupancy],MATCH(Table2[[#This Row],[New Room Type \n(TMS)]],Table1[TMS],0)),\"\")","v":""},null,null,null,null,"",{"$f":"IF(Table2[[#This Row],['# extra beds that fit in the room2]]<>0,LEFT(Table2[[#This Row],[New Room Type \n(TMS)]],6),\"\")","v":""},null,{"$f":"IF(Table2[[#This Row],['# extra beds that fit in the room]]<>Table2[[#This Row],['# extra beds that fit in the room2]],\"yes\",\"No\")","v":"No"}]
[null,{"$f":"IF(LEN(C311)>0,'1) Hotel information'!$C$4,\"\")","v":""},null,null,null,{"$f":"IFERROR(INDEX(Table1[Room description],MATCH('2) Room configuration'!D311,Table1[TMS],0)),\"\")","v":""},{"$f":"IFERROR(INDEX(Table1[Bedding],MATCH('2) Room configuration'!D311,Table1[TMS],0)),\"\")","v":""},null,null,{"$f":"IFERROR(INDEX(Table1[Room description],MATCH('2) Room configuration'!I311,Table1[TMS],0)),\"\")","v":""},{"$f":"IFERROR(INDEX(Table1[Bedding],MATCH('2) Room configuration'!I311,Table1[TMS],0)),\"\")","v":""},{"$f":"IFERROR(INDEX(Table1[Normal occupancy],MATCH(Table2[[#This Row],[New Room Type \n(TMS)]],Table1[TMS],0)),\"\")","v":""},null,null,null,null,"",{"$f":"IF(Table2[[#This Row],['# extra beds that fit in the room2]]<>0,LEFT(Table2[[#This Row],[New Room Type \n(TMS)]],6),\"\")","v":""},null,{"$f":"IF(Table2[[#This Row],['# extra beds that fit in the room]]<>Table2[[#This Row],['# extra beds that fit in the room2]],\"yes\",\"No\")","v":"No"}]
[null,{"$f":"IF(LEN(C312)>0,'1) Hotel information'!$C$4,\"\")","v":""},null,null,null,{"$f":"IFERROR(INDEX(Table1[Room description],MATCH('2) Room configuration'!D312,Table1[TMS],0)),\"\")","v":""},{"$f":"IFERROR(INDEX(Table1[Bedding],MATCH('2) Room configuration'!D312,Table1[TMS],0)),\"\")","v":""},null,null,{"$f":"IFERROR(INDEX(Table1[Room description],MATCH('2) Room configuration'!I312,Table1[TMS],0)),\"\")","v":""},{"$f":"IFERROR(INDEX(Table1[Bedding],MATCH('2) Room configuration'!I312,Table1[TMS],0)),\"\")","v":""},{"$f":"IFERROR(INDEX(Table1[Normal occupancy],MATCH(Table2[[#This Row],[New Room Type \n(TMS)]],Table1[TMS],0)),\"\")","v":""},null,null,null,null,"",{"$f":"IF(Table2[[#This Row],['# extra beds that fit in the room2]]<>0,LEFT(Table2[[#This Row],[New Room Type \n(TMS)]],6),\"\")","v":""},null,{"$f":"IF(Table2[[#This Row],['# extra beds that fit in the room]]<>Table2[[#This Row],['# extra beds that fit in the room2]],\"yes\",\"No\")","v":"No"}]
[null,{"$f":"IF(LEN(C313)>0,'1) Hotel information'!$C$4,\"\")","v":""},null,null,null,{"$f":"IFERROR(INDEX(Table1[Room description],MATCH('2) Room configuration'!D313,Table1[TMS],0)),\"\")","v":""},{"$f":"IFERROR(INDEX(Table1[Bedding],MATCH('2) Room configuration'!D313,Table1[TMS],0)),\"\")","v":""},null,null,{"$f":"IFERROR(INDEX(Table1[Room description],MATCH('2) Room configuration'!I313,Table1[TMS],0)),\"\")","v":""},{"$f":"IFERROR(INDEX(Table1[Bedding],MATCH('2) Room configuration'!I313,Table1[TMS],0)),\"\")","v":""},{"$f":"IFERROR(INDEX(Table1[Normal occupancy],MATCH(Table2[[#This Row],[New Room Type \n(TMS)]],Table1[TMS],0)),\"\")","v":""},null,null,null,null,"",{"$f":"IF(Table2[[#This Row],['# extra beds that fit in the room2]]<>0,LEFT(Table2[[#This Row],[New Room Type \n(TMS)]],6),\"\")","v":""},null,{"$f":"IF(Table2[[#This Row],['# extra beds that fit in the room]]<>Table2[[#This Row],['# extra beds that fit in the room2]],\"yes\",\"No\")","v":"No"}]
[null,{"$f":"IF(LEN(C314)>0,'1) Hotel information'!$C$4,\"\")","v":""},null,null,null,{"$f":"IFERROR(INDEX(Table1[Room description],MATCH('2) Room configuration'!D314,Table1[TMS],0)),\"\")","v":""},{"$f":"IFERROR(INDEX(Table1[Bedding],MATCH('2) Room configuration'!D314,Table1[TMS],0)),\"\")","v":""},null,null,{"$f":"IFERROR(INDEX(Table1[Room description],MATCH('2) Room configuration'!I314,Table1[TMS],0)),\"\")","v":""},{"$f":"IFERROR(INDEX(Table1[Bedding],MATCH('2) Room configuration'!I314,Table1[TMS],0)),\"\")","v":""},{"$f":"IFERROR(INDEX(Table1[Normal occupancy],MATCH(Table2[[#This Row],[New Room Type \n(TMS)]],Table1[TMS],0)),\"\")","v":""},null,null,null,null,"",{"$f":"IF(Table2[[#This Row],['# extra beds that fit in the room2]]<>0,LEFT(Table2[[#This Row],[New Room Type \n(TMS)]],6),\"\")","v":""},null,{"$f":"IF(Table2[[#This Row],['# extra beds that fit in the room]]<>Table2[[#This Row],['# extra beds that fit in the room2]],\"yes\",\"No\")","v":"No"}]
[null,{"$f":"IF(LEN(C315)>0,'1) Hotel information'!$C$4,\"\")","v":""},null,null,null,{"$f":"IFERROR(INDEX(Table1[Room description],MATCH('2) Room configuration'!D315,Table1[TMS],0)),\"\")","v":""},{"$f":"IFERROR(INDEX(Table1[Bedding],MATCH('2) Room configuration'!D315,Table1[TMS],0)),\"\")","v":""},null,null,{"$f":"IFERROR(INDEX(Table1[Room description],MATCH('2) Room configuration'!I315,Table1[TMS],0)),\"\")","v":""},{"$f":"IFERROR(INDEX(Table1[Bedding],MATCH('2) Room configuration'!I315,Table1[TMS],0)),\"\")","v":""},{"$f":"IFERROR(INDEX(Table1[Normal occupancy],MATCH(Table2[[#This Row],[New Room Type \n(TMS)]],Table1[TMS],0)),\"\")","v":""},null,null,null,null,"",{"$f":"IF(Table2[[#This Row],['# extra beds that fit in the room2]]<>0,LEFT(Table2[[#This Row],[New Room Type \n(TMS)]],6),\"\")","v":""},null,{"$f":"IF(Table2[[#This Row],['# extra beds that fit in the room]]<>Table2[[#This Row],['# extra beds that fit in the room2]],\"yes\",\"No\")","v":"No"}]
[null,{"$f":"IF(LEN(C316)>0,'1) Hotel information'!$C$4,\"\")","v":""},null,null,null,{"$f":"IFERROR(INDEX(Table1[Room description],MATCH('2) Room configuration'!D316,Table1[TMS],0)),\"\")","v":""},{"$f":"IFERROR(INDEX(Table1[Bedding],MATCH('2) Room configuration'!D316,Table1[TMS],0)),\"\")","v":""},null,null,{"$f":"IFERROR(INDEX(Table1[Room description],MATCH('2) Room configuration'!I316,Table1[TMS],0)),\"\")","v":""},{"$f":"IFERROR(INDEX(Table1[Bedding],MATCH('2) Room configuration'!I316,Table1[TMS],0)),\"\")","v":""},{"$f":"IFERROR(INDEX(Table1[Normal occupancy],MATCH(Table2[[#This Row],[New Room Type \n(TMS)]],Table1[TMS],0)),\"\")","v":""},null,null,null,null,"",{"$f":"IF(Table2[[#This Row],['# extra beds that fit in the room2]]<>0,LEFT(Table2[[#This Row],[New Room Type \n(TMS)]],6),\"\")","v":""},null,{"$f":"IF(Table2[[#This Row],['# extra beds that fit in the room]]<>Table2[[#This Row],['# extra beds that fit in the room2]],\"yes\",\"No\")","v":"No"}]
[null,{"$f":"IF(LEN(C317)>0,'1) Hotel information'!$C$4,\"\")","v":""},null,null,null,{"$f":"IFERROR(INDEX(Table1[Room description],MATCH('2) Room configuration'!D317,Table1[TMS],0)),\"\")","v":""},{"$f":"IFERROR(INDEX(Table1[Bedding],MATCH('2) Room configuration'!D317,Table1[TMS],0)),\"\")","v":""},null,null,{"$f":"IFERROR(INDEX(Table1[Room description],MATCH('2) Room configuration'!I317,Table1[TMS],0)),\"\")","v":""},{"$f":"IFERROR(INDEX(Table1[Bedding],MATCH('2) Room configuration'!I317,Table1[TMS],0)),\"\")","v":""},{"$f":"IFERROR(INDEX(Table1[Normal occupancy],MATCH(Table2[[#This Row],[New Room Type \n(TMS)]],Table1[TMS],0)),\"\")","v":""},null,null,null,null,"",{"$f":"IF(Table2[[#This Row],['# extra beds that fit in the room2]]<>0,LEFT(Table2[[#This Row],[New Room Type \n(TMS)]],6),\"\")","v":""},null,{"$f":"IF(Table2[[#This Row],['# extra beds that fit in the room]]<>Table2[[#This Row],['# extra beds that fit in the room2]],\"yes\",\"No\")","v":"No"}]
[null,{"$f":"IF(LEN(C318)>0,'1) Hotel information'!$C$4,\"\")","v":""},null,null,null,{"$f":"IFERROR(INDEX(Table1[Room description],MATCH('2) Room configuration'!D318,Table1[TMS],0)),\"\")","v":""},{"$f":"IFERROR(INDEX(Table1[Bedding],MATCH('2) Room configuration'!D318,Table1[TMS],0)),\"\")","v":""},null,null,{"$f":"IFERROR(INDEX(Table1[Room description],MATCH('2) Room configuration'!I318,Table1[TMS],0)),\"\")","v":""},{"$f":"IFERROR(INDEX(Table1[Bedding],MATCH('2) Room configuration'!I318,Table1[TMS],0)),\"\")","v":""},{"$f":"IFERROR(INDEX(Table1[Normal occupancy],MATCH(Table2[[#This Row],[New Room Type \n(TMS)]],Table1[TMS],0)),\"\")","v":""},null,null,null,null,"",{"$f":"IF(Table2[[#This Row],['# extra beds that fit in the room2]]<>0,LEFT(Table2[[#This Row],[New Room Type \n(TMS)]],6),\"\")","v":""},null,{"$f":"IF(Table2[[#This Row],['# extra beds that fit in the room]]<>Table2[[#This Row],['# extra beds that fit in the room2]],\"yes\",\"No\")","v":"No"}]
[null,{"$f":"IF(LEN(C319)>0,'1) Hotel information'!$C$4,\"\")","v":""},null,null,null,{"$f":"IFERROR(INDEX(Table1[Room description],MATCH('2) Room configuration'!D319,Table1[TMS],0)),\"\")","v":""},{"$f":"IFERROR(INDEX(Table1[Bedding],MATCH('2) Room configuration'!D319,Table1[TMS],0)),\"\")","v":""},null,null,{"$f":"IFERROR(INDEX(Table1[Room description],MATCH('2) Room configuration'!I319,Table1[TMS],0)),\"\")","v":""},{"$f":"IFERROR(INDEX(Table1[Bedding],MATCH('2) Room configuration'!I319,Table1[TMS],0)),\"\")","v":""},{"$f":"IFERROR(INDEX(Table1[Normal occupancy],MATCH(Table2[[#This Row],[New Room Type \n(TMS)]],Table1[TMS],0)),\"\")","v":""},null,null,null,null,"",{"$f":"IF(Table2[[#This Row],['# extra beds that fit in the room2]]<>0,LEFT(Table2[[#This Row],[New Room Type \n(TMS)]],6),\"\")","v":""},null,{"$f":"IF(Table2[[#This Row],['# extra beds that fit in the room]]<>Table2[[#This Row],['# extra beds that fit in the room2]],\"yes\",\"No\")","v":"No"}]
[null,{"$f":"IF(LEN(C320)>0,'1) Hotel information'!$C$4,\"\")","v":""},null,null,null,{"$f":"IFERROR(INDEX(Table1[Room description],MATCH('2) Room configuration'!D320,Table1[TMS],0)),\"\")","v":""},{"$f":"IFERROR(INDEX(Table1[Bedding],MATCH('2) Room configuration'!D320,Table1[TMS],0)),\"\")","v":""},null,null,{"$f":"IFERROR(INDEX(Table1[Room description],MATCH('2) Room configuration'!I320,Table1[TMS],0)),\"\")","v":""},{"$f":"IFERROR(INDEX(Table1[Bedding],MATCH('2) Room configuration'!I320,Table1[TMS],0)),\"\")","v":""},{"$f":"IFERROR(INDEX(Table1[Normal occupancy],MATCH(Table2[[#This Row],[New Room Type \n(TMS)]],Table1[TMS],0)),\"\")","v":""},null,null,null,null,"",{"$f":"IF(Table2[[#This Row],['# extra beds that fit in the room2]]<>0,LEFT(Table2[[#This Row],[New Room Type \n(TMS)]],6),\"\")","v":""},null,{"$f":"IF(Table2[[#This Row],['# extra beds that fit in the room]]<>Table2[[#This Row],['# extra beds that fit in the room2]],\"yes\",\"No\")","v":"No"}]
[null,{"$f":"IF(LEN(C321)>0,'1) Hotel information'!$C$4,\"\")","v":""},null,null,null,{"$f":"IFERROR(INDEX(Table1[Room description],MATCH('2) Room configuration'!D321,Table1[TMS],0)),\"\")","v":""},{"$f":"IFERROR(INDEX(Table1[Bedding],MATCH('2) Room configuration'!D321,Table1[TMS],0)),\"\")","v":""},null,null,{"$f":"IFERROR(INDEX(Table1[Room description],MATCH('2) Room configuration'!I321,Table1[TMS],0)),\"\")","v":""},{"$f":"IFERROR(INDEX(Table1[Bedding],MATCH('2) Room configuration'!I321,Table1[TMS],0)),\"\")","v":""},{"$f":"IFERROR(INDEX(Table1[Normal occupancy],MATCH(Table2[[#This Row],[New Room Type \n(TMS)]],Table1[TMS],0)),\"\")","v":""},null,null,null,null,"",{"$f":"IF(Table2[[#This Row],['# extra beds that fit in the room2]]<>0,LEFT(Table2[[#This Row],[New Room Type \n(TMS)]],6),\"\")","v":""},null,{"$f":"IF(Table2[[#This Row],['# extra beds that fit in the room]]<>Table2[[#This Row],['# extra beds that fit in the room2]],\"yes\",\"No\")","v":"No"}]
[null,{"$f":"IF(LEN(C322)>0,'1) Hotel information'!$C$4,\"\")","v":""},null,null,null,{"$f":"IFERROR(INDEX(Table1[Room description],MATCH('2) Room configuration'!D322,Table1[TMS],0)),\"\")","v":""},{"$f":"IFERROR(INDEX(Table1[Bedding],MATCH('2) Room configuration'!D322,Table1[TMS],0)),\"\")","v":""},null,null,{"$f":"IFERROR(INDEX(Table1[Room description],MATCH('2) Room configuration'!I322,Table1[TMS],0)),\"\")","v":""},{"$f":"IFERROR(INDEX(Table1[Bedding],MATCH('2) Room configuration'!I322,Table1[TMS],0)),\"\")","v":""},{"$f":"IFERROR(INDEX(Table1[Normal occupancy],MATCH(Table2[[#This Row],[New Room Type \n(TMS)]],Table1[TMS],0)),\"\")","v":""},null,null,null,null,"",{"$f":"IF(Table2[[#This Row],['# extra beds that fit in the room2]]<>0,LEFT(Table2[[#This Row],[New Room Type \n(TMS)]],6),\"\")","v":""},null,{"$f":"IF(Table2[[#This Row],['# extra beds that fit in the room]]<>Table2[[#This Row],['# extra beds that fit in the room2]],\"yes\",\"No\")","v":"No"}]
[null,{"$f":"IF(LEN(C323)>0,'1) Hotel information'!$C$4,\"\")","v":""},null,null,null,{"$f":"IFERROR(INDEX(Table1[Room description],MATCH('2) Room configuration'!D323,Table1[TMS],0)),\"\")","v":""},{"$f":"IFERROR(INDEX(Table1[Bedding],MATCH('2) Room configuration'!D323,Table1[TMS],0)),\"\")","v":""},null,null,{"$f":"IFERROR(INDEX(Table1[Room description],MATCH('2) Room configuration'!I323,Table1[TMS],0)),\"\")","v":""},{"$f":"IFERROR(INDEX(Table1[Bedding],MATCH('2) Room configuration'!I323,Table1[TMS],0)),\"\")","v":""},{"$f":"IFERROR(INDEX(Table1[Normal occupancy],MATCH(Table2[[#This Row],[New Room Type \n(TMS)]],Table1[TMS],0)),\"\")","v":""},null,null,null,null,"",{"$f":"IF(Table2[[#This Row],['# extra beds that fit in the room2]]<>0,LEFT(Table2[[#This Row],[New Room Type \n(TMS)]],6),\"\")","v":""},null,{"$f":"IF(Table2[[#This Row],['# extra beds that fit in the room]]<>Table2[[#This Row],['# extra beds that fit in the room2]],\"yes\",\"No\")","v":"No"}]
[null,{"$f":"IF(LEN(C324)>0,'1) Hotel information'!$C$4,\"\")","v":""},null,null,null,{"$f":"IFERROR(INDEX(Table1[Room description],MATCH('2) Room configuration'!D324,Table1[TMS],0)),\"\")","v":""},{"$f":"IFERROR(INDEX(Table1[Bedding],MATCH('2) Room configuration'!D324,Table1[TMS],0)),\"\")","v":""},null,null,{"$f":"IFERROR(INDEX(Table1[Room description],MATCH('2) Room configuration'!I324,Table1[TMS],0)),\"\")","v":""},{"$f":"IFERROR(INDEX(Table1[Bedding],MATCH('2) Room configuration'!I324,Table1[TMS],0)),\"\")","v":""},{"$f":"IFERROR(INDEX(Table1[Normal occupancy],MATCH(Table2[[#This Row],[New Room Type \n(TMS)]],Table1[TMS],0)),\"\")","v":""},null,null,null,null,"",{"$f":"IF(Table2[[#This Row],['# extra beds that fit in the room2]]<>0,LEFT(Table2[[#This Row],[New Room Type \n(TMS)]],6),\"\")","v":""},null,{"$f":"IF(Table2[[#This Row],['# extra beds that fit in the room]]<>Table2[[#This Row],['# extra beds that fit in the room2]],\"yes\",\"No\")","v":"No"}]
[null,{"$f":"IF(LEN(C325)>0,'1) Hotel information'!$C$4,\"\")","v":""},null,null,null,{"$f":"IFERROR(INDEX(Table1[Room description],MATCH('2) Room configuration'!D325,Table1[TMS],0)),\"\")","v":""},{"$f":"IFERROR(INDEX(Table1[Bedding],MATCH('2) Room configuration'!D325,Table1[TMS],0)),\"\")","v":""},null,null,{"$f":"IFERROR(INDEX(Table1[Room description],MATCH('2) Room configuration'!I325,Table1[TMS],0)),\"\")","v":""},{"$f":"IFERROR(INDEX(Table1[Bedding],MATCH('2) Room configuration'!I325,Table1[TMS],0)),\"\")","v":""},{"$f":"IFERROR(INDEX(Table1[Normal occupancy],MATCH(Table2[[#This Row],[New Room Type \n(TMS)]],Table1[TMS],0)),\"\")","v":""},null,null,null,null,"",{"$f":"IF(Table2[[#This Row],['# extra beds that fit in the room2]]<>0,LEFT(Table2[[#This Row],[New Room Type \n(TMS)]],6),\"\")","v":""},null,{"$f":"IF(Table2[[#This Row],['# extra beds that fit in the room]]<>Table2[[#This Row],['# extra beds that fit in the room2]],\"yes\",\"No\")","v":"No"}]
[null,{"$f":"IF(LEN(C326)>0,'1) Hotel information'!$C$4,\"\")","v":""},null,null,null,{"$f":"IFERROR(INDEX(Table1[Room description],MATCH('2) Room configuration'!D326,Table1[TMS],0)),\"\")","v":""},{"$f":"IFERROR(INDEX(Table1[Bedding],MATCH('2) Room configuration'!D326,Table1[TMS],0)),\"\")","v":""},null,null,{"$f":"IFERROR(INDEX(Table1[Room description],MATCH('2) Room configuration'!I326,Table1[TMS],0)),\"\")","v":""},{"$f":"IFERROR(INDEX(Table1[Bedding],MATCH('2) Room configuration'!I326,Table1[TMS],0)),\"\")","v":""},{"$f":"IFERROR(INDEX(Table1[Normal occupancy],MATCH(Table2[[#This Row],[New Room Type \n(TMS)]],Table1[TMS],0)),\"\")","v":""},null,null,null,null,"",{"$f":"IF(Table2[[#This Row],['# extra beds that fit in the room2]]<>0,LEFT(Table2[[#This Row],[New Room Type \n(TMS)]],6),\"\")","v":""},null,{"$f":"IF(Table2[[#This Row],['# extra beds that fit in the room]]<>Table2[[#This Row],['# extra beds that fit in the room2]],\"yes\",\"No\")","v":"No"}]
[null,{"$f":"IF(LEN(C327)>0,'1) Hotel information'!$C$4,\"\")","v":""},null,null,null,{"$f":"IFERROR(INDEX(Table1[Room description],MATCH('2) Room configuration'!D327,Table1[TMS],0)),\"\")","v":""},{"$f":"IFERROR(INDEX(Table1[Bedding],MATCH('2) Room configuration'!D327,Table1[TMS],0)),\"\")","v":""},null,null,{"$f":"IFERROR(INDEX(Table1[Room description],MATCH('2) Room configuration'!I327,Table1[TMS],0)),\"\")","v":""},{"$f":"IFERROR(INDEX(Table1[Bedding],MATCH('2) Room configuration'!I327,Table1[TMS],0)),\"\")","v":""},{"$f":"IFERROR(INDEX(Table1[Normal occupancy],MATCH(Table2[[#This Row],[New Room Type \n(TMS)]],Table1[TMS],0)),\"\")","v":""},null,null,null,null,"",{"$f":"IF(Table2[[#This Row],['# extra beds that fit in the room2]]<>0,LEFT(Table2[[#This Row],[New Room Type \n(TMS)]],6),\"\")","v":""},null,{"$f":"IF(Table2[[#This Row],['# extra beds that fit in the room]]<>Table2[[#This Row],['# extra beds that fit in the room2]],\"yes\",\"No\")","v":"No"}]
[null,{"$f":"IF(LEN(C328)>0,'1) Hotel information'!$C$4,\"\")","v":""},null,null,null,{"$f":"IFERROR(INDEX(Table1[Room description],MATCH('2) Room configuration'!D328,Table1[TMS],0)),\"\")","v":""},{"$f":"IFERROR(INDEX(Table1[Bedding],MATCH('2) Room configuration'!D328,Table1[TMS],0)),\"\")","v":""},null,null,{"$f":"IFERROR(INDEX(Table1[Room description],MATCH('2) Room configuration'!I328,Table1[TMS],0)),\"\")","v":""},{"$f":"IFERROR(INDEX(Table1[Bedding],MATCH('2) Room configuration'!I328,Table1[TMS],0)),\"\")","v":""},{"$f":"IFERROR(INDEX(Table1[Normal occupancy],MATCH(Table2[[#This Row],[New Room Type \n(TMS)]],Table1[TMS],0)),\"\")","v":""},null,null,null,null,"",{"$f":"IF(Table2[[#This Row],['# extra beds that fit in the room2]]<>0,LEFT(Table2[[#This Row],[New Room Type \n(TMS)]],6),\"\")","v":""},null,{"$f":"IF(Table2[[#This Row],['# extra beds that fit in the room]]<>Table2[[#This Row],['# extra beds that fit in the room2]],\"yes\",\"No\")","v":"No"}]
[null,{"$f":"IF(LEN(C329)>0,'1) Hotel information'!$C$4,\"\")","v":""},null,null,null,{"$f":"IFERROR(INDEX(Table1[Room description],MATCH('2) Room configuration'!D329,Table1[TMS],0)),\"\")","v":""},{"$f":"IFERROR(INDEX(Table1[Bedding],MATCH('2) Room configuration'!D329,Table1[TMS],0)),\"\")","v":""},null,null,{"$f":"IFERROR(INDEX(Table1[Room description],MATCH('2) Room configuration'!I329,Table1[TMS],0)),\"\")","v":""},{"$f":"IFERROR(INDEX(Table1[Bedding],MATCH('2) Room configuration'!I329,Table1[TMS],0)),\"\")","v":""},{"$f":"IFERROR(INDEX(Table1[Normal occupancy],MATCH(Table2[[#This Row],[New Room Type \n(TMS)]],Table1[TMS],0)),\"\")","v":""},null,null,null,null,"",{"$f":"IF(Table2[[#This Row],['# extra beds that fit in the room2]]<>0,LEFT(Table2[[#This Row],[New Room Type \n(TMS)]],6),\"\")","v":""},null,{"$f":"IF(Table2[[#This Row],['# extra beds that fit in the room]]<>Table2[[#This Row],['# extra beds that fit in the room2]],\"yes\",\"No\")","v":"No"}]
[null,{"$f":"IF(LEN(C330)>0,'1) Hotel information'!$C$4,\"\")","v":""},null,null,null,{"$f":"IFERROR(INDEX(Table1[Room description],MATCH('2) Room configuration'!D330,Table1[TMS],0)),\"\")","v":""},{"$f":"IFERROR(INDEX(Table1[Bedding],MATCH('2) Room configuration'!D330,Table1[TMS],0)),\"\")","v":""},null,null,{"$f":"IFERROR(INDEX(Table1[Room description],MATCH('2) Room configuration'!I330,Table1[TMS],0)),\"\")","v":""},{"$f":"IFERROR(INDEX(Table1[Bedding],MATCH('2) Room configuration'!I330,Table1[TMS],0)),\"\")","v":""},{"$f":"IFERROR(INDEX(Table1[Normal occupancy],MATCH(Table2[[#This Row],[New Room Type \n(TMS)]],Table1[TMS],0)),\"\")","v":""},null,null,null,null,"",{"$f":"IF(Table2[[#This Row],['# extra beds that fit in the room2]]<>0,LEFT(Table2[[#This Row],[New Room Type \n(TMS)]],6),\"\")","v":""},null,{"$f":"IF(Table2[[#This Row],['# extra beds that fit in the room]]<>Table2[[#This Row],['# extra beds that fit in the room2]],\"yes\",\"No\")","v":"No"}]
[null,{"$f":"IF(LEN(C331)>0,'1) Hotel information'!$C$4,\"\")","v":""},null,null,null,{"$f":"IFERROR(INDEX(Table1[Room description],MATCH('2) Room configuration'!D331,Table1[TMS],0)),\"\")","v":""},{"$f":"IFERROR(INDEX(Table1[Bedding],MATCH('2) Room configuration'!D331,Table1[TMS],0)),\"\")","v":""},null,null,{"$f":"IFERROR(INDEX(Table1[Room description],MATCH('2) Room configuration'!I331,Table1[TMS],0)),\"\")","v":""},{"$f":"IFERROR(INDEX(Table1[Bedding],MATCH('2) Room configuration'!I331,Table1[TMS],0)),\"\")","v":""},{"$f":"IFERROR(INDEX(Table1[Normal occupancy],MATCH(Table2[[#This Row],[New Room Type \n(TMS)]],Table1[TMS],0)),\"\")","v":""},null,null,null,null,"",{"$f":"IF(Table2[[#This Row],['# extra beds that fit in the room2]]<>0,LEFT(Table2[[#This Row],[New Room Type \n(TMS)]],6),\"\")","v":""},null,{"$f":"IF(Table2[[#This Row],['# extra beds that fit in the room]]<>Table2[[#This Row],['# extra beds that fit in the room2]],\"yes\",\"No\")","v":"No"}]
[null,{"$f":"IF(LEN(C332)>0,'1) Hotel information'!$C$4,\"\")","v":""},null,null,null,{"$f":"IFERROR(INDEX(Table1[Room description],MATCH('2) Room configuration'!D332,Table1[TMS],0)),\"\")","v":""},{"$f":"IFERROR(INDEX(Table1[Bedding],MATCH('2) Room configuration'!D332,Table1[TMS],0)),\"\")","v":""},null,null,{"$f":"IFERROR(INDEX(Table1[Room description],MATCH('2) Room configuration'!I332,Table1[TMS],0)),\"\")","v":""},{"$f":"IFERROR(INDEX(Table1[Bedding],MATCH('2) Room configuration'!I332,Table1[TMS],0)),\"\")","v":""},{"$f":"IFERROR(INDEX(Table1[Normal occupancy],MATCH(Table2[[#This Row],[New Room Type \n(TMS)]],Table1[TMS],0)),\"\")","v":""},null,null,null,null,{"$f":"IF(LEN(C332)>0,IF(D332=I332,\"No\",\"Yes\"),\"\")","v":""},{"$f":"IF(Table2[[#This Row],['# extra beds that fit in the room2]]<>0,LEFT(Table2[[#This Row],[New Room Type \n(TMS)]],6),\"\")","v":""},null,{"$f":"IF(Table2[[#This Row],['# extra beds that fit in the room]]<>Table2[[#This Row],['# extra beds that fit in the room2]],\"yes\",\"No\")","v":"No"}]
[null,{"$f":"IF(LEN(C333)>0,'1) Hotel information'!$C$4,\"\")","v":""},null,null,null,{"$f":"IFERROR(INDEX(Table1[Room description],MATCH('2) Room configuration'!D333,Table1[TMS],0)),\"\")","v":""},{"$f":"IFERROR(INDEX(Table1[Bedding],MATCH('2) Room configuration'!D333,Table1[TMS],0)),\"\")","v":""},null,null,{"$f":"IFERROR(INDEX(Table1[Room description],MATCH('2) Room configuration'!I333,Table1[TMS],0)),\"\")","v":""},{"$f":"IFERROR(INDEX(Table1[Bedding],MATCH('2) Room configuration'!I333,Table1[TMS],0)),\"\")","v":""},{"$f":"IFERROR(INDEX(Table1[Normal occupancy],MATCH(Table2[[#This Row],[New Room Type \n(TMS)]],Table1[TMS],0)),\"\")","v":""},null,null,null,null,"",{"$f":"IF(Table2[[#This Row],['# extra beds that fit in the room2]]<>0,LEFT(Table2[[#This Row],[New Room Type \n(TMS)]],6),\"\")","v":""},null,{"$f":"IF(Table2[[#This Row],['# extra beds that fit in the room]]<>Table2[[#This Row],['# extra beds that fit in the room2]],\"yes\",\"No\")","v":"No"}]
[null,{"$f":"IF(LEN(C334)>0,'1) Hotel information'!$C$4,\"\")","v":""},null,null,null,{"$f":"IFERROR(INDEX(Table1[Room description],MATCH('2) Room configuration'!D334,Table1[TMS],0)),\"\")","v":""},{"$f":"IFERROR(INDEX(Table1[Bedding],MATCH('2) Room configuration'!D334,Table1[TMS],0)),\"\")","v":""},null,null,{"$f":"IFERROR(INDEX(Table1[Room description],MATCH('2) Room configuration'!I334,Table1[TMS],0)),\"\")","v":""},{"$f":"IFERROR(INDEX(Table1[Bedding],MATCH('2) Room configuration'!I334,Table1[TMS],0)),\"\")","v":""},{"$f":"IFERROR(INDEX(Table1[Normal occupancy],MATCH(Table2[[#This Row],[New Room Type \n(TMS)]],Table1[TMS],0)),\"\")","v":""},null,null,null,null,"",{"$f":"IF(Table2[[#This Row],['# extra beds that fit in the room2]]<>0,LEFT(Table2[[#This Row],[New Room Type \n(TMS)]],6),\"\")","v":""},null,{"$f":"IF(Table2[[#This Row],['# extra beds that fit in the room]]<>Table2[[#This Row],['# extra beds that fit in the room2]],\"yes\",\"No\")","v":"No"}]
[null,{"$f":"IF(LEN(C335)>0,'1) Hotel information'!$C$4,\"\")","v":""},null,null,null,{"$f":"IFERROR(INDEX(Table1[Room description],MATCH('2) Room configuration'!D335,Table1[TMS],0)),\"\")","v":""},{"$f":"IFERROR(INDEX(Table1[Bedding],MATCH('2) Room configuration'!D335,Table1[TMS],0)),\"\")","v":""},null,null,{"$f":"IFERROR(INDEX(Table1[Room description],MATCH('2) Room configuration'!I335,Table1[TMS],0)),\"\")","v":""},{"$f":"IFERROR(INDEX(Table1[Bedding],MATCH('2) Room configuration'!I335,Table1[TMS],0)),\"\")","v":""},{"$f":"IFERROR(INDEX(Table1[Normal occupancy],MATCH(Table2[[#This Row],[New Room Type \n(TMS)]],Table1[TMS],0)),\"\")","v":""},null,null,null,null,"",{"$f":"IF(Table2[[#This Row],['# extra beds that fit in the room2]]<>0,LEFT(Table2[[#This Row],[New Room Type \n(TMS)]],6),\"\")","v":""},null,{"$f":"IF(Table2[[#This Row],['# extra beds that fit in the room]]<>Table2[[#This Row],['# extra beds that fit in the room2]],\"yes\",\"No\")","v":"No"}]
[null,{"$f":"IF(LEN(C336)>0,'1) Hotel information'!$C$4,\"\")","v":""},null,null,null,{"$f":"IFERROR(INDEX(Table1[Room description],MATCH('2) Room configuration'!D336,Table1[TMS],0)),\"\")","v":""},{"$f":"IFERROR(INDEX(Table1[Bedding],MATCH('2) Room configuration'!D336,Table1[TMS],0)),\"\")","v":""},null,null,{"$f":"IFERROR(INDEX(Table1[Room description],MATCH('2) Room configuration'!I336,Table1[TMS],0)),\"\")","v":""},{"$f":"IFERROR(INDEX(Table1[Bedding],MATCH('2) Room configuration'!I336,Table1[TMS],0)),\"\")","v":""},{"$f":"IFERROR(INDEX(Table1[Normal occupancy],MATCH(Table2[[#This Row],[New Room Type \n(TMS)]],Table1[TMS],0)),\"\")","v":""},null,null,null,null,"",{"$f":"IF(Table2[[#This Row],['# extra beds that fit in the room2]]<>0,LEFT(Table2[[#This Row],[New Room Type \n(TMS)]],6),\"\")","v":""},null,{"$f":"IF(Table2[[#This Row],['# extra beds that fit in the room]]<>Table2[[#This Row],['# extra beds that fit in the room2]],\"yes\",\"No\")","v":"No"}]
[null,{"$f":"IF(LEN(C337)>0,'1) Hotel information'!$C$4,\"\")","v":""},null,null,null,{"$f":"IFERROR(INDEX(Table1[Room description],MATCH('2) Room configuration'!D337,Table1[TMS],0)),\"\")","v":""},{"$f":"IFERROR(INDEX(Table1[Bedding],MATCH('2) Room configuration'!D337,Table1[TMS],0)),\"\")","v":""},null,null,{"$f":"IFERROR(INDEX(Table1[Room description],MATCH('2) Room configuration'!I337,Table1[TMS],0)),\"\")","v":""},{"$f":"IFERROR(INDEX(Table1[Bedding],MATCH('2) Room configuration'!I337,Table1[TMS],0)),\"\")","v":""},{"$f":"IFERROR(INDEX(Table1[Normal occupancy],MATCH(Table2[[#This Row],[New Room Type \n(TMS)]],Table1[TMS],0)),\"\")","v":""},null,null,null,null,"",{"$f":"IF(Table2[[#This Row],['# extra beds that fit in the room2]]<>0,LEFT(Table2[[#This Row],[New Room Type \n(TMS)]],6),\"\")","v":""},null,{"$f":"IF(Table2[[#This Row],['# extra beds that fit in the room]]<>Table2[[#This Row],['# extra beds that fit in the room2]],\"yes\",\"No\")","v":"No"}]
[null,{"$f":"IF(LEN(C338)>0,'1) Hotel information'!$C$4,\"\")","v":""},null,null,null,{"$f":"IFERROR(INDEX(Table1[Room description],MATCH('2) Room configuration'!D338,Table1[TMS],0)),\"\")","v":""},{"$f":"IFERROR(INDEX(Table1[Bedding],MATCH('2) Room configuration'!D338,Table1[TMS],0)),\"\")","v":""},null,null,{"$f":"IFERROR(INDEX(Table1[Room description],MATCH('2) Room configuration'!I338,Table1[TMS],0)),\"\")","v":""},{"$f":"IFERROR(INDEX(Table1[Bedding],MATCH('2) Room configuration'!I338,Table1[TMS],0)),\"\")","v":""},{"$f":"IFERROR(INDEX(Table1[Normal occupancy],MATCH(Table2[[#This Row],[New Room Type \n(TMS)]],Table1[TMS],0)),\"\")","v":""},null,null,null,null,"",{"$f":"IF(Table2[[#This Row],['# extra beds that fit in the room2]]<>0,LEFT(Table2[[#This Row],[New Room Type \n(TMS)]],6),\"\")","v":""},null,{"$f":"IF(Table2[[#This Row],['# extra beds that fit in the room]]<>Table2[[#This Row],['# extra beds that fit in the room2]],\"yes\",\"No\")","v":"No"}]
[null,{"$f":"IF(LEN(C339)>0,'1) Hotel information'!$C$4,\"\")","v":""},null,null,null,{"$f":"IFERROR(INDEX(Table1[Room description],MATCH('2) Room configuration'!D339,Table1[TMS],0)),\"\")","v":""},{"$f":"IFERROR(INDEX(Table1[Bedding],MATCH('2) Room configuration'!D339,Table1[TMS],0)),\"\")","v":""},null,null,{"$f":"IFERROR(INDEX(Table1[Room description],MATCH('2) Room configuration'!I339,Table1[TMS],0)),\"\")","v":""},{"$f":"IFERROR(INDEX(Table1[Bedding],MATCH('2) Room configuration'!I339,Table1[TMS],0)),\"\")","v":""},{"$f":"IFERROR(INDEX(Table1[Normal occupancy],MATCH(Table2[[#This Row],[New Room Type \n(TMS)]],Table1[TMS],0)),\"\")","v":""},null,null,null,null,"",{"$f":"IF(Table2[[#This Row],['# extra beds that fit in the room2]]<>0,LEFT(Table2[[#This Row],[New Room Type \n(TMS)]],6),\"\")","v":""},null,{"$f":"IF(Table2[[#This Row],['# extra beds that fit in the room]]<>Table2[[#This Row],['# extra beds that fit in the room2]],\"yes\",\"No\")","v":"No"}]
[null,{"$f":"IF(LEN(C340)>0,'1) Hotel information'!$C$4,\"\")","v":""},null,null,null,{"$f":"IFERROR(INDEX(Table1[Room description],MATCH('2) Room configuration'!D340,Table1[TMS],0)),\"\")","v":""},{"$f":"IFERROR(INDEX(Table1[Bedding],MATCH('2) Room configuration'!D340,Table1[TMS],0)),\"\")","v":""},null,null,{"$f":"IFERROR(INDEX(Table1[Room description],MATCH('2) Room configuration'!I340,Table1[TMS],0)),\"\")","v":""},{"$f":"IFERROR(INDEX(Table1[Bedding],MATCH('2) Room configuration'!I340,Table1[TMS],0)),\"\")","v":""},{"$f":"IFERROR(INDEX(Table1[Normal occupancy],MATCH(Table2[[#This Row],[New Room Type \n(TMS)]],Table1[TMS],0)),\"\")","v":""},null,null,null,null,"",{"$f":"IF(Table2[[#This Row],['# extra beds that fit in the room2]]<>0,LEFT(Table2[[#This Row],[New Room Type \n(TMS)]],6),\"\")","v":""},null,{"$f":"IF(Table2[[#This Row],['# extra beds that fit in the room]]<>Table2[[#This Row],['# extra beds that fit in the room2]],\"yes\",\"No\")","v":"No"}]
[null,{"$f":"IF(LEN(C341)>0,'1) Hotel information'!$C$4,\"\")","v":""},null,null,null,{"$f":"IFERROR(INDEX(Table1[Room description],MATCH('2) Room configuration'!D341,Table1[TMS],0)),\"\")","v":""},{"$f":"IFERROR(INDEX(Table1[Bedding],MATCH('2) Room configuration'!D341,Table1[TMS],0)),\"\")","v":""},null,null,{"$f":"IFERROR(INDEX(Table1[Room description],MATCH('2) Room configuration'!I341,Table1[TMS],0)),\"\")","v":""},{"$f":"IFERROR(INDEX(Table1[Bedding],MATCH('2) Room configuration'!I341,Table1[TMS],0)),\"\")","v":""},{"$f":"IFERROR(INDEX(Table1[Normal occupancy],MATCH(Table2[[#This Row],[New Room Type \n(TMS)]],Table1[TMS],0)),\"\")","v":""},null,null,null,null,"",{"$f":"IF(Table2[[#This Row],['# extra beds that fit in the room2]]<>0,LEFT(Table2[[#This Row],[New Room Type \n(TMS)]],6),\"\")","v":""},null,{"$f":"IF(Table2[[#This Row],['# extra beds that fit in the room]]<>Table2[[#This Row],['# extra beds that fit in the room2]],\"yes\",\"No\")","v":"No"}]
[null,{"$f":"IF(LEN(C342)>0,'1) Hotel information'!$C$4,\"\")","v":""},null,null,null,{"$f":"IFERROR(INDEX(Table1[Room description],MATCH('2) Room configuration'!D342,Table1[TMS],0)),\"\")","v":""},{"$f":"IFERROR(INDEX(Table1[Bedding],MATCH('2) Room configuration'!D342,Table1[TMS],0)),\"\")","v":""},null,null,{"$f":"IFERROR(INDEX(Table1[Room description],MATCH('2) Room configuration'!I342,Table1[TMS],0)),\"\")","v":""},{"$f":"IFERROR(INDEX(Table1[Bedding],MATCH('2) Room configuration'!I342,Table1[TMS],0)),\"\")","v":""},{"$f":"IFERROR(INDEX(Table1[Normal occupancy],MATCH(Table2[[#This Row],[New Room Type \n(TMS)]],Table1[TMS],0)),\"\")","v":""},null,null,null,null,"",{"$f":"IF(Table2[[#This Row],['# extra beds that fit in the room2]]<>0,LEFT(Table2[[#This Row],[New Room Type \n(TMS)]],6),\"\")","v":""},null,{"$f":"IF(Table2[[#This Row],['# extra beds that fit in the room]]<>Table2[[#This Row],['# extra beds that fit in the room2]],\"yes\",\"No\")","v":"No"}]
[null,{"$f":"IF(LEN(C343)>0,'1) Hotel information'!$C$4,\"\")","v":""},null,null,null,{"$f":"IFERROR(INDEX(Table1[Room description],MATCH('2) Room configuration'!D343,Table1[TMS],0)),\"\")","v":""},{"$f":"IFERROR(INDEX(Table1[Bedding],MATCH('2) Room configuration'!D343,Table1[TMS],0)),\"\")","v":""},null,null,{"$f":"IFERROR(INDEX(Table1[Room description],MATCH('2) Room configuration'!I343,Table1[TMS],0)),\"\")","v":""},{"$f":"IFERROR(INDEX(Table1[Bedding],MATCH('2) Room configuration'!I343,Table1[TMS],0)),\"\")","v":""},{"$f":"IFERROR(INDEX(Table1[Normal occupancy],MATCH(Table2[[#This Row],[New Room Type \n(TMS)]],Table1[TMS],0)),\"\")","v":""},null,null,null,null,"",{"$f":"IF(Table2[[#This Row],['# extra beds that fit in the room2]]<>0,LEFT(Table2[[#This Row],[New Room Type \n(TMS)]],6),\"\")","v":""},null,{"$f":"IF(Table2[[#This Row],['# extra beds that fit in the room]]<>Table2[[#This Row],['# extra beds that fit in the room2]],\"yes\",\"No\")","v":"No"}]
[null,{"$f":"IF(LEN(C344)>0,'1) Hotel information'!$C$4,\"\")","v":""},null,null,null,{"$f":"IFERROR(INDEX(Table1[Room description],MATCH('2) Room configuration'!D344,Table1[TMS],0)),\"\")","v":""},{"$f":"IFERROR(INDEX(Table1[Bedding],MATCH('2) Room configuration'!D344,Table1[TMS],0)),\"\")","v":""},null,null,{"$f":"IFERROR(INDEX(Table1[Room description],MATCH('2) Room configuration'!I344,Table1[TMS],0)),\"\")","v":""},{"$f":"IFERROR(INDEX(Table1[Bedding],MATCH('2) Room configuration'!I344,Table1[TMS],0)),\"\")","v":""},{"$f":"IFERROR(INDEX(Table1[Normal occupancy],MATCH(Table2[[#This Row],[New Room Type \n(TMS)]],Table1[TMS],0)),\"\")","v":""},null,null,null,null,"",{"$f":"IF(Table2[[#This Row],['# extra beds that fit in the room2]]<>0,LEFT(Table2[[#This Row],[New Room Type \n(TMS)]],6),\"\")","v":""},null,{"$f":"IF(Table2[[#This Row],['# extra beds that fit in the room]]<>Table2[[#This Row],['# extra beds that fit in the room2]],\"yes\",\"No\")","v":"No"}]
[null,{"$f":"IF(LEN(C345)>0,'1) Hotel information'!$C$4,\"\")","v":""},null,null,null,{"$f":"IFERROR(INDEX(Table1[Room description],MATCH('2) Room configuration'!D345,Table1[TMS],0)),\"\")","v":""},{"$f":"IFERROR(INDEX(Table1[Bedding],MATCH('2) Room configuration'!D345,Table1[TMS],0)),\"\")","v":""},null,null,{"$f":"IFERROR(INDEX(Table1[Room description],MATCH('2) Room configuration'!I345,Table1[TMS],0)),\"\")","v":""},{"$f":"IFERROR(INDEX(Table1[Bedding],MATCH('2) Room configuration'!I345,Table1[TMS],0)),\"\")","v":""},{"$f":"IFERROR(INDEX(Table1[Normal occupancy],MATCH(Table2[[#This Row],[New Room Type \n(TMS)]],Table1[TMS],0)),\"\")","v":""},null,null,null,null,"",{"$f":"IF(Table2[[#This Row],['# extra beds that fit in the room2]]<>0,LEFT(Table2[[#This Row],[New Room Type \n(TMS)]],6),\"\")","v":""},null,{"$f":"IF(Table2[[#This Row],['# extra beds that fit in the room]]<>Table2[[#This Row],['# extra beds that fit in the room2]],\"yes\",\"No\")","v":"No"}]
[null,{"$f":"IF(LEN(C346)>0,'1) Hotel information'!$C$4,\"\")","v":""},null,null,null,{"$f":"IFERROR(INDEX(Table1[Room description],MATCH('2) Room configuration'!D346,Table1[TMS],0)),\"\")","v":""},{"$f":"IFERROR(INDEX(Table1[Bedding],MATCH('2) Room configuration'!D346,Table1[TMS],0)),\"\")","v":""},null,null,{"$f":"IFERROR(INDEX(Table1[Room description],MATCH('2) Room configuration'!I346,Table1[TMS],0)),\"\")","v":""},{"$f":"IFERROR(INDEX(Table1[Bedding],MATCH('2) Room configuration'!I346,Table1[TMS],0)),\"\")","v":""},{"$f":"IFERROR(INDEX(Table1[Normal occupancy],MATCH(Table2[[#This Row],[New Room Type \n(TMS)]],Table1[TMS],0)),\"\")","v":""},null,null,null,null,"",{"$f":"IF(Table2[[#This Row],['# extra beds that fit in the room2]]<>0,LEFT(Table2[[#This Row],[New Room Type \n(TMS)]],6),\"\")","v":""},null,{"$f":"IF(Table2[[#This Row],['# extra beds that fit in the room]]<>Table2[[#This Row],['# extra beds that fit in the room2]],\"yes\",\"No\")","v":"No"}]
[null,{"$f":"IF(LEN(C347)>0,'1) Hotel information'!$C$4,\"\")","v":""},null,null,null,{"$f":"IFERROR(INDEX(Table1[Room description],MATCH('2) Room configuration'!D347,Table1[TMS],0)),\"\")","v":""},{"$f":"IFERROR(INDEX(Table1[Bedding],MATCH('2) Room configuration'!D347,Table1[TMS],0)),\"\")","v":""},null,null,{"$f":"IFERROR(INDEX(Table1[Room description],MATCH('2) Room configuration'!I347,Table1[TMS],0)),\"\")","v":""},{"$f":"IFERROR(INDEX(Table1[Bedding],MATCH('2) Room configuration'!I347,Table1[TMS],0)),\"\")","v":""},{"$f":"IFERROR(INDEX(Table1[Normal occupancy],MATCH(Table2[[#This Row],[New Room Type \n(TMS)]],Table1[TMS],0)),\"\")","v":""},null,null,null,null,"",{"$f":"IF(Table2[[#This Row],['# extra beds that fit in the room2]]<>0,LEFT(Table2[[#This Row],[New Room Type \n(TMS)]],6),\"\")","v":""},null,{"$f":"IF(Table2[[#This Row],['# extra beds that fit in the room]]<>Table2[[#This Row],['# extra beds that fit in the room2]],\"yes\",\"No\")","v":"No"}]
[null,{"$f":"IF(LEN(C348)>0,'1) Hotel information'!$C$4,\"\")","v":""},null,null,null,{"$f":"IFERROR(INDEX(Table1[Room description],MATCH('2) Room configuration'!D348,Table1[TMS],0)),\"\")","v":""},{"$f":"IFERROR(INDEX(Table1[Bedding],MATCH('2) Room configuration'!D348,Table1[TMS],0)),\"\")","v":""},null,null,{"$f":"IFERROR(INDEX(Table1[Room description],MATCH('2) Room configuration'!I348,Table1[TMS],0)),\"\")","v":""},{"$f":"IFERROR(INDEX(Table1[Bedding],MATCH('2) Room configuration'!I348,Table1[TMS],0)),\"\")","v":""},{"$f":"IFERROR(INDEX(Table1[Normal occupancy],MATCH(Table2[[#This Row],[New Room Type \n(TMS)]],Table1[TMS],0)),\"\")","v":""},null,null,null,null,"",{"$f":"IF(Table2[[#This Row],['# extra beds that fit in the room2]]<>0,LEFT(Table2[[#This Row],[New Room Type \n(TMS)]],6),\"\")","v":""},null,{"$f":"IF(Table2[[#This Row],['# extra beds that fit in the room]]<>Table2[[#This Row],['# extra beds that fit in the room2]],\"yes\",\"No\")","v":"No"}]
[null,{"$f":"IF(LEN(C349)>0,'1) Hotel information'!$C$4,\"\")","v":""},null,null,null,{"$f":"IFERROR(INDEX(Table1[Room description],MATCH('2) Room configuration'!D349,Table1[TMS],0)),\"\")","v":""},{"$f":"IFERROR(INDEX(Table1[Bedding],MATCH('2) Room configuration'!D349,Table1[TMS],0)),\"\")","v":""},null,null,{"$f":"IFERROR(INDEX(Table1[Room description],MATCH('2) Room configuration'!I349,Table1[TMS],0)),\"\")","v":""},{"$f":"IFERROR(INDEX(Table1[Bedding],MATCH('2) Room configuration'!I349,Table1[TMS],0)),\"\")","v":""},{"$f":"IFERROR(INDEX(Table1[Normal occupancy],MATCH(Table2[[#This Row],[New Room Type \n(TMS)]],Table1[TMS],0)),\"\")","v":""},null,null,null,null,"",{"$f":"IF(Table2[[#This Row],['# extra beds that fit in the room2]]<>0,LEFT(Table2[[#This Row],[New Room Type \n(TMS)]],6),\"\")","v":""},null,{"$f":"IF(Table2[[#This Row],['# extra beds that fit in the room]]<>Table2[[#This Row],['# extra beds that fit in the room2]],\"yes\",\"No\")","v":"No"}]
[null,{"$f":"IF(LEN(C350)>0,'1) Hotel information'!$C$4,\"\")","v":""},null,null,null,{"$f":"IFERROR(INDEX(Table1[Room description],MATCH('2) Room configuration'!D350,Table1[TMS],0)),\"\")","v":""},{"$f":"IFERROR(INDEX(Table1[Bedding],MATCH('2) Room configuration'!D350,Table1[TMS],0)),\"\")","v":""},null,null,{"$f":"IFERROR(INDEX(Table1[Room description],MATCH('2) Room configuration'!I350,Table1[TMS],0)),\"\")","v":""},{"$f":"IFERROR(INDEX(Table1[Bedding],MATCH('2) Room configuration'!I350,Table1[TMS],0)),\"\")","v":""},{"$f":"IFERROR(INDEX(Table1[Normal occupancy],MATCH(Table2[[#This Row],[New Room Type \n(TMS)]],Table1[TMS],0)),\"\")","v":""},null,null,null,null,"",{"$f":"IF(Table2[[#This Row],['# extra beds that fit in the room2]]<>0,LEFT(Table2[[#This Row],[New Room Type \n(TMS)]],6),\"\")","v":""},null,{"$f":"IF(Table2[[#This Row],['# extra beds that fit in the room]]<>Table2[[#This Row],['# extra beds that fit in the room2]],\"yes\",\"No\")","v":"No"}]
[null,{"$f":"IF(LEN(C351)>0,'1) Hotel information'!$C$4,\"\")","v":""},null,null,null,{"$f":"IFERROR(INDEX(Table1[Room description],MATCH('2) Room configuration'!D351,Table1[TMS],0)),\"\")","v":""},{"$f":"IFERROR(INDEX(Table1[Bedding],MATCH('2) Room configuration'!D351,Table1[TMS],0)),\"\")","v":""},null,null,{"$f":"IFERROR(INDEX(Table1[Room description],MATCH('2) Room configuration'!I351,Table1[TMS],0)),\"\")","v":""},{"$f":"IFERROR(INDEX(Table1[Bedding],MATCH('2) Room configuration'!I351,Table1[TMS],0)),\"\")","v":""},{"$f":"IFERROR(INDEX(Table1[Normal occupancy],MATCH(Table2[[#This Row],[New Room Type \n(TMS)]],Table1[TMS],0)),\"\")","v":""},null,null,null,null,"",{"$f":"IF(Table2[[#This Row],['# extra beds that fit in the room2]]<>0,LEFT(Table2[[#This Row],[New Room Type \n(TMS)]],6),\"\")","v":""},null,{"$f":"IF(Table2[[#This Row],['# extra beds that fit in the room]]<>Table2[[#This Row],['# extra beds that fit in the room2]],\"yes\",\"No\")","v":"No"}]
[null,{"$f":"IF(LEN(C352)>0,'1) Hotel information'!$C$4,\"\")","v":""},null,null,null,{"$f":"IFERROR(INDEX(Table1[Room description],MATCH('2) Room configuration'!D352,Table1[TMS],0)),\"\")","v":""},{"$f":"IFERROR(INDEX(Table1[Bedding],MATCH('2) Room configuration'!D352,Table1[TMS],0)),\"\")","v":""},null,null,{"$f":"IFERROR(INDEX(Table1[Room description],MATCH('2) Room configuration'!I352,Table1[TMS],0)),\"\")","v":""},{"$f":"IFERROR(INDEX(Table1[Bedding],MATCH('2) Room configuration'!I352,Table1[TMS],0)),\"\")","v":""},{"$f":"IFERROR(INDEX(Table1[Normal occupancy],MATCH(Table2[[#This Row],[New Room Type \n(TMS)]],Table1[TMS],0)),\"\")","v":""},null,null,null,null,"",{"$f":"IF(Table2[[#This Row],['# extra beds that fit in the room2]]<>0,LEFT(Table2[[#This Row],[New Room Type \n(TMS)]],6),\"\")","v":""},null,{"$f":"IF(Table2[[#This Row],['# extra beds that fit in the room]]<>Table2[[#This Row],['# extra beds that fit in the room2]],\"yes\",\"No\")","v":"No"}]
[null,{"$f":"IF(LEN(C353)>0,'1) Hotel information'!$C$4,\"\")","v":""},null,null,null,{"$f":"IFERROR(INDEX(Table1[Room description],MATCH('2) Room configuration'!D353,Table1[TMS],0)),\"\")","v":""},{"$f":"IFERROR(INDEX(Table1[Bedding],MATCH('2) Room configuration'!D353,Table1[TMS],0)),\"\")","v":""},null,null,{"$f":"IFERROR(INDEX(Table1[Room description],MATCH('2) Room configuration'!I353,Table1[TMS],0)),\"\")","v":""},{"$f":"IFERROR(INDEX(Table1[Bedding],MATCH('2) Room configuration'!I353,Table1[TMS],0)),\"\")","v":""},{"$f":"IFERROR(INDEX(Table1[Normal occupancy],MATCH(Table2[[#This Row],[New Room Type \n(TMS)]],Table1[TMS],0)),\"\")","v":""},null,null,null,null,"",{"$f":"IF(Table2[[#This Row],['# extra beds that fit in the room2]]<>0,LEFT(Table2[[#This Row],[New Room Type \n(TMS)]],6),\"\")","v":""},null,{"$f":"IF(Table2[[#This Row],['# extra beds that fit in the room]]<>Table2[[#This Row],['# extra beds that fit in the room2]],\"yes\",\"No\")","v":"No"}]
[null,{"$f":"IF(LEN(C354)>0,'1) Hotel information'!$C$4,\"\")","v":""},null,null,null,{"$f":"IFERROR(INDEX(Table1[Room description],MATCH('2) Room configuration'!D354,Table1[TMS],0)),\"\")","v":""},{"$f":"IFERROR(INDEX(Table1[Bedding],MATCH('2) Room configuration'!D354,Table1[TMS],0)),\"\")","v":""},null,null,{"$f":"IFERROR(INDEX(Table1[Room description],MATCH('2) Room configuration'!I354,Table1[TMS],0)),\"\")","v":""},{"$f":"IFERROR(INDEX(Table1[Bedding],MATCH('2) Room configuration'!I354,Table1[TMS],0)),\"\")","v":""},{"$f":"IFERROR(INDEX(Table1[Normal occupancy],MATCH(Table2[[#This Row],[New Room Type \n(TMS)]],Table1[TMS],0)),\"\")","v":""},null,null,null,null,"",{"$f":"IF(Table2[[#This Row],['# extra beds that fit in the room2]]<>0,LEFT(Table2[[#This Row],[New Room Type \n(TMS)]],6),\"\")","v":""},null,{"$f":"IF(Table2[[#This Row],['# extra beds that fit in the room]]<>Table2[[#This Row],['# extra beds that fit in the room2]],\"yes\",\"No\")","v":"No"}]
[null,{"$f":"IF(LEN(C355)>0,'1) Hotel information'!$C$4,\"\")","v":""},null,null,null,{"$f":"IFERROR(INDEX(Table1[Room description],MATCH('2) Room configuration'!D355,Table1[TMS],0)),\"\")","v":""},{"$f":"IFERROR(INDEX(Table1[Bedding],MATCH('2) Room configuration'!D355,Table1[TMS],0)),\"\")","v":""},null,null,{"$f":"IFERROR(INDEX(Table1[Room description],MATCH('2) Room configuration'!I355,Table1[TMS],0)),\"\")","v":""},{"$f":"IFERROR(INDEX(Table1[Bedding],MATCH('2) Room configuration'!I355,Table1[TMS],0)),\"\")","v":""},{"$f":"IFERROR(INDEX(Table1[Normal occupancy],MATCH(Table2[[#This Row],[New Room Type \n(TMS)]],Table1[TMS],0)),\"\")","v":""},null,null,null,null,"",{"$f":"IF(Table2[[#This Row],['# extra beds that fit in the room2]]<>0,LEFT(Table2[[#This Row],[New Room Type \n(TMS)]],6),\"\")","v":""},null,{"$f":"IF(Table2[[#This Row],['# extra beds that fit in the room]]<>Table2[[#This Row],['# extra beds that fit in the room2]],\"yes\",\"No\")","v":"No"}]
[null,{"$f":"IF(LEN(C356)>0,'1) Hotel information'!$C$4,\"\")","v":""},null,null,null,{"$f":"IFERROR(INDEX(Table1[Room description],MATCH('2) Room configuration'!D356,Table1[TMS],0)),\"\")","v":""},{"$f":"IFERROR(INDEX(Table1[Bedding],MATCH('2) Room configuration'!D356,Table1[TMS],0)),\"\")","v":""},null,null,{"$f":"IFERROR(INDEX(Table1[Room description],MATCH('2) Room configuration'!I356,Table1[TMS],0)),\"\")","v":""},{"$f":"IFERROR(INDEX(Table1[Bedding],MATCH('2) Room configuration'!I356,Table1[TMS],0)),\"\")","v":""},{"$f":"IFERROR(INDEX(Table1[Normal occupancy],MATCH(Table2[[#This Row],[New Room Type \n(TMS)]],Table1[TMS],0)),\"\")","v":""},null,null,null,null,"",{"$f":"IF(Table2[[#This Row],['# extra beds that fit in the room2]]<>0,LEFT(Table2[[#This Row],[New Room Type \n(TMS)]],6),\"\")","v":""},null,{"$f":"IF(Table2[[#This Row],['# extra beds that fit in the room]]<>Table2[[#This Row],['# extra beds that fit in the room2]],\"yes\",\"No\")","v":"No"}]
[null,{"$f":"IF(LEN(C357)>0,'1) Hotel information'!$C$4,\"\")","v":""},null,null,null,{"$f":"IFERROR(INDEX(Table1[Room description],MATCH('2) Room configuration'!D357,Table1[TMS],0)),\"\")","v":""},{"$f":"IFERROR(INDEX(Table1[Bedding],MATCH('2) Room configuration'!D357,Table1[TMS],0)),\"\")","v":""},null,null,{"$f":"IFERROR(INDEX(Table1[Room description],MATCH('2) Room configuration'!I357,Table1[TMS],0)),\"\")","v":""},{"$f":"IFERROR(INDEX(Table1[Bedding],MATCH('2) Room configuration'!I357,Table1[TMS],0)),\"\")","v":""},{"$f":"IFERROR(INDEX(Table1[Normal occupancy],MATCH(Table2[[#This Row],[New Room Type \n(TMS)]],Table1[TMS],0)),\"\")","v":""},null,null,null,null,"",{"$f":"IF(Table2[[#This Row],['# extra beds that fit in the room2]]<>0,LEFT(Table2[[#This Row],[New Room Type \n(TMS)]],6),\"\")","v":""},null,{"$f":"IF(Table2[[#This Row],['# extra beds that fit in the room]]<>Table2[[#This Row],['# extra beds that fit in the room2]],\"yes\",\"No\")","v":"No"}]
[null,{"$f":"IF(LEN(C358)>0,'1) Hotel information'!$C$4,\"\")","v":""},null,null,null,{"$f":"IFERROR(INDEX(Table1[Room description],MATCH('2) Room configuration'!D358,Table1[TMS],0)),\"\")","v":""},{"$f":"IFERROR(INDEX(Table1[Bedding],MATCH('2) Room configuration'!D358,Table1[TMS],0)),\"\")","v":""},null,null,{"$f":"IFERROR(INDEX(Table1[Room description],MATCH('2) Room configuration'!I358,Table1[TMS],0)),\"\")","v":""},{"$f":"IFERROR(INDEX(Table1[Bedding],MATCH('2) Room configuration'!I358,Table1[TMS],0)),\"\")","v":""},{"$f":"IFERROR(INDEX(Table1[Normal occupancy],MATCH(Table2[[#This Row],[New Room Type \n(TMS)]],Table1[TMS],0)),\"\")","v":""},null,null,null,null,"",{"$f":"IF(Table2[[#This Row],['# extra beds that fit in the room2]]<>0,LEFT(Table2[[#This Row],[New Room Type \n(TMS)]],6),\"\")","v":""},null,{"$f":"IF(Table2[[#This Row],['# extra beds that fit in the room]]<>Table2[[#This Row],['# extra beds that fit in the room2]],\"yes\",\"No\")","v":"No"}]
[null,{"$f":"IF(LEN(C359)>0,'1) Hotel information'!$C$4,\"\")","v":""},null,null,null,{"$f":"IFERROR(INDEX(Table1[Room description],MATCH('2) Room configuration'!D359,Table1[TMS],0)),\"\")","v":""},{"$f":"IFERROR(INDEX(Table1[Bedding],MATCH('2) Room configuration'!D359,Table1[TMS],0)),\"\")","v":""},null,null,{"$f":"IFERROR(INDEX(Table1[Room description],MATCH('2) Room configuration'!I359,Table1[TMS],0)),\"\")","v":""},{"$f":"IFERROR(INDEX(Table1[Bedding],MATCH('2) Room configuration'!I359,Table1[TMS],0)),\"\")","v":""},{"$f":"IFERROR(INDEX(Table1[Normal occupancy],MATCH(Table2[[#This Row],[New Room Type \n(TMS)]],Table1[TMS],0)),\"\")","v":""},null,null,null,null,"",{"$f":"IF(Table2[[#This Row],['# extra beds that fit in the room2]]<>0,LEFT(Table2[[#This Row],[New Room Type \n(TMS)]],6),\"\")","v":""},null,{"$f":"IF(Table2[[#This Row],['# extra beds that fit in the room]]<>Table2[[#This Row],['# extra beds that fit in the room2]],\"yes\",\"No\")","v":"No"}]
[null,{"$f":"IF(LEN(C360)>0,'1) Hotel information'!$C$4,\"\")","v":""},null,null,null,{"$f":"IFERROR(INDEX(Table1[Room description],MATCH('2) Room configuration'!D360,Table1[TMS],0)),\"\")","v":""},{"$f":"IFERROR(INDEX(Table1[Bedding],MATCH('2) Room configuration'!D360,Table1[TMS],0)),\"\")","v":""},null,null,{"$f":"IFERROR(INDEX(Table1[Room description],MATCH('2) Room configuration'!I360,Table1[TMS],0)),\"\")","v":""},{"$f":"IFERROR(INDEX(Table1[Bedding],MATCH('2) Room configuration'!I360,Table1[TMS],0)),\"\")","v":""},{"$f":"IFERROR(INDEX(Table1[Normal occupancy],MATCH(Table2[[#This Row],[New Room Type \n(TMS)]],Table1[TMS],0)),\"\")","v":""},null,null,null,null,"",{"$f":"IF(Table2[[#This Row],['# extra beds that fit in the room2]]<>0,LEFT(Table2[[#This Row],[New Room Type \n(TMS)]],6),\"\")","v":""},null,{"$f":"IF(Table2[[#This Row],['# extra beds that fit in the room]]<>Table2[[#This Row],['# extra beds that fit in the room2]],\"yes\",\"No\")","v":"No"}]
[null,{"$f":"IF(LEN(C361)>0,'1) Hotel information'!$C$4,\"\")","v":""},null,null,null,{"$f":"IFERROR(INDEX(Table1[Room description],MATCH('2) Room configuration'!D361,Table1[TMS],0)),\"\")","v":""},{"$f":"IFERROR(INDEX(Table1[Bedding],MATCH('2) Room configuration'!D361,Table1[TMS],0)),\"\")","v":""},null,null,{"$f":"IFERROR(INDEX(Table1[Room description],MATCH('2) Room configuration'!I361,Table1[TMS],0)),\"\")","v":""},{"$f":"IFERROR(INDEX(Table1[Bedding],MATCH('2) Room configuration'!I361,Table1[TMS],0)),\"\")","v":""},{"$f":"IFERROR(INDEX(Table1[Normal occupancy],MATCH(Table2[[#This Row],[New Room Type \n(TMS)]],Table1[TMS],0)),\"\")","v":""},null,null,null,null,"",{"$f":"IF(Table2[[#This Row],['# extra beds that fit in the room2]]<>0,LEFT(Table2[[#This Row],[New Room Type \n(TMS)]],6),\"\")","v":""},null,{"$f":"IF(Table2[[#This Row],['# extra beds that fit in the room]]<>Table2[[#This Row],['# extra beds that fit in the room2]],\"yes\",\"No\")","v":"No"}]
[null,{"$f":"IF(LEN(C362)>0,'1) Hotel information'!$C$4,\"\")","v":""},null,null,null,{"$f":"IFERROR(INDEX(Table1[Room description],MATCH('2) Room configuration'!D362,Table1[TMS],0)),\"\")","v":""},{"$f":"IFERROR(INDEX(Table1[Bedding],MATCH('2) Room configuration'!D362,Table1[TMS],0)),\"\")","v":""},null,null,{"$f":"IFERROR(INDEX(Table1[Room description],MATCH('2) Room configuration'!I362,Table1[TMS],0)),\"\")","v":""},{"$f":"IFERROR(INDEX(Table1[Bedding],MATCH('2) Room configuration'!I362,Table1[TMS],0)),\"\")","v":""},{"$f":"IFERROR(INDEX(Table1[Normal occupancy],MATCH(Table2[[#This Row],[New Room Type \n(TMS)]],Table1[TMS],0)),\"\")","v":""},null,null,null,null,"",{"$f":"IF(Table2[[#This Row],['# extra beds that fit in the room2]]<>0,LEFT(Table2[[#This Row],[New Room Type \n(TMS)]],6),\"\")","v":""},null,{"$f":"IF(Table2[[#This Row],['# extra beds that fit in the room]]<>Table2[[#This Row],['# extra beds that fit in the room2]],\"yes\",\"No\")","v":"No"}]
[null,{"$f":"IF(LEN(C363)>0,'1) Hotel information'!$C$4,\"\")","v":""},null,null,null,{"$f":"IFERROR(INDEX(Table1[Room description],MATCH('2) Room configuration'!D363,Table1[TMS],0)),\"\")","v":""},{"$f":"IFERROR(INDEX(Table1[Bedding],MATCH('2) Room configuration'!D363,Table1[TMS],0)),\"\")","v":""},null,null,{"$f":"IFERROR(INDEX(Table1[Room description],MATCH('2) Room configuration'!I363,Table1[TMS],0)),\"\")","v":""},{"$f":"IFERROR(INDEX(Table1[Bedding],MATCH('2) Room configuration'!I363,Table1[TMS],0)),\"\")","v":""},{"$f":"IFERROR(INDEX(Table1[Normal occupancy],MATCH(Table2[[#This Row],[New Room Type \n(TMS)]],Table1[TMS],0)),\"\")","v":""},null,null,null,null,"",{"$f":"IF(Table2[[#This Row],['# extra beds that fit in the room2]]<>0,LEFT(Table2[[#This Row],[New Room Type \n(TMS)]],6),\"\")","v":""},null,{"$f":"IF(Table2[[#This Row],['# extra beds that fit in the room]]<>Table2[[#This Row],['# extra beds that fit in the room2]],\"yes\",\"No\")","v":"No"}]
[null,{"$f":"IF(LEN(C364)>0,'1) Hotel information'!$C$4,\"\")","v":""},null,null,null,{"$f":"IFERROR(INDEX(Table1[Room description],MATCH('2) Room configuration'!D364,Table1[TMS],0)),\"\")","v":""},{"$f":"IFERROR(INDEX(Table1[Bedding],MATCH('2) Room configuration'!D364,Table1[TMS],0)),\"\")","v":""},null,null,{"$f":"IFERROR(INDEX(Table1[Room description],MATCH('2) Room configuration'!I364,Table1[TMS],0)),\"\")","v":""},{"$f":"IFERROR(INDEX(Table1[Bedding],MATCH('2) Room configuration'!I364,Table1[TMS],0)),\"\")","v":""},{"$f":"IFERROR(INDEX(Table1[Normal occupancy],MATCH(Table2[[#This Row],[New Room Type \n(TMS)]],Table1[TMS],0)),\"\")","v":""},null,null,null,null,"",{"$f":"IF(Table2[[#This Row],['# extra beds that fit in the room2]]<>0,LEFT(Table2[[#This Row],[New Room Type \n(TMS)]],6),\"\")","v":""},null,{"$f":"IF(Table2[[#This Row],['# extra beds that fit in the room]]<>Table2[[#This Row],['# extra beds that fit in the room2]],\"yes\",\"No\")","v":"No"}]
[null,{"$f":"IF(LEN(C365)>0,'1) Hotel information'!$C$4,\"\")","v":""},null,null,null,{"$f":"IFERROR(INDEX(Table1[Room description],MATCH('2) Room configuration'!D365,Table1[TMS],0)),\"\")","v":""},{"$f":"IFERROR(INDEX(Table1[Bedding],MATCH('2) Room configuration'!D365,Table1[TMS],0)),\"\")","v":""},null,null,{"$f":"IFERROR(INDEX(Table1[Room description],MATCH('2) Room configuration'!I365,Table1[TMS],0)),\"\")","v":""},{"$f":"IFERROR(INDEX(Table1[Bedding],MATCH('2) Room configuration'!I365,Table1[TMS],0)),\"\")","v":""},{"$f":"IFERROR(INDEX(Table1[Normal occupancy],MATCH(Table2[[#This Row],[New Room Type \n(TMS)]],Table1[TMS],0)),\"\")","v":""},null,null,null,null,"",{"$f":"IF(Table2[[#This Row],['# extra beds that fit in the room2]]<>0,LEFT(Table2[[#This Row],[New Room Type \n(TMS)]],6),\"\")","v":""},null,{"$f":"IF(Table2[[#This Row],['# extra beds that fit in the room]]<>Table2[[#This Row],['# extra beds that fit in the room2]],\"yes\",\"No\")","v":"No"}]
[null,{"$f":"IF(LEN(C366)>0,'1) Hotel information'!$C$4,\"\")","v":""},null,null,null,{"$f":"IFERROR(INDEX(Table1[Room description],MATCH('2) Room configuration'!D366,Table1[TMS],0)),\"\")","v":""},{"$f":"IFERROR(INDEX(Table1[Bedding],MATCH('2) Room configuration'!D366,Table1[TMS],0)),\"\")","v":""},null,null,{"$f":"IFERROR(INDEX(Table1[Room description],MATCH('2) Room configuration'!I366,Table1[TMS],0)),\"\")","v":""},{"$f":"IFERROR(INDEX(Table1[Bedding],MATCH('2) Room configuration'!I366,Table1[TMS],0)),\"\")","v":""},{"$f":"IFERROR(INDEX(Table1[Normal occupancy],MATCH(Table2[[#This Row],[New Room Type \n(TMS)]],Table1[TMS],0)),\"\")","v":""},null,null,null,null,"",{"$f":"IF(Table2[[#This Row],['# extra beds that fit in the room2]]<>0,LEFT(Table2[[#This Row],[New Room Type \n(TMS)]],6),\"\")","v":""},null,{"$f":"IF(Table2[[#This Row],['# extra beds that fit in the room]]<>Table2[[#This Row],['# extra beds that fit in the room2]],\"yes\",\"No\")","v":"No"}]
[null,{"$f":"IF(LEN(C367)>0,'1) Hotel information'!$C$4,\"\")","v":""},null,null,null,{"$f":"IFERROR(INDEX(Table1[Room description],MATCH('2) Room configuration'!D367,Table1[TMS],0)),\"\")","v":""},{"$f":"IFERROR(INDEX(Table1[Bedding],MATCH('2) Room configuration'!D367,Table1[TMS],0)),\"\")","v":""},null,null,{"$f":"IFERROR(INDEX(Table1[Room description],MATCH('2) Room configuration'!I367,Table1[TMS],0)),\"\")","v":""},{"$f":"IFERROR(INDEX(Table1[Bedding],MATCH('2) Room configuration'!I367,Table1[TMS],0)),\"\")","v":""},{"$f":"IFERROR(INDEX(Table1[Normal occupancy],MATCH(Table2[[#This Row],[New Room Type \n(TMS)]],Table1[TMS],0)),\"\")","v":""},null,null,null,null,"",{"$f":"IF(Table2[[#This Row],['# extra beds that fit in the room2]]<>0,LEFT(Table2[[#This Row],[New Room Type \n(TMS)]],6),\"\")","v":""},null,{"$f":"IF(Table2[[#This Row],['# extra beds that fit in the room]]<>Table2[[#This Row],['# extra beds that fit in the room2]],\"yes\",\"No\")","v":"No"}]
[null,{"$f":"IF(LEN(C368)>0,'1) Hotel information'!$C$4,\"\")","v":""},null,null,null,{"$f":"IFERROR(INDEX(Table1[Room description],MATCH('2) Room configuration'!D368,Table1[TMS],0)),\"\")","v":""},{"$f":"IFERROR(INDEX(Table1[Bedding],MATCH('2) Room configuration'!D368,Table1[TMS],0)),\"\")","v":""},null,null,{"$f":"IFERROR(INDEX(Table1[Room description],MATCH('2) Room configuration'!I368,Table1[TMS],0)),\"\")","v":""},{"$f":"IFERROR(INDEX(Table1[Bedding],MATCH('2) Room configuration'!I368,Table1[TMS],0)),\"\")","v":""},{"$f":"IFERROR(INDEX(Table1[Normal occupancy],MATCH(Table2[[#This Row],[New Room Type \n(TMS)]],Table1[TMS],0)),\"\")","v":""},null,null,null,null,"",{"$f":"IF(Table2[[#This Row],['# extra beds that fit in the room2]]<>0,LEFT(Table2[[#This Row],[New Room Type \n(TMS)]],6),\"\")","v":""},null,{"$f":"IF(Table2[[#This Row],['# extra beds that fit in the room]]<>Table2[[#This Row],['# extra beds that fit in the room2]],\"yes\",\"No\")","v":"No"}]
[null,{"$f":"IF(LEN(C369)>0,'1) Hotel information'!$C$4,\"\")","v":""},null,null,null,{"$f":"IFERROR(INDEX(Table1[Room description],MATCH('2) Room configuration'!D369,Table1[TMS],0)),\"\")","v":""},{"$f":"IFERROR(INDEX(Table1[Bedding],MATCH('2) Room configuration'!D369,Table1[TMS],0)),\"\")","v":""},null,null,{"$f":"IFERROR(INDEX(Table1[Room description],MATCH('2) Room configuration'!I369,Table1[TMS],0)),\"\")","v":""},{"$f":"IFERROR(INDEX(Table1[Bedding],MATCH('2) Room configuration'!I369,Table1[TMS],0)),\"\")","v":""},{"$f":"IFERROR(INDEX(Table1[Normal occupancy],MATCH(Table2[[#This Row],[New Room Type \n(TMS)]],Table1[TMS],0)),\"\")","v":""},null,null,null,null,"",{"$f":"IF(Table2[[#This Row],['# extra beds that fit in the room2]]<>0,LEFT(Table2[[#This Row],[New Room Type \n(TMS)]],6),\"\")","v":""},null,{"$f":"IF(Table2[[#This Row],['# extra beds that fit in the room]]<>Table2[[#This Row],['# extra beds that fit in the room2]],\"yes\",\"No\")","v":"No"}]
[null,{"$f":"IF(LEN(C370)>0,'1) Hotel information'!$C$4,\"\")","v":""},null,null,null,{"$f":"IFERROR(INDEX(Table1[Room description],MATCH('2) Room configuration'!D370,Table1[TMS],0)),\"\")","v":""},{"$f":"IFERROR(INDEX(Table1[Bedding],MATCH('2) Room configuration'!D370,Table1[TMS],0)),\"\")","v":""},null,null,{"$f":"IFERROR(INDEX(Table1[Room description],MATCH('2) Room configuration'!I370,Table1[TMS],0)),\"\")","v":""},{"$f":"IFERROR(INDEX(Table1[Bedding],MATCH('2) Room configuration'!I370,Table1[TMS],0)),\"\")","v":""},{"$f":"IFERROR(INDEX(Table1[Normal occupancy],MATCH(Table2[[#This Row],[New Room Type \n(TMS)]],Table1[TMS],0)),\"\")","v":""},null,null,null,null,"",{"$f":"IF(Table2[[#This Row],['# extra beds that fit in the room2]]<>0,LEFT(Table2[[#This Row],[New Room Type \n(TMS)]],6),\"\")","v":""},null,{"$f":"IF(Table2[[#This Row],['# extra beds that fit in the room]]<>Table2[[#This Row],['# extra beds that fit in the room2]],\"yes\",\"No\")","v":"No"}]
[null,{"$f":"IF(LEN(C371)>0,'1) Hotel information'!$C$4,\"\")","v":""},null,null,null,{"$f":"IFERROR(INDEX(Table1[Room description],MATCH('2) Room configuration'!D371,Table1[TMS],0)),\"\")","v":""},{"$f":"IFERROR(INDEX(Table1[Bedding],MATCH('2) Room configuration'!D371,Table1[TMS],0)),\"\")","v":""},null,null,{"$f":"IFERROR(INDEX(Table1[Room description],MATCH('2) Room configuration'!I371,Table1[TMS],0)),\"\")","v":""},{"$f":"IFERROR(INDEX(Table1[Bedding],MATCH('2) Room configuration'!I371,Table1[TMS],0)),\"\")","v":""},{"$f":"IFERROR(INDEX(Table1[Normal occupancy],MATCH(Table2[[#This Row],[New Room Type \n(TMS)]],Table1[TMS],0)),\"\")","v":""},null,null,null,null,"",{"$f":"IF(Table2[[#This Row],['# extra beds that fit in the room2]]<>0,LEFT(Table2[[#This Row],[New Room Type \n(TMS)]],6),\"\")","v":""},null,{"$f":"IF(Table2[[#This Row],['# extra beds that fit in the room]]<>Table2[[#This Row],['# extra beds that fit in the room2]],\"yes\",\"No\")","v":"No"}]
[null,{"$f":"IF(LEN(C372)>0,'1) Hotel information'!$C$4,\"\")","v":""},null,null,null,{"$f":"IFERROR(INDEX(Table1[Room description],MATCH('2) Room configuration'!D372,Table1[TMS],0)),\"\")","v":""},{"$f":"IFERROR(INDEX(Table1[Bedding],MATCH('2) Room configuration'!D372,Table1[TMS],0)),\"\")","v":""},null,null,{"$f":"IFERROR(INDEX(Table1[Room description],MATCH('2) Room configuration'!I372,Table1[TMS],0)),\"\")","v":""},{"$f":"IFERROR(INDEX(Table1[Bedding],MATCH('2) Room configuration'!I372,Table1[TMS],0)),\"\")","v":""},{"$f":"IFERROR(INDEX(Table1[Normal occupancy],MATCH(Table2[[#This Row],[New Room Type \n(TMS)]],Table1[TMS],0)),\"\")","v":""},null,null,null,null,"",{"$f":"IF(Table2[[#This Row],['# extra beds that fit in the room2]]<>0,LEFT(Table2[[#This Row],[New Room Type \n(TMS)]],6),\"\")","v":""},null,{"$f":"IF(Table2[[#This Row],['# extra beds that fit in the room]]<>Table2[[#This Row],['# extra beds that fit in the room2]],\"yes\",\"No\")","v":"No"}]
[null,{"$f":"IF(LEN(C373)>0,'1) Hotel information'!$C$4,\"\")","v":""},null,null,null,{"$f":"IFERROR(INDEX(Table1[Room description],MATCH('2) Room configuration'!D373,Table1[TMS],0)),\"\")","v":""},{"$f":"IFERROR(INDEX(Table1[Bedding],MATCH('2) Room configuration'!D373,Table1[TMS],0)),\"\")","v":""},null,null,{"$f":"IFERROR(INDEX(Table1[Room description],MATCH('2) Room configuration'!I373,Table1[TMS],0)),\"\")","v":""},{"$f":"IFERROR(INDEX(Table1[Bedding],MATCH('2) Room configuration'!I373,Table1[TMS],0)),\"\")","v":""},{"$f":"IFERROR(INDEX(Table1[Normal occupancy],MATCH(Table2[[#This Row],[New Room Type \n(TMS)]],Table1[TMS],0)),\"\")","v":""},null,null,null,null,"",{"$f":"IF(Table2[[#This Row],['# extra beds that fit in the room2]]<>0,LEFT(Table2[[#This Row],[New Room Type \n(TMS)]],6),\"\")","v":""},null,{"$f":"IF(Table2[[#This Row],['# extra beds that fit in the room]]<>Table2[[#This Row],['# extra beds that fit in the room2]],\"yes\",\"No\")","v":"No"}]
[null,{"$f":"IF(LEN(C374)>0,'1) Hotel information'!$C$4,\"\")","v":""},null,null,null,{"$f":"IFERROR(INDEX(Table1[Room description],MATCH('2) Room configuration'!D374,Table1[TMS],0)),\"\")","v":""},{"$f":"IFERROR(INDEX(Table1[Bedding],MATCH('2) Room configuration'!D374,Table1[TMS],0)),\"\")","v":""},null,null,{"$f":"IFERROR(INDEX(Table1[Room description],MATCH('2) Room configuration'!I374,Table1[TMS],0)),\"\")","v":""},{"$f":"IFERROR(INDEX(Table1[Bedding],MATCH('2) Room configuration'!I374,Table1[TMS],0)),\"\")","v":""},{"$f":"IFERROR(INDEX(Table1[Normal occupancy],MATCH(Table2[[#This Row],[New Room Type \n(TMS)]],Table1[TMS],0)),\"\")","v":""},null,null,null,null,"",{"$f":"IF(Table2[[#This Row],['# extra beds that fit in the room2]]<>0,LEFT(Table2[[#This Row],[New Room Type \n(TMS)]],6),\"\")","v":""},null,{"$f":"IF(Table2[[#This Row],['# extra beds that fit in the room]]<>Table2[[#This Row],['# extra beds that fit in the room2]],\"yes\",\"No\")","v":"No"}]
[null,{"$f":"IF(LEN(C375)>0,'1) Hotel information'!$C$4,\"\")","v":""},null,null,null,{"$f":"IFERROR(INDEX(Table1[Room description],MATCH('2) Room configuration'!D375,Table1[TMS],0)),\"\")","v":""},{"$f":"IFERROR(INDEX(Table1[Bedding],MATCH('2) Room configuration'!D375,Table1[TMS],0)),\"\")","v":""},null,null,{"$f":"IFERROR(INDEX(Table1[Room description],MATCH('2) Room configuration'!I375,Table1[TMS],0)),\"\")","v":""},{"$f":"IFERROR(INDEX(Table1[Bedding],MATCH('2) Room configuration'!I375,Table1[TMS],0)),\"\")","v":""},{"$f":"IFERROR(INDEX(Table1[Normal occupancy],MATCH(Table2[[#This Row],[New Room Type \n(TMS)]],Table1[TMS],0)),\"\")","v":""},null,null,null,null,"",{"$f":"IF(Table2[[#This Row],['# extra beds that fit in the room2]]<>0,LEFT(Table2[[#This Row],[New Room Type \n(TMS)]],6),\"\")","v":""},null,{"$f":"IF(Table2[[#This Row],['# extra beds that fit in the room]]<>Table2[[#This Row],['# extra beds that fit in the room2]],\"yes\",\"No\")","v":"No"}]
[null,{"$f":"IF(LEN(C376)>0,'1) Hotel information'!$C$4,\"\")","v":""},null,null,null,{"$f":"IFERROR(INDEX(Table1[Room description],MATCH('2) Room configuration'!D376,Table1[TMS],0)),\"\")","v":""},{"$f":"IFERROR(INDEX(Table1[Bedding],MATCH('2) Room configuration'!D376,Table1[TMS],0)),\"\")","v":""},null,null,{"$f":"IFERROR(INDEX(Table1[Room description],MATCH('2) Room configuration'!I376,Table1[TMS],0)),\"\")","v":""},{"$f":"IFERROR(INDEX(Table1[Bedding],MATCH('2) Room configuration'!I376,Table1[TMS],0)),\"\")","v":""},{"$f":"IFERROR(INDEX(Table1[Normal occupancy],MATCH(Table2[[#This Row],[New Room Type \n(TMS)]],Table1[TMS],0)),\"\")","v":""},null,null,null,null,"",{"$f":"IF(Table2[[#This Row],['# extra beds that fit in the room2]]<>0,LEFT(Table2[[#This Row],[New Room Type \n(TMS)]],6),\"\")","v":""},null,{"$f":"IF(Table2[[#This Row],['# extra beds that fit in the room]]<>Table2[[#This Row],['# extra beds that fit in the room2]],\"yes\",\"No\")","v":"No"}]
[null,{"$f":"IF(LEN(C377)>0,'1) Hotel information'!$C$4,\"\")","v":""},null,null,null,{"$f":"IFERROR(INDEX(Table1[Room description],MATCH('2) Room configuration'!D377,Table1[TMS],0)),\"\")","v":""},{"$f":"IFERROR(INDEX(Table1[Bedding],MATCH('2) Room configuration'!D377,Table1[TMS],0)),\"\")","v":""},null,null,{"$f":"IFERROR(INDEX(Table1[Room description],MATCH('2) Room configuration'!I377,Table1[TMS],0)),\"\")","v":""},{"$f":"IFERROR(INDEX(Table1[Bedding],MATCH('2) Room configuration'!I377,Table1[TMS],0)),\"\")","v":""},{"$f":"IFERROR(INDEX(Table1[Normal occupancy],MATCH(Table2[[#This Row],[New Room Type \n(TMS)]],Table1[TMS],0)),\"\")","v":""},null,null,null,null,"",{"$f":"IF(Table2[[#This Row],['# extra beds that fit in the room2]]<>0,LEFT(Table2[[#This Row],[New Room Type \n(TMS)]],6),\"\")","v":""},null,{"$f":"IF(Table2[[#This Row],['# extra beds that fit in the room]]<>Table2[[#This Row],['# extra beds that fit in the room2]],\"yes\",\"No\")","v":"No"}]
[null,{"$f":"IF(LEN(C378)>0,'1) Hotel information'!$C$4,\"\")","v":""},null,null,null,{"$f":"IFERROR(INDEX(Table1[Room description],MATCH('2) Room configuration'!D378,Table1[TMS],0)),\"\")","v":""},{"$f":"IFERROR(INDEX(Table1[Bedding],MATCH('2) Room configuration'!D378,Table1[TMS],0)),\"\")","v":""},null,null,{"$f":"IFERROR(INDEX(Table1[Room description],MATCH('2) Room configuration'!I378,Table1[TMS],0)),\"\")","v":""},{"$f":"IFERROR(INDEX(Table1[Bedding],MATCH('2) Room configuration'!I378,Table1[TMS],0)),\"\")","v":""},{"$f":"IFERROR(INDEX(Table1[Normal occupancy],MATCH(Table2[[#This Row],[New Room Type \n(TMS)]],Table1[TMS],0)),\"\")","v":""},null,null,null,null,"",{"$f":"IF(Table2[[#This Row],['# extra beds that fit in the room2]]<>0,LEFT(Table2[[#This Row],[New Room Type \n(TMS)]],6),\"\")","v":""},null,{"$f":"IF(Table2[[#This Row],['# extra beds that fit in the room]]<>Table2[[#This Row],['# extra beds that fit in the room2]],\"yes\",\"No\")","v":"No"}]
[null,{"$f":"IF(LEN(C379)>0,'1) Hotel information'!$C$4,\"\")","v":""},null,null,null,{"$f":"IFERROR(INDEX(Table1[Room description],MATCH('2) Room configuration'!D379,Table1[TMS],0)),\"\")","v":""},{"$f":"IFERROR(INDEX(Table1[Bedding],MATCH('2) Room configuration'!D379,Table1[TMS],0)),\"\")","v":""},null,null,{"$f":"IFERROR(INDEX(Table1[Room description],MATCH('2) Room configuration'!I379,Table1[TMS],0)),\"\")","v":""},{"$f":"IFERROR(INDEX(Table1[Bedding],MATCH('2) Room configuration'!I379,Table1[TMS],0)),\"\")","v":""},{"$f":"IFERROR(INDEX(Table1[Normal occupancy],MATCH(Table2[[#This Row],[New Room Type \n(TMS)]],Table1[TMS],0)),\"\")","v":""},null,null,null,null,"",{"$f":"IF(Table2[[#This Row],['# extra beds that fit in the room2]]<>0,LEFT(Table2[[#This Row],[New Room Type \n(TMS)]],6),\"\")","v":""},null,{"$f":"IF(Table2[[#This Row],['# extra beds that fit in the room]]<>Table2[[#This Row],['# extra beds that fit in the room2]],\"yes\",\"No\")","v":"No"}]
[null,{"$f":"IF(LEN(C380)>0,'1) Hotel information'!$C$4,\"\")","v":""},null,null,null,{"$f":"IFERROR(INDEX(Table1[Room description],MATCH('2) Room configuration'!D380,Table1[TMS],0)),\"\")","v":""},{"$f":"IFERROR(INDEX(Table1[Bedding],MATCH('2) Room configuration'!D380,Table1[TMS],0)),\"\")","v":""},null,null,{"$f":"IFERROR(INDEX(Table1[Room description],MATCH('2) Room configuration'!I380,Table1[TMS],0)),\"\")","v":""},{"$f":"IFERROR(INDEX(Table1[Bedding],MATCH('2) Room configuration'!I380,Table1[TMS],0)),\"\")","v":""},{"$f":"IFERROR(INDEX(Table1[Normal occupancy],MATCH(Table2[[#This Row],[New Room Type \n(TMS)]],Table1[TMS],0)),\"\")","v":""},null,null,null,null,"",{"$f":"IF(Table2[[#This Row],['# extra beds that fit in the room2]]<>0,LEFT(Table2[[#This Row],[New Room Type \n(TMS)]],6),\"\")","v":""},null,{"$f":"IF(Table2[[#This Row],['# extra beds that fit in the room]]<>Table2[[#This Row],['# extra beds that fit in the room2]],\"yes\",\"No\")","v":"No"}]
[null,{"$f":"IF(LEN(C381)>0,'1) Hotel information'!$C$4,\"\")","v":""},null,null,null,{"$f":"IFERROR(INDEX(Table1[Room description],MATCH('2) Room configuration'!D381,Table1[TMS],0)),\"\")","v":""},{"$f":"IFERROR(INDEX(Table1[Bedding],MATCH('2) Room configuration'!D381,Table1[TMS],0)),\"\")","v":""},null,null,{"$f":"IFERROR(INDEX(Table1[Room description],MATCH('2) Room configuration'!I381,Table1[TMS],0)),\"\")","v":""},{"$f":"IFERROR(INDEX(Table1[Bedding],MATCH('2) Room configuration'!I381,Table1[TMS],0)),\"\")","v":""},{"$f":"IFERROR(INDEX(Table1[Normal occupancy],MATCH(Table2[[#This Row],[New Room Type \n(TMS)]],Table1[TMS],0)),\"\")","v":""},null,null,null,null,"",{"$f":"IF(Table2[[#This Row],['# extra beds that fit in the room2]]<>0,LEFT(Table2[[#This Row],[New Room Type \n(TMS)]],6),\"\")","v":""},null,{"$f":"IF(Table2[[#This Row],['# extra beds that fit in the room]]<>Table2[[#This Row],['# extra beds that fit in the room2]],\"yes\",\"No\")","v":"No"}]
[null,{"$f":"IF(LEN(C382)>0,'1) Hotel information'!$C$4,\"\")","v":""},null,null,null,{"$f":"IFERROR(INDEX(Table1[Room description],MATCH('2) Room configuration'!D382,Table1[TMS],0)),\"\")","v":""},{"$f":"IFERROR(INDEX(Table1[Bedding],MATCH('2) Room configuration'!D382,Table1[TMS],0)),\"\")","v":""},null,null,{"$f":"IFERROR(INDEX(Table1[Room description],MATCH('2) Room configuration'!I382,Table1[TMS],0)),\"\")","v":""},{"$f":"IFERROR(INDEX(Table1[Bedding],MATCH('2) Room configuration'!I382,Table1[TMS],0)),\"\")","v":""},{"$f":"IFERROR(INDEX(Table1[Normal occupancy],MATCH(Table2[[#This Row],[New Room Type \n(TMS)]],Table1[TMS],0)),\"\")","v":""},null,null,null,null,"",{"$f":"IF(Table2[[#This Row],['# extra beds that fit in the room2]]<>0,LEFT(Table2[[#This Row],[New Room Type \n(TMS)]],6),\"\")","v":""},null,{"$f":"IF(Table2[[#This Row],['# extra beds that fit in the room]]<>Table2[[#This Row],['# extra beds that fit in the room2]],\"yes\",\"No\")","v":"No"}]
[null,{"$f":"IF(LEN(C383)>0,'1) Hotel information'!$C$4,\"\")","v":""},null,null,null,{"$f":"IFERROR(INDEX(Table1[Room description],MATCH('2) Room configuration'!D383,Table1[TMS],0)),\"\")","v":""},{"$f":"IFERROR(INDEX(Table1[Bedding],MATCH('2) Room configuration'!D383,Table1[TMS],0)),\"\")","v":""},null,null,{"$f":"IFERROR(INDEX(Table1[Room description],MATCH('2) Room configuration'!I383,Table1[TMS],0)),\"\")","v":""},{"$f":"IFERROR(INDEX(Table1[Bedding],MATCH('2) Room configuration'!I383,Table1[TMS],0)),\"\")","v":""},{"$f":"IFERROR(INDEX(Table1[Normal occupancy],MATCH(Table2[[#This Row],[New Room Type \n(TMS)]],Table1[TMS],0)),\"\")","v":""},null,null,null,null,"",{"$f":"IF(Table2[[#This Row],['# extra beds that fit in the room2]]<>0,LEFT(Table2[[#This Row],[New Room Type \n(TMS)]],6),\"\")","v":""},null,{"$f":"IF(Table2[[#This Row],['# extra beds that fit in the room]]<>Table2[[#This Row],['# extra beds that fit in the room2]],\"yes\",\"No\")","v":"No"}]
[null,{"$f":"IF(LEN(C384)>0,'1) Hotel information'!$C$4,\"\")","v":""},null,null,null,{"$f":"IFERROR(INDEX(Table1[Room description],MATCH('2) Room configuration'!D384,Table1[TMS],0)),\"\")","v":""},{"$f":"IFERROR(INDEX(Table1[Bedding],MATCH('2) Room configuration'!D384,Table1[TMS],0)),\"\")","v":""},null,null,{"$f":"IFERROR(INDEX(Table1[Room description],MATCH('2) Room configuration'!I384,Table1[TMS],0)),\"\")","v":""},{"$f":"IFERROR(INDEX(Table1[Bedding],MATCH('2) Room configuration'!I384,Table1[TMS],0)),\"\")","v":""},{"$f":"IFERROR(INDEX(Table1[Normal occupancy],MATCH(Table2[[#This Row],[New Room Type \n(TMS)]],Table1[TMS],0)),\"\")","v":""},null,null,null,null,"",{"$f":"IF(Table2[[#This Row],['# extra beds that fit in the room2]]<>0,LEFT(Table2[[#This Row],[New Room Type \n(TMS)]],6),\"\")","v":""},null,{"$f":"IF(Table2[[#This Row],['# extra beds that fit in the room]]<>Table2[[#This Row],['# extra beds that fit in the room2]],\"yes\",\"No\")","v":"No"}]
[null,{"$f":"IF(LEN(C385)>0,'1) Hotel information'!$C$4,\"\")","v":""},null,null,null,{"$f":"IFERROR(INDEX(Table1[Room description],MATCH('2) Room configuration'!D385,Table1[TMS],0)),\"\")","v":""},{"$f":"IFERROR(INDEX(Table1[Bedding],MATCH('2) Room configuration'!D385,Table1[TMS],0)),\"\")","v":""},null,null,{"$f":"IFERROR(INDEX(Table1[Room description],MATCH('2) Room configuration'!I385,Table1[TMS],0)),\"\")","v":""},{"$f":"IFERROR(INDEX(Table1[Bedding],MATCH('2) Room configuration'!I385,Table1[TMS],0)),\"\")","v":""},{"$f":"IFERROR(INDEX(Table1[Normal occupancy],MATCH(Table2[[#This Row],[New Room Type \n(TMS)]],Table1[TMS],0)),\"\")","v":""},null,null,null,null,"",{"$f":"IF(Table2[[#This Row],['# extra beds that fit in the room2]]<>0,LEFT(Table2[[#This Row],[New Room Type \n(TMS)]],6),\"\")","v":""},null,{"$f":"IF(Table2[[#This Row],['# extra beds that fit in the room]]<>Table2[[#This Row],['# extra beds that fit in the room2]],\"yes\",\"No\")","v":"No"}]
[null,{"$f":"IF(LEN(C386)>0,'1) Hotel information'!$C$4,\"\")","v":""},null,null,null,{"$f":"IFERROR(INDEX(Table1[Room description],MATCH('2) Room configuration'!D386,Table1[TMS],0)),\"\")","v":""},{"$f":"IFERROR(INDEX(Table1[Bedding],MATCH('2) Room configuration'!D386,Table1[TMS],0)),\"\")","v":""},null,null,{"$f":"IFERROR(INDEX(Table1[Room description],MATCH('2) Room configuration'!I386,Table1[TMS],0)),\"\")","v":""},{"$f":"IFERROR(INDEX(Table1[Bedding],MATCH('2) Room configuration'!I386,Table1[TMS],0)),\"\")","v":""},{"$f":"IFERROR(INDEX(Table1[Normal occupancy],MATCH(Table2[[#This Row],[New Room Type \n(TMS)]],Table1[TMS],0)),\"\")","v":""},null,null,null,null,"",{"$f":"IF(Table2[[#This Row],['# extra beds that fit in the room2]]<>0,LEFT(Table2[[#This Row],[New Room Type \n(TMS)]],6),\"\")","v":""},null,{"$f":"IF(Table2[[#This Row],['# extra beds that fit in the room]]<>Table2[[#This Row],['# extra beds that fit in the room2]],\"yes\",\"No\")","v":"No"}]
[null,{"$f":"IF(LEN(C387)>0,'1) Hotel information'!$C$4,\"\")","v":""},null,null,null,{"$f":"IFERROR(INDEX(Table1[Room description],MATCH('2) Room configuration'!D387,Table1[TMS],0)),\"\")","v":""},{"$f":"IFERROR(INDEX(Table1[Bedding],MATCH('2) Room configuration'!D387,Table1[TMS],0)),\"\")","v":""},null,null,{"$f":"IFERROR(INDEX(Table1[Room description],MATCH('2) Room configuration'!I387,Table1[TMS],0)),\"\")","v":""},{"$f":"IFERROR(INDEX(Table1[Bedding],MATCH('2) Room configuration'!I387,Table1[TMS],0)),\"\")","v":""},{"$f":"IFERROR(INDEX(Table1[Normal occupancy],MATCH(Table2[[#This Row],[New Room Type \n(TMS)]],Table1[TMS],0)),\"\")","v":""},null,null,null,null,"",{"$f":"IF(Table2[[#This Row],['# extra beds that fit in the room2]]<>0,LEFT(Table2[[#This Row],[New Room Type \n(TMS)]],6),\"\")","v":""},null,{"$f":"IF(Table2[[#This Row],['# extra beds that fit in the room]]<>Table2[[#This Row],['# extra beds that fit in the room2]],\"yes\",\"No\")","v":"No"}]
[null,{"$f":"IF(LEN(C388)>0,'1) Hotel information'!$C$4,\"\")","v":""},null,null,null,{"$f":"IFERROR(INDEX(Table1[Room description],MATCH('2) Room configuration'!D388,Table1[TMS],0)),\"\")","v":""},{"$f":"IFERROR(INDEX(Table1[Bedding],MATCH('2) Room configuration'!D388,Table1[TMS],0)),\"\")","v":""},null,null,{"$f":"IFERROR(INDEX(Table1[Room description],MATCH('2) Room configuration'!I388,Table1[TMS],0)),\"\")","v":""},{"$f":"IFERROR(INDEX(Table1[Bedding],MATCH('2) Room configuration'!I388,Table1[TMS],0)),\"\")","v":""},{"$f":"IFERROR(INDEX(Table1[Normal occupancy],MATCH(Table2[[#This Row],[New Room Type \n(TMS)]],Table1[TMS],0)),\"\")","v":""},null,null,null,null,"",{"$f":"IF(Table2[[#This Row],['# extra beds that fit in the room2]]<>0,LEFT(Table2[[#This Row],[New Room Type \n(TMS)]],6),\"\")","v":""},null,{"$f":"IF(Table2[[#This Row],['# extra beds that fit in the room]]<>Table2[[#This Row],['# extra beds that fit in the room2]],\"yes\",\"No\")","v":"No"}]
[null,{"$f":"IF(LEN(C389)>0,'1) Hotel information'!$C$4,\"\")","v":""},null,null,null,{"$f":"IFERROR(INDEX(Table1[Room description],MATCH('2) Room configuration'!D389,Table1[TMS],0)),\"\")","v":""},{"$f":"IFERROR(INDEX(Table1[Bedding],MATCH('2) Room configuration'!D389,Table1[TMS],0)),\"\")","v":""},null,null,{"$f":"IFERROR(INDEX(Table1[Room description],MATCH('2) Room configuration'!I389,Table1[TMS],0)),\"\")","v":""},{"$f":"IFERROR(INDEX(Table1[Bedding],MATCH('2) Room configuration'!I389,Table1[TMS],0)),\"\")","v":""},{"$f":"IFERROR(INDEX(Table1[Normal occupancy],MATCH(Table2[[#This Row],[New Room Type \n(TMS)]],Table1[TMS],0)),\"\")","v":""},null,null,null,null,"",{"$f":"IF(Table2[[#This Row],['# extra beds that fit in the room2]]<>0,LEFT(Table2[[#This Row],[New Room Type \n(TMS)]],6),\"\")","v":""},null,{"$f":"IF(Table2[[#This Row],['# extra beds that fit in the room]]<>Table2[[#This Row],['# extra beds that fit in the room2]],\"yes\",\"No\")","v":"No"}]
[null,{"$f":"IF(LEN(C390)>0,'1) Hotel information'!$C$4,\"\")","v":""},null,null,null,{"$f":"IFERROR(INDEX(Table1[Room description],MATCH('2) Room configuration'!D390,Table1[TMS],0)),\"\")","v":""},{"$f":"IFERROR(INDEX(Table1[Bedding],MATCH('2) Room configuration'!D390,Table1[TMS],0)),\"\")","v":""},null,null,{"$f":"IFERROR(INDEX(Table1[Room description],MATCH('2) Room configuration'!I390,Table1[TMS],0)),\"\")","v":""},{"$f":"IFERROR(INDEX(Table1[Bedding],MATCH('2) Room configuration'!I390,Table1[TMS],0)),\"\")","v":""},{"$f":"IFERROR(INDEX(Table1[Normal occupancy],MATCH(Table2[[#This Row],[New Room Type \n(TMS)]],Table1[TMS],0)),\"\")","v":""},null,null,null,null,"",{"$f":"IF(Table2[[#This Row],['# extra beds that fit in the room2]]<>0,LEFT(Table2[[#This Row],[New Room Type \n(TMS)]],6),\"\")","v":""},null,{"$f":"IF(Table2[[#This Row],['# extra beds that fit in the room]]<>Table2[[#This Row],['# extra beds that fit in the room2]],\"yes\",\"No\")","v":"No"}]
[null,{"$f":"IF(LEN(C391)>0,'1) Hotel information'!$C$4,\"\")","v":""},null,null,null,{"$f":"IFERROR(INDEX(Table1[Room description],MATCH('2) Room configuration'!D391,Table1[TMS],0)),\"\")","v":""},{"$f":"IFERROR(INDEX(Table1[Bedding],MATCH('2) Room configuration'!D391,Table1[TMS],0)),\"\")","v":""},null,null,{"$f":"IFERROR(INDEX(Table1[Room description],MATCH('2) Room configuration'!I391,Table1[TMS],0)),\"\")","v":""},{"$f":"IFERROR(INDEX(Table1[Bedding],MATCH('2) Room configuration'!I391,Table1[TMS],0)),\"\")","v":""},{"$f":"IFERROR(INDEX(Table1[Normal occupancy],MATCH(Table2[[#This Row],[New Room Type \n(TMS)]],Table1[TMS],0)),\"\")","v":""},null,null,null,null,"",{"$f":"IF(Table2[[#This Row],['# extra beds that fit in the room2]]<>0,LEFT(Table2[[#This Row],[New Room Type \n(TMS)]],6),\"\")","v":""},null,{"$f":"IF(Table2[[#This Row],['# extra beds that fit in the room]]<>Table2[[#This Row],['# extra beds that fit in the room2]],\"yes\",\"No\")","v":"No"}]
[null,{"$f":"IF(LEN(C392)>0,'1) Hotel information'!$C$4,\"\")","v":""},null,null,null,{"$f":"IFERROR(INDEX(Table1[Room description],MATCH('2) Room configuration'!D392,Table1[TMS],0)),\"\")","v":""},{"$f":"IFERROR(INDEX(Table1[Bedding],MATCH('2) Room configuration'!D392,Table1[TMS],0)),\"\")","v":""},null,null,{"$f":"IFERROR(INDEX(Table1[Room description],MATCH('2) Room configuration'!I392,Table1[TMS],0)),\"\")","v":""},{"$f":"IFERROR(INDEX(Table1[Bedding],MATCH('2) Room configuration'!I392,Table1[TMS],0)),\"\")","v":""},{"$f":"IFERROR(INDEX(Table1[Normal occupancy],MATCH(Table2[[#This Row],[New Room Type \n(TMS)]],Table1[TMS],0)),\"\")","v":""},null,null,null,null,"",{"$f":"IF(Table2[[#This Row],['# extra beds that fit in the room2]]<>0,LEFT(Table2[[#This Row],[New Room Type \n(TMS)]],6),\"\")","v":""},null,{"$f":"IF(Table2[[#This Row],['# extra beds that fit in the room]]<>Table2[[#This Row],['# extra beds that fit in the room2]],\"yes\",\"No\")","v":"No"}]
[null,{"$f":"IF(LEN(C393)>0,'1) Hotel information'!$C$4,\"\")","v":""},null,null,null,{"$f":"IFERROR(INDEX(Table1[Room description],MATCH('2) Room configuration'!D393,Table1[TMS],0)),\"\")","v":""},{"$f":"IFERROR(INDEX(Table1[Bedding],MATCH('2) Room configuration'!D393,Table1[TMS],0)),\"\")","v":""},null,null,{"$f":"IFERROR(INDEX(Table1[Room description],MATCH('2) Room configuration'!I393,Table1[TMS],0)),\"\")","v":""},{"$f":"IFERROR(INDEX(Table1[Bedding],MATCH('2) Room configuration'!I393,Table1[TMS],0)),\"\")","v":""},{"$f":"IFERROR(INDEX(Table1[Normal occupancy],MATCH(Table2[[#This Row],[New Room Type \n(TMS)]],Table1[TMS],0)),\"\")","v":""},null,null,null,null,"",{"$f":"IF(Table2[[#This Row],['# extra beds that fit in the room2]]<>0,LEFT(Table2[[#This Row],[New Room Type \n(TMS)]],6),\"\")","v":""},null,{"$f":"IF(Table2[[#This Row],['# extra beds that fit in the room]]<>Table2[[#This Row],['# extra beds that fit in the room2]],\"yes\",\"No\")","v":"No"}]
[null,{"$f":"IF(LEN(C394)>0,'1) Hotel information'!$C$4,\"\")","v":""},null,null,null,{"$f":"IFERROR(INDEX(Table1[Room description],MATCH('2) Room configuration'!D394,Table1[TMS],0)),\"\")","v":""},{"$f":"IFERROR(INDEX(Table1[Bedding],MATCH('2) Room configuration'!D394,Table1[TMS],0)),\"\")","v":""},null,null,{"$f":"IFERROR(INDEX(Table1[Room description],MATCH('2) Room configuration'!I394,Table1[TMS],0)),\"\")","v":""},{"$f":"IFERROR(INDEX(Table1[Bedding],MATCH('2) Room configuration'!I394,Table1[TMS],0)),\"\")","v":""},{"$f":"IFERROR(INDEX(Table1[Normal occupancy],MATCH(Table2[[#This Row],[New Room Type \n(TMS)]],Table1[TMS],0)),\"\")","v":""},null,null,null,null,"",{"$f":"IF(Table2[[#This Row],['# extra beds that fit in the room2]]<>0,LEFT(Table2[[#This Row],[New Room Type \n(TMS)]],6),\"\")","v":""},null,{"$f":"IF(Table2[[#This Row],['# extra beds that fit in the room]]<>Table2[[#This Row],['# extra beds that fit in the room2]],\"yes\",\"No\")","v":"No"}]
[null,{"$f":"IF(LEN(C395)>0,'1) Hotel information'!$C$4,\"\")","v":""},null,null,null,{"$f":"IFERROR(INDEX(Table1[Room description],MATCH('2) Room configuration'!D395,Table1[TMS],0)),\"\")","v":""},{"$f":"IFERROR(INDEX(Table1[Bedding],MATCH('2) Room configuration'!D395,Table1[TMS],0)),\"\")","v":""},null,null,{"$f":"IFERROR(INDEX(Table1[Room description],MATCH('2) Room configuration'!I395,Table1[TMS],0)),\"\")","v":""},{"$f":"IFERROR(INDEX(Table1[Bedding],MATCH('2) Room configuration'!I395,Table1[TMS],0)),\"\")","v":""},{"$f":"IFERROR(INDEX(Table1[Normal occupancy],MATCH(Table2[[#This Row],[New Room Type \n(TMS)]],Table1[TMS],0)),\"\")","v":""},null,null,null,null,"",{"$f":"IF(Table2[[#This Row],['# extra beds that fit in the room2]]<>0,LEFT(Table2[[#This Row],[New Room Type \n(TMS)]],6),\"\")","v":""},null,{"$f":"IF(Table2[[#This Row],['# extra beds that fit in the room]]<>Table2[[#This Row],['# extra beds that fit in the room2]],\"yes\",\"No\")","v":"No"}]
[null,{"$f":"IF(LEN(C396)>0,'1) Hotel information'!$C$4,\"\")","v":""},null,null,null,{"$f":"IFERROR(INDEX(Table1[Room description],MATCH('2) Room configuration'!D396,Table1[TMS],0)),\"\")","v":""},{"$f":"IFERROR(INDEX(Table1[Bedding],MATCH('2) Room configuration'!D396,Table1[TMS],0)),\"\")","v":""},null,null,{"$f":"IFERROR(INDEX(Table1[Room description],MATCH('2) Room configuration'!I396,Table1[TMS],0)),\"\")","v":""},{"$f":"IFERROR(INDEX(Table1[Bedding],MATCH('2) Room configuration'!I396,Table1[TMS],0)),\"\")","v":""},{"$f":"IFERROR(INDEX(Table1[Normal occupancy],MATCH(Table2[[#This Row],[New Room Type \n(TMS)]],Table1[TMS],0)),\"\")","v":""},null,null,null,null,{"$f":"IF(LEN(C396)>0,IF(D396=I396,\"No\",\"Yes\"),\"\")","v":""},{"$f":"IF(Table2[[#This Row],['# extra beds that fit in the room2]]<>0,LEFT(Table2[[#This Row],[New Room Type \n(TMS)]],6),\"\")","v":""},null,{"$f":"IF(Table2[[#This Row],['# extra beds that fit in the room]]<>Table2[[#This Row],['# extra beds that fit in the room2]],\"yes\",\"No\")","v":"No"}]
[null,{"$f":"IF(LEN(C397)>0,'1) Hotel information'!$C$4,\"\")","v":""},null,null,null,{"$f":"IFERROR(INDEX(Table1[Room description],MATCH('2) Room configuration'!D397,Table1[TMS],0)),\"\")","v":""},{"$f":"IFERROR(INDEX(Table1[Bedding],MATCH('2) Room configuration'!D397,Table1[TMS],0)),\"\")","v":""},null,null,{"$f":"IFERROR(INDEX(Table1[Room description],MATCH('2) Room configuration'!I397,Table1[TMS],0)),\"\")","v":""},{"$f":"IFERROR(INDEX(Table1[Bedding],MATCH('2) Room configuration'!I397,Table1[TMS],0)),\"\")","v":""},{"$f":"IFERROR(INDEX(Table1[Normal occupancy],MATCH(Table2[[#This Row],[New Room Type \n(TMS)]],Table1[TMS],0)),\"\")","v":""},null,null,null,null,"",{"$f":"IF(Table2[[#This Row],['# extra beds that fit in the room2]]<>0,LEFT(Table2[[#This Row],[New Room Type \n(TMS)]],6),\"\")","v":""},null,{"$f":"IF(Table2[[#This Row],['# extra beds that fit in the room]]<>Table2[[#This Row],['# extra beds that fit in the room2]],\"yes\",\"No\")","v":"No"}]
[null,{"$f":"IF(LEN(C398)>0,'1) Hotel information'!$C$4,\"\")","v":""},null,null,null,{"$f":"IFERROR(INDEX(Table1[Room description],MATCH('2) Room configuration'!D398,Table1[TMS],0)),\"\")","v":""},{"$f":"IFERROR(INDEX(Table1[Bedding],MATCH('2) Room configuration'!D398,Table1[TMS],0)),\"\")","v":""},null,null,{"$f":"IFERROR(INDEX(Table1[Room description],MATCH('2) Room configuration'!I398,Table1[TMS],0)),\"\")","v":""},{"$f":"IFERROR(INDEX(Table1[Bedding],MATCH('2) Room configuration'!I398,Table1[TMS],0)),\"\")","v":""},{"$f":"IFERROR(INDEX(Table1[Normal occupancy],MATCH(Table2[[#This Row],[New Room Type \n(TMS)]],Table1[TMS],0)),\"\")","v":""},null,null,null,null,"",{"$f":"IF(Table2[[#This Row],['# extra beds that fit in the room2]]<>0,LEFT(Table2[[#This Row],[New Room Type \n(TMS)]],6),\"\")","v":""},null,{"$f":"IF(Table2[[#This Row],['# extra beds that fit in the room]]<>Table2[[#This Row],['# extra beds that fit in the room2]],\"yes\",\"No\")","v":"No"}]
[null,{"$f":"IF(LEN(C399)>0,'1) Hotel information'!$C$4,\"\")","v":""},null,null,null,{"$f":"IFERROR(INDEX(Table1[Room description],MATCH('2) Room configuration'!D399,Table1[TMS],0)),\"\")","v":""},{"$f":"IFERROR(INDEX(Table1[Bedding],MATCH('2) Room configuration'!D399,Table1[TMS],0)),\"\")","v":""},null,null,{"$f":"IFERROR(INDEX(Table1[Room description],MATCH('2) Room configuration'!I399,Table1[TMS],0)),\"\")","v":""},{"$f":"IFERROR(INDEX(Table1[Bedding],MATCH('2) Room configuration'!I399,Table1[TMS],0)),\"\")","v":""},{"$f":"IFERROR(INDEX(Table1[Normal occupancy],MATCH(Table2[[#This Row],[New Room Type \n(TMS)]],Table1[TMS],0)),\"\")","v":""},null,null,null,null,"",{"$f":"IF(Table2[[#This Row],['# extra beds that fit in the room2]]<>0,LEFT(Table2[[#This Row],[New Room Type \n(TMS)]],6),\"\")","v":""},null,{"$f":"IF(Table2[[#This Row],['# extra beds that fit in the room]]<>Table2[[#This Row],['# extra beds that fit in the room2]],\"yes\",\"No\")","v":"No"}]
[null,{"$f":"IF(LEN(C400)>0,'1) Hotel information'!$C$4,\"\")","v":""},null,null,null,{"$f":"IFERROR(INDEX(Table1[Room description],MATCH('2) Room configuration'!D400,Table1[TMS],0)),\"\")","v":""},{"$f":"IFERROR(INDEX(Table1[Bedding],MATCH('2) Room configuration'!D400,Table1[TMS],0)),\"\")","v":""},null,null,{"$f":"IFERROR(INDEX(Table1[Room description],MATCH('2) Room configuration'!I400,Table1[TMS],0)),\"\")","v":""},{"$f":"IFERROR(INDEX(Table1[Bedding],MATCH('2) Room configuration'!I400,Table1[TMS],0)),\"\")","v":""},{"$f":"IFERROR(INDEX(Table1[Normal occupancy],MATCH(Table2[[#This Row],[New Room Type \n(TMS)]],Table1[TMS],0)),\"\")","v":""},null,null,null,null,"",{"$f":"IF(Table2[[#This Row],['# extra beds that fit in the room2]]<>0,LEFT(Table2[[#This Row],[New Room Type \n(TMS)]],6),\"\")","v":""},null,{"$f":"IF(Table2[[#This Row],['# extra beds that fit in the room]]<>Table2[[#This Row],['# extra beds that fit in the room2]],\"yes\",\"No\")","v":"No"}]
[null,{"$f":"IF(LEN(C401)>0,'1) Hotel information'!$C$4,\"\")","v":""},null,null,null,{"$f":"IFERROR(INDEX(Table1[Room description],MATCH('2) Room configuration'!D401,Table1[TMS],0)),\"\")","v":""},{"$f":"IFERROR(INDEX(Table1[Bedding],MATCH('2) Room configuration'!D401,Table1[TMS],0)),\"\")","v":""},null,null,{"$f":"IFERROR(INDEX(Table1[Room description],MATCH('2) Room configuration'!I401,Table1[TMS],0)),\"\")","v":""},{"$f":"IFERROR(INDEX(Table1[Bedding],MATCH('2) Room configuration'!I401,Table1[TMS],0)),\"\")","v":""},{"$f":"IFERROR(INDEX(Table1[Normal occupancy],MATCH(Table2[[#This Row],[New Room Type \n(TMS)]],Table1[TMS],0)),\"\")","v":""},null,null,null,null,"",{"$f":"IF(Table2[[#This Row],['# extra beds that fit in the room2]]<>0,LEFT(Table2[[#This Row],[New Room Type \n(TMS)]],6),\"\")","v":""},null,{"$f":"IF(Table2[[#This Row],['# extra beds that fit in the room]]<>Table2[[#This Row],['# extra beds that fit in the room2]],\"yes\",\"No\")","v":"No"}]
[null,{"$f":"IF(LEN(C402)>0,'1) Hotel information'!$C$4,\"\")","v":""},null,null,null,{"$f":"IFERROR(INDEX(Table1[Room description],MATCH('2) Room configuration'!D402,Table1[TMS],0)),\"\")","v":""},{"$f":"IFERROR(INDEX(Table1[Bedding],MATCH('2) Room configuration'!D402,Table1[TMS],0)),\"\")","v":""},null,null,{"$f":"IFERROR(INDEX(Table1[Room description],MATCH('2) Room configuration'!I402,Table1[TMS],0)),\"\")","v":""},{"$f":"IFERROR(INDEX(Table1[Bedding],MATCH('2) Room configuration'!I402,Table1[TMS],0)),\"\")","v":""},{"$f":"IFERROR(INDEX(Table1[Normal occupancy],MATCH(Table2[[#This Row],[New Room Type \n(TMS)]],Table1[TMS],0)),\"\")","v":""},null,null,null,null,"",{"$f":"IF(Table2[[#This Row],['# extra beds that fit in the room2]]<>0,LEFT(Table2[[#This Row],[New Room Type \n(TMS)]],6),\"\")","v":""},null,{"$f":"IF(Table2[[#This Row],['# extra beds that fit in the room]]<>Table2[[#This Row],['# extra beds that fit in the room2]],\"yes\",\"No\")","v":"No"}]
[null,{"$f":"IF(LEN(C403)>0,'1) Hotel information'!$C$4,\"\")","v":""},null,null,null,{"$f":"IFERROR(INDEX(Table1[Room description],MATCH('2) Room configuration'!D403,Table1[TMS],0)),\"\")","v":""},{"$f":"IFERROR(INDEX(Table1[Bedding],MATCH('2) Room configuration'!D403,Table1[TMS],0)),\"\")","v":""},null,null,{"$f":"IFERROR(INDEX(Table1[Room description],MATCH('2) Room configuration'!I403,Table1[TMS],0)),\"\")","v":""},{"$f":"IFERROR(INDEX(Table1[Bedding],MATCH('2) Room configuration'!I403,Table1[TMS],0)),\"\")","v":""},{"$f":"IFERROR(INDEX(Table1[Normal occupancy],MATCH(Table2[[#This Row],[New Room Type \n(TMS)]],Table1[TMS],0)),\"\")","v":""},null,null,null,null,"",{"$f":"IF(Table2[[#This Row],['# extra beds that fit in the room2]]<>0,LEFT(Table2[[#This Row],[New Room Type \n(TMS)]],6),\"\")","v":""},null,{"$f":"IF(Table2[[#This Row],['# extra beds that fit in the room]]<>Table2[[#This Row],['# extra beds that fit in the room2]],\"yes\",\"No\")","v":"No"}]
[null,{"$f":"IF(LEN(C404)>0,'1) Hotel information'!$C$4,\"\")","v":""},null,null,null,{"$f":"IFERROR(INDEX(Table1[Room description],MATCH('2) Room configuration'!D404,Table1[TMS],0)),\"\")","v":""},{"$f":"IFERROR(INDEX(Table1[Bedding],MATCH('2) Room configuration'!D404,Table1[TMS],0)),\"\")","v":""},null,null,{"$f":"IFERROR(INDEX(Table1[Room description],MATCH('2) Room configuration'!I404,Table1[TMS],0)),\"\")","v":""},{"$f":"IFERROR(INDEX(Table1[Bedding],MATCH('2) Room configuration'!I404,Table1[TMS],0)),\"\")","v":""},{"$f":"IFERROR(INDEX(Table1[Normal occupancy],MATCH(Table2[[#This Row],[New Room Type \n(TMS)]],Table1[TMS],0)),\"\")","v":""},null,null,null,null,"",{"$f":"IF(Table2[[#This Row],['# extra beds that fit in the room2]]<>0,LEFT(Table2[[#This Row],[New Room Type \n(TMS)]],6),\"\")","v":""},null,{"$f":"IF(Table2[[#This Row],['# extra beds that fit in the room]]<>Table2[[#This Row],['# extra beds that fit in the room2]],\"yes\",\"No\")","v":"No"}]
[null,{"$f":"IF(LEN(C405)>0,'1) Hotel information'!$C$4,\"\")","v":""},null,null,null,{"$f":"IFERROR(INDEX(Table1[Room description],MATCH('2) Room configuration'!D405,Table1[TMS],0)),\"\")","v":""},{"$f":"IFERROR(INDEX(Table1[Bedding],MATCH('2) Room configuration'!D405,Table1[TMS],0)),\"\")","v":""},null,null,{"$f":"IFERROR(INDEX(Table1[Room description],MATCH('2) Room configuration'!I405,Table1[TMS],0)),\"\")","v":""},{"$f":"IFERROR(INDEX(Table1[Bedding],MATCH('2) Room configuration'!I405,Table1[TMS],0)),\"\")","v":""},{"$f":"IFERROR(INDEX(Table1[Normal occupancy],MATCH(Table2[[#This Row],[New Room Type \n(TMS)]],Table1[TMS],0)),\"\")","v":""},null,null,null,null,"",{"$f":"IF(Table2[[#This Row],['# extra beds that fit in the room2]]<>0,LEFT(Table2[[#This Row],[New Room Type \n(TMS)]],6),\"\")","v":""},null,{"$f":"IF(Table2[[#This Row],['# extra beds that fit in the room]]<>Table2[[#This Row],['# extra beds that fit in the room2]],\"yes\",\"No\")","v":"No"}]
[null,{"$f":"IF(LEN(C406)>0,'1) Hotel information'!$C$4,\"\")","v":""},null,null,null,{"$f":"IFERROR(INDEX(Table1[Room description],MATCH('2) Room configuration'!D406,Table1[TMS],0)),\"\")","v":""},{"$f":"IFERROR(INDEX(Table1[Bedding],MATCH('2) Room configuration'!D406,Table1[TMS],0)),\"\")","v":""},null,null,{"$f":"IFERROR(INDEX(Table1[Room description],MATCH('2) Room configuration'!I406,Table1[TMS],0)),\"\")","v":""},{"$f":"IFERROR(INDEX(Table1[Bedding],MATCH('2) Room configuration'!I406,Table1[TMS],0)),\"\")","v":""},{"$f":"IFERROR(INDEX(Table1[Normal occupancy],MATCH(Table2[[#This Row],[New Room Type \n(TMS)]],Table1[TMS],0)),\"\")","v":""},null,null,null,null,"",{"$f":"IF(Table2[[#This Row],['# extra beds that fit in the room2]]<>0,LEFT(Table2[[#This Row],[New Room Type \n(TMS)]],6),\"\")","v":""},null,{"$f":"IF(Table2[[#This Row],['# extra beds that fit in the room]]<>Table2[[#This Row],['# extra beds that fit in the room2]],\"yes\",\"No\")","v":"No"}]
[null,{"$f":"IF(LEN(C407)>0,'1) Hotel information'!$C$4,\"\")","v":""},null,null,null,{"$f":"IFERROR(INDEX(Table1[Room description],MATCH('2) Room configuration'!D407,Table1[TMS],0)),\"\")","v":""},{"$f":"IFERROR(INDEX(Table1[Bedding],MATCH('2) Room configuration'!D407,Table1[TMS],0)),\"\")","v":""},null,null,{"$f":"IFERROR(INDEX(Table1[Room description],MATCH('2) Room configuration'!I407,Table1[TMS],0)),\"\")","v":""},{"$f":"IFERROR(INDEX(Table1[Bedding],MATCH('2) Room configuration'!I407,Table1[TMS],0)),\"\")","v":""},{"$f":"IFERROR(INDEX(Table1[Normal occupancy],MATCH(Table2[[#This Row],[New Room Type \n(TMS)]],Table1[TMS],0)),\"\")","v":""},null,null,null,null,"",{"$f":"IF(Table2[[#This Row],['# extra beds that fit in the room2]]<>0,LEFT(Table2[[#This Row],[New Room Type \n(TMS)]],6),\"\")","v":""},null,{"$f":"IF(Table2[[#This Row],['# extra beds that fit in the room]]<>Table2[[#This Row],['# extra beds that fit in the room2]],\"yes\",\"No\")","v":"No"}]
[null,{"$f":"IF(LEN(C408)>0,'1) Hotel information'!$C$4,\"\")","v":""},null,null,null,{"$f":"IFERROR(INDEX(Table1[Room description],MATCH('2) Room configuration'!D408,Table1[TMS],0)),\"\")","v":""},{"$f":"IFERROR(INDEX(Table1[Bedding],MATCH('2) Room configuration'!D408,Table1[TMS],0)),\"\")","v":""},null,null,{"$f":"IFERROR(INDEX(Table1[Room description],MATCH('2) Room configuration'!I408,Table1[TMS],0)),\"\")","v":""},{"$f":"IFERROR(INDEX(Table1[Bedding],MATCH('2) Room configuration'!I408,Table1[TMS],0)),\"\")","v":""},{"$f":"IFERROR(INDEX(Table1[Normal occupancy],MATCH(Table2[[#This Row],[New Room Type \n(TMS)]],Table1[TMS],0)),\"\")","v":""},null,null,null,null,"",{"$f":"IF(Table2[[#This Row],['# extra beds that fit in the room2]]<>0,LEFT(Table2[[#This Row],[New Room Type \n(TMS)]],6),\"\")","v":""},null,{"$f":"IF(Table2[[#This Row],['# extra beds that fit in the room]]<>Table2[[#This Row],['# extra beds that fit in the room2]],\"yes\",\"No\")","v":"No"}]
[null,{"$f":"IF(LEN(C409)>0,'1) Hotel information'!$C$4,\"\")","v":""},null,null,null,{"$f":"IFERROR(INDEX(Table1[Room description],MATCH('2) Room configuration'!D409,Table1[TMS],0)),\"\")","v":""},{"$f":"IFERROR(INDEX(Table1[Bedding],MATCH('2) Room configuration'!D409,Table1[TMS],0)),\"\")","v":""},null,null,{"$f":"IFERROR(INDEX(Table1[Room description],MATCH('2) Room configuration'!I409,Table1[TMS],0)),\"\")","v":""},{"$f":"IFERROR(INDEX(Table1[Bedding],MATCH('2) Room configuration'!I409,Table1[TMS],0)),\"\")","v":""},{"$f":"IFERROR(INDEX(Table1[Normal occupancy],MATCH(Table2[[#This Row],[New Room Type \n(TMS)]],Table1[TMS],0)),\"\")","v":""},null,null,null,null,"",{"$f":"IF(Table2[[#This Row],['# extra beds that fit in the room2]]<>0,LEFT(Table2[[#This Row],[New Room Type \n(TMS)]],6),\"\")","v":""},null,{"$f":"IF(Table2[[#This Row],['# extra beds that fit in the room]]<>Table2[[#This Row],['# extra beds that fit in the room2]],\"yes\",\"No\")","v":"No"}]
[null,{"$f":"IF(LEN(C410)>0,'1) Hotel information'!$C$4,\"\")","v":""},null,null,null,{"$f":"IFERROR(INDEX(Table1[Room description],MATCH('2) Room configuration'!D410,Table1[TMS],0)),\"\")","v":""},{"$f":"IFERROR(INDEX(Table1[Bedding],MATCH('2) Room configuration'!D410,Table1[TMS],0)),\"\")","v":""},null,null,{"$f":"IFERROR(INDEX(Table1[Room description],MATCH('2) Room configuration'!I410,Table1[TMS],0)),\"\")","v":""},{"$f":"IFERROR(INDEX(Table1[Bedding],MATCH('2) Room configuration'!I410,Table1[TMS],0)),\"\")","v":""},{"$f":"IFERROR(INDEX(Table1[Normal occupancy],MATCH(Table2[[#This Row],[New Room Type \n(TMS)]],Table1[TMS],0)),\"\")","v":""},null,null,null,null,"",{"$f":"IF(Table2[[#This Row],['# extra beds that fit in the room2]]<>0,LEFT(Table2[[#This Row],[New Room Type \n(TMS)]],6),\"\")","v":""},null,{"$f":"IF(Table2[[#This Row],['# extra beds that fit in the room]]<>Table2[[#This Row],['# extra beds that fit in the room2]],\"yes\",\"No\")","v":"No"}]
[null,{"$f":"IF(LEN(C411)>0,'1) Hotel information'!$C$4,\"\")","v":""},null,null,null,{"$f":"IFERROR(INDEX(Table1[Room description],MATCH('2) Room configuration'!D411,Table1[TMS],0)),\"\")","v":""},{"$f":"IFERROR(INDEX(Table1[Bedding],MATCH('2) Room configuration'!D411,Table1[TMS],0)),\"\")","v":""},null,null,{"$f":"IFERROR(INDEX(Table1[Room description],MATCH('2) Room configuration'!I411,Table1[TMS],0)),\"\")","v":""},{"$f":"IFERROR(INDEX(Table1[Bedding],MATCH('2) Room configuration'!I411,Table1[TMS],0)),\"\")","v":""},{"$f":"IFERROR(INDEX(Table1[Normal occupancy],MATCH(Table2[[#This Row],[New Room Type \n(TMS)]],Table1[TMS],0)),\"\")","v":""},null,null,null,null,"",{"$f":"IF(Table2[[#This Row],['# extra beds that fit in the room2]]<>0,LEFT(Table2[[#This Row],[New Room Type \n(TMS)]],6),\"\")","v":""},null,{"$f":"IF(Table2[[#This Row],['# extra beds that fit in the room]]<>Table2[[#This Row],['# extra beds that fit in the room2]],\"yes\",\"No\")","v":"No"}]
[null,{"$f":"IF(LEN(C412)>0,'1) Hotel information'!$C$4,\"\")","v":""},null,null,null,{"$f":"IFERROR(INDEX(Table1[Room description],MATCH('2) Room configuration'!D412,Table1[TMS],0)),\"\")","v":""},{"$f":"IFERROR(INDEX(Table1[Bedding],MATCH('2) Room configuration'!D412,Table1[TMS],0)),\"\")","v":""},null,null,{"$f":"IFERROR(INDEX(Table1[Room description],MATCH('2) Room configuration'!I412,Table1[TMS],0)),\"\")","v":""},{"$f":"IFERROR(INDEX(Table1[Bedding],MATCH('2) Room configuration'!I412,Table1[TMS],0)),\"\")","v":""},{"$f":"IFERROR(INDEX(Table1[Normal occupancy],MATCH(Table2[[#This Row],[New Room Type \n(TMS)]],Table1[TMS],0)),\"\")","v":""},null,null,null,null,"",{"$f":"IF(Table2[[#This Row],['# extra beds that fit in the room2]]<>0,LEFT(Table2[[#This Row],[New Room Type \n(TMS)]],6),\"\")","v":""},null,{"$f":"IF(Table2[[#This Row],['# extra beds that fit in the room]]<>Table2[[#This Row],['# extra beds that fit in the room2]],\"yes\",\"No\")","v":"No"}]
[null,{"$f":"IF(LEN(C413)>0,'1) Hotel information'!$C$4,\"\")","v":""},null,null,null,{"$f":"IFERROR(INDEX(Table1[Room description],MATCH('2) Room configuration'!D413,Table1[TMS],0)),\"\")","v":""},{"$f":"IFERROR(INDEX(Table1[Bedding],MATCH('2) Room configuration'!D413,Table1[TMS],0)),\"\")","v":""},null,null,{"$f":"IFERROR(INDEX(Table1[Room description],MATCH('2) Room configuration'!I413,Table1[TMS],0)),\"\")","v":""},{"$f":"IFERROR(INDEX(Table1[Bedding],MATCH('2) Room configuration'!I413,Table1[TMS],0)),\"\")","v":""},{"$f":"IFERROR(INDEX(Table1[Normal occupancy],MATCH(Table2[[#This Row],[New Room Type \n(TMS)]],Table1[TMS],0)),\"\")","v":""},null,null,null,null,"",{"$f":"IF(Table2[[#This Row],['# extra beds that fit in the room2]]<>0,LEFT(Table2[[#This Row],[New Room Type \n(TMS)]],6),\"\")","v":""},null,{"$f":"IF(Table2[[#This Row],['# extra beds that fit in the room]]<>Table2[[#This Row],['# extra beds that fit in the room2]],\"yes\",\"No\")","v":"No"}]
[null,{"$f":"IF(LEN(C414)>0,'1) Hotel information'!$C$4,\"\")","v":""},null,null,null,{"$f":"IFERROR(INDEX(Table1[Room description],MATCH('2) Room configuration'!D414,Table1[TMS],0)),\"\")","v":""},{"$f":"IFERROR(INDEX(Table1[Bedding],MATCH('2) Room configuration'!D414,Table1[TMS],0)),\"\")","v":""},null,null,{"$f":"IFERROR(INDEX(Table1[Room description],MATCH('2) Room configuration'!I414,Table1[TMS],0)),\"\")","v":""},{"$f":"IFERROR(INDEX(Table1[Bedding],MATCH('2) Room configuration'!I414,Table1[TMS],0)),\"\")","v":""},{"$f":"IFERROR(INDEX(Table1[Normal occupancy],MATCH(Table2[[#This Row],[New Room Type \n(TMS)]],Table1[TMS],0)),\"\")","v":""},null,null,null,null,"",{"$f":"IF(Table2[[#This Row],['# extra beds that fit in the room2]]<>0,LEFT(Table2[[#This Row],[New Room Type \n(TMS)]],6),\"\")","v":""},null,{"$f":"IF(Table2[[#This Row],['# extra beds that fit in the room]]<>Table2[[#This Row],['# extra beds that fit in the room2]],\"yes\",\"No\")","v":"No"}]
[null,{"$f":"IF(LEN(C415)>0,'1) Hotel information'!$C$4,\"\")","v":""},null,null,null,{"$f":"IFERROR(INDEX(Table1[Room description],MATCH('2) Room configuration'!D415,Table1[TMS],0)),\"\")","v":""},{"$f":"IFERROR(INDEX(Table1[Bedding],MATCH('2) Room configuration'!D415,Table1[TMS],0)),\"\")","v":""},null,null,{"$f":"IFERROR(INDEX(Table1[Room description],MATCH('2) Room configuration'!I415,Table1[TMS],0)),\"\")","v":""},{"$f":"IFERROR(INDEX(Table1[Bedding],MATCH('2) Room configuration'!I415,Table1[TMS],0)),\"\")","v":""},{"$f":"IFERROR(INDEX(Table1[Normal occupancy],MATCH(Table2[[#This Row],[New Room Type \n(TMS)]],Table1[TMS],0)),\"\")","v":""},null,null,null,null,"",{"$f":"IF(Table2[[#This Row],['# extra beds that fit in the room2]]<>0,LEFT(Table2[[#This Row],[New Room Type \n(TMS)]],6),\"\")","v":""},null,{"$f":"IF(Table2[[#This Row],['# extra beds that fit in the room]]<>Table2[[#This Row],['# extra beds that fit in the room2]],\"yes\",\"No\")","v":"No"}]
[null,{"$f":"IF(LEN(C416)>0,'1) Hotel information'!$C$4,\"\")","v":""},null,null,null,{"$f":"IFERROR(INDEX(Table1[Room description],MATCH('2) Room configuration'!D416,Table1[TMS],0)),\"\")","v":""},{"$f":"IFERROR(INDEX(Table1[Bedding],MATCH('2) Room configuration'!D416,Table1[TMS],0)),\"\")","v":""},null,null,{"$f":"IFERROR(INDEX(Table1[Room description],MATCH('2) Room configuration'!I416,Table1[TMS],0)),\"\")","v":""},{"$f":"IFERROR(INDEX(Table1[Bedding],MATCH('2) Room configuration'!I416,Table1[TMS],0)),\"\")","v":""},{"$f":"IFERROR(INDEX(Table1[Normal occupancy],MATCH(Table2[[#This Row],[New Room Type \n(TMS)]],Table1[TMS],0)),\"\")","v":""},null,null,null,null,"",{"$f":"IF(Table2[[#This Row],['# extra beds that fit in the room2]]<>0,LEFT(Table2[[#This Row],[New Room Type \n(TMS)]],6),\"\")","v":""},null,{"$f":"IF(Table2[[#This Row],['# extra beds that fit in the room]]<>Table2[[#This Row],['# extra beds that fit in the room2]],\"yes\",\"No\")","v":"No"}]
[null,{"$f":"IF(LEN(C417)>0,'1) Hotel information'!$C$4,\"\")","v":""},null,null,null,{"$f":"IFERROR(INDEX(Table1[Room description],MATCH('2) Room configuration'!D417,Table1[TMS],0)),\"\")","v":""},{"$f":"IFERROR(INDEX(Table1[Bedding],MATCH('2) Room configuration'!D417,Table1[TMS],0)),\"\")","v":""},null,null,{"$f":"IFERROR(INDEX(Table1[Room description],MATCH('2) Room configuration'!I417,Table1[TMS],0)),\"\")","v":""},{"$f":"IFERROR(INDEX(Table1[Bedding],MATCH('2) Room configuration'!I417,Table1[TMS],0)),\"\")","v":""},{"$f":"IFERROR(INDEX(Table1[Normal occupancy],MATCH(Table2[[#This Row],[New Room Type \n(TMS)]],Table1[TMS],0)),\"\")","v":""},null,null,null,null,"",{"$f":"IF(Table2[[#This Row],['# extra beds that fit in the room2]]<>0,LEFT(Table2[[#This Row],[New Room Type \n(TMS)]],6),\"\")","v":""},null,{"$f":"IF(Table2[[#This Row],['# extra beds that fit in the room]]<>Table2[[#This Row],['# extra beds that fit in the room2]],\"yes\",\"No\")","v":"No"}]
[null,{"$f":"IF(LEN(C418)>0,'1) Hotel information'!$C$4,\"\")","v":""},null,null,null,{"$f":"IFERROR(INDEX(Table1[Room description],MATCH('2) Room configuration'!D418,Table1[TMS],0)),\"\")","v":""},{"$f":"IFERROR(INDEX(Table1[Bedding],MATCH('2) Room configuration'!D418,Table1[TMS],0)),\"\")","v":""},null,null,{"$f":"IFERROR(INDEX(Table1[Room description],MATCH('2) Room configuration'!I418,Table1[TMS],0)),\"\")","v":""},{"$f":"IFERROR(INDEX(Table1[Bedding],MATCH('2) Room configuration'!I418,Table1[TMS],0)),\"\")","v":""},{"$f":"IFERROR(INDEX(Table1[Normal occupancy],MATCH(Table2[[#This Row],[New Room Type \n(TMS)]],Table1[TMS],0)),\"\")","v":""},null,null,null,null,"",{"$f":"IF(Table2[[#This Row],['# extra beds that fit in the room2]]<>0,LEFT(Table2[[#This Row],[New Room Type \n(TMS)]],6),\"\")","v":""},null,{"$f":"IF(Table2[[#This Row],['# extra beds that fit in the room]]<>Table2[[#This Row],['# extra beds that fit in the room2]],\"yes\",\"No\")","v":"No"}]
[null,{"$f":"IF(LEN(C419)>0,'1) Hotel information'!$C$4,\"\")","v":""},null,null,null,{"$f":"IFERROR(INDEX(Table1[Room description],MATCH('2) Room configuration'!D419,Table1[TMS],0)),\"\")","v":""},{"$f":"IFERROR(INDEX(Table1[Bedding],MATCH('2) Room configuration'!D419,Table1[TMS],0)),\"\")","v":""},null,null,{"$f":"IFERROR(INDEX(Table1[Room description],MATCH('2) Room configuration'!I419,Table1[TMS],0)),\"\")","v":""},{"$f":"IFERROR(INDEX(Table1[Bedding],MATCH('2) Room configuration'!I419,Table1[TMS],0)),\"\")","v":""},{"$f":"IFERROR(INDEX(Table1[Normal occupancy],MATCH(Table2[[#This Row],[New Room Type \n(TMS)]],Table1[TMS],0)),\"\")","v":""},null,null,null,null,"",{"$f":"IF(Table2[[#This Row],['# extra beds that fit in the room2]]<>0,LEFT(Table2[[#This Row],[New Room Type \n(TMS)]],6),\"\")","v":""},null,{"$f":"IF(Table2[[#This Row],['# extra beds that fit in the room]]<>Table2[[#This Row],['# extra beds that fit in the room2]],\"yes\",\"No\")","v":"No"}]
[null,{"$f":"IF(LEN(C420)>0,'1) Hotel information'!$C$4,\"\")","v":""},null,null,null,{"$f":"IFERROR(INDEX(Table1[Room description],MATCH('2) Room configuration'!D420,Table1[TMS],0)),\"\")","v":""},{"$f":"IFERROR(INDEX(Table1[Bedding],MATCH('2) Room configuration'!D420,Table1[TMS],0)),\"\")","v":""},null,null,{"$f":"IFERROR(INDEX(Table1[Room description],MATCH('2) Room configuration'!I420,Table1[TMS],0)),\"\")","v":""},{"$f":"IFERROR(INDEX(Table1[Bedding],MATCH('2) Room configuration'!I420,Table1[TMS],0)),\"\")","v":""},{"$f":"IFERROR(INDEX(Table1[Normal occupancy],MATCH(Table2[[#This Row],[New Room Type \n(TMS)]],Table1[TMS],0)),\"\")","v":""},null,null,null,null,"",{"$f":"IF(Table2[[#This Row],['# extra beds that fit in the room2]]<>0,LEFT(Table2[[#This Row],[New Room Type \n(TMS)]],6),\"\")","v":""},null,{"$f":"IF(Table2[[#This Row],['# extra beds that fit in the room]]<>Table2[[#This Row],['# extra beds that fit in the room2]],\"yes\",\"No\")","v":"No"}]
[null,{"$f":"IF(LEN(C421)>0,'1) Hotel information'!$C$4,\"\")","v":""},null,null,null,{"$f":"IFERROR(INDEX(Table1[Room description],MATCH('2) Room configuration'!D421,Table1[TMS],0)),\"\")","v":""},{"$f":"IFERROR(INDEX(Table1[Bedding],MATCH('2) Room configuration'!D421,Table1[TMS],0)),\"\")","v":""},null,null,{"$f":"IFERROR(INDEX(Table1[Room description],MATCH('2) Room configuration'!I421,Table1[TMS],0)),\"\")","v":""},{"$f":"IFERROR(INDEX(Table1[Bedding],MATCH('2) Room configuration'!I421,Table1[TMS],0)),\"\")","v":""},{"$f":"IFERROR(INDEX(Table1[Normal occupancy],MATCH(Table2[[#This Row],[New Room Type \n(TMS)]],Table1[TMS],0)),\"\")","v":""},null,null,null,null,"",{"$f":"IF(Table2[[#This Row],['# extra beds that fit in the room2]]<>0,LEFT(Table2[[#This Row],[New Room Type \n(TMS)]],6),\"\")","v":""},null,{"$f":"IF(Table2[[#This Row],['# extra beds that fit in the room]]<>Table2[[#This Row],['# extra beds that fit in the room2]],\"yes\",\"No\")","v":"No"}]
[null,{"$f":"IF(LEN(C422)>0,'1) Hotel information'!$C$4,\"\")","v":""},null,null,null,{"$f":"IFERROR(INDEX(Table1[Room description],MATCH('2) Room configuration'!D422,Table1[TMS],0)),\"\")","v":""},{"$f":"IFERROR(INDEX(Table1[Bedding],MATCH('2) Room configuration'!D422,Table1[TMS],0)),\"\")","v":""},null,null,{"$f":"IFERROR(INDEX(Table1[Room description],MATCH('2) Room configuration'!I422,Table1[TMS],0)),\"\")","v":""},{"$f":"IFERROR(INDEX(Table1[Bedding],MATCH('2) Room configuration'!I422,Table1[TMS],0)),\"\")","v":""},{"$f":"IFERROR(INDEX(Table1[Normal occupancy],MATCH(Table2[[#This Row],[New Room Type \n(TMS)]],Table1[TMS],0)),\"\")","v":""},null,null,null,null,"",{"$f":"IF(Table2[[#This Row],['# extra beds that fit in the room2]]<>0,LEFT(Table2[[#This Row],[New Room Type \n(TMS)]],6),\"\")","v":""},null,{"$f":"IF(Table2[[#This Row],['# extra beds that fit in the room]]<>Table2[[#This Row],['# extra beds that fit in the room2]],\"yes\",\"No\")","v":"No"}]
[null,{"$f":"IF(LEN(C423)>0,'1) Hotel information'!$C$4,\"\")","v":""},null,null,null,{"$f":"IFERROR(INDEX(Table1[Room description],MATCH('2) Room configuration'!D423,Table1[TMS],0)),\"\")","v":""},{"$f":"IFERROR(INDEX(Table1[Bedding],MATCH('2) Room configuration'!D423,Table1[TMS],0)),\"\")","v":""},null,null,{"$f":"IFERROR(INDEX(Table1[Room description],MATCH('2) Room configuration'!I423,Table1[TMS],0)),\"\")","v":""},{"$f":"IFERROR(INDEX(Table1[Bedding],MATCH('2) Room configuration'!I423,Table1[TMS],0)),\"\")","v":""},{"$f":"IFERROR(INDEX(Table1[Normal occupancy],MATCH(Table2[[#This Row],[New Room Type \n(TMS)]],Table1[TMS],0)),\"\")","v":""},null,null,null,null,"",{"$f":"IF(Table2[[#This Row],['# extra beds that fit in the room2]]<>0,LEFT(Table2[[#This Row],[New Room Type \n(TMS)]],6),\"\")","v":""},null,{"$f":"IF(Table2[[#This Row],['# extra beds that fit in the room]]<>Table2[[#This Row],['# extra beds that fit in the room2]],\"yes\",\"No\")","v":"No"}]
[null,{"$f":"IF(LEN(C424)>0,'1) Hotel information'!$C$4,\"\")","v":""},null,null,null,{"$f":"IFERROR(INDEX(Table1[Room description],MATCH('2) Room configuration'!D424,Table1[TMS],0)),\"\")","v":""},{"$f":"IFERROR(INDEX(Table1[Bedding],MATCH('2) Room configuration'!D424,Table1[TMS],0)),\"\")","v":""},null,null,{"$f":"IFERROR(INDEX(Table1[Room description],MATCH('2) Room configuration'!I424,Table1[TMS],0)),\"\")","v":""},{"$f":"IFERROR(INDEX(Table1[Bedding],MATCH('2) Room configuration'!I424,Table1[TMS],0)),\"\")","v":""},{"$f":"IFERROR(INDEX(Table1[Normal occupancy],MATCH(Table2[[#This Row],[New Room Type \n(TMS)]],Table1[TMS],0)),\"\")","v":""},null,null,null,null,"",{"$f":"IF(Table2[[#This Row],['# extra beds that fit in the room2]]<>0,LEFT(Table2[[#This Row],[New Room Type \n(TMS)]],6),\"\")","v":""},null,{"$f":"IF(Table2[[#This Row],['# extra beds that fit in the room]]<>Table2[[#This Row],['# extra beds that fit in the room2]],\"yes\",\"No\")","v":"No"}]
[null,{"$f":"IF(LEN(C425)>0,'1) Hotel information'!$C$4,\"\")","v":""},null,null,null,{"$f":"IFERROR(INDEX(Table1[Room description],MATCH('2) Room configuration'!D425,Table1[TMS],0)),\"\")","v":""},{"$f":"IFERROR(INDEX(Table1[Bedding],MATCH('2) Room configuration'!D425,Table1[TMS],0)),\"\")","v":""},null,null,{"$f":"IFERROR(INDEX(Table1[Room description],MATCH('2) Room configuration'!I425,Table1[TMS],0)),\"\")","v":""},{"$f":"IFERROR(INDEX(Table1[Bedding],MATCH('2) Room configuration'!I425,Table1[TMS],0)),\"\")","v":""},{"$f":"IFERROR(INDEX(Table1[Normal occupancy],MATCH(Table2[[#This Row],[New Room Type \n(TMS)]],Table1[TMS],0)),\"\")","v":""},null,null,null,null,"",{"$f":"IF(Table2[[#This Row],['# extra beds that fit in the room2]]<>0,LEFT(Table2[[#This Row],[New Room Type \n(TMS)]],6),\"\")","v":""},null,{"$f":"IF(Table2[[#This Row],['# extra beds that fit in the room]]<>Table2[[#This Row],['# extra beds that fit in the room2]],\"yes\",\"No\")","v":"No"}]
[null,{"$f":"IF(LEN(C426)>0,'1) Hotel information'!$C$4,\"\")","v":""},null,null,null,{"$f":"IFERROR(INDEX(Table1[Room description],MATCH('2) Room configuration'!D426,Table1[TMS],0)),\"\")","v":""},{"$f":"IFERROR(INDEX(Table1[Bedding],MATCH('2) Room configuration'!D426,Table1[TMS],0)),\"\")","v":""},null,null,{"$f":"IFERROR(INDEX(Table1[Room description],MATCH('2) Room configuration'!I426,Table1[TMS],0)),\"\")","v":""},{"$f":"IFERROR(INDEX(Table1[Bedding],MATCH('2) Room configuration'!I426,Table1[TMS],0)),\"\")","v":""},{"$f":"IFERROR(INDEX(Table1[Normal occupancy],MATCH(Table2[[#This Row],[New Room Type \n(TMS)]],Table1[TMS],0)),\"\")","v":""},null,null,null,null,"",{"$f":"IF(Table2[[#This Row],['# extra beds that fit in the room2]]<>0,LEFT(Table2[[#This Row],[New Room Type \n(TMS)]],6),\"\")","v":""},null,{"$f":"IF(Table2[[#This Row],['# extra beds that fit in the room]]<>Table2[[#This Row],['# extra beds that fit in the room2]],\"yes\",\"No\")","v":"No"}]
[null,{"$f":"IF(LEN(C427)>0,'1) Hotel information'!$C$4,\"\")","v":""},null,null,null,{"$f":"IFERROR(INDEX(Table1[Room description],MATCH('2) Room configuration'!D427,Table1[TMS],0)),\"\")","v":""},{"$f":"IFERROR(INDEX(Table1[Bedding],MATCH('2) Room configuration'!D427,Table1[TMS],0)),\"\")","v":""},null,null,{"$f":"IFERROR(INDEX(Table1[Room description],MATCH('2) Room configuration'!I427,Table1[TMS],0)),\"\")","v":""},{"$f":"IFERROR(INDEX(Table1[Bedding],MATCH('2) Room configuration'!I427,Table1[TMS],0)),\"\")","v":""},{"$f":"IFERROR(INDEX(Table1[Normal occupancy],MATCH(Table2[[#This Row],[New Room Type \n(TMS)]],Table1[TMS],0)),\"\")","v":""},null,null,null,null,"",{"$f":"IF(Table2[[#This Row],['# extra beds that fit in the room2]]<>0,LEFT(Table2[[#This Row],[New Room Type \n(TMS)]],6),\"\")","v":""},null,{"$f":"IF(Table2[[#This Row],['# extra beds that fit in the room]]<>Table2[[#This Row],['# extra beds that fit in the room2]],\"yes\",\"No\")","v":"No"}]
[null,{"$f":"IF(LEN(C428)>0,'1) Hotel information'!$C$4,\"\")","v":""},null,null,null,{"$f":"IFERROR(INDEX(Table1[Room description],MATCH('2) Room configuration'!D428,Table1[TMS],0)),\"\")","v":""},{"$f":"IFERROR(INDEX(Table1[Bedding],MATCH('2) Room configuration'!D428,Table1[TMS],0)),\"\")","v":""},null,null,{"$f":"IFERROR(INDEX(Table1[Room description],MATCH('2) Room configuration'!I428,Table1[TMS],0)),\"\")","v":""},{"$f":"IFERROR(INDEX(Table1[Bedding],MATCH('2) Room configuration'!I428,Table1[TMS],0)),\"\")","v":""},{"$f":"IFERROR(INDEX(Table1[Normal occupancy],MATCH(Table2[[#This Row],[New Room Type \n(TMS)]],Table1[TMS],0)),\"\")","v":""},null,null,null,null,"",{"$f":"IF(Table2[[#This Row],['# extra beds that fit in the room2]]<>0,LEFT(Table2[[#This Row],[New Room Type \n(TMS)]],6),\"\")","v":""},null,{"$f":"IF(Table2[[#This Row],['# extra beds that fit in the room]]<>Table2[[#This Row],['# extra beds that fit in the room2]],\"yes\",\"No\")","v":"No"}]
[null,{"$f":"IF(LEN(C429)>0,'1) Hotel information'!$C$4,\"\")","v":""},null,null,null,{"$f":"IFERROR(INDEX(Table1[Room description],MATCH('2) Room configuration'!D429,Table1[TMS],0)),\"\")","v":""},{"$f":"IFERROR(INDEX(Table1[Bedding],MATCH('2) Room configuration'!D429,Table1[TMS],0)),\"\")","v":""},null,null,{"$f":"IFERROR(INDEX(Table1[Room description],MATCH('2) Room configuration'!I429,Table1[TMS],0)),\"\")","v":""},{"$f":"IFERROR(INDEX(Table1[Bedding],MATCH('2) Room configuration'!I429,Table1[TMS],0)),\"\")","v":""},{"$f":"IFERROR(INDEX(Table1[Normal occupancy],MATCH(Table2[[#This Row],[New Room Type \n(TMS)]],Table1[TMS],0)),\"\")","v":""},null,null,null,null,"",{"$f":"IF(Table2[[#This Row],['# extra beds that fit in the room2]]<>0,LEFT(Table2[[#This Row],[New Room Type \n(TMS)]],6),\"\")","v":""},null,{"$f":"IF(Table2[[#This Row],['# extra beds that fit in the room]]<>Table2[[#This Row],['# extra beds that fit in the room2]],\"yes\",\"No\")","v":"No"}]
[null,{"$f":"IF(LEN(C430)>0,'1) Hotel information'!$C$4,\"\")","v":""},null,null,null,{"$f":"IFERROR(INDEX(Table1[Room description],MATCH('2) Room configuration'!D430,Table1[TMS],0)),\"\")","v":""},{"$f":"IFERROR(INDEX(Table1[Bedding],MATCH('2) Room configuration'!D430,Table1[TMS],0)),\"\")","v":""},null,null,{"$f":"IFERROR(INDEX(Table1[Room description],MATCH('2) Room configuration'!I430,Table1[TMS],0)),\"\")","v":""},{"$f":"IFERROR(INDEX(Table1[Bedding],MATCH('2) Room configuration'!I430,Table1[TMS],0)),\"\")","v":""},{"$f":"IFERROR(INDEX(Table1[Normal occupancy],MATCH(Table2[[#This Row],[New Room Type \n(TMS)]],Table1[TMS],0)),\"\")","v":""},null,null,null,null,"",{"$f":"IF(Table2[[#This Row],['# extra beds that fit in the room2]]<>0,LEFT(Table2[[#This Row],[New Room Type \n(TMS)]],6),\"\")","v":""},null,{"$f":"IF(Table2[[#This Row],['# extra beds that fit in the room]]<>Table2[[#This Row],['# extra beds that fit in the room2]],\"yes\",\"No\")","v":"No"}]
[null,{"$f":"IF(LEN(C431)>0,'1) Hotel information'!$C$4,\"\")","v":""},null,null,null,{"$f":"IFERROR(INDEX(Table1[Room description],MATCH('2) Room configuration'!D431,Table1[TMS],0)),\"\")","v":""},{"$f":"IFERROR(INDEX(Table1[Bedding],MATCH('2) Room configuration'!D431,Table1[TMS],0)),\"\")","v":""},null,null,{"$f":"IFERROR(INDEX(Table1[Room description],MATCH('2) Room configuration'!I431,Table1[TMS],0)),\"\")","v":""},{"$f":"IFERROR(INDEX(Table1[Bedding],MATCH('2) Room configuration'!I431,Table1[TMS],0)),\"\")","v":""},{"$f":"IFERROR(INDEX(Table1[Normal occupancy],MATCH(Table2[[#This Row],[New Room Type \n(TMS)]],Table1[TMS],0)),\"\")","v":""},null,null,null,null,"",{"$f":"IF(Table2[[#This Row],['# extra beds that fit in the room2]]<>0,LEFT(Table2[[#This Row],[New Room Type \n(TMS)]],6),\"\")","v":""},null,{"$f":"IF(Table2[[#This Row],['# extra beds that fit in the room]]<>Table2[[#This Row],['# extra beds that fit in the room2]],\"yes\",\"No\")","v":"No"}]
[null,{"$f":"IF(LEN(C432)>0,'1) Hotel information'!$C$4,\"\")","v":""},null,null,null,{"$f":"IFERROR(INDEX(Table1[Room description],MATCH('2) Room configuration'!D432,Table1[TMS],0)),\"\")","v":""},{"$f":"IFERROR(INDEX(Table1[Bedding],MATCH('2) Room configuration'!D432,Table1[TMS],0)),\"\")","v":""},null,null,{"$f":"IFERROR(INDEX(Table1[Room description],MATCH('2) Room configuration'!I432,Table1[TMS],0)),\"\")","v":""},{"$f":"IFERROR(INDEX(Table1[Bedding],MATCH('2) Room configuration'!I432,Table1[TMS],0)),\"\")","v":""},{"$f":"IFERROR(INDEX(Table1[Normal occupancy],MATCH(Table2[[#This Row],[New Room Type \n(TMS)]],Table1[TMS],0)),\"\")","v":""},null,null,null,null,"",{"$f":"IF(Table2[[#This Row],['# extra beds that fit in the room2]]<>0,LEFT(Table2[[#This Row],[New Room Type \n(TMS)]],6),\"\")","v":""},null,{"$f":"IF(Table2[[#This Row],['# extra beds that fit in the room]]<>Table2[[#This Row],['# extra beds that fit in the room2]],\"yes\",\"No\")","v":"No"}]
[null,{"$f":"IF(LEN(C433)>0,'1) Hotel information'!$C$4,\"\")","v":""},null,null,null,{"$f":"IFERROR(INDEX(Table1[Room description],MATCH('2) Room configuration'!D433,Table1[TMS],0)),\"\")","v":""},{"$f":"IFERROR(INDEX(Table1[Bedding],MATCH('2) Room configuration'!D433,Table1[TMS],0)),\"\")","v":""},null,null,{"$f":"IFERROR(INDEX(Table1[Room description],MATCH('2) Room configuration'!I433,Table1[TMS],0)),\"\")","v":""},{"$f":"IFERROR(INDEX(Table1[Bedding],MATCH('2) Room configuration'!I433,Table1[TMS],0)),\"\")","v":""},{"$f":"IFERROR(INDEX(Table1[Normal occupancy],MATCH(Table2[[#This Row],[New Room Type \n(TMS)]],Table1[TMS],0)),\"\")","v":""},null,null,null,null,"",{"$f":"IF(Table2[[#This Row],['# extra beds that fit in the room2]]<>0,LEFT(Table2[[#This Row],[New Room Type \n(TMS)]],6),\"\")","v":""},null,{"$f":"IF(Table2[[#This Row],['# extra beds that fit in the room]]<>Table2[[#This Row],['# extra beds that fit in the room2]],\"yes\",\"No\")","v":"No"}]
[null,{"$f":"IF(LEN(C434)>0,'1) Hotel information'!$C$4,\"\")","v":""},null,null,null,{"$f":"IFERROR(INDEX(Table1[Room description],MATCH('2) Room configuration'!D434,Table1[TMS],0)),\"\")","v":""},{"$f":"IFERROR(INDEX(Table1[Bedding],MATCH('2) Room configuration'!D434,Table1[TMS],0)),\"\")","v":""},null,null,{"$f":"IFERROR(INDEX(Table1[Room description],MATCH('2) Room configuration'!I434,Table1[TMS],0)),\"\")","v":""},{"$f":"IFERROR(INDEX(Table1[Bedding],MATCH('2) Room configuration'!I434,Table1[TMS],0)),\"\")","v":""},{"$f":"IFERROR(INDEX(Table1[Normal occupancy],MATCH(Table2[[#This Row],[New Room Type \n(TMS)]],Table1[TMS],0)),\"\")","v":""},null,null,null,null,"",{"$f":"IF(Table2[[#This Row],['# extra beds that fit in the room2]]<>0,LEFT(Table2[[#This Row],[New Room Type \n(TMS)]],6),\"\")","v":""},null,{"$f":"IF(Table2[[#This Row],['# extra beds that fit in the room]]<>Table2[[#This Row],['# extra beds that fit in the room2]],\"yes\",\"No\")","v":"No"}]
[null,{"$f":"IF(LEN(C435)>0,'1) Hotel information'!$C$4,\"\")","v":""},null,null,null,{"$f":"IFERROR(INDEX(Table1[Room description],MATCH('2) Room configuration'!D435,Table1[TMS],0)),\"\")","v":""},{"$f":"IFERROR(INDEX(Table1[Bedding],MATCH('2) Room configuration'!D435,Table1[TMS],0)),\"\")","v":""},null,null,{"$f":"IFERROR(INDEX(Table1[Room description],MATCH('2) Room configuration'!I435,Table1[TMS],0)),\"\")","v":""},{"$f":"IFERROR(INDEX(Table1[Bedding],MATCH('2) Room configuration'!I435,Table1[TMS],0)),\"\")","v":""},{"$f":"IFERROR(INDEX(Table1[Normal occupancy],MATCH(Table2[[#This Row],[New Room Type \n(TMS)]],Table1[TMS],0)),\"\")","v":""},null,null,null,null,"",{"$f":"IF(Table2[[#This Row],['# extra beds that fit in the room2]]<>0,LEFT(Table2[[#This Row],[New Room Type \n(TMS)]],6),\"\")","v":""},null,{"$f":"IF(Table2[[#This Row],['# extra beds that fit in the room]]<>Table2[[#This Row],['# extra beds that fit in the room2]],\"yes\",\"No\")","v":"No"}]
[null,{"$f":"IF(LEN(C436)>0,'1) Hotel information'!$C$4,\"\")","v":""},null,null,null,{"$f":"IFERROR(INDEX(Table1[Room description],MATCH('2) Room configuration'!D436,Table1[TMS],0)),\"\")","v":""},{"$f":"IFERROR(INDEX(Table1[Bedding],MATCH('2) Room configuration'!D436,Table1[TMS],0)),\"\")","v":""},null,null,{"$f":"IFERROR(INDEX(Table1[Room description],MATCH('2) Room configuration'!I436,Table1[TMS],0)),\"\")","v":""},{"$f":"IFERROR(INDEX(Table1[Bedding],MATCH('2) Room configuration'!I436,Table1[TMS],0)),\"\")","v":""},{"$f":"IFERROR(INDEX(Table1[Normal occupancy],MATCH(Table2[[#This Row],[New Room Type \n(TMS)]],Table1[TMS],0)),\"\")","v":""},null,null,null,null,"",{"$f":"IF(Table2[[#This Row],['# extra beds that fit in the room2]]<>0,LEFT(Table2[[#This Row],[New Room Type \n(TMS)]],6),\"\")","v":""},null,{"$f":"IF(Table2[[#This Row],['# extra beds that fit in the room]]<>Table2[[#This Row],['# extra beds that fit in the room2]],\"yes\",\"No\")","v":"No"}]
[null,{"$f":"IF(LEN(C437)>0,'1) Hotel information'!$C$4,\"\")","v":""},null,null,null,{"$f":"IFERROR(INDEX(Table1[Room description],MATCH('2) Room configuration'!D437,Table1[TMS],0)),\"\")","v":""},{"$f":"IFERROR(INDEX(Table1[Bedding],MATCH('2) Room configuration'!D437,Table1[TMS],0)),\"\")","v":""},null,null,{"$f":"IFERROR(INDEX(Table1[Room description],MATCH('2) Room configuration'!I437,Table1[TMS],0)),\"\")","v":""},{"$f":"IFERROR(INDEX(Table1[Bedding],MATCH('2) Room configuration'!I437,Table1[TMS],0)),\"\")","v":""},{"$f":"IFERROR(INDEX(Table1[Normal occupancy],MATCH(Table2[[#This Row],[New Room Type \n(TMS)]],Table1[TMS],0)),\"\")","v":""},null,null,null,null,"",{"$f":"IF(Table2[[#This Row],['# extra beds that fit in the room2]]<>0,LEFT(Table2[[#This Row],[New Room Type \n(TMS)]],6),\"\")","v":""},null,{"$f":"IF(Table2[[#This Row],['# extra beds that fit in the room]]<>Table2[[#This Row],['# extra beds that fit in the room2]],\"yes\",\"No\")","v":"No"}]
[null,{"$f":"IF(LEN(C438)>0,'1) Hotel information'!$C$4,\"\")","v":""},null,null,null,{"$f":"IFERROR(INDEX(Table1[Room description],MATCH('2) Room configuration'!D438,Table1[TMS],0)),\"\")","v":""},{"$f":"IFERROR(INDEX(Table1[Bedding],MATCH('2) Room configuration'!D438,Table1[TMS],0)),\"\")","v":""},null,null,{"$f":"IFERROR(INDEX(Table1[Room description],MATCH('2) Room configuration'!I438,Table1[TMS],0)),\"\")","v":""},{"$f":"IFERROR(INDEX(Table1[Bedding],MATCH('2) Room configuration'!I438,Table1[TMS],0)),\"\")","v":""},{"$f":"IFERROR(INDEX(Table1[Normal occupancy],MATCH(Table2[[#This Row],[New Room Type \n(TMS)]],Table1[TMS],0)),\"\")","v":""},null,null,null,null,"",{"$f":"IF(Table2[[#This Row],['# extra beds that fit in the room2]]<>0,LEFT(Table2[[#This Row],[New Room Type \n(TMS)]],6),\"\")","v":""},null,{"$f":"IF(Table2[[#This Row],['# extra beds that fit in the room]]<>Table2[[#This Row],['# extra beds that fit in the room2]],\"yes\",\"No\")","v":"No"}]
[null,{"$f":"IF(LEN(C439)>0,'1) Hotel information'!$C$4,\"\")","v":""},null,null,null,{"$f":"IFERROR(INDEX(Table1[Room description],MATCH('2) Room configuration'!D439,Table1[TMS],0)),\"\")","v":""},{"$f":"IFERROR(INDEX(Table1[Bedding],MATCH('2) Room configuration'!D439,Table1[TMS],0)),\"\")","v":""},null,null,{"$f":"IFERROR(INDEX(Table1[Room description],MATCH('2) Room configuration'!I439,Table1[TMS],0)),\"\")","v":""},{"$f":"IFERROR(INDEX(Table1[Bedding],MATCH('2) Room configuration'!I439,Table1[TMS],0)),\"\")","v":""},{"$f":"IFERROR(INDEX(Table1[Normal occupancy],MATCH(Table2[[#This Row],[New Room Type \n(TMS)]],Table1[TMS],0)),\"\")","v":""},null,null,null,null,"",{"$f":"IF(Table2[[#This Row],['# extra beds that fit in the room2]]<>0,LEFT(Table2[[#This Row],[New Room Type \n(TMS)]],6),\"\")","v":""},null,{"$f":"IF(Table2[[#This Row],['# extra beds that fit in the room]]<>Table2[[#This Row],['# extra beds that fit in the room2]],\"yes\",\"No\")","v":"No"}]
[null,{"$f":"IF(LEN(C440)>0,'1) Hotel information'!$C$4,\"\")","v":""},null,null,null,{"$f":"IFERROR(INDEX(Table1[Room description],MATCH('2) Room configuration'!D440,Table1[TMS],0)),\"\")","v":""},{"$f":"IFERROR(INDEX(Table1[Bedding],MATCH('2) Room configuration'!D440,Table1[TMS],0)),\"\")","v":""},null,null,{"$f":"IFERROR(INDEX(Table1[Room description],MATCH('2) Room configuration'!I440,Table1[TMS],0)),\"\")","v":""},{"$f":"IFERROR(INDEX(Table1[Bedding],MATCH('2) Room configuration'!I440,Table1[TMS],0)),\"\")","v":""},{"$f":"IFERROR(INDEX(Table1[Normal occupancy],MATCH(Table2[[#This Row],[New Room Type \n(TMS)]],Table1[TMS],0)),\"\")","v":""},null,null,null,null,"",{"$f":"IF(Table2[[#This Row],['# extra beds that fit in the room2]]<>0,LEFT(Table2[[#This Row],[New Room Type \n(TMS)]],6),\"\")","v":""},null,{"$f":"IF(Table2[[#This Row],['# extra beds that fit in the room]]<>Table2[[#This Row],['# extra beds that fit in the room2]],\"yes\",\"No\")","v":"No"}]
[null,{"$f":"IF(LEN(C441)>0,'1) Hotel information'!$C$4,\"\")","v":""},null,null,null,{"$f":"IFERROR(INDEX(Table1[Room description],MATCH('2) Room configuration'!D441,Table1[TMS],0)),\"\")","v":""},{"$f":"IFERROR(INDEX(Table1[Bedding],MATCH('2) Room configuration'!D441,Table1[TMS],0)),\"\")","v":""},null,null,{"$f":"IFERROR(INDEX(Table1[Room description],MATCH('2) Room configuration'!I441,Table1[TMS],0)),\"\")","v":""},{"$f":"IFERROR(INDEX(Table1[Bedding],MATCH('2) Room configuration'!I441,Table1[TMS],0)),\"\")","v":""},{"$f":"IFERROR(INDEX(Table1[Normal occupancy],MATCH(Table2[[#This Row],[New Room Type \n(TMS)]],Table1[TMS],0)),\"\")","v":""},null,null,null,null,"",{"$f":"IF(Table2[[#This Row],['# extra beds that fit in the room2]]<>0,LEFT(Table2[[#This Row],[New Room Type \n(TMS)]],6),\"\")","v":""},null,{"$f":"IF(Table2[[#This Row],['# extra beds that fit in the room]]<>Table2[[#This Row],['# extra beds that fit in the room2]],\"yes\",\"No\")","v":"No"}]
[null,{"$f":"IF(LEN(C442)>0,'1) Hotel information'!$C$4,\"\")","v":""},null,null,null,{"$f":"IFERROR(INDEX(Table1[Room description],MATCH('2) Room configuration'!D442,Table1[TMS],0)),\"\")","v":""},{"$f":"IFERROR(INDEX(Table1[Bedding],MATCH('2) Room configuration'!D442,Table1[TMS],0)),\"\")","v":""},null,null,{"$f":"IFERROR(INDEX(Table1[Room description],MATCH('2) Room configuration'!I442,Table1[TMS],0)),\"\")","v":""},{"$f":"IFERROR(INDEX(Table1[Bedding],MATCH('2) Room configuration'!I442,Table1[TMS],0)),\"\")","v":""},{"$f":"IFERROR(INDEX(Table1[Normal occupancy],MATCH(Table2[[#This Row],[New Room Type \n(TMS)]],Table1[TMS],0)),\"\")","v":""},null,null,null,null,"",{"$f":"IF(Table2[[#This Row],['# extra beds that fit in the room2]]<>0,LEFT(Table2[[#This Row],[New Room Type \n(TMS)]],6),\"\")","v":""},null,{"$f":"IF(Table2[[#This Row],['# extra beds that fit in the room]]<>Table2[[#This Row],['# extra beds that fit in the room2]],\"yes\",\"No\")","v":"No"}]
[null,{"$f":"IF(LEN(C443)>0,'1) Hotel information'!$C$4,\"\")","v":""},null,null,null,{"$f":"IFERROR(INDEX(Table1[Room description],MATCH('2) Room configuration'!D443,Table1[TMS],0)),\"\")","v":""},{"$f":"IFERROR(INDEX(Table1[Bedding],MATCH('2) Room configuration'!D443,Table1[TMS],0)),\"\")","v":""},null,null,{"$f":"IFERROR(INDEX(Table1[Room description],MATCH('2) Room configuration'!I443,Table1[TMS],0)),\"\")","v":""},{"$f":"IFERROR(INDEX(Table1[Bedding],MATCH('2) Room configuration'!I443,Table1[TMS],0)),\"\")","v":""},{"$f":"IFERROR(INDEX(Table1[Normal occupancy],MATCH(Table2[[#This Row],[New Room Type \n(TMS)]],Table1[TMS],0)),\"\")","v":""},null,null,null,null,"",{"$f":"IF(Table2[[#This Row],['# extra beds that fit in the room2]]<>0,LEFT(Table2[[#This Row],[New Room Type \n(TMS)]],6),\"\")","v":""},null,{"$f":"IF(Table2[[#This Row],['# extra beds that fit in the room]]<>Table2[[#This Row],['# extra beds that fit in the room2]],\"yes\",\"No\")","v":"No"}]
[null,{"$f":"IF(LEN(C444)>0,'1) Hotel information'!$C$4,\"\")","v":""},null,null,null,{"$f":"IFERROR(INDEX(Table1[Room description],MATCH('2) Room configuration'!D444,Table1[TMS],0)),\"\")","v":""},{"$f":"IFERROR(INDEX(Table1[Bedding],MATCH('2) Room configuration'!D444,Table1[TMS],0)),\"\")","v":""},null,null,{"$f":"IFERROR(INDEX(Table1[Room description],MATCH('2) Room configuration'!I444,Table1[TMS],0)),\"\")","v":""},{"$f":"IFERROR(INDEX(Table1[Bedding],MATCH('2) Room configuration'!I444,Table1[TMS],0)),\"\")","v":""},{"$f":"IFERROR(INDEX(Table1[Normal occupancy],MATCH(Table2[[#This Row],[New Room Type \n(TMS)]],Table1[TMS],0)),\"\")","v":""},null,null,null,null,"",{"$f":"IF(Table2[[#This Row],['# extra beds that fit in the room2]]<>0,LEFT(Table2[[#This Row],[New Room Type \n(TMS)]],6),\"\")","v":""},null,{"$f":"IF(Table2[[#This Row],['# extra beds that fit in the room]]<>Table2[[#This Row],['# extra beds that fit in the room2]],\"yes\",\"No\")","v":"No"}]
[null,{"$f":"IF(LEN(C445)>0,'1) Hotel information'!$C$4,\"\")","v":""},null,null,null,{"$f":"IFERROR(INDEX(Table1[Room description],MATCH('2) Room configuration'!D445,Table1[TMS],0)),\"\")","v":""},{"$f":"IFERROR(INDEX(Table1[Bedding],MATCH('2) Room configuration'!D445,Table1[TMS],0)),\"\")","v":""},null,null,{"$f":"IFERROR(INDEX(Table1[Room description],MATCH('2) Room configuration'!I445,Table1[TMS],0)),\"\")","v":""},{"$f":"IFERROR(INDEX(Table1[Bedding],MATCH('2) Room configuration'!I445,Table1[TMS],0)),\"\")","v":""},{"$f":"IFERROR(INDEX(Table1[Normal occupancy],MATCH(Table2[[#This Row],[New Room Type \n(TMS)]],Table1[TMS],0)),\"\")","v":""},null,null,null,null,"",{"$f":"IF(Table2[[#This Row],['# extra beds that fit in the room2]]<>0,LEFT(Table2[[#This Row],[New Room Type \n(TMS)]],6),\"\")","v":""},null,{"$f":"IF(Table2[[#This Row],['# extra beds that fit in the room]]<>Table2[[#This Row],['# extra beds that fit in the room2]],\"yes\",\"No\")","v":"No"}]
[null,{"$f":"IF(LEN(C446)>0,'1) Hotel information'!$C$4,\"\")","v":""},null,null,null,{"$f":"IFERROR(INDEX(Table1[Room description],MATCH('2) Room configuration'!D446,Table1[TMS],0)),\"\")","v":""},{"$f":"IFERROR(INDEX(Table1[Bedding],MATCH('2) Room configuration'!D446,Table1[TMS],0)),\"\")","v":""},null,null,{"$f":"IFERROR(INDEX(Table1[Room description],MATCH('2) Room configuration'!I446,Table1[TMS],0)),\"\")","v":""},{"$f":"IFERROR(INDEX(Table1[Bedding],MATCH('2) Room configuration'!I446,Table1[TMS],0)),\"\")","v":""},{"$f":"IFERROR(INDEX(Table1[Normal occupancy],MATCH(Table2[[#This Row],[New Room Type \n(TMS)]],Table1[TMS],0)),\"\")","v":""},null,null,null,null,"",{"$f":"IF(Table2[[#This Row],['# extra beds that fit in the room2]]<>0,LEFT(Table2[[#This Row],[New Room Type \n(TMS)]],6),\"\")","v":""},null,{"$f":"IF(Table2[[#This Row],['# extra beds that fit in the room]]<>Table2[[#This Row],['# extra beds that fit in the room2]],\"yes\",\"No\")","v":"No"}]
[null,{"$f":"IF(LEN(C447)>0,'1) Hotel information'!$C$4,\"\")","v":""},null,null,null,{"$f":"IFERROR(INDEX(Table1[Room description],MATCH('2) Room configuration'!D447,Table1[TMS],0)),\"\")","v":""},{"$f":"IFERROR(INDEX(Table1[Bedding],MATCH('2) Room configuration'!D447,Table1[TMS],0)),\"\")","v":""},null,null,{"$f":"IFERROR(INDEX(Table1[Room description],MATCH('2) Room configuration'!I447,Table1[TMS],0)),\"\")","v":""},{"$f":"IFERROR(INDEX(Table1[Bedding],MATCH('2) Room configuration'!I447,Table1[TMS],0)),\"\")","v":""},{"$f":"IFERROR(INDEX(Table1[Normal occupancy],MATCH(Table2[[#This Row],[New Room Type \n(TMS)]],Table1[TMS],0)),\"\")","v":""},null,null,null,null,"",{"$f":"IF(Table2[[#This Row],['# extra beds that fit in the room2]]<>0,LEFT(Table2[[#This Row],[New Room Type \n(TMS)]],6),\"\")","v":""},null,{"$f":"IF(Table2[[#This Row],['# extra beds that fit in the room]]<>Table2[[#This Row],['# extra beds that fit in the room2]],\"yes\",\"No\")","v":"No"}]
[null,{"$f":"IF(LEN(C448)>0,'1) Hotel information'!$C$4,\"\")","v":""},null,null,null,{"$f":"IFERROR(INDEX(Table1[Room description],MATCH('2) Room configuration'!D448,Table1[TMS],0)),\"\")","v":""},{"$f":"IFERROR(INDEX(Table1[Bedding],MATCH('2) Room configuration'!D448,Table1[TMS],0)),\"\")","v":""},null,null,{"$f":"IFERROR(INDEX(Table1[Room description],MATCH('2) Room configuration'!I448,Table1[TMS],0)),\"\")","v":""},{"$f":"IFERROR(INDEX(Table1[Bedding],MATCH('2) Room configuration'!I448,Table1[TMS],0)),\"\")","v":""},{"$f":"IFERROR(INDEX(Table1[Normal occupancy],MATCH(Table2[[#This Row],[New Room Type \n(TMS)]],Table1[TMS],0)),\"\")","v":""},null,null,null,null,"",{"$f":"IF(Table2[[#This Row],['# extra beds that fit in the room2]]<>0,LEFT(Table2[[#This Row],[New Room Type \n(TMS)]],6),\"\")","v":""},null,{"$f":"IF(Table2[[#This Row],['# extra beds that fit in the room]]<>Table2[[#This Row],['# extra beds that fit in the room2]],\"yes\",\"No\")","v":"No"}]
[null,{"$f":"IF(LEN(C449)>0,'1) Hotel information'!$C$4,\"\")","v":""},null,null,null,{"$f":"IFERROR(INDEX(Table1[Room description],MATCH('2) Room configuration'!D449,Table1[TMS],0)),\"\")","v":""},{"$f":"IFERROR(INDEX(Table1[Bedding],MATCH('2) Room configuration'!D449,Table1[TMS],0)),\"\")","v":""},null,null,{"$f":"IFERROR(INDEX(Table1[Room description],MATCH('2) Room configuration'!I449,Table1[TMS],0)),\"\")","v":""},{"$f":"IFERROR(INDEX(Table1[Bedding],MATCH('2) Room configuration'!I449,Table1[TMS],0)),\"\")","v":""},{"$f":"IFERROR(INDEX(Table1[Normal occupancy],MATCH(Table2[[#This Row],[New Room Type \n(TMS)]],Table1[TMS],0)),\"\")","v":""},null,null,null,null,"",{"$f":"IF(Table2[[#This Row],['# extra beds that fit in the room2]]<>0,LEFT(Table2[[#This Row],[New Room Type \n(TMS)]],6),\"\")","v":""},null,{"$f":"IF(Table2[[#This Row],['# extra beds that fit in the room]]<>Table2[[#This Row],['# extra beds that fit in the room2]],\"yes\",\"No\")","v":"No"}]
[null,{"$f":"IF(LEN(C450)>0,'1) Hotel information'!$C$4,\"\")","v":""},null,null,null,{"$f":"IFERROR(INDEX(Table1[Room description],MATCH('2) Room configuration'!D450,Table1[TMS],0)),\"\")","v":""},{"$f":"IFERROR(INDEX(Table1[Bedding],MATCH('2) Room configuration'!D450,Table1[TMS],0)),\"\")","v":""},null,null,{"$f":"IFERROR(INDEX(Table1[Room description],MATCH('2) Room configuration'!I450,Table1[TMS],0)),\"\")","v":""},{"$f":"IFERROR(INDEX(Table1[Bedding],MATCH('2) Room configuration'!I450,Table1[TMS],0)),\"\")","v":""},{"$f":"IFERROR(INDEX(Table1[Normal occupancy],MATCH(Table2[[#This Row],[New Room Type \n(TMS)]],Table1[TMS],0)),\"\")","v":""},null,null,null,null,"",{"$f":"IF(Table2[[#This Row],['# extra beds that fit in the room2]]<>0,LEFT(Table2[[#This Row],[New Room Type \n(TMS)]],6),\"\")","v":""},null,{"$f":"IF(Table2[[#This Row],['# extra beds that fit in the room]]<>Table2[[#This Row],['# extra beds that fit in the room2]],\"yes\",\"No\")","v":"No"}]
[null,{"$f":"IF(LEN(C451)>0,'1) Hotel information'!$C$4,\"\")","v":""},null,null,null,{"$f":"IFERROR(INDEX(Table1[Room description],MATCH('2) Room configuration'!D451,Table1[TMS],0)),\"\")","v":""},{"$f":"IFERROR(INDEX(Table1[Bedding],MATCH('2) Room configuration'!D451,Table1[TMS],0)),\"\")","v":""},null,null,{"$f":"IFERROR(INDEX(Table1[Room description],MATCH('2) Room configuration'!I451,Table1[TMS],0)),\"\")","v":""},{"$f":"IFERROR(INDEX(Table1[Bedding],MATCH('2) Room configuration'!I451,Table1[TMS],0)),\"\")","v":""},{"$f":"IFERROR(INDEX(Table1[Normal occupancy],MATCH(Table2[[#This Row],[New Room Type \n(TMS)]],Table1[TMS],0)),\"\")","v":""},null,null,null,null,"",{"$f":"IF(Table2[[#This Row],['# extra beds that fit in the room2]]<>0,LEFT(Table2[[#This Row],[New Room Type \n(TMS)]],6),\"\")","v":""},null,{"$f":"IF(Table2[[#This Row],['# extra beds that fit in the room]]<>Table2[[#This Row],['# extra beds that fit in the room2]],\"yes\",\"No\")","v":"No"}]
[null,{"$f":"IF(LEN(C452)>0,'1) Hotel information'!$C$4,\"\")","v":""},null,null,null,{"$f":"IFERROR(INDEX(Table1[Room description],MATCH('2) Room configuration'!D452,Table1[TMS],0)),\"\")","v":""},{"$f":"IFERROR(INDEX(Table1[Bedding],MATCH('2) Room configuration'!D452,Table1[TMS],0)),\"\")","v":""},null,null,{"$f":"IFERROR(INDEX(Table1[Room description],MATCH('2) Room configuration'!I452,Table1[TMS],0)),\"\")","v":""},{"$f":"IFERROR(INDEX(Table1[Bedding],MATCH('2) Room configuration'!I452,Table1[TMS],0)),\"\")","v":""},{"$f":"IFERROR(INDEX(Table1[Normal occupancy],MATCH(Table2[[#This Row],[New Room Type \n(TMS)]],Table1[TMS],0)),\"\")","v":""},null,null,null,null,"",{"$f":"IF(Table2[[#This Row],['# extra beds that fit in the room2]]<>0,LEFT(Table2[[#This Row],[New Room Type \n(TMS)]],6),\"\")","v":""},null,{"$f":"IF(Table2[[#This Row],['# extra beds that fit in the room]]<>Table2[[#This Row],['# extra beds that fit in the room2]],\"yes\",\"No\")","v":"No"}]
[null,{"$f":"IF(LEN(C453)>0,'1) Hotel information'!$C$4,\"\")","v":""},null,null,null,{"$f":"IFERROR(INDEX(Table1[Room description],MATCH('2) Room configuration'!D453,Table1[TMS],0)),\"\")","v":""},{"$f":"IFERROR(INDEX(Table1[Bedding],MATCH('2) Room configuration'!D453,Table1[TMS],0)),\"\")","v":""},null,null,{"$f":"IFERROR(INDEX(Table1[Room description],MATCH('2) Room configuration'!I453,Table1[TMS],0)),\"\")","v":""},{"$f":"IFERROR(INDEX(Table1[Bedding],MATCH('2) Room configuration'!I453,Table1[TMS],0)),\"\")","v":""},{"$f":"IFERROR(INDEX(Table1[Normal occupancy],MATCH(Table2[[#This Row],[New Room Type \n(TMS)]],Table1[TMS],0)),\"\")","v":""},null,null,null,null,"",{"$f":"IF(Table2[[#This Row],['# extra beds that fit in the room2]]<>0,LEFT(Table2[[#This Row],[New Room Type \n(TMS)]],6),\"\")","v":""},null,{"$f":"IF(Table2[[#This Row],['# extra beds that fit in the room]]<>Table2[[#This Row],['# extra beds that fit in the room2]],\"yes\",\"No\")","v":"No"}]
[null,{"$f":"IF(LEN(C454)>0,'1) Hotel information'!$C$4,\"\")","v":""},null,null,null,{"$f":"IFERROR(INDEX(Table1[Room description],MATCH('2) Room configuration'!D454,Table1[TMS],0)),\"\")","v":""},{"$f":"IFERROR(INDEX(Table1[Bedding],MATCH('2) Room configuration'!D454,Table1[TMS],0)),\"\")","v":""},null,null,{"$f":"IFERROR(INDEX(Table1[Room description],MATCH('2) Room configuration'!I454,Table1[TMS],0)),\"\")","v":""},{"$f":"IFERROR(INDEX(Table1[Bedding],MATCH('2) Room configuration'!I454,Table1[TMS],0)),\"\")","v":""},{"$f":"IFERROR(INDEX(Table1[Normal occupancy],MATCH(Table2[[#This Row],[New Room Type \n(TMS)]],Table1[TMS],0)),\"\")","v":""},null,null,null,null,"",{"$f":"IF(Table2[[#This Row],['# extra beds that fit in the room2]]<>0,LEFT(Table2[[#This Row],[New Room Type \n(TMS)]],6),\"\")","v":""},null,{"$f":"IF(Table2[[#This Row],['# extra beds that fit in the room]]<>Table2[[#This Row],['# extra beds that fit in the room2]],\"yes\",\"No\")","v":"No"}]
[null,{"$f":"IF(LEN(C455)>0,'1) Hotel information'!$C$4,\"\")","v":""},null,null,null,{"$f":"IFERROR(INDEX(Table1[Room description],MATCH('2) Room configuration'!D455,Table1[TMS],0)),\"\")","v":""},{"$f":"IFERROR(INDEX(Table1[Bedding],MATCH('2) Room configuration'!D455,Table1[TMS],0)),\"\")","v":""},null,null,{"$f":"IFERROR(INDEX(Table1[Room description],MATCH('2) Room configuration'!I455,Table1[TMS],0)),\"\")","v":""},{"$f":"IFERROR(INDEX(Table1[Bedding],MATCH('2) Room configuration'!I455,Table1[TMS],0)),\"\")","v":""},{"$f":"IFERROR(INDEX(Table1[Normal occupancy],MATCH(Table2[[#This Row],[New Room Type \n(TMS)]],Table1[TMS],0)),\"\")","v":""},null,null,null,null,"",{"$f":"IF(Table2[[#This Row],['# extra beds that fit in the room2]]<>0,LEFT(Table2[[#This Row],[New Room Type \n(TMS)]],6),\"\")","v":""},null,{"$f":"IF(Table2[[#This Row],['# extra beds that fit in the room]]<>Table2[[#This Row],['# extra beds that fit in the room2]],\"yes\",\"No\")","v":"No"}]
[null,{"$f":"IF(LEN(C456)>0,'1) Hotel information'!$C$4,\"\")","v":""},null,null,null,{"$f":"IFERROR(INDEX(Table1[Room description],MATCH('2) Room configuration'!D456,Table1[TMS],0)),\"\")","v":""},{"$f":"IFERROR(INDEX(Table1[Bedding],MATCH('2) Room configuration'!D456,Table1[TMS],0)),\"\")","v":""},null,null,{"$f":"IFERROR(INDEX(Table1[Room description],MATCH('2) Room configuration'!I456,Table1[TMS],0)),\"\")","v":""},{"$f":"IFERROR(INDEX(Table1[Bedding],MATCH('2) Room configuration'!I456,Table1[TMS],0)),\"\")","v":""},{"$f":"IFERROR(INDEX(Table1[Normal occupancy],MATCH(Table2[[#This Row],[New Room Type \n(TMS)]],Table1[TMS],0)),\"\")","v":""},null,null,null,null,"",{"$f":"IF(Table2[[#This Row],['# extra beds that fit in the room2]]<>0,LEFT(Table2[[#This Row],[New Room Type \n(TMS)]],6),\"\")","v":""},null,{"$f":"IF(Table2[[#This Row],['# extra beds that fit in the room]]<>Table2[[#This Row],['# extra beds that fit in the room2]],\"yes\",\"No\")","v":"No"}]
[null,{"$f":"IF(LEN(C457)>0,'1) Hotel information'!$C$4,\"\")","v":""},null,null,null,{"$f":"IFERROR(INDEX(Table1[Room description],MATCH('2) Room configuration'!D457,Table1[TMS],0)),\"\")","v":""},{"$f":"IFERROR(INDEX(Table1[Bedding],MATCH('2) Room configuration'!D457,Table1[TMS],0)),\"\")","v":""},null,null,{"$f":"IFERROR(INDEX(Table1[Room description],MATCH('2) Room configuration'!I457,Table1[TMS],0)),\"\")","v":""},{"$f":"IFERROR(INDEX(Table1[Bedding],MATCH('2) Room configuration'!I457,Table1[TMS],0)),\"\")","v":""},{"$f":"IFERROR(INDEX(Table1[Normal occupancy],MATCH(Table2[[#This Row],[New Room Type \n(TMS)]],Table1[TMS],0)),\"\")","v":""},null,null,null,null,"",{"$f":"IF(Table2[[#This Row],['# extra beds that fit in the room2]]<>0,LEFT(Table2[[#This Row],[New Room Type \n(TMS)]],6),\"\")","v":""},null,{"$f":"IF(Table2[[#This Row],['# extra beds that fit in the room]]<>Table2[[#This Row],['# extra beds that fit in the room2]],\"yes\",\"No\")","v":"No"}]
[null,{"$f":"IF(LEN(C458)>0,'1) Hotel information'!$C$4,\"\")","v":""},null,null,null,{"$f":"IFERROR(INDEX(Table1[Room description],MATCH('2) Room configuration'!D458,Table1[TMS],0)),\"\")","v":""},{"$f":"IFERROR(INDEX(Table1[Bedding],MATCH('2) Room configuration'!D458,Table1[TMS],0)),\"\")","v":""},null,null,{"$f":"IFERROR(INDEX(Table1[Room description],MATCH('2) Room configuration'!I458,Table1[TMS],0)),\"\")","v":""},{"$f":"IFERROR(INDEX(Table1[Bedding],MATCH('2) Room configuration'!I458,Table1[TMS],0)),\"\")","v":""},{"$f":"IFERROR(INDEX(Table1[Normal occupancy],MATCH(Table2[[#This Row],[New Room Type \n(TMS)]],Table1[TMS],0)),\"\")","v":""},null,null,null,null,"",{"$f":"IF(Table2[[#This Row],['# extra beds that fit in the room2]]<>0,LEFT(Table2[[#This Row],[New Room Type \n(TMS)]],6),\"\")","v":""},null,{"$f":"IF(Table2[[#This Row],['# extra beds that fit in the room]]<>Table2[[#This Row],['# extra beds that fit in the room2]],\"yes\",\"No\")","v":"No"}]
[null,{"$f":"IF(LEN(C459)>0,'1) Hotel information'!$C$4,\"\")","v":""},null,null,null,{"$f":"IFERROR(INDEX(Table1[Room description],MATCH('2) Room configuration'!D459,Table1[TMS],0)),\"\")","v":""},{"$f":"IFERROR(INDEX(Table1[Bedding],MATCH('2) Room configuration'!D459,Table1[TMS],0)),\"\")","v":""},null,null,{"$f":"IFERROR(INDEX(Table1[Room description],MATCH('2) Room configuration'!I459,Table1[TMS],0)),\"\")","v":""},{"$f":"IFERROR(INDEX(Table1[Bedding],MATCH('2) Room configuration'!I459,Table1[TMS],0)),\"\")","v":""},{"$f":"IFERROR(INDEX(Table1[Normal occupancy],MATCH(Table2[[#This Row],[New Room Type \n(TMS)]],Table1[TMS],0)),\"\")","v":""},null,null,null,null,"",{"$f":"IF(Table2[[#This Row],['# extra beds that fit in the room2]]<>0,LEFT(Table2[[#This Row],[New Room Type \n(TMS)]],6),\"\")","v":""},null,{"$f":"IF(Table2[[#This Row],['# extra beds that fit in the room]]<>Table2[[#This Row],['# extra beds that fit in the room2]],\"yes\",\"No\")","v":"No"}]
[null,{"$f":"IF(LEN(C460)>0,'1) Hotel information'!$C$4,\"\")","v":""},null,null,null,{"$f":"IFERROR(INDEX(Table1[Room description],MATCH('2) Room configuration'!D460,Table1[TMS],0)),\"\")","v":""},{"$f":"IFERROR(INDEX(Table1[Bedding],MATCH('2) Room configuration'!D460,Table1[TMS],0)),\"\")","v":""},null,null,{"$f":"IFERROR(INDEX(Table1[Room description],MATCH('2) Room configuration'!I460,Table1[TMS],0)),\"\")","v":""},{"$f":"IFERROR(INDEX(Table1[Bedding],MATCH('2) Room configuration'!I460,Table1[TMS],0)),\"\")","v":""},{"$f":"IFERROR(INDEX(Table1[Normal occupancy],MATCH(Table2[[#This Row],[New Room Type \n(TMS)]],Table1[TMS],0)),\"\")","v":""},null,null,null,null,{"$f":"IF(LEN(C460)>0,IF(D460=I460,\"No\",\"Yes\"),\"\")","v":""},{"$f":"IF(Table2[[#This Row],['# extra beds that fit in the room2]]<>0,LEFT(Table2[[#This Row],[New Room Type \n(TMS)]],6),\"\")","v":""},null,{"$f":"IF(Table2[[#This Row],['# extra beds that fit in the room]]<>Table2[[#This Row],['# extra beds that fit in the room2]],\"yes\",\"No\")","v":"No"}]
[null,{"$f":"IF(LEN(C461)>0,'1) Hotel information'!$C$4,\"\")","v":""},null,null,null,{"$f":"IFERROR(INDEX(Table1[Room description],MATCH('2) Room configuration'!D461,Table1[TMS],0)),\"\")","v":""},{"$f":"IFERROR(INDEX(Table1[Bedding],MATCH('2) Room configuration'!D461,Table1[TMS],0)),\"\")","v":""},null,null,{"$f":"IFERROR(INDEX(Table1[Room description],MATCH('2) Room configuration'!I461,Table1[TMS],0)),\"\")","v":""},{"$f":"IFERROR(INDEX(Table1[Bedding],MATCH('2) Room configuration'!I461,Table1[TMS],0)),\"\")","v":""},{"$f":"IFERROR(INDEX(Table1[Normal occupancy],MATCH(Table2[[#This Row],[New Room Type \n(TMS)]],Table1[TMS],0)),\"\")","v":""},null,null,null,null,"",{"$f":"IF(Table2[[#This Row],['# extra beds that fit in the room2]]<>0,LEFT(Table2[[#This Row],[New Room Type \n(TMS)]],6),\"\")","v":""},null,{"$f":"IF(Table2[[#This Row],['# extra beds that fit in the room]]<>Table2[[#This Row],['# extra beds that fit in the room2]],\"yes\",\"No\")","v":"No"}]
[null,{"$f":"IF(LEN(C462)>0,'1) Hotel information'!$C$4,\"\")","v":""},null,null,null,{"$f":"IFERROR(INDEX(Table1[Room description],MATCH('2) Room configuration'!D462,Table1[TMS],0)),\"\")","v":""},{"$f":"IFERROR(INDEX(Table1[Bedding],MATCH('2) Room configuration'!D462,Table1[TMS],0)),\"\")","v":""},null,null,{"$f":"IFERROR(INDEX(Table1[Room description],MATCH('2) Room configuration'!I462,Table1[TMS],0)),\"\")","v":""},{"$f":"IFERROR(INDEX(Table1[Bedding],MATCH('2) Room configuration'!I462,Table1[TMS],0)),\"\")","v":""},{"$f":"IFERROR(INDEX(Table1[Normal occupancy],MATCH(Table2[[#This Row],[New Room Type \n(TMS)]],Table1[TMS],0)),\"\")","v":""},null,null,null,null,"",{"$f":"IF(Table2[[#This Row],['# extra beds that fit in the room2]]<>0,LEFT(Table2[[#This Row],[New Room Type \n(TMS)]],6),\"\")","v":""},null,{"$f":"IF(Table2[[#This Row],['# extra beds that fit in the room]]<>Table2[[#This Row],['# extra beds that fit in the room2]],\"yes\",\"No\")","v":"No"}]
[null,{"$f":"IF(LEN(C463)>0,'1) Hotel information'!$C$4,\"\")","v":""},null,null,null,{"$f":"IFERROR(INDEX(Table1[Room description],MATCH('2) Room configuration'!D463,Table1[TMS],0)),\"\")","v":""},{"$f":"IFERROR(INDEX(Table1[Bedding],MATCH('2) Room configuration'!D463,Table1[TMS],0)),\"\")","v":""},null,null,{"$f":"IFERROR(INDEX(Table1[Room description],MATCH('2) Room configuration'!I463,Table1[TMS],0)),\"\")","v":""},{"$f":"IFERROR(INDEX(Table1[Bedding],MATCH('2) Room configuration'!I463,Table1[TMS],0)),\"\")","v":""},{"$f":"IFERROR(INDEX(Table1[Normal occupancy],MATCH(Table2[[#This Row],[New Room Type \n(TMS)]],Table1[TMS],0)),\"\")","v":""},null,null,null,null,"",{"$f":"IF(Table2[[#This Row],['# extra beds that fit in the room2]]<>0,LEFT(Table2[[#This Row],[New Room Type \n(TMS)]],6),\"\")","v":""},null,{"$f":"IF(Table2[[#This Row],['# extra beds that fit in the room]]<>Table2[[#This Row],['# extra beds that fit in the room2]],\"yes\",\"No\")","v":"No"}]
[null,{"$f":"IF(LEN(C464)>0,'1) Hotel information'!$C$4,\"\")","v":""},null,null,null,{"$f":"IFERROR(INDEX(Table1[Room description],MATCH('2) Room configuration'!D464,Table1[TMS],0)),\"\")","v":""},{"$f":"IFERROR(INDEX(Table1[Bedding],MATCH('2) Room configuration'!D464,Table1[TMS],0)),\"\")","v":""},null,null,{"$f":"IFERROR(INDEX(Table1[Room description],MATCH('2) Room configuration'!I464,Table1[TMS],0)),\"\")","v":""},{"$f":"IFERROR(INDEX(Table1[Bedding],MATCH('2) Room configuration'!I464,Table1[TMS],0)),\"\")","v":""},{"$f":"IFERROR(INDEX(Table1[Normal occupancy],MATCH(Table2[[#This Row],[New Room Type \n(TMS)]],Table1[TMS],0)),\"\")","v":""},null,null,null,null,"",{"$f":"IF(Table2[[#This Row],['# extra beds that fit in the room2]]<>0,LEFT(Table2[[#This Row],[New Room Type \n(TMS)]],6),\"\")","v":""},null,{"$f":"IF(Table2[[#This Row],['# extra beds that fit in the room]]<>Table2[[#This Row],['# extra beds that fit in the room2]],\"yes\",\"No\")","v":"No"}]
[null,{"$f":"IF(LEN(C465)>0,'1) Hotel information'!$C$4,\"\")","v":""},null,null,null,{"$f":"IFERROR(INDEX(Table1[Room description],MATCH('2) Room configuration'!D465,Table1[TMS],0)),\"\")","v":""},{"$f":"IFERROR(INDEX(Table1[Bedding],MATCH('2) Room configuration'!D465,Table1[TMS],0)),\"\")","v":""},null,null,{"$f":"IFERROR(INDEX(Table1[Room description],MATCH('2) Room configuration'!I465,Table1[TMS],0)),\"\")","v":""},{"$f":"IFERROR(INDEX(Table1[Bedding],MATCH('2) Room configuration'!I465,Table1[TMS],0)),\"\")","v":""},{"$f":"IFERROR(INDEX(Table1[Normal occupancy],MATCH(Table2[[#This Row],[New Room Type \n(TMS)]],Table1[TMS],0)),\"\")","v":""},null,null,null,null,"",{"$f":"IF(Table2[[#This Row],['# extra beds that fit in the room2]]<>0,LEFT(Table2[[#This Row],[New Room Type \n(TMS)]],6),\"\")","v":""},null,{"$f":"IF(Table2[[#This Row],['# extra beds that fit in the room]]<>Table2[[#This Row],['# extra beds that fit in the room2]],\"yes\",\"No\")","v":"No"}]
[null,{"$f":"IF(LEN(C466)>0,'1) Hotel information'!$C$4,\"\")","v":""},null,null,null,{"$f":"IFERROR(INDEX(Table1[Room description],MATCH('2) Room configuration'!D466,Table1[TMS],0)),\"\")","v":""},{"$f":"IFERROR(INDEX(Table1[Bedding],MATCH('2) Room configuration'!D466,Table1[TMS],0)),\"\")","v":""},null,null,{"$f":"IFERROR(INDEX(Table1[Room description],MATCH('2) Room configuration'!I466,Table1[TMS],0)),\"\")","v":""},{"$f":"IFERROR(INDEX(Table1[Bedding],MATCH('2) Room configuration'!I466,Table1[TMS],0)),\"\")","v":""},{"$f":"IFERROR(INDEX(Table1[Normal occupancy],MATCH(Table2[[#This Row],[New Room Type \n(TMS)]],Table1[TMS],0)),\"\")","v":""},null,null,null,null,"",{"$f":"IF(Table2[[#This Row],['# extra beds that fit in the room2]]<>0,LEFT(Table2[[#This Row],[New Room Type \n(TMS)]],6),\"\")","v":""},null,{"$f":"IF(Table2[[#This Row],['# extra beds that fit in the room]]<>Table2[[#This Row],['# extra beds that fit in the room2]],\"yes\",\"No\")","v":"No"}]
[null,{"$f":"IF(LEN(C467)>0,'1) Hotel information'!$C$4,\"\")","v":""},null,null,null,{"$f":"IFERROR(INDEX(Table1[Room description],MATCH('2) Room configuration'!D467,Table1[TMS],0)),\"\")","v":""},{"$f":"IFERROR(INDEX(Table1[Bedding],MATCH('2) Room configuration'!D467,Table1[TMS],0)),\"\")","v":""},null,null,{"$f":"IFERROR(INDEX(Table1[Room description],MATCH('2) Room configuration'!I467,Table1[TMS],0)),\"\")","v":""},{"$f":"IFERROR(INDEX(Table1[Bedding],MATCH('2) Room configuration'!I467,Table1[TMS],0)),\"\")","v":""},{"$f":"IFERROR(INDEX(Table1[Normal occupancy],MATCH(Table2[[#This Row],[New Room Type \n(TMS)]],Table1[TMS],0)),\"\")","v":""},null,null,null,null,"",{"$f":"IF(Table2[[#This Row],['# extra beds that fit in the room2]]<>0,LEFT(Table2[[#This Row],[New Room Type \n(TMS)]],6),\"\")","v":""},null,{"$f":"IF(Table2[[#This Row],['# extra beds that fit in the room]]<>Table2[[#This Row],['# extra beds that fit in the room2]],\"yes\",\"No\")","v":"No"}]
[null,{"$f":"IF(LEN(C468)>0,'1) Hotel information'!$C$4,\"\")","v":""},null,null,null,{"$f":"IFERROR(INDEX(Table1[Room description],MATCH('2) Room configuration'!D468,Table1[TMS],0)),\"\")","v":""},{"$f":"IFERROR(INDEX(Table1[Bedding],MATCH('2) Room configuration'!D468,Table1[TMS],0)),\"\")","v":""},null,null,{"$f":"IFERROR(INDEX(Table1[Room description],MATCH('2) Room configuration'!I468,Table1[TMS],0)),\"\")","v":""},{"$f":"IFERROR(INDEX(Table1[Bedding],MATCH('2) Room configuration'!I468,Table1[TMS],0)),\"\")","v":""},{"$f":"IFERROR(INDEX(Table1[Normal occupancy],MATCH(Table2[[#This Row],[New Room Type \n(TMS)]],Table1[TMS],0)),\"\")","v":""},null,null,null,null,"",{"$f":"IF(Table2[[#This Row],['# extra beds that fit in the room2]]<>0,LEFT(Table2[[#This Row],[New Room Type \n(TMS)]],6),\"\")","v":""},null,{"$f":"IF(Table2[[#This Row],['# extra beds that fit in the room]]<>Table2[[#This Row],['# extra beds that fit in the room2]],\"yes\",\"No\")","v":"No"}]
[null,{"$f":"IF(LEN(C469)>0,'1) Hotel information'!$C$4,\"\")","v":""},null,null,null,{"$f":"IFERROR(INDEX(Table1[Room description],MATCH('2) Room configuration'!D469,Table1[TMS],0)),\"\")","v":""},{"$f":"IFERROR(INDEX(Table1[Bedding],MATCH('2) Room configuration'!D469,Table1[TMS],0)),\"\")","v":""},null,null,{"$f":"IFERROR(INDEX(Table1[Room description],MATCH('2) Room configuration'!I469,Table1[TMS],0)),\"\")","v":""},{"$f":"IFERROR(INDEX(Table1[Bedding],MATCH('2) Room configuration'!I469,Table1[TMS],0)),\"\")","v":""},{"$f":"IFERROR(INDEX(Table1[Normal occupancy],MATCH(Table2[[#This Row],[New Room Type \n(TMS)]],Table1[TMS],0)),\"\")","v":""},null,null,null,null,"",{"$f":"IF(Table2[[#This Row],['# extra beds that fit in the room2]]<>0,LEFT(Table2[[#This Row],[New Room Type \n(TMS)]],6),\"\")","v":""},null,{"$f":"IF(Table2[[#This Row],['# extra beds that fit in the room]]<>Table2[[#This Row],['# extra beds that fit in the room2]],\"yes\",\"No\")","v":"No"}]
[null,{"$f":"IF(LEN(C470)>0,'1) Hotel information'!$C$4,\"\")","v":""},null,null,null,{"$f":"IFERROR(INDEX(Table1[Room description],MATCH('2) Room configuration'!D470,Table1[TMS],0)),\"\")","v":""},{"$f":"IFERROR(INDEX(Table1[Bedding],MATCH('2) Room configuration'!D470,Table1[TMS],0)),\"\")","v":""},null,null,{"$f":"IFERROR(INDEX(Table1[Room description],MATCH('2) Room configuration'!I470,Table1[TMS],0)),\"\")","v":""},{"$f":"IFERROR(INDEX(Table1[Bedding],MATCH('2) Room configuration'!I470,Table1[TMS],0)),\"\")","v":""},{"$f":"IFERROR(INDEX(Table1[Normal occupancy],MATCH(Table2[[#This Row],[New Room Type \n(TMS)]],Table1[TMS],0)),\"\")","v":""},null,null,null,null,"",{"$f":"IF(Table2[[#This Row],['# extra beds that fit in the room2]]<>0,LEFT(Table2[[#This Row],[New Room Type \n(TMS)]],6),\"\")","v":""},null,{"$f":"IF(Table2[[#This Row],['# extra beds that fit in the room]]<>Table2[[#This Row],['# extra beds that fit in the room2]],\"yes\",\"No\")","v":"No"}]
[null,{"$f":"IF(LEN(C471)>0,'1) Hotel information'!$C$4,\"\")","v":""},null,null,null,{"$f":"IFERROR(INDEX(Table1[Room description],MATCH('2) Room configuration'!D471,Table1[TMS],0)),\"\")","v":""},{"$f":"IFERROR(INDEX(Table1[Bedding],MATCH('2) Room configuration'!D471,Table1[TMS],0)),\"\")","v":""},null,null,{"$f":"IFERROR(INDEX(Table1[Room description],MATCH('2) Room configuration'!I471,Table1[TMS],0)),\"\")","v":""},{"$f":"IFERROR(INDEX(Table1[Bedding],MATCH('2) Room configuration'!I471,Table1[TMS],0)),\"\")","v":""},{"$f":"IFERROR(INDEX(Table1[Normal occupancy],MATCH(Table2[[#This Row],[New Room Type \n(TMS)]],Table1[TMS],0)),\"\")","v":""},null,null,null,null,"",{"$f":"IF(Table2[[#This Row],['# extra beds that fit in the room2]]<>0,LEFT(Table2[[#This Row],[New Room Type \n(TMS)]],6),\"\")","v":""},null,{"$f":"IF(Table2[[#This Row],['# extra beds that fit in the room]]<>Table2[[#This Row],['# extra beds that fit in the room2]],\"yes\",\"No\")","v":"No"}]
[null,{"$f":"IF(LEN(C472)>0,'1) Hotel information'!$C$4,\"\")","v":""},null,null,null,{"$f":"IFERROR(INDEX(Table1[Room description],MATCH('2) Room configuration'!D472,Table1[TMS],0)),\"\")","v":""},{"$f":"IFERROR(INDEX(Table1[Bedding],MATCH('2) Room configuration'!D472,Table1[TMS],0)),\"\")","v":""},null,null,{"$f":"IFERROR(INDEX(Table1[Room description],MATCH('2) Room configuration'!I472,Table1[TMS],0)),\"\")","v":""},{"$f":"IFERROR(INDEX(Table1[Bedding],MATCH('2) Room configuration'!I472,Table1[TMS],0)),\"\")","v":""},{"$f":"IFERROR(INDEX(Table1[Normal occupancy],MATCH(Table2[[#This Row],[New Room Type \n(TMS)]],Table1[TMS],0)),\"\")","v":""},null,null,null,null,"",{"$f":"IF(Table2[[#This Row],['# extra beds that fit in the room2]]<>0,LEFT(Table2[[#This Row],[New Room Type \n(TMS)]],6),\"\")","v":""},null,{"$f":"IF(Table2[[#This Row],['# extra beds that fit in the room]]<>Table2[[#This Row],['# extra beds that fit in the room2]],\"yes\",\"No\")","v":"No"}]
[null,{"$f":"IF(LEN(C473)>0,'1) Hotel information'!$C$4,\"\")","v":""},null,null,null,{"$f":"IFERROR(INDEX(Table1[Room description],MATCH('2) Room configuration'!D473,Table1[TMS],0)),\"\")","v":""},{"$f":"IFERROR(INDEX(Table1[Bedding],MATCH('2) Room configuration'!D473,Table1[TMS],0)),\"\")","v":""},null,null,{"$f":"IFERROR(INDEX(Table1[Room description],MATCH('2) Room configuration'!I473,Table1[TMS],0)),\"\")","v":""},{"$f":"IFERROR(INDEX(Table1[Bedding],MATCH('2) Room configuration'!I473,Table1[TMS],0)),\"\")","v":""},{"$f":"IFERROR(INDEX(Table1[Normal occupancy],MATCH(Table2[[#This Row],[New Room Type \n(TMS)]],Table1[TMS],0)),\"\")","v":""},null,null,null,null,"",{"$f":"IF(Table2[[#This Row],['# extra beds that fit in the room2]]<>0,LEFT(Table2[[#This Row],[New Room Type \n(TMS)]],6),\"\")","v":""},null,{"$f":"IF(Table2[[#This Row],['# extra beds that fit in the room]]<>Table2[[#This Row],['# extra beds that fit in the room2]],\"yes\",\"No\")","v":"No"}]
[null,{"$f":"IF(LEN(C474)>0,'1) Hotel information'!$C$4,\"\")","v":""},null,null,null,{"$f":"IFERROR(INDEX(Table1[Room description],MATCH('2) Room configuration'!D474,Table1[TMS],0)),\"\")","v":""},{"$f":"IFERROR(INDEX(Table1[Bedding],MATCH('2) Room configuration'!D474,Table1[TMS],0)),\"\")","v":""},null,null,{"$f":"IFERROR(INDEX(Table1[Room description],MATCH('2) Room configuration'!I474,Table1[TMS],0)),\"\")","v":""},{"$f":"IFERROR(INDEX(Table1[Bedding],MATCH('2) Room configuration'!I474,Table1[TMS],0)),\"\")","v":""},{"$f":"IFERROR(INDEX(Table1[Normal occupancy],MATCH(Table2[[#This Row],[New Room Type \n(TMS)]],Table1[TMS],0)),\"\")","v":""},null,null,null,null,"",{"$f":"IF(Table2[[#This Row],['# extra beds that fit in the room2]]<>0,LEFT(Table2[[#This Row],[New Room Type \n(TMS)]],6),\"\")","v":""},null,{"$f":"IF(Table2[[#This Row],['# extra beds that fit in the room]]<>Table2[[#This Row],['# extra beds that fit in the room2]],\"yes\",\"No\")","v":"No"}]
[null,{"$f":"IF(LEN(C475)>0,'1) Hotel information'!$C$4,\"\")","v":""},null,null,null,{"$f":"IFERROR(INDEX(Table1[Room description],MATCH('2) Room configuration'!D475,Table1[TMS],0)),\"\")","v":""},{"$f":"IFERROR(INDEX(Table1[Bedding],MATCH('2) Room configuration'!D475,Table1[TMS],0)),\"\")","v":""},null,null,{"$f":"IFERROR(INDEX(Table1[Room description],MATCH('2) Room configuration'!I475,Table1[TMS],0)),\"\")","v":""},{"$f":"IFERROR(INDEX(Table1[Bedding],MATCH('2) Room configuration'!I475,Table1[TMS],0)),\"\")","v":""},{"$f":"IFERROR(INDEX(Table1[Normal occupancy],MATCH(Table2[[#This Row],[New Room Type \n(TMS)]],Table1[TMS],0)),\"\")","v":""},null,null,null,null,"",{"$f":"IF(Table2[[#This Row],['# extra beds that fit in the room2]]<>0,LEFT(Table2[[#This Row],[New Room Type \n(TMS)]],6),\"\")","v":""},null,{"$f":"IF(Table2[[#This Row],['# extra beds that fit in the room]]<>Table2[[#This Row],['# extra beds that fit in the room2]],\"yes\",\"No\")","v":"No"}]
[null,{"$f":"IF(LEN(C476)>0,'1) Hotel information'!$C$4,\"\")","v":""},null,null,null,{"$f":"IFERROR(INDEX(Table1[Room description],MATCH('2) Room configuration'!D476,Table1[TMS],0)),\"\")","v":""},{"$f":"IFERROR(INDEX(Table1[Bedding],MATCH('2) Room configuration'!D476,Table1[TMS],0)),\"\")","v":""},null,null,{"$f":"IFERROR(INDEX(Table1[Room description],MATCH('2) Room configuration'!I476,Table1[TMS],0)),\"\")","v":""},{"$f":"IFERROR(INDEX(Table1[Bedding],MATCH('2) Room configuration'!I476,Table1[TMS],0)),\"\")","v":""},{"$f":"IFERROR(INDEX(Table1[Normal occupancy],MATCH(Table2[[#This Row],[New Room Type \n(TMS)]],Table1[TMS],0)),\"\")","v":""},null,null,null,null,"",{"$f":"IF(Table2[[#This Row],['# extra beds that fit in the room2]]<>0,LEFT(Table2[[#This Row],[New Room Type \n(TMS)]],6),\"\")","v":""},null,{"$f":"IF(Table2[[#This Row],['# extra beds that fit in the room]]<>Table2[[#This Row],['# extra beds that fit in the room2]],\"yes\",\"No\")","v":"No"}]
[null,{"$f":"IF(LEN(C477)>0,'1) Hotel information'!$C$4,\"\")","v":""},null,null,null,{"$f":"IFERROR(INDEX(Table1[Room description],MATCH('2) Room configuration'!D477,Table1[TMS],0)),\"\")","v":""},{"$f":"IFERROR(INDEX(Table1[Bedding],MATCH('2) Room configuration'!D477,Table1[TMS],0)),\"\")","v":""},null,null,{"$f":"IFERROR(INDEX(Table1[Room description],MATCH('2) Room configuration'!I477,Table1[TMS],0)),\"\")","v":""},{"$f":"IFERROR(INDEX(Table1[Bedding],MATCH('2) Room configuration'!I477,Table1[TMS],0)),\"\")","v":""},{"$f":"IFERROR(INDEX(Table1[Normal occupancy],MATCH(Table2[[#This Row],[New Room Type \n(TMS)]],Table1[TMS],0)),\"\")","v":""},null,null,null,null,"",{"$f":"IF(Table2[[#This Row],['# extra beds that fit in the room2]]<>0,LEFT(Table2[[#This Row],[New Room Type \n(TMS)]],6),\"\")","v":""},null,{"$f":"IF(Table2[[#This Row],['# extra beds that fit in the room]]<>Table2[[#This Row],['# extra beds that fit in the room2]],\"yes\",\"No\")","v":"No"}]
[null,{"$f":"IF(LEN(C478)>0,'1) Hotel information'!$C$4,\"\")","v":""},null,null,null,{"$f":"IFERROR(INDEX(Table1[Room description],MATCH('2) Room configuration'!D478,Table1[TMS],0)),\"\")","v":""},{"$f":"IFERROR(INDEX(Table1[Bedding],MATCH('2) Room configuration'!D478,Table1[TMS],0)),\"\")","v":""},null,null,{"$f":"IFERROR(INDEX(Table1[Room description],MATCH('2) Room configuration'!I478,Table1[TMS],0)),\"\")","v":""},{"$f":"IFERROR(INDEX(Table1[Bedding],MATCH('2) Room configuration'!I478,Table1[TMS],0)),\"\")","v":""},{"$f":"IFERROR(INDEX(Table1[Normal occupancy],MATCH(Table2[[#This Row],[New Room Type \n(TMS)]],Table1[TMS],0)),\"\")","v":""},null,null,null,null,"",{"$f":"IF(Table2[[#This Row],['# extra beds that fit in the room2]]<>0,LEFT(Table2[[#This Row],[New Room Type \n(TMS)]],6),\"\")","v":""},null,{"$f":"IF(Table2[[#This Row],['# extra beds that fit in the room]]<>Table2[[#This Row],['# extra beds that fit in the room2]],\"yes\",\"No\")","v":"No"}]
[null,{"$f":"IF(LEN(C479)>0,'1) Hotel information'!$C$4,\"\")","v":""},null,null,null,{"$f":"IFERROR(INDEX(Table1[Room description],MATCH('2) Room configuration'!D479,Table1[TMS],0)),\"\")","v":""},{"$f":"IFERROR(INDEX(Table1[Bedding],MATCH('2) Room configuration'!D479,Table1[TMS],0)),\"\")","v":""},null,null,{"$f":"IFERROR(INDEX(Table1[Room description],MATCH('2) Room configuration'!I479,Table1[TMS],0)),\"\")","v":""},{"$f":"IFERROR(INDEX(Table1[Bedding],MATCH('2) Room configuration'!I479,Table1[TMS],0)),\"\")","v":""},{"$f":"IFERROR(INDEX(Table1[Normal occupancy],MATCH(Table2[[#This Row],[New Room Type \n(TMS)]],Table1[TMS],0)),\"\")","v":""},null,null,null,null,"",{"$f":"IF(Table2[[#This Row],['# extra beds that fit in the room2]]<>0,LEFT(Table2[[#This Row],[New Room Type \n(TMS)]],6),\"\")","v":""},null,{"$f":"IF(Table2[[#This Row],['# extra beds that fit in the room]]<>Table2[[#This Row],['# extra beds that fit in the room2]],\"yes\",\"No\")","v":"No"}]
[null,{"$f":"IF(LEN(C480)>0,'1) Hotel information'!$C$4,\"\")","v":""},null,null,null,{"$f":"IFERROR(INDEX(Table1[Room description],MATCH('2) Room configuration'!D480,Table1[TMS],0)),\"\")","v":""},{"$f":"IFERROR(INDEX(Table1[Bedding],MATCH('2) Room configuration'!D480,Table1[TMS],0)),\"\")","v":""},null,null,{"$f":"IFERROR(INDEX(Table1[Room description],MATCH('2) Room configuration'!I480,Table1[TMS],0)),\"\")","v":""},{"$f":"IFERROR(INDEX(Table1[Bedding],MATCH('2) Room configuration'!I480,Table1[TMS],0)),\"\")","v":""},{"$f":"IFERROR(INDEX(Table1[Normal occupancy],MATCH(Table2[[#This Row],[New Room Type \n(TMS)]],Table1[TMS],0)),\"\")","v":""},null,null,null,null,"",{"$f":"IF(Table2[[#This Row],['# extra beds that fit in the room2]]<>0,LEFT(Table2[[#This Row],[New Room Type \n(TMS)]],6),\"\")","v":""},null,{"$f":"IF(Table2[[#This Row],['# extra beds that fit in the room]]<>Table2[[#This Row],['# extra beds that fit in the room2]],\"yes\",\"No\")","v":"No"}]
[null,{"$f":"IF(LEN(C481)>0,'1) Hotel information'!$C$4,\"\")","v":""},null,null,null,{"$f":"IFERROR(INDEX(Table1[Room description],MATCH('2) Room configuration'!D481,Table1[TMS],0)),\"\")","v":""},{"$f":"IFERROR(INDEX(Table1[Bedding],MATCH('2) Room configuration'!D481,Table1[TMS],0)),\"\")","v":""},null,null,{"$f":"IFERROR(INDEX(Table1[Room description],MATCH('2) Room configuration'!I481,Table1[TMS],0)),\"\")","v":""},{"$f":"IFERROR(INDEX(Table1[Bedding],MATCH('2) Room configuration'!I481,Table1[TMS],0)),\"\")","v":""},{"$f":"IFERROR(INDEX(Table1[Normal occupancy],MATCH(Table2[[#This Row],[New Room Type \n(TMS)]],Table1[TMS],0)),\"\")","v":""},null,null,null,null,"",{"$f":"IF(Table2[[#This Row],['# extra beds that fit in the room2]]<>0,LEFT(Table2[[#This Row],[New Room Type \n(TMS)]],6),\"\")","v":""},null,{"$f":"IF(Table2[[#This Row],['# extra beds that fit in the room]]<>Table2[[#This Row],['# extra beds that fit in the room2]],\"yes\",\"No\")","v":"No"}]
[null,{"$f":"IF(LEN(C482)>0,'1) Hotel information'!$C$4,\"\")","v":""},null,null,null,{"$f":"IFERROR(INDEX(Table1[Room description],MATCH('2) Room configuration'!D482,Table1[TMS],0)),\"\")","v":""},{"$f":"IFERROR(INDEX(Table1[Bedding],MATCH('2) Room configuration'!D482,Table1[TMS],0)),\"\")","v":""},null,null,{"$f":"IFERROR(INDEX(Table1[Room description],MATCH('2) Room configuration'!I482,Table1[TMS],0)),\"\")","v":""},{"$f":"IFERROR(INDEX(Table1[Bedding],MATCH('2) Room configuration'!I482,Table1[TMS],0)),\"\")","v":""},{"$f":"IFERROR(INDEX(Table1[Normal occupancy],MATCH(Table2[[#This Row],[New Room Type \n(TMS)]],Table1[TMS],0)),\"\")","v":""},null,null,null,null,"",{"$f":"IF(Table2[[#This Row],['# extra beds that fit in the room2]]<>0,LEFT(Table2[[#This Row],[New Room Type \n(TMS)]],6),\"\")","v":""},null,{"$f":"IF(Table2[[#This Row],['# extra beds that fit in the room]]<>Table2[[#This Row],['# extra beds that fit in the room2]],\"yes\",\"No\")","v":"No"}]
[null,{"$f":"IF(LEN(C483)>0,'1) Hotel information'!$C$4,\"\")","v":""},null,null,null,{"$f":"IFERROR(INDEX(Table1[Room description],MATCH('2) Room configuration'!D483,Table1[TMS],0)),\"\")","v":""},{"$f":"IFERROR(INDEX(Table1[Bedding],MATCH('2) Room configuration'!D483,Table1[TMS],0)),\"\")","v":""},null,null,{"$f":"IFERROR(INDEX(Table1[Room description],MATCH('2) Room configuration'!I483,Table1[TMS],0)),\"\")","v":""},{"$f":"IFERROR(INDEX(Table1[Bedding],MATCH('2) Room configuration'!I483,Table1[TMS],0)),\"\")","v":""},{"$f":"IFERROR(INDEX(Table1[Normal occupancy],MATCH(Table2[[#This Row],[New Room Type \n(TMS)]],Table1[TMS],0)),\"\")","v":""},null,null,null,null,"",{"$f":"IF(Table2[[#This Row],['# extra beds that fit in the room2]]<>0,LEFT(Table2[[#This Row],[New Room Type \n(TMS)]],6),\"\")","v":""},null,{"$f":"IF(Table2[[#This Row],['# extra beds that fit in the room]]<>Table2[[#This Row],['# extra beds that fit in the room2]],\"yes\",\"No\")","v":"No"}]
[null,{"$f":"IF(LEN(C484)>0,'1) Hotel information'!$C$4,\"\")","v":""},null,null,null,{"$f":"IFERROR(INDEX(Table1[Room description],MATCH('2) Room configuration'!D484,Table1[TMS],0)),\"\")","v":""},{"$f":"IFERROR(INDEX(Table1[Bedding],MATCH('2) Room configuration'!D484,Table1[TMS],0)),\"\")","v":""},null,null,{"$f":"IFERROR(INDEX(Table1[Room description],MATCH('2) Room configuration'!I484,Table1[TMS],0)),\"\")","v":""},{"$f":"IFERROR(INDEX(Table1[Bedding],MATCH('2) Room configuration'!I484,Table1[TMS],0)),\"\")","v":""},{"$f":"IFERROR(INDEX(Table1[Normal occupancy],MATCH(Table2[[#This Row],[New Room Type \n(TMS)]],Table1[TMS],0)),\"\")","v":""},null,null,null,null,"",{"$f":"IF(Table2[[#This Row],['# extra beds that fit in the room2]]<>0,LEFT(Table2[[#This Row],[New Room Type \n(TMS)]],6),\"\")","v":""},null,{"$f":"IF(Table2[[#This Row],['# extra beds that fit in the room]]<>Table2[[#This Row],['# extra beds that fit in the room2]],\"yes\",\"No\")","v":"No"}]
[null,{"$f":"IF(LEN(C485)>0,'1) Hotel information'!$C$4,\"\")","v":""},null,null,null,{"$f":"IFERROR(INDEX(Table1[Room description],MATCH('2) Room configuration'!D485,Table1[TMS],0)),\"\")","v":""},{"$f":"IFERROR(INDEX(Table1[Bedding],MATCH('2) Room configuration'!D485,Table1[TMS],0)),\"\")","v":""},null,null,{"$f":"IFERROR(INDEX(Table1[Room description],MATCH('2) Room configuration'!I485,Table1[TMS],0)),\"\")","v":""},{"$f":"IFERROR(INDEX(Table1[Bedding],MATCH('2) Room configuration'!I485,Table1[TMS],0)),\"\")","v":""},{"$f":"IFERROR(INDEX(Table1[Normal occupancy],MATCH(Table2[[#This Row],[New Room Type \n(TMS)]],Table1[TMS],0)),\"\")","v":""},null,null,null,null,"",{"$f":"IF(Table2[[#This Row],['# extra beds that fit in the room2]]<>0,LEFT(Table2[[#This Row],[New Room Type \n(TMS)]],6),\"\")","v":""},null,{"$f":"IF(Table2[[#This Row],['# extra beds that fit in the room]]<>Table2[[#This Row],['# extra beds that fit in the room2]],\"yes\",\"No\")","v":"No"}]
[null,{"$f":"IF(LEN(C486)>0,'1) Hotel information'!$C$4,\"\")","v":""},null,null,null,{"$f":"IFERROR(INDEX(Table1[Room description],MATCH('2) Room configuration'!D486,Table1[TMS],0)),\"\")","v":""},{"$f":"IFERROR(INDEX(Table1[Bedding],MATCH('2) Room configuration'!D486,Table1[TMS],0)),\"\")","v":""},null,null,{"$f":"IFERROR(INDEX(Table1[Room description],MATCH('2) Room configuration'!I486,Table1[TMS],0)),\"\")","v":""},{"$f":"IFERROR(INDEX(Table1[Bedding],MATCH('2) Room configuration'!I486,Table1[TMS],0)),\"\")","v":""},{"$f":"IFERROR(INDEX(Table1[Normal occupancy],MATCH(Table2[[#This Row],[New Room Type \n(TMS)]],Table1[TMS],0)),\"\")","v":""},null,null,null,null,"",{"$f":"IF(Table2[[#This Row],['# extra beds that fit in the room2]]<>0,LEFT(Table2[[#This Row],[New Room Type \n(TMS)]],6),\"\")","v":""},null,{"$f":"IF(Table2[[#This Row],['# extra beds that fit in the room]]<>Table2[[#This Row],['# extra beds that fit in the room2]],\"yes\",\"No\")","v":"No"}]
[null,{"$f":"IF(LEN(C487)>0,'1) Hotel information'!$C$4,\"\")","v":""},null,null,null,{"$f":"IFERROR(INDEX(Table1[Room description],MATCH('2) Room configuration'!D487,Table1[TMS],0)),\"\")","v":""},{"$f":"IFERROR(INDEX(Table1[Bedding],MATCH('2) Room configuration'!D487,Table1[TMS],0)),\"\")","v":""},null,null,{"$f":"IFERROR(INDEX(Table1[Room description],MATCH('2) Room configuration'!I487,Table1[TMS],0)),\"\")","v":""},{"$f":"IFERROR(INDEX(Table1[Bedding],MATCH('2) Room configuration'!I487,Table1[TMS],0)),\"\")","v":""},{"$f":"IFERROR(INDEX(Table1[Normal occupancy],MATCH(Table2[[#This Row],[New Room Type \n(TMS)]],Table1[TMS],0)),\"\")","v":""},null,null,null,null,"",{"$f":"IF(Table2[[#This Row],['# extra beds that fit in the room2]]<>0,LEFT(Table2[[#This Row],[New Room Type \n(TMS)]],6),\"\")","v":""},null,{"$f":"IF(Table2[[#This Row],['# extra beds that fit in the room]]<>Table2[[#This Row],['# extra beds that fit in the room2]],\"yes\",\"No\")","v":"No"}]
[null,{"$f":"IF(LEN(C488)>0,'1) Hotel information'!$C$4,\"\")","v":""},null,null,null,{"$f":"IFERROR(INDEX(Table1[Room description],MATCH('2) Room configuration'!D488,Table1[TMS],0)),\"\")","v":""},{"$f":"IFERROR(INDEX(Table1[Bedding],MATCH('2) Room configuration'!D488,Table1[TMS],0)),\"\")","v":""},null,null,{"$f":"IFERROR(INDEX(Table1[Room description],MATCH('2) Room configuration'!I488,Table1[TMS],0)),\"\")","v":""},{"$f":"IFERROR(INDEX(Table1[Bedding],MATCH('2) Room configuration'!I488,Table1[TMS],0)),\"\")","v":""},{"$f":"IFERROR(INDEX(Table1[Normal occupancy],MATCH(Table2[[#This Row],[New Room Type \n(TMS)]],Table1[TMS],0)),\"\")","v":""},null,null,null,null,"",{"$f":"IF(Table2[[#This Row],['# extra beds that fit in the room2]]<>0,LEFT(Table2[[#This Row],[New Room Type \n(TMS)]],6),\"\")","v":""},null,{"$f":"IF(Table2[[#This Row],['# extra beds that fit in the room]]<>Table2[[#This Row],['# extra beds that fit in the room2]],\"yes\",\"No\")","v":"No"}]
[null,{"$f":"IF(LEN(C489)>0,'1) Hotel information'!$C$4,\"\")","v":""},null,null,null,{"$f":"IFERROR(INDEX(Table1[Room description],MATCH('2) Room configuration'!D489,Table1[TMS],0)),\"\")","v":""},{"$f":"IFERROR(INDEX(Table1[Bedding],MATCH('2) Room configuration'!D489,Table1[TMS],0)),\"\")","v":""},null,null,{"$f":"IFERROR(INDEX(Table1[Room description],MATCH('2) Room configuration'!I489,Table1[TMS],0)),\"\")","v":""},{"$f":"IFERROR(INDEX(Table1[Bedding],MATCH('2) Room configuration'!I489,Table1[TMS],0)),\"\")","v":""},{"$f":"IFERROR(INDEX(Table1[Normal occupancy],MATCH(Table2[[#This Row],[New Room Type \n(TMS)]],Table1[TMS],0)),\"\")","v":""},null,null,null,null,"",{"$f":"IF(Table2[[#This Row],['# extra beds that fit in the room2]]<>0,LEFT(Table2[[#This Row],[New Room Type \n(TMS)]],6),\"\")","v":""},null,{"$f":"IF(Table2[[#This Row],['# extra beds that fit in the room]]<>Table2[[#This Row],['# extra beds that fit in the room2]],\"yes\",\"No\")","v":"No"}]
[null,{"$f":"IF(LEN(C490)>0,'1) Hotel information'!$C$4,\"\")","v":""},null,null,null,{"$f":"IFERROR(INDEX(Table1[Room description],MATCH('2) Room configuration'!D490,Table1[TMS],0)),\"\")","v":""},{"$f":"IFERROR(INDEX(Table1[Bedding],MATCH('2) Room configuration'!D490,Table1[TMS],0)),\"\")","v":""},null,null,{"$f":"IFERROR(INDEX(Table1[Room description],MATCH('2) Room configuration'!I490,Table1[TMS],0)),\"\")","v":""},{"$f":"IFERROR(INDEX(Table1[Bedding],MATCH('2) Room configuration'!I490,Table1[TMS],0)),\"\")","v":""},{"$f":"IFERROR(INDEX(Table1[Normal occupancy],MATCH(Table2[[#This Row],[New Room Type \n(TMS)]],Table1[TMS],0)),\"\")","v":""},null,null,null,null,"",{"$f":"IF(Table2[[#This Row],['# extra beds that fit in the room2]]<>0,LEFT(Table2[[#This Row],[New Room Type \n(TMS)]],6),\"\")","v":""},null,{"$f":"IF(Table2[[#This Row],['# extra beds that fit in the room]]<>Table2[[#This Row],['# extra beds that fit in the room2]],\"yes\",\"No\")","v":"No"}]
[null,{"$f":"IF(LEN(C491)>0,'1) Hotel information'!$C$4,\"\")","v":""},null,null,null,{"$f":"IFERROR(INDEX(Table1[Room description],MATCH('2) Room configuration'!D491,Table1[TMS],0)),\"\")","v":""},{"$f":"IFERROR(INDEX(Table1[Bedding],MATCH('2) Room configuration'!D491,Table1[TMS],0)),\"\")","v":""},null,null,{"$f":"IFERROR(INDEX(Table1[Room description],MATCH('2) Room configuration'!I491,Table1[TMS],0)),\"\")","v":""},{"$f":"IFERROR(INDEX(Table1[Bedding],MATCH('2) Room configuration'!I491,Table1[TMS],0)),\"\")","v":""},{"$f":"IFERROR(INDEX(Table1[Normal occupancy],MATCH(Table2[[#This Row],[New Room Type \n(TMS)]],Table1[TMS],0)),\"\")","v":""},null,null,null,null,"",{"$f":"IF(Table2[[#This Row],['# extra beds that fit in the room2]]<>0,LEFT(Table2[[#This Row],[New Room Type \n(TMS)]],6),\"\")","v":""},null,{"$f":"IF(Table2[[#This Row],['# extra beds that fit in the room]]<>Table2[[#This Row],['# extra beds that fit in the room2]],\"yes\",\"No\")","v":"No"}]
[null,{"$f":"IF(LEN(C492)>0,'1) Hotel information'!$C$4,\"\")","v":""},null,null,null,{"$f":"IFERROR(INDEX(Table1[Room description],MATCH('2) Room configuration'!D492,Table1[TMS],0)),\"\")","v":""},{"$f":"IFERROR(INDEX(Table1[Bedding],MATCH('2) Room configuration'!D492,Table1[TMS],0)),\"\")","v":""},null,null,{"$f":"IFERROR(INDEX(Table1[Room description],MATCH('2) Room configuration'!I492,Table1[TMS],0)),\"\")","v":""},{"$f":"IFERROR(INDEX(Table1[Bedding],MATCH('2) Room configuration'!I492,Table1[TMS],0)),\"\")","v":""},{"$f":"IFERROR(INDEX(Table1[Normal occupancy],MATCH(Table2[[#This Row],[New Room Type \n(TMS)]],Table1[TMS],0)),\"\")","v":""},null,null,null,null,"",{"$f":"IF(Table2[[#This Row],['# extra beds that fit in the room2]]<>0,LEFT(Table2[[#This Row],[New Room Type \n(TMS)]],6),\"\")","v":""},null,{"$f":"IF(Table2[[#This Row],['# extra beds that fit in the room]]<>Table2[[#This Row],['# extra beds that fit in the room2]],\"yes\",\"No\")","v":"No"}]
[null,{"$f":"IF(LEN(C493)>0,'1) Hotel information'!$C$4,\"\")","v":""},null,null,null,{"$f":"IFERROR(INDEX(Table1[Room description],MATCH('2) Room configuration'!D493,Table1[TMS],0)),\"\")","v":""},{"$f":"IFERROR(INDEX(Table1[Bedding],MATCH('2) Room configuration'!D493,Table1[TMS],0)),\"\")","v":""},null,null,{"$f":"IFERROR(INDEX(Table1[Room description],MATCH('2) Room configuration'!I493,Table1[TMS],0)),\"\")","v":""},{"$f":"IFERROR(INDEX(Table1[Bedding],MATCH('2) Room configuration'!I493,Table1[TMS],0)),\"\")","v":""},{"$f":"IFERROR(INDEX(Table1[Normal occupancy],MATCH(Table2[[#This Row],[New Room Type \n(TMS)]],Table1[TMS],0)),\"\")","v":""},null,null,null,null,"",{"$f":"IF(Table2[[#This Row],['# extra beds that fit in the room2]]<>0,LEFT(Table2[[#This Row],[New Room Type \n(TMS)]],6),\"\")","v":""},null,{"$f":"IF(Table2[[#This Row],['# extra beds that fit in the room]]<>Table2[[#This Row],['# extra beds that fit in the room2]],\"yes\",\"No\")","v":"No"}]
[null,{"$f":"IF(LEN(C494)>0,'1) Hotel information'!$C$4,\"\")","v":""},null,null,null,{"$f":"IFERROR(INDEX(Table1[Room description],MATCH('2) Room configuration'!D494,Table1[TMS],0)),\"\")","v":""},{"$f":"IFERROR(INDEX(Table1[Bedding],MATCH('2) Room configuration'!D494,Table1[TMS],0)),\"\")","v":""},null,null,{"$f":"IFERROR(INDEX(Table1[Room description],MATCH('2) Room configuration'!I494,Table1[TMS],0)),\"\")","v":""},{"$f":"IFERROR(INDEX(Table1[Bedding],MATCH('2) Room configuration'!I494,Table1[TMS],0)),\"\")","v":""},{"$f":"IFERROR(INDEX(Table1[Normal occupancy],MATCH(Table2[[#This Row],[New Room Type \n(TMS)]],Table1[TMS],0)),\"\")","v":""},null,null,null,null,"",{"$f":"IF(Table2[[#This Row],['# extra beds that fit in the room2]]<>0,LEFT(Table2[[#This Row],[New Room Type \n(TMS)]],6),\"\")","v":""},null,{"$f":"IF(Table2[[#This Row],['# extra beds that fit in the room]]<>Table2[[#This Row],['# extra beds that fit in the room2]],\"yes\",\"No\")","v":"No"}]
[null,{"$f":"IF(LEN(C495)>0,'1) Hotel information'!$C$4,\"\")","v":""},null,null,null,{"$f":"IFERROR(INDEX(Table1[Room description],MATCH('2) Room configuration'!D495,Table1[TMS],0)),\"\")","v":""},{"$f":"IFERROR(INDEX(Table1[Bedding],MATCH('2) Room configuration'!D495,Table1[TMS],0)),\"\")","v":""},null,null,{"$f":"IFERROR(INDEX(Table1[Room description],MATCH('2) Room configuration'!I495,Table1[TMS],0)),\"\")","v":""},{"$f":"IFERROR(INDEX(Table1[Bedding],MATCH('2) Room configuration'!I495,Table1[TMS],0)),\"\")","v":""},{"$f":"IFERROR(INDEX(Table1[Normal occupancy],MATCH(Table2[[#This Row],[New Room Type \n(TMS)]],Table1[TMS],0)),\"\")","v":""},null,null,null,null,"",{"$f":"IF(Table2[[#This Row],['# extra beds that fit in the room2]]<>0,LEFT(Table2[[#This Row],[New Room Type \n(TMS)]],6),\"\")","v":""},null,{"$f":"IF(Table2[[#This Row],['# extra beds that fit in the room]]<>Table2[[#This Row],['# extra beds that fit in the room2]],\"yes\",\"No\")","v":"No"}]
[null,{"$f":"IF(LEN(C496)>0,'1) Hotel information'!$C$4,\"\")","v":""},null,null,null,{"$f":"IFERROR(INDEX(Table1[Room description],MATCH('2) Room configuration'!D496,Table1[TMS],0)),\"\")","v":""},{"$f":"IFERROR(INDEX(Table1[Bedding],MATCH('2) Room configuration'!D496,Table1[TMS],0)),\"\")","v":""},null,null,{"$f":"IFERROR(INDEX(Table1[Room description],MATCH('2) Room configuration'!I496,Table1[TMS],0)),\"\")","v":""},{"$f":"IFERROR(INDEX(Table1[Bedding],MATCH('2) Room configuration'!I496,Table1[TMS],0)),\"\")","v":""},{"$f":"IFERROR(INDEX(Table1[Normal occupancy],MATCH(Table2[[#This Row],[New Room Type \n(TMS)]],Table1[TMS],0)),\"\")","v":""},null,null,null,null,"",{"$f":"IF(Table2[[#This Row],['# extra beds that fit in the room2]]<>0,LEFT(Table2[[#This Row],[New Room Type \n(TMS)]],6),\"\")","v":""},null,{"$f":"IF(Table2[[#This Row],['# extra beds that fit in the room]]<>Table2[[#This Row],['# extra beds that fit in the room2]],\"yes\",\"No\")","v":"No"}]
[null,{"$f":"IF(LEN(C497)>0,'1) Hotel information'!$C$4,\"\")","v":""},null,null,null,{"$f":"IFERROR(INDEX(Table1[Room description],MATCH('2) Room configuration'!D497,Table1[TMS],0)),\"\")","v":""},{"$f":"IFERROR(INDEX(Table1[Bedding],MATCH('2) Room configuration'!D497,Table1[TMS],0)),\"\")","v":""},null,null,{"$f":"IFERROR(INDEX(Table1[Room description],MATCH('2) Room configuration'!I497,Table1[TMS],0)),\"\")","v":""},{"$f":"IFERROR(INDEX(Table1[Bedding],MATCH('2) Room configuration'!I497,Table1[TMS],0)),\"\")","v":""},{"$f":"IFERROR(INDEX(Table1[Normal occupancy],MATCH(Table2[[#This Row],[New Room Type \n(TMS)]],Table1[TMS],0)),\"\")","v":""},null,null,null,null,"",{"$f":"IF(Table2[[#This Row],['# extra beds that fit in the room2]]<>0,LEFT(Table2[[#This Row],[New Room Type \n(TMS)]],6),\"\")","v":""},null,{"$f":"IF(Table2[[#This Row],['# extra beds that fit in the room]]<>Table2[[#This Row],['# extra beds that fit in the room2]],\"yes\",\"No\")","v":"No"}]
[null,{"$f":"IF(LEN(C498)>0,'1) Hotel information'!$C$4,\"\")","v":""},null,null,null,{"$f":"IFERROR(INDEX(Table1[Room description],MATCH('2) Room configuration'!D498,Table1[TMS],0)),\"\")","v":""},{"$f":"IFERROR(INDEX(Table1[Bedding],MATCH('2) Room configuration'!D498,Table1[TMS],0)),\"\")","v":""},null,null,{"$f":"IFERROR(INDEX(Table1[Room description],MATCH('2) Room configuration'!I498,Table1[TMS],0)),\"\")","v":""},{"$f":"IFERROR(INDEX(Table1[Bedding],MATCH('2) Room configuration'!I498,Table1[TMS],0)),\"\")","v":""},{"$f":"IFERROR(INDEX(Table1[Normal occupancy],MATCH(Table2[[#This Row],[New Room Type \n(TMS)]],Table1[TMS],0)),\"\")","v":""},null,null,null,null,"",{"$f":"IF(Table2[[#This Row],['# extra beds that fit in the room2]]<>0,LEFT(Table2[[#This Row],[New Room Type \n(TMS)]],6),\"\")","v":""},null,{"$f":"IF(Table2[[#This Row],['# extra beds that fit in the room]]<>Table2[[#This Row],['# extra beds that fit in the room2]],\"yes\",\"No\")","v":"No"}]
[null,{"$f":"IF(LEN(C499)>0,'1) Hotel information'!$C$4,\"\")","v":""},null,null,null,{"$f":"IFERROR(INDEX(Table1[Room description],MATCH('2) Room configuration'!D499,Table1[TMS],0)),\"\")","v":""},{"$f":"IFERROR(INDEX(Table1[Bedding],MATCH('2) Room configuration'!D499,Table1[TMS],0)),\"\")","v":""},null,null,{"$f":"IFERROR(INDEX(Table1[Room description],MATCH('2) Room configuration'!I499,Table1[TMS],0)),\"\")","v":""},{"$f":"IFERROR(INDEX(Table1[Bedding],MATCH('2) Room configuration'!I499,Table1[TMS],0)),\"\")","v":""},{"$f":"IFERROR(INDEX(Table1[Normal occupancy],MATCH(Table2[[#This Row],[New Room Type \n(TMS)]],Table1[TMS],0)),\"\")","v":""},null,null,null,null,"",{"$f":"IF(Table2[[#This Row],['# extra beds that fit in the room2]]<>0,LEFT(Table2[[#This Row],[New Room Type \n(TMS)]],6),\"\")","v":""},null,{"$f":"IF(Table2[[#This Row],['# extra beds that fit in the room]]<>Table2[[#This Row],['# extra beds that fit in the room2]],\"yes\",\"No\")","v":"No"}]
[null,{"$f":"IF(LEN(C500)>0,'1) Hotel information'!$C$4,\"\")","v":""},null,null,null,{"$f":"IFERROR(INDEX(Table1[Room description],MATCH('2) Room configuration'!D500,Table1[TMS],0)),\"\")","v":""},{"$f":"IFERROR(INDEX(Table1[Bedding],MATCH('2) Room configuration'!D500,Table1[TMS],0)),\"\")","v":""},null,null,{"$f":"IFERROR(INDEX(Table1[Room description],MATCH('2) Room configuration'!I500,Table1[TMS],0)),\"\")","v":""},{"$f":"IFERROR(INDEX(Table1[Bedding],MATCH('2) Room configuration'!I500,Table1[TMS],0)),\"\")","v":""},{"$f":"IFERROR(INDEX(Table1[Normal occupancy],MATCH(Table2[[#This Row],[New Room Type \n(TMS)]],Table1[TMS],0)),\"\")","v":""},null,null,null,null,"",{"$f":"IF(Table2[[#This Row],['# extra beds that fit in the room2]]<>0,LEFT(Table2[[#This Row],[New Room Type \n(TMS)]],6),\"\")","v":""},null,{"$f":"IF(Table2[[#This Row],['# extra beds that fit in the room]]<>Table2[[#This Row],['# extra beds that fit in the room2]],\"yes\",\"No\")","v":"No"}]
[null,{"$f":"IF(LEN(C501)>0,'1) Hotel information'!$C$4,\"\")","v":""},null,null,null,{"$f":"IFERROR(INDEX(Table1[Room description],MATCH('2) Room configuration'!D501,Table1[TMS],0)),\"\")","v":""},{"$f":"IFERROR(INDEX(Table1[Bedding],MATCH('2) Room configuration'!D501,Table1[TMS],0)),\"\")","v":""},null,null,{"$f":"IFERROR(INDEX(Table1[Room description],MATCH('2) Room configuration'!I501,Table1[TMS],0)),\"\")","v":""},{"$f":"IFERROR(INDEX(Table1[Bedding],MATCH('2) Room configuration'!I501,Table1[TMS],0)),\"\")","v":""},{"$f":"IFERROR(INDEX(Table1[Normal occupancy],MATCH(Table2[[#This Row],[New Room Type \n(TMS)]],Table1[TMS],0)),\"\")","v":""},null,null,null,null,"",{"$f":"IF(Table2[[#This Row],['# extra beds that fit in the room2]]<>0,LEFT(Table2[[#This Row],[New Room Type \n(TMS)]],6),\"\")","v":""},null,{"$f":"IF(Table2[[#This Row],['# extra beds that fit in the room]]<>Table2[[#This Row],['# extra beds that fit in the room2]],\"yes\",\"No\")","v":"No"}]
[null,{"$f":"IF(LEN(C502)>0,'1) Hotel information'!$C$4,\"\")","v":""},null,null,null,{"$f":"IFERROR(INDEX(Table1[Room description],MATCH('2) Room configuration'!D502,Table1[TMS],0)),\"\")","v":""},{"$f":"IFERROR(INDEX(Table1[Bedding],MATCH('2) Room configuration'!D502,Table1[TMS],0)),\"\")","v":""},null,null,{"$f":"IFERROR(INDEX(Table1[Room description],MATCH('2) Room configuration'!I502,Table1[TMS],0)),\"\")","v":""},{"$f":"IFERROR(INDEX(Table1[Bedding],MATCH('2) Room configuration'!I502,Table1[TMS],0)),\"\")","v":""},{"$f":"IFERROR(INDEX(Table1[Normal occupancy],MATCH(Table2[[#This Row],[New Room Type \n(TMS)]],Table1[TMS],0)),\"\")","v":""},null,null,null,null,"",{"$f":"IF(Table2[[#This Row],['# extra beds that fit in the room2]]<>0,LEFT(Table2[[#This Row],[New Room Type \n(TMS)]],6),\"\")","v":""},null,{"$f":"IF(Table2[[#This Row],['# extra beds that fit in the room]]<>Table2[[#This Row],['# extra beds that fit in the room2]],\"yes\",\"No\")","v":"No"}]
[null,{"$f":"IF(LEN(C503)>0,'1) Hotel information'!$C$4,\"\")","v":""},null,null,null,{"$f":"IFERROR(INDEX(Table1[Room description],MATCH('2) Room configuration'!D503,Table1[TMS],0)),\"\")","v":""},{"$f":"IFERROR(INDEX(Table1[Bedding],MATCH('2) Room configuration'!D503,Table1[TMS],0)),\"\")","v":""},null,null,{"$f":"IFERROR(INDEX(Table1[Room description],MATCH('2) Room configuration'!I503,Table1[TMS],0)),\"\")","v":""},{"$f":"IFERROR(INDEX(Table1[Bedding],MATCH('2) Room configuration'!I503,Table1[TMS],0)),\"\")","v":""},{"$f":"IFERROR(INDEX(Table1[Normal occupancy],MATCH(Table2[[#This Row],[New Room Type \n(TMS)]],Table1[TMS],0)),\"\")","v":""},null,null,null,null,"",{"$f":"IF(Table2[[#This Row],['# extra beds that fit in the room2]]<>0,LEFT(Table2[[#This Row],[New Room Type \n(TMS)]],6),\"\")","v":""},null,{"$f":"IF(Table2[[#This Row],['# extra beds that fit in the room]]<>Table2[[#This Row],['# extra beds that fit in the room2]],\"yes\",\"No\")","v":"No"}]
[null,{"$f":"IF(LEN(C504)>0,'1) Hotel information'!$C$4,\"\")","v":""},null,null,null,{"$f":"IFERROR(INDEX(Table1[Room description],MATCH('2) Room configuration'!D504,Table1[TMS],0)),\"\")","v":""},{"$f":"IFERROR(INDEX(Table1[Bedding],MATCH('2) Room configuration'!D504,Table1[TMS],0)),\"\")","v":""},null,null,{"$f":"IFERROR(INDEX(Table1[Room description],MATCH('2) Room configuration'!I504,Table1[TMS],0)),\"\")","v":""},{"$f":"IFERROR(INDEX(Table1[Bedding],MATCH('2) Room configuration'!I504,Table1[TMS],0)),\"\")","v":""},{"$f":"IFERROR(INDEX(Table1[Normal occupancy],MATCH(Table2[[#This Row],[New Room Type \n(TMS)]],Table1[TMS],0)),\"\")","v":""},null,null,null,null,"",{"$f":"IF(Table2[[#This Row],['# extra beds that fit in the room2]]<>0,LEFT(Table2[[#This Row],[New Room Type \n(TMS)]],6),\"\")","v":""},null,{"$f":"IF(Table2[[#This Row],['# extra beds that fit in the room]]<>Table2[[#This Row],['# extra beds that fit in the room2]],\"yes\",\"No\")","v":"No"}]
[null,{"$f":"IF(LEN(C505)>0,'1) Hotel information'!$C$4,\"\")","v":""},null,null,null,{"$f":"IFERROR(INDEX(Table1[Room description],MATCH('2) Room configuration'!D505,Table1[TMS],0)),\"\")","v":""},{"$f":"IFERROR(INDEX(Table1[Bedding],MATCH('2) Room configuration'!D505,Table1[TMS],0)),\"\")","v":""},null,null,{"$f":"IFERROR(INDEX(Table1[Room description],MATCH('2) Room configuration'!I505,Table1[TMS],0)),\"\")","v":""},{"$f":"IFERROR(INDEX(Table1[Bedding],MATCH('2) Room configuration'!I505,Table1[TMS],0)),\"\")","v":""},{"$f":"IFERROR(INDEX(Table1[Normal occupancy],MATCH(Table2[[#This Row],[New Room Type \n(TMS)]],Table1[TMS],0)),\"\")","v":""},null,null,null,null,"",{"$f":"IF(Table2[[#This Row],['# extra beds that fit in the room2]]<>0,LEFT(Table2[[#This Row],[New Room Type \n(TMS)]],6),\"\")","v":""},null,{"$f":"IF(Table2[[#This Row],['# extra beds that fit in the room]]<>Table2[[#This Row],['# extra beds that fit in the room2]],\"yes\",\"No\")","v":"No"}]
[null,{"$f":"IF(LEN(C506)>0,'1) Hotel information'!$C$4,\"\")","v":""},null,null,null,{"$f":"IFERROR(INDEX(Table1[Room description],MATCH('2) Room configuration'!D506,Table1[TMS],0)),\"\")","v":""},{"$f":"IFERROR(INDEX(Table1[Bedding],MATCH('2) Room configuration'!D506,Table1[TMS],0)),\"\")","v":""},null,null,{"$f":"IFERROR(INDEX(Table1[Room description],MATCH('2) Room configuration'!I506,Table1[TMS],0)),\"\")","v":""},{"$f":"IFERROR(INDEX(Table1[Bedding],MATCH('2) Room configuration'!I506,Table1[TMS],0)),\"\")","v":""},{"$f":"IFERROR(INDEX(Table1[Normal occupancy],MATCH(Table2[[#This Row],[New Room Type \n(TMS)]],Table1[TMS],0)),\"\")","v":""},null,null,null,null,"",{"$f":"IF(Table2[[#This Row],['# extra beds that fit in the room2]]<>0,LEFT(Table2[[#This Row],[New Room Type \n(TMS)]],6),\"\")","v":""},null,{"$f":"IF(Table2[[#This Row],['# extra beds that fit in the room]]<>Table2[[#This Row],['# extra beds that fit in the room2]],\"yes\",\"No\")","v":"No"}]
[null,{"$f":"IF(LEN(C507)>0,'1) Hotel information'!$C$4,\"\")","v":""},null,null,null,{"$f":"IFERROR(INDEX(Table1[Room description],MATCH('2) Room configuration'!D507,Table1[TMS],0)),\"\")","v":""},{"$f":"IFERROR(INDEX(Table1[Bedding],MATCH('2) Room configuration'!D507,Table1[TMS],0)),\"\")","v":""},null,null,{"$f":"IFERROR(INDEX(Table1[Room description],MATCH('2) Room configuration'!I507,Table1[TMS],0)),\"\")","v":""},{"$f":"IFERROR(INDEX(Table1[Bedding],MATCH('2) Room configuration'!I507,Table1[TMS],0)),\"\")","v":""},{"$f":"IFERROR(INDEX(Table1[Normal occupancy],MATCH(Table2[[#This Row],[New Room Type \n(TMS)]],Table1[TMS],0)),\"\")","v":""},null,null,null,null,"",{"$f":"IF(Table2[[#This Row],['# extra beds that fit in the room2]]<>0,LEFT(Table2[[#This Row],[New Room Type \n(TMS)]],6),\"\")","v":""},null,{"$f":"IF(Table2[[#This Row],['# extra beds that fit in the room]]<>Table2[[#This Row],['# extra beds that fit in the room2]],\"yes\",\"No\")","v":"No"}]
[null,{"$f":"IF(LEN(C508)>0,'1) Hotel information'!$C$4,\"\")","v":""},null,null,null,{"$f":"IFERROR(INDEX(Table1[Room description],MATCH('2) Room configuration'!D508,Table1[TMS],0)),\"\")","v":""},{"$f":"IFERROR(INDEX(Table1[Bedding],MATCH('2) Room configuration'!D508,Table1[TMS],0)),\"\")","v":""},null,null,{"$f":"IFERROR(INDEX(Table1[Room description],MATCH('2) Room configuration'!I508,Table1[TMS],0)),\"\")","v":""},{"$f":"IFERROR(INDEX(Table1[Bedding],MATCH('2) Room configuration'!I508,Table1[TMS],0)),\"\")","v":""},{"$f":"IFERROR(INDEX(Table1[Normal occupancy],MATCH(Table2[[#This Row],[New Room Type \n(TMS)]],Table1[TMS],0)),\"\")","v":""},null,null,null,null,"",{"$f":"IF(Table2[[#This Row],['# extra beds that fit in the room2]]<>0,LEFT(Table2[[#This Row],[New Room Type \n(TMS)]],6),\"\")","v":""},null,{"$f":"IF(Table2[[#This Row],['# extra beds that fit in the room]]<>Table2[[#This Row],['# extra beds that fit in the room2]],\"yes\",\"No\")","v":"No"}]
[null,{"$f":"IF(LEN(C509)>0,'1) Hotel information'!$C$4,\"\")","v":""},null,null,null,{"$f":"IFERROR(INDEX(Table1[Room description],MATCH('2) Room configuration'!D509,Table1[TMS],0)),\"\")","v":""},{"$f":"IFERROR(INDEX(Table1[Bedding],MATCH('2) Room configuration'!D509,Table1[TMS],0)),\"\")","v":""},null,null,{"$f":"IFERROR(INDEX(Table1[Room description],MATCH('2) Room configuration'!I509,Table1[TMS],0)),\"\")","v":""},{"$f":"IFERROR(INDEX(Table1[Bedding],MATCH('2) Room configuration'!I509,Table1[TMS],0)),\"\")","v":""},{"$f":"IFERROR(INDEX(Table1[Normal occupancy],MATCH(Table2[[#This Row],[New Room Type \n(TMS)]],Table1[TMS],0)),\"\")","v":""},null,null,null,null,"",{"$f":"IF(Table2[[#This Row],['# extra beds that fit in the room2]]<>0,LEFT(Table2[[#This Row],[New Room Type \n(TMS)]],6),\"\")","v":""},null,{"$f":"IF(Table2[[#This Row],['# extra beds that fit in the room]]<>Table2[[#This Row],['# extra beds that fit in the room2]],\"yes\",\"No\")","v":"No"}]
[null,{"$f":"IF(LEN(C510)>0,'1) Hotel information'!$C$4,\"\")","v":""},null,null,null,{"$f":"IFERROR(INDEX(Table1[Room description],MATCH('2) Room configuration'!D510,Table1[TMS],0)),\"\")","v":""},{"$f":"IFERROR(INDEX(Table1[Bedding],MATCH('2) Room configuration'!D510,Table1[TMS],0)),\"\")","v":""},null,null,{"$f":"IFERROR(INDEX(Table1[Room description],MATCH('2) Room configuration'!I510,Table1[TMS],0)),\"\")","v":""},{"$f":"IFERROR(INDEX(Table1[Bedding],MATCH('2) Room configuration'!I510,Table1[TMS],0)),\"\")","v":""},{"$f":"IFERROR(INDEX(Table1[Normal occupancy],MATCH(Table2[[#This Row],[New Room Type \n(TMS)]],Table1[TMS],0)),\"\")","v":""},null,null,null,null,"",{"$f":"IF(Table2[[#This Row],['# extra beds that fit in the room2]]<>0,LEFT(Table2[[#This Row],[New Room Type \n(TMS)]],6),\"\")","v":""},null,{"$f":"IF(Table2[[#This Row],['# extra beds that fit in the room]]<>Table2[[#This Row],['# extra beds that fit in the room2]],\"yes\",\"No\")","v":"No"}]
[null,{"$f":"IF(LEN(C511)>0,'1) Hotel information'!$C$4,\"\")","v":""},null,null,null,{"$f":"IFERROR(INDEX(Table1[Room description],MATCH('2) Room configuration'!D511,Table1[TMS],0)),\"\")","v":""},{"$f":"IFERROR(INDEX(Table1[Bedding],MATCH('2) Room configuration'!D511,Table1[TMS],0)),\"\")","v":""},null,null,{"$f":"IFERROR(INDEX(Table1[Room description],MATCH('2) Room configuration'!I511,Table1[TMS],0)),\"\")","v":""},{"$f":"IFERROR(INDEX(Table1[Bedding],MATCH('2) Room configuration'!I511,Table1[TMS],0)),\"\")","v":""},{"$f":"IFERROR(INDEX(Table1[Normal occupancy],MATCH(Table2[[#This Row],[New Room Type \n(TMS)]],Table1[TMS],0)),\"\")","v":""},null,null,null,null,"",{"$f":"IF(Table2[[#This Row],['# extra beds that fit in the room2]]<>0,LEFT(Table2[[#This Row],[New Room Type \n(TMS)]],6),\"\")","v":""},null,{"$f":"IF(Table2[[#This Row],['# extra beds that fit in the room]]<>Table2[[#This Row],['# extra beds that fit in the room2]],\"yes\",\"No\")","v":"No"}]
[null,{"$f":"IF(LEN(C512)>0,'1) Hotel information'!$C$4,\"\")","v":""},null,null,null,{"$f":"IFERROR(INDEX(Table1[Room description],MATCH('2) Room configuration'!D512,Table1[TMS],0)),\"\")","v":""},{"$f":"IFERROR(INDEX(Table1[Bedding],MATCH('2) Room configuration'!D512,Table1[TMS],0)),\"\")","v":""},null,null,{"$f":"IFERROR(INDEX(Table1[Room description],MATCH('2) Room configuration'!I512,Table1[TMS],0)),\"\")","v":""},{"$f":"IFERROR(INDEX(Table1[Bedding],MATCH('2) Room configuration'!I512,Table1[TMS],0)),\"\")","v":""},{"$f":"IFERROR(INDEX(Table1[Normal occupancy],MATCH(Table2[[#This Row],[New Room Type \n(TMS)]],Table1[TMS],0)),\"\")","v":""},null,null,null,null,"",{"$f":"IF(Table2[[#This Row],['# extra beds that fit in the room2]]<>0,LEFT(Table2[[#This Row],[New Room Type \n(TMS)]],6),\"\")","v":""},null,{"$f":"IF(Table2[[#This Row],['# extra beds that fit in the room]]<>Table2[[#This Row],['# extra beds that fit in the room2]],\"yes\",\"No\")","v":"No"}]
[null,{"$f":"IF(LEN(C513)>0,'1) Hotel information'!$C$4,\"\")","v":""},null,null,null,{"$f":"IFERROR(INDEX(Table1[Room description],MATCH('2) Room configuration'!D513,Table1[TMS],0)),\"\")","v":""},{"$f":"IFERROR(INDEX(Table1[Bedding],MATCH('2) Room configuration'!D513,Table1[TMS],0)),\"\")","v":""},null,null,{"$f":"IFERROR(INDEX(Table1[Room description],MATCH('2) Room configuration'!I513,Table1[TMS],0)),\"\")","v":""},{"$f":"IFERROR(INDEX(Table1[Bedding],MATCH('2) Room configuration'!I513,Table1[TMS],0)),\"\")","v":""},{"$f":"IFERROR(INDEX(Table1[Normal occupancy],MATCH(Table2[[#This Row],[New Room Type \n(TMS)]],Table1[TMS],0)),\"\")","v":""},null,null,null,null,"",{"$f":"IF(Table2[[#This Row],['# extra beds that fit in the room2]]<>0,LEFT(Table2[[#This Row],[New Room Type \n(TMS)]],6),\"\")","v":""},null,{"$f":"IF(Table2[[#This Row],['# extra beds that fit in the room]]<>Table2[[#This Row],['# extra beds that fit in the room2]],\"yes\",\"No\")","v":"No"}]
[null,{"$f":"IF(LEN(C514)>0,'1) Hotel information'!$C$4,\"\")","v":""},null,null,null,{"$f":"IFERROR(INDEX(Table1[Room description],MATCH('2) Room configuration'!D514,Table1[TMS],0)),\"\")","v":""},{"$f":"IFERROR(INDEX(Table1[Bedding],MATCH('2) Room configuration'!D514,Table1[TMS],0)),\"\")","v":""},null,null,{"$f":"IFERROR(INDEX(Table1[Room description],MATCH('2) Room configuration'!I514,Table1[TMS],0)),\"\")","v":""},{"$f":"IFERROR(INDEX(Table1[Bedding],MATCH('2) Room configuration'!I514,Table1[TMS],0)),\"\")","v":""},{"$f":"IFERROR(INDEX(Table1[Normal occupancy],MATCH(Table2[[#This Row],[New Room Type \n(TMS)]],Table1[TMS],0)),\"\")","v":""},null,null,null,null,"",{"$f":"IF(Table2[[#This Row],['# extra beds that fit in the room2]]<>0,LEFT(Table2[[#This Row],[New Room Type \n(TMS)]],6),\"\")","v":""},null,{"$f":"IF(Table2[[#This Row],['# extra beds that fit in the room]]<>Table2[[#This Row],['# extra beds that fit in the room2]],\"yes\",\"No\")","v":"No"}]
[null,{"$f":"IF(LEN(C515)>0,'1) Hotel information'!$C$4,\"\")","v":""},null,null,null,{"$f":"IFERROR(INDEX(Table1[Room description],MATCH('2) Room configuration'!D515,Table1[TMS],0)),\"\")","v":""},{"$f":"IFERROR(INDEX(Table1[Bedding],MATCH('2) Room configuration'!D515,Table1[TMS],0)),\"\")","v":""},null,null,{"$f":"IFERROR(INDEX(Table1[Room description],MATCH('2) Room configuration'!I515,Table1[TMS],0)),\"\")","v":""},{"$f":"IFERROR(INDEX(Table1[Bedding],MATCH('2) Room configuration'!I515,Table1[TMS],0)),\"\")","v":""},{"$f":"IFERROR(INDEX(Table1[Normal occupancy],MATCH(Table2[[#This Row],[New Room Type \n(TMS)]],Table1[TMS],0)),\"\")","v":""},null,null,null,null,"",{"$f":"IF(Table2[[#This Row],['# extra beds that fit in the room2]]<>0,LEFT(Table2[[#This Row],[New Room Type \n(TMS)]],6),\"\")","v":""},null,{"$f":"IF(Table2[[#This Row],['# extra beds that fit in the room]]<>Table2[[#This Row],['# extra beds that fit in the room2]],\"yes\",\"No\")","v":"No"}]
[null,{"$f":"IF(LEN(C516)>0,'1) Hotel information'!$C$4,\"\")","v":""},null,null,null,{"$f":"IFERROR(INDEX(Table1[Room description],MATCH('2) Room configuration'!D516,Table1[TMS],0)),\"\")","v":""},{"$f":"IFERROR(INDEX(Table1[Bedding],MATCH('2) Room configuration'!D516,Table1[TMS],0)),\"\")","v":""},null,null,{"$f":"IFERROR(INDEX(Table1[Room description],MATCH('2) Room configuration'!I516,Table1[TMS],0)),\"\")","v":""},{"$f":"IFERROR(INDEX(Table1[Bedding],MATCH('2) Room configuration'!I516,Table1[TMS],0)),\"\")","v":""},{"$f":"IFERROR(INDEX(Table1[Normal occupancy],MATCH(Table2[[#This Row],[New Room Type \n(TMS)]],Table1[TMS],0)),\"\")","v":""},null,null,null,null,"",{"$f":"IF(Table2[[#This Row],['# extra beds that fit in the room2]]<>0,LEFT(Table2[[#This Row],[New Room Type \n(TMS)]],6),\"\")","v":""},null,{"$f":"IF(Table2[[#This Row],['# extra beds that fit in the room]]<>Table2[[#This Row],['# extra beds that fit in the room2]],\"yes\",\"No\")","v":"No"}]
[null,{"$f":"IF(LEN(C517)>0,'1) Hotel information'!$C$4,\"\")","v":""},null,null,null,{"$f":"IFERROR(INDEX(Table1[Room description],MATCH('2) Room configuration'!D517,Table1[TMS],0)),\"\")","v":""},{"$f":"IFERROR(INDEX(Table1[Bedding],MATCH('2) Room configuration'!D517,Table1[TMS],0)),\"\")","v":""},null,null,{"$f":"IFERROR(INDEX(Table1[Room description],MATCH('2) Room configuration'!I517,Table1[TMS],0)),\"\")","v":""},{"$f":"IFERROR(INDEX(Table1[Bedding],MATCH('2) Room configuration'!I517,Table1[TMS],0)),\"\")","v":""},{"$f":"IFERROR(INDEX(Table1[Normal occupancy],MATCH(Table2[[#This Row],[New Room Type \n(TMS)]],Table1[TMS],0)),\"\")","v":""},null,null,null,null,"",{"$f":"IF(Table2[[#This Row],['# extra beds that fit in the room2]]<>0,LEFT(Table2[[#This Row],[New Room Type \n(TMS)]],6),\"\")","v":""},null,{"$f":"IF(Table2[[#This Row],['# extra beds that fit in the room]]<>Table2[[#This Row],['# extra beds that fit in the room2]],\"yes\",\"No\")","v":"No"}]
[null,{"$f":"IF(LEN(C518)>0,'1) Hotel information'!$C$4,\"\")","v":""},null,null,null,{"$f":"IFERROR(INDEX(Table1[Room description],MATCH('2) Room configuration'!D518,Table1[TMS],0)),\"\")","v":""},{"$f":"IFERROR(INDEX(Table1[Bedding],MATCH('2) Room configuration'!D518,Table1[TMS],0)),\"\")","v":""},null,null,{"$f":"IFERROR(INDEX(Table1[Room description],MATCH('2) Room configuration'!I518,Table1[TMS],0)),\"\")","v":""},{"$f":"IFERROR(INDEX(Table1[Bedding],MATCH('2) Room configuration'!I518,Table1[TMS],0)),\"\")","v":""},{"$f":"IFERROR(INDEX(Table1[Normal occupancy],MATCH(Table2[[#This Row],[New Room Type \n(TMS)]],Table1[TMS],0)),\"\")","v":""},null,null,null,null,"",{"$f":"IF(Table2[[#This Row],['# extra beds that fit in the room2]]<>0,LEFT(Table2[[#This Row],[New Room Type \n(TMS)]],6),\"\")","v":""},null,{"$f":"IF(Table2[[#This Row],['# extra beds that fit in the room]]<>Table2[[#This Row],['# extra beds that fit in the room2]],\"yes\",\"No\")","v":"No"}]
[null,{"$f":"IF(LEN(C519)>0,'1) Hotel information'!$C$4,\"\")","v":""},null,null,null,{"$f":"IFERROR(INDEX(Table1[Room description],MATCH('2) Room configuration'!D519,Table1[TMS],0)),\"\")","v":""},{"$f":"IFERROR(INDEX(Table1[Bedding],MATCH('2) Room configuration'!D519,Table1[TMS],0)),\"\")","v":""},null,null,{"$f":"IFERROR(INDEX(Table1[Room description],MATCH('2) Room configuration'!I519,Table1[TMS],0)),\"\")","v":""},{"$f":"IFERROR(INDEX(Table1[Bedding],MATCH('2) Room configuration'!I519,Table1[TMS],0)),\"\")","v":""},{"$f":"IFERROR(INDEX(Table1[Normal occupancy],MATCH(Table2[[#This Row],[New Room Type \n(TMS)]],Table1[TMS],0)),\"\")","v":""},null,null,null,null,"",{"$f":"IF(Table2[[#This Row],['# extra beds that fit in the room2]]<>0,LEFT(Table2[[#This Row],[New Room Type \n(TMS)]],6),\"\")","v":""},null,{"$f":"IF(Table2[[#This Row],['# extra beds that fit in the room]]<>Table2[[#This Row],['# extra beds that fit in the room2]],\"yes\",\"No\")","v":"No"}]
[null,{"$f":"IF(LEN(C520)>0,'1) Hotel information'!$C$4,\"\")","v":""},null,null,null,{"$f":"IFERROR(INDEX(Table1[Room description],MATCH('2) Room configuration'!D520,Table1[TMS],0)),\"\")","v":""},{"$f":"IFERROR(INDEX(Table1[Bedding],MATCH('2) Room configuration'!D520,Table1[TMS],0)),\"\")","v":""},null,null,{"$f":"IFERROR(INDEX(Table1[Room description],MATCH('2) Room configuration'!I520,Table1[TMS],0)),\"\")","v":""},{"$f":"IFERROR(INDEX(Table1[Bedding],MATCH('2) Room configuration'!I520,Table1[TMS],0)),\"\")","v":""},{"$f":"IFERROR(INDEX(Table1[Normal occupancy],MATCH(Table2[[#This Row],[New Room Type \n(TMS)]],Table1[TMS],0)),\"\")","v":""},null,null,null,null,"",{"$f":"IF(Table2[[#This Row],['# extra beds that fit in the room2]]<>0,LEFT(Table2[[#This Row],[New Room Type \n(TMS)]],6),\"\")","v":""},null,{"$f":"IF(Table2[[#This Row],['# extra beds that fit in the room]]<>Table2[[#This Row],['# extra beds that fit in the room2]],\"yes\",\"No\")","v":"No"}]
[null,{"$f":"IF(LEN(C521)>0,'1) Hotel information'!$C$4,\"\")","v":""},null,null,null,{"$f":"IFERROR(INDEX(Table1[Room description],MATCH('2) Room configuration'!D521,Table1[TMS],0)),\"\")","v":""},{"$f":"IFERROR(INDEX(Table1[Bedding],MATCH('2) Room configuration'!D521,Table1[TMS],0)),\"\")","v":""},null,null,{"$f":"IFERROR(INDEX(Table1[Room description],MATCH('2) Room configuration'!I521,Table1[TMS],0)),\"\")","v":""},{"$f":"IFERROR(INDEX(Table1[Bedding],MATCH('2) Room configuration'!I521,Table1[TMS],0)),\"\")","v":""},{"$f":"IFERROR(INDEX(Table1[Normal occupancy],MATCH(Table2[[#This Row],[New Room Type \n(TMS)]],Table1[TMS],0)),\"\")","v":""},null,null,null,null,"",{"$f":"IF(Table2[[#This Row],['# extra beds that fit in the room2]]<>0,LEFT(Table2[[#This Row],[New Room Type \n(TMS)]],6),\"\")","v":""},null,{"$f":"IF(Table2[[#This Row],['# extra beds that fit in the room]]<>Table2[[#This Row],['# extra beds that fit in the room2]],\"yes\",\"No\")","v":"No"}]
[null,{"$f":"IF(LEN(C522)>0,'1) Hotel information'!$C$4,\"\")","v":""},null,null,null,{"$f":"IFERROR(INDEX(Table1[Room description],MATCH('2) Room configuration'!D522,Table1[TMS],0)),\"\")","v":""},{"$f":"IFERROR(INDEX(Table1[Bedding],MATCH('2) Room configuration'!D522,Table1[TMS],0)),\"\")","v":""},null,null,{"$f":"IFERROR(INDEX(Table1[Room description],MATCH('2) Room configuration'!I522,Table1[TMS],0)),\"\")","v":""},{"$f":"IFERROR(INDEX(Table1[Bedding],MATCH('2) Room configuration'!I522,Table1[TMS],0)),\"\")","v":""},{"$f":"IFERROR(INDEX(Table1[Normal occupancy],MATCH(Table2[[#This Row],[New Room Type \n(TMS)]],Table1[TMS],0)),\"\")","v":""},null,null,null,null,"",{"$f":"IF(Table2[[#This Row],['# extra beds that fit in the room2]]<>0,LEFT(Table2[[#This Row],[New Room Type \n(TMS)]],6),\"\")","v":""},null,{"$f":"IF(Table2[[#This Row],['# extra beds that fit in the room]]<>Table2[[#This Row],['# extra beds that fit in the room2]],\"yes\",\"No\")","v":"No"}]
[null,{"$f":"IF(LEN(C523)>0,'1) Hotel information'!$C$4,\"\")","v":""},null,null,null,{"$f":"IFERROR(INDEX(Table1[Room description],MATCH('2) Room configuration'!D523,Table1[TMS],0)),\"\")","v":""},{"$f":"IFERROR(INDEX(Table1[Bedding],MATCH('2) Room configuration'!D523,Table1[TMS],0)),\"\")","v":""},null,null,{"$f":"IFERROR(INDEX(Table1[Room description],MATCH('2) Room configuration'!I523,Table1[TMS],0)),\"\")","v":""},{"$f":"IFERROR(INDEX(Table1[Bedding],MATCH('2) Room configuration'!I523,Table1[TMS],0)),\"\")","v":""},{"$f":"IFERROR(INDEX(Table1[Normal occupancy],MATCH(Table2[[#This Row],[New Room Type \n(TMS)]],Table1[TMS],0)),\"\")","v":""},null,null,null,null,"",{"$f":"IF(Table2[[#This Row],['# extra beds that fit in the room2]]<>0,LEFT(Table2[[#This Row],[New Room Type \n(TMS)]],6),\"\")","v":""},null,{"$f":"IF(Table2[[#This Row],['# extra beds that fit in the room]]<>Table2[[#This Row],['# extra beds that fit in the room2]],\"yes\",\"No\")","v":"No"}]
[null,{"$f":"IF(LEN(C524)>0,'1) Hotel information'!$C$4,\"\")","v":""},null,null,null,{"$f":"IFERROR(INDEX(Table1[Room description],MATCH('2) Room configuration'!D524,Table1[TMS],0)),\"\")","v":""},{"$f":"IFERROR(INDEX(Table1[Bedding],MATCH('2) Room configuration'!D524,Table1[TMS],0)),\"\")","v":""},null,null,{"$f":"IFERROR(INDEX(Table1[Room description],MATCH('2) Room configuration'!I524,Table1[TMS],0)),\"\")","v":""},{"$f":"IFERROR(INDEX(Table1[Bedding],MATCH('2) Room configuration'!I524,Table1[TMS],0)),\"\")","v":""},{"$f":"IFERROR(INDEX(Table1[Normal occupancy],MATCH(Table2[[#This Row],[New Room Type \n(TMS)]],Table1[TMS],0)),\"\")","v":""},null,null,null,null,{"$f":"IF(LEN(C524)>0,IF(D524=I524,\"No\",\"Yes\"),\"\")","v":""},{"$f":"IF(Table2[[#This Row],['# extra beds that fit in the room2]]<>0,LEFT(Table2[[#This Row],[New Room Type \n(TMS)]],6),\"\")","v":""},null,{"$f":"IF(Table2[[#This Row],['# extra beds that fit in the room]]<>Table2[[#This Row],['# extra beds that fit in the room2]],\"yes\",\"No\")","v":"No"}]
[null,{"$f":"IF(LEN(C525)>0,'1) Hotel information'!$C$4,\"\")","v":""},null,null,null,{"$f":"IFERROR(INDEX(Table1[Room description],MATCH('2) Room configuration'!D525,Table1[TMS],0)),\"\")","v":""},{"$f":"IFERROR(INDEX(Table1[Bedding],MATCH('2) Room configuration'!D525,Table1[TMS],0)),\"\")","v":""},null,null,{"$f":"IFERROR(INDEX(Table1[Room description],MATCH('2) Room configuration'!I525,Table1[TMS],0)),\"\")","v":""},{"$f":"IFERROR(INDEX(Table1[Bedding],MATCH('2) Room configuration'!I525,Table1[TMS],0)),\"\")","v":""},{"$f":"IFERROR(INDEX(Table1[Normal occupancy],MATCH(Table2[[#This Row],[New Room Type \n(TMS)]],Table1[TMS],0)),\"\")","v":""},null,null,null,null,"",{"$f":"IF(Table2[[#This Row],['# extra beds that fit in the room2]]<>0,LEFT(Table2[[#This Row],[New Room Type \n(TMS)]],6),\"\")","v":""},null,{"$f":"IF(Table2[[#This Row],['# extra beds that fit in the room]]<>Table2[[#This Row],['# extra beds that fit in the room2]],\"yes\",\"No\")","v":"No"}]
[null,{"$f":"IF(LEN(C526)>0,'1) Hotel information'!$C$4,\"\")","v":""},null,null,null,{"$f":"IFERROR(INDEX(Table1[Room description],MATCH('2) Room configuration'!D526,Table1[TMS],0)),\"\")","v":""},{"$f":"IFERROR(INDEX(Table1[Bedding],MATCH('2) Room configuration'!D526,Table1[TMS],0)),\"\")","v":""},null,null,{"$f":"IFERROR(INDEX(Table1[Room description],MATCH('2) Room configuration'!I526,Table1[TMS],0)),\"\")","v":""},{"$f":"IFERROR(INDEX(Table1[Bedding],MATCH('2) Room configuration'!I526,Table1[TMS],0)),\"\")","v":""},{"$f":"IFERROR(INDEX(Table1[Normal occupancy],MATCH(Table2[[#This Row],[New Room Type \n(TMS)]],Table1[TMS],0)),\"\")","v":""},null,null,null,null,"",{"$f":"IF(Table2[[#This Row],['# extra beds that fit in the room2]]<>0,LEFT(Table2[[#This Row],[New Room Type \n(TMS)]],6),\"\")","v":""},null,{"$f":"IF(Table2[[#This Row],['# extra beds that fit in the room]]<>Table2[[#This Row],['# extra beds that fit in the room2]],\"yes\",\"No\")","v":"No"}]
[null,{"$f":"IF(LEN(C527)>0,'1) Hotel information'!$C$4,\"\")","v":""},null,null,null,{"$f":"IFERROR(INDEX(Table1[Room description],MATCH('2) Room configuration'!D527,Table1[TMS],0)),\"\")","v":""},{"$f":"IFERROR(INDEX(Table1[Bedding],MATCH('2) Room configuration'!D527,Table1[TMS],0)),\"\")","v":""},null,null,{"$f":"IFERROR(INDEX(Table1[Room description],MATCH('2) Room configuration'!I527,Table1[TMS],0)),\"\")","v":""},{"$f":"IFERROR(INDEX(Table1[Bedding],MATCH('2) Room configuration'!I527,Table1[TMS],0)),\"\")","v":""},{"$f":"IFERROR(INDEX(Table1[Normal occupancy],MATCH(Table2[[#This Row],[New Room Type \n(TMS)]],Table1[TMS],0)),\"\")","v":""},null,null,null,null,"",{"$f":"IF(Table2[[#This Row],['# extra beds that fit in the room2]]<>0,LEFT(Table2[[#This Row],[New Room Type \n(TMS)]],6),\"\")","v":""},null,{"$f":"IF(Table2[[#This Row],['# extra beds that fit in the room]]<>Table2[[#This Row],['# extra beds that fit in the room2]],\"yes\",\"No\")","v":"No"}]
[null,{"$f":"IF(LEN(C528)>0,'1) Hotel information'!$C$4,\"\")","v":""},null,null,null,{"$f":"IFERROR(INDEX(Table1[Room description],MATCH('2) Room configuration'!D528,Table1[TMS],0)),\"\")","v":""},{"$f":"IFERROR(INDEX(Table1[Bedding],MATCH('2) Room configuration'!D528,Table1[TMS],0)),\"\")","v":""},null,null,{"$f":"IFERROR(INDEX(Table1[Room description],MATCH('2) Room configuration'!I528,Table1[TMS],0)),\"\")","v":""},{"$f":"IFERROR(INDEX(Table1[Bedding],MATCH('2) Room configuration'!I528,Table1[TMS],0)),\"\")","v":""},{"$f":"IFERROR(INDEX(Table1[Normal occupancy],MATCH(Table2[[#This Row],[New Room Type \n(TMS)]],Table1[TMS],0)),\"\")","v":""},null,null,null,null,"",{"$f":"IF(Table2[[#This Row],['# extra beds that fit in the room2]]<>0,LEFT(Table2[[#This Row],[New Room Type \n(TMS)]],6),\"\")","v":""},null,{"$f":"IF(Table2[[#This Row],['# extra beds that fit in the room]]<>Table2[[#This Row],['# extra beds that fit in the room2]],\"yes\",\"No\")","v":"No"}]
[null,{"$f":"IF(LEN(C529)>0,'1) Hotel information'!$C$4,\"\")","v":""},null,null,null,{"$f":"IFERROR(INDEX(Table1[Room description],MATCH('2) Room configuration'!D529,Table1[TMS],0)),\"\")","v":""},{"$f":"IFERROR(INDEX(Table1[Bedding],MATCH('2) Room configuration'!D529,Table1[TMS],0)),\"\")","v":""},null,null,{"$f":"IFERROR(INDEX(Table1[Room description],MATCH('2) Room configuration'!I529,Table1[TMS],0)),\"\")","v":""},{"$f":"IFERROR(INDEX(Table1[Bedding],MATCH('2) Room configuration'!I529,Table1[TMS],0)),\"\")","v":""},{"$f":"IFERROR(INDEX(Table1[Normal occupancy],MATCH(Table2[[#This Row],[New Room Type \n(TMS)]],Table1[TMS],0)),\"\")","v":""},null,null,null,null,"",{"$f":"IF(Table2[[#This Row],['# extra beds that fit in the room2]]<>0,LEFT(Table2[[#This Row],[New Room Type \n(TMS)]],6),\"\")","v":""},null,{"$f":"IF(Table2[[#This Row],['# extra beds that fit in the room]]<>Table2[[#This Row],['# extra beds that fit in the room2]],\"yes\",\"No\")","v":"No"}]
[null,{"$f":"IF(LEN(C530)>0,'1) Hotel information'!$C$4,\"\")","v":""},null,null,null,{"$f":"IFERROR(INDEX(Table1[Room description],MATCH('2) Room configuration'!D530,Table1[TMS],0)),\"\")","v":""},{"$f":"IFERROR(INDEX(Table1[Bedding],MATCH('2) Room configuration'!D530,Table1[TMS],0)),\"\")","v":""},null,null,{"$f":"IFERROR(INDEX(Table1[Room description],MATCH('2) Room configuration'!I530,Table1[TMS],0)),\"\")","v":""},{"$f":"IFERROR(INDEX(Table1[Bedding],MATCH('2) Room configuration'!I530,Table1[TMS],0)),\"\")","v":""},{"$f":"IFERROR(INDEX(Table1[Normal occupancy],MATCH(Table2[[#This Row],[New Room Type \n(TMS)]],Table1[TMS],0)),\"\")","v":""},null,null,null,null,"",{"$f":"IF(Table2[[#This Row],['# extra beds that fit in the room2]]<>0,LEFT(Table2[[#This Row],[New Room Type \n(TMS)]],6),\"\")","v":""},null,{"$f":"IF(Table2[[#This Row],['# extra beds that fit in the room]]<>Table2[[#This Row],['# extra beds that fit in the room2]],\"yes\",\"No\")","v":"No"}]
[null,{"$f":"IF(LEN(C531)>0,'1) Hotel information'!$C$4,\"\")","v":""},null,null,null,{"$f":"IFERROR(INDEX(Table1[Room description],MATCH('2) Room configuration'!D531,Table1[TMS],0)),\"\")","v":""},{"$f":"IFERROR(INDEX(Table1[Bedding],MATCH('2) Room configuration'!D531,Table1[TMS],0)),\"\")","v":""},null,null,{"$f":"IFERROR(INDEX(Table1[Room description],MATCH('2) Room configuration'!I531,Table1[TMS],0)),\"\")","v":""},{"$f":"IFERROR(INDEX(Table1[Bedding],MATCH('2) Room configuration'!I531,Table1[TMS],0)),\"\")","v":""},{"$f":"IFERROR(INDEX(Table1[Normal occupancy],MATCH(Table2[[#This Row],[New Room Type \n(TMS)]],Table1[TMS],0)),\"\")","v":""},null,null,null,null,"",{"$f":"IF(Table2[[#This Row],['# extra beds that fit in the room2]]<>0,LEFT(Table2[[#This Row],[New Room Type \n(TMS)]],6),\"\")","v":""},null,{"$f":"IF(Table2[[#This Row],['# extra beds that fit in the room]]<>Table2[[#This Row],['# extra beds that fit in the room2]],\"yes\",\"No\")","v":"No"}]
[null,{"$f":"IF(LEN(C532)>0,'1) Hotel information'!$C$4,\"\")","v":""},null,null,null,{"$f":"IFERROR(INDEX(Table1[Room description],MATCH('2) Room configuration'!D532,Table1[TMS],0)),\"\")","v":""},{"$f":"IFERROR(INDEX(Table1[Bedding],MATCH('2) Room configuration'!D532,Table1[TMS],0)),\"\")","v":""},null,null,{"$f":"IFERROR(INDEX(Table1[Room description],MATCH('2) Room configuration'!I532,Table1[TMS],0)),\"\")","v":""},{"$f":"IFERROR(INDEX(Table1[Bedding],MATCH('2) Room configuration'!I532,Table1[TMS],0)),\"\")","v":""},{"$f":"IFERROR(INDEX(Table1[Normal occupancy],MATCH(Table2[[#This Row],[New Room Type \n(TMS)]],Table1[TMS],0)),\"\")","v":""},null,null,null,null,"",{"$f":"IF(Table2[[#This Row],['# extra beds that fit in the room2]]<>0,LEFT(Table2[[#This Row],[New Room Type \n(TMS)]],6),\"\")","v":""},null,{"$f":"IF(Table2[[#This Row],['# extra beds that fit in the room]]<>Table2[[#This Row],['# extra beds that fit in the room2]],\"yes\",\"No\")","v":"No"}]
[null,{"$f":"IF(LEN(C533)>0,'1) Hotel information'!$C$4,\"\")","v":""},null,null,null,{"$f":"IFERROR(INDEX(Table1[Room description],MATCH('2) Room configuration'!D533,Table1[TMS],0)),\"\")","v":""},{"$f":"IFERROR(INDEX(Table1[Bedding],MATCH('2) Room configuration'!D533,Table1[TMS],0)),\"\")","v":""},null,null,{"$f":"IFERROR(INDEX(Table1[Room description],MATCH('2) Room configuration'!I533,Table1[TMS],0)),\"\")","v":""},{"$f":"IFERROR(INDEX(Table1[Bedding],MATCH('2) Room configuration'!I533,Table1[TMS],0)),\"\")","v":""},{"$f":"IFERROR(INDEX(Table1[Normal occupancy],MATCH(Table2[[#This Row],[New Room Type \n(TMS)]],Table1[TMS],0)),\"\")","v":""},null,null,null,null,"",{"$f":"IF(Table2[[#This Row],['# extra beds that fit in the room2]]<>0,LEFT(Table2[[#This Row],[New Room Type \n(TMS)]],6),\"\")","v":""},null,{"$f":"IF(Table2[[#This Row],['# extra beds that fit in the room]]<>Table2[[#This Row],['# extra beds that fit in the room2]],\"yes\",\"No\")","v":"No"}]
[null,{"$f":"IF(LEN(C534)>0,'1) Hotel information'!$C$4,\"\")","v":""},null,null,null,{"$f":"IFERROR(INDEX(Table1[Room description],MATCH('2) Room configuration'!D534,Table1[TMS],0)),\"\")","v":""},{"$f":"IFERROR(INDEX(Table1[Bedding],MATCH('2) Room configuration'!D534,Table1[TMS],0)),\"\")","v":""},null,null,{"$f":"IFERROR(INDEX(Table1[Room description],MATCH('2) Room configuration'!I534,Table1[TMS],0)),\"\")","v":""},{"$f":"IFERROR(INDEX(Table1[Bedding],MATCH('2) Room configuration'!I534,Table1[TMS],0)),\"\")","v":""},{"$f":"IFERROR(INDEX(Table1[Normal occupancy],MATCH(Table2[[#This Row],[New Room Type \n(TMS)]],Table1[TMS],0)),\"\")","v":""},null,null,null,null,"",{"$f":"IF(Table2[[#This Row],['# extra beds that fit in the room2]]<>0,LEFT(Table2[[#This Row],[New Room Type \n(TMS)]],6),\"\")","v":""},null,{"$f":"IF(Table2[[#This Row],['# extra beds that fit in the room]]<>Table2[[#This Row],['# extra beds that fit in the room2]],\"yes\",\"No\")","v":"No"}]
[null,{"$f":"IF(LEN(C535)>0,'1) Hotel information'!$C$4,\"\")","v":""},null,null,null,{"$f":"IFERROR(INDEX(Table1[Room description],MATCH('2) Room configuration'!D535,Table1[TMS],0)),\"\")","v":""},{"$f":"IFERROR(INDEX(Table1[Bedding],MATCH('2) Room configuration'!D535,Table1[TMS],0)),\"\")","v":""},null,null,{"$f":"IFERROR(INDEX(Table1[Room description],MATCH('2) Room configuration'!I535,Table1[TMS],0)),\"\")","v":""},{"$f":"IFERROR(INDEX(Table1[Bedding],MATCH('2) Room configuration'!I535,Table1[TMS],0)),\"\")","v":""},{"$f":"IFERROR(INDEX(Table1[Normal occupancy],MATCH(Table2[[#This Row],[New Room Type \n(TMS)]],Table1[TMS],0)),\"\")","v":""},null,null,null,null,"",{"$f":"IF(Table2[[#This Row],['# extra beds that fit in the room2]]<>0,LEFT(Table2[[#This Row],[New Room Type \n(TMS)]],6),\"\")","v":""},null,{"$f":"IF(Table2[[#This Row],['# extra beds that fit in the room]]<>Table2[[#This Row],['# extra beds that fit in the room2]],\"yes\",\"No\")","v":"No"}]
[null,{"$f":"IF(LEN(C536)>0,'1) Hotel information'!$C$4,\"\")","v":""},null,null,null,{"$f":"IFERROR(INDEX(Table1[Room description],MATCH('2) Room configuration'!D536,Table1[TMS],0)),\"\")","v":""},{"$f":"IFERROR(INDEX(Table1[Bedding],MATCH('2) Room configuration'!D536,Table1[TMS],0)),\"\")","v":""},null,null,{"$f":"IFERROR(INDEX(Table1[Room description],MATCH('2) Room configuration'!I536,Table1[TMS],0)),\"\")","v":""},{"$f":"IFERROR(INDEX(Table1[Bedding],MATCH('2) Room configuration'!I536,Table1[TMS],0)),\"\")","v":""},{"$f":"IFERROR(INDEX(Table1[Normal occupancy],MATCH(Table2[[#This Row],[New Room Type \n(TMS)]],Table1[TMS],0)),\"\")","v":""},null,null,null,null,"",{"$f":"IF(Table2[[#This Row],['# extra beds that fit in the room2]]<>0,LEFT(Table2[[#This Row],[New Room Type \n(TMS)]],6),\"\")","v":""},null,{"$f":"IF(Table2[[#This Row],['# extra beds that fit in the room]]<>Table2[[#This Row],['# extra beds that fit in the room2]],\"yes\",\"No\")","v":"No"}]
[null,{"$f":"IF(LEN(C537)>0,'1) Hotel information'!$C$4,\"\")","v":""},null,null,null,{"$f":"IFERROR(INDEX(Table1[Room description],MATCH('2) Room configuration'!D537,Table1[TMS],0)),\"\")","v":""},{"$f":"IFERROR(INDEX(Table1[Bedding],MATCH('2) Room configuration'!D537,Table1[TMS],0)),\"\")","v":""},null,null,{"$f":"IFERROR(INDEX(Table1[Room description],MATCH('2) Room configuration'!I537,Table1[TMS],0)),\"\")","v":""},{"$f":"IFERROR(INDEX(Table1[Bedding],MATCH('2) Room configuration'!I537,Table1[TMS],0)),\"\")","v":""},{"$f":"IFERROR(INDEX(Table1[Normal occupancy],MATCH(Table2[[#This Row],[New Room Type \n(TMS)]],Table1[TMS],0)),\"\")","v":""},null,null,null,null,"",{"$f":"IF(Table2[[#This Row],['# extra beds that fit in the room2]]<>0,LEFT(Table2[[#This Row],[New Room Type \n(TMS)]],6),\"\")","v":""},null,{"$f":"IF(Table2[[#This Row],['# extra beds that fit in the room]]<>Table2[[#This Row],['# extra beds that fit in the room2]],\"yes\",\"No\")","v":"No"}]
[null,{"$f":"IF(LEN(C538)>0,'1) Hotel information'!$C$4,\"\")","v":""},null,null,null,{"$f":"IFERROR(INDEX(Table1[Room description],MATCH('2) Room configuration'!D538,Table1[TMS],0)),\"\")","v":""},{"$f":"IFERROR(INDEX(Table1[Bedding],MATCH('2) Room configuration'!D538,Table1[TMS],0)),\"\")","v":""},null,null,{"$f":"IFERROR(INDEX(Table1[Room description],MATCH('2) Room configuration'!I538,Table1[TMS],0)),\"\")","v":""},{"$f":"IFERROR(INDEX(Table1[Bedding],MATCH('2) Room configuration'!I538,Table1[TMS],0)),\"\")","v":""},{"$f":"IFERROR(INDEX(Table1[Normal occupancy],MATCH(Table2[[#This Row],[New Room Type \n(TMS)]],Table1[TMS],0)),\"\")","v":""},null,null,null,null,"",{"$f":"IF(Table2[[#This Row],['# extra beds that fit in the room2]]<>0,LEFT(Table2[[#This Row],[New Room Type \n(TMS)]],6),\"\")","v":""},null,{"$f":"IF(Table2[[#This Row],['# extra beds that fit in the room]]<>Table2[[#This Row],['# extra beds that fit in the room2]],\"yes\",\"No\")","v":"No"}]
[null,{"$f":"IF(LEN(C539)>0,'1) Hotel information'!$C$4,\"\")","v":""},null,null,null,{"$f":"IFERROR(INDEX(Table1[Room description],MATCH('2) Room configuration'!D539,Table1[TMS],0)),\"\")","v":""},{"$f":"IFERROR(INDEX(Table1[Bedding],MATCH('2) Room configuration'!D539,Table1[TMS],0)),\"\")","v":""},null,null,{"$f":"IFERROR(INDEX(Table1[Room description],MATCH('2) Room configuration'!I539,Table1[TMS],0)),\"\")","v":""},{"$f":"IFERROR(INDEX(Table1[Bedding],MATCH('2) Room configuration'!I539,Table1[TMS],0)),\"\")","v":""},{"$f":"IFERROR(INDEX(Table1[Normal occupancy],MATCH(Table2[[#This Row],[New Room Type \n(TMS)]],Table1[TMS],0)),\"\")","v":""},null,null,null,null,"",{"$f":"IF(Table2[[#This Row],['# extra beds that fit in the room2]]<>0,LEFT(Table2[[#This Row],[New Room Type \n(TMS)]],6),\"\")","v":""},null,{"$f":"IF(Table2[[#This Row],['# extra beds that fit in the room]]<>Table2[[#This Row],['# extra beds that fit in the room2]],\"yes\",\"No\")","v":"No"}]
[null,{"$f":"IF(LEN(C540)>0,'1) Hotel information'!$C$4,\"\")","v":""},null,null,null,{"$f":"IFERROR(INDEX(Table1[Room description],MATCH('2) Room configuration'!D540,Table1[TMS],0)),\"\")","v":""},{"$f":"IFERROR(INDEX(Table1[Bedding],MATCH('2) Room configuration'!D540,Table1[TMS],0)),\"\")","v":""},null,null,{"$f":"IFERROR(INDEX(Table1[Room description],MATCH('2) Room configuration'!I540,Table1[TMS],0)),\"\")","v":""},{"$f":"IFERROR(INDEX(Table1[Bedding],MATCH('2) Room configuration'!I540,Table1[TMS],0)),\"\")","v":""},{"$f":"IFERROR(INDEX(Table1[Normal occupancy],MATCH(Table2[[#This Row],[New Room Type \n(TMS)]],Table1[TMS],0)),\"\")","v":""},null,null,null,null,"",{"$f":"IF(Table2[[#This Row],['# extra beds that fit in the room2]]<>0,LEFT(Table2[[#This Row],[New Room Type \n(TMS)]],6),\"\")","v":""},null,{"$f":"IF(Table2[[#This Row],['# extra beds that fit in the room]]<>Table2[[#This Row],['# extra beds that fit in the room2]],\"yes\",\"No\")","v":"No"}]
[null,{"$f":"IF(LEN(C541)>0,'1) Hotel information'!$C$4,\"\")","v":""},null,null,null,{"$f":"IFERROR(INDEX(Table1[Room description],MATCH('2) Room configuration'!D541,Table1[TMS],0)),\"\")","v":""},{"$f":"IFERROR(INDEX(Table1[Bedding],MATCH('2) Room configuration'!D541,Table1[TMS],0)),\"\")","v":""},null,null,{"$f":"IFERROR(INDEX(Table1[Room description],MATCH('2) Room configuration'!I541,Table1[TMS],0)),\"\")","v":""},{"$f":"IFERROR(INDEX(Table1[Bedding],MATCH('2) Room configuration'!I541,Table1[TMS],0)),\"\")","v":""},{"$f":"IFERROR(INDEX(Table1[Normal occupancy],MATCH(Table2[[#This Row],[New Room Type \n(TMS)]],Table1[TMS],0)),\"\")","v":""},null,null,null,null,"",{"$f":"IF(Table2[[#This Row],['# extra beds that fit in the room2]]<>0,LEFT(Table2[[#This Row],[New Room Type \n(TMS)]],6),\"\")","v":""},null,{"$f":"IF(Table2[[#This Row],['# extra beds that fit in the room]]<>Table2[[#This Row],['# extra beds that fit in the room2]],\"yes\",\"No\")","v":"No"}]
[null,{"$f":"IF(LEN(C542)>0,'1) Hotel information'!$C$4,\"\")","v":""},null,null,null,{"$f":"IFERROR(INDEX(Table1[Room description],MATCH('2) Room configuration'!D542,Table1[TMS],0)),\"\")","v":""},{"$f":"IFERROR(INDEX(Table1[Bedding],MATCH('2) Room configuration'!D542,Table1[TMS],0)),\"\")","v":""},null,null,{"$f":"IFERROR(INDEX(Table1[Room description],MATCH('2) Room configuration'!I542,Table1[TMS],0)),\"\")","v":""},{"$f":"IFERROR(INDEX(Table1[Bedding],MATCH('2) Room configuration'!I542,Table1[TMS],0)),\"\")","v":""},{"$f":"IFERROR(INDEX(Table1[Normal occupancy],MATCH(Table2[[#This Row],[New Room Type \n(TMS)]],Table1[TMS],0)),\"\")","v":""},null,null,null,null,"",{"$f":"IF(Table2[[#This Row],['# extra beds that fit in the room2]]<>0,LEFT(Table2[[#This Row],[New Room Type \n(TMS)]],6),\"\")","v":""},null,{"$f":"IF(Table2[[#This Row],['# extra beds that fit in the room]]<>Table2[[#This Row],['# extra beds that fit in the room2]],\"yes\",\"No\")","v":"No"}]
[null,{"$f":"IF(LEN(C543)>0,'1) Hotel information'!$C$4,\"\")","v":""},null,null,null,{"$f":"IFERROR(INDEX(Table1[Room description],MATCH('2) Room configuration'!D543,Table1[TMS],0)),\"\")","v":""},{"$f":"IFERROR(INDEX(Table1[Bedding],MATCH('2) Room configuration'!D543,Table1[TMS],0)),\"\")","v":""},null,null,{"$f":"IFERROR(INDEX(Table1[Room description],MATCH('2) Room configuration'!I543,Table1[TMS],0)),\"\")","v":""},{"$f":"IFERROR(INDEX(Table1[Bedding],MATCH('2) Room configuration'!I543,Table1[TMS],0)),\"\")","v":""},{"$f":"IFERROR(INDEX(Table1[Normal occupancy],MATCH(Table2[[#This Row],[New Room Type \n(TMS)]],Table1[TMS],0)),\"\")","v":""},null,null,null,null,"",{"$f":"IF(Table2[[#This Row],['# extra beds that fit in the room2]]<>0,LEFT(Table2[[#This Row],[New Room Type \n(TMS)]],6),\"\")","v":""},null,{"$f":"IF(Table2[[#This Row],['# extra beds that fit in the room]]<>Table2[[#This Row],['# extra beds that fit in the room2]],\"yes\",\"No\")","v":"No"}]
[null,{"$f":"IF(LEN(C544)>0,'1) Hotel information'!$C$4,\"\")","v":""},null,null,null,{"$f":"IFERROR(INDEX(Table1[Room description],MATCH('2) Room configuration'!D544,Table1[TMS],0)),\"\")","v":""},{"$f":"IFERROR(INDEX(Table1[Bedding],MATCH('2) Room configuration'!D544,Table1[TMS],0)),\"\")","v":""},null,null,{"$f":"IFERROR(INDEX(Table1[Room description],MATCH('2) Room configuration'!I544,Table1[TMS],0)),\"\")","v":""},{"$f":"IFERROR(INDEX(Table1[Bedding],MATCH('2) Room configuration'!I544,Table1[TMS],0)),\"\")","v":""},{"$f":"IFERROR(INDEX(Table1[Normal occupancy],MATCH(Table2[[#This Row],[New Room Type \n(TMS)]],Table1[TMS],0)),\"\")","v":""},null,null,null,null,"",{"$f":"IF(Table2[[#This Row],['# extra beds that fit in the room2]]<>0,LEFT(Table2[[#This Row],[New Room Type \n(TMS)]],6),\"\")","v":""},null,{"$f":"IF(Table2[[#This Row],['# extra beds that fit in the room]]<>Table2[[#This Row],['# extra beds that fit in the room2]],\"yes\",\"No\")","v":"No"}]
[null,{"$f":"IF(LEN(C545)>0,'1) Hotel information'!$C$4,\"\")","v":""},null,null,null,{"$f":"IFERROR(INDEX(Table1[Room description],MATCH('2) Room configuration'!D545,Table1[TMS],0)),\"\")","v":""},{"$f":"IFERROR(INDEX(Table1[Bedding],MATCH('2) Room configuration'!D545,Table1[TMS],0)),\"\")","v":""},null,null,{"$f":"IFERROR(INDEX(Table1[Room description],MATCH('2) Room configuration'!I545,Table1[TMS],0)),\"\")","v":""},{"$f":"IFERROR(INDEX(Table1[Bedding],MATCH('2) Room configuration'!I545,Table1[TMS],0)),\"\")","v":""},{"$f":"IFERROR(INDEX(Table1[Normal occupancy],MATCH(Table2[[#This Row],[New Room Type \n(TMS)]],Table1[TMS],0)),\"\")","v":""},null,null,null,null,"",{"$f":"IF(Table2[[#This Row],['# extra beds that fit in the room2]]<>0,LEFT(Table2[[#This Row],[New Room Type \n(TMS)]],6),\"\")","v":""},null,{"$f":"IF(Table2[[#This Row],['# extra beds that fit in the room]]<>Table2[[#This Row],['# extra beds that fit in the room2]],\"yes\",\"No\")","v":"No"}]
[null,{"$f":"IF(LEN(C546)>0,'1) Hotel information'!$C$4,\"\")","v":""},null,null,null,{"$f":"IFERROR(INDEX(Table1[Room description],MATCH('2) Room configuration'!D546,Table1[TMS],0)),\"\")","v":""},{"$f":"IFERROR(INDEX(Table1[Bedding],MATCH('2) Room configuration'!D546,Table1[TMS],0)),\"\")","v":""},null,null,{"$f":"IFERROR(INDEX(Table1[Room description],MATCH('2) Room configuration'!I546,Table1[TMS],0)),\"\")","v":""},{"$f":"IFERROR(INDEX(Table1[Bedding],MATCH('2) Room configuration'!I546,Table1[TMS],0)),\"\")","v":""},{"$f":"IFERROR(INDEX(Table1[Normal occupancy],MATCH(Table2[[#This Row],[New Room Type \n(TMS)]],Table1[TMS],0)),\"\")","v":""},null,null,null,null,"",{"$f":"IF(Table2[[#This Row],['# extra beds that fit in the room2]]<>0,LEFT(Table2[[#This Row],[New Room Type \n(TMS)]],6),\"\")","v":""},null,{"$f":"IF(Table2[[#This Row],['# extra beds that fit in the room]]<>Table2[[#This Row],['# extra beds that fit in the room2]],\"yes\",\"No\")","v":"No"}]
[null,{"$f":"IF(LEN(C547)>0,'1) Hotel information'!$C$4,\"\")","v":""},null,null,null,{"$f":"IFERROR(INDEX(Table1[Room description],MATCH('2) Room configuration'!D547,Table1[TMS],0)),\"\")","v":""},{"$f":"IFERROR(INDEX(Table1[Bedding],MATCH('2) Room configuration'!D547,Table1[TMS],0)),\"\")","v":""},null,null,{"$f":"IFERROR(INDEX(Table1[Room description],MATCH('2) Room configuration'!I547,Table1[TMS],0)),\"\")","v":""},{"$f":"IFERROR(INDEX(Table1[Bedding],MATCH('2) Room configuration'!I547,Table1[TMS],0)),\"\")","v":""},{"$f":"IFERROR(INDEX(Table1[Normal occupancy],MATCH(Table2[[#This Row],[New Room Type \n(TMS)]],Table1[TMS],0)),\"\")","v":""},null,null,null,null,"",{"$f":"IF(Table2[[#This Row],['# extra beds that fit in the room2]]<>0,LEFT(Table2[[#This Row],[New Room Type \n(TMS)]],6),\"\")","v":""},null,{"$f":"IF(Table2[[#This Row],['# extra beds that fit in the room]]<>Table2[[#This Row],['# extra beds that fit in the room2]],\"yes\",\"No\")","v":"No"}]
[null,{"$f":"IF(LEN(C548)>0,'1) Hotel information'!$C$4,\"\")","v":""},null,null,null,{"$f":"IFERROR(INDEX(Table1[Room description],MATCH('2) Room configuration'!D548,Table1[TMS],0)),\"\")","v":""},{"$f":"IFERROR(INDEX(Table1[Bedding],MATCH('2) Room configuration'!D548,Table1[TMS],0)),\"\")","v":""},null,null,{"$f":"IFERROR(INDEX(Table1[Room description],MATCH('2) Room configuration'!I548,Table1[TMS],0)),\"\")","v":""},{"$f":"IFERROR(INDEX(Table1[Bedding],MATCH('2) Room configuration'!I548,Table1[TMS],0)),\"\")","v":""},{"$f":"IFERROR(INDEX(Table1[Normal occupancy],MATCH(Table2[[#This Row],[New Room Type \n(TMS)]],Table1[TMS],0)),\"\")","v":""},null,null,null,null,"",{"$f":"IF(Table2[[#This Row],['# extra beds that fit in the room2]]<>0,LEFT(Table2[[#This Row],[New Room Type \n(TMS)]],6),\"\")","v":""},null,{"$f":"IF(Table2[[#This Row],['# extra beds that fit in the room]]<>Table2[[#This Row],['# extra beds that fit in the room2]],\"yes\",\"No\")","v":"No"}]
[null,{"$f":"IF(LEN(C549)>0,'1) Hotel information'!$C$4,\"\")","v":""},null,null,null,{"$f":"IFERROR(INDEX(Table1[Room description],MATCH('2) Room configuration'!D549,Table1[TMS],0)),\"\")","v":""},{"$f":"IFERROR(INDEX(Table1[Bedding],MATCH('2) Room configuration'!D549,Table1[TMS],0)),\"\")","v":""},null,null,{"$f":"IFERROR(INDEX(Table1[Room description],MATCH('2) Room configuration'!I549,Table1[TMS],0)),\"\")","v":""},{"$f":"IFERROR(INDEX(Table1[Bedding],MATCH('2) Room configuration'!I549,Table1[TMS],0)),\"\")","v":""},{"$f":"IFERROR(INDEX(Table1[Normal occupancy],MATCH(Table2[[#This Row],[New Room Type \n(TMS)]],Table1[TMS],0)),\"\")","v":""},null,null,null,null,"",{"$f":"IF(Table2[[#This Row],['# extra beds that fit in the room2]]<>0,LEFT(Table2[[#This Row],[New Room Type \n(TMS)]],6),\"\")","v":""},null,{"$f":"IF(Table2[[#This Row],['# extra beds that fit in the room]]<>Table2[[#This Row],['# extra beds that fit in the room2]],\"yes\",\"No\")","v":"No"}]
[null,{"$f":"IF(LEN(C550)>0,'1) Hotel information'!$C$4,\"\")","v":""},null,null,null,{"$f":"IFERROR(INDEX(Table1[Room description],MATCH('2) Room configuration'!D550,Table1[TMS],0)),\"\")","v":""},{"$f":"IFERROR(INDEX(Table1[Bedding],MATCH('2) Room configuration'!D550,Table1[TMS],0)),\"\")","v":""},null,null,{"$f":"IFERROR(INDEX(Table1[Room description],MATCH('2) Room configuration'!I550,Table1[TMS],0)),\"\")","v":""},{"$f":"IFERROR(INDEX(Table1[Bedding],MATCH('2) Room configuration'!I550,Table1[TMS],0)),\"\")","v":""},{"$f":"IFERROR(INDEX(Table1[Normal occupancy],MATCH(Table2[[#This Row],[New Room Type \n(TMS)]],Table1[TMS],0)),\"\")","v":""},null,null,null,null,"",{"$f":"IF(Table2[[#This Row],['# extra beds that fit in the room2]]<>0,LEFT(Table2[[#This Row],[New Room Type \n(TMS)]],6),\"\")","v":""},null,{"$f":"IF(Table2[[#This Row],['# extra beds that fit in the room]]<>Table2[[#This Row],['# extra beds that fit in the room2]],\"yes\",\"No\")","v":"No"}]
[null,{"$f":"IF(LEN(C551)>0,'1) Hotel information'!$C$4,\"\")","v":""},null,null,null,{"$f":"IFERROR(INDEX(Table1[Room description],MATCH('2) Room configuration'!D551,Table1[TMS],0)),\"\")","v":""},{"$f":"IFERROR(INDEX(Table1[Bedding],MATCH('2) Room configuration'!D551,Table1[TMS],0)),\"\")","v":""},null,null,{"$f":"IFERROR(INDEX(Table1[Room description],MATCH('2) Room configuration'!I551,Table1[TMS],0)),\"\")","v":""},{"$f":"IFERROR(INDEX(Table1[Bedding],MATCH('2) Room configuration'!I551,Table1[TMS],0)),\"\")","v":""},{"$f":"IFERROR(INDEX(Table1[Normal occupancy],MATCH(Table2[[#This Row],[New Room Type \n(TMS)]],Table1[TMS],0)),\"\")","v":""},null,null,null,null,"",{"$f":"IF(Table2[[#This Row],['# extra beds that fit in the room2]]<>0,LEFT(Table2[[#This Row],[New Room Type \n(TMS)]],6),\"\")","v":""},null,{"$f":"IF(Table2[[#This Row],['# extra beds that fit in the room]]<>Table2[[#This Row],['# extra beds that fit in the room2]],\"yes\",\"No\")","v":"No"}]
[null,{"$f":"IF(LEN(C552)>0,'1) Hotel information'!$C$4,\"\")","v":""},null,null,null,{"$f":"IFERROR(INDEX(Table1[Room description],MATCH('2) Room configuration'!D552,Table1[TMS],0)),\"\")","v":""},{"$f":"IFERROR(INDEX(Table1[Bedding],MATCH('2) Room configuration'!D552,Table1[TMS],0)),\"\")","v":""},null,null,{"$f":"IFERROR(INDEX(Table1[Room description],MATCH('2) Room configuration'!I552,Table1[TMS],0)),\"\")","v":""},{"$f":"IFERROR(INDEX(Table1[Bedding],MATCH('2) Room configuration'!I552,Table1[TMS],0)),\"\")","v":""},{"$f":"IFERROR(INDEX(Table1[Normal occupancy],MATCH(Table2[[#This Row],[New Room Type \n(TMS)]],Table1[TMS],0)),\"\")","v":""},null,null,null,null,"",{"$f":"IF(Table2[[#This Row],['# extra beds that fit in the room2]]<>0,LEFT(Table2[[#This Row],[New Room Type \n(TMS)]],6),\"\")","v":""},null,{"$f":"IF(Table2[[#This Row],['# extra beds that fit in the room]]<>Table2[[#This Row],['# extra beds that fit in the room2]],\"yes\",\"No\")","v":"No"}]
[null,{"$f":"IF(LEN(C553)>0,'1) Hotel information'!$C$4,\"\")","v":""},null,null,null,{"$f":"IFERROR(INDEX(Table1[Room description],MATCH('2) Room configuration'!D553,Table1[TMS],0)),\"\")","v":""},{"$f":"IFERROR(INDEX(Table1[Bedding],MATCH('2) Room configuration'!D553,Table1[TMS],0)),\"\")","v":""},null,null,{"$f":"IFERROR(INDEX(Table1[Room description],MATCH('2) Room configuration'!I553,Table1[TMS],0)),\"\")","v":""},{"$f":"IFERROR(INDEX(Table1[Bedding],MATCH('2) Room configuration'!I553,Table1[TMS],0)),\"\")","v":""},{"$f":"IFERROR(INDEX(Table1[Normal occupancy],MATCH(Table2[[#This Row],[New Room Type \n(TMS)]],Table1[TMS],0)),\"\")","v":""},null,null,null,null,"",{"$f":"IF(Table2[[#This Row],['# extra beds that fit in the room2]]<>0,LEFT(Table2[[#This Row],[New Room Type \n(TMS)]],6),\"\")","v":""},null,{"$f":"IF(Table2[[#This Row],['# extra beds that fit in the room]]<>Table2[[#This Row],['# extra beds that fit in the room2]],\"yes\",\"No\")","v":"No"}]
[null,{"$f":"IF(LEN(C554)>0,'1) Hotel information'!$C$4,\"\")","v":""},null,null,null,{"$f":"IFERROR(INDEX(Table1[Room description],MATCH('2) Room configuration'!D554,Table1[TMS],0)),\"\")","v":""},{"$f":"IFERROR(INDEX(Table1[Bedding],MATCH('2) Room configuration'!D554,Table1[TMS],0)),\"\")","v":""},null,null,{"$f":"IFERROR(INDEX(Table1[Room description],MATCH('2) Room configuration'!I554,Table1[TMS],0)),\"\")","v":""},{"$f":"IFERROR(INDEX(Table1[Bedding],MATCH('2) Room configuration'!I554,Table1[TMS],0)),\"\")","v":""},{"$f":"IFERROR(INDEX(Table1[Normal occupancy],MATCH(Table2[[#This Row],[New Room Type \n(TMS)]],Table1[TMS],0)),\"\")","v":""},null,null,null,null,"",{"$f":"IF(Table2[[#This Row],['# extra beds that fit in the room2]]<>0,LEFT(Table2[[#This Row],[New Room Type \n(TMS)]],6),\"\")","v":""},null,{"$f":"IF(Table2[[#This Row],['# extra beds that fit in the room]]<>Table2[[#This Row],['# extra beds that fit in the room2]],\"yes\",\"No\")","v":"No"}]
[null,{"$f":"IF(LEN(C555)>0,'1) Hotel information'!$C$4,\"\")","v":""},null,null,null,{"$f":"IFERROR(INDEX(Table1[Room description],MATCH('2) Room configuration'!D555,Table1[TMS],0)),\"\")","v":""},{"$f":"IFERROR(INDEX(Table1[Bedding],MATCH('2) Room configuration'!D555,Table1[TMS],0)),\"\")","v":""},null,null,{"$f":"IFERROR(INDEX(Table1[Room description],MATCH('2) Room configuration'!I555,Table1[TMS],0)),\"\")","v":""},{"$f":"IFERROR(INDEX(Table1[Bedding],MATCH('2) Room configuration'!I555,Table1[TMS],0)),\"\")","v":""},{"$f":"IFERROR(INDEX(Table1[Normal occupancy],MATCH(Table2[[#This Row],[New Room Type \n(TMS)]],Table1[TMS],0)),\"\")","v":""},null,null,null,null,"",{"$f":"IF(Table2[[#This Row],['# extra beds that fit in the room2]]<>0,LEFT(Table2[[#This Row],[New Room Type \n(TMS)]],6),\"\")","v":""},null,{"$f":"IF(Table2[[#This Row],['# extra beds that fit in the room]]<>Table2[[#This Row],['# extra beds that fit in the room2]],\"yes\",\"No\")","v":"No"}]
[null,{"$f":"IF(LEN(C556)>0,'1) Hotel information'!$C$4,\"\")","v":""},null,null,null,{"$f":"IFERROR(INDEX(Table1[Room description],MATCH('2) Room configuration'!D556,Table1[TMS],0)),\"\")","v":""},{"$f":"IFERROR(INDEX(Table1[Bedding],MATCH('2) Room configuration'!D556,Table1[TMS],0)),\"\")","v":""},null,null,{"$f":"IFERROR(INDEX(Table1[Room description],MATCH('2) Room configuration'!I556,Table1[TMS],0)),\"\")","v":""},{"$f":"IFERROR(INDEX(Table1[Bedding],MATCH('2) Room configuration'!I556,Table1[TMS],0)),\"\")","v":""},{"$f":"IFERROR(INDEX(Table1[Normal occupancy],MATCH(Table2[[#This Row],[New Room Type \n(TMS)]],Table1[TMS],0)),\"\")","v":""},null,null,null,null,"",{"$f":"IF(Table2[[#This Row],['# extra beds that fit in the room2]]<>0,LEFT(Table2[[#This Row],[New Room Type \n(TMS)]],6),\"\")","v":""},null,{"$f":"IF(Table2[[#This Row],['# extra beds that fit in the room]]<>Table2[[#This Row],['# extra beds that fit in the room2]],\"yes\",\"No\")","v":"No"}]
[null,{"$f":"IF(LEN(C557)>0,'1) Hotel information'!$C$4,\"\")","v":""},null,null,null,{"$f":"IFERROR(INDEX(Table1[Room description],MATCH('2) Room configuration'!D557,Table1[TMS],0)),\"\")","v":""},{"$f":"IFERROR(INDEX(Table1[Bedding],MATCH('2) Room configuration'!D557,Table1[TMS],0)),\"\")","v":""},null,null,{"$f":"IFERROR(INDEX(Table1[Room description],MATCH('2) Room configuration'!I557,Table1[TMS],0)),\"\")","v":""},{"$f":"IFERROR(INDEX(Table1[Bedding],MATCH('2) Room configuration'!I557,Table1[TMS],0)),\"\")","v":""},{"$f":"IFERROR(INDEX(Table1[Normal occupancy],MATCH(Table2[[#This Row],[New Room Type \n(TMS)]],Table1[TMS],0)),\"\")","v":""},null,null,null,null,"",{"$f":"IF(Table2[[#This Row],['# extra beds that fit in the room2]]<>0,LEFT(Table2[[#This Row],[New Room Type \n(TMS)]],6),\"\")","v":""},null,{"$f":"IF(Table2[[#This Row],['# extra beds that fit in the room]]<>Table2[[#This Row],['# extra beds that fit in the room2]],\"yes\",\"No\")","v":"No"}]
[null,{"$f":"IF(LEN(C558)>0,'1) Hotel information'!$C$4,\"\")","v":""},null,null,null,{"$f":"IFERROR(INDEX(Table1[Room description],MATCH('2) Room configuration'!D558,Table1[TMS],0)),\"\")","v":""},{"$f":"IFERROR(INDEX(Table1[Bedding],MATCH('2) Room configuration'!D558,Table1[TMS],0)),\"\")","v":""},null,null,{"$f":"IFERROR(INDEX(Table1[Room description],MATCH('2) Room configuration'!I558,Table1[TMS],0)),\"\")","v":""},{"$f":"IFERROR(INDEX(Table1[Bedding],MATCH('2) Room configuration'!I558,Table1[TMS],0)),\"\")","v":""},{"$f":"IFERROR(INDEX(Table1[Normal occupancy],MATCH(Table2[[#This Row],[New Room Type \n(TMS)]],Table1[TMS],0)),\"\")","v":""},null,null,null,null,"",{"$f":"IF(Table2[[#This Row],['# extra beds that fit in the room2]]<>0,LEFT(Table2[[#This Row],[New Room Type \n(TMS)]],6),\"\")","v":""},null,{"$f":"IF(Table2[[#This Row],['# extra beds that fit in the room]]<>Table2[[#This Row],['# extra beds that fit in the room2]],\"yes\",\"No\")","v":"No"}]
[null,{"$f":"IF(LEN(C559)>0,'1) Hotel information'!$C$4,\"\")","v":""},null,null,null,{"$f":"IFERROR(INDEX(Table1[Room description],MATCH('2) Room configuration'!D559,Table1[TMS],0)),\"\")","v":""},{"$f":"IFERROR(INDEX(Table1[Bedding],MATCH('2) Room configuration'!D559,Table1[TMS],0)),\"\")","v":""},null,null,{"$f":"IFERROR(INDEX(Table1[Room description],MATCH('2) Room configuration'!I559,Table1[TMS],0)),\"\")","v":""},{"$f":"IFERROR(INDEX(Table1[Bedding],MATCH('2) Room configuration'!I559,Table1[TMS],0)),\"\")","v":""},{"$f":"IFERROR(INDEX(Table1[Normal occupancy],MATCH(Table2[[#This Row],[New Room Type \n(TMS)]],Table1[TMS],0)),\"\")","v":""},null,null,null,null,"",{"$f":"IF(Table2[[#This Row],['# extra beds that fit in the room2]]<>0,LEFT(Table2[[#This Row],[New Room Type \n(TMS)]],6),\"\")","v":""},null,{"$f":"IF(Table2[[#This Row],['# extra beds that fit in the room]]<>Table2[[#This Row],['# extra beds that fit in the room2]],\"yes\",\"No\")","v":"No"}]
[null,{"$f":"IF(LEN(C560)>0,'1) Hotel information'!$C$4,\"\")","v":""},null,null,null,{"$f":"IFERROR(INDEX(Table1[Room description],MATCH('2) Room configuration'!D560,Table1[TMS],0)),\"\")","v":""},{"$f":"IFERROR(INDEX(Table1[Bedding],MATCH('2) Room configuration'!D560,Table1[TMS],0)),\"\")","v":""},null,null,{"$f":"IFERROR(INDEX(Table1[Room description],MATCH('2) Room configuration'!I560,Table1[TMS],0)),\"\")","v":""},{"$f":"IFERROR(INDEX(Table1[Bedding],MATCH('2) Room configuration'!I560,Table1[TMS],0)),\"\")","v":""},{"$f":"IFERROR(INDEX(Table1[Normal occupancy],MATCH(Table2[[#This Row],[New Room Type \n(TMS)]],Table1[TMS],0)),\"\")","v":""},null,null,null,null,"",{"$f":"IF(Table2[[#This Row],['# extra beds that fit in the room2]]<>0,LEFT(Table2[[#This Row],[New Room Type \n(TMS)]],6),\"\")","v":""},null,{"$f":"IF(Table2[[#This Row],['# extra beds that fit in the room]]<>Table2[[#This Row],['# extra beds that fit in the room2]],\"yes\",\"No\")","v":"No"}]
[null,{"$f":"IF(LEN(C561)>0,'1) Hotel information'!$C$4,\"\")","v":""},null,null,null,{"$f":"IFERROR(INDEX(Table1[Room description],MATCH('2) Room configuration'!D561,Table1[TMS],0)),\"\")","v":""},{"$f":"IFERROR(INDEX(Table1[Bedding],MATCH('2) Room configuration'!D561,Table1[TMS],0)),\"\")","v":""},null,null,{"$f":"IFERROR(INDEX(Table1[Room description],MATCH('2) Room configuration'!I561,Table1[TMS],0)),\"\")","v":""},{"$f":"IFERROR(INDEX(Table1[Bedding],MATCH('2) Room configuration'!I561,Table1[TMS],0)),\"\")","v":""},{"$f":"IFERROR(INDEX(Table1[Normal occupancy],MATCH(Table2[[#This Row],[New Room Type \n(TMS)]],Table1[TMS],0)),\"\")","v":""},null,null,null,null,"",{"$f":"IF(Table2[[#This Row],['# extra beds that fit in the room2]]<>0,LEFT(Table2[[#This Row],[New Room Type \n(TMS)]],6),\"\")","v":""},null,{"$f":"IF(Table2[[#This Row],['# extra beds that fit in the room]]<>Table2[[#This Row],['# extra beds that fit in the room2]],\"yes\",\"No\")","v":"No"}]
[null,{"$f":"IF(LEN(C562)>0,'1) Hotel information'!$C$4,\"\")","v":""},null,null,null,{"$f":"IFERROR(INDEX(Table1[Room description],MATCH('2) Room configuration'!D562,Table1[TMS],0)),\"\")","v":""},{"$f":"IFERROR(INDEX(Table1[Bedding],MATCH('2) Room configuration'!D562,Table1[TMS],0)),\"\")","v":""},null,null,{"$f":"IFERROR(INDEX(Table1[Room description],MATCH('2) Room configuration'!I562,Table1[TMS],0)),\"\")","v":""},{"$f":"IFERROR(INDEX(Table1[Bedding],MATCH('2) Room configuration'!I562,Table1[TMS],0)),\"\")","v":""},{"$f":"IFERROR(INDEX(Table1[Normal occupancy],MATCH(Table2[[#This Row],[New Room Type \n(TMS)]],Table1[TMS],0)),\"\")","v":""},null,null,null,null,"",{"$f":"IF(Table2[[#This Row],['# extra beds that fit in the room2]]<>0,LEFT(Table2[[#This Row],[New Room Type \n(TMS)]],6),\"\")","v":""},null,{"$f":"IF(Table2[[#This Row],['# extra beds that fit in the room]]<>Table2[[#This Row],['# extra beds that fit in the room2]],\"yes\",\"No\")","v":"No"}]
[null,{"$f":"IF(LEN(C563)>0,'1) Hotel information'!$C$4,\"\")","v":""},null,null,null,{"$f":"IFERROR(INDEX(Table1[Room description],MATCH('2) Room configuration'!D563,Table1[TMS],0)),\"\")","v":""},{"$f":"IFERROR(INDEX(Table1[Bedding],MATCH('2) Room configuration'!D563,Table1[TMS],0)),\"\")","v":""},null,null,{"$f":"IFERROR(INDEX(Table1[Room description],MATCH('2) Room configuration'!I563,Table1[TMS],0)),\"\")","v":""},{"$f":"IFERROR(INDEX(Table1[Bedding],MATCH('2) Room configuration'!I563,Table1[TMS],0)),\"\")","v":""},{"$f":"IFERROR(INDEX(Table1[Normal occupancy],MATCH(Table2[[#This Row],[New Room Type \n(TMS)]],Table1[TMS],0)),\"\")","v":""},null,null,null,null,"",{"$f":"IF(Table2[[#This Row],['# extra beds that fit in the room2]]<>0,LEFT(Table2[[#This Row],[New Room Type \n(TMS)]],6),\"\")","v":""},null,{"$f":"IF(Table2[[#This Row],['# extra beds that fit in the room]]<>Table2[[#This Row],['# extra beds that fit in the room2]],\"yes\",\"No\")","v":"No"}]
[null,{"$f":"IF(LEN(C564)>0,'1) Hotel information'!$C$4,\"\")","v":""},null,null,null,{"$f":"IFERROR(INDEX(Table1[Room description],MATCH('2) Room configuration'!D564,Table1[TMS],0)),\"\")","v":""},{"$f":"IFERROR(INDEX(Table1[Bedding],MATCH('2) Room configuration'!D564,Table1[TMS],0)),\"\")","v":""},null,null,{"$f":"IFERROR(INDEX(Table1[Room description],MATCH('2) Room configuration'!I564,Table1[TMS],0)),\"\")","v":""},{"$f":"IFERROR(INDEX(Table1[Bedding],MATCH('2) Room configuration'!I564,Table1[TMS],0)),\"\")","v":""},{"$f":"IFERROR(INDEX(Table1[Normal occupancy],MATCH(Table2[[#This Row],[New Room Type \n(TMS)]],Table1[TMS],0)),\"\")","v":""},null,null,null,null,"",{"$f":"IF(Table2[[#This Row],['# extra beds that fit in the room2]]<>0,LEFT(Table2[[#This Row],[New Room Type \n(TMS)]],6),\"\")","v":""},null,{"$f":"IF(Table2[[#This Row],['# extra beds that fit in the room]]<>Table2[[#This Row],['# extra beds that fit in the room2]],\"yes\",\"No\")","v":"No"}]
[null,{"$f":"IF(LEN(C565)>0,'1) Hotel information'!$C$4,\"\")","v":""},null,null,null,{"$f":"IFERROR(INDEX(Table1[Room description],MATCH('2) Room configuration'!D565,Table1[TMS],0)),\"\")","v":""},{"$f":"IFERROR(INDEX(Table1[Bedding],MATCH('2) Room configuration'!D565,Table1[TMS],0)),\"\")","v":""},null,null,{"$f":"IFERROR(INDEX(Table1[Room description],MATCH('2) Room configuration'!I565,Table1[TMS],0)),\"\")","v":""},{"$f":"IFERROR(INDEX(Table1[Bedding],MATCH('2) Room configuration'!I565,Table1[TMS],0)),\"\")","v":""},{"$f":"IFERROR(INDEX(Table1[Normal occupancy],MATCH(Table2[[#This Row],[New Room Type \n(TMS)]],Table1[TMS],0)),\"\")","v":""},null,null,null,null,"",{"$f":"IF(Table2[[#This Row],['# extra beds that fit in the room2]]<>0,LEFT(Table2[[#This Row],[New Room Type \n(TMS)]],6),\"\")","v":""},null,{"$f":"IF(Table2[[#This Row],['# extra beds that fit in the room]]<>Table2[[#This Row],['# extra beds that fit in the room2]],\"yes\",\"No\")","v":"No"}]
[null,{"$f":"IF(LEN(C566)>0,'1) Hotel information'!$C$4,\"\")","v":""},null,null,null,{"$f":"IFERROR(INDEX(Table1[Room description],MATCH('2) Room configuration'!D566,Table1[TMS],0)),\"\")","v":""},{"$f":"IFERROR(INDEX(Table1[Bedding],MATCH('2) Room configuration'!D566,Table1[TMS],0)),\"\")","v":""},null,null,{"$f":"IFERROR(INDEX(Table1[Room description],MATCH('2) Room configuration'!I566,Table1[TMS],0)),\"\")","v":""},{"$f":"IFERROR(INDEX(Table1[Bedding],MATCH('2) Room configuration'!I566,Table1[TMS],0)),\"\")","v":""},{"$f":"IFERROR(INDEX(Table1[Normal occupancy],MATCH(Table2[[#This Row],[New Room Type \n(TMS)]],Table1[TMS],0)),\"\")","v":""},null,null,null,null,"",{"$f":"IF(Table2[[#This Row],['# extra beds that fit in the room2]]<>0,LEFT(Table2[[#This Row],[New Room Type \n(TMS)]],6),\"\")","v":""},null,{"$f":"IF(Table2[[#This Row],['# extra beds that fit in the room]]<>Table2[[#This Row],['# extra beds that fit in the room2]],\"yes\",\"No\")","v":"No"}]
[null,{"$f":"IF(LEN(C567)>0,'1) Hotel information'!$C$4,\"\")","v":""},null,null,null,{"$f":"IFERROR(INDEX(Table1[Room description],MATCH('2) Room configuration'!D567,Table1[TMS],0)),\"\")","v":""},{"$f":"IFERROR(INDEX(Table1[Bedding],MATCH('2) Room configuration'!D567,Table1[TMS],0)),\"\")","v":""},null,null,{"$f":"IFERROR(INDEX(Table1[Room description],MATCH('2) Room configuration'!I567,Table1[TMS],0)),\"\")","v":""},{"$f":"IFERROR(INDEX(Table1[Bedding],MATCH('2) Room configuration'!I567,Table1[TMS],0)),\"\")","v":""},{"$f":"IFERROR(INDEX(Table1[Normal occupancy],MATCH(Table2[[#This Row],[New Room Type \n(TMS)]],Table1[TMS],0)),\"\")","v":""},null,null,null,null,"",{"$f":"IF(Table2[[#This Row],['# extra beds that fit in the room2]]<>0,LEFT(Table2[[#This Row],[New Room Type \n(TMS)]],6),\"\")","v":""},null,{"$f":"IF(Table2[[#This Row],['# extra beds that fit in the room]]<>Table2[[#This Row],['# extra beds that fit in the room2]],\"yes\",\"No\")","v":"No"}]
[null,{"$f":"IF(LEN(C568)>0,'1) Hotel information'!$C$4,\"\")","v":""},null,null,null,{"$f":"IFERROR(INDEX(Table1[Room description],MATCH('2) Room configuration'!D568,Table1[TMS],0)),\"\")","v":""},{"$f":"IFERROR(INDEX(Table1[Bedding],MATCH('2) Room configuration'!D568,Table1[TMS],0)),\"\")","v":""},null,null,{"$f":"IFERROR(INDEX(Table1[Room description],MATCH('2) Room configuration'!I568,Table1[TMS],0)),\"\")","v":""},{"$f":"IFERROR(INDEX(Table1[Bedding],MATCH('2) Room configuration'!I568,Table1[TMS],0)),\"\")","v":""},{"$f":"IFERROR(INDEX(Table1[Normal occupancy],MATCH(Table2[[#This Row],[New Room Type \n(TMS)]],Table1[TMS],0)),\"\")","v":""},null,null,null,null,"",{"$f":"IF(Table2[[#This Row],['# extra beds that fit in the room2]]<>0,LEFT(Table2[[#This Row],[New Room Type \n(TMS)]],6),\"\")","v":""},null,{"$f":"IF(Table2[[#This Row],['# extra beds that fit in the room]]<>Table2[[#This Row],['# extra beds that fit in the room2]],\"yes\",\"No\")","v":"No"}]
[null,{"$f":"IF(LEN(C569)>0,'1) Hotel information'!$C$4,\"\")","v":""},null,null,null,{"$f":"IFERROR(INDEX(Table1[Room description],MATCH('2) Room configuration'!D569,Table1[TMS],0)),\"\")","v":""},{"$f":"IFERROR(INDEX(Table1[Bedding],MATCH('2) Room configuration'!D569,Table1[TMS],0)),\"\")","v":""},null,null,{"$f":"IFERROR(INDEX(Table1[Room description],MATCH('2) Room configuration'!I569,Table1[TMS],0)),\"\")","v":""},{"$f":"IFERROR(INDEX(Table1[Bedding],MATCH('2) Room configuration'!I569,Table1[TMS],0)),\"\")","v":""},{"$f":"IFERROR(INDEX(Table1[Normal occupancy],MATCH(Table2[[#This Row],[New Room Type \n(TMS)]],Table1[TMS],0)),\"\")","v":""},null,null,null,null,"",{"$f":"IF(Table2[[#This Row],['# extra beds that fit in the room2]]<>0,LEFT(Table2[[#This Row],[New Room Type \n(TMS)]],6),\"\")","v":""},null,{"$f":"IF(Table2[[#This Row],['# extra beds that fit in the room]]<>Table2[[#This Row],['# extra beds that fit in the room2]],\"yes\",\"No\")","v":"No"}]
[null,{"$f":"IF(LEN(C570)>0,'1) Hotel information'!$C$4,\"\")","v":""},null,null,null,{"$f":"IFERROR(INDEX(Table1[Room description],MATCH('2) Room configuration'!D570,Table1[TMS],0)),\"\")","v":""},{"$f":"IFERROR(INDEX(Table1[Bedding],MATCH('2) Room configuration'!D570,Table1[TMS],0)),\"\")","v":""},null,null,{"$f":"IFERROR(INDEX(Table1[Room description],MATCH('2) Room configuration'!I570,Table1[TMS],0)),\"\")","v":""},{"$f":"IFERROR(INDEX(Table1[Bedding],MATCH('2) Room configuration'!I570,Table1[TMS],0)),\"\")","v":""},{"$f":"IFERROR(INDEX(Table1[Normal occupancy],MATCH(Table2[[#This Row],[New Room Type \n(TMS)]],Table1[TMS],0)),\"\")","v":""},null,null,null,null,"",{"$f":"IF(Table2[[#This Row],['# extra beds that fit in the room2]]<>0,LEFT(Table2[[#This Row],[New Room Type \n(TMS)]],6),\"\")","v":""},null,{"$f":"IF(Table2[[#This Row],['# extra beds that fit in the room]]<>Table2[[#This Row],['# extra beds that fit in the room2]],\"yes\",\"No\")","v":"No"}]
[null,{"$f":"IF(LEN(C571)>0,'1) Hotel information'!$C$4,\"\")","v":""},null,null,null,{"$f":"IFERROR(INDEX(Table1[Room description],MATCH('2) Room configuration'!D571,Table1[TMS],0)),\"\")","v":""},{"$f":"IFERROR(INDEX(Table1[Bedding],MATCH('2) Room configuration'!D571,Table1[TMS],0)),\"\")","v":""},null,null,{"$f":"IFERROR(INDEX(Table1[Room description],MATCH('2) Room configuration'!I571,Table1[TMS],0)),\"\")","v":""},{"$f":"IFERROR(INDEX(Table1[Bedding],MATCH('2) Room configuration'!I571,Table1[TMS],0)),\"\")","v":""},{"$f":"IFERROR(INDEX(Table1[Normal occupancy],MATCH(Table2[[#This Row],[New Room Type \n(TMS)]],Table1[TMS],0)),\"\")","v":""},null,null,null,null,"",{"$f":"IF(Table2[[#This Row],['# extra beds that fit in the room2]]<>0,LEFT(Table2[[#This Row],[New Room Type \n(TMS)]],6),\"\")","v":""},null,{"$f":"IF(Table2[[#This Row],['# extra beds that fit in the room]]<>Table2[[#This Row],['# extra beds that fit in the room2]],\"yes\",\"No\")","v":"No"}]
[null,{"$f":"IF(LEN(C572)>0,'1) Hotel information'!$C$4,\"\")","v":""},null,null,null,{"$f":"IFERROR(INDEX(Table1[Room description],MATCH('2) Room configuration'!D572,Table1[TMS],0)),\"\")","v":""},{"$f":"IFERROR(INDEX(Table1[Bedding],MATCH('2) Room configuration'!D572,Table1[TMS],0)),\"\")","v":""},null,null,{"$f":"IFERROR(INDEX(Table1[Room description],MATCH('2) Room configuration'!I572,Table1[TMS],0)),\"\")","v":""},{"$f":"IFERROR(INDEX(Table1[Bedding],MATCH('2) Room configuration'!I572,Table1[TMS],0)),\"\")","v":""},{"$f":"IFERROR(INDEX(Table1[Normal occupancy],MATCH(Table2[[#This Row],[New Room Type \n(TMS)]],Table1[TMS],0)),\"\")","v":""},null,null,null,null,"",{"$f":"IF(Table2[[#This Row],['# extra beds that fit in the room2]]<>0,LEFT(Table2[[#This Row],[New Room Type \n(TMS)]],6),\"\")","v":""},null,{"$f":"IF(Table2[[#This Row],['# extra beds that fit in the room]]<>Table2[[#This Row],['# extra beds that fit in the room2]],\"yes\",\"No\")","v":"No"}]
[null,{"$f":"IF(LEN(C573)>0,'1) Hotel information'!$C$4,\"\")","v":""},null,null,null,{"$f":"IFERROR(INDEX(Table1[Room description],MATCH('2) Room configuration'!D573,Table1[TMS],0)),\"\")","v":""},{"$f":"IFERROR(INDEX(Table1[Bedding],MATCH('2) Room configuration'!D573,Table1[TMS],0)),\"\")","v":""},null,null,{"$f":"IFERROR(INDEX(Table1[Room description],MATCH('2) Room configuration'!I573,Table1[TMS],0)),\"\")","v":""},{"$f":"IFERROR(INDEX(Table1[Bedding],MATCH('2) Room configuration'!I573,Table1[TMS],0)),\"\")","v":""},{"$f":"IFERROR(INDEX(Table1[Normal occupancy],MATCH(Table2[[#This Row],[New Room Type \n(TMS)]],Table1[TMS],0)),\"\")","v":""},null,null,null,null,"",{"$f":"IF(Table2[[#This Row],['# extra beds that fit in the room2]]<>0,LEFT(Table2[[#This Row],[New Room Type \n(TMS)]],6),\"\")","v":""},null,{"$f":"IF(Table2[[#This Row],['# extra beds that fit in the room]]<>Table2[[#This Row],['# extra beds that fit in the room2]],\"yes\",\"No\")","v":"No"}]
[null,{"$f":"IF(LEN(C574)>0,'1) Hotel information'!$C$4,\"\")","v":""},null,null,null,{"$f":"IFERROR(INDEX(Table1[Room description],MATCH('2) Room configuration'!D574,Table1[TMS],0)),\"\")","v":""},{"$f":"IFERROR(INDEX(Table1[Bedding],MATCH('2) Room configuration'!D574,Table1[TMS],0)),\"\")","v":""},null,null,{"$f":"IFERROR(INDEX(Table1[Room description],MATCH('2) Room configuration'!I574,Table1[TMS],0)),\"\")","v":""},{"$f":"IFERROR(INDEX(Table1[Bedding],MATCH('2) Room configuration'!I574,Table1[TMS],0)),\"\")","v":""},{"$f":"IFERROR(INDEX(Table1[Normal occupancy],MATCH(Table2[[#This Row],[New Room Type \n(TMS)]],Table1[TMS],0)),\"\")","v":""},null,null,null,null,"",{"$f":"IF(Table2[[#This Row],['# extra beds that fit in the room2]]<>0,LEFT(Table2[[#This Row],[New Room Type \n(TMS)]],6),\"\")","v":""},null,{"$f":"IF(Table2[[#This Row],['# extra beds that fit in the room]]<>Table2[[#This Row],['# extra beds that fit in the room2]],\"yes\",\"No\")","v":"No"}]
[null,{"$f":"IF(LEN(C575)>0,'1) Hotel information'!$C$4,\"\")","v":""},null,null,null,{"$f":"IFERROR(INDEX(Table1[Room description],MATCH('2) Room configuration'!D575,Table1[TMS],0)),\"\")","v":""},{"$f":"IFERROR(INDEX(Table1[Bedding],MATCH('2) Room configuration'!D575,Table1[TMS],0)),\"\")","v":""},null,null,{"$f":"IFERROR(INDEX(Table1[Room description],MATCH('2) Room configuration'!I575,Table1[TMS],0)),\"\")","v":""},{"$f":"IFERROR(INDEX(Table1[Bedding],MATCH('2) Room configuration'!I575,Table1[TMS],0)),\"\")","v":""},{"$f":"IFERROR(INDEX(Table1[Normal occupancy],MATCH(Table2[[#This Row],[New Room Type \n(TMS)]],Table1[TMS],0)),\"\")","v":""},null,null,null,null,"",{"$f":"IF(Table2[[#This Row],['# extra beds that fit in the room2]]<>0,LEFT(Table2[[#This Row],[New Room Type \n(TMS)]],6),\"\")","v":""},null,{"$f":"IF(Table2[[#This Row],['# extra beds that fit in the room]]<>Table2[[#This Row],['# extra beds that fit in the room2]],\"yes\",\"No\")","v":"No"}]
[null,{"$f":"IF(LEN(C576)>0,'1) Hotel information'!$C$4,\"\")","v":""},null,null,null,{"$f":"IFERROR(INDEX(Table1[Room description],MATCH('2) Room configuration'!D576,Table1[TMS],0)),\"\")","v":""},{"$f":"IFERROR(INDEX(Table1[Bedding],MATCH('2) Room configuration'!D576,Table1[TMS],0)),\"\")","v":""},null,null,{"$f":"IFERROR(INDEX(Table1[Room description],MATCH('2) Room configuration'!I576,Table1[TMS],0)),\"\")","v":""},{"$f":"IFERROR(INDEX(Table1[Bedding],MATCH('2) Room configuration'!I576,Table1[TMS],0)),\"\")","v":""},{"$f":"IFERROR(INDEX(Table1[Normal occupancy],MATCH(Table2[[#This Row],[New Room Type \n(TMS)]],Table1[TMS],0)),\"\")","v":""},null,null,null,null,"",{"$f":"IF(Table2[[#This Row],['# extra beds that fit in the room2]]<>0,LEFT(Table2[[#This Row],[New Room Type \n(TMS)]],6),\"\")","v":""},null,{"$f":"IF(Table2[[#This Row],['# extra beds that fit in the room]]<>Table2[[#This Row],['# extra beds that fit in the room2]],\"yes\",\"No\")","v":"No"}]
[null,{"$f":"IF(LEN(C577)>0,'1) Hotel information'!$C$4,\"\")","v":""},null,null,null,{"$f":"IFERROR(INDEX(Table1[Room description],MATCH('2) Room configuration'!D577,Table1[TMS],0)),\"\")","v":""},{"$f":"IFERROR(INDEX(Table1[Bedding],MATCH('2) Room configuration'!D577,Table1[TMS],0)),\"\")","v":""},null,null,{"$f":"IFERROR(INDEX(Table1[Room description],MATCH('2) Room configuration'!I577,Table1[TMS],0)),\"\")","v":""},{"$f":"IFERROR(INDEX(Table1[Bedding],MATCH('2) Room configuration'!I577,Table1[TMS],0)),\"\")","v":""},{"$f":"IFERROR(INDEX(Table1[Normal occupancy],MATCH(Table2[[#This Row],[New Room Type \n(TMS)]],Table1[TMS],0)),\"\")","v":""},null,null,null,null,"",{"$f":"IF(Table2[[#This Row],['# extra beds that fit in the room2]]<>0,LEFT(Table2[[#This Row],[New Room Type \n(TMS)]],6),\"\")","v":""},null,{"$f":"IF(Table2[[#This Row],['# extra beds that fit in the room]]<>Table2[[#This Row],['# extra beds that fit in the room2]],\"yes\",\"No\")","v":"No"}]
[null,{"$f":"IF(LEN(C578)>0,'1) Hotel information'!$C$4,\"\")","v":""},null,null,null,{"$f":"IFERROR(INDEX(Table1[Room description],MATCH('2) Room configuration'!D578,Table1[TMS],0)),\"\")","v":""},{"$f":"IFERROR(INDEX(Table1[Bedding],MATCH('2) Room configuration'!D578,Table1[TMS],0)),\"\")","v":""},null,null,{"$f":"IFERROR(INDEX(Table1[Room description],MATCH('2) Room configuration'!I578,Table1[TMS],0)),\"\")","v":""},{"$f":"IFERROR(INDEX(Table1[Bedding],MATCH('2) Room configuration'!I578,Table1[TMS],0)),\"\")","v":""},{"$f":"IFERROR(INDEX(Table1[Normal occupancy],MATCH(Table2[[#This Row],[New Room Type \n(TMS)]],Table1[TMS],0)),\"\")","v":""},null,null,null,null,"",{"$f":"IF(Table2[[#This Row],['# extra beds that fit in the room2]]<>0,LEFT(Table2[[#This Row],[New Room Type \n(TMS)]],6),\"\")","v":""},null,{"$f":"IF(Table2[[#This Row],['# extra beds that fit in the room]]<>Table2[[#This Row],['# extra beds that fit in the room2]],\"yes\",\"No\")","v":"No"}]
[null,{"$f":"IF(LEN(C579)>0,'1) Hotel information'!$C$4,\"\")","v":""},null,null,null,{"$f":"IFERROR(INDEX(Table1[Room description],MATCH('2) Room configuration'!D579,Table1[TMS],0)),\"\")","v":""},{"$f":"IFERROR(INDEX(Table1[Bedding],MATCH('2) Room configuration'!D579,Table1[TMS],0)),\"\")","v":""},null,null,{"$f":"IFERROR(INDEX(Table1[Room description],MATCH('2) Room configuration'!I579,Table1[TMS],0)),\"\")","v":""},{"$f":"IFERROR(INDEX(Table1[Bedding],MATCH('2) Room configuration'!I579,Table1[TMS],0)),\"\")","v":""},{"$f":"IFERROR(INDEX(Table1[Normal occupancy],MATCH(Table2[[#This Row],[New Room Type \n(TMS)]],Table1[TMS],0)),\"\")","v":""},null,null,null,null,"",{"$f":"IF(Table2[[#This Row],['# extra beds that fit in the room2]]<>0,LEFT(Table2[[#This Row],[New Room Type \n(TMS)]],6),\"\")","v":""},null,{"$f":"IF(Table2[[#This Row],['# extra beds that fit in the room]]<>Table2[[#This Row],['# extra beds that fit in the room2]],\"yes\",\"No\")","v":"No"}]
[null,{"$f":"IF(LEN(C580)>0,'1) Hotel information'!$C$4,\"\")","v":""},null,null,null,{"$f":"IFERROR(INDEX(Table1[Room description],MATCH('2) Room configuration'!D580,Table1[TMS],0)),\"\")","v":""},{"$f":"IFERROR(INDEX(Table1[Bedding],MATCH('2) Room configuration'!D580,Table1[TMS],0)),\"\")","v":""},null,null,{"$f":"IFERROR(INDEX(Table1[Room description],MATCH('2) Room configuration'!I580,Table1[TMS],0)),\"\")","v":""},{"$f":"IFERROR(INDEX(Table1[Bedding],MATCH('2) Room configuration'!I580,Table1[TMS],0)),\"\")","v":""},{"$f":"IFERROR(INDEX(Table1[Normal occupancy],MATCH(Table2[[#This Row],[New Room Type \n(TMS)]],Table1[TMS],0)),\"\")","v":""},null,null,null,null,"",{"$f":"IF(Table2[[#This Row],['# extra beds that fit in the room2]]<>0,LEFT(Table2[[#This Row],[New Room Type \n(TMS)]],6),\"\")","v":""},null,{"$f":"IF(Table2[[#This Row],['# extra beds that fit in the room]]<>Table2[[#This Row],['# extra beds that fit in the room2]],\"yes\",\"No\")","v":"No"}]
[null,{"$f":"IF(LEN(C581)>0,'1) Hotel information'!$C$4,\"\")","v":""},null,null,null,{"$f":"IFERROR(INDEX(Table1[Room description],MATCH('2) Room configuration'!D581,Table1[TMS],0)),\"\")","v":""},{"$f":"IFERROR(INDEX(Table1[Bedding],MATCH('2) Room configuration'!D581,Table1[TMS],0)),\"\")","v":""},null,null,{"$f":"IFERROR(INDEX(Table1[Room description],MATCH('2) Room configuration'!I581,Table1[TMS],0)),\"\")","v":""},{"$f":"IFERROR(INDEX(Table1[Bedding],MATCH('2) Room configuration'!I581,Table1[TMS],0)),\"\")","v":""},{"$f":"IFERROR(INDEX(Table1[Normal occupancy],MATCH(Table2[[#This Row],[New Room Type \n(TMS)]],Table1[TMS],0)),\"\")","v":""},null,null,null,null,"",{"$f":"IF(Table2[[#This Row],['# extra beds that fit in the room2]]<>0,LEFT(Table2[[#This Row],[New Room Type \n(TMS)]],6),\"\")","v":""},null,{"$f":"IF(Table2[[#This Row],['# extra beds that fit in the room]]<>Table2[[#This Row],['# extra beds that fit in the room2]],\"yes\",\"No\")","v":"No"}]
[null,{"$f":"IF(LEN(C582)>0,'1) Hotel information'!$C$4,\"\")","v":""},null,null,null,{"$f":"IFERROR(INDEX(Table1[Room description],MATCH('2) Room configuration'!D582,Table1[TMS],0)),\"\")","v":""},{"$f":"IFERROR(INDEX(Table1[Bedding],MATCH('2) Room configuration'!D582,Table1[TMS],0)),\"\")","v":""},null,null,{"$f":"IFERROR(INDEX(Table1[Room description],MATCH('2) Room configuration'!I582,Table1[TMS],0)),\"\")","v":""},{"$f":"IFERROR(INDEX(Table1[Bedding],MATCH('2) Room configuration'!I582,Table1[TMS],0)),\"\")","v":""},{"$f":"IFERROR(INDEX(Table1[Normal occupancy],MATCH(Table2[[#This Row],[New Room Type \n(TMS)]],Table1[TMS],0)),\"\")","v":""},null,null,null,null,"",{"$f":"IF(Table2[[#This Row],['# extra beds that fit in the room2]]<>0,LEFT(Table2[[#This Row],[New Room Type \n(TMS)]],6),\"\")","v":""},null,{"$f":"IF(Table2[[#This Row],['# extra beds that fit in the room]]<>Table2[[#This Row],['# extra beds that fit in the room2]],\"yes\",\"No\")","v":"No"}]
[null,{"$f":"IF(LEN(C583)>0,'1) Hotel information'!$C$4,\"\")","v":""},null,null,null,{"$f":"IFERROR(INDEX(Table1[Room description],MATCH('2) Room configuration'!D583,Table1[TMS],0)),\"\")","v":""},{"$f":"IFERROR(INDEX(Table1[Bedding],MATCH('2) Room configuration'!D583,Table1[TMS],0)),\"\")","v":""},null,null,{"$f":"IFERROR(INDEX(Table1[Room description],MATCH('2) Room configuration'!I583,Table1[TMS],0)),\"\")","v":""},{"$f":"IFERROR(INDEX(Table1[Bedding],MATCH('2) Room configuration'!I583,Table1[TMS],0)),\"\")","v":""},{"$f":"IFERROR(INDEX(Table1[Normal occupancy],MATCH(Table2[[#This Row],[New Room Type \n(TMS)]],Table1[TMS],0)),\"\")","v":""},null,null,null,null,"",{"$f":"IF(Table2[[#This Row],['# extra beds that fit in the room2]]<>0,LEFT(Table2[[#This Row],[New Room Type \n(TMS)]],6),\"\")","v":""},null,{"$f":"IF(Table2[[#This Row],['# extra beds that fit in the room]]<>Table2[[#This Row],['# extra beds that fit in the room2]],\"yes\",\"No\")","v":"No"}]
[null,{"$f":"IF(LEN(C584)>0,'1) Hotel information'!$C$4,\"\")","v":""},null,null,null,{"$f":"IFERROR(INDEX(Table1[Room description],MATCH('2) Room configuration'!D584,Table1[TMS],0)),\"\")","v":""},{"$f":"IFERROR(INDEX(Table1[Bedding],MATCH('2) Room configuration'!D584,Table1[TMS],0)),\"\")","v":""},null,null,{"$f":"IFERROR(INDEX(Table1[Room description],MATCH('2) Room configuration'!I584,Table1[TMS],0)),\"\")","v":""},{"$f":"IFERROR(INDEX(Table1[Bedding],MATCH('2) Room configuration'!I584,Table1[TMS],0)),\"\")","v":""},{"$f":"IFERROR(INDEX(Table1[Normal occupancy],MATCH(Table2[[#This Row],[New Room Type \n(TMS)]],Table1[TMS],0)),\"\")","v":""},null,null,null,null,"",{"$f":"IF(Table2[[#This Row],['# extra beds that fit in the room2]]<>0,LEFT(Table2[[#This Row],[New Room Type \n(TMS)]],6),\"\")","v":""},null,{"$f":"IF(Table2[[#This Row],['# extra beds that fit in the room]]<>Table2[[#This Row],['# extra beds that fit in the room2]],\"yes\",\"No\")","v":"No"}]
[null,{"$f":"IF(LEN(C585)>0,'1) Hotel information'!$C$4,\"\")","v":""},null,null,null,{"$f":"IFERROR(INDEX(Table1[Room description],MATCH('2) Room configuration'!D585,Table1[TMS],0)),\"\")","v":""},{"$f":"IFERROR(INDEX(Table1[Bedding],MATCH('2) Room configuration'!D585,Table1[TMS],0)),\"\")","v":""},null,null,{"$f":"IFERROR(INDEX(Table1[Room description],MATCH('2) Room configuration'!I585,Table1[TMS],0)),\"\")","v":""},{"$f":"IFERROR(INDEX(Table1[Bedding],MATCH('2) Room configuration'!I585,Table1[TMS],0)),\"\")","v":""},{"$f":"IFERROR(INDEX(Table1[Normal occupancy],MATCH(Table2[[#This Row],[New Room Type \n(TMS)]],Table1[TMS],0)),\"\")","v":""},null,null,null,null,"",{"$f":"IF(Table2[[#This Row],['# extra beds that fit in the room2]]<>0,LEFT(Table2[[#This Row],[New Room Type \n(TMS)]],6),\"\")","v":""},null,{"$f":"IF(Table2[[#This Row],['# extra beds that fit in the room]]<>Table2[[#This Row],['# extra beds that fit in the room2]],\"yes\",\"No\")","v":"No"}]
[null,{"$f":"IF(LEN(C586)>0,'1) Hotel information'!$C$4,\"\")","v":""},null,null,null,{"$f":"IFERROR(INDEX(Table1[Room description],MATCH('2) Room configuration'!D586,Table1[TMS],0)),\"\")","v":""},{"$f":"IFERROR(INDEX(Table1[Bedding],MATCH('2) Room configuration'!D586,Table1[TMS],0)),\"\")","v":""},null,null,{"$f":"IFERROR(INDEX(Table1[Room description],MATCH('2) Room configuration'!I586,Table1[TMS],0)),\"\")","v":""},{"$f":"IFERROR(INDEX(Table1[Bedding],MATCH('2) Room configuration'!I586,Table1[TMS],0)),\"\")","v":""},{"$f":"IFERROR(INDEX(Table1[Normal occupancy],MATCH(Table2[[#This Row],[New Room Type \n(TMS)]],Table1[TMS],0)),\"\")","v":""},null,null,null,null,"",{"$f":"IF(Table2[[#This Row],['# extra beds that fit in the room2]]<>0,LEFT(Table2[[#This Row],[New Room Type \n(TMS)]],6),\"\")","v":""},null,{"$f":"IF(Table2[[#This Row],['# extra beds that fit in the room]]<>Table2[[#This Row],['# extra beds that fit in the room2]],\"yes\",\"No\")","v":"No"}]
[null,{"$f":"IF(LEN(C587)>0,'1) Hotel information'!$C$4,\"\")","v":""},null,null,null,{"$f":"IFERROR(INDEX(Table1[Room description],MATCH('2) Room configuration'!D587,Table1[TMS],0)),\"\")","v":""},{"$f":"IFERROR(INDEX(Table1[Bedding],MATCH('2) Room configuration'!D587,Table1[TMS],0)),\"\")","v":""},null,null,{"$f":"IFERROR(INDEX(Table1[Room description],MATCH('2) Room configuration'!I587,Table1[TMS],0)),\"\")","v":""},{"$f":"IFERROR(INDEX(Table1[Bedding],MATCH('2) Room configuration'!I587,Table1[TMS],0)),\"\")","v":""},{"$f":"IFERROR(INDEX(Table1[Normal occupancy],MATCH(Table2[[#This Row],[New Room Type \n(TMS)]],Table1[TMS],0)),\"\")","v":""},null,null,null,null,"",{"$f":"IF(Table2[[#This Row],['# extra beds that fit in the room2]]<>0,LEFT(Table2[[#This Row],[New Room Type \n(TMS)]],6),\"\")","v":""},null,{"$f":"IF(Table2[[#This Row],['# extra beds that fit in the room]]<>Table2[[#This Row],['# extra beds that fit in the room2]],\"yes\",\"No\")","v":"No"}]
[null,{"$f":"IF(LEN(C588)>0,'1) Hotel information'!$C$4,\"\")","v":""},null,null,null,{"$f":"IFERROR(INDEX(Table1[Room description],MATCH('2) Room configuration'!D588,Table1[TMS],0)),\"\")","v":""},{"$f":"IFERROR(INDEX(Table1[Bedding],MATCH('2) Room configuration'!D588,Table1[TMS],0)),\"\")","v":""},null,null,{"$f":"IFERROR(INDEX(Table1[Room description],MATCH('2) Room configuration'!I588,Table1[TMS],0)),\"\")","v":""},{"$f":"IFERROR(INDEX(Table1[Bedding],MATCH('2) Room configuration'!I588,Table1[TMS],0)),\"\")","v":""},{"$f":"IFERROR(INDEX(Table1[Normal occupancy],MATCH(Table2[[#This Row],[New Room Type \n(TMS)]],Table1[TMS],0)),\"\")","v":""},null,null,null,null,{"$f":"IF(LEN(C588)>0,IF(D588=I588,\"No\",\"Yes\"),\"\")","v":""},{"$f":"IF(Table2[[#This Row],['# extra beds that fit in the room2]]<>0,LEFT(Table2[[#This Row],[New Room Type \n(TMS)]],6),\"\")","v":""},null,{"$f":"IF(Table2[[#This Row],['# extra beds that fit in the room]]<>Table2[[#This Row],['# extra beds that fit in the room2]],\"yes\",\"No\")","v":"No"}]
[null,{"$f":"IF(LEN(C589)>0,'1) Hotel information'!$C$4,\"\")","v":""},null,null,null,{"$f":"IFERROR(INDEX(Table1[Room description],MATCH('2) Room configuration'!D589,Table1[TMS],0)),\"\")","v":""},{"$f":"IFERROR(INDEX(Table1[Bedding],MATCH('2) Room configuration'!D589,Table1[TMS],0)),\"\")","v":""},null,null,{"$f":"IFERROR(INDEX(Table1[Room description],MATCH('2) Room configuration'!I589,Table1[TMS],0)),\"\")","v":""},{"$f":"IFERROR(INDEX(Table1[Bedding],MATCH('2) Room configuration'!I589,Table1[TMS],0)),\"\")","v":""},{"$f":"IFERROR(INDEX(Table1[Normal occupancy],MATCH(Table2[[#This Row],[New Room Type \n(TMS)]],Table1[TMS],0)),\"\")","v":""},null,null,null,null,"",{"$f":"IF(Table2[[#This Row],['# extra beds that fit in the room2]]<>0,LEFT(Table2[[#This Row],[New Room Type \n(TMS)]],6),\"\")","v":""},null,{"$f":"IF(Table2[[#This Row],['# extra beds that fit in the room]]<>Table2[[#This Row],['# extra beds that fit in the room2]],\"yes\",\"No\")","v":"No"}]
[null,{"$f":"IF(LEN(C590)>0,'1) Hotel information'!$C$4,\"\")","v":""},null,null,null,{"$f":"IFERROR(INDEX(Table1[Room description],MATCH('2) Room configuration'!D590,Table1[TMS],0)),\"\")","v":""},{"$f":"IFERROR(INDEX(Table1[Bedding],MATCH('2) Room configuration'!D590,Table1[TMS],0)),\"\")","v":""},null,null,{"$f":"IFERROR(INDEX(Table1[Room description],MATCH('2) Room configuration'!I590,Table1[TMS],0)),\"\")","v":""},{"$f":"IFERROR(INDEX(Table1[Bedding],MATCH('2) Room configuration'!I590,Table1[TMS],0)),\"\")","v":""},{"$f":"IFERROR(INDEX(Table1[Normal occupancy],MATCH(Table2[[#This Row],[New Room Type \n(TMS)]],Table1[TMS],0)),\"\")","v":""},null,null,null,null,"",{"$f":"IF(Table2[[#This Row],['# extra beds that fit in the room2]]<>0,LEFT(Table2[[#This Row],[New Room Type \n(TMS)]],6),\"\")","v":""},null,{"$f":"IF(Table2[[#This Row],['# extra beds that fit in the room]]<>Table2[[#This Row],['# extra beds that fit in the room2]],\"yes\",\"No\")","v":"No"}]
[null,{"$f":"IF(LEN(C591)>0,'1) Hotel information'!$C$4,\"\")","v":""},null,null,null,{"$f":"IFERROR(INDEX(Table1[Room description],MATCH('2) Room configuration'!D591,Table1[TMS],0)),\"\")","v":""},{"$f":"IFERROR(INDEX(Table1[Bedding],MATCH('2) Room configuration'!D591,Table1[TMS],0)),\"\")","v":""},null,null,{"$f":"IFERROR(INDEX(Table1[Room description],MATCH('2) Room configuration'!I591,Table1[TMS],0)),\"\")","v":""},{"$f":"IFERROR(INDEX(Table1[Bedding],MATCH('2) Room configuration'!I591,Table1[TMS],0)),\"\")","v":""},{"$f":"IFERROR(INDEX(Table1[Normal occupancy],MATCH(Table2[[#This Row],[New Room Type \n(TMS)]],Table1[TMS],0)),\"\")","v":""},null,null,null,null,"",{"$f":"IF(Table2[[#This Row],['# extra beds that fit in the room2]]<>0,LEFT(Table2[[#This Row],[New Room Type \n(TMS)]],6),\"\")","v":""},null,{"$f":"IF(Table2[[#This Row],['# extra beds that fit in the room]]<>Table2[[#This Row],['# extra beds that fit in the room2]],\"yes\",\"No\")","v":"No"}]
[null,{"$f":"IF(LEN(C592)>0,'1) Hotel information'!$C$4,\"\")","v":""},null,null,null,{"$f":"IFERROR(INDEX(Table1[Room description],MATCH('2) Room configuration'!D592,Table1[TMS],0)),\"\")","v":""},{"$f":"IFERROR(INDEX(Table1[Bedding],MATCH('2) Room configuration'!D592,Table1[TMS],0)),\"\")","v":""},null,null,{"$f":"IFERROR(INDEX(Table1[Room description],MATCH('2) Room configuration'!I592,Table1[TMS],0)),\"\")","v":""},{"$f":"IFERROR(INDEX(Table1[Bedding],MATCH('2) Room configuration'!I592,Table1[TMS],0)),\"\")","v":""},{"$f":"IFERROR(INDEX(Table1[Normal occupancy],MATCH(Table2[[#This Row],[New Room Type \n(TMS)]],Table1[TMS],0)),\"\")","v":""},null,null,null,null,"",{"$f":"IF(Table2[[#This Row],['# extra beds that fit in the room2]]<>0,LEFT(Table2[[#This Row],[New Room Type \n(TMS)]],6),\"\")","v":""},null,{"$f":"IF(Table2[[#This Row],['# extra beds that fit in the room]]<>Table2[[#This Row],['# extra beds that fit in the room2]],\"yes\",\"No\")","v":"No"}]
[null,{"$f":"IF(LEN(C593)>0,'1) Hotel information'!$C$4,\"\")","v":""},null,null,null,{"$f":"IFERROR(INDEX(Table1[Room description],MATCH('2) Room configuration'!D593,Table1[TMS],0)),\"\")","v":""},{"$f":"IFERROR(INDEX(Table1[Bedding],MATCH('2) Room configuration'!D593,Table1[TMS],0)),\"\")","v":""},null,null,{"$f":"IFERROR(INDEX(Table1[Room description],MATCH('2) Room configuration'!I593,Table1[TMS],0)),\"\")","v":""},{"$f":"IFERROR(INDEX(Table1[Bedding],MATCH('2) Room configuration'!I593,Table1[TMS],0)),\"\")","v":""},{"$f":"IFERROR(INDEX(Table1[Normal occupancy],MATCH(Table2[[#This Row],[New Room Type \n(TMS)]],Table1[TMS],0)),\"\")","v":""},null,null,null,null,"",{"$f":"IF(Table2[[#This Row],['# extra beds that fit in the room2]]<>0,LEFT(Table2[[#This Row],[New Room Type \n(TMS)]],6),\"\")","v":""},null,{"$f":"IF(Table2[[#This Row],['# extra beds that fit in the room]]<>Table2[[#This Row],['# extra beds that fit in the room2]],\"yes\",\"No\")","v":"No"}]
[null,{"$f":"IF(LEN(C594)>0,'1) Hotel information'!$C$4,\"\")","v":""},null,null,null,{"$f":"IFERROR(INDEX(Table1[Room description],MATCH('2) Room configuration'!D594,Table1[TMS],0)),\"\")","v":""},{"$f":"IFERROR(INDEX(Table1[Bedding],MATCH('2) Room configuration'!D594,Table1[TMS],0)),\"\")","v":""},null,null,{"$f":"IFERROR(INDEX(Table1[Room description],MATCH('2) Room configuration'!I594,Table1[TMS],0)),\"\")","v":""},{"$f":"IFERROR(INDEX(Table1[Bedding],MATCH('2) Room configuration'!I594,Table1[TMS],0)),\"\")","v":""},{"$f":"IFERROR(INDEX(Table1[Normal occupancy],MATCH(Table2[[#This Row],[New Room Type \n(TMS)]],Table1[TMS],0)),\"\")","v":""},null,null,null,null,"",{"$f":"IF(Table2[[#This Row],['# extra beds that fit in the room2]]<>0,LEFT(Table2[[#This Row],[New Room Type \n(TMS)]],6),\"\")","v":""},null,{"$f":"IF(Table2[[#This Row],['# extra beds that fit in the room]]<>Table2[[#This Row],['# extra beds that fit in the room2]],\"yes\",\"No\")","v":"No"}]
[null,{"$f":"IF(LEN(C595)>0,'1) Hotel information'!$C$4,\"\")","v":""},null,null,null,{"$f":"IFERROR(INDEX(Table1[Room description],MATCH('2) Room configuration'!D595,Table1[TMS],0)),\"\")","v":""},{"$f":"IFERROR(INDEX(Table1[Bedding],MATCH('2) Room configuration'!D595,Table1[TMS],0)),\"\")","v":""},null,null,{"$f":"IFERROR(INDEX(Table1[Room description],MATCH('2) Room configuration'!I595,Table1[TMS],0)),\"\")","v":""},{"$f":"IFERROR(INDEX(Table1[Bedding],MATCH('2) Room configuration'!I595,Table1[TMS],0)),\"\")","v":""},{"$f":"IFERROR(INDEX(Table1[Normal occupancy],MATCH(Table2[[#This Row],[New Room Type \n(TMS)]],Table1[TMS],0)),\"\")","v":""},null,null,null,null,"",{"$f":"IF(Table2[[#This Row],['# extra beds that fit in the room2]]<>0,LEFT(Table2[[#This Row],[New Room Type \n(TMS)]],6),\"\")","v":""},null,{"$f":"IF(Table2[[#This Row],['# extra beds that fit in the room]]<>Table2[[#This Row],['# extra beds that fit in the room2]],\"yes\",\"No\")","v":"No"}]
[null,{"$f":"IF(LEN(C596)>0,'1) Hotel information'!$C$4,\"\")","v":""},null,null,null,{"$f":"IFERROR(INDEX(Table1[Room description],MATCH('2) Room configuration'!D596,Table1[TMS],0)),\"\")","v":""},{"$f":"IFERROR(INDEX(Table1[Bedding],MATCH('2) Room configuration'!D596,Table1[TMS],0)),\"\")","v":""},null,null,{"$f":"IFERROR(INDEX(Table1[Room description],MATCH('2) Room configuration'!I596,Table1[TMS],0)),\"\")","v":""},{"$f":"IFERROR(INDEX(Table1[Bedding],MATCH('2) Room configuration'!I596,Table1[TMS],0)),\"\")","v":""},{"$f":"IFERROR(INDEX(Table1[Normal occupancy],MATCH(Table2[[#This Row],[New Room Type \n(TMS)]],Table1[TMS],0)),\"\")","v":""},null,null,null,null,"",{"$f":"IF(Table2[[#This Row],['# extra beds that fit in the room2]]<>0,LEFT(Table2[[#This Row],[New Room Type \n(TMS)]],6),\"\")","v":""},null,{"$f":"IF(Table2[[#This Row],['# extra beds that fit in the room]]<>Table2[[#This Row],['# extra beds that fit in the room2]],\"yes\",\"No\")","v":"No"}]
[null,{"$f":"IF(LEN(C597)>0,'1) Hotel information'!$C$4,\"\")","v":""},null,null,null,{"$f":"IFERROR(INDEX(Table1[Room description],MATCH('2) Room configuration'!D597,Table1[TMS],0)),\"\")","v":""},{"$f":"IFERROR(INDEX(Table1[Bedding],MATCH('2) Room configuration'!D597,Table1[TMS],0)),\"\")","v":""},null,null,{"$f":"IFERROR(INDEX(Table1[Room description],MATCH('2) Room configuration'!I597,Table1[TMS],0)),\"\")","v":""},{"$f":"IFERROR(INDEX(Table1[Bedding],MATCH('2) Room configuration'!I597,Table1[TMS],0)),\"\")","v":""},{"$f":"IFERROR(INDEX(Table1[Normal occupancy],MATCH(Table2[[#This Row],[New Room Type \n(TMS)]],Table1[TMS],0)),\"\")","v":""},null,null,null,null,"",{"$f":"IF(Table2[[#This Row],['# extra beds that fit in the room2]]<>0,LEFT(Table2[[#This Row],[New Room Type \n(TMS)]],6),\"\")","v":""},null,{"$f":"IF(Table2[[#This Row],['# extra beds that fit in the room]]<>Table2[[#This Row],['# extra beds that fit in the room2]],\"yes\",\"No\")","v":"No"}]
[null,{"$f":"IF(LEN(C598)>0,'1) Hotel information'!$C$4,\"\")","v":""},null,null,null,{"$f":"IFERROR(INDEX(Table1[Room description],MATCH('2) Room configuration'!D598,Table1[TMS],0)),\"\")","v":""},{"$f":"IFERROR(INDEX(Table1[Bedding],MATCH('2) Room configuration'!D598,Table1[TMS],0)),\"\")","v":""},null,null,{"$f":"IFERROR(INDEX(Table1[Room description],MATCH('2) Room configuration'!I598,Table1[TMS],0)),\"\")","v":""},{"$f":"IFERROR(INDEX(Table1[Bedding],MATCH('2) Room configuration'!I598,Table1[TMS],0)),\"\")","v":""},{"$f":"IFERROR(INDEX(Table1[Normal occupancy],MATCH(Table2[[#This Row],[New Room Type \n(TMS)]],Table1[TMS],0)),\"\")","v":""},null,null,null,null,"",{"$f":"IF(Table2[[#This Row],['# extra beds that fit in the room2]]<>0,LEFT(Table2[[#This Row],[New Room Type \n(TMS)]],6),\"\")","v":""},null,{"$f":"IF(Table2[[#This Row],['# extra beds that fit in the room]]<>Table2[[#This Row],['# extra beds that fit in the room2]],\"yes\",\"No\")","v":"No"}]
[null,{"$f":"IF(LEN(C599)>0,'1) Hotel information'!$C$4,\"\")","v":""},null,null,null,{"$f":"IFERROR(INDEX(Table1[Room description],MATCH('2) Room configuration'!D599,Table1[TMS],0)),\"\")","v":""},{"$f":"IFERROR(INDEX(Table1[Bedding],MATCH('2) Room configuration'!D599,Table1[TMS],0)),\"\")","v":""},null,null,{"$f":"IFERROR(INDEX(Table1[Room description],MATCH('2) Room configuration'!I599,Table1[TMS],0)),\"\")","v":""},{"$f":"IFERROR(INDEX(Table1[Bedding],MATCH('2) Room configuration'!I599,Table1[TMS],0)),\"\")","v":""},{"$f":"IFERROR(INDEX(Table1[Normal occupancy],MATCH(Table2[[#This Row],[New Room Type \n(TMS)]],Table1[TMS],0)),\"\")","v":""},null,null,null,null,"",{"$f":"IF(Table2[[#This Row],['# extra beds that fit in the room2]]<>0,LEFT(Table2[[#This Row],[New Room Type \n(TMS)]],6),\"\")","v":""},null,{"$f":"IF(Table2[[#This Row],['# extra beds that fit in the room]]<>Table2[[#This Row],['# extra beds that fit in the room2]],\"yes\",\"No\")","v":"No"}]
[null,{"$f":"IF(LEN(C600)>0,'1) Hotel information'!$C$4,\"\")","v":""},null,null,null,{"$f":"IFERROR(INDEX(Table1[Room description],MATCH('2) Room configuration'!D600,Table1[TMS],0)),\"\")","v":""},{"$f":"IFERROR(INDEX(Table1[Bedding],MATCH('2) Room configuration'!D600,Table1[TMS],0)),\"\")","v":""},null,null,{"$f":"IFERROR(INDEX(Table1[Room description],MATCH('2) Room configuration'!I600,Table1[TMS],0)),\"\")","v":""},{"$f":"IFERROR(INDEX(Table1[Bedding],MATCH('2) Room configuration'!I600,Table1[TMS],0)),\"\")","v":""},{"$f":"IFERROR(INDEX(Table1[Normal occupancy],MATCH(Table2[[#This Row],[New Room Type \n(TMS)]],Table1[TMS],0)),\"\")","v":""},null,null,null,null,"",{"$f":"IF(Table2[[#This Row],['# extra beds that fit in the room2]]<>0,LEFT(Table2[[#This Row],[New Room Type \n(TMS)]],6),\"\")","v":""},null,{"$f":"IF(Table2[[#This Row],['# extra beds that fit in the room]]<>Table2[[#This Row],['# extra beds that fit in the room2]],\"yes\",\"No\")","v":"No"}]
[null,{"$f":"IF(LEN(C601)>0,'1) Hotel information'!$C$4,\"\")","v":""},null,null,null,{"$f":"IFERROR(INDEX(Table1[Room description],MATCH('2) Room configuration'!D601,Table1[TMS],0)),\"\")","v":""},{"$f":"IFERROR(INDEX(Table1[Bedding],MATCH('2) Room configuration'!D601,Table1[TMS],0)),\"\")","v":""},null,null,{"$f":"IFERROR(INDEX(Table1[Room description],MATCH('2) Room configuration'!I601,Table1[TMS],0)),\"\")","v":""},{"$f":"IFERROR(INDEX(Table1[Bedding],MATCH('2) Room configuration'!I601,Table1[TMS],0)),\"\")","v":""},{"$f":"IFERROR(INDEX(Table1[Normal occupancy],MATCH(Table2[[#This Row],[New Room Type \n(TMS)]],Table1[TMS],0)),\"\")","v":""},null,null,null,null,"",{"$f":"IF(Table2[[#This Row],['# extra beds that fit in the room2]]<>0,LEFT(Table2[[#This Row],[New Room Type \n(TMS)]],6),\"\")","v":""},null,{"$f":"IF(Table2[[#This Row],['# extra beds that fit in the room]]<>Table2[[#This Row],['# extra beds that fit in the room2]],\"yes\",\"No\")","v":"No"}]
[null,{"$f":"IF(LEN(C602)>0,'1) Hotel information'!$C$4,\"\")","v":""},null,null,null,{"$f":"IFERROR(INDEX(Table1[Room description],MATCH('2) Room configuration'!D602,Table1[TMS],0)),\"\")","v":""},{"$f":"IFERROR(INDEX(Table1[Bedding],MATCH('2) Room configuration'!D602,Table1[TMS],0)),\"\")","v":""},null,null,{"$f":"IFERROR(INDEX(Table1[Room description],MATCH('2) Room configuration'!I602,Table1[TMS],0)),\"\")","v":""},{"$f":"IFERROR(INDEX(Table1[Bedding],MATCH('2) Room configuration'!I602,Table1[TMS],0)),\"\")","v":""},{"$f":"IFERROR(INDEX(Table1[Normal occupancy],MATCH(Table2[[#This Row],[New Room Type \n(TMS)]],Table1[TMS],0)),\"\")","v":""},null,null,null,null,"",{"$f":"IF(Table2[[#This Row],['# extra beds that fit in the room2]]<>0,LEFT(Table2[[#This Row],[New Room Type \n(TMS)]],6),\"\")","v":""},null,{"$f":"IF(Table2[[#This Row],['# extra beds that fit in the room]]<>Table2[[#This Row],['# extra beds that fit in the room2]],\"yes\",\"No\")","v":"No"}]
[null,{"$f":"IF(LEN(C603)>0,'1) Hotel information'!$C$4,\"\")","v":""},null,null,null,{"$f":"IFERROR(INDEX(Table1[Room description],MATCH('2) Room configuration'!D603,Table1[TMS],0)),\"\")","v":""},{"$f":"IFERROR(INDEX(Table1[Bedding],MATCH('2) Room configuration'!D603,Table1[TMS],0)),\"\")","v":""},null,null,{"$f":"IFERROR(INDEX(Table1[Room description],MATCH('2) Room configuration'!I603,Table1[TMS],0)),\"\")","v":""},{"$f":"IFERROR(INDEX(Table1[Bedding],MATCH('2) Room configuration'!I603,Table1[TMS],0)),\"\")","v":""},{"$f":"IFERROR(INDEX(Table1[Normal occupancy],MATCH(Table2[[#This Row],[New Room Type \n(TMS)]],Table1[TMS],0)),\"\")","v":""},null,null,null,null,"",{"$f":"IF(Table2[[#This Row],['# extra beds that fit in the room2]]<>0,LEFT(Table2[[#This Row],[New Room Type \n(TMS)]],6),\"\")","v":""},null,{"$f":"IF(Table2[[#This Row],['# extra beds that fit in the room]]<>Table2[[#This Row],['# extra beds that fit in the room2]],\"yes\",\"No\")","v":"No"}]
[null,{"$f":"IF(LEN(C604)>0,'1) Hotel information'!$C$4,\"\")","v":""},null,null,null,{"$f":"IFERROR(INDEX(Table1[Room description],MATCH('2) Room configuration'!D604,Table1[TMS],0)),\"\")","v":""},{"$f":"IFERROR(INDEX(Table1[Bedding],MATCH('2) Room configuration'!D604,Table1[TMS],0)),\"\")","v":""},null,null,{"$f":"IFERROR(INDEX(Table1[Room description],MATCH('2) Room configuration'!I604,Table1[TMS],0)),\"\")","v":""},{"$f":"IFERROR(INDEX(Table1[Bedding],MATCH('2) Room configuration'!I604,Table1[TMS],0)),\"\")","v":""},{"$f":"IFERROR(INDEX(Table1[Normal occupancy],MATCH(Table2[[#This Row],[New Room Type \n(TMS)]],Table1[TMS],0)),\"\")","v":""},null,null,null,null,"",{"$f":"IF(Table2[[#This Row],['# extra beds that fit in the room2]]<>0,LEFT(Table2[[#This Row],[New Room Type \n(TMS)]],6),\"\")","v":""},null,{"$f":"IF(Table2[[#This Row],['# extra beds that fit in the room]]<>Table2[[#This Row],['# extra beds that fit in the room2]],\"yes\",\"No\")","v":"No"}]
[null,{"$f":"IF(LEN(C605)>0,'1) Hotel information'!$C$4,\"\")","v":""},null,null,null,{"$f":"IFERROR(INDEX(Table1[Room description],MATCH('2) Room configuration'!D605,Table1[TMS],0)),\"\")","v":""},{"$f":"IFERROR(INDEX(Table1[Bedding],MATCH('2) Room configuration'!D605,Table1[TMS],0)),\"\")","v":""},null,null,{"$f":"IFERROR(INDEX(Table1[Room description],MATCH('2) Room configuration'!I605,Table1[TMS],0)),\"\")","v":""},{"$f":"IFERROR(INDEX(Table1[Bedding],MATCH('2) Room configuration'!I605,Table1[TMS],0)),\"\")","v":""},{"$f":"IFERROR(INDEX(Table1[Normal occupancy],MATCH(Table2[[#This Row],[New Room Type \n(TMS)]],Table1[TMS],0)),\"\")","v":""},null,null,null,null,"",{"$f":"IF(Table2[[#This Row],['# extra beds that fit in the room2]]<>0,LEFT(Table2[[#This Row],[New Room Type \n(TMS)]],6),\"\")","v":""},null,{"$f":"IF(Table2[[#This Row],['# extra beds that fit in the room]]<>Table2[[#This Row],['# extra beds that fit in the room2]],\"yes\",\"No\")","v":"No"}]
[null,{"$f":"IF(LEN(C606)>0,'1) Hotel information'!$C$4,\"\")","v":""},null,null,null,{"$f":"IFERROR(INDEX(Table1[Room description],MATCH('2) Room configuration'!D606,Table1[TMS],0)),\"\")","v":""},{"$f":"IFERROR(INDEX(Table1[Bedding],MATCH('2) Room configuration'!D606,Table1[TMS],0)),\"\")","v":""},null,null,{"$f":"IFERROR(INDEX(Table1[Room description],MATCH('2) Room configuration'!I606,Table1[TMS],0)),\"\")","v":""},{"$f":"IFERROR(INDEX(Table1[Bedding],MATCH('2) Room configuration'!I606,Table1[TMS],0)),\"\")","v":""},{"$f":"IFERROR(INDEX(Table1[Normal occupancy],MATCH(Table2[[#This Row],[New Room Type \n(TMS)]],Table1[TMS],0)),\"\")","v":""},null,null,null,null,"",{"$f":"IF(Table2[[#This Row],['# extra beds that fit in the room2]]<>0,LEFT(Table2[[#This Row],[New Room Type \n(TMS)]],6),\"\")","v":""},null,{"$f":"IF(Table2[[#This Row],['# extra beds that fit in the room]]<>Table2[[#This Row],['# extra beds that fit in the room2]],\"yes\",\"No\")","v":"No"}]
[null,{"$f":"IF(LEN(C607)>0,'1) Hotel information'!$C$4,\"\")","v":""},null,null,null,{"$f":"IFERROR(INDEX(Table1[Room description],MATCH('2) Room configuration'!D607,Table1[TMS],0)),\"\")","v":""},{"$f":"IFERROR(INDEX(Table1[Bedding],MATCH('2) Room configuration'!D607,Table1[TMS],0)),\"\")","v":""},null,null,{"$f":"IFERROR(INDEX(Table1[Room description],MATCH('2) Room configuration'!I607,Table1[TMS],0)),\"\")","v":""},{"$f":"IFERROR(INDEX(Table1[Bedding],MATCH('2) Room configuration'!I607,Table1[TMS],0)),\"\")","v":""},{"$f":"IFERROR(INDEX(Table1[Normal occupancy],MATCH(Table2[[#This Row],[New Room Type \n(TMS)]],Table1[TMS],0)),\"\")","v":""},null,null,null,null,"",{"$f":"IF(Table2[[#This Row],['# extra beds that fit in the room2]]<>0,LEFT(Table2[[#This Row],[New Room Type \n(TMS)]],6),\"\")","v":""},null,{"$f":"IF(Table2[[#This Row],['# extra beds that fit in the room]]<>Table2[[#This Row],['# extra beds that fit in the room2]],\"yes\",\"No\")","v":"No"}]
[null,{"$f":"IF(LEN(C608)>0,'1) Hotel information'!$C$4,\"\")","v":""},null,null,null,{"$f":"IFERROR(INDEX(Table1[Room description],MATCH('2) Room configuration'!D608,Table1[TMS],0)),\"\")","v":""},{"$f":"IFERROR(INDEX(Table1[Bedding],MATCH('2) Room configuration'!D608,Table1[TMS],0)),\"\")","v":""},null,null,{"$f":"IFERROR(INDEX(Table1[Room description],MATCH('2) Room configuration'!I608,Table1[TMS],0)),\"\")","v":""},{"$f":"IFERROR(INDEX(Table1[Bedding],MATCH('2) Room configuration'!I608,Table1[TMS],0)),\"\")","v":""},{"$f":"IFERROR(INDEX(Table1[Normal occupancy],MATCH(Table2[[#This Row],[New Room Type \n(TMS)]],Table1[TMS],0)),\"\")","v":""},null,null,null,null,"",{"$f":"IF(Table2[[#This Row],['# extra beds that fit in the room2]]<>0,LEFT(Table2[[#This Row],[New Room Type \n(TMS)]],6),\"\")","v":""},null,{"$f":"IF(Table2[[#This Row],['# extra beds that fit in the room]]<>Table2[[#This Row],['# extra beds that fit in the room2]],\"yes\",\"No\")","v":"No"}]
[null,{"$f":"IF(LEN(C609)>0,'1) Hotel information'!$C$4,\"\")","v":""},null,null,null,{"$f":"IFERROR(INDEX(Table1[Room description],MATCH('2) Room configuration'!D609,Table1[TMS],0)),\"\")","v":""},{"$f":"IFERROR(INDEX(Table1[Bedding],MATCH('2) Room configuration'!D609,Table1[TMS],0)),\"\")","v":""},null,null,{"$f":"IFERROR(INDEX(Table1[Room description],MATCH('2) Room configuration'!I609,Table1[TMS],0)),\"\")","v":""},{"$f":"IFERROR(INDEX(Table1[Bedding],MATCH('2) Room configuration'!I609,Table1[TMS],0)),\"\")","v":""},{"$f":"IFERROR(INDEX(Table1[Normal occupancy],MATCH(Table2[[#This Row],[New Room Type \n(TMS)]],Table1[TMS],0)),\"\")","v":""},null,null,null,null,"",{"$f":"IF(Table2[[#This Row],['# extra beds that fit in the room2]]<>0,LEFT(Table2[[#This Row],[New Room Type \n(TMS)]],6),\"\")","v":""},null,{"$f":"IF(Table2[[#This Row],['# extra beds that fit in the room]]<>Table2[[#This Row],['# extra beds that fit in the room2]],\"yes\",\"No\")","v":"No"}]
[null,{"$f":"IF(LEN(C610)>0,'1) Hotel information'!$C$4,\"\")","v":""},null,null,null,{"$f":"IFERROR(INDEX(Table1[Room description],MATCH('2) Room configuration'!D610,Table1[TMS],0)),\"\")","v":""},{"$f":"IFERROR(INDEX(Table1[Bedding],MATCH('2) Room configuration'!D610,Table1[TMS],0)),\"\")","v":""},null,null,{"$f":"IFERROR(INDEX(Table1[Room description],MATCH('2) Room configuration'!I610,Table1[TMS],0)),\"\")","v":""},{"$f":"IFERROR(INDEX(Table1[Bedding],MATCH('2) Room configuration'!I610,Table1[TMS],0)),\"\")","v":""},{"$f":"IFERROR(INDEX(Table1[Normal occupancy],MATCH(Table2[[#This Row],[New Room Type \n(TMS)]],Table1[TMS],0)),\"\")","v":""},null,null,null,null,"",{"$f":"IF(Table2[[#This Row],['# extra beds that fit in the room2]]<>0,LEFT(Table2[[#This Row],[New Room Type \n(TMS)]],6),\"\")","v":""},null,{"$f":"IF(Table2[[#This Row],['# extra beds that fit in the room]]<>Table2[[#This Row],['# extra beds that fit in the room2]],\"yes\",\"No\")","v":"No"}]
[null,{"$f":"IF(LEN(C611)>0,'1) Hotel information'!$C$4,\"\")","v":""},null,null,null,{"$f":"IFERROR(INDEX(Table1[Room description],MATCH('2) Room configuration'!D611,Table1[TMS],0)),\"\")","v":""},{"$f":"IFERROR(INDEX(Table1[Bedding],MATCH('2) Room configuration'!D611,Table1[TMS],0)),\"\")","v":""},null,null,{"$f":"IFERROR(INDEX(Table1[Room description],MATCH('2) Room configuration'!I611,Table1[TMS],0)),\"\")","v":""},{"$f":"IFERROR(INDEX(Table1[Bedding],MATCH('2) Room configuration'!I611,Table1[TMS],0)),\"\")","v":""},{"$f":"IFERROR(INDEX(Table1[Normal occupancy],MATCH(Table2[[#This Row],[New Room Type \n(TMS)]],Table1[TMS],0)),\"\")","v":""},null,null,null,null,"",{"$f":"IF(Table2[[#This Row],['# extra beds that fit in the room2]]<>0,LEFT(Table2[[#This Row],[New Room Type \n(TMS)]],6),\"\")","v":""},null,{"$f":"IF(Table2[[#This Row],['# extra beds that fit in the room]]<>Table2[[#This Row],['# extra beds that fit in the room2]],\"yes\",\"No\")","v":"No"}]
[null,{"$f":"IF(LEN(C612)>0,'1) Hotel information'!$C$4,\"\")","v":""},null,null,null,{"$f":"IFERROR(INDEX(Table1[Room description],MATCH('2) Room configuration'!D612,Table1[TMS],0)),\"\")","v":""},{"$f":"IFERROR(INDEX(Table1[Bedding],MATCH('2) Room configuration'!D612,Table1[TMS],0)),\"\")","v":""},null,null,{"$f":"IFERROR(INDEX(Table1[Room description],MATCH('2) Room configuration'!I612,Table1[TMS],0)),\"\")","v":""},{"$f":"IFERROR(INDEX(Table1[Bedding],MATCH('2) Room configuration'!I612,Table1[TMS],0)),\"\")","v":""},{"$f":"IFERROR(INDEX(Table1[Normal occupancy],MATCH(Table2[[#This Row],[New Room Type \n(TMS)]],Table1[TMS],0)),\"\")","v":""},null,null,null,null,"",{"$f":"IF(Table2[[#This Row],['# extra beds that fit in the room2]]<>0,LEFT(Table2[[#This Row],[New Room Type \n(TMS)]],6),\"\")","v":""},null,{"$f":"IF(Table2[[#This Row],['# extra beds that fit in the room]]<>Table2[[#This Row],['# extra beds that fit in the room2]],\"yes\",\"No\")","v":"No"}]
[null,{"$f":"IF(LEN(C613)>0,'1) Hotel information'!$C$4,\"\")","v":""},null,null,null,{"$f":"IFERROR(INDEX(Table1[Room description],MATCH('2) Room configuration'!D613,Table1[TMS],0)),\"\")","v":""},{"$f":"IFERROR(INDEX(Table1[Bedding],MATCH('2) Room configuration'!D613,Table1[TMS],0)),\"\")","v":""},null,null,{"$f":"IFERROR(INDEX(Table1[Room description],MATCH('2) Room configuration'!I613,Table1[TMS],0)),\"\")","v":""},{"$f":"IFERROR(INDEX(Table1[Bedding],MATCH('2) Room configuration'!I613,Table1[TMS],0)),\"\")","v":""},{"$f":"IFERROR(INDEX(Table1[Normal occupancy],MATCH(Table2[[#This Row],[New Room Type \n(TMS)]],Table1[TMS],0)),\"\")","v":""},null,null,null,null,"",{"$f":"IF(Table2[[#This Row],['# extra beds that fit in the room2]]<>0,LEFT(Table2[[#This Row],[New Room Type \n(TMS)]],6),\"\")","v":""},null,{"$f":"IF(Table2[[#This Row],['# extra beds that fit in the room]]<>Table2[[#This Row],['# extra beds that fit in the room2]],\"yes\",\"No\")","v":"No"}]
[null,{"$f":"IF(LEN(C614)>0,'1) Hotel information'!$C$4,\"\")","v":""},null,null,null,{"$f":"IFERROR(INDEX(Table1[Room description],MATCH('2) Room configuration'!D614,Table1[TMS],0)),\"\")","v":""},{"$f":"IFERROR(INDEX(Table1[Bedding],MATCH('2) Room configuration'!D614,Table1[TMS],0)),\"\")","v":""},null,null,{"$f":"IFERROR(INDEX(Table1[Room description],MATCH('2) Room configuration'!I614,Table1[TMS],0)),\"\")","v":""},{"$f":"IFERROR(INDEX(Table1[Bedding],MATCH('2) Room configuration'!I614,Table1[TMS],0)),\"\")","v":""},{"$f":"IFERROR(INDEX(Table1[Normal occupancy],MATCH(Table2[[#This Row],[New Room Type \n(TMS)]],Table1[TMS],0)),\"\")","v":""},null,null,null,null,"",{"$f":"IF(Table2[[#This Row],['# extra beds that fit in the room2]]<>0,LEFT(Table2[[#This Row],[New Room Type \n(TMS)]],6),\"\")","v":""},null,{"$f":"IF(Table2[[#This Row],['# extra beds that fit in the room]]<>Table2[[#This Row],['# extra beds that fit in the room2]],\"yes\",\"No\")","v":"No"}]
[null,{"$f":"IF(LEN(C615)>0,'1) Hotel information'!$C$4,\"\")","v":""},null,null,null,{"$f":"IFERROR(INDEX(Table1[Room description],MATCH('2) Room configuration'!D615,Table1[TMS],0)),\"\")","v":""},{"$f":"IFERROR(INDEX(Table1[Bedding],MATCH('2) Room configuration'!D615,Table1[TMS],0)),\"\")","v":""},null,null,{"$f":"IFERROR(INDEX(Table1[Room description],MATCH('2) Room configuration'!I615,Table1[TMS],0)),\"\")","v":""},{"$f":"IFERROR(INDEX(Table1[Bedding],MATCH('2) Room configuration'!I615,Table1[TMS],0)),\"\")","v":""},{"$f":"IFERROR(INDEX(Table1[Normal occupancy],MATCH(Table2[[#This Row],[New Room Type \n(TMS)]],Table1[TMS],0)),\"\")","v":""},null,null,null,null,"",{"$f":"IF(Table2[[#This Row],['# extra beds that fit in the room2]]<>0,LEFT(Table2[[#This Row],[New Room Type \n(TMS)]],6),\"\")","v":""},null,{"$f":"IF(Table2[[#This Row],['# extra beds that fit in the room]]<>Table2[[#This Row],['# extra beds that fit in the room2]],\"yes\",\"No\")","v":"No"}]
[null,{"$f":"IF(LEN(C616)>0,'1) Hotel information'!$C$4,\"\")","v":""},null,null,null,{"$f":"IFERROR(INDEX(Table1[Room description],MATCH('2) Room configuration'!D616,Table1[TMS],0)),\"\")","v":""},{"$f":"IFERROR(INDEX(Table1[Bedding],MATCH('2) Room configuration'!D616,Table1[TMS],0)),\"\")","v":""},null,null,{"$f":"IFERROR(INDEX(Table1[Room description],MATCH('2) Room configuration'!I616,Table1[TMS],0)),\"\")","v":""},{"$f":"IFERROR(INDEX(Table1[Bedding],MATCH('2) Room configuration'!I616,Table1[TMS],0)),\"\")","v":""},{"$f":"IFERROR(INDEX(Table1[Normal occupancy],MATCH(Table2[[#This Row],[New Room Type \n(TMS)]],Table1[TMS],0)),\"\")","v":""},null,null,null,null,"",{"$f":"IF(Table2[[#This Row],['# extra beds that fit in the room2]]<>0,LEFT(Table2[[#This Row],[New Room Type \n(TMS)]],6),\"\")","v":""},null,{"$f":"IF(Table2[[#This Row],['# extra beds that fit in the room]]<>Table2[[#This Row],['# extra beds that fit in the room2]],\"yes\",\"No\")","v":"No"}]
[null,{"$f":"IF(LEN(C617)>0,'1) Hotel information'!$C$4,\"\")","v":""},null,null,null,{"$f":"IFERROR(INDEX(Table1[Room description],MATCH('2) Room configuration'!D617,Table1[TMS],0)),\"\")","v":""},{"$f":"IFERROR(INDEX(Table1[Bedding],MATCH('2) Room configuration'!D617,Table1[TMS],0)),\"\")","v":""},null,null,{"$f":"IFERROR(INDEX(Table1[Room description],MATCH('2) Room configuration'!I617,Table1[TMS],0)),\"\")","v":""},{"$f":"IFERROR(INDEX(Table1[Bedding],MATCH('2) Room configuration'!I617,Table1[TMS],0)),\"\")","v":""},{"$f":"IFERROR(INDEX(Table1[Normal occupancy],MATCH(Table2[[#This Row],[New Room Type \n(TMS)]],Table1[TMS],0)),\"\")","v":""},null,null,null,null,"",{"$f":"IF(Table2[[#This Row],['# extra beds that fit in the room2]]<>0,LEFT(Table2[[#This Row],[New Room Type \n(TMS)]],6),\"\")","v":""},null,{"$f":"IF(Table2[[#This Row],['# extra beds that fit in the room]]<>Table2[[#This Row],['# extra beds that fit in the room2]],\"yes\",\"No\")","v":"No"}]
[null,{"$f":"IF(LEN(C618)>0,'1) Hotel information'!$C$4,\"\")","v":""},null,null,null,{"$f":"IFERROR(INDEX(Table1[Room description],MATCH('2) Room configuration'!D618,Table1[TMS],0)),\"\")","v":""},{"$f":"IFERROR(INDEX(Table1[Bedding],MATCH('2) Room configuration'!D618,Table1[TMS],0)),\"\")","v":""},null,null,{"$f":"IFERROR(INDEX(Table1[Room description],MATCH('2) Room configuration'!I618,Table1[TMS],0)),\"\")","v":""},{"$f":"IFERROR(INDEX(Table1[Bedding],MATCH('2) Room configuration'!I618,Table1[TMS],0)),\"\")","v":""},{"$f":"IFERROR(INDEX(Table1[Normal occupancy],MATCH(Table2[[#This Row],[New Room Type \n(TMS)]],Table1[TMS],0)),\"\")","v":""},null,null,null,null,"",{"$f":"IF(Table2[[#This Row],['# extra beds that fit in the room2]]<>0,LEFT(Table2[[#This Row],[New Room Type \n(TMS)]],6),\"\")","v":""},null,{"$f":"IF(Table2[[#This Row],['# extra beds that fit in the room]]<>Table2[[#This Row],['# extra beds that fit in the room2]],\"yes\",\"No\")","v":"No"}]
[null,{"$f":"IF(LEN(C619)>0,'1) Hotel information'!$C$4,\"\")","v":""},null,null,null,{"$f":"IFERROR(INDEX(Table1[Room description],MATCH('2) Room configuration'!D619,Table1[TMS],0)),\"\")","v":""},{"$f":"IFERROR(INDEX(Table1[Bedding],MATCH('2) Room configuration'!D619,Table1[TMS],0)),\"\")","v":""},null,null,{"$f":"IFERROR(INDEX(Table1[Room description],MATCH('2) Room configuration'!I619,Table1[TMS],0)),\"\")","v":""},{"$f":"IFERROR(INDEX(Table1[Bedding],MATCH('2) Room configuration'!I619,Table1[TMS],0)),\"\")","v":""},{"$f":"IFERROR(INDEX(Table1[Normal occupancy],MATCH(Table2[[#This Row],[New Room Type \n(TMS)]],Table1[TMS],0)),\"\")","v":""},null,null,null,null,"",{"$f":"IF(Table2[[#This Row],['# extra beds that fit in the room2]]<>0,LEFT(Table2[[#This Row],[New Room Type \n(TMS)]],6),\"\")","v":""},null,{"$f":"IF(Table2[[#This Row],['# extra beds that fit in the room]]<>Table2[[#This Row],['# extra beds that fit in the room2]],\"yes\",\"No\")","v":"No"}]
[null,{"$f":"IF(LEN(C620)>0,'1) Hotel information'!$C$4,\"\")","v":""},null,null,null,{"$f":"IFERROR(INDEX(Table1[Room description],MATCH('2) Room configuration'!D620,Table1[TMS],0)),\"\")","v":""},{"$f":"IFERROR(INDEX(Table1[Bedding],MATCH('2) Room configuration'!D620,Table1[TMS],0)),\"\")","v":""},null,null,{"$f":"IFERROR(INDEX(Table1[Room description],MATCH('2) Room configuration'!I620,Table1[TMS],0)),\"\")","v":""},{"$f":"IFERROR(INDEX(Table1[Bedding],MATCH('2) Room configuration'!I620,Table1[TMS],0)),\"\")","v":""},{"$f":"IFERROR(INDEX(Table1[Normal occupancy],MATCH(Table2[[#This Row],[New Room Type \n(TMS)]],Table1[TMS],0)),\"\")","v":""},null,null,null,null,"",{"$f":"IF(Table2[[#This Row],['# extra beds that fit in the room2]]<>0,LEFT(Table2[[#This Row],[New Room Type \n(TMS)]],6),\"\")","v":""},null,{"$f":"IF(Table2[[#This Row],['# extra beds that fit in the room]]<>Table2[[#This Row],['# extra beds that fit in the room2]],\"yes\",\"No\")","v":"No"}]
[null,{"$f":"IF(LEN(C621)>0,'1) Hotel information'!$C$4,\"\")","v":""},null,null,null,{"$f":"IFERROR(INDEX(Table1[Room description],MATCH('2) Room configuration'!D621,Table1[TMS],0)),\"\")","v":""},{"$f":"IFERROR(INDEX(Table1[Bedding],MATCH('2) Room configuration'!D621,Table1[TMS],0)),\"\")","v":""},null,null,{"$f":"IFERROR(INDEX(Table1[Room description],MATCH('2) Room configuration'!I621,Table1[TMS],0)),\"\")","v":""},{"$f":"IFERROR(INDEX(Table1[Bedding],MATCH('2) Room configuration'!I621,Table1[TMS],0)),\"\")","v":""},{"$f":"IFERROR(INDEX(Table1[Normal occupancy],MATCH(Table2[[#This Row],[New Room Type \n(TMS)]],Table1[TMS],0)),\"\")","v":""},null,null,null,null,"",{"$f":"IF(Table2[[#This Row],['# extra beds that fit in the room2]]<>0,LEFT(Table2[[#This Row],[New Room Type \n(TMS)]],6),\"\")","v":""},null,{"$f":"IF(Table2[[#This Row],['# extra beds that fit in the room]]<>Table2[[#This Row],['# extra beds that fit in the room2]],\"yes\",\"No\")","v":"No"}]
[null,{"$f":"IF(LEN(C622)>0,'1) Hotel information'!$C$4,\"\")","v":""},null,null,null,{"$f":"IFERROR(INDEX(Table1[Room description],MATCH('2) Room configuration'!D622,Table1[TMS],0)),\"\")","v":""},{"$f":"IFERROR(INDEX(Table1[Bedding],MATCH('2) Room configuration'!D622,Table1[TMS],0)),\"\")","v":""},null,null,{"$f":"IFERROR(INDEX(Table1[Room description],MATCH('2) Room configuration'!I622,Table1[TMS],0)),\"\")","v":""},{"$f":"IFERROR(INDEX(Table1[Bedding],MATCH('2) Room configuration'!I622,Table1[TMS],0)),\"\")","v":""},{"$f":"IFERROR(INDEX(Table1[Normal occupancy],MATCH(Table2[[#This Row],[New Room Type \n(TMS)]],Table1[TMS],0)),\"\")","v":""},null,null,null,null,"",{"$f":"IF(Table2[[#This Row],['# extra beds that fit in the room2]]<>0,LEFT(Table2[[#This Row],[New Room Type \n(TMS)]],6),\"\")","v":""},null,{"$f":"IF(Table2[[#This Row],['# extra beds that fit in the room]]<>Table2[[#This Row],['# extra beds that fit in the room2]],\"yes\",\"No\")","v":"No"}]
[null,{"$f":"IF(LEN(C623)>0,'1) Hotel information'!$C$4,\"\")","v":""},null,null,null,{"$f":"IFERROR(INDEX(Table1[Room description],MATCH('2) Room configuration'!D623,Table1[TMS],0)),\"\")","v":""},{"$f":"IFERROR(INDEX(Table1[Bedding],MATCH('2) Room configuration'!D623,Table1[TMS],0)),\"\")","v":""},null,null,{"$f":"IFERROR(INDEX(Table1[Room description],MATCH('2) Room configuration'!I623,Table1[TMS],0)),\"\")","v":""},{"$f":"IFERROR(INDEX(Table1[Bedding],MATCH('2) Room configuration'!I623,Table1[TMS],0)),\"\")","v":""},{"$f":"IFERROR(INDEX(Table1[Normal occupancy],MATCH(Table2[[#This Row],[New Room Type \n(TMS)]],Table1[TMS],0)),\"\")","v":""},null,null,null,null,"",{"$f":"IF(Table2[[#This Row],['# extra beds that fit in the room2]]<>0,LEFT(Table2[[#This Row],[New Room Type \n(TMS)]],6),\"\")","v":""},null,{"$f":"IF(Table2[[#This Row],['# extra beds that fit in the room]]<>Table2[[#This Row],['# extra beds that fit in the room2]],\"yes\",\"No\")","v":"No"}]
[null,{"$f":"IF(LEN(C624)>0,'1) Hotel information'!$C$4,\"\")","v":""},null,null,null,{"$f":"IFERROR(INDEX(Table1[Room description],MATCH('2) Room configuration'!D624,Table1[TMS],0)),\"\")","v":""},{"$f":"IFERROR(INDEX(Table1[Bedding],MATCH('2) Room configuration'!D624,Table1[TMS],0)),\"\")","v":""},null,null,{"$f":"IFERROR(INDEX(Table1[Room description],MATCH('2) Room configuration'!I624,Table1[TMS],0)),\"\")","v":""},{"$f":"IFERROR(INDEX(Table1[Bedding],MATCH('2) Room configuration'!I624,Table1[TMS],0)),\"\")","v":""},{"$f":"IFERROR(INDEX(Table1[Normal occupancy],MATCH(Table2[[#This Row],[New Room Type \n(TMS)]],Table1[TMS],0)),\"\")","v":""},null,null,null,null,"",{"$f":"IF(Table2[[#This Row],['# extra beds that fit in the room2]]<>0,LEFT(Table2[[#This Row],[New Room Type \n(TMS)]],6),\"\")","v":""},null,{"$f":"IF(Table2[[#This Row],['# extra beds that fit in the room]]<>Table2[[#This Row],['# extra beds that fit in the room2]],\"yes\",\"No\")","v":"No"}]
[null,{"$f":"IF(LEN(C625)>0,'1) Hotel information'!$C$4,\"\")","v":""},null,null,null,{"$f":"IFERROR(INDEX(Table1[Room description],MATCH('2) Room configuration'!D625,Table1[TMS],0)),\"\")","v":""},{"$f":"IFERROR(INDEX(Table1[Bedding],MATCH('2) Room configuration'!D625,Table1[TMS],0)),\"\")","v":""},null,null,{"$f":"IFERROR(INDEX(Table1[Room description],MATCH('2) Room configuration'!I625,Table1[TMS],0)),\"\")","v":""},{"$f":"IFERROR(INDEX(Table1[Bedding],MATCH('2) Room configuration'!I625,Table1[TMS],0)),\"\")","v":""},{"$f":"IFERROR(INDEX(Table1[Normal occupancy],MATCH(Table2[[#This Row],[New Room Type \n(TMS)]],Table1[TMS],0)),\"\")","v":""},null,null,null,null,"",{"$f":"IF(Table2[[#This Row],['# extra beds that fit in the room2]]<>0,LEFT(Table2[[#This Row],[New Room Type \n(TMS)]],6),\"\")","v":""},null,{"$f":"IF(Table2[[#This Row],['# extra beds that fit in the room]]<>Table2[[#This Row],['# extra beds that fit in the room2]],\"yes\",\"No\")","v":"No"}]
[null,{"$f":"IF(LEN(C626)>0,'1) Hotel information'!$C$4,\"\")","v":""},null,null,null,{"$f":"IFERROR(INDEX(Table1[Room description],MATCH('2) Room configuration'!D626,Table1[TMS],0)),\"\")","v":""},{"$f":"IFERROR(INDEX(Table1[Bedding],MATCH('2) Room configuration'!D626,Table1[TMS],0)),\"\")","v":""},null,null,{"$f":"IFERROR(INDEX(Table1[Room description],MATCH('2) Room configuration'!I626,Table1[TMS],0)),\"\")","v":""},{"$f":"IFERROR(INDEX(Table1[Bedding],MATCH('2) Room configuration'!I626,Table1[TMS],0)),\"\")","v":""},{"$f":"IFERROR(INDEX(Table1[Normal occupancy],MATCH(Table2[[#This Row],[New Room Type \n(TMS)]],Table1[TMS],0)),\"\")","v":""},null,null,null,null,"",{"$f":"IF(Table2[[#This Row],['# extra beds that fit in the room2]]<>0,LEFT(Table2[[#This Row],[New Room Type \n(TMS)]],6),\"\")","v":""},null,{"$f":"IF(Table2[[#This Row],['# extra beds that fit in the room]]<>Table2[[#This Row],['# extra beds that fit in the room2]],\"yes\",\"No\")","v":"No"}]
[null,{"$f":"IF(LEN(C627)>0,'1) Hotel information'!$C$4,\"\")","v":""},null,null,null,{"$f":"IFERROR(INDEX(Table1[Room description],MATCH('2) Room configuration'!D627,Table1[TMS],0)),\"\")","v":""},{"$f":"IFERROR(INDEX(Table1[Bedding],MATCH('2) Room configuration'!D627,Table1[TMS],0)),\"\")","v":""},null,null,{"$f":"IFERROR(INDEX(Table1[Room description],MATCH('2) Room configuration'!I627,Table1[TMS],0)),\"\")","v":""},{"$f":"IFERROR(INDEX(Table1[Bedding],MATCH('2) Room configuration'!I627,Table1[TMS],0)),\"\")","v":""},{"$f":"IFERROR(INDEX(Table1[Normal occupancy],MATCH(Table2[[#This Row],[New Room Type \n(TMS)]],Table1[TMS],0)),\"\")","v":""},null,null,null,null,"",{"$f":"IF(Table2[[#This Row],['# extra beds that fit in the room2]]<>0,LEFT(Table2[[#This Row],[New Room Type \n(TMS)]],6),\"\")","v":""},null,{"$f":"IF(Table2[[#This Row],['# extra beds that fit in the room]]<>Table2[[#This Row],['# extra beds that fit in the room2]],\"yes\",\"No\")","v":"No"}]
[null,{"$f":"IF(LEN(C628)>0,'1) Hotel information'!$C$4,\"\")","v":""},null,null,null,{"$f":"IFERROR(INDEX(Table1[Room description],MATCH('2) Room configuration'!D628,Table1[TMS],0)),\"\")","v":""},{"$f":"IFERROR(INDEX(Table1[Bedding],MATCH('2) Room configuration'!D628,Table1[TMS],0)),\"\")","v":""},null,null,{"$f":"IFERROR(INDEX(Table1[Room description],MATCH('2) Room configuration'!I628,Table1[TMS],0)),\"\")","v":""},{"$f":"IFERROR(INDEX(Table1[Bedding],MATCH('2) Room configuration'!I628,Table1[TMS],0)),\"\")","v":""},{"$f":"IFERROR(INDEX(Table1[Normal occupancy],MATCH(Table2[[#This Row],[New Room Type \n(TMS)]],Table1[TMS],0)),\"\")","v":""},null,null,null,null,"",{"$f":"IF(Table2[[#This Row],['# extra beds that fit in the room2]]<>0,LEFT(Table2[[#This Row],[New Room Type \n(TMS)]],6),\"\")","v":""},null,{"$f":"IF(Table2[[#This Row],['# extra beds that fit in the room]]<>Table2[[#This Row],['# extra beds that fit in the room2]],\"yes\",\"No\")","v":"No"}]
[null,{"$f":"IF(LEN(C629)>0,'1) Hotel information'!$C$4,\"\")","v":""},null,null,null,{"$f":"IFERROR(INDEX(Table1[Room description],MATCH('2) Room configuration'!D629,Table1[TMS],0)),\"\")","v":""},{"$f":"IFERROR(INDEX(Table1[Bedding],MATCH('2) Room configuration'!D629,Table1[TMS],0)),\"\")","v":""},null,null,{"$f":"IFERROR(INDEX(Table1[Room description],MATCH('2) Room configuration'!I629,Table1[TMS],0)),\"\")","v":""},{"$f":"IFERROR(INDEX(Table1[Bedding],MATCH('2) Room configuration'!I629,Table1[TMS],0)),\"\")","v":""},{"$f":"IFERROR(INDEX(Table1[Normal occupancy],MATCH(Table2[[#This Row],[New Room Type \n(TMS)]],Table1[TMS],0)),\"\")","v":""},null,null,null,null,"",{"$f":"IF(Table2[[#This Row],['# extra beds that fit in the room2]]<>0,LEFT(Table2[[#This Row],[New Room Type \n(TMS)]],6),\"\")","v":""},null,{"$f":"IF(Table2[[#This Row],['# extra beds that fit in the room]]<>Table2[[#This Row],['# extra beds that fit in the room2]],\"yes\",\"No\")","v":"No"}]
[null,{"$f":"IF(LEN(C630)>0,'1) Hotel information'!$C$4,\"\")","v":""},null,null,null,{"$f":"IFERROR(INDEX(Table1[Room description],MATCH('2) Room configuration'!D630,Table1[TMS],0)),\"\")","v":""},{"$f":"IFERROR(INDEX(Table1[Bedding],MATCH('2) Room configuration'!D630,Table1[TMS],0)),\"\")","v":""},null,null,{"$f":"IFERROR(INDEX(Table1[Room description],MATCH('2) Room configuration'!I630,Table1[TMS],0)),\"\")","v":""},{"$f":"IFERROR(INDEX(Table1[Bedding],MATCH('2) Room configuration'!I630,Table1[TMS],0)),\"\")","v":""},{"$f":"IFERROR(INDEX(Table1[Normal occupancy],MATCH(Table2[[#This Row],[New Room Type \n(TMS)]],Table1[TMS],0)),\"\")","v":""},null,null,null,null,"",{"$f":"IF(Table2[[#This Row],['# extra beds that fit in the room2]]<>0,LEFT(Table2[[#This Row],[New Room Type \n(TMS)]],6),\"\")","v":""},null,{"$f":"IF(Table2[[#This Row],['# extra beds that fit in the room]]<>Table2[[#This Row],['# extra beds that fit in the room2]],\"yes\",\"No\")","v":"No"}]
[null,{"$f":"IF(LEN(C631)>0,'1) Hotel information'!$C$4,\"\")","v":""},null,null,null,{"$f":"IFERROR(INDEX(Table1[Room description],MATCH('2) Room configuration'!D631,Table1[TMS],0)),\"\")","v":""},{"$f":"IFERROR(INDEX(Table1[Bedding],MATCH('2) Room configuration'!D631,Table1[TMS],0)),\"\")","v":""},null,null,{"$f":"IFERROR(INDEX(Table1[Room description],MATCH('2) Room configuration'!I631,Table1[TMS],0)),\"\")","v":""},{"$f":"IFERROR(INDEX(Table1[Bedding],MATCH('2) Room configuration'!I631,Table1[TMS],0)),\"\")","v":""},{"$f":"IFERROR(INDEX(Table1[Normal occupancy],MATCH(Table2[[#This Row],[New Room Type \n(TMS)]],Table1[TMS],0)),\"\")","v":""},null,null,null,null,"",{"$f":"IF(Table2[[#This Row],['# extra beds that fit in the room2]]<>0,LEFT(Table2[[#This Row],[New Room Type \n(TMS)]],6),\"\")","v":""},null,{"$f":"IF(Table2[[#This Row],['# extra beds that fit in the room]]<>Table2[[#This Row],['# extra beds that fit in the room2]],\"yes\",\"No\")","v":"No"}]
[null,{"$f":"IF(LEN(C632)>0,'1) Hotel information'!$C$4,\"\")","v":""},null,null,null,{"$f":"IFERROR(INDEX(Table1[Room description],MATCH('2) Room configuration'!D632,Table1[TMS],0)),\"\")","v":""},{"$f":"IFERROR(INDEX(Table1[Bedding],MATCH('2) Room configuration'!D632,Table1[TMS],0)),\"\")","v":""},null,null,{"$f":"IFERROR(INDEX(Table1[Room description],MATCH('2) Room configuration'!I632,Table1[TMS],0)),\"\")","v":""},{"$f":"IFERROR(INDEX(Table1[Bedding],MATCH('2) Room configuration'!I632,Table1[TMS],0)),\"\")","v":""},{"$f":"IFERROR(INDEX(Table1[Normal occupancy],MATCH(Table2[[#This Row],[New Room Type \n(TMS)]],Table1[TMS],0)),\"\")","v":""},null,null,null,null,"",{"$f":"IF(Table2[[#This Row],['# extra beds that fit in the room2]]<>0,LEFT(Table2[[#This Row],[New Room Type \n(TMS)]],6),\"\")","v":""},null,{"$f":"IF(Table2[[#This Row],['# extra beds that fit in the room]]<>Table2[[#This Row],['# extra beds that fit in the room2]],\"yes\",\"No\")","v":"No"}]
[null,{"$f":"IF(LEN(C633)>0,'1) Hotel information'!$C$4,\"\")","v":""},null,null,null,{"$f":"IFERROR(INDEX(Table1[Room description],MATCH('2) Room configuration'!D633,Table1[TMS],0)),\"\")","v":""},{"$f":"IFERROR(INDEX(Table1[Bedding],MATCH('2) Room configuration'!D633,Table1[TMS],0)),\"\")","v":""},null,null,{"$f":"IFERROR(INDEX(Table1[Room description],MATCH('2) Room configuration'!I633,Table1[TMS],0)),\"\")","v":""},{"$f":"IFERROR(INDEX(Table1[Bedding],MATCH('2) Room configuration'!I633,Table1[TMS],0)),\"\")","v":""},{"$f":"IFERROR(INDEX(Table1[Normal occupancy],MATCH(Table2[[#This Row],[New Room Type \n(TMS)]],Table1[TMS],0)),\"\")","v":""},null,null,null,null,"",{"$f":"IF(Table2[[#This Row],['# extra beds that fit in the room2]]<>0,LEFT(Table2[[#This Row],[New Room Type \n(TMS)]],6),\"\")","v":""},null,{"$f":"IF(Table2[[#This Row],['# extra beds that fit in the room]]<>Table2[[#This Row],['# extra beds that fit in the room2]],\"yes\",\"No\")","v":"No"}]
[null,{"$f":"IF(LEN(C634)>0,'1) Hotel information'!$C$4,\"\")","v":""},null,null,null,{"$f":"IFERROR(INDEX(Table1[Room description],MATCH('2) Room configuration'!D634,Table1[TMS],0)),\"\")","v":""},{"$f":"IFERROR(INDEX(Table1[Bedding],MATCH('2) Room configuration'!D634,Table1[TMS],0)),\"\")","v":""},null,null,{"$f":"IFERROR(INDEX(Table1[Room description],MATCH('2) Room configuration'!I634,Table1[TMS],0)),\"\")","v":""},{"$f":"IFERROR(INDEX(Table1[Bedding],MATCH('2) Room configuration'!I634,Table1[TMS],0)),\"\")","v":""},{"$f":"IFERROR(INDEX(Table1[Normal occupancy],MATCH(Table2[[#This Row],[New Room Type \n(TMS)]],Table1[TMS],0)),\"\")","v":""},null,null,null,null,"",{"$f":"IF(Table2[[#This Row],['# extra beds that fit in the room2]]<>0,LEFT(Table2[[#This Row],[New Room Type \n(TMS)]],6),\"\")","v":""},null,{"$f":"IF(Table2[[#This Row],['# extra beds that fit in the room]]<>Table2[[#This Row],['# extra beds that fit in the room2]],\"yes\",\"No\")","v":"No"}]
[null,{"$f":"IF(LEN(C635)>0,'1) Hotel information'!$C$4,\"\")","v":""},null,null,null,{"$f":"IFERROR(INDEX(Table1[Room description],MATCH('2) Room configuration'!D635,Table1[TMS],0)),\"\")","v":""},{"$f":"IFERROR(INDEX(Table1[Bedding],MATCH('2) Room configuration'!D635,Table1[TMS],0)),\"\")","v":""},null,null,{"$f":"IFERROR(INDEX(Table1[Room description],MATCH('2) Room configuration'!I635,Table1[TMS],0)),\"\")","v":""},{"$f":"IFERROR(INDEX(Table1[Bedding],MATCH('2) Room configuration'!I635,Table1[TMS],0)),\"\")","v":""},{"$f":"IFERROR(INDEX(Table1[Normal occupancy],MATCH(Table2[[#This Row],[New Room Type \n(TMS)]],Table1[TMS],0)),\"\")","v":""},null,null,null,null,"",{"$f":"IF(Table2[[#This Row],['# extra beds that fit in the room2]]<>0,LEFT(Table2[[#This Row],[New Room Type \n(TMS)]],6),\"\")","v":""},null,{"$f":"IF(Table2[[#This Row],['# extra beds that fit in the room]]<>Table2[[#This Row],['# extra beds that fit in the room2]],\"yes\",\"No\")","v":"No"}]
[null,{"$f":"IF(LEN(C636)>0,'1) Hotel information'!$C$4,\"\")","v":""},null,null,null,{"$f":"IFERROR(INDEX(Table1[Room description],MATCH('2) Room configuration'!D636,Table1[TMS],0)),\"\")","v":""},{"$f":"IFERROR(INDEX(Table1[Bedding],MATCH('2) Room configuration'!D636,Table1[TMS],0)),\"\")","v":""},null,null,{"$f":"IFERROR(INDEX(Table1[Room description],MATCH('2) Room configuration'!I636,Table1[TMS],0)),\"\")","v":""},{"$f":"IFERROR(INDEX(Table1[Bedding],MATCH('2) Room configuration'!I636,Table1[TMS],0)),\"\")","v":""},{"$f":"IFERROR(INDEX(Table1[Normal occupancy],MATCH(Table2[[#This Row],[New Room Type \n(TMS)]],Table1[TMS],0)),\"\")","v":""},null,null,null,null,"",{"$f":"IF(Table2[[#This Row],['# extra beds that fit in the room2]]<>0,LEFT(Table2[[#This Row],[New Room Type \n(TMS)]],6),\"\")","v":""},null,{"$f":"IF(Table2[[#This Row],['# extra beds that fit in the room]]<>Table2[[#This Row],['# extra beds that fit in the room2]],\"yes\",\"No\")","v":"No"}]
[null,{"$f":"IF(LEN(C637)>0,'1) Hotel information'!$C$4,\"\")","v":""},null,null,null,{"$f":"IFERROR(INDEX(Table1[Room description],MATCH('2) Room configuration'!D637,Table1[TMS],0)),\"\")","v":""},{"$f":"IFERROR(INDEX(Table1[Bedding],MATCH('2) Room configuration'!D637,Table1[TMS],0)),\"\")","v":""},null,null,{"$f":"IFERROR(INDEX(Table1[Room description],MATCH('2) Room configuration'!I637,Table1[TMS],0)),\"\")","v":""},{"$f":"IFERROR(INDEX(Table1[Bedding],MATCH('2) Room configuration'!I637,Table1[TMS],0)),\"\")","v":""},{"$f":"IFERROR(INDEX(Table1[Normal occupancy],MATCH(Table2[[#This Row],[New Room Type \n(TMS)]],Table1[TMS],0)),\"\")","v":""},null,null,null,null,"",{"$f":"IF(Table2[[#This Row],['# extra beds that fit in the room2]]<>0,LEFT(Table2[[#This Row],[New Room Type \n(TMS)]],6),\"\")","v":""},null,{"$f":"IF(Table2[[#This Row],['# extra beds that fit in the room]]<>Table2[[#This Row],['# extra beds that fit in the room2]],\"yes\",\"No\")","v":"No"}]
[null,{"$f":"IF(LEN(C638)>0,'1) Hotel information'!$C$4,\"\")","v":""},null,null,null,{"$f":"IFERROR(INDEX(Table1[Room description],MATCH('2) Room configuration'!D638,Table1[TMS],0)),\"\")","v":""},{"$f":"IFERROR(INDEX(Table1[Bedding],MATCH('2) Room configuration'!D638,Table1[TMS],0)),\"\")","v":""},null,null,{"$f":"IFERROR(INDEX(Table1[Room description],MATCH('2) Room configuration'!I638,Table1[TMS],0)),\"\")","v":""},{"$f":"IFERROR(INDEX(Table1[Bedding],MATCH('2) Room configuration'!I638,Table1[TMS],0)),\"\")","v":""},{"$f":"IFERROR(INDEX(Table1[Normal occupancy],MATCH(Table2[[#This Row],[New Room Type \n(TMS)]],Table1[TMS],0)),\"\")","v":""},null,null,null,null,"",{"$f":"IF(Table2[[#This Row],['# extra beds that fit in the room2]]<>0,LEFT(Table2[[#This Row],[New Room Type \n(TMS)]],6),\"\")","v":""},null,{"$f":"IF(Table2[[#This Row],['# extra beds that fit in the room]]<>Table2[[#This Row],['# extra beds that fit in the room2]],\"yes\",\"No\")","v":"No"}]
[null,{"$f":"IF(LEN(C639)>0,'1) Hotel information'!$C$4,\"\")","v":""},null,null,null,{"$f":"IFERROR(INDEX(Table1[Room description],MATCH('2) Room configuration'!D639,Table1[TMS],0)),\"\")","v":""},{"$f":"IFERROR(INDEX(Table1[Bedding],MATCH('2) Room configuration'!D639,Table1[TMS],0)),\"\")","v":""},null,null,{"$f":"IFERROR(INDEX(Table1[Room description],MATCH('2) Room configuration'!I639,Table1[TMS],0)),\"\")","v":""},{"$f":"IFERROR(INDEX(Table1[Bedding],MATCH('2) Room configuration'!I639,Table1[TMS],0)),\"\")","v":""},{"$f":"IFERROR(INDEX(Table1[Normal occupancy],MATCH(Table2[[#This Row],[New Room Type \n(TMS)]],Table1[TMS],0)),\"\")","v":""},null,null,null,null,"",{"$f":"IF(Table2[[#This Row],['# extra beds that fit in the room2]]<>0,LEFT(Table2[[#This Row],[New Room Type \n(TMS)]],6),\"\")","v":""},null,{"$f":"IF(Table2[[#This Row],['# extra beds that fit in the room]]<>Table2[[#This Row],['# extra beds that fit in the room2]],\"yes\",\"No\")","v":"No"}]
[null,{"$f":"IF(LEN(C640)>0,'1) Hotel information'!$C$4,\"\")","v":""},null,null,null,{"$f":"IFERROR(INDEX(Table1[Room description],MATCH('2) Room configuration'!D640,Table1[TMS],0)),\"\")","v":""},{"$f":"IFERROR(INDEX(Table1[Bedding],MATCH('2) Room configuration'!D640,Table1[TMS],0)),\"\")","v":""},null,null,{"$f":"IFERROR(INDEX(Table1[Room description],MATCH('2) Room configuration'!I640,Table1[TMS],0)),\"\")","v":""},{"$f":"IFERROR(INDEX(Table1[Bedding],MATCH('2) Room configuration'!I640,Table1[TMS],0)),\"\")","v":""},{"$f":"IFERROR(INDEX(Table1[Normal occupancy],MATCH(Table2[[#This Row],[New Room Type \n(TMS)]],Table1[TMS],0)),\"\")","v":""},null,null,null,null,"",{"$f":"IF(Table2[[#This Row],['# extra beds that fit in the room2]]<>0,LEFT(Table2[[#This Row],[New Room Type \n(TMS)]],6),\"\")","v":""},null,{"$f":"IF(Table2[[#This Row],['# extra beds that fit in the room]]<>Table2[[#This Row],['# extra beds that fit in the room2]],\"yes\",\"No\")","v":"No"}]
[null,{"$f":"IF(LEN(C641)>0,'1) Hotel information'!$C$4,\"\")","v":""},null,null,null,{"$f":"IFERROR(INDEX(Table1[Room description],MATCH('2) Room configuration'!D641,Table1[TMS],0)),\"\")","v":""},{"$f":"IFERROR(INDEX(Table1[Bedding],MATCH('2) Room configuration'!D641,Table1[TMS],0)),\"\")","v":""},null,null,{"$f":"IFERROR(INDEX(Table1[Room description],MATCH('2) Room configuration'!I641,Table1[TMS],0)),\"\")","v":""},{"$f":"IFERROR(INDEX(Table1[Bedding],MATCH('2) Room configuration'!I641,Table1[TMS],0)),\"\")","v":""},{"$f":"IFERROR(INDEX(Table1[Normal occupancy],MATCH(Table2[[#This Row],[New Room Type \n(TMS)]],Table1[TMS],0)),\"\")","v":""},null,null,null,null,"",{"$f":"IF(Table2[[#This Row],['# extra beds that fit in the room2]]<>0,LEFT(Table2[[#This Row],[New Room Type \n(TMS)]],6),\"\")","v":""},null,{"$f":"IF(Table2[[#This Row],['# extra beds that fit in the room]]<>Table2[[#This Row],['# extra beds that fit in the room2]],\"yes\",\"No\")","v":"No"}]
[null,{"$f":"IF(LEN(C642)>0,'1) Hotel information'!$C$4,\"\")","v":""},null,null,null,{"$f":"IFERROR(INDEX(Table1[Room description],MATCH('2) Room configuration'!D642,Table1[TMS],0)),\"\")","v":""},{"$f":"IFERROR(INDEX(Table1[Bedding],MATCH('2) Room configuration'!D642,Table1[TMS],0)),\"\")","v":""},null,null,{"$f":"IFERROR(INDEX(Table1[Room description],MATCH('2) Room configuration'!I642,Table1[TMS],0)),\"\")","v":""},{"$f":"IFERROR(INDEX(Table1[Bedding],MATCH('2) Room configuration'!I642,Table1[TMS],0)),\"\")","v":""},{"$f":"IFERROR(INDEX(Table1[Normal occupancy],MATCH(Table2[[#This Row],[New Room Type \n(TMS)]],Table1[TMS],0)),\"\")","v":""},null,null,null,null,"",{"$f":"IF(Table2[[#This Row],['# extra beds that fit in the room2]]<>0,LEFT(Table2[[#This Row],[New Room Type \n(TMS)]],6),\"\")","v":""},null,{"$f":"IF(Table2[[#This Row],['# extra beds that fit in the room]]<>Table2[[#This Row],['# extra beds that fit in the room2]],\"yes\",\"No\")","v":"No"}]
[null,{"$f":"IF(LEN(C643)>0,'1) Hotel information'!$C$4,\"\")","v":""},null,null,null,{"$f":"IFERROR(INDEX(Table1[Room description],MATCH('2) Room configuration'!D643,Table1[TMS],0)),\"\")","v":""},{"$f":"IFERROR(INDEX(Table1[Bedding],MATCH('2) Room configuration'!D643,Table1[TMS],0)),\"\")","v":""},null,null,{"$f":"IFERROR(INDEX(Table1[Room description],MATCH('2) Room configuration'!I643,Table1[TMS],0)),\"\")","v":""},{"$f":"IFERROR(INDEX(Table1[Bedding],MATCH('2) Room configuration'!I643,Table1[TMS],0)),\"\")","v":""},{"$f":"IFERROR(INDEX(Table1[Normal occupancy],MATCH(Table2[[#This Row],[New Room Type \n(TMS)]],Table1[TMS],0)),\"\")","v":""},null,null,null,null,"",{"$f":"IF(Table2[[#This Row],['# extra beds that fit in the room2]]<>0,LEFT(Table2[[#This Row],[New Room Type \n(TMS)]],6),\"\")","v":""},null,{"$f":"IF(Table2[[#This Row],['# extra beds that fit in the room]]<>Table2[[#This Row],['# extra beds that fit in the room2]],\"yes\",\"No\")","v":"No"}]
[null,{"$f":"IF(LEN(C644)>0,'1) Hotel information'!$C$4,\"\")","v":""},null,null,null,{"$f":"IFERROR(INDEX(Table1[Room description],MATCH('2) Room configuration'!D644,Table1[TMS],0)),\"\")","v":""},{"$f":"IFERROR(INDEX(Table1[Bedding],MATCH('2) Room configuration'!D644,Table1[TMS],0)),\"\")","v":""},null,null,{"$f":"IFERROR(INDEX(Table1[Room description],MATCH('2) Room configuration'!I644,Table1[TMS],0)),\"\")","v":""},{"$f":"IFERROR(INDEX(Table1[Bedding],MATCH('2) Room configuration'!I644,Table1[TMS],0)),\"\")","v":""},{"$f":"IFERROR(INDEX(Table1[Normal occupancy],MATCH(Table2[[#This Row],[New Room Type \n(TMS)]],Table1[TMS],0)),\"\")","v":""},null,null,null,null,"",{"$f":"IF(Table2[[#This Row],['# extra beds that fit in the room2]]<>0,LEFT(Table2[[#This Row],[New Room Type \n(TMS)]],6),\"\")","v":""},null,{"$f":"IF(Table2[[#This Row],['# extra beds that fit in the room]]<>Table2[[#This Row],['# extra beds that fit in the room2]],\"yes\",\"No\")","v":"No"}]
[null,{"$f":"IF(LEN(C645)>0,'1) Hotel information'!$C$4,\"\")","v":""},null,null,null,{"$f":"IFERROR(INDEX(Table1[Room description],MATCH('2) Room configuration'!D645,Table1[TMS],0)),\"\")","v":""},{"$f":"IFERROR(INDEX(Table1[Bedding],MATCH('2) Room configuration'!D645,Table1[TMS],0)),\"\")","v":""},null,null,{"$f":"IFERROR(INDEX(Table1[Room description],MATCH('2) Room configuration'!I645,Table1[TMS],0)),\"\")","v":""},{"$f":"IFERROR(INDEX(Table1[Bedding],MATCH('2) Room configuration'!I645,Table1[TMS],0)),\"\")","v":""},{"$f":"IFERROR(INDEX(Table1[Normal occupancy],MATCH(Table2[[#This Row],[New Room Type \n(TMS)]],Table1[TMS],0)),\"\")","v":""},null,null,null,null,"",{"$f":"IF(Table2[[#This Row],['# extra beds that fit in the room2]]<>0,LEFT(Table2[[#This Row],[New Room Type \n(TMS)]],6),\"\")","v":""},null,{"$f":"IF(Table2[[#This Row],['# extra beds that fit in the room]]<>Table2[[#This Row],['# extra beds that fit in the room2]],\"yes\",\"No\")","v":"No"}]
[null,{"$f":"IF(LEN(C646)>0,'1) Hotel information'!$C$4,\"\")","v":""},null,null,null,{"$f":"IFERROR(INDEX(Table1[Room description],MATCH('2) Room configuration'!D646,Table1[TMS],0)),\"\")","v":""},{"$f":"IFERROR(INDEX(Table1[Bedding],MATCH('2) Room configuration'!D646,Table1[TMS],0)),\"\")","v":""},null,null,{"$f":"IFERROR(INDEX(Table1[Room description],MATCH('2) Room configuration'!I646,Table1[TMS],0)),\"\")","v":""},{"$f":"IFERROR(INDEX(Table1[Bedding],MATCH('2) Room configuration'!I646,Table1[TMS],0)),\"\")","v":""},{"$f":"IFERROR(INDEX(Table1[Normal occupancy],MATCH(Table2[[#This Row],[New Room Type \n(TMS)]],Table1[TMS],0)),\"\")","v":""},null,null,null,null,"",{"$f":"IF(Table2[[#This Row],['# extra beds that fit in the room2]]<>0,LEFT(Table2[[#This Row],[New Room Type \n(TMS)]],6),\"\")","v":""},null,{"$f":"IF(Table2[[#This Row],['# extra beds that fit in the room]]<>Table2[[#This Row],['# extra beds that fit in the room2]],\"yes\",\"No\")","v":"No"}]
[null,{"$f":"IF(LEN(C647)>0,'1) Hotel information'!$C$4,\"\")","v":""},null,null,null,{"$f":"IFERROR(INDEX(Table1[Room description],MATCH('2) Room configuration'!D647,Table1[TMS],0)),\"\")","v":""},{"$f":"IFERROR(INDEX(Table1[Bedding],MATCH('2) Room configuration'!D647,Table1[TMS],0)),\"\")","v":""},null,null,{"$f":"IFERROR(INDEX(Table1[Room description],MATCH('2) Room configuration'!I647,Table1[TMS],0)),\"\")","v":""},{"$f":"IFERROR(INDEX(Table1[Bedding],MATCH('2) Room configuration'!I647,Table1[TMS],0)),\"\")","v":""},{"$f":"IFERROR(INDEX(Table1[Normal occupancy],MATCH(Table2[[#This Row],[New Room Type \n(TMS)]],Table1[TMS],0)),\"\")","v":""},null,null,null,null,"",{"$f":"IF(Table2[[#This Row],['# extra beds that fit in the room2]]<>0,LEFT(Table2[[#This Row],[New Room Type \n(TMS)]],6),\"\")","v":""},null,{"$f":"IF(Table2[[#This Row],['# extra beds that fit in the room]]<>Table2[[#This Row],['# extra beds that fit in the room2]],\"yes\",\"No\")","v":"No"}]
[null,{"$f":"IF(LEN(C648)>0,'1) Hotel information'!$C$4,\"\")","v":""},null,null,null,{"$f":"IFERROR(INDEX(Table1[Room description],MATCH('2) Room configuration'!D648,Table1[TMS],0)),\"\")","v":""},{"$f":"IFERROR(INDEX(Table1[Bedding],MATCH('2) Room configuration'!D648,Table1[TMS],0)),\"\")","v":""},null,null,{"$f":"IFERROR(INDEX(Table1[Room description],MATCH('2) Room configuration'!I648,Table1[TMS],0)),\"\")","v":""},{"$f":"IFERROR(INDEX(Table1[Bedding],MATCH('2) Room configuration'!I648,Table1[TMS],0)),\"\")","v":""},{"$f":"IFERROR(INDEX(Table1[Normal occupancy],MATCH(Table2[[#This Row],[New Room Type \n(TMS)]],Table1[TMS],0)),\"\")","v":""},null,null,null,null,"",{"$f":"IF(Table2[[#This Row],['# extra beds that fit in the room2]]<>0,LEFT(Table2[[#This Row],[New Room Type \n(TMS)]],6),\"\")","v":""},null,{"$f":"IF(Table2[[#This Row],['# extra beds that fit in the room]]<>Table2[[#This Row],['# extra beds that fit in the room2]],\"yes\",\"No\")","v":"No"}]
[null,{"$f":"IF(LEN(C649)>0,'1) Hotel information'!$C$4,\"\")","v":""},null,null,null,{"$f":"IFERROR(INDEX(Table1[Room description],MATCH('2) Room configuration'!D649,Table1[TMS],0)),\"\")","v":""},{"$f":"IFERROR(INDEX(Table1[Bedding],MATCH('2) Room configuration'!D649,Table1[TMS],0)),\"\")","v":""},null,null,{"$f":"IFERROR(INDEX(Table1[Room description],MATCH('2) Room configuration'!I649,Table1[TMS],0)),\"\")","v":""},{"$f":"IFERROR(INDEX(Table1[Bedding],MATCH('2) Room configuration'!I649,Table1[TMS],0)),\"\")","v":""},{"$f":"IFERROR(INDEX(Table1[Normal occupancy],MATCH(Table2[[#This Row],[New Room Type \n(TMS)]],Table1[TMS],0)),\"\")","v":""},null,null,null,null,"",{"$f":"IF(Table2[[#This Row],['# extra beds that fit in the room2]]<>0,LEFT(Table2[[#This Row],[New Room Type \n(TMS)]],6),\"\")","v":""},null,{"$f":"IF(Table2[[#This Row],['# extra beds that fit in the room]]<>Table2[[#This Row],['# extra beds that fit in the room2]],\"yes\",\"No\")","v":"No"}]
[null,{"$f":"IF(LEN(C650)>0,'1) Hotel information'!$C$4,\"\")","v":""},null,null,null,{"$f":"IFERROR(INDEX(Table1[Room description],MATCH('2) Room configuration'!D650,Table1[TMS],0)),\"\")","v":""},{"$f":"IFERROR(INDEX(Table1[Bedding],MATCH('2) Room configuration'!D650,Table1[TMS],0)),\"\")","v":""},null,null,{"$f":"IFERROR(INDEX(Table1[Room description],MATCH('2) Room configuration'!I650,Table1[TMS],0)),\"\")","v":""},{"$f":"IFERROR(INDEX(Table1[Bedding],MATCH('2) Room configuration'!I650,Table1[TMS],0)),\"\")","v":""},{"$f":"IFERROR(INDEX(Table1[Normal occupancy],MATCH(Table2[[#This Row],[New Room Type \n(TMS)]],Table1[TMS],0)),\"\")","v":""},null,null,null,null,"",{"$f":"IF(Table2[[#This Row],['# extra beds that fit in the room2]]<>0,LEFT(Table2[[#This Row],[New Room Type \n(TMS)]],6),\"\")","v":""},null,{"$f":"IF(Table2[[#This Row],['# extra beds that fit in the room]]<>Table2[[#This Row],['# extra beds that fit in the room2]],\"yes\",\"No\")","v":"No"}]
[null,{"$f":"IF(LEN(C651)>0,'1) Hotel information'!$C$4,\"\")","v":""},null,null,null,{"$f":"IFERROR(INDEX(Table1[Room description],MATCH('2) Room configuration'!D651,Table1[TMS],0)),\"\")","v":""},{"$f":"IFERROR(INDEX(Table1[Bedding],MATCH('2) Room configuration'!D651,Table1[TMS],0)),\"\")","v":""},null,null,{"$f":"IFERROR(INDEX(Table1[Room description],MATCH('2) Room configuration'!I651,Table1[TMS],0)),\"\")","v":""},{"$f":"IFERROR(INDEX(Table1[Bedding],MATCH('2) Room configuration'!I651,Table1[TMS],0)),\"\")","v":""},{"$f":"IFERROR(INDEX(Table1[Normal occupancy],MATCH(Table2[[#This Row],[New Room Type \n(TMS)]],Table1[TMS],0)),\"\")","v":""},null,null,null,null,"",{"$f":"IF(Table2[[#This Row],['# extra beds that fit in the room2]]<>0,LEFT(Table2[[#This Row],[New Room Type \n(TMS)]],6),\"\")","v":""},null,{"$f":"IF(Table2[[#This Row],['# extra beds that fit in the room]]<>Table2[[#This Row],['# extra beds that fit in the room2]],\"yes\",\"No\")","v":"No"}]
[null,{"$f":"IF(LEN(C652)>0,'1) Hotel information'!$C$4,\"\")","v":""},null,null,null,{"$f":"IFERROR(INDEX(Table1[Room description],MATCH('2) Room configuration'!D652,Table1[TMS],0)),\"\")","v":""},{"$f":"IFERROR(INDEX(Table1[Bedding],MATCH('2) Room configuration'!D652,Table1[TMS],0)),\"\")","v":""},null,null,{"$f":"IFERROR(INDEX(Table1[Room description],MATCH('2) Room configuration'!I652,Table1[TMS],0)),\"\")","v":""},{"$f":"IFERROR(INDEX(Table1[Bedding],MATCH('2) Room configuration'!I652,Table1[TMS],0)),\"\")","v":""},{"$f":"IFERROR(INDEX(Table1[Normal occupancy],MATCH(Table2[[#This Row],[New Room Type \n(TMS)]],Table1[TMS],0)),\"\")","v":""},null,null,null,null,{"$f":"IF(LEN(C652)>0,IF(D652=I652,\"No\",\"Yes\"),\"\")","v":""},{"$f":"IF(Table2[[#This Row],['# extra beds that fit in the room2]]<>0,LEFT(Table2[[#This Row],[New Room Type \n(TMS)]],6),\"\")","v":""},null,{"$f":"IF(Table2[[#This Row],['# extra beds that fit in the room]]<>Table2[[#This Row],['# extra beds that fit in the room2]],\"yes\",\"No\")","v":"No"}]
[null,{"$f":"IF(LEN(C653)>0,'1) Hotel information'!$C$4,\"\")","v":""},null,null,null,{"$f":"IFERROR(INDEX(Table1[Room description],MATCH('2) Room configuration'!D653,Table1[TMS],0)),\"\")","v":""},{"$f":"IFERROR(INDEX(Table1[Bedding],MATCH('2) Room configuration'!D653,Table1[TMS],0)),\"\")","v":""},null,null,{"$f":"IFERROR(INDEX(Table1[Room description],MATCH('2) Room configuration'!I653,Table1[TMS],0)),\"\")","v":""},{"$f":"IFERROR(INDEX(Table1[Bedding],MATCH('2) Room configuration'!I653,Table1[TMS],0)),\"\")","v":""},{"$f":"IFERROR(INDEX(Table1[Normal occupancy],MATCH(Table2[[#This Row],[New Room Type \n(TMS)]],Table1[TMS],0)),\"\")","v":""},null,null,null,null,"",{"$f":"IF(Table2[[#This Row],['# extra beds that fit in the room2]]<>0,LEFT(Table2[[#This Row],[New Room Type \n(TMS)]],6),\"\")","v":""},null,{"$f":"IF(Table2[[#This Row],['# extra beds that fit in the room]]<>Table2[[#This Row],['# extra beds that fit in the room2]],\"yes\",\"No\")","v":"No"}]
[null,{"$f":"IF(LEN(C654)>0,'1) Hotel information'!$C$4,\"\")","v":""},null,null,null,{"$f":"IFERROR(INDEX(Table1[Room description],MATCH('2) Room configuration'!D654,Table1[TMS],0)),\"\")","v":""},{"$f":"IFERROR(INDEX(Table1[Bedding],MATCH('2) Room configuration'!D654,Table1[TMS],0)),\"\")","v":""},null,null,{"$f":"IFERROR(INDEX(Table1[Room description],MATCH('2) Room configuration'!I654,Table1[TMS],0)),\"\")","v":""},{"$f":"IFERROR(INDEX(Table1[Bedding],MATCH('2) Room configuration'!I654,Table1[TMS],0)),\"\")","v":""},{"$f":"IFERROR(INDEX(Table1[Normal occupancy],MATCH(Table2[[#This Row],[New Room Type \n(TMS)]],Table1[TMS],0)),\"\")","v":""},null,null,null,null,"",{"$f":"IF(Table2[[#This Row],['# extra beds that fit in the room2]]<>0,LEFT(Table2[[#This Row],[New Room Type \n(TMS)]],6),\"\")","v":""},null,{"$f":"IF(Table2[[#This Row],['# extra beds that fit in the room]]<>Table2[[#This Row],['# extra beds that fit in the room2]],\"yes\",\"No\")","v":"No"}]
[null,{"$f":"IF(LEN(C655)>0,'1) Hotel information'!$C$4,\"\")","v":""},null,null,null,{"$f":"IFERROR(INDEX(Table1[Room description],MATCH('2) Room configuration'!D655,Table1[TMS],0)),\"\")","v":""},{"$f":"IFERROR(INDEX(Table1[Bedding],MATCH('2) Room configuration'!D655,Table1[TMS],0)),\"\")","v":""},null,null,{"$f":"IFERROR(INDEX(Table1[Room description],MATCH('2) Room configuration'!I655,Table1[TMS],0)),\"\")","v":""},{"$f":"IFERROR(INDEX(Table1[Bedding],MATCH('2) Room configuration'!I655,Table1[TMS],0)),\"\")","v":""},{"$f":"IFERROR(INDEX(Table1[Normal occupancy],MATCH(Table2[[#This Row],[New Room Type \n(TMS)]],Table1[TMS],0)),\"\")","v":""},null,null,null,null,"",{"$f":"IF(Table2[[#This Row],['# extra beds that fit in the room2]]<>0,LEFT(Table2[[#This Row],[New Room Type \n(TMS)]],6),\"\")","v":""},null,{"$f":"IF(Table2[[#This Row],['# extra beds that fit in the room]]<>Table2[[#This Row],['# extra beds that fit in the room2]],\"yes\",\"No\")","v":"No"}]
[null,{"$f":"IF(LEN(C656)>0,'1) Hotel information'!$C$4,\"\")","v":""},null,null,null,{"$f":"IFERROR(INDEX(Table1[Room description],MATCH('2) Room configuration'!D656,Table1[TMS],0)),\"\")","v":""},{"$f":"IFERROR(INDEX(Table1[Bedding],MATCH('2) Room configuration'!D656,Table1[TMS],0)),\"\")","v":""},null,null,{"$f":"IFERROR(INDEX(Table1[Room description],MATCH('2) Room configuration'!I656,Table1[TMS],0)),\"\")","v":""},{"$f":"IFERROR(INDEX(Table1[Bedding],MATCH('2) Room configuration'!I656,Table1[TMS],0)),\"\")","v":""},{"$f":"IFERROR(INDEX(Table1[Normal occupancy],MATCH(Table2[[#This Row],[New Room Type \n(TMS)]],Table1[TMS],0)),\"\")","v":""},null,null,null,null,"",{"$f":"IF(Table2[[#This Row],['# extra beds that fit in the room2]]<>0,LEFT(Table2[[#This Row],[New Room Type \n(TMS)]],6),\"\")","v":""},null,{"$f":"IF(Table2[[#This Row],['# extra beds that fit in the room]]<>Table2[[#This Row],['# extra beds that fit in the room2]],\"yes\",\"No\")","v":"No"}]
[null,{"$f":"IF(LEN(C657)>0,'1) Hotel information'!$C$4,\"\")","v":""},null,null,null,{"$f":"IFERROR(INDEX(Table1[Room description],MATCH('2) Room configuration'!D657,Table1[TMS],0)),\"\")","v":""},{"$f":"IFERROR(INDEX(Table1[Bedding],MATCH('2) Room configuration'!D657,Table1[TMS],0)),\"\")","v":""},null,null,{"$f":"IFERROR(INDEX(Table1[Room description],MATCH('2) Room configuration'!I657,Table1[TMS],0)),\"\")","v":""},{"$f":"IFERROR(INDEX(Table1[Bedding],MATCH('2) Room configuration'!I657,Table1[TMS],0)),\"\")","v":""},{"$f":"IFERROR(INDEX(Table1[Normal occupancy],MATCH(Table2[[#This Row],[New Room Type \n(TMS)]],Table1[TMS],0)),\"\")","v":""},null,null,null,null,"",{"$f":"IF(Table2[[#This Row],['# extra beds that fit in the room2]]<>0,LEFT(Table2[[#This Row],[New Room Type \n(TMS)]],6),\"\")","v":""},null,{"$f":"IF(Table2[[#This Row],['# extra beds that fit in the room]]<>Table2[[#This Row],['# extra beds that fit in the room2]],\"yes\",\"No\")","v":"No"}]
[null,{"$f":"IF(LEN(C658)>0,'1) Hotel information'!$C$4,\"\")","v":""},null,null,null,{"$f":"IFERROR(INDEX(Table1[Room description],MATCH('2) Room configuration'!D658,Table1[TMS],0)),\"\")","v":""},{"$f":"IFERROR(INDEX(Table1[Bedding],MATCH('2) Room configuration'!D658,Table1[TMS],0)),\"\")","v":""},null,null,{"$f":"IFERROR(INDEX(Table1[Room description],MATCH('2) Room configuration'!I658,Table1[TMS],0)),\"\")","v":""},{"$f":"IFERROR(INDEX(Table1[Bedding],MATCH('2) Room configuration'!I658,Table1[TMS],0)),\"\")","v":""},{"$f":"IFERROR(INDEX(Table1[Normal occupancy],MATCH(Table2[[#This Row],[New Room Type \n(TMS)]],Table1[TMS],0)),\"\")","v":""},null,null,null,null,"",{"$f":"IF(Table2[[#This Row],['# extra beds that fit in the room2]]<>0,LEFT(Table2[[#This Row],[New Room Type \n(TMS)]],6),\"\")","v":""},null,{"$f":"IF(Table2[[#This Row],['# extra beds that fit in the room]]<>Table2[[#This Row],['# extra beds that fit in the room2]],\"yes\",\"No\")","v":"No"}]
[null,{"$f":"IF(LEN(C659)>0,'1) Hotel information'!$C$4,\"\")","v":""},null,null,null,{"$f":"IFERROR(INDEX(Table1[Room description],MATCH('2) Room configuration'!D659,Table1[TMS],0)),\"\")","v":""},{"$f":"IFERROR(INDEX(Table1[Bedding],MATCH('2) Room configuration'!D659,Table1[TMS],0)),\"\")","v":""},null,null,{"$f":"IFERROR(INDEX(Table1[Room description],MATCH('2) Room configuration'!I659,Table1[TMS],0)),\"\")","v":""},{"$f":"IFERROR(INDEX(Table1[Bedding],MATCH('2) Room configuration'!I659,Table1[TMS],0)),\"\")","v":""},{"$f":"IFERROR(INDEX(Table1[Normal occupancy],MATCH(Table2[[#This Row],[New Room Type \n(TMS)]],Table1[TMS],0)),\"\")","v":""},null,null,null,null,"",{"$f":"IF(Table2[[#This Row],['# extra beds that fit in the room2]]<>0,LEFT(Table2[[#This Row],[New Room Type \n(TMS)]],6),\"\")","v":""},null,{"$f":"IF(Table2[[#This Row],['# extra beds that fit in the room]]<>Table2[[#This Row],['# extra beds that fit in the room2]],\"yes\",\"No\")","v":"No"}]
[null,{"$f":"IF(LEN(C660)>0,'1) Hotel information'!$C$4,\"\")","v":""},null,null,null,{"$f":"IFERROR(INDEX(Table1[Room description],MATCH('2) Room configuration'!D660,Table1[TMS],0)),\"\")","v":""},{"$f":"IFERROR(INDEX(Table1[Bedding],MATCH('2) Room configuration'!D660,Table1[TMS],0)),\"\")","v":""},null,null,{"$f":"IFERROR(INDEX(Table1[Room description],MATCH('2) Room configuration'!I660,Table1[TMS],0)),\"\")","v":""},{"$f":"IFERROR(INDEX(Table1[Bedding],MATCH('2) Room configuration'!I660,Table1[TMS],0)),\"\")","v":""},{"$f":"IFERROR(INDEX(Table1[Normal occupancy],MATCH(Table2[[#This Row],[New Room Type \n(TMS)]],Table1[TMS],0)),\"\")","v":""},null,null,null,null,"",{"$f":"IF(Table2[[#This Row],['# extra beds that fit in the room2]]<>0,LEFT(Table2[[#This Row],[New Room Type \n(TMS)]],6),\"\")","v":""},null,{"$f":"IF(Table2[[#This Row],['# extra beds that fit in the room]]<>Table2[[#This Row],['# extra beds that fit in the room2]],\"yes\",\"No\")","v":"No"}]
[null,{"$f":"IF(LEN(C661)>0,'1) Hotel information'!$C$4,\"\")","v":""},null,null,null,{"$f":"IFERROR(INDEX(Table1[Room description],MATCH('2) Room configuration'!D661,Table1[TMS],0)),\"\")","v":""},{"$f":"IFERROR(INDEX(Table1[Bedding],MATCH('2) Room configuration'!D661,Table1[TMS],0)),\"\")","v":""},null,null,{"$f":"IFERROR(INDEX(Table1[Room description],MATCH('2) Room configuration'!I661,Table1[TMS],0)),\"\")","v":""},{"$f":"IFERROR(INDEX(Table1[Bedding],MATCH('2) Room configuration'!I661,Table1[TMS],0)),\"\")","v":""},{"$f":"IFERROR(INDEX(Table1[Normal occupancy],MATCH(Table2[[#This Row],[New Room Type \n(TMS)]],Table1[TMS],0)),\"\")","v":""},null,null,null,null,"",{"$f":"IF(Table2[[#This Row],['# extra beds that fit in the room2]]<>0,LEFT(Table2[[#This Row],[New Room Type \n(TMS)]],6),\"\")","v":""},null,{"$f":"IF(Table2[[#This Row],['# extra beds that fit in the room]]<>Table2[[#This Row],['# extra beds that fit in the room2]],\"yes\",\"No\")","v":"No"}]
[null,{"$f":"IF(LEN(C662)>0,'1) Hotel information'!$C$4,\"\")","v":""},null,null,null,{"$f":"IFERROR(INDEX(Table1[Room description],MATCH('2) Room configuration'!D662,Table1[TMS],0)),\"\")","v":""},{"$f":"IFERROR(INDEX(Table1[Bedding],MATCH('2) Room configuration'!D662,Table1[TMS],0)),\"\")","v":""},null,null,{"$f":"IFERROR(INDEX(Table1[Room description],MATCH('2) Room configuration'!I662,Table1[TMS],0)),\"\")","v":""},{"$f":"IFERROR(INDEX(Table1[Bedding],MATCH('2) Room configuration'!I662,Table1[TMS],0)),\"\")","v":""},{"$f":"IFERROR(INDEX(Table1[Normal occupancy],MATCH(Table2[[#This Row],[New Room Type \n(TMS)]],Table1[TMS],0)),\"\")","v":""},null,null,null,null,"",{"$f":"IF(Table2[[#This Row],['# extra beds that fit in the room2]]<>0,LEFT(Table2[[#This Row],[New Room Type \n(TMS)]],6),\"\")","v":""},null,{"$f":"IF(Table2[[#This Row],['# extra beds that fit in the room]]<>Table2[[#This Row],['# extra beds that fit in the room2]],\"yes\",\"No\")","v":"No"}]
[null,{"$f":"IF(LEN(C663)>0,'1) Hotel information'!$C$4,\"\")","v":""},null,null,null,{"$f":"IFERROR(INDEX(Table1[Room description],MATCH('2) Room configuration'!D663,Table1[TMS],0)),\"\")","v":""},{"$f":"IFERROR(INDEX(Table1[Bedding],MATCH('2) Room configuration'!D663,Table1[TMS],0)),\"\")","v":""},null,null,{"$f":"IFERROR(INDEX(Table1[Room description],MATCH('2) Room configuration'!I663,Table1[TMS],0)),\"\")","v":""},{"$f":"IFERROR(INDEX(Table1[Bedding],MATCH('2) Room configuration'!I663,Table1[TMS],0)),\"\")","v":""},{"$f":"IFERROR(INDEX(Table1[Normal occupancy],MATCH(Table2[[#This Row],[New Room Type \n(TMS)]],Table1[TMS],0)),\"\")","v":""},null,null,null,null,"",{"$f":"IF(Table2[[#This Row],['# extra beds that fit in the room2]]<>0,LEFT(Table2[[#This Row],[New Room Type \n(TMS)]],6),\"\")","v":""},null,{"$f":"IF(Table2[[#This Row],['# extra beds that fit in the room]]<>Table2[[#This Row],['# extra beds that fit in the room2]],\"yes\",\"No\")","v":"No"}]
[null,{"$f":"IF(LEN(C664)>0,'1) Hotel information'!$C$4,\"\")","v":""},null,null,null,{"$f":"IFERROR(INDEX(Table1[Room description],MATCH('2) Room configuration'!D664,Table1[TMS],0)),\"\")","v":""},{"$f":"IFERROR(INDEX(Table1[Bedding],MATCH('2) Room configuration'!D664,Table1[TMS],0)),\"\")","v":""},null,null,{"$f":"IFERROR(INDEX(Table1[Room description],MATCH('2) Room configuration'!I664,Table1[TMS],0)),\"\")","v":""},{"$f":"IFERROR(INDEX(Table1[Bedding],MATCH('2) Room configuration'!I664,Table1[TMS],0)),\"\")","v":""},{"$f":"IFERROR(INDEX(Table1[Normal occupancy],MATCH(Table2[[#This Row],[New Room Type \n(TMS)]],Table1[TMS],0)),\"\")","v":""},null,null,null,null,"",{"$f":"IF(Table2[[#This Row],['# extra beds that fit in the room2]]<>0,LEFT(Table2[[#This Row],[New Room Type \n(TMS)]],6),\"\")","v":""},null,{"$f":"IF(Table2[[#This Row],['# extra beds that fit in the room]]<>Table2[[#This Row],['# extra beds that fit in the room2]],\"yes\",\"No\")","v":"No"}]
[null,{"$f":"IF(LEN(C665)>0,'1) Hotel information'!$C$4,\"\")","v":""},null,null,null,{"$f":"IFERROR(INDEX(Table1[Room description],MATCH('2) Room configuration'!D665,Table1[TMS],0)),\"\")","v":""},{"$f":"IFERROR(INDEX(Table1[Bedding],MATCH('2) Room configuration'!D665,Table1[TMS],0)),\"\")","v":""},null,null,{"$f":"IFERROR(INDEX(Table1[Room description],MATCH('2) Room configuration'!I665,Table1[TMS],0)),\"\")","v":""},{"$f":"IFERROR(INDEX(Table1[Bedding],MATCH('2) Room configuration'!I665,Table1[TMS],0)),\"\")","v":""},{"$f":"IFERROR(INDEX(Table1[Normal occupancy],MATCH(Table2[[#This Row],[New Room Type \n(TMS)]],Table1[TMS],0)),\"\")","v":""},null,null,null,null,"",{"$f":"IF(Table2[[#This Row],['# extra beds that fit in the room2]]<>0,LEFT(Table2[[#This Row],[New Room Type \n(TMS)]],6),\"\")","v":""},null,{"$f":"IF(Table2[[#This Row],['# extra beds that fit in the room]]<>Table2[[#This Row],['# extra beds that fit in the room2]],\"yes\",\"No\")","v":"No"}]
[null,{"$f":"IF(LEN(C666)>0,'1) Hotel information'!$C$4,\"\")","v":""},null,null,null,{"$f":"IFERROR(INDEX(Table1[Room description],MATCH('2) Room configuration'!D666,Table1[TMS],0)),\"\")","v":""},{"$f":"IFERROR(INDEX(Table1[Bedding],MATCH('2) Room configuration'!D666,Table1[TMS],0)),\"\")","v":""},null,null,{"$f":"IFERROR(INDEX(Table1[Room description],MATCH('2) Room configuration'!I666,Table1[TMS],0)),\"\")","v":""},{"$f":"IFERROR(INDEX(Table1[Bedding],MATCH('2) Room configuration'!I666,Table1[TMS],0)),\"\")","v":""},{"$f":"IFERROR(INDEX(Table1[Normal occupancy],MATCH(Table2[[#This Row],[New Room Type \n(TMS)]],Table1[TMS],0)),\"\")","v":""},null,null,null,null,"",{"$f":"IF(Table2[[#This Row],['# extra beds that fit in the room2]]<>0,LEFT(Table2[[#This Row],[New Room Type \n(TMS)]],6),\"\")","v":""},null,{"$f":"IF(Table2[[#This Row],['# extra beds that fit in the room]]<>Table2[[#This Row],['# extra beds that fit in the room2]],\"yes\",\"No\")","v":"No"}]
[null,{"$f":"IF(LEN(C667)>0,'1) Hotel information'!$C$4,\"\")","v":""},null,null,null,{"$f":"IFERROR(INDEX(Table1[Room description],MATCH('2) Room configuration'!D667,Table1[TMS],0)),\"\")","v":""},{"$f":"IFERROR(INDEX(Table1[Bedding],MATCH('2) Room configuration'!D667,Table1[TMS],0)),\"\")","v":""},null,null,{"$f":"IFERROR(INDEX(Table1[Room description],MATCH('2) Room configuration'!I667,Table1[TMS],0)),\"\")","v":""},{"$f":"IFERROR(INDEX(Table1[Bedding],MATCH('2) Room configuration'!I667,Table1[TMS],0)),\"\")","v":""},{"$f":"IFERROR(INDEX(Table1[Normal occupancy],MATCH(Table2[[#This Row],[New Room Type \n(TMS)]],Table1[TMS],0)),\"\")","v":""},null,null,null,null,"",{"$f":"IF(Table2[[#This Row],['# extra beds that fit in the room2]]<>0,LEFT(Table2[[#This Row],[New Room Type \n(TMS)]],6),\"\")","v":""},null,{"$f":"IF(Table2[[#This Row],['# extra beds that fit in the room]]<>Table2[[#This Row],['# extra beds that fit in the room2]],\"yes\",\"No\")","v":"No"}]
[null,{"$f":"IF(LEN(C668)>0,'1) Hotel information'!$C$4,\"\")","v":""},null,null,null,{"$f":"IFERROR(INDEX(Table1[Room description],MATCH('2) Room configuration'!D668,Table1[TMS],0)),\"\")","v":""},{"$f":"IFERROR(INDEX(Table1[Bedding],MATCH('2) Room configuration'!D668,Table1[TMS],0)),\"\")","v":""},null,null,{"$f":"IFERROR(INDEX(Table1[Room description],MATCH('2) Room configuration'!I668,Table1[TMS],0)),\"\")","v":""},{"$f":"IFERROR(INDEX(Table1[Bedding],MATCH('2) Room configuration'!I668,Table1[TMS],0)),\"\")","v":""},{"$f":"IFERROR(INDEX(Table1[Normal occupancy],MATCH(Table2[[#This Row],[New Room Type \n(TMS)]],Table1[TMS],0)),\"\")","v":""},null,null,null,null,"",{"$f":"IF(Table2[[#This Row],['# extra beds that fit in the room2]]<>0,LEFT(Table2[[#This Row],[New Room Type \n(TMS)]],6),\"\")","v":""},null,{"$f":"IF(Table2[[#This Row],['# extra beds that fit in the room]]<>Table2[[#This Row],['# extra beds that fit in the room2]],\"yes\",\"No\")","v":"No"}]
[null,{"$f":"IF(LEN(C669)>0,'1) Hotel information'!$C$4,\"\")","v":""},null,null,null,{"$f":"IFERROR(INDEX(Table1[Room description],MATCH('2) Room configuration'!D669,Table1[TMS],0)),\"\")","v":""},{"$f":"IFERROR(INDEX(Table1[Bedding],MATCH('2) Room configuration'!D669,Table1[TMS],0)),\"\")","v":""},null,null,{"$f":"IFERROR(INDEX(Table1[Room description],MATCH('2) Room configuration'!I669,Table1[TMS],0)),\"\")","v":""},{"$f":"IFERROR(INDEX(Table1[Bedding],MATCH('2) Room configuration'!I669,Table1[TMS],0)),\"\")","v":""},{"$f":"IFERROR(INDEX(Table1[Normal occupancy],MATCH(Table2[[#This Row],[New Room Type \n(TMS)]],Table1[TMS],0)),\"\")","v":""},null,null,null,null,"",{"$f":"IF(Table2[[#This Row],['# extra beds that fit in the room2]]<>0,LEFT(Table2[[#This Row],[New Room Type \n(TMS)]],6),\"\")","v":""},null,{"$f":"IF(Table2[[#This Row],['# extra beds that fit in the room]]<>Table2[[#This Row],['# extra beds that fit in the room2]],\"yes\",\"No\")","v":"No"}]
[null,{"$f":"IF(LEN(C670)>0,'1) Hotel information'!$C$4,\"\")","v":""},null,null,null,{"$f":"IFERROR(INDEX(Table1[Room description],MATCH('2) Room configuration'!D670,Table1[TMS],0)),\"\")","v":""},{"$f":"IFERROR(INDEX(Table1[Bedding],MATCH('2) Room configuration'!D670,Table1[TMS],0)),\"\")","v":""},null,null,{"$f":"IFERROR(INDEX(Table1[Room description],MATCH('2) Room configuration'!I670,Table1[TMS],0)),\"\")","v":""},{"$f":"IFERROR(INDEX(Table1[Bedding],MATCH('2) Room configuration'!I670,Table1[TMS],0)),\"\")","v":""},{"$f":"IFERROR(INDEX(Table1[Normal occupancy],MATCH(Table2[[#This Row],[New Room Type \n(TMS)]],Table1[TMS],0)),\"\")","v":""},null,null,null,null,"",{"$f":"IF(Table2[[#This Row],['# extra beds that fit in the room2]]<>0,LEFT(Table2[[#This Row],[New Room Type \n(TMS)]],6),\"\")","v":""},null,{"$f":"IF(Table2[[#This Row],['# extra beds that fit in the room]]<>Table2[[#This Row],['# extra beds that fit in the room2]],\"yes\",\"No\")","v":"No"}]
[null,{"$f":"IF(LEN(C671)>0,'1) Hotel information'!$C$4,\"\")","v":""},null,null,null,{"$f":"IFERROR(INDEX(Table1[Room description],MATCH('2) Room configuration'!D671,Table1[TMS],0)),\"\")","v":""},{"$f":"IFERROR(INDEX(Table1[Bedding],MATCH('2) Room configuration'!D671,Table1[TMS],0)),\"\")","v":""},null,null,{"$f":"IFERROR(INDEX(Table1[Room description],MATCH('2) Room configuration'!I671,Table1[TMS],0)),\"\")","v":""},{"$f":"IFERROR(INDEX(Table1[Bedding],MATCH('2) Room configuration'!I671,Table1[TMS],0)),\"\")","v":""},{"$f":"IFERROR(INDEX(Table1[Normal occupancy],MATCH(Table2[[#This Row],[New Room Type \n(TMS)]],Table1[TMS],0)),\"\")","v":""},null,null,null,null,"",{"$f":"IF(Table2[[#This Row],['# extra beds that fit in the room2]]<>0,LEFT(Table2[[#This Row],[New Room Type \n(TMS)]],6),\"\")","v":""},null,{"$f":"IF(Table2[[#This Row],['# extra beds that fit in the room]]<>Table2[[#This Row],['# extra beds that fit in the room2]],\"yes\",\"No\")","v":"No"}]
[null,{"$f":"IF(LEN(C672)>0,'1) Hotel information'!$C$4,\"\")","v":""},null,null,null,{"$f":"IFERROR(INDEX(Table1[Room description],MATCH('2) Room configuration'!D672,Table1[TMS],0)),\"\")","v":""},{"$f":"IFERROR(INDEX(Table1[Bedding],MATCH('2) Room configuration'!D672,Table1[TMS],0)),\"\")","v":""},null,null,{"$f":"IFERROR(INDEX(Table1[Room description],MATCH('2) Room configuration'!I672,Table1[TMS],0)),\"\")","v":""},{"$f":"IFERROR(INDEX(Table1[Bedding],MATCH('2) Room configuration'!I672,Table1[TMS],0)),\"\")","v":""},{"$f":"IFERROR(INDEX(Table1[Normal occupancy],MATCH(Table2[[#This Row],[New Room Type \n(TMS)]],Table1[TMS],0)),\"\")","v":""},null,null,null,null,"",{"$f":"IF(Table2[[#This Row],['# extra beds that fit in the room2]]<>0,LEFT(Table2[[#This Row],[New Room Type \n(TMS)]],6),\"\")","v":""},null,{"$f":"IF(Table2[[#This Row],['# extra beds that fit in the room]]<>Table2[[#This Row],['# extra beds that fit in the room2]],\"yes\",\"No\")","v":"No"}]
[null,{"$f":"IF(LEN(C673)>0,'1) Hotel information'!$C$4,\"\")","v":""},null,null,null,{"$f":"IFERROR(INDEX(Table1[Room description],MATCH('2) Room configuration'!D673,Table1[TMS],0)),\"\")","v":""},{"$f":"IFERROR(INDEX(Table1[Bedding],MATCH('2) Room configuration'!D673,Table1[TMS],0)),\"\")","v":""},null,null,{"$f":"IFERROR(INDEX(Table1[Room description],MATCH('2) Room configuration'!I673,Table1[TMS],0)),\"\")","v":""},{"$f":"IFERROR(INDEX(Table1[Bedding],MATCH('2) Room configuration'!I673,Table1[TMS],0)),\"\")","v":""},{"$f":"IFERROR(INDEX(Table1[Normal occupancy],MATCH(Table2[[#This Row],[New Room Type \n(TMS)]],Table1[TMS],0)),\"\")","v":""},null,null,null,null,"",{"$f":"IF(Table2[[#This Row],['# extra beds that fit in the room2]]<>0,LEFT(Table2[[#This Row],[New Room Type \n(TMS)]],6),\"\")","v":""},null,{"$f":"IF(Table2[[#This Row],['# extra beds that fit in the room]]<>Table2[[#This Row],['# extra beds that fit in the room2]],\"yes\",\"No\")","v":"No"}]
[null,{"$f":"IF(LEN(C674)>0,'1) Hotel information'!$C$4,\"\")","v":""},null,null,null,{"$f":"IFERROR(INDEX(Table1[Room description],MATCH('2) Room configuration'!D674,Table1[TMS],0)),\"\")","v":""},{"$f":"IFERROR(INDEX(Table1[Bedding],MATCH('2) Room configuration'!D674,Table1[TMS],0)),\"\")","v":""},null,null,{"$f":"IFERROR(INDEX(Table1[Room description],MATCH('2) Room configuration'!I674,Table1[TMS],0)),\"\")","v":""},{"$f":"IFERROR(INDEX(Table1[Bedding],MATCH('2) Room configuration'!I674,Table1[TMS],0)),\"\")","v":""},{"$f":"IFERROR(INDEX(Table1[Normal occupancy],MATCH(Table2[[#This Row],[New Room Type \n(TMS)]],Table1[TMS],0)),\"\")","v":""},null,null,null,null,"",{"$f":"IF(Table2[[#This Row],['# extra beds that fit in the room2]]<>0,LEFT(Table2[[#This Row],[New Room Type \n(TMS)]],6),\"\")","v":""},null,{"$f":"IF(Table2[[#This Row],['# extra beds that fit in the room]]<>Table2[[#This Row],['# extra beds that fit in the room2]],\"yes\",\"No\")","v":"No"}]
[null,{"$f":"IF(LEN(C675)>0,'1) Hotel information'!$C$4,\"\")","v":""},null,null,null,{"$f":"IFERROR(INDEX(Table1[Room description],MATCH('2) Room configuration'!D675,Table1[TMS],0)),\"\")","v":""},{"$f":"IFERROR(INDEX(Table1[Bedding],MATCH('2) Room configuration'!D675,Table1[TMS],0)),\"\")","v":""},null,null,{"$f":"IFERROR(INDEX(Table1[Room description],MATCH('2) Room configuration'!I675,Table1[TMS],0)),\"\")","v":""},{"$f":"IFERROR(INDEX(Table1[Bedding],MATCH('2) Room configuration'!I675,Table1[TMS],0)),\"\")","v":""},{"$f":"IFERROR(INDEX(Table1[Normal occupancy],MATCH(Table2[[#This Row],[New Room Type \n(TMS)]],Table1[TMS],0)),\"\")","v":""},null,null,null,null,"",{"$f":"IF(Table2[[#This Row],['# extra beds that fit in the room2]]<>0,LEFT(Table2[[#This Row],[New Room Type \n(TMS)]],6),\"\")","v":""},null,{"$f":"IF(Table2[[#This Row],['# extra beds that fit in the room]]<>Table2[[#This Row],['# extra beds that fit in the room2]],\"yes\",\"No\")","v":"No"}]
[null,{"$f":"IF(LEN(C676)>0,'1) Hotel information'!$C$4,\"\")","v":""},null,null,null,{"$f":"IFERROR(INDEX(Table1[Room description],MATCH('2) Room configuration'!D676,Table1[TMS],0)),\"\")","v":""},{"$f":"IFERROR(INDEX(Table1[Bedding],MATCH('2) Room configuration'!D676,Table1[TMS],0)),\"\")","v":""},null,null,{"$f":"IFERROR(INDEX(Table1[Room description],MATCH('2) Room configuration'!I676,Table1[TMS],0)),\"\")","v":""},{"$f":"IFERROR(INDEX(Table1[Bedding],MATCH('2) Room configuration'!I676,Table1[TMS],0)),\"\")","v":""},{"$f":"IFERROR(INDEX(Table1[Normal occupancy],MATCH(Table2[[#This Row],[New Room Type \n(TMS)]],Table1[TMS],0)),\"\")","v":""},null,null,null,null,"",{"$f":"IF(Table2[[#This Row],['# extra beds that fit in the room2]]<>0,LEFT(Table2[[#This Row],[New Room Type \n(TMS)]],6),\"\")","v":""},null,{"$f":"IF(Table2[[#This Row],['# extra beds that fit in the room]]<>Table2[[#This Row],['# extra beds that fit in the room2]],\"yes\",\"No\")","v":"No"}]
[null,{"$f":"IF(LEN(C677)>0,'1) Hotel information'!$C$4,\"\")","v":""},null,null,null,{"$f":"IFERROR(INDEX(Table1[Room description],MATCH('2) Room configuration'!D677,Table1[TMS],0)),\"\")","v":""},{"$f":"IFERROR(INDEX(Table1[Bedding],MATCH('2) Room configuration'!D677,Table1[TMS],0)),\"\")","v":""},null,null,{"$f":"IFERROR(INDEX(Table1[Room description],MATCH('2) Room configuration'!I677,Table1[TMS],0)),\"\")","v":""},{"$f":"IFERROR(INDEX(Table1[Bedding],MATCH('2) Room configuration'!I677,Table1[TMS],0)),\"\")","v":""},{"$f":"IFERROR(INDEX(Table1[Normal occupancy],MATCH(Table2[[#This Row],[New Room Type \n(TMS)]],Table1[TMS],0)),\"\")","v":""},null,null,null,null,"",{"$f":"IF(Table2[[#This Row],['# extra beds that fit in the room2]]<>0,LEFT(Table2[[#This Row],[New Room Type \n(TMS)]],6),\"\")","v":""},null,{"$f":"IF(Table2[[#This Row],['# extra beds that fit in the room]]<>Table2[[#This Row],['# extra beds that fit in the room2]],\"yes\",\"No\")","v":"No"}]
[null,{"$f":"IF(LEN(C678)>0,'1) Hotel information'!$C$4,\"\")","v":""},null,null,null,{"$f":"IFERROR(INDEX(Table1[Room description],MATCH('2) Room configuration'!D678,Table1[TMS],0)),\"\")","v":""},{"$f":"IFERROR(INDEX(Table1[Bedding],MATCH('2) Room configuration'!D678,Table1[TMS],0)),\"\")","v":""},null,null,{"$f":"IFERROR(INDEX(Table1[Room description],MATCH('2) Room configuration'!I678,Table1[TMS],0)),\"\")","v":""},{"$f":"IFERROR(INDEX(Table1[Bedding],MATCH('2) Room configuration'!I678,Table1[TMS],0)),\"\")","v":""},{"$f":"IFERROR(INDEX(Table1[Normal occupancy],MATCH(Table2[[#This Row],[New Room Type \n(TMS)]],Table1[TMS],0)),\"\")","v":""},null,null,null,null,"",{"$f":"IF(Table2[[#This Row],['# extra beds that fit in the room2]]<>0,LEFT(Table2[[#This Row],[New Room Type \n(TMS)]],6),\"\")","v":""},null,{"$f":"IF(Table2[[#This Row],['# extra beds that fit in the room]]<>Table2[[#This Row],['# extra beds that fit in the room2]],\"yes\",\"No\")","v":"No"}]
[null,{"$f":"IF(LEN(C679)>0,'1) Hotel information'!$C$4,\"\")","v":""},null,null,null,{"$f":"IFERROR(INDEX(Table1[Room description],MATCH('2) Room configuration'!D679,Table1[TMS],0)),\"\")","v":""},{"$f":"IFERROR(INDEX(Table1[Bedding],MATCH('2) Room configuration'!D679,Table1[TMS],0)),\"\")","v":""},null,null,{"$f":"IFERROR(INDEX(Table1[Room description],MATCH('2) Room configuration'!I679,Table1[TMS],0)),\"\")","v":""},{"$f":"IFERROR(INDEX(Table1[Bedding],MATCH('2) Room configuration'!I679,Table1[TMS],0)),\"\")","v":""},{"$f":"IFERROR(INDEX(Table1[Normal occupancy],MATCH(Table2[[#This Row],[New Room Type \n(TMS)]],Table1[TMS],0)),\"\")","v":""},null,null,null,null,"",{"$f":"IF(Table2[[#This Row],['# extra beds that fit in the room2]]<>0,LEFT(Table2[[#This Row],[New Room Type \n(TMS)]],6),\"\")","v":""},null,{"$f":"IF(Table2[[#This Row],['# extra beds that fit in the room]]<>Table2[[#This Row],['# extra beds that fit in the room2]],\"yes\",\"No\")","v":"No"}]
[null,{"$f":"IF(LEN(C680)>0,'1) Hotel information'!$C$4,\"\")","v":""},null,null,null,{"$f":"IFERROR(INDEX(Table1[Room description],MATCH('2) Room configuration'!D680,Table1[TMS],0)),\"\")","v":""},{"$f":"IFERROR(INDEX(Table1[Bedding],MATCH('2) Room configuration'!D680,Table1[TMS],0)),\"\")","v":""},null,null,{"$f":"IFERROR(INDEX(Table1[Room description],MATCH('2) Room configuration'!I680,Table1[TMS],0)),\"\")","v":""},{"$f":"IFERROR(INDEX(Table1[Bedding],MATCH('2) Room configuration'!I680,Table1[TMS],0)),\"\")","v":""},{"$f":"IFERROR(INDEX(Table1[Normal occupancy],MATCH(Table2[[#This Row],[New Room Type \n(TMS)]],Table1[TMS],0)),\"\")","v":""},null,null,null,null,"",{"$f":"IF(Table2[[#This Row],['# extra beds that fit in the room2]]<>0,LEFT(Table2[[#This Row],[New Room Type \n(TMS)]],6),\"\")","v":""},null,{"$f":"IF(Table2[[#This Row],['# extra beds that fit in the room]]<>Table2[[#This Row],['# extra beds that fit in the room2]],\"yes\",\"No\")","v":"No"}]
[null,{"$f":"IF(LEN(C681)>0,'1) Hotel information'!$C$4,\"\")","v":""},null,null,null,{"$f":"IFERROR(INDEX(Table1[Room description],MATCH('2) Room configuration'!D681,Table1[TMS],0)),\"\")","v":""},{"$f":"IFERROR(INDEX(Table1[Bedding],MATCH('2) Room configuration'!D681,Table1[TMS],0)),\"\")","v":""},null,null,{"$f":"IFERROR(INDEX(Table1[Room description],MATCH('2) Room configuration'!I681,Table1[TMS],0)),\"\")","v":""},{"$f":"IFERROR(INDEX(Table1[Bedding],MATCH('2) Room configuration'!I681,Table1[TMS],0)),\"\")","v":""},{"$f":"IFERROR(INDEX(Table1[Normal occupancy],MATCH(Table2[[#This Row],[New Room Type \n(TMS)]],Table1[TMS],0)),\"\")","v":""},null,null,null,null,"",{"$f":"IF(Table2[[#This Row],['# extra beds that fit in the room2]]<>0,LEFT(Table2[[#This Row],[New Room Type \n(TMS)]],6),\"\")","v":""},null,{"$f":"IF(Table2[[#This Row],['# extra beds that fit in the room]]<>Table2[[#This Row],['# extra beds that fit in the room2]],\"yes\",\"No\")","v":"No"}]
[null,{"$f":"IF(LEN(C682)>0,'1) Hotel information'!$C$4,\"\")","v":""},null,null,null,{"$f":"IFERROR(INDEX(Table1[Room description],MATCH('2) Room configuration'!D682,Table1[TMS],0)),\"\")","v":""},{"$f":"IFERROR(INDEX(Table1[Bedding],MATCH('2) Room configuration'!D682,Table1[TMS],0)),\"\")","v":""},null,null,{"$f":"IFERROR(INDEX(Table1[Room description],MATCH('2) Room configuration'!I682,Table1[TMS],0)),\"\")","v":""},{"$f":"IFERROR(INDEX(Table1[Bedding],MATCH('2) Room configuration'!I682,Table1[TMS],0)),\"\")","v":""},{"$f":"IFERROR(INDEX(Table1[Normal occupancy],MATCH(Table2[[#This Row],[New Room Type \n(TMS)]],Table1[TMS],0)),\"\")","v":""},null,null,null,null,"",{"$f":"IF(Table2[[#This Row],['# extra beds that fit in the room2]]<>0,LEFT(Table2[[#This Row],[New Room Type \n(TMS)]],6),\"\")","v":""},null,{"$f":"IF(Table2[[#This Row],['# extra beds that fit in the room]]<>Table2[[#This Row],['# extra beds that fit in the room2]],\"yes\",\"No\")","v":"No"}]
[null,{"$f":"IF(LEN(C683)>0,'1) Hotel information'!$C$4,\"\")","v":""},null,null,null,{"$f":"IFERROR(INDEX(Table1[Room description],MATCH('2) Room configuration'!D683,Table1[TMS],0)),\"\")","v":""},{"$f":"IFERROR(INDEX(Table1[Bedding],MATCH('2) Room configuration'!D683,Table1[TMS],0)),\"\")","v":""},null,null,{"$f":"IFERROR(INDEX(Table1[Room description],MATCH('2) Room configuration'!I683,Table1[TMS],0)),\"\")","v":""},{"$f":"IFERROR(INDEX(Table1[Bedding],MATCH('2) Room configuration'!I683,Table1[TMS],0)),\"\")","v":""},{"$f":"IFERROR(INDEX(Table1[Normal occupancy],MATCH(Table2[[#This Row],[New Room Type \n(TMS)]],Table1[TMS],0)),\"\")","v":""},null,null,null,null,"",{"$f":"IF(Table2[[#This Row],['# extra beds that fit in the room2]]<>0,LEFT(Table2[[#This Row],[New Room Type \n(TMS)]],6),\"\")","v":""},null,{"$f":"IF(Table2[[#This Row],['# extra beds that fit in the room]]<>Table2[[#This Row],['# extra beds that fit in the room2]],\"yes\",\"No\")","v":"No"}]
[null,{"$f":"IF(LEN(C684)>0,'1) Hotel information'!$C$4,\"\")","v":""},null,null,null,{"$f":"IFERROR(INDEX(Table1[Room description],MATCH('2) Room configuration'!D684,Table1[TMS],0)),\"\")","v":""},{"$f":"IFERROR(INDEX(Table1[Bedding],MATCH('2) Room configuration'!D684,Table1[TMS],0)),\"\")","v":""},null,null,{"$f":"IFERROR(INDEX(Table1[Room description],MATCH('2) Room configuration'!I684,Table1[TMS],0)),\"\")","v":""},{"$f":"IFERROR(INDEX(Table1[Bedding],MATCH('2) Room configuration'!I684,Table1[TMS],0)),\"\")","v":""},{"$f":"IFERROR(INDEX(Table1[Normal occupancy],MATCH(Table2[[#This Row],[New Room Type \n(TMS)]],Table1[TMS],0)),\"\")","v":""},null,null,null,null,"",{"$f":"IF(Table2[[#This Row],['# extra beds that fit in the room2]]<>0,LEFT(Table2[[#This Row],[New Room Type \n(TMS)]],6),\"\")","v":""},null,{"$f":"IF(Table2[[#This Row],['# extra beds that fit in the room]]<>Table2[[#This Row],['# extra beds that fit in the room2]],\"yes\",\"No\")","v":"No"}]
[null,{"$f":"IF(LEN(C685)>0,'1) Hotel information'!$C$4,\"\")","v":""},null,null,null,{"$f":"IFERROR(INDEX(Table1[Room description],MATCH('2) Room configuration'!D685,Table1[TMS],0)),\"\")","v":""},{"$f":"IFERROR(INDEX(Table1[Bedding],MATCH('2) Room configuration'!D685,Table1[TMS],0)),\"\")","v":""},null,null,{"$f":"IFERROR(INDEX(Table1[Room description],MATCH('2) Room configuration'!I685,Table1[TMS],0)),\"\")","v":""},{"$f":"IFERROR(INDEX(Table1[Bedding],MATCH('2) Room configuration'!I685,Table1[TMS],0)),\"\")","v":""},{"$f":"IFERROR(INDEX(Table1[Normal occupancy],MATCH(Table2[[#This Row],[New Room Type \n(TMS)]],Table1[TMS],0)),\"\")","v":""},null,null,null,null,"",{"$f":"IF(Table2[[#This Row],['# extra beds that fit in the room2]]<>0,LEFT(Table2[[#This Row],[New Room Type \n(TMS)]],6),\"\")","v":""},null,{"$f":"IF(Table2[[#This Row],['# extra beds that fit in the room]]<>Table2[[#This Row],['# extra beds that fit in the room2]],\"yes\",\"No\")","v":"No"}]
[null,{"$f":"IF(LEN(C686)>0,'1) Hotel information'!$C$4,\"\")","v":""},null,null,null,{"$f":"IFERROR(INDEX(Table1[Room description],MATCH('2) Room configuration'!D686,Table1[TMS],0)),\"\")","v":""},{"$f":"IFERROR(INDEX(Table1[Bedding],MATCH('2) Room configuration'!D686,Table1[TMS],0)),\"\")","v":""},null,null,{"$f":"IFERROR(INDEX(Table1[Room description],MATCH('2) Room configuration'!I686,Table1[TMS],0)),\"\")","v":""},{"$f":"IFERROR(INDEX(Table1[Bedding],MATCH('2) Room configuration'!I686,Table1[TMS],0)),\"\")","v":""},{"$f":"IFERROR(INDEX(Table1[Normal occupancy],MATCH(Table2[[#This Row],[New Room Type \n(TMS)]],Table1[TMS],0)),\"\")","v":""},null,null,null,null,"",{"$f":"IF(Table2[[#This Row],['# extra beds that fit in the room2]]<>0,LEFT(Table2[[#This Row],[New Room Type \n(TMS)]],6),\"\")","v":""},null,{"$f":"IF(Table2[[#This Row],['# extra beds that fit in the room]]<>Table2[[#This Row],['# extra beds that fit in the room2]],\"yes\",\"No\")","v":"No"}]
[null,{"$f":"IF(LEN(C687)>0,'1) Hotel information'!$C$4,\"\")","v":""},null,null,null,{"$f":"IFERROR(INDEX(Table1[Room description],MATCH('2) Room configuration'!D687,Table1[TMS],0)),\"\")","v":""},{"$f":"IFERROR(INDEX(Table1[Bedding],MATCH('2) Room configuration'!D687,Table1[TMS],0)),\"\")","v":""},null,null,{"$f":"IFERROR(INDEX(Table1[Room description],MATCH('2) Room configuration'!I687,Table1[TMS],0)),\"\")","v":""},{"$f":"IFERROR(INDEX(Table1[Bedding],MATCH('2) Room configuration'!I687,Table1[TMS],0)),\"\")","v":""},{"$f":"IFERROR(INDEX(Table1[Normal occupancy],MATCH(Table2[[#This Row],[New Room Type \n(TMS)]],Table1[TMS],0)),\"\")","v":""},null,null,null,null,"",{"$f":"IF(Table2[[#This Row],['# extra beds that fit in the room2]]<>0,LEFT(Table2[[#This Row],[New Room Type \n(TMS)]],6),\"\")","v":""},null,{"$f":"IF(Table2[[#This Row],['# extra beds that fit in the room]]<>Table2[[#This Row],['# extra beds that fit in the room2]],\"yes\",\"No\")","v":"No"}]
[null,{"$f":"IF(LEN(C688)>0,'1) Hotel information'!$C$4,\"\")","v":""},null,null,null,{"$f":"IFERROR(INDEX(Table1[Room description],MATCH('2) Room configuration'!D688,Table1[TMS],0)),\"\")","v":""},{"$f":"IFERROR(INDEX(Table1[Bedding],MATCH('2) Room configuration'!D688,Table1[TMS],0)),\"\")","v":""},null,null,{"$f":"IFERROR(INDEX(Table1[Room description],MATCH('2) Room configuration'!I688,Table1[TMS],0)),\"\")","v":""},{"$f":"IFERROR(INDEX(Table1[Bedding],MATCH('2) Room configuration'!I688,Table1[TMS],0)),\"\")","v":""},{"$f":"IFERROR(INDEX(Table1[Normal occupancy],MATCH(Table2[[#This Row],[New Room Type \n(TMS)]],Table1[TMS],0)),\"\")","v":""},null,null,null,null,"",{"$f":"IF(Table2[[#This Row],['# extra beds that fit in the room2]]<>0,LEFT(Table2[[#This Row],[New Room Type \n(TMS)]],6),\"\")","v":""},null,{"$f":"IF(Table2[[#This Row],['# extra beds that fit in the room]]<>Table2[[#This Row],['# extra beds that fit in the room2]],\"yes\",\"No\")","v":"No"}]
[null,{"$f":"IF(LEN(C689)>0,'1) Hotel information'!$C$4,\"\")","v":""},null,null,null,{"$f":"IFERROR(INDEX(Table1[Room description],MATCH('2) Room configuration'!D689,Table1[TMS],0)),\"\")","v":""},{"$f":"IFERROR(INDEX(Table1[Bedding],MATCH('2) Room configuration'!D689,Table1[TMS],0)),\"\")","v":""},null,null,{"$f":"IFERROR(INDEX(Table1[Room description],MATCH('2) Room configuration'!I689,Table1[TMS],0)),\"\")","v":""},{"$f":"IFERROR(INDEX(Table1[Bedding],MATCH('2) Room configuration'!I689,Table1[TMS],0)),\"\")","v":""},{"$f":"IFERROR(INDEX(Table1[Normal occupancy],MATCH(Table2[[#This Row],[New Room Type \n(TMS)]],Table1[TMS],0)),\"\")","v":""},null,null,null,null,"",{"$f":"IF(Table2[[#This Row],['# extra beds that fit in the room2]]<>0,LEFT(Table2[[#This Row],[New Room Type \n(TMS)]],6),\"\")","v":""},null,{"$f":"IF(Table2[[#This Row],['# extra beds that fit in the room]]<>Table2[[#This Row],['# extra beds that fit in the room2]],\"yes\",\"No\")","v":"No"}]
[null,{"$f":"IF(LEN(C690)>0,'1) Hotel information'!$C$4,\"\")","v":""},null,null,null,{"$f":"IFERROR(INDEX(Table1[Room description],MATCH('2) Room configuration'!D690,Table1[TMS],0)),\"\")","v":""},{"$f":"IFERROR(INDEX(Table1[Bedding],MATCH('2) Room configuration'!D690,Table1[TMS],0)),\"\")","v":""},null,null,{"$f":"IFERROR(INDEX(Table1[Room description],MATCH('2) Room configuration'!I690,Table1[TMS],0)),\"\")","v":""},{"$f":"IFERROR(INDEX(Table1[Bedding],MATCH('2) Room configuration'!I690,Table1[TMS],0)),\"\")","v":""},{"$f":"IFERROR(INDEX(Table1[Normal occupancy],MATCH(Table2[[#This Row],[New Room Type \n(TMS)]],Table1[TMS],0)),\"\")","v":""},null,null,null,null,"",{"$f":"IF(Table2[[#This Row],['# extra beds that fit in the room2]]<>0,LEFT(Table2[[#This Row],[New Room Type \n(TMS)]],6),\"\")","v":""},null,{"$f":"IF(Table2[[#This Row],['# extra beds that fit in the room]]<>Table2[[#This Row],['# extra beds that fit in the room2]],\"yes\",\"No\")","v":"No"}]
[null,{"$f":"IF(LEN(C691)>0,'1) Hotel information'!$C$4,\"\")","v":""},null,null,null,{"$f":"IFERROR(INDEX(Table1[Room description],MATCH('2) Room configuration'!D691,Table1[TMS],0)),\"\")","v":""},{"$f":"IFERROR(INDEX(Table1[Bedding],MATCH('2) Room configuration'!D691,Table1[TMS],0)),\"\")","v":""},null,null,{"$f":"IFERROR(INDEX(Table1[Room description],MATCH('2) Room configuration'!I691,Table1[TMS],0)),\"\")","v":""},{"$f":"IFERROR(INDEX(Table1[Bedding],MATCH('2) Room configuration'!I691,Table1[TMS],0)),\"\")","v":""},{"$f":"IFERROR(INDEX(Table1[Normal occupancy],MATCH(Table2[[#This Row],[New Room Type \n(TMS)]],Table1[TMS],0)),\"\")","v":""},null,null,null,null,"",{"$f":"IF(Table2[[#This Row],['# extra beds that fit in the room2]]<>0,LEFT(Table2[[#This Row],[New Room Type \n(TMS)]],6),\"\")","v":""},null,{"$f":"IF(Table2[[#This Row],['# extra beds that fit in the room]]<>Table2[[#This Row],['# extra beds that fit in the room2]],\"yes\",\"No\")","v":"No"}]
[null,{"$f":"IF(LEN(C692)>0,'1) Hotel information'!$C$4,\"\")","v":""},null,null,null,{"$f":"IFERROR(INDEX(Table1[Room description],MATCH('2) Room configuration'!D692,Table1[TMS],0)),\"\")","v":""},{"$f":"IFERROR(INDEX(Table1[Bedding],MATCH('2) Room configuration'!D692,Table1[TMS],0)),\"\")","v":""},null,null,{"$f":"IFERROR(INDEX(Table1[Room description],MATCH('2) Room configuration'!I692,Table1[TMS],0)),\"\")","v":""},{"$f":"IFERROR(INDEX(Table1[Bedding],MATCH('2) Room configuration'!I692,Table1[TMS],0)),\"\")","v":""},{"$f":"IFERROR(INDEX(Table1[Normal occupancy],MATCH(Table2[[#This Row],[New Room Type \n(TMS)]],Table1[TMS],0)),\"\")","v":""},null,null,null,null,"",{"$f":"IF(Table2[[#This Row],['# extra beds that fit in the room2]]<>0,LEFT(Table2[[#This Row],[New Room Type \n(TMS)]],6),\"\")","v":""},null,{"$f":"IF(Table2[[#This Row],['# extra beds that fit in the room]]<>Table2[[#This Row],['# extra beds that fit in the room2]],\"yes\",\"No\")","v":"No"}]
[null,{"$f":"IF(LEN(C693)>0,'1) Hotel information'!$C$4,\"\")","v":""},null,null,null,{"$f":"IFERROR(INDEX(Table1[Room description],MATCH('2) Room configuration'!D693,Table1[TMS],0)),\"\")","v":""},{"$f":"IFERROR(INDEX(Table1[Bedding],MATCH('2) Room configuration'!D693,Table1[TMS],0)),\"\")","v":""},null,null,{"$f":"IFERROR(INDEX(Table1[Room description],MATCH('2) Room configuration'!I693,Table1[TMS],0)),\"\")","v":""},{"$f":"IFERROR(INDEX(Table1[Bedding],MATCH('2) Room configuration'!I693,Table1[TMS],0)),\"\")","v":""},{"$f":"IFERROR(INDEX(Table1[Normal occupancy],MATCH(Table2[[#This Row],[New Room Type \n(TMS)]],Table1[TMS],0)),\"\")","v":""},null,null,null,null,"",{"$f":"IF(Table2[[#This Row],['# extra beds that fit in the room2]]<>0,LEFT(Table2[[#This Row],[New Room Type \n(TMS)]],6),\"\")","v":""},null,{"$f":"IF(Table2[[#This Row],['# extra beds that fit in the room]]<>Table2[[#This Row],['# extra beds that fit in the room2]],\"yes\",\"No\")","v":"No"}]
[null,{"$f":"IF(LEN(C694)>0,'1) Hotel information'!$C$4,\"\")","v":""},null,null,null,{"$f":"IFERROR(INDEX(Table1[Room description],MATCH('2) Room configuration'!D694,Table1[TMS],0)),\"\")","v":""},{"$f":"IFERROR(INDEX(Table1[Bedding],MATCH('2) Room configuration'!D694,Table1[TMS],0)),\"\")","v":""},null,null,{"$f":"IFERROR(INDEX(Table1[Room description],MATCH('2) Room configuration'!I694,Table1[TMS],0)),\"\")","v":""},{"$f":"IFERROR(INDEX(Table1[Bedding],MATCH('2) Room configuration'!I694,Table1[TMS],0)),\"\")","v":""},{"$f":"IFERROR(INDEX(Table1[Normal occupancy],MATCH(Table2[[#This Row],[New Room Type \n(TMS)]],Table1[TMS],0)),\"\")","v":""},null,null,null,null,"",{"$f":"IF(Table2[[#This Row],['# extra beds that fit in the room2]]<>0,LEFT(Table2[[#This Row],[New Room Type \n(TMS)]],6),\"\")","v":""},null,{"$f":"IF(Table2[[#This Row],['# extra beds that fit in the room]]<>Table2[[#This Row],['# extra beds that fit in the room2]],\"yes\",\"No\")","v":"No"}]
[null,{"$f":"IF(LEN(C695)>0,'1) Hotel information'!$C$4,\"\")","v":""},null,null,null,{"$f":"IFERROR(INDEX(Table1[Room description],MATCH('2) Room configuration'!D695,Table1[TMS],0)),\"\")","v":""},{"$f":"IFERROR(INDEX(Table1[Bedding],MATCH('2) Room configuration'!D695,Table1[TMS],0)),\"\")","v":""},null,null,{"$f":"IFERROR(INDEX(Table1[Room description],MATCH('2) Room configuration'!I695,Table1[TMS],0)),\"\")","v":""},{"$f":"IFERROR(INDEX(Table1[Bedding],MATCH('2) Room configuration'!I695,Table1[TMS],0)),\"\")","v":""},{"$f":"IFERROR(INDEX(Table1[Normal occupancy],MATCH(Table2[[#This Row],[New Room Type \n(TMS)]],Table1[TMS],0)),\"\")","v":""},null,null,null,null,"",{"$f":"IF(Table2[[#This Row],['# extra beds that fit in the room2]]<>0,LEFT(Table2[[#This Row],[New Room Type \n(TMS)]],6),\"\")","v":""},null,{"$f":"IF(Table2[[#This Row],['# extra beds that fit in the room]]<>Table2[[#This Row],['# extra beds that fit in the room2]],\"yes\",\"No\")","v":"No"}]
[null,{"$f":"IF(LEN(C696)>0,'1) Hotel information'!$C$4,\"\")","v":""},null,null,null,{"$f":"IFERROR(INDEX(Table1[Room description],MATCH('2) Room configuration'!D696,Table1[TMS],0)),\"\")","v":""},{"$f":"IFERROR(INDEX(Table1[Bedding],MATCH('2) Room configuration'!D696,Table1[TMS],0)),\"\")","v":""},null,null,{"$f":"IFERROR(INDEX(Table1[Room description],MATCH('2) Room configuration'!I696,Table1[TMS],0)),\"\")","v":""},{"$f":"IFERROR(INDEX(Table1[Bedding],MATCH('2) Room configuration'!I696,Table1[TMS],0)),\"\")","v":""},{"$f":"IFERROR(INDEX(Table1[Normal occupancy],MATCH(Table2[[#This Row],[New Room Type \n(TMS)]],Table1[TMS],0)),\"\")","v":""},null,null,null,null,"",{"$f":"IF(Table2[[#This Row],['# extra beds that fit in the room2]]<>0,LEFT(Table2[[#This Row],[New Room Type \n(TMS)]],6),\"\")","v":""},null,{"$f":"IF(Table2[[#This Row],['# extra beds that fit in the room]]<>Table2[[#This Row],['# extra beds that fit in the room2]],\"yes\",\"No\")","v":"No"}]
[null,{"$f":"IF(LEN(C697)>0,'1) Hotel information'!$C$4,\"\")","v":""},null,null,null,{"$f":"IFERROR(INDEX(Table1[Room description],MATCH('2) Room configuration'!D697,Table1[TMS],0)),\"\")","v":""},{"$f":"IFERROR(INDEX(Table1[Bedding],MATCH('2) Room configuration'!D697,Table1[TMS],0)),\"\")","v":""},null,null,{"$f":"IFERROR(INDEX(Table1[Room description],MATCH('2) Room configuration'!I697,Table1[TMS],0)),\"\")","v":""},{"$f":"IFERROR(INDEX(Table1[Bedding],MATCH('2) Room configuration'!I697,Table1[TMS],0)),\"\")","v":""},{"$f":"IFERROR(INDEX(Table1[Normal occupancy],MATCH(Table2[[#This Row],[New Room Type \n(TMS)]],Table1[TMS],0)),\"\")","v":""},null,null,null,null,"",{"$f":"IF(Table2[[#This Row],['# extra beds that fit in the room2]]<>0,LEFT(Table2[[#This Row],[New Room Type \n(TMS)]],6),\"\")","v":""},null,{"$f":"IF(Table2[[#This Row],['# extra beds that fit in the room]]<>Table2[[#This Row],['# extra beds that fit in the room2]],\"yes\",\"No\")","v":"No"}]
[null,{"$f":"IF(LEN(C698)>0,'1) Hotel information'!$C$4,\"\")","v":""},null,null,null,{"$f":"IFERROR(INDEX(Table1[Room description],MATCH('2) Room configuration'!D698,Table1[TMS],0)),\"\")","v":""},{"$f":"IFERROR(INDEX(Table1[Bedding],MATCH('2) Room configuration'!D698,Table1[TMS],0)),\"\")","v":""},null,null,{"$f":"IFERROR(INDEX(Table1[Room description],MATCH('2) Room configuration'!I698,Table1[TMS],0)),\"\")","v":""},{"$f":"IFERROR(INDEX(Table1[Bedding],MATCH('2) Room configuration'!I698,Table1[TMS],0)),\"\")","v":""},{"$f":"IFERROR(INDEX(Table1[Normal occupancy],MATCH(Table2[[#This Row],[New Room Type \n(TMS)]],Table1[TMS],0)),\"\")","v":""},null,null,null,null,"",{"$f":"IF(Table2[[#This Row],['# extra beds that fit in the room2]]<>0,LEFT(Table2[[#This Row],[New Room Type \n(TMS)]],6),\"\")","v":""},null,{"$f":"IF(Table2[[#This Row],['# extra beds that fit in the room]]<>Table2[[#This Row],['# extra beds that fit in the room2]],\"yes\",\"No\")","v":"No"}]
[null,{"$f":"IF(LEN(C699)>0,'1) Hotel information'!$C$4,\"\")","v":""},null,null,null,{"$f":"IFERROR(INDEX(Table1[Room description],MATCH('2) Room configuration'!D699,Table1[TMS],0)),\"\")","v":""},{"$f":"IFERROR(INDEX(Table1[Bedding],MATCH('2) Room configuration'!D699,Table1[TMS],0)),\"\")","v":""},null,null,{"$f":"IFERROR(INDEX(Table1[Room description],MATCH('2) Room configuration'!I699,Table1[TMS],0)),\"\")","v":""},{"$f":"IFERROR(INDEX(Table1[Bedding],MATCH('2) Room configuration'!I699,Table1[TMS],0)),\"\")","v":""},{"$f":"IFERROR(INDEX(Table1[Normal occupancy],MATCH(Table2[[#This Row],[New Room Type \n(TMS)]],Table1[TMS],0)),\"\")","v":""},null,null,null,null,"",{"$f":"IF(Table2[[#This Row],['# extra beds that fit in the room2]]<>0,LEFT(Table2[[#This Row],[New Room Type \n(TMS)]],6),\"\")","v":""},null,{"$f":"IF(Table2[[#This Row],['# extra beds that fit in the room]]<>Table2[[#This Row],['# extra beds that fit in the room2]],\"yes\",\"No\")","v":"No"}]
[null,{"$f":"IF(LEN(C700)>0,'1) Hotel information'!$C$4,\"\")","v":""},null,null,null,{"$f":"IFERROR(INDEX(Table1[Room description],MATCH('2) Room configuration'!D700,Table1[TMS],0)),\"\")","v":""},{"$f":"IFERROR(INDEX(Table1[Bedding],MATCH('2) Room configuration'!D700,Table1[TMS],0)),\"\")","v":""},null,null,{"$f":"IFERROR(INDEX(Table1[Room description],MATCH('2) Room configuration'!I700,Table1[TMS],0)),\"\")","v":""},{"$f":"IFERROR(INDEX(Table1[Bedding],MATCH('2) Room configuration'!I700,Table1[TMS],0)),\"\")","v":""},{"$f":"IFERROR(INDEX(Table1[Normal occupancy],MATCH(Table2[[#This Row],[New Room Type \n(TMS)]],Table1[TMS],0)),\"\")","v":""},null,null,null,null,"",{"$f":"IF(Table2[[#This Row],['# extra beds that fit in the room2]]<>0,LEFT(Table2[[#This Row],[New Room Type \n(TMS)]],6),\"\")","v":""},null,{"$f":"IF(Table2[[#This Row],['# extra beds that fit in the room]]<>Table2[[#This Row],['# extra beds that fit in the room2]],\"yes\",\"No\")","v":"No"}]
[null,{"$f":"IF(LEN(C701)>0,'1) Hotel information'!$C$4,\"\")","v":""},null,null,null,{"$f":"IFERROR(INDEX(Table1[Room description],MATCH('2) Room configuration'!D701,Table1[TMS],0)),\"\")","v":""},{"$f":"IFERROR(INDEX(Table1[Bedding],MATCH('2) Room configuration'!D701,Table1[TMS],0)),\"\")","v":""},null,null,{"$f":"IFERROR(INDEX(Table1[Room description],MATCH('2) Room configuration'!I701,Table1[TMS],0)),\"\")","v":""},{"$f":"IFERROR(INDEX(Table1[Bedding],MATCH('2) Room configuration'!I701,Table1[TMS],0)),\"\")","v":""},{"$f":"IFERROR(INDEX(Table1[Normal occupancy],MATCH(Table2[[#This Row],[New Room Type \n(TMS)]],Table1[TMS],0)),\"\")","v":""},null,null,null,null,"",{"$f":"IF(Table2[[#This Row],['# extra beds that fit in the room2]]<>0,LEFT(Table2[[#This Row],[New Room Type \n(TMS)]],6),\"\")","v":""},null,{"$f":"IF(Table2[[#This Row],['# extra beds that fit in the room]]<>Table2[[#This Row],['# extra beds that fit in the room2]],\"yes\",\"No\")","v":"No"}]
[null,{"$f":"IF(LEN(C702)>0,'1) Hotel information'!$C$4,\"\")","v":""},null,null,null,{"$f":"IFERROR(INDEX(Table1[Room description],MATCH('2) Room configuration'!D702,Table1[TMS],0)),\"\")","v":""},{"$f":"IFERROR(INDEX(Table1[Bedding],MATCH('2) Room configuration'!D702,Table1[TMS],0)),\"\")","v":""},null,null,{"$f":"IFERROR(INDEX(Table1[Room description],MATCH('2) Room configuration'!I702,Table1[TMS],0)),\"\")","v":""},{"$f":"IFERROR(INDEX(Table1[Bedding],MATCH('2) Room configuration'!I702,Table1[TMS],0)),\"\")","v":""},{"$f":"IFERROR(INDEX(Table1[Normal occupancy],MATCH(Table2[[#This Row],[New Room Type \n(TMS)]],Table1[TMS],0)),\"\")","v":""},null,null,null,null,"",{"$f":"IF(Table2[[#This Row],['# extra beds that fit in the room2]]<>0,LEFT(Table2[[#This Row],[New Room Type \n(TMS)]],6),\"\")","v":""},null,{"$f":"IF(Table2[[#This Row],['# extra beds that fit in the room]]<>Table2[[#This Row],['# extra beds that fit in the room2]],\"yes\",\"No\")","v":"No"}]
[null,{"$f":"IF(LEN(C703)>0,'1) Hotel information'!$C$4,\"\")","v":""},null,null,null,{"$f":"IFERROR(INDEX(Table1[Room description],MATCH('2) Room configuration'!D703,Table1[TMS],0)),\"\")","v":""},{"$f":"IFERROR(INDEX(Table1[Bedding],MATCH('2) Room configuration'!D703,Table1[TMS],0)),\"\")","v":""},null,null,{"$f":"IFERROR(INDEX(Table1[Room description],MATCH('2) Room configuration'!I703,Table1[TMS],0)),\"\")","v":""},{"$f":"IFERROR(INDEX(Table1[Bedding],MATCH('2) Room configuration'!I703,Table1[TMS],0)),\"\")","v":""},{"$f":"IFERROR(INDEX(Table1[Normal occupancy],MATCH(Table2[[#This Row],[New Room Type \n(TMS)]],Table1[TMS],0)),\"\")","v":""},null,null,null,null,"",{"$f":"IF(Table2[[#This Row],['# extra beds that fit in the room2]]<>0,LEFT(Table2[[#This Row],[New Room Type \n(TMS)]],6),\"\")","v":""},null,{"$f":"IF(Table2[[#This Row],['# extra beds that fit in the room]]<>Table2[[#This Row],['# extra beds that fit in the room2]],\"yes\",\"No\")","v":"No"}]
[null,{"$f":"IF(LEN(C704)>0,'1) Hotel information'!$C$4,\"\")","v":""},null,null,null,{"$f":"IFERROR(INDEX(Table1[Room description],MATCH('2) Room configuration'!D704,Table1[TMS],0)),\"\")","v":""},{"$f":"IFERROR(INDEX(Table1[Bedding],MATCH('2) Room configuration'!D704,Table1[TMS],0)),\"\")","v":""},null,null,{"$f":"IFERROR(INDEX(Table1[Room description],MATCH('2) Room configuration'!I704,Table1[TMS],0)),\"\")","v":""},{"$f":"IFERROR(INDEX(Table1[Bedding],MATCH('2) Room configuration'!I704,Table1[TMS],0)),\"\")","v":""},{"$f":"IFERROR(INDEX(Table1[Normal occupancy],MATCH(Table2[[#This Row],[New Room Type \n(TMS)]],Table1[TMS],0)),\"\")","v":""},null,null,null,null,"",{"$f":"IF(Table2[[#This Row],['# extra beds that fit in the room2]]<>0,LEFT(Table2[[#This Row],[New Room Type \n(TMS)]],6),\"\")","v":""},null,{"$f":"IF(Table2[[#This Row],['# extra beds that fit in the room]]<>Table2[[#This Row],['# extra beds that fit in the room2]],\"yes\",\"No\")","v":"No"}]
[null,{"$f":"IF(LEN(C705)>0,'1) Hotel information'!$C$4,\"\")","v":""},null,null,null,{"$f":"IFERROR(INDEX(Table1[Room description],MATCH('2) Room configuration'!D705,Table1[TMS],0)),\"\")","v":""},{"$f":"IFERROR(INDEX(Table1[Bedding],MATCH('2) Room configuration'!D705,Table1[TMS],0)),\"\")","v":""},null,null,{"$f":"IFERROR(INDEX(Table1[Room description],MATCH('2) Room configuration'!I705,Table1[TMS],0)),\"\")","v":""},{"$f":"IFERROR(INDEX(Table1[Bedding],MATCH('2) Room configuration'!I705,Table1[TMS],0)),\"\")","v":""},{"$f":"IFERROR(INDEX(Table1[Normal occupancy],MATCH(Table2[[#This Row],[New Room Type \n(TMS)]],Table1[TMS],0)),\"\")","v":""},null,null,null,null,"",{"$f":"IF(Table2[[#This Row],['# extra beds that fit in the room2]]<>0,LEFT(Table2[[#This Row],[New Room Type \n(TMS)]],6),\"\")","v":""},null,{"$f":"IF(Table2[[#This Row],['# extra beds that fit in the room]]<>Table2[[#This Row],['# extra beds that fit in the room2]],\"yes\",\"No\")","v":"No"}]
[null,{"$f":"IF(LEN(C706)>0,'1) Hotel information'!$C$4,\"\")","v":""},null,null,null,{"$f":"IFERROR(INDEX(Table1[Room description],MATCH('2) Room configuration'!D706,Table1[TMS],0)),\"\")","v":""},{"$f":"IFERROR(INDEX(Table1[Bedding],MATCH('2) Room configuration'!D706,Table1[TMS],0)),\"\")","v":""},null,null,{"$f":"IFERROR(INDEX(Table1[Room description],MATCH('2) Room configuration'!I706,Table1[TMS],0)),\"\")","v":""},{"$f":"IFERROR(INDEX(Table1[Bedding],MATCH('2) Room configuration'!I706,Table1[TMS],0)),\"\")","v":""},{"$f":"IFERROR(INDEX(Table1[Normal occupancy],MATCH(Table2[[#This Row],[New Room Type \n(TMS)]],Table1[TMS],0)),\"\")","v":""},null,null,null,null,"",{"$f":"IF(Table2[[#This Row],['# extra beds that fit in the room2]]<>0,LEFT(Table2[[#This Row],[New Room Type \n(TMS)]],6),\"\")","v":""},null,{"$f":"IF(Table2[[#This Row],['# extra beds that fit in the room]]<>Table2[[#This Row],['# extra beds that fit in the room2]],\"yes\",\"No\")","v":"No"}]
[null,{"$f":"IF(LEN(C707)>0,'1) Hotel information'!$C$4,\"\")","v":""},null,null,null,{"$f":"IFERROR(INDEX(Table1[Room description],MATCH('2) Room configuration'!D707,Table1[TMS],0)),\"\")","v":""},{"$f":"IFERROR(INDEX(Table1[Bedding],MATCH('2) Room configuration'!D707,Table1[TMS],0)),\"\")","v":""},null,null,{"$f":"IFERROR(INDEX(Table1[Room description],MATCH('2) Room configuration'!I707,Table1[TMS],0)),\"\")","v":""},{"$f":"IFERROR(INDEX(Table1[Bedding],MATCH('2) Room configuration'!I707,Table1[TMS],0)),\"\")","v":""},{"$f":"IFERROR(INDEX(Table1[Normal occupancy],MATCH(Table2[[#This Row],[New Room Type \n(TMS)]],Table1[TMS],0)),\"\")","v":""},null,null,null,null,"",{"$f":"IF(Table2[[#This Row],['# extra beds that fit in the room2]]<>0,LEFT(Table2[[#This Row],[New Room Type \n(TMS)]],6),\"\")","v":""},null,{"$f":"IF(Table2[[#This Row],['# extra beds that fit in the room]]<>Table2[[#This Row],['# extra beds that fit in the room2]],\"yes\",\"No\")","v":"No"}]
[null,{"$f":"IF(LEN(C708)>0,'1) Hotel information'!$C$4,\"\")","v":""},null,null,null,{"$f":"IFERROR(INDEX(Table1[Room description],MATCH('2) Room configuration'!D708,Table1[TMS],0)),\"\")","v":""},{"$f":"IFERROR(INDEX(Table1[Bedding],MATCH('2) Room configuration'!D708,Table1[TMS],0)),\"\")","v":""},null,null,{"$f":"IFERROR(INDEX(Table1[Room description],MATCH('2) Room configuration'!I708,Table1[TMS],0)),\"\")","v":""},{"$f":"IFERROR(INDEX(Table1[Bedding],MATCH('2) Room configuration'!I708,Table1[TMS],0)),\"\")","v":""},{"$f":"IFERROR(INDEX(Table1[Normal occupancy],MATCH(Table2[[#This Row],[New Room Type \n(TMS)]],Table1[TMS],0)),\"\")","v":""},null,null,null,null,"",{"$f":"IF(Table2[[#This Row],['# extra beds that fit in the room2]]<>0,LEFT(Table2[[#This Row],[New Room Type \n(TMS)]],6),\"\")","v":""},null,{"$f":"IF(Table2[[#This Row],['# extra beds that fit in the room]]<>Table2[[#This Row],['# extra beds that fit in the room2]],\"yes\",\"No\")","v":"No"}]
[null,{"$f":"IF(LEN(C709)>0,'1) Hotel information'!$C$4,\"\")","v":""},null,null,null,{"$f":"IFERROR(INDEX(Table1[Room description],MATCH('2) Room configuration'!D709,Table1[TMS],0)),\"\")","v":""},{"$f":"IFERROR(INDEX(Table1[Bedding],MATCH('2) Room configuration'!D709,Table1[TMS],0)),\"\")","v":""},null,null,{"$f":"IFERROR(INDEX(Table1[Room description],MATCH('2) Room configuration'!I709,Table1[TMS],0)),\"\")","v":""},{"$f":"IFERROR(INDEX(Table1[Bedding],MATCH('2) Room configuration'!I709,Table1[TMS],0)),\"\")","v":""},{"$f":"IFERROR(INDEX(Table1[Normal occupancy],MATCH(Table2[[#This Row],[New Room Type \n(TMS)]],Table1[TMS],0)),\"\")","v":""},null,null,null,null,"",{"$f":"IF(Table2[[#This Row],['# extra beds that fit in the room2]]<>0,LEFT(Table2[[#This Row],[New Room Type \n(TMS)]],6),\"\")","v":""},null,{"$f":"IF(Table2[[#This Row],['# extra beds that fit in the room]]<>Table2[[#This Row],['# extra beds that fit in the room2]],\"yes\",\"No\")","v":"No"}]
[null,{"$f":"IF(LEN(C710)>0,'1) Hotel information'!$C$4,\"\")","v":""},null,null,null,{"$f":"IFERROR(INDEX(Table1[Room description],MATCH('2) Room configuration'!D710,Table1[TMS],0)),\"\")","v":""},{"$f":"IFERROR(INDEX(Table1[Bedding],MATCH('2) Room configuration'!D710,Table1[TMS],0)),\"\")","v":""},null,null,{"$f":"IFERROR(INDEX(Table1[Room description],MATCH('2) Room configuration'!I710,Table1[TMS],0)),\"\")","v":""},{"$f":"IFERROR(INDEX(Table1[Bedding],MATCH('2) Room configuration'!I710,Table1[TMS],0)),\"\")","v":""},{"$f":"IFERROR(INDEX(Table1[Normal occupancy],MATCH(Table2[[#This Row],[New Room Type \n(TMS)]],Table1[TMS],0)),\"\")","v":""},null,null,null,null,"",{"$f":"IF(Table2[[#This Row],['# extra beds that fit in the room2]]<>0,LEFT(Table2[[#This Row],[New Room Type \n(TMS)]],6),\"\")","v":""},null,{"$f":"IF(Table2[[#This Row],['# extra beds that fit in the room]]<>Table2[[#This Row],['# extra beds that fit in the room2]],\"yes\",\"No\")","v":"No"}]
[null,{"$f":"IF(LEN(C711)>0,'1) Hotel information'!$C$4,\"\")","v":""},null,null,null,{"$f":"IFERROR(INDEX(Table1[Room description],MATCH('2) Room configuration'!D711,Table1[TMS],0)),\"\")","v":""},{"$f":"IFERROR(INDEX(Table1[Bedding],MATCH('2) Room configuration'!D711,Table1[TMS],0)),\"\")","v":""},null,null,{"$f":"IFERROR(INDEX(Table1[Room description],MATCH('2) Room configuration'!I711,Table1[TMS],0)),\"\")","v":""},{"$f":"IFERROR(INDEX(Table1[Bedding],MATCH('2) Room configuration'!I711,Table1[TMS],0)),\"\")","v":""},{"$f":"IFERROR(INDEX(Table1[Normal occupancy],MATCH(Table2[[#This Row],[New Room Type \n(TMS)]],Table1[TMS],0)),\"\")","v":""},null,null,null,null,"",{"$f":"IF(Table2[[#This Row],['# extra beds that fit in the room2]]<>0,LEFT(Table2[[#This Row],[New Room Type \n(TMS)]],6),\"\")","v":""},null,{"$f":"IF(Table2[[#This Row],['# extra beds that fit in the room]]<>Table2[[#This Row],['# extra beds that fit in the room2]],\"yes\",\"No\")","v":"No"}]
[null,{"$f":"IF(LEN(C712)>0,'1) Hotel information'!$C$4,\"\")","v":""},null,null,null,{"$f":"IFERROR(INDEX(Table1[Room description],MATCH('2) Room configuration'!D712,Table1[TMS],0)),\"\")","v":""},{"$f":"IFERROR(INDEX(Table1[Bedding],MATCH('2) Room configuration'!D712,Table1[TMS],0)),\"\")","v":""},null,null,{"$f":"IFERROR(INDEX(Table1[Room description],MATCH('2) Room configuration'!I712,Table1[TMS],0)),\"\")","v":""},{"$f":"IFERROR(INDEX(Table1[Bedding],MATCH('2) Room configuration'!I712,Table1[TMS],0)),\"\")","v":""},{"$f":"IFERROR(INDEX(Table1[Normal occupancy],MATCH(Table2[[#This Row],[New Room Type \n(TMS)]],Table1[TMS],0)),\"\")","v":""},null,null,null,null,"",{"$f":"IF(Table2[[#This Row],['# extra beds that fit in the room2]]<>0,LEFT(Table2[[#This Row],[New Room Type \n(TMS)]],6),\"\")","v":""},null,{"$f":"IF(Table2[[#This Row],['# extra beds that fit in the room]]<>Table2[[#This Row],['# extra beds that fit in the room2]],\"yes\",\"No\")","v":"No"}]
[null,{"$f":"IF(LEN(C713)>0,'1) Hotel information'!$C$4,\"\")","v":""},null,null,null,{"$f":"IFERROR(INDEX(Table1[Room description],MATCH('2) Room configuration'!D713,Table1[TMS],0)),\"\")","v":""},{"$f":"IFERROR(INDEX(Table1[Bedding],MATCH('2) Room configuration'!D713,Table1[TMS],0)),\"\")","v":""},null,null,{"$f":"IFERROR(INDEX(Table1[Room description],MATCH('2) Room configuration'!I713,Table1[TMS],0)),\"\")","v":""},{"$f":"IFERROR(INDEX(Table1[Bedding],MATCH('2) Room configuration'!I713,Table1[TMS],0)),\"\")","v":""},{"$f":"IFERROR(INDEX(Table1[Normal occupancy],MATCH(Table2[[#This Row],[New Room Type \n(TMS)]],Table1[TMS],0)),\"\")","v":""},null,null,null,null,"",{"$f":"IF(Table2[[#This Row],['# extra beds that fit in the room2]]<>0,LEFT(Table2[[#This Row],[New Room Type \n(TMS)]],6),\"\")","v":""},null,{"$f":"IF(Table2[[#This Row],['# extra beds that fit in the room]]<>Table2[[#This Row],['# extra beds that fit in the room2]],\"yes\",\"No\")","v":"No"}]
[null,{"$f":"IF(LEN(C714)>0,'1) Hotel information'!$C$4,\"\")","v":""},null,null,null,{"$f":"IFERROR(INDEX(Table1[Room description],MATCH('2) Room configuration'!D714,Table1[TMS],0)),\"\")","v":""},{"$f":"IFERROR(INDEX(Table1[Bedding],MATCH('2) Room configuration'!D714,Table1[TMS],0)),\"\")","v":""},null,null,{"$f":"IFERROR(INDEX(Table1[Room description],MATCH('2) Room configuration'!I714,Table1[TMS],0)),\"\")","v":""},{"$f":"IFERROR(INDEX(Table1[Bedding],MATCH('2) Room configuration'!I714,Table1[TMS],0)),\"\")","v":""},{"$f":"IFERROR(INDEX(Table1[Normal occupancy],MATCH(Table2[[#This Row],[New Room Type \n(TMS)]],Table1[TMS],0)),\"\")","v":""},null,null,null,null,"",{"$f":"IF(Table2[[#This Row],['# extra beds that fit in the room2]]<>0,LEFT(Table2[[#This Row],[New Room Type \n(TMS)]],6),\"\")","v":""},null,{"$f":"IF(Table2[[#This Row],['# extra beds that fit in the room]]<>Table2[[#This Row],['# extra beds that fit in the room2]],\"yes\",\"No\")","v":"No"}]
[null,{"$f":"IF(LEN(C715)>0,'1) Hotel information'!$C$4,\"\")","v":""},null,null,null,{"$f":"IFERROR(INDEX(Table1[Room description],MATCH('2) Room configuration'!D715,Table1[TMS],0)),\"\")","v":""},{"$f":"IFERROR(INDEX(Table1[Bedding],MATCH('2) Room configuration'!D715,Table1[TMS],0)),\"\")","v":""},null,null,{"$f":"IFERROR(INDEX(Table1[Room description],MATCH('2) Room configuration'!I715,Table1[TMS],0)),\"\")","v":""},{"$f":"IFERROR(INDEX(Table1[Bedding],MATCH('2) Room configuration'!I715,Table1[TMS],0)),\"\")","v":""},{"$f":"IFERROR(INDEX(Table1[Normal occupancy],MATCH(Table2[[#This Row],[New Room Type \n(TMS)]],Table1[TMS],0)),\"\")","v":""},null,null,null,null,"",{"$f":"IF(Table2[[#This Row],['# extra beds that fit in the room2]]<>0,LEFT(Table2[[#This Row],[New Room Type \n(TMS)]],6),\"\")","v":""},null,{"$f":"IF(Table2[[#This Row],['# extra beds that fit in the room]]<>Table2[[#This Row],['# extra beds that fit in the room2]],\"yes\",\"No\")","v":"No"}]
[null,{"$f":"IF(LEN(C716)>0,'1) Hotel information'!$C$4,\"\")","v":""},null,null,null,{"$f":"IFERROR(INDEX(Table1[Room description],MATCH('2) Room configuration'!D716,Table1[TMS],0)),\"\")","v":""},{"$f":"IFERROR(INDEX(Table1[Bedding],MATCH('2) Room configuration'!D716,Table1[TMS],0)),\"\")","v":""},null,null,{"$f":"IFERROR(INDEX(Table1[Room description],MATCH('2) Room configuration'!I716,Table1[TMS],0)),\"\")","v":""},{"$f":"IFERROR(INDEX(Table1[Bedding],MATCH('2) Room configuration'!I716,Table1[TMS],0)),\"\")","v":""},{"$f":"IFERROR(INDEX(Table1[Normal occupancy],MATCH(Table2[[#This Row],[New Room Type \n(TMS)]],Table1[TMS],0)),\"\")","v":""},null,null,null,null,{"$f":"IF(LEN(C716)>0,IF(D716=I716,\"No\",\"Yes\"),\"\")","v":""},{"$f":"IF(Table2[[#This Row],['# extra beds that fit in the room2]]<>0,LEFT(Table2[[#This Row],[New Room Type \n(TMS)]],6),\"\")","v":""},null,{"$f":"IF(Table2[[#This Row],['# extra beds that fit in the room]]<>Table2[[#This Row],['# extra beds that fit in the room2]],\"yes\",\"No\")","v":"No"}]
[null,{"$f":"IF(LEN(C717)>0,'1) Hotel information'!$C$4,\"\")","v":""},null,null,null,{"$f":"IFERROR(INDEX(Table1[Room description],MATCH('2) Room configuration'!D717,Table1[TMS],0)),\"\")","v":""},{"$f":"IFERROR(INDEX(Table1[Bedding],MATCH('2) Room configuration'!D717,Table1[TMS],0)),\"\")","v":""},null,null,{"$f":"IFERROR(INDEX(Table1[Room description],MATCH('2) Room configuration'!I717,Table1[TMS],0)),\"\")","v":""},{"$f":"IFERROR(INDEX(Table1[Bedding],MATCH('2) Room configuration'!I717,Table1[TMS],0)),\"\")","v":""},{"$f":"IFERROR(INDEX(Table1[Normal occupancy],MATCH(Table2[[#This Row],[New Room Type \n(TMS)]],Table1[TMS],0)),\"\")","v":""},null,null,null,null,"",{"$f":"IF(Table2[[#This Row],['# extra beds that fit in the room2]]<>0,LEFT(Table2[[#This Row],[New Room Type \n(TMS)]],6),\"\")","v":""},null,{"$f":"IF(Table2[[#This Row],['# extra beds that fit in the room]]<>Table2[[#This Row],['# extra beds that fit in the room2]],\"yes\",\"No\")","v":"No"}]
[null,{"$f":"IF(LEN(C718)>0,'1) Hotel information'!$C$4,\"\")","v":""},null,null,null,{"$f":"IFERROR(INDEX(Table1[Room description],MATCH('2) Room configuration'!D718,Table1[TMS],0)),\"\")","v":""},{"$f":"IFERROR(INDEX(Table1[Bedding],MATCH('2) Room configuration'!D718,Table1[TMS],0)),\"\")","v":""},null,null,{"$f":"IFERROR(INDEX(Table1[Room description],MATCH('2) Room configuration'!I718,Table1[TMS],0)),\"\")","v":""},{"$f":"IFERROR(INDEX(Table1[Bedding],MATCH('2) Room configuration'!I718,Table1[TMS],0)),\"\")","v":""},{"$f":"IFERROR(INDEX(Table1[Normal occupancy],MATCH(Table2[[#This Row],[New Room Type \n(TMS)]],Table1[TMS],0)),\"\")","v":""},null,null,null,null,"",{"$f":"IF(Table2[[#This Row],['# extra beds that fit in the room2]]<>0,LEFT(Table2[[#This Row],[New Room Type \n(TMS)]],6),\"\")","v":""},null,{"$f":"IF(Table2[[#This Row],['# extra beds that fit in the room]]<>Table2[[#This Row],['# extra beds that fit in the room2]],\"yes\",\"No\")","v":"No"}]
[null,{"$f":"IF(LEN(C719)>0,'1) Hotel information'!$C$4,\"\")","v":""},null,null,null,{"$f":"IFERROR(INDEX(Table1[Room description],MATCH('2) Room configuration'!D719,Table1[TMS],0)),\"\")","v":""},{"$f":"IFERROR(INDEX(Table1[Bedding],MATCH('2) Room configuration'!D719,Table1[TMS],0)),\"\")","v":""},null,null,{"$f":"IFERROR(INDEX(Table1[Room description],MATCH('2) Room configuration'!I719,Table1[TMS],0)),\"\")","v":""},{"$f":"IFERROR(INDEX(Table1[Bedding],MATCH('2) Room configuration'!I719,Table1[TMS],0)),\"\")","v":""},{"$f":"IFERROR(INDEX(Table1[Normal occupancy],MATCH(Table2[[#This Row],[New Room Type \n(TMS)]],Table1[TMS],0)),\"\")","v":""},null,null,null,null,"",{"$f":"IF(Table2[[#This Row],['# extra beds that fit in the room2]]<>0,LEFT(Table2[[#This Row],[New Room Type \n(TMS)]],6),\"\")","v":""},null,{"$f":"IF(Table2[[#This Row],['# extra beds that fit in the room]]<>Table2[[#This Row],['# extra beds that fit in the room2]],\"yes\",\"No\")","v":"No"}]
[null,{"$f":"IF(LEN(C720)>0,'1) Hotel information'!$C$4,\"\")","v":""},null,null,null,{"$f":"IFERROR(INDEX(Table1[Room description],MATCH('2) Room configuration'!D720,Table1[TMS],0)),\"\")","v":""},{"$f":"IFERROR(INDEX(Table1[Bedding],MATCH('2) Room configuration'!D720,Table1[TMS],0)),\"\")","v":""},null,null,{"$f":"IFERROR(INDEX(Table1[Room description],MATCH('2) Room configuration'!I720,Table1[TMS],0)),\"\")","v":""},{"$f":"IFERROR(INDEX(Table1[Bedding],MATCH('2) Room configuration'!I720,Table1[TMS],0)),\"\")","v":""},{"$f":"IFERROR(INDEX(Table1[Normal occupancy],MATCH(Table2[[#This Row],[New Room Type \n(TMS)]],Table1[TMS],0)),\"\")","v":""},null,null,null,null,"",{"$f":"IF(Table2[[#This Row],['# extra beds that fit in the room2]]<>0,LEFT(Table2[[#This Row],[New Room Type \n(TMS)]],6),\"\")","v":""},null,{"$f":"IF(Table2[[#This Row],['# extra beds that fit in the room]]<>Table2[[#This Row],['# extra beds that fit in the room2]],\"yes\",\"No\")","v":"No"}]
[null,{"$f":"IF(LEN(C721)>0,'1) Hotel information'!$C$4,\"\")","v":""},null,null,null,{"$f":"IFERROR(INDEX(Table1[Room description],MATCH('2) Room configuration'!D721,Table1[TMS],0)),\"\")","v":""},{"$f":"IFERROR(INDEX(Table1[Bedding],MATCH('2) Room configuration'!D721,Table1[TMS],0)),\"\")","v":""},null,null,{"$f":"IFERROR(INDEX(Table1[Room description],MATCH('2) Room configuration'!I721,Table1[TMS],0)),\"\")","v":""},{"$f":"IFERROR(INDEX(Table1[Bedding],MATCH('2) Room configuration'!I721,Table1[TMS],0)),\"\")","v":""},{"$f":"IFERROR(INDEX(Table1[Normal occupancy],MATCH(Table2[[#This Row],[New Room Type \n(TMS)]],Table1[TMS],0)),\"\")","v":""},null,null,null,null,"",{"$f":"IF(Table2[[#This Row],['# extra beds that fit in the room2]]<>0,LEFT(Table2[[#This Row],[New Room Type \n(TMS)]],6),\"\")","v":""},null,{"$f":"IF(Table2[[#This Row],['# extra beds that fit in the room]]<>Table2[[#This Row],['# extra beds that fit in the room2]],\"yes\",\"No\")","v":"No"}]
[null,{"$f":"IF(LEN(C722)>0,'1) Hotel information'!$C$4,\"\")","v":""},null,null,null,{"$f":"IFERROR(INDEX(Table1[Room description],MATCH('2) Room configuration'!D722,Table1[TMS],0)),\"\")","v":""},{"$f":"IFERROR(INDEX(Table1[Bedding],MATCH('2) Room configuration'!D722,Table1[TMS],0)),\"\")","v":""},null,null,{"$f":"IFERROR(INDEX(Table1[Room description],MATCH('2) Room configuration'!I722,Table1[TMS],0)),\"\")","v":""},{"$f":"IFERROR(INDEX(Table1[Bedding],MATCH('2) Room configuration'!I722,Table1[TMS],0)),\"\")","v":""},{"$f":"IFERROR(INDEX(Table1[Normal occupancy],MATCH(Table2[[#This Row],[New Room Type \n(TMS)]],Table1[TMS],0)),\"\")","v":""},null,null,null,null,"",{"$f":"IF(Table2[[#This Row],['# extra beds that fit in the room2]]<>0,LEFT(Table2[[#This Row],[New Room Type \n(TMS)]],6),\"\")","v":""},null,{"$f":"IF(Table2[[#This Row],['# extra beds that fit in the room]]<>Table2[[#This Row],['# extra beds that fit in the room2]],\"yes\",\"No\")","v":"No"}]
[null,{"$f":"IF(LEN(C723)>0,'1) Hotel information'!$C$4,\"\")","v":""},null,null,null,{"$f":"IFERROR(INDEX(Table1[Room description],MATCH('2) Room configuration'!D723,Table1[TMS],0)),\"\")","v":""},{"$f":"IFERROR(INDEX(Table1[Bedding],MATCH('2) Room configuration'!D723,Table1[TMS],0)),\"\")","v":""},null,null,{"$f":"IFERROR(INDEX(Table1[Room description],MATCH('2) Room configuration'!I723,Table1[TMS],0)),\"\")","v":""},{"$f":"IFERROR(INDEX(Table1[Bedding],MATCH('2) Room configuration'!I723,Table1[TMS],0)),\"\")","v":""},{"$f":"IFERROR(INDEX(Table1[Normal occupancy],MATCH(Table2[[#This Row],[New Room Type \n(TMS)]],Table1[TMS],0)),\"\")","v":""},null,null,null,null,"",{"$f":"IF(Table2[[#This Row],['# extra beds that fit in the room2]]<>0,LEFT(Table2[[#This Row],[New Room Type \n(TMS)]],6),\"\")","v":""},null,{"$f":"IF(Table2[[#This Row],['# extra beds that fit in the room]]<>Table2[[#This Row],['# extra beds that fit in the room2]],\"yes\",\"No\")","v":"No"}]
[null,{"$f":"IF(LEN(C724)>0,'1) Hotel information'!$C$4,\"\")","v":""},null,null,null,{"$f":"IFERROR(INDEX(Table1[Room description],MATCH('2) Room configuration'!D724,Table1[TMS],0)),\"\")","v":""},null,null,null,null,null,null,null,null,null,null,null,null,null,{"$f":"IF(Table2[[#This Row],['# extra beds that fit in the room]]<>Table2[[#This Row],['# extra beds that fit in the room2]],\"yes\",\"No\")","v":"No"}]
[null,{"$f":"IF(LEN(C725)>0,'1) Hotel information'!$C$4,\"\")","v":""},null,null,4,{"$f":"IFERROR(INDEX(Table1[Room description],MATCH('2) Room configuration'!D725,Table1[TMS],0)),\"\")","v":""},{"$f":"IFERROR(INDEX(Table1[Bedding],MATCH('2) Room configuration'!D158,Table1[TMS],0)),\"\")","v":""},null,null,{"$f":"IFERROR(INDEX(Table1[Room description],MATCH('2) Room configuration'!I158,Table1[TMS],0)),\"\")","v":""},{"$f":"IFERROR(INDEX(Table1[Bedding],MATCH('2) Room configuration'!I158,Table1[TMS],0)),\"\")","v":""},{"$f":"IFERROR(INDEX(Table1[Normal occupancy],MATCH(Table2[[#This Row],[New Room Type \n(TMS)]],Table1[TMS],0)),\"\")","v":""},null,null,null,null,{"$f":"IF(LEN(C725)>0,IF(D725=I725,\"No\",\"Yes\"),\"\")","v":""},{"$f":"IF(Table2[[#This Row],['# extra beds that fit in the room2]]<>0,LEFT(Table2[[#This Row],[New Room Type \n(TMS)]],6),\"\")","v":""},null,{"$f":"IF(Table2[[#This Row],['# extra beds that fit in the room]]<>Table2[[#This Row],['# extra beds that fit in the room2]],\"yes\",\"No\")","v":"No"}]
[null,{"$f":"IF(LEN(C726)>0,'1) Hotel information'!$C$4,\"\")","v":""},null,null,null,{"$f":"IFERROR(INDEX(Table1[Room description],MATCH('2) Room configuration'!D726,Table1[TMS],0)),\"\")","v":""},null,null,null,null,null,null,null,null,null,null,null,null,null,{"$f":"IF(Table2[[#This Row],['# extra beds that fit in the room]]<>Table2[[#This Row],['# extra beds that fit in the room2]],\"yes\",\"No\")","v":"No"}]
[null,{"$f":"IF(LEN(C727)>0,'1) Hotel information'!$C$4,\"\")","v":""},null,null,null,{"$f":"IFERROR(INDEX(Table1[Room description],MATCH('2) Room configuration'!D727,Table1[TMS],0)),\"\")","v":""},{"$f":"IFERROR(INDEX(Table1[Bedding],MATCH('2) Room configuration'!D160,Table1[TMS],0)),\"\")","v":""},null,null,{"$f":"IFERROR(INDEX(Table1[Room description],MATCH('2) Room configuration'!I160,Table1[TMS],0)),\"\")","v":""},{"$f":"IFERROR(INDEX(Table1[Bedding],MATCH('2) Room configuration'!I160,Table1[TMS],0)),\"\")","v":""},{"$f":"IFERROR(INDEX(Table1[Normal occupancy],MATCH(Table2[[#This Row],[New Room Type \n(TMS)]],Table1[TMS],0)),\"\")","v":""},null,null,null,null,{"$f":"IF(LEN(C727)>0,IF(D727=I727,\"No\",\"Yes\"),\"\")","v":""},{"$f":"IF(Table2[[#This Row],['# extra beds that fit in the room2]]<>0,LEFT(Table2[[#This Row],[New Room Type \n(TMS)]],6),\"\")","v":""},null,{"$f":"IF(Table2[[#This Row],['# extra beds that fit in the room]]<>Table2[[#This Row],['# extra beds that fit in the room2]],\"yes\",\"No\")","v":"No"}]
[null,{"$f":"IF(LEN(C728)>0,'1) Hotel information'!$C$4,\"\")","v":""},null,null,null,{"$f":"IFERROR(INDEX(Table1[Room description],MATCH('2) Room configuration'!D728,Table1[TMS],0)),\"\")","v":""},{"$f":"IFERROR(INDEX(Table1[Bedding],MATCH('2) Room configuration'!D161,Table1[TMS],0)),\"\")","v":""},null,null,{"$f":"IFERROR(INDEX(Table1[Room description],MATCH('2) Room configuration'!I161,Table1[TMS],0)),\"\")","v":""},{"$f":"IFERROR(INDEX(Table1[Bedding],MATCH('2) Room configuration'!I161,Table1[TMS],0)),\"\")","v":""},{"$f":"IFERROR(INDEX(Table1[Normal occupancy],MATCH(Table2[[#This Row],[New Room Type \n(TMS)]],Table1[TMS],0)),\"\")","v":""},null,null,null,null,"",{"$f":"IF(Table2[[#This Row],['# extra beds that fit in the room2]]<>0,LEFT(Table2[[#This Row],[New Room Type \n(TMS)]],6),\"\")","v":""},null,{"$f":"IF(Table2[[#This Row],['# extra beds that fit in the room]]<>Table2[[#This Row],['# extra beds that fit in the room2]],\"yes\",\"No\")","v":"No"}]
[null,{"$f":"IF(LEN(C729)>0,'1) Hotel information'!$C$4,\"\")","v":""},null,null,null,{"$f":"IFERROR(INDEX(Table1[Room description],MATCH('2) Room configuration'!D729,Table1[TMS],0)),\"\")","v":""},{"$f":"IFERROR(INDEX(Table1[Bedding],MATCH('2) Room configuration'!D162,Table1[TMS],0)),\"\")","v":""},null,null,{"$f":"IFERROR(INDEX(Table1[Room description],MATCH('2) Room configuration'!I162,Table1[TMS],0)),\"\")","v":""},{"$f":"IFERROR(INDEX(Table1[Bedding],MATCH('2) Room configuration'!I162,Table1[TMS],0)),\"\")","v":""},{"$f":"IFERROR(INDEX(Table1[Normal occupancy],MATCH(Table2[[#This Row],[New Room Type \n(TMS)]],Table1[TMS],0)),\"\")","v":""},null,null,null,null,"",{"$f":"IF(Table2[[#This Row],['# extra beds that fit in the room2]]<>0,LEFT(Table2[[#This Row],[New Room Type \n(TMS)]],6),\"\")","v":""},null,{"$f":"IF(Table2[[#This Row],['# extra beds that fit in the room]]<>Table2[[#This Row],['# extra beds that fit in the room2]],\"yes\",\"No\")","v":"No"}]
[null,{"$f":"IF(LEN(C730)>0,'1) Hotel information'!$C$4,\"\")","v":""},null,null,null,{"$f":"IFERROR(INDEX(Table1[Room description],MATCH('2) Room configuration'!D730,Table1[TMS],0)),\"\")","v":""},{"$f":"IFERROR(INDEX(Table1[Bedding],MATCH('2) Room configuration'!D163,Table1[TMS],0)),\"\")","v":""},null,null,{"$f":"IFERROR(INDEX(Table1[Room description],MATCH('2) Room configuration'!I163,Table1[TMS],0)),\"\")","v":""},{"$f":"IFERROR(INDEX(Table1[Bedding],MATCH('2) Room configuration'!I163,Table1[TMS],0)),\"\")","v":""},{"$f":"IFERROR(INDEX(Table1[Normal occupancy],MATCH(Table2[[#This Row],[New Room Type \n(TMS)]],Table1[TMS],0)),\"\")","v":""},null,null,null,null,"",{"$f":"IF(Table2[[#This Row],['# extra beds that fit in the room2]]<>0,LEFT(Table2[[#This Row],[New Room Type \n(TMS)]],6),\"\")","v":""},null,{"$f":"IF(Table2[[#This Row],['# extra beds that fit in the room]]<>Table2[[#This Row],['# extra beds that fit in the room2]],\"yes\",\"No\")","v":"No"}]
[null,{"$f":"IF(LEN(C731)>0,'1) Hotel information'!$C$4,\"\")","v":""},null,null,null,{"$f":"IFERROR(INDEX(Table1[Room description],MATCH('2) Room configuration'!D731,Table1[TMS],0)),\"\")","v":""},{"$f":"IFERROR(INDEX(Table1[Bedding],MATCH('2) Room configuration'!D164,Table1[TMS],0)),\"\")","v":""},null,null,{"$f":"IFERROR(INDEX(Table1[Room description],MATCH('2) Room configuration'!I164,Table1[TMS],0)),\"\")","v":""},{"$f":"IFERROR(INDEX(Table1[Bedding],MATCH('2) Room configuration'!I164,Table1[TMS],0)),\"\")","v":""},{"$f":"IFERROR(INDEX(Table1[Normal occupancy],MATCH(Table2[[#This Row],[New Room Type \n(TMS)]],Table1[TMS],0)),\"\")","v":""},null,null,null,null,"",{"$f":"IF(Table2[[#This Row],['# extra beds that fit in the room2]]<>0,LEFT(Table2[[#This Row],[New Room Type \n(TMS)]],6),\"\")","v":""},null,{"$f":"IF(Table2[[#This Row],['# extra beds that fit in the room]]<>Table2[[#This Row],['# extra beds that fit in the room2]],\"yes\",\"No\")","v":"No"}]
[null,{"$f":"IF(LEN(C732)>0,'1) Hotel information'!$C$4,\"\")","v":""},null,null,null,{"$f":"IFERROR(INDEX(Table1[Room description],MATCH('2) Room configuration'!D732,Table1[TMS],0)),\"\")","v":""},{"$f":"IFERROR(INDEX(Table1[Bedding],MATCH('2) Room configuration'!D165,Table1[TMS],0)),\"\")","v":""},null,null,{"$f":"IFERROR(INDEX(Table1[Room description],MATCH('2) Room configuration'!I165,Table1[TMS],0)),\"\")","v":""},{"$f":"IFERROR(INDEX(Table1[Bedding],MATCH('2) Room configuration'!I165,Table1[TMS],0)),\"\")","v":""},{"$f":"IFERROR(INDEX(Table1[Normal occupancy],MATCH(Table2[[#This Row],[New Room Type \n(TMS)]],Table1[TMS],0)),\"\")","v":""},null,null,null,null,"",{"$f":"IF(Table2[[#This Row],['# extra beds that fit in the room2]]<>0,LEFT(Table2[[#This Row],[New Room Type \n(TMS)]],6),\"\")","v":""},null,{"$f":"IF(Table2[[#This Row],['# extra beds that fit in the room]]<>Table2[[#This Row],['# extra beds that fit in the room2]],\"yes\",\"No\")","v":"No"}]
[null,{"$f":"IF(LEN(C733)>0,'1) Hotel information'!$C$4,\"\")","v":""},null,null,null,{"$f":"IFERROR(INDEX(Table1[Room description],MATCH('2) Room configuration'!D733,Table1[TMS],0)),\"\")","v":""},{"$f":"IFERROR(INDEX(Table1[Bedding],MATCH('2) Room configuration'!D166,Table1[TMS],0)),\"\")","v":""},null,null,{"$f":"IFERROR(INDEX(Table1[Room description],MATCH('2) Room configuration'!I166,Table1[TMS],0)),\"\")","v":""},{"$f":"IFERROR(INDEX(Table1[Bedding],MATCH('2) Room configuration'!I166,Table1[TMS],0)),\"\")","v":""},{"$f":"IFERROR(INDEX(Table1[Normal occupancy],MATCH(Table2[[#This Row],[New Room Type \n(TMS)]],Table1[TMS],0)),\"\")","v":""},null,null,null,null,"",{"$f":"IF(Table2[[#This Row],['# extra beds that fit in the room2]]<>0,LEFT(Table2[[#This Row],[New Room Type \n(TMS)]],6),\"\")","v":""},null,{"$f":"IF(Table2[[#This Row],['# extra beds that fit in the room]]<>Table2[[#This Row],['# extra beds that fit in the room2]],\"yes\",\"No\")","v":"No"}]
[null,{"$f":"IF(LEN(C734)>0,'1) Hotel information'!$C$4,\"\")","v":""},null,null,null,{"$f":"IFERROR(INDEX(Table1[Room description],MATCH('2) Room configuration'!D734,Table1[TMS],0)),\"\")","v":""},{"$f":"IFERROR(INDEX(Table1[Bedding],MATCH('2) Room configuration'!D167,Table1[TMS],0)),\"\")","v":""},null,null,{"$f":"IFERROR(INDEX(Table1[Room description],MATCH('2) Room configuration'!I167,Table1[TMS],0)),\"\")","v":""},{"$f":"IFERROR(INDEX(Table1[Bedding],MATCH('2) Room configuration'!I167,Table1[TMS],0)),\"\")","v":""},{"$f":"IFERROR(INDEX(Table1[Normal occupancy],MATCH(Table2[[#This Row],[New Room Type \n(TMS)]],Table1[TMS],0)),\"\")","v":""},null,null,null,null,"",{"$f":"IF(Table2[[#This Row],['# extra beds that fit in the room2]]<>0,LEFT(Table2[[#This Row],[New Room Type \n(TMS)]],6),\"\")","v":""},null,{"$f":"IF(Table2[[#This Row],['# extra beds that fit in the room]]<>Table2[[#This Row],['# extra beds that fit in the room2]],\"yes\",\"No\")","v":"No"}]
[null,{"$f":"IF(LEN(C735)>0,'1) Hotel information'!$C$4,\"\")","v":""},null,null,null,{"$f":"IFERROR(INDEX(Table1[Room description],MATCH('2) Room configuration'!D735,Table1[TMS],0)),\"\")","v":""},{"$f":"IFERROR(INDEX(Table1[Bedding],MATCH('2) Room configuration'!D168,Table1[TMS],0)),\"\")","v":""},null,null,{"$f":"IFERROR(INDEX(Table1[Room description],MATCH('2) Room configuration'!I168,Table1[TMS],0)),\"\")","v":""},{"$f":"IFERROR(INDEX(Table1[Bedding],MATCH('2) Room configuration'!I168,Table1[TMS],0)),\"\")","v":""},{"$f":"IFERROR(INDEX(Table1[Normal occupancy],MATCH(Table2[[#This Row],[New Room Type \n(TMS)]],Table1[TMS],0)),\"\")","v":""},null,null,null,null,"",{"$f":"IF(Table2[[#This Row],['# extra beds that fit in the room2]]<>0,LEFT(Table2[[#This Row],[New Room Type \n(TMS)]],6),\"\")","v":""},null,{"$f":"IF(Table2[[#This Row],['# extra beds that fit in the room]]<>Table2[[#This Row],['# extra beds that fit in the room2]],\"yes\",\"No\")","v":"No"}]
[null,{"$f":"IF(LEN(C736)>0,'1) Hotel information'!$C$4,\"\")","v":""},null,null,null,{"$f":"IFERROR(INDEX(Table1[Room description],MATCH('2) Room configuration'!D736,Table1[TMS],0)),\"\")","v":""},{"$f":"IFERROR(INDEX(Table1[Bedding],MATCH('2) Room configuration'!D169,Table1[TMS],0)),\"\")","v":""},null,null,{"$f":"IFERROR(INDEX(Table1[Room description],MATCH('2) Room configuration'!I169,Table1[TMS],0)),\"\")","v":""},{"$f":"IFERROR(INDEX(Table1[Bedding],MATCH('2) Room configuration'!I169,Table1[TMS],0)),\"\")","v":""},{"$f":"IFERROR(INDEX(Table1[Normal occupancy],MATCH(Table2[[#This Row],[New Room Type \n(TMS)]],Table1[TMS],0)),\"\")","v":""},null,null,null,null,"",{"$f":"IF(Table2[[#This Row],['# extra beds that fit in the room2]]<>0,LEFT(Table2[[#This Row],[New Room Type \n(TMS)]],6),\"\")","v":""},null,{"$f":"IF(Table2[[#This Row],['# extra beds that fit in the room]]<>Table2[[#This Row],['# extra beds that fit in the room2]],\"yes\",\"No\")","v":"No"}]
[null,{"$f":"IF(LEN(C737)>0,'1) Hotel information'!$C$4,\"\")","v":""},null,null,null,{"$f":"IFERROR(INDEX(Table1[Room description],MATCH('2) Room configuration'!D737,Table1[TMS],0)),\"\")","v":""},{"$f":"IFERROR(INDEX(Table1[Bedding],MATCH('2) Room configuration'!D170,Table1[TMS],0)),\"\")","v":""},null,null,{"$f":"IFERROR(INDEX(Table1[Room description],MATCH('2) Room configuration'!I170,Table1[TMS],0)),\"\")","v":""},{"$f":"IFERROR(INDEX(Table1[Bedding],MATCH('2) Room configuration'!I170,Table1[TMS],0)),\"\")","v":""},{"$f":"IFERROR(INDEX(Table1[Normal occupancy],MATCH(Table2[[#This Row],[New Room Type \n(TMS)]],Table1[TMS],0)),\"\")","v":""},null,null,null,null,"",{"$f":"IF(Table2[[#This Row],['# extra beds that fit in the room2]]<>0,LEFT(Table2[[#This Row],[New Room Type \n(TMS)]],6),\"\")","v":""},null,{"$f":"IF(Table2[[#This Row],['# extra beds that fit in the room]]<>Table2[[#This Row],['# extra beds that fit in the room2]],\"yes\",\"No\")","v":"No"}]
[null,{"$f":"IF(LEN(C738)>0,'1) Hotel information'!$C$4,\"\")","v":""},null,null,null,{"$f":"IFERROR(INDEX(Table1[Room description],MATCH('2) Room configuration'!D738,Table1[TMS],0)),\"\")","v":""},{"$f":"IFERROR(INDEX(Table1[Bedding],MATCH('2) Room configuration'!D171,Table1[TMS],0)),\"\")","v":""},null,null,{"$f":"IFERROR(INDEX(Table1[Room description],MATCH('2) Room configuration'!I171,Table1[TMS],0)),\"\")","v":""},{"$f":"IFERROR(INDEX(Table1[Bedding],MATCH('2) Room configuration'!I171,Table1[TMS],0)),\"\")","v":""},{"$f":"IFERROR(INDEX(Table1[Normal occupancy],MATCH(Table2[[#This Row],[New Room Type \n(TMS)]],Table1[TMS],0)),\"\")","v":""},null,null,null,null,"",{"$f":"IF(Table2[[#This Row],['# extra beds that fit in the room2]]<>0,LEFT(Table2[[#This Row],[New Room Type \n(TMS)]],6),\"\")","v":""},null,{"$f":"IF(Table2[[#This Row],['# extra beds that fit in the room]]<>Table2[[#This Row],['# extra beds that fit in the room2]],\"yes\",\"No\")","v":"No"}]
[null,{"$f":"IF(LEN(C739)>0,'1) Hotel information'!$C$4,\"\")","v":""},null,null,null,{"$f":"IFERROR(INDEX(Table1[Room description],MATCH('2) Room configuration'!D739,Table1[TMS],0)),\"\")","v":""},{"$f":"IFERROR(INDEX(Table1[Bedding],MATCH('2) Room configuration'!D172,Table1[TMS],0)),\"\")","v":""},null,null,{"$f":"IFERROR(INDEX(Table1[Room description],MATCH('2) Room configuration'!I172,Table1[TMS],0)),\"\")","v":""},{"$f":"IFERROR(INDEX(Table1[Bedding],MATCH('2) Room configuration'!I172,Table1[TMS],0)),\"\")","v":""},{"$f":"IFERROR(INDEX(Table1[Normal occupancy],MATCH(Table2[[#This Row],[New Room Type \n(TMS)]],Table1[TMS],0)),\"\")","v":""},null,null,null,null,"",{"$f":"IF(Table2[[#This Row],['# extra beds that fit in the room2]]<>0,LEFT(Table2[[#This Row],[New Room Type \n(TMS)]],6),\"\")","v":""},null,{"$f":"IF(Table2[[#This Row],['# extra beds that fit in the room]]<>Table2[[#This Row],['# extra beds that fit in the room2]],\"yes\",\"No\")","v":"No"}]
[null,{"$f":"IF(LEN(C740)>0,'1) Hotel information'!$C$4,\"\")","v":""},null,null,null,{"$f":"IFERROR(INDEX(Table1[Room description],MATCH('2) Room configuration'!D740,Table1[TMS],0)),\"\")","v":""},{"$f":"IFERROR(INDEX(Table1[Bedding],MATCH('2) Room configuration'!D173,Table1[TMS],0)),\"\")","v":""},null,null,{"$f":"IFERROR(INDEX(Table1[Room description],MATCH('2) Room configuration'!I173,Table1[TMS],0)),\"\")","v":""},{"$f":"IFERROR(INDEX(Table1[Bedding],MATCH('2) Room configuration'!I173,Table1[TMS],0)),\"\")","v":""},{"$f":"IFERROR(INDEX(Table1[Normal occupancy],MATCH(Table2[[#This Row],[New Room Type \n(TMS)]],Table1[TMS],0)),\"\")","v":""},null,null,null,null,"",{"$f":"IF(Table2[[#This Row],['# extra beds that fit in the room2]]<>0,LEFT(Table2[[#This Row],[New Room Type \n(TMS)]],6),\"\")","v":""},null,{"$f":"IF(Table2[[#This Row],['# extra beds that fit in the room]]<>Table2[[#This Row],['# extra beds that fit in the room2]],\"yes\",\"No\")","v":"No"}]
[null,{"$f":"IF(LEN(C741)>0,'1) Hotel information'!$C$4,\"\")","v":""},null,null,null,{"$f":"IFERROR(INDEX(Table1[Room description],MATCH('2) Room configuration'!D741,Table1[TMS],0)),\"\")","v":""},{"$f":"IFERROR(INDEX(Table1[Bedding],MATCH('2) Room configuration'!D174,Table1[TMS],0)),\"\")","v":""},null,null,{"$f":"IFERROR(INDEX(Table1[Room description],MATCH('2) Room configuration'!I174,Table1[TMS],0)),\"\")","v":""},{"$f":"IFERROR(INDEX(Table1[Bedding],MATCH('2) Room configuration'!I174,Table1[TMS],0)),\"\")","v":""},{"$f":"IFERROR(INDEX(Table1[Normal occupancy],MATCH(Table2[[#This Row],[New Room Type \n(TMS)]],Table1[TMS],0)),\"\")","v":""},null,null,null,null,"",{"$f":"IF(Table2[[#This Row],['# extra beds that fit in the room2]]<>0,LEFT(Table2[[#This Row],[New Room Type \n(TMS)]],6),\"\")","v":""},null,{"$f":"IF(Table2[[#This Row],['# extra beds that fit in the room]]<>Table2[[#This Row],['# extra beds that fit in the room2]],\"yes\",\"No\")","v":"No"}]
[null,{"$f":"IF(LEN(C742)>0,'1) Hotel information'!$C$4,\"\")","v":""},null,null,null,{"$f":"IFERROR(INDEX(Table1[Room description],MATCH('2) Room configuration'!D742,Table1[TMS],0)),\"\")","v":""},{"$f":"IFERROR(INDEX(Table1[Bedding],MATCH('2) Room configuration'!D175,Table1[TMS],0)),\"\")","v":""},null,null,{"$f":"IFERROR(INDEX(Table1[Room description],MATCH('2) Room configuration'!I175,Table1[TMS],0)),\"\")","v":""},{"$f":"IFERROR(INDEX(Table1[Bedding],MATCH('2) Room configuration'!I175,Table1[TMS],0)),\"\")","v":""},{"$f":"IFERROR(INDEX(Table1[Normal occupancy],MATCH(Table2[[#This Row],[New Room Type \n(TMS)]],Table1[TMS],0)),\"\")","v":""},null,null,null,null,"",{"$f":"IF(Table2[[#This Row],['# extra beds that fit in the room2]]<>0,LEFT(Table2[[#This Row],[New Room Type \n(TMS)]],6),\"\")","v":""},null,{"$f":"IF(Table2[[#This Row],['# extra beds that fit in the room]]<>Table2[[#This Row],['# extra beds that fit in the room2]],\"yes\",\"No\")","v":"No"}]
[null,{"$f":"IF(LEN(C743)>0,'1) Hotel information'!$C$4,\"\")","v":""},null,null,null,{"$f":"IFERROR(INDEX(Table1[Room description],MATCH('2) Room configuration'!D743,Table1[TMS],0)),\"\")","v":""},{"$f":"IFERROR(INDEX(Table1[Bedding],MATCH('2) Room configuration'!D176,Table1[TMS],0)),\"\")","v":""},null,null,{"$f":"IFERROR(INDEX(Table1[Room description],MATCH('2) Room configuration'!I176,Table1[TMS],0)),\"\")","v":""},{"$f":"IFERROR(INDEX(Table1[Bedding],MATCH('2) Room configuration'!I176,Table1[TMS],0)),\"\")","v":""},{"$f":"IFERROR(INDEX(Table1[Normal occupancy],MATCH(Table2[[#This Row],[New Room Type \n(TMS)]],Table1[TMS],0)),\"\")","v":""},null,null,null,null,"",{"$f":"IF(Table2[[#This Row],['# extra beds that fit in the room2]]<>0,LEFT(Table2[[#This Row],[New Room Type \n(TMS)]],6),\"\")","v":""},null,{"$f":"IF(Table2[[#This Row],['# extra beds that fit in the room]]<>Table2[[#This Row],['# extra beds that fit in the room2]],\"yes\",\"No\")","v":"No"}]
[null,{"$f":"IF(LEN(C744)>0,'1) Hotel information'!$C$4,\"\")","v":""},null,null,null,{"$f":"IFERROR(INDEX(Table1[Room description],MATCH('2) Room configuration'!D744,Table1[TMS],0)),\"\")","v":""},{"$f":"IFERROR(INDEX(Table1[Bedding],MATCH('2) Room configuration'!D177,Table1[TMS],0)),\"\")","v":""},null,null,{"$f":"IFERROR(INDEX(Table1[Room description],MATCH('2) Room configuration'!I177,Table1[TMS],0)),\"\")","v":""},{"$f":"IFERROR(INDEX(Table1[Bedding],MATCH('2) Room configuration'!I177,Table1[TMS],0)),\"\")","v":""},{"$f":"IFERROR(INDEX(Table1[Normal occupancy],MATCH(Table2[[#This Row],[New Room Type \n(TMS)]],Table1[TMS],0)),\"\")","v":""},null,null,null,null,"",{"$f":"IF(Table2[[#This Row],['# extra beds that fit in the room2]]<>0,LEFT(Table2[[#This Row],[New Room Type \n(TMS)]],6),\"\")","v":""},null,{"$f":"IF(Table2[[#This Row],['# extra beds that fit in the room]]<>Table2[[#This Row],['# extra beds that fit in the room2]],\"yes\",\"No\")","v":"No"}]
[null,{"$f":"IF(LEN(C745)>0,'1) Hotel information'!$C$4,\"\")","v":""},null,null,null,{"$f":"IFERROR(INDEX(Table1[Room description],MATCH('2) Room configuration'!D745,Table1[TMS],0)),\"\")","v":""},{"$f":"IFERROR(INDEX(Table1[Bedding],MATCH('2) Room configuration'!D178,Table1[TMS],0)),\"\")","v":""},null,null,{"$f":"IFERROR(INDEX(Table1[Room description],MATCH('2) Room configuration'!I178,Table1[TMS],0)),\"\")","v":""},{"$f":"IFERROR(INDEX(Table1[Bedding],MATCH('2) Room configuration'!I178,Table1[TMS],0)),\"\")","v":""},{"$f":"IFERROR(INDEX(Table1[Normal occupancy],MATCH(Table2[[#This Row],[New Room Type \n(TMS)]],Table1[TMS],0)),\"\")","v":""},null,null,null,null,"",{"$f":"IF(Table2[[#This Row],['# extra beds that fit in the room2]]<>0,LEFT(Table2[[#This Row],[New Room Type \n(TMS)]],6),\"\")","v":""},null,{"$f":"IF(Table2[[#This Row],['# extra beds that fit in the room]]<>Table2[[#This Row],['# extra beds that fit in the room2]],\"yes\",\"No\")","v":"No"}]
[null,{"$f":"IF(LEN(C746)>0,'1) Hotel information'!$C$4,\"\")","v":""},null,null,null,{"$f":"IFERROR(INDEX(Table1[Room description],MATCH('2) Room configuration'!D746,Table1[TMS],0)),\"\")","v":""},{"$f":"IFERROR(INDEX(Table1[Bedding],MATCH('2) Room configuration'!D179,Table1[TMS],0)),\"\")","v":""},null,null,{"$f":"IFERROR(INDEX(Table1[Room description],MATCH('2) Room configuration'!I179,Table1[TMS],0)),\"\")","v":""},{"$f":"IFERROR(INDEX(Table1[Bedding],MATCH('2) Room configuration'!I179,Table1[TMS],0)),\"\")","v":""},{"$f":"IFERROR(INDEX(Table1[Normal occupancy],MATCH(Table2[[#This Row],[New Room Type \n(TMS)]],Table1[TMS],0)),\"\")","v":""},null,null,null,null,"",{"$f":"IF(Table2[[#This Row],['# extra beds that fit in the room2]]<>0,LEFT(Table2[[#This Row],[New Room Type \n(TMS)]],6),\"\")","v":""},null,{"$f":"IF(Table2[[#This Row],['# extra beds that fit in the room]]<>Table2[[#This Row],['# extra beds that fit in the room2]],\"yes\",\"No\")","v":"No"}]
[null,{"$f":"IF(LEN(C747)>0,'1) Hotel information'!$C$4,\"\")","v":""},null,null,null,{"$f":"IFERROR(INDEX(Table1[Room description],MATCH('2) Room configuration'!D747,Table1[TMS],0)),\"\")","v":""},{"$f":"IFERROR(INDEX(Table1[Bedding],MATCH('2) Room configuration'!D180,Table1[TMS],0)),\"\")","v":""},null,null,{"$f":"IFERROR(INDEX(Table1[Room description],MATCH('2) Room configuration'!I180,Table1[TMS],0)),\"\")","v":""},{"$f":"IFERROR(INDEX(Table1[Bedding],MATCH('2) Room configuration'!I180,Table1[TMS],0)),\"\")","v":""},{"$f":"IFERROR(INDEX(Table1[Normal occupancy],MATCH(Table2[[#This Row],[New Room Type \n(TMS)]],Table1[TMS],0)),\"\")","v":""},null,null,null,null,"",{"$f":"IF(Table2[[#This Row],['# extra beds that fit in the room2]]<>0,LEFT(Table2[[#This Row],[New Room Type \n(TMS)]],6),\"\")","v":""},null,{"$f":"IF(Table2[[#This Row],['# extra beds that fit in the room]]<>Table2[[#This Row],['# extra beds that fit in the room2]],\"yes\",\"No\")","v":"No"}]
[null,{"$f":"IF(LEN(C748)>0,'1) Hotel information'!$C$4,\"\")","v":""},null,null,null,{"$f":"IFERROR(INDEX(Table1[Room description],MATCH('2) Room configuration'!D748,Table1[TMS],0)),\"\")","v":""},{"$f":"IFERROR(INDEX(Table1[Bedding],MATCH('2) Room configuration'!D181,Table1[TMS],0)),\"\")","v":""},null,null,{"$f":"IFERROR(INDEX(Table1[Room description],MATCH('2) Room configuration'!I181,Table1[TMS],0)),\"\")","v":""},{"$f":"IFERROR(INDEX(Table1[Bedding],MATCH('2) Room configuration'!I181,Table1[TMS],0)),\"\")","v":""},{"$f":"IFERROR(INDEX(Table1[Normal occupancy],MATCH(Table2[[#This Row],[New Room Type \n(TMS)]],Table1[TMS],0)),\"\")","v":""},null,null,null,null,"",{"$f":"IF(Table2[[#This Row],['# extra beds that fit in the room2]]<>0,LEFT(Table2[[#This Row],[New Room Type \n(TMS)]],6),\"\")","v":""},null,{"$f":"IF(Table2[[#This Row],['# extra beds that fit in the room]]<>Table2[[#This Row],['# extra beds that fit in the room2]],\"yes\",\"No\")","v":"No"}]
[null,{"$f":"IF(LEN(C749)>0,'1) Hotel information'!$C$4,\"\")","v":""},null,null,null,{"$f":"IFERROR(INDEX(Table1[Room description],MATCH('2) Room configuration'!D749,Table1[TMS],0)),\"\")","v":""},{"$f":"IFERROR(INDEX(Table1[Bedding],MATCH('2) Room configuration'!D182,Table1[TMS],0)),\"\")","v":""},null,null,{"$f":"IFERROR(INDEX(Table1[Room description],MATCH('2) Room configuration'!I182,Table1[TMS],0)),\"\")","v":""},{"$f":"IFERROR(INDEX(Table1[Bedding],MATCH('2) Room configuration'!I182,Table1[TMS],0)),\"\")","v":""},{"$f":"IFERROR(INDEX(Table1[Normal occupancy],MATCH(Table2[[#This Row],[New Room Type \n(TMS)]],Table1[TMS],0)),\"\")","v":""},null,null,null,null,"",{"$f":"IF(Table2[[#This Row],['# extra beds that fit in the room2]]<>0,LEFT(Table2[[#This Row],[New Room Type \n(TMS)]],6),\"\")","v":""},null,{"$f":"IF(Table2[[#This Row],['# extra beds that fit in the room]]<>Table2[[#This Row],['# extra beds that fit in the room2]],\"yes\",\"No\")","v":"No"}]
[null,{"$f":"IF(LEN(C750)>0,'1) Hotel information'!$C$4,\"\")","v":""},null,null,null,{"$f":"IFERROR(INDEX(Table1[Room description],MATCH('2) Room configuration'!D750,Table1[TMS],0)),\"\")","v":""},{"$f":"IFERROR(INDEX(Table1[Bedding],MATCH('2) Room configuration'!D183,Table1[TMS],0)),\"\")","v":""},null,null,{"$f":"IFERROR(INDEX(Table1[Room description],MATCH('2) Room configuration'!I183,Table1[TMS],0)),\"\")","v":""},{"$f":"IFERROR(INDEX(Table1[Bedding],MATCH('2) Room configuration'!I183,Table1[TMS],0)),\"\")","v":""},{"$f":"IFERROR(INDEX(Table1[Normal occupancy],MATCH(Table2[[#This Row],[New Room Type \n(TMS)]],Table1[TMS],0)),\"\")","v":""},null,null,null,null,"",{"$f":"IF(Table2[[#This Row],['# extra beds that fit in the room2]]<>0,LEFT(Table2[[#This Row],[New Room Type \n(TMS)]],6),\"\")","v":""},null,{"$f":"IF(Table2[[#This Row],['# extra beds that fit in the room]]<>Table2[[#This Row],['# extra beds that fit in the room2]],\"yes\",\"No\")","v":"No"}]
[null,{"$f":"IF(LEN(C751)>0,'1) Hotel information'!$C$4,\"\")","v":""},null,null,null,{"$f":"IFERROR(INDEX(Table1[Room description],MATCH('2) Room configuration'!D751,Table1[TMS],0)),\"\")","v":""},{"$f":"IFERROR(INDEX(Table1[Bedding],MATCH('2) Room configuration'!D184,Table1[TMS],0)),\"\")","v":""},null,null,{"$f":"IFERROR(INDEX(Table1[Room description],MATCH('2) Room configuration'!I184,Table1[TMS],0)),\"\")","v":""},{"$f":"IFERROR(INDEX(Table1[Bedding],MATCH('2) Room configuration'!I184,Table1[TMS],0)),\"\")","v":""},{"$f":"IFERROR(INDEX(Table1[Normal occupancy],MATCH(Table2[[#This Row],[New Room Type \n(TMS)]],Table1[TMS],0)),\"\")","v":""},null,null,null,null,"",{"$f":"IF(Table2[[#This Row],['# extra beds that fit in the room2]]<>0,LEFT(Table2[[#This Row],[New Room Type \n(TMS)]],6),\"\")","v":""},null,{"$f":"IF(Table2[[#This Row],['# extra beds that fit in the room]]<>Table2[[#This Row],['# extra beds that fit in the room2]],\"yes\",\"No\")","v":"No"}]
[null,{"$f":"IF(LEN(C752)>0,'1) Hotel information'!$C$4,\"\")","v":""},null,null,null,{"$f":"IFERROR(INDEX(Table1[Room description],MATCH('2) Room configuration'!D752,Table1[TMS],0)),\"\")","v":""},{"$f":"IFERROR(INDEX(Table1[Bedding],MATCH('2) Room configuration'!D185,Table1[TMS],0)),\"\")","v":""},null,null,{"$f":"IFERROR(INDEX(Table1[Room description],MATCH('2) Room configuration'!I185,Table1[TMS],0)),\"\")","v":""},{"$f":"IFERROR(INDEX(Table1[Bedding],MATCH('2) Room configuration'!I185,Table1[TMS],0)),\"\")","v":""},{"$f":"IFERROR(INDEX(Table1[Normal occupancy],MATCH(Table2[[#This Row],[New Room Type \n(TMS)]],Table1[TMS],0)),\"\")","v":""},null,null,null,null,"",{"$f":"IF(Table2[[#This Row],['# extra beds that fit in the room2]]<>0,LEFT(Table2[[#This Row],[New Room Type \n(TMS)]],6),\"\")","v":""},null,{"$f":"IF(Table2[[#This Row],['# extra beds that fit in the room]]<>Table2[[#This Row],['# extra beds that fit in the room2]],\"yes\",\"No\")","v":"No"}]
[null,{"$f":"IF(LEN(C753)>0,'1) Hotel information'!$C$4,\"\")","v":""},null,null,null,{"$f":"IFERROR(INDEX(Table1[Room description],MATCH('2) Room configuration'!D753,Table1[TMS],0)),\"\")","v":""},{"$f":"IFERROR(INDEX(Table1[Bedding],MATCH('2) Room configuration'!D186,Table1[TMS],0)),\"\")","v":""},null,null,{"$f":"IFERROR(INDEX(Table1[Room description],MATCH('2) Room configuration'!I186,Table1[TMS],0)),\"\")","v":""},{"$f":"IFERROR(INDEX(Table1[Bedding],MATCH('2) Room configuration'!I186,Table1[TMS],0)),\"\")","v":""},{"$f":"IFERROR(INDEX(Table1[Normal occupancy],MATCH(Table2[[#This Row],[New Room Type \n(TMS)]],Table1[TMS],0)),\"\")","v":""},null,null,null,null,"",{"$f":"IF(Table2[[#This Row],['# extra beds that fit in the room2]]<>0,LEFT(Table2[[#This Row],[New Room Type \n(TMS)]],6),\"\")","v":""},null,{"$f":"IF(Table2[[#This Row],['# extra beds that fit in the room]]<>Table2[[#This Row],['# extra beds that fit in the room2]],\"yes\",\"No\")","v":"No"}]
[null,{"$f":"IF(LEN(C754)>0,'1) Hotel information'!$C$4,\"\")","v":""},null,null,null,{"$f":"IFERROR(INDEX(Table1[Room description],MATCH('2) Room configuration'!D754,Table1[TMS],0)),\"\")","v":""},{"$f":"IFERROR(INDEX(Table1[Bedding],MATCH('2) Room configuration'!D187,Table1[TMS],0)),\"\")","v":""},null,null,{"$f":"IFERROR(INDEX(Table1[Room description],MATCH('2) Room configuration'!I187,Table1[TMS],0)),\"\")","v":""},{"$f":"IFERROR(INDEX(Table1[Bedding],MATCH('2) Room configuration'!I187,Table1[TMS],0)),\"\")","v":""},{"$f":"IFERROR(INDEX(Table1[Normal occupancy],MATCH(Table2[[#This Row],[New Room Type \n(TMS)]],Table1[TMS],0)),\"\")","v":""},null,null,null,null,"",{"$f":"IF(Table2[[#This Row],['# extra beds that fit in the room2]]<>0,LEFT(Table2[[#This Row],[New Room Type \n(TMS)]],6),\"\")","v":""},null,{"$f":"IF(Table2[[#This Row],['# extra beds that fit in the room]]<>Table2[[#This Row],['# extra beds that fit in the room2]],\"yes\",\"No\")","v":"No"}]
[null,{"$f":"IF(LEN(C755)>0,'1) Hotel information'!$C$4,\"\")","v":""},null,null,null,{"$f":"IFERROR(INDEX(Table1[Room description],MATCH('2) Room configuration'!D755,Table1[TMS],0)),\"\")","v":""},{"$f":"IFERROR(INDEX(Table1[Bedding],MATCH('2) Room configuration'!D188,Table1[TMS],0)),\"\")","v":""},null,null,{"$f":"IFERROR(INDEX(Table1[Room description],MATCH('2) Room configuration'!I188,Table1[TMS],0)),\"\")","v":""},{"$f":"IFERROR(INDEX(Table1[Bedding],MATCH('2) Room configuration'!I188,Table1[TMS],0)),\"\")","v":""},{"$f":"IFERROR(INDEX(Table1[Normal occupancy],MATCH(Table2[[#This Row],[New Room Type \n(TMS)]],Table1[TMS],0)),\"\")","v":""},null,null,null,null,"",{"$f":"IF(Table2[[#This Row],['# extra beds that fit in the room2]]<>0,LEFT(Table2[[#This Row],[New Room Type \n(TMS)]],6),\"\")","v":""},null,{"$f":"IF(Table2[[#This Row],['# extra beds that fit in the room]]<>Table2[[#This Row],['# extra beds that fit in the room2]],\"yes\",\"No\")","v":"No"}]
[null,{"$f":"IF(LEN(C756)>0,'1) Hotel information'!$C$4,\"\")","v":""},null,null,null,{"$f":"IFERROR(INDEX(Table1[Room description],MATCH('2) Room configuration'!D756,Table1[TMS],0)),\"\")","v":""},{"$f":"IFERROR(INDEX(Table1[Bedding],MATCH('2) Room configuration'!D189,Table1[TMS],0)),\"\")","v":""},null,null,{"$f":"IFERROR(INDEX(Table1[Room description],MATCH('2) Room configuration'!I189,Table1[TMS],0)),\"\")","v":""},{"$f":"IFERROR(INDEX(Table1[Bedding],MATCH('2) Room configuration'!I189,Table1[TMS],0)),\"\")","v":""},{"$f":"IFERROR(INDEX(Table1[Normal occupancy],MATCH(Table2[[#This Row],[New Room Type \n(TMS)]],Table1[TMS],0)),\"\")","v":""},null,null,null,null,"",{"$f":"IF(Table2[[#This Row],['# extra beds that fit in the room2]]<>0,LEFT(Table2[[#This Row],[New Room Type \n(TMS)]],6),\"\")","v":""},null,{"$f":"IF(Table2[[#This Row],['# extra beds that fit in the room]]<>Table2[[#This Row],['# extra beds that fit in the room2]],\"yes\",\"No\")","v":"No"}]
[null,{"$f":"IF(LEN(C757)>0,'1) Hotel information'!$C$4,\"\")","v":""},null,null,null,{"$f":"IFERROR(INDEX(Table1[Room description],MATCH('2) Room configuration'!D757,Table1[TMS],0)),\"\")","v":""},{"$f":"IFERROR(INDEX(Table1[Bedding],MATCH('2) Room configuration'!D190,Table1[TMS],0)),\"\")","v":""},null,null,{"$f":"IFERROR(INDEX(Table1[Room description],MATCH('2) Room configuration'!I190,Table1[TMS],0)),\"\")","v":""},{"$f":"IFERROR(INDEX(Table1[Bedding],MATCH('2) Room configuration'!I190,Table1[TMS],0)),\"\")","v":""},{"$f":"IFERROR(INDEX(Table1[Normal occupancy],MATCH(Table2[[#This Row],[New Room Type \n(TMS)]],Table1[TMS],0)),\"\")","v":""},null,null,null,null,"",{"$f":"IF(Table2[[#This Row],['# extra beds that fit in the room2]]<>0,LEFT(Table2[[#This Row],[New Room Type \n(TMS)]],6),\"\")","v":""},null,{"$f":"IF(Table2[[#This Row],['# extra beds that fit in the room]]<>Table2[[#This Row],['# extra beds that fit in the room2]],\"yes\",\"No\")","v":"No"}]
[null,{"$f":"IF(LEN(C758)>0,'1) Hotel information'!$C$4,\"\")","v":""},null,null,null,{"$f":"IFERROR(INDEX(Table1[Room description],MATCH('2) Room configuration'!D758,Table1[TMS],0)),\"\")","v":""},{"$f":"IFERROR(INDEX(Table1[Bedding],MATCH('2) Room configuration'!D191,Table1[TMS],0)),\"\")","v":""},null,null,{"$f":"IFERROR(INDEX(Table1[Room description],MATCH('2) Room configuration'!I191,Table1[TMS],0)),\"\")","v":""},{"$f":"IFERROR(INDEX(Table1[Bedding],MATCH('2) Room configuration'!I191,Table1[TMS],0)),\"\")","v":""},{"$f":"IFERROR(INDEX(Table1[Normal occupancy],MATCH(Table2[[#This Row],[New Room Type \n(TMS)]],Table1[TMS],0)),\"\")","v":""},null,null,null,null,"",{"$f":"IF(Table2[[#This Row],['# extra beds that fit in the room2]]<>0,LEFT(Table2[[#This Row],[New Room Type \n(TMS)]],6),\"\")","v":""},null,{"$f":"IF(Table2[[#This Row],['# extra beds that fit in the room]]<>Table2[[#This Row],['# extra beds that fit in the room2]],\"yes\",\"No\")","v":"No"}]
[null,{"$f":"IF(LEN(C759)>0,'1) Hotel information'!$C$4,\"\")","v":""},null,null,null,{"$f":"IFERROR(INDEX(Table1[Room description],MATCH('2) Room configuration'!D759,Table1[TMS],0)),\"\")","v":""},{"$f":"IFERROR(INDEX(Table1[Bedding],MATCH('2) Room configuration'!D192,Table1[TMS],0)),\"\")","v":""},null,null,{"$f":"IFERROR(INDEX(Table1[Room description],MATCH('2) Room configuration'!I192,Table1[TMS],0)),\"\")","v":""},{"$f":"IFERROR(INDEX(Table1[Bedding],MATCH('2) Room configuration'!I192,Table1[TMS],0)),\"\")","v":""},{"$f":"IFERROR(INDEX(Table1[Normal occupancy],MATCH(Table2[[#This Row],[New Room Type \n(TMS)]],Table1[TMS],0)),\"\")","v":""},null,null,null,null,"",{"$f":"IF(Table2[[#This Row],['# extra beds that fit in the room2]]<>0,LEFT(Table2[[#This Row],[New Room Type \n(TMS)]],6),\"\")","v":""},null,{"$f":"IF(Table2[[#This Row],['# extra beds that fit in the room]]<>Table2[[#This Row],['# extra beds that fit in the room2]],\"yes\",\"No\")","v":"No"}]
[null,{"$f":"IF(LEN(C760)>0,'1) Hotel information'!$C$4,\"\")","v":""},null,null,null,{"$f":"IFERROR(INDEX(Table1[Room description],MATCH('2) Room configuration'!D760,Table1[TMS],0)),\"\")","v":""},{"$f":"IFERROR(INDEX(Table1[Bedding],MATCH('2) Room configuration'!D193,Table1[TMS],0)),\"\")","v":""},null,null,{"$f":"IFERROR(INDEX(Table1[Room description],MATCH('2) Room configuration'!I193,Table1[TMS],0)),\"\")","v":""},{"$f":"IFERROR(INDEX(Table1[Bedding],MATCH('2) Room configuration'!I193,Table1[TMS],0)),\"\")","v":""},{"$f":"IFERROR(INDEX(Table1[Normal occupancy],MATCH(Table2[[#This Row],[New Room Type \n(TMS)]],Table1[TMS],0)),\"\")","v":""},null,null,null,null,"",{"$f":"IF(Table2[[#This Row],['# extra beds that fit in the room2]]<>0,LEFT(Table2[[#This Row],[New Room Type \n(TMS)]],6),\"\")","v":""},null,{"$f":"IF(Table2[[#This Row],['# extra beds that fit in the room]]<>Table2[[#This Row],['# extra beds that fit in the room2]],\"yes\",\"No\")","v":"No"}]
[null,{"$f":"IF(LEN(C761)>0,'1) Hotel information'!$C$4,\"\")","v":""},null,null,null,{"$f":"IFERROR(INDEX(Table1[Room description],MATCH('2) Room configuration'!D761,Table1[TMS],0)),\"\")","v":""},{"$f":"IFERROR(INDEX(Table1[Bedding],MATCH('2) Room configuration'!D194,Table1[TMS],0)),\"\")","v":""},null,null,{"$f":"IFERROR(INDEX(Table1[Room description],MATCH('2) Room configuration'!I194,Table1[TMS],0)),\"\")","v":""},{"$f":"IFERROR(INDEX(Table1[Bedding],MATCH('2) Room configuration'!I194,Table1[TMS],0)),\"\")","v":""},{"$f":"IFERROR(INDEX(Table1[Normal occupancy],MATCH(Table2[[#This Row],[New Room Type \n(TMS)]],Table1[TMS],0)),\"\")","v":""},null,null,null,null,"",{"$f":"IF(Table2[[#This Row],['# extra beds that fit in the room2]]<>0,LEFT(Table2[[#This Row],[New Room Type \n(TMS)]],6),\"\")","v":""},null,{"$f":"IF(Table2[[#This Row],['# extra beds that fit in the room]]<>Table2[[#This Row],['# extra beds that fit in the room2]],\"yes\",\"No\")","v":"No"}]
[null,{"$f":"IF(LEN(C762)>0,'1) Hotel information'!$C$4,\"\")","v":""},null,null,null,{"$f":"IFERROR(INDEX(Table1[Room description],MATCH('2) Room configuration'!D762,Table1[TMS],0)),\"\")","v":""},{"$f":"IFERROR(INDEX(Table1[Bedding],MATCH('2) Room configuration'!D195,Table1[TMS],0)),\"\")","v":""},null,null,{"$f":"IFERROR(INDEX(Table1[Room description],MATCH('2) Room configuration'!I195,Table1[TMS],0)),\"\")","v":""},{"$f":"IFERROR(INDEX(Table1[Bedding],MATCH('2) Room configuration'!I195,Table1[TMS],0)),\"\")","v":""},{"$f":"IFERROR(INDEX(Table1[Normal occupancy],MATCH(Table2[[#This Row],[New Room Type \n(TMS)]],Table1[TMS],0)),\"\")","v":""},null,null,null,null,"",{"$f":"IF(Table2[[#This Row],['# extra beds that fit in the room2]]<>0,LEFT(Table2[[#This Row],[New Room Type \n(TMS)]],6),\"\")","v":""},null,{"$f":"IF(Table2[[#This Row],['# extra beds that fit in the room]]<>Table2[[#This Row],['# extra beds that fit in the room2]],\"yes\",\"No\")","v":"No"}]
[null,{"$f":"IF(LEN(C763)>0,'1) Hotel information'!$C$4,\"\")","v":""},null,null,null,{"$f":"IFERROR(INDEX(Table1[Room description],MATCH('2) Room configuration'!D763,Table1[TMS],0)),\"\")","v":""},{"$f":"IFERROR(INDEX(Table1[Bedding],MATCH('2) Room configuration'!D196,Table1[TMS],0)),\"\")","v":""},null,null,{"$f":"IFERROR(INDEX(Table1[Room description],MATCH('2) Room configuration'!I196,Table1[TMS],0)),\"\")","v":""},{"$f":"IFERROR(INDEX(Table1[Bedding],MATCH('2) Room configuration'!I196,Table1[TMS],0)),\"\")","v":""},{"$f":"IFERROR(INDEX(Table1[Normal occupancy],MATCH(Table2[[#This Row],[New Room Type \n(TMS)]],Table1[TMS],0)),\"\")","v":""},null,null,null,null,"",{"$f":"IF(Table2[[#This Row],['# extra beds that fit in the room2]]<>0,LEFT(Table2[[#This Row],[New Room Type \n(TMS)]],6),\"\")","v":""},null,{"$f":"IF(Table2[[#This Row],['# extra beds that fit in the room]]<>Table2[[#This Row],['# extra beds that fit in the room2]],\"yes\",\"No\")","v":"No"}]
[null,{"$f":"IF(LEN(C764)>0,'1) Hotel information'!$C$4,\"\")","v":""},null,null,null,{"$f":"IFERROR(INDEX(Table1[Room description],MATCH('2) Room configuration'!D764,Table1[TMS],0)),\"\")","v":""},{"$f":"IFERROR(INDEX(Table1[Bedding],MATCH('2) Room configuration'!D197,Table1[TMS],0)),\"\")","v":""},null,null,{"$f":"IFERROR(INDEX(Table1[Room description],MATCH('2) Room configuration'!I197,Table1[TMS],0)),\"\")","v":""},{"$f":"IFERROR(INDEX(Table1[Bedding],MATCH('2) Room configuration'!I197,Table1[TMS],0)),\"\")","v":""},{"$f":"IFERROR(INDEX(Table1[Normal occupancy],MATCH(Table2[[#This Row],[New Room Type \n(TMS)]],Table1[TMS],0)),\"\")","v":""},null,null,null,null,"",{"$f":"IF(Table2[[#This Row],['# extra beds that fit in the room2]]<>0,LEFT(Table2[[#This Row],[New Room Type \n(TMS)]],6),\"\")","v":""},null,{"$f":"IF(Table2[[#This Row],['# extra beds that fit in the room]]<>Table2[[#This Row],['# extra beds that fit in the room2]],\"yes\",\"No\")","v":"No"}]
[null,{"$f":"IF(LEN(C765)>0,'1) Hotel information'!$C$4,\"\")","v":""},null,null,null,{"$f":"IFERROR(INDEX(Table1[Room description],MATCH('2) Room configuration'!D765,Table1[TMS],0)),\"\")","v":""},{"$f":"IFERROR(INDEX(Table1[Bedding],MATCH('2) Room configuration'!D198,Table1[TMS],0)),\"\")","v":""},null,null,{"$f":"IFERROR(INDEX(Table1[Room description],MATCH('2) Room configuration'!I198,Table1[TMS],0)),\"\")","v":""},{"$f":"IFERROR(INDEX(Table1[Bedding],MATCH('2) Room configuration'!I198,Table1[TMS],0)),\"\")","v":""},{"$f":"IFERROR(INDEX(Table1[Normal occupancy],MATCH(Table2[[#This Row],[New Room Type \n(TMS)]],Table1[TMS],0)),\"\")","v":""},null,null,null,null,"",{"$f":"IF(Table2[[#This Row],['# extra beds that fit in the room2]]<>0,LEFT(Table2[[#This Row],[New Room Type \n(TMS)]],6),\"\")","v":""},null,{"$f":"IF(Table2[[#This Row],['# extra beds that fit in the room]]<>Table2[[#This Row],['# extra beds that fit in the room2]],\"yes\",\"No\")","v":"No"}]
[null,{"$f":"IF(LEN(C766)>0,'1) Hotel information'!$C$4,\"\")","v":""},null,null,null,{"$f":"IFERROR(INDEX(Table1[Room description],MATCH('2) Room configuration'!D766,Table1[TMS],0)),\"\")","v":""},{"$f":"IFERROR(INDEX(Table1[Bedding],MATCH('2) Room configuration'!D199,Table1[TMS],0)),\"\")","v":""},null,null,{"$f":"IFERROR(INDEX(Table1[Room description],MATCH('2) Room configuration'!I199,Table1[TMS],0)),\"\")","v":""},{"$f":"IFERROR(INDEX(Table1[Bedding],MATCH('2) Room configuration'!I199,Table1[TMS],0)),\"\")","v":""},{"$f":"IFERROR(INDEX(Table1[Normal occupancy],MATCH(Table2[[#This Row],[New Room Type \n(TMS)]],Table1[TMS],0)),\"\")","v":""},null,null,null,null,"",{"$f":"IF(Table2[[#This Row],['# extra beds that fit in the room2]]<>0,LEFT(Table2[[#This Row],[New Room Type \n(TMS)]],6),\"\")","v":""},null,{"$f":"IF(Table2[[#This Row],['# extra beds that fit in the room]]<>Table2[[#This Row],['# extra beds that fit in the room2]],\"yes\",\"No\")","v":"No"}]
[null,{"$f":"IF(LEN(C767)>0,'1) Hotel information'!$C$4,\"\")","v":""},null,null,null,{"$f":"IFERROR(INDEX(Table1[Room description],MATCH('2) Room configuration'!D767,Table1[TMS],0)),\"\")","v":""},{"$f":"IFERROR(INDEX(Table1[Bedding],MATCH('2) Room configuration'!D200,Table1[TMS],0)),\"\")","v":""},null,null,{"$f":"IFERROR(INDEX(Table1[Room description],MATCH('2) Room configuration'!I200,Table1[TMS],0)),\"\")","v":""},{"$f":"IFERROR(INDEX(Table1[Bedding],MATCH('2) Room configuration'!I200,Table1[TMS],0)),\"\")","v":""},{"$f":"IFERROR(INDEX(Table1[Normal occupancy],MATCH(Table2[[#This Row],[New Room Type \n(TMS)]],Table1[TMS],0)),\"\")","v":""},null,null,null,null,"",{"$f":"IF(Table2[[#This Row],['# extra beds that fit in the room2]]<>0,LEFT(Table2[[#This Row],[New Room Type \n(TMS)]],6),\"\")","v":""},null,{"$f":"IF(Table2[[#This Row],['# extra beds that fit in the room]]<>Table2[[#This Row],['# extra beds that fit in the room2]],\"yes\",\"No\")","v":"No"}]
[null,{"$f":"IF(LEN(C768)>0,'1) Hotel information'!$C$4,\"\")","v":""},null,null,null,{"$f":"IFERROR(INDEX(Table1[Room description],MATCH('2) Room configuration'!D768,Table1[TMS],0)),\"\")","v":""},{"$f":"IFERROR(INDEX(Table1[Bedding],MATCH('2) Room configuration'!D201,Table1[TMS],0)),\"\")","v":""},null,null,{"$f":"IFERROR(INDEX(Table1[Room description],MATCH('2) Room configuration'!I201,Table1[TMS],0)),\"\")","v":""},{"$f":"IFERROR(INDEX(Table1[Bedding],MATCH('2) Room configuration'!I201,Table1[TMS],0)),\"\")","v":""},{"$f":"IFERROR(INDEX(Table1[Normal occupancy],MATCH(Table2[[#This Row],[New Room Type \n(TMS)]],Table1[TMS],0)),\"\")","v":""},null,null,null,null,"",{"$f":"IF(Table2[[#This Row],['# extra beds that fit in the room2]]<>0,LEFT(Table2[[#This Row],[New Room Type \n(TMS)]],6),\"\")","v":""},null,{"$f":"IF(Table2[[#This Row],['# extra beds that fit in the room]]<>Table2[[#This Row],['# extra beds that fit in the room2]],\"yes\",\"No\")","v":"No"}]
[null,{"$f":"IF(LEN(C769)>0,'1) Hotel information'!$C$4,\"\")","v":""},null,null,null,{"$f":"IFERROR(INDEX(Table1[Room description],MATCH('2) Room configuration'!D769,Table1[TMS],0)),\"\")","v":""},{"$f":"IFERROR(INDEX(Table1[Bedding],MATCH('2) Room configuration'!D202,Table1[TMS],0)),\"\")","v":""},null,null,{"$f":"IFERROR(INDEX(Table1[Room description],MATCH('2) Room configuration'!I202,Table1[TMS],0)),\"\")","v":""},{"$f":"IFERROR(INDEX(Table1[Bedding],MATCH('2) Room configuration'!I202,Table1[TMS],0)),\"\")","v":""},{"$f":"IFERROR(INDEX(Table1[Normal occupancy],MATCH(Table2[[#This Row],[New Room Type \n(TMS)]],Table1[TMS],0)),\"\")","v":""},null,null,null,null,"",{"$f":"IF(Table2[[#This Row],['# extra beds that fit in the room2]]<>0,LEFT(Table2[[#This Row],[New Room Type \n(TMS)]],6),\"\")","v":""},null,{"$f":"IF(Table2[[#This Row],['# extra beds that fit in the room]]<>Table2[[#This Row],['# extra beds that fit in the room2]],\"yes\",\"No\")","v":"No"}]
[null,{"$f":"IF(LEN(C770)>0,'1) Hotel information'!$C$4,\"\")","v":""},null,null,null,{"$f":"IFERROR(INDEX(Table1[Room description],MATCH('2) Room configuration'!D770,Table1[TMS],0)),\"\")","v":""},{"$f":"IFERROR(INDEX(Table1[Bedding],MATCH('2) Room configuration'!D203,Table1[TMS],0)),\"\")","v":""},null,null,{"$f":"IFERROR(INDEX(Table1[Room description],MATCH('2) Room configuration'!I203,Table1[TMS],0)),\"\")","v":""},{"$f":"IFERROR(INDEX(Table1[Bedding],MATCH('2) Room configuration'!I203,Table1[TMS],0)),\"\")","v":""},{"$f":"IFERROR(INDEX(Table1[Normal occupancy],MATCH(Table2[[#This Row],[New Room Type \n(TMS)]],Table1[TMS],0)),\"\")","v":""},null,null,null,null,"",{"$f":"IF(Table2[[#This Row],['# extra beds that fit in the room2]]<>0,LEFT(Table2[[#This Row],[New Room Type \n(TMS)]],6),\"\")","v":""},null,{"$f":"IF(Table2[[#This Row],['# extra beds that fit in the room]]<>Table2[[#This Row],['# extra beds that fit in the room2]],\"yes\",\"No\")","v":"No"}]
[null,{"$f":"IF(LEN(C771)>0,'1) Hotel information'!$C$4,\"\")","v":""},null,null,null,{"$f":"IFERROR(INDEX(Table1[Room description],MATCH('2) Room configuration'!D771,Table1[TMS],0)),\"\")","v":""},{"$f":"IFERROR(INDEX(Table1[Bedding],MATCH('2) Room configuration'!D204,Table1[TMS],0)),\"\")","v":""},null,null,{"$f":"IFERROR(INDEX(Table1[Room description],MATCH('2) Room configuration'!I204,Table1[TMS],0)),\"\")","v":""},{"$f":"IFERROR(INDEX(Table1[Bedding],MATCH('2) Room configuration'!I204,Table1[TMS],0)),\"\")","v":""},{"$f":"IFERROR(INDEX(Table1[Normal occupancy],MATCH(Table2[[#This Row],[New Room Type \n(TMS)]],Table1[TMS],0)),\"\")","v":""},null,null,null,null,"",{"$f":"IF(Table2[[#This Row],['# extra beds that fit in the room2]]<>0,LEFT(Table2[[#This Row],[New Room Type \n(TMS)]],6),\"\")","v":""},null,{"$f":"IF(Table2[[#This Row],['# extra beds that fit in the room]]<>Table2[[#This Row],['# extra beds that fit in the room2]],\"yes\",\"No\")","v":"No"}]
[null,{"$f":"IF(LEN(C772)>0,'1) Hotel information'!$C$4,\"\")","v":""},null,null,null,{"$f":"IFERROR(INDEX(Table1[Room description],MATCH('2) Room configuration'!D772,Table1[TMS],0)),\"\")","v":""},{"$f":"IFERROR(INDEX(Table1[Bedding],MATCH('2) Room configuration'!D205,Table1[TMS],0)),\"\")","v":""},null,null,{"$f":"IFERROR(INDEX(Table1[Room description],MATCH('2) Room configuration'!I205,Table1[TMS],0)),\"\")","v":""},{"$f":"IFERROR(INDEX(Table1[Bedding],MATCH('2) Room configuration'!I205,Table1[TMS],0)),\"\")","v":""},{"$f":"IFERROR(INDEX(Table1[Normal occupancy],MATCH(Table2[[#This Row],[New Room Type \n(TMS)]],Table1[TMS],0)),\"\")","v":""},null,null,null,null,"",{"$f":"IF(Table2[[#This Row],['# extra beds that fit in the room2]]<>0,LEFT(Table2[[#This Row],[New Room Type \n(TMS)]],6),\"\")","v":""},null,{"$f":"IF(Table2[[#This Row],['# extra beds that fit in the room]]<>Table2[[#This Row],['# extra beds that fit in the room2]],\"yes\",\"No\")","v":"No"}]
[null,{"$f":"IF(LEN(C773)>0,'1) Hotel information'!$C$4,\"\")","v":""},null,null,null,{"$f":"IFERROR(INDEX(Table1[Room description],MATCH('2) Room configuration'!D773,Table1[TMS],0)),\"\")","v":""},{"$f":"IFERROR(INDEX(Table1[Bedding],MATCH('2) Room configuration'!D206,Table1[TMS],0)),\"\")","v":""},null,null,{"$f":"IFERROR(INDEX(Table1[Room description],MATCH('2) Room configuration'!I206,Table1[TMS],0)),\"\")","v":""},{"$f":"IFERROR(INDEX(Table1[Bedding],MATCH('2) Room configuration'!I206,Table1[TMS],0)),\"\")","v":""},{"$f":"IFERROR(INDEX(Table1[Normal occupancy],MATCH(Table2[[#This Row],[New Room Type \n(TMS)]],Table1[TMS],0)),\"\")","v":""},null,null,null,null,"",{"$f":"IF(Table2[[#This Row],['# extra beds that fit in the room2]]<>0,LEFT(Table2[[#This Row],[New Room Type \n(TMS)]],6),\"\")","v":""},null,{"$f":"IF(Table2[[#This Row],['# extra beds that fit in the room]]<>Table2[[#This Row],['# extra beds that fit in the room2]],\"yes\",\"No\")","v":"No"}]
[null,{"$f":"IF(LEN(C774)>0,'1) Hotel information'!$C$4,\"\")","v":""},null,null,null,{"$f":"IFERROR(INDEX(Table1[Room description],MATCH('2) Room configuration'!D774,Table1[TMS],0)),\"\")","v":""},{"$f":"IFERROR(INDEX(Table1[Bedding],MATCH('2) Room configuration'!D207,Table1[TMS],0)),\"\")","v":""},null,null,{"$f":"IFERROR(INDEX(Table1[Room description],MATCH('2) Room configuration'!I207,Table1[TMS],0)),\"\")","v":""},{"$f":"IFERROR(INDEX(Table1[Bedding],MATCH('2) Room configuration'!I207,Table1[TMS],0)),\"\")","v":""},{"$f":"IFERROR(INDEX(Table1[Normal occupancy],MATCH(Table2[[#This Row],[New Room Type \n(TMS)]],Table1[TMS],0)),\"\")","v":""},null,null,null,null,"",{"$f":"IF(Table2[[#This Row],['# extra beds that fit in the room2]]<>0,LEFT(Table2[[#This Row],[New Room Type \n(TMS)]],6),\"\")","v":""},null,{"$f":"IF(Table2[[#This Row],['# extra beds that fit in the room]]<>Table2[[#This Row],['# extra beds that fit in the room2]],\"yes\",\"No\")","v":"No"}]
[null,{"$f":"IF(LEN(C775)>0,'1) Hotel information'!$C$4,\"\")","v":""},null,null,null,{"$f":"IFERROR(INDEX(Table1[Room description],MATCH('2) Room configuration'!D775,Table1[TMS],0)),\"\")","v":""},{"$f":"IFERROR(INDEX(Table1[Bedding],MATCH('2) Room configuration'!D208,Table1[TMS],0)),\"\")","v":""},null,null,{"$f":"IFERROR(INDEX(Table1[Room description],MATCH('2) Room configuration'!I208,Table1[TMS],0)),\"\")","v":""},{"$f":"IFERROR(INDEX(Table1[Bedding],MATCH('2) Room configuration'!I208,Table1[TMS],0)),\"\")","v":""},{"$f":"IFERROR(INDEX(Table1[Normal occupancy],MATCH(Table2[[#This Row],[New Room Type \n(TMS)]],Table1[TMS],0)),\"\")","v":""},null,null,null,null,"",{"$f":"IF(Table2[[#This Row],['# extra beds that fit in the room2]]<>0,LEFT(Table2[[#This Row],[New Room Type \n(TMS)]],6),\"\")","v":""},null,{"$f":"IF(Table2[[#This Row],['# extra beds that fit in the room]]<>Table2[[#This Row],['# extra beds that fit in the room2]],\"yes\",\"No\")","v":"No"}]
[null,{"$f":"IF(LEN(C776)>0,'1) Hotel information'!$C$4,\"\")","v":""},null,null,null,{"$f":"IFERROR(INDEX(Table1[Room description],MATCH('2) Room configuration'!D776,Table1[TMS],0)),\"\")","v":""},{"$f":"IFERROR(INDEX(Table1[Bedding],MATCH('2) Room configuration'!D209,Table1[TMS],0)),\"\")","v":""},null,null,{"$f":"IFERROR(INDEX(Table1[Room description],MATCH('2) Room configuration'!I209,Table1[TMS],0)),\"\")","v":""},{"$f":"IFERROR(INDEX(Table1[Bedding],MATCH('2) Room configuration'!I209,Table1[TMS],0)),\"\")","v":""},{"$f":"IFERROR(INDEX(Table1[Normal occupancy],MATCH(Table2[[#This Row],[New Room Type \n(TMS)]],Table1[TMS],0)),\"\")","v":""},null,null,null,null,"",{"$f":"IF(Table2[[#This Row],['# extra beds that fit in the room2]]<>0,LEFT(Table2[[#This Row],[New Room Type \n(TMS)]],6),\"\")","v":""},null,{"$f":"IF(Table2[[#This Row],['# extra beds that fit in the room]]<>Table2[[#This Row],['# extra beds that fit in the room2]],\"yes\",\"No\")","v":"No"}]
[null,{"$f":"IF(LEN(C777)>0,'1) Hotel information'!$C$4,\"\")","v":""},null,null,null,{"$f":"IFERROR(INDEX(Table1[Room description],MATCH('2) Room configuration'!D777,Table1[TMS],0)),\"\")","v":""},{"$f":"IFERROR(INDEX(Table1[Bedding],MATCH('2) Room configuration'!D210,Table1[TMS],0)),\"\")","v":""},null,null,{"$f":"IFERROR(INDEX(Table1[Room description],MATCH('2) Room configuration'!I210,Table1[TMS],0)),\"\")","v":""},{"$f":"IFERROR(INDEX(Table1[Bedding],MATCH('2) Room configuration'!I210,Table1[TMS],0)),\"\")","v":""},{"$f":"IFERROR(INDEX(Table1[Normal occupancy],MATCH(Table2[[#This Row],[New Room Type \n(TMS)]],Table1[TMS],0)),\"\")","v":""},null,null,null,null,"",{"$f":"IF(Table2[[#This Row],['# extra beds that fit in the room2]]<>0,LEFT(Table2[[#This Row],[New Room Type \n(TMS)]],6),\"\")","v":""},null,{"$f":"IF(Table2[[#This Row],['# extra beds that fit in the room]]<>Table2[[#This Row],['# extra beds that fit in the room2]],\"yes\",\"No\")","v":"No"}]
[null,{"$f":"IF(LEN(C778)>0,'1) Hotel information'!$C$4,\"\")","v":""},null,null,null,{"$f":"IFERROR(INDEX(Table1[Room description],MATCH('2) Room configuration'!D778,Table1[TMS],0)),\"\")","v":""},{"$f":"IFERROR(INDEX(Table1[Bedding],MATCH('2) Room configuration'!D211,Table1[TMS],0)),\"\")","v":""},null,null,{"$f":"IFERROR(INDEX(Table1[Room description],MATCH('2) Room configuration'!I211,Table1[TMS],0)),\"\")","v":""},{"$f":"IFERROR(INDEX(Table1[Bedding],MATCH('2) Room configuration'!I211,Table1[TMS],0)),\"\")","v":""},{"$f":"IFERROR(INDEX(Table1[Normal occupancy],MATCH(Table2[[#This Row],[New Room Type \n(TMS)]],Table1[TMS],0)),\"\")","v":""},null,null,null,null,"",{"$f":"IF(Table2[[#This Row],['# extra beds that fit in the room2]]<>0,LEFT(Table2[[#This Row],[New Room Type \n(TMS)]],6),\"\")","v":""},null,{"$f":"IF(Table2[[#This Row],['# extra beds that fit in the room]]<>Table2[[#This Row],['# extra beds that fit in the room2]],\"yes\",\"No\")","v":"No"}]
[null,{"$f":"IF(LEN(C779)>0,'1) Hotel information'!$C$4,\"\")","v":""},null,null,null,{"$f":"IFERROR(INDEX(Table1[Room description],MATCH('2) Room configuration'!D779,Table1[TMS],0)),\"\")","v":""},{"$f":"IFERROR(INDEX(Table1[Bedding],MATCH('2) Room configuration'!D212,Table1[TMS],0)),\"\")","v":""},null,null,{"$f":"IFERROR(INDEX(Table1[Room description],MATCH('2) Room configuration'!I212,Table1[TMS],0)),\"\")","v":""},{"$f":"IFERROR(INDEX(Table1[Bedding],MATCH('2) Room configuration'!I212,Table1[TMS],0)),\"\")","v":""},{"$f":"IFERROR(INDEX(Table1[Normal occupancy],MATCH(Table2[[#This Row],[New Room Type \n(TMS)]],Table1[TMS],0)),\"\")","v":""},null,null,null,null,"",{"$f":"IF(Table2[[#This Row],['# extra beds that fit in the room2]]<>0,LEFT(Table2[[#This Row],[New Room Type \n(TMS)]],6),\"\")","v":""},null,{"$f":"IF(Table2[[#This Row],['# extra beds that fit in the room]]<>Table2[[#This Row],['# extra beds that fit in the room2]],\"yes\",\"No\")","v":"No"}]
[null,{"$f":"IF(LEN(C780)>0,'1) Hotel information'!$C$4,\"\")","v":""},null,null,null,{"$f":"IFERROR(INDEX(Table1[Room description],MATCH('2) Room configuration'!D780,Table1[TMS],0)),\"\")","v":""},{"$f":"IFERROR(INDEX(Table1[Bedding],MATCH('2) Room configuration'!D213,Table1[TMS],0)),\"\")","v":""},null,null,{"$f":"IFERROR(INDEX(Table1[Room description],MATCH('2) Room configuration'!I213,Table1[TMS],0)),\"\")","v":""},{"$f":"IFERROR(INDEX(Table1[Bedding],MATCH('2) Room configuration'!I213,Table1[TMS],0)),\"\")","v":""},{"$f":"IFERROR(INDEX(Table1[Normal occupancy],MATCH(Table2[[#This Row],[New Room Type \n(TMS)]],Table1[TMS],0)),\"\")","v":""},null,null,null,null,"",{"$f":"IF(Table2[[#This Row],['# extra beds that fit in the room2]]<>0,LEFT(Table2[[#This Row],[New Room Type \n(TMS)]],6),\"\")","v":""},null,{"$f":"IF(Table2[[#This Row],['# extra beds that fit in the room]]<>Table2[[#This Row],['# extra beds that fit in the room2]],\"yes\",\"No\")","v":"No"}]
[null,{"$f":"IF(LEN(C781)>0,'1) Hotel information'!$C$4,\"\")","v":""},null,null,null,{"$f":"IFERROR(INDEX(Table1[Room description],MATCH('2) Room configuration'!D781,Table1[TMS],0)),\"\")","v":""},{"$f":"IFERROR(INDEX(Table1[Bedding],MATCH('2) Room configuration'!D214,Table1[TMS],0)),\"\")","v":""},null,null,{"$f":"IFERROR(INDEX(Table1[Room description],MATCH('2) Room configuration'!I214,Table1[TMS],0)),\"\")","v":""},{"$f":"IFERROR(INDEX(Table1[Bedding],MATCH('2) Room configuration'!I214,Table1[TMS],0)),\"\")","v":""},{"$f":"IFERROR(INDEX(Table1[Normal occupancy],MATCH(Table2[[#This Row],[New Room Type \n(TMS)]],Table1[TMS],0)),\"\")","v":""},null,null,null,null,"",{"$f":"IF(Table2[[#This Row],['# extra beds that fit in the room2]]<>0,LEFT(Table2[[#This Row],[New Room Type \n(TMS)]],6),\"\")","v":""},null,{"$f":"IF(Table2[[#This Row],['# extra beds that fit in the room]]<>Table2[[#This Row],['# extra beds that fit in the room2]],\"yes\",\"No\")","v":"No"}]
[null,{"$f":"IF(LEN(C782)>0,'1) Hotel information'!$C$4,\"\")","v":""},null,null,null,{"$f":"IFERROR(INDEX(Table1[Room description],MATCH('2) Room configuration'!D782,Table1[TMS],0)),\"\")","v":""},{"$f":"IFERROR(INDEX(Table1[Bedding],MATCH('2) Room configuration'!D215,Table1[TMS],0)),\"\")","v":""},null,null,{"$f":"IFERROR(INDEX(Table1[Room description],MATCH('2) Room configuration'!I215,Table1[TMS],0)),\"\")","v":""},{"$f":"IFERROR(INDEX(Table1[Bedding],MATCH('2) Room configuration'!I215,Table1[TMS],0)),\"\")","v":""},{"$f":"IFERROR(INDEX(Table1[Normal occupancy],MATCH(Table2[[#This Row],[New Room Type \n(TMS)]],Table1[TMS],0)),\"\")","v":""},null,null,null,null,"",{"$f":"IF(Table2[[#This Row],['# extra beds that fit in the room2]]<>0,LEFT(Table2[[#This Row],[New Room Type \n(TMS)]],6),\"\")","v":""},null,{"$f":"IF(Table2[[#This Row],['# extra beds that fit in the room]]<>Table2[[#This Row],['# extra beds that fit in the room2]],\"yes\",\"No\")","v":"No"}]
[null,{"$f":"IF(LEN(C783)>0,'1) Hotel information'!$C$4,\"\")","v":""},null,null,null,{"$f":"IFERROR(INDEX(Table1[Room description],MATCH('2) Room configuration'!D783,Table1[TMS],0)),\"\")","v":""},{"$f":"IFERROR(INDEX(Table1[Bedding],MATCH('2) Room configuration'!D216,Table1[TMS],0)),\"\")","v":""},null,null,{"$f":"IFERROR(INDEX(Table1[Room description],MATCH('2) Room configuration'!I216,Table1[TMS],0)),\"\")","v":""},{"$f":"IFERROR(INDEX(Table1[Bedding],MATCH('2) Room configuration'!I216,Table1[TMS],0)),\"\")","v":""},{"$f":"IFERROR(INDEX(Table1[Normal occupancy],MATCH(Table2[[#This Row],[New Room Type \n(TMS)]],Table1[TMS],0)),\"\")","v":""},null,null,null,null,"",{"$f":"IF(Table2[[#This Row],['# extra beds that fit in the room2]]<>0,LEFT(Table2[[#This Row],[New Room Type \n(TMS)]],6),\"\")","v":""},null,{"$f":"IF(Table2[[#This Row],['# extra beds that fit in the room]]<>Table2[[#This Row],['# extra beds that fit in the room2]],\"yes\",\"No\")","v":"No"}]
[null,{"$f":"IF(LEN(C784)>0,'1) Hotel information'!$C$4,\"\")","v":""},null,null,null,{"$f":"IFERROR(INDEX(Table1[Room description],MATCH('2) Room configuration'!D784,Table1[TMS],0)),\"\")","v":""},{"$f":"IFERROR(INDEX(Table1[Bedding],MATCH('2) Room configuration'!D217,Table1[TMS],0)),\"\")","v":""},null,null,{"$f":"IFERROR(INDEX(Table1[Room description],MATCH('2) Room configuration'!I217,Table1[TMS],0)),\"\")","v":""},{"$f":"IFERROR(INDEX(Table1[Bedding],MATCH('2) Room configuration'!I217,Table1[TMS],0)),\"\")","v":""},{"$f":"IFERROR(INDEX(Table1[Normal occupancy],MATCH(Table2[[#This Row],[New Room Type \n(TMS)]],Table1[TMS],0)),\"\")","v":""},null,null,null,null,"",{"$f":"IF(Table2[[#This Row],['# extra beds that fit in the room2]]<>0,LEFT(Table2[[#This Row],[New Room Type \n(TMS)]],6),\"\")","v":""},null,{"$f":"IF(Table2[[#This Row],['# extra beds that fit in the room]]<>Table2[[#This Row],['# extra beds that fit in the room2]],\"yes\",\"No\")","v":"No"}]
[null,{"$f":"IF(LEN(C785)>0,'1) Hotel information'!$C$4,\"\")","v":""},null,null,null,{"$f":"IFERROR(INDEX(Table1[Room description],MATCH('2) Room configuration'!D785,Table1[TMS],0)),\"\")","v":""},{"$f":"IFERROR(INDEX(Table1[Bedding],MATCH('2) Room configuration'!D218,Table1[TMS],0)),\"\")","v":""},null,null,{"$f":"IFERROR(INDEX(Table1[Room description],MATCH('2) Room configuration'!I218,Table1[TMS],0)),\"\")","v":""},{"$f":"IFERROR(INDEX(Table1[Bedding],MATCH('2) Room configuration'!I218,Table1[TMS],0)),\"\")","v":""},{"$f":"IFERROR(INDEX(Table1[Normal occupancy],MATCH(Table2[[#This Row],[New Room Type \n(TMS)]],Table1[TMS],0)),\"\")","v":""},null,null,null,null,"",{"$f":"IF(Table2[[#This Row],['# extra beds that fit in the room2]]<>0,LEFT(Table2[[#This Row],[New Room Type \n(TMS)]],6),\"\")","v":""},null,{"$f":"IF(Table2[[#This Row],['# extra beds that fit in the room]]<>Table2[[#This Row],['# extra beds that fit in the room2]],\"yes\",\"No\")","v":"No"}]
[null,{"$f":"IF(LEN(C786)>0,'1) Hotel information'!$C$4,\"\")","v":""},null,null,null,{"$f":"IFERROR(INDEX(Table1[Room description],MATCH('2) Room configuration'!D786,Table1[TMS],0)),\"\")","v":""},{"$f":"IFERROR(INDEX(Table1[Bedding],MATCH('2) Room configuration'!D219,Table1[TMS],0)),\"\")","v":""},null,null,{"$f":"IFERROR(INDEX(Table1[Room description],MATCH('2) Room configuration'!I219,Table1[TMS],0)),\"\")","v":""},{"$f":"IFERROR(INDEX(Table1[Bedding],MATCH('2) Room configuration'!I219,Table1[TMS],0)),\"\")","v":""},{"$f":"IFERROR(INDEX(Table1[Normal occupancy],MATCH(Table2[[#This Row],[New Room Type \n(TMS)]],Table1[TMS],0)),\"\")","v":""},null,null,null,null,"",{"$f":"IF(Table2[[#This Row],['# extra beds that fit in the room2]]<>0,LEFT(Table2[[#This Row],[New Room Type \n(TMS)]],6),\"\")","v":""},null,{"$f":"IF(Table2[[#This Row],['# extra beds that fit in the room]]<>Table2[[#This Row],['# extra beds that fit in the room2]],\"yes\",\"No\")","v":"No"}]
[null,{"$f":"IF(LEN(C787)>0,'1) Hotel information'!$C$4,\"\")","v":""},null,null,null,{"$f":"IFERROR(INDEX(Table1[Room description],MATCH('2) Room configuration'!D787,Table1[TMS],0)),\"\")","v":""},{"$f":"IFERROR(INDEX(Table1[Bedding],MATCH('2) Room configuration'!D220,Table1[TMS],0)),\"\")","v":""},null,null,{"$f":"IFERROR(INDEX(Table1[Room description],MATCH('2) Room configuration'!I220,Table1[TMS],0)),\"\")","v":""},{"$f":"IFERROR(INDEX(Table1[Bedding],MATCH('2) Room configuration'!I220,Table1[TMS],0)),\"\")","v":""},{"$f":"IFERROR(INDEX(Table1[Normal occupancy],MATCH(Table2[[#This Row],[New Room Type \n(TMS)]],Table1[TMS],0)),\"\")","v":""},null,null,null,null,"",{"$f":"IF(Table2[[#This Row],['# extra beds that fit in the room2]]<>0,LEFT(Table2[[#This Row],[New Room Type \n(TMS)]],6),\"\")","v":""},null,{"$f":"IF(Table2[[#This Row],['# extra beds that fit in the room]]<>Table2[[#This Row],['# extra beds that fit in the room2]],\"yes\",\"No\")","v":"No"}]
[null,{"$f":"IF(LEN(C788)>0,'1) Hotel information'!$C$4,\"\")","v":""},null,null,null,{"$f":"IFERROR(INDEX(Table1[Room description],MATCH('2) Room configuration'!D788,Table1[TMS],0)),\"\")","v":""},{"$f":"IFERROR(INDEX(Table1[Bedding],MATCH('2) Room configuration'!D221,Table1[TMS],0)),\"\")","v":""},null,null,{"$f":"IFERROR(INDEX(Table1[Room description],MATCH('2) Room configuration'!I221,Table1[TMS],0)),\"\")","v":""},{"$f":"IFERROR(INDEX(Table1[Bedding],MATCH('2) Room configuration'!I221,Table1[TMS],0)),\"\")","v":""},{"$f":"IFERROR(INDEX(Table1[Normal occupancy],MATCH(Table2[[#This Row],[New Room Type \n(TMS)]],Table1[TMS],0)),\"\")","v":""},null,null,null,null,"",{"$f":"IF(Table2[[#This Row],['# extra beds that fit in the room2]]<>0,LEFT(Table2[[#This Row],[New Room Type \n(TMS)]],6),\"\")","v":""},null,{"$f":"IF(Table2[[#This Row],['# extra beds that fit in the room]]<>Table2[[#This Row],['# extra beds that fit in the room2]],\"yes\",\"No\")","v":"No"}]
[null,{"$f":"IF(LEN(C789)>0,'1) Hotel information'!$C$4,\"\")","v":""},null,null,null,{"$f":"IFERROR(INDEX(Table1[Room description],MATCH('2) Room configuration'!D789,Table1[TMS],0)),\"\")","v":""},{"$f":"IFERROR(INDEX(Table1[Bedding],MATCH('2) Room configuration'!D222,Table1[TMS],0)),\"\")","v":""},null,null,{"$f":"IFERROR(INDEX(Table1[Room description],MATCH('2) Room configuration'!I222,Table1[TMS],0)),\"\")","v":""},{"$f":"IFERROR(INDEX(Table1[Bedding],MATCH('2) Room configuration'!I222,Table1[TMS],0)),\"\")","v":""},{"$f":"IFERROR(INDEX(Table1[Normal occupancy],MATCH(Table2[[#This Row],[New Room Type \n(TMS)]],Table1[TMS],0)),\"\")","v":""},null,null,null,null,"",{"$f":"IF(Table2[[#This Row],['# extra beds that fit in the room2]]<>0,LEFT(Table2[[#This Row],[New Room Type \n(TMS)]],6),\"\")","v":""},null,{"$f":"IF(Table2[[#This Row],['# extra beds that fit in the room]]<>Table2[[#This Row],['# extra beds that fit in the room2]],\"yes\",\"No\")","v":"No"}]
[null,{"$f":"IF(LEN(C790)>0,'1) Hotel information'!$C$4,\"\")","v":""},null,null,null,{"$f":"IFERROR(INDEX(Table1[Room description],MATCH('2) Room configuration'!D790,Table1[TMS],0)),\"\")","v":""},{"$f":"IFERROR(INDEX(Table1[Bedding],MATCH('2) Room configuration'!D223,Table1[TMS],0)),\"\")","v":""},null,null,{"$f":"IFERROR(INDEX(Table1[Room description],MATCH('2) Room configuration'!I223,Table1[TMS],0)),\"\")","v":""},{"$f":"IFERROR(INDEX(Table1[Bedding],MATCH('2) Room configuration'!I223,Table1[TMS],0)),\"\")","v":""},{"$f":"IFERROR(INDEX(Table1[Normal occupancy],MATCH(Table2[[#This Row],[New Room Type \n(TMS)]],Table1[TMS],0)),\"\")","v":""},null,null,null,null,"",{"$f":"IF(Table2[[#This Row],['# extra beds that fit in the room2]]<>0,LEFT(Table2[[#This Row],[New Room Type \n(TMS)]],6),\"\")","v":""},null,{"$f":"IF(Table2[[#This Row],['# extra beds that fit in the room]]<>Table2[[#This Row],['# extra beds that fit in the room2]],\"yes\",\"No\")","v":"No"}]
[null,{"$f":"IF(LEN(C791)>0,'1) Hotel information'!$C$4,\"\")","v":""},null,null,null,{"$f":"IFERROR(INDEX(Table1[Room description],MATCH('2) Room configuration'!D791,Table1[TMS],0)),\"\")","v":""},{"$f":"IFERROR(INDEX(Table1[Bedding],MATCH('2) Room configuration'!D224,Table1[TMS],0)),\"\")","v":""},null,null,{"$f":"IFERROR(INDEX(Table1[Room description],MATCH('2) Room configuration'!I224,Table1[TMS],0)),\"\")","v":""},{"$f":"IFERROR(INDEX(Table1[Bedding],MATCH('2) Room configuration'!I224,Table1[TMS],0)),\"\")","v":""},{"$f":"IFERROR(INDEX(Table1[Normal occupancy],MATCH(Table2[[#This Row],[New Room Type \n(TMS)]],Table1[TMS],0)),\"\")","v":""},null,null,null,null,{"$f":"IF(LEN(C791)>0,IF(D791=I791,\"No\",\"Yes\"),\"\")","v":""},{"$f":"IF(Table2[[#This Row],['# extra beds that fit in the room2]]<>0,LEFT(Table2[[#This Row],[New Room Type \n(TMS)]],6),\"\")","v":""},null,{"$f":"IF(Table2[[#This Row],['# extra beds that fit in the room]]<>Table2[[#This Row],['# extra beds that fit in the room2]],\"yes\",\"No\")","v":"No"}]
[null,{"$f":"IF(LEN(C792)>0,'1) Hotel information'!$C$4,\"\")","v":""},null,null,null,{"$f":"IFERROR(INDEX(Table1[Room description],MATCH('2) Room configuration'!D792,Table1[TMS],0)),\"\")","v":""},{"$f":"IFERROR(INDEX(Table1[Bedding],MATCH('2) Room configuration'!D225,Table1[TMS],0)),\"\")","v":""},null,null,{"$f":"IFERROR(INDEX(Table1[Room description],MATCH('2) Room configuration'!I225,Table1[TMS],0)),\"\")","v":""},{"$f":"IFERROR(INDEX(Table1[Bedding],MATCH('2) Room configuration'!I225,Table1[TMS],0)),\"\")","v":""},{"$f":"IFERROR(INDEX(Table1[Normal occupancy],MATCH(Table2[[#This Row],[New Room Type \n(TMS)]],Table1[TMS],0)),\"\")","v":""},null,null,null,null,"",{"$f":"IF(Table2[[#This Row],['# extra beds that fit in the room2]]<>0,LEFT(Table2[[#This Row],[New Room Type \n(TMS)]],6),\"\")","v":""},null,{"$f":"IF(Table2[[#This Row],['# extra beds that fit in the room]]<>Table2[[#This Row],['# extra beds that fit in the room2]],\"yes\",\"No\")","v":"No"}]
[null,{"$f":"IF(LEN(C793)>0,'1) Hotel information'!$C$4,\"\")","v":""},null,null,null,{"$f":"IFERROR(INDEX(Table1[Room description],MATCH('2) Room configuration'!D793,Table1[TMS],0)),\"\")","v":""},{"$f":"IFERROR(INDEX(Table1[Bedding],MATCH('2) Room configuration'!D226,Table1[TMS],0)),\"\")","v":""},null,null,{"$f":"IFERROR(INDEX(Table1[Room description],MATCH('2) Room configuration'!I226,Table1[TMS],0)),\"\")","v":""},{"$f":"IFERROR(INDEX(Table1[Bedding],MATCH('2) Room configuration'!I226,Table1[TMS],0)),\"\")","v":""},{"$f":"IFERROR(INDEX(Table1[Normal occupancy],MATCH(Table2[[#This Row],[New Room Type \n(TMS)]],Table1[TMS],0)),\"\")","v":""},null,null,null,null,"",{"$f":"IF(Table2[[#This Row],['# extra beds that fit in the room2]]<>0,LEFT(Table2[[#This Row],[New Room Type \n(TMS)]],6),\"\")","v":""},null,{"$f":"IF(Table2[[#This Row],['# extra beds that fit in the room]]<>Table2[[#This Row],['# extra beds that fit in the room2]],\"yes\",\"No\")","v":"No"}]
[null,{"$f":"IF(LEN(C794)>0,'1) Hotel information'!$C$4,\"\")","v":""},null,null,null,{"$f":"IFERROR(INDEX(Table1[Room description],MATCH('2) Room configuration'!D794,Table1[TMS],0)),\"\")","v":""},{"$f":"IFERROR(INDEX(Table1[Bedding],MATCH('2) Room configuration'!D227,Table1[TMS],0)),\"\")","v":""},null,null,{"$f":"IFERROR(INDEX(Table1[Room description],MATCH('2) Room configuration'!I227,Table1[TMS],0)),\"\")","v":""},{"$f":"IFERROR(INDEX(Table1[Bedding],MATCH('2) Room configuration'!I227,Table1[TMS],0)),\"\")","v":""},{"$f":"IFERROR(INDEX(Table1[Normal occupancy],MATCH(Table2[[#This Row],[New Room Type \n(TMS)]],Table1[TMS],0)),\"\")","v":""},null,null,null,null,"",{"$f":"IF(Table2[[#This Row],['# extra beds that fit in the room2]]<>0,LEFT(Table2[[#This Row],[New Room Type \n(TMS)]],6),\"\")","v":""},null,{"$f":"IF(Table2[[#This Row],['# extra beds that fit in the room]]<>Table2[[#This Row],['# extra beds that fit in the room2]],\"yes\",\"No\")","v":"No"}]
[null,{"$f":"IF(LEN(C795)>0,'1) Hotel information'!$C$4,\"\")","v":""},null,null,null,{"$f":"IFERROR(INDEX(Table1[Room description],MATCH('2) Room configuration'!D795,Table1[TMS],0)),\"\")","v":""},{"$f":"IFERROR(INDEX(Table1[Bedding],MATCH('2) Room configuration'!D228,Table1[TMS],0)),\"\")","v":""},null,null,{"$f":"IFERROR(INDEX(Table1[Room description],MATCH('2) Room configuration'!I228,Table1[TMS],0)),\"\")","v":""},{"$f":"IFERROR(INDEX(Table1[Bedding],MATCH('2) Room configuration'!I228,Table1[TMS],0)),\"\")","v":""},{"$f":"IFERROR(INDEX(Table1[Normal occupancy],MATCH(Table2[[#This Row],[New Room Type \n(TMS)]],Table1[TMS],0)),\"\")","v":""},null,null,null,null,"",{"$f":"IF(Table2[[#This Row],['# extra beds that fit in the room2]]<>0,LEFT(Table2[[#This Row],[New Room Type \n(TMS)]],6),\"\")","v":""},null,{"$f":"IF(Table2[[#This Row],['# extra beds that fit in the room]]<>Table2[[#This Row],['# extra beds that fit in the room2]],\"yes\",\"No\")","v":"No"}]
[null,{"$f":"IF(LEN(C796)>0,'1) Hotel information'!$C$4,\"\")","v":""},null,null,null,{"$f":"IFERROR(INDEX(Table1[Room description],MATCH('2) Room configuration'!D796,Table1[TMS],0)),\"\")","v":""},{"$f":"IFERROR(INDEX(Table1[Bedding],MATCH('2) Room configuration'!D229,Table1[TMS],0)),\"\")","v":""},null,null,{"$f":"IFERROR(INDEX(Table1[Room description],MATCH('2) Room configuration'!I229,Table1[TMS],0)),\"\")","v":""},{"$f":"IFERROR(INDEX(Table1[Bedding],MATCH('2) Room configuration'!I229,Table1[TMS],0)),\"\")","v":""},{"$f":"IFERROR(INDEX(Table1[Normal occupancy],MATCH(Table2[[#This Row],[New Room Type \n(TMS)]],Table1[TMS],0)),\"\")","v":""},null,null,null,null,"",{"$f":"IF(Table2[[#This Row],['# extra beds that fit in the room2]]<>0,LEFT(Table2[[#This Row],[New Room Type \n(TMS)]],6),\"\")","v":""},null,{"$f":"IF(Table2[[#This Row],['# extra beds that fit in the room]]<>Table2[[#This Row],['# extra beds that fit in the room2]],\"yes\",\"No\")","v":"No"}]
[null,{"$f":"IF(LEN(C797)>0,'1) Hotel information'!$C$4,\"\")","v":""},null,null,null,{"$f":"IFERROR(INDEX(Table1[Room description],MATCH('2) Room configuration'!D797,Table1[TMS],0)),\"\")","v":""},{"$f":"IFERROR(INDEX(Table1[Bedding],MATCH('2) Room configuration'!D230,Table1[TMS],0)),\"\")","v":""},null,null,{"$f":"IFERROR(INDEX(Table1[Room description],MATCH('2) Room configuration'!I230,Table1[TMS],0)),\"\")","v":""},{"$f":"IFERROR(INDEX(Table1[Bedding],MATCH('2) Room configuration'!I230,Table1[TMS],0)),\"\")","v":""},{"$f":"IFERROR(INDEX(Table1[Normal occupancy],MATCH(Table2[[#This Row],[New Room Type \n(TMS)]],Table1[TMS],0)),\"\")","v":""},null,null,null,null,"",{"$f":"IF(Table2[[#This Row],['# extra beds that fit in the room2]]<>0,LEFT(Table2[[#This Row],[New Room Type \n(TMS)]],6),\"\")","v":""},null,{"$f":"IF(Table2[[#This Row],['# extra beds that fit in the room]]<>Table2[[#This Row],['# extra beds that fit in the room2]],\"yes\",\"No\")","v":"No"}]
[null,{"$f":"IF(LEN(C798)>0,'1) Hotel information'!$C$4,\"\")","v":""},null,null,null,{"$f":"IFERROR(INDEX(Table1[Room description],MATCH('2) Room configuration'!D798,Table1[TMS],0)),\"\")","v":""},{"$f":"IFERROR(INDEX(Table1[Bedding],MATCH('2) Room configuration'!D231,Table1[TMS],0)),\"\")","v":""},null,null,{"$f":"IFERROR(INDEX(Table1[Room description],MATCH('2) Room configuration'!I231,Table1[TMS],0)),\"\")","v":""},{"$f":"IFERROR(INDEX(Table1[Bedding],MATCH('2) Room configuration'!I231,Table1[TMS],0)),\"\")","v":""},{"$f":"IFERROR(INDEX(Table1[Normal occupancy],MATCH(Table2[[#This Row],[New Room Type \n(TMS)]],Table1[TMS],0)),\"\")","v":""},null,null,null,null,"",{"$f":"IF(Table2[[#This Row],['# extra beds that fit in the room2]]<>0,LEFT(Table2[[#This Row],[New Room Type \n(TMS)]],6),\"\")","v":""},null,{"$f":"IF(Table2[[#This Row],['# extra beds that fit in the room]]<>Table2[[#This Row],['# extra beds that fit in the room2]],\"yes\",\"No\")","v":"No"}]
[null,{"$f":"IF(LEN(C799)>0,'1) Hotel information'!$C$4,\"\")","v":""},null,null,null,{"$f":"IFERROR(INDEX(Table1[Room description],MATCH('2) Room configuration'!D799,Table1[TMS],0)),\"\")","v":""},{"$f":"IFERROR(INDEX(Table1[Bedding],MATCH('2) Room configuration'!D232,Table1[TMS],0)),\"\")","v":""},null,null,{"$f":"IFERROR(INDEX(Table1[Room description],MATCH('2) Room configuration'!I232,Table1[TMS],0)),\"\")","v":""},{"$f":"IFERROR(INDEX(Table1[Bedding],MATCH('2) Room configuration'!I232,Table1[TMS],0)),\"\")","v":""},{"$f":"IFERROR(INDEX(Table1[Normal occupancy],MATCH(Table2[[#This Row],[New Room Type \n(TMS)]],Table1[TMS],0)),\"\")","v":""},null,null,null,null,"",{"$f":"IF(Table2[[#This Row],['# extra beds that fit in the room2]]<>0,LEFT(Table2[[#This Row],[New Room Type \n(TMS)]],6),\"\")","v":""},null,{"$f":"IF(Table2[[#This Row],['# extra beds that fit in the room]]<>Table2[[#This Row],['# extra beds that fit in the room2]],\"yes\",\"No\")","v":"No"}]
[null,{"$f":"IF(LEN(C800)>0,'1) Hotel information'!$C$4,\"\")","v":""},null,null,null,{"$f":"IFERROR(INDEX(Table1[Room description],MATCH('2) Room configuration'!D800,Table1[TMS],0)),\"\")","v":""},{"$f":"IFERROR(INDEX(Table1[Bedding],MATCH('2) Room configuration'!D233,Table1[TMS],0)),\"\")","v":""},null,null,{"$f":"IFERROR(INDEX(Table1[Room description],MATCH('2) Room configuration'!I233,Table1[TMS],0)),\"\")","v":""},{"$f":"IFERROR(INDEX(Table1[Bedding],MATCH('2) Room configuration'!I233,Table1[TMS],0)),\"\")","v":""},{"$f":"IFERROR(INDEX(Table1[Normal occupancy],MATCH(Table2[[#This Row],[New Room Type \n(TMS)]],Table1[TMS],0)),\"\")","v":""},null,null,null,null,"",{"$f":"IF(Table2[[#This Row],['# extra beds that fit in the room2]]<>0,LEFT(Table2[[#This Row],[New Room Type \n(TMS)]],6),\"\")","v":""},null,{"$f":"IF(Table2[[#This Row],['# extra beds that fit in the room]]<>Table2[[#This Row],['# extra beds that fit in the room2]],\"yes\",\"No\")","v":"No"}]
[null,{"$f":"IF(LEN(C801)>0,'1) Hotel information'!$C$4,\"\")","v":""},null,null,null,{"$f":"IFERROR(INDEX(Table1[Room description],MATCH('2) Room configuration'!D801,Table1[TMS],0)),\"\")","v":""},{"$f":"IFERROR(INDEX(Table1[Bedding],MATCH('2) Room configuration'!D234,Table1[TMS],0)),\"\")","v":""},null,null,{"$f":"IFERROR(INDEX(Table1[Room description],MATCH('2) Room configuration'!I234,Table1[TMS],0)),\"\")","v":""},{"$f":"IFERROR(INDEX(Table1[Bedding],MATCH('2) Room configuration'!I234,Table1[TMS],0)),\"\")","v":""},{"$f":"IFERROR(INDEX(Table1[Normal occupancy],MATCH(Table2[[#This Row],[New Room Type \n(TMS)]],Table1[TMS],0)),\"\")","v":""},null,null,null,null,"",{"$f":"IF(Table2[[#This Row],['# extra beds that fit in the room2]]<>0,LEFT(Table2[[#This Row],[New Room Type \n(TMS)]],6),\"\")","v":""},null,{"$f":"IF(Table2[[#This Row],['# extra beds that fit in the room]]<>Table2[[#This Row],['# extra beds that fit in the room2]],\"yes\",\"No\")","v":"No"}]
[null,{"$f":"IF(LEN(C802)>0,'1) Hotel information'!$C$4,\"\")","v":""},null,null,null,{"$f":"IFERROR(INDEX(Table1[Room description],MATCH('2) Room configuration'!D802,Table1[TMS],0)),\"\")","v":""},{"$f":"IFERROR(INDEX(Table1[Bedding],MATCH('2) Room configuration'!D235,Table1[TMS],0)),\"\")","v":""},null,null,{"$f":"IFERROR(INDEX(Table1[Room description],MATCH('2) Room configuration'!I235,Table1[TMS],0)),\"\")","v":""},{"$f":"IFERROR(INDEX(Table1[Bedding],MATCH('2) Room configuration'!I235,Table1[TMS],0)),\"\")","v":""},{"$f":"IFERROR(INDEX(Table1[Normal occupancy],MATCH(Table2[[#This Row],[New Room Type \n(TMS)]],Table1[TMS],0)),\"\")","v":""},null,null,null,null,"",{"$f":"IF(Table2[[#This Row],['# extra beds that fit in the room2]]<>0,LEFT(Table2[[#This Row],[New Room Type \n(TMS)]],6),\"\")","v":""},null,{"$f":"IF(Table2[[#This Row],['# extra beds that fit in the room]]<>Table2[[#This Row],['# extra beds that fit in the room2]],\"yes\",\"No\")","v":"No"}]
[null,{"$f":"IF(LEN(C803)>0,'1) Hotel information'!$C$4,\"\")","v":""},null,null,null,{"$f":"IFERROR(INDEX(Table1[Room description],MATCH('2) Room configuration'!D803,Table1[TMS],0)),\"\")","v":""},{"$f":"IFERROR(INDEX(Table1[Bedding],MATCH('2) Room configuration'!D236,Table1[TMS],0)),\"\")","v":""},null,null,{"$f":"IFERROR(INDEX(Table1[Room description],MATCH('2) Room configuration'!I236,Table1[TMS],0)),\"\")","v":""},{"$f":"IFERROR(INDEX(Table1[Bedding],MATCH('2) Room configuration'!I236,Table1[TMS],0)),\"\")","v":""},{"$f":"IFERROR(INDEX(Table1[Normal occupancy],MATCH(Table2[[#This Row],[New Room Type \n(TMS)]],Table1[TMS],0)),\"\")","v":""},null,null,null,null,"",{"$f":"IF(Table2[[#This Row],['# extra beds that fit in the room2]]<>0,LEFT(Table2[[#This Row],[New Room Type \n(TMS)]],6),\"\")","v":""},null,{"$f":"IF(Table2[[#This Row],['# extra beds that fit in the room]]<>Table2[[#This Row],['# extra beds that fit in the room2]],\"yes\",\"No\")","v":"No"}]
[null,{"$f":"IF(LEN(C804)>0,'1) Hotel information'!$C$4,\"\")","v":""},null,null,null,{"$f":"IFERROR(INDEX(Table1[Room description],MATCH('2) Room configuration'!D804,Table1[TMS],0)),\"\")","v":""},{"$f":"IFERROR(INDEX(Table1[Bedding],MATCH('2) Room configuration'!D237,Table1[TMS],0)),\"\")","v":""},null,null,{"$f":"IFERROR(INDEX(Table1[Room description],MATCH('2) Room configuration'!I237,Table1[TMS],0)),\"\")","v":""},{"$f":"IFERROR(INDEX(Table1[Bedding],MATCH('2) Room configuration'!I237,Table1[TMS],0)),\"\")","v":""},{"$f":"IFERROR(INDEX(Table1[Normal occupancy],MATCH(Table2[[#This Row],[New Room Type \n(TMS)]],Table1[TMS],0)),\"\")","v":""},null,null,null,null,"",{"$f":"IF(Table2[[#This Row],['# extra beds that fit in the room2]]<>0,LEFT(Table2[[#This Row],[New Room Type \n(TMS)]],6),\"\")","v":""},null,{"$f":"IF(Table2[[#This Row],['# extra beds that fit in the room]]<>Table2[[#This Row],['# extra beds that fit in the room2]],\"yes\",\"No\")","v":"No"}]
[null,{"$f":"IF(LEN(C805)>0,'1) Hotel information'!$C$4,\"\")","v":""},null,null,null,{"$f":"IFERROR(INDEX(Table1[Room description],MATCH('2) Room configuration'!D805,Table1[TMS],0)),\"\")","v":""},{"$f":"IFERROR(INDEX(Table1[Bedding],MATCH('2) Room configuration'!D238,Table1[TMS],0)),\"\")","v":""},null,null,{"$f":"IFERROR(INDEX(Table1[Room description],MATCH('2) Room configuration'!I238,Table1[TMS],0)),\"\")","v":""},{"$f":"IFERROR(INDEX(Table1[Bedding],MATCH('2) Room configuration'!I238,Table1[TMS],0)),\"\")","v":""},{"$f":"IFERROR(INDEX(Table1[Normal occupancy],MATCH(Table2[[#This Row],[New Room Type \n(TMS)]],Table1[TMS],0)),\"\")","v":""},null,null,null,null,"",{"$f":"IF(Table2[[#This Row],['# extra beds that fit in the room2]]<>0,LEFT(Table2[[#This Row],[New Room Type \n(TMS)]],6),\"\")","v":""},null,{"$f":"IF(Table2[[#This Row],['# extra beds that fit in the room]]<>Table2[[#This Row],['# extra beds that fit in the room2]],\"yes\",\"No\")","v":"No"}]
[null,{"$f":"IF(LEN(C806)>0,'1) Hotel information'!$C$4,\"\")","v":""},null,null,null,{"$f":"IFERROR(INDEX(Table1[Room description],MATCH('2) Room configuration'!D806,Table1[TMS],0)),\"\")","v":""},{"$f":"IFERROR(INDEX(Table1[Bedding],MATCH('2) Room configuration'!D239,Table1[TMS],0)),\"\")","v":""},null,null,{"$f":"IFERROR(INDEX(Table1[Room description],MATCH('2) Room configuration'!I239,Table1[TMS],0)),\"\")","v":""},{"$f":"IFERROR(INDEX(Table1[Bedding],MATCH('2) Room configuration'!I239,Table1[TMS],0)),\"\")","v":""},{"$f":"IFERROR(INDEX(Table1[Normal occupancy],MATCH(Table2[[#This Row],[New Room Type \n(TMS)]],Table1[TMS],0)),\"\")","v":""},null,null,null,null,"",{"$f":"IF(Table2[[#This Row],['# extra beds that fit in the room2]]<>0,LEFT(Table2[[#This Row],[New Room Type \n(TMS)]],6),\"\")","v":""},null,{"$f":"IF(Table2[[#This Row],['# extra beds that fit in the room]]<>Table2[[#This Row],['# extra beds that fit in the room2]],\"yes\",\"No\")","v":"No"}]
[null,{"$f":"IF(LEN(C807)>0,'1) Hotel information'!$C$4,\"\")","v":""},null,null,null,{"$f":"IFERROR(INDEX(Table1[Room description],MATCH('2) Room configuration'!D807,Table1[TMS],0)),\"\")","v":""},{"$f":"IFERROR(INDEX(Table1[Bedding],MATCH('2) Room configuration'!D240,Table1[TMS],0)),\"\")","v":""},null,null,{"$f":"IFERROR(INDEX(Table1[Room description],MATCH('2) Room configuration'!I240,Table1[TMS],0)),\"\")","v":""},{"$f":"IFERROR(INDEX(Table1[Bedding],MATCH('2) Room configuration'!I240,Table1[TMS],0)),\"\")","v":""},{"$f":"IFERROR(INDEX(Table1[Normal occupancy],MATCH(Table2[[#This Row],[New Room Type \n(TMS)]],Table1[TMS],0)),\"\")","v":""},null,null,null,null,"",{"$f":"IF(Table2[[#This Row],['# extra beds that fit in the room2]]<>0,LEFT(Table2[[#This Row],[New Room Type \n(TMS)]],6),\"\")","v":""},null,{"$f":"IF(Table2[[#This Row],['# extra beds that fit in the room]]<>Table2[[#This Row],['# extra beds that fit in the room2]],\"yes\",\"No\")","v":"No"}]
[null,{"$f":"IF(LEN(C808)>0,'1) Hotel information'!$C$4,\"\")","v":""},null,null,null,{"$f":"IFERROR(INDEX(Table1[Room description],MATCH('2) Room configuration'!D808,Table1[TMS],0)),\"\")","v":""},{"$f":"IFERROR(INDEX(Table1[Bedding],MATCH('2) Room configuration'!D241,Table1[TMS],0)),\"\")","v":""},null,null,{"$f":"IFERROR(INDEX(Table1[Room description],MATCH('2) Room configuration'!I241,Table1[TMS],0)),\"\")","v":""},{"$f":"IFERROR(INDEX(Table1[Bedding],MATCH('2) Room configuration'!I241,Table1[TMS],0)),\"\")","v":""},{"$f":"IFERROR(INDEX(Table1[Normal occupancy],MATCH(Table2[[#This Row],[New Room Type \n(TMS)]],Table1[TMS],0)),\"\")","v":""},null,null,null,null,"",{"$f":"IF(Table2[[#This Row],['# extra beds that fit in the room2]]<>0,LEFT(Table2[[#This Row],[New Room Type \n(TMS)]],6),\"\")","v":""},null,{"$f":"IF(Table2[[#This Row],['# extra beds that fit in the room]]<>Table2[[#This Row],['# extra beds that fit in the room2]],\"yes\",\"No\")","v":"No"}]
[null,{"$f":"IF(LEN(C809)>0,'1) Hotel information'!$C$4,\"\")","v":""},null,null,null,{"$f":"IFERROR(INDEX(Table1[Room description],MATCH('2) Room configuration'!D809,Table1[TMS],0)),\"\")","v":""},{"$f":"IFERROR(INDEX(Table1[Bedding],MATCH('2) Room configuration'!D242,Table1[TMS],0)),\"\")","v":""},null,null,{"$f":"IFERROR(INDEX(Table1[Room description],MATCH('2) Room configuration'!I242,Table1[TMS],0)),\"\")","v":""},{"$f":"IFERROR(INDEX(Table1[Bedding],MATCH('2) Room configuration'!I242,Table1[TMS],0)),\"\")","v":""},{"$f":"IFERROR(INDEX(Table1[Normal occupancy],MATCH(Table2[[#This Row],[New Room Type \n(TMS)]],Table1[TMS],0)),\"\")","v":""},null,null,null,null,"",{"$f":"IF(Table2[[#This Row],['# extra beds that fit in the room2]]<>0,LEFT(Table2[[#This Row],[New Room Type \n(TMS)]],6),\"\")","v":""},null,{"$f":"IF(Table2[[#This Row],['# extra beds that fit in the room]]<>Table2[[#This Row],['# extra beds that fit in the room2]],\"yes\",\"No\")","v":"No"}]
[null,{"$f":"IF(LEN(C810)>0,'1) Hotel information'!$C$4,\"\")","v":""},null,null,null,{"$f":"IFERROR(INDEX(Table1[Room description],MATCH('2) Room configuration'!D810,Table1[TMS],0)),\"\")","v":""},{"$f":"IFERROR(INDEX(Table1[Bedding],MATCH('2) Room configuration'!D243,Table1[TMS],0)),\"\")","v":""},null,null,{"$f":"IFERROR(INDEX(Table1[Room description],MATCH('2) Room configuration'!I243,Table1[TMS],0)),\"\")","v":""},{"$f":"IFERROR(INDEX(Table1[Bedding],MATCH('2) Room configuration'!I243,Table1[TMS],0)),\"\")","v":""},{"$f":"IFERROR(INDEX(Table1[Normal occupancy],MATCH(Table2[[#This Row],[New Room Type \n(TMS)]],Table1[TMS],0)),\"\")","v":""},null,null,null,null,"",{"$f":"IF(Table2[[#This Row],['# extra beds that fit in the room2]]<>0,LEFT(Table2[[#This Row],[New Room Type \n(TMS)]],6),\"\")","v":""},null,{"$f":"IF(Table2[[#This Row],['# extra beds that fit in the room]]<>Table2[[#This Row],['# extra beds that fit in the room2]],\"yes\",\"No\")","v":"No"}]
[null,{"$f":"IF(LEN(C811)>0,'1) Hotel information'!$C$4,\"\")","v":""},null,null,null,{"$f":"IFERROR(INDEX(Table1[Room description],MATCH('2) Room configuration'!D811,Table1[TMS],0)),\"\")","v":""},{"$f":"IFERROR(INDEX(Table1[Bedding],MATCH('2) Room configuration'!D244,Table1[TMS],0)),\"\")","v":""},null,null,{"$f":"IFERROR(INDEX(Table1[Room description],MATCH('2) Room configuration'!I244,Table1[TMS],0)),\"\")","v":""},{"$f":"IFERROR(INDEX(Table1[Bedding],MATCH('2) Room configuration'!I244,Table1[TMS],0)),\"\")","v":""},{"$f":"IFERROR(INDEX(Table1[Normal occupancy],MATCH(Table2[[#This Row],[New Room Type \n(TMS)]],Table1[TMS],0)),\"\")","v":""},null,null,null,null,"",{"$f":"IF(Table2[[#This Row],['# extra beds that fit in the room2]]<>0,LEFT(Table2[[#This Row],[New Room Type \n(TMS)]],6),\"\")","v":""},null,{"$f":"IF(Table2[[#This Row],['# extra beds that fit in the room]]<>Table2[[#This Row],['# extra beds that fit in the room2]],\"yes\",\"No\")","v":"No"}]
[null,{"$f":"IF(LEN(C812)>0,'1) Hotel information'!$C$4,\"\")","v":""},null,null,null,{"$f":"IFERROR(INDEX(Table1[Room description],MATCH('2) Room configuration'!D812,Table1[TMS],0)),\"\")","v":""},{"$f":"IFERROR(INDEX(Table1[Bedding],MATCH('2) Room configuration'!D245,Table1[TMS],0)),\"\")","v":""},null,null,{"$f":"IFERROR(INDEX(Table1[Room description],MATCH('2) Room configuration'!I245,Table1[TMS],0)),\"\")","v":""},{"$f":"IFERROR(INDEX(Table1[Bedding],MATCH('2) Room configuration'!I245,Table1[TMS],0)),\"\")","v":""},{"$f":"IFERROR(INDEX(Table1[Normal occupancy],MATCH(Table2[[#This Row],[New Room Type \n(TMS)]],Table1[TMS],0)),\"\")","v":""},null,null,null,null,"",{"$f":"IF(Table2[[#This Row],['# extra beds that fit in the room2]]<>0,LEFT(Table2[[#This Row],[New Room Type \n(TMS)]],6),\"\")","v":""},null,{"$f":"IF(Table2[[#This Row],['# extra beds that fit in the room]]<>Table2[[#This Row],['# extra beds that fit in the room2]],\"yes\",\"No\")","v":"No"}]
[null,{"$f":"IF(LEN(C813)>0,'1) Hotel information'!$C$4,\"\")","v":""},null,null,null,{"$f":"IFERROR(INDEX(Table1[Room description],MATCH('2) Room configuration'!D813,Table1[TMS],0)),\"\")","v":""},{"$f":"IFERROR(INDEX(Table1[Bedding],MATCH('2) Room configuration'!D246,Table1[TMS],0)),\"\")","v":""},null,null,{"$f":"IFERROR(INDEX(Table1[Room description],MATCH('2) Room configuration'!I246,Table1[TMS],0)),\"\")","v":""},{"$f":"IFERROR(INDEX(Table1[Bedding],MATCH('2) Room configuration'!I246,Table1[TMS],0)),\"\")","v":""},{"$f":"IFERROR(INDEX(Table1[Normal occupancy],MATCH(Table2[[#This Row],[New Room Type \n(TMS)]],Table1[TMS],0)),\"\")","v":""},null,null,null,null,"",{"$f":"IF(Table2[[#This Row],['# extra beds that fit in the room2]]<>0,LEFT(Table2[[#This Row],[New Room Type \n(TMS)]],6),\"\")","v":""},null,{"$f":"IF(Table2[[#This Row],['# extra beds that fit in the room]]<>Table2[[#This Row],['# extra beds that fit in the room2]],\"yes\",\"No\")","v":"No"}]
[null,{"$f":"IF(LEN(C814)>0,'1) Hotel information'!$C$4,\"\")","v":""},null,null,null,{"$f":"IFERROR(INDEX(Table1[Room description],MATCH('2) Room configuration'!D814,Table1[TMS],0)),\"\")","v":""},{"$f":"IFERROR(INDEX(Table1[Bedding],MATCH('2) Room configuration'!D247,Table1[TMS],0)),\"\")","v":""},null,null,{"$f":"IFERROR(INDEX(Table1[Room description],MATCH('2) Room configuration'!I247,Table1[TMS],0)),\"\")","v":""},{"$f":"IFERROR(INDEX(Table1[Bedding],MATCH('2) Room configuration'!I247,Table1[TMS],0)),\"\")","v":""},{"$f":"IFERROR(INDEX(Table1[Normal occupancy],MATCH(Table2[[#This Row],[New Room Type \n(TMS)]],Table1[TMS],0)),\"\")","v":""},null,null,null,null,"",{"$f":"IF(Table2[[#This Row],['# extra beds that fit in the room2]]<>0,LEFT(Table2[[#This Row],[New Room Type \n(TMS)]],6),\"\")","v":""},null,{"$f":"IF(Table2[[#This Row],['# extra beds that fit in the room]]<>Table2[[#This Row],['# extra beds that fit in the room2]],\"yes\",\"No\")","v":"No"}]
[null,{"$f":"IF(LEN(C815)>0,'1) Hotel information'!$C$4,\"\")","v":""},null,null,null,{"$f":"IFERROR(INDEX(Table1[Room description],MATCH('2) Room configuration'!D815,Table1[TMS],0)),\"\")","v":""},{"$f":"IFERROR(INDEX(Table1[Bedding],MATCH('2) Room configuration'!D248,Table1[TMS],0)),\"\")","v":""},null,null,{"$f":"IFERROR(INDEX(Table1[Room description],MATCH('2) Room configuration'!I248,Table1[TMS],0)),\"\")","v":""},{"$f":"IFERROR(INDEX(Table1[Bedding],MATCH('2) Room configuration'!I248,Table1[TMS],0)),\"\")","v":""},{"$f":"IFERROR(INDEX(Table1[Normal occupancy],MATCH(Table2[[#This Row],[New Room Type \n(TMS)]],Table1[TMS],0)),\"\")","v":""},null,null,null,null,"",{"$f":"IF(Table2[[#This Row],['# extra beds that fit in the room2]]<>0,LEFT(Table2[[#This Row],[New Room Type \n(TMS)]],6),\"\")","v":""},null,{"$f":"IF(Table2[[#This Row],['# extra beds that fit in the room]]<>Table2[[#This Row],['# extra beds that fit in the room2]],\"yes\",\"No\")","v":"No"}]
[null,{"$f":"IF(LEN(C816)>0,'1) Hotel information'!$C$4,\"\")","v":""},null,null,null,{"$f":"IFERROR(INDEX(Table1[Room description],MATCH('2) Room configuration'!D816,Table1[TMS],0)),\"\")","v":""},{"$f":"IFERROR(INDEX(Table1[Bedding],MATCH('2) Room configuration'!D249,Table1[TMS],0)),\"\")","v":""},null,null,{"$f":"IFERROR(INDEX(Table1[Room description],MATCH('2) Room configuration'!I249,Table1[TMS],0)),\"\")","v":""},{"$f":"IFERROR(INDEX(Table1[Bedding],MATCH('2) Room configuration'!I249,Table1[TMS],0)),\"\")","v":""},{"$f":"IFERROR(INDEX(Table1[Normal occupancy],MATCH(Table2[[#This Row],[New Room Type \n(TMS)]],Table1[TMS],0)),\"\")","v":""},null,null,null,null,"",{"$f":"IF(Table2[[#This Row],['# extra beds that fit in the room2]]<>0,LEFT(Table2[[#This Row],[New Room Type \n(TMS)]],6),\"\")","v":""},null,{"$f":"IF(Table2[[#This Row],['# extra beds that fit in the room]]<>Table2[[#This Row],['# extra beds that fit in the room2]],\"yes\",\"No\")","v":"No"}]
[null,{"$f":"IF(LEN(C817)>0,'1) Hotel information'!$C$4,\"\")","v":""},null,null,null,{"$f":"IFERROR(INDEX(Table1[Room description],MATCH('2) Room configuration'!D817,Table1[TMS],0)),\"\")","v":""},{"$f":"IFERROR(INDEX(Table1[Bedding],MATCH('2) Room configuration'!D250,Table1[TMS],0)),\"\")","v":""},null,null,{"$f":"IFERROR(INDEX(Table1[Room description],MATCH('2) Room configuration'!I250,Table1[TMS],0)),\"\")","v":""},{"$f":"IFERROR(INDEX(Table1[Bedding],MATCH('2) Room configuration'!I250,Table1[TMS],0)),\"\")","v":""},{"$f":"IFERROR(INDEX(Table1[Normal occupancy],MATCH(Table2[[#This Row],[New Room Type \n(TMS)]],Table1[TMS],0)),\"\")","v":""},null,null,null,null,"",{"$f":"IF(Table2[[#This Row],['# extra beds that fit in the room2]]<>0,LEFT(Table2[[#This Row],[New Room Type \n(TMS)]],6),\"\")","v":""},null,{"$f":"IF(Table2[[#This Row],['# extra beds that fit in the room]]<>Table2[[#This Row],['# extra beds that fit in the room2]],\"yes\",\"No\")","v":"No"}]
[null,{"$f":"IF(LEN(C818)>0,'1) Hotel information'!$C$4,\"\")","v":""},null,null,null,{"$f":"IFERROR(INDEX(Table1[Room description],MATCH('2) Room configuration'!D818,Table1[TMS],0)),\"\")","v":""},{"$f":"IFERROR(INDEX(Table1[Bedding],MATCH('2) Room configuration'!D251,Table1[TMS],0)),\"\")","v":""},null,null,{"$f":"IFERROR(INDEX(Table1[Room description],MATCH('2) Room configuration'!I251,Table1[TMS],0)),\"\")","v":""},{"$f":"IFERROR(INDEX(Table1[Bedding],MATCH('2) Room configuration'!I251,Table1[TMS],0)),\"\")","v":""},{"$f":"IFERROR(INDEX(Table1[Normal occupancy],MATCH(Table2[[#This Row],[New Room Type \n(TMS)]],Table1[TMS],0)),\"\")","v":""},null,null,null,null,"",{"$f":"IF(Table2[[#This Row],['# extra beds that fit in the room2]]<>0,LEFT(Table2[[#This Row],[New Room Type \n(TMS)]],6),\"\")","v":""},null,{"$f":"IF(Table2[[#This Row],['# extra beds that fit in the room]]<>Table2[[#This Row],['# extra beds that fit in the room2]],\"yes\",\"No\")","v":"No"}]
[null,{"$f":"IF(LEN(C819)>0,'1) Hotel information'!$C$4,\"\")","v":""},null,null,null,{"$f":"IFERROR(INDEX(Table1[Room description],MATCH('2) Room configuration'!D819,Table1[TMS],0)),\"\")","v":""},{"$f":"IFERROR(INDEX(Table1[Bedding],MATCH('2) Room configuration'!D252,Table1[TMS],0)),\"\")","v":""},null,null,{"$f":"IFERROR(INDEX(Table1[Room description],MATCH('2) Room configuration'!I252,Table1[TMS],0)),\"\")","v":""},{"$f":"IFERROR(INDEX(Table1[Bedding],MATCH('2) Room configuration'!I252,Table1[TMS],0)),\"\")","v":""},{"$f":"IFERROR(INDEX(Table1[Normal occupancy],MATCH(Table2[[#This Row],[New Room Type \n(TMS)]],Table1[TMS],0)),\"\")","v":""},null,null,null,null,"",{"$f":"IF(Table2[[#This Row],['# extra beds that fit in the room2]]<>0,LEFT(Table2[[#This Row],[New Room Type \n(TMS)]],6),\"\")","v":""},null,{"$f":"IF(Table2[[#This Row],['# extra beds that fit in the room]]<>Table2[[#This Row],['# extra beds that fit in the room2]],\"yes\",\"No\")","v":"No"}]
[null,{"$f":"IF(LEN(C820)>0,'1) Hotel information'!$C$4,\"\")","v":""},null,null,null,{"$f":"IFERROR(INDEX(Table1[Room description],MATCH('2) Room configuration'!D820,Table1[TMS],0)),\"\")","v":""},{"$f":"IFERROR(INDEX(Table1[Bedding],MATCH('2) Room configuration'!D253,Table1[TMS],0)),\"\")","v":""},null,null,{"$f":"IFERROR(INDEX(Table1[Room description],MATCH('2) Room configuration'!I253,Table1[TMS],0)),\"\")","v":""},{"$f":"IFERROR(INDEX(Table1[Bedding],MATCH('2) Room configuration'!I253,Table1[TMS],0)),\"\")","v":""},{"$f":"IFERROR(INDEX(Table1[Normal occupancy],MATCH(Table2[[#This Row],[New Room Type \n(TMS)]],Table1[TMS],0)),\"\")","v":""},null,null,null,null,"",{"$f":"IF(Table2[[#This Row],['# extra beds that fit in the room2]]<>0,LEFT(Table2[[#This Row],[New Room Type \n(TMS)]],6),\"\")","v":""},null,{"$f":"IF(Table2[[#This Row],['# extra beds that fit in the room]]<>Table2[[#This Row],['# extra beds that fit in the room2]],\"yes\",\"No\")","v":"No"}]
[null,{"$f":"IF(LEN(C821)>0,'1) Hotel information'!$C$4,\"\")","v":""},null,null,null,{"$f":"IFERROR(INDEX(Table1[Room description],MATCH('2) Room configuration'!D821,Table1[TMS],0)),\"\")","v":""},{"$f":"IFERROR(INDEX(Table1[Bedding],MATCH('2) Room configuration'!D254,Table1[TMS],0)),\"\")","v":""},null,null,{"$f":"IFERROR(INDEX(Table1[Room description],MATCH('2) Room configuration'!I254,Table1[TMS],0)),\"\")","v":""},{"$f":"IFERROR(INDEX(Table1[Bedding],MATCH('2) Room configuration'!I254,Table1[TMS],0)),\"\")","v":""},{"$f":"IFERROR(INDEX(Table1[Normal occupancy],MATCH(Table2[[#This Row],[New Room Type \n(TMS)]],Table1[TMS],0)),\"\")","v":""},null,null,null,null,"",{"$f":"IF(Table2[[#This Row],['# extra beds that fit in the room2]]<>0,LEFT(Table2[[#This Row],[New Room Type \n(TMS)]],6),\"\")","v":""},null,{"$f":"IF(Table2[[#This Row],['# extra beds that fit in the room]]<>Table2[[#This Row],['# extra beds that fit in the room2]],\"yes\",\"No\")","v":"No"}]
[null,{"$f":"IF(LEN(C822)>0,'1) Hotel information'!$C$4,\"\")","v":""},null,null,null,{"$f":"IFERROR(INDEX(Table1[Room description],MATCH('2) Room configuration'!D822,Table1[TMS],0)),\"\")","v":""},{"$f":"IFERROR(INDEX(Table1[Bedding],MATCH('2) Room configuration'!D255,Table1[TMS],0)),\"\")","v":""},null,null,{"$f":"IFERROR(INDEX(Table1[Room description],MATCH('2) Room configuration'!I255,Table1[TMS],0)),\"\")","v":""},{"$f":"IFERROR(INDEX(Table1[Bedding],MATCH('2) Room configuration'!I255,Table1[TMS],0)),\"\")","v":""},{"$f":"IFERROR(INDEX(Table1[Normal occupancy],MATCH(Table2[[#This Row],[New Room Type \n(TMS)]],Table1[TMS],0)),\"\")","v":""},null,null,null,null,"",{"$f":"IF(Table2[[#This Row],['# extra beds that fit in the room2]]<>0,LEFT(Table2[[#This Row],[New Room Type \n(TMS)]],6),\"\")","v":""},null,{"$f":"IF(Table2[[#This Row],['# extra beds that fit in the room]]<>Table2[[#This Row],['# extra beds that fit in the room2]],\"yes\",\"No\")","v":"No"}]
[null,{"$f":"IF(LEN(C823)>0,'1) Hotel information'!$C$4,\"\")","v":""},null,null,null,{"$f":"IFERROR(INDEX(Table1[Room description],MATCH('2) Room configuration'!D823,Table1[TMS],0)),\"\")","v":""},{"$f":"IFERROR(INDEX(Table1[Bedding],MATCH('2) Room configuration'!D256,Table1[TMS],0)),\"\")","v":""},null,null,{"$f":"IFERROR(INDEX(Table1[Room description],MATCH('2) Room configuration'!I256,Table1[TMS],0)),\"\")","v":""},{"$f":"IFERROR(INDEX(Table1[Bedding],MATCH('2) Room configuration'!I256,Table1[TMS],0)),\"\")","v":""},{"$f":"IFERROR(INDEX(Table1[Normal occupancy],MATCH(Table2[[#This Row],[New Room Type \n(TMS)]],Table1[TMS],0)),\"\")","v":""},null,null,null,null,"",{"$f":"IF(Table2[[#This Row],['# extra beds that fit in the room2]]<>0,LEFT(Table2[[#This Row],[New Room Type \n(TMS)]],6),\"\")","v":""},null,{"$f":"IF(Table2[[#This Row],['# extra beds that fit in the room]]<>Table2[[#This Row],['# extra beds that fit in the room2]],\"yes\",\"No\")","v":"No"}]
[null,{"$f":"IF(LEN(C824)>0,'1) Hotel information'!$C$4,\"\")","v":""},null,null,null,{"$f":"IFERROR(INDEX(Table1[Room description],MATCH('2) Room configuration'!D824,Table1[TMS],0)),\"\")","v":""},{"$f":"IFERROR(INDEX(Table1[Bedding],MATCH('2) Room configuration'!D257,Table1[TMS],0)),\"\")","v":""},null,null,{"$f":"IFERROR(INDEX(Table1[Room description],MATCH('2) Room configuration'!I257,Table1[TMS],0)),\"\")","v":""},{"$f":"IFERROR(INDEX(Table1[Bedding],MATCH('2) Room configuration'!I257,Table1[TMS],0)),\"\")","v":""},{"$f":"IFERROR(INDEX(Table1[Normal occupancy],MATCH(Table2[[#This Row],[New Room Type \n(TMS)]],Table1[TMS],0)),\"\")","v":""},null,null,null,null,"",{"$f":"IF(Table2[[#This Row],['# extra beds that fit in the room2]]<>0,LEFT(Table2[[#This Row],[New Room Type \n(TMS)]],6),\"\")","v":""},null,{"$f":"IF(Table2[[#This Row],['# extra beds that fit in the room]]<>Table2[[#This Row],['# extra beds that fit in the room2]],\"yes\",\"No\")","v":"No"}]
[null,{"$f":"IF(LEN(C825)>0,'1) Hotel information'!$C$4,\"\")","v":""},null,null,null,{"$f":"IFERROR(INDEX(Table1[Room description],MATCH('2) Room configuration'!D825,Table1[TMS],0)),\"\")","v":""},{"$f":"IFERROR(INDEX(Table1[Bedding],MATCH('2) Room configuration'!D258,Table1[TMS],0)),\"\")","v":""},null,null,{"$f":"IFERROR(INDEX(Table1[Room description],MATCH('2) Room configuration'!I258,Table1[TMS],0)),\"\")","v":""},{"$f":"IFERROR(INDEX(Table1[Bedding],MATCH('2) Room configuration'!I258,Table1[TMS],0)),\"\")","v":""},{"$f":"IFERROR(INDEX(Table1[Normal occupancy],MATCH(Table2[[#This Row],[New Room Type \n(TMS)]],Table1[TMS],0)),\"\")","v":""},null,null,null,null,"",{"$f":"IF(Table2[[#This Row],['# extra beds that fit in the room2]]<>0,LEFT(Table2[[#This Row],[New Room Type \n(TMS)]],6),\"\")","v":""},null,{"$f":"IF(Table2[[#This Row],['# extra beds that fit in the room]]<>Table2[[#This Row],['# extra beds that fit in the room2]],\"yes\",\"No\")","v":"No"}]
[null,{"$f":"IF(LEN(C826)>0,'1) Hotel information'!$C$4,\"\")","v":""},null,null,null,{"$f":"IFERROR(INDEX(Table1[Room description],MATCH('2) Room configuration'!D826,Table1[TMS],0)),\"\")","v":""},{"$f":"IFERROR(INDEX(Table1[Bedding],MATCH('2) Room configuration'!D259,Table1[TMS],0)),\"\")","v":""},null,null,{"$f":"IFERROR(INDEX(Table1[Room description],MATCH('2) Room configuration'!I259,Table1[TMS],0)),\"\")","v":""},{"$f":"IFERROR(INDEX(Table1[Bedding],MATCH('2) Room configuration'!I259,Table1[TMS],0)),\"\")","v":""},{"$f":"IFERROR(INDEX(Table1[Normal occupancy],MATCH(Table2[[#This Row],[New Room Type \n(TMS)]],Table1[TMS],0)),\"\")","v":""},null,null,null,null,"",{"$f":"IF(Table2[[#This Row],['# extra beds that fit in the room2]]<>0,LEFT(Table2[[#This Row],[New Room Type \n(TMS)]],6),\"\")","v":""},null,{"$f":"IF(Table2[[#This Row],['# extra beds that fit in the room]]<>Table2[[#This Row],['# extra beds that fit in the room2]],\"yes\",\"No\")","v":"No"}]
[null,{"$f":"IF(LEN(C827)>0,'1) Hotel information'!$C$4,\"\")","v":""},null,null,null,{"$f":"IFERROR(INDEX(Table1[Room description],MATCH('2) Room configuration'!D827,Table1[TMS],0)),\"\")","v":""},{"$f":"IFERROR(INDEX(Table1[Bedding],MATCH('2) Room configuration'!D260,Table1[TMS],0)),\"\")","v":""},null,null,{"$f":"IFERROR(INDEX(Table1[Room description],MATCH('2) Room configuration'!I260,Table1[TMS],0)),\"\")","v":""},{"$f":"IFERROR(INDEX(Table1[Bedding],MATCH('2) Room configuration'!I260,Table1[TMS],0)),\"\")","v":""},{"$f":"IFERROR(INDEX(Table1[Normal occupancy],MATCH(Table2[[#This Row],[New Room Type \n(TMS)]],Table1[TMS],0)),\"\")","v":""},null,null,null,null,"",{"$f":"IF(Table2[[#This Row],['# extra beds that fit in the room2]]<>0,LEFT(Table2[[#This Row],[New Room Type \n(TMS)]],6),\"\")","v":""},null,{"$f":"IF(Table2[[#This Row],['# extra beds that fit in the room]]<>Table2[[#This Row],['# extra beds that fit in the room2]],\"yes\",\"No\")","v":"No"}]
[null,{"$f":"IF(LEN(C828)>0,'1) Hotel information'!$C$4,\"\")","v":""},null,null,null,{"$f":"IFERROR(INDEX(Table1[Room description],MATCH('2) Room configuration'!D828,Table1[TMS],0)),\"\")","v":""},{"$f":"IFERROR(INDEX(Table1[Bedding],MATCH('2) Room configuration'!D261,Table1[TMS],0)),\"\")","v":""},null,null,{"$f":"IFERROR(INDEX(Table1[Room description],MATCH('2) Room configuration'!I261,Table1[TMS],0)),\"\")","v":""},{"$f":"IFERROR(INDEX(Table1[Bedding],MATCH('2) Room configuration'!I261,Table1[TMS],0)),\"\")","v":""},{"$f":"IFERROR(INDEX(Table1[Normal occupancy],MATCH(Table2[[#This Row],[New Room Type \n(TMS)]],Table1[TMS],0)),\"\")","v":""},null,null,null,null,"",{"$f":"IF(Table2[[#This Row],['# extra beds that fit in the room2]]<>0,LEFT(Table2[[#This Row],[New Room Type \n(TMS)]],6),\"\")","v":""},null,{"$f":"IF(Table2[[#This Row],['# extra beds that fit in the room]]<>Table2[[#This Row],['# extra beds that fit in the room2]],\"yes\",\"No\")","v":"No"}]
[null,{"$f":"IF(LEN(C829)>0,'1) Hotel information'!$C$4,\"\")","v":""},null,null,null,{"$f":"IFERROR(INDEX(Table1[Room description],MATCH('2) Room configuration'!D829,Table1[TMS],0)),\"\")","v":""},{"$f":"IFERROR(INDEX(Table1[Bedding],MATCH('2) Room configuration'!D262,Table1[TMS],0)),\"\")","v":""},null,null,{"$f":"IFERROR(INDEX(Table1[Room description],MATCH('2) Room configuration'!I262,Table1[TMS],0)),\"\")","v":""},{"$f":"IFERROR(INDEX(Table1[Bedding],MATCH('2) Room configuration'!I262,Table1[TMS],0)),\"\")","v":""},{"$f":"IFERROR(INDEX(Table1[Normal occupancy],MATCH(Table2[[#This Row],[New Room Type \n(TMS)]],Table1[TMS],0)),\"\")","v":""},null,null,null,null,"",{"$f":"IF(Table2[[#This Row],['# extra beds that fit in the room2]]<>0,LEFT(Table2[[#This Row],[New Room Type \n(TMS)]],6),\"\")","v":""},null,{"$f":"IF(Table2[[#This Row],['# extra beds that fit in the room]]<>Table2[[#This Row],['# extra beds that fit in the room2]],\"yes\",\"No\")","v":"No"}]
[null,{"$f":"IF(LEN(C830)>0,'1) Hotel information'!$C$4,\"\")","v":""},null,null,null,{"$f":"IFERROR(INDEX(Table1[Room description],MATCH('2) Room configuration'!D830,Table1[TMS],0)),\"\")","v":""},{"$f":"IFERROR(INDEX(Table1[Bedding],MATCH('2) Room configuration'!D263,Table1[TMS],0)),\"\")","v":""},null,null,{"$f":"IFERROR(INDEX(Table1[Room description],MATCH('2) Room configuration'!I263,Table1[TMS],0)),\"\")","v":""},{"$f":"IFERROR(INDEX(Table1[Bedding],MATCH('2) Room configuration'!I263,Table1[TMS],0)),\"\")","v":""},{"$f":"IFERROR(INDEX(Table1[Normal occupancy],MATCH(Table2[[#This Row],[New Room Type \n(TMS)]],Table1[TMS],0)),\"\")","v":""},null,null,null,null,"",{"$f":"IF(Table2[[#This Row],['# extra beds that fit in the room2]]<>0,LEFT(Table2[[#This Row],[New Room Type \n(TMS)]],6),\"\")","v":""},null,{"$f":"IF(Table2[[#This Row],['# extra beds that fit in the room]]<>Table2[[#This Row],['# extra beds that fit in the room2]],\"yes\",\"No\")","v":"No"}]
[null,{"$f":"IF(LEN(C831)>0,'1) Hotel information'!$C$4,\"\")","v":""},null,null,null,{"$f":"IFERROR(INDEX(Table1[Room description],MATCH('2) Room configuration'!D831,Table1[TMS],0)),\"\")","v":""},{"$f":"IFERROR(INDEX(Table1[Bedding],MATCH('2) Room configuration'!D264,Table1[TMS],0)),\"\")","v":""},null,null,{"$f":"IFERROR(INDEX(Table1[Room description],MATCH('2) Room configuration'!I264,Table1[TMS],0)),\"\")","v":""},{"$f":"IFERROR(INDEX(Table1[Bedding],MATCH('2) Room configuration'!I264,Table1[TMS],0)),\"\")","v":""},{"$f":"IFERROR(INDEX(Table1[Normal occupancy],MATCH(Table2[[#This Row],[New Room Type \n(TMS)]],Table1[TMS],0)),\"\")","v":""},null,null,null,null,"",{"$f":"IF(Table2[[#This Row],['# extra beds that fit in the room2]]<>0,LEFT(Table2[[#This Row],[New Room Type \n(TMS)]],6),\"\")","v":""},null,{"$f":"IF(Table2[[#This Row],['# extra beds that fit in the room]]<>Table2[[#This Row],['# extra beds that fit in the room2]],\"yes\",\"No\")","v":"No"}]
[null,{"$f":"IF(LEN(C832)>0,'1) Hotel information'!$C$4,\"\")","v":""},null,null,null,{"$f":"IFERROR(INDEX(Table1[Room description],MATCH('2) Room configuration'!D832,Table1[TMS],0)),\"\")","v":""},{"$f":"IFERROR(INDEX(Table1[Bedding],MATCH('2) Room configuration'!D265,Table1[TMS],0)),\"\")","v":""},null,null,{"$f":"IFERROR(INDEX(Table1[Room description],MATCH('2) Room configuration'!I265,Table1[TMS],0)),\"\")","v":""},{"$f":"IFERROR(INDEX(Table1[Bedding],MATCH('2) Room configuration'!I265,Table1[TMS],0)),\"\")","v":""},{"$f":"IFERROR(INDEX(Table1[Normal occupancy],MATCH(Table2[[#This Row],[New Room Type \n(TMS)]],Table1[TMS],0)),\"\")","v":""},null,null,null,null,"",{"$f":"IF(Table2[[#This Row],['# extra beds that fit in the room2]]<>0,LEFT(Table2[[#This Row],[New Room Type \n(TMS)]],6),\"\")","v":""},null,{"$f":"IF(Table2[[#This Row],['# extra beds that fit in the room]]<>Table2[[#This Row],['# extra beds that fit in the room2]],\"yes\",\"No\")","v":"No"}]
[null,{"$f":"IF(LEN(C833)>0,'1) Hotel information'!$C$4,\"\")","v":""},null,null,null,{"$f":"IFERROR(INDEX(Table1[Room description],MATCH('2) Room configuration'!D833,Table1[TMS],0)),\"\")","v":""},{"$f":"IFERROR(INDEX(Table1[Bedding],MATCH('2) Room configuration'!D266,Table1[TMS],0)),\"\")","v":""},null,null,{"$f":"IFERROR(INDEX(Table1[Room description],MATCH('2) Room configuration'!I266,Table1[TMS],0)),\"\")","v":""},{"$f":"IFERROR(INDEX(Table1[Bedding],MATCH('2) Room configuration'!I266,Table1[TMS],0)),\"\")","v":""},{"$f":"IFERROR(INDEX(Table1[Normal occupancy],MATCH(Table2[[#This Row],[New Room Type \n(TMS)]],Table1[TMS],0)),\"\")","v":""},null,null,null,null,"",{"$f":"IF(Table2[[#This Row],['# extra beds that fit in the room2]]<>0,LEFT(Table2[[#This Row],[New Room Type \n(TMS)]],6),\"\")","v":""},null,{"$f":"IF(Table2[[#This Row],['# extra beds that fit in the room]]<>Table2[[#This Row],['# extra beds that fit in the room2]],\"yes\",\"No\")","v":"No"}]
[null,{"$f":"IF(LEN(C834)>0,'1) Hotel information'!$C$4,\"\")","v":""},null,null,null,{"$f":"IFERROR(INDEX(Table1[Room description],MATCH('2) Room configuration'!D834,Table1[TMS],0)),\"\")","v":""},{"$f":"IFERROR(INDEX(Table1[Bedding],MATCH('2) Room configuration'!D267,Table1[TMS],0)),\"\")","v":""},null,null,{"$f":"IFERROR(INDEX(Table1[Room description],MATCH('2) Room configuration'!I267,Table1[TMS],0)),\"\")","v":""},{"$f":"IFERROR(INDEX(Table1[Bedding],MATCH('2) Room configuration'!I267,Table1[TMS],0)),\"\")","v":""},{"$f":"IFERROR(INDEX(Table1[Normal occupancy],MATCH(Table2[[#This Row],[New Room Type \n(TMS)]],Table1[TMS],0)),\"\")","v":""},null,null,null,null,"",{"$f":"IF(Table2[[#This Row],['# extra beds that fit in the room2]]<>0,LEFT(Table2[[#This Row],[New Room Type \n(TMS)]],6),\"\")","v":""},null,{"$f":"IF(Table2[[#This Row],['# extra beds that fit in the room]]<>Table2[[#This Row],['# extra beds that fit in the room2]],\"yes\",\"No\")","v":"No"}]
[null,{"$f":"IF(LEN(C835)>0,'1) Hotel information'!$C$4,\"\")","v":""},null,null,null,{"$f":"IFERROR(INDEX(Table1[Room description],MATCH('2) Room configuration'!D835,Table1[TMS],0)),\"\")","v":""},{"$f":"IFERROR(INDEX(Table1[Bedding],MATCH('2) Room configuration'!D268,Table1[TMS],0)),\"\")","v":""},null,null,{"$f":"IFERROR(INDEX(Table1[Room description],MATCH('2) Room configuration'!I268,Table1[TMS],0)),\"\")","v":""},{"$f":"IFERROR(INDEX(Table1[Bedding],MATCH('2) Room configuration'!I268,Table1[TMS],0)),\"\")","v":""},{"$f":"IFERROR(INDEX(Table1[Normal occupancy],MATCH(Table2[[#This Row],[New Room Type \n(TMS)]],Table1[TMS],0)),\"\")","v":""},null,null,null,null,"",{"$f":"IF(Table2[[#This Row],['# extra beds that fit in the room2]]<>0,LEFT(Table2[[#This Row],[New Room Type \n(TMS)]],6),\"\")","v":""},null,{"$f":"IF(Table2[[#This Row],['# extra beds that fit in the room]]<>Table2[[#This Row],['# extra beds that fit in the room2]],\"yes\",\"No\")","v":"No"}]
[null,{"$f":"IF(LEN(C836)>0,'1) Hotel information'!$C$4,\"\")","v":""},null,null,null,{"$f":"IFERROR(INDEX(Table1[Room description],MATCH('2) Room configuration'!D836,Table1[TMS],0)),\"\")","v":""},{"$f":"IFERROR(INDEX(Table1[Bedding],MATCH('2) Room configuration'!D269,Table1[TMS],0)),\"\")","v":""},null,null,{"$f":"IFERROR(INDEX(Table1[Room description],MATCH('2) Room configuration'!I269,Table1[TMS],0)),\"\")","v":""},{"$f":"IFERROR(INDEX(Table1[Bedding],MATCH('2) Room configuration'!I269,Table1[TMS],0)),\"\")","v":""},{"$f":"IFERROR(INDEX(Table1[Normal occupancy],MATCH(Table2[[#This Row],[New Room Type \n(TMS)]],Table1[TMS],0)),\"\")","v":""},null,null,null,null,"",{"$f":"IF(Table2[[#This Row],['# extra beds that fit in the room2]]<>0,LEFT(Table2[[#This Row],[New Room Type \n(TMS)]],6),\"\")","v":""},null,{"$f":"IF(Table2[[#This Row],['# extra beds that fit in the room]]<>Table2[[#This Row],['# extra beds that fit in the room2]],\"yes\",\"No\")","v":"No"}]
[null,{"$f":"IF(LEN(C837)>0,'1) Hotel information'!$C$4,\"\")","v":""},null,null,null,{"$f":"IFERROR(INDEX(Table1[Room description],MATCH('2) Room configuration'!D837,Table1[TMS],0)),\"\")","v":""},{"$f":"IFERROR(INDEX(Table1[Bedding],MATCH('2) Room configuration'!D270,Table1[TMS],0)),\"\")","v":""},null,null,{"$f":"IFERROR(INDEX(Table1[Room description],MATCH('2) Room configuration'!I270,Table1[TMS],0)),\"\")","v":""},{"$f":"IFERROR(INDEX(Table1[Bedding],MATCH('2) Room configuration'!I270,Table1[TMS],0)),\"\")","v":""},{"$f":"IFERROR(INDEX(Table1[Normal occupancy],MATCH(Table2[[#This Row],[New Room Type \n(TMS)]],Table1[TMS],0)),\"\")","v":""},null,null,null,null,"",{"$f":"IF(Table2[[#This Row],['# extra beds that fit in the room2]]<>0,LEFT(Table2[[#This Row],[New Room Type \n(TMS)]],6),\"\")","v":""},null,{"$f":"IF(Table2[[#This Row],['# extra beds that fit in the room]]<>Table2[[#This Row],['# extra beds that fit in the room2]],\"yes\",\"No\")","v":"No"}]
[null,{"$f":"IF(LEN(C838)>0,'1) Hotel information'!$C$4,\"\")","v":""},null,null,null,{"$f":"IFERROR(INDEX(Table1[Room description],MATCH('2) Room configuration'!D838,Table1[TMS],0)),\"\")","v":""},{"$f":"IFERROR(INDEX(Table1[Bedding],MATCH('2) Room configuration'!D271,Table1[TMS],0)),\"\")","v":""},null,null,{"$f":"IFERROR(INDEX(Table1[Room description],MATCH('2) Room configuration'!I271,Table1[TMS],0)),\"\")","v":""},{"$f":"IFERROR(INDEX(Table1[Bedding],MATCH('2) Room configuration'!I271,Table1[TMS],0)),\"\")","v":""},{"$f":"IFERROR(INDEX(Table1[Normal occupancy],MATCH(Table2[[#This Row],[New Room Type \n(TMS)]],Table1[TMS],0)),\"\")","v":""},null,null,null,null,"",{"$f":"IF(Table2[[#This Row],['# extra beds that fit in the room2]]<>0,LEFT(Table2[[#This Row],[New Room Type \n(TMS)]],6),\"\")","v":""},null,{"$f":"IF(Table2[[#This Row],['# extra beds that fit in the room]]<>Table2[[#This Row],['# extra beds that fit in the room2]],\"yes\",\"No\")","v":"No"}]
[null,{"$f":"IF(LEN(C839)>0,'1) Hotel information'!$C$4,\"\")","v":""},null,null,null,{"$f":"IFERROR(INDEX(Table1[Room description],MATCH('2) Room configuration'!D839,Table1[TMS],0)),\"\")","v":""},{"$f":"IFERROR(INDEX(Table1[Bedding],MATCH('2) Room configuration'!D272,Table1[TMS],0)),\"\")","v":""},null,null,{"$f":"IFERROR(INDEX(Table1[Room description],MATCH('2) Room configuration'!I272,Table1[TMS],0)),\"\")","v":""},{"$f":"IFERROR(INDEX(Table1[Bedding],MATCH('2) Room configuration'!I272,Table1[TMS],0)),\"\")","v":""},{"$f":"IFERROR(INDEX(Table1[Normal occupancy],MATCH(Table2[[#This Row],[New Room Type \n(TMS)]],Table1[TMS],0)),\"\")","v":""},null,null,null,null,"",{"$f":"IF(Table2[[#This Row],['# extra beds that fit in the room2]]<>0,LEFT(Table2[[#This Row],[New Room Type \n(TMS)]],6),\"\")","v":""},null,{"$f":"IF(Table2[[#This Row],['# extra beds that fit in the room]]<>Table2[[#This Row],['# extra beds that fit in the room2]],\"yes\",\"No\")","v":"No"}]
[null,{"$f":"IF(LEN(C840)>0,'1) Hotel information'!$C$4,\"\")","v":""},null,null,null,{"$f":"IFERROR(INDEX(Table1[Room description],MATCH('2) Room configuration'!D840,Table1[TMS],0)),\"\")","v":""},{"$f":"IFERROR(INDEX(Table1[Bedding],MATCH('2) Room configuration'!D273,Table1[TMS],0)),\"\")","v":""},null,null,{"$f":"IFERROR(INDEX(Table1[Room description],MATCH('2) Room configuration'!I273,Table1[TMS],0)),\"\")","v":""},{"$f":"IFERROR(INDEX(Table1[Bedding],MATCH('2) Room configuration'!I273,Table1[TMS],0)),\"\")","v":""},{"$f":"IFERROR(INDEX(Table1[Normal occupancy],MATCH(Table2[[#This Row],[New Room Type \n(TMS)]],Table1[TMS],0)),\"\")","v":""},null,null,null,null,"",{"$f":"IF(Table2[[#This Row],['# extra beds that fit in the room2]]<>0,LEFT(Table2[[#This Row],[New Room Type \n(TMS)]],6),\"\")","v":""},null,{"$f":"IF(Table2[[#This Row],['# extra beds that fit in the room]]<>Table2[[#This Row],['# extra beds that fit in the room2]],\"yes\",\"No\")","v":"No"}]
[null,{"$f":"IF(LEN(C841)>0,'1) Hotel information'!$C$4,\"\")","v":""},null,null,null,{"$f":"IFERROR(INDEX(Table1[Room description],MATCH('2) Room configuration'!D841,Table1[TMS],0)),\"\")","v":""},{"$f":"IFERROR(INDEX(Table1[Bedding],MATCH('2) Room configuration'!D274,Table1[TMS],0)),\"\")","v":""},null,null,{"$f":"IFERROR(INDEX(Table1[Room description],MATCH('2) Room configuration'!I274,Table1[TMS],0)),\"\")","v":""},{"$f":"IFERROR(INDEX(Table1[Bedding],MATCH('2) Room configuration'!I274,Table1[TMS],0)),\"\")","v":""},{"$f":"IFERROR(INDEX(Table1[Normal occupancy],MATCH(Table2[[#This Row],[New Room Type \n(TMS)]],Table1[TMS],0)),\"\")","v":""},null,null,null,null,"",{"$f":"IF(Table2[[#This Row],['# extra beds that fit in the room2]]<>0,LEFT(Table2[[#This Row],[New Room Type \n(TMS)]],6),\"\")","v":""},null,{"$f":"IF(Table2[[#This Row],['# extra beds that fit in the room]]<>Table2[[#This Row],['# extra beds that fit in the room2]],\"yes\",\"No\")","v":"No"}]
[null,{"$f":"IF(LEN(C842)>0,'1) Hotel information'!$C$4,\"\")","v":""},null,null,null,{"$f":"IFERROR(INDEX(Table1[Room description],MATCH('2) Room configuration'!D842,Table1[TMS],0)),\"\")","v":""},{"$f":"IFERROR(INDEX(Table1[Bedding],MATCH('2) Room configuration'!D275,Table1[TMS],0)),\"\")","v":""},null,null,{"$f":"IFERROR(INDEX(Table1[Room description],MATCH('2) Room configuration'!I275,Table1[TMS],0)),\"\")","v":""},{"$f":"IFERROR(INDEX(Table1[Bedding],MATCH('2) Room configuration'!I275,Table1[TMS],0)),\"\")","v":""},{"$f":"IFERROR(INDEX(Table1[Normal occupancy],MATCH(Table2[[#This Row],[New Room Type \n(TMS)]],Table1[TMS],0)),\"\")","v":""},null,null,null,null,"",{"$f":"IF(Table2[[#This Row],['# extra beds that fit in the room2]]<>0,LEFT(Table2[[#This Row],[New Room Type \n(TMS)]],6),\"\")","v":""},null,{"$f":"IF(Table2[[#This Row],['# extra beds that fit in the room]]<>Table2[[#This Row],['# extra beds that fit in the room2]],\"yes\",\"No\")","v":"No"}]
[null,{"$f":"IF(LEN(C843)>0,'1) Hotel information'!$C$4,\"\")","v":""},null,null,null,{"$f":"IFERROR(INDEX(Table1[Room description],MATCH('2) Room configuration'!D843,Table1[TMS],0)),\"\")","v":""},{"$f":"IFERROR(INDEX(Table1[Bedding],MATCH('2) Room configuration'!D276,Table1[TMS],0)),\"\")","v":""},null,null,{"$f":"IFERROR(INDEX(Table1[Room description],MATCH('2) Room configuration'!I276,Table1[TMS],0)),\"\")","v":""},{"$f":"IFERROR(INDEX(Table1[Bedding],MATCH('2) Room configuration'!I276,Table1[TMS],0)),\"\")","v":""},{"$f":"IFERROR(INDEX(Table1[Normal occupancy],MATCH(Table2[[#This Row],[New Room Type \n(TMS)]],Table1[TMS],0)),\"\")","v":""},null,null,null,null,"",{"$f":"IF(Table2[[#This Row],['# extra beds that fit in the room2]]<>0,LEFT(Table2[[#This Row],[New Room Type \n(TMS)]],6),\"\")","v":""},null,{"$f":"IF(Table2[[#This Row],['# extra beds that fit in the room]]<>Table2[[#This Row],['# extra beds that fit in the room2]],\"yes\",\"No\")","v":"No"}]
[null,{"$f":"IF(LEN(C844)>0,'1) Hotel information'!$C$4,\"\")","v":""},null,null,null,{"$f":"IFERROR(INDEX(Table1[Room description],MATCH('2) Room configuration'!D844,Table1[TMS],0)),\"\")","v":""},{"$f":"IFERROR(INDEX(Table1[Bedding],MATCH('2) Room configuration'!D277,Table1[TMS],0)),\"\")","v":""},null,null,{"$f":"IFERROR(INDEX(Table1[Room description],MATCH('2) Room configuration'!I277,Table1[TMS],0)),\"\")","v":""},{"$f":"IFERROR(INDEX(Table1[Bedding],MATCH('2) Room configuration'!I277,Table1[TMS],0)),\"\")","v":""},{"$f":"IFERROR(INDEX(Table1[Normal occupancy],MATCH(Table2[[#This Row],[New Room Type \n(TMS)]],Table1[TMS],0)),\"\")","v":""},null,null,null,null,"",{"$f":"IF(Table2[[#This Row],['# extra beds that fit in the room2]]<>0,LEFT(Table2[[#This Row],[New Room Type \n(TMS)]],6),\"\")","v":""},null,{"$f":"IF(Table2[[#This Row],['# extra beds that fit in the room]]<>Table2[[#This Row],['# extra beds that fit in the room2]],\"yes\",\"No\")","v":"No"}]
[null,{"$f":"IF(LEN(C845)>0,'1) Hotel information'!$C$4,\"\")","v":""},null,null,null,{"$f":"IFERROR(INDEX(Table1[Room description],MATCH('2) Room configuration'!D845,Table1[TMS],0)),\"\")","v":""},{"$f":"IFERROR(INDEX(Table1[Bedding],MATCH('2) Room configuration'!D278,Table1[TMS],0)),\"\")","v":""},null,null,{"$f":"IFERROR(INDEX(Table1[Room description],MATCH('2) Room configuration'!I278,Table1[TMS],0)),\"\")","v":""},{"$f":"IFERROR(INDEX(Table1[Bedding],MATCH('2) Room configuration'!I278,Table1[TMS],0)),\"\")","v":""},{"$f":"IFERROR(INDEX(Table1[Normal occupancy],MATCH(Table2[[#This Row],[New Room Type \n(TMS)]],Table1[TMS],0)),\"\")","v":""},null,null,null,null,"",{"$f":"IF(Table2[[#This Row],['# extra beds that fit in the room2]]<>0,LEFT(Table2[[#This Row],[New Room Type \n(TMS)]],6),\"\")","v":""},null,{"$f":"IF(Table2[[#This Row],['# extra beds that fit in the room]]<>Table2[[#This Row],['# extra beds that fit in the room2]],\"yes\",\"No\")","v":"No"}]
[null,{"$f":"IF(LEN(C846)>0,'1) Hotel information'!$C$4,\"\")","v":""},null,null,null,{"$f":"IFERROR(INDEX(Table1[Room description],MATCH('2) Room configuration'!D846,Table1[TMS],0)),\"\")","v":""},{"$f":"IFERROR(INDEX(Table1[Bedding],MATCH('2) Room configuration'!D279,Table1[TMS],0)),\"\")","v":""},null,null,{"$f":"IFERROR(INDEX(Table1[Room description],MATCH('2) Room configuration'!I279,Table1[TMS],0)),\"\")","v":""},{"$f":"IFERROR(INDEX(Table1[Bedding],MATCH('2) Room configuration'!I279,Table1[TMS],0)),\"\")","v":""},{"$f":"IFERROR(INDEX(Table1[Normal occupancy],MATCH(Table2[[#This Row],[New Room Type \n(TMS)]],Table1[TMS],0)),\"\")","v":""},null,null,null,null,"",{"$f":"IF(Table2[[#This Row],['# extra beds that fit in the room2]]<>0,LEFT(Table2[[#This Row],[New Room Type \n(TMS)]],6),\"\")","v":""},null,{"$f":"IF(Table2[[#This Row],['# extra beds that fit in the room]]<>Table2[[#This Row],['# extra beds that fit in the room2]],\"yes\",\"No\")","v":"No"}]
[null,{"$f":"IF(LEN(C847)>0,'1) Hotel information'!$C$4,\"\")","v":""},null,null,null,{"$f":"IFERROR(INDEX(Table1[Room description],MATCH('2) Room configuration'!D847,Table1[TMS],0)),\"\")","v":""},{"$f":"IFERROR(INDEX(Table1[Bedding],MATCH('2) Room configuration'!D280,Table1[TMS],0)),\"\")","v":""},null,null,{"$f":"IFERROR(INDEX(Table1[Room description],MATCH('2) Room configuration'!I280,Table1[TMS],0)),\"\")","v":""},{"$f":"IFERROR(INDEX(Table1[Bedding],MATCH('2) Room configuration'!I280,Table1[TMS],0)),\"\")","v":""},{"$f":"IFERROR(INDEX(Table1[Normal occupancy],MATCH(Table2[[#This Row],[New Room Type \n(TMS)]],Table1[TMS],0)),\"\")","v":""},null,null,null,null,"",{"$f":"IF(Table2[[#This Row],['# extra beds that fit in the room2]]<>0,LEFT(Table2[[#This Row],[New Room Type \n(TMS)]],6),\"\")","v":""},null,{"$f":"IF(Table2[[#This Row],['# extra beds that fit in the room]]<>Table2[[#This Row],['# extra beds that fit in the room2]],\"yes\",\"No\")","v":"No"}]
[null,{"$f":"IF(LEN(C848)>0,'1) Hotel information'!$C$4,\"\")","v":""},null,null,null,{"$f":"IFERROR(INDEX(Table1[Room description],MATCH('2) Room configuration'!D848,Table1[TMS],0)),\"\")","v":""},{"$f":"IFERROR(INDEX(Table1[Bedding],MATCH('2) Room configuration'!D281,Table1[TMS],0)),\"\")","v":""},null,null,{"$f":"IFERROR(INDEX(Table1[Room description],MATCH('2) Room configuration'!I281,Table1[TMS],0)),\"\")","v":""},{"$f":"IFERROR(INDEX(Table1[Bedding],MATCH('2) Room configuration'!I281,Table1[TMS],0)),\"\")","v":""},{"$f":"IFERROR(INDEX(Table1[Normal occupancy],MATCH(Table2[[#This Row],[New Room Type \n(TMS)]],Table1[TMS],0)),\"\")","v":""},null,null,null,null,"",{"$f":"IF(Table2[[#This Row],['# extra beds that fit in the room2]]<>0,LEFT(Table2[[#This Row],[New Room Type \n(TMS)]],6),\"\")","v":""},null,{"$f":"IF(Table2[[#This Row],['# extra beds that fit in the room]]<>Table2[[#This Row],['# extra beds that fit in the room2]],\"yes\",\"No\")","v":"No"}]
[null,{"$f":"IF(LEN(C849)>0,'1) Hotel information'!$C$4,\"\")","v":""},null,null,null,{"$f":"IFERROR(INDEX(Table1[Room description],MATCH('2) Room configuration'!D849,Table1[TMS],0)),\"\")","v":""},{"$f":"IFERROR(INDEX(Table1[Bedding],MATCH('2) Room configuration'!D282,Table1[TMS],0)),\"\")","v":""},null,null,{"$f":"IFERROR(INDEX(Table1[Room description],MATCH('2) Room configuration'!I282,Table1[TMS],0)),\"\")","v":""},{"$f":"IFERROR(INDEX(Table1[Bedding],MATCH('2) Room configuration'!I282,Table1[TMS],0)),\"\")","v":""},{"$f":"IFERROR(INDEX(Table1[Normal occupancy],MATCH(Table2[[#This Row],[New Room Type \n(TMS)]],Table1[TMS],0)),\"\")","v":""},null,null,null,null,"",{"$f":"IF(Table2[[#This Row],['# extra beds that fit in the room2]]<>0,LEFT(Table2[[#This Row],[New Room Type \n(TMS)]],6),\"\")","v":""},null,{"$f":"IF(Table2[[#This Row],['# extra beds that fit in the room]]<>Table2[[#This Row],['# extra beds that fit in the room2]],\"yes\",\"No\")","v":"No"}]
[null,{"$f":"IF(LEN(C850)>0,'1) Hotel information'!$C$4,\"\")","v":""},null,null,null,{"$f":"IFERROR(INDEX(Table1[Room description],MATCH('2) Room configuration'!D850,Table1[TMS],0)),\"\")","v":""},{"$f":"IFERROR(INDEX(Table1[Bedding],MATCH('2) Room configuration'!D283,Table1[TMS],0)),\"\")","v":""},null,null,{"$f":"IFERROR(INDEX(Table1[Room description],MATCH('2) Room configuration'!I283,Table1[TMS],0)),\"\")","v":""},{"$f":"IFERROR(INDEX(Table1[Bedding],MATCH('2) Room configuration'!I283,Table1[TMS],0)),\"\")","v":""},{"$f":"IFERROR(INDEX(Table1[Normal occupancy],MATCH(Table2[[#This Row],[New Room Type \n(TMS)]],Table1[TMS],0)),\"\")","v":""},null,null,null,null,"",{"$f":"IF(Table2[[#This Row],['# extra beds that fit in the room2]]<>0,LEFT(Table2[[#This Row],[New Room Type \n(TMS)]],6),\"\")","v":""},null,{"$f":"IF(Table2[[#This Row],['# extra beds that fit in the room]]<>Table2[[#This Row],['# extra beds that fit in the room2]],\"yes\",\"No\")","v":"No"}]
[null,{"$f":"IF(LEN(C851)>0,'1) Hotel information'!$C$4,\"\")","v":""},null,null,null,{"$f":"IFERROR(INDEX(Table1[Room description],MATCH('2) Room configuration'!D851,Table1[TMS],0)),\"\")","v":""},{"$f":"IFERROR(INDEX(Table1[Bedding],MATCH('2) Room configuration'!D284,Table1[TMS],0)),\"\")","v":""},null,null,{"$f":"IFERROR(INDEX(Table1[Room description],MATCH('2) Room configuration'!I284,Table1[TMS],0)),\"\")","v":""},{"$f":"IFERROR(INDEX(Table1[Bedding],MATCH('2) Room configuration'!I284,Table1[TMS],0)),\"\")","v":""},{"$f":"IFERROR(INDEX(Table1[Normal occupancy],MATCH(Table2[[#This Row],[New Room Type \n(TMS)]],Table1[TMS],0)),\"\")","v":""},null,null,null,null,"",{"$f":"IF(Table2[[#This Row],['# extra beds that fit in the room2]]<>0,LEFT(Table2[[#This Row],[New Room Type \n(TMS)]],6),\"\")","v":""},null,{"$f":"IF(Table2[[#This Row],['# extra beds that fit in the room]]<>Table2[[#This Row],['# extra beds that fit in the room2]],\"yes\",\"No\")","v":"No"}]
[null,{"$f":"IF(LEN(C852)>0,'1) Hotel information'!$C$4,\"\")","v":""},null,null,null,{"$f":"IFERROR(INDEX(Table1[Room description],MATCH('2) Room configuration'!D852,Table1[TMS],0)),\"\")","v":""},{"$f":"IFERROR(INDEX(Table1[Bedding],MATCH('2) Room configuration'!D285,Table1[TMS],0)),\"\")","v":""},null,null,{"$f":"IFERROR(INDEX(Table1[Room description],MATCH('2) Room configuration'!I285,Table1[TMS],0)),\"\")","v":""},{"$f":"IFERROR(INDEX(Table1[Bedding],MATCH('2) Room configuration'!I285,Table1[TMS],0)),\"\")","v":""},{"$f":"IFERROR(INDEX(Table1[Normal occupancy],MATCH(Table2[[#This Row],[New Room Type \n(TMS)]],Table1[TMS],0)),\"\")","v":""},null,null,null,null,"",{"$f":"IF(Table2[[#This Row],['# extra beds that fit in the room2]]<>0,LEFT(Table2[[#This Row],[New Room Type \n(TMS)]],6),\"\")","v":""},null,{"$f":"IF(Table2[[#This Row],['# extra beds that fit in the room]]<>Table2[[#This Row],['# extra beds that fit in the room2]],\"yes\",\"No\")","v":"No"}]
[null,{"$f":"IF(LEN(C853)>0,'1) Hotel information'!$C$4,\"\")","v":""},null,null,null,{"$f":"IFERROR(INDEX(Table1[Room description],MATCH('2) Room configuration'!D853,Table1[TMS],0)),\"\")","v":""},{"$f":"IFERROR(INDEX(Table1[Bedding],MATCH('2) Room configuration'!D286,Table1[TMS],0)),\"\")","v":""},null,null,{"$f":"IFERROR(INDEX(Table1[Room description],MATCH('2) Room configuration'!I286,Table1[TMS],0)),\"\")","v":""},{"$f":"IFERROR(INDEX(Table1[Bedding],MATCH('2) Room configuration'!I286,Table1[TMS],0)),\"\")","v":""},{"$f":"IFERROR(INDEX(Table1[Normal occupancy],MATCH(Table2[[#This Row],[New Room Type \n(TMS)]],Table1[TMS],0)),\"\")","v":""},null,null,null,null,"",{"$f":"IF(Table2[[#This Row],['# extra beds that fit in the room2]]<>0,LEFT(Table2[[#This Row],[New Room Type \n(TMS)]],6),\"\")","v":""},null,{"$f":"IF(Table2[[#This Row],['# extra beds that fit in the room]]<>Table2[[#This Row],['# extra beds that fit in the room2]],\"yes\",\"No\")","v":"No"}]
[null,{"$f":"IF(LEN(C854)>0,'1) Hotel information'!$C$4,\"\")","v":""},null,null,null,{"$f":"IFERROR(INDEX(Table1[Room description],MATCH('2) Room configuration'!D854,Table1[TMS],0)),\"\")","v":""},{"$f":"IFERROR(INDEX(Table1[Bedding],MATCH('2) Room configuration'!D287,Table1[TMS],0)),\"\")","v":""},null,null,{"$f":"IFERROR(INDEX(Table1[Room description],MATCH('2) Room configuration'!I287,Table1[TMS],0)),\"\")","v":""},{"$f":"IFERROR(INDEX(Table1[Bedding],MATCH('2) Room configuration'!I287,Table1[TMS],0)),\"\")","v":""},{"$f":"IFERROR(INDEX(Table1[Normal occupancy],MATCH(Table2[[#This Row],[New Room Type \n(TMS)]],Table1[TMS],0)),\"\")","v":""},null,null,null,null,"",{"$f":"IF(Table2[[#This Row],['# extra beds that fit in the room2]]<>0,LEFT(Table2[[#This Row],[New Room Type \n(TMS)]],6),\"\")","v":""},null,{"$f":"IF(Table2[[#This Row],['# extra beds that fit in the room]]<>Table2[[#This Row],['# extra beds that fit in the room2]],\"yes\",\"No\")","v":"No"}]
[null,{"$f":"IF(LEN(C855)>0,'1) Hotel information'!$C$4,\"\")","v":""},null,null,null,{"$f":"IFERROR(INDEX(Table1[Room description],MATCH('2) Room configuration'!D855,Table1[TMS],0)),\"\")","v":""},{"$f":"IFERROR(INDEX(Table1[Bedding],MATCH('2) Room configuration'!D288,Table1[TMS],0)),\"\")","v":""},null,null,{"$f":"IFERROR(INDEX(Table1[Room description],MATCH('2) Room configuration'!I288,Table1[TMS],0)),\"\")","v":""},{"$f":"IFERROR(INDEX(Table1[Bedding],MATCH('2) Room configuration'!I288,Table1[TMS],0)),\"\")","v":""},{"$f":"IFERROR(INDEX(Table1[Normal occupancy],MATCH(Table2[[#This Row],[New Room Type \n(TMS)]],Table1[TMS],0)),\"\")","v":""},null,null,null,null,{"$f":"IF(LEN(C855)>0,IF(D855=I855,\"No\",\"Yes\"),\"\")","v":""},{"$f":"IF(Table2[[#This Row],['# extra beds that fit in the room2]]<>0,LEFT(Table2[[#This Row],[New Room Type \n(TMS)]],6),\"\")","v":""},null,{"$f":"IF(Table2[[#This Row],['# extra beds that fit in the room]]<>Table2[[#This Row],['# extra beds that fit in the room2]],\"yes\",\"No\")","v":"No"}]
[null,{"$f":"IF(LEN(C856)>0,'1) Hotel information'!$C$4,\"\")","v":""},null,null,null,{"$f":"IFERROR(INDEX(Table1[Room description],MATCH('2) Room configuration'!D856,Table1[TMS],0)),\"\")","v":""},{"$f":"IFERROR(INDEX(Table1[Bedding],MATCH('2) Room configuration'!D289,Table1[TMS],0)),\"\")","v":""},null,null,{"$f":"IFERROR(INDEX(Table1[Room description],MATCH('2) Room configuration'!I289,Table1[TMS],0)),\"\")","v":""},{"$f":"IFERROR(INDEX(Table1[Bedding],MATCH('2) Room configuration'!I289,Table1[TMS],0)),\"\")","v":""},{"$f":"IFERROR(INDEX(Table1[Normal occupancy],MATCH(Table2[[#This Row],[New Room Type \n(TMS)]],Table1[TMS],0)),\"\")","v":""},null,null,null,null,"",{"$f":"IF(Table2[[#This Row],['# extra beds that fit in the room2]]<>0,LEFT(Table2[[#This Row],[New Room Type \n(TMS)]],6),\"\")","v":""},null,{"$f":"IF(Table2[[#This Row],['# extra beds that fit in the room]]<>Table2[[#This Row],['# extra beds that fit in the room2]],\"yes\",\"No\")","v":"No"}]
[null,{"$f":"IF(LEN(C857)>0,'1) Hotel information'!$C$4,\"\")","v":""},null,null,null,{"$f":"IFERROR(INDEX(Table1[Room description],MATCH('2) Room configuration'!D857,Table1[TMS],0)),\"\")","v":""},{"$f":"IFERROR(INDEX(Table1[Bedding],MATCH('2) Room configuration'!D290,Table1[TMS],0)),\"\")","v":""},null,null,{"$f":"IFERROR(INDEX(Table1[Room description],MATCH('2) Room configuration'!I290,Table1[TMS],0)),\"\")","v":""},{"$f":"IFERROR(INDEX(Table1[Bedding],MATCH('2) Room configuration'!I290,Table1[TMS],0)),\"\")","v":""},{"$f":"IFERROR(INDEX(Table1[Normal occupancy],MATCH(Table2[[#This Row],[New Room Type \n(TMS)]],Table1[TMS],0)),\"\")","v":""},null,null,null,null,"",{"$f":"IF(Table2[[#This Row],['# extra beds that fit in the room2]]<>0,LEFT(Table2[[#This Row],[New Room Type \n(TMS)]],6),\"\")","v":""},null,{"$f":"IF(Table2[[#This Row],['# extra beds that fit in the room]]<>Table2[[#This Row],['# extra beds that fit in the room2]],\"yes\",\"No\")","v":"No"}]
[null,{"$f":"IF(LEN(C858)>0,'1) Hotel information'!$C$4,\"\")","v":""},null,null,null,{"$f":"IFERROR(INDEX(Table1[Room description],MATCH('2) Room configuration'!D858,Table1[TMS],0)),\"\")","v":""},{"$f":"IFERROR(INDEX(Table1[Bedding],MATCH('2) Room configuration'!D291,Table1[TMS],0)),\"\")","v":""},null,null,{"$f":"IFERROR(INDEX(Table1[Room description],MATCH('2) Room configuration'!I291,Table1[TMS],0)),\"\")","v":""},{"$f":"IFERROR(INDEX(Table1[Bedding],MATCH('2) Room configuration'!I291,Table1[TMS],0)),\"\")","v":""},{"$f":"IFERROR(INDEX(Table1[Normal occupancy],MATCH(Table2[[#This Row],[New Room Type \n(TMS)]],Table1[TMS],0)),\"\")","v":""},null,null,null,null,"",{"$f":"IF(Table2[[#This Row],['# extra beds that fit in the room2]]<>0,LEFT(Table2[[#This Row],[New Room Type \n(TMS)]],6),\"\")","v":""},null,{"$f":"IF(Table2[[#This Row],['# extra beds that fit in the room]]<>Table2[[#This Row],['# extra beds that fit in the room2]],\"yes\",\"No\")","v":"No"}]
[null,{"$f":"IF(LEN(C859)>0,'1) Hotel information'!$C$4,\"\")","v":""},null,null,null,{"$f":"IFERROR(INDEX(Table1[Room description],MATCH('2) Room configuration'!D859,Table1[TMS],0)),\"\")","v":""},{"$f":"IFERROR(INDEX(Table1[Bedding],MATCH('2) Room configuration'!D292,Table1[TMS],0)),\"\")","v":""},null,null,{"$f":"IFERROR(INDEX(Table1[Room description],MATCH('2) Room configuration'!I292,Table1[TMS],0)),\"\")","v":""},{"$f":"IFERROR(INDEX(Table1[Bedding],MATCH('2) Room configuration'!I292,Table1[TMS],0)),\"\")","v":""},{"$f":"IFERROR(INDEX(Table1[Normal occupancy],MATCH(Table2[[#This Row],[New Room Type \n(TMS)]],Table1[TMS],0)),\"\")","v":""},null,null,null,null,"",{"$f":"IF(Table2[[#This Row],['# extra beds that fit in the room2]]<>0,LEFT(Table2[[#This Row],[New Room Type \n(TMS)]],6),\"\")","v":""},null,{"$f":"IF(Table2[[#This Row],['# extra beds that fit in the room]]<>Table2[[#This Row],['# extra beds that fit in the room2]],\"yes\",\"No\")","v":"No"}]
[null,{"$f":"IF(LEN(C860)>0,'1) Hotel information'!$C$4,\"\")","v":""},null,null,null,{"$f":"IFERROR(INDEX(Table1[Room description],MATCH('2) Room configuration'!D860,Table1[TMS],0)),\"\")","v":""},{"$f":"IFERROR(INDEX(Table1[Bedding],MATCH('2) Room configuration'!D293,Table1[TMS],0)),\"\")","v":""},null,null,{"$f":"IFERROR(INDEX(Table1[Room description],MATCH('2) Room configuration'!I293,Table1[TMS],0)),\"\")","v":""},{"$f":"IFERROR(INDEX(Table1[Bedding],MATCH('2) Room configuration'!I293,Table1[TMS],0)),\"\")","v":""},{"$f":"IFERROR(INDEX(Table1[Normal occupancy],MATCH(Table2[[#This Row],[New Room Type \n(TMS)]],Table1[TMS],0)),\"\")","v":""},null,null,null,null,"",{"$f":"IF(Table2[[#This Row],['# extra beds that fit in the room2]]<>0,LEFT(Table2[[#This Row],[New Room Type \n(TMS)]],6),\"\")","v":""},null,{"$f":"IF(Table2[[#This Row],['# extra beds that fit in the room]]<>Table2[[#This Row],['# extra beds that fit in the room2]],\"yes\",\"No\")","v":"No"}]
[null,{"$f":"IF(LEN(C861)>0,'1) Hotel information'!$C$4,\"\")","v":""},null,null,null,{"$f":"IFERROR(INDEX(Table1[Room description],MATCH('2) Room configuration'!D861,Table1[TMS],0)),\"\")","v":""},{"$f":"IFERROR(INDEX(Table1[Bedding],MATCH('2) Room configuration'!D294,Table1[TMS],0)),\"\")","v":""},null,null,{"$f":"IFERROR(INDEX(Table1[Room description],MATCH('2) Room configuration'!I294,Table1[TMS],0)),\"\")","v":""},{"$f":"IFERROR(INDEX(Table1[Bedding],MATCH('2) Room configuration'!I294,Table1[TMS],0)),\"\")","v":""},{"$f":"IFERROR(INDEX(Table1[Normal occupancy],MATCH(Table2[[#This Row],[New Room Type \n(TMS)]],Table1[TMS],0)),\"\")","v":""},null,null,null,null,"",{"$f":"IF(Table2[[#This Row],['# extra beds that fit in the room2]]<>0,LEFT(Table2[[#This Row],[New Room Type \n(TMS)]],6),\"\")","v":""},null,{"$f":"IF(Table2[[#This Row],['# extra beds that fit in the room]]<>Table2[[#This Row],['# extra beds that fit in the room2]],\"yes\",\"No\")","v":"No"}]
[null,{"$f":"IF(LEN(C862)>0,'1) Hotel information'!$C$4,\"\")","v":""},null,null,null,{"$f":"IFERROR(INDEX(Table1[Room description],MATCH('2) Room configuration'!D862,Table1[TMS],0)),\"\")","v":""},{"$f":"IFERROR(INDEX(Table1[Bedding],MATCH('2) Room configuration'!D295,Table1[TMS],0)),\"\")","v":""},null,null,{"$f":"IFERROR(INDEX(Table1[Room description],MATCH('2) Room configuration'!I295,Table1[TMS],0)),\"\")","v":""},{"$f":"IFERROR(INDEX(Table1[Bedding],MATCH('2) Room configuration'!I295,Table1[TMS],0)),\"\")","v":""},{"$f":"IFERROR(INDEX(Table1[Normal occupancy],MATCH(Table2[[#This Row],[New Room Type \n(TMS)]],Table1[TMS],0)),\"\")","v":""},null,null,null,null,"",{"$f":"IF(Table2[[#This Row],['# extra beds that fit in the room2]]<>0,LEFT(Table2[[#This Row],[New Room Type \n(TMS)]],6),\"\")","v":""},null,{"$f":"IF(Table2[[#This Row],['# extra beds that fit in the room]]<>Table2[[#This Row],['# extra beds that fit in the room2]],\"yes\",\"No\")","v":"No"}]
[null,{"$f":"IF(LEN(C863)>0,'1) Hotel information'!$C$4,\"\")","v":""},null,null,null,{"$f":"IFERROR(INDEX(Table1[Room description],MATCH('2) Room configuration'!D863,Table1[TMS],0)),\"\")","v":""},{"$f":"IFERROR(INDEX(Table1[Bedding],MATCH('2) Room configuration'!D296,Table1[TMS],0)),\"\")","v":""},null,null,{"$f":"IFERROR(INDEX(Table1[Room description],MATCH('2) Room configuration'!I296,Table1[TMS],0)),\"\")","v":""},{"$f":"IFERROR(INDEX(Table1[Bedding],MATCH('2) Room configuration'!I296,Table1[TMS],0)),\"\")","v":""},{"$f":"IFERROR(INDEX(Table1[Normal occupancy],MATCH(Table2[[#This Row],[New Room Type \n(TMS)]],Table1[TMS],0)),\"\")","v":""},null,null,null,null,"",{"$f":"IF(Table2[[#This Row],['# extra beds that fit in the room2]]<>0,LEFT(Table2[[#This Row],[New Room Type \n(TMS)]],6),\"\")","v":""},null,{"$f":"IF(Table2[[#This Row],['# extra beds that fit in the room]]<>Table2[[#This Row],['# extra beds that fit in the room2]],\"yes\",\"No\")","v":"No"}]
[null,{"$f":"IF(LEN(C864)>0,'1) Hotel information'!$C$4,\"\")","v":""},null,null,null,{"$f":"IFERROR(INDEX(Table1[Room description],MATCH('2) Room configuration'!D864,Table1[TMS],0)),\"\")","v":""},{"$f":"IFERROR(INDEX(Table1[Bedding],MATCH('2) Room configuration'!D297,Table1[TMS],0)),\"\")","v":""},null,null,{"$f":"IFERROR(INDEX(Table1[Room description],MATCH('2) Room configuration'!I297,Table1[TMS],0)),\"\")","v":""},{"$f":"IFERROR(INDEX(Table1[Bedding],MATCH('2) Room configuration'!I297,Table1[TMS],0)),\"\")","v":""},{"$f":"IFERROR(INDEX(Table1[Normal occupancy],MATCH(Table2[[#This Row],[New Room Type \n(TMS)]],Table1[TMS],0)),\"\")","v":""},null,null,null,null,"",{"$f":"IF(Table2[[#This Row],['# extra beds that fit in the room2]]<>0,LEFT(Table2[[#This Row],[New Room Type \n(TMS)]],6),\"\")","v":""},null,{"$f":"IF(Table2[[#This Row],['# extra beds that fit in the room]]<>Table2[[#This Row],['# extra beds that fit in the room2]],\"yes\",\"No\")","v":"No"}]
[null,{"$f":"IF(LEN(C865)>0,'1) Hotel information'!$C$4,\"\")","v":""},null,null,null,{"$f":"IFERROR(INDEX(Table1[Room description],MATCH('2) Room configuration'!D865,Table1[TMS],0)),\"\")","v":""},{"$f":"IFERROR(INDEX(Table1[Bedding],MATCH('2) Room configuration'!D298,Table1[TMS],0)),\"\")","v":""},null,null,{"$f":"IFERROR(INDEX(Table1[Room description],MATCH('2) Room configuration'!I298,Table1[TMS],0)),\"\")","v":""},{"$f":"IFERROR(INDEX(Table1[Bedding],MATCH('2) Room configuration'!I298,Table1[TMS],0)),\"\")","v":""},{"$f":"IFERROR(INDEX(Table1[Normal occupancy],MATCH(Table2[[#This Row],[New Room Type \n(TMS)]],Table1[TMS],0)),\"\")","v":""},null,null,null,null,"",{"$f":"IF(Table2[[#This Row],['# extra beds that fit in the room2]]<>0,LEFT(Table2[[#This Row],[New Room Type \n(TMS)]],6),\"\")","v":""},null,{"$f":"IF(Table2[[#This Row],['# extra beds that fit in the room]]<>Table2[[#This Row],['# extra beds that fit in the room2]],\"yes\",\"No\")","v":"No"}]
[null,{"$f":"IF(LEN(C866)>0,'1) Hotel information'!$C$4,\"\")","v":""},null,null,null,{"$f":"IFERROR(INDEX(Table1[Room description],MATCH('2) Room configuration'!D866,Table1[TMS],0)),\"\")","v":""},{"$f":"IFERROR(INDEX(Table1[Bedding],MATCH('2) Room configuration'!D299,Table1[TMS],0)),\"\")","v":""},null,null,{"$f":"IFERROR(INDEX(Table1[Room description],MATCH('2) Room configuration'!I299,Table1[TMS],0)),\"\")","v":""},{"$f":"IFERROR(INDEX(Table1[Bedding],MATCH('2) Room configuration'!I299,Table1[TMS],0)),\"\")","v":""},{"$f":"IFERROR(INDEX(Table1[Normal occupancy],MATCH(Table2[[#This Row],[New Room Type \n(TMS)]],Table1[TMS],0)),\"\")","v":""},null,null,null,null,"",{"$f":"IF(Table2[[#This Row],['# extra beds that fit in the room2]]<>0,LEFT(Table2[[#This Row],[New Room Type \n(TMS)]],6),\"\")","v":""},null,{"$f":"IF(Table2[[#This Row],['# extra beds that fit in the room]]<>Table2[[#This Row],['# extra beds that fit in the room2]],\"yes\",\"No\")","v":"No"}]
[null,{"$f":"IF(LEN(C867)>0,'1) Hotel information'!$C$4,\"\")","v":""},null,null,null,{"$f":"IFERROR(INDEX(Table1[Room description],MATCH('2) Room configuration'!D867,Table1[TMS],0)),\"\")","v":""},{"$f":"IFERROR(INDEX(Table1[Bedding],MATCH('2) Room configuration'!D300,Table1[TMS],0)),\"\")","v":""},null,null,{"$f":"IFERROR(INDEX(Table1[Room description],MATCH('2) Room configuration'!I300,Table1[TMS],0)),\"\")","v":""},{"$f":"IFERROR(INDEX(Table1[Bedding],MATCH('2) Room configuration'!I300,Table1[TMS],0)),\"\")","v":""},{"$f":"IFERROR(INDEX(Table1[Normal occupancy],MATCH(Table2[[#This Row],[New Room Type \n(TMS)]],Table1[TMS],0)),\"\")","v":""},null,null,null,null,"",{"$f":"IF(Table2[[#This Row],['# extra beds that fit in the room2]]<>0,LEFT(Table2[[#This Row],[New Room Type \n(TMS)]],6),\"\")","v":""},null,{"$f":"IF(Table2[[#This Row],['# extra beds that fit in the room]]<>Table2[[#This Row],['# extra beds that fit in the room2]],\"yes\",\"No\")","v":"No"}]
[null,{"$f":"IF(LEN(C868)>0,'1) Hotel information'!$C$4,\"\")","v":""},null,null,null,{"$f":"IFERROR(INDEX(Table1[Room description],MATCH('2) Room configuration'!D868,Table1[TMS],0)),\"\")","v":""},{"$f":"IFERROR(INDEX(Table1[Bedding],MATCH('2) Room configuration'!D301,Table1[TMS],0)),\"\")","v":""},null,null,{"$f":"IFERROR(INDEX(Table1[Room description],MATCH('2) Room configuration'!I301,Table1[TMS],0)),\"\")","v":""},{"$f":"IFERROR(INDEX(Table1[Bedding],MATCH('2) Room configuration'!I301,Table1[TMS],0)),\"\")","v":""},{"$f":"IFERROR(INDEX(Table1[Normal occupancy],MATCH(Table2[[#This Row],[New Room Type \n(TMS)]],Table1[TMS],0)),\"\")","v":""},null,null,null,null,"",{"$f":"IF(Table2[[#This Row],['# extra beds that fit in the room2]]<>0,LEFT(Table2[[#This Row],[New Room Type \n(TMS)]],6),\"\")","v":""},null,{"$f":"IF(Table2[[#This Row],['# extra beds that fit in the room]]<>Table2[[#This Row],['# extra beds that fit in the room2]],\"yes\",\"No\")","v":"No"}]
[null,{"$f":"IF(LEN(C869)>0,'1) Hotel information'!$C$4,\"\")","v":""},null,null,null,{"$f":"IFERROR(INDEX(Table1[Room description],MATCH('2) Room configuration'!D869,Table1[TMS],0)),\"\")","v":""},{"$f":"IFERROR(INDEX(Table1[Bedding],MATCH('2) Room configuration'!D302,Table1[TMS],0)),\"\")","v":""},null,null,{"$f":"IFERROR(INDEX(Table1[Room description],MATCH('2) Room configuration'!I302,Table1[TMS],0)),\"\")","v":""},{"$f":"IFERROR(INDEX(Table1[Bedding],MATCH('2) Room configuration'!I302,Table1[TMS],0)),\"\")","v":""},{"$f":"IFERROR(INDEX(Table1[Normal occupancy],MATCH(Table2[[#This Row],[New Room Type \n(TMS)]],Table1[TMS],0)),\"\")","v":""},null,null,null,null,"",{"$f":"IF(Table2[[#This Row],['# extra beds that fit in the room2]]<>0,LEFT(Table2[[#This Row],[New Room Type \n(TMS)]],6),\"\")","v":""},null,{"$f":"IF(Table2[[#This Row],['# extra beds that fit in the room]]<>Table2[[#This Row],['# extra beds that fit in the room2]],\"yes\",\"No\")","v":"No"}]
[null,{"$f":"IF(LEN(C870)>0,'1) Hotel information'!$C$4,\"\")","v":""},null,null,null,{"$f":"IFERROR(INDEX(Table1[Room description],MATCH('2) Room configuration'!D870,Table1[TMS],0)),\"\")","v":""},{"$f":"IFERROR(INDEX(Table1[Bedding],MATCH('2) Room configuration'!D303,Table1[TMS],0)),\"\")","v":""},null,null,{"$f":"IFERROR(INDEX(Table1[Room description],MATCH('2) Room configuration'!I303,Table1[TMS],0)),\"\")","v":""},{"$f":"IFERROR(INDEX(Table1[Bedding],MATCH('2) Room configuration'!I303,Table1[TMS],0)),\"\")","v":""},{"$f":"IFERROR(INDEX(Table1[Normal occupancy],MATCH(Table2[[#This Row],[New Room Type \n(TMS)]],Table1[TMS],0)),\"\")","v":""},null,null,null,null,"",{"$f":"IF(Table2[[#This Row],['# extra beds that fit in the room2]]<>0,LEFT(Table2[[#This Row],[New Room Type \n(TMS)]],6),\"\")","v":""},null,{"$f":"IF(Table2[[#This Row],['# extra beds that fit in the room]]<>Table2[[#This Row],['# extra beds that fit in the room2]],\"yes\",\"No\")","v":"No"}]
[null,{"$f":"IF(LEN(C871)>0,'1) Hotel information'!$C$4,\"\")","v":""},null,null,null,{"$f":"IFERROR(INDEX(Table1[Room description],MATCH('2) Room configuration'!D871,Table1[TMS],0)),\"\")","v":""},{"$f":"IFERROR(INDEX(Table1[Bedding],MATCH('2) Room configuration'!D304,Table1[TMS],0)),\"\")","v":""},null,null,{"$f":"IFERROR(INDEX(Table1[Room description],MATCH('2) Room configuration'!I304,Table1[TMS],0)),\"\")","v":""},{"$f":"IFERROR(INDEX(Table1[Bedding],MATCH('2) Room configuration'!I304,Table1[TMS],0)),\"\")","v":""},{"$f":"IFERROR(INDEX(Table1[Normal occupancy],MATCH(Table2[[#This Row],[New Room Type \n(TMS)]],Table1[TMS],0)),\"\")","v":""},null,null,null,null,"",{"$f":"IF(Table2[[#This Row],['# extra beds that fit in the room2]]<>0,LEFT(Table2[[#This Row],[New Room Type \n(TMS)]],6),\"\")","v":""},null,{"$f":"IF(Table2[[#This Row],['# extra beds that fit in the room]]<>Table2[[#This Row],['# extra beds that fit in the room2]],\"yes\",\"No\")","v":"No"}]
[null,{"$f":"IF(LEN(C872)>0,'1) Hotel information'!$C$4,\"\")","v":""},null,null,null,{"$f":"IFERROR(INDEX(Table1[Room description],MATCH('2) Room configuration'!D872,Table1[TMS],0)),\"\")","v":""},{"$f":"IFERROR(INDEX(Table1[Bedding],MATCH('2) Room configuration'!D305,Table1[TMS],0)),\"\")","v":""},null,null,{"$f":"IFERROR(INDEX(Table1[Room description],MATCH('2) Room configuration'!I305,Table1[TMS],0)),\"\")","v":""},{"$f":"IFERROR(INDEX(Table1[Bedding],MATCH('2) Room configuration'!I305,Table1[TMS],0)),\"\")","v":""},{"$f":"IFERROR(INDEX(Table1[Normal occupancy],MATCH(Table2[[#This Row],[New Room Type \n(TMS)]],Table1[TMS],0)),\"\")","v":""},null,null,null,null,"",{"$f":"IF(Table2[[#This Row],['# extra beds that fit in the room2]]<>0,LEFT(Table2[[#This Row],[New Room Type \n(TMS)]],6),\"\")","v":""},null,{"$f":"IF(Table2[[#This Row],['# extra beds that fit in the room]]<>Table2[[#This Row],['# extra beds that fit in the room2]],\"yes\",\"No\")","v":"No"}]
[null,{"$f":"IF(LEN(C873)>0,'1) Hotel information'!$C$4,\"\")","v":""},null,null,null,{"$f":"IFERROR(INDEX(Table1[Room description],MATCH('2) Room configuration'!D873,Table1[TMS],0)),\"\")","v":""},{"$f":"IFERROR(INDEX(Table1[Bedding],MATCH('2) Room configuration'!D306,Table1[TMS],0)),\"\")","v":""},null,null,{"$f":"IFERROR(INDEX(Table1[Room description],MATCH('2) Room configuration'!I306,Table1[TMS],0)),\"\")","v":""},{"$f":"IFERROR(INDEX(Table1[Bedding],MATCH('2) Room configuration'!I306,Table1[TMS],0)),\"\")","v":""},{"$f":"IFERROR(INDEX(Table1[Normal occupancy],MATCH(Table2[[#This Row],[New Room Type \n(TMS)]],Table1[TMS],0)),\"\")","v":""},null,null,null,null,"",{"$f":"IF(Table2[[#This Row],['# extra beds that fit in the room2]]<>0,LEFT(Table2[[#This Row],[New Room Type \n(TMS)]],6),\"\")","v":""},null,{"$f":"IF(Table2[[#This Row],['# extra beds that fit in the room]]<>Table2[[#This Row],['# extra beds that fit in the room2]],\"yes\",\"No\")","v":"No"}]
[null,{"$f":"IF(LEN(C874)>0,'1) Hotel information'!$C$4,\"\")","v":""},null,null,null,{"$f":"IFERROR(INDEX(Table1[Room description],MATCH('2) Room configuration'!D874,Table1[TMS],0)),\"\")","v":""},{"$f":"IFERROR(INDEX(Table1[Bedding],MATCH('2) Room configuration'!D307,Table1[TMS],0)),\"\")","v":""},null,null,{"$f":"IFERROR(INDEX(Table1[Room description],MATCH('2) Room configuration'!I307,Table1[TMS],0)),\"\")","v":""},{"$f":"IFERROR(INDEX(Table1[Bedding],MATCH('2) Room configuration'!I307,Table1[TMS],0)),\"\")","v":""},{"$f":"IFERROR(INDEX(Table1[Normal occupancy],MATCH(Table2[[#This Row],[New Room Type \n(TMS)]],Table1[TMS],0)),\"\")","v":""},null,null,null,null,"",{"$f":"IF(Table2[[#This Row],['# extra beds that fit in the room2]]<>0,LEFT(Table2[[#This Row],[New Room Type \n(TMS)]],6),\"\")","v":""},null,{"$f":"IF(Table2[[#This Row],['# extra beds that fit in the room]]<>Table2[[#This Row],['# extra beds that fit in the room2]],\"yes\",\"No\")","v":"No"}]
[null,{"$f":"IF(LEN(C875)>0,'1) Hotel information'!$C$4,\"\")","v":""},null,null,null,{"$f":"IFERROR(INDEX(Table1[Room description],MATCH('2) Room configuration'!D875,Table1[TMS],0)),\"\")","v":""},{"$f":"IFERROR(INDEX(Table1[Bedding],MATCH('2) Room configuration'!D308,Table1[TMS],0)),\"\")","v":""},null,null,{"$f":"IFERROR(INDEX(Table1[Room description],MATCH('2) Room configuration'!I308,Table1[TMS],0)),\"\")","v":""},{"$f":"IFERROR(INDEX(Table1[Bedding],MATCH('2) Room configuration'!I308,Table1[TMS],0)),\"\")","v":""},{"$f":"IFERROR(INDEX(Table1[Normal occupancy],MATCH(Table2[[#This Row],[New Room Type \n(TMS)]],Table1[TMS],0)),\"\")","v":""},null,null,null,null,"",{"$f":"IF(Table2[[#This Row],['# extra beds that fit in the room2]]<>0,LEFT(Table2[[#This Row],[New Room Type \n(TMS)]],6),\"\")","v":""},null,{"$f":"IF(Table2[[#This Row],['# extra beds that fit in the room]]<>Table2[[#This Row],['# extra beds that fit in the room2]],\"yes\",\"No\")","v":"No"}]
[null,{"$f":"IF(LEN(C876)>0,'1) Hotel information'!$C$4,\"\")","v":""},null,null,null,{"$f":"IFERROR(INDEX(Table1[Room description],MATCH('2) Room configuration'!D876,Table1[TMS],0)),\"\")","v":""},{"$f":"IFERROR(INDEX(Table1[Bedding],MATCH('2) Room configuration'!D309,Table1[TMS],0)),\"\")","v":""},null,null,{"$f":"IFERROR(INDEX(Table1[Room description],MATCH('2) Room configuration'!I309,Table1[TMS],0)),\"\")","v":""},{"$f":"IFERROR(INDEX(Table1[Bedding],MATCH('2) Room configuration'!I309,Table1[TMS],0)),\"\")","v":""},{"$f":"IFERROR(INDEX(Table1[Normal occupancy],MATCH(Table2[[#This Row],[New Room Type \n(TMS)]],Table1[TMS],0)),\"\")","v":""},null,null,null,null,"",{"$f":"IF(Table2[[#This Row],['# extra beds that fit in the room2]]<>0,LEFT(Table2[[#This Row],[New Room Type \n(TMS)]],6),\"\")","v":""},null,{"$f":"IF(Table2[[#This Row],['# extra beds that fit in the room]]<>Table2[[#This Row],['# extra beds that fit in the room2]],\"yes\",\"No\")","v":"No"}]
[null,{"$f":"IF(LEN(C877)>0,'1) Hotel information'!$C$4,\"\")","v":""},null,null,null,{"$f":"IFERROR(INDEX(Table1[Room description],MATCH('2) Room configuration'!D877,Table1[TMS],0)),\"\")","v":""},{"$f":"IFERROR(INDEX(Table1[Bedding],MATCH('2) Room configuration'!D310,Table1[TMS],0)),\"\")","v":""},null,null,{"$f":"IFERROR(INDEX(Table1[Room description],MATCH('2) Room configuration'!I310,Table1[TMS],0)),\"\")","v":""},{"$f":"IFERROR(INDEX(Table1[Bedding],MATCH('2) Room configuration'!I310,Table1[TMS],0)),\"\")","v":""},{"$f":"IFERROR(INDEX(Table1[Normal occupancy],MATCH(Table2[[#This Row],[New Room Type \n(TMS)]],Table1[TMS],0)),\"\")","v":""},null,null,null,null,"",{"$f":"IF(Table2[[#This Row],['# extra beds that fit in the room2]]<>0,LEFT(Table2[[#This Row],[New Room Type \n(TMS)]],6),\"\")","v":""},null,{"$f":"IF(Table2[[#This Row],['# extra beds that fit in the room]]<>Table2[[#This Row],['# extra beds that fit in the room2]],\"yes\",\"No\")","v":"No"}]
[null,{"$f":"IF(LEN(C878)>0,'1) Hotel information'!$C$4,\"\")","v":""},null,null,null,{"$f":"IFERROR(INDEX(Table1[Room description],MATCH('2) Room configuration'!D878,Table1[TMS],0)),\"\")","v":""},{"$f":"IFERROR(INDEX(Table1[Bedding],MATCH('2) Room configuration'!D311,Table1[TMS],0)),\"\")","v":""},null,null,{"$f":"IFERROR(INDEX(Table1[Room description],MATCH('2) Room configuration'!I311,Table1[TMS],0)),\"\")","v":""},{"$f":"IFERROR(INDEX(Table1[Bedding],MATCH('2) Room configuration'!I311,Table1[TMS],0)),\"\")","v":""},{"$f":"IFERROR(INDEX(Table1[Normal occupancy],MATCH(Table2[[#This Row],[New Room Type \n(TMS)]],Table1[TMS],0)),\"\")","v":""},null,null,null,null,"",{"$f":"IF(Table2[[#This Row],['# extra beds that fit in the room2]]<>0,LEFT(Table2[[#This Row],[New Room Type \n(TMS)]],6),\"\")","v":""},null,{"$f":"IF(Table2[[#This Row],['# extra beds that fit in the room]]<>Table2[[#This Row],['# extra beds that fit in the room2]],\"yes\",\"No\")","v":"No"}]
[null,{"$f":"IF(LEN(C879)>0,'1) Hotel information'!$C$4,\"\")","v":""},null,null,null,{"$f":"IFERROR(INDEX(Table1[Room description],MATCH('2) Room configuration'!D879,Table1[TMS],0)),\"\")","v":""},{"$f":"IFERROR(INDEX(Table1[Bedding],MATCH('2) Room configuration'!D312,Table1[TMS],0)),\"\")","v":""},null,null,{"$f":"IFERROR(INDEX(Table1[Room description],MATCH('2) Room configuration'!I312,Table1[TMS],0)),\"\")","v":""},{"$f":"IFERROR(INDEX(Table1[Bedding],MATCH('2) Room configuration'!I312,Table1[TMS],0)),\"\")","v":""},{"$f":"IFERROR(INDEX(Table1[Normal occupancy],MATCH(Table2[[#This Row],[New Room Type \n(TMS)]],Table1[TMS],0)),\"\")","v":""},null,null,null,null,"",{"$f":"IF(Table2[[#This Row],['# extra beds that fit in the room2]]<>0,LEFT(Table2[[#This Row],[New Room Type \n(TMS)]],6),\"\")","v":""},null,{"$f":"IF(Table2[[#This Row],['# extra beds that fit in the room]]<>Table2[[#This Row],['# extra beds that fit in the room2]],\"yes\",\"No\")","v":"No"}]
[null,{"$f":"IF(LEN(C880)>0,'1) Hotel information'!$C$4,\"\")","v":""},null,null,null,{"$f":"IFERROR(INDEX(Table1[Room description],MATCH('2) Room configuration'!D880,Table1[TMS],0)),\"\")","v":""},{"$f":"IFERROR(INDEX(Table1[Bedding],MATCH('2) Room configuration'!D313,Table1[TMS],0)),\"\")","v":""},null,null,{"$f":"IFERROR(INDEX(Table1[Room description],MATCH('2) Room configuration'!I313,Table1[TMS],0)),\"\")","v":""},{"$f":"IFERROR(INDEX(Table1[Bedding],MATCH('2) Room configuration'!I313,Table1[TMS],0)),\"\")","v":""},{"$f":"IFERROR(INDEX(Table1[Normal occupancy],MATCH(Table2[[#This Row],[New Room Type \n(TMS)]],Table1[TMS],0)),\"\")","v":""},null,null,null,null,"",{"$f":"IF(Table2[[#This Row],['# extra beds that fit in the room2]]<>0,LEFT(Table2[[#This Row],[New Room Type \n(TMS)]],6),\"\")","v":""},null,{"$f":"IF(Table2[[#This Row],['# extra beds that fit in the room]]<>Table2[[#This Row],['# extra beds that fit in the room2]],\"yes\",\"No\")","v":"No"}]
[null,{"$f":"IF(LEN(C881)>0,'1) Hotel information'!$C$4,\"\")","v":""},null,null,null,{"$f":"IFERROR(INDEX(Table1[Room description],MATCH('2) Room configuration'!D881,Table1[TMS],0)),\"\")","v":""},{"$f":"IFERROR(INDEX(Table1[Bedding],MATCH('2) Room configuration'!D314,Table1[TMS],0)),\"\")","v":""},null,null,{"$f":"IFERROR(INDEX(Table1[Room description],MATCH('2) Room configuration'!I314,Table1[TMS],0)),\"\")","v":""},{"$f":"IFERROR(INDEX(Table1[Bedding],MATCH('2) Room configuration'!I314,Table1[TMS],0)),\"\")","v":""},{"$f":"IFERROR(INDEX(Table1[Normal occupancy],MATCH(Table2[[#This Row],[New Room Type \n(TMS)]],Table1[TMS],0)),\"\")","v":""},null,null,null,null,"",{"$f":"IF(Table2[[#This Row],['# extra beds that fit in the room2]]<>0,LEFT(Table2[[#This Row],[New Room Type \n(TMS)]],6),\"\")","v":""},null,{"$f":"IF(Table2[[#This Row],['# extra beds that fit in the room]]<>Table2[[#This Row],['# extra beds that fit in the room2]],\"yes\",\"No\")","v":"No"}]
[null,{"$f":"IF(LEN(C882)>0,'1) Hotel information'!$C$4,\"\")","v":""},null,null,null,{"$f":"IFERROR(INDEX(Table1[Room description],MATCH('2) Room configuration'!D882,Table1[TMS],0)),\"\")","v":""},{"$f":"IFERROR(INDEX(Table1[Bedding],MATCH('2) Room configuration'!D315,Table1[TMS],0)),\"\")","v":""},null,null,{"$f":"IFERROR(INDEX(Table1[Room description],MATCH('2) Room configuration'!I315,Table1[TMS],0)),\"\")","v":""},{"$f":"IFERROR(INDEX(Table1[Bedding],MATCH('2) Room configuration'!I315,Table1[TMS],0)),\"\")","v":""},{"$f":"IFERROR(INDEX(Table1[Normal occupancy],MATCH(Table2[[#This Row],[New Room Type \n(TMS)]],Table1[TMS],0)),\"\")","v":""},null,null,null,null,"",{"$f":"IF(Table2[[#This Row],['# extra beds that fit in the room2]]<>0,LEFT(Table2[[#This Row],[New Room Type \n(TMS)]],6),\"\")","v":""},null,{"$f":"IF(Table2[[#This Row],['# extra beds that fit in the room]]<>Table2[[#This Row],['# extra beds that fit in the room2]],\"yes\",\"No\")","v":"No"}]
[null,{"$f":"IF(LEN(C883)>0,'1) Hotel information'!$C$4,\"\")","v":""},null,null,null,{"$f":"IFERROR(INDEX(Table1[Room description],MATCH('2) Room configuration'!D883,Table1[TMS],0)),\"\")","v":""},{"$f":"IFERROR(INDEX(Table1[Bedding],MATCH('2) Room configuration'!D316,Table1[TMS],0)),\"\")","v":""},null,null,{"$f":"IFERROR(INDEX(Table1[Room description],MATCH('2) Room configuration'!I316,Table1[TMS],0)),\"\")","v":""},{"$f":"IFERROR(INDEX(Table1[Bedding],MATCH('2) Room configuration'!I316,Table1[TMS],0)),\"\")","v":""},{"$f":"IFERROR(INDEX(Table1[Normal occupancy],MATCH(Table2[[#This Row],[New Room Type \n(TMS)]],Table1[TMS],0)),\"\")","v":""},null,null,null,null,"",{"$f":"IF(Table2[[#This Row],['# extra beds that fit in the room2]]<>0,LEFT(Table2[[#This Row],[New Room Type \n(TMS)]],6),\"\")","v":""},null,{"$f":"IF(Table2[[#This Row],['# extra beds that fit in the room]]<>Table2[[#This Row],['# extra beds that fit in the room2]],\"yes\",\"No\")","v":"No"}]
[null,{"$f":"IF(LEN(C884)>0,'1) Hotel information'!$C$4,\"\")","v":""},null,null,null,{"$f":"IFERROR(INDEX(Table1[Room description],MATCH('2) Room configuration'!D884,Table1[TMS],0)),\"\")","v":""},{"$f":"IFERROR(INDEX(Table1[Bedding],MATCH('2) Room configuration'!D317,Table1[TMS],0)),\"\")","v":""},null,null,{"$f":"IFERROR(INDEX(Table1[Room description],MATCH('2) Room configuration'!I317,Table1[TMS],0)),\"\")","v":""},{"$f":"IFERROR(INDEX(Table1[Bedding],MATCH('2) Room configuration'!I317,Table1[TMS],0)),\"\")","v":""},{"$f":"IFERROR(INDEX(Table1[Normal occupancy],MATCH(Table2[[#This Row],[New Room Type \n(TMS)]],Table1[TMS],0)),\"\")","v":""},null,null,null,null,"",{"$f":"IF(Table2[[#This Row],['# extra beds that fit in the room2]]<>0,LEFT(Table2[[#This Row],[New Room Type \n(TMS)]],6),\"\")","v":""},null,{"$f":"IF(Table2[[#This Row],['# extra beds that fit in the room]]<>Table2[[#This Row],['# extra beds that fit in the room2]],\"yes\",\"No\")","v":"No"}]
[null,{"$f":"IF(LEN(C885)>0,'1) Hotel information'!$C$4,\"\")","v":""},null,null,null,{"$f":"IFERROR(INDEX(Table1[Room description],MATCH('2) Room configuration'!D885,Table1[TMS],0)),\"\")","v":""},{"$f":"IFERROR(INDEX(Table1[Bedding],MATCH('2) Room configuration'!D318,Table1[TMS],0)),\"\")","v":""},null,null,{"$f":"IFERROR(INDEX(Table1[Room description],MATCH('2) Room configuration'!I318,Table1[TMS],0)),\"\")","v":""},{"$f":"IFERROR(INDEX(Table1[Bedding],MATCH('2) Room configuration'!I318,Table1[TMS],0)),\"\")","v":""},{"$f":"IFERROR(INDEX(Table1[Normal occupancy],MATCH(Table2[[#This Row],[New Room Type \n(TMS)]],Table1[TMS],0)),\"\")","v":""},null,null,null,null,"",{"$f":"IF(Table2[[#This Row],['# extra beds that fit in the room2]]<>0,LEFT(Table2[[#This Row],[New Room Type \n(TMS)]],6),\"\")","v":""},null,{"$f":"IF(Table2[[#This Row],['# extra beds that fit in the room]]<>Table2[[#This Row],['# extra beds that fit in the room2]],\"yes\",\"No\")","v":"No"}]
[null,{"$f":"IF(LEN(C886)>0,'1) Hotel information'!$C$4,\"\")","v":""},null,null,null,{"$f":"IFERROR(INDEX(Table1[Room description],MATCH('2) Room configuration'!D886,Table1[TMS],0)),\"\")","v":""},{"$f":"IFERROR(INDEX(Table1[Bedding],MATCH('2) Room configuration'!D319,Table1[TMS],0)),\"\")","v":""},null,null,{"$f":"IFERROR(INDEX(Table1[Room description],MATCH('2) Room configuration'!I319,Table1[TMS],0)),\"\")","v":""},{"$f":"IFERROR(INDEX(Table1[Bedding],MATCH('2) Room configuration'!I319,Table1[TMS],0)),\"\")","v":""},{"$f":"IFERROR(INDEX(Table1[Normal occupancy],MATCH(Table2[[#This Row],[New Room Type \n(TMS)]],Table1[TMS],0)),\"\")","v":""},null,null,null,null,"",{"$f":"IF(Table2[[#This Row],['# extra beds that fit in the room2]]<>0,LEFT(Table2[[#This Row],[New Room Type \n(TMS)]],6),\"\")","v":""},null,{"$f":"IF(Table2[[#This Row],['# extra beds that fit in the room]]<>Table2[[#This Row],['# extra beds that fit in the room2]],\"yes\",\"No\")","v":"No"}]
[null,{"$f":"IF(LEN(C887)>0,'1) Hotel information'!$C$4,\"\")","v":""},null,null,null,{"$f":"IFERROR(INDEX(Table1[Room description],MATCH('2) Room configuration'!D887,Table1[TMS],0)),\"\")","v":""},{"$f":"IFERROR(INDEX(Table1[Bedding],MATCH('2) Room configuration'!D320,Table1[TMS],0)),\"\")","v":""},null,null,{"$f":"IFERROR(INDEX(Table1[Room description],MATCH('2) Room configuration'!I320,Table1[TMS],0)),\"\")","v":""},{"$f":"IFERROR(INDEX(Table1[Bedding],MATCH('2) Room configuration'!I320,Table1[TMS],0)),\"\")","v":""},{"$f":"IFERROR(INDEX(Table1[Normal occupancy],MATCH(Table2[[#This Row],[New Room Type \n(TMS)]],Table1[TMS],0)),\"\")","v":""},null,null,null,null,"",{"$f":"IF(Table2[[#This Row],['# extra beds that fit in the room2]]<>0,LEFT(Table2[[#This Row],[New Room Type \n(TMS)]],6),\"\")","v":""},null,{"$f":"IF(Table2[[#This Row],['# extra beds that fit in the room]]<>Table2[[#This Row],['# extra beds that fit in the room2]],\"yes\",\"No\")","v":"No"}]
[null,{"$f":"IF(LEN(C888)>0,'1) Hotel information'!$C$4,\"\")","v":""},null,null,null,{"$f":"IFERROR(INDEX(Table1[Room description],MATCH('2) Room configuration'!D888,Table1[TMS],0)),\"\")","v":""},{"$f":"IFERROR(INDEX(Table1[Bedding],MATCH('2) Room configuration'!D321,Table1[TMS],0)),\"\")","v":""},null,null,{"$f":"IFERROR(INDEX(Table1[Room description],MATCH('2) Room configuration'!I321,Table1[TMS],0)),\"\")","v":""},{"$f":"IFERROR(INDEX(Table1[Bedding],MATCH('2) Room configuration'!I321,Table1[TMS],0)),\"\")","v":""},{"$f":"IFERROR(INDEX(Table1[Normal occupancy],MATCH(Table2[[#This Row],[New Room Type \n(TMS)]],Table1[TMS],0)),\"\")","v":""},null,null,null,null,"",{"$f":"IF(Table2[[#This Row],['# extra beds that fit in the room2]]<>0,LEFT(Table2[[#This Row],[New Room Type \n(TMS)]],6),\"\")","v":""},null,{"$f":"IF(Table2[[#This Row],['# extra beds that fit in the room]]<>Table2[[#This Row],['# extra beds that fit in the room2]],\"yes\",\"No\")","v":"No"}]
[null,{"$f":"IF(LEN(C889)>0,'1) Hotel information'!$C$4,\"\")","v":""},null,null,null,{"$f":"IFERROR(INDEX(Table1[Room description],MATCH('2) Room configuration'!D889,Table1[TMS],0)),\"\")","v":""},{"$f":"IFERROR(INDEX(Table1[Bedding],MATCH('2) Room configuration'!D322,Table1[TMS],0)),\"\")","v":""},null,null,{"$f":"IFERROR(INDEX(Table1[Room description],MATCH('2) Room configuration'!I322,Table1[TMS],0)),\"\")","v":""},{"$f":"IFERROR(INDEX(Table1[Bedding],MATCH('2) Room configuration'!I322,Table1[TMS],0)),\"\")","v":""},{"$f":"IFERROR(INDEX(Table1[Normal occupancy],MATCH(Table2[[#This Row],[New Room Type \n(TMS)]],Table1[TMS],0)),\"\")","v":""},null,null,null,null,"",{"$f":"IF(Table2[[#This Row],['# extra beds that fit in the room2]]<>0,LEFT(Table2[[#This Row],[New Room Type \n(TMS)]],6),\"\")","v":""},null,{"$f":"IF(Table2[[#This Row],['# extra beds that fit in the room]]<>Table2[[#This Row],['# extra beds that fit in the room2]],\"yes\",\"No\")","v":"No"}]
[null,{"$f":"IF(LEN(C890)>0,'1) Hotel information'!$C$4,\"\")","v":""},null,null,null,{"$f":"IFERROR(INDEX(Table1[Room description],MATCH('2) Room configuration'!D890,Table1[TMS],0)),\"\")","v":""},{"$f":"IFERROR(INDEX(Table1[Bedding],MATCH('2) Room configuration'!D323,Table1[TMS],0)),\"\")","v":""},null,null,{"$f":"IFERROR(INDEX(Table1[Room description],MATCH('2) Room configuration'!I323,Table1[TMS],0)),\"\")","v":""},{"$f":"IFERROR(INDEX(Table1[Bedding],MATCH('2) Room configuration'!I323,Table1[TMS],0)),\"\")","v":""},{"$f":"IFERROR(INDEX(Table1[Normal occupancy],MATCH(Table2[[#This Row],[New Room Type \n(TMS)]],Table1[TMS],0)),\"\")","v":""},null,null,null,null,"",{"$f":"IF(Table2[[#This Row],['# extra beds that fit in the room2]]<>0,LEFT(Table2[[#This Row],[New Room Type \n(TMS)]],6),\"\")","v":""},null,{"$f":"IF(Table2[[#This Row],['# extra beds that fit in the room]]<>Table2[[#This Row],['# extra beds that fit in the room2]],\"yes\",\"No\")","v":"No"}]
[null,{"$f":"IF(LEN(C891)>0,'1) Hotel information'!$C$4,\"\")","v":""},null,null,null,{"$f":"IFERROR(INDEX(Table1[Room description],MATCH('2) Room configuration'!D891,Table1[TMS],0)),\"\")","v":""},{"$f":"IFERROR(INDEX(Table1[Bedding],MATCH('2) Room configuration'!D324,Table1[TMS],0)),\"\")","v":""},null,null,{"$f":"IFERROR(INDEX(Table1[Room description],MATCH('2) Room configuration'!I324,Table1[TMS],0)),\"\")","v":""},{"$f":"IFERROR(INDEX(Table1[Bedding],MATCH('2) Room configuration'!I324,Table1[TMS],0)),\"\")","v":""},{"$f":"IFERROR(INDEX(Table1[Normal occupancy],MATCH(Table2[[#This Row],[New Room Type \n(TMS)]],Table1[TMS],0)),\"\")","v":""},null,null,null,null,"",{"$f":"IF(Table2[[#This Row],['# extra beds that fit in the room2]]<>0,LEFT(Table2[[#This Row],[New Room Type \n(TMS)]],6),\"\")","v":""},null,{"$f":"IF(Table2[[#This Row],['# extra beds that fit in the room]]<>Table2[[#This Row],['# extra beds that fit in the room2]],\"yes\",\"No\")","v":"No"}]
[null,{"$f":"IF(LEN(C892)>0,'1) Hotel information'!$C$4,\"\")","v":""},null,null,null,{"$f":"IFERROR(INDEX(Table1[Room description],MATCH('2) Room configuration'!D892,Table1[TMS],0)),\"\")","v":""},{"$f":"IFERROR(INDEX(Table1[Bedding],MATCH('2) Room configuration'!D325,Table1[TMS],0)),\"\")","v":""},null,null,{"$f":"IFERROR(INDEX(Table1[Room description],MATCH('2) Room configuration'!I325,Table1[TMS],0)),\"\")","v":""},{"$f":"IFERROR(INDEX(Table1[Bedding],MATCH('2) Room configuration'!I325,Table1[TMS],0)),\"\")","v":""},{"$f":"IFERROR(INDEX(Table1[Normal occupancy],MATCH(Table2[[#This Row],[New Room Type \n(TMS)]],Table1[TMS],0)),\"\")","v":""},null,null,null,null,"",{"$f":"IF(Table2[[#This Row],['# extra beds that fit in the room2]]<>0,LEFT(Table2[[#This Row],[New Room Type \n(TMS)]],6),\"\")","v":""},null,{"$f":"IF(Table2[[#This Row],['# extra beds that fit in the room]]<>Table2[[#This Row],['# extra beds that fit in the room2]],\"yes\",\"No\")","v":"No"}]
[null,{"$f":"IF(LEN(C893)>0,'1) Hotel information'!$C$4,\"\")","v":""},null,null,null,{"$f":"IFERROR(INDEX(Table1[Room description],MATCH('2) Room configuration'!D893,Table1[TMS],0)),\"\")","v":""},{"$f":"IFERROR(INDEX(Table1[Bedding],MATCH('2) Room configuration'!D326,Table1[TMS],0)),\"\")","v":""},null,null,{"$f":"IFERROR(INDEX(Table1[Room description],MATCH('2) Room configuration'!I326,Table1[TMS],0)),\"\")","v":""},{"$f":"IFERROR(INDEX(Table1[Bedding],MATCH('2) Room configuration'!I326,Table1[TMS],0)),\"\")","v":""},{"$f":"IFERROR(INDEX(Table1[Normal occupancy],MATCH(Table2[[#This Row],[New Room Type \n(TMS)]],Table1[TMS],0)),\"\")","v":""},null,null,null,null,"",{"$f":"IF(Table2[[#This Row],['# extra beds that fit in the room2]]<>0,LEFT(Table2[[#This Row],[New Room Type \n(TMS)]],6),\"\")","v":""},null,{"$f":"IF(Table2[[#This Row],['# extra beds that fit in the room]]<>Table2[[#This Row],['# extra beds that fit in the room2]],\"yes\",\"No\")","v":"No"}]
[null,{"$f":"IF(LEN(C894)>0,'1) Hotel information'!$C$4,\"\")","v":""},null,null,null,{"$f":"IFERROR(INDEX(Table1[Room description],MATCH('2) Room configuration'!D894,Table1[TMS],0)),\"\")","v":""},{"$f":"IFERROR(INDEX(Table1[Bedding],MATCH('2) Room configuration'!D327,Table1[TMS],0)),\"\")","v":""},null,null,{"$f":"IFERROR(INDEX(Table1[Room description],MATCH('2) Room configuration'!I327,Table1[TMS],0)),\"\")","v":""},{"$f":"IFERROR(INDEX(Table1[Bedding],MATCH('2) Room configuration'!I327,Table1[TMS],0)),\"\")","v":""},{"$f":"IFERROR(INDEX(Table1[Normal occupancy],MATCH(Table2[[#This Row],[New Room Type \n(TMS)]],Table1[TMS],0)),\"\")","v":""},null,null,null,null,"",{"$f":"IF(Table2[[#This Row],['# extra beds that fit in the room2]]<>0,LEFT(Table2[[#This Row],[New Room Type \n(TMS)]],6),\"\")","v":""},null,{"$f":"IF(Table2[[#This Row],['# extra beds that fit in the room]]<>Table2[[#This Row],['# extra beds that fit in the room2]],\"yes\",\"No\")","v":"No"}]
[null,{"$f":"IF(LEN(C895)>0,'1) Hotel information'!$C$4,\"\")","v":""},null,null,null,{"$f":"IFERROR(INDEX(Table1[Room description],MATCH('2) Room configuration'!D895,Table1[TMS],0)),\"\")","v":""},{"$f":"IFERROR(INDEX(Table1[Bedding],MATCH('2) Room configuration'!D328,Table1[TMS],0)),\"\")","v":""},null,null,{"$f":"IFERROR(INDEX(Table1[Room description],MATCH('2) Room configuration'!I328,Table1[TMS],0)),\"\")","v":""},{"$f":"IFERROR(INDEX(Table1[Bedding],MATCH('2) Room configuration'!I328,Table1[TMS],0)),\"\")","v":""},{"$f":"IFERROR(INDEX(Table1[Normal occupancy],MATCH(Table2[[#This Row],[New Room Type \n(TMS)]],Table1[TMS],0)),\"\")","v":""},null,null,null,null,"",{"$f":"IF(Table2[[#This Row],['# extra beds that fit in the room2]]<>0,LEFT(Table2[[#This Row],[New Room Type \n(TMS)]],6),\"\")","v":""},null,{"$f":"IF(Table2[[#This Row],['# extra beds that fit in the room]]<>Table2[[#This Row],['# extra beds that fit in the room2]],\"yes\",\"No\")","v":"No"}]
[null,{"$f":"IF(LEN(C896)>0,'1) Hotel information'!$C$4,\"\")","v":""},null,null,null,{"$f":"IFERROR(INDEX(Table1[Room description],MATCH('2) Room configuration'!D896,Table1[TMS],0)),\"\")","v":""},{"$f":"IFERROR(INDEX(Table1[Bedding],MATCH('2) Room configuration'!D329,Table1[TMS],0)),\"\")","v":""},null,null,{"$f":"IFERROR(INDEX(Table1[Room description],MATCH('2) Room configuration'!I329,Table1[TMS],0)),\"\")","v":""},{"$f":"IFERROR(INDEX(Table1[Bedding],MATCH('2) Room configuration'!I329,Table1[TMS],0)),\"\")","v":""},{"$f":"IFERROR(INDEX(Table1[Normal occupancy],MATCH(Table2[[#This Row],[New Room Type \n(TMS)]],Table1[TMS],0)),\"\")","v":""},null,null,null,null,"",{"$f":"IF(Table2[[#This Row],['# extra beds that fit in the room2]]<>0,LEFT(Table2[[#This Row],[New Room Type \n(TMS)]],6),\"\")","v":""},null,{"$f":"IF(Table2[[#This Row],['# extra beds that fit in the room]]<>Table2[[#This Row],['# extra beds that fit in the room2]],\"yes\",\"No\")","v":"No"}]
[null,{"$f":"IF(LEN(C897)>0,'1) Hotel information'!$C$4,\"\")","v":""},null,null,null,{"$f":"IFERROR(INDEX(Table1[Room description],MATCH('2) Room configuration'!D897,Table1[TMS],0)),\"\")","v":""},{"$f":"IFERROR(INDEX(Table1[Bedding],MATCH('2) Room configuration'!D330,Table1[TMS],0)),\"\")","v":""},null,null,{"$f":"IFERROR(INDEX(Table1[Room description],MATCH('2) Room configuration'!I330,Table1[TMS],0)),\"\")","v":""},{"$f":"IFERROR(INDEX(Table1[Bedding],MATCH('2) Room configuration'!I330,Table1[TMS],0)),\"\")","v":""},{"$f":"IFERROR(INDEX(Table1[Normal occupancy],MATCH(Table2[[#This Row],[New Room Type \n(TMS)]],Table1[TMS],0)),\"\")","v":""},null,null,null,null,"",{"$f":"IF(Table2[[#This Row],['# extra beds that fit in the room2]]<>0,LEFT(Table2[[#This Row],[New Room Type \n(TMS)]],6),\"\")","v":""},null,{"$f":"IF(Table2[[#This Row],['# extra beds that fit in the room]]<>Table2[[#This Row],['# extra beds that fit in the room2]],\"yes\",\"No\")","v":"No"}]
[null,{"$f":"IF(LEN(C898)>0,'1) Hotel information'!$C$4,\"\")","v":""},null,null,null,{"$f":"IFERROR(INDEX(Table1[Room description],MATCH('2) Room configuration'!D898,Table1[TMS],0)),\"\")","v":""},{"$f":"IFERROR(INDEX(Table1[Bedding],MATCH('2) Room configuration'!D331,Table1[TMS],0)),\"\")","v":""},null,null,{"$f":"IFERROR(INDEX(Table1[Room description],MATCH('2) Room configuration'!I331,Table1[TMS],0)),\"\")","v":""},{"$f":"IFERROR(INDEX(Table1[Bedding],MATCH('2) Room configuration'!I331,Table1[TMS],0)),\"\")","v":""},{"$f":"IFERROR(INDEX(Table1[Normal occupancy],MATCH(Table2[[#This Row],[New Room Type \n(TMS)]],Table1[TMS],0)),\"\")","v":""},null,null,null,null,"",{"$f":"IF(Table2[[#This Row],['# extra beds that fit in the room2]]<>0,LEFT(Table2[[#This Row],[New Room Type \n(TMS)]],6),\"\")","v":""},null,{"$f":"IF(Table2[[#This Row],['# extra beds that fit in the room]]<>Table2[[#This Row],['# extra beds that fit in the room2]],\"yes\",\"No\")","v":"No"}]
[null,{"$f":"IF(LEN(C899)>0,'1) Hotel information'!$C$4,\"\")","v":""},null,null,null,{"$f":"IFERROR(INDEX(Table1[Room description],MATCH('2) Room configuration'!D899,Table1[TMS],0)),\"\")","v":""},{"$f":"IFERROR(INDEX(Table1[Bedding],MATCH('2) Room configuration'!D332,Table1[TMS],0)),\"\")","v":""},null,null,{"$f":"IFERROR(INDEX(Table1[Room description],MATCH('2) Room configuration'!I332,Table1[TMS],0)),\"\")","v":""},{"$f":"IFERROR(INDEX(Table1[Bedding],MATCH('2) Room configuration'!I332,Table1[TMS],0)),\"\")","v":""},{"$f":"IFERROR(INDEX(Table1[Normal occupancy],MATCH(Table2[[#This Row],[New Room Type \n(TMS)]],Table1[TMS],0)),\"\")","v":""},null,null,null,null,"",{"$f":"IF(Table2[[#This Row],['# extra beds that fit in the room2]]<>0,LEFT(Table2[[#This Row],[New Room Type \n(TMS)]],6),\"\")","v":""},null,{"$f":"IF(Table2[[#This Row],['# extra beds that fit in the room]]<>Table2[[#This Row],['# extra beds that fit in the room2]],\"yes\",\"No\")","v":"No"}]
[null,{"$f":"IF(LEN(C900)>0,'1) Hotel information'!$C$4,\"\")","v":""},null,null,null,{"$f":"IFERROR(INDEX(Table1[Room description],MATCH('2) Room configuration'!D900,Table1[TMS],0)),\"\")","v":""},{"$f":"IFERROR(INDEX(Table1[Bedding],MATCH('2) Room configuration'!D333,Table1[TMS],0)),\"\")","v":""},null,null,{"$f":"IFERROR(INDEX(Table1[Room description],MATCH('2) Room configuration'!I333,Table1[TMS],0)),\"\")","v":""},{"$f":"IFERROR(INDEX(Table1[Bedding],MATCH('2) Room configuration'!I333,Table1[TMS],0)),\"\")","v":""},{"$f":"IFERROR(INDEX(Table1[Normal occupancy],MATCH(Table2[[#This Row],[New Room Type \n(TMS)]],Table1[TMS],0)),\"\")","v":""},null,null,null,null,"",{"$f":"IF(Table2[[#This Row],['# extra beds that fit in the room2]]<>0,LEFT(Table2[[#This Row],[New Room Type \n(TMS)]],6),\"\")","v":""},null,{"$f":"IF(Table2[[#This Row],['# extra beds that fit in the room]]<>Table2[[#This Row],['# extra beds that fit in the room2]],\"yes\",\"No\")","v":"No"}]
[null,{"$f":"IF(LEN(C901)>0,'1) Hotel information'!$C$4,\"\")","v":""},null,null,null,{"$f":"IFERROR(INDEX(Table1[Room description],MATCH('2) Room configuration'!D901,Table1[TMS],0)),\"\")","v":""},{"$f":"IFERROR(INDEX(Table1[Bedding],MATCH('2) Room configuration'!D334,Table1[TMS],0)),\"\")","v":""},null,null,{"$f":"IFERROR(INDEX(Table1[Room description],MATCH('2) Room configuration'!I334,Table1[TMS],0)),\"\")","v":""},{"$f":"IFERROR(INDEX(Table1[Bedding],MATCH('2) Room configuration'!I334,Table1[TMS],0)),\"\")","v":""},{"$f":"IFERROR(INDEX(Table1[Normal occupancy],MATCH(Table2[[#This Row],[New Room Type \n(TMS)]],Table1[TMS],0)),\"\")","v":""},null,null,null,null,"",{"$f":"IF(Table2[[#This Row],['# extra beds that fit in the room2]]<>0,LEFT(Table2[[#This Row],[New Room Type \n(TMS)]],6),\"\")","v":""},null,{"$f":"IF(Table2[[#This Row],['# extra beds that fit in the room]]<>Table2[[#This Row],['# extra beds that fit in the room2]],\"yes\",\"No\")","v":"No"}]
[null,{"$f":"IF(LEN(C902)>0,'1) Hotel information'!$C$4,\"\")","v":""},null,null,null,{"$f":"IFERROR(INDEX(Table1[Room description],MATCH('2) Room configuration'!D902,Table1[TMS],0)),\"\")","v":""},{"$f":"IFERROR(INDEX(Table1[Bedding],MATCH('2) Room configuration'!D335,Table1[TMS],0)),\"\")","v":""},null,null,{"$f":"IFERROR(INDEX(Table1[Room description],MATCH('2) Room configuration'!I335,Table1[TMS],0)),\"\")","v":""},{"$f":"IFERROR(INDEX(Table1[Bedding],MATCH('2) Room configuration'!I335,Table1[TMS],0)),\"\")","v":""},{"$f":"IFERROR(INDEX(Table1[Normal occupancy],MATCH(Table2[[#This Row],[New Room Type \n(TMS)]],Table1[TMS],0)),\"\")","v":""},null,null,null,null,"",{"$f":"IF(Table2[[#This Row],['# extra beds that fit in the room2]]<>0,LEFT(Table2[[#This Row],[New Room Type \n(TMS)]],6),\"\")","v":""},null,{"$f":"IF(Table2[[#This Row],['# extra beds that fit in the room]]<>Table2[[#This Row],['# extra beds that fit in the room2]],\"yes\",\"No\")","v":"No"}]
[null,{"$f":"IF(LEN(C903)>0,'1) Hotel information'!$C$4,\"\")","v":""},null,null,null,{"$f":"IFERROR(INDEX(Table1[Room description],MATCH('2) Room configuration'!D903,Table1[TMS],0)),\"\")","v":""},{"$f":"IFERROR(INDEX(Table1[Bedding],MATCH('2) Room configuration'!D336,Table1[TMS],0)),\"\")","v":""},null,null,{"$f":"IFERROR(INDEX(Table1[Room description],MATCH('2) Room configuration'!I336,Table1[TMS],0)),\"\")","v":""},{"$f":"IFERROR(INDEX(Table1[Bedding],MATCH('2) Room configuration'!I336,Table1[TMS],0)),\"\")","v":""},{"$f":"IFERROR(INDEX(Table1[Normal occupancy],MATCH(Table2[[#This Row],[New Room Type \n(TMS)]],Table1[TMS],0)),\"\")","v":""},null,null,null,null,"",{"$f":"IF(Table2[[#This Row],['# extra beds that fit in the room2]]<>0,LEFT(Table2[[#This Row],[New Room Type \n(TMS)]],6),\"\")","v":""},null,{"$f":"IF(Table2[[#This Row],['# extra beds that fit in the room]]<>Table2[[#This Row],['# extra beds that fit in the room2]],\"yes\",\"No\")","v":"No"}]
[null,{"$f":"IF(LEN(C904)>0,'1) Hotel information'!$C$4,\"\")","v":""},null,null,null,{"$f":"IFERROR(INDEX(Table1[Room description],MATCH('2) Room configuration'!D904,Table1[TMS],0)),\"\")","v":""},{"$f":"IFERROR(INDEX(Table1[Bedding],MATCH('2) Room configuration'!D337,Table1[TMS],0)),\"\")","v":""},null,null,{"$f":"IFERROR(INDEX(Table1[Room description],MATCH('2) Room configuration'!I337,Table1[TMS],0)),\"\")","v":""},{"$f":"IFERROR(INDEX(Table1[Bedding],MATCH('2) Room configuration'!I337,Table1[TMS],0)),\"\")","v":""},{"$f":"IFERROR(INDEX(Table1[Normal occupancy],MATCH(Table2[[#This Row],[New Room Type \n(TMS)]],Table1[TMS],0)),\"\")","v":""},null,null,null,null,"",{"$f":"IF(Table2[[#This Row],['# extra beds that fit in the room2]]<>0,LEFT(Table2[[#This Row],[New Room Type \n(TMS)]],6),\"\")","v":""},null,{"$f":"IF(Table2[[#This Row],['# extra beds that fit in the room]]<>Table2[[#This Row],['# extra beds that fit in the room2]],\"yes\",\"No\")","v":"No"}]
[null,{"$f":"IF(LEN(C905)>0,'1) Hotel information'!$C$4,\"\")","v":""},null,null,null,{"$f":"IFERROR(INDEX(Table1[Room description],MATCH('2) Room configuration'!D905,Table1[TMS],0)),\"\")","v":""},{"$f":"IFERROR(INDEX(Table1[Bedding],MATCH('2) Room configuration'!D338,Table1[TMS],0)),\"\")","v":""},null,null,{"$f":"IFERROR(INDEX(Table1[Room description],MATCH('2) Room configuration'!I338,Table1[TMS],0)),\"\")","v":""},{"$f":"IFERROR(INDEX(Table1[Bedding],MATCH('2) Room configuration'!I338,Table1[TMS],0)),\"\")","v":""},{"$f":"IFERROR(INDEX(Table1[Normal occupancy],MATCH(Table2[[#This Row],[New Room Type \n(TMS)]],Table1[TMS],0)),\"\")","v":""},null,null,null,null,"",{"$f":"IF(Table2[[#This Row],['# extra beds that fit in the room2]]<>0,LEFT(Table2[[#This Row],[New Room Type \n(TMS)]],6),\"\")","v":""},null,{"$f":"IF(Table2[[#This Row],['# extra beds that fit in the room]]<>Table2[[#This Row],['# extra beds that fit in the room2]],\"yes\",\"No\")","v":"No"}]
[null,{"$f":"IF(LEN(C906)>0,'1) Hotel information'!$C$4,\"\")","v":""},null,null,null,{"$f":"IFERROR(INDEX(Table1[Room description],MATCH('2) Room configuration'!D906,Table1[TMS],0)),\"\")","v":""},{"$f":"IFERROR(INDEX(Table1[Bedding],MATCH('2) Room configuration'!D339,Table1[TMS],0)),\"\")","v":""},null,null,{"$f":"IFERROR(INDEX(Table1[Room description],MATCH('2) Room configuration'!I339,Table1[TMS],0)),\"\")","v":""},{"$f":"IFERROR(INDEX(Table1[Bedding],MATCH('2) Room configuration'!I339,Table1[TMS],0)),\"\")","v":""},{"$f":"IFERROR(INDEX(Table1[Normal occupancy],MATCH(Table2[[#This Row],[New Room Type \n(TMS)]],Table1[TMS],0)),\"\")","v":""},null,null,null,null,"",{"$f":"IF(Table2[[#This Row],['# extra beds that fit in the room2]]<>0,LEFT(Table2[[#This Row],[New Room Type \n(TMS)]],6),\"\")","v":""},null,{"$f":"IF(Table2[[#This Row],['# extra beds that fit in the room]]<>Table2[[#This Row],['# extra beds that fit in the room2]],\"yes\",\"No\")","v":"No"}]
[null,{"$f":"IF(LEN(C907)>0,'1) Hotel information'!$C$4,\"\")","v":""},null,null,null,{"$f":"IFERROR(INDEX(Table1[Room description],MATCH('2) Room configuration'!D907,Table1[TMS],0)),\"\")","v":""},{"$f":"IFERROR(INDEX(Table1[Bedding],MATCH('2) Room configuration'!D340,Table1[TMS],0)),\"\")","v":""},null,null,{"$f":"IFERROR(INDEX(Table1[Room description],MATCH('2) Room configuration'!I340,Table1[TMS],0)),\"\")","v":""},{"$f":"IFERROR(INDEX(Table1[Bedding],MATCH('2) Room configuration'!I340,Table1[TMS],0)),\"\")","v":""},{"$f":"IFERROR(INDEX(Table1[Normal occupancy],MATCH(Table2[[#This Row],[New Room Type \n(TMS)]],Table1[TMS],0)),\"\")","v":""},null,null,null,null,"",{"$f":"IF(Table2[[#This Row],['# extra beds that fit in the room2]]<>0,LEFT(Table2[[#This Row],[New Room Type \n(TMS)]],6),\"\")","v":""},null,{"$f":"IF(Table2[[#This Row],['# extra beds that fit in the room]]<>Table2[[#This Row],['# extra beds that fit in the room2]],\"yes\",\"No\")","v":"No"}]
[null,{"$f":"IF(LEN(C908)>0,'1) Hotel information'!$C$4,\"\")","v":""},null,null,null,{"$f":"IFERROR(INDEX(Table1[Room description],MATCH('2) Room configuration'!D908,Table1[TMS],0)),\"\")","v":""},{"$f":"IFERROR(INDEX(Table1[Bedding],MATCH('2) Room configuration'!D341,Table1[TMS],0)),\"\")","v":""},null,null,{"$f":"IFERROR(INDEX(Table1[Room description],MATCH('2) Room configuration'!I341,Table1[TMS],0)),\"\")","v":""},{"$f":"IFERROR(INDEX(Table1[Bedding],MATCH('2) Room configuration'!I341,Table1[TMS],0)),\"\")","v":""},{"$f":"IFERROR(INDEX(Table1[Normal occupancy],MATCH(Table2[[#This Row],[New Room Type \n(TMS)]],Table1[TMS],0)),\"\")","v":""},null,null,null,null,"",{"$f":"IF(Table2[[#This Row],['# extra beds that fit in the room2]]<>0,LEFT(Table2[[#This Row],[New Room Type \n(TMS)]],6),\"\")","v":""},null,{"$f":"IF(Table2[[#This Row],['# extra beds that fit in the room]]<>Table2[[#This Row],['# extra beds that fit in the room2]],\"yes\",\"No\")","v":"No"}]
[null,{"$f":"IF(LEN(C909)>0,'1) Hotel information'!$C$4,\"\")","v":""},null,null,null,{"$f":"IFERROR(INDEX(Table1[Room description],MATCH('2) Room configuration'!D909,Table1[TMS],0)),\"\")","v":""},{"$f":"IFERROR(INDEX(Table1[Bedding],MATCH('2) Room configuration'!D342,Table1[TMS],0)),\"\")","v":""},null,null,{"$f":"IFERROR(INDEX(Table1[Room description],MATCH('2) Room configuration'!I342,Table1[TMS],0)),\"\")","v":""},{"$f":"IFERROR(INDEX(Table1[Bedding],MATCH('2) Room configuration'!I342,Table1[TMS],0)),\"\")","v":""},{"$f":"IFERROR(INDEX(Table1[Normal occupancy],MATCH(Table2[[#This Row],[New Room Type \n(TMS)]],Table1[TMS],0)),\"\")","v":""},null,null,null,null,"",{"$f":"IF(Table2[[#This Row],['# extra beds that fit in the room2]]<>0,LEFT(Table2[[#This Row],[New Room Type \n(TMS)]],6),\"\")","v":""},null,{"$f":"IF(Table2[[#This Row],['# extra beds that fit in the room]]<>Table2[[#This Row],['# extra beds that fit in the room2]],\"yes\",\"No\")","v":"No"}]
[null,{"$f":"IF(LEN(C910)>0,'1) Hotel information'!$C$4,\"\")","v":""},null,null,null,{"$f":"IFERROR(INDEX(Table1[Room description],MATCH('2) Room configuration'!D910,Table1[TMS],0)),\"\")","v":""},{"$f":"IFERROR(INDEX(Table1[Bedding],MATCH('2) Room configuration'!D343,Table1[TMS],0)),\"\")","v":""},null,null,{"$f":"IFERROR(INDEX(Table1[Room description],MATCH('2) Room configuration'!I343,Table1[TMS],0)),\"\")","v":""},{"$f":"IFERROR(INDEX(Table1[Bedding],MATCH('2) Room configuration'!I343,Table1[TMS],0)),\"\")","v":""},{"$f":"IFERROR(INDEX(Table1[Normal occupancy],MATCH(Table2[[#This Row],[New Room Type \n(TMS)]],Table1[TMS],0)),\"\")","v":""},null,null,null,null,"",{"$f":"IF(Table2[[#This Row],['# extra beds that fit in the room2]]<>0,LEFT(Table2[[#This Row],[New Room Type \n(TMS)]],6),\"\")","v":""},null,{"$f":"IF(Table2[[#This Row],['# extra beds that fit in the room]]<>Table2[[#This Row],['# extra beds that fit in the room2]],\"yes\",\"No\")","v":"No"}]
[null,{"$f":"IF(LEN(C911)>0,'1) Hotel information'!$C$4,\"\")","v":""},null,null,null,{"$f":"IFERROR(INDEX(Table1[Room description],MATCH('2) Room configuration'!D911,Table1[TMS],0)),\"\")","v":""},{"$f":"IFERROR(INDEX(Table1[Bedding],MATCH('2) Room configuration'!D344,Table1[TMS],0)),\"\")","v":""},null,null,{"$f":"IFERROR(INDEX(Table1[Room description],MATCH('2) Room configuration'!I344,Table1[TMS],0)),\"\")","v":""},{"$f":"IFERROR(INDEX(Table1[Bedding],MATCH('2) Room configuration'!I344,Table1[TMS],0)),\"\")","v":""},{"$f":"IFERROR(INDEX(Table1[Normal occupancy],MATCH(Table2[[#This Row],[New Room Type \n(TMS)]],Table1[TMS],0)),\"\")","v":""},null,null,null,null,"",{"$f":"IF(Table2[[#This Row],['# extra beds that fit in the room2]]<>0,LEFT(Table2[[#This Row],[New Room Type \n(TMS)]],6),\"\")","v":""},null,{"$f":"IF(Table2[[#This Row],['# extra beds that fit in the room]]<>Table2[[#This Row],['# extra beds that fit in the room2]],\"yes\",\"No\")","v":"No"}]
[null,{"$f":"IF(LEN(C912)>0,'1) Hotel information'!$C$4,\"\")","v":""},null,null,null,{"$f":"IFERROR(INDEX(Table1[Room description],MATCH('2) Room configuration'!D912,Table1[TMS],0)),\"\")","v":""},{"$f":"IFERROR(INDEX(Table1[Bedding],MATCH('2) Room configuration'!D345,Table1[TMS],0)),\"\")","v":""},null,null,{"$f":"IFERROR(INDEX(Table1[Room description],MATCH('2) Room configuration'!I345,Table1[TMS],0)),\"\")","v":""},{"$f":"IFERROR(INDEX(Table1[Bedding],MATCH('2) Room configuration'!I345,Table1[TMS],0)),\"\")","v":""},{"$f":"IFERROR(INDEX(Table1[Normal occupancy],MATCH(Table2[[#This Row],[New Room Type \n(TMS)]],Table1[TMS],0)),\"\")","v":""},null,null,null,null,"",{"$f":"IF(Table2[[#This Row],['# extra beds that fit in the room2]]<>0,LEFT(Table2[[#This Row],[New Room Type \n(TMS)]],6),\"\")","v":""},null,{"$f":"IF(Table2[[#This Row],['# extra beds that fit in the room]]<>Table2[[#This Row],['# extra beds that fit in the room2]],\"yes\",\"No\")","v":"No"}]
[null,{"$f":"IF(LEN(C913)>0,'1) Hotel information'!$C$4,\"\")","v":""},null,null,null,{"$f":"IFERROR(INDEX(Table1[Room description],MATCH('2) Room configuration'!D913,Table1[TMS],0)),\"\")","v":""},{"$f":"IFERROR(INDEX(Table1[Bedding],MATCH('2) Room configuration'!D346,Table1[TMS],0)),\"\")","v":""},null,null,{"$f":"IFERROR(INDEX(Table1[Room description],MATCH('2) Room configuration'!I346,Table1[TMS],0)),\"\")","v":""},{"$f":"IFERROR(INDEX(Table1[Bedding],MATCH('2) Room configuration'!I346,Table1[TMS],0)),\"\")","v":""},{"$f":"IFERROR(INDEX(Table1[Normal occupancy],MATCH(Table2[[#This Row],[New Room Type \n(TMS)]],Table1[TMS],0)),\"\")","v":""},null,null,null,null,"",{"$f":"IF(Table2[[#This Row],['# extra beds that fit in the room2]]<>0,LEFT(Table2[[#This Row],[New Room Type \n(TMS)]],6),\"\")","v":""},null,{"$f":"IF(Table2[[#This Row],['# extra beds that fit in the room]]<>Table2[[#This Row],['# extra beds that fit in the room2]],\"yes\",\"No\")","v":"No"}]
[null,{"$f":"IF(LEN(C914)>0,'1) Hotel information'!$C$4,\"\")","v":""},null,null,null,{"$f":"IFERROR(INDEX(Table1[Room description],MATCH('2) Room configuration'!D914,Table1[TMS],0)),\"\")","v":""},{"$f":"IFERROR(INDEX(Table1[Bedding],MATCH('2) Room configuration'!D347,Table1[TMS],0)),\"\")","v":""},null,null,{"$f":"IFERROR(INDEX(Table1[Room description],MATCH('2) Room configuration'!I347,Table1[TMS],0)),\"\")","v":""},{"$f":"IFERROR(INDEX(Table1[Bedding],MATCH('2) Room configuration'!I347,Table1[TMS],0)),\"\")","v":""},{"$f":"IFERROR(INDEX(Table1[Normal occupancy],MATCH(Table2[[#This Row],[New Room Type \n(TMS)]],Table1[TMS],0)),\"\")","v":""},null,null,null,null,"",{"$f":"IF(Table2[[#This Row],['# extra beds that fit in the room2]]<>0,LEFT(Table2[[#This Row],[New Room Type \n(TMS)]],6),\"\")","v":""},null,{"$f":"IF(Table2[[#This Row],['# extra beds that fit in the room]]<>Table2[[#This Row],['# extra beds that fit in the room2]],\"yes\",\"No\")","v":"No"}]
[null,{"$f":"IF(LEN(C915)>0,'1) Hotel information'!$C$4,\"\")","v":""},null,null,null,{"$f":"IFERROR(INDEX(Table1[Room description],MATCH('2) Room configuration'!D915,Table1[TMS],0)),\"\")","v":""},{"$f":"IFERROR(INDEX(Table1[Bedding],MATCH('2) Room configuration'!D348,Table1[TMS],0)),\"\")","v":""},null,null,{"$f":"IFERROR(INDEX(Table1[Room description],MATCH('2) Room configuration'!I348,Table1[TMS],0)),\"\")","v":""},{"$f":"IFERROR(INDEX(Table1[Bedding],MATCH('2) Room configuration'!I348,Table1[TMS],0)),\"\")","v":""},{"$f":"IFERROR(INDEX(Table1[Normal occupancy],MATCH(Table2[[#This Row],[New Room Type \n(TMS)]],Table1[TMS],0)),\"\")","v":""},null,null,null,null,"",{"$f":"IF(Table2[[#This Row],['# extra beds that fit in the room2]]<>0,LEFT(Table2[[#This Row],[New Room Type \n(TMS)]],6),\"\")","v":""},null,{"$f":"IF(Table2[[#This Row],['# extra beds that fit in the room]]<>Table2[[#This Row],['# extra beds that fit in the room2]],\"yes\",\"No\")","v":"No"}]
[null,{"$f":"IF(LEN(C916)>0,'1) Hotel information'!$C$4,\"\")","v":""},null,null,null,{"$f":"IFERROR(INDEX(Table1[Room description],MATCH('2) Room configuration'!D916,Table1[TMS],0)),\"\")","v":""},{"$f":"IFERROR(INDEX(Table1[Bedding],MATCH('2) Room configuration'!D349,Table1[TMS],0)),\"\")","v":""},null,null,{"$f":"IFERROR(INDEX(Table1[Room description],MATCH('2) Room configuration'!I349,Table1[TMS],0)),\"\")","v":""},{"$f":"IFERROR(INDEX(Table1[Bedding],MATCH('2) Room configuration'!I349,Table1[TMS],0)),\"\")","v":""},{"$f":"IFERROR(INDEX(Table1[Normal occupancy],MATCH(Table2[[#This Row],[New Room Type \n(TMS)]],Table1[TMS],0)),\"\")","v":""},null,null,null,null,"",{"$f":"IF(Table2[[#This Row],['# extra beds that fit in the room2]]<>0,LEFT(Table2[[#This Row],[New Room Type \n(TMS)]],6),\"\")","v":""},null,{"$f":"IF(Table2[[#This Row],['# extra beds that fit in the room]]<>Table2[[#This Row],['# extra beds that fit in the room2]],\"yes\",\"No\")","v":"No"}]
[null,{"$f":"IF(LEN(C917)>0,'1) Hotel information'!$C$4,\"\")","v":""},null,null,null,{"$f":"IFERROR(INDEX(Table1[Room description],MATCH('2) Room configuration'!D917,Table1[TMS],0)),\"\")","v":""},{"$f":"IFERROR(INDEX(Table1[Bedding],MATCH('2) Room configuration'!D350,Table1[TMS],0)),\"\")","v":""},null,null,{"$f":"IFERROR(INDEX(Table1[Room description],MATCH('2) Room configuration'!I350,Table1[TMS],0)),\"\")","v":""},{"$f":"IFERROR(INDEX(Table1[Bedding],MATCH('2) Room configuration'!I350,Table1[TMS],0)),\"\")","v":""},{"$f":"IFERROR(INDEX(Table1[Normal occupancy],MATCH(Table2[[#This Row],[New Room Type \n(TMS)]],Table1[TMS],0)),\"\")","v":""},null,null,null,null,"",{"$f":"IF(Table2[[#This Row],['# extra beds that fit in the room2]]<>0,LEFT(Table2[[#This Row],[New Room Type \n(TMS)]],6),\"\")","v":""},null,{"$f":"IF(Table2[[#This Row],['# extra beds that fit in the room]]<>Table2[[#This Row],['# extra beds that fit in the room2]],\"yes\",\"No\")","v":"No"}]
[null,{"$f":"IF(LEN(C918)>0,'1) Hotel information'!$C$4,\"\")","v":""},null,null,null,{"$f":"IFERROR(INDEX(Table1[Room description],MATCH('2) Room configuration'!D918,Table1[TMS],0)),\"\")","v":""},{"$f":"IFERROR(INDEX(Table1[Bedding],MATCH('2) Room configuration'!D351,Table1[TMS],0)),\"\")","v":""},null,null,{"$f":"IFERROR(INDEX(Table1[Room description],MATCH('2) Room configuration'!I351,Table1[TMS],0)),\"\")","v":""},{"$f":"IFERROR(INDEX(Table1[Bedding],MATCH('2) Room configuration'!I351,Table1[TMS],0)),\"\")","v":""},{"$f":"IFERROR(INDEX(Table1[Normal occupancy],MATCH(Table2[[#This Row],[New Room Type \n(TMS)]],Table1[TMS],0)),\"\")","v":""},null,null,null,null,"",{"$f":"IF(Table2[[#This Row],['# extra beds that fit in the room2]]<>0,LEFT(Table2[[#This Row],[New Room Type \n(TMS)]],6),\"\")","v":""},null,{"$f":"IF(Table2[[#This Row],['# extra beds that fit in the room]]<>Table2[[#This Row],['# extra beds that fit in the room2]],\"yes\",\"No\")","v":"No"}]
[null,{"$f":"IF(LEN(C919)>0,'1) Hotel information'!$C$4,\"\")","v":""},null,null,null,{"$f":"IFERROR(INDEX(Table1[Room description],MATCH('2) Room configuration'!D919,Table1[TMS],0)),\"\")","v":""},{"$f":"IFERROR(INDEX(Table1[Bedding],MATCH('2) Room configuration'!D352,Table1[TMS],0)),\"\")","v":""},null,null,{"$f":"IFERROR(INDEX(Table1[Room description],MATCH('2) Room configuration'!I352,Table1[TMS],0)),\"\")","v":""},{"$f":"IFERROR(INDEX(Table1[Bedding],MATCH('2) Room configuration'!I352,Table1[TMS],0)),\"\")","v":""},{"$f":"IFERROR(INDEX(Table1[Normal occupancy],MATCH(Table2[[#This Row],[New Room Type \n(TMS)]],Table1[TMS],0)),\"\")","v":""},null,null,null,null,{"$f":"IF(LEN(C919)>0,IF(D919=I919,\"No\",\"Yes\"),\"\")","v":""},{"$f":"IF(Table2[[#This Row],['# extra beds that fit in the room2]]<>0,LEFT(Table2[[#This Row],[New Room Type \n(TMS)]],6),\"\")","v":""},null,{"$f":"IF(Table2[[#This Row],['# extra beds that fit in the room]]<>Table2[[#This Row],['# extra beds that fit in the room2]],\"yes\",\"No\")","v":"No"}]
[null,{"$f":"IF(LEN(C920)>0,'1) Hotel information'!$C$4,\"\")","v":""},null,null,null,{"$f":"IFERROR(INDEX(Table1[Room description],MATCH('2) Room configuration'!D920,Table1[TMS],0)),\"\")","v":""},{"$f":"IFERROR(INDEX(Table1[Bedding],MATCH('2) Room configuration'!D353,Table1[TMS],0)),\"\")","v":""},null,null,{"$f":"IFERROR(INDEX(Table1[Room description],MATCH('2) Room configuration'!I353,Table1[TMS],0)),\"\")","v":""},{"$f":"IFERROR(INDEX(Table1[Bedding],MATCH('2) Room configuration'!I353,Table1[TMS],0)),\"\")","v":""},{"$f":"IFERROR(INDEX(Table1[Normal occupancy],MATCH(Table2[[#This Row],[New Room Type \n(TMS)]],Table1[TMS],0)),\"\")","v":""},null,null,null,null,"",{"$f":"IF(Table2[[#This Row],['# extra beds that fit in the room2]]<>0,LEFT(Table2[[#This Row],[New Room Type \n(TMS)]],6),\"\")","v":""},null,{"$f":"IF(Table2[[#This Row],['# extra beds that fit in the room]]<>Table2[[#This Row],['# extra beds that fit in the room2]],\"yes\",\"No\")","v":"No"}]
[null,{"$f":"IF(LEN(C921)>0,'1) Hotel information'!$C$4,\"\")","v":""},null,null,null,{"$f":"IFERROR(INDEX(Table1[Room description],MATCH('2) Room configuration'!D921,Table1[TMS],0)),\"\")","v":""},{"$f":"IFERROR(INDEX(Table1[Bedding],MATCH('2) Room configuration'!D354,Table1[TMS],0)),\"\")","v":""},null,null,{"$f":"IFERROR(INDEX(Table1[Room description],MATCH('2) Room configuration'!I354,Table1[TMS],0)),\"\")","v":""},{"$f":"IFERROR(INDEX(Table1[Bedding],MATCH('2) Room configuration'!I354,Table1[TMS],0)),\"\")","v":""},{"$f":"IFERROR(INDEX(Table1[Normal occupancy],MATCH(Table2[[#This Row],[New Room Type \n(TMS)]],Table1[TMS],0)),\"\")","v":""},null,null,null,null,"",{"$f":"IF(Table2[[#This Row],['# extra beds that fit in the room2]]<>0,LEFT(Table2[[#This Row],[New Room Type \n(TMS)]],6),\"\")","v":""},null,{"$f":"IF(Table2[[#This Row],['# extra beds that fit in the room]]<>Table2[[#This Row],['# extra beds that fit in the room2]],\"yes\",\"No\")","v":"No"}]
[null,{"$f":"IF(LEN(C922)>0,'1) Hotel information'!$C$4,\"\")","v":""},null,null,null,{"$f":"IFERROR(INDEX(Table1[Room description],MATCH('2) Room configuration'!D922,Table1[TMS],0)),\"\")","v":""},{"$f":"IFERROR(INDEX(Table1[Bedding],MATCH('2) Room configuration'!D355,Table1[TMS],0)),\"\")","v":""},null,null,{"$f":"IFERROR(INDEX(Table1[Room description],MATCH('2) Room configuration'!I355,Table1[TMS],0)),\"\")","v":""},{"$f":"IFERROR(INDEX(Table1[Bedding],MATCH('2) Room configuration'!I355,Table1[TMS],0)),\"\")","v":""},{"$f":"IFERROR(INDEX(Table1[Normal occupancy],MATCH(Table2[[#This Row],[New Room Type \n(TMS)]],Table1[TMS],0)),\"\")","v":""},null,null,null,null,"",{"$f":"IF(Table2[[#This Row],['# extra beds that fit in the room2]]<>0,LEFT(Table2[[#This Row],[New Room Type \n(TMS)]],6),\"\")","v":""},null,{"$f":"IF(Table2[[#This Row],['# extra beds that fit in the room]]<>Table2[[#This Row],['# extra beds that fit in the room2]],\"yes\",\"No\")","v":"No"}]
[null,{"$f":"IF(LEN(C923)>0,'1) Hotel information'!$C$4,\"\")","v":""},null,null,null,{"$f":"IFERROR(INDEX(Table1[Room description],MATCH('2) Room configuration'!D923,Table1[TMS],0)),\"\")","v":""},{"$f":"IFERROR(INDEX(Table1[Bedding],MATCH('2) Room configuration'!D356,Table1[TMS],0)),\"\")","v":""},null,null,{"$f":"IFERROR(INDEX(Table1[Room description],MATCH('2) Room configuration'!I356,Table1[TMS],0)),\"\")","v":""},{"$f":"IFERROR(INDEX(Table1[Bedding],MATCH('2) Room configuration'!I356,Table1[TMS],0)),\"\")","v":""},{"$f":"IFERROR(INDEX(Table1[Normal occupancy],MATCH(Table2[[#This Row],[New Room Type \n(TMS)]],Table1[TMS],0)),\"\")","v":""},null,null,null,null,"",{"$f":"IF(Table2[[#This Row],['# extra beds that fit in the room2]]<>0,LEFT(Table2[[#This Row],[New Room Type \n(TMS)]],6),\"\")","v":""},null,{"$f":"IF(Table2[[#This Row],['# extra beds that fit in the room]]<>Table2[[#This Row],['# extra beds that fit in the room2]],\"yes\",\"No\")","v":"No"}]
[null,{"$f":"IF(LEN(C924)>0,'1) Hotel information'!$C$4,\"\")","v":""},null,null,null,{"$f":"IFERROR(INDEX(Table1[Room description],MATCH('2) Room configuration'!D924,Table1[TMS],0)),\"\")","v":""},{"$f":"IFERROR(INDEX(Table1[Bedding],MATCH('2) Room configuration'!D357,Table1[TMS],0)),\"\")","v":""},null,null,{"$f":"IFERROR(INDEX(Table1[Room description],MATCH('2) Room configuration'!I357,Table1[TMS],0)),\"\")","v":""},{"$f":"IFERROR(INDEX(Table1[Bedding],MATCH('2) Room configuration'!I357,Table1[TMS],0)),\"\")","v":""},{"$f":"IFERROR(INDEX(Table1[Normal occupancy],MATCH(Table2[[#This Row],[New Room Type \n(TMS)]],Table1[TMS],0)),\"\")","v":""},null,null,null,null,"",{"$f":"IF(Table2[[#This Row],['# extra beds that fit in the room2]]<>0,LEFT(Table2[[#This Row],[New Room Type \n(TMS)]],6),\"\")","v":""},null,{"$f":"IF(Table2[[#This Row],['# extra beds that fit in the room]]<>Table2[[#This Row],['# extra beds that fit in the room2]],\"yes\",\"No\")","v":"No"}]
[null,{"$f":"IF(LEN(C925)>0,'1) Hotel information'!$C$4,\"\")","v":""},null,null,null,{"$f":"IFERROR(INDEX(Table1[Room description],MATCH('2) Room configuration'!D925,Table1[TMS],0)),\"\")","v":""},{"$f":"IFERROR(INDEX(Table1[Bedding],MATCH('2) Room configuration'!D358,Table1[TMS],0)),\"\")","v":""},null,null,{"$f":"IFERROR(INDEX(Table1[Room description],MATCH('2) Room configuration'!I358,Table1[TMS],0)),\"\")","v":""},{"$f":"IFERROR(INDEX(Table1[Bedding],MATCH('2) Room configuration'!I358,Table1[TMS],0)),\"\")","v":""},{"$f":"IFERROR(INDEX(Table1[Normal occupancy],MATCH(Table2[[#This Row],[New Room Type \n(TMS)]],Table1[TMS],0)),\"\")","v":""},null,null,null,null,"",{"$f":"IF(Table2[[#This Row],['# extra beds that fit in the room2]]<>0,LEFT(Table2[[#This Row],[New Room Type \n(TMS)]],6),\"\")","v":""},null,{"$f":"IF(Table2[[#This Row],['# extra beds that fit in the room]]<>Table2[[#This Row],['# extra beds that fit in the room2]],\"yes\",\"No\")","v":"No"}]
[null,{"$f":"IF(LEN(C926)>0,'1) Hotel information'!$C$4,\"\")","v":""},null,null,null,{"$f":"IFERROR(INDEX(Table1[Room description],MATCH('2) Room configuration'!D926,Table1[TMS],0)),\"\")","v":""},{"$f":"IFERROR(INDEX(Table1[Bedding],MATCH('2) Room configuration'!D359,Table1[TMS],0)),\"\")","v":""},null,null,{"$f":"IFERROR(INDEX(Table1[Room description],MATCH('2) Room configuration'!I359,Table1[TMS],0)),\"\")","v":""},{"$f":"IFERROR(INDEX(Table1[Bedding],MATCH('2) Room configuration'!I359,Table1[TMS],0)),\"\")","v":""},{"$f":"IFERROR(INDEX(Table1[Normal occupancy],MATCH(Table2[[#This Row],[New Room Type \n(TMS)]],Table1[TMS],0)),\"\")","v":""},null,null,null,null,"",{"$f":"IF(Table2[[#This Row],['# extra beds that fit in the room2]]<>0,LEFT(Table2[[#This Row],[New Room Type \n(TMS)]],6),\"\")","v":""},null,{"$f":"IF(Table2[[#This Row],['# extra beds that fit in the room]]<>Table2[[#This Row],['# extra beds that fit in the room2]],\"yes\",\"No\")","v":"No"}]
[null,{"$f":"IF(LEN(C927)>0,'1) Hotel information'!$C$4,\"\")","v":""},null,null,null,{"$f":"IFERROR(INDEX(Table1[Room description],MATCH('2) Room configuration'!D927,Table1[TMS],0)),\"\")","v":""},{"$f":"IFERROR(INDEX(Table1[Bedding],MATCH('2) Room configuration'!D360,Table1[TMS],0)),\"\")","v":""},null,null,{"$f":"IFERROR(INDEX(Table1[Room description],MATCH('2) Room configuration'!I360,Table1[TMS],0)),\"\")","v":""},{"$f":"IFERROR(INDEX(Table1[Bedding],MATCH('2) Room configuration'!I360,Table1[TMS],0)),\"\")","v":""},{"$f":"IFERROR(INDEX(Table1[Normal occupancy],MATCH(Table2[[#This Row],[New Room Type \n(TMS)]],Table1[TMS],0)),\"\")","v":""},null,null,null,null,"",{"$f":"IF(Table2[[#This Row],['# extra beds that fit in the room2]]<>0,LEFT(Table2[[#This Row],[New Room Type \n(TMS)]],6),\"\")","v":""},null,{"$f":"IF(Table2[[#This Row],['# extra beds that fit in the room]]<>Table2[[#This Row],['# extra beds that fit in the room2]],\"yes\",\"No\")","v":"No"}]
[null,{"$f":"IF(LEN(C928)>0,'1) Hotel information'!$C$4,\"\")","v":""},null,null,null,{"$f":"IFERROR(INDEX(Table1[Room description],MATCH('2) Room configuration'!D928,Table1[TMS],0)),\"\")","v":""},{"$f":"IFERROR(INDEX(Table1[Bedding],MATCH('2) Room configuration'!D361,Table1[TMS],0)),\"\")","v":""},null,null,{"$f":"IFERROR(INDEX(Table1[Room description],MATCH('2) Room configuration'!I361,Table1[TMS],0)),\"\")","v":""},{"$f":"IFERROR(INDEX(Table1[Bedding],MATCH('2) Room configuration'!I361,Table1[TMS],0)),\"\")","v":""},{"$f":"IFERROR(INDEX(Table1[Normal occupancy],MATCH(Table2[[#This Row],[New Room Type \n(TMS)]],Table1[TMS],0)),\"\")","v":""},null,null,null,null,"",{"$f":"IF(Table2[[#This Row],['# extra beds that fit in the room2]]<>0,LEFT(Table2[[#This Row],[New Room Type \n(TMS)]],6),\"\")","v":""},null,{"$f":"IF(Table2[[#This Row],['# extra beds that fit in the room]]<>Table2[[#This Row],['# extra beds that fit in the room2]],\"yes\",\"No\")","v":"No"}]
[null,{"$f":"IF(LEN(C929)>0,'1) Hotel information'!$C$4,\"\")","v":""},null,null,null,{"$f":"IFERROR(INDEX(Table1[Room description],MATCH('2) Room configuration'!D929,Table1[TMS],0)),\"\")","v":""},{"$f":"IFERROR(INDEX(Table1[Bedding],MATCH('2) Room configuration'!D362,Table1[TMS],0)),\"\")","v":""},null,null,{"$f":"IFERROR(INDEX(Table1[Room description],MATCH('2) Room configuration'!I362,Table1[TMS],0)),\"\")","v":""},{"$f":"IFERROR(INDEX(Table1[Bedding],MATCH('2) Room configuration'!I362,Table1[TMS],0)),\"\")","v":""},{"$f":"IFERROR(INDEX(Table1[Normal occupancy],MATCH(Table2[[#This Row],[New Room Type \n(TMS)]],Table1[TMS],0)),\"\")","v":""},null,null,null,null,"",{"$f":"IF(Table2[[#This Row],['# extra beds that fit in the room2]]<>0,LEFT(Table2[[#This Row],[New Room Type \n(TMS)]],6),\"\")","v":""},null,{"$f":"IF(Table2[[#This Row],['# extra beds that fit in the room]]<>Table2[[#This Row],['# extra beds that fit in the room2]],\"yes\",\"No\")","v":"No"}]
[null,{"$f":"IF(LEN(C930)>0,'1) Hotel information'!$C$4,\"\")","v":""},null,null,null,{"$f":"IFERROR(INDEX(Table1[Room description],MATCH('2) Room configuration'!D930,Table1[TMS],0)),\"\")","v":""},{"$f":"IFERROR(INDEX(Table1[Bedding],MATCH('2) Room configuration'!D363,Table1[TMS],0)),\"\")","v":""},null,null,{"$f":"IFERROR(INDEX(Table1[Room description],MATCH('2) Room configuration'!I363,Table1[TMS],0)),\"\")","v":""},{"$f":"IFERROR(INDEX(Table1[Bedding],MATCH('2) Room configuration'!I363,Table1[TMS],0)),\"\")","v":""},{"$f":"IFERROR(INDEX(Table1[Normal occupancy],MATCH(Table2[[#This Row],[New Room Type \n(TMS)]],Table1[TMS],0)),\"\")","v":""},null,null,null,null,"",{"$f":"IF(Table2[[#This Row],['# extra beds that fit in the room2]]<>0,LEFT(Table2[[#This Row],[New Room Type \n(TMS)]],6),\"\")","v":""},null,{"$f":"IF(Table2[[#This Row],['# extra beds that fit in the room]]<>Table2[[#This Row],['# extra beds that fit in the room2]],\"yes\",\"No\")","v":"No"}]
[null,{"$f":"IF(LEN(C931)>0,'1) Hotel information'!$C$4,\"\")","v":""},null,null,null,{"$f":"IFERROR(INDEX(Table1[Room description],MATCH('2) Room configuration'!D931,Table1[TMS],0)),\"\")","v":""},{"$f":"IFERROR(INDEX(Table1[Bedding],MATCH('2) Room configuration'!D364,Table1[TMS],0)),\"\")","v":""},null,null,{"$f":"IFERROR(INDEX(Table1[Room description],MATCH('2) Room configuration'!I364,Table1[TMS],0)),\"\")","v":""},{"$f":"IFERROR(INDEX(Table1[Bedding],MATCH('2) Room configuration'!I364,Table1[TMS],0)),\"\")","v":""},{"$f":"IFERROR(INDEX(Table1[Normal occupancy],MATCH(Table2[[#This Row],[New Room Type \n(TMS)]],Table1[TMS],0)),\"\")","v":""},null,null,null,null,"",{"$f":"IF(Table2[[#This Row],['# extra beds that fit in the room2]]<>0,LEFT(Table2[[#This Row],[New Room Type \n(TMS)]],6),\"\")","v":""},null,{"$f":"IF(Table2[[#This Row],['# extra beds that fit in the room]]<>Table2[[#This Row],['# extra beds that fit in the room2]],\"yes\",\"No\")","v":"No"}]
[null,{"$f":"IF(LEN(C932)>0,'1) Hotel information'!$C$4,\"\")","v":""},null,null,null,{"$f":"IFERROR(INDEX(Table1[Room description],MATCH('2) Room configuration'!D932,Table1[TMS],0)),\"\")","v":""},{"$f":"IFERROR(INDEX(Table1[Bedding],MATCH('2) Room configuration'!D365,Table1[TMS],0)),\"\")","v":""},null,null,{"$f":"IFERROR(INDEX(Table1[Room description],MATCH('2) Room configuration'!I365,Table1[TMS],0)),\"\")","v":""},{"$f":"IFERROR(INDEX(Table1[Bedding],MATCH('2) Room configuration'!I365,Table1[TMS],0)),\"\")","v":""},{"$f":"IFERROR(INDEX(Table1[Normal occupancy],MATCH(Table2[[#This Row],[New Room Type \n(TMS)]],Table1[TMS],0)),\"\")","v":""},null,null,null,null,"",{"$f":"IF(Table2[[#This Row],['# extra beds that fit in the room2]]<>0,LEFT(Table2[[#This Row],[New Room Type \n(TMS)]],6),\"\")","v":""},null,{"$f":"IF(Table2[[#This Row],['# extra beds that fit in the room]]<>Table2[[#This Row],['# extra beds that fit in the room2]],\"yes\",\"No\")","v":"No"}]
[null,{"$f":"IF(LEN(C933)>0,'1) Hotel information'!$C$4,\"\")","v":""},null,null,null,{"$f":"IFERROR(INDEX(Table1[Room description],MATCH('2) Room configuration'!D933,Table1[TMS],0)),\"\")","v":""},{"$f":"IFERROR(INDEX(Table1[Bedding],MATCH('2) Room configuration'!D366,Table1[TMS],0)),\"\")","v":""},null,null,{"$f":"IFERROR(INDEX(Table1[Room description],MATCH('2) Room configuration'!I366,Table1[TMS],0)),\"\")","v":""},{"$f":"IFERROR(INDEX(Table1[Bedding],MATCH('2) Room configuration'!I366,Table1[TMS],0)),\"\")","v":""},{"$f":"IFERROR(INDEX(Table1[Normal occupancy],MATCH(Table2[[#This Row],[New Room Type \n(TMS)]],Table1[TMS],0)),\"\")","v":""},null,null,null,null,"",{"$f":"IF(Table2[[#This Row],['# extra beds that fit in the room2]]<>0,LEFT(Table2[[#This Row],[New Room Type \n(TMS)]],6),\"\")","v":""},null,{"$f":"IF(Table2[[#This Row],['# extra beds that fit in the room]]<>Table2[[#This Row],['# extra beds that fit in the room2]],\"yes\",\"No\")","v":"No"}]
[null,{"$f":"IF(LEN(C934)>0,'1) Hotel information'!$C$4,\"\")","v":""},null,null,null,{"$f":"IFERROR(INDEX(Table1[Room description],MATCH('2) Room configuration'!D934,Table1[TMS],0)),\"\")","v":""},{"$f":"IFERROR(INDEX(Table1[Bedding],MATCH('2) Room configuration'!D367,Table1[TMS],0)),\"\")","v":""},null,null,{"$f":"IFERROR(INDEX(Table1[Room description],MATCH('2) Room configuration'!I367,Table1[TMS],0)),\"\")","v":""},{"$f":"IFERROR(INDEX(Table1[Bedding],MATCH('2) Room configuration'!I367,Table1[TMS],0)),\"\")","v":""},{"$f":"IFERROR(INDEX(Table1[Normal occupancy],MATCH(Table2[[#This Row],[New Room Type \n(TMS)]],Table1[TMS],0)),\"\")","v":""},null,null,null,null,"",{"$f":"IF(Table2[[#This Row],['# extra beds that fit in the room2]]<>0,LEFT(Table2[[#This Row],[New Room Type \n(TMS)]],6),\"\")","v":""},null,{"$f":"IF(Table2[[#This Row],['# extra beds that fit in the room]]<>Table2[[#This Row],['# extra beds that fit in the room2]],\"yes\",\"No\")","v":"No"}]
[null,{"$f":"IF(LEN(C935)>0,'1) Hotel information'!$C$4,\"\")","v":""},null,null,null,{"$f":"IFERROR(INDEX(Table1[Room description],MATCH('2) Room configuration'!D935,Table1[TMS],0)),\"\")","v":""},{"$f":"IFERROR(INDEX(Table1[Bedding],MATCH('2) Room configuration'!D368,Table1[TMS],0)),\"\")","v":""},null,null,{"$f":"IFERROR(INDEX(Table1[Room description],MATCH('2) Room configuration'!I368,Table1[TMS],0)),\"\")","v":""},{"$f":"IFERROR(INDEX(Table1[Bedding],MATCH('2) Room configuration'!I368,Table1[TMS],0)),\"\")","v":""},{"$f":"IFERROR(INDEX(Table1[Normal occupancy],MATCH(Table2[[#This Row],[New Room Type \n(TMS)]],Table1[TMS],0)),\"\")","v":""},null,null,null,null,"",{"$f":"IF(Table2[[#This Row],['# extra beds that fit in the room2]]<>0,LEFT(Table2[[#This Row],[New Room Type \n(TMS)]],6),\"\")","v":""},null,{"$f":"IF(Table2[[#This Row],['# extra beds that fit in the room]]<>Table2[[#This Row],['# extra beds that fit in the room2]],\"yes\",\"No\")","v":"No"}]
[null,{"$f":"IF(LEN(C936)>0,'1) Hotel information'!$C$4,\"\")","v":""},null,null,null,{"$f":"IFERROR(INDEX(Table1[Room description],MATCH('2) Room configuration'!D936,Table1[TMS],0)),\"\")","v":""},{"$f":"IFERROR(INDEX(Table1[Bedding],MATCH('2) Room configuration'!D369,Table1[TMS],0)),\"\")","v":""},null,null,{"$f":"IFERROR(INDEX(Table1[Room description],MATCH('2) Room configuration'!I369,Table1[TMS],0)),\"\")","v":""},{"$f":"IFERROR(INDEX(Table1[Bedding],MATCH('2) Room configuration'!I369,Table1[TMS],0)),\"\")","v":""},{"$f":"IFERROR(INDEX(Table1[Normal occupancy],MATCH(Table2[[#This Row],[New Room Type \n(TMS)]],Table1[TMS],0)),\"\")","v":""},null,null,null,null,"",{"$f":"IF(Table2[[#This Row],['# extra beds that fit in the room2]]<>0,LEFT(Table2[[#This Row],[New Room Type \n(TMS)]],6),\"\")","v":""},null,{"$f":"IF(Table2[[#This Row],['# extra beds that fit in the room]]<>Table2[[#This Row],['# extra beds that fit in the room2]],\"yes\",\"No\")","v":"No"}]
[null,{"$f":"IF(LEN(C937)>0,'1) Hotel information'!$C$4,\"\")","v":""},null,null,null,{"$f":"IFERROR(INDEX(Table1[Room description],MATCH('2) Room configuration'!D937,Table1[TMS],0)),\"\")","v":""},{"$f":"IFERROR(INDEX(Table1[Bedding],MATCH('2) Room configuration'!D370,Table1[TMS],0)),\"\")","v":""},null,null,{"$f":"IFERROR(INDEX(Table1[Room description],MATCH('2) Room configuration'!I370,Table1[TMS],0)),\"\")","v":""},{"$f":"IFERROR(INDEX(Table1[Bedding],MATCH('2) Room configuration'!I370,Table1[TMS],0)),\"\")","v":""},{"$f":"IFERROR(INDEX(Table1[Normal occupancy],MATCH(Table2[[#This Row],[New Room Type \n(TMS)]],Table1[TMS],0)),\"\")","v":""},null,null,null,null,"",{"$f":"IF(Table2[[#This Row],['# extra beds that fit in the room2]]<>0,LEFT(Table2[[#This Row],[New Room Type \n(TMS)]],6),\"\")","v":""},null,{"$f":"IF(Table2[[#This Row],['# extra beds that fit in the room]]<>Table2[[#This Row],['# extra beds that fit in the room2]],\"yes\",\"No\")","v":"No"}]
[null,{"$f":"IF(LEN(C938)>0,'1) Hotel information'!$C$4,\"\")","v":""},null,null,null,{"$f":"IFERROR(INDEX(Table1[Room description],MATCH('2) Room configuration'!D938,Table1[TMS],0)),\"\")","v":""},{"$f":"IFERROR(INDEX(Table1[Bedding],MATCH('2) Room configuration'!D371,Table1[TMS],0)),\"\")","v":""},null,null,{"$f":"IFERROR(INDEX(Table1[Room description],MATCH('2) Room configuration'!I371,Table1[TMS],0)),\"\")","v":""},{"$f":"IFERROR(INDEX(Table1[Bedding],MATCH('2) Room configuration'!I371,Table1[TMS],0)),\"\")","v":""},{"$f":"IFERROR(INDEX(Table1[Normal occupancy],MATCH(Table2[[#This Row],[New Room Type \n(TMS)]],Table1[TMS],0)),\"\")","v":""},null,null,null,null,"",{"$f":"IF(Table2[[#This Row],['# extra beds that fit in the room2]]<>0,LEFT(Table2[[#This Row],[New Room Type \n(TMS)]],6),\"\")","v":""},null,{"$f":"IF(Table2[[#This Row],['# extra beds that fit in the room]]<>Table2[[#This Row],['# extra beds that fit in the room2]],\"yes\",\"No\")","v":"No"}]
[null,{"$f":"IF(LEN(C939)>0,'1) Hotel information'!$C$4,\"\")","v":""},null,null,null,{"$f":"IFERROR(INDEX(Table1[Room description],MATCH('2) Room configuration'!D939,Table1[TMS],0)),\"\")","v":""},{"$f":"IFERROR(INDEX(Table1[Bedding],MATCH('2) Room configuration'!D372,Table1[TMS],0)),\"\")","v":""},null,null,{"$f":"IFERROR(INDEX(Table1[Room description],MATCH('2) Room configuration'!I372,Table1[TMS],0)),\"\")","v":""},{"$f":"IFERROR(INDEX(Table1[Bedding],MATCH('2) Room configuration'!I372,Table1[TMS],0)),\"\")","v":""},{"$f":"IFERROR(INDEX(Table1[Normal occupancy],MATCH(Table2[[#This Row],[New Room Type \n(TMS)]],Table1[TMS],0)),\"\")","v":""},null,null,null,null,"",{"$f":"IF(Table2[[#This Row],['# extra beds that fit in the room2]]<>0,LEFT(Table2[[#This Row],[New Room Type \n(TMS)]],6),\"\")","v":""},null,{"$f":"IF(Table2[[#This Row],['# extra beds that fit in the room]]<>Table2[[#This Row],['# extra beds that fit in the room2]],\"yes\",\"No\")","v":"No"}]
[null,{"$f":"IF(LEN(C940)>0,'1) Hotel information'!$C$4,\"\")","v":""},null,null,null,{"$f":"IFERROR(INDEX(Table1[Room description],MATCH('2) Room configuration'!D940,Table1[TMS],0)),\"\")","v":""},{"$f":"IFERROR(INDEX(Table1[Bedding],MATCH('2) Room configuration'!D373,Table1[TMS],0)),\"\")","v":""},null,null,{"$f":"IFERROR(INDEX(Table1[Room description],MATCH('2) Room configuration'!I373,Table1[TMS],0)),\"\")","v":""},{"$f":"IFERROR(INDEX(Table1[Bedding],MATCH('2) Room configuration'!I373,Table1[TMS],0)),\"\")","v":""},{"$f":"IFERROR(INDEX(Table1[Normal occupancy],MATCH(Table2[[#This Row],[New Room Type \n(TMS)]],Table1[TMS],0)),\"\")","v":""},null,null,null,null,"",{"$f":"IF(Table2[[#This Row],['# extra beds that fit in the room2]]<>0,LEFT(Table2[[#This Row],[New Room Type \n(TMS)]],6),\"\")","v":""},null,{"$f":"IF(Table2[[#This Row],['# extra beds that fit in the room]]<>Table2[[#This Row],['# extra beds that fit in the room2]],\"yes\",\"No\")","v":"No"}]
[null,{"$f":"IF(LEN(C941)>0,'1) Hotel information'!$C$4,\"\")","v":""},null,null,null,{"$f":"IFERROR(INDEX(Table1[Room description],MATCH('2) Room configuration'!D941,Table1[TMS],0)),\"\")","v":""},{"$f":"IFERROR(INDEX(Table1[Bedding],MATCH('2) Room configuration'!D374,Table1[TMS],0)),\"\")","v":""},null,null,{"$f":"IFERROR(INDEX(Table1[Room description],MATCH('2) Room configuration'!I374,Table1[TMS],0)),\"\")","v":""},{"$f":"IFERROR(INDEX(Table1[Bedding],MATCH('2) Room configuration'!I374,Table1[TMS],0)),\"\")","v":""},{"$f":"IFERROR(INDEX(Table1[Normal occupancy],MATCH(Table2[[#This Row],[New Room Type \n(TMS)]],Table1[TMS],0)),\"\")","v":""},null,null,null,null,"",{"$f":"IF(Table2[[#This Row],['# extra beds that fit in the room2]]<>0,LEFT(Table2[[#This Row],[New Room Type \n(TMS)]],6),\"\")","v":""},null,{"$f":"IF(Table2[[#This Row],['# extra beds that fit in the room]]<>Table2[[#This Row],['# extra beds that fit in the room2]],\"yes\",\"No\")","v":"No"}]
[null,{"$f":"IF(LEN(C942)>0,'1) Hotel information'!$C$4,\"\")","v":""},null,null,null,{"$f":"IFERROR(INDEX(Table1[Room description],MATCH('2) Room configuration'!D942,Table1[TMS],0)),\"\")","v":""},{"$f":"IFERROR(INDEX(Table1[Bedding],MATCH('2) Room configuration'!D375,Table1[TMS],0)),\"\")","v":""},null,null,{"$f":"IFERROR(INDEX(Table1[Room description],MATCH('2) Room configuration'!I375,Table1[TMS],0)),\"\")","v":""},{"$f":"IFERROR(INDEX(Table1[Bedding],MATCH('2) Room configuration'!I375,Table1[TMS],0)),\"\")","v":""},{"$f":"IFERROR(INDEX(Table1[Normal occupancy],MATCH(Table2[[#This Row],[New Room Type \n(TMS)]],Table1[TMS],0)),\"\")","v":""},null,null,null,null,"",{"$f":"IF(Table2[[#This Row],['# extra beds that fit in the room2]]<>0,LEFT(Table2[[#This Row],[New Room Type \n(TMS)]],6),\"\")","v":""},null,{"$f":"IF(Table2[[#This Row],['# extra beds that fit in the room]]<>Table2[[#This Row],['# extra beds that fit in the room2]],\"yes\",\"No\")","v":"No"}]
[null,{"$f":"IF(LEN(C943)>0,'1) Hotel information'!$C$4,\"\")","v":""},null,null,null,{"$f":"IFERROR(INDEX(Table1[Room description],MATCH('2) Room configuration'!D943,Table1[TMS],0)),\"\")","v":""},{"$f":"IFERROR(INDEX(Table1[Bedding],MATCH('2) Room configuration'!D376,Table1[TMS],0)),\"\")","v":""},null,null,{"$f":"IFERROR(INDEX(Table1[Room description],MATCH('2) Room configuration'!I376,Table1[TMS],0)),\"\")","v":""},{"$f":"IFERROR(INDEX(Table1[Bedding],MATCH('2) Room configuration'!I376,Table1[TMS],0)),\"\")","v":""},{"$f":"IFERROR(INDEX(Table1[Normal occupancy],MATCH(Table2[[#This Row],[New Room Type \n(TMS)]],Table1[TMS],0)),\"\")","v":""},null,null,null,null,"",{"$f":"IF(Table2[[#This Row],['# extra beds that fit in the room2]]<>0,LEFT(Table2[[#This Row],[New Room Type \n(TMS)]],6),\"\")","v":""},null,{"$f":"IF(Table2[[#This Row],['# extra beds that fit in the room]]<>Table2[[#This Row],['# extra beds that fit in the room2]],\"yes\",\"No\")","v":"No"}]
[null,{"$f":"IF(LEN(C944)>0,'1) Hotel information'!$C$4,\"\")","v":""},null,null,null,{"$f":"IFERROR(INDEX(Table1[Room description],MATCH('2) Room configuration'!D944,Table1[TMS],0)),\"\")","v":""},{"$f":"IFERROR(INDEX(Table1[Bedding],MATCH('2) Room configuration'!D377,Table1[TMS],0)),\"\")","v":""},null,null,{"$f":"IFERROR(INDEX(Table1[Room description],MATCH('2) Room configuration'!I377,Table1[TMS],0)),\"\")","v":""},{"$f":"IFERROR(INDEX(Table1[Bedding],MATCH('2) Room configuration'!I377,Table1[TMS],0)),\"\")","v":""},{"$f":"IFERROR(INDEX(Table1[Normal occupancy],MATCH(Table2[[#This Row],[New Room Type \n(TMS)]],Table1[TMS],0)),\"\")","v":""},null,null,null,null,"",{"$f":"IF(Table2[[#This Row],['# extra beds that fit in the room2]]<>0,LEFT(Table2[[#This Row],[New Room Type \n(TMS)]],6),\"\")","v":""},null,{"$f":"IF(Table2[[#This Row],['# extra beds that fit in the room]]<>Table2[[#This Row],['# extra beds that fit in the room2]],\"yes\",\"No\")","v":"No"}]
[null,{"$f":"IF(LEN(C945)>0,'1) Hotel information'!$C$4,\"\")","v":""},null,null,null,{"$f":"IFERROR(INDEX(Table1[Room description],MATCH('2) Room configuration'!D945,Table1[TMS],0)),\"\")","v":""},{"$f":"IFERROR(INDEX(Table1[Bedding],MATCH('2) Room configuration'!D378,Table1[TMS],0)),\"\")","v":""},null,null,{"$f":"IFERROR(INDEX(Table1[Room description],MATCH('2) Room configuration'!I378,Table1[TMS],0)),\"\")","v":""},{"$f":"IFERROR(INDEX(Table1[Bedding],MATCH('2) Room configuration'!I378,Table1[TMS],0)),\"\")","v":""},{"$f":"IFERROR(INDEX(Table1[Normal occupancy],MATCH(Table2[[#This Row],[New Room Type \n(TMS)]],Table1[TMS],0)),\"\")","v":""},null,null,null,null,"",{"$f":"IF(Table2[[#This Row],['# extra beds that fit in the room2]]<>0,LEFT(Table2[[#This Row],[New Room Type \n(TMS)]],6),\"\")","v":""},null,{"$f":"IF(Table2[[#This Row],['# extra beds that fit in the room]]<>Table2[[#This Row],['# extra beds that fit in the room2]],\"yes\",\"No\")","v":"No"}]
[null,{"$f":"IF(LEN(C946)>0,'1) Hotel information'!$C$4,\"\")","v":""},null,null,null,{"$f":"IFERROR(INDEX(Table1[Room description],MATCH('2) Room configuration'!D946,Table1[TMS],0)),\"\")","v":""},{"$f":"IFERROR(INDEX(Table1[Bedding],MATCH('2) Room configuration'!D379,Table1[TMS],0)),\"\")","v":""},null,null,{"$f":"IFERROR(INDEX(Table1[Room description],MATCH('2) Room configuration'!I379,Table1[TMS],0)),\"\")","v":""},{"$f":"IFERROR(INDEX(Table1[Bedding],MATCH('2) Room configuration'!I379,Table1[TMS],0)),\"\")","v":""},{"$f":"IFERROR(INDEX(Table1[Normal occupancy],MATCH(Table2[[#This Row],[New Room Type \n(TMS)]],Table1[TMS],0)),\"\")","v":""},null,null,null,null,"",{"$f":"IF(Table2[[#This Row],['# extra beds that fit in the room2]]<>0,LEFT(Table2[[#This Row],[New Room Type \n(TMS)]],6),\"\")","v":""},null,{"$f":"IF(Table2[[#This Row],['# extra beds that fit in the room]]<>Table2[[#This Row],['# extra beds that fit in the room2]],\"yes\",\"No\")","v":"No"}]
[null,{"$f":"IF(LEN(C947)>0,'1) Hotel information'!$C$4,\"\")","v":""},null,null,null,{"$f":"IFERROR(INDEX(Table1[Room description],MATCH('2) Room configuration'!D947,Table1[TMS],0)),\"\")","v":""},{"$f":"IFERROR(INDEX(Table1[Bedding],MATCH('2) Room configuration'!D380,Table1[TMS],0)),\"\")","v":""},null,null,{"$f":"IFERROR(INDEX(Table1[Room description],MATCH('2) Room configuration'!I380,Table1[TMS],0)),\"\")","v":""},{"$f":"IFERROR(INDEX(Table1[Bedding],MATCH('2) Room configuration'!I380,Table1[TMS],0)),\"\")","v":""},{"$f":"IFERROR(INDEX(Table1[Normal occupancy],MATCH(Table2[[#This Row],[New Room Type \n(TMS)]],Table1[TMS],0)),\"\")","v":""},null,null,null,null,"",{"$f":"IF(Table2[[#This Row],['# extra beds that fit in the room2]]<>0,LEFT(Table2[[#This Row],[New Room Type \n(TMS)]],6),\"\")","v":""},null,{"$f":"IF(Table2[[#This Row],['# extra beds that fit in the room]]<>Table2[[#This Row],['# extra beds that fit in the room2]],\"yes\",\"No\")","v":"No"}]
[null,{"$f":"IF(LEN(C948)>0,'1) Hotel information'!$C$4,\"\")","v":""},null,null,null,{"$f":"IFERROR(INDEX(Table1[Room description],MATCH('2) Room configuration'!D948,Table1[TMS],0)),\"\")","v":""},{"$f":"IFERROR(INDEX(Table1[Bedding],MATCH('2) Room configuration'!D381,Table1[TMS],0)),\"\")","v":""},null,null,{"$f":"IFERROR(INDEX(Table1[Room description],MATCH('2) Room configuration'!I381,Table1[TMS],0)),\"\")","v":""},{"$f":"IFERROR(INDEX(Table1[Bedding],MATCH('2) Room configuration'!I381,Table1[TMS],0)),\"\")","v":""},{"$f":"IFERROR(INDEX(Table1[Normal occupancy],MATCH(Table2[[#This Row],[New Room Type \n(TMS)]],Table1[TMS],0)),\"\")","v":""},null,null,null,null,"",{"$f":"IF(Table2[[#This Row],['# extra beds that fit in the room2]]<>0,LEFT(Table2[[#This Row],[New Room Type \n(TMS)]],6),\"\")","v":""},null,{"$f":"IF(Table2[[#This Row],['# extra beds that fit in the room]]<>Table2[[#This Row],['# extra beds that fit in the room2]],\"yes\",\"No\")","v":"No"}]
[null,{"$f":"IF(LEN(C949)>0,'1) Hotel information'!$C$4,\"\")","v":""},null,null,null,{"$f":"IFERROR(INDEX(Table1[Room description],MATCH('2) Room configuration'!D949,Table1[TMS],0)),\"\")","v":""},{"$f":"IFERROR(INDEX(Table1[Bedding],MATCH('2) Room configuration'!D382,Table1[TMS],0)),\"\")","v":""},null,null,{"$f":"IFERROR(INDEX(Table1[Room description],MATCH('2) Room configuration'!I382,Table1[TMS],0)),\"\")","v":""},{"$f":"IFERROR(INDEX(Table1[Bedding],MATCH('2) Room configuration'!I382,Table1[TMS],0)),\"\")","v":""},{"$f":"IFERROR(INDEX(Table1[Normal occupancy],MATCH(Table2[[#This Row],[New Room Type \n(TMS)]],Table1[TMS],0)),\"\")","v":""},null,null,null,null,"",{"$f":"IF(Table2[[#This Row],['# extra beds that fit in the room2]]<>0,LEFT(Table2[[#This Row],[New Room Type \n(TMS)]],6),\"\")","v":""},null,{"$f":"IF(Table2[[#This Row],['# extra beds that fit in the room]]<>Table2[[#This Row],['# extra beds that fit in the room2]],\"yes\",\"No\")","v":"No"}]
[null,{"$f":"IF(LEN(C950)>0,'1) Hotel information'!$C$4,\"\")","v":""},null,null,null,{"$f":"IFERROR(INDEX(Table1[Room description],MATCH('2) Room configuration'!D950,Table1[TMS],0)),\"\")","v":""},{"$f":"IFERROR(INDEX(Table1[Bedding],MATCH('2) Room configuration'!D383,Table1[TMS],0)),\"\")","v":""},null,null,{"$f":"IFERROR(INDEX(Table1[Room description],MATCH('2) Room configuration'!I383,Table1[TMS],0)),\"\")","v":""},{"$f":"IFERROR(INDEX(Table1[Bedding],MATCH('2) Room configuration'!I383,Table1[TMS],0)),\"\")","v":""},{"$f":"IFERROR(INDEX(Table1[Normal occupancy],MATCH(Table2[[#This Row],[New Room Type \n(TMS)]],Table1[TMS],0)),\"\")","v":""},null,null,null,null,"",{"$f":"IF(Table2[[#This Row],['# extra beds that fit in the room2]]<>0,LEFT(Table2[[#This Row],[New Room Type \n(TMS)]],6),\"\")","v":""},null,{"$f":"IF(Table2[[#This Row],['# extra beds that fit in the room]]<>Table2[[#This Row],['# extra beds that fit in the room2]],\"yes\",\"No\")","v":"No"}]
[null,{"$f":"IF(LEN(C951)>0,'1) Hotel information'!$C$4,\"\")","v":""},null,null,null,{"$f":"IFERROR(INDEX(Table1[Room description],MATCH('2) Room configuration'!D951,Table1[TMS],0)),\"\")","v":""},{"$f":"IFERROR(INDEX(Table1[Bedding],MATCH('2) Room configuration'!D384,Table1[TMS],0)),\"\")","v":""},null,null,{"$f":"IFERROR(INDEX(Table1[Room description],MATCH('2) Room configuration'!I384,Table1[TMS],0)),\"\")","v":""},{"$f":"IFERROR(INDEX(Table1[Bedding],MATCH('2) Room configuration'!I384,Table1[TMS],0)),\"\")","v":""},{"$f":"IFERROR(INDEX(Table1[Normal occupancy],MATCH(Table2[[#This Row],[New Room Type \n(TMS)]],Table1[TMS],0)),\"\")","v":""},null,null,null,null,"",{"$f":"IF(Table2[[#This Row],['# extra beds that fit in the room2]]<>0,LEFT(Table2[[#This Row],[New Room Type \n(TMS)]],6),\"\")","v":""},null,{"$f":"IF(Table2[[#This Row],['# extra beds that fit in the room]]<>Table2[[#This Row],['# extra beds that fit in the room2]],\"yes\",\"No\")","v":"No"}]
[null,{"$f":"IF(LEN(C952)>0,'1) Hotel information'!$C$4,\"\")","v":""},null,null,null,{"$f":"IFERROR(INDEX(Table1[Room description],MATCH('2) Room configuration'!D952,Table1[TMS],0)),\"\")","v":""},{"$f":"IFERROR(INDEX(Table1[Bedding],MATCH('2) Room configuration'!D385,Table1[TMS],0)),\"\")","v":""},null,null,{"$f":"IFERROR(INDEX(Table1[Room description],MATCH('2) Room configuration'!I385,Table1[TMS],0)),\"\")","v":""},{"$f":"IFERROR(INDEX(Table1[Bedding],MATCH('2) Room configuration'!I385,Table1[TMS],0)),\"\")","v":""},{"$f":"IFERROR(INDEX(Table1[Normal occupancy],MATCH(Table2[[#This Row],[New Room Type \n(TMS)]],Table1[TMS],0)),\"\")","v":""},null,null,null,null,"",{"$f":"IF(Table2[[#This Row],['# extra beds that fit in the room2]]<>0,LEFT(Table2[[#This Row],[New Room Type \n(TMS)]],6),\"\")","v":""},null,{"$f":"IF(Table2[[#This Row],['# extra beds that fit in the room]]<>Table2[[#This Row],['# extra beds that fit in the room2]],\"yes\",\"No\")","v":"No"}]
[null,{"$f":"IF(LEN(C953)>0,'1) Hotel information'!$C$4,\"\")","v":""},null,null,null,{"$f":"IFERROR(INDEX(Table1[Room description],MATCH('2) Room configuration'!D953,Table1[TMS],0)),\"\")","v":""},{"$f":"IFERROR(INDEX(Table1[Bedding],MATCH('2) Room configuration'!D386,Table1[TMS],0)),\"\")","v":""},null,null,{"$f":"IFERROR(INDEX(Table1[Room description],MATCH('2) Room configuration'!I386,Table1[TMS],0)),\"\")","v":""},{"$f":"IFERROR(INDEX(Table1[Bedding],MATCH('2) Room configuration'!I386,Table1[TMS],0)),\"\")","v":""},{"$f":"IFERROR(INDEX(Table1[Normal occupancy],MATCH(Table2[[#This Row],[New Room Type \n(TMS)]],Table1[TMS],0)),\"\")","v":""},null,null,null,null,"",{"$f":"IF(Table2[[#This Row],['# extra beds that fit in the room2]]<>0,LEFT(Table2[[#This Row],[New Room Type \n(TMS)]],6),\"\")","v":""},null,{"$f":"IF(Table2[[#This Row],['# extra beds that fit in the room]]<>Table2[[#This Row],['# extra beds that fit in the room2]],\"yes\",\"No\")","v":"No"}]
[null,{"$f":"IF(LEN(C954)>0,'1) Hotel information'!$C$4,\"\")","v":""},null,null,null,{"$f":"IFERROR(INDEX(Table1[Room description],MATCH('2) Room configuration'!D954,Table1[TMS],0)),\"\")","v":""},{"$f":"IFERROR(INDEX(Table1[Bedding],MATCH('2) Room configuration'!D387,Table1[TMS],0)),\"\")","v":""},null,null,{"$f":"IFERROR(INDEX(Table1[Room description],MATCH('2) Room configuration'!I387,Table1[TMS],0)),\"\")","v":""},{"$f":"IFERROR(INDEX(Table1[Bedding],MATCH('2) Room configuration'!I387,Table1[TMS],0)),\"\")","v":""},{"$f":"IFERROR(INDEX(Table1[Normal occupancy],MATCH(Table2[[#This Row],[New Room Type \n(TMS)]],Table1[TMS],0)),\"\")","v":""},null,null,null,null,"",{"$f":"IF(Table2[[#This Row],['# extra beds that fit in the room2]]<>0,LEFT(Table2[[#This Row],[New Room Type \n(TMS)]],6),\"\")","v":""},null,{"$f":"IF(Table2[[#This Row],['# extra beds that fit in the room]]<>Table2[[#This Row],['# extra beds that fit in the room2]],\"yes\",\"No\")","v":"No"}]
[null,{"$f":"IF(LEN(C955)>0,'1) Hotel information'!$C$4,\"\")","v":""},null,null,null,{"$f":"IFERROR(INDEX(Table1[Room description],MATCH('2) Room configuration'!D955,Table1[TMS],0)),\"\")","v":""},{"$f":"IFERROR(INDEX(Table1[Bedding],MATCH('2) Room configuration'!D388,Table1[TMS],0)),\"\")","v":""},null,null,{"$f":"IFERROR(INDEX(Table1[Room description],MATCH('2) Room configuration'!I388,Table1[TMS],0)),\"\")","v":""},{"$f":"IFERROR(INDEX(Table1[Bedding],MATCH('2) Room configuration'!I388,Table1[TMS],0)),\"\")","v":""},{"$f":"IFERROR(INDEX(Table1[Normal occupancy],MATCH(Table2[[#This Row],[New Room Type \n(TMS)]],Table1[TMS],0)),\"\")","v":""},null,null,null,null,"",{"$f":"IF(Table2[[#This Row],['# extra beds that fit in the room2]]<>0,LEFT(Table2[[#This Row],[New Room Type \n(TMS)]],6),\"\")","v":""},null,{"$f":"IF(Table2[[#This Row],['# extra beds that fit in the room]]<>Table2[[#This Row],['# extra beds that fit in the room2]],\"yes\",\"No\")","v":"No"}]
[null,{"$f":"IF(LEN(C956)>0,'1) Hotel information'!$C$4,\"\")","v":""},null,null,null,{"$f":"IFERROR(INDEX(Table1[Room description],MATCH('2) Room configuration'!D956,Table1[TMS],0)),\"\")","v":""},{"$f":"IFERROR(INDEX(Table1[Bedding],MATCH('2) Room configuration'!D389,Table1[TMS],0)),\"\")","v":""},null,null,{"$f":"IFERROR(INDEX(Table1[Room description],MATCH('2) Room configuration'!I389,Table1[TMS],0)),\"\")","v":""},{"$f":"IFERROR(INDEX(Table1[Bedding],MATCH('2) Room configuration'!I389,Table1[TMS],0)),\"\")","v":""},{"$f":"IFERROR(INDEX(Table1[Normal occupancy],MATCH(Table2[[#This Row],[New Room Type \n(TMS)]],Table1[TMS],0)),\"\")","v":""},null,null,null,null,"",{"$f":"IF(Table2[[#This Row],['# extra beds that fit in the room2]]<>0,LEFT(Table2[[#This Row],[New Room Type \n(TMS)]],6),\"\")","v":""},null,{"$f":"IF(Table2[[#This Row],['# extra beds that fit in the room]]<>Table2[[#This Row],['# extra beds that fit in the room2]],\"yes\",\"No\")","v":"No"}]
[null,{"$f":"IF(LEN(C957)>0,'1) Hotel information'!$C$4,\"\")","v":""},null,null,null,{"$f":"IFERROR(INDEX(Table1[Room description],MATCH('2) Room configuration'!D957,Table1[TMS],0)),\"\")","v":""},{"$f":"IFERROR(INDEX(Table1[Bedding],MATCH('2) Room configuration'!D390,Table1[TMS],0)),\"\")","v":""},null,null,{"$f":"IFERROR(INDEX(Table1[Room description],MATCH('2) Room configuration'!I390,Table1[TMS],0)),\"\")","v":""},{"$f":"IFERROR(INDEX(Table1[Bedding],MATCH('2) Room configuration'!I390,Table1[TMS],0)),\"\")","v":""},{"$f":"IFERROR(INDEX(Table1[Normal occupancy],MATCH(Table2[[#This Row],[New Room Type \n(TMS)]],Table1[TMS],0)),\"\")","v":""},null,null,null,null,"",{"$f":"IF(Table2[[#This Row],['# extra beds that fit in the room2]]<>0,LEFT(Table2[[#This Row],[New Room Type \n(TMS)]],6),\"\")","v":""},null,{"$f":"IF(Table2[[#This Row],['# extra beds that fit in the room]]<>Table2[[#This Row],['# extra beds that fit in the room2]],\"yes\",\"No\")","v":"No"}]
[null,{"$f":"IF(LEN(C958)>0,'1) Hotel information'!$C$4,\"\")","v":""},null,null,null,{"$f":"IFERROR(INDEX(Table1[Room description],MATCH('2) Room configuration'!D958,Table1[TMS],0)),\"\")","v":""},{"$f":"IFERROR(INDEX(Table1[Bedding],MATCH('2) Room configuration'!D391,Table1[TMS],0)),\"\")","v":""},null,null,{"$f":"IFERROR(INDEX(Table1[Room description],MATCH('2) Room configuration'!I391,Table1[TMS],0)),\"\")","v":""},{"$f":"IFERROR(INDEX(Table1[Bedding],MATCH('2) Room configuration'!I391,Table1[TMS],0)),\"\")","v":""},{"$f":"IFERROR(INDEX(Table1[Normal occupancy],MATCH(Table2[[#This Row],[New Room Type \n(TMS)]],Table1[TMS],0)),\"\")","v":""},null,null,null,null,"",{"$f":"IF(Table2[[#This Row],['# extra beds that fit in the room2]]<>0,LEFT(Table2[[#This Row],[New Room Type \n(TMS)]],6),\"\")","v":""},null,{"$f":"IF(Table2[[#This Row],['# extra beds that fit in the room]]<>Table2[[#This Row],['# extra beds that fit in the room2]],\"yes\",\"No\")","v":"No"}]
[null,{"$f":"IF(LEN(C959)>0,'1) Hotel information'!$C$4,\"\")","v":""},null,null,null,{"$f":"IFERROR(INDEX(Table1[Room description],MATCH('2) Room configuration'!D959,Table1[TMS],0)),\"\")","v":""},{"$f":"IFERROR(INDEX(Table1[Bedding],MATCH('2) Room configuration'!D392,Table1[TMS],0)),\"\")","v":""},null,null,{"$f":"IFERROR(INDEX(Table1[Room description],MATCH('2) Room configuration'!I392,Table1[TMS],0)),\"\")","v":""},{"$f":"IFERROR(INDEX(Table1[Bedding],MATCH('2) Room configuration'!I392,Table1[TMS],0)),\"\")","v":""},{"$f":"IFERROR(INDEX(Table1[Normal occupancy],MATCH(Table2[[#This Row],[New Room Type \n(TMS)]],Table1[TMS],0)),\"\")","v":""},null,null,null,null,"",{"$f":"IF(Table2[[#This Row],['# extra beds that fit in the room2]]<>0,LEFT(Table2[[#This Row],[New Room Type \n(TMS)]],6),\"\")","v":""},null,{"$f":"IF(Table2[[#This Row],['# extra beds that fit in the room]]<>Table2[[#This Row],['# extra beds that fit in the room2]],\"yes\",\"No\")","v":"No"}]
[null,{"$f":"IF(LEN(C960)>0,'1) Hotel information'!$C$4,\"\")","v":""},null,null,null,{"$f":"IFERROR(INDEX(Table1[Room description],MATCH('2) Room configuration'!D960,Table1[TMS],0)),\"\")","v":""},{"$f":"IFERROR(INDEX(Table1[Bedding],MATCH('2) Room configuration'!D393,Table1[TMS],0)),\"\")","v":""},null,null,{"$f":"IFERROR(INDEX(Table1[Room description],MATCH('2) Room configuration'!I393,Table1[TMS],0)),\"\")","v":""},{"$f":"IFERROR(INDEX(Table1[Bedding],MATCH('2) Room configuration'!I393,Table1[TMS],0)),\"\")","v":""},{"$f":"IFERROR(INDEX(Table1[Normal occupancy],MATCH(Table2[[#This Row],[New Room Type \n(TMS)]],Table1[TMS],0)),\"\")","v":""},null,null,null,null,"",{"$f":"IF(Table2[[#This Row],['# extra beds that fit in the room2]]<>0,LEFT(Table2[[#This Row],[New Room Type \n(TMS)]],6),\"\")","v":""},null,{"$f":"IF(Table2[[#This Row],['# extra beds that fit in the room]]<>Table2[[#This Row],['# extra beds that fit in the room2]],\"yes\",\"No\")","v":"No"}]
[null,{"$f":"IF(LEN(C961)>0,'1) Hotel information'!$C$4,\"\")","v":""},null,null,null,{"$f":"IFERROR(INDEX(Table1[Room description],MATCH('2) Room configuration'!D961,Table1[TMS],0)),\"\")","v":""},{"$f":"IFERROR(INDEX(Table1[Bedding],MATCH('2) Room configuration'!D394,Table1[TMS],0)),\"\")","v":""},null,null,{"$f":"IFERROR(INDEX(Table1[Room description],MATCH('2) Room configuration'!I394,Table1[TMS],0)),\"\")","v":""},{"$f":"IFERROR(INDEX(Table1[Bedding],MATCH('2) Room configuration'!I394,Table1[TMS],0)),\"\")","v":""},{"$f":"IFERROR(INDEX(Table1[Normal occupancy],MATCH(Table2[[#This Row],[New Room Type \n(TMS)]],Table1[TMS],0)),\"\")","v":""},null,null,null,null,"",{"$f":"IF(Table2[[#This Row],['# extra beds that fit in the room2]]<>0,LEFT(Table2[[#This Row],[New Room Type \n(TMS)]],6),\"\")","v":""},null,{"$f":"IF(Table2[[#This Row],['# extra beds that fit in the room]]<>Table2[[#This Row],['# extra beds that fit in the room2]],\"yes\",\"No\")","v":"No"}]
[null,{"$f":"IF(LEN(C962)>0,'1) Hotel information'!$C$4,\"\")","v":""},null,null,null,{"$f":"IFERROR(INDEX(Table1[Room description],MATCH('2) Room configuration'!D962,Table1[TMS],0)),\"\")","v":""},{"$f":"IFERROR(INDEX(Table1[Bedding],MATCH('2) Room configuration'!D395,Table1[TMS],0)),\"\")","v":""},null,null,{"$f":"IFERROR(INDEX(Table1[Room description],MATCH('2) Room configuration'!I395,Table1[TMS],0)),\"\")","v":""},{"$f":"IFERROR(INDEX(Table1[Bedding],MATCH('2) Room configuration'!I395,Table1[TMS],0)),\"\")","v":""},{"$f":"IFERROR(INDEX(Table1[Normal occupancy],MATCH(Table2[[#This Row],[New Room Type \n(TMS)]],Table1[TMS],0)),\"\")","v":""},null,null,null,null,"",{"$f":"IF(Table2[[#This Row],['# extra beds that fit in the room2]]<>0,LEFT(Table2[[#This Row],[New Room Type \n(TMS)]],6),\"\")","v":""},null,{"$f":"IF(Table2[[#This Row],['# extra beds that fit in the room]]<>Table2[[#This Row],['# extra beds that fit in the room2]],\"yes\",\"No\")","v":"No"}]
[null,{"$f":"IF(LEN(C963)>0,'1) Hotel information'!$C$4,\"\")","v":""},null,null,null,{"$f":"IFERROR(INDEX(Table1[Room description],MATCH('2) Room configuration'!D963,Table1[TMS],0)),\"\")","v":""},{"$f":"IFERROR(INDEX(Table1[Bedding],MATCH('2) Room configuration'!D396,Table1[TMS],0)),\"\")","v":""},null,null,{"$f":"IFERROR(INDEX(Table1[Room description],MATCH('2) Room configuration'!I396,Table1[TMS],0)),\"\")","v":""},{"$f":"IFERROR(INDEX(Table1[Bedding],MATCH('2) Room configuration'!I396,Table1[TMS],0)),\"\")","v":""},{"$f":"IFERROR(INDEX(Table1[Normal occupancy],MATCH(Table2[[#This Row],[New Room Type \n(TMS)]],Table1[TMS],0)),\"\")","v":""},null,null,null,null,"",{"$f":"IF(Table2[[#This Row],['# extra beds that fit in the room2]]<>0,LEFT(Table2[[#This Row],[New Room Type \n(TMS)]],6),\"\")","v":""},null,{"$f":"IF(Table2[[#This Row],['# extra beds that fit in the room]]<>Table2[[#This Row],['# extra beds that fit in the room2]],\"yes\",\"No\")","v":"No"}]
[null,{"$f":"IF(LEN(C964)>0,'1) Hotel information'!$C$4,\"\")","v":""},null,null,null,{"$f":"IFERROR(INDEX(Table1[Room description],MATCH('2) Room configuration'!D964,Table1[TMS],0)),\"\")","v":""},{"$f":"IFERROR(INDEX(Table1[Bedding],MATCH('2) Room configuration'!D397,Table1[TMS],0)),\"\")","v":""},null,null,{"$f":"IFERROR(INDEX(Table1[Room description],MATCH('2) Room configuration'!I397,Table1[TMS],0)),\"\")","v":""},{"$f":"IFERROR(INDEX(Table1[Bedding],MATCH('2) Room configuration'!I397,Table1[TMS],0)),\"\")","v":""},{"$f":"IFERROR(INDEX(Table1[Normal occupancy],MATCH(Table2[[#This Row],[New Room Type \n(TMS)]],Table1[TMS],0)),\"\")","v":""},null,null,null,null,"",{"$f":"IF(Table2[[#This Row],['# extra beds that fit in the room2]]<>0,LEFT(Table2[[#This Row],[New Room Type \n(TMS)]],6),\"\")","v":""},null,{"$f":"IF(Table2[[#This Row],['# extra beds that fit in the room]]<>Table2[[#This Row],['# extra beds that fit in the room2]],\"yes\",\"No\")","v":"No"}]
[null,{"$f":"IF(LEN(C965)>0,'1) Hotel information'!$C$4,\"\")","v":""},null,null,null,{"$f":"IFERROR(INDEX(Table1[Room description],MATCH('2) Room configuration'!D965,Table1[TMS],0)),\"\")","v":""},{"$f":"IFERROR(INDEX(Table1[Bedding],MATCH('2) Room configuration'!D398,Table1[TMS],0)),\"\")","v":""},null,null,{"$f":"IFERROR(INDEX(Table1[Room description],MATCH('2) Room configuration'!I398,Table1[TMS],0)),\"\")","v":""},{"$f":"IFERROR(INDEX(Table1[Bedding],MATCH('2) Room configuration'!I398,Table1[TMS],0)),\"\")","v":""},{"$f":"IFERROR(INDEX(Table1[Normal occupancy],MATCH(Table2[[#This Row],[New Room Type \n(TMS)]],Table1[TMS],0)),\"\")","v":""},null,null,null,null,"",{"$f":"IF(Table2[[#This Row],['# extra beds that fit in the room2]]<>0,LEFT(Table2[[#This Row],[New Room Type \n(TMS)]],6),\"\")","v":""},null,{"$f":"IF(Table2[[#This Row],['# extra beds that fit in the room]]<>Table2[[#This Row],['# extra beds that fit in the room2]],\"yes\",\"No\")","v":"No"}]
[null,{"$f":"IF(LEN(C966)>0,'1) Hotel information'!$C$4,\"\")","v":""},null,null,null,{"$f":"IFERROR(INDEX(Table1[Room description],MATCH('2) Room configuration'!D966,Table1[TMS],0)),\"\")","v":""},{"$f":"IFERROR(INDEX(Table1[Bedding],MATCH('2) Room configuration'!D399,Table1[TMS],0)),\"\")","v":""},null,null,{"$f":"IFERROR(INDEX(Table1[Room description],MATCH('2) Room configuration'!I399,Table1[TMS],0)),\"\")","v":""},{"$f":"IFERROR(INDEX(Table1[Bedding],MATCH('2) Room configuration'!I399,Table1[TMS],0)),\"\")","v":""},{"$f":"IFERROR(INDEX(Table1[Normal occupancy],MATCH(Table2[[#This Row],[New Room Type \n(TMS)]],Table1[TMS],0)),\"\")","v":""},null,null,null,null,"",{"$f":"IF(Table2[[#This Row],['# extra beds that fit in the room2]]<>0,LEFT(Table2[[#This Row],[New Room Type \n(TMS)]],6),\"\")","v":""},null,{"$f":"IF(Table2[[#This Row],['# extra beds that fit in the room]]<>Table2[[#This Row],['# extra beds that fit in the room2]],\"yes\",\"No\")","v":"No"}]
[null,{"$f":"IF(LEN(C967)>0,'1) Hotel information'!$C$4,\"\")","v":""},null,null,null,{"$f":"IFERROR(INDEX(Table1[Room description],MATCH('2) Room configuration'!D967,Table1[TMS],0)),\"\")","v":""},{"$f":"IFERROR(INDEX(Table1[Bedding],MATCH('2) Room configuration'!D400,Table1[TMS],0)),\"\")","v":""},null,null,{"$f":"IFERROR(INDEX(Table1[Room description],MATCH('2) Room configuration'!I400,Table1[TMS],0)),\"\")","v":""},{"$f":"IFERROR(INDEX(Table1[Bedding],MATCH('2) Room configuration'!I400,Table1[TMS],0)),\"\")","v":""},{"$f":"IFERROR(INDEX(Table1[Normal occupancy],MATCH(Table2[[#This Row],[New Room Type \n(TMS)]],Table1[TMS],0)),\"\")","v":""},null,null,null,null,"",{"$f":"IF(Table2[[#This Row],['# extra beds that fit in the room2]]<>0,LEFT(Table2[[#This Row],[New Room Type \n(TMS)]],6),\"\")","v":""},null,{"$f":"IF(Table2[[#This Row],['# extra beds that fit in the room]]<>Table2[[#This Row],['# extra beds that fit in the room2]],\"yes\",\"No\")","v":"No"}]
[null,{"$f":"IF(LEN(C968)>0,'1) Hotel information'!$C$4,\"\")","v":""},null,null,null,{"$f":"IFERROR(INDEX(Table1[Room description],MATCH('2) Room configuration'!D968,Table1[TMS],0)),\"\")","v":""},{"$f":"IFERROR(INDEX(Table1[Bedding],MATCH('2) Room configuration'!D401,Table1[TMS],0)),\"\")","v":""},null,null,{"$f":"IFERROR(INDEX(Table1[Room description],MATCH('2) Room configuration'!I401,Table1[TMS],0)),\"\")","v":""},{"$f":"IFERROR(INDEX(Table1[Bedding],MATCH('2) Room configuration'!I401,Table1[TMS],0)),\"\")","v":""},{"$f":"IFERROR(INDEX(Table1[Normal occupancy],MATCH(Table2[[#This Row],[New Room Type \n(TMS)]],Table1[TMS],0)),\"\")","v":""},null,null,null,null,"",{"$f":"IF(Table2[[#This Row],['# extra beds that fit in the room2]]<>0,LEFT(Table2[[#This Row],[New Room Type \n(TMS)]],6),\"\")","v":""},null,{"$f":"IF(Table2[[#This Row],['# extra beds that fit in the room]]<>Table2[[#This Row],['# extra beds that fit in the room2]],\"yes\",\"No\")","v":"No"}]
[null,{"$f":"IF(LEN(C969)>0,'1) Hotel information'!$C$4,\"\")","v":""},null,null,null,{"$f":"IFERROR(INDEX(Table1[Room description],MATCH('2) Room configuration'!D969,Table1[TMS],0)),\"\")","v":""},{"$f":"IFERROR(INDEX(Table1[Bedding],MATCH('2) Room configuration'!D402,Table1[TMS],0)),\"\")","v":""},null,null,{"$f":"IFERROR(INDEX(Table1[Room description],MATCH('2) Room configuration'!I402,Table1[TMS],0)),\"\")","v":""},{"$f":"IFERROR(INDEX(Table1[Bedding],MATCH('2) Room configuration'!I402,Table1[TMS],0)),\"\")","v":""},{"$f":"IFERROR(INDEX(Table1[Normal occupancy],MATCH(Table2[[#This Row],[New Room Type \n(TMS)]],Table1[TMS],0)),\"\")","v":""},null,null,null,null,"",{"$f":"IF(Table2[[#This Row],['# extra beds that fit in the room2]]<>0,LEFT(Table2[[#This Row],[New Room Type \n(TMS)]],6),\"\")","v":""},null,{"$f":"IF(Table2[[#This Row],['# extra beds that fit in the room]]<>Table2[[#This Row],['# extra beds that fit in the room2]],\"yes\",\"No\")","v":"No"}]
[null,{"$f":"IF(LEN(C970)>0,'1) Hotel information'!$C$4,\"\")","v":""},null,null,null,{"$f":"IFERROR(INDEX(Table1[Room description],MATCH('2) Room configuration'!D970,Table1[TMS],0)),\"\")","v":""},{"$f":"IFERROR(INDEX(Table1[Bedding],MATCH('2) Room configuration'!D403,Table1[TMS],0)),\"\")","v":""},null,null,{"$f":"IFERROR(INDEX(Table1[Room description],MATCH('2) Room configuration'!I403,Table1[TMS],0)),\"\")","v":""},{"$f":"IFERROR(INDEX(Table1[Bedding],MATCH('2) Room configuration'!I403,Table1[TMS],0)),\"\")","v":""},{"$f":"IFERROR(INDEX(Table1[Normal occupancy],MATCH(Table2[[#This Row],[New Room Type \n(TMS)]],Table1[TMS],0)),\"\")","v":""},null,null,null,null,"",{"$f":"IF(Table2[[#This Row],['# extra beds that fit in the room2]]<>0,LEFT(Table2[[#This Row],[New Room Type \n(TMS)]],6),\"\")","v":""},null,{"$f":"IF(Table2[[#This Row],['# extra beds that fit in the room]]<>Table2[[#This Row],['# extra beds that fit in the room2]],\"yes\",\"No\")","v":"No"}]
[null,{"$f":"IF(LEN(C971)>0,'1) Hotel information'!$C$4,\"\")","v":""},null,null,null,{"$f":"IFERROR(INDEX(Table1[Room description],MATCH('2) Room configuration'!D971,Table1[TMS],0)),\"\")","v":""},{"$f":"IFERROR(INDEX(Table1[Bedding],MATCH('2) Room configuration'!D404,Table1[TMS],0)),\"\")","v":""},null,null,{"$f":"IFERROR(INDEX(Table1[Room description],MATCH('2) Room configuration'!I404,Table1[TMS],0)),\"\")","v":""},{"$f":"IFERROR(INDEX(Table1[Bedding],MATCH('2) Room configuration'!I404,Table1[TMS],0)),\"\")","v":""},{"$f":"IFERROR(INDEX(Table1[Normal occupancy],MATCH(Table2[[#This Row],[New Room Type \n(TMS)]],Table1[TMS],0)),\"\")","v":""},null,null,null,null,"",{"$f":"IF(Table2[[#This Row],['# extra beds that fit in the room2]]<>0,LEFT(Table2[[#This Row],[New Room Type \n(TMS)]],6),\"\")","v":""},null,{"$f":"IF(Table2[[#This Row],['# extra beds that fit in the room]]<>Table2[[#This Row],['# extra beds that fit in the room2]],\"yes\",\"No\")","v":"No"}]
[null,{"$f":"IF(LEN(C972)>0,'1) Hotel information'!$C$4,\"\")","v":""},null,null,null,{"$f":"IFERROR(INDEX(Table1[Room description],MATCH('2) Room configuration'!D972,Table1[TMS],0)),\"\")","v":""},{"$f":"IFERROR(INDEX(Table1[Bedding],MATCH('2) Room configuration'!D405,Table1[TMS],0)),\"\")","v":""},null,null,{"$f":"IFERROR(INDEX(Table1[Room description],MATCH('2) Room configuration'!I405,Table1[TMS],0)),\"\")","v":""},{"$f":"IFERROR(INDEX(Table1[Bedding],MATCH('2) Room configuration'!I405,Table1[TMS],0)),\"\")","v":""},{"$f":"IFERROR(INDEX(Table1[Normal occupancy],MATCH(Table2[[#This Row],[New Room Type \n(TMS)]],Table1[TMS],0)),\"\")","v":""},null,null,null,null,"",{"$f":"IF(Table2[[#This Row],['# extra beds that fit in the room2]]<>0,LEFT(Table2[[#This Row],[New Room Type \n(TMS)]],6),\"\")","v":""},null,{"$f":"IF(Table2[[#This Row],['# extra beds that fit in the room]]<>Table2[[#This Row],['# extra beds that fit in the room2]],\"yes\",\"No\")","v":"No"}]
[null,{"$f":"IF(LEN(C973)>0,'1) Hotel information'!$C$4,\"\")","v":""},null,null,null,{"$f":"IFERROR(INDEX(Table1[Room description],MATCH('2) Room configuration'!D973,Table1[TMS],0)),\"\")","v":""},{"$f":"IFERROR(INDEX(Table1[Bedding],MATCH('2) Room configuration'!D406,Table1[TMS],0)),\"\")","v":""},null,null,{"$f":"IFERROR(INDEX(Table1[Room description],MATCH('2) Room configuration'!I406,Table1[TMS],0)),\"\")","v":""},{"$f":"IFERROR(INDEX(Table1[Bedding],MATCH('2) Room configuration'!I406,Table1[TMS],0)),\"\")","v":""},{"$f":"IFERROR(INDEX(Table1[Normal occupancy],MATCH(Table2[[#This Row],[New Room Type \n(TMS)]],Table1[TMS],0)),\"\")","v":""},null,null,null,null,"",{"$f":"IF(Table2[[#This Row],['# extra beds that fit in the room2]]<>0,LEFT(Table2[[#This Row],[New Room Type \n(TMS)]],6),\"\")","v":""},null,{"$f":"IF(Table2[[#This Row],['# extra beds that fit in the room]]<>Table2[[#This Row],['# extra beds that fit in the room2]],\"yes\",\"No\")","v":"No"}]
[null,{"$f":"IF(LEN(C974)>0,'1) Hotel information'!$C$4,\"\")","v":""},null,null,null,{"$f":"IFERROR(INDEX(Table1[Room description],MATCH('2) Room configuration'!D974,Table1[TMS],0)),\"\")","v":""},{"$f":"IFERROR(INDEX(Table1[Bedding],MATCH('2) Room configuration'!D407,Table1[TMS],0)),\"\")","v":""},null,null,{"$f":"IFERROR(INDEX(Table1[Room description],MATCH('2) Room configuration'!I407,Table1[TMS],0)),\"\")","v":""},{"$f":"IFERROR(INDEX(Table1[Bedding],MATCH('2) Room configuration'!I407,Table1[TMS],0)),\"\")","v":""},{"$f":"IFERROR(INDEX(Table1[Normal occupancy],MATCH(Table2[[#This Row],[New Room Type \n(TMS)]],Table1[TMS],0)),\"\")","v":""},null,null,null,null,"",{"$f":"IF(Table2[[#This Row],['# extra beds that fit in the room2]]<>0,LEFT(Table2[[#This Row],[New Room Type \n(TMS)]],6),\"\")","v":""},null,{"$f":"IF(Table2[[#This Row],['# extra beds that fit in the room]]<>Table2[[#This Row],['# extra beds that fit in the room2]],\"yes\",\"No\")","v":"No"}]
[null,{"$f":"IF(LEN(C975)>0,'1) Hotel information'!$C$4,\"\")","v":""},null,null,null,{"$f":"IFERROR(INDEX(Table1[Room description],MATCH('2) Room configuration'!D975,Table1[TMS],0)),\"\")","v":""},{"$f":"IFERROR(INDEX(Table1[Bedding],MATCH('2) Room configuration'!D408,Table1[TMS],0)),\"\")","v":""},null,null,{"$f":"IFERROR(INDEX(Table1[Room description],MATCH('2) Room configuration'!I408,Table1[TMS],0)),\"\")","v":""},{"$f":"IFERROR(INDEX(Table1[Bedding],MATCH('2) Room configuration'!I408,Table1[TMS],0)),\"\")","v":""},{"$f":"IFERROR(INDEX(Table1[Normal occupancy],MATCH(Table2[[#This Row],[New Room Type \n(TMS)]],Table1[TMS],0)),\"\")","v":""},null,null,null,null,"",{"$f":"IF(Table2[[#This Row],['# extra beds that fit in the room2]]<>0,LEFT(Table2[[#This Row],[New Room Type \n(TMS)]],6),\"\")","v":""},null,{"$f":"IF(Table2[[#This Row],['# extra beds that fit in the room]]<>Table2[[#This Row],['# extra beds that fit in the room2]],\"yes\",\"No\")","v":"No"}]
[null,{"$f":"IF(LEN(C976)>0,'1) Hotel information'!$C$4,\"\")","v":""},null,null,null,{"$f":"IFERROR(INDEX(Table1[Room description],MATCH('2) Room configuration'!D976,Table1[TMS],0)),\"\")","v":""},{"$f":"IFERROR(INDEX(Table1[Bedding],MATCH('2) Room configuration'!D409,Table1[TMS],0)),\"\")","v":""},null,null,{"$f":"IFERROR(INDEX(Table1[Room description],MATCH('2) Room configuration'!I409,Table1[TMS],0)),\"\")","v":""},{"$f":"IFERROR(INDEX(Table1[Bedding],MATCH('2) Room configuration'!I409,Table1[TMS],0)),\"\")","v":""},{"$f":"IFERROR(INDEX(Table1[Normal occupancy],MATCH(Table2[[#This Row],[New Room Type \n(TMS)]],Table1[TMS],0)),\"\")","v":""},null,null,null,null,"",{"$f":"IF(Table2[[#This Row],['# extra beds that fit in the room2]]<>0,LEFT(Table2[[#This Row],[New Room Type \n(TMS)]],6),\"\")","v":""},null,{"$f":"IF(Table2[[#This Row],['# extra beds that fit in the room]]<>Table2[[#This Row],['# extra beds that fit in the room2]],\"yes\",\"No\")","v":"No"}]
[null,{"$f":"IF(LEN(C977)>0,'1) Hotel information'!$C$4,\"\")","v":""},null,null,null,{"$f":"IFERROR(INDEX(Table1[Room description],MATCH('2) Room configuration'!D977,Table1[TMS],0)),\"\")","v":""},{"$f":"IFERROR(INDEX(Table1[Bedding],MATCH('2) Room configuration'!D410,Table1[TMS],0)),\"\")","v":""},null,null,{"$f":"IFERROR(INDEX(Table1[Room description],MATCH('2) Room configuration'!I410,Table1[TMS],0)),\"\")","v":""},{"$f":"IFERROR(INDEX(Table1[Bedding],MATCH('2) Room configuration'!I410,Table1[TMS],0)),\"\")","v":""},{"$f":"IFERROR(INDEX(Table1[Normal occupancy],MATCH(Table2[[#This Row],[New Room Type \n(TMS)]],Table1[TMS],0)),\"\")","v":""},null,null,null,null,"",{"$f":"IF(Table2[[#This Row],['# extra beds that fit in the room2]]<>0,LEFT(Table2[[#This Row],[New Room Type \n(TMS)]],6),\"\")","v":""},null,{"$f":"IF(Table2[[#This Row],['# extra beds that fit in the room]]<>Table2[[#This Row],['# extra beds that fit in the room2]],\"yes\",\"No\")","v":"No"}]
[null,{"$f":"IF(LEN(C978)>0,'1) Hotel information'!$C$4,\"\")","v":""},null,null,null,{"$f":"IFERROR(INDEX(Table1[Room description],MATCH('2) Room configuration'!D978,Table1[TMS],0)),\"\")","v":""},{"$f":"IFERROR(INDEX(Table1[Bedding],MATCH('2) Room configuration'!D411,Table1[TMS],0)),\"\")","v":""},null,null,{"$f":"IFERROR(INDEX(Table1[Room description],MATCH('2) Room configuration'!I411,Table1[TMS],0)),\"\")","v":""},{"$f":"IFERROR(INDEX(Table1[Bedding],MATCH('2) Room configuration'!I411,Table1[TMS],0)),\"\")","v":""},{"$f":"IFERROR(INDEX(Table1[Normal occupancy],MATCH(Table2[[#This Row],[New Room Type \n(TMS)]],Table1[TMS],0)),\"\")","v":""},null,null,null,null,"",{"$f":"IF(Table2[[#This Row],['# extra beds that fit in the room2]]<>0,LEFT(Table2[[#This Row],[New Room Type \n(TMS)]],6),\"\")","v":""},null,{"$f":"IF(Table2[[#This Row],['# extra beds that fit in the room]]<>Table2[[#This Row],['# extra beds that fit in the room2]],\"yes\",\"No\")","v":"No"}]
[null,{"$f":"IF(LEN(C979)>0,'1) Hotel information'!$C$4,\"\")","v":""},null,null,null,{"$f":"IFERROR(INDEX(Table1[Room description],MATCH('2) Room configuration'!D979,Table1[TMS],0)),\"\")","v":""},{"$f":"IFERROR(INDEX(Table1[Bedding],MATCH('2) Room configuration'!D412,Table1[TMS],0)),\"\")","v":""},null,null,{"$f":"IFERROR(INDEX(Table1[Room description],MATCH('2) Room configuration'!I412,Table1[TMS],0)),\"\")","v":""},{"$f":"IFERROR(INDEX(Table1[Bedding],MATCH('2) Room configuration'!I412,Table1[TMS],0)),\"\")","v":""},{"$f":"IFERROR(INDEX(Table1[Normal occupancy],MATCH(Table2[[#This Row],[New Room Type \n(TMS)]],Table1[TMS],0)),\"\")","v":""},null,null,null,null,"",{"$f":"IF(Table2[[#This Row],['# extra beds that fit in the room2]]<>0,LEFT(Table2[[#This Row],[New Room Type \n(TMS)]],6),\"\")","v":""},null,{"$f":"IF(Table2[[#This Row],['# extra beds that fit in the room]]<>Table2[[#This Row],['# extra beds that fit in the room2]],\"yes\",\"No\")","v":"No"}]
[null,{"$f":"IF(LEN(C980)>0,'1) Hotel information'!$C$4,\"\")","v":""},null,null,null,{"$f":"IFERROR(INDEX(Table1[Room description],MATCH('2) Room configuration'!D980,Table1[TMS],0)),\"\")","v":""},{"$f":"IFERROR(INDEX(Table1[Bedding],MATCH('2) Room configuration'!D413,Table1[TMS],0)),\"\")","v":""},null,null,{"$f":"IFERROR(INDEX(Table1[Room description],MATCH('2) Room configuration'!I413,Table1[TMS],0)),\"\")","v":""},{"$f":"IFERROR(INDEX(Table1[Bedding],MATCH('2) Room configuration'!I413,Table1[TMS],0)),\"\")","v":""},{"$f":"IFERROR(INDEX(Table1[Normal occupancy],MATCH(Table2[[#This Row],[New Room Type \n(TMS)]],Table1[TMS],0)),\"\")","v":""},null,null,null,null,"",{"$f":"IF(Table2[[#This Row],['# extra beds that fit in the room2]]<>0,LEFT(Table2[[#This Row],[New Room Type \n(TMS)]],6),\"\")","v":""},null,{"$f":"IF(Table2[[#This Row],['# extra beds that fit in the room]]<>Table2[[#This Row],['# extra beds that fit in the room2]],\"yes\",\"No\")","v":"No"}]
[null,{"$f":"IF(LEN(C981)>0,'1) Hotel information'!$C$4,\"\")","v":""},null,null,null,{"$f":"IFERROR(INDEX(Table1[Room description],MATCH('2) Room configuration'!D981,Table1[TMS],0)),\"\")","v":""},{"$f":"IFERROR(INDEX(Table1[Bedding],MATCH('2) Room configuration'!D414,Table1[TMS],0)),\"\")","v":""},null,null,{"$f":"IFERROR(INDEX(Table1[Room description],MATCH('2) Room configuration'!I414,Table1[TMS],0)),\"\")","v":""},{"$f":"IFERROR(INDEX(Table1[Bedding],MATCH('2) Room configuration'!I414,Table1[TMS],0)),\"\")","v":""},{"$f":"IFERROR(INDEX(Table1[Normal occupancy],MATCH(Table2[[#This Row],[New Room Type \n(TMS)]],Table1[TMS],0)),\"\")","v":""},null,null,null,null,"",{"$f":"IF(Table2[[#This Row],['# extra beds that fit in the room2]]<>0,LEFT(Table2[[#This Row],[New Room Type \n(TMS)]],6),\"\")","v":""},null,{"$f":"IF(Table2[[#This Row],['# extra beds that fit in the room]]<>Table2[[#This Row],['# extra beds that fit in the room2]],\"yes\",\"No\")","v":"No"}]
[null,{"$f":"IF(LEN(C982)>0,'1) Hotel information'!$C$4,\"\")","v":""},null,null,null,{"$f":"IFERROR(INDEX(Table1[Room description],MATCH('2) Room configuration'!D982,Table1[TMS],0)),\"\")","v":""},{"$f":"IFERROR(INDEX(Table1[Bedding],MATCH('2) Room configuration'!D415,Table1[TMS],0)),\"\")","v":""},null,null,{"$f":"IFERROR(INDEX(Table1[Room description],MATCH('2) Room configuration'!I415,Table1[TMS],0)),\"\")","v":""},{"$f":"IFERROR(INDEX(Table1[Bedding],MATCH('2) Room configuration'!I415,Table1[TMS],0)),\"\")","v":""},{"$f":"IFERROR(INDEX(Table1[Normal occupancy],MATCH(Table2[[#This Row],[New Room Type \n(TMS)]],Table1[TMS],0)),\"\")","v":""},null,null,null,null,"",{"$f":"IF(Table2[[#This Row],['# extra beds that fit in the room2]]<>0,LEFT(Table2[[#This Row],[New Room Type \n(TMS)]],6),\"\")","v":""},null,{"$f":"IF(Table2[[#This Row],['# extra beds that fit in the room]]<>Table2[[#This Row],['# extra beds that fit in the room2]],\"yes\",\"No\")","v":"No"}]
[null,{"$f":"IF(LEN(C983)>0,'1) Hotel information'!$C$4,\"\")","v":""},null,null,null,{"$f":"IFERROR(INDEX(Table1[Room description],MATCH('2) Room configuration'!D983,Table1[TMS],0)),\"\")","v":""},{"$f":"IFERROR(INDEX(Table1[Bedding],MATCH('2) Room configuration'!D416,Table1[TMS],0)),\"\")","v":""},null,null,{"$f":"IFERROR(INDEX(Table1[Room description],MATCH('2) Room configuration'!I416,Table1[TMS],0)),\"\")","v":""},{"$f":"IFERROR(INDEX(Table1[Bedding],MATCH('2) Room configuration'!I416,Table1[TMS],0)),\"\")","v":""},{"$f":"IFERROR(INDEX(Table1[Normal occupancy],MATCH(Table2[[#This Row],[New Room Type \n(TMS)]],Table1[TMS],0)),\"\")","v":""},null,null,null,null,{"$f":"IF(LEN(C983)>0,IF(D983=I983,\"No\",\"Yes\"),\"\")","v":""},{"$f":"IF(Table2[[#This Row],['# extra beds that fit in the room2]]<>0,LEFT(Table2[[#This Row],[New Room Type \n(TMS)]],6),\"\")","v":""},null,{"$f":"IF(Table2[[#This Row],['# extra beds that fit in the room]]<>Table2[[#This Row],['# extra beds that fit in the room2]],\"yes\",\"No\")","v":"No"}]
[null,{"$f":"IF(LEN(C984)>0,'1) Hotel information'!$C$4,\"\")","v":""},null,null,null,{"$f":"IFERROR(INDEX(Table1[Room description],MATCH('2) Room configuration'!D984,Table1[TMS],0)),\"\")","v":""},{"$f":"IFERROR(INDEX(Table1[Bedding],MATCH('2) Room configuration'!D417,Table1[TMS],0)),\"\")","v":""},null,null,{"$f":"IFERROR(INDEX(Table1[Room description],MATCH('2) Room configuration'!I417,Table1[TMS],0)),\"\")","v":""},{"$f":"IFERROR(INDEX(Table1[Bedding],MATCH('2) Room configuration'!I417,Table1[TMS],0)),\"\")","v":""},{"$f":"IFERROR(INDEX(Table1[Normal occupancy],MATCH(Table2[[#This Row],[New Room Type \n(TMS)]],Table1[TMS],0)),\"\")","v":""},null,null,null,null,"",{"$f":"IF(Table2[[#This Row],['# extra beds that fit in the room2]]<>0,LEFT(Table2[[#This Row],[New Room Type \n(TMS)]],6),\"\")","v":""},null,{"$f":"IF(Table2[[#This Row],['# extra beds that fit in the room]]<>Table2[[#This Row],['# extra beds that fit in the room2]],\"yes\",\"No\")","v":"No"}]
[null,{"$f":"IF(LEN(C985)>0,'1) Hotel information'!$C$4,\"\")","v":""},null,null,null,{"$f":"IFERROR(INDEX(Table1[Room description],MATCH('2) Room configuration'!D985,Table1[TMS],0)),\"\")","v":""},{"$f":"IFERROR(INDEX(Table1[Bedding],MATCH('2) Room configuration'!D418,Table1[TMS],0)),\"\")","v":""},null,null,{"$f":"IFERROR(INDEX(Table1[Room description],MATCH('2) Room configuration'!I418,Table1[TMS],0)),\"\")","v":""},{"$f":"IFERROR(INDEX(Table1[Bedding],MATCH('2) Room configuration'!I418,Table1[TMS],0)),\"\")","v":""},{"$f":"IFERROR(INDEX(Table1[Normal occupancy],MATCH(Table2[[#This Row],[New Room Type \n(TMS)]],Table1[TMS],0)),\"\")","v":""},null,null,null,null,"",{"$f":"IF(Table2[[#This Row],['# extra beds that fit in the room2]]<>0,LEFT(Table2[[#This Row],[New Room Type \n(TMS)]],6),\"\")","v":""},null,{"$f":"IF(Table2[[#This Row],['# extra beds that fit in the room]]<>Table2[[#This Row],['# extra beds that fit in the room2]],\"yes\",\"No\")","v":"No"}]
[null,{"$f":"IF(LEN(C986)>0,'1) Hotel information'!$C$4,\"\")","v":""},null,null,null,{"$f":"IFERROR(INDEX(Table1[Room description],MATCH('2) Room configuration'!D986,Table1[TMS],0)),\"\")","v":""},{"$f":"IFERROR(INDEX(Table1[Bedding],MATCH('2) Room configuration'!D419,Table1[TMS],0)),\"\")","v":""},null,null,{"$f":"IFERROR(INDEX(Table1[Room description],MATCH('2) Room configuration'!I419,Table1[TMS],0)),\"\")","v":""},{"$f":"IFERROR(INDEX(Table1[Bedding],MATCH('2) Room configuration'!I419,Table1[TMS],0)),\"\")","v":""},{"$f":"IFERROR(INDEX(Table1[Normal occupancy],MATCH(Table2[[#This Row],[New Room Type \n(TMS)]],Table1[TMS],0)),\"\")","v":""},null,null,null,null,"",{"$f":"IF(Table2[[#This Row],['# extra beds that fit in the room2]]<>0,LEFT(Table2[[#This Row],[New Room Type \n(TMS)]],6),\"\")","v":""},null,{"$f":"IF(Table2[[#This Row],['# extra beds that fit in the room]]<>Table2[[#This Row],['# extra beds that fit in the room2]],\"yes\",\"No\")","v":"No"}]
[null,{"$f":"IF(LEN(C987)>0,'1) Hotel information'!$C$4,\"\")","v":""},null,null,null,{"$f":"IFERROR(INDEX(Table1[Room description],MATCH('2) Room configuration'!D987,Table1[TMS],0)),\"\")","v":""},{"$f":"IFERROR(INDEX(Table1[Bedding],MATCH('2) Room configuration'!D420,Table1[TMS],0)),\"\")","v":""},null,null,{"$f":"IFERROR(INDEX(Table1[Room description],MATCH('2) Room configuration'!I420,Table1[TMS],0)),\"\")","v":""},{"$f":"IFERROR(INDEX(Table1[Bedding],MATCH('2) Room configuration'!I420,Table1[TMS],0)),\"\")","v":""},{"$f":"IFERROR(INDEX(Table1[Normal occupancy],MATCH(Table2[[#This Row],[New Room Type \n(TMS)]],Table1[TMS],0)),\"\")","v":""},null,null,null,null,"",{"$f":"IF(Table2[[#This Row],['# extra beds that fit in the room2]]<>0,LEFT(Table2[[#This Row],[New Room Type \n(TMS)]],6),\"\")","v":""},null,{"$f":"IF(Table2[[#This Row],['# extra beds that fit in the room]]<>Table2[[#This Row],['# extra beds that fit in the room2]],\"yes\",\"No\")","v":"No"}]
[null,{"$f":"IF(LEN(C988)>0,'1) Hotel information'!$C$4,\"\")","v":""},null,null,null,{"$f":"IFERROR(INDEX(Table1[Room description],MATCH('2) Room configuration'!D988,Table1[TMS],0)),\"\")","v":""},{"$f":"IFERROR(INDEX(Table1[Bedding],MATCH('2) Room configuration'!D421,Table1[TMS],0)),\"\")","v":""},null,null,{"$f":"IFERROR(INDEX(Table1[Room description],MATCH('2) Room configuration'!I421,Table1[TMS],0)),\"\")","v":""},{"$f":"IFERROR(INDEX(Table1[Bedding],MATCH('2) Room configuration'!I421,Table1[TMS],0)),\"\")","v":""},{"$f":"IFERROR(INDEX(Table1[Normal occupancy],MATCH(Table2[[#This Row],[New Room Type \n(TMS)]],Table1[TMS],0)),\"\")","v":""},null,null,null,null,"",{"$f":"IF(Table2[[#This Row],['# extra beds that fit in the room2]]<>0,LEFT(Table2[[#This Row],[New Room Type \n(TMS)]],6),\"\")","v":""},null,{"$f":"IF(Table2[[#This Row],['# extra beds that fit in the room]]<>Table2[[#This Row],['# extra beds that fit in the room2]],\"yes\",\"No\")","v":"No"}]
[null,{"$f":"IF(LEN(C989)>0,'1) Hotel information'!$C$4,\"\")","v":""},null,null,null,{"$f":"IFERROR(INDEX(Table1[Room description],MATCH('2) Room configuration'!D989,Table1[TMS],0)),\"\")","v":""},{"$f":"IFERROR(INDEX(Table1[Bedding],MATCH('2) Room configuration'!D422,Table1[TMS],0)),\"\")","v":""},null,null,{"$f":"IFERROR(INDEX(Table1[Room description],MATCH('2) Room configuration'!I422,Table1[TMS],0)),\"\")","v":""},{"$f":"IFERROR(INDEX(Table1[Bedding],MATCH('2) Room configuration'!I422,Table1[TMS],0)),\"\")","v":""},{"$f":"IFERROR(INDEX(Table1[Normal occupancy],MATCH(Table2[[#This Row],[New Room Type \n(TMS)]],Table1[TMS],0)),\"\")","v":""},null,null,null,null,"",{"$f":"IF(Table2[[#This Row],['# extra beds that fit in the room2]]<>0,LEFT(Table2[[#This Row],[New Room Type \n(TMS)]],6),\"\")","v":""},null,{"$f":"IF(Table2[[#This Row],['# extra beds that fit in the room]]<>Table2[[#This Row],['# extra beds that fit in the room2]],\"yes\",\"No\")","v":"No"}]
[null,{"$f":"IF(LEN(C990)>0,'1) Hotel information'!$C$4,\"\")","v":""},null,null,null,{"$f":"IFERROR(INDEX(Table1[Room description],MATCH('2) Room configuration'!D990,Table1[TMS],0)),\"\")","v":""},{"$f":"IFERROR(INDEX(Table1[Bedding],MATCH('2) Room configuration'!D423,Table1[TMS],0)),\"\")","v":""},null,null,{"$f":"IFERROR(INDEX(Table1[Room description],MATCH('2) Room configuration'!I423,Table1[TMS],0)),\"\")","v":""},{"$f":"IFERROR(INDEX(Table1[Bedding],MATCH('2) Room configuration'!I423,Table1[TMS],0)),\"\")","v":""},{"$f":"IFERROR(INDEX(Table1[Normal occupancy],MATCH(Table2[[#This Row],[New Room Type \n(TMS)]],Table1[TMS],0)),\"\")","v":""},null,null,null,null,"",{"$f":"IF(Table2[[#This Row],['# extra beds that fit in the room2]]<>0,LEFT(Table2[[#This Row],[New Room Type \n(TMS)]],6),\"\")","v":""},null,{"$f":"IF(Table2[[#This Row],['# extra beds that fit in the room]]<>Table2[[#This Row],['# extra beds that fit in the room2]],\"yes\",\"No\")","v":"No"}]
[null,{"$f":"IF(LEN(C991)>0,'1) Hotel information'!$C$4,\"\")","v":""},null,null,null,{"$f":"IFERROR(INDEX(Table1[Room description],MATCH('2) Room configuration'!D991,Table1[TMS],0)),\"\")","v":""},{"$f":"IFERROR(INDEX(Table1[Bedding],MATCH('2) Room configuration'!D424,Table1[TMS],0)),\"\")","v":""},null,null,{"$f":"IFERROR(INDEX(Table1[Room description],MATCH('2) Room configuration'!I424,Table1[TMS],0)),\"\")","v":""},{"$f":"IFERROR(INDEX(Table1[Bedding],MATCH('2) Room configuration'!I424,Table1[TMS],0)),\"\")","v":""},{"$f":"IFERROR(INDEX(Table1[Normal occupancy],MATCH(Table2[[#This Row],[New Room Type \n(TMS)]],Table1[TMS],0)),\"\")","v":""},null,null,null,null,"",{"$f":"IF(Table2[[#This Row],['# extra beds that fit in the room2]]<>0,LEFT(Table2[[#This Row],[New Room Type \n(TMS)]],6),\"\")","v":""},null,{"$f":"IF(Table2[[#This Row],['# extra beds that fit in the room]]<>Table2[[#This Row],['# extra beds that fit in the room2]],\"yes\",\"No\")","v":"No"}]
[null,{"$f":"IF(LEN(C992)>0,'1) Hotel information'!$C$4,\"\")","v":""},null,null,null,{"$f":"IFERROR(INDEX(Table1[Room description],MATCH('2) Room configuration'!D992,Table1[TMS],0)),\"\")","v":""},{"$f":"IFERROR(INDEX(Table1[Bedding],MATCH('2) Room configuration'!D425,Table1[TMS],0)),\"\")","v":""},null,null,{"$f":"IFERROR(INDEX(Table1[Room description],MATCH('2) Room configuration'!I425,Table1[TMS],0)),\"\")","v":""},{"$f":"IFERROR(INDEX(Table1[Bedding],MATCH('2) Room configuration'!I425,Table1[TMS],0)),\"\")","v":""},{"$f":"IFERROR(INDEX(Table1[Normal occupancy],MATCH(Table2[[#This Row],[New Room Type \n(TMS)]],Table1[TMS],0)),\"\")","v":""},null,null,null,null,"",{"$f":"IF(Table2[[#This Row],['# extra beds that fit in the room2]]<>0,LEFT(Table2[[#This Row],[New Room Type \n(TMS)]],6),\"\")","v":""},null,{"$f":"IF(Table2[[#This Row],['# extra beds that fit in the room]]<>Table2[[#This Row],['# extra beds that fit in the room2]],\"yes\",\"No\")","v":"No"}]
[null,{"$f":"IF(LEN(C993)>0,'1) Hotel information'!$C$4,\"\")","v":""},null,null,null,{"$f":"IFERROR(INDEX(Table1[Room description],MATCH('2) Room configuration'!D993,Table1[TMS],0)),\"\")","v":""},{"$f":"IFERROR(INDEX(Table1[Bedding],MATCH('2) Room configuration'!D426,Table1[TMS],0)),\"\")","v":""},null,null,{"$f":"IFERROR(INDEX(Table1[Room description],MATCH('2) Room configuration'!I426,Table1[TMS],0)),\"\")","v":""},{"$f":"IFERROR(INDEX(Table1[Bedding],MATCH('2) Room configuration'!I426,Table1[TMS],0)),\"\")","v":""},{"$f":"IFERROR(INDEX(Table1[Normal occupancy],MATCH(Table2[[#This Row],[New Room Type \n(TMS)]],Table1[TMS],0)),\"\")","v":""},null,null,null,null,"",{"$f":"IF(Table2[[#This Row],['# extra beds that fit in the room2]]<>0,LEFT(Table2[[#This Row],[New Room Type \n(TMS)]],6),\"\")","v":""},null,{"$f":"IF(Table2[[#This Row],['# extra beds that fit in the room]]<>Table2[[#This Row],['# extra beds that fit in the room2]],\"yes\",\"No\")","v":"No"}]
[null,{"$f":"IF(LEN(C994)>0,'1) Hotel information'!$C$4,\"\")","v":""},null,null,null,{"$f":"IFERROR(INDEX(Table1[Room description],MATCH('2) Room configuration'!D994,Table1[TMS],0)),\"\")","v":""},{"$f":"IFERROR(INDEX(Table1[Bedding],MATCH('2) Room configuration'!D427,Table1[TMS],0)),\"\")","v":""},null,null,{"$f":"IFERROR(INDEX(Table1[Room description],MATCH('2) Room configuration'!I427,Table1[TMS],0)),\"\")","v":""},{"$f":"IFERROR(INDEX(Table1[Bedding],MATCH('2) Room configuration'!I427,Table1[TMS],0)),\"\")","v":""},{"$f":"IFERROR(INDEX(Table1[Normal occupancy],MATCH(Table2[[#This Row],[New Room Type \n(TMS)]],Table1[TMS],0)),\"\")","v":""},null,null,null,null,"",{"$f":"IF(Table2[[#This Row],['# extra beds that fit in the room2]]<>0,LEFT(Table2[[#This Row],[New Room Type \n(TMS)]],6),\"\")","v":""},null,{"$f":"IF(Table2[[#This Row],['# extra beds that fit in the room]]<>Table2[[#This Row],['# extra beds that fit in the room2]],\"yes\",\"No\")","v":"No"}]
[null,{"$f":"IF(LEN(C995)>0,'1) Hotel information'!$C$4,\"\")","v":""},null,null,null,{"$f":"IFERROR(INDEX(Table1[Room description],MATCH('2) Room configuration'!D995,Table1[TMS],0)),\"\")","v":""},{"$f":"IFERROR(INDEX(Table1[Bedding],MATCH('2) Room configuration'!D428,Table1[TMS],0)),\"\")","v":""},null,null,{"$f":"IFERROR(INDEX(Table1[Room description],MATCH('2) Room configuration'!I428,Table1[TMS],0)),\"\")","v":""},{"$f":"IFERROR(INDEX(Table1[Bedding],MATCH('2) Room configuration'!I428,Table1[TMS],0)),\"\")","v":""},{"$f":"IFERROR(INDEX(Table1[Normal occupancy],MATCH(Table2[[#This Row],[New Room Type \n(TMS)]],Table1[TMS],0)),\"\")","v":""},null,null,null,null,"",{"$f":"IF(Table2[[#This Row],['# extra beds that fit in the room2]]<>0,LEFT(Table2[[#This Row],[New Room Type \n(TMS)]],6),\"\")","v":""},null,{"$f":"IF(Table2[[#This Row],['# extra beds that fit in the room]]<>Table2[[#This Row],['# extra beds that fit in the room2]],\"yes\",\"No\")","v":"No"}]
[null,{"$f":"IF(LEN(C996)>0,'1) Hotel information'!$C$4,\"\")","v":""},null,null,null,{"$f":"IFERROR(INDEX(Table1[Room description],MATCH('2) Room configuration'!D996,Table1[TMS],0)),\"\")","v":""},{"$f":"IFERROR(INDEX(Table1[Bedding],MATCH('2) Room configuration'!D996,Table1[TMS],0)),\"\")","v":""},null,null,{"$f":"IFERROR(INDEX(Table1[Room description],MATCH('2) Room configuration'!I996,Table1[TMS],0)),\"\")","v":""},{"$f":"IFERROR(INDEX(Table1[Bedding],MATCH('2) Room configuration'!I996,Table1[TMS],0)),\"\")","v":""},{"$f":"IFERROR(INDEX(Table1[Normal occupancy],MATCH(Table2[[#This Row],[New Room Type \n(TMS)]],Table1[TMS],0)),\"\")","v":""},null,null,null,null,"",{"$f":"IF(Table2[[#This Row],['# extra beds that fit in the room2]]<>0,LEFT(Table2[[#This Row],[New Room Type \n(TMS)]],6),\"\")","v":""},null,{"$f":"IF(Table2[[#This Row],['# extra beds that fit in the room]]<>Table2[[#This Row],['# extra beds that fit in the room2]],\"yes\",\"No\")","v":"No"}]
[null,{"$f":"IF(LEN(C997)>0,'1) Hotel information'!$C$4,\"\")","v":""},null,null,null,{"$f":"IFERROR(INDEX(Table1[Room description],MATCH('2) Room configuration'!D997,Table1[TMS],0)),\"\")","v":""},{"$f":"IFERROR(INDEX(Table1[Bedding],MATCH('2) Room configuration'!D997,Table1[TMS],0)),\"\")","v":""},null,null,{"$f":"IFERROR(INDEX(Table1[Room description],MATCH('2) Room configuration'!I997,Table1[TMS],0)),\"\")","v":""},{"$f":"IFERROR(INDEX(Table1[Bedding],MATCH('2) Room configuration'!I997,Table1[TMS],0)),\"\")","v":""},{"$f":"IFERROR(INDEX(Table1[Normal occupancy],MATCH(Table2[[#This Row],[New Room Type \n(TMS)]],Table1[TMS],0)),\"\")","v":""},null,null,null,null,"",{"$f":"IF(Table2[[#This Row],['# extra beds that fit in the room2]]<>0,LEFT(Table2[[#This Row],[New Room Type \n(TMS)]],6),\"\")","v":""},null,{"$f":"IF(Table2[[#This Row],['# extra beds that fit in the room]]<>Table2[[#This Row],['# extra beds that fit in the room2]],\"yes\",\"No\")","v":"No"}]
[null,{"$f":"IF(LEN(C998)>0,'1) Hotel information'!$C$4,\"\")","v":""},null,null,null,{"$f":"IFERROR(INDEX(Table1[Room description],MATCH('2) Room configuration'!D998,Table1[TMS],0)),\"\")","v":""},{"$f":"IFERROR(INDEX(Table1[Bedding],MATCH('2) Room configuration'!D998,Table1[TMS],0)),\"\")","v":""},null,null,{"$f":"IFERROR(INDEX(Table1[Room description],MATCH('2) Room configuration'!I998,Table1[TMS],0)),\"\")","v":""},{"$f":"IFERROR(INDEX(Table1[Bedding],MATCH('2) Room configuration'!I998,Table1[TMS],0)),\"\")","v":""},{"$f":"IFERROR(INDEX(Table1[Normal occupancy],MATCH(Table2[[#This Row],[New Room Type \n(TMS)]],Table1[TMS],0)),\"\")","v":""},null,null,null,null,"",{"$f":"IF(Table2[[#This Row],['# extra beds that fit in the room2]]<>0,LEFT(Table2[[#This Row],[New Room Type \n(TMS)]],6),\"\")","v":""},null,{"$f":"IF(Table2[[#This Row],['# extra beds that fit in the room]]<>Table2[[#This Row],['# extra beds that fit in the room2]],\"yes\",\"No\")","v":"No"}]
[null,{"$f":"IF(LEN(C999)>0,'1) Hotel information'!$C$4,\"\")","v":""},null,null,null,{"$f":"IFERROR(INDEX(Table1[Room description],MATCH('2) Room configuration'!D999,Table1[TMS],0)),\"\")","v":""},{"$f":"IFERROR(INDEX(Table1[Bedding],MATCH('2) Room configuration'!D999,Table1[TMS],0)),\"\")","v":""},null,null,{"$f":"IFERROR(INDEX(Table1[Room description],MATCH('2) Room configuration'!I999,Table1[TMS],0)),\"\")","v":""},{"$f":"IFERROR(INDEX(Table1[Bedding],MATCH('2) Room configuration'!I999,Table1[TMS],0)),\"\")","v":""},{"$f":"IFERROR(INDEX(Table1[Normal occupancy],MATCH(Table2[[#This Row],[New Room Type \n(TMS)]],Table1[TMS],0)),\"\")","v":""},null,null,null,null,"",{"$f":"IF(Table2[[#This Row],['# extra beds that fit in the room2]]<>0,LEFT(Table2[[#This Row],[New Room Type \n(TMS)]],6),\"\")","v":""},null,{"$f":"IF(Table2[[#This Row],['# extra beds that fit in the room]]<>Table2[[#This Row],['# extra beds that fit in the room2]],\"yes\",\"No\")","v":"No"}]
[null,{"$f":"IF(LEN(C1000)>0,'1) Hotel information'!$C$4,\"\")","v":""},null,null,null,{"$f":"IFERROR(INDEX(Table1[Room description],MATCH('2) Room configuration'!D1000,Table1[TMS],0)),\"\")","v":""},{"$f":"IFERROR(INDEX(Table1[Bedding],MATCH('2) Room configuration'!D1000,Table1[TMS],0)),\"\")","v":""},null,null,{"$f":"IFERROR(INDEX(Table1[Room description],MATCH('2) Room configuration'!I1000,Table1[TMS],0)),\"\")","v":""},{"$f":"IFERROR(INDEX(Table1[Bedding],MATCH('2) Room configuration'!I1000,Table1[TMS],0)),\"\")","v":""},{"$f":"IFERROR(INDEX(Table1[Normal occupancy],MATCH(Table2[[#This Row],[New Room Type \n(TMS)]],Table1[TMS],0)),\"\")","v":""},null,null,null,null,"",{"$f":"IF(Table2[[#This Row],['# extra beds that fit in the room2]]<>0,LEFT(Table2[[#This Row],[New Room Type \n(TMS)]],6),\"\")","v":""},null,{"$f":"IF(Table2[[#This Row],['# extra beds that fit in the room]]<>Table2[[#This Row],['# extra beds that fit in the room2]],\"yes\",\"No\")","v":"No"}]
[null,{"$f":"IF(LEN(C1001)>0,'1) Hotel information'!$C$4,\"\")","v":""},null,null,null,{"$f":"IFERROR(INDEX(Table1[Room description],MATCH('2) Room configuration'!D1001,Table1[TMS],0)),\"\")","v":""},{"$f":"IFERROR(INDEX(Table1[Bedding],MATCH('2) Room configuration'!D1001,Table1[TMS],0)),\"\")","v":""},null,null,{"$f":"IFERROR(INDEX(Table1[Room description],MATCH('2) Room configuration'!I1001,Table1[TMS],0)),\"\")","v":""},{"$f":"IFERROR(INDEX(Table1[Bedding],MATCH('2) Room configuration'!I1001,Table1[TMS],0)),\"\")","v":""},{"$f":"IFERROR(INDEX(Table1[Normal occupancy],MATCH(Table2[[#This Row],[New Room Type \n(TMS)]],Table1[TMS],0)),\"\")","v":""},null,null,null,null,"",{"$f":"IF(Table2[[#This Row],['# extra beds that fit in the room2]]<>0,LEFT(Table2[[#This Row],[New Room Type \n(TMS)]],6),\"\")","v":""},null,{"$f":"IF(Table2[[#This Row],['# extra beds that fit in the room]]<>Table2[[#This Row],['# extra beds that fit in the room2]],\"yes\",\"No\")","v":"No"}]
[null,{"$f":"IF(LEN(C1002)>0,'1) Hotel information'!$C$4,\"\")","v":""},null,null,null,{"$f":"IFERROR(INDEX(Table1[Room description],MATCH('2) Room configuration'!D1002,Table1[TMS],0)),\"\")","v":""},{"$f":"IFERROR(INDEX(Table1[Bedding],MATCH('2) Room configuration'!D1002,Table1[TMS],0)),\"\")","v":""},null,null,{"$f":"IFERROR(INDEX(Table1[Room description],MATCH('2) Room configuration'!I1002,Table1[TMS],0)),\"\")","v":""},{"$f":"IFERROR(INDEX(Table1[Bedding],MATCH('2) Room configuration'!I1002,Table1[TMS],0)),\"\")","v":""},{"$f":"IFERROR(INDEX(Table1[Normal occupancy],MATCH(Table2[[#This Row],[New Room Type \n(TMS)]],Table1[TMS],0)),\"\")","v":""},null,null,null,null,"",{"$f":"IF(Table2[[#This Row],['# extra beds that fit in the room2]]<>0,LEFT(Table2[[#This Row],[New Room Type \n(TMS)]],6),\"\")","v":""},null,{"$f":"IF(Table2[[#This Row],['# extra beds that fit in the room]]<>Table2[[#This Row],['# extra beds that fit in the room2]],\"yes\",\"No\")","v":"No"}]
[null,{"$f":"IF(LEN(C1003)>0,'1) Hotel information'!$C$4,\"\")","v":""},null,null,null,{"$f":"IFERROR(INDEX(Table1[Room description],MATCH('2) Room configuration'!D1003,Table1[TMS],0)),\"\")","v":""},{"$f":"IFERROR(INDEX(Table1[Bedding],MATCH('2) Room configuration'!D1003,Table1[TMS],0)),\"\")","v":""},null,null,{"$f":"IFERROR(INDEX(Table1[Room description],MATCH('2) Room configuration'!I1003,Table1[TMS],0)),\"\")","v":""},{"$f":"IFERROR(INDEX(Table1[Bedding],MATCH('2) Room configuration'!I1003,Table1[TMS],0)),\"\")","v":""},{"$f":"IFERROR(INDEX(Table1[Normal occupancy],MATCH(Table2[[#This Row],[New Room Type \n(TMS)]],Table1[TMS],0)),\"\")","v":""},null,null,null,null,"",{"$f":"IF(Table2[[#This Row],['# extra beds that fit in the room2]]<>0,LEFT(Table2[[#This Row],[New Room Type \n(TMS)]],6),\"\")","v":""},null,{"$f":"IF(Table2[[#This Row],['# extra beds that fit in the room]]<>Table2[[#This Row],['# extra beds that fit in the room2]],\"yes\",\"No\")","v":"No"}]
[null,{"$f":"IF(LEN(C1004)>0,'1) Hotel information'!$C$4,\"\")","v":""},null,null,null,{"$f":"IFERROR(INDEX(Table1[Room description],MATCH('2) Room configuration'!D1004,Table1[TMS],0)),\"\")","v":""},{"$f":"IFERROR(INDEX(Table1[Bedding],MATCH('2) Room configuration'!D1004,Table1[TMS],0)),\"\")","v":""},null,null,{"$f":"IFERROR(INDEX(Table1[Room description],MATCH('2) Room configuration'!I1004,Table1[TMS],0)),\"\")","v":""},{"$f":"IFERROR(INDEX(Table1[Bedding],MATCH('2) Room configuration'!I1004,Table1[TMS],0)),\"\")","v":""},{"$f":"IFERROR(INDEX(Table1[Normal occupancy],MATCH(Table2[[#This Row],[New Room Type \n(TMS)]],Table1[TMS],0)),\"\")","v":""},null,null,null,null,"",{"$f":"IF(Table2[[#This Row],['# extra beds that fit in the room2]]<>0,LEFT(Table2[[#This Row],[New Room Type \n(TMS)]],6),\"\")","v":""},null,{"$f":"IF(Table2[[#This Row],['# extra beds that fit in the room]]<>Table2[[#This Row],['# extra beds that fit in the room2]],\"yes\",\"No\")","v":"No"}]
[null,{"$f":"IF(LEN(C1005)>0,'1) Hotel information'!$C$4,\"\")","v":""},null,null,null,{"$f":"IFERROR(INDEX(Table1[Room description],MATCH('2) Room configuration'!D1005,Table1[TMS],0)),\"\")","v":""},{"$f":"IFERROR(INDEX(Table1[Bedding],MATCH('2) Room configuration'!D1005,Table1[TMS],0)),\"\")","v":""},null,null,{"$f":"IFERROR(INDEX(Table1[Room description],MATCH('2) Room configuration'!I1005,Table1[TMS],0)),\"\")","v":""},{"$f":"IFERROR(INDEX(Table1[Bedding],MATCH('2) Room configuration'!I1005,Table1[TMS],0)),\"\")","v":""},{"$f":"IFERROR(INDEX(Table1[Normal occupancy],MATCH(Table2[[#This Row],[New Room Type \n(TMS)]],Table1[TMS],0)),\"\")","v":""},null,null,null,null,"",{"$f":"IF(Table2[[#This Row],['# extra beds that fit in the room2]]<>0,LEFT(Table2[[#This Row],[New Room Type \n(TMS)]],6),\"\")","v":""},null,{"$f":"IF(Table2[[#This Row],['# extra beds that fit in the room]]<>Table2[[#This Row],['# extra beds that fit in the room2]],\"yes\",\"No\")","v":"No"}]
[null,{"$f":"IF(LEN(C1006)>0,'1) Hotel information'!$C$4,\"\")","v":""},null,null,null,{"$f":"IFERROR(INDEX(Table1[Room description],MATCH('2) Room configuration'!D1006,Table1[TMS],0)),\"\")","v":""},{"$f":"IFERROR(INDEX(Table1[Bedding],MATCH('2) Room configuration'!D1006,Table1[TMS],0)),\"\")","v":""},null,null,{"$f":"IFERROR(INDEX(Table1[Room description],MATCH('2) Room configuration'!I1006,Table1[TMS],0)),\"\")","v":""},{"$f":"IFERROR(INDEX(Table1[Bedding],MATCH('2) Room configuration'!I1006,Table1[TMS],0)),\"\")","v":""},{"$f":"IFERROR(INDEX(Table1[Normal occupancy],MATCH(Table2[[#This Row],[New Room Type \n(TMS)]],Table1[TMS],0)),\"\")","v":""},null,null,null,null,"",{"$f":"IF(Table2[[#This Row],['# extra beds that fit in the room2]]<>0,LEFT(Table2[[#This Row],[New Room Type \n(TMS)]],6),\"\")","v":""},null,{"$f":"IF(Table2[[#This Row],['# extra beds that fit in the room]]<>Table2[[#This Row],['# extra beds that fit in the room2]],\"yes\",\"No\")","v":"No"}]
[null,{"$f":"IF(LEN(C1007)>0,'1) Hotel information'!$C$4,\"\")","v":""},null,null,null,{"$f":"IFERROR(INDEX(Table1[Room description],MATCH('2) Room configuration'!D1007,Table1[TMS],0)),\"\")","v":""},{"$f":"IFERROR(INDEX(Table1[Bedding],MATCH('2) Room configuration'!D1007,Table1[TMS],0)),\"\")","v":""},null,null,{"$f":"IFERROR(INDEX(Table1[Room description],MATCH('2) Room configuration'!I1007,Table1[TMS],0)),\"\")","v":""},{"$f":"IFERROR(INDEX(Table1[Bedding],MATCH('2) Room configuration'!I1007,Table1[TMS],0)),\"\")","v":""},{"$f":"IFERROR(INDEX(Table1[Normal occupancy],MATCH(Table2[[#This Row],[New Room Type \n(TMS)]],Table1[TMS],0)),\"\")","v":""},null,null,null,null,"",{"$f":"IF(Table2[[#This Row],['# extra beds that fit in the room2]]<>0,LEFT(Table2[[#This Row],[New Room Type \n(TMS)]],6),\"\")","v":""},null,{"$f":"IF(Table2[[#This Row],['# extra beds that fit in the room]]<>Table2[[#This Row],['# extra beds that fit in the room2]],\"yes\",\"No\")","v":"No"}]
[null,{"$f":"IF(LEN(C1008)>0,'1) Hotel information'!$C$4,\"\")","v":""},null,null,null,{"$f":"IFERROR(INDEX(Table1[Room description],MATCH('2) Room configuration'!D1008,Table1[TMS],0)),\"\")","v":""},{"$f":"IFERROR(INDEX(Table1[Bedding],MATCH('2) Room configuration'!D1008,Table1[TMS],0)),\"\")","v":""},null,null,{"$f":"IFERROR(INDEX(Table1[Room description],MATCH('2) Room configuration'!I1008,Table1[TMS],0)),\"\")","v":""},{"$f":"IFERROR(INDEX(Table1[Bedding],MATCH('2) Room configuration'!I1008,Table1[TMS],0)),\"\")","v":""},{"$f":"IFERROR(INDEX(Table1[Normal occupancy],MATCH(Table2[[#This Row],[New Room Type \n(TMS)]],Table1[TMS],0)),\"\")","v":""},null,null,null,null,"",{"$f":"IF(Table2[[#This Row],['# extra beds that fit in the room2]]<>0,LEFT(Table2[[#This Row],[New Room Type \n(TMS)]],6),\"\")","v":""},null,{"$f":"IF(Table2[[#This Row],['# extra beds that fit in the room]]<>Table2[[#This Row],['# extra beds that fit in the room2]],\"yes\",\"No\")","v":"No"}]
[null,{"$f":"IF(LEN(C1009)>0,'1) Hotel information'!$C$4,\"\")","v":""},null,null,null,{"$f":"IFERROR(INDEX(Table1[Room description],MATCH('2) Room configuration'!D1009,Table1[TMS],0)),\"\")","v":""},{"$f":"IFERROR(INDEX(Table1[Bedding],MATCH('2) Room configuration'!D1009,Table1[TMS],0)),\"\")","v":""},null,null,{"$f":"IFERROR(INDEX(Table1[Room description],MATCH('2) Room configuration'!I1009,Table1[TMS],0)),\"\")","v":""},{"$f":"IFERROR(INDEX(Table1[Bedding],MATCH('2) Room configuration'!I1009,Table1[TMS],0)),\"\")","v":""},{"$f":"IFERROR(INDEX(Table1[Normal occupancy],MATCH(Table2[[#This Row],[New Room Type \n(TMS)]],Table1[TMS],0)),\"\")","v":""},null,null,null,null,"",{"$f":"IF(Table2[[#This Row],['# extra beds that fit in the room2]]<>0,LEFT(Table2[[#This Row],[New Room Type \n(TMS)]],6),\"\")","v":""},null,{"$f":"IF(Table2[[#This Row],['# extra beds that fit in the room]]<>Table2[[#This Row],['# extra beds that fit in the room2]],\"yes\",\"No\")","v":"No"}]
[null,{"$f":"IF(LEN(C1010)>0,'1) Hotel information'!$C$4,\"\")","v":""},null,null,null,{"$f":"IFERROR(INDEX(Table1[Room description],MATCH('2) Room configuration'!D1010,Table1[TMS],0)),\"\")","v":""},{"$f":"IFERROR(INDEX(Table1[Bedding],MATCH('2) Room configuration'!D1010,Table1[TMS],0)),\"\")","v":""},null,null,{"$f":"IFERROR(INDEX(Table1[Room description],MATCH('2) Room configuration'!I1010,Table1[TMS],0)),\"\")","v":""},{"$f":"IFERROR(INDEX(Table1[Bedding],MATCH('2) Room configuration'!I1010,Table1[TMS],0)),\"\")","v":""},{"$f":"IFERROR(INDEX(Table1[Normal occupancy],MATCH(Table2[[#This Row],[New Room Type \n(TMS)]],Table1[TMS],0)),\"\")","v":""},null,null,null,null,"",{"$f":"IF(Table2[[#This Row],['# extra beds that fit in the room2]]<>0,LEFT(Table2[[#This Row],[New Room Type \n(TMS)]],6),\"\")","v":""},null,{"$f":"IF(Table2[[#This Row],['# extra beds that fit in the room]]<>Table2[[#This Row],['# extra beds that fit in the room2]],\"yes\",\"No\")","v":"No"}]
[null,{"$f":"IF(LEN(C1011)>0,'1) Hotel information'!$C$4,\"\")","v":""},null,null,null,{"$f":"IFERROR(INDEX(Table1[Room description],MATCH('2) Room configuration'!D1011,Table1[TMS],0)),\"\")","v":""},{"$f":"IFERROR(INDEX(Table1[Bedding],MATCH('2) Room configuration'!D1011,Table1[TMS],0)),\"\")","v":""},null,null,{"$f":"IFERROR(INDEX(Table1[Room description],MATCH('2) Room configuration'!I1011,Table1[TMS],0)),\"\")","v":""},{"$f":"IFERROR(INDEX(Table1[Bedding],MATCH('2) Room configuration'!I1011,Table1[TMS],0)),\"\")","v":""},{"$f":"IFERROR(INDEX(Table1[Normal occupancy],MATCH(Table2[[#This Row],[New Room Type \n(TMS)]],Table1[TMS],0)),\"\")","v":""},null,null,null,null,"",{"$f":"IF(Table2[[#This Row],['# extra beds that fit in the room2]]<>0,LEFT(Table2[[#This Row],[New Room Type \n(TMS)]],6),\"\")","v":""},null,{"$f":"IF(Table2[[#This Row],['# extra beds that fit in the room]]<>Table2[[#This Row],['# extra beds that fit in the room2]],\"yes\",\"No\")","v":"No"}]
[null,{"$f":"IF(LEN(C1012)>0,'1) Hotel information'!$C$4,\"\")","v":""},null,null,null,{"$f":"IFERROR(INDEX(Table1[Room description],MATCH('2) Room configuration'!D1012,Table1[TMS],0)),\"\")","v":""},{"$f":"IFERROR(INDEX(Table1[Bedding],MATCH('2) Room configuration'!D1012,Table1[TMS],0)),\"\")","v":""},null,null,{"$f":"IFERROR(INDEX(Table1[Room description],MATCH('2) Room configuration'!I1012,Table1[TMS],0)),\"\")","v":""},{"$f":"IFERROR(INDEX(Table1[Bedding],MATCH('2) Room configuration'!I1012,Table1[TMS],0)),\"\")","v":""},{"$f":"IFERROR(INDEX(Table1[Normal occupancy],MATCH(Table2[[#This Row],[New Room Type \n(TMS)]],Table1[TMS],0)),\"\")","v":""},null,null,null,null,"",{"$f":"IF(Table2[[#This Row],['# extra beds that fit in the room2]]<>0,LEFT(Table2[[#This Row],[New Room Type \n(TMS)]],6),\"\")","v":""},null,{"$f":"IF(Table2[[#This Row],['# extra beds that fit in the room]]<>Table2[[#This Row],['# extra beds that fit in the room2]],\"yes\",\"No\")","v":"No"}]
[null,{"$f":"IF(LEN(C1013)>0,'1) Hotel information'!$C$4,\"\")","v":""},null,null,null,{"$f":"IFERROR(INDEX(Table1[Room description],MATCH('2) Room configuration'!D1013,Table1[TMS],0)),\"\")","v":""},{"$f":"IFERROR(INDEX(Table1[Bedding],MATCH('2) Room configuration'!D1013,Table1[TMS],0)),\"\")","v":""},null,null,{"$f":"IFERROR(INDEX(Table1[Room description],MATCH('2) Room configuration'!I1013,Table1[TMS],0)),\"\")","v":""},{"$f":"IFERROR(INDEX(Table1[Bedding],MATCH('2) Room configuration'!I1013,Table1[TMS],0)),\"\")","v":""},{"$f":"IFERROR(INDEX(Table1[Normal occupancy],MATCH(Table2[[#This Row],[New Room Type \n(TMS)]],Table1[TMS],0)),\"\")","v":""},null,null,null,null,"",{"$f":"IF(Table2[[#This Row],['# extra beds that fit in the room2]]<>0,LEFT(Table2[[#This Row],[New Room Type \n(TMS)]],6),\"\")","v":""},null,{"$f":"IF(Table2[[#This Row],['# extra beds that fit in the room]]<>Table2[[#This Row],['# extra beds that fit in the room2]],\"yes\",\"No\")","v":"No"}]
[null,{"$f":"IF(LEN(C1014)>0,'1) Hotel information'!$C$4,\"\")","v":""},null,null,null,{"$f":"IFERROR(INDEX(Table1[Room description],MATCH('2) Room configuration'!D1014,Table1[TMS],0)),\"\")","v":""},{"$f":"IFERROR(INDEX(Table1[Bedding],MATCH('2) Room configuration'!D1014,Table1[TMS],0)),\"\")","v":""},null,null,{"$f":"IFERROR(INDEX(Table1[Room description],MATCH('2) Room configuration'!I1014,Table1[TMS],0)),\"\")","v":""},{"$f":"IFERROR(INDEX(Table1[Bedding],MATCH('2) Room configuration'!I1014,Table1[TMS],0)),\"\")","v":""},{"$f":"IFERROR(INDEX(Table1[Normal occupancy],MATCH(Table2[[#This Row],[New Room Type \n(TMS)]],Table1[TMS],0)),\"\")","v":""},null,null,null,null,"",{"$f":"IF(Table2[[#This Row],['# extra beds that fit in the room2]]<>0,LEFT(Table2[[#This Row],[New Room Type \n(TMS)]],6),\"\")","v":""},null,{"$f":"IF(Table2[[#This Row],['# extra beds that fit in the room]]<>Table2[[#This Row],['# extra beds that fit in the room2]],\"yes\",\"No\")","v":"No"}]
[null,{"$f":"IF(LEN(C1015)>0,'1) Hotel information'!$C$4,\"\")","v":""},null,null,null,{"$f":"IFERROR(INDEX(Table1[Room description],MATCH('2) Room configuration'!D1015,Table1[TMS],0)),\"\")","v":""},{"$f":"IFERROR(INDEX(Table1[Bedding],MATCH('2) Room configuration'!D1015,Table1[TMS],0)),\"\")","v":""},null,null,{"$f":"IFERROR(INDEX(Table1[Room description],MATCH('2) Room configuration'!I1015,Table1[TMS],0)),\"\")","v":""},{"$f":"IFERROR(INDEX(Table1[Bedding],MATCH('2) Room configuration'!I1015,Table1[TMS],0)),\"\")","v":""},{"$f":"IFERROR(INDEX(Table1[Normal occupancy],MATCH(Table2[[#This Row],[New Room Type \n(TMS)]],Table1[TMS],0)),\"\")","v":""},null,null,null,null,"",{"$f":"IF(Table2[[#This Row],['# extra beds that fit in the room2]]<>0,LEFT(Table2[[#This Row],[New Room Type \n(TMS)]],6),\"\")","v":""},null,{"$f":"IF(Table2[[#This Row],['# extra beds that fit in the room]]<>Table2[[#This Row],['# extra beds that fit in the room2]],\"yes\",\"No\")","v":"No"}]
[null,{"$f":"IF(LEN(C1016)>0,'1) Hotel information'!$C$4,\"\")","v":""},null,null,null,{"$f":"IFERROR(INDEX(Table1[Room description],MATCH('2) Room configuration'!D1016,Table1[TMS],0)),\"\")","v":""},{"$f":"IFERROR(INDEX(Table1[Bedding],MATCH('2) Room configuration'!D1016,Table1[TMS],0)),\"\")","v":""},null,null,{"$f":"IFERROR(INDEX(Table1[Room description],MATCH('2) Room configuration'!I1016,Table1[TMS],0)),\"\")","v":""},{"$f":"IFERROR(INDEX(Table1[Bedding],MATCH('2) Room configuration'!I1016,Table1[TMS],0)),\"\")","v":""},{"$f":"IFERROR(INDEX(Table1[Normal occupancy],MATCH(Table2[[#This Row],[New Room Type \n(TMS)]],Table1[TMS],0)),\"\")","v":""},null,null,null,null,"",{"$f":"IF(Table2[[#This Row],['# extra beds that fit in the room2]]<>0,LEFT(Table2[[#This Row],[New Room Type \n(TMS)]],6),\"\")","v":""},null,{"$f":"IF(Table2[[#This Row],['# extra beds that fit in the room]]<>Table2[[#This Row],['# extra beds that fit in the room2]],\"yes\",\"No\")","v":"No"}]
[null,{"$f":"IF(LEN(C1017)>0,'1) Hotel information'!$C$4,\"\")","v":""},null,null,null,{"$f":"IFERROR(INDEX(Table1[Room description],MATCH('2) Room configuration'!D1017,Table1[TMS],0)),\"\")","v":""},{"$f":"IFERROR(INDEX(Table1[Bedding],MATCH('2) Room configuration'!D1017,Table1[TMS],0)),\"\")","v":""},null,null,{"$f":"IFERROR(INDEX(Table1[Room description],MATCH('2) Room configuration'!I1017,Table1[TMS],0)),\"\")","v":""},{"$f":"IFERROR(INDEX(Table1[Bedding],MATCH('2) Room configuration'!I1017,Table1[TMS],0)),\"\")","v":""},{"$f":"IFERROR(INDEX(Table1[Normal occupancy],MATCH(Table2[[#This Row],[New Room Type \n(TMS)]],Table1[TMS],0)),\"\")","v":""},null,null,null,null,"",{"$f":"IF(Table2[[#This Row],['# extra beds that fit in the room2]]<>0,LEFT(Table2[[#This Row],[New Room Type \n(TMS)]],6),\"\")","v":""},null,{"$f":"IF(Table2[[#This Row],['# extra beds that fit in the room]]<>Table2[[#This Row],['# extra beds that fit in the room2]],\"yes\",\"No\")","v":"No"}]
[null,{"$f":"IF(LEN(C1018)>0,'1) Hotel information'!$C$4,\"\")","v":""},null,null,null,{"$f":"IFERROR(INDEX(Table1[Room description],MATCH('2) Room configuration'!D1018,Table1[TMS],0)),\"\")","v":""},{"$f":"IFERROR(INDEX(Table1[Bedding],MATCH('2) Room configuration'!D1018,Table1[TMS],0)),\"\")","v":""},null,null,{"$f":"IFERROR(INDEX(Table1[Room description],MATCH('2) Room configuration'!I1018,Table1[TMS],0)),\"\")","v":""},{"$f":"IFERROR(INDEX(Table1[Bedding],MATCH('2) Room configuration'!I1018,Table1[TMS],0)),\"\")","v":""},{"$f":"IFERROR(INDEX(Table1[Normal occupancy],MATCH(Table2[[#This Row],[New Room Type \n(TMS)]],Table1[TMS],0)),\"\")","v":""},null,null,null,null,"",{"$f":"IF(Table2[[#This Row],['# extra beds that fit in the room2]]<>0,LEFT(Table2[[#This Row],[New Room Type \n(TMS)]],6),\"\")","v":""},null,{"$f":"IF(Table2[[#This Row],['# extra beds that fit in the room]]<>Table2[[#This Row],['# extra beds that fit in the room2]],\"yes\",\"No\")","v":"No"}]
[null,{"$f":"IF(LEN(C1019)>0,'1) Hotel information'!$C$4,\"\")","v":""},null,null,null,{"$f":"IFERROR(INDEX(Table1[Room description],MATCH('2) Room configuration'!D1019,Table1[TMS],0)),\"\")","v":""},{"$f":"IFERROR(INDEX(Table1[Bedding],MATCH('2) Room configuration'!D1019,Table1[TMS],0)),\"\")","v":""},null,null,{"$f":"IFERROR(INDEX(Table1[Room description],MATCH('2) Room configuration'!I1019,Table1[TMS],0)),\"\")","v":""},{"$f":"IFERROR(INDEX(Table1[Bedding],MATCH('2) Room configuration'!I1019,Table1[TMS],0)),\"\")","v":""},{"$f":"IFERROR(INDEX(Table1[Normal occupancy],MATCH(Table2[[#This Row],[New Room Type \n(TMS)]],Table1[TMS],0)),\"\")","v":""},null,null,null,null,"",{"$f":"IF(Table2[[#This Row],['# extra beds that fit in the room2]]<>0,LEFT(Table2[[#This Row],[New Room Type \n(TMS)]],6),\"\")","v":""},null,{"$f":"IF(Table2[[#This Row],['# extra beds that fit in the room]]<>Table2[[#This Row],['# extra beds that fit in the room2]],\"yes\",\"No\")","v":"No"}]
[null,{"$f":"IF(LEN(C1020)>0,'1) Hotel information'!$C$4,\"\")","v":""},null,null,null,{"$f":"IFERROR(INDEX(Table1[Room description],MATCH('2) Room configuration'!D1020,Table1[TMS],0)),\"\")","v":""},{"$f":"IFERROR(INDEX(Table1[Bedding],MATCH('2) Room configuration'!D1020,Table1[TMS],0)),\"\")","v":""},null,null,{"$f":"IFERROR(INDEX(Table1[Room description],MATCH('2) Room configuration'!I1020,Table1[TMS],0)),\"\")","v":""},{"$f":"IFERROR(INDEX(Table1[Bedding],MATCH('2) Room configuration'!I1020,Table1[TMS],0)),\"\")","v":""},{"$f":"IFERROR(INDEX(Table1[Normal occupancy],MATCH(Table2[[#This Row],[New Room Type \n(TMS)]],Table1[TMS],0)),\"\")","v":""},null,null,null,null,"",{"$f":"IF(Table2[[#This Row],['# extra beds that fit in the room2]]<>0,LEFT(Table2[[#This Row],[New Room Type \n(TMS)]],6),\"\")","v":""},null,{"$f":"IF(Table2[[#This Row],['# extra beds that fit in the room]]<>Table2[[#This Row],['# extra beds that fit in the room2]],\"yes\",\"No\")","v":"No"}]
[null,{"$f":"IF(LEN(C1021)>0,'1) Hotel information'!$C$4,\"\")","v":""},null,null,null,{"$f":"IFERROR(INDEX(Table1[Room description],MATCH('2) Room configuration'!D1021,Table1[TMS],0)),\"\")","v":""},{"$f":"IFERROR(INDEX(Table1[Bedding],MATCH('2) Room configuration'!D1021,Table1[TMS],0)),\"\")","v":""},null,null,{"$f":"IFERROR(INDEX(Table1[Room description],MATCH('2) Room configuration'!I1021,Table1[TMS],0)),\"\")","v":""},{"$f":"IFERROR(INDEX(Table1[Bedding],MATCH('2) Room configuration'!I1021,Table1[TMS],0)),\"\")","v":""},{"$f":"IFERROR(INDEX(Table1[Normal occupancy],MATCH(Table2[[#This Row],[New Room Type \n(TMS)]],Table1[TMS],0)),\"\")","v":""},null,null,null,null,"",{"$f":"IF(Table2[[#This Row],['# extra beds that fit in the room2]]<>0,LEFT(Table2[[#This Row],[New Room Type \n(TMS)]],6),\"\")","v":""},null,{"$f":"IF(Table2[[#This Row],['# extra beds that fit in the room]]<>Table2[[#This Row],['# extra beds that fit in the room2]],\"yes\",\"No\")","v":"No"}]
[null,{"$f":"IF(LEN(C1022)>0,'1) Hotel information'!$C$4,\"\")","v":""},null,null,null,{"$f":"IFERROR(INDEX(Table1[Room description],MATCH('2) Room configuration'!D1022,Table1[TMS],0)),\"\")","v":""},{"$f":"IFERROR(INDEX(Table1[Bedding],MATCH('2) Room configuration'!D1022,Table1[TMS],0)),\"\")","v":""},null,null,{"$f":"IFERROR(INDEX(Table1[Room description],MATCH('2) Room configuration'!I1022,Table1[TMS],0)),\"\")","v":""},{"$f":"IFERROR(INDEX(Table1[Bedding],MATCH('2) Room configuration'!I1022,Table1[TMS],0)),\"\")","v":""},{"$f":"IFERROR(INDEX(Table1[Normal occupancy],MATCH(Table2[[#This Row],[New Room Type \n(TMS)]],Table1[TMS],0)),\"\")","v":""},null,null,null,null,"",{"$f":"IF(Table2[[#This Row],['# extra beds that fit in the room2]]<>0,LEFT(Table2[[#This Row],[New Room Type \n(TMS)]],6),\"\")","v":""},null,{"$f":"IF(Table2[[#This Row],['# extra beds that fit in the room]]<>Table2[[#This Row],['# extra beds that fit in the room2]],\"yes\",\"No\")","v":"No"}]
[null,{"$f":"IF(LEN(C1023)>0,'1) Hotel information'!$C$4,\"\")","v":""},null,null,null,{"$f":"IFERROR(INDEX(Table1[Room description],MATCH('2) Room configuration'!D1023,Table1[TMS],0)),\"\")","v":""},{"$f":"IFERROR(INDEX(Table1[Bedding],MATCH('2) Room configuration'!D1023,Table1[TMS],0)),\"\")","v":""},null,null,{"$f":"IFERROR(INDEX(Table1[Room description],MATCH('2) Room configuration'!I1023,Table1[TMS],0)),\"\")","v":""},{"$f":"IFERROR(INDEX(Table1[Bedding],MATCH('2) Room configuration'!I1023,Table1[TMS],0)),\"\")","v":""},{"$f":"IFERROR(INDEX(Table1[Normal occupancy],MATCH(Table2[[#This Row],[New Room Type \n(TMS)]],Table1[TMS],0)),\"\")","v":""},null,null,null,null,"",{"$f":"IF(Table2[[#This Row],['# extra beds that fit in the room2]]<>0,LEFT(Table2[[#This Row],[New Room Type \n(TMS)]],6),\"\")","v":""},null,{"$f":"IF(Table2[[#This Row],['# extra beds that fit in the room]]<>Table2[[#This Row],['# extra beds that fit in the room2]],\"yes\",\"No\")","v":"No"}]
[null,{"$f":"IF(LEN(C1024)>0,'1) Hotel information'!$C$4,\"\")","v":""},null,null,null,{"$f":"IFERROR(INDEX(Table1[Room description],MATCH('2) Room configuration'!D1024,Table1[TMS],0)),\"\")","v":""},{"$f":"IFERROR(INDEX(Table1[Bedding],MATCH('2) Room configuration'!D1024,Table1[TMS],0)),\"\")","v":""},null,null,{"$f":"IFERROR(INDEX(Table1[Room description],MATCH('2) Room configuration'!I1024,Table1[TMS],0)),\"\")","v":""},{"$f":"IFERROR(INDEX(Table1[Bedding],MATCH('2) Room configuration'!I1024,Table1[TMS],0)),\"\")","v":""},{"$f":"IFERROR(INDEX(Table1[Normal occupancy],MATCH(Table2[[#This Row],[New Room Type \n(TMS)]],Table1[TMS],0)),\"\")","v":""},null,null,null,null,"",{"$f":"IF(Table2[[#This Row],['# extra beds that fit in the room2]]<>0,LEFT(Table2[[#This Row],[New Room Type \n(TMS)]],6),\"\")","v":""},null,{"$f":"IF(Table2[[#This Row],['# extra beds that fit in the room]]<>Table2[[#This Row],['# extra beds that fit in the room2]],\"yes\",\"No\")","v":"No"}]
[null,{"$f":"IF(LEN(C1025)>0,'1) Hotel information'!$C$4,\"\")","v":""},null,null,null,{"$f":"IFERROR(INDEX(Table1[Room description],MATCH('2) Room configuration'!D1025,Table1[TMS],0)),\"\")","v":""},{"$f":"IFERROR(INDEX(Table1[Bedding],MATCH('2) Room configuration'!D1025,Table1[TMS],0)),\"\")","v":""},null,null,{"$f":"IFERROR(INDEX(Table1[Room description],MATCH('2) Room configuration'!I1025,Table1[TMS],0)),\"\")","v":""},{"$f":"IFERROR(INDEX(Table1[Bedding],MATCH('2) Room configuration'!I1025,Table1[TMS],0)),\"\")","v":""},{"$f":"IFERROR(INDEX(Table1[Normal occupancy],MATCH(Table2[[#This Row],[New Room Type \n(TMS)]],Table1[TMS],0)),\"\")","v":""},null,null,null,null,"",{"$f":"IF(Table2[[#This Row],['# extra beds that fit in the room2]]<>0,LEFT(Table2[[#This Row],[New Room Type \n(TMS)]],6),\"\")","v":""},null,{"$f":"IF(Table2[[#This Row],['# extra beds that fit in the room]]<>Table2[[#This Row],['# extra beds that fit in the room2]],\"yes\",\"No\")","v":"No"}]
[null,{"$f":"IF(LEN(C1026)>0,'1) Hotel information'!$C$4,\"\")","v":""},null,null,null,{"$f":"IFERROR(INDEX(Table1[Room description],MATCH('2) Room configuration'!D1026,Table1[TMS],0)),\"\")","v":""},{"$f":"IFERROR(INDEX(Table1[Bedding],MATCH('2) Room configuration'!D1026,Table1[TMS],0)),\"\")","v":""},null,null,{"$f":"IFERROR(INDEX(Table1[Room description],MATCH('2) Room configuration'!I1026,Table1[TMS],0)),\"\")","v":""},{"$f":"IFERROR(INDEX(Table1[Bedding],MATCH('2) Room configuration'!I1026,Table1[TMS],0)),\"\")","v":""},{"$f":"IFERROR(INDEX(Table1[Normal occupancy],MATCH(Table2[[#This Row],[New Room Type \n(TMS)]],Table1[TMS],0)),\"\")","v":""},null,null,null,null,"",{"$f":"IF(Table2[[#This Row],['# extra beds that fit in the room2]]<>0,LEFT(Table2[[#This Row],[New Room Type \n(TMS)]],6),\"\")","v":""},null,{"$f":"IF(Table2[[#This Row],['# extra beds that fit in the room]]<>Table2[[#This Row],['# extra beds that fit in the room2]],\"yes\",\"No\")","v":"No"}]
[null,{"$f":"IF(LEN(C1027)>0,'1) Hotel information'!$C$4,\"\")","v":""},null,null,null,{"$f":"IFERROR(INDEX(Table1[Room description],MATCH('2) Room configuration'!D1027,Table1[TMS],0)),\"\")","v":""},{"$f":"IFERROR(INDEX(Table1[Bedding],MATCH('2) Room configuration'!D1027,Table1[TMS],0)),\"\")","v":""},null,null,{"$f":"IFERROR(INDEX(Table1[Room description],MATCH('2) Room configuration'!I1027,Table1[TMS],0)),\"\")","v":""},{"$f":"IFERROR(INDEX(Table1[Bedding],MATCH('2) Room configuration'!I1027,Table1[TMS],0)),\"\")","v":""},{"$f":"IFERROR(INDEX(Table1[Normal occupancy],MATCH(Table2[[#This Row],[New Room Type \n(TMS)]],Table1[TMS],0)),\"\")","v":""},null,null,null,null,"",{"$f":"IF(Table2[[#This Row],['# extra beds that fit in the room2]]<>0,LEFT(Table2[[#This Row],[New Room Type \n(TMS)]],6),\"\")","v":""},null,{"$f":"IF(Table2[[#This Row],['# extra beds that fit in the room]]<>Table2[[#This Row],['# extra beds that fit in the room2]],\"yes\",\"No\")","v":"No"}]
[null,{"$f":"IF(LEN(C1028)>0,'1) Hotel information'!$C$4,\"\")","v":""},null,null,null,{"$f":"IFERROR(INDEX(Table1[Room description],MATCH('2) Room configuration'!D1028,Table1[TMS],0)),\"\")","v":""},{"$f":"IFERROR(INDEX(Table1[Bedding],MATCH('2) Room configuration'!D1028,Table1[TMS],0)),\"\")","v":""},null,null,{"$f":"IFERROR(INDEX(Table1[Room description],MATCH('2) Room configuration'!I1028,Table1[TMS],0)),\"\")","v":""},{"$f":"IFERROR(INDEX(Table1[Bedding],MATCH('2) Room configuration'!I1028,Table1[TMS],0)),\"\")","v":""},{"$f":"IFERROR(INDEX(Table1[Normal occupancy],MATCH(Table2[[#This Row],[New Room Type \n(TMS)]],Table1[TMS],0)),\"\")","v":""},null,null,null,null,"",{"$f":"IF(Table2[[#This Row],['# extra beds that fit in the room2]]<>0,LEFT(Table2[[#This Row],[New Room Type \n(TMS)]],6),\"\")","v":""},null,{"$f":"IF(Table2[[#This Row],['# extra beds that fit in the room]]<>Table2[[#This Row],['# extra beds that fit in the room2]],\"yes\",\"No\")","v":"No"}]
[null,{"$f":"IF(LEN(C1029)>0,'1) Hotel information'!$C$4,\"\")","v":""},null,null,null,{"$f":"IFERROR(INDEX(Table1[Room description],MATCH('2) Room configuration'!D1029,Table1[TMS],0)),\"\")","v":""},{"$f":"IFERROR(INDEX(Table1[Bedding],MATCH('2) Room configuration'!D1029,Table1[TMS],0)),\"\")","v":""},null,null,{"$f":"IFERROR(INDEX(Table1[Room description],MATCH('2) Room configuration'!I1029,Table1[TMS],0)),\"\")","v":""},{"$f":"IFERROR(INDEX(Table1[Bedding],MATCH('2) Room configuration'!I1029,Table1[TMS],0)),\"\")","v":""},{"$f":"IFERROR(INDEX(Table1[Normal occupancy],MATCH(Table2[[#This Row],[New Room Type \n(TMS)]],Table1[TMS],0)),\"\")","v":""},null,null,null,null,"",{"$f":"IF(Table2[[#This Row],['# extra beds that fit in the room2]]<>0,LEFT(Table2[[#This Row],[New Room Type \n(TMS)]],6),\"\")","v":""},null,{"$f":"IF(Table2[[#This Row],['# extra beds that fit in the room]]<>Table2[[#This Row],['# extra beds that fit in the room2]],\"yes\",\"No\")","v":"No"}]
[null,{"$f":"IF(LEN(C1030)>0,'1) Hotel information'!$C$4,\"\")","v":""},null,null,null,{"$f":"IFERROR(INDEX(Table1[Room description],MATCH('2) Room configuration'!D1030,Table1[TMS],0)),\"\")","v":""},{"$f":"IFERROR(INDEX(Table1[Bedding],MATCH('2) Room configuration'!D1030,Table1[TMS],0)),\"\")","v":""},null,null,{"$f":"IFERROR(INDEX(Table1[Room description],MATCH('2) Room configuration'!I1030,Table1[TMS],0)),\"\")","v":""},{"$f":"IFERROR(INDEX(Table1[Bedding],MATCH('2) Room configuration'!I1030,Table1[TMS],0)),\"\")","v":""},{"$f":"IFERROR(INDEX(Table1[Normal occupancy],MATCH(Table2[[#This Row],[New Room Type \n(TMS)]],Table1[TMS],0)),\"\")","v":""},null,null,null,null,"",{"$f":"IF(Table2[[#This Row],['# extra beds that fit in the room2]]<>0,LEFT(Table2[[#This Row],[New Room Type \n(TMS)]],6),\"\")","v":""},null,{"$f":"IF(Table2[[#This Row],['# extra beds that fit in the room]]<>Table2[[#This Row],['# extra beds that fit in the room2]],\"yes\",\"No\")","v":"No"}]
[null,{"$f":"IF(LEN(C1031)>0,'1) Hotel information'!$C$4,\"\")","v":""},null,null,null,{"$f":"IFERROR(INDEX(Table1[Room description],MATCH('2) Room configuration'!D1031,Table1[TMS],0)),\"\")","v":""},{"$f":"IFERROR(INDEX(Table1[Bedding],MATCH('2) Room configuration'!D1031,Table1[TMS],0)),\"\")","v":""},null,null,{"$f":"IFERROR(INDEX(Table1[Room description],MATCH('2) Room configuration'!I1031,Table1[TMS],0)),\"\")","v":""},{"$f":"IFERROR(INDEX(Table1[Bedding],MATCH('2) Room configuration'!I1031,Table1[TMS],0)),\"\")","v":""},{"$f":"IFERROR(INDEX(Table1[Normal occupancy],MATCH(Table2[[#This Row],[New Room Type \n(TMS)]],Table1[TMS],0)),\"\")","v":""},null,null,null,null,"",{"$f":"IF(Table2[[#This Row],['# extra beds that fit in the room2]]<>0,LEFT(Table2[[#This Row],[New Room Type \n(TMS)]],6),\"\")","v":""},null,{"$f":"IF(Table2[[#This Row],['# extra beds that fit in the room]]<>Table2[[#This Row],['# extra beds that fit in the room2]],\"yes\",\"No\")","v":"No"}]
[null,{"$f":"IF(LEN(C1032)>0,'1) Hotel information'!$C$4,\"\")","v":""},null,null,null,{"$f":"IFERROR(INDEX(Table1[Room description],MATCH('2) Room configuration'!D1032,Table1[TMS],0)),\"\")","v":""},{"$f":"IFERROR(INDEX(Table1[Bedding],MATCH('2) Room configuration'!D1032,Table1[TMS],0)),\"\")","v":""},null,null,{"$f":"IFERROR(INDEX(Table1[Room description],MATCH('2) Room configuration'!I1032,Table1[TMS],0)),\"\")","v":""},{"$f":"IFERROR(INDEX(Table1[Bedding],MATCH('2) Room configuration'!I1032,Table1[TMS],0)),\"\")","v":""},{"$f":"IFERROR(INDEX(Table1[Normal occupancy],MATCH(Table2[[#This Row],[New Room Type \n(TMS)]],Table1[TMS],0)),\"\")","v":""},null,null,null,null,"",{"$f":"IF(Table2[[#This Row],['# extra beds that fit in the room2]]<>0,LEFT(Table2[[#This Row],[New Room Type \n(TMS)]],6),\"\")","v":""},null,{"$f":"IF(Table2[[#This Row],['# extra beds that fit in the room]]<>Table2[[#This Row],['# extra beds that fit in the room2]],\"yes\",\"No\")","v":"No"}]
[null,{"$f":"IF(LEN(C1033)>0,'1) Hotel information'!$C$4,\"\")","v":""},null,null,null,{"$f":"IFERROR(INDEX(Table1[Room description],MATCH('2) Room configuration'!D1033,Table1[TMS],0)),\"\")","v":""},{"$f":"IFERROR(INDEX(Table1[Bedding],MATCH('2) Room configuration'!D1033,Table1[TMS],0)),\"\")","v":""},null,null,{"$f":"IFERROR(INDEX(Table1[Room description],MATCH('2) Room configuration'!I1033,Table1[TMS],0)),\"\")","v":""},{"$f":"IFERROR(INDEX(Table1[Bedding],MATCH('2) Room configuration'!I1033,Table1[TMS],0)),\"\")","v":""},{"$f":"IFERROR(INDEX(Table1[Normal occupancy],MATCH(Table2[[#This Row],[New Room Type \n(TMS)]],Table1[TMS],0)),\"\")","v":""},null,null,null,null,"",{"$f":"IF(Table2[[#This Row],['# extra beds that fit in the room2]]<>0,LEFT(Table2[[#This Row],[New Room Type \n(TMS)]],6),\"\")","v":""},null,{"$f":"IF(Table2[[#This Row],['# extra beds that fit in the room]]<>Table2[[#This Row],['# extra beds that fit in the room2]],\"yes\",\"No\")","v":"No"}]
[null,{"$f":"IF(LEN(C1034)>0,'1) Hotel information'!$C$4,\"\")","v":""},null,null,null,{"$f":"IFERROR(INDEX(Table1[Room description],MATCH('2) Room configuration'!D1034,Table1[TMS],0)),\"\")","v":""},{"$f":"IFERROR(INDEX(Table1[Bedding],MATCH('2) Room configuration'!D1034,Table1[TMS],0)),\"\")","v":""},null,null,{"$f":"IFERROR(INDEX(Table1[Room description],MATCH('2) Room configuration'!I1034,Table1[TMS],0)),\"\")","v":""},{"$f":"IFERROR(INDEX(Table1[Bedding],MATCH('2) Room configuration'!I1034,Table1[TMS],0)),\"\")","v":""},{"$f":"IFERROR(INDEX(Table1[Normal occupancy],MATCH(Table2[[#This Row],[New Room Type \n(TMS)]],Table1[TMS],0)),\"\")","v":""},null,null,null,null,"",{"$f":"IF(Table2[[#This Row],['# extra beds that fit in the room2]]<>0,LEFT(Table2[[#This Row],[New Room Type \n(TMS)]],6),\"\")","v":""},null,{"$f":"IF(Table2[[#This Row],['# extra beds that fit in the room]]<>Table2[[#This Row],['# extra beds that fit in the room2]],\"yes\",\"No\")","v":"No"}]
[null,{"$f":"IF(LEN(C1035)>0,'1) Hotel information'!$C$4,\"\")","v":""},null,null,null,{"$f":"IFERROR(INDEX(Table1[Room description],MATCH('2) Room configuration'!D1035,Table1[TMS],0)),\"\")","v":""},{"$f":"IFERROR(INDEX(Table1[Bedding],MATCH('2) Room configuration'!D1035,Table1[TMS],0)),\"\")","v":""},null,null,{"$f":"IFERROR(INDEX(Table1[Room description],MATCH('2) Room configuration'!I1035,Table1[TMS],0)),\"\")","v":""},{"$f":"IFERROR(INDEX(Table1[Bedding],MATCH('2) Room configuration'!I1035,Table1[TMS],0)),\"\")","v":""},{"$f":"IFERROR(INDEX(Table1[Normal occupancy],MATCH(Table2[[#This Row],[New Room Type \n(TMS)]],Table1[TMS],0)),\"\")","v":""},null,null,null,null,"",{"$f":"IF(Table2[[#This Row],['# extra beds that fit in the room2]]<>0,LEFT(Table2[[#This Row],[New Room Type \n(TMS)]],6),\"\")","v":""},null,{"$f":"IF(Table2[[#This Row],['# extra beds that fit in the room]]<>Table2[[#This Row],['# extra beds that fit in the room2]],\"yes\",\"No\")","v":"No"}]
[null,{"$f":"IF(LEN(C1036)>0,'1) Hotel information'!$C$4,\"\")","v":""},null,null,null,{"$f":"IFERROR(INDEX(Table1[Room description],MATCH('2) Room configuration'!D1036,Table1[TMS],0)),\"\")","v":""},{"$f":"IFERROR(INDEX(Table1[Bedding],MATCH('2) Room configuration'!D1036,Table1[TMS],0)),\"\")","v":""},null,null,{"$f":"IFERROR(INDEX(Table1[Room description],MATCH('2) Room configuration'!I1036,Table1[TMS],0)),\"\")","v":""},{"$f":"IFERROR(INDEX(Table1[Bedding],MATCH('2) Room configuration'!I1036,Table1[TMS],0)),\"\")","v":""},{"$f":"IFERROR(INDEX(Table1[Normal occupancy],MATCH(Table2[[#This Row],[New Room Type \n(TMS)]],Table1[TMS],0)),\"\")","v":""},null,null,null,null,"",{"$f":"IF(Table2[[#This Row],['# extra beds that fit in the room2]]<>0,LEFT(Table2[[#This Row],[New Room Type \n(TMS)]],6),\"\")","v":""},null,{"$f":"IF(Table2[[#This Row],['# extra beds that fit in the room]]<>Table2[[#This Row],['# extra beds that fit in the room2]],\"yes\",\"No\")","v":"No"}]
[null,{"$f":"IF(LEN(C1037)>0,'1) Hotel information'!$C$4,\"\")","v":""},null,null,null,{"$f":"IFERROR(INDEX(Table1[Room description],MATCH('2) Room configuration'!D1037,Table1[TMS],0)),\"\")","v":""},{"$f":"IFERROR(INDEX(Table1[Bedding],MATCH('2) Room configuration'!D1037,Table1[TMS],0)),\"\")","v":""},null,null,{"$f":"IFERROR(INDEX(Table1[Room description],MATCH('2) Room configuration'!I1037,Table1[TMS],0)),\"\")","v":""},{"$f":"IFERROR(INDEX(Table1[Bedding],MATCH('2) Room configuration'!I1037,Table1[TMS],0)),\"\")","v":""},{"$f":"IFERROR(INDEX(Table1[Normal occupancy],MATCH(Table2[[#This Row],[New Room Type \n(TMS)]],Table1[TMS],0)),\"\")","v":""},null,null,null,null,"",{"$f":"IF(Table2[[#This Row],['# extra beds that fit in the room2]]<>0,LEFT(Table2[[#This Row],[New Room Type \n(TMS)]],6),\"\")","v":""},null,{"$f":"IF(Table2[[#This Row],['# extra beds that fit in the room]]<>Table2[[#This Row],['# extra beds that fit in the room2]],\"yes\",\"No\")","v":"No"}]
[null,{"$f":"IF(LEN(C1038)>0,'1) Hotel information'!$C$4,\"\")","v":""},null,null,null,{"$f":"IFERROR(INDEX(Table1[Room description],MATCH('2) Room configuration'!D1038,Table1[TMS],0)),\"\")","v":""},{"$f":"IFERROR(INDEX(Table1[Bedding],MATCH('2) Room configuration'!D1038,Table1[TMS],0)),\"\")","v":""},null,null,{"$f":"IFERROR(INDEX(Table1[Room description],MATCH('2) Room configuration'!I1038,Table1[TMS],0)),\"\")","v":""},{"$f":"IFERROR(INDEX(Table1[Bedding],MATCH('2) Room configuration'!I1038,Table1[TMS],0)),\"\")","v":""},{"$f":"IFERROR(INDEX(Table1[Normal occupancy],MATCH(Table2[[#This Row],[New Room Type \n(TMS)]],Table1[TMS],0)),\"\")","v":""},null,null,null,null,"",{"$f":"IF(Table2[[#This Row],['# extra beds that fit in the room2]]<>0,LEFT(Table2[[#This Row],[New Room Type \n(TMS)]],6),\"\")","v":""},null,{"$f":"IF(Table2[[#This Row],['# extra beds that fit in the room]]<>Table2[[#This Row],['# extra beds that fit in the room2]],\"yes\",\"No\")","v":"No"}]
[null,{"$f":"IF(LEN(C1039)>0,'1) Hotel information'!$C$4,\"\")","v":""},null,null,null,{"$f":"IFERROR(INDEX(Table1[Room description],MATCH('2) Room configuration'!D1039,Table1[TMS],0)),\"\")","v":""},{"$f":"IFERROR(INDEX(Table1[Bedding],MATCH('2) Room configuration'!D1039,Table1[TMS],0)),\"\")","v":""},null,null,{"$f":"IFERROR(INDEX(Table1[Room description],MATCH('2) Room configuration'!I1039,Table1[TMS],0)),\"\")","v":""},{"$f":"IFERROR(INDEX(Table1[Bedding],MATCH('2) Room configuration'!I1039,Table1[TMS],0)),\"\")","v":""},{"$f":"IFERROR(INDEX(Table1[Normal occupancy],MATCH(Table2[[#This Row],[New Room Type \n(TMS)]],Table1[TMS],0)),\"\")","v":""},null,null,null,null,"",{"$f":"IF(Table2[[#This Row],['# extra beds that fit in the room2]]<>0,LEFT(Table2[[#This Row],[New Room Type \n(TMS)]],6),\"\")","v":""},null,{"$f":"IF(Table2[[#This Row],['# extra beds that fit in the room]]<>Table2[[#This Row],['# extra beds that fit in the room2]],\"yes\",\"No\")","v":"No"}]
[null,{"$f":"IF(LEN(C1040)>0,'1) Hotel information'!$C$4,\"\")","v":""},null,null,null,{"$f":"IFERROR(INDEX(Table1[Room description],MATCH('2) Room configuration'!D1040,Table1[TMS],0)),\"\")","v":""},{"$f":"IFERROR(INDEX(Table1[Bedding],MATCH('2) Room configuration'!D1040,Table1[TMS],0)),\"\")","v":""},null,null,{"$f":"IFERROR(INDEX(Table1[Room description],MATCH('2) Room configuration'!I1040,Table1[TMS],0)),\"\")","v":""},{"$f":"IFERROR(INDEX(Table1[Bedding],MATCH('2) Room configuration'!I1040,Table1[TMS],0)),\"\")","v":""},{"$f":"IFERROR(INDEX(Table1[Normal occupancy],MATCH(Table2[[#This Row],[New Room Type \n(TMS)]],Table1[TMS],0)),\"\")","v":""},null,null,null,null,"",{"$f":"IF(Table2[[#This Row],['# extra beds that fit in the room2]]<>0,LEFT(Table2[[#This Row],[New Room Type \n(TMS)]],6),\"\")","v":""},null,{"$f":"IF(Table2[[#This Row],['# extra beds that fit in the room]]<>Table2[[#This Row],['# extra beds that fit in the room2]],\"yes\",\"No\")","v":"No"}]
[null,{"$f":"IF(LEN(C1041)>0,'1) Hotel information'!$C$4,\"\")","v":""},null,null,null,{"$f":"IFERROR(INDEX(Table1[Room description],MATCH('2) Room configuration'!D1041,Table1[TMS],0)),\"\")","v":""},{"$f":"IFERROR(INDEX(Table1[Bedding],MATCH('2) Room configuration'!D1041,Table1[TMS],0)),\"\")","v":""},null,null,{"$f":"IFERROR(INDEX(Table1[Room description],MATCH('2) Room configuration'!I1041,Table1[TMS],0)),\"\")","v":""},{"$f":"IFERROR(INDEX(Table1[Bedding],MATCH('2) Room configuration'!I1041,Table1[TMS],0)),\"\")","v":""},{"$f":"IFERROR(INDEX(Table1[Normal occupancy],MATCH(Table2[[#This Row],[New Room Type \n(TMS)]],Table1[TMS],0)),\"\")","v":""},null,null,null,null,"",{"$f":"IF(Table2[[#This Row],['# extra beds that fit in the room2]]<>0,LEFT(Table2[[#This Row],[New Room Type \n(TMS)]],6),\"\")","v":""},null,{"$f":"IF(Table2[[#This Row],['# extra beds that fit in the room]]<>Table2[[#This Row],['# extra beds that fit in the room2]],\"yes\",\"No\")","v":"No"}]
[null,{"$f":"IF(LEN(C1042)>0,'1) Hotel information'!$C$4,\"\")","v":""},null,null,null,{"$f":"IFERROR(INDEX(Table1[Room description],MATCH('2) Room configuration'!D1042,Table1[TMS],0)),\"\")","v":""},{"$f":"IFERROR(INDEX(Table1[Bedding],MATCH('2) Room configuration'!D1042,Table1[TMS],0)),\"\")","v":""},null,null,{"$f":"IFERROR(INDEX(Table1[Room description],MATCH('2) Room configuration'!I1042,Table1[TMS],0)),\"\")","v":""},{"$f":"IFERROR(INDEX(Table1[Bedding],MATCH('2) Room configuration'!I1042,Table1[TMS],0)),\"\")","v":""},{"$f":"IFERROR(INDEX(Table1[Normal occupancy],MATCH(Table2[[#This Row],[New Room Type \n(TMS)]],Table1[TMS],0)),\"\")","v":""},null,null,null,null,"",{"$f":"IF(Table2[[#This Row],['# extra beds that fit in the room2]]<>0,LEFT(Table2[[#This Row],[New Room Type \n(TMS)]],6),\"\")","v":""},null,{"$f":"IF(Table2[[#This Row],['# extra beds that fit in the room]]<>Table2[[#This Row],['# extra beds that fit in the room2]],\"yes\",\"No\")","v":"No"}]
[null,{"$f":"IF(LEN(C1043)>0,'1) Hotel information'!$C$4,\"\")","v":""},null,null,null,{"$f":"IFERROR(INDEX(Table1[Room description],MATCH('2) Room configuration'!D1043,Table1[TMS],0)),\"\")","v":""},{"$f":"IFERROR(INDEX(Table1[Bedding],MATCH('2) Room configuration'!D1043,Table1[TMS],0)),\"\")","v":""},null,null,{"$f":"IFERROR(INDEX(Table1[Room description],MATCH('2) Room configuration'!I1043,Table1[TMS],0)),\"\")","v":""},{"$f":"IFERROR(INDEX(Table1[Bedding],MATCH('2) Room configuration'!I1043,Table1[TMS],0)),\"\")","v":""},{"$f":"IFERROR(INDEX(Table1[Normal occupancy],MATCH(Table2[[#This Row],[New Room Type \n(TMS)]],Table1[TMS],0)),\"\")","v":""},null,null,null,null,"",{"$f":"IF(Table2[[#This Row],['# extra beds that fit in the room2]]<>0,LEFT(Table2[[#This Row],[New Room Type \n(TMS)]],6),\"\")","v":""},null,{"$f":"IF(Table2[[#This Row],['# extra beds that fit in the room]]<>Table2[[#This Row],['# extra beds that fit in the room2]],\"yes\",\"No\")","v":"No"}]
[null,{"$f":"IF(LEN(C1044)>0,'1) Hotel information'!$C$4,\"\")","v":""},null,null,null,{"$f":"IFERROR(INDEX(Table1[Room description],MATCH('2) Room configuration'!D1044,Table1[TMS],0)),\"\")","v":""},{"$f":"IFERROR(INDEX(Table1[Bedding],MATCH('2) Room configuration'!D1044,Table1[TMS],0)),\"\")","v":""},null,null,{"$f":"IFERROR(INDEX(Table1[Room description],MATCH('2) Room configuration'!I1044,Table1[TMS],0)),\"\")","v":""},{"$f":"IFERROR(INDEX(Table1[Bedding],MATCH('2) Room configuration'!I1044,Table1[TMS],0)),\"\")","v":""},{"$f":"IFERROR(INDEX(Table1[Normal occupancy],MATCH(Table2[[#This Row],[New Room Type \n(TMS)]],Table1[TMS],0)),\"\")","v":""},null,null,null,null,"",{"$f":"IF(Table2[[#This Row],['# extra beds that fit in the room2]]<>0,LEFT(Table2[[#This Row],[New Room Type \n(TMS)]],6),\"\")","v":""},null,{"$f":"IF(Table2[[#This Row],['# extra beds that fit in the room]]<>Table2[[#This Row],['# extra beds that fit in the room2]],\"yes\",\"No\")","v":"No"}]
[null,{"$f":"IF(LEN(C1045)>0,'1) Hotel information'!$C$4,\"\")","v":""},null,null,null,{"$f":"IFERROR(INDEX(Table1[Room description],MATCH('2) Room configuration'!D1045,Table1[TMS],0)),\"\")","v":""},{"$f":"IFERROR(INDEX(Table1[Bedding],MATCH('2) Room configuration'!D1045,Table1[TMS],0)),\"\")","v":""},null,null,{"$f":"IFERROR(INDEX(Table1[Room description],MATCH('2) Room configuration'!I1045,Table1[TMS],0)),\"\")","v":""},{"$f":"IFERROR(INDEX(Table1[Bedding],MATCH('2) Room configuration'!I1045,Table1[TMS],0)),\"\")","v":""},{"$f":"IFERROR(INDEX(Table1[Normal occupancy],MATCH(Table2[[#This Row],[New Room Type \n(TMS)]],Table1[TMS],0)),\"\")","v":""},null,null,null,null,"",{"$f":"IF(Table2[[#This Row],['# extra beds that fit in the room2]]<>0,LEFT(Table2[[#This Row],[New Room Type \n(TMS)]],6),\"\")","v":""},null,{"$f":"IF(Table2[[#This Row],['# extra beds that fit in the room]]<>Table2[[#This Row],['# extra beds that fit in the room2]],\"yes\",\"No\")","v":"No"}]
[null,{"$f":"IF(LEN(C1046)>0,'1) Hotel information'!$C$4,\"\")","v":""},null,null,null,{"$f":"IFERROR(INDEX(Table1[Room description],MATCH('2) Room configuration'!D1046,Table1[TMS],0)),\"\")","v":""},{"$f":"IFERROR(INDEX(Table1[Bedding],MATCH('2) Room configuration'!D1046,Table1[TMS],0)),\"\")","v":""},null,null,{"$f":"IFERROR(INDEX(Table1[Room description],MATCH('2) Room configuration'!I1046,Table1[TMS],0)),\"\")","v":""},{"$f":"IFERROR(INDEX(Table1[Bedding],MATCH('2) Room configuration'!I1046,Table1[TMS],0)),\"\")","v":""},{"$f":"IFERROR(INDEX(Table1[Normal occupancy],MATCH(Table2[[#This Row],[New Room Type \n(TMS)]],Table1[TMS],0)),\"\")","v":""},null,null,null,null,"",{"$f":"IF(Table2[[#This Row],['# extra beds that fit in the room2]]<>0,LEFT(Table2[[#This Row],[New Room Type \n(TMS)]],6),\"\")","v":""},null,{"$f":"IF(Table2[[#This Row],['# extra beds that fit in the room]]<>Table2[[#This Row],['# extra beds that fit in the room2]],\"yes\",\"No\")","v":"No"}]
[null,{"$f":"IF(LEN(C1047)>0,'1) Hotel information'!$C$4,\"\")","v":""},null,null,null,{"$f":"IFERROR(INDEX(Table1[Room description],MATCH('2) Room configuration'!D1047,Table1[TMS],0)),\"\")","v":""},{"$f":"IFERROR(INDEX(Table1[Bedding],MATCH('2) Room configuration'!D1047,Table1[TMS],0)),\"\")","v":""},null,null,{"$f":"IFERROR(INDEX(Table1[Room description],MATCH('2) Room configuration'!I1047,Table1[TMS],0)),\"\")","v":""},{"$f":"IFERROR(INDEX(Table1[Bedding],MATCH('2) Room configuration'!I1047,Table1[TMS],0)),\"\")","v":""},{"$f":"IFERROR(INDEX(Table1[Normal occupancy],MATCH(Table2[[#This Row],[New Room Type \n(TMS)]],Table1[TMS],0)),\"\")","v":""},null,null,null,null,{"$f":"IF(LEN(C1047)>0,IF(D1047=I1047,\"No\",\"Yes\"),\"\")","v":""},{"$f":"IF(Table2[[#This Row],['# extra beds that fit in the room2]]<>0,LEFT(Table2[[#This Row],[New Room Type \n(TMS)]],6),\"\")","v":""},null,{"$f":"IF(Table2[[#This Row],['# extra beds that fit in the room]]<>Table2[[#This Row],['# extra beds that fit in the room2]],\"yes\",\"No\")","v":"No"}]
[null,{"$f":"IF(LEN(C1048)>0,'1) Hotel information'!$C$4,\"\")","v":""},null,null,null,{"$f":"IFERROR(INDEX(Table1[Room description],MATCH('2) Room configuration'!D1048,Table1[TMS],0)),\"\")","v":""},{"$f":"IFERROR(INDEX(Table1[Bedding],MATCH('2) Room configuration'!D1048,Table1[TMS],0)),\"\")","v":""},null,null,{"$f":"IFERROR(INDEX(Table1[Room description],MATCH('2) Room configuration'!I1048,Table1[TMS],0)),\"\")","v":""},{"$f":"IFERROR(INDEX(Table1[Bedding],MATCH('2) Room configuration'!I1048,Table1[TMS],0)),\"\")","v":""},{"$f":"IFERROR(INDEX(Table1[Normal occupancy],MATCH(Table2[[#This Row],[New Room Type \n(TMS)]],Table1[TMS],0)),\"\")","v":""},null,null,null,null,"",{"$f":"IF(Table2[[#This Row],['# extra beds that fit in the room2]]<>0,LEFT(Table2[[#This Row],[New Room Type \n(TMS)]],6),\"\")","v":""},null,{"$f":"IF(Table2[[#This Row],['# extra beds that fit in the room]]<>Table2[[#This Row],['# extra beds that fit in the room2]],\"yes\",\"No\")","v":"No"}]
[null,{"$f":"IF(LEN(C1049)>0,'1) Hotel information'!$C$4,\"\")","v":""},null,null,null,{"$f":"IFERROR(INDEX(Table1[Room description],MATCH('2) Room configuration'!D1049,Table1[TMS],0)),\"\")","v":""},{"$f":"IFERROR(INDEX(Table1[Bedding],MATCH('2) Room configuration'!D1049,Table1[TMS],0)),\"\")","v":""},null,null,{"$f":"IFERROR(INDEX(Table1[Room description],MATCH('2) Room configuration'!I1049,Table1[TMS],0)),\"\")","v":""},{"$f":"IFERROR(INDEX(Table1[Bedding],MATCH('2) Room configuration'!I1049,Table1[TMS],0)),\"\")","v":""},{"$f":"IFERROR(INDEX(Table1[Normal occupancy],MATCH(Table2[[#This Row],[New Room Type \n(TMS)]],Table1[TMS],0)),\"\")","v":""},null,null,null,null,"",{"$f":"IF(Table2[[#This Row],['# extra beds that fit in the room2]]<>0,LEFT(Table2[[#This Row],[New Room Type \n(TMS)]],6),\"\")","v":""},null,{"$f":"IF(Table2[[#This Row],['# extra beds that fit in the room]]<>Table2[[#This Row],['# extra beds that fit in the room2]],\"yes\",\"No\")","v":"No"}]
[null,{"$f":"IF(LEN(C1050)>0,'1) Hotel information'!$C$4,\"\")","v":""},null,null,null,{"$f":"IFERROR(INDEX(Table1[Room description],MATCH('2) Room configuration'!D1050,Table1[TMS],0)),\"\")","v":""},{"$f":"IFERROR(INDEX(Table1[Bedding],MATCH('2) Room configuration'!D1050,Table1[TMS],0)),\"\")","v":""},null,null,{"$f":"IFERROR(INDEX(Table1[Room description],MATCH('2) Room configuration'!I1050,Table1[TMS],0)),\"\")","v":""},{"$f":"IFERROR(INDEX(Table1[Bedding],MATCH('2) Room configuration'!I1050,Table1[TMS],0)),\"\")","v":""},{"$f":"IFERROR(INDEX(Table1[Normal occupancy],MATCH(Table2[[#This Row],[New Room Type \n(TMS)]],Table1[TMS],0)),\"\")","v":""},null,null,null,null,"",{"$f":"IF(Table2[[#This Row],['# extra beds that fit in the room2]]<>0,LEFT(Table2[[#This Row],[New Room Type \n(TMS)]],6),\"\")","v":""},null,{"$f":"IF(Table2[[#This Row],['# extra beds that fit in the room]]<>Table2[[#This Row],['# extra beds that fit in the room2]],\"yes\",\"No\")","v":"No"}]
[null,{"$f":"IF(LEN(C1051)>0,'1) Hotel information'!$C$4,\"\")","v":""},null,null,null,{"$f":"IFERROR(INDEX(Table1[Room description],MATCH('2) Room configuration'!D1051,Table1[TMS],0)),\"\")","v":""},{"$f":"IFERROR(INDEX(Table1[Bedding],MATCH('2) Room configuration'!D1051,Table1[TMS],0)),\"\")","v":""},null,null,{"$f":"IFERROR(INDEX(Table1[Room description],MATCH('2) Room configuration'!I1051,Table1[TMS],0)),\"\")","v":""},{"$f":"IFERROR(INDEX(Table1[Bedding],MATCH('2) Room configuration'!I1051,Table1[TMS],0)),\"\")","v":""},{"$f":"IFERROR(INDEX(Table1[Normal occupancy],MATCH(Table2[[#This Row],[New Room Type \n(TMS)]],Table1[TMS],0)),\"\")","v":""},null,null,null,null,"",{"$f":"IF(Table2[[#This Row],['# extra beds that fit in the room2]]<>0,LEFT(Table2[[#This Row],[New Room Type \n(TMS)]],6),\"\")","v":""},null,{"$f":"IF(Table2[[#This Row],['# extra beds that fit in the room]]<>Table2[[#This Row],['# extra beds that fit in the room2]],\"yes\",\"No\")","v":"No"}]
[null,{"$f":"IF(LEN(C1052)>0,'1) Hotel information'!$C$4,\"\")","v":""},null,null,null,{"$f":"IFERROR(INDEX(Table1[Room description],MATCH('2) Room configuration'!D1052,Table1[TMS],0)),\"\")","v":""},{"$f":"IFERROR(INDEX(Table1[Bedding],MATCH('2) Room configuration'!D1052,Table1[TMS],0)),\"\")","v":""},null,null,{"$f":"IFERROR(INDEX(Table1[Room description],MATCH('2) Room configuration'!I1052,Table1[TMS],0)),\"\")","v":""},{"$f":"IFERROR(INDEX(Table1[Bedding],MATCH('2) Room configuration'!I1052,Table1[TMS],0)),\"\")","v":""},{"$f":"IFERROR(INDEX(Table1[Normal occupancy],MATCH(Table2[[#This Row],[New Room Type \n(TMS)]],Table1[TMS],0)),\"\")","v":""},null,null,null,null,"",{"$f":"IF(Table2[[#This Row],['# extra beds that fit in the room2]]<>0,LEFT(Table2[[#This Row],[New Room Type \n(TMS)]],6),\"\")","v":""},null,{"$f":"IF(Table2[[#This Row],['# extra beds that fit in the room]]<>Table2[[#This Row],['# extra beds that fit in the room2]],\"yes\",\"No\")","v":"No"}]
[null,{"$f":"IF(LEN(C1053)>0,'1) Hotel information'!$C$4,\"\")","v":""},null,null,null,{"$f":"IFERROR(INDEX(Table1[Room description],MATCH('2) Room configuration'!D1053,Table1[TMS],0)),\"\")","v":""},{"$f":"IFERROR(INDEX(Table1[Bedding],MATCH('2) Room configuration'!D1053,Table1[TMS],0)),\"\")","v":""},null,null,{"$f":"IFERROR(INDEX(Table1[Room description],MATCH('2) Room configuration'!I1053,Table1[TMS],0)),\"\")","v":""},{"$f":"IFERROR(INDEX(Table1[Bedding],MATCH('2) Room configuration'!I1053,Table1[TMS],0)),\"\")","v":""},{"$f":"IFERROR(INDEX(Table1[Normal occupancy],MATCH(Table2[[#This Row],[New Room Type \n(TMS)]],Table1[TMS],0)),\"\")","v":""},null,null,null,null,"",{"$f":"IF(Table2[[#This Row],['# extra beds that fit in the room2]]<>0,LEFT(Table2[[#This Row],[New Room Type \n(TMS)]],6),\"\")","v":""},null,{"$f":"IF(Table2[[#This Row],['# extra beds that fit in the room]]<>Table2[[#This Row],['# extra beds that fit in the room2]],\"yes\",\"No\")","v":"No"}]
[null,{"$f":"IF(LEN(C1054)>0,'1) Hotel information'!$C$4,\"\")","v":""},null,null,null,{"$f":"IFERROR(INDEX(Table1[Room description],MATCH('2) Room configuration'!D1054,Table1[TMS],0)),\"\")","v":""},{"$f":"IFERROR(INDEX(Table1[Bedding],MATCH('2) Room configuration'!D1054,Table1[TMS],0)),\"\")","v":""},null,null,{"$f":"IFERROR(INDEX(Table1[Room description],MATCH('2) Room configuration'!I1054,Table1[TMS],0)),\"\")","v":""},{"$f":"IFERROR(INDEX(Table1[Bedding],MATCH('2) Room configuration'!I1054,Table1[TMS],0)),\"\")","v":""},{"$f":"IFERROR(INDEX(Table1[Normal occupancy],MATCH(Table2[[#This Row],[New Room Type \n(TMS)]],Table1[TMS],0)),\"\")","v":""},null,null,null,null,"",{"$f":"IF(Table2[[#This Row],['# extra beds that fit in the room2]]<>0,LEFT(Table2[[#This Row],[New Room Type \n(TMS)]],6),\"\")","v":""},null,{"$f":"IF(Table2[[#This Row],['# extra beds that fit in the room]]<>Table2[[#This Row],['# extra beds that fit in the room2]],\"yes\",\"No\")","v":"No"}]
[null,{"$f":"IF(LEN(C1055)>0,'1) Hotel information'!$C$4,\"\")","v":""},null,null,null,{"$f":"IFERROR(INDEX(Table1[Room description],MATCH('2) Room configuration'!D1055,Table1[TMS],0)),\"\")","v":""},{"$f":"IFERROR(INDEX(Table1[Bedding],MATCH('2) Room configuration'!D1055,Table1[TMS],0)),\"\")","v":""},null,null,{"$f":"IFERROR(INDEX(Table1[Room description],MATCH('2) Room configuration'!I1055,Table1[TMS],0)),\"\")","v":""},{"$f":"IFERROR(INDEX(Table1[Bedding],MATCH('2) Room configuration'!I1055,Table1[TMS],0)),\"\")","v":""},{"$f":"IFERROR(INDEX(Table1[Normal occupancy],MATCH(Table2[[#This Row],[New Room Type \n(TMS)]],Table1[TMS],0)),\"\")","v":""},null,null,null,null,"",{"$f":"IF(Table2[[#This Row],['# extra beds that fit in the room2]]<>0,LEFT(Table2[[#This Row],[New Room Type \n(TMS)]],6),\"\")","v":""},null,{"$f":"IF(Table2[[#This Row],['# extra beds that fit in the room]]<>Table2[[#This Row],['# extra beds that fit in the room2]],\"yes\",\"No\")","v":"No"}]
[null,{"$f":"IF(LEN(C1056)>0,'1) Hotel information'!$C$4,\"\")","v":""},null,null,null,{"$f":"IFERROR(INDEX(Table1[Room description],MATCH('2) Room configuration'!D1056,Table1[TMS],0)),\"\")","v":""},{"$f":"IFERROR(INDEX(Table1[Bedding],MATCH('2) Room configuration'!D1056,Table1[TMS],0)),\"\")","v":""},null,null,{"$f":"IFERROR(INDEX(Table1[Room description],MATCH('2) Room configuration'!I1056,Table1[TMS],0)),\"\")","v":""},{"$f":"IFERROR(INDEX(Table1[Bedding],MATCH('2) Room configuration'!I1056,Table1[TMS],0)),\"\")","v":""},{"$f":"IFERROR(INDEX(Table1[Normal occupancy],MATCH(Table2[[#This Row],[New Room Type \n(TMS)]],Table1[TMS],0)),\"\")","v":""},null,null,null,null,"",{"$f":"IF(Table2[[#This Row],['# extra beds that fit in the room2]]<>0,LEFT(Table2[[#This Row],[New Room Type \n(TMS)]],6),\"\")","v":""},null,{"$f":"IF(Table2[[#This Row],['# extra beds that fit in the room]]<>Table2[[#This Row],['# extra beds that fit in the room2]],\"yes\",\"No\")","v":"No"}]
[null,{"$f":"IF(LEN(C1057)>0,'1) Hotel information'!$C$4,\"\")","v":""},null,null,null,{"$f":"IFERROR(INDEX(Table1[Room description],MATCH('2) Room configuration'!D1057,Table1[TMS],0)),\"\")","v":""},{"$f":"IFERROR(INDEX(Table1[Bedding],MATCH('2) Room configuration'!D1057,Table1[TMS],0)),\"\")","v":""},null,null,{"$f":"IFERROR(INDEX(Table1[Room description],MATCH('2) Room configuration'!I1057,Table1[TMS],0)),\"\")","v":""},{"$f":"IFERROR(INDEX(Table1[Bedding],MATCH('2) Room configuration'!I1057,Table1[TMS],0)),\"\")","v":""},{"$f":"IFERROR(INDEX(Table1[Normal occupancy],MATCH(Table2[[#This Row],[New Room Type \n(TMS)]],Table1[TMS],0)),\"\")","v":""},null,null,null,null,"",{"$f":"IF(Table2[[#This Row],['# extra beds that fit in the room2]]<>0,LEFT(Table2[[#This Row],[New Room Type \n(TMS)]],6),\"\")","v":""},null,{"$f":"IF(Table2[[#This Row],['# extra beds that fit in the room]]<>Table2[[#This Row],['# extra beds that fit in the room2]],\"yes\",\"No\")","v":"No"}]
[null,{"$f":"IF(LEN(C1058)>0,'1) Hotel information'!$C$4,\"\")","v":""},null,null,null,{"$f":"IFERROR(INDEX(Table1[Room description],MATCH('2) Room configuration'!D1058,Table1[TMS],0)),\"\")","v":""},{"$f":"IFERROR(INDEX(Table1[Bedding],MATCH('2) Room configuration'!D1058,Table1[TMS],0)),\"\")","v":""},null,null,{"$f":"IFERROR(INDEX(Table1[Room description],MATCH('2) Room configuration'!I1058,Table1[TMS],0)),\"\")","v":""},{"$f":"IFERROR(INDEX(Table1[Bedding],MATCH('2) Room configuration'!I1058,Table1[TMS],0)),\"\")","v":""},{"$f":"IFERROR(INDEX(Table1[Normal occupancy],MATCH(Table2[[#This Row],[New Room Type \n(TMS)]],Table1[TMS],0)),\"\")","v":""},null,null,null,null,"",{"$f":"IF(Table2[[#This Row],['# extra beds that fit in the room2]]<>0,LEFT(Table2[[#This Row],[New Room Type \n(TMS)]],6),\"\")","v":""},null,{"$f":"IF(Table2[[#This Row],['# extra beds that fit in the room]]<>Table2[[#This Row],['# extra beds that fit in the room2]],\"yes\",\"No\")","v":"No"}]
[null,{"$f":"IF(LEN(C1059)>0,'1) Hotel information'!$C$4,\"\")","v":""},null,null,null,{"$f":"IFERROR(INDEX(Table1[Room description],MATCH('2) Room configuration'!D1059,Table1[TMS],0)),\"\")","v":""},{"$f":"IFERROR(INDEX(Table1[Bedding],MATCH('2) Room configuration'!D1059,Table1[TMS],0)),\"\")","v":""},null,null,{"$f":"IFERROR(INDEX(Table1[Room description],MATCH('2) Room configuration'!I1059,Table1[TMS],0)),\"\")","v":""},{"$f":"IFERROR(INDEX(Table1[Bedding],MATCH('2) Room configuration'!I1059,Table1[TMS],0)),\"\")","v":""},{"$f":"IFERROR(INDEX(Table1[Normal occupancy],MATCH(Table2[[#This Row],[New Room Type \n(TMS)]],Table1[TMS],0)),\"\")","v":""},null,null,null,null,"",{"$f":"IF(Table2[[#This Row],['# extra beds that fit in the room2]]<>0,LEFT(Table2[[#This Row],[New Room Type \n(TMS)]],6),\"\")","v":""},null,{"$f":"IF(Table2[[#This Row],['# extra beds that fit in the room]]<>Table2[[#This Row],['# extra beds that fit in the room2]],\"yes\",\"No\")","v":"No"}]
[null,{"$f":"IF(LEN(C1060)>0,'1) Hotel information'!$C$4,\"\")","v":""},null,null,null,{"$f":"IFERROR(INDEX(Table1[Room description],MATCH('2) Room configuration'!D1060,Table1[TMS],0)),\"\")","v":""},{"$f":"IFERROR(INDEX(Table1[Bedding],MATCH('2) Room configuration'!D1060,Table1[TMS],0)),\"\")","v":""},null,null,{"$f":"IFERROR(INDEX(Table1[Room description],MATCH('2) Room configuration'!I1060,Table1[TMS],0)),\"\")","v":""},{"$f":"IFERROR(INDEX(Table1[Bedding],MATCH('2) Room configuration'!I1060,Table1[TMS],0)),\"\")","v":""},{"$f":"IFERROR(INDEX(Table1[Normal occupancy],MATCH(Table2[[#This Row],[New Room Type \n(TMS)]],Table1[TMS],0)),\"\")","v":""},null,null,null,null,"",{"$f":"IF(Table2[[#This Row],['# extra beds that fit in the room2]]<>0,LEFT(Table2[[#This Row],[New Room Type \n(TMS)]],6),\"\")","v":""},null,{"$f":"IF(Table2[[#This Row],['# extra beds that fit in the room]]<>Table2[[#This Row],['# extra beds that fit in the room2]],\"yes\",\"No\")","v":"No"}]
[null,{"$f":"IF(LEN(C1061)>0,'1) Hotel information'!$C$4,\"\")","v":""},null,null,null,{"$f":"IFERROR(INDEX(Table1[Room description],MATCH('2) Room configuration'!D1061,Table1[TMS],0)),\"\")","v":""},{"$f":"IFERROR(INDEX(Table1[Bedding],MATCH('2) Room configuration'!D1061,Table1[TMS],0)),\"\")","v":""},null,null,{"$f":"IFERROR(INDEX(Table1[Room description],MATCH('2) Room configuration'!I1061,Table1[TMS],0)),\"\")","v":""},{"$f":"IFERROR(INDEX(Table1[Bedding],MATCH('2) Room configuration'!I1061,Table1[TMS],0)),\"\")","v":""},{"$f":"IFERROR(INDEX(Table1[Normal occupancy],MATCH(Table2[[#This Row],[New Room Type \n(TMS)]],Table1[TMS],0)),\"\")","v":""},null,null,null,null,"",{"$f":"IF(Table2[[#This Row],['# extra beds that fit in the room2]]<>0,LEFT(Table2[[#This Row],[New Room Type \n(TMS)]],6),\"\")","v":""},null,{"$f":"IF(Table2[[#This Row],['# extra beds that fit in the room]]<>Table2[[#This Row],['# extra beds that fit in the room2]],\"yes\",\"No\")","v":"No"}]
[null,{"$f":"IF(LEN(C1062)>0,'1) Hotel information'!$C$4,\"\")","v":""},null,null,null,{"$f":"IFERROR(INDEX(Table1[Room description],MATCH('2) Room configuration'!D1062,Table1[TMS],0)),\"\")","v":""},{"$f":"IFERROR(INDEX(Table1[Bedding],MATCH('2) Room configuration'!D1062,Table1[TMS],0)),\"\")","v":""},null,null,{"$f":"IFERROR(INDEX(Table1[Room description],MATCH('2) Room configuration'!I1062,Table1[TMS],0)),\"\")","v":""},{"$f":"IFERROR(INDEX(Table1[Bedding],MATCH('2) Room configuration'!I1062,Table1[TMS],0)),\"\")","v":""},{"$f":"IFERROR(INDEX(Table1[Normal occupancy],MATCH(Table2[[#This Row],[New Room Type \n(TMS)]],Table1[TMS],0)),\"\")","v":""},null,null,null,null,"",{"$f":"IF(Table2[[#This Row],['# extra beds that fit in the room2]]<>0,LEFT(Table2[[#This Row],[New Room Type \n(TMS)]],6),\"\")","v":""},null,{"$f":"IF(Table2[[#This Row],['# extra beds that fit in the room]]<>Table2[[#This Row],['# extra beds that fit in the room2]],\"yes\",\"No\")","v":"No"}]
[null,{"$f":"IF(LEN(C1063)>0,'1) Hotel information'!$C$4,\"\")","v":""},null,null,null,{"$f":"IFERROR(INDEX(Table1[Room description],MATCH('2) Room configuration'!D1063,Table1[TMS],0)),\"\")","v":""},{"$f":"IFERROR(INDEX(Table1[Bedding],MATCH('2) Room configuration'!D1063,Table1[TMS],0)),\"\")","v":""},null,null,{"$f":"IFERROR(INDEX(Table1[Room description],MATCH('2) Room configuration'!I1063,Table1[TMS],0)),\"\")","v":""},{"$f":"IFERROR(INDEX(Table1[Bedding],MATCH('2) Room configuration'!I1063,Table1[TMS],0)),\"\")","v":""},{"$f":"IFERROR(INDEX(Table1[Normal occupancy],MATCH(Table2[[#This Row],[New Room Type \n(TMS)]],Table1[TMS],0)),\"\")","v":""},null,null,null,null,"",{"$f":"IF(Table2[[#This Row],['# extra beds that fit in the room2]]<>0,LEFT(Table2[[#This Row],[New Room Type \n(TMS)]],6),\"\")","v":""},null,{"$f":"IF(Table2[[#This Row],['# extra beds that fit in the room]]<>Table2[[#This Row],['# extra beds that fit in the room2]],\"yes\",\"No\")","v":"No"}]
[null,{"$f":"IF(LEN(C1064)>0,'1) Hotel information'!$C$4,\"\")","v":""},null,null,null,{"$f":"IFERROR(INDEX(Table1[Room description],MATCH('2) Room configuration'!D1064,Table1[TMS],0)),\"\")","v":""},{"$f":"IFERROR(INDEX(Table1[Bedding],MATCH('2) Room configuration'!D1064,Table1[TMS],0)),\"\")","v":""},null,null,{"$f":"IFERROR(INDEX(Table1[Room description],MATCH('2) Room configuration'!I1064,Table1[TMS],0)),\"\")","v":""},{"$f":"IFERROR(INDEX(Table1[Bedding],MATCH('2) Room configuration'!I1064,Table1[TMS],0)),\"\")","v":""},{"$f":"IFERROR(INDEX(Table1[Normal occupancy],MATCH(Table2[[#This Row],[New Room Type \n(TMS)]],Table1[TMS],0)),\"\")","v":""},null,null,null,null,"",{"$f":"IF(Table2[[#This Row],['# extra beds that fit in the room2]]<>0,LEFT(Table2[[#This Row],[New Room Type \n(TMS)]],6),\"\")","v":""},null,{"$f":"IF(Table2[[#This Row],['# extra beds that fit in the room]]<>Table2[[#This Row],['# extra beds that fit in the room2]],\"yes\",\"No\")","v":"No"}]
[null,{"$f":"IF(LEN(C1065)>0,'1) Hotel information'!$C$4,\"\")","v":""},null,null,null,{"$f":"IFERROR(INDEX(Table1[Room description],MATCH('2) Room configuration'!D1065,Table1[TMS],0)),\"\")","v":""},{"$f":"IFERROR(INDEX(Table1[Bedding],MATCH('2) Room configuration'!D1065,Table1[TMS],0)),\"\")","v":""},null,null,{"$f":"IFERROR(INDEX(Table1[Room description],MATCH('2) Room configuration'!I1065,Table1[TMS],0)),\"\")","v":""},{"$f":"IFERROR(INDEX(Table1[Bedding],MATCH('2) Room configuration'!I1065,Table1[TMS],0)),\"\")","v":""},{"$f":"IFERROR(INDEX(Table1[Normal occupancy],MATCH(Table2[[#This Row],[New Room Type \n(TMS)]],Table1[TMS],0)),\"\")","v":""},null,null,null,null,"",{"$f":"IF(Table2[[#This Row],['# extra beds that fit in the room2]]<>0,LEFT(Table2[[#This Row],[New Room Type \n(TMS)]],6),\"\")","v":""},null,{"$f":"IF(Table2[[#This Row],['# extra beds that fit in the room]]<>Table2[[#This Row],['# extra beds that fit in the room2]],\"yes\",\"No\")","v":"No"}]
[null,{"$f":"IF(LEN(C1066)>0,'1) Hotel information'!$C$4,\"\")","v":""},null,null,null,{"$f":"IFERROR(INDEX(Table1[Room description],MATCH('2) Room configuration'!D1066,Table1[TMS],0)),\"\")","v":""},{"$f":"IFERROR(INDEX(Table1[Bedding],MATCH('2) Room configuration'!D1066,Table1[TMS],0)),\"\")","v":""},null,null,{"$f":"IFERROR(INDEX(Table1[Room description],MATCH('2) Room configuration'!I1066,Table1[TMS],0)),\"\")","v":""},{"$f":"IFERROR(INDEX(Table1[Bedding],MATCH('2) Room configuration'!I1066,Table1[TMS],0)),\"\")","v":""},{"$f":"IFERROR(INDEX(Table1[Normal occupancy],MATCH(Table2[[#This Row],[New Room Type \n(TMS)]],Table1[TMS],0)),\"\")","v":""},null,null,null,null,"",{"$f":"IF(Table2[[#This Row],['# extra beds that fit in the room2]]<>0,LEFT(Table2[[#This Row],[New Room Type \n(TMS)]],6),\"\")","v":""},null,{"$f":"IF(Table2[[#This Row],['# extra beds that fit in the room]]<>Table2[[#This Row],['# extra beds that fit in the room2]],\"yes\",\"No\")","v":"No"}]
[null,{"$f":"IF(LEN(C1067)>0,'1) Hotel information'!$C$4,\"\")","v":""},null,null,null,{"$f":"IFERROR(INDEX(Table1[Room description],MATCH('2) Room configuration'!D1067,Table1[TMS],0)),\"\")","v":""},{"$f":"IFERROR(INDEX(Table1[Bedding],MATCH('2) Room configuration'!D1067,Table1[TMS],0)),\"\")","v":""},null,null,{"$f":"IFERROR(INDEX(Table1[Room description],MATCH('2) Room configuration'!I1067,Table1[TMS],0)),\"\")","v":""},{"$f":"IFERROR(INDEX(Table1[Bedding],MATCH('2) Room configuration'!I1067,Table1[TMS],0)),\"\")","v":""},{"$f":"IFERROR(INDEX(Table1[Normal occupancy],MATCH(Table2[[#This Row],[New Room Type \n(TMS)]],Table1[TMS],0)),\"\")","v":""},null,null,null,null,"",{"$f":"IF(Table2[[#This Row],['# extra beds that fit in the room2]]<>0,LEFT(Table2[[#This Row],[New Room Type \n(TMS)]],6),\"\")","v":""},null,{"$f":"IF(Table2[[#This Row],['# extra beds that fit in the room]]<>Table2[[#This Row],['# extra beds that fit in the room2]],\"yes\",\"No\")","v":"No"}]
[null,{"$f":"IF(LEN(C1068)>0,'1) Hotel information'!$C$4,\"\")","v":""},null,null,null,{"$f":"IFERROR(INDEX(Table1[Room description],MATCH('2) Room configuration'!D1068,Table1[TMS],0)),\"\")","v":""},{"$f":"IFERROR(INDEX(Table1[Bedding],MATCH('2) Room configuration'!D1068,Table1[TMS],0)),\"\")","v":""},null,null,{"$f":"IFERROR(INDEX(Table1[Room description],MATCH('2) Room configuration'!I1068,Table1[TMS],0)),\"\")","v":""},{"$f":"IFERROR(INDEX(Table1[Bedding],MATCH('2) Room configuration'!I1068,Table1[TMS],0)),\"\")","v":""},{"$f":"IFERROR(INDEX(Table1[Normal occupancy],MATCH(Table2[[#This Row],[New Room Type \n(TMS)]],Table1[TMS],0)),\"\")","v":""},null,null,null,null,"",{"$f":"IF(Table2[[#This Row],['# extra beds that fit in the room2]]<>0,LEFT(Table2[[#This Row],[New Room Type \n(TMS)]],6),\"\")","v":""},null,{"$f":"IF(Table2[[#This Row],['# extra beds that fit in the room]]<>Table2[[#This Row],['# extra beds that fit in the room2]],\"yes\",\"No\")","v":"No"}]
[null,{"$f":"IF(LEN(C1069)>0,'1) Hotel information'!$C$4,\"\")","v":""},null,null,null,{"$f":"IFERROR(INDEX(Table1[Room description],MATCH('2) Room configuration'!D1069,Table1[TMS],0)),\"\")","v":""},{"$f":"IFERROR(INDEX(Table1[Bedding],MATCH('2) Room configuration'!D1069,Table1[TMS],0)),\"\")","v":""},null,null,{"$f":"IFERROR(INDEX(Table1[Room description],MATCH('2) Room configuration'!I1069,Table1[TMS],0)),\"\")","v":""},{"$f":"IFERROR(INDEX(Table1[Bedding],MATCH('2) Room configuration'!I1069,Table1[TMS],0)),\"\")","v":""},{"$f":"IFERROR(INDEX(Table1[Normal occupancy],MATCH(Table2[[#This Row],[New Room Type \n(TMS)]],Table1[TMS],0)),\"\")","v":""},null,null,null,null,"",{"$f":"IF(Table2[[#This Row],['# extra beds that fit in the room2]]<>0,LEFT(Table2[[#This Row],[New Room Type \n(TMS)]],6),\"\")","v":""},null,{"$f":"IF(Table2[[#This Row],['# extra beds that fit in the room]]<>Table2[[#This Row],['# extra beds that fit in the room2]],\"yes\",\"No\")","v":"No"}]
[null,{"$f":"IF(LEN(C1070)>0,'1) Hotel information'!$C$4,\"\")","v":""},null,null,null,{"$f":"IFERROR(INDEX(Table1[Room description],MATCH('2) Room configuration'!D1070,Table1[TMS],0)),\"\")","v":""},{"$f":"IFERROR(INDEX(Table1[Bedding],MATCH('2) Room configuration'!D1070,Table1[TMS],0)),\"\")","v":""},null,null,{"$f":"IFERROR(INDEX(Table1[Room description],MATCH('2) Room configuration'!I1070,Table1[TMS],0)),\"\")","v":""},{"$f":"IFERROR(INDEX(Table1[Bedding],MATCH('2) Room configuration'!I1070,Table1[TMS],0)),\"\")","v":""},{"$f":"IFERROR(INDEX(Table1[Normal occupancy],MATCH(Table2[[#This Row],[New Room Type \n(TMS)]],Table1[TMS],0)),\"\")","v":""},null,null,null,null,"",{"$f":"IF(Table2[[#This Row],['# extra beds that fit in the room2]]<>0,LEFT(Table2[[#This Row],[New Room Type \n(TMS)]],6),\"\")","v":""},null,{"$f":"IF(Table2[[#This Row],['# extra beds that fit in the room]]<>Table2[[#This Row],['# extra beds that fit in the room2]],\"yes\",\"No\")","v":"No"}]
[null,{"$f":"IF(LEN(C1071)>0,'1) Hotel information'!$C$4,\"\")","v":""},null,null,null,{"$f":"IFERROR(INDEX(Table1[Room description],MATCH('2) Room configuration'!D1071,Table1[TMS],0)),\"\")","v":""},{"$f":"IFERROR(INDEX(Table1[Bedding],MATCH('2) Room configuration'!D1071,Table1[TMS],0)),\"\")","v":""},null,null,{"$f":"IFERROR(INDEX(Table1[Room description],MATCH('2) Room configuration'!I1071,Table1[TMS],0)),\"\")","v":""},{"$f":"IFERROR(INDEX(Table1[Bedding],MATCH('2) Room configuration'!I1071,Table1[TMS],0)),\"\")","v":""},{"$f":"IFERROR(INDEX(Table1[Normal occupancy],MATCH(Table2[[#This Row],[New Room Type \n(TMS)]],Table1[TMS],0)),\"\")","v":""},null,null,null,null,"",{"$f":"IF(Table2[[#This Row],['# extra beds that fit in the room2]]<>0,LEFT(Table2[[#This Row],[New Room Type \n(TMS)]],6),\"\")","v":""},null,{"$f":"IF(Table2[[#This Row],['# extra beds that fit in the room]]<>Table2[[#This Row],['# extra beds that fit in the room2]],\"yes\",\"No\")","v":"No"}]
[null,{"$f":"IF(LEN(C1072)>0,'1) Hotel information'!$C$4,\"\")","v":""},null,null,null,{"$f":"IFERROR(INDEX(Table1[Room description],MATCH('2) Room configuration'!D1072,Table1[TMS],0)),\"\")","v":""},{"$f":"IFERROR(INDEX(Table1[Bedding],MATCH('2) Room configuration'!D1072,Table1[TMS],0)),\"\")","v":""},null,null,{"$f":"IFERROR(INDEX(Table1[Room description],MATCH('2) Room configuration'!I1072,Table1[TMS],0)),\"\")","v":""},{"$f":"IFERROR(INDEX(Table1[Bedding],MATCH('2) Room configuration'!I1072,Table1[TMS],0)),\"\")","v":""},{"$f":"IFERROR(INDEX(Table1[Normal occupancy],MATCH(Table2[[#This Row],[New Room Type \n(TMS)]],Table1[TMS],0)),\"\")","v":""},null,null,null,null,"",{"$f":"IF(Table2[[#This Row],['# extra beds that fit in the room2]]<>0,LEFT(Table2[[#This Row],[New Room Type \n(TMS)]],6),\"\")","v":""},null,{"$f":"IF(Table2[[#This Row],['# extra beds that fit in the room]]<>Table2[[#This Row],['# extra beds that fit in the room2]],\"yes\",\"No\")","v":"No"}]
[null,{"$f":"IF(LEN(C1073)>0,'1) Hotel information'!$C$4,\"\")","v":""},null,null,null,{"$f":"IFERROR(INDEX(Table1[Room description],MATCH('2) Room configuration'!D1073,Table1[TMS],0)),\"\")","v":""},{"$f":"IFERROR(INDEX(Table1[Bedding],MATCH('2) Room configuration'!D1073,Table1[TMS],0)),\"\")","v":""},null,null,{"$f":"IFERROR(INDEX(Table1[Room description],MATCH('2) Room configuration'!I1073,Table1[TMS],0)),\"\")","v":""},{"$f":"IFERROR(INDEX(Table1[Bedding],MATCH('2) Room configuration'!I1073,Table1[TMS],0)),\"\")","v":""},{"$f":"IFERROR(INDEX(Table1[Normal occupancy],MATCH(Table2[[#This Row],[New Room Type \n(TMS)]],Table1[TMS],0)),\"\")","v":""},null,null,null,null,"",{"$f":"IF(Table2[[#This Row],['# extra beds that fit in the room2]]<>0,LEFT(Table2[[#This Row],[New Room Type \n(TMS)]],6),\"\")","v":""},null,{"$f":"IF(Table2[[#This Row],['# extra beds that fit in the room]]<>Table2[[#This Row],['# extra beds that fit in the room2]],\"yes\",\"No\")","v":"No"}]
[null,{"$f":"IF(LEN(C1074)>0,'1) Hotel information'!$C$4,\"\")","v":""},null,null,null,{"$f":"IFERROR(INDEX(Table1[Room description],MATCH('2) Room configuration'!D1074,Table1[TMS],0)),\"\")","v":""},{"$f":"IFERROR(INDEX(Table1[Bedding],MATCH('2) Room configuration'!D1074,Table1[TMS],0)),\"\")","v":""},null,null,{"$f":"IFERROR(INDEX(Table1[Room description],MATCH('2) Room configuration'!I1074,Table1[TMS],0)),\"\")","v":""},{"$f":"IFERROR(INDEX(Table1[Bedding],MATCH('2) Room configuration'!I1074,Table1[TMS],0)),\"\")","v":""},{"$f":"IFERROR(INDEX(Table1[Normal occupancy],MATCH(Table2[[#This Row],[New Room Type \n(TMS)]],Table1[TMS],0)),\"\")","v":""},null,null,null,null,"",{"$f":"IF(Table2[[#This Row],['# extra beds that fit in the room2]]<>0,LEFT(Table2[[#This Row],[New Room Type \n(TMS)]],6),\"\")","v":""},null,{"$f":"IF(Table2[[#This Row],['# extra beds that fit in the room]]<>Table2[[#This Row],['# extra beds that fit in the room2]],\"yes\",\"No\")","v":"No"}]
[null,{"$f":"IF(LEN(C1075)>0,'1) Hotel information'!$C$4,\"\")","v":""},null,null,null,{"$f":"IFERROR(INDEX(Table1[Room description],MATCH('2) Room configuration'!D1075,Table1[TMS],0)),\"\")","v":""},{"$f":"IFERROR(INDEX(Table1[Bedding],MATCH('2) Room configuration'!D1075,Table1[TMS],0)),\"\")","v":""},null,null,{"$f":"IFERROR(INDEX(Table1[Room description],MATCH('2) Room configuration'!I1075,Table1[TMS],0)),\"\")","v":""},{"$f":"IFERROR(INDEX(Table1[Bedding],MATCH('2) Room configuration'!I1075,Table1[TMS],0)),\"\")","v":""},{"$f":"IFERROR(INDEX(Table1[Normal occupancy],MATCH(Table2[[#This Row],[New Room Type \n(TMS)]],Table1[TMS],0)),\"\")","v":""},null,null,null,null,"",{"$f":"IF(Table2[[#This Row],['# extra beds that fit in the room2]]<>0,LEFT(Table2[[#This Row],[New Room Type \n(TMS)]],6),\"\")","v":""},null,{"$f":"IF(Table2[[#This Row],['# extra beds that fit in the room]]<>Table2[[#This Row],['# extra beds that fit in the room2]],\"yes\",\"No\")","v":"No"}]
[null,{"$f":"IF(LEN(C1076)>0,'1) Hotel information'!$C$4,\"\")","v":""},null,null,null,{"$f":"IFERROR(INDEX(Table1[Room description],MATCH('2) Room configuration'!D1076,Table1[TMS],0)),\"\")","v":""},{"$f":"IFERROR(INDEX(Table1[Bedding],MATCH('2) Room configuration'!D1076,Table1[TMS],0)),\"\")","v":""},null,null,{"$f":"IFERROR(INDEX(Table1[Room description],MATCH('2) Room configuration'!I1076,Table1[TMS],0)),\"\")","v":""},{"$f":"IFERROR(INDEX(Table1[Bedding],MATCH('2) Room configuration'!I1076,Table1[TMS],0)),\"\")","v":""},{"$f":"IFERROR(INDEX(Table1[Normal occupancy],MATCH(Table2[[#This Row],[New Room Type \n(TMS)]],Table1[TMS],0)),\"\")","v":""},null,null,null,null,"",{"$f":"IF(Table2[[#This Row],['# extra beds that fit in the room2]]<>0,LEFT(Table2[[#This Row],[New Room Type \n(TMS)]],6),\"\")","v":""},null,{"$f":"IF(Table2[[#This Row],['# extra beds that fit in the room]]<>Table2[[#This Row],['# extra beds that fit in the room2]],\"yes\",\"No\")","v":"No"}]
[null,{"$f":"IF(LEN(C1077)>0,'1) Hotel information'!$C$4,\"\")","v":""},null,null,null,{"$f":"IFERROR(INDEX(Table1[Room description],MATCH('2) Room configuration'!D1077,Table1[TMS],0)),\"\")","v":""},{"$f":"IFERROR(INDEX(Table1[Bedding],MATCH('2) Room configuration'!D1077,Table1[TMS],0)),\"\")","v":""},null,null,{"$f":"IFERROR(INDEX(Table1[Room description],MATCH('2) Room configuration'!I1077,Table1[TMS],0)),\"\")","v":""},{"$f":"IFERROR(INDEX(Table1[Bedding],MATCH('2) Room configuration'!I1077,Table1[TMS],0)),\"\")","v":""},{"$f":"IFERROR(INDEX(Table1[Normal occupancy],MATCH(Table2[[#This Row],[New Room Type \n(TMS)]],Table1[TMS],0)),\"\")","v":""},null,null,null,null,"",{"$f":"IF(Table2[[#This Row],['# extra beds that fit in the room2]]<>0,LEFT(Table2[[#This Row],[New Room Type \n(TMS)]],6),\"\")","v":""},null,{"$f":"IF(Table2[[#This Row],['# extra beds that fit in the room]]<>Table2[[#This Row],['# extra beds that fit in the room2]],\"yes\",\"No\")","v":"No"}]
[null,{"$f":"IF(LEN(C1078)>0,'1) Hotel information'!$C$4,\"\")","v":""},null,null,null,{"$f":"IFERROR(INDEX(Table1[Room description],MATCH('2) Room configuration'!D1078,Table1[TMS],0)),\"\")","v":""},{"$f":"IFERROR(INDEX(Table1[Bedding],MATCH('2) Room configuration'!D1078,Table1[TMS],0)),\"\")","v":""},null,null,{"$f":"IFERROR(INDEX(Table1[Room description],MATCH('2) Room configuration'!I1078,Table1[TMS],0)),\"\")","v":""},{"$f":"IFERROR(INDEX(Table1[Bedding],MATCH('2) Room configuration'!I1078,Table1[TMS],0)),\"\")","v":""},{"$f":"IFERROR(INDEX(Table1[Normal occupancy],MATCH(Table2[[#This Row],[New Room Type \n(TMS)]],Table1[TMS],0)),\"\")","v":""},null,null,null,null,"",{"$f":"IF(Table2[[#This Row],['# extra beds that fit in the room2]]<>0,LEFT(Table2[[#This Row],[New Room Type \n(TMS)]],6),\"\")","v":""},null,{"$f":"IF(Table2[[#This Row],['# extra beds that fit in the room]]<>Table2[[#This Row],['# extra beds that fit in the room2]],\"yes\",\"No\")","v":"No"}]
[null,{"$f":"IF(LEN(C1079)>0,'1) Hotel information'!$C$4,\"\")","v":""},null,null,null,{"$f":"IFERROR(INDEX(Table1[Room description],MATCH('2) Room configuration'!D1079,Table1[TMS],0)),\"\")","v":""},{"$f":"IFERROR(INDEX(Table1[Bedding],MATCH('2) Room configuration'!D1079,Table1[TMS],0)),\"\")","v":""},null,null,{"$f":"IFERROR(INDEX(Table1[Room description],MATCH('2) Room configuration'!I1079,Table1[TMS],0)),\"\")","v":""},{"$f":"IFERROR(INDEX(Table1[Bedding],MATCH('2) Room configuration'!I1079,Table1[TMS],0)),\"\")","v":""},{"$f":"IFERROR(INDEX(Table1[Normal occupancy],MATCH(Table2[[#This Row],[New Room Type \n(TMS)]],Table1[TMS],0)),\"\")","v":""},null,null,null,null,"",{"$f":"IF(Table2[[#This Row],['# extra beds that fit in the room2]]<>0,LEFT(Table2[[#This Row],[New Room Type \n(TMS)]],6),\"\")","v":""},null,{"$f":"IF(Table2[[#This Row],['# extra beds that fit in the room]]<>Table2[[#This Row],['# extra beds that fit in the room2]],\"yes\",\"No\")","v":"No"}]
[null,{"$f":"IF(LEN(C1080)>0,'1) Hotel information'!$C$4,\"\")","v":""},null,null,null,{"$f":"IFERROR(INDEX(Table1[Room description],MATCH('2) Room configuration'!D1080,Table1[TMS],0)),\"\")","v":""},{"$f":"IFERROR(INDEX(Table1[Bedding],MATCH('2) Room configuration'!D1080,Table1[TMS],0)),\"\")","v":""},null,null,{"$f":"IFERROR(INDEX(Table1[Room description],MATCH('2) Room configuration'!I1080,Table1[TMS],0)),\"\")","v":""},{"$f":"IFERROR(INDEX(Table1[Bedding],MATCH('2) Room configuration'!I1080,Table1[TMS],0)),\"\")","v":""},{"$f":"IFERROR(INDEX(Table1[Normal occupancy],MATCH(Table2[[#This Row],[New Room Type \n(TMS)]],Table1[TMS],0)),\"\")","v":""},null,null,null,null,"",{"$f":"IF(Table2[[#This Row],['# extra beds that fit in the room2]]<>0,LEFT(Table2[[#This Row],[New Room Type \n(TMS)]],6),\"\")","v":""},null,{"$f":"IF(Table2[[#This Row],['# extra beds that fit in the room]]<>Table2[[#This Row],['# extra beds that fit in the room2]],\"yes\",\"No\")","v":"No"}]
[null,{"$f":"IF(LEN(C1081)>0,'1) Hotel information'!$C$4,\"\")","v":""},null,null,null,{"$f":"IFERROR(INDEX(Table1[Room description],MATCH('2) Room configuration'!D1081,Table1[TMS],0)),\"\")","v":""},{"$f":"IFERROR(INDEX(Table1[Bedding],MATCH('2) Room configuration'!D1081,Table1[TMS],0)),\"\")","v":""},null,null,{"$f":"IFERROR(INDEX(Table1[Room description],MATCH('2) Room configuration'!I1081,Table1[TMS],0)),\"\")","v":""},{"$f":"IFERROR(INDEX(Table1[Bedding],MATCH('2) Room configuration'!I1081,Table1[TMS],0)),\"\")","v":""},{"$f":"IFERROR(INDEX(Table1[Normal occupancy],MATCH(Table2[[#This Row],[New Room Type \n(TMS)]],Table1[TMS],0)),\"\")","v":""},null,null,null,null,"",{"$f":"IF(Table2[[#This Row],['# extra beds that fit in the room2]]<>0,LEFT(Table2[[#This Row],[New Room Type \n(TMS)]],6),\"\")","v":""},null,{"$f":"IF(Table2[[#This Row],['# extra beds that fit in the room]]<>Table2[[#This Row],['# extra beds that fit in the room2]],\"yes\",\"No\")","v":"No"}]
[null,{"$f":"IF(LEN(C1082)>0,'1) Hotel information'!$C$4,\"\")","v":""},null,null,null,{"$f":"IFERROR(INDEX(Table1[Room description],MATCH('2) Room configuration'!D1082,Table1[TMS],0)),\"\")","v":""},{"$f":"IFERROR(INDEX(Table1[Bedding],MATCH('2) Room configuration'!D1082,Table1[TMS],0)),\"\")","v":""},null,null,{"$f":"IFERROR(INDEX(Table1[Room description],MATCH('2) Room configuration'!I1082,Table1[TMS],0)),\"\")","v":""},{"$f":"IFERROR(INDEX(Table1[Bedding],MATCH('2) Room configuration'!I1082,Table1[TMS],0)),\"\")","v":""},{"$f":"IFERROR(INDEX(Table1[Normal occupancy],MATCH(Table2[[#This Row],[New Room Type \n(TMS)]],Table1[TMS],0)),\"\")","v":""},null,null,null,null,"",{"$f":"IF(Table2[[#This Row],['# extra beds that fit in the room2]]<>0,LEFT(Table2[[#This Row],[New Room Type \n(TMS)]],6),\"\")","v":""},null,{"$f":"IF(Table2[[#This Row],['# extra beds that fit in the room]]<>Table2[[#This Row],['# extra beds that fit in the room2]],\"yes\",\"No\")","v":"No"}]
[null,{"$f":"IF(LEN(C1083)>0,'1) Hotel information'!$C$4,\"\")","v":""},null,null,null,{"$f":"IFERROR(INDEX(Table1[Room description],MATCH('2) Room configuration'!D1083,Table1[TMS],0)),\"\")","v":""},{"$f":"IFERROR(INDEX(Table1[Bedding],MATCH('2) Room configuration'!D1083,Table1[TMS],0)),\"\")","v":""},null,null,{"$f":"IFERROR(INDEX(Table1[Room description],MATCH('2) Room configuration'!I1083,Table1[TMS],0)),\"\")","v":""},{"$f":"IFERROR(INDEX(Table1[Bedding],MATCH('2) Room configuration'!I1083,Table1[TMS],0)),\"\")","v":""},{"$f":"IFERROR(INDEX(Table1[Normal occupancy],MATCH(Table2[[#This Row],[New Room Type \n(TMS)]],Table1[TMS],0)),\"\")","v":""},null,null,null,null,"",{"$f":"IF(Table2[[#This Row],['# extra beds that fit in the room2]]<>0,LEFT(Table2[[#This Row],[New Room Type \n(TMS)]],6),\"\")","v":""},null,{"$f":"IF(Table2[[#This Row],['# extra beds that fit in the room]]<>Table2[[#This Row],['# extra beds that fit in the room2]],\"yes\",\"No\")","v":"No"}]
[null,{"$f":"IF(LEN(C1084)>0,'1) Hotel information'!$C$4,\"\")","v":""},null,null,null,{"$f":"IFERROR(INDEX(Table1[Room description],MATCH('2) Room configuration'!D1084,Table1[TMS],0)),\"\")","v":""},{"$f":"IFERROR(INDEX(Table1[Bedding],MATCH('2) Room configuration'!D1084,Table1[TMS],0)),\"\")","v":""},null,null,{"$f":"IFERROR(INDEX(Table1[Room description],MATCH('2) Room configuration'!I1084,Table1[TMS],0)),\"\")","v":""},{"$f":"IFERROR(INDEX(Table1[Bedding],MATCH('2) Room configuration'!I1084,Table1[TMS],0)),\"\")","v":""},{"$f":"IFERROR(INDEX(Table1[Normal occupancy],MATCH(Table2[[#This Row],[New Room Type \n(TMS)]],Table1[TMS],0)),\"\")","v":""},null,null,null,null,"",{"$f":"IF(Table2[[#This Row],['# extra beds that fit in the room2]]<>0,LEFT(Table2[[#This Row],[New Room Type \n(TMS)]],6),\"\")","v":""},null,{"$f":"IF(Table2[[#This Row],['# extra beds that fit in the room]]<>Table2[[#This Row],['# extra beds that fit in the room2]],\"yes\",\"No\")","v":"No"}]
[null,{"$f":"IF(LEN(C1085)>0,'1) Hotel information'!$C$4,\"\")","v":""},null,null,null,{"$f":"IFERROR(INDEX(Table1[Room description],MATCH('2) Room configuration'!D1085,Table1[TMS],0)),\"\")","v":""},{"$f":"IFERROR(INDEX(Table1[Bedding],MATCH('2) Room configuration'!D1085,Table1[TMS],0)),\"\")","v":""},null,null,{"$f":"IFERROR(INDEX(Table1[Room description],MATCH('2) Room configuration'!I1085,Table1[TMS],0)),\"\")","v":""},{"$f":"IFERROR(INDEX(Table1[Bedding],MATCH('2) Room configuration'!I1085,Table1[TMS],0)),\"\")","v":""},{"$f":"IFERROR(INDEX(Table1[Normal occupancy],MATCH(Table2[[#This Row],[New Room Type \n(TMS)]],Table1[TMS],0)),\"\")","v":""},null,null,null,null,"",{"$f":"IF(Table2[[#This Row],['# extra beds that fit in the room2]]<>0,LEFT(Table2[[#This Row],[New Room Type \n(TMS)]],6),\"\")","v":""},null,{"$f":"IF(Table2[[#This Row],['# extra beds that fit in the room]]<>Table2[[#This Row],['# extra beds that fit in the room2]],\"yes\",\"No\")","v":"No"}]
[null,{"$f":"IF(LEN(C1086)>0,'1) Hotel information'!$C$4,\"\")","v":""},null,null,null,{"$f":"IFERROR(INDEX(Table1[Room description],MATCH('2) Room configuration'!D1086,Table1[TMS],0)),\"\")","v":""},{"$f":"IFERROR(INDEX(Table1[Bedding],MATCH('2) Room configuration'!D1086,Table1[TMS],0)),\"\")","v":""},null,null,{"$f":"IFERROR(INDEX(Table1[Room description],MATCH('2) Room configuration'!I1086,Table1[TMS],0)),\"\")","v":""},{"$f":"IFERROR(INDEX(Table1[Bedding],MATCH('2) Room configuration'!I1086,Table1[TMS],0)),\"\")","v":""},{"$f":"IFERROR(INDEX(Table1[Normal occupancy],MATCH(Table2[[#This Row],[New Room Type \n(TMS)]],Table1[TMS],0)),\"\")","v":""},null,null,null,null,"",{"$f":"IF(Table2[[#This Row],['# extra beds that fit in the room2]]<>0,LEFT(Table2[[#This Row],[New Room Type \n(TMS)]],6),\"\")","v":""},null,{"$f":"IF(Table2[[#This Row],['# extra beds that fit in the room]]<>Table2[[#This Row],['# extra beds that fit in the room2]],\"yes\",\"No\")","v":"No"}]
[null,{"$f":"IF(LEN(C1087)>0,'1) Hotel information'!$C$4,\"\")","v":""},null,null,null,{"$f":"IFERROR(INDEX(Table1[Room description],MATCH('2) Room configuration'!D1087,Table1[TMS],0)),\"\")","v":""},{"$f":"IFERROR(INDEX(Table1[Bedding],MATCH('2) Room configuration'!D1087,Table1[TMS],0)),\"\")","v":""},null,null,{"$f":"IFERROR(INDEX(Table1[Room description],MATCH('2) Room configuration'!I1087,Table1[TMS],0)),\"\")","v":""},{"$f":"IFERROR(INDEX(Table1[Bedding],MATCH('2) Room configuration'!I1087,Table1[TMS],0)),\"\")","v":""},{"$f":"IFERROR(INDEX(Table1[Normal occupancy],MATCH(Table2[[#This Row],[New Room Type \n(TMS)]],Table1[TMS],0)),\"\")","v":""},null,null,null,null,"",{"$f":"IF(Table2[[#This Row],['# extra beds that fit in the room2]]<>0,LEFT(Table2[[#This Row],[New Room Type \n(TMS)]],6),\"\")","v":""},null,{"$f":"IF(Table2[[#This Row],['# extra beds that fit in the room]]<>Table2[[#This Row],['# extra beds that fit in the room2]],\"yes\",\"No\")","v":"No"}]
[null,{"$f":"IF(LEN(C1088)>0,'1) Hotel information'!$C$4,\"\")","v":""},null,null,null,{"$f":"IFERROR(INDEX(Table1[Room description],MATCH('2) Room configuration'!D1088,Table1[TMS],0)),\"\")","v":""},{"$f":"IFERROR(INDEX(Table1[Bedding],MATCH('2) Room configuration'!D1088,Table1[TMS],0)),\"\")","v":""},null,null,{"$f":"IFERROR(INDEX(Table1[Room description],MATCH('2) Room configuration'!I1088,Table1[TMS],0)),\"\")","v":""},{"$f":"IFERROR(INDEX(Table1[Bedding],MATCH('2) Room configuration'!I1088,Table1[TMS],0)),\"\")","v":""},{"$f":"IFERROR(INDEX(Table1[Normal occupancy],MATCH(Table2[[#This Row],[New Room Type \n(TMS)]],Table1[TMS],0)),\"\")","v":""},null,null,null,null,"",{"$f":"IF(Table2[[#This Row],['# extra beds that fit in the room2]]<>0,LEFT(Table2[[#This Row],[New Room Type \n(TMS)]],6),\"\")","v":""},null,{"$f":"IF(Table2[[#This Row],['# extra beds that fit in the room]]<>Table2[[#This Row],['# extra beds that fit in the room2]],\"yes\",\"No\")","v":"No"}]
[null,{"$f":"IF(LEN(C1089)>0,'1) Hotel information'!$C$4,\"\")","v":""},null,null,null,{"$f":"IFERROR(INDEX(Table1[Room description],MATCH('2) Room configuration'!D1089,Table1[TMS],0)),\"\")","v":""},{"$f":"IFERROR(INDEX(Table1[Bedding],MATCH('2) Room configuration'!D1089,Table1[TMS],0)),\"\")","v":""},null,null,{"$f":"IFERROR(INDEX(Table1[Room description],MATCH('2) Room configuration'!I1089,Table1[TMS],0)),\"\")","v":""},{"$f":"IFERROR(INDEX(Table1[Bedding],MATCH('2) Room configuration'!I1089,Table1[TMS],0)),\"\")","v":""},{"$f":"IFERROR(INDEX(Table1[Normal occupancy],MATCH(Table2[[#This Row],[New Room Type \n(TMS)]],Table1[TMS],0)),\"\")","v":""},null,null,null,null,"",{"$f":"IF(Table2[[#This Row],['# extra beds that fit in the room2]]<>0,LEFT(Table2[[#This Row],[New Room Type \n(TMS)]],6),\"\")","v":""},null,{"$f":"IF(Table2[[#This Row],['# extra beds that fit in the room]]<>Table2[[#This Row],['# extra beds that fit in the room2]],\"yes\",\"No\")","v":"No"}]
[null,{"$f":"IF(LEN(C1090)>0,'1) Hotel information'!$C$4,\"\")","v":""},null,null,null,{"$f":"IFERROR(INDEX(Table1[Room description],MATCH('2) Room configuration'!D1090,Table1[TMS],0)),\"\")","v":""},{"$f":"IFERROR(INDEX(Table1[Bedding],MATCH('2) Room configuration'!D1090,Table1[TMS],0)),\"\")","v":""},null,null,{"$f":"IFERROR(INDEX(Table1[Room description],MATCH('2) Room configuration'!I1090,Table1[TMS],0)),\"\")","v":""},{"$f":"IFERROR(INDEX(Table1[Bedding],MATCH('2) Room configuration'!I1090,Table1[TMS],0)),\"\")","v":""},{"$f":"IFERROR(INDEX(Table1[Normal occupancy],MATCH(Table2[[#This Row],[New Room Type \n(TMS)]],Table1[TMS],0)),\"\")","v":""},null,null,null,null,"",{"$f":"IF(Table2[[#This Row],['# extra beds that fit in the room2]]<>0,LEFT(Table2[[#This Row],[New Room Type \n(TMS)]],6),\"\")","v":""},null,{"$f":"IF(Table2[[#This Row],['# extra beds that fit in the room]]<>Table2[[#This Row],['# extra beds that fit in the room2]],\"yes\",\"No\")","v":"No"}]
[null,{"$f":"IF(LEN(C1091)>0,'1) Hotel information'!$C$4,\"\")","v":""},null,null,null,{"$f":"IFERROR(INDEX(Table1[Room description],MATCH('2) Room configuration'!D1091,Table1[TMS],0)),\"\")","v":""},{"$f":"IFERROR(INDEX(Table1[Bedding],MATCH('2) Room configuration'!D1091,Table1[TMS],0)),\"\")","v":""},null,null,{"$f":"IFERROR(INDEX(Table1[Room description],MATCH('2) Room configuration'!I1091,Table1[TMS],0)),\"\")","v":""},{"$f":"IFERROR(INDEX(Table1[Bedding],MATCH('2) Room configuration'!I1091,Table1[TMS],0)),\"\")","v":""},{"$f":"IFERROR(INDEX(Table1[Normal occupancy],MATCH(Table2[[#This Row],[New Room Type \n(TMS)]],Table1[TMS],0)),\"\")","v":""},null,null,null,null,"",{"$f":"IF(Table2[[#This Row],['# extra beds that fit in the room2]]<>0,LEFT(Table2[[#This Row],[New Room Type \n(TMS)]],6),\"\")","v":""},null,{"$f":"IF(Table2[[#This Row],['# extra beds that fit in the room]]<>Table2[[#This Row],['# extra beds that fit in the room2]],\"yes\",\"No\")","v":"No"}]
[null,{"$f":"IF(LEN(C1092)>0,'1) Hotel information'!$C$4,\"\")","v":""},null,null,null,{"$f":"IFERROR(INDEX(Table1[Room description],MATCH('2) Room configuration'!D1092,Table1[TMS],0)),\"\")","v":""},{"$f":"IFERROR(INDEX(Table1[Bedding],MATCH('2) Room configuration'!D1092,Table1[TMS],0)),\"\")","v":""},null,null,{"$f":"IFERROR(INDEX(Table1[Room description],MATCH('2) Room configuration'!I1092,Table1[TMS],0)),\"\")","v":""},{"$f":"IFERROR(INDEX(Table1[Bedding],MATCH('2) Room configuration'!I1092,Table1[TMS],0)),\"\")","v":""},{"$f":"IFERROR(INDEX(Table1[Normal occupancy],MATCH(Table2[[#This Row],[New Room Type \n(TMS)]],Table1[TMS],0)),\"\")","v":""},null,null,null,null,"",{"$f":"IF(Table2[[#This Row],['# extra beds that fit in the room2]]<>0,LEFT(Table2[[#This Row],[New Room Type \n(TMS)]],6),\"\")","v":""},null,{"$f":"IF(Table2[[#This Row],['# extra beds that fit in the room]]<>Table2[[#This Row],['# extra beds that fit in the room2]],\"yes\",\"No\")","v":"No"}]
[null,{"$f":"IF(LEN(C1093)>0,'1) Hotel information'!$C$4,\"\")","v":""},null,null,null,{"$f":"IFERROR(INDEX(Table1[Room description],MATCH('2) Room configuration'!D1093,Table1[TMS],0)),\"\")","v":""},{"$f":"IFERROR(INDEX(Table1[Bedding],MATCH('2) Room configuration'!D1093,Table1[TMS],0)),\"\")","v":""},null,null,{"$f":"IFERROR(INDEX(Table1[Room description],MATCH('2) Room configuration'!I1093,Table1[TMS],0)),\"\")","v":""},{"$f":"IFERROR(INDEX(Table1[Bedding],MATCH('2) Room configuration'!I1093,Table1[TMS],0)),\"\")","v":""},{"$f":"IFERROR(INDEX(Table1[Normal occupancy],MATCH(Table2[[#This Row],[New Room Type \n(TMS)]],Table1[TMS],0)),\"\")","v":""},null,null,null,null,"",{"$f":"IF(Table2[[#This Row],['# extra beds that fit in the room2]]<>0,LEFT(Table2[[#This Row],[New Room Type \n(TMS)]],6),\"\")","v":""},null,{"$f":"IF(Table2[[#This Row],['# extra beds that fit in the room]]<>Table2[[#This Row],['# extra beds that fit in the room2]],\"yes\",\"No\")","v":"No"}]
[null,{"$f":"IF(LEN(C1094)>0,'1) Hotel information'!$C$4,\"\")","v":""},null,null,null,{"$f":"IFERROR(INDEX(Table1[Room description],MATCH('2) Room configuration'!D1094,Table1[TMS],0)),\"\")","v":""},{"$f":"IFERROR(INDEX(Table1[Bedding],MATCH('2) Room configuration'!D1094,Table1[TMS],0)),\"\")","v":""},null,null,{"$f":"IFERROR(INDEX(Table1[Room description],MATCH('2) Room configuration'!I1094,Table1[TMS],0)),\"\")","v":""},{"$f":"IFERROR(INDEX(Table1[Bedding],MATCH('2) Room configuration'!I1094,Table1[TMS],0)),\"\")","v":""},{"$f":"IFERROR(INDEX(Table1[Normal occupancy],MATCH(Table2[[#This Row],[New Room Type \n(TMS)]],Table1[TMS],0)),\"\")","v":""},null,null,null,null,"",{"$f":"IF(Table2[[#This Row],['# extra beds that fit in the room2]]<>0,LEFT(Table2[[#This Row],[New Room Type \n(TMS)]],6),\"\")","v":""},null,{"$f":"IF(Table2[[#This Row],['# extra beds that fit in the room]]<>Table2[[#This Row],['# extra beds that fit in the room2]],\"yes\",\"No\")","v":"No"}]
[null,{"$f":"IF(LEN(C1095)>0,'1) Hotel information'!$C$4,\"\")","v":""},null,null,null,{"$f":"IFERROR(INDEX(Table1[Room description],MATCH('2) Room configuration'!D1095,Table1[TMS],0)),\"\")","v":""},{"$f":"IFERROR(INDEX(Table1[Bedding],MATCH('2) Room configuration'!D1095,Table1[TMS],0)),\"\")","v":""},null,null,{"$f":"IFERROR(INDEX(Table1[Room description],MATCH('2) Room configuration'!I1095,Table1[TMS],0)),\"\")","v":""},{"$f":"IFERROR(INDEX(Table1[Bedding],MATCH('2) Room configuration'!I1095,Table1[TMS],0)),\"\")","v":""},{"$f":"IFERROR(INDEX(Table1[Normal occupancy],MATCH(Table2[[#This Row],[New Room Type \n(TMS)]],Table1[TMS],0)),\"\")","v":""},null,null,null,null,"",{"$f":"IF(Table2[[#This Row],['# extra beds that fit in the room2]]<>0,LEFT(Table2[[#This Row],[New Room Type \n(TMS)]],6),\"\")","v":""},null,{"$f":"IF(Table2[[#This Row],['# extra beds that fit in the room]]<>Table2[[#This Row],['# extra beds that fit in the room2]],\"yes\",\"No\")","v":"No"}]
[null,{"$f":"IF(LEN(C1096)>0,'1) Hotel information'!$C$4,\"\")","v":""},null,null,null,{"$f":"IFERROR(INDEX(Table1[Room description],MATCH('2) Room configuration'!D1096,Table1[TMS],0)),\"\")","v":""},{"$f":"IFERROR(INDEX(Table1[Bedding],MATCH('2) Room configuration'!D1096,Table1[TMS],0)),\"\")","v":""},null,null,{"$f":"IFERROR(INDEX(Table1[Room description],MATCH('2) Room configuration'!I1096,Table1[TMS],0)),\"\")","v":""},{"$f":"IFERROR(INDEX(Table1[Bedding],MATCH('2) Room configuration'!I1096,Table1[TMS],0)),\"\")","v":""},{"$f":"IFERROR(INDEX(Table1[Normal occupancy],MATCH(Table2[[#This Row],[New Room Type \n(TMS)]],Table1[TMS],0)),\"\")","v":""},null,null,null,null,"",{"$f":"IF(Table2[[#This Row],['# extra beds that fit in the room2]]<>0,LEFT(Table2[[#This Row],[New Room Type \n(TMS)]],6),\"\")","v":""},null,{"$f":"IF(Table2[[#This Row],['# extra beds that fit in the room]]<>Table2[[#This Row],['# extra beds that fit in the room2]],\"yes\",\"No\")","v":"No"}]
[null,{"$f":"IF(LEN(C1097)>0,'1) Hotel information'!$C$4,\"\")","v":""},null,null,null,{"$f":"IFERROR(INDEX(Table1[Room description],MATCH('2) Room configuration'!D1097,Table1[TMS],0)),\"\")","v":""},{"$f":"IFERROR(INDEX(Table1[Bedding],MATCH('2) Room configuration'!D1097,Table1[TMS],0)),\"\")","v":""},null,null,{"$f":"IFERROR(INDEX(Table1[Room description],MATCH('2) Room configuration'!I1097,Table1[TMS],0)),\"\")","v":""},{"$f":"IFERROR(INDEX(Table1[Bedding],MATCH('2) Room configuration'!I1097,Table1[TMS],0)),\"\")","v":""},{"$f":"IFERROR(INDEX(Table1[Normal occupancy],MATCH(Table2[[#This Row],[New Room Type \n(TMS)]],Table1[TMS],0)),\"\")","v":""},null,null,null,null,"",{"$f":"IF(Table2[[#This Row],['# extra beds that fit in the room2]]<>0,LEFT(Table2[[#This Row],[New Room Type \n(TMS)]],6),\"\")","v":""},null,{"$f":"IF(Table2[[#This Row],['# extra beds that fit in the room]]<>Table2[[#This Row],['# extra beds that fit in the room2]],\"yes\",\"No\")","v":"No"}]
[null,{"$f":"IF(LEN(C1098)>0,'1) Hotel information'!$C$4,\"\")","v":""},null,null,null,{"$f":"IFERROR(INDEX(Table1[Room description],MATCH('2) Room configuration'!D1098,Table1[TMS],0)),\"\")","v":""},{"$f":"IFERROR(INDEX(Table1[Bedding],MATCH('2) Room configuration'!D1098,Table1[TMS],0)),\"\")","v":""},null,null,{"$f":"IFERROR(INDEX(Table1[Room description],MATCH('2) Room configuration'!I1098,Table1[TMS],0)),\"\")","v":""},{"$f":"IFERROR(INDEX(Table1[Bedding],MATCH('2) Room configuration'!I1098,Table1[TMS],0)),\"\")","v":""},{"$f":"IFERROR(INDEX(Table1[Normal occupancy],MATCH(Table2[[#This Row],[New Room Type \n(TMS)]],Table1[TMS],0)),\"\")","v":""},null,null,null,null,"",{"$f":"IF(Table2[[#This Row],['# extra beds that fit in the room2]]<>0,LEFT(Table2[[#This Row],[New Room Type \n(TMS)]],6),\"\")","v":""},null,{"$f":"IF(Table2[[#This Row],['# extra beds that fit in the room]]<>Table2[[#This Row],['# extra beds that fit in the room2]],\"yes\",\"No\")","v":"No"}]
[null,{"$f":"IF(LEN(C1099)>0,'1) Hotel information'!$C$4,\"\")","v":""},null,null,null,{"$f":"IFERROR(INDEX(Table1[Room description],MATCH('2) Room configuration'!D1099,Table1[TMS],0)),\"\")","v":""},{"$f":"IFERROR(INDEX(Table1[Bedding],MATCH('2) Room configuration'!D1099,Table1[TMS],0)),\"\")","v":""},null,null,{"$f":"IFERROR(INDEX(Table1[Room description],MATCH('2) Room configuration'!I1099,Table1[TMS],0)),\"\")","v":""},{"$f":"IFERROR(INDEX(Table1[Bedding],MATCH('2) Room configuration'!I1099,Table1[TMS],0)),\"\")","v":""},{"$f":"IFERROR(INDEX(Table1[Normal occupancy],MATCH(Table2[[#This Row],[New Room Type \n(TMS)]],Table1[TMS],0)),\"\")","v":""},null,null,null,null,"",{"$f":"IF(Table2[[#This Row],['# extra beds that fit in the room2]]<>0,LEFT(Table2[[#This Row],[New Room Type \n(TMS)]],6),\"\")","v":""},null,{"$f":"IF(Table2[[#This Row],['# extra beds that fit in the room]]<>Table2[[#This Row],['# extra beds that fit in the room2]],\"yes\",\"No\")","v":"No"}]
[null,{"$f":"IF(LEN(C1100)>0,'1) Hotel information'!$C$4,\"\")","v":""},null,null,null,{"$f":"IFERROR(INDEX(Table1[Room description],MATCH('2) Room configuration'!D1100,Table1[TMS],0)),\"\")","v":""},{"$f":"IFERROR(INDEX(Table1[Bedding],MATCH('2) Room configuration'!D1100,Table1[TMS],0)),\"\")","v":""},null,null,{"$f":"IFERROR(INDEX(Table1[Room description],MATCH('2) Room configuration'!I1100,Table1[TMS],0)),\"\")","v":""},{"$f":"IFERROR(INDEX(Table1[Bedding],MATCH('2) Room configuration'!I1100,Table1[TMS],0)),\"\")","v":""},{"$f":"IFERROR(INDEX(Table1[Normal occupancy],MATCH(Table2[[#This Row],[New Room Type \n(TMS)]],Table1[TMS],0)),\"\")","v":""},null,null,null,null,"",{"$f":"IF(Table2[[#This Row],['# extra beds that fit in the room2]]<>0,LEFT(Table2[[#This Row],[New Room Type \n(TMS)]],6),\"\")","v":""},null,{"$f":"IF(Table2[[#This Row],['# extra beds that fit in the room]]<>Table2[[#This Row],['# extra beds that fit in the room2]],\"yes\",\"No\")","v":"No"}]
[null,{"$f":"IF(LEN(C1101)>0,'1) Hotel information'!$C$4,\"\")","v":""},null,null,null,{"$f":"IFERROR(INDEX(Table1[Room description],MATCH('2) Room configuration'!D1101,Table1[TMS],0)),\"\")","v":""},{"$f":"IFERROR(INDEX(Table1[Bedding],MATCH('2) Room configuration'!D1101,Table1[TMS],0)),\"\")","v":""},null,null,{"$f":"IFERROR(INDEX(Table1[Room description],MATCH('2) Room configuration'!I1101,Table1[TMS],0)),\"\")","v":""},{"$f":"IFERROR(INDEX(Table1[Bedding],MATCH('2) Room configuration'!I1101,Table1[TMS],0)),\"\")","v":""},{"$f":"IFERROR(INDEX(Table1[Normal occupancy],MATCH(Table2[[#This Row],[New Room Type \n(TMS)]],Table1[TMS],0)),\"\")","v":""},null,null,null,null,"",{"$f":"IF(Table2[[#This Row],['# extra beds that fit in the room2]]<>0,LEFT(Table2[[#This Row],[New Room Type \n(TMS)]],6),\"\")","v":""},null,{"$f":"IF(Table2[[#This Row],['# extra beds that fit in the room]]<>Table2[[#This Row],['# extra beds that fit in the room2]],\"yes\",\"No\")","v":"No"}]
[null,{"$f":"IF(LEN(C1102)>0,'1) Hotel information'!$C$4,\"\")","v":""},null,null,null,{"$f":"IFERROR(INDEX(Table1[Room description],MATCH('2) Room configuration'!D1102,Table1[TMS],0)),\"\")","v":""},{"$f":"IFERROR(INDEX(Table1[Bedding],MATCH('2) Room configuration'!D1102,Table1[TMS],0)),\"\")","v":""},null,null,{"$f":"IFERROR(INDEX(Table1[Room description],MATCH('2) Room configuration'!I1102,Table1[TMS],0)),\"\")","v":""},{"$f":"IFERROR(INDEX(Table1[Bedding],MATCH('2) Room configuration'!I1102,Table1[TMS],0)),\"\")","v":""},{"$f":"IFERROR(INDEX(Table1[Normal occupancy],MATCH(Table2[[#This Row],[New Room Type \n(TMS)]],Table1[TMS],0)),\"\")","v":""},null,null,null,null,"",{"$f":"IF(Table2[[#This Row],['# extra beds that fit in the room2]]<>0,LEFT(Table2[[#This Row],[New Room Type \n(TMS)]],6),\"\")","v":""},null,{"$f":"IF(Table2[[#This Row],['# extra beds that fit in the room]]<>Table2[[#This Row],['# extra beds that fit in the room2]],\"yes\",\"No\")","v":"No"}]
[null,{"$f":"IF(LEN(C1103)>0,'1) Hotel information'!$C$4,\"\")","v":""},null,null,null,{"$f":"IFERROR(INDEX(Table1[Room description],MATCH('2) Room configuration'!D1103,Table1[TMS],0)),\"\")","v":""},{"$f":"IFERROR(INDEX(Table1[Bedding],MATCH('2) Room configuration'!D1103,Table1[TMS],0)),\"\")","v":""},null,null,{"$f":"IFERROR(INDEX(Table1[Room description],MATCH('2) Room configuration'!I1103,Table1[TMS],0)),\"\")","v":""},{"$f":"IFERROR(INDEX(Table1[Bedding],MATCH('2) Room configuration'!I1103,Table1[TMS],0)),\"\")","v":""},{"$f":"IFERROR(INDEX(Table1[Normal occupancy],MATCH(Table2[[#This Row],[New Room Type \n(TMS)]],Table1[TMS],0)),\"\")","v":""},null,null,null,null,"",{"$f":"IF(Table2[[#This Row],['# extra beds that fit in the room2]]<>0,LEFT(Table2[[#This Row],[New Room Type \n(TMS)]],6),\"\")","v":""},null,{"$f":"IF(Table2[[#This Row],['# extra beds that fit in the room]]<>Table2[[#This Row],['# extra beds that fit in the room2]],\"yes\",\"No\")","v":"No"}]
[null,{"$f":"IF(LEN(C1104)>0,'1) Hotel information'!$C$4,\"\")","v":""},null,null,null,{"$f":"IFERROR(INDEX(Table1[Room description],MATCH('2) Room configuration'!D1104,Table1[TMS],0)),\"\")","v":""},{"$f":"IFERROR(INDEX(Table1[Bedding],MATCH('2) Room configuration'!D1104,Table1[TMS],0)),\"\")","v":""},null,null,{"$f":"IFERROR(INDEX(Table1[Room description],MATCH('2) Room configuration'!I1104,Table1[TMS],0)),\"\")","v":""},{"$f":"IFERROR(INDEX(Table1[Bedding],MATCH('2) Room configuration'!I1104,Table1[TMS],0)),\"\")","v":""},{"$f":"IFERROR(INDEX(Table1[Normal occupancy],MATCH(Table2[[#This Row],[New Room Type \n(TMS)]],Table1[TMS],0)),\"\")","v":""},null,null,null,null,"",{"$f":"IF(Table2[[#This Row],['# extra beds that fit in the room2]]<>0,LEFT(Table2[[#This Row],[New Room Type \n(TMS)]],6),\"\")","v":""},null,{"$f":"IF(Table2[[#This Row],['# extra beds that fit in the room]]<>Table2[[#This Row],['# extra beds that fit in the room2]],\"yes\",\"No\")","v":"No"}]
[null,{"$f":"IF(LEN(C1105)>0,'1) Hotel information'!$C$4,\"\")","v":""},null,null,null,{"$f":"IFERROR(INDEX(Table1[Room description],MATCH('2) Room configuration'!D1105,Table1[TMS],0)),\"\")","v":""},{"$f":"IFERROR(INDEX(Table1[Bedding],MATCH('2) Room configuration'!D1105,Table1[TMS],0)),\"\")","v":""},null,null,{"$f":"IFERROR(INDEX(Table1[Room description],MATCH('2) Room configuration'!I1105,Table1[TMS],0)),\"\")","v":""},{"$f":"IFERROR(INDEX(Table1[Bedding],MATCH('2) Room configuration'!I1105,Table1[TMS],0)),\"\")","v":""},{"$f":"IFERROR(INDEX(Table1[Normal occupancy],MATCH(Table2[[#This Row],[New Room Type \n(TMS)]],Table1[TMS],0)),\"\")","v":""},null,null,null,null,"",{"$f":"IF(Table2[[#This Row],['# extra beds that fit in the room2]]<>0,LEFT(Table2[[#This Row],[New Room Type \n(TMS)]],6),\"\")","v":""},null,{"$f":"IF(Table2[[#This Row],['# extra beds that fit in the room]]<>Table2[[#This Row],['# extra beds that fit in the room2]],\"yes\",\"No\")","v":"No"}]
[null,{"$f":"IF(LEN(C1106)>0,'1) Hotel information'!$C$4,\"\")","v":""},null,null,null,{"$f":"IFERROR(INDEX(Table1[Room description],MATCH('2) Room configuration'!D1106,Table1[TMS],0)),\"\")","v":""},{"$f":"IFERROR(INDEX(Table1[Bedding],MATCH('2) Room configuration'!D1106,Table1[TMS],0)),\"\")","v":""},null,null,{"$f":"IFERROR(INDEX(Table1[Room description],MATCH('2) Room configuration'!I1106,Table1[TMS],0)),\"\")","v":""},{"$f":"IFERROR(INDEX(Table1[Bedding],MATCH('2) Room configuration'!I1106,Table1[TMS],0)),\"\")","v":""},{"$f":"IFERROR(INDEX(Table1[Normal occupancy],MATCH(Table2[[#This Row],[New Room Type \n(TMS)]],Table1[TMS],0)),\"\")","v":""},null,null,null,null,"",{"$f":"IF(Table2[[#This Row],['# extra beds that fit in the room2]]<>0,LEFT(Table2[[#This Row],[New Room Type \n(TMS)]],6),\"\")","v":""},null,{"$f":"IF(Table2[[#This Row],['# extra beds that fit in the room]]<>Table2[[#This Row],['# extra beds that fit in the room2]],\"yes\",\"No\")","v":"No"}]
[null,{"$f":"IF(LEN(C1107)>0,'1) Hotel information'!$C$4,\"\")","v":""},null,null,null,{"$f":"IFERROR(INDEX(Table1[Room description],MATCH('2) Room configuration'!D1107,Table1[TMS],0)),\"\")","v":""},{"$f":"IFERROR(INDEX(Table1[Bedding],MATCH('2) Room configuration'!D1107,Table1[TMS],0)),\"\")","v":""},null,null,{"$f":"IFERROR(INDEX(Table1[Room description],MATCH('2) Room configuration'!I1107,Table1[TMS],0)),\"\")","v":""},{"$f":"IFERROR(INDEX(Table1[Bedding],MATCH('2) Room configuration'!I1107,Table1[TMS],0)),\"\")","v":""},{"$f":"IFERROR(INDEX(Table1[Normal occupancy],MATCH(Table2[[#This Row],[New Room Type \n(TMS)]],Table1[TMS],0)),\"\")","v":""},null,null,null,null,"",{"$f":"IF(Table2[[#This Row],['# extra beds that fit in the room2]]<>0,LEFT(Table2[[#This Row],[New Room Type \n(TMS)]],6),\"\")","v":""},null,{"$f":"IF(Table2[[#This Row],['# extra beds that fit in the room]]<>Table2[[#This Row],['# extra beds that fit in the room2]],\"yes\",\"No\")","v":"No"}]
[null,{"$f":"IF(LEN(C1108)>0,'1) Hotel information'!$C$4,\"\")","v":""},null,null,null,{"$f":"IFERROR(INDEX(Table1[Room description],MATCH('2) Room configuration'!D1108,Table1[TMS],0)),\"\")","v":""},{"$f":"IFERROR(INDEX(Table1[Bedding],MATCH('2) Room configuration'!D1108,Table1[TMS],0)),\"\")","v":""},null,null,{"$f":"IFERROR(INDEX(Table1[Room description],MATCH('2) Room configuration'!I1108,Table1[TMS],0)),\"\")","v":""},{"$f":"IFERROR(INDEX(Table1[Bedding],MATCH('2) Room configuration'!I1108,Table1[TMS],0)),\"\")","v":""},{"$f":"IFERROR(INDEX(Table1[Normal occupancy],MATCH(Table2[[#This Row],[New Room Type \n(TMS)]],Table1[TMS],0)),\"\")","v":""},null,null,null,null,"",{"$f":"IF(Table2[[#This Row],['# extra beds that fit in the room2]]<>0,LEFT(Table2[[#This Row],[New Room Type \n(TMS)]],6),\"\")","v":""},null,{"$f":"IF(Table2[[#This Row],['# extra beds that fit in the room]]<>Table2[[#This Row],['# extra beds that fit in the room2]],\"yes\",\"No\")","v":"No"}]
[null,{"$f":"IF(LEN(C1109)>0,'1) Hotel information'!$C$4,\"\")","v":""},null,null,null,{"$f":"IFERROR(INDEX(Table1[Room description],MATCH('2) Room configuration'!D1109,Table1[TMS],0)),\"\")","v":""},{"$f":"IFERROR(INDEX(Table1[Bedding],MATCH('2) Room configuration'!D1109,Table1[TMS],0)),\"\")","v":""},null,null,{"$f":"IFERROR(INDEX(Table1[Room description],MATCH('2) Room configuration'!I1109,Table1[TMS],0)),\"\")","v":""},{"$f":"IFERROR(INDEX(Table1[Bedding],MATCH('2) Room configuration'!I1109,Table1[TMS],0)),\"\")","v":""},{"$f":"IFERROR(INDEX(Table1[Normal occupancy],MATCH(Table2[[#This Row],[New Room Type \n(TMS)]],Table1[TMS],0)),\"\")","v":""},null,null,null,null,"",{"$f":"IF(Table2[[#This Row],['# extra beds that fit in the room2]]<>0,LEFT(Table2[[#This Row],[New Room Type \n(TMS)]],6),\"\")","v":""},null,{"$f":"IF(Table2[[#This Row],['# extra beds that fit in the room]]<>Table2[[#This Row],['# extra beds that fit in the room2]],\"yes\",\"No\")","v":"No"}]
[null,{"$f":"IF(LEN(C1110)>0,'1) Hotel information'!$C$4,\"\")","v":""},null,null,null,{"$f":"IFERROR(INDEX(Table1[Room description],MATCH('2) Room configuration'!D1110,Table1[TMS],0)),\"\")","v":""},{"$f":"IFERROR(INDEX(Table1[Bedding],MATCH('2) Room configuration'!D1110,Table1[TMS],0)),\"\")","v":""},null,null,{"$f":"IFERROR(INDEX(Table1[Room description],MATCH('2) Room configuration'!I1110,Table1[TMS],0)),\"\")","v":""},{"$f":"IFERROR(INDEX(Table1[Bedding],MATCH('2) Room configuration'!I1110,Table1[TMS],0)),\"\")","v":""},{"$f":"IFERROR(INDEX(Table1[Normal occupancy],MATCH(Table2[[#This Row],[New Room Type \n(TMS)]],Table1[TMS],0)),\"\")","v":""},null,null,null,null,"",{"$f":"IF(Table2[[#This Row],['# extra beds that fit in the room2]]<>0,LEFT(Table2[[#This Row],[New Room Type \n(TMS)]],6),\"\")","v":""},null,{"$f":"IF(Table2[[#This Row],['# extra beds that fit in the room]]<>Table2[[#This Row],['# extra beds that fit in the room2]],\"yes\",\"No\")","v":"No"}]
[null,{"$f":"IF(LEN(C1111)>0,'1) Hotel information'!$C$4,\"\")","v":""},null,null,null,{"$f":"IFERROR(INDEX(Table1[Room description],MATCH('2) Room configuration'!D1111,Table1[TMS],0)),\"\")","v":""},{"$f":"IFERROR(INDEX(Table1[Bedding],MATCH('2) Room configuration'!D1111,Table1[TMS],0)),\"\")","v":""},null,null,{"$f":"IFERROR(INDEX(Table1[Room description],MATCH('2) Room configuration'!I1111,Table1[TMS],0)),\"\")","v":""},{"$f":"IFERROR(INDEX(Table1[Bedding],MATCH('2) Room configuration'!I1111,Table1[TMS],0)),\"\")","v":""},{"$f":"IFERROR(INDEX(Table1[Normal occupancy],MATCH(Table2[[#This Row],[New Room Type \n(TMS)]],Table1[TMS],0)),\"\")","v":""},null,null,null,null,{"$f":"IF(LEN(C1111)>0,IF(D1111=I1111,\"No\",\"Yes\"),\"\")","v":""},{"$f":"IF(Table2[[#This Row],['# extra beds that fit in the room2]]<>0,LEFT(Table2[[#This Row],[New Room Type \n(TMS)]],6),\"\")","v":""},null,{"$f":"IF(Table2[[#This Row],['# extra beds that fit in the room]]<>Table2[[#This Row],['# extra beds that fit in the room2]],\"yes\",\"No\")","v":"No"}]
[null,{"$f":"IF(LEN(C1112)>0,'1) Hotel information'!$C$4,\"\")","v":""},null,null,null,{"$f":"IFERROR(INDEX(Table1[Room description],MATCH('2) Room configuration'!D1112,Table1[TMS],0)),\"\")","v":""},{"$f":"IFERROR(INDEX(Table1[Bedding],MATCH('2) Room configuration'!D1112,Table1[TMS],0)),\"\")","v":""},null,null,{"$f":"IFERROR(INDEX(Table1[Room description],MATCH('2) Room configuration'!I1112,Table1[TMS],0)),\"\")","v":""},{"$f":"IFERROR(INDEX(Table1[Bedding],MATCH('2) Room configuration'!I1112,Table1[TMS],0)),\"\")","v":""},{"$f":"IFERROR(INDEX(Table1[Normal occupancy],MATCH(Table2[[#This Row],[New Room Type \n(TMS)]],Table1[TMS],0)),\"\")","v":""},null,null,null,null,"",{"$f":"IF(Table2[[#This Row],['# extra beds that fit in the room2]]<>0,LEFT(Table2[[#This Row],[New Room Type \n(TMS)]],6),\"\")","v":""},null,{"$f":"IF(Table2[[#This Row],['# extra beds that fit in the room]]<>Table2[[#This Row],['# extra beds that fit in the room2]],\"yes\",\"No\")","v":"No"}]
[null,{"$f":"IF(LEN(C1113)>0,'1) Hotel information'!$C$4,\"\")","v":""},null,null,null,{"$f":"IFERROR(INDEX(Table1[Room description],MATCH('2) Room configuration'!D1113,Table1[TMS],0)),\"\")","v":""},{"$f":"IFERROR(INDEX(Table1[Bedding],MATCH('2) Room configuration'!D1113,Table1[TMS],0)),\"\")","v":""},null,null,{"$f":"IFERROR(INDEX(Table1[Room description],MATCH('2) Room configuration'!I1113,Table1[TMS],0)),\"\")","v":""},{"$f":"IFERROR(INDEX(Table1[Bedding],MATCH('2) Room configuration'!I1113,Table1[TMS],0)),\"\")","v":""},{"$f":"IFERROR(INDEX(Table1[Normal occupancy],MATCH(Table2[[#This Row],[New Room Type \n(TMS)]],Table1[TMS],0)),\"\")","v":""},null,null,null,null,"",{"$f":"IF(Table2[[#This Row],['# extra beds that fit in the room2]]<>0,LEFT(Table2[[#This Row],[New Room Type \n(TMS)]],6),\"\")","v":""},null,{"$f":"IF(Table2[[#This Row],['# extra beds that fit in the room]]<>Table2[[#This Row],['# extra beds that fit in the room2]],\"yes\",\"No\")","v":"No"}]
[null,{"$f":"IF(LEN(C1114)>0,'1) Hotel information'!$C$4,\"\")","v":""},null,null,null,{"$f":"IFERROR(INDEX(Table1[Room description],MATCH('2) Room configuration'!D1114,Table1[TMS],0)),\"\")","v":""},{"$f":"IFERROR(INDEX(Table1[Bedding],MATCH('2) Room configuration'!D1114,Table1[TMS],0)),\"\")","v":""},null,null,{"$f":"IFERROR(INDEX(Table1[Room description],MATCH('2) Room configuration'!I1114,Table1[TMS],0)),\"\")","v":""},{"$f":"IFERROR(INDEX(Table1[Bedding],MATCH('2) Room configuration'!I1114,Table1[TMS],0)),\"\")","v":""},{"$f":"IFERROR(INDEX(Table1[Normal occupancy],MATCH(Table2[[#This Row],[New Room Type \n(TMS)]],Table1[TMS],0)),\"\")","v":""},null,null,null,null,"",{"$f":"IF(Table2[[#This Row],['# extra beds that fit in the room2]]<>0,LEFT(Table2[[#This Row],[New Room Type \n(TMS)]],6),\"\")","v":""},null,{"$f":"IF(Table2[[#This Row],['# extra beds that fit in the room]]<>Table2[[#This Row],['# extra beds that fit in the room2]],\"yes\",\"No\")","v":"No"}]
[null,{"$f":"IF(LEN(C1115)>0,'1) Hotel information'!$C$4,\"\")","v":""},null,null,null,{"$f":"IFERROR(INDEX(Table1[Room description],MATCH('2) Room configuration'!D1115,Table1[TMS],0)),\"\")","v":""},{"$f":"IFERROR(INDEX(Table1[Bedding],MATCH('2) Room configuration'!D1115,Table1[TMS],0)),\"\")","v":""},null,null,{"$f":"IFERROR(INDEX(Table1[Room description],MATCH('2) Room configuration'!I1115,Table1[TMS],0)),\"\")","v":""},{"$f":"IFERROR(INDEX(Table1[Bedding],MATCH('2) Room configuration'!I1115,Table1[TMS],0)),\"\")","v":""},{"$f":"IFERROR(INDEX(Table1[Normal occupancy],MATCH(Table2[[#This Row],[New Room Type \n(TMS)]],Table1[TMS],0)),\"\")","v":""},null,null,null,null,"",{"$f":"IF(Table2[[#This Row],['# extra beds that fit in the room2]]<>0,LEFT(Table2[[#This Row],[New Room Type \n(TMS)]],6),\"\")","v":""},null,{"$f":"IF(Table2[[#This Row],['# extra beds that fit in the room]]<>Table2[[#This Row],['# extra beds that fit in the room2]],\"yes\",\"No\")","v":"No"}]
[null,{"$f":"IF(LEN(C1116)>0,'1) Hotel information'!$C$4,\"\")","v":""},null,null,null,{"$f":"IFERROR(INDEX(Table1[Room description],MATCH('2) Room configuration'!D1116,Table1[TMS],0)),\"\")","v":""},{"$f":"IFERROR(INDEX(Table1[Bedding],MATCH('2) Room configuration'!D1116,Table1[TMS],0)),\"\")","v":""},null,null,{"$f":"IFERROR(INDEX(Table1[Room description],MATCH('2) Room configuration'!I1116,Table1[TMS],0)),\"\")","v":""},{"$f":"IFERROR(INDEX(Table1[Bedding],MATCH('2) Room configuration'!I1116,Table1[TMS],0)),\"\")","v":""},{"$f":"IFERROR(INDEX(Table1[Normal occupancy],MATCH(Table2[[#This Row],[New Room Type \n(TMS)]],Table1[TMS],0)),\"\")","v":""},null,null,null,null,"",{"$f":"IF(Table2[[#This Row],['# extra beds that fit in the room2]]<>0,LEFT(Table2[[#This Row],[New Room Type \n(TMS)]],6),\"\")","v":""},null,{"$f":"IF(Table2[[#This Row],['# extra beds that fit in the room]]<>Table2[[#This Row],['# extra beds that fit in the room2]],\"yes\",\"No\")","v":"No"}]
[null,{"$f":"IF(LEN(C1117)>0,'1) Hotel information'!$C$4,\"\")","v":""},null,null,null,{"$f":"IFERROR(INDEX(Table1[Room description],MATCH('2) Room configuration'!D1117,Table1[TMS],0)),\"\")","v":""},{"$f":"IFERROR(INDEX(Table1[Bedding],MATCH('2) Room configuration'!D1117,Table1[TMS],0)),\"\")","v":""},null,null,{"$f":"IFERROR(INDEX(Table1[Room description],MATCH('2) Room configuration'!I1117,Table1[TMS],0)),\"\")","v":""},{"$f":"IFERROR(INDEX(Table1[Bedding],MATCH('2) Room configuration'!I1117,Table1[TMS],0)),\"\")","v":""},{"$f":"IFERROR(INDEX(Table1[Normal occupancy],MATCH(Table2[[#This Row],[New Room Type \n(TMS)]],Table1[TMS],0)),\"\")","v":""},null,null,null,null,"",{"$f":"IF(Table2[[#This Row],['# extra beds that fit in the room2]]<>0,LEFT(Table2[[#This Row],[New Room Type \n(TMS)]],6),\"\")","v":""},null,{"$f":"IF(Table2[[#This Row],['# extra beds that fit in the room]]<>Table2[[#This Row],['# extra beds that fit in the room2]],\"yes\",\"No\")","v":"No"}]
[null,{"$f":"IF(LEN(C1118)>0,'1) Hotel information'!$C$4,\"\")","v":""},null,null,null,{"$f":"IFERROR(INDEX(Table1[Room description],MATCH('2) Room configuration'!D1118,Table1[TMS],0)),\"\")","v":""},{"$f":"IFERROR(INDEX(Table1[Bedding],MATCH('2) Room configuration'!D1118,Table1[TMS],0)),\"\")","v":""},null,null,{"$f":"IFERROR(INDEX(Table1[Room description],MATCH('2) Room configuration'!I1118,Table1[TMS],0)),\"\")","v":""},{"$f":"IFERROR(INDEX(Table1[Bedding],MATCH('2) Room configuration'!I1118,Table1[TMS],0)),\"\")","v":""},{"$f":"IFERROR(INDEX(Table1[Normal occupancy],MATCH(Table2[[#This Row],[New Room Type \n(TMS)]],Table1[TMS],0)),\"\")","v":""},null,null,null,null,"",{"$f":"IF(Table2[[#This Row],['# extra beds that fit in the room2]]<>0,LEFT(Table2[[#This Row],[New Room Type \n(TMS)]],6),\"\")","v":""},null,{"$f":"IF(Table2[[#This Row],['# extra beds that fit in the room]]<>Table2[[#This Row],['# extra beds that fit in the room2]],\"yes\",\"No\")","v":"No"}]
[null,{"$f":"IF(LEN(C1119)>0,'1) Hotel information'!$C$4,\"\")","v":""},null,null,null,{"$f":"IFERROR(INDEX(Table1[Room description],MATCH('2) Room configuration'!D1119,Table1[TMS],0)),\"\")","v":""},{"$f":"IFERROR(INDEX(Table1[Bedding],MATCH('2) Room configuration'!D1119,Table1[TMS],0)),\"\")","v":""},null,null,{"$f":"IFERROR(INDEX(Table1[Room description],MATCH('2) Room configuration'!I1119,Table1[TMS],0)),\"\")","v":""},{"$f":"IFERROR(INDEX(Table1[Bedding],MATCH('2) Room configuration'!I1119,Table1[TMS],0)),\"\")","v":""},{"$f":"IFERROR(INDEX(Table1[Normal occupancy],MATCH(Table2[[#This Row],[New Room Type \n(TMS)]],Table1[TMS],0)),\"\")","v":""},null,null,null,null,"",{"$f":"IF(Table2[[#This Row],['# extra beds that fit in the room2]]<>0,LEFT(Table2[[#This Row],[New Room Type \n(TMS)]],6),\"\")","v":""},null,{"$f":"IF(Table2[[#This Row],['# extra beds that fit in the room]]<>Table2[[#This Row],['# extra beds that fit in the room2]],\"yes\",\"No\")","v":"No"}]
[null,{"$f":"IF(LEN(C1120)>0,'1) Hotel information'!$C$4,\"\")","v":""},null,null,null,{"$f":"IFERROR(INDEX(Table1[Room description],MATCH('2) Room configuration'!D1120,Table1[TMS],0)),\"\")","v":""},{"$f":"IFERROR(INDEX(Table1[Bedding],MATCH('2) Room configuration'!D1120,Table1[TMS],0)),\"\")","v":""},null,null,{"$f":"IFERROR(INDEX(Table1[Room description],MATCH('2) Room configuration'!I1120,Table1[TMS],0)),\"\")","v":""},{"$f":"IFERROR(INDEX(Table1[Bedding],MATCH('2) Room configuration'!I1120,Table1[TMS],0)),\"\")","v":""},{"$f":"IFERROR(INDEX(Table1[Normal occupancy],MATCH(Table2[[#This Row],[New Room Type \n(TMS)]],Table1[TMS],0)),\"\")","v":""},null,null,null,null,"",{"$f":"IF(Table2[[#This Row],['# extra beds that fit in the room2]]<>0,LEFT(Table2[[#This Row],[New Room Type \n(TMS)]],6),\"\")","v":""},null,{"$f":"IF(Table2[[#This Row],['# extra beds that fit in the room]]<>Table2[[#This Row],['# extra beds that fit in the room2]],\"yes\",\"No\")","v":"No"}]
[null,{"$f":"IF(LEN(C1121)>0,'1) Hotel information'!$C$4,\"\")","v":""},null,null,null,{"$f":"IFERROR(INDEX(Table1[Room description],MATCH('2) Room configuration'!D1121,Table1[TMS],0)),\"\")","v":""},{"$f":"IFERROR(INDEX(Table1[Bedding],MATCH('2) Room configuration'!D1121,Table1[TMS],0)),\"\")","v":""},null,null,{"$f":"IFERROR(INDEX(Table1[Room description],MATCH('2) Room configuration'!I1121,Table1[TMS],0)),\"\")","v":""},{"$f":"IFERROR(INDEX(Table1[Bedding],MATCH('2) Room configuration'!I1121,Table1[TMS],0)),\"\")","v":""},{"$f":"IFERROR(INDEX(Table1[Normal occupancy],MATCH(Table2[[#This Row],[New Room Type \n(TMS)]],Table1[TMS],0)),\"\")","v":""},null,null,null,null,"",{"$f":"IF(Table2[[#This Row],['# extra beds that fit in the room2]]<>0,LEFT(Table2[[#This Row],[New Room Type \n(TMS)]],6),\"\")","v":""},null,{"$f":"IF(Table2[[#This Row],['# extra beds that fit in the room]]<>Table2[[#This Row],['# extra beds that fit in the room2]],\"yes\",\"No\")","v":"No"}]
[null,{"$f":"IF(LEN(C1122)>0,'1) Hotel information'!$C$4,\"\")","v":""},null,null,null,{"$f":"IFERROR(INDEX(Table1[Room description],MATCH('2) Room configuration'!D1122,Table1[TMS],0)),\"\")","v":""},{"$f":"IFERROR(INDEX(Table1[Bedding],MATCH('2) Room configuration'!D1122,Table1[TMS],0)),\"\")","v":""},null,null,{"$f":"IFERROR(INDEX(Table1[Room description],MATCH('2) Room configuration'!I1122,Table1[TMS],0)),\"\")","v":""},{"$f":"IFERROR(INDEX(Table1[Bedding],MATCH('2) Room configuration'!I1122,Table1[TMS],0)),\"\")","v":""},{"$f":"IFERROR(INDEX(Table1[Normal occupancy],MATCH(Table2[[#This Row],[New Room Type \n(TMS)]],Table1[TMS],0)),\"\")","v":""},null,null,null,null,"",{"$f":"IF(Table2[[#This Row],['# extra beds that fit in the room2]]<>0,LEFT(Table2[[#This Row],[New Room Type \n(TMS)]],6),\"\")","v":""},null,{"$f":"IF(Table2[[#This Row],['# extra beds that fit in the room]]<>Table2[[#This Row],['# extra beds that fit in the room2]],\"yes\",\"No\")","v":"No"}]
[null,{"$f":"IF(LEN(C1123)>0,'1) Hotel information'!$C$4,\"\")","v":""},null,null,null,{"$f":"IFERROR(INDEX(Table1[Room description],MATCH('2) Room configuration'!D1123,Table1[TMS],0)),\"\")","v":""},{"$f":"IFERROR(INDEX(Table1[Bedding],MATCH('2) Room configuration'!D1123,Table1[TMS],0)),\"\")","v":""},null,null,{"$f":"IFERROR(INDEX(Table1[Room description],MATCH('2) Room configuration'!I1123,Table1[TMS],0)),\"\")","v":""},{"$f":"IFERROR(INDEX(Table1[Bedding],MATCH('2) Room configuration'!I1123,Table1[TMS],0)),\"\")","v":""},{"$f":"IFERROR(INDEX(Table1[Normal occupancy],MATCH(Table2[[#This Row],[New Room Type \n(TMS)]],Table1[TMS],0)),\"\")","v":""},null,null,null,null,"",{"$f":"IF(Table2[[#This Row],['# extra beds that fit in the room2]]<>0,LEFT(Table2[[#This Row],[New Room Type \n(TMS)]],6),\"\")","v":""},null,{"$f":"IF(Table2[[#This Row],['# extra beds that fit in the room]]<>Table2[[#This Row],['# extra beds that fit in the room2]],\"yes\",\"No\")","v":"No"}]
[null,{"$f":"IF(LEN(C1124)>0,'1) Hotel information'!$C$4,\"\")","v":""},null,null,null,{"$f":"IFERROR(INDEX(Table1[Room description],MATCH('2) Room configuration'!D1124,Table1[TMS],0)),\"\")","v":""},{"$f":"IFERROR(INDEX(Table1[Bedding],MATCH('2) Room configuration'!D1124,Table1[TMS],0)),\"\")","v":""},null,null,{"$f":"IFERROR(INDEX(Table1[Room description],MATCH('2) Room configuration'!I1124,Table1[TMS],0)),\"\")","v":""},{"$f":"IFERROR(INDEX(Table1[Bedding],MATCH('2) Room configuration'!I1124,Table1[TMS],0)),\"\")","v":""},{"$f":"IFERROR(INDEX(Table1[Normal occupancy],MATCH(Table2[[#This Row],[New Room Type \n(TMS)]],Table1[TMS],0)),\"\")","v":""},null,null,null,null,"",{"$f":"IF(Table2[[#This Row],['# extra beds that fit in the room2]]<>0,LEFT(Table2[[#This Row],[New Room Type \n(TMS)]],6),\"\")","v":""},null,{"$f":"IF(Table2[[#This Row],['# extra beds that fit in the room]]<>Table2[[#This Row],['# extra beds that fit in the room2]],\"yes\",\"No\")","v":"No"}]
[null,{"$f":"IF(LEN(C1125)>0,'1) Hotel information'!$C$4,\"\")","v":""},null,null,null,{"$f":"IFERROR(INDEX(Table1[Room description],MATCH('2) Room configuration'!D1125,Table1[TMS],0)),\"\")","v":""},{"$f":"IFERROR(INDEX(Table1[Bedding],MATCH('2) Room configuration'!D1125,Table1[TMS],0)),\"\")","v":""},null,null,{"$f":"IFERROR(INDEX(Table1[Room description],MATCH('2) Room configuration'!I1125,Table1[TMS],0)),\"\")","v":""},{"$f":"IFERROR(INDEX(Table1[Bedding],MATCH('2) Room configuration'!I1125,Table1[TMS],0)),\"\")","v":""},{"$f":"IFERROR(INDEX(Table1[Normal occupancy],MATCH(Table2[[#This Row],[New Room Type \n(TMS)]],Table1[TMS],0)),\"\")","v":""},null,null,null,null,"",{"$f":"IF(Table2[[#This Row],['# extra beds that fit in the room2]]<>0,LEFT(Table2[[#This Row],[New Room Type \n(TMS)]],6),\"\")","v":""},null,{"$f":"IF(Table2[[#This Row],['# extra beds that fit in the room]]<>Table2[[#This Row],['# extra beds that fit in the room2]],\"yes\",\"No\")","v":"No"}]
[null,{"$f":"IF(LEN(C1126)>0,'1) Hotel information'!$C$4,\"\")","v":""},null,null,null,{"$f":"IFERROR(INDEX(Table1[Room description],MATCH('2) Room configuration'!D1126,Table1[TMS],0)),\"\")","v":""},{"$f":"IFERROR(INDEX(Table1[Bedding],MATCH('2) Room configuration'!D1126,Table1[TMS],0)),\"\")","v":""},null,null,{"$f":"IFERROR(INDEX(Table1[Room description],MATCH('2) Room configuration'!I1126,Table1[TMS],0)),\"\")","v":""},{"$f":"IFERROR(INDEX(Table1[Bedding],MATCH('2) Room configuration'!I1126,Table1[TMS],0)),\"\")","v":""},{"$f":"IFERROR(INDEX(Table1[Normal occupancy],MATCH(Table2[[#This Row],[New Room Type \n(TMS)]],Table1[TMS],0)),\"\")","v":""},null,null,null,null,"",{"$f":"IF(Table2[[#This Row],['# extra beds that fit in the room2]]<>0,LEFT(Table2[[#This Row],[New Room Type \n(TMS)]],6),\"\")","v":""},null,{"$f":"IF(Table2[[#This Row],['# extra beds that fit in the room]]<>Table2[[#This Row],['# extra beds that fit in the room2]],\"yes\",\"No\")","v":"No"}]
[null,{"$f":"IF(LEN(C1127)>0,'1) Hotel information'!$C$4,\"\")","v":""},null,null,null,{"$f":"IFERROR(INDEX(Table1[Room description],MATCH('2) Room configuration'!D1127,Table1[TMS],0)),\"\")","v":""},{"$f":"IFERROR(INDEX(Table1[Bedding],MATCH('2) Room configuration'!D1127,Table1[TMS],0)),\"\")","v":""},null,null,{"$f":"IFERROR(INDEX(Table1[Room description],MATCH('2) Room configuration'!I1127,Table1[TMS],0)),\"\")","v":""},{"$f":"IFERROR(INDEX(Table1[Bedding],MATCH('2) Room configuration'!I1127,Table1[TMS],0)),\"\")","v":""},{"$f":"IFERROR(INDEX(Table1[Normal occupancy],MATCH(Table2[[#This Row],[New Room Type \n(TMS)]],Table1[TMS],0)),\"\")","v":""},null,null,null,null,"",{"$f":"IF(Table2[[#This Row],['# extra beds that fit in the room2]]<>0,LEFT(Table2[[#This Row],[New Room Type \n(TMS)]],6),\"\")","v":""},null,{"$f":"IF(Table2[[#This Row],['# extra beds that fit in the room]]<>Table2[[#This Row],['# extra beds that fit in the room2]],\"yes\",\"No\")","v":"No"}]
[null,{"$f":"IF(LEN(C1128)>0,'1) Hotel information'!$C$4,\"\")","v":""},null,null,null,{"$f":"IFERROR(INDEX(Table1[Room description],MATCH('2) Room configuration'!D1128,Table1[TMS],0)),\"\")","v":""},{"$f":"IFERROR(INDEX(Table1[Bedding],MATCH('2) Room configuration'!D1128,Table1[TMS],0)),\"\")","v":""},null,null,{"$f":"IFERROR(INDEX(Table1[Room description],MATCH('2) Room configuration'!I1128,Table1[TMS],0)),\"\")","v":""},{"$f":"IFERROR(INDEX(Table1[Bedding],MATCH('2) Room configuration'!I1128,Table1[TMS],0)),\"\")","v":""},{"$f":"IFERROR(INDEX(Table1[Normal occupancy],MATCH(Table2[[#This Row],[New Room Type \n(TMS)]],Table1[TMS],0)),\"\")","v":""},null,null,null,null,"",{"$f":"IF(Table2[[#This Row],['# extra beds that fit in the room2]]<>0,LEFT(Table2[[#This Row],[New Room Type \n(TMS)]],6),\"\")","v":""},null,{"$f":"IF(Table2[[#This Row],['# extra beds that fit in the room]]<>Table2[[#This Row],['# extra beds that fit in the room2]],\"yes\",\"No\")","v":"No"}]
[null,{"$f":"IF(LEN(C1129)>0,'1) Hotel information'!$C$4,\"\")","v":""},null,null,null,{"$f":"IFERROR(INDEX(Table1[Room description],MATCH('2) Room configuration'!D1129,Table1[TMS],0)),\"\")","v":""},{"$f":"IFERROR(INDEX(Table1[Bedding],MATCH('2) Room configuration'!D1129,Table1[TMS],0)),\"\")","v":""},null,null,{"$f":"IFERROR(INDEX(Table1[Room description],MATCH('2) Room configuration'!I1129,Table1[TMS],0)),\"\")","v":""},{"$f":"IFERROR(INDEX(Table1[Bedding],MATCH('2) Room configuration'!I1129,Table1[TMS],0)),\"\")","v":""},{"$f":"IFERROR(INDEX(Table1[Normal occupancy],MATCH(Table2[[#This Row],[New Room Type \n(TMS)]],Table1[TMS],0)),\"\")","v":""},null,null,null,null,"",{"$f":"IF(Table2[[#This Row],['# extra beds that fit in the room2]]<>0,LEFT(Table2[[#This Row],[New Room Type \n(TMS)]],6),\"\")","v":""},null,{"$f":"IF(Table2[[#This Row],['# extra beds that fit in the room]]<>Table2[[#This Row],['# extra beds that fit in the room2]],\"yes\",\"No\")","v":"No"}]
[null,{"$f":"IF(LEN(C1130)>0,'1) Hotel information'!$C$4,\"\")","v":""},null,null,null,{"$f":"IFERROR(INDEX(Table1[Room description],MATCH('2) Room configuration'!D1130,Table1[TMS],0)),\"\")","v":""},{"$f":"IFERROR(INDEX(Table1[Bedding],MATCH('2) Room configuration'!D1130,Table1[TMS],0)),\"\")","v":""},null,null,{"$f":"IFERROR(INDEX(Table1[Room description],MATCH('2) Room configuration'!I1130,Table1[TMS],0)),\"\")","v":""},{"$f":"IFERROR(INDEX(Table1[Bedding],MATCH('2) Room configuration'!I1130,Table1[TMS],0)),\"\")","v":""},{"$f":"IFERROR(INDEX(Table1[Normal occupancy],MATCH(Table2[[#This Row],[New Room Type \n(TMS)]],Table1[TMS],0)),\"\")","v":""},null,null,null,null,"",{"$f":"IF(Table2[[#This Row],['# extra beds that fit in the room2]]<>0,LEFT(Table2[[#This Row],[New Room Type \n(TMS)]],6),\"\")","v":""},null,{"$f":"IF(Table2[[#This Row],['# extra beds that fit in the room]]<>Table2[[#This Row],['# extra beds that fit in the room2]],\"yes\",\"No\")","v":"No"}]
[null,{"$f":"IF(LEN(C1131)>0,'1) Hotel information'!$C$4,\"\")","v":""},null,null,null,{"$f":"IFERROR(INDEX(Table1[Room description],MATCH('2) Room configuration'!D1131,Table1[TMS],0)),\"\")","v":""},{"$f":"IFERROR(INDEX(Table1[Bedding],MATCH('2) Room configuration'!D1131,Table1[TMS],0)),\"\")","v":""},null,null,{"$f":"IFERROR(INDEX(Table1[Room description],MATCH('2) Room configuration'!I1131,Table1[TMS],0)),\"\")","v":""},{"$f":"IFERROR(INDEX(Table1[Bedding],MATCH('2) Room configuration'!I1131,Table1[TMS],0)),\"\")","v":""},{"$f":"IFERROR(INDEX(Table1[Normal occupancy],MATCH(Table2[[#This Row],[New Room Type \n(TMS)]],Table1[TMS],0)),\"\")","v":""},null,null,null,null,"",{"$f":"IF(Table2[[#This Row],['# extra beds that fit in the room2]]<>0,LEFT(Table2[[#This Row],[New Room Type \n(TMS)]],6),\"\")","v":""},null,{"$f":"IF(Table2[[#This Row],['# extra beds that fit in the room]]<>Table2[[#This Row],['# extra beds that fit in the room2]],\"yes\",\"No\")","v":"No"}]
[null,{"$f":"IF(LEN(C1132)>0,'1) Hotel information'!$C$4,\"\")","v":""},null,null,null,{"$f":"IFERROR(INDEX(Table1[Room description],MATCH('2) Room configuration'!D1132,Table1[TMS],0)),\"\")","v":""},{"$f":"IFERROR(INDEX(Table1[Bedding],MATCH('2) Room configuration'!D1132,Table1[TMS],0)),\"\")","v":""},null,null,{"$f":"IFERROR(INDEX(Table1[Room description],MATCH('2) Room configuration'!I1132,Table1[TMS],0)),\"\")","v":""},{"$f":"IFERROR(INDEX(Table1[Bedding],MATCH('2) Room configuration'!I1132,Table1[TMS],0)),\"\")","v":""},{"$f":"IFERROR(INDEX(Table1[Normal occupancy],MATCH(Table2[[#This Row],[New Room Type \n(TMS)]],Table1[TMS],0)),\"\")","v":""},null,null,null,null,"",{"$f":"IF(Table2[[#This Row],['# extra beds that fit in the room2]]<>0,LEFT(Table2[[#This Row],[New Room Type \n(TMS)]],6),\"\")","v":""},null,{"$f":"IF(Table2[[#This Row],['# extra beds that fit in the room]]<>Table2[[#This Row],['# extra beds that fit in the room2]],\"yes\",\"No\")","v":"No"}]
[null,{"$f":"IF(LEN(C1133)>0,'1) Hotel information'!$C$4,\"\")","v":""},null,null,null,{"$f":"IFERROR(INDEX(Table1[Room description],MATCH('2) Room configuration'!D1133,Table1[TMS],0)),\"\")","v":""},{"$f":"IFERROR(INDEX(Table1[Bedding],MATCH('2) Room configuration'!D1133,Table1[TMS],0)),\"\")","v":""},null,null,{"$f":"IFERROR(INDEX(Table1[Room description],MATCH('2) Room configuration'!I1133,Table1[TMS],0)),\"\")","v":""},{"$f":"IFERROR(INDEX(Table1[Bedding],MATCH('2) Room configuration'!I1133,Table1[TMS],0)),\"\")","v":""},{"$f":"IFERROR(INDEX(Table1[Normal occupancy],MATCH(Table2[[#This Row],[New Room Type \n(TMS)]],Table1[TMS],0)),\"\")","v":""},null,null,null,null,"",{"$f":"IF(Table2[[#This Row],['# extra beds that fit in the room2]]<>0,LEFT(Table2[[#This Row],[New Room Type \n(TMS)]],6),\"\")","v":""},null,{"$f":"IF(Table2[[#This Row],['# extra beds that fit in the room]]<>Table2[[#This Row],['# extra beds that fit in the room2]],\"yes\",\"No\")","v":"No"}]
[null,{"$f":"IF(LEN(C1134)>0,'1) Hotel information'!$C$4,\"\")","v":""},null,null,null,{"$f":"IFERROR(INDEX(Table1[Room description],MATCH('2) Room configuration'!D1134,Table1[TMS],0)),\"\")","v":""},{"$f":"IFERROR(INDEX(Table1[Bedding],MATCH('2) Room configuration'!D1134,Table1[TMS],0)),\"\")","v":""},null,null,{"$f":"IFERROR(INDEX(Table1[Room description],MATCH('2) Room configuration'!I1134,Table1[TMS],0)),\"\")","v":""},{"$f":"IFERROR(INDEX(Table1[Bedding],MATCH('2) Room configuration'!I1134,Table1[TMS],0)),\"\")","v":""},{"$f":"IFERROR(INDEX(Table1[Normal occupancy],MATCH(Table2[[#This Row],[New Room Type \n(TMS)]],Table1[TMS],0)),\"\")","v":""},null,null,null,null,"",{"$f":"IF(Table2[[#This Row],['# extra beds that fit in the room2]]<>0,LEFT(Table2[[#This Row],[New Room Type \n(TMS)]],6),\"\")","v":""},null,{"$f":"IF(Table2[[#This Row],['# extra beds that fit in the room]]<>Table2[[#This Row],['# extra beds that fit in the room2]],\"yes\",\"No\")","v":"No"}]
[null,{"$f":"IF(LEN(C1135)>0,'1) Hotel information'!$C$4,\"\")","v":""},null,null,null,{"$f":"IFERROR(INDEX(Table1[Room description],MATCH('2) Room configuration'!D1135,Table1[TMS],0)),\"\")","v":""},{"$f":"IFERROR(INDEX(Table1[Bedding],MATCH('2) Room configuration'!D1135,Table1[TMS],0)),\"\")","v":""},null,null,{"$f":"IFERROR(INDEX(Table1[Room description],MATCH('2) Room configuration'!I1135,Table1[TMS],0)),\"\")","v":""},{"$f":"IFERROR(INDEX(Table1[Bedding],MATCH('2) Room configuration'!I1135,Table1[TMS],0)),\"\")","v":""},{"$f":"IFERROR(INDEX(Table1[Normal occupancy],MATCH(Table2[[#This Row],[New Room Type \n(TMS)]],Table1[TMS],0)),\"\")","v":""},null,null,null,null,"",{"$f":"IF(Table2[[#This Row],['# extra beds that fit in the room2]]<>0,LEFT(Table2[[#This Row],[New Room Type \n(TMS)]],6),\"\")","v":""},null,{"$f":"IF(Table2[[#This Row],['# extra beds that fit in the room]]<>Table2[[#This Row],['# extra beds that fit in the room2]],\"yes\",\"No\")","v":"No"}]
[null,{"$f":"IF(LEN(C1136)>0,'1) Hotel information'!$C$4,\"\")","v":""},null,null,null,{"$f":"IFERROR(INDEX(Table1[Room description],MATCH('2) Room configuration'!D1136,Table1[TMS],0)),\"\")","v":""},{"$f":"IFERROR(INDEX(Table1[Bedding],MATCH('2) Room configuration'!D1136,Table1[TMS],0)),\"\")","v":""},null,null,{"$f":"IFERROR(INDEX(Table1[Room description],MATCH('2) Room configuration'!I1136,Table1[TMS],0)),\"\")","v":""},{"$f":"IFERROR(INDEX(Table1[Bedding],MATCH('2) Room configuration'!I1136,Table1[TMS],0)),\"\")","v":""},{"$f":"IFERROR(INDEX(Table1[Normal occupancy],MATCH(Table2[[#This Row],[New Room Type \n(TMS)]],Table1[TMS],0)),\"\")","v":""},null,null,null,null,"",{"$f":"IF(Table2[[#This Row],['# extra beds that fit in the room2]]<>0,LEFT(Table2[[#This Row],[New Room Type \n(TMS)]],6),\"\")","v":""},null,{"$f":"IF(Table2[[#This Row],['# extra beds that fit in the room]]<>Table2[[#This Row],['# extra beds that fit in the room2]],\"yes\",\"No\")","v":"No"}]
[null,{"$f":"IF(LEN(C1137)>0,'1) Hotel information'!$C$4,\"\")","v":""},null,null,null,{"$f":"IFERROR(INDEX(Table1[Room description],MATCH('2) Room configuration'!D1137,Table1[TMS],0)),\"\")","v":""},{"$f":"IFERROR(INDEX(Table1[Bedding],MATCH('2) Room configuration'!D1137,Table1[TMS],0)),\"\")","v":""},null,null,{"$f":"IFERROR(INDEX(Table1[Room description],MATCH('2) Room configuration'!I1137,Table1[TMS],0)),\"\")","v":""},{"$f":"IFERROR(INDEX(Table1[Bedding],MATCH('2) Room configuration'!I1137,Table1[TMS],0)),\"\")","v":""},{"$f":"IFERROR(INDEX(Table1[Normal occupancy],MATCH(Table2[[#This Row],[New Room Type \n(TMS)]],Table1[TMS],0)),\"\")","v":""},null,null,null,null,"",{"$f":"IF(Table2[[#This Row],['# extra beds that fit in the room2]]<>0,LEFT(Table2[[#This Row],[New Room Type \n(TMS)]],6),\"\")","v":""},null,{"$f":"IF(Table2[[#This Row],['# extra beds that fit in the room]]<>Table2[[#This Row],['# extra beds that fit in the room2]],\"yes\",\"No\")","v":"No"}]
[null,{"$f":"IF(LEN(C1138)>0,'1) Hotel information'!$C$4,\"\")","v":""},null,null,null,{"$f":"IFERROR(INDEX(Table1[Room description],MATCH('2) Room configuration'!D1138,Table1[TMS],0)),\"\")","v":""},{"$f":"IFERROR(INDEX(Table1[Bedding],MATCH('2) Room configuration'!D1138,Table1[TMS],0)),\"\")","v":""},null,null,{"$f":"IFERROR(INDEX(Table1[Room description],MATCH('2) Room configuration'!I1138,Table1[TMS],0)),\"\")","v":""},{"$f":"IFERROR(INDEX(Table1[Bedding],MATCH('2) Room configuration'!I1138,Table1[TMS],0)),\"\")","v":""},{"$f":"IFERROR(INDEX(Table1[Normal occupancy],MATCH(Table2[[#This Row],[New Room Type \n(TMS)]],Table1[TMS],0)),\"\")","v":""},null,null,null,null,"",{"$f":"IF(Table2[[#This Row],['# extra beds that fit in the room2]]<>0,LEFT(Table2[[#This Row],[New Room Type \n(TMS)]],6),\"\")","v":""},null,{"$f":"IF(Table2[[#This Row],['# extra beds that fit in the room]]<>Table2[[#This Row],['# extra beds that fit in the room2]],\"yes\",\"No\")","v":"No"}]
[null,{"$f":"IF(LEN(C1139)>0,'1) Hotel information'!$C$4,\"\")","v":""},null,null,null,{"$f":"IFERROR(INDEX(Table1[Room description],MATCH('2) Room configuration'!D1139,Table1[TMS],0)),\"\")","v":""},{"$f":"IFERROR(INDEX(Table1[Bedding],MATCH('2) Room configuration'!D1139,Table1[TMS],0)),\"\")","v":""},null,null,{"$f":"IFERROR(INDEX(Table1[Room description],MATCH('2) Room configuration'!I1139,Table1[TMS],0)),\"\")","v":""},{"$f":"IFERROR(INDEX(Table1[Bedding],MATCH('2) Room configuration'!I1139,Table1[TMS],0)),\"\")","v":""},{"$f":"IFERROR(INDEX(Table1[Normal occupancy],MATCH(Table2[[#This Row],[New Room Type \n(TMS)]],Table1[TMS],0)),\"\")","v":""},null,null,null,null,"",{"$f":"IF(Table2[[#This Row],['# extra beds that fit in the room2]]<>0,LEFT(Table2[[#This Row],[New Room Type \n(TMS)]],6),\"\")","v":""},null,{"$f":"IF(Table2[[#This Row],['# extra beds that fit in the room]]<>Table2[[#This Row],['# extra beds that fit in the room2]],\"yes\",\"No\")","v":"No"}]
[null,{"$f":"IF(LEN(C1140)>0,'1) Hotel information'!$C$4,\"\")","v":""},null,null,null,{"$f":"IFERROR(INDEX(Table1[Room description],MATCH('2) Room configuration'!D1140,Table1[TMS],0)),\"\")","v":""},{"$f":"IFERROR(INDEX(Table1[Bedding],MATCH('2) Room configuration'!D1140,Table1[TMS],0)),\"\")","v":""},null,null,{"$f":"IFERROR(INDEX(Table1[Room description],MATCH('2) Room configuration'!I1140,Table1[TMS],0)),\"\")","v":""},{"$f":"IFERROR(INDEX(Table1[Bedding],MATCH('2) Room configuration'!I1140,Table1[TMS],0)),\"\")","v":""},{"$f":"IFERROR(INDEX(Table1[Normal occupancy],MATCH(Table2[[#This Row],[New Room Type \n(TMS)]],Table1[TMS],0)),\"\")","v":""},null,null,null,null,"",{"$f":"IF(Table2[[#This Row],['# extra beds that fit in the room2]]<>0,LEFT(Table2[[#This Row],[New Room Type \n(TMS)]],6),\"\")","v":""},null,{"$f":"IF(Table2[[#This Row],['# extra beds that fit in the room]]<>Table2[[#This Row],['# extra beds that fit in the room2]],\"yes\",\"No\")","v":"No"}]
[null,{"$f":"IF(LEN(C1141)>0,'1) Hotel information'!$C$4,\"\")","v":""},null,null,null,{"$f":"IFERROR(INDEX(Table1[Room description],MATCH('2) Room configuration'!D1141,Table1[TMS],0)),\"\")","v":""},{"$f":"IFERROR(INDEX(Table1[Bedding],MATCH('2) Room configuration'!D1141,Table1[TMS],0)),\"\")","v":""},null,null,{"$f":"IFERROR(INDEX(Table1[Room description],MATCH('2) Room configuration'!I1141,Table1[TMS],0)),\"\")","v":""},{"$f":"IFERROR(INDEX(Table1[Bedding],MATCH('2) Room configuration'!I1141,Table1[TMS],0)),\"\")","v":""},{"$f":"IFERROR(INDEX(Table1[Normal occupancy],MATCH(Table2[[#This Row],[New Room Type \n(TMS)]],Table1[TMS],0)),\"\")","v":""},null,null,null,null,"",{"$f":"IF(Table2[[#This Row],['# extra beds that fit in the room2]]<>0,LEFT(Table2[[#This Row],[New Room Type \n(TMS)]],6),\"\")","v":""},null,{"$f":"IF(Table2[[#This Row],['# extra beds that fit in the room]]<>Table2[[#This Row],['# extra beds that fit in the room2]],\"yes\",\"No\")","v":"No"}]
[null,{"$f":"IF(LEN(C1142)>0,'1) Hotel information'!$C$4,\"\")","v":""},null,null,null,{"$f":"IFERROR(INDEX(Table1[Room description],MATCH('2) Room configuration'!D1142,Table1[TMS],0)),\"\")","v":""},{"$f":"IFERROR(INDEX(Table1[Bedding],MATCH('2) Room configuration'!D1142,Table1[TMS],0)),\"\")","v":""},null,null,{"$f":"IFERROR(INDEX(Table1[Room description],MATCH('2) Room configuration'!I1142,Table1[TMS],0)),\"\")","v":""},{"$f":"IFERROR(INDEX(Table1[Bedding],MATCH('2) Room configuration'!I1142,Table1[TMS],0)),\"\")","v":""},{"$f":"IFERROR(INDEX(Table1[Normal occupancy],MATCH(Table2[[#This Row],[New Room Type \n(TMS)]],Table1[TMS],0)),\"\")","v":""},null,null,null,null,"",{"$f":"IF(Table2[[#This Row],['# extra beds that fit in the room2]]<>0,LEFT(Table2[[#This Row],[New Room Type \n(TMS)]],6),\"\")","v":""},null,{"$f":"IF(Table2[[#This Row],['# extra beds that fit in the room]]<>Table2[[#This Row],['# extra beds that fit in the room2]],\"yes\",\"No\")","v":"No"}]
[null,{"$f":"IF(LEN(C1143)>0,'1) Hotel information'!$C$4,\"\")","v":""},null,null,null,{"$f":"IFERROR(INDEX(Table1[Room description],MATCH('2) Room configuration'!D1143,Table1[TMS],0)),\"\")","v":""},{"$f":"IFERROR(INDEX(Table1[Bedding],MATCH('2) Room configuration'!D1143,Table1[TMS],0)),\"\")","v":""},null,null,{"$f":"IFERROR(INDEX(Table1[Room description],MATCH('2) Room configuration'!I1143,Table1[TMS],0)),\"\")","v":""},{"$f":"IFERROR(INDEX(Table1[Bedding],MATCH('2) Room configuration'!I1143,Table1[TMS],0)),\"\")","v":""},{"$f":"IFERROR(INDEX(Table1[Normal occupancy],MATCH(Table2[[#This Row],[New Room Type \n(TMS)]],Table1[TMS],0)),\"\")","v":""},null,null,null,null,"",{"$f":"IF(Table2[[#This Row],['# extra beds that fit in the room2]]<>0,LEFT(Table2[[#This Row],[New Room Type \n(TMS)]],6),\"\")","v":""},null,{"$f":"IF(Table2[[#This Row],['# extra beds that fit in the room]]<>Table2[[#This Row],['# extra beds that fit in the room2]],\"yes\",\"No\")","v":"No"}]
[null,{"$f":"IF(LEN(C1144)>0,'1) Hotel information'!$C$4,\"\")","v":""},null,null,null,{"$f":"IFERROR(INDEX(Table1[Room description],MATCH('2) Room configuration'!D1144,Table1[TMS],0)),\"\")","v":""},{"$f":"IFERROR(INDEX(Table1[Bedding],MATCH('2) Room configuration'!D1144,Table1[TMS],0)),\"\")","v":""},null,null,{"$f":"IFERROR(INDEX(Table1[Room description],MATCH('2) Room configuration'!I1144,Table1[TMS],0)),\"\")","v":""},{"$f":"IFERROR(INDEX(Table1[Bedding],MATCH('2) Room configuration'!I1144,Table1[TMS],0)),\"\")","v":""},{"$f":"IFERROR(INDEX(Table1[Normal occupancy],MATCH(Table2[[#This Row],[New Room Type \n(TMS)]],Table1[TMS],0)),\"\")","v":""},null,null,null,null,"",{"$f":"IF(Table2[[#This Row],['# extra beds that fit in the room2]]<>0,LEFT(Table2[[#This Row],[New Room Type \n(TMS)]],6),\"\")","v":""},null,{"$f":"IF(Table2[[#This Row],['# extra beds that fit in the room]]<>Table2[[#This Row],['# extra beds that fit in the room2]],\"yes\",\"No\")","v":"No"}]
[null,{"$f":"IF(LEN(C1145)>0,'1) Hotel information'!$C$4,\"\")","v":""},null,null,null,{"$f":"IFERROR(INDEX(Table1[Room description],MATCH('2) Room configuration'!D1145,Table1[TMS],0)),\"\")","v":""},{"$f":"IFERROR(INDEX(Table1[Bedding],MATCH('2) Room configuration'!D1145,Table1[TMS],0)),\"\")","v":""},null,null,{"$f":"IFERROR(INDEX(Table1[Room description],MATCH('2) Room configuration'!I1145,Table1[TMS],0)),\"\")","v":""},{"$f":"IFERROR(INDEX(Table1[Bedding],MATCH('2) Room configuration'!I1145,Table1[TMS],0)),\"\")","v":""},{"$f":"IFERROR(INDEX(Table1[Normal occupancy],MATCH(Table2[[#This Row],[New Room Type \n(TMS)]],Table1[TMS],0)),\"\")","v":""},null,null,null,null,"",{"$f":"IF(Table2[[#This Row],['# extra beds that fit in the room2]]<>0,LEFT(Table2[[#This Row],[New Room Type \n(TMS)]],6),\"\")","v":""},null,{"$f":"IF(Table2[[#This Row],['# extra beds that fit in the room]]<>Table2[[#This Row],['# extra beds that fit in the room2]],\"yes\",\"No\")","v":"No"}]
[null,{"$f":"IF(LEN(C1146)>0,'1) Hotel information'!$C$4,\"\")","v":""},null,null,null,{"$f":"IFERROR(INDEX(Table1[Room description],MATCH('2) Room configuration'!D1146,Table1[TMS],0)),\"\")","v":""},{"$f":"IFERROR(INDEX(Table1[Bedding],MATCH('2) Room configuration'!D1146,Table1[TMS],0)),\"\")","v":""},null,null,{"$f":"IFERROR(INDEX(Table1[Room description],MATCH('2) Room configuration'!I1146,Table1[TMS],0)),\"\")","v":""},{"$f":"IFERROR(INDEX(Table1[Bedding],MATCH('2) Room configuration'!I1146,Table1[TMS],0)),\"\")","v":""},{"$f":"IFERROR(INDEX(Table1[Normal occupancy],MATCH(Table2[[#This Row],[New Room Type \n(TMS)]],Table1[TMS],0)),\"\")","v":""},null,null,null,null,"",{"$f":"IF(Table2[[#This Row],['# extra beds that fit in the room2]]<>0,LEFT(Table2[[#This Row],[New Room Type \n(TMS)]],6),\"\")","v":""},null,{"$f":"IF(Table2[[#This Row],['# extra beds that fit in the room]]<>Table2[[#This Row],['# extra beds that fit in the room2]],\"yes\",\"No\")","v":"No"}]
[null,{"$f":"IF(LEN(C1147)>0,'1) Hotel information'!$C$4,\"\")","v":""},null,null,null,{"$f":"IFERROR(INDEX(Table1[Room description],MATCH('2) Room configuration'!D1147,Table1[TMS],0)),\"\")","v":""},{"$f":"IFERROR(INDEX(Table1[Bedding],MATCH('2) Room configuration'!D1147,Table1[TMS],0)),\"\")","v":""},null,null,{"$f":"IFERROR(INDEX(Table1[Room description],MATCH('2) Room configuration'!I1147,Table1[TMS],0)),\"\")","v":""},{"$f":"IFERROR(INDEX(Table1[Bedding],MATCH('2) Room configuration'!I1147,Table1[TMS],0)),\"\")","v":""},{"$f":"IFERROR(INDEX(Table1[Normal occupancy],MATCH(Table2[[#This Row],[New Room Type \n(TMS)]],Table1[TMS],0)),\"\")","v":""},null,null,null,null,"",{"$f":"IF(Table2[[#This Row],['# extra beds that fit in the room2]]<>0,LEFT(Table2[[#This Row],[New Room Type \n(TMS)]],6),\"\")","v":""},null,{"$f":"IF(Table2[[#This Row],['# extra beds that fit in the room]]<>Table2[[#This Row],['# extra beds that fit in the room2]],\"yes\",\"No\")","v":"No"}]
[null,{"$f":"IF(LEN(C1148)>0,'1) Hotel information'!$C$4,\"\")","v":""},null,null,null,{"$f":"IFERROR(INDEX(Table1[Room description],MATCH('2) Room configuration'!D1148,Table1[TMS],0)),\"\")","v":""},{"$f":"IFERROR(INDEX(Table1[Bedding],MATCH('2) Room configuration'!D1148,Table1[TMS],0)),\"\")","v":""},null,null,{"$f":"IFERROR(INDEX(Table1[Room description],MATCH('2) Room configuration'!I1148,Table1[TMS],0)),\"\")","v":""},{"$f":"IFERROR(INDEX(Table1[Bedding],MATCH('2) Room configuration'!I1148,Table1[TMS],0)),\"\")","v":""},{"$f":"IFERROR(INDEX(Table1[Normal occupancy],MATCH(Table2[[#This Row],[New Room Type \n(TMS)]],Table1[TMS],0)),\"\")","v":""},null,null,null,null,"",{"$f":"IF(Table2[[#This Row],['# extra beds that fit in the room2]]<>0,LEFT(Table2[[#This Row],[New Room Type \n(TMS)]],6),\"\")","v":""},null,{"$f":"IF(Table2[[#This Row],['# extra beds that fit in the room]]<>Table2[[#This Row],['# extra beds that fit in the room2]],\"yes\",\"No\")","v":"No"}]
[null,{"$f":"IF(LEN(C1149)>0,'1) Hotel information'!$C$4,\"\")","v":""},null,null,null,{"$f":"IFERROR(INDEX(Table1[Room description],MATCH('2) Room configuration'!D1149,Table1[TMS],0)),\"\")","v":""},{"$f":"IFERROR(INDEX(Table1[Bedding],MATCH('2) Room configuration'!D1149,Table1[TMS],0)),\"\")","v":""},null,null,{"$f":"IFERROR(INDEX(Table1[Room description],MATCH('2) Room configuration'!I1149,Table1[TMS],0)),\"\")","v":""},{"$f":"IFERROR(INDEX(Table1[Bedding],MATCH('2) Room configuration'!I1149,Table1[TMS],0)),\"\")","v":""},{"$f":"IFERROR(INDEX(Table1[Normal occupancy],MATCH(Table2[[#This Row],[New Room Type \n(TMS)]],Table1[TMS],0)),\"\")","v":""},null,null,null,null,"",{"$f":"IF(Table2[[#This Row],['# extra beds that fit in the room2]]<>0,LEFT(Table2[[#This Row],[New Room Type \n(TMS)]],6),\"\")","v":""},null,{"$f":"IF(Table2[[#This Row],['# extra beds that fit in the room]]<>Table2[[#This Row],['# extra beds that fit in the room2]],\"yes\",\"No\")","v":"No"}]
[null,{"$f":"IF(LEN(C1150)>0,'1) Hotel information'!$C$4,\"\")","v":""},null,null,null,{"$f":"IFERROR(INDEX(Table1[Room description],MATCH('2) Room configuration'!D1150,Table1[TMS],0)),\"\")","v":""},{"$f":"IFERROR(INDEX(Table1[Bedding],MATCH('2) Room configuration'!D1150,Table1[TMS],0)),\"\")","v":""},null,null,{"$f":"IFERROR(INDEX(Table1[Room description],MATCH('2) Room configuration'!I1150,Table1[TMS],0)),\"\")","v":""},{"$f":"IFERROR(INDEX(Table1[Bedding],MATCH('2) Room configuration'!I1150,Table1[TMS],0)),\"\")","v":""},{"$f":"IFERROR(INDEX(Table1[Normal occupancy],MATCH(Table2[[#This Row],[New Room Type \n(TMS)]],Table1[TMS],0)),\"\")","v":""},null,null,null,null,"",{"$f":"IF(Table2[[#This Row],['# extra beds that fit in the room2]]<>0,LEFT(Table2[[#This Row],[New Room Type \n(TMS)]],6),\"\")","v":""},null,{"$f":"IF(Table2[[#This Row],['# extra beds that fit in the room]]<>Table2[[#This Row],['# extra beds that fit in the room2]],\"yes\",\"No\")","v":"No"}]
[null,{"$f":"IF(LEN(C1151)>0,'1) Hotel information'!$C$4,\"\")","v":""},null,null,null,{"$f":"IFERROR(INDEX(Table1[Room description],MATCH('2) Room configuration'!D1151,Table1[TMS],0)),\"\")","v":""},{"$f":"IFERROR(INDEX(Table1[Bedding],MATCH('2) Room configuration'!D1151,Table1[TMS],0)),\"\")","v":""},null,null,{"$f":"IFERROR(INDEX(Table1[Room description],MATCH('2) Room configuration'!I1151,Table1[TMS],0)),\"\")","v":""},{"$f":"IFERROR(INDEX(Table1[Bedding],MATCH('2) Room configuration'!I1151,Table1[TMS],0)),\"\")","v":""},{"$f":"IFERROR(INDEX(Table1[Normal occupancy],MATCH(Table2[[#This Row],[New Room Type \n(TMS)]],Table1[TMS],0)),\"\")","v":""},null,null,null,null,"",{"$f":"IF(Table2[[#This Row],['# extra beds that fit in the room2]]<>0,LEFT(Table2[[#This Row],[New Room Type \n(TMS)]],6),\"\")","v":""},null,{"$f":"IF(Table2[[#This Row],['# extra beds that fit in the room]]<>Table2[[#This Row],['# extra beds that fit in the room2]],\"yes\",\"No\")","v":"No"}]
[null,{"$f":"IF(LEN(C1152)>0,'1) Hotel information'!$C$4,\"\")","v":""},null,null,null,{"$f":"IFERROR(INDEX(Table1[Room description],MATCH('2) Room configuration'!D1152,Table1[TMS],0)),\"\")","v":""},{"$f":"IFERROR(INDEX(Table1[Bedding],MATCH('2) Room configuration'!D1152,Table1[TMS],0)),\"\")","v":""},null,null,{"$f":"IFERROR(INDEX(Table1[Room description],MATCH('2) Room configuration'!I1152,Table1[TMS],0)),\"\")","v":""},{"$f":"IFERROR(INDEX(Table1[Bedding],MATCH('2) Room configuration'!I1152,Table1[TMS],0)),\"\")","v":""},{"$f":"IFERROR(INDEX(Table1[Normal occupancy],MATCH(Table2[[#This Row],[New Room Type \n(TMS)]],Table1[TMS],0)),\"\")","v":""},null,null,null,null,"",{"$f":"IF(Table2[[#This Row],['# extra beds that fit in the room2]]<>0,LEFT(Table2[[#This Row],[New Room Type \n(TMS)]],6),\"\")","v":""},null,{"$f":"IF(Table2[[#This Row],['# extra beds that fit in the room]]<>Table2[[#This Row],['# extra beds that fit in the room2]],\"yes\",\"No\")","v":"No"}]
[null,{"$f":"IF(LEN(C1153)>0,'1) Hotel information'!$C$4,\"\")","v":""},null,null,null,{"$f":"IFERROR(INDEX(Table1[Room description],MATCH('2) Room configuration'!D1153,Table1[TMS],0)),\"\")","v":""},{"$f":"IFERROR(INDEX(Table1[Bedding],MATCH('2) Room configuration'!D1153,Table1[TMS],0)),\"\")","v":""},null,null,{"$f":"IFERROR(INDEX(Table1[Room description],MATCH('2) Room configuration'!I1153,Table1[TMS],0)),\"\")","v":""},{"$f":"IFERROR(INDEX(Table1[Bedding],MATCH('2) Room configuration'!I1153,Table1[TMS],0)),\"\")","v":""},{"$f":"IFERROR(INDEX(Table1[Normal occupancy],MATCH(Table2[[#This Row],[New Room Type \n(TMS)]],Table1[TMS],0)),\"\")","v":""},null,null,null,null,"",{"$f":"IF(Table2[[#This Row],['# extra beds that fit in the room2]]<>0,LEFT(Table2[[#This Row],[New Room Type \n(TMS)]],6),\"\")","v":""},null,{"$f":"IF(Table2[[#This Row],['# extra beds that fit in the room]]<>Table2[[#This Row],['# extra beds that fit in the room2]],\"yes\",\"No\")","v":"No"}]
[null,{"$f":"IF(LEN(C1154)>0,'1) Hotel information'!$C$4,\"\")","v":""},null,null,null,{"$f":"IFERROR(INDEX(Table1[Room description],MATCH('2) Room configuration'!D1154,Table1[TMS],0)),\"\")","v":""},{"$f":"IFERROR(INDEX(Table1[Bedding],MATCH('2) Room configuration'!D1154,Table1[TMS],0)),\"\")","v":""},null,null,{"$f":"IFERROR(INDEX(Table1[Room description],MATCH('2) Room configuration'!I1154,Table1[TMS],0)),\"\")","v":""},{"$f":"IFERROR(INDEX(Table1[Bedding],MATCH('2) Room configuration'!I1154,Table1[TMS],0)),\"\")","v":""},{"$f":"IFERROR(INDEX(Table1[Normal occupancy],MATCH(Table2[[#This Row],[New Room Type \n(TMS)]],Table1[TMS],0)),\"\")","v":""},null,null,null,null,"",{"$f":"IF(Table2[[#This Row],['# extra beds that fit in the room2]]<>0,LEFT(Table2[[#This Row],[New Room Type \n(TMS)]],6),\"\")","v":""},null,{"$f":"IF(Table2[[#This Row],['# extra beds that fit in the room]]<>Table2[[#This Row],['# extra beds that fit in the room2]],\"yes\",\"No\")","v":"No"}]
[null,{"$f":"IF(LEN(C1155)>0,'1) Hotel information'!$C$4,\"\")","v":""},null,null,null,{"$f":"IFERROR(INDEX(Table1[Room description],MATCH('2) Room configuration'!D1155,Table1[TMS],0)),\"\")","v":""},{"$f":"IFERROR(INDEX(Table1[Bedding],MATCH('2) Room configuration'!D1155,Table1[TMS],0)),\"\")","v":""},null,null,{"$f":"IFERROR(INDEX(Table1[Room description],MATCH('2) Room configuration'!I1155,Table1[TMS],0)),\"\")","v":""},{"$f":"IFERROR(INDEX(Table1[Bedding],MATCH('2) Room configuration'!I1155,Table1[TMS],0)),\"\")","v":""},{"$f":"IFERROR(INDEX(Table1[Normal occupancy],MATCH(Table2[[#This Row],[New Room Type \n(TMS)]],Table1[TMS],0)),\"\")","v":""},null,null,null,null,"",{"$f":"IF(Table2[[#This Row],['# extra beds that fit in the room2]]<>0,LEFT(Table2[[#This Row],[New Room Type \n(TMS)]],6),\"\")","v":""},null,{"$f":"IF(Table2[[#This Row],['# extra beds that fit in the room]]<>Table2[[#This Row],['# extra beds that fit in the room2]],\"yes\",\"No\")","v":"No"}]
[null,{"$f":"IF(LEN(C1156)>0,'1) Hotel information'!$C$4,\"\")","v":""},null,null,null,{"$f":"IFERROR(INDEX(Table1[Room description],MATCH('2) Room configuration'!D1156,Table1[TMS],0)),\"\")","v":""},{"$f":"IFERROR(INDEX(Table1[Bedding],MATCH('2) Room configuration'!D1156,Table1[TMS],0)),\"\")","v":""},null,null,{"$f":"IFERROR(INDEX(Table1[Room description],MATCH('2) Room configuration'!I1156,Table1[TMS],0)),\"\")","v":""},{"$f":"IFERROR(INDEX(Table1[Bedding],MATCH('2) Room configuration'!I1156,Table1[TMS],0)),\"\")","v":""},{"$f":"IFERROR(INDEX(Table1[Normal occupancy],MATCH(Table2[[#This Row],[New Room Type \n(TMS)]],Table1[TMS],0)),\"\")","v":""},null,null,null,null,"",{"$f":"IF(Table2[[#This Row],['# extra beds that fit in the room2]]<>0,LEFT(Table2[[#This Row],[New Room Type \n(TMS)]],6),\"\")","v":""},null,{"$f":"IF(Table2[[#This Row],['# extra beds that fit in the room]]<>Table2[[#This Row],['# extra beds that fit in the room2]],\"yes\",\"No\")","v":"No"}]
[null,{"$f":"IF(LEN(C1157)>0,'1) Hotel information'!$C$4,\"\")","v":""},null,null,null,{"$f":"IFERROR(INDEX(Table1[Room description],MATCH('2) Room configuration'!D1157,Table1[TMS],0)),\"\")","v":""},{"$f":"IFERROR(INDEX(Table1[Bedding],MATCH('2) Room configuration'!D1157,Table1[TMS],0)),\"\")","v":""},null,null,{"$f":"IFERROR(INDEX(Table1[Room description],MATCH('2) Room configuration'!I1157,Table1[TMS],0)),\"\")","v":""},{"$f":"IFERROR(INDEX(Table1[Bedding],MATCH('2) Room configuration'!I1157,Table1[TMS],0)),\"\")","v":""},{"$f":"IFERROR(INDEX(Table1[Normal occupancy],MATCH(Table2[[#This Row],[New Room Type \n(TMS)]],Table1[TMS],0)),\"\")","v":""},null,null,null,null,"",{"$f":"IF(Table2[[#This Row],['# extra beds that fit in the room2]]<>0,LEFT(Table2[[#This Row],[New Room Type \n(TMS)]],6),\"\")","v":""},null,{"$f":"IF(Table2[[#This Row],['# extra beds that fit in the room]]<>Table2[[#This Row],['# extra beds that fit in the room2]],\"yes\",\"No\")","v":"No"}]
[null,{"$f":"IF(LEN(C1158)>0,'1) Hotel information'!$C$4,\"\")","v":""},null,null,null,{"$f":"IFERROR(INDEX(Table1[Room description],MATCH('2) Room configuration'!D1158,Table1[TMS],0)),\"\")","v":""},{"$f":"IFERROR(INDEX(Table1[Bedding],MATCH('2) Room configuration'!D1158,Table1[TMS],0)),\"\")","v":""},null,null,{"$f":"IFERROR(INDEX(Table1[Room description],MATCH('2) Room configuration'!I1158,Table1[TMS],0)),\"\")","v":""},{"$f":"IFERROR(INDEX(Table1[Bedding],MATCH('2) Room configuration'!I1158,Table1[TMS],0)),\"\")","v":""},{"$f":"IFERROR(INDEX(Table1[Normal occupancy],MATCH(Table2[[#This Row],[New Room Type \n(TMS)]],Table1[TMS],0)),\"\")","v":""},null,null,null,null,"",{"$f":"IF(Table2[[#This Row],['# extra beds that fit in the room2]]<>0,LEFT(Table2[[#This Row],[New Room Type \n(TMS)]],6),\"\")","v":""},null,{"$f":"IF(Table2[[#This Row],['# extra beds that fit in the room]]<>Table2[[#This Row],['# extra beds that fit in the room2]],\"yes\",\"No\")","v":"No"}]
[null,{"$f":"IF(LEN(C1159)>0,'1) Hotel information'!$C$4,\"\")","v":""},null,null,null,{"$f":"IFERROR(INDEX(Table1[Room description],MATCH('2) Room configuration'!D1159,Table1[TMS],0)),\"\")","v":""},{"$f":"IFERROR(INDEX(Table1[Bedding],MATCH('2) Room configuration'!D1159,Table1[TMS],0)),\"\")","v":""},null,null,{"$f":"IFERROR(INDEX(Table1[Room description],MATCH('2) Room configuration'!I1159,Table1[TMS],0)),\"\")","v":""},{"$f":"IFERROR(INDEX(Table1[Bedding],MATCH('2) Room configuration'!I1159,Table1[TMS],0)),\"\")","v":""},{"$f":"IFERROR(INDEX(Table1[Normal occupancy],MATCH(Table2[[#This Row],[New Room Type \n(TMS)]],Table1[TMS],0)),\"\")","v":""},null,null,null,null,"",{"$f":"IF(Table2[[#This Row],['# extra beds that fit in the room2]]<>0,LEFT(Table2[[#This Row],[New Room Type \n(TMS)]],6),\"\")","v":""},null,{"$f":"IF(Table2[[#This Row],['# extra beds that fit in the room]]<>Table2[[#This Row],['# extra beds that fit in the room2]],\"yes\",\"No\")","v":"No"}]
[null,{"$f":"IF(LEN(C1160)>0,'1) Hotel information'!$C$4,\"\")","v":""},null,null,null,{"$f":"IFERROR(INDEX(Table1[Room description],MATCH('2) Room configuration'!D1160,Table1[TMS],0)),\"\")","v":""},{"$f":"IFERROR(INDEX(Table1[Bedding],MATCH('2) Room configuration'!D1160,Table1[TMS],0)),\"\")","v":""},null,null,{"$f":"IFERROR(INDEX(Table1[Room description],MATCH('2) Room configuration'!I1160,Table1[TMS],0)),\"\")","v":""},{"$f":"IFERROR(INDEX(Table1[Bedding],MATCH('2) Room configuration'!I1160,Table1[TMS],0)),\"\")","v":""},{"$f":"IFERROR(INDEX(Table1[Normal occupancy],MATCH(Table2[[#This Row],[New Room Type \n(TMS)]],Table1[TMS],0)),\"\")","v":""},null,null,null,null,"",{"$f":"IF(Table2[[#This Row],['# extra beds that fit in the room2]]<>0,LEFT(Table2[[#This Row],[New Room Type \n(TMS)]],6),\"\")","v":""},null,{"$f":"IF(Table2[[#This Row],['# extra beds that fit in the room]]<>Table2[[#This Row],['# extra beds that fit in the room2]],\"yes\",\"No\")","v":"No"}]
[null,{"$f":"IF(LEN(C1161)>0,'1) Hotel information'!$C$4,\"\")","v":""},null,null,null,{"$f":"IFERROR(INDEX(Table1[Room description],MATCH('2) Room configuration'!D1161,Table1[TMS],0)),\"\")","v":""},{"$f":"IFERROR(INDEX(Table1[Bedding],MATCH('2) Room configuration'!D1161,Table1[TMS],0)),\"\")","v":""},null,null,{"$f":"IFERROR(INDEX(Table1[Room description],MATCH('2) Room configuration'!I1161,Table1[TMS],0)),\"\")","v":""},{"$f":"IFERROR(INDEX(Table1[Bedding],MATCH('2) Room configuration'!I1161,Table1[TMS],0)),\"\")","v":""},{"$f":"IFERROR(INDEX(Table1[Normal occupancy],MATCH(Table2[[#This Row],[New Room Type \n(TMS)]],Table1[TMS],0)),\"\")","v":""},null,null,null,null,"",{"$f":"IF(Table2[[#This Row],['# extra beds that fit in the room2]]<>0,LEFT(Table2[[#This Row],[New Room Type \n(TMS)]],6),\"\")","v":""},null,{"$f":"IF(Table2[[#This Row],['# extra beds that fit in the room]]<>Table2[[#This Row],['# extra beds that fit in the room2]],\"yes\",\"No\")","v":"No"}]
[null,{"$f":"IF(LEN(C1162)>0,'1) Hotel information'!$C$4,\"\")","v":""},null,null,null,{"$f":"IFERROR(INDEX(Table1[Room description],MATCH('2) Room configuration'!D1162,Table1[TMS],0)),\"\")","v":""},{"$f":"IFERROR(INDEX(Table1[Bedding],MATCH('2) Room configuration'!D1162,Table1[TMS],0)),\"\")","v":""},null,null,{"$f":"IFERROR(INDEX(Table1[Room description],MATCH('2) Room configuration'!I1162,Table1[TMS],0)),\"\")","v":""},{"$f":"IFERROR(INDEX(Table1[Bedding],MATCH('2) Room configuration'!I1162,Table1[TMS],0)),\"\")","v":""},{"$f":"IFERROR(INDEX(Table1[Normal occupancy],MATCH(Table2[[#This Row],[New Room Type \n(TMS)]],Table1[TMS],0)),\"\")","v":""},null,null,null,null,"",{"$f":"IF(Table2[[#This Row],['# extra beds that fit in the room2]]<>0,LEFT(Table2[[#This Row],[New Room Type \n(TMS)]],6),\"\")","v":""},null,{"$f":"IF(Table2[[#This Row],['# extra beds that fit in the room]]<>Table2[[#This Row],['# extra beds that fit in the room2]],\"yes\",\"No\")","v":"No"}]
[null,{"$f":"IF(LEN(C1163)>0,'1) Hotel information'!$C$4,\"\")","v":""},null,null,null,{"$f":"IFERROR(INDEX(Table1[Room description],MATCH('2) Room configuration'!D1163,Table1[TMS],0)),\"\")","v":""},{"$f":"IFERROR(INDEX(Table1[Bedding],MATCH('2) Room configuration'!D1163,Table1[TMS],0)),\"\")","v":""},null,null,{"$f":"IFERROR(INDEX(Table1[Room description],MATCH('2) Room configuration'!I1163,Table1[TMS],0)),\"\")","v":""},{"$f":"IFERROR(INDEX(Table1[Bedding],MATCH('2) Room configuration'!I1163,Table1[TMS],0)),\"\")","v":""},{"$f":"IFERROR(INDEX(Table1[Normal occupancy],MATCH(Table2[[#This Row],[New Room Type \n(TMS)]],Table1[TMS],0)),\"\")","v":""},null,null,null,null,"",{"$f":"IF(Table2[[#This Row],['# extra beds that fit in the room2]]<>0,LEFT(Table2[[#This Row],[New Room Type \n(TMS)]],6),\"\")","v":""},null,{"$f":"IF(Table2[[#This Row],['# extra beds that fit in the room]]<>Table2[[#This Row],['# extra beds that fit in the room2]],\"yes\",\"No\")","v":"No"}]
[null,{"$f":"IF(LEN(C1164)>0,'1) Hotel information'!$C$4,\"\")","v":""},null,null,null,{"$f":"IFERROR(INDEX(Table1[Room description],MATCH('2) Room configuration'!D1164,Table1[TMS],0)),\"\")","v":""},{"$f":"IFERROR(INDEX(Table1[Bedding],MATCH('2) Room configuration'!D1164,Table1[TMS],0)),\"\")","v":""},null,null,{"$f":"IFERROR(INDEX(Table1[Room description],MATCH('2) Room configuration'!I1164,Table1[TMS],0)),\"\")","v":""},{"$f":"IFERROR(INDEX(Table1[Bedding],MATCH('2) Room configuration'!I1164,Table1[TMS],0)),\"\")","v":""},{"$f":"IFERROR(INDEX(Table1[Normal occupancy],MATCH(Table2[[#This Row],[New Room Type \n(TMS)]],Table1[TMS],0)),\"\")","v":""},null,null,null,null,"",{"$f":"IF(Table2[[#This Row],['# extra beds that fit in the room2]]<>0,LEFT(Table2[[#This Row],[New Room Type \n(TMS)]],6),\"\")","v":""},null,{"$f":"IF(Table2[[#This Row],['# extra beds that fit in the room]]<>Table2[[#This Row],['# extra beds that fit in the room2]],\"yes\",\"No\")","v":"No"}]
[null,{"$f":"IF(LEN(C1165)>0,'1) Hotel information'!$C$4,\"\")","v":""},null,null,null,{"$f":"IFERROR(INDEX(Table1[Room description],MATCH('2) Room configuration'!D1165,Table1[TMS],0)),\"\")","v":""},{"$f":"IFERROR(INDEX(Table1[Bedding],MATCH('2) Room configuration'!D1165,Table1[TMS],0)),\"\")","v":""},null,null,{"$f":"IFERROR(INDEX(Table1[Room description],MATCH('2) Room configuration'!I1165,Table1[TMS],0)),\"\")","v":""},{"$f":"IFERROR(INDEX(Table1[Bedding],MATCH('2) Room configuration'!I1165,Table1[TMS],0)),\"\")","v":""},{"$f":"IFERROR(INDEX(Table1[Normal occupancy],MATCH(Table2[[#This Row],[New Room Type \n(TMS)]],Table1[TMS],0)),\"\")","v":""},null,null,null,null,"",{"$f":"IF(Table2[[#This Row],['# extra beds that fit in the room2]]<>0,LEFT(Table2[[#This Row],[New Room Type \n(TMS)]],6),\"\")","v":""},null,{"$f":"IF(Table2[[#This Row],['# extra beds that fit in the room]]<>Table2[[#This Row],['# extra beds that fit in the room2]],\"yes\",\"No\")","v":"No"}]
[null,{"$f":"IF(LEN(C1166)>0,'1) Hotel information'!$C$4,\"\")","v":""},null,null,null,{"$f":"IFERROR(INDEX(Table1[Room description],MATCH('2) Room configuration'!D1166,Table1[TMS],0)),\"\")","v":""},{"$f":"IFERROR(INDEX(Table1[Bedding],MATCH('2) Room configuration'!D1166,Table1[TMS],0)),\"\")","v":""},null,null,{"$f":"IFERROR(INDEX(Table1[Room description],MATCH('2) Room configuration'!I1166,Table1[TMS],0)),\"\")","v":""},{"$f":"IFERROR(INDEX(Table1[Bedding],MATCH('2) Room configuration'!I1166,Table1[TMS],0)),\"\")","v":""},{"$f":"IFERROR(INDEX(Table1[Normal occupancy],MATCH(Table2[[#This Row],[New Room Type \n(TMS)]],Table1[TMS],0)),\"\")","v":""},null,null,null,null,"",{"$f":"IF(Table2[[#This Row],['# extra beds that fit in the room2]]<>0,LEFT(Table2[[#This Row],[New Room Type \n(TMS)]],6),\"\")","v":""},null,{"$f":"IF(Table2[[#This Row],['# extra beds that fit in the room]]<>Table2[[#This Row],['# extra beds that fit in the room2]],\"yes\",\"No\")","v":"No"}]
[null,{"$f":"IF(LEN(C1167)>0,'1) Hotel information'!$C$4,\"\")","v":""},null,null,null,{"$f":"IFERROR(INDEX(Table1[Room description],MATCH('2) Room configuration'!D1167,Table1[TMS],0)),\"\")","v":""},{"$f":"IFERROR(INDEX(Table1[Bedding],MATCH('2) Room configuration'!D1167,Table1[TMS],0)),\"\")","v":""},null,null,{"$f":"IFERROR(INDEX(Table1[Room description],MATCH('2) Room configuration'!I1167,Table1[TMS],0)),\"\")","v":""},{"$f":"IFERROR(INDEX(Table1[Bedding],MATCH('2) Room configuration'!I1167,Table1[TMS],0)),\"\")","v":""},{"$f":"IFERROR(INDEX(Table1[Normal occupancy],MATCH(Table2[[#This Row],[New Room Type \n(TMS)]],Table1[TMS],0)),\"\")","v":""},null,null,null,null,"",{"$f":"IF(Table2[[#This Row],['# extra beds that fit in the room2]]<>0,LEFT(Table2[[#This Row],[New Room Type \n(TMS)]],6),\"\")","v":""},null,{"$f":"IF(Table2[[#This Row],['# extra beds that fit in the room]]<>Table2[[#This Row],['# extra beds that fit in the room2]],\"yes\",\"No\")","v":"No"}]
[null,{"$f":"IF(LEN(C1168)>0,'1) Hotel information'!$C$4,\"\")","v":""},null,null,null,{"$f":"IFERROR(INDEX(Table1[Room description],MATCH('2) Room configuration'!D1168,Table1[TMS],0)),\"\")","v":""},{"$f":"IFERROR(INDEX(Table1[Bedding],MATCH('2) Room configuration'!D1168,Table1[TMS],0)),\"\")","v":""},null,null,{"$f":"IFERROR(INDEX(Table1[Room description],MATCH('2) Room configuration'!I1168,Table1[TMS],0)),\"\")","v":""},{"$f":"IFERROR(INDEX(Table1[Bedding],MATCH('2) Room configuration'!I1168,Table1[TMS],0)),\"\")","v":""},{"$f":"IFERROR(INDEX(Table1[Normal occupancy],MATCH(Table2[[#This Row],[New Room Type \n(TMS)]],Table1[TMS],0)),\"\")","v":""},null,null,null,null,"",{"$f":"IF(Table2[[#This Row],['# extra beds that fit in the room2]]<>0,LEFT(Table2[[#This Row],[New Room Type \n(TMS)]],6),\"\")","v":""},null,{"$f":"IF(Table2[[#This Row],['# extra beds that fit in the room]]<>Table2[[#This Row],['# extra beds that fit in the room2]],\"yes\",\"No\")","v":"No"}]
[null,{"$f":"IF(LEN(C1169)>0,'1) Hotel information'!$C$4,\"\")","v":""},null,null,null,{"$f":"IFERROR(INDEX(Table1[Room description],MATCH('2) Room configuration'!D1169,Table1[TMS],0)),\"\")","v":""},{"$f":"IFERROR(INDEX(Table1[Bedding],MATCH('2) Room configuration'!D1169,Table1[TMS],0)),\"\")","v":""},null,null,{"$f":"IFERROR(INDEX(Table1[Room description],MATCH('2) Room configuration'!I1169,Table1[TMS],0)),\"\")","v":""},{"$f":"IFERROR(INDEX(Table1[Bedding],MATCH('2) Room configuration'!I1169,Table1[TMS],0)),\"\")","v":""},{"$f":"IFERROR(INDEX(Table1[Normal occupancy],MATCH(Table2[[#This Row],[New Room Type \n(TMS)]],Table1[TMS],0)),\"\")","v":""},null,null,null,null,"",{"$f":"IF(Table2[[#This Row],['# extra beds that fit in the room2]]<>0,LEFT(Table2[[#This Row],[New Room Type \n(TMS)]],6),\"\")","v":""},null,{"$f":"IF(Table2[[#This Row],['# extra beds that fit in the room]]<>Table2[[#This Row],['# extra beds that fit in the room2]],\"yes\",\"No\")","v":"No"}]
[null,{"$f":"IF(LEN(C1170)>0,'1) Hotel information'!$C$4,\"\")","v":""},null,null,null,{"$f":"IFERROR(INDEX(Table1[Room description],MATCH('2) Room configuration'!D1170,Table1[TMS],0)),\"\")","v":""},{"$f":"IFERROR(INDEX(Table1[Bedding],MATCH('2) Room configuration'!D1170,Table1[TMS],0)),\"\")","v":""},null,null,{"$f":"IFERROR(INDEX(Table1[Room description],MATCH('2) Room configuration'!I1170,Table1[TMS],0)),\"\")","v":""},{"$f":"IFERROR(INDEX(Table1[Bedding],MATCH('2) Room configuration'!I1170,Table1[TMS],0)),\"\")","v":""},{"$f":"IFERROR(INDEX(Table1[Normal occupancy],MATCH(Table2[[#This Row],[New Room Type \n(TMS)]],Table1[TMS],0)),\"\")","v":""},null,null,null,null,"",{"$f":"IF(Table2[[#This Row],['# extra beds that fit in the room2]]<>0,LEFT(Table2[[#This Row],[New Room Type \n(TMS)]],6),\"\")","v":""},null,{"$f":"IF(Table2[[#This Row],['# extra beds that fit in the room]]<>Table2[[#This Row],['# extra beds that fit in the room2]],\"yes\",\"No\")","v":"No"}]
[null,{"$f":"IF(LEN(C1171)>0,'1) Hotel information'!$C$4,\"\")","v":""},null,null,null,{"$f":"IFERROR(INDEX(Table1[Room description],MATCH('2) Room configuration'!D1171,Table1[TMS],0)),\"\")","v":""},{"$f":"IFERROR(INDEX(Table1[Bedding],MATCH('2) Room configuration'!D1171,Table1[TMS],0)),\"\")","v":""},null,null,{"$f":"IFERROR(INDEX(Table1[Room description],MATCH('2) Room configuration'!I1171,Table1[TMS],0)),\"\")","v":""},{"$f":"IFERROR(INDEX(Table1[Bedding],MATCH('2) Room configuration'!I1171,Table1[TMS],0)),\"\")","v":""},{"$f":"IFERROR(INDEX(Table1[Normal occupancy],MATCH(Table2[[#This Row],[New Room Type \n(TMS)]],Table1[TMS],0)),\"\")","v":""},null,null,null,null,"",{"$f":"IF(Table2[[#This Row],['# extra beds that fit in the room2]]<>0,LEFT(Table2[[#This Row],[New Room Type \n(TMS)]],6),\"\")","v":""},null,{"$f":"IF(Table2[[#This Row],['# extra beds that fit in the room]]<>Table2[[#This Row],['# extra beds that fit in the room2]],\"yes\",\"No\")","v":"No"}]
[null,{"$f":"IF(LEN(C1172)>0,'1) Hotel information'!$C$4,\"\")","v":""},null,null,null,{"$f":"IFERROR(INDEX(Table1[Room description],MATCH('2) Room configuration'!D1172,Table1[TMS],0)),\"\")","v":""},{"$f":"IFERROR(INDEX(Table1[Bedding],MATCH('2) Room configuration'!D1172,Table1[TMS],0)),\"\")","v":""},null,null,{"$f":"IFERROR(INDEX(Table1[Room description],MATCH('2) Room configuration'!I1172,Table1[TMS],0)),\"\")","v":""},{"$f":"IFERROR(INDEX(Table1[Bedding],MATCH('2) Room configuration'!I1172,Table1[TMS],0)),\"\")","v":""},{"$f":"IFERROR(INDEX(Table1[Normal occupancy],MATCH(Table2[[#This Row],[New Room Type \n(TMS)]],Table1[TMS],0)),\"\")","v":""},null,null,null,null,"",{"$f":"IF(Table2[[#This Row],['# extra beds that fit in the room2]]<>0,LEFT(Table2[[#This Row],[New Room Type \n(TMS)]],6),\"\")","v":""},null,{"$f":"IF(Table2[[#This Row],['# extra beds that fit in the room]]<>Table2[[#This Row],['# extra beds that fit in the room2]],\"yes\",\"No\")","v":"No"}]
[null,{"$f":"IF(LEN(C1173)>0,'1) Hotel information'!$C$4,\"\")","v":""},null,null,null,{"$f":"IFERROR(INDEX(Table1[Room description],MATCH('2) Room configuration'!D1173,Table1[TMS],0)),\"\")","v":""},{"$f":"IFERROR(INDEX(Table1[Bedding],MATCH('2) Room configuration'!D1173,Table1[TMS],0)),\"\")","v":""},null,null,{"$f":"IFERROR(INDEX(Table1[Room description],MATCH('2) Room configuration'!I1173,Table1[TMS],0)),\"\")","v":""},{"$f":"IFERROR(INDEX(Table1[Bedding],MATCH('2) Room configuration'!I1173,Table1[TMS],0)),\"\")","v":""},{"$f":"IFERROR(INDEX(Table1[Normal occupancy],MATCH(Table2[[#This Row],[New Room Type \n(TMS)]],Table1[TMS],0)),\"\")","v":""},null,null,null,null,"",{"$f":"IF(Table2[[#This Row],['# extra beds that fit in the room2]]<>0,LEFT(Table2[[#This Row],[New Room Type \n(TMS)]],6),\"\")","v":""},null,{"$f":"IF(Table2[[#This Row],['# extra beds that fit in the room]]<>Table2[[#This Row],['# extra beds that fit in the room2]],\"yes\",\"No\")","v":"No"}]
[null,{"$f":"IF(LEN(C1174)>0,'1) Hotel information'!$C$4,\"\")","v":""},null,null,null,{"$f":"IFERROR(INDEX(Table1[Room description],MATCH('2) Room configuration'!D1174,Table1[TMS],0)),\"\")","v":""},{"$f":"IFERROR(INDEX(Table1[Bedding],MATCH('2) Room configuration'!D1174,Table1[TMS],0)),\"\")","v":""},null,null,{"$f":"IFERROR(INDEX(Table1[Room description],MATCH('2) Room configuration'!I1174,Table1[TMS],0)),\"\")","v":""},{"$f":"IFERROR(INDEX(Table1[Bedding],MATCH('2) Room configuration'!I1174,Table1[TMS],0)),\"\")","v":""},{"$f":"IFERROR(INDEX(Table1[Normal occupancy],MATCH(Table2[[#This Row],[New Room Type \n(TMS)]],Table1[TMS],0)),\"\")","v":""},null,null,null,null,"",{"$f":"IF(Table2[[#This Row],['# extra beds that fit in the room2]]<>0,LEFT(Table2[[#This Row],[New Room Type \n(TMS)]],6),\"\")","v":""},null,{"$f":"IF(Table2[[#This Row],['# extra beds that fit in the room]]<>Table2[[#This Row],['# extra beds that fit in the room2]],\"yes\",\"No\")","v":"No"}]
[null,{"$f":"IF(LEN(C1175)>0,'1) Hotel information'!$C$4,\"\")","v":""},null,null,null,{"$f":"IFERROR(INDEX(Table1[Room description],MATCH('2) Room configuration'!D1175,Table1[TMS],0)),\"\")","v":""},{"$f":"IFERROR(INDEX(Table1[Bedding],MATCH('2) Room configuration'!D1175,Table1[TMS],0)),\"\")","v":""},null,null,{"$f":"IFERROR(INDEX(Table1[Room description],MATCH('2) Room configuration'!I1175,Table1[TMS],0)),\"\")","v":""},{"$f":"IFERROR(INDEX(Table1[Bedding],MATCH('2) Room configuration'!I1175,Table1[TMS],0)),\"\")","v":""},{"$f":"IFERROR(INDEX(Table1[Normal occupancy],MATCH(Table2[[#This Row],[New Room Type \n(TMS)]],Table1[TMS],0)),\"\")","v":""},null,null,null,null,{"$f":"IF(LEN(C1175)>0,IF(D1175=I1175,\"No\",\"Yes\"),\"\")","v":""},{"$f":"IF(Table2[[#This Row],['# extra beds that fit in the room2]]<>0,LEFT(Table2[[#This Row],[New Room Type \n(TMS)]],6),\"\")","v":""},null,{"$f":"IF(Table2[[#This Row],['# extra beds that fit in the room]]<>Table2[[#This Row],['# extra beds that fit in the room2]],\"yes\",\"No\")","v":"No"}]
[null,{"$f":"IF(LEN(C1176)>0,'1) Hotel information'!$C$4,\"\")","v":""},null,null,null,{"$f":"IFERROR(INDEX(Table1[Room description],MATCH('2) Room configuration'!D1176,Table1[TMS],0)),\"\")","v":""},{"$f":"IFERROR(INDEX(Table1[Bedding],MATCH('2) Room configuration'!D1176,Table1[TMS],0)),\"\")","v":""},null,null,{"$f":"IFERROR(INDEX(Table1[Room description],MATCH('2) Room configuration'!I1176,Table1[TMS],0)),\"\")","v":""},{"$f":"IFERROR(INDEX(Table1[Bedding],MATCH('2) Room configuration'!I1176,Table1[TMS],0)),\"\")","v":""},{"$f":"IFERROR(INDEX(Table1[Normal occupancy],MATCH(Table2[[#This Row],[New Room Type \n(TMS)]],Table1[TMS],0)),\"\")","v":""},null,null,null,null,"",{"$f":"IF(Table2[[#This Row],['# extra beds that fit in the room2]]<>0,LEFT(Table2[[#This Row],[New Room Type \n(TMS)]],6),\"\")","v":""},null,{"$f":"IF(Table2[[#This Row],['# extra beds that fit in the room]]<>Table2[[#This Row],['# extra beds that fit in the room2]],\"yes\",\"No\")","v":"No"}]
[null,{"$f":"IF(LEN(C1177)>0,'1) Hotel information'!$C$4,\"\")","v":""},null,null,null,{"$f":"IFERROR(INDEX(Table1[Room description],MATCH('2) Room configuration'!D1177,Table1[TMS],0)),\"\")","v":""},{"$f":"IFERROR(INDEX(Table1[Bedding],MATCH('2) Room configuration'!D1177,Table1[TMS],0)),\"\")","v":""},null,null,{"$f":"IFERROR(INDEX(Table1[Room description],MATCH('2) Room configuration'!I1177,Table1[TMS],0)),\"\")","v":""},{"$f":"IFERROR(INDEX(Table1[Bedding],MATCH('2) Room configuration'!I1177,Table1[TMS],0)),\"\")","v":""},{"$f":"IFERROR(INDEX(Table1[Normal occupancy],MATCH(Table2[[#This Row],[New Room Type \n(TMS)]],Table1[TMS],0)),\"\")","v":""},null,null,null,null,"",{"$f":"IF(Table2[[#This Row],['# extra beds that fit in the room2]]<>0,LEFT(Table2[[#This Row],[New Room Type \n(TMS)]],6),\"\")","v":""},null,{"$f":"IF(Table2[[#This Row],['# extra beds that fit in the room]]<>Table2[[#This Row],['# extra beds that fit in the room2]],\"yes\",\"No\")","v":"No"}]
[null,{"$f":"IF(LEN(C1178)>0,'1) Hotel information'!$C$4,\"\")","v":""},null,null,null,{"$f":"IFERROR(INDEX(Table1[Room description],MATCH('2) Room configuration'!D1178,Table1[TMS],0)),\"\")","v":""},{"$f":"IFERROR(INDEX(Table1[Bedding],MATCH('2) Room configuration'!D1178,Table1[TMS],0)),\"\")","v":""},null,null,{"$f":"IFERROR(INDEX(Table1[Room description],MATCH('2) Room configuration'!I1178,Table1[TMS],0)),\"\")","v":""},{"$f":"IFERROR(INDEX(Table1[Bedding],MATCH('2) Room configuration'!I1178,Table1[TMS],0)),\"\")","v":""},{"$f":"IFERROR(INDEX(Table1[Normal occupancy],MATCH(Table2[[#This Row],[New Room Type \n(TMS)]],Table1[TMS],0)),\"\")","v":""},null,null,null,null,"",{"$f":"IF(Table2[[#This Row],['# extra beds that fit in the room2]]<>0,LEFT(Table2[[#This Row],[New Room Type \n(TMS)]],6),\"\")","v":""},null,{"$f":"IF(Table2[[#This Row],['# extra beds that fit in the room]]<>Table2[[#This Row],['# extra beds that fit in the room2]],\"yes\",\"No\")","v":"No"}]
[null,{"$f":"IF(LEN(C1179)>0,'1) Hotel information'!$C$4,\"\")","v":""},null,null,null,{"$f":"IFERROR(INDEX(Table1[Room description],MATCH('2) Room configuration'!D1179,Table1[TMS],0)),\"\")","v":""},{"$f":"IFERROR(INDEX(Table1[Bedding],MATCH('2) Room configuration'!D1179,Table1[TMS],0)),\"\")","v":""},null,null,{"$f":"IFERROR(INDEX(Table1[Room description],MATCH('2) Room configuration'!I1179,Table1[TMS],0)),\"\")","v":""},{"$f":"IFERROR(INDEX(Table1[Bedding],MATCH('2) Room configuration'!I1179,Table1[TMS],0)),\"\")","v":""},{"$f":"IFERROR(INDEX(Table1[Normal occupancy],MATCH(Table2[[#This Row],[New Room Type \n(TMS)]],Table1[TMS],0)),\"\")","v":""},null,null,null,null,"",{"$f":"IF(Table2[[#This Row],['# extra beds that fit in the room2]]<>0,LEFT(Table2[[#This Row],[New Room Type \n(TMS)]],6),\"\")","v":""},null,{"$f":"IF(Table2[[#This Row],['# extra beds that fit in the room]]<>Table2[[#This Row],['# extra beds that fit in the room2]],\"yes\",\"No\")","v":"No"}]
[null,{"$f":"IF(LEN(C1180)>0,'1) Hotel information'!$C$4,\"\")","v":""},null,null,null,{"$f":"IFERROR(INDEX(Table1[Room description],MATCH('2) Room configuration'!D1180,Table1[TMS],0)),\"\")","v":""},{"$f":"IFERROR(INDEX(Table1[Bedding],MATCH('2) Room configuration'!D1180,Table1[TMS],0)),\"\")","v":""},null,null,{"$f":"IFERROR(INDEX(Table1[Room description],MATCH('2) Room configuration'!I1180,Table1[TMS],0)),\"\")","v":""},{"$f":"IFERROR(INDEX(Table1[Bedding],MATCH('2) Room configuration'!I1180,Table1[TMS],0)),\"\")","v":""},{"$f":"IFERROR(INDEX(Table1[Normal occupancy],MATCH(Table2[[#This Row],[New Room Type \n(TMS)]],Table1[TMS],0)),\"\")","v":""},null,null,null,null,"",{"$f":"IF(Table2[[#This Row],['# extra beds that fit in the room2]]<>0,LEFT(Table2[[#This Row],[New Room Type \n(TMS)]],6),\"\")","v":""},null,{"$f":"IF(Table2[[#This Row],['# extra beds that fit in the room]]<>Table2[[#This Row],['# extra beds that fit in the room2]],\"yes\",\"No\")","v":"No"}]
[null,{"$f":"IF(LEN(C1181)>0,'1) Hotel information'!$C$4,\"\")","v":""},null,null,null,{"$f":"IFERROR(INDEX(Table1[Room description],MATCH('2) Room configuration'!D1181,Table1[TMS],0)),\"\")","v":""},{"$f":"IFERROR(INDEX(Table1[Bedding],MATCH('2) Room configuration'!D1181,Table1[TMS],0)),\"\")","v":""},null,null,{"$f":"IFERROR(INDEX(Table1[Room description],MATCH('2) Room configuration'!I1181,Table1[TMS],0)),\"\")","v":""},{"$f":"IFERROR(INDEX(Table1[Bedding],MATCH('2) Room configuration'!I1181,Table1[TMS],0)),\"\")","v":""},{"$f":"IFERROR(INDEX(Table1[Normal occupancy],MATCH(Table2[[#This Row],[New Room Type \n(TMS)]],Table1[TMS],0)),\"\")","v":""},null,null,null,null,"",{"$f":"IF(Table2[[#This Row],['# extra beds that fit in the room2]]<>0,LEFT(Table2[[#This Row],[New Room Type \n(TMS)]],6),\"\")","v":""},null,{"$f":"IF(Table2[[#This Row],['# extra beds that fit in the room]]<>Table2[[#This Row],['# extra beds that fit in the room2]],\"yes\",\"No\")","v":"No"}]
[null,{"$f":"IF(LEN(C1182)>0,'1) Hotel information'!$C$4,\"\")","v":""},null,null,null,{"$f":"IFERROR(INDEX(Table1[Room description],MATCH('2) Room configuration'!D1182,Table1[TMS],0)),\"\")","v":""},{"$f":"IFERROR(INDEX(Table1[Bedding],MATCH('2) Room configuration'!D1182,Table1[TMS],0)),\"\")","v":""},null,null,{"$f":"IFERROR(INDEX(Table1[Room description],MATCH('2) Room configuration'!I1182,Table1[TMS],0)),\"\")","v":""},{"$f":"IFERROR(INDEX(Table1[Bedding],MATCH('2) Room configuration'!I1182,Table1[TMS],0)),\"\")","v":""},{"$f":"IFERROR(INDEX(Table1[Normal occupancy],MATCH(Table2[[#This Row],[New Room Type \n(TMS)]],Table1[TMS],0)),\"\")","v":""},null,null,null,null,"",{"$f":"IF(Table2[[#This Row],['# extra beds that fit in the room2]]<>0,LEFT(Table2[[#This Row],[New Room Type \n(TMS)]],6),\"\")","v":""},null,{"$f":"IF(Table2[[#This Row],['# extra beds that fit in the room]]<>Table2[[#This Row],['# extra beds that fit in the room2]],\"yes\",\"No\")","v":"No"}]
[null,{"$f":"IF(LEN(C1183)>0,'1) Hotel information'!$C$4,\"\")","v":""},null,null,null,{"$f":"IFERROR(INDEX(Table1[Room description],MATCH('2) Room configuration'!D1183,Table1[TMS],0)),\"\")","v":""},{"$f":"IFERROR(INDEX(Table1[Bedding],MATCH('2) Room configuration'!D1183,Table1[TMS],0)),\"\")","v":""},null,null,{"$f":"IFERROR(INDEX(Table1[Room description],MATCH('2) Room configuration'!I1183,Table1[TMS],0)),\"\")","v":""},{"$f":"IFERROR(INDEX(Table1[Bedding],MATCH('2) Room configuration'!I1183,Table1[TMS],0)),\"\")","v":""},{"$f":"IFERROR(INDEX(Table1[Normal occupancy],MATCH(Table2[[#This Row],[New Room Type \n(TMS)]],Table1[TMS],0)),\"\")","v":""},null,null,null,null,"",{"$f":"IF(Table2[[#This Row],['# extra beds that fit in the room2]]<>0,LEFT(Table2[[#This Row],[New Room Type \n(TMS)]],6),\"\")","v":""},null,{"$f":"IF(Table2[[#This Row],['# extra beds that fit in the room]]<>Table2[[#This Row],['# extra beds that fit in the room2]],\"yes\",\"No\")","v":"No"}]
[null,{"$f":"IF(LEN(C1184)>0,'1) Hotel information'!$C$4,\"\")","v":""},null,null,null,{"$f":"IFERROR(INDEX(Table1[Room description],MATCH('2) Room configuration'!D1184,Table1[TMS],0)),\"\")","v":""},{"$f":"IFERROR(INDEX(Table1[Bedding],MATCH('2) Room configuration'!D1184,Table1[TMS],0)),\"\")","v":""},null,null,{"$f":"IFERROR(INDEX(Table1[Room description],MATCH('2) Room configuration'!I1184,Table1[TMS],0)),\"\")","v":""},{"$f":"IFERROR(INDEX(Table1[Bedding],MATCH('2) Room configuration'!I1184,Table1[TMS],0)),\"\")","v":""},{"$f":"IFERROR(INDEX(Table1[Normal occupancy],MATCH(Table2[[#This Row],[New Room Type \n(TMS)]],Table1[TMS],0)),\"\")","v":""},null,null,null,null,"",{"$f":"IF(Table2[[#This Row],['# extra beds that fit in the room2]]<>0,LEFT(Table2[[#This Row],[New Room Type \n(TMS)]],6),\"\")","v":""},null,{"$f":"IF(Table2[[#This Row],['# extra beds that fit in the room]]<>Table2[[#This Row],['# extra beds that fit in the room2]],\"yes\",\"No\")","v":"No"}]
[null,{"$f":"IF(LEN(C1185)>0,'1) Hotel information'!$C$4,\"\")","v":""},null,null,null,{"$f":"IFERROR(INDEX(Table1[Room description],MATCH('2) Room configuration'!D1185,Table1[TMS],0)),\"\")","v":""},{"$f":"IFERROR(INDEX(Table1[Bedding],MATCH('2) Room configuration'!D1185,Table1[TMS],0)),\"\")","v":""},null,null,{"$f":"IFERROR(INDEX(Table1[Room description],MATCH('2) Room configuration'!I1185,Table1[TMS],0)),\"\")","v":""},{"$f":"IFERROR(INDEX(Table1[Bedding],MATCH('2) Room configuration'!I1185,Table1[TMS],0)),\"\")","v":""},{"$f":"IFERROR(INDEX(Table1[Normal occupancy],MATCH(Table2[[#This Row],[New Room Type \n(TMS)]],Table1[TMS],0)),\"\")","v":""},null,null,null,null,"",{"$f":"IF(Table2[[#This Row],['# extra beds that fit in the room2]]<>0,LEFT(Table2[[#This Row],[New Room Type \n(TMS)]],6),\"\")","v":""},null,{"$f":"IF(Table2[[#This Row],['# extra beds that fit in the room]]<>Table2[[#This Row],['# extra beds that fit in the room2]],\"yes\",\"No\")","v":"No"}]
[null,{"$f":"IF(LEN(C1186)>0,'1) Hotel information'!$C$4,\"\")","v":""},null,null,null,{"$f":"IFERROR(INDEX(Table1[Room description],MATCH('2) Room configuration'!D1186,Table1[TMS],0)),\"\")","v":""},{"$f":"IFERROR(INDEX(Table1[Bedding],MATCH('2) Room configuration'!D1186,Table1[TMS],0)),\"\")","v":""},null,null,{"$f":"IFERROR(INDEX(Table1[Room description],MATCH('2) Room configuration'!I1186,Table1[TMS],0)),\"\")","v":""},{"$f":"IFERROR(INDEX(Table1[Bedding],MATCH('2) Room configuration'!I1186,Table1[TMS],0)),\"\")","v":""},{"$f":"IFERROR(INDEX(Table1[Normal occupancy],MATCH(Table2[[#This Row],[New Room Type \n(TMS)]],Table1[TMS],0)),\"\")","v":""},null,null,null,null,"",{"$f":"IF(Table2[[#This Row],['# extra beds that fit in the room2]]<>0,LEFT(Table2[[#This Row],[New Room Type \n(TMS)]],6),\"\")","v":""},null,{"$f":"IF(Table2[[#This Row],['# extra beds that fit in the room]]<>Table2[[#This Row],['# extra beds that fit in the room2]],\"yes\",\"No\")","v":"No"}]
[null,{"$f":"IF(LEN(C1187)>0,'1) Hotel information'!$C$4,\"\")","v":""},null,null,null,{"$f":"IFERROR(INDEX(Table1[Room description],MATCH('2) Room configuration'!D1187,Table1[TMS],0)),\"\")","v":""},{"$f":"IFERROR(INDEX(Table1[Bedding],MATCH('2) Room configuration'!D1187,Table1[TMS],0)),\"\")","v":""},null,null,{"$f":"IFERROR(INDEX(Table1[Room description],MATCH('2) Room configuration'!I1187,Table1[TMS],0)),\"\")","v":""},{"$f":"IFERROR(INDEX(Table1[Bedding],MATCH('2) Room configuration'!I1187,Table1[TMS],0)),\"\")","v":""},{"$f":"IFERROR(INDEX(Table1[Normal occupancy],MATCH(Table2[[#This Row],[New Room Type \n(TMS)]],Table1[TMS],0)),\"\")","v":""},null,null,null,null,"",{"$f":"IF(Table2[[#This Row],['# extra beds that fit in the room2]]<>0,LEFT(Table2[[#This Row],[New Room Type \n(TMS)]],6),\"\")","v":""},null,{"$f":"IF(Table2[[#This Row],['# extra beds that fit in the room]]<>Table2[[#This Row],['# extra beds that fit in the room2]],\"yes\",\"No\")","v":"No"}]
[null,{"$f":"IF(LEN(C1188)>0,'1) Hotel information'!$C$4,\"\")","v":""},null,null,null,{"$f":"IFERROR(INDEX(Table1[Room description],MATCH('2) Room configuration'!D1188,Table1[TMS],0)),\"\")","v":""},{"$f":"IFERROR(INDEX(Table1[Bedding],MATCH('2) Room configuration'!D1188,Table1[TMS],0)),\"\")","v":""},null,null,{"$f":"IFERROR(INDEX(Table1[Room description],MATCH('2) Room configuration'!I1188,Table1[TMS],0)),\"\")","v":""},{"$f":"IFERROR(INDEX(Table1[Bedding],MATCH('2) Room configuration'!I1188,Table1[TMS],0)),\"\")","v":""},{"$f":"IFERROR(INDEX(Table1[Normal occupancy],MATCH(Table2[[#This Row],[New Room Type \n(TMS)]],Table1[TMS],0)),\"\")","v":""},null,null,null,null,"",{"$f":"IF(Table2[[#This Row],['# extra beds that fit in the room2]]<>0,LEFT(Table2[[#This Row],[New Room Type \n(TMS)]],6),\"\")","v":""},null,{"$f":"IF(Table2[[#This Row],['# extra beds that fit in the room]]<>Table2[[#This Row],['# extra beds that fit in the room2]],\"yes\",\"No\")","v":"No"}]
[null,{"$f":"IF(LEN(C1189)>0,'1) Hotel information'!$C$4,\"\")","v":""},null,null,null,{"$f":"IFERROR(INDEX(Table1[Room description],MATCH('2) Room configuration'!D1189,Table1[TMS],0)),\"\")","v":""},{"$f":"IFERROR(INDEX(Table1[Bedding],MATCH('2) Room configuration'!D1189,Table1[TMS],0)),\"\")","v":""},null,null,{"$f":"IFERROR(INDEX(Table1[Room description],MATCH('2) Room configuration'!I1189,Table1[TMS],0)),\"\")","v":""},{"$f":"IFERROR(INDEX(Table1[Bedding],MATCH('2) Room configuration'!I1189,Table1[TMS],0)),\"\")","v":""},{"$f":"IFERROR(INDEX(Table1[Normal occupancy],MATCH(Table2[[#This Row],[New Room Type \n(TMS)]],Table1[TMS],0)),\"\")","v":""},null,null,null,null,"",{"$f":"IF(Table2[[#This Row],['# extra beds that fit in the room2]]<>0,LEFT(Table2[[#This Row],[New Room Type \n(TMS)]],6),\"\")","v":""},null,{"$f":"IF(Table2[[#This Row],['# extra beds that fit in the room]]<>Table2[[#This Row],['# extra beds that fit in the room2]],\"yes\",\"No\")","v":"No"}]
[null,{"$f":"IF(LEN(C1190)>0,'1) Hotel information'!$C$4,\"\")","v":""},null,null,null,{"$f":"IFERROR(INDEX(Table1[Room description],MATCH('2) Room configuration'!D1190,Table1[TMS],0)),\"\")","v":""},{"$f":"IFERROR(INDEX(Table1[Bedding],MATCH('2) Room configuration'!D1190,Table1[TMS],0)),\"\")","v":""},null,null,{"$f":"IFERROR(INDEX(Table1[Room description],MATCH('2) Room configuration'!I1190,Table1[TMS],0)),\"\")","v":""},{"$f":"IFERROR(INDEX(Table1[Bedding],MATCH('2) Room configuration'!I1190,Table1[TMS],0)),\"\")","v":""},{"$f":"IFERROR(INDEX(Table1[Normal occupancy],MATCH(Table2[[#This Row],[New Room Type \n(TMS)]],Table1[TMS],0)),\"\")","v":""},null,null,null,null,"",{"$f":"IF(Table2[[#This Row],['# extra beds that fit in the room2]]<>0,LEFT(Table2[[#This Row],[New Room Type \n(TMS)]],6),\"\")","v":""},null,{"$f":"IF(Table2[[#This Row],['# extra beds that fit in the room]]<>Table2[[#This Row],['# extra beds that fit in the room2]],\"yes\",\"No\")","v":"No"}]
[null,{"$f":"IF(LEN(C1191)>0,'1) Hotel information'!$C$4,\"\")","v":""},null,null,null,{"$f":"IFERROR(INDEX(Table1[Room description],MATCH('2) Room configuration'!D1191,Table1[TMS],0)),\"\")","v":""},{"$f":"IFERROR(INDEX(Table1[Bedding],MATCH('2) Room configuration'!D1191,Table1[TMS],0)),\"\")","v":""},null,null,{"$f":"IFERROR(INDEX(Table1[Room description],MATCH('2) Room configuration'!I1191,Table1[TMS],0)),\"\")","v":""},{"$f":"IFERROR(INDEX(Table1[Bedding],MATCH('2) Room configuration'!I1191,Table1[TMS],0)),\"\")","v":""},{"$f":"IFERROR(INDEX(Table1[Normal occupancy],MATCH(Table2[[#This Row],[New Room Type \n(TMS)]],Table1[TMS],0)),\"\")","v":""},null,null,null,null,"",{"$f":"IF(Table2[[#This Row],['# extra beds that fit in the room2]]<>0,LEFT(Table2[[#This Row],[New Room Type \n(TMS)]],6),\"\")","v":""},null,{"$f":"IF(Table2[[#This Row],['# extra beds that fit in the room]]<>Table2[[#This Row],['# extra beds that fit in the room2]],\"yes\",\"No\")","v":"No"}]
[null,{"$f":"IF(LEN(C1192)>0,'1) Hotel information'!$C$4,\"\")","v":""},null,null,null,{"$f":"IFERROR(INDEX(Table1[Room description],MATCH('2) Room configuration'!D1192,Table1[TMS],0)),\"\")","v":""},{"$f":"IFERROR(INDEX(Table1[Bedding],MATCH('2) Room configuration'!D1192,Table1[TMS],0)),\"\")","v":""},null,null,{"$f":"IFERROR(INDEX(Table1[Room description],MATCH('2) Room configuration'!I1192,Table1[TMS],0)),\"\")","v":""},{"$f":"IFERROR(INDEX(Table1[Bedding],MATCH('2) Room configuration'!I1192,Table1[TMS],0)),\"\")","v":""},{"$f":"IFERROR(INDEX(Table1[Normal occupancy],MATCH(Table2[[#This Row],[New Room Type \n(TMS)]],Table1[TMS],0)),\"\")","v":""},null,null,null,null,"",{"$f":"IF(Table2[[#This Row],['# extra beds that fit in the room2]]<>0,LEFT(Table2[[#This Row],[New Room Type \n(TMS)]],6),\"\")","v":""},null,{"$f":"IF(Table2[[#This Row],['# extra beds that fit in the room]]<>Table2[[#This Row],['# extra beds that fit in the room2]],\"yes\",\"No\")","v":"No"}]
[null,{"$f":"IF(LEN(C1193)>0,'1) Hotel information'!$C$4,\"\")","v":""},null,null,null,{"$f":"IFERROR(INDEX(Table1[Room description],MATCH('2) Room configuration'!D1193,Table1[TMS],0)),\"\")","v":""},{"$f":"IFERROR(INDEX(Table1[Bedding],MATCH('2) Room configuration'!D1193,Table1[TMS],0)),\"\")","v":""},null,null,{"$f":"IFERROR(INDEX(Table1[Room description],MATCH('2) Room configuration'!I1193,Table1[TMS],0)),\"\")","v":""},{"$f":"IFERROR(INDEX(Table1[Bedding],MATCH('2) Room configuration'!I1193,Table1[TMS],0)),\"\")","v":""},{"$f":"IFERROR(INDEX(Table1[Normal occupancy],MATCH(Table2[[#This Row],[New Room Type \n(TMS)]],Table1[TMS],0)),\"\")","v":""},null,null,null,null,"",{"$f":"IF(Table2[[#This Row],['# extra beds that fit in the room2]]<>0,LEFT(Table2[[#This Row],[New Room Type \n(TMS)]],6),\"\")","v":""},null,{"$f":"IF(Table2[[#This Row],['# extra beds that fit in the room]]<>Table2[[#This Row],['# extra beds that fit in the room2]],\"yes\",\"No\")","v":"No"}]
[null,{"$f":"IF(LEN(C1194)>0,'1) Hotel information'!$C$4,\"\")","v":""},null,null,null,{"$f":"IFERROR(INDEX(Table1[Room description],MATCH('2) Room configuration'!D1194,Table1[TMS],0)),\"\")","v":""},{"$f":"IFERROR(INDEX(Table1[Bedding],MATCH('2) Room configuration'!D1194,Table1[TMS],0)),\"\")","v":""},null,null,{"$f":"IFERROR(INDEX(Table1[Room description],MATCH('2) Room configuration'!I1194,Table1[TMS],0)),\"\")","v":""},{"$f":"IFERROR(INDEX(Table1[Bedding],MATCH('2) Room configuration'!I1194,Table1[TMS],0)),\"\")","v":""},{"$f":"IFERROR(INDEX(Table1[Normal occupancy],MATCH(Table2[[#This Row],[New Room Type \n(TMS)]],Table1[TMS],0)),\"\")","v":""},null,null,null,null,"",{"$f":"IF(Table2[[#This Row],['# extra beds that fit in the room2]]<>0,LEFT(Table2[[#This Row],[New Room Type \n(TMS)]],6),\"\")","v":""},null,{"$f":"IF(Table2[[#This Row],['# extra beds that fit in the room]]<>Table2[[#This Row],['# extra beds that fit in the room2]],\"yes\",\"No\")","v":"No"}]
[null,{"$f":"IF(LEN(C1195)>0,'1) Hotel information'!$C$4,\"\")","v":""},null,null,null,{"$f":"IFERROR(INDEX(Table1[Room description],MATCH('2) Room configuration'!D1195,Table1[TMS],0)),\"\")","v":""},{"$f":"IFERROR(INDEX(Table1[Bedding],MATCH('2) Room configuration'!D1195,Table1[TMS],0)),\"\")","v":""},null,null,{"$f":"IFERROR(INDEX(Table1[Room description],MATCH('2) Room configuration'!I1195,Table1[TMS],0)),\"\")","v":""},{"$f":"IFERROR(INDEX(Table1[Bedding],MATCH('2) Room configuration'!I1195,Table1[TMS],0)),\"\")","v":""},{"$f":"IFERROR(INDEX(Table1[Normal occupancy],MATCH(Table2[[#This Row],[New Room Type \n(TMS)]],Table1[TMS],0)),\"\")","v":""},null,null,null,null,"",{"$f":"IF(Table2[[#This Row],['# extra beds that fit in the room2]]<>0,LEFT(Table2[[#This Row],[New Room Type \n(TMS)]],6),\"\")","v":""},null,{"$f":"IF(Table2[[#This Row],['# extra beds that fit in the room]]<>Table2[[#This Row],['# extra beds that fit in the room2]],\"yes\",\"No\")","v":"No"}]
[null,{"$f":"IF(LEN(C1196)>0,'1) Hotel information'!$C$4,\"\")","v":""},null,null,null,{"$f":"IFERROR(INDEX(Table1[Room description],MATCH('2) Room configuration'!D1196,Table1[TMS],0)),\"\")","v":""},{"$f":"IFERROR(INDEX(Table1[Bedding],MATCH('2) Room configuration'!D1196,Table1[TMS],0)),\"\")","v":""},null,null,{"$f":"IFERROR(INDEX(Table1[Room description],MATCH('2) Room configuration'!I1196,Table1[TMS],0)),\"\")","v":""},{"$f":"IFERROR(INDEX(Table1[Bedding],MATCH('2) Room configuration'!I1196,Table1[TMS],0)),\"\")","v":""},{"$f":"IFERROR(INDEX(Table1[Normal occupancy],MATCH(Table2[[#This Row],[New Room Type \n(TMS)]],Table1[TMS],0)),\"\")","v":""},null,null,null,null,"",{"$f":"IF(Table2[[#This Row],['# extra beds that fit in the room2]]<>0,LEFT(Table2[[#This Row],[New Room Type \n(TMS)]],6),\"\")","v":""},null,{"$f":"IF(Table2[[#This Row],['# extra beds that fit in the room]]<>Table2[[#This Row],['# extra beds that fit in the room2]],\"yes\",\"No\")","v":"No"}]
[null,{"$f":"IF(LEN(C1197)>0,'1) Hotel information'!$C$4,\"\")","v":""},null,null,null,{"$f":"IFERROR(INDEX(Table1[Room description],MATCH('2) Room configuration'!D1197,Table1[TMS],0)),\"\")","v":""},{"$f":"IFERROR(INDEX(Table1[Bedding],MATCH('2) Room configuration'!D1197,Table1[TMS],0)),\"\")","v":""},null,null,{"$f":"IFERROR(INDEX(Table1[Room description],MATCH('2) Room configuration'!I1197,Table1[TMS],0)),\"\")","v":""},{"$f":"IFERROR(INDEX(Table1[Bedding],MATCH('2) Room configuration'!I1197,Table1[TMS],0)),\"\")","v":""},{"$f":"IFERROR(INDEX(Table1[Normal occupancy],MATCH(Table2[[#This Row],[New Room Type \n(TMS)]],Table1[TMS],0)),\"\")","v":""},null,null,null,null,"",{"$f":"IF(Table2[[#This Row],['# extra beds that fit in the room2]]<>0,LEFT(Table2[[#This Row],[New Room Type \n(TMS)]],6),\"\")","v":""},null,{"$f":"IF(Table2[[#This Row],['# extra beds that fit in the room]]<>Table2[[#This Row],['# extra beds that fit in the room2]],\"yes\",\"No\")","v":"No"}]
[null,{"$f":"IF(LEN(C1198)>0,'1) Hotel information'!$C$4,\"\")","v":""},null,null,null,{"$f":"IFERROR(INDEX(Table1[Room description],MATCH('2) Room configuration'!D1198,Table1[TMS],0)),\"\")","v":""},{"$f":"IFERROR(INDEX(Table1[Bedding],MATCH('2) Room configuration'!D1198,Table1[TMS],0)),\"\")","v":""},null,null,{"$f":"IFERROR(INDEX(Table1[Room description],MATCH('2) Room configuration'!I1198,Table1[TMS],0)),\"\")","v":""},{"$f":"IFERROR(INDEX(Table1[Bedding],MATCH('2) Room configuration'!I1198,Table1[TMS],0)),\"\")","v":""},{"$f":"IFERROR(INDEX(Table1[Normal occupancy],MATCH(Table2[[#This Row],[New Room Type \n(TMS)]],Table1[TMS],0)),\"\")","v":""},null,null,null,null,"",{"$f":"IF(Table2[[#This Row],['# extra beds that fit in the room2]]<>0,LEFT(Table2[[#This Row],[New Room Type \n(TMS)]],6),\"\")","v":""},null,{"$f":"IF(Table2[[#This Row],['# extra beds that fit in the room]]<>Table2[[#This Row],['# extra beds that fit in the room2]],\"yes\",\"No\")","v":"No"}]
[null,{"$f":"IF(LEN(C1199)>0,'1) Hotel information'!$C$4,\"\")","v":""},null,null,null,{"$f":"IFERROR(INDEX(Table1[Room description],MATCH('2) Room configuration'!D1199,Table1[TMS],0)),\"\")","v":""},{"$f":"IFERROR(INDEX(Table1[Bedding],MATCH('2) Room configuration'!D1199,Table1[TMS],0)),\"\")","v":""},null,null,{"$f":"IFERROR(INDEX(Table1[Room description],MATCH('2) Room configuration'!I1199,Table1[TMS],0)),\"\")","v":""},{"$f":"IFERROR(INDEX(Table1[Bedding],MATCH('2) Room configuration'!I1199,Table1[TMS],0)),\"\")","v":""},{"$f":"IFERROR(INDEX(Table1[Normal occupancy],MATCH(Table2[[#This Row],[New Room Type \n(TMS)]],Table1[TMS],0)),\"\")","v":""},null,null,null,null,"",{"$f":"IF(Table2[[#This Row],['# extra beds that fit in the room2]]<>0,LEFT(Table2[[#This Row],[New Room Type \n(TMS)]],6),\"\")","v":""},null,{"$f":"IF(Table2[[#This Row],['# extra beds that fit in the room]]<>Table2[[#This Row],['# extra beds that fit in the room2]],\"yes\",\"No\")","v":"No"}]
[null,{"$f":"IF(LEN(C1200)>0,'1) Hotel information'!$C$4,\"\")","v":""},null,null,null,{"$f":"IFERROR(INDEX(Table1[Room description],MATCH('2) Room configuration'!D1200,Table1[TMS],0)),\"\")","v":""},{"$f":"IFERROR(INDEX(Table1[Bedding],MATCH('2) Room configuration'!D1200,Table1[TMS],0)),\"\")","v":""},null,null,{"$f":"IFERROR(INDEX(Table1[Room description],MATCH('2) Room configuration'!I1200,Table1[TMS],0)),\"\")","v":""},{"$f":"IFERROR(INDEX(Table1[Bedding],MATCH('2) Room configuration'!I1200,Table1[TMS],0)),\"\")","v":""},{"$f":"IFERROR(INDEX(Table1[Normal occupancy],MATCH(Table2[[#This Row],[New Room Type \n(TMS)]],Table1[TMS],0)),\"\")","v":""},null,null,null,null,"",{"$f":"IF(Table2[[#This Row],['# extra beds that fit in the room2]]<>0,LEFT(Table2[[#This Row],[New Room Type \n(TMS)]],6),\"\")","v":""},null,{"$f":"IF(Table2[[#This Row],['# extra beds that fit in the room]]<>Table2[[#This Row],['# extra beds that fit in the room2]],\"yes\",\"No\")","v":"No"}]
[null,{"$f":"IF(LEN(C1201)>0,'1) Hotel information'!$C$4,\"\")","v":""},null,null,null,{"$f":"IFERROR(INDEX(Table1[Room description],MATCH('2) Room configuration'!D1201,Table1[TMS],0)),\"\")","v":""},{"$f":"IFERROR(INDEX(Table1[Bedding],MATCH('2) Room configuration'!D1201,Table1[TMS],0)),\"\")","v":""},null,null,{"$f":"IFERROR(INDEX(Table1[Room description],MATCH('2) Room configuration'!I1201,Table1[TMS],0)),\"\")","v":""},{"$f":"IFERROR(INDEX(Table1[Bedding],MATCH('2) Room configuration'!I1201,Table1[TMS],0)),\"\")","v":""},{"$f":"IFERROR(INDEX(Table1[Normal occupancy],MATCH(Table2[[#This Row],[New Room Type \n(TMS)]],Table1[TMS],0)),\"\")","v":""},null,null,null,null,"",{"$f":"IF(Table2[[#This Row],['# extra beds that fit in the room2]]<>0,LEFT(Table2[[#This Row],[New Room Type \n(TMS)]],6),\"\")","v":""},null,{"$f":"IF(Table2[[#This Row],['# extra beds that fit in the room]]<>Table2[[#This Row],['# extra beds that fit in the room2]],\"yes\",\"No\")","v":"No"}]
[null,{"$f":"IF(LEN(C1202)>0,'1) Hotel information'!$C$4,\"\")","v":""},null,null,null,{"$f":"IFERROR(INDEX(Table1[Room description],MATCH('2) Room configuration'!D1202,Table1[TMS],0)),\"\")","v":""},{"$f":"IFERROR(INDEX(Table1[Bedding],MATCH('2) Room configuration'!D1202,Table1[TMS],0)),\"\")","v":""},null,null,{"$f":"IFERROR(INDEX(Table1[Room description],MATCH('2) Room configuration'!I1202,Table1[TMS],0)),\"\")","v":""},{"$f":"IFERROR(INDEX(Table1[Bedding],MATCH('2) Room configuration'!I1202,Table1[TMS],0)),\"\")","v":""},{"$f":"IFERROR(INDEX(Table1[Normal occupancy],MATCH(Table2[[#This Row],[New Room Type \n(TMS)]],Table1[TMS],0)),\"\")","v":""},null,null,null,null,"",{"$f":"IF(Table2[[#This Row],['# extra beds that fit in the room2]]<>0,LEFT(Table2[[#This Row],[New Room Type \n(TMS)]],6),\"\")","v":""},null,{"$f":"IF(Table2[[#This Row],['# extra beds that fit in the room]]<>Table2[[#This Row],['# extra beds that fit in the room2]],\"yes\",\"No\")","v":"No"}]
[null,{"$f":"IF(LEN(C1203)>0,'1) Hotel information'!$C$4,\"\")","v":""},null,null,null,{"$f":"IFERROR(INDEX(Table1[Room description],MATCH('2) Room configuration'!D1203,Table1[TMS],0)),\"\")","v":""},{"$f":"IFERROR(INDEX(Table1[Bedding],MATCH('2) Room configuration'!D1203,Table1[TMS],0)),\"\")","v":""},null,null,{"$f":"IFERROR(INDEX(Table1[Room description],MATCH('2) Room configuration'!I1203,Table1[TMS],0)),\"\")","v":""},{"$f":"IFERROR(INDEX(Table1[Bedding],MATCH('2) Room configuration'!I1203,Table1[TMS],0)),\"\")","v":""},{"$f":"IFERROR(INDEX(Table1[Normal occupancy],MATCH(Table2[[#This Row],[New Room Type \n(TMS)]],Table1[TMS],0)),\"\")","v":""},null,null,null,null,"",{"$f":"IF(Table2[[#This Row],['# extra beds that fit in the room2]]<>0,LEFT(Table2[[#This Row],[New Room Type \n(TMS)]],6),\"\")","v":""},null,{"$f":"IF(Table2[[#This Row],['# extra beds that fit in the room]]<>Table2[[#This Row],['# extra beds that fit in the room2]],\"yes\",\"No\")","v":"No"}]
[null,{"$f":"IF(LEN(C1204)>0,'1) Hotel information'!$C$4,\"\")","v":""},null,null,null,{"$f":"IFERROR(INDEX(Table1[Room description],MATCH('2) Room configuration'!D1204,Table1[TMS],0)),\"\")","v":""},{"$f":"IFERROR(INDEX(Table1[Bedding],MATCH('2) Room configuration'!D1204,Table1[TMS],0)),\"\")","v":""},null,null,{"$f":"IFERROR(INDEX(Table1[Room description],MATCH('2) Room configuration'!I1204,Table1[TMS],0)),\"\")","v":""},{"$f":"IFERROR(INDEX(Table1[Bedding],MATCH('2) Room configuration'!I1204,Table1[TMS],0)),\"\")","v":""},{"$f":"IFERROR(INDEX(Table1[Normal occupancy],MATCH(Table2[[#This Row],[New Room Type \n(TMS)]],Table1[TMS],0)),\"\")","v":""},null,null,null,null,"",{"$f":"IF(Table2[[#This Row],['# extra beds that fit in the room2]]<>0,LEFT(Table2[[#This Row],[New Room Type \n(TMS)]],6),\"\")","v":""},null,{"$f":"IF(Table2[[#This Row],['# extra beds that fit in the room]]<>Table2[[#This Row],['# extra beds that fit in the room2]],\"yes\",\"No\")","v":"No"}]
[null,{"$f":"IF(LEN(C1205)>0,'1) Hotel information'!$C$4,\"\")","v":""},null,null,null,{"$f":"IFERROR(INDEX(Table1[Room description],MATCH('2) Room configuration'!D1205,Table1[TMS],0)),\"\")","v":""},{"$f":"IFERROR(INDEX(Table1[Bedding],MATCH('2) Room configuration'!D1205,Table1[TMS],0)),\"\")","v":""},null,null,{"$f":"IFERROR(INDEX(Table1[Room description],MATCH('2) Room configuration'!I1205,Table1[TMS],0)),\"\")","v":""},{"$f":"IFERROR(INDEX(Table1[Bedding],MATCH('2) Room configuration'!I1205,Table1[TMS],0)),\"\")","v":""},{"$f":"IFERROR(INDEX(Table1[Normal occupancy],MATCH(Table2[[#This Row],[New Room Type \n(TMS)]],Table1[TMS],0)),\"\")","v":""},null,null,null,null,"",{"$f":"IF(Table2[[#This Row],['# extra beds that fit in the room2]]<>0,LEFT(Table2[[#This Row],[New Room Type \n(TMS)]],6),\"\")","v":""},null,{"$f":"IF(Table2[[#This Row],['# extra beds that fit in the room]]<>Table2[[#This Row],['# extra beds that fit in the room2]],\"yes\",\"No\")","v":"No"}]
[null,{"$f":"IF(LEN(C1206)>0,'1) Hotel information'!$C$4,\"\")","v":""},null,null,null,{"$f":"IFERROR(INDEX(Table1[Room description],MATCH('2) Room configuration'!D1206,Table1[TMS],0)),\"\")","v":""},{"$f":"IFERROR(INDEX(Table1[Bedding],MATCH('2) Room configuration'!D1206,Table1[TMS],0)),\"\")","v":""},null,null,{"$f":"IFERROR(INDEX(Table1[Room description],MATCH('2) Room configuration'!I1206,Table1[TMS],0)),\"\")","v":""},{"$f":"IFERROR(INDEX(Table1[Bedding],MATCH('2) Room configuration'!I1206,Table1[TMS],0)),\"\")","v":""},{"$f":"IFERROR(INDEX(Table1[Normal occupancy],MATCH(Table2[[#This Row],[New Room Type \n(TMS)]],Table1[TMS],0)),\"\")","v":""},null,null,null,null,"",{"$f":"IF(Table2[[#This Row],['# extra beds that fit in the room2]]<>0,LEFT(Table2[[#This Row],[New Room Type \n(TMS)]],6),\"\")","v":""},null,{"$f":"IF(Table2[[#This Row],['# extra beds that fit in the room]]<>Table2[[#This Row],['# extra beds that fit in the room2]],\"yes\",\"No\")","v":"No"}]
[null,{"$f":"IF(LEN(C1207)>0,'1) Hotel information'!$C$4,\"\")","v":""},null,null,null,{"$f":"IFERROR(INDEX(Table1[Room description],MATCH('2) Room configuration'!D1207,Table1[TMS],0)),\"\")","v":""},{"$f":"IFERROR(INDEX(Table1[Bedding],MATCH('2) Room configuration'!D1207,Table1[TMS],0)),\"\")","v":""},null,null,{"$f":"IFERROR(INDEX(Table1[Room description],MATCH('2) Room configuration'!I1207,Table1[TMS],0)),\"\")","v":""},{"$f":"IFERROR(INDEX(Table1[Bedding],MATCH('2) Room configuration'!I1207,Table1[TMS],0)),\"\")","v":""},{"$f":"IFERROR(INDEX(Table1[Normal occupancy],MATCH(Table2[[#This Row],[New Room Type \n(TMS)]],Table1[TMS],0)),\"\")","v":""},null,null,null,null,"",{"$f":"IF(Table2[[#This Row],['# extra beds that fit in the room2]]<>0,LEFT(Table2[[#This Row],[New Room Type \n(TMS)]],6),\"\")","v":""},null,{"$f":"IF(Table2[[#This Row],['# extra beds that fit in the room]]<>Table2[[#This Row],['# extra beds that fit in the room2]],\"yes\",\"No\")","v":"No"}]
[null,{"$f":"IF(LEN(C1208)>0,'1) Hotel information'!$C$4,\"\")","v":""},null,null,null,{"$f":"IFERROR(INDEX(Table1[Room description],MATCH('2) Room configuration'!D1208,Table1[TMS],0)),\"\")","v":""},{"$f":"IFERROR(INDEX(Table1[Bedding],MATCH('2) Room configuration'!D1208,Table1[TMS],0)),\"\")","v":""},null,null,{"$f":"IFERROR(INDEX(Table1[Room description],MATCH('2) Room configuration'!I1208,Table1[TMS],0)),\"\")","v":""},{"$f":"IFERROR(INDEX(Table1[Bedding],MATCH('2) Room configuration'!I1208,Table1[TMS],0)),\"\")","v":""},{"$f":"IFERROR(INDEX(Table1[Normal occupancy],MATCH(Table2[[#This Row],[New Room Type \n(TMS)]],Table1[TMS],0)),\"\")","v":""},null,null,null,null,"",{"$f":"IF(Table2[[#This Row],['# extra beds that fit in the room2]]<>0,LEFT(Table2[[#This Row],[New Room Type \n(TMS)]],6),\"\")","v":""},null,{"$f":"IF(Table2[[#This Row],['# extra beds that fit in the room]]<>Table2[[#This Row],['# extra beds that fit in the room2]],\"yes\",\"No\")","v":"No"}]
[null,{"$f":"IF(LEN(C1209)>0,'1) Hotel information'!$C$4,\"\")","v":""},null,null,null,{"$f":"IFERROR(INDEX(Table1[Room description],MATCH('2) Room configuration'!D1209,Table1[TMS],0)),\"\")","v":""},{"$f":"IFERROR(INDEX(Table1[Bedding],MATCH('2) Room configuration'!D1209,Table1[TMS],0)),\"\")","v":""},null,null,{"$f":"IFERROR(INDEX(Table1[Room description],MATCH('2) Room configuration'!I1209,Table1[TMS],0)),\"\")","v":""},{"$f":"IFERROR(INDEX(Table1[Bedding],MATCH('2) Room configuration'!I1209,Table1[TMS],0)),\"\")","v":""},{"$f":"IFERROR(INDEX(Table1[Normal occupancy],MATCH(Table2[[#This Row],[New Room Type \n(TMS)]],Table1[TMS],0)),\"\")","v":""},null,null,null,null,"",{"$f":"IF(Table2[[#This Row],['# extra beds that fit in the room2]]<>0,LEFT(Table2[[#This Row],[New Room Type \n(TMS)]],6),\"\")","v":""},null,{"$f":"IF(Table2[[#This Row],['# extra beds that fit in the room]]<>Table2[[#This Row],['# extra beds that fit in the room2]],\"yes\",\"No\")","v":"No"}]
[null,{"$f":"IF(LEN(C1210)>0,'1) Hotel information'!$C$4,\"\")","v":""},null,null,null,{"$f":"IFERROR(INDEX(Table1[Room description],MATCH('2) Room configuration'!D1210,Table1[TMS],0)),\"\")","v":""},{"$f":"IFERROR(INDEX(Table1[Bedding],MATCH('2) Room configuration'!D1210,Table1[TMS],0)),\"\")","v":""},null,null,{"$f":"IFERROR(INDEX(Table1[Room description],MATCH('2) Room configuration'!I1210,Table1[TMS],0)),\"\")","v":""},{"$f":"IFERROR(INDEX(Table1[Bedding],MATCH('2) Room configuration'!I1210,Table1[TMS],0)),\"\")","v":""},{"$f":"IFERROR(INDEX(Table1[Normal occupancy],MATCH(Table2[[#This Row],[New Room Type \n(TMS)]],Table1[TMS],0)),\"\")","v":""},null,null,null,null,"",{"$f":"IF(Table2[[#This Row],['# extra beds that fit in the room2]]<>0,LEFT(Table2[[#This Row],[New Room Type \n(TMS)]],6),\"\")","v":""},null,{"$f":"IF(Table2[[#This Row],['# extra beds that fit in the room]]<>Table2[[#This Row],['# extra beds that fit in the room2]],\"yes\",\"No\")","v":"No"}]
[null,{"$f":"IF(LEN(C1211)>0,'1) Hotel information'!$C$4,\"\")","v":""},null,null,null,{"$f":"IFERROR(INDEX(Table1[Room description],MATCH('2) Room configuration'!D1211,Table1[TMS],0)),\"\")","v":""},{"$f":"IFERROR(INDEX(Table1[Bedding],MATCH('2) Room configuration'!D1211,Table1[TMS],0)),\"\")","v":""},null,null,{"$f":"IFERROR(INDEX(Table1[Room description],MATCH('2) Room configuration'!I1211,Table1[TMS],0)),\"\")","v":""},{"$f":"IFERROR(INDEX(Table1[Bedding],MATCH('2) Room configuration'!I1211,Table1[TMS],0)),\"\")","v":""},{"$f":"IFERROR(INDEX(Table1[Normal occupancy],MATCH(Table2[[#This Row],[New Room Type \n(TMS)]],Table1[TMS],0)),\"\")","v":""},null,null,null,null,"",{"$f":"IF(Table2[[#This Row],['# extra beds that fit in the room2]]<>0,LEFT(Table2[[#This Row],[New Room Type \n(TMS)]],6),\"\")","v":""},null,{"$f":"IF(Table2[[#This Row],['# extra beds that fit in the room]]<>Table2[[#This Row],['# extra beds that fit in the room2]],\"yes\",\"No\")","v":"No"}]
[null,{"$f":"IF(LEN(C1212)>0,'1) Hotel information'!$C$4,\"\")","v":""},null,null,null,{"$f":"IFERROR(INDEX(Table1[Room description],MATCH('2) Room configuration'!D1212,Table1[TMS],0)),\"\")","v":""},{"$f":"IFERROR(INDEX(Table1[Bedding],MATCH('2) Room configuration'!D1212,Table1[TMS],0)),\"\")","v":""},null,null,{"$f":"IFERROR(INDEX(Table1[Room description],MATCH('2) Room configuration'!I1212,Table1[TMS],0)),\"\")","v":""},{"$f":"IFERROR(INDEX(Table1[Bedding],MATCH('2) Room configuration'!I1212,Table1[TMS],0)),\"\")","v":""},{"$f":"IFERROR(INDEX(Table1[Normal occupancy],MATCH(Table2[[#This Row],[New Room Type \n(TMS)]],Table1[TMS],0)),\"\")","v":""},null,null,null,null,"",{"$f":"IF(Table2[[#This Row],['# extra beds that fit in the room2]]<>0,LEFT(Table2[[#This Row],[New Room Type \n(TMS)]],6),\"\")","v":""},null,{"$f":"IF(Table2[[#This Row],['# extra beds that fit in the room]]<>Table2[[#This Row],['# extra beds that fit in the room2]],\"yes\",\"No\")","v":"No"}]
[null,{"$f":"IF(LEN(C1213)>0,'1) Hotel information'!$C$4,\"\")","v":""},null,null,null,{"$f":"IFERROR(INDEX(Table1[Room description],MATCH('2) Room configuration'!D1213,Table1[TMS],0)),\"\")","v":""},{"$f":"IFERROR(INDEX(Table1[Bedding],MATCH('2) Room configuration'!D1213,Table1[TMS],0)),\"\")","v":""},null,null,{"$f":"IFERROR(INDEX(Table1[Room description],MATCH('2) Room configuration'!I1213,Table1[TMS],0)),\"\")","v":""},{"$f":"IFERROR(INDEX(Table1[Bedding],MATCH('2) Room configuration'!I1213,Table1[TMS],0)),\"\")","v":""},{"$f":"IFERROR(INDEX(Table1[Normal occupancy],MATCH(Table2[[#This Row],[New Room Type \n(TMS)]],Table1[TMS],0)),\"\")","v":""},null,null,null,null,"",{"$f":"IF(Table2[[#This Row],['# extra beds that fit in the room2]]<>0,LEFT(Table2[[#This Row],[New Room Type \n(TMS)]],6),\"\")","v":""},null,{"$f":"IF(Table2[[#This Row],['# extra beds that fit in the room]]<>Table2[[#This Row],['# extra beds that fit in the room2]],\"yes\",\"No\")","v":"No"}]
[null,{"$f":"IF(LEN(C1214)>0,'1) Hotel information'!$C$4,\"\")","v":""},null,null,null,{"$f":"IFERROR(INDEX(Table1[Room description],MATCH('2) Room configuration'!D1214,Table1[TMS],0)),\"\")","v":""},{"$f":"IFERROR(INDEX(Table1[Bedding],MATCH('2) Room configuration'!D1214,Table1[TMS],0)),\"\")","v":""},null,null,{"$f":"IFERROR(INDEX(Table1[Room description],MATCH('2) Room configuration'!I1214,Table1[TMS],0)),\"\")","v":""},{"$f":"IFERROR(INDEX(Table1[Bedding],MATCH('2) Room configuration'!I1214,Table1[TMS],0)),\"\")","v":""},{"$f":"IFERROR(INDEX(Table1[Normal occupancy],MATCH(Table2[[#This Row],[New Room Type \n(TMS)]],Table1[TMS],0)),\"\")","v":""},null,null,null,null,"",{"$f":"IF(Table2[[#This Row],['# extra beds that fit in the room2]]<>0,LEFT(Table2[[#This Row],[New Room Type \n(TMS)]],6),\"\")","v":""},null,{"$f":"IF(Table2[[#This Row],['# extra beds that fit in the room]]<>Table2[[#This Row],['# extra beds that fit in the room2]],\"yes\",\"No\")","v":"No"}]
[null,{"$f":"IF(LEN(C1215)>0,'1) Hotel information'!$C$4,\"\")","v":""},null,null,null,{"$f":"IFERROR(INDEX(Table1[Room description],MATCH('2) Room configuration'!D1215,Table1[TMS],0)),\"\")","v":""},{"$f":"IFERROR(INDEX(Table1[Bedding],MATCH('2) Room configuration'!D1215,Table1[TMS],0)),\"\")","v":""},null,null,{"$f":"IFERROR(INDEX(Table1[Room description],MATCH('2) Room configuration'!I1215,Table1[TMS],0)),\"\")","v":""},{"$f":"IFERROR(INDEX(Table1[Bedding],MATCH('2) Room configuration'!I1215,Table1[TMS],0)),\"\")","v":""},{"$f":"IFERROR(INDEX(Table1[Normal occupancy],MATCH(Table2[[#This Row],[New Room Type \n(TMS)]],Table1[TMS],0)),\"\")","v":""},null,null,null,null,"",{"$f":"IF(Table2[[#This Row],['# extra beds that fit in the room2]]<>0,LEFT(Table2[[#This Row],[New Room Type \n(TMS)]],6),\"\")","v":""},null,{"$f":"IF(Table2[[#This Row],['# extra beds that fit in the room]]<>Table2[[#This Row],['# extra beds that fit in the room2]],\"yes\",\"No\")","v":"No"}]
[null,{"$f":"IF(LEN(C1216)>0,'1) Hotel information'!$C$4,\"\")","v":""},null,null,null,{"$f":"IFERROR(INDEX(Table1[Room description],MATCH('2) Room configuration'!D1216,Table1[TMS],0)),\"\")","v":""},{"$f":"IFERROR(INDEX(Table1[Bedding],MATCH('2) Room configuration'!D1216,Table1[TMS],0)),\"\")","v":""},null,null,{"$f":"IFERROR(INDEX(Table1[Room description],MATCH('2) Room configuration'!I1216,Table1[TMS],0)),\"\")","v":""},{"$f":"IFERROR(INDEX(Table1[Bedding],MATCH('2) Room configuration'!I1216,Table1[TMS],0)),\"\")","v":""},{"$f":"IFERROR(INDEX(Table1[Normal occupancy],MATCH(Table2[[#This Row],[New Room Type \n(TMS)]],Table1[TMS],0)),\"\")","v":""},null,null,null,null,"",{"$f":"IF(Table2[[#This Row],['# extra beds that fit in the room2]]<>0,LEFT(Table2[[#This Row],[New Room Type \n(TMS)]],6),\"\")","v":""},null,{"$f":"IF(Table2[[#This Row],['# extra beds that fit in the room]]<>Table2[[#This Row],['# extra beds that fit in the room2]],\"yes\",\"No\")","v":"No"}]
[null,{"$f":"IF(LEN(C1217)>0,'1) Hotel information'!$C$4,\"\")","v":""},null,null,null,{"$f":"IFERROR(INDEX(Table1[Room description],MATCH('2) Room configuration'!D1217,Table1[TMS],0)),\"\")","v":""},{"$f":"IFERROR(INDEX(Table1[Bedding],MATCH('2) Room configuration'!D1217,Table1[TMS],0)),\"\")","v":""},null,null,{"$f":"IFERROR(INDEX(Table1[Room description],MATCH('2) Room configuration'!I1217,Table1[TMS],0)),\"\")","v":""},{"$f":"IFERROR(INDEX(Table1[Bedding],MATCH('2) Room configuration'!I1217,Table1[TMS],0)),\"\")","v":""},{"$f":"IFERROR(INDEX(Table1[Normal occupancy],MATCH(Table2[[#This Row],[New Room Type \n(TMS)]],Table1[TMS],0)),\"\")","v":""},null,null,null,null,"",{"$f":"IF(Table2[[#This Row],['# extra beds that fit in the room2]]<>0,LEFT(Table2[[#This Row],[New Room Type \n(TMS)]],6),\"\")","v":""},null,{"$f":"IF(Table2[[#This Row],['# extra beds that fit in the room]]<>Table2[[#This Row],['# extra beds that fit in the room2]],\"yes\",\"No\")","v":"No"}]
[null,{"$f":"IF(LEN(C1218)>0,'1) Hotel information'!$C$4,\"\")","v":""},null,null,null,{"$f":"IFERROR(INDEX(Table1[Room description],MATCH('2) Room configuration'!D1218,Table1[TMS],0)),\"\")","v":""},{"$f":"IFERROR(INDEX(Table1[Bedding],MATCH('2) Room configuration'!D1218,Table1[TMS],0)),\"\")","v":""},null,null,{"$f":"IFERROR(INDEX(Table1[Room description],MATCH('2) Room configuration'!I1218,Table1[TMS],0)),\"\")","v":""},{"$f":"IFERROR(INDEX(Table1[Bedding],MATCH('2) Room configuration'!I1218,Table1[TMS],0)),\"\")","v":""},{"$f":"IFERROR(INDEX(Table1[Normal occupancy],MATCH(Table2[[#This Row],[New Room Type \n(TMS)]],Table1[TMS],0)),\"\")","v":""},null,null,null,null,"",{"$f":"IF(Table2[[#This Row],['# extra beds that fit in the room2]]<>0,LEFT(Table2[[#This Row],[New Room Type \n(TMS)]],6),\"\")","v":""},null,{"$f":"IF(Table2[[#This Row],['# extra beds that fit in the room]]<>Table2[[#This Row],['# extra beds that fit in the room2]],\"yes\",\"No\")","v":"No"}]
[null,{"$f":"IF(LEN(C1219)>0,'1) Hotel information'!$C$4,\"\")","v":""},null,null,null,{"$f":"IFERROR(INDEX(Table1[Room description],MATCH('2) Room configuration'!D1219,Table1[TMS],0)),\"\")","v":""},{"$f":"IFERROR(INDEX(Table1[Bedding],MATCH('2) Room configuration'!D1219,Table1[TMS],0)),\"\")","v":""},null,null,{"$f":"IFERROR(INDEX(Table1[Room description],MATCH('2) Room configuration'!I1219,Table1[TMS],0)),\"\")","v":""},{"$f":"IFERROR(INDEX(Table1[Bedding],MATCH('2) Room configuration'!I1219,Table1[TMS],0)),\"\")","v":""},{"$f":"IFERROR(INDEX(Table1[Normal occupancy],MATCH(Table2[[#This Row],[New Room Type \n(TMS)]],Table1[TMS],0)),\"\")","v":""},null,null,null,null,"",{"$f":"IF(Table2[[#This Row],['# extra beds that fit in the room2]]<>0,LEFT(Table2[[#This Row],[New Room Type \n(TMS)]],6),\"\")","v":""},null,{"$f":"IF(Table2[[#This Row],['# extra beds that fit in the room]]<>Table2[[#This Row],['# extra beds that fit in the room2]],\"yes\",\"No\")","v":"No"}]
[null,{"$f":"IF(LEN(C1220)>0,'1) Hotel information'!$C$4,\"\")","v":""},null,null,null,{"$f":"IFERROR(INDEX(Table1[Room description],MATCH('2) Room configuration'!D1220,Table1[TMS],0)),\"\")","v":""},{"$f":"IFERROR(INDEX(Table1[Bedding],MATCH('2) Room configuration'!D1220,Table1[TMS],0)),\"\")","v":""},null,null,{"$f":"IFERROR(INDEX(Table1[Room description],MATCH('2) Room configuration'!I1220,Table1[TMS],0)),\"\")","v":""},{"$f":"IFERROR(INDEX(Table1[Bedding],MATCH('2) Room configuration'!I1220,Table1[TMS],0)),\"\")","v":""},{"$f":"IFERROR(INDEX(Table1[Normal occupancy],MATCH(Table2[[#This Row],[New Room Type \n(TMS)]],Table1[TMS],0)),\"\")","v":""},null,null,null,null,"",{"$f":"IF(Table2[[#This Row],['# extra beds that fit in the room2]]<>0,LEFT(Table2[[#This Row],[New Room Type \n(TMS)]],6),\"\")","v":""},null,{"$f":"IF(Table2[[#This Row],['# extra beds that fit in the room]]<>Table2[[#This Row],['# extra beds that fit in the room2]],\"yes\",\"No\")","v":"No"}]
[null,{"$f":"IF(LEN(C1221)>0,'1) Hotel information'!$C$4,\"\")","v":""},null,null,null,{"$f":"IFERROR(INDEX(Table1[Room description],MATCH('2) Room configuration'!D1221,Table1[TMS],0)),\"\")","v":""},{"$f":"IFERROR(INDEX(Table1[Bedding],MATCH('2) Room configuration'!D1221,Table1[TMS],0)),\"\")","v":""},null,null,{"$f":"IFERROR(INDEX(Table1[Room description],MATCH('2) Room configuration'!I1221,Table1[TMS],0)),\"\")","v":""},{"$f":"IFERROR(INDEX(Table1[Bedding],MATCH('2) Room configuration'!I1221,Table1[TMS],0)),\"\")","v":""},{"$f":"IFERROR(INDEX(Table1[Normal occupancy],MATCH(Table2[[#This Row],[New Room Type \n(TMS)]],Table1[TMS],0)),\"\")","v":""},null,null,null,null,"",{"$f":"IF(Table2[[#This Row],['# extra beds that fit in the room2]]<>0,LEFT(Table2[[#This Row],[New Room Type \n(TMS)]],6),\"\")","v":""},null,{"$f":"IF(Table2[[#This Row],['# extra beds that fit in the room]]<>Table2[[#This Row],['# extra beds that fit in the room2]],\"yes\",\"No\")","v":"No"}]
[null,{"$f":"IF(LEN(C1222)>0,'1) Hotel information'!$C$4,\"\")","v":""},null,null,null,{"$f":"IFERROR(INDEX(Table1[Room description],MATCH('2) Room configuration'!D1222,Table1[TMS],0)),\"\")","v":""},{"$f":"IFERROR(INDEX(Table1[Bedding],MATCH('2) Room configuration'!D1222,Table1[TMS],0)),\"\")","v":""},null,null,{"$f":"IFERROR(INDEX(Table1[Room description],MATCH('2) Room configuration'!I1222,Table1[TMS],0)),\"\")","v":""},{"$f":"IFERROR(INDEX(Table1[Bedding],MATCH('2) Room configuration'!I1222,Table1[TMS],0)),\"\")","v":""},{"$f":"IFERROR(INDEX(Table1[Normal occupancy],MATCH(Table2[[#This Row],[New Room Type \n(TMS)]],Table1[TMS],0)),\"\")","v":""},null,null,null,null,"",{"$f":"IF(Table2[[#This Row],['# extra beds that fit in the room2]]<>0,LEFT(Table2[[#This Row],[New Room Type \n(TMS)]],6),\"\")","v":""},null,{"$f":"IF(Table2[[#This Row],['# extra beds that fit in the room]]<>Table2[[#This Row],['# extra beds that fit in the room2]],\"yes\",\"No\")","v":"No"}]
[null,{"$f":"IF(LEN(C1223)>0,'1) Hotel information'!$C$4,\"\")","v":""},null,null,null,{"$f":"IFERROR(INDEX(Table1[Room description],MATCH('2) Room configuration'!D1223,Table1[TMS],0)),\"\")","v":""},{"$f":"IFERROR(INDEX(Table1[Bedding],MATCH('2) Room configuration'!D1223,Table1[TMS],0)),\"\")","v":""},null,null,{"$f":"IFERROR(INDEX(Table1[Room description],MATCH('2) Room configuration'!I1223,Table1[TMS],0)),\"\")","v":""},{"$f":"IFERROR(INDEX(Table1[Bedding],MATCH('2) Room configuration'!I1223,Table1[TMS],0)),\"\")","v":""},{"$f":"IFERROR(INDEX(Table1[Normal occupancy],MATCH(Table2[[#This Row],[New Room Type \n(TMS)]],Table1[TMS],0)),\"\")","v":""},null,null,null,null,"",{"$f":"IF(Table2[[#This Row],['# extra beds that fit in the room2]]<>0,LEFT(Table2[[#This Row],[New Room Type \n(TMS)]],6),\"\")","v":""},null,{"$f":"IF(Table2[[#This Row],['# extra beds that fit in the room]]<>Table2[[#This Row],['# extra beds that fit in the room2]],\"yes\",\"No\")","v":"No"}]
[null,{"$f":"IF(LEN(C1224)>0,'1) Hotel information'!$C$4,\"\")","v":""},null,null,null,{"$f":"IFERROR(INDEX(Table1[Room description],MATCH('2) Room configuration'!D1224,Table1[TMS],0)),\"\")","v":""},{"$f":"IFERROR(INDEX(Table1[Bedding],MATCH('2) Room configuration'!D1224,Table1[TMS],0)),\"\")","v":""},null,null,{"$f":"IFERROR(INDEX(Table1[Room description],MATCH('2) Room configuration'!I1224,Table1[TMS],0)),\"\")","v":""},{"$f":"IFERROR(INDEX(Table1[Bedding],MATCH('2) Room configuration'!I1224,Table1[TMS],0)),\"\")","v":""},{"$f":"IFERROR(INDEX(Table1[Normal occupancy],MATCH(Table2[[#This Row],[New Room Type \n(TMS)]],Table1[TMS],0)),\"\")","v":""},null,null,null,null,"",{"$f":"IF(Table2[[#This Row],['# extra beds that fit in the room2]]<>0,LEFT(Table2[[#This Row],[New Room Type \n(TMS)]],6),\"\")","v":""},null,{"$f":"IF(Table2[[#This Row],['# extra beds that fit in the room]]<>Table2[[#This Row],['# extra beds that fit in the room2]],\"yes\",\"No\")","v":"No"}]
[null,{"$f":"IF(LEN(C1225)>0,'1) Hotel information'!$C$4,\"\")","v":""},null,null,null,{"$f":"IFERROR(INDEX(Table1[Room description],MATCH('2) Room configuration'!D1225,Table1[TMS],0)),\"\")","v":""},{"$f":"IFERROR(INDEX(Table1[Bedding],MATCH('2) Room configuration'!D1225,Table1[TMS],0)),\"\")","v":""},null,null,{"$f":"IFERROR(INDEX(Table1[Room description],MATCH('2) Room configuration'!I1225,Table1[TMS],0)),\"\")","v":""},{"$f":"IFERROR(INDEX(Table1[Bedding],MATCH('2) Room configuration'!I1225,Table1[TMS],0)),\"\")","v":""},{"$f":"IFERROR(INDEX(Table1[Normal occupancy],MATCH(Table2[[#This Row],[New Room Type \n(TMS)]],Table1[TMS],0)),\"\")","v":""},null,null,null,null,"",{"$f":"IF(Table2[[#This Row],['# extra beds that fit in the room2]]<>0,LEFT(Table2[[#This Row],[New Room Type \n(TMS)]],6),\"\")","v":""},null,{"$f":"IF(Table2[[#This Row],['# extra beds that fit in the room]]<>Table2[[#This Row],['# extra beds that fit in the room2]],\"yes\",\"No\")","v":"No"}]
[null,{"$f":"IF(LEN(C1226)>0,'1) Hotel information'!$C$4,\"\")","v":""},null,null,null,{"$f":"IFERROR(INDEX(Table1[Room description],MATCH('2) Room configuration'!D1226,Table1[TMS],0)),\"\")","v":""},{"$f":"IFERROR(INDEX(Table1[Bedding],MATCH('2) Room configuration'!D1226,Table1[TMS],0)),\"\")","v":""},null,null,{"$f":"IFERROR(INDEX(Table1[Room description],MATCH('2) Room configuration'!I1226,Table1[TMS],0)),\"\")","v":""},{"$f":"IFERROR(INDEX(Table1[Bedding],MATCH('2) Room configuration'!I1226,Table1[TMS],0)),\"\")","v":""},{"$f":"IFERROR(INDEX(Table1[Normal occupancy],MATCH(Table2[[#This Row],[New Room Type \n(TMS)]],Table1[TMS],0)),\"\")","v":""},null,null,null,null,"",{"$f":"IF(Table2[[#This Row],['# extra beds that fit in the room2]]<>0,LEFT(Table2[[#This Row],[New Room Type \n(TMS)]],6),\"\")","v":""},null,{"$f":"IF(Table2[[#This Row],['# extra beds that fit in the room]]<>Table2[[#This Row],['# extra beds that fit in the room2]],\"yes\",\"No\")","v":"No"}]
[null,{"$f":"IF(LEN(C1227)>0,'1) Hotel information'!$C$4,\"\")","v":""},null,null,null,{"$f":"IFERROR(INDEX(Table1[Room description],MATCH('2) Room configuration'!D1227,Table1[TMS],0)),\"\")","v":""},{"$f":"IFERROR(INDEX(Table1[Bedding],MATCH('2) Room configuration'!D1227,Table1[TMS],0)),\"\")","v":""},null,null,{"$f":"IFERROR(INDEX(Table1[Room description],MATCH('2) Room configuration'!I1227,Table1[TMS],0)),\"\")","v":""},{"$f":"IFERROR(INDEX(Table1[Bedding],MATCH('2) Room configuration'!I1227,Table1[TMS],0)),\"\")","v":""},{"$f":"IFERROR(INDEX(Table1[Normal occupancy],MATCH(Table2[[#This Row],[New Room Type \n(TMS)]],Table1[TMS],0)),\"\")","v":""},null,null,null,null,"",{"$f":"IF(Table2[[#This Row],['# extra beds that fit in the room2]]<>0,LEFT(Table2[[#This Row],[New Room Type \n(TMS)]],6),\"\")","v":""},null,{"$f":"IF(Table2[[#This Row],['# extra beds that fit in the room]]<>Table2[[#This Row],['# extra beds that fit in the room2]],\"yes\",\"No\")","v":"No"}]
[null,{"$f":"IF(LEN(C1228)>0,'1) Hotel information'!$C$4,\"\")","v":""},null,null,null,{"$f":"IFERROR(INDEX(Table1[Room description],MATCH('2) Room configuration'!D1228,Table1[TMS],0)),\"\")","v":""},{"$f":"IFERROR(INDEX(Table1[Bedding],MATCH('2) Room configuration'!D1228,Table1[TMS],0)),\"\")","v":""},null,null,{"$f":"IFERROR(INDEX(Table1[Room description],MATCH('2) Room configuration'!I1228,Table1[TMS],0)),\"\")","v":""},{"$f":"IFERROR(INDEX(Table1[Bedding],MATCH('2) Room configuration'!I1228,Table1[TMS],0)),\"\")","v":""},{"$f":"IFERROR(INDEX(Table1[Normal occupancy],MATCH(Table2[[#This Row],[New Room Type \n(TMS)]],Table1[TMS],0)),\"\")","v":""},null,null,null,null,"",{"$f":"IF(Table2[[#This Row],['# extra beds that fit in the room2]]<>0,LEFT(Table2[[#This Row],[New Room Type \n(TMS)]],6),\"\")","v":""},null,{"$f":"IF(Table2[[#This Row],['# extra beds that fit in the room]]<>Table2[[#This Row],['# extra beds that fit in the room2]],\"yes\",\"No\")","v":"No"}]
[null,{"$f":"IF(LEN(C1229)>0,'1) Hotel information'!$C$4,\"\")","v":""},null,null,null,{"$f":"IFERROR(INDEX(Table1[Room description],MATCH('2) Room configuration'!D1229,Table1[TMS],0)),\"\")","v":""},{"$f":"IFERROR(INDEX(Table1[Bedding],MATCH('2) Room configuration'!D1229,Table1[TMS],0)),\"\")","v":""},null,null,{"$f":"IFERROR(INDEX(Table1[Room description],MATCH('2) Room configuration'!I1229,Table1[TMS],0)),\"\")","v":""},{"$f":"IFERROR(INDEX(Table1[Bedding],MATCH('2) Room configuration'!I1229,Table1[TMS],0)),\"\")","v":""},{"$f":"IFERROR(INDEX(Table1[Normal occupancy],MATCH(Table2[[#This Row],[New Room Type \n(TMS)]],Table1[TMS],0)),\"\")","v":""},null,null,null,null,"",{"$f":"IF(Table2[[#This Row],['# extra beds that fit in the room2]]<>0,LEFT(Table2[[#This Row],[New Room Type \n(TMS)]],6),\"\")","v":""},null,{"$f":"IF(Table2[[#This Row],['# extra beds that fit in the room]]<>Table2[[#This Row],['# extra beds that fit in the room2]],\"yes\",\"No\")","v":"No"}]
[null,{"$f":"IF(LEN(C1230)>0,'1) Hotel information'!$C$4,\"\")","v":""},null,null,null,{"$f":"IFERROR(INDEX(Table1[Room description],MATCH('2) Room configuration'!D1230,Table1[TMS],0)),\"\")","v":""},{"$f":"IFERROR(INDEX(Table1[Bedding],MATCH('2) Room configuration'!D1230,Table1[TMS],0)),\"\")","v":""},null,null,{"$f":"IFERROR(INDEX(Table1[Room description],MATCH('2) Room configuration'!I1230,Table1[TMS],0)),\"\")","v":""},{"$f":"IFERROR(INDEX(Table1[Bedding],MATCH('2) Room configuration'!I1230,Table1[TMS],0)),\"\")","v":""},{"$f":"IFERROR(INDEX(Table1[Normal occupancy],MATCH(Table2[[#This Row],[New Room Type \n(TMS)]],Table1[TMS],0)),\"\")","v":""},null,null,null,null,"",{"$f":"IF(Table2[[#This Row],['# extra beds that fit in the room2]]<>0,LEFT(Table2[[#This Row],[New Room Type \n(TMS)]],6),\"\")","v":""},null,{"$f":"IF(Table2[[#This Row],['# extra beds that fit in the room]]<>Table2[[#This Row],['# extra beds that fit in the room2]],\"yes\",\"No\")","v":"No"}]
[null,{"$f":"IF(LEN(C1231)>0,'1) Hotel information'!$C$4,\"\")","v":""},null,null,null,{"$f":"IFERROR(INDEX(Table1[Room description],MATCH('2) Room configuration'!D1231,Table1[TMS],0)),\"\")","v":""},{"$f":"IFERROR(INDEX(Table1[Bedding],MATCH('2) Room configuration'!D1231,Table1[TMS],0)),\"\")","v":""},null,null,{"$f":"IFERROR(INDEX(Table1[Room description],MATCH('2) Room configuration'!I1231,Table1[TMS],0)),\"\")","v":""},{"$f":"IFERROR(INDEX(Table1[Bedding],MATCH('2) Room configuration'!I1231,Table1[TMS],0)),\"\")","v":""},{"$f":"IFERROR(INDEX(Table1[Normal occupancy],MATCH(Table2[[#This Row],[New Room Type \n(TMS)]],Table1[TMS],0)),\"\")","v":""},null,null,null,null,"",{"$f":"IF(Table2[[#This Row],['# extra beds that fit in the room2]]<>0,LEFT(Table2[[#This Row],[New Room Type \n(TMS)]],6),\"\")","v":""},null,{"$f":"IF(Table2[[#This Row],['# extra beds that fit in the room]]<>Table2[[#This Row],['# extra beds that fit in the room2]],\"yes\",\"No\")","v":"No"}]
[null,{"$f":"IF(LEN(C1232)>0,'1) Hotel information'!$C$4,\"\")","v":""},null,null,null,{"$f":"IFERROR(INDEX(Table1[Room description],MATCH('2) Room configuration'!D1232,Table1[TMS],0)),\"\")","v":""},{"$f":"IFERROR(INDEX(Table1[Bedding],MATCH('2) Room configuration'!D1232,Table1[TMS],0)),\"\")","v":""},null,null,{"$f":"IFERROR(INDEX(Table1[Room description],MATCH('2) Room configuration'!I1232,Table1[TMS],0)),\"\")","v":""},{"$f":"IFERROR(INDEX(Table1[Bedding],MATCH('2) Room configuration'!I1232,Table1[TMS],0)),\"\")","v":""},{"$f":"IFERROR(INDEX(Table1[Normal occupancy],MATCH(Table2[[#This Row],[New Room Type \n(TMS)]],Table1[TMS],0)),\"\")","v":""},null,null,null,null,"",{"$f":"IF(Table2[[#This Row],['# extra beds that fit in the room2]]<>0,LEFT(Table2[[#This Row],[New Room Type \n(TMS)]],6),\"\")","v":""},null,{"$f":"IF(Table2[[#This Row],['# extra beds that fit in the room]]<>Table2[[#This Row],['# extra beds that fit in the room2]],\"yes\",\"No\")","v":"No"}]
[null,{"$f":"IF(LEN(C1233)>0,'1) Hotel information'!$C$4,\"\")","v":""},null,null,null,{"$f":"IFERROR(INDEX(Table1[Room description],MATCH('2) Room configuration'!D1233,Table1[TMS],0)),\"\")","v":""},{"$f":"IFERROR(INDEX(Table1[Bedding],MATCH('2) Room configuration'!D1233,Table1[TMS],0)),\"\")","v":""},null,null,{"$f":"IFERROR(INDEX(Table1[Room description],MATCH('2) Room configuration'!I1233,Table1[TMS],0)),\"\")","v":""},{"$f":"IFERROR(INDEX(Table1[Bedding],MATCH('2) Room configuration'!I1233,Table1[TMS],0)),\"\")","v":""},{"$f":"IFERROR(INDEX(Table1[Normal occupancy],MATCH(Table2[[#This Row],[New Room Type \n(TMS)]],Table1[TMS],0)),\"\")","v":""},null,null,null,null,"",{"$f":"IF(Table2[[#This Row],['# extra beds that fit in the room2]]<>0,LEFT(Table2[[#This Row],[New Room Type \n(TMS)]],6),\"\")","v":""},null,{"$f":"IF(Table2[[#This Row],['# extra beds that fit in the room]]<>Table2[[#This Row],['# extra beds that fit in the room2]],\"yes\",\"No\")","v":"No"}]
[null,{"$f":"IF(LEN(C1234)>0,'1) Hotel information'!$C$4,\"\")","v":""},null,null,null,{"$f":"IFERROR(INDEX(Table1[Room description],MATCH('2) Room configuration'!D1234,Table1[TMS],0)),\"\")","v":""},{"$f":"IFERROR(INDEX(Table1[Bedding],MATCH('2) Room configuration'!D1234,Table1[TMS],0)),\"\")","v":""},null,null,{"$f":"IFERROR(INDEX(Table1[Room description],MATCH('2) Room configuration'!I1234,Table1[TMS],0)),\"\")","v":""},{"$f":"IFERROR(INDEX(Table1[Bedding],MATCH('2) Room configuration'!I1234,Table1[TMS],0)),\"\")","v":""},{"$f":"IFERROR(INDEX(Table1[Normal occupancy],MATCH(Table2[[#This Row],[New Room Type \n(TMS)]],Table1[TMS],0)),\"\")","v":""},null,null,null,null,"",{"$f":"IF(Table2[[#This Row],['# extra beds that fit in the room2]]<>0,LEFT(Table2[[#This Row],[New Room Type \n(TMS)]],6),\"\")","v":""},null,{"$f":"IF(Table2[[#This Row],['# extra beds that fit in the room]]<>Table2[[#This Row],['# extra beds that fit in the room2]],\"yes\",\"No\")","v":"No"}]
[null,{"$f":"IF(LEN(C1235)>0,'1) Hotel information'!$C$4,\"\")","v":""},null,null,null,{"$f":"IFERROR(INDEX(Table1[Room description],MATCH('2) Room configuration'!D1235,Table1[TMS],0)),\"\")","v":""},{"$f":"IFERROR(INDEX(Table1[Bedding],MATCH('2) Room configuration'!D1235,Table1[TMS],0)),\"\")","v":""},null,null,{"$f":"IFERROR(INDEX(Table1[Room description],MATCH('2) Room configuration'!I1235,Table1[TMS],0)),\"\")","v":""},{"$f":"IFERROR(INDEX(Table1[Bedding],MATCH('2) Room configuration'!I1235,Table1[TMS],0)),\"\")","v":""},{"$f":"IFERROR(INDEX(Table1[Normal occupancy],MATCH(Table2[[#This Row],[New Room Type \n(TMS)]],Table1[TMS],0)),\"\")","v":""},null,null,null,null,"",{"$f":"IF(Table2[[#This Row],['# extra beds that fit in the room2]]<>0,LEFT(Table2[[#This Row],[New Room Type \n(TMS)]],6),\"\")","v":""},null,{"$f":"IF(Table2[[#This Row],['# extra beds that fit in the room]]<>Table2[[#This Row],['# extra beds that fit in the room2]],\"yes\",\"No\")","v":"No"}]
[null,{"$f":"IF(LEN(C1236)>0,'1) Hotel information'!$C$4,\"\")","v":""},null,null,null,{"$f":"IFERROR(INDEX(Table1[Room description],MATCH('2) Room configuration'!D1236,Table1[TMS],0)),\"\")","v":""},{"$f":"IFERROR(INDEX(Table1[Bedding],MATCH('2) Room configuration'!D1236,Table1[TMS],0)),\"\")","v":""},null,null,{"$f":"IFERROR(INDEX(Table1[Room description],MATCH('2) Room configuration'!I1236,Table1[TMS],0)),\"\")","v":""},{"$f":"IFERROR(INDEX(Table1[Bedding],MATCH('2) Room configuration'!I1236,Table1[TMS],0)),\"\")","v":""},{"$f":"IFERROR(INDEX(Table1[Normal occupancy],MATCH(Table2[[#This Row],[New Room Type \n(TMS)]],Table1[TMS],0)),\"\")","v":""},null,null,null,null,"",{"$f":"IF(Table2[[#This Row],['# extra beds that fit in the room2]]<>0,LEFT(Table2[[#This Row],[New Room Type \n(TMS)]],6),\"\")","v":""},null,{"$f":"IF(Table2[[#This Row],['# extra beds that fit in the room]]<>Table2[[#This Row],['# extra beds that fit in the room2]],\"yes\",\"No\")","v":"No"}]
[null,{"$f":"IF(LEN(C1237)>0,'1) Hotel information'!$C$4,\"\")","v":""},null,null,null,{"$f":"IFERROR(INDEX(Table1[Room description],MATCH('2) Room configuration'!D1237,Table1[TMS],0)),\"\")","v":""},{"$f":"IFERROR(INDEX(Table1[Bedding],MATCH('2) Room configuration'!D1237,Table1[TMS],0)),\"\")","v":""},null,null,{"$f":"IFERROR(INDEX(Table1[Room description],MATCH('2) Room configuration'!I1237,Table1[TMS],0)),\"\")","v":""},{"$f":"IFERROR(INDEX(Table1[Bedding],MATCH('2) Room configuration'!I1237,Table1[TMS],0)),\"\")","v":""},{"$f":"IFERROR(INDEX(Table1[Normal occupancy],MATCH(Table2[[#This Row],[New Room Type \n(TMS)]],Table1[TMS],0)),\"\")","v":""},null,null,null,null,"",{"$f":"IF(Table2[[#This Row],['# extra beds that fit in the room2]]<>0,LEFT(Table2[[#This Row],[New Room Type \n(TMS)]],6),\"\")","v":""},null,{"$f":"IF(Table2[[#This Row],['# extra beds that fit in the room]]<>Table2[[#This Row],['# extra beds that fit in the room2]],\"yes\",\"No\")","v":"No"}]
[null,{"$f":"IF(LEN(C1238)>0,'1) Hotel information'!$C$4,\"\")","v":""},null,null,null,{"$f":"IFERROR(INDEX(Table1[Room description],MATCH('2) Room configuration'!D1238,Table1[TMS],0)),\"\")","v":""},{"$f":"IFERROR(INDEX(Table1[Bedding],MATCH('2) Room configuration'!D1238,Table1[TMS],0)),\"\")","v":""},null,null,{"$f":"IFERROR(INDEX(Table1[Room description],MATCH('2) Room configuration'!I1238,Table1[TMS],0)),\"\")","v":""},{"$f":"IFERROR(INDEX(Table1[Bedding],MATCH('2) Room configuration'!I1238,Table1[TMS],0)),\"\")","v":""},{"$f":"IFERROR(INDEX(Table1[Normal occupancy],MATCH(Table2[[#This Row],[New Room Type \n(TMS)]],Table1[TMS],0)),\"\")","v":""},null,null,null,null,"",{"$f":"IF(Table2[[#This Row],['# extra beds that fit in the room2]]<>0,LEFT(Table2[[#This Row],[New Room Type \n(TMS)]],6),\"\")","v":""},null,{"$f":"IF(Table2[[#This Row],['# extra beds that fit in the room]]<>Table2[[#This Row],['# extra beds that fit in the room2]],\"yes\",\"No\")","v":"No"}]
[null,{"$f":"IF(LEN(C1239)>0,'1) Hotel information'!$C$4,\"\")","v":""},null,null,null,{"$f":"IFERROR(INDEX(Table1[Room description],MATCH('2) Room configuration'!D1239,Table1[TMS],0)),\"\")","v":""},{"$f":"IFERROR(INDEX(Table1[Bedding],MATCH('2) Room configuration'!D1239,Table1[TMS],0)),\"\")","v":""},null,null,{"$f":"IFERROR(INDEX(Table1[Room description],MATCH('2) Room configuration'!I1239,Table1[TMS],0)),\"\")","v":""},{"$f":"IFERROR(INDEX(Table1[Bedding],MATCH('2) Room configuration'!I1239,Table1[TMS],0)),\"\")","v":""},{"$f":"IFERROR(INDEX(Table1[Normal occupancy],MATCH(Table2[[#This Row],[New Room Type \n(TMS)]],Table1[TMS],0)),\"\")","v":""},null,null,null,null,{"$f":"IF(LEN(C1239)>0,IF(D1239=I1239,\"No\",\"Yes\"),\"\")","v":""},{"$f":"IF(Table2[[#This Row],['# extra beds that fit in the room2]]<>0,LEFT(Table2[[#This Row],[New Room Type \n(TMS)]],6),\"\")","v":""},null,{"$f":"IF(Table2[[#This Row],['# extra beds that fit in the room]]<>Table2[[#This Row],['# extra beds that fit in the room2]],\"yes\",\"No\")","v":"No"}]
[null,{"$f":"IF(LEN(C1240)>0,'1) Hotel information'!$C$4,\"\")","v":""},null,null,null,{"$f":"IFERROR(INDEX(Table1[Room description],MATCH('2) Room configuration'!D1240,Table1[TMS],0)),\"\")","v":""},{"$f":"IFERROR(INDEX(Table1[Bedding],MATCH('2) Room configuration'!D1240,Table1[TMS],0)),\"\")","v":""},null,null,{"$f":"IFERROR(INDEX(Table1[Room description],MATCH('2) Room configuration'!I1240,Table1[TMS],0)),\"\")","v":""},{"$f":"IFERROR(INDEX(Table1[Bedding],MATCH('2) Room configuration'!I1240,Table1[TMS],0)),\"\")","v":""},{"$f":"IFERROR(INDEX(Table1[Normal occupancy],MATCH(Table2[[#This Row],[New Room Type \n(TMS)]],Table1[TMS],0)),\"\")","v":""},null,null,null,null,"",{"$f":"IF(Table2[[#This Row],['# extra beds that fit in the room2]]<>0,LEFT(Table2[[#This Row],[New Room Type \n(TMS)]],6),\"\")","v":""},null,{"$f":"IF(Table2[[#This Row],['# extra beds that fit in the room]]<>Table2[[#This Row],['# extra beds that fit in the room2]],\"yes\",\"No\")","v":"No"}]
[null,{"$f":"IF(LEN(C1241)>0,'1) Hotel information'!$C$4,\"\")","v":""},null,null,null,{"$f":"IFERROR(INDEX(Table1[Room description],MATCH('2) Room configuration'!D1241,Table1[TMS],0)),\"\")","v":""},{"$f":"IFERROR(INDEX(Table1[Bedding],MATCH('2) Room configuration'!D1241,Table1[TMS],0)),\"\")","v":""},null,null,{"$f":"IFERROR(INDEX(Table1[Room description],MATCH('2) Room configuration'!I1241,Table1[TMS],0)),\"\")","v":""},{"$f":"IFERROR(INDEX(Table1[Bedding],MATCH('2) Room configuration'!I1241,Table1[TMS],0)),\"\")","v":""},{"$f":"IFERROR(INDEX(Table1[Normal occupancy],MATCH(Table2[[#This Row],[New Room Type \n(TMS)]],Table1[TMS],0)),\"\")","v":""},null,null,null,null,"",{"$f":"IF(Table2[[#This Row],['# extra beds that fit in the room2]]<>0,LEFT(Table2[[#This Row],[New Room Type \n(TMS)]],6),\"\")","v":""},null,{"$f":"IF(Table2[[#This Row],['# extra beds that fit in the room]]<>Table2[[#This Row],['# extra beds that fit in the room2]],\"yes\",\"No\")","v":"No"}]
[null,{"$f":"IF(LEN(C1242)>0,'1) Hotel information'!$C$4,\"\")","v":""},null,null,null,{"$f":"IFERROR(INDEX(Table1[Room description],MATCH('2) Room configuration'!D1242,Table1[TMS],0)),\"\")","v":""},{"$f":"IFERROR(INDEX(Table1[Bedding],MATCH('2) Room configuration'!D1242,Table1[TMS],0)),\"\")","v":""},null,null,{"$f":"IFERROR(INDEX(Table1[Room description],MATCH('2) Room configuration'!I1242,Table1[TMS],0)),\"\")","v":""},{"$f":"IFERROR(INDEX(Table1[Bedding],MATCH('2) Room configuration'!I1242,Table1[TMS],0)),\"\")","v":""},{"$f":"IFERROR(INDEX(Table1[Normal occupancy],MATCH(Table2[[#This Row],[New Room Type \n(TMS)]],Table1[TMS],0)),\"\")","v":""},null,null,null,null,"",{"$f":"IF(Table2[[#This Row],['# extra beds that fit in the room2]]<>0,LEFT(Table2[[#This Row],[New Room Type \n(TMS)]],6),\"\")","v":""},null,{"$f":"IF(Table2[[#This Row],['# extra beds that fit in the room]]<>Table2[[#This Row],['# extra beds that fit in the room2]],\"yes\",\"No\")","v":"No"}]
[null,{"$f":"IF(LEN(C1243)>0,'1) Hotel information'!$C$4,\"\")","v":""},null,null,null,{"$f":"IFERROR(INDEX(Table1[Room description],MATCH('2) Room configuration'!D1243,Table1[TMS],0)),\"\")","v":""},{"$f":"IFERROR(INDEX(Table1[Bedding],MATCH('2) Room configuration'!D1243,Table1[TMS],0)),\"\")","v":""},null,null,{"$f":"IFERROR(INDEX(Table1[Room description],MATCH('2) Room configuration'!I1243,Table1[TMS],0)),\"\")","v":""},{"$f":"IFERROR(INDEX(Table1[Bedding],MATCH('2) Room configuration'!I1243,Table1[TMS],0)),\"\")","v":""},{"$f":"IFERROR(INDEX(Table1[Normal occupancy],MATCH(Table2[[#This Row],[New Room Type \n(TMS)]],Table1[TMS],0)),\"\")","v":""},null,null,null,null,"",{"$f":"IF(Table2[[#This Row],['# extra beds that fit in the room2]]<>0,LEFT(Table2[[#This Row],[New Room Type \n(TMS)]],6),\"\")","v":""},null,{"$f":"IF(Table2[[#This Row],['# extra beds that fit in the room]]<>Table2[[#This Row],['# extra beds that fit in the room2]],\"yes\",\"No\")","v":"No"}]
[null,{"$f":"IF(LEN(C1244)>0,'1) Hotel information'!$C$4,\"\")","v":""},null,null,null,{"$f":"IFERROR(INDEX(Table1[Room description],MATCH('2) Room configuration'!D1244,Table1[TMS],0)),\"\")","v":""},{"$f":"IFERROR(INDEX(Table1[Bedding],MATCH('2) Room configuration'!D1244,Table1[TMS],0)),\"\")","v":""},null,null,{"$f":"IFERROR(INDEX(Table1[Room description],MATCH('2) Room configuration'!I1244,Table1[TMS],0)),\"\")","v":""},{"$f":"IFERROR(INDEX(Table1[Bedding],MATCH('2) Room configuration'!I1244,Table1[TMS],0)),\"\")","v":""},{"$f":"IFERROR(INDEX(Table1[Normal occupancy],MATCH(Table2[[#This Row],[New Room Type \n(TMS)]],Table1[TMS],0)),\"\")","v":""},null,null,null,null,"",{"$f":"IF(Table2[[#This Row],['# extra beds that fit in the room2]]<>0,LEFT(Table2[[#This Row],[New Room Type \n(TMS)]],6),\"\")","v":""},null,{"$f":"IF(Table2[[#This Row],['# extra beds that fit in the room]]<>Table2[[#This Row],['# extra beds that fit in the room2]],\"yes\",\"No\")","v":"No"}]
[null,{"$f":"IF(LEN(C1245)>0,'1) Hotel information'!$C$4,\"\")","v":""},null,null,null,{"$f":"IFERROR(INDEX(Table1[Room description],MATCH('2) Room configuration'!D1245,Table1[TMS],0)),\"\")","v":""},{"$f":"IFERROR(INDEX(Table1[Bedding],MATCH('2) Room configuration'!D1245,Table1[TMS],0)),\"\")","v":""},null,null,{"$f":"IFERROR(INDEX(Table1[Room description],MATCH('2) Room configuration'!I1245,Table1[TMS],0)),\"\")","v":""},{"$f":"IFERROR(INDEX(Table1[Bedding],MATCH('2) Room configuration'!I1245,Table1[TMS],0)),\"\")","v":""},{"$f":"IFERROR(INDEX(Table1[Normal occupancy],MATCH(Table2[[#This Row],[New Room Type \n(TMS)]],Table1[TMS],0)),\"\")","v":""},null,null,null,null,"",{"$f":"IF(Table2[[#This Row],['# extra beds that fit in the room2]]<>0,LEFT(Table2[[#This Row],[New Room Type \n(TMS)]],6),\"\")","v":""},null,{"$f":"IF(Table2[[#This Row],['# extra beds that fit in the room]]<>Table2[[#This Row],['# extra beds that fit in the room2]],\"yes\",\"No\")","v":"No"}]
[null,{"$f":"IF(LEN(C1246)>0,'1) Hotel information'!$C$4,\"\")","v":""},null,null,null,{"$f":"IFERROR(INDEX(Table1[Room description],MATCH('2) Room configuration'!D1246,Table1[TMS],0)),\"\")","v":""},{"$f":"IFERROR(INDEX(Table1[Bedding],MATCH('2) Room configuration'!D1246,Table1[TMS],0)),\"\")","v":""},null,null,{"$f":"IFERROR(INDEX(Table1[Room description],MATCH('2) Room configuration'!I1246,Table1[TMS],0)),\"\")","v":""},{"$f":"IFERROR(INDEX(Table1[Bedding],MATCH('2) Room configuration'!I1246,Table1[TMS],0)),\"\")","v":""},{"$f":"IFERROR(INDEX(Table1[Normal occupancy],MATCH(Table2[[#This Row],[New Room Type \n(TMS)]],Table1[TMS],0)),\"\")","v":""},null,null,null,null,"",{"$f":"IF(Table2[[#This Row],['# extra beds that fit in the room2]]<>0,LEFT(Table2[[#This Row],[New Room Type \n(TMS)]],6),\"\")","v":""},null,{"$f":"IF(Table2[[#This Row],['# extra beds that fit in the room]]<>Table2[[#This Row],['# extra beds that fit in the room2]],\"yes\",\"No\")","v":"No"}]
[null,{"$f":"IF(LEN(C1247)>0,'1) Hotel information'!$C$4,\"\")","v":""},null,null,null,{"$f":"IFERROR(INDEX(Table1[Room description],MATCH('2) Room configuration'!D1247,Table1[TMS],0)),\"\")","v":""},{"$f":"IFERROR(INDEX(Table1[Bedding],MATCH('2) Room configuration'!D1247,Table1[TMS],0)),\"\")","v":""},null,null,{"$f":"IFERROR(INDEX(Table1[Room description],MATCH('2) Room configuration'!I1247,Table1[TMS],0)),\"\")","v":""},{"$f":"IFERROR(INDEX(Table1[Bedding],MATCH('2) Room configuration'!I1247,Table1[TMS],0)),\"\")","v":""},{"$f":"IFERROR(INDEX(Table1[Normal occupancy],MATCH(Table2[[#This Row],[New Room Type \n(TMS)]],Table1[TMS],0)),\"\")","v":""},null,null,null,null,"",{"$f":"IF(Table2[[#This Row],['# extra beds that fit in the room2]]<>0,LEFT(Table2[[#This Row],[New Room Type \n(TMS)]],6),\"\")","v":""},null,{"$f":"IF(Table2[[#This Row],['# extra beds that fit in the room]]<>Table2[[#This Row],['# extra beds that fit in the room2]],\"yes\",\"No\")","v":"No"}]
[null,{"$f":"IF(LEN(C1248)>0,'1) Hotel information'!$C$4,\"\")","v":""},null,null,null,{"$f":"IFERROR(INDEX(Table1[Room description],MATCH('2) Room configuration'!D1248,Table1[TMS],0)),\"\")","v":""},{"$f":"IFERROR(INDEX(Table1[Bedding],MATCH('2) Room configuration'!D1248,Table1[TMS],0)),\"\")","v":""},null,null,{"$f":"IFERROR(INDEX(Table1[Room description],MATCH('2) Room configuration'!I1248,Table1[TMS],0)),\"\")","v":""},{"$f":"IFERROR(INDEX(Table1[Bedding],MATCH('2) Room configuration'!I1248,Table1[TMS],0)),\"\")","v":""},{"$f":"IFERROR(INDEX(Table1[Normal occupancy],MATCH(Table2[[#This Row],[New Room Type \n(TMS)]],Table1[TMS],0)),\"\")","v":""},null,null,null,null,"",{"$f":"IF(Table2[[#This Row],['# extra beds that fit in the room2]]<>0,LEFT(Table2[[#This Row],[New Room Type \n(TMS)]],6),\"\")","v":""},null,{"$f":"IF(Table2[[#This Row],['# extra beds that fit in the room]]<>Table2[[#This Row],['# extra beds that fit in the room2]],\"yes\",\"No\")","v":"No"}]
[null,{"$f":"IF(LEN(C1249)>0,'1) Hotel information'!$C$4,\"\")","v":""},null,null,null,{"$f":"IFERROR(INDEX(Table1[Room description],MATCH('2) Room configuration'!D1249,Table1[TMS],0)),\"\")","v":""},{"$f":"IFERROR(INDEX(Table1[Bedding],MATCH('2) Room configuration'!D1249,Table1[TMS],0)),\"\")","v":""},null,null,{"$f":"IFERROR(INDEX(Table1[Room description],MATCH('2) Room configuration'!I1249,Table1[TMS],0)),\"\")","v":""},{"$f":"IFERROR(INDEX(Table1[Bedding],MATCH('2) Room configuration'!I1249,Table1[TMS],0)),\"\")","v":""},{"$f":"IFERROR(INDEX(Table1[Normal occupancy],MATCH(Table2[[#This Row],[New Room Type \n(TMS)]],Table1[TMS],0)),\"\")","v":""},null,null,null,null,"",{"$f":"IF(Table2[[#This Row],['# extra beds that fit in the room2]]<>0,LEFT(Table2[[#This Row],[New Room Type \n(TMS)]],6),\"\")","v":""},null,{"$f":"IF(Table2[[#This Row],['# extra beds that fit in the room]]<>Table2[[#This Row],['# extra beds that fit in the room2]],\"yes\",\"No\")","v":"No"}]
[null,{"$f":"IF(LEN(C1250)>0,'1) Hotel information'!$C$4,\"\")","v":""},null,null,null,{"$f":"IFERROR(INDEX(Table1[Room description],MATCH('2) Room configuration'!D1250,Table1[TMS],0)),\"\")","v":""},{"$f":"IFERROR(INDEX(Table1[Bedding],MATCH('2) Room configuration'!D1250,Table1[TMS],0)),\"\")","v":""},null,null,{"$f":"IFERROR(INDEX(Table1[Room description],MATCH('2) Room configuration'!I1250,Table1[TMS],0)),\"\")","v":""},{"$f":"IFERROR(INDEX(Table1[Bedding],MATCH('2) Room configuration'!I1250,Table1[TMS],0)),\"\")","v":""},{"$f":"IFERROR(INDEX(Table1[Normal occupancy],MATCH(Table2[[#This Row],[New Room Type \n(TMS)]],Table1[TMS],0)),\"\")","v":""},null,null,null,null,"",{"$f":"IF(Table2[[#This Row],['# extra beds that fit in the room2]]<>0,LEFT(Table2[[#This Row],[New Room Type \n(TMS)]],6),\"\")","v":""},null,{"$f":"IF(Table2[[#This Row],['# extra beds that fit in the room]]<>Table2[[#This Row],['# extra beds that fit in the room2]],\"yes\",\"No\")","v":"No"}]
[null,{"$f":"IF(LEN(C1251)>0,'1) Hotel information'!$C$4,\"\")","v":""},null,null,null,{"$f":"IFERROR(INDEX(Table1[Room description],MATCH('2) Room configuration'!D1251,Table1[TMS],0)),\"\")","v":""},{"$f":"IFERROR(INDEX(Table1[Bedding],MATCH('2) Room configuration'!D1251,Table1[TMS],0)),\"\")","v":""},null,null,{"$f":"IFERROR(INDEX(Table1[Room description],MATCH('2) Room configuration'!I1251,Table1[TMS],0)),\"\")","v":""},{"$f":"IFERROR(INDEX(Table1[Bedding],MATCH('2) Room configuration'!I1251,Table1[TMS],0)),\"\")","v":""},{"$f":"IFERROR(INDEX(Table1[Normal occupancy],MATCH(Table2[[#This Row],[New Room Type \n(TMS)]],Table1[TMS],0)),\"\")","v":""},null,null,null,null,"",{"$f":"IF(Table2[[#This Row],['# extra beds that fit in the room2]]<>0,LEFT(Table2[[#This Row],[New Room Type \n(TMS)]],6),\"\")","v":""},null,{"$f":"IF(Table2[[#This Row],['# extra beds that fit in the room]]<>Table2[[#This Row],['# extra beds that fit in the room2]],\"yes\",\"No\")","v":"No"}]
[null,{"$f":"IF(LEN(C1252)>0,'1) Hotel information'!$C$4,\"\")","v":""},null,null,null,{"$f":"IFERROR(INDEX(Table1[Room description],MATCH('2) Room configuration'!D1252,Table1[TMS],0)),\"\")","v":""},{"$f":"IFERROR(INDEX(Table1[Bedding],MATCH('2) Room configuration'!D1252,Table1[TMS],0)),\"\")","v":""},null,null,{"$f":"IFERROR(INDEX(Table1[Room description],MATCH('2) Room configuration'!I1252,Table1[TMS],0)),\"\")","v":""},{"$f":"IFERROR(INDEX(Table1[Bedding],MATCH('2) Room configuration'!I1252,Table1[TMS],0)),\"\")","v":""},{"$f":"IFERROR(INDEX(Table1[Normal occupancy],MATCH(Table2[[#This Row],[New Room Type \n(TMS)]],Table1[TMS],0)),\"\")","v":""},null,null,null,null,"",{"$f":"IF(Table2[[#This Row],['# extra beds that fit in the room2]]<>0,LEFT(Table2[[#This Row],[New Room Type \n(TMS)]],6),\"\")","v":""},null,{"$f":"IF(Table2[[#This Row],['# extra beds that fit in the room]]<>Table2[[#This Row],['# extra beds that fit in the room2]],\"yes\",\"No\")","v":"No"}]
[null,{"$f":"IF(LEN(C1253)>0,'1) Hotel information'!$C$4,\"\")","v":""},null,null,null,{"$f":"IFERROR(INDEX(Table1[Room description],MATCH('2) Room configuration'!D1253,Table1[TMS],0)),\"\")","v":""},{"$f":"IFERROR(INDEX(Table1[Bedding],MATCH('2) Room configuration'!D1253,Table1[TMS],0)),\"\")","v":""},null,null,{"$f":"IFERROR(INDEX(Table1[Room description],MATCH('2) Room configuration'!I1253,Table1[TMS],0)),\"\")","v":""},{"$f":"IFERROR(INDEX(Table1[Bedding],MATCH('2) Room configuration'!I1253,Table1[TMS],0)),\"\")","v":""},{"$f":"IFERROR(INDEX(Table1[Normal occupancy],MATCH(Table2[[#This Row],[New Room Type \n(TMS)]],Table1[TMS],0)),\"\")","v":""},null,null,null,null,"",{"$f":"IF(Table2[[#This Row],['# extra beds that fit in the room2]]<>0,LEFT(Table2[[#This Row],[New Room Type \n(TMS)]],6),\"\")","v":""},null,{"$f":"IF(Table2[[#This Row],['# extra beds that fit in the room]]<>Table2[[#This Row],['# extra beds that fit in the room2]],\"yes\",\"No\")","v":"No"}]
[null,{"$f":"IF(LEN(C1254)>0,'1) Hotel information'!$C$4,\"\")","v":""},null,null,null,{"$f":"IFERROR(INDEX(Table1[Room description],MATCH('2) Room configuration'!D1254,Table1[TMS],0)),\"\")","v":""},{"$f":"IFERROR(INDEX(Table1[Bedding],MATCH('2) Room configuration'!D1254,Table1[TMS],0)),\"\")","v":""},null,null,{"$f":"IFERROR(INDEX(Table1[Room description],MATCH('2) Room configuration'!I1254,Table1[TMS],0)),\"\")","v":""},{"$f":"IFERROR(INDEX(Table1[Bedding],MATCH('2) Room configuration'!I1254,Table1[TMS],0)),\"\")","v":""},{"$f":"IFERROR(INDEX(Table1[Normal occupancy],MATCH(Table2[[#This Row],[New Room Type \n(TMS)]],Table1[TMS],0)),\"\")","v":""},null,null,null,null,"",{"$f":"IF(Table2[[#This Row],['# extra beds that fit in the room2]]<>0,LEFT(Table2[[#This Row],[New Room Type \n(TMS)]],6),\"\")","v":""},null,{"$f":"IF(Table2[[#This Row],['# extra beds that fit in the room]]<>Table2[[#This Row],['# extra beds that fit in the room2]],\"yes\",\"No\")","v":"No"}]
[null,{"$f":"IF(LEN(C1255)>0,'1) Hotel information'!$C$4,\"\")","v":""},null,null,null,{"$f":"IFERROR(INDEX(Table1[Room description],MATCH('2) Room configuration'!D1255,Table1[TMS],0)),\"\")","v":""},{"$f":"IFERROR(INDEX(Table1[Bedding],MATCH('2) Room configuration'!D1255,Table1[TMS],0)),\"\")","v":""},null,null,{"$f":"IFERROR(INDEX(Table1[Room description],MATCH('2) Room configuration'!I1255,Table1[TMS],0)),\"\")","v":""},{"$f":"IFERROR(INDEX(Table1[Bedding],MATCH('2) Room configuration'!I1255,Table1[TMS],0)),\"\")","v":""},{"$f":"IFERROR(INDEX(Table1[Normal occupancy],MATCH(Table2[[#This Row],[New Room Type \n(TMS)]],Table1[TMS],0)),\"\")","v":""},null,null,null,null,"",{"$f":"IF(Table2[[#This Row],['# extra beds that fit in the room2]]<>0,LEFT(Table2[[#This Row],[New Room Type \n(TMS)]],6),\"\")","v":""},null,{"$f":"IF(Table2[[#This Row],['# extra beds that fit in the room]]<>Table2[[#This Row],['# extra beds that fit in the room2]],\"yes\",\"No\")","v":"No"}]
[null,{"$f":"IF(LEN(C1256)>0,'1) Hotel information'!$C$4,\"\")","v":""},null,null,null,{"$f":"IFERROR(INDEX(Table1[Room description],MATCH('2) Room configuration'!D1256,Table1[TMS],0)),\"\")","v":""},{"$f":"IFERROR(INDEX(Table1[Bedding],MATCH('2) Room configuration'!D1256,Table1[TMS],0)),\"\")","v":""},null,null,{"$f":"IFERROR(INDEX(Table1[Room description],MATCH('2) Room configuration'!I1256,Table1[TMS],0)),\"\")","v":""},{"$f":"IFERROR(INDEX(Table1[Bedding],MATCH('2) Room configuration'!I1256,Table1[TMS],0)),\"\")","v":""},{"$f":"IFERROR(INDEX(Table1[Normal occupancy],MATCH(Table2[[#This Row],[New Room Type \n(TMS)]],Table1[TMS],0)),\"\")","v":""},null,null,null,null,"",{"$f":"IF(Table2[[#This Row],['# extra beds that fit in the room2]]<>0,LEFT(Table2[[#This Row],[New Room Type \n(TMS)]],6),\"\")","v":""},null,{"$f":"IF(Table2[[#This Row],['# extra beds that fit in the room]]<>Table2[[#This Row],['# extra beds that fit in the room2]],\"yes\",\"No\")","v":"No"}]
[null,{"$f":"IF(LEN(C1257)>0,'1) Hotel information'!$C$4,\"\")","v":""},null,null,null,{"$f":"IFERROR(INDEX(Table1[Room description],MATCH('2) Room configuration'!D1257,Table1[TMS],0)),\"\")","v":""},{"$f":"IFERROR(INDEX(Table1[Bedding],MATCH('2) Room configuration'!D1257,Table1[TMS],0)),\"\")","v":""},null,null,{"$f":"IFERROR(INDEX(Table1[Room description],MATCH('2) Room configuration'!I1257,Table1[TMS],0)),\"\")","v":""},{"$f":"IFERROR(INDEX(Table1[Bedding],MATCH('2) Room configuration'!I1257,Table1[TMS],0)),\"\")","v":""},{"$f":"IFERROR(INDEX(Table1[Normal occupancy],MATCH(Table2[[#This Row],[New Room Type \n(TMS)]],Table1[TMS],0)),\"\")","v":""},null,null,null,null,"",{"$f":"IF(Table2[[#This Row],['# extra beds that fit in the room2]]<>0,LEFT(Table2[[#This Row],[New Room Type \n(TMS)]],6),\"\")","v":""},null,{"$f":"IF(Table2[[#This Row],['# extra beds that fit in the room]]<>Table2[[#This Row],['# extra beds that fit in the room2]],\"yes\",\"No\")","v":"No"}]
[null,{"$f":"IF(LEN(C1258)>0,'1) Hotel information'!$C$4,\"\")","v":""},null,null,null,{"$f":"IFERROR(INDEX(Table1[Room description],MATCH('2) Room configuration'!D1258,Table1[TMS],0)),\"\")","v":""},{"$f":"IFERROR(INDEX(Table1[Bedding],MATCH('2) Room configuration'!D1258,Table1[TMS],0)),\"\")","v":""},null,null,{"$f":"IFERROR(INDEX(Table1[Room description],MATCH('2) Room configuration'!I1258,Table1[TMS],0)),\"\")","v":""},{"$f":"IFERROR(INDEX(Table1[Bedding],MATCH('2) Room configuration'!I1258,Table1[TMS],0)),\"\")","v":""},{"$f":"IFERROR(INDEX(Table1[Normal occupancy],MATCH(Table2[[#This Row],[New Room Type \n(TMS)]],Table1[TMS],0)),\"\")","v":""},null,null,null,null,"",{"$f":"IF(Table2[[#This Row],['# extra beds that fit in the room2]]<>0,LEFT(Table2[[#This Row],[New Room Type \n(TMS)]],6),\"\")","v":""},null,{"$f":"IF(Table2[[#This Row],['# extra beds that fit in the room]]<>Table2[[#This Row],['# extra beds that fit in the room2]],\"yes\",\"No\")","v":"No"}]
[null,{"$f":"IF(LEN(C1259)>0,'1) Hotel information'!$C$4,\"\")","v":""},null,null,null,{"$f":"IFERROR(INDEX(Table1[Room description],MATCH('2) Room configuration'!D1259,Table1[TMS],0)),\"\")","v":""},{"$f":"IFERROR(INDEX(Table1[Bedding],MATCH('2) Room configuration'!D1259,Table1[TMS],0)),\"\")","v":""},null,null,{"$f":"IFERROR(INDEX(Table1[Room description],MATCH('2) Room configuration'!I1259,Table1[TMS],0)),\"\")","v":""},{"$f":"IFERROR(INDEX(Table1[Bedding],MATCH('2) Room configuration'!I1259,Table1[TMS],0)),\"\")","v":""},{"$f":"IFERROR(INDEX(Table1[Normal occupancy],MATCH(Table2[[#This Row],[New Room Type \n(TMS)]],Table1[TMS],0)),\"\")","v":""},null,null,null,null,"",{"$f":"IF(Table2[[#This Row],['# extra beds that fit in the room2]]<>0,LEFT(Table2[[#This Row],[New Room Type \n(TMS)]],6),\"\")","v":""},null,{"$f":"IF(Table2[[#This Row],['# extra beds that fit in the room]]<>Table2[[#This Row],['# extra beds that fit in the room2]],\"yes\",\"No\")","v":"No"}]
[null,{"$f":"IF(LEN(C1260)>0,'1) Hotel information'!$C$4,\"\")","v":""},null,null,null,{"$f":"IFERROR(INDEX(Table1[Room description],MATCH('2) Room configuration'!D1260,Table1[TMS],0)),\"\")","v":""},{"$f":"IFERROR(INDEX(Table1[Bedding],MATCH('2) Room configuration'!D1260,Table1[TMS],0)),\"\")","v":""},null,null,{"$f":"IFERROR(INDEX(Table1[Room description],MATCH('2) Room configuration'!I1260,Table1[TMS],0)),\"\")","v":""},{"$f":"IFERROR(INDEX(Table1[Bedding],MATCH('2) Room configuration'!I1260,Table1[TMS],0)),\"\")","v":""},{"$f":"IFERROR(INDEX(Table1[Normal occupancy],MATCH(Table2[[#This Row],[New Room Type \n(TMS)]],Table1[TMS],0)),\"\")","v":""},null,null,null,null,"",{"$f":"IF(Table2[[#This Row],['# extra beds that fit in the room2]]<>0,LEFT(Table2[[#This Row],[New Room Type \n(TMS)]],6),\"\")","v":""},null,{"$f":"IF(Table2[[#This Row],['# extra beds that fit in the room]]<>Table2[[#This Row],['# extra beds that fit in the room2]],\"yes\",\"No\")","v":"No"}]
[null,{"$f":"IF(LEN(C1261)>0,'1) Hotel information'!$C$4,\"\")","v":""},null,null,null,{"$f":"IFERROR(INDEX(Table1[Room description],MATCH('2) Room configuration'!D1261,Table1[TMS],0)),\"\")","v":""},{"$f":"IFERROR(INDEX(Table1[Bedding],MATCH('2) Room configuration'!D1261,Table1[TMS],0)),\"\")","v":""},null,null,{"$f":"IFERROR(INDEX(Table1[Room description],MATCH('2) Room configuration'!I1261,Table1[TMS],0)),\"\")","v":""},{"$f":"IFERROR(INDEX(Table1[Bedding],MATCH('2) Room configuration'!I1261,Table1[TMS],0)),\"\")","v":""},{"$f":"IFERROR(INDEX(Table1[Normal occupancy],MATCH(Table2[[#This Row],[New Room Type \n(TMS)]],Table1[TMS],0)),\"\")","v":""},null,null,null,null,"",{"$f":"IF(Table2[[#This Row],['# extra beds that fit in the room2]]<>0,LEFT(Table2[[#This Row],[New Room Type \n(TMS)]],6),\"\")","v":""},null,{"$f":"IF(Table2[[#This Row],['# extra beds that fit in the room]]<>Table2[[#This Row],['# extra beds that fit in the room2]],\"yes\",\"No\")","v":"No"}]
[null,{"$f":"IF(LEN(C1262)>0,'1) Hotel information'!$C$4,\"\")","v":""},null,null,null,{"$f":"IFERROR(INDEX(Table1[Room description],MATCH('2) Room configuration'!D1262,Table1[TMS],0)),\"\")","v":""},{"$f":"IFERROR(INDEX(Table1[Bedding],MATCH('2) Room configuration'!D1262,Table1[TMS],0)),\"\")","v":""},null,null,{"$f":"IFERROR(INDEX(Table1[Room description],MATCH('2) Room configuration'!I1262,Table1[TMS],0)),\"\")","v":""},{"$f":"IFERROR(INDEX(Table1[Bedding],MATCH('2) Room configuration'!I1262,Table1[TMS],0)),\"\")","v":""},{"$f":"IFERROR(INDEX(Table1[Normal occupancy],MATCH(Table2[[#This Row],[New Room Type \n(TMS)]],Table1[TMS],0)),\"\")","v":""},null,null,null,null,"",{"$f":"IF(Table2[[#This Row],['# extra beds that fit in the room2]]<>0,LEFT(Table2[[#This Row],[New Room Type \n(TMS)]],6),\"\")","v":""},null,{"$f":"IF(Table2[[#This Row],['# extra beds that fit in the room]]<>Table2[[#This Row],['# extra beds that fit in the room2]],\"yes\",\"No\")","v":"No"}]
[null,{"$f":"IF(LEN(C1263)>0,'1) Hotel information'!$C$4,\"\")","v":""},null,null,null,{"$f":"IFERROR(INDEX(Table1[Room description],MATCH('2) Room configuration'!D1263,Table1[TMS],0)),\"\")","v":""},{"$f":"IFERROR(INDEX(Table1[Bedding],MATCH('2) Room configuration'!D1263,Table1[TMS],0)),\"\")","v":""},null,null,{"$f":"IFERROR(INDEX(Table1[Room description],MATCH('2) Room configuration'!I1263,Table1[TMS],0)),\"\")","v":""},{"$f":"IFERROR(INDEX(Table1[Bedding],MATCH('2) Room configuration'!I1263,Table1[TMS],0)),\"\")","v":""},{"$f":"IFERROR(INDEX(Table1[Normal occupancy],MATCH(Table2[[#This Row],[New Room Type \n(TMS)]],Table1[TMS],0)),\"\")","v":""},null,null,null,null,"",{"$f":"IF(Table2[[#This Row],['# extra beds that fit in the room2]]<>0,LEFT(Table2[[#This Row],[New Room Type \n(TMS)]],6),\"\")","v":""},null,{"$f":"IF(Table2[[#This Row],['# extra beds that fit in the room]]<>Table2[[#This Row],['# extra beds that fit in the room2]],\"yes\",\"No\")","v":"No"}]
[null,{"$f":"IF(LEN(C1264)>0,'1) Hotel information'!$C$4,\"\")","v":""},null,null,null,{"$f":"IFERROR(INDEX(Table1[Room description],MATCH('2) Room configuration'!D1264,Table1[TMS],0)),\"\")","v":""},{"$f":"IFERROR(INDEX(Table1[Bedding],MATCH('2) Room configuration'!D1264,Table1[TMS],0)),\"\")","v":""},null,null,{"$f":"IFERROR(INDEX(Table1[Room description],MATCH('2) Room configuration'!I1264,Table1[TMS],0)),\"\")","v":""},{"$f":"IFERROR(INDEX(Table1[Bedding],MATCH('2) Room configuration'!I1264,Table1[TMS],0)),\"\")","v":""},{"$f":"IFERROR(INDEX(Table1[Normal occupancy],MATCH(Table2[[#This Row],[New Room Type \n(TMS)]],Table1[TMS],0)),\"\")","v":""},null,null,null,null,"",{"$f":"IF(Table2[[#This Row],['# extra beds that fit in the room2]]<>0,LEFT(Table2[[#This Row],[New Room Type \n(TMS)]],6),\"\")","v":""},null,{"$f":"IF(Table2[[#This Row],['# extra beds that fit in the room]]<>Table2[[#This Row],['# extra beds that fit in the room2]],\"yes\",\"No\")","v":"No"}]
[null,{"$f":"IF(LEN(C1265)>0,'1) Hotel information'!$C$4,\"\")","v":""},null,null,null,{"$f":"IFERROR(INDEX(Table1[Room description],MATCH('2) Room configuration'!D1265,Table1[TMS],0)),\"\")","v":""},{"$f":"IFERROR(INDEX(Table1[Bedding],MATCH('2) Room configuration'!D1265,Table1[TMS],0)),\"\")","v":""},null,null,{"$f":"IFERROR(INDEX(Table1[Room description],MATCH('2) Room configuration'!I1265,Table1[TMS],0)),\"\")","v":""},{"$f":"IFERROR(INDEX(Table1[Bedding],MATCH('2) Room configuration'!I1265,Table1[TMS],0)),\"\")","v":""},{"$f":"IFERROR(INDEX(Table1[Normal occupancy],MATCH(Table2[[#This Row],[New Room Type \n(TMS)]],Table1[TMS],0)),\"\")","v":""},null,null,null,null,"",{"$f":"IF(Table2[[#This Row],['# extra beds that fit in the room2]]<>0,LEFT(Table2[[#This Row],[New Room Type \n(TMS)]],6),\"\")","v":""},null,{"$f":"IF(Table2[[#This Row],['# extra beds that fit in the room]]<>Table2[[#This Row],['# extra beds that fit in the room2]],\"yes\",\"No\")","v":"No"}]
[null,{"$f":"IF(LEN(C1266)>0,'1) Hotel information'!$C$4,\"\")","v":""},null,null,null,{"$f":"IFERROR(INDEX(Table1[Room description],MATCH('2) Room configuration'!D1266,Table1[TMS],0)),\"\")","v":""},{"$f":"IFERROR(INDEX(Table1[Bedding],MATCH('2) Room configuration'!D1266,Table1[TMS],0)),\"\")","v":""},null,null,{"$f":"IFERROR(INDEX(Table1[Room description],MATCH('2) Room configuration'!I1266,Table1[TMS],0)),\"\")","v":""},{"$f":"IFERROR(INDEX(Table1[Bedding],MATCH('2) Room configuration'!I1266,Table1[TMS],0)),\"\")","v":""},{"$f":"IFERROR(INDEX(Table1[Normal occupancy],MATCH(Table2[[#This Row],[New Room Type \n(TMS)]],Table1[TMS],0)),\"\")","v":""},null,null,null,null,"",{"$f":"IF(Table2[[#This Row],['# extra beds that fit in the room2]]<>0,LEFT(Table2[[#This Row],[New Room Type \n(TMS)]],6),\"\")","v":""},null,{"$f":"IF(Table2[[#This Row],['# extra beds that fit in the room]]<>Table2[[#This Row],['# extra beds that fit in the room2]],\"yes\",\"No\")","v":"No"}]
[null,{"$f":"IF(LEN(C1267)>0,'1) Hotel information'!$C$4,\"\")","v":""},null,null,null,{"$f":"IFERROR(INDEX(Table1[Room description],MATCH('2) Room configuration'!D1267,Table1[TMS],0)),\"\")","v":""},{"$f":"IFERROR(INDEX(Table1[Bedding],MATCH('2) Room configuration'!D1267,Table1[TMS],0)),\"\")","v":""},null,null,{"$f":"IFERROR(INDEX(Table1[Room description],MATCH('2) Room configuration'!I1267,Table1[TMS],0)),\"\")","v":""},{"$f":"IFERROR(INDEX(Table1[Bedding],MATCH('2) Room configuration'!I1267,Table1[TMS],0)),\"\")","v":""},{"$f":"IFERROR(INDEX(Table1[Normal occupancy],MATCH(Table2[[#This Row],[New Room Type \n(TMS)]],Table1[TMS],0)),\"\")","v":""},null,null,null,null,"",{"$f":"IF(Table2[[#This Row],['# extra beds that fit in the room2]]<>0,LEFT(Table2[[#This Row],[New Room Type \n(TMS)]],6),\"\")","v":""},null,{"$f":"IF(Table2[[#This Row],['# extra beds that fit in the room]]<>Table2[[#This Row],['# extra beds that fit in the room2]],\"yes\",\"No\")","v":"No"}]
[null,{"$f":"IF(LEN(C1268)>0,'1) Hotel information'!$C$4,\"\")","v":""},null,null,null,{"$f":"IFERROR(INDEX(Table1[Room description],MATCH('2) Room configuration'!D1268,Table1[TMS],0)),\"\")","v":""},{"$f":"IFERROR(INDEX(Table1[Bedding],MATCH('2) Room configuration'!D1268,Table1[TMS],0)),\"\")","v":""},null,null,{"$f":"IFERROR(INDEX(Table1[Room description],MATCH('2) Room configuration'!I1268,Table1[TMS],0)),\"\")","v":""},{"$f":"IFERROR(INDEX(Table1[Bedding],MATCH('2) Room configuration'!I1268,Table1[TMS],0)),\"\")","v":""},{"$f":"IFERROR(INDEX(Table1[Normal occupancy],MATCH(Table2[[#This Row],[New Room Type \n(TMS)]],Table1[TMS],0)),\"\")","v":""},null,null,null,null,"",{"$f":"IF(Table2[[#This Row],['# extra beds that fit in the room2]]<>0,LEFT(Table2[[#This Row],[New Room Type \n(TMS)]],6),\"\")","v":""},null,{"$f":"IF(Table2[[#This Row],['# extra beds that fit in the room]]<>Table2[[#This Row],['# extra beds that fit in the room2]],\"yes\",\"No\")","v":"No"}]
[null,{"$f":"IF(LEN(C1269)>0,'1) Hotel information'!$C$4,\"\")","v":""},null,null,null,{"$f":"IFERROR(INDEX(Table1[Room description],MATCH('2) Room configuration'!D1269,Table1[TMS],0)),\"\")","v":""},{"$f":"IFERROR(INDEX(Table1[Bedding],MATCH('2) Room configuration'!D1269,Table1[TMS],0)),\"\")","v":""},null,null,{"$f":"IFERROR(INDEX(Table1[Room description],MATCH('2) Room configuration'!I1269,Table1[TMS],0)),\"\")","v":""},{"$f":"IFERROR(INDEX(Table1[Bedding],MATCH('2) Room configuration'!I1269,Table1[TMS],0)),\"\")","v":""},{"$f":"IFERROR(INDEX(Table1[Normal occupancy],MATCH(Table2[[#This Row],[New Room Type \n(TMS)]],Table1[TMS],0)),\"\")","v":""},null,null,null,null,"",{"$f":"IF(Table2[[#This Row],['# extra beds that fit in the room2]]<>0,LEFT(Table2[[#This Row],[New Room Type \n(TMS)]],6),\"\")","v":""},null,{"$f":"IF(Table2[[#This Row],['# extra beds that fit in the room]]<>Table2[[#This Row],['# extra beds that fit in the room2]],\"yes\",\"No\")","v":"No"}]
[null,{"$f":"IF(LEN(C1270)>0,'1) Hotel information'!$C$4,\"\")","v":""},null,null,null,{"$f":"IFERROR(INDEX(Table1[Room description],MATCH('2) Room configuration'!D1270,Table1[TMS],0)),\"\")","v":""},{"$f":"IFERROR(INDEX(Table1[Bedding],MATCH('2) Room configuration'!D1270,Table1[TMS],0)),\"\")","v":""},null,null,{"$f":"IFERROR(INDEX(Table1[Room description],MATCH('2) Room configuration'!I1270,Table1[TMS],0)),\"\")","v":""},{"$f":"IFERROR(INDEX(Table1[Bedding],MATCH('2) Room configuration'!I1270,Table1[TMS],0)),\"\")","v":""},{"$f":"IFERROR(INDEX(Table1[Normal occupancy],MATCH(Table2[[#This Row],[New Room Type \n(TMS)]],Table1[TMS],0)),\"\")","v":""},null,null,null,null,"",{"$f":"IF(Table2[[#This Row],['# extra beds that fit in the room2]]<>0,LEFT(Table2[[#This Row],[New Room Type \n(TMS)]],6),\"\")","v":""},null,{"$f":"IF(Table2[[#This Row],['# extra beds that fit in the room]]<>Table2[[#This Row],['# extra beds that fit in the room2]],\"yes\",\"No\")","v":"No"}]
[null,{"$f":"IF(LEN(C1271)>0,'1) Hotel information'!$C$4,\"\")","v":""},null,null,null,{"$f":"IFERROR(INDEX(Table1[Room description],MATCH('2) Room configuration'!D1271,Table1[TMS],0)),\"\")","v":""},{"$f":"IFERROR(INDEX(Table1[Bedding],MATCH('2) Room configuration'!D1271,Table1[TMS],0)),\"\")","v":""},null,null,{"$f":"IFERROR(INDEX(Table1[Room description],MATCH('2) Room configuration'!I1271,Table1[TMS],0)),\"\")","v":""},{"$f":"IFERROR(INDEX(Table1[Bedding],MATCH('2) Room configuration'!I1271,Table1[TMS],0)),\"\")","v":""},{"$f":"IFERROR(INDEX(Table1[Normal occupancy],MATCH(Table2[[#This Row],[New Room Type \n(TMS)]],Table1[TMS],0)),\"\")","v":""},null,null,null,null,"",{"$f":"IF(Table2[[#This Row],['# extra beds that fit in the room2]]<>0,LEFT(Table2[[#This Row],[New Room Type \n(TMS)]],6),\"\")","v":""},null,{"$f":"IF(Table2[[#This Row],['# extra beds that fit in the room]]<>Table2[[#This Row],['# extra beds that fit in the room2]],\"yes\",\"No\")","v":"No"}]
[null,{"$f":"IF(LEN(C1272)>0,'1) Hotel information'!$C$4,\"\")","v":""},null,null,null,{"$f":"IFERROR(INDEX(Table1[Room description],MATCH('2) Room configuration'!D1272,Table1[TMS],0)),\"\")","v":""},{"$f":"IFERROR(INDEX(Table1[Bedding],MATCH('2) Room configuration'!D1272,Table1[TMS],0)),\"\")","v":""},null,null,{"$f":"IFERROR(INDEX(Table1[Room description],MATCH('2) Room configuration'!I1272,Table1[TMS],0)),\"\")","v":""},{"$f":"IFERROR(INDEX(Table1[Bedding],MATCH('2) Room configuration'!I1272,Table1[TMS],0)),\"\")","v":""},{"$f":"IFERROR(INDEX(Table1[Normal occupancy],MATCH(Table2[[#This Row],[New Room Type \n(TMS)]],Table1[TMS],0)),\"\")","v":""},null,null,null,null,"",{"$f":"IF(Table2[[#This Row],['# extra beds that fit in the room2]]<>0,LEFT(Table2[[#This Row],[New Room Type \n(TMS)]],6),\"\")","v":""},null,{"$f":"IF(Table2[[#This Row],['# extra beds that fit in the room]]<>Table2[[#This Row],['# extra beds that fit in the room2]],\"yes\",\"No\")","v":"No"}]
[null,{"$f":"IF(LEN(C1273)>0,'1) Hotel information'!$C$4,\"\")","v":""},null,null,null,{"$f":"IFERROR(INDEX(Table1[Room description],MATCH('2) Room configuration'!D1273,Table1[TMS],0)),\"\")","v":""},{"$f":"IFERROR(INDEX(Table1[Bedding],MATCH('2) Room configuration'!D1273,Table1[TMS],0)),\"\")","v":""},null,null,{"$f":"IFERROR(INDEX(Table1[Room description],MATCH('2) Room configuration'!I1273,Table1[TMS],0)),\"\")","v":""},{"$f":"IFERROR(INDEX(Table1[Bedding],MATCH('2) Room configuration'!I1273,Table1[TMS],0)),\"\")","v":""},{"$f":"IFERROR(INDEX(Table1[Normal occupancy],MATCH(Table2[[#This Row],[New Room Type \n(TMS)]],Table1[TMS],0)),\"\")","v":""},null,null,null,null,"",{"$f":"IF(Table2[[#This Row],['# extra beds that fit in the room2]]<>0,LEFT(Table2[[#This Row],[New Room Type \n(TMS)]],6),\"\")","v":""},null,{"$f":"IF(Table2[[#This Row],['# extra beds that fit in the room]]<>Table2[[#This Row],['# extra beds that fit in the room2]],\"yes\",\"No\")","v":"No"}]
[null,{"$f":"IF(LEN(C1274)>0,'1) Hotel information'!$C$4,\"\")","v":""},null,null,null,{"$f":"IFERROR(INDEX(Table1[Room description],MATCH('2) Room configuration'!D1274,Table1[TMS],0)),\"\")","v":""},{"$f":"IFERROR(INDEX(Table1[Bedding],MATCH('2) Room configuration'!D1274,Table1[TMS],0)),\"\")","v":""},null,null,{"$f":"IFERROR(INDEX(Table1[Room description],MATCH('2) Room configuration'!I1274,Table1[TMS],0)),\"\")","v":""},{"$f":"IFERROR(INDEX(Table1[Bedding],MATCH('2) Room configuration'!I1274,Table1[TMS],0)),\"\")","v":""},{"$f":"IFERROR(INDEX(Table1[Normal occupancy],MATCH(Table2[[#This Row],[New Room Type \n(TMS)]],Table1[TMS],0)),\"\")","v":""},null,null,null,null,"",{"$f":"IF(Table2[[#This Row],['# extra beds that fit in the room2]]<>0,LEFT(Table2[[#This Row],[New Room Type \n(TMS)]],6),\"\")","v":""},null,{"$f":"IF(Table2[[#This Row],['# extra beds that fit in the room]]<>Table2[[#This Row],['# extra beds that fit in the room2]],\"yes\",\"No\")","v":"No"}]
[null,{"$f":"IF(LEN(C1275)>0,'1) Hotel information'!$C$4,\"\")","v":""},null,null,null,{"$f":"IFERROR(INDEX(Table1[Room description],MATCH('2) Room configuration'!D1275,Table1[TMS],0)),\"\")","v":""},{"$f":"IFERROR(INDEX(Table1[Bedding],MATCH('2) Room configuration'!D1275,Table1[TMS],0)),\"\")","v":""},null,null,{"$f":"IFERROR(INDEX(Table1[Room description],MATCH('2) Room configuration'!I1275,Table1[TMS],0)),\"\")","v":""},{"$f":"IFERROR(INDEX(Table1[Bedding],MATCH('2) Room configuration'!I1275,Table1[TMS],0)),\"\")","v":""},{"$f":"IFERROR(INDEX(Table1[Normal occupancy],MATCH(Table2[[#This Row],[New Room Type \n(TMS)]],Table1[TMS],0)),\"\")","v":""},null,null,null,null,"",{"$f":"IF(Table2[[#This Row],['# extra beds that fit in the room2]]<>0,LEFT(Table2[[#This Row],[New Room Type \n(TMS)]],6),\"\")","v":""},null,{"$f":"IF(Table2[[#This Row],['# extra beds that fit in the room]]<>Table2[[#This Row],['# extra beds that fit in the room2]],\"yes\",\"No\")","v":"No"}]
[null,{"$f":"IF(LEN(C1276)>0,'1) Hotel information'!$C$4,\"\")","v":""},null,null,null,{"$f":"IFERROR(INDEX(Table1[Room description],MATCH('2) Room configuration'!D1276,Table1[TMS],0)),\"\")","v":""},{"$f":"IFERROR(INDEX(Table1[Bedding],MATCH('2) Room configuration'!D1276,Table1[TMS],0)),\"\")","v":""},null,null,{"$f":"IFERROR(INDEX(Table1[Room description],MATCH('2) Room configuration'!I1276,Table1[TMS],0)),\"\")","v":""},{"$f":"IFERROR(INDEX(Table1[Bedding],MATCH('2) Room configuration'!I1276,Table1[TMS],0)),\"\")","v":""},{"$f":"IFERROR(INDEX(Table1[Normal occupancy],MATCH(Table2[[#This Row],[New Room Type \n(TMS)]],Table1[TMS],0)),\"\")","v":""},null,null,null,null,"",{"$f":"IF(Table2[[#This Row],['# extra beds that fit in the room2]]<>0,LEFT(Table2[[#This Row],[New Room Type \n(TMS)]],6),\"\")","v":""},null,{"$f":"IF(Table2[[#This Row],['# extra beds that fit in the room]]<>Table2[[#This Row],['# extra beds that fit in the room2]],\"yes\",\"No\")","v":"No"}]
[null,{"$f":"IF(LEN(C1277)>0,'1) Hotel information'!$C$4,\"\")","v":""},null,null,null,{"$f":"IFERROR(INDEX(Table1[Room description],MATCH('2) Room configuration'!D1277,Table1[TMS],0)),\"\")","v":""},{"$f":"IFERROR(INDEX(Table1[Bedding],MATCH('2) Room configuration'!D1277,Table1[TMS],0)),\"\")","v":""},null,null,{"$f":"IFERROR(INDEX(Table1[Room description],MATCH('2) Room configuration'!I1277,Table1[TMS],0)),\"\")","v":""},{"$f":"IFERROR(INDEX(Table1[Bedding],MATCH('2) Room configuration'!I1277,Table1[TMS],0)),\"\")","v":""},{"$f":"IFERROR(INDEX(Table1[Normal occupancy],MATCH(Table2[[#This Row],[New Room Type \n(TMS)]],Table1[TMS],0)),\"\")","v":""},null,null,null,null,"",{"$f":"IF(Table2[[#This Row],['# extra beds that fit in the room2]]<>0,LEFT(Table2[[#This Row],[New Room Type \n(TMS)]],6),\"\")","v":""},null,{"$f":"IF(Table2[[#This Row],['# extra beds that fit in the room]]<>Table2[[#This Row],['# extra beds that fit in the room2]],\"yes\",\"No\")","v":"No"}]
[null,{"$f":"IF(LEN(C1278)>0,'1) Hotel information'!$C$4,\"\")","v":""},null,null,null,{"$f":"IFERROR(INDEX(Table1[Room description],MATCH('2) Room configuration'!D1278,Table1[TMS],0)),\"\")","v":""},{"$f":"IFERROR(INDEX(Table1[Bedding],MATCH('2) Room configuration'!D1278,Table1[TMS],0)),\"\")","v":""},null,null,{"$f":"IFERROR(INDEX(Table1[Room description],MATCH('2) Room configuration'!I1278,Table1[TMS],0)),\"\")","v":""},{"$f":"IFERROR(INDEX(Table1[Bedding],MATCH('2) Room configuration'!I1278,Table1[TMS],0)),\"\")","v":""},{"$f":"IFERROR(INDEX(Table1[Normal occupancy],MATCH(Table2[[#This Row],[New Room Type \n(TMS)]],Table1[TMS],0)),\"\")","v":""},null,null,null,null,"",{"$f":"IF(Table2[[#This Row],['# extra beds that fit in the room2]]<>0,LEFT(Table2[[#This Row],[New Room Type \n(TMS)]],6),\"\")","v":""},null,{"$f":"IF(Table2[[#This Row],['# extra beds that fit in the room]]<>Table2[[#This Row],['# extra beds that fit in the room2]],\"yes\",\"No\")","v":"No"}]
[null,{"$f":"IF(LEN(C1279)>0,'1) Hotel information'!$C$4,\"\")","v":""},null,null,null,{"$f":"IFERROR(INDEX(Table1[Room description],MATCH('2) Room configuration'!D1279,Table1[TMS],0)),\"\")","v":""},{"$f":"IFERROR(INDEX(Table1[Bedding],MATCH('2) Room configuration'!D1279,Table1[TMS],0)),\"\")","v":""},null,null,{"$f":"IFERROR(INDEX(Table1[Room description],MATCH('2) Room configuration'!I1279,Table1[TMS],0)),\"\")","v":""},{"$f":"IFERROR(INDEX(Table1[Bedding],MATCH('2) Room configuration'!I1279,Table1[TMS],0)),\"\")","v":""},{"$f":"IFERROR(INDEX(Table1[Normal occupancy],MATCH(Table2[[#This Row],[New Room Type \n(TMS)]],Table1[TMS],0)),\"\")","v":""},null,null,null,null,"",{"$f":"IF(Table2[[#This Row],['# extra beds that fit in the room2]]<>0,LEFT(Table2[[#This Row],[New Room Type \n(TMS)]],6),\"\")","v":""},null,{"$f":"IF(Table2[[#This Row],['# extra beds that fit in the room]]<>Table2[[#This Row],['# extra beds that fit in the room2]],\"yes\",\"No\")","v":"No"}]
[null,{"$f":"IF(LEN(C1280)>0,'1) Hotel information'!$C$4,\"\")","v":""},null,null,null,{"$f":"IFERROR(INDEX(Table1[Room description],MATCH('2) Room configuration'!D1280,Table1[TMS],0)),\"\")","v":""},{"$f":"IFERROR(INDEX(Table1[Bedding],MATCH('2) Room configuration'!D1280,Table1[TMS],0)),\"\")","v":""},null,null,{"$f":"IFERROR(INDEX(Table1[Room description],MATCH('2) Room configuration'!I1280,Table1[TMS],0)),\"\")","v":""},{"$f":"IFERROR(INDEX(Table1[Bedding],MATCH('2) Room configuration'!I1280,Table1[TMS],0)),\"\")","v":""},{"$f":"IFERROR(INDEX(Table1[Normal occupancy],MATCH(Table2[[#This Row],[New Room Type \n(TMS)]],Table1[TMS],0)),\"\")","v":""},null,null,null,null,"",{"$f":"IF(Table2[[#This Row],['# extra beds that fit in the room2]]<>0,LEFT(Table2[[#This Row],[New Room Type \n(TMS)]],6),\"\")","v":""},null,{"$f":"IF(Table2[[#This Row],['# extra beds that fit in the room]]<>Table2[[#This Row],['# extra beds that fit in the room2]],\"yes\",\"No\")","v":"No"}]
[null,{"$f":"IF(LEN(C1281)>0,'1) Hotel information'!$C$4,\"\")","v":""},null,null,null,{"$f":"IFERROR(INDEX(Table1[Room description],MATCH('2) Room configuration'!D1281,Table1[TMS],0)),\"\")","v":""},{"$f":"IFERROR(INDEX(Table1[Bedding],MATCH('2) Room configuration'!D1281,Table1[TMS],0)),\"\")","v":""},null,null,{"$f":"IFERROR(INDEX(Table1[Room description],MATCH('2) Room configuration'!I1281,Table1[TMS],0)),\"\")","v":""},{"$f":"IFERROR(INDEX(Table1[Bedding],MATCH('2) Room configuration'!I1281,Table1[TMS],0)),\"\")","v":""},{"$f":"IFERROR(INDEX(Table1[Normal occupancy],MATCH(Table2[[#This Row],[New Room Type \n(TMS)]],Table1[TMS],0)),\"\")","v":""},null,null,null,null,"",{"$f":"IF(Table2[[#This Row],['# extra beds that fit in the room2]]<>0,LEFT(Table2[[#This Row],[New Room Type \n(TMS)]],6),\"\")","v":""},null,{"$f":"IF(Table2[[#This Row],['# extra beds that fit in the room]]<>Table2[[#This Row],['# extra beds that fit in the room2]],\"yes\",\"No\")","v":"No"}]
[null,{"$f":"IF(LEN(C1282)>0,'1) Hotel information'!$C$4,\"\")","v":""},null,null,null,{"$f":"IFERROR(INDEX(Table1[Room description],MATCH('2) Room configuration'!D1282,Table1[TMS],0)),\"\")","v":""},{"$f":"IFERROR(INDEX(Table1[Bedding],MATCH('2) Room configuration'!D1282,Table1[TMS],0)),\"\")","v":""},null,null,{"$f":"IFERROR(INDEX(Table1[Room description],MATCH('2) Room configuration'!I1282,Table1[TMS],0)),\"\")","v":""},{"$f":"IFERROR(INDEX(Table1[Bedding],MATCH('2) Room configuration'!I1282,Table1[TMS],0)),\"\")","v":""},{"$f":"IFERROR(INDEX(Table1[Normal occupancy],MATCH(Table2[[#This Row],[New Room Type \n(TMS)]],Table1[TMS],0)),\"\")","v":""},null,null,null,null,"",{"$f":"IF(Table2[[#This Row],['# extra beds that fit in the room2]]<>0,LEFT(Table2[[#This Row],[New Room Type \n(TMS)]],6),\"\")","v":""},null,{"$f":"IF(Table2[[#This Row],['# extra beds that fit in the room]]<>Table2[[#This Row],['# extra beds that fit in the room2]],\"yes\",\"No\")","v":"No"}]
[null,{"$f":"IF(LEN(C1283)>0,'1) Hotel information'!$C$4,\"\")","v":""},null,null,null,{"$f":"IFERROR(INDEX(Table1[Room description],MATCH('2) Room configuration'!D1283,Table1[TMS],0)),\"\")","v":""},{"$f":"IFERROR(INDEX(Table1[Bedding],MATCH('2) Room configuration'!D1283,Table1[TMS],0)),\"\")","v":""},null,null,{"$f":"IFERROR(INDEX(Table1[Room description],MATCH('2) Room configuration'!I1283,Table1[TMS],0)),\"\")","v":""},{"$f":"IFERROR(INDEX(Table1[Bedding],MATCH('2) Room configuration'!I1283,Table1[TMS],0)),\"\")","v":""},{"$f":"IFERROR(INDEX(Table1[Normal occupancy],MATCH(Table2[[#This Row],[New Room Type \n(TMS)]],Table1[TMS],0)),\"\")","v":""},null,null,null,null,"",{"$f":"IF(Table2[[#This Row],['# extra beds that fit in the room2]]<>0,LEFT(Table2[[#This Row],[New Room Type \n(TMS)]],6),\"\")","v":""},null,{"$f":"IF(Table2[[#This Row],['# extra beds that fit in the room]]<>Table2[[#This Row],['# extra beds that fit in the room2]],\"yes\",\"No\")","v":"No"}]
[null,{"$f":"IF(LEN(C1284)>0,'1) Hotel information'!$C$4,\"\")","v":""},null,null,null,{"$f":"IFERROR(INDEX(Table1[Room description],MATCH('2) Room configuration'!D1284,Table1[TMS],0)),\"\")","v":""},{"$f":"IFERROR(INDEX(Table1[Bedding],MATCH('2) Room configuration'!D1284,Table1[TMS],0)),\"\")","v":""},null,null,{"$f":"IFERROR(INDEX(Table1[Room description],MATCH('2) Room configuration'!I1284,Table1[TMS],0)),\"\")","v":""},{"$f":"IFERROR(INDEX(Table1[Bedding],MATCH('2) Room configuration'!I1284,Table1[TMS],0)),\"\")","v":""},{"$f":"IFERROR(INDEX(Table1[Normal occupancy],MATCH(Table2[[#This Row],[New Room Type \n(TMS)]],Table1[TMS],0)),\"\")","v":""},null,null,null,null,"",{"$f":"IF(Table2[[#This Row],['# extra beds that fit in the room2]]<>0,LEFT(Table2[[#This Row],[New Room Type \n(TMS)]],6),\"\")","v":""},null,{"$f":"IF(Table2[[#This Row],['# extra beds that fit in the room]]<>Table2[[#This Row],['# extra beds that fit in the room2]],\"yes\",\"No\")","v":"No"}]
[null,{"$f":"IF(LEN(C1285)>0,'1) Hotel information'!$C$4,\"\")","v":""},null,null,null,{"$f":"IFERROR(INDEX(Table1[Room description],MATCH('2) Room configuration'!D1285,Table1[TMS],0)),\"\")","v":""},{"$f":"IFERROR(INDEX(Table1[Bedding],MATCH('2) Room configuration'!D1285,Table1[TMS],0)),\"\")","v":""},null,null,{"$f":"IFERROR(INDEX(Table1[Room description],MATCH('2) Room configuration'!I1285,Table1[TMS],0)),\"\")","v":""},{"$f":"IFERROR(INDEX(Table1[Bedding],MATCH('2) Room configuration'!I1285,Table1[TMS],0)),\"\")","v":""},{"$f":"IFERROR(INDEX(Table1[Normal occupancy],MATCH(Table2[[#This Row],[New Room Type \n(TMS)]],Table1[TMS],0)),\"\")","v":""},null,null,null,null,"",{"$f":"IF(Table2[[#This Row],['# extra beds that fit in the room2]]<>0,LEFT(Table2[[#This Row],[New Room Type \n(TMS)]],6),\"\")","v":""},null,{"$f":"IF(Table2[[#This Row],['# extra beds that fit in the room]]<>Table2[[#This Row],['# extra beds that fit in the room2]],\"yes\",\"No\")","v":"No"}]
[null,{"$f":"IF(LEN(C1286)>0,'1) Hotel information'!$C$4,\"\")","v":""},null,null,null,{"$f":"IFERROR(INDEX(Table1[Room description],MATCH('2) Room configuration'!D1286,Table1[TMS],0)),\"\")","v":""},{"$f":"IFERROR(INDEX(Table1[Bedding],MATCH('2) Room configuration'!D1286,Table1[TMS],0)),\"\")","v":""},null,null,{"$f":"IFERROR(INDEX(Table1[Room description],MATCH('2) Room configuration'!I1286,Table1[TMS],0)),\"\")","v":""},{"$f":"IFERROR(INDEX(Table1[Bedding],MATCH('2) Room configuration'!I1286,Table1[TMS],0)),\"\")","v":""},{"$f":"IFERROR(INDEX(Table1[Normal occupancy],MATCH(Table2[[#This Row],[New Room Type \n(TMS)]],Table1[TMS],0)),\"\")","v":""},null,null,null,null,"",{"$f":"IF(Table2[[#This Row],['# extra beds that fit in the room2]]<>0,LEFT(Table2[[#This Row],[New Room Type \n(TMS)]],6),\"\")","v":""},null,{"$f":"IF(Table2[[#This Row],['# extra beds that fit in the room]]<>Table2[[#This Row],['# extra beds that fit in the room2]],\"yes\",\"No\")","v":"No"}]
[null,{"$f":"IF(LEN(C1287)>0,'1) Hotel information'!$C$4,\"\")","v":""},null,null,null,{"$f":"IFERROR(INDEX(Table1[Room description],MATCH('2) Room configuration'!D1287,Table1[TMS],0)),\"\")","v":""},{"$f":"IFERROR(INDEX(Table1[Bedding],MATCH('2) Room configuration'!D1287,Table1[TMS],0)),\"\")","v":""},null,null,{"$f":"IFERROR(INDEX(Table1[Room description],MATCH('2) Room configuration'!I1287,Table1[TMS],0)),\"\")","v":""},{"$f":"IFERROR(INDEX(Table1[Bedding],MATCH('2) Room configuration'!I1287,Table1[TMS],0)),\"\")","v":""},{"$f":"IFERROR(INDEX(Table1[Normal occupancy],MATCH(Table2[[#This Row],[New Room Type \n(TMS)]],Table1[TMS],0)),\"\")","v":""},null,null,null,null,"",{"$f":"IF(Table2[[#This Row],['# extra beds that fit in the room2]]<>0,LEFT(Table2[[#This Row],[New Room Type \n(TMS)]],6),\"\")","v":""},null,{"$f":"IF(Table2[[#This Row],['# extra beds that fit in the room]]<>Table2[[#This Row],['# extra beds that fit in the room2]],\"yes\",\"No\")","v":"No"}]
[null,{"$f":"IF(LEN(C1288)>0,'1) Hotel information'!$C$4,\"\")","v":""},null,null,null,{"$f":"IFERROR(INDEX(Table1[Room description],MATCH('2) Room configuration'!D1288,Table1[TMS],0)),\"\")","v":""},{"$f":"IFERROR(INDEX(Table1[Bedding],MATCH('2) Room configuration'!D1288,Table1[TMS],0)),\"\")","v":""},null,null,{"$f":"IFERROR(INDEX(Table1[Room description],MATCH('2) Room configuration'!I1288,Table1[TMS],0)),\"\")","v":""},{"$f":"IFERROR(INDEX(Table1[Bedding],MATCH('2) Room configuration'!I1288,Table1[TMS],0)),\"\")","v":""},{"$f":"IFERROR(INDEX(Table1[Normal occupancy],MATCH(Table2[[#This Row],[New Room Type \n(TMS)]],Table1[TMS],0)),\"\")","v":""},null,null,null,null,"",{"$f":"IF(Table2[[#This Row],['# extra beds that fit in the room2]]<>0,LEFT(Table2[[#This Row],[New Room Type \n(TMS)]],6),\"\")","v":""},null,{"$f":"IF(Table2[[#This Row],['# extra beds that fit in the room]]<>Table2[[#This Row],['# extra beds that fit in the room2]],\"yes\",\"No\")","v":"No"}]
[null,{"$f":"IF(LEN(C1289)>0,'1) Hotel information'!$C$4,\"\")","v":""},null,null,null,{"$f":"IFERROR(INDEX(Table1[Room description],MATCH('2) Room configuration'!D1289,Table1[TMS],0)),\"\")","v":""},{"$f":"IFERROR(INDEX(Table1[Bedding],MATCH('2) Room configuration'!D1289,Table1[TMS],0)),\"\")","v":""},null,null,{"$f":"IFERROR(INDEX(Table1[Room description],MATCH('2) Room configuration'!I1289,Table1[TMS],0)),\"\")","v":""},{"$f":"IFERROR(INDEX(Table1[Bedding],MATCH('2) Room configuration'!I1289,Table1[TMS],0)),\"\")","v":""},{"$f":"IFERROR(INDEX(Table1[Normal occupancy],MATCH(Table2[[#This Row],[New Room Type \n(TMS)]],Table1[TMS],0)),\"\")","v":""},null,null,null,null,"",{"$f":"IF(Table2[[#This Row],['# extra beds that fit in the room2]]<>0,LEFT(Table2[[#This Row],[New Room Type \n(TMS)]],6),\"\")","v":""},null,{"$f":"IF(Table2[[#This Row],['# extra beds that fit in the room]]<>Table2[[#This Row],['# extra beds that fit in the room2]],\"yes\",\"No\")","v":"No"}]
[null,{"$f":"IF(LEN(C1290)>0,'1) Hotel information'!$C$4,\"\")","v":""},null,null,null,{"$f":"IFERROR(INDEX(Table1[Room description],MATCH('2) Room configuration'!D1290,Table1[TMS],0)),\"\")","v":""},{"$f":"IFERROR(INDEX(Table1[Bedding],MATCH('2) Room configuration'!D1290,Table1[TMS],0)),\"\")","v":""},null,null,{"$f":"IFERROR(INDEX(Table1[Room description],MATCH('2) Room configuration'!I1290,Table1[TMS],0)),\"\")","v":""},{"$f":"IFERROR(INDEX(Table1[Bedding],MATCH('2) Room configuration'!I1290,Table1[TMS],0)),\"\")","v":""},{"$f":"IFERROR(INDEX(Table1[Normal occupancy],MATCH(Table2[[#This Row],[New Room Type \n(TMS)]],Table1[TMS],0)),\"\")","v":""},null,null,null,null,"",{"$f":"IF(Table2[[#This Row],['# extra beds that fit in the room2]]<>0,LEFT(Table2[[#This Row],[New Room Type \n(TMS)]],6),\"\")","v":""},null,{"$f":"IF(Table2[[#This Row],['# extra beds that fit in the room]]<>Table2[[#This Row],['# extra beds that fit in the room2]],\"yes\",\"No\")","v":"No"}]
[null,{"$f":"IF(LEN(C1291)>0,'1) Hotel information'!$C$4,\"\")","v":""},null,null,null,{"$f":"IFERROR(INDEX(Table1[Room description],MATCH('2) Room configuration'!D1291,Table1[TMS],0)),\"\")","v":""},{"$f":"IFERROR(INDEX(Table1[Bedding],MATCH('2) Room configuration'!D1291,Table1[TMS],0)),\"\")","v":""},null,null,{"$f":"IFERROR(INDEX(Table1[Room description],MATCH('2) Room configuration'!I1291,Table1[TMS],0)),\"\")","v":""},{"$f":"IFERROR(INDEX(Table1[Bedding],MATCH('2) Room configuration'!I1291,Table1[TMS],0)),\"\")","v":""},{"$f":"IFERROR(INDEX(Table1[Normal occupancy],MATCH(Table2[[#This Row],[New Room Type \n(TMS)]],Table1[TMS],0)),\"\")","v":""},null,null,null,null,"",{"$f":"IF(Table2[[#This Row],['# extra beds that fit in the room2]]<>0,LEFT(Table2[[#This Row],[New Room Type \n(TMS)]],6),\"\")","v":""},null,{"$f":"IF(Table2[[#This Row],['# extra beds that fit in the room]]<>Table2[[#This Row],['# extra beds that fit in the room2]],\"yes\",\"No\")","v":"No"}]
[null,{"$f":"IF(LEN(C1292)>0,'1) Hotel information'!$C$4,\"\")","v":""},null,null,null,{"$f":"IFERROR(INDEX(Table1[Room description],MATCH('2) Room configuration'!D1292,Table1[TMS],0)),\"\")","v":""},{"$f":"IFERROR(INDEX(Table1[Bedding],MATCH('2) Room configuration'!D1292,Table1[TMS],0)),\"\")","v":""},null,null,{"$f":"IFERROR(INDEX(Table1[Room description],MATCH('2) Room configuration'!I1292,Table1[TMS],0)),\"\")","v":""},{"$f":"IFERROR(INDEX(Table1[Bedding],MATCH('2) Room configuration'!I1292,Table1[TMS],0)),\"\")","v":""},{"$f":"IFERROR(INDEX(Table1[Normal occupancy],MATCH(Table2[[#This Row],[New Room Type \n(TMS)]],Table1[TMS],0)),\"\")","v":""},null,null,null,null,"",{"$f":"IF(Table2[[#This Row],['# extra beds that fit in the room2]]<>0,LEFT(Table2[[#This Row],[New Room Type \n(TMS)]],6),\"\")","v":""},null,{"$f":"IF(Table2[[#This Row],['# extra beds that fit in the room]]<>Table2[[#This Row],['# extra beds that fit in the room2]],\"yes\",\"No\")","v":"No"}]
[null,{"$f":"IF(LEN(C1293)>0,'1) Hotel information'!$C$4,\"\")","v":""},null,null,null,{"$f":"IFERROR(INDEX(Table1[Room description],MATCH('2) Room configuration'!D1293,Table1[TMS],0)),\"\")","v":""},{"$f":"IFERROR(INDEX(Table1[Bedding],MATCH('2) Room configuration'!D1293,Table1[TMS],0)),\"\")","v":""},null,null,{"$f":"IFERROR(INDEX(Table1[Room description],MATCH('2) Room configuration'!I1293,Table1[TMS],0)),\"\")","v":""},{"$f":"IFERROR(INDEX(Table1[Bedding],MATCH('2) Room configuration'!I1293,Table1[TMS],0)),\"\")","v":""},{"$f":"IFERROR(INDEX(Table1[Normal occupancy],MATCH(Table2[[#This Row],[New Room Type \n(TMS)]],Table1[TMS],0)),\"\")","v":""},null,null,null,null,"",{"$f":"IF(Table2[[#This Row],['# extra beds that fit in the room2]]<>0,LEFT(Table2[[#This Row],[New Room Type \n(TMS)]],6),\"\")","v":""},null,{"$f":"IF(Table2[[#This Row],['# extra beds that fit in the room]]<>Table2[[#This Row],['# extra beds that fit in the room2]],\"yes\",\"No\")","v":"No"}]
[null,{"$f":"IF(LEN(C1294)>0,'1) Hotel information'!$C$4,\"\")","v":""},null,null,null,{"$f":"IFERROR(INDEX(Table1[Room description],MATCH('2) Room configuration'!D1294,Table1[TMS],0)),\"\")","v":""},{"$f":"IFERROR(INDEX(Table1[Bedding],MATCH('2) Room configuration'!D1294,Table1[TMS],0)),\"\")","v":""},null,null,{"$f":"IFERROR(INDEX(Table1[Room description],MATCH('2) Room configuration'!I1294,Table1[TMS],0)),\"\")","v":""},{"$f":"IFERROR(INDEX(Table1[Bedding],MATCH('2) Room configuration'!I1294,Table1[TMS],0)),\"\")","v":""},{"$f":"IFERROR(INDEX(Table1[Normal occupancy],MATCH(Table2[[#This Row],[New Room Type \n(TMS)]],Table1[TMS],0)),\"\")","v":""},null,null,null,null,"",{"$f":"IF(Table2[[#This Row],['# extra beds that fit in the room2]]<>0,LEFT(Table2[[#This Row],[New Room Type \n(TMS)]],6),\"\")","v":""},null,{"$f":"IF(Table2[[#This Row],['# extra beds that fit in the room]]<>Table2[[#This Row],['# extra beds that fit in the room2]],\"yes\",\"No\")","v":"No"}]
[null,{"$f":"IF(LEN(C1295)>0,'1) Hotel information'!$C$4,\"\")","v":""},null,null,null,{"$f":"IFERROR(INDEX(Table1[Room description],MATCH('2) Room configuration'!D1295,Table1[TMS],0)),\"\")","v":""},{"$f":"IFERROR(INDEX(Table1[Bedding],MATCH('2) Room configuration'!D1295,Table1[TMS],0)),\"\")","v":""},null,null,{"$f":"IFERROR(INDEX(Table1[Room description],MATCH('2) Room configuration'!I1295,Table1[TMS],0)),\"\")","v":""},{"$f":"IFERROR(INDEX(Table1[Bedding],MATCH('2) Room configuration'!I1295,Table1[TMS],0)),\"\")","v":""},{"$f":"IFERROR(INDEX(Table1[Normal occupancy],MATCH(Table2[[#This Row],[New Room Type \n(TMS)]],Table1[TMS],0)),\"\")","v":""},null,null,null,null,"",{"$f":"IF(Table2[[#This Row],['# extra beds that fit in the room2]]<>0,LEFT(Table2[[#This Row],[New Room Type \n(TMS)]],6),\"\")","v":""},null,{"$f":"IF(Table2[[#This Row],['# extra beds that fit in the room]]<>Table2[[#This Row],['# extra beds that fit in the room2]],\"yes\",\"No\")","v":"No"}]
[null,{"$f":"IF(LEN(C1296)>0,'1) Hotel information'!$C$4,\"\")","v":""},null,null,null,{"$f":"IFERROR(INDEX(Table1[Room description],MATCH('2) Room configuration'!D1296,Table1[TMS],0)),\"\")","v":""},{"$f":"IFERROR(INDEX(Table1[Bedding],MATCH('2) Room configuration'!D1296,Table1[TMS],0)),\"\")","v":""},null,null,{"$f":"IFERROR(INDEX(Table1[Room description],MATCH('2) Room configuration'!I1296,Table1[TMS],0)),\"\")","v":""},{"$f":"IFERROR(INDEX(Table1[Bedding],MATCH('2) Room configuration'!I1296,Table1[TMS],0)),\"\")","v":""},{"$f":"IFERROR(INDEX(Table1[Normal occupancy],MATCH(Table2[[#This Row],[New Room Type \n(TMS)]],Table1[TMS],0)),\"\")","v":""},null,null,null,null,"",{"$f":"IF(Table2[[#This Row],['# extra beds that fit in the room2]]<>0,LEFT(Table2[[#This Row],[New Room Type \n(TMS)]],6),\"\")","v":""},null,{"$f":"IF(Table2[[#This Row],['# extra beds that fit in the room]]<>Table2[[#This Row],['# extra beds that fit in the room2]],\"yes\",\"No\")","v":"No"}]
[null,{"$f":"IF(LEN(C1297)>0,'1) Hotel information'!$C$4,\"\")","v":""},null,null,null,{"$f":"IFERROR(INDEX(Table1[Room description],MATCH('2) Room configuration'!D1297,Table1[TMS],0)),\"\")","v":""},{"$f":"IFERROR(INDEX(Table1[Bedding],MATCH('2) Room configuration'!D1297,Table1[TMS],0)),\"\")","v":""},null,null,{"$f":"IFERROR(INDEX(Table1[Room description],MATCH('2) Room configuration'!I1297,Table1[TMS],0)),\"\")","v":""},{"$f":"IFERROR(INDEX(Table1[Bedding],MATCH('2) Room configuration'!I1297,Table1[TMS],0)),\"\")","v":""},{"$f":"IFERROR(INDEX(Table1[Normal occupancy],MATCH(Table2[[#This Row],[New Room Type \n(TMS)]],Table1[TMS],0)),\"\")","v":""},null,null,null,null,"",{"$f":"IF(Table2[[#This Row],['# extra beds that fit in the room2]]<>0,LEFT(Table2[[#This Row],[New Room Type \n(TMS)]],6),\"\")","v":""},null,{"$f":"IF(Table2[[#This Row],['# extra beds that fit in the room]]<>Table2[[#This Row],['# extra beds that fit in the room2]],\"yes\",\"No\")","v":"No"}]
[null,{"$f":"IF(LEN(C1298)>0,'1) Hotel information'!$C$4,\"\")","v":""},null,null,null,{"$f":"IFERROR(INDEX(Table1[Room description],MATCH('2) Room configuration'!D1298,Table1[TMS],0)),\"\")","v":""},{"$f":"IFERROR(INDEX(Table1[Bedding],MATCH('2) Room configuration'!D1298,Table1[TMS],0)),\"\")","v":""},null,null,{"$f":"IFERROR(INDEX(Table1[Room description],MATCH('2) Room configuration'!I1298,Table1[TMS],0)),\"\")","v":""},{"$f":"IFERROR(INDEX(Table1[Bedding],MATCH('2) Room configuration'!I1298,Table1[TMS],0)),\"\")","v":""},{"$f":"IFERROR(INDEX(Table1[Normal occupancy],MATCH(Table2[[#This Row],[New Room Type \n(TMS)]],Table1[TMS],0)),\"\")","v":""},null,null,null,null,"",{"$f":"IF(Table2[[#This Row],['# extra beds that fit in the room2]]<>0,LEFT(Table2[[#This Row],[New Room Type \n(TMS)]],6),\"\")","v":""},null,{"$f":"IF(Table2[[#This Row],['# extra beds that fit in the room]]<>Table2[[#This Row],['# extra beds that fit in the room2]],\"yes\",\"No\")","v":"No"}]
[null,{"$f":"IF(LEN(C1299)>0,'1) Hotel information'!$C$4,\"\")","v":""},null,null,null,{"$f":"IFERROR(INDEX(Table1[Room description],MATCH('2) Room configuration'!D1299,Table1[TMS],0)),\"\")","v":""},{"$f":"IFERROR(INDEX(Table1[Bedding],MATCH('2) Room configuration'!D1299,Table1[TMS],0)),\"\")","v":""},null,null,{"$f":"IFERROR(INDEX(Table1[Room description],MATCH('2) Room configuration'!I1299,Table1[TMS],0)),\"\")","v":""},{"$f":"IFERROR(INDEX(Table1[Bedding],MATCH('2) Room configuration'!I1299,Table1[TMS],0)),\"\")","v":""},{"$f":"IFERROR(INDEX(Table1[Normal occupancy],MATCH(Table2[[#This Row],[New Room Type \n(TMS)]],Table1[TMS],0)),\"\")","v":""},null,null,null,null,"",{"$f":"IF(Table2[[#This Row],['# extra beds that fit in the room2]]<>0,LEFT(Table2[[#This Row],[New Room Type \n(TMS)]],6),\"\")","v":""},null,{"$f":"IF(Table2[[#This Row],['# extra beds that fit in the room]]<>Table2[[#This Row],['# extra beds that fit in the room2]],\"yes\",\"No\")","v":"No"}]
[null,{"$f":"IF(LEN(C1300)>0,'1) Hotel information'!$C$4,\"\")","v":""},null,null,null,{"$f":"IFERROR(INDEX(Table1[Room description],MATCH('2) Room configuration'!D1300,Table1[TMS],0)),\"\")","v":""},{"$f":"IFERROR(INDEX(Table1[Bedding],MATCH('2) Room configuration'!D1300,Table1[TMS],0)),\"\")","v":""},null,null,{"$f":"IFERROR(INDEX(Table1[Room description],MATCH('2) Room configuration'!I1300,Table1[TMS],0)),\"\")","v":""},{"$f":"IFERROR(INDEX(Table1[Bedding],MATCH('2) Room configuration'!I1300,Table1[TMS],0)),\"\")","v":""},{"$f":"IFERROR(INDEX(Table1[Normal occupancy],MATCH(Table2[[#This Row],[New Room Type \n(TMS)]],Table1[TMS],0)),\"\")","v":""},null,null,null,null,"",{"$f":"IF(Table2[[#This Row],['# extra beds that fit in the room2]]<>0,LEFT(Table2[[#This Row],[New Room Type \n(TMS)]],6),\"\")","v":""},null,{"$f":"IF(Table2[[#This Row],['# extra beds that fit in the room]]<>Table2[[#This Row],['# extra beds that fit in the room2]],\"yes\",\"No\")","v":"No"}]
[null,{"$f":"IF(LEN(C1301)>0,'1) Hotel information'!$C$4,\"\")","v":""},null,null,null,{"$f":"IFERROR(INDEX(Table1[Room description],MATCH('2) Room configuration'!D1301,Table1[TMS],0)),\"\")","v":""},{"$f":"IFERROR(INDEX(Table1[Bedding],MATCH('2) Room configuration'!D1301,Table1[TMS],0)),\"\")","v":""},null,null,{"$f":"IFERROR(INDEX(Table1[Room description],MATCH('2) Room configuration'!I1301,Table1[TMS],0)),\"\")","v":""},{"$f":"IFERROR(INDEX(Table1[Bedding],MATCH('2) Room configuration'!I1301,Table1[TMS],0)),\"\")","v":""},{"$f":"IFERROR(INDEX(Table1[Normal occupancy],MATCH(Table2[[#This Row],[New Room Type \n(TMS)]],Table1[TMS],0)),\"\")","v":""},null,null,null,null,"",{"$f":"IF(Table2[[#This Row],['# extra beds that fit in the room2]]<>0,LEFT(Table2[[#This Row],[New Room Type \n(TMS)]],6),\"\")","v":""},null,{"$f":"IF(Table2[[#This Row],['# extra beds that fit in the room]]<>Table2[[#This Row],['# extra beds that fit in the room2]],\"yes\",\"No\")","v":"No"}]
[null,{"$f":"IF(LEN(C1302)>0,'1) Hotel information'!$C$4,\"\")","v":""},null,null,null,{"$f":"IFERROR(INDEX(Table1[Room description],MATCH('2) Room configuration'!D1302,Table1[TMS],0)),\"\")","v":""},{"$f":"IFERROR(INDEX(Table1[Bedding],MATCH('2) Room configuration'!D1302,Table1[TMS],0)),\"\")","v":""},null,null,{"$f":"IFERROR(INDEX(Table1[Room description],MATCH('2) Room configuration'!I1302,Table1[TMS],0)),\"\")","v":""},{"$f":"IFERROR(INDEX(Table1[Bedding],MATCH('2) Room configuration'!I1302,Table1[TMS],0)),\"\")","v":""},{"$f":"IFERROR(INDEX(Table1[Normal occupancy],MATCH(Table2[[#This Row],[New Room Type \n(TMS)]],Table1[TMS],0)),\"\")","v":""},null,null,null,null,"",{"$f":"IF(Table2[[#This Row],['# extra beds that fit in the room2]]<>0,LEFT(Table2[[#This Row],[New Room Type \n(TMS)]],6),\"\")","v":""},null,{"$f":"IF(Table2[[#This Row],['# extra beds that fit in the room]]<>Table2[[#This Row],['# extra beds that fit in the room2]],\"yes\",\"No\")","v":"No"}]
[null,{"$f":"IF(LEN(C1303)>0,'1) Hotel information'!$C$4,\"\")","v":""},null,null,null,{"$f":"IFERROR(INDEX(Table1[Room description],MATCH('2) Room configuration'!D1303,Table1[TMS],0)),\"\")","v":""},{"$f":"IFERROR(INDEX(Table1[Bedding],MATCH('2) Room configuration'!D1303,Table1[TMS],0)),\"\")","v":""},null,null,{"$f":"IFERROR(INDEX(Table1[Room description],MATCH('2) Room configuration'!I1303,Table1[TMS],0)),\"\")","v":""},{"$f":"IFERROR(INDEX(Table1[Bedding],MATCH('2) Room configuration'!I1303,Table1[TMS],0)),\"\")","v":""},{"$f":"IFERROR(INDEX(Table1[Normal occupancy],MATCH(Table2[[#This Row],[New Room Type \n(TMS)]],Table1[TMS],0)),\"\")","v":""},null,null,null,null,{"$f":"IF(LEN(C1303)>0,IF(D1303=I1303,\"No\",\"Yes\"),\"\")","v":""},{"$f":"IF(Table2[[#This Row],['# extra beds that fit in the room2]]<>0,LEFT(Table2[[#This Row],[New Room Type \n(TMS)]],6),\"\")","v":""},null,{"$f":"IF(Table2[[#This Row],['# extra beds that fit in the room]]<>Table2[[#This Row],['# extra beds that fit in the room2]],\"yes\",\"No\")","v":"No"}]
[null,{"$f":"IF(LEN(C1304)>0,'1) Hotel information'!$C$4,\"\")","v":""},null,null,null,{"$f":"IFERROR(INDEX(Table1[Room description],MATCH('2) Room configuration'!D1304,Table1[TMS],0)),\"\")","v":""},{"$f":"IFERROR(INDEX(Table1[Bedding],MATCH('2) Room configuration'!D1304,Table1[TMS],0)),\"\")","v":""},null,null,{"$f":"IFERROR(INDEX(Table1[Room description],MATCH('2) Room configuration'!I1304,Table1[TMS],0)),\"\")","v":""},{"$f":"IFERROR(INDEX(Table1[Bedding],MATCH('2) Room configuration'!I1304,Table1[TMS],0)),\"\")","v":""},{"$f":"IFERROR(INDEX(Table1[Normal occupancy],MATCH(Table2[[#This Row],[New Room Type \n(TMS)]],Table1[TMS],0)),\"\")","v":""},null,null,null,null,"",{"$f":"IF(Table2[[#This Row],['# extra beds that fit in the room2]]<>0,LEFT(Table2[[#This Row],[New Room Type \n(TMS)]],6),\"\")","v":""},null,{"$f":"IF(Table2[[#This Row],['# extra beds that fit in the room]]<>Table2[[#This Row],['# extra beds that fit in the room2]],\"yes\",\"No\")","v":"No"}]
[null,{"$f":"IF(LEN(C1305)>0,'1) Hotel information'!$C$4,\"\")","v":""},null,null,null,{"$f":"IFERROR(INDEX(Table1[Room description],MATCH('2) Room configuration'!D1305,Table1[TMS],0)),\"\")","v":""},{"$f":"IFERROR(INDEX(Table1[Bedding],MATCH('2) Room configuration'!D1305,Table1[TMS],0)),\"\")","v":""},null,null,{"$f":"IFERROR(INDEX(Table1[Room description],MATCH('2) Room configuration'!I1305,Table1[TMS],0)),\"\")","v":""},{"$f":"IFERROR(INDEX(Table1[Bedding],MATCH('2) Room configuration'!I1305,Table1[TMS],0)),\"\")","v":""},{"$f":"IFERROR(INDEX(Table1[Normal occupancy],MATCH(Table2[[#This Row],[New Room Type \n(TMS)]],Table1[TMS],0)),\"\")","v":""},null,null,null,null,"",{"$f":"IF(Table2[[#This Row],['# extra beds that fit in the room2]]<>0,LEFT(Table2[[#This Row],[New Room Type \n(TMS)]],6),\"\")","v":""},null,{"$f":"IF(Table2[[#This Row],['# extra beds that fit in the room]]<>Table2[[#This Row],['# extra beds that fit in the room2]],\"yes\",\"No\")","v":"No"}]
[null,{"$f":"IF(LEN(C1306)>0,'1) Hotel information'!$C$4,\"\")","v":""},null,null,null,{"$f":"IFERROR(INDEX(Table1[Room description],MATCH('2) Room configuration'!D1306,Table1[TMS],0)),\"\")","v":""},{"$f":"IFERROR(INDEX(Table1[Bedding],MATCH('2) Room configuration'!D1306,Table1[TMS],0)),\"\")","v":""},null,null,{"$f":"IFERROR(INDEX(Table1[Room description],MATCH('2) Room configuration'!I1306,Table1[TMS],0)),\"\")","v":""},{"$f":"IFERROR(INDEX(Table1[Bedding],MATCH('2) Room configuration'!I1306,Table1[TMS],0)),\"\")","v":""},{"$f":"IFERROR(INDEX(Table1[Normal occupancy],MATCH(Table2[[#This Row],[New Room Type \n(TMS)]],Table1[TMS],0)),\"\")","v":""},null,null,null,null,"",{"$f":"IF(Table2[[#This Row],['# extra beds that fit in the room2]]<>0,LEFT(Table2[[#This Row],[New Room Type \n(TMS)]],6),\"\")","v":""},null,{"$f":"IF(Table2[[#This Row],['# extra beds that fit in the room]]<>Table2[[#This Row],['# extra beds that fit in the room2]],\"yes\",\"No\")","v":"No"}]
[null,{"$f":"IF(LEN(C1307)>0,'1) Hotel information'!$C$4,\"\")","v":""},null,null,null,{"$f":"IFERROR(INDEX(Table1[Room description],MATCH('2) Room configuration'!D1307,Table1[TMS],0)),\"\")","v":""},{"$f":"IFERROR(INDEX(Table1[Bedding],MATCH('2) Room configuration'!D1307,Table1[TMS],0)),\"\")","v":""},null,null,{"$f":"IFERROR(INDEX(Table1[Room description],MATCH('2) Room configuration'!I1307,Table1[TMS],0)),\"\")","v":""},{"$f":"IFERROR(INDEX(Table1[Bedding],MATCH('2) Room configuration'!I1307,Table1[TMS],0)),\"\")","v":""},{"$f":"IFERROR(INDEX(Table1[Normal occupancy],MATCH(Table2[[#This Row],[New Room Type \n(TMS)]],Table1[TMS],0)),\"\")","v":""},null,null,null,null,"",{"$f":"IF(Table2[[#This Row],['# extra beds that fit in the room2]]<>0,LEFT(Table2[[#This Row],[New Room Type \n(TMS)]],6),\"\")","v":""},null,{"$f":"IF(Table2[[#This Row],['# extra beds that fit in the room]]<>Table2[[#This Row],['# extra beds that fit in the room2]],\"yes\",\"No\")","v":"No"}]
[null,{"$f":"IF(LEN(C1308)>0,'1) Hotel information'!$C$4,\"\")","v":""},null,null,null,{"$f":"IFERROR(INDEX(Table1[Room description],MATCH('2) Room configuration'!D1308,Table1[TMS],0)),\"\")","v":""},{"$f":"IFERROR(INDEX(Table1[Bedding],MATCH('2) Room configuration'!D1308,Table1[TMS],0)),\"\")","v":""},null,null,{"$f":"IFERROR(INDEX(Table1[Room description],MATCH('2) Room configuration'!I1308,Table1[TMS],0)),\"\")","v":""},{"$f":"IFERROR(INDEX(Table1[Bedding],MATCH('2) Room configuration'!I1308,Table1[TMS],0)),\"\")","v":""},{"$f":"IFERROR(INDEX(Table1[Normal occupancy],MATCH(Table2[[#This Row],[New Room Type \n(TMS)]],Table1[TMS],0)),\"\")","v":""},null,null,null,null,"",{"$f":"IF(Table2[[#This Row],['# extra beds that fit in the room2]]<>0,LEFT(Table2[[#This Row],[New Room Type \n(TMS)]],6),\"\")","v":""},null,{"$f":"IF(Table2[[#This Row],['# extra beds that fit in the room]]<>Table2[[#This Row],['# extra beds that fit in the room2]],\"yes\",\"No\")","v":"No"}]
[null,{"$f":"IF(LEN(C1309)>0,'1) Hotel information'!$C$4,\"\")","v":""},null,null,null,{"$f":"IFERROR(INDEX(Table1[Room description],MATCH('2) Room configuration'!D1309,Table1[TMS],0)),\"\")","v":""},{"$f":"IFERROR(INDEX(Table1[Bedding],MATCH('2) Room configuration'!D1309,Table1[TMS],0)),\"\")","v":""},null,null,{"$f":"IFERROR(INDEX(Table1[Room description],MATCH('2) Room configuration'!I1309,Table1[TMS],0)),\"\")","v":""},{"$f":"IFERROR(INDEX(Table1[Bedding],MATCH('2) Room configuration'!I1309,Table1[TMS],0)),\"\")","v":""},{"$f":"IFERROR(INDEX(Table1[Normal occupancy],MATCH(Table2[[#This Row],[New Room Type \n(TMS)]],Table1[TMS],0)),\"\")","v":""},null,null,null,null,"",{"$f":"IF(Table2[[#This Row],['# extra beds that fit in the room2]]<>0,LEFT(Table2[[#This Row],[New Room Type \n(TMS)]],6),\"\")","v":""},null,{"$f":"IF(Table2[[#This Row],['# extra beds that fit in the room]]<>Table2[[#This Row],['# extra beds that fit in the room2]],\"yes\",\"No\")","v":"No"}]
[null,{"$f":"IF(LEN(C1310)>0,'1) Hotel information'!$C$4,\"\")","v":""},null,null,null,{"$f":"IFERROR(INDEX(Table1[Room description],MATCH('2) Room configuration'!D1310,Table1[TMS],0)),\"\")","v":""},{"$f":"IFERROR(INDEX(Table1[Bedding],MATCH('2) Room configuration'!D1310,Table1[TMS],0)),\"\")","v":""},null,null,{"$f":"IFERROR(INDEX(Table1[Room description],MATCH('2) Room configuration'!I1310,Table1[TMS],0)),\"\")","v":""},{"$f":"IFERROR(INDEX(Table1[Bedding],MATCH('2) Room configuration'!I1310,Table1[TMS],0)),\"\")","v":""},{"$f":"IFERROR(INDEX(Table1[Normal occupancy],MATCH(Table2[[#This Row],[New Room Type \n(TMS)]],Table1[TMS],0)),\"\")","v":""},null,null,null,null,"",{"$f":"IF(Table2[[#This Row],['# extra beds that fit in the room2]]<>0,LEFT(Table2[[#This Row],[New Room Type \n(TMS)]],6),\"\")","v":""},null,{"$f":"IF(Table2[[#This Row],['# extra beds that fit in the room]]<>Table2[[#This Row],['# extra beds that fit in the room2]],\"yes\",\"No\")","v":"No"}]
[null,{"$f":"IF(LEN(C1311)>0,'1) Hotel information'!$C$4,\"\")","v":""},null,null,null,{"$f":"IFERROR(INDEX(Table1[Room description],MATCH('2) Room configuration'!D1311,Table1[TMS],0)),\"\")","v":""},{"$f":"IFERROR(INDEX(Table1[Bedding],MATCH('2) Room configuration'!D1311,Table1[TMS],0)),\"\")","v":""},null,null,{"$f":"IFERROR(INDEX(Table1[Room description],MATCH('2) Room configuration'!I1311,Table1[TMS],0)),\"\")","v":""},{"$f":"IFERROR(INDEX(Table1[Bedding],MATCH('2) Room configuration'!I1311,Table1[TMS],0)),\"\")","v":""},{"$f":"IFERROR(INDEX(Table1[Normal occupancy],MATCH(Table2[[#This Row],[New Room Type \n(TMS)]],Table1[TMS],0)),\"\")","v":""},null,null,null,null,"",{"$f":"IF(Table2[[#This Row],['# extra beds that fit in the room2]]<>0,LEFT(Table2[[#This Row],[New Room Type \n(TMS)]],6),\"\")","v":""},null,{"$f":"IF(Table2[[#This Row],['# extra beds that fit in the room]]<>Table2[[#This Row],['# extra beds that fit in the room2]],\"yes\",\"No\")","v":"No"}]

{"sheet":"Sheet1","index":2,"n_rows":5,"n_cols":3,"rows_kept":5,"cut":false,"hidden":true,"merged":[]}
[]
[]
[]
[null,null,"ROLL AWAY"]
[null,null,"SOFA BED"]

{"sheet":"3) Room configuration summary","index":3,"n_rows":1121,"n_cols":56,"rows_kept":1121,"cut":false,"hidden":false,"merged":[[9,1,9,7],[1,1,1,28],[9,8,9,30],[6,31,7,34],[9,31,9,41]]}
[]
[]
[]
[null,"a)","Enter in column L the maximum number of guests that fit in the room (e.g. normally in a standard room this would be 2 pax)"]
[null,"b)","In column M, the max # of guests will be based on the input in step 2."]
[null,"c)","Enter in column N the average size of this particular room type."]
[]
[null,"Note:","In below overview you see the summary of the current room configuration & proposed/new configuration. It doesn't mean room type in cell B12 changes to room type H12 (it could be, but it depends).",null,null,null,null,null,null,null,null,null,null,null,null,null,null,null,null,null,null,null,null,null,null,null,null,null,null,null,null,null,null,null,null,null,{"$f":"'1) Hotel information'!C43","v":0}]
[]
[null,"CURRENT ROOM CONFIGURATION",null,null,null,null,null,null,"PROPOSED/NEW ROOM CONFIGURATION",null,null,null,null,null,null,null,null,null,null,null,null,null,null,null,null,null,null,null,null,null,null,"COMBINATIONS IN OTA"]
[null,"Hotel code","Hotel name","Current SubRoom Type \n(TMS)","Current Type","Current \ninventory","Current Room type description","Bedding","New SubRoom Type \n(TMS)","New Room Type (TMS)","New\ninventory","Publish on OTA?","Publish in WIHP - Metasearches","ALERT","New Room type description","Special Description (ONLY if you have the approval of Janneke &/or Roberto Serr ; PLEASE WRITE THE COMPLETE ROOM TYPE NAME) MAX ","Check Naming Characters - Max 40","Bedding2","Max. # guest \nwithout extra bed","Max. # guest with extra bed","Extra Bed Type","Average size (m2)","View","Terrace","ALERT2","Change vs. \nToday?","Room types to be created","Room types to be deleted","Inventory tie-braker","Code for linking","PK","Adult1","Child1","CHECK1","Adult2","Child2","CHECK2","Do you want to include this Combination in OTA's?","Do you want to include this Combination in WIHP - Metasearches","Is this Combination already in OTA's?","ACTION","SPECIAL COMMENTS"]
[null,{"$f":"IF(LEN(D12&I12)>2,'1) Hotel information'!$C$4,\"\")","v":""},{"$f":"IF(LEN(D12&I12)>2,'1) Hotel information'!$C$5,\"\")","v":""},{"$f":"IFERROR(INDEX(CurrentRoomConfiguration,MATCH(,COUNTIF($D$11:D11,CurrentRoomConfiguration),0)),)","v":0},{"$f":"IF(Table3[[#This Row],[Current SubRoom Type \n(TMS)]]=0,\"\",LEFT(Table3[[#This Row],[Current SubRoom Type \n(TMS)]],6))","v":""},{"$f":"IF(LEN(D12)>1,COUNTIF(CurrentRoomConfiguration,D12),\"\")","v":""},{"$f":"IFERROR(INDEX(Table1[Room description],MATCH(D12,Table1[TMS],0)),\"\")","v":""},{"$f":"IFERROR(INDEX(Table1[Bedding],MATCH(D12,Table1[TMS],0)),\"\")","v":""},{"$f":"IFERROR(INDEX(NewRoomConfiguration,MATCH(,COUNTIF($I$11:I11,NewRoomConfiguration),0)),)","v":0},{"$f":"IF(Table3[[#This Row],[New SubRoom Type \n(TMS)]]=0,\"\",LEFT(Table3[[#This Row],[New SubRoom Type \n(TMS)]],6))","v":""},{"$f":"IF(LEN(I12)>1,COUNTIF(NewRoomConfiguration,I12),\"\")","v":""},null,null,{"$f":"IFERROR(IF(AND(VLOOKUP(Table3[[#This Row],[New Room Type (TMS)]],Sheet3!$H$10:$I$28,2,FALSE)<5,Table3[[#This Row],[Publish on OTA?]]=\"yes\"),\"It's not posible to publish on OTA, please contact with Laura or Roberto\",\"\"),\"\")","v":""},{"$f":"IFERROR(INDEX(Table1[Room description],MATCH(I12,Table1[TMS],0)),\"\")","v":""},null,{"$f":"IF(LEN(P12)=0,\"\",LEN(P12))","v":""},{"$f":"IFERROR(INDEX(Table1[Bedding],MATCH(I12,Table1[TMS],0)),\"\")","v":""},2,{"$f":"IF(IFERROR(VLOOKUP($I$12:$I$1048576,MAX!$A:$B,2,FALSE)+Table3[[#This Row],[Max. '# guest \nwithout extra bed]],Table3[[#This Row],[Max. '# guest \nwithout extra bed]])=0,\"\",IFERROR(VLOOKUP($I$12:$I$1048576,MAX!$A:$B,2,FALSE)+Table3[[#This Row],[Max. '# guest \nwithout extra bed]],Table3[[#This Row],[Max. '# guest \nwithout extra bed]]))","v":2},{"$f":"IFERROR(IF(VLOOKUP(Table3[[#This Row],[New SubRoom Type \n(TMS)]],'1) Hotel information'!$B$54:$D$77,2,FALSE)>VLOOKUP(Table3[[#This Row],[New SubRoom Type \n(TMS)]],'1) Hotel information'!$B$54:$D$77,3,FALSE),\"ROLLAWAY\", IF(VLOOKUP(Table3[[#This Row],[New SubRoom Type \n(TMS)]],'1) Hotel information'!$B$54:$D$77,2,FALSE)<VLOOKUP(Table3[[#This Row],[New SubRoom Type \n(TMS)]],'1) Hotel information'!$B$54:$D$77,3,FALSE),\"SOFABED\",\"\")),\"\")","v":""},null,{"$f":"IFERROR(INDEX(Table1[View?],MATCH(I12,Table1[TMS],0)),\"\")","v":""},{"$f":"IFERROR(INDEX(Table1[Terrace?],MATCH(I12,Table1[TMS],0)),\"\")","v":""},{"$f":"IF(OR(Table3[[#This Row],[View]]=\"Yes\",Table3[[#This Row],[Terrace]]=\"Yes\"),\"Please review your Room Type description\",\"\")","v":""},{"$f":"IF(OR(LEN(Table3[[#This Row],[Room types to be created]])>1,LEN(Table3[[#This Row],[Room types to be deleted]])>1),\"Yes\",\"\")","v":""},{"$f":"IFERROR(IF(ISNA(VLOOKUP(I12,$D$12:$D$51,1,FALSE)),I12,\"\"),\"\")","v":""},{"$f":"IFERROR(IF(ISNA(VLOOKUP(D12,$I$12:$I$51,1,FALSE)),D12,\"\"),\"\")","v":""},{"$f":"IF(LEN(Table3[[#This Row],[New SubRoom Type \n(TMS)]])>1,Table3[[#This Row],[New\ninventory]]+(ROW()*0.000000001),\"\")","v":""},1,{"$f":"Table3[[#This Row],[New Room type description]]&Table3[[#This Row],[New\ninventory]]","v":""},null,null,{"$f":"IFERROR(IF(Table3[[#This Row],[Adult1]]+Table3[[#This Row],[Child1]]=Table3[[#This Row],[Max. '# guest with extra bed]],CONCATENATE(Table3[[#This Row],[Adult1]],\"AD\",\"+\",Table3[[#This Row],[Child1]],\"CH\"),IF(AND(Table3[[#This Row],[Adult1]]=\"\",Table3[[#This Row],[Child1]]=\"\"),\"\",\"ERROR\")),\"\")","v":""},null,null,{"$f":"IFERROR(IF(Table3[[#This Row],[Adult2]]+Table3[[#This Row],[Child2]]=Table3[[#This Row],[Max. '# guest with extra bed]],CONCATENATE(Table3[[#This Row],[Adult2]],\"AD\",\"+\",Table3[[#This Row],[Child2]],\"CH\"),IF(AND(Table3[[#This Row],[Adult2]]=\"\",Table3[[#This Row],[Child2]]=\"\"),\"\",\"ERROR\")),\"\")","v":""},null,null,null,{"$f":"IF(Table3[[#This Row],[Do you want to include this Combination in OTA''s?]]=\"YES\",IF(Table3[[#This Row],[Is this Combination already in OTA''s?]]=\"NO\",\"UPLOAD COMBINATION IN OTAS\",\"-\"),IF(Table3[[#This Row],[Is this Combination already in OTA''s?]]=\"YES\",\"DELETE COMBINATION\",\"-\"))","v":"-"},null,null,null,{"$f":"IFERROR(IF(AND(K12>5,L12=\"no\"),1,0),\"\")","v":0}]
[null,{"$f":"IF(LEN(D13&I13)>2,'1) Hotel information'!$C$4,\"\")","v":""},{"$f":"IF(LEN(D13&I13)>2,'1) Hotel information'!$C$5,\"\")","v":""},{"$f":"IFERROR(INDEX(CurrentRoomConfiguration,MATCH(,COUNTIF($D$11:D12,CurrentRoomConfiguration),0)),)","v":0},{"$f":"IF(Table3[[#This Row],[Current SubRoom Type \n(TMS)]]=0,\"\",LEFT(Table3[[#This Row],[Current SubRoom Type \n(TMS)]],6))","v":""},"",{"$f":"IFERROR(INDEX(Table1[Room description],MATCH(D13,Table1[TMS],0)),\"\")","v":""},{"$f":"IFERROR(INDEX(Table1[Bedding],MATCH(D13,Table1[TMS],0)),\"\")","v":""},{"$f":"IFERROR(INDEX(NewRoomConfiguration,MATCH(,COUNTIF($I$11:I12,NewRoomConfiguration),0)),)","v":0},{"$f":"IF(Table3[[#This Row],[New SubRoom Type \n(TMS)]]=0,\"\",LEFT(Table3[[#This Row],[New SubRoom Type \n(TMS)]],6))","v":""},"",null,null,{"$f":"IFERROR(IF(AND(VLOOKUP(Table3[[#This Row],[New Room Type (TMS)]],Sheet3!$H$10:$I$28,2,FALSE)<5,Table3[[#This Row],[Publish on OTA?]]=\"yes\"),\"It's not posible to publish on OTA, please contact with Laura or Roberto\",\"\"),\"\")","v":""},{"$f":"IFERROR(INDEX(Table1[Room description],MATCH(I13,Table1[TMS],0)),\"\")","v":""},null,{"$f":"IF(LEN(P13)=0,\"\",LEN(P13))","v":""},{"$f":"IFERROR(INDEX(Table1[Bedding],MATCH(I13,Table1[TMS],0)),\"\")","v":""},2,{"$f":"IF(IFERROR(VLOOKUP($I$12:$I$1048576,MAX!$A:$B,2,FALSE)+Table3[[#This Row],[Max. '# guest \nwithout extra bed]],Table3[[#This Row],[Max. '# guest \nwithout extra bed]])=0,\"\",IFERROR(VLOOKUP($I$12:$I$1048576,MAX!$A:$B,2,FALSE)+Table3[[#This Row],[Max. '# guest \nwithout extra bed]],Table3[[#This Row],[Max. '# guest \nwithout extra bed]]))","v":2},{"$f":"IFERROR(IF(VLOOKUP(Table3[[#This Row],[New SubRoom Type \n(TMS)]],'1) Hotel information'!$B$54:$D$77,2,FALSE)>VLOOKUP(Table3[[#This Row],[New SubRoom Type \n(TMS)]],'1) Hotel information'!$B$54:$D$77,3,FALSE),\"ROLLAWAY\", IF(VLOOKUP(Table3[[#This Row],[New SubRoom Type \n(TMS)]],'1) Hotel information'!$B$54:$D$77,2,FALSE)<VLOOKUP(Table3[[#This Row],[New SubRoom Type \n(TMS)]],'1) Hotel information'!$B$54:$D$77,3,FALSE),\"SOFABED\",\"\")),\"\")","v":""},null,{"$f":"IFERROR(INDEX(Table1[View?],MATCH(I13,Table1[TMS],0)),\"\")","v":""},{"$f":"IFERROR(INDEX(Table1[Terrace?],MATCH(I13,Table1[TMS],0)),\"\")","v":""},{"$f":"IF(OR(Table3[[#This Row],[View]]=\"Yes\",Table3[[#This Row],[Terrace]]=\"Yes\"),\"Please review your Room Type description\",\"\")","v":""},{"$f":"IF(OR(LEN(Table3[[#This Row],[Room types to be created]])>1,LEN(Table3[[#This Row],[Room types to be deleted]])>1),\"Yes\",\"\")","v":""},"","",{"$f":"IF(LEN(Table3[[#This Row],[New SubRoom Type \n(TMS)]])>1,Table3[[#This Row],[New\ninventory]]+(ROW()*0.000000001),\"\")","v":""},{"$f":"IF(LEN(Table3[[#This Row],[New SubRoom Type \n(TMS)]])>1,MAX($AD$12:AD12)+1,\"\")","v":""},{"$f":"Table3[[#This Row],[New Room type description]]&Table3[[#This Row],[New\ninventory]]","v":""},null,null,{"$f":"IFERROR(IF(Table3[[#This Row],[Adult1]]+Table3[[#This Row],[Child1]]=Table3[[#This Row],[Max. '# guest with extra bed]],CONCATENATE(Table3[[#This Row],[Adult1]],\"AD\",\"+\",Table3[[#This Row],[Child1]],\"CH\"),IF(AND(Table3[[#This Row],[Adult1]]=\"\",Table3[[#This Row],[Child1]]=\"\"),\"\",\"ERROR\")),\"\")","v":""},null,null,{"$f":"IFERROR(IF(Table3[[#This Row],[Adult2]]+Table3[[#This Row],[Child2]]=Table3[[#This Row],[Max. '# guest with extra bed]],CONCATENATE(Table3[[#This Row],[Adult2]],\"AD\",\"+\",Table3[[#This Row],[Child2]],\"CH\"),IF(AND(Table3[[#This Row],[Adult2]]=\"\",Table3[[#This Row],[Child2]]=\"\"),\"\",\"ERROR\")),\"\")","v":""},null,null,null,{"$f":"IF(Table3[[#This Row],[Do you want to include this Combination in OTA''s?]]=\"YES\",IF(Table3[[#This Row],[Is this Combination already in OTA''s?]]=\"NO\",\"UPLOAD COMBINATION IN OTAS\",\"-\"),IF(Table3[[#This Row],[Is this Combination already in OTA''s?]]=\"YES\",\"DELETE COMBINATION\",\"-\"))","v":"-"},null,null,null,0,null,null,null,null,null,null,null,null,null,null,"yes"]
[null,{"$f":"IF(LEN(D14&I14)>2,'1) Hotel information'!$C$4,\"\")","v":""},{"$f":"IF(LEN(D14&I14)>2,'1) Hotel information'!$C$5,\"\")","v":""},{"$f":"IFERROR(INDEX(CurrentRoomConfiguration,MATCH(,COUNTIF($D$11:D13,CurrentRoomConfiguration),0)),)","v":0},{"$f":"IF(Table3[[#This Row],[Current SubRoom Type \n(TMS)]]=0,\"\",LEFT(Table3[[#This Row],[Current SubRoom Type \n(TMS)]],6))","v":""},"",{"$f":"IFERROR(INDEX(Table1[Room description],MATCH(D14,Table1[TMS],0)),\"\")","v":""},{"$f":"IFERROR(INDEX(Table1[Bedding],MATCH(D14,Table1[TMS],0)),\"\")","v":""},{"$f":"IFERROR(INDEX(NewRoomConfiguration,MATCH(,COUNTIF($I$11:I13,NewRoomConfiguration),0)),)","v":0},{"$f":"IF(Table3[[#This Row],[New SubRoom Type \n(TMS)]]=0,\"\",LEFT(Table3[[#This Row],[New SubRoom Type \n(TMS)]],6))","v":""},"",null,null,{"$f":"IFERROR(IF(AND(VLOOKUP(Table3[[#This Row],[New Room Type (TMS)]],Sheet3!$H$10:$I$28,2,FALSE)<5,Table3[[#This Row],[Publish on OTA?]]=\"yes\"),\"It's not posible to publish on OTA, please contact with Laura or Roberto\",\"\"),\"\")","v":""},{"$f":"IFERROR(INDEX(Table1[Room description],MATCH(I14,Table1[TMS],0)),\"\")","v":""},null,"",{"$f":"IFERROR(INDEX(Table1[Bedding],MATCH(I14,Table1[TMS],0)),\"\")","v":""},null,{"$f":"IF(IFERROR(VLOOKUP($I$12:$I$1048576,MAX!$A:$B,2,FALSE)+Table3[[#This Row],[Max. '# guest \nwithout extra bed]],Table3[[#This Row],[Max. '# guest \nwithout extra bed]])=0,\"\",IFERROR(VLOOKUP($I$12:$I$1048576,MAX!$A:$B,2,FALSE)+Table3[[#This Row],[Max. '# guest \nwithout extra bed]],Table3[[#This Row],[Max. '# guest \nwithout extra bed]]))","v":""},{"$f":"IFERROR(IF(VLOOKUP(Table3[[#This Row],[New SubRoom Type \n(TMS)]],'1) Hotel information'!$B$54:$D$77,2,FALSE)>VLOOKUP(Table3[[#This Row],[New SubRoom Type \n(TMS)]],'1) Hotel information'!$B$54:$D$77,3,FALSE),\"ROLLAWAY\", IF(VLOOKUP(Table3[[#This Row],[New SubRoom Type \n(TMS)]],'1) Hotel information'!$B$54:$D$77,2,FALSE)<VLOOKUP(Table3[[#This Row],[New SubRoom Type \n(TMS)]],'1) Hotel information'!$B$54:$D$77,3,FALSE),\"SOFABED\",\"\")),\"\")","v":""},null,{"$f":"IFERROR(INDEX(Table1[View?],MATCH(I14,Table1[TMS],0)),\"\")","v":""},{"$f":"IFERROR(INDEX(Table1[Terrace?],MATCH(I14,Table1[TMS],0)),\"\")","v":""},{"$f":"IF(OR(Table3[[#This Row],[View]]=\"Yes\",Table3[[#This Row],[Terrace]]=\"Yes\"),\"Please review your Room Type description\",\"\")","v":""},{"$f":"IF(OR(LEN(Table3[[#This Row],[Room types to be created]])>1,LEN(Table3[[#This Row],[Room types to be deleted]])>1),\"Yes\",\"\")","v":""},"","",{"$f":"IF(LEN(Table3[[#This Row],[New SubRoom Type \n(TMS)]])>1,Table3[[#This Row],[New\ninventory]]+(ROW()*0.000000001),\"\")","v":""},{"$f":"IF(LEN(Table3[[#This Row],[New SubRoom Type \n(TMS)]])>1,MAX($AD$12:AD13)+1,\"\")","v":""},{"$f":"Table3[[#This Row],[New Room type description]]&Table3[[#This Row],[New\ninventory]]","v":""},null,null,{"$f":"IFERROR(IF(Table3[[#This Row],[Adult1]]+Table3[[#This Row],[Child1]]=Table3[[#This Row],[Max. '# guest with extra bed]],CONCATENATE(Table3[[#This Row],[Adult1]],\"AD\",\"+\",Table3[[#This Row],[Child1]],\"CH\"),IF(AND(Table3[[#This Row],[Adult1]]=\"\",Table3[[#This Row],[Child1]]=\"\"),\"\",\"ERROR\")),\"\")","v":""},null,null,{"$f":"IFERROR(IF(Table3[[#This Row],[Adult2]]+Table3[[#This Row],[Child2]]=Table3[[#This Row],[Max. '# guest with extra bed]],CONCATENATE(Table3[[#This Row],[Adult2]],\"AD\",\"+\",Table3[[#This Row],[Child2]],\"CH\"),IF(AND(Table3[[#This Row],[Adult2]]=\"\",Table3[[#This Row],[Child2]]=\"\"),\"\",\"ERROR\")),\"\")","v":""},null,null,null,{"$f":"IF(Table3[[#This Row],[Do you want to include this Combination in OTA''s?]]=\"YES\",IF(Table3[[#This Row],[Is this Combination already in OTA''s?]]=\"NO\",\"UPLOAD COMBINATION IN OTAS\",\"-\"),IF(Table3[[#This Row],[Is this Combination already in OTA''s?]]=\"YES\",\"DELETE COMBINATION\",\"-\"))","v":"-"},null,null,null,0,null,null,null,null,null,null,null,null,null,null,"no"]
[null,{"$f":"IF(LEN(D15&I15)>2,'1) Hotel information'!$C$4,\"\")","v":""},{"$f":"IF(LEN(D15&I15)>2,'1) Hotel information'!$C$5,\"\")","v":""},{"$f":"IFERROR(INDEX(CurrentRoomConfiguration,MATCH(,COUNTIF($D$11:D14,CurrentRoomConfiguration),0)),)","v":0},{"$f":"IF(Table3[[#This Row],[Current SubRoom Type \n(TMS)]]=0,\"\",LEFT(Table3[[#This Row],[Current SubRoom Type \n(TMS)]],6))","v":""},"",{"$f":"IFERROR(INDEX(Table1[Room description],MATCH(D15,Table1[TMS],0)),\"\")","v":""},{"$f":"IFERROR(INDEX(Table1[Bedding],MATCH(D15,Table1[TMS],0)),\"\")","v":""},{"$f":"IFERROR(INDEX(NewRoomConfiguration,MATCH(,COUNTIF($I$11:I14,NewRoomConfiguration),0)),)","v":0},{"$f":"IF(Table3[[#This Row],[New SubRoom Type \n(TMS)]]=0,\"\",LEFT(Table3[[#This Row],[New SubRoom Type \n(TMS)]],6))","v":""},"",null,null,{"$f":"IFERROR(IF(AND(VLOOKUP(Table3[[#This Row],[New Room Type (TMS)]],Sheet3!$H$10:$I$28,2,FALSE)<5,Table3[[#This Row],[Publish on OTA?]]=\"yes\"),\"It's not posible to publish on OTA, please contact with Laura or Roberto\",\"\"),\"\")","v":""},{"$f":"IFERROR(INDEX(Table1[Room description],MATCH(I15,Table1[TMS],0)),\"\")","v":""},null,"",{"$f":"IFERROR(INDEX(Table1[Bedding],MATCH(I15,Table1[TMS],0)),\"\")","v":""},null,{"$f":"IF(IFERROR(VLOOKUP($I$12:$I$1048576,MAX!$A:$B,2,FALSE)+Table3[[#This Row],[Max. '# guest \nwithout extra bed]],Table3[[#This Row],[Max. '# guest \nwithout extra bed]])=0,\"\",IFERROR(VLOOKUP($I$12:$I$1048576,MAX!$A:$B,2,FALSE)+Table3[[#This Row],[Max. '# guest \nwithout extra bed]],Table3[[#This Row],[Max. '# guest \nwithout extra bed]]))","v":""},{"$f":"IFERROR(IF(VLOOKUP(Table3[[#This Row],[New SubRoom Type \n(TMS)]],'1) Hotel information'!$B$54:$D$77,2,FALSE)>VLOOKUP(Table3[[#This Row],[New SubRoom Type \n(TMS)]],'1) Hotel information'!$B$54:$D$77,3,FALSE),\"ROLLAWAY\", IF(VLOOKUP(Table3[[#This Row],[New SubRoom Type \n(TMS)]],'1) Hotel information'!$B$54:$D$77,2,FALSE)<VLOOKUP(Table3[[#This Row],[New SubRoom Type \n(TMS)]],'1) Hotel information'!$B$54:$D$77,3,FALSE),\"SOFABED\",\"\")),\"\")","v":""},null,{"$f":"IFERROR(INDEX(Table1[View?],MATCH(I15,Table1[TMS],0)),\"\")","v":""},{"$f":"IFERROR(INDEX(Table1[Terrace?],MATCH(I15,Table1[TMS],0)),\"\")","v":""},{"$f":"IF(OR(Table3[[#This Row],[View]]=\"Yes\",Table3[[#This Row],[Terrace]]=\"Yes\"),\"Please review your Room Type description\",\"\")","v":""},{"$f":"IF(OR(LEN(Table3[[#This Row],[Room types to be created]])>1,LEN(Table3[[#This Row],[Room types to be deleted]])>1),\"Yes\",\"\")","v":""},"","",{"$f":"IF(LEN(Table3[[#This Row],[New SubRoom Type \n(TMS)]])>1,Table3[[#This Row],[New\ninventory]]+(ROW()*0.000000001),\"\")","v":""},{"$f":"IF(LEN(Table3[[#This Row],[New SubRoom Type \n(TMS)]])>1,MAX($AD$12:AD14)+1,\"\")","v":""},{"$f":"Table3[[#This Row],[New Room type description]]&Table3[[#This Row],[New\ninventory]]","v":""},null,null,{"$f":"IFERROR(IF(Table3[[#This Row],[Adult1]]+Table3[[#This Row],[Child1]]=Table3[[#This Row],[Max. '# guest with extra bed]],CONCATENATE(Table3[[#This Row],[Adult1]],\"AD\",\"+\",Table3[[#This Row],[Child1]],\"CH\"),IF(AND(Table3[[#This Row],[Adult1]]=\"\",Table3[[#This Row],[Child1]]=\"\"),\"\",\"ERROR\")),\"\")","v":""},null,null,{"$f":"IFERROR(IF(Table3[[#This Row],[Adult2]]+Table3[[#This Row],[Child2]]=Table3[[#This Row],[Max. '# guest with extra bed]],CONCATENATE(Table3[[#This Row],[Adult2]],\"AD\",\"+\",Table3[[#This Row],[Child2]],\"CH\"),IF(AND(Table3[[#This Row],[Adult2]]=\"\",Table3[[#This Row],[Child2]]=\"\"),\"\",\"ERROR\")),\"\")","v":""},null,null,null,{"$f":"IF(Table3[[#This Row],[Do you want to include this Combination in OTA''s?]]=\"YES\",IF(Table3[[#This Row],[Is this Combination already in OTA''s?]]=\"NO\",\"UPLOAD COMBINATION IN OTAS\",\"-\"),IF(Table3[[#This Row],[Is this Combination already in OTA''s?]]=\"YES\",\"DELETE COMBINATION\",\"-\"))","v":"-"},null,null,null,0]
[null,{"$f":"IF(LEN(D16&I16)>2,'1) Hotel information'!$C$4,\"\")","v":""},{"$f":"IF(LEN(D16&I16)>2,'1) Hotel information'!$C$5,\"\")","v":""},{"$f":"IFERROR(INDEX(CurrentRoomConfiguration,MATCH(,COUNTIF($D$11:D15,CurrentRoomConfiguration),0)),)","v":0},{"$f":"IF(Table3[[#This Row],[Current SubRoom Type \n(TMS)]]=0,\"\",LEFT(Table3[[#This Row],[Current SubRoom Type \n(TMS)]],6))","v":""},"",{"$f":"IFERROR(INDEX(Table1[Room description],MATCH(D16,Table1[TMS],0)),\"\")","v":""},{"$f":"IFERROR(INDEX(Table1[Bedding],MATCH(D16,Table1[TMS],0)),\"\")","v":""},{"$f":"IFERROR(INDEX(NewRoomConfiguration,MATCH(,COUNTIF($I$11:I15,NewRoomConfiguration),0)),)","v":0},{"$f":"IF(Table3[[#This Row],[New SubRoom Type \n(TMS)]]=0,\"\",LEFT(Table3[[#This Row],[New SubRoom Type \n(TMS)]],6))","v":""},"",null,null,{"$f":"IFERROR(IF(AND(VLOOKUP(Table3[[#This Row],[New Room Type (TMS)]],Sheet3!$H$10:$I$28,2,FALSE)<5,Table3[[#This Row],[Publish on OTA?]]=\"yes\"),\"It's not posible to publish on OTA, please contact with Laura or Roberto\",\"\"),\"\")","v":""},{"$f":"IFERROR(INDEX(Table1[Room description],MATCH(I16,Table1[TMS],0)),\"\")","v":""},null,"",{"$f":"IFERROR(INDEX(Table1[Bedding],MATCH(I16,Table1[TMS],0)),\"\")","v":""},null,{"$f":"IF(IFERROR(VLOOKUP($I$12:$I$1048576,MAX!$A:$B,2,FALSE)+Table3[[#This Row],[Max. '# guest \nwithout extra bed]],Table3[[#This Row],[Max. '# guest \nwithout extra bed]])=0,\"\",IFERROR(VLOOKUP($I$12:$I$1048576,MAX!$A:$B,2,FALSE)+Table3[[#This Row],[Max. '# guest \nwithout extra bed]],Table3[[#This Row],[Max. '# guest \nwithout extra bed]]))","v":""},{"$f":"IFERROR(IF(VLOOKUP(Table3[[#This Row],[New SubRoom Type \n(TMS)]],'1) Hotel information'!$B$54:$D$77,2,FALSE)>VLOOKUP(Table3[[#This Row],[New SubRoom Type \n(TMS)]],'1) Hotel information'!$B$54:$D$77,3,FALSE),\"ROLLAWAY\", IF(VLOOKUP(Table3[[#This Row],[New SubRoom Type \n(TMS)]],'1) Hotel information'!$B$54:$D$77,2,FALSE)<VLOOKUP(Table3[[#This Row],[New SubRoom Type \n(TMS)]],'1) Hotel information'!$B$54:$D$77,3,FALSE),\"SOFABED\",\"\")),\"\")","v":""},null,{"$f":"IFERROR(INDEX(Table1[View?],MATCH(I16,Table1[TMS],0)),\"\")","v":""},{"$f":"IFERROR(INDEX(Table1[Terrace?],MATCH(I16,Table1[TMS],0)),\"\")","v":""},{"$f":"IF(OR(Table3[[#This Row],[View]]=\"Yes\",Table3[[#This Row],[Terrace]]=\"Yes\"),\"Please review your Room Type description\",\"\")","v":""},{"$f":"IF(OR(LEN(Table3[[#This Row],[Room types to be created]])>1,LEN(Table3[[#This Row],[Room types to be deleted]])>1),\"Yes\",\"\")","v":""},"","",{"$f":"IF(LEN(Table3[[#This Row],[New SubRoom Type \n(TMS)]])>1,Table3[[#This Row],[New\ninventory]]+(ROW()*0.000000001),\"\")","v":""},{"$f":"IF(LEN(Table3[[#This Row],[New SubRoom Type \n(TMS)]])>1,MAX($AD$12:AD15)+1,\"\")","v":""},{"$f":"Table3[[#This Row],[New Room type description]]&Table3[[#This Row],[New\ninventory]]","v":""},null,null,{"$f":"IFERROR(IF(Table3[[#This Row],[Adult1]]+Table3[[#This Row],[Child1]]=Table3[[#This Row],[Max. '# guest with extra bed]],CONCATENATE(Table3[[#This Row],[Adult1]],\"AD\",\"+\",Table3[[#This Row],[Child1]],\"CH\"),IF(AND(Table3[[#This Row],[Adult1]]=\"\",Table3[[#This Row],[Child1]]=\"\"),\"\",\"ERROR\")),\"\")","v":""},null,null,{"$f":"IFERROR(IF(Table3[[#This Row],[Adult2]]+Table3[[#This Row],[Child2]]=Table3[[#This Row],[Max. '# guest with extra bed]],CONCATENATE(Table3[[#This Row],[Adult2]],\"AD\",\"+\",Table3[[#This Row],[Child2]],\"CH\"),IF(AND(Table3[[#This Row],[Adult2]]=\"\",Table3[[#This Row],[Child2]]=\"\"),\"\",\"ERROR\")),\"\")","v":""},null,null,null,{"$f":"IF(Table3[[#This Row],[Do you want to include this Combination in OTA''s?]]=\"YES\",IF(Table3[[#This Row],[Is this Combination already in OTA''s?]]=\"NO\",\"UPLOAD COMBINATION IN OTAS\",\"-\"),IF(Table3[[#This Row],[Is this Combination already in OTA''s?]]=\"YES\",\"DELETE COMBINATION\",\"-\"))","v":"-"},null,null,null,0]
[null,{"$f":"IF(LEN(D17&I17)>2,'1) Hotel information'!$C$4,\"\")","v":""},{"$f":"IF(LEN(D17&I17)>2,'1) Hotel information'!$C$5,\"\")","v":""},{"$f":"IFERROR(INDEX(CurrentRoomConfiguration,MATCH(,COUNTIF($D$11:D16,CurrentRoomConfiguration),0)),)","v":0},{"$f":"IF(Table3[[#This Row],[Current SubRoom Type \n(TMS)]]=0,\"\",LEFT(Table3[[#This Row],[Current SubRoom Type \n(TMS)]],6))","v":""},"",{"$f":"IFERROR(INDEX(Table1[Room description],MATCH(D17,Table1[TMS],0)),\"\")","v":""},{"$f":"IFERROR(INDEX(Table1[Bedding],MATCH(D17,Table1[TMS],0)),\"\")","v":""},{"$f":"IFERROR(INDEX(NewRoomConfiguration,MATCH(,COUNTIF($I$11:I16,NewRoomConfiguration),0)),)","v":0},{"$f":"IF(Table3[[#This Row],[New SubRoom Type \n(TMS)]]=0,\"\",LEFT(Table3[[#This Row],[New SubRoom Type \n(TMS)]],6))","v":""},"",null,{"$f":"IF(Table3[[#This Row],[Publish on OTA?]]<>\"\",\"YES\",\"\")","v":""},{"$f":"IFERROR(IF(AND(VLOOKUP(Table3[[#This Row],[New Room Type (TMS)]],Sheet3!$H$10:$I$28,2,FALSE)<5,Table3[[#This Row],[Publish on OTA?]]=\"yes\"),\"It's not posible to publish on OTA, please contact with Laura or Roberto\",\"\"),\"\")","v":""},{"$f":"IFERROR(INDEX(Table1[Room description],MATCH(I17,Table1[TMS],0)),\"\")","v":""},null,"",{"$f":"IFERROR(INDEX(Table1[Bedding],MATCH(I17,Table1[TMS],0)),\"\")","v":""},null,{"$f":"IF(IFERROR(VLOOKUP($I$12:$I$1048576,MAX!$A:$B,2,FALSE)+Table3[[#This Row],[Max. '# guest \nwithout extra bed]],Table3[[#This Row],[Max. '# guest \nwithout extra bed]])=0,\"\",IFERROR(VLOOKUP($I$12:$I$1048576,MAX!$A:$B,2,FALSE)+Table3[[#This Row],[Max. '# guest \nwithout extra bed]],Table3[[#This Row],[Max. '# guest \nwithout extra bed]]))","v":""},{"$f":"IFERROR(IF(VLOOKUP(Table3[[#This Row],[New SubRoom Type \n(TMS)]],'1) Hotel information'!$B$54:$D$77,2,FALSE)>VLOOKUP(Table3[[#This Row],[New SubRoom Type \n(TMS)]],'1) Hotel information'!$B$54:$D$77,3,FALSE),\"ROLLAWAY\", IF(VLOOKUP(Table3[[#This Row],[New SubRoom Type \n(TMS)]],'1) Hotel information'!$B$54:$D$77,2,FALSE)<VLOOKUP(Table3[[#This Row],[New SubRoom Type \n(TMS)]],'1) Hotel information'!$B$54:$D$77,3,FALSE),\"SOFABED\",\"\")),\"\")","v":""},null,{"$f":"IFERROR(INDEX(Table1[View?],MATCH(I17,Table1[TMS],0)),\"\")","v":""},{"$f":"IFERROR(INDEX(Table1[Terrace?],MATCH(I17,Table1[TMS],0)),\"\")","v":""},{"$f":"IF(OR(Table3[[#This Row],[View]]=\"Yes\",Table3[[#This Row],[Terrace]]=\"Yes\"),\"Please review your Room Type description\",\"\")","v":""},{"$f":"IF(OR(LEN(Table3[[#This Row],[Room types to be created]])>1,LEN(Table3[[#This Row],[Room types to be deleted]])>1),\"Yes\",\"\")","v":""},"","",{"$f":"IF(LEN(Table3[[#This Row],[New SubRoom Type \n(TMS)]])>1,Table3[[#This Row],[New\ninventory]]+(ROW()*0.000000001),\"\")","v":""},{"$f":"IF(LEN(Table3[[#This Row],[New SubRoom Type \n(TMS)]])>1,MAX($AD$12:AD16)+1,\"\")","v":""},{"$f":"Table3[[#This Row],[New Room type description]]&Table3[[#This Row],[New\ninventory]]","v":""},null,null,{"$f":"IFERROR(IF(Table3[[#This Row],[Adult1]]+Table3[[#This Row],[Child1]]=Table3[[#This Row],[Max. '# guest with extra bed]],CONCATENATE(Table3[[#This Row],[Adult1]],\"AD\",\"+\",Table3[[#This Row],[Child1]],\"CH\"),IF(AND(Table3[[#This Row],[Adult1]]=\"\",Table3[[#This Row],[Child1]]=\"\"),\"\",\"ERROR\")),\"\")","v":""},null,null,{"$f":"IFERROR(IF(Table3[[#This Row],[Adult2]]+Table3[[#This Row],[Child2]]=Table3[[#This Row],[Max. '# guest with extra bed]],CONCATENATE(Table3[[#This Row],[Adult2]],\"AD\",\"+\",Table3[[#This Row],[Child2]],\"CH\"),IF(AND(Table3[[#This Row],[Adult2]]=\"\",Table3[[#This Row],[Child2]]=\"\"),\"\",\"ERROR\")),\"\")","v":""},null,{"$f":"IF(Table3[[#This Row],[Do you want to include this Combination in OTA''s?]]<>\"\",\"YES\",\"\")","v":""},null,{"$f":"IF(Table3[[#This Row],[Do you want to include this Combination in OTA''s?]]=\"YES\",IF(Table3[[#This Row],[Is this Combination already in OTA''s?]]=\"NO\",\"UPLOAD COMBINATION IN OTAS\",\"-\"),IF(Table3[[#This Row],[Is this Combination already in OTA''s?]]=\"YES\",\"DELETE COMBINATION\",\"-\"))","v":"-"},null,null,null,0]
[null,{"$f":"IF(LEN(D18&I18)>2,'1) Hotel information'!$C$4,\"\")","v":""},{"$f":"IF(LEN(D18&I18)>2,'1) Hotel information'!$C$5,\"\")","v":""},{"$f":"IFERROR(INDEX(CurrentRoomConfiguration,MATCH(,COUNTIF($D$11:D17,CurrentRoomConfiguration),0)),)","v":0},{"$f":"IF(Table3[[#This Row],[Current SubRoom Type \n(TMS)]]=0,\"\",LEFT(Table3[[#This Row],[Current SubRoom Type \n(TMS)]],6))","v":""},"",{"$f":"IFERROR(INDEX(Table1[Room description],MATCH(D18,Table1[TMS],0)),\"\")","v":""},{"$f":"IFERROR(INDEX(Table1[Bedding],MATCH(D18,Table1[TMS],0)),\"\")","v":""},{"$f":"IFERROR(INDEX(NewRoomConfiguration,MATCH(,COUNTIF($I$11:I17,NewRoomConfiguration),0)),)","v":0},{"$f":"IF(Table3[[#This Row],[New SubRoom Type \n(TMS)]]=0,\"\",LEFT(Table3[[#This Row],[New SubRoom Type \n(TMS)]],6))","v":""},"",null,{"$f":"IF(Table3[[#This Row],[Publish on OTA?]]<>\"\",\"YES\",\"\")","v":""},{"$f":"IFERROR(IF(AND(VLOOKUP(Table3[[#This Row],[New Room Type (TMS)]],Sheet3!$H$10:$I$28,2,FALSE)<5,Table3[[#This Row],[Publish on OTA?]]=\"yes\"),\"It's not posible to publish on OTA, please contact with Laura or Roberto\",\"\"),\"\")","v":""},{"$f":"IFERROR(INDEX(Table1[Room description],MATCH(I18,Table1[TMS],0)),\"\")","v":""},null,"",{"$f":"IFERROR(INDEX(Table1[Bedding],MATCH(I18,Table1[TMS],0)),\"\")","v":""},null,{"$f":"IF(IFERROR(VLOOKUP($I$12:$I$1048576,MAX!$A:$B,2,FALSE)+Table3[[#This Row],[Max. '# guest \nwithout extra bed]],Table3[[#This Row],[Max. '# guest \nwithout extra bed]])=0,\"\",IFERROR(VLOOKUP($I$12:$I$1048576,MAX!$A:$B,2,FALSE)+Table3[[#This Row],[Max. '# guest \nwithout extra bed]],Table3[[#This Row],[Max. '# guest \nwithout extra bed]]))","v":""},{"$f":"IFERROR(IF(VLOOKUP(Table3[[#This Row],[New SubRoom Type \n(TMS)]],'1) Hotel information'!$B$54:$D$77,2,FALSE)>VLOOKUP(Table3[[#This Row],[New SubRoom Type \n(TMS)]],'1) Hotel information'!$B$54:$D$77,3,FALSE),\"ROLLAWAY\", IF(VLOOKUP(Table3[[#This Row],[New SubRoom Type \n(TMS)]],'1) Hotel information'!$B$54:$D$77,2,FALSE)<VLOOKUP(Table3[[#This Row],[New SubRoom Type \n(TMS)]],'1) Hotel information'!$B$54:$D$77,3,FALSE),\"SOFABED\",\"\")),\"\")","v":""},null,{"$f":"IFERROR(INDEX(Table1[View?],MATCH(I18,Table1[TMS],0)),\"\")","v":""},{"$f":"IFERROR(INDEX(Table1[Terrace?],MATCH(I18,Table1[TMS],0)),\"\")","v":""},{"$f":"IF(OR(Table3[[#This Row],[View]]=\"Yes\",Table3[[#This Row],[Terrace]]=\"Yes\"),\"Please review your Room Type description\",\"\")","v":""},{"$f":"IF(OR(LEN(Table3[[#This Row],[Room types to be created]])>1,LEN(Table3[[#This Row],[Room types to be deleted]])>1),\"Yes\",\"\")","v":""},"","",{"$f":"IF(LEN(Table3[[#This Row],[New SubRoom Type \n(TMS)]])>1,Table3[[#This Row],[New\ninventory]]+(ROW()*0.000000001),\"\")","v":""},{"$f":"IF(LEN(Table3[[#This Row],[New SubRoom Type \n(TMS)]])>1,MAX($AD$12:AD17)+1,\"\")","v":""},{"$f":"Table3[[#This Row],[New Room type description]]&Table3[[#This Row],[New\ninventory]]","v":""},null,null,{"$f":"IFERROR(IF(Table3[[#This Row],[Adult1]]+Table3[[#This Row],[Child1]]=Table3[[#This Row],[Max. '# guest with extra bed]],CONCATENATE(Table3[[#This Row],[Adult1]],\"AD\",\"+\",Table3[[#This Row],[Child1]],\"CH\"),IF(AND(Table3[[#This Row],[Adult1]]=\"\",Table3[[#This Row],[Child1]]=\"\"),\"\",\"ERROR\")),\"\")","v":""},null,null,{"$f":"IFERROR(IF(Table3[[#This Row],[Adult2]]+Table3[[#This Row],[Child2]]=Table3[[#This Row],[Max. '# guest with extra bed]],CONCATENATE(Table3[[#This Row],[Adult2]],\"AD\",\"+\",Table3[[#This Row],[Child2]],\"CH\"),IF(AND(Table3[[#This Row],[Adult2]]=\"\",Table3[[#This Row],[Child2]]=\"\"),\"\",\"ERROR\")),\"\")","v":""},null,{"$f":"IF(Table3[[#This Row],[Do you want to include this Combination in OTA''s?]]<>\"\",\"YES\",\"\")","v":""},null,{"$f":"IF(Table3[[#This Row],[Do you want to include this Combination in OTA''s?]]=\"YES\",IF(Table3[[#This Row],[Is this Combination already in OTA''s?]]=\"NO\",\"UPLOAD COMBINATION IN OTAS\",\"-\"),IF(Table3[[#This Row],[Is this Combination already in OTA''s?]]=\"YES\",\"DELETE COMBINATION\",\"-\"))","v":"-"},null,null,null,0]
[null,{"$f":"IF(LEN(D19&I19)>2,'1) Hotel information'!$C$4,\"\")","v":""},{"$f":"IF(LEN(D19&I19)>2,'1) Hotel information'!$C$5,\"\")","v":""},{"$f":"IFERROR(INDEX(CurrentRoomConfiguration,MATCH(,COUNTIF($D$11:D18,CurrentRoomConfiguration),0)),)","v":0},{"$f":"IF(Table3[[#This Row],[Current SubRoom Type \n(TMS)]]=0,\"\",LEFT(Table3[[#This Row],[Current SubRoom Type \n(TMS)]],6))","v":""},"",{"$f":"IFERROR(INDEX(Table1[Room description],MATCH(D19,Table1[TMS],0)),\"\")","v":""},{"$f":"IFERROR(INDEX(Table1[Bedding],MATCH(D19,Table1[TMS],0)),\"\")","v":""},{"$f":"IFERROR(INDEX(NewRoomConfiguration,MATCH(,COUNTIF($I$11:I18,NewRoomConfiguration),0)),)","v":0},{"$f":"IF(Table3[[#This Row],[New SubRoom Type \n(TMS)]]=0,\"\",LEFT(Table3[[#This Row],[New SubRoom Type \n(TMS)]],6))","v":""},"",null,{"$f":"IF(Table3[[#This Row],[Publish on OTA?]]<>\"\",\"YES\",\"\")","v":""},{"$f":"IFERROR(IF(AND(VLOOKUP(Table3[[#This Row],[New Room Type (TMS)]],Sheet3!$H$10:$I$28,2,FALSE)<5,Table3[[#This Row],[Publish on OTA?]]=\"yes\"),\"It's not posible to publish on OTA, please contact with Laura or Roberto\",\"\"),\"\")","v":""},{"$f":"IFERROR(INDEX(Table1[Room description],MATCH(I19,Table1[TMS],0)),\"\")","v":""},null,"",{"$f":"IFERROR(INDEX(Table1[Bedding],MATCH(I19,Table1[TMS],0)),\"\")","v":""},null,{"$f":"IF(IFERROR(VLOOKUP($I$12:$I$1048576,MAX!$A:$B,2,FALSE)+Table3[[#This Row],[Max. '# guest \nwithout extra bed]],Table3[[#This Row],[Max. '# guest \nwithout extra bed]])=0,\"\",IFERROR(VLOOKUP($I$12:$I$1048576,MAX!$A:$B,2,FALSE)+Table3[[#This Row],[Max. '# guest \nwithout extra bed]],Table3[[#This Row],[Max. '# guest \nwithout extra bed]]))","v":""},{"$f":"IFERROR(IF(VLOOKUP(Table3[[#This Row],[New SubRoom Type \n(TMS)]],'1) Hotel information'!$B$54:$D$77,2,FALSE)>VLOOKUP(Table3[[#This Row],[New SubRoom Type \n(TMS)]],'1) Hotel information'!$B$54:$D$77,3,FALSE),\"ROLLAWAY\", IF(VLOOKUP(Table3[[#This Row],[New SubRoom Type \n(TMS)]],'1) Hotel information'!$B$54:$D$77,2,FALSE)<VLOOKUP(Table3[[#This Row],[New SubRoom Type \n(TMS)]],'1) Hotel information'!$B$54:$D$77,3,FALSE),\"SOFABED\",\"\")),\"\")","v":""},null,{"$f":"IFERROR(INDEX(Table1[View?],MATCH(I19,Table1[TMS],0)),\"\")","v":""},{"$f":"IFERROR(INDEX(Table1[Terrace?],MATCH(I19,Table1[TMS],0)),\"\")","v":""},{"$f":"IF(OR(Table3[[#This Row],[View]]=\"Yes\",Table3[[#This Row],[Terrace]]=\"Yes\"),\"Please review your Room Type description\",\"\")","v":""},{"$f":"IF(OR(LEN(Table3[[#This Row],[Room types to be created]])>1,LEN(Table3[[#This Row],[Room types to be deleted]])>1),\"Yes\",\"\")","v":""},"","",{"$f":"IF(LEN(Table3[[#This Row],[New SubRoom Type \n(TMS)]])>1,Table3[[#This Row],[New\ninventory]]+(ROW()*0.000000001),\"\")","v":""},{"$f":"IF(LEN(Table3[[#This Row],[New SubRoom Type \n(TMS)]])>1,MAX($AD$12:AD18)+1,\"\")","v":""},{"$f":"Table3[[#This Row],[New Room type description]]&Table3[[#This Row],[New\ninventory]]","v":""},null,null,{"$f":"IFERROR(IF(Table3[[#This Row],[Adult1]]+Table3[[#This Row],[Child1]]=Table3[[#This Row],[Max. '# guest with extra bed]],CONCATENATE(Table3[[#This Row],[Adult1]],\"AD\",\"+\",Table3[[#This Row],[Child1]],\"CH\"),IF(AND(Table3[[#This Row],[Adult1]]=\"\",Table3[[#This Row],[Child1]]=\"\"),\"\",\"ERROR\")),\"\")","v":""},null,null,{"$f":"IFERROR(IF(Table3[[#This Row],[Adult2]]+Table3[[#This Row],[Child2]]=Table3[[#This Row],[Max. '# guest with extra bed]],CONCATENATE(Table3[[#This Row],[Adult2]],\"AD\",\"+\",Table3[[#This Row],[Child2]],\"CH\"),IF(AND(Table3[[#This Row],[Adult2]]=\"\",Table3[[#This Row],[Child2]]=\"\"),\"\",\"ERROR\")),\"\")","v":""},null,{"$f":"IF(Table3[[#This Row],[Do you want to include this Combination in OTA''s?]]<>\"\",\"YES\",\"\")","v":""},null,{"$f":"IF(Table3[[#This Row],[Do you want to include this Combination in OTA''s?]]=\"YES\",IF(Table3[[#This Row],[Is this Combination already in OTA''s?]]=\"NO\",\"UPLOAD COMBINATION IN OTAS\",\"-\"),IF(Table3[[#This Row],[Is this Combination already in OTA''s?]]=\"YES\",\"DELETE COMBINATION\",\"-\"))","v":"-"},null,null,null,0]
[null,{"$f":"IF(LEN(D20&I20)>2,'1) Hotel information'!$C$4,\"\")","v":""},{"$f":"IF(LEN(D20&I20)>2,'1) Hotel information'!$C$5,\"\")","v":""},{"$f":"IFERROR(INDEX(CurrentRoomConfiguration,MATCH(,COUNTIF($D$11:D19,CurrentRoomConfiguration),0)),)","v":0},{"$f":"IF(Table3[[#This Row],[Current SubRoom Type \n(TMS)]]=0,\"\",LEFT(Table3[[#This Row],[Current SubRoom Type \n(TMS)]],6))","v":""},"",{"$f":"IFERROR(INDEX(Table1[Room description],MATCH(D20,Table1[TMS],0)),\"\")","v":""},{"$f":"IFERROR(INDEX(Table1[Bedding],MATCH(D20,Table1[TMS],0)),\"\")","v":""},{"$f":"IFERROR(INDEX(NewRoomConfiguration,MATCH(,COUNTIF($I$11:I19,NewRoomConfiguration),0)),)","v":0},{"$f":"IF(Table3[[#This Row],[New SubRoom Type \n(TMS)]]=0,\"\",LEFT(Table3[[#This Row],[New SubRoom Type \n(TMS)]],6))","v":""},"",null,{"$f":"IF(Table3[[#This Row],[Publish on OTA?]]<>\"\",\"YES\",\"\")","v":""},{"$f":"IFERROR(IF(AND(VLOOKUP(Table3[[#This Row],[New Room Type (TMS)]],Sheet3!$H$10:$I$28,2,FALSE)<5,Table3[[#This Row],[Publish on OTA?]]=\"yes\"),\"It's not posible to publish on OTA, please contact with Laura or Roberto\",\"\"),\"\")","v":""},{"$f":"IFERROR(INDEX(Table1[Room description],MATCH(I20,Table1[TMS],0)),\"\")","v":""},null,"",{"$f":"IFERROR(INDEX(Table1[Bedding],MATCH(I20,Table1[TMS],0)),\"\")","v":""},null,{"$f":"IF(IFERROR(VLOOKUP($I$12:$I$1048576,MAX!$A:$B,2,FALSE)+Table3[[#This Row],[Max. '# guest \nwithout extra bed]],Table3[[#This Row],[Max. '# guest \nwithout extra bed]])=0,\"\",IFERROR(VLOOKUP($I$12:$I$1048576,MAX!$A:$B,2,FALSE)+Table3[[#This Row],[Max. '# guest \nwithout extra bed]],Table3[[#This Row],[Max. '# guest \nwithout extra bed]]))","v":""},{"$f":"IFERROR(IF(VLOOKUP(Table3[[#This Row],[New SubRoom Type \n(TMS)]],'1) Hotel information'!$B$54:$D$77,2,FALSE)>VLOOKUP(Table3[[#This Row],[New SubRoom Type \n(TMS)]],'1) Hotel information'!$B$54:$D$77,3,FALSE),\"ROLLAWAY\", IF(VLOOKUP(Table3[[#This Row],[New SubRoom Type \n(TMS)]],'1) Hotel information'!$B$54:$D$77,2,FALSE)<VLOOKUP(Table3[[#This Row],[New SubRoom Type \n(TMS)]],'1) Hotel information'!$B$54:$D$77,3,FALSE),\"SOFABED\",\"\")),\"\")","v":""},null,{"$f":"IFERROR(INDEX(Table1[View?],MATCH(I20,Table1[TMS],0)),\"\")","v":""},{"$f":"IFERROR(INDEX(Table1[Terrace?],MATCH(I20,Table1[TMS],0)),\"\")","v":""},{"$f":"IF(OR(Table3[[#This Row],[View]]=\"Yes\",Table3[[#This Row],[Terrace]]=\"Yes\"),\"Please review your Room Type description\",\"\")","v":""},{"$f":"IF(OR(LEN(Table3[[#This Row],[Room types to be created]])>1,LEN(Table3[[#This Row],[Room types to be deleted]])>1),\"Yes\",\"\")","v":""},"","",{"$f":"IF(LEN(Table3[[#This Row],[New SubRoom Type \n(TMS)]])>1,Table3[[#This Row],[New\ninventory]]+(ROW()*0.000000001),\"\")","v":""},{"$f":"IF(LEN(Table3[[#This Row],[New SubRoom Type \n(TMS)]])>1,MAX($AD$12:AD19)+1,\"\")","v":""},{"$f":"Table3[[#This Row],[New Room type description]]&Table3[[#This Row],[New\ninventory]]","v":""},null,null,{"$f":"IFERROR(IF(Table3[[#This Row],[Adult1]]+Table3[[#This Row],[Child1]]=Table3[[#This Row],[Max. '# guest with extra bed]],CONCATENATE(Table3[[#This Row],[Adult1]],\"AD\",\"+\",Table3[[#This Row],[Child1]],\"CH\"),IF(AND(Table3[[#This Row],[Adult1]]=\"\",Table3[[#This Row],[Child1]]=\"\"),\"\",\"ERROR\")),\"\")","v":""},null,null,{"$f":"IFERROR(IF(Table3[[#This Row],[Adult2]]+Table3[[#This Row],[Child2]]=Table3[[#This Row],[Max. '# guest with extra bed]],CONCATENATE(Table3[[#This Row],[Adult2]],\"AD\",\"+\",Table3[[#This Row],[Child2]],\"CH\"),IF(AND(Table3[[#This Row],[Adult2]]=\"\",Table3[[#This Row],[Child2]]=\"\"),\"\",\"ERROR\")),\"\")","v":""},null,{"$f":"IF(Table3[[#This Row],[Do you want to include this Combination in OTA''s?]]<>\"\",\"YES\",\"\")","v":""},null,{"$f":"IF(Table3[[#This Row],[Do you want to include this Combination in OTA''s?]]=\"YES\",IF(Table3[[#This Row],[Is this Combination already in OTA''s?]]=\"NO\",\"UPLOAD COMBINATION IN OTAS\",\"-\"),IF(Table3[[#This Row],[Is this Combination already in OTA''s?]]=\"YES\",\"DELETE COMBINATION\",\"-\"))","v":"-"},null,null,null,0]
[null,{"$f":"IF(LEN(D21&I21)>2,'1) Hotel information'!$C$4,\"\")","v":""},{"$f":"IF(LEN(D21&I21)>2,'1) Hotel information'!$C$5,\"\")","v":""},{"$f":"IFERROR(INDEX(CurrentRoomConfiguration,MATCH(,COUNTIF($D$11:D20,CurrentRoomConfiguration),0)),)","v":0},{"$f":"IF(Table3[[#This Row],[Current SubRoom Type \n(TMS)]]=0,\"\",LEFT(Table3[[#This Row],[Current SubRoom Type \n(TMS)]],6))","v":""},"",{"$f":"IFERROR(INDEX(Table1[Room description],MATCH(D21,Table1[TMS],0)),\"\")","v":""},{"$f":"IFERROR(INDEX(Table1[Bedding],MATCH(D21,Table1[TMS],0)),\"\")","v":""},{"$f":"IFERROR(INDEX(NewRoomConfiguration,MATCH(,COUNTIF($I$11:I20,NewRoomConfiguration),0)),)","v":0},{"$f":"IF(Table3[[#This Row],[New SubRoom Type \n(TMS)]]=0,\"\",LEFT(Table3[[#This Row],[New SubRoom Type \n(TMS)]],6))","v":""},"",null,{"$f":"IF(Table3[[#This Row],[Publish on OTA?]]<>\"\",\"YES\",\"\")","v":""},{"$f":"IFERROR(IF(AND(VLOOKUP(Table3[[#This Row],[New Room Type (TMS)]],Sheet3!$H$10:$I$28,2,FALSE)<5,Table3[[#This Row],[Publish on OTA?]]=\"yes\"),\"It's not posible to publish on OTA, please contact with Laura or Roberto\",\"\"),\"\")","v":""},{"$f":"IFERROR(INDEX(Table1[Room description],MATCH(I21,Table1[TMS],0)),\"\")","v":""},null,"",{"$f":"IFERROR(INDEX(Table1[Bedding],MATCH(I21,Table1[TMS],0)),\"\")","v":""},null,{"$f":"IF(IFERROR(VLOOKUP($I$12:$I$1048576,MAX!$A:$B,2,FALSE)+Table3[[#This Row],[Max. '# guest \nwithout extra bed]],Table3[[#This Row],[Max. '# guest \nwithout extra bed]])=0,\"\",IFERROR(VLOOKUP($I$12:$I$1048576,MAX!$A:$B,2,FALSE)+Table3[[#This Row],[Max. '# guest \nwithout extra bed]],Table3[[#This Row],[Max. '# guest \nwithout extra bed]]))","v":""},{"$f":"IFERROR(IF(VLOOKUP(Table3[[#This Row],[New SubRoom Type \n(TMS)]],'1) Hotel information'!$B$54:$D$77,2,FALSE)>VLOOKUP(Table3[[#This Row],[New SubRoom Type \n(TMS)]],'1) Hotel information'!$B$54:$D$77,3,FALSE),\"ROLLAWAY\", IF(VLOOKUP(Table3[[#This Row],[New SubRoom Type \n(TMS)]],'1) Hotel information'!$B$54:$D$77,2,FALSE)<VLOOKUP(Table3[[#This Row],[New SubRoom Type \n(TMS)]],'1) Hotel information'!$B$54:$D$77,3,FALSE),\"SOFABED\",\"\")),\"\")","v":""},null,{"$f":"IFERROR(INDEX(Table1[View?],MATCH(I21,Table1[TMS],0)),\"\")","v":""},{"$f":"IFERROR(INDEX(Table1[Terrace?],MATCH(I21,Table1[TMS],0)),\"\")","v":""},{"$f":"IF(OR(Table3[[#This Row],[View]]=\"Yes\",Table3[[#This Row],[Terrace]]=\"Yes\"),\"Please review your Room Type description\",\"\")","v":""},{"$f":"IF(OR(LEN(Table3[[#This Row],[Room types to be created]])>1,LEN(Table3[[#This Row],[Room types to be deleted]])>1),\"Yes\",\"\")","v":""},"","",{"$f":"IF(LEN(Table3[[#This Row],[New SubRoom Type \n(TMS)]])>1,Table3[[#This Row],[New\ninventory]]+(ROW()*0.000000001),\"\")","v":""},{"$f":"IF(LEN(Table3[[#This Row],[New SubRoom Type \n(TMS)]])>1,MAX($AD$12:AD20)+1,\"\")","v":""},{"$f":"Table3[[#This Row],[New Room type description]]&Table3[[#This Row],[New\ninventory]]","v":""},null,null,{"$f":"IFERROR(IF(Table3[[#This Row],[Adult1]]+Table3[[#This Row],[Child1]]=Table3[[#This Row],[Max. '# guest with extra bed]],CONCATENATE(Table3[[#This Row],[Adult1]],\"AD\",\"+\",Table3[[#This Row],[Child1]],\"CH\"),IF(AND(Table3[[#This Row],[Adult1]]=\"\",Table3[[#This Row],[Child1]]=\"\"),\"\",\"ERROR\")),\"\")","v":""},null,null,{"$f":"IFERROR(IF(Table3[[#This Row],[Adult2]]+Table3[[#This Row],[Child2]]=Table3[[#This Row],[Max. '# guest with extra bed]],CONCATENATE(Table3[[#This Row],[Adult2]],\"AD\",\"+\",Table3[[#This Row],[Child2]],\"CH\"),IF(AND(Table3[[#This Row],[Adult2]]=\"\",Table3[[#This Row],[Child2]]=\"\"),\"\",\"ERROR\")),\"\")","v":""},null,{"$f":"IF(Table3[[#This Row],[Do you want to include this Combination in OTA''s?]]<>\"\",\"YES\",\"\")","v":""},null,{"$f":"IF(Table3[[#This Row],[Do you want to include this Combination in OTA''s?]]=\"YES\",IF(Table3[[#This Row],[Is this Combination already in OTA''s?]]=\"NO\",\"UPLOAD COMBINATION IN OTAS\",\"-\"),IF(Table3[[#This Row],[Is this Combination already in OTA''s?]]=\"YES\",\"DELETE COMBINATION\",\"-\"))","v":"-"},null,null,null,0]
[null,{"$f":"IF(LEN(D22&I22)>2,'1) Hotel information'!$C$4,\"\")","v":""},{"$f":"IF(LEN(D22&I22)>2,'1) Hotel information'!$C$5,\"\")","v":""},{"$f":"IFERROR(INDEX(CurrentRoomConfiguration,MATCH(,COUNTIF($D$11:D21,CurrentRoomConfiguration),0)),)","v":0},{"$f":"IF(Table3[[#This Row],[Current SubRoom Type \n(TMS)]]=0,\"\",LEFT(Table3[[#This Row],[Current SubRoom Type \n(TMS)]],6))","v":""},"",{"$f":"IFERROR(INDEX(Table1[Room description],MATCH(D22,Table1[TMS],0)),\"\")","v":""},{"$f":"IFERROR(INDEX(Table1[Bedding],MATCH(D22,Table1[TMS],0)),\"\")","v":""},{"$f":"IFERROR(INDEX(NewRoomConfiguration,MATCH(,COUNTIF($I$11:I21,NewRoomConfiguration),0)),)","v":0},{"$f":"IF(Table3[[#This Row],[New SubRoom Type \n(TMS)]]=0,\"\",LEFT(Table3[[#This Row],[New SubRoom Type \n(TMS)]],6))","v":""},"",null,{"$f":"IF(Table3[[#This Row],[Publish on OTA?]]<>\"\",\"YES\",\"\")","v":""},{"$f":"IFERROR(IF(AND(VLOOKUP(Table3[[#This Row],[New Room Type (TMS)]],Sheet3!$H$10:$I$28,2,FALSE)<5,Table3[[#This Row],[Publish on OTA?]]=\"yes\"),\"It's not posible to publish on OTA, please contact with Laura or Roberto\",\"\"),\"\")","v":""},{"$f":"IFERROR(INDEX(Table1[Room description],MATCH(I22,Table1[TMS],0)),\"\")","v":""},null,"",{"$f":"IFERROR(INDEX(Table1[Bedding],MATCH(I22,Table1[TMS],0)),\"\")","v":""},null,{"$f":"IF(IFERROR(VLOOKUP($I$12:$I$1048576,MAX!$A:$B,2,FALSE)+Table3[[#This Row],[Max. '# guest \nwithout extra bed]],Table3[[#This Row],[Max. '# guest \nwithout extra bed]])=0,\"\",IFERROR(VLOOKUP($I$12:$I$1048576,MAX!$A:$B,2,FALSE)+Table3[[#This Row],[Max. '# guest \nwithout extra bed]],Table3[[#This Row],[Max. '# guest \nwithout extra bed]]))","v":""},{"$f":"IFERROR(IF(VLOOKUP(Table3[[#This Row],[New SubRoom Type \n(TMS)]],'1) Hotel information'!$B$54:$D$77,2,FALSE)>VLOOKUP(Table3[[#This Row],[New SubRoom Type \n(TMS)]],'1) Hotel information'!$B$54:$D$77,3,FALSE),\"ROLLAWAY\", IF(VLOOKUP(Table3[[#This Row],[New SubRoom Type \n(TMS)]],'1) Hotel information'!$B$54:$D$77,2,FALSE)<VLOOKUP(Table3[[#This Row],[New SubRoom Type \n(TMS)]],'1) Hotel information'!$B$54:$D$77,3,FALSE),\"SOFABED\",\"\")),\"\")","v":""},null,{"$f":"IFERROR(INDEX(Table1[View?],MATCH(I22,Table1[TMS],0)),\"\")","v":""},{"$f":"IFERROR(INDEX(Table1[Terrace?],MATCH(I22,Table1[TMS],0)),\"\")","v":""},{"$f":"IF(OR(Table3[[#This Row],[View]]=\"Yes\",Table3[[#This Row],[Terrace]]=\"Yes\"),\"Please review your Room Type description\",\"\")","v":""},{"$f":"IF(OR(LEN(Table3[[#This Row],[Room types to be created]])>1,LEN(Table3[[#This Row],[Room types to be deleted]])>1),\"Yes\",\"\")","v":""},"","",{"$f":"IF(LEN(Table3[[#This Row],[New SubRoom Type \n(TMS)]])>1,Table3[[#This Row],[New\ninventory]]+(ROW()*0.000000001),\"\")","v":""},{"$f":"IF(LEN(Table3[[#This Row],[New SubRoom Type \n(TMS)]])>1,MAX($AD$12:AD21)+1,\"\")","v":""},{"$f":"Table3[[#This Row],[New Room type description]]&Table3[[#This Row],[New\ninventory]]","v":""},null,null,{"$f":"IFERROR(IF(Table3[[#This Row],[Adult1]]+Table3[[#This Row],[Child1]]=Table3[[#This Row],[Max. '# guest with extra bed]],CONCATENATE(Table3[[#This Row],[Adult1]],\"AD\",\"+\",Table3[[#This Row],[Child1]],\"CH\"),IF(AND(Table3[[#This Row],[Adult1]]=\"\",Table3[[#This Row],[Child1]]=\"\"),\"\",\"ERROR\")),\"\")","v":""},null,null,{"$f":"IFERROR(IF(Table3[[#This Row],[Adult2]]+Table3[[#This Row],[Child2]]=Table3[[#This Row],[Max. '# guest with extra bed]],CONCATENATE(Table3[[#This Row],[Adult2]],\"AD\",\"+\",Table3[[#This Row],[Child2]],\"CH\"),IF(AND(Table3[[#This Row],[Adult2]]=\"\",Table3[[#This Row],[Child2]]=\"\"),\"\",\"ERROR\")),\"\")","v":""},null,{"$f":"IF(Table3[[#This Row],[Do you want to include this Combination in OTA''s?]]<>\"\",\"YES\",\"\")","v":""},null,{"$f":"IF(Table3[[#This Row],[Do you want to include this Combination in OTA''s?]]=\"YES\",IF(Table3[[#This Row],[Is this Combination already in OTA''s?]]=\"NO\",\"UPLOAD COMBINATION IN OTAS\",\"-\"),IF(Table3[[#This Row],[Is this Combination already in OTA''s?]]=\"YES\",\"DELETE COMBINATION\",\"-\"))","v":"-"},null,null,null,0]
[null,{"$f":"IF(LEN(D23&I23)>2,'1) Hotel information'!$C$4,\"\")","v":""},{"$f":"IF(LEN(D23&I23)>2,'1) Hotel information'!$C$5,\"\")","v":""},{"$f":"IFERROR(INDEX(CurrentRoomConfiguration,MATCH(,COUNTIF($D$11:D22,CurrentRoomConfiguration),0)),)","v":0},{"$f":"IF(Table3[[#This Row],[Current SubRoom Type \n(TMS)]]=0,\"\",LEFT(Table3[[#This Row],[Current SubRoom Type \n(TMS)]],6))","v":""},"",{"$f":"IFERROR(INDEX(Table1[Room description],MATCH(D23,Table1[TMS],0)),\"\")","v":""},{"$f":"IFERROR(INDEX(Table1[Bedding],MATCH(D23,Table1[TMS],0)),\"\")","v":""},{"$f":"IFERROR(INDEX(NewRoomConfiguration,MATCH(,COUNTIF($I$11:I22,NewRoomConfiguration),0)),)","v":0},{"$f":"IF(Table3[[#This Row],[New SubRoom Type \n(TMS)]]=0,\"\",LEFT(Table3[[#This Row],[New SubRoom Type \n(TMS)]],6))","v":""},"",null,{"$f":"IF(Table3[[#This Row],[Publish on OTA?]]<>\"\",\"YES\",\"\")","v":""},{"$f":"IFERROR(IF(AND(VLOOKUP(Table3[[#This Row],[New Room Type (TMS)]],Sheet3!$H$10:$I$28,2,FALSE)<5,Table3[[#This Row],[Publish on OTA?]]=\"yes\"),\"It's not posible to publish on OTA, please contact with Laura or Roberto\",\"\"),\"\")","v":""},{"$f":"IFERROR(INDEX(Table1[Room description],MATCH(I23,Table1[TMS],0)),\"\")","v":""},null,"",{"$f":"IFERROR(INDEX(Table1[Bedding],MATCH(I23,Table1[TMS],0)),\"\")","v":""},null,{"$f":"IF(IFERROR(VLOOKUP($I$12:$I$1048576,MAX!$A:$B,2,FALSE)+Table3[[#This Row],[Max. '# guest \nwithout extra bed]],Table3[[#This Row],[Max. '# guest \nwithout extra bed]])=0,\"\",IFERROR(VLOOKUP($I$12:$I$1048576,MAX!$A:$B,2,FALSE)+Table3[[#This Row],[Max. '# guest \nwithout extra bed]],Table3[[#This Row],[Max. '# guest \nwithout extra bed]]))","v":""},{"$f":"IFERROR(IF(VLOOKUP(Table3[[#This Row],[New SubRoom Type \n(TMS)]],'1) Hotel information'!$B$54:$D$77,2,FALSE)>VLOOKUP(Table3[[#This Row],[New SubRoom Type \n(TMS)]],'1) Hotel information'!$B$54:$D$77,3,FALSE),\"ROLLAWAY\", IF(VLOOKUP(Table3[[#This Row],[New SubRoom Type \n(TMS)]],'1) Hotel information'!$B$54:$D$77,2,FALSE)<VLOOKUP(Table3[[#This Row],[New SubRoom Type \n(TMS)]],'1) Hotel information'!$B$54:$D$77,3,FALSE),\"SOFABED\",\"\")),\"\")","v":""},null,{"$f":"IFERROR(INDEX(Table1[View?],MATCH(I23,Table1[TMS],0)),\"\")","v":""},{"$f":"IFERROR(INDEX(Table1[Terrace?],MATCH(I23,Table1[TMS],0)),\"\")","v":""},{"$f":"IF(OR(Table3[[#This Row],[View]]=\"Yes\",Table3[[#This Row],[Terrace]]=\"Yes\"),\"Please review your Room Type description\",\"\")","v":""},{"$f":"IF(OR(LEN(Table3[[#This Row],[Room types to be created]])>1,LEN(Table3[[#This Row],[Room types to be deleted]])>1),\"Yes\",\"\")","v":""},"","",{"$f":"IF(LEN(Table3[[#This Row],[New SubRoom Type \n(TMS)]])>1,Table3[[#This Row],[New\ninventory]]+(ROW()*0.000000001),\"\")","v":""},{"$f":"IF(LEN(Table3[[#This Row],[New SubRoom Type \n(TMS)]])>1,MAX($AD$12:AD22)+1,\"\")","v":""},{"$f":"Table3[[#This Row],[New Room type description]]&Table3[[#This Row],[New\ninventory]]","v":""},null,null,{"$f":"IFERROR(IF(Table3[[#This Row],[Adult1]]+Table3[[#This Row],[Child1]]=Table3[[#This Row],[Max. '# guest with extra bed]],CONCATENATE(Table3[[#This Row],[Adult1]],\"AD\",\"+\",Table3[[#This Row],[Child1]],\"CH\"),IF(AND(Table3[[#This Row],[Adult1]]=\"\",Table3[[#This Row],[Child1]]=\"\"),\"\",\"ERROR\")),\"\")","v":""},null,null,{"$f":"IFERROR(IF(Table3[[#This Row],[Adult2]]+Table3[[#This Row],[Child2]]=Table3[[#This Row],[Max. '# guest with extra bed]],CONCATENATE(Table3[[#This Row],[Adult2]],\"AD\",\"+\",Table3[[#This Row],[Child2]],\"CH\"),IF(AND(Table3[[#This Row],[Adult2]]=\"\",Table3[[#This Row],[Child2]]=\"\"),\"\",\"ERROR\")),\"\")","v":""},null,{"$f":"IF(Table3[[#This Row],[Do you want to include this Combination in OTA''s?]]<>\"\",\"YES\",\"\")","v":""},null,{"$f":"IF(Table3[[#This Row],[Do you want to include this Combination in OTA''s?]]=\"YES\",IF(Table3[[#This Row],[Is this Combination already in OTA''s?]]=\"NO\",\"UPLOAD COMBINATION IN OTAS\",\"-\"),IF(Table3[[#This Row],[Is this Combination already in OTA''s?]]=\"YES\",\"DELETE COMBINATION\",\"-\"))","v":"-"},null,null,null,0]
[4,{"$f":"IF(LEN(D24&I24)>2,'1) Hotel information'!$C$4,\"\")","v":""},{"$f":"IF(LEN(D24&I24)>2,'1) Hotel information'!$C$5,\"\")","v":""},{"$f":"IFERROR(INDEX(CurrentRoomConfiguration,MATCH(,COUNTIF($D$11:D23,CurrentRoomConfiguration),0)),)","v":0},{"$f":"IF(Table3[[#This Row],[Current SubRoom Type \n(TMS)]]=0,\"\",LEFT(Table3[[#This Row],[Current SubRoom Type \n(TMS)]],6))","v":""},"",{"$f":"IFERROR(INDEX(Table1[Room description],MATCH(D24,Table1[TMS],0)),\"\")","v":""},{"$f":"IFERROR(INDEX(Table1[Bedding],MATCH(D24,Table1[TMS],0)),\"\")","v":""},{"$f":"IFERROR(INDEX(NewRoomConfiguration,MATCH(,COUNTIF($I$11:I23,NewRoomConfiguration),0)),)","v":0},{"$f":"IF(Table3[[#This Row],[New SubRoom Type \n(TMS)]]=0,\"\",LEFT(Table3[[#This Row],[New SubRoom Type \n(TMS)]],6))","v":""},"",null,{"$f":"IF(Table3[[#This Row],[Publish on OTA?]]<>\"\",\"YES\",\"\")","v":""},{"$f":"IFERROR(IF(AND(VLOOKUP(Table3[[#This Row],[New Room Type (TMS)]],Sheet3!$H$10:$I$28,2,FALSE)<5,Table3[[#This Row],[Publish on OTA?]]=\"yes\"),\"It's not posible to publish on OTA, please contact with Laura or Roberto\",\"\"),\"\")","v":""},{"$f":"IFERROR(INDEX(Table1[Room description],MATCH(I24,Table1[TMS],0)),\"\")","v":""},null,"",{"$f":"IFERROR(INDEX(Table1[Bedding],MATCH(I24,Table1[TMS],0)),\"\")","v":""},null,{"$f":"IF(IFERROR(VLOOKUP($I$12:$I$1048576,MAX!$A:$B,2,FALSE)+Table3[[#This Row],[Max. '# guest \nwithout extra bed]],Table3[[#This Row],[Max. '# guest \nwithout extra bed]])=0,\"\",IFERROR(VLOOKUP($I$12:$I$1048576,MAX!$A:$B,2,FALSE)+Table3[[#This Row],[Max. '# guest \nwithout extra bed]],Table3[[#This Row],[Max. '# guest \nwithout extra bed]]))","v":""},{"$f":"IFERROR(IF(VLOOKUP(Table3[[#This Row],[New SubRoom Type \n(TMS)]],'1) Hotel information'!$B$54:$D$77,2,FALSE)>VLOOKUP(Table3[[#This Row],[New SubRoom Type \n(TMS)]],'1) Hotel information'!$B$54:$D$77,3,FALSE),\"ROLLAWAY\", IF(VLOOKUP(Table3[[#This Row],[New SubRoom Type \n(TMS)]],'1) Hotel information'!$B$54:$D$77,2,FALSE)<VLOOKUP(Table3[[#This Row],[New SubRoom Type \n(TMS)]],'1) Hotel information'!$B$54:$D$77,3,FALSE),\"SOFABED\",\"\")),\"\")","v":""},null,{"$f":"IFERROR(INDEX(Table1[View?],MATCH(I24,Table1[TMS],0)),\"\")","v":""},{"$f":"IFERROR(INDEX(Table1[Terrace?],MATCH(I24,Table1[TMS],0)),\"\")","v":""},{"$f":"IF(OR(Table3[[#This Row],[View]]=\"Yes\",Table3[[#This Row],[Terrace]]=\"Yes\"),\"Please review your Room Type description\",\"\")","v":""},{"$f":"IF(OR(LEN(Table3[[#This Row],[Room types to be created]])>1,LEN(Table3[[#This Row],[Room types to be deleted]])>1),\"Yes\",\"\")","v":""},"","",{"$f":"IF(LEN(Table3[[#This Row],[New SubRoom Type \n(TMS)]])>1,Table3[[#This Row],[New\ninventory]]+(ROW()*0.000000001),\"\")","v":""},{"$f":"IF(LEN(Table3[[#This Row],[New SubRoom Type \n(TMS)]])>1,MAX($AD$12:AD23)+1,\"\")","v":""},{"$f":"Table3[[#This Row],[New Room type description]]&Table3[[#This Row],[New\ninventory]]","v":""},null,null,{"$f":"IFERROR(IF(Table3[[#This Row],[Adult1]]+Table3[[#This Row],[Child1]]=Table3[[#This Row],[Max. '# guest with extra bed]],CONCATENATE(Table3[[#This Row],[Adult1]],\"AD\",\"+\",Table3[[#This Row],[Child1]],\"CH\"),IF(AND(Table3[[#This Row],[Adult1]]=\"\",Table3[[#This Row],[Child1]]=\"\"),\"\",\"ERROR\")),\"\")","v":""},null,null,{"$f":"IFERROR(IF(Table3[[#This Row],[Adult2]]+Table3[[#This Row],[Child2]]=Table3[[#This Row],[Max. '# guest with extra bed]],CONCATENATE(Table3[[#This Row],[Adult2]],\"AD\",\"+\",Table3[[#This Row],[Child2]],\"CH\"),IF(AND(Table3[[#This Row],[Adult2]]=\"\",Table3[[#This Row],[Child2]]=\"\"),\"\",\"ERROR\")),\"\")","v":""},null,{"$f":"IF(Table3[[#This Row],[Do you want to include this Combination in OTA''s?]]<>\"\",\"YES\",\"\")","v":""},null,{"$f":"IF(Table3[[#This Row],[Do you want to include this Combination in OTA''s?]]=\"YES\",IF(Table3[[#This Row],[Is this Combination already in OTA''s?]]=\"NO\",\"UPLOAD COMBINATION IN OTAS\",\"-\"),IF(Table3[[#This Row],[Is this Combination already in OTA''s?]]=\"YES\",\"DELETE COMBINATION\",\"-\"))","v":"-"},null,null,null,0]
[null,{"$f":"IF(LEN(D25&I25)>2,'1) Hotel information'!$C$4,\"\")","v":""},{"$f":"IF(LEN(D25&I25)>2,'1) Hotel information'!$C$5,\"\")","v":""},{"$f":"IFERROR(INDEX(CurrentRoomConfiguration,MATCH(,COUNTIF($D$11:D24,CurrentRoomConfiguration),0)),)","v":0},{"$f":"IF(Table3[[#This Row],[Current SubRoom Type \n(TMS)]]=0,\"\",LEFT(Table3[[#This Row],[Current SubRoom Type \n(TMS)]],6))","v":""},"",{"$f":"IFERROR(INDEX(Table1[Room description],MATCH(D25,Table1[TMS],0)),\"\")","v":""},{"$f":"IFERROR(INDEX(Table1[Bedding],MATCH(D25,Table1[TMS],0)),\"\")","v":""},{"$f":"IFERROR(INDEX(NewRoomConfiguration,MATCH(,COUNTIF($I$11:I24,NewRoomConfiguration),0)),)","v":0},{"$f":"IF(Table3[[#This Row],[New SubRoom Type \n(TMS)]]=0,\"\",LEFT(Table3[[#This Row],[New SubRoom Type \n(TMS)]],6))","v":""},"",null,{"$f":"IF(Table3[[#This Row],[Publish on OTA?]]<>\"\",\"YES\",\"\")","v":""},{"$f":"IFERROR(IF(AND(VLOOKUP(Table3[[#This Row],[New Room Type (TMS)]],Sheet3!$H$10:$I$28,2,FALSE)<5,Table3[[#This Row],[Publish on OTA?]]=\"yes\"),\"It's not posible to publish on OTA, please contact with Laura or Roberto\",\"\"),\"\")","v":""},{"$f":"IFERROR(INDEX(Table1[Room description],MATCH(I25,Table1[TMS],0)),\"\")","v":""},null,"",{"$f":"IFERROR(INDEX(Table1[Bedding],MATCH(I25,Table1[TMS],0)),\"\")","v":""},null,{"$f":"IF(IFERROR(VLOOKUP($I$12:$I$1048576,MAX!$A:$B,2,FALSE)+Table3[[#This Row],[Max. '# guest \nwithout extra bed]],Table3[[#This Row],[Max. '# guest \nwithout extra bed]])=0,\"\",IFERROR(VLOOKUP($I$12:$I$1048576,MAX!$A:$B,2,FALSE)+Table3[[#This Row],[Max. '# guest \nwithout extra bed]],Table3[[#This Row],[Max. '# guest \nwithout extra bed]]))","v":""},{"$f":"IFERROR(IF(VLOOKUP(Table3[[#This Row],[New SubRoom Type \n(TMS)]],'1) Hotel information'!$B$54:$D$77,2,FALSE)>VLOOKUP(Table3[[#This Row],[New SubRoom Type \n(TMS)]],'1) Hotel information'!$B$54:$D$77,3,FALSE),\"ROLLAWAY\", IF(VLOOKUP(Table3[[#This Row],[New SubRoom Type \n(TMS)]],'1) Hotel information'!$B$54:$D$77,2,FALSE)<VLOOKUP(Table3[[#This Row],[New SubRoom Type \n(TMS)]],'1) Hotel information'!$B$54:$D$77,3,FALSE),\"SOFABED\",\"\")),\"\")","v":""},null,{"$f":"IFERROR(INDEX(Table1[View?],MATCH(I25,Table1[TMS],0)),\"\")","v":""},{"$f":"IFERROR(INDEX(Table1[Terrace?],MATCH(I25,Table1[TMS],0)),\"\")","v":""},{"$f":"IF(OR(Table3[[#This Row],[View]]=\"Yes\",Table3[[#This Row],[Terrace]]=\"Yes\"),\"Please review your Room Type description\",\"\")","v":""},{"$f":"IF(OR(LEN(Table3[[#This Row],[Room types to be created]])>1,LEN(Table3[[#This Row],[Room types to be deleted]])>1),\"Yes\",\"\")","v":""},"","",{"$f":"IF(LEN(Table3[[#This Row],[New SubRoom Type \n(TMS)]])>1,Table3[[#This Row],[New\ninventory]]+(ROW()*0.000000001),\"\")","v":""},{"$f":"IF(LEN(Table3[[#This Row],[New SubRoom Type \n(TMS)]])>1,MAX($AD$12:AD24)+1,\"\")","v":""},{"$f":"Table3[[#This Row],[New Room type description]]&Table3[[#This Row],[New\ninventory]]","v":""},null,null,{"$f":"IFERROR(IF(Table3[[#This Row],[Adult1]]+Table3[[#This Row],[Child1]]=Table3[[#This Row],[Max. '# guest with extra bed]],CONCATENATE(Table3[[#This Row],[Adult1]],\"AD\",\"+\",Table3[[#This Row],[Child1]],\"CH\"),IF(AND(Table3[[#This Row],[Adult1]]=\"\",Table3[[#This Row],[Child1]]=\"\"),\"\",\"ERROR\")),\"\")","v":""},null,null,{"$f":"IFERROR(IF(Table3[[#This Row],[Adult2]]+Table3[[#This Row],[Child2]]=Table3[[#This Row],[Max. '# guest with extra bed]],CONCATENATE(Table3[[#This Row],[Adult2]],\"AD\",\"+\",Table3[[#This Row],[Child2]],\"CH\"),IF(AND(Table3[[#This Row],[Adult2]]=\"\",Table3[[#This Row],[Child2]]=\"\"),\"\",\"ERROR\")),\"\")","v":""},null,{"$f":"IF(Table3[[#This Row],[Do you want to include this Combination in OTA''s?]]<>\"\",\"YES\",\"\")","v":""},null,{"$f":"IF(Table3[[#This Row],[Do you want to include this Combination in OTA''s?]]=\"YES\",IF(Table3[[#This Row],[Is this Combination already in OTA''s?]]=\"NO\",\"UPLOAD COMBINATION IN OTAS\",\"-\"),IF(Table3[[#This Row],[Is this Combination already in OTA''s?]]=\"YES\",\"DELETE COMBINATION\",\"-\"))","v":"-"},null,null,null,0]
[null,{"$f":"IF(LEN(D26&I26)>2,'1) Hotel information'!$C$4,\"\")","v":""},{"$f":"IF(LEN(D26&I26)>2,'1) Hotel information'!$C$5,\"\")","v":""},{"$f":"IFERROR(INDEX(CurrentRoomConfiguration,MATCH(,COUNTIF($D$11:D25,CurrentRoomConfiguration),0)),)","v":0},{"$f":"IF(Table3[[#This Row],[Current SubRoom Type \n(TMS)]]=0,\"\",LEFT(Table3[[#This Row],[Current SubRoom Type \n(TMS)]],6))","v":""},"",{"$f":"IFERROR(INDEX(Table1[Room description],MATCH(D26,Table1[TMS],0)),\"\")","v":""},{"$f":"IFERROR(INDEX(Table1[Bedding],MATCH(D26,Table1[TMS],0)),\"\")","v":""},{"$f":"IFERROR(INDEX(NewRoomConfiguration,MATCH(,COUNTIF($I$11:I25,NewRoomConfiguration),0)),)","v":0},{"$f":"IF(Table3[[#This Row],[New SubRoom Type \n(TMS)]]=0,\"\",LEFT(Table3[[#This Row],[New SubRoom Type \n(TMS)]],6))","v":""},"",null,{"$f":"IF(Table3[[#This Row],[Publish on OTA?]]<>\"\",\"YES\",\"\")","v":""},{"$f":"IFERROR(IF(AND(VLOOKUP(Table3[[#This Row],[New Room Type (TMS)]],Sheet3!$H$10:$I$28,2,FALSE)<5,Table3[[#This Row],[Publish on OTA?]]=\"yes\"),\"It's not posible to publish on OTA, please contact with Laura or Roberto\",\"\"),\"\")","v":""},{"$f":"IFERROR(INDEX(Table1[Room description],MATCH(I26,Table1[TMS],0)),\"\")","v":""},null,"",{"$f":"IFERROR(INDEX(Table1[Bedding],MATCH(I26,Table1[TMS],0)),\"\")","v":""},null,{"$f":"IF(IFERROR(VLOOKUP($I$12:$I$1048576,MAX!$A:$B,2,FALSE)+Table3[[#This Row],[Max. '# guest \nwithout extra bed]],Table3[[#This Row],[Max. '# guest \nwithout extra bed]])=0,\"\",IFERROR(VLOOKUP($I$12:$I$1048576,MAX!$A:$B,2,FALSE)+Table3[[#This Row],[Max. '# guest \nwithout extra bed]],Table3[[#This Row],[Max. '# guest \nwithout extra bed]]))","v":""},{"$f":"IFERROR(IF(VLOOKUP(Table3[[#This Row],[New SubRoom Type \n(TMS)]],'1) Hotel information'!$B$54:$D$77,2,FALSE)>VLOOKUP(Table3[[#This Row],[New SubRoom Type \n(TMS)]],'1) Hotel information'!$B$54:$D$77,3,FALSE),\"ROLLAWAY\", IF(VLOOKUP(Table3[[#This Row],[New SubRoom Type \n(TMS)]],'1) Hotel information'!$B$54:$D$77,2,FALSE)<VLOOKUP(Table3[[#This Row],[New SubRoom Type \n(TMS)]],'1) Hotel information'!$B$54:$D$77,3,FALSE),\"SOFABED\",\"\")),\"\")","v":""},null,{"$f":"IFERROR(INDEX(Table1[View?],MATCH(I26,Table1[TMS],0)),\"\")","v":""},{"$f":"IFERROR(INDEX(Table1[Terrace?],MATCH(I26,Table1[TMS],0)),\"\")","v":""},{"$f":"IF(OR(Table3[[#This Row],[View]]=\"Yes\",Table3[[#This Row],[Terrace]]=\"Yes\"),\"Please review your Room Type description\",\"\")","v":""},{"$f":"IF(OR(LEN(Table3[[#This Row],[Room types to be created]])>1,LEN(Table3[[#This Row],[Room types to be deleted]])>1),\"Yes\",\"\")","v":""},"","",{"$f":"IF(LEN(Table3[[#This Row],[New SubRoom Type \n(TMS)]])>1,Table3[[#This Row],[New\ninventory]]+(ROW()*0.000000001),\"\")","v":""},{"$f":"IF(LEN(Table3[[#This Row],[New SubRoom Type \n(TMS)]])>1,MAX($AD$12:AD25)+1,\"\")","v":""},{"$f":"Table3[[#This Row],[New Room type description]]&Table3[[#This Row],[New\ninventory]]","v":""},null,null,{"$f":"IFERROR(IF(Table3[[#This Row],[Adult1]]+Table3[[#This Row],[Child1]]=Table3[[#This Row],[Max. '# guest with extra bed]],CONCATENATE(Table3[[#This Row],[Adult1]],\"AD\",\"+\",Table3[[#This Row],[Child1]],\"CH\"),IF(AND(Table3[[#This Row],[Adult1]]=\"\",Table3[[#This Row],[Child1]]=\"\"),\"\",\"ERROR\")),\"\")","v":""},null,null,{"$f":"IFERROR(IF(Table3[[#This Row],[Adult2]]+Table3[[#This Row],[Child2]]=Table3[[#This Row],[Max. '# guest with extra bed]],CONCATENATE(Table3[[#This Row],[Adult2]],\"AD\",\"+\",Table3[[#This Row],[Child2]],\"CH\"),IF(AND(Table3[[#This Row],[Adult2]]=\"\",Table3[[#This Row],[Child2]]=\"\"),\"\",\"ERROR\")),\"\")","v":""},null,{"$f":"IF(Table3[[#This Row],[Do you want to include this Combination in OTA''s?]]<>\"\",\"YES\",\"\")","v":""},null,{"$f":"IF(Table3[[#This Row],[Do you want to include this Combination in OTA''s?]]=\"YES\",IF(Table3[[#This Row],[Is this Combination already in OTA''s?]]=\"NO\",\"UPLOAD COMBINATION IN OTAS\",\"-\"),IF(Table3[[#This Row],[Is this Combination already in OTA''s?]]=\"YES\",\"DELETE COMBINATION\",\"-\"))","v":"-"},null,null,null,0]
[null,{"$f":"IF(LEN(D27&I27)>2,'1) Hotel information'!$C$4,\"\")","v":""},{"$f":"IF(LEN(D27&I27)>2,'1) Hotel information'!$C$5,\"\")","v":""},{"$f":"IFERROR(INDEX(CurrentRoomConfiguration,MATCH(,COUNTIF($D$11:D26,CurrentRoomConfiguration),0)),)","v":0},{"$f":"IF(Table3[[#This Row],[Current SubRoom Type \n(TMS)]]=0,\"\",LEFT(Table3[[#This Row],[Current SubRoom Type \n(TMS)]],6))","v":""},"",{"$f":"IFERROR(INDEX(Table1[Room description],MATCH(D27,Table1[TMS],0)),\"\")","v":""},{"$f":"IFERROR(INDEX(Table1[Bedding],MATCH(D27,Table1[TMS],0)),\"\")","v":""},{"$f":"IFERROR(INDEX(NewRoomConfiguration,MATCH(,COUNTIF($I$11:I26,NewRoomConfiguration),0)),)","v":0},{"$f":"IF(Table3[[#This Row],[New SubRoom Type \n(TMS)]]=0,\"\",LEFT(Table3[[#This Row],[New SubRoom Type \n(TMS)]],6))","v":""},"",null,{"$f":"IF(Table3[[#This Row],[Publish on OTA?]]<>\"\",\"YES\",\"\")","v":""},{"$f":"IFERROR(IF(AND(VLOOKUP(Table3[[#This Row],[New Room Type (TMS)]],Sheet3!$H$10:$I$28,2,FALSE)<5,Table3[[#This Row],[Publish on OTA?]]=\"yes\"),\"It's not posible to publish on OTA, please contact with Laura or Roberto\",\"\"),\"\")","v":""},{"$f":"IFERROR(INDEX(Table1[Room description],MATCH(I27,Table1[TMS],0)),\"\")","v":""},null,"",{"$f":"IFERROR(INDEX(Table1[Bedding],MATCH(I27,Table1[TMS],0)),\"\")","v":""},null,{"$f":"IF(IFERROR(VLOOKUP($I$12:$I$1048576,MAX!$A:$B,2,FALSE)+Table3[[#This Row],[Max. '# guest \nwithout extra bed]],Table3[[#This Row],[Max. '# guest \nwithout extra bed]])=0,\"\",IFERROR(VLOOKUP($I$12:$I$1048576,MAX!$A:$B,2,FALSE)+Table3[[#This Row],[Max. '# guest \nwithout extra bed]],Table3[[#This Row],[Max. '# guest \nwithout extra bed]]))","v":""},{"$f":"IFERROR(IF(VLOOKUP(Table3[[#This Row],[New SubRoom Type \n(TMS)]],'1) Hotel information'!$B$54:$D$77,2,FALSE)>VLOOKUP(Table3[[#This Row],[New SubRoom Type \n(TMS)]],'1) Hotel information'!$B$54:$D$77,3,FALSE),\"ROLLAWAY\", IF(VLOOKUP(Table3[[#This Row],[New SubRoom Type \n(TMS)]],'1) Hotel information'!$B$54:$D$77,2,FALSE)<VLOOKUP(Table3[[#This Row],[New SubRoom Type \n(TMS)]],'1) Hotel information'!$B$54:$D$77,3,FALSE),\"SOFABED\",\"\")),\"\")","v":""},null,{"$f":"IFERROR(INDEX(Table1[View?],MATCH(I27,Table1[TMS],0)),\"\")","v":""},{"$f":"IFERROR(INDEX(Table1[Terrace?],MATCH(I27,Table1[TMS],0)),\"\")","v":""},{"$f":"IF(OR(Table3[[#This Row],[View]]=\"Yes\",Table3[[#This Row],[Terrace]]=\"Yes\"),\"Please review your Room Type description\",\"\")","v":""},{"$f":"IF(OR(LEN(Table3[[#This Row],[Room types to be created]])>1,LEN(Table3[[#This Row],[Room types to be deleted]])>1),\"Yes\",\"\")","v":""},"","",{"$f":"IF(LEN(Table3[[#This Row],[New SubRoom Type \n(TMS)]])>1,Table3[[#This Row],[New\ninventory]]+(ROW()*0.000000001),\"\")","v":""},{"$f":"IF(LEN(Table3[[#This Row],[New SubRoom Type \n(TMS)]])>1,MAX($AD$12:AD26)+1,\"\")","v":""},{"$f":"Table3[[#This Row],[New Room type description]]&Table3[[#This Row],[New\ninventory]]","v":""},null,null,{"$f":"IFERROR(IF(Table3[[#This Row],[Adult1]]+Table3[[#This Row],[Child1]]=Table3[[#This Row],[Max. '# guest with extra bed]],CONCATENATE(Table3[[#This Row],[Adult1]],\"AD\",\"+\",Table3[[#This Row],[Child1]],\"CH\"),IF(AND(Table3[[#This Row],[Adult1]]=\"\",Table3[[#This Row],[Child1]]=\"\"),\"\",\"ERROR\")),\"\")","v":""},null,null,{"$f":"IFERROR(IF(Table3[[#This Row],[Adult2]]+Table3[[#This Row],[Child2]]=Table3[[#This Row],[Max. '# guest with extra bed]],CONCATENATE(Table3[[#This Row],[Adult2]],\"AD\",\"+\",Table3[[#This Row],[Child2]],\"CH\"),IF(AND(Table3[[#This Row],[Adult2]]=\"\",Table3[[#This Row],[Child2]]=\"\"),\"\",\"ERROR\")),\"\")","v":""},null,{"$f":"IF(Table3[[#This Row],[Do you want to include this Combination in OTA''s?]]<>\"\",\"YES\",\"\")","v":""},null,{"$f":"IF(Table3[[#This Row],[Do you want to include this Combination in OTA''s?]]=\"YES\",IF(Table3[[#This Row],[Is this Combination already in OTA''s?]]=\"NO\",\"UPLOAD COMBINATION IN OTAS\",\"-\"),IF(Table3[[#This Row],[Is this Combination already in OTA''s?]]=\"YES\",\"DELETE COMBINATION\",\"-\"))","v":"-"},null,null,null,0]
[null,{"$f":"IF(LEN(D28&I28)>2,'1) Hotel information'!$C$4,\"\")","v":""},{"$f":"IF(LEN(D28&I28)>2,'1) Hotel information'!$C$5,\"\")","v":""},{"$f":"IFERROR(INDEX(CurrentRoomConfiguration,MATCH(,COUNTIF($D$11:D27,CurrentRoomConfiguration),0)),)","v":0},{"$f":"IF(Table3[[#This Row],[Current SubRoom Type \n(TMS)]]=0,\"\",LEFT(Table3[[#This Row],[Current SubRoom Type \n(TMS)]],6))","v":""},"",{"$f":"IFERROR(INDEX(Table1[Room description],MATCH(D28,Table1[TMS],0)),\"\")","v":""},{"$f":"IFERROR(INDEX(Table1[Bedding],MATCH(D28,Table1[TMS],0)),\"\")","v":""},{"$f":"IFERROR(INDEX(NewRoomConfiguration,MATCH(,COUNTIF($I$11:I27,NewRoomConfiguration),0)),)","v":0},{"$f":"IF(Table3[[#This Row],[New SubRoom Type \n(TMS)]]=0,\"\",LEFT(Table3[[#This Row],[New SubRoom Type \n(TMS)]],6))","v":""},"",null,{"$f":"IF(Table3[[#This Row],[Publish on OTA?]]<>\"\",\"YES\",\"\")","v":""},{"$f":"IFERROR(IF(AND(VLOOKUP(Table3[[#This Row],[New Room Type (TMS)]],Sheet3!$H$10:$I$28,2,FALSE)<5,Table3[[#This Row],[Publish on OTA?]]=\"yes\"),\"It's not posible to publish on OTA, please contact with Laura or Roberto\",\"\"),\"\")","v":""},{"$f":"IFERROR(INDEX(Table1[Room description],MATCH(I28,Table1[TMS],0)),\"\")","v":""},null,"",{"$f":"IFERROR(INDEX(Table1[Bedding],MATCH(I28,Table1[TMS],0)),\"\")","v":""},null,{"$f":"IF(IFERROR(VLOOKUP($I$12:$I$1048576,MAX!$A:$B,2,FALSE)+Table3[[#This Row],[Max. '# guest \nwithout extra bed]],Table3[[#This Row],[Max. '# guest \nwithout extra bed]])=0,\"\",IFERROR(VLOOKUP($I$12:$I$1048576,MAX!$A:$B,2,FALSE)+Table3[[#This Row],[Max. '# guest \nwithout extra bed]],Table3[[#This Row],[Max. '# guest \nwithout extra bed]]))","v":""},{"$f":"IFERROR(IF(VLOOKUP(Table3[[#This Row],[New SubRoom Type \n(TMS)]],'1) Hotel information'!$B$54:$D$77,2,FALSE)>VLOOKUP(Table3[[#This Row],[New SubRoom Type \n(TMS)]],'1) Hotel information'!$B$54:$D$77,3,FALSE),\"ROLLAWAY\", IF(VLOOKUP(Table3[[#This Row],[New SubRoom Type \n(TMS)]],'1) Hotel information'!$B$54:$D$77,2,FALSE)<VLOOKUP(Table3[[#This Row],[New SubRoom Type \n(TMS)]],'1) Hotel information'!$B$54:$D$77,3,FALSE),\"SOFABED\",\"\")),\"\")","v":""},null,{"$f":"IFERROR(INDEX(Table1[View?],MATCH(I28,Table1[TMS],0)),\"\")","v":""},{"$f":"IFERROR(INDEX(Table1[Terrace?],MATCH(I28,Table1[TMS],0)),\"\")","v":""},{"$f":"IF(OR(Table3[[#This Row],[View]]=\"Yes\",Table3[[#This Row],[Terrace]]=\"Yes\"),\"Please review your Room Type description\",\"\")","v":""},{"$f":"IF(OR(LEN(Table3[[#This Row],[Room types to be created]])>1,LEN(Table3[[#This Row],[Room types to be deleted]])>1),\"Yes\",\"\")","v":""},"","",{"$f":"IF(LEN(Table3[[#This Row],[New SubRoom Type \n(TMS)]])>1,Table3[[#This Row],[New\ninventory]]+(ROW()*0.000000001),\"\")","v":""},{"$f":"IF(LEN(Table3[[#This Row],[New SubRoom Type \n(TMS)]])>1,MAX($AD$12:AD27)+1,\"\")","v":""},{"$f":"Table3[[#This Row],[New Room type description]]&Table3[[#This Row],[New\ninventory]]","v":""},null,null,{"$f":"IFERROR(IF(Table3[[#This Row],[Adult1]]+Table3[[#This Row],[Child1]]=Table3[[#This Row],[Max. '# guest with extra bed]],CONCATENATE(Table3[[#This Row],[Adult1]],\"AD\",\"+\",Table3[[#This Row],[Child1]],\"CH\"),IF(AND(Table3[[#This Row],[Adult1]]=\"\",Table3[[#This Row],[Child1]]=\"\"),\"\",\"ERROR\")),\"\")","v":""},null,null,{"$f":"IFERROR(IF(Table3[[#This Row],[Adult2]]+Table3[[#This Row],[Child2]]=Table3[[#This Row],[Max. '# guest with extra bed]],CONCATENATE(Table3[[#This Row],[Adult2]],\"AD\",\"+\",Table3[[#This Row],[Child2]],\"CH\"),IF(AND(Table3[[#This Row],[Adult2]]=\"\",Table3[[#This Row],[Child2]]=\"\"),\"\",\"ERROR\")),\"\")","v":""},null,{"$f":"IF(Table3[[#This Row],[Do you want to include this Combination in OTA''s?]]<>\"\",\"YES\",\"\")","v":""},null,{"$f":"IF(Table3[[#This Row],[Do you want to include this Combination in OTA''s?]]=\"YES\",IF(Table3[[#This Row],[Is this Combination already in OTA''s?]]=\"NO\",\"UPLOAD COMBINATION IN OTAS\",\"-\"),IF(Table3[[#This Row],[Is this Combination already in OTA''s?]]=\"YES\",\"DELETE COMBINATION\",\"-\"))","v":"-"},null,null,null,0]
[null,{"$f":"IF(LEN(D29&I29)>2,'1) Hotel information'!$C$4,\"\")","v":""},{"$f":"IF(LEN(D29&I29)>2,'1) Hotel information'!$C$5,\"\")","v":""},{"$f":"IFERROR(INDEX(CurrentRoomConfiguration,MATCH(,COUNTIF($D$11:D28,CurrentRoomConfiguration),0)),)","v":0},{"$f":"IF(Table3[[#This Row],[Current SubRoom Type \n(TMS)]]=0,\"\",LEFT(Table3[[#This Row],[Current SubRoom Type \n(TMS)]],6))","v":""},"",{"$f":"IFERROR(INDEX(Table1[Room description],MATCH(D29,Table1[TMS],0)),\"\")","v":""},{"$f":"IFERROR(INDEX(Table1[Bedding],MATCH(D29,Table1[TMS],0)),\"\")","v":""},{"$f":"IFERROR(INDEX(NewRoomConfiguration,MATCH(,COUNTIF($I$11:I28,NewRoomConfiguration),0)),)","v":0},{"$f":"IF(Table3[[#This Row],[New SubRoom Type \n(TMS)]]=0,\"\",LEFT(Table3[[#This Row],[New SubRoom Type \n(TMS)]],6))","v":""},"",null,{"$f":"IF(Table3[[#This Row],[Publish on OTA?]]<>\"\",\"YES\",\"\")","v":""},{"$f":"IFERROR(IF(AND(VLOOKUP(Table3[[#This Row],[New Room Type (TMS)]],Sheet3!$H$10:$I$28,2,FALSE)<5,Table3[[#This Row],[Publish on OTA?]]=\"yes\"),\"It's not posible to publish on OTA, please contact with Laura or Roberto\",\"\"),\"\")","v":""},{"$f":"IFERROR(INDEX(Table1[Room description],MATCH(I29,Table1[TMS],0)),\"\")","v":""},null,"",{"$f":"IFERROR(INDEX(Table1[Bedding],MATCH(I29,Table1[TMS],0)),\"\")","v":""},null,{"$f":"IF(IFERROR(VLOOKUP($I$12:$I$1048576,MAX!$A:$B,2,FALSE)+Table3[[#This Row],[Max. '# guest \nwithout extra bed]],Table3[[#This Row],[Max. '# guest \nwithout extra bed]])=0,\"\",IFERROR(VLOOKUP($I$12:$I$1048576,MAX!$A:$B,2,FALSE)+Table3[[#This Row],[Max. '# guest \nwithout extra bed]],Table3[[#This Row],[Max. '# guest \nwithout extra bed]]))","v":""},{"$f":"IFERROR(IF(VLOOKUP(Table3[[#This Row],[New SubRoom Type \n(TMS)]],'1) Hotel information'!$B$54:$D$77,2,FALSE)>VLOOKUP(Table3[[#This Row],[New SubRoom Type \n(TMS)]],'1) Hotel information'!$B$54:$D$77,3,FALSE),\"ROLLAWAY\", IF(VLOOKUP(Table3[[#This Row],[New SubRoom Type \n(TMS)]],'1) Hotel information'!$B$54:$D$77,2,FALSE)<VLOOKUP(Table3[[#This Row],[New SubRoom Type \n(TMS)]],'1) Hotel information'!$B$54:$D$77,3,FALSE),\"SOFABED\",\"\")),\"\")","v":""},null,{"$f":"IFERROR(INDEX(Table1[View?],MATCH(I29,Table1[TMS],0)),\"\")","v":""},{"$f":"IFERROR(INDEX(Table1[Terrace?],MATCH(I29,Table1[TMS],0)),\"\")","v":""},{"$f":"IF(OR(Table3[[#This Row],[View]]=\"Yes\",Table3[[#This Row],[Terrace]]=\"Yes\"),\"Please review your Room Type description\",\"\")","v":""},{"$f":"IF(OR(LEN(Table3[[#This Row],[Room types to be created]])>1,LEN(Table3[[#This Row],[Room types to be deleted]])>1),\"Yes\",\"\")","v":""},"","",{"$f":"IF(LEN(Table3[[#This Row],[New SubRoom Type \n(TMS)]])>1,Table3[[#This Row],[New\ninventory]]+(ROW()*0.000000001),\"\")","v":""},{"$f":"IF(LEN(Table3[[#This Row],[New SubRoom Type \n(TMS)]])>1,MAX($AD$12:AD28)+1,\"\")","v":""},{"$f":"Table3[[#This Row],[New Room type description]]&Table3[[#This Row],[New\ninventory]]","v":""},null,null,{"$f":"IFERROR(IF(Table3[[#This Row],[Adult1]]+Table3[[#This Row],[Child1]]=Table3[[#This Row],[Max. '# guest with extra bed]],CONCATENATE(Table3[[#This Row],[Adult1]],\"AD\",\"+\",Table3[[#This Row],[Child1]],\"CH\"),IF(AND(Table3[[#This Row],[Adult1]]=\"\",Table3[[#This Row],[Child1]]=\"\"),\"\",\"ERROR\")),\"\")","v":""},null,null,{"$f":"IFERROR(IF(Table3[[#This Row],[Adult2]]+Table3[[#This Row],[Child2]]=Table3[[#This Row],[Max. '# guest with extra bed]],CONCATENATE(Table3[[#This Row],[Adult2]],\"AD\",\"+\",Table3[[#This Row],[Child2]],\"CH\"),IF(AND(Table3[[#This Row],[Adult2]]=\"\",Table3[[#This Row],[Child2]]=\"\"),\"\",\"ERROR\")),\"\")","v":""},null,{"$f":"IF(Table3[[#This Row],[Do you want to include this Combination in OTA''s?]]<>\"\",\"YES\",\"\")","v":""},null,{"$f":"IF(Table3[[#This Row],[Do you want to include this Combination in OTA''s?]]=\"YES\",IF(Table3[[#This Row],[Is this Combination already in OTA''s?]]=\"NO\",\"UPLOAD COMBINATION IN OTAS\",\"-\"),IF(Table3[[#This Row],[Is this Combination already in OTA''s?]]=\"YES\",\"DELETE COMBINATION\",\"-\"))","v":"-"},null,null,null,0]
[null,{"$f":"IF(LEN(D30&I30)>2,'1) Hotel information'!$C$4,\"\")","v":""},{"$f":"IF(LEN(D30&I30)>2,'1) Hotel information'!$C$5,\"\")","v":""},{"$f":"IFERROR(INDEX(CurrentRoomConfiguration,MATCH(,COUNTIF($D$11:D29,CurrentRoomConfiguration),0)),)","v":0},{"$f":"IF(Table3[[#This Row],[Current SubRoom Type \n(TMS)]]=0,\"\",LEFT(Table3[[#This Row],[Current SubRoom Type \n(TMS)]],6))","v":""},"",{"$f":"IFERROR(INDEX(Table1[Room description],MATCH(D30,Table1[TMS],0)),\"\")","v":""},{"$f":"IFERROR(INDEX(Table1[Bedding],MATCH(D30,Table1[TMS],0)),\"\")","v":""},{"$f":"IFERROR(INDEX(NewRoomConfiguration,MATCH(,COUNTIF($I$11:I29,NewRoomConfiguration),0)),)","v":0},{"$f":"IF(Table3[[#This Row],[New SubRoom Type \n(TMS)]]=0,\"\",LEFT(Table3[[#This Row],[New SubRoom Type \n(TMS)]],6))","v":""},"",null,{"$f":"IF(Table3[[#This Row],[Publish on OTA?]]<>\"\",\"YES\",\"\")","v":""},{"$f":"IFERROR(IF(AND(VLOOKUP(Table3[[#This Row],[New Room Type (TMS)]],Sheet3!$H$10:$I$28,2,FALSE)<5,Table3[[#This Row],[Publish on OTA?]]=\"yes\"),\"It's not posible to publish on OTA, please contact with Laura or Roberto\",\"\"),\"\")","v":""},{"$f":"IFERROR(INDEX(Table1[Room description],MATCH(I30,Table1[TMS],0)),\"\")","v":""},null,"",{"$f":"IFERROR(INDEX(Table1[Bedding],MATCH(I30,Table1[TMS],0)),\"\")","v":""},null,{"$f":"IF(IFERROR(VLOOKUP($I$12:$I$1048576,MAX!$A:$B,2,FALSE)+Table3[[#This Row],[Max. '# guest \nwithout extra bed]],Table3[[#This Row],[Max. '# guest \nwithout extra bed]])=0,\"\",IFERROR(VLOOKUP($I$12:$I$1048576,MAX!$A:$B,2,FALSE)+Table3[[#This Row],[Max. '# guest \nwithout extra bed]],Table3[[#This Row],[Max. '# guest \nwithout extra bed]]))","v":""},{"$f":"IFERROR(IF(VLOOKUP(Table3[[#This Row],[New SubRoom Type \n(TMS)]],'1) Hotel information'!$B$54:$D$77,2,FALSE)>VLOOKUP(Table3[[#This Row],[New SubRoom Type \n(TMS)]],'1) Hotel information'!$B$54:$D$77,3,FALSE),\"ROLLAWAY\", IF(VLOOKUP(Table3[[#This Row],[New SubRoom Type \n(TMS)]],'1) Hotel information'!$B$54:$D$77,2,FALSE)<VLOOKUP(Table3[[#This Row],[New SubRoom Type \n(TMS)]],'1) Hotel information'!$B$54:$D$77,3,FALSE),\"SOFABED\",\"\")),\"\")","v":""},null,{"$f":"IFERROR(INDEX(Table1[View?],MATCH(I30,Table1[TMS],0)),\"\")","v":""},{"$f":"IFERROR(INDEX(Table1[Terrace?],MATCH(I30,Table1[TMS],0)),\"\")","v":""},{"$f":"IF(OR(Table3[[#This Row],[View]]=\"Yes\",Table3[[#This Row],[Terrace]]=\"Yes\"),\"Please review your Room Type description\",\"\")","v":""},{"$f":"IF(OR(LEN(Table3[[#This Row],[Room types to be created]])>1,LEN(Table3[[#This Row],[Room types to be deleted]])>1),\"Yes\",\"\")","v":""},"","",{"$f":"IF(LEN(Table3[[#This Row],[New SubRoom Type \n(TMS)]])>1,Table3[[#This Row],[New\ninventory]]+(ROW()*0.000000001),\"\")","v":""},{"$f":"IF(LEN(Table3[[#This Row],[New SubRoom Type \n(TMS)]])>1,MAX($AD$12:AD29)+1,\"\")","v":""},{"$f":"Table3[[#This Row],[New Room type description]]&Table3[[#This Row],[New\ninventory]]","v":""},null,null,{"$f":"IFERROR(IF(Table3[[#This Row],[Adult1]]+Table3[[#This Row],[Child1]]=Table3[[#This Row],[Max. '# guest with extra bed]],CONCATENATE(Table3[[#This Row],[Adult1]],\"AD\",\"+\",Table3[[#This Row],[Child1]],\"CH\"),IF(AND(Table3[[#This Row],[Adult1]]=\"\",Table3[[#This Row],[Child1]]=\"\"),\"\",\"ERROR\")),\"\")","v":""},null,null,{"$f":"IFERROR(IF(Table3[[#This Row],[Adult2]]+Table3[[#This Row],[Child2]]=Table3[[#This Row],[Max. '# guest with extra bed]],CONCATENATE(Table3[[#This Row],[Adult2]],\"AD\",\"+\",Table3[[#This Row],[Child2]],\"CH\"),IF(AND(Table3[[#This Row],[Adult2]]=\"\",Table3[[#This Row],[Child2]]=\"\"),\"\",\"ERROR\")),\"\")","v":""},null,{"$f":"IF(Table3[[#This Row],[Do you want to include this Combination in OTA''s?]]<>\"\",\"YES\",\"\")","v":""},null,{"$f":"IF(Table3[[#This Row],[Do you want to include this Combination in OTA''s?]]=\"YES\",IF(Table3[[#This Row],[Is this Combination already in OTA''s?]]=\"NO\",\"UPLOAD COMBINATION IN OTAS\",\"-\"),IF(Table3[[#This Row],[Is this Combination already in OTA''s?]]=\"YES\",\"DELETE COMBINATION\",\"-\"))","v":"-"},null,null,null,0]
[null,{"$f":"IF(LEN(D31&I31)>2,'1) Hotel information'!$C$4,\"\")","v":""},{"$f":"IF(LEN(D31&I31)>2,'1) Hotel information'!$C$5,\"\")","v":""},{"$f":"IFERROR(INDEX(CurrentRoomConfiguration,MATCH(,COUNTIF($D$11:D30,CurrentRoomConfiguration),0)),)","v":0},{"$f":"IF(Table3[[#This Row],[Current SubRoom Type \n(TMS)]]=0,\"\",LEFT(Table3[[#This Row],[Current SubRoom Type \n(TMS)]],6))","v":""},"",{"$f":"IFERROR(INDEX(Table1[Room description],MATCH(D31,Table1[TMS],0)),\"\")","v":""},{"$f":"IFERROR(INDEX(Table1[Bedding],MATCH(D31,Table1[TMS],0)),\"\")","v":""},{"$f":"IFERROR(INDEX(NewRoomConfiguration,MATCH(,COUNTIF($I$11:I30,NewRoomConfiguration),0)),)","v":0},{"$f":"IF(Table3[[#This Row],[New SubRoom Type \n(TMS)]]=0,\"\",LEFT(Table3[[#This Row],[New SubRoom Type \n(TMS)]],6))","v":""},"",null,{"$f":"IF(Table3[[#This Row],[Publish on OTA?]]<>\"\",\"YES\",\"\")","v":""},{"$f":"IFERROR(IF(AND(VLOOKUP(Table3[[#This Row],[New Room Type (TMS)]],Sheet3!$H$10:$I$28,2,FALSE)<5,Table3[[#This Row],[Publish on OTA?]]=\"yes\"),\"It's not posible to publish on OTA, please contact with Laura or Roberto\",\"\"),\"\")","v":""},{"$f":"IFERROR(INDEX(Table1[Room description],MATCH(I31,Table1[TMS],0)),\"\")","v":""},null,"",{"$f":"IFERROR(INDEX(Table1[Bedding],MATCH(I31,Table1[TMS],0)),\"\")","v":""},null,{"$f":"IF(IFERROR(VLOOKUP($I$12:$I$1048576,MAX!$A:$B,2,FALSE)+Table3[[#This Row],[Max. '# guest \nwithout extra bed]],Table3[[#This Row],[Max. '# guest \nwithout extra bed]])=0,\"\",IFERROR(VLOOKUP($I$12:$I$1048576,MAX!$A:$B,2,FALSE)+Table3[[#This Row],[Max. '# guest \nwithout extra bed]],Table3[[#This Row],[Max. '# guest \nwithout extra bed]]))","v":""},{"$f":"IFERROR(IF(VLOOKUP(Table3[[#This Row],[New SubRoom Type \n(TMS)]],'1) Hotel information'!$B$54:$D$77,2,FALSE)>VLOOKUP(Table3[[#This Row],[New SubRoom Type \n(TMS)]],'1) Hotel information'!$B$54:$D$77,3,FALSE),\"ROLLAWAY\", IF(VLOOKUP(Table3[[#This Row],[New SubRoom Type \n(TMS)]],'1) Hotel information'!$B$54:$D$77,2,FALSE)<VLOOKUP(Table3[[#This Row],[New SubRoom Type \n(TMS)]],'1) Hotel information'!$B$54:$D$77,3,FALSE),\"SOFABED\",\"\")),\"\")","v":""},null,{"$f":"IFERROR(INDEX(Table1[View?],MATCH(I31,Table1[TMS],0)),\"\")","v":""},{"$f":"IFERROR(INDEX(Table1[Terrace?],MATCH(I31,Table1[TMS],0)),\"\")","v":""},{"$f":"IF(OR(Table3[[#This Row],[View]]=\"Yes\",Table3[[#This Row],[Terrace]]=\"Yes\"),\"Please review your Room Type description\",\"\")","v":""},{"$f":"IF(OR(LEN(Table3[[#This Row],[Room types to be created]])>1,LEN(Table3[[#This Row],[Room types to be deleted]])>1),\"Yes\",\"\")","v":""},"","",{"$f":"IF(LEN(Table3[[#This Row],[New SubRoom Type \n(TMS)]])>1,Table3[[#This Row],[New\ninventory]]+(ROW()*0.000000001),\"\")","v":""},{"$f":"IF(LEN(Table3[[#This Row],[New SubRoom Type \n(TMS)]])>1,MAX($AD$12:AD30)+1,\"\")","v":""},{"$f":"Table3[[#This Row],[New Room type description]]&Table3[[#This Row],[New\ninventory]]","v":""},null,null,{"$f":"IFERROR(IF(Table3[[#This Row],[Adult1]]+Table3[[#This Row],[Child1]]=Table3[[#This Row],[Max. '# guest with extra bed]],CONCATENATE(Table3[[#This Row],[Adult1]],\"AD\",\"+\",Table3[[#This Row],[Child1]],\"CH\"),IF(AND(Table3[[#This Row],[Adult1]]=\"\",Table3[[#This Row],[Child1]]=\"\"),\"\",\"ERROR\")),\"\")","v":""},null,null,{"$f":"IFERROR(IF(Table3[[#This Row],[Adult2]]+Table3[[#This Row],[Child2]]=Table3[[#This Row],[Max. '# guest with extra bed]],CONCATENATE(Table3[[#This Row],[Adult2]],\"AD\",\"+\",Table3[[#This Row],[Child2]],\"CH\"),IF(AND(Table3[[#This Row],[Adult2]]=\"\",Table3[[#This Row],[Child2]]=\"\"),\"\",\"ERROR\")),\"\")","v":""},null,{"$f":"IF(Table3[[#This Row],[Do you want to include this Combination in OTA''s?]]<>\"\",\"YES\",\"\")","v":""},null,{"$f":"IF(Table3[[#This Row],[Do you want to include this Combination in OTA''s?]]=\"YES\",IF(Table3[[#This Row],[Is this Combination already in OTA''s?]]=\"NO\",\"UPLOAD COMBINATION IN OTAS\",\"-\"),IF(Table3[[#This Row],[Is this Combination already in OTA''s?]]=\"YES\",\"DELETE COMBINATION\",\"-\"))","v":"-"},null,null,null,0]
[null,{"$f":"IF(LEN(D32&I32)>2,'1) Hotel information'!$C$4,\"\")","v":""},{"$f":"IF(LEN(D32&I32)>2,'1) Hotel information'!$C$5,\"\")","v":""},{"$f":"IFERROR(INDEX(CurrentRoomConfiguration,MATCH(,COUNTIF($D$11:D31,CurrentRoomConfiguration),0)),)","v":0},{"$f":"IF(Table3[[#This Row],[Current SubRoom Type \n(TMS)]]=0,\"\",LEFT(Table3[[#This Row],[Current SubRoom Type \n(TMS)]],6))","v":""},"",{"$f":"IFERROR(INDEX(Table1[Room description],MATCH(D32,Table1[TMS],0)),\"\")","v":""},{"$f":"IFERROR(INDEX(Table1[Bedding],MATCH(D32,Table1[TMS],0)),\"\")","v":""},{"$f":"IFERROR(INDEX(NewRoomConfiguration,MATCH(,COUNTIF($I$11:I31,NewRoomConfiguration),0)),)","v":0},{"$f":"IF(Table3[[#This Row],[New SubRoom Type \n(TMS)]]=0,\"\",LEFT(Table3[[#This Row],[New SubRoom Type \n(TMS)]],6))","v":""},"",null,{"$f":"IF(Table3[[#This Row],[Publish on OTA?]]<>\"\",\"YES\",\"\")","v":""},{"$f":"IFERROR(IF(AND(VLOOKUP(Table3[[#This Row],[New Room Type (TMS)]],Sheet3!$H$10:$I$28,2,FALSE)<5,Table3[[#This Row],[Publish on OTA?]]=\"yes\"),\"It's not posible to publish on OTA, please contact with Laura or Roberto\",\"\"),\"\")","v":""},{"$f":"IFERROR(INDEX(Table1[Room description],MATCH(I32,Table1[TMS],0)),\"\")","v":""},null,"",{"$f":"IFERROR(INDEX(Table1[Bedding],MATCH(I32,Table1[TMS],0)),\"\")","v":""},null,{"$f":"IF(IFERROR(VLOOKUP($I$12:$I$1048576,MAX!$A:$B,2,FALSE)+Table3[[#This Row],[Max. '# guest \nwithout extra bed]],Table3[[#This Row],[Max. '# guest \nwithout extra bed]])=0,\"\",IFERROR(VLOOKUP($I$12:$I$1048576,MAX!$A:$B,2,FALSE)+Table3[[#This Row],[Max. '# guest \nwithout extra bed]],Table3[[#This Row],[Max. '# guest \nwithout extra bed]]))","v":""},{"$f":"IFERROR(IF(VLOOKUP(Table3[[#This Row],[New SubRoom Type \n(TMS)]],'1) Hotel information'!$B$54:$D$77,2,FALSE)>VLOOKUP(Table3[[#This Row],[New SubRoom Type \n(TMS)]],'1) Hotel information'!$B$54:$D$77,3,FALSE),\"ROLLAWAY\", IF(VLOOKUP(Table3[[#This Row],[New SubRoom Type \n(TMS)]],'1) Hotel information'!$B$54:$D$77,2,FALSE)<VLOOKUP(Table3[[#This Row],[New SubRoom Type \n(TMS)]],'1) Hotel information'!$B$54:$D$77,3,FALSE),\"SOFABED\",\"\")),\"\")","v":""},null,{"$f":"IFERROR(INDEX(Table1[View?],MATCH(I32,Table1[TMS],0)),\"\")","v":""},{"$f":"IFERROR(INDEX(Table1[Terrace?],MATCH(I32,Table1[TMS],0)),\"\")","v":""},{"$f":"IF(OR(Table3[[#This Row],[View]]=\"Yes\",Table3[[#This Row],[Terrace]]=\"Yes\"),\"Please review your Room Type description\",\"\")","v":""},{"$f":"IF(OR(LEN(Table3[[#This Row],[Room types to be created]])>1,LEN(Table3[[#This Row],[Room types to be deleted]])>1),\"Yes\",\"\")","v":""},"","",{"$f":"IF(LEN(Table3[[#This Row],[New SubRoom Type \n(TMS)]])>1,Table3[[#This Row],[New\ninventory]]+(ROW()*0.000000001),\"\")","v":""},{"$f":"IF(LEN(Table3[[#This Row],[New SubRoom Type \n(TMS)]])>1,MAX($AD$12:AD31)+1,\"\")","v":""},{"$f":"Table3[[#This Row],[New Room type description]]&Table3[[#This Row],[New\ninventory]]","v":""},null,null,{"$f":"IFERROR(IF(Table3[[#This Row],[Adult1]]+Table3[[#This Row],[Child1]]=Table3[[#This Row],[Max. '# guest with extra bed]],CONCATENATE(Table3[[#This Row],[Adult1]],\"AD\",\"+\",Table3[[#This Row],[Child1]],\"CH\"),IF(AND(Table3[[#This Row],[Adult1]]=\"\",Table3[[#This Row],[Child1]]=\"\"),\"\",\"ERROR\")),\"\")","v":""},null,null,{"$f":"IFERROR(IF(Table3[[#This Row],[Adult2]]+Table3[[#This Row],[Child2]]=Table3[[#This Row],[Max. '# guest with extra bed]],CONCATENATE(Table3[[#This Row],[Adult2]],\"AD\",\"+\",Table3[[#This Row],[Child2]],\"CH\"),IF(AND(Table3[[#This Row],[Adult2]]=\"\",Table3[[#This Row],[Child2]]=\"\"),\"\",\"ERROR\")),\"\")","v":""},null,{"$f":"IF(Table3[[#This Row],[Do you want to include this Combination in OTA''s?]]<>\"\",\"YES\",\"\")","v":""},null,{"$f":"IF(Table3[[#This Row],[Do you want to include this Combination in OTA''s?]]=\"YES\",IF(Table3[[#This Row],[Is this Combination already in OTA''s?]]=\"NO\",\"UPLOAD COMBINATION IN OTAS\",\"-\"),IF(Table3[[#This Row],[Is this Combination already in OTA''s?]]=\"YES\",\"DELETE COMBINATION\",\"-\"))","v":"-"},null,null,null,0]
[null,{"$f":"IF(LEN(D33&I33)>2,'1) Hotel information'!$C$4,\"\")","v":""},{"$f":"IF(LEN(D33&I33)>2,'1) Hotel information'!$C$5,\"\")","v":""},{"$f":"IFERROR(INDEX(CurrentRoomConfiguration,MATCH(,COUNTIF($D$11:D32,CurrentRoomConfiguration),0)),)","v":0},{"$f":"IF(Table3[[#This Row],[Current SubRoom Type \n(TMS)]]=0,\"\",LEFT(Table3[[#This Row],[Current SubRoom Type \n(TMS)]],6))","v":""},"",{"$f":"IFERROR(INDEX(Table1[Room description],MATCH(D33,Table1[TMS],0)),\"\")","v":""},{"$f":"IFERROR(INDEX(Table1[Bedding],MATCH(D33,Table1[TMS],0)),\"\")","v":""},{"$f":"IFERROR(INDEX(NewRoomConfiguration,MATCH(,COUNTIF($I$11:I32,NewRoomConfiguration),0)),)","v":0},{"$f":"IF(Table3[[#This Row],[New SubRoom Type \n(TMS)]]=0,\"\",LEFT(Table3[[#This Row],[New SubRoom Type \n(TMS)]],6))","v":""},"",null,{"$f":"IF(Table3[[#This Row],[Publish on OTA?]]<>\"\",\"YES\",\"\")","v":""},{"$f":"IFERROR(IF(AND(VLOOKUP(Table3[[#This Row],[New Room Type (TMS)]],Sheet3!$H$10:$I$28,2,FALSE)<5,Table3[[#This Row],[Publish on OTA?]]=\"yes\"),\"It's not posible to publish on OTA, please contact with Laura or Roberto\",\"\"),\"\")","v":""},{"$f":"IFERROR(INDEX(Table1[Room description],MATCH(I33,Table1[TMS],0)),\"\")","v":""},null,"",{"$f":"IFERROR(INDEX(Table1[Bedding],MATCH(I33,Table1[TMS],0)),\"\")","v":""},null,{"$f":"IF(IFERROR(VLOOKUP($I$12:$I$1048576,MAX!$A:$B,2,FALSE)+Table3[[#This Row],[Max. '# guest \nwithout extra bed]],Table3[[#This Row],[Max. '# guest \nwithout extra bed]])=0,\"\",IFERROR(VLOOKUP($I$12:$I$1048576,MAX!$A:$B,2,FALSE)+Table3[[#This Row],[Max. '# guest \nwithout extra bed]],Table3[[#This Row],[Max. '# guest \nwithout extra bed]]))","v":""},{"$f":"IFERROR(IF(VLOOKUP(Table3[[#This Row],[New SubRoom Type \n(TMS)]],'1) Hotel information'!$B$54:$D$77,2,FALSE)>VLOOKUP(Table3[[#This Row],[New SubRoom Type \n(TMS)]],'1) Hotel information'!$B$54:$D$77,3,FALSE),\"ROLLAWAY\", IF(VLOOKUP(Table3[[#This Row],[New SubRoom Type \n(TMS)]],'1) Hotel information'!$B$54:$D$77,2,FALSE)<VLOOKUP(Table3[[#This Row],[New SubRoom Type \n(TMS)]],'1) Hotel information'!$B$54:$D$77,3,FALSE),\"SOFABED\",\"\")),\"\")","v":""},null,{"$f":"IFERROR(INDEX(Table1[View?],MATCH(I33,Table1[TMS],0)),\"\")","v":""},{"$f":"IFERROR(INDEX(Table1[Terrace?],MATCH(I33,Table1[TMS],0)),\"\")","v":""},{"$f":"IF(OR(Table3[[#This Row],[View]]=\"Yes\",Table3[[#This Row],[Terrace]]=\"Yes\"),\"Please review your Room Type description\",\"\")","v":""},{"$f":"IF(OR(LEN(Table3[[#This Row],[Room types to be created]])>1,LEN(Table3[[#This Row],[Room types to be deleted]])>1),\"Yes\",\"\")","v":""},"","",{"$f":"IF(LEN(Table3[[#This Row],[New SubRoom Type \n(TMS)]])>1,Table3[[#This Row],[New\ninventory]]+(ROW()*0.000000001),\"\")","v":""},{"$f":"IF(LEN(Table3[[#This Row],[New SubRoom Type \n(TMS)]])>1,MAX($AD$12:AD32)+1,\"\")","v":""},{"$f":"Table3[[#This Row],[New Room type description]]&Table3[[#This Row],[New\ninventory]]","v":""},null,null,{"$f":"IFERROR(IF(Table3[[#This Row],[Adult1]]+Table3[[#This Row],[Child1]]=Table3[[#This Row],[Max. '# guest with extra bed]],CONCATENATE(Table3[[#This Row],[Adult1]],\"AD\",\"+\",Table3[[#This Row],[Child1]],\"CH\"),IF(AND(Table3[[#This Row],[Adult1]]=\"\",Table3[[#This Row],[Child1]]=\"\"),\"\",\"ERROR\")),\"\")","v":""},null,null,{"$f":"IFERROR(IF(Table3[[#This Row],[Adult2]]+Table3[[#This Row],[Child2]]=Table3[[#This Row],[Max. '# guest with extra bed]],CONCATENATE(Table3[[#This Row],[Adult2]],\"AD\",\"+\",Table3[[#This Row],[Child2]],\"CH\"),IF(AND(Table3[[#This Row],[Adult2]]=\"\",Table3[[#This Row],[Child2]]=\"\"),\"\",\"ERROR\")),\"\")","v":""},null,{"$f":"IF(Table3[[#This Row],[Do you want to include this Combination in OTA''s?]]<>\"\",\"YES\",\"\")","v":""},null,{"$f":"IF(Table3[[#This Row],[Do you want to include this Combination in OTA''s?]]=\"YES\",IF(Table3[[#This Row],[Is this Combination already in OTA''s?]]=\"NO\",\"UPLOAD COMBINATION IN OTAS\",\"-\"),IF(Table3[[#This Row],[Is this Combination already in OTA''s?]]=\"YES\",\"DELETE COMBINATION\",\"-\"))","v":"-"},null,null,null,0]
[null,{"$f":"IF(LEN(D34&I34)>2,'1) Hotel information'!$C$4,\"\")","v":""},{"$f":"IF(LEN(D34&I34)>2,'1) Hotel information'!$C$5,\"\")","v":""},{"$f":"IFERROR(INDEX(CurrentRoomConfiguration,MATCH(,COUNTIF($D$11:D33,CurrentRoomConfiguration),0)),)","v":0},{"$f":"IF(Table3[[#This Row],[Current SubRoom Type \n(TMS)]]=0,\"\",LEFT(Table3[[#This Row],[Current SubRoom Type \n(TMS)]],6))","v":""},"",{"$f":"IFERROR(INDEX(Table1[Room description],MATCH(D34,Table1[TMS],0)),\"\")","v":""},{"$f":"IFERROR(INDEX(Table1[Bedding],MATCH(D34,Table1[TMS],0)),\"\")","v":""},{"$f":"IFERROR(INDEX(NewRoomConfiguration,MATCH(,COUNTIF($I$11:I33,NewRoomConfiguration),0)),)","v":0},{"$f":"IF(Table3[[#This Row],[New SubRoom Type \n(TMS)]]=0,\"\",LEFT(Table3[[#This Row],[New SubRoom Type \n(TMS)]],6))","v":""},"",null,{"$f":"IF(Table3[[#This Row],[Publish on OTA?]]<>\"\",\"YES\",\"\")","v":""},{"$f":"IFERROR(IF(AND(VLOOKUP(Table3[[#This Row],[New Room Type (TMS)]],Sheet3!$H$10:$I$28,2,FALSE)<5,Table3[[#This Row],[Publish on OTA?]]=\"yes\"),\"It's not posible to publish on OTA, please contact with Laura or Roberto\",\"\"),\"\")","v":""},{"$f":"IFERROR(INDEX(Table1[Room description],MATCH(I34,Table1[TMS],0)),\"\")","v":""},null,"",{"$f":"IFERROR(INDEX(Table1[Bedding],MATCH(I34,Table1[TMS],0)),\"\")","v":""},null,{"$f":"IF(IFERROR(VLOOKUP($I$12:$I$1048576,MAX!$A:$B,2,FALSE)+Table3[[#This Row],[Max. '# guest \nwithout extra bed]],Table3[[#This Row],[Max. '# guest \nwithout extra bed]])=0,\"\",IFERROR(VLOOKUP($I$12:$I$1048576,MAX!$A:$B,2,FALSE)+Table3[[#This Row],[Max. '# guest \nwithout extra bed]],Table3[[#This Row],[Max. '# guest \nwithout extra bed]]))","v":""},{"$f":"IFERROR(IF(VLOOKUP(Table3[[#This Row],[New SubRoom Type \n(TMS)]],'1) Hotel information'!$B$54:$D$77,2,FALSE)>VLOOKUP(Table3[[#This Row],[New SubRoom Type \n(TMS)]],'1) Hotel information'!$B$54:$D$77,3,FALSE),\"ROLLAWAY\", IF(VLOOKUP(Table3[[#This Row],[New SubRoom Type \n(TMS)]],'1) Hotel information'!$B$54:$D$77,2,FALSE)<VLOOKUP(Table3[[#This Row],[New SubRoom Type \n(TMS)]],'1) Hotel information'!$B$54:$D$77,3,FALSE),\"SOFABED\",\"\")),\"\")","v":""},null,{"$f":"IFERROR(INDEX(Table1[View?],MATCH(I34,Table1[TMS],0)),\"\")","v":""},{"$f":"IFERROR(INDEX(Table1[Terrace?],MATCH(I34,Table1[TMS],0)),\"\")","v":""},{"$f":"IF(OR(Table3[[#This Row],[View]]=\"Yes\",Table3[[#This Row],[Terrace]]=\"Yes\"),\"Please review your Room Type description\",\"\")","v":""},{"$f":"IF(OR(LEN(Table3[[#This Row],[Room types to be created]])>1,LEN(Table3[[#This Row],[Room types to be deleted]])>1),\"Yes\",\"\")","v":""},"","",{"$f":"IF(LEN(Table3[[#This Row],[New SubRoom Type \n(TMS)]])>1,Table3[[#This Row],[New\ninventory]]+(ROW()*0.000000001),\"\")","v":""},{"$f":"IF(LEN(Table3[[#This Row],[New SubRoom Type \n(TMS)]])>1,MAX($AD$12:AD33)+1,\"\")","v":""},{"$f":"Table3[[#This Row],[New Room type description]]&Table3[[#This Row],[New\ninventory]]","v":""},null,null,{"$f":"IFERROR(IF(Table3[[#This Row],[Adult1]]+Table3[[#This Row],[Child1]]=Table3[[#This Row],[Max. '# guest with extra bed]],CONCATENATE(Table3[[#This Row],[Adult1]],\"AD\",\"+\",Table3[[#This Row],[Child1]],\"CH\"),IF(AND(Table3[[#This Row],[Adult1]]=\"\",Table3[[#This Row],[Child1]]=\"\"),\"\",\"ERROR\")),\"\")","v":""},null,null,{"$f":"IFERROR(IF(Table3[[#This Row],[Adult2]]+Table3[[#This Row],[Child2]]=Table3[[#This Row],[Max. '# guest with extra bed]],CONCATENATE(Table3[[#This Row],[Adult2]],\"AD\",\"+\",Table3[[#This Row],[Child2]],\"CH\"),IF(AND(Table3[[#This Row],[Adult2]]=\"\",Table3[[#This Row],[Child2]]=\"\"),\"\",\"ERROR\")),\"\")","v":""},null,{"$f":"IF(Table3[[#This Row],[Do you want to include this Combination in OTA''s?]]<>\"\",\"YES\",\"\")","v":""},null,{"$f":"IF(Table3[[#This Row],[Do you want to include this Combination in OTA''s?]]=\"YES\",IF(Table3[[#This Row],[Is this Combination already in OTA''s?]]=\"NO\",\"UPLOAD COMBINATION IN OTAS\",\"-\"),IF(Table3[[#This Row],[Is this Combination already in OTA''s?]]=\"YES\",\"DELETE COMBINATION\",\"-\"))","v":"-"},null,null,null,0]
[null,{"$f":"IF(LEN(D35&I35)>2,'1) Hotel information'!$C$4,\"\")","v":""},{"$f":"IF(LEN(D35&I35)>2,'1) Hotel information'!$C$5,\"\")","v":""},{"$f":"IFERROR(INDEX(CurrentRoomConfiguration,MATCH(,COUNTIF($D$11:D34,CurrentRoomConfiguration),0)),)","v":0},{"$f":"IF(Table3[[#This Row],[Current SubRoom Type \n(TMS)]]=0,\"\",LEFT(Table3[[#This Row],[Current SubRoom Type \n(TMS)]],6))","v":""},"",{"$f":"IFERROR(INDEX(Table1[Room description],MATCH(D35,Table1[TMS],0)),\"\")","v":""},{"$f":"IFERROR(INDEX(Table1[Bedding],MATCH(D35,Table1[TMS],0)),\"\")","v":""},{"$f":"IFERROR(INDEX(NewRoomConfiguration,MATCH(,COUNTIF($I$11:I34,NewRoomConfiguration),0)),)","v":0},{"$f":"IF(Table3[[#This Row],[New SubRoom Type \n(TMS)]]=0,\"\",LEFT(Table3[[#This Row],[New SubRoom Type \n(TMS)]],6))","v":""},"",null,{"$f":"IF(Table3[[#This Row],[Publish on OTA?]]<>\"\",\"YES\",\"\")","v":""},{"$f":"IFERROR(IF(AND(VLOOKUP(Table3[[#This Row],[New Room Type (TMS)]],Sheet3!$H$10:$I$28,2,FALSE)<5,Table3[[#This Row],[Publish on OTA?]]=\"yes\"),\"It's not posible to publish on OTA, please contact with Laura or Roberto\",\"\"),\"\")","v":""},{"$f":"IFERROR(INDEX(Table1[Room description],MATCH(I35,Table1[TMS],0)),\"\")","v":""},null,"",{"$f":"IFERROR(INDEX(Table1[Bedding],MATCH(I35,Table1[TMS],0)),\"\")","v":""},null,{"$f":"IF(IFERROR(VLOOKUP($I$12:$I$1048576,MAX!$A:$B,2,FALSE)+Table3[[#This Row],[Max. '# guest \nwithout extra bed]],Table3[[#This Row],[Max. '# guest \nwithout extra bed]])=0,\"\",IFERROR(VLOOKUP($I$12:$I$1048576,MAX!$A:$B,2,FALSE)+Table3[[#This Row],[Max. '# guest \nwithout extra bed]],Table3[[#This Row],[Max. '# guest \nwithout extra bed]]))","v":""},{"$f":"IFERROR(IF(VLOOKUP(Table3[[#This Row],[New SubRoom Type \n(TMS)]],'1) Hotel information'!$B$54:$D$77,2,FALSE)>VLOOKUP(Table3[[#This Row],[New SubRoom Type \n(TMS)]],'1) Hotel information'!$B$54:$D$77,3,FALSE),\"ROLLAWAY\", IF(VLOOKUP(Table3[[#This Row],[New SubRoom Type \n(TMS)]],'1) Hotel information'!$B$54:$D$77,2,FALSE)<VLOOKUP(Table3[[#This Row],[New SubRoom Type \n(TMS)]],'1) Hotel information'!$B$54:$D$77,3,FALSE),\"SOFABED\",\"\")),\"\")","v":""},null,{"$f":"IFERROR(INDEX(Table1[View?],MATCH(I35,Table1[TMS],0)),\"\")","v":""},{"$f":"IFERROR(INDEX(Table1[Terrace?],MATCH(I35,Table1[TMS],0)),\"\")","v":""},{"$f":"IF(OR(Table3[[#This Row],[View]]=\"Yes\",Table3[[#This Row],[Terrace]]=\"Yes\"),\"Please review your Room Type description\",\"\")","v":""},{"$f":"IF(OR(LEN(Table3[[#This Row],[Room types to be created]])>1,LEN(Table3[[#This Row],[Room types to be deleted]])>1),\"Yes\",\"\")","v":""},"","",{"$f":"IF(LEN(Table3[[#This Row],[New SubRoom Type \n(TMS)]])>1,Table3[[#This Row],[New\ninventory]]+(ROW()*0.000000001),\"\")","v":""},{"$f":"IF(LEN(Table3[[#This Row],[New SubRoom Type \n(TMS)]])>1,MAX($AD$12:AD34)+1,\"\")","v":""},{"$f":"Table3[[#This Row],[New Room type description]]&Table3[[#This Row],[New\ninventory]]","v":""},null,null,{"$f":"IFERROR(IF(Table3[[#This Row],[Adult1]]+Table3[[#This Row],[Child1]]=Table3[[#This Row],[Max. '# guest with extra bed]],CONCATENATE(Table3[[#This Row],[Adult1]],\"AD\",\"+\",Table3[[#This Row],[Child1]],\"CH\"),IF(AND(Table3[[#This Row],[Adult1]]=\"\",Table3[[#This Row],[Child1]]=\"\"),\"\",\"ERROR\")),\"\")","v":""},null,null,{"$f":"IFERROR(IF(Table3[[#This Row],[Adult2]]+Table3[[#This Row],[Child2]]=Table3[[#This Row],[Max. '# guest with extra bed]],CONCATENATE(Table3[[#This Row],[Adult2]],\"AD\",\"+\",Table3[[#This Row],[Child2]],\"CH\"),IF(AND(Table3[[#This Row],[Adult2]]=\"\",Table3[[#This Row],[Child2]]=\"\"),\"\",\"ERROR\")),\"\")","v":""},null,{"$f":"IF(Table3[[#This Row],[Do you want to include this Combination in OTA''s?]]<>\"\",\"YES\",\"\")","v":""},null,{"$f":"IF(Table3[[#This Row],[Do you want to include this Combination in OTA''s?]]=\"YES\",IF(Table3[[#This Row],[Is this Combination already in OTA''s?]]=\"NO\",\"UPLOAD COMBINATION IN OTAS\",\"-\"),IF(Table3[[#This Row],[Is this Combination already in OTA''s?]]=\"YES\",\"DELETE COMBINATION\",\"-\"))","v":"-"},null,null,null,0]
[null,{"$f":"IF(LEN(D36&I36)>2,'1) Hotel information'!$C$4,\"\")","v":""},{"$f":"IF(LEN(D36&I36)>2,'1) Hotel information'!$C$5,\"\")","v":""},{"$f":"IFERROR(INDEX(CurrentRoomConfiguration,MATCH(,COUNTIF($D$11:D35,CurrentRoomConfiguration),0)),)","v":0},{"$f":"IF(Table3[[#This Row],[Current SubRoom Type \n(TMS)]]=0,\"\",LEFT(Table3[[#This Row],[Current SubRoom Type \n(TMS)]],6))","v":""},"",{"$f":"IFERROR(INDEX(Table1[Room description],MATCH(D36,Table1[TMS],0)),\"\")","v":""},{"$f":"IFERROR(INDEX(Table1[Bedding],MATCH(D36,Table1[TMS],0)),\"\")","v":""},{"$f":"IFERROR(INDEX(NewRoomConfiguration,MATCH(,COUNTIF($I$11:I35,NewRoomConfiguration),0)),)","v":0},{"$f":"IF(Table3[[#This Row],[New SubRoom Type \n(TMS)]]=0,\"\",LEFT(Table3[[#This Row],[New SubRoom Type \n(TMS)]],6))","v":""},"",null,{"$f":"IF(Table3[[#This Row],[Publish on OTA?]]<>\"\",\"YES\",\"\")","v":""},{"$f":"IFERROR(IF(AND(VLOOKUP(Table3[[#This Row],[New Room Type (TMS)]],Sheet3!$H$10:$I$28,2,FALSE)<5,Table3[[#This Row],[Publish on OTA?]]=\"yes\"),\"It's not posible to publish on OTA, please contact with Laura or Roberto\",\"\"),\"\")","v":""},{"$f":"IFERROR(INDEX(Table1[Room description],MATCH(I36,Table1[TMS],0)),\"\")","v":""},null,"",{"$f":"IFERROR(INDEX(Table1[Bedding],MATCH(I36,Table1[TMS],0)),\"\")","v":""},null,{"$f":"IF(IFERROR(VLOOKUP($I$12:$I$1048576,MAX!$A:$B,2,FALSE)+Table3[[#This Row],[Max. '# guest \nwithout extra bed]],Table3[[#This Row],[Max. '# guest \nwithout extra bed]])=0,\"\",IFERROR(VLOOKUP($I$12:$I$1048576,MAX!$A:$B,2,FALSE)+Table3[[#This Row],[Max. '# guest \nwithout extra bed]],Table3[[#This Row],[Max. '# guest \nwithout extra bed]]))","v":""},{"$f":"IFERROR(IF(VLOOKUP(Table3[[#This Row],[New SubRoom Type \n(TMS)]],'1) Hotel information'!$B$54:$D$77,2,FALSE)>VLOOKUP(Table3[[#This Row],[New SubRoom Type \n(TMS)]],'1) Hotel information'!$B$54:$D$77,3,FALSE),\"ROLLAWAY\", IF(VLOOKUP(Table3[[#This Row],[New SubRoom Type \n(TMS)]],'1) Hotel information'!$B$54:$D$77,2,FALSE)<VLOOKUP(Table3[[#This Row],[New SubRoom Type \n(TMS)]],'1) Hotel information'!$B$54:$D$77,3,FALSE),\"SOFABED\",\"\")),\"\")","v":""},null,{"$f":"IFERROR(INDEX(Table1[View?],MATCH(I36,Table1[TMS],0)),\"\")","v":""},{"$f":"IFERROR(INDEX(Table1[Terrace?],MATCH(I36,Table1[TMS],0)),\"\")","v":""},{"$f":"IF(OR(Table3[[#This Row],[View]]=\"Yes\",Table3[[#This Row],[Terrace]]=\"Yes\"),\"Please review your Room Type description\",\"\")","v":""},{"$f":"IF(OR(LEN(Table3[[#This Row],[Room types to be created]])>1,LEN(Table3[[#This Row],[Room types to be deleted]])>1),\"Yes\",\"\")","v":""},"","",{"$f":"IF(LEN(Table3[[#This Row],[New SubRoom Type \n(TMS)]])>1,Table3[[#This Row],[New\ninventory]]+(ROW()*0.000000001),\"\")","v":""},{"$f":"IF(LEN(Table3[[#This Row],[New SubRoom Type \n(TMS)]])>1,MAX($AD$12:AD35)+1,\"\")","v":""},{"$f":"Table3[[#This Row],[New Room type description]]&Table3[[#This Row],[New\ninventory]]","v":""},null,null,{"$f":"IFERROR(IF(Table3[[#This Row],[Adult1]]+Table3[[#This Row],[Child1]]=Table3[[#This Row],[Max. '# guest with extra bed]],CONCATENATE(Table3[[#This Row],[Adult1]],\"AD\",\"+\",Table3[[#This Row],[Child1]],\"CH\"),IF(AND(Table3[[#This Row],[Adult1]]=\"\",Table3[[#This Row],[Child1]]=\"\"),\"\",\"ERROR\")),\"\")","v":""},null,null,{"$f":"IFERROR(IF(Table3[[#This Row],[Adult2]]+Table3[[#This Row],[Child2]]=Table3[[#This Row],[Max. '# guest with extra bed]],CONCATENATE(Table3[[#This Row],[Adult2]],\"AD\",\"+\",Table3[[#This Row],[Child2]],\"CH\"),IF(AND(Table3[[#This Row],[Adult2]]=\"\",Table3[[#This Row],[Child2]]=\"\"),\"\",\"ERROR\")),\"\")","v":""},null,{"$f":"IF(Table3[[#This Row],[Do you want to include this Combination in OTA''s?]]<>\"\",\"YES\",\"\")","v":""},null,{"$f":"IF(Table3[[#This Row],[Do you want to include this Combination in OTA''s?]]=\"YES\",IF(Table3[[#This Row],[Is this Combination already in OTA''s?]]=\"NO\",\"UPLOAD COMBINATION IN OTAS\",\"-\"),IF(Table3[[#This Row],[Is this Combination already in OTA''s?]]=\"YES\",\"DELETE COMBINATION\",\"-\"))","v":"-"},null,null,null,0]
[null,{"$f":"IF(LEN(D37&I37)>2,'1) Hotel information'!$C$4,\"\")","v":""},{"$f":"IF(LEN(D37&I37)>2,'1) Hotel information'!$C$5,\"\")","v":""},{"$f":"IFERROR(INDEX(CurrentRoomConfiguration,MATCH(,COUNTIF($D$11:D36,CurrentRoomConfiguration),0)),)","v":0},{"$f":"IF(Table3[[#This Row],[Current SubRoom Type \n(TMS)]]=0,\"\",LEFT(Table3[[#This Row],[Current SubRoom Type \n(TMS)]],6))","v":""},"",{"$f":"IFERROR(INDEX(Table1[Room description],MATCH(D37,Table1[TMS],0)),\"\")","v":""},{"$f":"IFERROR(INDEX(Table1[Bedding],MATCH(D37,Table1[TMS],0)),\"\")","v":""},{"$f":"IFERROR(INDEX(NewRoomConfiguration,MATCH(,COUNTIF($I$11:I36,NewRoomConfiguration),0)),)","v":0},{"$f":"IF(Table3[[#This Row],[New SubRoom Type \n(TMS)]]=0,\"\",LEFT(Table3[[#This Row],[New SubRoom Type \n(TMS)]],6))","v":""},"",null,{"$f":"IF(Table3[[#This Row],[Publish on OTA?]]<>\"\",\"YES\",\"\")","v":""},{"$f":"IFERROR(IF(AND(VLOOKUP(Table3[[#This Row],[New Room Type (TMS)]],Sheet3!$H$10:$I$28,2,FALSE)<5,Table3[[#This Row],[Publish on OTA?]]=\"yes\"),\"It's not posible to publish on OTA, please contact with Laura or Roberto\",\"\"),\"\")","v":""},{"$f":"IFERROR(INDEX(Table1[Room description],MATCH(I37,Table1[TMS],0)),\"\")","v":""},null,"",{"$f":"IFERROR(INDEX(Table1[Bedding],MATCH(I37,Table1[TMS],0)),\"\")","v":""},null,{"$f":"IF(IFERROR(VLOOKUP($I$12:$I$1048576,MAX!$A:$B,2,FALSE)+Table3[[#This Row],[Max. '# guest \nwithout extra bed]],Table3[[#This Row],[Max. '# guest \nwithout extra bed]])=0,\"\",IFERROR(VLOOKUP($I$12:$I$1048576,MAX!$A:$B,2,FALSE)+Table3[[#This Row],[Max. '# guest \nwithout extra bed]],Table3[[#This Row],[Max. '# guest \nwithout extra bed]]))","v":""},{"$f":"IFERROR(IF(VLOOKUP(Table3[[#This Row],[New SubRoom Type \n(TMS)]],'1) Hotel information'!$B$54:$D$77,2,FALSE)>VLOOKUP(Table3[[#This Row],[New SubRoom Type \n(TMS)]],'1) Hotel information'!$B$54:$D$77,3,FALSE),\"ROLLAWAY\", IF(VLOOKUP(Table3[[#This Row],[New SubRoom Type \n(TMS)]],'1) Hotel information'!$B$54:$D$77,2,FALSE)<VLOOKUP(Table3[[#This Row],[New SubRoom Type \n(TMS)]],'1) Hotel information'!$B$54:$D$77,3,FALSE),\"SOFABED\",\"\")),\"\")","v":""},null,{"$f":"IFERROR(INDEX(Table1[View?],MATCH(I37,Table1[TMS],0)),\"\")","v":""},{"$f":"IFERROR(INDEX(Table1[Terrace?],MATCH(I37,Table1[TMS],0)),\"\")","v":""},{"$f":"IF(OR(Table3[[#This Row],[View]]=\"Yes\",Table3[[#This Row],[Terrace]]=\"Yes\"),\"Please review your Room Type description\",\"\")","v":""},{"$f":"IF(OR(LEN(Table3[[#This Row],[Room types to be created]])>1,LEN(Table3[[#This Row],[Room types to be deleted]])>1),\"Yes\",\"\")","v":""},"","",{"$f":"IF(LEN(Table3[[#This Row],[New SubRoom Type \n(TMS)]])>1,Table3[[#This Row],[New\ninventory]]+(ROW()*0.000000001),\"\")","v":""},{"$f":"IF(LEN(Table3[[#This Row],[New SubRoom Type \n(TMS)]])>1,MAX($AD$12:AD36)+1,\"\")","v":""},{"$f":"Table3[[#This Row],[New Room type description]]&Table3[[#This Row],[New\ninventory]]","v":""},null,null,{"$f":"IFERROR(IF(Table3[[#This Row],[Adult1]]+Table3[[#This Row],[Child1]]=Table3[[#This Row],[Max. '# guest with extra bed]],CONCATENATE(Table3[[#This Row],[Adult1]],\"AD\",\"+\",Table3[[#This Row],[Child1]],\"CH\"),IF(AND(Table3[[#This Row],[Adult1]]=\"\",Table3[[#This Row],[Child1]]=\"\"),\"\",\"ERROR\")),\"\")","v":""},null,null,{"$f":"IFERROR(IF(Table3[[#This Row],[Adult2]]+Table3[[#This Row],[Child2]]=Table3[[#This Row],[Max. '# guest with extra bed]],CONCATENATE(Table3[[#This Row],[Adult2]],\"AD\",\"+\",Table3[[#This Row],[Child2]],\"CH\"),IF(AND(Table3[[#This Row],[Adult2]]=\"\",Table3[[#This Row],[Child2]]=\"\"),\"\",\"ERROR\")),\"\")","v":""},null,{"$f":"IF(Table3[[#This Row],[Do you want to include this Combination in OTA''s?]]<>\"\",\"YES\",\"\")","v":""},null,{"$f":"IF(Table3[[#This Row],[Do you want to include this Combination in OTA''s?]]=\"YES\",IF(Table3[[#This Row],[Is this Combination already in OTA''s?]]=\"NO\",\"UPLOAD COMBINATION IN OTAS\",\"-\"),IF(Table3[[#This Row],[Is this Combination already in OTA''s?]]=\"YES\",\"DELETE COMBINATION\",\"-\"))","v":"-"},null,null,null,0]
[null,{"$f":"IF(LEN(D38&I38)>2,'1) Hotel information'!$C$4,\"\")","v":""},{"$f":"IF(LEN(D38&I38)>2,'1) Hotel information'!$C$5,\"\")","v":""},{"$f":"IFERROR(INDEX(CurrentRoomConfiguration,MATCH(,COUNTIF($D$11:D37,CurrentRoomConfiguration),0)),)","v":0},{"$f":"IF(Table3[[#This Row],[Current SubRoom Type \n(TMS)]]=0,\"\",LEFT(Table3[[#This Row],[Current SubRoom Type \n(TMS)]],6))","v":""},"",{"$f":"IFERROR(INDEX(Table1[Room description],MATCH(D38,Table1[TMS],0)),\"\")","v":""},{"$f":"IFERROR(INDEX(Table1[Bedding],MATCH(D38,Table1[TMS],0)),\"\")","v":""},{"$f":"IFERROR(INDEX(NewRoomConfiguration,MATCH(,COUNTIF($I$11:I37,NewRoomConfiguration),0)),)","v":0},{"$f":"IF(Table3[[#This Row],[New SubRoom Type \n(TMS)]]=0,\"\",LEFT(Table3[[#This Row],[New SubRoom Type \n(TMS)]],6))","v":""},"",null,{"$f":"IF(Table3[[#This Row],[Publish on OTA?]]<>\"\",\"YES\",\"\")","v":""},{"$f":"IFERROR(IF(AND(VLOOKUP(Table3[[#This Row],[New Room Type (TMS)]],Sheet3!$H$10:$I$28,2,FALSE)<5,Table3[[#This Row],[Publish on OTA?]]=\"yes\"),\"It's not posible to publish on OTA, please contact with Laura or Roberto\",\"\"),\"\")","v":""},{"$f":"IFERROR(INDEX(Table1[Room description],MATCH(I38,Table1[TMS],0)),\"\")","v":""},null,"",{"$f":"IFERROR(INDEX(Table1[Bedding],MATCH(I38,Table1[TMS],0)),\"\")","v":""},null,{"$f":"IF(IFERROR(VLOOKUP($I$12:$I$1048576,MAX!$A:$B,2,FALSE)+Table3[[#This Row],[Max. '# guest \nwithout extra bed]],Table3[[#This Row],[Max. '# guest \nwithout extra bed]])=0,\"\",IFERROR(VLOOKUP($I$12:$I$1048576,MAX!$A:$B,2,FALSE)+Table3[[#This Row],[Max. '# guest \nwithout extra bed]],Table3[[#This Row],[Max. '# guest \nwithout extra bed]]))","v":""},{"$f":"IFERROR(IF(VLOOKUP(Table3[[#This Row],[New SubRoom Type \n(TMS)]],'1) Hotel information'!$B$54:$D$77,2,FALSE)>VLOOKUP(Table3[[#This Row],[New SubRoom Type \n(TMS)]],'1) Hotel information'!$B$54:$D$77,3,FALSE),\"ROLLAWAY\", IF(VLOOKUP(Table3[[#This Row],[New SubRoom Type \n(TMS)]],'1) Hotel information'!$B$54:$D$77,2,FALSE)<VLOOKUP(Table3[[#This Row],[New SubRoom Type \n(TMS)]],'1) Hotel information'!$B$54:$D$77,3,FALSE),\"SOFABED\",\"\")),\"\")","v":""},null,{"$f":"IFERROR(INDEX(Table1[View?],MATCH(I38,Table1[TMS],0)),\"\")","v":""},{"$f":"IFERROR(INDEX(Table1[Terrace?],MATCH(I38,Table1[TMS],0)),\"\")","v":""},{"$f":"IF(OR(Table3[[#This Row],[View]]=\"Yes\",Table3[[#This Row],[Terrace]]=\"Yes\"),\"Please review your Room Type description\",\"\")","v":""},{"$f":"IF(OR(LEN(Table3[[#This Row],[Room types to be created]])>1,LEN(Table3[[#This Row],[Room types to be deleted]])>1),\"Yes\",\"\")","v":""},"","",{"$f":"IF(LEN(Table3[[#This Row],[New SubRoom Type \n(TMS)]])>1,Table3[[#This Row],[New\ninventory]]+(ROW()*0.000000001),\"\")","v":""},{"$f":"IF(LEN(Table3[[#This Row],[New SubRoom Type \n(TMS)]])>1,MAX($AD$12:AD37)+1,\"\")","v":""},{"$f":"Table3[[#This Row],[New Room type description]]&Table3[[#This Row],[New\ninventory]]","v":""},null,null,{"$f":"IFERROR(IF(Table3[[#This Row],[Adult1]]+Table3[[#This Row],[Child1]]=Table3[[#This Row],[Max. '# guest with extra bed]],CONCATENATE(Table3[[#This Row],[Adult1]],\"AD\",\"+\",Table3[[#This Row],[Child1]],\"CH\"),IF(AND(Table3[[#This Row],[Adult1]]=\"\",Table3[[#This Row],[Child1]]=\"\"),\"\",\"ERROR\")),\"\")","v":""},null,null,{"$f":"IFERROR(IF(Table3[[#This Row],[Adult2]]+Table3[[#This Row],[Child2]]=Table3[[#This Row],[Max. '# guest with extra bed]],CONCATENATE(Table3[[#This Row],[Adult2]],\"AD\",\"+\",Table3[[#This Row],[Child2]],\"CH\"),IF(AND(Table3[[#This Row],[Adult2]]=\"\",Table3[[#This Row],[Child2]]=\"\"),\"\",\"ERROR\")),\"\")","v":""},null,{"$f":"IF(Table3[[#This Row],[Do you want to include this Combination in OTA''s?]]<>\"\",\"YES\",\"\")","v":""},null,{"$f":"IF(Table3[[#This Row],[Do you want to include this Combination in OTA''s?]]=\"YES\",IF(Table3[[#This Row],[Is this Combination already in OTA''s?]]=\"NO\",\"UPLOAD COMBINATION IN OTAS\",\"-\"),IF(Table3[[#This Row],[Is this Combination already in OTA''s?]]=\"YES\",\"DELETE COMBINATION\",\"-\"))","v":"-"},null,null,null,0]
[null,{"$f":"IF(LEN(D39&I39)>2,'1) Hotel information'!$C$4,\"\")","v":""},{"$f":"IF(LEN(D39&I39)>2,'1) Hotel information'!$C$5,\"\")","v":""},{"$f":"IFERROR(INDEX(CurrentRoomConfiguration,MATCH(,COUNTIF($D$11:D38,CurrentRoomConfiguration),0)),)","v":0},{"$f":"IF(Table3[[#This Row],[Current SubRoom Type \n(TMS)]]=0,\"\",LEFT(Table3[[#This Row],[Current SubRoom Type \n(TMS)]],6))","v":""},"",{"$f":"IFERROR(INDEX(Table1[Room description],MATCH(D39,Table1[TMS],0)),\"\")","v":""},{"$f":"IFERROR(INDEX(Table1[Bedding],MATCH(D39,Table1[TMS],0)),\"\")","v":""},{"$f":"IFERROR(INDEX(NewRoomConfiguration,MATCH(,COUNTIF($I$11:I38,NewRoomConfiguration),0)),)","v":0},{"$f":"IF(Table3[[#This Row],[New SubRoom Type \n(TMS)]]=0,\"\",LEFT(Table3[[#This Row],[New SubRoom Type \n(TMS)]],6))","v":""},"",null,{"$f":"IF(Table3[[#This Row],[Publish on OTA?]]<>\"\",\"YES\",\"\")","v":""},{"$f":"IFERROR(IF(AND(VLOOKUP(Table3[[#This Row],[New Room Type (TMS)]],Sheet3!$H$10:$I$28,2,FALSE)<5,Table3[[#This Row],[Publish on OTA?]]=\"yes\"),\"It's not posible to publish on OTA, please contact with Laura or Roberto\",\"\"),\"\")","v":""},{"$f":"IFERROR(INDEX(Table1[Room description],MATCH(I39,Table1[TMS],0)),\"\")","v":""},null,"",{"$f":"IFERROR(INDEX(Table1[Bedding],MATCH(I39,Table1[TMS],0)),\"\")","v":""},null,{"$f":"IF(IFERROR(VLOOKUP($I$12:$I$1048576,MAX!$A:$B,2,FALSE)+Table3[[#This Row],[Max. '# guest \nwithout extra bed]],Table3[[#This Row],[Max. '# guest \nwithout extra bed]])=0,\"\",IFERROR(VLOOKUP($I$12:$I$1048576,MAX!$A:$B,2,FALSE)+Table3[[#This Row],[Max. '# guest \nwithout extra bed]],Table3[[#This Row],[Max. '# guest \nwithout extra bed]]))","v":""},{"$f":"IFERROR(IF(VLOOKUP(Table3[[#This Row],[New SubRoom Type \n(TMS)]],'1) Hotel information'!$B$54:$D$77,2,FALSE)>VLOOKUP(Table3[[#This Row],[New SubRoom Type \n(TMS)]],'1) Hotel information'!$B$54:$D$77,3,FALSE),\"ROLLAWAY\", IF(VLOOKUP(Table3[[#This Row],[New SubRoom Type \n(TMS)]],'1) Hotel information'!$B$54:$D$77,2,FALSE)<VLOOKUP(Table3[[#This Row],[New SubRoom Type \n(TMS)]],'1) Hotel information'!$B$54:$D$77,3,FALSE),\"SOFABED\",\"\")),\"\")","v":""},null,{"$f":"IFERROR(INDEX(Table1[View?],MATCH(I39,Table1[TMS],0)),\"\")","v":""},{"$f":"IFERROR(INDEX(Table1[Terrace?],MATCH(I39,Table1[TMS],0)),\"\")","v":""},{"$f":"IF(OR(Table3[[#This Row],[View]]=\"Yes\",Table3[[#This Row],[Terrace]]=\"Yes\"),\"Please review your Room Type description\",\"\")","v":""},{"$f":"IF(OR(LEN(Table3[[#This Row],[Room types to be created]])>1,LEN(Table3[[#This Row],[Room types to be deleted]])>1),\"Yes\",\"\")","v":""},"","",{"$f":"IF(LEN(Table3[[#This Row],[New SubRoom Type \n(TMS)]])>1,Table3[[#This Row],[New\ninventory]]+(ROW()*0.000000001),\"\")","v":""},{"$f":"IF(LEN(Table3[[#This Row],[New SubRoom Type \n(TMS)]])>1,MAX($AD$12:AD38)+1,\"\")","v":""},{"$f":"Table3[[#This Row],[New Room type description]]&Table3[[#This Row],[New\ninventory]]","v":""},null,null,{"$f":"IFERROR(IF(Table3[[#This Row],[Adult1]]+Table3[[#This Row],[Child1]]=Table3[[#This Row],[Max. '# guest with extra bed]],CONCATENATE(Table3[[#This Row],[Adult1]],\"AD\",\"+\",Table3[[#This Row],[Child1]],\"CH\"),IF(AND(Table3[[#This Row],[Adult1]]=\"\",Table3[[#This Row],[Child1]]=\"\"),\"\",\"ERROR\")),\"\")","v":""},null,null,{"$f":"IFERROR(IF(Table3[[#This Row],[Adult2]]+Table3[[#This Row],[Child2]]=Table3[[#This Row],[Max. '# guest with extra bed]],CONCATENATE(Table3[[#This Row],[Adult2]],\"AD\",\"+\",Table3[[#This Row],[Child2]],\"CH\"),IF(AND(Table3[[#This Row],[Adult2]]=\"\",Table3[[#This Row],[Child2]]=\"\"),\"\",\"ERROR\")),\"\")","v":""},null,{"$f":"IF(Table3[[#This Row],[Do you want to include this Combination in OTA''s?]]<>\"\",\"YES\",\"\")","v":""},null,{"$f":"IF(Table3[[#This Row],[Do you want to include this Combination in OTA''s?]]=\"YES\",IF(Table3[[#This Row],[Is this Combination already in OTA''s?]]=\"NO\",\"UPLOAD COMBINATION IN OTAS\",\"-\"),IF(Table3[[#This Row],[Is this Combination already in OTA''s?]]=\"YES\",\"DELETE COMBINATION\",\"-\"))","v":"-"},null,null,null,0]
[null,{"$f":"IF(LEN(D40&I40)>2,'1) Hotel information'!$C$4,\"\")","v":""},{"$f":"IF(LEN(D40&I40)>2,'1) Hotel information'!$C$5,\"\")","v":""},{"$f":"IFERROR(INDEX(CurrentRoomConfiguration,MATCH(,COUNTIF($D$11:D39,CurrentRoomConfiguration),0)),)","v":0},{"$f":"IF(Table3[[#This Row],[Current SubRoom Type \n(TMS)]]=0,\"\",LEFT(Table3[[#This Row],[Current SubRoom Type \n(TMS)]],6))","v":""},"",{"$f":"IFERROR(INDEX(Table1[Room description],MATCH(D40,Table1[TMS],0)),\"\")","v":""},{"$f":"IFERROR(INDEX(Table1[Bedding],MATCH(D40,Table1[TMS],0)),\"\")","v":""},{"$f":"IFERROR(INDEX(NewRoomConfiguration,MATCH(,COUNTIF($I$11:I39,NewRoomConfiguration),0)),)","v":0},{"$f":"IF(Table3[[#This Row],[New SubRoom Type \n(TMS)]]=0,\"\",LEFT(Table3[[#This Row],[New SubRoom Type \n(TMS)]],6))","v":""},"",null,{"$f":"IF(Table3[[#This Row],[Publish on OTA?]]<>\"\",\"YES\",\"\")","v":""},{"$f":"IFERROR(IF(AND(VLOOKUP(Table3[[#This Row],[New Room Type (TMS)]],Sheet3!$H$10:$I$28,2,FALSE)<5,Table3[[#This Row],[Publish on OTA?]]=\"yes\"),\"It's not posible to publish on OTA, please contact with Laura or Roberto\",\"\"),\"\")","v":""},{"$f":"IFERROR(INDEX(Table1[Room description],MATCH(I40,Table1[TMS],0)),\"\")","v":""},null,"",{"$f":"IFERROR(INDEX(Table1[Bedding],MATCH(I40,Table1[TMS],0)),\"\")","v":""},null,{"$f":"IF(IFERROR(VLOOKUP($I$12:$I$1048576,MAX!$A:$B,2,FALSE)+Table3[[#This Row],[Max. '# guest \nwithout extra bed]],Table3[[#This Row],[Max. '# guest \nwithout extra bed]])=0,\"\",IFERROR(VLOOKUP($I$12:$I$1048576,MAX!$A:$B,2,FALSE)+Table3[[#This Row],[Max. '# guest \nwithout extra bed]],Table3[[#This Row],[Max. '# guest \nwithout extra bed]]))","v":""},{"$f":"IFERROR(IF(VLOOKUP(Table3[[#This Row],[New SubRoom Type \n(TMS)]],'1) Hotel information'!$B$54:$D$77,2,FALSE)>VLOOKUP(Table3[[#This Row],[New SubRoom Type \n(TMS)]],'1) Hotel information'!$B$54:$D$77,3,FALSE),\"ROLLAWAY\", IF(VLOOKUP(Table3[[#This Row],[New SubRoom Type \n(TMS)]],'1) Hotel information'!$B$54:$D$77,2,FALSE)<VLOOKUP(Table3[[#This Row],[New SubRoom Type \n(TMS)]],'1) Hotel information'!$B$54:$D$77,3,FALSE),\"SOFABED\",\"\")),\"\")","v":""},null,{"$f":"IFERROR(INDEX(Table1[View?],MATCH(I40,Table1[TMS],0)),\"\")","v":""},{"$f":"IFERROR(INDEX(Table1[Terrace?],MATCH(I40,Table1[TMS],0)),\"\")","v":""},{"$f":"IF(OR(Table3[[#This Row],[View]]=\"Yes\",Table3[[#This Row],[Terrace]]=\"Yes\"),\"Please review your Room Type description\",\"\")","v":""},{"$f":"IF(OR(LEN(Table3[[#This Row],[Room types to be created]])>1,LEN(Table3[[#This Row],[Room types to be deleted]])>1),\"Yes\",\"\")","v":""},"","",{"$f":"IF(LEN(Table3[[#This Row],[New SubRoom Type \n(TMS)]])>1,Table3[[#This Row],[New\ninventory]]+(ROW()*0.000000001),\"\")","v":""},{"$f":"IF(LEN(Table3[[#This Row],[New SubRoom Type \n(TMS)]])>1,MAX($AD$12:AD39)+1,\"\")","v":""},{"$f":"Table3[[#This Row],[New Room type description]]&Table3[[#This Row],[New\ninventory]]","v":""},null,null,{"$f":"IFERROR(IF(Table3[[#This Row],[Adult1]]+Table3[[#This Row],[Child1]]=Table3[[#This Row],[Max. '# guest with extra bed]],CONCATENATE(Table3[[#This Row],[Adult1]],\"AD\",\"+\",Table3[[#This Row],[Child1]],\"CH\"),IF(AND(Table3[[#This Row],[Adult1]]=\"\",Table3[[#This Row],[Child1]]=\"\"),\"\",\"ERROR\")),\"\")","v":""},null,null,{"$f":"IFERROR(IF(Table3[[#This Row],[Adult2]]+Table3[[#This Row],[Child2]]=Table3[[#This Row],[Max. '# guest with extra bed]],CONCATENATE(Table3[[#This Row],[Adult2]],\"AD\",\"+\",Table3[[#This Row],[Child2]],\"CH\"),IF(AND(Table3[[#This Row],[Adult2]]=\"\",Table3[[#This Row],[Child2]]=\"\"),\"\",\"ERROR\")),\"\")","v":""},null,{"$f":"IF(Table3[[#This Row],[Do you want to include this Combination in OTA''s?]]<>\"\",\"YES\",\"\")","v":""},null,{"$f":"IF(Table3[[#This Row],[Do you want to include this Combination in OTA''s?]]=\"YES\",IF(Table3[[#This Row],[Is this Combination already in OTA''s?]]=\"NO\",\"UPLOAD COMBINATION IN OTAS\",\"-\"),IF(Table3[[#This Row],[Is this Combination already in OTA''s?]]=\"YES\",\"DELETE COMBINATION\",\"-\"))","v":"-"},null,null,null,0]
[null,{"$f":"IF(LEN(D41&I41)>2,'1) Hotel information'!$C$4,\"\")","v":""},{"$f":"IF(LEN(D41&I41)>2,'1) Hotel information'!$C$5,\"\")","v":""},{"$f":"IFERROR(INDEX(CurrentRoomConfiguration,MATCH(,COUNTIF($D$11:D40,CurrentRoomConfiguration),0)),)","v":0},{"$f":"IF(Table3[[#This Row],[Current SubRoom Type \n(TMS)]]=0,\"\",LEFT(Table3[[#This Row],[Current SubRoom Type \n(TMS)]],6))","v":""},"",{"$f":"IFERROR(INDEX(Table1[Room description],MATCH(D41,Table1[TMS],0)),\"\")","v":""},{"$f":"IFERROR(INDEX(Table1[Bedding],MATCH(D41,Table1[TMS],0)),\"\")","v":""},{"$f":"IFERROR(INDEX(NewRoomConfiguration,MATCH(,COUNTIF($I$11:I40,NewRoomConfiguration),0)),)","v":0},{"$f":"IF(Table3[[#This Row],[New SubRoom Type \n(TMS)]]=0,\"\",LEFT(Table3[[#This Row],[New SubRoom Type \n(TMS)]],6))","v":""},"",null,{"$f":"IF(Table3[[#This Row],[Publish on OTA?]]<>\"\",\"YES\",\"\")","v":""},{"$f":"IFERROR(IF(AND(VLOOKUP(Table3[[#This Row],[New Room Type (TMS)]],Sheet3!$H$10:$I$28,2,FALSE)<5,Table3[[#This Row],[Publish on OTA?]]=\"yes\"),\"It's not posible to publish on OTA, please contact with Laura or Roberto\",\"\"),\"\")","v":""},{"$f":"IFERROR(INDEX(Table1[Room description],MATCH(I41,Table1[TMS],0)),\"\")","v":""},null,"",{"$f":"IFERROR(INDEX(Table1[Bedding],MATCH(I41,Table1[TMS],0)),\"\")","v":""},null,{"$f":"IF(IFERROR(VLOOKUP($I$12:$I$1048576,MAX!$A:$B,2,FALSE)+Table3[[#This Row],[Max. '# guest \nwithout extra bed]],Table3[[#This Row],[Max. '# guest \nwithout extra bed]])=0,\"\",IFERROR(VLOOKUP($I$12:$I$1048576,MAX!$A:$B,2,FALSE)+Table3[[#This Row],[Max. '# guest \nwithout extra bed]],Table3[[#This Row],[Max. '# guest \nwithout extra bed]]))","v":""},{"$f":"IFERROR(IF(VLOOKUP(Table3[[#This Row],[New SubRoom Type \n(TMS)]],'1) Hotel information'!$B$54:$D$77,2,FALSE)>VLOOKUP(Table3[[#This Row],[New SubRoom Type \n(TMS)]],'1) Hotel information'!$B$54:$D$77,3,FALSE),\"ROLLAWAY\", IF(VLOOKUP(Table3[[#This Row],[New SubRoom Type \n(TMS)]],'1) Hotel information'!$B$54:$D$77,2,FALSE)<VLOOKUP(Table3[[#This Row],[New SubRoom Type \n(TMS)]],'1) Hotel information'!$B$54:$D$77,3,FALSE),\"SOFABED\",\"\")),\"\")","v":""},null,{"$f":"IFERROR(INDEX(Table1[View?],MATCH(I41,Table1[TMS],0)),\"\")","v":""},{"$f":"IFERROR(INDEX(Table1[Terrace?],MATCH(I41,Table1[TMS],0)),\"\")","v":""},{"$f":"IF(OR(Table3[[#This Row],[View]]=\"Yes\",Table3[[#This Row],[Terrace]]=\"Yes\"),\"Please review your Room Type description\",\"\")","v":""},{"$f":"IF(OR(LEN(Table3[[#This Row],[Room types to be created]])>1,LEN(Table3[[#This Row],[Room types to be deleted]])>1),\"Yes\",\"\")","v":""},"","",{"$f":"IF(LEN(Table3[[#This Row],[New SubRoom Type \n(TMS)]])>1,Table3[[#This Row],[New\ninventory]]+(ROW()*0.000000001),\"\")","v":""},{"$f":"IF(LEN(Table3[[#This Row],[New SubRoom Type \n(TMS)]])>1,MAX($AD$12:AD40)+1,\"\")","v":""},{"$f":"Table3[[#This Row],[New Room type description]]&Table3[[#This Row],[New\ninventory]]","v":""},null,null,{"$f":"IFERROR(IF(Table3[[#This Row],[Adult1]]+Table3[[#This Row],[Child1]]=Table3[[#This Row],[Max. '# guest with extra bed]],CONCATENATE(Table3[[#This Row],[Adult1]],\"AD\",\"+\",Table3[[#This Row],[Child1]],\"CH\"),IF(AND(Table3[[#This Row],[Adult1]]=\"\",Table3[[#This Row],[Child1]]=\"\"),\"\",\"ERROR\")),\"\")","v":""},null,null,{"$f":"IFERROR(IF(Table3[[#This Row],[Adult2]]+Table3[[#This Row],[Child2]]=Table3[[#This Row],[Max. '# guest with extra bed]],CONCATENATE(Table3[[#This Row],[Adult2]],\"AD\",\"+\",Table3[[#This Row],[Child2]],\"CH\"),IF(AND(Table3[[#This Row],[Adult2]]=\"\",Table3[[#This Row],[Child2]]=\"\"),\"\",\"ERROR\")),\"\")","v":""},null,{"$f":"IF(Table3[[#This Row],[Do you want to include this Combination in OTA''s?]]<>\"\",\"YES\",\"\")","v":""},null,{"$f":"IF(Table3[[#This Row],[Do you want to include this Combination in OTA''s?]]=\"YES\",IF(Table3[[#This Row],[Is this Combination already in OTA''s?]]=\"NO\",\"UPLOAD COMBINATION IN OTAS\",\"-\"),IF(Table3[[#This Row],[Is this Combination already in OTA''s?]]=\"YES\",\"DELETE COMBINATION\",\"-\"))","v":"-"},null,null,null,0]
[null,{"$f":"IF(LEN(D42&I42)>2,'1) Hotel information'!$C$4,\"\")","v":""},{"$f":"IF(LEN(D42&I42)>2,'1) Hotel information'!$C$5,\"\")","v":""},{"$f":"IFERROR(INDEX(CurrentRoomConfiguration,MATCH(,COUNTIF($D$11:D41,CurrentRoomConfiguration),0)),)","v":0},{"$f":"IF(Table3[[#This Row],[Current SubRoom Type \n(TMS)]]=0,\"\",LEFT(Table3[[#This Row],[Current SubRoom Type \n(TMS)]],6))","v":""},"",{"$f":"IFERROR(INDEX(Table1[Room description],MATCH(D42,Table1[TMS],0)),\"\")","v":""},{"$f":"IFERROR(INDEX(Table1[Bedding],MATCH(D42,Table1[TMS],0)),\"\")","v":""},{"$f":"IFERROR(INDEX(NewRoomConfiguration,MATCH(,COUNTIF($I$11:I41,NewRoomConfiguration),0)),)","v":0},{"$f":"IF(Table3[[#This Row],[New SubRoom Type \n(TMS)]]=0,\"\",LEFT(Table3[[#This Row],[New SubRoom Type \n(TMS)]],6))","v":""},"",null,{"$f":"IF(Table3[[#This Row],[Publish on OTA?]]<>\"\",\"YES\",\"\")","v":""},{"$f":"IFERROR(IF(AND(VLOOKUP(Table3[[#This Row],[New Room Type (TMS)]],Sheet3!$H$10:$I$28,2,FALSE)<5,Table3[[#This Row],[Publish on OTA?]]=\"yes\"),\"It's not posible to publish on OTA, please contact with Laura or Roberto\",\"\"),\"\")","v":""},{"$f":"IFERROR(INDEX(Table1[Room description],MATCH(I42,Table1[TMS],0)),\"\")","v":""},null,"",{"$f":"IFERROR(INDEX(Table1[Bedding],MATCH(I42,Table1[TMS],0)),\"\")","v":""},null,{"$f":"IF(IFERROR(VLOOKUP($I$12:$I$1048576,MAX!$A:$B,2,FALSE)+Table3[[#This Row],[Max. '# guest \nwithout extra bed]],Table3[[#This Row],[Max. '# guest \nwithout extra bed]])=0,\"\",IFERROR(VLOOKUP($I$12:$I$1048576,MAX!$A:$B,2,FALSE)+Table3[[#This Row],[Max. '# guest \nwithout extra bed]],Table3[[#This Row],[Max. '# guest \nwithout extra bed]]))","v":""},{"$f":"IFERROR(IF(VLOOKUP(Table3[[#This Row],[New SubRoom Type \n(TMS)]],'1) Hotel information'!$B$54:$D$77,2,FALSE)>VLOOKUP(Table3[[#This Row],[New SubRoom Type \n(TMS)]],'1) Hotel information'!$B$54:$D$77,3,FALSE),\"ROLLAWAY\", IF(VLOOKUP(Table3[[#This Row],[New SubRoom Type \n(TMS)]],'1) Hotel information'!$B$54:$D$77,2,FALSE)<VLOOKUP(Table3[[#This Row],[New SubRoom Type \n(TMS)]],'1) Hotel information'!$B$54:$D$77,3,FALSE),\"SOFABED\",\"\")),\"\")","v":""},null,{"$f":"IFERROR(INDEX(Table1[View?],MATCH(I42,Table1[TMS],0)),\"\")","v":""},{"$f":"IFERROR(INDEX(Table1[Terrace?],MATCH(I42,Table1[TMS],0)),\"\")","v":""},{"$f":"IF(OR(Table3[[#This Row],[View]]=\"Yes\",Table3[[#This Row],[Terrace]]=\"Yes\"),\"Please review your Room Type description\",\"\")","v":""},{"$f":"IF(OR(LEN(Table3[[#This Row],[Room types to be created]])>1,LEN(Table3[[#This Row],[Room types to be deleted]])>1),\"Yes\",\"\")","v":""},"","",{"$f":"IF(LEN(Table3[[#This Row],[New SubRoom Type \n(TMS)]])>1,Table3[[#This Row],[New\ninventory]]+(ROW()*0.000000001),\"\")","v":""},{"$f":"IF(LEN(Table3[[#This Row],[New SubRoom Type \n(TMS)]])>1,MAX($AD$12:AD41)+1,\"\")","v":""},{"$f":"Table3[[#This Row],[New Room type description]]&Table3[[#This Row],[New\ninventory]]","v":""},null,null,{"$f":"IFERROR(IF(Table3[[#This Row],[Adult1]]+Table3[[#This Row],[Child1]]=Table3[[#This Row],[Max. '# guest with extra bed]],CONCATENATE(Table3[[#This Row],[Adult1]],\"AD\",\"+\",Table3[[#This Row],[Child1]],\"CH\"),IF(AND(Table3[[#This Row],[Adult1]]=\"\",Table3[[#This Row],[Child1]]=\"\"),\"\",\"ERROR\")),\"\")","v":""},null,null,{"$f":"IFERROR(IF(Table3[[#This Row],[Adult2]]+Table3[[#This Row],[Child2]]=Table3[[#This Row],[Max. '# guest with extra bed]],CONCATENATE(Table3[[#This Row],[Adult2]],\"AD\",\"+\",Table3[[#This Row],[Child2]],\"CH\"),IF(AND(Table3[[#This Row],[Adult2]]=\"\",Table3[[#This Row],[Child2]]=\"\"),\"\",\"ERROR\")),\"\")","v":""},null,{"$f":"IF(Table3[[#This Row],[Do you want to include this Combination in OTA''s?]]<>\"\",\"YES\",\"\")","v":""},null,{"$f":"IF(Table3[[#This Row],[Do you want to include this Combination in OTA''s?]]=\"YES\",IF(Table3[[#This Row],[Is this Combination already in OTA''s?]]=\"NO\",\"UPLOAD COMBINATION IN OTAS\",\"-\"),IF(Table3[[#This Row],[Is this Combination already in OTA''s?]]=\"YES\",\"DELETE COMBINATION\",\"-\"))","v":"-"},null,null,null,0]
[null,{"$f":"IF(LEN(D43&I43)>2,'1) Hotel information'!$C$4,\"\")","v":""},{"$f":"IF(LEN(D43&I43)>2,'1) Hotel information'!$C$5,\"\")","v":""},{"$f":"IFERROR(INDEX(CurrentRoomConfiguration,MATCH(,COUNTIF($D$11:D42,CurrentRoomConfiguration),0)),)","v":0},{"$f":"IF(Table3[[#This Row],[Current SubRoom Type \n(TMS)]]=0,\"\",LEFT(Table3[[#This Row],[Current SubRoom Type \n(TMS)]],6))","v":""},"",{"$f":"IFERROR(INDEX(Table1[Room description],MATCH(D43,Table1[TMS],0)),\"\")","v":""},{"$f":"IFERROR(INDEX(Table1[Bedding],MATCH(D43,Table1[TMS],0)),\"\")","v":""},{"$f":"IFERROR(INDEX(NewRoomConfiguration,MATCH(,COUNTIF($I$11:I42,NewRoomConfiguration),0)),)","v":0},{"$f":"IF(Table3[[#This Row],[New SubRoom Type \n(TMS)]]=0,\"\",LEFT(Table3[[#This Row],[New SubRoom Type \n(TMS)]],6))","v":""},"",null,{"$f":"IF(Table3[[#This Row],[Publish on OTA?]]<>\"\",\"YES\",\"\")","v":""},{"$f":"IFERROR(IF(AND(VLOOKUP(Table3[[#This Row],[New Room Type (TMS)]],Sheet3!$H$10:$I$28,2,FALSE)<5,Table3[[#This Row],[Publish on OTA?]]=\"yes\"),\"It's not posible to publish on OTA, please contact with Laura or Roberto\",\"\"),\"\")","v":""},{"$f":"IFERROR(INDEX(Table1[Room description],MATCH(I43,Table1[TMS],0)),\"\")","v":""},null,"",{"$f":"IFERROR(INDEX(Table1[Bedding],MATCH(I43,Table1[TMS],0)),\"\")","v":""},null,{"$f":"IF(IFERROR(VLOOKUP($I$12:$I$1048576,MAX!$A:$B,2,FALSE)+Table3[[#This Row],[Max. '# guest \nwithout extra bed]],Table3[[#This Row],[Max. '# guest \nwithout extra bed]])=0,\"\",IFERROR(VLOOKUP($I$12:$I$1048576,MAX!$A:$B,2,FALSE)+Table3[[#This Row],[Max. '# guest \nwithout extra bed]],Table3[[#This Row],[Max. '# guest \nwithout extra bed]]))","v":""},{"$f":"IFERROR(IF(VLOOKUP(Table3[[#This Row],[New SubRoom Type \n(TMS)]],'1) Hotel information'!$B$54:$D$77,2,FALSE)>VLOOKUP(Table3[[#This Row],[New SubRoom Type \n(TMS)]],'1) Hotel information'!$B$54:$D$77,3,FALSE),\"ROLLAWAY\", IF(VLOOKUP(Table3[[#This Row],[New SubRoom Type \n(TMS)]],'1) Hotel information'!$B$54:$D$77,2,FALSE)<VLOOKUP(Table3[[#This Row],[New SubRoom Type \n(TMS)]],'1) Hotel information'!$B$54:$D$77,3,FALSE),\"SOFABED\",\"\")),\"\")","v":""},null,{"$f":"IFERROR(INDEX(Table1[View?],MATCH(I43,Table1[TMS],0)),\"\")","v":""},{"$f":"IFERROR(INDEX(Table1[Terrace?],MATCH(I43,Table1[TMS],0)),\"\")","v":""},{"$f":"IF(OR(Table3[[#This Row],[View]]=\"Yes\",Table3[[#This Row],[Terrace]]=\"Yes\"),\"Please review your Room Type description\",\"\")","v":""},{"$f":"IF(OR(LEN(Table3[[#This Row],[Room types to be created]])>1,LEN(Table3[[#This Row],[Room types to be deleted]])>1),\"Yes\",\"\")","v":""},"","",{"$f":"IF(LEN(Table3[[#This Row],[New SubRoom Type \n(TMS)]])>1,Table3[[#This Row],[New\ninventory]]+(ROW()*0.000000001),\"\")","v":""},{"$f":"IF(LEN(Table3[[#This Row],[New SubRoom Type \n(TMS)]])>1,MAX($AD$12:AD42)+1,\"\")","v":""},{"$f":"Table3[[#This Row],[New Room type description]]&Table3[[#This Row],[New\ninventory]]","v":""},null,null,{"$f":"IFERROR(IF(Table3[[#This Row],[Adult1]]+Table3[[#This Row],[Child1]]=Table3[[#This Row],[Max. '# guest with extra bed]],CONCATENATE(Table3[[#This Row],[Adult1]],\"AD\",\"+\",Table3[[#This Row],[Child1]],\"CH\"),IF(AND(Table3[[#This Row],[Adult1]]=\"\",Table3[[#This Row],[Child1]]=\"\"),\"\",\"ERROR\")),\"\")","v":""},null,null,{"$f":"IFERROR(IF(Table3[[#This Row],[Adult2]]+Table3[[#This Row],[Child2]]=Table3[[#This Row],[Max. '# guest with extra bed]],CONCATENATE(Table3[[#This Row],[Adult2]],\"AD\",\"+\",Table3[[#This Row],[Child2]],\"CH\"),IF(AND(Table3[[#This Row],[Adult2]]=\"\",Table3[[#This Row],[Child2]]=\"\"),\"\",\"ERROR\")),\"\")","v":""},null,{"$f":"IF(Table3[[#This Row],[Do you want to include this Combination in OTA''s?]]<>\"\",\"YES\",\"\")","v":""},null,{"$f":"IF(Table3[[#This Row],[Do you want to include this Combination in OTA''s?]]=\"YES\",IF(Table3[[#This Row],[Is this Combination already in OTA''s?]]=\"NO\",\"UPLOAD COMBINATION IN OTAS\",\"-\"),IF(Table3[[#This Row],[Is this Combination already in OTA''s?]]=\"YES\",\"DELETE COMBINATION\",\"-\"))","v":"-"},null,null,null,0]
[null,{"$f":"IF(LEN(D44&I44)>2,'1) Hotel information'!$C$4,\"\")","v":""},{"$f":"IF(LEN(D44&I44)>2,'1) Hotel information'!$C$5,\"\")","v":""},{"$f":"IFERROR(INDEX(CurrentRoomConfiguration,MATCH(,COUNTIF($D$11:D43,CurrentRoomConfiguration),0)),)","v":0},{"$f":"IF(Table3[[#This Row],[Current SubRoom Type \n(TMS)]]=0,\"\",LEFT(Table3[[#This Row],[Current SubRoom Type \n(TMS)]],6))","v":""},"",{"$f":"IFERROR(INDEX(Table1[Room description],MATCH(D44,Table1[TMS],0)),\"\")","v":""},{"$f":"IFERROR(INDEX(Table1[Bedding],MATCH(D44,Table1[TMS],0)),\"\")","v":""},{"$f":"IFERROR(INDEX(NewRoomConfiguration,MATCH(,COUNTIF($I$11:I43,NewRoomConfiguration),0)),)","v":0},{"$f":"IF(Table3[[#This Row],[New SubRoom Type \n(TMS)]]=0,\"\",LEFT(Table3[[#This Row],[New SubRoom Type \n(TMS)]],6))","v":""},"",null,{"$f":"IF(Table3[[#This Row],[Publish on OTA?]]<>\"\",\"YES\",\"\")","v":""},{"$f":"IFERROR(IF(AND(VLOOKUP(Table3[[#This Row],[New Room Type (TMS)]],Sheet3!$H$10:$I$28,2,FALSE)<5,Table3[[#This Row],[Publish on OTA?]]=\"yes\"),\"It's not posible to publish on OTA, please contact with Laura or Roberto\",\"\"),\"\")","v":""},{"$f":"IFERROR(INDEX(Table1[Room description],MATCH(I44,Table1[TMS],0)),\"\")","v":""},null,"",{"$f":"IFERROR(INDEX(Table1[Bedding],MATCH(I44,Table1[TMS],0)),\"\")","v":""},null,{"$f":"IF(IFERROR(VLOOKUP($I$12:$I$1048576,MAX!$A:$B,2,FALSE)+Table3[[#This Row],[Max. '# guest \nwithout extra bed]],Table3[[#This Row],[Max. '# guest \nwithout extra bed]])=0,\"\",IFERROR(VLOOKUP($I$12:$I$1048576,MAX!$A:$B,2,FALSE)+Table3[[#This Row],[Max. '# guest \nwithout extra bed]],Table3[[#This Row],[Max. '# guest \nwithout extra bed]]))","v":""},{"$f":"IFERROR(IF(VLOOKUP(Table3[[#This Row],[New SubRoom Type \n(TMS)]],'1) Hotel information'!$B$54:$D$77,2,FALSE)>VLOOKUP(Table3[[#This Row],[New SubRoom Type \n(TMS)]],'1) Hotel information'!$B$54:$D$77,3,FALSE),\"ROLLAWAY\", IF(VLOOKUP(Table3[[#This Row],[New SubRoom Type \n(TMS)]],'1) Hotel information'!$B$54:$D$77,2,FALSE)<VLOOKUP(Table3[[#This Row],[New SubRoom Type \n(TMS)]],'1) Hotel information'!$B$54:$D$77,3,FALSE),\"SOFABED\",\"\")),\"\")","v":""},null,{"$f":"IFERROR(INDEX(Table1[View?],MATCH(I44,Table1[TMS],0)),\"\")","v":""},{"$f":"IFERROR(INDEX(Table1[Terrace?],MATCH(I44,Table1[TMS],0)),\"\")","v":""},{"$f":"IF(OR(Table3[[#This Row],[View]]=\"Yes\",Table3[[#This Row],[Terrace]]=\"Yes\"),\"Please review your Room Type description\",\"\")","v":""},{"$f":"IF(OR(LEN(Table3[[#This Row],[Room types to be created]])>1,LEN(Table3[[#This Row],[Room types to be deleted]])>1),\"Yes\",\"\")","v":""},"","",{"$f":"IF(LEN(Table3[[#This Row],[New SubRoom Type \n(TMS)]])>1,Table3[[#This Row],[New\ninventory]]+(ROW()*0.000000001),\"\")","v":""},{"$f":"IF(LEN(Table3[[#This Row],[New SubRoom Type \n(TMS)]])>1,MAX($AD$12:AD43)+1,\"\")","v":""},{"$f":"Table3[[#This Row],[New Room type description]]&Table3[[#This Row],[New\ninventory]]","v":""},null,null,{"$f":"IFERROR(IF(Table3[[#This Row],[Adult1]]+Table3[[#This Row],[Child1]]=Table3[[#This Row],[Max. '# guest with extra bed]],CONCATENATE(Table3[[#This Row],[Adult1]],\"AD\",\"+\",Table3[[#This Row],[Child1]],\"CH\"),IF(AND(Table3[[#This Row],[Adult1]]=\"\",Table3[[#This Row],[Child1]]=\"\"),\"\",\"ERROR\")),\"\")","v":""},null,null,{"$f":"IFERROR(IF(Table3[[#This Row],[Adult2]]+Table3[[#This Row],[Child2]]=Table3[[#This Row],[Max. '# guest with extra bed]],CONCATENATE(Table3[[#This Row],[Adult2]],\"AD\",\"+\",Table3[[#This Row],[Child2]],\"CH\"),IF(AND(Table3[[#This Row],[Adult2]]=\"\",Table3[[#This Row],[Child2]]=\"\"),\"\",\"ERROR\")),\"\")","v":""},null,{"$f":"IF(Table3[[#This Row],[Do you want to include this Combination in OTA''s?]]<>\"\",\"YES\",\"\")","v":""},null,{"$f":"IF(Table3[[#This Row],[Do you want to include this Combination in OTA''s?]]=\"YES\",IF(Table3[[#This Row],[Is this Combination already in OTA''s?]]=\"NO\",\"UPLOAD COMBINATION IN OTAS\",\"-\"),IF(Table3[[#This Row],[Is this Combination already in OTA''s?]]=\"YES\",\"DELETE COMBINATION\",\"-\"))","v":"-"},null,null,null,0]
[null,{"$f":"IF(LEN(D45&I45)>2,'1) Hotel information'!$C$4,\"\")","v":""},{"$f":"IF(LEN(D45&I45)>2,'1) Hotel information'!$C$5,\"\")","v":""},{"$f":"IFERROR(INDEX(CurrentRoomConfiguration,MATCH(,COUNTIF($D$11:D44,CurrentRoomConfiguration),0)),)","v":0},{"$f":"IF(Table3[[#This Row],[Current SubRoom Type \n(TMS)]]=0,\"\",LEFT(Table3[[#This Row],[Current SubRoom Type \n(TMS)]],6))","v":""},"",{"$f":"IFERROR(INDEX(Table1[Room description],MATCH(D45,Table1[TMS],0)),\"\")","v":""},{"$f":"IFERROR(INDEX(Table1[Bedding],MATCH(D45,Table1[TMS],0)),\"\")","v":""},{"$f":"IFERROR(INDEX(NewRoomConfiguration,MATCH(,COUNTIF($I$11:I44,NewRoomConfiguration),0)),)","v":0},{"$f":"IF(Table3[[#This Row],[New SubRoom Type \n(TMS)]]=0,\"\",LEFT(Table3[[#This Row],[New SubRoom Type \n(TMS)]],6))","v":""},"",null,{"$f":"IF(Table3[[#This Row],[Publish on OTA?]]<>\"\",\"YES\",\"\")","v":""},{"$f":"IFERROR(IF(AND(VLOOKUP(Table3[[#This Row],[New Room Type (TMS)]],Sheet3!$H$10:$I$28,2,FALSE)<5,Table3[[#This Row],[Publish on OTA?]]=\"yes\"),\"It's not posible to publish on OTA, please contact with Laura or Roberto\",\"\"),\"\")","v":""},{"$f":"IFERROR(INDEX(Table1[Room description],MATCH(I45,Table1[TMS],0)),\"\")","v":""},null,"",{"$f":"IFERROR(INDEX(Table1[Bedding],MATCH(I45,Table1[TMS],0)),\"\")","v":""},null,{"$f":"IF(IFERROR(VLOOKUP($I$12:$I$1048576,MAX!$A:$B,2,FALSE)+Table3[[#This Row],[Max. '# guest \nwithout extra bed]],Table3[[#This Row],[Max. '# guest \nwithout extra bed]])=0,\"\",IFERROR(VLOOKUP($I$12:$I$1048576,MAX!$A:$B,2,FALSE)+Table3[[#This Row],[Max. '# guest \nwithout extra bed]],Table3[[#This Row],[Max. '# guest \nwithout extra bed]]))","v":""},{"$f":"IFERROR(IF(VLOOKUP(Table3[[#This Row],[New SubRoom Type \n(TMS)]],'1) Hotel information'!$B$54:$D$77,2,FALSE)>VLOOKUP(Table3[[#This Row],[New SubRoom Type \n(TMS)]],'1) Hotel information'!$B$54:$D$77,3,FALSE),\"ROLLAWAY\", IF(VLOOKUP(Table3[[#This Row],[New SubRoom Type \n(TMS)]],'1) Hotel information'!$B$54:$D$77,2,FALSE)<VLOOKUP(Table3[[#This Row],[New SubRoom Type \n(TMS)]],'1) Hotel information'!$B$54:$D$77,3,FALSE),\"SOFABED\",\"\")),\"\")","v":""},null,{"$f":"IFERROR(INDEX(Table1[View?],MATCH(I45,Table1[TMS],0)),\"\")","v":""},{"$f":"IFERROR(INDEX(Table1[Terrace?],MATCH(I45,Table1[TMS],0)),\"\")","v":""},{"$f":"IF(OR(Table3[[#This Row],[View]]=\"Yes\",Table3[[#This Row],[Terrace]]=\"Yes\"),\"Please review your Room Type description\",\"\")","v":""},{"$f":"IF(OR(LEN(Table3[[#This Row],[Room types to be created]])>1,LEN(Table3[[#This Row],[Room types to be deleted]])>1),\"Yes\",\"\")","v":""},"","",{"$f":"IF(LEN(Table3[[#This Row],[New SubRoom Type \n(TMS)]])>1,Table3[[#This Row],[New\ninventory]]+(ROW()*0.000000001),\"\")","v":""},{"$f":"IF(LEN(Table3[[#This Row],[New SubRoom Type \n(TMS)]])>1,MAX($AD$12:AD44)+1,\"\")","v":""},{"$f":"Table3[[#This Row],[New Room type description]]&Table3[[#This Row],[New\ninventory]]","v":""},null,null,{"$f":"IFERROR(IF(Table3[[#This Row],[Adult1]]+Table3[[#This Row],[Child1]]=Table3[[#This Row],[Max. '# guest with extra bed]],CONCATENATE(Table3[[#This Row],[Adult1]],\"AD\",\"+\",Table3[[#This Row],[Child1]],\"CH\"),IF(AND(Table3[[#This Row],[Adult1]]=\"\",Table3[[#This Row],[Child1]]=\"\"),\"\",\"ERROR\")),\"\")","v":""},null,null,{"$f":"IFERROR(IF(Table3[[#This Row],[Adult2]]+Table3[[#This Row],[Child2]]=Table3[[#This Row],[Max. '# guest with extra bed]],CONCATENATE(Table3[[#This Row],[Adult2]],\"AD\",\"+\",Table3[[#This Row],[Child2]],\"CH\"),IF(AND(Table3[[#This Row],[Adult2]]=\"\",Table3[[#This Row],[Child2]]=\"\"),\"\",\"ERROR\")),\"\")","v":""},null,{"$f":"IF(Table3[[#This Row],[Do you want to include this Combination in OTA''s?]]<>\"\",\"YES\",\"\")","v":""},null,{"$f":"IF(Table3[[#This Row],[Do you want to include this Combination in OTA''s?]]=\"YES\",IF(Table3[[#This Row],[Is this Combination already in OTA''s?]]=\"NO\",\"UPLOAD COMBINATION IN OTAS\",\"-\"),IF(Table3[[#This Row],[Is this Combination already in OTA''s?]]=\"YES\",\"DELETE COMBINATION\",\"-\"))","v":"-"},null,null,null,0]
[null,{"$f":"IF(LEN(D46&I46)>2,'1) Hotel information'!$C$4,\"\")","v":""},{"$f":"IF(LEN(D46&I46)>2,'1) Hotel information'!$C$5,\"\")","v":""},{"$f":"IFERROR(INDEX(CurrentRoomConfiguration,MATCH(,COUNTIF($D$11:D45,CurrentRoomConfiguration),0)),)","v":0},{"$f":"IF(Table3[[#This Row],[Current SubRoom Type \n(TMS)]]=0,\"\",LEFT(Table3[[#This Row],[Current SubRoom Type \n(TMS)]],6))","v":""},"",{"$f":"IFERROR(INDEX(Table1[Room description],MATCH(D46,Table1[TMS],0)),\"\")","v":""},{"$f":"IFERROR(INDEX(Table1[Bedding],MATCH(D46,Table1[TMS],0)),\"\")","v":""},{"$f":"IFERROR(INDEX(NewRoomConfiguration,MATCH(,COUNTIF($I$11:I45,NewRoomConfiguration),0)),)","v":0},{"$f":"IF(Table3[[#This Row],[New SubRoom Type \n(TMS)]]=0,\"\",LEFT(Table3[[#This Row],[New SubRoom Type \n(TMS)]],6))","v":""},"",null,{"$f":"IF(Table3[[#This Row],[Publish on OTA?]]<>\"\",\"YES\",\"\")","v":""},{"$f":"IFERROR(IF(AND(VLOOKUP(Table3[[#This Row],[New Room Type (TMS)]],Sheet3!$H$10:$I$28,2,FALSE)<5,Table3[[#This Row],[Publish on OTA?]]=\"yes\"),\"It's not posible to publish on OTA, please contact with Laura or Roberto\",\"\"),\"\")","v":""},{"$f":"IFERROR(INDEX(Table1[Room description],MATCH(I46,Table1[TMS],0)),\"\")","v":""},null,"",{"$f":"IFERROR(INDEX(Table1[Bedding],MATCH(I46,Table1[TMS],0)),\"\")","v":""},null,{"$f":"IF(IFERROR(VLOOKUP($I$12:$I$1048576,MAX!$A:$B,2,FALSE)+Table3[[#This Row],[Max. '# guest \nwithout extra bed]],Table3[[#This Row],[Max. '# guest \nwithout extra bed]])=0,\"\",IFERROR(VLOOKUP($I$12:$I$1048576,MAX!$A:$B,2,FALSE)+Table3[[#This Row],[Max. '# guest \nwithout extra bed]],Table3[[#This Row],[Max. '# guest \nwithout extra bed]]))","v":""},{"$f":"IFERROR(IF(VLOOKUP(Table3[[#This Row],[New SubRoom Type \n(TMS)]],'1) Hotel information'!$B$54:$D$77,2,FALSE)>VLOOKUP(Table3[[#This Row],[New SubRoom Type \n(TMS)]],'1) Hotel information'!$B$54:$D$77,3,FALSE),\"ROLLAWAY\", IF(VLOOKUP(Table3[[#This Row],[New SubRoom Type \n(TMS)]],'1) Hotel information'!$B$54:$D$77,2,FALSE)<VLOOKUP(Table3[[#This Row],[New SubRoom Type \n(TMS)]],'1) Hotel information'!$B$54:$D$77,3,FALSE),\"SOFABED\",\"\")),\"\")","v":""},null,{"$f":"IFERROR(INDEX(Table1[View?],MATCH(I46,Table1[TMS],0)),\"\")","v":""},{"$f":"IFERROR(INDEX(Table1[Terrace?],MATCH(I46,Table1[TMS],0)),\"\")","v":""},{"$f":"IF(OR(Table3[[#This Row],[View]]=\"Yes\",Table3[[#This Row],[Terrace]]=\"Yes\"),\"Please review your Room Type description\",\"\")","v":""},{"$f":"IF(OR(LEN(Table3[[#This Row],[Room types to be created]])>1,LEN(Table3[[#This Row],[Room types to be deleted]])>1),\"Yes\",\"\")","v":""},"","",{"$f":"IF(LEN(Table3[[#This Row],[New SubRoom Type \n(TMS)]])>1,Table3[[#This Row],[New\ninventory]]+(ROW()*0.000000001),\"\")","v":""},{"$f":"IF(LEN(Table3[[#This Row],[New SubRoom Type \n(TMS)]])>1,MAX($AD$12:AD45)+1,\"\")","v":""},{"$f":"Table3[[#This Row],[New Room type description]]&Table3[[#This Row],[New\ninventory]]","v":""},null,null,{"$f":"IFERROR(IF(Table3[[#This Row],[Adult1]]+Table3[[#This Row],[Child1]]=Table3[[#This Row],[Max. '# guest with extra bed]],CONCATENATE(Table3[[#This Row],[Adult1]],\"AD\",\"+\",Table3[[#This Row],[Child1]],\"CH\"),IF(AND(Table3[[#This Row],[Adult1]]=\"\",Table3[[#This Row],[Child1]]=\"\"),\"\",\"ERROR\")),\"\")","v":""},null,null,{"$f":"IFERROR(IF(Table3[[#This Row],[Adult2]]+Table3[[#This Row],[Child2]]=Table3[[#This Row],[Max. '# guest with extra bed]],CONCATENATE(Table3[[#This Row],[Adult2]],\"AD\",\"+\",Table3[[#This Row],[Child2]],\"CH\"),IF(AND(Table3[[#This Row],[Adult2]]=\"\",Table3[[#This Row],[Child2]]=\"\"),\"\",\"ERROR\")),\"\")","v":""},null,{"$f":"IF(Table3[[#This Row],[Do you want to include this Combination in OTA''s?]]<>\"\",\"YES\",\"\")","v":""},null,{"$f":"IF(Table3[[#This Row],[Do you want to include this Combination in OTA''s?]]=\"YES\",IF(Table3[[#This Row],[Is this Combination already in OTA''s?]]=\"NO\",\"UPLOAD COMBINATION IN OTAS\",\"-\"),IF(Table3[[#This Row],[Is this Combination already in OTA''s?]]=\"YES\",\"DELETE COMBINATION\",\"-\"))","v":"-"},null,null,null,0]
[null,{"$f":"IF(LEN(D47&I47)>2,'1) Hotel information'!$C$4,\"\")","v":""},{"$f":"IF(LEN(D47&I47)>2,'1) Hotel information'!$C$5,\"\")","v":""},{"$f":"IFERROR(INDEX(CurrentRoomConfiguration,MATCH(,COUNTIF($D$11:D46,CurrentRoomConfiguration),0)),)","v":0},{"$f":"IF(Table3[[#This Row],[Current SubRoom Type \n(TMS)]]=0,\"\",LEFT(Table3[[#This Row],[Current SubRoom Type \n(TMS)]],6))","v":""},"",{"$f":"IFERROR(INDEX(Table1[Room description],MATCH(D47,Table1[TMS],0)),\"\")","v":""},{"$f":"IFERROR(INDEX(Table1[Bedding],MATCH(D47,Table1[TMS],0)),\"\")","v":""},{"$f":"IFERROR(INDEX(NewRoomConfiguration,MATCH(,COUNTIF($I$11:I46,NewRoomConfiguration),0)),)","v":0},{"$f":"IF(Table3[[#This Row],[New SubRoom Type \n(TMS)]]=0,\"\",LEFT(Table3[[#This Row],[New SubRoom Type \n(TMS)]],6))","v":""},"",null,{"$f":"IF(Table3[[#This Row],[Publish on OTA?]]<>\"\",\"YES\",\"\")","v":""},{"$f":"IFERROR(IF(AND(VLOOKUP(Table3[[#This Row],[New Room Type (TMS)]],Sheet3!$H$10:$I$28,2,FALSE)<5,Table3[[#This Row],[Publish on OTA?]]=\"yes\"),\"It's not posible to publish on OTA, please contact with Laura or Roberto\",\"\"),\"\")","v":""},{"$f":"IFERROR(INDEX(Table1[Room description],MATCH(I47,Table1[TMS],0)),\"\")","v":""},null,"",{"$f":"IFERROR(INDEX(Table1[Bedding],MATCH(I47,Table1[TMS],0)),\"\")","v":""},null,{"$f":"IF(IFERROR(VLOOKUP($I$12:$I$1048576,MAX!$A:$B,2,FALSE)+Table3[[#This Row],[Max. '# guest \nwithout extra bed]],Table3[[#This Row],[Max. '# guest \nwithout extra bed]])=0,\"\",IFERROR(VLOOKUP($I$12:$I$1048576,MAX!$A:$B,2,FALSE)+Table3[[#This Row],[Max. '# guest \nwithout extra bed]],Table3[[#This Row],[Max. '# guest \nwithout extra bed]]))","v":""},{"$f":"IFERROR(IF(VLOOKUP(Table3[[#This Row],[New SubRoom Type \n(TMS)]],'1) Hotel information'!$B$54:$D$77,2,FALSE)>VLOOKUP(Table3[[#This Row],[New SubRoom Type \n(TMS)]],'1) Hotel information'!$B$54:$D$77,3,FALSE),\"ROLLAWAY\", IF(VLOOKUP(Table3[[#This Row],[New SubRoom Type \n(TMS)]],'1) Hotel information'!$B$54:$D$77,2,FALSE)<VLOOKUP(Table3[[#This Row],[New SubRoom Type \n(TMS)]],'1) Hotel information'!$B$54:$D$77,3,FALSE),\"SOFABED\",\"\")),\"\")","v":""},null,{"$f":"IFERROR(INDEX(Table1[View?],MATCH(I47,Table1[TMS],0)),\"\")","v":""},{"$f":"IFERROR(INDEX(Table1[Terrace?],MATCH(I47,Table1[TMS],0)),\"\")","v":""},{"$f":"IF(OR(Table3[[#This Row],[View]]=\"Yes\",Table3[[#This Row],[Terrace]]=\"Yes\"),\"Please review your Room Type description\",\"\")","v":""},{"$f":"IF(OR(LEN(Table3[[#This Row],[Room types to be created]])>1,LEN(Table3[[#This Row],[Room types to be deleted]])>1),\"Yes\",\"\")","v":""},"","",{"$f":"IF(LEN(Table3[[#This Row],[New SubRoom Type \n(TMS)]])>1,Table3[[#This Row],[New\ninventory]]+(ROW()*0.000000001),\"\")","v":""},{"$f":"IF(LEN(Table3[[#This Row],[New SubRoom Type \n(TMS)]])>1,MAX($AD$12:AD46)+1,\"\")","v":""},{"$f":"Table3[[#This Row],[New Room type description]]&Table3[[#This Row],[New\ninventory]]","v":""},null,null,{"$f":"IFERROR(IF(Table3[[#This Row],[Adult1]]+Table3[[#This Row],[Child1]]=Table3[[#This Row],[Max. '# guest with extra bed]],CONCATENATE(Table3[[#This Row],[Adult1]],\"AD\",\"+\",Table3[[#This Row],[Child1]],\"CH\"),IF(AND(Table3[[#This Row],[Adult1]]=\"\",Table3[[#This Row],[Child1]]=\"\"),\"\",\"ERROR\")),\"\")","v":""},null,null,{"$f":"IFERROR(IF(Table3[[#This Row],[Adult2]]+Table3[[#This Row],[Child2]]=Table3[[#This Row],[Max. '# guest with extra bed]],CONCATENATE(Table3[[#This Row],[Adult2]],\"AD\",\"+\",Table3[[#This Row],[Child2]],\"CH\"),IF(AND(Table3[[#This Row],[Adult2]]=\"\",Table3[[#This Row],[Child2]]=\"\"),\"\",\"ERROR\")),\"\")","v":""},null,{"$f":"IF(Table3[[#This Row],[Do you want to include this Combination in OTA''s?]]<>\"\",\"YES\",\"\")","v":""},null,{"$f":"IF(Table3[[#This Row],[Do you want to include this Combination in OTA''s?]]=\"YES\",IF(Table3[[#This Row],[Is this Combination already in OTA''s?]]=\"NO\",\"UPLOAD COMBINATION IN OTAS\",\"-\"),IF(Table3[[#This Row],[Is this Combination already in OTA''s?]]=\"YES\",\"DELETE COMBINATION\",\"-\"))","v":"-"},null,null,null,0]
[null,{"$f":"IF(LEN(D48&I48)>2,'1) Hotel information'!$C$4,\"\")","v":""},{"$f":"IF(LEN(D48&I48)>2,'1) Hotel information'!$C$5,\"\")","v":""},{"$f":"IFERROR(INDEX(CurrentRoomConfiguration,MATCH(,COUNTIF($D$11:D47,CurrentRoomConfiguration),0)),)","v":0},{"$f":"IF(Table3[[#This Row],[Current SubRoom Type \n(TMS)]]=0,\"\",LEFT(Table3[[#This Row],[Current SubRoom Type \n(TMS)]],6))","v":""},"",{"$f":"IFERROR(INDEX(Table1[Room description],MATCH(D48,Table1[TMS],0)),\"\")","v":""},{"$f":"IFERROR(INDEX(Table1[Bedding],MATCH(D48,Table1[TMS],0)),\"\")","v":""},{"$f":"IFERROR(INDEX(NewRoomConfiguration,MATCH(,COUNTIF($I$11:I47,NewRoomConfiguration),0)),)","v":0},{"$f":"IF(Table3[[#This Row],[New SubRoom Type \n(TMS)]]=0,\"\",LEFT(Table3[[#This Row],[New SubRoom Type \n(TMS)]],6))","v":""},"",null,{"$f":"IF(Table3[[#This Row],[Publish on OTA?]]<>\"\",\"YES\",\"\")","v":""},{"$f":"IFERROR(IF(AND(VLOOKUP(Table3[[#This Row],[New Room Type (TMS)]],Sheet3!$H$10:$I$28,2,FALSE)<5,Table3[[#This Row],[Publish on OTA?]]=\"yes\"),\"It's not posible to publish on OTA, please contact with Laura or Roberto\",\"\"),\"\")","v":""},{"$f":"IFERROR(INDEX(Table1[Room description],MATCH(I48,Table1[TMS],0)),\"\")","v":""},null,"",{"$f":"IFERROR(INDEX(Table1[Bedding],MATCH(I48,Table1[TMS],0)),\"\")","v":""},null,{"$f":"IF(IFERROR(VLOOKUP($I$12:$I$1048576,MAX!$A:$B,2,FALSE)+Table3[[#This Row],[Max. '# guest \nwithout extra bed]],Table3[[#This Row],[Max. '# guest \nwithout extra bed]])=0,\"\",IFERROR(VLOOKUP($I$12:$I$1048576,MAX!$A:$B,2,FALSE)+Table3[[#This Row],[Max. '# guest \nwithout extra bed]],Table3[[#This Row],[Max. '# guest \nwithout extra bed]]))","v":""},{"$f":"IFERROR(IF(VLOOKUP(Table3[[#This Row],[New SubRoom Type \n(TMS)]],'1) Hotel information'!$B$54:$D$77,2,FALSE)>VLOOKUP(Table3[[#This Row],[New SubRoom Type \n(TMS)]],'1) Hotel information'!$B$54:$D$77,3,FALSE),\"ROLLAWAY\", IF(VLOOKUP(Table3[[#This Row],[New SubRoom Type \n(TMS)]],'1) Hotel information'!$B$54:$D$77,2,FALSE)<VLOOKUP(Table3[[#This Row],[New SubRoom Type \n(TMS)]],'1) Hotel information'!$B$54:$D$77,3,FALSE),\"SOFABED\",\"\")),\"\")","v":""},null,{"$f":"IFERROR(INDEX(Table1[View?],MATCH(I48,Table1[TMS],0)),\"\")","v":""},{"$f":"IFERROR(INDEX(Table1[Terrace?],MATCH(I48,Table1[TMS],0)),\"\")","v":""},{"$f":"IF(OR(Table3[[#This Row],[View]]=\"Yes\",Table3[[#This Row],[Terrace]]=\"Yes\"),\"Please review your Room Type description\",\"\")","v":""},{"$f":"IF(OR(LEN(Table3[[#This Row],[Room types to be created]])>1,LEN(Table3[[#This Row],[Room types to be deleted]])>1),\"Yes\",\"\")","v":""},"","",{"$f":"IF(LEN(Table3[[#This Row],[New SubRoom Type \n(TMS)]])>1,Table3[[#This Row],[New\ninventory]]+(ROW()*0.000000001),\"\")","v":""},{"$f":"IF(LEN(Table3[[#This Row],[New SubRoom Type \n(TMS)]])>1,MAX($AD$12:AD47)+1,\"\")","v":""},{"$f":"Table3[[#This Row],[New Room type description]]&Table3[[#This Row],[New\ninventory]]","v":""},null,null,{"$f":"IFERROR(IF(Table3[[#This Row],[Adult1]]+Table3[[#This Row],[Child1]]=Table3[[#This Row],[Max. '# guest with extra bed]],CONCATENATE(Table3[[#This Row],[Adult1]],\"AD\",\"+\",Table3[[#This Row],[Child1]],\"CH\"),IF(AND(Table3[[#This Row],[Adult1]]=\"\",Table3[[#This Row],[Child1]]=\"\"),\"\",\"ERROR\")),\"\")","v":""},null,null,{"$f":"IFERROR(IF(Table3[[#This Row],[Adult2]]+Table3[[#This Row],[Child2]]=Table3[[#This Row],[Max. '# guest with extra bed]],CONCATENATE(Table3[[#This Row],[Adult2]],\"AD\",\"+\",Table3[[#This Row],[Child2]],\"CH\"),IF(AND(Table3[[#This Row],[Adult2]]=\"\",Table3[[#This Row],[Child2]]=\"\"),\"\",\"ERROR\")),\"\")","v":""},null,{"$f":"IF(Table3[[#This Row],[Do you want to include this Combination in OTA''s?]]<>\"\",\"YES\",\"\")","v":""},null,{"$f":"IF(Table3[[#This Row],[Do you want to include this Combination in OTA''s?]]=\"YES\",IF(Table3[[#This Row],[Is this Combination already in OTA''s?]]=\"NO\",\"UPLOAD COMBINATION IN OTAS\",\"-\"),IF(Table3[[#This Row],[Is this Combination already in OTA''s?]]=\"YES\",\"DELETE COMBINATION\",\"-\"))","v":"-"},null,null,null,0]
[null,{"$f":"IF(LEN(D49&I49)>2,'1) Hotel information'!$C$4,\"\")","v":""},{"$f":"IF(LEN(D49&I49)>2,'1) Hotel information'!$C$5,\"\")","v":""},{"$f":"IFERROR(INDEX(CurrentRoomConfiguration,MATCH(,COUNTIF($D$11:D48,CurrentRoomConfiguration),0)),)","v":0},{"$f":"IF(Table3[[#This Row],[Current SubRoom Type \n(TMS)]]=0,\"\",LEFT(Table3[[#This Row],[Current SubRoom Type \n(TMS)]],6))","v":""},"",{"$f":"IFERROR(INDEX(Table1[Room description],MATCH(D49,Table1[TMS],0)),\"\")","v":""},{"$f":"IFERROR(INDEX(Table1[Bedding],MATCH(D49,Table1[TMS],0)),\"\")","v":""},{"$f":"IFERROR(INDEX(NewRoomConfiguration,MATCH(,COUNTIF($I$11:I48,NewRoomConfiguration),0)),)","v":0},{"$f":"IF(Table3[[#This Row],[New SubRoom Type \n(TMS)]]=0,\"\",LEFT(Table3[[#This Row],[New SubRoom Type \n(TMS)]],6))","v":""},"",null,{"$f":"IF(Table3[[#This Row],[Publish on OTA?]]<>\"\",\"YES\",\"\")","v":""},{"$f":"IFERROR(IF(AND(VLOOKUP(Table3[[#This Row],[New Room Type (TMS)]],Sheet3!$H$10:$I$28,2,FALSE)<5,Table3[[#This Row],[Publish on OTA?]]=\"yes\"),\"It's not posible to publish on OTA, please contact with Laura or Roberto\",\"\"),\"\")","v":""},{"$f":"IFERROR(INDEX(Table1[Room description],MATCH(I49,Table1[TMS],0)),\"\")","v":""},null,"",{"$f":"IFERROR(INDEX(Table1[Bedding],MATCH(I49,Table1[TMS],0)),\"\")","v":""},null,{"$f":"IF(IFERROR(VLOOKUP($I$12:$I$1048576,MAX!$A:$B,2,FALSE)+Table3[[#This Row],[Max. '# guest \nwithout extra bed]],Table3[[#This Row],[Max. '# guest \nwithout extra bed]])=0,\"\",IFERROR(VLOOKUP($I$12:$I$1048576,MAX!$A:$B,2,FALSE)+Table3[[#This Row],[Max. '# guest \nwithout extra bed]],Table3[[#This Row],[Max. '# guest \nwithout extra bed]]))","v":""},{"$f":"IFERROR(IF(VLOOKUP(Table3[[#This Row],[New SubRoom Type \n(TMS)]],'1) Hotel information'!$B$54:$D$77,2,FALSE)>VLOOKUP(Table3[[#This Row],[New SubRoom Type \n(TMS)]],'1) Hotel information'!$B$54:$D$77,3,FALSE),\"ROLLAWAY\", IF(VLOOKUP(Table3[[#This Row],[New SubRoom Type \n(TMS)]],'1) Hotel information'!$B$54:$D$77,2,FALSE)<VLOOKUP(Table3[[#This Row],[New SubRoom Type \n(TMS)]],'1) Hotel information'!$B$54:$D$77,3,FALSE),\"SOFABED\",\"\")),\"\")","v":""},null,{"$f":"IFERROR(INDEX(Table1[View?],MATCH(I49,Table1[TMS],0)),\"\")","v":""},{"$f":"IFERROR(INDEX(Table1[Terrace?],MATCH(I49,Table1[TMS],0)),\"\")","v":""},{"$f":"IF(OR(Table3[[#This Row],[View]]=\"Yes\",Table3[[#This Row],[Terrace]]=\"Yes\"),\"Please review your Room Type description\",\"\")","v":""},{"$f":"IF(OR(LEN(Table3[[#This Row],[Room types to be created]])>1,LEN(Table3[[#This Row],[Room types to be deleted]])>1),\"Yes\",\"\")","v":""},"","",{"$f":"IF(LEN(Table3[[#This Row],[New SubRoom Type \n(TMS)]])>1,Table3[[#This Row],[New\ninventory]]+(ROW()*0.000000001),\"\")","v":""},{"$f":"IF(LEN(Table3[[#This Row],[New SubRoom Type \n(TMS)]])>1,MAX($AD$12:AD48)+1,\"\")","v":""},{"$f":"Table3[[#This Row],[New Room type description]]&Table3[[#This Row],[New\ninventory]]","v":""},null,null,{"$f":"IFERROR(IF(Table3[[#This Row],[Adult1]]+Table3[[#This Row],[Child1]]=Table3[[#This Row],[Max. '# guest with extra bed]],CONCATENATE(Table3[[#This Row],[Adult1]],\"AD\",\"+\",Table3[[#This Row],[Child1]],\"CH\"),IF(AND(Table3[[#This Row],[Adult1]]=\"\",Table3[[#This Row],[Child1]]=\"\"),\"\",\"ERROR\")),\"\")","v":""},null,null,{"$f":"IFERROR(IF(Table3[[#This Row],[Adult2]]+Table3[[#This Row],[Child2]]=Table3[[#This Row],[Max. '# guest with extra bed]],CONCATENATE(Table3[[#This Row],[Adult2]],\"AD\",\"+\",Table3[[#This Row],[Child2]],\"CH\"),IF(AND(Table3[[#This Row],[Adult2]]=\"\",Table3[[#This Row],[Child2]]=\"\"),\"\",\"ERROR\")),\"\")","v":""},null,{"$f":"IF(Table3[[#This Row],[Do you want to include this Combination in OTA''s?]]<>\"\",\"YES\",\"\")","v":""},null,{"$f":"IF(Table3[[#This Row],[Do you want to include this Combination in OTA''s?]]=\"YES\",IF(Table3[[#This Row],[Is this Combination already in OTA''s?]]=\"NO\",\"UPLOAD COMBINATION IN OTAS\",\"-\"),IF(Table3[[#This Row],[Is this Combination already in OTA''s?]]=\"YES\",\"DELETE COMBINATION\",\"-\"))","v":"-"},null,null,null,0]
[null,{"$f":"IF(LEN(D50&I50)>2,'1) Hotel information'!$C$4,\"\")","v":""},{"$f":"IF(LEN(D50&I50)>2,'1) Hotel information'!$C$5,\"\")","v":""},{"$f":"IFERROR(INDEX(CurrentRoomConfiguration,MATCH(,COUNTIF($D$11:D49,CurrentRoomConfiguration),0)),)","v":0},{"$f":"IF(Table3[[#This Row],[Current SubRoom Type \n(TMS)]]=0,\"\",LEFT(Table3[[#This Row],[Current SubRoom Type \n(TMS)]],6))","v":""},"",{"$f":"IFERROR(INDEX(Table1[Room description],MATCH(D50,Table1[TMS],0)),\"\")","v":""},{"$f":"IFERROR(INDEX(Table1[Bedding],MATCH(D50,Table1[TMS],0)),\"\")","v":""},{"$f":"IFERROR(INDEX(NewRoomConfiguration,MATCH(,COUNTIF($I$11:I49,NewRoomConfiguration),0)),)","v":0},{"$f":"IF(Table3[[#This Row],[New SubRoom Type \n(TMS)]]=0,\"\",LEFT(Table3[[#This Row],[New SubRoom Type \n(TMS)]],6))","v":""},"",null,{"$f":"IF(Table3[[#This Row],[Publish on OTA?]]<>\"\",\"YES\",\"\")","v":""},{"$f":"IFERROR(IF(AND(VLOOKUP(Table3[[#This Row],[New Room Type (TMS)]],Sheet3!$H$10:$I$28,2,FALSE)<5,Table3[[#This Row],[Publish on OTA?]]=\"yes\"),\"It's not posible to publish on OTA, please contact with Laura or Roberto\",\"\"),\"\")","v":""},{"$f":"IFERROR(INDEX(Table1[Room description],MATCH(I50,Table1[TMS],0)),\"\")","v":""},null,"",{"$f":"IFERROR(INDEX(Table1[Bedding],MATCH(I50,Table1[TMS],0)),\"\")","v":""},null,{"$f":"IF(IFERROR(VLOOKUP($I$12:$I$1048576,MAX!$A:$B,2,FALSE)+Table3[[#This Row],[Max. '# guest \nwithout extra bed]],Table3[[#This Row],[Max. '# guest \nwithout extra bed]])=0,\"\",IFERROR(VLOOKUP($I$12:$I$1048576,MAX!$A:$B,2,FALSE)+Table3[[#This Row],[Max. '# guest \nwithout extra bed]],Table3[[#This Row],[Max. '# guest \nwithout extra bed]]))","v":""},{"$f":"IFERROR(IF(VLOOKUP(Table3[[#This Row],[New SubRoom Type \n(TMS)]],'1) Hotel information'!$B$54:$D$77,2,FALSE)>VLOOKUP(Table3[[#This Row],[New SubRoom Type \n(TMS)]],'1) Hotel information'!$B$54:$D$77,3,FALSE),\"ROLLAWAY\", IF(VLOOKUP(Table3[[#This Row],[New SubRoom Type \n(TMS)]],'1) Hotel information'!$B$54:$D$77,2,FALSE)<VLOOKUP(Table3[[#This Row],[New SubRoom Type \n(TMS)]],'1) Hotel information'!$B$54:$D$77,3,FALSE),\"SOFABED\",\"\")),\"\")","v":""},null,{"$f":"IFERROR(INDEX(Table1[View?],MATCH(I50,Table1[TMS],0)),\"\")","v":""},{"$f":"IFERROR(INDEX(Table1[Terrace?],MATCH(I50,Table1[TMS],0)),\"\")","v":""},{"$f":"IF(OR(Table3[[#This Row],[View]]=\"Yes\",Table3[[#This Row],[Terrace]]=\"Yes\"),\"Please review your Room Type description\",\"\")","v":""},{"$f":"IF(OR(LEN(Table3[[#This Row],[Room types to be created]])>1,LEN(Table3[[#This Row],[Room types to be deleted]])>1),\"Yes\",\"\")","v":""},"","",{"$f":"IF(LEN(Table3[[#This Row],[New SubRoom Type \n(TMS)]])>1,Table3[[#This Row],[New\ninventory]]+(ROW()*0.000000001),\"\")","v":""},{"$f":"IF(LEN(Table3[[#This Row],[New SubRoom Type \n(TMS)]])>1,MAX($AD$12:AD49)+1,\"\")","v":""},{"$f":"Table3[[#This Row],[New Room type description]]&Table3[[#This Row],[New\ninventory]]","v":""},null,null,{"$f":"IFERROR(IF(Table3[[#This Row],[Adult1]]+Table3[[#This Row],[Child1]]=Table3[[#This Row],[Max. '# guest with extra bed]],CONCATENATE(Table3[[#This Row],[Adult1]],\"AD\",\"+\",Table3[[#This Row],[Child1]],\"CH\"),IF(AND(Table3[[#This Row],[Adult1]]=\"\",Table3[[#This Row],[Child1]]=\"\"),\"\",\"ERROR\")),\"\")","v":""},null,null,{"$f":"IFERROR(IF(Table3[[#This Row],[Adult2]]+Table3[[#This Row],[Child2]]=Table3[[#This Row],[Max. '# guest with extra bed]],CONCATENATE(Table3[[#This Row],[Adult2]],\"AD\",\"+\",Table3[[#This Row],[Child2]],\"CH\"),IF(AND(Table3[[#This Row],[Adult2]]=\"\",Table3[[#This Row],[Child2]]=\"\"),\"\",\"ERROR\")),\"\")","v":""},null,{"$f":"IF(Table3[[#This Row],[Do you want to include this Combination in OTA''s?]]<>\"\",\"YES\",\"\")","v":""},null,{"$f":"IF(Table3[[#This Row],[Do you want to include this Combination in OTA''s?]]=\"YES\",IF(Table3[[#This Row],[Is this Combination already in OTA''s?]]=\"NO\",\"UPLOAD COMBINATION IN OTAS\",\"-\"),IF(Table3[[#This Row],[Is this Combination already in OTA''s?]]=\"YES\",\"DELETE COMBINATION\",\"-\"))","v":"-"},null,null,null,0]
[null,{"$f":"IF(LEN(D51&I51)>2,'1) Hotel information'!$C$4,\"\")","v":""},{"$f":"IF(LEN(D51&I51)>2,'1) Hotel information'!$C$5,\"\")","v":""},{"$f":"IFERROR(INDEX(CurrentRoomConfiguration,MATCH(,COUNTIF($D$11:D50,CurrentRoomConfiguration),0)),)","v":0},{"$f":"IF(Table3[[#This Row],[Current SubRoom Type \n(TMS)]]=0,\"\",LEFT(Table3[[#This Row],[Current SubRoom Type \n(TMS)]],6))","v":""},"",{"$f":"IFERROR(INDEX(Table1[Room description],MATCH(D51,Table1[TMS],0)),\"\")","v":""},{"$f":"IFERROR(INDEX(Table1[Bedding],MATCH(D51,Table1[TMS],0)),\"\")","v":""},{"$f":"IFERROR(INDEX(NewRoomConfiguration,MATCH(,COUNTIF($I$11:I50,NewRoomConfiguration),0)),)","v":0},{"$f":"IF(Table3[[#This Row],[New SubRoom Type \n(TMS)]]=0,\"\",LEFT(Table3[[#This Row],[New SubRoom Type \n(TMS)]],6))","v":""},"",null,{"$f":"IF(Table3[[#This Row],[Publish on OTA?]]<>\"\",\"YES\",\"\")","v":""},{"$f":"IFERROR(IF(AND(VLOOKUP(Table3[[#This Row],[New Room Type (TMS)]],Sheet3!$H$10:$I$28,2,FALSE)<5,Table3[[#This Row],[Publish on OTA?]]=\"yes\"),\"It's not posible to publish on OTA, please contact with Laura or Roberto\",\"\"),\"\")","v":""},{"$f":"IFERROR(INDEX(Table1[Room description],MATCH(I51,Table1[TMS],0)),\"\")","v":""},null,"",{"$f":"IFERROR(INDEX(Table1[Bedding],MATCH(I51,Table1[TMS],0)),\"\")","v":""},null,{"$f":"IF(IFERROR(VLOOKUP($I$12:$I$1048576,MAX!$A:$B,2,FALSE)+Table3[[#This Row],[Max. '# guest \nwithout extra bed]],Table3[[#This Row],[Max. '# guest \nwithout extra bed]])=0,\"\",IFERROR(VLOOKUP($I$12:$I$1048576,MAX!$A:$B,2,FALSE)+Table3[[#This Row],[Max. '# guest \nwithout extra bed]],Table3[[#This Row],[Max. '# guest \nwithout extra bed]]))","v":""},{"$f":"IFERROR(IF(VLOOKUP(Table3[[#This Row],[New SubRoom Type \n(TMS)]],'1) Hotel information'!$B$54:$D$77,2,FALSE)>VLOOKUP(Table3[[#This Row],[New SubRoom Type \n(TMS)]],'1) Hotel information'!$B$54:$D$77,3,FALSE),\"ROLLAWAY\", IF(VLOOKUP(Table3[[#This Row],[New SubRoom Type \n(TMS)]],'1) Hotel information'!$B$54:$D$77,2,FALSE)<VLOOKUP(Table3[[#This Row],[New SubRoom Type \n(TMS)]],'1) Hotel information'!$B$54:$D$77,3,FALSE),\"SOFABED\",\"\")),\"\")","v":""},null,{"$f":"IFERROR(INDEX(Table1[View?],MATCH(I51,Table1[TMS],0)),\"\")","v":""},{"$f":"IFERROR(INDEX(Table1[Terrace?],MATCH(I51,Table1[TMS],0)),\"\")","v":""},{"$f":"IF(OR(Table3[[#This Row],[View]]=\"Yes\",Table3[[#This Row],[Terrace]]=\"Yes\"),\"Please review your Room Type description\",\"\")","v":""},{"$f":"IF(OR(LEN(Table3[[#This Row],[Room types to be created]])>1,LEN(Table3[[#This Row],[Room types to be deleted]])>1),\"Yes\",\"\")","v":""},"","",{"$f":"IF(LEN(Table3[[#This Row],[New SubRoom Type \n(TMS)]])>1,Table3[[#This Row],[New\ninventory]]+(ROW()*0.000000001),\"\")","v":""},{"$f":"IF(LEN(Table3[[#This Row],[New SubRoom Type \n(TMS)]])>1,MAX($AD$12:AD50)+1,\"\")","v":""},{"$f":"Table3[[#This Row],[New Room type description]]&Table3[[#This Row],[New\ninventory]]","v":""},null,null,{"$f":"IFERROR(IF(Table3[[#This Row],[Adult1]]+Table3[[#This Row],[Child1]]=Table3[[#This Row],[Max. '# guest with extra bed]],CONCATENATE(Table3[[#This Row],[Adult1]],\"AD\",\"+\",Table3[[#This Row],[Child1]],\"CH\"),IF(AND(Table3[[#This Row],[Adult1]]=\"\",Table3[[#This Row],[Child1]]=\"\"),\"\",\"ERROR\")),\"\")","v":""},null,null,{"$f":"IFERROR(IF(Table3[[#This Row],[Adult2]]+Table3[[#This Row],[Child2]]=Table3[[#This Row],[Max. '# guest with extra bed]],CONCATENATE(Table3[[#This Row],[Adult2]],\"AD\",\"+\",Table3[[#This Row],[Child2]],\"CH\"),IF(AND(Table3[[#This Row],[Adult2]]=\"\",Table3[[#This Row],[Child2]]=\"\"),\"\",\"ERROR\")),\"\")","v":""},null,{"$f":"IF(Table3[[#This Row],[Do you want to include this Combination in OTA''s?]]<>\"\",\"YES\",\"\")","v":""},null,{"$f":"IF(Table3[[#This Row],[Do you want to include this Combination in OTA''s?]]=\"YES\",IF(Table3[[#This Row],[Is this Combination already in OTA''s?]]=\"NO\",\"UPLOAD COMBINATION IN OTAS\",\"-\"),IF(Table3[[#This Row],[Is this Combination already in OTA''s?]]=\"YES\",\"DELETE COMBINATION\",\"-\"))","v":"-"},null,null,null,0]
[null,null,null,null,null,null,null,null,null,null,null,null,null,null,null,null,null,null,null,null,null,null,null,null,null,null,null,null,null,null,null,null,null,null,null,null,null,null,null,null,null,null,null,null,0]
[null,null,null,null,null,null,null,null,null,null,null,null,null,null,null,null,null,null,null,null,null,null,null,null,null,null,null,null,null,null,null,null,null,null,null,null,null,null,null,null,null,null,null,null,0]
[null,null,null,null,null,null,null,null,null,null,null,null,null,null,null,null,null,null,null,null,null,null,null,null,null,null,null,null,null,null,null,null,null,null,null,null,null,null,null,null,null,null,null,null,0]
[null,null,null,null,null,null,null,null,null,null,null,null,null,null,null,null,null,null,null,null,null,null,null,null,null,null,null,null,null,null,null,null,null,null,null,null,null,null,null,null,null,null,null,null,0]
[null,null,null,null,null,null,null,null,null,null,null,null,null,null,null,null,null,null,null,null,null,null,null,null,null,null,null,null,null,null,null,null,null,null,null,null,null,null,null,null,null,null,null,null,0]
[null,null,null,null,null,null,null,null,null,null,null,null,null,null,null,null,null,null,null,null,null,null,null,null,null,null,null,null,null,null,null,null,null,null,null,null,null,null,null,null,null,null,null,null,0]
[null,null,null,null,null,null,null,null,null,null,null,null,null,null,null,null,null,null,null,null,null,null,null,null,null,null,null,null,null,null,null,null,null,null,null,null,null,null,null,null,null,null,null,null,0]
[null,null,null,null,null,null,null,null,null,null,null,null,null,null,null,null,null,null,null,null,null,null,null,null,null,null,null,null,null,null,null,null,null,null,null,null,null,null,null,null,null,null,null,null,0]
[null,null,null,null,null,null,null,null,null,null,null,null,null,null,null,null,null,null,null,null,null,null,null,null,null,null,null,null,null,null,null,null,null,null,null,null,null,null,null,null,null,null,null,null,0]
[null,null,null,null,null,null,null,null,null,null,null,null,null,null,null,null,null,null,null,null,null,null,null,null,null,null,null,null,null,null,null,null,null,null,null,null,null,null,null,null,null,null,null,null,0]
[null,null,null,null,null,null,null,null,null,null,null,null,null,null,null,null,null,null,null,null,null,null,null,null,null,null,null,null,null,null,null,null,null,null,null,null,null,null,null,null,null,null,null,null,0]
[null,null,null,null,null,null,null,null,null,null,null,null,null,null,null,null,null,null,null,null,null,null,null,null,null,null,null,null,null,null,null,null,null,null,null,null,null,null,null,null,null,null,null,null,0]
[null,null,null,null,null,null,null,null,null,null,null,null,null,null,null,null,null,null,null,null,null,null,null,null,null,null,null,null,null,null,null,null,null,null,null,null,null,null,null,null,null,null,null,null,0]
[null,null,null,null,null,null,null,null,null,null,null,null,null,null,null,null,null,null,null,null,null,null,null,null,null,null,null,null,null,null,null,null,null,null,null,null,null,null,null,null,null,null,null,null,0]
[null,null,null,null,null,null,null,null,null,null,null,null,null,null,null,null,null,null,null,null,null,null,null,null,null,null,null,null,null,null,null,null,null,null,null,null,null,null,null,null,null,null,null,null,0]
[null,null,null,null,null,null,null,null,null,null,null,null,null,null,null,null,null,null,null,null,null,null,null,null,null,null,null,null,null,null,null,null,null,null,null,null,null,null,null,null,null,null,null,null,0]
[null,null,null,null,null,null,null,null,null,null,null,null,null,null,null,null,null,null,null,null,null,null,null,null,null,null,null,null,null,null,null,null,null,null,null,null,null,null,null,null,null,null,null,null,0]
[null,null,null,null,null,null,null,null,null,null,null,null,null,null,null,null,null,null,null,null,null,null,null,null,null,null,null,null,null,null,null,null,null,null,null,null,null,null,null,null,null,null,null,null,0]
[null,null,null,null,null,null,null,null,null,null,null,null,null,null,null,null,null,null,null,null,null,null,null,null,null,null,null,null,null,null,null,null,null,null,null,null,null,null,null,null,null,null,null,null,0]
[null,null,null,null,null,null,null,null,null,null,null,null,null,null,null,null,null,null,null,null,null,null,null,null,null,null,null,null,null,null,null,null,null,null,null,null,null,null,null,null,null,null,null,null,0]
[null,null,null,null,null,null,null,null,null,null,null,null,null,null,null,null,null,null,null,null,null,null,null,null,null,null,null,null,null,null,null,null,null,null,null,null,null,null,null,null,null,null,null,null,0]
[null,null,null,null,null,null,null,null,null,null,null,null,null,null,null,null,null,null,null,null,null,null,null,null,null,null,null,null,null,null,null,null,null,null,null,null,null,null,null,null,null,null,null,null,0]
[null,null,null,null,null,null,null,null,null,null,null,null,null,null,null,null,null,null,null,null,null,null,null,null,null,null,null,null,null,null,null,null,null,null,null,null,null,null,null,null,null,null,null,null,0]
[null,null,null,null,null,null,null,null,null,null,null,null,null,null,null,null,null,null,null,null,null,null,null,null,null,null,null,null,null,null,null,null,null,null,null,null,null,null,null,null,null,null,null,null,0]
[null,null,null,null,null,null,null,null,null,null,null,null,null,null,null,null,null,null,null,null,null,null,null,null,null,null,null,null,null,null,null,null,null,null,null,null,null,null,null,null,null,null,null,null,{"$f":"IFERROR(IF(AND(K76>5,L76=\"no\"),1,0),\"\")","v":0}]
[null,null,null,null,null,null,null,null,null,null,null,null,null,null,null,null,null,null,null,null,null,null,null,null,null,null,null,null,null,null,null,null,null,null,null,null,null,null,null,null,null,null,null,null,0]
[null,null,null,null,null,null,null,null,null,null,null,null,null,null,null,null,null,null,null,null,null,null,null,null,null,null,null,null,null,null,null,null,null,null,null,null,null,null,null,null,null,null,null,null,0]
[null,null,null,null,null,null,null,null,null,null,null,null,null,null,null,null,null,null,null,null,null,null,null,null,null,null,null,null,null,null,null,null,null,null,null,null,null,null,null,null,null,null,null,null,0]
[null,null,null,null,null,null,null,null,null,null,null,null,null,null,null,null,null,null,null,null,null,null,null,null,null,null,null,null,null,null,null,null,null,null,null,null,null,null,null,null,null,null,null,null,0]
[null,null,null,null,null,null,null,null,null,null,null,null,null,null,null,null,null,null,null,null,null,null,null,null,null,null,null,null,null,null,null,null,null,null,null,null,null,null,null,null,null,null,null,null,0]
[null,null,null,null,null,null,null,null,null,null,null,null,null,null,null,null,null,null,null,null,null,null,null,null,null,null,null,null,null,null,null,null,null,null,null,null,null,null,null,null,null,null,null,null,0]
[null,null,null,null,null,null,null,null,null,null,null,null,null,null,null,null,null,null,null,null,null,null,null,null,null,null,null,null,null,null,null,null,null,null,null,null,null,null,null,null,null,null,null,null,0]
[null,null,null,null,null,null,null,null,null,null,null,null,null,null,null,null,null,null,null,null,null,null,null,null,null,null,null,null,null,null,null,null,null,null,null,null,null,null,null,null,null,null,null,null,0]
[null,null,null,null,null,null,null,null,null,null,null,null,null,null,null,null,null,null,null,null,null,null,null,null,null,null,null,null,null,null,null,null,null,null,null,null,null,null,null,null,null,null,null,null,0]
[null,null,null,null,null,null,null,null,null,null,null,null,null,null,null,null,null,null,null,null,null,null,null,null,null,null,null,null,null,null,null,null,null,null,null,null,null,null,null,null,null,null,null,null,0]
[null,null,null,null,null,null,null,null,null,null,null,null,null,null,null,null,null,null,null,null,null,null,null,null,null,null,null,null,null,null,null,null,null,null,null,null,null,null,null,null,null,null,null,null,0]
[null,null,null,null,null,null,null,null,null,null,null,null,null,null,null,null,null,null,null,null,null,null,null,null,null,null,null,null,null,null,null,null,null,null,null,null,null,null,null,null,null,null,null,null,0]
[null,null,null,null,null,null,null,null,null,null,null,null,null,null,null,null,null,null,null,null,null,null,null,null,null,null,null,null,null,null,null,null,null,null,null,null,null,null,null,null,null,null,null,null,0]
[null,null,null,null,null,null,null,null,null,null,null,null,null,null,null,null,null,null,null,null,null,null,null,null,null,null,null,null,null,null,null,null,null,null,null,null,null,null,null,null,null,null,null,null,0]
[null,null,null,null,null,null,null,null,null,null,null,null,null,null,null,null,null,null,null,null,null,null,null,null,null,null,null,null,null,null,null,null,null,null,null,null,null,null,null,null,null,null,null,null,0]
[null,null,null,null,null,null,null,null,null,null,null,null,null,null,null,null,null,null,null,null,null,null,null,null,null,null,null,null,null,null,null,null,null,null,null,null,null,null,null,null,null,null,null,null,0]
[null,null,null,null,null,null,null,null,null,null,null,null,null,null,null,null,null,null,null,null,null,null,null,null,null,null,null,null,null,null,null,null,null,null,null,null,null,null,null,null,null,null,null,null,0]
[null,null,null,null,null,null,null,null,null,null,null,null,null,null,null,null,null,null,null,null,null,null,null,null,null,null,null,null,null,null,null,null,null,null,null,null,null,null,null,null,null,null,null,null,0]
[null,null,null,null,null,null,null,null,null,null,null,null,null,null,null,null,null,null,null,null,null,null,null,null,null,null,null,null,null,null,null,null,null,null,null,null,null,null,null,null,null,null,null,null,0]
[null,null,null,null,null,null,null,null,null,null,null,null,null,null,null,null,null,null,null,null,null,null,null,null,null,null,null,null,null,null,null,null,null,null,null,null,null,null,null,null,null,null,null,null,0]
[null,null,null,null,null,null,null,null,null,null,null,null,null,null,null,null,null,null,null,null,null,null,null,null,null,null,null,null,null,null,null,null,null,null,null,null,null,null,null,null,null,null,null,null,0]
[null,null,null,null,null,null,null,null,null,null,null,null,null,null,null,null,null,null,null,null,null,null,null,null,null,null,null,null,null,null,null,null,null,null,null,null,null,null,null,null,null,null,null,null,0]
[null,null,null,null,null,null,null,null,null,null,null,null,null,null,null,null,null,null,null,null,null,null,null,null,null,null,null,null,null,null,null,null,null,null,null,null,null,null,null,null,null,null,null,null,0]
[null,null,null,null,null,null,null,null,null,null,null,null,null,null,null,null,null,null,null,null,null,null,null,null,null,null,null,null,null,null,null,null,null,null,null,null,null,null,null,null,null,null,null,null,0]
[null,null,null,null,null,null,null,null,null,null,null,null,null,null,null,null,null,null,null,null,null,null,null,null,null,null,null,null,null,null,null,null,null,null,null,null,null,null,null,null,null,null,null,null,0]
[null,null,null,null,null,null,null,null,null,null,null,null,null,null,null,null,null,null,null,null,null,null,null,null,null,null,null,null,null,null,null,null,null,null,null,null,null,null,null,null,null,null,null,null,0]
[null,null,null,null,null,null,null,null,null,null,null,null,null,null,null,null,null,null,null,null,null,null,null,null,null,null,null,null,null,null,null,null,null,null,null,null,null,null,null,null,null,null,null,null,0]
[null,null,null,null,null,null,null,null,null,null,null,null,null,null,null,null,null,null,null,null,null,null,null,null,null,null,null,null,null,null,null,null,null,null,null,null,null,null,null,null,null,null,null,null,0]
[null,null,null,null,null,null,null,null,null,null,null,null,null,null,null,null,null,null,null,null,null,null,null,null,null,null,null,null,null,null,null,null,null,null,null,null,null,null,null,null,null,null,null,null,0]
[null,null,null,null,null,null,null,null,null,null,null,null,null,null,null,null,null,null,null,null,null,null,null,null,null,null,null,null,null,null,null,null,null,null,null,null,null,null,null,null,null,null,null,null,0]
[null,null,null,null,null,null,null,null,null,null,null,null,null,null,null,null,null,null,null,null,null,null,null,null,null,null,null,null,null,null,null,null,null,null,null,null,null,null,null,null,null,null,null,null,0]
[null,null,null,null,null,null,null,null,null,null,null,null,null,null,null,null,null,null,null,null,null,null,null,null,null,null,null,null,null,null,null,null,null,null,null,null,null,null,null,null,null,null,null,null,0]
[null,null,null,null,null,null,null,null,null,null,null,null,null,null,null,null,null,null,null,null,null,null,null,null,null,null,null,null,null,null,null,null,null,null,null,null,null,null,null,null,null,null,null,null,0]
[null,null,null,null,null,null,null,null,null,null,null,null,null,null,null,null,null,null,null,null,null,null,null,null,null,null,null,null,null,null,null,null,null,null,null,null,null,null,null,null,null,null,null,null,0]
[null,null,null,null,null,null,null,null,null,null,null,null,null,null,null,null,null,null,null,null,null,null,null,null,null,null,null,null,null,null,null,null,null,null,null,null,null,null,null,null,null,null,null,null,0]
[null,null,null,null,null,null,null,null,null,null,null,null,null,null,null,null,null,null,null,null,null,null,null,null,null,null,null,null,null,null,null,null,null,null,null,null,null,null,null,null,null,null,null,null,0]
[null,null,null,null,null,null,null,null,null,null,null,null,null,null,null,null,null,null,null,null,null,null,null,null,null,null,null,null,null,null,null,null,null,null,null,null,null,null,null,null,null,null,null,null,0]
[null,null,null,null,null,null,null,null,null,null,null,null,null,null,null,null,null,null,null,null,null,null,null,null,null,null,null,null,null,null,null,null,null,null,null,null,null,null,null,null,null,null,null,null,0]
[null,null,null,null,null,null,null,null,null,null,null,null,null,null,null,null,null,null,null,null,null,null,null,null,null,null,null,null,null,null,null,null,null,null,null,null,null,null,null,null,null,null,null,null,0]
[null,null,null,null,null,null,null,null,null,null,null,null,null,null,null,null,null,null,null,null,null,null,null,null,null,null,null,null,null,null,null,null,null,null,null,null,null,null,null,null,null,null,null,null,0]
[null,null,null,null,null,null,null,null,null,null,null,null,null,null,null,null,null,null,null,null,null,null,null,null,null,null,null,null,null,null,null,null,null,null,null,null,null,null,null,null,null,null,null,null,0]
[null,null,null,null,null,null,null,null,null,null,null,null,null,null,null,null,null,null,null,null,null,null,null,null,null,null,null,null,null,null,null,null,null,null,null,null,null,null,null,null,null,null,null,null,0]
[null,null,null,null,null,null,null,null,null,null,null,null,null,null,null,null,null,null,null,null,null,null,null,null,null,null,null,null,null,null,null,null,null,null,null,null,null,null,null,null,null,null,null,null,0]
[null,null,null,null,null,null,null,null,null,null,null,null,null,null,null,null,null,null,null,null,null,null,null,null,null,null,null,null,null,null,null,null,null,null,null,null,null,null,null,null,null,null,null,null,0]
[null,null,null,null,null,null,null,null,null,null,null,null,null,null,null,null,null,null,null,null,null,null,null,null,null,null,null,null,null,null,null,null,null,null,null,null,null,null,null,null,null,null,null,null,0]
[null,null,null,null,null,null,null,null,null,null,null,null,null,null,null,null,null,null,null,null,null,null,null,null,null,null,null,null,null,null,null,null,null,null,null,null,null,null,null,null,null,null,null,null,0]
[null,null,null,null,null,null,null,null,null,null,null,null,null,null,null,null,null,null,null,null,null,null,null,null,null,null,null,null,null,null,null,null,null,null,null,null,null,null,null,null,null,null,null,null,0]
[null,null,null,null,null,null,null,null,null,null,null,null,null,null,null,null,null,null,null,null,null,null,null,null,null,null,null,null,null,null,null,null,null,null,null,null,null,null,null,null,null,null,null,null,0]
[null,null,null,null,null,null,null,null,null,null,null,null,null,null,null,null,null,null,null,null,null,null,null,null,null,null,null,null,null,null,null,null,null,null,null,null,null,null,null,null,null,null,null,null,0]
[null,null,null,null,null,null,null,null,null,null,null,null,null,null,null,null,null,null,null,null,null,null,null,null,null,null,null,null,null,null,null,null,null,null,null,null,null,null,null,null,null,null,null,null,0]
[null,null,null,null,null,null,null,null,null,null,null,null,null,null,null,null,null,null,null,null,null,null,null,null,null,null,null,null,null,null,null,null,null,null,null,null,null,null,null,null,null,null,null,null,0]
[null,null,null,null,null,null,null,null,null,null,null,null,null,null,null,null,null,null,null,null,null,null,null,null,null,null,null,null,null,null,null,null,null,null,null,null,null,null,null,null,null,null,null,null,0]
[null,null,null,null,null,null,null,null,null,null,null,null,null,null,null,null,null,null,null,null,null,null,null,null,null,null,null,null,null,null,null,null,null,null,null,null,null,null,null,null,null,null,null,null,0]
[null,null,null,null,null,null,null,null,null,null,null,null,null,null,null,null,null,null,null,null,null,null,null,null,null,null,null,null,null,null,null,null,null,null,null,null,null,null,null,null,null,null,null,null,0]
[null,null,null,null,null,null,null,null,null,null,null,null,null,null,null,null,null,null,null,null,null,null,null,null,null,null,null,null,null,null,null,null,null,null,null,null,null,null,null,null,null,null,null,null,0]
[null,null,null,null,null,null,null,null,null,null,null,null,null,null,null,null,null,null,null,null,null,null,null,null,null,null,null,null,null,null,null,null,null,null,null,null,null,null,null,null,null,null,null,null,0]
[null,null,null,null,null,null,null,null,null,null,null,null,null,null,null,null,null,null,null,null,null,null,null,null,null,null,null,null,null,null,null,null,null,null,null,null,null,null,null,null,null,null,null,null,0]
[null,null,null,null,null,null,null,null,null,null,null,null,null,null,null,null,null,null,null,null,null,null,null,null,null,null,null,null,null,null,null,null,null,null,null,null,null,null,null,null,null,null,null,null,0]
[null,null,null,null,null,null,null,null,null,null,null,null,null,null,null,null,null,null,null,null,null,null,null,null,null,null,null,null,null,null,null,null,null,null,null,null,null,null,null,null,null,null,null,null,0]
[null,null,null,null,null,null,null,null,null,null,null,null,null,null,null,null,null,null,null,null,null,null,null,null,null,null,null,null,null,null,null,null,null,null,null,null,null,null,null,null,null,null,null,null,0]
[null,null,null,null,null,null,null,null,null,null,null,null,null,null,null,null,null,null,null,null,null,null,null,null,null,null,null,null,null,null,null,null,null,null,null,null,null,null,null,null,null,null,null,null,0]
[null,null,null,null,null,null,null,null,null,null,null,null,null,null,null,null,null,null,null,null,null,null,null,null,null,null,null,null,null,null,null,null,null,null,null,null,null,null,null,null,null,null,null,null,0]
[null,null,null,null,null,null,null,null,null,null,null,null,null,null,null,null,null,null,null,null,null,null,null,null,null,null,null,null,null,null,null,null,null,null,null,null,null,null,null,null,null,null,null,null,0]
[null,null,null,null,null,null,null,null,null,null,null,null,null,null,null,null,null,null,null,null,null,null,null,null,null,null,null,null,null,null,null,null,null,null,null,null,null,null,null,null,null,null,null,null,{"$f":"IFERROR(IF(AND(K140>5,L140=\"no\"),1,0),\"\")","v":0}]
[null,null,null,null,null,null,null,null,null,null,null,null,null,null,null,null,null,null,null,null,null,null,null,null,null,null,null,null,null,null,null,null,null,null,null,null,null,null,null,null,null,null,null,null,0]
[null,null,null,null,null,null,null,null,null,null,null,null,null,null,null,null,null,null,null,null,null,null,null,null,null,null,null,null,null,null,null,null,null,null,null,null,null,null,null,null,null,null,null,null,0]
[null,null,null,null,null,null,null,null,null,null,null,null,null,null,null,null,null,null,null,null,null,null,null,null,null,null,null,null,null,null,null,null,null,null,null,null,null,null,null,null,null,null,null,null,0]
[null,null,null,null,null,null,null,null,null,null,null,null,null,null,null,null,null,null,null,null,null,null,null,null,null,null,null,null,null,null,null,null,null,null,null,null,null,null,null,null,null,null,null,null,0]
[null,null,null,null,null,null,null,null,null,null,null,null,null,null,null,null,null,null,null,null,null,null,null,null,null,null,null,null,null,null,null,null,null,null,null,null,null,null,null,null,null,null,null,null,0]
[null,null,null,null,null,null,null,null,null,null,null,null,null,null,null,null,null,null,null,null,null,null,null,null,null,null,null,null,null,null,null,null,null,null,null,null,null,null,null,null,null,null,null,null,0]
[null,null,null,null,null,null,null,null,null,null,null,null,null,null,null,null,null,null,null,null,null,null,null,null,null,null,null,null,null,null,null,null,null,null,null,null,null,null,null,null,null,null,null,null,0]
[null,null,null,null,null,null,null,null,null,null,null,null,null,null,null,null,null,null,null,null,null,null,null,null,null,null,null,null,null,null,null,null,null,null,null,null,null,null,null,null,null,null,null,null,0]
[null,null,null,null,null,null,null,null,null,null,null,null,null,null,null,null,null,null,null,null,null,null,null,null,null,null,null,null,null,null,null,null,null,null,null,null,null,null,null,null,null,null,null,null,0]
[null,null,null,null,null,null,null,null,null,null,null,null,null,null,null,null,null,null,null,null,null,null,null,null,null,null,null,null,null,null,null,null,null,null,null,null,null,null,null,null,null,null,null,null,0]
[null,null,null,null,null,null,null,null,null,null,null,null,null,null,null,null,null,null,null,null,null,null,null,null,null,null,null,null,null,null,null,null,null,null,null,null,null,null,null,null,null,null,null,null,0]
[null,null,null,null,null,null,null,null,null,null,null,null,null,null,null,null,null,null,null,null,null,null,null,null,null,null,null,null,null,null,null,null,null,null,null,null,null,null,null,null,null,null,null,null,0]
[null,null,null,null,null,null,null,null,null,null,null,null,null,null,null,null,null,null,null,null,null,null,null,null,null,null,null,null,null,null,null,null,null,null,null,null,null,null,null,null,null,null,null,null,0]
[null,null,null,null,null,null,null,null,null,null,null,null,null,null,null,null,null,null,null,null,null,null,null,null,null,null,null,null,null,null,null,null,null,null,null,null,null,null,null,null,null,null,null,null,0]
[null,null,null,null,null,null,null,null,null,null,null,null,null,null,null,null,null,null,null,null,null,null,null,null,null,null,null,null,null,null,null,null,null,null,null,null,null,null,null,null,null,null,null,null,0]
[null,null,null,null,null,null,null,null,null,null,null,null,null,null,null,null,null,null,null,null,null,null,null,null,null,null,null,null,null,null,null,null,null,null,null,null,null,null,null,null,null,null,null,null,0]
[null,null,null,null,null,null,null,null,null,null,null,null,null,null,null,null,null,null,null,null,null,null,null,null,null,null,null,null,null,null,null,null,null,null,null,null,null,null,null,null,null,null,null,null,0]
[null,null,null,null,null,null,null,null,null,null,null,null,null,null,null,null,null,null,null,null,null,null,null,null,null,null,null,null,null,null,null,null,null,null,null,null,null,null,null,null,null,null,null,null,0]
[null,null,null,null,null,null,null,null,null,null,null,null,null,null,null,null,null,null,null,null,null,null,null,null,null,null,null,null,null,null,null,null,null,null,null,null,null,null,null,null,null,null,null,null,0]
[null,null,null,null,null,null,null,null,null,null,null,null,null,null,null,null,null,null,null,null,null,null,null,null,null,null,null,null,null,null,null,null,null,null,null,null,null,null,null,null,null,null,null,null,0]
[null,null,null,null,null,null,null,null,null,null,null,null,null,null,null,null,null,null,null,null,null,null,null,null,null,null,null,null,null,null,null,null,null,null,null,null,null,null,null,null,null,null,null,null,0]
[null,null,null,null,null,null,null,null,null,null,null,null,null,null,null,null,null,null,null,null,null,null,null,null,null,null,null,null,null,null,null,null,null,null,null,null,null,null,null,null,null,null,null,null,0]
[null,null,null,null,null,null,null,null,null,null,null,null,null,null,null,null,null,null,null,null,null,null,null,null,null,null,null,null,null,null,null,null,null,null,null,null,null,null,null,null,null,null,null,null,0]
[null,null,null,null,null,null,null,null,null,null,null,null,null,null,null,null,null,null,null,null,null,null,null,null,null,null,null,null,null,null,null,null,null,null,null,null,null,null,null,null,null,null,null,null,0]
[null,null,null,null,null,null,null,null,null,null,null,null,null,null,null,null,null,null,null,null,null,null,null,null,null,null,null,null,null,null,null,null,null,null,null,null,null,null,null,null,null,null,null,null,0]
[null,null,null,null,null,null,null,null,null,null,null,null,null,null,null,null,null,null,null,null,null,null,null,null,null,null,null,null,null,null,null,null,null,null,null,null,null,null,null,null,null,null,null,null,0]
[null,null,null,null,null,null,null,null,null,null,null,null,null,null,null,null,null,null,null,null,null,null,null,null,null,null,null,null,null,null,null,null,null,null,null,null,null,null,null,null,null,null,null,null,0]
[null,null,null,null,null,null,null,null,null,null,null,null,null,null,null,null,null,null,null,null,null,null,null,null,null,null,null,null,null,null,null,null,null,null,null,null,null,null,null,null,null,null,null,null,0]
[null,null,null,null,null,null,null,null,null,null,null,null,null,null,null,null,null,null,null,null,null,null,null,null,null,null,null,null,null,null,null,null,null,null,null,null,null,null,null,null,null,null,null,null,0]
[null,null,null,null,null,null,null,null,null,null,null,null,null,null,null,null,null,null,null,null,null,null,null,null,null,null,null,null,null,null,null,null,null,null,null,null,null,null,null,null,null,null,null,null,0]
[null,null,null,null,null,null,null,null,null,null,null,null,null,null,null,null,null,null,null,null,null,null,null,null,null,null,null,null,null,null,null,null,null,null,null,null,null,null,null,null,null,null,null,null,0]
[null,null,null,null,null,null,null,null,null,null,null,null,null,null,null,null,null,null,null,null,null,null,null,null,null,null,null,null,null,null,null,null,null,null,null,null,null,null,null,null,null,null,null,null,0]
[null,null,null,null,null,null,null,null,null,null,null,null,null,null,null,null,null,null,null,null,null,null,null,null,null,null,null,null,null,null,null,null,null,null,null,null,null,null,null,null,null,null,null,null,0]
[null,null,null,null,null,null,null,null,null,null,null,null,null,null,null,null,null,null,null,null,null,null,null,null,null,null,null,null,null,null,null,null,null,null,null,null,null,null,null,null,null,null,null,null,0]
[null,null,null,null,null,null,null,null,null,null,null,null,null,null,null,null,null,null,null,null,null,null,null,null,null,null,null,null,null,null,null,null,null,null,null,null,null,null,null,null,null,null,null,null,0]
[null,null,null,null,null,null,null,null,null,null,null,null,null,null,null,null,null,null,null,null,null,null,null,null,null,null,null,null,null,null,null,null,null,null,null,null,null,null,null,null,null,null,null,null,0]
[null,null,null,null,null,null,null,null,null,null,null,null,null,null,null,null,null,null,null,null,null,null,null,null,null,null,null,null,null,null,null,null,null,null,null,null,null,null,null,null,null,null,null,null,0]
[null,null,null,null,null,null,null,null,null,null,null,null,null,null,null,null,null,null,null,null,null,null,null,null,null,null,null,null,null,null,null,null,null,null,null,null,null,null,null,null,null,null,null,null,0]
[null,null,null,null,null,null,null,null,null,null,null,null,null,null,null,null,null,null,null,null,null,null,null,null,null,null,null,null,null,null,null,null,null,null,null,null,null,null,null,null,null,null,null,null,0]
[null,null,null,null,null,null,null,null,null,null,null,null,null,null,null,null,null,null,null,null,null,null,null,null,null,null,null,null,null,null,null,null,null,null,null,null,null,null,null,null,null,null,null,null,0]
[null,null,null,null,null,null,null,null,null,null,null,null,null,null,null,null,null,null,null,null,null,null,null,null,null,null,null,null,null,null,null,null,null,null,null,null,null,null,null,null,null,null,null,null,0]
[null,null,null,null,null,null,null,null,null,null,null,null,null,null,null,null,null,null,null,null,null,null,null,null,null,null,null,null,null,null,null,null,null,null,null,null,null,null,null,null,null,null,null,null,0]
[null,null,null,null,null,null,null,null,null,null,null,null,null,null,null,null,null,null,null,null,null,null,null,null,null,null,null,null,null,null,null,null,null,null,null,null,null,null,null,null,null,null,null,null,0]
[null,null,null,null,null,null,null,null,null,null,null,null,null,null,null,null,null,null,null,null,null,null,null,null,null,null,null,null,null,null,null,null,null,null,null,null,null,null,null,null,null,null,null,null,0]
[null,null,null,null,null,null,null,null,null,null,null,null,null,null,null,null,null,null,null,null,null,null,null,null,null,null,null,null,null,null,null,null,null,null,null,null,null,null,null,null,null,null,null,null,0]
[null,null,null,null,null,null,null,null,null,null,null,null,null,null,null,null,null,null,null,null,null,null,null,null,null,null,null,null,null,null,null,null,null,null,null,null,null,null,null,null,null,null,null,null,0]
[null,null,null,null,null,null,null,null,null,null,null,null,null,null,null,null,null,null,null,null,null,null,null,null,null,null,null,null,null,null,null,null,null,null,null,null,null,null,null,null,null,null,null,null,0]
[null,null,null,null,null,null,null,null,null,null,null,null,null,null,null,null,null,null,null,null,null,null,null,null,null,null,null,null,null,null,null,null,null,null,null,null,null,null,null,null,null,null,null,null,0]
[null,null,null,null,null,null,null,null,null,null,null,null,null,null,null,null,null,null,null,null,null,null,null,null,null,null,null,null,null,null,null,null,null,null,null,null,null,null,null,null,null,null,null,null,0]
[null,null,null,null,null,null,null,null,null,null,null,null,null,null,null,null,null,null,null,null,null,null,null,null,null,null,null,null,null,null,null,null,null,null,null,null,null,null,null,null,null,null,null,null,0]
[null,null,null,null,null,null,null,null,null,null,null,null,null,null,null,null,null,null,null,null,null,null,null,null,null,null,null,null,null,null,null,null,null,null,null,null,null,null,null,null,null,null,null,null,0]
[null,null,null,null,null,null,null,null,null,null,null,null,null,null,null,null,null,null,null,null,null,null,null,null,null,null,null,null,null,null,null,null,null,null,null,null,null,null,null,null,null,null,null,null,0]
[null,null,null,null,null,null,null,null,null,null,null,null,null,null,null,null,null,null,null,null,null,null,null,null,null,null,null,null,null,null,null,null,null,null,null,null,null,null,null,null,null,null,null,null,0]
[null,null,null,null,null,null,null,null,null,null,null,null,null,null,null,null,null,null,null,null,null,null,null,null,null,null,null,null,null,null,null,null,null,null,null,null,null,null,null,null,null,null,null,null,0]
[null,null,null,null,null,null,null,null,null,null,null,null,null,null,null,null,null,null,null,null,null,null,null,null,null,null,null,null,null,null,null,null,null,null,null,null,null,null,null,null,null,null,null,null,0]
[null,null,null,null,null,null,null,null,null,null,null,null,null,null,null,null,null,null,null,null,null,null,null,null,null,null,null,null,null,null,null,null,null,null,null,null,null,null,null,null,null,null,null,null,0]
[null,null,null,null,null,null,null,null,null,null,null,null,null,null,null,null,null,null,null,null,null,null,null,null,null,null,null,null,null,null,null,null,null,null,null,null,null,null,null,null,null,null,null,null,0]
[null,null,null,null,null,null,null,null,null,null,null,null,null,null,null,null,null,null,null,null,null,null,null,null,null,null,null,null,null,null,null,null,null,null,null,null,null,null,null,null,null,null,null,null,0]
[null,null,null,null,null,null,null,null,null,null,null,null,null,null,null,null,null,null,null,null,null,null,null,null,null,null,null,null,null,null,null,null,null,null,null,null,null,null,null,null,null,null,null,null,0]
[null,null,null,null,null,null,null,null,null,null,null,null,null,null,null,null,null,null,null,null,null,null,null,null,null,null,null,null,null,null,null,null,null,null,null,null,null,null,null,null,null,null,null,null,0]
[null,null,null,null,null,null,null,null,null,null,null,null,null,null,null,null,null,null,null,null,null,null,null,null,null,null,null,null,null,null,null,null,null,null,null,null,null,null,null,null,null,null,null,null,0]
[null,null,null,null,null,null,null,null,null,null,null,null,null,null,null,null,null,null,null,null,null,null,null,null,null,null,null,null,null,null,null,null,null,null,null,null,null,null,null,null,null,null,null,null,0]
[null,null,null,null,null,null,null,null,null,null,null,null,null,null,null,null,null,null,null,null,null,null,null,null,null,null,null,null,null,null,null,null,null,null,null,null,null,null,null,null,null,null,null,null,0]
[null,null,null,null,null,null,null,null,null,null,null,null,null,null,null,null,null,null,null,null,null,null,null,null,null,null,null,null,null,null,null,null,null,null,null,null,null,null,null,null,null,null,null,null,{"$f":"IFERROR(IF(AND(K204>5,L204=\"no\"),1,0),\"\")","v":0}]
[null,null,null,null,null,null,null,null,null,null,null,null,null,null,null,null,null,null,null,null,null,null,null,null,null,null,null,null,null,null,null,null,null,null,null,null,null,null,null,null,null,null,null,null,0]
[null,null,null,null,null,null,null,null,null,null,null,null,null,null,null,null,null,null,null,null,null,null,null,null,null,null,null,null,null,null,null,null,null,null,null,null,null,null,null,null,null,null,null,null,0]
[null,null,null,null,null,null,null,null,null,null,null,null,null,null,null,null,null,null,null,null,null,null,null,null,null,null,null,null,null,null,null,null,null,null,null,null,null,null,null,null,null,null,null,null,0]
[null,null,null,null,null,null,null,null,null,null,null,null,null,null,null,null,null,null,null,null,null,null,null,null,null,null,null,null,null,null,null,null,null,null,null,null,null,null,null,null,null,null,null,null,0]
[null,null,null,null,null,null,null,null,null,null,null,null,null,null,null,null,null,null,null,null,null,null,null,null,null,null,null,null,null,null,null,null,null,null,null,null,null,null,null,null,null,null,null,null,0]
[null,null,null,null,null,null,null,null,null,null,null,null,null,null,null,null,null,null,null,null,null,null,null,null,null,null,null,null,null,null,null,null,null,null,null,null,null,null,null,null,null,null,null,null,0]
[null,null,null,null,null,null,null,null,null,null,null,null,null,null,null,null,null,null,null,null,null,null,null,null,null,null,null,null,null,null,null,null,null,null,null,null,null,null,null,null,null,null,null,null,0]
[null,null,null,null,null,null,null,null,null,null,null,null,null,null,null,null,null,null,null,null,null,null,null,null,null,null,null,null,null,null,null,null,null,null,null,null,null,null,null,null,null,null,null,null,0]
[null,null,null,null,null,null,null,null,null,null,null,null,null,null,null,null,null,null,null,null,null,null,null,null,null,null,null,null,null,null,null,null,null,null,null,null,null,null,null,null,null,null,null,null,0]
[null,null,null,null,null,null,null,null,null,null,null,null,null,null,null,null,null,null,null,null,null,null,null,null,null,null,null,null,null,null,null,null,null,null,null,null,null,null,null,null,null,null,null,null,0]
[null,null,null,null,null,null,null,null,null,null,null,null,null,null,null,null,null,null,null,null,null,null,null,null,null,null,null,null,null,null,null,null,null,null,null,null,null,null,null,null,null,null,null,null,0]
[null,null,null,null,null,null,null,null,null,null,null,null,null,null,null,null,null,null,null,null,null,null,null,null,null,null,null,null,null,null,null,null,null,null,null,null,null,null,null,null,null,null,null,null,0]
[null,null,null,null,null,null,null,null,null,null,null,null,null,null,null,null,null,null,null,null,null,null,null,null,null,null,null,null,null,null,null,null,null,null,null,null,null,null,null,null,null,null,null,null,0]
[null,null,null,null,null,null,null,null,null,null,null,null,null,null,null,null,null,null,null,null,null,null,null,null,null,null,null,null,null,null,null,null,null,null,null,null,null,null,null,null,null,null,null,null,0]
[null,null,null,null,null,null,null,null,null,null,null,null,null,null,null,null,null,null,null,null,null,null,null,null,null,null,null,null,null,null,null,null,null,null,null,null,null,null,null,null,null,null,null,null,0]
[null,null,null,null,null,null,null,null,null,null,null,null,null,null,null,null,null,null,null,null,null,null,null,null,null,null,null,null,null,null,null,null,null,null,null,null,null,null,null,null,null,null,null,null,0]
[null,null,null,null,null,null,null,null,null,null,null,null,null,null,null,null,null,null,null,null,null,null,null,null,null,null,null,null,null,null,null,null,null,null,null,null,null,null,null,null,null,null,null,null,0]
[null,null,null,null,null,null,null,null,null,null,null,null,null,null,null,null,null,null,null,null,null,null,null,null,null,null,null,null,null,null,null,null,null,null,null,null,null,null,null,null,null,null,null,null,0]
[null,null,null,null,null,null,null,null,null,null,null,null,null,null,null,null,null,null,null,null,null,null,null,null,null,null,null,null,null,null,null,null,null,null,null,null,null,null,null,null,null,null,null,null,0]
[null,null,null,null,null,null,null,null,null,null,null,null,null,null,null,null,null,null,null,null,null,null,null,null,null,null,null,null,null,null,null,null,null,null,null,null,null,null,null,null,null,null,null,null,0]
[null,null,null,null,null,null,null,null,null,null,null,null,null,null,null,null,null,null,null,null,null,null,null,null,null,null,null,null,null,null,null,null,null,null,null,null,null,null,null,null,null,null,null,null,0]
[null,null,null,null,null,null,null,null,null,null,null,null,null,null,null,null,null,null,null,null,null,null,null,null,null,null,null,null,null,null,null,null,null,null,null,null,null,null,null,null,null,null,null,null,0]
[null,null,null,null,null,null,null,null,null,null,null,null,null,null,null,null,null,null,null,null,null,null,null,null,null,null,null,null,null,null,null,null,null,null,null,null,null,null,null,null,null,null,null,null,0]
[null,null,null,null,null,null,null,null,null,null,null,null,null,null,null,null,null,null,null,null,null,null,null,null,null,null,null,null,null,null,null,null,null,null,null,null,null,null,null,null,null,null,null,null,0]
[null,null,null,null,null,null,null,null,null,null,null,null,null,null,null,null,null,null,null,null,null,null,null,null,null,null,null,null,null,null,null,null,null,null,null,null,null,null,null,null,null,null,null,null,0]
[null,null,null,null,null,null,null,null,null,null,null,null,null,null,null,null,null,null,null,null,null,null,null,null,null,null,null,null,null,null,null,null,null,null,null,null,null,null,null,null,null,null,null,null,0]
[null,null,null,null,null,null,null,null,null,null,null,null,null,null,null,null,null,null,null,null,null,null,null,null,null,null,null,null,null,null,null,null,null,null,null,null,null,null,null,null,null,null,null,null,0]
[null,null,null,null,null,null,null,null,null,null,null,null,null,null,null,null,null,null,null,null,null,null,null,null,null,null,null,null,null,null,null,null,null,null,null,null,null,null,null,null,null,null,null,null,0]
[null,null,null,null,null,null,null,null,null,null,null,null,null,null,null,null,null,null,null,null,null,null,null,null,null,null,null,null,null,null,null,null,null,null,null,null,null,null,null,null,null,null,null,null,0]
[null,null,null,null,null,null,null,null,null,null,null,null,null,null,null,null,null,null,null,null,null,null,null,null,null,null,null,null,null,null,null,null,null,null,null,null,null,null,null,null,null,null,null,null,0]
[null,null,null,null,null,null,null,null,null,null,null,null,null,null,null,null,null,null,null,null,null,null,null,null,null,null,null,null,null,null,null,null,null,null,null,null,null,null,null,null,null,null,null,null,0]
[null,null,null,null,null,null,null,null,null,null,null,null,null,null,null,null,null,null,null,null,null,null,null,null,null,null,null,null,null,null,null,null,null,null,null,null,null,null,null,null,null,null,null,null,0]
[null,null,null,null,null,null,null,null,null,null,null,null,null,null,null,null,null,null,null,null,null,null,null,null,null,null,null,null,null,null,null,null,null,null,null,null,null,null,null,null,null,null,null,null,0]
[null,null,null,null,null,null,null,null,null,null,null,null,null,null,null,null,null,null,null,null,null,null,null,null,null,null,null,null,null,null,null,null,null,null,null,null,null,null,null,null,null,null,null,null,0]
[null,null,null,null,null,null,null,null,null,null,null,null,null,null,null,null,null,null,null,null,null,null,null,null,null,null,null,null,null,null,null,null,null,null,null,null,null,null,null,null,null,null,null,null,0]
[null,null,null,null,null,null,null,null,null,null,null,null,null,null,null,null,null,null,null,null,null,null,null,null,null,null,null,null,null,null,null,null,null,null,null,null,null,null,null,null,null,null,null,null,0]
[null,null,null,null,null,null,null,null,null,null,null,null,null,null,null,null,null,null,null,null,null,null,null,null,null,null,null,null,null,null,null,null,null,null,null,null,null,null,null,null,null,null,null,null,0]
[null,null,null,null,null,null,null,null,null,null,null,null,null,null,null,null,null,null,null,null,null,null,null,null,null,null,null,null,null,null,null,null,null,null,null,null,null,null,null,null,null,null,null,null,0]
[null,null,null,null,null,null,null,null,null,null,null,null,null,null,null,null,null,null,null,null,null,null,null,null,null,null,null,null,null,null,null,null,null,null,null,null,null,null,null,null,null,null,null,null,0]
[null,null,null,null,null,null,null,null,null,null,null,null,null,null,null,null,null,null,null,null,null,null,null,null,null,null,null,null,null,null,null,null,null,null,null,null,null,null,null,null,null,null,null,null,0]
[null,null,null,null,null,null,null,null,null,null,null,null,null,null,null,null,null,null,null,null,null,null,null,null,null,null,null,null,null,null,null,null,null,null,null,null,null,null,null,null,null,null,null,null,0]
[null,null,null,null,null,null,null,null,null,null,null,null,null,null,null,null,null,null,null,null,null,null,null,null,null,null,null,null,null,null,null,null,null,null,null,null,null,null,null,null,null,null,null,null,0]
[null,null,null,null,null,null,null,null,null,null,null,null,null,null,null,null,null,null,null,null,null,null,null,null,null,null,null,null,null,null,null,null,null,null,null,null,null,null,null,null,null,null,null,null,0]
[null,null,null,null,null,null,null,null,null,null,null,null,null,null,null,null,null,null,null,null,null,null,null,null,null,null,null,null,null,null,null,null,null,null,null,null,null,null,null,null,null,null,null,null,0]
[null,null,null,null,null,null,null,null,null,null,null,null,null,null,null,null,null,null,null,null,null,null,null,null,null,null,null,null,null,null,null,null,null,null,null,null,null,null,null,null,null,null,null,null,0]
[null,null,null,null,null,null,null,null,null,null,null,null,null,null,null,null,null,null,null,null,null,null,null,null,null,null,null,null,null,null,null,null,null,null,null,null,null,null,null,null,null,null,null,null,0]
[null,null,null,null,null,null,null,null,null,null,null,null,null,null,null,null,null,null,null,null,null,null,null,null,null,null,null,null,null,null,null,null,null,null,null,null,null,null,null,null,null,null,null,null,0]
[null,null,null,null,null,null,null,null,null,null,null,null,null,null,null,null,null,null,null,null,null,null,null,null,null,null,null,null,null,null,null,null,null,null,null,null,null,null,null,null,null,null,null,null,0]
[null,null,null,null,null,null,null,null,null,null,null,null,null,null,null,null,null,null,null,null,null,null,null,null,null,null,null,null,null,null,null,null,null,null,null,null,null,null,null,null,null,null,null,null,0]
[null,null,null,null,null,null,null,null,null,null,null,null,null,null,null,null,null,null,null,null,null,null,null,null,null,null,null,null,null,null,null,null,null,null,null,null,null,null,null,null,null,null,null,null,0]
[null,null,null,null,null,null,null,null,null,null,null,null,null,null,null,null,null,null,null,null,null,null,null,null,null,null,null,null,null,null,null,null,null,null,null,null,null,null,null,null,null,null,null,null,0]
[null,null,null,null,null,null,null,null,null,null,null,null,null,null,null,null,null,null,null,null,null,null,null,null,null,null,null,null,null,null,null,null,null,null,null,null,null,null,null,null,null,null,null,null,0]
[null,null,null,null,null,null,null,null,null,null,null,null,null,null,null,null,null,null,null,null,null,null,null,null,null,null,null,null,null,null,null,null,null,null,null,null,null,null,null,null,null,null,null,null,0]
[null,null,null,null,null,null,null,null,null,null,null,null,null,null,null,null,null,null,null,null,null,null,null,null,null,null,null,null,null,null,null,null,null,null,null,null,null,null,null,null,null,null,null,null,0]
[null,null,null,null,null,null,null,null,null,null,null,null,null,null,null,null,null,null,null,null,null,null,null,null,null,null,null,null,null,null,null,null,null,null,null,null,null,null,null,null,null,null,null,null,0]
[null,null,null,null,null,null,null,null,null,null,null,null,null,null,null,null,null,null,null,null,null,null,null,null,null,null,null,null,null,null,null,null,null,null,null,null,null,null,null,null,null,null,null,null,0]
[null,null,null,null,null,null,null,null,null,null,null,null,null,null,null,null,null,null,null,null,null,null,null,null,null,null,null,null,null,null,null,null,null,null,null,null,null,null,null,null,null,null,null,null,0]
[null,null,null,null,null,null,null,null,null,null,null,null,null,null,null,null,null,null,null,null,null,null,null,null,null,null,null,null,null,null,null,null,null,null,null,null,null,null,null,null,null,null,null,null,0]
[null,null,null,null,null,null,null,null,null,null,null,null,null,null,null,null,null,null,null,null,null,null,null,null,null,null,null,null,null,null,null,null,null,null,null,null,null,null,null,null,null,null,null,null,0]
[null,null,null,null,null,null,null,null,null,null,null,null,null,null,null,null,null,null,null,null,null,null,null,null,null,null,null,null,null,null,null,null,null,null,null,null,null,null,null,null,null,null,null,null,0]
[null,null,null,null,null,null,null,null,null,null,null,null,null,null,null,null,null,null,null,null,null,null,null,null,null,null,null,null,null,null,null,null,null,null,null,null,null,null,null,null,null,null,null,null,0]
[null,null,null,null,null,null,null,null,null,null,null,null,null,null,null,null,null,null,null,null,null,null,null,null,null,null,null,null,null,null,null,null,null,null,null,null,null,null,null,null,null,null,null,null,0]
[null,null,null,null,null,null,null,null,null,null,null,null,null,null,null,null,null,null,null,null,null,null,null,null,null,null,null,null,null,null,null,null,null,null,null,null,null,null,null,null,null,null,null,null,0]
[null,null,null,null,null,null,null,null,null,null,null,null,null,null,null,null,null,null,null,null,null,null,null,null,null,null,null,null,null,null,null,null,null,null,null,null,null,null,null,null,null,null,null,null,{"$f":"IFERROR(IF(AND(K268>5,L268=\"no\"),1,0),\"\")","v":0}]
[null,null,null,null,null,null,null,null,null,null,null,null,null,null,null,null,null,null,null,null,null,null,null,null,null,null,null,null,null,null,null,null,null,null,null,null,null,null,null,null,null,null,null,null,0]
[null,null,null,null,null,null,null,null,null,null,null,null,null,null,null,null,null,null,null,null,null,null,null,null,null,null,null,null,null,null,null,null,null,null,null,null,null,null,null,null,null,null,null,null,0]
[null,null,null,null,null,null,null,null,null,null,null,null,null,null,null,null,null,null,null,null,null,null,null,null,null,null,null,null,null,null,null,null,null,null,null,null,null,null,null,null,null,null,null,null,0]
[null,null,null,null,null,null,null,null,null,null,null,null,null,null,null,null,null,null,null,null,null,null,null,null,null,null,null,null,null,null,null,null,null,null,null,null,null,null,null,null,null,null,null,null,0]
[null,null,null,null,null,null,null,null,null,null,null,null,null,null,null,null,null,null,null,null,null,null,null,null,null,null,null,null,null,null,null,null,null,null,null,null,null,null,null,null,null,null,null,null,0]
[null,null,null,null,null,null,null,null,null,null,null,null,null,null,null,null,null,null,null,null,null,null,null,null,null,null,null,null,null,null,null,null,null,null,null,null,null,null,null,null,null,null,null,null,0]
[null,null,null,null,null,null,null,null,null,null,null,null,null,null,null,null,null,null,null,null,null,null,null,null,null,null,null,null,null,null,null,null,null,null,null,null,null,null,null,null,null,null,null,null,0]
[null,null,null,null,null,null,null,null,null,null,null,null,null,null,null,null,null,null,null,null,null,null,null,null,null,null,null,null,null,null,null,null,null,null,null,null,null,null,null,null,null,null,null,null,0]
[null,null,null,null,null,null,null,null,null,null,null,null,null,null,null,null,null,null,null,null,null,null,null,null,null,null,null,null,null,null,null,null,null,null,null,null,null,null,null,null,null,null,null,null,0]
[null,null,null,null,null,null,null,null,null,null,null,null,null,null,null,null,null,null,null,null,null,null,null,null,null,null,null,null,null,null,null,null,null,null,null,null,null,null,null,null,null,null,null,null,0]
[null,null,null,null,null,null,null,null,null,null,null,null,null,null,null,null,null,null,null,null,null,null,null,null,null,null,null,null,null,null,null,null,null,null,null,null,null,null,null,null,null,null,null,null,0]
[null,null,null,null,null,null,null,null,null,null,null,null,null,null,null,null,null,null,null,null,null,null,null,null,null,null,null,null,null,null,null,null,null,null,null,null,null,null,null,null,null,null,null,null,0]
[null,null,null,null,null,null,null,null,null,null,null,null,null,null,null,null,null,null,null,null,null,null,null,null,null,null,null,null,null,null,null,null,null,null,null,null,null,null,null,null,null,null,null,null,0]
[null,null,null,null,null,null,null,null,null,null,null,null,null,null,null,null,null,null,null,null,null,null,null,null,null,null,null,null,null,null,null,null,null,null,null,null,null,null,null,null,null,null,null,null,0]
[null,null,null,null,null,null,null,null,null,null,null,null,null,null,null,null,null,null,null,null,null,null,null,null,null,null,null,null,null,null,null,null,null,null,null,null,null,null,null,null,null,null,null,null,0]
[null,null,null,null,null,null,null,null,null,null,null,null,null,null,null,null,null,null,null,null,null,null,null,null,null,null,null,null,null,null,null,null,null,null,null,null,null,null,null,null,null,null,null,null,0]
[null,null,null,null,null,null,null,null,null,null,null,null,null,null,null,null,null,null,null,null,null,null,null,null,null,null,null,null,null,null,null,null,null,null,null,null,null,null,null,null,null,null,null,null,0]
[null,null,null,null,null,null,null,null,null,null,null,null,null,null,null,null,null,null,null,null,null,null,null,null,null,null,null,null,null,null,null,null,null,null,null,null,null,null,null,null,null,null,null,null,0]
[null,null,null,null,null,null,null,null,null,null,null,null,null,null,null,null,null,null,null,null,null,null,null,null,null,null,null,null,null,null,null,null,null,null,null,null,null,null,null,null,null,null,null,null,0]
[null,null,null,null,null,null,null,null,null,null,null,null,null,null,null,null,null,null,null,null,null,null,null,null,null,null,null,null,null,null,null,null,null,null,null,null,null,null,null,null,null,null,null,null,0]
[null,null,null,null,null,null,null,null,null,null,null,null,null,null,null,null,null,null,null,null,null,null,null,null,null,null,null,null,null,null,null,null,null,null,null,null,null,null,null,null,null,null,null,null,0]
[null,null,null,null,null,null,null,null,null,null,null,null,null,null,null,null,null,null,null,null,null,null,null,null,null,null,null,null,null,null,null,null,null,null,null,null,null,null,null,null,null,null,null,null,0]
[null,null,null,null,null,null,null,null,null,null,null,null,null,null,null,null,null,null,null,null,null,null,null,null,null,null,null,null,null,null,null,null,null,null,null,null,null,null,null,null,null,null,null,null,0]
[null,null,null,null,null,null,null,null,null,null,null,null,null,null,null,null,null,null,null,null,null,null,null,null,null,null,null,null,null,null,null,null,null,null,null,null,null,null,null,null,null,null,null,null,0]
[null,null,null,null,null,null,null,null,null,null,null,null,null,null,null,null,null,null,null,null,null,null,null,null,null,null,null,null,null,null,null,null,null,null,null,null,null,null,null,null,null,null,null,null,0]
[null,null,null,null,null,null,null,null,null,null,null,null,null,null,null,null,null,null,null,null,null,null,null,null,null,null,null,null,null,null,null,null,null,null,null,null,null,null,null,null,null,null,null,null,0]
[null,null,null,null,null,null,null,null,null,null,null,null,null,null,null,null,null,null,null,null,null,null,null,null,null,null,null,null,null,null,null,null,null,null,null,null,null,null,null,null,null,null,null,null,0]
[null,null,null,null,null,null,null,null,null,null,null,null,null,null,null,null,null,null,null,null,null,null,null,null,null,null,null,null,null,null,null,null,null,null,null,null,null,null,null,null,null,null,null,null,0]
[null,null,null,null,null,null,null,null,null,null,null,null,null,null,null,null,null,null,null,null,null,null,null,null,null,null,null,null,null,null,null,null,null,null,null,null,null,null,null,null,null,null,null,null,0]
[null,null,null,null,null,null,null,null,null,null,null,null,null,null,null,null,null,null,null,null,null,null,null,null,null,null,null,null,null,null,null,null,null,null,null,null,null,null,null,null,null,null,null,null,0]
[null,null,null,null,null,null,null,null,null,null,null,null,null,null,null,null,null,null,null,null,null,null,null,null,null,null,null,null,null,null,null,null,null,null,null,null,null,null,null,null,null,null,null,null,0]
[null,null,null,null,null,null,null,null,null,null,null,null,null,null,null,null,null,null,null,null,null,null,null,null,null,null,null,null,null,null,null,null,null,null,null,null,null,null,null,null,null,null,null,null,0]
[null,null,null,null,null,null,null,null,null,null,null,null,null,null,null,null,null,null,null,null,null,null,null,null,null,null,null,null,null,null,null,null,null,null,null,null,null,null,null,null,null,null,null,null,0]
[null,null,null,null,null,null,null,null,null,null,null,null,null,null,null,null,null,null,null,null,null,null,null,null,null,null,null,null,null,null,null,null,null,null,null,null,null,null,null,null,null,null,null,null,0]
[null,null,null,null,null,null,null,null,null,null,null,null,null,null,null,null,null,null,null,null,null,null,null,null,null,null,null,null,null,null,null,null,null,null,null,null,null,null,null,null,null,null,null,null,0]
[null,null,null,null,null,null,null,null,null,null,null,null,null,null,null,null,null,null,null,null,null,null,null,null,null,null,null,null,null,null,null,null,null,null,null,null,null,null,null,null,null,null,null,null,0]
[null,null,null,null,null,null,null,null,null,null,null,null,null,null,null,null,null,null,null,null,null,null,null,null,null,null,null,null,null,null,null,null,null,null,null,null,null,null,null,null,null,null,null,null,0]
[null,null,null,null,null,null,null,null,null,null,null,null,null,null,null,null,null,null,null,null,null,null,null,null,null,null,null,null,null,null,null,null,null,null,null,null,null,null,null,null,null,null,null,null,0]
[null,null,null,null,null,null,null,null,null,null,null,null,null,null,null,null,null,null,null,null,null,null,null,null,null,null,null,null,null,null,null,null,null,null,null,null,null,null,null,null,null,null,null,null,0]
[null,null,null,null,null,null,null,null,null,null,null,null,null,null,null,null,null,null,null,null,null,null,null,null,null,null,null,null,null,null,null,null,null,null,null,null,null,null,null,null,null,null,null,null,0]
[null,null,null,null,null,null,null,null,null,null,null,null,null,null,null,null,null,null,null,null,null,null,null,null,null,null,null,null,null,null,null,null,null,null,null,null,null,null,null,null,null,null,null,null,0]
[null,null,null,null,null,null,null,null,null,null,null,null,null,null,null,null,null,null,null,null,null,null,null,null,null,null,null,null,null,null,null,null,null,null,null,null,null,null,null,null,null,null,null,null,0]
[null,null,null,null,null,null,null,null,null,null,null,null,null,null,null,null,null,null,null,null,null,null,null,null,null,null,null,null,null,null,null,null,null,null,null,null,null,null,null,null,null,null,null,null,0]
[null,null,null,null,null,null,null,null,null,null,null,null,null,null,null,null,null,null,null,null,null,null,null,null,null,null,null,null,null,null,null,null,null,null,null,null,null,null,null,null,null,null,null,null,0]
[null,null,null,null,null,null,null,null,null,null,null,null,null,null,null,null,null,null,null,null,null,null,null,null,null,null,null,null,null,null,null,null,null,null,null,null,null,null,null,null,null,null,null,null,0]
[null,null,null,null,null,null,null,null,null,null,null,null,null,null,null,null,null,null,null,null,null,null,null,null,null,null,null,null,null,null,null,null,null,null,null,null,null,null,null,null,null,null,null,null,0]
[null,null,null,null,null,null,null,null,null,null,null,null,null,null,null,null,null,null,null,null,null,null,null,null,null,null,null,null,null,null,null,null,null,null,null,null,null,null,null,null,null,null,null,null,0]
[null,null,null,null,null,null,null,null,null,null,null,null,null,null,null,null,null,null,null,null,null,null,null,null,null,null,null,null,null,null,null,null,null,null,null,null,null,null,null,null,null,null,null,null,0]
[null,null,null,null,null,null,null,null,null,null,null,null,null,null,null,null,null,null,null,null,null,null,null,null,null,null,null,null,null,null,null,null,null,null,null,null,null,null,null,null,null,null,null,null,0]
[null,null,null,null,null,null,null,null,null,null,null,null,null,null,null,null,null,null,null,null,null,null,null,null,null,null,null,null,null,null,null,null,null,null,null,null,null,null,null,null,null,null,null,null,0]
[null,null,null,null,null,null,null,null,null,null,null,null,null,null,null,null,null,null,null,null,null,null,null,null,null,null,null,null,null,null,null,null,null,null,null,null,null,null,null,null,null,null,null,null,0]
[null,null,null,null,null,null,null,null,null,null,null,null,null,null,null,null,null,null,null,null,null,null,null,null,null,null,null,null,null,null,null,null,null,null,null,null,null,null,null,null,null,null,null,null,0]
[null,null,null,null,null,null,null,null,null,null,null,null,null,null,null,null,null,null,null,null,null,null,null,null,null,null,null,null,null,null,null,null,null,null,null,null,null,null,null,null,null,null,null,null,0]
[null,null,null,null,null,null,null,null,null,null,null,null,null,null,null,null,null,null,null,null,null,null,null,null,null,null,null,null,null,null,null,null,null,null,null,null,null,null,null,null,null,null,null,null,0]
[null,null,null,null,null,null,null,null,null,null,null,null,null,null,null,null,null,null,null,null,null,null,null,null,null,null,null,null,null,null,null,null,null,null,null,null,null,null,null,null,null,null,null,null,0]
[null,null,null,null,null,null,null,null,null,null,null,null,null,null,null,null,null,null,null,null,null,null,null,null,null,null,null,null,null,null,null,null,null,null,null,null,null,null,null,null,null,null,null,null,0]
[null,null,null,null,null,null,null,null,null,null,null,null,null,null,null,null,null,null,null,null,null,null,null,null,null,null,null,null,null,null,null,null,null,null,null,null,null,null,null,null,null,null,null,null,0]
[null,null,null,null,null,null,null,null,null,null,null,null,null,null,null,null,null,null,null,null,null,null,null,null,null,null,null,null,null,null,null,null,null,null,null,null,null,null,null,null,null,null,null,null,0]
[null,null,null,null,null,null,null,null,null,null,null,null,null,null,null,null,null,null,null,null,null,null,null,null,null,null,null,null,null,null,null,null,null,null,null,null,null,null,null,null,null,null,null,null,0]
[null,null,null,null,null,null,null,null,null,null,null,null,null,null,null,null,null,null,null,null,null,null,null,null,null,null,null,null,null,null,null,null,null,null,null,null,null,null,null,null,null,null,null,null,0]
[null,null,null,null,null,null,null,null,null,null,null,null,null,null,null,null,null,null,null,null,null,null,null,null,null,null,null,null,null,null,null,null,null,null,null,null,null,null,null,null,null,null,null,null,0]
[null,null,null,null,null,null,null,null,null,null,null,null,null,null,null,null,null,null,null,null,null,null,null,null,null,null,null,null,null,null,null,null,null,null,null,null,null,null,null,null,null,null,null,null,0]
[null,null,null,null,null,null,null,null,null,null,null,null,null,null,null,null,null,null,null,null,null,null,null,null,null,null,null,null,null,null,null,null,null,null,null,null,null,null,null,null,null,null,null,null,0]
[null,null,null,null,null,null,null,null,null,null,null,null,null,null,null,null,null,null,null,null,null,null,null,null,null,null,null,null,null,null,null,null,null,null,null,null,null,null,null,null,null,null,null,null,{"$f":"IFERROR(IF(AND(K332>5,L332=\"no\"),1,0),\"\")","v":0}]
[null,null,null,null,null,null,null,null,null,null,null,null,null,null,null,null,null,null,null,null,null,null,null,null,null,null,null,null,null,null,null,null,null,null,null,null,null,null,null,null,null,null,null,null,0]
[null,null,null,null,null,null,null,null,null,null,null,null,null,null,null,null,null,null,null,null,null,null,null,null,null,null,null,null,null,null,null,null,null,null,null,null,null,null,null,null,null,null,null,null,0]
[null,null,null,null,null,null,null,null,null,null,null,null,null,null,null,null,null,null,null,null,null,null,null,null,null,null,null,null,null,null,null,null,null,null,null,null,null,null,null,null,null,null,null,null,0]
[null,null,null,null,null,null,null,null,null,null,null,null,null,null,null,null,null,null,null,null,null,null,null,null,null,null,null,null,null,null,null,null,null,null,null,null,null,null,null,null,null,null,null,null,0]
[null,null,null,null,null,null,null,null,null,null,null,null,null,null,null,null,null,null,null,null,null,null,null,null,null,null,null,null,null,null,null,null,null,null,null,null,null,null,null,null,null,null,null,null,0]
[null,null,null,null,null,null,null,null,null,null,null,null,null,null,null,null,null,null,null,null,null,null,null,null,null,null,null,null,null,null,null,null,null,null,null,null,null,null,null,null,null,null,null,null,0]
[null,null,null,null,null,null,null,null,null,null,null,null,null,null,null,null,null,null,null,null,null,null,null,null,null,null,null,null,null,null,null,null,null,null,null,null,null,null,null,null,null,null,null,null,0]
[null,null,null,null,null,null,null,null,null,null,null,null,null,null,null,null,null,null,null,null,null,null,null,null,null,null,null,null,null,null,null,null,null,null,null,null,null,null,null,null,null,null,null,null,0]
[null,null,null,null,null,null,null,null,null,null,null,null,null,null,null,null,null,null,null,null,null,null,null,null,null,null,null,null,null,null,null,null,null,null,null,null,null,null,null,null,null,null,null,null,0]
[null,null,null,null,null,null,null,null,null,null,null,null,null,null,null,null,null,null,null,null,null,null,null,null,null,null,null,null,null,null,null,null,null,null,null,null,null,null,null,null,null,null,null,null,0]
[null,null,null,null,null,null,null,null,null,null,null,null,null,null,null,null,null,null,null,null,null,null,null,null,null,null,null,null,null,null,null,null,null,null,null,null,null,null,null,null,null,null,null,null,0]
[null,null,null,null,null,null,null,null,null,null,null,null,null,null,null,null,null,null,null,null,null,null,null,null,null,null,null,null,null,null,null,null,null,null,null,null,null,null,null,null,null,null,null,null,0]
[null,null,null,null,null,null,null,null,null,null,null,null,null,null,null,null,null,null,null,null,null,null,null,null,null,null,null,null,null,null,null,null,null,null,null,null,null,null,null,null,null,null,null,null,0]
[null,null,null,null,null,null,null,null,null,null,null,null,null,null,null,null,null,null,null,null,null,null,null,null,null,null,null,null,null,null,null,null,null,null,null,null,null,null,null,null,null,null,null,null,0]
[null,null,null,null,null,null,null,null,null,null,null,null,null,null,null,null,null,null,null,null,null,null,null,null,null,null,null,null,null,null,null,null,null,null,null,null,null,null,null,null,null,null,null,null,0]
[null,null,null,null,null,null,null,null,null,null,null,null,null,null,null,null,null,null,null,null,null,null,null,null,null,null,null,null,null,null,null,null,null,null,null,null,null,null,null,null,null,null,null,null,0]
[null,null,null,null,null,null,null,null,null,null,null,null,null,null,null,null,null,null,null,null,null,null,null,null,null,null,null,null,null,null,null,null,null,null,null,null,null,null,null,null,null,null,null,null,0]
[null,null,null,null,null,null,null,null,null,null,null,null,null,null,null,null,null,null,null,null,null,null,null,null,null,null,null,null,null,null,null,null,null,null,null,null,null,null,null,null,null,null,null,null,0]
[null,null,null,null,null,null,null,null,null,null,null,null,null,null,null,null,null,null,null,null,null,null,null,null,null,null,null,null,null,null,null,null,null,null,null,null,null,null,null,null,null,null,null,null,0]
[null,null,null,null,null,null,null,null,null,null,null,null,null,null,null,null,null,null,null,null,null,null,null,null,null,null,null,null,null,null,null,null,null,null,null,null,null,null,null,null,null,null,null,null,0]
[null,null,null,null,null,null,null,null,null,null,null,null,null,null,null,null,null,null,null,null,null,null,null,null,null,null,null,null,null,null,null,null,null,null,null,null,null,null,null,null,null,null,null,null,0]
[null,null,null,null,null,null,null,null,null,null,null,null,null,null,null,null,null,null,null,null,null,null,null,null,null,null,null,null,null,null,null,null,null,null,null,null,null,null,null,null,null,null,null,null,0]
[null,null,null,null,null,null,null,null,null,null,null,null,null,null,null,null,null,null,null,null,null,null,null,null,null,null,null,null,null,null,null,null,null,null,null,null,null,null,null,null,null,null,null,null,0]
[null,null,null,null,null,null,null,null,null,null,null,null,null,null,null,null,null,null,null,null,null,null,null,null,null,null,null,null,null,null,null,null,null,null,null,null,null,null,null,null,null,null,null,null,0]
[null,null,null,null,null,null,null,null,null,null,null,null,null,null,null,null,null,null,null,null,null,null,null,null,null,null,null,null,null,null,null,null,null,null,null,null,null,null,null,null,null,null,null,null,0]
[null,null,null,null,null,null,null,null,null,null,null,null,null,null,null,null,null,null,null,null,null,null,null,null,null,null,null,null,null,null,null,null,null,null,null,null,null,null,null,null,null,null,null,null,0]
[null,null,null,null,null,null,null,null,null,null,null,null,null,null,null,null,null,null,null,null,null,null,null,null,null,null,null,null,null,null,null,null,null,null,null,null,null,null,null,null,null,null,null,null,0]
[null,null,null,null,null,null,null,null,null,null,null,null,null,null,null,null,null,null,null,null,null,null,null,null,null,null,null,null,null,null,null,null,null,null,null,null,null,null,null,null,null,null,null,null,0]
[null,null,null,null,null,null,null,null,null,null,null,null,null,null,null,null,null,null,null,null,null,null,null,null,null,null,null,null,null,null,null,null,null,null,null,null,null,null,null,null,null,null,null,null,0]
[null,null,null,null,null,null,null,null,null,null,null,null,null,null,null,null,null,null,null,null,null,null,null,null,null,null,null,null,null,null,null,null,null,null,null,null,null,null,null,null,null,null,null,null,0]
[null,null,null,null,null,null,null,null,null,null,null,null,null,null,null,null,null,null,null,null,null,null,null,null,null,null,null,null,null,null,null,null,null,null,null,null,null,null,null,null,null,null,null,null,0]
[null,null,null,null,null,null,null,null,null,null,null,null,null,null,null,null,null,null,null,null,null,null,null,null,null,null,null,null,null,null,null,null,null,null,null,null,null,null,null,null,null,null,null,null,0]
[null,null,null,null,null,null,null,null,null,null,null,null,null,null,null,null,null,null,null,null,null,null,null,null,null,null,null,null,null,null,null,null,null,null,null,null,null,null,null,null,null,null,null,null,0]
[null,null,null,null,null,null,null,null,null,null,null,null,null,null,null,null,null,null,null,null,null,null,null,null,null,null,null,null,null,null,null,null,null,null,null,null,null,null,null,null,null,null,null,null,0]
[null,null,null,null,null,null,null,null,null,null,null,null,null,null,null,null,null,null,null,null,null,null,null,null,null,null,null,null,null,null,null,null,null,null,null,null,null,null,null,null,null,null,null,null,0]
[null,null,null,null,null,null,null,null,null,null,null,null,null,null,null,null,null,null,null,null,null,null,null,null,null,null,null,null,null,null,null,null,null,null,null,null,null,null,null,null,null,null,null,null,0]
[null,null,null,null,null,null,null,null,null,null,null,null,null,null,null,null,null,null,null,null,null,null,null,null,null,null,null,null,null,null,null,null,null,null,null,null,null,null,null,null,null,null,null,null,0]
[null,null,null,null,null,null,null,null,null,null,null,null,null,null,null,null,null,null,null,null,null,null,null,null,null,null,null,null,null,null,null,null,null,null,null,null,null,null,null,null,null,null,null,null,0]
[null,null,null,null,null,null,null,null,null,null,null,null,null,null,null,null,null,null,null,null,null,null,null,null,null,null,null,null,null,null,null,null,null,null,null,null,null,null,null,null,null,null,null,null,0]
[null,null,null,null,null,null,null,null,null,null,null,null,null,null,null,null,null,null,null,null,null,null,null,null,null,null,null,null,null,null,null,null,null,null,null,null,null,null,null,null,null,null,null,null,0]
[null,null,null,null,null,null,null,null,null,null,null,null,null,null,null,null,null,null,null,null,null,null,null,null,null,null,null,null,null,null,null,null,null,null,null,null,null,null,null,null,null,null,null,null,0]
[null,null,null,null,null,null,null,null,null,null,null,null,null,null,null,null,null,null,null,null,null,null,null,null,null,null,null,null,null,null,null,null,null,null,null,null,null,null,null,null,null,null,null,null,0]
[null,null,null,null,null,null,null,null,null,null,null,null,null,null,null,null,null,null,null,null,null,null,null,null,null,null,null,null,null,null,null,null,null,null,null,null,null,null,null,null,null,null,null,null,0]
[null,null,null,null,null,null,null,null,null,null,null,null,null,null,null,null,null,null,null,null,null,null,null,null,null,null,null,null,null,null,null,null,null,null,null,null,null,null,null,null,null,null,null,null,0]
[null,null,null,null,null,null,null,null,null,null,null,null,null,null,null,null,null,null,null,null,null,null,null,null,null,null,null,null,null,null,null,null,null,null,null,null,null,null,null,null,null,null,null,null,0]
[null,null,null,null,null,null,null,null,null,null,null,null,null,null,null,null,null,null,null,null,null,null,null,null,null,null,null,null,null,null,null,null,null,null,null,null,null,null,null,null,null,null,null,null,0]
[null,null,null,null,null,null,null,null,null,null,null,null,null,null,null,null,null,null,null,null,null,null,null,null,null,null,null,null,null,null,null,null,null,null,null,null,null,null,null,null,null,null,null,null,0]
[null,null,null,null,null,null,null,null,null,null,null,null,null,null,null,null,null,null,null,null,null,null,null,null,null,null,null,null,null,null,null,null,null,null,null,null,null,null,null,null,null,null,null,null,0]
[null,null,null,null,null,null,null,null,null,null,null,null,null,null,null,null,null,null,null,null,null,null,null,null,null,null,null,null,null,null,null,null,null,null,null,null,null,null,null,null,null,null,null,null,0]
[null,null,null,null,null,null,null,null,null,null,null,null,null,null,null,null,null,null,null,null,null,null,null,null,null,null,null,null,null,null,null,null,null,null,null,null,null,null,null,null,null,null,null,null,0]
[null,null,null,null,null,null,null,null,null,null,null,null,null,null,null,null,null,null,null,null,null,null,null,null,null,null,null,null,null,null,null,null,null,null,null,null,null,null,null,null,null,null,null,null,0]
[null,null,null,null,null,null,null,null,null,null,null,null,null,null,null,null,null,null,null,null,null,null,null,null,null,null,null,null,null,null,null,null,null,null,null,null,null,null,null,null,null,null,null,null,0]
[null,null,null,null,null,null,null,null,null,null,null,null,null,null,null,null,null,null,null,null,null,null,null,null,null,null,null,null,null,null,null,null,null,null,null,null,null,null,null,null,null,null,null,null,0]
[null,null,null,null,null,null,null,null,null,null,null,null,null,null,null,null,null,null,null,null,null,null,null,null,null,null,null,null,null,null,null,null,null,null,null,null,null,null,null,null,null,null,null,null,0]
[null,null,null,null,null,null,null,null,null,null,null,null,null,null,null,null,null,null,null,null,null,null,null,null,null,null,null,null,null,null,null,null,null,null,null,null,null,null,null,null,null,null,null,null,0]
[null,null,null,null,null,null,null,null,null,null,null,null,null,null,null,null,null,null,null,null,null,null,null,null,null,null,null,null,null,null,null,null,null,null,null,null,null,null,null,null,null,null,null,null,0]
[null,null,null,null,null,null,null,null,null,null,null,null,null,null,null,null,null,null,null,null,null,null,null,null,null,null,null,null,null,null,null,null,null,null,null,null,null,null,null,null,null,null,null,null,0]
[null,null,null,null,null,null,null,null,null,null,null,null,null,null,null,null,null,null,null,null,null,null,null,null,null,null,null,null,null,null,null,null,null,null,null,null,null,null,null,null,null,null,null,null,0]
[null,null,null,null,null,null,null,null,null,null,null,null,null,null,null,null,null,null,null,null,null,null,null,null,null,null,null,null,null,null,null,null,null,null,null,null,null,null,null,null,null,null,null,null,0]
[null,null,null,null,null,null,null,null,null,null,null,null,null,null,null,null,null,null,null,null,null,null,null,null,null,null,null,null,null,null,null,null,null,null,null,null,null,null,null,null,null,null,null,null,0]
[null,null,null,null,null,null,null,null,null,null,null,null,null,null,null,null,null,null,null,null,null,null,null,null,null,null,null,null,null,null,null,null,null,null,null,null,null,null,null,null,null,null,null,null,0]
[null,null,null,null,null,null,null,null,null,null,null,null,null,null,null,null,null,null,null,null,null,null,null,null,null,null,null,null,null,null,null,null,null,null,null,null,null,null,null,null,null,null,null,null,0]
[null,null,null,null,null,null,null,null,null,null,null,null,null,null,null,null,null,null,null,null,null,null,null,null,null,null,null,null,null,null,null,null,null,null,null,null,null,null,null,null,null,null,null,null,0]
[null,null,null,null,null,null,null,null,null,null,null,null,null,null,null,null,null,null,null,null,null,null,null,null,null,null,null,null,null,null,null,null,null,null,null,null,null,null,null,null,null,null,null,null,{"$f":"IFERROR(IF(AND(K396>5,L396=\"no\"),1,0),\"\")","v":0}]
[null,null,null,null,null,null,null,null,null,null,null,null,null,null,null,null,null,null,null,null,null,null,null,null,null,null,null,null,null,null,null,null,null,null,null,null,null,null,null,null,null,null,null,null,0]
[null,null,null,null,null,null,null,null,null,null,null,null,null,null,null,null,null,null,null,null,null,null,null,null,null,null,null,null,null,null,null,null,null,null,null,null,null,null,null,null,null,null,null,null,0]
[null,null,null,null,null,null,null,null,null,null,null,null,null,null,null,null,null,null,null,null,null,null,null,null,null,null,null,null,null,null,null,null,null,null,null,null,null,null,null,null,null,null,null,null,0]
[null,null,null,null,null,null,null,null,null,null,null,null,null,null,null,null,null,null,null,null,null,null,null,null,null,null,null,null,null,null,null,null,null,null,null,null,null,null,null,null,null,null,null,null,0]
[null,null,null,null,null,null,null,null,null,null,null,null,null,null,null,null,null,null,null,null,null,null,null,null,null,null,null,null,null,null,null,null,null,null,null,null,null,null,null,null,null,null,null,null,0]
[null,null,null,null,null,null,null,null,null,null,null,null,null,null,null,null,null,null,null,null,null,null,null,null,null,null,null,null,null,null,null,null,null,null,null,null,null,null,null,null,null,null,null,null,0]
[null,null,null,null,null,null,null,null,null,null,null,null,null,null,null,null,null,null,null,null,null,null,null,null,null,null,null,null,null,null,null,null,null,null,null,null,null,null,null,null,null,null,null,null,0]
[null,null,null,null,null,null,null,null,null,null,null,null,null,null,null,null,null,null,null,null,null,null,null,null,null,null,null,null,null,null,null,null,null,null,null,null,null,null,null,null,null,null,null,null,0]
[null,null,null,null,null,null,null,null,null,null,null,null,null,null,null,null,null,null,null,null,null,null,null,null,null,null,null,null,null,null,null,null,null,null,null,null,null,null,null,null,null,null,null,null,0]
[null,null,null,null,null,null,null,null,null,null,null,null,null,null,null,null,null,null,null,null,null,null,null,null,null,null,null,null,null,null,null,null,null,null,null,null,null,null,null,null,null,null,null,null,0]
[null,null,null,null,null,null,null,null,null,null,null,null,null,null,null,null,null,null,null,null,null,null,null,null,null,null,null,null,null,null,null,null,null,null,null,null,null,null,null,null,null,null,null,null,0]
[null,null,null,null,null,null,null,null,null,null,null,null,null,null,null,null,null,null,null,null,null,null,null,null,null,null,null,null,null,null,null,null,null,null,null,null,null,null,null,null,null,null,null,null,0]
[null,null,null,null,null,null,null,null,null,null,null,null,null,null,null,null,null,null,null,null,null,null,null,null,null,null,null,null,null,null,null,null,null,null,null,null,null,null,null,null,null,null,null,null,0]
[null,null,null,null,null,null,null,null,null,null,null,null,null,null,null,null,null,null,null,null,null,null,null,null,null,null,null,null,null,null,null,null,null,null,null,null,null,null,null,null,null,null,null,null,0]
[null,null,null,null,null,null,null,null,null,null,null,null,null,null,null,null,null,null,null,null,null,null,null,null,null,null,null,null,null,null,null,null,null,null,null,null,null,null,null,null,null,null,null,null,0]
[null,null,null,null,null,null,null,null,null,null,null,null,null,null,null,null,null,null,null,null,null,null,null,null,null,null,null,null,null,null,null,null,null,null,null,null,null,null,null,null,null,null,null,null,0]
[null,null,null,null,null,null,null,null,null,null,null,null,null,null,null,null,null,null,null,null,null,null,null,null,null,null,null,null,null,null,null,null,null,null,null,null,null,null,null,null,null,null,null,null,0]
[null,null,null,null,null,null,null,null,null,null,null,null,null,null,null,null,null,null,null,null,null,null,null,null,null,null,null,null,null,null,null,null,null,null,null,null,null,null,null,null,null,null,null,null,0]
[null,null,null,null,null,null,null,null,null,null,null,null,null,null,null,null,null,null,null,null,null,null,null,null,null,null,null,null,null,null,null,null,null,null,null,null,null,null,null,null,null,null,null,null,0]
[null,null,null,null,null,null,null,null,null,null,null,null,null,null,null,null,null,null,null,null,null,null,null,null,null,null,null,null,null,null,null,null,null,null,null,null,null,null,null,null,null,null,null,null,0]
[null,null,null,null,null,null,null,null,null,null,null,null,null,null,null,null,null,null,null,null,null,null,null,null,null,null,null,null,null,null,null,null,null,null,null,null,null,null,null,null,null,null,null,null,0]
[null,null,null,null,null,null,null,null,null,null,null,null,null,null,null,null,null,null,null,null,null,null,null,null,null,null,null,null,null,null,null,null,null,null,null,null,null,null,null,null,null,null,null,null,0]
[null,null,null,null,null,null,null,null,null,null,null,null,null,null,null,null,null,null,null,null,null,null,null,null,null,null,null,null,null,null,null,null,null,null,null,null,null,null,null,null,null,null,null,null,0]
[null,null,null,null,null,null,null,null,null,null,null,null,null,null,null,null,null,null,null,null,null,null,null,null,null,null,null,null,null,null,null,null,null,null,null,null,null,null,null,null,null,null,null,null,0]
[null,null,null,null,null,null,null,null,null,null,null,null,null,null,null,null,null,null,null,null,null,null,null,null,null,null,null,null,null,null,null,null,null,null,null,null,null,null,null,null,null,null,null,null,0]
[null,null,null,null,null,null,null,null,null,null,null,null,null,null,null,null,null,null,null,null,null,null,null,null,null,null,null,null,null,null,null,null,null,null,null,null,null,null,null,null,null,null,null,null,0]
[null,null,null,null,null,null,null,null,null,null,null,null,null,null,null,null,null,null,null,null,null,null,null,null,null,null,null,null,null,null,null,null,null,null,null,null,null,null,null,null,null,null,null,null,0]
[null,null,null,null,null,null,null,null,null,null,null,null,null,null,null,null,null,null,null,null,null,null,null,null,null,null,null,null,null,null,null,null,null,null,null,null,null,null,null,null,null,null,null,null,0]
[null,null,null,null,null,null,null,null,null,null,null,null,null,null,null,null,null,null,null,null,null,null,null,null,null,null,null,null,null,null,null,null,null,null,null,null,null,null,null,null,null,null,null,null,0]
[null,null,null,null,null,null,null,null,null,null,null,null,null,null,null,null,null,null,null,null,null,null,null,null,null,null,null,null,null,null,null,null,null,null,null,null,null,null,null,null,null,null,null,null,0]
[null,null,null,null,null,null,null,null,null,null,null,null,null,null,null,null,null,null,null,null,null,null,null,null,null,null,null,null,null,null,null,null,null,null,null,null,null,null,null,null,null,null,null,null,0]
[null,null,null,null,null,null,null,null,null,null,null,null,null,null,null,null,null,null,null,null,null,null,null,null,null,null,null,null,null,null,null,null,null,null,null,null,null,null,null,null,null,null,null,null,0]
[null,null,null,null,null,null,null,null,null,null,null,null,null,null,null,null,null,null,null,null,null,null,null,null,null,null,null,null,null,null,null,null,null,null,null,null,null,null,null,null,null,null,null,null,0]
[null,null,null,null,null,null,null,null,null,null,null,null,null,null,null,null,null,null,null,null,null,null,null,null,null,null,null,null,null,null,null,null,null,null,null,null,null,null,null,null,null,null,null,null,0]
[null,null,null,null,null,null,null,null,null,null,null,null,null,null,null,null,null,null,null,null,null,null,null,null,null,null,null,null,null,null,null,null,null,null,null,null,null,null,null,null,null,null,null,null,0]
[null,null,null,null,null,null,null,null,null,null,null,null,null,null,null,null,null,null,null,null,null,null,null,null,null,null,null,null,null,null,null,null,null,null,null,null,null,null,null,null,null,null,null,null,0]
[null,null,null,null,null,null,null,null,null,null,null,null,null,null,null,null,null,null,null,null,null,null,null,null,null,null,null,null,null,null,null,null,null,null,null,null,null,null,null,null,null,null,null,null,0]
[null,null,null,null,null,null,null,null,null,null,null,null,null,null,null,null,null,null,null,null,null,null,null,null,null,null,null,null,null,null,null,null,null,null,null,null,null,null,null,null,null,null,null,null,0]
[null,null,null,null,null,null,null,null,null,null,null,null,null,null,null,null,null,null,null,null,null,null,null,null,null,null,null,null,null,null,null,null,null,null,null,null,null,null,null,null,null,null,null,null,0]
[null,null,null,null,null,null,null,null,null,null,null,null,null,null,null,null,null,null,null,null,null,null,null,null,null,null,null,null,null,null,null,null,null,null,null,null,null,null,null,null,null,null,null,null,0]
[null,null,null,null,null,null,null,null,null,null,null,null,null,null,null,null,null,null,null,null,null,null,null,null,null,null,null,null,null,null,null,null,null,null,null,null,null,null,null,null,null,null,null,null,0]
[null,null,null,null,null,null,null,null,null,null,null,null,null,null,null,null,null,null,null,null,null,null,null,null,null,null,null,null,null,null,null,null,null,null,null,null,null,null,null,null,null,null,null,null,0]
[null,null,null,null,null,null,null,null,null,null,null,null,null,null,null,null,null,null,null,null,null,null,null,null,null,null,null,null,null,null,null,null,null,null,null,null,null,null,null,null,null,null,null,null,0]
[null,null,null,null,null,null,null,null,null,null,null,null,null,null,null,null,null,null,null,null,null,null,null,null,null,null,null,null,null,null,null,null,null,null,null,null,null,null,null,null,null,null,null,null,0]
[null,null,null,null,null,null,null,null,null,null,null,null,null,null,null,null,null,null,null,null,null,null,null,null,null,null,null,null,null,null,null,null,null,null,null,null,null,null,null,null,null,null,null,null,0]
[null,null,null,null,null,null,null,null,null,null,null,null,null,null,null,null,null,null,null,null,null,null,null,null,null,null,null,null,null,null,null,null,null,null,null,null,null,null,null,null,null,null,null,null,0]
[null,null,null,null,null,null,null,null,null,null,null,null,null,null,null,null,null,null,null,null,null,null,null,null,null,null,null,null,null,null,null,null,null,null,null,null,null,null,null,null,null,null,null,null,0]
[null,null,null,null,null,null,null,null,null,null,null,null,null,null,null,null,null,null,null,null,null,null,null,null,null,null,null,null,null,null,null,null,null,null,null,null,null,null,null,null,null,null,null,null,0]
[null,null,null,null,null,null,null,null,null,null,null,null,null,null,null,null,null,null,null,null,null,null,null,null,null,null,null,null,null,null,null,null,null,null,null,null,null,null,null,null,null,null,null,null,0]
[null,null,null,null,null,null,null,null,null,null,null,null,null,null,null,null,null,null,null,null,null,null,null,null,null,null,null,null,null,null,null,null,null,null,null,null,null,null,null,null,null,null,null,null,0]
[null,null,null,null,null,null,null,null,null,null,null,null,null,null,null,null,null,null,null,null,null,null,null,null,null,null,null,null,null,null,null,null,null,null,null,null,null,null,null,null,null,null,null,null,0]
[null,null,null,null,null,null,null,null,null,null,null,null,null,null,null,null,null,null,null,null,null,null,null,null,null,null,null,null,null,null,null,null,null,null,null,null,null,null,null,null,null,null,null,null,0]
[null,null,null,null,null,null,null,null,null,null,null,null,null,null,null,null,null,null,null,null,null,null,null,null,null,null,null,null,null,null,null,null,null,null,null,null,null,null,null,null,null,null,null,null,0]
[null,null,null,null,null,null,null,null,null,null,null,null,null,null,null,null,null,null,null,null,null,null,null,null,null,null,null,null,null,null,null,null,null,null,null,null,null,null,null,null,null,null,null,null,0]
[null,null,null,null,null,null,null,null,null,null,null,null,null,null,null,null,null,null,null,null,null,null,null,null,null,null,null,null,null,null,null,null,null,null,null,null,null,null,null,null,null,null,null,null,0]
[null,null,null,null,null,null,null,null,null,null,null,null,null,null,null,null,null,null,null,null,null,null,null,null,null,null,null,null,null,null,null,null,null,null,null,null,null,null,null,null,null,null,null,null,0]
[null,null,null,null,null,null,null,null,null,null,null,null,null,null,null,null,null,null,null,null,null,null,null,null,null,null,null,null,null,null,null,null,null,null,null,null,null,null,null,null,null,null,null,null,0]
[null,null,null,null,null,null,null,null,null,null,null,null,null,null,null,null,null,null,null,null,null,null,null,null,null,null,null,null,null,null,null,null,null,null,null,null,null,null,null,null,null,null,null,null,0]
[null,null,null,null,null,null,null,null,null,null,null,null,null,null,null,null,null,null,null,null,null,null,null,null,null,null,null,null,null,null,null,null,null,null,null,null,null,null,null,null,null,null,null,null,0]
[null,null,null,null,null,null,null,null,null,null,null,null,null,null,null,null,null,null,null,null,null,null,null,null,null,null,null,null,null,null,null,null,null,null,null,null,null,null,null,null,null,null,null,null,0]
[null,null,null,null,null,null,null,null,null,null,null,null,null,null,null,null,null,null,null,null,null,null,null,null,null,null,null,null,null,null,null,null,null,null,null,null,null,null,null,null,null,null,null,null,0]
[null,null,null,null,null,null,null,null,null,null,null,null,null,null,null,null,null,null,null,null,null,null,null,null,null,null,null,null,null,null,null,null,null,null,null,null,null,null,null,null,null,null,null,null,0]
[null,null,null,null,null,null,null,null,null,null,null,null,null,null,null,null,null,null,null,null,null,null,null,null,null,null,null,null,null,null,null,null,null,null,null,null,null,null,null,null,null,null,null,null,0]
[null,null,null,null,null,null,null,null,null,null,null,null,null,null,null,null,null,null,null,null,null,null,null,null,null,null,null,null,null,null,null,null,null,null,null,null,null,null,null,null,null,null,null,null,{"$f":"IFERROR(IF(AND(K460>5,L460=\"no\"),1,0),\"\")","v":0}]
[null,null,null,null,null,null,null,null,null,null,null,null,null,null,null,null,null,null,null,null,null,null,null,null,null,null,null,null,null,null,null,null,null,null,null,null,null,null,null,null,null,null,null,null,0]
[null,null,null,null,null,null,null,null,null,null,null,null,null,null,null,null,null,null,null,null,null,null,null,null,null,null,null,null,null,null,null,null,null,null,null,null,null,null,null,null,null,null,null,null,0]
[null,null,null,null,null,null,null,null,null,null,null,null,null,null,null,null,null,null,null,null,null,null,null,null,null,null,null,null,null,null,null,null,null,null,null,null,null,null,null,null,null,null,null,null,0]
[null,null,null,null,null,null,null,null,null,null,null,null,null,null,null,null,null,null,null,null,null,null,null,null,null,null,null,null,null,null,null,null,null,null,null,null,null,null,null,null,null,null,null,null,0]
[null,null,null,null,null,null,null,null,null,null,null,null,null,null,null,null,null,null,null,null,null,null,null,null,null,null,null,null,null,null,null,null,null,null,null,null,null,null,null,null,null,null,null,null,0]
[null,null,null,null,null,null,null,null,null,null,null,null,null,null,null,null,null,null,null,null,null,null,null,null,null,null,null,null,null,null,null,null,null,null,null,null,null,null,null,null,null,null,null,null,0]
[null,null,null,null,null,null,null,null,null,null,null,null,null,null,null,null,null,null,null,null,null,null,null,null,null,null,null,null,null,null,null,null,null,null,null,null,null,null,null,null,null,null,null,null,0]
[null,null,null,null,null,null,null,null,null,null,null,null,null,null,null,null,null,null,null,null,null,null,null,null,null,null,null,null,null,null,null,null,null,null,null,null,null,null,null,null,null,null,null,null,0]
[null,null,null,null,null,null,null,null,null,null,null,null,null,null,null,null,null,null,null,null,null,null,null,null,null,null,null,null,null,null,null,null,null,null,null,null,null,null,null,null,null,null,null,null,0]
[null,null,null,null,null,null,null,null,null,null,null,null,null,null,null,null,null,null,null,null,null,null,null,null,null,null,null,null,null,null,null,null,null,null,null,null,null,null,null,null,null,null,null,null,0]
[null,null,null,null,null,null,null,null,null,null,null,null,null,null,null,null,null,null,null,null,null,null,null,null,null,null,null,null,null,null,null,null,null,null,null,null,null,null,null,null,null,null,null,null,0]
[null,null,null,null,null,null,null,null,null,null,null,null,null,null,null,null,null,null,null,null,null,null,null,null,null,null,null,null,null,null,null,null,null,null,null,null,null,null,null,null,null,null,null,null,0]
[null,null,null,null,null,null,null,null,null,null,null,null,null,null,null,null,null,null,null,null,null,null,null,null,null,null,null,null,null,null,null,null,null,null,null,null,null,null,null,null,null,null,null,null,0]
[null,null,null,null,null,null,null,null,null,null,null,null,null,null,null,null,null,null,null,null,null,null,null,null,null,null,null,null,null,null,null,null,null,null,null,null,null,null,null,null,null,null,null,null,0]
[null,null,null,null,null,null,null,null,null,null,null,null,null,null,null,null,null,null,null,null,null,null,null,null,null,null,null,null,null,null,null,null,null,null,null,null,null,null,null,null,null,null,null,null,0]
[null,null,null,null,null,null,null,null,null,null,null,null,null,null,null,null,null,null,null,null,null,null,null,null,null,null,null,null,null,null,null,null,null,null,null,null,null,null,null,null,null,null,null,null,0]
[null,null,null,null,null,null,null,null,null,null,null,null,null,null,null,null,null,null,null,null,null,null,null,null,null,null,null,null,null,null,null,null,null,null,null,null,null,null,null,null,null,null,null,null,0]
[null,null,null,null,null,null,null,null,null,null,null,null,null,null,null,null,null,null,null,null,null,null,null,null,null,null,null,null,null,null,null,null,null,null,null,null,null,null,null,null,null,null,null,null,0]
[null,null,null,null,null,null,null,null,null,null,null,null,null,null,null,null,null,null,null,null,null,null,null,null,null,null,null,null,null,null,null,null,null,null,null,null,null,null,null,null,null,null,null,null,0]
[null,null,null,null,null,null,null,null,null,null,null,null,null,null,null,null,null,null,null,null,null,null,null,null,null,null,null,null,null,null,null,null,null,null,null,null,null,null,null,null,null,null,null,null,0]
[null,null,null,null,null,null,null,null,null,null,null,null,null,null,null,null,null,null,null,null,null,null,null,null,null,null,null,null,null,null,null,null,null,null,null,null,null,null,null,null,null,null,null,null,0]
[null,null,null,null,null,null,null,null,null,null,null,null,null,null,null,null,null,null,null,null,null,null,null,null,null,null,null,null,null,null,null,null,null,null,null,null,null,null,null,null,null,null,null,null,0]
[null,null,null,null,null,null,null,null,null,null,null,null,null,null,null,null,null,null,null,null,null,null,null,null,null,null,null,null,null,null,null,null,null,null,null,null,null,null,null,null,null,null,null,null,0]
[null,null,null,null,null,null,null,null,null,null,null,null,null,null,null,null,null,null,null,null,null,null,null,null,null,null,null,null,null,null,null,null,null,null,null,null,null,null,null,null,null,null,null,null,0]
[null,null,null,null,null,null,null,null,null,null,null,null,null,null,null,null,null,null,null,null,null,null,null,null,null,null,null,null,null,null,null,null,null,null,null,null,null,null,null,null,null,null,null,null,0]
[null,null,null,null,null,null,null,null,null,null,null,null,null,null,null,null,null,null,null,null,null,null,null,null,null,null,null,null,null,null,null,null,null,null,null,null,null,null,null,null,null,null,null,null,0]
[null,null,null,null,null,null,null,null,null,null,null,null,null,null,null,null,null,null,null,null,null,null,null,null,null,null,null,null,null,null,null,null,null,null,null,null,null,null,null,null,null,null,null,null,0]
[null,null,null,null,null,null,null,null,null,null,null,null,null,null,null,null,null,null,null,null,null,null,null,null,null,null,null,null,null,null,null,null,null,null,null,null,null,null,null,null,null,null,null,null,0]
[null,null,null,null,null,null,null,null,null,null,null,null,null,null,null,null,null,null,null,null,null,null,null,null,null,null,null,null,null,null,null,null,null,null,null,null,null,null,null,null,null,null,null,null,0]
[null,null,null,null,null,null,null,null,null,null,null,null,null,null,null,null,null,null,null,null,null,null,null,null,null,null,null,null,null,null,null,null,null,null,null,null,null,null,null,null,null,null,null,null,0]
[null,null,null,null,null,null,null,null,null,null,null,null,null,null,null,null,null,null,null,null,null,null,null,null,null,null,null,null,null,null,null,null,null,null,null,null,null,null,null,null,null,null,null,null,0]
[null,null,null,null,null,null,null,null,null,null,null,null,null,null,null,null,null,null,null,null,null,null,null,null,null,null,null,null,null,null,null,null,null,null,null,null,null,null,null,null,null,null,null,null,0]
[null,null,null,null,null,null,null,null,null,null,null,null,null,null,null,null,null,null,null,null,null,null,null,null,null,null,null,null,null,null,null,null,null,null,null,null,null,null,null,null,null,null,null,null,0]
[null,null,null,null,null,null,null,null,null,null,null,null,null,null,null,null,null,null,null,null,null,null,null,null,null,null,null,null,null,null,null,null,null,null,null,null,null,null,null,null,null,null,null,null,0]
[null,null,null,null,null,null,null,null,null,null,null,null,null,null,null,null,null,null,null,null,null,null,null,null,null,null,null,null,null,null,null,null,null,null,null,null,null,null,null,null,null,null,null,null,0]
[null,null,null,null,null,null,null,null,null,null,null,null,null,null,null,null,null,null,null,null,null,null,null,null,null,null,null,null,null,null,null,null,null,null,null,null,null,null,null,null,null,null,null,null,0]
[null,null,null,null,null,null,null,null,null,null,null,null,null,null,null,null,null,null,null,null,null,null,null,null,null,null,null,null,null,null,null,null,null,null,null,null,null,null,null,null,null,null,null,null,0]
[null,null,null,null,null,null,null,null,null,null,null,null,null,null,null,null,null,null,null,null,null,null,null,null,null,null,null,null,null,null,null,null,null,null,null,null,null,null,null,null,null,null,null,null,0]
[null,null,null,null,null,null,null,null,null,null,null,null,null,null,null,null,null,null,null,null,null,null,null,null,null,null,null,null,null,null,null,null,null,null,null,null,null,null,null,null,null,null,null,null,0]
[null,null,null,null,null,null,null,null,null,null,null,null,null,null,null,null,null,null,null,null,null,null,null,null,null,null,null,null,null,null,null,null,null,null,null,null,null,null,null,null,null,null,null,null,0]
[null,null,null,null,null,null,null,null,null,null,null,null,null,null,null,null,null,null,null,null,null,null,null,null,null,null,null,null,null,null,null,null,null,null,null,null,null,null,null,null,null,null,null,null,0]
[null,null,null,null,null,null,null,null,null,null,null,null,null,null,null,null,null,null,null,null,null,null,null,null,null,null,null,null,null,null,null,null,null,null,null,null,null,null,null,null,null,null,null,null,0]
[null,null,null,null,null,null,null,null,null,null,null,null,null,null,null,null,null,null,null,null,null,null,null,null,null,null,null,null,null,null,null,null,null,null,null,null,null,null,null,null,null,null,null,null,0]
[null,null,null,null,null,null,null,null,null,null,null,null,null,null,null,null,null,null,null,null,null,null,null,null,null,null,null,null,null,null,null,null,null,null,null,null,null,null,null,null,null,null,null,null,0]
[null,null,null,null,null,null,null,null,null,null,null,null,null,null,null,null,null,null,null,null,null,null,null,null,null,null,null,null,null,null,null,null,null,null,null,null,null,null,null,null,null,null,null,null,0]
[null,null,null,null,null,null,null,null,null,null,null,null,null,null,null,null,null,null,null,null,null,null,null,null,null,null,null,null,null,null,null,null,null,null,null,null,null,null,null,null,null,null,null,null,0]
[null,null,null,null,null,null,null,null,null,null,null,null,null,null,null,null,null,null,null,null,null,null,null,null,null,null,null,null,null,null,null,null,null,null,null,null,null,null,null,null,null,null,null,null,0]
[null,null,null,null,null,null,null,null,null,null,null,null,null,null,null,null,null,null,null,null,null,null,null,null,null,null,null,null,null,null,null,null,null,null,null,null,null,null,null,null,null,null,null,null,0]
[null,null,null,null,null,null,null,null,null,null,null,null,null,null,null,null,null,null,null,null,null,null,null,null,null,null,null,null,null,null,null,null,null,null,null,null,null,null,null,null,null,null,null,null,0]
[null,null,null,null,null,null,null,null,null,null,null,null,null,null,null,null,null,null,null,null,null,null,null,null,null,null,null,null,null,null,null,null,null,null,null,null,null,null,null,null,null,null,null,null,0]
[null,null,null,null,null,null,null,null,null,null,null,null,null,null,null,null,null,null,null,null,null,null,null,null,null,null,null,null,null,null,null,null,null,null,null,null,null,null,null,null,null,null,null,null,0]
[null,null,null,null,null,null,null,null,null,null,null,null,null,null,null,null,null,null,null,null,null,null,null,null,null,null,null,null,null,null,null,null,null,null,null,null,null,null,null,null,null,null,null,null,0]
[null,null,null,null,null,null,null,null,null,null,null,null,null,null,null,null,null,null,null,null,null,null,null,null,null,null,null,null,null,null,null,null,null,null,null,null,null,null,null,null,null,null,null,null,0]
[null,null,null,null,null,null,null,null,null,null,null,null,null,null,null,null,null,null,null,null,null,null,null,null,null,null,null,null,null,null,null,null,null,null,null,null,null,null,null,null,null,null,null,null,0]
[null,null,null,null,null,null,null,null,null,null,null,null,null,null,null,null,null,null,null,null,null,null,null,null,null,null,null,null,null,null,null,null,null,null,null,null,null,null,null,null,null,null,null,null,0]
[null,null,null,null,null,null,null,null,null,null,null,null,null,null,null,null,null,null,null,null,null,null,null,null,null,null,null,null,null,null,null,null,null,null,null,null,null,null,null,null,null,null,null,null,0]
[null,null,null,null,null,null,null,null,null,null,null,null,null,null,null,null,null,null,null,null,null,null,null,null,null,null,null,null,null,null,null,null,null,null,null,null,null,null,null,null,null,null,null,null,0]
[null,null,null,null,null,null,null,null,null,null,null,null,null,null,null,null,null,null,null,null,null,null,null,null,null,null,null,null,null,null,null,null,null,null,null,null,null,null,null,null,null,null,null,null,0]
[null,null,null,null,null,null,null,null,null,null,null,null,null,null,null,null,null,null,null,null,null,null,null,null,null,null,null,null,null,null,null,null,null,null,null,null,null,null,null,null,null,null,null,null,0]
[null,null,null,null,null,null,null,null,null,null,null,null,null,null,null,null,null,null,null,null,null,null,null,null,null,null,null,null,null,null,null,null,null,null,null,null,null,null,null,null,null,null,null,null,0]
[null,null,null,null,null,null,null,null,null,null,null,null,null,null,null,null,null,null,null,null,null,null,null,null,null,null,null,null,null,null,null,null,null,null,null,null,null,null,null,null,null,null,null,null,0]
[null,null,null,null,null,null,null,null,null,null,null,null,null,null,null,null,null,null,null,null,null,null,null,null,null,null,null,null,null,null,null,null,null,null,null,null,null,null,null,null,null,null,null,null,0]
[null,null,null,null,null,null,null,null,null,null,null,null,null,null,null,null,null,null,null,null,null,null,null,null,null,null,null,null,null,null,null,null,null,null,null,null,null,null,null,null,null,null,null,null,0]
[null,null,null,null,null,null,null,null,null,null,null,null,null,null,null,null,null,null,null,null,null,null,null,null,null,null,null,null,null,null,null,null,null,null,null,null,null,null,null,null,null,null,null,null,{"$f":"IFERROR(IF(AND(K524>5,L524=\"no\"),1,0),\"\")","v":0}]
[null,null,null,null,null,null,null,null,null,null,null,null,null,null,null,null,null,null,null,null,null,null,null,null,null,null,null,null,null,null,null,null,null,null,null,null,null,null,null,null,null,null,null,null,0]
[null,null,null,null,null,null,null,null,null,null,null,null,null,null,null,null,null,null,null,null,null,null,null,null,null,null,null,null,null,null,null,null,null,null,null,null,null,null,null,null,null,null,null,null,0]
[null,null,null,null,null,null,null,null,null,null,null,null,null,null,null,null,null,null,null,null,null,null,null,null,null,null,null,null,null,null,null,null,null,null,null,null,null,null,null,null,null,null,null,null,0]
[null,null,null,null,null,null,null,null,null,null,null,null,null,null,null,null,null,null,null,null,null,null,null,null,null,null,null,null,null,null,null,null,null,null,null,null,null,null,null,null,null,null,null,null,0]
[null,null,null,null,null,null,null,null,null,null,null,null,null,null,null,null,null,null,null,null,null,null,null,null,null,null,null,null,null,null,null,null,null,null,null,null,null,null,null,null,null,null,null,null,0]
[null,null,null,null,null,null,null,null,null,null,null,null,null,null,null,null,null,null,null,null,null,null,null,null,null,null,null,null,null,null,null,null,null,null,null,null,null,null,null,null,null,null,null,null,0]
[null,null,null,null,null,null,null,null,null,null,null,null,null,null,null,null,null,null,null,null,null,null,null,null,null,null,null,null,null,null,null,null,null,null,null,null,null,null,null,null,null,null,null,null,0]
[null,null,null,null,null,null,null,null,null,null,null,null,null,null,null,null,null,null,null,null,null,null,null,null,null,null,null,null,null,null,null,null,null,null,null,null,null,null,null,null,null,null,null,null,0]
[null,null,null,null,null,null,null,null,null,null,null,null,null,null,null,null,null,null,null,null,null,null,null,null,null,null,null,null,null,null,null,null,null,null,null,null,null,null,null,null,null,null,null,null,0]
[null,null,null,null,null,null,null,null,null,null,null,null,null,null,null,null,null,null,null,null,null,null,null,null,null,null,null,null,null,null,null,null,null,null,null,null,null,null,null,null,null,null,null,null,0]
[null,null,null,null,null,null,null,null,null,null,null,null,null,null,null,null,null,null,null,null,null,null,null,null,null,null,null,null,null,null,null,null,null,null,null,null,null,null,null,null,null,null,null,null,0]
[null,null,null,null,null,null,null,null,null,null,null,null,null,null,null,null,null,null,null,null,null,null,null,null,null,null,null,null,null,null,null,null,null,null,null,null,null,null,null,null,null,null,null,null,0]
[null,null,null,null,null,null,null,null,null,null,null,null,null,null,null,null,null,null,null,null,null,null,null,null,null,null,null,null,null,null,null,null,null,null,null,null,null,null,null,null,null,null,null,null,0]
[null,null,null,null,null,null,null,null,null,null,null,null,null,null,null,null,null,null,null,null,null,null,null,null,null,null,null,null,null,null,null,null,null,null,null,null,null,null,null,null,null,null,null,null,0]
[null,null,null,null,null,null,null,null,null,null,null,null,null,null,null,null,null,null,null,null,null,null,null,null,null,null,null,null,null,null,null,null,null,null,null,null,null,null,null,null,null,null,null,null,0]
[null,null,null,null,null,null,null,null,null,null,null,null,null,null,null,null,null,null,null,null,null,null,null,null,null,null,null,null,null,null,null,null,null,null,null,null,null,null,null,null,null,null,null,null,0]
[null,null,null,null,null,null,null,null,null,null,null,null,null,null,null,null,null,null,null,null,null,null,null,null,null,null,null,null,null,null,null,null,null,null,null,null,null,null,null,null,null,null,null,null,0]
[null,null,null,null,null,null,null,null,null,null,null,null,null,null,null,null,null,null,null,null,null,null,null,null,null,null,null,null,null,null,null,null,null,null,null,null,null,null,null,null,null,null,null,null,0]
[null,null,null,null,null,null,null,null,null,null,null,null,null,null,null,null,null,null,null,null,null,null,null,null,null,null,null,null,null,null,null,null,null,null,null,null,null,null,null,null,null,null,null,null,0]
[null,null,null,null,null,null,null,null,null,null,null,null,null,null,null,null,null,null,null,null,null,null,null,null,null,null,null,null,null,null,null,null,null,null,null,null,null,null,null,null,null,null,null,null,0]
[null,null,null,null,null,null,null,null,null,null,null,null,null,null,null,null,null,null,null,null,null,null,null,null,null,null,null,null,null,null,null,null,null,null,null,null,null,null,null,null,null,null,null,null,0]
[null,null,null,null,null,null,null,null,null,null,null,null,null,null,null,null,null,null,null,null,null,null,null,null,null,null,null,null,null,null,null,null,null,null,null,null,null,null,null,null,null,null,null,null,0]
[null,null,null,null,null,null,null,null,null,null,null,null,null,null,null,null,null,null,null,null,null,null,null,null,null,null,null,null,null,null,null,null,null,null,null,null,null,null,null,null,null,null,null,null,0]
[null,null,null,null,null,null,null,null,null,null,null,null,null,null,null,null,null,null,null,null,null,null,null,null,null,null,null,null,null,null,null,null,null,null,null,null,null,null,null,null,null,null,null,null,0]
[null,null,null,null,null,null,null,null,null,null,null,null,null,null,null,null,null,null,null,null,null,null,null,null,null,null,null,null,null,null,null,null,null,null,null,null,null,null,null,null,null,null,null,null,0]
[null,null,null,null,null,null,null,null,null,null,null,null,null,null,null,null,null,null,null,null,null,null,null,null,null,null,null,null,null,null,null,null,null,null,null,null,null,null,null,null,null,null,null,null,0]
[null,null,null,null,null,null,null,null,null,null,null,null,null,null,null,null,null,null,null,null,null,null,null,null,null,null,null,null,null,null,null,null,null,null,null,null,null,null,null,null,null,null,null,null,0]
[null,null,null,null,null,null,null,null,null,null,null,null,null,null,null,null,null,null,null,null,null,null,null,null,null,null,null,null,null,null,null,null,null,null,null,null,null,null,null,null,null,null,null,null,0]
[null,null,null,null,null,null,null,null,null,null,null,null,null,null,null,null,null,null,null,null,null,null,null,null,null,null,null,null,null,null,null,null,null,null,null,null,null,null,null,null,null,null,null,null,0]
[null,null,null,null,null,null,null,null,null,null,null,null,null,null,null,null,null,null,null,null,null,null,null,null,null,null,null,null,null,null,null,null,null,null,null,null,null,null,null,null,null,null,null,null,0]
[null,null,null,null,null,null,null,null,null,null,null,null,null,null,null,null,null,null,null,null,null,null,null,null,null,null,null,null,null,null,null,null,null,null,null,null,null,null,null,null,null,null,null,null,0]
[null,null,null,null,null,null,null,null,null,null,null,null,null,null,null,null,null,null,null,null,null,null,null,null,null,null,null,null,null,null,null,null,null,null,null,null,null,null,null,null,null,null,null,null,0]
[null,null,null,null,null,null,null,null,null,null,null,null,null,null,null,null,null,null,null,null,null,null,null,null,null,null,null,null,null,null,null,null,null,null,null,null,null,null,null,null,null,null,null,null,0]
[null,null,null,null,null,null,null,null,null,null,null,null,null,null,null,null,null,null,null,null,null,null,null,null,null,null,null,null,null,null,null,null,null,null,null,null,null,null,null,null,null,null,null,null,0]
[null,null,null,null,null,null,null,null,null,null,null,null,null,null,null,null,null,null,null,null,null,null,null,null,null,null,null,null,null,null,null,null,null,null,null,null,null,null,null,null,null,null,null,null,0]
[null,null,null,null,null,null,null,null,null,null,null,null,null,null,null,null,null,null,null,null,null,null,null,null,null,null,null,null,null,null,null,null,null,null,null,null,null,null,null,null,null,null,null,null,0]
[null,null,null,null,null,null,null,null,null,null,null,null,null,null,null,null,null,null,null,null,null,null,null,null,null,null,null,null,null,null,null,null,null,null,null,null,null,null,null,null,null,null,null,null,0]
[null,null,null,null,null,null,null,null,null,null,null,null,null,null,null,null,null,null,null,null,null,null,null,null,null,null,null,null,null,null,null,null,null,null,null,null,null,null,null,null,null,null,null,null,0]
[null,null,null,null,null,null,null,null,null,null,null,null,null,null,null,null,null,null,null,null,null,null,null,null,null,null,null,null,null,null,null,null,null,null,null,null,null,null,null,null,null,null,null,null,0]
[null,null,null,null,null,null,null,null,null,null,null,null,null,null,null,null,null,null,null,null,null,null,null,null,null,null,null,null,null,null,null,null,null,null,null,null,null,null,null,null,null,null,null,null,0]
[null,null,null,null,null,null,null,null,null,null,null,null,null,null,null,null,null,null,null,null,null,null,null,null,null,null,null,null,null,null,null,null,null,null,null,null,null,null,null,null,null,null,null,null,0]
[null,null,null,null,null,null,null,null,null,null,null,null,null,null,null,null,null,null,null,null,null,null,null,null,null,null,null,null,null,null,null,null,null,null,null,null,null,null,null,null,null,null,null,null,0]
[null,null,null,null,null,null,null,null,null,null,null,null,null,null,null,null,null,null,null,null,null,null,null,null,null,null,null,null,null,null,null,null,null,null,null,null,null,null,null,null,null,null,null,null,0]
[null,null,null,null,null,null,null,null,null,null,null,null,null,null,null,null,null,null,null,null,null,null,null,null,null,null,null,null,null,null,null,null,null,null,null,null,null,null,null,null,null,null,null,null,0]
[null,null,null,null,null,null,null,null,null,null,null,null,null,null,null,null,null,null,null,null,null,null,null,null,null,null,null,null,null,null,null,null,null,null,null,null,null,null,null,null,null,null,null,null,0]
[null,null,null,null,null,null,null,null,null,null,null,null,null,null,null,null,null,null,null,null,null,null,null,null,null,null,null,null,null,null,null,null,null,null,null,null,null,null,null,null,null,null,null,null,0]
[null,null,null,null,null,null,null,null,null,null,null,null,null,null,null,null,null,null,null,null,null,null,null,null,null,null,null,null,null,null,null,null,null,null,null,null,null,null,null,null,null,null,null,null,0]
[null,null,null,null,null,null,null,null,null,null,null,null,null,null,null,null,null,null,null,null,null,null,null,null,null,null,null,null,null,null,null,null,null,null,null,null,null,null,null,null,null,null,null,null,0]
[null,null,null,null,null,null,null,null,null,null,null,null,null,null,null,null,null,null,null,null,null,null,null,null,null,null,null,null,null,null,null,null,null,null,null,null,null,null,null,null,null,null,null,null,0]
[null,null,null,null,null,null,null,null,null,null,null,null,null,null,null,null,null,null,null,null,null,null,null,null,null,null,null,null,null,null,null,null,null,null,null,null,null,null,null,null,null,null,null,null,0]
[null,null,null,null,null,null,null,null,null,null,null,null,null,null,null,null,null,null,null,null,null,null,null,null,null,null,null,null,null,null,null,null,null,null,null,null,null,null,null,null,null,null,null,null,0]
[null,null,null,null,null,null,null,null,null,null,null,null,null,null,null,null,null,null,null,null,null,null,null,null,null,null,null,null,null,null,null,null,null,null,null,null,null,null,null,null,null,null,null,null,0]
[null,null,null,null,null,null,null,null,null,null,null,null,null,null,null,null,null,null,null,null,null,null,null,null,null,null,null,null,null,null,null,null,null,null,null,null,null,null,null,null,null,null,null,null,0]
[null,null,null,null,null,null,null,null,null,null,null,null,null,null,null,null,null,null,null,null,null,null,null,null,null,null,null,null,null,null,null,null,null,null,null,null,null,null,null,null,null,null,null,null,0]
[null,null,null,null,null,null,null,null,null,null,null,null,null,null,null,null,null,null,null,null,null,null,null,null,null,null,null,null,null,null,null,null,null,null,null,null,null,null,null,null,null,null,null,null,0]
[null,null,null,null,null,null,null,null,null,null,null,null,null,null,null,null,null,null,null,null,null,null,null,null,null,null,null,null,null,null,null,null,null,null,null,null,null,null,null,null,null,null,null,null,0]
[null,null,null,null,null,null,null,null,null,null,null,null,null,null,null,null,null,null,null,null,null,null,null,null,null,null,null,null,null,null,null,null,null,null,null,null,null,null,null,null,null,null,null,null,0]
[null,null,null,null,null,null,null,null,null,null,null,null,null,null,null,null,null,null,null,null,null,null,null,null,null,null,null,null,null,null,null,null,null,null,null,null,null,null,null,null,null,null,null,null,0]
[null,null,null,null,null,null,null,null,null,null,null,null,null,null,null,null,null,null,null,null,null,null,null,null,null,null,null,null,null,null,null,null,null,null,null,null,null,null,null,null,null,null,null,null,0]
[null,null,null,null,null,null,null,null,null,null,null,null,null,null,null,null,null,null,null,null,null,null,null,null,null,null,null,null,null,null,null,null,null,null,null,null,null,null,null,null,null,null,null,null,0]
[null,null,null,null,null,null,null,null,null,null,null,null,null,null,null,null,null,null,null,null,null,null,null,null,null,null,null,null,null,null,null,null,null,null,null,null,null,null,null,null,null,null,null,null,0]
[null,null,null,null,null,null,null,null,null,null,null,null,null,null,null,null,null,null,null,null,null,null,null,null,null,null,null,null,null,null,null,null,null,null,null,null,null,null,null,null,null,null,null,null,0]
[null,null,null,null,null,null,null,null,null,null,null,null,null,null,null,null,null,null,null,null,null,null,null,null,null,null,null,null,null,null,null,null,null,null,null,null,null,null,null,null,null,null,null,null,0]
[null,null,null,null,null,null,null,null,null,null,null,null,null,null,null,null,null,null,null,null,null,null,null,null,null,null,null,null,null,null,null,null,null,null,null,null,null,null,null,null,null,null,null,null,{"$f":"IFERROR(IF(AND(K588>5,L588=\"no\"),1,0),\"\")","v":0}]
[null,null,null,null,null,null,null,null,null,null,null,null,null,null,null,null,null,null,null,null,null,null,null,null,null,null,null,null,null,null,null,null,null,null,null,null,null,null,null,null,null,null,null,null,0]
[null,null,null,null,null,null,null,null,null,null,null,null,null,null,null,null,null,null,null,null,null,null,null,null,null,null,null,null,null,null,null,null,null,null,null,null,null,null,null,null,null,null,null,null,0]
[null,null,null,null,null,null,null,null,null,null,null,null,null,null,null,null,null,null,null,null,null,null,null,null,null,null,null,null,null,null,null,null,null,null,null,null,null,null,null,null,null,null,null,null,0]
[null,null,null,null,null,null,null,null,null,null,null,null,null,null,null,null,null,null,null,null,null,null,null,null,null,null,null,null,null,null,null,null,null,null,null,null,null,null,null,null,null,null,null,null,0]
[null,null,null,null,null,null,null,null,null,null,null,null,null,null,null,null,null,null,null,null,null,null,null,null,null,null,null,null,null,null,null,null,null,null,null,null,null,null,null,null,null,null,null,null,0]
[null,null,null,null,null,null,null,null,null,null,null,null,null,null,null,null,null,null,null,null,null,null,null,null,null,null,null,null,null,null,null,null,null,null,null,null,null,null,null,null,null,null,null,null,0]
[null,null,null,null,null,null,null,null,null,null,null,null,null,null,null,null,null,null,null,null,null,null,null,null,null,null,null,null,null,null,null,null,null,null,null,null,null,null,null,null,null,null,null,null,0]
[null,null,null,null,null,null,null,null,null,null,null,null,null,null,null,null,null,null,null,null,null,null,null,null,null,null,null,null,null,null,null,null,null,null,null,null,null,null,null,null,null,null,null,null,0]
[null,null,null,null,null,null,null,null,null,null,null,null,null,null,null,null,null,null,null,null,null,null,null,null,null,null,null,null,null,null,null,null,null,null,null,null,null,null,null,null,null,null,null,null,0]
[null,null,null,null,null,null,null,null,null,null,null,null,null,null,null,null,null,null,null,null,null,null,null,null,null,null,null,null,null,null,null,null,null,null,null,null,null,null,null,null,null,null,null,null,0]
[null,null,null,null,null,null,null,null,null,null,null,null,null,null,null,null,null,null,null,null,null,null,null,null,null,null,null,null,null,null,null,null,null,null,null,null,null,null,null,null,null,null,null,null,0]
[null,null,null,null,null,null,null,null,null,null,null,null,null,null,null,null,null,null,null,null,null,null,null,null,null,null,null,null,null,null,null,null,null,null,null,null,null,null,null,null,null,null,null,null,0]
[null,null,null,null,null,null,null,null,null,null,null,null,null,null,null,null,null,null,null,null,null,null,null,null,null,null,null,null,null,null,null,null,null,null,null,null,null,null,null,null,null,null,null,null,0]
[null,null,null,null,null,null,null,null,null,null,null,null,null,null,null,null,null,null,null,null,null,null,null,null,null,null,null,null,null,null,null,null,null,null,null,null,null,null,null,null,null,null,null,null,0]
[null,null,null,null,null,null,null,null,null,null,null,null,null,null,null,null,null,null,null,null,null,null,null,null,null,null,null,null,null,null,null,null,null,null,null,null,null,null,null,null,null,null,null,null,0]
[null,null,null,null,null,null,null,null,null,null,null,null,null,null,null,null,null,null,null,null,null,null,null,null,null,null,null,null,null,null,null,null,null,null,null,null,null,null,null,null,null,null,null,null,0]
[null,null,null,null,null,null,null,null,null,null,null,null,null,null,null,null,null,null,null,null,null,null,null,null,null,null,null,null,null,null,null,null,null,null,null,null,null,null,null,null,null,null,null,null,0]
[null,null,null,null,null,null,null,null,null,null,null,null,null,null,null,null,null,null,null,null,null,null,null,null,null,null,null,null,null,null,null,null,null,null,null,null,null,null,null,null,null,null,null,null,0]
[null,null,null,null,null,null,null,null,null,null,null,null,null,null,null,null,null,null,null,null,null,null,null,null,null,null,null,null,null,null,null,null,null,null,null,null,null,null,null,null,null,null,null,null,0]
[null,null,null,null,null,null,null,null,null,null,null,null,null,null,null,null,null,null,null,null,null,null,null,null,null,null,null,null,null,null,null,null,null,null,null,null,null,null,null,null,null,null,null,null,0]
[null,null,null,null,null,null,null,null,null,null,null,null,null,null,null,null,null,null,null,null,null,null,null,null,null,null,null,null,null,null,null,null,null,null,null,null,null,null,null,null,null,null,null,null,0]
[null,null,null,null,null,null,null,null,null,null,null,null,null,null,null,null,null,null,null,null,null,null,null,null,null,null,null,null,null,null,null,null,null,null,null,null,null,null,null,null,null,null,null,null,0]
[null,null,null,null,null,null,null,null,null,null,null,null,null,null,null,null,null,null,null,null,null,null,null,null,null,null,null,null,null,null,null,null,null,null,null,null,null,null,null,null,null,null,null,null,0]
[null,null,null,null,null,null,null,null,null,null,null,null,null,null,null,null,null,null,null,null,null,null,null,null,null,null,null,null,null,null,null,null,null,null,null,null,null,null,null,null,null,null,null,null,0]
[null,null,null,null,null,null,null,null,null,null,null,null,null,null,null,null,null,null,null,null,null,null,null,null,null,null,null,null,null,null,null,null,null,null,null,null,null,null,null,null,null,null,null,null,0]
[null,null,null,null,null,null,null,null,null,null,null,null,null,null,null,null,null,null,null,null,null,null,null,null,null,null,null,null,null,null,null,null,null,null,null,null,null,null,null,null,null,null,null,null,0]
[null,null,null,null,null,null,null,null,null,null,null,null,null,null,null,null,null,null,null,null,null,null,null,null,null,null,null,null,null,null,null,null,null,null,null,null,null,null,null,null,null,null,null,null,0]
[null,null,null,null,null,null,null,null,null,null,null,null,null,null,null,null,null,null,null,null,null,null,null,null,null,null,null,null,null,null,null,null,null,null,null,null,null,null,null,null,null,null,null,null,0]
[null,null,null,null,null,null,null,null,null,null,null,null,null,null,null,null,null,null,null,null,null,null,null,null,null,null,null,null,null,null,null,null,null,null,null,null,null,null,null,null,null,null,null,null,0]
[null,null,null,null,null,null,null,null,null,null,null,null,null,null,null,null,null,null,null,null,null,null,null,null,null,null,null,null,null,null,null,null,null,null,null,null,null,null,null,null,null,null,null,null,0]
[null,null,null,null,null,null,null,null,null,null,null,null,null,null,null,null,null,null,null,null,null,null,null,null,null,null,null,null,null,null,null,null,null,null,null,null,null,null,null,null,null,null,null,null,0]
[null,null,null,null,null,null,null,null,null,null,null,null,null,null,null,null,null,null,null,null,null,null,null,null,null,null,null,null,null,null,null,null,null,null,null,null,null,null,null,null,null,null,null,null,0]
[null,null,null,null,null,null,null,null,null,null,null,null,null,null,null,null,null,null,null,null,null,null,null,null,null,null,null,null,null,null,null,null,null,null,null,null,null,null,null,null,null,null,null,null,0]
[null,null,null,null,null,null,null,null,null,null,null,null,null,null,null,null,null,null,null,null,null,null,null,null,null,null,null,null,null,null,null,null,null,null,null,null,null,null,null,null,null,null,null,null,0]
[null,null,null,null,null,null,null,null,null,null,null,null,null,null,null,null,null,null,null,null,null,null,null,null,null,null,null,null,null,null,null,null,null,null,null,null,null,null,null,null,null,null,null,null,0]
[null,null,null,null,null,null,null,null,null,null,null,null,null,null,null,null,null,null,null,null,null,null,null,null,null,null,null,null,null,null,null,null,null,null,null,null,null,null,null,null,null,null,null,null,0]
[null,null,null,null,null,null,null,null,null,null,null,null,null,null,null,null,null,null,null,null,null,null,null,null,null,null,null,null,null,null,null,null,null,null,null,null,null,null,null,null,null,null,null,null,0]
[null,null,null,null,null,null,null,null,null,null,null,null,null,null,null,null,null,null,null,null,null,null,null,null,null,null,null,null,null,null,null,null,null,null,null,null,null,null,null,null,null,null,null,null,0]
[null,null,null,null,null,null,null,null,null,null,null,null,null,null,null,null,null,null,null,null,null,null,null,null,null,null,null,null,null,null,null,null,null,null,null,null,null,null,null,null,null,null,null,null,0]
[null,null,null,null,null,null,null,null,null,null,null,null,null,null,null,null,null,null,null,null,null,null,null,null,null,null,null,null,null,null,null,null,null,null,null,null,null,null,null,null,null,null,null,null,0]
[null,null,null,null,null,null,null,null,null,null,null,null,null,null,null,null,null,null,null,null,null,null,null,null,null,null,null,null,null,null,null,null,null,null,null,null,null,null,null,null,null,null,null,null,0]
[null,null,null,null,null,null,null,null,null,null,null,null,null,null,null,null,null,null,null,null,null,null,null,null,null,null,null,null,null,null,null,null,null,null,null,null,null,null,null,null,null,null,null,null,0]
[null,null,null,null,null,null,null,null,null,null,null,null,null,null,null,null,null,null,null,null,null,null,null,null,null,null,null,null,null,null,null,null,null,null,null,null,null,null,null,null,null,null,null,null,0]
[null,null,null,null,null,null,null,null,null,null,null,null,null,null,null,null,null,null,null,null,null,null,null,null,null,null,null,null,null,null,null,null,null,null,null,null,null,null,null,null,null,null,null,null,0]
[null,null,null,null,null,null,null,null,null,null,null,null,null,null,null,null,null,null,null,null,null,null,null,null,null,null,null,null,null,null,null,null,null,null,null,null,null,null,null,null,null,null,null,null,0]
[null,null,null,null,null,null,null,null,null,null,null,null,null,null,null,null,null,null,null,null,null,null,null,null,null,null,null,null,null,null,null,null,null,null,null,null,null,null,null,null,null,null,null,null,0]
[null,null,null,null,null,null,null,null,null,null,null,null,null,null,null,null,null,null,null,null,null,null,null,null,null,null,null,null,null,null,null,null,null,null,null,null,null,null,null,null,null,null,null,null,0]
[null,null,null,null,null,null,null,null,null,null,null,null,null,null,null,null,null,null,null,null,null,null,null,null,null,null,null,null,null,null,null,null,null,null,null,null,null,null,null,null,null,null,null,null,0]
[null,null,null,null,null,null,null,null,null,null,null,null,null,null,null,null,null,null,null,null,null,null,null,null,null,null,null,null,null,null,null,null,null,null,null,null,null,null,null,null,null,null,null,null,0]
[null,null,null,null,null,null,null,null,null,null,null,null,null,null,null,null,null,null,null,null,null,null,null,null,null,null,null,null,null,null,null,null,null,null,null,null,null,null,null,null,null,null,null,null,0]
[null,null,null,null,null,null,null,null,null,null,null,null,null,null,null,null,null,null,null,null,null,null,null,null,null,null,null,null,null,null,null,null,null,null,null,null,null,null,null,null,null,null,null,null,0]
[null,null,null,null,null,null,null,null,null,null,null,null,null,null,null,null,null,null,null,null,null,null,null,null,null,null,null,null,null,null,null,null,null,null,null,null,null,null,null,null,null,null,null,null,0]
[null,null,null,null,null,null,null,null,null,null,null,null,null,null,null,null,null,null,null,null,null,null,null,null,null,null,null,null,null,null,null,null,null,null,null,null,null,null,null,null,null,null,null,null,0]
[null,null,null,null,null,null,null,null,null,null,null,null,null,null,null,null,null,null,null,null,null,null,null,null,null,null,null,null,null,null,null,null,null,null,null,null,null,null,null,null,null,null,null,null,0]
[null,null,null,null,null,null,null,null,null,null,null,null,null,null,null,null,null,null,null,null,null,null,null,null,null,null,null,null,null,null,null,null,null,null,null,null,null,null,null,null,null,null,null,null,0]
[null,null,null,null,null,null,null,null,null,null,null,null,null,null,null,null,null,null,null,null,null,null,null,null,null,null,null,null,null,null,null,null,null,null,null,null,null,null,null,null,null,null,null,null,0]
[null,null,null,null,null,null,null,null,null,null,null,null,null,null,null,null,null,null,null,null,null,null,null,null,null,null,null,null,null,null,null,null,null,null,null,null,null,null,null,null,null,null,null,null,0]
[null,null,null,null,null,null,null,null,null,null,null,null,null,null,null,null,null,null,null,null,null,null,null,null,null,null,null,null,null,null,null,null,null,null,null,null,null,null,null,null,null,null,null,null,0]
[null,null,null,null,null,null,null,null,null,null,null,null,null,null,null,null,null,null,null,null,null,null,null,null,null,null,null,null,null,null,null,null,null,null,null,null,null,null,null,null,null,null,null,null,0]
[null,null,null,null,null,null,null,null,null,null,null,null,null,null,null,null,null,null,null,null,null,null,null,null,null,null,null,null,null,null,null,null,null,null,null,null,null,null,null,null,null,null,null,null,0]
[null,null,null,null,null,null,null,null,null,null,null,null,null,null,null,null,null,null,null,null,null,null,null,null,null,null,null,null,null,null,null,null,null,null,null,null,null,null,null,null,null,null,null,null,0]
[null,null,null,null,null,null,null,null,null,null,null,null,null,null,null,null,null,null,null,null,null,null,null,null,null,null,null,null,null,null,null,null,null,null,null,null,null,null,null,null,null,null,null,null,0]
[null,null,null,null,null,null,null,null,null,null,null,null,null,null,null,null,null,null,null,null,null,null,null,null,null,null,null,null,null,null,null,null,null,null,null,null,null,null,null,null,null,null,null,null,0]
[null,null,null,null,null,null,null,null,null,null,null,null,null,null,null,null,null,null,null,null,null,null,null,null,null,null,null,null,null,null,null,null,null,null,null,null,null,null,null,null,null,null,null,null,{"$f":"IFERROR(IF(AND(K652>5,L652=\"no\"),1,0),\"\")","v":0}]
[null,null,null,null,null,null,null,null,null,null,null,null,null,null,null,null,null,null,null,null,null,null,null,null,null,null,null,null,null,null,null,null,null,null,null,null,null,null,null,null,null,null,null,null,0]
[null,null,null,null,null,null,null,null,null,null,null,null,null,null,null,null,null,null,null,null,null,null,null,null,null,null,null,null,null,null,null,null,null,null,null,null,null,null,null,null,null,null,null,null,0]
[null,null,null,null,null,null,null,null,null,null,null,null,null,null,null,null,null,null,null,null,null,null,null,null,null,null,null,null,null,null,null,null,null,null,null,null,null,null,null,null,null,null,null,null,0]
[null,null,null,null,null,null,null,null,null,null,null,null,null,null,null,null,null,null,null,null,null,null,null,null,null,null,null,null,null,null,null,null,null,null,null,null,null,null,null,null,null,null,null,null,0]
[null,null,null,null,null,null,null,null,null,null,null,null,null,null,null,null,null,null,null,null,null,null,null,null,null,null,null,null,null,null,null,null,null,null,null,null,null,null,null,null,null,null,null,null,0]
[null,null,null,null,null,null,null,null,null,null,null,null,null,null,null,null,null,null,null,null,null,null,null,null,null,null,null,null,null,null,null,null,null,null,null,null,null,null,null,null,null,null,null,null,0]
[null,null,null,null,null,null,null,null,null,null,null,null,null,null,null,null,null,null,null,null,null,null,null,null,null,null,null,null,null,null,null,null,null,null,null,null,null,null,null,null,null,null,null,null,0]
[null,null,null,null,null,null,null,null,null,null,null,null,null,null,null,null,null,null,null,null,null,null,null,null,null,null,null,null,null,null,null,null,null,null,null,null,null,null,null,null,null,null,null,null,0]
[null,null,null,null,null,null,null,null,null,null,null,null,null,null,null,null,null,null,null,null,null,null,null,null,null,null,null,null,null,null,null,null,null,null,null,null,null,null,null,null,null,null,null,null,0]
[null,null,null,null,null,null,null,null,null,null,null,null,null,null,null,null,null,null,null,null,null,null,null,null,null,null,null,null,null,null,null,null,null,null,null,null,null,null,null,null,null,null,null,null,0]
[null,null,null,null,null,null,null,null,null,null,null,null,null,null,null,null,null,null,null,null,null,null,null,null,null,null,null,null,null,null,null,null,null,null,null,null,null,null,null,null,null,null,null,null,0]
[null,null,null,null,null,null,null,null,null,null,null,null,null,null,null,null,null,null,null,null,null,null,null,null,null,null,null,null,null,null,null,null,null,null,null,null,null,null,null,null,null,null,null,null,0]
[null,null,null,null,null,null,null,null,null,null,null,null,null,null,null,null,null,null,null,null,null,null,null,null,null,null,null,null,null,null,null,null,null,null,null,null,null,null,null,null,null,null,null,null,0]
[null,null,null,null,null,null,null,null,null,null,null,null,null,null,null,null,null,null,null,null,null,null,null,null,null,null,null,null,null,null,null,null,null,null,null,null,null,null,null,null,null,null,null,null,0]
[null,null,null,null,null,null,null,null,null,null,null,null,null,null,null,null,null,null,null,null,null,null,null,null,null,null,null,null,null,null,null,null,null,null,null,null,null,null,null,null,null,null,null,null,0]
[null,null,null,null,null,null,null,null,null,null,null,null,null,null,null,null,null,null,null,null,null,null,null,null,null,null,null,null,null,null,null,null,null,null,null,null,null,null,null,null,null,null,null,null,0]
[null,null,null,null,null,null,null,null,null,null,null,null,null,null,null,null,null,null,null,null,null,null,null,null,null,null,null,null,null,null,null,null,null,null,null,null,null,null,null,null,null,null,null,null,0]
[null,null,null,null,null,null,null,null,null,null,null,null,null,null,null,null,null,null,null,null,null,null,null,null,null,null,null,null,null,null,null,null,null,null,null,null,null,null,null,null,null,null,null,null,0]
[null,null,null,null,null,null,null,null,null,null,null,null,null,null,null,null,null,null,null,null,null,null,null,null,null,null,null,null,null,null,null,null,null,null,null,null,null,null,null,null,null,null,null,null,0]
[null,null,null,null,null,null,null,null,null,null,null,null,null,null,null,null,null,null,null,null,null,null,null,null,null,null,null,null,null,null,null,null,null,null,null,null,null,null,null,null,null,null,null,null,0]
[null,null,null,null,null,null,null,null,null,null,null,null,null,null,null,null,null,null,null,null,null,null,null,null,null,null,null,null,null,null,null,null,null,null,null,null,null,null,null,null,null,null,null,null,0]
[null,null,null,null,null,null,null,null,null,null,null,null,null,null,null,null,null,null,null,null,null,null,null,null,null,null,null,null,null,null,null,null,null,null,null,null,null,null,null,null,null,null,null,null,0]
[null,null,null,null,null,null,null,null,null,null,null,null,null,null,null,null,null,null,null,null,null,null,null,null,null,null,null,null,null,null,null,null,null,null,null,null,null,null,null,null,null,null,null,null,0]
[null,null,null,null,null,null,null,null,null,null,null,null,null,null,null,null,null,null,null,null,null,null,null,null,null,null,null,null,null,null,null,null,null,null,null,null,null,null,null,null,null,null,null,null,0]
[null,null,null,null,null,null,null,null,null,null,null,null,null,null,null,null,null,null,null,null,null,null,null,null,null,null,null,null,null,null,null,null,null,null,null,null,null,null,null,null,null,null,null,null,0]
[null,null,null,null,null,null,null,null,null,null,null,null,null,null,null,null,null,null,null,null,null,null,null,null,null,null,null,null,null,null,null,null,null,null,null,null,null,null,null,null,null,null,null,null,0]
[null,null,null,null,null,null,null,null,null,null,null,null,null,null,null,null,null,null,null,null,null,null,null,null,null,null,null,null,null,null,null,null,null,null,null,null,null,null,null,null,null,null,null,null,0]
[null,null,null,null,null,null,null,null,null,null,null,null,null,null,null,null,null,null,null,null,null,null,null,null,null,null,null,null,null,null,null,null,null,null,null,null,null,null,null,null,null,null,null,null,0]
[null,null,null,null,null,null,null,null,null,null,null,null,null,null,null,null,null,null,null,null,null,null,null,null,null,null,null,null,null,null,null,null,null,null,null,null,null,null,null,null,null,null,null,null,0]
[null,null,null,null,null,null,null,null,null,null,null,null,null,null,null,null,null,null,null,null,null,null,null,null,null,null,null,null,null,null,null,null,null,null,null,null,null,null,null,null,null,null,null,null,0]
[null,null,null,null,null,null,null,null,null,null,null,null,null,null,null,null,null,null,null,null,null,null,null,null,null,null,null,null,null,null,null,null,null,null,null,null,null,null,null,null,null,null,null,null,0]
[null,null,null,null,null,null,null,null,null,null,null,null,null,null,null,null,null,null,null,null,null,null,null,null,null,null,null,null,null,null,null,null,null,null,null,null,null,null,null,null,null,null,null,null,0]
[null,null,null,null,null,null,null,null,null,null,null,null,null,null,null,null,null,null,null,null,null,null,null,null,null,null,null,null,null,null,null,null,null,null,null,null,null,null,null,null,null,null,null,null,0]
[null,null,null,null,null,null,null,null,null,null,null,null,null,null,null,null,null,null,null,null,null,null,null,null,null,null,null,null,null,null,null,null,null,null,null,null,null,null,null,null,null,null,null,null,0]
[null,null,null,null,null,null,null,null,null,null,null,null,null,null,null,null,null,null,null,null,null,null,null,null,null,null,null,null,null,null,null,null,null,null,null,null,null,null,null,null,null,null,null,null,0]
[null,null,null,null,null,null,null,null,null,null,null,null,null,null,null,null,null,null,null,null,null,null,null,null,null,null,null,null,null,null,null,null,null,null,null,null,null,null,null,null,null,null,null,null,0]
[null,null,null,null,null,null,null,null,null,null,null,null,null,null,null,null,null,null,null,null,null,null,null,null,null,null,null,null,null,null,null,null,null,null,null,null,null,null,null,null,null,null,null,null,0]
[null,null,null,null,null,null,null,null,null,null,null,null,null,null,null,null,null,null,null,null,null,null,null,null,null,null,null,null,null,null,null,null,null,null,null,null,null,null,null,null,null,null,null,null,0]
[null,null,null,null,null,null,null,null,null,null,null,null,null,null,null,null,null,null,null,null,null,null,null,null,null,null,null,null,null,null,null,null,null,null,null,null,null,null,null,null,null,null,null,null,0]
[null,null,null,null,null,null,null,null,null,null,null,null,null,null,null,null,null,null,null,null,null,null,null,null,null,null,null,null,null,null,null,null,null,null,null,null,null,null,null,null,null,null,null,null,0]
[null,null,null,null,null,null,null,null,null,null,null,null,null,null,null,null,null,null,null,null,null,null,null,null,null,null,null,null,null,null,null,null,null,null,null,null,null,null,null,null,null,null,null,null,0]
[null,null,null,null,null,null,null,null,null,null,null,null,null,null,null,null,null,null,null,null,null,null,null,null,null,null,null,null,null,null,null,null,null,null,null,null,null,null,null,null,null,null,null,null,0]
[null,null,null,null,null,null,null,null,null,null,null,null,null,null,null,null,null,null,null,null,null,null,null,null,null,null,null,null,null,null,null,null,null,null,null,null,null,null,null,null,null,null,null,null,0]
[null,null,null,null,null,null,null,null,null,null,null,null,null,null,null,null,null,null,null,null,null,null,null,null,null,null,null,null,null,null,null,null,null,null,null,null,null,null,null,null,null,null,null,null,0]
[null,null,null,null,null,null,null,null,null,null,null,null,null,null,null,null,null,null,null,null,null,null,null,null,null,null,null,null,null,null,null,null,null,null,null,null,null,null,null,null,null,null,null,null,0]
[null,null,null,null,null,null,null,null,null,null,null,null,null,null,null,null,null,null,null,null,null,null,null,null,null,null,null,null,null,null,null,null,null,null,null,null,null,null,null,null,null,null,null,null,0]
[null,null,null,null,null,null,null,null,null,null,null,null,null,null,null,null,null,null,null,null,null,null,null,null,null,null,null,null,null,null,null,null,null,null,null,null,null,null,null,null,null,null,null,null,0]
[null,null,null,null,null,null,null,null,null,null,null,null,null,null,null,null,null,null,null,null,null,null,null,null,null,null,null,null,null,null,null,null,null,null,null,null,null,null,null,null,null,null,null,null,0]
[null,null,null,null,null,null,null,null,null,null,null,null,null,null,null,null,null,null,null,null,null,null,null,null,null,null,null,null,null,null,null,null,null,null,null,null,null,null,null,null,null,null,null,null,0]
[null,null,null,null,null,null,null,null,null,null,null,null,null,null,null,null,null,null,null,null,null,null,null,null,null,null,null,null,null,null,null,null,null,null,null,null,null,null,null,null,null,null,null,null,0]
[null,null,null,null,null,null,null,null,null,null,null,null,null,null,null,null,null,null,null,null,null,null,null,null,null,null,null,null,null,null,null,null,null,null,null,null,null,null,null,null,null,null,null,null,0]
[null,null,null,null,null,null,null,null,null,null,null,null,null,null,null,null,null,null,null,null,null,null,null,null,null,null,null,null,null,null,null,null,null,null,null,null,null,null,null,null,null,null,null,null,0]
[null,null,null,null,null,null,null,null,null,null,null,null,null,null,null,null,null,null,null,null,null,null,null,null,null,null,null,null,null,null,null,null,null,null,null,null,null,null,null,null,null,null,null,null,0]
[null,null,null,null,null,null,null,null,null,null,null,null,null,null,null,null,null,null,null,null,null,null,null,null,null,null,null,null,null,null,null,null,null,null,null,null,null,null,null,null,null,null,null,null,0]
[null,null,null,null,null,null,null,null,null,null,null,null,null,null,null,null,null,null,null,null,null,null,null,null,null,null,null,null,null,null,null,null,null,null,null,null,null,null,null,null,null,null,null,null,0]
[null,null,null,null,null,null,null,null,null,null,null,null,null,null,null,null,null,null,null,null,null,null,null,null,null,null,null,null,null,null,null,null,null,null,null,null,null,null,null,null,null,null,null,null,0]
[null,null,null,null,null,null,null,null,null,null,null,null,null,null,null,null,null,null,null,null,null,null,null,null,null,null,null,null,null,null,null,null,null,null,null,null,null,null,null,null,null,null,null,null,0]
[null,null,null,null,null,null,null,null,null,null,null,null,null,null,null,null,null,null,null,null,null,null,null,null,null,null,null,null,null,null,null,null,null,null,null,null,null,null,null,null,null,null,null,null,0]
[null,null,null,null,null,null,null,null,null,null,null,null,null,null,null,null,null,null,null,null,null,null,null,null,null,null,null,null,null,null,null,null,null,null,null,null,null,null,null,null,null,null,null,null,0]
[null,null,null,null,null,null,null,null,null,null,null,null,null,null,null,null,null,null,null,null,null,null,null,null,null,null,null,null,null,null,null,null,null,null,null,null,null,null,null,null,null,null,null,null,0]
[null,null,null,null,null,null,null,null,null,null,null,null,null,null,null,null,null,null,null,null,null,null,null,null,null,null,null,null,null,null,null,null,null,null,null,null,null,null,null,null,null,null,null,null,0]
[null,null,null,null,null,null,null,null,null,null,null,null,null,null,null,null,null,null,null,null,null,null,null,null,null,null,null,null,null,null,null,null,null,null,null,null,null,null,null,null,null,null,null,null,0]
[null,null,null,null,null,null,null,null,null,null,null,null,null,null,null,null,null,null,null,null,null,null,null,null,null,null,null,null,null,null,null,null,null,null,null,null,null,null,null,null,null,null,null,null,0]
[null,null,null,null,null,null,null,null,null,null,null,null,null,null,null,null,null,null,null,null,null,null,null,null,null,null,null,null,null,null,null,null,null,null,null,null,null,null,null,null,null,null,null,null,{"$f":"IFERROR(IF(AND(K716>5,L716=\"no\"),1,0),\"\")","v":0}]
[null,null,null,null,null,null,null,null,null,null,null,null,null,null,null,null,null,null,null,null,null,null,null,null,null,null,null,null,null,null,null,null,null,null,null,null,null,null,null,null,null,null,null,null,0]
[null,null,null,null,null,null,null,null,null,null,null,null,null,null,null,null,null,null,null,null,null,null,null,null,null,null,null,null,null,null,null,null,null,null,null,null,null,null,null,null,null,null,null,null,0]
[null,null,null,null,null,null,null,null,null,null,null,null,null,null,null,null,null,null,null,null,null,null,null,null,null,null,null,null,null,null,null,null,null,null,null,null,null,null,null,null,null,null,null,null,0]
[null,null,null,null,null,null,null,null,null,null,null,null,null,null,null,null,null,null,null,null,null,null,null,null,null,null,null,null,null,null,null,null,null,null,null,null,null,null,null,null,null,null,null,null,0]
[null,null,null,null,null,null,null,null,null,null,null,null,null,null,null,null,null,null,null,null,null,null,null,null,null,null,null,null,null,null,null,null,null,null,null,null,null,null,null,null,null,null,null,null,0]
[null,null,null,null,null,null,null,null,null,null,null,null,null,null,null,null,null,null,null,null,null,null,null,null,null,null,null,null,null,null,null,null,null,null,null,null,null,null,null,null,null,null,null,null,0]
[null,null,null,null,null,null,null,null,null,null,null,null,null,null,null,null,null,null,null,null,null,null,null,null,null,null,null,null,null,null,null,null,null,null,null,null,null,null,null,null,null,null,null,null,0]
[null,null,null,null,null,null,null,null,null,null,null,null,null,null,null,null,null,null,null,null,null,null,null,null,null,null,null,null,null,null,null,null,null,null,null,null,null,null,null,null,null,null,null,null,0]
[null,null,null,null,null,null,null,null,null,null,null,null,null,null,null,null,null,null,null,null,null,null,null,null,null,null,null,null,null,null,null,null,null,null,null,null,null,null,null,null,null,null,null,null,0]
[null,null,null,null,null,null,null,null,null,null,null,null,null,null,null,null,null,null,null,null,null,null,null,null,null,null,null,null,null,null,null,null,null,null,null,null,null,null,null,null,null,null,null,null,0]
[null,null,null,null,null,null,null,null,null,null,null,null,null,null,null,null,null,null,null,null,null,null,null,null,null,null,null,null,null,null,null,null,null,null,null,null,null,null,null,null,null,null,null,null,0]
[null,null,null,null,null,null,null,null,null,null,null,null,null,null,null,null,null,null,null,null,null,null,null,null,null,null,null,null,null,null,null,null,null,null,null,null,null,null,null,null,null,null,null,null,0]
[null,null,null,null,null,null,null,null,null,null,null,null,null,null,null,null,null,null,null,null,null,null,null,null,null,null,null,null,null,null,null,null,null,null,null,null,null,null,null,null,null,null,null,null,0]
[null,null,null,null,null,null,null,null,null,null,null,null,null,null,null,null,null,null,null,null,null,null,null,null,null,null,null,null,null,null,null,null,null,null,null,null,null,null,null,null,null,null,null,null,0]
[null,null,null,null,null,null,null,null,null,null,null,null,null,null,null,null,null,null,null,null,null,null,null,null,null,null,null,null,null,null,null,null,null,null,null,null,null,null,null,null,null,null,null,null,0]
[null,null,null,null,null,null,null,null,null,null,null,null,null,null,null,null,null,null,null,null,null,null,null,null,null,null,null,null,null,null,null,null,null,null,null,null,null,null,null,null,null,null,null,null,0]
[null,null,null,null,null,null,null,null,null,null,null,null,null,null,null,null,null,null,null,null,null,null,null,null,null,null,null,null,null,null,null,null,null,null,null,null,null,null,null,null,null,null,null,null,0]
[null,null,null,null,null,null,null,null,null,null,null,null,null,null,null,null,null,null,null,null,null,null,null,null,null,null,null,null,null,null,null,null,null,null,null,null,null,null,null,null,null,null,null,null,0]
[null,null,null,null,null,null,null,null,null,null,null,null,null,null,null,null,null,null,null,null,null,null,null,null,null,null,null,null,null,null,null,null,null,null,null,null,null,null,null,null,null,null,null,null,0]
[null,null,null,null,null,null,null,null,null,null,null,null,null,null,null,null,null,null,null,null,null,null,null,null,null,null,null,null,null,null,null,null,null,null,null,null,null,null,null,null,null,null,null,null,0]
[null,null,null,null,null,null,null,null,null,null,null,null,null,null,null,null,null,null,null,null,null,null,null,null,null,null,null,null,null,null,null,null,null,null,null,null,null,null,null,null,null,null,null,null,0]
[null,null,null,null,null,null,null,null,null,null,null,null,null,null,null,null,null,null,null,null,null,null,null,null,null,null,null,null,null,null,null,null,null,null,null,null,null,null,null,null,null,null,null,null,0]
[null,null,null,null,null,null,null,null,null,null,null,null,null,null,null,null,null,null,null,null,null,null,null,null,null,null,null,null,null,null,null,null,null,null,null,null,null,null,null,null,null,null,null,null,0]
[null,null,null,null,null,null,null,null,null,null,null,null,null,null,null,null,null,null,null,null,null,null,null,null,null,null,null,null,null,null,null,null,null,null,null,null,null,null,null,null,null,null,null,null,0]
[null,null,null,null,null,null,null,null,null,null,null,null,null,null,null,null,null,null,null,null,null,null,null,null,null,null,null,null,null,null,null,null,null,null,null,null,null,null,null,null,null,null,null,null,0]
[null,null,null,null,null,null,null,null,null,null,null,null,null,null,null,null,null,null,null,null,null,null,null,null,null,null,null,null,null,null,null,null,null,null,null,null,null,null,null,null,null,null,null,null,0]
[null,null,null,null,null,null,null,null,null,null,null,null,null,null,null,null,null,null,null,null,null,null,null,null,null,null,null,null,null,null,null,null,null,null,null,null,null,null,null,null,null,null,null,null,0]
[null,null,null,null,null,null,null,null,null,null,null,null,null,null,null,null,null,null,null,null,null,null,null,null,null,null,null,null,null,null,null,null,null,null,null,null,null,null,null,null,null,null,null,null,0]
[null,null,null,null,null,null,null,null,null,null,null,null,null,null,null,null,null,null,null,null,null,null,null,null,null,null,null,null,null,null,null,null,null,null,null,null,null,null,null,null,null,null,null,null,0]
[null,null,null,null,null,null,null,null,null,null,null,null,null,null,null,null,null,null,null,null,null,null,null,null,null,null,null,null,null,null,null,null,null,null,null,null,null,null,null,null,null,null,null,null,0]
[null,null,null,null,null,null,null,null,null,null,null,null,null,null,null,null,null,null,null,null,null,null,null,null,null,null,null,null,null,null,null,null,null,null,null,null,null,null,null,null,null,null,null,null,0]
[null,null,null,null,null,null,null,null,null,null,null,null,null,null,null,null,null,null,null,null,null,null,null,null,null,null,null,null,null,null,null,null,null,null,null,null,null,null,null,null,null,null,null,null,0]
[null,null,null,null,null,null,null,null,null,null,null,null,null,null,null,null,null,null,null,null,null,null,null,null,null,null,null,null,null,null,null,null,null,null,null,null,null,null,null,null,null,null,null,null,0]
[null,null,null,null,null,null,null,null,null,null,null,null,null,null,null,null,null,null,null,null,null,null,null,null,null,null,null,null,null,null,null,null,null,null,null,null,null,null,null,null,null,null,null,null,0]
[null,null,null,null,null,null,null,null,null,null,null,null,null,null,null,null,null,null,null,null,null,null,null,null,null,null,null,null,null,null,null,null,null,null,null,null,null,null,null,null,null,null,null,null,0]
[null,null,null,null,null,null,null,null,null,null,null,null,null,null,null,null,null,null,null,null,null,null,null,null,null,null,null,null,null,null,null,null,null,null,null,null,null,null,null,null,null,null,null,null,0]
[null,null,null,null,null,null,null,null,null,null,null,null,null,null,null,null,null,null,null,null,null,null,null,null,null,null,null,null,null,null,null,null,null,null,null,null,null,null,null,null,null,null,null,null,0]
[null,null,null,null,null,null,null,null,null,null,null,null,null,null,null,null,null,null,null,null,null,null,null,null,null,null,null,null,null,null,null,null,null,null,null,null,null,null,null,null,null,null,null,null,0]
[null,null,null,null,null,null,null,null,null,null,null,null,null,null,null,null,null,null,null,null,null,null,null,null,null,null,null,null,null,null,null,null,null,null,null,null,null,null,null,null,null,null,null,null,0]
[null,null,null,null,null,null,null,null,null,null,null,null,null,null,null,null,null,null,null,null,null,null,null,null,null,null,null,null,null,null,null,null,null,null,null,null,null,null,null,null,null,null,null,null,0]
[null,null,null,null,null,null,null,null,null,null,null,null,null,null,null,null,null,null,null,null,null,null,null,null,null,null,null,null,null,null,null,null,null,null,null,null,null,null,null,null,null,null,null,null,0]
[null,null,null,null,null,null,null,null,null,null,null,null,null,null,null,null,null,null,null,null,null,null,null,null,null,null,null,null,null,null,null,null,null,null,null,null,null,null,null,null,null,null,null,null,0]
[null,null,null,null,null,null,null,null,null,null,null,null,null,null,null,null,null,null,null,null,null,null,null,null,null,null,null,null,null,null,null,null,null,null,null,null,null,null,null,null,null,null,null,null,0]
[null,null,null,null,null,null,null,null,null,null,null,null,null,null,null,null,null,null,null,null,null,null,null,null,null,null,null,null,null,null,null,null,null,null,null,null,null,null,null,null,null,null,null,null,0]
[null,null,null,null,null,null,null,null,null,null,null,null,null,null,null,null,null,null,null,null,null,null,null,null,null,null,null,null,null,null,null,null,null,null,null,null,null,null,null,null,null,null,null,null,0]
[null,null,null,null,null,null,null,null,null,null,null,null,null,null,null,null,null,null,null,null,null,null,null,null,null,null,null,null,null,null,null,null,null,null,null,null,null,null,null,null,null,null,null,null,0]
[null,null,null,null,null,null,null,null,null,null,null,null,null,null,null,null,null,null,null,null,null,null,null,null,null,null,null,null,null,null,null,null,null,null,null,null,null,null,null,null,null,null,null,null,0]
[null,null,null,null,null,null,null,null,null,null,null,null,null,null,null,null,null,null,null,null,null,null,null,null,null,null,null,null,null,null,null,null,null,null,null,null,null,null,null,null,null,null,null,null,0]
[null,null,null,null,null,null,null,null,null,null,null,null,null,null,null,null,null,null,null,null,null,null,null,null,null,null,null,null,null,null,null,null,null,null,null,null,null,null,null,null,null,null,null,null,0]
[null,null,null,null,null,null,null,null,null,null,null,null,null,null,null,null,null,null,null,null,null,null,null,null,null,null,null,null,null,null,null,null,null,null,null,null,null,null,null,null,null,null,null,null,0]
[null,null,null,null,null,null,null,null,null,null,null,null,null,null,null,null,null,null,null,null,null,null,null,null,null,null,null,null,null,null,null,null,null,null,null,null,null,null,null,null,null,null,null,null,0]
[null,null,null,null,null,null,null,null,null,null,null,null,null,null,null,null,null,null,null,null,null,null,null,null,null,null,null,null,null,null,null,null,null,null,null,null,null,null,null,null,null,null,null,null,0]
[null,null,null,null,null,null,null,null,null,null,null,null,null,null,null,null,null,null,null,null,null,null,null,null,null,null,null,null,null,null,null,null,null,null,null,null,null,null,null,null,null,null,null,null,0]
[null,null,null,null,null,null,null,null,null,null,null,null,null,null,null,null,null,null,null,null,null,null,null,null,null,null,null,null,null,null,null,null,null,null,null,null,null,null,null,null,null,null,null,null,0]
[null,null,null,null,null,null,null,null,null,null,null,null,null,null,null,null,null,null,null,null,null,null,null,null,null,null,null,null,null,null,null,null,null,null,null,null,null,null,null,null,null,null,null,null,0]
[null,null,null,null,null,null,null,null,null,null,null,null,null,null,null,null,null,null,null,null,null,null,null,null,null,null,null,null,null,null,null,null,null,null,null,null,null,null,null,null,null,null,null,null,0]
[null,null,null,null,null,null,null,null,null,null,null,null,null,null,null,null,null,null,null,null,null,null,null,null,null,null,null,null,null,null,null,null,null,null,null,null,null,null,null,null,null,null,null,null,0]
[null,null,null,null,null,null,null,null,null,null,null,null,null,null,null,null,null,null,null,null,null,null,null,null,null,null,null,null,null,null,null,null,null,null,null,null,null,null,null,null,null,null,null,null,0]
[null,null,null,null,null,null,null,null,null,null,null,null,null,null,null,null,null,null,null,null,null,null,null,null,null,null,null,null,null,null,null,null,null,null,null,null,null,null,null,null,null,null,null,null,0]
[null,null,null,null,null,null,null,null,null,null,null,null,null,null,null,null,null,null,null,null,null,null,null,null,null,null,null,null,null,null,null,null,null,null,null,null,null,null,null,null,null,null,null,null,0]
[null,null,null,null,null,null,null,null,null,null,null,null,null,null,null,null,null,null,null,null,null,null,null,null,null,null,null,null,null,null,null,null,null,null,null,null,null,null,null,null,null,null,null,null,0]
[null,null,null,null,null,null,null,null,null,null,null,null,null,null,null,null,null,null,null,null,null,null,null,null,null,null,null,null,null,null,null,null,null,null,null,null,null,null,null,null,null,null,null,null,0]
[null,null,null,null,null,null,null,null,null,null,null,null,null,null,null,null,null,null,null,null,null,null,null,null,null,null,null,null,null,null,null,null,null,null,null,null,null,null,null,null,null,null,null,null,0]
[null,null,null,null,null,null,null,null,null,null,null,null,null,null,null,null,null,null,null,null,null,null,null,null,null,null,null,null,null,null,null,null,null,null,null,null,null,null,null,null,null,null,null,null,{"$f":"IFERROR(IF(AND(K780>5,L780=\"no\"),1,0),\"\")","v":0}]
[null,null,null,null,null,null,null,null,null,null,null,null,null,null,null,null,null,null,null,null,null,null,null,null,null,null,null,null,null,null,null,null,null,null,null,null,null,null,null,null,null,null,null,null,0]
[null,null,null,null,null,null,null,null,null,null,null,null,null,null,null,null,null,null,null,null,null,null,null,null,null,null,null,null,null,null,null,null,null,null,null,null,null,null,null,null,null,null,null,null,0]
[null,null,null,null,null,null,null,null,null,null,null,null,null,null,null,null,null,null,null,null,null,null,null,null,null,null,null,null,null,null,null,null,null,null,null,null,null,null,null,null,null,null,null,null,0]
[null,null,null,null,null,null,null,null,null,null,null,null,null,null,null,null,null,null,null,null,null,null,null,null,null,null,null,null,null,null,null,null,null,null,null,null,null,null,null,null,null,null,null,null,0]
[null,null,null,null,null,null,null,null,null,null,null,null,null,null,null,null,null,null,null,null,null,null,null,null,null,null,null,null,null,null,null,null,null,null,null,null,null,null,null,null,null,null,null,null,0]
[null,null,null,null,null,null,null,null,null,null,null,null,null,null,null,null,null,null,null,null,null,null,null,null,null,null,null,null,null,null,null,null,null,null,null,null,null,null,null,null,null,null,null,null,0]
[null,null,null,null,null,null,null,null,null,null,null,null,null,null,null,null,null,null,null,null,null,null,null,null,null,null,null,null,null,null,null,null,null,null,null,null,null,null,null,null,null,null,null,null,0]
[null,null,null,null,null,null,null,null,null,null,null,null,null,null,null,null,null,null,null,null,null,null,null,null,null,null,null,null,null,null,null,null,null,null,null,null,null,null,null,null,null,null,null,null,0]
[null,null,null,null,null,null,null,null,null,null,null,null,null,null,null,null,null,null,null,null,null,null,null,null,null,null,null,null,null,null,null,null,null,null,null,null,null,null,null,null,null,null,null,null,0]
[null,null,null,null,null,null,null,null,null,null,null,null,null,null,null,null,null,null,null,null,null,null,null,null,null,null,null,null,null,null,null,null,null,null,null,null,null,null,null,null,null,null,null,null,0]
[null,null,null,null,null,null,null,null,null,null,null,null,null,null,null,null,null,null,null,null,null,null,null,null,null,null,null,null,null,null,null,null,null,null,null,null,null,null,null,null,null,null,null,null,0]
[null,null,null,null,null,null,null,null,null,null,null,null,null,null,null,null,null,null,null,null,null,null,null,null,null,null,null,null,null,null,null,null,null,null,null,null,null,null,null,null,null,null,null,null,0]
[null,null,null,null,null,null,null,null,null,null,null,null,null,null,null,null,null,null,null,null,null,null,null,null,null,null,null,null,null,null,null,null,null,null,null,null,null,null,null,null,null,null,null,null,0]
[null,null,null,null,null,null,null,null,null,null,null,null,null,null,null,null,null,null,null,null,null,null,null,null,null,null,null,null,null,null,null,null,null,null,null,null,null,null,null,null,null,null,null,null,0]
[null,null,null,null,null,null,null,null,null,null,null,null,null,null,null,null,null,null,null,null,null,null,null,null,null,null,null,null,null,null,null,null,null,null,null,null,null,null,null,null,null,null,null,null,0]
[null,null,null,null,null,null,null,null,null,null,null,null,null,null,null,null,null,null,null,null,null,null,null,null,null,null,null,null,null,null,null,null,null,null,null,null,null,null,null,null,null,null,null,null,0]
[null,null,null,null,null,null,null,null,null,null,null,null,null,null,null,null,null,null,null,null,null,null,null,null,null,null,null,null,null,null,null,null,null,null,null,null,null,null,null,null,null,null,null,null,0]
[null,null,null,null,null,null,null,null,null,null,null,null,null,null,null,null,null,null,null,null,null,null,null,null,null,null,null,null,null,null,null,null,null,null,null,null,null,null,null,null,null,null,null,null,0]
[null,null,null,null,null,null,null,null,null,null,null,null,null,null,null,null,null,null,null,null,null,null,null,null,null,null,null,null,null,null,null,null,null,null,null,null,null,null,null,null,null,null,null,null,0]
[null,null,null,null,null,null,null,null,null,null,null,null,null,null,null,null,null,null,null,null,null,null,null,null,null,null,null,null,null,null,null,null,null,null,null,null,null,null,null,null,null,null,null,null,0]
[null,null,null,null,null,null,null,null,null,null,null,null,null,null,null,null,null,null,null,null,null,null,null,null,null,null,null,null,null,null,null,null,null,null,null,null,null,null,null,null,null,null,null,null,0]
[null,null,null,null,null,null,null,null,null,null,null,null,null,null,null,null,null,null,null,null,null,null,null,null,null,null,null,null,null,null,null,null,null,null,null,null,null,null,null,null,null,null,null,null,0]
[null,null,null,null,null,null,null,null,null,null,null,null,null,null,null,null,null,null,null,null,null,null,null,null,null,null,null,null,null,null,null,null,null,null,null,null,null,null,null,null,null,null,null,null,0]
[null,null,null,null,null,null,null,null,null,null,null,null,null,null,null,null,null,null,null,null,null,null,null,null,null,null,null,null,null,null,null,null,null,null,null,null,null,null,null,null,null,null,null,null,0]
[null,null,null,null,null,null,null,null,null,null,null,null,null,null,null,null,null,null,null,null,null,null,null,null,null,null,null,null,null,null,null,null,null,null,null,null,null,null,null,null,null,null,null,null,0]
[null,null,null,null,null,null,null,null,null,null,null,null,null,null,null,null,null,null,null,null,null,null,null,null,null,null,null,null,null,null,null,null,null,null,null,null,null,null,null,null,null,null,null,null,0]
[null,null,null,null,null,null,null,null,null,null,null,null,null,null,null,null,null,null,null,null,null,null,null,null,null,null,null,null,null,null,null,null,null,null,null,null,null,null,null,null,null,null,null,null,0]
[null,null,null,null,null,null,null,null,null,null,null,null,null,null,null,null,null,null,null,null,null,null,null,null,null,null,null,null,null,null,null,null,null,null,null,null,null,null,null,null,null,null,null,null,0]
[null,null,null,null,null,null,null,null,null,null,null,null,null,null,null,null,null,null,null,null,null,null,null,null,null,null,null,null,null,null,null,null,null,null,null,null,null,null,null,null,null,null,null,null,0]
[null,null,null,null,null,null,null,null,null,null,null,null,null,null,null,null,null,null,null,null,null,null,null,null,null,null,null,null,null,null,null,null,null,null,null,null,null,null,null,null,null,null,null,null,0]
[null,null,null,null,null,null,null,null,null,null,null,null,null,null,null,null,null,null,null,null,null,null,null,null,null,null,null,null,null,null,null,null,null,null,null,null,null,null,null,null,null,null,null,null,0]
[null,null,null,null,null,null,null,null,null,null,null,null,null,null,null,null,null,null,null,null,null,null,null,null,null,null,null,null,null,null,null,null,null,null,null,null,null,null,null,null,null,null,null,null,0]
[null,null,null,null,null,null,null,null,null,null,null,null,null,null,null,null,null,null,null,null,null,null,null,null,null,null,null,null,null,null,null,null,null,null,null,null,null,null,null,null,null,null,null,null,0]
[null,null,null,null,null,null,null,null,null,null,null,null,null,null,null,null,null,null,null,null,null,null,null,null,null,null,null,null,null,null,null,null,null,null,null,null,null,null,null,null,null,null,null,null,0]
[null,null,null,null,null,null,null,null,null,null,null,null,null,null,null,null,null,null,null,null,null,null,null,null,null,null,null,null,null,null,null,null,null,null,null,null,null,null,null,null,null,null,null,null,0]
[null,null,null,null,null,null,null,null,null,null,null,null,null,null,null,null,null,null,null,null,null,null,null,null,null,null,null,null,null,null,null,null,null,null,null,null,null,null,null,null,null,null,null,null,0]
[null,null,null,null,null,null,null,null,null,null,null,null,null,null,null,null,null,null,null,null,null,null,null,null,null,null,null,null,null,null,null,null,null,null,null,null,null,null,null,null,null,null,null,null,0]
[null,null,null,null,null,null,null,null,null,null,null,null,null,null,null,null,null,null,null,null,null,null,null,null,null,null,null,null,null,null,null,null,null,null,null,null,null,null,null,null,null,null,null,null,0]
[null,null,null,null,null,null,null,null,null,null,null,null,null,null,null,null,null,null,null,null,null,null,null,null,null,null,null,null,null,null,null,null,null,null,null,null,null,null,null,null,null,null,null,null,0]
[null,null,null,null,null,null,null,null,null,null,null,null,null,null,null,null,null,null,null,null,null,null,null,null,null,null,null,null,null,null,null,null,null,null,null,null,null,null,null,null,null,null,null,null,0]
[null,null,null,null,null,null,null,null,null,null,null,null,null,null,null,null,null,null,null,null,null,null,null,null,null,null,null,null,null,null,null,null,null,null,null,null,null,null,null,null,null,null,null,null,0]
[null,null,null,null,null,null,null,null,null,null,null,null,null,null,null,null,null,null,null,null,null,null,null,null,null,null,null,null,null,null,null,null,null,null,null,null,null,null,null,null,null,null,null,null,0]
[null,null,null,null,null,null,null,null,null,null,null,null,null,null,null,null,null,null,null,null,null,null,null,null,null,null,null,null,null,null,null,null,null,null,null,null,null,null,null,null,null,null,null,null,0]
[null,null,null,null,null,null,null,null,null,null,null,null,null,null,null,null,null,null,null,null,null,null,null,null,null,null,null,null,null,null,null,null,null,null,null,null,null,null,null,null,null,null,null,null,0]
[null,null,null,null,null,null,null,null,null,null,null,null,null,null,null,null,null,null,null,null,null,null,null,null,null,null,null,null,null,null,null,null,null,null,null,null,null,null,null,null,null,null,null,null,0]
[null,null,null,null,null,null,null,null,null,null,null,null,null,null,null,null,null,null,null,null,null,null,null,null,null,null,null,null,null,null,null,null,null,null,null,null,null,null,null,null,null,null,null,null,0]
[null,null,null,null,null,null,null,null,null,null,null,null,null,null,null,null,null,null,null,null,null,null,null,null,null,null,null,null,null,null,null,null,null,null,null,null,null,null,null,null,null,null,null,null,0]
[null,null,null,null,null,null,null,null,null,null,null,null,null,null,null,null,null,null,null,null,null,null,null,null,null,null,null,null,null,null,null,null,null,null,null,null,null,null,null,null,null,null,null,null,0]
[null,null,null,null,null,null,null,null,null,null,null,null,null,null,null,null,null,null,null,null,null,null,null,null,null,null,null,null,null,null,null,null,null,null,null,null,null,null,null,null,null,null,null,null,0]
[null,null,null,null,null,null,null,null,null,null,null,null,null,null,null,null,null,null,null,null,null,null,null,null,null,null,null,null,null,null,null,null,null,null,null,null,null,null,null,null,null,null,null,null,0]
[null,null,null,null,null,null,null,null,null,null,null,null,null,null,null,null,null,null,null,null,null,null,null,null,null,null,null,null,null,null,null,null,null,null,null,null,null,null,null,null,null,null,null,null,0]
[null,null,null,null,null,null,null,null,null,null,null,null,null,null,null,null,null,null,null,null,null,null,null,null,null,null,null,null,null,null,null,null,null,null,null,null,null,null,null,null,null,null,null,null,0]
[null,null,null,null,null,null,null,null,null,null,null,null,null,null,null,null,null,null,null,null,null,null,null,null,null,null,null,null,null,null,null,null,null,null,null,null,null,null,null,null,null,null,null,null,0]
[null,null,null,null,null,null,null,null,null,null,null,null,null,null,null,null,null,null,null,null,null,null,null,null,null,null,null,null,null,null,null,null,null,null,null,null,null,null,null,null,null,null,null,null,0]
[null,null,null,null,null,null,null,null,null,null,null,null,null,null,null,null,null,null,null,null,null,null,null,null,null,null,null,null,null,null,null,null,null,null,null,null,null,null,null,null,null,null,null,null,0]
[null,null,null,null,null,null,null,null,null,null,null,null,null,null,null,null,null,null,null,null,null,null,null,null,null,null,null,null,null,null,null,null,null,null,null,null,null,null,null,null,null,null,null,null,0]
[null,null,null,null,null,null,null,null,null,null,null,null,null,null,null,null,null,null,null,null,null,null,null,null,null,null,null,null,null,null,null,null,null,null,null,null,null,null,null,null,null,null,null,null,0]
[null,null,null,null,null,null,null,null,null,null,null,null,null,null,null,null,null,null,null,null,null,null,null,null,null,null,null,null,null,null,null,null,null,null,null,null,null,null,null,null,null,null,null,null,0]
[null,null,null,null,null,null,null,null,null,null,null,null,null,null,null,null,null,null,null,null,null,null,null,null,null,null,null,null,null,null,null,null,null,null,null,null,null,null,null,null,null,null,null,null,0]
[null,null,null,null,null,null,null,null,null,null,null,null,null,null,null,null,null,null,null,null,null,null,null,null,null,null,null,null,null,null,null,null,null,null,null,null,null,null,null,null,null,null,null,null,0]
[null,null,null,null,null,null,null,null,null,null,null,null,null,null,null,null,null,null,null,null,null,null,null,null,null,null,null,null,null,null,null,null,null,null,null,null,null,null,null,null,null,null,null,null,0]
[null,null,null,null,null,null,null,null,null,null,null,null,null,null,null,null,null,null,null,null,null,null,null,null,null,null,null,null,null,null,null,null,null,null,null,null,null,null,null,null,null,null,null,null,0]
[null,null,null,null,null,null,null,null,null,null,null,null,null,null,null,null,null,null,null,null,null,null,null,null,null,null,null,null,null,null,null,null,null,null,null,null,null,null,null,null,null,null,null,null,0]
[null,null,null,null,null,null,null,null,null,null,null,null,null,null,null,null,null,null,null,null,null,null,null,null,null,null,null,null,null,null,null,null,null,null,null,null,null,null,null,null,null,null,null,null,{"$f":"IFERROR(IF(AND(K844>5,L844=\"no\"),1,0),\"\")","v":0}]
[null,null,null,null,null,null,null,null,null,null,null,null,null,null,null,null,null,null,null,null,null,null,null,null,null,null,null,null,null,null,null,null,null,null,null,null,null,null,null,null,null,null,null,null,0]
[null,null,null,null,null,null,null,null,null,null,null,null,null,null,null,null,null,null,null,null,null,null,null,null,null,null,null,null,null,null,null,null,null,null,null,null,null,null,null,null,null,null,null,null,0]
[null,null,null,null,null,null,null,null,null,null,null,null,null,null,null,null,null,null,null,null,null,null,null,null,null,null,null,null,null,null,null,null,null,null,null,null,null,null,null,null,null,null,null,null,0]
[null,null,null,null,null,null,null,null,null,null,null,null,null,null,null,null,null,null,null,null,null,null,null,null,null,null,null,null,null,null,null,null,null,null,null,null,null,null,null,null,null,null,null,null,0]
[null,null,null,null,null,null,null,null,null,null,null,null,null,null,null,null,null,null,null,null,null,null,null,null,null,null,null,null,null,null,null,null,null,null,null,null,null,null,null,null,null,null,null,null,0]
[null,null,null,null,null,null,null,null,null,null,null,null,null,null,null,null,null,null,null,null,null,null,null,null,null,null,null,null,null,null,null,null,null,null,null,null,null,null,null,null,null,null,null,null,0]
[null,null,null,null,null,null,null,null,null,null,null,null,null,null,null,null,null,null,null,null,null,null,null,null,null,null,null,null,null,null,null,null,null,null,null,null,null,null,null,null,null,null,null,null,0]
[null,null,null,null,null,null,null,null,null,null,null,null,null,null,null,null,null,null,null,null,null,null,null,null,null,null,null,null,null,null,null,null,null,null,null,null,null,null,null,null,null,null,null,null,0]
[null,null,null,null,null,null,null,null,null,null,null,null,null,null,null,null,null,null,null,null,null,null,null,null,null,null,null,null,null,null,null,null,null,null,null,null,null,null,null,null,null,null,null,null,0]
[null,null,null,null,null,null,null,null,null,null,null,null,null,null,null,null,null,null,null,null,null,null,null,null,null,null,null,null,null,null,null,null,null,null,null,null,null,null,null,null,null,null,null,null,0]
[null,null,null,null,null,null,null,null,null,null,null,null,null,null,null,null,null,null,null,null,null,null,null,null,null,null,null,null,null,null,null,null,null,null,null,null,null,null,null,null,null,null,null,null,0]
[null,null,null,null,null,null,null,null,null,null,null,null,null,null,null,null,null,null,null,null,null,null,null,null,null,null,null,null,null,null,null,null,null,null,null,null,null,null,null,null,null,null,null,null,0]
[null,null,null,null,null,null,null,null,null,null,null,null,null,null,null,null,null,null,null,null,null,null,null,null,null,null,null,null,null,null,null,null,null,null,null,null,null,null,null,null,null,null,null,null,0]
[null,null,null,null,null,null,null,null,null,null,null,null,null,null,null,null,null,null,null,null,null,null,null,null,null,null,null,null,null,null,null,null,null,null,null,null,null,null,null,null,null,null,null,null,0]
[null,null,null,null,null,null,null,null,null,null,null,null,null,null,null,null,null,null,null,null,null,null,null,null,null,null,null,null,null,null,null,null,null,null,null,null,null,null,null,null,null,null,null,null,0]
[null,null,null,null,null,null,null,null,null,null,null,null,null,null,null,null,null,null,null,null,null,null,null,null,null,null,null,null,null,null,null,null,null,null,null,null,null,null,null,null,null,null,null,null,0]
[null,null,null,null,null,null,null,null,null,null,null,null,null,null,null,null,null,null,null,null,null,null,null,null,null,null,null,null,null,null,null,null,null,null,null,null,null,null,null,null,null,null,null,null,0]
[null,null,null,null,null,null,null,null,null,null,null,null,null,null,null,null,null,null,null,null,null,null,null,null,null,null,null,null,null,null,null,null,null,null,null,null,null,null,null,null,null,null,null,null,0]
[null,null,null,null,null,null,null,null,null,null,null,null,null,null,null,null,null,null,null,null,null,null,null,null,null,null,null,null,null,null,null,null,null,null,null,null,null,null,null,null,null,null,null,null,0]
[null,null,null,null,null,null,null,null,null,null,null,null,null,null,null,null,null,null,null,null,null,null,null,null,null,null,null,null,null,null,null,null,null,null,null,null,null,null,null,null,null,null,null,null,0]
[null,null,null,null,null,null,null,null,null,null,null,null,null,null,null,null,null,null,null,null,null,null,null,null,null,null,null,null,null,null,null,null,null,null,null,null,null,null,null,null,null,null,null,null,0]
[null,null,null,null,null,null,null,null,null,null,null,null,null,null,null,null,null,null,null,null,null,null,null,null,null,null,null,null,null,null,null,null,null,null,null,null,null,null,null,null,null,null,null,null,0]
[null,null,null,null,null,null,null,null,null,null,null,null,null,null,null,null,null,null,null,null,null,null,null,null,null,null,null,null,null,null,null,null,null,null,null,null,null,null,null,null,null,null,null,null,0]
[null,null,null,null,null,null,null,null,null,null,null,null,null,null,null,null,null,null,null,null,null,null,null,null,null,null,null,null,null,null,null,null,null,null,null,null,null,null,null,null,null,null,null,null,0]
[null,null,null,null,null,null,null,null,null,null,null,null,null,null,null,null,null,null,null,null,null,null,null,null,null,null,null,null,null,null,null,null,null,null,null,null,null,null,null,null,null,null,null,null,0]
[null,null,null,null,null,null,null,null,null,null,null,null,null,null,null,null,null,null,null,null,null,null,null,null,null,null,null,null,null,null,null,null,null,null,null,null,null,null,null,null,null,null,null,null,0]
[null,null,null,null,null,null,null,null,null,null,null,null,null,null,null,null,null,null,null,null,null,null,null,null,null,null,null,null,null,null,null,null,null,null,null,null,null,null,null,null,null,null,null,null,0]
[null,null,null,null,null,null,null,null,null,null,null,null,null,null,null,null,null,null,null,null,null,null,null,null,null,null,null,null,null,null,null,null,null,null,null,null,null,null,null,null,null,null,null,null,0]
[null,null,null,null,null,null,null,null,null,null,null,null,null,null,null,null,null,null,null,null,null,null,null,null,null,null,null,null,null,null,null,null,null,null,null,null,null,null,null,null,null,null,null,null,0]
[null,null,null,null,null,null,null,null,null,null,null,null,null,null,null,null,null,null,null,null,null,null,null,null,null,null,null,null,null,null,null,null,null,null,null,null,null,null,null,null,null,null,null,null,0]
[null,null,null,null,null,null,null,null,null,null,null,null,null,null,null,null,null,null,null,null,null,null,null,null,null,null,null,null,null,null,null,null,null,null,null,null,null,null,null,null,null,null,null,null,0]
[null,null,null,null,null,null,null,null,null,null,null,null,null,null,null,null,null,null,null,null,null,null,null,null,null,null,null,null,null,null,null,null,null,null,null,null,null,null,null,null,null,null,null,null,0]
[null,null,null,null,null,null,null,null,null,null,null,null,null,null,null,null,null,null,null,null,null,null,null,null,null,null,null,null,null,null,null,null,null,null,null,null,null,null,null,null,null,null,null,null,0]
[null,null,null,null,null,null,null,null,null,null,null,null,null,null,null,null,null,null,null,null,null,null,null,null,null,null,null,null,null,null,null,null,null,null,null,null,null,null,null,null,null,null,null,null,0]
[null,null,null,null,null,null,null,null,null,null,null,null,null,null,null,null,null,null,null,null,null,null,null,null,null,null,null,null,null,null,null,null,null,null,null,null,null,null,null,null,null,null,null,null,0]
[null,null,null,null,null,null,null,null,null,null,null,null,null,null,null,null,null,null,null,null,null,null,null,null,null,null,null,null,null,null,null,null,null,null,null,null,null,null,null,null,null,null,null,null,0]
[null,null,null,null,null,null,null,null,null,null,null,null,null,null,null,null,null,null,null,null,null,null,null,null,null,null,null,null,null,null,null,null,null,null,null,null,null,null,null,null,null,null,null,null,0]
[null,null,null,null,null,null,null,null,null,null,null,null,null,null,null,null,null,null,null,null,null,null,null,null,null,null,null,null,null,null,null,null,null,null,null,null,null,null,null,null,null,null,null,null,0]
[null,null,null,null,null,null,null,null,null,null,null,null,null,null,null,null,null,null,null,null,null,null,null,null,null,null,null,null,null,null,null,null,null,null,null,null,null,null,null,null,null,null,null,null,0]
[null,null,null,null,null,null,null,null,null,null,null,null,null,null,null,null,null,null,null,null,null,null,null,null,null,null,null,null,null,null,null,null,null,null,null,null,null,null,null,null,null,null,null,null,0]
[null,null,null,null,null,null,null,null,null,null,null,null,null,null,null,null,null,null,null,null,null,null,null,null,null,null,null,null,null,null,null,null,null,null,null,null,null,null,null,null,null,null,null,null,0]
[null,null,null,null,null,null,null,null,null,null,null,null,null,null,null,null,null,null,null,null,null,null,null,null,null,null,null,null,null,null,null,null,null,null,null,null,null,null,null,null,null,null,null,null,0]
[null,null,null,null,null,null,null,null,null,null,null,null,null,null,null,null,null,null,null,null,null,null,null,null,null,null,null,null,null,null,null,null,null,null,null,null,null,null,null,null,null,null,null,null,0]
[null,null,null,null,null,null,null,null,null,null,null,null,null,null,null,null,null,null,null,null,null,null,null,null,null,null,null,null,null,null,null,null,null,null,null,null,null,null,null,null,null,null,null,null,0]
[null,null,null,null,null,null,null,null,null,null,null,null,null,null,null,null,null,null,null,null,null,null,null,null,null,null,null,null,null,null,null,null,null,null,null,null,null,null,null,null,null,null,null,null,0]
[null,null,null,null,null,null,null,null,null,null,null,null,null,null,null,null,null,null,null,null,null,null,null,null,null,null,null,null,null,null,null,null,null,null,null,null,null,null,null,null,null,null,null,null,0]
[null,null,null,null,null,null,null,null,null,null,null,null,null,null,null,null,null,null,null,null,null,null,null,null,null,null,null,null,null,null,null,null,null,null,null,null,null,null,null,null,null,null,null,null,0]
[null,null,null,null,null,null,null,null,null,null,null,null,null,null,null,null,null,null,null,null,null,null,null,null,null,null,null,null,null,null,null,null,null,null,null,null,null,null,null,null,null,null,null,null,0]
[null,null,null,null,null,null,null,null,null,null,null,null,null,null,null,null,null,null,null,null,null,null,null,null,null,null,null,null,null,null,null,null,null,null,null,null,null,null,null,null,null,null,null,null,0]
[null,null,null,null,null,null,null,null,null,null,null,null,null,null,null,null,null,null,null,null,null,null,null,null,null,null,null,null,null,null,null,null,null,null,null,null,null,null,null,null,null,null,null,null,0]
[null,null,null,null,null,null,null,null,null,null,null,null,null,null,null,null,null,null,null,null,null,null,null,null,null,null,null,null,null,null,null,null,null,null,null,null,null,null,null,null,null,null,null,null,0]
[null,null,null,null,null,null,null,null,null,null,null,null,null,null,null,null,null,null,null,null,null,null,null,null,null,null,null,null,null,null,null,null,null,null,null,null,null,null,null,null,null,null,null,null,0]
[null,null,null,null,null,null,null,null,null,null,null,null,null,null,null,null,null,null,null,null,null,null,null,null,null,null,null,null,null,null,null,null,null,null,null,null,null,null,null,null,null,null,null,null,0]
[null,null,null,null,null,null,null,null,null,null,null,null,null,null,null,null,null,null,null,null,null,null,null,null,null,null,null,null,null,null,null,null,null,null,null,null,null,null,null,null,null,null,null,null,0]
[null,null,null,null,null,null,null,null,null,null,null,null,null,null,null,null,null,null,null,null,null,null,null,null,null,null,null,null,null,null,null,null,null,null,null,null,null,null,null,null,null,null,null,null,0]
[null,null,null,null,null,null,null,null,null,null,null,null,null,null,null,null,null,null,null,null,null,null,null,null,null,null,null,null,null,null,null,null,null,null,null,null,null,null,null,null,null,null,null,null,0]
[null,null,null,null,null,null,null,null,null,null,null,null,null,null,null,null,null,null,null,null,null,null,null,null,null,null,null,null,null,null,null,null,null,null,null,null,null,null,null,null,null,null,null,null,0]
[null,null,null,null,null,null,null,null,null,null,null,null,null,null,null,null,null,null,null,null,null,null,null,null,null,null,null,null,null,null,null,null,null,null,null,null,null,null,null,null,null,null,null,null,0]
[null,null,null,null,null,null,null,null,null,null,null,null,null,null,null,null,null,null,null,null,null,null,null,null,null,null,null,null,null,null,null,null,null,null,null,null,null,null,null,null,null,null,null,null,0]
[null,null,null,null,null,null,null,null,null,null,null,null,null,null,null,null,null,null,null,null,null,null,null,null,null,null,null,null,null,null,null,null,null,null,null,null,null,null,null,null,null,null,null,null,0]
[null,null,null,null,null,null,null,null,null,null,null,null,null,null,null,null,null,null,null,null,null,null,null,null,null,null,null,null,null,null,null,null,null,null,null,null,null,null,null,null,null,null,null,null,0]
[null,null,null,null,null,null,null,null,null,null,null,null,null,null,null,null,null,null,null,null,null,null,null,null,null,null,null,null,null,null,null,null,null,null,null,null,null,null,null,null,null,null,null,null,0]
[null,null,null,null,null,null,null,null,null,null,null,null,null,null,null,null,null,null,null,null,null,null,null,null,null,null,null,null,null,null,null,null,null,null,null,null,null,null,null,null,null,null,null,null,0]
[null,null,null,null,null,null,null,null,null,null,null,null,null,null,null,null,null,null,null,null,null,null,null,null,null,null,null,null,null,null,null,null,null,null,null,null,null,null,null,null,null,null,null,null,{"$f":"IFERROR(IF(AND(K908>5,L908=\"no\"),1,0),\"\")","v":0}]
[null,null,null,null,null,null,null,null,null,null,null,null,null,null,null,null,null,null,null,null,null,null,null,null,null,null,null,null,null,null,null,null,null,null,null,null,null,null,null,null,null,null,null,null,0]
[null,null,null,null,null,null,null,null,null,null,null,null,null,null,null,null,null,null,null,null,null,null,null,null,null,null,null,null,null,null,null,null,null,null,null,null,null,null,null,null,null,null,null,null,0]
[null,null,null,null,null,null,null,null,null,null,null,null,null,null,null,null,null,null,null,null,null,null,null,null,null,null,null,null,null,null,null,null,null,null,null,null,null,null,null,null,null,null,null,null,0]
[null,null,null,null,null,null,null,null,null,null,null,null,null,null,null,null,null,null,null,null,null,null,null,null,null,null,null,null,null,null,null,null,null,null,null,null,null,null,null,null,null,null,null,null,0]
[null,null,null,null,null,null,null,null,null,null,null,null,null,null,null,null,null,null,null,null,null,null,null,null,null,null,null,null,null,null,null,null,null,null,null,null,null,null,null,null,null,null,null,null,0]
[null,null,null,null,null,null,null,null,null,null,null,null,null,null,null,null,null,null,null,null,null,null,null,null,null,null,null,null,null,null,null,null,null,null,null,null,null,null,null,null,null,null,null,null,0]
[null,null,null,null,null,null,null,null,null,null,null,null,null,null,null,null,null,null,null,null,null,null,null,null,null,null,null,null,null,null,null,null,null,null,null,null,null,null,null,null,null,null,null,null,0]
[null,null,null,null,null,null,null,null,null,null,null,null,null,null,null,null,null,null,null,null,null,null,null,null,null,null,null,null,null,null,null,null,null,null,null,null,null,null,null,null,null,null,null,null,0]
[null,null,null,null,null,null,null,null,null,null,null,null,null,null,null,null,null,null,null,null,null,null,null,null,null,null,null,null,null,null,null,null,null,null,null,null,null,null,null,null,null,null,null,null,0]
[null,null,null,null,null,null,null,null,null,null,null,null,null,null,null,null,null,null,null,null,null,null,null,null,null,null,null,null,null,null,null,null,null,null,null,null,null,null,null,null,null,null,null,null,0]
[null,null,null,null,null,null,null,null,null,null,null,null,null,null,null,null,null,null,null,null,null,null,null,null,null,null,null,null,null,null,null,null,null,null,null,null,null,null,null,null,null,null,null,null,0]
[null,null,null,null,null,null,null,null,null,null,null,null,null,null,null,null,null,null,null,null,null,null,null,null,null,null,null,null,null,null,null,null,null,null,null,null,null,null,null,null,null,null,null,null,0]
[null,null,null,null,null,null,null,null,null,null,null,null,null,null,null,null,null,null,null,null,null,null,null,null,null,null,null,null,null,null,null,null,null,null,null,null,null,null,null,null,null,null,null,null,0]
[null,null,null,null,null,null,null,null,null,null,null,null,null,null,null,null,null,null,null,null,null,null,null,null,null,null,null,null,null,null,null,null,null,null,null,null,null,null,null,null,null,null,null,null,0]
[null,null,null,null,null,null,null,null,null,null,null,null,null,null,null,null,null,null,null,null,null,null,null,null,null,null,null,null,null,null,null,null,null,null,null,null,null,null,null,null,null,null,null,null,0]
[null,null,null,null,null,null,null,null,null,null,null,null,null,null,null,null,null,null,null,null,null,null,null,null,null,null,null,null,null,null,null,null,null,null,null,null,null,null,null,null,null,null,null,null,0]
[null,null,null,null,null,null,null,null,null,null,null,null,null,null,null,null,null,null,null,null,null,null,null,null,null,null,null,null,null,null,null,null,null,null,null,null,null,null,null,null,null,null,null,null,0]
[null,null,null,null,null,null,null,null,null,null,null,null,null,null,null,null,null,null,null,null,null,null,null,null,null,null,null,null,null,null,null,null,null,null,null,null,null,null,null,null,null,null,null,null,0]
[null,null,null,null,null,null,null,null,null,null,null,null,null,null,null,null,null,null,null,null,null,null,null,null,null,null,null,null,null,null,null,null,null,null,null,null,null,null,null,null,null,null,null,null,0]
[null,null,null,null,null,null,null,null,null,null,null,null,null,null,null,null,null,null,null,null,null,null,null,null,null,null,null,null,null,null,null,null,null,null,null,null,null,null,null,null,null,null,null,null,0]
[null,null,null,null,null,null,null,null,null,null,null,null,null,null,null,null,null,null,null,null,null,null,null,null,null,null,null,null,null,null,null,null,null,null,null,null,null,null,null,null,null,null,null,null,0]
[null,null,null,null,null,null,null,null,null,null,null,null,null,null,null,null,null,null,null,null,null,null,null,null,null,null,null,null,null,null,null,null,null,null,null,null,null,null,null,null,null,null,null,null,0]
[null,null,null,null,null,null,null,null,null,null,null,null,null,null,null,null,null,null,null,null,null,null,null,null,null,null,null,null,null,null,null,null,null,null,null,null,null,null,null,null,null,null,null,null,0]
[null,null,null,null,null,null,null,null,null,null,null,null,null,null,null,null,null,null,null,null,null,null,null,null,null,null,null,null,null,null,null,null,null,null,null,null,null,null,null,null,null,null,null,null,0]
[null,null,null,null,null,null,null,null,null,null,null,null,null,null,null,null,null,null,null,null,null,null,null,null,null,null,null,null,null,null,null,null,null,null,null,null,null,null,null,null,null,null,null,null,0]
[null,null,null,null,null,null,null,null,null,null,null,null,null,null,null,null,null,null,null,null,null,null,null,null,null,null,null,null,null,null,null,null,null,null,null,null,null,null,null,null,null,null,null,null,0]
[null,null,null,null,null,null,null,null,null,null,null,null,null,null,null,null,null,null,null,null,null,null,null,null,null,null,null,null,null,null,null,null,null,null,null,null,null,null,null,null,null,null,null,null,0]
[null,null,null,null,null,null,null,null,null,null,null,null,null,null,null,null,null,null,null,null,null,null,null,null,null,null,null,null,null,null,null,null,null,null,null,null,null,null,null,null,null,null,null,null,0]
[null,null,null,null,null,null,null,null,null,null,null,null,null,null,null,null,null,null,null,null,null,null,null,null,null,null,null,null,null,null,null,null,null,null,null,null,null,null,null,null,null,null,null,null,0]
[null,null,null,null,null,null,null,null,null,null,null,null,null,null,null,null,null,null,null,null,null,null,null,null,null,null,null,null,null,null,null,null,null,null,null,null,null,null,null,null,null,null,null,null,0]
[null,null,null,null,null,null,null,null,null,null,null,null,null,null,null,null,null,null,null,null,null,null,null,null,null,null,null,null,null,null,null,null,null,null,null,null,null,null,null,null,null,null,null,null,0]
[null,null,null,null,null,null,null,null,null,null,null,null,null,null,null,null,null,null,null,null,null,null,null,null,null,null,null,null,null,null,null,null,null,null,null,null,null,null,null,null,null,null,null,null,0]
[null,null,null,null,null,null,null,null,null,null,null,null,null,null,null,null,null,null,null,null,null,null,null,null,null,null,null,null,null,null,null,null,null,null,null,null,null,null,null,null,null,null,null,null,0]
[null,null,null,null,null,null,null,null,null,null,null,null,null,null,null,null,null,null,null,null,null,null,null,null,null,null,null,null,null,null,null,null,null,null,null,null,null,null,null,null,null,null,null,null,0]
[null,null,null,null,null,null,null,null,null,null,null,null,null,null,null,null,null,null,null,null,null,null,null,null,null,null,null,null,null,null,null,null,null,null,null,null,null,null,null,null,null,null,null,null,0]
[null,null,null,null,null,null,null,null,null,null,null,null,null,null,null,null,null,null,null,null,null,null,null,null,null,null,null,null,null,null,null,null,null,null,null,null,null,null,null,null,null,null,null,null,0]
[null,null,null,null,null,null,null,null,null,null,null,null,null,null,null,null,null,null,null,null,null,null,null,null,null,null,null,null,null,null,null,null,null,null,null,null,null,null,null,null,null,null,null,null,0]
[null,null,null,null,null,null,null,null,null,null,null,null,null,null,null,null,null,null,null,null,null,null,null,null,null,null,null,null,null,null,null,null,null,null,null,null,null,null,null,null,null,null,null,null,0]
[null,null,null,null,null,null,null,null,null,null,null,null,null,null,null,null,null,null,null,null,null,null,null,null,null,null,null,null,null,null,null,null,null,null,null,null,null,null,null,null,null,null,null,null,0]
[null,null,null,null,null,null,null,null,null,null,null,null,null,null,null,null,null,null,null,null,null,null,null,null,null,null,null,null,null,null,null,null,null,null,null,null,null,null,null,null,null,null,null,null,0]
[null,null,null,null,null,null,null,null,null,null,null,null,null,null,null,null,null,null,null,null,null,null,null,null,null,null,null,null,null,null,null,null,null,null,null,null,null,null,null,null,null,null,null,null,0]
[null,null,null,null,null,null,null,null,null,null,null,null,null,null,null,null,null,null,null,null,null,null,null,null,null,null,null,null,null,null,null,null,null,null,null,null,null,null,null,null,null,null,null,null,0]
[null,null,null,null,null,null,null,null,null,null,null,null,null,null,null,null,null,null,null,null,null,null,null,null,null,null,null,null,null,null,null,null,null,null,null,null,null,null,null,null,null,null,null,null,0]
[null,null,null,null,null,null,null,null,null,null,null,null,null,null,null,null,null,null,null,null,null,null,null,null,null,null,null,null,null,null,null,null,null,null,null,null,null,null,null,null,null,null,null,null,0]
[null,null,null,null,null,null,null,null,null,null,null,null,null,null,null,null,null,null,null,null,null,null,null,null,null,null,null,null,null,null,null,null,null,null,null,null,null,null,null,null,null,null,null,null,0]
[null,null,null,null,null,null,null,null,null,null,null,null,null,null,null,null,null,null,null,null,null,null,null,null,null,null,null,null,null,null,null,null,null,null,null,null,null,null,null,null,null,null,null,null,0]
[null,null,null,null,null,null,null,null,null,null,null,null,null,null,null,null,null,null,null,null,null,null,null,null,null,null,null,null,null,null,null,null,null,null,null,null,null,null,null,null,null,null,null,null,0]
[null,null,null,null,null,null,null,null,null,null,null,null,null,null,null,null,null,null,null,null,null,null,null,null,null,null,null,null,null,null,null,null,null,null,null,null,null,null,null,null,null,null,null,null,0]
[null,null,null,null,null,null,null,null,null,null,null,null,null,null,null,null,null,null,null,null,null,null,null,null,null,null,null,null,null,null,null,null,null,null,null,null,null,null,null,null,null,null,null,null,0]
[null,null,null,null,null,null,null,null,null,null,null,null,null,null,null,null,null,null,null,null,null,null,null,null,null,null,null,null,null,null,null,null,null,null,null,null,null,null,null,null,null,null,null,null,0]
[null,null,null,null,null,null,null,null,null,null,null,null,null,null,null,null,null,null,null,null,null,null,null,null,null,null,null,null,null,null,null,null,null,null,null,null,null,null,null,null,null,null,null,null,0]
[null,null,null,null,null,null,null,null,null,null,null,null,null,null,null,null,null,null,null,null,null,null,null,null,null,null,null,null,null,null,null,null,null,null,null,null,null,null,null,null,null,null,null,null,0]
[null,null,null,null,null,null,null,null,null,null,null,null,null,null,null,null,null,null,null,null,null,null,null,null,null,null,null,null,null,null,null,null,null,null,null,null,null,null,null,null,null,null,null,null,0]
[null,null,null,null,null,null,null,null,null,null,null,null,null,null,null,null,null,null,null,null,null,null,null,null,null,null,null,null,null,null,null,null,null,null,null,null,null,null,null,null,null,null,null,null,0]
[null,null,null,null,null,null,null,null,null,null,null,null,null,null,null,null,null,null,null,null,null,null,null,null,null,null,null,null,null,null,null,null,null,null,null,null,null,null,null,null,null,null,null,null,0]
[null,null,null,null,null,null,null,null,null,null,null,null,null,null,null,null,null,null,null,null,null,null,null,null,null,null,null,null,null,null,null,null,null,null,null,null,null,null,null,null,null,null,null,null,0]
[null,null,null,null,null,null,null,null,null,null,null,null,null,null,null,null,null,null,null,null,null,null,null,null,null,null,null,null,null,null,null,null,null,null,null,null,null,null,null,null,null,null,null,null,0]
[null,null,null,null,null,null,null,null,null,null,null,null,null,null,null,null,null,null,null,null,null,null,null,null,null,null,null,null,null,null,null,null,null,null,null,null,null,null,null,null,null,null,null,null,0]
[null,null,null,null,null,null,null,null,null,null,null,null,null,null,null,null,null,null,null,null,null,null,null,null,null,null,null,null,null,null,null,null,null,null,null,null,null,null,null,null,null,null,null,null,0]
[null,null,null,null,null,null,null,null,null,null,null,null,null,null,null,null,null,null,null,null,null,null,null,null,null,null,null,null,null,null,null,null,null,null,null,null,null,null,null,null,null,null,null,null,0]
[null,null,null,null,null,null,null,null,null,null,null,null,null,null,null,null,null,null,null,null,null,null,null,null,null,null,null,null,null,null,null,null,null,null,null,null,null,null,null,null,null,null,null,null,0]
[null,null,null,null,null,null,null,null,null,null,null,null,null,null,null,null,null,null,null,null,null,null,null,null,null,null,null,null,null,null,null,null,null,null,null,null,null,null,null,null,null,null,null,null,0]
[null,null,null,null,null,null,null,null,null,null,null,null,null,null,null,null,null,null,null,null,null,null,null,null,null,null,null,null,null,null,null,null,null,null,null,null,null,null,null,null,null,null,null,null,0]
[null,null,null,null,null,null,null,null,null,null,null,null,null,null,null,null,null,null,null,null,null,null,null,null,null,null,null,null,null,null,null,null,null,null,null,null,null,null,null,null,null,null,null,null,{"$f":"IFERROR(IF(AND(K972>5,L972=\"no\"),1,0),\"\")","v":0}]
[null,null,null,null,null,null,null,null,null,null,null,null,null,null,null,null,null,null,null,null,null,null,null,null,null,null,null,null,null,null,null,null,null,null,null,null,null,null,null,null,null,null,null,null,0]
[null,null,null,null,null,null,null,null,null,null,null,null,null,null,null,null,null,null,null,null,null,null,null,null,null,null,null,null,null,null,null,null,null,null,null,null,null,null,null,null,null,null,null,null,0]
[null,null,null,null,null,null,null,null,null,null,null,null,null,null,null,null,null,null,null,null,null,null,null,null,null,null,null,null,null,null,null,null,null,null,null,null,null,null,null,null,null,null,null,null,0]
[null,null,null,null,null,null,null,null,null,null,null,null,null,null,null,null,null,null,null,null,null,null,null,null,null,null,null,null,null,null,null,null,null,null,null,null,null,null,null,null,null,null,null,null,0]
[null,null,null,null,null,null,null,null,null,null,null,null,null,null,null,null,null,null,null,null,null,null,null,null,null,null,null,null,null,null,null,null,null,null,null,null,null,null,null,null,null,null,null,null,0]
[null,null,null,null,null,null,null,null,null,null,null,null,null,null,null,null,null,null,null,null,null,null,null,null,null,null,null,null,null,null,null,null,null,null,null,null,null,null,null,null,null,null,null,null,0]
[null,null,null,null,null,null,null,null,null,null,null,null,null,null,null,null,null,null,null,null,null,null,null,null,null,null,null,null,null,null,null,null,null,null,null,null,null,null,null,null,null,null,null,null,0]
[null,null,null,null,null,null,null,null,null,null,null,null,null,null,null,null,null,null,null,null,null,null,null,null,null,null,null,null,null,null,null,null,null,null,null,null,null,null,null,null,null,null,null,null,0]
[null,null,null,null,null,null,null,null,null,null,null,null,null,null,null,null,null,null,null,null,null,null,null,null,null,null,null,null,null,null,null,null,null,null,null,null,null,null,null,null,null,null,null,null,0]
[null,null,null,null,null,null,null,null,null,null,null,null,null,null,null,null,null,null,null,null,null,null,null,null,null,null,null,null,null,null,null,null,null,null,null,null,null,null,null,null,null,null,null,null,0]
[null,null,null,null,null,null,null,null,null,null,null,null,null,null,null,null,null,null,null,null,null,null,null,null,null,null,null,null,null,null,null,null,null,null,null,null,null,null,null,null,null,null,null,null,0]
[null,null,null,null,null,null,null,null,null,null,null,null,null,null,null,null,null,null,null,null,null,null,null,null,null,null,null,null,null,null,null,null,null,null,null,null,null,null,null,null,null,null,null,null,0]
[null,null,null,null,null,null,null,null,null,null,null,null,null,null,null,null,null,null,null,null,null,null,null,null,null,null,null,null,null,null,null,null,null,null,null,null,null,null,null,null,null,null,null,null,0]
[null,null,null,null,null,null,null,null,null,null,null,null,null,null,null,null,null,null,null,null,null,null,null,null,null,null,null,null,null,null,null,null,null,null,null,null,null,null,null,null,null,null,null,null,0]
[null,null,null,null,null,null,null,null,null,null,null,null,null,null,null,null,null,null,null,null,null,null,null,null,null,null,null,null,null,null,null,null,null,null,null,null,null,null,null,null,null,null,null,null,0]
[null,null,null,null,null,null,null,null,null,null,null,null,null,null,null,null,null,null,null,null,null,null,null,null,null,null,null,null,null,null,null,null,null,null,null,null,null,null,null,null,null,null,null,null,0]
[null,null,null,null,null,null,null,null,null,null,null,null,null,null,null,null,null,null,null,null,null,null,null,null,null,null,null,null,null,null,null,null,null,null,null,null,null,null,null,null,null,null,null,null,0]
[null,null,null,null,null,null,null,null,null,null,null,null,null,null,null,null,null,null,null,null,null,null,null,null,null,null,null,null,null,null,null,null,null,null,null,null,null,null,null,null,null,null,null,null,0]
[null,null,null,null,null,null,null,null,null,null,null,null,null,null,null,null,null,null,null,null,null,null,null,null,null,null,null,null,null,null,null,null,null,null,null,null,null,null,null,null,null,null,null,null,0]
[null,null,null,null,null,null,null,null,null,null,null,null,null,null,null,null,null,null,null,null,null,null,null,null,null,null,null,null,null,null,null,null,null,null,null,null,null,null,null,null,null,null,null,null,0]
[null,null,null,null,null,null,null,null,null,null,null,null,null,null,null,null,null,null,null,null,null,null,null,null,null,null,null,null,null,null,null,null,null,null,null,null,null,null,null,null,null,null,null,null,0]
[null,null,null,null,null,null,null,null,null,null,null,null,null,null,null,null,null,null,null,null,null,null,null,null,null,null,null,null,null,null,null,null,null,null,null,null,null,null,null,null,null,null,null,null,0]
[null,null,null,null,null,null,null,null,null,null,null,null,null,null,null,null,null,null,null,null,null,null,null,null,null,null,null,null,null,null,null,null,null,null,null,null,null,null,null,null,null,null,null,null,0]
[null,null,null,null,null,null,null,null,null,null,null,null,null,null,null,null,null,null,null,null,null,null,null,null,null,null,null,null,null,null,null,null,null,null,null,null,null,null,null,null,null,null,null,null,0]
[null,null,null,null,null,null,null,null,null,null,null,null,null,null,null,null,null,null,null,null,null,null,null,null,null,null,null,null,null,null,null,null,null,null,null,null,null,null,null,null,null,null,null,null,0]
[null,null,null,null,null,null,null,null,null,null,null,null,null,null,null,null,null,null,null,null,null,null,null,null,null,null,null,null,null,null,null,null,null,null,null,null,null,null,null,null,null,null,null,null,0]
[null,null,null,null,null,null,null,null,null,null,null,null,null,null,null,null,null,null,null,null,null,null,null,null,null,null,null,null,null,null,null,null,null,null,null,null,null,null,null,null,null,null,null,null,0]
[null,null,null,null,null,null,null,null,null,null,null,null,null,null,null,null,null,null,null,null,null,null,null,null,null,null,null,null,null,null,null,null,null,null,null,null,null,null,null,null,null,null,null,null,0]
[null,null,null,null,null,null,null,null,null,null,null,null,null,null,null,null,null,null,null,null,null,null,null,null,null,null,null,null,null,null,null,null,null,null,null,null,null,null,null,null,null,null,null,null,0]
[null,null,null,null,null,null,null,null,null,null,null,null,null,null,null,null,null,null,null,null,null,null,null,null,null,null,null,null,null,null,null,null,null,null,null,null,null,null,null,null,null,null,null,null,0]
[null,null,null,null,null,null,null,null,null,null,null,null,null,null,null,null,null,null,null,null,null,null,null,null,null,null,null,null,null,null,null,null,null,null,null,null,null,null,null,null,null,null,null,null,0]
[null,null,null,null,null,null,null,null,null,null,null,null,null,null,null,null,null,null,null,null,null,null,null,null,null,null,null,null,null,null,null,null,null,null,null,null,null,null,null,null,null,null,null,null,0]
[null,null,null,null,null,null,null,null,null,null,null,null,null,null,null,null,null,null,null,null,null,null,null,null,null,null,null,null,null,null,null,null,null,null,null,null,null,null,null,null,null,null,null,null,0]
[null,null,null,null,null,null,null,null,null,null,null,null,null,null,null,null,null,null,null,null,null,null,null,null,null,null,null,null,null,null,null,null,null,null,null,null,null,null,null,null,null,null,null,null,0]
[null,null,null,null,null,null,null,null,null,null,null,null,null,null,null,null,null,null,null,null,null,null,null,null,null,null,null,null,null,null,null,null,null,null,null,null,null,null,null,null,null,null,null,null,0]
[null,null,null,null,null,null,null,null,null,null,null,null,null,null,null,null,null,null,null,null,null,null,null,null,null,null,null,null,null,null,null,null,null,null,null,null,null,null,null,null,null,null,null,null,0]
[null,null,null,null,null,null,null,null,null,null,null,null,null,null,null,null,null,null,null,null,null,null,null,null,null,null,null,null,null,null,null,null,null,null,null,null,null,null,null,null,null,null,null,null,0]
[null,null,null,null,null,null,null,null,null,null,null,null,null,null,null,null,null,null,null,null,null,null,null,null,null,null,null,null,null,null,null,null,null,null,null,null,null,null,null,null,null,null,null,null,0]
[null,null,null,null,null,null,null,null,null,null,null,null,null,null,null,null,null,null,null,null,null,null,null,null,null,null,null,null,null,null,null,null,null,null,null,null,null,null,null,null,null,null,null,null,0]
[null,null,null,null,null,null,null,null,null,null,null,null,null,null,null,null,null,null,null,null,null,null,null,null,null,null,null,null,null,null,null,null,null,null,null,null,null,null,null,null,null,null,null,null,0]
[null,null,null,null,null,null,null,null,null,null,null,null,null,null,null,null,null,null,null,null,null,null,null,null,null,null,null,null,null,null,null,null,null,null,null,null,null,null,null,null,null,null,null,null,0]
[null,null,null,null,null,null,null,null,null,null,null,null,null,null,null,null,null,null,null,null,null,null,null,null,null,null,null,null,null,null,null,null,null,null,null,null,null,null,null,null,null,null,null,null,0]
[null,null,null,null,null,null,null,null,null,null,null,null,null,null,null,null,null,null,null,null,null,null,null,null,null,null,null,null,null,null,null,null,null,null,null,null,null,null,null,null,null,null,null,null,0]
[null,null,null,null,null,null,null,null,null,null,null,null,null,null,null,null,null,null,null,null,null,null,null,null,null,null,null,null,null,null,null,null,null,null,null,null,null,null,null,null,null,null,null,null,0]
[null,null,null,null,null,null,null,null,null,null,null,null,null,null,null,null,null,null,null,null,null,null,null,null,null,null,null,null,null,null,null,null,null,null,null,null,null,null,null,null,null,null,null,null,0]
[null,null,null,null,null,null,null,null,null,null,null,null,null,null,null,null,null,null,null,null,null,null,null,null,null,null,null,null,null,null,null,null,null,null,null,null,null,null,null,null,null,null,null,null,0]
[null,null,null,null,null,null,null,null,null,null,null,null,null,null,null,null,null,null,null,null,null,null,null,null,null,null,null,null,null,null,null,null,null,null,null,null,null,null,null,null,null,null,null,null,0]
[null,null,null,null,null,null,null,null,null,null,null,null,null,null,null,null,null,null,null,null,null,null,null,null,null,null,null,null,null,null,null,null,null,null,null,null,null,null,null,null,null,null,null,null,0]
[null,null,null,null,null,null,null,null,null,null,null,null,null,null,null,null,null,null,null,null,null,null,null,null,null,null,null,null,null,null,null,null,null,null,null,null,null,null,null,null,null,null,null,null,0]
[null,null,null,null,null,null,null,null,null,null,null,null,null,null,null,null,null,null,null,null,null,null,null,null,null,null,null,null,null,null,null,null,null,null,null,null,null,null,null,null,null,null,null,null,0]
[null,null,null,null,null,null,null,null,null,null,null,null,null,null,null,null,null,null,null,null,null,null,null,null,null,null,null,null,null,null,null,null,null,null,null,null,null,null,null,null,null,null,null,null,0]
[null,null,null,null,null,null,null,null,null,null,null,null,null,null,null,null,null,null,null,null,null,null,null,null,null,null,null,null,null,null,null,null,null,null,null,null,null,null,null,null,null,null,null,null,0]
[null,null,null,null,null,null,null,null,null,null,null,null,null,null,null,null,null,null,null,null,null,null,null,null,null,null,null,null,null,null,null,null,null,null,null,null,null,null,null,null,null,null,null,null,0]
[null,null,null,null,null,null,null,null,null,null,null,null,null,null,null,null,null,null,null,null,null,null,null,null,null,null,null,null,null,null,null,null,null,null,null,null,null,null,null,null,null,null,null,null,0]
[null,null,null,null,null,null,null,null,null,null,null,null,null,null,null,null,null,null,null,null,null,null,null,null,null,null,null,null,null,null,null,null,null,null,null,null,null,null,null,null,null,null,null,null,0]
[null,null,null,null,null,null,null,null,null,null,null,null,null,null,null,null,null,null,null,null,null,null,null,null,null,null,null,null,null,null,null,null,null,null,null,null,null,null,null,null,null,null,null,null,0]
[null,null,null,null,null,null,null,null,null,null,null,null,null,null,null,null,null,null,null,null,null,null,null,null,null,null,null,null,null,null,null,null,null,null,null,null,null,null,null,null,null,null,null,null,0]
[null,null,null,null,null,null,null,null,null,null,null,null,null,null,null,null,null,null,null,null,null,null,null,null,null,null,null,null,null,null,null,null,null,null,null,null,null,null,null,null,null,null,null,null,0]
[null,null,null,null,null,null,null,null,null,null,null,null,null,null,null,null,null,null,null,null,null,null,null,null,null,null,null,null,null,null,null,null,null,null,null,null,null,null,null,null,null,null,null,null,0]
[null,null,null,null,null,null,null,null,null,null,null,null,null,null,null,null,null,null,null,null,null,null,null,null,null,null,null,null,null,null,null,null,null,null,null,null,null,null,null,null,null,null,null,null,0]
[null,null,null,null,null,null,null,null,null,null,null,null,null,null,null,null,null,null,null,null,null,null,null,null,null,null,null,null,null,null,null,null,null,null,null,null,null,null,null,null,null,null,null,null,0]
[null,null,null,null,null,null,null,null,null,null,null,null,null,null,null,null,null,null,null,null,null,null,null,null,null,null,null,null,null,null,null,null,null,null,null,null,null,null,null,null,null,null,null,null,0]
[null,null,null,null,null,null,null,null,null,null,null,null,null,null,null,null,null,null,null,null,null,null,null,null,null,null,null,null,null,null,null,null,null,null,null,null,null,null,null,null,null,null,null,null,0]
[null,null,null,null,null,null,null,null,null,null,null,null,null,null,null,null,null,null,null,null,null,null,null,null,null,null,null,null,null,null,null,null,null,null,null,null,null,null,null,null,null,null,null,null,{"$f":"IFERROR(IF(AND(K1036>5,L1036=\"no\"),1,0),\"\")","v":0}]
[null,null,null,null,null,null,null,null,null,null,null,null,null,null,null,null,null,null,null,null,null,null,null,null,null,null,null,null,null,null,null,null,null,null,null,null,null,null,null,null,null,null,null,null,0]
[null,null,null,null,null,null,null,null,null,null,null,null,null,null,null,null,null,null,null,null,null,null,null,null,null,null,null,null,null,null,null,null,null,null,null,null,null,null,null,null,null,null,null,null,0]
[null,null,null,null,null,null,null,null,null,null,null,null,null,null,null,null,null,null,null,null,null,null,null,null,null,null,null,null,null,null,null,null,null,null,null,null,null,null,null,null,null,null,null,null,0]
[null,null,null,null,null,null,null,null,null,null,null,null,null,null,null,null,null,null,null,null,null,null,null,null,null,null,null,null,null,null,null,null,null,null,null,null,null,null,null,null,null,null,null,null,0]
[null,null,null,null,null,null,null,null,null,null,null,null,null,null,null,null,null,null,null,null,null,null,null,null,null,null,null,null,null,null,null,null,null,null,null,null,null,null,null,null,null,null,null,null,0]
[null,null,null,null,null,null,null,null,null,null,null,null,null,null,null,null,null,null,null,null,null,null,null,null,null,null,null,null,null,null,null,null,null,null,null,null,null,null,null,null,null,null,null,null,0]
[null,null,null,null,null,null,null,null,null,null,null,null,null,null,null,null,null,null,null,null,null,null,null,null,null,null,null,null,null,null,null,null,null,null,null,null,null,null,null,null,null,null,null,null,0]
[null,null,null,null,null,null,null,null,null,null,null,null,null,null,null,null,null,null,null,null,null,null,null,null,null,null,null,null,null,null,null,null,null,null,null,null,null,null,null,null,null,null,null,null,0]
[null,null,null,null,null,null,null,null,null,null,null,null,null,null,null,null,null,null,null,null,null,null,null,null,null,null,null,null,null,null,null,null,null,null,null,null,null,null,null,null,null,null,null,null,0]
[null,null,null,null,null,null,null,null,null,null,null,null,null,null,null,null,null,null,null,null,null,null,null,null,null,null,null,null,null,null,null,null,null,null,null,null,null,null,null,null,null,null,null,null,0]
[null,null,null,null,null,null,null,null,null,null,null,null,null,null,null,null,null,null,null,null,null,null,null,null,null,null,null,null,null,null,null,null,null,null,null,null,null,null,null,null,null,null,null,null,0]
[null,null,null,null,null,null,null,null,null,null,null,null,null,null,null,null,null,null,null,null,null,null,null,null,null,null,null,null,null,null,null,null,null,null,null,null,null,null,null,null,null,null,null,null,0]
[null,null,null,null,null,null,null,null,null,null,null,null,null,null,null,null,null,null,null,null,null,null,null,null,null,null,null,null,null,null,null,null,null,null,null,null,null,null,null,null,null,null,null,null,0]
[null,null,null,null,null,null,null,null,null,null,null,null,null,null,null,null,null,null,null,null,null,null,null,null,null,null,null,null,null,null,null,null,null,null,null,null,null,null,null,null,null,null,null,null,0]
[null,null,null,null,null,null,null,null,null,null,null,null,null,null,null,null,null,null,null,null,null,null,null,null,null,null,null,null,null,null,null,null,null,null,null,null,null,null,null,null,null,null,null,null,0]
[null,null,null,null,null,null,null,null,null,null,null,null,null,null,null,null,null,null,null,null,null,null,null,null,null,null,null,null,null,null,null,null,null,null,null,null,null,null,null,null,null,null,null,null,0]
[null,null,null,null,null,null,null,null,null,null,null,null,null,null,null,null,null,null,null,null,null,null,null,null,null,null,null,null,null,null,null,null,null,null,null,null,null,null,null,null,null,null,null,null,0]
[null,null,null,null,null,null,null,null,null,null,null,null,null,null,null,null,null,null,null,null,null,null,null,null,null,null,null,null,null,null,null,null,null,null,null,null,null,null,null,null,null,null,null,null,0]
[null,null,null,null,null,null,null,null,null,null,null,null,null,null,null,null,null,null,null,null,null,null,null,null,null,null,null,null,null,null,null,null,null,null,null,null,null,null,null,null,null,null,null,null,0]
[null,null,null,null,null,null,null,null,null,null,null,null,null,null,null,null,null,null,null,null,null,null,null,null,null,null,null,null,null,null,null,null,null,null,null,null,null,null,null,null,null,null,null,null,0]
[null,null,null,null,null,null,null,null,null,null,null,null,null,null,null,null,null,null,null,null,null,null,null,null,null,null,null,null,null,null,null,null,null,null,null,null,null,null,null,null,null,null,null,null,0]
[null,null,null,null,null,null,null,null,null,null,null,null,null,null,null,null,null,null,null,null,null,null,null,null,null,null,null,null,null,null,null,null,null,null,null,null,null,null,null,null,null,null,null,null,0]
[null,null,null,null,null,null,null,null,null,null,null,null,null,null,null,null,null,null,null,null,null,null,null,null,null,null,null,null,null,null,null,null,null,null,null,null,null,null,null,null,null,null,null,null,0]
[null,null,null,null,null,null,null,null,null,null,null,null,null,null,null,null,null,null,null,null,null,null,null,null,null,null,null,null,null,null,null,null,null,null,null,null,null,null,null,null,null,null,null,null,0]
[null,null,null,null,null,null,null,null,null,null,null,null,null,null,null,null,null,null,null,null,null,null,null,null,null,null,null,null,null,null,null,null,null,null,null,null,null,null,null,null,null,null,null,null,0]
[null,null,null,null,null,null,null,null,null,null,null,null,null,null,null,null,null,null,null,null,null,null,null,null,null,null,null,null,null,null,null,null,null,null,null,null,null,null,null,null,null,null,null,null,0]
[null,null,null,null,null,null,null,null,null,null,null,null,null,null,null,null,null,null,null,null,null,null,null,null,null,null,null,null,null,null,null,null,null,null,null,null,null,null,null,null,null,null,null,null,0]
[null,null,null,null,null,null,null,null,null,null,null,null,null,null,null,null,null,null,null,null,null,null,null,null,null,null,null,null,null,null,null,null,null,null,null,null,null,null,null,null,null,null,null,null,0]
[null,null,null,null,null,null,null,null,null,null,null,null,null,null,null,null,null,null,null,null,null,null,null,null,null,null,null,null,null,null,null,null,null,null,null,null,null,null,null,null,null,null,null,null,0]
[null,null,null,null,null,null,null,null,null,null,null,null,null,null,null,null,null,null,null,null,null,null,null,null,null,null,null,null,null,null,null,null,null,null,null,null,null,null,null,null,null,null,null,null,0]
[null,null,null,null,null,null,null,null,null,null,null,null,null,null,null,null,null,null,null,null,null,null,null,null,null,null,null,null,null,null,null,null,null,null,null,null,null,null,null,null,null,null,null,null,0]
[null,null,null,null,null,null,null,null,null,null,null,null,null,null,null,null,null,null,null,null,null,null,null,null,null,null,null,null,null,null,null,null,null,null,null,null,null,null,null,null,null,null,null,null,0]
[null,null,null,null,null,null,null,null,null,null,null,null,null,null,null,null,null,null,null,null,null,null,null,null,null,null,null,null,null,null,null,null,null,null,null,null,null,null,null,null,null,null,null,null,0]
[null,null,null,null,null,null,null,null,null,null,null,null,null,null,null,null,null,null,null,null,null,null,null,null,null,null,null,null,null,null,null,null,null,null,null,null,null,null,null,null,null,null,null,null,0]
[null,null,null,null,null,null,null,null,null,null,null,null,null,null,null,null,null,null,null,null,null,null,null,null,null,null,null,null,null,null,null,null,null,null,null,null,null,null,null,null,null,null,null,null,0]
[null,null,null,null,null,null,null,null,null,null,null,null,null,null,null,null,null,null,null,null,null,null,null,null,null,null,null,null,null,null,null,null,null,null,null,null,null,null,null,null,null,null,null,null,0]
[null,null,null,null,null,null,null,null,null,null,null,null,null,null,null,null,null,null,null,null,null,null,null,null,null,null,null,null,null,null,null,null,null,null,null,null,null,null,null,null,null,null,null,null,0]
[null,null,null,null,null,null,null,null,null,null,null,null,null,null,null,null,null,null,null,null,null,null,null,null,null,null,null,null,null,null,null,null,null,null,null,null,null,null,null,null,null,null,null,null,0]
[null,null,null,null,null,null,null,null,null,null,null,null,null,null,null,null,null,null,null,null,null,null,null,null,null,null,null,null,null,null,null,null,null,null,null,null,null,null,null,null,null,null,null,null,0]
[null,null,null,null,null,null,null,null,null,null,null,null,null,null,null,null,null,null,null,null,null,null,null,null,null,null,null,null,null,null,null,null,null,null,null,null,null,null,null,null,null,null,null,null,0]
[null,null,null,null,null,null,null,null,null,null,null,null,null,null,null,null,null,null,null,null,null,null,null,null,null,null,null,null,null,null,null,null,null,null,null,null,null,null,null,null,null,null,null,null,0]
[null,null,null,null,null,null,null,null,null,null,null,null,null,null,null,null,null,null,null,null,null,null,null,null,null,null,null,null,null,null,null,null,null,null,null,null,null,null,null,null,null,null,null,null,0]
[null,null,null,null,null,null,null,null,null,null,null,null,null,null,null,null,null,null,null,null,null,null,null,null,null,null,null,null,null,null,null,null,null,null,null,null,null,null,null,null,null,null,null,null,0]
[null,null,null,null,null,null,null,null,null,null,null,null,null,null,null,null,null,null,null,null,null,null,null,null,null,null,null,null,null,null,null,null,null,null,null,null,null,null,null,null,null,null,null,null,0]
[null,null,null,null,null,null,null,null,null,null,null,null,null,null,null,null,null,null,null,null,null,null,null,null,null,null,null,null,null,null,null,null,null,null,null,null,null,null,null,null,null,null,null,null,0]
[null,null,null,null,null,null,null,null,null,null,null,null,null,null,null,null,null,null,null,null,null,null,null,null,null,null,null,null,null,null,null,null,null,null,null,null,null,null,null,null,null,null,null,null,0]
[null,null,null,null,null,null,null,null,null,null,null,null,null,null,null,null,null,null,null,null,null,null,null,null,null,null,null,null,null,null,null,null,null,null,null,null,null,null,null,null,null,null,null,null,0]
[null,null,null,null,null,null,null,null,null,null,null,null,null,null,null,null,null,null,null,null,null,null,null,null,null,null,null,null,null,null,null,null,null,null,null,null,null,null,null,null,null,null,null,null,0]
[null,null,null,null,null,null,null,null,null,null,null,null,null,null,null,null,null,null,null,null,null,null,null,null,null,null,null,null,null,null,null,null,null,null,null,null,null,null,null,null,null,null,null,null,0]
[null,null,null,null,null,null,null,null,null,null,null,null,null,null,null,null,null,null,null,null,null,null,null,null,null,null,null,null,null,null,null,null,null,null,null,null,null,null,null,null,null,null,null,null,0]
[null,null,null,null,null,null,null,null,null,null,null,null,null,null,null,null,null,null,null,null,null,null,null,null,null,null,null,null,null,null,null,null,null,null,null,null,null,null,null,null,null,null,null,null,0]
[null,null,null,null,null,null,null,null,null,null,null,null,null,null,null,null,null,null,null,null,null,null,null,null,null,null,null,null,null,null,null,null,null,null,null,null,null,null,null,null,null,null,null,null,0]
[null,null,null,null,null,null,null,null,null,null,null,null,null,null,null,null,null,null,null,null,null,null,null,null,null,null,null,null,null,null,null,null,null,null,null,null,null,null,null,null,null,null,null,null,0]
[null,null,null,null,null,null,null,null,null,null,null,null,null,null,null,null,null,null,null,null,null,null,null,null,null,null,null,null,null,null,null,null,null,null,null,null,null,null,null,null,null,null,null,null,0]
[null,null,null,null,null,null,null,null,null,null,null,null,null,null,null,null,null,null,null,null,null,null,null,null,null,null,null,null,null,null,null,null,null,null,null,null,null,null,null,null,null,null,null,null,0]
[null,null,null,null,null,null,null,null,null,null,null,null,null,null,null,null,null,null,null,null,null,null,null,null,null,null,null,null,null,null,null,null,null,null,null,null,null,null,null,null,null,null,null,null,0]
[null,null,null,null,null,null,null,null,null,null,null,null,null,null,null,null,null,null,null,null,null,null,null,null,null,null,null,null,null,null,null,null,null,null,null,null,null,null,null,null,null,null,null,null,0]
[null,null,null,null,null,null,null,null,null,null,null,null,null,null,null,null,null,null,null,null,null,null,null,null,null,null,null,null,null,null,null,null,null,null,null,null,null,null,null,null,null,null,null,null,0]
[null,null,null,null,null,null,null,null,null,null,null,null,null,null,null,null,null,null,null,null,null,null,null,null,null,null,null,null,null,null,null,null,null,null,null,null,null,null,null,null,null,null,null,null,0]
[null,null,null,null,null,null,null,null,null,null,null,null,null,null,null,null,null,null,null,null,null,null,null,null,null,null,null,null,null,null,null,null,null,null,null,null,null,null,null,null,null,null,null,null,0]
[null,null,null,null,null,null,null,null,null,null,null,null,null,null,null,null,null,null,null,null,null,null,null,null,null,null,null,null,null,null,null,null,null,null,null,null,null,null,null,null,null,null,null,null,0]
[null,null,null,null,null,null,null,null,null,null,null,null,null,null,null,null,null,null,null,null,null,null,null,null,null,null,null,null,null,null,null,null,null,null,null,null,null,null,null,null,null,null,null,null,0]
[null,null,null,null,null,null,null,null,null,null,null,null,null,null,null,null,null,null,null,null,null,null,null,null,null,null,null,null,null,null,null,null,null,null,null,null,null,null,null,null,null,null,null,null,0]
[null,null,null,null,null,null,null,null,null,null,null,null,null,null,null,null,null,null,null,null,null,null,null,null,null,null,null,null,null,null,null,null,null,null,null,null,null,null,null,null,null,null,null,null,{"$f":"IFERROR(IF(AND(K1100>5,L1100=\"no\"),1,0),\"\")","v":0}]
[null,null,null,null,null,null,null,null,null,null,null,null,null,null,null,null,null,null,null,null,null,null,null,null,null,null,null,null,null,null,null,null,null,null,null,null,null,null,null,null,null,null,null,null,0]
[null,null,null,null,null,null,null,null,null,null,null,null,null,null,null,null,null,null,null,null,null,null,null,null,null,null,null,null,null,null,null,null,null,null,null,null,null,null,null,null,null,null,null,null,0]
[null,null,null,null,null,null,null,null,null,null,null,null,null,null,null,null,null,null,null,null,null,null,null,null,null,null,null,null,null,null,null,null,null,null,null,null,null,null,null,null,null,null,null,null,0]
[null,null,null,null,null,null,null,null,null,null,null,null,null,null,null,null,null,null,null,null,null,null,null,null,null,null,null,null,null,null,null,null,null,null,null,null,null,null,null,null,null,null,null,null,0]
[null,null,null,null,null,null,null,null,null,null,null,null,null,null,null,null,null,null,null,null,null,null,null,null,null,null,null,null,null,null,null,null,null,null,null,null,null,null,null,null,null,null,null,null,0]
[null,null,null,null,null,null,null,null,null,null,null,null,null,null,null,null,null,null,null,null,null,null,null,null,null,null,null,null,null,null,null,null,null,null,null,null,null,null,null,null,null,null,null,null,0]
[null,null,null,null,null,null,null,null,null,null,null,null,null,null,null,null,null,null,null,null,null,null,null,null,null,null,null,null,null,null,null,null,null,null,null,null,null,null,null,null,null,null,null,null,0]
[null,null,null,null,null,null,null,null,null,null,null,null,null,null,null,null,null,null,null,null,null,null,null,null,null,null,null,null,null,null,null,null,null,null,null,null,null,null,null,null,null,null,null,null,0]
[null,null,null,null,null,null,null,null,null,null,null,null,null,null,null,null,null,null,null,null,null,null,null,null,null,null,null,null,null,null,null,null,null,null,null,null,null,null,null,null,null,null,null,null,0]
[null,null,null,null,null,null,null,null,null,null,null,null,null,null,null,null,null,null,null,null,null,null,null,null,null,null,null,null,null,null,null,null,null,null,null,null,null,null,null,null,null,null,null,null,0]
[null,null,null,null,null,null,null,null,null,null,null,null,null,null,null,null,null,null,null,null,null,null,null,null,null,null,null,null,null,null,null,null,null,null,null,null,null,null,null,null,null,null,null,null,0]
[null,null,null,null,null,null,null,null,null,null,null,null,null,null,null,null,null,null,null,null,null,null,null,null,null,null,null,null,null,null,null,null,null,null,null,null,null,null,null,null,null,null,null,null,0]
[null,null,null,null,null,null,null,null,null,null,null,null,null,null,null,null,null,null,null,null,null,null,null,null,null,null,null,null,null,null,null,null,null,null,null,null,null,null,null,null,null,null,null,null,0]
[null,null,null,null,null,null,null,null,null,null,null,null,null,null,null,null,null,null,null,null,null,null,null,null,null,null,null,null,null,null,null,null,null,null,null,null,null,null,null,null,null,null,null,null,0]
[null,null,null,null,null,null,null,null,null,null,null,null,null,null,null,null,null,null,null,null,null,null,null,null,null,null,null,null,null,null,null,null,null,null,null,null,null,null,null,null,null,null,null,null,0]
[null,null,null,null,null,null,null,null,null,null,null,null,null,null,null,null,null,null,null,null,null,null,null,null,null,null,null,null,null,null,null,null,null,null,null,null,null,null,null,null,null,null,null,null,0]
[null,null,null,null,null,null,null,null,null,null,null,null,null,null,null,null,null,null,null,null,null,null,null,null,null,null,null,null,null,null,null,null,null,null,null,null,null,null,null,null,null,null,null,null,0]
[null,null,null,null,null,null,null,null,null,null,null,null,null,null,null,null,null,null,null,null,null,null,null,null,null,null,null,null,null,null,null,null,null,null,null,null,null,null,null,null,null,null,null,null,0]
[null,null,null,null,null,null,null,null,null,null,null,null,null,null,null,null,null,null,null,null,null,null,null,null,null,null,null,null,null,null,null,null,null,null,null,null,null,null,null,null,null,null,null,null,0]
[null,null,null,null,null,null,null,null,null,null,null,null,null,null,null,null,null,null,null,null,null,null,null,null,null,null,null,null,null,null,null,null,null,null,null,null,null,null,null,null,null,null,null,null,0]
[null,null,null,null,null,null,null,null,null,null,null,null,null,null,null,null,null,null,null,null,null,null,null,null,null,null,null,null,null,null,null,null,null,null,null,null,null,null,null,null,null,null,null,null,0]

{"sheet":"1- DETAIL COMBINED ROOMS - IT","index":4,"n_rows":7,"n_cols":20,"rows_kept":7,"cut":false,"hidden":false,"merged":[[29,17,30,17],[17,17,18,17],[19,17,20,17],[21,17,22,17],[23,17,24,17],[25,17,26,17],[27,17,28,17],[15,17,16,17],[5,17,6,17],[7,17,8,17],[9,17,10,17],[11,17,12,17],[13,17,14,17]]}
[]
[]
[null,null,"ROOM SUBTYPOLOGY CHANGES"]
[]
[null,"BATCH","TMS ID","Hotel Name","Business Unit","Country","City","FLOOR","ROOM NUMBER","ROOM TYPE ","ROOM TYPE NAME","ROOM TYPE CHANGE","NEW ROOM TYPE","Room Combine Descrpition","min occup.","standard occup.","max ocupp","CONNECTED ROOM TYPE","CONNECTED ROOM NUMBER","MAX OCUPPANCY"]
[null,null,null,null,null,null,null,null,null,null,{"$f":"IFERROR(VLOOKUP(J6,'[2]Corp Room Table'!$A$2:$G$319,3,FALSE),\"\")","v":""}]
[null,null,null,null,null,null,null,null,null,null,{"$f":"IFERROR(VLOOKUP(J7,'[2]Corp Room Table'!$A$2:$G$319,3,FALSE),\"\")","v":""}]

{"sheet":"2- DETAIL TYPOLOGY -DCM","index":5,"n_rows":1302,"n_cols":20,"rows_kept":1302,"cut":false,"hidden":false,"merged":[[5,12,5,13],[5,14,5,15],[5,16,5,17],[5,18,5,19]]}
[]
[]
[null,"TYPOLOGY CHANGES"]
[]
[]
[null,null,null,null,null,null,null,null,null,null,null,null,"COMBINATION 1 without extrabed",null,"COMBINATION 2 without extrabed",null,"COMBINATION 3 with extrabed",null,"COMBINATION 4 with extrabed"]
[null,"TMS ID","Hotel Name","Business Unit","Country","City"," ROOM TYPE","action","min occup.","max ocupp","OTAS","EXTRA BED","ADULT","CHILD","ADULT","CHILD","ADULT","CHILD","ADULT","CHILD"]
[null,null,{"$f":"IFERROR(VLOOKUP(B8,[2]Sheet4!$F$2:$J$364,2,FALSE),\"\")","v":""},{"$f":"IFERROR(VLOOKUP(B8,[2]Sheet4!$F$2:$J$364,3,FALSE),\"\")","v":""},{"$f":"IFERROR(VLOOKUP(B8,[2]Sheet4!$F$2:$J$364,4,FALSE),\"\")","v":""},{"$f":"IFERROR(VLOOKUP(B8,[2]Sheet4!$F$2:$J$364,5,FALSE),\"\")","v":""}]
[null,null,{"$f":"IFERROR(VLOOKUP(B9,[2]Sheet4!$F$2:$J$364,2,FALSE),\"\")","v":""},{"$f":"IFERROR(VLOOKUP(B9,[2]Sheet4!$F$2:$J$364,3,FALSE),\"\")","v":""},{"$f":"IFERROR(VLOOKUP(B9,[2]Sheet4!$F$2:$J$364,4,FALSE),\"\")","v":""},{"$f":"IFERROR(VLOOKUP(B9,[2]Sheet4!$F$2:$J$364,5,FALSE),\"\")","v":""}]
[null,null,{"$f":"IFERROR(VLOOKUP(B10,[2]Sheet4!$F$2:$J$364,2,FALSE),\"\")","v":""},{"$f":"IFERROR(VLOOKUP(B10,[2]Sheet4!$F$2:$J$364,3,FALSE),\"\")","v":""},{"$f":"IFERROR(VLOOKUP(B10,[2]Sheet4!$F$2:$J$364,4,FALSE),\"\")","v":""},{"$f":"IFERROR(VLOOKUP(B10,[2]Sheet4!$F$2:$J$364,5,FALSE),\"\")","v":""}]
[null,null,{"$f":"IFERROR(VLOOKUP(B11,[2]Sheet4!$F$2:$J$364,2,FALSE),\"\")","v":""},{"$f":"IFERROR(VLOOKUP(B11,[2]Sheet4!$F$2:$J$364,3,FALSE),\"\")","v":""},{"$f":"IFERROR(VLOOKUP(B11,[2]Sheet4!$F$2:$J$364,4,FALSE),\"\")","v":""},{"$f":"IFERROR(VLOOKUP(B11,[2]Sheet4!$F$2:$J$364,5,FALSE),\"\")","v":""}]
[null,null,{"$f":"IFERROR(VLOOKUP(B12,[2]Sheet4!$F$2:$J$364,2,FALSE),\"\")","v":""},{"$f":"IFERROR(VLOOKUP(B12,[2]Sheet4!$F$2:$J$364,3,FALSE),\"\")","v":""},{"$f":"IFERROR(VLOOKUP(B12,[2]Sheet4!$F$2:$J$364,4,FALSE),\"\")","v":""},{"$f":"IFERROR(VLOOKUP(B12,[2]Sheet4!$F$2:$J$364,5,FALSE),\"\")","v":""}]
[null,null,{"$f":"IFERROR(VLOOKUP(B13,[2]Sheet4!$F$2:$J$364,2,FALSE),\"\")","v":""},{"$f":"IFERROR(VLOOKUP(B13,[2]Sheet4!$F$2:$J$364,3,FALSE),\"\")","v":""},{"$f":"IFERROR(VLOOKUP(B13,[2]Sheet4!$F$2:$J$364,4,FALSE),\"\")","v":""},{"$f":"IFERROR(VLOOKUP(B13,[2]Sheet4!$F$2:$J$364,5,FALSE),\"\")","v":""}]
[null,null,{"$f":"IFERROR(VLOOKUP(B14,[2]Sheet4!$F$2:$J$364,2,FALSE),\"\")","v":""},{"$f":"IFERROR(VLOOKUP(B14,[2]Sheet4!$F$2:$J$364,3,FALSE),\"\")","v":""},{"$f":"IFERROR(VLOOKUP(B14,[2]Sheet4!$F$2:$J$364,4,FALSE),\"\")","v":""},{"$f":"IFERROR(VLOOKUP(B14,[2]Sheet4!$F$2:$J$364,5,FALSE),\"\")","v":""}]
[null,null,{"$f":"IFERROR(VLOOKUP(B15,[2]Sheet4!$F$2:$J$364,2,FALSE),\"\")","v":""},{"$f":"IFERROR(VLOOKUP(B15,[2]Sheet4!$F$2:$J$364,3,FALSE),\"\")","v":""},{"$f":"IFERROR(VLOOKUP(B15,[2]Sheet4!$F$2:$J$364,4,FALSE),\"\")","v":""},{"$f":"IFERROR(VLOOKUP(B15,[2]Sheet4!$F$2:$J$364,5,FALSE),\"\")","v":""}]
[null,null,{"$f":"IFERROR(VLOOKUP(B16,[2]Sheet4!$F$2:$J$364,2,FALSE),\"\")","v":""},{"$f":"IFERROR(VLOOKUP(B16,[2]Sheet4!$F$2:$J$364,3,FALSE),\"\")","v":""},{"$f":"IFERROR(VLOOKUP(B16,[2]Sheet4!$F$2:$J$364,4,FALSE),\"\")","v":""},{"$f":"IFERROR(VLOOKUP(B16,[2]Sheet4!$F$2:$J$364,5,FALSE),\"\")","v":""}]
[null,null,{"$f":"IFERROR(VLOOKUP(B17,[2]Sheet4!$F$2:$J$364,2,FALSE),\"\")","v":""},{"$f":"IFERROR(VLOOKUP(B17,[2]Sheet4!$F$2:$J$364,3,FALSE),\"\")","v":""},{"$f":"IFERROR(VLOOKUP(B17,[2]Sheet4!$F$2:$J$364,4,FALSE),\"\")","v":""},{"$f":"IFERROR(VLOOKUP(B17,[2]Sheet4!$F$2:$J$364,5,FALSE),\"\")","v":""}]
[null,null,{"$f":"IFERROR(VLOOKUP(B18,[2]Sheet4!$F$2:$J$364,2,FALSE),\"\")","v":""},{"$f":"IFERROR(VLOOKUP(B18,[2]Sheet4!$F$2:$J$364,3,FALSE),\"\")","v":""},{"$f":"IFERROR(VLOOKUP(B18,[2]Sheet4!$F$2:$J$364,4,FALSE),\"\")","v":""},{"$f":"IFERROR(VLOOKUP(B18,[2]Sheet4!$F$2:$J$364,5,FALSE),\"\")","v":""}]
[null,null,{"$f":"IFERROR(VLOOKUP(B19,[2]Sheet4!$F$2:$J$364,2,FALSE),\"\")","v":""},{"$f":"IFERROR(VLOOKUP(B19,[2]Sheet4!$F$2:$J$364,3,FALSE),\"\")","v":""},{"$f":"IFERROR(VLOOKUP(B19,[2]Sheet4!$F$2:$J$364,4,FALSE),\"\")","v":""},{"$f":"IFERROR(VLOOKUP(B19,[2]Sheet4!$F$2:$J$364,5,FALSE),\"\")","v":""}]
[null,null,{"$f":"IFERROR(VLOOKUP(B20,[2]Sheet4!$F$2:$J$364,2,FALSE),\"\")","v":""},{"$f":"IFERROR(VLOOKUP(B20,[2]Sheet4!$F$2:$J$364,3,FALSE),\"\")","v":""},{"$f":"IFERROR(VLOOKUP(B20,[2]Sheet4!$F$2:$J$364,4,FALSE),\"\")","v":""},{"$f":"IFERROR(VLOOKUP(B20,[2]Sheet4!$F$2:$J$364,5,FALSE),\"\")","v":""}]
[null,null,{"$f":"IFERROR(VLOOKUP(B21,[2]Sheet4!$F$2:$J$364,2,FALSE),\"\")","v":""},{"$f":"IFERROR(VLOOKUP(B21,[2]Sheet4!$F$2:$J$364,3,FALSE),\"\")","v":""},{"$f":"IFERROR(VLOOKUP(B21,[2]Sheet4!$F$2:$J$364,4,FALSE),\"\")","v":""},{"$f":"IFERROR(VLOOKUP(B21,[2]Sheet4!$F$2:$J$364,5,FALSE),\"\")","v":""}]
[null,null,{"$f":"IFERROR(VLOOKUP(B22,[2]Sheet4!$F$2:$J$364,2,FALSE),\"\")","v":""},{"$f":"IFERROR(VLOOKUP(B22,[2]Sheet4!$F$2:$J$364,3,FALSE),\"\")","v":""},{"$f":"IFERROR(VLOOKUP(B22,[2]Sheet4!$F$2:$J$364,4,FALSE),\"\")","v":""},{"$f":"IFERROR(VLOOKUP(B22,[2]Sheet4!$F$2:$J$364,5,FALSE),\"\")","v":""}]
[null,null,{"$f":"IFERROR(VLOOKUP(B23,[2]Sheet4!$F$2:$J$364,2,FALSE),\"\")","v":""},{"$f":"IFERROR(VLOOKUP(B23,[2]Sheet4!$F$2:$J$364,3,FALSE),\"\")","v":""},{"$f":"IFERROR(VLOOKUP(B23,[2]Sheet4!$F$2:$J$364,4,FALSE),\"\")","v":""},{"$f":"IFERROR(VLOOKUP(B23,[2]Sheet4!$F$2:$J$364,5,FALSE),\"\")","v":""}]
[null,null,{"$f":"IFERROR(VLOOKUP(B24,[2]Sheet4!$F$2:$J$364,2,FALSE),\"\")","v":""},{"$f":"IFERROR(VLOOKUP(B24,[2]Sheet4!$F$2:$J$364,3,FALSE),\"\")","v":""},{"$f":"IFERROR(VLOOKUP(B24,[2]Sheet4!$F$2:$J$364,4,FALSE),\"\")","v":""},{"$f":"IFERROR(VLOOKUP(B24,[2]Sheet4!$F$2:$J$364,5,FALSE),\"\")","v":""}]
[null,null,{"$f":"IFERROR(VLOOKUP(B25,[2]Sheet4!$F$2:$J$364,2,FALSE),\"\")","v":""},{"$f":"IFERROR(VLOOKUP(B25,[2]Sheet4!$F$2:$J$364,3,FALSE),\"\")","v":""},{"$f":"IFERROR(VLOOKUP(B25,[2]Sheet4!$F$2:$J$364,4,FALSE),\"\")","v":""},{"$f":"IFERROR(VLOOKUP(B25,[2]Sheet4!$F$2:$J$364,5,FALSE),\"\")","v":""}]
[null,null,{"$f":"IFERROR(VLOOKUP(B26,[2]Sheet4!$F$2:$J$364,2,FALSE),\"\")","v":""},{"$f":"IFERROR(VLOOKUP(B26,[2]Sheet4!$F$2:$J$364,3,FALSE),\"\")","v":""},{"$f":"IFERROR(VLOOKUP(B26,[2]Sheet4!$F$2:$J$364,4,FALSE),\"\")","v":""},{"$f":"IFERROR(VLOOKUP(B26,[2]Sheet4!$F$2:$J$364,5,FALSE),\"\")","v":""}]
[null,null,{"$f":"IFERROR(VLOOKUP(B27,[2]Sheet4!$F$2:$J$364,2,FALSE),\"\")","v":""},{"$f":"IFERROR(VLOOKUP(B27,[2]Sheet4!$F$2:$J$364,3,FALSE),\"\")","v":""},{"$f":"IFERROR(VLOOKUP(B27,[2]Sheet4!$F$2:$J$364,4,FALSE),\"\")","v":""},{"$f":"IFERROR(VLOOKUP(B27,[2]Sheet4!$F$2:$J$364,5,FALSE),\"\")","v":""}]
[null,null,{"$f":"IFERROR(VLOOKUP(B28,[2]Sheet4!$F$2:$J$364,2,FALSE),\"\")","v":""},{"$f":"IFERROR(VLOOKUP(B28,[2]Sheet4!$F$2:$J$364,3,FALSE),\"\")","v":""},{"$f":"IFERROR(VLOOKUP(B28,[2]Sheet4!$F$2:$J$364,4,FALSE),\"\")","v":""},{"$f":"IFERROR(VLOOKUP(B28,[2]Sheet4!$F$2:$J$364,5,FALSE),\"\")","v":""}]
[null,null,{"$f":"IFERROR(VLOOKUP(B29,[2]Sheet4!$F$2:$J$364,2,FALSE),\"\")","v":""},{"$f":"IFERROR(VLOOKUP(B29,[2]Sheet4!$F$2:$J$364,3,FALSE),\"\")","v":""},{"$f":"IFERROR(VLOOKUP(B29,[2]Sheet4!$F$2:$J$364,4,FALSE),\"\")","v":""},{"$f":"IFERROR(VLOOKUP(B29,[2]Sheet4!$F$2:$J$364,5,FALSE),\"\")","v":""}]
[null,null,{"$f":"IFERROR(VLOOKUP(B30,[2]Sheet4!$F$2:$J$364,2,FALSE),\"\")","v":""},{"$f":"IFERROR(VLOOKUP(B30,[2]Sheet4!$F$2:$J$364,3,FALSE),\"\")","v":""},{"$f":"IFERROR(VLOOKUP(B30,[2]Sheet4!$F$2:$J$364,4,FALSE),\"\")","v":""},{"$f":"IFERROR(VLOOKUP(B30,[2]Sheet4!$F$2:$J$364,5,FALSE),\"\")","v":""}]
[null,null,{"$f":"IFERROR(VLOOKUP(B31,[2]Sheet4!$F$2:$J$364,2,FALSE),\"\")","v":""},{"$f":"IFERROR(VLOOKUP(B31,[2]Sheet4!$F$2:$J$364,3,FALSE),\"\")","v":""},{"$f":"IFERROR(VLOOKUP(B31,[2]Sheet4!$F$2:$J$364,4,FALSE),\"\")","v":""},{"$f":"IFERROR(VLOOKUP(B31,[2]Sheet4!$F$2:$J$364,5,FALSE),\"\")","v":""}]
[null,null,{"$f":"IFERROR(VLOOKUP(B32,[2]Sheet4!$F$2:$J$364,2,FALSE),\"\")","v":""},{"$f":"IFERROR(VLOOKUP(B32,[2]Sheet4!$F$2:$J$364,3,FALSE),\"\")","v":""},{"$f":"IFERROR(VLOOKUP(B32,[2]Sheet4!$F$2:$J$364,4,FALSE),\"\")","v":""},{"$f":"IFERROR(VLOOKUP(B32,[2]Sheet4!$F$2:$J$364,5,FALSE),\"\")","v":""}]
[null,null,{"$f":"IFERROR(VLOOKUP(B33,[2]Sheet4!$F$2:$J$364,2,FALSE),\"\")","v":""},{"$f":"IFERROR(VLOOKUP(B33,[2]Sheet4!$F$2:$J$364,3,FALSE),\"\")","v":""},{"$f":"IFERROR(VLOOKUP(B33,[2]Sheet4!$F$2:$J$364,4,FALSE),\"\")","v":""},{"$f":"IFERROR(VLOOKUP(B33,[2]Sheet4!$F$2:$J$364,5,FALSE),\"\")","v":""}]
[null,null,{"$f":"IFERROR(VLOOKUP(B34,[2]Sheet4!$F$2:$J$364,2,FALSE),\"\")","v":""},{"$f":"IFERROR(VLOOKUP(B34,[2]Sheet4!$F$2:$J$364,3,FALSE),\"\")","v":""},{"$f":"IFERROR(VLOOKUP(B34,[2]Sheet4!$F$2:$J$364,4,FALSE),\"\")","v":""},{"$f":"IFERROR(VLOOKUP(B34,[2]Sheet4!$F$2:$J$364,5,FALSE),\"\")","v":""}]
[null,null,{"$f":"IFERROR(VLOOKUP(B35,[2]Sheet4!$F$2:$J$364,2,FALSE),\"\")","v":""},{"$f":"IFERROR(VLOOKUP(B35,[2]Sheet4!$F$2:$J$364,3,FALSE),\"\")","v":""},{"$f":"IFERROR(VLOOKUP(B35,[2]Sheet4!$F$2:$J$364,4,FALSE),\"\")","v":""},{"$f":"IFERROR(VLOOKUP(B35,[2]Sheet4!$F$2:$J$364,5,FALSE),\"\")","v":""}]
[null,null,{"$f":"IFERROR(VLOOKUP(B36,[2]Sheet4!$F$2:$J$364,2,FALSE),\"\")","v":""},{"$f":"IFERROR(VLOOKUP(B36,[2]Sheet4!$F$2:$J$364,3,FALSE),\"\")","v":""},{"$f":"IFERROR(VLOOKUP(B36,[2]Sheet4!$F$2:$J$364,4,FALSE),\"\")","v":""},{"$f":"IFERROR(VLOOKUP(B36,[2]Sheet4!$F$2:$J$364,5,FALSE),\"\")","v":""}]
[null,null,{"$f":"IFERROR(VLOOKUP(B37,[2]Sheet4!$F$2:$J$364,2,FALSE),\"\")","v":""},{"$f":"IFERROR(VLOOKUP(B37,[2]Sheet4!$F$2:$J$364,3,FALSE),\"\")","v":""},{"$f":"IFERROR(VLOOKUP(B37,[2]Sheet4!$F$2:$J$364,4,FALSE),\"\")","v":""},{"$f":"IFERROR(VLOOKUP(B37,[2]Sheet4!$F$2:$J$364,5,FALSE),\"\")","v":""}]
[null,null,{"$f":"IFERROR(VLOOKUP(B38,[2]Sheet4!$F$2:$J$364,2,FALSE),\"\")","v":""},{"$f":"IFERROR(VLOOKUP(B38,[2]Sheet4!$F$2:$J$364,3,FALSE),\"\")","v":""},{"$f":"IFERROR(VLOOKUP(B38,[2]Sheet4!$F$2:$J$364,4,FALSE),\"\")","v":""},{"$f":"IFERROR(VLOOKUP(B38,[2]Sheet4!$F$2:$J$364,5,FALSE),\"\")","v":""}]
[null,null,{"$f":"IFERROR(VLOOKUP(B39,[2]Sheet4!$F$2:$J$364,2,FALSE),\"\")","v":""},{"$f":"IFERROR(VLOOKUP(B39,[2]Sheet4!$F$2:$J$364,3,FALSE),\"\")","v":""},{"$f":"IFERROR(VLOOKUP(B39,[2]Sheet4!$F$2:$J$364,4,FALSE),\"\")","v":""},{"$f":"IFERROR(VLOOKUP(B39,[2]Sheet4!$F$2:$J$364,5,FALSE),\"\")","v":""}]
[null,null,{"$f":"IFERROR(VLOOKUP(B40,[2]Sheet4!$F$2:$J$364,2,FALSE),\"\")","v":""},{"$f":"IFERROR(VLOOKUP(B40,[2]Sheet4!$F$2:$J$364,3,FALSE),\"\")","v":""},{"$f":"IFERROR(VLOOKUP(B40,[2]Sheet4!$F$2:$J$364,4,FALSE),\"\")","v":""},{"$f":"IFERROR(VLOOKUP(B40,[2]Sheet4!$F$2:$J$364,5,FALSE),\"\")","v":""}]
[null,null,{"$f":"IFERROR(VLOOKUP(B41,[2]Sheet4!$F$2:$J$364,2,FALSE),\"\")","v":""},{"$f":"IFERROR(VLOOKUP(B41,[2]Sheet4!$F$2:$J$364,3,FALSE),\"\")","v":""},{"$f":"IFERROR(VLOOKUP(B41,[2]Sheet4!$F$2:$J$364,4,FALSE),\"\")","v":""},{"$f":"IFERROR(VLOOKUP(B41,[2]Sheet4!$F$2:$J$364,5,FALSE),\"\")","v":""}]
[null,null,{"$f":"IFERROR(VLOOKUP(B42,[2]Sheet4!$F$2:$J$364,2,FALSE),\"\")","v":""},{"$f":"IFERROR(VLOOKUP(B42,[2]Sheet4!$F$2:$J$364,3,FALSE),\"\")","v":""},{"$f":"IFERROR(VLOOKUP(B42,[2]Sheet4!$F$2:$J$364,4,FALSE),\"\")","v":""},{"$f":"IFERROR(VLOOKUP(B42,[2]Sheet4!$F$2:$J$364,5,FALSE),\"\")","v":""}]
[null,null,{"$f":"IFERROR(VLOOKUP(B43,[2]Sheet4!$F$2:$J$364,2,FALSE),\"\")","v":""},{"$f":"IFERROR(VLOOKUP(B43,[2]Sheet4!$F$2:$J$364,3,FALSE),\"\")","v":""},{"$f":"IFERROR(VLOOKUP(B43,[2]Sheet4!$F$2:$J$364,4,FALSE),\"\")","v":""},{"$f":"IFERROR(VLOOKUP(B43,[2]Sheet4!$F$2:$J$364,5,FALSE),\"\")","v":""}]
[null,null,{"$f":"IFERROR(VLOOKUP(B44,[2]Sheet4!$F$2:$J$364,2,FALSE),\"\")","v":""},{"$f":"IFERROR(VLOOKUP(B44,[2]Sheet4!$F$2:$J$364,3,FALSE),\"\")","v":""},{"$f":"IFERROR(VLOOKUP(B44,[2]Sheet4!$F$2:$J$364,4,FALSE),\"\")","v":""},{"$f":"IFERROR(VLOOKUP(B44,[2]Sheet4!$F$2:$J$364,5,FALSE),\"\")","v":""}]
[null,null,{"$f":"IFERROR(VLOOKUP(B45,[2]Sheet4!$F$2:$J$364,2,FALSE),\"\")","v":""},{"$f":"IFERROR(VLOOKUP(B45,[2]Sheet4!$F$2:$J$364,3,FALSE),\"\")","v":""},{"$f":"IFERROR(VLOOKUP(B45,[2]Sheet4!$F$2:$J$364,4,FALSE),\"\")","v":""},{"$f":"IFERROR(VLOOKUP(B45,[2]Sheet4!$F$2:$J$364,5,FALSE),\"\")","v":""}]
[null,null,{"$f":"IFERROR(VLOOKUP(B46,[2]Sheet4!$F$2:$J$364,2,FALSE),\"\")","v":""},{"$f":"IFERROR(VLOOKUP(B46,[2]Sheet4!$F$2:$J$364,3,FALSE),\"\")","v":""},{"$f":"IFERROR(VLOOKUP(B46,[2]Sheet4!$F$2:$J$364,4,FALSE),\"\")","v":""},{"$f":"IFERROR(VLOOKUP(B46,[2]Sheet4!$F$2:$J$364,5,FALSE),\"\")","v":""}]
[null,null,{"$f":"IFERROR(VLOOKUP(B47,[2]Sheet4!$F$2:$J$364,2,FALSE),\"\")","v":""},{"$f":"IFERROR(VLOOKUP(B47,[2]Sheet4!$F$2:$J$364,3,FALSE),\"\")","v":""},{"$f":"IFERROR(VLOOKUP(B47,[2]Sheet4!$F$2:$J$364,4,FALSE),\"\")","v":""},{"$f":"IFERROR(VLOOKUP(B47,[2]Sheet4!$F$2:$J$364,5,FALSE),\"\")","v":""}]
[null,null,{"$f":"IFERROR(VLOOKUP(B48,[2]Sheet4!$F$2:$J$364,2,FALSE),\"\")","v":""},{"$f":"IFERROR(VLOOKUP(B48,[2]Sheet4!$F$2:$J$364,3,FALSE),\"\")","v":""},{"$f":"IFERROR(VLOOKUP(B48,[2]Sheet4!$F$2:$J$364,4,FALSE),\"\")","v":""},{"$f":"IFERROR(VLOOKUP(B48,[2]Sheet4!$F$2:$J$364,5,FALSE),\"\")","v":""}]
[null,null,{"$f":"IFERROR(VLOOKUP(B49,[2]Sheet4!$F$2:$J$364,2,FALSE),\"\")","v":""},{"$f":"IFERROR(VLOOKUP(B49,[2]Sheet4!$F$2:$J$364,3,FALSE),\"\")","v":""},{"$f":"IFERROR(VLOOKUP(B49,[2]Sheet4!$F$2:$J$364,4,FALSE),\"\")","v":""},{"$f":"IFERROR(VLOOKUP(B49,[2]Sheet4!$F$2:$J$364,5,FALSE),\"\")","v":""}]
[null,null,{"$f":"IFERROR(VLOOKUP(B50,[2]Sheet4!$F$2:$J$364,2,FALSE),\"\")","v":""},{"$f":"IFERROR(VLOOKUP(B50,[2]Sheet4!$F$2:$J$364,3,FALSE),\"\")","v":""},{"$f":"IFERROR(VLOOKUP(B50,[2]Sheet4!$F$2:$J$364,4,FALSE),\"\")","v":""},{"$f":"IFERROR(VLOOKUP(B50,[2]Sheet4!$F$2:$J$364,5,FALSE),\"\")","v":""}]
[null,null,{"$f":"IFERROR(VLOOKUP(B51,[2]Sheet4!$F$2:$J$364,2,FALSE),\"\")","v":""},{"$f":"IFERROR(VLOOKUP(B51,[2]Sheet4!$F$2:$J$364,3,FALSE),\"\")","v":""},{"$f":"IFERROR(VLOOKUP(B51,[2]Sheet4!$F$2:$J$364,4,FALSE),\"\")","v":""},{"$f":"IFERROR(VLOOKUP(B51,[2]Sheet4!$F$2:$J$364,5,FALSE),\"\")","v":""}]
[null,null,{"$f":"IFERROR(VLOOKUP(B52,[2]Sheet4!$F$2:$J$364,2,FALSE),\"\")","v":""},{"$f":"IFERROR(VLOOKUP(B52,[2]Sheet4!$F$2:$J$364,3,FALSE),\"\")","v":""},{"$f":"IFERROR(VLOOKUP(B52,[2]Sheet4!$F$2:$J$364,4,FALSE),\"\")","v":""},{"$f":"IFERROR(VLOOKUP(B52,[2]Sheet4!$F$2:$J$364,5,FALSE),\"\")","v":""}]
[null,null,{"$f":"IFERROR(VLOOKUP(B53,[2]Sheet4!$F$2:$J$364,2,FALSE),\"\")","v":""},{"$f":"IFERROR(VLOOKUP(B53,[2]Sheet4!$F$2:$J$364,3,FALSE),\"\")","v":""},{"$f":"IFERROR(VLOOKUP(B53,[2]Sheet4!$F$2:$J$364,4,FALSE),\"\")","v":""},{"$f":"IFERROR(VLOOKUP(B53,[2]Sheet4!$F$2:$J$364,5,FALSE),\"\")","v":""}]
[null,null,{"$f":"IFERROR(VLOOKUP(B54,[2]Sheet4!$F$2:$J$364,2,FALSE),\"\")","v":""},{"$f":"IFERROR(VLOOKUP(B54,[2]Sheet4!$F$2:$J$364,3,FALSE),\"\")","v":""},{"$f":"IFERROR(VLOOKUP(B54,[2]Sheet4!$F$2:$J$364,4,FALSE),\"\")","v":""},{"$f":"IFERROR(VLOOKUP(B54,[2]Sheet4!$F$2:$J$364,5,FALSE),\"\")","v":""}]
[null,null,{"$f":"IFERROR(VLOOKUP(B55,[2]Sheet4!$F$2:$J$364,2,FALSE),\"\")","v":""},{"$f":"IFERROR(VLOOKUP(B55,[2]Sheet4!$F$2:$J$364,3,FALSE),\"\")","v":""},{"$f":"IFERROR(VLOOKUP(B55,[2]Sheet4!$F$2:$J$364,4,FALSE),\"\")","v":""},{"$f":"IFERROR(VLOOKUP(B55,[2]Sheet4!$F$2:$J$364,5,FALSE),\"\")","v":""}]
[null,null,{"$f":"IFERROR(VLOOKUP(B56,[2]Sheet4!$F$2:$J$364,2,FALSE),\"\")","v":""},{"$f":"IFERROR(VLOOKUP(B56,[2]Sheet4!$F$2:$J$364,3,FALSE),\"\")","v":""},{"$f":"IFERROR(VLOOKUP(B56,[2]Sheet4!$F$2:$J$364,4,FALSE),\"\")","v":""},{"$f":"IFERROR(VLOOKUP(B56,[2]Sheet4!$F$2:$J$364,5,FALSE),\"\")","v":""}]
[null,null,{"$f":"IFERROR(VLOOKUP(B57,[2]Sheet4!$F$2:$J$364,2,FALSE),\"\")","v":""},{"$f":"IFERROR(VLOOKUP(B57,[2]Sheet4!$F$2:$J$364,3,FALSE),\"\")","v":""},{"$f":"IFERROR(VLOOKUP(B57,[2]Sheet4!$F$2:$J$364,4,FALSE),\"\")","v":""},{"$f":"IFERROR(VLOOKUP(B57,[2]Sheet4!$F$2:$J$364,5,FALSE),\"\")","v":""}]
[null,null,{"$f":"IFERROR(VLOOKUP(B58,[2]Sheet4!$F$2:$J$364,2,FALSE),\"\")","v":""},{"$f":"IFERROR(VLOOKUP(B58,[2]Sheet4!$F$2:$J$364,3,FALSE),\"\")","v":""},{"$f":"IFERROR(VLOOKUP(B58,[2]Sheet4!$F$2:$J$364,4,FALSE),\"\")","v":""},{"$f":"IFERROR(VLOOKUP(B58,[2]Sheet4!$F$2:$J$364,5,FALSE),\"\")","v":""}]
[null,null,{"$f":"IFERROR(VLOOKUP(B59,[2]Sheet4!$F$2:$J$364,2,FALSE),\"\")","v":""},{"$f":"IFERROR(VLOOKUP(B59,[2]Sheet4!$F$2:$J$364,3,FALSE),\"\")","v":""},{"$f":"IFERROR(VLOOKUP(B59,[2]Sheet4!$F$2:$J$364,4,FALSE),\"\")","v":""},{"$f":"IFERROR(VLOOKUP(B59,[2]Sheet4!$F$2:$J$364,5,FALSE),\"\")","v":""}]
[null,null,{"$f":"IFERROR(VLOOKUP(B60,[2]Sheet4!$F$2:$J$364,2,FALSE),\"\")","v":""},{"$f":"IFERROR(VLOOKUP(B60,[2]Sheet4!$F$2:$J$364,3,FALSE),\"\")","v":""},{"$f":"IFERROR(VLOOKUP(B60,[2]Sheet4!$F$2:$J$364,4,FALSE),\"\")","v":""},{"$f":"IFERROR(VLOOKUP(B60,[2]Sheet4!$F$2:$J$364,5,FALSE),\"\")","v":""}]
[null,null,{"$f":"IFERROR(VLOOKUP(B61,[2]Sheet4!$F$2:$J$364,2,FALSE),\"\")","v":""},{"$f":"IFERROR(VLOOKUP(B61,[2]Sheet4!$F$2:$J$364,3,FALSE),\"\")","v":""},{"$f":"IFERROR(VLOOKUP(B61,[2]Sheet4!$F$2:$J$364,4,FALSE),\"\")","v":""},{"$f":"IFERROR(VLOOKUP(B61,[2]Sheet4!$F$2:$J$364,5,FALSE),\"\")","v":""}]
[null,null,{"$f":"IFERROR(VLOOKUP(B62,[2]Sheet4!$F$2:$J$364,2,FALSE),\"\")","v":""},{"$f":"IFERROR(VLOOKUP(B62,[2]Sheet4!$F$2:$J$364,3,FALSE),\"\")","v":""},{"$f":"IFERROR(VLOOKUP(B62,[2]Sheet4!$F$2:$J$364,4,FALSE),\"\")","v":""},{"$f":"IFERROR(VLOOKUP(B62,[2]Sheet4!$F$2:$J$364,5,FALSE),\"\")","v":""}]
[null,null,{"$f":"IFERROR(VLOOKUP(B63,[2]Sheet4!$F$2:$J$364,2,FALSE),\"\")","v":""},{"$f":"IFERROR(VLOOKUP(B63,[2]Sheet4!$F$2:$J$364,3,FALSE),\"\")","v":""},{"$f":"IFERROR(VLOOKUP(B63,[2]Sheet4!$F$2:$J$364,4,FALSE),\"\")","v":""},{"$f":"IFERROR(VLOOKUP(B63,[2]Sheet4!$F$2:$J$364,5,FALSE),\"\")","v":""}]
[null,null,{"$f":"IFERROR(VLOOKUP(B64,[2]Sheet4!$F$2:$J$364,2,FALSE),\"\")","v":""},{"$f":"IFERROR(VLOOKUP(B64,[2]Sheet4!$F$2:$J$364,3,FALSE),\"\")","v":""},{"$f":"IFERROR(VLOOKUP(B64,[2]Sheet4!$F$2:$J$364,4,FALSE),\"\")","v":""},{"$f":"IFERROR(VLOOKUP(B64,[2]Sheet4!$F$2:$J$364,5,FALSE),\"\")","v":""}]
[null,null,{"$f":"IFERROR(VLOOKUP(B65,[2]Sheet4!$F$2:$J$364,2,FALSE),\"\")","v":""},{"$f":"IFERROR(VLOOKUP(B65,[2]Sheet4!$F$2:$J$364,3,FALSE),\"\")","v":""},{"$f":"IFERROR(VLOOKUP(B65,[2]Sheet4!$F$2:$J$364,4,FALSE),\"\")","v":""},{"$f":"IFERROR(VLOOKUP(B65,[2]Sheet4!$F$2:$J$364,5,FALSE),\"\")","v":""}]
[null,null,{"$f":"IFERROR(VLOOKUP(B66,[2]Sheet4!$F$2:$J$364,2,FALSE),\"\")","v":""},{"$f":"IFERROR(VLOOKUP(B66,[2]Sheet4!$F$2:$J$364,3,FALSE),\"\")","v":""},{"$f":"IFERROR(VLOOKUP(B66,[2]Sheet4!$F$2:$J$364,4,FALSE),\"\")","v":""},{"$f":"IFERROR(VLOOKUP(B66,[2]Sheet4!$F$2:$J$364,5,FALSE),\"\")","v":""}]
[null,null,{"$f":"IFERROR(VLOOKUP(B67,[2]Sheet4!$F$2:$J$364,2,FALSE),\"\")","v":""},{"$f":"IFERROR(VLOOKUP(B67,[2]Sheet4!$F$2:$J$364,3,FALSE),\"\")","v":""},{"$f":"IFERROR(VLOOKUP(B67,[2]Sheet4!$F$2:$J$364,4,FALSE),\"\")","v":""},{"$f":"IFERROR(VLOOKUP(B67,[2]Sheet4!$F$2:$J$364,5,FALSE),\"\")","v":""}]
[null,null,{"$f":"IFERROR(VLOOKUP(B68,[2]Sheet4!$F$2:$J$364,2,FALSE),\"\")","v":""},{"$f":"IFERROR(VLOOKUP(B68,[2]Sheet4!$F$2:$J$364,3,FALSE),\"\")","v":""},{"$f":"IFERROR(VLOOKUP(B68,[2]Sheet4!$F$2:$J$364,4,FALSE),\"\")","v":""},{"$f":"IFERROR(VLOOKUP(B68,[2]Sheet4!$F$2:$J$364,5,FALSE),\"\")","v":""}]
[null,null,{"$f":"IFERROR(VLOOKUP(B69,[2]Sheet4!$F$2:$J$364,2,FALSE),\"\")","v":""},{"$f":"IFERROR(VLOOKUP(B69,[2]Sheet4!$F$2:$J$364,3,FALSE),\"\")","v":""},{"$f":"IFERROR(VLOOKUP(B69,[2]Sheet4!$F$2:$J$364,4,FALSE),\"\")","v":""},{"$f":"IFERROR(VLOOKUP(B69,[2]Sheet4!$F$2:$J$364,5,FALSE),\"\")","v":""}]
[null,null,{"$f":"IFERROR(VLOOKUP(B70,[2]Sheet4!$F$2:$J$364,2,FALSE),\"\")","v":""},{"$f":"IFERROR(VLOOKUP(B70,[2]Sheet4!$F$2:$J$364,3,FALSE),\"\")","v":""},{"$f":"IFERROR(VLOOKUP(B70,[2]Sheet4!$F$2:$J$364,4,FALSE),\"\")","v":""},{"$f":"IFERROR(VLOOKUP(B70,[2]Sheet4!$F$2:$J$364,5,FALSE),\"\")","v":""}]
[null,null,{"$f":"IFERROR(VLOOKUP(B71,[2]Sheet4!$F$2:$J$364,2,FALSE),\"\")","v":""},{"$f":"IFERROR(VLOOKUP(B71,[2]Sheet4!$F$2:$J$364,3,FALSE),\"\")","v":""},{"$f":"IFERROR(VLOOKUP(B71,[2]Sheet4!$F$2:$J$364,4,FALSE),\"\")","v":""},{"$f":"IFERROR(VLOOKUP(B71,[2]Sheet4!$F$2:$J$364,5,FALSE),\"\")","v":""}]
[null,null,{"$f":"IFERROR(VLOOKUP(B72,[2]Sheet4!$F$2:$J$364,2,FALSE),\"\")","v":""},{"$f":"IFERROR(VLOOKUP(B72,[2]Sheet4!$F$2:$J$364,3,FALSE),\"\")","v":""},{"$f":"IFERROR(VLOOKUP(B72,[2]Sheet4!$F$2:$J$364,4,FALSE),\"\")","v":""},{"$f":"IFERROR(VLOOKUP(B72,[2]Sheet4!$F$2:$J$364,5,FALSE),\"\")","v":""}]
[null,null,{"$f":"IFERROR(VLOOKUP(B73,[2]Sheet4!$F$2:$J$364,2,FALSE),\"\")","v":""},{"$f":"IFERROR(VLOOKUP(B73,[2]Sheet4!$F$2:$J$364,3,FALSE),\"\")","v":""},{"$f":"IFERROR(VLOOKUP(B73,[2]Sheet4!$F$2:$J$364,4,FALSE),\"\")","v":""},{"$f":"IFERROR(VLOOKUP(B73,[2]Sheet4!$F$2:$J$364,5,FALSE),\"\")","v":""}]
[null,null,{"$f":"IFERROR(VLOOKUP(B74,[2]Sheet4!$F$2:$J$364,2,FALSE),\"\")","v":""},{"$f":"IFERROR(VLOOKUP(B74,[2]Sheet4!$F$2:$J$364,3,FALSE),\"\")","v":""},{"$f":"IFERROR(VLOOKUP(B74,[2]Sheet4!$F$2:$J$364,4,FALSE),\"\")","v":""},{"$f":"IFERROR(VLOOKUP(B74,[2]Sheet4!$F$2:$J$364,5,FALSE),\"\")","v":""}]
[null,null,{"$f":"IFERROR(VLOOKUP(B75,[2]Sheet4!$F$2:$J$364,2,FALSE),\"\")","v":""},{"$f":"IFERROR(VLOOKUP(B75,[2]Sheet4!$F$2:$J$364,3,FALSE),\"\")","v":""},{"$f":"IFERROR(VLOOKUP(B75,[2]Sheet4!$F$2:$J$364,4,FALSE),\"\")","v":""},{"$f":"IFERROR(VLOOKUP(B75,[2]Sheet4!$F$2:$J$364,5,FALSE),\"\")","v":""}]
[null,null,{"$f":"IFERROR(VLOOKUP(B76,[2]Sheet4!$F$2:$J$364,2,FALSE),\"\")","v":""},{"$f":"IFERROR(VLOOKUP(B76,[2]Sheet4!$F$2:$J$364,3,FALSE),\"\")","v":""},{"$f":"IFERROR(VLOOKUP(B76,[2]Sheet4!$F$2:$J$364,4,FALSE),\"\")","v":""},{"$f":"IFERROR(VLOOKUP(B76,[2]Sheet4!$F$2:$J$364,5,FALSE),\"\")","v":""}]
[null,null,{"$f":"IFERROR(VLOOKUP(B77,[2]Sheet4!$F$2:$J$364,2,FALSE),\"\")","v":""},{"$f":"IFERROR(VLOOKUP(B77,[2]Sheet4!$F$2:$J$364,3,FALSE),\"\")","v":""},{"$f":"IFERROR(VLOOKUP(B77,[2]Sheet4!$F$2:$J$364,4,FALSE),\"\")","v":""},{"$f":"IFERROR(VLOOKUP(B77,[2]Sheet4!$F$2:$J$364,5,FALSE),\"\")","v":""}]
[null,null,{"$f":"IFERROR(VLOOKUP(B78,[2]Sheet4!$F$2:$J$364,2,FALSE),\"\")","v":""},{"$f":"IFERROR(VLOOKUP(B78,[2]Sheet4!$F$2:$J$364,3,FALSE),\"\")","v":""},{"$f":"IFERROR(VLOOKUP(B78,[2]Sheet4!$F$2:$J$364,4,FALSE),\"\")","v":""},{"$f":"IFERROR(VLOOKUP(B78,[2]Sheet4!$F$2:$J$364,5,FALSE),\"\")","v":""}]
[null,null,{"$f":"IFERROR(VLOOKUP(B79,[2]Sheet4!$F$2:$J$364,2,FALSE),\"\")","v":""},{"$f":"IFERROR(VLOOKUP(B79,[2]Sheet4!$F$2:$J$364,3,FALSE),\"\")","v":""},{"$f":"IFERROR(VLOOKUP(B79,[2]Sheet4!$F$2:$J$364,4,FALSE),\"\")","v":""},{"$f":"IFERROR(VLOOKUP(B79,[2]Sheet4!$F$2:$J$364,5,FALSE),\"\")","v":""}]
[null,null,{"$f":"IFERROR(VLOOKUP(B80,[2]Sheet4!$F$2:$J$364,2,FALSE),\"\")","v":""},{"$f":"IFERROR(VLOOKUP(B80,[2]Sheet4!$F$2:$J$364,3,FALSE),\"\")","v":""},{"$f":"IFERROR(VLOOKUP(B80,[2]Sheet4!$F$2:$J$364,4,FALSE),\"\")","v":""},{"$f":"IFERROR(VLOOKUP(B80,[2]Sheet4!$F$2:$J$364,5,FALSE),\"\")","v":""}]
[null,null,{"$f":"IFERROR(VLOOKUP(B81,[2]Sheet4!$F$2:$J$364,2,FALSE),\"\")","v":""},{"$f":"IFERROR(VLOOKUP(B81,[2]Sheet4!$F$2:$J$364,3,FALSE),\"\")","v":""},{"$f":"IFERROR(VLOOKUP(B81,[2]Sheet4!$F$2:$J$364,4,FALSE),\"\")","v":""},{"$f":"IFERROR(VLOOKUP(B81,[2]Sheet4!$F$2:$J$364,5,FALSE),\"\")","v":""}]
[null,null,{"$f":"IFERROR(VLOOKUP(B82,[2]Sheet4!$F$2:$J$364,2,FALSE),\"\")","v":""},{"$f":"IFERROR(VLOOKUP(B82,[2]Sheet4!$F$2:$J$364,3,FALSE),\"\")","v":""},{"$f":"IFERROR(VLOOKUP(B82,[2]Sheet4!$F$2:$J$364,4,FALSE),\"\")","v":""},{"$f":"IFERROR(VLOOKUP(B82,[2]Sheet4!$F$2:$J$364,5,FALSE),\"\")","v":""}]
[null,null,{"$f":"IFERROR(VLOOKUP(B83,[2]Sheet4!$F$2:$J$364,2,FALSE),\"\")","v":""},{"$f":"IFERROR(VLOOKUP(B83,[2]Sheet4!$F$2:$J$364,3,FALSE),\"\")","v":""},{"$f":"IFERROR(VLOOKUP(B83,[2]Sheet4!$F$2:$J$364,4,FALSE),\"\")","v":""},{"$f":"IFERROR(VLOOKUP(B83,[2]Sheet4!$F$2:$J$364,5,FALSE),\"\")","v":""}]
[null,null,{"$f":"IFERROR(VLOOKUP(B84,[2]Sheet4!$F$2:$J$364,2,FALSE),\"\")","v":""},{"$f":"IFERROR(VLOOKUP(B84,[2]Sheet4!$F$2:$J$364,3,FALSE),\"\")","v":""},{"$f":"IFERROR(VLOOKUP(B84,[2]Sheet4!$F$2:$J$364,4,FALSE),\"\")","v":""},{"$f":"IFERROR(VLOOKUP(B84,[2]Sheet4!$F$2:$J$364,5,FALSE),\"\")","v":""}]
[null,null,{"$f":"IFERROR(VLOOKUP(B85,[2]Sheet4!$F$2:$J$364,2,FALSE),\"\")","v":""},{"$f":"IFERROR(VLOOKUP(B85,[2]Sheet4!$F$2:$J$364,3,FALSE),\"\")","v":""},{"$f":"IFERROR(VLOOKUP(B85,[2]Sheet4!$F$2:$J$364,4,FALSE),\"\")","v":""},{"$f":"IFERROR(VLOOKUP(B85,[2]Sheet4!$F$2:$J$364,5,FALSE),\"\")","v":""}]
[null,null,{"$f":"IFERROR(VLOOKUP(B86,[2]Sheet4!$F$2:$J$364,2,FALSE),\"\")","v":""},{"$f":"IFERROR(VLOOKUP(B86,[2]Sheet4!$F$2:$J$364,3,FALSE),\"\")","v":""},{"$f":"IFERROR(VLOOKUP(B86,[2]Sheet4!$F$2:$J$364,4,FALSE),\"\")","v":""},{"$f":"IFERROR(VLOOKUP(B86,[2]Sheet4!$F$2:$J$364,5,FALSE),\"\")","v":""}]
[null,null,{"$f":"IFERROR(VLOOKUP(B87,[2]Sheet4!$F$2:$J$364,2,FALSE),\"\")","v":""},{"$f":"IFERROR(VLOOKUP(B87,[2]Sheet4!$F$2:$J$364,3,FALSE),\"\")","v":""},{"$f":"IFERROR(VLOOKUP(B87,[2]Sheet4!$F$2:$J$364,4,FALSE),\"\")","v":""},{"$f":"IFERROR(VLOOKUP(B87,[2]Sheet4!$F$2:$J$364,5,FALSE),\"\")","v":""}]
[null,null,{"$f":"IFERROR(VLOOKUP(B88,[2]Sheet4!$F$2:$J$364,2,FALSE),\"\")","v":""},{"$f":"IFERROR(VLOOKUP(B88,[2]Sheet4!$F$2:$J$364,3,FALSE),\"\")","v":""},{"$f":"IFERROR(VLOOKUP(B88,[2]Sheet4!$F$2:$J$364,4,FALSE),\"\")","v":""},{"$f":"IFERROR(VLOOKUP(B88,[2]Sheet4!$F$2:$J$364,5,FALSE),\"\")","v":""}]
[null,null,{"$f":"IFERROR(VLOOKUP(B89,[2]Sheet4!$F$2:$J$364,2,FALSE),\"\")","v":""},{"$f":"IFERROR(VLOOKUP(B89,[2]Sheet4!$F$2:$J$364,3,FALSE),\"\")","v":""},{"$f":"IFERROR(VLOOKUP(B89,[2]Sheet4!$F$2:$J$364,4,FALSE),\"\")","v":""},{"$f":"IFERROR(VLOOKUP(B89,[2]Sheet4!$F$2:$J$364,5,FALSE),\"\")","v":""}]
[null,null,{"$f":"IFERROR(VLOOKUP(B90,[2]Sheet4!$F$2:$J$364,2,FALSE),\"\")","v":""},{"$f":"IFERROR(VLOOKUP(B90,[2]Sheet4!$F$2:$J$364,3,FALSE),\"\")","v":""},{"$f":"IFERROR(VLOOKUP(B90,[2]Sheet4!$F$2:$J$364,4,FALSE),\"\")","v":""},{"$f":"IFERROR(VLOOKUP(B90,[2]Sheet4!$F$2:$J$364,5,FALSE),\"\")","v":""}]
[null,null,{"$f":"IFERROR(VLOOKUP(B91,[2]Sheet4!$F$2:$J$364,2,FALSE),\"\")","v":""},{"$f":"IFERROR(VLOOKUP(B91,[2]Sheet4!$F$2:$J$364,3,FALSE),\"\")","v":""},{"$f":"IFERROR(VLOOKUP(B91,[2]Sheet4!$F$2:$J$364,4,FALSE),\"\")","v":""},{"$f":"IFERROR(VLOOKUP(B91,[2]Sheet4!$F$2:$J$364,5,FALSE),\"\")","v":""}]
[null,null,{"$f":"IFERROR(VLOOKUP(B92,[2]Sheet4!$F$2:$J$364,2,FALSE),\"\")","v":""},{"$f":"IFERROR(VLOOKUP(B92,[2]Sheet4!$F$2:$J$364,3,FALSE),\"\")","v":""},{"$f":"IFERROR(VLOOKUP(B92,[2]Sheet4!$F$2:$J$364,4,FALSE),\"\")","v":""},{"$f":"IFERROR(VLOOKUP(B92,[2]Sheet4!$F$2:$J$364,5,FALSE),\"\")","v":""}]
[null,null,{"$f":"IFERROR(VLOOKUP(B93,[2]Sheet4!$F$2:$J$364,2,FALSE),\"\")","v":""},{"$f":"IFERROR(VLOOKUP(B93,[2]Sheet4!$F$2:$J$364,3,FALSE),\"\")","v":""},{"$f":"IFERROR(VLOOKUP(B93,[2]Sheet4!$F$2:$J$364,4,FALSE),\"\")","v":""},{"$f":"IFERROR(VLOOKUP(B93,[2]Sheet4!$F$2:$J$364,5,FALSE),\"\")","v":""}]
[null,null,{"$f":"IFERROR(VLOOKUP(B94,[2]Sheet4!$F$2:$J$364,2,FALSE),\"\")","v":""},{"$f":"IFERROR(VLOOKUP(B94,[2]Sheet4!$F$2:$J$364,3,FALSE),\"\")","v":""},{"$f":"IFERROR(VLOOKUP(B94,[2]Sheet4!$F$2:$J$364,4,FALSE),\"\")","v":""},{"$f":"IFERROR(VLOOKUP(B94,[2]Sheet4!$F$2:$J$364,5,FALSE),\"\")","v":""}]
[null,null,{"$f":"IFERROR(VLOOKUP(B95,[2]Sheet4!$F$2:$J$364,2,FALSE),\"\")","v":""},{"$f":"IFERROR(VLOOKUP(B95,[2]Sheet4!$F$2:$J$364,3,FALSE),\"\")","v":""},{"$f":"IFERROR(VLOOKUP(B95,[2]Sheet4!$F$2:$J$364,4,FALSE),\"\")","v":""},{"$f":"IFERROR(VLOOKUP(B95,[2]Sheet4!$F$2:$J$364,5,FALSE),\"\")","v":""}]
[null,null,{"$f":"IFERROR(VLOOKUP(B96,[2]Sheet4!$F$2:$J$364,2,FALSE),\"\")","v":""},{"$f":"IFERROR(VLOOKUP(B96,[2]Sheet4!$F$2:$J$364,3,FALSE),\"\")","v":""},{"$f":"IFERROR(VLOOKUP(B96,[2]Sheet4!$F$2:$J$364,4,FALSE),\"\")","v":""},{"$f":"IFERROR(VLOOKUP(B96,[2]Sheet4!$F$2:$J$364,5,FALSE),\"\")","v":""}]
[null,null,{"$f":"IFERROR(VLOOKUP(B97,[2]Sheet4!$F$2:$J$364,2,FALSE),\"\")","v":""},{"$f":"IFERROR(VLOOKUP(B97,[2]Sheet4!$F$2:$J$364,3,FALSE),\"\")","v":""},{"$f":"IFERROR(VLOOKUP(B97,[2]Sheet4!$F$2:$J$364,4,FALSE),\"\")","v":""},{"$f":"IFERROR(VLOOKUP(B97,[2]Sheet4!$F$2:$J$364,5,FALSE),\"\")","v":""}]
[null,null,{"$f":"IFERROR(VLOOKUP(B98,[2]Sheet4!$F$2:$J$364,2,FALSE),\"\")","v":""},{"$f":"IFERROR(VLOOKUP(B98,[2]Sheet4!$F$2:$J$364,3,FALSE),\"\")","v":""},{"$f":"IFERROR(VLOOKUP(B98,[2]Sheet4!$F$2:$J$364,4,FALSE),\"\")","v":""},{"$f":"IFERROR(VLOOKUP(B98,[2]Sheet4!$F$2:$J$364,5,FALSE),\"\")","v":""}]
[null,null,{"$f":"IFERROR(VLOOKUP(B99,[2]Sheet4!$F$2:$J$364,2,FALSE),\"\")","v":""},{"$f":"IFERROR(VLOOKUP(B99,[2]Sheet4!$F$2:$J$364,3,FALSE),\"\")","v":""},{"$f":"IFERROR(VLOOKUP(B99,[2]Sheet4!$F$2:$J$364,4,FALSE),\"\")","v":""},{"$f":"IFERROR(VLOOKUP(B99,[2]Sheet4!$F$2:$J$364,5,FALSE),\"\")","v":""}]
[null,null,{"$f":"IFERROR(VLOOKUP(B100,[2]Sheet4!$F$2:$J$364,2,FALSE),\"\")","v":""},{"$f":"IFERROR(VLOOKUP(B100,[2]Sheet4!$F$2:$J$364,3,FALSE),\"\")","v":""},{"$f":"IFERROR(VLOOKUP(B100,[2]Sheet4!$F$2:$J$364,4,FALSE),\"\")","v":""},{"$f":"IFERROR(VLOOKUP(B100,[2]Sheet4!$F$2:$J$364,5,FALSE),\"\")","v":""}]
[null,null,{"$f":"IFERROR(VLOOKUP(B101,[2]Sheet4!$F$2:$J$364,2,FALSE),\"\")","v":""},{"$f":"IFERROR(VLOOKUP(B101,[2]Sheet4!$F$2:$J$364,3,FALSE),\"\")","v":""},{"$f":"IFERROR(VLOOKUP(B101,[2]Sheet4!$F$2:$J$364,4,FALSE),\"\")","v":""},{"$f":"IFERROR(VLOOKUP(B101,[2]Sheet4!$F$2:$J$364,5,FALSE),\"\")","v":""}]
[null,null,{"$f":"IFERROR(VLOOKUP(B102,[2]Sheet4!$F$2:$J$364,2,FALSE),\"\")","v":""},{"$f":"IFERROR(VLOOKUP(B102,[2]Sheet4!$F$2:$J$364,3,FALSE),\"\")","v":""},{"$f":"IFERROR(VLOOKUP(B102,[2]Sheet4!$F$2:$J$364,4,FALSE),\"\")","v":""},{"$f":"IFERROR(VLOOKUP(B102,[2]Sheet4!$F$2:$J$364,5,FALSE),\"\")","v":""}]
[null,null,{"$f":"IFERROR(VLOOKUP(B103,[2]Sheet4!$F$2:$J$364,2,FALSE),\"\")","v":""},{"$f":"IFERROR(VLOOKUP(B103,[2]Sheet4!$F$2:$J$364,3,FALSE),\"\")","v":""},{"$f":"IFERROR(VLOOKUP(B103,[2]Sheet4!$F$2:$J$364,4,FALSE),\"\")","v":""},{"$f":"IFERROR(VLOOKUP(B103,[2]Sheet4!$F$2:$J$364,5,FALSE),\"\")","v":""}]
[null,null,{"$f":"IFERROR(VLOOKUP(B104,[2]Sheet4!$F$2:$J$364,2,FALSE),\"\")","v":""},{"$f":"IFERROR(VLOOKUP(B104,[2]Sheet4!$F$2:$J$364,3,FALSE),\"\")","v":""},{"$f":"IFERROR(VLOOKUP(B104,[2]Sheet4!$F$2:$J$364,4,FALSE),\"\")","v":""},{"$f":"IFERROR(VLOOKUP(B104,[2]Sheet4!$F$2:$J$364,5,FALSE),\"\")","v":""}]
[null,null,{"$f":"IFERROR(VLOOKUP(B105,[2]Sheet4!$F$2:$J$364,2,FALSE),\"\")","v":""},{"$f":"IFERROR(VLOOKUP(B105,[2]Sheet4!$F$2:$J$364,3,FALSE),\"\")","v":""},{"$f":"IFERROR(VLOOKUP(B105,[2]Sheet4!$F$2:$J$364,4,FALSE),\"\")","v":""},{"$f":"IFERROR(VLOOKUP(B105,[2]Sheet4!$F$2:$J$364,5,FALSE),\"\")","v":""}]
[null,null,{"$f":"IFERROR(VLOOKUP(B106,[2]Sheet4!$F$2:$J$364,2,FALSE),\"\")","v":""},{"$f":"IFERROR(VLOOKUP(B106,[2]Sheet4!$F$2:$J$364,3,FALSE),\"\")","v":""},{"$f":"IFERROR(VLOOKUP(B106,[2]Sheet4!$F$2:$J$364,4,FALSE),\"\")","v":""},{"$f":"IFERROR(VLOOKUP(B106,[2]Sheet4!$F$2:$J$364,5,FALSE),\"\")","v":""}]
[null,null,{"$f":"IFERROR(VLOOKUP(B107,[2]Sheet4!$F$2:$J$364,2,FALSE),\"\")","v":""},{"$f":"IFERROR(VLOOKUP(B107,[2]Sheet4!$F$2:$J$364,3,FALSE),\"\")","v":""},{"$f":"IFERROR(VLOOKUP(B107,[2]Sheet4!$F$2:$J$364,4,FALSE),\"\")","v":""},{"$f":"IFERROR(VLOOKUP(B107,[2]Sheet4!$F$2:$J$364,5,FALSE),\"\")","v":""}]
[null,null,{"$f":"IFERROR(VLOOKUP(B108,[2]Sheet4!$F$2:$J$364,2,FALSE),\"\")","v":""},{"$f":"IFERROR(VLOOKUP(B108,[2]Sheet4!$F$2:$J$364,3,FALSE),\"\")","v":""},{"$f":"IFERROR(VLOOKUP(B108,[2]Sheet4!$F$2:$J$364,4,FALSE),\"\")","v":""},{"$f":"IFERROR(VLOOKUP(B108,[2]Sheet4!$F$2:$J$364,5,FALSE),\"\")","v":""}]
[null,null,{"$f":"IFERROR(VLOOKUP(B109,[2]Sheet4!$F$2:$J$364,2,FALSE),\"\")","v":""},{"$f":"IFERROR(VLOOKUP(B109,[2]Sheet4!$F$2:$J$364,3,FALSE),\"\")","v":""},{"$f":"IFERROR(VLOOKUP(B109,[2]Sheet4!$F$2:$J$364,4,FALSE),\"\")","v":""},{"$f":"IFERROR(VLOOKUP(B109,[2]Sheet4!$F$2:$J$364,5,FALSE),\"\")","v":""}]
[null,null,{"$f":"IFERROR(VLOOKUP(B110,[2]Sheet4!$F$2:$J$364,2,FALSE),\"\")","v":""},{"$f":"IFERROR(VLOOKUP(B110,[2]Sheet4!$F$2:$J$364,3,FALSE),\"\")","v":""},{"$f":"IFERROR(VLOOKUP(B110,[2]Sheet4!$F$2:$J$364,4,FALSE),\"\")","v":""},{"$f":"IFERROR(VLOOKUP(B110,[2]Sheet4!$F$2:$J$364,5,FALSE),\"\")","v":""}]
[null,null,{"$f":"IFERROR(VLOOKUP(B111,[2]Sheet4!$F$2:$J$364,2,FALSE),\"\")","v":""},{"$f":"IFERROR(VLOOKUP(B111,[2]Sheet4!$F$2:$J$364,3,FALSE),\"\")","v":""},{"$f":"IFERROR(VLOOKUP(B111,[2]Sheet4!$F$2:$J$364,4,FALSE),\"\")","v":""},{"$f":"IFERROR(VLOOKUP(B111,[2]Sheet4!$F$2:$J$364,5,FALSE),\"\")","v":""}]
[null,null,{"$f":"IFERROR(VLOOKUP(B112,[2]Sheet4!$F$2:$J$364,2,FALSE),\"\")","v":""},{"$f":"IFERROR(VLOOKUP(B112,[2]Sheet4!$F$2:$J$364,3,FALSE),\"\")","v":""},{"$f":"IFERROR(VLOOKUP(B112,[2]Sheet4!$F$2:$J$364,4,FALSE),\"\")","v":""},{"$f":"IFERROR(VLOOKUP(B112,[2]Sheet4!$F$2:$J$364,5,FALSE),\"\")","v":""}]
[null,null,{"$f":"IFERROR(VLOOKUP(B113,[2]Sheet4!$F$2:$J$364,2,FALSE),\"\")","v":""},{"$f":"IFERROR(VLOOKUP(B113,[2]Sheet4!$F$2:$J$364,3,FALSE),\"\")","v":""},{"$f":"IFERROR(VLOOKUP(B113,[2]Sheet4!$F$2:$J$364,4,FALSE),\"\")","v":""},{"$f":"IFERROR(VLOOKUP(B113,[2]Sheet4!$F$2:$J$364,5,FALSE),\"\")","v":""}]
[null,null,{"$f":"IFERROR(VLOOKUP(B114,[2]Sheet4!$F$2:$J$364,2,FALSE),\"\")","v":""},{"$f":"IFERROR(VLOOKUP(B114,[2]Sheet4!$F$2:$J$364,3,FALSE),\"\")","v":""},{"$f":"IFERROR(VLOOKUP(B114,[2]Sheet4!$F$2:$J$364,4,FALSE),\"\")","v":""},{"$f":"IFERROR(VLOOKUP(B114,[2]Sheet4!$F$2:$J$364,5,FALSE),\"\")","v":""}]
[null,null,{"$f":"IFERROR(VLOOKUP(B115,[2]Sheet4!$F$2:$J$364,2,FALSE),\"\")","v":""},{"$f":"IFERROR(VLOOKUP(B115,[2]Sheet4!$F$2:$J$364,3,FALSE),\"\")","v":""},{"$f":"IFERROR(VLOOKUP(B115,[2]Sheet4!$F$2:$J$364,4,FALSE),\"\")","v":""},{"$f":"IFERROR(VLOOKUP(B115,[2]Sheet4!$F$2:$J$364,5,FALSE),\"\")","v":""}]
[null,null,{"$f":"IFERROR(VLOOKUP(B116,[2]Sheet4!$F$2:$J$364,2,FALSE),\"\")","v":""},{"$f":"IFERROR(VLOOKUP(B116,[2]Sheet4!$F$2:$J$364,3,FALSE),\"\")","v":""},{"$f":"IFERROR(VLOOKUP(B116,[2]Sheet4!$F$2:$J$364,4,FALSE),\"\")","v":""},{"$f":"IFERROR(VLOOKUP(B116,[2]Sheet4!$F$2:$J$364,5,FALSE),\"\")","v":""}]
[null,null,{"$f":"IFERROR(VLOOKUP(B117,[2]Sheet4!$F$2:$J$364,2,FALSE),\"\")","v":""},{"$f":"IFERROR(VLOOKUP(B117,[2]Sheet4!$F$2:$J$364,3,FALSE),\"\")","v":""},{"$f":"IFERROR(VLOOKUP(B117,[2]Sheet4!$F$2:$J$364,4,FALSE),\"\")","v":""},{"$f":"IFERROR(VLOOKUP(B117,[2]Sheet4!$F$2:$J$364,5,FALSE),\"\")","v":""}]
[null,null,{"$f":"IFERROR(VLOOKUP(B118,[2]Sheet4!$F$2:$J$364,2,FALSE),\"\")","v":""},{"$f":"IFERROR(VLOOKUP(B118,[2]Sheet4!$F$2:$J$364,3,FALSE),\"\")","v":""},{"$f":"IFERROR(VLOOKUP(B118,[2]Sheet4!$F$2:$J$364,4,FALSE),\"\")","v":""},{"$f":"IFERROR(VLOOKUP(B118,[2]Sheet4!$F$2:$J$364,5,FALSE),\"\")","v":""}]
[null,null,{"$f":"IFERROR(VLOOKUP(B119,[2]Sheet4!$F$2:$J$364,2,FALSE),\"\")","v":""},{"$f":"IFERROR(VLOOKUP(B119,[2]Sheet4!$F$2:$J$364,3,FALSE),\"\")","v":""},{"$f":"IFERROR(VLOOKUP(B119,[2]Sheet4!$F$2:$J$364,4,FALSE),\"\")","v":""},{"$f":"IFERROR(VLOOKUP(B119,[2]Sheet4!$F$2:$J$364,5,FALSE),\"\")","v":""}]
[null,null,{"$f":"IFERROR(VLOOKUP(B120,[2]Sheet4!$F$2:$J$364,2,FALSE),\"\")","v":""},{"$f":"IFERROR(VLOOKUP(B120,[2]Sheet4!$F$2:$J$364,3,FALSE),\"\")","v":""},{"$f":"IFERROR(VLOOKUP(B120,[2]Sheet4!$F$2:$J$364,4,FALSE),\"\")","v":""},{"$f":"IFERROR(VLOOKUP(B120,[2]Sheet4!$F$2:$J$364,5,FALSE),\"\")","v":""}]
[null,null,{"$f":"IFERROR(VLOOKUP(B121,[2]Sheet4!$F$2:$J$364,2,FALSE),\"\")","v":""},{"$f":"IFERROR(VLOOKUP(B121,[2]Sheet4!$F$2:$J$364,3,FALSE),\"\")","v":""},{"$f":"IFERROR(VLOOKUP(B121,[2]Sheet4!$F$2:$J$364,4,FALSE),\"\")","v":""},{"$f":"IFERROR(VLOOKUP(B121,[2]Sheet4!$F$2:$J$364,5,FALSE),\"\")","v":""}]
[null,null,{"$f":"IFERROR(VLOOKUP(B122,[2]Sheet4!$F$2:$J$364,2,FALSE),\"\")","v":""},{"$f":"IFERROR(VLOOKUP(B122,[2]Sheet4!$F$2:$J$364,3,FALSE),\"\")","v":""},{"$f":"IFERROR(VLOOKUP(B122,[2]Sheet4!$F$2:$J$364,4,FALSE),\"\")","v":""},{"$f":"IFERROR(VLOOKUP(B122,[2]Sheet4!$F$2:$J$364,5,FALSE),\"\")","v":""}]
[null,null,{"$f":"IFERROR(VLOOKUP(B123,[2]Sheet4!$F$2:$J$364,2,FALSE),\"\")","v":""},{"$f":"IFERROR(VLOOKUP(B123,[2]Sheet4!$F$2:$J$364,3,FALSE),\"\")","v":""},{"$f":"IFERROR(VLOOKUP(B123,[2]Sheet4!$F$2:$J$364,4,FALSE),\"\")","v":""},{"$f":"IFERROR(VLOOKUP(B123,[2]Sheet4!$F$2:$J$364,5,FALSE),\"\")","v":""}]
[null,null,{"$f":"IFERROR(VLOOKUP(B124,[2]Sheet4!$F$2:$J$364,2,FALSE),\"\")","v":""},{"$f":"IFERROR(VLOOKUP(B124,[2]Sheet4!$F$2:$J$364,3,FALSE),\"\")","v":""},{"$f":"IFERROR(VLOOKUP(B124,[2]Sheet4!$F$2:$J$364,4,FALSE),\"\")","v":""},{"$f":"IFERROR(VLOOKUP(B124,[2]Sheet4!$F$2:$J$364,5,FALSE),\"\")","v":""}]
[null,null,{"$f":"IFERROR(VLOOKUP(B125,[2]Sheet4!$F$2:$J$364,2,FALSE),\"\")","v":""},{"$f":"IFERROR(VLOOKUP(B125,[2]Sheet4!$F$2:$J$364,3,FALSE),\"\")","v":""},{"$f":"IFERROR(VLOOKUP(B125,[2]Sheet4!$F$2:$J$364,4,FALSE),\"\")","v":""},{"$f":"IFERROR(VLOOKUP(B125,[2]Sheet4!$F$2:$J$364,5,FALSE),\"\")","v":""}]
[null,null,{"$f":"IFERROR(VLOOKUP(B126,[2]Sheet4!$F$2:$J$364,2,FALSE),\"\")","v":""},{"$f":"IFERROR(VLOOKUP(B126,[2]Sheet4!$F$2:$J$364,3,FALSE),\"\")","v":""},{"$f":"IFERROR(VLOOKUP(B126,[2]Sheet4!$F$2:$J$364,4,FALSE),\"\")","v":""},{"$f":"IFERROR(VLOOKUP(B126,[2]Sheet4!$F$2:$J$364,5,FALSE),\"\")","v":""}]
[null,null,{"$f":"IFERROR(VLOOKUP(B127,[2]Sheet4!$F$2:$J$364,2,FALSE),\"\")","v":""},{"$f":"IFERROR(VLOOKUP(B127,[2]Sheet4!$F$2:$J$364,3,FALSE),\"\")","v":""},{"$f":"IFERROR(VLOOKUP(B127,[2]Sheet4!$F$2:$J$364,4,FALSE),\"\")","v":""},{"$f":"IFERROR(VLOOKUP(B127,[2]Sheet4!$F$2:$J$364,5,FALSE),\"\")","v":""}]
[null,null,{"$f":"IFERROR(VLOOKUP(B128,[2]Sheet4!$F$2:$J$364,2,FALSE),\"\")","v":""},{"$f":"IFERROR(VLOOKUP(B128,[2]Sheet4!$F$2:$J$364,3,FALSE),\"\")","v":""},{"$f":"IFERROR(VLOOKUP(B128,[2]Sheet4!$F$2:$J$364,4,FALSE),\"\")","v":""},{"$f":"IFERROR(VLOOKUP(B128,[2]Sheet4!$F$2:$J$364,5,FALSE),\"\")","v":""}]
[null,null,{"$f":"IFERROR(VLOOKUP(B129,[2]Sheet4!$F$2:$J$364,2,FALSE),\"\")","v":""},{"$f":"IFERROR(VLOOKUP(B129,[2]Sheet4!$F$2:$J$364,3,FALSE),\"\")","v":""},{"$f":"IFERROR(VLOOKUP(B129,[2]Sheet4!$F$2:$J$364,4,FALSE),\"\")","v":""},{"$f":"IFERROR(VLOOKUP(B129,[2]Sheet4!$F$2:$J$364,5,FALSE),\"\")","v":""}]
[null,null,{"$f":"IFERROR(VLOOKUP(B130,[2]Sheet4!$F$2:$J$364,2,FALSE),\"\")","v":""},{"$f":"IFERROR(VLOOKUP(B130,[2]Sheet4!$F$2:$J$364,3,FALSE),\"\")","v":""},{"$f":"IFERROR(VLOOKUP(B130,[2]Sheet4!$F$2:$J$364,4,FALSE),\"\")","v":""},{"$f":"IFERROR(VLOOKUP(B130,[2]Sheet4!$F$2:$J$364,5,FALSE),\"\")","v":""}]
[null,null,{"$f":"IFERROR(VLOOKUP(B131,[2]Sheet4!$F$2:$J$364,2,FALSE),\"\")","v":""},{"$f":"IFERROR(VLOOKUP(B131,[2]Sheet4!$F$2:$J$364,3,FALSE),\"\")","v":""},{"$f":"IFERROR(VLOOKUP(B131,[2]Sheet4!$F$2:$J$364,4,FALSE),\"\")","v":""},{"$f":"IFERROR(VLOOKUP(B131,[2]Sheet4!$F$2:$J$364,5,FALSE),\"\")","v":""}]
[null,null,{"$f":"IFERROR(VLOOKUP(B132,[2]Sheet4!$F$2:$J$364,2,FALSE),\"\")","v":""},{"$f":"IFERROR(VLOOKUP(B132,[2]Sheet4!$F$2:$J$364,3,FALSE),\"\")","v":""},{"$f":"IFERROR(VLOOKUP(B132,[2]Sheet4!$F$2:$J$364,4,FALSE),\"\")","v":""},{"$f":"IFERROR(VLOOKUP(B132,[2]Sheet4!$F$2:$J$364,5,FALSE),\"\")","v":""}]
[null,null,{"$f":"IFERROR(VLOOKUP(B133,[2]Sheet4!$F$2:$J$364,2,FALSE),\"\")","v":""},{"$f":"IFERROR(VLOOKUP(B133,[2]Sheet4!$F$2:$J$364,3,FALSE),\"\")","v":""},{"$f":"IFERROR(VLOOKUP(B133,[2]Sheet4!$F$2:$J$364,4,FALSE),\"\")","v":""},{"$f":"IFERROR(VLOOKUP(B133,[2]Sheet4!$F$2:$J$364,5,FALSE),\"\")","v":""}]
[null,null,{"$f":"IFERROR(VLOOKUP(B134,[2]Sheet4!$F$2:$J$364,2,FALSE),\"\")","v":""},{"$f":"IFERROR(VLOOKUP(B134,[2]Sheet4!$F$2:$J$364,3,FALSE),\"\")","v":""},{"$f":"IFERROR(VLOOKUP(B134,[2]Sheet4!$F$2:$J$364,4,FALSE),\"\")","v":""},{"$f":"IFERROR(VLOOKUP(B134,[2]Sheet4!$F$2:$J$364,5,FALSE),\"\")","v":""}]
[null,null,{"$f":"IFERROR(VLOOKUP(B135,[2]Sheet4!$F$2:$J$364,2,FALSE),\"\")","v":""},{"$f":"IFERROR(VLOOKUP(B135,[2]Sheet4!$F$2:$J$364,3,FALSE),\"\")","v":""},{"$f":"IFERROR(VLOOKUP(B135,[2]Sheet4!$F$2:$J$364,4,FALSE),\"\")","v":""},{"$f":"IFERROR(VLOOKUP(B135,[2]Sheet4!$F$2:$J$364,5,FALSE),\"\")","v":""}]
[null,null,{"$f":"IFERROR(VLOOKUP(B136,[2]Sheet4!$F$2:$J$364,2,FALSE),\"\")","v":""},{"$f":"IFERROR(VLOOKUP(B136,[2]Sheet4!$F$2:$J$364,3,FALSE),\"\")","v":""},{"$f":"IFERROR(VLOOKUP(B136,[2]Sheet4!$F$2:$J$364,4,FALSE),\"\")","v":""},{"$f":"IFERROR(VLOOKUP(B136,[2]Sheet4!$F$2:$J$364,5,FALSE),\"\")","v":""}]
[null,null,{"$f":"IFERROR(VLOOKUP(B137,[2]Sheet4!$F$2:$J$364,2,FALSE),\"\")","v":""},{"$f":"IFERROR(VLOOKUP(B137,[2]Sheet4!$F$2:$J$364,3,FALSE),\"\")","v":""},{"$f":"IFERROR(VLOOKUP(B137,[2]Sheet4!$F$2:$J$364,4,FALSE),\"\")","v":""},{"$f":"IFERROR(VLOOKUP(B137,[2]Sheet4!$F$2:$J$364,5,FALSE),\"\")","v":""}]
[null,null,{"$f":"IFERROR(VLOOKUP(B138,[2]Sheet4!$F$2:$J$364,2,FALSE),\"\")","v":""},{"$f":"IFERROR(VLOOKUP(B138,[2]Sheet4!$F$2:$J$364,3,FALSE),\"\")","v":""},{"$f":"IFERROR(VLOOKUP(B138,[2]Sheet4!$F$2:$J$364,4,FALSE),\"\")","v":""},{"$f":"IFERROR(VLOOKUP(B138,[2]Sheet4!$F$2:$J$364,5,FALSE),\"\")","v":""}]
[null,null,{"$f":"IFERROR(VLOOKUP(B139,[2]Sheet4!$F$2:$J$364,2,FALSE),\"\")","v":""},{"$f":"IFERROR(VLOOKUP(B139,[2]Sheet4!$F$2:$J$364,3,FALSE),\"\")","v":""},{"$f":"IFERROR(VLOOKUP(B139,[2]Sheet4!$F$2:$J$364,4,FALSE),\"\")","v":""},{"$f":"IFERROR(VLOOKUP(B139,[2]Sheet4!$F$2:$J$364,5,FALSE),\"\")","v":""}]
[null,null,{"$f":"IFERROR(VLOOKUP(B140,[2]Sheet4!$F$2:$J$364,2,FALSE),\"\")","v":""},{"$f":"IFERROR(VLOOKUP(B140,[2]Sheet4!$F$2:$J$364,3,FALSE),\"\")","v":""},{"$f":"IFERROR(VLOOKUP(B140,[2]Sheet4!$F$2:$J$364,4,FALSE),\"\")","v":""},{"$f":"IFERROR(VLOOKUP(B140,[2]Sheet4!$F$2:$J$364,5,FALSE),\"\")","v":""}]
[null,null,{"$f":"IFERROR(VLOOKUP(B141,[2]Sheet4!$F$2:$J$364,2,FALSE),\"\")","v":""},{"$f":"IFERROR(VLOOKUP(B141,[2]Sheet4!$F$2:$J$364,3,FALSE),\"\")","v":""},{"$f":"IFERROR(VLOOKUP(B141,[2]Sheet4!$F$2:$J$364,4,FALSE),\"\")","v":""},{"$f":"IFERROR(VLOOKUP(B141,[2]Sheet4!$F$2:$J$364,5,FALSE),\"\")","v":""}]
[null,null,{"$f":"IFERROR(VLOOKUP(B142,[2]Sheet4!$F$2:$J$364,2,FALSE),\"\")","v":""},{"$f":"IFERROR(VLOOKUP(B142,[2]Sheet4!$F$2:$J$364,3,FALSE),\"\")","v":""},{"$f":"IFERROR(VLOOKUP(B142,[2]Sheet4!$F$2:$J$364,4,FALSE),\"\")","v":""},{"$f":"IFERROR(VLOOKUP(B142,[2]Sheet4!$F$2:$J$364,5,FALSE),\"\")","v":""}]
[null,null,{"$f":"IFERROR(VLOOKUP(B143,[2]Sheet4!$F$2:$J$364,2,FALSE),\"\")","v":""},{"$f":"IFERROR(VLOOKUP(B143,[2]Sheet4!$F$2:$J$364,3,FALSE),\"\")","v":""},{"$f":"IFERROR(VLOOKUP(B143,[2]Sheet4!$F$2:$J$364,4,FALSE),\"\")","v":""},{"$f":"IFERROR(VLOOKUP(B143,[2]Sheet4!$F$2:$J$364,5,FALSE),\"\")","v":""}]
[null,null,{"$f":"IFERROR(VLOOKUP(B144,[2]Sheet4!$F$2:$J$364,2,FALSE),\"\")","v":""},{"$f":"IFERROR(VLOOKUP(B144,[2]Sheet4!$F$2:$J$364,3,FALSE),\"\")","v":""},{"$f":"IFERROR(VLOOKUP(B144,[2]Sheet4!$F$2:$J$364,4,FALSE),\"\")","v":""},{"$f":"IFERROR(VLOOKUP(B144,[2]Sheet4!$F$2:$J$364,5,FALSE),\"\")","v":""}]
[null,null,{"$f":"IFERROR(VLOOKUP(B145,[2]Sheet4!$F$2:$J$364,2,FALSE),\"\")","v":""},{"$f":"IFERROR(VLOOKUP(B145,[2]Sheet4!$F$2:$J$364,3,FALSE),\"\")","v":""},{"$f":"IFERROR(VLOOKUP(B145,[2]Sheet4!$F$2:$J$364,4,FALSE),\"\")","v":""},{"$f":"IFERROR(VLOOKUP(B145,[2]Sheet4!$F$2:$J$364,5,FALSE),\"\")","v":""}]
[null,null,{"$f":"IFERROR(VLOOKUP(B146,[2]Sheet4!$F$2:$J$364,2,FALSE),\"\")","v":""},{"$f":"IFERROR(VLOOKUP(B146,[2]Sheet4!$F$2:$J$364,3,FALSE),\"\")","v":""},{"$f":"IFERROR(VLOOKUP(B146,[2]Sheet4!$F$2:$J$364,4,FALSE),\"\")","v":""},{"$f":"IFERROR(VLOOKUP(B146,[2]Sheet4!$F$2:$J$364,5,FALSE),\"\")","v":""}]
[null,null,{"$f":"IFERROR(VLOOKUP(B147,[2]Sheet4!$F$2:$J$364,2,FALSE),\"\")","v":""},{"$f":"IFERROR(VLOOKUP(B147,[2]Sheet4!$F$2:$J$364,3,FALSE),\"\")","v":""},{"$f":"IFERROR(VLOOKUP(B147,[2]Sheet4!$F$2:$J$364,4,FALSE),\"\")","v":""},{"$f":"IFERROR(VLOOKUP(B147,[2]Sheet4!$F$2:$J$364,5,FALSE),\"\")","v":""}]
[null,null,{"$f":"IFERROR(VLOOKUP(B148,[2]Sheet4!$F$2:$J$364,2,FALSE),\"\")","v":""},{"$f":"IFERROR(VLOOKUP(B148,[2]Sheet4!$F$2:$J$364,3,FALSE),\"\")","v":""},{"$f":"IFERROR(VLOOKUP(B148,[2]Sheet4!$F$2:$J$364,4,FALSE),\"\")","v":""},{"$f":"IFERROR(VLOOKUP(B148,[2]Sheet4!$F$2:$J$364,5,FALSE),\"\")","v":""}]
[null,null,{"$f":"IFERROR(VLOOKUP(B149,[2]Sheet4!$F$2:$J$364,2,FALSE),\"\")","v":""},{"$f":"IFERROR(VLOOKUP(B149,[2]Sheet4!$F$2:$J$364,3,FALSE),\"\")","v":""},{"$f":"IFERROR(VLOOKUP(B149,[2]Sheet4!$F$2:$J$364,4,FALSE),\"\")","v":""},{"$f":"IFERROR(VLOOKUP(B149,[2]Sheet4!$F$2:$J$364,5,FALSE),\"\")","v":""}]
[null,null,{"$f":"IFERROR(VLOOKUP(B150,[2]Sheet4!$F$2:$J$364,2,FALSE),\"\")","v":""},{"$f":"IFERROR(VLOOKUP(B150,[2]Sheet4!$F$2:$J$364,3,FALSE),\"\")","v":""},{"$f":"IFERROR(VLOOKUP(B150,[2]Sheet4!$F$2:$J$364,4,FALSE),\"\")","v":""},{"$f":"IFERROR(VLOOKUP(B150,[2]Sheet4!$F$2:$J$364,5,FALSE),\"\")","v":""}]
[null,null,{"$f":"IFERROR(VLOOKUP(B151,[2]Sheet4!$F$2:$J$364,2,FALSE),\"\")","v":""},{"$f":"IFERROR(VLOOKUP(B151,[2]Sheet4!$F$2:$J$364,3,FALSE),\"\")","v":""},{"$f":"IFERROR(VLOOKUP(B151,[2]Sheet4!$F$2:$J$364,4,FALSE),\"\")","v":""},{"$f":"IFERROR(VLOOKUP(B151,[2]Sheet4!$F$2:$J$364,5,FALSE),\"\")","v":""}]
[null,null,{"$f":"IFERROR(VLOOKUP(B152,[2]Sheet4!$F$2:$J$364,2,FALSE),\"\")","v":""},{"$f":"IFERROR(VLOOKUP(B152,[2]Sheet4!$F$2:$J$364,3,FALSE),\"\")","v":""},{"$f":"IFERROR(VLOOKUP(B152,[2]Sheet4!$F$2:$J$364,4,FALSE),\"\")","v":""},{"$f":"IFERROR(VLOOKUP(B152,[2]Sheet4!$F$2:$J$364,5,FALSE),\"\")","v":""}]
[null,null,{"$f":"IFERROR(VLOOKUP(B153,[2]Sheet4!$F$2:$J$364,2,FALSE),\"\")","v":""},{"$f":"IFERROR(VLOOKUP(B153,[2]Sheet4!$F$2:$J$364,3,FALSE),\"\")","v":""},{"$f":"IFERROR(VLOOKUP(B153,[2]Sheet4!$F$2:$J$364,4,FALSE),\"\")","v":""},{"$f":"IFERROR(VLOOKUP(B153,[2]Sheet4!$F$2:$J$364,5,FALSE),\"\")","v":""}]
[null,null,{"$f":"IFERROR(VLOOKUP(B154,[2]Sheet4!$F$2:$J$364,2,FALSE),\"\")","v":""},{"$f":"IFERROR(VLOOKUP(B154,[2]Sheet4!$F$2:$J$364,3,FALSE),\"\")","v":""},{"$f":"IFERROR(VLOOKUP(B154,[2]Sheet4!$F$2:$J$364,4,FALSE),\"\")","v":""},{"$f":"IFERROR(VLOOKUP(B154,[2]Sheet4!$F$2:$J$364,5,FALSE),\"\")","v":""}]
[null,null,{"$f":"IFERROR(VLOOKUP(B155,[2]Sheet4!$F$2:$J$364,2,FALSE),\"\")","v":""},{"$f":"IFERROR(VLOOKUP(B155,[2]Sheet4!$F$2:$J$364,3,FALSE),\"\")","v":""},{"$f":"IFERROR(VLOOKUP(B155,[2]Sheet4!$F$2:$J$364,4,FALSE),\"\")","v":""},{"$f":"IFERROR(VLOOKUP(B155,[2]Sheet4!$F$2:$J$364,5,FALSE),\"\")","v":""}]
[null,null,{"$f":"IFERROR(VLOOKUP(B156,[2]Sheet4!$F$2:$J$364,2,FALSE),\"\")","v":""},{"$f":"IFERROR(VLOOKUP(B156,[2]Sheet4!$F$2:$J$364,3,FALSE),\"\")","v":""},{"$f":"IFERROR(VLOOKUP(B156,[2]Sheet4!$F$2:$J$364,4,FALSE),\"\")","v":""},{"$f":"IFERROR(VLOOKUP(B156,[2]Sheet4!$F$2:$J$364,5,FALSE),\"\")","v":""}]
[null,null,{"$f":"IFERROR(VLOOKUP(B157,[2]Sheet4!$F$2:$J$364,2,FALSE),\"\")","v":""},{"$f":"IFERROR(VLOOKUP(B157,[2]Sheet4!$F$2:$J$364,3,FALSE),\"\")","v":""},{"$f":"IFERROR(VLOOKUP(B157,[2]Sheet4!$F$2:$J$364,4,FALSE),\"\")","v":""},{"$f":"IFERROR(VLOOKUP(B157,[2]Sheet4!$F$2:$J$364,5,FALSE),\"\")","v":""}]
[null,null,{"$f":"IFERROR(VLOOKUP(B158,[2]Sheet4!$F$2:$J$364,2,FALSE),\"\")","v":""},{"$f":"IFERROR(VLOOKUP(B158,[2]Sheet4!$F$2:$J$364,3,FALSE),\"\")","v":""},{"$f":"IFERROR(VLOOKUP(B158,[2]Sheet4!$F$2:$J$364,4,FALSE),\"\")","v":""},{"$f":"IFERROR(VLOOKUP(B158,[2]Sheet4!$F$2:$J$364,5,FALSE),\"\")","v":""}]
[null,null,{"$f":"IFERROR(VLOOKUP(B159,[2]Sheet4!$F$2:$J$364,2,FALSE),\"\")","v":""},{"$f":"IFERROR(VLOOKUP(B159,[2]Sheet4!$F$2:$J$364,3,FALSE),\"\")","v":""},{"$f":"IFERROR(VLOOKUP(B159,[2]Sheet4!$F$2:$J$364,4,FALSE),\"\")","v":""},{"$f":"IFERROR(VLOOKUP(B159,[2]Sheet4!$F$2:$J$364,5,FALSE),\"\")","v":""}]
[null,null,{"$f":"IFERROR(VLOOKUP(B160,[2]Sheet4!$F$2:$J$364,2,FALSE),\"\")","v":""},{"$f":"IFERROR(VLOOKUP(B160,[2]Sheet4!$F$2:$J$364,3,FALSE),\"\")","v":""},{"$f":"IFERROR(VLOOKUP(B160,[2]Sheet4!$F$2:$J$364,4,FALSE),\"\")","v":""},{"$f":"IFERROR(VLOOKUP(B160,[2]Sheet4!$F$2:$J$364,5,FALSE),\"\")","v":""}]
[null,null,{"$f":"IFERROR(VLOOKUP(B161,[2]Sheet4!$F$2:$J$364,2,FALSE),\"\")","v":""},{"$f":"IFERROR(VLOOKUP(B161,[2]Sheet4!$F$2:$J$364,3,FALSE),\"\")","v":""},{"$f":"IFERROR(VLOOKUP(B161,[2]Sheet4!$F$2:$J$364,4,FALSE),\"\")","v":""},{"$f":"IFERROR(VLOOKUP(B161,[2]Sheet4!$F$2:$J$364,5,FALSE),\"\")","v":""}]
[null,null,{"$f":"IFERROR(VLOOKUP(B162,[2]Sheet4!$F$2:$J$364,2,FALSE),\"\")","v":""},{"$f":"IFERROR(VLOOKUP(B162,[2]Sheet4!$F$2:$J$364,3,FALSE),\"\")","v":""},{"$f":"IFERROR(VLOOKUP(B162,[2]Sheet4!$F$2:$J$364,4,FALSE),\"\")","v":""},{"$f":"IFERROR(VLOOKUP(B162,[2]Sheet4!$F$2:$J$364,5,FALSE),\"\")","v":""}]
[null,null,{"$f":"IFERROR(VLOOKUP(B163,[2]Sheet4!$F$2:$J$364,2,FALSE),\"\")","v":""},{"$f":"IFERROR(VLOOKUP(B163,[2]Sheet4!$F$2:$J$364,3,FALSE),\"\")","v":""},{"$f":"IFERROR(VLOOKUP(B163,[2]Sheet4!$F$2:$J$364,4,FALSE),\"\")","v":""},{"$f":"IFERROR(VLOOKUP(B163,[2]Sheet4!$F$2:$J$364,5,FALSE),\"\")","v":""}]
[null,null,{"$f":"IFERROR(VLOOKUP(B164,[2]Sheet4!$F$2:$J$364,2,FALSE),\"\")","v":""},{"$f":"IFERROR(VLOOKUP(B164,[2]Sheet4!$F$2:$J$364,3,FALSE),\"\")","v":""},{"$f":"IFERROR(VLOOKUP(B164,[2]Sheet4!$F$2:$J$364,4,FALSE),\"\")","v":""},{"$f":"IFERROR(VLOOKUP(B164,[2]Sheet4!$F$2:$J$364,5,FALSE),\"\")","v":""}]
[null,null,{"$f":"IFERROR(VLOOKUP(B165,[2]Sheet4!$F$2:$J$364,2,FALSE),\"\")","v":""},{"$f":"IFERROR(VLOOKUP(B165,[2]Sheet4!$F$2:$J$364,3,FALSE),\"\")","v":""},{"$f":"IFERROR(VLOOKUP(B165,[2]Sheet4!$F$2:$J$364,4,FALSE),\"\")","v":""},{"$f":"IFERROR(VLOOKUP(B165,[2]Sheet4!$F$2:$J$364,5,FALSE),\"\")","v":""}]
[null,null,{"$f":"IFERROR(VLOOKUP(B166,[2]Sheet4!$F$2:$J$364,2,FALSE),\"\")","v":""},{"$f":"IFERROR(VLOOKUP(B166,[2]Sheet4!$F$2:$J$364,3,FALSE),\"\")","v":""},{"$f":"IFERROR(VLOOKUP(B166,[2]Sheet4!$F$2:$J$364,4,FALSE),\"\")","v":""},{"$f":"IFERROR(VLOOKUP(B166,[2]Sheet4!$F$2:$J$364,5,FALSE),\"\")","v":""}]
[null,null,{"$f":"IFERROR(VLOOKUP(B167,[2]Sheet4!$F$2:$J$364,2,FALSE),\"\")","v":""},{"$f":"IFERROR(VLOOKUP(B167,[2]Sheet4!$F$2:$J$364,3,FALSE),\"\")","v":""},{"$f":"IFERROR(VLOOKUP(B167,[2]Sheet4!$F$2:$J$364,4,FALSE),\"\")","v":""},{"$f":"IFERROR(VLOOKUP(B167,[2]Sheet4!$F$2:$J$364,5,FALSE),\"\")","v":""}]
[null,null,{"$f":"IFERROR(VLOOKUP(B168,[2]Sheet4!$F$2:$J$364,2,FALSE),\"\")","v":""},{"$f":"IFERROR(VLOOKUP(B168,[2]Sheet4!$F$2:$J$364,3,FALSE),\"\")","v":""},{"$f":"IFERROR(VLOOKUP(B168,[2]Sheet4!$F$2:$J$364,4,FALSE),\"\")","v":""},{"$f":"IFERROR(VLOOKUP(B168,[2]Sheet4!$F$2:$J$364,5,FALSE),\"\")","v":""}]
[null,null,{"$f":"IFERROR(VLOOKUP(B169,[2]Sheet4!$F$2:$J$364,2,FALSE),\"\")","v":""},{"$f":"IFERROR(VLOOKUP(B169,[2]Sheet4!$F$2:$J$364,3,FALSE),\"\")","v":""},{"$f":"IFERROR(VLOOKUP(B169,[2]Sheet4!$F$2:$J$364,4,FALSE),\"\")","v":""},{"$f":"IFERROR(VLOOKUP(B169,[2]Sheet4!$F$2:$J$364,5,FALSE),\"\")","v":""}]
[null,null,{"$f":"IFERROR(VLOOKUP(B170,[2]Sheet4!$F$2:$J$364,2,FALSE),\"\")","v":""},{"$f":"IFERROR(VLOOKUP(B170,[2]Sheet4!$F$2:$J$364,3,FALSE),\"\")","v":""},{"$f":"IFERROR(VLOOKUP(B170,[2]Sheet4!$F$2:$J$364,4,FALSE),\"\")","v":""},{"$f":"IFERROR(VLOOKUP(B170,[2]Sheet4!$F$2:$J$364,5,FALSE),\"\")","v":""}]
[null,null,{"$f":"IFERROR(VLOOKUP(B171,[2]Sheet4!$F$2:$J$364,2,FALSE),\"\")","v":""},{"$f":"IFERROR(VLOOKUP(B171,[2]Sheet4!$F$2:$J$364,3,FALSE),\"\")","v":""},{"$f":"IFERROR(VLOOKUP(B171,[2]Sheet4!$F$2:$J$364,4,FALSE),\"\")","v":""},{"$f":"IFERROR(VLOOKUP(B171,[2]Sheet4!$F$2:$J$364,5,FALSE),\"\")","v":""}]
[null,null,{"$f":"IFERROR(VLOOKUP(B172,[2]Sheet4!$F$2:$J$364,2,FALSE),\"\")","v":""},{"$f":"IFERROR(VLOOKUP(B172,[2]Sheet4!$F$2:$J$364,3,FALSE),\"\")","v":""},{"$f":"IFERROR(VLOOKUP(B172,[2]Sheet4!$F$2:$J$364,4,FALSE),\"\")","v":""},{"$f":"IFERROR(VLOOKUP(B172,[2]Sheet4!$F$2:$J$364,5,FALSE),\"\")","v":""}]
[null,null,{"$f":"IFERROR(VLOOKUP(B173,[2]Sheet4!$F$2:$J$364,2,FALSE),\"\")","v":""},{"$f":"IFERROR(VLOOKUP(B173,[2]Sheet4!$F$2:$J$364,3,FALSE),\"\")","v":""},{"$f":"IFERROR(VLOOKUP(B173,[2]Sheet4!$F$2:$J$364,4,FALSE),\"\")","v":""},{"$f":"IFERROR(VLOOKUP(B173,[2]Sheet4!$F$2:$J$364,5,FALSE),\"\")","v":""}]
[null,null,{"$f":"IFERROR(VLOOKUP(B174,[2]Sheet4!$F$2:$J$364,2,FALSE),\"\")","v":""},{"$f":"IFERROR(VLOOKUP(B174,[2]Sheet4!$F$2:$J$364,3,FALSE),\"\")","v":""},{"$f":"IFERROR(VLOOKUP(B174,[2]Sheet4!$F$2:$J$364,4,FALSE),\"\")","v":""},{"$f":"IFERROR(VLOOKUP(B174,[2]Sheet4!$F$2:$J$364,5,FALSE),\"\")","v":""}]
[null,null,{"$f":"IFERROR(VLOOKUP(B175,[2]Sheet4!$F$2:$J$364,2,FALSE),\"\")","v":""},{"$f":"IFERROR(VLOOKUP(B175,[2]Sheet4!$F$2:$J$364,3,FALSE),\"\")","v":""},{"$f":"IFERROR(VLOOKUP(B175,[2]Sheet4!$F$2:$J$364,4,FALSE),\"\")","v":""},{"$f":"IFERROR(VLOOKUP(B175,[2]Sheet4!$F$2:$J$364,5,FALSE),\"\")","v":""}]
[null,null,{"$f":"IFERROR(VLOOKUP(B176,[2]Sheet4!$F$2:$J$364,2,FALSE),\"\")","v":""},{"$f":"IFERROR(VLOOKUP(B176,[2]Sheet4!$F$2:$J$364,3,FALSE),\"\")","v":""},{"$f":"IFERROR(VLOOKUP(B176,[2]Sheet4!$F$2:$J$364,4,FALSE),\"\")","v":""},{"$f":"IFERROR(VLOOKUP(B176,[2]Sheet4!$F$2:$J$364,5,FALSE),\"\")","v":""}]
[null,null,{"$f":"IFERROR(VLOOKUP(B177,[2]Sheet4!$F$2:$J$364,2,FALSE),\"\")","v":""},{"$f":"IFERROR(VLOOKUP(B177,[2]Sheet4!$F$2:$J$364,3,FALSE),\"\")","v":""},{"$f":"IFERROR(VLOOKUP(B177,[2]Sheet4!$F$2:$J$364,4,FALSE),\"\")","v":""},{"$f":"IFERROR(VLOOKUP(B177,[2]Sheet4!$F$2:$J$364,5,FALSE),\"\")","v":""}]
[null,null,{"$f":"IFERROR(VLOOKUP(B178,[2]Sheet4!$F$2:$J$364,2,FALSE),\"\")","v":""},{"$f":"IFERROR(VLOOKUP(B178,[2]Sheet4!$F$2:$J$364,3,FALSE),\"\")","v":""},{"$f":"IFERROR(VLOOKUP(B178,[2]Sheet4!$F$2:$J$364,4,FALSE),\"\")","v":""},{"$f":"IFERROR(VLOOKUP(B178,[2]Sheet4!$F$2:$J$364,5,FALSE),\"\")","v":""}]
[null,null,{"$f":"IFERROR(VLOOKUP(B179,[2]Sheet4!$F$2:$J$364,2,FALSE),\"\")","v":""},{"$f":"IFERROR(VLOOKUP(B179,[2]Sheet4!$F$2:$J$364,3,FALSE),\"\")","v":""},{"$f":"IFERROR(VLOOKUP(B179,[2]Sheet4!$F$2:$J$364,4,FALSE),\"\")","v":""},{"$f":"IFERROR(VLOOKUP(B179,[2]Sheet4!$F$2:$J$364,5,FALSE),\"\")","v":""}]
[null,null,{"$f":"IFERROR(VLOOKUP(B180,[2]Sheet4!$F$2:$J$364,2,FALSE),\"\")","v":""},{"$f":"IFERROR(VLOOKUP(B180,[2]Sheet4!$F$2:$J$364,3,FALSE),\"\")","v":""},{"$f":"IFERROR(VLOOKUP(B180,[2]Sheet4!$F$2:$J$364,4,FALSE),\"\")","v":""},{"$f":"IFERROR(VLOOKUP(B180,[2]Sheet4!$F$2:$J$364,5,FALSE),\"\")","v":""}]
[null,null,{"$f":"IFERROR(VLOOKUP(B181,[2]Sheet4!$F$2:$J$364,2,FALSE),\"\")","v":""},{"$f":"IFERROR(VLOOKUP(B181,[2]Sheet4!$F$2:$J$364,3,FALSE),\"\")","v":""},{"$f":"IFERROR(VLOOKUP(B181,[2]Sheet4!$F$2:$J$364,4,FALSE),\"\")","v":""},{"$f":"IFERROR(VLOOKUP(B181,[2]Sheet4!$F$2:$J$364,5,FALSE),\"\")","v":""}]
[null,null,{"$f":"IFERROR(VLOOKUP(B182,[2]Sheet4!$F$2:$J$364,2,FALSE),\"\")","v":""},{"$f":"IFERROR(VLOOKUP(B182,[2]Sheet4!$F$2:$J$364,3,FALSE),\"\")","v":""},{"$f":"IFERROR(VLOOKUP(B182,[2]Sheet4!$F$2:$J$364,4,FALSE),\"\")","v":""},{"$f":"IFERROR(VLOOKUP(B182,[2]Sheet4!$F$2:$J$364,5,FALSE),\"\")","v":""}]
[null,null,{"$f":"IFERROR(VLOOKUP(B183,[2]Sheet4!$F$2:$J$364,2,FALSE),\"\")","v":""},{"$f":"IFERROR(VLOOKUP(B183,[2]Sheet4!$F$2:$J$364,3,FALSE),\"\")","v":""},{"$f":"IFERROR(VLOOKUP(B183,[2]Sheet4!$F$2:$J$364,4,FALSE),\"\")","v":""},{"$f":"IFERROR(VLOOKUP(B183,[2]Sheet4!$F$2:$J$364,5,FALSE),\"\")","v":""}]
[null,null,{"$f":"IFERROR(VLOOKUP(B184,[2]Sheet4!$F$2:$J$364,2,FALSE),\"\")","v":""},{"$f":"IFERROR(VLOOKUP(B184,[2]Sheet4!$F$2:$J$364,3,FALSE),\"\")","v":""},{"$f":"IFERROR(VLOOKUP(B184,[2]Sheet4!$F$2:$J$364,4,FALSE),\"\")","v":""},{"$f":"IFERROR(VLOOKUP(B184,[2]Sheet4!$F$2:$J$364,5,FALSE),\"\")","v":""}]
[null,null,{"$f":"IFERROR(VLOOKUP(B185,[2]Sheet4!$F$2:$J$364,2,FALSE),\"\")","v":""},{"$f":"IFERROR(VLOOKUP(B185,[2]Sheet4!$F$2:$J$364,3,FALSE),\"\")","v":""},{"$f":"IFERROR(VLOOKUP(B185,[2]Sheet4!$F$2:$J$364,4,FALSE),\"\")","v":""},{"$f":"IFERROR(VLOOKUP(B185,[2]Sheet4!$F$2:$J$364,5,FALSE),\"\")","v":""}]
[null,null,{"$f":"IFERROR(VLOOKUP(B186,[2]Sheet4!$F$2:$J$364,2,FALSE),\"\")","v":""},{"$f":"IFERROR(VLOOKUP(B186,[2]Sheet4!$F$2:$J$364,3,FALSE),\"\")","v":""},{"$f":"IFERROR(VLOOKUP(B186,[2]Sheet4!$F$2:$J$364,4,FALSE),\"\")","v":""},{"$f":"IFERROR(VLOOKUP(B186,[2]Sheet4!$F$2:$J$364,5,FALSE),\"\")","v":""}]
[null,null,{"$f":"IFERROR(VLOOKUP(B187,[2]Sheet4!$F$2:$J$364,2,FALSE),\"\")","v":""},{"$f":"IFERROR(VLOOKUP(B187,[2]Sheet4!$F$2:$J$364,3,FALSE),\"\")","v":""},{"$f":"IFERROR(VLOOKUP(B187,[2]Sheet4!$F$2:$J$364,4,FALSE),\"\")","v":""},{"$f":"IFERROR(VLOOKUP(B187,[2]Sheet4!$F$2:$J$364,5,FALSE),\"\")","v":""}]
[null,null,{"$f":"IFERROR(VLOOKUP(B188,[2]Sheet4!$F$2:$J$364,2,FALSE),\"\")","v":""},{"$f":"IFERROR(VLOOKUP(B188,[2]Sheet4!$F$2:$J$364,3,FALSE),\"\")","v":""},{"$f":"IFERROR(VLOOKUP(B188,[2]Sheet4!$F$2:$J$364,4,FALSE),\"\")","v":""},{"$f":"IFERROR(VLOOKUP(B188,[2]Sheet4!$F$2:$J$364,5,FALSE),\"\")","v":""}]
[null,null,{"$f":"IFERROR(VLOOKUP(B189,[2]Sheet4!$F$2:$J$364,2,FALSE),\"\")","v":""},{"$f":"IFERROR(VLOOKUP(B189,[2]Sheet4!$F$2:$J$364,3,FALSE),\"\")","v":""},{"$f":"IFERROR(VLOOKUP(B189,[2]Sheet4!$F$2:$J$364,4,FALSE),\"\")","v":""},{"$f":"IFERROR(VLOOKUP(B189,[2]Sheet4!$F$2:$J$364,5,FALSE),\"\")","v":""}]
[null,null,{"$f":"IFERROR(VLOOKUP(B190,[2]Sheet4!$F$2:$J$364,2,FALSE),\"\")","v":""},{"$f":"IFERROR(VLOOKUP(B190,[2]Sheet4!$F$2:$J$364,3,FALSE),\"\")","v":""},{"$f":"IFERROR(VLOOKUP(B190,[2]Sheet4!$F$2:$J$364,4,FALSE),\"\")","v":""},{"$f":"IFERROR(VLOOKUP(B190,[2]Sheet4!$F$2:$J$364,5,FALSE),\"\")","v":""}]
[null,null,{"$f":"IFERROR(VLOOKUP(B191,[2]Sheet4!$F$2:$J$364,2,FALSE),\"\")","v":""},{"$f":"IFERROR(VLOOKUP(B191,[2]Sheet4!$F$2:$J$364,3,FALSE),\"\")","v":""},{"$f":"IFERROR(VLOOKUP(B191,[2]Sheet4!$F$2:$J$364,4,FALSE),\"\")","v":""},{"$f":"IFERROR(VLOOKUP(B191,[2]Sheet4!$F$2:$J$364,5,FALSE),\"\")","v":""}]
[null,null,{"$f":"IFERROR(VLOOKUP(B192,[2]Sheet4!$F$2:$J$364,2,FALSE),\"\")","v":""},{"$f":"IFERROR(VLOOKUP(B192,[2]Sheet4!$F$2:$J$364,3,FALSE),\"\")","v":""},{"$f":"IFERROR(VLOOKUP(B192,[2]Sheet4!$F$2:$J$364,4,FALSE),\"\")","v":""},{"$f":"IFERROR(VLOOKUP(B192,[2]Sheet4!$F$2:$J$364,5,FALSE),\"\")","v":""}]
[null,null,{"$f":"IFERROR(VLOOKUP(B193,[2]Sheet4!$F$2:$J$364,2,FALSE),\"\")","v":""},{"$f":"IFERROR(VLOOKUP(B193,[2]Sheet4!$F$2:$J$364,3,FALSE),\"\")","v":""},{"$f":"IFERROR(VLOOKUP(B193,[2]Sheet4!$F$2:$J$364,4,FALSE),\"\")","v":""},{"$f":"IFERROR(VLOOKUP(B193,[2]Sheet4!$F$2:$J$364,5,FALSE),\"\")","v":""}]
[null,null,{"$f":"IFERROR(VLOOKUP(B194,[2]Sheet4!$F$2:$J$364,2,FALSE),\"\")","v":""},{"$f":"IFERROR(VLOOKUP(B194,[2]Sheet4!$F$2:$J$364,3,FALSE),\"\")","v":""},{"$f":"IFERROR(VLOOKUP(B194,[2]Sheet4!$F$2:$J$364,4,FALSE),\"\")","v":""},{"$f":"IFERROR(VLOOKUP(B194,[2]Sheet4!$F$2:$J$364,5,FALSE),\"\")","v":""}]
[null,null,{"$f":"IFERROR(VLOOKUP(B195,[2]Sheet4!$F$2:$J$364,2,FALSE),\"\")","v":""},{"$f":"IFERROR(VLOOKUP(B195,[2]Sheet4!$F$2:$J$364,3,FALSE),\"\")","v":""},{"$f":"IFERROR(VLOOKUP(B195,[2]Sheet4!$F$2:$J$364,4,FALSE),\"\")","v":""},{"$f":"IFERROR(VLOOKUP(B195,[2]Sheet4!$F$2:$J$364,5,FALSE),\"\")","v":""}]
[null,null,{"$f":"IFERROR(VLOOKUP(B196,[2]Sheet4!$F$2:$J$364,2,FALSE),\"\")","v":""},{"$f":"IFERROR(VLOOKUP(B196,[2]Sheet4!$F$2:$J$364,3,FALSE),\"\")","v":""},{"$f":"IFERROR(VLOOKUP(B196,[2]Sheet4!$F$2:$J$364,4,FALSE),\"\")","v":""},{"$f":"IFERROR(VLOOKUP(B196,[2]Sheet4!$F$2:$J$364,5,FALSE),\"\")","v":""}]
[null,null,{"$f":"IFERROR(VLOOKUP(B197,[2]Sheet4!$F$2:$J$364,2,FALSE),\"\")","v":""},{"$f":"IFERROR(VLOOKUP(B197,[2]Sheet4!$F$2:$J$364,3,FALSE),\"\")","v":""},{"$f":"IFERROR(VLOOKUP(B197,[2]Sheet4!$F$2:$J$364,4,FALSE),\"\")","v":""},{"$f":"IFERROR(VLOOKUP(B197,[2]Sheet4!$F$2:$J$364,5,FALSE),\"\")","v":""}]
[null,null,{"$f":"IFERROR(VLOOKUP(B198,[2]Sheet4!$F$2:$J$364,2,FALSE),\"\")","v":""},{"$f":"IFERROR(VLOOKUP(B198,[2]Sheet4!$F$2:$J$364,3,FALSE),\"\")","v":""},{"$f":"IFERROR(VLOOKUP(B198,[2]Sheet4!$F$2:$J$364,4,FALSE),\"\")","v":""},{"$f":"IFERROR(VLOOKUP(B198,[2]Sheet4!$F$2:$J$364,5,FALSE),\"\")","v":""}]
[null,null,{"$f":"IFERROR(VLOOKUP(B199,[2]Sheet4!$F$2:$J$364,2,FALSE),\"\")","v":""},{"$f":"IFERROR(VLOOKUP(B199,[2]Sheet4!$F$2:$J$364,3,FALSE),\"\")","v":""},{"$f":"IFERROR(VLOOKUP(B199,[2]Sheet4!$F$2:$J$364,4,FALSE),\"\")","v":""},{"$f":"IFERROR(VLOOKUP(B199,[2]Sheet4!$F$2:$J$364,5,FALSE),\"\")","v":""}]
[null,null,{"$f":"IFERROR(VLOOKUP(B200,[2]Sheet4!$F$2:$J$364,2,FALSE),\"\")","v":""},{"$f":"IFERROR(VLOOKUP(B200,[2]Sheet4!$F$2:$J$364,3,FALSE),\"\")","v":""},{"$f":"IFERROR(VLOOKUP(B200,[2]Sheet4!$F$2:$J$364,4,FALSE),\"\")","v":""},{"$f":"IFERROR(VLOOKUP(B200,[2]Sheet4!$F$2:$J$364,5,FALSE),\"\")","v":""}]
[null,null,{"$f":"IFERROR(VLOOKUP(B201,[2]Sheet4!$F$2:$J$364,2,FALSE),\"\")","v":""},{"$f":"IFERROR(VLOOKUP(B201,[2]Sheet4!$F$2:$J$364,3,FALSE),\"\")","v":""},{"$f":"IFERROR(VLOOKUP(B201,[2]Sheet4!$F$2:$J$364,4,FALSE),\"\")","v":""},{"$f":"IFERROR(VLOOKUP(B201,[2]Sheet4!$F$2:$J$364,5,FALSE),\"\")","v":""}]
[null,null,{"$f":"IFERROR(VLOOKUP(B202,[2]Sheet4!$F$2:$J$364,2,FALSE),\"\")","v":""},{"$f":"IFERROR(VLOOKUP(B202,[2]Sheet4!$F$2:$J$364,3,FALSE),\"\")","v":""},{"$f":"IFERROR(VLOOKUP(B202,[2]Sheet4!$F$2:$J$364,4,FALSE),\"\")","v":""},{"$f":"IFERROR(VLOOKUP(B202,[2]Sheet4!$F$2:$J$364,5,FALSE),\"\")","v":""}]
[null,null,{"$f":"IFERROR(VLOOKUP(B203,[2]Sheet4!$F$2:$J$364,2,FALSE),\"\")","v":""},{"$f":"IFERROR(VLOOKUP(B203,[2]Sheet4!$F$2:$J$364,3,FALSE),\"\")","v":""},{"$f":"IFERROR(VLOOKUP(B203,[2]Sheet4!$F$2:$J$364,4,FALSE),\"\")","v":""},{"$f":"IFERROR(VLOOKUP(B203,[2]Sheet4!$F$2:$J$364,5,FALSE),\"\")","v":""}]
[null,null,{"$f":"IFERROR(VLOOKUP(B204,[2]Sheet4!$F$2:$J$364,2,FALSE),\"\")","v":""},{"$f":"IFERROR(VLOOKUP(B204,[2]Sheet4!$F$2:$J$364,3,FALSE),\"\")","v":""},{"$f":"IFERROR(VLOOKUP(B204,[2]Sheet4!$F$2:$J$364,4,FALSE),\"\")","v":""},{"$f":"IFERROR(VLOOKUP(B204,[2]Sheet4!$F$2:$J$364,5,FALSE),\"\")","v":""}]
[null,null,{"$f":"IFERROR(VLOOKUP(B205,[2]Sheet4!$F$2:$J$364,2,FALSE),\"\")","v":""},{"$f":"IFERROR(VLOOKUP(B205,[2]Sheet4!$F$2:$J$364,3,FALSE),\"\")","v":""},{"$f":"IFERROR(VLOOKUP(B205,[2]Sheet4!$F$2:$J$364,4,FALSE),\"\")","v":""},{"$f":"IFERROR(VLOOKUP(B205,[2]Sheet4!$F$2:$J$364,5,FALSE),\"\")","v":""}]
[null,null,{"$f":"IFERROR(VLOOKUP(B206,[2]Sheet4!$F$2:$J$364,2,FALSE),\"\")","v":""},{"$f":"IFERROR(VLOOKUP(B206,[2]Sheet4!$F$2:$J$364,3,FALSE),\"\")","v":""},{"$f":"IFERROR(VLOOKUP(B206,[2]Sheet4!$F$2:$J$364,4,FALSE),\"\")","v":""},{"$f":"IFERROR(VLOOKUP(B206,[2]Sheet4!$F$2:$J$364,5,FALSE),\"\")","v":""}]
[null,null,{"$f":"IFERROR(VLOOKUP(B207,[2]Sheet4!$F$2:$J$364,2,FALSE),\"\")","v":""},{"$f":"IFERROR(VLOOKUP(B207,[2]Sheet4!$F$2:$J$364,3,FALSE),\"\")","v":""},{"$f":"IFERROR(VLOOKUP(B207,[2]Sheet4!$F$2:$J$364,4,FALSE),\"\")","v":""},{"$f":"IFERROR(VLOOKUP(B207,[2]Sheet4!$F$2:$J$364,5,FALSE),\"\")","v":""}]
[null,null,{"$f":"IFERROR(VLOOKUP(B208,[2]Sheet4!$F$2:$J$364,2,FALSE),\"\")","v":""},{"$f":"IFERROR(VLOOKUP(B208,[2]Sheet4!$F$2:$J$364,3,FALSE),\"\")","v":""},{"$f":"IFERROR(VLOOKUP(B208,[2]Sheet4!$F$2:$J$364,4,FALSE),\"\")","v":""},{"$f":"IFERROR(VLOOKUP(B208,[2]Sheet4!$F$2:$J$364,5,FALSE),\"\")","v":""}]
[null,null,{"$f":"IFERROR(VLOOKUP(B209,[2]Sheet4!$F$2:$J$364,2,FALSE),\"\")","v":""},{"$f":"IFERROR(VLOOKUP(B209,[2]Sheet4!$F$2:$J$364,3,FALSE),\"\")","v":""},{"$f":"IFERROR(VLOOKUP(B209,[2]Sheet4!$F$2:$J$364,4,FALSE),\"\")","v":""},{"$f":"IFERROR(VLOOKUP(B209,[2]Sheet4!$F$2:$J$364,5,FALSE),\"\")","v":""}]
[null,null,{"$f":"IFERROR(VLOOKUP(B210,[2]Sheet4!$F$2:$J$364,2,FALSE),\"\")","v":""},{"$f":"IFERROR(VLOOKUP(B210,[2]Sheet4!$F$2:$J$364,3,FALSE),\"\")","v":""},{"$f":"IFERROR(VLOOKUP(B210,[2]Sheet4!$F$2:$J$364,4,FALSE),\"\")","v":""},{"$f":"IFERROR(VLOOKUP(B210,[2]Sheet4!$F$2:$J$364,5,FALSE),\"\")","v":""}]
[null,null,{"$f":"IFERROR(VLOOKUP(B211,[2]Sheet4!$F$2:$J$364,2,FALSE),\"\")","v":""},{"$f":"IFERROR(VLOOKUP(B211,[2]Sheet4!$F$2:$J$364,3,FALSE),\"\")","v":""},{"$f":"IFERROR(VLOOKUP(B211,[2]Sheet4!$F$2:$J$364,4,FALSE),\"\")","v":""},{"$f":"IFERROR(VLOOKUP(B211,[2]Sheet4!$F$2:$J$364,5,FALSE),\"\")","v":""}]
[null,null,{"$f":"IFERROR(VLOOKUP(B212,[2]Sheet4!$F$2:$J$364,2,FALSE),\"\")","v":""},{"$f":"IFERROR(VLOOKUP(B212,[2]Sheet4!$F$2:$J$364,3,FALSE),\"\")","v":""},{"$f":"IFERROR(VLOOKUP(B212,[2]Sheet4!$F$2:$J$364,4,FALSE),\"\")","v":""},{"$f":"IFERROR(VLOOKUP(B212,[2]Sheet4!$F$2:$J$364,5,FALSE),\"\")","v":""}]
[null,null,{"$f":"IFERROR(VLOOKUP(B213,[2]Sheet4!$F$2:$J$364,2,FALSE),\"\")","v":""},{"$f":"IFERROR(VLOOKUP(B213,[2]Sheet4!$F$2:$J$364,3,FALSE),\"\")","v":""},{"$f":"IFERROR(VLOOKUP(B213,[2]Sheet4!$F$2:$J$364,4,FALSE),\"\")","v":""},{"$f":"IFERROR(VLOOKUP(B213,[2]Sheet4!$F$2:$J$364,5,FALSE),\"\")","v":""}]
[null,null,{"$f":"IFERROR(VLOOKUP(B214,[2]Sheet4!$F$2:$J$364,2,FALSE),\"\")","v":""},{"$f":"IFERROR(VLOOKUP(B214,[2]Sheet4!$F$2:$J$364,3,FALSE),\"\")","v":""},{"$f":"IFERROR(VLOOKUP(B214,[2]Sheet4!$F$2:$J$364,4,FALSE),\"\")","v":""},{"$f":"IFERROR(VLOOKUP(B214,[2]Sheet4!$F$2:$J$364,5,FALSE),\"\")","v":""}]
[null,null,{"$f":"IFERROR(VLOOKUP(B215,[2]Sheet4!$F$2:$J$364,2,FALSE),\"\")","v":""},{"$f":"IFERROR(VLOOKUP(B215,[2]Sheet4!$F$2:$J$364,3,FALSE),\"\")","v":""},{"$f":"IFERROR(VLOOKUP(B215,[2]Sheet4!$F$2:$J$364,4,FALSE),\"\")","v":""},{"$f":"IFERROR(VLOOKUP(B215,[2]Sheet4!$F$2:$J$364,5,FALSE),\"\")","v":""}]
[null,null,{"$f":"IFERROR(VLOOKUP(B216,[2]Sheet4!$F$2:$J$364,2,FALSE),\"\")","v":""},{"$f":"IFERROR(VLOOKUP(B216,[2]Sheet4!$F$2:$J$364,3,FALSE),\"\")","v":""},{"$f":"IFERROR(VLOOKUP(B216,[2]Sheet4!$F$2:$J$364,4,FALSE),\"\")","v":""},{"$f":"IFERROR(VLOOKUP(B216,[2]Sheet4!$F$2:$J$364,5,FALSE),\"\")","v":""}]
[null,null,{"$f":"IFERROR(VLOOKUP(B217,[2]Sheet4!$F$2:$J$364,2,FALSE),\"\")","v":""},{"$f":"IFERROR(VLOOKUP(B217,[2]Sheet4!$F$2:$J$364,3,FALSE),\"\")","v":""},{"$f":"IFERROR(VLOOKUP(B217,[2]Sheet4!$F$2:$J$364,4,FALSE),\"\")","v":""},{"$f":"IFERROR(VLOOKUP(B217,[2]Sheet4!$F$2:$J$364,5,FALSE),\"\")","v":""}]
[null,null,{"$f":"IFERROR(VLOOKUP(B218,[2]Sheet4!$F$2:$J$364,2,FALSE),\"\")","v":""},{"$f":"IFERROR(VLOOKUP(B218,[2]Sheet4!$F$2:$J$364,3,FALSE),\"\")","v":""},{"$f":"IFERROR(VLOOKUP(B218,[2]Sheet4!$F$2:$J$364,4,FALSE),\"\")","v":""},{"$f":"IFERROR(VLOOKUP(B218,[2]Sheet4!$F$2:$J$364,5,FALSE),\"\")","v":""}]
[null,null,{"$f":"IFERROR(VLOOKUP(B219,[2]Sheet4!$F$2:$J$364,2,FALSE),\"\")","v":""},{"$f":"IFERROR(VLOOKUP(B219,[2]Sheet4!$F$2:$J$364,3,FALSE),\"\")","v":""},{"$f":"IFERROR(VLOOKUP(B219,[2]Sheet4!$F$2:$J$364,4,FALSE),\"\")","v":""},{"$f":"IFERROR(VLOOKUP(B219,[2]Sheet4!$F$2:$J$364,5,FALSE),\"\")","v":""}]
[null,null,{"$f":"IFERROR(VLOOKUP(B220,[2]Sheet4!$F$2:$J$364,2,FALSE),\"\")","v":""},{"$f":"IFERROR(VLOOKUP(B220,[2]Sheet4!$F$2:$J$364,3,FALSE),\"\")","v":""},{"$f":"IFERROR(VLOOKUP(B220,[2]Sheet4!$F$2:$J$364,4,FALSE),\"\")","v":""},{"$f":"IFERROR(VLOOKUP(B220,[2]Sheet4!$F$2:$J$364,5,FALSE),\"\")","v":""}]
[null,null,{"$f":"IFERROR(VLOOKUP(B221,[2]Sheet4!$F$2:$J$364,2,FALSE),\"\")","v":""},{"$f":"IFERROR(VLOOKUP(B221,[2]Sheet4!$F$2:$J$364,3,FALSE),\"\")","v":""},{"$f":"IFERROR(VLOOKUP(B221,[2]Sheet4!$F$2:$J$364,4,FALSE),\"\")","v":""},{"$f":"IFERROR(VLOOKUP(B221,[2]Sheet4!$F$2:$J$364,5,FALSE),\"\")","v":""}]
[null,null,{"$f":"IFERROR(VLOOKUP(B222,[2]Sheet4!$F$2:$J$364,2,FALSE),\"\")","v":""},{"$f":"IFERROR(VLOOKUP(B222,[2]Sheet4!$F$2:$J$364,3,FALSE),\"\")","v":""},{"$f":"IFERROR(VLOOKUP(B222,[2]Sheet4!$F$2:$J$364,4,FALSE),\"\")","v":""},{"$f":"IFERROR(VLOOKUP(B222,[2]Sheet4!$F$2:$J$364,5,FALSE),\"\")","v":""}]
[null,null,{"$f":"IFERROR(VLOOKUP(B223,[2]Sheet4!$F$2:$J$364,2,FALSE),\"\")","v":""},{"$f":"IFERROR(VLOOKUP(B223,[2]Sheet4!$F$2:$J$364,3,FALSE),\"\")","v":""},{"$f":"IFERROR(VLOOKUP(B223,[2]Sheet4!$F$2:$J$364,4,FALSE),\"\")","v":""},{"$f":"IFERROR(VLOOKUP(B223,[2]Sheet4!$F$2:$J$364,5,FALSE),\"\")","v":""}]
[null,null,{"$f":"IFERROR(VLOOKUP(B224,[2]Sheet4!$F$2:$J$364,2,FALSE),\"\")","v":""},{"$f":"IFERROR(VLOOKUP(B224,[2]Sheet4!$F$2:$J$364,3,FALSE),\"\")","v":""},{"$f":"IFERROR(VLOOKUP(B224,[2]Sheet4!$F$2:$J$364,4,FALSE),\"\")","v":""},{"$f":"IFERROR(VLOOKUP(B224,[2]Sheet4!$F$2:$J$364,5,FALSE),\"\")","v":""}]
[null,null,{"$f":"IFERROR(VLOOKUP(B225,[2]Sheet4!$F$2:$J$364,2,FALSE),\"\")","v":""},{"$f":"IFERROR(VLOOKUP(B225,[2]Sheet4!$F$2:$J$364,3,FALSE),\"\")","v":""},{"$f":"IFERROR(VLOOKUP(B225,[2]Sheet4!$F$2:$J$364,4,FALSE),\"\")","v":""},{"$f":"IFERROR(VLOOKUP(B225,[2]Sheet4!$F$2:$J$364,5,FALSE),\"\")","v":""}]
[null,null,{"$f":"IFERROR(VLOOKUP(B226,[2]Sheet4!$F$2:$J$364,2,FALSE),\"\")","v":""},{"$f":"IFERROR(VLOOKUP(B226,[2]Sheet4!$F$2:$J$364,3,FALSE),\"\")","v":""},{"$f":"IFERROR(VLOOKUP(B226,[2]Sheet4!$F$2:$J$364,4,FALSE),\"\")","v":""},{"$f":"IFERROR(VLOOKUP(B226,[2]Sheet4!$F$2:$J$364,5,FALSE),\"\")","v":""}]
[null,null,{"$f":"IFERROR(VLOOKUP(B227,[2]Sheet4!$F$2:$J$364,2,FALSE),\"\")","v":""},{"$f":"IFERROR(VLOOKUP(B227,[2]Sheet4!$F$2:$J$364,3,FALSE),\"\")","v":""},{"$f":"IFERROR(VLOOKUP(B227,[2]Sheet4!$F$2:$J$364,4,FALSE),\"\")","v":""},{"$f":"IFERROR(VLOOKUP(B227,[2]Sheet4!$F$2:$J$364,5,FALSE),\"\")","v":""}]
[null,null,{"$f":"IFERROR(VLOOKUP(B228,[2]Sheet4!$F$2:$J$364,2,FALSE),\"\")","v":""},{"$f":"IFERROR(VLOOKUP(B228,[2]Sheet4!$F$2:$J$364,3,FALSE),\"\")","v":""},{"$f":"IFERROR(VLOOKUP(B228,[2]Sheet4!$F$2:$J$364,4,FALSE),\"\")","v":""},{"$f":"IFERROR(VLOOKUP(B228,[2]Sheet4!$F$2:$J$364,5,FALSE),\"\")","v":""}]
[null,null,{"$f":"IFERROR(VLOOKUP(B229,[2]Sheet4!$F$2:$J$364,2,FALSE),\"\")","v":""},{"$f":"IFERROR(VLOOKUP(B229,[2]Sheet4!$F$2:$J$364,3,FALSE),\"\")","v":""},{"$f":"IFERROR(VLOOKUP(B229,[2]Sheet4!$F$2:$J$364,4,FALSE),\"\")","v":""},{"$f":"IFERROR(VLOOKUP(B229,[2]Sheet4!$F$2:$J$364,5,FALSE),\"\")","v":""}]
[null,null,{"$f":"IFERROR(VLOOKUP(B230,[2]Sheet4!$F$2:$J$364,2,FALSE),\"\")","v":""},{"$f":"IFERROR(VLOOKUP(B230,[2]Sheet4!$F$2:$J$364,3,FALSE),\"\")","v":""},{"$f":"IFERROR(VLOOKUP(B230,[2]Sheet4!$F$2:$J$364,4,FALSE),\"\")","v":""},{"$f":"IFERROR(VLOOKUP(B230,[2]Sheet4!$F$2:$J$364,5,FALSE),\"\")","v":""}]
[null,null,{"$f":"IFERROR(VLOOKUP(B231,[2]Sheet4!$F$2:$J$364,2,FALSE),\"\")","v":""},{"$f":"IFERROR(VLOOKUP(B231,[2]Sheet4!$F$2:$J$364,3,FALSE),\"\")","v":""},{"$f":"IFERROR(VLOOKUP(B231,[2]Sheet4!$F$2:$J$364,4,FALSE),\"\")","v":""},{"$f":"IFERROR(VLOOKUP(B231,[2]Sheet4!$F$2:$J$364,5,FALSE),\"\")","v":""}]
[null,null,{"$f":"IFERROR(VLOOKUP(B232,[2]Sheet4!$F$2:$J$364,2,FALSE),\"\")","v":""},{"$f":"IFERROR(VLOOKUP(B232,[2]Sheet4!$F$2:$J$364,3,FALSE),\"\")","v":""},{"$f":"IFERROR(VLOOKUP(B232,[2]Sheet4!$F$2:$J$364,4,FALSE),\"\")","v":""},{"$f":"IFERROR(VLOOKUP(B232,[2]Sheet4!$F$2:$J$364,5,FALSE),\"\")","v":""}]
[null,null,{"$f":"IFERROR(VLOOKUP(B233,[2]Sheet4!$F$2:$J$364,2,FALSE),\"\")","v":""},{"$f":"IFERROR(VLOOKUP(B233,[2]Sheet4!$F$2:$J$364,3,FALSE),\"\")","v":""},{"$f":"IFERROR(VLOOKUP(B233,[2]Sheet4!$F$2:$J$364,4,FALSE),\"\")","v":""},{"$f":"IFERROR(VLOOKUP(B233,[2]Sheet4!$F$2:$J$364,5,FALSE),\"\")","v":""}]
[null,null,{"$f":"IFERROR(VLOOKUP(B234,[2]Sheet4!$F$2:$J$364,2,FALSE),\"\")","v":""},{"$f":"IFERROR(VLOOKUP(B234,[2]Sheet4!$F$2:$J$364,3,FALSE),\"\")","v":""},{"$f":"IFERROR(VLOOKUP(B234,[2]Sheet4!$F$2:$J$364,4,FALSE),\"\")","v":""},{"$f":"IFERROR(VLOOKUP(B234,[2]Sheet4!$F$2:$J$364,5,FALSE),\"\")","v":""}]
[null,null,{"$f":"IFERROR(VLOOKUP(B235,[2]Sheet4!$F$2:$J$364,2,FALSE),\"\")","v":""},{"$f":"IFERROR(VLOOKUP(B235,[2]Sheet4!$F$2:$J$364,3,FALSE),\"\")","v":""},{"$f":"IFERROR(VLOOKUP(B235,[2]Sheet4!$F$2:$J$364,4,FALSE),\"\")","v":""},{"$f":"IFERROR(VLOOKUP(B235,[2]Sheet4!$F$2:$J$364,5,FALSE),\"\")","v":""}]
[null,null,{"$f":"IFERROR(VLOOKUP(B236,[2]Sheet4!$F$2:$J$364,2,FALSE),\"\")","v":""},{"$f":"IFERROR(VLOOKUP(B236,[2]Sheet4!$F$2:$J$364,3,FALSE),\"\")","v":""},{"$f":"IFERROR(VLOOKUP(B236,[2]Sheet4!$F$2:$J$364,4,FALSE),\"\")","v":""},{"$f":"IFERROR(VLOOKUP(B236,[2]Sheet4!$F$2:$J$364,5,FALSE),\"\")","v":""}]
[null,null,{"$f":"IFERROR(VLOOKUP(B237,[2]Sheet4!$F$2:$J$364,2,FALSE),\"\")","v":""},{"$f":"IFERROR(VLOOKUP(B237,[2]Sheet4!$F$2:$J$364,3,FALSE),\"\")","v":""},{"$f":"IFERROR(VLOOKUP(B237,[2]Sheet4!$F$2:$J$364,4,FALSE),\"\")","v":""},{"$f":"IFERROR(VLOOKUP(B237,[2]Sheet4!$F$2:$J$364,5,FALSE),\"\")","v":""}]
[null,null,{"$f":"IFERROR(VLOOKUP(B238,[2]Sheet4!$F$2:$J$364,2,FALSE),\"\")","v":""},{"$f":"IFERROR(VLOOKUP(B238,[2]Sheet4!$F$2:$J$364,3,FALSE),\"\")","v":""},{"$f":"IFERROR(VLOOKUP(B238,[2]Sheet4!$F$2:$J$364,4,FALSE),\"\")","v":""},{"$f":"IFERROR(VLOOKUP(B238,[2]Sheet4!$F$2:$J$364,5,FALSE),\"\")","v":""}]
[null,null,{"$f":"IFERROR(VLOOKUP(B239,[2]Sheet4!$F$2:$J$364,2,FALSE),\"\")","v":""},{"$f":"IFERROR(VLOOKUP(B239,[2]Sheet4!$F$2:$J$364,3,FALSE),\"\")","v":""},{"$f":"IFERROR(VLOOKUP(B239,[2]Sheet4!$F$2:$J$364,4,FALSE),\"\")","v":""},{"$f":"IFERROR(VLOOKUP(B239,[2]Sheet4!$F$2:$J$364,5,FALSE),\"\")","v":""}]
[null,null,{"$f":"IFERROR(VLOOKUP(B240,[2]Sheet4!$F$2:$J$364,2,FALSE),\"\")","v":""},{"$f":"IFERROR(VLOOKUP(B240,[2]Sheet4!$F$2:$J$364,3,FALSE),\"\")","v":""},{"$f":"IFERROR(VLOOKUP(B240,[2]Sheet4!$F$2:$J$364,4,FALSE),\"\")","v":""},{"$f":"IFERROR(VLOOKUP(B240,[2]Sheet4!$F$2:$J$364,5,FALSE),\"\")","v":""}]
[null,null,{"$f":"IFERROR(VLOOKUP(B241,[2]Sheet4!$F$2:$J$364,2,FALSE),\"\")","v":""},{"$f":"IFERROR(VLOOKUP(B241,[2]Sheet4!$F$2:$J$364,3,FALSE),\"\")","v":""},{"$f":"IFERROR(VLOOKUP(B241,[2]Sheet4!$F$2:$J$364,4,FALSE),\"\")","v":""},{"$f":"IFERROR(VLOOKUP(B241,[2]Sheet4!$F$2:$J$364,5,FALSE),\"\")","v":""}]
[null,null,{"$f":"IFERROR(VLOOKUP(B242,[2]Sheet4!$F$2:$J$364,2,FALSE),\"\")","v":""},{"$f":"IFERROR(VLOOKUP(B242,[2]Sheet4!$F$2:$J$364,3,FALSE),\"\")","v":""},{"$f":"IFERROR(VLOOKUP(B242,[2]Sheet4!$F$2:$J$364,4,FALSE),\"\")","v":""},{"$f":"IFERROR(VLOOKUP(B242,[2]Sheet4!$F$2:$J$364,5,FALSE),\"\")","v":""}]
[null,null,{"$f":"IFERROR(VLOOKUP(B243,[2]Sheet4!$F$2:$J$364,2,FALSE),\"\")","v":""},{"$f":"IFERROR(VLOOKUP(B243,[2]Sheet4!$F$2:$J$364,3,FALSE),\"\")","v":""},{"$f":"IFERROR(VLOOKUP(B243,[2]Sheet4!$F$2:$J$364,4,FALSE),\"\")","v":""},{"$f":"IFERROR(VLOOKUP(B243,[2]Sheet4!$F$2:$J$364,5,FALSE),\"\")","v":""}]
[null,null,{"$f":"IFERROR(VLOOKUP(B244,[2]Sheet4!$F$2:$J$364,2,FALSE),\"\")","v":""},{"$f":"IFERROR(VLOOKUP(B244,[2]Sheet4!$F$2:$J$364,3,FALSE),\"\")","v":""},{"$f":"IFERROR(VLOOKUP(B244,[2]Sheet4!$F$2:$J$364,4,FALSE),\"\")","v":""},{"$f":"IFERROR(VLOOKUP(B244,[2]Sheet4!$F$2:$J$364,5,FALSE),\"\")","v":""}]
[null,null,{"$f":"IFERROR(VLOOKUP(B245,[2]Sheet4!$F$2:$J$364,2,FALSE),\"\")","v":""},{"$f":"IFERROR(VLOOKUP(B245,[2]Sheet4!$F$2:$J$364,3,FALSE),\"\")","v":""},{"$f":"IFERROR(VLOOKUP(B245,[2]Sheet4!$F$2:$J$364,4,FALSE),\"\")","v":""},{"$f":"IFERROR(VLOOKUP(B245,[2]Sheet4!$F$2:$J$364,5,FALSE),\"\")","v":""}]
[null,null,{"$f":"IFERROR(VLOOKUP(B246,[2]Sheet4!$F$2:$J$364,2,FALSE),\"\")","v":""},{"$f":"IFERROR(VLOOKUP(B246,[2]Sheet4!$F$2:$J$364,3,FALSE),\"\")","v":""},{"$f":"IFERROR(VLOOKUP(B246,[2]Sheet4!$F$2:$J$364,4,FALSE),\"\")","v":""},{"$f":"IFERROR(VLOOKUP(B246,[2]Sheet4!$F$2:$J$364,5,FALSE),\"\")","v":""}]
[null,null,{"$f":"IFERROR(VLOOKUP(B247,[2]Sheet4!$F$2:$J$364,2,FALSE),\"\")","v":""},{"$f":"IFERROR(VLOOKUP(B247,[2]Sheet4!$F$2:$J$364,3,FALSE),\"\")","v":""},{"$f":"IFERROR(VLOOKUP(B247,[2]Sheet4!$F$2:$J$364,4,FALSE),\"\")","v":""},{"$f":"IFERROR(VLOOKUP(B247,[2]Sheet4!$F$2:$J$364,5,FALSE),\"\")","v":""}]
[null,null,{"$f":"IFERROR(VLOOKUP(B248,[2]Sheet4!$F$2:$J$364,2,FALSE),\"\")","v":""},{"$f":"IFERROR(VLOOKUP(B248,[2]Sheet4!$F$2:$J$364,3,FALSE),\"\")","v":""},{"$f":"IFERROR(VLOOKUP(B248,[2]Sheet4!$F$2:$J$364,4,FALSE),\"\")","v":""},{"$f":"IFERROR(VLOOKUP(B248,[2]Sheet4!$F$2:$J$364,5,FALSE),\"\")","v":""}]
[null,null,{"$f":"IFERROR(VLOOKUP(B249,[2]Sheet4!$F$2:$J$364,2,FALSE),\"\")","v":""},{"$f":"IFERROR(VLOOKUP(B249,[2]Sheet4!$F$2:$J$364,3,FALSE),\"\")","v":""},{"$f":"IFERROR(VLOOKUP(B249,[2]Sheet4!$F$2:$J$364,4,FALSE),\"\")","v":""},{"$f":"IFERROR(VLOOKUP(B249,[2]Sheet4!$F$2:$J$364,5,FALSE),\"\")","v":""}]
[null,null,{"$f":"IFERROR(VLOOKUP(B250,[2]Sheet4!$F$2:$J$364,2,FALSE),\"\")","v":""},{"$f":"IFERROR(VLOOKUP(B250,[2]Sheet4!$F$2:$J$364,3,FALSE),\"\")","v":""},{"$f":"IFERROR(VLOOKUP(B250,[2]Sheet4!$F$2:$J$364,4,FALSE),\"\")","v":""},{"$f":"IFERROR(VLOOKUP(B250,[2]Sheet4!$F$2:$J$364,5,FALSE),\"\")","v":""}]
[null,null,{"$f":"IFERROR(VLOOKUP(B251,[2]Sheet4!$F$2:$J$364,2,FALSE),\"\")","v":""},{"$f":"IFERROR(VLOOKUP(B251,[2]Sheet4!$F$2:$J$364,3,FALSE),\"\")","v":""},{"$f":"IFERROR(VLOOKUP(B251,[2]Sheet4!$F$2:$J$364,4,FALSE),\"\")","v":""},{"$f":"IFERROR(VLOOKUP(B251,[2]Sheet4!$F$2:$J$364,5,FALSE),\"\")","v":""}]
[null,null,{"$f":"IFERROR(VLOOKUP(B252,[2]Sheet4!$F$2:$J$364,2,FALSE),\"\")","v":""},{"$f":"IFERROR(VLOOKUP(B252,[2]Sheet4!$F$2:$J$364,3,FALSE),\"\")","v":""},{"$f":"IFERROR(VLOOKUP(B252,[2]Sheet4!$F$2:$J$364,4,FALSE),\"\")","v":""},{"$f":"IFERROR(VLOOKUP(B252,[2]Sheet4!$F$2:$J$364,5,FALSE),\"\")","v":""}]
[null,null,{"$f":"IFERROR(VLOOKUP(B253,[2]Sheet4!$F$2:$J$364,2,FALSE),\"\")","v":""},{"$f":"IFERROR(VLOOKUP(B253,[2]Sheet4!$F$2:$J$364,3,FALSE),\"\")","v":""},{"$f":"IFERROR(VLOOKUP(B253,[2]Sheet4!$F$2:$J$364,4,FALSE),\"\")","v":""},{"$f":"IFERROR(VLOOKUP(B253,[2]Sheet4!$F$2:$J$364,5,FALSE),\"\")","v":""}]
[null,null,{"$f":"IFERROR(VLOOKUP(B254,[2]Sheet4!$F$2:$J$364,2,FALSE),\"\")","v":""},{"$f":"IFERROR(VLOOKUP(B254,[2]Sheet4!$F$2:$J$364,3,FALSE),\"\")","v":""},{"$f":"IFERROR(VLOOKUP(B254,[2]Sheet4!$F$2:$J$364,4,FALSE),\"\")","v":""},{"$f":"IFERROR(VLOOKUP(B254,[2]Sheet4!$F$2:$J$364,5,FALSE),\"\")","v":""}]
[null,null,{"$f":"IFERROR(VLOOKUP(B255,[2]Sheet4!$F$2:$J$364,2,FALSE),\"\")","v":""},{"$f":"IFERROR(VLOOKUP(B255,[2]Sheet4!$F$2:$J$364,3,FALSE),\"\")","v":""},{"$f":"IFERROR(VLOOKUP(B255,[2]Sheet4!$F$2:$J$364,4,FALSE),\"\")","v":""},{"$f":"IFERROR(VLOOKUP(B255,[2]Sheet4!$F$2:$J$364,5,FALSE),\"\")","v":""}]
[null,null,{"$f":"IFERROR(VLOOKUP(B256,[2]Sheet4!$F$2:$J$364,2,FALSE),\"\")","v":""},{"$f":"IFERROR(VLOOKUP(B256,[2]Sheet4!$F$2:$J$364,3,FALSE),\"\")","v":""},{"$f":"IFERROR(VLOOKUP(B256,[2]Sheet4!$F$2:$J$364,4,FALSE),\"\")","v":""},{"$f":"IFERROR(VLOOKUP(B256,[2]Sheet4!$F$2:$J$364,5,FALSE),\"\")","v":""}]
[null,null,{"$f":"IFERROR(VLOOKUP(B257,[2]Sheet4!$F$2:$J$364,2,FALSE),\"\")","v":""},{"$f":"IFERROR(VLOOKUP(B257,[2]Sheet4!$F$2:$J$364,3,FALSE),\"\")","v":""},{"$f":"IFERROR(VLOOKUP(B257,[2]Sheet4!$F$2:$J$364,4,FALSE),\"\")","v":""},{"$f":"IFERROR(VLOOKUP(B257,[2]Sheet4!$F$2:$J$364,5,FALSE),\"\")","v":""}]
[null,null,{"$f":"IFERROR(VLOOKUP(B258,[2]Sheet4!$F$2:$J$364,2,FALSE),\"\")","v":""},{"$f":"IFERROR(VLOOKUP(B258,[2]Sheet4!$F$2:$J$364,3,FALSE),\"\")","v":""},{"$f":"IFERROR(VLOOKUP(B258,[2]Sheet4!$F$2:$J$364,4,FALSE),\"\")","v":""},{"$f":"IFERROR(VLOOKUP(B258,[2]Sheet4!$F$2:$J$364,5,FALSE),\"\")","v":""}]
[null,null,{"$f":"IFERROR(VLOOKUP(B259,[2]Sheet4!$F$2:$J$364,2,FALSE),\"\")","v":""},{"$f":"IFERROR(VLOOKUP(B259,[2]Sheet4!$F$2:$J$364,3,FALSE),\"\")","v":""},{"$f":"IFERROR(VLOOKUP(B259,[2]Sheet4!$F$2:$J$364,4,FALSE),\"\")","v":""},{"$f":"IFERROR(VLOOKUP(B259,[2]Sheet4!$F$2:$J$364,5,FALSE),\"\")","v":""}]
[null,null,{"$f":"IFERROR(VLOOKUP(B260,[2]Sheet4!$F$2:$J$364,2,FALSE),\"\")","v":""},{"$f":"IFERROR(VLOOKUP(B260,[2]Sheet4!$F$2:$J$364,3,FALSE),\"\")","v":""},{"$f":"IFERROR(VLOOKUP(B260,[2]Sheet4!$F$2:$J$364,4,FALSE),\"\")","v":""},{"$f":"IFERROR(VLOOKUP(B260,[2]Sheet4!$F$2:$J$364,5,FALSE),\"\")","v":""}]
[null,null,{"$f":"IFERROR(VLOOKUP(B261,[2]Sheet4!$F$2:$J$364,2,FALSE),\"\")","v":""},{"$f":"IFERROR(VLOOKUP(B261,[2]Sheet4!$F$2:$J$364,3,FALSE),\"\")","v":""},{"$f":"IFERROR(VLOOKUP(B261,[2]Sheet4!$F$2:$J$364,4,FALSE),\"\")","v":""},{"$f":"IFERROR(VLOOKUP(B261,[2]Sheet4!$F$2:$J$364,5,FALSE),\"\")","v":""}]
[null,null,{"$f":"IFERROR(VLOOKUP(B262,[2]Sheet4!$F$2:$J$364,2,FALSE),\"\")","v":""},{"$f":"IFERROR(VLOOKUP(B262,[2]Sheet4!$F$2:$J$364,3,FALSE),\"\")","v":""},{"$f":"IFERROR(VLOOKUP(B262,[2]Sheet4!$F$2:$J$364,4,FALSE),\"\")","v":""},{"$f":"IFERROR(VLOOKUP(B262,[2]Sheet4!$F$2:$J$364,5,FALSE),\"\")","v":""}]
[null,null,{"$f":"IFERROR(VLOOKUP(B263,[2]Sheet4!$F$2:$J$364,2,FALSE),\"\")","v":""},{"$f":"IFERROR(VLOOKUP(B263,[2]Sheet4!$F$2:$J$364,3,FALSE),\"\")","v":""},{"$f":"IFERROR(VLOOKUP(B263,[2]Sheet4!$F$2:$J$364,4,FALSE),\"\")","v":""},{"$f":"IFERROR(VLOOKUP(B263,[2]Sheet4!$F$2:$J$364,5,FALSE),\"\")","v":""}]
[null,null,{"$f":"IFERROR(VLOOKUP(B264,[2]Sheet4!$F$2:$J$364,2,FALSE),\"\")","v":""},{"$f":"IFERROR(VLOOKUP(B264,[2]Sheet4!$F$2:$J$364,3,FALSE),\"\")","v":""},{"$f":"IFERROR(VLOOKUP(B264,[2]Sheet4!$F$2:$J$364,4,FALSE),\"\")","v":""},{"$f":"IFERROR(VLOOKUP(B264,[2]Sheet4!$F$2:$J$364,5,FALSE),\"\")","v":""}]
[null,null,{"$f":"IFERROR(VLOOKUP(B265,[2]Sheet4!$F$2:$J$364,2,FALSE),\"\")","v":""},{"$f":"IFERROR(VLOOKUP(B265,[2]Sheet4!$F$2:$J$364,3,FALSE),\"\")","v":""},{"$f":"IFERROR(VLOOKUP(B265,[2]Sheet4!$F$2:$J$364,4,FALSE),\"\")","v":""},{"$f":"IFERROR(VLOOKUP(B265,[2]Sheet4!$F$2:$J$364,5,FALSE),\"\")","v":""}]
[null,null,{"$f":"IFERROR(VLOOKUP(B266,[2]Sheet4!$F$2:$J$364,2,FALSE),\"\")","v":""},{"$f":"IFERROR(VLOOKUP(B266,[2]Sheet4!$F$2:$J$364,3,FALSE),\"\")","v":""},{"$f":"IFERROR(VLOOKUP(B266,[2]Sheet4!$F$2:$J$364,4,FALSE),\"\")","v":""},{"$f":"IFERROR(VLOOKUP(B266,[2]Sheet4!$F$2:$J$364,5,FALSE),\"\")","v":""}]
[null,null,{"$f":"IFERROR(VLOOKUP(B267,[2]Sheet4!$F$2:$J$364,2,FALSE),\"\")","v":""},{"$f":"IFERROR(VLOOKUP(B267,[2]Sheet4!$F$2:$J$364,3,FALSE),\"\")","v":""},{"$f":"IFERROR(VLOOKUP(B267,[2]Sheet4!$F$2:$J$364,4,FALSE),\"\")","v":""},{"$f":"IFERROR(VLOOKUP(B267,[2]Sheet4!$F$2:$J$364,5,FALSE),\"\")","v":""}]
[null,null,{"$f":"IFERROR(VLOOKUP(B268,[2]Sheet4!$F$2:$J$364,2,FALSE),\"\")","v":""},{"$f":"IFERROR(VLOOKUP(B268,[2]Sheet4!$F$2:$J$364,3,FALSE),\"\")","v":""},{"$f":"IFERROR(VLOOKUP(B268,[2]Sheet4!$F$2:$J$364,4,FALSE),\"\")","v":""},{"$f":"IFERROR(VLOOKUP(B268,[2]Sheet4!$F$2:$J$364,5,FALSE),\"\")","v":""}]
[null,null,{"$f":"IFERROR(VLOOKUP(B269,[2]Sheet4!$F$2:$J$364,2,FALSE),\"\")","v":""},{"$f":"IFERROR(VLOOKUP(B269,[2]Sheet4!$F$2:$J$364,3,FALSE),\"\")","v":""},{"$f":"IFERROR(VLOOKUP(B269,[2]Sheet4!$F$2:$J$364,4,FALSE),\"\")","v":""},{"$f":"IFERROR(VLOOKUP(B269,[2]Sheet4!$F$2:$J$364,5,FALSE),\"\")","v":""}]
[null,null,{"$f":"IFERROR(VLOOKUP(B270,[2]Sheet4!$F$2:$J$364,2,FALSE),\"\")","v":""},{"$f":"IFERROR(VLOOKUP(B270,[2]Sheet4!$F$2:$J$364,3,FALSE),\"\")","v":""},{"$f":"IFERROR(VLOOKUP(B270,[2]Sheet4!$F$2:$J$364,4,FALSE),\"\")","v":""},{"$f":"IFERROR(VLOOKUP(B270,[2]Sheet4!$F$2:$J$364,5,FALSE),\"\")","v":""}]
[null,null,{"$f":"IFERROR(VLOOKUP(B271,[2]Sheet4!$F$2:$J$364,2,FALSE),\"\")","v":""},{"$f":"IFERROR(VLOOKUP(B271,[2]Sheet4!$F$2:$J$364,3,FALSE),\"\")","v":""},{"$f":"IFERROR(VLOOKUP(B271,[2]Sheet4!$F$2:$J$364,4,FALSE),\"\")","v":""},{"$f":"IFERROR(VLOOKUP(B271,[2]Sheet4!$F$2:$J$364,5,FALSE),\"\")","v":""}]
[null,null,{"$f":"IFERROR(VLOOKUP(B272,[2]Sheet4!$F$2:$J$364,2,FALSE),\"\")","v":""},{"$f":"IFERROR(VLOOKUP(B272,[2]Sheet4!$F$2:$J$364,3,FALSE),\"\")","v":""},{"$f":"IFERROR(VLOOKUP(B272,[2]Sheet4!$F$2:$J$364,4,FALSE),\"\")","v":""},{"$f":"IFERROR(VLOOKUP(B272,[2]Sheet4!$F$2:$J$364,5,FALSE),\"\")","v":""}]
[null,null,{"$f":"IFERROR(VLOOKUP(B273,[2]Sheet4!$F$2:$J$364,2,FALSE),\"\")","v":""},{"$f":"IFERROR(VLOOKUP(B273,[2]Sheet4!$F$2:$J$364,3,FALSE),\"\")","v":""},{"$f":"IFERROR(VLOOKUP(B273,[2]Sheet4!$F$2:$J$364,4,FALSE),\"\")","v":""},{"$f":"IFERROR(VLOOKUP(B273,[2]Sheet4!$F$2:$J$364,5,FALSE),\"\")","v":""}]
[null,null,{"$f":"IFERROR(VLOOKUP(B274,[2]Sheet4!$F$2:$J$364,2,FALSE),\"\")","v":""},{"$f":"IFERROR(VLOOKUP(B274,[2]Sheet4!$F$2:$J$364,3,FALSE),\"\")","v":""},{"$f":"IFERROR(VLOOKUP(B274,[2]Sheet4!$F$2:$J$364,4,FALSE),\"\")","v":""},{"$f":"IFERROR(VLOOKUP(B274,[2]Sheet4!$F$2:$J$364,5,FALSE),\"\")","v":""}]
[null,null,{"$f":"IFERROR(VLOOKUP(B275,[2]Sheet4!$F$2:$J$364,2,FALSE),\"\")","v":""},{"$f":"IFERROR(VLOOKUP(B275,[2]Sheet4!$F$2:$J$364,3,FALSE),\"\")","v":""},{"$f":"IFERROR(VLOOKUP(B275,[2]Sheet4!$F$2:$J$364,4,FALSE),\"\")","v":""},{"$f":"IFERROR(VLOOKUP(B275,[2]Sheet4!$F$2:$J$364,5,FALSE),\"\")","v":""}]
[null,null,{"$f":"IFERROR(VLOOKUP(B276,[2]Sheet4!$F$2:$J$364,2,FALSE),\"\")","v":""},{"$f":"IFERROR(VLOOKUP(B276,[2]Sheet4!$F$2:$J$364,3,FALSE),\"\")","v":""},{"$f":"IFERROR(VLOOKUP(B276,[2]Sheet4!$F$2:$J$364,4,FALSE),\"\")","v":""},{"$f":"IFERROR(VLOOKUP(B276,[2]Sheet4!$F$2:$J$364,5,FALSE),\"\")","v":""}]
[null,null,{"$f":"IFERROR(VLOOKUP(B277,[2]Sheet4!$F$2:$J$364,2,FALSE),\"\")","v":""},{"$f":"IFERROR(VLOOKUP(B277,[2]Sheet4!$F$2:$J$364,3,FALSE),\"\")","v":""},{"$f":"IFERROR(VLOOKUP(B277,[2]Sheet4!$F$2:$J$364,4,FALSE),\"\")","v":""},{"$f":"IFERROR(VLOOKUP(B277,[2]Sheet4!$F$2:$J$364,5,FALSE),\"\")","v":""}]
[null,null,{"$f":"IFERROR(VLOOKUP(B278,[2]Sheet4!$F$2:$J$364,2,FALSE),\"\")","v":""},{"$f":"IFERROR(VLOOKUP(B278,[2]Sheet4!$F$2:$J$364,3,FALSE),\"\")","v":""},{"$f":"IFERROR(VLOOKUP(B278,[2]Sheet4!$F$2:$J$364,4,FALSE),\"\")","v":""},{"$f":"IFERROR(VLOOKUP(B278,[2]Sheet4!$F$2:$J$364,5,FALSE),\"\")","v":""}]
[null,null,{"$f":"IFERROR(VLOOKUP(B279,[2]Sheet4!$F$2:$J$364,2,FALSE),\"\")","v":""},{"$f":"IFERROR(VLOOKUP(B279,[2]Sheet4!$F$2:$J$364,3,FALSE),\"\")","v":""},{"$f":"IFERROR(VLOOKUP(B279,[2]Sheet4!$F$2:$J$364,4,FALSE),\"\")","v":""},{"$f":"IFERROR(VLOOKUP(B279,[2]Sheet4!$F$2:$J$364,5,FALSE),\"\")","v":""}]
[null,null,{"$f":"IFERROR(VLOOKUP(B280,[2]Sheet4!$F$2:$J$364,2,FALSE),\"\")","v":""},{"$f":"IFERROR(VLOOKUP(B280,[2]Sheet4!$F$2:$J$364,3,FALSE),\"\")","v":""},{"$f":"IFERROR(VLOOKUP(B280,[2]Sheet4!$F$2:$J$364,4,FALSE),\"\")","v":""},{"$f":"IFERROR(VLOOKUP(B280,[2]Sheet4!$F$2:$J$364,5,FALSE),\"\")","v":""}]
[null,null,{"$f":"IFERROR(VLOOKUP(B281,[2]Sheet4!$F$2:$J$364,2,FALSE),\"\")","v":""},{"$f":"IFERROR(VLOOKUP(B281,[2]Sheet4!$F$2:$J$364,3,FALSE),\"\")","v":""},{"$f":"IFERROR(VLOOKUP(B281,[2]Sheet4!$F$2:$J$364,4,FALSE),\"\")","v":""},{"$f":"IFERROR(VLOOKUP(B281,[2]Sheet4!$F$2:$J$364,5,FALSE),\"\")","v":""}]
[null,null,{"$f":"IFERROR(VLOOKUP(B282,[2]Sheet4!$F$2:$J$364,2,FALSE),\"\")","v":""},{"$f":"IFERROR(VLOOKUP(B282,[2]Sheet4!$F$2:$J$364,3,FALSE),\"\")","v":""},{"$f":"IFERROR(VLOOKUP(B282,[2]Sheet4!$F$2:$J$364,4,FALSE),\"\")","v":""},{"$f":"IFERROR(VLOOKUP(B282,[2]Sheet4!$F$2:$J$364,5,FALSE),\"\")","v":""}]
[null,null,{"$f":"IFERROR(VLOOKUP(B283,[2]Sheet4!$F$2:$J$364,2,FALSE),\"\")","v":""},{"$f":"IFERROR(VLOOKUP(B283,[2]Sheet4!$F$2:$J$364,3,FALSE),\"\")","v":""},{"$f":"IFERROR(VLOOKUP(B283,[2]Sheet4!$F$2:$J$364,4,FALSE),\"\")","v":""},{"$f":"IFERROR(VLOOKUP(B283,[2]Sheet4!$F$2:$J$364,5,FALSE),\"\")","v":""}]
[null,null,{"$f":"IFERROR(VLOOKUP(B284,[2]Sheet4!$F$2:$J$364,2,FALSE),\"\")","v":""},{"$f":"IFERROR(VLOOKUP(B284,[2]Sheet4!$F$2:$J$364,3,FALSE),\"\")","v":""},{"$f":"IFERROR(VLOOKUP(B284,[2]Sheet4!$F$2:$J$364,4,FALSE),\"\")","v":""},{"$f":"IFERROR(VLOOKUP(B284,[2]Sheet4!$F$2:$J$364,5,FALSE),\"\")","v":""}]
[null,null,{"$f":"IFERROR(VLOOKUP(B285,[2]Sheet4!$F$2:$J$364,2,FALSE),\"\")","v":""},{"$f":"IFERROR(VLOOKUP(B285,[2]Sheet4!$F$2:$J$364,3,FALSE),\"\")","v":""},{"$f":"IFERROR(VLOOKUP(B285,[2]Sheet4!$F$2:$J$364,4,FALSE),\"\")","v":""},{"$f":"IFERROR(VLOOKUP(B285,[2]Sheet4!$F$2:$J$364,5,FALSE),\"\")","v":""}]
[null,null,{"$f":"IFERROR(VLOOKUP(B286,[2]Sheet4!$F$2:$J$364,2,FALSE),\"\")","v":""},{"$f":"IFERROR(VLOOKUP(B286,[2]Sheet4!$F$2:$J$364,3,FALSE),\"\")","v":""},{"$f":"IFERROR(VLOOKUP(B286,[2]Sheet4!$F$2:$J$364,4,FALSE),\"\")","v":""},{"$f":"IFERROR(VLOOKUP(B286,[2]Sheet4!$F$2:$J$364,5,FALSE),\"\")","v":""}]
[null,null,{"$f":"IFERROR(VLOOKUP(B287,[2]Sheet4!$F$2:$J$364,2,FALSE),\"\")","v":""},{"$f":"IFERROR(VLOOKUP(B287,[2]Sheet4!$F$2:$J$364,3,FALSE),\"\")","v":""},{"$f":"IFERROR(VLOOKUP(B287,[2]Sheet4!$F$2:$J$364,4,FALSE),\"\")","v":""},{"$f":"IFERROR(VLOOKUP(B287,[2]Sheet4!$F$2:$J$364,5,FALSE),\"\")","v":""}]
[null,null,{"$f":"IFERROR(VLOOKUP(B288,[2]Sheet4!$F$2:$J$364,2,FALSE),\"\")","v":""},{"$f":"IFERROR(VLOOKUP(B288,[2]Sheet4!$F$2:$J$364,3,FALSE),\"\")","v":""},{"$f":"IFERROR(VLOOKUP(B288,[2]Sheet4!$F$2:$J$364,4,FALSE),\"\")","v":""},{"$f":"IFERROR(VLOOKUP(B288,[2]Sheet4!$F$2:$J$364,5,FALSE),\"\")","v":""}]
[null,null,{"$f":"IFERROR(VLOOKUP(B289,[2]Sheet4!$F$2:$J$364,2,FALSE),\"\")","v":""},{"$f":"IFERROR(VLOOKUP(B289,[2]Sheet4!$F$2:$J$364,3,FALSE),\"\")","v":""},{"$f":"IFERROR(VLOOKUP(B289,[2]Sheet4!$F$2:$J$364,4,FALSE),\"\")","v":""},{"$f":"IFERROR(VLOOKUP(B289,[2]Sheet4!$F$2:$J$364,5,FALSE),\"\")","v":""}]
[null,null,{"$f":"IFERROR(VLOOKUP(B290,[2]Sheet4!$F$2:$J$364,2,FALSE),\"\")","v":""},{"$f":"IFERROR(VLOOKUP(B290,[2]Sheet4!$F$2:$J$364,3,FALSE),\"\")","v":""},{"$f":"IFERROR(VLOOKUP(B290,[2]Sheet4!$F$2:$J$364,4,FALSE),\"\")","v":""},{"$f":"IFERROR(VLOOKUP(B290,[2]Sheet4!$F$2:$J$364,5,FALSE),\"\")","v":""}]
[null,null,{"$f":"IFERROR(VLOOKUP(B291,[2]Sheet4!$F$2:$J$364,2,FALSE),\"\")","v":""},{"$f":"IFERROR(VLOOKUP(B291,[2]Sheet4!$F$2:$J$364,3,FALSE),\"\")","v":""},{"$f":"IFERROR(VLOOKUP(B291,[2]Sheet4!$F$2:$J$364,4,FALSE),\"\")","v":""},{"$f":"IFERROR(VLOOKUP(B291,[2]Sheet4!$F$2:$J$364,5,FALSE),\"\")","v":""}]
[null,null,{"$f":"IFERROR(VLOOKUP(B292,[2]Sheet4!$F$2:$J$364,2,FALSE),\"\")","v":""},{"$f":"IFERROR(VLOOKUP(B292,[2]Sheet4!$F$2:$J$364,3,FALSE),\"\")","v":""},{"$f":"IFERROR(VLOOKUP(B292,[2]Sheet4!$F$2:$J$364,4,FALSE),\"\")","v":""},{"$f":"IFERROR(VLOOKUP(B292,[2]Sheet4!$F$2:$J$364,5,FALSE),\"\")","v":""}]
[null,null,{"$f":"IFERROR(VLOOKUP(B293,[2]Sheet4!$F$2:$J$364,2,FALSE),\"\")","v":""},{"$f":"IFERROR(VLOOKUP(B293,[2]Sheet4!$F$2:$J$364,3,FALSE),\"\")","v":""},{"$f":"IFERROR(VLOOKUP(B293,[2]Sheet4!$F$2:$J$364,4,FALSE),\"\")","v":""},{"$f":"IFERROR(VLOOKUP(B293,[2]Sheet4!$F$2:$J$364,5,FALSE),\"\")","v":""}]
[null,null,{"$f":"IFERROR(VLOOKUP(B294,[2]Sheet4!$F$2:$J$364,2,FALSE),\"\")","v":""},{"$f":"IFERROR(VLOOKUP(B294,[2]Sheet4!$F$2:$J$364,3,FALSE),\"\")","v":""},{"$f":"IFERROR(VLOOKUP(B294,[2]Sheet4!$F$2:$J$364,4,FALSE),\"\")","v":""},{"$f":"IFERROR(VLOOKUP(B294,[2]Sheet4!$F$2:$J$364,5,FALSE),\"\")","v":""}]
[null,null,{"$f":"IFERROR(VLOOKUP(B295,[2]Sheet4!$F$2:$J$364,2,FALSE),\"\")","v":""},{"$f":"IFERROR(VLOOKUP(B295,[2]Sheet4!$F$2:$J$364,3,FALSE),\"\")","v":""},{"$f":"IFERROR(VLOOKUP(B295,[2]Sheet4!$F$2:$J$364,4,FALSE),\"\")","v":""},{"$f":"IFERROR(VLOOKUP(B295,[2]Sheet4!$F$2:$J$364,5,FALSE),\"\")","v":""}]
[null,null,{"$f":"IFERROR(VLOOKUP(B296,[2]Sheet4!$F$2:$J$364,2,FALSE),\"\")","v":""},{"$f":"IFERROR(VLOOKUP(B296,[2]Sheet4!$F$2:$J$364,3,FALSE),\"\")","v":""},{"$f":"IFERROR(VLOOKUP(B296,[2]Sheet4!$F$2:$J$364,4,FALSE),\"\")","v":""},{"$f":"IFERROR(VLOOKUP(B296,[2]Sheet4!$F$2:$J$364,5,FALSE),\"\")","v":""}]
[null,null,{"$f":"IFERROR(VLOOKUP(B297,[2]Sheet4!$F$2:$J$364,2,FALSE),\"\")","v":""},{"$f":"IFERROR(VLOOKUP(B297,[2]Sheet4!$F$2:$J$364,3,FALSE),\"\")","v":""},{"$f":"IFERROR(VLOOKUP(B297,[2]Sheet4!$F$2:$J$364,4,FALSE),\"\")","v":""},{"$f":"IFERROR(VLOOKUP(B297,[2]Sheet4!$F$2:$J$364,5,FALSE),\"\")","v":""}]
[null,null,{"$f":"IFERROR(VLOOKUP(B298,[2]Sheet4!$F$2:$J$364,2,FALSE),\"\")","v":""},{"$f":"IFERROR(VLOOKUP(B298,[2]Sheet4!$F$2:$J$364,3,FALSE),\"\")","v":""},{"$f":"IFERROR(VLOOKUP(B298,[2]Sheet4!$F$2:$J$364,4,FALSE),\"\")","v":""},{"$f":"IFERROR(VLOOKUP(B298,[2]Sheet4!$F$2:$J$364,5,FALSE),\"\")","v":""}]
[null,null,{"$f":"IFERROR(VLOOKUP(B299,[2]Sheet4!$F$2:$J$364,2,FALSE),\"\")","v":""},{"$f":"IFERROR(VLOOKUP(B299,[2]Sheet4!$F$2:$J$364,3,FALSE),\"\")","v":""},{"$f":"IFERROR(VLOOKUP(B299,[2]Sheet4!$F$2:$J$364,4,FALSE),\"\")","v":""},{"$f":"IFERROR(VLOOKUP(B299,[2]Sheet4!$F$2:$J$364,5,FALSE),\"\")","v":""}]
[null,null,{"$f":"IFERROR(VLOOKUP(B300,[2]Sheet4!$F$2:$J$364,2,FALSE),\"\")","v":""},{"$f":"IFERROR(VLOOKUP(B300,[2]Sheet4!$F$2:$J$364,3,FALSE),\"\")","v":""},{"$f":"IFERROR(VLOOKUP(B300,[2]Sheet4!$F$2:$J$364,4,FALSE),\"\")","v":""},{"$f":"IFERROR(VLOOKUP(B300,[2]Sheet4!$F$2:$J$364,5,FALSE),\"\")","v":""}]
[null,null,{"$f":"IFERROR(VLOOKUP(B301,[2]Sheet4!$F$2:$J$364,2,FALSE),\"\")","v":""},{"$f":"IFERROR(VLOOKUP(B301,[2]Sheet4!$F$2:$J$364,3,FALSE),\"\")","v":""},{"$f":"IFERROR(VLOOKUP(B301,[2]Sheet4!$F$2:$J$364,4,FALSE),\"\")","v":""},{"$f":"IFERROR(VLOOKUP(B301,[2]Sheet4!$F$2:$J$364,5,FALSE),\"\")","v":""}]
[null,null,{"$f":"IFERROR(VLOOKUP(B302,[2]Sheet4!$F$2:$J$364,2,FALSE),\"\")","v":""},{"$f":"IFERROR(VLOOKUP(B302,[2]Sheet4!$F$2:$J$364,3,FALSE),\"\")","v":""},{"$f":"IFERROR(VLOOKUP(B302,[2]Sheet4!$F$2:$J$364,4,FALSE),\"\")","v":""},{"$f":"IFERROR(VLOOKUP(B302,[2]Sheet4!$F$2:$J$364,5,FALSE),\"\")","v":""}]
[null,null,{"$f":"IFERROR(VLOOKUP(B303,[2]Sheet4!$F$2:$J$364,2,FALSE),\"\")","v":""},{"$f":"IFERROR(VLOOKUP(B303,[2]Sheet4!$F$2:$J$364,3,FALSE),\"\")","v":""},{"$f":"IFERROR(VLOOKUP(B303,[2]Sheet4!$F$2:$J$364,4,FALSE),\"\")","v":""},{"$f":"IFERROR(VLOOKUP(B303,[2]Sheet4!$F$2:$J$364,5,FALSE),\"\")","v":""}]
[null,null,{"$f":"IFERROR(VLOOKUP(B304,[2]Sheet4!$F$2:$J$364,2,FALSE),\"\")","v":""},{"$f":"IFERROR(VLOOKUP(B304,[2]Sheet4!$F$2:$J$364,3,FALSE),\"\")","v":""},{"$f":"IFERROR(VLOOKUP(B304,[2]Sheet4!$F$2:$J$364,4,FALSE),\"\")","v":""},{"$f":"IFERROR(VLOOKUP(B304,[2]Sheet4!$F$2:$J$364,5,FALSE),\"\")","v":""}]
[null,null,{"$f":"IFERROR(VLOOKUP(B305,[2]Sheet4!$F$2:$J$364,2,FALSE),\"\")","v":""},{"$f":"IFERROR(VLOOKUP(B305,[2]Sheet4!$F$2:$J$364,3,FALSE),\"\")","v":""},{"$f":"IFERROR(VLOOKUP(B305,[2]Sheet4!$F$2:$J$364,4,FALSE),\"\")","v":""},{"$f":"IFERROR(VLOOKUP(B305,[2]Sheet4!$F$2:$J$364,5,FALSE),\"\")","v":""}]
[null,null,{"$f":"IFERROR(VLOOKUP(B306,[2]Sheet4!$F$2:$J$364,2,FALSE),\"\")","v":""},{"$f":"IFERROR(VLOOKUP(B306,[2]Sheet4!$F$2:$J$364,3,FALSE),\"\")","v":""},{"$f":"IFERROR(VLOOKUP(B306,[2]Sheet4!$F$2:$J$364,4,FALSE),\"\")","v":""},{"$f":"IFERROR(VLOOKUP(B306,[2]Sheet4!$F$2:$J$364,5,FALSE),\"\")","v":""}]
[null,null,{"$f":"IFERROR(VLOOKUP(B307,[2]Sheet4!$F$2:$J$364,2,FALSE),\"\")","v":""},{"$f":"IFERROR(VLOOKUP(B307,[2]Sheet4!$F$2:$J$364,3,FALSE),\"\")","v":""},{"$f":"IFERROR(VLOOKUP(B307,[2]Sheet4!$F$2:$J$364,4,FALSE),\"\")","v":""},{"$f":"IFERROR(VLOOKUP(B307,[2]Sheet4!$F$2:$J$364,5,FALSE),\"\")","v":""}]
[null,null,{"$f":"IFERROR(VLOOKUP(B308,[2]Sheet4!$F$2:$J$364,2,FALSE),\"\")","v":""},{"$f":"IFERROR(VLOOKUP(B308,[2]Sheet4!$F$2:$J$364,3,FALSE),\"\")","v":""},{"$f":"IFERROR(VLOOKUP(B308,[2]Sheet4!$F$2:$J$364,4,FALSE),\"\")","v":""},{"$f":"IFERROR(VLOOKUP(B308,[2]Sheet4!$F$2:$J$364,5,FALSE),\"\")","v":""}]
[null,null,{"$f":"IFERROR(VLOOKUP(B309,[2]Sheet4!$F$2:$J$364,2,FALSE),\"\")","v":""},{"$f":"IFERROR(VLOOKUP(B309,[2]Sheet4!$F$2:$J$364,3,FALSE),\"\")","v":""},{"$f":"IFERROR(VLOOKUP(B309,[2]Sheet4!$F$2:$J$364,4,FALSE),\"\")","v":""},{"$f":"IFERROR(VLOOKUP(B309,[2]Sheet4!$F$2:$J$364,5,FALSE),\"\")","v":""}]
[null,null,{"$f":"IFERROR(VLOOKUP(B310,[2]Sheet4!$F$2:$J$364,2,FALSE),\"\")","v":""},{"$f":"IFERROR(VLOOKUP(B310,[2]Sheet4!$F$2:$J$364,3,FALSE),\"\")","v":""},{"$f":"IFERROR(VLOOKUP(B310,[2]Sheet4!$F$2:$J$364,4,FALSE),\"\")","v":""},{"$f":"IFERROR(VLOOKUP(B310,[2]Sheet4!$F$2:$J$364,5,FALSE),\"\")","v":""}]
[null,null,{"$f":"IFERROR(VLOOKUP(B311,[2]Sheet4!$F$2:$J$364,2,FALSE),\"\")","v":""},{"$f":"IFERROR(VLOOKUP(B311,[2]Sheet4!$F$2:$J$364,3,FALSE),\"\")","v":""},{"$f":"IFERROR(VLOOKUP(B311,[2]Sheet4!$F$2:$J$364,4,FALSE),\"\")","v":""},{"$f":"IFERROR(VLOOKUP(B311,[2]Sheet4!$F$2:$J$364,5,FALSE),\"\")","v":""}]
[null,null,{"$f":"IFERROR(VLOOKUP(B312,[2]Sheet4!$F$2:$J$364,2,FALSE),\"\")","v":""},{"$f":"IFERROR(VLOOKUP(B312,[2]Sheet4!$F$2:$J$364,3,FALSE),\"\")","v":""},{"$f":"IFERROR(VLOOKUP(B312,[2]Sheet4!$F$2:$J$364,4,FALSE),\"\")","v":""},{"$f":"IFERROR(VLOOKUP(B312,[2]Sheet4!$F$2:$J$364,5,FALSE),\"\")","v":""}]
[null,null,{"$f":"IFERROR(VLOOKUP(B313,[2]Sheet4!$F$2:$J$364,2,FALSE),\"\")","v":""},{"$f":"IFERROR(VLOOKUP(B313,[2]Sheet4!$F$2:$J$364,3,FALSE),\"\")","v":""},{"$f":"IFERROR(VLOOKUP(B313,[2]Sheet4!$F$2:$J$364,4,FALSE),\"\")","v":""},{"$f":"IFERROR(VLOOKUP(B313,[2]Sheet4!$F$2:$J$364,5,FALSE),\"\")","v":""}]
[null,null,{"$f":"IFERROR(VLOOKUP(B314,[2]Sheet4!$F$2:$J$364,2,FALSE),\"\")","v":""},{"$f":"IFERROR(VLOOKUP(B314,[2]Sheet4!$F$2:$J$364,3,FALSE),\"\")","v":""},{"$f":"IFERROR(VLOOKUP(B314,[2]Sheet4!$F$2:$J$364,4,FALSE),\"\")","v":""},{"$f":"IFERROR(VLOOKUP(B314,[2]Sheet4!$F$2:$J$364,5,FALSE),\"\")","v":""}]
[null,null,{"$f":"IFERROR(VLOOKUP(B315,[2]Sheet4!$F$2:$J$364,2,FALSE),\"\")","v":""},{"$f":"IFERROR(VLOOKUP(B315,[2]Sheet4!$F$2:$J$364,3,FALSE),\"\")","v":""},{"$f":"IFERROR(VLOOKUP(B315,[2]Sheet4!$F$2:$J$364,4,FALSE),\"\")","v":""},{"$f":"IFERROR(VLOOKUP(B315,[2]Sheet4!$F$2:$J$364,5,FALSE),\"\")","v":""}]
[null,null,{"$f":"IFERROR(VLOOKUP(B316,[2]Sheet4!$F$2:$J$364,2,FALSE),\"\")","v":""},{"$f":"IFERROR(VLOOKUP(B316,[2]Sheet4!$F$2:$J$364,3,FALSE),\"\")","v":""},{"$f":"IFERROR(VLOOKUP(B316,[2]Sheet4!$F$2:$J$364,4,FALSE),\"\")","v":""},{"$f":"IFERROR(VLOOKUP(B316,[2]Sheet4!$F$2:$J$364,5,FALSE),\"\")","v":""}]
[null,null,{"$f":"IFERROR(VLOOKUP(B317,[2]Sheet4!$F$2:$J$364,2,FALSE),\"\")","v":""},{"$f":"IFERROR(VLOOKUP(B317,[2]Sheet4!$F$2:$J$364,3,FALSE),\"\")","v":""},{"$f":"IFERROR(VLOOKUP(B317,[2]Sheet4!$F$2:$J$364,4,FALSE),\"\")","v":""},{"$f":"IFERROR(VLOOKUP(B317,[2]Sheet4!$F$2:$J$364,5,FALSE),\"\")","v":""}]
[null,null,{"$f":"IFERROR(VLOOKUP(B318,[2]Sheet4!$F$2:$J$364,2,FALSE),\"\")","v":""},{"$f":"IFERROR(VLOOKUP(B318,[2]Sheet4!$F$2:$J$364,3,FALSE),\"\")","v":""},{"$f":"IFERROR(VLOOKUP(B318,[2]Sheet4!$F$2:$J$364,4,FALSE),\"\")","v":""},{"$f":"IFERROR(VLOOKUP(B318,[2]Sheet4!$F$2:$J$364,5,FALSE),\"\")","v":""}]
[null,null,{"$f":"IFERROR(VLOOKUP(B319,[2]Sheet4!$F$2:$J$364,2,FALSE),\"\")","v":""},{"$f":"IFERROR(VLOOKUP(B319,[2]Sheet4!$F$2:$J$364,3,FALSE),\"\")","v":""},{"$f":"IFERROR(VLOOKUP(B319,[2]Sheet4!$F$2:$J$364,4,FALSE),\"\")","v":""},{"$f":"IFERROR(VLOOKUP(B319,[2]Sheet4!$F$2:$J$364,5,FALSE),\"\")","v":""}]
[null,null,{"$f":"IFERROR(VLOOKUP(B320,[2]Sheet4!$F$2:$J$364,2,FALSE),\"\")","v":""},{"$f":"IFERROR(VLOOKUP(B320,[2]Sheet4!$F$2:$J$364,3,FALSE),\"\")","v":""},{"$f":"IFERROR(VLOOKUP(B320,[2]Sheet4!$F$2:$J$364,4,FALSE),\"\")","v":""},{"$f":"IFERROR(VLOOKUP(B320,[2]Sheet4!$F$2:$J$364,5,FALSE),\"\")","v":""}]
[null,null,{"$f":"IFERROR(VLOOKUP(B321,[2]Sheet4!$F$2:$J$364,2,FALSE),\"\")","v":""},{"$f":"IFERROR(VLOOKUP(B321,[2]Sheet4!$F$2:$J$364,3,FALSE),\"\")","v":""},{"$f":"IFERROR(VLOOKUP(B321,[2]Sheet4!$F$2:$J$364,4,FALSE),\"\")","v":""},{"$f":"IFERROR(VLOOKUP(B321,[2]Sheet4!$F$2:$J$364,5,FALSE),\"\")","v":""}]
[null,null,{"$f":"IFERROR(VLOOKUP(B322,[2]Sheet4!$F$2:$J$364,2,FALSE),\"\")","v":""},{"$f":"IFERROR(VLOOKUP(B322,[2]Sheet4!$F$2:$J$364,3,FALSE),\"\")","v":""},{"$f":"IFERROR(VLOOKUP(B322,[2]Sheet4!$F$2:$J$364,4,FALSE),\"\")","v":""},{"$f":"IFERROR(VLOOKUP(B322,[2]Sheet4!$F$2:$J$364,5,FALSE),\"\")","v":""}]
[null,null,{"$f":"IFERROR(VLOOKUP(B323,[2]Sheet4!$F$2:$J$364,2,FALSE),\"\")","v":""},{"$f":"IFERROR(VLOOKUP(B323,[2]Sheet4!$F$2:$J$364,3,FALSE),\"\")","v":""},{"$f":"IFERROR(VLOOKUP(B323,[2]Sheet4!$F$2:$J$364,4,FALSE),\"\")","v":""},{"$f":"IFERROR(VLOOKUP(B323,[2]Sheet4!$F$2:$J$364,5,FALSE),\"\")","v":""}]
[null,null,{"$f":"IFERROR(VLOOKUP(B324,[2]Sheet4!$F$2:$J$364,2,FALSE),\"\")","v":""},{"$f":"IFERROR(VLOOKUP(B324,[2]Sheet4!$F$2:$J$364,3,FALSE),\"\")","v":""},{"$f":"IFERROR(VLOOKUP(B324,[2]Sheet4!$F$2:$J$364,4,FALSE),\"\")","v":""},{"$f":"IFERROR(VLOOKUP(B324,[2]Sheet4!$F$2:$J$364,5,FALSE),\"\")","v":""}]
[null,null,{"$f":"IFERROR(VLOOKUP(B325,[2]Sheet4!$F$2:$J$364,2,FALSE),\"\")","v":""},{"$f":"IFERROR(VLOOKUP(B325,[2]Sheet4!$F$2:$J$364,3,FALSE),\"\")","v":""},{"$f":"IFERROR(VLOOKUP(B325,[2]Sheet4!$F$2:$J$364,4,FALSE),\"\")","v":""},{"$f":"IFERROR(VLOOKUP(B325,[2]Sheet4!$F$2:$J$364,5,FALSE),\"\")","v":""}]
[null,null,{"$f":"IFERROR(VLOOKUP(B326,[2]Sheet4!$F$2:$J$364,2,FALSE),\"\")","v":""},{"$f":"IFERROR(VLOOKUP(B326,[2]Sheet4!$F$2:$J$364,3,FALSE),\"\")","v":""},{"$f":"IFERROR(VLOOKUP(B326,[2]Sheet4!$F$2:$J$364,4,FALSE),\"\")","v":""},{"$f":"IFERROR(VLOOKUP(B326,[2]Sheet4!$F$2:$J$364,5,FALSE),\"\")","v":""}]
[null,null,{"$f":"IFERROR(VLOOKUP(B327,[2]Sheet4!$F$2:$J$364,2,FALSE),\"\")","v":""},{"$f":"IFERROR(VLOOKUP(B327,[2]Sheet4!$F$2:$J$364,3,FALSE),\"\")","v":""},{"$f":"IFERROR(VLOOKUP(B327,[2]Sheet4!$F$2:$J$364,4,FALSE),\"\")","v":""},{"$f":"IFERROR(VLOOKUP(B327,[2]Sheet4!$F$2:$J$364,5,FALSE),\"\")","v":""}]
[null,null,{"$f":"IFERROR(VLOOKUP(B328,[2]Sheet4!$F$2:$J$364,2,FALSE),\"\")","v":""},{"$f":"IFERROR(VLOOKUP(B328,[2]Sheet4!$F$2:$J$364,3,FALSE),\"\")","v":""},{"$f":"IFERROR(VLOOKUP(B328,[2]Sheet4!$F$2:$J$364,4,FALSE),\"\")","v":""},{"$f":"IFERROR(VLOOKUP(B328,[2]Sheet4!$F$2:$J$364,5,FALSE),\"\")","v":""}]
[null,null,{"$f":"IFERROR(VLOOKUP(B329,[2]Sheet4!$F$2:$J$364,2,FALSE),\"\")","v":""},{"$f":"IFERROR(VLOOKUP(B329,[2]Sheet4!$F$2:$J$364,3,FALSE),\"\")","v":""},{"$f":"IFERROR(VLOOKUP(B329,[2]Sheet4!$F$2:$J$364,4,FALSE),\"\")","v":""},{"$f":"IFERROR(VLOOKUP(B329,[2]Sheet4!$F$2:$J$364,5,FALSE),\"\")","v":""}]
[null,null,{"$f":"IFERROR(VLOOKUP(B330,[2]Sheet4!$F$2:$J$364,2,FALSE),\"\")","v":""},{"$f":"IFERROR(VLOOKUP(B330,[2]Sheet4!$F$2:$J$364,3,FALSE),\"\")","v":""},{"$f":"IFERROR(VLOOKUP(B330,[2]Sheet4!$F$2:$J$364,4,FALSE),\"\")","v":""},{"$f":"IFERROR(VLOOKUP(B330,[2]Sheet4!$F$2:$J$364,5,FALSE),\"\")","v":""}]
[null,null,{"$f":"IFERROR(VLOOKUP(B331,[2]Sheet4!$F$2:$J$364,2,FALSE),\"\")","v":""},{"$f":"IFERROR(VLOOKUP(B331,[2]Sheet4!$F$2:$J$364,3,FALSE),\"\")","v":""},{"$f":"IFERROR(VLOOKUP(B331,[2]Sheet4!$F$2:$J$364,4,FALSE),\"\")","v":""},{"$f":"IFERROR(VLOOKUP(B331,[2]Sheet4!$F$2:$J$364,5,FALSE),\"\")","v":""}]
[null,null,{"$f":"IFERROR(VLOOKUP(B332,[2]Sheet4!$F$2:$J$364,2,FALSE),\"\")","v":""},{"$f":"IFERROR(VLOOKUP(B332,[2]Sheet4!$F$2:$J$364,3,FALSE),\"\")","v":""},{"$f":"IFERROR(VLOOKUP(B332,[2]Sheet4!$F$2:$J$364,4,FALSE),\"\")","v":""},{"$f":"IFERROR(VLOOKUP(B332,[2]Sheet4!$F$2:$J$364,5,FALSE),\"\")","v":""}]
[null,null,{"$f":"IFERROR(VLOOKUP(B333,[2]Sheet4!$F$2:$J$364,2,FALSE),\"\")","v":""},{"$f":"IFERROR(VLOOKUP(B333,[2]Sheet4!$F$2:$J$364,3,FALSE),\"\")","v":""},{"$f":"IFERROR(VLOOKUP(B333,[2]Sheet4!$F$2:$J$364,4,FALSE),\"\")","v":""},{"$f":"IFERROR(VLOOKUP(B333,[2]Sheet4!$F$2:$J$364,5,FALSE),\"\")","v":""}]
[null,null,{"$f":"IFERROR(VLOOKUP(B334,[2]Sheet4!$F$2:$J$364,2,FALSE),\"\")","v":""},{"$f":"IFERROR(VLOOKUP(B334,[2]Sheet4!$F$2:$J$364,3,FALSE),\"\")","v":""},{"$f":"IFERROR(VLOOKUP(B334,[2]Sheet4!$F$2:$J$364,4,FALSE),\"\")","v":""},{"$f":"IFERROR(VLOOKUP(B334,[2]Sheet4!$F$2:$J$364,5,FALSE),\"\")","v":""}]
[null,null,{"$f":"IFERROR(VLOOKUP(B335,[2]Sheet4!$F$2:$J$364,2,FALSE),\"\")","v":""},{"$f":"IFERROR(VLOOKUP(B335,[2]Sheet4!$F$2:$J$364,3,FALSE),\"\")","v":""},{"$f":"IFERROR(VLOOKUP(B335,[2]Sheet4!$F$2:$J$364,4,FALSE),\"\")","v":""},{"$f":"IFERROR(VLOOKUP(B335,[2]Sheet4!$F$2:$J$364,5,FALSE),\"\")","v":""}]
[null,null,{"$f":"IFERROR(VLOOKUP(B336,[2]Sheet4!$F$2:$J$364,2,FALSE),\"\")","v":""},{"$f":"IFERROR(VLOOKUP(B336,[2]Sheet4!$F$2:$J$364,3,FALSE),\"\")","v":""},{"$f":"IFERROR(VLOOKUP(B336,[2]Sheet4!$F$2:$J$364,4,FALSE),\"\")","v":""},{"$f":"IFERROR(VLOOKUP(B336,[2]Sheet4!$F$2:$J$364,5,FALSE),\"\")","v":""}]
[null,null,{"$f":"IFERROR(VLOOKUP(B337,[2]Sheet4!$F$2:$J$364,2,FALSE),\"\")","v":""},{"$f":"IFERROR(VLOOKUP(B337,[2]Sheet4!$F$2:$J$364,3,FALSE),\"\")","v":""},{"$f":"IFERROR(VLOOKUP(B337,[2]Sheet4!$F$2:$J$364,4,FALSE),\"\")","v":""},{"$f":"IFERROR(VLOOKUP(B337,[2]Sheet4!$F$2:$J$364,5,FALSE),\"\")","v":""}]
[null,null,{"$f":"IFERROR(VLOOKUP(B338,[2]Sheet4!$F$2:$J$364,2,FALSE),\"\")","v":""},{"$f":"IFERROR(VLOOKUP(B338,[2]Sheet4!$F$2:$J$364,3,FALSE),\"\")","v":""},{"$f":"IFERROR(VLOOKUP(B338,[2]Sheet4!$F$2:$J$364,4,FALSE),\"\")","v":""},{"$f":"IFERROR(VLOOKUP(B338,[2]Sheet4!$F$2:$J$364,5,FALSE),\"\")","v":""}]
[null,null,{"$f":"IFERROR(VLOOKUP(B339,[2]Sheet4!$F$2:$J$364,2,FALSE),\"\")","v":""},{"$f":"IFERROR(VLOOKUP(B339,[2]Sheet4!$F$2:$J$364,3,FALSE),\"\")","v":""},{"$f":"IFERROR(VLOOKUP(B339,[2]Sheet4!$F$2:$J$364,4,FALSE),\"\")","v":""},{"$f":"IFERROR(VLOOKUP(B339,[2]Sheet4!$F$2:$J$364,5,FALSE),\"\")","v":""}]
[null,null,{"$f":"IFERROR(VLOOKUP(B340,[2]Sheet4!$F$2:$J$364,2,FALSE),\"\")","v":""},{"$f":"IFERROR(VLOOKUP(B340,[2]Sheet4!$F$2:$J$364,3,FALSE),\"\")","v":""},{"$f":"IFERROR(VLOOKUP(B340,[2]Sheet4!$F$2:$J$364,4,FALSE),\"\")","v":""},{"$f":"IFERROR(VLOOKUP(B340,[2]Sheet4!$F$2:$J$364,5,FALSE),\"\")","v":""}]
[null,null,{"$f":"IFERROR(VLOOKUP(B341,[2]Sheet4!$F$2:$J$364,2,FALSE),\"\")","v":""},{"$f":"IFERROR(VLOOKUP(B341,[2]Sheet4!$F$2:$J$364,3,FALSE),\"\")","v":""},{"$f":"IFERROR(VLOOKUP(B341,[2]Sheet4!$F$2:$J$364,4,FALSE),\"\")","v":""},{"$f":"IFERROR(VLOOKUP(B341,[2]Sheet4!$F$2:$J$364,5,FALSE),\"\")","v":""}]
[null,null,{"$f":"IFERROR(VLOOKUP(B342,[2]Sheet4!$F$2:$J$364,2,FALSE),\"\")","v":""},{"$f":"IFERROR(VLOOKUP(B342,[2]Sheet4!$F$2:$J$364,3,FALSE),\"\")","v":""},{"$f":"IFERROR(VLOOKUP(B342,[2]Sheet4!$F$2:$J$364,4,FALSE),\"\")","v":""},{"$f":"IFERROR(VLOOKUP(B342,[2]Sheet4!$F$2:$J$364,5,FALSE),\"\")","v":""}]
[null,null,{"$f":"IFERROR(VLOOKUP(B343,[2]Sheet4!$F$2:$J$364,2,FALSE),\"\")","v":""},{"$f":"IFERROR(VLOOKUP(B343,[2]Sheet4!$F$2:$J$364,3,FALSE),\"\")","v":""},{"$f":"IFERROR(VLOOKUP(B343,[2]Sheet4!$F$2:$J$364,4,FALSE),\"\")","v":""},{"$f":"IFERROR(VLOOKUP(B343,[2]Sheet4!$F$2:$J$364,5,FALSE),\"\")","v":""}]
[null,null,{"$f":"IFERROR(VLOOKUP(B344,[2]Sheet4!$F$2:$J$364,2,FALSE),\"\")","v":""},{"$f":"IFERROR(VLOOKUP(B344,[2]Sheet4!$F$2:$J$364,3,FALSE),\"\")","v":""},{"$f":"IFERROR(VLOOKUP(B344,[2]Sheet4!$F$2:$J$364,4,FALSE),\"\")","v":""},{"$f":"IFERROR(VLOOKUP(B344,[2]Sheet4!$F$2:$J$364,5,FALSE),\"\")","v":""}]
[null,null,{"$f":"IFERROR(VLOOKUP(B345,[2]Sheet4!$F$2:$J$364,2,FALSE),\"\")","v":""},{"$f":"IFERROR(VLOOKUP(B345,[2]Sheet4!$F$2:$J$364,3,FALSE),\"\")","v":""},{"$f":"IFERROR(VLOOKUP(B345,[2]Sheet4!$F$2:$J$364,4,FALSE),\"\")","v":""},{"$f":"IFERROR(VLOOKUP(B345,[2]Sheet4!$F$2:$J$364,5,FALSE),\"\")","v":""}]
[null,null,{"$f":"IFERROR(VLOOKUP(B346,[2]Sheet4!$F$2:$J$364,2,FALSE),\"\")","v":""},{"$f":"IFERROR(VLOOKUP(B346,[2]Sheet4!$F$2:$J$364,3,FALSE),\"\")","v":""},{"$f":"IFERROR(VLOOKUP(B346,[2]Sheet4!$F$2:$J$364,4,FALSE),\"\")","v":""},{"$f":"IFERROR(VLOOKUP(B346,[2]Sheet4!$F$2:$J$364,5,FALSE),\"\")","v":""}]
[null,null,{"$f":"IFERROR(VLOOKUP(B347,[2]Sheet4!$F$2:$J$364,2,FALSE),\"\")","v":""},{"$f":"IFERROR(VLOOKUP(B347,[2]Sheet4!$F$2:$J$364,3,FALSE),\"\")","v":""},{"$f":"IFERROR(VLOOKUP(B347,[2]Sheet4!$F$2:$J$364,4,FALSE),\"\")","v":""},{"$f":"IFERROR(VLOOKUP(B347,[2]Sheet4!$F$2:$J$364,5,FALSE),\"\")","v":""}]
[null,null,{"$f":"IFERROR(VLOOKUP(B348,[2]Sheet4!$F$2:$J$364,2,FALSE),\"\")","v":""},{"$f":"IFERROR(VLOOKUP(B348,[2]Sheet4!$F$2:$J$364,3,FALSE),\"\")","v":""},{"$f":"IFERROR(VLOOKUP(B348,[2]Sheet4!$F$2:$J$364,4,FALSE),\"\")","v":""},{"$f":"IFERROR(VLOOKUP(B348,[2]Sheet4!$F$2:$J$364,5,FALSE),\"\")","v":""}]
[null,null,{"$f":"IFERROR(VLOOKUP(B349,[2]Sheet4!$F$2:$J$364,2,FALSE),\"\")","v":""},{"$f":"IFERROR(VLOOKUP(B349,[2]Sheet4!$F$2:$J$364,3,FALSE),\"\")","v":""},{"$f":"IFERROR(VLOOKUP(B349,[2]Sheet4!$F$2:$J$364,4,FALSE),\"\")","v":""},{"$f":"IFERROR(VLOOKUP(B349,[2]Sheet4!$F$2:$J$364,5,FALSE),\"\")","v":""}]
[null,null,{"$f":"IFERROR(VLOOKUP(B350,[2]Sheet4!$F$2:$J$364,2,FALSE),\"\")","v":""},{"$f":"IFERROR(VLOOKUP(B350,[2]Sheet4!$F$2:$J$364,3,FALSE),\"\")","v":""},{"$f":"IFERROR(VLOOKUP(B350,[2]Sheet4!$F$2:$J$364,4,FALSE),\"\")","v":""},{"$f":"IFERROR(VLOOKUP(B350,[2]Sheet4!$F$2:$J$364,5,FALSE),\"\")","v":""}]
[null,null,{"$f":"IFERROR(VLOOKUP(B351,[2]Sheet4!$F$2:$J$364,2,FALSE),\"\")","v":""},{"$f":"IFERROR(VLOOKUP(B351,[2]Sheet4!$F$2:$J$364,3,FALSE),\"\")","v":""},{"$f":"IFERROR(VLOOKUP(B351,[2]Sheet4!$F$2:$J$364,4,FALSE),\"\")","v":""},{"$f":"IFERROR(VLOOKUP(B351,[2]Sheet4!$F$2:$J$364,5,FALSE),\"\")","v":""}]
[null,null,{"$f":"IFERROR(VLOOKUP(B352,[2]Sheet4!$F$2:$J$364,2,FALSE),\"\")","v":""},{"$f":"IFERROR(VLOOKUP(B352,[2]Sheet4!$F$2:$J$364,3,FALSE),\"\")","v":""},{"$f":"IFERROR(VLOOKUP(B352,[2]Sheet4!$F$2:$J$364,4,FALSE),\"\")","v":""},{"$f":"IFERROR(VLOOKUP(B352,[2]Sheet4!$F$2:$J$364,5,FALSE),\"\")","v":""}]
[null,null,{"$f":"IFERROR(VLOOKUP(B353,[2]Sheet4!$F$2:$J$364,2,FALSE),\"\")","v":""},{"$f":"IFERROR(VLOOKUP(B353,[2]Sheet4!$F$2:$J$364,3,FALSE),\"\")","v":""},{"$f":"IFERROR(VLOOKUP(B353,[2]Sheet4!$F$2:$J$364,4,FALSE),\"\")","v":""},{"$f":"IFERROR(VLOOKUP(B353,[2]Sheet4!$F$2:$J$364,5,FALSE),\"\")","v":""}]
[null,null,{"$f":"IFERROR(VLOOKUP(B354,[2]Sheet4!$F$2:$J$364,2,FALSE),\"\")","v":""},{"$f":"IFERROR(VLOOKUP(B354,[2]Sheet4!$F$2:$J$364,3,FALSE),\"\")","v":""},{"$f":"IFERROR(VLOOKUP(B354,[2]Sheet4!$F$2:$J$364,4,FALSE),\"\")","v":""},{"$f":"IFERROR(VLOOKUP(B354,[2]Sheet4!$F$2:$J$364,5,FALSE),\"\")","v":""}]
[null,null,{"$f":"IFERROR(VLOOKUP(B355,[2]Sheet4!$F$2:$J$364,2,FALSE),\"\")","v":""},{"$f":"IFERROR(VLOOKUP(B355,[2]Sheet4!$F$2:$J$364,3,FALSE),\"\")","v":""},{"$f":"IFERROR(VLOOKUP(B355,[2]Sheet4!$F$2:$J$364,4,FALSE),\"\")","v":""},{"$f":"IFERROR(VLOOKUP(B355,[2]Sheet4!$F$2:$J$364,5,FALSE),\"\")","v":""}]
[null,null,{"$f":"IFERROR(VLOOKUP(B356,[2]Sheet4!$F$2:$J$364,2,FALSE),\"\")","v":""},{"$f":"IFERROR(VLOOKUP(B356,[2]Sheet4!$F$2:$J$364,3,FALSE),\"\")","v":""},{"$f":"IFERROR(VLOOKUP(B356,[2]Sheet4!$F$2:$J$364,4,FALSE),\"\")","v":""},{"$f":"IFERROR(VLOOKUP(B356,[2]Sheet4!$F$2:$J$364,5,FALSE),\"\")","v":""}]
[null,null,{"$f":"IFERROR(VLOOKUP(B357,[2]Sheet4!$F$2:$J$364,2,FALSE),\"\")","v":""},{"$f":"IFERROR(VLOOKUP(B357,[2]Sheet4!$F$2:$J$364,3,FALSE),\"\")","v":""},{"$f":"IFERROR(VLOOKUP(B357,[2]Sheet4!$F$2:$J$364,4,FALSE),\"\")","v":""},{"$f":"IFERROR(VLOOKUP(B357,[2]Sheet4!$F$2:$J$364,5,FALSE),\"\")","v":""}]
[null,null,{"$f":"IFERROR(VLOOKUP(B358,[2]Sheet4!$F$2:$J$364,2,FALSE),\"\")","v":""},{"$f":"IFERROR(VLOOKUP(B358,[2]Sheet4!$F$2:$J$364,3,FALSE),\"\")","v":""},{"$f":"IFERROR(VLOOKUP(B358,[2]Sheet4!$F$2:$J$364,4,FALSE),\"\")","v":""},{"$f":"IFERROR(VLOOKUP(B358,[2]Sheet4!$F$2:$J$364,5,FALSE),\"\")","v":""}]
[null,null,{"$f":"IFERROR(VLOOKUP(B359,[2]Sheet4!$F$2:$J$364,2,FALSE),\"\")","v":""},{"$f":"IFERROR(VLOOKUP(B359,[2]Sheet4!$F$2:$J$364,3,FALSE),\"\")","v":""},{"$f":"IFERROR(VLOOKUP(B359,[2]Sheet4!$F$2:$J$364,4,FALSE),\"\")","v":""},{"$f":"IFERROR(VLOOKUP(B359,[2]Sheet4!$F$2:$J$364,5,FALSE),\"\")","v":""}]
[null,null,{"$f":"IFERROR(VLOOKUP(B360,[2]Sheet4!$F$2:$J$364,2,FALSE),\"\")","v":""},{"$f":"IFERROR(VLOOKUP(B360,[2]Sheet4!$F$2:$J$364,3,FALSE),\"\")","v":""},{"$f":"IFERROR(VLOOKUP(B360,[2]Sheet4!$F$2:$J$364,4,FALSE),\"\")","v":""},{"$f":"IFERROR(VLOOKUP(B360,[2]Sheet4!$F$2:$J$364,5,FALSE),\"\")","v":""}]
[null,null,{"$f":"IFERROR(VLOOKUP(B361,[2]Sheet4!$F$2:$J$364,2,FALSE),\"\")","v":""},{"$f":"IFERROR(VLOOKUP(B361,[2]Sheet4!$F$2:$J$364,3,FALSE),\"\")","v":""},{"$f":"IFERROR(VLOOKUP(B361,[2]Sheet4!$F$2:$J$364,4,FALSE),\"\")","v":""},{"$f":"IFERROR(VLOOKUP(B361,[2]Sheet4!$F$2:$J$364,5,FALSE),\"\")","v":""}]
[null,null,{"$f":"IFERROR(VLOOKUP(B362,[2]Sheet4!$F$2:$J$364,2,FALSE),\"\")","v":""},{"$f":"IFERROR(VLOOKUP(B362,[2]Sheet4!$F$2:$J$364,3,FALSE),\"\")","v":""},{"$f":"IFERROR(VLOOKUP(B362,[2]Sheet4!$F$2:$J$364,4,FALSE),\"\")","v":""},{"$f":"IFERROR(VLOOKUP(B362,[2]Sheet4!$F$2:$J$364,5,FALSE),\"\")","v":""}]
[null,null,{"$f":"IFERROR(VLOOKUP(B363,[2]Sheet4!$F$2:$J$364,2,FALSE),\"\")","v":""},{"$f":"IFERROR(VLOOKUP(B363,[2]Sheet4!$F$2:$J$364,3,FALSE),\"\")","v":""},{"$f":"IFERROR(VLOOKUP(B363,[2]Sheet4!$F$2:$J$364,4,FALSE),\"\")","v":""},{"$f":"IFERROR(VLOOKUP(B363,[2]Sheet4!$F$2:$J$364,5,FALSE),\"\")","v":""}]
[null,null,{"$f":"IFERROR(VLOOKUP(B364,[2]Sheet4!$F$2:$J$364,2,FALSE),\"\")","v":""},{"$f":"IFERROR(VLOOKUP(B364,[2]Sheet4!$F$2:$J$364,3,FALSE),\"\")","v":""},{"$f":"IFERROR(VLOOKUP(B364,[2]Sheet4!$F$2:$J$364,4,FALSE),\"\")","v":""},{"$f":"IFERROR(VLOOKUP(B364,[2]Sheet4!$F$2:$J$364,5,FALSE),\"\")","v":""}]
[null,null,{"$f":"IFERROR(VLOOKUP(B365,[2]Sheet4!$F$2:$J$364,2,FALSE),\"\")","v":""},{"$f":"IFERROR(VLOOKUP(B365,[2]Sheet4!$F$2:$J$364,3,FALSE),\"\")","v":""},{"$f":"IFERROR(VLOOKUP(B365,[2]Sheet4!$F$2:$J$364,4,FALSE),\"\")","v":""},{"$f":"IFERROR(VLOOKUP(B365,[2]Sheet4!$F$2:$J$364,5,FALSE),\"\")","v":""}]
[null,null,{"$f":"IFERROR(VLOOKUP(B366,[2]Sheet4!$F$2:$J$364,2,FALSE),\"\")","v":""},{"$f":"IFERROR(VLOOKUP(B366,[2]Sheet4!$F$2:$J$364,3,FALSE),\"\")","v":""},{"$f":"IFERROR(VLOOKUP(B366,[2]Sheet4!$F$2:$J$364,4,FALSE),\"\")","v":""},{"$f":"IFERROR(VLOOKUP(B366,[2]Sheet4!$F$2:$J$364,5,FALSE),\"\")","v":""}]
[null,null,{"$f":"IFERROR(VLOOKUP(B367,[2]Sheet4!$F$2:$J$364,2,FALSE),\"\")","v":""},{"$f":"IFERROR(VLOOKUP(B367,[2]Sheet4!$F$2:$J$364,3,FALSE),\"\")","v":""},{"$f":"IFERROR(VLOOKUP(B367,[2]Sheet4!$F$2:$J$364,4,FALSE),\"\")","v":""},{"$f":"IFERROR(VLOOKUP(B367,[2]Sheet4!$F$2:$J$364,5,FALSE),\"\")","v":""}]
[null,null,{"$f":"IFERROR(VLOOKUP(B368,[2]Sheet4!$F$2:$J$364,2,FALSE),\"\")","v":""},{"$f":"IFERROR(VLOOKUP(B368,[2]Sheet4!$F$2:$J$364,3,FALSE),\"\")","v":""},{"$f":"IFERROR(VLOOKUP(B368,[2]Sheet4!$F$2:$J$364,4,FALSE),\"\")","v":""},{"$f":"IFERROR(VLOOKUP(B368,[2]Sheet4!$F$2:$J$364,5,FALSE),\"\")","v":""}]
[null,null,{"$f":"IFERROR(VLOOKUP(B369,[2]Sheet4!$F$2:$J$364,2,FALSE),\"\")","v":""},{"$f":"IFERROR(VLOOKUP(B369,[2]Sheet4!$F$2:$J$364,3,FALSE),\"\")","v":""},{"$f":"IFERROR(VLOOKUP(B369,[2]Sheet4!$F$2:$J$364,4,FALSE),\"\")","v":""},{"$f":"IFERROR(VLOOKUP(B369,[2]Sheet4!$F$2:$J$364,5,FALSE),\"\")","v":""}]
[null,null,{"$f":"IFERROR(VLOOKUP(B370,[2]Sheet4!$F$2:$J$364,2,FALSE),\"\")","v":""},{"$f":"IFERROR(VLOOKUP(B370,[2]Sheet4!$F$2:$J$364,3,FALSE),\"\")","v":""},{"$f":"IFERROR(VLOOKUP(B370,[2]Sheet4!$F$2:$J$364,4,FALSE),\"\")","v":""},{"$f":"IFERROR(VLOOKUP(B370,[2]Sheet4!$F$2:$J$364,5,FALSE),\"\")","v":""}]
[null,null,{"$f":"IFERROR(VLOOKUP(B371,[2]Sheet4!$F$2:$J$364,2,FALSE),\"\")","v":""},{"$f":"IFERROR(VLOOKUP(B371,[2]Sheet4!$F$2:$J$364,3,FALSE),\"\")","v":""},{"$f":"IFERROR(VLOOKUP(B371,[2]Sheet4!$F$2:$J$364,4,FALSE),\"\")","v":""},{"$f":"IFERROR(VLOOKUP(B371,[2]Sheet4!$F$2:$J$364,5,FALSE),\"\")","v":""}]
[null,null,{"$f":"IFERROR(VLOOKUP(B372,[2]Sheet4!$F$2:$J$364,2,FALSE),\"\")","v":""},{"$f":"IFERROR(VLOOKUP(B372,[2]Sheet4!$F$2:$J$364,3,FALSE),\"\")","v":""},{"$f":"IFERROR(VLOOKUP(B372,[2]Sheet4!$F$2:$J$364,4,FALSE),\"\")","v":""},{"$f":"IFERROR(VLOOKUP(B372,[2]Sheet4!$F$2:$J$364,5,FALSE),\"\")","v":""}]
[null,null,{"$f":"IFERROR(VLOOKUP(B373,[2]Sheet4!$F$2:$J$364,2,FALSE),\"\")","v":""},{"$f":"IFERROR(VLOOKUP(B373,[2]Sheet4!$F$2:$J$364,3,FALSE),\"\")","v":""},{"$f":"IFERROR(VLOOKUP(B373,[2]Sheet4!$F$2:$J$364,4,FALSE),\"\")","v":""},{"$f":"IFERROR(VLOOKUP(B373,[2]Sheet4!$F$2:$J$364,5,FALSE),\"\")","v":""}]
[null,null,{"$f":"IFERROR(VLOOKUP(B374,[2]Sheet4!$F$2:$J$364,2,FALSE),\"\")","v":""},{"$f":"IFERROR(VLOOKUP(B374,[2]Sheet4!$F$2:$J$364,3,FALSE),\"\")","v":""},{"$f":"IFERROR(VLOOKUP(B374,[2]Sheet4!$F$2:$J$364,4,FALSE),\"\")","v":""},{"$f":"IFERROR(VLOOKUP(B374,[2]Sheet4!$F$2:$J$364,5,FALSE),\"\")","v":""}]
[null,null,{"$f":"IFERROR(VLOOKUP(B375,[2]Sheet4!$F$2:$J$364,2,FALSE),\"\")","v":""},{"$f":"IFERROR(VLOOKUP(B375,[2]Sheet4!$F$2:$J$364,3,FALSE),\"\")","v":""},{"$f":"IFERROR(VLOOKUP(B375,[2]Sheet4!$F$2:$J$364,4,FALSE),\"\")","v":""},{"$f":"IFERROR(VLOOKUP(B375,[2]Sheet4!$F$2:$J$364,5,FALSE),\"\")","v":""}]
[null,null,{"$f":"IFERROR(VLOOKUP(B376,[2]Sheet4!$F$2:$J$364,2,FALSE),\"\")","v":""},{"$f":"IFERROR(VLOOKUP(B376,[2]Sheet4!$F$2:$J$364,3,FALSE),\"\")","v":""},{"$f":"IFERROR(VLOOKUP(B376,[2]Sheet4!$F$2:$J$364,4,FALSE),\"\")","v":""},{"$f":"IFERROR(VLOOKUP(B376,[2]Sheet4!$F$2:$J$364,5,FALSE),\"\")","v":""}]
[null,null,{"$f":"IFERROR(VLOOKUP(B377,[2]Sheet4!$F$2:$J$364,2,FALSE),\"\")","v":""},{"$f":"IFERROR(VLOOKUP(B377,[2]Sheet4!$F$2:$J$364,3,FALSE),\"\")","v":""},{"$f":"IFERROR(VLOOKUP(B377,[2]Sheet4!$F$2:$J$364,4,FALSE),\"\")","v":""},{"$f":"IFERROR(VLOOKUP(B377,[2]Sheet4!$F$2:$J$364,5,FALSE),\"\")","v":""}]
[null,null,{"$f":"IFERROR(VLOOKUP(B378,[2]Sheet4!$F$2:$J$364,2,FALSE),\"\")","v":""},{"$f":"IFERROR(VLOOKUP(B378,[2]Sheet4!$F$2:$J$364,3,FALSE),\"\")","v":""},{"$f":"IFERROR(VLOOKUP(B378,[2]Sheet4!$F$2:$J$364,4,FALSE),\"\")","v":""},{"$f":"IFERROR(VLOOKUP(B378,[2]Sheet4!$F$2:$J$364,5,FALSE),\"\")","v":""}]
[null,null,{"$f":"IFERROR(VLOOKUP(B379,[2]Sheet4!$F$2:$J$364,2,FALSE),\"\")","v":""},{"$f":"IFERROR(VLOOKUP(B379,[2]Sheet4!$F$2:$J$364,3,FALSE),\"\")","v":""},{"$f":"IFERROR(VLOOKUP(B379,[2]Sheet4!$F$2:$J$364,4,FALSE),\"\")","v":""},{"$f":"IFERROR(VLOOKUP(B379,[2]Sheet4!$F$2:$J$364,5,FALSE),\"\")","v":""}]
[null,null,{"$f":"IFERROR(VLOOKUP(B380,[2]Sheet4!$F$2:$J$364,2,FALSE),\"\")","v":""},{"$f":"IFERROR(VLOOKUP(B380,[2]Sheet4!$F$2:$J$364,3,FALSE),\"\")","v":""},{"$f":"IFERROR(VLOOKUP(B380,[2]Sheet4!$F$2:$J$364,4,FALSE),\"\")","v":""},{"$f":"IFERROR(VLOOKUP(B380,[2]Sheet4!$F$2:$J$364,5,FALSE),\"\")","v":""}]
[null,null,{"$f":"IFERROR(VLOOKUP(B381,[2]Sheet4!$F$2:$J$364,2,FALSE),\"\")","v":""},{"$f":"IFERROR(VLOOKUP(B381,[2]Sheet4!$F$2:$J$364,3,FALSE),\"\")","v":""},{"$f":"IFERROR(VLOOKUP(B381,[2]Sheet4!$F$2:$J$364,4,FALSE),\"\")","v":""},{"$f":"IFERROR(VLOOKUP(B381,[2]Sheet4!$F$2:$J$364,5,FALSE),\"\")","v":""}]
[null,null,{"$f":"IFERROR(VLOOKUP(B382,[2]Sheet4!$F$2:$J$364,2,FALSE),\"\")","v":""},{"$f":"IFERROR(VLOOKUP(B382,[2]Sheet4!$F$2:$J$364,3,FALSE),\"\")","v":""},{"$f":"IFERROR(VLOOKUP(B382,[2]Sheet4!$F$2:$J$364,4,FALSE),\"\")","v":""},{"$f":"IFERROR(VLOOKUP(B382,[2]Sheet4!$F$2:$J$364,5,FALSE),\"\")","v":""}]
[null,null,{"$f":"IFERROR(VLOOKUP(B383,[2]Sheet4!$F$2:$J$364,2,FALSE),\"\")","v":""},{"$f":"IFERROR(VLOOKUP(B383,[2]Sheet4!$F$2:$J$364,3,FALSE),\"\")","v":""},{"$f":"IFERROR(VLOOKUP(B383,[2]Sheet4!$F$2:$J$364,4,FALSE),\"\")","v":""},{"$f":"IFERROR(VLOOKUP(B383,[2]Sheet4!$F$2:$J$364,5,FALSE),\"\")","v":""}]
[null,null,{"$f":"IFERROR(VLOOKUP(B384,[2]Sheet4!$F$2:$J$364,2,FALSE),\"\")","v":""},{"$f":"IFERROR(VLOOKUP(B384,[2]Sheet4!$F$2:$J$364,3,FALSE),\"\")","v":""},{"$f":"IFERROR(VLOOKUP(B384,[2]Sheet4!$F$2:$J$364,4,FALSE),\"\")","v":""},{"$f":"IFERROR(VLOOKUP(B384,[2]Sheet4!$F$2:$J$364,5,FALSE),\"\")","v":""}]
[null,null,{"$f":"IFERROR(VLOOKUP(B385,[2]Sheet4!$F$2:$J$364,2,FALSE),\"\")","v":""},{"$f":"IFERROR(VLOOKUP(B385,[2]Sheet4!$F$2:$J$364,3,FALSE),\"\")","v":""},{"$f":"IFERROR(VLOOKUP(B385,[2]Sheet4!$F$2:$J$364,4,FALSE),\"\")","v":""},{"$f":"IFERROR(VLOOKUP(B385,[2]Sheet4!$F$2:$J$364,5,FALSE),\"\")","v":""}]
[null,null,{"$f":"IFERROR(VLOOKUP(B386,[2]Sheet4!$F$2:$J$364,2,FALSE),\"\")","v":""},{"$f":"IFERROR(VLOOKUP(B386,[2]Sheet4!$F$2:$J$364,3,FALSE),\"\")","v":""},{"$f":"IFERROR(VLOOKUP(B386,[2]Sheet4!$F$2:$J$364,4,FALSE),\"\")","v":""},{"$f":"IFERROR(VLOOKUP(B386,[2]Sheet4!$F$2:$J$364,5,FALSE),\"\")","v":""}]
[null,null,{"$f":"IFERROR(VLOOKUP(B387,[2]Sheet4!$F$2:$J$364,2,FALSE),\"\")","v":""},{"$f":"IFERROR(VLOOKUP(B387,[2]Sheet4!$F$2:$J$364,3,FALSE),\"\")","v":""},{"$f":"IFERROR(VLOOKUP(B387,[2]Sheet4!$F$2:$J$364,4,FALSE),\"\")","v":""},{"$f":"IFERROR(VLOOKUP(B387,[2]Sheet4!$F$2:$J$364,5,FALSE),\"\")","v":""}]
[null,null,{"$f":"IFERROR(VLOOKUP(B388,[2]Sheet4!$F$2:$J$364,2,FALSE),\"\")","v":""},{"$f":"IFERROR(VLOOKUP(B388,[2]Sheet4!$F$2:$J$364,3,FALSE),\"\")","v":""},{"$f":"IFERROR(VLOOKUP(B388,[2]Sheet4!$F$2:$J$364,4,FALSE),\"\")","v":""},{"$f":"IFERROR(VLOOKUP(B388,[2]Sheet4!$F$2:$J$364,5,FALSE),\"\")","v":""}]
[null,null,{"$f":"IFERROR(VLOOKUP(B389,[2]Sheet4!$F$2:$J$364,2,FALSE),\"\")","v":""},{"$f":"IFERROR(VLOOKUP(B389,[2]Sheet4!$F$2:$J$364,3,FALSE),\"\")","v":""},{"$f":"IFERROR(VLOOKUP(B389,[2]Sheet4!$F$2:$J$364,4,FALSE),\"\")","v":""},{"$f":"IFERROR(VLOOKUP(B389,[2]Sheet4!$F$2:$J$364,5,FALSE),\"\")","v":""}]
[null,null,{"$f":"IFERROR(VLOOKUP(B390,[2]Sheet4!$F$2:$J$364,2,FALSE),\"\")","v":""},{"$f":"IFERROR(VLOOKUP(B390,[2]Sheet4!$F$2:$J$364,3,FALSE),\"\")","v":""},{"$f":"IFERROR(VLOOKUP(B390,[2]Sheet4!$F$2:$J$364,4,FALSE),\"\")","v":""},{"$f":"IFERROR(VLOOKUP(B390,[2]Sheet4!$F$2:$J$364,5,FALSE),\"\")","v":""}]
[null,null,{"$f":"IFERROR(VLOOKUP(B391,[2]Sheet4!$F$2:$J$364,2,FALSE),\"\")","v":""},{"$f":"IFERROR(VLOOKUP(B391,[2]Sheet4!$F$2:$J$364,3,FALSE),\"\")","v":""},{"$f":"IFERROR(VLOOKUP(B391,[2]Sheet4!$F$2:$J$364,4,FALSE),\"\")","v":""},{"$f":"IFERROR(VLOOKUP(B391,[2]Sheet4!$F$2:$J$364,5,FALSE),\"\")","v":""}]
[null,null,{"$f":"IFERROR(VLOOKUP(B392,[2]Sheet4!$F$2:$J$364,2,FALSE),\"\")","v":""},{"$f":"IFERROR(VLOOKUP(B392,[2]Sheet4!$F$2:$J$364,3,FALSE),\"\")","v":""},{"$f":"IFERROR(VLOOKUP(B392,[2]Sheet4!$F$2:$J$364,4,FALSE),\"\")","v":""},{"$f":"IFERROR(VLOOKUP(B392,[2]Sheet4!$F$2:$J$364,5,FALSE),\"\")","v":""}]
[null,null,{"$f":"IFERROR(VLOOKUP(B393,[2]Sheet4!$F$2:$J$364,2,FALSE),\"\")","v":""},{"$f":"IFERROR(VLOOKUP(B393,[2]Sheet4!$F$2:$J$364,3,FALSE),\"\")","v":""},{"$f":"IFERROR(VLOOKUP(B393,[2]Sheet4!$F$2:$J$364,4,FALSE),\"\")","v":""},{"$f":"IFERROR(VLOOKUP(B393,[2]Sheet4!$F$2:$J$364,5,FALSE),\"\")","v":""}]
[null,null,{"$f":"IFERROR(VLOOKUP(B394,[2]Sheet4!$F$2:$J$364,2,FALSE),\"\")","v":""},{"$f":"IFERROR(VLOOKUP(B394,[2]Sheet4!$F$2:$J$364,3,FALSE),\"\")","v":""},{"$f":"IFERROR(VLOOKUP(B394,[2]Sheet4!$F$2:$J$364,4,FALSE),\"\")","v":""},{"$f":"IFERROR(VLOOKUP(B394,[2]Sheet4!$F$2:$J$364,5,FALSE),\"\")","v":""}]
[null,null,{"$f":"IFERROR(VLOOKUP(B395,[2]Sheet4!$F$2:$J$364,2,FALSE),\"\")","v":""},{"$f":"IFERROR(VLOOKUP(B395,[2]Sheet4!$F$2:$J$364,3,FALSE),\"\")","v":""},{"$f":"IFERROR(VLOOKUP(B395,[2]Sheet4!$F$2:$J$364,4,FALSE),\"\")","v":""},{"$f":"IFERROR(VLOOKUP(B395,[2]Sheet4!$F$2:$J$364,5,FALSE),\"\")","v":""}]
[null,null,{"$f":"IFERROR(VLOOKUP(B396,[2]Sheet4!$F$2:$J$364,2,FALSE),\"\")","v":""},{"$f":"IFERROR(VLOOKUP(B396,[2]Sheet4!$F$2:$J$364,3,FALSE),\"\")","v":""},{"$f":"IFERROR(VLOOKUP(B396,[2]Sheet4!$F$2:$J$364,4,FALSE),\"\")","v":""},{"$f":"IFERROR(VLOOKUP(B396,[2]Sheet4!$F$2:$J$364,5,FALSE),\"\")","v":""}]
[null,null,{"$f":"IFERROR(VLOOKUP(B397,[2]Sheet4!$F$2:$J$364,2,FALSE),\"\")","v":""},{"$f":"IFERROR(VLOOKUP(B397,[2]Sheet4!$F$2:$J$364,3,FALSE),\"\")","v":""},{"$f":"IFERROR(VLOOKUP(B397,[2]Sheet4!$F$2:$J$364,4,FALSE),\"\")","v":""},{"$f":"IFERROR(VLOOKUP(B397,[2]Sheet4!$F$2:$J$364,5,FALSE),\"\")","v":""}]
[null,null,{"$f":"IFERROR(VLOOKUP(B398,[2]Sheet4!$F$2:$J$364,2,FALSE),\"\")","v":""},{"$f":"IFERROR(VLOOKUP(B398,[2]Sheet4!$F$2:$J$364,3,FALSE),\"\")","v":""},{"$f":"IFERROR(VLOOKUP(B398,[2]Sheet4!$F$2:$J$364,4,FALSE),\"\")","v":""},{"$f":"IFERROR(VLOOKUP(B398,[2]Sheet4!$F$2:$J$364,5,FALSE),\"\")","v":""}]
[null,null,{"$f":"IFERROR(VLOOKUP(B399,[2]Sheet4!$F$2:$J$364,2,FALSE),\"\")","v":""},{"$f":"IFERROR(VLOOKUP(B399,[2]Sheet4!$F$2:$J$364,3,FALSE),\"\")","v":""},{"$f":"IFERROR(VLOOKUP(B399,[2]Sheet4!$F$2:$J$364,4,FALSE),\"\")","v":""},{"$f":"IFERROR(VLOOKUP(B399,[2]Sheet4!$F$2:$J$364,5,FALSE),\"\")","v":""}]
[null,null,{"$f":"IFERROR(VLOOKUP(B400,[2]Sheet4!$F$2:$J$364,2,FALSE),\"\")","v":""},{"$f":"IFERROR(VLOOKUP(B400,[2]Sheet4!$F$2:$J$364,3,FALSE),\"\")","v":""},{"$f":"IFERROR(VLOOKUP(B400,[2]Sheet4!$F$2:$J$364,4,FALSE),\"\")","v":""},{"$f":"IFERROR(VLOOKUP(B400,[2]Sheet4!$F$2:$J$364,5,FALSE),\"\")","v":""}]
[null,null,{"$f":"IFERROR(VLOOKUP(B401,[2]Sheet4!$F$2:$J$364,2,FALSE),\"\")","v":""},{"$f":"IFERROR(VLOOKUP(B401,[2]Sheet4!$F$2:$J$364,3,FALSE),\"\")","v":""},{"$f":"IFERROR(VLOOKUP(B401,[2]Sheet4!$F$2:$J$364,4,FALSE),\"\")","v":""},{"$f":"IFERROR(VLOOKUP(B401,[2]Sheet4!$F$2:$J$364,5,FALSE),\"\")","v":""}]
[null,null,{"$f":"IFERROR(VLOOKUP(B402,[2]Sheet4!$F$2:$J$364,2,FALSE),\"\")","v":""},{"$f":"IFERROR(VLOOKUP(B402,[2]Sheet4!$F$2:$J$364,3,FALSE),\"\")","v":""},{"$f":"IFERROR(VLOOKUP(B402,[2]Sheet4!$F$2:$J$364,4,FALSE),\"\")","v":""},{"$f":"IFERROR(VLOOKUP(B402,[2]Sheet4!$F$2:$J$364,5,FALSE),\"\")","v":""}]
[null,null,{"$f":"IFERROR(VLOOKUP(B403,[2]Sheet4!$F$2:$J$364,2,FALSE),\"\")","v":""},{"$f":"IFERROR(VLOOKUP(B403,[2]Sheet4!$F$2:$J$364,3,FALSE),\"\")","v":""},{"$f":"IFERROR(VLOOKUP(B403,[2]Sheet4!$F$2:$J$364,4,FALSE),\"\")","v":""},{"$f":"IFERROR(VLOOKUP(B403,[2]Sheet4!$F$2:$J$364,5,FALSE),\"\")","v":""}]
[null,null,{"$f":"IFERROR(VLOOKUP(B404,[2]Sheet4!$F$2:$J$364,2,FALSE),\"\")","v":""},{"$f":"IFERROR(VLOOKUP(B404,[2]Sheet4!$F$2:$J$364,3,FALSE),\"\")","v":""},{"$f":"IFERROR(VLOOKUP(B404,[2]Sheet4!$F$2:$J$364,4,FALSE),\"\")","v":""},{"$f":"IFERROR(VLOOKUP(B404,[2]Sheet4!$F$2:$J$364,5,FALSE),\"\")","v":""}]
[null,null,{"$f":"IFERROR(VLOOKUP(B405,[2]Sheet4!$F$2:$J$364,2,FALSE),\"\")","v":""},{"$f":"IFERROR(VLOOKUP(B405,[2]Sheet4!$F$2:$J$364,3,FALSE),\"\")","v":""},{"$f":"IFERROR(VLOOKUP(B405,[2]Sheet4!$F$2:$J$364,4,FALSE),\"\")","v":""},{"$f":"IFERROR(VLOOKUP(B405,[2]Sheet4!$F$2:$J$364,5,FALSE),\"\")","v":""}]
[null,null,{"$f":"IFERROR(VLOOKUP(B406,[2]Sheet4!$F$2:$J$364,2,FALSE),\"\")","v":""},{"$f":"IFERROR(VLOOKUP(B406,[2]Sheet4!$F$2:$J$364,3,FALSE),\"\")","v":""},{"$f":"IFERROR(VLOOKUP(B406,[2]Sheet4!$F$2:$J$364,4,FALSE),\"\")","v":""},{"$f":"IFERROR(VLOOKUP(B406,[2]Sheet4!$F$2:$J$364,5,FALSE),\"\")","v":""}]
[null,null,{"$f":"IFERROR(VLOOKUP(B407,[2]Sheet4!$F$2:$J$364,2,FALSE),\"\")","v":""},{"$f":"IFERROR(VLOOKUP(B407,[2]Sheet4!$F$2:$J$364,3,FALSE),\"\")","v":""},{"$f":"IFERROR(VLOOKUP(B407,[2]Sheet4!$F$2:$J$364,4,FALSE),\"\")","v":""},{"$f":"IFERROR(VLOOKUP(B407,[2]Sheet4!$F$2:$J$364,5,FALSE),\"\")","v":""}]
[null,null,{"$f":"IFERROR(VLOOKUP(B408,[2]Sheet4!$F$2:$J$364,2,FALSE),\"\")","v":""},{"$f":"IFERROR(VLOOKUP(B408,[2]Sheet4!$F$2:$J$364,3,FALSE),\"\")","v":""},{"$f":"IFERROR(VLOOKUP(B408,[2]Sheet4!$F$2:$J$364,4,FALSE),\"\")","v":""},{"$f":"IFERROR(VLOOKUP(B408,[2]Sheet4!$F$2:$J$364,5,FALSE),\"\")","v":""}]
[null,null,{"$f":"IFERROR(VLOOKUP(B409,[2]Sheet4!$F$2:$J$364,2,FALSE),\"\")","v":""},{"$f":"IFERROR(VLOOKUP(B409,[2]Sheet4!$F$2:$J$364,3,FALSE),\"\")","v":""},{"$f":"IFERROR(VLOOKUP(B409,[2]Sheet4!$F$2:$J$364,4,FALSE),\"\")","v":""},{"$f":"IFERROR(VLOOKUP(B409,[2]Sheet4!$F$2:$J$364,5,FALSE),\"\")","v":""}]
[null,null,{"$f":"IFERROR(VLOOKUP(B410,[2]Sheet4!$F$2:$J$364,2,FALSE),\"\")","v":""},{"$f":"IFERROR(VLOOKUP(B410,[2]Sheet4!$F$2:$J$364,3,FALSE),\"\")","v":""},{"$f":"IFERROR(VLOOKUP(B410,[2]Sheet4!$F$2:$J$364,4,FALSE),\"\")","v":""},{"$f":"IFERROR(VLOOKUP(B410,[2]Sheet4!$F$2:$J$364,5,FALSE),\"\")","v":""}]
[null,null,{"$f":"IFERROR(VLOOKUP(B411,[2]Sheet4!$F$2:$J$364,2,FALSE),\"\")","v":""},{"$f":"IFERROR(VLOOKUP(B411,[2]Sheet4!$F$2:$J$364,3,FALSE),\"\")","v":""},{"$f":"IFERROR(VLOOKUP(B411,[2]Sheet4!$F$2:$J$364,4,FALSE),\"\")","v":""},{"$f":"IFERROR(VLOOKUP(B411,[2]Sheet4!$F$2:$J$364,5,FALSE),\"\")","v":""}]
[null,null,{"$f":"IFERROR(VLOOKUP(B412,[2]Sheet4!$F$2:$J$364,2,FALSE),\"\")","v":""},{"$f":"IFERROR(VLOOKUP(B412,[2]Sheet4!$F$2:$J$364,3,FALSE),\"\")","v":""},{"$f":"IFERROR(VLOOKUP(B412,[2]Sheet4!$F$2:$J$364,4,FALSE),\"\")","v":""},{"$f":"IFERROR(VLOOKUP(B412,[2]Sheet4!$F$2:$J$364,5,FALSE),\"\")","v":""}]
[null,null,{"$f":"IFERROR(VLOOKUP(B413,[2]Sheet4!$F$2:$J$364,2,FALSE),\"\")","v":""},{"$f":"IFERROR(VLOOKUP(B413,[2]Sheet4!$F$2:$J$364,3,FALSE),\"\")","v":""},{"$f":"IFERROR(VLOOKUP(B413,[2]Sheet4!$F$2:$J$364,4,FALSE),\"\")","v":""},{"$f":"IFERROR(VLOOKUP(B413,[2]Sheet4!$F$2:$J$364,5,FALSE),\"\")","v":""}]
[null,null,{"$f":"IFERROR(VLOOKUP(B414,[2]Sheet4!$F$2:$J$364,2,FALSE),\"\")","v":""},{"$f":"IFERROR(VLOOKUP(B414,[2]Sheet4!$F$2:$J$364,3,FALSE),\"\")","v":""},{"$f":"IFERROR(VLOOKUP(B414,[2]Sheet4!$F$2:$J$364,4,FALSE),\"\")","v":""},{"$f":"IFERROR(VLOOKUP(B414,[2]Sheet4!$F$2:$J$364,5,FALSE),\"\")","v":""}]
[null,null,{"$f":"IFERROR(VLOOKUP(B415,[2]Sheet4!$F$2:$J$364,2,FALSE),\"\")","v":""},{"$f":"IFERROR(VLOOKUP(B415,[2]Sheet4!$F$2:$J$364,3,FALSE),\"\")","v":""},{"$f":"IFERROR(VLOOKUP(B415,[2]Sheet4!$F$2:$J$364,4,FALSE),\"\")","v":""},{"$f":"IFERROR(VLOOKUP(B415,[2]Sheet4!$F$2:$J$364,5,FALSE),\"\")","v":""}]
[null,null,{"$f":"IFERROR(VLOOKUP(B416,[2]Sheet4!$F$2:$J$364,2,FALSE),\"\")","v":""},{"$f":"IFERROR(VLOOKUP(B416,[2]Sheet4!$F$2:$J$364,3,FALSE),\"\")","v":""},{"$f":"IFERROR(VLOOKUP(B416,[2]Sheet4!$F$2:$J$364,4,FALSE),\"\")","v":""},{"$f":"IFERROR(VLOOKUP(B416,[2]Sheet4!$F$2:$J$364,5,FALSE),\"\")","v":""}]
[null,null,{"$f":"IFERROR(VLOOKUP(B417,[2]Sheet4!$F$2:$J$364,2,FALSE),\"\")","v":""},{"$f":"IFERROR(VLOOKUP(B417,[2]Sheet4!$F$2:$J$364,3,FALSE),\"\")","v":""},{"$f":"IFERROR(VLOOKUP(B417,[2]Sheet4!$F$2:$J$364,4,FALSE),\"\")","v":""},{"$f":"IFERROR(VLOOKUP(B417,[2]Sheet4!$F$2:$J$364,5,FALSE),\"\")","v":""}]
[null,null,{"$f":"IFERROR(VLOOKUP(B418,[2]Sheet4!$F$2:$J$364,2,FALSE),\"\")","v":""},{"$f":"IFERROR(VLOOKUP(B418,[2]Sheet4!$F$2:$J$364,3,FALSE),\"\")","v":""},{"$f":"IFERROR(VLOOKUP(B418,[2]Sheet4!$F$2:$J$364,4,FALSE),\"\")","v":""},{"$f":"IFERROR(VLOOKUP(B418,[2]Sheet4!$F$2:$J$364,5,FALSE),\"\")","v":""}]
[null,null,{"$f":"IFERROR(VLOOKUP(B419,[2]Sheet4!$F$2:$J$364,2,FALSE),\"\")","v":""},{"$f":"IFERROR(VLOOKUP(B419,[2]Sheet4!$F$2:$J$364,3,FALSE),\"\")","v":""},{"$f":"IFERROR(VLOOKUP(B419,[2]Sheet4!$F$2:$J$364,4,FALSE),\"\")","v":""},{"$f":"IFERROR(VLOOKUP(B419,[2]Sheet4!$F$2:$J$364,5,FALSE),\"\")","v":""}]
[null,null,{"$f":"IFERROR(VLOOKUP(B420,[2]Sheet4!$F$2:$J$364,2,FALSE),\"\")","v":""},{"$f":"IFERROR(VLOOKUP(B420,[2]Sheet4!$F$2:$J$364,3,FALSE),\"\")","v":""},{"$f":"IFERROR(VLOOKUP(B420,[2]Sheet4!$F$2:$J$364,4,FALSE),\"\")","v":""},{"$f":"IFERROR(VLOOKUP(B420,[2]Sheet4!$F$2:$J$364,5,FALSE),\"\")","v":""}]
[null,null,{"$f":"IFERROR(VLOOKUP(B421,[2]Sheet4!$F$2:$J$364,2,FALSE),\"\")","v":""},{"$f":"IFERROR(VLOOKUP(B421,[2]Sheet4!$F$2:$J$364,3,FALSE),\"\")","v":""},{"$f":"IFERROR(VLOOKUP(B421,[2]Sheet4!$F$2:$J$364,4,FALSE),\"\")","v":""},{"$f":"IFERROR(VLOOKUP(B421,[2]Sheet4!$F$2:$J$364,5,FALSE),\"\")","v":""}]
[null,null,{"$f":"IFERROR(VLOOKUP(B422,[2]Sheet4!$F$2:$J$364,2,FALSE),\"\")","v":""},{"$f":"IFERROR(VLOOKUP(B422,[2]Sheet4!$F$2:$J$364,3,FALSE),\"\")","v":""},{"$f":"IFERROR(VLOOKUP(B422,[2]Sheet4!$F$2:$J$364,4,FALSE),\"\")","v":""},{"$f":"IFERROR(VLOOKUP(B422,[2]Sheet4!$F$2:$J$364,5,FALSE),\"\")","v":""}]
[null,null,{"$f":"IFERROR(VLOOKUP(B423,[2]Sheet4!$F$2:$J$364,2,FALSE),\"\")","v":""},{"$f":"IFERROR(VLOOKUP(B423,[2]Sheet4!$F$2:$J$364,3,FALSE),\"\")","v":""},{"$f":"IFERROR(VLOOKUP(B423,[2]Sheet4!$F$2:$J$364,4,FALSE),\"\")","v":""},{"$f":"IFERROR(VLOOKUP(B423,[2]Sheet4!$F$2:$J$364,5,FALSE),\"\")","v":""}]
[null,null,{"$f":"IFERROR(VLOOKUP(B424,[2]Sheet4!$F$2:$J$364,2,FALSE),\"\")","v":""},{"$f":"IFERROR(VLOOKUP(B424,[2]Sheet4!$F$2:$J$364,3,FALSE),\"\")","v":""},{"$f":"IFERROR(VLOOKUP(B424,[2]Sheet4!$F$2:$J$364,4,FALSE),\"\")","v":""},{"$f":"IFERROR(VLOOKUP(B424,[2]Sheet4!$F$2:$J$364,5,FALSE),\"\")","v":""}]
[null,null,{"$f":"IFERROR(VLOOKUP(B425,[2]Sheet4!$F$2:$J$364,2,FALSE),\"\")","v":""},{"$f":"IFERROR(VLOOKUP(B425,[2]Sheet4!$F$2:$J$364,3,FALSE),\"\")","v":""},{"$f":"IFERROR(VLOOKUP(B425,[2]Sheet4!$F$2:$J$364,4,FALSE),\"\")","v":""},{"$f":"IFERROR(VLOOKUP(B425,[2]Sheet4!$F$2:$J$364,5,FALSE),\"\")","v":""}]
[null,null,{"$f":"IFERROR(VLOOKUP(B426,[2]Sheet4!$F$2:$J$364,2,FALSE),\"\")","v":""},{"$f":"IFERROR(VLOOKUP(B426,[2]Sheet4!$F$2:$J$364,3,FALSE),\"\")","v":""},{"$f":"IFERROR(VLOOKUP(B426,[2]Sheet4!$F$2:$J$364,4,FALSE),\"\")","v":""},{"$f":"IFERROR(VLOOKUP(B426,[2]Sheet4!$F$2:$J$364,5,FALSE),\"\")","v":""}]
[null,null,{"$f":"IFERROR(VLOOKUP(B427,[2]Sheet4!$F$2:$J$364,2,FALSE),\"\")","v":""},{"$f":"IFERROR(VLOOKUP(B427,[2]Sheet4!$F$2:$J$364,3,FALSE),\"\")","v":""},{"$f":"IFERROR(VLOOKUP(B427,[2]Sheet4!$F$2:$J$364,4,FALSE),\"\")","v":""},{"$f":"IFERROR(VLOOKUP(B427,[2]Sheet4!$F$2:$J$364,5,FALSE),\"\")","v":""}]
[null,null,{"$f":"IFERROR(VLOOKUP(B428,[2]Sheet4!$F$2:$J$364,2,FALSE),\"\")","v":""},{"$f":"IFERROR(VLOOKUP(B428,[2]Sheet4!$F$2:$J$364,3,FALSE),\"\")","v":""},{"$f":"IFERROR(VLOOKUP(B428,[2]Sheet4!$F$2:$J$364,4,FALSE),\"\")","v":""},{"$f":"IFERROR(VLOOKUP(B428,[2]Sheet4!$F$2:$J$364,5,FALSE),\"\")","v":""}]
[null,null,{"$f":"IFERROR(VLOOKUP(B429,[2]Sheet4!$F$2:$J$364,2,FALSE),\"\")","v":""},{"$f":"IFERROR(VLOOKUP(B429,[2]Sheet4!$F$2:$J$364,3,FALSE),\"\")","v":""},{"$f":"IFERROR(VLOOKUP(B429,[2]Sheet4!$F$2:$J$364,4,FALSE),\"\")","v":""},{"$f":"IFERROR(VLOOKUP(B429,[2]Sheet4!$F$2:$J$364,5,FALSE),\"\")","v":""}]
[null,null,{"$f":"IFERROR(VLOOKUP(B430,[2]Sheet4!$F$2:$J$364,2,FALSE),\"\")","v":""},{"$f":"IFERROR(VLOOKUP(B430,[2]Sheet4!$F$2:$J$364,3,FALSE),\"\")","v":""},{"$f":"IFERROR(VLOOKUP(B430,[2]Sheet4!$F$2:$J$364,4,FALSE),\"\")","v":""},{"$f":"IFERROR(VLOOKUP(B430,[2]Sheet4!$F$2:$J$364,5,FALSE),\"\")","v":""}]
[null,null,{"$f":"IFERROR(VLOOKUP(B431,[2]Sheet4!$F$2:$J$364,2,FALSE),\"\")","v":""},{"$f":"IFERROR(VLOOKUP(B431,[2]Sheet4!$F$2:$J$364,3,FALSE),\"\")","v":""},{"$f":"IFERROR(VLOOKUP(B431,[2]Sheet4!$F$2:$J$364,4,FALSE),\"\")","v":""},{"$f":"IFERROR(VLOOKUP(B431,[2]Sheet4!$F$2:$J$364,5,FALSE),\"\")","v":""}]
[null,null,{"$f":"IFERROR(VLOOKUP(B432,[2]Sheet4!$F$2:$J$364,2,FALSE),\"\")","v":""},{"$f":"IFERROR(VLOOKUP(B432,[2]Sheet4!$F$2:$J$364,3,FALSE),\"\")","v":""},{"$f":"IFERROR(VLOOKUP(B432,[2]Sheet4!$F$2:$J$364,4,FALSE),\"\")","v":""},{"$f":"IFERROR(VLOOKUP(B432,[2]Sheet4!$F$2:$J$364,5,FALSE),\"\")","v":""}]
[null,null,{"$f":"IFERROR(VLOOKUP(B433,[2]Sheet4!$F$2:$J$364,2,FALSE),\"\")","v":""},{"$f":"IFERROR(VLOOKUP(B433,[2]Sheet4!$F$2:$J$364,3,FALSE),\"\")","v":""},{"$f":"IFERROR(VLOOKUP(B433,[2]Sheet4!$F$2:$J$364,4,FALSE),\"\")","v":""},{"$f":"IFERROR(VLOOKUP(B433,[2]Sheet4!$F$2:$J$364,5,FALSE),\"\")","v":""}]
[null,null,{"$f":"IFERROR(VLOOKUP(B434,[2]Sheet4!$F$2:$J$364,2,FALSE),\"\")","v":""},{"$f":"IFERROR(VLOOKUP(B434,[2]Sheet4!$F$2:$J$364,3,FALSE),\"\")","v":""},{"$f":"IFERROR(VLOOKUP(B434,[2]Sheet4!$F$2:$J$364,4,FALSE),\"\")","v":""},{"$f":"IFERROR(VLOOKUP(B434,[2]Sheet4!$F$2:$J$364,5,FALSE),\"\")","v":""}]
[null,null,{"$f":"IFERROR(VLOOKUP(B435,[2]Sheet4!$F$2:$J$364,2,FALSE),\"\")","v":""},{"$f":"IFERROR(VLOOKUP(B435,[2]Sheet4!$F$2:$J$364,3,FALSE),\"\")","v":""},{"$f":"IFERROR(VLOOKUP(B435,[2]Sheet4!$F$2:$J$364,4,FALSE),\"\")","v":""},{"$f":"IFERROR(VLOOKUP(B435,[2]Sheet4!$F$2:$J$364,5,FALSE),\"\")","v":""}]
[null,null,{"$f":"IFERROR(VLOOKUP(B436,[2]Sheet4!$F$2:$J$364,2,FALSE),\"\")","v":""},{"$f":"IFERROR(VLOOKUP(B436,[2]Sheet4!$F$2:$J$364,3,FALSE),\"\")","v":""},{"$f":"IFERROR(VLOOKUP(B436,[2]Sheet4!$F$2:$J$364,4,FALSE),\"\")","v":""},{"$f":"IFERROR(VLOOKUP(B436,[2]Sheet4!$F$2:$J$364,5,FALSE),\"\")","v":""}]
[null,null,{"$f":"IFERROR(VLOOKUP(B437,[2]Sheet4!$F$2:$J$364,2,FALSE),\"\")","v":""},{"$f":"IFERROR(VLOOKUP(B437,[2]Sheet4!$F$2:$J$364,3,FALSE),\"\")","v":""},{"$f":"IFERROR(VLOOKUP(B437,[2]Sheet4!$F$2:$J$364,4,FALSE),\"\")","v":""},{"$f":"IFERROR(VLOOKUP(B437,[2]Sheet4!$F$2:$J$364,5,FALSE),\"\")","v":""}]
[null,null,{"$f":"IFERROR(VLOOKUP(B438,[2]Sheet4!$F$2:$J$364,2,FALSE),\"\")","v":""},{"$f":"IFERROR(VLOOKUP(B438,[2]Sheet4!$F$2:$J$364,3,FALSE),\"\")","v":""},{"$f":"IFERROR(VLOOKUP(B438,[2]Sheet4!$F$2:$J$364,4,FALSE),\"\")","v":""},{"$f":"IFERROR(VLOOKUP(B438,[2]Sheet4!$F$2:$J$364,5,FALSE),\"\")","v":""}]
[null,null,{"$f":"IFERROR(VLOOKUP(B439,[2]Sheet4!$F$2:$J$364,2,FALSE),\"\")","v":""},{"$f":"IFERROR(VLOOKUP(B439,[2]Sheet4!$F$2:$J$364,3,FALSE),\"\")","v":""},{"$f":"IFERROR(VLOOKUP(B439,[2]Sheet4!$F$2:$J$364,4,FALSE),\"\")","v":""},{"$f":"IFERROR(VLOOKUP(B439,[2]Sheet4!$F$2:$J$364,5,FALSE),\"\")","v":""}]
[null,null,{"$f":"IFERROR(VLOOKUP(B440,[2]Sheet4!$F$2:$J$364,2,FALSE),\"\")","v":""},{"$f":"IFERROR(VLOOKUP(B440,[2]Sheet4!$F$2:$J$364,3,FALSE),\"\")","v":""},{"$f":"IFERROR(VLOOKUP(B440,[2]Sheet4!$F$2:$J$364,4,FALSE),\"\")","v":""},{"$f":"IFERROR(VLOOKUP(B440,[2]Sheet4!$F$2:$J$364,5,FALSE),\"\")","v":""}]
[null,null,{"$f":"IFERROR(VLOOKUP(B441,[2]Sheet4!$F$2:$J$364,2,FALSE),\"\")","v":""},{"$f":"IFERROR(VLOOKUP(B441,[2]Sheet4!$F$2:$J$364,3,FALSE),\"\")","v":""},{"$f":"IFERROR(VLOOKUP(B441,[2]Sheet4!$F$2:$J$364,4,FALSE),\"\")","v":""},{"$f":"IFERROR(VLOOKUP(B441,[2]Sheet4!$F$2:$J$364,5,FALSE),\"\")","v":""}]
[null,null,{"$f":"IFERROR(VLOOKUP(B442,[2]Sheet4!$F$2:$J$364,2,FALSE),\"\")","v":""},{"$f":"IFERROR(VLOOKUP(B442,[2]Sheet4!$F$2:$J$364,3,FALSE),\"\")","v":""},{"$f":"IFERROR(VLOOKUP(B442,[2]Sheet4!$F$2:$J$364,4,FALSE),\"\")","v":""},{"$f":"IFERROR(VLOOKUP(B442,[2]Sheet4!$F$2:$J$364,5,FALSE),\"\")","v":""}]
[null,null,{"$f":"IFERROR(VLOOKUP(B443,[2]Sheet4!$F$2:$J$364,2,FALSE),\"\")","v":""},{"$f":"IFERROR(VLOOKUP(B443,[2]Sheet4!$F$2:$J$364,3,FALSE),\"\")","v":""},{"$f":"IFERROR(VLOOKUP(B443,[2]Sheet4!$F$2:$J$364,4,FALSE),\"\")","v":""},{"$f":"IFERROR(VLOOKUP(B443,[2]Sheet4!$F$2:$J$364,5,FALSE),\"\")","v":""}]
[null,null,{"$f":"IFERROR(VLOOKUP(B444,[2]Sheet4!$F$2:$J$364,2,FALSE),\"\")","v":""},{"$f":"IFERROR(VLOOKUP(B444,[2]Sheet4!$F$2:$J$364,3,FALSE),\"\")","v":""},{"$f":"IFERROR(VLOOKUP(B444,[2]Sheet4!$F$2:$J$364,4,FALSE),\"\")","v":""},{"$f":"IFERROR(VLOOKUP(B444,[2]Sheet4!$F$2:$J$364,5,FALSE),\"\")","v":""}]
[null,null,{"$f":"IFERROR(VLOOKUP(B445,[2]Sheet4!$F$2:$J$364,2,FALSE),\"\")","v":""},{"$f":"IFERROR(VLOOKUP(B445,[2]Sheet4!$F$2:$J$364,3,FALSE),\"\")","v":""},{"$f":"IFERROR(VLOOKUP(B445,[2]Sheet4!$F$2:$J$364,4,FALSE),\"\")","v":""},{"$f":"IFERROR(VLOOKUP(B445,[2]Sheet4!$F$2:$J$364,5,FALSE),\"\")","v":""}]
[null,null,{"$f":"IFERROR(VLOOKUP(B446,[2]Sheet4!$F$2:$J$364,2,FALSE),\"\")","v":""},{"$f":"IFERROR(VLOOKUP(B446,[2]Sheet4!$F$2:$J$364,3,FALSE),\"\")","v":""},{"$f":"IFERROR(VLOOKUP(B446,[2]Sheet4!$F$2:$J$364,4,FALSE),\"\")","v":""},{"$f":"IFERROR(VLOOKUP(B446,[2]Sheet4!$F$2:$J$364,5,FALSE),\"\")","v":""}]
[null,null,{"$f":"IFERROR(VLOOKUP(B447,[2]Sheet4!$F$2:$J$364,2,FALSE),\"\")","v":""},{"$f":"IFERROR(VLOOKUP(B447,[2]Sheet4!$F$2:$J$364,3,FALSE),\"\")","v":""},{"$f":"IFERROR(VLOOKUP(B447,[2]Sheet4!$F$2:$J$364,4,FALSE),\"\")","v":""},{"$f":"IFERROR(VLOOKUP(B447,[2]Sheet4!$F$2:$J$364,5,FALSE),\"\")","v":""}]
[null,null,{"$f":"IFERROR(VLOOKUP(B448,[2]Sheet4!$F$2:$J$364,2,FALSE),\"\")","v":""},{"$f":"IFERROR(VLOOKUP(B448,[2]Sheet4!$F$2:$J$364,3,FALSE),\"\")","v":""},{"$f":"IFERROR(VLOOKUP(B448,[2]Sheet4!$F$2:$J$364,4,FALSE),\"\")","v":""},{"$f":"IFERROR(VLOOKUP(B448,[2]Sheet4!$F$2:$J$364,5,FALSE),\"\")","v":""}]
[null,null,{"$f":"IFERROR(VLOOKUP(B449,[2]Sheet4!$F$2:$J$364,2,FALSE),\"\")","v":""},{"$f":"IFERROR(VLOOKUP(B449,[2]Sheet4!$F$2:$J$364,3,FALSE),\"\")","v":""},{"$f":"IFERROR(VLOOKUP(B449,[2]Sheet4!$F$2:$J$364,4,FALSE),\"\")","v":""},{"$f":"IFERROR(VLOOKUP(B449,[2]Sheet4!$F$2:$J$364,5,FALSE),\"\")","v":""}]
[null,null,{"$f":"IFERROR(VLOOKUP(B450,[2]Sheet4!$F$2:$J$364,2,FALSE),\"\")","v":""},{"$f":"IFERROR(VLOOKUP(B450,[2]Sheet4!$F$2:$J$364,3,FALSE),\"\")","v":""},{"$f":"IFERROR(VLOOKUP(B450,[2]Sheet4!$F$2:$J$364,4,FALSE),\"\")","v":""},{"$f":"IFERROR(VLOOKUP(B450,[2]Sheet4!$F$2:$J$364,5,FALSE),\"\")","v":""}]
[null,null,{"$f":"IFERROR(VLOOKUP(B451,[2]Sheet4!$F$2:$J$364,2,FALSE),\"\")","v":""},{"$f":"IFERROR(VLOOKUP(B451,[2]Sheet4!$F$2:$J$364,3,FALSE),\"\")","v":""},{"$f":"IFERROR(VLOOKUP(B451,[2]Sheet4!$F$2:$J$364,4,FALSE),\"\")","v":""},{"$f":"IFERROR(VLOOKUP(B451,[2]Sheet4!$F$2:$J$364,5,FALSE),\"\")","v":""}]
[null,null,{"$f":"IFERROR(VLOOKUP(B452,[2]Sheet4!$F$2:$J$364,2,FALSE),\"\")","v":""},{"$f":"IFERROR(VLOOKUP(B452,[2]Sheet4!$F$2:$J$364,3,FALSE),\"\")","v":""},{"$f":"IFERROR(VLOOKUP(B452,[2]Sheet4!$F$2:$J$364,4,FALSE),\"\")","v":""},{"$f":"IFERROR(VLOOKUP(B452,[2]Sheet4!$F$2:$J$364,5,FALSE),\"\")","v":""}]
[null,null,{"$f":"IFERROR(VLOOKUP(B453,[2]Sheet4!$F$2:$J$364,2,FALSE),\"\")","v":""},{"$f":"IFERROR(VLOOKUP(B453,[2]Sheet4!$F$2:$J$364,3,FALSE),\"\")","v":""},{"$f":"IFERROR(VLOOKUP(B453,[2]Sheet4!$F$2:$J$364,4,FALSE),\"\")","v":""},{"$f":"IFERROR(VLOOKUP(B453,[2]Sheet4!$F$2:$J$364,5,FALSE),\"\")","v":""}]
[null,null,{"$f":"IFERROR(VLOOKUP(B454,[2]Sheet4!$F$2:$J$364,2,FALSE),\"\")","v":""},{"$f":"IFERROR(VLOOKUP(B454,[2]Sheet4!$F$2:$J$364,3,FALSE),\"\")","v":""},{"$f":"IFERROR(VLOOKUP(B454,[2]Sheet4!$F$2:$J$364,4,FALSE),\"\")","v":""},{"$f":"IFERROR(VLOOKUP(B454,[2]Sheet4!$F$2:$J$364,5,FALSE),\"\")","v":""}]
[null,null,{"$f":"IFERROR(VLOOKUP(B455,[2]Sheet4!$F$2:$J$364,2,FALSE),\"\")","v":""},{"$f":"IFERROR(VLOOKUP(B455,[2]Sheet4!$F$2:$J$364,3,FALSE),\"\")","v":""},{"$f":"IFERROR(VLOOKUP(B455,[2]Sheet4!$F$2:$J$364,4,FALSE),\"\")","v":""},{"$f":"IFERROR(VLOOKUP(B455,[2]Sheet4!$F$2:$J$364,5,FALSE),\"\")","v":""}]
[null,null,{"$f":"IFERROR(VLOOKUP(B456,[2]Sheet4!$F$2:$J$364,2,FALSE),\"\")","v":""},{"$f":"IFERROR(VLOOKUP(B456,[2]Sheet4!$F$2:$J$364,3,FALSE),\"\")","v":""},{"$f":"IFERROR(VLOOKUP(B456,[2]Sheet4!$F$2:$J$364,4,FALSE),\"\")","v":""},{"$f":"IFERROR(VLOOKUP(B456,[2]Sheet4!$F$2:$J$364,5,FALSE),\"\")","v":""}]
[null,null,{"$f":"IFERROR(VLOOKUP(B457,[2]Sheet4!$F$2:$J$364,2,FALSE),\"\")","v":""},{"$f":"IFERROR(VLOOKUP(B457,[2]Sheet4!$F$2:$J$364,3,FALSE),\"\")","v":""},{"$f":"IFERROR(VLOOKUP(B457,[2]Sheet4!$F$2:$J$364,4,FALSE),\"\")","v":""},{"$f":"IFERROR(VLOOKUP(B457,[2]Sheet4!$F$2:$J$364,5,FALSE),\"\")","v":""}]
[null,null,{"$f":"IFERROR(VLOOKUP(B458,[2]Sheet4!$F$2:$J$364,2,FALSE),\"\")","v":""},{"$f":"IFERROR(VLOOKUP(B458,[2]Sheet4!$F$2:$J$364,3,FALSE),\"\")","v":""},{"$f":"IFERROR(VLOOKUP(B458,[2]Sheet4!$F$2:$J$364,4,FALSE),\"\")","v":""},{"$f":"IFERROR(VLOOKUP(B458,[2]Sheet4!$F$2:$J$364,5,FALSE),\"\")","v":""}]
[null,null,{"$f":"IFERROR(VLOOKUP(B459,[2]Sheet4!$F$2:$J$364,2,FALSE),\"\")","v":""},{"$f":"IFERROR(VLOOKUP(B459,[2]Sheet4!$F$2:$J$364,3,FALSE),\"\")","v":""},{"$f":"IFERROR(VLOOKUP(B459,[2]Sheet4!$F$2:$J$364,4,FALSE),\"\")","v":""},{"$f":"IFERROR(VLOOKUP(B459,[2]Sheet4!$F$2:$J$364,5,FALSE),\"\")","v":""}]
[null,null,{"$f":"IFERROR(VLOOKUP(B460,[2]Sheet4!$F$2:$J$364,2,FALSE),\"\")","v":""},{"$f":"IFERROR(VLOOKUP(B460,[2]Sheet4!$F$2:$J$364,3,FALSE),\"\")","v":""},{"$f":"IFERROR(VLOOKUP(B460,[2]Sheet4!$F$2:$J$364,4,FALSE),\"\")","v":""},{"$f":"IFERROR(VLOOKUP(B460,[2]Sheet4!$F$2:$J$364,5,FALSE),\"\")","v":""}]
[null,null,{"$f":"IFERROR(VLOOKUP(B461,[2]Sheet4!$F$2:$J$364,2,FALSE),\"\")","v":""},{"$f":"IFERROR(VLOOKUP(B461,[2]Sheet4!$F$2:$J$364,3,FALSE),\"\")","v":""},{"$f":"IFERROR(VLOOKUP(B461,[2]Sheet4!$F$2:$J$364,4,FALSE),\"\")","v":""},{"$f":"IFERROR(VLOOKUP(B461,[2]Sheet4!$F$2:$J$364,5,FALSE),\"\")","v":""}]
[null,null,{"$f":"IFERROR(VLOOKUP(B462,[2]Sheet4!$F$2:$J$364,2,FALSE),\"\")","v":""},{"$f":"IFERROR(VLOOKUP(B462,[2]Sheet4!$F$2:$J$364,3,FALSE),\"\")","v":""},{"$f":"IFERROR(VLOOKUP(B462,[2]Sheet4!$F$2:$J$364,4,FALSE),\"\")","v":""},{"$f":"IFERROR(VLOOKUP(B462,[2]Sheet4!$F$2:$J$364,5,FALSE),\"\")","v":""}]
[null,null,{"$f":"IFERROR(VLOOKUP(B463,[2]Sheet4!$F$2:$J$364,2,FALSE),\"\")","v":""},{"$f":"IFERROR(VLOOKUP(B463,[2]Sheet4!$F$2:$J$364,3,FALSE),\"\")","v":""},{"$f":"IFERROR(VLOOKUP(B463,[2]Sheet4!$F$2:$J$364,4,FALSE),\"\")","v":""},{"$f":"IFERROR(VLOOKUP(B463,[2]Sheet4!$F$2:$J$364,5,FALSE),\"\")","v":""}]
[null,null,{"$f":"IFERROR(VLOOKUP(B464,[2]Sheet4!$F$2:$J$364,2,FALSE),\"\")","v":""},{"$f":"IFERROR(VLOOKUP(B464,[2]Sheet4!$F$2:$J$364,3,FALSE),\"\")","v":""},{"$f":"IFERROR(VLOOKUP(B464,[2]Sheet4!$F$2:$J$364,4,FALSE),\"\")","v":""},{"$f":"IFERROR(VLOOKUP(B464,[2]Sheet4!$F$2:$J$364,5,FALSE),\"\")","v":""}]
[null,null,{"$f":"IFERROR(VLOOKUP(B465,[2]Sheet4!$F$2:$J$364,2,FALSE),\"\")","v":""},{"$f":"IFERROR(VLOOKUP(B465,[2]Sheet4!$F$2:$J$364,3,FALSE),\"\")","v":""},{"$f":"IFERROR(VLOOKUP(B465,[2]Sheet4!$F$2:$J$364,4,FALSE),\"\")","v":""},{"$f":"IFERROR(VLOOKUP(B465,[2]Sheet4!$F$2:$J$364,5,FALSE),\"\")","v":""}]
[null,null,{"$f":"IFERROR(VLOOKUP(B466,[2]Sheet4!$F$2:$J$364,2,FALSE),\"\")","v":""},{"$f":"IFERROR(VLOOKUP(B466,[2]Sheet4!$F$2:$J$364,3,FALSE),\"\")","v":""},{"$f":"IFERROR(VLOOKUP(B466,[2]Sheet4!$F$2:$J$364,4,FALSE),\"\")","v":""},{"$f":"IFERROR(VLOOKUP(B466,[2]Sheet4!$F$2:$J$364,5,FALSE),\"\")","v":""}]
[null,null,{"$f":"IFERROR(VLOOKUP(B467,[2]Sheet4!$F$2:$J$364,2,FALSE),\"\")","v":""},{"$f":"IFERROR(VLOOKUP(B467,[2]Sheet4!$F$2:$J$364,3,FALSE),\"\")","v":""},{"$f":"IFERROR(VLOOKUP(B467,[2]Sheet4!$F$2:$J$364,4,FALSE),\"\")","v":""},{"$f":"IFERROR(VLOOKUP(B467,[2]Sheet4!$F$2:$J$364,5,FALSE),\"\")","v":""}]
[null,null,{"$f":"IFERROR(VLOOKUP(B468,[2]Sheet4!$F$2:$J$364,2,FALSE),\"\")","v":""},{"$f":"IFERROR(VLOOKUP(B468,[2]Sheet4!$F$2:$J$364,3,FALSE),\"\")","v":""},{"$f":"IFERROR(VLOOKUP(B468,[2]Sheet4!$F$2:$J$364,4,FALSE),\"\")","v":""},{"$f":"IFERROR(VLOOKUP(B468,[2]Sheet4!$F$2:$J$364,5,FALSE),\"\")","v":""}]
[null,null,{"$f":"IFERROR(VLOOKUP(B469,[2]Sheet4!$F$2:$J$364,2,FALSE),\"\")","v":""},{"$f":"IFERROR(VLOOKUP(B469,[2]Sheet4!$F$2:$J$364,3,FALSE),\"\")","v":""},{"$f":"IFERROR(VLOOKUP(B469,[2]Sheet4!$F$2:$J$364,4,FALSE),\"\")","v":""},{"$f":"IFERROR(VLOOKUP(B469,[2]Sheet4!$F$2:$J$364,5,FALSE),\"\")","v":""}]
[null,null,{"$f":"IFERROR(VLOOKUP(B470,[2]Sheet4!$F$2:$J$364,2,FALSE),\"\")","v":""},{"$f":"IFERROR(VLOOKUP(B470,[2]Sheet4!$F$2:$J$364,3,FALSE),\"\")","v":""},{"$f":"IFERROR(VLOOKUP(B470,[2]Sheet4!$F$2:$J$364,4,FALSE),\"\")","v":""},{"$f":"IFERROR(VLOOKUP(B470,[2]Sheet4!$F$2:$J$364,5,FALSE),\"\")","v":""}]
[null,null,{"$f":"IFERROR(VLOOKUP(B471,[2]Sheet4!$F$2:$J$364,2,FALSE),\"\")","v":""},{"$f":"IFERROR(VLOOKUP(B471,[2]Sheet4!$F$2:$J$364,3,FALSE),\"\")","v":""},{"$f":"IFERROR(VLOOKUP(B471,[2]Sheet4!$F$2:$J$364,4,FALSE),\"\")","v":""},{"$f":"IFERROR(VLOOKUP(B471,[2]Sheet4!$F$2:$J$364,5,FALSE),\"\")","v":""}]
[null,null,{"$f":"IFERROR(VLOOKUP(B472,[2]Sheet4!$F$2:$J$364,2,FALSE),\"\")","v":""},{"$f":"IFERROR(VLOOKUP(B472,[2]Sheet4!$F$2:$J$364,3,FALSE),\"\")","v":""},{"$f":"IFERROR(VLOOKUP(B472,[2]Sheet4!$F$2:$J$364,4,FALSE),\"\")","v":""},{"$f":"IFERROR(VLOOKUP(B472,[2]Sheet4!$F$2:$J$364,5,FALSE),\"\")","v":""}]
[null,null,{"$f":"IFERROR(VLOOKUP(B473,[2]Sheet4!$F$2:$J$364,2,FALSE),\"\")","v":""},{"$f":"IFERROR(VLOOKUP(B473,[2]Sheet4!$F$2:$J$364,3,FALSE),\"\")","v":""},{"$f":"IFERROR(VLOOKUP(B473,[2]Sheet4!$F$2:$J$364,4,FALSE),\"\")","v":""},{"$f":"IFERROR(VLOOKUP(B473,[2]Sheet4!$F$2:$J$364,5,FALSE),\"\")","v":""}]
[null,null,{"$f":"IFERROR(VLOOKUP(B474,[2]Sheet4!$F$2:$J$364,2,FALSE),\"\")","v":""},{"$f":"IFERROR(VLOOKUP(B474,[2]Sheet4!$F$2:$J$364,3,FALSE),\"\")","v":""},{"$f":"IFERROR(VLOOKUP(B474,[2]Sheet4!$F$2:$J$364,4,FALSE),\"\")","v":""},{"$f":"IFERROR(VLOOKUP(B474,[2]Sheet4!$F$2:$J$364,5,FALSE),\"\")","v":""}]
[null,null,{"$f":"IFERROR(VLOOKUP(B475,[2]Sheet4!$F$2:$J$364,2,FALSE),\"\")","v":""},{"$f":"IFERROR(VLOOKUP(B475,[2]Sheet4!$F$2:$J$364,3,FALSE),\"\")","v":""},{"$f":"IFERROR(VLOOKUP(B475,[2]Sheet4!$F$2:$J$364,4,FALSE),\"\")","v":""},{"$f":"IFERROR(VLOOKUP(B475,[2]Sheet4!$F$2:$J$364,5,FALSE),\"\")","v":""}]
[null,null,{"$f":"IFERROR(VLOOKUP(B476,[2]Sheet4!$F$2:$J$364,2,FALSE),\"\")","v":""},{"$f":"IFERROR(VLOOKUP(B476,[2]Sheet4!$F$2:$J$364,3,FALSE),\"\")","v":""},{"$f":"IFERROR(VLOOKUP(B476,[2]Sheet4!$F$2:$J$364,4,FALSE),\"\")","v":""},{"$f":"IFERROR(VLOOKUP(B476,[2]Sheet4!$F$2:$J$364,5,FALSE),\"\")","v":""}]
[null,null,{"$f":"IFERROR(VLOOKUP(B477,[2]Sheet4!$F$2:$J$364,2,FALSE),\"\")","v":""},{"$f":"IFERROR(VLOOKUP(B477,[2]Sheet4!$F$2:$J$364,3,FALSE),\"\")","v":""},{"$f":"IFERROR(VLOOKUP(B477,[2]Sheet4!$F$2:$J$364,4,FALSE),\"\")","v":""},{"$f":"IFERROR(VLOOKUP(B477,[2]Sheet4!$F$2:$J$364,5,FALSE),\"\")","v":""}]
[null,null,{"$f":"IFERROR(VLOOKUP(B478,[2]Sheet4!$F$2:$J$364,2,FALSE),\"\")","v":""},{"$f":"IFERROR(VLOOKUP(B478,[2]Sheet4!$F$2:$J$364,3,FALSE),\"\")","v":""},{"$f":"IFERROR(VLOOKUP(B478,[2]Sheet4!$F$2:$J$364,4,FALSE),\"\")","v":""},{"$f":"IFERROR(VLOOKUP(B478,[2]Sheet4!$F$2:$J$364,5,FALSE),\"\")","v":""}]
[null,null,{"$f":"IFERROR(VLOOKUP(B479,[2]Sheet4!$F$2:$J$364,2,FALSE),\"\")","v":""},{"$f":"IFERROR(VLOOKUP(B479,[2]Sheet4!$F$2:$J$364,3,FALSE),\"\")","v":""},{"$f":"IFERROR(VLOOKUP(B479,[2]Sheet4!$F$2:$J$364,4,FALSE),\"\")","v":""},{"$f":"IFERROR(VLOOKUP(B479,[2]Sheet4!$F$2:$J$364,5,FALSE),\"\")","v":""}]
[null,null,{"$f":"IFERROR(VLOOKUP(B480,[2]Sheet4!$F$2:$J$364,2,FALSE),\"\")","v":""},{"$f":"IFERROR(VLOOKUP(B480,[2]Sheet4!$F$2:$J$364,3,FALSE),\"\")","v":""},{"$f":"IFERROR(VLOOKUP(B480,[2]Sheet4!$F$2:$J$364,4,FALSE),\"\")","v":""},{"$f":"IFERROR(VLOOKUP(B480,[2]Sheet4!$F$2:$J$364,5,FALSE),\"\")","v":""}]
[null,null,{"$f":"IFERROR(VLOOKUP(B481,[2]Sheet4!$F$2:$J$364,2,FALSE),\"\")","v":""},{"$f":"IFERROR(VLOOKUP(B481,[2]Sheet4!$F$2:$J$364,3,FALSE),\"\")","v":""},{"$f":"IFERROR(VLOOKUP(B481,[2]Sheet4!$F$2:$J$364,4,FALSE),\"\")","v":""},{"$f":"IFERROR(VLOOKUP(B481,[2]Sheet4!$F$2:$J$364,5,FALSE),\"\")","v":""}]
[null,null,{"$f":"IFERROR(VLOOKUP(B482,[2]Sheet4!$F$2:$J$364,2,FALSE),\"\")","v":""},{"$f":"IFERROR(VLOOKUP(B482,[2]Sheet4!$F$2:$J$364,3,FALSE),\"\")","v":""},{"$f":"IFERROR(VLOOKUP(B482,[2]Sheet4!$F$2:$J$364,4,FALSE),\"\")","v":""},{"$f":"IFERROR(VLOOKUP(B482,[2]Sheet4!$F$2:$J$364,5,FALSE),\"\")","v":""}]
[null,null,{"$f":"IFERROR(VLOOKUP(B483,[2]Sheet4!$F$2:$J$364,2,FALSE),\"\")","v":""},{"$f":"IFERROR(VLOOKUP(B483,[2]Sheet4!$F$2:$J$364,3,FALSE),\"\")","v":""},{"$f":"IFERROR(VLOOKUP(B483,[2]Sheet4!$F$2:$J$364,4,FALSE),\"\")","v":""},{"$f":"IFERROR(VLOOKUP(B483,[2]Sheet4!$F$2:$J$364,5,FALSE),\"\")","v":""}]
[null,null,{"$f":"IFERROR(VLOOKUP(B484,[2]Sheet4!$F$2:$J$364,2,FALSE),\"\")","v":""},{"$f":"IFERROR(VLOOKUP(B484,[2]Sheet4!$F$2:$J$364,3,FALSE),\"\")","v":""},{"$f":"IFERROR(VLOOKUP(B484,[2]Sheet4!$F$2:$J$364,4,FALSE),\"\")","v":""},{"$f":"IFERROR(VLOOKUP(B484,[2]Sheet4!$F$2:$J$364,5,FALSE),\"\")","v":""}]
[null,null,{"$f":"IFERROR(VLOOKUP(B485,[2]Sheet4!$F$2:$J$364,2,FALSE),\"\")","v":""},{"$f":"IFERROR(VLOOKUP(B485,[2]Sheet4!$F$2:$J$364,3,FALSE),\"\")","v":""},{"$f":"IFERROR(VLOOKUP(B485,[2]Sheet4!$F$2:$J$364,4,FALSE),\"\")","v":""},{"$f":"IFERROR(VLOOKUP(B485,[2]Sheet4!$F$2:$J$364,5,FALSE),\"\")","v":""}]
[null,null,{"$f":"IFERROR(VLOOKUP(B486,[2]Sheet4!$F$2:$J$364,2,FALSE),\"\")","v":""},{"$f":"IFERROR(VLOOKUP(B486,[2]Sheet4!$F$2:$J$364,3,FALSE),\"\")","v":""},{"$f":"IFERROR(VLOOKUP(B486,[2]Sheet4!$F$2:$J$364,4,FALSE),\"\")","v":""},{"$f":"IFERROR(VLOOKUP(B486,[2]Sheet4!$F$2:$J$364,5,FALSE),\"\")","v":""}]
[null,null,{"$f":"IFERROR(VLOOKUP(B487,[2]Sheet4!$F$2:$J$364,2,FALSE),\"\")","v":""},{"$f":"IFERROR(VLOOKUP(B487,[2]Sheet4!$F$2:$J$364,3,FALSE),\"\")","v":""},{"$f":"IFERROR(VLOOKUP(B487,[2]Sheet4!$F$2:$J$364,4,FALSE),\"\")","v":""},{"$f":"IFERROR(VLOOKUP(B487,[2]Sheet4!$F$2:$J$364,5,FALSE),\"\")","v":""}]
[null,null,{"$f":"IFERROR(VLOOKUP(B488,[2]Sheet4!$F$2:$J$364,2,FALSE),\"\")","v":""},{"$f":"IFERROR(VLOOKUP(B488,[2]Sheet4!$F$2:$J$364,3,FALSE),\"\")","v":""},{"$f":"IFERROR(VLOOKUP(B488,[2]Sheet4!$F$2:$J$364,4,FALSE),\"\")","v":""},{"$f":"IFERROR(VLOOKUP(B488,[2]Sheet4!$F$2:$J$364,5,FALSE),\"\")","v":""}]
[null,null,{"$f":"IFERROR(VLOOKUP(B489,[2]Sheet4!$F$2:$J$364,2,FALSE),\"\")","v":""},{"$f":"IFERROR(VLOOKUP(B489,[2]Sheet4!$F$2:$J$364,3,FALSE),\"\")","v":""},{"$f":"IFERROR(VLOOKUP(B489,[2]Sheet4!$F$2:$J$364,4,FALSE),\"\")","v":""},{"$f":"IFERROR(VLOOKUP(B489,[2]Sheet4!$F$2:$J$364,5,FALSE),\"\")","v":""}]
[null,null,{"$f":"IFERROR(VLOOKUP(B490,[2]Sheet4!$F$2:$J$364,2,FALSE),\"\")","v":""},{"$f":"IFERROR(VLOOKUP(B490,[2]Sheet4!$F$2:$J$364,3,FALSE),\"\")","v":""},{"$f":"IFERROR(VLOOKUP(B490,[2]Sheet4!$F$2:$J$364,4,FALSE),\"\")","v":""},{"$f":"IFERROR(VLOOKUP(B490,[2]Sheet4!$F$2:$J$364,5,FALSE),\"\")","v":""}]
[null,null,{"$f":"IFERROR(VLOOKUP(B491,[2]Sheet4!$F$2:$J$364,2,FALSE),\"\")","v":""},{"$f":"IFERROR(VLOOKUP(B491,[2]Sheet4!$F$2:$J$364,3,FALSE),\"\")","v":""},{"$f":"IFERROR(VLOOKUP(B491,[2]Sheet4!$F$2:$J$364,4,FALSE),\"\")","v":""},{"$f":"IFERROR(VLOOKUP(B491,[2]Sheet4!$F$2:$J$364,5,FALSE),\"\")","v":""}]
[null,null,{"$f":"IFERROR(VLOOKUP(B492,[2]Sheet4!$F$2:$J$364,2,FALSE),\"\")","v":""},{"$f":"IFERROR(VLOOKUP(B492,[2]Sheet4!$F$2:$J$364,3,FALSE),\"\")","v":""},{"$f":"IFERROR(VLOOKUP(B492,[2]Sheet4!$F$2:$J$364,4,FALSE),\"\")","v":""},{"$f":"IFERROR(VLOOKUP(B492,[2]Sheet4!$F$2:$J$364,5,FALSE),\"\")","v":""}]
[null,null,{"$f":"IFERROR(VLOOKUP(B493,[2]Sheet4!$F$2:$J$364,2,FALSE),\"\")","v":""},{"$f":"IFERROR(VLOOKUP(B493,[2]Sheet4!$F$2:$J$364,3,FALSE),\"\")","v":""},{"$f":"IFERROR(VLOOKUP(B493,[2]Sheet4!$F$2:$J$364,4,FALSE),\"\")","v":""},{"$f":"IFERROR(VLOOKUP(B493,[2]Sheet4!$F$2:$J$364,5,FALSE),\"\")","v":""}]
[null,null,{"$f":"IFERROR(VLOOKUP(B494,[2]Sheet4!$F$2:$J$364,2,FALSE),\"\")","v":""},{"$f":"IFERROR(VLOOKUP(B494,[2]Sheet4!$F$2:$J$364,3,FALSE),\"\")","v":""},{"$f":"IFERROR(VLOOKUP(B494,[2]Sheet4!$F$2:$J$364,4,FALSE),\"\")","v":""},{"$f":"IFERROR(VLOOKUP(B494,[2]Sheet4!$F$2:$J$364,5,FALSE),\"\")","v":""}]
[null,null,{"$f":"IFERROR(VLOOKUP(B495,[2]Sheet4!$F$2:$J$364,2,FALSE),\"\")","v":""},{"$f":"IFERROR(VLOOKUP(B495,[2]Sheet4!$F$2:$J$364,3,FALSE),\"\")","v":""},{"$f":"IFERROR(VLOOKUP(B495,[2]Sheet4!$F$2:$J$364,4,FALSE),\"\")","v":""},{"$f":"IFERROR(VLOOKUP(B495,[2]Sheet4!$F$2:$J$364,5,FALSE),\"\")","v":""}]
[null,null,{"$f":"IFERROR(VLOOKUP(B496,[2]Sheet4!$F$2:$J$364,2,FALSE),\"\")","v":""},{"$f":"IFERROR(VLOOKUP(B496,[2]Sheet4!$F$2:$J$364,3,FALSE),\"\")","v":""},{"$f":"IFERROR(VLOOKUP(B496,[2]Sheet4!$F$2:$J$364,4,FALSE),\"\")","v":""},{"$f":"IFERROR(VLOOKUP(B496,[2]Sheet4!$F$2:$J$364,5,FALSE),\"\")","v":""}]
[null,null,{"$f":"IFERROR(VLOOKUP(B497,[2]Sheet4!$F$2:$J$364,2,FALSE),\"\")","v":""},{"$f":"IFERROR(VLOOKUP(B497,[2]Sheet4!$F$2:$J$364,3,FALSE),\"\")","v":""},{"$f":"IFERROR(VLOOKUP(B497,[2]Sheet4!$F$2:$J$364,4,FALSE),\"\")","v":""},{"$f":"IFERROR(VLOOKUP(B497,[2]Sheet4!$F$2:$J$364,5,FALSE),\"\")","v":""}]
[null,null,{"$f":"IFERROR(VLOOKUP(B498,[2]Sheet4!$F$2:$J$364,2,FALSE),\"\")","v":""},{"$f":"IFERROR(VLOOKUP(B498,[2]Sheet4!$F$2:$J$364,3,FALSE),\"\")","v":""},{"$f":"IFERROR(VLOOKUP(B498,[2]Sheet4!$F$2:$J$364,4,FALSE),\"\")","v":""},{"$f":"IFERROR(VLOOKUP(B498,[2]Sheet4!$F$2:$J$364,5,FALSE),\"\")","v":""}]
[null,null,{"$f":"IFERROR(VLOOKUP(B499,[2]Sheet4!$F$2:$J$364,2,FALSE),\"\")","v":""},{"$f":"IFERROR(VLOOKUP(B499,[2]Sheet4!$F$2:$J$364,3,FALSE),\"\")","v":""},{"$f":"IFERROR(VLOOKUP(B499,[2]Sheet4!$F$2:$J$364,4,FALSE),\"\")","v":""},{"$f":"IFERROR(VLOOKUP(B499,[2]Sheet4!$F$2:$J$364,5,FALSE),\"\")","v":""}]
[null,null,{"$f":"IFERROR(VLOOKUP(B500,[2]Sheet4!$F$2:$J$364,2,FALSE),\"\")","v":""},{"$f":"IFERROR(VLOOKUP(B500,[2]Sheet4!$F$2:$J$364,3,FALSE),\"\")","v":""},{"$f":"IFERROR(VLOOKUP(B500,[2]Sheet4!$F$2:$J$364,4,FALSE),\"\")","v":""},{"$f":"IFERROR(VLOOKUP(B500,[2]Sheet4!$F$2:$J$364,5,FALSE),\"\")","v":""}]
[null,null,{"$f":"IFERROR(VLOOKUP(B501,[2]Sheet4!$F$2:$J$364,2,FALSE),\"\")","v":""},{"$f":"IFERROR(VLOOKUP(B501,[2]Sheet4!$F$2:$J$364,3,FALSE),\"\")","v":""},{"$f":"IFERROR(VLOOKUP(B501,[2]Sheet4!$F$2:$J$364,4,FALSE),\"\")","v":""},{"$f":"IFERROR(VLOOKUP(B501,[2]Sheet4!$F$2:$J$364,5,FALSE),\"\")","v":""}]
[null,null,{"$f":"IFERROR(VLOOKUP(B502,[2]Sheet4!$F$2:$J$364,2,FALSE),\"\")","v":""},{"$f":"IFERROR(VLOOKUP(B502,[2]Sheet4!$F$2:$J$364,3,FALSE),\"\")","v":""},{"$f":"IFERROR(VLOOKUP(B502,[2]Sheet4!$F$2:$J$364,4,FALSE),\"\")","v":""},{"$f":"IFERROR(VLOOKUP(B502,[2]Sheet4!$F$2:$J$364,5,FALSE),\"\")","v":""}]
[null,null,{"$f":"IFERROR(VLOOKUP(B503,[2]Sheet4!$F$2:$J$364,2,FALSE),\"\")","v":""},{"$f":"IFERROR(VLOOKUP(B503,[2]Sheet4!$F$2:$J$364,3,FALSE),\"\")","v":""},{"$f":"IFERROR(VLOOKUP(B503,[2]Sheet4!$F$2:$J$364,4,FALSE),\"\")","v":""},{"$f":"IFERROR(VLOOKUP(B503,[2]Sheet4!$F$2:$J$364,5,FALSE),\"\")","v":""}]
[null,null,{"$f":"IFERROR(VLOOKUP(B504,[2]Sheet4!$F$2:$J$364,2,FALSE),\"\")","v":""},{"$f":"IFERROR(VLOOKUP(B504,[2]Sheet4!$F$2:$J$364,3,FALSE),\"\")","v":""},{"$f":"IFERROR(VLOOKUP(B504,[2]Sheet4!$F$2:$J$364,4,FALSE),\"\")","v":""},{"$f":"IFERROR(VLOOKUP(B504,[2]Sheet4!$F$2:$J$364,5,FALSE),\"\")","v":""}]
[null,null,{"$f":"IFERROR(VLOOKUP(B505,[2]Sheet4!$F$2:$J$364,2,FALSE),\"\")","v":""},{"$f":"IFERROR(VLOOKUP(B505,[2]Sheet4!$F$2:$J$364,3,FALSE),\"\")","v":""},{"$f":"IFERROR(VLOOKUP(B505,[2]Sheet4!$F$2:$J$364,4,FALSE),\"\")","v":""},{"$f":"IFERROR(VLOOKUP(B505,[2]Sheet4!$F$2:$J$364,5,FALSE),\"\")","v":""}]
[null,null,{"$f":"IFERROR(VLOOKUP(B506,[2]Sheet4!$F$2:$J$364,2,FALSE),\"\")","v":""},{"$f":"IFERROR(VLOOKUP(B506,[2]Sheet4!$F$2:$J$364,3,FALSE),\"\")","v":""},{"$f":"IFERROR(VLOOKUP(B506,[2]Sheet4!$F$2:$J$364,4,FALSE),\"\")","v":""},{"$f":"IFERROR(VLOOKUP(B506,[2]Sheet4!$F$2:$J$364,5,FALSE),\"\")","v":""}]
[null,null,{"$f":"IFERROR(VLOOKUP(B507,[2]Sheet4!$F$2:$J$364,2,FALSE),\"\")","v":""},{"$f":"IFERROR(VLOOKUP(B507,[2]Sheet4!$F$2:$J$364,3,FALSE),\"\")","v":""},{"$f":"IFERROR(VLOOKUP(B507,[2]Sheet4!$F$2:$J$364,4,FALSE),\"\")","v":""},{"$f":"IFERROR(VLOOKUP(B507,[2]Sheet4!$F$2:$J$364,5,FALSE),\"\")","v":""}]
[null,null,{"$f":"IFERROR(VLOOKUP(B508,[2]Sheet4!$F$2:$J$364,2,FALSE),\"\")","v":""},{"$f":"IFERROR(VLOOKUP(B508,[2]Sheet4!$F$2:$J$364,3,FALSE),\"\")","v":""},{"$f":"IFERROR(VLOOKUP(B508,[2]Sheet4!$F$2:$J$364,4,FALSE),\"\")","v":""},{"$f":"IFERROR(VLOOKUP(B508,[2]Sheet4!$F$2:$J$364,5,FALSE),\"\")","v":""}]
[null,null,{"$f":"IFERROR(VLOOKUP(B509,[2]Sheet4!$F$2:$J$364,2,FALSE),\"\")","v":""},{"$f":"IFERROR(VLOOKUP(B509,[2]Sheet4!$F$2:$J$364,3,FALSE),\"\")","v":""},{"$f":"IFERROR(VLOOKUP(B509,[2]Sheet4!$F$2:$J$364,4,FALSE),\"\")","v":""},{"$f":"IFERROR(VLOOKUP(B509,[2]Sheet4!$F$2:$J$364,5,FALSE),\"\")","v":""}]
[null,null,{"$f":"IFERROR(VLOOKUP(B510,[2]Sheet4!$F$2:$J$364,2,FALSE),\"\")","v":""},{"$f":"IFERROR(VLOOKUP(B510,[2]Sheet4!$F$2:$J$364,3,FALSE),\"\")","v":""},{"$f":"IFERROR(VLOOKUP(B510,[2]Sheet4!$F$2:$J$364,4,FALSE),\"\")","v":""},{"$f":"IFERROR(VLOOKUP(B510,[2]Sheet4!$F$2:$J$364,5,FALSE),\"\")","v":""}]
[null,null,{"$f":"IFERROR(VLOOKUP(B511,[2]Sheet4!$F$2:$J$364,2,FALSE),\"\")","v":""},{"$f":"IFERROR(VLOOKUP(B511,[2]Sheet4!$F$2:$J$364,3,FALSE),\"\")","v":""},{"$f":"IFERROR(VLOOKUP(B511,[2]Sheet4!$F$2:$J$364,4,FALSE),\"\")","v":""},{"$f":"IFERROR(VLOOKUP(B511,[2]Sheet4!$F$2:$J$364,5,FALSE),\"\")","v":""}]
[null,null,{"$f":"IFERROR(VLOOKUP(B512,[2]Sheet4!$F$2:$J$364,2,FALSE),\"\")","v":""},{"$f":"IFERROR(VLOOKUP(B512,[2]Sheet4!$F$2:$J$364,3,FALSE),\"\")","v":""},{"$f":"IFERROR(VLOOKUP(B512,[2]Sheet4!$F$2:$J$364,4,FALSE),\"\")","v":""},{"$f":"IFERROR(VLOOKUP(B512,[2]Sheet4!$F$2:$J$364,5,FALSE),\"\")","v":""}]
[null,null,{"$f":"IFERROR(VLOOKUP(B513,[2]Sheet4!$F$2:$J$364,2,FALSE),\"\")","v":""},{"$f":"IFERROR(VLOOKUP(B513,[2]Sheet4!$F$2:$J$364,3,FALSE),\"\")","v":""},{"$f":"IFERROR(VLOOKUP(B513,[2]Sheet4!$F$2:$J$364,4,FALSE),\"\")","v":""},{"$f":"IFERROR(VLOOKUP(B513,[2]Sheet4!$F$2:$J$364,5,FALSE),\"\")","v":""}]
[null,null,{"$f":"IFERROR(VLOOKUP(B514,[2]Sheet4!$F$2:$J$364,2,FALSE),\"\")","v":""},{"$f":"IFERROR(VLOOKUP(B514,[2]Sheet4!$F$2:$J$364,3,FALSE),\"\")","v":""},{"$f":"IFERROR(VLOOKUP(B514,[2]Sheet4!$F$2:$J$364,4,FALSE),\"\")","v":""},{"$f":"IFERROR(VLOOKUP(B514,[2]Sheet4!$F$2:$J$364,5,FALSE),\"\")","v":""}]
[null,null,{"$f":"IFERROR(VLOOKUP(B515,[2]Sheet4!$F$2:$J$364,2,FALSE),\"\")","v":""},{"$f":"IFERROR(VLOOKUP(B515,[2]Sheet4!$F$2:$J$364,3,FALSE),\"\")","v":""},{"$f":"IFERROR(VLOOKUP(B515,[2]Sheet4!$F$2:$J$364,4,FALSE),\"\")","v":""},{"$f":"IFERROR(VLOOKUP(B515,[2]Sheet4!$F$2:$J$364,5,FALSE),\"\")","v":""}]
[null,null,{"$f":"IFERROR(VLOOKUP(B516,[2]Sheet4!$F$2:$J$364,2,FALSE),\"\")","v":""},{"$f":"IFERROR(VLOOKUP(B516,[2]Sheet4!$F$2:$J$364,3,FALSE),\"\")","v":""},{"$f":"IFERROR(VLOOKUP(B516,[2]Sheet4!$F$2:$J$364,4,FALSE),\"\")","v":""},{"$f":"IFERROR(VLOOKUP(B516,[2]Sheet4!$F$2:$J$364,5,FALSE),\"\")","v":""}]
[null,null,{"$f":"IFERROR(VLOOKUP(B517,[2]Sheet4!$F$2:$J$364,2,FALSE),\"\")","v":""},{"$f":"IFERROR(VLOOKUP(B517,[2]Sheet4!$F$2:$J$364,3,FALSE),\"\")","v":""},{"$f":"IFERROR(VLOOKUP(B517,[2]Sheet4!$F$2:$J$364,4,FALSE),\"\")","v":""},{"$f":"IFERROR(VLOOKUP(B517,[2]Sheet4!$F$2:$J$364,5,FALSE),\"\")","v":""}]
[null,null,{"$f":"IFERROR(VLOOKUP(B518,[2]Sheet4!$F$2:$J$364,2,FALSE),\"\")","v":""},{"$f":"IFERROR(VLOOKUP(B518,[2]Sheet4!$F$2:$J$364,3,FALSE),\"\")","v":""},{"$f":"IFERROR(VLOOKUP(B518,[2]Sheet4!$F$2:$J$364,4,FALSE),\"\")","v":""},{"$f":"IFERROR(VLOOKUP(B518,[2]Sheet4!$F$2:$J$364,5,FALSE),\"\")","v":""}]
[null,null,{"$f":"IFERROR(VLOOKUP(B519,[2]Sheet4!$F$2:$J$364,2,FALSE),\"\")","v":""},{"$f":"IFERROR(VLOOKUP(B519,[2]Sheet4!$F$2:$J$364,3,FALSE),\"\")","v":""},{"$f":"IFERROR(VLOOKUP(B519,[2]Sheet4!$F$2:$J$364,4,FALSE),\"\")","v":""},{"$f":"IFERROR(VLOOKUP(B519,[2]Sheet4!$F$2:$J$364,5,FALSE),\"\")","v":""}]
[null,null,{"$f":"IFERROR(VLOOKUP(B520,[2]Sheet4!$F$2:$J$364,2,FALSE),\"\")","v":""},{"$f":"IFERROR(VLOOKUP(B520,[2]Sheet4!$F$2:$J$364,3,FALSE),\"\")","v":""},{"$f":"IFERROR(VLOOKUP(B520,[2]Sheet4!$F$2:$J$364,4,FALSE),\"\")","v":""},{"$f":"IFERROR(VLOOKUP(B520,[2]Sheet4!$F$2:$J$364,5,FALSE),\"\")","v":""}]
[null,null,{"$f":"IFERROR(VLOOKUP(B521,[2]Sheet4!$F$2:$J$364,2,FALSE),\"\")","v":""},{"$f":"IFERROR(VLOOKUP(B521,[2]Sheet4!$F$2:$J$364,3,FALSE),\"\")","v":""},{"$f":"IFERROR(VLOOKUP(B521,[2]Sheet4!$F$2:$J$364,4,FALSE),\"\")","v":""},{"$f":"IFERROR(VLOOKUP(B521,[2]Sheet4!$F$2:$J$364,5,FALSE),\"\")","v":""}]
[null,null,{"$f":"IFERROR(VLOOKUP(B522,[2]Sheet4!$F$2:$J$364,2,FALSE),\"\")","v":""},{"$f":"IFERROR(VLOOKUP(B522,[2]Sheet4!$F$2:$J$364,3,FALSE),\"\")","v":""},{"$f":"IFERROR(VLOOKUP(B522,[2]Sheet4!$F$2:$J$364,4,FALSE),\"\")","v":""},{"$f":"IFERROR(VLOOKUP(B522,[2]Sheet4!$F$2:$J$364,5,FALSE),\"\")","v":""}]
[null,null,{"$f":"IFERROR(VLOOKUP(B523,[2]Sheet4!$F$2:$J$364,2,FALSE),\"\")","v":""},{"$f":"IFERROR(VLOOKUP(B523,[2]Sheet4!$F$2:$J$364,3,FALSE),\"\")","v":""},{"$f":"IFERROR(VLOOKUP(B523,[2]Sheet4!$F$2:$J$364,4,FALSE),\"\")","v":""},{"$f":"IFERROR(VLOOKUP(B523,[2]Sheet4!$F$2:$J$364,5,FALSE),\"\")","v":""}]
[null,null,{"$f":"IFERROR(VLOOKUP(B524,[2]Sheet4!$F$2:$J$364,2,FALSE),\"\")","v":""},{"$f":"IFERROR(VLOOKUP(B524,[2]Sheet4!$F$2:$J$364,3,FALSE),\"\")","v":""},{"$f":"IFERROR(VLOOKUP(B524,[2]Sheet4!$F$2:$J$364,4,FALSE),\"\")","v":""},{"$f":"IFERROR(VLOOKUP(B524,[2]Sheet4!$F$2:$J$364,5,FALSE),\"\")","v":""}]
[null,null,{"$f":"IFERROR(VLOOKUP(B525,[2]Sheet4!$F$2:$J$364,2,FALSE),\"\")","v":""},{"$f":"IFERROR(VLOOKUP(B525,[2]Sheet4!$F$2:$J$364,3,FALSE),\"\")","v":""},{"$f":"IFERROR(VLOOKUP(B525,[2]Sheet4!$F$2:$J$364,4,FALSE),\"\")","v":""},{"$f":"IFERROR(VLOOKUP(B525,[2]Sheet4!$F$2:$J$364,5,FALSE),\"\")","v":""}]
[null,null,{"$f":"IFERROR(VLOOKUP(B526,[2]Sheet4!$F$2:$J$364,2,FALSE),\"\")","v":""},{"$f":"IFERROR(VLOOKUP(B526,[2]Sheet4!$F$2:$J$364,3,FALSE),\"\")","v":""},{"$f":"IFERROR(VLOOKUP(B526,[2]Sheet4!$F$2:$J$364,4,FALSE),\"\")","v":""},{"$f":"IFERROR(VLOOKUP(B526,[2]Sheet4!$F$2:$J$364,5,FALSE),\"\")","v":""}]
[null,null,{"$f":"IFERROR(VLOOKUP(B527,[2]Sheet4!$F$2:$J$364,2,FALSE),\"\")","v":""},{"$f":"IFERROR(VLOOKUP(B527,[2]Sheet4!$F$2:$J$364,3,FALSE),\"\")","v":""},{"$f":"IFERROR(VLOOKUP(B527,[2]Sheet4!$F$2:$J$364,4,FALSE),\"\")","v":""},{"$f":"IFERROR(VLOOKUP(B527,[2]Sheet4!$F$2:$J$364,5,FALSE),\"\")","v":""}]
[null,null,{"$f":"IFERROR(VLOOKUP(B528,[2]Sheet4!$F$2:$J$364,2,FALSE),\"\")","v":""},{"$f":"IFERROR(VLOOKUP(B528,[2]Sheet4!$F$2:$J$364,3,FALSE),\"\")","v":""},{"$f":"IFERROR(VLOOKUP(B528,[2]Sheet4!$F$2:$J$364,4,FALSE),\"\")","v":""},{"$f":"IFERROR(VLOOKUP(B528,[2]Sheet4!$F$2:$J$364,5,FALSE),\"\")","v":""}]
[null,null,{"$f":"IFERROR(VLOOKUP(B529,[2]Sheet4!$F$2:$J$364,2,FALSE),\"\")","v":""},{"$f":"IFERROR(VLOOKUP(B529,[2]Sheet4!$F$2:$J$364,3,FALSE),\"\")","v":""},{"$f":"IFERROR(VLOOKUP(B529,[2]Sheet4!$F$2:$J$364,4,FALSE),\"\")","v":""},{"$f":"IFERROR(VLOOKUP(B529,[2]Sheet4!$F$2:$J$364,5,FALSE),\"\")","v":""}]
[null,null,{"$f":"IFERROR(VLOOKUP(B530,[2]Sheet4!$F$2:$J$364,2,FALSE),\"\")","v":""},{"$f":"IFERROR(VLOOKUP(B530,[2]Sheet4!$F$2:$J$364,3,FALSE),\"\")","v":""},{"$f":"IFERROR(VLOOKUP(B530,[2]Sheet4!$F$2:$J$364,4,FALSE),\"\")","v":""},{"$f":"IFERROR(VLOOKUP(B530,[2]Sheet4!$F$2:$J$364,5,FALSE),\"\")","v":""}]
[null,null,{"$f":"IFERROR(VLOOKUP(B531,[2]Sheet4!$F$2:$J$364,2,FALSE),\"\")","v":""},{"$f":"IFERROR(VLOOKUP(B531,[2]Sheet4!$F$2:$J$364,3,FALSE),\"\")","v":""},{"$f":"IFERROR(VLOOKUP(B531,[2]Sheet4!$F$2:$J$364,4,FALSE),\"\")","v":""},{"$f":"IFERROR(VLOOKUP(B531,[2]Sheet4!$F$2:$J$364,5,FALSE),\"\")","v":""}]
[null,null,{"$f":"IFERROR(VLOOKUP(B532,[2]Sheet4!$F$2:$J$364,2,FALSE),\"\")","v":""},{"$f":"IFERROR(VLOOKUP(B532,[2]Sheet4!$F$2:$J$364,3,FALSE),\"\")","v":""},{"$f":"IFERROR(VLOOKUP(B532,[2]Sheet4!$F$2:$J$364,4,FALSE),\"\")","v":""},{"$f":"IFERROR(VLOOKUP(B532,[2]Sheet4!$F$2:$J$364,5,FALSE),\"\")","v":""}]
[null,null,{"$f":"IFERROR(VLOOKUP(B533,[2]Sheet4!$F$2:$J$364,2,FALSE),\"\")","v":""},{"$f":"IFERROR(VLOOKUP(B533,[2]Sheet4!$F$2:$J$364,3,FALSE),\"\")","v":""},{"$f":"IFERROR(VLOOKUP(B533,[2]Sheet4!$F$2:$J$364,4,FALSE),\"\")","v":""},{"$f":"IFERROR(VLOOKUP(B533,[2]Sheet4!$F$2:$J$364,5,FALSE),\"\")","v":""}]
[null,null,{"$f":"IFERROR(VLOOKUP(B534,[2]Sheet4!$F$2:$J$364,2,FALSE),\"\")","v":""},{"$f":"IFERROR(VLOOKUP(B534,[2]Sheet4!$F$2:$J$364,3,FALSE),\"\")","v":""},{"$f":"IFERROR(VLOOKUP(B534,[2]Sheet4!$F$2:$J$364,4,FALSE),\"\")","v":""},{"$f":"IFERROR(VLOOKUP(B534,[2]Sheet4!$F$2:$J$364,5,FALSE),\"\")","v":""}]
[null,null,{"$f":"IFERROR(VLOOKUP(B535,[2]Sheet4!$F$2:$J$364,2,FALSE),\"\")","v":""},{"$f":"IFERROR(VLOOKUP(B535,[2]Sheet4!$F$2:$J$364,3,FALSE),\"\")","v":""},{"$f":"IFERROR(VLOOKUP(B535,[2]Sheet4!$F$2:$J$364,4,FALSE),\"\")","v":""},{"$f":"IFERROR(VLOOKUP(B535,[2]Sheet4!$F$2:$J$364,5,FALSE),\"\")","v":""}]
[null,null,{"$f":"IFERROR(VLOOKUP(B536,[2]Sheet4!$F$2:$J$364,2,FALSE),\"\")","v":""},{"$f":"IFERROR(VLOOKUP(B536,[2]Sheet4!$F$2:$J$364,3,FALSE),\"\")","v":""},{"$f":"IFERROR(VLOOKUP(B536,[2]Sheet4!$F$2:$J$364,4,FALSE),\"\")","v":""},{"$f":"IFERROR(VLOOKUP(B536,[2]Sheet4!$F$2:$J$364,5,FALSE),\"\")","v":""}]
[null,null,{"$f":"IFERROR(VLOOKUP(B537,[2]Sheet4!$F$2:$J$364,2,FALSE),\"\")","v":""},{"$f":"IFERROR(VLOOKUP(B537,[2]Sheet4!$F$2:$J$364,3,FALSE),\"\")","v":""},{"$f":"IFERROR(VLOOKUP(B537,[2]Sheet4!$F$2:$J$364,4,FALSE),\"\")","v":""},{"$f":"IFERROR(VLOOKUP(B537,[2]Sheet4!$F$2:$J$364,5,FALSE),\"\")","v":""}]
[null,null,{"$f":"IFERROR(VLOOKUP(B538,[2]Sheet4!$F$2:$J$364,2,FALSE),\"\")","v":""},{"$f":"IFERROR(VLOOKUP(B538,[2]Sheet4!$F$2:$J$364,3,FALSE),\"\")","v":""},{"$f":"IFERROR(VLOOKUP(B538,[2]Sheet4!$F$2:$J$364,4,FALSE),\"\")","v":""},{"$f":"IFERROR(VLOOKUP(B538,[2]Sheet4!$F$2:$J$364,5,FALSE),\"\")","v":""}]
[null,null,{"$f":"IFERROR(VLOOKUP(B539,[2]Sheet4!$F$2:$J$364,2,FALSE),\"\")","v":""},{"$f":"IFERROR(VLOOKUP(B539,[2]Sheet4!$F$2:$J$364,3,FALSE),\"\")","v":""},{"$f":"IFERROR(VLOOKUP(B539,[2]Sheet4!$F$2:$J$364,4,FALSE),\"\")","v":""},{"$f":"IFERROR(VLOOKUP(B539,[2]Sheet4!$F$2:$J$364,5,FALSE),\"\")","v":""}]
[null,null,{"$f":"IFERROR(VLOOKUP(B540,[2]Sheet4!$F$2:$J$364,2,FALSE),\"\")","v":""},{"$f":"IFERROR(VLOOKUP(B540,[2]Sheet4!$F$2:$J$364,3,FALSE),\"\")","v":""},{"$f":"IFERROR(VLOOKUP(B540,[2]Sheet4!$F$2:$J$364,4,FALSE),\"\")","v":""},{"$f":"IFERROR(VLOOKUP(B540,[2]Sheet4!$F$2:$J$364,5,FALSE),\"\")","v":""}]
[null,null,{"$f":"IFERROR(VLOOKUP(B541,[2]Sheet4!$F$2:$J$364,2,FALSE),\"\")","v":""},{"$f":"IFERROR(VLOOKUP(B541,[2]Sheet4!$F$2:$J$364,3,FALSE),\"\")","v":""},{"$f":"IFERROR(VLOOKUP(B541,[2]Sheet4!$F$2:$J$364,4,FALSE),\"\")","v":""},{"$f":"IFERROR(VLOOKUP(B541,[2]Sheet4!$F$2:$J$364,5,FALSE),\"\")","v":""}]
[null,null,{"$f":"IFERROR(VLOOKUP(B542,[2]Sheet4!$F$2:$J$364,2,FALSE),\"\")","v":""},{"$f":"IFERROR(VLOOKUP(B542,[2]Sheet4!$F$2:$J$364,3,FALSE),\"\")","v":""},{"$f":"IFERROR(VLOOKUP(B542,[2]Sheet4!$F$2:$J$364,4,FALSE),\"\")","v":""},{"$f":"IFERROR(VLOOKUP(B542,[2]Sheet4!$F$2:$J$364,5,FALSE),\"\")","v":""}]
[null,null,{"$f":"IFERROR(VLOOKUP(B543,[2]Sheet4!$F$2:$J$364,2,FALSE),\"\")","v":""},{"$f":"IFERROR(VLOOKUP(B543,[2]Sheet4!$F$2:$J$364,3,FALSE),\"\")","v":""},{"$f":"IFERROR(VLOOKUP(B543,[2]Sheet4!$F$2:$J$364,4,FALSE),\"\")","v":""},{"$f":"IFERROR(VLOOKUP(B543,[2]Sheet4!$F$2:$J$364,5,FALSE),\"\")","v":""}]
[null,null,{"$f":"IFERROR(VLOOKUP(B544,[2]Sheet4!$F$2:$J$364,2,FALSE),\"\")","v":""},{"$f":"IFERROR(VLOOKUP(B544,[2]Sheet4!$F$2:$J$364,3,FALSE),\"\")","v":""},{"$f":"IFERROR(VLOOKUP(B544,[2]Sheet4!$F$2:$J$364,4,FALSE),\"\")","v":""},{"$f":"IFERROR(VLOOKUP(B544,[2]Sheet4!$F$2:$J$364,5,FALSE),\"\")","v":""}]
[null,null,{"$f":"IFERROR(VLOOKUP(B545,[2]Sheet4!$F$2:$J$364,2,FALSE),\"\")","v":""},{"$f":"IFERROR(VLOOKUP(B545,[2]Sheet4!$F$2:$J$364,3,FALSE),\"\")","v":""},{"$f":"IFERROR(VLOOKUP(B545,[2]Sheet4!$F$2:$J$364,4,FALSE),\"\")","v":""},{"$f":"IFERROR(VLOOKUP(B545,[2]Sheet4!$F$2:$J$364,5,FALSE),\"\")","v":""}]
[null,null,{"$f":"IFERROR(VLOOKUP(B546,[2]Sheet4!$F$2:$J$364,2,FALSE),\"\")","v":""},{"$f":"IFERROR(VLOOKUP(B546,[2]Sheet4!$F$2:$J$364,3,FALSE),\"\")","v":""},{"$f":"IFERROR(VLOOKUP(B546,[2]Sheet4!$F$2:$J$364,4,FALSE),\"\")","v":""},{"$f":"IFERROR(VLOOKUP(B546,[2]Sheet4!$F$2:$J$364,5,FALSE),\"\")","v":""}]
[null,null,{"$f":"IFERROR(VLOOKUP(B547,[2]Sheet4!$F$2:$J$364,2,FALSE),\"\")","v":""},{"$f":"IFERROR(VLOOKUP(B547,[2]Sheet4!$F$2:$J$364,3,FALSE),\"\")","v":""},{"$f":"IFERROR(VLOOKUP(B547,[2]Sheet4!$F$2:$J$364,4,FALSE),\"\")","v":""},{"$f":"IFERROR(VLOOKUP(B547,[2]Sheet4!$F$2:$J$364,5,FALSE),\"\")","v":""}]
[null,null,{"$f":"IFERROR(VLOOKUP(B548,[2]Sheet4!$F$2:$J$364,2,FALSE),\"\")","v":""},{"$f":"IFERROR(VLOOKUP(B548,[2]Sheet4!$F$2:$J$364,3,FALSE),\"\")","v":""},{"$f":"IFERROR(VLOOKUP(B548,[2]Sheet4!$F$2:$J$364,4,FALSE),\"\")","v":""},{"$f":"IFERROR(VLOOKUP(B548,[2]Sheet4!$F$2:$J$364,5,FALSE),\"\")","v":""}]
[null,null,{"$f":"IFERROR(VLOOKUP(B549,[2]Sheet4!$F$2:$J$364,2,FALSE),\"\")","v":""},{"$f":"IFERROR(VLOOKUP(B549,[2]Sheet4!$F$2:$J$364,3,FALSE),\"\")","v":""},{"$f":"IFERROR(VLOOKUP(B549,[2]Sheet4!$F$2:$J$364,4,FALSE),\"\")","v":""},{"$f":"IFERROR(VLOOKUP(B549,[2]Sheet4!$F$2:$J$364,5,FALSE),\"\")","v":""}]
[null,null,{"$f":"IFERROR(VLOOKUP(B550,[2]Sheet4!$F$2:$J$364,2,FALSE),\"\")","v":""},{"$f":"IFERROR(VLOOKUP(B550,[2]Sheet4!$F$2:$J$364,3,FALSE),\"\")","v":""},{"$f":"IFERROR(VLOOKUP(B550,[2]Sheet4!$F$2:$J$364,4,FALSE),\"\")","v":""},{"$f":"IFERROR(VLOOKUP(B550,[2]Sheet4!$F$2:$J$364,5,FALSE),\"\")","v":""}]
[null,null,{"$f":"IFERROR(VLOOKUP(B551,[2]Sheet4!$F$2:$J$364,2,FALSE),\"\")","v":""},{"$f":"IFERROR(VLOOKUP(B551,[2]Sheet4!$F$2:$J$364,3,FALSE),\"\")","v":""},{"$f":"IFERROR(VLOOKUP(B551,[2]Sheet4!$F$2:$J$364,4,FALSE),\"\")","v":""},{"$f":"IFERROR(VLOOKUP(B551,[2]Sheet4!$F$2:$J$364,5,FALSE),\"\")","v":""}]
[null,null,{"$f":"IFERROR(VLOOKUP(B552,[2]Sheet4!$F$2:$J$364,2,FALSE),\"\")","v":""},{"$f":"IFERROR(VLOOKUP(B552,[2]Sheet4!$F$2:$J$364,3,FALSE),\"\")","v":""},{"$f":"IFERROR(VLOOKUP(B552,[2]Sheet4!$F$2:$J$364,4,FALSE),\"\")","v":""},{"$f":"IFERROR(VLOOKUP(B552,[2]Sheet4!$F$2:$J$364,5,FALSE),\"\")","v":""}]
[null,null,{"$f":"IFERROR(VLOOKUP(B553,[2]Sheet4!$F$2:$J$364,2,FALSE),\"\")","v":""},{"$f":"IFERROR(VLOOKUP(B553,[2]Sheet4!$F$2:$J$364,3,FALSE),\"\")","v":""},{"$f":"IFERROR(VLOOKUP(B553,[2]Sheet4!$F$2:$J$364,4,FALSE),\"\")","v":""},{"$f":"IFERROR(VLOOKUP(B553,[2]Sheet4!$F$2:$J$364,5,FALSE),\"\")","v":""}]
[null,null,{"$f":"IFERROR(VLOOKUP(B554,[2]Sheet4!$F$2:$J$364,2,FALSE),\"\")","v":""},{"$f":"IFERROR(VLOOKUP(B554,[2]Sheet4!$F$2:$J$364,3,FALSE),\"\")","v":""},{"$f":"IFERROR(VLOOKUP(B554,[2]Sheet4!$F$2:$J$364,4,FALSE),\"\")","v":""},{"$f":"IFERROR(VLOOKUP(B554,[2]Sheet4!$F$2:$J$364,5,FALSE),\"\")","v":""}]
[null,null,{"$f":"IFERROR(VLOOKUP(B555,[2]Sheet4!$F$2:$J$364,2,FALSE),\"\")","v":""},{"$f":"IFERROR(VLOOKUP(B555,[2]Sheet4!$F$2:$J$364,3,FALSE),\"\")","v":""},{"$f":"IFERROR(VLOOKUP(B555,[2]Sheet4!$F$2:$J$364,4,FALSE),\"\")","v":""},{"$f":"IFERROR(VLOOKUP(B555,[2]Sheet4!$F$2:$J$364,5,FALSE),\"\")","v":""}]
[null,null,{"$f":"IFERROR(VLOOKUP(B556,[2]Sheet4!$F$2:$J$364,2,FALSE),\"\")","v":""},{"$f":"IFERROR(VLOOKUP(B556,[2]Sheet4!$F$2:$J$364,3,FALSE),\"\")","v":""},{"$f":"IFERROR(VLOOKUP(B556,[2]Sheet4!$F$2:$J$364,4,FALSE),\"\")","v":""},{"$f":"IFERROR(VLOOKUP(B556,[2]Sheet4!$F$2:$J$364,5,FALSE),\"\")","v":""}]
[null,null,{"$f":"IFERROR(VLOOKUP(B557,[2]Sheet4!$F$2:$J$364,2,FALSE),\"\")","v":""},{"$f":"IFERROR(VLOOKUP(B557,[2]Sheet4!$F$2:$J$364,3,FALSE),\"\")","v":""},{"$f":"IFERROR(VLOOKUP(B557,[2]Sheet4!$F$2:$J$364,4,FALSE),\"\")","v":""},{"$f":"IFERROR(VLOOKUP(B557,[2]Sheet4!$F$2:$J$364,5,FALSE),\"\")","v":""}]
[null,null,{"$f":"IFERROR(VLOOKUP(B558,[2]Sheet4!$F$2:$J$364,2,FALSE),\"\")","v":""},{"$f":"IFERROR(VLOOKUP(B558,[2]Sheet4!$F$2:$J$364,3,FALSE),\"\")","v":""},{"$f":"IFERROR(VLOOKUP(B558,[2]Sheet4!$F$2:$J$364,4,FALSE),\"\")","v":""},{"$f":"IFERROR(VLOOKUP(B558,[2]Sheet4!$F$2:$J$364,5,FALSE),\"\")","v":""}]
[null,null,{"$f":"IFERROR(VLOOKUP(B559,[2]Sheet4!$F$2:$J$364,2,FALSE),\"\")","v":""},{"$f":"IFERROR(VLOOKUP(B559,[2]Sheet4!$F$2:$J$364,3,FALSE),\"\")","v":""},{"$f":"IFERROR(VLOOKUP(B559,[2]Sheet4!$F$2:$J$364,4,FALSE),\"\")","v":""},{"$f":"IFERROR(VLOOKUP(B559,[2]Sheet4!$F$2:$J$364,5,FALSE),\"\")","v":""}]
[null,null,{"$f":"IFERROR(VLOOKUP(B560,[2]Sheet4!$F$2:$J$364,2,FALSE),\"\")","v":""},{"$f":"IFERROR(VLOOKUP(B560,[2]Sheet4!$F$2:$J$364,3,FALSE),\"\")","v":""},{"$f":"IFERROR(VLOOKUP(B560,[2]Sheet4!$F$2:$J$364,4,FALSE),\"\")","v":""},{"$f":"IFERROR(VLOOKUP(B560,[2]Sheet4!$F$2:$J$364,5,FALSE),\"\")","v":""}]
[null,null,{"$f":"IFERROR(VLOOKUP(B561,[2]Sheet4!$F$2:$J$364,2,FALSE),\"\")","v":""},{"$f":"IFERROR(VLOOKUP(B561,[2]Sheet4!$F$2:$J$364,3,FALSE),\"\")","v":""},{"$f":"IFERROR(VLOOKUP(B561,[2]Sheet4!$F$2:$J$364,4,FALSE),\"\")","v":""},{"$f":"IFERROR(VLOOKUP(B561,[2]Sheet4!$F$2:$J$364,5,FALSE),\"\")","v":""}]
[null,null,{"$f":"IFERROR(VLOOKUP(B562,[2]Sheet4!$F$2:$J$364,2,FALSE),\"\")","v":""},{"$f":"IFERROR(VLOOKUP(B562,[2]Sheet4!$F$2:$J$364,3,FALSE),\"\")","v":""},{"$f":"IFERROR(VLOOKUP(B562,[2]Sheet4!$F$2:$J$364,4,FALSE),\"\")","v":""},{"$f":"IFERROR(VLOOKUP(B562,[2]Sheet4!$F$2:$J$364,5,FALSE),\"\")","v":""}]
[null,null,{"$f":"IFERROR(VLOOKUP(B563,[2]Sheet4!$F$2:$J$364,2,FALSE),\"\")","v":""},{"$f":"IFERROR(VLOOKUP(B563,[2]Sheet4!$F$2:$J$364,3,FALSE),\"\")","v":""},{"$f":"IFERROR(VLOOKUP(B563,[2]Sheet4!$F$2:$J$364,4,FALSE),\"\")","v":""},{"$f":"IFERROR(VLOOKUP(B563,[2]Sheet4!$F$2:$J$364,5,FALSE),\"\")","v":""}]
[null,null,{"$f":"IFERROR(VLOOKUP(B564,[2]Sheet4!$F$2:$J$364,2,FALSE),\"\")","v":""},{"$f":"IFERROR(VLOOKUP(B564,[2]Sheet4!$F$2:$J$364,3,FALSE),\"\")","v":""},{"$f":"IFERROR(VLOOKUP(B564,[2]Sheet4!$F$2:$J$364,4,FALSE),\"\")","v":""},{"$f":"IFERROR(VLOOKUP(B564,[2]Sheet4!$F$2:$J$364,5,FALSE),\"\")","v":""}]
[null,null,{"$f":"IFERROR(VLOOKUP(B565,[2]Sheet4!$F$2:$J$364,2,FALSE),\"\")","v":""},{"$f":"IFERROR(VLOOKUP(B565,[2]Sheet4!$F$2:$J$364,3,FALSE),\"\")","v":""},{"$f":"IFERROR(VLOOKUP(B565,[2]Sheet4!$F$2:$J$364,4,FALSE),\"\")","v":""},{"$f":"IFERROR(VLOOKUP(B565,[2]Sheet4!$F$2:$J$364,5,FALSE),\"\")","v":""}]
[null,null,{"$f":"IFERROR(VLOOKUP(B566,[2]Sheet4!$F$2:$J$364,2,FALSE),\"\")","v":""},{"$f":"IFERROR(VLOOKUP(B566,[2]Sheet4!$F$2:$J$364,3,FALSE),\"\")","v":""},{"$f":"IFERROR(VLOOKUP(B566,[2]Sheet4!$F$2:$J$364,4,FALSE),\"\")","v":""},{"$f":"IFERROR(VLOOKUP(B566,[2]Sheet4!$F$2:$J$364,5,FALSE),\"\")","v":""}]
[null,null,{"$f":"IFERROR(VLOOKUP(B567,[2]Sheet4!$F$2:$J$364,2,FALSE),\"\")","v":""},{"$f":"IFERROR(VLOOKUP(B567,[2]Sheet4!$F$2:$J$364,3,FALSE),\"\")","v":""},{"$f":"IFERROR(VLOOKUP(B567,[2]Sheet4!$F$2:$J$364,4,FALSE),\"\")","v":""},{"$f":"IFERROR(VLOOKUP(B567,[2]Sheet4!$F$2:$J$364,5,FALSE),\"\")","v":""}]
[null,null,{"$f":"IFERROR(VLOOKUP(B568,[2]Sheet4!$F$2:$J$364,2,FALSE),\"\")","v":""},{"$f":"IFERROR(VLOOKUP(B568,[2]Sheet4!$F$2:$J$364,3,FALSE),\"\")","v":""},{"$f":"IFERROR(VLOOKUP(B568,[2]Sheet4!$F$2:$J$364,4,FALSE),\"\")","v":""},{"$f":"IFERROR(VLOOKUP(B568,[2]Sheet4!$F$2:$J$364,5,FALSE),\"\")","v":""}]
[null,null,{"$f":"IFERROR(VLOOKUP(B569,[2]Sheet4!$F$2:$J$364,2,FALSE),\"\")","v":""},{"$f":"IFERROR(VLOOKUP(B569,[2]Sheet4!$F$2:$J$364,3,FALSE),\"\")","v":""},{"$f":"IFERROR(VLOOKUP(B569,[2]Sheet4!$F$2:$J$364,4,FALSE),\"\")","v":""},{"$f":"IFERROR(VLOOKUP(B569,[2]Sheet4!$F$2:$J$364,5,FALSE),\"\")","v":""}]
[null,null,{"$f":"IFERROR(VLOOKUP(B570,[2]Sheet4!$F$2:$J$364,2,FALSE),\"\")","v":""},{"$f":"IFERROR(VLOOKUP(B570,[2]Sheet4!$F$2:$J$364,3,FALSE),\"\")","v":""},{"$f":"IFERROR(VLOOKUP(B570,[2]Sheet4!$F$2:$J$364,4,FALSE),\"\")","v":""},{"$f":"IFERROR(VLOOKUP(B570,[2]Sheet4!$F$2:$J$364,5,FALSE),\"\")","v":""}]
[null,null,{"$f":"IFERROR(VLOOKUP(B571,[2]Sheet4!$F$2:$J$364,2,FALSE),\"\")","v":""},{"$f":"IFERROR(VLOOKUP(B571,[2]Sheet4!$F$2:$J$364,3,FALSE),\"\")","v":""},{"$f":"IFERROR(VLOOKUP(B571,[2]Sheet4!$F$2:$J$364,4,FALSE),\"\")","v":""},{"$f":"IFERROR(VLOOKUP(B571,[2]Sheet4!$F$2:$J$364,5,FALSE),\"\")","v":""}]
[null,null,{"$f":"IFERROR(VLOOKUP(B572,[2]Sheet4!$F$2:$J$364,2,FALSE),\"\")","v":""},{"$f":"IFERROR(VLOOKUP(B572,[2]Sheet4!$F$2:$J$364,3,FALSE),\"\")","v":""},{"$f":"IFERROR(VLOOKUP(B572,[2]Sheet4!$F$2:$J$364,4,FALSE),\"\")","v":""},{"$f":"IFERROR(VLOOKUP(B572,[2]Sheet4!$F$2:$J$364,5,FALSE),\"\")","v":""}]
[null,null,{"$f":"IFERROR(VLOOKUP(B573,[2]Sheet4!$F$2:$J$364,2,FALSE),\"\")","v":""},{"$f":"IFERROR(VLOOKUP(B573,[2]Sheet4!$F$2:$J$364,3,FALSE),\"\")","v":""},{"$f":"IFERROR(VLOOKUP(B573,[2]Sheet4!$F$2:$J$364,4,FALSE),\"\")","v":""},{"$f":"IFERROR(VLOOKUP(B573,[2]Sheet4!$F$2:$J$364,5,FALSE),\"\")","v":""}]
[null,null,{"$f":"IFERROR(VLOOKUP(B574,[2]Sheet4!$F$2:$J$364,2,FALSE),\"\")","v":""},{"$f":"IFERROR(VLOOKUP(B574,[2]Sheet4!$F$2:$J$364,3,FALSE),\"\")","v":""},{"$f":"IFERROR(VLOOKUP(B574,[2]Sheet4!$F$2:$J$364,4,FALSE),\"\")","v":""},{"$f":"IFERROR(VLOOKUP(B574,[2]Sheet4!$F$2:$J$364,5,FALSE),\"\")","v":""}]
[null,null,{"$f":"IFERROR(VLOOKUP(B575,[2]Sheet4!$F$2:$J$364,2,FALSE),\"\")","v":""},{"$f":"IFERROR(VLOOKUP(B575,[2]Sheet4!$F$2:$J$364,3,FALSE),\"\")","v":""},{"$f":"IFERROR(VLOOKUP(B575,[2]Sheet4!$F$2:$J$364,4,FALSE),\"\")","v":""},{"$f":"IFERROR(VLOOKUP(B575,[2]Sheet4!$F$2:$J$364,5,FALSE),\"\")","v":""}]
[null,null,{"$f":"IFERROR(VLOOKUP(B576,[2]Sheet4!$F$2:$J$364,2,FALSE),\"\")","v":""},{"$f":"IFERROR(VLOOKUP(B576,[2]Sheet4!$F$2:$J$364,3,FALSE),\"\")","v":""},{"$f":"IFERROR(VLOOKUP(B576,[2]Sheet4!$F$2:$J$364,4,FALSE),\"\")","v":""},{"$f":"IFERROR(VLOOKUP(B576,[2]Sheet4!$F$2:$J$364,5,FALSE),\"\")","v":""}]
[null,null,{"$f":"IFERROR(VLOOKUP(B577,[2]Sheet4!$F$2:$J$364,2,FALSE),\"\")","v":""},{"$f":"IFERROR(VLOOKUP(B577,[2]Sheet4!$F$2:$J$364,3,FALSE),\"\")","v":""},{"$f":"IFERROR(VLOOKUP(B577,[2]Sheet4!$F$2:$J$364,4,FALSE),\"\")","v":""},{"$f":"IFERROR(VLOOKUP(B577,[2]Sheet4!$F$2:$J$364,5,FALSE),\"\")","v":""}]
[null,null,{"$f":"IFERROR(VLOOKUP(B578,[2]Sheet4!$F$2:$J$364,2,FALSE),\"\")","v":""},{"$f":"IFERROR(VLOOKUP(B578,[2]Sheet4!$F$2:$J$364,3,FALSE),\"\")","v":""},{"$f":"IFERROR(VLOOKUP(B578,[2]Sheet4!$F$2:$J$364,4,FALSE),\"\")","v":""},{"$f":"IFERROR(VLOOKUP(B578,[2]Sheet4!$F$2:$J$364,5,FALSE),\"\")","v":""}]
[null,null,{"$f":"IFERROR(VLOOKUP(B579,[2]Sheet4!$F$2:$J$364,2,FALSE),\"\")","v":""},{"$f":"IFERROR(VLOOKUP(B579,[2]Sheet4!$F$2:$J$364,3,FALSE),\"\")","v":""},{"$f":"IFERROR(VLOOKUP(B579,[2]Sheet4!$F$2:$J$364,4,FALSE),\"\")","v":""},{"$f":"IFERROR(VLOOKUP(B579,[2]Sheet4!$F$2:$J$364,5,FALSE),\"\")","v":""}]
[null,null,{"$f":"IFERROR(VLOOKUP(B580,[2]Sheet4!$F$2:$J$364,2,FALSE),\"\")","v":""},{"$f":"IFERROR(VLOOKUP(B580,[2]Sheet4!$F$2:$J$364,3,FALSE),\"\")","v":""},{"$f":"IFERROR(VLOOKUP(B580,[2]Sheet4!$F$2:$J$364,4,FALSE),\"\")","v":""},{"$f":"IFERROR(VLOOKUP(B580,[2]Sheet4!$F$2:$J$364,5,FALSE),\"\")","v":""}]
[null,null,{"$f":"IFERROR(VLOOKUP(B581,[2]Sheet4!$F$2:$J$364,2,FALSE),\"\")","v":""},{"$f":"IFERROR(VLOOKUP(B581,[2]Sheet4!$F$2:$J$364,3,FALSE),\"\")","v":""},{"$f":"IFERROR(VLOOKUP(B581,[2]Sheet4!$F$2:$J$364,4,FALSE),\"\")","v":""},{"$f":"IFERROR(VLOOKUP(B581,[2]Sheet4!$F$2:$J$364,5,FALSE),\"\")","v":""}]
[null,null,{"$f":"IFERROR(VLOOKUP(B582,[2]Sheet4!$F$2:$J$364,2,FALSE),\"\")","v":""},{"$f":"IFERROR(VLOOKUP(B582,[2]Sheet4!$F$2:$J$364,3,FALSE),\"\")","v":""},{"$f":"IFERROR(VLOOKUP(B582,[2]Sheet4!$F$2:$J$364,4,FALSE),\"\")","v":""},{"$f":"IFERROR(VLOOKUP(B582,[2]Sheet4!$F$2:$J$364,5,FALSE),\"\")","v":""}]
[null,null,{"$f":"IFERROR(VLOOKUP(B583,[2]Sheet4!$F$2:$J$364,2,FALSE),\"\")","v":""},{"$f":"IFERROR(VLOOKUP(B583,[2]Sheet4!$F$2:$J$364,3,FALSE),\"\")","v":""},{"$f":"IFERROR(VLOOKUP(B583,[2]Sheet4!$F$2:$J$364,4,FALSE),\"\")","v":""},{"$f":"IFERROR(VLOOKUP(B583,[2]Sheet4!$F$2:$J$364,5,FALSE),\"\")","v":""}]
[null,null,{"$f":"IFERROR(VLOOKUP(B584,[2]Sheet4!$F$2:$J$364,2,FALSE),\"\")","v":""},{"$f":"IFERROR(VLOOKUP(B584,[2]Sheet4!$F$2:$J$364,3,FALSE),\"\")","v":""},{"$f":"IFERROR(VLOOKUP(B584,[2]Sheet4!$F$2:$J$364,4,FALSE),\"\")","v":""},{"$f":"IFERROR(VLOOKUP(B584,[2]Sheet4!$F$2:$J$364,5,FALSE),\"\")","v":""}]
[null,null,{"$f":"IFERROR(VLOOKUP(B585,[2]Sheet4!$F$2:$J$364,2,FALSE),\"\")","v":""},{"$f":"IFERROR(VLOOKUP(B585,[2]Sheet4!$F$2:$J$364,3,FALSE),\"\")","v":""},{"$f":"IFERROR(VLOOKUP(B585,[2]Sheet4!$F$2:$J$364,4,FALSE),\"\")","v":""},{"$f":"IFERROR(VLOOKUP(B585,[2]Sheet4!$F$2:$J$364,5,FALSE),\"\")","v":""}]
[null,null,{"$f":"IFERROR(VLOOKUP(B586,[2]Sheet4!$F$2:$J$364,2,FALSE),\"\")","v":""},{"$f":"IFERROR(VLOOKUP(B586,[2]Sheet4!$F$2:$J$364,3,FALSE),\"\")","v":""},{"$f":"IFERROR(VLOOKUP(B586,[2]Sheet4!$F$2:$J$364,4,FALSE),\"\")","v":""},{"$f":"IFERROR(VLOOKUP(B586,[2]Sheet4!$F$2:$J$364,5,FALSE),\"\")","v":""}]
[null,null,{"$f":"IFERROR(VLOOKUP(B587,[2]Sheet4!$F$2:$J$364,2,FALSE),\"\")","v":""},{"$f":"IFERROR(VLOOKUP(B587,[2]Sheet4!$F$2:$J$364,3,FALSE),\"\")","v":""},{"$f":"IFERROR(VLOOKUP(B587,[2]Sheet4!$F$2:$J$364,4,FALSE),\"\")","v":""},{"$f":"IFERROR(VLOOKUP(B587,[2]Sheet4!$F$2:$J$364,5,FALSE),\"\")","v":""}]
[null,null,{"$f":"IFERROR(VLOOKUP(B588,[2]Sheet4!$F$2:$J$364,2,FALSE),\"\")","v":""},{"$f":"IFERROR(VLOOKUP(B588,[2]Sheet4!$F$2:$J$364,3,FALSE),\"\")","v":""},{"$f":"IFERROR(VLOOKUP(B588,[2]Sheet4!$F$2:$J$364,4,FALSE),\"\")","v":""},{"$f":"IFERROR(VLOOKUP(B588,[2]Sheet4!$F$2:$J$364,5,FALSE),\"\")","v":""}]
[null,null,{"$f":"IFERROR(VLOOKUP(B589,[2]Sheet4!$F$2:$J$364,2,FALSE),\"\")","v":""},{"$f":"IFERROR(VLOOKUP(B589,[2]Sheet4!$F$2:$J$364,3,FALSE),\"\")","v":""},{"$f":"IFERROR(VLOOKUP(B589,[2]Sheet4!$F$2:$J$364,4,FALSE),\"\")","v":""},{"$f":"IFERROR(VLOOKUP(B589,[2]Sheet4!$F$2:$J$364,5,FALSE),\"\")","v":""}]
[null,null,{"$f":"IFERROR(VLOOKUP(B590,[2]Sheet4!$F$2:$J$364,2,FALSE),\"\")","v":""},{"$f":"IFERROR(VLOOKUP(B590,[2]Sheet4!$F$2:$J$364,3,FALSE),\"\")","v":""},{"$f":"IFERROR(VLOOKUP(B590,[2]Sheet4!$F$2:$J$364,4,FALSE),\"\")","v":""},{"$f":"IFERROR(VLOOKUP(B590,[2]Sheet4!$F$2:$J$364,5,FALSE),\"\")","v":""}]
[null,null,{"$f":"IFERROR(VLOOKUP(B591,[2]Sheet4!$F$2:$J$364,2,FALSE),\"\")","v":""},{"$f":"IFERROR(VLOOKUP(B591,[2]Sheet4!$F$2:$J$364,3,FALSE),\"\")","v":""},{"$f":"IFERROR(VLOOKUP(B591,[2]Sheet4!$F$2:$J$364,4,FALSE),\"\")","v":""},{"$f":"IFERROR(VLOOKUP(B591,[2]Sheet4!$F$2:$J$364,5,FALSE),\"\")","v":""}]
[null,null,{"$f":"IFERROR(VLOOKUP(B592,[2]Sheet4!$F$2:$J$364,2,FALSE),\"\")","v":""},{"$f":"IFERROR(VLOOKUP(B592,[2]Sheet4!$F$2:$J$364,3,FALSE),\"\")","v":""},{"$f":"IFERROR(VLOOKUP(B592,[2]Sheet4!$F$2:$J$364,4,FALSE),\"\")","v":""},{"$f":"IFERROR(VLOOKUP(B592,[2]Sheet4!$F$2:$J$364,5,FALSE),\"\")","v":""}]
[null,null,{"$f":"IFERROR(VLOOKUP(B593,[2]Sheet4!$F$2:$J$364,2,FALSE),\"\")","v":""},{"$f":"IFERROR(VLOOKUP(B593,[2]Sheet4!$F$2:$J$364,3,FALSE),\"\")","v":""},{"$f":"IFERROR(VLOOKUP(B593,[2]Sheet4!$F$2:$J$364,4,FALSE),\"\")","v":""},{"$f":"IFERROR(VLOOKUP(B593,[2]Sheet4!$F$2:$J$364,5,FALSE),\"\")","v":""}]
[null,null,{"$f":"IFERROR(VLOOKUP(B594,[2]Sheet4!$F$2:$J$364,2,FALSE),\"\")","v":""},{"$f":"IFERROR(VLOOKUP(B594,[2]Sheet4!$F$2:$J$364,3,FALSE),\"\")","v":""},{"$f":"IFERROR(VLOOKUP(B594,[2]Sheet4!$F$2:$J$364,4,FALSE),\"\")","v":""},{"$f":"IFERROR(VLOOKUP(B594,[2]Sheet4!$F$2:$J$364,5,FALSE),\"\")","v":""}]
[null,null,{"$f":"IFERROR(VLOOKUP(B595,[2]Sheet4!$F$2:$J$364,2,FALSE),\"\")","v":""},{"$f":"IFERROR(VLOOKUP(B595,[2]Sheet4!$F$2:$J$364,3,FALSE),\"\")","v":""},{"$f":"IFERROR(VLOOKUP(B595,[2]Sheet4!$F$2:$J$364,4,FALSE),\"\")","v":""},{"$f":"IFERROR(VLOOKUP(B595,[2]Sheet4!$F$2:$J$364,5,FALSE),\"\")","v":""}]
[null,null,{"$f":"IFERROR(VLOOKUP(B596,[2]Sheet4!$F$2:$J$364,2,FALSE),\"\")","v":""},{"$f":"IFERROR(VLOOKUP(B596,[2]Sheet4!$F$2:$J$364,3,FALSE),\"\")","v":""},{"$f":"IFERROR(VLOOKUP(B596,[2]Sheet4!$F$2:$J$364,4,FALSE),\"\")","v":""},{"$f":"IFERROR(VLOOKUP(B596,[2]Sheet4!$F$2:$J$364,5,FALSE),\"\")","v":""}]
[null,null,{"$f":"IFERROR(VLOOKUP(B597,[2]Sheet4!$F$2:$J$364,2,FALSE),\"\")","v":""},{"$f":"IFERROR(VLOOKUP(B597,[2]Sheet4!$F$2:$J$364,3,FALSE),\"\")","v":""},{"$f":"IFERROR(VLOOKUP(B597,[2]Sheet4!$F$2:$J$364,4,FALSE),\"\")","v":""},{"$f":"IFERROR(VLOOKUP(B597,[2]Sheet4!$F$2:$J$364,5,FALSE),\"\")","v":""}]
[null,null,{"$f":"IFERROR(VLOOKUP(B598,[2]Sheet4!$F$2:$J$364,2,FALSE),\"\")","v":""},{"$f":"IFERROR(VLOOKUP(B598,[2]Sheet4!$F$2:$J$364,3,FALSE),\"\")","v":""},{"$f":"IFERROR(VLOOKUP(B598,[2]Sheet4!$F$2:$J$364,4,FALSE),\"\")","v":""},{"$f":"IFERROR(VLOOKUP(B598,[2]Sheet4!$F$2:$J$364,5,FALSE),\"\")","v":""}]
[null,null,{"$f":"IFERROR(VLOOKUP(B599,[2]Sheet4!$F$2:$J$364,2,FALSE),\"\")","v":""},{"$f":"IFERROR(VLOOKUP(B599,[2]Sheet4!$F$2:$J$364,3,FALSE),\"\")","v":""},{"$f":"IFERROR(VLOOKUP(B599,[2]Sheet4!$F$2:$J$364,4,FALSE),\"\")","v":""},{"$f":"IFERROR(VLOOKUP(B599,[2]Sheet4!$F$2:$J$364,5,FALSE),\"\")","v":""}]
[null,null,{"$f":"IFERROR(VLOOKUP(B600,[2]Sheet4!$F$2:$J$364,2,FALSE),\"\")","v":""},{"$f":"IFERROR(VLOOKUP(B600,[2]Sheet4!$F$2:$J$364,3,FALSE),\"\")","v":""},{"$f":"IFERROR(VLOOKUP(B600,[2]Sheet4!$F$2:$J$364,4,FALSE),\"\")","v":""},{"$f":"IFERROR(VLOOKUP(B600,[2]Sheet4!$F$2:$J$364,5,FALSE),\"\")","v":""}]
[null,null,{"$f":"IFERROR(VLOOKUP(B601,[2]Sheet4!$F$2:$J$364,2,FALSE),\"\")","v":""},{"$f":"IFERROR(VLOOKUP(B601,[2]Sheet4!$F$2:$J$364,3,FALSE),\"\")","v":""},{"$f":"IFERROR(VLOOKUP(B601,[2]Sheet4!$F$2:$J$364,4,FALSE),\"\")","v":""},{"$f":"IFERROR(VLOOKUP(B601,[2]Sheet4!$F$2:$J$364,5,FALSE),\"\")","v":""}]
[null,null,{"$f":"IFERROR(VLOOKUP(B602,[2]Sheet4!$F$2:$J$364,2,FALSE),\"\")","v":""},{"$f":"IFERROR(VLOOKUP(B602,[2]Sheet4!$F$2:$J$364,3,FALSE),\"\")","v":""},{"$f":"IFERROR(VLOOKUP(B602,[2]Sheet4!$F$2:$J$364,4,FALSE),\"\")","v":""},{"$f":"IFERROR(VLOOKUP(B602,[2]Sheet4!$F$2:$J$364,5,FALSE),\"\")","v":""}]
[null,null,{"$f":"IFERROR(VLOOKUP(B603,[2]Sheet4!$F$2:$J$364,2,FALSE),\"\")","v":""},{"$f":"IFERROR(VLOOKUP(B603,[2]Sheet4!$F$2:$J$364,3,FALSE),\"\")","v":""},{"$f":"IFERROR(VLOOKUP(B603,[2]Sheet4!$F$2:$J$364,4,FALSE),\"\")","v":""},{"$f":"IFERROR(VLOOKUP(B603,[2]Sheet4!$F$2:$J$364,5,FALSE),\"\")","v":""}]
[null,null,{"$f":"IFERROR(VLOOKUP(B604,[2]Sheet4!$F$2:$J$364,2,FALSE),\"\")","v":""},{"$f":"IFERROR(VLOOKUP(B604,[2]Sheet4!$F$2:$J$364,3,FALSE),\"\")","v":""},{"$f":"IFERROR(VLOOKUP(B604,[2]Sheet4!$F$2:$J$364,4,FALSE),\"\")","v":""},{"$f":"IFERROR(VLOOKUP(B604,[2]Sheet4!$F$2:$J$364,5,FALSE),\"\")","v":""}]
[null,null,{"$f":"IFERROR(VLOOKUP(B605,[2]Sheet4!$F$2:$J$364,2,FALSE),\"\")","v":""},{"$f":"IFERROR(VLOOKUP(B605,[2]Sheet4!$F$2:$J$364,3,FALSE),\"\")","v":""},{"$f":"IFERROR(VLOOKUP(B605,[2]Sheet4!$F$2:$J$364,4,FALSE),\"\")","v":""},{"$f":"IFERROR(VLOOKUP(B605,[2]Sheet4!$F$2:$J$364,5,FALSE),\"\")","v":""}]
[null,null,{"$f":"IFERROR(VLOOKUP(B606,[2]Sheet4!$F$2:$J$364,2,FALSE),\"\")","v":""},{"$f":"IFERROR(VLOOKUP(B606,[2]Sheet4!$F$2:$J$364,3,FALSE),\"\")","v":""},{"$f":"IFERROR(VLOOKUP(B606,[2]Sheet4!$F$2:$J$364,4,FALSE),\"\")","v":""},{"$f":"IFERROR(VLOOKUP(B606,[2]Sheet4!$F$2:$J$364,5,FALSE),\"\")","v":""}]
[null,null,{"$f":"IFERROR(VLOOKUP(B607,[2]Sheet4!$F$2:$J$364,2,FALSE),\"\")","v":""},{"$f":"IFERROR(VLOOKUP(B607,[2]Sheet4!$F$2:$J$364,3,FALSE),\"\")","v":""},{"$f":"IFERROR(VLOOKUP(B607,[2]Sheet4!$F$2:$J$364,4,FALSE),\"\")","v":""},{"$f":"IFERROR(VLOOKUP(B607,[2]Sheet4!$F$2:$J$364,5,FALSE),\"\")","v":""}]
[null,null,{"$f":"IFERROR(VLOOKUP(B608,[2]Sheet4!$F$2:$J$364,2,FALSE),\"\")","v":""},{"$f":"IFERROR(VLOOKUP(B608,[2]Sheet4!$F$2:$J$364,3,FALSE),\"\")","v":""},{"$f":"IFERROR(VLOOKUP(B608,[2]Sheet4!$F$2:$J$364,4,FALSE),\"\")","v":""},{"$f":"IFERROR(VLOOKUP(B608,[2]Sheet4!$F$2:$J$364,5,FALSE),\"\")","v":""}]
[null,null,{"$f":"IFERROR(VLOOKUP(B609,[2]Sheet4!$F$2:$J$364,2,FALSE),\"\")","v":""},{"$f":"IFERROR(VLOOKUP(B609,[2]Sheet4!$F$2:$J$364,3,FALSE),\"\")","v":""},{"$f":"IFERROR(VLOOKUP(B609,[2]Sheet4!$F$2:$J$364,4,FALSE),\"\")","v":""},{"$f":"IFERROR(VLOOKUP(B609,[2]Sheet4!$F$2:$J$364,5,FALSE),\"\")","v":""}]
[null,null,{"$f":"IFERROR(VLOOKUP(B610,[2]Sheet4!$F$2:$J$364,2,FALSE),\"\")","v":""},{"$f":"IFERROR(VLOOKUP(B610,[2]Sheet4!$F$2:$J$364,3,FALSE),\"\")","v":""},{"$f":"IFERROR(VLOOKUP(B610,[2]Sheet4!$F$2:$J$364,4,FALSE),\"\")","v":""},{"$f":"IFERROR(VLOOKUP(B610,[2]Sheet4!$F$2:$J$364,5,FALSE),\"\")","v":""}]
[null,null,{"$f":"IFERROR(VLOOKUP(B611,[2]Sheet4!$F$2:$J$364,2,FALSE),\"\")","v":""},{"$f":"IFERROR(VLOOKUP(B611,[2]Sheet4!$F$2:$J$364,3,FALSE),\"\")","v":""},{"$f":"IFERROR(VLOOKUP(B611,[2]Sheet4!$F$2:$J$364,4,FALSE),\"\")","v":""},{"$f":"IFERROR(VLOOKUP(B611,[2]Sheet4!$F$2:$J$364,5,FALSE),\"\")","v":""}]
[null,null,{"$f":"IFERROR(VLOOKUP(B612,[2]Sheet4!$F$2:$J$364,2,FALSE),\"\")","v":""},{"$f":"IFERROR(VLOOKUP(B612,[2]Sheet4!$F$2:$J$364,3,FALSE),\"\")","v":""},{"$f":"IFERROR(VLOOKUP(B612,[2]Sheet4!$F$2:$J$364,4,FALSE),\"\")","v":""},{"$f":"IFERROR(VLOOKUP(B612,[2]Sheet4!$F$2:$J$364,5,FALSE),\"\")","v":""}]
[null,null,{"$f":"IFERROR(VLOOKUP(B613,[2]Sheet4!$F$2:$J$364,2,FALSE),\"\")","v":""},{"$f":"IFERROR(VLOOKUP(B613,[2]Sheet4!$F$2:$J$364,3,FALSE),\"\")","v":""},{"$f":"IFERROR(VLOOKUP(B613,[2]Sheet4!$F$2:$J$364,4,FALSE),\"\")","v":""},{"$f":"IFERROR(VLOOKUP(B613,[2]Sheet4!$F$2:$J$364,5,FALSE),\"\")","v":""}]
[null,null,{"$f":"IFERROR(VLOOKUP(B614,[2]Sheet4!$F$2:$J$364,2,FALSE),\"\")","v":""},{"$f":"IFERROR(VLOOKUP(B614,[2]Sheet4!$F$2:$J$364,3,FALSE),\"\")","v":""},{"$f":"IFERROR(VLOOKUP(B614,[2]Sheet4!$F$2:$J$364,4,FALSE),\"\")","v":""},{"$f":"IFERROR(VLOOKUP(B614,[2]Sheet4!$F$2:$J$364,5,FALSE),\"\")","v":""}]
[null,null,{"$f":"IFERROR(VLOOKUP(B615,[2]Sheet4!$F$2:$J$364,2,FALSE),\"\")","v":""},{"$f":"IFERROR(VLOOKUP(B615,[2]Sheet4!$F$2:$J$364,3,FALSE),\"\")","v":""},{"$f":"IFERROR(VLOOKUP(B615,[2]Sheet4!$F$2:$J$364,4,FALSE),\"\")","v":""},{"$f":"IFERROR(VLOOKUP(B615,[2]Sheet4!$F$2:$J$364,5,FALSE),\"\")","v":""}]
[null,null,{"$f":"IFERROR(VLOOKUP(B616,[2]Sheet4!$F$2:$J$364,2,FALSE),\"\")","v":""},{"$f":"IFERROR(VLOOKUP(B616,[2]Sheet4!$F$2:$J$364,3,FALSE),\"\")","v":""},{"$f":"IFERROR(VLOOKUP(B616,[2]Sheet4!$F$2:$J$364,4,FALSE),\"\")","v":""},{"$f":"IFERROR(VLOOKUP(B616,[2]Sheet4!$F$2:$J$364,5,FALSE),\"\")","v":""}]
[null,null,{"$f":"IFERROR(VLOOKUP(B617,[2]Sheet4!$F$2:$J$364,2,FALSE),\"\")","v":""},{"$f":"IFERROR(VLOOKUP(B617,[2]Sheet4!$F$2:$J$364,3,FALSE),\"\")","v":""},{"$f":"IFERROR(VLOOKUP(B617,[2]Sheet4!$F$2:$J$364,4,FALSE),\"\")","v":""},{"$f":"IFERROR(VLOOKUP(B617,[2]Sheet4!$F$2:$J$364,5,FALSE),\"\")","v":""}]
[null,null,{"$f":"IFERROR(VLOOKUP(B618,[2]Sheet4!$F$2:$J$364,2,FALSE),\"\")","v":""},{"$f":"IFERROR(VLOOKUP(B618,[2]Sheet4!$F$2:$J$364,3,FALSE),\"\")","v":""},{"$f":"IFERROR(VLOOKUP(B618,[2]Sheet4!$F$2:$J$364,4,FALSE),\"\")","v":""},{"$f":"IFERROR(VLOOKUP(B618,[2]Sheet4!$F$2:$J$364,5,FALSE),\"\")","v":""}]
[null,null,{"$f":"IFERROR(VLOOKUP(B619,[2]Sheet4!$F$2:$J$364,2,FALSE),\"\")","v":""},{"$f":"IFERROR(VLOOKUP(B619,[2]Sheet4!$F$2:$J$364,3,FALSE),\"\")","v":""},{"$f":"IFERROR(VLOOKUP(B619,[2]Sheet4!$F$2:$J$364,4,FALSE),\"\")","v":""},{"$f":"IFERROR(VLOOKUP(B619,[2]Sheet4!$F$2:$J$364,5,FALSE),\"\")","v":""}]
[null,null,{"$f":"IFERROR(VLOOKUP(B620,[2]Sheet4!$F$2:$J$364,2,FALSE),\"\")","v":""},{"$f":"IFERROR(VLOOKUP(B620,[2]Sheet4!$F$2:$J$364,3,FALSE),\"\")","v":""},{"$f":"IFERROR(VLOOKUP(B620,[2]Sheet4!$F$2:$J$364,4,FALSE),\"\")","v":""},{"$f":"IFERROR(VLOOKUP(B620,[2]Sheet4!$F$2:$J$364,5,FALSE),\"\")","v":""}]
[null,null,{"$f":"IFERROR(VLOOKUP(B621,[2]Sheet4!$F$2:$J$364,2,FALSE),\"\")","v":""},{"$f":"IFERROR(VLOOKUP(B621,[2]Sheet4!$F$2:$J$364,3,FALSE),\"\")","v":""},{"$f":"IFERROR(VLOOKUP(B621,[2]Sheet4!$F$2:$J$364,4,FALSE),\"\")","v":""},{"$f":"IFERROR(VLOOKUP(B621,[2]Sheet4!$F$2:$J$364,5,FALSE),\"\")","v":""}]
[null,null,{"$f":"IFERROR(VLOOKUP(B622,[2]Sheet4!$F$2:$J$364,2,FALSE),\"\")","v":""},{"$f":"IFERROR(VLOOKUP(B622,[2]Sheet4!$F$2:$J$364,3,FALSE),\"\")","v":""},{"$f":"IFERROR(VLOOKUP(B622,[2]Sheet4!$F$2:$J$364,4,FALSE),\"\")","v":""},{"$f":"IFERROR(VLOOKUP(B622,[2]Sheet4!$F$2:$J$364,5,FALSE),\"\")","v":""}]
[null,null,{"$f":"IFERROR(VLOOKUP(B623,[2]Sheet4!$F$2:$J$364,2,FALSE),\"\")","v":""},{"$f":"IFERROR(VLOOKUP(B623,[2]Sheet4!$F$2:$J$364,3,FALSE),\"\")","v":""},{"$f":"IFERROR(VLOOKUP(B623,[2]Sheet4!$F$2:$J$364,4,FALSE),\"\")","v":""},{"$f":"IFERROR(VLOOKUP(B623,[2]Sheet4!$F$2:$J$364,5,FALSE),\"\")","v":""}]
[null,null,{"$f":"IFERROR(VLOOKUP(B624,[2]Sheet4!$F$2:$J$364,2,FALSE),\"\")","v":""},{"$f":"IFERROR(VLOOKUP(B624,[2]Sheet4!$F$2:$J$364,3,FALSE),\"\")","v":""},{"$f":"IFERROR(VLOOKUP(B624,[2]Sheet4!$F$2:$J$364,4,FALSE),\"\")","v":""},{"$f":"IFERROR(VLOOKUP(B624,[2]Sheet4!$F$2:$J$364,5,FALSE),\"\")","v":""}]
[null,null,{"$f":"IFERROR(VLOOKUP(B625,[2]Sheet4!$F$2:$J$364,2,FALSE),\"\")","v":""},{"$f":"IFERROR(VLOOKUP(B625,[2]Sheet4!$F$2:$J$364,3,FALSE),\"\")","v":""},{"$f":"IFERROR(VLOOKUP(B625,[2]Sheet4!$F$2:$J$364,4,FALSE),\"\")","v":""},{"$f":"IFERROR(VLOOKUP(B625,[2]Sheet4!$F$2:$J$364,5,FALSE),\"\")","v":""}]
[null,null,{"$f":"IFERROR(VLOOKUP(B626,[2]Sheet4!$F$2:$J$364,2,FALSE),\"\")","v":""},{"$f":"IFERROR(VLOOKUP(B626,[2]Sheet4!$F$2:$J$364,3,FALSE),\"\")","v":""},{"$f":"IFERROR(VLOOKUP(B626,[2]Sheet4!$F$2:$J$364,4,FALSE),\"\")","v":""},{"$f":"IFERROR(VLOOKUP(B626,[2]Sheet4!$F$2:$J$364,5,FALSE),\"\")","v":""}]
[null,null,{"$f":"IFERROR(VLOOKUP(B627,[2]Sheet4!$F$2:$J$364,2,FALSE),\"\")","v":""},{"$f":"IFERROR(VLOOKUP(B627,[2]Sheet4!$F$2:$J$364,3,FALSE),\"\")","v":""},{"$f":"IFERROR(VLOOKUP(B627,[2]Sheet4!$F$2:$J$364,4,FALSE),\"\")","v":""},{"$f":"IFERROR(VLOOKUP(B627,[2]Sheet4!$F$2:$J$364,5,FALSE),\"\")","v":""}]
[null,null,{"$f":"IFERROR(VLOOKUP(B628,[2]Sheet4!$F$2:$J$364,2,FALSE),\"\")","v":""},{"$f":"IFERROR(VLOOKUP(B628,[2]Sheet4!$F$2:$J$364,3,FALSE),\"\")","v":""},{"$f":"IFERROR(VLOOKUP(B628,[2]Sheet4!$F$2:$J$364,4,FALSE),\"\")","v":""},{"$f":"IFERROR(VLOOKUP(B628,[2]Sheet4!$F$2:$J$364,5,FALSE),\"\")","v":""}]
[null,null,{"$f":"IFERROR(VLOOKUP(B629,[2]Sheet4!$F$2:$J$364,2,FALSE),\"\")","v":""},{"$f":"IFERROR(VLOOKUP(B629,[2]Sheet4!$F$2:$J$364,3,FALSE),\"\")","v":""},{"$f":"IFERROR(VLOOKUP(B629,[2]Sheet4!$F$2:$J$364,4,FALSE),\"\")","v":""},{"$f":"IFERROR(VLOOKUP(B629,[2]Sheet4!$F$2:$J$364,5,FALSE),\"\")","v":""}]
[null,null,{"$f":"IFERROR(VLOOKUP(B630,[2]Sheet4!$F$2:$J$364,2,FALSE),\"\")","v":""},{"$f":"IFERROR(VLOOKUP(B630,[2]Sheet4!$F$2:$J$364,3,FALSE),\"\")","v":""},{"$f":"IFERROR(VLOOKUP(B630,[2]Sheet4!$F$2:$J$364,4,FALSE),\"\")","v":""},{"$f":"IFERROR(VLOOKUP(B630,[2]Sheet4!$F$2:$J$364,5,FALSE),\"\")","v":""}]
[null,null,{"$f":"IFERROR(VLOOKUP(B631,[2]Sheet4!$F$2:$J$364,2,FALSE),\"\")","v":""},{"$f":"IFERROR(VLOOKUP(B631,[2]Sheet4!$F$2:$J$364,3,FALSE),\"\")","v":""},{"$f":"IFERROR(VLOOKUP(B631,[2]Sheet4!$F$2:$J$364,4,FALSE),\"\")","v":""},{"$f":"IFERROR(VLOOKUP(B631,[2]Sheet4!$F$2:$J$364,5,FALSE),\"\")","v":""}]
[null,null,{"$f":"IFERROR(VLOOKUP(B632,[2]Sheet4!$F$2:$J$364,2,FALSE),\"\")","v":""},{"$f":"IFERROR(VLOOKUP(B632,[2]Sheet4!$F$2:$J$364,3,FALSE),\"\")","v":""},{"$f":"IFERROR(VLOOKUP(B632,[2]Sheet4!$F$2:$J$364,4,FALSE),\"\")","v":""},{"$f":"IFERROR(VLOOKUP(B632,[2]Sheet4!$F$2:$J$364,5,FALSE),\"\")","v":""}]
[null,null,{"$f":"IFERROR(VLOOKUP(B633,[2]Sheet4!$F$2:$J$364,2,FALSE),\"\")","v":""},{"$f":"IFERROR(VLOOKUP(B633,[2]Sheet4!$F$2:$J$364,3,FALSE),\"\")","v":""},{"$f":"IFERROR(VLOOKUP(B633,[2]Sheet4!$F$2:$J$364,4,FALSE),\"\")","v":""},{"$f":"IFERROR(VLOOKUP(B633,[2]Sheet4!$F$2:$J$364,5,FALSE),\"\")","v":""}]
[null,null,{"$f":"IFERROR(VLOOKUP(B634,[2]Sheet4!$F$2:$J$364,2,FALSE),\"\")","v":""},{"$f":"IFERROR(VLOOKUP(B634,[2]Sheet4!$F$2:$J$364,3,FALSE),\"\")","v":""},{"$f":"IFERROR(VLOOKUP(B634,[2]Sheet4!$F$2:$J$364,4,FALSE),\"\")","v":""},{"$f":"IFERROR(VLOOKUP(B634,[2]Sheet4!$F$2:$J$364,5,FALSE),\"\")","v":""}]
[null,null,{"$f":"IFERROR(VLOOKUP(B635,[2]Sheet4!$F$2:$J$364,2,FALSE),\"\")","v":""},{"$f":"IFERROR(VLOOKUP(B635,[2]Sheet4!$F$2:$J$364,3,FALSE),\"\")","v":""},{"$f":"IFERROR(VLOOKUP(B635,[2]Sheet4!$F$2:$J$364,4,FALSE),\"\")","v":""},{"$f":"IFERROR(VLOOKUP(B635,[2]Sheet4!$F$2:$J$364,5,FALSE),\"\")","v":""}]
[null,null,{"$f":"IFERROR(VLOOKUP(B636,[2]Sheet4!$F$2:$J$364,2,FALSE),\"\")","v":""},{"$f":"IFERROR(VLOOKUP(B636,[2]Sheet4!$F$2:$J$364,3,FALSE),\"\")","v":""},{"$f":"IFERROR(VLOOKUP(B636,[2]Sheet4!$F$2:$J$364,4,FALSE),\"\")","v":""},{"$f":"IFERROR(VLOOKUP(B636,[2]Sheet4!$F$2:$J$364,5,FALSE),\"\")","v":""}]
[null,null,{"$f":"IFERROR(VLOOKUP(B637,[2]Sheet4!$F$2:$J$364,2,FALSE),\"\")","v":""},{"$f":"IFERROR(VLOOKUP(B637,[2]Sheet4!$F$2:$J$364,3,FALSE),\"\")","v":""},{"$f":"IFERROR(VLOOKUP(B637,[2]Sheet4!$F$2:$J$364,4,FALSE),\"\")","v":""},{"$f":"IFERROR(VLOOKUP(B637,[2]Sheet4!$F$2:$J$364,5,FALSE),\"\")","v":""}]
[null,null,{"$f":"IFERROR(VLOOKUP(B638,[2]Sheet4!$F$2:$J$364,2,FALSE),\"\")","v":""},{"$f":"IFERROR(VLOOKUP(B638,[2]Sheet4!$F$2:$J$364,3,FALSE),\"\")","v":""},{"$f":"IFERROR(VLOOKUP(B638,[2]Sheet4!$F$2:$J$364,4,FALSE),\"\")","v":""},{"$f":"IFERROR(VLOOKUP(B638,[2]Sheet4!$F$2:$J$364,5,FALSE),\"\")","v":""}]
[null,null,{"$f":"IFERROR(VLOOKUP(B639,[2]Sheet4!$F$2:$J$364,2,FALSE),\"\")","v":""},{"$f":"IFERROR(VLOOKUP(B639,[2]Sheet4!$F$2:$J$364,3,FALSE),\"\")","v":""},{"$f":"IFERROR(VLOOKUP(B639,[2]Sheet4!$F$2:$J$364,4,FALSE),\"\")","v":""},{"$f":"IFERROR(VLOOKUP(B639,[2]Sheet4!$F$2:$J$364,5,FALSE),\"\")","v":""}]
[null,null,{"$f":"IFERROR(VLOOKUP(B640,[2]Sheet4!$F$2:$J$364,2,FALSE),\"\")","v":""},{"$f":"IFERROR(VLOOKUP(B640,[2]Sheet4!$F$2:$J$364,3,FALSE),\"\")","v":""},{"$f":"IFERROR(VLOOKUP(B640,[2]Sheet4!$F$2:$J$364,4,FALSE),\"\")","v":""},{"$f":"IFERROR(VLOOKUP(B640,[2]Sheet4!$F$2:$J$364,5,FALSE),\"\")","v":""}]
[null,null,{"$f":"IFERROR(VLOOKUP(B641,[2]Sheet4!$F$2:$J$364,2,FALSE),\"\")","v":""},{"$f":"IFERROR(VLOOKUP(B641,[2]Sheet4!$F$2:$J$364,3,FALSE),\"\")","v":""},{"$f":"IFERROR(VLOOKUP(B641,[2]Sheet4!$F$2:$J$364,4,FALSE),\"\")","v":""},{"$f":"IFERROR(VLOOKUP(B641,[2]Sheet4!$F$2:$J$364,5,FALSE),\"\")","v":""}]
[null,null,{"$f":"IFERROR(VLOOKUP(B642,[2]Sheet4!$F$2:$J$364,2,FALSE),\"\")","v":""},{"$f":"IFERROR(VLOOKUP(B642,[2]Sheet4!$F$2:$J$364,3,FALSE),\"\")","v":""},{"$f":"IFERROR(VLOOKUP(B642,[2]Sheet4!$F$2:$J$364,4,FALSE),\"\")","v":""},{"$f":"IFERROR(VLOOKUP(B642,[2]Sheet4!$F$2:$J$364,5,FALSE),\"\")","v":""}]
[null,null,{"$f":"IFERROR(VLOOKUP(B643,[2]Sheet4!$F$2:$J$364,2,FALSE),\"\")","v":""},{"$f":"IFERROR(VLOOKUP(B643,[2]Sheet4!$F$2:$J$364,3,FALSE),\"\")","v":""},{"$f":"IFERROR(VLOOKUP(B643,[2]Sheet4!$F$2:$J$364,4,FALSE),\"\")","v":""},{"$f":"IFERROR(VLOOKUP(B643,[2]Sheet4!$F$2:$J$364,5,FALSE),\"\")","v":""}]
[null,null,{"$f":"IFERROR(VLOOKUP(B644,[2]Sheet4!$F$2:$J$364,2,FALSE),\"\")","v":""},{"$f":"IFERROR(VLOOKUP(B644,[2]Sheet4!$F$2:$J$364,3,FALSE),\"\")","v":""},{"$f":"IFERROR(VLOOKUP(B644,[2]Sheet4!$F$2:$J$364,4,FALSE),\"\")","v":""},{"$f":"IFERROR(VLOOKUP(B644,[2]Sheet4!$F$2:$J$364,5,FALSE),\"\")","v":""}]
[null,null,{"$f":"IFERROR(VLOOKUP(B645,[2]Sheet4!$F$2:$J$364,2,FALSE),\"\")","v":""},{"$f":"IFERROR(VLOOKUP(B645,[2]Sheet4!$F$2:$J$364,3,FALSE),\"\")","v":""},{"$f":"IFERROR(VLOOKUP(B645,[2]Sheet4!$F$2:$J$364,4,FALSE),\"\")","v":""},{"$f":"IFERROR(VLOOKUP(B645,[2]Sheet4!$F$2:$J$364,5,FALSE),\"\")","v":""}]
[null,null,{"$f":"IFERROR(VLOOKUP(B646,[2]Sheet4!$F$2:$J$364,2,FALSE),\"\")","v":""},{"$f":"IFERROR(VLOOKUP(B646,[2]Sheet4!$F$2:$J$364,3,FALSE),\"\")","v":""},{"$f":"IFERROR(VLOOKUP(B646,[2]Sheet4!$F$2:$J$364,4,FALSE),\"\")","v":""},{"$f":"IFERROR(VLOOKUP(B646,[2]Sheet4!$F$2:$J$364,5,FALSE),\"\")","v":""}]
[null,null,{"$f":"IFERROR(VLOOKUP(B647,[2]Sheet4!$F$2:$J$364,2,FALSE),\"\")","v":""},{"$f":"IFERROR(VLOOKUP(B647,[2]Sheet4!$F$2:$J$364,3,FALSE),\"\")","v":""},{"$f":"IFERROR(VLOOKUP(B647,[2]Sheet4!$F$2:$J$364,4,FALSE),\"\")","v":""},{"$f":"IFERROR(VLOOKUP(B647,[2]Sheet4!$F$2:$J$364,5,FALSE),\"\")","v":""}]
[null,null,{"$f":"IFERROR(VLOOKUP(B648,[2]Sheet4!$F$2:$J$364,2,FALSE),\"\")","v":""},{"$f":"IFERROR(VLOOKUP(B648,[2]Sheet4!$F$2:$J$364,3,FALSE),\"\")","v":""},{"$f":"IFERROR(VLOOKUP(B648,[2]Sheet4!$F$2:$J$364,4,FALSE),\"\")","v":""},{"$f":"IFERROR(VLOOKUP(B648,[2]Sheet4!$F$2:$J$364,5,FALSE),\"\")","v":""}]
[null,null,{"$f":"IFERROR(VLOOKUP(B649,[2]Sheet4!$F$2:$J$364,2,FALSE),\"\")","v":""},{"$f":"IFERROR(VLOOKUP(B649,[2]Sheet4!$F$2:$J$364,3,FALSE),\"\")","v":""},{"$f":"IFERROR(VLOOKUP(B649,[2]Sheet4!$F$2:$J$364,4,FALSE),\"\")","v":""},{"$f":"IFERROR(VLOOKUP(B649,[2]Sheet4!$F$2:$J$364,5,FALSE),\"\")","v":""}]
[null,null,{"$f":"IFERROR(VLOOKUP(B650,[2]Sheet4!$F$2:$J$364,2,FALSE),\"\")","v":""},{"$f":"IFERROR(VLOOKUP(B650,[2]Sheet4!$F$2:$J$364,3,FALSE),\"\")","v":""},{"$f":"IFERROR(VLOOKUP(B650,[2]Sheet4!$F$2:$J$364,4,FALSE),\"\")","v":""},{"$f":"IFERROR(VLOOKUP(B650,[2]Sheet4!$F$2:$J$364,5,FALSE),\"\")","v":""}]
[null,null,{"$f":"IFERROR(VLOOKUP(B651,[2]Sheet4!$F$2:$J$364,2,FALSE),\"\")","v":""},{"$f":"IFERROR(VLOOKUP(B651,[2]Sheet4!$F$2:$J$364,3,FALSE),\"\")","v":""},{"$f":"IFERROR(VLOOKUP(B651,[2]Sheet4!$F$2:$J$364,4,FALSE),\"\")","v":""},{"$f":"IFERROR(VLOOKUP(B651,[2]Sheet4!$F$2:$J$364,5,FALSE),\"\")","v":""}]
[null,null,{"$f":"IFERROR(VLOOKUP(B652,[2]Sheet4!$F$2:$J$364,2,FALSE),\"\")","v":""},{"$f":"IFERROR(VLOOKUP(B652,[2]Sheet4!$F$2:$J$364,3,FALSE),\"\")","v":""},{"$f":"IFERROR(VLOOKUP(B652,[2]Sheet4!$F$2:$J$364,4,FALSE),\"\")","v":""},{"$f":"IFERROR(VLOOKUP(B652,[2]Sheet4!$F$2:$J$364,5,FALSE),\"\")","v":""}]
[null,null,{"$f":"IFERROR(VLOOKUP(B653,[2]Sheet4!$F$2:$J$364,2,FALSE),\"\")","v":""},{"$f":"IFERROR(VLOOKUP(B653,[2]Sheet4!$F$2:$J$364,3,FALSE),\"\")","v":""},{"$f":"IFERROR(VLOOKUP(B653,[2]Sheet4!$F$2:$J$364,4,FALSE),\"\")","v":""},{"$f":"IFERROR(VLOOKUP(B653,[2]Sheet4!$F$2:$J$364,5,FALSE),\"\")","v":""}]
[null,null,{"$f":"IFERROR(VLOOKUP(B654,[2]Sheet4!$F$2:$J$364,2,FALSE),\"\")","v":""},{"$f":"IFERROR(VLOOKUP(B654,[2]Sheet4!$F$2:$J$364,3,FALSE),\"\")","v":""},{"$f":"IFERROR(VLOOKUP(B654,[2]Sheet4!$F$2:$J$364,4,FALSE),\"\")","v":""},{"$f":"IFERROR(VLOOKUP(B654,[2]Sheet4!$F$2:$J$364,5,FALSE),\"\")","v":""}]
[null,null,{"$f":"IFERROR(VLOOKUP(B655,[2]Sheet4!$F$2:$J$364,2,FALSE),\"\")","v":""},{"$f":"IFERROR(VLOOKUP(B655,[2]Sheet4!$F$2:$J$364,3,FALSE),\"\")","v":""},{"$f":"IFERROR(VLOOKUP(B655,[2]Sheet4!$F$2:$J$364,4,FALSE),\"\")","v":""},{"$f":"IFERROR(VLOOKUP(B655,[2]Sheet4!$F$2:$J$364,5,FALSE),\"\")","v":""}]
[null,null,{"$f":"IFERROR(VLOOKUP(B656,[2]Sheet4!$F$2:$J$364,2,FALSE),\"\")","v":""},{"$f":"IFERROR(VLOOKUP(B656,[2]Sheet4!$F$2:$J$364,3,FALSE),\"\")","v":""},{"$f":"IFERROR(VLOOKUP(B656,[2]Sheet4!$F$2:$J$364,4,FALSE),\"\")","v":""},{"$f":"IFERROR(VLOOKUP(B656,[2]Sheet4!$F$2:$J$364,5,FALSE),\"\")","v":""}]
[null,null,{"$f":"IFERROR(VLOOKUP(B657,[2]Sheet4!$F$2:$J$364,2,FALSE),\"\")","v":""},{"$f":"IFERROR(VLOOKUP(B657,[2]Sheet4!$F$2:$J$364,3,FALSE),\"\")","v":""},{"$f":"IFERROR(VLOOKUP(B657,[2]Sheet4!$F$2:$J$364,4,FALSE),\"\")","v":""},{"$f":"IFERROR(VLOOKUP(B657,[2]Sheet4!$F$2:$J$364,5,FALSE),\"\")","v":""}]
[null,null,{"$f":"IFERROR(VLOOKUP(B658,[2]Sheet4!$F$2:$J$364,2,FALSE),\"\")","v":""},{"$f":"IFERROR(VLOOKUP(B658,[2]Sheet4!$F$2:$J$364,3,FALSE),\"\")","v":""},{"$f":"IFERROR(VLOOKUP(B658,[2]Sheet4!$F$2:$J$364,4,FALSE),\"\")","v":""},{"$f":"IFERROR(VLOOKUP(B658,[2]Sheet4!$F$2:$J$364,5,FALSE),\"\")","v":""}]
[null,null,{"$f":"IFERROR(VLOOKUP(B659,[2]Sheet4!$F$2:$J$364,2,FALSE),\"\")","v":""},{"$f":"IFERROR(VLOOKUP(B659,[2]Sheet4!$F$2:$J$364,3,FALSE),\"\")","v":""},{"$f":"IFERROR(VLOOKUP(B659,[2]Sheet4!$F$2:$J$364,4,FALSE),\"\")","v":""},{"$f":"IFERROR(VLOOKUP(B659,[2]Sheet4!$F$2:$J$364,5,FALSE),\"\")","v":""}]
[null,null,{"$f":"IFERROR(VLOOKUP(B660,[2]Sheet4!$F$2:$J$364,2,FALSE),\"\")","v":""},{"$f":"IFERROR(VLOOKUP(B660,[2]Sheet4!$F$2:$J$364,3,FALSE),\"\")","v":""},{"$f":"IFERROR(VLOOKUP(B660,[2]Sheet4!$F$2:$J$364,4,FALSE),\"\")","v":""},{"$f":"IFERROR(VLOOKUP(B660,[2]Sheet4!$F$2:$J$364,5,FALSE),\"\")","v":""}]
[null,null,{"$f":"IFERROR(VLOOKUP(B661,[2]Sheet4!$F$2:$J$364,2,FALSE),\"\")","v":""},{"$f":"IFERROR(VLOOKUP(B661,[2]Sheet4!$F$2:$J$364,3,FALSE),\"\")","v":""},{"$f":"IFERROR(VLOOKUP(B661,[2]Sheet4!$F$2:$J$364,4,FALSE),\"\")","v":""},{"$f":"IFERROR(VLOOKUP(B661,[2]Sheet4!$F$2:$J$364,5,FALSE),\"\")","v":""}]
[null,null,{"$f":"IFERROR(VLOOKUP(B662,[2]Sheet4!$F$2:$J$364,2,FALSE),\"\")","v":""},{"$f":"IFERROR(VLOOKUP(B662,[2]Sheet4!$F$2:$J$364,3,FALSE),\"\")","v":""},{"$f":"IFERROR(VLOOKUP(B662,[2]Sheet4!$F$2:$J$364,4,FALSE),\"\")","v":""},{"$f":"IFERROR(VLOOKUP(B662,[2]Sheet4!$F$2:$J$364,5,FALSE),\"\")","v":""}]
[null,null,{"$f":"IFERROR(VLOOKUP(B663,[2]Sheet4!$F$2:$J$364,2,FALSE),\"\")","v":""},{"$f":"IFERROR(VLOOKUP(B663,[2]Sheet4!$F$2:$J$364,3,FALSE),\"\")","v":""},{"$f":"IFERROR(VLOOKUP(B663,[2]Sheet4!$F$2:$J$364,4,FALSE),\"\")","v":""},{"$f":"IFERROR(VLOOKUP(B663,[2]Sheet4!$F$2:$J$364,5,FALSE),\"\")","v":""}]
[null,null,{"$f":"IFERROR(VLOOKUP(B664,[2]Sheet4!$F$2:$J$364,2,FALSE),\"\")","v":""},{"$f":"IFERROR(VLOOKUP(B664,[2]Sheet4!$F$2:$J$364,3,FALSE),\"\")","v":""},{"$f":"IFERROR(VLOOKUP(B664,[2]Sheet4!$F$2:$J$364,4,FALSE),\"\")","v":""},{"$f":"IFERROR(VLOOKUP(B664,[2]Sheet4!$F$2:$J$364,5,FALSE),\"\")","v":""}]
[null,null,{"$f":"IFERROR(VLOOKUP(B665,[2]Sheet4!$F$2:$J$364,2,FALSE),\"\")","v":""},{"$f":"IFERROR(VLOOKUP(B665,[2]Sheet4!$F$2:$J$364,3,FALSE),\"\")","v":""},{"$f":"IFERROR(VLOOKUP(B665,[2]Sheet4!$F$2:$J$364,4,FALSE),\"\")","v":""},{"$f":"IFERROR(VLOOKUP(B665,[2]Sheet4!$F$2:$J$364,5,FALSE),\"\")","v":""}]
[null,null,{"$f":"IFERROR(VLOOKUP(B666,[2]Sheet4!$F$2:$J$364,2,FALSE),\"\")","v":""},{"$f":"IFERROR(VLOOKUP(B666,[2]Sheet4!$F$2:$J$364,3,FALSE),\"\")","v":""},{"$f":"IFERROR(VLOOKUP(B666,[2]Sheet4!$F$2:$J$364,4,FALSE),\"\")","v":""},{"$f":"IFERROR(VLOOKUP(B666,[2]Sheet4!$F$2:$J$364,5,FALSE),\"\")","v":""}]
[null,null,{"$f":"IFERROR(VLOOKUP(B667,[2]Sheet4!$F$2:$J$364,2,FALSE),\"\")","v":""},{"$f":"IFERROR(VLOOKUP(B667,[2]Sheet4!$F$2:$J$364,3,FALSE),\"\")","v":""},{"$f":"IFERROR(VLOOKUP(B667,[2]Sheet4!$F$2:$J$364,4,FALSE),\"\")","v":""},{"$f":"IFERROR(VLOOKUP(B667,[2]Sheet4!$F$2:$J$364,5,FALSE),\"\")","v":""}]
[null,null,{"$f":"IFERROR(VLOOKUP(B668,[2]Sheet4!$F$2:$J$364,2,FALSE),\"\")","v":""},{"$f":"IFERROR(VLOOKUP(B668,[2]Sheet4!$F$2:$J$364,3,FALSE),\"\")","v":""},{"$f":"IFERROR(VLOOKUP(B668,[2]Sheet4!$F$2:$J$364,4,FALSE),\"\")","v":""},{"$f":"IFERROR(VLOOKUP(B668,[2]Sheet4!$F$2:$J$364,5,FALSE),\"\")","v":""}]
[null,null,{"$f":"IFERROR(VLOOKUP(B669,[2]Sheet4!$F$2:$J$364,2,FALSE),\"\")","v":""},{"$f":"IFERROR(VLOOKUP(B669,[2]Sheet4!$F$2:$J$364,3,FALSE),\"\")","v":""},{"$f":"IFERROR(VLOOKUP(B669,[2]Sheet4!$F$2:$J$364,4,FALSE),\"\")","v":""},{"$f":"IFERROR(VLOOKUP(B669,[2]Sheet4!$F$2:$J$364,5,FALSE),\"\")","v":""}]
[null,null,{"$f":"IFERROR(VLOOKUP(B670,[2]Sheet4!$F$2:$J$364,2,FALSE),\"\")","v":""},{"$f":"IFERROR(VLOOKUP(B670,[2]Sheet4!$F$2:$J$364,3,FALSE),\"\")","v":""},{"$f":"IFERROR(VLOOKUP(B670,[2]Sheet4!$F$2:$J$364,4,FALSE),\"\")","v":""},{"$f":"IFERROR(VLOOKUP(B670,[2]Sheet4!$F$2:$J$364,5,FALSE),\"\")","v":""}]
[null,null,{"$f":"IFERROR(VLOOKUP(B671,[2]Sheet4!$F$2:$J$364,2,FALSE),\"\")","v":""},{"$f":"IFERROR(VLOOKUP(B671,[2]Sheet4!$F$2:$J$364,3,FALSE),\"\")","v":""},{"$f":"IFERROR(VLOOKUP(B671,[2]Sheet4!$F$2:$J$364,4,FALSE),\"\")","v":""},{"$f":"IFERROR(VLOOKUP(B671,[2]Sheet4!$F$2:$J$364,5,FALSE),\"\")","v":""}]
[null,null,{"$f":"IFERROR(VLOOKUP(B672,[2]Sheet4!$F$2:$J$364,2,FALSE),\"\")","v":""},{"$f":"IFERROR(VLOOKUP(B672,[2]Sheet4!$F$2:$J$364,3,FALSE),\"\")","v":""},{"$f":"IFERROR(VLOOKUP(B672,[2]Sheet4!$F$2:$J$364,4,FALSE),\"\")","v":""},{"$f":"IFERROR(VLOOKUP(B672,[2]Sheet4!$F$2:$J$364,5,FALSE),\"\")","v":""}]
[null,null,{"$f":"IFERROR(VLOOKUP(B673,[2]Sheet4!$F$2:$J$364,2,FALSE),\"\")","v":""},{"$f":"IFERROR(VLOOKUP(B673,[2]Sheet4!$F$2:$J$364,3,FALSE),\"\")","v":""},{"$f":"IFERROR(VLOOKUP(B673,[2]Sheet4!$F$2:$J$364,4,FALSE),\"\")","v":""},{"$f":"IFERROR(VLOOKUP(B673,[2]Sheet4!$F$2:$J$364,5,FALSE),\"\")","v":""}]
[null,null,{"$f":"IFERROR(VLOOKUP(B674,[2]Sheet4!$F$2:$J$364,2,FALSE),\"\")","v":""},{"$f":"IFERROR(VLOOKUP(B674,[2]Sheet4!$F$2:$J$364,3,FALSE),\"\")","v":""},{"$f":"IFERROR(VLOOKUP(B674,[2]Sheet4!$F$2:$J$364,4,FALSE),\"\")","v":""},{"$f":"IFERROR(VLOOKUP(B674,[2]Sheet4!$F$2:$J$364,5,FALSE),\"\")","v":""}]
[null,null,{"$f":"IFERROR(VLOOKUP(B675,[2]Sheet4!$F$2:$J$364,2,FALSE),\"\")","v":""},{"$f":"IFERROR(VLOOKUP(B675,[2]Sheet4!$F$2:$J$364,3,FALSE),\"\")","v":""},{"$f":"IFERROR(VLOOKUP(B675,[2]Sheet4!$F$2:$J$364,4,FALSE),\"\")","v":""},{"$f":"IFERROR(VLOOKUP(B675,[2]Sheet4!$F$2:$J$364,5,FALSE),\"\")","v":""}]
[null,null,{"$f":"IFERROR(VLOOKUP(B676,[2]Sheet4!$F$2:$J$364,2,FALSE),\"\")","v":""},{"$f":"IFERROR(VLOOKUP(B676,[2]Sheet4!$F$2:$J$364,3,FALSE),\"\")","v":""},{"$f":"IFERROR(VLOOKUP(B676,[2]Sheet4!$F$2:$J$364,4,FALSE),\"\")","v":""},{"$f":"IFERROR(VLOOKUP(B676,[2]Sheet4!$F$2:$J$364,5,FALSE),\"\")","v":""}]
[null,null,{"$f":"IFERROR(VLOOKUP(B677,[2]Sheet4!$F$2:$J$364,2,FALSE),\"\")","v":""},{"$f":"IFERROR(VLOOKUP(B677,[2]Sheet4!$F$2:$J$364,3,FALSE),\"\")","v":""},{"$f":"IFERROR(VLOOKUP(B677,[2]Sheet4!$F$2:$J$364,4,FALSE),\"\")","v":""},{"$f":"IFERROR(VLOOKUP(B677,[2]Sheet4!$F$2:$J$364,5,FALSE),\"\")","v":""}]
[null,null,{"$f":"IFERROR(VLOOKUP(B678,[2]Sheet4!$F$2:$J$364,2,FALSE),\"\")","v":""},{"$f":"IFERROR(VLOOKUP(B678,[2]Sheet4!$F$2:$J$364,3,FALSE),\"\")","v":""},{"$f":"IFERROR(VLOOKUP(B678,[2]Sheet4!$F$2:$J$364,4,FALSE),\"\")","v":""},{"$f":"IFERROR(VLOOKUP(B678,[2]Sheet4!$F$2:$J$364,5,FALSE),\"\")","v":""}]
[null,null,{"$f":"IFERROR(VLOOKUP(B679,[2]Sheet4!$F$2:$J$364,2,FALSE),\"\")","v":""},{"$f":"IFERROR(VLOOKUP(B679,[2]Sheet4!$F$2:$J$364,3,FALSE),\"\")","v":""},{"$f":"IFERROR(VLOOKUP(B679,[2]Sheet4!$F$2:$J$364,4,FALSE),\"\")","v":""},{"$f":"IFERROR(VLOOKUP(B679,[2]Sheet4!$F$2:$J$364,5,FALSE),\"\")","v":""}]
[null,null,{"$f":"IFERROR(VLOOKUP(B680,[2]Sheet4!$F$2:$J$364,2,FALSE),\"\")","v":""},{"$f":"IFERROR(VLOOKUP(B680,[2]Sheet4!$F$2:$J$364,3,FALSE),\"\")","v":""},{"$f":"IFERROR(VLOOKUP(B680,[2]Sheet4!$F$2:$J$364,4,FALSE),\"\")","v":""},{"$f":"IFERROR(VLOOKUP(B680,[2]Sheet4!$F$2:$J$364,5,FALSE),\"\")","v":""}]
[null,null,{"$f":"IFERROR(VLOOKUP(B681,[2]Sheet4!$F$2:$J$364,2,FALSE),\"\")","v":""},{"$f":"IFERROR(VLOOKUP(B681,[2]Sheet4!$F$2:$J$364,3,FALSE),\"\")","v":""},{"$f":"IFERROR(VLOOKUP(B681,[2]Sheet4!$F$2:$J$364,4,FALSE),\"\")","v":""},{"$f":"IFERROR(VLOOKUP(B681,[2]Sheet4!$F$2:$J$364,5,FALSE),\"\")","v":""}]
[null,null,{"$f":"IFERROR(VLOOKUP(B682,[2]Sheet4!$F$2:$J$364,2,FALSE),\"\")","v":""},{"$f":"IFERROR(VLOOKUP(B682,[2]Sheet4!$F$2:$J$364,3,FALSE),\"\")","v":""},{"$f":"IFERROR(VLOOKUP(B682,[2]Sheet4!$F$2:$J$364,4,FALSE),\"\")","v":""},{"$f":"IFERROR(VLOOKUP(B682,[2]Sheet4!$F$2:$J$364,5,FALSE),\"\")","v":""}]
[null,null,{"$f":"IFERROR(VLOOKUP(B683,[2]Sheet4!$F$2:$J$364,2,FALSE),\"\")","v":""},{"$f":"IFERROR(VLOOKUP(B683,[2]Sheet4!$F$2:$J$364,3,FALSE),\"\")","v":""},{"$f":"IFERROR(VLOOKUP(B683,[2]Sheet4!$F$2:$J$364,4,FALSE),\"\")","v":""},{"$f":"IFERROR(VLOOKUP(B683,[2]Sheet4!$F$2:$J$364,5,FALSE),\"\")","v":""}]
[null,null,{"$f":"IFERROR(VLOOKUP(B684,[2]Sheet4!$F$2:$J$364,2,FALSE),\"\")","v":""},{"$f":"IFERROR(VLOOKUP(B684,[2]Sheet4!$F$2:$J$364,3,FALSE),\"\")","v":""},{"$f":"IFERROR(VLOOKUP(B684,[2]Sheet4!$F$2:$J$364,4,FALSE),\"\")","v":""},{"$f":"IFERROR(VLOOKUP(B684,[2]Sheet4!$F$2:$J$364,5,FALSE),\"\")","v":""}]
[null,null,{"$f":"IFERROR(VLOOKUP(B685,[2]Sheet4!$F$2:$J$364,2,FALSE),\"\")","v":""},{"$f":"IFERROR(VLOOKUP(B685,[2]Sheet4!$F$2:$J$364,3,FALSE),\"\")","v":""},{"$f":"IFERROR(VLOOKUP(B685,[2]Sheet4!$F$2:$J$364,4,FALSE),\"\")","v":""},{"$f":"IFERROR(VLOOKUP(B685,[2]Sheet4!$F$2:$J$364,5,FALSE),\"\")","v":""}]
[null,null,{"$f":"IFERROR(VLOOKUP(B686,[2]Sheet4!$F$2:$J$364,2,FALSE),\"\")","v":""},{"$f":"IFERROR(VLOOKUP(B686,[2]Sheet4!$F$2:$J$364,3,FALSE),\"\")","v":""},{"$f":"IFERROR(VLOOKUP(B686,[2]Sheet4!$F$2:$J$364,4,FALSE),\"\")","v":""},{"$f":"IFERROR(VLOOKUP(B686,[2]Sheet4!$F$2:$J$364,5,FALSE),\"\")","v":""}]
[null,null,{"$f":"IFERROR(VLOOKUP(B687,[2]Sheet4!$F$2:$J$364,2,FALSE),\"\")","v":""},{"$f":"IFERROR(VLOOKUP(B687,[2]Sheet4!$F$2:$J$364,3,FALSE),\"\")","v":""},{"$f":"IFERROR(VLOOKUP(B687,[2]Sheet4!$F$2:$J$364,4,FALSE),\"\")","v":""},{"$f":"IFERROR(VLOOKUP(B687,[2]Sheet4!$F$2:$J$364,5,FALSE),\"\")","v":""}]
[null,null,{"$f":"IFERROR(VLOOKUP(B688,[2]Sheet4!$F$2:$J$364,2,FALSE),\"\")","v":""},{"$f":"IFERROR(VLOOKUP(B688,[2]Sheet4!$F$2:$J$364,3,FALSE),\"\")","v":""},{"$f":"IFERROR(VLOOKUP(B688,[2]Sheet4!$F$2:$J$364,4,FALSE),\"\")","v":""},{"$f":"IFERROR(VLOOKUP(B688,[2]Sheet4!$F$2:$J$364,5,FALSE),\"\")","v":""}]
[null,null,{"$f":"IFERROR(VLOOKUP(B689,[2]Sheet4!$F$2:$J$364,2,FALSE),\"\")","v":""},{"$f":"IFERROR(VLOOKUP(B689,[2]Sheet4!$F$2:$J$364,3,FALSE),\"\")","v":""},{"$f":"IFERROR(VLOOKUP(B689,[2]Sheet4!$F$2:$J$364,4,FALSE),\"\")","v":""},{"$f":"IFERROR(VLOOKUP(B689,[2]Sheet4!$F$2:$J$364,5,FALSE),\"\")","v":""}]
[null,null,{"$f":"IFERROR(VLOOKUP(B690,[2]Sheet4!$F$2:$J$364,2,FALSE),\"\")","v":""},{"$f":"IFERROR(VLOOKUP(B690,[2]Sheet4!$F$2:$J$364,3,FALSE),\"\")","v":""},{"$f":"IFERROR(VLOOKUP(B690,[2]Sheet4!$F$2:$J$364,4,FALSE),\"\")","v":""},{"$f":"IFERROR(VLOOKUP(B690,[2]Sheet4!$F$2:$J$364,5,FALSE),\"\")","v":""}]
[null,null,{"$f":"IFERROR(VLOOKUP(B691,[2]Sheet4!$F$2:$J$364,2,FALSE),\"\")","v":""},{"$f":"IFERROR(VLOOKUP(B691,[2]Sheet4!$F$2:$J$364,3,FALSE),\"\")","v":""},{"$f":"IFERROR(VLOOKUP(B691,[2]Sheet4!$F$2:$J$364,4,FALSE),\"\")","v":""},{"$f":"IFERROR(VLOOKUP(B691,[2]Sheet4!$F$2:$J$364,5,FALSE),\"\")","v":""}]
[null,null,{"$f":"IFERROR(VLOOKUP(B692,[2]Sheet4!$F$2:$J$364,2,FALSE),\"\")","v":""},{"$f":"IFERROR(VLOOKUP(B692,[2]Sheet4!$F$2:$J$364,3,FALSE),\"\")","v":""},{"$f":"IFERROR(VLOOKUP(B692,[2]Sheet4!$F$2:$J$364,4,FALSE),\"\")","v":""},{"$f":"IFERROR(VLOOKUP(B692,[2]Sheet4!$F$2:$J$364,5,FALSE),\"\")","v":""}]
[null,null,{"$f":"IFERROR(VLOOKUP(B693,[2]Sheet4!$F$2:$J$364,2,FALSE),\"\")","v":""},{"$f":"IFERROR(VLOOKUP(B693,[2]Sheet4!$F$2:$J$364,3,FALSE),\"\")","v":""},{"$f":"IFERROR(VLOOKUP(B693,[2]Sheet4!$F$2:$J$364,4,FALSE),\"\")","v":""},{"$f":"IFERROR(VLOOKUP(B693,[2]Sheet4!$F$2:$J$364,5,FALSE),\"\")","v":""}]
[null,null,{"$f":"IFERROR(VLOOKUP(B694,[2]Sheet4!$F$2:$J$364,2,FALSE),\"\")","v":""},{"$f":"IFERROR(VLOOKUP(B694,[2]Sheet4!$F$2:$J$364,3,FALSE),\"\")","v":""},{"$f":"IFERROR(VLOOKUP(B694,[2]Sheet4!$F$2:$J$364,4,FALSE),\"\")","v":""},{"$f":"IFERROR(VLOOKUP(B694,[2]Sheet4!$F$2:$J$364,5,FALSE),\"\")","v":""}]
[null,null,{"$f":"IFERROR(VLOOKUP(B695,[2]Sheet4!$F$2:$J$364,2,FALSE),\"\")","v":""},{"$f":"IFERROR(VLOOKUP(B695,[2]Sheet4!$F$2:$J$364,3,FALSE),\"\")","v":""},{"$f":"IFERROR(VLOOKUP(B695,[2]Sheet4!$F$2:$J$364,4,FALSE),\"\")","v":""},{"$f":"IFERROR(VLOOKUP(B695,[2]Sheet4!$F$2:$J$364,5,FALSE),\"\")","v":""}]
[null,null,{"$f":"IFERROR(VLOOKUP(B696,[2]Sheet4!$F$2:$J$364,2,FALSE),\"\")","v":""},{"$f":"IFERROR(VLOOKUP(B696,[2]Sheet4!$F$2:$J$364,3,FALSE),\"\")","v":""},{"$f":"IFERROR(VLOOKUP(B696,[2]Sheet4!$F$2:$J$364,4,FALSE),\"\")","v":""},{"$f":"IFERROR(VLOOKUP(B696,[2]Sheet4!$F$2:$J$364,5,FALSE),\"\")","v":""}]
[null,null,{"$f":"IFERROR(VLOOKUP(B697,[2]Sheet4!$F$2:$J$364,2,FALSE),\"\")","v":""},{"$f":"IFERROR(VLOOKUP(B697,[2]Sheet4!$F$2:$J$364,3,FALSE),\"\")","v":""},{"$f":"IFERROR(VLOOKUP(B697,[2]Sheet4!$F$2:$J$364,4,FALSE),\"\")","v":""},{"$f":"IFERROR(VLOOKUP(B697,[2]Sheet4!$F$2:$J$364,5,FALSE),\"\")","v":""}]
[null,null,{"$f":"IFERROR(VLOOKUP(B698,[2]Sheet4!$F$2:$J$364,2,FALSE),\"\")","v":""},{"$f":"IFERROR(VLOOKUP(B698,[2]Sheet4!$F$2:$J$364,3,FALSE),\"\")","v":""},{"$f":"IFERROR(VLOOKUP(B698,[2]Sheet4!$F$2:$J$364,4,FALSE),\"\")","v":""},{"$f":"IFERROR(VLOOKUP(B698,[2]Sheet4!$F$2:$J$364,5,FALSE),\"\")","v":""}]
[null,null,{"$f":"IFERROR(VLOOKUP(B699,[2]Sheet4!$F$2:$J$364,2,FALSE),\"\")","v":""},{"$f":"IFERROR(VLOOKUP(B699,[2]Sheet4!$F$2:$J$364,3,FALSE),\"\")","v":""},{"$f":"IFERROR(VLOOKUP(B699,[2]Sheet4!$F$2:$J$364,4,FALSE),\"\")","v":""},{"$f":"IFERROR(VLOOKUP(B699,[2]Sheet4!$F$2:$J$364,5,FALSE),\"\")","v":""}]
[null,null,{"$f":"IFERROR(VLOOKUP(B700,[2]Sheet4!$F$2:$J$364,2,FALSE),\"\")","v":""},{"$f":"IFERROR(VLOOKUP(B700,[2]Sheet4!$F$2:$J$364,3,FALSE),\"\")","v":""},{"$f":"IFERROR(VLOOKUP(B700,[2]Sheet4!$F$2:$J$364,4,FALSE),\"\")","v":""},{"$f":"IFERROR(VLOOKUP(B700,[2]Sheet4!$F$2:$J$364,5,FALSE),\"\")","v":""}]
[null,null,{"$f":"IFERROR(VLOOKUP(B701,[2]Sheet4!$F$2:$J$364,2,FALSE),\"\")","v":""},{"$f":"IFERROR(VLOOKUP(B701,[2]Sheet4!$F$2:$J$364,3,FALSE),\"\")","v":""},{"$f":"IFERROR(VLOOKUP(B701,[2]Sheet4!$F$2:$J$364,4,FALSE),\"\")","v":""},{"$f":"IFERROR(VLOOKUP(B701,[2]Sheet4!$F$2:$J$364,5,FALSE),\"\")","v":""}]
[null,null,{"$f":"IFERROR(VLOOKUP(B702,[2]Sheet4!$F$2:$J$364,2,FALSE),\"\")","v":""},{"$f":"IFERROR(VLOOKUP(B702,[2]Sheet4!$F$2:$J$364,3,FALSE),\"\")","v":""},{"$f":"IFERROR(VLOOKUP(B702,[2]Sheet4!$F$2:$J$364,4,FALSE),\"\")","v":""},{"$f":"IFERROR(VLOOKUP(B702,[2]Sheet4!$F$2:$J$364,5,FALSE),\"\")","v":""}]
[null,null,{"$f":"IFERROR(VLOOKUP(B703,[2]Sheet4!$F$2:$J$364,2,FALSE),\"\")","v":""},{"$f":"IFERROR(VLOOKUP(B703,[2]Sheet4!$F$2:$J$364,3,FALSE),\"\")","v":""},{"$f":"IFERROR(VLOOKUP(B703,[2]Sheet4!$F$2:$J$364,4,FALSE),\"\")","v":""},{"$f":"IFERROR(VLOOKUP(B703,[2]Sheet4!$F$2:$J$364,5,FALSE),\"\")","v":""}]
[null,null,{"$f":"IFERROR(VLOOKUP(B704,[2]Sheet4!$F$2:$J$364,2,FALSE),\"\")","v":""},{"$f":"IFERROR(VLOOKUP(B704,[2]Sheet4!$F$2:$J$364,3,FALSE),\"\")","v":""},{"$f":"IFERROR(VLOOKUP(B704,[2]Sheet4!$F$2:$J$364,4,FALSE),\"\")","v":""},{"$f":"IFERROR(VLOOKUP(B704,[2]Sheet4!$F$2:$J$364,5,FALSE),\"\")","v":""}]
[null,null,{"$f":"IFERROR(VLOOKUP(B705,[2]Sheet4!$F$2:$J$364,2,FALSE),\"\")","v":""},{"$f":"IFERROR(VLOOKUP(B705,[2]Sheet4!$F$2:$J$364,3,FALSE),\"\")","v":""},{"$f":"IFERROR(VLOOKUP(B705,[2]Sheet4!$F$2:$J$364,4,FALSE),\"\")","v":""},{"$f":"IFERROR(VLOOKUP(B705,[2]Sheet4!$F$2:$J$364,5,FALSE),\"\")","v":""}]
[null,null,{"$f":"IFERROR(VLOOKUP(B706,[2]Sheet4!$F$2:$J$364,2,FALSE),\"\")","v":""},{"$f":"IFERROR(VLOOKUP(B706,[2]Sheet4!$F$2:$J$364,3,FALSE),\"\")","v":""},{"$f":"IFERROR(VLOOKUP(B706,[2]Sheet4!$F$2:$J$364,4,FALSE),\"\")","v":""},{"$f":"IFERROR(VLOOKUP(B706,[2]Sheet4!$F$2:$J$364,5,FALSE),\"\")","v":""}]
[null,null,{"$f":"IFERROR(VLOOKUP(B707,[2]Sheet4!$F$2:$J$364,2,FALSE),\"\")","v":""},{"$f":"IFERROR(VLOOKUP(B707,[2]Sheet4!$F$2:$J$364,3,FALSE),\"\")","v":""},{"$f":"IFERROR(VLOOKUP(B707,[2]Sheet4!$F$2:$J$364,4,FALSE),\"\")","v":""},{"$f":"IFERROR(VLOOKUP(B707,[2]Sheet4!$F$2:$J$364,5,FALSE),\"\")","v":""}]
[null,null,{"$f":"IFERROR(VLOOKUP(B708,[2]Sheet4!$F$2:$J$364,2,FALSE),\"\")","v":""},{"$f":"IFERROR(VLOOKUP(B708,[2]Sheet4!$F$2:$J$364,3,FALSE),\"\")","v":""},{"$f":"IFERROR(VLOOKUP(B708,[2]Sheet4!$F$2:$J$364,4,FALSE),\"\")","v":""},{"$f":"IFERROR(VLOOKUP(B708,[2]Sheet4!$F$2:$J$364,5,FALSE),\"\")","v":""}]
[null,null,{"$f":"IFERROR(VLOOKUP(B709,[2]Sheet4!$F$2:$J$364,2,FALSE),\"\")","v":""},{"$f":"IFERROR(VLOOKUP(B709,[2]Sheet4!$F$2:$J$364,3,FALSE),\"\")","v":""},{"$f":"IFERROR(VLOOKUP(B709,[2]Sheet4!$F$2:$J$364,4,FALSE),\"\")","v":""},{"$f":"IFERROR(VLOOKUP(B709,[2]Sheet4!$F$2:$J$364,5,FALSE),\"\")","v":""}]
[null,null,{"$f":"IFERROR(VLOOKUP(B710,[2]Sheet4!$F$2:$J$364,2,FALSE),\"\")","v":""},{"$f":"IFERROR(VLOOKUP(B710,[2]Sheet4!$F$2:$J$364,3,FALSE),\"\")","v":""},{"$f":"IFERROR(VLOOKUP(B710,[2]Sheet4!$F$2:$J$364,4,FALSE),\"\")","v":""},{"$f":"IFERROR(VLOOKUP(B710,[2]Sheet4!$F$2:$J$364,5,FALSE),\"\")","v":""}]
[null,null,{"$f":"IFERROR(VLOOKUP(B711,[2]Sheet4!$F$2:$J$364,2,FALSE),\"\")","v":""},{"$f":"IFERROR(VLOOKUP(B711,[2]Sheet4!$F$2:$J$364,3,FALSE),\"\")","v":""},{"$f":"IFERROR(VLOOKUP(B711,[2]Sheet4!$F$2:$J$364,4,FALSE),\"\")","v":""},{"$f":"IFERROR(VLOOKUP(B711,[2]Sheet4!$F$2:$J$364,5,FALSE),\"\")","v":""}]
[null,null,{"$f":"IFERROR(VLOOKUP(B712,[2]Sheet4!$F$2:$J$364,2,FALSE),\"\")","v":""},{"$f":"IFERROR(VLOOKUP(B712,[2]Sheet4!$F$2:$J$364,3,FALSE),\"\")","v":""},{"$f":"IFERROR(VLOOKUP(B712,[2]Sheet4!$F$2:$J$364,4,FALSE),\"\")","v":""},{"$f":"IFERROR(VLOOKUP(B712,[2]Sheet4!$F$2:$J$364,5,FALSE),\"\")","v":""}]
[null,null,{"$f":"IFERROR(VLOOKUP(B713,[2]Sheet4!$F$2:$J$364,2,FALSE),\"\")","v":""},{"$f":"IFERROR(VLOOKUP(B713,[2]Sheet4!$F$2:$J$364,3,FALSE),\"\")","v":""},{"$f":"IFERROR(VLOOKUP(B713,[2]Sheet4!$F$2:$J$364,4,FALSE),\"\")","v":""},{"$f":"IFERROR(VLOOKUP(B713,[2]Sheet4!$F$2:$J$364,5,FALSE),\"\")","v":""}]
[null,null,{"$f":"IFERROR(VLOOKUP(B714,[2]Sheet4!$F$2:$J$364,2,FALSE),\"\")","v":""},{"$f":"IFERROR(VLOOKUP(B714,[2]Sheet4!$F$2:$J$364,3,FALSE),\"\")","v":""},{"$f":"IFERROR(VLOOKUP(B714,[2]Sheet4!$F$2:$J$364,4,FALSE),\"\")","v":""},{"$f":"IFERROR(VLOOKUP(B714,[2]Sheet4!$F$2:$J$364,5,FALSE),\"\")","v":""}]
[null,null,{"$f":"IFERROR(VLOOKUP(B715,[2]Sheet4!$F$2:$J$364,2,FALSE),\"\")","v":""},{"$f":"IFERROR(VLOOKUP(B715,[2]Sheet4!$F$2:$J$364,3,FALSE),\"\")","v":""},{"$f":"IFERROR(VLOOKUP(B715,[2]Sheet4!$F$2:$J$364,4,FALSE),\"\")","v":""},{"$f":"IFERROR(VLOOKUP(B715,[2]Sheet4!$F$2:$J$364,5,FALSE),\"\")","v":""}]
[null,null,{"$f":"IFERROR(VLOOKUP(B716,[2]Sheet4!$F$2:$J$364,2,FALSE),\"\")","v":""},{"$f":"IFERROR(VLOOKUP(B716,[2]Sheet4!$F$2:$J$364,3,FALSE),\"\")","v":""},{"$f":"IFERROR(VLOOKUP(B716,[2]Sheet4!$F$2:$J$364,4,FALSE),\"\")","v":""},{"$f":"IFERROR(VLOOKUP(B716,[2]Sheet4!$F$2:$J$364,5,FALSE),\"\")","v":""}]
[null,null,{"$f":"IFERROR(VLOOKUP(B717,[2]Sheet4!$F$2:$J$364,2,FALSE),\"\")","v":""},{"$f":"IFERROR(VLOOKUP(B717,[2]Sheet4!$F$2:$J$364,3,FALSE),\"\")","v":""},{"$f":"IFERROR(VLOOKUP(B717,[2]Sheet4!$F$2:$J$364,4,FALSE),\"\")","v":""},{"$f":"IFERROR(VLOOKUP(B717,[2]Sheet4!$F$2:$J$364,5,FALSE),\"\")","v":""}]
[null,null,{"$f":"IFERROR(VLOOKUP(B718,[2]Sheet4!$F$2:$J$364,2,FALSE),\"\")","v":""},{"$f":"IFERROR(VLOOKUP(B718,[2]Sheet4!$F$2:$J$364,3,FALSE),\"\")","v":""},{"$f":"IFERROR(VLOOKUP(B718,[2]Sheet4!$F$2:$J$364,4,FALSE),\"\")","v":""},{"$f":"IFERROR(VLOOKUP(B718,[2]Sheet4!$F$2:$J$364,5,FALSE),\"\")","v":""}]
[null,null,{"$f":"IFERROR(VLOOKUP(B719,[2]Sheet4!$F$2:$J$364,2,FALSE),\"\")","v":""},{"$f":"IFERROR(VLOOKUP(B719,[2]Sheet4!$F$2:$J$364,3,FALSE),\"\")","v":""},{"$f":"IFERROR(VLOOKUP(B719,[2]Sheet4!$F$2:$J$364,4,FALSE),\"\")","v":""},{"$f":"IFERROR(VLOOKUP(B719,[2]Sheet4!$F$2:$J$364,5,FALSE),\"\")","v":""}]
[null,null,{"$f":"IFERROR(VLOOKUP(B720,[2]Sheet4!$F$2:$J$364,2,FALSE),\"\")","v":""},{"$f":"IFERROR(VLOOKUP(B720,[2]Sheet4!$F$2:$J$364,3,FALSE),\"\")","v":""},{"$f":"IFERROR(VLOOKUP(B720,[2]Sheet4!$F$2:$J$364,4,FALSE),\"\")","v":""},{"$f":"IFERROR(VLOOKUP(B720,[2]Sheet4!$F$2:$J$364,5,FALSE),\"\")","v":""}]
[null,null,{"$f":"IFERROR(VLOOKUP(B721,[2]Sheet4!$F$2:$J$364,2,FALSE),\"\")","v":""},{"$f":"IFERROR(VLOOKUP(B721,[2]Sheet4!$F$2:$J$364,3,FALSE),\"\")","v":""},{"$f":"IFERROR(VLOOKUP(B721,[2]Sheet4!$F$2:$J$364,4,FALSE),\"\")","v":""},{"$f":"IFERROR(VLOOKUP(B721,[2]Sheet4!$F$2:$J$364,5,FALSE),\"\")","v":""}]
[null,null,{"$f":"IFERROR(VLOOKUP(B722,[2]Sheet4!$F$2:$J$364,2,FALSE),\"\")","v":""},{"$f":"IFERROR(VLOOKUP(B722,[2]Sheet4!$F$2:$J$364,3,FALSE),\"\")","v":""},{"$f":"IFERROR(VLOOKUP(B722,[2]Sheet4!$F$2:$J$364,4,FALSE),\"\")","v":""},{"$f":"IFERROR(VLOOKUP(B722,[2]Sheet4!$F$2:$J$364,5,FALSE),\"\")","v":""}]
[null,null,{"$f":"IFERROR(VLOOKUP(B723,[2]Sheet4!$F$2:$J$364,2,FALSE),\"\")","v":""},{"$f":"IFERROR(VLOOKUP(B723,[2]Sheet4!$F$2:$J$364,3,FALSE),\"\")","v":""},{"$f":"IFERROR(VLOOKUP(B723,[2]Sheet4!$F$2:$J$364,4,FALSE),\"\")","v":""},{"$f":"IFERROR(VLOOKUP(B723,[2]Sheet4!$F$2:$J$364,5,FALSE),\"\")","v":""}]
[null,null,{"$f":"IFERROR(VLOOKUP(B724,[2]Sheet4!$F$2:$J$364,2,FALSE),\"\")","v":""},{"$f":"IFERROR(VLOOKUP(B724,[2]Sheet4!$F$2:$J$364,3,FALSE),\"\")","v":""},{"$f":"IFERROR(VLOOKUP(B724,[2]Sheet4!$F$2:$J$364,4,FALSE),\"\")","v":""},{"$f":"IFERROR(VLOOKUP(B724,[2]Sheet4!$F$2:$J$364,5,FALSE),\"\")","v":""}]
[null,null,{"$f":"IFERROR(VLOOKUP(B725,[2]Sheet4!$F$2:$J$364,2,FALSE),\"\")","v":""},{"$f":"IFERROR(VLOOKUP(B725,[2]Sheet4!$F$2:$J$364,3,FALSE),\"\")","v":""},{"$f":"IFERROR(VLOOKUP(B725,[2]Sheet4!$F$2:$J$364,4,FALSE),\"\")","v":""},{"$f":"IFERROR(VLOOKUP(B725,[2]Sheet4!$F$2:$J$364,5,FALSE),\"\")","v":""}]
[null,null,{"$f":"IFERROR(VLOOKUP(B726,[2]Sheet4!$F$2:$J$364,2,FALSE),\"\")","v":""},{"$f":"IFERROR(VLOOKUP(B726,[2]Sheet4!$F$2:$J$364,3,FALSE),\"\")","v":""},{"$f":"IFERROR(VLOOKUP(B726,[2]Sheet4!$F$2:$J$364,4,FALSE),\"\")","v":""},{"$f":"IFERROR(VLOOKUP(B726,[2]Sheet4!$F$2:$J$364,5,FALSE),\"\")","v":""}]
[null,null,{"$f":"IFERROR(VLOOKUP(B727,[2]Sheet4!$F$2:$J$364,2,FALSE),\"\")","v":""},{"$f":"IFERROR(VLOOKUP(B727,[2]Sheet4!$F$2:$J$364,3,FALSE),\"\")","v":""},{"$f":"IFERROR(VLOOKUP(B727,[2]Sheet4!$F$2:$J$364,4,FALSE),\"\")","v":""},{"$f":"IFERROR(VLOOKUP(B727,[2]Sheet4!$F$2:$J$364,5,FALSE),\"\")","v":""}]
[null,null,{"$f":"IFERROR(VLOOKUP(B728,[2]Sheet4!$F$2:$J$364,2,FALSE),\"\")","v":""},{"$f":"IFERROR(VLOOKUP(B728,[2]Sheet4!$F$2:$J$364,3,FALSE),\"\")","v":""},{"$f":"IFERROR(VLOOKUP(B728,[2]Sheet4!$F$2:$J$364,4,FALSE),\"\")","v":""},{"$f":"IFERROR(VLOOKUP(B728,[2]Sheet4!$F$2:$J$364,5,FALSE),\"\")","v":""}]
[null,null,{"$f":"IFERROR(VLOOKUP(B729,[2]Sheet4!$F$2:$J$364,2,FALSE),\"\")","v":""},{"$f":"IFERROR(VLOOKUP(B729,[2]Sheet4!$F$2:$J$364,3,FALSE),\"\")","v":""},{"$f":"IFERROR(VLOOKUP(B729,[2]Sheet4!$F$2:$J$364,4,FALSE),\"\")","v":""},{"$f":"IFERROR(VLOOKUP(B729,[2]Sheet4!$F$2:$J$364,5,FALSE),\"\")","v":""}]
[null,null,{"$f":"IFERROR(VLOOKUP(B730,[2]Sheet4!$F$2:$J$364,2,FALSE),\"\")","v":""},{"$f":"IFERROR(VLOOKUP(B730,[2]Sheet4!$F$2:$J$364,3,FALSE),\"\")","v":""},{"$f":"IFERROR(VLOOKUP(B730,[2]Sheet4!$F$2:$J$364,4,FALSE),\"\")","v":""},{"$f":"IFERROR(VLOOKUP(B730,[2]Sheet4!$F$2:$J$364,5,FALSE),\"\")","v":""}]
[null,null,{"$f":"IFERROR(VLOOKUP(B731,[2]Sheet4!$F$2:$J$364,2,FALSE),\"\")","v":""},{"$f":"IFERROR(VLOOKUP(B731,[2]Sheet4!$F$2:$J$364,3,FALSE),\"\")","v":""},{"$f":"IFERROR(VLOOKUP(B731,[2]Sheet4!$F$2:$J$364,4,FALSE),\"\")","v":""},{"$f":"IFERROR(VLOOKUP(B731,[2]Sheet4!$F$2:$J$364,5,FALSE),\"\")","v":""}]
[null,null,{"$f":"IFERROR(VLOOKUP(B732,[2]Sheet4!$F$2:$J$364,2,FALSE),\"\")","v":""},{"$f":"IFERROR(VLOOKUP(B732,[2]Sheet4!$F$2:$J$364,3,FALSE),\"\")","v":""},{"$f":"IFERROR(VLOOKUP(B732,[2]Sheet4!$F$2:$J$364,4,FALSE),\"\")","v":""},{"$f":"IFERROR(VLOOKUP(B732,[2]Sheet4!$F$2:$J$364,5,FALSE),\"\")","v":""}]
[null,null,{"$f":"IFERROR(VLOOKUP(B733,[2]Sheet4!$F$2:$J$364,2,FALSE),\"\")","v":""},{"$f":"IFERROR(VLOOKUP(B733,[2]Sheet4!$F$2:$J$364,3,FALSE),\"\")","v":""},{"$f":"IFERROR(VLOOKUP(B733,[2]Sheet4!$F$2:$J$364,4,FALSE),\"\")","v":""},{"$f":"IFERROR(VLOOKUP(B733,[2]Sheet4!$F$2:$J$364,5,FALSE),\"\")","v":""}]
[null,null,{"$f":"IFERROR(VLOOKUP(B734,[2]Sheet4!$F$2:$J$364,2,FALSE),\"\")","v":""},{"$f":"IFERROR(VLOOKUP(B734,[2]Sheet4!$F$2:$J$364,3,FALSE),\"\")","v":""},{"$f":"IFERROR(VLOOKUP(B734,[2]Sheet4!$F$2:$J$364,4,FALSE),\"\")","v":""},{"$f":"IFERROR(VLOOKUP(B734,[2]Sheet4!$F$2:$J$364,5,FALSE),\"\")","v":""}]
[null,null,{"$f":"IFERROR(VLOOKUP(B735,[2]Sheet4!$F$2:$J$364,2,FALSE),\"\")","v":""},{"$f":"IFERROR(VLOOKUP(B735,[2]Sheet4!$F$2:$J$364,3,FALSE),\"\")","v":""},{"$f":"IFERROR(VLOOKUP(B735,[2]Sheet4!$F$2:$J$364,4,FALSE),\"\")","v":""},{"$f":"IFERROR(VLOOKUP(B735,[2]Sheet4!$F$2:$J$364,5,FALSE),\"\")","v":""}]
[null,null,{"$f":"IFERROR(VLOOKUP(B736,[2]Sheet4!$F$2:$J$364,2,FALSE),\"\")","v":""},{"$f":"IFERROR(VLOOKUP(B736,[2]Sheet4!$F$2:$J$364,3,FALSE),\"\")","v":""},{"$f":"IFERROR(VLOOKUP(B736,[2]Sheet4!$F$2:$J$364,4,FALSE),\"\")","v":""},{"$f":"IFERROR(VLOOKUP(B736,[2]Sheet4!$F$2:$J$364,5,FALSE),\"\")","v":""}]
[null,null,{"$f":"IFERROR(VLOOKUP(B737,[2]Sheet4!$F$2:$J$364,2,FALSE),\"\")","v":""},{"$f":"IFERROR(VLOOKUP(B737,[2]Sheet4!$F$2:$J$364,3,FALSE),\"\")","v":""},{"$f":"IFERROR(VLOOKUP(B737,[2]Sheet4!$F$2:$J$364,4,FALSE),\"\")","v":""},{"$f":"IFERROR(VLOOKUP(B737,[2]Sheet4!$F$2:$J$364,5,FALSE),\"\")","v":""}]
[null,null,{"$f":"IFERROR(VLOOKUP(B738,[2]Sheet4!$F$2:$J$364,2,FALSE),\"\")","v":""},{"$f":"IFERROR(VLOOKUP(B738,[2]Sheet4!$F$2:$J$364,3,FALSE),\"\")","v":""},{"$f":"IFERROR(VLOOKUP(B738,[2]Sheet4!$F$2:$J$364,4,FALSE),\"\")","v":""},{"$f":"IFERROR(VLOOKUP(B738,[2]Sheet4!$F$2:$J$364,5,FALSE),\"\")","v":""}]
[null,null,{"$f":"IFERROR(VLOOKUP(B739,[2]Sheet4!$F$2:$J$364,2,FALSE),\"\")","v":""},{"$f":"IFERROR(VLOOKUP(B739,[2]Sheet4!$F$2:$J$364,3,FALSE),\"\")","v":""},{"$f":"IFERROR(VLOOKUP(B739,[2]Sheet4!$F$2:$J$364,4,FALSE),\"\")","v":""},{"$f":"IFERROR(VLOOKUP(B739,[2]Sheet4!$F$2:$J$364,5,FALSE),\"\")","v":""}]
[null,null,{"$f":"IFERROR(VLOOKUP(B740,[2]Sheet4!$F$2:$J$364,2,FALSE),\"\")","v":""},{"$f":"IFERROR(VLOOKUP(B740,[2]Sheet4!$F$2:$J$364,3,FALSE),\"\")","v":""},{"$f":"IFERROR(VLOOKUP(B740,[2]Sheet4!$F$2:$J$364,4,FALSE),\"\")","v":""},{"$f":"IFERROR(VLOOKUP(B740,[2]Sheet4!$F$2:$J$364,5,FALSE),\"\")","v":""}]
[null,null,{"$f":"IFERROR(VLOOKUP(B741,[2]Sheet4!$F$2:$J$364,2,FALSE),\"\")","v":""},{"$f":"IFERROR(VLOOKUP(B741,[2]Sheet4!$F$2:$J$364,3,FALSE),\"\")","v":""},{"$f":"IFERROR(VLOOKUP(B741,[2]Sheet4!$F$2:$J$364,4,FALSE),\"\")","v":""},{"$f":"IFERROR(VLOOKUP(B741,[2]Sheet4!$F$2:$J$364,5,FALSE),\"\")","v":""}]
[null,null,{"$f":"IFERROR(VLOOKUP(B742,[2]Sheet4!$F$2:$J$364,2,FALSE),\"\")","v":""},{"$f":"IFERROR(VLOOKUP(B742,[2]Sheet4!$F$2:$J$364,3,FALSE),\"\")","v":""},{"$f":"IFERROR(VLOOKUP(B742,[2]Sheet4!$F$2:$J$364,4,FALSE),\"\")","v":""},{"$f":"IFERROR(VLOOKUP(B742,[2]Sheet4!$F$2:$J$364,5,FALSE),\"\")","v":""}]
[null,null,{"$f":"IFERROR(VLOOKUP(B743,[2]Sheet4!$F$2:$J$364,2,FALSE),\"\")","v":""},{"$f":"IFERROR(VLOOKUP(B743,[2]Sheet4!$F$2:$J$364,3,FALSE),\"\")","v":""},{"$f":"IFERROR(VLOOKUP(B743,[2]Sheet4!$F$2:$J$364,4,FALSE),\"\")","v":""},{"$f":"IFERROR(VLOOKUP(B743,[2]Sheet4!$F$2:$J$364,5,FALSE),\"\")","v":""}]
[null,null,{"$f":"IFERROR(VLOOKUP(B744,[2]Sheet4!$F$2:$J$364,2,FALSE),\"\")","v":""},{"$f":"IFERROR(VLOOKUP(B744,[2]Sheet4!$F$2:$J$364,3,FALSE),\"\")","v":""},{"$f":"IFERROR(VLOOKUP(B744,[2]Sheet4!$F$2:$J$364,4,FALSE),\"\")","v":""},{"$f":"IFERROR(VLOOKUP(B744,[2]Sheet4!$F$2:$J$364,5,FALSE),\"\")","v":""}]
[null,null,{"$f":"IFERROR(VLOOKUP(B745,[2]Sheet4!$F$2:$J$364,2,FALSE),\"\")","v":""},{"$f":"IFERROR(VLOOKUP(B745,[2]Sheet4!$F$2:$J$364,3,FALSE),\"\")","v":""},{"$f":"IFERROR(VLOOKUP(B745,[2]Sheet4!$F$2:$J$364,4,FALSE),\"\")","v":""},{"$f":"IFERROR(VLOOKUP(B745,[2]Sheet4!$F$2:$J$364,5,FALSE),\"\")","v":""}]
[null,null,{"$f":"IFERROR(VLOOKUP(B746,[2]Sheet4!$F$2:$J$364,2,FALSE),\"\")","v":""},{"$f":"IFERROR(VLOOKUP(B746,[2]Sheet4!$F$2:$J$364,3,FALSE),\"\")","v":""},{"$f":"IFERROR(VLOOKUP(B746,[2]Sheet4!$F$2:$J$364,4,FALSE),\"\")","v":""},{"$f":"IFERROR(VLOOKUP(B746,[2]Sheet4!$F$2:$J$364,5,FALSE),\"\")","v":""}]
[null,null,{"$f":"IFERROR(VLOOKUP(B747,[2]Sheet4!$F$2:$J$364,2,FALSE),\"\")","v":""},{"$f":"IFERROR(VLOOKUP(B747,[2]Sheet4!$F$2:$J$364,3,FALSE),\"\")","v":""},{"$f":"IFERROR(VLOOKUP(B747,[2]Sheet4!$F$2:$J$364,4,FALSE),\"\")","v":""},{"$f":"IFERROR(VLOOKUP(B747,[2]Sheet4!$F$2:$J$364,5,FALSE),\"\")","v":""}]
[null,null,{"$f":"IFERROR(VLOOKUP(B748,[2]Sheet4!$F$2:$J$364,2,FALSE),\"\")","v":""},{"$f":"IFERROR(VLOOKUP(B748,[2]Sheet4!$F$2:$J$364,3,FALSE),\"\")","v":""},{"$f":"IFERROR(VLOOKUP(B748,[2]Sheet4!$F$2:$J$364,4,FALSE),\"\")","v":""},{"$f":"IFERROR(VLOOKUP(B748,[2]Sheet4!$F$2:$J$364,5,FALSE),\"\")","v":""}]
[null,null,{"$f":"IFERROR(VLOOKUP(B749,[2]Sheet4!$F$2:$J$364,2,FALSE),\"\")","v":""},{"$f":"IFERROR(VLOOKUP(B749,[2]Sheet4!$F$2:$J$364,3,FALSE),\"\")","v":""},{"$f":"IFERROR(VLOOKUP(B749,[2]Sheet4!$F$2:$J$364,4,FALSE),\"\")","v":""},{"$f":"IFERROR(VLOOKUP(B749,[2]Sheet4!$F$2:$J$364,5,FALSE),\"\")","v":""}]
[null,null,{"$f":"IFERROR(VLOOKUP(B750,[2]Sheet4!$F$2:$J$364,2,FALSE),\"\")","v":""},{"$f":"IFERROR(VLOOKUP(B750,[2]Sheet4!$F$2:$J$364,3,FALSE),\"\")","v":""},{"$f":"IFERROR(VLOOKUP(B750,[2]Sheet4!$F$2:$J$364,4,FALSE),\"\")","v":""},{"$f":"IFERROR(VLOOKUP(B750,[2]Sheet4!$F$2:$J$364,5,FALSE),\"\")","v":""}]
[null,null,{"$f":"IFERROR(VLOOKUP(B751,[2]Sheet4!$F$2:$J$364,2,FALSE),\"\")","v":""},{"$f":"IFERROR(VLOOKUP(B751,[2]Sheet4!$F$2:$J$364,3,FALSE),\"\")","v":""},{"$f":"IFERROR(VLOOKUP(B751,[2]Sheet4!$F$2:$J$364,4,FALSE),\"\")","v":""},{"$f":"IFERROR(VLOOKUP(B751,[2]Sheet4!$F$2:$J$364,5,FALSE),\"\")","v":""}]
[null,null,{"$f":"IFERROR(VLOOKUP(B752,[2]Sheet4!$F$2:$J$364,2,FALSE),\"\")","v":""},{"$f":"IFERROR(VLOOKUP(B752,[2]Sheet4!$F$2:$J$364,3,FALSE),\"\")","v":""},{"$f":"IFERROR(VLOOKUP(B752,[2]Sheet4!$F$2:$J$364,4,FALSE),\"\")","v":""},{"$f":"IFERROR(VLOOKUP(B752,[2]Sheet4!$F$2:$J$364,5,FALSE),\"\")","v":""}]
[null,null,{"$f":"IFERROR(VLOOKUP(B753,[2]Sheet4!$F$2:$J$364,2,FALSE),\"\")","v":""},{"$f":"IFERROR(VLOOKUP(B753,[2]Sheet4!$F$2:$J$364,3,FALSE),\"\")","v":""},{"$f":"IFERROR(VLOOKUP(B753,[2]Sheet4!$F$2:$J$364,4,FALSE),\"\")","v":""},{"$f":"IFERROR(VLOOKUP(B753,[2]Sheet4!$F$2:$J$364,5,FALSE),\"\")","v":""}]
[null,null,{"$f":"IFERROR(VLOOKUP(B754,[2]Sheet4!$F$2:$J$364,2,FALSE),\"\")","v":""},{"$f":"IFERROR(VLOOKUP(B754,[2]Sheet4!$F$2:$J$364,3,FALSE),\"\")","v":""},{"$f":"IFERROR(VLOOKUP(B754,[2]Sheet4!$F$2:$J$364,4,FALSE),\"\")","v":""},{"$f":"IFERROR(VLOOKUP(B754,[2]Sheet4!$F$2:$J$364,5,FALSE),\"\")","v":""}]
[null,null,{"$f":"IFERROR(VLOOKUP(B755,[2]Sheet4!$F$2:$J$364,2,FALSE),\"\")","v":""},{"$f":"IFERROR(VLOOKUP(B755,[2]Sheet4!$F$2:$J$364,3,FALSE),\"\")","v":""},{"$f":"IFERROR(VLOOKUP(B755,[2]Sheet4!$F$2:$J$364,4,FALSE),\"\")","v":""},{"$f":"IFERROR(VLOOKUP(B755,[2]Sheet4!$F$2:$J$364,5,FALSE),\"\")","v":""}]
[null,null,{"$f":"IFERROR(VLOOKUP(B756,[2]Sheet4!$F$2:$J$364,2,FALSE),\"\")","v":""},{"$f":"IFERROR(VLOOKUP(B756,[2]Sheet4!$F$2:$J$364,3,FALSE),\"\")","v":""},{"$f":"IFERROR(VLOOKUP(B756,[2]Sheet4!$F$2:$J$364,4,FALSE),\"\")","v":""},{"$f":"IFERROR(VLOOKUP(B756,[2]Sheet4!$F$2:$J$364,5,FALSE),\"\")","v":""}]
[null,null,{"$f":"IFERROR(VLOOKUP(B757,[2]Sheet4!$F$2:$J$364,2,FALSE),\"\")","v":""},{"$f":"IFERROR(VLOOKUP(B757,[2]Sheet4!$F$2:$J$364,3,FALSE),\"\")","v":""},{"$f":"IFERROR(VLOOKUP(B757,[2]Sheet4!$F$2:$J$364,4,FALSE),\"\")","v":""},{"$f":"IFERROR(VLOOKUP(B757,[2]Sheet4!$F$2:$J$364,5,FALSE),\"\")","v":""}]
[null,null,{"$f":"IFERROR(VLOOKUP(B758,[2]Sheet4!$F$2:$J$364,2,FALSE),\"\")","v":""},{"$f":"IFERROR(VLOOKUP(B758,[2]Sheet4!$F$2:$J$364,3,FALSE),\"\")","v":""},{"$f":"IFERROR(VLOOKUP(B758,[2]Sheet4!$F$2:$J$364,4,FALSE),\"\")","v":""},{"$f":"IFERROR(VLOOKUP(B758,[2]Sheet4!$F$2:$J$364,5,FALSE),\"\")","v":""}]
[null,null,{"$f":"IFERROR(VLOOKUP(B759,[2]Sheet4!$F$2:$J$364,2,FALSE),\"\")","v":""},{"$f":"IFERROR(VLOOKUP(B759,[2]Sheet4!$F$2:$J$364,3,FALSE),\"\")","v":""},{"$f":"IFERROR(VLOOKUP(B759,[2]Sheet4!$F$2:$J$364,4,FALSE),\"\")","v":""},{"$f":"IFERROR(VLOOKUP(B759,[2]Sheet4!$F$2:$J$364,5,FALSE),\"\")","v":""}]
[null,null,{"$f":"IFERROR(VLOOKUP(B760,[2]Sheet4!$F$2:$J$364,2,FALSE),\"\")","v":""},{"$f":"IFERROR(VLOOKUP(B760,[2]Sheet4!$F$2:$J$364,3,FALSE),\"\")","v":""},{"$f":"IFERROR(VLOOKUP(B760,[2]Sheet4!$F$2:$J$364,4,FALSE),\"\")","v":""},{"$f":"IFERROR(VLOOKUP(B760,[2]Sheet4!$F$2:$J$364,5,FALSE),\"\")","v":""}]
[null,null,{"$f":"IFERROR(VLOOKUP(B761,[2]Sheet4!$F$2:$J$364,2,FALSE),\"\")","v":""},{"$f":"IFERROR(VLOOKUP(B761,[2]Sheet4!$F$2:$J$364,3,FALSE),\"\")","v":""},{"$f":"IFERROR(VLOOKUP(B761,[2]Sheet4!$F$2:$J$364,4,FALSE),\"\")","v":""},{"$f":"IFERROR(VLOOKUP(B761,[2]Sheet4!$F$2:$J$364,5,FALSE),\"\")","v":""}]
[null,null,{"$f":"IFERROR(VLOOKUP(B762,[2]Sheet4!$F$2:$J$364,2,FALSE),\"\")","v":""},{"$f":"IFERROR(VLOOKUP(B762,[2]Sheet4!$F$2:$J$364,3,FALSE),\"\")","v":""},{"$f":"IFERROR(VLOOKUP(B762,[2]Sheet4!$F$2:$J$364,4,FALSE),\"\")","v":""},{"$f":"IFERROR(VLOOKUP(B762,[2]Sheet4!$F$2:$J$364,5,FALSE),\"\")","v":""}]
[null,null,{"$f":"IFERROR(VLOOKUP(B763,[2]Sheet4!$F$2:$J$364,2,FALSE),\"\")","v":""},{"$f":"IFERROR(VLOOKUP(B763,[2]Sheet4!$F$2:$J$364,3,FALSE),\"\")","v":""},{"$f":"IFERROR(VLOOKUP(B763,[2]Sheet4!$F$2:$J$364,4,FALSE),\"\")","v":""},{"$f":"IFERROR(VLOOKUP(B763,[2]Sheet4!$F$2:$J$364,5,FALSE),\"\")","v":""}]
[null,null,{"$f":"IFERROR(VLOOKUP(B764,[2]Sheet4!$F$2:$J$364,2,FALSE),\"\")","v":""},{"$f":"IFERROR(VLOOKUP(B764,[2]Sheet4!$F$2:$J$364,3,FALSE),\"\")","v":""},{"$f":"IFERROR(VLOOKUP(B764,[2]Sheet4!$F$2:$J$364,4,FALSE),\"\")","v":""},{"$f":"IFERROR(VLOOKUP(B764,[2]Sheet4!$F$2:$J$364,5,FALSE),\"\")","v":""}]
[null,null,{"$f":"IFERROR(VLOOKUP(B765,[2]Sheet4!$F$2:$J$364,2,FALSE),\"\")","v":""},{"$f":"IFERROR(VLOOKUP(B765,[2]Sheet4!$F$2:$J$364,3,FALSE),\"\")","v":""},{"$f":"IFERROR(VLOOKUP(B765,[2]Sheet4!$F$2:$J$364,4,FALSE),\"\")","v":""},{"$f":"IFERROR(VLOOKUP(B765,[2]Sheet4!$F$2:$J$364,5,FALSE),\"\")","v":""}]
[null,null,{"$f":"IFERROR(VLOOKUP(B766,[2]Sheet4!$F$2:$J$364,2,FALSE),\"\")","v":""},{"$f":"IFERROR(VLOOKUP(B766,[2]Sheet4!$F$2:$J$364,3,FALSE),\"\")","v":""},{"$f":"IFERROR(VLOOKUP(B766,[2]Sheet4!$F$2:$J$364,4,FALSE),\"\")","v":""},{"$f":"IFERROR(VLOOKUP(B766,[2]Sheet4!$F$2:$J$364,5,FALSE),\"\")","v":""}]
[null,null,{"$f":"IFERROR(VLOOKUP(B767,[2]Sheet4!$F$2:$J$364,2,FALSE),\"\")","v":""},{"$f":"IFERROR(VLOOKUP(B767,[2]Sheet4!$F$2:$J$364,3,FALSE),\"\")","v":""},{"$f":"IFERROR(VLOOKUP(B767,[2]Sheet4!$F$2:$J$364,4,FALSE),\"\")","v":""},{"$f":"IFERROR(VLOOKUP(B767,[2]Sheet4!$F$2:$J$364,5,FALSE),\"\")","v":""}]
[null,null,{"$f":"IFERROR(VLOOKUP(B768,[2]Sheet4!$F$2:$J$364,2,FALSE),\"\")","v":""},{"$f":"IFERROR(VLOOKUP(B768,[2]Sheet4!$F$2:$J$364,3,FALSE),\"\")","v":""},{"$f":"IFERROR(VLOOKUP(B768,[2]Sheet4!$F$2:$J$364,4,FALSE),\"\")","v":""},{"$f":"IFERROR(VLOOKUP(B768,[2]Sheet4!$F$2:$J$364,5,FALSE),\"\")","v":""}]
[null,null,{"$f":"IFERROR(VLOOKUP(B769,[2]Sheet4!$F$2:$J$364,2,FALSE),\"\")","v":""},{"$f":"IFERROR(VLOOKUP(B769,[2]Sheet4!$F$2:$J$364,3,FALSE),\"\")","v":""},{"$f":"IFERROR(VLOOKUP(B769,[2]Sheet4!$F$2:$J$364,4,FALSE),\"\")","v":""},{"$f":"IFERROR(VLOOKUP(B769,[2]Sheet4!$F$2:$J$364,5,FALSE),\"\")","v":""}]
[null,null,{"$f":"IFERROR(VLOOKUP(B770,[2]Sheet4!$F$2:$J$364,2,FALSE),\"\")","v":""},{"$f":"IFERROR(VLOOKUP(B770,[2]Sheet4!$F$2:$J$364,3,FALSE),\"\")","v":""},{"$f":"IFERROR(VLOOKUP(B770,[2]Sheet4!$F$2:$J$364,4,FALSE),\"\")","v":""},{"$f":"IFERROR(VLOOKUP(B770,[2]Sheet4!$F$2:$J$364,5,FALSE),\"\")","v":""}]
[null,null,{"$f":"IFERROR(VLOOKUP(B771,[2]Sheet4!$F$2:$J$364,2,FALSE),\"\")","v":""},{"$f":"IFERROR(VLOOKUP(B771,[2]Sheet4!$F$2:$J$364,3,FALSE),\"\")","v":""},{"$f":"IFERROR(VLOOKUP(B771,[2]Sheet4!$F$2:$J$364,4,FALSE),\"\")","v":""},{"$f":"IFERROR(VLOOKUP(B771,[2]Sheet4!$F$2:$J$364,5,FALSE),\"\")","v":""}]
[null,null,{"$f":"IFERROR(VLOOKUP(B772,[2]Sheet4!$F$2:$J$364,2,FALSE),\"\")","v":""},{"$f":"IFERROR(VLOOKUP(B772,[2]Sheet4!$F$2:$J$364,3,FALSE),\"\")","v":""},{"$f":"IFERROR(VLOOKUP(B772,[2]Sheet4!$F$2:$J$364,4,FALSE),\"\")","v":""},{"$f":"IFERROR(VLOOKUP(B772,[2]Sheet4!$F$2:$J$364,5,FALSE),\"\")","v":""}]
[null,null,{"$f":"IFERROR(VLOOKUP(B773,[2]Sheet4!$F$2:$J$364,2,FALSE),\"\")","v":""},{"$f":"IFERROR(VLOOKUP(B773,[2]Sheet4!$F$2:$J$364,3,FALSE),\"\")","v":""},{"$f":"IFERROR(VLOOKUP(B773,[2]Sheet4!$F$2:$J$364,4,FALSE),\"\")","v":""},{"$f":"IFERROR(VLOOKUP(B773,[2]Sheet4!$F$2:$J$364,5,FALSE),\"\")","v":""}]
[null,null,{"$f":"IFERROR(VLOOKUP(B774,[2]Sheet4!$F$2:$J$364,2,FALSE),\"\")","v":""},{"$f":"IFERROR(VLOOKUP(B774,[2]Sheet4!$F$2:$J$364,3,FALSE),\"\")","v":""},{"$f":"IFERROR(VLOOKUP(B774,[2]Sheet4!$F$2:$J$364,4,FALSE),\"\")","v":""},{"$f":"IFERROR(VLOOKUP(B774,[2]Sheet4!$F$2:$J$364,5,FALSE),\"\")","v":""}]
[null,null,{"$f":"IFERROR(VLOOKUP(B775,[2]Sheet4!$F$2:$J$364,2,FALSE),\"\")","v":""},{"$f":"IFERROR(VLOOKUP(B775,[2]Sheet4!$F$2:$J$364,3,FALSE),\"\")","v":""},{"$f":"IFERROR(VLOOKUP(B775,[2]Sheet4!$F$2:$J$364,4,FALSE),\"\")","v":""},{"$f":"IFERROR(VLOOKUP(B775,[2]Sheet4!$F$2:$J$364,5,FALSE),\"\")","v":""}]
[null,null,{"$f":"IFERROR(VLOOKUP(B776,[2]Sheet4!$F$2:$J$364,2,FALSE),\"\")","v":""},{"$f":"IFERROR(VLOOKUP(B776,[2]Sheet4!$F$2:$J$364,3,FALSE),\"\")","v":""},{"$f":"IFERROR(VLOOKUP(B776,[2]Sheet4!$F$2:$J$364,4,FALSE),\"\")","v":""},{"$f":"IFERROR(VLOOKUP(B776,[2]Sheet4!$F$2:$J$364,5,FALSE),\"\")","v":""}]
[null,null,{"$f":"IFERROR(VLOOKUP(B777,[2]Sheet4!$F$2:$J$364,2,FALSE),\"\")","v":""},{"$f":"IFERROR(VLOOKUP(B777,[2]Sheet4!$F$2:$J$364,3,FALSE),\"\")","v":""},{"$f":"IFERROR(VLOOKUP(B777,[2]Sheet4!$F$2:$J$364,4,FALSE),\"\")","v":""},{"$f":"IFERROR(VLOOKUP(B777,[2]Sheet4!$F$2:$J$364,5,FALSE),\"\")","v":""}]
[null,null,{"$f":"IFERROR(VLOOKUP(B778,[2]Sheet4!$F$2:$J$364,2,FALSE),\"\")","v":""},{"$f":"IFERROR(VLOOKUP(B778,[2]Sheet4!$F$2:$J$364,3,FALSE),\"\")","v":""},{"$f":"IFERROR(VLOOKUP(B778,[2]Sheet4!$F$2:$J$364,4,FALSE),\"\")","v":""},{"$f":"IFERROR(VLOOKUP(B778,[2]Sheet4!$F$2:$J$364,5,FALSE),\"\")","v":""}]
[null,null,{"$f":"IFERROR(VLOOKUP(B779,[2]Sheet4!$F$2:$J$364,2,FALSE),\"\")","v":""},{"$f":"IFERROR(VLOOKUP(B779,[2]Sheet4!$F$2:$J$364,3,FALSE),\"\")","v":""},{"$f":"IFERROR(VLOOKUP(B779,[2]Sheet4!$F$2:$J$364,4,FALSE),\"\")","v":""},{"$f":"IFERROR(VLOOKUP(B779,[2]Sheet4!$F$2:$J$364,5,FALSE),\"\")","v":""}]
[null,null,{"$f":"IFERROR(VLOOKUP(B780,[2]Sheet4!$F$2:$J$364,2,FALSE),\"\")","v":""},{"$f":"IFERROR(VLOOKUP(B780,[2]Sheet4!$F$2:$J$364,3,FALSE),\"\")","v":""},{"$f":"IFERROR(VLOOKUP(B780,[2]Sheet4!$F$2:$J$364,4,FALSE),\"\")","v":""},{"$f":"IFERROR(VLOOKUP(B780,[2]Sheet4!$F$2:$J$364,5,FALSE),\"\")","v":""}]
[null,null,{"$f":"IFERROR(VLOOKUP(B781,[2]Sheet4!$F$2:$J$364,2,FALSE),\"\")","v":""},{"$f":"IFERROR(VLOOKUP(B781,[2]Sheet4!$F$2:$J$364,3,FALSE),\"\")","v":""},{"$f":"IFERROR(VLOOKUP(B781,[2]Sheet4!$F$2:$J$364,4,FALSE),\"\")","v":""},{"$f":"IFERROR(VLOOKUP(B781,[2]Sheet4!$F$2:$J$364,5,FALSE),\"\")","v":""}]
[null,null,{"$f":"IFERROR(VLOOKUP(B782,[2]Sheet4!$F$2:$J$364,2,FALSE),\"\")","v":""},{"$f":"IFERROR(VLOOKUP(B782,[2]Sheet4!$F$2:$J$364,3,FALSE),\"\")","v":""},{"$f":"IFERROR(VLOOKUP(B782,[2]Sheet4!$F$2:$J$364,4,FALSE),\"\")","v":""},{"$f":"IFERROR(VLOOKUP(B782,[2]Sheet4!$F$2:$J$364,5,FALSE),\"\")","v":""}]
[null,null,{"$f":"IFERROR(VLOOKUP(B783,[2]Sheet4!$F$2:$J$364,2,FALSE),\"\")","v":""},{"$f":"IFERROR(VLOOKUP(B783,[2]Sheet4!$F$2:$J$364,3,FALSE),\"\")","v":""},{"$f":"IFERROR(VLOOKUP(B783,[2]Sheet4!$F$2:$J$364,4,FALSE),\"\")","v":""},{"$f":"IFERROR(VLOOKUP(B783,[2]Sheet4!$F$2:$J$364,5,FALSE),\"\")","v":""}]
[null,null,{"$f":"IFERROR(VLOOKUP(B784,[2]Sheet4!$F$2:$J$364,2,FALSE),\"\")","v":""},{"$f":"IFERROR(VLOOKUP(B784,[2]Sheet4!$F$2:$J$364,3,FALSE),\"\")","v":""},{"$f":"IFERROR(VLOOKUP(B784,[2]Sheet4!$F$2:$J$364,4,FALSE),\"\")","v":""},{"$f":"IFERROR(VLOOKUP(B784,[2]Sheet4!$F$2:$J$364,5,FALSE),\"\")","v":""}]
[null,null,{"$f":"IFERROR(VLOOKUP(B785,[2]Sheet4!$F$2:$J$364,2,FALSE),\"\")","v":""},{"$f":"IFERROR(VLOOKUP(B785,[2]Sheet4!$F$2:$J$364,3,FALSE),\"\")","v":""},{"$f":"IFERROR(VLOOKUP(B785,[2]Sheet4!$F$2:$J$364,4,FALSE),\"\")","v":""},{"$f":"IFERROR(VLOOKUP(B785,[2]Sheet4!$F$2:$J$364,5,FALSE),\"\")","v":""}]
[null,null,{"$f":"IFERROR(VLOOKUP(B786,[2]Sheet4!$F$2:$J$364,2,FALSE),\"\")","v":""},{"$f":"IFERROR(VLOOKUP(B786,[2]Sheet4!$F$2:$J$364,3,FALSE),\"\")","v":""},{"$f":"IFERROR(VLOOKUP(B786,[2]Sheet4!$F$2:$J$364,4,FALSE),\"\")","v":""},{"$f":"IFERROR(VLOOKUP(B786,[2]Sheet4!$F$2:$J$364,5,FALSE),\"\")","v":""}]
[null,null,{"$f":"IFERROR(VLOOKUP(B787,[2]Sheet4!$F$2:$J$364,2,FALSE),\"\")","v":""},{"$f":"IFERROR(VLOOKUP(B787,[2]Sheet4!$F$2:$J$364,3,FALSE),\"\")","v":""},{"$f":"IFERROR(VLOOKUP(B787,[2]Sheet4!$F$2:$J$364,4,FALSE),\"\")","v":""},{"$f":"IFERROR(VLOOKUP(B787,[2]Sheet4!$F$2:$J$364,5,FALSE),\"\")","v":""}]
[null,null,{"$f":"IFERROR(VLOOKUP(B788,[2]Sheet4!$F$2:$J$364,2,FALSE),\"\")","v":""},{"$f":"IFERROR(VLOOKUP(B788,[2]Sheet4!$F$2:$J$364,3,FALSE),\"\")","v":""},{"$f":"IFERROR(VLOOKUP(B788,[2]Sheet4!$F$2:$J$364,4,FALSE),\"\")","v":""},{"$f":"IFERROR(VLOOKUP(B788,[2]Sheet4!$F$2:$J$364,5,FALSE),\"\")","v":""}]
[null,null,{"$f":"IFERROR(VLOOKUP(B789,[2]Sheet4!$F$2:$J$364,2,FALSE),\"\")","v":""},{"$f":"IFERROR(VLOOKUP(B789,[2]Sheet4!$F$2:$J$364,3,FALSE),\"\")","v":""},{"$f":"IFERROR(VLOOKUP(B789,[2]Sheet4!$F$2:$J$364,4,FALSE),\"\")","v":""},{"$f":"IFERROR(VLOOKUP(B789,[2]Sheet4!$F$2:$J$364,5,FALSE),\"\")","v":""}]
[null,null,{"$f":"IFERROR(VLOOKUP(B790,[2]Sheet4!$F$2:$J$364,2,FALSE),\"\")","v":""},{"$f":"IFERROR(VLOOKUP(B790,[2]Sheet4!$F$2:$J$364,3,FALSE),\"\")","v":""},{"$f":"IFERROR(VLOOKUP(B790,[2]Sheet4!$F$2:$J$364,4,FALSE),\"\")","v":""},{"$f":"IFERROR(VLOOKUP(B790,[2]Sheet4!$F$2:$J$364,5,FALSE),\"\")","v":""}]
[null,null,{"$f":"IFERROR(VLOOKUP(B791,[2]Sheet4!$F$2:$J$364,2,FALSE),\"\")","v":""},{"$f":"IFERROR(VLOOKUP(B791,[2]Sheet4!$F$2:$J$364,3,FALSE),\"\")","v":""},{"$f":"IFERROR(VLOOKUP(B791,[2]Sheet4!$F$2:$J$364,4,FALSE),\"\")","v":""},{"$f":"IFERROR(VLOOKUP(B791,[2]Sheet4!$F$2:$J$364,5,FALSE),\"\")","v":""}]
[null,null,{"$f":"IFERROR(VLOOKUP(B792,[2]Sheet4!$F$2:$J$364,2,FALSE),\"\")","v":""},{"$f":"IFERROR(VLOOKUP(B792,[2]Sheet4!$F$2:$J$364,3,FALSE),\"\")","v":""},{"$f":"IFERROR(VLOOKUP(B792,[2]Sheet4!$F$2:$J$364,4,FALSE),\"\")","v":""},{"$f":"IFERROR(VLOOKUP(B792,[2]Sheet4!$F$2:$J$364,5,FALSE),\"\")","v":""}]
[null,null,{"$f":"IFERROR(VLOOKUP(B793,[2]Sheet4!$F$2:$J$364,2,FALSE),\"\")","v":""},{"$f":"IFERROR(VLOOKUP(B793,[2]Sheet4!$F$2:$J$364,3,FALSE),\"\")","v":""},{"$f":"IFERROR(VLOOKUP(B793,[2]Sheet4!$F$2:$J$364,4,FALSE),\"\")","v":""},{"$f":"IFERROR(VLOOKUP(B793,[2]Sheet4!$F$2:$J$364,5,FALSE),\"\")","v":""}]
[null,null,{"$f":"IFERROR(VLOOKUP(B794,[2]Sheet4!$F$2:$J$364,2,FALSE),\"\")","v":""},{"$f":"IFERROR(VLOOKUP(B794,[2]Sheet4!$F$2:$J$364,3,FALSE),\"\")","v":""},{"$f":"IFERROR(VLOOKUP(B794,[2]Sheet4!$F$2:$J$364,4,FALSE),\"\")","v":""},{"$f":"IFERROR(VLOOKUP(B794,[2]Sheet4!$F$2:$J$364,5,FALSE),\"\")","v":""}]
[null,null,{"$f":"IFERROR(VLOOKUP(B795,[2]Sheet4!$F$2:$J$364,2,FALSE),\"\")","v":""},{"$f":"IFERROR(VLOOKUP(B795,[2]Sheet4!$F$2:$J$364,3,FALSE),\"\")","v":""},{"$f":"IFERROR(VLOOKUP(B795,[2]Sheet4!$F$2:$J$364,4,FALSE),\"\")","v":""},{"$f":"IFERROR(VLOOKUP(B795,[2]Sheet4!$F$2:$J$364,5,FALSE),\"\")","v":""}]
[null,null,{"$f":"IFERROR(VLOOKUP(B796,[2]Sheet4!$F$2:$J$364,2,FALSE),\"\")","v":""},{"$f":"IFERROR(VLOOKUP(B796,[2]Sheet4!$F$2:$J$364,3,FALSE),\"\")","v":""},{"$f":"IFERROR(VLOOKUP(B796,[2]Sheet4!$F$2:$J$364,4,FALSE),\"\")","v":""},{"$f":"IFERROR(VLOOKUP(B796,[2]Sheet4!$F$2:$J$364,5,FALSE),\"\")","v":""}]
[null,null,{"$f":"IFERROR(VLOOKUP(B797,[2]Sheet4!$F$2:$J$364,2,FALSE),\"\")","v":""},{"$f":"IFERROR(VLOOKUP(B797,[2]Sheet4!$F$2:$J$364,3,FALSE),\"\")","v":""},{"$f":"IFERROR(VLOOKUP(B797,[2]Sheet4!$F$2:$J$364,4,FALSE),\"\")","v":""},{"$f":"IFERROR(VLOOKUP(B797,[2]Sheet4!$F$2:$J$364,5,FALSE),\"\")","v":""}]
[null,null,{"$f":"IFERROR(VLOOKUP(B798,[2]Sheet4!$F$2:$J$364,2,FALSE),\"\")","v":""},{"$f":"IFERROR(VLOOKUP(B798,[2]Sheet4!$F$2:$J$364,3,FALSE),\"\")","v":""},{"$f":"IFERROR(VLOOKUP(B798,[2]Sheet4!$F$2:$J$364,4,FALSE),\"\")","v":""},{"$f":"IFERROR(VLOOKUP(B798,[2]Sheet4!$F$2:$J$364,5,FALSE),\"\")","v":""}]
[null,null,{"$f":"IFERROR(VLOOKUP(B799,[2]Sheet4!$F$2:$J$364,2,FALSE),\"\")","v":""},{"$f":"IFERROR(VLOOKUP(B799,[2]Sheet4!$F$2:$J$364,3,FALSE),\"\")","v":""},{"$f":"IFERROR(VLOOKUP(B799,[2]Sheet4!$F$2:$J$364,4,FALSE),\"\")","v":""},{"$f":"IFERROR(VLOOKUP(B799,[2]Sheet4!$F$2:$J$364,5,FALSE),\"\")","v":""}]
[null,null,{"$f":"IFERROR(VLOOKUP(B800,[2]Sheet4!$F$2:$J$364,2,FALSE),\"\")","v":""},{"$f":"IFERROR(VLOOKUP(B800,[2]Sheet4!$F$2:$J$364,3,FALSE),\"\")","v":""},{"$f":"IFERROR(VLOOKUP(B800,[2]Sheet4!$F$2:$J$364,4,FALSE),\"\")","v":""},{"$f":"IFERROR(VLOOKUP(B800,[2]Sheet4!$F$2:$J$364,5,FALSE),\"\")","v":""}]
[null,null,{"$f":"IFERROR(VLOOKUP(B801,[2]Sheet4!$F$2:$J$364,2,FALSE),\"\")","v":""},{"$f":"IFERROR(VLOOKUP(B801,[2]Sheet4!$F$2:$J$364,3,FALSE),\"\")","v":""},{"$f":"IFERROR(VLOOKUP(B801,[2]Sheet4!$F$2:$J$364,4,FALSE),\"\")","v":""},{"$f":"IFERROR(VLOOKUP(B801,[2]Sheet4!$F$2:$J$364,5,FALSE),\"\")","v":""}]
[null,null,{"$f":"IFERROR(VLOOKUP(B802,[2]Sheet4!$F$2:$J$364,2,FALSE),\"\")","v":""},{"$f":"IFERROR(VLOOKUP(B802,[2]Sheet4!$F$2:$J$364,3,FALSE),\"\")","v":""},{"$f":"IFERROR(VLOOKUP(B802,[2]Sheet4!$F$2:$J$364,4,FALSE),\"\")","v":""},{"$f":"IFERROR(VLOOKUP(B802,[2]Sheet4!$F$2:$J$364,5,FALSE),\"\")","v":""}]
[null,null,{"$f":"IFERROR(VLOOKUP(B803,[2]Sheet4!$F$2:$J$364,2,FALSE),\"\")","v":""},{"$f":"IFERROR(VLOOKUP(B803,[2]Sheet4!$F$2:$J$364,3,FALSE),\"\")","v":""},{"$f":"IFERROR(VLOOKUP(B803,[2]Sheet4!$F$2:$J$364,4,FALSE),\"\")","v":""},{"$f":"IFERROR(VLOOKUP(B803,[2]Sheet4!$F$2:$J$364,5,FALSE),\"\")","v":""}]
[null,null,{"$f":"IFERROR(VLOOKUP(B804,[2]Sheet4!$F$2:$J$364,2,FALSE),\"\")","v":""},{"$f":"IFERROR(VLOOKUP(B804,[2]Sheet4!$F$2:$J$364,3,FALSE),\"\")","v":""},{"$f":"IFERROR(VLOOKUP(B804,[2]Sheet4!$F$2:$J$364,4,FALSE),\"\")","v":""},{"$f":"IFERROR(VLOOKUP(B804,[2]Sheet4!$F$2:$J$364,5,FALSE),\"\")","v":""}]
[null,null,{"$f":"IFERROR(VLOOKUP(B805,[2]Sheet4!$F$2:$J$364,2,FALSE),\"\")","v":""},{"$f":"IFERROR(VLOOKUP(B805,[2]Sheet4!$F$2:$J$364,3,FALSE),\"\")","v":""},{"$f":"IFERROR(VLOOKUP(B805,[2]Sheet4!$F$2:$J$364,4,FALSE),\"\")","v":""},{"$f":"IFERROR(VLOOKUP(B805,[2]Sheet4!$F$2:$J$364,5,FALSE),\"\")","v":""}]
[null,null,{"$f":"IFERROR(VLOOKUP(B806,[2]Sheet4!$F$2:$J$364,2,FALSE),\"\")","v":""},{"$f":"IFERROR(VLOOKUP(B806,[2]Sheet4!$F$2:$J$364,3,FALSE),\"\")","v":""},{"$f":"IFERROR(VLOOKUP(B806,[2]Sheet4!$F$2:$J$364,4,FALSE),\"\")","v":""},{"$f":"IFERROR(VLOOKUP(B806,[2]Sheet4!$F$2:$J$364,5,FALSE),\"\")","v":""}]
[null,null,{"$f":"IFERROR(VLOOKUP(B807,[2]Sheet4!$F$2:$J$364,2,FALSE),\"\")","v":""},{"$f":"IFERROR(VLOOKUP(B807,[2]Sheet4!$F$2:$J$364,3,FALSE),\"\")","v":""},{"$f":"IFERROR(VLOOKUP(B807,[2]Sheet4!$F$2:$J$364,4,FALSE),\"\")","v":""},{"$f":"IFERROR(VLOOKUP(B807,[2]Sheet4!$F$2:$J$364,5,FALSE),\"\")","v":""}]
[null,null,{"$f":"IFERROR(VLOOKUP(B808,[2]Sheet4!$F$2:$J$364,2,FALSE),\"\")","v":""},{"$f":"IFERROR(VLOOKUP(B808,[2]Sheet4!$F$2:$J$364,3,FALSE),\"\")","v":""},{"$f":"IFERROR(VLOOKUP(B808,[2]Sheet4!$F$2:$J$364,4,FALSE),\"\")","v":""},{"$f":"IFERROR(VLOOKUP(B808,[2]Sheet4!$F$2:$J$364,5,FALSE),\"\")","v":""}]
[null,null,{"$f":"IFERROR(VLOOKUP(B809,[2]Sheet4!$F$2:$J$364,2,FALSE),\"\")","v":""},{"$f":"IFERROR(VLOOKUP(B809,[2]Sheet4!$F$2:$J$364,3,FALSE),\"\")","v":""},{"$f":"IFERROR(VLOOKUP(B809,[2]Sheet4!$F$2:$J$364,4,FALSE),\"\")","v":""},{"$f":"IFERROR(VLOOKUP(B809,[2]Sheet4!$F$2:$J$364,5,FALSE),\"\")","v":""}]
[null,null,{"$f":"IFERROR(VLOOKUP(B810,[2]Sheet4!$F$2:$J$364,2,FALSE),\"\")","v":""},{"$f":"IFERROR(VLOOKUP(B810,[2]Sheet4!$F$2:$J$364,3,FALSE),\"\")","v":""},{"$f":"IFERROR(VLOOKUP(B810,[2]Sheet4!$F$2:$J$364,4,FALSE),\"\")","v":""},{"$f":"IFERROR(VLOOKUP(B810,[2]Sheet4!$F$2:$J$364,5,FALSE),\"\")","v":""}]
[null,null,{"$f":"IFERROR(VLOOKUP(B811,[2]Sheet4!$F$2:$J$364,2,FALSE),\"\")","v":""},{"$f":"IFERROR(VLOOKUP(B811,[2]Sheet4!$F$2:$J$364,3,FALSE),\"\")","v":""},{"$f":"IFERROR(VLOOKUP(B811,[2]Sheet4!$F$2:$J$364,4,FALSE),\"\")","v":""},{"$f":"IFERROR(VLOOKUP(B811,[2]Sheet4!$F$2:$J$364,5,FALSE),\"\")","v":""}]
[null,null,{"$f":"IFERROR(VLOOKUP(B812,[2]Sheet4!$F$2:$J$364,2,FALSE),\"\")","v":""},{"$f":"IFERROR(VLOOKUP(B812,[2]Sheet4!$F$2:$J$364,3,FALSE),\"\")","v":""},{"$f":"IFERROR(VLOOKUP(B812,[2]Sheet4!$F$2:$J$364,4,FALSE),\"\")","v":""},{"$f":"IFERROR(VLOOKUP(B812,[2]Sheet4!$F$2:$J$364,5,FALSE),\"\")","v":""}]
[null,null,{"$f":"IFERROR(VLOOKUP(B813,[2]Sheet4!$F$2:$J$364,2,FALSE),\"\")","v":""},{"$f":"IFERROR(VLOOKUP(B813,[2]Sheet4!$F$2:$J$364,3,FALSE),\"\")","v":""},{"$f":"IFERROR(VLOOKUP(B813,[2]Sheet4!$F$2:$J$364,4,FALSE),\"\")","v":""},{"$f":"IFERROR(VLOOKUP(B813,[2]Sheet4!$F$2:$J$364,5,FALSE),\"\")","v":""}]
[null,null,{"$f":"IFERROR(VLOOKUP(B814,[2]Sheet4!$F$2:$J$364,2,FALSE),\"\")","v":""},{"$f":"IFERROR(VLOOKUP(B814,[2]Sheet4!$F$2:$J$364,3,FALSE),\"\")","v":""},{"$f":"IFERROR(VLOOKUP(B814,[2]Sheet4!$F$2:$J$364,4,FALSE),\"\")","v":""},{"$f":"IFERROR(VLOOKUP(B814,[2]Sheet4!$F$2:$J$364,5,FALSE),\"\")","v":""}]
[null,null,{"$f":"IFERROR(VLOOKUP(B815,[2]Sheet4!$F$2:$J$364,2,FALSE),\"\")","v":""},{"$f":"IFERROR(VLOOKUP(B815,[2]Sheet4!$F$2:$J$364,3,FALSE),\"\")","v":""},{"$f":"IFERROR(VLOOKUP(B815,[2]Sheet4!$F$2:$J$364,4,FALSE),\"\")","v":""},{"$f":"IFERROR(VLOOKUP(B815,[2]Sheet4!$F$2:$J$364,5,FALSE),\"\")","v":""}]
[null,null,{"$f":"IFERROR(VLOOKUP(B816,[2]Sheet4!$F$2:$J$364,2,FALSE),\"\")","v":""},{"$f":"IFERROR(VLOOKUP(B816,[2]Sheet4!$F$2:$J$364,3,FALSE),\"\")","v":""},{"$f":"IFERROR(VLOOKUP(B816,[2]Sheet4!$F$2:$J$364,4,FALSE),\"\")","v":""},{"$f":"IFERROR(VLOOKUP(B816,[2]Sheet4!$F$2:$J$364,5,FALSE),\"\")","v":""}]
[null,null,{"$f":"IFERROR(VLOOKUP(B817,[2]Sheet4!$F$2:$J$364,2,FALSE),\"\")","v":""},{"$f":"IFERROR(VLOOKUP(B817,[2]Sheet4!$F$2:$J$364,3,FALSE),\"\")","v":""},{"$f":"IFERROR(VLOOKUP(B817,[2]Sheet4!$F$2:$J$364,4,FALSE),\"\")","v":""},{"$f":"IFERROR(VLOOKUP(B817,[2]Sheet4!$F$2:$J$364,5,FALSE),\"\")","v":""}]
[null,null,{"$f":"IFERROR(VLOOKUP(B818,[2]Sheet4!$F$2:$J$364,2,FALSE),\"\")","v":""},{"$f":"IFERROR(VLOOKUP(B818,[2]Sheet4!$F$2:$J$364,3,FALSE),\"\")","v":""},{"$f":"IFERROR(VLOOKUP(B818,[2]Sheet4!$F$2:$J$364,4,FALSE),\"\")","v":""},{"$f":"IFERROR(VLOOKUP(B818,[2]Sheet4!$F$2:$J$364,5,FALSE),\"\")","v":""}]
[null,null,{"$f":"IFERROR(VLOOKUP(B819,[2]Sheet4!$F$2:$J$364,2,FALSE),\"\")","v":""},{"$f":"IFERROR(VLOOKUP(B819,[2]Sheet4!$F$2:$J$364,3,FALSE),\"\")","v":""},{"$f":"IFERROR(VLOOKUP(B819,[2]Sheet4!$F$2:$J$364,4,FALSE),\"\")","v":""},{"$f":"IFERROR(VLOOKUP(B819,[2]Sheet4!$F$2:$J$364,5,FALSE),\"\")","v":""}]
[null,null,{"$f":"IFERROR(VLOOKUP(B820,[2]Sheet4!$F$2:$J$364,2,FALSE),\"\")","v":""},{"$f":"IFERROR(VLOOKUP(B820,[2]Sheet4!$F$2:$J$364,3,FALSE),\"\")","v":""},{"$f":"IFERROR(VLOOKUP(B820,[2]Sheet4!$F$2:$J$364,4,FALSE),\"\")","v":""},{"$f":"IFERROR(VLOOKUP(B820,[2]Sheet4!$F$2:$J$364,5,FALSE),\"\")","v":""}]
[null,null,{"$f":"IFERROR(VLOOKUP(B821,[2]Sheet4!$F$2:$J$364,2,FALSE),\"\")","v":""},{"$f":"IFERROR(VLOOKUP(B821,[2]Sheet4!$F$2:$J$364,3,FALSE),\"\")","v":""},{"$f":"IFERROR(VLOOKUP(B821,[2]Sheet4!$F$2:$J$364,4,FALSE),\"\")","v":""},{"$f":"IFERROR(VLOOKUP(B821,[2]Sheet4!$F$2:$J$364,5,FALSE),\"\")","v":""}]
[null,null,{"$f":"IFERROR(VLOOKUP(B822,[2]Sheet4!$F$2:$J$364,2,FALSE),\"\")","v":""},{"$f":"IFERROR(VLOOKUP(B822,[2]Sheet4!$F$2:$J$364,3,FALSE),\"\")","v":""},{"$f":"IFERROR(VLOOKUP(B822,[2]Sheet4!$F$2:$J$364,4,FALSE),\"\")","v":""},{"$f":"IFERROR(VLOOKUP(B822,[2]Sheet4!$F$2:$J$364,5,FALSE),\"\")","v":""}]
[null,null,{"$f":"IFERROR(VLOOKUP(B823,[2]Sheet4!$F$2:$J$364,2,FALSE),\"\")","v":""},{"$f":"IFERROR(VLOOKUP(B823,[2]Sheet4!$F$2:$J$364,3,FALSE),\"\")","v":""},{"$f":"IFERROR(VLOOKUP(B823,[2]Sheet4!$F$2:$J$364,4,FALSE),\"\")","v":""},{"$f":"IFERROR(VLOOKUP(B823,[2]Sheet4!$F$2:$J$364,5,FALSE),\"\")","v":""}]
[null,null,{"$f":"IFERROR(VLOOKUP(B824,[2]Sheet4!$F$2:$J$364,2,FALSE),\"\")","v":""},{"$f":"IFERROR(VLOOKUP(B824,[2]Sheet4!$F$2:$J$364,3,FALSE),\"\")","v":""},{"$f":"IFERROR(VLOOKUP(B824,[2]Sheet4!$F$2:$J$364,4,FALSE),\"\")","v":""},{"$f":"IFERROR(VLOOKUP(B824,[2]Sheet4!$F$2:$J$364,5,FALSE),\"\")","v":""}]
[null,null,{"$f":"IFERROR(VLOOKUP(B825,[2]Sheet4!$F$2:$J$364,2,FALSE),\"\")","v":""},{"$f":"IFERROR(VLOOKUP(B825,[2]Sheet4!$F$2:$J$364,3,FALSE),\"\")","v":""},{"$f":"IFERROR(VLOOKUP(B825,[2]Sheet4!$F$2:$J$364,4,FALSE),\"\")","v":""},{"$f":"IFERROR(VLOOKUP(B825,[2]Sheet4!$F$2:$J$364,5,FALSE),\"\")","v":""}]
[null,null,{"$f":"IFERROR(VLOOKUP(B826,[2]Sheet4!$F$2:$J$364,2,FALSE),\"\")","v":""},{"$f":"IFERROR(VLOOKUP(B826,[2]Sheet4!$F$2:$J$364,3,FALSE),\"\")","v":""},{"$f":"IFERROR(VLOOKUP(B826,[2]Sheet4!$F$2:$J$364,4,FALSE),\"\")","v":""},{"$f":"IFERROR(VLOOKUP(B826,[2]Sheet4!$F$2:$J$364,5,FALSE),\"\")","v":""}]
[null,null,{"$f":"IFERROR(VLOOKUP(B827,[2]Sheet4!$F$2:$J$364,2,FALSE),\"\")","v":""},{"$f":"IFERROR(VLOOKUP(B827,[2]Sheet4!$F$2:$J$364,3,FALSE),\"\")","v":""},{"$f":"IFERROR(VLOOKUP(B827,[2]Sheet4!$F$2:$J$364,4,FALSE),\"\")","v":""},{"$f":"IFERROR(VLOOKUP(B827,[2]Sheet4!$F$2:$J$364,5,FALSE),\"\")","v":""}]
[null,null,{"$f":"IFERROR(VLOOKUP(B828,[2]Sheet4!$F$2:$J$364,2,FALSE),\"\")","v":""},{"$f":"IFERROR(VLOOKUP(B828,[2]Sheet4!$F$2:$J$364,3,FALSE),\"\")","v":""},{"$f":"IFERROR(VLOOKUP(B828,[2]Sheet4!$F$2:$J$364,4,FALSE),\"\")","v":""},{"$f":"IFERROR(VLOOKUP(B828,[2]Sheet4!$F$2:$J$364,5,FALSE),\"\")","v":""}]
[null,null,{"$f":"IFERROR(VLOOKUP(B829,[2]Sheet4!$F$2:$J$364,2,FALSE),\"\")","v":""},{"$f":"IFERROR(VLOOKUP(B829,[2]Sheet4!$F$2:$J$364,3,FALSE),\"\")","v":""},{"$f":"IFERROR(VLOOKUP(B829,[2]Sheet4!$F$2:$J$364,4,FALSE),\"\")","v":""},{"$f":"IFERROR(VLOOKUP(B829,[2]Sheet4!$F$2:$J$364,5,FALSE),\"\")","v":""}]
[null,null,{"$f":"IFERROR(VLOOKUP(B830,[2]Sheet4!$F$2:$J$364,2,FALSE),\"\")","v":""},{"$f":"IFERROR(VLOOKUP(B830,[2]Sheet4!$F$2:$J$364,3,FALSE),\"\")","v":""},{"$f":"IFERROR(VLOOKUP(B830,[2]Sheet4!$F$2:$J$364,4,FALSE),\"\")","v":""},{"$f":"IFERROR(VLOOKUP(B830,[2]Sheet4!$F$2:$J$364,5,FALSE),\"\")","v":""}]
[null,null,{"$f":"IFERROR(VLOOKUP(B831,[2]Sheet4!$F$2:$J$364,2,FALSE),\"\")","v":""},{"$f":"IFERROR(VLOOKUP(B831,[2]Sheet4!$F$2:$J$364,3,FALSE),\"\")","v":""},{"$f":"IFERROR(VLOOKUP(B831,[2]Sheet4!$F$2:$J$364,4,FALSE),\"\")","v":""},{"$f":"IFERROR(VLOOKUP(B831,[2]Sheet4!$F$2:$J$364,5,FALSE),\"\")","v":""}]
[null,null,{"$f":"IFERROR(VLOOKUP(B832,[2]Sheet4!$F$2:$J$364,2,FALSE),\"\")","v":""},{"$f":"IFERROR(VLOOKUP(B832,[2]Sheet4!$F$2:$J$364,3,FALSE),\"\")","v":""},{"$f":"IFERROR(VLOOKUP(B832,[2]Sheet4!$F$2:$J$364,4,FALSE),\"\")","v":""},{"$f":"IFERROR(VLOOKUP(B832,[2]Sheet4!$F$2:$J$364,5,FALSE),\"\")","v":""}]
[null,null,{"$f":"IFERROR(VLOOKUP(B833,[2]Sheet4!$F$2:$J$364,2,FALSE),\"\")","v":""},{"$f":"IFERROR(VLOOKUP(B833,[2]Sheet4!$F$2:$J$364,3,FALSE),\"\")","v":""},{"$f":"IFERROR(VLOOKUP(B833,[2]Sheet4!$F$2:$J$364,4,FALSE),\"\")","v":""},{"$f":"IFERROR(VLOOKUP(B833,[2]Sheet4!$F$2:$J$364,5,FALSE),\"\")","v":""}]
[null,null,{"$f":"IFERROR(VLOOKUP(B834,[2]Sheet4!$F$2:$J$364,2,FALSE),\"\")","v":""},{"$f":"IFERROR(VLOOKUP(B834,[2]Sheet4!$F$2:$J$364,3,FALSE),\"\")","v":""},{"$f":"IFERROR(VLOOKUP(B834,[2]Sheet4!$F$2:$J$364,4,FALSE),\"\")","v":""},{"$f":"IFERROR(VLOOKUP(B834,[2]Sheet4!$F$2:$J$364,5,FALSE),\"\")","v":""}]
[null,null,{"$f":"IFERROR(VLOOKUP(B835,[2]Sheet4!$F$2:$J$364,2,FALSE),\"\")","v":""},{"$f":"IFERROR(VLOOKUP(B835,[2]Sheet4!$F$2:$J$364,3,FALSE),\"\")","v":""},{"$f":"IFERROR(VLOOKUP(B835,[2]Sheet4!$F$2:$J$364,4,FALSE),\"\")","v":""},{"$f":"IFERROR(VLOOKUP(B835,[2]Sheet4!$F$2:$J$364,5,FALSE),\"\")","v":""}]
[null,null,{"$f":"IFERROR(VLOOKUP(B836,[2]Sheet4!$F$2:$J$364,2,FALSE),\"\")","v":""},{"$f":"IFERROR(VLOOKUP(B836,[2]Sheet4!$F$2:$J$364,3,FALSE),\"\")","v":""},{"$f":"IFERROR(VLOOKUP(B836,[2]Sheet4!$F$2:$J$364,4,FALSE),\"\")","v":""},{"$f":"IFERROR(VLOOKUP(B836,[2]Sheet4!$F$2:$J$364,5,FALSE),\"\")","v":""}]
[null,null,{"$f":"IFERROR(VLOOKUP(B837,[2]Sheet4!$F$2:$J$364,2,FALSE),\"\")","v":""},{"$f":"IFERROR(VLOOKUP(B837,[2]Sheet4!$F$2:$J$364,3,FALSE),\"\")","v":""},{"$f":"IFERROR(VLOOKUP(B837,[2]Sheet4!$F$2:$J$364,4,FALSE),\"\")","v":""},{"$f":"IFERROR(VLOOKUP(B837,[2]Sheet4!$F$2:$J$364,5,FALSE),\"\")","v":""}]
[null,null,{"$f":"IFERROR(VLOOKUP(B838,[2]Sheet4!$F$2:$J$364,2,FALSE),\"\")","v":""},{"$f":"IFERROR(VLOOKUP(B838,[2]Sheet4!$F$2:$J$364,3,FALSE),\"\")","v":""},{"$f":"IFERROR(VLOOKUP(B838,[2]Sheet4!$F$2:$J$364,4,FALSE),\"\")","v":""},{"$f":"IFERROR(VLOOKUP(B838,[2]Sheet4!$F$2:$J$364,5,FALSE),\"\")","v":""}]
[null,null,{"$f":"IFERROR(VLOOKUP(B839,[2]Sheet4!$F$2:$J$364,2,FALSE),\"\")","v":""},{"$f":"IFERROR(VLOOKUP(B839,[2]Sheet4!$F$2:$J$364,3,FALSE),\"\")","v":""},{"$f":"IFERROR(VLOOKUP(B839,[2]Sheet4!$F$2:$J$364,4,FALSE),\"\")","v":""},{"$f":"IFERROR(VLOOKUP(B839,[2]Sheet4!$F$2:$J$364,5,FALSE),\"\")","v":""}]
[null,null,{"$f":"IFERROR(VLOOKUP(B840,[2]Sheet4!$F$2:$J$364,2,FALSE),\"\")","v":""},{"$f":"IFERROR(VLOOKUP(B840,[2]Sheet4!$F$2:$J$364,3,FALSE),\"\")","v":""},{"$f":"IFERROR(VLOOKUP(B840,[2]Sheet4!$F$2:$J$364,4,FALSE),\"\")","v":""},{"$f":"IFERROR(VLOOKUP(B840,[2]Sheet4!$F$2:$J$364,5,FALSE),\"\")","v":""}]
[null,null,{"$f":"IFERROR(VLOOKUP(B841,[2]Sheet4!$F$2:$J$364,2,FALSE),\"\")","v":""},{"$f":"IFERROR(VLOOKUP(B841,[2]Sheet4!$F$2:$J$364,3,FALSE),\"\")","v":""},{"$f":"IFERROR(VLOOKUP(B841,[2]Sheet4!$F$2:$J$364,4,FALSE),\"\")","v":""},{"$f":"IFERROR(VLOOKUP(B841,[2]Sheet4!$F$2:$J$364,5,FALSE),\"\")","v":""}]
[null,null,{"$f":"IFERROR(VLOOKUP(B842,[2]Sheet4!$F$2:$J$364,2,FALSE),\"\")","v":""},{"$f":"IFERROR(VLOOKUP(B842,[2]Sheet4!$F$2:$J$364,3,FALSE),\"\")","v":""},{"$f":"IFERROR(VLOOKUP(B842,[2]Sheet4!$F$2:$J$364,4,FALSE),\"\")","v":""},{"$f":"IFERROR(VLOOKUP(B842,[2]Sheet4!$F$2:$J$364,5,FALSE),\"\")","v":""}]
[null,null,{"$f":"IFERROR(VLOOKUP(B843,[2]Sheet4!$F$2:$J$364,2,FALSE),\"\")","v":""},{"$f":"IFERROR(VLOOKUP(B843,[2]Sheet4!$F$2:$J$364,3,FALSE),\"\")","v":""},{"$f":"IFERROR(VLOOKUP(B843,[2]Sheet4!$F$2:$J$364,4,FALSE),\"\")","v":""},{"$f":"IFERROR(VLOOKUP(B843,[2]Sheet4!$F$2:$J$364,5,FALSE),\"\")","v":""}]
[null,null,{"$f":"IFERROR(VLOOKUP(B844,[2]Sheet4!$F$2:$J$364,2,FALSE),\"\")","v":""},{"$f":"IFERROR(VLOOKUP(B844,[2]Sheet4!$F$2:$J$364,3,FALSE),\"\")","v":""},{"$f":"IFERROR(VLOOKUP(B844,[2]Sheet4!$F$2:$J$364,4,FALSE),\"\")","v":""},{"$f":"IFERROR(VLOOKUP(B844,[2]Sheet4!$F$2:$J$364,5,FALSE),\"\")","v":""}]
[null,null,{"$f":"IFERROR(VLOOKUP(B845,[2]Sheet4!$F$2:$J$364,2,FALSE),\"\")","v":""},{"$f":"IFERROR(VLOOKUP(B845,[2]Sheet4!$F$2:$J$364,3,FALSE),\"\")","v":""},{"$f":"IFERROR(VLOOKUP(B845,[2]Sheet4!$F$2:$J$364,4,FALSE),\"\")","v":""},{"$f":"IFERROR(VLOOKUP(B845,[2]Sheet4!$F$2:$J$364,5,FALSE),\"\")","v":""}]
[null,null,{"$f":"IFERROR(VLOOKUP(B846,[2]Sheet4!$F$2:$J$364,2,FALSE),\"\")","v":""},{"$f":"IFERROR(VLOOKUP(B846,[2]Sheet4!$F$2:$J$364,3,FALSE),\"\")","v":""},{"$f":"IFERROR(VLOOKUP(B846,[2]Sheet4!$F$2:$J$364,4,FALSE),\"\")","v":""},{"$f":"IFERROR(VLOOKUP(B846,[2]Sheet4!$F$2:$J$364,5,FALSE),\"\")","v":""}]
[null,null,{"$f":"IFERROR(VLOOKUP(B847,[2]Sheet4!$F$2:$J$364,2,FALSE),\"\")","v":""},{"$f":"IFERROR(VLOOKUP(B847,[2]Sheet4!$F$2:$J$364,3,FALSE),\"\")","v":""},{"$f":"IFERROR(VLOOKUP(B847,[2]Sheet4!$F$2:$J$364,4,FALSE),\"\")","v":""},{"$f":"IFERROR(VLOOKUP(B847,[2]Sheet4!$F$2:$J$364,5,FALSE),\"\")","v":""}]
[null,null,{"$f":"IFERROR(VLOOKUP(B848,[2]Sheet4!$F$2:$J$364,2,FALSE),\"\")","v":""},{"$f":"IFERROR(VLOOKUP(B848,[2]Sheet4!$F$2:$J$364,3,FALSE),\"\")","v":""},{"$f":"IFERROR(VLOOKUP(B848,[2]Sheet4!$F$2:$J$364,4,FALSE),\"\")","v":""},{"$f":"IFERROR(VLOOKUP(B848,[2]Sheet4!$F$2:$J$364,5,FALSE),\"\")","v":""}]
[null,null,{"$f":"IFERROR(VLOOKUP(B849,[2]Sheet4!$F$2:$J$364,2,FALSE),\"\")","v":""},{"$f":"IFERROR(VLOOKUP(B849,[2]Sheet4!$F$2:$J$364,3,FALSE),\"\")","v":""},{"$f":"IFERROR(VLOOKUP(B849,[2]Sheet4!$F$2:$J$364,4,FALSE),\"\")","v":""},{"$f":"IFERROR(VLOOKUP(B849,[2]Sheet4!$F$2:$J$364,5,FALSE),\"\")","v":""}]
[null,null,{"$f":"IFERROR(VLOOKUP(B850,[2]Sheet4!$F$2:$J$364,2,FALSE),\"\")","v":""},{"$f":"IFERROR(VLOOKUP(B850,[2]Sheet4!$F$2:$J$364,3,FALSE),\"\")","v":""},{"$f":"IFERROR(VLOOKUP(B850,[2]Sheet4!$F$2:$J$364,4,FALSE),\"\")","v":""},{"$f":"IFERROR(VLOOKUP(B850,[2]Sheet4!$F$2:$J$364,5,FALSE),\"\")","v":""}]
[null,null,{"$f":"IFERROR(VLOOKUP(B851,[2]Sheet4!$F$2:$J$364,2,FALSE),\"\")","v":""},{"$f":"IFERROR(VLOOKUP(B851,[2]Sheet4!$F$2:$J$364,3,FALSE),\"\")","v":""},{"$f":"IFERROR(VLOOKUP(B851,[2]Sheet4!$F$2:$J$364,4,FALSE),\"\")","v":""},{"$f":"IFERROR(VLOOKUP(B851,[2]Sheet4!$F$2:$J$364,5,FALSE),\"\")","v":""}]
[null,null,{"$f":"IFERROR(VLOOKUP(B852,[2]Sheet4!$F$2:$J$364,2,FALSE),\"\")","v":""},{"$f":"IFERROR(VLOOKUP(B852,[2]Sheet4!$F$2:$J$364,3,FALSE),\"\")","v":""},{"$f":"IFERROR(VLOOKUP(B852,[2]Sheet4!$F$2:$J$364,4,FALSE),\"\")","v":""},{"$f":"IFERROR(VLOOKUP(B852,[2]Sheet4!$F$2:$J$364,5,FALSE),\"\")","v":""}]
[null,null,{"$f":"IFERROR(VLOOKUP(B853,[2]Sheet4!$F$2:$J$364,2,FALSE),\"\")","v":""},{"$f":"IFERROR(VLOOKUP(B853,[2]Sheet4!$F$2:$J$364,3,FALSE),\"\")","v":""},{"$f":"IFERROR(VLOOKUP(B853,[2]Sheet4!$F$2:$J$364,4,FALSE),\"\")","v":""},{"$f":"IFERROR(VLOOKUP(B853,[2]Sheet4!$F$2:$J$364,5,FALSE),\"\")","v":""}]
[null,null,{"$f":"IFERROR(VLOOKUP(B854,[2]Sheet4!$F$2:$J$364,2,FALSE),\"\")","v":""},{"$f":"IFERROR(VLOOKUP(B854,[2]Sheet4!$F$2:$J$364,3,FALSE),\"\")","v":""},{"$f":"IFERROR(VLOOKUP(B854,[2]Sheet4!$F$2:$J$364,4,FALSE),\"\")","v":""},{"$f":"IFERROR(VLOOKUP(B854,[2]Sheet4!$F$2:$J$364,5,FALSE),\"\")","v":""}]
[null,null,{"$f":"IFERROR(VLOOKUP(B855,[2]Sheet4!$F$2:$J$364,2,FALSE),\"\")","v":""},{"$f":"IFERROR(VLOOKUP(B855,[2]Sheet4!$F$2:$J$364,3,FALSE),\"\")","v":""},{"$f":"IFERROR(VLOOKUP(B855,[2]Sheet4!$F$2:$J$364,4,FALSE),\"\")","v":""},{"$f":"IFERROR(VLOOKUP(B855,[2]Sheet4!$F$2:$J$364,5,FALSE),\"\")","v":""}]
[null,null,{"$f":"IFERROR(VLOOKUP(B856,[2]Sheet4!$F$2:$J$364,2,FALSE),\"\")","v":""},{"$f":"IFERROR(VLOOKUP(B856,[2]Sheet4!$F$2:$J$364,3,FALSE),\"\")","v":""},{"$f":"IFERROR(VLOOKUP(B856,[2]Sheet4!$F$2:$J$364,4,FALSE),\"\")","v":""},{"$f":"IFERROR(VLOOKUP(B856,[2]Sheet4!$F$2:$J$364,5,FALSE),\"\")","v":""}]
[null,null,{"$f":"IFERROR(VLOOKUP(B857,[2]Sheet4!$F$2:$J$364,2,FALSE),\"\")","v":""},{"$f":"IFERROR(VLOOKUP(B857,[2]Sheet4!$F$2:$J$364,3,FALSE),\"\")","v":""},{"$f":"IFERROR(VLOOKUP(B857,[2]Sheet4!$F$2:$J$364,4,FALSE),\"\")","v":""},{"$f":"IFERROR(VLOOKUP(B857,[2]Sheet4!$F$2:$J$364,5,FALSE),\"\")","v":""}]
[null,null,{"$f":"IFERROR(VLOOKUP(B858,[2]Sheet4!$F$2:$J$364,2,FALSE),\"\")","v":""},{"$f":"IFERROR(VLOOKUP(B858,[2]Sheet4!$F$2:$J$364,3,FALSE),\"\")","v":""},{"$f":"IFERROR(VLOOKUP(B858,[2]Sheet4!$F$2:$J$364,4,FALSE),\"\")","v":""},{"$f":"IFERROR(VLOOKUP(B858,[2]Sheet4!$F$2:$J$364,5,FALSE),\"\")","v":""}]
[null,null,{"$f":"IFERROR(VLOOKUP(B859,[2]Sheet4!$F$2:$J$364,2,FALSE),\"\")","v":""},{"$f":"IFERROR(VLOOKUP(B859,[2]Sheet4!$F$2:$J$364,3,FALSE),\"\")","v":""},{"$f":"IFERROR(VLOOKUP(B859,[2]Sheet4!$F$2:$J$364,4,FALSE),\"\")","v":""},{"$f":"IFERROR(VLOOKUP(B859,[2]Sheet4!$F$2:$J$364,5,FALSE),\"\")","v":""}]
[null,null,{"$f":"IFERROR(VLOOKUP(B860,[2]Sheet4!$F$2:$J$364,2,FALSE),\"\")","v":""},{"$f":"IFERROR(VLOOKUP(B860,[2]Sheet4!$F$2:$J$364,3,FALSE),\"\")","v":""},{"$f":"IFERROR(VLOOKUP(B860,[2]Sheet4!$F$2:$J$364,4,FALSE),\"\")","v":""},{"$f":"IFERROR(VLOOKUP(B860,[2]Sheet4!$F$2:$J$364,5,FALSE),\"\")","v":""}]
[null,null,{"$f":"IFERROR(VLOOKUP(B861,[2]Sheet4!$F$2:$J$364,2,FALSE),\"\")","v":""},{"$f":"IFERROR(VLOOKUP(B861,[2]Sheet4!$F$2:$J$364,3,FALSE),\"\")","v":""},{"$f":"IFERROR(VLOOKUP(B861,[2]Sheet4!$F$2:$J$364,4,FALSE),\"\")","v":""},{"$f":"IFERROR(VLOOKUP(B861,[2]Sheet4!$F$2:$J$364,5,FALSE),\"\")","v":""}]
[null,null,{"$f":"IFERROR(VLOOKUP(B862,[2]Sheet4!$F$2:$J$364,2,FALSE),\"\")","v":""},{"$f":"IFERROR(VLOOKUP(B862,[2]Sheet4!$F$2:$J$364,3,FALSE),\"\")","v":""},{"$f":"IFERROR(VLOOKUP(B862,[2]Sheet4!$F$2:$J$364,4,FALSE),\"\")","v":""},{"$f":"IFERROR(VLOOKUP(B862,[2]Sheet4!$F$2:$J$364,5,FALSE),\"\")","v":""}]
[null,null,{"$f":"IFERROR(VLOOKUP(B863,[2]Sheet4!$F$2:$J$364,2,FALSE),\"\")","v":""},{"$f":"IFERROR(VLOOKUP(B863,[2]Sheet4!$F$2:$J$364,3,FALSE),\"\")","v":""},{"$f":"IFERROR(VLOOKUP(B863,[2]Sheet4!$F$2:$J$364,4,FALSE),\"\")","v":""},{"$f":"IFERROR(VLOOKUP(B863,[2]Sheet4!$F$2:$J$364,5,FALSE),\"\")","v":""}]
[null,null,{"$f":"IFERROR(VLOOKUP(B864,[2]Sheet4!$F$2:$J$364,2,FALSE),\"\")","v":""},{"$f":"IFERROR(VLOOKUP(B864,[2]Sheet4!$F$2:$J$364,3,FALSE),\"\")","v":""},{"$f":"IFERROR(VLOOKUP(B864,[2]Sheet4!$F$2:$J$364,4,FALSE),\"\")","v":""},{"$f":"IFERROR(VLOOKUP(B864,[2]Sheet4!$F$2:$J$364,5,FALSE),\"\")","v":""}]
[null,null,{"$f":"IFERROR(VLOOKUP(B865,[2]Sheet4!$F$2:$J$364,2,FALSE),\"\")","v":""},{"$f":"IFERROR(VLOOKUP(B865,[2]Sheet4!$F$2:$J$364,3,FALSE),\"\")","v":""},{"$f":"IFERROR(VLOOKUP(B865,[2]Sheet4!$F$2:$J$364,4,FALSE),\"\")","v":""},{"$f":"IFERROR(VLOOKUP(B865,[2]Sheet4!$F$2:$J$364,5,FALSE),\"\")","v":""}]
[null,null,{"$f":"IFERROR(VLOOKUP(B866,[2]Sheet4!$F$2:$J$364,2,FALSE),\"\")","v":""},{"$f":"IFERROR(VLOOKUP(B866,[2]Sheet4!$F$2:$J$364,3,FALSE),\"\")","v":""},{"$f":"IFERROR(VLOOKUP(B866,[2]Sheet4!$F$2:$J$364,4,FALSE),\"\")","v":""},{"$f":"IFERROR(VLOOKUP(B866,[2]Sheet4!$F$2:$J$364,5,FALSE),\"\")","v":""}]
[null,null,{"$f":"IFERROR(VLOOKUP(B867,[2]Sheet4!$F$2:$J$364,2,FALSE),\"\")","v":""},{"$f":"IFERROR(VLOOKUP(B867,[2]Sheet4!$F$2:$J$364,3,FALSE),\"\")","v":""},{"$f":"IFERROR(VLOOKUP(B867,[2]Sheet4!$F$2:$J$364,4,FALSE),\"\")","v":""},{"$f":"IFERROR(VLOOKUP(B867,[2]Sheet4!$F$2:$J$364,5,FALSE),\"\")","v":""}]
[null,null,{"$f":"IFERROR(VLOOKUP(B868,[2]Sheet4!$F$2:$J$364,2,FALSE),\"\")","v":""},{"$f":"IFERROR(VLOOKUP(B868,[2]Sheet4!$F$2:$J$364,3,FALSE),\"\")","v":""},{"$f":"IFERROR(VLOOKUP(B868,[2]Sheet4!$F$2:$J$364,4,FALSE),\"\")","v":""},{"$f":"IFERROR(VLOOKUP(B868,[2]Sheet4!$F$2:$J$364,5,FALSE),\"\")","v":""}]
[null,null,{"$f":"IFERROR(VLOOKUP(B869,[2]Sheet4!$F$2:$J$364,2,FALSE),\"\")","v":""},{"$f":"IFERROR(VLOOKUP(B869,[2]Sheet4!$F$2:$J$364,3,FALSE),\"\")","v":""},{"$f":"IFERROR(VLOOKUP(B869,[2]Sheet4!$F$2:$J$364,4,FALSE),\"\")","v":""},{"$f":"IFERROR(VLOOKUP(B869,[2]Sheet4!$F$2:$J$364,5,FALSE),\"\")","v":""}]
[null,null,{"$f":"IFERROR(VLOOKUP(B870,[2]Sheet4!$F$2:$J$364,2,FALSE),\"\")","v":""},{"$f":"IFERROR(VLOOKUP(B870,[2]Sheet4!$F$2:$J$364,3,FALSE),\"\")","v":""},{"$f":"IFERROR(VLOOKUP(B870,[2]Sheet4!$F$2:$J$364,4,FALSE),\"\")","v":""},{"$f":"IFERROR(VLOOKUP(B870,[2]Sheet4!$F$2:$J$364,5,FALSE),\"\")","v":""}]
[null,null,{"$f":"IFERROR(VLOOKUP(B871,[2]Sheet4!$F$2:$J$364,2,FALSE),\"\")","v":""},{"$f":"IFERROR(VLOOKUP(B871,[2]Sheet4!$F$2:$J$364,3,FALSE),\"\")","v":""},{"$f":"IFERROR(VLOOKUP(B871,[2]Sheet4!$F$2:$J$364,4,FALSE),\"\")","v":""},{"$f":"IFERROR(VLOOKUP(B871,[2]Sheet4!$F$2:$J$364,5,FALSE),\"\")","v":""}]
[null,null,{"$f":"IFERROR(VLOOKUP(B872,[2]Sheet4!$F$2:$J$364,2,FALSE),\"\")","v":""},{"$f":"IFERROR(VLOOKUP(B872,[2]Sheet4!$F$2:$J$364,3,FALSE),\"\")","v":""},{"$f":"IFERROR(VLOOKUP(B872,[2]Sheet4!$F$2:$J$364,4,FALSE),\"\")","v":""},{"$f":"IFERROR(VLOOKUP(B872,[2]Sheet4!$F$2:$J$364,5,FALSE),\"\")","v":""}]
[null,null,{"$f":"IFERROR(VLOOKUP(B873,[2]Sheet4!$F$2:$J$364,2,FALSE),\"\")","v":""},{"$f":"IFERROR(VLOOKUP(B873,[2]Sheet4!$F$2:$J$364,3,FALSE),\"\")","v":""},{"$f":"IFERROR(VLOOKUP(B873,[2]Sheet4!$F$2:$J$364,4,FALSE),\"\")","v":""},{"$f":"IFERROR(VLOOKUP(B873,[2]Sheet4!$F$2:$J$364,5,FALSE),\"\")","v":""}]
[null,null,{"$f":"IFERROR(VLOOKUP(B874,[2]Sheet4!$F$2:$J$364,2,FALSE),\"\")","v":""},{"$f":"IFERROR(VLOOKUP(B874,[2]Sheet4!$F$2:$J$364,3,FALSE),\"\")","v":""},{"$f":"IFERROR(VLOOKUP(B874,[2]Sheet4!$F$2:$J$364,4,FALSE),\"\")","v":""},{"$f":"IFERROR(VLOOKUP(B874,[2]Sheet4!$F$2:$J$364,5,FALSE),\"\")","v":""}]
[null,null,{"$f":"IFERROR(VLOOKUP(B875,[2]Sheet4!$F$2:$J$364,2,FALSE),\"\")","v":""},{"$f":"IFERROR(VLOOKUP(B875,[2]Sheet4!$F$2:$J$364,3,FALSE),\"\")","v":""},{"$f":"IFERROR(VLOOKUP(B875,[2]Sheet4!$F$2:$J$364,4,FALSE),\"\")","v":""},{"$f":"IFERROR(VLOOKUP(B875,[2]Sheet4!$F$2:$J$364,5,FALSE),\"\")","v":""}]
[null,null,{"$f":"IFERROR(VLOOKUP(B876,[2]Sheet4!$F$2:$J$364,2,FALSE),\"\")","v":""},{"$f":"IFERROR(VLOOKUP(B876,[2]Sheet4!$F$2:$J$364,3,FALSE),\"\")","v":""},{"$f":"IFERROR(VLOOKUP(B876,[2]Sheet4!$F$2:$J$364,4,FALSE),\"\")","v":""},{"$f":"IFERROR(VLOOKUP(B876,[2]Sheet4!$F$2:$J$364,5,FALSE),\"\")","v":""}]
[null,null,{"$f":"IFERROR(VLOOKUP(B877,[2]Sheet4!$F$2:$J$364,2,FALSE),\"\")","v":""},{"$f":"IFERROR(VLOOKUP(B877,[2]Sheet4!$F$2:$J$364,3,FALSE),\"\")","v":""},{"$f":"IFERROR(VLOOKUP(B877,[2]Sheet4!$F$2:$J$364,4,FALSE),\"\")","v":""},{"$f":"IFERROR(VLOOKUP(B877,[2]Sheet4!$F$2:$J$364,5,FALSE),\"\")","v":""}]
[null,null,{"$f":"IFERROR(VLOOKUP(B878,[2]Sheet4!$F$2:$J$364,2,FALSE),\"\")","v":""},{"$f":"IFERROR(VLOOKUP(B878,[2]Sheet4!$F$2:$J$364,3,FALSE),\"\")","v":""},{"$f":"IFERROR(VLOOKUP(B878,[2]Sheet4!$F$2:$J$364,4,FALSE),\"\")","v":""},{"$f":"IFERROR(VLOOKUP(B878,[2]Sheet4!$F$2:$J$364,5,FALSE),\"\")","v":""}]
[null,null,{"$f":"IFERROR(VLOOKUP(B879,[2]Sheet4!$F$2:$J$364,2,FALSE),\"\")","v":""},{"$f":"IFERROR(VLOOKUP(B879,[2]Sheet4!$F$2:$J$364,3,FALSE),\"\")","v":""},{"$f":"IFERROR(VLOOKUP(B879,[2]Sheet4!$F$2:$J$364,4,FALSE),\"\")","v":""},{"$f":"IFERROR(VLOOKUP(B879,[2]Sheet4!$F$2:$J$364,5,FALSE),\"\")","v":""}]
[null,null,{"$f":"IFERROR(VLOOKUP(B880,[2]Sheet4!$F$2:$J$364,2,FALSE),\"\")","v":""},{"$f":"IFERROR(VLOOKUP(B880,[2]Sheet4!$F$2:$J$364,3,FALSE),\"\")","v":""},{"$f":"IFERROR(VLOOKUP(B880,[2]Sheet4!$F$2:$J$364,4,FALSE),\"\")","v":""},{"$f":"IFERROR(VLOOKUP(B880,[2]Sheet4!$F$2:$J$364,5,FALSE),\"\")","v":""}]
[null,null,{"$f":"IFERROR(VLOOKUP(B881,[2]Sheet4!$F$2:$J$364,2,FALSE),\"\")","v":""},{"$f":"IFERROR(VLOOKUP(B881,[2]Sheet4!$F$2:$J$364,3,FALSE),\"\")","v":""},{"$f":"IFERROR(VLOOKUP(B881,[2]Sheet4!$F$2:$J$364,4,FALSE),\"\")","v":""},{"$f":"IFERROR(VLOOKUP(B881,[2]Sheet4!$F$2:$J$364,5,FALSE),\"\")","v":""}]
[null,null,{"$f":"IFERROR(VLOOKUP(B882,[2]Sheet4!$F$2:$J$364,2,FALSE),\"\")","v":""},{"$f":"IFERROR(VLOOKUP(B882,[2]Sheet4!$F$2:$J$364,3,FALSE),\"\")","v":""},{"$f":"IFERROR(VLOOKUP(B882,[2]Sheet4!$F$2:$J$364,4,FALSE),\"\")","v":""},{"$f":"IFERROR(VLOOKUP(B882,[2]Sheet4!$F$2:$J$364,5,FALSE),\"\")","v":""}]
[null,null,{"$f":"IFERROR(VLOOKUP(B883,[2]Sheet4!$F$2:$J$364,2,FALSE),\"\")","v":""},{"$f":"IFERROR(VLOOKUP(B883,[2]Sheet4!$F$2:$J$364,3,FALSE),\"\")","v":""},{"$f":"IFERROR(VLOOKUP(B883,[2]Sheet4!$F$2:$J$364,4,FALSE),\"\")","v":""},{"$f":"IFERROR(VLOOKUP(B883,[2]Sheet4!$F$2:$J$364,5,FALSE),\"\")","v":""}]
[null,null,{"$f":"IFERROR(VLOOKUP(B884,[2]Sheet4!$F$2:$J$364,2,FALSE),\"\")","v":""},{"$f":"IFERROR(VLOOKUP(B884,[2]Sheet4!$F$2:$J$364,3,FALSE),\"\")","v":""},{"$f":"IFERROR(VLOOKUP(B884,[2]Sheet4!$F$2:$J$364,4,FALSE),\"\")","v":""},{"$f":"IFERROR(VLOOKUP(B884,[2]Sheet4!$F$2:$J$364,5,FALSE),\"\")","v":""}]
[null,null,{"$f":"IFERROR(VLOOKUP(B885,[2]Sheet4!$F$2:$J$364,2,FALSE),\"\")","v":""},{"$f":"IFERROR(VLOOKUP(B885,[2]Sheet4!$F$2:$J$364,3,FALSE),\"\")","v":""},{"$f":"IFERROR(VLOOKUP(B885,[2]Sheet4!$F$2:$J$364,4,FALSE),\"\")","v":""},{"$f":"IFERROR(VLOOKUP(B885,[2]Sheet4!$F$2:$J$364,5,FALSE),\"\")","v":""}]
[null,null,{"$f":"IFERROR(VLOOKUP(B886,[2]Sheet4!$F$2:$J$364,2,FALSE),\"\")","v":""},{"$f":"IFERROR(VLOOKUP(B886,[2]Sheet4!$F$2:$J$364,3,FALSE),\"\")","v":""},{"$f":"IFERROR(VLOOKUP(B886,[2]Sheet4!$F$2:$J$364,4,FALSE),\"\")","v":""},{"$f":"IFERROR(VLOOKUP(B886,[2]Sheet4!$F$2:$J$364,5,FALSE),\"\")","v":""}]
[null,null,{"$f":"IFERROR(VLOOKUP(B887,[2]Sheet4!$F$2:$J$364,2,FALSE),\"\")","v":""},{"$f":"IFERROR(VLOOKUP(B887,[2]Sheet4!$F$2:$J$364,3,FALSE),\"\")","v":""},{"$f":"IFERROR(VLOOKUP(B887,[2]Sheet4!$F$2:$J$364,4,FALSE),\"\")","v":""},{"$f":"IFERROR(VLOOKUP(B887,[2]Sheet4!$F$2:$J$364,5,FALSE),\"\")","v":""}]
[null,null,{"$f":"IFERROR(VLOOKUP(B888,[2]Sheet4!$F$2:$J$364,2,FALSE),\"\")","v":""},{"$f":"IFERROR(VLOOKUP(B888,[2]Sheet4!$F$2:$J$364,3,FALSE),\"\")","v":""},{"$f":"IFERROR(VLOOKUP(B888,[2]Sheet4!$F$2:$J$364,4,FALSE),\"\")","v":""},{"$f":"IFERROR(VLOOKUP(B888,[2]Sheet4!$F$2:$J$364,5,FALSE),\"\")","v":""}]
[null,null,{"$f":"IFERROR(VLOOKUP(B889,[2]Sheet4!$F$2:$J$364,2,FALSE),\"\")","v":""},{"$f":"IFERROR(VLOOKUP(B889,[2]Sheet4!$F$2:$J$364,3,FALSE),\"\")","v":""},{"$f":"IFERROR(VLOOKUP(B889,[2]Sheet4!$F$2:$J$364,4,FALSE),\"\")","v":""},{"$f":"IFERROR(VLOOKUP(B889,[2]Sheet4!$F$2:$J$364,5,FALSE),\"\")","v":""}]
[null,null,{"$f":"IFERROR(VLOOKUP(B890,[2]Sheet4!$F$2:$J$364,2,FALSE),\"\")","v":""},{"$f":"IFERROR(VLOOKUP(B890,[2]Sheet4!$F$2:$J$364,3,FALSE),\"\")","v":""},{"$f":"IFERROR(VLOOKUP(B890,[2]Sheet4!$F$2:$J$364,4,FALSE),\"\")","v":""},{"$f":"IFERROR(VLOOKUP(B890,[2]Sheet4!$F$2:$J$364,5,FALSE),\"\")","v":""}]
[null,null,{"$f":"IFERROR(VLOOKUP(B891,[2]Sheet4!$F$2:$J$364,2,FALSE),\"\")","v":""},{"$f":"IFERROR(VLOOKUP(B891,[2]Sheet4!$F$2:$J$364,3,FALSE),\"\")","v":""},{"$f":"IFERROR(VLOOKUP(B891,[2]Sheet4!$F$2:$J$364,4,FALSE),\"\")","v":""},{"$f":"IFERROR(VLOOKUP(B891,[2]Sheet4!$F$2:$J$364,5,FALSE),\"\")","v":""}]
[null,null,{"$f":"IFERROR(VLOOKUP(B892,[2]Sheet4!$F$2:$J$364,2,FALSE),\"\")","v":""},{"$f":"IFERROR(VLOOKUP(B892,[2]Sheet4!$F$2:$J$364,3,FALSE),\"\")","v":""},{"$f":"IFERROR(VLOOKUP(B892,[2]Sheet4!$F$2:$J$364,4,FALSE),\"\")","v":""},{"$f":"IFERROR(VLOOKUP(B892,[2]Sheet4!$F$2:$J$364,5,FALSE),\"\")","v":""}]
[null,null,{"$f":"IFERROR(VLOOKUP(B893,[2]Sheet4!$F$2:$J$364,2,FALSE),\"\")","v":""},{"$f":"IFERROR(VLOOKUP(B893,[2]Sheet4!$F$2:$J$364,3,FALSE),\"\")","v":""},{"$f":"IFERROR(VLOOKUP(B893,[2]Sheet4!$F$2:$J$364,4,FALSE),\"\")","v":""},{"$f":"IFERROR(VLOOKUP(B893,[2]Sheet4!$F$2:$J$364,5,FALSE),\"\")","v":""}]
[null,null,{"$f":"IFERROR(VLOOKUP(B894,[2]Sheet4!$F$2:$J$364,2,FALSE),\"\")","v":""},{"$f":"IFERROR(VLOOKUP(B894,[2]Sheet4!$F$2:$J$364,3,FALSE),\"\")","v":""},{"$f":"IFERROR(VLOOKUP(B894,[2]Sheet4!$F$2:$J$364,4,FALSE),\"\")","v":""},{"$f":"IFERROR(VLOOKUP(B894,[2]Sheet4!$F$2:$J$364,5,FALSE),\"\")","v":""}]
[null,null,{"$f":"IFERROR(VLOOKUP(B895,[2]Sheet4!$F$2:$J$364,2,FALSE),\"\")","v":""},{"$f":"IFERROR(VLOOKUP(B895,[2]Sheet4!$F$2:$J$364,3,FALSE),\"\")","v":""},{"$f":"IFERROR(VLOOKUP(B895,[2]Sheet4!$F$2:$J$364,4,FALSE),\"\")","v":""},{"$f":"IFERROR(VLOOKUP(B895,[2]Sheet4!$F$2:$J$364,5,FALSE),\"\")","v":""}]
[null,null,{"$f":"IFERROR(VLOOKUP(B896,[2]Sheet4!$F$2:$J$364,2,FALSE),\"\")","v":""},{"$f":"IFERROR(VLOOKUP(B896,[2]Sheet4!$F$2:$J$364,3,FALSE),\"\")","v":""},{"$f":"IFERROR(VLOOKUP(B896,[2]Sheet4!$F$2:$J$364,4,FALSE),\"\")","v":""},{"$f":"IFERROR(VLOOKUP(B896,[2]Sheet4!$F$2:$J$364,5,FALSE),\"\")","v":""}]
[null,null,{"$f":"IFERROR(VLOOKUP(B897,[2]Sheet4!$F$2:$J$364,2,FALSE),\"\")","v":""},{"$f":"IFERROR(VLOOKUP(B897,[2]Sheet4!$F$2:$J$364,3,FALSE),\"\")","v":""},{"$f":"IFERROR(VLOOKUP(B897,[2]Sheet4!$F$2:$J$364,4,FALSE),\"\")","v":""},{"$f":"IFERROR(VLOOKUP(B897,[2]Sheet4!$F$2:$J$364,5,FALSE),\"\")","v":""}]
[null,null,{"$f":"IFERROR(VLOOKUP(B898,[2]Sheet4!$F$2:$J$364,2,FALSE),\"\")","v":""},{"$f":"IFERROR(VLOOKUP(B898,[2]Sheet4!$F$2:$J$364,3,FALSE),\"\")","v":""},{"$f":"IFERROR(VLOOKUP(B898,[2]Sheet4!$F$2:$J$364,4,FALSE),\"\")","v":""},{"$f":"IFERROR(VLOOKUP(B898,[2]Sheet4!$F$2:$J$364,5,FALSE),\"\")","v":""}]
[null,null,{"$f":"IFERROR(VLOOKUP(B899,[2]Sheet4!$F$2:$J$364,2,FALSE),\"\")","v":""},{"$f":"IFERROR(VLOOKUP(B899,[2]Sheet4!$F$2:$J$364,3,FALSE),\"\")","v":""},{"$f":"IFERROR(VLOOKUP(B899,[2]Sheet4!$F$2:$J$364,4,FALSE),\"\")","v":""},{"$f":"IFERROR(VLOOKUP(B899,[2]Sheet4!$F$2:$J$364,5,FALSE),\"\")","v":""}]
[null,null,{"$f":"IFERROR(VLOOKUP(B900,[2]Sheet4!$F$2:$J$364,2,FALSE),\"\")","v":""},{"$f":"IFERROR(VLOOKUP(B900,[2]Sheet4!$F$2:$J$364,3,FALSE),\"\")","v":""},{"$f":"IFERROR(VLOOKUP(B900,[2]Sheet4!$F$2:$J$364,4,FALSE),\"\")","v":""},{"$f":"IFERROR(VLOOKUP(B900,[2]Sheet4!$F$2:$J$364,5,FALSE),\"\")","v":""}]
[null,null,{"$f":"IFERROR(VLOOKUP(B901,[2]Sheet4!$F$2:$J$364,2,FALSE),\"\")","v":""},{"$f":"IFERROR(VLOOKUP(B901,[2]Sheet4!$F$2:$J$364,3,FALSE),\"\")","v":""},{"$f":"IFERROR(VLOOKUP(B901,[2]Sheet4!$F$2:$J$364,4,FALSE),\"\")","v":""},{"$f":"IFERROR(VLOOKUP(B901,[2]Sheet4!$F$2:$J$364,5,FALSE),\"\")","v":""}]
[null,null,{"$f":"IFERROR(VLOOKUP(B902,[2]Sheet4!$F$2:$J$364,2,FALSE),\"\")","v":""},{"$f":"IFERROR(VLOOKUP(B902,[2]Sheet4!$F$2:$J$364,3,FALSE),\"\")","v":""},{"$f":"IFERROR(VLOOKUP(B902,[2]Sheet4!$F$2:$J$364,4,FALSE),\"\")","v":""},{"$f":"IFERROR(VLOOKUP(B902,[2]Sheet4!$F$2:$J$364,5,FALSE),\"\")","v":""}]
[null,null,{"$f":"IFERROR(VLOOKUP(B903,[2]Sheet4!$F$2:$J$364,2,FALSE),\"\")","v":""},{"$f":"IFERROR(VLOOKUP(B903,[2]Sheet4!$F$2:$J$364,3,FALSE),\"\")","v":""},{"$f":"IFERROR(VLOOKUP(B903,[2]Sheet4!$F$2:$J$364,4,FALSE),\"\")","v":""},{"$f":"IFERROR(VLOOKUP(B903,[2]Sheet4!$F$2:$J$364,5,FALSE),\"\")","v":""}]
[null,null,{"$f":"IFERROR(VLOOKUP(B904,[2]Sheet4!$F$2:$J$364,2,FALSE),\"\")","v":""},{"$f":"IFERROR(VLOOKUP(B904,[2]Sheet4!$F$2:$J$364,3,FALSE),\"\")","v":""},{"$f":"IFERROR(VLOOKUP(B904,[2]Sheet4!$F$2:$J$364,4,FALSE),\"\")","v":""},{"$f":"IFERROR(VLOOKUP(B904,[2]Sheet4!$F$2:$J$364,5,FALSE),\"\")","v":""}]
[null,null,{"$f":"IFERROR(VLOOKUP(B905,[2]Sheet4!$F$2:$J$364,2,FALSE),\"\")","v":""},{"$f":"IFERROR(VLOOKUP(B905,[2]Sheet4!$F$2:$J$364,3,FALSE),\"\")","v":""},{"$f":"IFERROR(VLOOKUP(B905,[2]Sheet4!$F$2:$J$364,4,FALSE),\"\")","v":""},{"$f":"IFERROR(VLOOKUP(B905,[2]Sheet4!$F$2:$J$364,5,FALSE),\"\")","v":""}]
[null,null,{"$f":"IFERROR(VLOOKUP(B906,[2]Sheet4!$F$2:$J$364,2,FALSE),\"\")","v":""},{"$f":"IFERROR(VLOOKUP(B906,[2]Sheet4!$F$2:$J$364,3,FALSE),\"\")","v":""},{"$f":"IFERROR(VLOOKUP(B906,[2]Sheet4!$F$2:$J$364,4,FALSE),\"\")","v":""},{"$f":"IFERROR(VLOOKUP(B906,[2]Sheet4!$F$2:$J$364,5,FALSE),\"\")","v":""}]
[null,null,{"$f":"IFERROR(VLOOKUP(B907,[2]Sheet4!$F$2:$J$364,2,FALSE),\"\")","v":""},{"$f":"IFERROR(VLOOKUP(B907,[2]Sheet4!$F$2:$J$364,3,FALSE),\"\")","v":""},{"$f":"IFERROR(VLOOKUP(B907,[2]Sheet4!$F$2:$J$364,4,FALSE),\"\")","v":""},{"$f":"IFERROR(VLOOKUP(B907,[2]Sheet4!$F$2:$J$364,5,FALSE),\"\")","v":""}]
[null,null,{"$f":"IFERROR(VLOOKUP(B908,[2]Sheet4!$F$2:$J$364,2,FALSE),\"\")","v":""},{"$f":"IFERROR(VLOOKUP(B908,[2]Sheet4!$F$2:$J$364,3,FALSE),\"\")","v":""},{"$f":"IFERROR(VLOOKUP(B908,[2]Sheet4!$F$2:$J$364,4,FALSE),\"\")","v":""},{"$f":"IFERROR(VLOOKUP(B908,[2]Sheet4!$F$2:$J$364,5,FALSE),\"\")","v":""}]
[null,null,{"$f":"IFERROR(VLOOKUP(B909,[2]Sheet4!$F$2:$J$364,2,FALSE),\"\")","v":""},{"$f":"IFERROR(VLOOKUP(B909,[2]Sheet4!$F$2:$J$364,3,FALSE),\"\")","v":""},{"$f":"IFERROR(VLOOKUP(B909,[2]Sheet4!$F$2:$J$364,4,FALSE),\"\")","v":""},{"$f":"IFERROR(VLOOKUP(B909,[2]Sheet4!$F$2:$J$364,5,FALSE),\"\")","v":""}]
[null,null,{"$f":"IFERROR(VLOOKUP(B910,[2]Sheet4!$F$2:$J$364,2,FALSE),\"\")","v":""},{"$f":"IFERROR(VLOOKUP(B910,[2]Sheet4!$F$2:$J$364,3,FALSE),\"\")","v":""},{"$f":"IFERROR(VLOOKUP(B910,[2]Sheet4!$F$2:$J$364,4,FALSE),\"\")","v":""},{"$f":"IFERROR(VLOOKUP(B910,[2]Sheet4!$F$2:$J$364,5,FALSE),\"\")","v":""}]
[null,null,{"$f":"IFERROR(VLOOKUP(B911,[2]Sheet4!$F$2:$J$364,2,FALSE),\"\")","v":""},{"$f":"IFERROR(VLOOKUP(B911,[2]Sheet4!$F$2:$J$364,3,FALSE),\"\")","v":""},{"$f":"IFERROR(VLOOKUP(B911,[2]Sheet4!$F$2:$J$364,4,FALSE),\"\")","v":""},{"$f":"IFERROR(VLOOKUP(B911,[2]Sheet4!$F$2:$J$364,5,FALSE),\"\")","v":""}]
[null,null,{"$f":"IFERROR(VLOOKUP(B912,[2]Sheet4!$F$2:$J$364,2,FALSE),\"\")","v":""},{"$f":"IFERROR(VLOOKUP(B912,[2]Sheet4!$F$2:$J$364,3,FALSE),\"\")","v":""},{"$f":"IFERROR(VLOOKUP(B912,[2]Sheet4!$F$2:$J$364,4,FALSE),\"\")","v":""},{"$f":"IFERROR(VLOOKUP(B912,[2]Sheet4!$F$2:$J$364,5,FALSE),\"\")","v":""}]
[null,null,{"$f":"IFERROR(VLOOKUP(B913,[2]Sheet4!$F$2:$J$364,2,FALSE),\"\")","v":""},{"$f":"IFERROR(VLOOKUP(B913,[2]Sheet4!$F$2:$J$364,3,FALSE),\"\")","v":""},{"$f":"IFERROR(VLOOKUP(B913,[2]Sheet4!$F$2:$J$364,4,FALSE),\"\")","v":""},{"$f":"IFERROR(VLOOKUP(B913,[2]Sheet4!$F$2:$J$364,5,FALSE),\"\")","v":""}]
[null,null,{"$f":"IFERROR(VLOOKUP(B914,[2]Sheet4!$F$2:$J$364,2,FALSE),\"\")","v":""},{"$f":"IFERROR(VLOOKUP(B914,[2]Sheet4!$F$2:$J$364,3,FALSE),\"\")","v":""},{"$f":"IFERROR(VLOOKUP(B914,[2]Sheet4!$F$2:$J$364,4,FALSE),\"\")","v":""},{"$f":"IFERROR(VLOOKUP(B914,[2]Sheet4!$F$2:$J$364,5,FALSE),\"\")","v":""}]
[null,null,{"$f":"IFERROR(VLOOKUP(B915,[2]Sheet4!$F$2:$J$364,2,FALSE),\"\")","v":""},{"$f":"IFERROR(VLOOKUP(B915,[2]Sheet4!$F$2:$J$364,3,FALSE),\"\")","v":""},{"$f":"IFERROR(VLOOKUP(B915,[2]Sheet4!$F$2:$J$364,4,FALSE),\"\")","v":""},{"$f":"IFERROR(VLOOKUP(B915,[2]Sheet4!$F$2:$J$364,5,FALSE),\"\")","v":""}]
[null,null,{"$f":"IFERROR(VLOOKUP(B916,[2]Sheet4!$F$2:$J$364,2,FALSE),\"\")","v":""},{"$f":"IFERROR(VLOOKUP(B916,[2]Sheet4!$F$2:$J$364,3,FALSE),\"\")","v":""},{"$f":"IFERROR(VLOOKUP(B916,[2]Sheet4!$F$2:$J$364,4,FALSE),\"\")","v":""},{"$f":"IFERROR(VLOOKUP(B916,[2]Sheet4!$F$2:$J$364,5,FALSE),\"\")","v":""}]
[null,null,{"$f":"IFERROR(VLOOKUP(B917,[2]Sheet4!$F$2:$J$364,2,FALSE),\"\")","v":""},{"$f":"IFERROR(VLOOKUP(B917,[2]Sheet4!$F$2:$J$364,3,FALSE),\"\")","v":""},{"$f":"IFERROR(VLOOKUP(B917,[2]Sheet4!$F$2:$J$364,4,FALSE),\"\")","v":""},{"$f":"IFERROR(VLOOKUP(B917,[2]Sheet4!$F$2:$J$364,5,FALSE),\"\")","v":""}]
[null,null,{"$f":"IFERROR(VLOOKUP(B918,[2]Sheet4!$F$2:$J$364,2,FALSE),\"\")","v":""},{"$f":"IFERROR(VLOOKUP(B918,[2]Sheet4!$F$2:$J$364,3,FALSE),\"\")","v":""},{"$f":"IFERROR(VLOOKUP(B918,[2]Sheet4!$F$2:$J$364,4,FALSE),\"\")","v":""},{"$f":"IFERROR(VLOOKUP(B918,[2]Sheet4!$F$2:$J$364,5,FALSE),\"\")","v":""}]
[null,null,{"$f":"IFERROR(VLOOKUP(B919,[2]Sheet4!$F$2:$J$364,2,FALSE),\"\")","v":""},{"$f":"IFERROR(VLOOKUP(B919,[2]Sheet4!$F$2:$J$364,3,FALSE),\"\")","v":""},{"$f":"IFERROR(VLOOKUP(B919,[2]Sheet4!$F$2:$J$364,4,FALSE),\"\")","v":""},{"$f":"IFERROR(VLOOKUP(B919,[2]Sheet4!$F$2:$J$364,5,FALSE),\"\")","v":""}]
[null,null,{"$f":"IFERROR(VLOOKUP(B920,[2]Sheet4!$F$2:$J$364,2,FALSE),\"\")","v":""},{"$f":"IFERROR(VLOOKUP(B920,[2]Sheet4!$F$2:$J$364,3,FALSE),\"\")","v":""},{"$f":"IFERROR(VLOOKUP(B920,[2]Sheet4!$F$2:$J$364,4,FALSE),\"\")","v":""},{"$f":"IFERROR(VLOOKUP(B920,[2]Sheet4!$F$2:$J$364,5,FALSE),\"\")","v":""}]
[null,null,{"$f":"IFERROR(VLOOKUP(B921,[2]Sheet4!$F$2:$J$364,2,FALSE),\"\")","v":""},{"$f":"IFERROR(VLOOKUP(B921,[2]Sheet4!$F$2:$J$364,3,FALSE),\"\")","v":""},{"$f":"IFERROR(VLOOKUP(B921,[2]Sheet4!$F$2:$J$364,4,FALSE),\"\")","v":""},{"$f":"IFERROR(VLOOKUP(B921,[2]Sheet4!$F$2:$J$364,5,FALSE),\"\")","v":""}]
[null,null,{"$f":"IFERROR(VLOOKUP(B922,[2]Sheet4!$F$2:$J$364,2,FALSE),\"\")","v":""},{"$f":"IFERROR(VLOOKUP(B922,[2]Sheet4!$F$2:$J$364,3,FALSE),\"\")","v":""},{"$f":"IFERROR(VLOOKUP(B922,[2]Sheet4!$F$2:$J$364,4,FALSE),\"\")","v":""},{"$f":"IFERROR(VLOOKUP(B922,[2]Sheet4!$F$2:$J$364,5,FALSE),\"\")","v":""}]
[null,null,{"$f":"IFERROR(VLOOKUP(B923,[2]Sheet4!$F$2:$J$364,2,FALSE),\"\")","v":""},{"$f":"IFERROR(VLOOKUP(B923,[2]Sheet4!$F$2:$J$364,3,FALSE),\"\")","v":""},{"$f":"IFERROR(VLOOKUP(B923,[2]Sheet4!$F$2:$J$364,4,FALSE),\"\")","v":""},{"$f":"IFERROR(VLOOKUP(B923,[2]Sheet4!$F$2:$J$364,5,FALSE),\"\")","v":""}]
[null,null,{"$f":"IFERROR(VLOOKUP(B924,[2]Sheet4!$F$2:$J$364,2,FALSE),\"\")","v":""},{"$f":"IFERROR(VLOOKUP(B924,[2]Sheet4!$F$2:$J$364,3,FALSE),\"\")","v":""},{"$f":"IFERROR(VLOOKUP(B924,[2]Sheet4!$F$2:$J$364,4,FALSE),\"\")","v":""},{"$f":"IFERROR(VLOOKUP(B924,[2]Sheet4!$F$2:$J$364,5,FALSE),\"\")","v":""}]
[null,null,{"$f":"IFERROR(VLOOKUP(B925,[2]Sheet4!$F$2:$J$364,2,FALSE),\"\")","v":""},{"$f":"IFERROR(VLOOKUP(B925,[2]Sheet4!$F$2:$J$364,3,FALSE),\"\")","v":""},{"$f":"IFERROR(VLOOKUP(B925,[2]Sheet4!$F$2:$J$364,4,FALSE),\"\")","v":""},{"$f":"IFERROR(VLOOKUP(B925,[2]Sheet4!$F$2:$J$364,5,FALSE),\"\")","v":""}]
[null,null,{"$f":"IFERROR(VLOOKUP(B926,[2]Sheet4!$F$2:$J$364,2,FALSE),\"\")","v":""},{"$f":"IFERROR(VLOOKUP(B926,[2]Sheet4!$F$2:$J$364,3,FALSE),\"\")","v":""},{"$f":"IFERROR(VLOOKUP(B926,[2]Sheet4!$F$2:$J$364,4,FALSE),\"\")","v":""},{"$f":"IFERROR(VLOOKUP(B926,[2]Sheet4!$F$2:$J$364,5,FALSE),\"\")","v":""}]
[null,null,{"$f":"IFERROR(VLOOKUP(B927,[2]Sheet4!$F$2:$J$364,2,FALSE),\"\")","v":""},{"$f":"IFERROR(VLOOKUP(B927,[2]Sheet4!$F$2:$J$364,3,FALSE),\"\")","v":""},{"$f":"IFERROR(VLOOKUP(B927,[2]Sheet4!$F$2:$J$364,4,FALSE),\"\")","v":""},{"$f":"IFERROR(VLOOKUP(B927,[2]Sheet4!$F$2:$J$364,5,FALSE),\"\")","v":""}]
[null,null,{"$f":"IFERROR(VLOOKUP(B928,[2]Sheet4!$F$2:$J$364,2,FALSE),\"\")","v":""},{"$f":"IFERROR(VLOOKUP(B928,[2]Sheet4!$F$2:$J$364,3,FALSE),\"\")","v":""},{"$f":"IFERROR(VLOOKUP(B928,[2]Sheet4!$F$2:$J$364,4,FALSE),\"\")","v":""},{"$f":"IFERROR(VLOOKUP(B928,[2]Sheet4!$F$2:$J$364,5,FALSE),\"\")","v":""}]
[null,null,{"$f":"IFERROR(VLOOKUP(B929,[2]Sheet4!$F$2:$J$364,2,FALSE),\"\")","v":""},{"$f":"IFERROR(VLOOKUP(B929,[2]Sheet4!$F$2:$J$364,3,FALSE),\"\")","v":""},{"$f":"IFERROR(VLOOKUP(B929,[2]Sheet4!$F$2:$J$364,4,FALSE),\"\")","v":""},{"$f":"IFERROR(VLOOKUP(B929,[2]Sheet4!$F$2:$J$364,5,FALSE),\"\")","v":""}]
[null,null,{"$f":"IFERROR(VLOOKUP(B930,[2]Sheet4!$F$2:$J$364,2,FALSE),\"\")","v":""},{"$f":"IFERROR(VLOOKUP(B930,[2]Sheet4!$F$2:$J$364,3,FALSE),\"\")","v":""},{"$f":"IFERROR(VLOOKUP(B930,[2]Sheet4!$F$2:$J$364,4,FALSE),\"\")","v":""},{"$f":"IFERROR(VLOOKUP(B930,[2]Sheet4!$F$2:$J$364,5,FALSE),\"\")","v":""}]
[null,null,{"$f":"IFERROR(VLOOKUP(B931,[2]Sheet4!$F$2:$J$364,2,FALSE),\"\")","v":""},{"$f":"IFERROR(VLOOKUP(B931,[2]Sheet4!$F$2:$J$364,3,FALSE),\"\")","v":""},{"$f":"IFERROR(VLOOKUP(B931,[2]Sheet4!$F$2:$J$364,4,FALSE),\"\")","v":""},{"$f":"IFERROR(VLOOKUP(B931,[2]Sheet4!$F$2:$J$364,5,FALSE),\"\")","v":""}]
[null,null,{"$f":"IFERROR(VLOOKUP(B932,[2]Sheet4!$F$2:$J$364,2,FALSE),\"\")","v":""},{"$f":"IFERROR(VLOOKUP(B932,[2]Sheet4!$F$2:$J$364,3,FALSE),\"\")","v":""},{"$f":"IFERROR(VLOOKUP(B932,[2]Sheet4!$F$2:$J$364,4,FALSE),\"\")","v":""},{"$f":"IFERROR(VLOOKUP(B932,[2]Sheet4!$F$2:$J$364,5,FALSE),\"\")","v":""}]
[null,null,{"$f":"IFERROR(VLOOKUP(B933,[2]Sheet4!$F$2:$J$364,2,FALSE),\"\")","v":""},{"$f":"IFERROR(VLOOKUP(B933,[2]Sheet4!$F$2:$J$364,3,FALSE),\"\")","v":""},{"$f":"IFERROR(VLOOKUP(B933,[2]Sheet4!$F$2:$J$364,4,FALSE),\"\")","v":""},{"$f":"IFERROR(VLOOKUP(B933,[2]Sheet4!$F$2:$J$364,5,FALSE),\"\")","v":""}]
[null,null,{"$f":"IFERROR(VLOOKUP(B934,[2]Sheet4!$F$2:$J$364,2,FALSE),\"\")","v":""},{"$f":"IFERROR(VLOOKUP(B934,[2]Sheet4!$F$2:$J$364,3,FALSE),\"\")","v":""},{"$f":"IFERROR(VLOOKUP(B934,[2]Sheet4!$F$2:$J$364,4,FALSE),\"\")","v":""},{"$f":"IFERROR(VLOOKUP(B934,[2]Sheet4!$F$2:$J$364,5,FALSE),\"\")","v":""}]
[null,null,{"$f":"IFERROR(VLOOKUP(B935,[2]Sheet4!$F$2:$J$364,2,FALSE),\"\")","v":""},{"$f":"IFERROR(VLOOKUP(B935,[2]Sheet4!$F$2:$J$364,3,FALSE),\"\")","v":""},{"$f":"IFERROR(VLOOKUP(B935,[2]Sheet4!$F$2:$J$364,4,FALSE),\"\")","v":""},{"$f":"IFERROR(VLOOKUP(B935,[2]Sheet4!$F$2:$J$364,5,FALSE),\"\")","v":""}]
[null,null,{"$f":"IFERROR(VLOOKUP(B936,[2]Sheet4!$F$2:$J$364,2,FALSE),\"\")","v":""},{"$f":"IFERROR(VLOOKUP(B936,[2]Sheet4!$F$2:$J$364,3,FALSE),\"\")","v":""},{"$f":"IFERROR(VLOOKUP(B936,[2]Sheet4!$F$2:$J$364,4,FALSE),\"\")","v":""},{"$f":"IFERROR(VLOOKUP(B936,[2]Sheet4!$F$2:$J$364,5,FALSE),\"\")","v":""}]
[null,null,{"$f":"IFERROR(VLOOKUP(B937,[2]Sheet4!$F$2:$J$364,2,FALSE),\"\")","v":""},{"$f":"IFERROR(VLOOKUP(B937,[2]Sheet4!$F$2:$J$364,3,FALSE),\"\")","v":""},{"$f":"IFERROR(VLOOKUP(B937,[2]Sheet4!$F$2:$J$364,4,FALSE),\"\")","v":""},{"$f":"IFERROR(VLOOKUP(B937,[2]Sheet4!$F$2:$J$364,5,FALSE),\"\")","v":""}]
[null,null,{"$f":"IFERROR(VLOOKUP(B938,[2]Sheet4!$F$2:$J$364,2,FALSE),\"\")","v":""},{"$f":"IFERROR(VLOOKUP(B938,[2]Sheet4!$F$2:$J$364,3,FALSE),\"\")","v":""},{"$f":"IFERROR(VLOOKUP(B938,[2]Sheet4!$F$2:$J$364,4,FALSE),\"\")","v":""},{"$f":"IFERROR(VLOOKUP(B938,[2]Sheet4!$F$2:$J$364,5,FALSE),\"\")","v":""}]
[null,null,{"$f":"IFERROR(VLOOKUP(B939,[2]Sheet4!$F$2:$J$364,2,FALSE),\"\")","v":""},{"$f":"IFERROR(VLOOKUP(B939,[2]Sheet4!$F$2:$J$364,3,FALSE),\"\")","v":""},{"$f":"IFERROR(VLOOKUP(B939,[2]Sheet4!$F$2:$J$364,4,FALSE),\"\")","v":""},{"$f":"IFERROR(VLOOKUP(B939,[2]Sheet4!$F$2:$J$364,5,FALSE),\"\")","v":""}]
[null,null,{"$f":"IFERROR(VLOOKUP(B940,[2]Sheet4!$F$2:$J$364,2,FALSE),\"\")","v":""},{"$f":"IFERROR(VLOOKUP(B940,[2]Sheet4!$F$2:$J$364,3,FALSE),\"\")","v":""},{"$f":"IFERROR(VLOOKUP(B940,[2]Sheet4!$F$2:$J$364,4,FALSE),\"\")","v":""},{"$f":"IFERROR(VLOOKUP(B940,[2]Sheet4!$F$2:$J$364,5,FALSE),\"\")","v":""}]
[null,null,{"$f":"IFERROR(VLOOKUP(B941,[2]Sheet4!$F$2:$J$364,2,FALSE),\"\")","v":""},{"$f":"IFERROR(VLOOKUP(B941,[2]Sheet4!$F$2:$J$364,3,FALSE),\"\")","v":""},{"$f":"IFERROR(VLOOKUP(B941,[2]Sheet4!$F$2:$J$364,4,FALSE),\"\")","v":""},{"$f":"IFERROR(VLOOKUP(B941,[2]Sheet4!$F$2:$J$364,5,FALSE),\"\")","v":""}]
[null,null,{"$f":"IFERROR(VLOOKUP(B942,[2]Sheet4!$F$2:$J$364,2,FALSE),\"\")","v":""},{"$f":"IFERROR(VLOOKUP(B942,[2]Sheet4!$F$2:$J$364,3,FALSE),\"\")","v":""},{"$f":"IFERROR(VLOOKUP(B942,[2]Sheet4!$F$2:$J$364,4,FALSE),\"\")","v":""},{"$f":"IFERROR(VLOOKUP(B942,[2]Sheet4!$F$2:$J$364,5,FALSE),\"\")","v":""}]
[null,null,{"$f":"IFERROR(VLOOKUP(B943,[2]Sheet4!$F$2:$J$364,2,FALSE),\"\")","v":""},{"$f":"IFERROR(VLOOKUP(B943,[2]Sheet4!$F$2:$J$364,3,FALSE),\"\")","v":""},{"$f":"IFERROR(VLOOKUP(B943,[2]Sheet4!$F$2:$J$364,4,FALSE),\"\")","v":""},{"$f":"IFERROR(VLOOKUP(B943,[2]Sheet4!$F$2:$J$364,5,FALSE),\"\")","v":""}]
[null,null,{"$f":"IFERROR(VLOOKUP(B944,[2]Sheet4!$F$2:$J$364,2,FALSE),\"\")","v":""},{"$f":"IFERROR(VLOOKUP(B944,[2]Sheet4!$F$2:$J$364,3,FALSE),\"\")","v":""},{"$f":"IFERROR(VLOOKUP(B944,[2]Sheet4!$F$2:$J$364,4,FALSE),\"\")","v":""},{"$f":"IFERROR(VLOOKUP(B944,[2]Sheet4!$F$2:$J$364,5,FALSE),\"\")","v":""}]
[null,null,{"$f":"IFERROR(VLOOKUP(B945,[2]Sheet4!$F$2:$J$364,2,FALSE),\"\")","v":""},{"$f":"IFERROR(VLOOKUP(B945,[2]Sheet4!$F$2:$J$364,3,FALSE),\"\")","v":""},{"$f":"IFERROR(VLOOKUP(B945,[2]Sheet4!$F$2:$J$364,4,FALSE),\"\")","v":""},{"$f":"IFERROR(VLOOKUP(B945,[2]Sheet4!$F$2:$J$364,5,FALSE),\"\")","v":""}]
[null,null,{"$f":"IFERROR(VLOOKUP(B946,[2]Sheet4!$F$2:$J$364,2,FALSE),\"\")","v":""},{"$f":"IFERROR(VLOOKUP(B946,[2]Sheet4!$F$2:$J$364,3,FALSE),\"\")","v":""},{"$f":"IFERROR(VLOOKUP(B946,[2]Sheet4!$F$2:$J$364,4,FALSE),\"\")","v":""},{"$f":"IFERROR(VLOOKUP(B946,[2]Sheet4!$F$2:$J$364,5,FALSE),\"\")","v":""}]
[null,null,{"$f":"IFERROR(VLOOKUP(B947,[2]Sheet4!$F$2:$J$364,2,FALSE),\"\")","v":""},{"$f":"IFERROR(VLOOKUP(B947,[2]Sheet4!$F$2:$J$364,3,FALSE),\"\")","v":""},{"$f":"IFERROR(VLOOKUP(B947,[2]Sheet4!$F$2:$J$364,4,FALSE),\"\")","v":""},{"$f":"IFERROR(VLOOKUP(B947,[2]Sheet4!$F$2:$J$364,5,FALSE),\"\")","v":""}]
[null,null,{"$f":"IFERROR(VLOOKUP(B948,[2]Sheet4!$F$2:$J$364,2,FALSE),\"\")","v":""},{"$f":"IFERROR(VLOOKUP(B948,[2]Sheet4!$F$2:$J$364,3,FALSE),\"\")","v":""},{"$f":"IFERROR(VLOOKUP(B948,[2]Sheet4!$F$2:$J$364,4,FALSE),\"\")","v":""},{"$f":"IFERROR(VLOOKUP(B948,[2]Sheet4!$F$2:$J$364,5,FALSE),\"\")","v":""}]
[null,null,{"$f":"IFERROR(VLOOKUP(B949,[2]Sheet4!$F$2:$J$364,2,FALSE),\"\")","v":""},{"$f":"IFERROR(VLOOKUP(B949,[2]Sheet4!$F$2:$J$364,3,FALSE),\"\")","v":""},{"$f":"IFERROR(VLOOKUP(B949,[2]Sheet4!$F$2:$J$364,4,FALSE),\"\")","v":""},{"$f":"IFERROR(VLOOKUP(B949,[2]Sheet4!$F$2:$J$364,5,FALSE),\"\")","v":""}]
[null,null,{"$f":"IFERROR(VLOOKUP(B950,[2]Sheet4!$F$2:$J$364,2,FALSE),\"\")","v":""},{"$f":"IFERROR(VLOOKUP(B950,[2]Sheet4!$F$2:$J$364,3,FALSE),\"\")","v":""},{"$f":"IFERROR(VLOOKUP(B950,[2]Sheet4!$F$2:$J$364,4,FALSE),\"\")","v":""},{"$f":"IFERROR(VLOOKUP(B950,[2]Sheet4!$F$2:$J$364,5,FALSE),\"\")","v":""}]
[null,null,{"$f":"IFERROR(VLOOKUP(B951,[2]Sheet4!$F$2:$J$364,2,FALSE),\"\")","v":""},{"$f":"IFERROR(VLOOKUP(B951,[2]Sheet4!$F$2:$J$364,3,FALSE),\"\")","v":""},{"$f":"IFERROR(VLOOKUP(B951,[2]Sheet4!$F$2:$J$364,4,FALSE),\"\")","v":""},{"$f":"IFERROR(VLOOKUP(B951,[2]Sheet4!$F$2:$J$364,5,FALSE),\"\")","v":""}]
[null,null,{"$f":"IFERROR(VLOOKUP(B952,[2]Sheet4!$F$2:$J$364,2,FALSE),\"\")","v":""},{"$f":"IFERROR(VLOOKUP(B952,[2]Sheet4!$F$2:$J$364,3,FALSE),\"\")","v":""},{"$f":"IFERROR(VLOOKUP(B952,[2]Sheet4!$F$2:$J$364,4,FALSE),\"\")","v":""},{"$f":"IFERROR(VLOOKUP(B952,[2]Sheet4!$F$2:$J$364,5,FALSE),\"\")","v":""}]
[null,null,{"$f":"IFERROR(VLOOKUP(B953,[2]Sheet4!$F$2:$J$364,2,FALSE),\"\")","v":""},{"$f":"IFERROR(VLOOKUP(B953,[2]Sheet4!$F$2:$J$364,3,FALSE),\"\")","v":""},{"$f":"IFERROR(VLOOKUP(B953,[2]Sheet4!$F$2:$J$364,4,FALSE),\"\")","v":""},{"$f":"IFERROR(VLOOKUP(B953,[2]Sheet4!$F$2:$J$364,5,FALSE),\"\")","v":""}]
[null,null,{"$f":"IFERROR(VLOOKUP(B954,[2]Sheet4!$F$2:$J$364,2,FALSE),\"\")","v":""},{"$f":"IFERROR(VLOOKUP(B954,[2]Sheet4!$F$2:$J$364,3,FALSE),\"\")","v":""},{"$f":"IFERROR(VLOOKUP(B954,[2]Sheet4!$F$2:$J$364,4,FALSE),\"\")","v":""},{"$f":"IFERROR(VLOOKUP(B954,[2]Sheet4!$F$2:$J$364,5,FALSE),\"\")","v":""}]
[null,null,{"$f":"IFERROR(VLOOKUP(B955,[2]Sheet4!$F$2:$J$364,2,FALSE),\"\")","v":""},{"$f":"IFERROR(VLOOKUP(B955,[2]Sheet4!$F$2:$J$364,3,FALSE),\"\")","v":""},{"$f":"IFERROR(VLOOKUP(B955,[2]Sheet4!$F$2:$J$364,4,FALSE),\"\")","v":""},{"$f":"IFERROR(VLOOKUP(B955,[2]Sheet4!$F$2:$J$364,5,FALSE),\"\")","v":""}]
[null,null,{"$f":"IFERROR(VLOOKUP(B956,[2]Sheet4!$F$2:$J$364,2,FALSE),\"\")","v":""},{"$f":"IFERROR(VLOOKUP(B956,[2]Sheet4!$F$2:$J$364,3,FALSE),\"\")","v":""},{"$f":"IFERROR(VLOOKUP(B956,[2]Sheet4!$F$2:$J$364,4,FALSE),\"\")","v":""},{"$f":"IFERROR(VLOOKUP(B956,[2]Sheet4!$F$2:$J$364,5,FALSE),\"\")","v":""}]
[null,null,{"$f":"IFERROR(VLOOKUP(B957,[2]Sheet4!$F$2:$J$364,2,FALSE),\"\")","v":""},{"$f":"IFERROR(VLOOKUP(B957,[2]Sheet4!$F$2:$J$364,3,FALSE),\"\")","v":""},{"$f":"IFERROR(VLOOKUP(B957,[2]Sheet4!$F$2:$J$364,4,FALSE),\"\")","v":""},{"$f":"IFERROR(VLOOKUP(B957,[2]Sheet4!$F$2:$J$364,5,FALSE),\"\")","v":""}]
[null,null,{"$f":"IFERROR(VLOOKUP(B958,[2]Sheet4!$F$2:$J$364,2,FALSE),\"\")","v":""},{"$f":"IFERROR(VLOOKUP(B958,[2]Sheet4!$F$2:$J$364,3,FALSE),\"\")","v":""},{"$f":"IFERROR(VLOOKUP(B958,[2]Sheet4!$F$2:$J$364,4,FALSE),\"\")","v":""},{"$f":"IFERROR(VLOOKUP(B958,[2]Sheet4!$F$2:$J$364,5,FALSE),\"\")","v":""}]
[null,null,{"$f":"IFERROR(VLOOKUP(B959,[2]Sheet4!$F$2:$J$364,2,FALSE),\"\")","v":""},{"$f":"IFERROR(VLOOKUP(B959,[2]Sheet4!$F$2:$J$364,3,FALSE),\"\")","v":""},{"$f":"IFERROR(VLOOKUP(B959,[2]Sheet4!$F$2:$J$364,4,FALSE),\"\")","v":""},{"$f":"IFERROR(VLOOKUP(B959,[2]Sheet4!$F$2:$J$364,5,FALSE),\"\")","v":""}]
[null,null,{"$f":"IFERROR(VLOOKUP(B960,[2]Sheet4!$F$2:$J$364,2,FALSE),\"\")","v":""},{"$f":"IFERROR(VLOOKUP(B960,[2]Sheet4!$F$2:$J$364,3,FALSE),\"\")","v":""},{"$f":"IFERROR(VLOOKUP(B960,[2]Sheet4!$F$2:$J$364,4,FALSE),\"\")","v":""},{"$f":"IFERROR(VLOOKUP(B960,[2]Sheet4!$F$2:$J$364,5,FALSE),\"\")","v":""}]
[null,null,{"$f":"IFERROR(VLOOKUP(B961,[2]Sheet4!$F$2:$J$364,2,FALSE),\"\")","v":""},{"$f":"IFERROR(VLOOKUP(B961,[2]Sheet4!$F$2:$J$364,3,FALSE),\"\")","v":""},{"$f":"IFERROR(VLOOKUP(B961,[2]Sheet4!$F$2:$J$364,4,FALSE),\"\")","v":""},{"$f":"IFERROR(VLOOKUP(B961,[2]Sheet4!$F$2:$J$364,5,FALSE),\"\")","v":""}]
[null,null,{"$f":"IFERROR(VLOOKUP(B962,[2]Sheet4!$F$2:$J$364,2,FALSE),\"\")","v":""},{"$f":"IFERROR(VLOOKUP(B962,[2]Sheet4!$F$2:$J$364,3,FALSE),\"\")","v":""},{"$f":"IFERROR(VLOOKUP(B962,[2]Sheet4!$F$2:$J$364,4,FALSE),\"\")","v":""},{"$f":"IFERROR(VLOOKUP(B962,[2]Sheet4!$F$2:$J$364,5,FALSE),\"\")","v":""}]
[null,null,{"$f":"IFERROR(VLOOKUP(B963,[2]Sheet4!$F$2:$J$364,2,FALSE),\"\")","v":""},{"$f":"IFERROR(VLOOKUP(B963,[2]Sheet4!$F$2:$J$364,3,FALSE),\"\")","v":""},{"$f":"IFERROR(VLOOKUP(B963,[2]Sheet4!$F$2:$J$364,4,FALSE),\"\")","v":""},{"$f":"IFERROR(VLOOKUP(B963,[2]Sheet4!$F$2:$J$364,5,FALSE),\"\")","v":""}]
[null,null,{"$f":"IFERROR(VLOOKUP(B964,[2]Sheet4!$F$2:$J$364,2,FALSE),\"\")","v":""},{"$f":"IFERROR(VLOOKUP(B964,[2]Sheet4!$F$2:$J$364,3,FALSE),\"\")","v":""},{"$f":"IFERROR(VLOOKUP(B964,[2]Sheet4!$F$2:$J$364,4,FALSE),\"\")","v":""},{"$f":"IFERROR(VLOOKUP(B964,[2]Sheet4!$F$2:$J$364,5,FALSE),\"\")","v":""}]
[null,null,{"$f":"IFERROR(VLOOKUP(B965,[2]Sheet4!$F$2:$J$364,2,FALSE),\"\")","v":""},{"$f":"IFERROR(VLOOKUP(B965,[2]Sheet4!$F$2:$J$364,3,FALSE),\"\")","v":""},{"$f":"IFERROR(VLOOKUP(B965,[2]Sheet4!$F$2:$J$364,4,FALSE),\"\")","v":""},{"$f":"IFERROR(VLOOKUP(B965,[2]Sheet4!$F$2:$J$364,5,FALSE),\"\")","v":""}]
[null,null,{"$f":"IFERROR(VLOOKUP(B966,[2]Sheet4!$F$2:$J$364,2,FALSE),\"\")","v":""},{"$f":"IFERROR(VLOOKUP(B966,[2]Sheet4!$F$2:$J$364,3,FALSE),\"\")","v":""},{"$f":"IFERROR(VLOOKUP(B966,[2]Sheet4!$F$2:$J$364,4,FALSE),\"\")","v":""},{"$f":"IFERROR(VLOOKUP(B966,[2]Sheet4!$F$2:$J$364,5,FALSE),\"\")","v":""}]
[null,null,{"$f":"IFERROR(VLOOKUP(B967,[2]Sheet4!$F$2:$J$364,2,FALSE),\"\")","v":""},{"$f":"IFERROR(VLOOKUP(B967,[2]Sheet4!$F$2:$J$364,3,FALSE),\"\")","v":""},{"$f":"IFERROR(VLOOKUP(B967,[2]Sheet4!$F$2:$J$364,4,FALSE),\"\")","v":""},{"$f":"IFERROR(VLOOKUP(B967,[2]Sheet4!$F$2:$J$364,5,FALSE),\"\")","v":""}]
[null,null,{"$f":"IFERROR(VLOOKUP(B968,[2]Sheet4!$F$2:$J$364,2,FALSE),\"\")","v":""},{"$f":"IFERROR(VLOOKUP(B968,[2]Sheet4!$F$2:$J$364,3,FALSE),\"\")","v":""},{"$f":"IFERROR(VLOOKUP(B968,[2]Sheet4!$F$2:$J$364,4,FALSE),\"\")","v":""},{"$f":"IFERROR(VLOOKUP(B968,[2]Sheet4!$F$2:$J$364,5,FALSE),\"\")","v":""}]
[null,null,{"$f":"IFERROR(VLOOKUP(B969,[2]Sheet4!$F$2:$J$364,2,FALSE),\"\")","v":""},{"$f":"IFERROR(VLOOKUP(B969,[2]Sheet4!$F$2:$J$364,3,FALSE),\"\")","v":""},{"$f":"IFERROR(VLOOKUP(B969,[2]Sheet4!$F$2:$J$364,4,FALSE),\"\")","v":""},{"$f":"IFERROR(VLOOKUP(B969,[2]Sheet4!$F$2:$J$364,5,FALSE),\"\")","v":""}]
[null,null,{"$f":"IFERROR(VLOOKUP(B970,[2]Sheet4!$F$2:$J$364,2,FALSE),\"\")","v":""},{"$f":"IFERROR(VLOOKUP(B970,[2]Sheet4!$F$2:$J$364,3,FALSE),\"\")","v":""},{"$f":"IFERROR(VLOOKUP(B970,[2]Sheet4!$F$2:$J$364,4,FALSE),\"\")","v":""},{"$f":"IFERROR(VLOOKUP(B970,[2]Sheet4!$F$2:$J$364,5,FALSE),\"\")","v":""}]
[null,null,{"$f":"IFERROR(VLOOKUP(B971,[2]Sheet4!$F$2:$J$364,2,FALSE),\"\")","v":""},{"$f":"IFERROR(VLOOKUP(B971,[2]Sheet4!$F$2:$J$364,3,FALSE),\"\")","v":""},{"$f":"IFERROR(VLOOKUP(B971,[2]Sheet4!$F$2:$J$364,4,FALSE),\"\")","v":""},{"$f":"IFERROR(VLOOKUP(B971,[2]Sheet4!$F$2:$J$364,5,FALSE),\"\")","v":""}]
[null,null,{"$f":"IFERROR(VLOOKUP(B972,[2]Sheet4!$F$2:$J$364,2,FALSE),\"\")","v":""},{"$f":"IFERROR(VLOOKUP(B972,[2]Sheet4!$F$2:$J$364,3,FALSE),\"\")","v":""},{"$f":"IFERROR(VLOOKUP(B972,[2]Sheet4!$F$2:$J$364,4,FALSE),\"\")","v":""},{"$f":"IFERROR(VLOOKUP(B972,[2]Sheet4!$F$2:$J$364,5,FALSE),\"\")","v":""}]
[null,null,{"$f":"IFERROR(VLOOKUP(B973,[2]Sheet4!$F$2:$J$364,2,FALSE),\"\")","v":""},{"$f":"IFERROR(VLOOKUP(B973,[2]Sheet4!$F$2:$J$364,3,FALSE),\"\")","v":""},{"$f":"IFERROR(VLOOKUP(B973,[2]Sheet4!$F$2:$J$364,4,FALSE),\"\")","v":""},{"$f":"IFERROR(VLOOKUP(B973,[2]Sheet4!$F$2:$J$364,5,FALSE),\"\")","v":""}]
[null,null,{"$f":"IFERROR(VLOOKUP(B974,[2]Sheet4!$F$2:$J$364,2,FALSE),\"\")","v":""},{"$f":"IFERROR(VLOOKUP(B974,[2]Sheet4!$F$2:$J$364,3,FALSE),\"\")","v":""},{"$f":"IFERROR(VLOOKUP(B974,[2]Sheet4!$F$2:$J$364,4,FALSE),\"\")","v":""},{"$f":"IFERROR(VLOOKUP(B974,[2]Sheet4!$F$2:$J$364,5,FALSE),\"\")","v":""}]
[null,null,{"$f":"IFERROR(VLOOKUP(B975,[2]Sheet4!$F$2:$J$364,2,FALSE),\"\")","v":""},{"$f":"IFERROR(VLOOKUP(B975,[2]Sheet4!$F$2:$J$364,3,FALSE),\"\")","v":""},{"$f":"IFERROR(VLOOKUP(B975,[2]Sheet4!$F$2:$J$364,4,FALSE),\"\")","v":""},{"$f":"IFERROR(VLOOKUP(B975,[2]Sheet4!$F$2:$J$364,5,FALSE),\"\")","v":""}]
[null,null,{"$f":"IFERROR(VLOOKUP(B976,[2]Sheet4!$F$2:$J$364,2,FALSE),\"\")","v":""},{"$f":"IFERROR(VLOOKUP(B976,[2]Sheet4!$F$2:$J$364,3,FALSE),\"\")","v":""},{"$f":"IFERROR(VLOOKUP(B976,[2]Sheet4!$F$2:$J$364,4,FALSE),\"\")","v":""},{"$f":"IFERROR(VLOOKUP(B976,[2]Sheet4!$F$2:$J$364,5,FALSE),\"\")","v":""}]
[null,null,{"$f":"IFERROR(VLOOKUP(B977,[2]Sheet4!$F$2:$J$364,2,FALSE),\"\")","v":""},{"$f":"IFERROR(VLOOKUP(B977,[2]Sheet4!$F$2:$J$364,3,FALSE),\"\")","v":""},{"$f":"IFERROR(VLOOKUP(B977,[2]Sheet4!$F$2:$J$364,4,FALSE),\"\")","v":""},{"$f":"IFERROR(VLOOKUP(B977,[2]Sheet4!$F$2:$J$364,5,FALSE),\"\")","v":""}]
[null,null,{"$f":"IFERROR(VLOOKUP(B978,[2]Sheet4!$F$2:$J$364,2,FALSE),\"\")","v":""},{"$f":"IFERROR(VLOOKUP(B978,[2]Sheet4!$F$2:$J$364,3,FALSE),\"\")","v":""},{"$f":"IFERROR(VLOOKUP(B978,[2]Sheet4!$F$2:$J$364,4,FALSE),\"\")","v":""},{"$f":"IFERROR(VLOOKUP(B978,[2]Sheet4!$F$2:$J$364,5,FALSE),\"\")","v":""}]
[null,null,{"$f":"IFERROR(VLOOKUP(B979,[2]Sheet4!$F$2:$J$364,2,FALSE),\"\")","v":""},{"$f":"IFERROR(VLOOKUP(B979,[2]Sheet4!$F$2:$J$364,3,FALSE),\"\")","v":""},{"$f":"IFERROR(VLOOKUP(B979,[2]Sheet4!$F$2:$J$364,4,FALSE),\"\")","v":""},{"$f":"IFERROR(VLOOKUP(B979,[2]Sheet4!$F$2:$J$364,5,FALSE),\"\")","v":""}]
[null,null,{"$f":"IFERROR(VLOOKUP(B980,[2]Sheet4!$F$2:$J$364,2,FALSE),\"\")","v":""},{"$f":"IFERROR(VLOOKUP(B980,[2]Sheet4!$F$2:$J$364,3,FALSE),\"\")","v":""},{"$f":"IFERROR(VLOOKUP(B980,[2]Sheet4!$F$2:$J$364,4,FALSE),\"\")","v":""},{"$f":"IFERROR(VLOOKUP(B980,[2]Sheet4!$F$2:$J$364,5,FALSE),\"\")","v":""}]
[null,null,{"$f":"IFERROR(VLOOKUP(B981,[2]Sheet4!$F$2:$J$364,2,FALSE),\"\")","v":""},{"$f":"IFERROR(VLOOKUP(B981,[2]Sheet4!$F$2:$J$364,3,FALSE),\"\")","v":""},{"$f":"IFERROR(VLOOKUP(B981,[2]Sheet4!$F$2:$J$364,4,FALSE),\"\")","v":""},{"$f":"IFERROR(VLOOKUP(B981,[2]Sheet4!$F$2:$J$364,5,FALSE),\"\")","v":""}]
[null,null,{"$f":"IFERROR(VLOOKUP(B982,[2]Sheet4!$F$2:$J$364,2,FALSE),\"\")","v":""},{"$f":"IFERROR(VLOOKUP(B982,[2]Sheet4!$F$2:$J$364,3,FALSE),\"\")","v":""},{"$f":"IFERROR(VLOOKUP(B982,[2]Sheet4!$F$2:$J$364,4,FALSE),\"\")","v":""},{"$f":"IFERROR(VLOOKUP(B982,[2]Sheet4!$F$2:$J$364,5,FALSE),\"\")","v":""}]
[null,null,{"$f":"IFERROR(VLOOKUP(B983,[2]Sheet4!$F$2:$J$364,2,FALSE),\"\")","v":""},{"$f":"IFERROR(VLOOKUP(B983,[2]Sheet4!$F$2:$J$364,3,FALSE),\"\")","v":""},{"$f":"IFERROR(VLOOKUP(B983,[2]Sheet4!$F$2:$J$364,4,FALSE),\"\")","v":""},{"$f":"IFERROR(VLOOKUP(B983,[2]Sheet4!$F$2:$J$364,5,FALSE),\"\")","v":""}]
[null,null,{"$f":"IFERROR(VLOOKUP(B984,[2]Sheet4!$F$2:$J$364,2,FALSE),\"\")","v":""},{"$f":"IFERROR(VLOOKUP(B984,[2]Sheet4!$F$2:$J$364,3,FALSE),\"\")","v":""},{"$f":"IFERROR(VLOOKUP(B984,[2]Sheet4!$F$2:$J$364,4,FALSE),\"\")","v":""},{"$f":"IFERROR(VLOOKUP(B984,[2]Sheet4!$F$2:$J$364,5,FALSE),\"\")","v":""}]
[null,null,{"$f":"IFERROR(VLOOKUP(B985,[2]Sheet4!$F$2:$J$364,2,FALSE),\"\")","v":""},{"$f":"IFERROR(VLOOKUP(B985,[2]Sheet4!$F$2:$J$364,3,FALSE),\"\")","v":""},{"$f":"IFERROR(VLOOKUP(B985,[2]Sheet4!$F$2:$J$364,4,FALSE),\"\")","v":""},{"$f":"IFERROR(VLOOKUP(B985,[2]Sheet4!$F$2:$J$364,5,FALSE),\"\")","v":""}]
[null,null,{"$f":"IFERROR(VLOOKUP(B986,[2]Sheet4!$F$2:$J$364,2,FALSE),\"\")","v":""},{"$f":"IFERROR(VLOOKUP(B986,[2]Sheet4!$F$2:$J$364,3,FALSE),\"\")","v":""},{"$f":"IFERROR(VLOOKUP(B986,[2]Sheet4!$F$2:$J$364,4,FALSE),\"\")","v":""},{"$f":"IFERROR(VLOOKUP(B986,[2]Sheet4!$F$2:$J$364,5,FALSE),\"\")","v":""}]
[null,null,{"$f":"IFERROR(VLOOKUP(B987,[2]Sheet4!$F$2:$J$364,2,FALSE),\"\")","v":""},{"$f":"IFERROR(VLOOKUP(B987,[2]Sheet4!$F$2:$J$364,3,FALSE),\"\")","v":""},{"$f":"IFERROR(VLOOKUP(B987,[2]Sheet4!$F$2:$J$364,4,FALSE),\"\")","v":""},{"$f":"IFERROR(VLOOKUP(B987,[2]Sheet4!$F$2:$J$364,5,FALSE),\"\")","v":""}]
[null,null,{"$f":"IFERROR(VLOOKUP(B988,[2]Sheet4!$F$2:$J$364,2,FALSE),\"\")","v":""},{"$f":"IFERROR(VLOOKUP(B988,[2]Sheet4!$F$2:$J$364,3,FALSE),\"\")","v":""},{"$f":"IFERROR(VLOOKUP(B988,[2]Sheet4!$F$2:$J$364,4,FALSE),\"\")","v":""},{"$f":"IFERROR(VLOOKUP(B988,[2]Sheet4!$F$2:$J$364,5,FALSE),\"\")","v":""}]
[null,null,{"$f":"IFERROR(VLOOKUP(B989,[2]Sheet4!$F$2:$J$364,2,FALSE),\"\")","v":""},{"$f":"IFERROR(VLOOKUP(B989,[2]Sheet4!$F$2:$J$364,3,FALSE),\"\")","v":""},{"$f":"IFERROR(VLOOKUP(B989,[2]Sheet4!$F$2:$J$364,4,FALSE),\"\")","v":""},{"$f":"IFERROR(VLOOKUP(B989,[2]Sheet4!$F$2:$J$364,5,FALSE),\"\")","v":""}]
[null,null,{"$f":"IFERROR(VLOOKUP(B990,[2]Sheet4!$F$2:$J$364,2,FALSE),\"\")","v":""},{"$f":"IFERROR(VLOOKUP(B990,[2]Sheet4!$F$2:$J$364,3,FALSE),\"\")","v":""},{"$f":"IFERROR(VLOOKUP(B990,[2]Sheet4!$F$2:$J$364,4,FALSE),\"\")","v":""},{"$f":"IFERROR(VLOOKUP(B990,[2]Sheet4!$F$2:$J$364,5,FALSE),\"\")","v":""}]
[null,null,{"$f":"IFERROR(VLOOKUP(B991,[2]Sheet4!$F$2:$J$364,2,FALSE),\"\")","v":""},{"$f":"IFERROR(VLOOKUP(B991,[2]Sheet4!$F$2:$J$364,3,FALSE),\"\")","v":""},{"$f":"IFERROR(VLOOKUP(B991,[2]Sheet4!$F$2:$J$364,4,FALSE),\"\")","v":""},{"$f":"IFERROR(VLOOKUP(B991,[2]Sheet4!$F$2:$J$364,5,FALSE),\"\")","v":""}]
[null,null,{"$f":"IFERROR(VLOOKUP(B992,[2]Sheet4!$F$2:$J$364,2,FALSE),\"\")","v":""},{"$f":"IFERROR(VLOOKUP(B992,[2]Sheet4!$F$2:$J$364,3,FALSE),\"\")","v":""},{"$f":"IFERROR(VLOOKUP(B992,[2]Sheet4!$F$2:$J$364,4,FALSE),\"\")","v":""},{"$f":"IFERROR(VLOOKUP(B992,[2]Sheet4!$F$2:$J$364,5,FALSE),\"\")","v":""}]
[null,null,{"$f":"IFERROR(VLOOKUP(B993,[2]Sheet4!$F$2:$J$364,2,FALSE),\"\")","v":""},{"$f":"IFERROR(VLOOKUP(B993,[2]Sheet4!$F$2:$J$364,3,FALSE),\"\")","v":""},{"$f":"IFERROR(VLOOKUP(B993,[2]Sheet4!$F$2:$J$364,4,FALSE),\"\")","v":""},{"$f":"IFERROR(VLOOKUP(B993,[2]Sheet4!$F$2:$J$364,5,FALSE),\"\")","v":""}]
[null,null,{"$f":"IFERROR(VLOOKUP(B994,[2]Sheet4!$F$2:$J$364,2,FALSE),\"\")","v":""},{"$f":"IFERROR(VLOOKUP(B994,[2]Sheet4!$F$2:$J$364,3,FALSE),\"\")","v":""},{"$f":"IFERROR(VLOOKUP(B994,[2]Sheet4!$F$2:$J$364,4,FALSE),\"\")","v":""},{"$f":"IFERROR(VLOOKUP(B994,[2]Sheet4!$F$2:$J$364,5,FALSE),\"\")","v":""}]
[null,null,{"$f":"IFERROR(VLOOKUP(B995,[2]Sheet4!$F$2:$J$364,2,FALSE),\"\")","v":""},{"$f":"IFERROR(VLOOKUP(B995,[2]Sheet4!$F$2:$J$364,3,FALSE),\"\")","v":""},{"$f":"IFERROR(VLOOKUP(B995,[2]Sheet4!$F$2:$J$364,4,FALSE),\"\")","v":""},{"$f":"IFERROR(VLOOKUP(B995,[2]Sheet4!$F$2:$J$364,5,FALSE),\"\")","v":""}]
[null,null,{"$f":"IFERROR(VLOOKUP(B996,[2]Sheet4!$F$2:$J$364,2,FALSE),\"\")","v":""},{"$f":"IFERROR(VLOOKUP(B996,[2]Sheet4!$F$2:$J$364,3,FALSE),\"\")","v":""},{"$f":"IFERROR(VLOOKUP(B996,[2]Sheet4!$F$2:$J$364,4,FALSE),\"\")","v":""},{"$f":"IFERROR(VLOOKUP(B996,[2]Sheet4!$F$2:$J$364,5,FALSE),\"\")","v":""}]
[null,null,{"$f":"IFERROR(VLOOKUP(B997,[2]Sheet4!$F$2:$J$364,2,FALSE),\"\")","v":""},{"$f":"IFERROR(VLOOKUP(B997,[2]Sheet4!$F$2:$J$364,3,FALSE),\"\")","v":""},{"$f":"IFERROR(VLOOKUP(B997,[2]Sheet4!$F$2:$J$364,4,FALSE),\"\")","v":""},{"$f":"IFERROR(VLOOKUP(B997,[2]Sheet4!$F$2:$J$364,5,FALSE),\"\")","v":""}]
[null,null,{"$f":"IFERROR(VLOOKUP(B998,[2]Sheet4!$F$2:$J$364,2,FALSE),\"\")","v":""},{"$f":"IFERROR(VLOOKUP(B998,[2]Sheet4!$F$2:$J$364,3,FALSE),\"\")","v":""},{"$f":"IFERROR(VLOOKUP(B998,[2]Sheet4!$F$2:$J$364,4,FALSE),\"\")","v":""},{"$f":"IFERROR(VLOOKUP(B998,[2]Sheet4!$F$2:$J$364,5,FALSE),\"\")","v":""}]
[null,null,{"$f":"IFERROR(VLOOKUP(B999,[2]Sheet4!$F$2:$J$364,2,FALSE),\"\")","v":""},{"$f":"IFERROR(VLOOKUP(B999,[2]Sheet4!$F$2:$J$364,3,FALSE),\"\")","v":""},{"$f":"IFERROR(VLOOKUP(B999,[2]Sheet4!$F$2:$J$364,4,FALSE),\"\")","v":""},{"$f":"IFERROR(VLOOKUP(B999,[2]Sheet4!$F$2:$J$364,5,FALSE),\"\")","v":""}]
[null,null,{"$f":"IFERROR(VLOOKUP(B1000,[2]Sheet4!$F$2:$J$364,2,FALSE),\"\")","v":""},{"$f":"IFERROR(VLOOKUP(B1000,[2]Sheet4!$F$2:$J$364,3,FALSE),\"\")","v":""},{"$f":"IFERROR(VLOOKUP(B1000,[2]Sheet4!$F$2:$J$364,4,FALSE),\"\")","v":""},{"$f":"IFERROR(VLOOKUP(B1000,[2]Sheet4!$F$2:$J$364,5,FALSE),\"\")","v":""}]
[null,null,{"$f":"IFERROR(VLOOKUP(B1001,[2]Sheet4!$F$2:$J$364,2,FALSE),\"\")","v":""},{"$f":"IFERROR(VLOOKUP(B1001,[2]Sheet4!$F$2:$J$364,3,FALSE),\"\")","v":""},{"$f":"IFERROR(VLOOKUP(B1001,[2]Sheet4!$F$2:$J$364,4,FALSE),\"\")","v":""},{"$f":"IFERROR(VLOOKUP(B1001,[2]Sheet4!$F$2:$J$364,5,FALSE),\"\")","v":""}]
[null,null,{"$f":"IFERROR(VLOOKUP(B1002,[2]Sheet4!$F$2:$J$364,2,FALSE),\"\")","v":""},{"$f":"IFERROR(VLOOKUP(B1002,[2]Sheet4!$F$2:$J$364,3,FALSE),\"\")","v":""},{"$f":"IFERROR(VLOOKUP(B1002,[2]Sheet4!$F$2:$J$364,4,FALSE),\"\")","v":""},{"$f":"IFERROR(VLOOKUP(B1002,[2]Sheet4!$F$2:$J$364,5,FALSE),\"\")","v":""}]
[null,null,{"$f":"IFERROR(VLOOKUP(B1003,[2]Sheet4!$F$2:$J$364,2,FALSE),\"\")","v":""},{"$f":"IFERROR(VLOOKUP(B1003,[2]Sheet4!$F$2:$J$364,3,FALSE),\"\")","v":""},{"$f":"IFERROR(VLOOKUP(B1003,[2]Sheet4!$F$2:$J$364,4,FALSE),\"\")","v":""},{"$f":"IFERROR(VLOOKUP(B1003,[2]Sheet4!$F$2:$J$364,5,FALSE),\"\")","v":""}]
[null,null,{"$f":"IFERROR(VLOOKUP(B1004,[2]Sheet4!$F$2:$J$364,2,FALSE),\"\")","v":""},{"$f":"IFERROR(VLOOKUP(B1004,[2]Sheet4!$F$2:$J$364,3,FALSE),\"\")","v":""},{"$f":"IFERROR(VLOOKUP(B1004,[2]Sheet4!$F$2:$J$364,4,FALSE),\"\")","v":""},{"$f":"IFERROR(VLOOKUP(B1004,[2]Sheet4!$F$2:$J$364,5,FALSE),\"\")","v":""}]
[null,null,{"$f":"IFERROR(VLOOKUP(B1005,[2]Sheet4!$F$2:$J$364,2,FALSE),\"\")","v":""},{"$f":"IFERROR(VLOOKUP(B1005,[2]Sheet4!$F$2:$J$364,3,FALSE),\"\")","v":""},{"$f":"IFERROR(VLOOKUP(B1005,[2]Sheet4!$F$2:$J$364,4,FALSE),\"\")","v":""},{"$f":"IFERROR(VLOOKUP(B1005,[2]Sheet4!$F$2:$J$364,5,FALSE),\"\")","v":""}]
[null,null,{"$f":"IFERROR(VLOOKUP(B1006,[2]Sheet4!$F$2:$J$364,2,FALSE),\"\")","v":""},{"$f":"IFERROR(VLOOKUP(B1006,[2]Sheet4!$F$2:$J$364,3,FALSE),\"\")","v":""},{"$f":"IFERROR(VLOOKUP(B1006,[2]Sheet4!$F$2:$J$364,4,FALSE),\"\")","v":""},{"$f":"IFERROR(VLOOKUP(B1006,[2]Sheet4!$F$2:$J$364,5,FALSE),\"\")","v":""}]
[null,null,{"$f":"IFERROR(VLOOKUP(B1007,[2]Sheet4!$F$2:$J$364,2,FALSE),\"\")","v":""},{"$f":"IFERROR(VLOOKUP(B1007,[2]Sheet4!$F$2:$J$364,3,FALSE),\"\")","v":""},{"$f":"IFERROR(VLOOKUP(B1007,[2]Sheet4!$F$2:$J$364,4,FALSE),\"\")","v":""},{"$f":"IFERROR(VLOOKUP(B1007,[2]Sheet4!$F$2:$J$364,5,FALSE),\"\")","v":""}]
[null,null,{"$f":"IFERROR(VLOOKUP(B1008,[2]Sheet4!$F$2:$J$364,2,FALSE),\"\")","v":""},{"$f":"IFERROR(VLOOKUP(B1008,[2]Sheet4!$F$2:$J$364,3,FALSE),\"\")","v":""},{"$f":"IFERROR(VLOOKUP(B1008,[2]Sheet4!$F$2:$J$364,4,FALSE),\"\")","v":""},{"$f":"IFERROR(VLOOKUP(B1008,[2]Sheet4!$F$2:$J$364,5,FALSE),\"\")","v":""}]
[null,null,{"$f":"IFERROR(VLOOKUP(B1009,[2]Sheet4!$F$2:$J$364,2,FALSE),\"\")","v":""},{"$f":"IFERROR(VLOOKUP(B1009,[2]Sheet4!$F$2:$J$364,3,FALSE),\"\")","v":""},{"$f":"IFERROR(VLOOKUP(B1009,[2]Sheet4!$F$2:$J$364,4,FALSE),\"\")","v":""},{"$f":"IFERROR(VLOOKUP(B1009,[2]Sheet4!$F$2:$J$364,5,FALSE),\"\")","v":""}]
[null,null,{"$f":"IFERROR(VLOOKUP(B1010,[2]Sheet4!$F$2:$J$364,2,FALSE),\"\")","v":""},{"$f":"IFERROR(VLOOKUP(B1010,[2]Sheet4!$F$2:$J$364,3,FALSE),\"\")","v":""},{"$f":"IFERROR(VLOOKUP(B1010,[2]Sheet4!$F$2:$J$364,4,FALSE),\"\")","v":""},{"$f":"IFERROR(VLOOKUP(B1010,[2]Sheet4!$F$2:$J$364,5,FALSE),\"\")","v":""}]
[null,null,{"$f":"IFERROR(VLOOKUP(B1011,[2]Sheet4!$F$2:$J$364,2,FALSE),\"\")","v":""},{"$f":"IFERROR(VLOOKUP(B1011,[2]Sheet4!$F$2:$J$364,3,FALSE),\"\")","v":""},{"$f":"IFERROR(VLOOKUP(B1011,[2]Sheet4!$F$2:$J$364,4,FALSE),\"\")","v":""},{"$f":"IFERROR(VLOOKUP(B1011,[2]Sheet4!$F$2:$J$364,5,FALSE),\"\")","v":""}]
[null,null,{"$f":"IFERROR(VLOOKUP(B1012,[2]Sheet4!$F$2:$J$364,2,FALSE),\"\")","v":""},{"$f":"IFERROR(VLOOKUP(B1012,[2]Sheet4!$F$2:$J$364,3,FALSE),\"\")","v":""},{"$f":"IFERROR(VLOOKUP(B1012,[2]Sheet4!$F$2:$J$364,4,FALSE),\"\")","v":""},{"$f":"IFERROR(VLOOKUP(B1012,[2]Sheet4!$F$2:$J$364,5,FALSE),\"\")","v":""}]
[null,null,{"$f":"IFERROR(VLOOKUP(B1013,[2]Sheet4!$F$2:$J$364,2,FALSE),\"\")","v":""},{"$f":"IFERROR(VLOOKUP(B1013,[2]Sheet4!$F$2:$J$364,3,FALSE),\"\")","v":""},{"$f":"IFERROR(VLOOKUP(B1013,[2]Sheet4!$F$2:$J$364,4,FALSE),\"\")","v":""},{"$f":"IFERROR(VLOOKUP(B1013,[2]Sheet4!$F$2:$J$364,5,FALSE),\"\")","v":""}]
[null,null,{"$f":"IFERROR(VLOOKUP(B1014,[2]Sheet4!$F$2:$J$364,2,FALSE),\"\")","v":""},{"$f":"IFERROR(VLOOKUP(B1014,[2]Sheet4!$F$2:$J$364,3,FALSE),\"\")","v":""},{"$f":"IFERROR(VLOOKUP(B1014,[2]Sheet4!$F$2:$J$364,4,FALSE),\"\")","v":""},{"$f":"IFERROR(VLOOKUP(B1014,[2]Sheet4!$F$2:$J$364,5,FALSE),\"\")","v":""}]
[null,null,{"$f":"IFERROR(VLOOKUP(B1015,[2]Sheet4!$F$2:$J$364,2,FALSE),\"\")","v":""},{"$f":"IFERROR(VLOOKUP(B1015,[2]Sheet4!$F$2:$J$364,3,FALSE),\"\")","v":""},{"$f":"IFERROR(VLOOKUP(B1015,[2]Sheet4!$F$2:$J$364,4,FALSE),\"\")","v":""},{"$f":"IFERROR(VLOOKUP(B1015,[2]Sheet4!$F$2:$J$364,5,FALSE),\"\")","v":""}]
[null,null,{"$f":"IFERROR(VLOOKUP(B1016,[2]Sheet4!$F$2:$J$364,2,FALSE),\"\")","v":""},{"$f":"IFERROR(VLOOKUP(B1016,[2]Sheet4!$F$2:$J$364,3,FALSE),\"\")","v":""},{"$f":"IFERROR(VLOOKUP(B1016,[2]Sheet4!$F$2:$J$364,4,FALSE),\"\")","v":""},{"$f":"IFERROR(VLOOKUP(B1016,[2]Sheet4!$F$2:$J$364,5,FALSE),\"\")","v":""}]
[null,null,{"$f":"IFERROR(VLOOKUP(B1017,[2]Sheet4!$F$2:$J$364,2,FALSE),\"\")","v":""},{"$f":"IFERROR(VLOOKUP(B1017,[2]Sheet4!$F$2:$J$364,3,FALSE),\"\")","v":""},{"$f":"IFERROR(VLOOKUP(B1017,[2]Sheet4!$F$2:$J$364,4,FALSE),\"\")","v":""},{"$f":"IFERROR(VLOOKUP(B1017,[2]Sheet4!$F$2:$J$364,5,FALSE),\"\")","v":""}]
[null,null,{"$f":"IFERROR(VLOOKUP(B1018,[2]Sheet4!$F$2:$J$364,2,FALSE),\"\")","v":""},{"$f":"IFERROR(VLOOKUP(B1018,[2]Sheet4!$F$2:$J$364,3,FALSE),\"\")","v":""},{"$f":"IFERROR(VLOOKUP(B1018,[2]Sheet4!$F$2:$J$364,4,FALSE),\"\")","v":""},{"$f":"IFERROR(VLOOKUP(B1018,[2]Sheet4!$F$2:$J$364,5,FALSE),\"\")","v":""}]
[null,null,{"$f":"IFERROR(VLOOKUP(B1019,[2]Sheet4!$F$2:$J$364,2,FALSE),\"\")","v":""},{"$f":"IFERROR(VLOOKUP(B1019,[2]Sheet4!$F$2:$J$364,3,FALSE),\"\")","v":""},{"$f":"IFERROR(VLOOKUP(B1019,[2]Sheet4!$F$2:$J$364,4,FALSE),\"\")","v":""},{"$f":"IFERROR(VLOOKUP(B1019,[2]Sheet4!$F$2:$J$364,5,FALSE),\"\")","v":""}]
[null,null,{"$f":"IFERROR(VLOOKUP(B1020,[2]Sheet4!$F$2:$J$364,2,FALSE),\"\")","v":""},{"$f":"IFERROR(VLOOKUP(B1020,[2]Sheet4!$F$2:$J$364,3,FALSE),\"\")","v":""},{"$f":"IFERROR(VLOOKUP(B1020,[2]Sheet4!$F$2:$J$364,4,FALSE),\"\")","v":""},{"$f":"IFERROR(VLOOKUP(B1020,[2]Sheet4!$F$2:$J$364,5,FALSE),\"\")","v":""}]
[null,null,{"$f":"IFERROR(VLOOKUP(B1021,[2]Sheet4!$F$2:$J$364,2,FALSE),\"\")","v":""},{"$f":"IFERROR(VLOOKUP(B1021,[2]Sheet4!$F$2:$J$364,3,FALSE),\"\")","v":""},{"$f":"IFERROR(VLOOKUP(B1021,[2]Sheet4!$F$2:$J$364,4,FALSE),\"\")","v":""},{"$f":"IFERROR(VLOOKUP(B1021,[2]Sheet4!$F$2:$J$364,5,FALSE),\"\")","v":""}]
[null,null,{"$f":"IFERROR(VLOOKUP(B1022,[2]Sheet4!$F$2:$J$364,2,FALSE),\"\")","v":""},{"$f":"IFERROR(VLOOKUP(B1022,[2]Sheet4!$F$2:$J$364,3,FALSE),\"\")","v":""},{"$f":"IFERROR(VLOOKUP(B1022,[2]Sheet4!$F$2:$J$364,4,FALSE),\"\")","v":""},{"$f":"IFERROR(VLOOKUP(B1022,[2]Sheet4!$F$2:$J$364,5,FALSE),\"\")","v":""}]
[null,null,{"$f":"IFERROR(VLOOKUP(B1023,[2]Sheet4!$F$2:$J$364,2,FALSE),\"\")","v":""},{"$f":"IFERROR(VLOOKUP(B1023,[2]Sheet4!$F$2:$J$364,3,FALSE),\"\")","v":""},{"$f":"IFERROR(VLOOKUP(B1023,[2]Sheet4!$F$2:$J$364,4,FALSE),\"\")","v":""},{"$f":"IFERROR(VLOOKUP(B1023,[2]Sheet4!$F$2:$J$364,5,FALSE),\"\")","v":""}]
[null,null,{"$f":"IFERROR(VLOOKUP(B1024,[2]Sheet4!$F$2:$J$364,2,FALSE),\"\")","v":""},{"$f":"IFERROR(VLOOKUP(B1024,[2]Sheet4!$F$2:$J$364,3,FALSE),\"\")","v":""},{"$f":"IFERROR(VLOOKUP(B1024,[2]Sheet4!$F$2:$J$364,4,FALSE),\"\")","v":""},{"$f":"IFERROR(VLOOKUP(B1024,[2]Sheet4!$F$2:$J$364,5,FALSE),\"\")","v":""}]
[null,null,{"$f":"IFERROR(VLOOKUP(B1025,[2]Sheet4!$F$2:$J$364,2,FALSE),\"\")","v":""},{"$f":"IFERROR(VLOOKUP(B1025,[2]Sheet4!$F$2:$J$364,3,FALSE),\"\")","v":""},{"$f":"IFERROR(VLOOKUP(B1025,[2]Sheet4!$F$2:$J$364,4,FALSE),\"\")","v":""},{"$f":"IFERROR(VLOOKUP(B1025,[2]Sheet4!$F$2:$J$364,5,FALSE),\"\")","v":""}]
[null,null,{"$f":"IFERROR(VLOOKUP(B1026,[2]Sheet4!$F$2:$J$364,2,FALSE),\"\")","v":""},{"$f":"IFERROR(VLOOKUP(B1026,[2]Sheet4!$F$2:$J$364,3,FALSE),\"\")","v":""},{"$f":"IFERROR(VLOOKUP(B1026,[2]Sheet4!$F$2:$J$364,4,FALSE),\"\")","v":""},{"$f":"IFERROR(VLOOKUP(B1026,[2]Sheet4!$F$2:$J$364,5,FALSE),\"\")","v":""}]
[null,null,{"$f":"IFERROR(VLOOKUP(B1027,[2]Sheet4!$F$2:$J$364,2,FALSE),\"\")","v":""},{"$f":"IFERROR(VLOOKUP(B1027,[2]Sheet4!$F$2:$J$364,3,FALSE),\"\")","v":""},{"$f":"IFERROR(VLOOKUP(B1027,[2]Sheet4!$F$2:$J$364,4,FALSE),\"\")","v":""},{"$f":"IFERROR(VLOOKUP(B1027,[2]Sheet4!$F$2:$J$364,5,FALSE),\"\")","v":""}]
[null,null,{"$f":"IFERROR(VLOOKUP(B1028,[2]Sheet4!$F$2:$J$364,2,FALSE),\"\")","v":""},{"$f":"IFERROR(VLOOKUP(B1028,[2]Sheet4!$F$2:$J$364,3,FALSE),\"\")","v":""},{"$f":"IFERROR(VLOOKUP(B1028,[2]Sheet4!$F$2:$J$364,4,FALSE),\"\")","v":""},{"$f":"IFERROR(VLOOKUP(B1028,[2]Sheet4!$F$2:$J$364,5,FALSE),\"\")","v":""}]
[null,null,{"$f":"IFERROR(VLOOKUP(B1029,[2]Sheet4!$F$2:$J$364,2,FALSE),\"\")","v":""},{"$f":"IFERROR(VLOOKUP(B1029,[2]Sheet4!$F$2:$J$364,3,FALSE),\"\")","v":""},{"$f":"IFERROR(VLOOKUP(B1029,[2]Sheet4!$F$2:$J$364,4,FALSE),\"\")","v":""},{"$f":"IFERROR(VLOOKUP(B1029,[2]Sheet4!$F$2:$J$364,5,FALSE),\"\")","v":""}]
[null,null,{"$f":"IFERROR(VLOOKUP(B1030,[2]Sheet4!$F$2:$J$364,2,FALSE),\"\")","v":""},{"$f":"IFERROR(VLOOKUP(B1030,[2]Sheet4!$F$2:$J$364,3,FALSE),\"\")","v":""},{"$f":"IFERROR(VLOOKUP(B1030,[2]Sheet4!$F$2:$J$364,4,FALSE),\"\")","v":""},{"$f":"IFERROR(VLOOKUP(B1030,[2]Sheet4!$F$2:$J$364,5,FALSE),\"\")","v":""}]
[null,null,{"$f":"IFERROR(VLOOKUP(B1031,[2]Sheet4!$F$2:$J$364,2,FALSE),\"\")","v":""},{"$f":"IFERROR(VLOOKUP(B1031,[2]Sheet4!$F$2:$J$364,3,FALSE),\"\")","v":""},{"$f":"IFERROR(VLOOKUP(B1031,[2]Sheet4!$F$2:$J$364,4,FALSE),\"\")","v":""},{"$f":"IFERROR(VLOOKUP(B1031,[2]Sheet4!$F$2:$J$364,5,FALSE),\"\")","v":""}]
[null,null,{"$f":"IFERROR(VLOOKUP(B1032,[2]Sheet4!$F$2:$J$364,2,FALSE),\"\")","v":""},{"$f":"IFERROR(VLOOKUP(B1032,[2]Sheet4!$F$2:$J$364,3,FALSE),\"\")","v":""},{"$f":"IFERROR(VLOOKUP(B1032,[2]Sheet4!$F$2:$J$364,4,FALSE),\"\")","v":""},{"$f":"IFERROR(VLOOKUP(B1032,[2]Sheet4!$F$2:$J$364,5,FALSE),\"\")","v":""}]
[null,null,{"$f":"IFERROR(VLOOKUP(B1033,[2]Sheet4!$F$2:$J$364,2,FALSE),\"\")","v":""},{"$f":"IFERROR(VLOOKUP(B1033,[2]Sheet4!$F$2:$J$364,3,FALSE),\"\")","v":""},{"$f":"IFERROR(VLOOKUP(B1033,[2]Sheet4!$F$2:$J$364,4,FALSE),\"\")","v":""},{"$f":"IFERROR(VLOOKUP(B1033,[2]Sheet4!$F$2:$J$364,5,FALSE),\"\")","v":""}]
[null,null,{"$f":"IFERROR(VLOOKUP(B1034,[2]Sheet4!$F$2:$J$364,2,FALSE),\"\")","v":""},{"$f":"IFERROR(VLOOKUP(B1034,[2]Sheet4!$F$2:$J$364,3,FALSE),\"\")","v":""},{"$f":"IFERROR(VLOOKUP(B1034,[2]Sheet4!$F$2:$J$364,4,FALSE),\"\")","v":""},{"$f":"IFERROR(VLOOKUP(B1034,[2]Sheet4!$F$2:$J$364,5,FALSE),\"\")","v":""}]
[null,null,{"$f":"IFERROR(VLOOKUP(B1035,[2]Sheet4!$F$2:$J$364,2,FALSE),\"\")","v":""},{"$f":"IFERROR(VLOOKUP(B1035,[2]Sheet4!$F$2:$J$364,3,FALSE),\"\")","v":""},{"$f":"IFERROR(VLOOKUP(B1035,[2]Sheet4!$F$2:$J$364,4,FALSE),\"\")","v":""},{"$f":"IFERROR(VLOOKUP(B1035,[2]Sheet4!$F$2:$J$364,5,FALSE),\"\")","v":""}]
[null,null,{"$f":"IFERROR(VLOOKUP(B1036,[2]Sheet4!$F$2:$J$364,2,FALSE),\"\")","v":""},{"$f":"IFERROR(VLOOKUP(B1036,[2]Sheet4!$F$2:$J$364,3,FALSE),\"\")","v":""},{"$f":"IFERROR(VLOOKUP(B1036,[2]Sheet4!$F$2:$J$364,4,FALSE),\"\")","v":""},{"$f":"IFERROR(VLOOKUP(B1036,[2]Sheet4!$F$2:$J$364,5,FALSE),\"\")","v":""}]
[null,null,{"$f":"IFERROR(VLOOKUP(B1037,[2]Sheet4!$F$2:$J$364,2,FALSE),\"\")","v":""},{"$f":"IFERROR(VLOOKUP(B1037,[2]Sheet4!$F$2:$J$364,3,FALSE),\"\")","v":""},{"$f":"IFERROR(VLOOKUP(B1037,[2]Sheet4!$F$2:$J$364,4,FALSE),\"\")","v":""},{"$f":"IFERROR(VLOOKUP(B1037,[2]Sheet4!$F$2:$J$364,5,FALSE),\"\")","v":""}]
[null,null,{"$f":"IFERROR(VLOOKUP(B1038,[2]Sheet4!$F$2:$J$364,2,FALSE),\"\")","v":""},{"$f":"IFERROR(VLOOKUP(B1038,[2]Sheet4!$F$2:$J$364,3,FALSE),\"\")","v":""},{"$f":"IFERROR(VLOOKUP(B1038,[2]Sheet4!$F$2:$J$364,4,FALSE),\"\")","v":""},{"$f":"IFERROR(VLOOKUP(B1038,[2]Sheet4!$F$2:$J$364,5,FALSE),\"\")","v":""}]
[null,null,{"$f":"IFERROR(VLOOKUP(B1039,[2]Sheet4!$F$2:$J$364,2,FALSE),\"\")","v":""},{"$f":"IFERROR(VLOOKUP(B1039,[2]Sheet4!$F$2:$J$364,3,FALSE),\"\")","v":""},{"$f":"IFERROR(VLOOKUP(B1039,[2]Sheet4!$F$2:$J$364,4,FALSE),\"\")","v":""},{"$f":"IFERROR(VLOOKUP(B1039,[2]Sheet4!$F$2:$J$364,5,FALSE),\"\")","v":""}]
[null,null,{"$f":"IFERROR(VLOOKUP(B1040,[2]Sheet4!$F$2:$J$364,2,FALSE),\"\")","v":""},{"$f":"IFERROR(VLOOKUP(B1040,[2]Sheet4!$F$2:$J$364,3,FALSE),\"\")","v":""},{"$f":"IFERROR(VLOOKUP(B1040,[2]Sheet4!$F$2:$J$364,4,FALSE),\"\")","v":""},{"$f":"IFERROR(VLOOKUP(B1040,[2]Sheet4!$F$2:$J$364,5,FALSE),\"\")","v":""}]
[null,null,{"$f":"IFERROR(VLOOKUP(B1041,[2]Sheet4!$F$2:$J$364,2,FALSE),\"\")","v":""},{"$f":"IFERROR(VLOOKUP(B1041,[2]Sheet4!$F$2:$J$364,3,FALSE),\"\")","v":""},{"$f":"IFERROR(VLOOKUP(B1041,[2]Sheet4!$F$2:$J$364,4,FALSE),\"\")","v":""},{"$f":"IFERROR(VLOOKUP(B1041,[2]Sheet4!$F$2:$J$364,5,FALSE),\"\")","v":""}]
[null,null,{"$f":"IFERROR(VLOOKUP(B1042,[2]Sheet4!$F$2:$J$364,2,FALSE),\"\")","v":""},{"$f":"IFERROR(VLOOKUP(B1042,[2]Sheet4!$F$2:$J$364,3,FALSE),\"\")","v":""},{"$f":"IFERROR(VLOOKUP(B1042,[2]Sheet4!$F$2:$J$364,4,FALSE),\"\")","v":""},{"$f":"IFERROR(VLOOKUP(B1042,[2]Sheet4!$F$2:$J$364,5,FALSE),\"\")","v":""}]
[null,null,{"$f":"IFERROR(VLOOKUP(B1043,[2]Sheet4!$F$2:$J$364,2,FALSE),\"\")","v":""},{"$f":"IFERROR(VLOOKUP(B1043,[2]Sheet4!$F$2:$J$364,3,FALSE),\"\")","v":""},{"$f":"IFERROR(VLOOKUP(B1043,[2]Sheet4!$F$2:$J$364,4,FALSE),\"\")","v":""},{"$f":"IFERROR(VLOOKUP(B1043,[2]Sheet4!$F$2:$J$364,5,FALSE),\"\")","v":""}]
[null,null,{"$f":"IFERROR(VLOOKUP(B1044,[2]Sheet4!$F$2:$J$364,2,FALSE),\"\")","v":""},{"$f":"IFERROR(VLOOKUP(B1044,[2]Sheet4!$F$2:$J$364,3,FALSE),\"\")","v":""},{"$f":"IFERROR(VLOOKUP(B1044,[2]Sheet4!$F$2:$J$364,4,FALSE),\"\")","v":""},{"$f":"IFERROR(VLOOKUP(B1044,[2]Sheet4!$F$2:$J$364,5,FALSE),\"\")","v":""}]
[null,null,{"$f":"IFERROR(VLOOKUP(B1045,[2]Sheet4!$F$2:$J$364,2,FALSE),\"\")","v":""},{"$f":"IFERROR(VLOOKUP(B1045,[2]Sheet4!$F$2:$J$364,3,FALSE),\"\")","v":""},{"$f":"IFERROR(VLOOKUP(B1045,[2]Sheet4!$F$2:$J$364,4,FALSE),\"\")","v":""},{"$f":"IFERROR(VLOOKUP(B1045,[2]Sheet4!$F$2:$J$364,5,FALSE),\"\")","v":""}]
[null,null,{"$f":"IFERROR(VLOOKUP(B1046,[2]Sheet4!$F$2:$J$364,2,FALSE),\"\")","v":""},{"$f":"IFERROR(VLOOKUP(B1046,[2]Sheet4!$F$2:$J$364,3,FALSE),\"\")","v":""},{"$f":"IFERROR(VLOOKUP(B1046,[2]Sheet4!$F$2:$J$364,4,FALSE),\"\")","v":""},{"$f":"IFERROR(VLOOKUP(B1046,[2]Sheet4!$F$2:$J$364,5,FALSE),\"\")","v":""}]
[null,null,{"$f":"IFERROR(VLOOKUP(B1047,[2]Sheet4!$F$2:$J$364,2,FALSE),\"\")","v":""},{"$f":"IFERROR(VLOOKUP(B1047,[2]Sheet4!$F$2:$J$364,3,FALSE),\"\")","v":""},{"$f":"IFERROR(VLOOKUP(B1047,[2]Sheet4!$F$2:$J$364,4,FALSE),\"\")","v":""},{"$f":"IFERROR(VLOOKUP(B1047,[2]Sheet4!$F$2:$J$364,5,FALSE),\"\")","v":""}]
[null,null,{"$f":"IFERROR(VLOOKUP(B1048,[2]Sheet4!$F$2:$J$364,2,FALSE),\"\")","v":""},{"$f":"IFERROR(VLOOKUP(B1048,[2]Sheet4!$F$2:$J$364,3,FALSE),\"\")","v":""},{"$f":"IFERROR(VLOOKUP(B1048,[2]Sheet4!$F$2:$J$364,4,FALSE),\"\")","v":""},{"$f":"IFERROR(VLOOKUP(B1048,[2]Sheet4!$F$2:$J$364,5,FALSE),\"\")","v":""}]
[null,null,{"$f":"IFERROR(VLOOKUP(B1049,[2]Sheet4!$F$2:$J$364,2,FALSE),\"\")","v":""},{"$f":"IFERROR(VLOOKUP(B1049,[2]Sheet4!$F$2:$J$364,3,FALSE),\"\")","v":""},{"$f":"IFERROR(VLOOKUP(B1049,[2]Sheet4!$F$2:$J$364,4,FALSE),\"\")","v":""},{"$f":"IFERROR(VLOOKUP(B1049,[2]Sheet4!$F$2:$J$364,5,FALSE),\"\")","v":""}]
[null,null,{"$f":"IFERROR(VLOOKUP(B1050,[2]Sheet4!$F$2:$J$364,2,FALSE),\"\")","v":""},{"$f":"IFERROR(VLOOKUP(B1050,[2]Sheet4!$F$2:$J$364,3,FALSE),\"\")","v":""},{"$f":"IFERROR(VLOOKUP(B1050,[2]Sheet4!$F$2:$J$364,4,FALSE),\"\")","v":""},{"$f":"IFERROR(VLOOKUP(B1050,[2]Sheet4!$F$2:$J$364,5,FALSE),\"\")","v":""}]
[null,null,{"$f":"IFERROR(VLOOKUP(B1051,[2]Sheet4!$F$2:$J$364,2,FALSE),\"\")","v":""},{"$f":"IFERROR(VLOOKUP(B1051,[2]Sheet4!$F$2:$J$364,3,FALSE),\"\")","v":""},{"$f":"IFERROR(VLOOKUP(B1051,[2]Sheet4!$F$2:$J$364,4,FALSE),\"\")","v":""},{"$f":"IFERROR(VLOOKUP(B1051,[2]Sheet4!$F$2:$J$364,5,FALSE),\"\")","v":""}]
[null,null,{"$f":"IFERROR(VLOOKUP(B1052,[2]Sheet4!$F$2:$J$364,2,FALSE),\"\")","v":""},{"$f":"IFERROR(VLOOKUP(B1052,[2]Sheet4!$F$2:$J$364,3,FALSE),\"\")","v":""},{"$f":"IFERROR(VLOOKUP(B1052,[2]Sheet4!$F$2:$J$364,4,FALSE),\"\")","v":""},{"$f":"IFERROR(VLOOKUP(B1052,[2]Sheet4!$F$2:$J$364,5,FALSE),\"\")","v":""}]
[null,null,{"$f":"IFERROR(VLOOKUP(B1053,[2]Sheet4!$F$2:$J$364,2,FALSE),\"\")","v":""},{"$f":"IFERROR(VLOOKUP(B1053,[2]Sheet4!$F$2:$J$364,3,FALSE),\"\")","v":""},{"$f":"IFERROR(VLOOKUP(B1053,[2]Sheet4!$F$2:$J$364,4,FALSE),\"\")","v":""},{"$f":"IFERROR(VLOOKUP(B1053,[2]Sheet4!$F$2:$J$364,5,FALSE),\"\")","v":""}]
[null,null,{"$f":"IFERROR(VLOOKUP(B1054,[2]Sheet4!$F$2:$J$364,2,FALSE),\"\")","v":""},{"$f":"IFERROR(VLOOKUP(B1054,[2]Sheet4!$F$2:$J$364,3,FALSE),\"\")","v":""},{"$f":"IFERROR(VLOOKUP(B1054,[2]Sheet4!$F$2:$J$364,4,FALSE),\"\")","v":""},{"$f":"IFERROR(VLOOKUP(B1054,[2]Sheet4!$F$2:$J$364,5,FALSE),\"\")","v":""}]
[null,null,{"$f":"IFERROR(VLOOKUP(B1055,[2]Sheet4!$F$2:$J$364,2,FALSE),\"\")","v":""},{"$f":"IFERROR(VLOOKUP(B1055,[2]Sheet4!$F$2:$J$364,3,FALSE),\"\")","v":""},{"$f":"IFERROR(VLOOKUP(B1055,[2]Sheet4!$F$2:$J$364,4,FALSE),\"\")","v":""},{"$f":"IFERROR(VLOOKUP(B1055,[2]Sheet4!$F$2:$J$364,5,FALSE),\"\")","v":""}]
[null,null,{"$f":"IFERROR(VLOOKUP(B1056,[2]Sheet4!$F$2:$J$364,2,FALSE),\"\")","v":""},{"$f":"IFERROR(VLOOKUP(B1056,[2]Sheet4!$F$2:$J$364,3,FALSE),\"\")","v":""},{"$f":"IFERROR(VLOOKUP(B1056,[2]Sheet4!$F$2:$J$364,4,FALSE),\"\")","v":""},{"$f":"IFERROR(VLOOKUP(B1056,[2]Sheet4!$F$2:$J$364,5,FALSE),\"\")","v":""}]
[null,null,{"$f":"IFERROR(VLOOKUP(B1057,[2]Sheet4!$F$2:$J$364,2,FALSE),\"\")","v":""},{"$f":"IFERROR(VLOOKUP(B1057,[2]Sheet4!$F$2:$J$364,3,FALSE),\"\")","v":""},{"$f":"IFERROR(VLOOKUP(B1057,[2]Sheet4!$F$2:$J$364,4,FALSE),\"\")","v":""},{"$f":"IFERROR(VLOOKUP(B1057,[2]Sheet4!$F$2:$J$364,5,FALSE),\"\")","v":""}]
[null,null,{"$f":"IFERROR(VLOOKUP(B1058,[2]Sheet4!$F$2:$J$364,2,FALSE),\"\")","v":""},{"$f":"IFERROR(VLOOKUP(B1058,[2]Sheet4!$F$2:$J$364,3,FALSE),\"\")","v":""},{"$f":"IFERROR(VLOOKUP(B1058,[2]Sheet4!$F$2:$J$364,4,FALSE),\"\")","v":""},{"$f":"IFERROR(VLOOKUP(B1058,[2]Sheet4!$F$2:$J$364,5,FALSE),\"\")","v":""}]
[null,null,{"$f":"IFERROR(VLOOKUP(B1059,[2]Sheet4!$F$2:$J$364,2,FALSE),\"\")","v":""},{"$f":"IFERROR(VLOOKUP(B1059,[2]Sheet4!$F$2:$J$364,3,FALSE),\"\")","v":""},{"$f":"IFERROR(VLOOKUP(B1059,[2]Sheet4!$F$2:$J$364,4,FALSE),\"\")","v":""},{"$f":"IFERROR(VLOOKUP(B1059,[2]Sheet4!$F$2:$J$364,5,FALSE),\"\")","v":""}]
[null,null,{"$f":"IFERROR(VLOOKUP(B1060,[2]Sheet4!$F$2:$J$364,2,FALSE),\"\")","v":""},{"$f":"IFERROR(VLOOKUP(B1060,[2]Sheet4!$F$2:$J$364,3,FALSE),\"\")","v":""},{"$f":"IFERROR(VLOOKUP(B1060,[2]Sheet4!$F$2:$J$364,4,FALSE),\"\")","v":""},{"$f":"IFERROR(VLOOKUP(B1060,[2]Sheet4!$F$2:$J$364,5,FALSE),\"\")","v":""}]
[null,null,{"$f":"IFERROR(VLOOKUP(B1061,[2]Sheet4!$F$2:$J$364,2,FALSE),\"\")","v":""},{"$f":"IFERROR(VLOOKUP(B1061,[2]Sheet4!$F$2:$J$364,3,FALSE),\"\")","v":""},{"$f":"IFERROR(VLOOKUP(B1061,[2]Sheet4!$F$2:$J$364,4,FALSE),\"\")","v":""},{"$f":"IFERROR(VLOOKUP(B1061,[2]Sheet4!$F$2:$J$364,5,FALSE),\"\")","v":""}]
[null,null,{"$f":"IFERROR(VLOOKUP(B1062,[2]Sheet4!$F$2:$J$364,2,FALSE),\"\")","v":""},{"$f":"IFERROR(VLOOKUP(B1062,[2]Sheet4!$F$2:$J$364,3,FALSE),\"\")","v":""},{"$f":"IFERROR(VLOOKUP(B1062,[2]Sheet4!$F$2:$J$364,4,FALSE),\"\")","v":""},{"$f":"IFERROR(VLOOKUP(B1062,[2]Sheet4!$F$2:$J$364,5,FALSE),\"\")","v":""}]
[null,null,{"$f":"IFERROR(VLOOKUP(B1063,[2]Sheet4!$F$2:$J$364,2,FALSE),\"\")","v":""},{"$f":"IFERROR(VLOOKUP(B1063,[2]Sheet4!$F$2:$J$364,3,FALSE),\"\")","v":""},{"$f":"IFERROR(VLOOKUP(B1063,[2]Sheet4!$F$2:$J$364,4,FALSE),\"\")","v":""},{"$f":"IFERROR(VLOOKUP(B1063,[2]Sheet4!$F$2:$J$364,5,FALSE),\"\")","v":""}]
[null,null,{"$f":"IFERROR(VLOOKUP(B1064,[2]Sheet4!$F$2:$J$364,2,FALSE),\"\")","v":""},{"$f":"IFERROR(VLOOKUP(B1064,[2]Sheet4!$F$2:$J$364,3,FALSE),\"\")","v":""},{"$f":"IFERROR(VLOOKUP(B1064,[2]Sheet4!$F$2:$J$364,4,FALSE),\"\")","v":""},{"$f":"IFERROR(VLOOKUP(B1064,[2]Sheet4!$F$2:$J$364,5,FALSE),\"\")","v":""}]
[null,null,{"$f":"IFERROR(VLOOKUP(B1065,[2]Sheet4!$F$2:$J$364,2,FALSE),\"\")","v":""},{"$f":"IFERROR(VLOOKUP(B1065,[2]Sheet4!$F$2:$J$364,3,FALSE),\"\")","v":""},{"$f":"IFERROR(VLOOKUP(B1065,[2]Sheet4!$F$2:$J$364,4,FALSE),\"\")","v":""},{"$f":"IFERROR(VLOOKUP(B1065,[2]Sheet4!$F$2:$J$364,5,FALSE),\"\")","v":""}]
[null,null,{"$f":"IFERROR(VLOOKUP(B1066,[2]Sheet4!$F$2:$J$364,2,FALSE),\"\")","v":""},{"$f":"IFERROR(VLOOKUP(B1066,[2]Sheet4!$F$2:$J$364,3,FALSE),\"\")","v":""},{"$f":"IFERROR(VLOOKUP(B1066,[2]Sheet4!$F$2:$J$364,4,FALSE),\"\")","v":""},{"$f":"IFERROR(VLOOKUP(B1066,[2]Sheet4!$F$2:$J$364,5,FALSE),\"\")","v":""}]
[null,null,{"$f":"IFERROR(VLOOKUP(B1067,[2]Sheet4!$F$2:$J$364,2,FALSE),\"\")","v":""},{"$f":"IFERROR(VLOOKUP(B1067,[2]Sheet4!$F$2:$J$364,3,FALSE),\"\")","v":""},{"$f":"IFERROR(VLOOKUP(B1067,[2]Sheet4!$F$2:$J$364,4,FALSE),\"\")","v":""},{"$f":"IFERROR(VLOOKUP(B1067,[2]Sheet4!$F$2:$J$364,5,FALSE),\"\")","v":""}]
[null,null,{"$f":"IFERROR(VLOOKUP(B1068,[2]Sheet4!$F$2:$J$364,2,FALSE),\"\")","v":""},{"$f":"IFERROR(VLOOKUP(B1068,[2]Sheet4!$F$2:$J$364,3,FALSE),\"\")","v":""},{"$f":"IFERROR(VLOOKUP(B1068,[2]Sheet4!$F$2:$J$364,4,FALSE),\"\")","v":""},{"$f":"IFERROR(VLOOKUP(B1068,[2]Sheet4!$F$2:$J$364,5,FALSE),\"\")","v":""}]
[null,null,{"$f":"IFERROR(VLOOKUP(B1069,[2]Sheet4!$F$2:$J$364,2,FALSE),\"\")","v":""},{"$f":"IFERROR(VLOOKUP(B1069,[2]Sheet4!$F$2:$J$364,3,FALSE),\"\")","v":""},{"$f":"IFERROR(VLOOKUP(B1069,[2]Sheet4!$F$2:$J$364,4,FALSE),\"\")","v":""},{"$f":"IFERROR(VLOOKUP(B1069,[2]Sheet4!$F$2:$J$364,5,FALSE),\"\")","v":""}]
[null,null,{"$f":"IFERROR(VLOOKUP(B1070,[2]Sheet4!$F$2:$J$364,2,FALSE),\"\")","v":""},{"$f":"IFERROR(VLOOKUP(B1070,[2]Sheet4!$F$2:$J$364,3,FALSE),\"\")","v":""},{"$f":"IFERROR(VLOOKUP(B1070,[2]Sheet4!$F$2:$J$364,4,FALSE),\"\")","v":""},{"$f":"IFERROR(VLOOKUP(B1070,[2]Sheet4!$F$2:$J$364,5,FALSE),\"\")","v":""}]
[null,null,{"$f":"IFERROR(VLOOKUP(B1071,[2]Sheet4!$F$2:$J$364,2,FALSE),\"\")","v":""},{"$f":"IFERROR(VLOOKUP(B1071,[2]Sheet4!$F$2:$J$364,3,FALSE),\"\")","v":""},{"$f":"IFERROR(VLOOKUP(B1071,[2]Sheet4!$F$2:$J$364,4,FALSE),\"\")","v":""},{"$f":"IFERROR(VLOOKUP(B1071,[2]Sheet4!$F$2:$J$364,5,FALSE),\"\")","v":""}]
[null,null,{"$f":"IFERROR(VLOOKUP(B1072,[2]Sheet4!$F$2:$J$364,2,FALSE),\"\")","v":""},{"$f":"IFERROR(VLOOKUP(B1072,[2]Sheet4!$F$2:$J$364,3,FALSE),\"\")","v":""},{"$f":"IFERROR(VLOOKUP(B1072,[2]Sheet4!$F$2:$J$364,4,FALSE),\"\")","v":""},{"$f":"IFERROR(VLOOKUP(B1072,[2]Sheet4!$F$2:$J$364,5,FALSE),\"\")","v":""}]
[null,null,{"$f":"IFERROR(VLOOKUP(B1073,[2]Sheet4!$F$2:$J$364,2,FALSE),\"\")","v":""},{"$f":"IFERROR(VLOOKUP(B1073,[2]Sheet4!$F$2:$J$364,3,FALSE),\"\")","v":""},{"$f":"IFERROR(VLOOKUP(B1073,[2]Sheet4!$F$2:$J$364,4,FALSE),\"\")","v":""},{"$f":"IFERROR(VLOOKUP(B1073,[2]Sheet4!$F$2:$J$364,5,FALSE),\"\")","v":""}]
[null,null,{"$f":"IFERROR(VLOOKUP(B1074,[2]Sheet4!$F$2:$J$364,2,FALSE),\"\")","v":""},{"$f":"IFERROR(VLOOKUP(B1074,[2]Sheet4!$F$2:$J$364,3,FALSE),\"\")","v":""},{"$f":"IFERROR(VLOOKUP(B1074,[2]Sheet4!$F$2:$J$364,4,FALSE),\"\")","v":""},{"$f":"IFERROR(VLOOKUP(B1074,[2]Sheet4!$F$2:$J$364,5,FALSE),\"\")","v":""}]
[null,null,{"$f":"IFERROR(VLOOKUP(B1075,[2]Sheet4!$F$2:$J$364,2,FALSE),\"\")","v":""},{"$f":"IFERROR(VLOOKUP(B1075,[2]Sheet4!$F$2:$J$364,3,FALSE),\"\")","v":""},{"$f":"IFERROR(VLOOKUP(B1075,[2]Sheet4!$F$2:$J$364,4,FALSE),\"\")","v":""},{"$f":"IFERROR(VLOOKUP(B1075,[2]Sheet4!$F$2:$J$364,5,FALSE),\"\")","v":""}]
[null,null,{"$f":"IFERROR(VLOOKUP(B1076,[2]Sheet4!$F$2:$J$364,2,FALSE),\"\")","v":""},{"$f":"IFERROR(VLOOKUP(B1076,[2]Sheet4!$F$2:$J$364,3,FALSE),\"\")","v":""},{"$f":"IFERROR(VLOOKUP(B1076,[2]Sheet4!$F$2:$J$364,4,FALSE),\"\")","v":""},{"$f":"IFERROR(VLOOKUP(B1076,[2]Sheet4!$F$2:$J$364,5,FALSE),\"\")","v":""}]
[null,null,{"$f":"IFERROR(VLOOKUP(B1077,[2]Sheet4!$F$2:$J$364,2,FALSE),\"\")","v":""},{"$f":"IFERROR(VLOOKUP(B1077,[2]Sheet4!$F$2:$J$364,3,FALSE),\"\")","v":""},{"$f":"IFERROR(VLOOKUP(B1077,[2]Sheet4!$F$2:$J$364,4,FALSE),\"\")","v":""},{"$f":"IFERROR(VLOOKUP(B1077,[2]Sheet4!$F$2:$J$364,5,FALSE),\"\")","v":""}]
[null,null,{"$f":"IFERROR(VLOOKUP(B1078,[2]Sheet4!$F$2:$J$364,2,FALSE),\"\")","v":""},{"$f":"IFERROR(VLOOKUP(B1078,[2]Sheet4!$F$2:$J$364,3,FALSE),\"\")","v":""},{"$f":"IFERROR(VLOOKUP(B1078,[2]Sheet4!$F$2:$J$364,4,FALSE),\"\")","v":""},{"$f":"IFERROR(VLOOKUP(B1078,[2]Sheet4!$F$2:$J$364,5,FALSE),\"\")","v":""}]
[null,null,{"$f":"IFERROR(VLOOKUP(B1079,[2]Sheet4!$F$2:$J$364,2,FALSE),\"\")","v":""},{"$f":"IFERROR(VLOOKUP(B1079,[2]Sheet4!$F$2:$J$364,3,FALSE),\"\")","v":""},{"$f":"IFERROR(VLOOKUP(B1079,[2]Sheet4!$F$2:$J$364,4,FALSE),\"\")","v":""},{"$f":"IFERROR(VLOOKUP(B1079,[2]Sheet4!$F$2:$J$364,5,FALSE),\"\")","v":""}]
[null,null,{"$f":"IFERROR(VLOOKUP(B1080,[2]Sheet4!$F$2:$J$364,2,FALSE),\"\")","v":""},{"$f":"IFERROR(VLOOKUP(B1080,[2]Sheet4!$F$2:$J$364,3,FALSE),\"\")","v":""},{"$f":"IFERROR(VLOOKUP(B1080,[2]Sheet4!$F$2:$J$364,4,FALSE),\"\")","v":""},{"$f":"IFERROR(VLOOKUP(B1080,[2]Sheet4!$F$2:$J$364,5,FALSE),\"\")","v":""}]
[null,null,{"$f":"IFERROR(VLOOKUP(B1081,[2]Sheet4!$F$2:$J$364,2,FALSE),\"\")","v":""},{"$f":"IFERROR(VLOOKUP(B1081,[2]Sheet4!$F$2:$J$364,3,FALSE),\"\")","v":""},{"$f":"IFERROR(VLOOKUP(B1081,[2]Sheet4!$F$2:$J$364,4,FALSE),\"\")","v":""},{"$f":"IFERROR(VLOOKUP(B1081,[2]Sheet4!$F$2:$J$364,5,FALSE),\"\")","v":""}]
[null,null,{"$f":"IFERROR(VLOOKUP(B1082,[2]Sheet4!$F$2:$J$364,2,FALSE),\"\")","v":""},{"$f":"IFERROR(VLOOKUP(B1082,[2]Sheet4!$F$2:$J$364,3,FALSE),\"\")","v":""},{"$f":"IFERROR(VLOOKUP(B1082,[2]Sheet4!$F$2:$J$364,4,FALSE),\"\")","v":""},{"$f":"IFERROR(VLOOKUP(B1082,[2]Sheet4!$F$2:$J$364,5,FALSE),\"\")","v":""}]
[null,null,{"$f":"IFERROR(VLOOKUP(B1083,[2]Sheet4!$F$2:$J$364,2,FALSE),\"\")","v":""},{"$f":"IFERROR(VLOOKUP(B1083,[2]Sheet4!$F$2:$J$364,3,FALSE),\"\")","v":""},{"$f":"IFERROR(VLOOKUP(B1083,[2]Sheet4!$F$2:$J$364,4,FALSE),\"\")","v":""},{"$f":"IFERROR(VLOOKUP(B1083,[2]Sheet4!$F$2:$J$364,5,FALSE),\"\")","v":""}]
[null,null,{"$f":"IFERROR(VLOOKUP(B1084,[2]Sheet4!$F$2:$J$364,2,FALSE),\"\")","v":""},{"$f":"IFERROR(VLOOKUP(B1084,[2]Sheet4!$F$2:$J$364,3,FALSE),\"\")","v":""},{"$f":"IFERROR(VLOOKUP(B1084,[2]Sheet4!$F$2:$J$364,4,FALSE),\"\")","v":""},{"$f":"IFERROR(VLOOKUP(B1084,[2]Sheet4!$F$2:$J$364,5,FALSE),\"\")","v":""}]
[null,null,{"$f":"IFERROR(VLOOKUP(B1085,[2]Sheet4!$F$2:$J$364,2,FALSE),\"\")","v":""},{"$f":"IFERROR(VLOOKUP(B1085,[2]Sheet4!$F$2:$J$364,3,FALSE),\"\")","v":""},{"$f":"IFERROR(VLOOKUP(B1085,[2]Sheet4!$F$2:$J$364,4,FALSE),\"\")","v":""},{"$f":"IFERROR(VLOOKUP(B1085,[2]Sheet4!$F$2:$J$364,5,FALSE),\"\")","v":""}]
[null,null,{"$f":"IFERROR(VLOOKUP(B1086,[2]Sheet4!$F$2:$J$364,2,FALSE),\"\")","v":""},{"$f":"IFERROR(VLOOKUP(B1086,[2]Sheet4!$F$2:$J$364,3,FALSE),\"\")","v":""},{"$f":"IFERROR(VLOOKUP(B1086,[2]Sheet4!$F$2:$J$364,4,FALSE),\"\")","v":""},{"$f":"IFERROR(VLOOKUP(B1086,[2]Sheet4!$F$2:$J$364,5,FALSE),\"\")","v":""}]
[null,null,{"$f":"IFERROR(VLOOKUP(B1087,[2]Sheet4!$F$2:$J$364,2,FALSE),\"\")","v":""},{"$f":"IFERROR(VLOOKUP(B1087,[2]Sheet4!$F$2:$J$364,3,FALSE),\"\")","v":""},{"$f":"IFERROR(VLOOKUP(B1087,[2]Sheet4!$F$2:$J$364,4,FALSE),\"\")","v":""},{"$f":"IFERROR(VLOOKUP(B1087,[2]Sheet4!$F$2:$J$364,5,FALSE),\"\")","v":""}]
[null,null,{"$f":"IFERROR(VLOOKUP(B1088,[2]Sheet4!$F$2:$J$364,2,FALSE),\"\")","v":""},{"$f":"IFERROR(VLOOKUP(B1088,[2]Sheet4!$F$2:$J$364,3,FALSE),\"\")","v":""},{"$f":"IFERROR(VLOOKUP(B1088,[2]Sheet4!$F$2:$J$364,4,FALSE),\"\")","v":""},{"$f":"IFERROR(VLOOKUP(B1088,[2]Sheet4!$F$2:$J$364,5,FALSE),\"\")","v":""}]
[null,null,{"$f":"IFERROR(VLOOKUP(B1089,[2]Sheet4!$F$2:$J$364,2,FALSE),\"\")","v":""},{"$f":"IFERROR(VLOOKUP(B1089,[2]Sheet4!$F$2:$J$364,3,FALSE),\"\")","v":""},{"$f":"IFERROR(VLOOKUP(B1089,[2]Sheet4!$F$2:$J$364,4,FALSE),\"\")","v":""},{"$f":"IFERROR(VLOOKUP(B1089,[2]Sheet4!$F$2:$J$364,5,FALSE),\"\")","v":""}]
[null,null,{"$f":"IFERROR(VLOOKUP(B1090,[2]Sheet4!$F$2:$J$364,2,FALSE),\"\")","v":""},{"$f":"IFERROR(VLOOKUP(B1090,[2]Sheet4!$F$2:$J$364,3,FALSE),\"\")","v":""},{"$f":"IFERROR(VLOOKUP(B1090,[2]Sheet4!$F$2:$J$364,4,FALSE),\"\")","v":""},{"$f":"IFERROR(VLOOKUP(B1090,[2]Sheet4!$F$2:$J$364,5,FALSE),\"\")","v":""}]
[null,null,{"$f":"IFERROR(VLOOKUP(B1091,[2]Sheet4!$F$2:$J$364,2,FALSE),\"\")","v":""},{"$f":"IFERROR(VLOOKUP(B1091,[2]Sheet4!$F$2:$J$364,3,FALSE),\"\")","v":""},{"$f":"IFERROR(VLOOKUP(B1091,[2]Sheet4!$F$2:$J$364,4,FALSE),\"\")","v":""},{"$f":"IFERROR(VLOOKUP(B1091,[2]Sheet4!$F$2:$J$364,5,FALSE),\"\")","v":""}]
[null,null,{"$f":"IFERROR(VLOOKUP(B1092,[2]Sheet4!$F$2:$J$364,2,FALSE),\"\")","v":""},{"$f":"IFERROR(VLOOKUP(B1092,[2]Sheet4!$F$2:$J$364,3,FALSE),\"\")","v":""},{"$f":"IFERROR(VLOOKUP(B1092,[2]Sheet4!$F$2:$J$364,4,FALSE),\"\")","v":""},{"$f":"IFERROR(VLOOKUP(B1092,[2]Sheet4!$F$2:$J$364,5,FALSE),\"\")","v":""}]
[null,null,{"$f":"IFERROR(VLOOKUP(B1093,[2]Sheet4!$F$2:$J$364,2,FALSE),\"\")","v":""},{"$f":"IFERROR(VLOOKUP(B1093,[2]Sheet4!$F$2:$J$364,3,FALSE),\"\")","v":""},{"$f":"IFERROR(VLOOKUP(B1093,[2]Sheet4!$F$2:$J$364,4,FALSE),\"\")","v":""},{"$f":"IFERROR(VLOOKUP(B1093,[2]Sheet4!$F$2:$J$364,5,FALSE),\"\")","v":""}]
[null,null,{"$f":"IFERROR(VLOOKUP(B1094,[2]Sheet4!$F$2:$J$364,2,FALSE),\"\")","v":""},{"$f":"IFERROR(VLOOKUP(B1094,[2]Sheet4!$F$2:$J$364,3,FALSE),\"\")","v":""},{"$f":"IFERROR(VLOOKUP(B1094,[2]Sheet4!$F$2:$J$364,4,FALSE),\"\")","v":""},{"$f":"IFERROR(VLOOKUP(B1094,[2]Sheet4!$F$2:$J$364,5,FALSE),\"\")","v":""}]
[null,null,{"$f":"IFERROR(VLOOKUP(B1095,[2]Sheet4!$F$2:$J$364,2,FALSE),\"\")","v":""},{"$f":"IFERROR(VLOOKUP(B1095,[2]Sheet4!$F$2:$J$364,3,FALSE),\"\")","v":""},{"$f":"IFERROR(VLOOKUP(B1095,[2]Sheet4!$F$2:$J$364,4,FALSE),\"\")","v":""},{"$f":"IFERROR(VLOOKUP(B1095,[2]Sheet4!$F$2:$J$364,5,FALSE),\"\")","v":""}]
[null,null,{"$f":"IFERROR(VLOOKUP(B1096,[2]Sheet4!$F$2:$J$364,2,FALSE),\"\")","v":""},{"$f":"IFERROR(VLOOKUP(B1096,[2]Sheet4!$F$2:$J$364,3,FALSE),\"\")","v":""},{"$f":"IFERROR(VLOOKUP(B1096,[2]Sheet4!$F$2:$J$364,4,FALSE),\"\")","v":""},{"$f":"IFERROR(VLOOKUP(B1096,[2]Sheet4!$F$2:$J$364,5,FALSE),\"\")","v":""}]
[null,null,{"$f":"IFERROR(VLOOKUP(B1097,[2]Sheet4!$F$2:$J$364,2,FALSE),\"\")","v":""},{"$f":"IFERROR(VLOOKUP(B1097,[2]Sheet4!$F$2:$J$364,3,FALSE),\"\")","v":""},{"$f":"IFERROR(VLOOKUP(B1097,[2]Sheet4!$F$2:$J$364,4,FALSE),\"\")","v":""},{"$f":"IFERROR(VLOOKUP(B1097,[2]Sheet4!$F$2:$J$364,5,FALSE),\"\")","v":""}]
[null,null,{"$f":"IFERROR(VLOOKUP(B1098,[2]Sheet4!$F$2:$J$364,2,FALSE),\"\")","v":""},{"$f":"IFERROR(VLOOKUP(B1098,[2]Sheet4!$F$2:$J$364,3,FALSE),\"\")","v":""},{"$f":"IFERROR(VLOOKUP(B1098,[2]Sheet4!$F$2:$J$364,4,FALSE),\"\")","v":""},{"$f":"IFERROR(VLOOKUP(B1098,[2]Sheet4!$F$2:$J$364,5,FALSE),\"\")","v":""}]
[null,null,{"$f":"IFERROR(VLOOKUP(B1099,[2]Sheet4!$F$2:$J$364,2,FALSE),\"\")","v":""},{"$f":"IFERROR(VLOOKUP(B1099,[2]Sheet4!$F$2:$J$364,3,FALSE),\"\")","v":""},{"$f":"IFERROR(VLOOKUP(B1099,[2]Sheet4!$F$2:$J$364,4,FALSE),\"\")","v":""},{"$f":"IFERROR(VLOOKUP(B1099,[2]Sheet4!$F$2:$J$364,5,FALSE),\"\")","v":""}]
[null,null,{"$f":"IFERROR(VLOOKUP(B1100,[2]Sheet4!$F$2:$J$364,2,FALSE),\"\")","v":""},{"$f":"IFERROR(VLOOKUP(B1100,[2]Sheet4!$F$2:$J$364,3,FALSE),\"\")","v":""},{"$f":"IFERROR(VLOOKUP(B1100,[2]Sheet4!$F$2:$J$364,4,FALSE),\"\")","v":""},{"$f":"IFERROR(VLOOKUP(B1100,[2]Sheet4!$F$2:$J$364,5,FALSE),\"\")","v":""}]
[null,null,{"$f":"IFERROR(VLOOKUP(B1101,[2]Sheet4!$F$2:$J$364,2,FALSE),\"\")","v":""},{"$f":"IFERROR(VLOOKUP(B1101,[2]Sheet4!$F$2:$J$364,3,FALSE),\"\")","v":""},{"$f":"IFERROR(VLOOKUP(B1101,[2]Sheet4!$F$2:$J$364,4,FALSE),\"\")","v":""},{"$f":"IFERROR(VLOOKUP(B1101,[2]Sheet4!$F$2:$J$364,5,FALSE),\"\")","v":""}]
[null,null,{"$f":"IFERROR(VLOOKUP(B1102,[2]Sheet4!$F$2:$J$364,2,FALSE),\"\")","v":""},{"$f":"IFERROR(VLOOKUP(B1102,[2]Sheet4!$F$2:$J$364,3,FALSE),\"\")","v":""},{"$f":"IFERROR(VLOOKUP(B1102,[2]Sheet4!$F$2:$J$364,4,FALSE),\"\")","v":""},{"$f":"IFERROR(VLOOKUP(B1102,[2]Sheet4!$F$2:$J$364,5,FALSE),\"\")","v":""}]
[null,null,{"$f":"IFERROR(VLOOKUP(B1103,[2]Sheet4!$F$2:$J$364,2,FALSE),\"\")","v":""},{"$f":"IFERROR(VLOOKUP(B1103,[2]Sheet4!$F$2:$J$364,3,FALSE),\"\")","v":""},{"$f":"IFERROR(VLOOKUP(B1103,[2]Sheet4!$F$2:$J$364,4,FALSE),\"\")","v":""},{"$f":"IFERROR(VLOOKUP(B1103,[2]Sheet4!$F$2:$J$364,5,FALSE),\"\")","v":""}]
[null,null,{"$f":"IFERROR(VLOOKUP(B1104,[2]Sheet4!$F$2:$J$364,2,FALSE),\"\")","v":""},{"$f":"IFERROR(VLOOKUP(B1104,[2]Sheet4!$F$2:$J$364,3,FALSE),\"\")","v":""},{"$f":"IFERROR(VLOOKUP(B1104,[2]Sheet4!$F$2:$J$364,4,FALSE),\"\")","v":""},{"$f":"IFERROR(VLOOKUP(B1104,[2]Sheet4!$F$2:$J$364,5,FALSE),\"\")","v":""}]
[null,null,{"$f":"IFERROR(VLOOKUP(B1105,[2]Sheet4!$F$2:$J$364,2,FALSE),\"\")","v":""},{"$f":"IFERROR(VLOOKUP(B1105,[2]Sheet4!$F$2:$J$364,3,FALSE),\"\")","v":""},{"$f":"IFERROR(VLOOKUP(B1105,[2]Sheet4!$F$2:$J$364,4,FALSE),\"\")","v":""},{"$f":"IFERROR(VLOOKUP(B1105,[2]Sheet4!$F$2:$J$364,5,FALSE),\"\")","v":""}]
[null,null,{"$f":"IFERROR(VLOOKUP(B1106,[2]Sheet4!$F$2:$J$364,2,FALSE),\"\")","v":""},{"$f":"IFERROR(VLOOKUP(B1106,[2]Sheet4!$F$2:$J$364,3,FALSE),\"\")","v":""},{"$f":"IFERROR(VLOOKUP(B1106,[2]Sheet4!$F$2:$J$364,4,FALSE),\"\")","v":""},{"$f":"IFERROR(VLOOKUP(B1106,[2]Sheet4!$F$2:$J$364,5,FALSE),\"\")","v":""}]
[null,null,{"$f":"IFERROR(VLOOKUP(B1107,[2]Sheet4!$F$2:$J$364,2,FALSE),\"\")","v":""},{"$f":"IFERROR(VLOOKUP(B1107,[2]Sheet4!$F$2:$J$364,3,FALSE),\"\")","v":""},{"$f":"IFERROR(VLOOKUP(B1107,[2]Sheet4!$F$2:$J$364,4,FALSE),\"\")","v":""},{"$f":"IFERROR(VLOOKUP(B1107,[2]Sheet4!$F$2:$J$364,5,FALSE),\"\")","v":""}]
[null,null,{"$f":"IFERROR(VLOOKUP(B1108,[2]Sheet4!$F$2:$J$364,2,FALSE),\"\")","v":""},{"$f":"IFERROR(VLOOKUP(B1108,[2]Sheet4!$F$2:$J$364,3,FALSE),\"\")","v":""},{"$f":"IFERROR(VLOOKUP(B1108,[2]Sheet4!$F$2:$J$364,4,FALSE),\"\")","v":""},{"$f":"IFERROR(VLOOKUP(B1108,[2]Sheet4!$F$2:$J$364,5,FALSE),\"\")","v":""}]
[null,null,{"$f":"IFERROR(VLOOKUP(B1109,[2]Sheet4!$F$2:$J$364,2,FALSE),\"\")","v":""},{"$f":"IFERROR(VLOOKUP(B1109,[2]Sheet4!$F$2:$J$364,3,FALSE),\"\")","v":""},{"$f":"IFERROR(VLOOKUP(B1109,[2]Sheet4!$F$2:$J$364,4,FALSE),\"\")","v":""},{"$f":"IFERROR(VLOOKUP(B1109,[2]Sheet4!$F$2:$J$364,5,FALSE),\"\")","v":""}]
[null,null,{"$f":"IFERROR(VLOOKUP(B1110,[2]Sheet4!$F$2:$J$364,2,FALSE),\"\")","v":""},{"$f":"IFERROR(VLOOKUP(B1110,[2]Sheet4!$F$2:$J$364,3,FALSE),\"\")","v":""},{"$f":"IFERROR(VLOOKUP(B1110,[2]Sheet4!$F$2:$J$364,4,FALSE),\"\")","v":""},{"$f":"IFERROR(VLOOKUP(B1110,[2]Sheet4!$F$2:$J$364,5,FALSE),\"\")","v":""}]
[null,null,{"$f":"IFERROR(VLOOKUP(B1111,[2]Sheet4!$F$2:$J$364,2,FALSE),\"\")","v":""},{"$f":"IFERROR(VLOOKUP(B1111,[2]Sheet4!$F$2:$J$364,3,FALSE),\"\")","v":""},{"$f":"IFERROR(VLOOKUP(B1111,[2]Sheet4!$F$2:$J$364,4,FALSE),\"\")","v":""},{"$f":"IFERROR(VLOOKUP(B1111,[2]Sheet4!$F$2:$J$364,5,FALSE),\"\")","v":""}]
[null,null,{"$f":"IFERROR(VLOOKUP(B1112,[2]Sheet4!$F$2:$J$364,2,FALSE),\"\")","v":""},{"$f":"IFERROR(VLOOKUP(B1112,[2]Sheet4!$F$2:$J$364,3,FALSE),\"\")","v":""},{"$f":"IFERROR(VLOOKUP(B1112,[2]Sheet4!$F$2:$J$364,4,FALSE),\"\")","v":""},{"$f":"IFERROR(VLOOKUP(B1112,[2]Sheet4!$F$2:$J$364,5,FALSE),\"\")","v":""}]
[null,null,{"$f":"IFERROR(VLOOKUP(B1113,[2]Sheet4!$F$2:$J$364,2,FALSE),\"\")","v":""},{"$f":"IFERROR(VLOOKUP(B1113,[2]Sheet4!$F$2:$J$364,3,FALSE),\"\")","v":""},{"$f":"IFERROR(VLOOKUP(B1113,[2]Sheet4!$F$2:$J$364,4,FALSE),\"\")","v":""},{"$f":"IFERROR(VLOOKUP(B1113,[2]Sheet4!$F$2:$J$364,5,FALSE),\"\")","v":""}]
[null,null,{"$f":"IFERROR(VLOOKUP(B1114,[2]Sheet4!$F$2:$J$364,2,FALSE),\"\")","v":""},{"$f":"IFERROR(VLOOKUP(B1114,[2]Sheet4!$F$2:$J$364,3,FALSE),\"\")","v":""},{"$f":"IFERROR(VLOOKUP(B1114,[2]Sheet4!$F$2:$J$364,4,FALSE),\"\")","v":""},{"$f":"IFERROR(VLOOKUP(B1114,[2]Sheet4!$F$2:$J$364,5,FALSE),\"\")","v":""}]
[null,null,{"$f":"IFERROR(VLOOKUP(B1115,[2]Sheet4!$F$2:$J$364,2,FALSE),\"\")","v":""},{"$f":"IFERROR(VLOOKUP(B1115,[2]Sheet4!$F$2:$J$364,3,FALSE),\"\")","v":""},{"$f":"IFERROR(VLOOKUP(B1115,[2]Sheet4!$F$2:$J$364,4,FALSE),\"\")","v":""},{"$f":"IFERROR(VLOOKUP(B1115,[2]Sheet4!$F$2:$J$364,5,FALSE),\"\")","v":""}]
[null,null,{"$f":"IFERROR(VLOOKUP(B1116,[2]Sheet4!$F$2:$J$364,2,FALSE),\"\")","v":""},{"$f":"IFERROR(VLOOKUP(B1116,[2]Sheet4!$F$2:$J$364,3,FALSE),\"\")","v":""},{"$f":"IFERROR(VLOOKUP(B1116,[2]Sheet4!$F$2:$J$364,4,FALSE),\"\")","v":""},{"$f":"IFERROR(VLOOKUP(B1116,[2]Sheet4!$F$2:$J$364,5,FALSE),\"\")","v":""}]
[null,null,{"$f":"IFERROR(VLOOKUP(B1117,[2]Sheet4!$F$2:$J$364,2,FALSE),\"\")","v":""},{"$f":"IFERROR(VLOOKUP(B1117,[2]Sheet4!$F$2:$J$364,3,FALSE),\"\")","v":""},{"$f":"IFERROR(VLOOKUP(B1117,[2]Sheet4!$F$2:$J$364,4,FALSE),\"\")","v":""},{"$f":"IFERROR(VLOOKUP(B1117,[2]Sheet4!$F$2:$J$364,5,FALSE),\"\")","v":""}]
[null,null,{"$f":"IFERROR(VLOOKUP(B1118,[2]Sheet4!$F$2:$J$364,2,FALSE),\"\")","v":""},{"$f":"IFERROR(VLOOKUP(B1118,[2]Sheet4!$F$2:$J$364,3,FALSE),\"\")","v":""},{"$f":"IFERROR(VLOOKUP(B1118,[2]Sheet4!$F$2:$J$364,4,FALSE),\"\")","v":""},{"$f":"IFERROR(VLOOKUP(B1118,[2]Sheet4!$F$2:$J$364,5,FALSE),\"\")","v":""}]
[null,null,{"$f":"IFERROR(VLOOKUP(B1119,[2]Sheet4!$F$2:$J$364,2,FALSE),\"\")","v":""},{"$f":"IFERROR(VLOOKUP(B1119,[2]Sheet4!$F$2:$J$364,3,FALSE),\"\")","v":""},{"$f":"IFERROR(VLOOKUP(B1119,[2]Sheet4!$F$2:$J$364,4,FALSE),\"\")","v":""},{"$f":"IFERROR(VLOOKUP(B1119,[2]Sheet4!$F$2:$J$364,5,FALSE),\"\")","v":""}]
[null,null,{"$f":"IFERROR(VLOOKUP(B1120,[2]Sheet4!$F$2:$J$364,2,FALSE),\"\")","v":""},{"$f":"IFERROR(VLOOKUP(B1120,[2]Sheet4!$F$2:$J$364,3,FALSE),\"\")","v":""},{"$f":"IFERROR(VLOOKUP(B1120,[2]Sheet4!$F$2:$J$364,4,FALSE),\"\")","v":""},{"$f":"IFERROR(VLOOKUP(B1120,[2]Sheet4!$F$2:$J$364,5,FALSE),\"\")","v":""}]
[null,null,{"$f":"IFERROR(VLOOKUP(B1121,[2]Sheet4!$F$2:$J$364,2,FALSE),\"\")","v":""},{"$f":"IFERROR(VLOOKUP(B1121,[2]Sheet4!$F$2:$J$364,3,FALSE),\"\")","v":""},{"$f":"IFERROR(VLOOKUP(B1121,[2]Sheet4!$F$2:$J$364,4,FALSE),\"\")","v":""},{"$f":"IFERROR(VLOOKUP(B1121,[2]Sheet4!$F$2:$J$364,5,FALSE),\"\")","v":""}]
[null,null,{"$f":"IFERROR(VLOOKUP(B1122,[2]Sheet4!$F$2:$J$364,2,FALSE),\"\")","v":""},{"$f":"IFERROR(VLOOKUP(B1122,[2]Sheet4!$F$2:$J$364,3,FALSE),\"\")","v":""},{"$f":"IFERROR(VLOOKUP(B1122,[2]Sheet4!$F$2:$J$364,4,FALSE),\"\")","v":""},{"$f":"IFERROR(VLOOKUP(B1122,[2]Sheet4!$F$2:$J$364,5,FALSE),\"\")","v":""}]
[null,null,{"$f":"IFERROR(VLOOKUP(B1123,[2]Sheet4!$F$2:$J$364,2,FALSE),\"\")","v":""},{"$f":"IFERROR(VLOOKUP(B1123,[2]Sheet4!$F$2:$J$364,3,FALSE),\"\")","v":""},{"$f":"IFERROR(VLOOKUP(B1123,[2]Sheet4!$F$2:$J$364,4,FALSE),\"\")","v":""},{"$f":"IFERROR(VLOOKUP(B1123,[2]Sheet4!$F$2:$J$364,5,FALSE),\"\")","v":""}]
[null,null,{"$f":"IFERROR(VLOOKUP(B1124,[2]Sheet4!$F$2:$J$364,2,FALSE),\"\")","v":""},{"$f":"IFERROR(VLOOKUP(B1124,[2]Sheet4!$F$2:$J$364,3,FALSE),\"\")","v":""},{"$f":"IFERROR(VLOOKUP(B1124,[2]Sheet4!$F$2:$J$364,4,FALSE),\"\")","v":""},{"$f":"IFERROR(VLOOKUP(B1124,[2]Sheet4!$F$2:$J$364,5,FALSE),\"\")","v":""}]
[null,null,{"$f":"IFERROR(VLOOKUP(B1125,[2]Sheet4!$F$2:$J$364,2,FALSE),\"\")","v":""},{"$f":"IFERROR(VLOOKUP(B1125,[2]Sheet4!$F$2:$J$364,3,FALSE),\"\")","v":""},{"$f":"IFERROR(VLOOKUP(B1125,[2]Sheet4!$F$2:$J$364,4,FALSE),\"\")","v":""},{"$f":"IFERROR(VLOOKUP(B1125,[2]Sheet4!$F$2:$J$364,5,FALSE),\"\")","v":""}]
[null,null,{"$f":"IFERROR(VLOOKUP(B1126,[2]Sheet4!$F$2:$J$364,2,FALSE),\"\")","v":""},{"$f":"IFERROR(VLOOKUP(B1126,[2]Sheet4!$F$2:$J$364,3,FALSE),\"\")","v":""},{"$f":"IFERROR(VLOOKUP(B1126,[2]Sheet4!$F$2:$J$364,4,FALSE),\"\")","v":""},{"$f":"IFERROR(VLOOKUP(B1126,[2]Sheet4!$F$2:$J$364,5,FALSE),\"\")","v":""}]
[null,null,{"$f":"IFERROR(VLOOKUP(B1127,[2]Sheet4!$F$2:$J$364,2,FALSE),\"\")","v":""},{"$f":"IFERROR(VLOOKUP(B1127,[2]Sheet4!$F$2:$J$364,3,FALSE),\"\")","v":""},{"$f":"IFERROR(VLOOKUP(B1127,[2]Sheet4!$F$2:$J$364,4,FALSE),\"\")","v":""},{"$f":"IFERROR(VLOOKUP(B1127,[2]Sheet4!$F$2:$J$364,5,FALSE),\"\")","v":""}]
[null,null,{"$f":"IFERROR(VLOOKUP(B1128,[2]Sheet4!$F$2:$J$364,2,FALSE),\"\")","v":""},{"$f":"IFERROR(VLOOKUP(B1128,[2]Sheet4!$F$2:$J$364,3,FALSE),\"\")","v":""},{"$f":"IFERROR(VLOOKUP(B1128,[2]Sheet4!$F$2:$J$364,4,FALSE),\"\")","v":""},{"$f":"IFERROR(VLOOKUP(B1128,[2]Sheet4!$F$2:$J$364,5,FALSE),\"\")","v":""}]
[null,null,{"$f":"IFERROR(VLOOKUP(B1129,[2]Sheet4!$F$2:$J$364,2,FALSE),\"\")","v":""},{"$f":"IFERROR(VLOOKUP(B1129,[2]Sheet4!$F$2:$J$364,3,FALSE),\"\")","v":""},{"$f":"IFERROR(VLOOKUP(B1129,[2]Sheet4!$F$2:$J$364,4,FALSE),\"\")","v":""},{"$f":"IFERROR(VLOOKUP(B1129,[2]Sheet4!$F$2:$J$364,5,FALSE),\"\")","v":""}]
[null,null,{"$f":"IFERROR(VLOOKUP(B1130,[2]Sheet4!$F$2:$J$364,2,FALSE),\"\")","v":""},{"$f":"IFERROR(VLOOKUP(B1130,[2]Sheet4!$F$2:$J$364,3,FALSE),\"\")","v":""},{"$f":"IFERROR(VLOOKUP(B1130,[2]Sheet4!$F$2:$J$364,4,FALSE),\"\")","v":""},{"$f":"IFERROR(VLOOKUP(B1130,[2]Sheet4!$F$2:$J$364,5,FALSE),\"\")","v":""}]
[null,null,{"$f":"IFERROR(VLOOKUP(B1131,[2]Sheet4!$F$2:$J$364,2,FALSE),\"\")","v":""},{"$f":"IFERROR(VLOOKUP(B1131,[2]Sheet4!$F$2:$J$364,3,FALSE),\"\")","v":""},{"$f":"IFERROR(VLOOKUP(B1131,[2]Sheet4!$F$2:$J$364,4,FALSE),\"\")","v":""},{"$f":"IFERROR(VLOOKUP(B1131,[2]Sheet4!$F$2:$J$364,5,FALSE),\"\")","v":""}]
[null,null,{"$f":"IFERROR(VLOOKUP(B1132,[2]Sheet4!$F$2:$J$364,2,FALSE),\"\")","v":""},{"$f":"IFERROR(VLOOKUP(B1132,[2]Sheet4!$F$2:$J$364,3,FALSE),\"\")","v":""},{"$f":"IFERROR(VLOOKUP(B1132,[2]Sheet4!$F$2:$J$364,4,FALSE),\"\")","v":""},{"$f":"IFERROR(VLOOKUP(B1132,[2]Sheet4!$F$2:$J$364,5,FALSE),\"\")","v":""}]
[null,null,{"$f":"IFERROR(VLOOKUP(B1133,[2]Sheet4!$F$2:$J$364,2,FALSE),\"\")","v":""},{"$f":"IFERROR(VLOOKUP(B1133,[2]Sheet4!$F$2:$J$364,3,FALSE),\"\")","v":""},{"$f":"IFERROR(VLOOKUP(B1133,[2]Sheet4!$F$2:$J$364,4,FALSE),\"\")","v":""},{"$f":"IFERROR(VLOOKUP(B1133,[2]Sheet4!$F$2:$J$364,5,FALSE),\"\")","v":""}]
[null,null,{"$f":"IFERROR(VLOOKUP(B1134,[2]Sheet4!$F$2:$J$364,2,FALSE),\"\")","v":""},{"$f":"IFERROR(VLOOKUP(B1134,[2]Sheet4!$F$2:$J$364,3,FALSE),\"\")","v":""},{"$f":"IFERROR(VLOOKUP(B1134,[2]Sheet4!$F$2:$J$364,4,FALSE),\"\")","v":""},{"$f":"IFERROR(VLOOKUP(B1134,[2]Sheet4!$F$2:$J$364,5,FALSE),\"\")","v":""}]
[null,null,{"$f":"IFERROR(VLOOKUP(B1135,[2]Sheet4!$F$2:$J$364,2,FALSE),\"\")","v":""},{"$f":"IFERROR(VLOOKUP(B1135,[2]Sheet4!$F$2:$J$364,3,FALSE),\"\")","v":""},{"$f":"IFERROR(VLOOKUP(B1135,[2]Sheet4!$F$2:$J$364,4,FALSE),\"\")","v":""},{"$f":"IFERROR(VLOOKUP(B1135,[2]Sheet4!$F$2:$J$364,5,FALSE),\"\")","v":""}]
[null,null,{"$f":"IFERROR(VLOOKUP(B1136,[2]Sheet4!$F$2:$J$364,2,FALSE),\"\")","v":""},{"$f":"IFERROR(VLOOKUP(B1136,[2]Sheet4!$F$2:$J$364,3,FALSE),\"\")","v":""},{"$f":"IFERROR(VLOOKUP(B1136,[2]Sheet4!$F$2:$J$364,4,FALSE),\"\")","v":""},{"$f":"IFERROR(VLOOKUP(B1136,[2]Sheet4!$F$2:$J$364,5,FALSE),\"\")","v":""}]
[null,null,{"$f":"IFERROR(VLOOKUP(B1137,[2]Sheet4!$F$2:$J$364,2,FALSE),\"\")","v":""},{"$f":"IFERROR(VLOOKUP(B1137,[2]Sheet4!$F$2:$J$364,3,FALSE),\"\")","v":""},{"$f":"IFERROR(VLOOKUP(B1137,[2]Sheet4!$F$2:$J$364,4,FALSE),\"\")","v":""},{"$f":"IFERROR(VLOOKUP(B1137,[2]Sheet4!$F$2:$J$364,5,FALSE),\"\")","v":""}]
[null,null,{"$f":"IFERROR(VLOOKUP(B1138,[2]Sheet4!$F$2:$J$364,2,FALSE),\"\")","v":""},{"$f":"IFERROR(VLOOKUP(B1138,[2]Sheet4!$F$2:$J$364,3,FALSE),\"\")","v":""},{"$f":"IFERROR(VLOOKUP(B1138,[2]Sheet4!$F$2:$J$364,4,FALSE),\"\")","v":""},{"$f":"IFERROR(VLOOKUP(B1138,[2]Sheet4!$F$2:$J$364,5,FALSE),\"\")","v":""}]
[null,null,{"$f":"IFERROR(VLOOKUP(B1139,[2]Sheet4!$F$2:$J$364,2,FALSE),\"\")","v":""},{"$f":"IFERROR(VLOOKUP(B1139,[2]Sheet4!$F$2:$J$364,3,FALSE),\"\")","v":""},{"$f":"IFERROR(VLOOKUP(B1139,[2]Sheet4!$F$2:$J$364,4,FALSE),\"\")","v":""},{"$f":"IFERROR(VLOOKUP(B1139,[2]Sheet4!$F$2:$J$364,5,FALSE),\"\")","v":""}]
[null,null,{"$f":"IFERROR(VLOOKUP(B1140,[2]Sheet4!$F$2:$J$364,2,FALSE),\"\")","v":""},{"$f":"IFERROR(VLOOKUP(B1140,[2]Sheet4!$F$2:$J$364,3,FALSE),\"\")","v":""},{"$f":"IFERROR(VLOOKUP(B1140,[2]Sheet4!$F$2:$J$364,4,FALSE),\"\")","v":""},{"$f":"IFERROR(VLOOKUP(B1140,[2]Sheet4!$F$2:$J$364,5,FALSE),\"\")","v":""}]
[null,null,{"$f":"IFERROR(VLOOKUP(B1141,[2]Sheet4!$F$2:$J$364,2,FALSE),\"\")","v":""},{"$f":"IFERROR(VLOOKUP(B1141,[2]Sheet4!$F$2:$J$364,3,FALSE),\"\")","v":""},{"$f":"IFERROR(VLOOKUP(B1141,[2]Sheet4!$F$2:$J$364,4,FALSE),\"\")","v":""},{"$f":"IFERROR(VLOOKUP(B1141,[2]Sheet4!$F$2:$J$364,5,FALSE),\"\")","v":""}]
[null,null,{"$f":"IFERROR(VLOOKUP(B1142,[2]Sheet4!$F$2:$J$364,2,FALSE),\"\")","v":""},{"$f":"IFERROR(VLOOKUP(B1142,[2]Sheet4!$F$2:$J$364,3,FALSE),\"\")","v":""},{"$f":"IFERROR(VLOOKUP(B1142,[2]Sheet4!$F$2:$J$364,4,FALSE),\"\")","v":""},{"$f":"IFERROR(VLOOKUP(B1142,[2]Sheet4!$F$2:$J$364,5,FALSE),\"\")","v":""}]
[null,null,{"$f":"IFERROR(VLOOKUP(B1143,[2]Sheet4!$F$2:$J$364,2,FALSE),\"\")","v":""},{"$f":"IFERROR(VLOOKUP(B1143,[2]Sheet4!$F$2:$J$364,3,FALSE),\"\")","v":""},{"$f":"IFERROR(VLOOKUP(B1143,[2]Sheet4!$F$2:$J$364,4,FALSE),\"\")","v":""},{"$f":"IFERROR(VLOOKUP(B1143,[2]Sheet4!$F$2:$J$364,5,FALSE),\"\")","v":""}]
[null,null,{"$f":"IFERROR(VLOOKUP(B1144,[2]Sheet4!$F$2:$J$364,2,FALSE),\"\")","v":""},{"$f":"IFERROR(VLOOKUP(B1144,[2]Sheet4!$F$2:$J$364,3,FALSE),\"\")","v":""},{"$f":"IFERROR(VLOOKUP(B1144,[2]Sheet4!$F$2:$J$364,4,FALSE),\"\")","v":""},{"$f":"IFERROR(VLOOKUP(B1144,[2]Sheet4!$F$2:$J$364,5,FALSE),\"\")","v":""}]
[null,null,{"$f":"IFERROR(VLOOKUP(B1145,[2]Sheet4!$F$2:$J$364,2,FALSE),\"\")","v":""},{"$f":"IFERROR(VLOOKUP(B1145,[2]Sheet4!$F$2:$J$364,3,FALSE),\"\")","v":""},{"$f":"IFERROR(VLOOKUP(B1145,[2]Sheet4!$F$2:$J$364,4,FALSE),\"\")","v":""},{"$f":"IFERROR(VLOOKUP(B1145,[2]Sheet4!$F$2:$J$364,5,FALSE),\"\")","v":""}]
[null,null,{"$f":"IFERROR(VLOOKUP(B1146,[2]Sheet4!$F$2:$J$364,2,FALSE),\"\")","v":""},{"$f":"IFERROR(VLOOKUP(B1146,[2]Sheet4!$F$2:$J$364,3,FALSE),\"\")","v":""},{"$f":"IFERROR(VLOOKUP(B1146,[2]Sheet4!$F$2:$J$364,4,FALSE),\"\")","v":""},{"$f":"IFERROR(VLOOKUP(B1146,[2]Sheet4!$F$2:$J$364,5,FALSE),\"\")","v":""}]
[null,null,{"$f":"IFERROR(VLOOKUP(B1147,[2]Sheet4!$F$2:$J$364,2,FALSE),\"\")","v":""},{"$f":"IFERROR(VLOOKUP(B1147,[2]Sheet4!$F$2:$J$364,3,FALSE),\"\")","v":""},{"$f":"IFERROR(VLOOKUP(B1147,[2]Sheet4!$F$2:$J$364,4,FALSE),\"\")","v":""},{"$f":"IFERROR(VLOOKUP(B1147,[2]Sheet4!$F$2:$J$364,5,FALSE),\"\")","v":""}]
[null,null,{"$f":"IFERROR(VLOOKUP(B1148,[2]Sheet4!$F$2:$J$364,2,FALSE),\"\")","v":""},{"$f":"IFERROR(VLOOKUP(B1148,[2]Sheet4!$F$2:$J$364,3,FALSE),\"\")","v":""},{"$f":"IFERROR(VLOOKUP(B1148,[2]Sheet4!$F$2:$J$364,4,FALSE),\"\")","v":""},{"$f":"IFERROR(VLOOKUP(B1148,[2]Sheet4!$F$2:$J$364,5,FALSE),\"\")","v":""}]
[null,null,{"$f":"IFERROR(VLOOKUP(B1149,[2]Sheet4!$F$2:$J$364,2,FALSE),\"\")","v":""},{"$f":"IFERROR(VLOOKUP(B1149,[2]Sheet4!$F$2:$J$364,3,FALSE),\"\")","v":""},{"$f":"IFERROR(VLOOKUP(B1149,[2]Sheet4!$F$2:$J$364,4,FALSE),\"\")","v":""},{"$f":"IFERROR(VLOOKUP(B1149,[2]Sheet4!$F$2:$J$364,5,FALSE),\"\")","v":""}]
[null,null,{"$f":"IFERROR(VLOOKUP(B1150,[2]Sheet4!$F$2:$J$364,2,FALSE),\"\")","v":""},{"$f":"IFERROR(VLOOKUP(B1150,[2]Sheet4!$F$2:$J$364,3,FALSE),\"\")","v":""},{"$f":"IFERROR(VLOOKUP(B1150,[2]Sheet4!$F$2:$J$364,4,FALSE),\"\")","v":""},{"$f":"IFERROR(VLOOKUP(B1150,[2]Sheet4!$F$2:$J$364,5,FALSE),\"\")","v":""}]
[null,null,{"$f":"IFERROR(VLOOKUP(B1151,[2]Sheet4!$F$2:$J$364,2,FALSE),\"\")","v":""},{"$f":"IFERROR(VLOOKUP(B1151,[2]Sheet4!$F$2:$J$364,3,FALSE),\"\")","v":""},{"$f":"IFERROR(VLOOKUP(B1151,[2]Sheet4!$F$2:$J$364,4,FALSE),\"\")","v":""},{"$f":"IFERROR(VLOOKUP(B1151,[2]Sheet4!$F$2:$J$364,5,FALSE),\"\")","v":""}]
[null,null,{"$f":"IFERROR(VLOOKUP(B1152,[2]Sheet4!$F$2:$J$364,2,FALSE),\"\")","v":""},{"$f":"IFERROR(VLOOKUP(B1152,[2]Sheet4!$F$2:$J$364,3,FALSE),\"\")","v":""},{"$f":"IFERROR(VLOOKUP(B1152,[2]Sheet4!$F$2:$J$364,4,FALSE),\"\")","v":""},{"$f":"IFERROR(VLOOKUP(B1152,[2]Sheet4!$F$2:$J$364,5,FALSE),\"\")","v":""}]
[null,null,{"$f":"IFERROR(VLOOKUP(B1153,[2]Sheet4!$F$2:$J$364,2,FALSE),\"\")","v":""},{"$f":"IFERROR(VLOOKUP(B1153,[2]Sheet4!$F$2:$J$364,3,FALSE),\"\")","v":""},{"$f":"IFERROR(VLOOKUP(B1153,[2]Sheet4!$F$2:$J$364,4,FALSE),\"\")","v":""},{"$f":"IFERROR(VLOOKUP(B1153,[2]Sheet4!$F$2:$J$364,5,FALSE),\"\")","v":""}]
[null,null,{"$f":"IFERROR(VLOOKUP(B1154,[2]Sheet4!$F$2:$J$364,2,FALSE),\"\")","v":""},{"$f":"IFERROR(VLOOKUP(B1154,[2]Sheet4!$F$2:$J$364,3,FALSE),\"\")","v":""},{"$f":"IFERROR(VLOOKUP(B1154,[2]Sheet4!$F$2:$J$364,4,FALSE),\"\")","v":""},{"$f":"IFERROR(VLOOKUP(B1154,[2]Sheet4!$F$2:$J$364,5,FALSE),\"\")","v":""}]
[null,null,{"$f":"IFERROR(VLOOKUP(B1155,[2]Sheet4!$F$2:$J$364,2,FALSE),\"\")","v":""},{"$f":"IFERROR(VLOOKUP(B1155,[2]Sheet4!$F$2:$J$364,3,FALSE),\"\")","v":""},{"$f":"IFERROR(VLOOKUP(B1155,[2]Sheet4!$F$2:$J$364,4,FALSE),\"\")","v":""},{"$f":"IFERROR(VLOOKUP(B1155,[2]Sheet4!$F$2:$J$364,5,FALSE),\"\")","v":""}]
[null,null,{"$f":"IFERROR(VLOOKUP(B1156,[2]Sheet4!$F$2:$J$364,2,FALSE),\"\")","v":""},{"$f":"IFERROR(VLOOKUP(B1156,[2]Sheet4!$F$2:$J$364,3,FALSE),\"\")","v":""},{"$f":"IFERROR(VLOOKUP(B1156,[2]Sheet4!$F$2:$J$364,4,FALSE),\"\")","v":""},{"$f":"IFERROR(VLOOKUP(B1156,[2]Sheet4!$F$2:$J$364,5,FALSE),\"\")","v":""}]
[null,null,{"$f":"IFERROR(VLOOKUP(B1157,[2]Sheet4!$F$2:$J$364,2,FALSE),\"\")","v":""},{"$f":"IFERROR(VLOOKUP(B1157,[2]Sheet4!$F$2:$J$364,3,FALSE),\"\")","v":""},{"$f":"IFERROR(VLOOKUP(B1157,[2]Sheet4!$F$2:$J$364,4,FALSE),\"\")","v":""},{"$f":"IFERROR(VLOOKUP(B1157,[2]Sheet4!$F$2:$J$364,5,FALSE),\"\")","v":""}]
[null,null,{"$f":"IFERROR(VLOOKUP(B1158,[2]Sheet4!$F$2:$J$364,2,FALSE),\"\")","v":""},{"$f":"IFERROR(VLOOKUP(B1158,[2]Sheet4!$F$2:$J$364,3,FALSE),\"\")","v":""},{"$f":"IFERROR(VLOOKUP(B1158,[2]Sheet4!$F$2:$J$364,4,FALSE),\"\")","v":""},{"$f":"IFERROR(VLOOKUP(B1158,[2]Sheet4!$F$2:$J$364,5,FALSE),\"\")","v":""}]
[null,null,{"$f":"IFERROR(VLOOKUP(B1159,[2]Sheet4!$F$2:$J$364,2,FALSE),\"\")","v":""},{"$f":"IFERROR(VLOOKUP(B1159,[2]Sheet4!$F$2:$J$364,3,FALSE),\"\")","v":""},{"$f":"IFERROR(VLOOKUP(B1159,[2]Sheet4!$F$2:$J$364,4,FALSE),\"\")","v":""},{"$f":"IFERROR(VLOOKUP(B1159,[2]Sheet4!$F$2:$J$364,5,FALSE),\"\")","v":""}]
[null,null,{"$f":"IFERROR(VLOOKUP(B1160,[2]Sheet4!$F$2:$J$364,2,FALSE),\"\")","v":""},{"$f":"IFERROR(VLOOKUP(B1160,[2]Sheet4!$F$2:$J$364,3,FALSE),\"\")","v":""},{"$f":"IFERROR(VLOOKUP(B1160,[2]Sheet4!$F$2:$J$364,4,FALSE),\"\")","v":""},{"$f":"IFERROR(VLOOKUP(B1160,[2]Sheet4!$F$2:$J$364,5,FALSE),\"\")","v":""}]
[null,null,{"$f":"IFERROR(VLOOKUP(B1161,[2]Sheet4!$F$2:$J$364,2,FALSE),\"\")","v":""},{"$f":"IFERROR(VLOOKUP(B1161,[2]Sheet4!$F$2:$J$364,3,FALSE),\"\")","v":""},{"$f":"IFERROR(VLOOKUP(B1161,[2]Sheet4!$F$2:$J$364,4,FALSE),\"\")","v":""},{"$f":"IFERROR(VLOOKUP(B1161,[2]Sheet4!$F$2:$J$364,5,FALSE),\"\")","v":""}]
[null,null,{"$f":"IFERROR(VLOOKUP(B1162,[2]Sheet4!$F$2:$J$364,2,FALSE),\"\")","v":""},{"$f":"IFERROR(VLOOKUP(B1162,[2]Sheet4!$F$2:$J$364,3,FALSE),\"\")","v":""},{"$f":"IFERROR(VLOOKUP(B1162,[2]Sheet4!$F$2:$J$364,4,FALSE),\"\")","v":""},{"$f":"IFERROR(VLOOKUP(B1162,[2]Sheet4!$F$2:$J$364,5,FALSE),\"\")","v":""}]
[null,null,{"$f":"IFERROR(VLOOKUP(B1163,[2]Sheet4!$F$2:$J$364,2,FALSE),\"\")","v":""},{"$f":"IFERROR(VLOOKUP(B1163,[2]Sheet4!$F$2:$J$364,3,FALSE),\"\")","v":""},{"$f":"IFERROR(VLOOKUP(B1163,[2]Sheet4!$F$2:$J$364,4,FALSE),\"\")","v":""},{"$f":"IFERROR(VLOOKUP(B1163,[2]Sheet4!$F$2:$J$364,5,FALSE),\"\")","v":""}]
[null,null,{"$f":"IFERROR(VLOOKUP(B1164,[2]Sheet4!$F$2:$J$364,2,FALSE),\"\")","v":""},{"$f":"IFERROR(VLOOKUP(B1164,[2]Sheet4!$F$2:$J$364,3,FALSE),\"\")","v":""},{"$f":"IFERROR(VLOOKUP(B1164,[2]Sheet4!$F$2:$J$364,4,FALSE),\"\")","v":""},{"$f":"IFERROR(VLOOKUP(B1164,[2]Sheet4!$F$2:$J$364,5,FALSE),\"\")","v":""}]
[null,null,{"$f":"IFERROR(VLOOKUP(B1165,[2]Sheet4!$F$2:$J$364,2,FALSE),\"\")","v":""},{"$f":"IFERROR(VLOOKUP(B1165,[2]Sheet4!$F$2:$J$364,3,FALSE),\"\")","v":""},{"$f":"IFERROR(VLOOKUP(B1165,[2]Sheet4!$F$2:$J$364,4,FALSE),\"\")","v":""},{"$f":"IFERROR(VLOOKUP(B1165,[2]Sheet4!$F$2:$J$364,5,FALSE),\"\")","v":""}]
[null,null,{"$f":"IFERROR(VLOOKUP(B1166,[2]Sheet4!$F$2:$J$364,2,FALSE),\"\")","v":""},{"$f":"IFERROR(VLOOKUP(B1166,[2]Sheet4!$F$2:$J$364,3,FALSE),\"\")","v":""},{"$f":"IFERROR(VLOOKUP(B1166,[2]Sheet4!$F$2:$J$364,4,FALSE),\"\")","v":""},{"$f":"IFERROR(VLOOKUP(B1166,[2]Sheet4!$F$2:$J$364,5,FALSE),\"\")","v":""}]
[null,null,{"$f":"IFERROR(VLOOKUP(B1167,[2]Sheet4!$F$2:$J$364,2,FALSE),\"\")","v":""},{"$f":"IFERROR(VLOOKUP(B1167,[2]Sheet4!$F$2:$J$364,3,FALSE),\"\")","v":""},{"$f":"IFERROR(VLOOKUP(B1167,[2]Sheet4!$F$2:$J$364,4,FALSE),\"\")","v":""},{"$f":"IFERROR(VLOOKUP(B1167,[2]Sheet4!$F$2:$J$364,5,FALSE),\"\")","v":""}]
[null,null,{"$f":"IFERROR(VLOOKUP(B1168,[2]Sheet4!$F$2:$J$364,2,FALSE),\"\")","v":""},{"$f":"IFERROR(VLOOKUP(B1168,[2]Sheet4!$F$2:$J$364,3,FALSE),\"\")","v":""},{"$f":"IFERROR(VLOOKUP(B1168,[2]Sheet4!$F$2:$J$364,4,FALSE),\"\")","v":""},{"$f":"IFERROR(VLOOKUP(B1168,[2]Sheet4!$F$2:$J$364,5,FALSE),\"\")","v":""}]
[null,null,{"$f":"IFERROR(VLOOKUP(B1169,[2]Sheet4!$F$2:$J$364,2,FALSE),\"\")","v":""},{"$f":"IFERROR(VLOOKUP(B1169,[2]Sheet4!$F$2:$J$364,3,FALSE),\"\")","v":""},{"$f":"IFERROR(VLOOKUP(B1169,[2]Sheet4!$F$2:$J$364,4,FALSE),\"\")","v":""},{"$f":"IFERROR(VLOOKUP(B1169,[2]Sheet4!$F$2:$J$364,5,FALSE),\"\")","v":""}]
[null,null,{"$f":"IFERROR(VLOOKUP(B1170,[2]Sheet4!$F$2:$J$364,2,FALSE),\"\")","v":""},{"$f":"IFERROR(VLOOKUP(B1170,[2]Sheet4!$F$2:$J$364,3,FALSE),\"\")","v":""},{"$f":"IFERROR(VLOOKUP(B1170,[2]Sheet4!$F$2:$J$364,4,FALSE),\"\")","v":""},{"$f":"IFERROR(VLOOKUP(B1170,[2]Sheet4!$F$2:$J$364,5,FALSE),\"\")","v":""}]
[null,null,{"$f":"IFERROR(VLOOKUP(B1171,[2]Sheet4!$F$2:$J$364,2,FALSE),\"\")","v":""},{"$f":"IFERROR(VLOOKUP(B1171,[2]Sheet4!$F$2:$J$364,3,FALSE),\"\")","v":""},{"$f":"IFERROR(VLOOKUP(B1171,[2]Sheet4!$F$2:$J$364,4,FALSE),\"\")","v":""},{"$f":"IFERROR(VLOOKUP(B1171,[2]Sheet4!$F$2:$J$364,5,FALSE),\"\")","v":""}]
[null,null,{"$f":"IFERROR(VLOOKUP(B1172,[2]Sheet4!$F$2:$J$364,2,FALSE),\"\")","v":""},{"$f":"IFERROR(VLOOKUP(B1172,[2]Sheet4!$F$2:$J$364,3,FALSE),\"\")","v":""},{"$f":"IFERROR(VLOOKUP(B1172,[2]Sheet4!$F$2:$J$364,4,FALSE),\"\")","v":""},{"$f":"IFERROR(VLOOKUP(B1172,[2]Sheet4!$F$2:$J$364,5,FALSE),\"\")","v":""}]
[null,null,{"$f":"IFERROR(VLOOKUP(B1173,[2]Sheet4!$F$2:$J$364,2,FALSE),\"\")","v":""},{"$f":"IFERROR(VLOOKUP(B1173,[2]Sheet4!$F$2:$J$364,3,FALSE),\"\")","v":""},{"$f":"IFERROR(VLOOKUP(B1173,[2]Sheet4!$F$2:$J$364,4,FALSE),\"\")","v":""},{"$f":"IFERROR(VLOOKUP(B1173,[2]Sheet4!$F$2:$J$364,5,FALSE),\"\")","v":""}]
[null,null,{"$f":"IFERROR(VLOOKUP(B1174,[2]Sheet4!$F$2:$J$364,2,FALSE),\"\")","v":""},{"$f":"IFERROR(VLOOKUP(B1174,[2]Sheet4!$F$2:$J$364,3,FALSE),\"\")","v":""},{"$f":"IFERROR(VLOOKUP(B1174,[2]Sheet4!$F$2:$J$364,4,FALSE),\"\")","v":""},{"$f":"IFERROR(VLOOKUP(B1174,[2]Sheet4!$F$2:$J$364,5,FALSE),\"\")","v":""}]
[null,null,{"$f":"IFERROR(VLOOKUP(B1175,[2]Sheet4!$F$2:$J$364,2,FALSE),\"\")","v":""},{"$f":"IFERROR(VLOOKUP(B1175,[2]Sheet4!$F$2:$J$364,3,FALSE),\"\")","v":""},{"$f":"IFERROR(VLOOKUP(B1175,[2]Sheet4!$F$2:$J$364,4,FALSE),\"\")","v":""},{"$f":"IFERROR(VLOOKUP(B1175,[2]Sheet4!$F$2:$J$364,5,FALSE),\"\")","v":""}]
[null,null,{"$f":"IFERROR(VLOOKUP(B1176,[2]Sheet4!$F$2:$J$364,2,FALSE),\"\")","v":""},{"$f":"IFERROR(VLOOKUP(B1176,[2]Sheet4!$F$2:$J$364,3,FALSE),\"\")","v":""},{"$f":"IFERROR(VLOOKUP(B1176,[2]Sheet4!$F$2:$J$364,4,FALSE),\"\")","v":""},{"$f":"IFERROR(VLOOKUP(B1176,[2]Sheet4!$F$2:$J$364,5,FALSE),\"\")","v":""}]
[null,null,{"$f":"IFERROR(VLOOKUP(B1177,[2]Sheet4!$F$2:$J$364,2,FALSE),\"\")","v":""},{"$f":"IFERROR(VLOOKUP(B1177,[2]Sheet4!$F$2:$J$364,3,FALSE),\"\")","v":""},{"$f":"IFERROR(VLOOKUP(B1177,[2]Sheet4!$F$2:$J$364,4,FALSE),\"\")","v":""},{"$f":"IFERROR(VLOOKUP(B1177,[2]Sheet4!$F$2:$J$364,5,FALSE),\"\")","v":""}]
[null,null,{"$f":"IFERROR(VLOOKUP(B1178,[2]Sheet4!$F$2:$J$364,2,FALSE),\"\")","v":""},{"$f":"IFERROR(VLOOKUP(B1178,[2]Sheet4!$F$2:$J$364,3,FALSE),\"\")","v":""},{"$f":"IFERROR(VLOOKUP(B1178,[2]Sheet4!$F$2:$J$364,4,FALSE),\"\")","v":""},{"$f":"IFERROR(VLOOKUP(B1178,[2]Sheet4!$F$2:$J$364,5,FALSE),\"\")","v":""}]
[null,null,{"$f":"IFERROR(VLOOKUP(B1179,[2]Sheet4!$F$2:$J$364,2,FALSE),\"\")","v":""},{"$f":"IFERROR(VLOOKUP(B1179,[2]Sheet4!$F$2:$J$364,3,FALSE),\"\")","v":""},{"$f":"IFERROR(VLOOKUP(B1179,[2]Sheet4!$F$2:$J$364,4,FALSE),\"\")","v":""},{"$f":"IFERROR(VLOOKUP(B1179,[2]Sheet4!$F$2:$J$364,5,FALSE),\"\")","v":""}]
[null,null,{"$f":"IFERROR(VLOOKUP(B1180,[2]Sheet4!$F$2:$J$364,2,FALSE),\"\")","v":""},{"$f":"IFERROR(VLOOKUP(B1180,[2]Sheet4!$F$2:$J$364,3,FALSE),\"\")","v":""},{"$f":"IFERROR(VLOOKUP(B1180,[2]Sheet4!$F$2:$J$364,4,FALSE),\"\")","v":""},{"$f":"IFERROR(VLOOKUP(B1180,[2]Sheet4!$F$2:$J$364,5,FALSE),\"\")","v":""}]
[null,null,{"$f":"IFERROR(VLOOKUP(B1181,[2]Sheet4!$F$2:$J$364,2,FALSE),\"\")","v":""},{"$f":"IFERROR(VLOOKUP(B1181,[2]Sheet4!$F$2:$J$364,3,FALSE),\"\")","v":""},{"$f":"IFERROR(VLOOKUP(B1181,[2]Sheet4!$F$2:$J$364,4,FALSE),\"\")","v":""},{"$f":"IFERROR(VLOOKUP(B1181,[2]Sheet4!$F$2:$J$364,5,FALSE),\"\")","v":""}]
[null,null,{"$f":"IFERROR(VLOOKUP(B1182,[2]Sheet4!$F$2:$J$364,2,FALSE),\"\")","v":""},{"$f":"IFERROR(VLOOKUP(B1182,[2]Sheet4!$F$2:$J$364,3,FALSE),\"\")","v":""},{"$f":"IFERROR(VLOOKUP(B1182,[2]Sheet4!$F$2:$J$364,4,FALSE),\"\")","v":""},{"$f":"IFERROR(VLOOKUP(B1182,[2]Sheet4!$F$2:$J$364,5,FALSE),\"\")","v":""}]
[null,null,{"$f":"IFERROR(VLOOKUP(B1183,[2]Sheet4!$F$2:$J$364,2,FALSE),\"\")","v":""},{"$f":"IFERROR(VLOOKUP(B1183,[2]Sheet4!$F$2:$J$364,3,FALSE),\"\")","v":""},{"$f":"IFERROR(VLOOKUP(B1183,[2]Sheet4!$F$2:$J$364,4,FALSE),\"\")","v":""},{"$f":"IFERROR(VLOOKUP(B1183,[2]Sheet4!$F$2:$J$364,5,FALSE),\"\")","v":""}]
[null,null,{"$f":"IFERROR(VLOOKUP(B1184,[2]Sheet4!$F$2:$J$364,2,FALSE),\"\")","v":""},{"$f":"IFERROR(VLOOKUP(B1184,[2]Sheet4!$F$2:$J$364,3,FALSE),\"\")","v":""},{"$f":"IFERROR(VLOOKUP(B1184,[2]Sheet4!$F$2:$J$364,4,FALSE),\"\")","v":""},{"$f":"IFERROR(VLOOKUP(B1184,[2]Sheet4!$F$2:$J$364,5,FALSE),\"\")","v":""}]
[null,null,{"$f":"IFERROR(VLOOKUP(B1185,[2]Sheet4!$F$2:$J$364,2,FALSE),\"\")","v":""},{"$f":"IFERROR(VLOOKUP(B1185,[2]Sheet4!$F$2:$J$364,3,FALSE),\"\")","v":""},{"$f":"IFERROR(VLOOKUP(B1185,[2]Sheet4!$F$2:$J$364,4,FALSE),\"\")","v":""},{"$f":"IFERROR(VLOOKUP(B1185,[2]Sheet4!$F$2:$J$364,5,FALSE),\"\")","v":""}]
[null,null,{"$f":"IFERROR(VLOOKUP(B1186,[2]Sheet4!$F$2:$J$364,2,FALSE),\"\")","v":""},{"$f":"IFERROR(VLOOKUP(B1186,[2]Sheet4!$F$2:$J$364,3,FALSE),\"\")","v":""},{"$f":"IFERROR(VLOOKUP(B1186,[2]Sheet4!$F$2:$J$364,4,FALSE),\"\")","v":""},{"$f":"IFERROR(VLOOKUP(B1186,[2]Sheet4!$F$2:$J$364,5,FALSE),\"\")","v":""}]
[null,null,{"$f":"IFERROR(VLOOKUP(B1187,[2]Sheet4!$F$2:$J$364,2,FALSE),\"\")","v":""},{"$f":"IFERROR(VLOOKUP(B1187,[2]Sheet4!$F$2:$J$364,3,FALSE),\"\")","v":""},{"$f":"IFERROR(VLOOKUP(B1187,[2]Sheet4!$F$2:$J$364,4,FALSE),\"\")","v":""},{"$f":"IFERROR(VLOOKUP(B1187,[2]Sheet4!$F$2:$J$364,5,FALSE),\"\")","v":""}]
[null,null,{"$f":"IFERROR(VLOOKUP(B1188,[2]Sheet4!$F$2:$J$364,2,FALSE),\"\")","v":""},{"$f":"IFERROR(VLOOKUP(B1188,[2]Sheet4!$F$2:$J$364,3,FALSE),\"\")","v":""},{"$f":"IFERROR(VLOOKUP(B1188,[2]Sheet4!$F$2:$J$364,4,FALSE),\"\")","v":""},{"$f":"IFERROR(VLOOKUP(B1188,[2]Sheet4!$F$2:$J$364,5,FALSE),\"\")","v":""}]
[null,null,{"$f":"IFERROR(VLOOKUP(B1189,[2]Sheet4!$F$2:$J$364,2,FALSE),\"\")","v":""},{"$f":"IFERROR(VLOOKUP(B1189,[2]Sheet4!$F$2:$J$364,3,FALSE),\"\")","v":""},{"$f":"IFERROR(VLOOKUP(B1189,[2]Sheet4!$F$2:$J$364,4,FALSE),\"\")","v":""},{"$f":"IFERROR(VLOOKUP(B1189,[2]Sheet4!$F$2:$J$364,5,FALSE),\"\")","v":""}]
[null,null,{"$f":"IFERROR(VLOOKUP(B1190,[2]Sheet4!$F$2:$J$364,2,FALSE),\"\")","v":""},{"$f":"IFERROR(VLOOKUP(B1190,[2]Sheet4!$F$2:$J$364,3,FALSE),\"\")","v":""},{"$f":"IFERROR(VLOOKUP(B1190,[2]Sheet4!$F$2:$J$364,4,FALSE),\"\")","v":""},{"$f":"IFERROR(VLOOKUP(B1190,[2]Sheet4!$F$2:$J$364,5,FALSE),\"\")","v":""}]
[null,null,{"$f":"IFERROR(VLOOKUP(B1191,[2]Sheet4!$F$2:$J$364,2,FALSE),\"\")","v":""},{"$f":"IFERROR(VLOOKUP(B1191,[2]Sheet4!$F$2:$J$364,3,FALSE),\"\")","v":""},{"$f":"IFERROR(VLOOKUP(B1191,[2]Sheet4!$F$2:$J$364,4,FALSE),\"\")","v":""},{"$f":"IFERROR(VLOOKUP(B1191,[2]Sheet4!$F$2:$J$364,5,FALSE),\"\")","v":""}]
[null,null,{"$f":"IFERROR(VLOOKUP(B1192,[2]Sheet4!$F$2:$J$364,2,FALSE),\"\")","v":""},{"$f":"IFERROR(VLOOKUP(B1192,[2]Sheet4!$F$2:$J$364,3,FALSE),\"\")","v":""},{"$f":"IFERROR(VLOOKUP(B1192,[2]Sheet4!$F$2:$J$364,4,FALSE),\"\")","v":""},{"$f":"IFERROR(VLOOKUP(B1192,[2]Sheet4!$F$2:$J$364,5,FALSE),\"\")","v":""}]
[null,null,{"$f":"IFERROR(VLOOKUP(B1193,[2]Sheet4!$F$2:$J$364,2,FALSE),\"\")","v":""},{"$f":"IFERROR(VLOOKUP(B1193,[2]Sheet4!$F$2:$J$364,3,FALSE),\"\")","v":""},{"$f":"IFERROR(VLOOKUP(B1193,[2]Sheet4!$F$2:$J$364,4,FALSE),\"\")","v":""},{"$f":"IFERROR(VLOOKUP(B1193,[2]Sheet4!$F$2:$J$364,5,FALSE),\"\")","v":""}]
[null,null,{"$f":"IFERROR(VLOOKUP(B1194,[2]Sheet4!$F$2:$J$364,2,FALSE),\"\")","v":""},{"$f":"IFERROR(VLOOKUP(B1194,[2]Sheet4!$F$2:$J$364,3,FALSE),\"\")","v":""},{"$f":"IFERROR(VLOOKUP(B1194,[2]Sheet4!$F$2:$J$364,4,FALSE),\"\")","v":""},{"$f":"IFERROR(VLOOKUP(B1194,[2]Sheet4!$F$2:$J$364,5,FALSE),\"\")","v":""}]
[null,null,{"$f":"IFERROR(VLOOKUP(B1195,[2]Sheet4!$F$2:$J$364,2,FALSE),\"\")","v":""},{"$f":"IFERROR(VLOOKUP(B1195,[2]Sheet4!$F$2:$J$364,3,FALSE),\"\")","v":""},{"$f":"IFERROR(VLOOKUP(B1195,[2]Sheet4!$F$2:$J$364,4,FALSE),\"\")","v":""},{"$f":"IFERROR(VLOOKUP(B1195,[2]Sheet4!$F$2:$J$364,5,FALSE),\"\")","v":""}]
[null,null,{"$f":"IFERROR(VLOOKUP(B1196,[2]Sheet4!$F$2:$J$364,2,FALSE),\"\")","v":""},{"$f":"IFERROR(VLOOKUP(B1196,[2]Sheet4!$F$2:$J$364,3,FALSE),\"\")","v":""},{"$f":"IFERROR(VLOOKUP(B1196,[2]Sheet4!$F$2:$J$364,4,FALSE),\"\")","v":""},{"$f":"IFERROR(VLOOKUP(B1196,[2]Sheet4!$F$2:$J$364,5,FALSE),\"\")","v":""}]
[null,null,{"$f":"IFERROR(VLOOKUP(B1197,[2]Sheet4!$F$2:$J$364,2,FALSE),\"\")","v":""},{"$f":"IFERROR(VLOOKUP(B1197,[2]Sheet4!$F$2:$J$364,3,FALSE),\"\")","v":""},{"$f":"IFERROR(VLOOKUP(B1197,[2]Sheet4!$F$2:$J$364,4,FALSE),\"\")","v":""},{"$f":"IFERROR(VLOOKUP(B1197,[2]Sheet4!$F$2:$J$364,5,FALSE),\"\")","v":""}]
[null,null,{"$f":"IFERROR(VLOOKUP(B1198,[2]Sheet4!$F$2:$J$364,2,FALSE),\"\")","v":""},{"$f":"IFERROR(VLOOKUP(B1198,[2]Sheet4!$F$2:$J$364,3,FALSE),\"\")","v":""},{"$f":"IFERROR(VLOOKUP(B1198,[2]Sheet4!$F$2:$J$364,4,FALSE),\"\")","v":""},{"$f":"IFERROR(VLOOKUP(B1198,[2]Sheet4!$F$2:$J$364,5,FALSE),\"\")","v":""}]
[null,null,{"$f":"IFERROR(VLOOKUP(B1199,[2]Sheet4!$F$2:$J$364,2,FALSE),\"\")","v":""},{"$f":"IFERROR(VLOOKUP(B1199,[2]Sheet4!$F$2:$J$364,3,FALSE),\"\")","v":""},{"$f":"IFERROR(VLOOKUP(B1199,[2]Sheet4!$F$2:$J$364,4,FALSE),\"\")","v":""},{"$f":"IFERROR(VLOOKUP(B1199,[2]Sheet4!$F$2:$J$364,5,FALSE),\"\")","v":""}]
[null,null,{"$f":"IFERROR(VLOOKUP(B1200,[2]Sheet4!$F$2:$J$364,2,FALSE),\"\")","v":""},{"$f":"IFERROR(VLOOKUP(B1200,[2]Sheet4!$F$2:$J$364,3,FALSE),\"\")","v":""},{"$f":"IFERROR(VLOOKUP(B1200,[2]Sheet4!$F$2:$J$364,4,FALSE),\"\")","v":""},{"$f":"IFERROR(VLOOKUP(B1200,[2]Sheet4!$F$2:$J$364,5,FALSE),\"\")","v":""}]
[null,null,{"$f":"IFERROR(VLOOKUP(B1201,[2]Sheet4!$F$2:$J$364,2,FALSE),\"\")","v":""},{"$f":"IFERROR(VLOOKUP(B1201,[2]Sheet4!$F$2:$J$364,3,FALSE),\"\")","v":""},{"$f":"IFERROR(VLOOKUP(B1201,[2]Sheet4!$F$2:$J$364,4,FALSE),\"\")","v":""},{"$f":"IFERROR(VLOOKUP(B1201,[2]Sheet4!$F$2:$J$364,5,FALSE),\"\")","v":""}]
[null,null,{"$f":"IFERROR(VLOOKUP(B1202,[2]Sheet4!$F$2:$J$364,2,FALSE),\"\")","v":""},{"$f":"IFERROR(VLOOKUP(B1202,[2]Sheet4!$F$2:$J$364,3,FALSE),\"\")","v":""},{"$f":"IFERROR(VLOOKUP(B1202,[2]Sheet4!$F$2:$J$364,4,FALSE),\"\")","v":""},{"$f":"IFERROR(VLOOKUP(B1202,[2]Sheet4!$F$2:$J$364,5,FALSE),\"\")","v":""}]
[null,null,{"$f":"IFERROR(VLOOKUP(B1203,[2]Sheet4!$F$2:$J$364,2,FALSE),\"\")","v":""},{"$f":"IFERROR(VLOOKUP(B1203,[2]Sheet4!$F$2:$J$364,3,FALSE),\"\")","v":""},{"$f":"IFERROR(VLOOKUP(B1203,[2]Sheet4!$F$2:$J$364,4,FALSE),\"\")","v":""},{"$f":"IFERROR(VLOOKUP(B1203,[2]Sheet4!$F$2:$J$364,5,FALSE),\"\")","v":""}]
[null,null,{"$f":"IFERROR(VLOOKUP(B1204,[2]Sheet4!$F$2:$J$364,2,FALSE),\"\")","v":""},{"$f":"IFERROR(VLOOKUP(B1204,[2]Sheet4!$F$2:$J$364,3,FALSE),\"\")","v":""},{"$f":"IFERROR(VLOOKUP(B1204,[2]Sheet4!$F$2:$J$364,4,FALSE),\"\")","v":""},{"$f":"IFERROR(VLOOKUP(B1204,[2]Sheet4!$F$2:$J$364,5,FALSE),\"\")","v":""}]
[null,null,{"$f":"IFERROR(VLOOKUP(B1205,[2]Sheet4!$F$2:$J$364,2,FALSE),\"\")","v":""},{"$f":"IFERROR(VLOOKUP(B1205,[2]Sheet4!$F$2:$J$364,3,FALSE),\"\")","v":""},{"$f":"IFERROR(VLOOKUP(B1205,[2]Sheet4!$F$2:$J$364,4,FALSE),\"\")","v":""},{"$f":"IFERROR(VLOOKUP(B1205,[2]Sheet4!$F$2:$J$364,5,FALSE),\"\")","v":""}]
[null,null,{"$f":"IFERROR(VLOOKUP(B1206,[2]Sheet4!$F$2:$J$364,2,FALSE),\"\")","v":""},{"$f":"IFERROR(VLOOKUP(B1206,[2]Sheet4!$F$2:$J$364,3,FALSE),\"\")","v":""},{"$f":"IFERROR(VLOOKUP(B1206,[2]Sheet4!$F$2:$J$364,4,FALSE),\"\")","v":""},{"$f":"IFERROR(VLOOKUP(B1206,[2]Sheet4!$F$2:$J$364,5,FALSE),\"\")","v":""}]
[null,null,{"$f":"IFERROR(VLOOKUP(B1207,[2]Sheet4!$F$2:$J$364,2,FALSE),\"\")","v":""},{"$f":"IFERROR(VLOOKUP(B1207,[2]Sheet4!$F$2:$J$364,3,FALSE),\"\")","v":""},{"$f":"IFERROR(VLOOKUP(B1207,[2]Sheet4!$F$2:$J$364,4,FALSE),\"\")","v":""},{"$f":"IFERROR(VLOOKUP(B1207,[2]Sheet4!$F$2:$J$364,5,FALSE),\"\")","v":""}]
[null,null,{"$f":"IFERROR(VLOOKUP(B1208,[2]Sheet4!$F$2:$J$364,2,FALSE),\"\")","v":""},{"$f":"IFERROR(VLOOKUP(B1208,[2]Sheet4!$F$2:$J$364,3,FALSE),\"\")","v":""},{"$f":"IFERROR(VLOOKUP(B1208,[2]Sheet4!$F$2:$J$364,4,FALSE),\"\")","v":""},{"$f":"IFERROR(VLOOKUP(B1208,[2]Sheet4!$F$2:$J$364,5,FALSE),\"\")","v":""}]
[null,null,{"$f":"IFERROR(VLOOKUP(B1209,[2]Sheet4!$F$2:$J$364,2,FALSE),\"\")","v":""},{"$f":"IFERROR(VLOOKUP(B1209,[2]Sheet4!$F$2:$J$364,3,FALSE),\"\")","v":""},{"$f":"IFERROR(VLOOKUP(B1209,[2]Sheet4!$F$2:$J$364,4,FALSE),\"\")","v":""},{"$f":"IFERROR(VLOOKUP(B1209,[2]Sheet4!$F$2:$J$364,5,FALSE),\"\")","v":""}]
[null,null,{"$f":"IFERROR(VLOOKUP(B1210,[2]Sheet4!$F$2:$J$364,2,FALSE),\"\")","v":""},{"$f":"IFERROR(VLOOKUP(B1210,[2]Sheet4!$F$2:$J$364,3,FALSE),\"\")","v":""},{"$f":"IFERROR(VLOOKUP(B1210,[2]Sheet4!$F$2:$J$364,4,FALSE),\"\")","v":""},{"$f":"IFERROR(VLOOKUP(B1210,[2]Sheet4!$F$2:$J$364,5,FALSE),\"\")","v":""}]
[null,null,{"$f":"IFERROR(VLOOKUP(B1211,[2]Sheet4!$F$2:$J$364,2,FALSE),\"\")","v":""},{"$f":"IFERROR(VLOOKUP(B1211,[2]Sheet4!$F$2:$J$364,3,FALSE),\"\")","v":""},{"$f":"IFERROR(VLOOKUP(B1211,[2]Sheet4!$F$2:$J$364,4,FALSE),\"\")","v":""},{"$f":"IFERROR(VLOOKUP(B1211,[2]Sheet4!$F$2:$J$364,5,FALSE),\"\")","v":""}]
[null,null,{"$f":"IFERROR(VLOOKUP(B1212,[2]Sheet4!$F$2:$J$364,2,FALSE),\"\")","v":""},{"$f":"IFERROR(VLOOKUP(B1212,[2]Sheet4!$F$2:$J$364,3,FALSE),\"\")","v":""},{"$f":"IFERROR(VLOOKUP(B1212,[2]Sheet4!$F$2:$J$364,4,FALSE),\"\")","v":""},{"$f":"IFERROR(VLOOKUP(B1212,[2]Sheet4!$F$2:$J$364,5,FALSE),\"\")","v":""}]
[null,null,{"$f":"IFERROR(VLOOKUP(B1213,[2]Sheet4!$F$2:$J$364,2,FALSE),\"\")","v":""},{"$f":"IFERROR(VLOOKUP(B1213,[2]Sheet4!$F$2:$J$364,3,FALSE),\"\")","v":""},{"$f":"IFERROR(VLOOKUP(B1213,[2]Sheet4!$F$2:$J$364,4,FALSE),\"\")","v":""},{"$f":"IFERROR(VLOOKUP(B1213,[2]Sheet4!$F$2:$J$364,5,FALSE),\"\")","v":""}]
[null,null,{"$f":"IFERROR(VLOOKUP(B1214,[2]Sheet4!$F$2:$J$364,2,FALSE),\"\")","v":""},{"$f":"IFERROR(VLOOKUP(B1214,[2]Sheet4!$F$2:$J$364,3,FALSE),\"\")","v":""},{"$f":"IFERROR(VLOOKUP(B1214,[2]Sheet4!$F$2:$J$364,4,FALSE),\"\")","v":""},{"$f":"IFERROR(VLOOKUP(B1214,[2]Sheet4!$F$2:$J$364,5,FALSE),\"\")","v":""}]
[null,null,{"$f":"IFERROR(VLOOKUP(B1215,[2]Sheet4!$F$2:$J$364,2,FALSE),\"\")","v":""},{"$f":"IFERROR(VLOOKUP(B1215,[2]Sheet4!$F$2:$J$364,3,FALSE),\"\")","v":""},{"$f":"IFERROR(VLOOKUP(B1215,[2]Sheet4!$F$2:$J$364,4,FALSE),\"\")","v":""},{"$f":"IFERROR(VLOOKUP(B1215,[2]Sheet4!$F$2:$J$364,5,FALSE),\"\")","v":""}]
[null,null,{"$f":"IFERROR(VLOOKUP(B1216,[2]Sheet4!$F$2:$J$364,2,FALSE),\"\")","v":""},{"$f":"IFERROR(VLOOKUP(B1216,[2]Sheet4!$F$2:$J$364,3,FALSE),\"\")","v":""},{"$f":"IFERROR(VLOOKUP(B1216,[2]Sheet4!$F$2:$J$364,4,FALSE),\"\")","v":""},{"$f":"IFERROR(VLOOKUP(B1216,[2]Sheet4!$F$2:$J$364,5,FALSE),\"\")","v":""}]
[null,null,{"$f":"IFERROR(VLOOKUP(B1217,[2]Sheet4!$F$2:$J$364,2,FALSE),\"\")","v":""},{"$f":"IFERROR(VLOOKUP(B1217,[2]Sheet4!$F$2:$J$364,3,FALSE),\"\")","v":""},{"$f":"IFERROR(VLOOKUP(B1217,[2]Sheet4!$F$2:$J$364,4,FALSE),\"\")","v":""},{"$f":"IFERROR(VLOOKUP(B1217,[2]Sheet4!$F$2:$J$364,5,FALSE),\"\")","v":""}]
[null,null,{"$f":"IFERROR(VLOOKUP(B1218,[2]Sheet4!$F$2:$J$364,2,FALSE),\"\")","v":""},{"$f":"IFERROR(VLOOKUP(B1218,[2]Sheet4!$F$2:$J$364,3,FALSE),\"\")","v":""},{"$f":"IFERROR(VLOOKUP(B1218,[2]Sheet4!$F$2:$J$364,4,FALSE),\"\")","v":""},{"$f":"IFERROR(VLOOKUP(B1218,[2]Sheet4!$F$2:$J$364,5,FALSE),\"\")","v":""}]
[null,null,{"$f":"IFERROR(VLOOKUP(B1219,[2]Sheet4!$F$2:$J$364,2,FALSE),\"\")","v":""},{"$f":"IFERROR(VLOOKUP(B1219,[2]Sheet4!$F$2:$J$364,3,FALSE),\"\")","v":""},{"$f":"IFERROR(VLOOKUP(B1219,[2]Sheet4!$F$2:$J$364,4,FALSE),\"\")","v":""},{"$f":"IFERROR(VLOOKUP(B1219,[2]Sheet4!$F$2:$J$364,5,FALSE),\"\")","v":""}]
[null,null,{"$f":"IFERROR(VLOOKUP(B1220,[2]Sheet4!$F$2:$J$364,2,FALSE),\"\")","v":""},{"$f":"IFERROR(VLOOKUP(B1220,[2]Sheet4!$F$2:$J$364,3,FALSE),\"\")","v":""},{"$f":"IFERROR(VLOOKUP(B1220,[2]Sheet4!$F$2:$J$364,4,FALSE),\"\")","v":""},{"$f":"IFERROR(VLOOKUP(B1220,[2]Sheet4!$F$2:$J$364,5,FALSE),\"\")","v":""}]
[null,null,{"$f":"IFERROR(VLOOKUP(B1221,[2]Sheet4!$F$2:$J$364,2,FALSE),\"\")","v":""},{"$f":"IFERROR(VLOOKUP(B1221,[2]Sheet4!$F$2:$J$364,3,FALSE),\"\")","v":""},{"$f":"IFERROR(VLOOKUP(B1221,[2]Sheet4!$F$2:$J$364,4,FALSE),\"\")","v":""},{"$f":"IFERROR(VLOOKUP(B1221,[2]Sheet4!$F$2:$J$364,5,FALSE),\"\")","v":""}]
[null,null,{"$f":"IFERROR(VLOOKUP(B1222,[2]Sheet4!$F$2:$J$364,2,FALSE),\"\")","v":""},{"$f":"IFERROR(VLOOKUP(B1222,[2]Sheet4!$F$2:$J$364,3,FALSE),\"\")","v":""},{"$f":"IFERROR(VLOOKUP(B1222,[2]Sheet4!$F$2:$J$364,4,FALSE),\"\")","v":""},{"$f":"IFERROR(VLOOKUP(B1222,[2]Sheet4!$F$2:$J$364,5,FALSE),\"\")","v":""}]
[null,null,{"$f":"IFERROR(VLOOKUP(B1223,[2]Sheet4!$F$2:$J$364,2,FALSE),\"\")","v":""},{"$f":"IFERROR(VLOOKUP(B1223,[2]Sheet4!$F$2:$J$364,3,FALSE),\"\")","v":""},{"$f":"IFERROR(VLOOKUP(B1223,[2]Sheet4!$F$2:$J$364,4,FALSE),\"\")","v":""},{"$f":"IFERROR(VLOOKUP(B1223,[2]Sheet4!$F$2:$J$364,5,FALSE),\"\")","v":""}]
[null,null,{"$f":"IFERROR(VLOOKUP(B1224,[2]Sheet4!$F$2:$J$364,2,FALSE),\"\")","v":""},{"$f":"IFERROR(VLOOKUP(B1224,[2]Sheet4!$F$2:$J$364,3,FALSE),\"\")","v":""},{"$f":"IFERROR(VLOOKUP(B1224,[2]Sheet4!$F$2:$J$364,4,FALSE),\"\")","v":""},{"$f":"IFERROR(VLOOKUP(B1224,[2]Sheet4!$F$2:$J$364,5,FALSE),\"\")","v":""}]
[null,null,{"$f":"IFERROR(VLOOKUP(B1225,[2]Sheet4!$F$2:$J$364,2,FALSE),\"\")","v":""},{"$f":"IFERROR(VLOOKUP(B1225,[2]Sheet4!$F$2:$J$364,3,FALSE),\"\")","v":""},{"$f":"IFERROR(VLOOKUP(B1225,[2]Sheet4!$F$2:$J$364,4,FALSE),\"\")","v":""},{"$f":"IFERROR(VLOOKUP(B1225,[2]Sheet4!$F$2:$J$364,5,FALSE),\"\")","v":""}]
[null,null,{"$f":"IFERROR(VLOOKUP(B1226,[2]Sheet4!$F$2:$J$364,2,FALSE),\"\")","v":""},{"$f":"IFERROR(VLOOKUP(B1226,[2]Sheet4!$F$2:$J$364,3,FALSE),\"\")","v":""},{"$f":"IFERROR(VLOOKUP(B1226,[2]Sheet4!$F$2:$J$364,4,FALSE),\"\")","v":""},{"$f":"IFERROR(VLOOKUP(B1226,[2]Sheet4!$F$2:$J$364,5,FALSE),\"\")","v":""}]
[null,null,{"$f":"IFERROR(VLOOKUP(B1227,[2]Sheet4!$F$2:$J$364,2,FALSE),\"\")","v":""},{"$f":"IFERROR(VLOOKUP(B1227,[2]Sheet4!$F$2:$J$364,3,FALSE),\"\")","v":""},{"$f":"IFERROR(VLOOKUP(B1227,[2]Sheet4!$F$2:$J$364,4,FALSE),\"\")","v":""},{"$f":"IFERROR(VLOOKUP(B1227,[2]Sheet4!$F$2:$J$364,5,FALSE),\"\")","v":""}]
[null,null,{"$f":"IFERROR(VLOOKUP(B1228,[2]Sheet4!$F$2:$J$364,2,FALSE),\"\")","v":""},{"$f":"IFERROR(VLOOKUP(B1228,[2]Sheet4!$F$2:$J$364,3,FALSE),\"\")","v":""},{"$f":"IFERROR(VLOOKUP(B1228,[2]Sheet4!$F$2:$J$364,4,FALSE),\"\")","v":""},{"$f":"IFERROR(VLOOKUP(B1228,[2]Sheet4!$F$2:$J$364,5,FALSE),\"\")","v":""}]
[null,null,{"$f":"IFERROR(VLOOKUP(B1229,[2]Sheet4!$F$2:$J$364,2,FALSE),\"\")","v":""},{"$f":"IFERROR(VLOOKUP(B1229,[2]Sheet4!$F$2:$J$364,3,FALSE),\"\")","v":""},{"$f":"IFERROR(VLOOKUP(B1229,[2]Sheet4!$F$2:$J$364,4,FALSE),\"\")","v":""},{"$f":"IFERROR(VLOOKUP(B1229,[2]Sheet4!$F$2:$J$364,5,FALSE),\"\")","v":""}]
[null,null,{"$f":"IFERROR(VLOOKUP(B1230,[2]Sheet4!$F$2:$J$364,2,FALSE),\"\")","v":""},{"$f":"IFERROR(VLOOKUP(B1230,[2]Sheet4!$F$2:$J$364,3,FALSE),\"\")","v":""},{"$f":"IFERROR(VLOOKUP(B1230,[2]Sheet4!$F$2:$J$364,4,FALSE),\"\")","v":""},{"$f":"IFERROR(VLOOKUP(B1230,[2]Sheet4!$F$2:$J$364,5,FALSE),\"\")","v":""}]
[null,null,{"$f":"IFERROR(VLOOKUP(B1231,[2]Sheet4!$F$2:$J$364,2,FALSE),\"\")","v":""},{"$f":"IFERROR(VLOOKUP(B1231,[2]Sheet4!$F$2:$J$364,3,FALSE),\"\")","v":""},{"$f":"IFERROR(VLOOKUP(B1231,[2]Sheet4!$F$2:$J$364,4,FALSE),\"\")","v":""},{"$f":"IFERROR(VLOOKUP(B1231,[2]Sheet4!$F$2:$J$364,5,FALSE),\"\")","v":""}]
[null,null,{"$f":"IFERROR(VLOOKUP(B1232,[2]Sheet4!$F$2:$J$364,2,FALSE),\"\")","v":""},{"$f":"IFERROR(VLOOKUP(B1232,[2]Sheet4!$F$2:$J$364,3,FALSE),\"\")","v":""},{"$f":"IFERROR(VLOOKUP(B1232,[2]Sheet4!$F$2:$J$364,4,FALSE),\"\")","v":""},{"$f":"IFERROR(VLOOKUP(B1232,[2]Sheet4!$F$2:$J$364,5,FALSE),\"\")","v":""}]
[null,null,{"$f":"IFERROR(VLOOKUP(B1233,[2]Sheet4!$F$2:$J$364,2,FALSE),\"\")","v":""},{"$f":"IFERROR(VLOOKUP(B1233,[2]Sheet4!$F$2:$J$364,3,FALSE),\"\")","v":""},{"$f":"IFERROR(VLOOKUP(B1233,[2]Sheet4!$F$2:$J$364,4,FALSE),\"\")","v":""},{"$f":"IFERROR(VLOOKUP(B1233,[2]Sheet4!$F$2:$J$364,5,FALSE),\"\")","v":""}]
[null,null,{"$f":"IFERROR(VLOOKUP(B1234,[2]Sheet4!$F$2:$J$364,2,FALSE),\"\")","v":""},{"$f":"IFERROR(VLOOKUP(B1234,[2]Sheet4!$F$2:$J$364,3,FALSE),\"\")","v":""},{"$f":"IFERROR(VLOOKUP(B1234,[2]Sheet4!$F$2:$J$364,4,FALSE),\"\")","v":""},{"$f":"IFERROR(VLOOKUP(B1234,[2]Sheet4!$F$2:$J$364,5,FALSE),\"\")","v":""}]
[null,null,{"$f":"IFERROR(VLOOKUP(B1235,[2]Sheet4!$F$2:$J$364,2,FALSE),\"\")","v":""},{"$f":"IFERROR(VLOOKUP(B1235,[2]Sheet4!$F$2:$J$364,3,FALSE),\"\")","v":""},{"$f":"IFERROR(VLOOKUP(B1235,[2]Sheet4!$F$2:$J$364,4,FALSE),\"\")","v":""},{"$f":"IFERROR(VLOOKUP(B1235,[2]Sheet4!$F$2:$J$364,5,FALSE),\"\")","v":""}]
[null,null,{"$f":"IFERROR(VLOOKUP(B1236,[2]Sheet4!$F$2:$J$364,2,FALSE),\"\")","v":""},{"$f":"IFERROR(VLOOKUP(B1236,[2]Sheet4!$F$2:$J$364,3,FALSE),\"\")","v":""},{"$f":"IFERROR(VLOOKUP(B1236,[2]Sheet4!$F$2:$J$364,4,FALSE),\"\")","v":""},{"$f":"IFERROR(VLOOKUP(B1236,[2]Sheet4!$F$2:$J$364,5,FALSE),\"\")","v":""}]
[null,null,{"$f":"IFERROR(VLOOKUP(B1237,[2]Sheet4!$F$2:$J$364,2,FALSE),\"\")","v":""},{"$f":"IFERROR(VLOOKUP(B1237,[2]Sheet4!$F$2:$J$364,3,FALSE),\"\")","v":""},{"$f":"IFERROR(VLOOKUP(B1237,[2]Sheet4!$F$2:$J$364,4,FALSE),\"\")","v":""},{"$f":"IFERROR(VLOOKUP(B1237,[2]Sheet4!$F$2:$J$364,5,FALSE),\"\")","v":""}]
[null,null,{"$f":"IFERROR(VLOOKUP(B1238,[2]Sheet4!$F$2:$J$364,2,FALSE),\"\")","v":""},{"$f":"IFERROR(VLOOKUP(B1238,[2]Sheet4!$F$2:$J$364,3,FALSE),\"\")","v":""},{"$f":"IFERROR(VLOOKUP(B1238,[2]Sheet4!$F$2:$J$364,4,FALSE),\"\")","v":""},{"$f":"IFERROR(VLOOKUP(B1238,[2]Sheet4!$F$2:$J$364,5,FALSE),\"\")","v":""}]
[null,null,{"$f":"IFERROR(VLOOKUP(B1239,[2]Sheet4!$F$2:$J$364,2,FALSE),\"\")","v":""},{"$f":"IFERROR(VLOOKUP(B1239,[2]Sheet4!$F$2:$J$364,3,FALSE),\"\")","v":""},{"$f":"IFERROR(VLOOKUP(B1239,[2]Sheet4!$F$2:$J$364,4,FALSE),\"\")","v":""},{"$f":"IFERROR(VLOOKUP(B1239,[2]Sheet4!$F$2:$J$364,5,FALSE),\"\")","v":""}]
[null,null,{"$f":"IFERROR(VLOOKUP(B1240,[2]Sheet4!$F$2:$J$364,2,FALSE),\"\")","v":""},{"$f":"IFERROR(VLOOKUP(B1240,[2]Sheet4!$F$2:$J$364,3,FALSE),\"\")","v":""},{"$f":"IFERROR(VLOOKUP(B1240,[2]Sheet4!$F$2:$J$364,4,FALSE),\"\")","v":""},{"$f":"IFERROR(VLOOKUP(B1240,[2]Sheet4!$F$2:$J$364,5,FALSE),\"\")","v":""}]
[null,null,{"$f":"IFERROR(VLOOKUP(B1241,[2]Sheet4!$F$2:$J$364,2,FALSE),\"\")","v":""},{"$f":"IFERROR(VLOOKUP(B1241,[2]Sheet4!$F$2:$J$364,3,FALSE),\"\")","v":""},{"$f":"IFERROR(VLOOKUP(B1241,[2]Sheet4!$F$2:$J$364,4,FALSE),\"\")","v":""},{"$f":"IFERROR(VLOOKUP(B1241,[2]Sheet4!$F$2:$J$364,5,FALSE),\"\")","v":""}]
[null,null,{"$f":"IFERROR(VLOOKUP(B1242,[2]Sheet4!$F$2:$J$364,2,FALSE),\"\")","v":""},{"$f":"IFERROR(VLOOKUP(B1242,[2]Sheet4!$F$2:$J$364,3,FALSE),\"\")","v":""},{"$f":"IFERROR(VLOOKUP(B1242,[2]Sheet4!$F$2:$J$364,4,FALSE),\"\")","v":""},{"$f":"IFERROR(VLOOKUP(B1242,[2]Sheet4!$F$2:$J$364,5,FALSE),\"\")","v":""}]
[null,null,{"$f":"IFERROR(VLOOKUP(B1243,[2]Sheet4!$F$2:$J$364,2,FALSE),\"\")","v":""},{"$f":"IFERROR(VLOOKUP(B1243,[2]Sheet4!$F$2:$J$364,3,FALSE),\"\")","v":""},{"$f":"IFERROR(VLOOKUP(B1243,[2]Sheet4!$F$2:$J$364,4,FALSE),\"\")","v":""},{"$f":"IFERROR(VLOOKUP(B1243,[2]Sheet4!$F$2:$J$364,5,FALSE),\"\")","v":""}]
[null,null,{"$f":"IFERROR(VLOOKUP(B1244,[2]Sheet4!$F$2:$J$364,2,FALSE),\"\")","v":""},{"$f":"IFERROR(VLOOKUP(B1244,[2]Sheet4!$F$2:$J$364,3,FALSE),\"\")","v":""},{"$f":"IFERROR(VLOOKUP(B1244,[2]Sheet4!$F$2:$J$364,4,FALSE),\"\")","v":""},{"$f":"IFERROR(VLOOKUP(B1244,[2]Sheet4!$F$2:$J$364,5,FALSE),\"\")","v":""}]
[null,null,{"$f":"IFERROR(VLOOKUP(B1245,[2]Sheet4!$F$2:$J$364,2,FALSE),\"\")","v":""},{"$f":"IFERROR(VLOOKUP(B1245,[2]Sheet4!$F$2:$J$364,3,FALSE),\"\")","v":""},{"$f":"IFERROR(VLOOKUP(B1245,[2]Sheet4!$F$2:$J$364,4,FALSE),\"\")","v":""},{"$f":"IFERROR(VLOOKUP(B1245,[2]Sheet4!$F$2:$J$364,5,FALSE),\"\")","v":""}]
[null,null,{"$f":"IFERROR(VLOOKUP(B1246,[2]Sheet4!$F$2:$J$364,2,FALSE),\"\")","v":""},{"$f":"IFERROR(VLOOKUP(B1246,[2]Sheet4!$F$2:$J$364,3,FALSE),\"\")","v":""},{"$f":"IFERROR(VLOOKUP(B1246,[2]Sheet4!$F$2:$J$364,4,FALSE),\"\")","v":""},{"$f":"IFERROR(VLOOKUP(B1246,[2]Sheet4!$F$2:$J$364,5,FALSE),\"\")","v":""}]
[null,null,{"$f":"IFERROR(VLOOKUP(B1247,[2]Sheet4!$F$2:$J$364,2,FALSE),\"\")","v":""},{"$f":"IFERROR(VLOOKUP(B1247,[2]Sheet4!$F$2:$J$364,3,FALSE),\"\")","v":""},{"$f":"IFERROR(VLOOKUP(B1247,[2]Sheet4!$F$2:$J$364,4,FALSE),\"\")","v":""},{"$f":"IFERROR(VLOOKUP(B1247,[2]Sheet4!$F$2:$J$364,5,FALSE),\"\")","v":""}]
[null,null,{"$f":"IFERROR(VLOOKUP(B1248,[2]Sheet4!$F$2:$J$364,2,FALSE),\"\")","v":""},{"$f":"IFERROR(VLOOKUP(B1248,[2]Sheet4!$F$2:$J$364,3,FALSE),\"\")","v":""},{"$f":"IFERROR(VLOOKUP(B1248,[2]Sheet4!$F$2:$J$364,4,FALSE),\"\")","v":""},{"$f":"IFERROR(VLOOKUP(B1248,[2]Sheet4!$F$2:$J$364,5,FALSE),\"\")","v":""}]
[null,null,{"$f":"IFERROR(VLOOKUP(B1249,[2]Sheet4!$F$2:$J$364,2,FALSE),\"\")","v":""},{"$f":"IFERROR(VLOOKUP(B1249,[2]Sheet4!$F$2:$J$364,3,FALSE),\"\")","v":""},{"$f":"IFERROR(VLOOKUP(B1249,[2]Sheet4!$F$2:$J$364,4,FALSE),\"\")","v":""},{"$f":"IFERROR(VLOOKUP(B1249,[2]Sheet4!$F$2:$J$364,5,FALSE),\"\")","v":""}]
[null,null,{"$f":"IFERROR(VLOOKUP(B1250,[2]Sheet4!$F$2:$J$364,2,FALSE),\"\")","v":""},{"$f":"IFERROR(VLOOKUP(B1250,[2]Sheet4!$F$2:$J$364,3,FALSE),\"\")","v":""},{"$f":"IFERROR(VLOOKUP(B1250,[2]Sheet4!$F$2:$J$364,4,FALSE),\"\")","v":""},{"$f":"IFERROR(VLOOKUP(B1250,[2]Sheet4!$F$2:$J$364,5,FALSE),\"\")","v":""}]
[null,null,{"$f":"IFERROR(VLOOKUP(B1251,[2]Sheet4!$F$2:$J$364,2,FALSE),\"\")","v":""},{"$f":"IFERROR(VLOOKUP(B1251,[2]Sheet4!$F$2:$J$364,3,FALSE),\"\")","v":""},{"$f":"IFERROR(VLOOKUP(B1251,[2]Sheet4!$F$2:$J$364,4,FALSE),\"\")","v":""},{"$f":"IFERROR(VLOOKUP(B1251,[2]Sheet4!$F$2:$J$364,5,FALSE),\"\")","v":""}]
[null,null,{"$f":"IFERROR(VLOOKUP(B1252,[2]Sheet4!$F$2:$J$364,2,FALSE),\"\")","v":""},{"$f":"IFERROR(VLOOKUP(B1252,[2]Sheet4!$F$2:$J$364,3,FALSE),\"\")","v":""},{"$f":"IFERROR(VLOOKUP(B1252,[2]Sheet4!$F$2:$J$364,4,FALSE),\"\")","v":""},{"$f":"IFERROR(VLOOKUP(B1252,[2]Sheet4!$F$2:$J$364,5,FALSE),\"\")","v":""}]
[null,null,{"$f":"IFERROR(VLOOKUP(B1253,[2]Sheet4!$F$2:$J$364,2,FALSE),\"\")","v":""},{"$f":"IFERROR(VLOOKUP(B1253,[2]Sheet4!$F$2:$J$364,3,FALSE),\"\")","v":""},{"$f":"IFERROR(VLOOKUP(B1253,[2]Sheet4!$F$2:$J$364,4,FALSE),\"\")","v":""},{"$f":"IFERROR(VLOOKUP(B1253,[2]Sheet4!$F$2:$J$364,5,FALSE),\"\")","v":""}]
[null,null,{"$f":"IFERROR(VLOOKUP(B1254,[2]Sheet4!$F$2:$J$364,2,FALSE),\"\")","v":""},{"$f":"IFERROR(VLOOKUP(B1254,[2]Sheet4!$F$2:$J$364,3,FALSE),\"\")","v":""},{"$f":"IFERROR(VLOOKUP(B1254,[2]Sheet4!$F$2:$J$364,4,FALSE),\"\")","v":""},{"$f":"IFERROR(VLOOKUP(B1254,[2]Sheet4!$F$2:$J$364,5,FALSE),\"\")","v":""}]
[null,null,{"$f":"IFERROR(VLOOKUP(B1255,[2]Sheet4!$F$2:$J$364,2,FALSE),\"\")","v":""},{"$f":"IFERROR(VLOOKUP(B1255,[2]Sheet4!$F$2:$J$364,3,FALSE),\"\")","v":""},{"$f":"IFERROR(VLOOKUP(B1255,[2]Sheet4!$F$2:$J$364,4,FALSE),\"\")","v":""},{"$f":"IFERROR(VLOOKUP(B1255,[2]Sheet4!$F$2:$J$364,5,FALSE),\"\")","v":""}]
[null,null,{"$f":"IFERROR(VLOOKUP(B1256,[2]Sheet4!$F$2:$J$364,2,FALSE),\"\")","v":""},{"$f":"IFERROR(VLOOKUP(B1256,[2]Sheet4!$F$2:$J$364,3,FALSE),\"\")","v":""},{"$f":"IFERROR(VLOOKUP(B1256,[2]Sheet4!$F$2:$J$364,4,FALSE),\"\")","v":""},{"$f":"IFERROR(VLOOKUP(B1256,[2]Sheet4!$F$2:$J$364,5,FALSE),\"\")","v":""}]
[null,null,{"$f":"IFERROR(VLOOKUP(B1257,[2]Sheet4!$F$2:$J$364,2,FALSE),\"\")","v":""},{"$f":"IFERROR(VLOOKUP(B1257,[2]Sheet4!$F$2:$J$364,3,FALSE),\"\")","v":""},{"$f":"IFERROR(VLOOKUP(B1257,[2]Sheet4!$F$2:$J$364,4,FALSE),\"\")","v":""},{"$f":"IFERROR(VLOOKUP(B1257,[2]Sheet4!$F$2:$J$364,5,FALSE),\"\")","v":""}]
[null,null,{"$f":"IFERROR(VLOOKUP(B1258,[2]Sheet4!$F$2:$J$364,2,FALSE),\"\")","v":""},{"$f":"IFERROR(VLOOKUP(B1258,[2]Sheet4!$F$2:$J$364,3,FALSE),\"\")","v":""},{"$f":"IFERROR(VLOOKUP(B1258,[2]Sheet4!$F$2:$J$364,4,FALSE),\"\")","v":""},{"$f":"IFERROR(VLOOKUP(B1258,[2]Sheet4!$F$2:$J$364,5,FALSE),\"\")","v":""}]
[null,null,{"$f":"IFERROR(VLOOKUP(B1259,[2]Sheet4!$F$2:$J$364,2,FALSE),\"\")","v":""},{"$f":"IFERROR(VLOOKUP(B1259,[2]Sheet4!$F$2:$J$364,3,FALSE),\"\")","v":""},{"$f":"IFERROR(VLOOKUP(B1259,[2]Sheet4!$F$2:$J$364,4,FALSE),\"\")","v":""},{"$f":"IFERROR(VLOOKUP(B1259,[2]Sheet4!$F$2:$J$364,5,FALSE),\"\")","v":""}]
[null,null,{"$f":"IFERROR(VLOOKUP(B1260,[2]Sheet4!$F$2:$J$364,2,FALSE),\"\")","v":""},{"$f":"IFERROR(VLOOKUP(B1260,[2]Sheet4!$F$2:$J$364,3,FALSE),\"\")","v":""},{"$f":"IFERROR(VLOOKUP(B1260,[2]Sheet4!$F$2:$J$364,4,FALSE),\"\")","v":""},{"$f":"IFERROR(VLOOKUP(B1260,[2]Sheet4!$F$2:$J$364,5,FALSE),\"\")","v":""}]
[null,null,{"$f":"IFERROR(VLOOKUP(B1261,[2]Sheet4!$F$2:$J$364,2,FALSE),\"\")","v":""},{"$f":"IFERROR(VLOOKUP(B1261,[2]Sheet4!$F$2:$J$364,3,FALSE),\"\")","v":""},{"$f":"IFERROR(VLOOKUP(B1261,[2]Sheet4!$F$2:$J$364,4,FALSE),\"\")","v":""},{"$f":"IFERROR(VLOOKUP(B1261,[2]Sheet4!$F$2:$J$364,5,FALSE),\"\")","v":""}]
[null,null,{"$f":"IFERROR(VLOOKUP(B1262,[2]Sheet4!$F$2:$J$364,2,FALSE),\"\")","v":""},{"$f":"IFERROR(VLOOKUP(B1262,[2]Sheet4!$F$2:$J$364,3,FALSE),\"\")","v":""},{"$f":"IFERROR(VLOOKUP(B1262,[2]Sheet4!$F$2:$J$364,4,FALSE),\"\")","v":""},{"$f":"IFERROR(VLOOKUP(B1262,[2]Sheet4!$F$2:$J$364,5,FALSE),\"\")","v":""}]
[null,null,{"$f":"IFERROR(VLOOKUP(B1263,[2]Sheet4!$F$2:$J$364,2,FALSE),\"\")","v":""},{"$f":"IFERROR(VLOOKUP(B1263,[2]Sheet4!$F$2:$J$364,3,FALSE),\"\")","v":""},{"$f":"IFERROR(VLOOKUP(B1263,[2]Sheet4!$F$2:$J$364,4,FALSE),\"\")","v":""},{"$f":"IFERROR(VLOOKUP(B1263,[2]Sheet4!$F$2:$J$364,5,FALSE),\"\")","v":""}]
[null,null,{"$f":"IFERROR(VLOOKUP(B1264,[2]Sheet4!$F$2:$J$364,2,FALSE),\"\")","v":""},{"$f":"IFERROR(VLOOKUP(B1264,[2]Sheet4!$F$2:$J$364,3,FALSE),\"\")","v":""},{"$f":"IFERROR(VLOOKUP(B1264,[2]Sheet4!$F$2:$J$364,4,FALSE),\"\")","v":""},{"$f":"IFERROR(VLOOKUP(B1264,[2]Sheet4!$F$2:$J$364,5,FALSE),\"\")","v":""}]
[null,null,{"$f":"IFERROR(VLOOKUP(B1265,[2]Sheet4!$F$2:$J$364,2,FALSE),\"\")","v":""},{"$f":"IFERROR(VLOOKUP(B1265,[2]Sheet4!$F$2:$J$364,3,FALSE),\"\")","v":""},{"$f":"IFERROR(VLOOKUP(B1265,[2]Sheet4!$F$2:$J$364,4,FALSE),\"\")","v":""},{"$f":"IFERROR(VLOOKUP(B1265,[2]Sheet4!$F$2:$J$364,5,FALSE),\"\")","v":""}]
[null,null,{"$f":"IFERROR(VLOOKUP(B1266,[2]Sheet4!$F$2:$J$364,2,FALSE),\"\")","v":""},{"$f":"IFERROR(VLOOKUP(B1266,[2]Sheet4!$F$2:$J$364,3,FALSE),\"\")","v":""},{"$f":"IFERROR(VLOOKUP(B1266,[2]Sheet4!$F$2:$J$364,4,FALSE),\"\")","v":""},{"$f":"IFERROR(VLOOKUP(B1266,[2]Sheet4!$F$2:$J$364,5,FALSE),\"\")","v":""}]
[null,null,{"$f":"IFERROR(VLOOKUP(B1267,[2]Sheet4!$F$2:$J$364,2,FALSE),\"\")","v":""},{"$f":"IFERROR(VLOOKUP(B1267,[2]Sheet4!$F$2:$J$364,3,FALSE),\"\")","v":""},{"$f":"IFERROR(VLOOKUP(B1267,[2]Sheet4!$F$2:$J$364,4,FALSE),\"\")","v":""},{"$f":"IFERROR(VLOOKUP(B1267,[2]Sheet4!$F$2:$J$364,5,FALSE),\"\")","v":""}]
[null,null,{"$f":"IFERROR(VLOOKUP(B1268,[2]Sheet4!$F$2:$J$364,2,FALSE),\"\")","v":""},{"$f":"IFERROR(VLOOKUP(B1268,[2]Sheet4!$F$2:$J$364,3,FALSE),\"\")","v":""},{"$f":"IFERROR(VLOOKUP(B1268,[2]Sheet4!$F$2:$J$364,4,FALSE),\"\")","v":""},{"$f":"IFERROR(VLOOKUP(B1268,[2]Sheet4!$F$2:$J$364,5,FALSE),\"\")","v":""}]
[null,null,{"$f":"IFERROR(VLOOKUP(B1269,[2]Sheet4!$F$2:$J$364,2,FALSE),\"\")","v":""},{"$f":"IFERROR(VLOOKUP(B1269,[2]Sheet4!$F$2:$J$364,3,FALSE),\"\")","v":""},{"$f":"IFERROR(VLOOKUP(B1269,[2]Sheet4!$F$2:$J$364,4,FALSE),\"\")","v":""},{"$f":"IFERROR(VLOOKUP(B1269,[2]Sheet4!$F$2:$J$364,5,FALSE),\"\")","v":""}]
[null,null,{"$f":"IFERROR(VLOOKUP(B1270,[2]Sheet4!$F$2:$J$364,2,FALSE),\"\")","v":""},{"$f":"IFERROR(VLOOKUP(B1270,[2]Sheet4!$F$2:$J$364,3,FALSE),\"\")","v":""},{"$f":"IFERROR(VLOOKUP(B1270,[2]Sheet4!$F$2:$J$364,4,FALSE),\"\")","v":""},{"$f":"IFERROR(VLOOKUP(B1270,[2]Sheet4!$F$2:$J$364,5,FALSE),\"\")","v":""}]
[null,null,{"$f":"IFERROR(VLOOKUP(B1271,[2]Sheet4!$F$2:$J$364,2,FALSE),\"\")","v":""},{"$f":"IFERROR(VLOOKUP(B1271,[2]Sheet4!$F$2:$J$364,3,FALSE),\"\")","v":""},{"$f":"IFERROR(VLOOKUP(B1271,[2]Sheet4!$F$2:$J$364,4,FALSE),\"\")","v":""},{"$f":"IFERROR(VLOOKUP(B1271,[2]Sheet4!$F$2:$J$364,5,FALSE),\"\")","v":""}]
[null,null,{"$f":"IFERROR(VLOOKUP(B1272,[2]Sheet4!$F$2:$J$364,2,FALSE),\"\")","v":""},{"$f":"IFERROR(VLOOKUP(B1272,[2]Sheet4!$F$2:$J$364,3,FALSE),\"\")","v":""},{"$f":"IFERROR(VLOOKUP(B1272,[2]Sheet4!$F$2:$J$364,4,FALSE),\"\")","v":""},{"$f":"IFERROR(VLOOKUP(B1272,[2]Sheet4!$F$2:$J$364,5,FALSE),\"\")","v":""}]
[null,null,{"$f":"IFERROR(VLOOKUP(B1273,[2]Sheet4!$F$2:$J$364,2,FALSE),\"\")","v":""},{"$f":"IFERROR(VLOOKUP(B1273,[2]Sheet4!$F$2:$J$364,3,FALSE),\"\")","v":""},{"$f":"IFERROR(VLOOKUP(B1273,[2]Sheet4!$F$2:$J$364,4,FALSE),\"\")","v":""},{"$f":"IFERROR(VLOOKUP(B1273,[2]Sheet4!$F$2:$J$364,5,FALSE),\"\")","v":""}]
[null,null,{"$f":"IFERROR(VLOOKUP(B1274,[2]Sheet4!$F$2:$J$364,2,FALSE),\"\")","v":""},{"$f":"IFERROR(VLOOKUP(B1274,[2]Sheet4!$F$2:$J$364,3,FALSE),\"\")","v":""},{"$f":"IFERROR(VLOOKUP(B1274,[2]Sheet4!$F$2:$J$364,4,FALSE),\"\")","v":""},{"$f":"IFERROR(VLOOKUP(B1274,[2]Sheet4!$F$2:$J$364,5,FALSE),\"\")","v":""}]
[null,null,{"$f":"IFERROR(VLOOKUP(B1275,[2]Sheet4!$F$2:$J$364,2,FALSE),\"\")","v":""},{"$f":"IFERROR(VLOOKUP(B1275,[2]Sheet4!$F$2:$J$364,3,FALSE),\"\")","v":""},{"$f":"IFERROR(VLOOKUP(B1275,[2]Sheet4!$F$2:$J$364,4,FALSE),\"\")","v":""},{"$f":"IFERROR(VLOOKUP(B1275,[2]Sheet4!$F$2:$J$364,5,FALSE),\"\")","v":""}]
[null,null,{"$f":"IFERROR(VLOOKUP(B1276,[2]Sheet4!$F$2:$J$364,2,FALSE),\"\")","v":""},{"$f":"IFERROR(VLOOKUP(B1276,[2]Sheet4!$F$2:$J$364,3,FALSE),\"\")","v":""},{"$f":"IFERROR(VLOOKUP(B1276,[2]Sheet4!$F$2:$J$364,4,FALSE),\"\")","v":""},{"$f":"IFERROR(VLOOKUP(B1276,[2]Sheet4!$F$2:$J$364,5,FALSE),\"\")","v":""}]
[null,null,{"$f":"IFERROR(VLOOKUP(B1277,[2]Sheet4!$F$2:$J$364,2,FALSE),\"\")","v":""},{"$f":"IFERROR(VLOOKUP(B1277,[2]Sheet4!$F$2:$J$364,3,FALSE),\"\")","v":""},{"$f":"IFERROR(VLOOKUP(B1277,[2]Sheet4!$F$2:$J$364,4,FALSE),\"\")","v":""},{"$f":"IFERROR(VLOOKUP(B1277,[2]Sheet4!$F$2:$J$364,5,FALSE),\"\")","v":""}]
[null,null,{"$f":"IFERROR(VLOOKUP(B1278,[2]Sheet4!$F$2:$J$364,2,FALSE),\"\")","v":""},{"$f":"IFERROR(VLOOKUP(B1278,[2]Sheet4!$F$2:$J$364,3,FALSE),\"\")","v":""},{"$f":"IFERROR(VLOOKUP(B1278,[2]Sheet4!$F$2:$J$364,4,FALSE),\"\")","v":""},{"$f":"IFERROR(VLOOKUP(B1278,[2]Sheet4!$F$2:$J$364,5,FALSE),\"\")","v":""}]
[null,null,{"$f":"IFERROR(VLOOKUP(B1279,[2]Sheet4!$F$2:$J$364,2,FALSE),\"\")","v":""},{"$f":"IFERROR(VLOOKUP(B1279,[2]Sheet4!$F$2:$J$364,3,FALSE),\"\")","v":""},{"$f":"IFERROR(VLOOKUP(B1279,[2]Sheet4!$F$2:$J$364,4,FALSE),\"\")","v":""},{"$f":"IFERROR(VLOOKUP(B1279,[2]Sheet4!$F$2:$J$364,5,FALSE),\"\")","v":""}]
[null,null,{"$f":"IFERROR(VLOOKUP(B1280,[2]Sheet4!$F$2:$J$364,2,FALSE),\"\")","v":""},{"$f":"IFERROR(VLOOKUP(B1280,[2]Sheet4!$F$2:$J$364,3,FALSE),\"\")","v":""},{"$f":"IFERROR(VLOOKUP(B1280,[2]Sheet4!$F$2:$J$364,4,FALSE),\"\")","v":""},{"$f":"IFERROR(VLOOKUP(B1280,[2]Sheet4!$F$2:$J$364,5,FALSE),\"\")","v":""}]
[null,null,{"$f":"IFERROR(VLOOKUP(B1281,[2]Sheet4!$F$2:$J$364,2,FALSE),\"\")","v":""},{"$f":"IFERROR(VLOOKUP(B1281,[2]Sheet4!$F$2:$J$364,3,FALSE),\"\")","v":""},{"$f":"IFERROR(VLOOKUP(B1281,[2]Sheet4!$F$2:$J$364,4,FALSE),\"\")","v":""},{"$f":"IFERROR(VLOOKUP(B1281,[2]Sheet4!$F$2:$J$364,5,FALSE),\"\")","v":""}]
[null,null,{"$f":"IFERROR(VLOOKUP(B1282,[2]Sheet4!$F$2:$J$364,2,FALSE),\"\")","v":""},{"$f":"IFERROR(VLOOKUP(B1282,[2]Sheet4!$F$2:$J$364,3,FALSE),\"\")","v":""},{"$f":"IFERROR(VLOOKUP(B1282,[2]Sheet4!$F$2:$J$364,4,FALSE),\"\")","v":""},{"$f":"IFERROR(VLOOKUP(B1282,[2]Sheet4!$F$2:$J$364,5,FALSE),\"\")","v":""}]
[null,null,{"$f":"IFERROR(VLOOKUP(B1283,[2]Sheet4!$F$2:$J$364,2,FALSE),\"\")","v":""},{"$f":"IFERROR(VLOOKUP(B1283,[2]Sheet4!$F$2:$J$364,3,FALSE),\"\")","v":""},{"$f":"IFERROR(VLOOKUP(B1283,[2]Sheet4!$F$2:$J$364,4,FALSE),\"\")","v":""},{"$f":"IFERROR(VLOOKUP(B1283,[2]Sheet4!$F$2:$J$364,5,FALSE),\"\")","v":""}]
[null,null,{"$f":"IFERROR(VLOOKUP(B1284,[2]Sheet4!$F$2:$J$364,2,FALSE),\"\")","v":""},{"$f":"IFERROR(VLOOKUP(B1284,[2]Sheet4!$F$2:$J$364,3,FALSE),\"\")","v":""},{"$f":"IFERROR(VLOOKUP(B1284,[2]Sheet4!$F$2:$J$364,4,FALSE),\"\")","v":""},{"$f":"IFERROR(VLOOKUP(B1284,[2]Sheet4!$F$2:$J$364,5,FALSE),\"\")","v":""}]
[null,null,{"$f":"IFERROR(VLOOKUP(B1285,[2]Sheet4!$F$2:$J$364,2,FALSE),\"\")","v":""},{"$f":"IFERROR(VLOOKUP(B1285,[2]Sheet4!$F$2:$J$364,3,FALSE),\"\")","v":""},{"$f":"IFERROR(VLOOKUP(B1285,[2]Sheet4!$F$2:$J$364,4,FALSE),\"\")","v":""},{"$f":"IFERROR(VLOOKUP(B1285,[2]Sheet4!$F$2:$J$364,5,FALSE),\"\")","v":""}]
[null,null,{"$f":"IFERROR(VLOOKUP(B1286,[2]Sheet4!$F$2:$J$364,2,FALSE),\"\")","v":""},{"$f":"IFERROR(VLOOKUP(B1286,[2]Sheet4!$F$2:$J$364,3,FALSE),\"\")","v":""},{"$f":"IFERROR(VLOOKUP(B1286,[2]Sheet4!$F$2:$J$364,4,FALSE),\"\")","v":""},{"$f":"IFERROR(VLOOKUP(B1286,[2]Sheet4!$F$2:$J$364,5,FALSE),\"\")","v":""}]
[null,null,{"$f":"IFERROR(VLOOKUP(B1287,[2]Sheet4!$F$2:$J$364,2,FALSE),\"\")","v":""},{"$f":"IFERROR(VLOOKUP(B1287,[2]Sheet4!$F$2:$J$364,3,FALSE),\"\")","v":""},{"$f":"IFERROR(VLOOKUP(B1287,[2]Sheet4!$F$2:$J$364,4,FALSE),\"\")","v":""},{"$f":"IFERROR(VLOOKUP(B1287,[2]Sheet4!$F$2:$J$364,5,FALSE),\"\")","v":""}]
[null,null,{"$f":"IFERROR(VLOOKUP(B1288,[2]Sheet4!$F$2:$J$364,2,FALSE),\"\")","v":""},{"$f":"IFERROR(VLOOKUP(B1288,[2]Sheet4!$F$2:$J$364,3,FALSE),\"\")","v":""},{"$f":"IFERROR(VLOOKUP(B1288,[2]Sheet4!$F$2:$J$364,4,FALSE),\"\")","v":""},{"$f":"IFERROR(VLOOKUP(B1288,[2]Sheet4!$F$2:$J$364,5,FALSE),\"\")","v":""}]
[null,null,{"$f":"IFERROR(VLOOKUP(B1289,[2]Sheet4!$F$2:$J$364,2,FALSE),\"\")","v":""},{"$f":"IFERROR(VLOOKUP(B1289,[2]Sheet4!$F$2:$J$364,3,FALSE),\"\")","v":""},{"$f":"IFERROR(VLOOKUP(B1289,[2]Sheet4!$F$2:$J$364,4,FALSE),\"\")","v":""},{"$f":"IFERROR(VLOOKUP(B1289,[2]Sheet4!$F$2:$J$364,5,FALSE),\"\")","v":""}]
[null,null,{"$f":"IFERROR(VLOOKUP(B1290,[2]Sheet4!$F$2:$J$364,2,FALSE),\"\")","v":""},{"$f":"IFERROR(VLOOKUP(B1290,[2]Sheet4!$F$2:$J$364,3,FALSE),\"\")","v":""},{"$f":"IFERROR(VLOOKUP(B1290,[2]Sheet4!$F$2:$J$364,4,FALSE),\"\")","v":""},{"$f":"IFERROR(VLOOKUP(B1290,[2]Sheet4!$F$2:$J$364,5,FALSE),\"\")","v":""}]
[null,null,{"$f":"IFERROR(VLOOKUP(B1291,[2]Sheet4!$F$2:$J$364,2,FALSE),\"\")","v":""},{"$f":"IFERROR(VLOOKUP(B1291,[2]Sheet4!$F$2:$J$364,3,FALSE),\"\")","v":""},{"$f":"IFERROR(VLOOKUP(B1291,[2]Sheet4!$F$2:$J$364,4,FALSE),\"\")","v":""},{"$f":"IFERROR(VLOOKUP(B1291,[2]Sheet4!$F$2:$J$364,5,FALSE),\"\")","v":""}]
[null,null,{"$f":"IFERROR(VLOOKUP(B1292,[2]Sheet4!$F$2:$J$364,2,FALSE),\"\")","v":""},{"$f":"IFERROR(VLOOKUP(B1292,[2]Sheet4!$F$2:$J$364,3,FALSE),\"\")","v":""},{"$f":"IFERROR(VLOOKUP(B1292,[2]Sheet4!$F$2:$J$364,4,FALSE),\"\")","v":""},{"$f":"IFERROR(VLOOKUP(B1292,[2]Sheet4!$F$2:$J$364,5,FALSE),\"\")","v":""}]
[null,null,{"$f":"IFERROR(VLOOKUP(B1293,[2]Sheet4!$F$2:$J$364,2,FALSE),\"\")","v":""},{"$f":"IFERROR(VLOOKUP(B1293,[2]Sheet4!$F$2:$J$364,3,FALSE),\"\")","v":""},{"$f":"IFERROR(VLOOKUP(B1293,[2]Sheet4!$F$2:$J$364,4,FALSE),\"\")","v":""},{"$f":"IFERROR(VLOOKUP(B1293,[2]Sheet4!$F$2:$J$364,5,FALSE),\"\")","v":""}]
[null,null,{"$f":"IFERROR(VLOOKUP(B1294,[2]Sheet4!$F$2:$J$364,2,FALSE),\"\")","v":""},{"$f":"IFERROR(VLOOKUP(B1294,[2]Sheet4!$F$2:$J$364,3,FALSE),\"\")","v":""},{"$f":"IFERROR(VLOOKUP(B1294,[2]Sheet4!$F$2:$J$364,4,FALSE),\"\")","v":""},{"$f":"IFERROR(VLOOKUP(B1294,[2]Sheet4!$F$2:$J$364,5,FALSE),\"\")","v":""}]
[null,null,{"$f":"IFERROR(VLOOKUP(B1295,[2]Sheet4!$F$2:$J$364,2,FALSE),\"\")","v":""},{"$f":"IFERROR(VLOOKUP(B1295,[2]Sheet4!$F$2:$J$364,3,FALSE),\"\")","v":""},{"$f":"IFERROR(VLOOKUP(B1295,[2]Sheet4!$F$2:$J$364,4,FALSE),\"\")","v":""},{"$f":"IFERROR(VLOOKUP(B1295,[2]Sheet4!$F$2:$J$364,5,FALSE),\"\")","v":""}]
[null,null,{"$f":"IFERROR(VLOOKUP(B1296,[2]Sheet4!$F$2:$J$364,2,FALSE),\"\")","v":""},{"$f":"IFERROR(VLOOKUP(B1296,[2]Sheet4!$F$2:$J$364,3,FALSE),\"\")","v":""},{"$f":"IFERROR(VLOOKUP(B1296,[2]Sheet4!$F$2:$J$364,4,FALSE),\"\")","v":""},{"$f":"IFERROR(VLOOKUP(B1296,[2]Sheet4!$F$2:$J$364,5,FALSE),\"\")","v":""}]
[null,null,{"$f":"IFERROR(VLOOKUP(B1297,[2]Sheet4!$F$2:$J$364,2,FALSE),\"\")","v":""},{"$f":"IFERROR(VLOOKUP(B1297,[2]Sheet4!$F$2:$J$364,3,FALSE),\"\")","v":""},{"$f":"IFERROR(VLOOKUP(B1297,[2]Sheet4!$F$2:$J$364,4,FALSE),\"\")","v":""},{"$f":"IFERROR(VLOOKUP(B1297,[2]Sheet4!$F$2:$J$364,5,FALSE),\"\")","v":""}]
[null,null,{"$f":"IFERROR(VLOOKUP(B1298,[2]Sheet4!$F$2:$J$364,2,FALSE),\"\")","v":""},{"$f":"IFERROR(VLOOKUP(B1298,[2]Sheet4!$F$2:$J$364,3,FALSE),\"\")","v":""},{"$f":"IFERROR(VLOOKUP(B1298,[2]Sheet4!$F$2:$J$364,4,FALSE),\"\")","v":""},{"$f":"IFERROR(VLOOKUP(B1298,[2]Sheet4!$F$2:$J$364,5,FALSE),\"\")","v":""}]
[null,null,{"$f":"IFERROR(VLOOKUP(B1299,[2]Sheet4!$F$2:$J$364,2,FALSE),\"\")","v":""},{"$f":"IFERROR(VLOOKUP(B1299,[2]Sheet4!$F$2:$J$364,3,FALSE),\"\")","v":""},{"$f":"IFERROR(VLOOKUP(B1299,[2]Sheet4!$F$2:$J$364,4,FALSE),\"\")","v":""},{"$f":"IFERROR(VLOOKUP(B1299,[2]Sheet4!$F$2:$J$364,5,FALSE),\"\")","v":""}]
[null,null,{"$f":"IFERROR(VLOOKUP(B1300,[2]Sheet4!$F$2:$J$364,2,FALSE),\"\")","v":""},{"$f":"IFERROR(VLOOKUP(B1300,[2]Sheet4!$F$2:$J$364,3,FALSE),\"\")","v":""},{"$f":"IFERROR(VLOOKUP(B1300,[2]Sheet4!$F$2:$J$364,4,FALSE),\"\")","v":""},{"$f":"IFERROR(VLOOKUP(B1300,[2]Sheet4!$F$2:$J$364,5,FALSE),\"\")","v":""}]
[null,null,{"$f":"IFERROR(VLOOKUP(B1301,[2]Sheet4!$F$2:$J$364,2,FALSE),\"\")","v":""},{"$f":"IFERROR(VLOOKUP(B1301,[2]Sheet4!$F$2:$J$364,3,FALSE),\"\")","v":""},{"$f":"IFERROR(VLOOKUP(B1301,[2]Sheet4!$F$2:$J$364,4,FALSE),\"\")","v":""},{"$f":"IFERROR(VLOOKUP(B1301,[2]Sheet4!$F$2:$J$364,5,FALSE),\"\")","v":""}]
[null,null,{"$f":"IFERROR(VLOOKUP(B1302,[2]Sheet4!$F$2:$J$364,2,FALSE),\"\")","v":""},{"$f":"IFERROR(VLOOKUP(B1302,[2]Sheet4!$F$2:$J$364,3,FALSE),\"\")","v":""},{"$f":"IFERROR(VLOOKUP(B1302,[2]Sheet4!$F$2:$J$364,4,FALSE),\"\")","v":""},{"$f":"IFERROR(VLOOKUP(B1302,[2]Sheet4!$F$2:$J$364,5,FALSE),\"\")","v":""}]

{"sheet":"3- DETAIL SUBTYPOLOGY - CONTENT","index":6,"n_rows":1300,"n_cols":16,"rows_kept":1300,"cut":false,"hidden":false,"merged":[]}
[]
[]
[null,"SUBTYPOLOGY CHANGES"]
[]
[null,"TMS ID","Hotel Name","Business Unit","Country","City"," ROOM TYPE","ROOM TYPE NAME","action","min occup.","max ocupp","View","Terrace","m2","OTAS","EXTRA BED"]
[null,null,{"$f":"IFERROR(VLOOKUP(B6,[2]Sheet4!$F$2:$J$364,2,FALSE),\"\")","v":""},{"$f":"IFERROR(VLOOKUP(B6,[2]Sheet4!$F$2:$J$364,3,FALSE),\"\")","v":""},{"$f":"IFERROR(VLOOKUP(B6,[2]Sheet4!$F$2:$J$364,4,FALSE),\"\")","v":""},{"$f":"IFERROR(VLOOKUP(B6,[2]Sheet4!$F$2:$J$364,5,FALSE),\"\")","v":""}]
[]
[]
[]
[]
[]
[]
[]
[]
[]
[]
[]
[]
[]
[]
[]
[]
[]
[]
[]
[]
[]
[]
[]
[]
[]
[]
[]
[]
[]
[]
[]
[]
[]
[]
[]
[]
[]
[]
[]
[]
[]
[]
[]
[]
[]
[]
[]
[]
[]
[]
[]
[]
[]
[]
[]
[]
[]
[]
[]
[]
[]
[]
[]
[]
[]
[]
[]
[]
[]
[]
[null,null,{"$f":"IFERROR(VLOOKUP(B77,[2]Sheet4!$F$2:$J$364,2,FALSE),\"\")","v":""},{"$f":"IFERROR(VLOOKUP(B77,[2]Sheet4!$F$2:$J$364,3,FALSE),\"\")","v":""},{"$f":"IFERROR(VLOOKUP(B77,[2]Sheet4!$F$2:$J$364,4,FALSE),\"\")","v":""},{"$f":"IFERROR(VLOOKUP(B77,[2]Sheet4!$F$2:$J$364,5,FALSE),\"\")","v":""}]
[null,null,{"$f":"IFERROR(VLOOKUP(B78,[2]Sheet4!$F$2:$J$364,2,FALSE),\"\")","v":""},{"$f":"IFERROR(VLOOKUP(B78,[2]Sheet4!$F$2:$J$364,3,FALSE),\"\")","v":""},{"$f":"IFERROR(VLOOKUP(B78,[2]Sheet4!$F$2:$J$364,4,FALSE),\"\")","v":""},{"$f":"IFERROR(VLOOKUP(B78,[2]Sheet4!$F$2:$J$364,5,FALSE),\"\")","v":""}]
[null,null,{"$f":"IFERROR(VLOOKUP(B79,[2]Sheet4!$F$2:$J$364,2,FALSE),\"\")","v":""},{"$f":"IFERROR(VLOOKUP(B79,[2]Sheet4!$F$2:$J$364,3,FALSE),\"\")","v":""},{"$f":"IFERROR(VLOOKUP(B79,[2]Sheet4!$F$2:$J$364,4,FALSE),\"\")","v":""},{"$f":"IFERROR(VLOOKUP(B79,[2]Sheet4!$F$2:$J$364,5,FALSE),\"\")","v":""}]
[null,null,{"$f":"IFERROR(VLOOKUP(B80,[2]Sheet4!$F$2:$J$364,2,FALSE),\"\")","v":""},{"$f":"IFERROR(VLOOKUP(B80,[2]Sheet4!$F$2:$J$364,3,FALSE),\"\")","v":""},{"$f":"IFERROR(VLOOKUP(B80,[2]Sheet4!$F$2:$J$364,4,FALSE),\"\")","v":""},{"$f":"IFERROR(VLOOKUP(B80,[2]Sheet4!$F$2:$J$364,5,FALSE),\"\")","v":""}]
[null,null,{"$f":"IFERROR(VLOOKUP(B81,[2]Sheet4!$F$2:$J$364,2,FALSE),\"\")","v":""},{"$f":"IFERROR(VLOOKUP(B81,[2]Sheet4!$F$2:$J$364,3,FALSE),\"\")","v":""},{"$f":"IFERROR(VLOOKUP(B81,[2]Sheet4!$F$2:$J$364,4,FALSE),\"\")","v":""},{"$f":"IFERROR(VLOOKUP(B81,[2]Sheet4!$F$2:$J$364,5,FALSE),\"\")","v":""}]
[null,null,{"$f":"IFERROR(VLOOKUP(B82,[2]Sheet4!$F$2:$J$364,2,FALSE),\"\")","v":""},{"$f":"IFERROR(VLOOKUP(B82,[2]Sheet4!$F$2:$J$364,3,FALSE),\"\")","v":""},{"$f":"IFERROR(VLOOKUP(B82,[2]Sheet4!$F$2:$J$364,4,FALSE),\"\")","v":""},{"$f":"IFERROR(VLOOKUP(B82,[2]Sheet4!$F$2:$J$364,5,FALSE),\"\")","v":""}]
[null,null,{"$f":"IFERROR(VLOOKUP(B83,[2]Sheet4!$F$2:$J$364,2,FALSE),\"\")","v":""},{"$f":"IFERROR(VLOOKUP(B83,[2]Sheet4!$F$2:$J$364,3,FALSE),\"\")","v":""},{"$f":"IFERROR(VLOOKUP(B83,[2]Sheet4!$F$2:$J$364,4,FALSE),\"\")","v":""},{"$f":"IFERROR(VLOOKUP(B83,[2]Sheet4!$F$2:$J$364,5,FALSE),\"\")","v":""}]
[null,null,{"$f":"IFERROR(VLOOKUP(B84,[2]Sheet4!$F$2:$J$364,2,FALSE),\"\")","v":""},{"$f":"IFERROR(VLOOKUP(B84,[2]Sheet4!$F$2:$J$364,3,FALSE),\"\")","v":""},{"$f":"IFERROR(VLOOKUP(B84,[2]Sheet4!$F$2:$J$364,4,FALSE),\"\")","v":""},{"$f":"IFERROR(VLOOKUP(B84,[2]Sheet4!$F$2:$J$364,5,FALSE),\"\")","v":""}]
[null,null,{"$f":"IFERROR(VLOOKUP(B85,[2]Sheet4!$F$2:$J$364,2,FALSE),\"\")","v":""},{"$f":"IFERROR(VLOOKUP(B85,[2]Sheet4!$F$2:$J$364,3,FALSE),\"\")","v":""},{"$f":"IFERROR(VLOOKUP(B85,[2]Sheet4!$F$2:$J$364,4,FALSE),\"\")","v":""},{"$f":"IFERROR(VLOOKUP(B85,[2]Sheet4!$F$2:$J$364,5,FALSE),\"\")","v":""}]
[null,null,{"$f":"IFERROR(VLOOKUP(B86,[2]Sheet4!$F$2:$J$364,2,FALSE),\"\")","v":""},{"$f":"IFERROR(VLOOKUP(B86,[2]Sheet4!$F$2:$J$364,3,FALSE),\"\")","v":""},{"$f":"IFERROR(VLOOKUP(B86,[2]Sheet4!$F$2:$J$364,4,FALSE),\"\")","v":""},{"$f":"IFERROR(VLOOKUP(B86,[2]Sheet4!$F$2:$J$364,5,FALSE),\"\")","v":""}]
[null,null,{"$f":"IFERROR(VLOOKUP(B87,[2]Sheet4!$F$2:$J$364,2,FALSE),\"\")","v":""},{"$f":"IFERROR(VLOOKUP(B87,[2]Sheet4!$F$2:$J$364,3,FALSE),\"\")","v":""},{"$f":"IFERROR(VLOOKUP(B87,[2]Sheet4!$F$2:$J$364,4,FALSE),\"\")","v":""},{"$f":"IFERROR(VLOOKUP(B87,[2]Sheet4!$F$2:$J$364,5,FALSE),\"\")","v":""}]
[null,null,{"$f":"IFERROR(VLOOKUP(B88,[2]Sheet4!$F$2:$J$364,2,FALSE),\"\")","v":""},{"$f":"IFERROR(VLOOKUP(B88,[2]Sheet4!$F$2:$J$364,3,FALSE),\"\")","v":""},{"$f":"IFERROR(VLOOKUP(B88,[2]Sheet4!$F$2:$J$364,4,FALSE),\"\")","v":""},{"$f":"IFERROR(VLOOKUP(B88,[2]Sheet4!$F$2:$J$364,5,FALSE),\"\")","v":""}]
[null,null,{"$f":"IFERROR(VLOOKUP(B89,[2]Sheet4!$F$2:$J$364,2,FALSE),\"\")","v":""},{"$f":"IFERROR(VLOOKUP(B89,[2]Sheet4!$F$2:$J$364,3,FALSE),\"\")","v":""},{"$f":"IFERROR(VLOOKUP(B89,[2]Sheet4!$F$2:$J$364,4,FALSE),\"\")","v":""},{"$f":"IFERROR(VLOOKUP(B89,[2]Sheet4!$F$2:$J$364,5,FALSE),\"\")","v":""}]
[null,null,{"$f":"IFERROR(VLOOKUP(B90,[2]Sheet4!$F$2:$J$364,2,FALSE),\"\")","v":""},{"$f":"IFERROR(VLOOKUP(B90,[2]Sheet4!$F$2:$J$364,3,FALSE),\"\")","v":""},{"$f":"IFERROR(VLOOKUP(B90,[2]Sheet4!$F$2:$J$364,4,FALSE),\"\")","v":""},{"$f":"IFERROR(VLOOKUP(B90,[2]Sheet4!$F$2:$J$364,5,FALSE),\"\")","v":""}]
[null,null,{"$f":"IFERROR(VLOOKUP(B91,[2]Sheet4!$F$2:$J$364,2,FALSE),\"\")","v":""},{"$f":"IFERROR(VLOOKUP(B91,[2]Sheet4!$F$2:$J$364,3,FALSE),\"\")","v":""},{"$f":"IFERROR(VLOOKUP(B91,[2]Sheet4!$F$2:$J$364,4,FALSE),\"\")","v":""},{"$f":"IFERROR(VLOOKUP(B91,[2]Sheet4!$F$2:$J$364,5,FALSE),\"\")","v":""}]
[null,null,{"$f":"IFERROR(VLOOKUP(B92,[2]Sheet4!$F$2:$J$364,2,FALSE),\"\")","v":""},{"$f":"IFERROR(VLOOKUP(B92,[2]Sheet4!$F$2:$J$364,3,FALSE),\"\")","v":""},{"$f":"IFERROR(VLOOKUP(B92,[2]Sheet4!$F$2:$J$364,4,FALSE),\"\")","v":""},{"$f":"IFERROR(VLOOKUP(B92,[2]Sheet4!$F$2:$J$364,5,FALSE),\"\")","v":""}]
[null,null,{"$f":"IFERROR(VLOOKUP(B93,[2]Sheet4!$F$2:$J$364,2,FALSE),\"\")","v":""},{"$f":"IFERROR(VLOOKUP(B93,[2]Sheet4!$F$2:$J$364,3,FALSE),\"\")","v":""},{"$f":"IFERROR(VLOOKUP(B93,[2]Sheet4!$F$2:$J$364,4,FALSE),\"\")","v":""},{"$f":"IFERROR(VLOOKUP(B93,[2]Sheet4!$F$2:$J$364,5,FALSE),\"\")","v":""}]
[null,null,{"$f":"IFERROR(VLOOKUP(B94,[2]Sheet4!$F$2:$J$364,2,FALSE),\"\")","v":""},{"$f":"IFERROR(VLOOKUP(B94,[2]Sheet4!$F$2:$J$364,3,FALSE),\"\")","v":""},{"$f":"IFERROR(VLOOKUP(B94,[2]Sheet4!$F$2:$J$364,4,FALSE),\"\")","v":""},{"$f":"IFERROR(VLOOKUP(B94,[2]Sheet4!$F$2:$J$364,5,FALSE),\"\")","v":""}]
[null,null,{"$f":"IFERROR(VLOOKUP(B95,[2]Sheet4!$F$2:$J$364,2,FALSE),\"\")","v":""},{"$f":"IFERROR(VLOOKUP(B95,[2]Sheet4!$F$2:$J$364,3,FALSE),\"\")","v":""},{"$f":"IFERROR(VLOOKUP(B95,[2]Sheet4!$F$2:$J$364,4,FALSE),\"\")","v":""},{"$f":"IFERROR(VLOOKUP(B95,[2]Sheet4!$F$2:$J$364,5,FALSE),\"\")","v":""}]
[null,null,{"$f":"IFERROR(VLOOKUP(B96,[2]Sheet4!$F$2:$J$364,2,FALSE),\"\")","v":""},{"$f":"IFERROR(VLOOKUP(B96,[2]Sheet4!$F$2:$J$364,3,FALSE),\"\")","v":""},{"$f":"IFERROR(VLOOKUP(B96,[2]Sheet4!$F$2:$J$364,4,FALSE),\"\")","v":""},{"$f":"IFERROR(VLOOKUP(B96,[2]Sheet4!$F$2:$J$364,5,FALSE),\"\")","v":""}]
[null,null,{"$f":"IFERROR(VLOOKUP(B97,[2]Sheet4!$F$2:$J$364,2,FALSE),\"\")","v":""},{"$f":"IFERROR(VLOOKUP(B97,[2]Sheet4!$F$2:$J$364,3,FALSE),\"\")","v":""},{"$f":"IFERROR(VLOOKUP(B97,[2]Sheet4!$F$2:$J$364,4,FALSE),\"\")","v":""},{"$f":"IFERROR(VLOOKUP(B97,[2]Sheet4!$F$2:$J$364,5,FALSE),\"\")","v":""}]
[null,null,{"$f":"IFERROR(VLOOKUP(B98,[2]Sheet4!$F$2:$J$364,2,FALSE),\"\")","v":""},{"$f":"IFERROR(VLOOKUP(B98,[2]Sheet4!$F$2:$J$364,3,FALSE),\"\")","v":""},{"$f":"IFERROR(VLOOKUP(B98,[2]Sheet4!$F$2:$J$364,4,FALSE),\"\")","v":""},{"$f":"IFERROR(VLOOKUP(B98,[2]Sheet4!$F$2:$J$364,5,FALSE),\"\")","v":""}]
[null,null,{"$f":"IFERROR(VLOOKUP(B99,[2]Sheet4!$F$2:$J$364,2,FALSE),\"\")","v":""},{"$f":"IFERROR(VLOOKUP(B99,[2]Sheet4!$F$2:$J$364,3,FALSE),\"\")","v":""},{"$f":"IFERROR(VLOOKUP(B99,[2]Sheet4!$F$2:$J$364,4,FALSE),\"\")","v":""},{"$f":"IFERROR(VLOOKUP(B99,[2]Sheet4!$F$2:$J$364,5,FALSE),\"\")","v":""}]
[null,null,{"$f":"IFERROR(VLOOKUP(B100,[2]Sheet4!$F$2:$J$364,2,FALSE),\"\")","v":""},{"$f":"IFERROR(VLOOKUP(B100,[2]Sheet4!$F$2:$J$364,3,FALSE),\"\")","v":""},{"$f":"IFERROR(VLOOKUP(B100,[2]Sheet4!$F$2:$J$364,4,FALSE),\"\")","v":""},{"$f":"IFERROR(VLOOKUP(B100,[2]Sheet4!$F$2:$J$364,5,FALSE),\"\")","v":""}]
[null,null,{"$f":"IFERROR(VLOOKUP(B101,[2]Sheet4!$F$2:$J$364,2,FALSE),\"\")","v":""},{"$f":"IFERROR(VLOOKUP(B101,[2]Sheet4!$F$2:$J$364,3,FALSE),\"\")","v":""},{"$f":"IFERROR(VLOOKUP(B101,[2]Sheet4!$F$2:$J$364,4,FALSE),\"\")","v":""},{"$f":"IFERROR(VLOOKUP(B101,[2]Sheet4!$F$2:$J$364,5,FALSE),\"\")","v":""}]
[null,null,{"$f":"IFERROR(VLOOKUP(B102,[2]Sheet4!$F$2:$J$364,2,FALSE),\"\")","v":""},{"$f":"IFERROR(VLOOKUP(B102,[2]Sheet4!$F$2:$J$364,3,FALSE),\"\")","v":""},{"$f":"IFERROR(VLOOKUP(B102,[2]Sheet4!$F$2:$J$364,4,FALSE),\"\")","v":""},{"$f":"IFERROR(VLOOKUP(B102,[2]Sheet4!$F$2:$J$364,5,FALSE),\"\")","v":""}]
[null,null,{"$f":"IFERROR(VLOOKUP(B103,[2]Sheet4!$F$2:$J$364,2,FALSE),\"\")","v":""},{"$f":"IFERROR(VLOOKUP(B103,[2]Sheet4!$F$2:$J$364,3,FALSE),\"\")","v":""},{"$f":"IFERROR(VLOOKUP(B103,[2]Sheet4!$F$2:$J$364,4,FALSE),\"\")","v":""},{"$f":"IFERROR(VLOOKUP(B103,[2]Sheet4!$F$2:$J$364,5,FALSE),\"\")","v":""}]
[null,null,{"$f":"IFERROR(VLOOKUP(B104,[2]Sheet4!$F$2:$J$364,2,FALSE),\"\")","v":""},{"$f":"IFERROR(VLOOKUP(B104,[2]Sheet4!$F$2:$J$364,3,FALSE),\"\")","v":""},{"$f":"IFERROR(VLOOKUP(B104,[2]Sheet4!$F$2:$J$364,4,FALSE),\"\")","v":""},{"$f":"IFERROR(VLOOKUP(B104,[2]Sheet4!$F$2:$J$364,5,FALSE),\"\")","v":""}]
[null,null,{"$f":"IFERROR(VLOOKUP(B105,[2]Sheet4!$F$2:$J$364,2,FALSE),\"\")","v":""},{"$f":"IFERROR(VLOOKUP(B105,[2]Sheet4!$F$2:$J$364,3,FALSE),\"\")","v":""},{"$f":"IFERROR(VLOOKUP(B105,[2]Sheet4!$F$2:$J$364,4,FALSE),\"\")","v":""},{"$f":"IFERROR(VLOOKUP(B105,[2]Sheet4!$F$2:$J$364,5,FALSE),\"\")","v":""}]
[null,null,{"$f":"IFERROR(VLOOKUP(B106,[2]Sheet4!$F$2:$J$364,2,FALSE),\"\")","v":""},{"$f":"IFERROR(VLOOKUP(B106,[2]Sheet4!$F$2:$J$364,3,FALSE),\"\")","v":""},{"$f":"IFERROR(VLOOKUP(B106,[2]Sheet4!$F$2:$J$364,4,FALSE),\"\")","v":""},{"$f":"IFERROR(VLOOKUP(B106,[2]Sheet4!$F$2:$J$364,5,FALSE),\"\")","v":""}]
[null,null,{"$f":"IFERROR(VLOOKUP(B107,[2]Sheet4!$F$2:$J$364,2,FALSE),\"\")","v":""},{"$f":"IFERROR(VLOOKUP(B107,[2]Sheet4!$F$2:$J$364,3,FALSE),\"\")","v":""},{"$f":"IFERROR(VLOOKUP(B107,[2]Sheet4!$F$2:$J$364,4,FALSE),\"\")","v":""},{"$f":"IFERROR(VLOOKUP(B107,[2]Sheet4!$F$2:$J$364,5,FALSE),\"\")","v":""}]
[null,null,{"$f":"IFERROR(VLOOKUP(B108,[2]Sheet4!$F$2:$J$364,2,FALSE),\"\")","v":""},{"$f":"IFERROR(VLOOKUP(B108,[2]Sheet4!$F$2:$J$364,3,FALSE),\"\")","v":""},{"$f":"IFERROR(VLOOKUP(B108,[2]Sheet4!$F$2:$J$364,4,FALSE),\"\")","v":""},{"$f":"IFERROR(VLOOKUP(B108,[2]Sheet4!$F$2:$J$364,5,FALSE),\"\")","v":""}]
[null,null,{"$f":"IFERROR(VLOOKUP(B109,[2]Sheet4!$F$2:$J$364,2,FALSE),\"\")","v":""},{"$f":"IFERROR(VLOOKUP(B109,[2]Sheet4!$F$2:$J$364,3,FALSE),\"\")","v":""},{"$f":"IFERROR(VLOOKUP(B109,[2]Sheet4!$F$2:$J$364,4,FALSE),\"\")","v":""},{"$f":"IFERROR(VLOOKUP(B109,[2]Sheet4!$F$2:$J$364,5,FALSE),\"\")","v":""}]
[null,null,{"$f":"IFERROR(VLOOKUP(B110,[2]Sheet4!$F$2:$J$364,2,FALSE),\"\")","v":""},{"$f":"IFERROR(VLOOKUP(B110,[2]Sheet4!$F$2:$J$364,3,FALSE),\"\")","v":""},{"$f":"IFERROR(VLOOKUP(B110,[2]Sheet4!$F$2:$J$364,4,FALSE),\"\")","v":""},{"$f":"IFERROR(VLOOKUP(B110,[2]Sheet4!$F$2:$J$364,5,FALSE),\"\")","v":""}]
[null,null,{"$f":"IFERROR(VLOOKUP(B111,[2]Sheet4!$F$2:$J$364,2,FALSE),\"\")","v":""},{"$f":"IFERROR(VLOOKUP(B111,[2]Sheet4!$F$2:$J$364,3,FALSE),\"\")","v":""},{"$f":"IFERROR(VLOOKUP(B111,[2]Sheet4!$F$2:$J$364,4,FALSE),\"\")","v":""},{"$f":"IFERROR(VLOOKUP(B111,[2]Sheet4!$F$2:$J$364,5,FALSE),\"\")","v":""}]
[null,null,{"$f":"IFERROR(VLOOKUP(B112,[2]Sheet4!$F$2:$J$364,2,FALSE),\"\")","v":""},{"$f":"IFERROR(VLOOKUP(B112,[2]Sheet4!$F$2:$J$364,3,FALSE),\"\")","v":""},{"$f":"IFERROR(VLOOKUP(B112,[2]Sheet4!$F$2:$J$364,4,FALSE),\"\")","v":""},{"$f":"IFERROR(VLOOKUP(B112,[2]Sheet4!$F$2:$J$364,5,FALSE),\"\")","v":""}]
[null,null,{"$f":"IFERROR(VLOOKUP(B113,[2]Sheet4!$F$2:$J$364,2,FALSE),\"\")","v":""},{"$f":"IFERROR(VLOOKUP(B113,[2]Sheet4!$F$2:$J$364,3,FALSE),\"\")","v":""},{"$f":"IFERROR(VLOOKUP(B113,[2]Sheet4!$F$2:$J$364,4,FALSE),\"\")","v":""},{"$f":"IFERROR(VLOOKUP(B113,[2]Sheet4!$F$2:$J$364,5,FALSE),\"\")","v":""}]
[null,null,{"$f":"IFERROR(VLOOKUP(B114,[2]Sheet4!$F$2:$J$364,2,FALSE),\"\")","v":""},{"$f":"IFERROR(VLOOKUP(B114,[2]Sheet4!$F$2:$J$364,3,FALSE),\"\")","v":""},{"$f":"IFERROR(VLOOKUP(B114,[2]Sheet4!$F$2:$J$364,4,FALSE),\"\")","v":""},{"$f":"IFERROR(VLOOKUP(B114,[2]Sheet4!$F$2:$J$364,5,FALSE),\"\")","v":""}]
[null,null,{"$f":"IFERROR(VLOOKUP(B115,[2]Sheet4!$F$2:$J$364,2,FALSE),\"\")","v":""},{"$f":"IFERROR(VLOOKUP(B115,[2]Sheet4!$F$2:$J$364,3,FALSE),\"\")","v":""},{"$f":"IFERROR(VLOOKUP(B115,[2]Sheet4!$F$2:$J$364,4,FALSE),\"\")","v":""},{"$f":"IFERROR(VLOOKUP(B115,[2]Sheet4!$F$2:$J$364,5,FALSE),\"\")","v":""}]
[null,null,{"$f":"IFERROR(VLOOKUP(B116,[2]Sheet4!$F$2:$J$364,2,FALSE),\"\")","v":""},{"$f":"IFERROR(VLOOKUP(B116,[2]Sheet4!$F$2:$J$364,3,FALSE),\"\")","v":""},{"$f":"IFERROR(VLOOKUP(B116,[2]Sheet4!$F$2:$J$364,4,FALSE),\"\")","v":""},{"$f":"IFERROR(VLOOKUP(B116,[2]Sheet4!$F$2:$J$364,5,FALSE),\"\")","v":""}]
[null,null,{"$f":"IFERROR(VLOOKUP(B117,[2]Sheet4!$F$2:$J$364,2,FALSE),\"\")","v":""},{"$f":"IFERROR(VLOOKUP(B117,[2]Sheet4!$F$2:$J$364,3,FALSE),\"\")","v":""},{"$f":"IFERROR(VLOOKUP(B117,[2]Sheet4!$F$2:$J$364,4,FALSE),\"\")","v":""},{"$f":"IFERROR(VLOOKUP(B117,[2]Sheet4!$F$2:$J$364,5,FALSE),\"\")","v":""}]
[null,null,{"$f":"IFERROR(VLOOKUP(B118,[2]Sheet4!$F$2:$J$364,2,FALSE),\"\")","v":""},{"$f":"IFERROR(VLOOKUP(B118,[2]Sheet4!$F$2:$J$364,3,FALSE),\"\")","v":""},{"$f":"IFERROR(VLOOKUP(B118,[2]Sheet4!$F$2:$J$364,4,FALSE),\"\")","v":""},{"$f":"IFERROR(VLOOKUP(B118,[2]Sheet4!$F$2:$J$364,5,FALSE),\"\")","v":""}]
[null,null,{"$f":"IFERROR(VLOOKUP(B119,[2]Sheet4!$F$2:$J$364,2,FALSE),\"\")","v":""},{"$f":"IFERROR(VLOOKUP(B119,[2]Sheet4!$F$2:$J$364,3,FALSE),\"\")","v":""},{"$f":"IFERROR(VLOOKUP(B119,[2]Sheet4!$F$2:$J$364,4,FALSE),\"\")","v":""},{"$f":"IFERROR(VLOOKUP(B119,[2]Sheet4!$F$2:$J$364,5,FALSE),\"\")","v":""}]
[null,null,{"$f":"IFERROR(VLOOKUP(B120,[2]Sheet4!$F$2:$J$364,2,FALSE),\"\")","v":""},{"$f":"IFERROR(VLOOKUP(B120,[2]Sheet4!$F$2:$J$364,3,FALSE),\"\")","v":""},{"$f":"IFERROR(VLOOKUP(B120,[2]Sheet4!$F$2:$J$364,4,FALSE),\"\")","v":""},{"$f":"IFERROR(VLOOKUP(B120,[2]Sheet4!$F$2:$J$364,5,FALSE),\"\")","v":""}]
[null,null,{"$f":"IFERROR(VLOOKUP(B121,[2]Sheet4!$F$2:$J$364,2,FALSE),\"\")","v":""},{"$f":"IFERROR(VLOOKUP(B121,[2]Sheet4!$F$2:$J$364,3,FALSE),\"\")","v":""},{"$f":"IFERROR(VLOOKUP(B121,[2]Sheet4!$F$2:$J$364,4,FALSE),\"\")","v":""},{"$f":"IFERROR(VLOOKUP(B121,[2]Sheet4!$F$2:$J$364,5,FALSE),\"\")","v":""}]
[null,null,{"$f":"IFERROR(VLOOKUP(B122,[2]Sheet4!$F$2:$J$364,2,FALSE),\"\")","v":""},{"$f":"IFERROR(VLOOKUP(B122,[2]Sheet4!$F$2:$J$364,3,FALSE),\"\")","v":""},{"$f":"IFERROR(VLOOKUP(B122,[2]Sheet4!$F$2:$J$364,4,FALSE),\"\")","v":""},{"$f":"IFERROR(VLOOKUP(B122,[2]Sheet4!$F$2:$J$364,5,FALSE),\"\")","v":""}]
[null,null,{"$f":"IFERROR(VLOOKUP(B123,[2]Sheet4!$F$2:$J$364,2,FALSE),\"\")","v":""},{"$f":"IFERROR(VLOOKUP(B123,[2]Sheet4!$F$2:$J$364,3,FALSE),\"\")","v":""},{"$f":"IFERROR(VLOOKUP(B123,[2]Sheet4!$F$2:$J$364,4,FALSE),\"\")","v":""},{"$f":"IFERROR(VLOOKUP(B123,[2]Sheet4!$F$2:$J$364,5,FALSE),\"\")","v":""}]
[null,null,{"$f":"IFERROR(VLOOKUP(B124,[2]Sheet4!$F$2:$J$364,2,FALSE),\"\")","v":""},{"$f":"IFERROR(VLOOKUP(B124,[2]Sheet4!$F$2:$J$364,3,FALSE),\"\")","v":""},{"$f":"IFERROR(VLOOKUP(B124,[2]Sheet4!$F$2:$J$364,4,FALSE),\"\")","v":""},{"$f":"IFERROR(VLOOKUP(B124,[2]Sheet4!$F$2:$J$364,5,FALSE),\"\")","v":""}]
[null,null,{"$f":"IFERROR(VLOOKUP(B125,[2]Sheet4!$F$2:$J$364,2,FALSE),\"\")","v":""},{"$f":"IFERROR(VLOOKUP(B125,[2]Sheet4!$F$2:$J$364,3,FALSE),\"\")","v":""},{"$f":"IFERROR(VLOOKUP(B125,[2]Sheet4!$F$2:$J$364,4,FALSE),\"\")","v":""},{"$f":"IFERROR(VLOOKUP(B125,[2]Sheet4!$F$2:$J$364,5,FALSE),\"\")","v":""}]
[null,null,{"$f":"IFERROR(VLOOKUP(B126,[2]Sheet4!$F$2:$J$364,2,FALSE),\"\")","v":""},{"$f":"IFERROR(VLOOKUP(B126,[2]Sheet4!$F$2:$J$364,3,FALSE),\"\")","v":""},{"$f":"IFERROR(VLOOKUP(B126,[2]Sheet4!$F$2:$J$364,4,FALSE),\"\")","v":""},{"$f":"IFERROR(VLOOKUP(B126,[2]Sheet4!$F$2:$J$364,5,FALSE),\"\")","v":""}]
[null,null,{"$f":"IFERROR(VLOOKUP(B127,[2]Sheet4!$F$2:$J$364,2,FALSE),\"\")","v":""},{"$f":"IFERROR(VLOOKUP(B127,[2]Sheet4!$F$2:$J$364,3,FALSE),\"\")","v":""},{"$f":"IFERROR(VLOOKUP(B127,[2]Sheet4!$F$2:$J$364,4,FALSE),\"\")","v":""},{"$f":"IFERROR(VLOOKUP(B127,[2]Sheet4!$F$2:$J$364,5,FALSE),\"\")","v":""}]
[null,null,{"$f":"IFERROR(VLOOKUP(B128,[2]Sheet4!$F$2:$J$364,2,FALSE),\"\")","v":""},{"$f":"IFERROR(VLOOKUP(B128,[2]Sheet4!$F$2:$J$364,3,FALSE),\"\")","v":""},{"$f":"IFERROR(VLOOKUP(B128,[2]Sheet4!$F$2:$J$364,4,FALSE),\"\")","v":""},{"$f":"IFERROR(VLOOKUP(B128,[2]Sheet4!$F$2:$J$364,5,FALSE),\"\")","v":""}]
[null,null,{"$f":"IFERROR(VLOOKUP(B129,[2]Sheet4!$F$2:$J$364,2,FALSE),\"\")","v":""},{"$f":"IFERROR(VLOOKUP(B129,[2]Sheet4!$F$2:$J$364,3,FALSE),\"\")","v":""},{"$f":"IFERROR(VLOOKUP(B129,[2]Sheet4!$F$2:$J$364,4,FALSE),\"\")","v":""},{"$f":"IFERROR(VLOOKUP(B129,[2]Sheet4!$F$2:$J$364,5,FALSE),\"\")","v":""}]
[null,null,{"$f":"IFERROR(VLOOKUP(B130,[2]Sheet4!$F$2:$J$364,2,FALSE),\"\")","v":""},{"$f":"IFERROR(VLOOKUP(B130,[2]Sheet4!$F$2:$J$364,3,FALSE),\"\")","v":""},{"$f":"IFERROR(VLOOKUP(B130,[2]Sheet4!$F$2:$J$364,4,FALSE),\"\")","v":""},{"$f":"IFERROR(VLOOKUP(B130,[2]Sheet4!$F$2:$J$364,5,FALSE),\"\")","v":""}]
[null,null,{"$f":"IFERROR(VLOOKUP(B131,[2]Sheet4!$F$2:$J$364,2,FALSE),\"\")","v":""},{"$f":"IFERROR(VLOOKUP(B131,[2]Sheet4!$F$2:$J$364,3,FALSE),\"\")","v":""},{"$f":"IFERROR(VLOOKUP(B131,[2]Sheet4!$F$2:$J$364,4,FALSE),\"\")","v":""},{"$f":"IFERROR(VLOOKUP(B131,[2]Sheet4!$F$2:$J$364,5,FALSE),\"\")","v":""}]
[null,null,{"$f":"IFERROR(VLOOKUP(B132,[2]Sheet4!$F$2:$J$364,2,FALSE),\"\")","v":""},{"$f":"IFERROR(VLOOKUP(B132,[2]Sheet4!$F$2:$J$364,3,FALSE),\"\")","v":""},{"$f":"IFERROR(VLOOKUP(B132,[2]Sheet4!$F$2:$J$364,4,FALSE),\"\")","v":""},{"$f":"IFERROR(VLOOKUP(B132,[2]Sheet4!$F$2:$J$364,5,FALSE),\"\")","v":""}]
[null,null,{"$f":"IFERROR(VLOOKUP(B133,[2]Sheet4!$F$2:$J$364,2,FALSE),\"\")","v":""},{"$f":"IFERROR(VLOOKUP(B133,[2]Sheet4!$F$2:$J$364,3,FALSE),\"\")","v":""},{"$f":"IFERROR(VLOOKUP(B133,[2]Sheet4!$F$2:$J$364,4,FALSE),\"\")","v":""},{"$f":"IFERROR(VLOOKUP(B133,[2]Sheet4!$F$2:$J$364,5,FALSE),\"\")","v":""}]
[null,null,{"$f":"IFERROR(VLOOKUP(B134,[2]Sheet4!$F$2:$J$364,2,FALSE),\"\")","v":""},{"$f":"IFERROR(VLOOKUP(B134,[2]Sheet4!$F$2:$J$364,3,FALSE),\"\")","v":""},{"$f":"IFERROR(VLOOKUP(B134,[2]Sheet4!$F$2:$J$364,4,FALSE),\"\")","v":""},{"$f":"IFERROR(VLOOKUP(B134,[2]Sheet4!$F$2:$J$364,5,FALSE),\"\")","v":""}]
[null,null,{"$f":"IFERROR(VLOOKUP(B135,[2]Sheet4!$F$2:$J$364,2,FALSE),\"\")","v":""},{"$f":"IFERROR(VLOOKUP(B135,[2]Sheet4!$F$2:$J$364,3,FALSE),\"\")","v":""},{"$f":"IFERROR(VLOOKUP(B135,[2]Sheet4!$F$2:$J$364,4,FALSE),\"\")","v":""},{"$f":"IFERROR(VLOOKUP(B135,[2]Sheet4!$F$2:$J$364,5,FALSE),\"\")","v":""}]
[null,null,{"$f":"IFERROR(VLOOKUP(B136,[2]Sheet4!$F$2:$J$364,2,FALSE),\"\")","v":""},{"$f":"IFERROR(VLOOKUP(B136,[2]Sheet4!$F$2:$J$364,3,FALSE),\"\")","v":""},{"$f":"IFERROR(VLOOKUP(B136,[2]Sheet4!$F$2:$J$364,4,FALSE),\"\")","v":""},{"$f":"IFERROR(VLOOKUP(B136,[2]Sheet4!$F$2:$J$364,5,FALSE),\"\")","v":""}]
[null,null,{"$f":"IFERROR(VLOOKUP(B137,[2]Sheet4!$F$2:$J$364,2,FALSE),\"\")","v":""},{"$f":"IFERROR(VLOOKUP(B137,[2]Sheet4!$F$2:$J$364,3,FALSE),\"\")","v":""},{"$f":"IFERROR(VLOOKUP(B137,[2]Sheet4!$F$2:$J$364,4,FALSE),\"\")","v":""},{"$f":"IFERROR(VLOOKUP(B137,[2]Sheet4!$F$2:$J$364,5,FALSE),\"\")","v":""}]
[null,null,{"$f":"IFERROR(VLOOKUP(B138,[2]Sheet4!$F$2:$J$364,2,FALSE),\"\")","v":""},{"$f":"IFERROR(VLOOKUP(B138,[2]Sheet4!$F$2:$J$364,3,FALSE),\"\")","v":""},{"$f":"IFERROR(VLOOKUP(B138,[2]Sheet4!$F$2:$J$364,4,FALSE),\"\")","v":""},{"$f":"IFERROR(VLOOKUP(B138,[2]Sheet4!$F$2:$J$364,5,FALSE),\"\")","v":""}]
[null,null,{"$f":"IFERROR(VLOOKUP(B139,[2]Sheet4!$F$2:$J$364,2,FALSE),\"\")","v":""},{"$f":"IFERROR(VLOOKUP(B139,[2]Sheet4!$F$2:$J$364,3,FALSE),\"\")","v":""},{"$f":"IFERROR(VLOOKUP(B139,[2]Sheet4!$F$2:$J$364,4,FALSE),\"\")","v":""},{"$f":"IFERROR(VLOOKUP(B139,[2]Sheet4!$F$2:$J$364,5,FALSE),\"\")","v":""}]
[null,null,{"$f":"IFERROR(VLOOKUP(B140,[2]Sheet4!$F$2:$J$364,2,FALSE),\"\")","v":""},{"$f":"IFERROR(VLOOKUP(B140,[2]Sheet4!$F$2:$J$364,3,FALSE),\"\")","v":""},{"$f":"IFERROR(VLOOKUP(B140,[2]Sheet4!$F$2:$J$364,4,FALSE),\"\")","v":""},{"$f":"IFERROR(VLOOKUP(B140,[2]Sheet4!$F$2:$J$364,5,FALSE),\"\")","v":""}]
[null,null,{"$f":"IFERROR(VLOOKUP(B141,[2]Sheet4!$F$2:$J$364,2,FALSE),\"\")","v":""},{"$f":"IFERROR(VLOOKUP(B141,[2]Sheet4!$F$2:$J$364,3,FALSE),\"\")","v":""},{"$f":"IFERROR(VLOOKUP(B141,[2]Sheet4!$F$2:$J$364,4,FALSE),\"\")","v":""},{"$f":"IFERROR(VLOOKUP(B141,[2]Sheet4!$F$2:$J$364,5,FALSE),\"\")","v":""}]
[null,null,{"$f":"IFERROR(VLOOKUP(B142,[2]Sheet4!$F$2:$J$364,2,FALSE),\"\")","v":""},{"$f":"IFERROR(VLOOKUP(B142,[2]Sheet4!$F$2:$J$364,3,FALSE),\"\")","v":""},{"$f":"IFERROR(VLOOKUP(B142,[2]Sheet4!$F$2:$J$364,4,FALSE),\"\")","v":""},{"$f":"IFERROR(VLOOKUP(B142,[2]Sheet4!$F$2:$J$364,5,FALSE),\"\")","v":""}]
[null,null,{"$f":"IFERROR(VLOOKUP(B143,[2]Sheet4!$F$2:$J$364,2,FALSE),\"\")","v":""},{"$f":"IFERROR(VLOOKUP(B143,[2]Sheet4!$F$2:$J$364,3,FALSE),\"\")","v":""},{"$f":"IFERROR(VLOOKUP(B143,[2]Sheet4!$F$2:$J$364,4,FALSE),\"\")","v":""},{"$f":"IFERROR(VLOOKUP(B143,[2]Sheet4!$F$2:$J$364,5,FALSE),\"\")","v":""}]
[null,null,{"$f":"IFERROR(VLOOKUP(B144,[2]Sheet4!$F$2:$J$364,2,FALSE),\"\")","v":""},{"$f":"IFERROR(VLOOKUP(B144,[2]Sheet4!$F$2:$J$364,3,FALSE),\"\")","v":""},{"$f":"IFERROR(VLOOKUP(B144,[2]Sheet4!$F$2:$J$364,4,FALSE),\"\")","v":""},{"$f":"IFERROR(VLOOKUP(B144,[2]Sheet4!$F$2:$J$364,5,FALSE),\"\")","v":""}]
[null,null,{"$f":"IFERROR(VLOOKUP(B145,[2]Sheet4!$F$2:$J$364,2,FALSE),\"\")","v":""},{"$f":"IFERROR(VLOOKUP(B145,[2]Sheet4!$F$2:$J$364,3,FALSE),\"\")","v":""},{"$f":"IFERROR(VLOOKUP(B145,[2]Sheet4!$F$2:$J$364,4,FALSE),\"\")","v":""},{"$f":"IFERROR(VLOOKUP(B145,[2]Sheet4!$F$2:$J$364,5,FALSE),\"\")","v":""}]
[null,null,{"$f":"IFERROR(VLOOKUP(B146,[2]Sheet4!$F$2:$J$364,2,FALSE),\"\")","v":""},{"$f":"IFERROR(VLOOKUP(B146,[2]Sheet4!$F$2:$J$364,3,FALSE),\"\")","v":""},{"$f":"IFERROR(VLOOKUP(B146,[2]Sheet4!$F$2:$J$364,4,FALSE),\"\")","v":""},{"$f":"IFERROR(VLOOKUP(B146,[2]Sheet4!$F$2:$J$364,5,FALSE),\"\")","v":""}]
[null,null,{"$f":"IFERROR(VLOOKUP(B147,[2]Sheet4!$F$2:$J$364,2,FALSE),\"\")","v":""},{"$f":"IFERROR(VLOOKUP(B147,[2]Sheet4!$F$2:$J$364,3,FALSE),\"\")","v":""},{"$f":"IFERROR(VLOOKUP(B147,[2]Sheet4!$F$2:$J$364,4,FALSE),\"\")","v":""},{"$f":"IFERROR(VLOOKUP(B147,[2]Sheet4!$F$2:$J$364,5,FALSE),\"\")","v":""}]
[null,null,{"$f":"IFERROR(VLOOKUP(B148,[2]Sheet4!$F$2:$J$364,2,FALSE),\"\")","v":""},{"$f":"IFERROR(VLOOKUP(B148,[2]Sheet4!$F$2:$J$364,3,FALSE),\"\")","v":""},{"$f":"IFERROR(VLOOKUP(B148,[2]Sheet4!$F$2:$J$364,4,FALSE),\"\")","v":""},{"$f":"IFERROR(VLOOKUP(B148,[2]Sheet4!$F$2:$J$364,5,FALSE),\"\")","v":""}]
[null,null,{"$f":"IFERROR(VLOOKUP(B149,[2]Sheet4!$F$2:$J$364,2,FALSE),\"\")","v":""},{"$f":"IFERROR(VLOOKUP(B149,[2]Sheet4!$F$2:$J$364,3,FALSE),\"\")","v":""},{"$f":"IFERROR(VLOOKUP(B149,[2]Sheet4!$F$2:$J$364,4,FALSE),\"\")","v":""},{"$f":"IFERROR(VLOOKUP(B149,[2]Sheet4!$F$2:$J$364,5,FALSE),\"\")","v":""}]
[null,null,{"$f":"IFERROR(VLOOKUP(B150,[2]Sheet4!$F$2:$J$364,2,FALSE),\"\")","v":""},{"$f":"IFERROR(VLOOKUP(B150,[2]Sheet4!$F$2:$J$364,3,FALSE),\"\")","v":""},{"$f":"IFERROR(VLOOKUP(B150,[2]Sheet4!$F$2:$J$364,4,FALSE),\"\")","v":""},{"$f":"IFERROR(VLOOKUP(B150,[2]Sheet4!$F$2:$J$364,5,FALSE),\"\")","v":""}]
[null,null,{"$f":"IFERROR(VLOOKUP(B151,[2]Sheet4!$F$2:$J$364,2,FALSE),\"\")","v":""},{"$f":"IFERROR(VLOOKUP(B151,[2]Sheet4!$F$2:$J$364,3,FALSE),\"\")","v":""},{"$f":"IFERROR(VLOOKUP(B151,[2]Sheet4!$F$2:$J$364,4,FALSE),\"\")","v":""},{"$f":"IFERROR(VLOOKUP(B151,[2]Sheet4!$F$2:$J$364,5,FALSE),\"\")","v":""}]
[null,null,{"$f":"IFERROR(VLOOKUP(B152,[2]Sheet4!$F$2:$J$364,2,FALSE),\"\")","v":""},{"$f":"IFERROR(VLOOKUP(B152,[2]Sheet4!$F$2:$J$364,3,FALSE),\"\")","v":""},{"$f":"IFERROR(VLOOKUP(B152,[2]Sheet4!$F$2:$J$364,4,FALSE),\"\")","v":""},{"$f":"IFERROR(VLOOKUP(B152,[2]Sheet4!$F$2:$J$364,5,FALSE),\"\")","v":""}]
[null,null,{"$f":"IFERROR(VLOOKUP(B153,[2]Sheet4!$F$2:$J$364,2,FALSE),\"\")","v":""},{"$f":"IFERROR(VLOOKUP(B153,[2]Sheet4!$F$2:$J$364,3,FALSE),\"\")","v":""},{"$f":"IFERROR(VLOOKUP(B153,[2]Sheet4!$F$2:$J$364,4,FALSE),\"\")","v":""},{"$f":"IFERROR(VLOOKUP(B153,[2]Sheet4!$F$2:$J$364,5,FALSE),\"\")","v":""}]
[null,null,{"$f":"IFERROR(VLOOKUP(B154,[2]Sheet4!$F$2:$J$364,2,FALSE),\"\")","v":""},{"$f":"IFERROR(VLOOKUP(B154,[2]Sheet4!$F$2:$J$364,3,FALSE),\"\")","v":""},{"$f":"IFERROR(VLOOKUP(B154,[2]Sheet4!$F$2:$J$364,4,FALSE),\"\")","v":""},{"$f":"IFERROR(VLOOKUP(B154,[2]Sheet4!$F$2:$J$364,5,FALSE),\"\")","v":""}]
[null,null,{"$f":"IFERROR(VLOOKUP(B155,[2]Sheet4!$F$2:$J$364,2,FALSE),\"\")","v":""},{"$f":"IFERROR(VLOOKUP(B155,[2]Sheet4!$F$2:$J$364,3,FALSE),\"\")","v":""},{"$f":"IFERROR(VLOOKUP(B155,[2]Sheet4!$F$2:$J$364,4,FALSE),\"\")","v":""},{"$f":"IFERROR(VLOOKUP(B155,[2]Sheet4!$F$2:$J$364,5,FALSE),\"\")","v":""}]
[null,null,{"$f":"IFERROR(VLOOKUP(B156,[2]Sheet4!$F$2:$J$364,2,FALSE),\"\")","v":""},{"$f":"IFERROR(VLOOKUP(B156,[2]Sheet4!$F$2:$J$364,3,FALSE),\"\")","v":""},{"$f":"IFERROR(VLOOKUP(B156,[2]Sheet4!$F$2:$J$364,4,FALSE),\"\")","v":""},{"$f":"IFERROR(VLOOKUP(B156,[2]Sheet4!$F$2:$J$364,5,FALSE),\"\")","v":""}]
[null,null,{"$f":"IFERROR(VLOOKUP(B157,[2]Sheet4!$F$2:$J$364,2,FALSE),\"\")","v":""},{"$f":"IFERROR(VLOOKUP(B157,[2]Sheet4!$F$2:$J$364,3,FALSE),\"\")","v":""},{"$f":"IFERROR(VLOOKUP(B157,[2]Sheet4!$F$2:$J$364,4,FALSE),\"\")","v":""},{"$f":"IFERROR(VLOOKUP(B157,[2]Sheet4!$F$2:$J$364,5,FALSE),\"\")","v":""}]
[null,null,{"$f":"IFERROR(VLOOKUP(B158,[2]Sheet4!$F$2:$J$364,2,FALSE),\"\")","v":""},{"$f":"IFERROR(VLOOKUP(B158,[2]Sheet4!$F$2:$J$364,3,FALSE),\"\")","v":""},{"$f":"IFERROR(VLOOKUP(B158,[2]Sheet4!$F$2:$J$364,4,FALSE),\"\")","v":""},{"$f":"IFERROR(VLOOKUP(B158,[2]Sheet4!$F$2:$J$364,5,FALSE),\"\")","v":""}]
[null,null,{"$f":"IFERROR(VLOOKUP(B159,[2]Sheet4!$F$2:$J$364,2,FALSE),\"\")","v":""},{"$f":"IFERROR(VLOOKUP(B159,[2]Sheet4!$F$2:$J$364,3,FALSE),\"\")","v":""},{"$f":"IFERROR(VLOOKUP(B159,[2]Sheet4!$F$2:$J$364,4,FALSE),\"\")","v":""},{"$f":"IFERROR(VLOOKUP(B159,[2]Sheet4!$F$2:$J$364,5,FALSE),\"\")","v":""}]
[null,null,{"$f":"IFERROR(VLOOKUP(B160,[2]Sheet4!$F$2:$J$364,2,FALSE),\"\")","v":""},{"$f":"IFERROR(VLOOKUP(B160,[2]Sheet4!$F$2:$J$364,3,FALSE),\"\")","v":""},{"$f":"IFERROR(VLOOKUP(B160,[2]Sheet4!$F$2:$J$364,4,FALSE),\"\")","v":""},{"$f":"IFERROR(VLOOKUP(B160,[2]Sheet4!$F$2:$J$364,5,FALSE),\"\")","v":""}]
[null,null,{"$f":"IFERROR(VLOOKUP(B161,[2]Sheet4!$F$2:$J$364,2,FALSE),\"\")","v":""},{"$f":"IFERROR(VLOOKUP(B161,[2]Sheet4!$F$2:$J$364,3,FALSE),\"\")","v":""},{"$f":"IFERROR(VLOOKUP(B161,[2]Sheet4!$F$2:$J$364,4,FALSE),\"\")","v":""},{"$f":"IFERROR(VLOOKUP(B161,[2]Sheet4!$F$2:$J$364,5,FALSE),\"\")","v":""}]
[null,null,{"$f":"IFERROR(VLOOKUP(B162,[2]Sheet4!$F$2:$J$364,2,FALSE),\"\")","v":""},{"$f":"IFERROR(VLOOKUP(B162,[2]Sheet4!$F$2:$J$364,3,FALSE),\"\")","v":""},{"$f":"IFERROR(VLOOKUP(B162,[2]Sheet4!$F$2:$J$364,4,FALSE),\"\")","v":""},{"$f":"IFERROR(VLOOKUP(B162,[2]Sheet4!$F$2:$J$364,5,FALSE),\"\")","v":""}]
[null,null,{"$f":"IFERROR(VLOOKUP(B163,[2]Sheet4!$F$2:$J$364,2,FALSE),\"\")","v":""},{"$f":"IFERROR(VLOOKUP(B163,[2]Sheet4!$F$2:$J$364,3,FALSE),\"\")","v":""},{"$f":"IFERROR(VLOOKUP(B163,[2]Sheet4!$F$2:$J$364,4,FALSE),\"\")","v":""},{"$f":"IFERROR(VLOOKUP(B163,[2]Sheet4!$F$2:$J$364,5,FALSE),\"\")","v":""}]
[null,null,{"$f":"IFERROR(VLOOKUP(B164,[2]Sheet4!$F$2:$J$364,2,FALSE),\"\")","v":""},{"$f":"IFERROR(VLOOKUP(B164,[2]Sheet4!$F$2:$J$364,3,FALSE),\"\")","v":""},{"$f":"IFERROR(VLOOKUP(B164,[2]Sheet4!$F$2:$J$364,4,FALSE),\"\")","v":""},{"$f":"IFERROR(VLOOKUP(B164,[2]Sheet4!$F$2:$J$364,5,FALSE),\"\")","v":""}]
[null,null,{"$f":"IFERROR(VLOOKUP(B165,[2]Sheet4!$F$2:$J$364,2,FALSE),\"\")","v":""},{"$f":"IFERROR(VLOOKUP(B165,[2]Sheet4!$F$2:$J$364,3,FALSE),\"\")","v":""},{"$f":"IFERROR(VLOOKUP(B165,[2]Sheet4!$F$2:$J$364,4,FALSE),\"\")","v":""},{"$f":"IFERROR(VLOOKUP(B165,[2]Sheet4!$F$2:$J$364,5,FALSE),\"\")","v":""}]
[null,null,{"$f":"IFERROR(VLOOKUP(B166,[2]Sheet4!$F$2:$J$364,2,FALSE),\"\")","v":""},{"$f":"IFERROR(VLOOKUP(B166,[2]Sheet4!$F$2:$J$364,3,FALSE),\"\")","v":""},{"$f":"IFERROR(VLOOKUP(B166,[2]Sheet4!$F$2:$J$364,4,FALSE),\"\")","v":""},{"$f":"IFERROR(VLOOKUP(B166,[2]Sheet4!$F$2:$J$364,5,FALSE),\"\")","v":""}]
[null,null,{"$f":"IFERROR(VLOOKUP(B167,[2]Sheet4!$F$2:$J$364,2,FALSE),\"\")","v":""},{"$f":"IFERROR(VLOOKUP(B167,[2]Sheet4!$F$2:$J$364,3,FALSE),\"\")","v":""},{"$f":"IFERROR(VLOOKUP(B167,[2]Sheet4!$F$2:$J$364,4,FALSE),\"\")","v":""},{"$f":"IFERROR(VLOOKUP(B167,[2]Sheet4!$F$2:$J$364,5,FALSE),\"\")","v":""}]
[null,null,{"$f":"IFERROR(VLOOKUP(B168,[2]Sheet4!$F$2:$J$364,2,FALSE),\"\")","v":""},{"$f":"IFERROR(VLOOKUP(B168,[2]Sheet4!$F$2:$J$364,3,FALSE),\"\")","v":""},{"$f":"IFERROR(VLOOKUP(B168,[2]Sheet4!$F$2:$J$364,4,FALSE),\"\")","v":""},{"$f":"IFERROR(VLOOKUP(B168,[2]Sheet4!$F$2:$J$364,5,FALSE),\"\")","v":""}]
[null,null,{"$f":"IFERROR(VLOOKUP(B169,[2]Sheet4!$F$2:$J$364,2,FALSE),\"\")","v":""},{"$f":"IFERROR(VLOOKUP(B169,[2]Sheet4!$F$2:$J$364,3,FALSE),\"\")","v":""},{"$f":"IFERROR(VLOOKUP(B169,[2]Sheet4!$F$2:$J$364,4,FALSE),\"\")","v":""},{"$f":"IFERROR(VLOOKUP(B169,[2]Sheet4!$F$2:$J$364,5,FALSE),\"\")","v":""}]
[null,null,{"$f":"IFERROR(VLOOKUP(B170,[2]Sheet4!$F$2:$J$364,2,FALSE),\"\")","v":""},{"$f":"IFERROR(VLOOKUP(B170,[2]Sheet4!$F$2:$J$364,3,FALSE),\"\")","v":""},{"$f":"IFERROR(VLOOKUP(B170,[2]Sheet4!$F$2:$J$364,4,FALSE),\"\")","v":""},{"$f":"IFERROR(VLOOKUP(B170,[2]Sheet4!$F$2:$J$364,5,FALSE),\"\")","v":""}]
[null,null,{"$f":"IFERROR(VLOOKUP(B171,[2]Sheet4!$F$2:$J$364,2,FALSE),\"\")","v":""},{"$f":"IFERROR(VLOOKUP(B171,[2]Sheet4!$F$2:$J$364,3,FALSE),\"\")","v":""},{"$f":"IFERROR(VLOOKUP(B171,[2]Sheet4!$F$2:$J$364,4,FALSE),\"\")","v":""},{"$f":"IFERROR(VLOOKUP(B171,[2]Sheet4!$F$2:$J$364,5,FALSE),\"\")","v":""}]
[null,null,{"$f":"IFERROR(VLOOKUP(B172,[2]Sheet4!$F$2:$J$364,2,FALSE),\"\")","v":""},{"$f":"IFERROR(VLOOKUP(B172,[2]Sheet4!$F$2:$J$364,3,FALSE),\"\")","v":""},{"$f":"IFERROR(VLOOKUP(B172,[2]Sheet4!$F$2:$J$364,4,FALSE),\"\")","v":""},{"$f":"IFERROR(VLOOKUP(B172,[2]Sheet4!$F$2:$J$364,5,FALSE),\"\")","v":""}]
[null,null,{"$f":"IFERROR(VLOOKUP(B173,[2]Sheet4!$F$2:$J$364,2,FALSE),\"\")","v":""},{"$f":"IFERROR(VLOOKUP(B173,[2]Sheet4!$F$2:$J$364,3,FALSE),\"\")","v":""},{"$f":"IFERROR(VLOOKUP(B173,[2]Sheet4!$F$2:$J$364,4,FALSE),\"\")","v":""},{"$f":"IFERROR(VLOOKUP(B173,[2]Sheet4!$F$2:$J$364,5,FALSE),\"\")","v":""}]
[null,null,{"$f":"IFERROR(VLOOKUP(B174,[2]Sheet4!$F$2:$J$364,2,FALSE),\"\")","v":""},{"$f":"IFERROR(VLOOKUP(B174,[2]Sheet4!$F$2:$J$364,3,FALSE),\"\")","v":""},{"$f":"IFERROR(VLOOKUP(B174,[2]Sheet4!$F$2:$J$364,4,FALSE),\"\")","v":""},{"$f":"IFERROR(VLOOKUP(B174,[2]Sheet4!$F$2:$J$364,5,FALSE),\"\")","v":""}]
[null,null,{"$f":"IFERROR(VLOOKUP(B175,[2]Sheet4!$F$2:$J$364,2,FALSE),\"\")","v":""},{"$f":"IFERROR(VLOOKUP(B175,[2]Sheet4!$F$2:$J$364,3,FALSE),\"\")","v":""},{"$f":"IFERROR(VLOOKUP(B175,[2]Sheet4!$F$2:$J$364,4,FALSE),\"\")","v":""},{"$f":"IFERROR(VLOOKUP(B175,[2]Sheet4!$F$2:$J$364,5,FALSE),\"\")","v":""}]
[null,null,{"$f":"IFERROR(VLOOKUP(B176,[2]Sheet4!$F$2:$J$364,2,FALSE),\"\")","v":""},{"$f":"IFERROR(VLOOKUP(B176,[2]Sheet4!$F$2:$J$364,3,FALSE),\"\")","v":""},{"$f":"IFERROR(VLOOKUP(B176,[2]Sheet4!$F$2:$J$364,4,FALSE),\"\")","v":""},{"$f":"IFERROR(VLOOKUP(B176,[2]Sheet4!$F$2:$J$364,5,FALSE),\"\")","v":""}]
[null,null,{"$f":"IFERROR(VLOOKUP(B177,[2]Sheet4!$F$2:$J$364,2,FALSE),\"\")","v":""},{"$f":"IFERROR(VLOOKUP(B177,[2]Sheet4!$F$2:$J$364,3,FALSE),\"\")","v":""},{"$f":"IFERROR(VLOOKUP(B177,[2]Sheet4!$F$2:$J$364,4,FALSE),\"\")","v":""},{"$f":"IFERROR(VLOOKUP(B177,[2]Sheet4!$F$2:$J$364,5,FALSE),\"\")","v":""}]
[null,null,{"$f":"IFERROR(VLOOKUP(B178,[2]Sheet4!$F$2:$J$364,2,FALSE),\"\")","v":""},{"$f":"IFERROR(VLOOKUP(B178,[2]Sheet4!$F$2:$J$364,3,FALSE),\"\")","v":""},{"$f":"IFERROR(VLOOKUP(B178,[2]Sheet4!$F$2:$J$364,4,FALSE),\"\")","v":""},{"$f":"IFERROR(VLOOKUP(B178,[2]Sheet4!$F$2:$J$364,5,FALSE),\"\")","v":""}]
[null,null,{"$f":"IFERROR(VLOOKUP(B179,[2]Sheet4!$F$2:$J$364,2,FALSE),\"\")","v":""},{"$f":"IFERROR(VLOOKUP(B179,[2]Sheet4!$F$2:$J$364,3,FALSE),\"\")","v":""},{"$f":"IFERROR(VLOOKUP(B179,[2]Sheet4!$F$2:$J$364,4,FALSE),\"\")","v":""},{"$f":"IFERROR(VLOOKUP(B179,[2]Sheet4!$F$2:$J$364,5,FALSE),\"\")","v":""}]
[null,null,{"$f":"IFERROR(VLOOKUP(B180,[2]Sheet4!$F$2:$J$364,2,FALSE),\"\")","v":""},{"$f":"IFERROR(VLOOKUP(B180,[2]Sheet4!$F$2:$J$364,3,FALSE),\"\")","v":""},{"$f":"IFERROR(VLOOKUP(B180,[2]Sheet4!$F$2:$J$364,4,FALSE),\"\")","v":""},{"$f":"IFERROR(VLOOKUP(B180,[2]Sheet4!$F$2:$J$364,5,FALSE),\"\")","v":""}]
[null,null,{"$f":"IFERROR(VLOOKUP(B181,[2]Sheet4!$F$2:$J$364,2,FALSE),\"\")","v":""},{"$f":"IFERROR(VLOOKUP(B181,[2]Sheet4!$F$2:$J$364,3,FALSE),\"\")","v":""},{"$f":"IFERROR(VLOOKUP(B181,[2]Sheet4!$F$2:$J$364,4,FALSE),\"\")","v":""},{"$f":"IFERROR(VLOOKUP(B181,[2]Sheet4!$F$2:$J$364,5,FALSE),\"\")","v":""}]
[null,null,{"$f":"IFERROR(VLOOKUP(B182,[2]Sheet4!$F$2:$J$364,2,FALSE),\"\")","v":""},{"$f":"IFERROR(VLOOKUP(B182,[2]Sheet4!$F$2:$J$364,3,FALSE),\"\")","v":""},{"$f":"IFERROR(VLOOKUP(B182,[2]Sheet4!$F$2:$J$364,4,FALSE),\"\")","v":""},{"$f":"IFERROR(VLOOKUP(B182,[2]Sheet4!$F$2:$J$364,5,FALSE),\"\")","v":""}]
[null,null,{"$f":"IFERROR(VLOOKUP(B183,[2]Sheet4!$F$2:$J$364,2,FALSE),\"\")","v":""},{"$f":"IFERROR(VLOOKUP(B183,[2]Sheet4!$F$2:$J$364,3,FALSE),\"\")","v":""},{"$f":"IFERROR(VLOOKUP(B183,[2]Sheet4!$F$2:$J$364,4,FALSE),\"\")","v":""},{"$f":"IFERROR(VLOOKUP(B183,[2]Sheet4!$F$2:$J$364,5,FALSE),\"\")","v":""}]
[null,null,{"$f":"IFERROR(VLOOKUP(B184,[2]Sheet4!$F$2:$J$364,2,FALSE),\"\")","v":""},{"$f":"IFERROR(VLOOKUP(B184,[2]Sheet4!$F$2:$J$364,3,FALSE),\"\")","v":""},{"$f":"IFERROR(VLOOKUP(B184,[2]Sheet4!$F$2:$J$364,4,FALSE),\"\")","v":""},{"$f":"IFERROR(VLOOKUP(B184,[2]Sheet4!$F$2:$J$364,5,FALSE),\"\")","v":""}]
[null,null,{"$f":"IFERROR(VLOOKUP(B185,[2]Sheet4!$F$2:$J$364,2,FALSE),\"\")","v":""},{"$f":"IFERROR(VLOOKUP(B185,[2]Sheet4!$F$2:$J$364,3,FALSE),\"\")","v":""},{"$f":"IFERROR(VLOOKUP(B185,[2]Sheet4!$F$2:$J$364,4,FALSE),\"\")","v":""},{"$f":"IFERROR(VLOOKUP(B185,[2]Sheet4!$F$2:$J$364,5,FALSE),\"\")","v":""}]
[null,null,{"$f":"IFERROR(VLOOKUP(B186,[2]Sheet4!$F$2:$J$364,2,FALSE),\"\")","v":""},{"$f":"IFERROR(VLOOKUP(B186,[2]Sheet4!$F$2:$J$364,3,FALSE),\"\")","v":""},{"$f":"IFERROR(VLOOKUP(B186,[2]Sheet4!$F$2:$J$364,4,FALSE),\"\")","v":""},{"$f":"IFERROR(VLOOKUP(B186,[2]Sheet4!$F$2:$J$364,5,FALSE),\"\")","v":""}]
[null,null,{"$f":"IFERROR(VLOOKUP(B187,[2]Sheet4!$F$2:$J$364,2,FALSE),\"\")","v":""},{"$f":"IFERROR(VLOOKUP(B187,[2]Sheet4!$F$2:$J$364,3,FALSE),\"\")","v":""},{"$f":"IFERROR(VLOOKUP(B187,[2]Sheet4!$F$2:$J$364,4,FALSE),\"\")","v":""},{"$f":"IFERROR(VLOOKUP(B187,[2]Sheet4!$F$2:$J$364,5,FALSE),\"\")","v":""}]
[null,null,{"$f":"IFERROR(VLOOKUP(B188,[2]Sheet4!$F$2:$J$364,2,FALSE),\"\")","v":""},{"$f":"IFERROR(VLOOKUP(B188,[2]Sheet4!$F$2:$J$364,3,FALSE),\"\")","v":""},{"$f":"IFERROR(VLOOKUP(B188,[2]Sheet4!$F$2:$J$364,4,FALSE),\"\")","v":""},{"$f":"IFERROR(VLOOKUP(B188,[2]Sheet4!$F$2:$J$364,5,FALSE),\"\")","v":""}]
[null,null,{"$f":"IFERROR(VLOOKUP(B189,[2]Sheet4!$F$2:$J$364,2,FALSE),\"\")","v":""},{"$f":"IFERROR(VLOOKUP(B189,[2]Sheet4!$F$2:$J$364,3,FALSE),\"\")","v":""},{"$f":"IFERROR(VLOOKUP(B189,[2]Sheet4!$F$2:$J$364,4,FALSE),\"\")","v":""},{"$f":"IFERROR(VLOOKUP(B189,[2]Sheet4!$F$2:$J$364,5,FALSE),\"\")","v":""}]
[null,null,{"$f":"IFERROR(VLOOKUP(B190,[2]Sheet4!$F$2:$J$364,2,FALSE),\"\")","v":""},{"$f":"IFERROR(VLOOKUP(B190,[2]Sheet4!$F$2:$J$364,3,FALSE),\"\")","v":""},{"$f":"IFERROR(VLOOKUP(B190,[2]Sheet4!$F$2:$J$364,4,FALSE),\"\")","v":""},{"$f":"IFERROR(VLOOKUP(B190,[2]Sheet4!$F$2:$J$364,5,FALSE),\"\")","v":""}]
[null,null,{"$f":"IFERROR(VLOOKUP(B191,[2]Sheet4!$F$2:$J$364,2,FALSE),\"\")","v":""},{"$f":"IFERROR(VLOOKUP(B191,[2]Sheet4!$F$2:$J$364,3,FALSE),\"\")","v":""},{"$f":"IFERROR(VLOOKUP(B191,[2]Sheet4!$F$2:$J$364,4,FALSE),\"\")","v":""},{"$f":"IFERROR(VLOOKUP(B191,[2]Sheet4!$F$2:$J$364,5,FALSE),\"\")","v":""}]
[null,null,{"$f":"IFERROR(VLOOKUP(B192,[2]Sheet4!$F$2:$J$364,2,FALSE),\"\")","v":""},{"$f":"IFERROR(VLOOKUP(B192,[2]Sheet4!$F$2:$J$364,3,FALSE),\"\")","v":""},{"$f":"IFERROR(VLOOKUP(B192,[2]Sheet4!$F$2:$J$364,4,FALSE),\"\")","v":""},{"$f":"IFERROR(VLOOKUP(B192,[2]Sheet4!$F$2:$J$364,5,FALSE),\"\")","v":""}]
[null,null,{"$f":"IFERROR(VLOOKUP(B193,[2]Sheet4!$F$2:$J$364,2,FALSE),\"\")","v":""},{"$f":"IFERROR(VLOOKUP(B193,[2]Sheet4!$F$2:$J$364,3,FALSE),\"\")","v":""},{"$f":"IFERROR(VLOOKUP(B193,[2]Sheet4!$F$2:$J$364,4,FALSE),\"\")","v":""},{"$f":"IFERROR(VLOOKUP(B193,[2]Sheet4!$F$2:$J$364,5,FALSE),\"\")","v":""}]
[null,null,{"$f":"IFERROR(VLOOKUP(B194,[2]Sheet4!$F$2:$J$364,2,FALSE),\"\")","v":""},{"$f":"IFERROR(VLOOKUP(B194,[2]Sheet4!$F$2:$J$364,3,FALSE),\"\")","v":""},{"$f":"IFERROR(VLOOKUP(B194,[2]Sheet4!$F$2:$J$364,4,FALSE),\"\")","v":""},{"$f":"IFERROR(VLOOKUP(B194,[2]Sheet4!$F$2:$J$364,5,FALSE),\"\")","v":""}]
[null,null,{"$f":"IFERROR(VLOOKUP(B195,[2]Sheet4!$F$2:$J$364,2,FALSE),\"\")","v":""},{"$f":"IFERROR(VLOOKUP(B195,[2]Sheet4!$F$2:$J$364,3,FALSE),\"\")","v":""},{"$f":"IFERROR(VLOOKUP(B195,[2]Sheet4!$F$2:$J$364,4,FALSE),\"\")","v":""},{"$f":"IFERROR(VLOOKUP(B195,[2]Sheet4!$F$2:$J$364,5,FALSE),\"\")","v":""}]
[null,null,{"$f":"IFERROR(VLOOKUP(B196,[2]Sheet4!$F$2:$J$364,2,FALSE),\"\")","v":""},{"$f":"IFERROR(VLOOKUP(B196,[2]Sheet4!$F$2:$J$364,3,FALSE),\"\")","v":""},{"$f":"IFERROR(VLOOKUP(B196,[2]Sheet4!$F$2:$J$364,4,FALSE),\"\")","v":""},{"$f":"IFERROR(VLOOKUP(B196,[2]Sheet4!$F$2:$J$364,5,FALSE),\"\")","v":""}]
[null,null,{"$f":"IFERROR(VLOOKUP(B197,[2]Sheet4!$F$2:$J$364,2,FALSE),\"\")","v":""},{"$f":"IFERROR(VLOOKUP(B197,[2]Sheet4!$F$2:$J$364,3,FALSE),\"\")","v":""},{"$f":"IFERROR(VLOOKUP(B197,[2]Sheet4!$F$2:$J$364,4,FALSE),\"\")","v":""},{"$f":"IFERROR(VLOOKUP(B197,[2]Sheet4!$F$2:$J$364,5,FALSE),\"\")","v":""}]
[null,null,{"$f":"IFERROR(VLOOKUP(B198,[2]Sheet4!$F$2:$J$364,2,FALSE),\"\")","v":""},{"$f":"IFERROR(VLOOKUP(B198,[2]Sheet4!$F$2:$J$364,3,FALSE),\"\")","v":""},{"$f":"IFERROR(VLOOKUP(B198,[2]Sheet4!$F$2:$J$364,4,FALSE),\"\")","v":""},{"$f":"IFERROR(VLOOKUP(B198,[2]Sheet4!$F$2:$J$364,5,FALSE),\"\")","v":""}]
[null,null,{"$f":"IFERROR(VLOOKUP(B199,[2]Sheet4!$F$2:$J$364,2,FALSE),\"\")","v":""},{"$f":"IFERROR(VLOOKUP(B199,[2]Sheet4!$F$2:$J$364,3,FALSE),\"\")","v":""},{"$f":"IFERROR(VLOOKUP(B199,[2]Sheet4!$F$2:$J$364,4,FALSE),\"\")","v":""},{"$f":"IFERROR(VLOOKUP(B199,[2]Sheet4!$F$2:$J$364,5,FALSE),\"\")","v":""}]
[null,null,{"$f":"IFERROR(VLOOKUP(B200,[2]Sheet4!$F$2:$J$364,2,FALSE),\"\")","v":""},{"$f":"IFERROR(VLOOKUP(B200,[2]Sheet4!$F$2:$J$364,3,FALSE),\"\")","v":""},{"$f":"IFERROR(VLOOKUP(B200,[2]Sheet4!$F$2:$J$364,4,FALSE),\"\")","v":""},{"$f":"IFERROR(VLOOKUP(B200,[2]Sheet4!$F$2:$J$364,5,FALSE),\"\")","v":""}]
[null,null,{"$f":"IFERROR(VLOOKUP(B201,[2]Sheet4!$F$2:$J$364,2,FALSE),\"\")","v":""},{"$f":"IFERROR(VLOOKUP(B201,[2]Sheet4!$F$2:$J$364,3,FALSE),\"\")","v":""},{"$f":"IFERROR(VLOOKUP(B201,[2]Sheet4!$F$2:$J$364,4,FALSE),\"\")","v":""},{"$f":"IFERROR(VLOOKUP(B201,[2]Sheet4!$F$2:$J$364,5,FALSE),\"\")","v":""}]
[null,null,{"$f":"IFERROR(VLOOKUP(B202,[2]Sheet4!$F$2:$J$364,2,FALSE),\"\")","v":""},{"$f":"IFERROR(VLOOKUP(B202,[2]Sheet4!$F$2:$J$364,3,FALSE),\"\")","v":""},{"$f":"IFERROR(VLOOKUP(B202,[2]Sheet4!$F$2:$J$364,4,FALSE),\"\")","v":""},{"$f":"IFERROR(VLOOKUP(B202,[2]Sheet4!$F$2:$J$364,5,FALSE),\"\")","v":""}]
[null,null,{"$f":"IFERROR(VLOOKUP(B203,[2]Sheet4!$F$2:$J$364,2,FALSE),\"\")","v":""},{"$f":"IFERROR(VLOOKUP(B203,[2]Sheet4!$F$2:$J$364,3,FALSE),\"\")","v":""},{"$f":"IFERROR(VLOOKUP(B203,[2]Sheet4!$F$2:$J$364,4,FALSE),\"\")","v":""},{"$f":"IFERROR(VLOOKUP(B203,[2]Sheet4!$F$2:$J$364,5,FALSE),\"\")","v":""}]
[null,null,{"$f":"IFERROR(VLOOKUP(B204,[2]Sheet4!$F$2:$J$364,2,FALSE),\"\")","v":""},{"$f":"IFERROR(VLOOKUP(B204,[2]Sheet4!$F$2:$J$364,3,FALSE),\"\")","v":""},{"$f":"IFERROR(VLOOKUP(B204,[2]Sheet4!$F$2:$J$364,4,FALSE),\"\")","v":""},{"$f":"IFERROR(VLOOKUP(B204,[2]Sheet4!$F$2:$J$364,5,FALSE),\"\")","v":""}]
[null,null,{"$f":"IFERROR(VLOOKUP(B205,[2]Sheet4!$F$2:$J$364,2,FALSE),\"\")","v":""},{"$f":"IFERROR(VLOOKUP(B205,[2]Sheet4!$F$2:$J$364,3,FALSE),\"\")","v":""},{"$f":"IFERROR(VLOOKUP(B205,[2]Sheet4!$F$2:$J$364,4,FALSE),\"\")","v":""},{"$f":"IFERROR(VLOOKUP(B205,[2]Sheet4!$F$2:$J$364,5,FALSE),\"\")","v":""}]
[null,null,{"$f":"IFERROR(VLOOKUP(B206,[2]Sheet4!$F$2:$J$364,2,FALSE),\"\")","v":""},{"$f":"IFERROR(VLOOKUP(B206,[2]Sheet4!$F$2:$J$364,3,FALSE),\"\")","v":""},{"$f":"IFERROR(VLOOKUP(B206,[2]Sheet4!$F$2:$J$364,4,FALSE),\"\")","v":""},{"$f":"IFERROR(VLOOKUP(B206,[2]Sheet4!$F$2:$J$364,5,FALSE),\"\")","v":""}]
[null,null,{"$f":"IFERROR(VLOOKUP(B207,[2]Sheet4!$F$2:$J$364,2,FALSE),\"\")","v":""},{"$f":"IFERROR(VLOOKUP(B207,[2]Sheet4!$F$2:$J$364,3,FALSE),\"\")","v":""},{"$f":"IFERROR(VLOOKUP(B207,[2]Sheet4!$F$2:$J$364,4,FALSE),\"\")","v":""},{"$f":"IFERROR(VLOOKUP(B207,[2]Sheet4!$F$2:$J$364,5,FALSE),\"\")","v":""}]
[null,null,{"$f":"IFERROR(VLOOKUP(B208,[2]Sheet4!$F$2:$J$364,2,FALSE),\"\")","v":""},{"$f":"IFERROR(VLOOKUP(B208,[2]Sheet4!$F$2:$J$364,3,FALSE),\"\")","v":""},{"$f":"IFERROR(VLOOKUP(B208,[2]Sheet4!$F$2:$J$364,4,FALSE),\"\")","v":""},{"$f":"IFERROR(VLOOKUP(B208,[2]Sheet4!$F$2:$J$364,5,FALSE),\"\")","v":""}]
[null,null,{"$f":"IFERROR(VLOOKUP(B209,[2]Sheet4!$F$2:$J$364,2,FALSE),\"\")","v":""},{"$f":"IFERROR(VLOOKUP(B209,[2]Sheet4!$F$2:$J$364,3,FALSE),\"\")","v":""},{"$f":"IFERROR(VLOOKUP(B209,[2]Sheet4!$F$2:$J$364,4,FALSE),\"\")","v":""},{"$f":"IFERROR(VLOOKUP(B209,[2]Sheet4!$F$2:$J$364,5,FALSE),\"\")","v":""}]
[null,null,{"$f":"IFERROR(VLOOKUP(B210,[2]Sheet4!$F$2:$J$364,2,FALSE),\"\")","v":""},{"$f":"IFERROR(VLOOKUP(B210,[2]Sheet4!$F$2:$J$364,3,FALSE),\"\")","v":""},{"$f":"IFERROR(VLOOKUP(B210,[2]Sheet4!$F$2:$J$364,4,FALSE),\"\")","v":""},{"$f":"IFERROR(VLOOKUP(B210,[2]Sheet4!$F$2:$J$364,5,FALSE),\"\")","v":""}]
[null,null,{"$f":"IFERROR(VLOOKUP(B211,[2]Sheet4!$F$2:$J$364,2,FALSE),\"\")","v":""},{"$f":"IFERROR(VLOOKUP(B211,[2]Sheet4!$F$2:$J$364,3,FALSE),\"\")","v":""},{"$f":"IFERROR(VLOOKUP(B211,[2]Sheet4!$F$2:$J$364,4,FALSE),\"\")","v":""},{"$f":"IFERROR(VLOOKUP(B211,[2]Sheet4!$F$2:$J$364,5,FALSE),\"\")","v":""}]
[null,null,{"$f":"IFERROR(VLOOKUP(B212,[2]Sheet4!$F$2:$J$364,2,FALSE),\"\")","v":""},{"$f":"IFERROR(VLOOKUP(B212,[2]Sheet4!$F$2:$J$364,3,FALSE),\"\")","v":""},{"$f":"IFERROR(VLOOKUP(B212,[2]Sheet4!$F$2:$J$364,4,FALSE),\"\")","v":""},{"$f":"IFERROR(VLOOKUP(B212,[2]Sheet4!$F$2:$J$364,5,FALSE),\"\")","v":""}]
[null,null,{"$f":"IFERROR(VLOOKUP(B213,[2]Sheet4!$F$2:$J$364,2,FALSE),\"\")","v":""},{"$f":"IFERROR(VLOOKUP(B213,[2]Sheet4!$F$2:$J$364,3,FALSE),\"\")","v":""},{"$f":"IFERROR(VLOOKUP(B213,[2]Sheet4!$F$2:$J$364,4,FALSE),\"\")","v":""},{"$f":"IFERROR(VLOOKUP(B213,[2]Sheet4!$F$2:$J$364,5,FALSE),\"\")","v":""}]
[null,null,{"$f":"IFERROR(VLOOKUP(B214,[2]Sheet4!$F$2:$J$364,2,FALSE),\"\")","v":""},{"$f":"IFERROR(VLOOKUP(B214,[2]Sheet4!$F$2:$J$364,3,FALSE),\"\")","v":""},{"$f":"IFERROR(VLOOKUP(B214,[2]Sheet4!$F$2:$J$364,4,FALSE),\"\")","v":""},{"$f":"IFERROR(VLOOKUP(B214,[2]Sheet4!$F$2:$J$364,5,FALSE),\"\")","v":""}]
[null,null,{"$f":"IFERROR(VLOOKUP(B215,[2]Sheet4!$F$2:$J$364,2,FALSE),\"\")","v":""},{"$f":"IFERROR(VLOOKUP(B215,[2]Sheet4!$F$2:$J$364,3,FALSE),\"\")","v":""},{"$f":"IFERROR(VLOOKUP(B215,[2]Sheet4!$F$2:$J$364,4,FALSE),\"\")","v":""},{"$f":"IFERROR(VLOOKUP(B215,[2]Sheet4!$F$2:$J$364,5,FALSE),\"\")","v":""}]
[null,null,{"$f":"IFERROR(VLOOKUP(B216,[2]Sheet4!$F$2:$J$364,2,FALSE),\"\")","v":""},{"$f":"IFERROR(VLOOKUP(B216,[2]Sheet4!$F$2:$J$364,3,FALSE),\"\")","v":""},{"$f":"IFERROR(VLOOKUP(B216,[2]Sheet4!$F$2:$J$364,4,FALSE),\"\")","v":""},{"$f":"IFERROR(VLOOKUP(B216,[2]Sheet4!$F$2:$J$364,5,FALSE),\"\")","v":""}]
[null,null,{"$f":"IFERROR(VLOOKUP(B217,[2]Sheet4!$F$2:$J$364,2,FALSE),\"\")","v":""},{"$f":"IFERROR(VLOOKUP(B217,[2]Sheet4!$F$2:$J$364,3,FALSE),\"\")","v":""},{"$f":"IFERROR(VLOOKUP(B217,[2]Sheet4!$F$2:$J$364,4,FALSE),\"\")","v":""},{"$f":"IFERROR(VLOOKUP(B217,[2]Sheet4!$F$2:$J$364,5,FALSE),\"\")","v":""}]
[null,null,{"$f":"IFERROR(VLOOKUP(B218,[2]Sheet4!$F$2:$J$364,2,FALSE),\"\")","v":""},{"$f":"IFERROR(VLOOKUP(B218,[2]Sheet4!$F$2:$J$364,3,FALSE),\"\")","v":""},{"$f":"IFERROR(VLOOKUP(B218,[2]Sheet4!$F$2:$J$364,4,FALSE),\"\")","v":""},{"$f":"IFERROR(VLOOKUP(B218,[2]Sheet4!$F$2:$J$364,5,FALSE),\"\")","v":""}]
[null,null,{"$f":"IFERROR(VLOOKUP(B219,[2]Sheet4!$F$2:$J$364,2,FALSE),\"\")","v":""},{"$f":"IFERROR(VLOOKUP(B219,[2]Sheet4!$F$2:$J$364,3,FALSE),\"\")","v":""},{"$f":"IFERROR(VLOOKUP(B219,[2]Sheet4!$F$2:$J$364,4,FALSE),\"\")","v":""},{"$f":"IFERROR(VLOOKUP(B219,[2]Sheet4!$F$2:$J$364,5,FALSE),\"\")","v":""}]
[null,null,{"$f":"IFERROR(VLOOKUP(B220,[2]Sheet4!$F$2:$J$364,2,FALSE),\"\")","v":""},{"$f":"IFERROR(VLOOKUP(B220,[2]Sheet4!$F$2:$J$364,3,FALSE),\"\")","v":""},{"$f":"IFERROR(VLOOKUP(B220,[2]Sheet4!$F$2:$J$364,4,FALSE),\"\")","v":""},{"$f":"IFERROR(VLOOKUP(B220,[2]Sheet4!$F$2:$J$364,5,FALSE),\"\")","v":""}]
[null,null,{"$f":"IFERROR(VLOOKUP(B221,[2]Sheet4!$F$2:$J$364,2,FALSE),\"\")","v":""},{"$f":"IFERROR(VLOOKUP(B221,[2]Sheet4!$F$2:$J$364,3,FALSE),\"\")","v":""},{"$f":"IFERROR(VLOOKUP(B221,[2]Sheet4!$F$2:$J$364,4,FALSE),\"\")","v":""},{"$f":"IFERROR(VLOOKUP(B221,[2]Sheet4!$F$2:$J$364,5,FALSE),\"\")","v":""}]
[null,null,{"$f":"IFERROR(VLOOKUP(B222,[2]Sheet4!$F$2:$J$364,2,FALSE),\"\")","v":""},{"$f":"IFERROR(VLOOKUP(B222,[2]Sheet4!$F$2:$J$364,3,FALSE),\"\")","v":""},{"$f":"IFERROR(VLOOKUP(B222,[2]Sheet4!$F$2:$J$364,4,FALSE),\"\")","v":""},{"$f":"IFERROR(VLOOKUP(B222,[2]Sheet4!$F$2:$J$364,5,FALSE),\"\")","v":""}]
[null,null,{"$f":"IFERROR(VLOOKUP(B223,[2]Sheet4!$F$2:$J$364,2,FALSE),\"\")","v":""},{"$f":"IFERROR(VLOOKUP(B223,[2]Sheet4!$F$2:$J$364,3,FALSE),\"\")","v":""},{"$f":"IFERROR(VLOOKUP(B223,[2]Sheet4!$F$2:$J$364,4,FALSE),\"\")","v":""},{"$f":"IFERROR(VLOOKUP(B223,[2]Sheet4!$F$2:$J$364,5,FALSE),\"\")","v":""}]
[null,null,{"$f":"IFERROR(VLOOKUP(B224,[2]Sheet4!$F$2:$J$364,2,FALSE),\"\")","v":""},{"$f":"IFERROR(VLOOKUP(B224,[2]Sheet4!$F$2:$J$364,3,FALSE),\"\")","v":""},{"$f":"IFERROR(VLOOKUP(B224,[2]Sheet4!$F$2:$J$364,4,FALSE),\"\")","v":""},{"$f":"IFERROR(VLOOKUP(B224,[2]Sheet4!$F$2:$J$364,5,FALSE),\"\")","v":""}]
[null,null,{"$f":"IFERROR(VLOOKUP(B225,[2]Sheet4!$F$2:$J$364,2,FALSE),\"\")","v":""},{"$f":"IFERROR(VLOOKUP(B225,[2]Sheet4!$F$2:$J$364,3,FALSE),\"\")","v":""},{"$f":"IFERROR(VLOOKUP(B225,[2]Sheet4!$F$2:$J$364,4,FALSE),\"\")","v":""},{"$f":"IFERROR(VLOOKUP(B225,[2]Sheet4!$F$2:$J$364,5,FALSE),\"\")","v":""}]
[null,null,{"$f":"IFERROR(VLOOKUP(B226,[2]Sheet4!$F$2:$J$364,2,FALSE),\"\")","v":""},{"$f":"IFERROR(VLOOKUP(B226,[2]Sheet4!$F$2:$J$364,3,FALSE),\"\")","v":""},{"$f":"IFERROR(VLOOKUP(B226,[2]Sheet4!$F$2:$J$364,4,FALSE),\"\")","v":""},{"$f":"IFERROR(VLOOKUP(B226,[2]Sheet4!$F$2:$J$364,5,FALSE),\"\")","v":""}]
[null,null,{"$f":"IFERROR(VLOOKUP(B227,[2]Sheet4!$F$2:$J$364,2,FALSE),\"\")","v":""},{"$f":"IFERROR(VLOOKUP(B227,[2]Sheet4!$F$2:$J$364,3,FALSE),\"\")","v":""},{"$f":"IFERROR(VLOOKUP(B227,[2]Sheet4!$F$2:$J$364,4,FALSE),\"\")","v":""},{"$f":"IFERROR(VLOOKUP(B227,[2]Sheet4!$F$2:$J$364,5,FALSE),\"\")","v":""}]
[null,null,{"$f":"IFERROR(VLOOKUP(B228,[2]Sheet4!$F$2:$J$364,2,FALSE),\"\")","v":""},{"$f":"IFERROR(VLOOKUP(B228,[2]Sheet4!$F$2:$J$364,3,FALSE),\"\")","v":""},{"$f":"IFERROR(VLOOKUP(B228,[2]Sheet4!$F$2:$J$364,4,FALSE),\"\")","v":""},{"$f":"IFERROR(VLOOKUP(B228,[2]Sheet4!$F$2:$J$364,5,FALSE),\"\")","v":""}]
[null,null,{"$f":"IFERROR(VLOOKUP(B229,[2]Sheet4!$F$2:$J$364,2,FALSE),\"\")","v":""},{"$f":"IFERROR(VLOOKUP(B229,[2]Sheet4!$F$2:$J$364,3,FALSE),\"\")","v":""},{"$f":"IFERROR(VLOOKUP(B229,[2]Sheet4!$F$2:$J$364,4,FALSE),\"\")","v":""},{"$f":"IFERROR(VLOOKUP(B229,[2]Sheet4!$F$2:$J$364,5,FALSE),\"\")","v":""}]
[null,null,{"$f":"IFERROR(VLOOKUP(B230,[2]Sheet4!$F$2:$J$364,2,FALSE),\"\")","v":""},{"$f":"IFERROR(VLOOKUP(B230,[2]Sheet4!$F$2:$J$364,3,FALSE),\"\")","v":""},{"$f":"IFERROR(VLOOKUP(B230,[2]Sheet4!$F$2:$J$364,4,FALSE),\"\")","v":""},{"$f":"IFERROR(VLOOKUP(B230,[2]Sheet4!$F$2:$J$364,5,FALSE),\"\")","v":""}]
[null,null,{"$f":"IFERROR(VLOOKUP(B231,[2]Sheet4!$F$2:$J$364,2,FALSE),\"\")","v":""},{"$f":"IFERROR(VLOOKUP(B231,[2]Sheet4!$F$2:$J$364,3,FALSE),\"\")","v":""},{"$f":"IFERROR(VLOOKUP(B231,[2]Sheet4!$F$2:$J$364,4,FALSE),\"\")","v":""},{"$f":"IFERROR(VLOOKUP(B231,[2]Sheet4!$F$2:$J$364,5,FALSE),\"\")","v":""}]
[null,null,{"$f":"IFERROR(VLOOKUP(B232,[2]Sheet4!$F$2:$J$364,2,FALSE),\"\")","v":""},{"$f":"IFERROR(VLOOKUP(B232,[2]Sheet4!$F$2:$J$364,3,FALSE),\"\")","v":""},{"$f":"IFERROR(VLOOKUP(B232,[2]Sheet4!$F$2:$J$364,4,FALSE),\"\")","v":""},{"$f":"IFERROR(VLOOKUP(B232,[2]Sheet4!$F$2:$J$364,5,FALSE),\"\")","v":""}]
[null,null,{"$f":"IFERROR(VLOOKUP(B233,[2]Sheet4!$F$2:$J$364,2,FALSE),\"\")","v":""},{"$f":"IFERROR(VLOOKUP(B233,[2]Sheet4!$F$2:$J$364,3,FALSE),\"\")","v":""},{"$f":"IFERROR(VLOOKUP(B233,[2]Sheet4!$F$2:$J$364,4,FALSE),\"\")","v":""},{"$f":"IFERROR(VLOOKUP(B233,[2]Sheet4!$F$2:$J$364,5,FALSE),\"\")","v":""}]
[null,null,{"$f":"IFERROR(VLOOKUP(B234,[2]Sheet4!$F$2:$J$364,2,FALSE),\"\")","v":""},{"$f":"IFERROR(VLOOKUP(B234,[2]Sheet4!$F$2:$J$364,3,FALSE),\"\")","v":""},{"$f":"IFERROR(VLOOKUP(B234,[2]Sheet4!$F$2:$J$364,4,FALSE),\"\")","v":""},{"$f":"IFERROR(VLOOKUP(B234,[2]Sheet4!$F$2:$J$364,5,FALSE),\"\")","v":""}]
[null,null,{"$f":"IFERROR(VLOOKUP(B235,[2]Sheet4!$F$2:$J$364,2,FALSE),\"\")","v":""},{"$f":"IFERROR(VLOOKUP(B235,[2]Sheet4!$F$2:$J$364,3,FALSE),\"\")","v":""},{"$f":"IFERROR(VLOOKUP(B235,[2]Sheet4!$F$2:$J$364,4,FALSE),\"\")","v":""},{"$f":"IFERROR(VLOOKUP(B235,[2]Sheet4!$F$2:$J$364,5,FALSE),\"\")","v":""}]
[null,null,{"$f":"IFERROR(VLOOKUP(B236,[2]Sheet4!$F$2:$J$364,2,FALSE),\"\")","v":""},{"$f":"IFERROR(VLOOKUP(B236,[2]Sheet4!$F$2:$J$364,3,FALSE),\"\")","v":""},{"$f":"IFERROR(VLOOKUP(B236,[2]Sheet4!$F$2:$J$364,4,FALSE),\"\")","v":""},{"$f":"IFERROR(VLOOKUP(B236,[2]Sheet4!$F$2:$J$364,5,FALSE),\"\")","v":""}]
[null,null,{"$f":"IFERROR(VLOOKUP(B237,[2]Sheet4!$F$2:$J$364,2,FALSE),\"\")","v":""},{"$f":"IFERROR(VLOOKUP(B237,[2]Sheet4!$F$2:$J$364,3,FALSE),\"\")","v":""},{"$f":"IFERROR(VLOOKUP(B237,[2]Sheet4!$F$2:$J$364,4,FALSE),\"\")","v":""},{"$f":"IFERROR(VLOOKUP(B237,[2]Sheet4!$F$2:$J$364,5,FALSE),\"\")","v":""}]
[null,null,{"$f":"IFERROR(VLOOKUP(B238,[2]Sheet4!$F$2:$J$364,2,FALSE),\"\")","v":""},{"$f":"IFERROR(VLOOKUP(B238,[2]Sheet4!$F$2:$J$364,3,FALSE),\"\")","v":""},{"$f":"IFERROR(VLOOKUP(B238,[2]Sheet4!$F$2:$J$364,4,FALSE),\"\")","v":""},{"$f":"IFERROR(VLOOKUP(B238,[2]Sheet4!$F$2:$J$364,5,FALSE),\"\")","v":""}]
[null,null,{"$f":"IFERROR(VLOOKUP(B239,[2]Sheet4!$F$2:$J$364,2,FALSE),\"\")","v":""},{"$f":"IFERROR(VLOOKUP(B239,[2]Sheet4!$F$2:$J$364,3,FALSE),\"\")","v":""},{"$f":"IFERROR(VLOOKUP(B239,[2]Sheet4!$F$2:$J$364,4,FALSE),\"\")","v":""},{"$f":"IFERROR(VLOOKUP(B239,[2]Sheet4!$F$2:$J$364,5,FALSE),\"\")","v":""}]
[null,null,{"$f":"IFERROR(VLOOKUP(B240,[2]Sheet4!$F$2:$J$364,2,FALSE),\"\")","v":""},{"$f":"IFERROR(VLOOKUP(B240,[2]Sheet4!$F$2:$J$364,3,FALSE),\"\")","v":""},{"$f":"IFERROR(VLOOKUP(B240,[2]Sheet4!$F$2:$J$364,4,FALSE),\"\")","v":""},{"$f":"IFERROR(VLOOKUP(B240,[2]Sheet4!$F$2:$J$364,5,FALSE),\"\")","v":""}]
[null,null,{"$f":"IFERROR(VLOOKUP(B241,[2]Sheet4!$F$2:$J$364,2,FALSE),\"\")","v":""},{"$f":"IFERROR(VLOOKUP(B241,[2]Sheet4!$F$2:$J$364,3,FALSE),\"\")","v":""},{"$f":"IFERROR(VLOOKUP(B241,[2]Sheet4!$F$2:$J$364,4,FALSE),\"\")","v":""},{"$f":"IFERROR(VLOOKUP(B241,[2]Sheet4!$F$2:$J$364,5,FALSE),\"\")","v":""}]
[null,null,{"$f":"IFERROR(VLOOKUP(B242,[2]Sheet4!$F$2:$J$364,2,FALSE),\"\")","v":""},{"$f":"IFERROR(VLOOKUP(B242,[2]Sheet4!$F$2:$J$364,3,FALSE),\"\")","v":""},{"$f":"IFERROR(VLOOKUP(B242,[2]Sheet4!$F$2:$J$364,4,FALSE),\"\")","v":""},{"$f":"IFERROR(VLOOKUP(B242,[2]Sheet4!$F$2:$J$364,5,FALSE),\"\")","v":""}]
[null,null,{"$f":"IFERROR(VLOOKUP(B243,[2]Sheet4!$F$2:$J$364,2,FALSE),\"\")","v":""},{"$f":"IFERROR(VLOOKUP(B243,[2]Sheet4!$F$2:$J$364,3,FALSE),\"\")","v":""},{"$f":"IFERROR(VLOOKUP(B243,[2]Sheet4!$F$2:$J$364,4,FALSE),\"\")","v":""},{"$f":"IFERROR(VLOOKUP(B243,[2]Sheet4!$F$2:$J$364,5,FALSE),\"\")","v":""}]
[null,null,{"$f":"IFERROR(VLOOKUP(B244,[2]Sheet4!$F$2:$J$364,2,FALSE),\"\")","v":""},{"$f":"IFERROR(VLOOKUP(B244,[2]Sheet4!$F$2:$J$364,3,FALSE),\"\")","v":""},{"$f":"IFERROR(VLOOKUP(B244,[2]Sheet4!$F$2:$J$364,4,FALSE),\"\")","v":""},{"$f":"IFERROR(VLOOKUP(B244,[2]Sheet4!$F$2:$J$364,5,FALSE),\"\")","v":""}]
[null,null,{"$f":"IFERROR(VLOOKUP(B245,[2]Sheet4!$F$2:$J$364,2,FALSE),\"\")","v":""},{"$f":"IFERROR(VLOOKUP(B245,[2]Sheet4!$F$2:$J$364,3,FALSE),\"\")","v":""},{"$f":"IFERROR(VLOOKUP(B245,[2]Sheet4!$F$2:$J$364,4,FALSE),\"\")","v":""},{"$f":"IFERROR(VLOOKUP(B245,[2]Sheet4!$F$2:$J$364,5,FALSE),\"\")","v":""}]
[null,null,{"$f":"IFERROR(VLOOKUP(B246,[2]Sheet4!$F$2:$J$364,2,FALSE),\"\")","v":""},{"$f":"IFERROR(VLOOKUP(B246,[2]Sheet4!$F$2:$J$364,3,FALSE),\"\")","v":""},{"$f":"IFERROR(VLOOKUP(B246,[2]Sheet4!$F$2:$J$364,4,FALSE),\"\")","v":""},{"$f":"IFERROR(VLOOKUP(B246,[2]Sheet4!$F$2:$J$364,5,FALSE),\"\")","v":""}]
[null,null,{"$f":"IFERROR(VLOOKUP(B247,[2]Sheet4!$F$2:$J$364,2,FALSE),\"\")","v":""},{"$f":"IFERROR(VLOOKUP(B247,[2]Sheet4!$F$2:$J$364,3,FALSE),\"\")","v":""},{"$f":"IFERROR(VLOOKUP(B247,[2]Sheet4!$F$2:$J$364,4,FALSE),\"\")","v":""},{"$f":"IFERROR(VLOOKUP(B247,[2]Sheet4!$F$2:$J$364,5,FALSE),\"\")","v":""}]
[null,null,{"$f":"IFERROR(VLOOKUP(B248,[2]Sheet4!$F$2:$J$364,2,FALSE),\"\")","v":""},{"$f":"IFERROR(VLOOKUP(B248,[2]Sheet4!$F$2:$J$364,3,FALSE),\"\")","v":""},{"$f":"IFERROR(VLOOKUP(B248,[2]Sheet4!$F$2:$J$364,4,FALSE),\"\")","v":""},{"$f":"IFERROR(VLOOKUP(B248,[2]Sheet4!$F$2:$J$364,5,FALSE),\"\")","v":""}]
[null,null,{"$f":"IFERROR(VLOOKUP(B249,[2]Sheet4!$F$2:$J$364,2,FALSE),\"\")","v":""},{"$f":"IFERROR(VLOOKUP(B249,[2]Sheet4!$F$2:$J$364,3,FALSE),\"\")","v":""},{"$f":"IFERROR(VLOOKUP(B249,[2]Sheet4!$F$2:$J$364,4,FALSE),\"\")","v":""},{"$f":"IFERROR(VLOOKUP(B249,[2]Sheet4!$F$2:$J$364,5,FALSE),\"\")","v":""}]
[null,null,{"$f":"IFERROR(VLOOKUP(B250,[2]Sheet4!$F$2:$J$364,2,FALSE),\"\")","v":""},{"$f":"IFERROR(VLOOKUP(B250,[2]Sheet4!$F$2:$J$364,3,FALSE),\"\")","v":""},{"$f":"IFERROR(VLOOKUP(B250,[2]Sheet4!$F$2:$J$364,4,FALSE),\"\")","v":""},{"$f":"IFERROR(VLOOKUP(B250,[2]Sheet4!$F$2:$J$364,5,FALSE),\"\")","v":""}]
[null,null,{"$f":"IFERROR(VLOOKUP(B251,[2]Sheet4!$F$2:$J$364,2,FALSE),\"\")","v":""},{"$f":"IFERROR(VLOOKUP(B251,[2]Sheet4!$F$2:$J$364,3,FALSE),\"\")","v":""},{"$f":"IFERROR(VLOOKUP(B251,[2]Sheet4!$F$2:$J$364,4,FALSE),\"\")","v":""},{"$f":"IFERROR(VLOOKUP(B251,[2]Sheet4!$F$2:$J$364,5,FALSE),\"\")","v":""}]
[null,null,{"$f":"IFERROR(VLOOKUP(B252,[2]Sheet4!$F$2:$J$364,2,FALSE),\"\")","v":""},{"$f":"IFERROR(VLOOKUP(B252,[2]Sheet4!$F$2:$J$364,3,FALSE),\"\")","v":""},{"$f":"IFERROR(VLOOKUP(B252,[2]Sheet4!$F$2:$J$364,4,FALSE),\"\")","v":""},{"$f":"IFERROR(VLOOKUP(B252,[2]Sheet4!$F$2:$J$364,5,FALSE),\"\")","v":""}]
[null,null,{"$f":"IFERROR(VLOOKUP(B253,[2]Sheet4!$F$2:$J$364,2,FALSE),\"\")","v":""},{"$f":"IFERROR(VLOOKUP(B253,[2]Sheet4!$F$2:$J$364,3,FALSE),\"\")","v":""},{"$f":"IFERROR(VLOOKUP(B253,[2]Sheet4!$F$2:$J$364,4,FALSE),\"\")","v":""},{"$f":"IFERROR(VLOOKUP(B253,[2]Sheet4!$F$2:$J$364,5,FALSE),\"\")","v":""}]
[null,null,{"$f":"IFERROR(VLOOKUP(B254,[2]Sheet4!$F$2:$J$364,2,FALSE),\"\")","v":""},{"$f":"IFERROR(VLOOKUP(B254,[2]Sheet4!$F$2:$J$364,3,FALSE),\"\")","v":""},{"$f":"IFERROR(VLOOKUP(B254,[2]Sheet4!$F$2:$J$364,4,FALSE),\"\")","v":""},{"$f":"IFERROR(VLOOKUP(B254,[2]Sheet4!$F$2:$J$364,5,FALSE),\"\")","v":""}]
[null,null,{"$f":"IFERROR(VLOOKUP(B255,[2]Sheet4!$F$2:$J$364,2,FALSE),\"\")","v":""},{"$f":"IFERROR(VLOOKUP(B255,[2]Sheet4!$F$2:$J$364,3,FALSE),\"\")","v":""},{"$f":"IFERROR(VLOOKUP(B255,[2]Sheet4!$F$2:$J$364,4,FALSE),\"\")","v":""},{"$f":"IFERROR(VLOOKUP(B255,[2]Sheet4!$F$2:$J$364,5,FALSE),\"\")","v":""}]
[null,null,{"$f":"IFERROR(VLOOKUP(B256,[2]Sheet4!$F$2:$J$364,2,FALSE),\"\")","v":""},{"$f":"IFERROR(VLOOKUP(B256,[2]Sheet4!$F$2:$J$364,3,FALSE),\"\")","v":""},{"$f":"IFERROR(VLOOKUP(B256,[2]Sheet4!$F$2:$J$364,4,FALSE),\"\")","v":""},{"$f":"IFERROR(VLOOKUP(B256,[2]Sheet4!$F$2:$J$364,5,FALSE),\"\")","v":""}]
[null,null,{"$f":"IFERROR(VLOOKUP(B257,[2]Sheet4!$F$2:$J$364,2,FALSE),\"\")","v":""},{"$f":"IFERROR(VLOOKUP(B257,[2]Sheet4!$F$2:$J$364,3,FALSE),\"\")","v":""},{"$f":"IFERROR(VLOOKUP(B257,[2]Sheet4!$F$2:$J$364,4,FALSE),\"\")","v":""},{"$f":"IFERROR(VLOOKUP(B257,[2]Sheet4!$F$2:$J$364,5,FALSE),\"\")","v":""}]
[null,null,{"$f":"IFERROR(VLOOKUP(B258,[2]Sheet4!$F$2:$J$364,2,FALSE),\"\")","v":""},{"$f":"IFERROR(VLOOKUP(B258,[2]Sheet4!$F$2:$J$364,3,FALSE),\"\")","v":""},{"$f":"IFERROR(VLOOKUP(B258,[2]Sheet4!$F$2:$J$364,4,FALSE),\"\")","v":""},{"$f":"IFERROR(VLOOKUP(B258,[2]Sheet4!$F$2:$J$364,5,FALSE),\"\")","v":""}]
[null,null,{"$f":"IFERROR(VLOOKUP(B259,[2]Sheet4!$F$2:$J$364,2,FALSE),\"\")","v":""},{"$f":"IFERROR(VLOOKUP(B259,[2]Sheet4!$F$2:$J$364,3,FALSE),\"\")","v":""},{"$f":"IFERROR(VLOOKUP(B259,[2]Sheet4!$F$2:$J$364,4,FALSE),\"\")","v":""},{"$f":"IFERROR(VLOOKUP(B259,[2]Sheet4!$F$2:$J$364,5,FALSE),\"\")","v":""}]
[null,null,{"$f":"IFERROR(VLOOKUP(B260,[2]Sheet4!$F$2:$J$364,2,FALSE),\"\")","v":""},{"$f":"IFERROR(VLOOKUP(B260,[2]Sheet4!$F$2:$J$364,3,FALSE),\"\")","v":""},{"$f":"IFERROR(VLOOKUP(B260,[2]Sheet4!$F$2:$J$364,4,FALSE),\"\")","v":""},{"$f":"IFERROR(VLOOKUP(B260,[2]Sheet4!$F$2:$J$364,5,FALSE),\"\")","v":""}]
[null,null,{"$f":"IFERROR(VLOOKUP(B261,[2]Sheet4!$F$2:$J$364,2,FALSE),\"\")","v":""},{"$f":"IFERROR(VLOOKUP(B261,[2]Sheet4!$F$2:$J$364,3,FALSE),\"\")","v":""},{"$f":"IFERROR(VLOOKUP(B261,[2]Sheet4!$F$2:$J$364,4,FALSE),\"\")","v":""},{"$f":"IFERROR(VLOOKUP(B261,[2]Sheet4!$F$2:$J$364,5,FALSE),\"\")","v":""}]
[null,null,{"$f":"IFERROR(VLOOKUP(B262,[2]Sheet4!$F$2:$J$364,2,FALSE),\"\")","v":""},{"$f":"IFERROR(VLOOKUP(B262,[2]Sheet4!$F$2:$J$364,3,FALSE),\"\")","v":""},{"$f":"IFERROR(VLOOKUP(B262,[2]Sheet4!$F$2:$J$364,4,FALSE),\"\")","v":""},{"$f":"IFERROR(VLOOKUP(B262,[2]Sheet4!$F$2:$J$364,5,FALSE),\"\")","v":""}]
[null,null,{"$f":"IFERROR(VLOOKUP(B263,[2]Sheet4!$F$2:$J$364,2,FALSE),\"\")","v":""},{"$f":"IFERROR(VLOOKUP(B263,[2]Sheet4!$F$2:$J$364,3,FALSE),\"\")","v":""},{"$f":"IFERROR(VLOOKUP(B263,[2]Sheet4!$F$2:$J$364,4,FALSE),\"\")","v":""},{"$f":"IFERROR(VLOOKUP(B263,[2]Sheet4!$F$2:$J$364,5,FALSE),\"\")","v":""}]
[null,null,{"$f":"IFERROR(VLOOKUP(B264,[2]Sheet4!$F$2:$J$364,2,FALSE),\"\")","v":""},{"$f":"IFERROR(VLOOKUP(B264,[2]Sheet4!$F$2:$J$364,3,FALSE),\"\")","v":""},{"$f":"IFERROR(VLOOKUP(B264,[2]Sheet4!$F$2:$J$364,4,FALSE),\"\")","v":""},{"$f":"IFERROR(VLOOKUP(B264,[2]Sheet4!$F$2:$J$364,5,FALSE),\"\")","v":""}]
[null,null,{"$f":"IFERROR(VLOOKUP(B265,[2]Sheet4!$F$2:$J$364,2,FALSE),\"\")","v":""},{"$f":"IFERROR(VLOOKUP(B265,[2]Sheet4!$F$2:$J$364,3,FALSE),\"\")","v":""},{"$f":"IFERROR(VLOOKUP(B265,[2]Sheet4!$F$2:$J$364,4,FALSE),\"\")","v":""},{"$f":"IFERROR(VLOOKUP(B265,[2]Sheet4!$F$2:$J$364,5,FALSE),\"\")","v":""}]
[null,null,{"$f":"IFERROR(VLOOKUP(B266,[2]Sheet4!$F$2:$J$364,2,FALSE),\"\")","v":""},{"$f":"IFERROR(VLOOKUP(B266,[2]Sheet4!$F$2:$J$364,3,FALSE),\"\")","v":""},{"$f":"IFERROR(VLOOKUP(B266,[2]Sheet4!$F$2:$J$364,4,FALSE),\"\")","v":""},{"$f":"IFERROR(VLOOKUP(B266,[2]Sheet4!$F$2:$J$364,5,FALSE),\"\")","v":""}]
[null,null,{"$f":"IFERROR(VLOOKUP(B267,[2]Sheet4!$F$2:$J$364,2,FALSE),\"\")","v":""},{"$f":"IFERROR(VLOOKUP(B267,[2]Sheet4!$F$2:$J$364,3,FALSE),\"\")","v":""},{"$f":"IFERROR(VLOOKUP(B267,[2]Sheet4!$F$2:$J$364,4,FALSE),\"\")","v":""},{"$f":"IFERROR(VLOOKUP(B267,[2]Sheet4!$F$2:$J$364,5,FALSE),\"\")","v":""}]
[null,null,{"$f":"IFERROR(VLOOKUP(B268,[2]Sheet4!$F$2:$J$364,2,FALSE),\"\")","v":""},{"$f":"IFERROR(VLOOKUP(B268,[2]Sheet4!$F$2:$J$364,3,FALSE),\"\")","v":""},{"$f":"IFERROR(VLOOKUP(B268,[2]Sheet4!$F$2:$J$364,4,FALSE),\"\")","v":""},{"$f":"IFERROR(VLOOKUP(B268,[2]Sheet4!$F$2:$J$364,5,FALSE),\"\")","v":""}]
[null,null,{"$f":"IFERROR(VLOOKUP(B269,[2]Sheet4!$F$2:$J$364,2,FALSE),\"\")","v":""},{"$f":"IFERROR(VLOOKUP(B269,[2]Sheet4!$F$2:$J$364,3,FALSE),\"\")","v":""},{"$f":"IFERROR(VLOOKUP(B269,[2]Sheet4!$F$2:$J$364,4,FALSE),\"\")","v":""},{"$f":"IFERROR(VLOOKUP(B269,[2]Sheet4!$F$2:$J$364,5,FALSE),\"\")","v":""}]
[null,null,{"$f":"IFERROR(VLOOKUP(B270,[2]Sheet4!$F$2:$J$364,2,FALSE),\"\")","v":""},{"$f":"IFERROR(VLOOKUP(B270,[2]Sheet4!$F$2:$J$364,3,FALSE),\"\")","v":""},{"$f":"IFERROR(VLOOKUP(B270,[2]Sheet4!$F$2:$J$364,4,FALSE),\"\")","v":""},{"$f":"IFERROR(VLOOKUP(B270,[2]Sheet4!$F$2:$J$364,5,FALSE),\"\")","v":""}]
[null,null,{"$f":"IFERROR(VLOOKUP(B271,[2]Sheet4!$F$2:$J$364,2,FALSE),\"\")","v":""},{"$f":"IFERROR(VLOOKUP(B271,[2]Sheet4!$F$2:$J$364,3,FALSE),\"\")","v":""},{"$f":"IFERROR(VLOOKUP(B271,[2]Sheet4!$F$2:$J$364,4,FALSE),\"\")","v":""},{"$f":"IFERROR(VLOOKUP(B271,[2]Sheet4!$F$2:$J$364,5,FALSE),\"\")","v":""}]
[null,null,{"$f":"IFERROR(VLOOKUP(B272,[2]Sheet4!$F$2:$J$364,2,FALSE),\"\")","v":""},{"$f":"IFERROR(VLOOKUP(B272,[2]Sheet4!$F$2:$J$364,3,FALSE),\"\")","v":""},{"$f":"IFERROR(VLOOKUP(B272,[2]Sheet4!$F$2:$J$364,4,FALSE),\"\")","v":""},{"$f":"IFERROR(VLOOKUP(B272,[2]Sheet4!$F$2:$J$364,5,FALSE),\"\")","v":""}]
[null,null,{"$f":"IFERROR(VLOOKUP(B273,[2]Sheet4!$F$2:$J$364,2,FALSE),\"\")","v":""},{"$f":"IFERROR(VLOOKUP(B273,[2]Sheet4!$F$2:$J$364,3,FALSE),\"\")","v":""},{"$f":"IFERROR(VLOOKUP(B273,[2]Sheet4!$F$2:$J$364,4,FALSE),\"\")","v":""},{"$f":"IFERROR(VLOOKUP(B273,[2]Sheet4!$F$2:$J$364,5,FALSE),\"\")","v":""}]
[null,null,{"$f":"IFERROR(VLOOKUP(B274,[2]Sheet4!$F$2:$J$364,2,FALSE),\"\")","v":""},{"$f":"IFERROR(VLOOKUP(B274,[2]Sheet4!$F$2:$J$364,3,FALSE),\"\")","v":""},{"$f":"IFERROR(VLOOKUP(B274,[2]Sheet4!$F$2:$J$364,4,FALSE),\"\")","v":""},{"$f":"IFERROR(VLOOKUP(B274,[2]Sheet4!$F$2:$J$364,5,FALSE),\"\")","v":""}]
[null,null,{"$f":"IFERROR(VLOOKUP(B275,[2]Sheet4!$F$2:$J$364,2,FALSE),\"\")","v":""},{"$f":"IFERROR(VLOOKUP(B275,[2]Sheet4!$F$2:$J$364,3,FALSE),\"\")","v":""},{"$f":"IFERROR(VLOOKUP(B275,[2]Sheet4!$F$2:$J$364,4,FALSE),\"\")","v":""},{"$f":"IFERROR(VLOOKUP(B275,[2]Sheet4!$F$2:$J$364,5,FALSE),\"\")","v":""}]
[null,null,{"$f":"IFERROR(VLOOKUP(B276,[2]Sheet4!$F$2:$J$364,2,FALSE),\"\")","v":""},{"$f":"IFERROR(VLOOKUP(B276,[2]Sheet4!$F$2:$J$364,3,FALSE),\"\")","v":""},{"$f":"IFERROR(VLOOKUP(B276,[2]Sheet4!$F$2:$J$364,4,FALSE),\"\")","v":""},{"$f":"IFERROR(VLOOKUP(B276,[2]Sheet4!$F$2:$J$364,5,FALSE),\"\")","v":""}]
[null,null,{"$f":"IFERROR(VLOOKUP(B277,[2]Sheet4!$F$2:$J$364,2,FALSE),\"\")","v":""},{"$f":"IFERROR(VLOOKUP(B277,[2]Sheet4!$F$2:$J$364,3,FALSE),\"\")","v":""},{"$f":"IFERROR(VLOOKUP(B277,[2]Sheet4!$F$2:$J$364,4,FALSE),\"\")","v":""},{"$f":"IFERROR(VLOOKUP(B277,[2]Sheet4!$F$2:$J$364,5,FALSE),\"\")","v":""}]
[null,null,{"$f":"IFERROR(VLOOKUP(B278,[2]Sheet4!$F$2:$J$364,2,FALSE),\"\")","v":""},{"$f":"IFERROR(VLOOKUP(B278,[2]Sheet4!$F$2:$J$364,3,FALSE),\"\")","v":""},{"$f":"IFERROR(VLOOKUP(B278,[2]Sheet4!$F$2:$J$364,4,FALSE),\"\")","v":""},{"$f":"IFERROR(VLOOKUP(B278,[2]Sheet4!$F$2:$J$364,5,FALSE),\"\")","v":""}]
[null,null,{"$f":"IFERROR(VLOOKUP(B279,[2]Sheet4!$F$2:$J$364,2,FALSE),\"\")","v":""},{"$f":"IFERROR(VLOOKUP(B279,[2]Sheet4!$F$2:$J$364,3,FALSE),\"\")","v":""},{"$f":"IFERROR(VLOOKUP(B279,[2]Sheet4!$F$2:$J$364,4,FALSE),\"\")","v":""},{"$f":"IFERROR(VLOOKUP(B279,[2]Sheet4!$F$2:$J$364,5,FALSE),\"\")","v":""}]
[null,null,{"$f":"IFERROR(VLOOKUP(B280,[2]Sheet4!$F$2:$J$364,2,FALSE),\"\")","v":""},{"$f":"IFERROR(VLOOKUP(B280,[2]Sheet4!$F$2:$J$364,3,FALSE),\"\")","v":""},{"$f":"IFERROR(VLOOKUP(B280,[2]Sheet4!$F$2:$J$364,4,FALSE),\"\")","v":""},{"$f":"IFERROR(VLOOKUP(B280,[2]Sheet4!$F$2:$J$364,5,FALSE),\"\")","v":""}]
[null,null,{"$f":"IFERROR(VLOOKUP(B281,[2]Sheet4!$F$2:$J$364,2,FALSE),\"\")","v":""},{"$f":"IFERROR(VLOOKUP(B281,[2]Sheet4!$F$2:$J$364,3,FALSE),\"\")","v":""},{"$f":"IFERROR(VLOOKUP(B281,[2]Sheet4!$F$2:$J$364,4,FALSE),\"\")","v":""},{"$f":"IFERROR(VLOOKUP(B281,[2]Sheet4!$F$2:$J$364,5,FALSE),\"\")","v":""}]
[null,null,{"$f":"IFERROR(VLOOKUP(B282,[2]Sheet4!$F$2:$J$364,2,FALSE),\"\")","v":""},{"$f":"IFERROR(VLOOKUP(B282,[2]Sheet4!$F$2:$J$364,3,FALSE),\"\")","v":""},{"$f":"IFERROR(VLOOKUP(B282,[2]Sheet4!$F$2:$J$364,4,FALSE),\"\")","v":""},{"$f":"IFERROR(VLOOKUP(B282,[2]Sheet4!$F$2:$J$364,5,FALSE),\"\")","v":""}]
[null,null,{"$f":"IFERROR(VLOOKUP(B283,[2]Sheet4!$F$2:$J$364,2,FALSE),\"\")","v":""},{"$f":"IFERROR(VLOOKUP(B283,[2]Sheet4!$F$2:$J$364,3,FALSE),\"\")","v":""},{"$f":"IFERROR(VLOOKUP(B283,[2]Sheet4!$F$2:$J$364,4,FALSE),\"\")","v":""},{"$f":"IFERROR(VLOOKUP(B283,[2]Sheet4!$F$2:$J$364,5,FALSE),\"\")","v":""}]
[null,null,{"$f":"IFERROR(VLOOKUP(B284,[2]Sheet4!$F$2:$J$364,2,FALSE),\"\")","v":""},{"$f":"IFERROR(VLOOKUP(B284,[2]Sheet4!$F$2:$J$364,3,FALSE),\"\")","v":""},{"$f":"IFERROR(VLOOKUP(B284,[2]Sheet4!$F$2:$J$364,4,FALSE),\"\")","v":""},{"$f":"IFERROR(VLOOKUP(B284,[2]Sheet4!$F$2:$J$364,5,FALSE),\"\")","v":""}]
[null,null,{"$f":"IFERROR(VLOOKUP(B285,[2]Sheet4!$F$2:$J$364,2,FALSE),\"\")","v":""},{"$f":"IFERROR(VLOOKUP(B285,[2]Sheet4!$F$2:$J$364,3,FALSE),\"\")","v":""},{"$f":"IFERROR(VLOOKUP(B285,[2]Sheet4!$F$2:$J$364,4,FALSE),\"\")","v":""},{"$f":"IFERROR(VLOOKUP(B285,[2]Sheet4!$F$2:$J$364,5,FALSE),\"\")","v":""}]
[null,null,{"$f":"IFERROR(VLOOKUP(B286,[2]Sheet4!$F$2:$J$364,2,FALSE),\"\")","v":""},{"$f":"IFERROR(VLOOKUP(B286,[2]Sheet4!$F$2:$J$364,3,FALSE),\"\")","v":""},{"$f":"IFERROR(VLOOKUP(B286,[2]Sheet4!$F$2:$J$364,4,FALSE),\"\")","v":""},{"$f":"IFERROR(VLOOKUP(B286,[2]Sheet4!$F$2:$J$364,5,FALSE),\"\")","v":""}]
[null,null,{"$f":"IFERROR(VLOOKUP(B287,[2]Sheet4!$F$2:$J$364,2,FALSE),\"\")","v":""},{"$f":"IFERROR(VLOOKUP(B287,[2]Sheet4!$F$2:$J$364,3,FALSE),\"\")","v":""},{"$f":"IFERROR(VLOOKUP(B287,[2]Sheet4!$F$2:$J$364,4,FALSE),\"\")","v":""},{"$f":"IFERROR(VLOOKUP(B287,[2]Sheet4!$F$2:$J$364,5,FALSE),\"\")","v":""}]
[null,null,{"$f":"IFERROR(VLOOKUP(B288,[2]Sheet4!$F$2:$J$364,2,FALSE),\"\")","v":""},{"$f":"IFERROR(VLOOKUP(B288,[2]Sheet4!$F$2:$J$364,3,FALSE),\"\")","v":""},{"$f":"IFERROR(VLOOKUP(B288,[2]Sheet4!$F$2:$J$364,4,FALSE),\"\")","v":""},{"$f":"IFERROR(VLOOKUP(B288,[2]Sheet4!$F$2:$J$364,5,FALSE),\"\")","v":""}]
[null,null,{"$f":"IFERROR(VLOOKUP(B289,[2]Sheet4!$F$2:$J$364,2,FALSE),\"\")","v":""},{"$f":"IFERROR(VLOOKUP(B289,[2]Sheet4!$F$2:$J$364,3,FALSE),\"\")","v":""},{"$f":"IFERROR(VLOOKUP(B289,[2]Sheet4!$F$2:$J$364,4,FALSE),\"\")","v":""},{"$f":"IFERROR(VLOOKUP(B289,[2]Sheet4!$F$2:$J$364,5,FALSE),\"\")","v":""}]
[null,null,{"$f":"IFERROR(VLOOKUP(B290,[2]Sheet4!$F$2:$J$364,2,FALSE),\"\")","v":""},{"$f":"IFERROR(VLOOKUP(B290,[2]Sheet4!$F$2:$J$364,3,FALSE),\"\")","v":""},{"$f":"IFERROR(VLOOKUP(B290,[2]Sheet4!$F$2:$J$364,4,FALSE),\"\")","v":""},{"$f":"IFERROR(VLOOKUP(B290,[2]Sheet4!$F$2:$J$364,5,FALSE),\"\")","v":""}]
[null,null,{"$f":"IFERROR(VLOOKUP(B291,[2]Sheet4!$F$2:$J$364,2,FALSE),\"\")","v":""},{"$f":"IFERROR(VLOOKUP(B291,[2]Sheet4!$F$2:$J$364,3,FALSE),\"\")","v":""},{"$f":"IFERROR(VLOOKUP(B291,[2]Sheet4!$F$2:$J$364,4,FALSE),\"\")","v":""},{"$f":"IFERROR(VLOOKUP(B291,[2]Sheet4!$F$2:$J$364,5,FALSE),\"\")","v":""}]
[null,null,{"$f":"IFERROR(VLOOKUP(B292,[2]Sheet4!$F$2:$J$364,2,FALSE),\"\")","v":""},{"$f":"IFERROR(VLOOKUP(B292,[2]Sheet4!$F$2:$J$364,3,FALSE),\"\")","v":""},{"$f":"IFERROR(VLOOKUP(B292,[2]Sheet4!$F$2:$J$364,4,FALSE),\"\")","v":""},{"$f":"IFERROR(VLOOKUP(B292,[2]Sheet4!$F$2:$J$364,5,FALSE),\"\")","v":""}]
[null,null,{"$f":"IFERROR(VLOOKUP(B293,[2]Sheet4!$F$2:$J$364,2,FALSE),\"\")","v":""},{"$f":"IFERROR(VLOOKUP(B293,[2]Sheet4!$F$2:$J$364,3,FALSE),\"\")","v":""},{"$f":"IFERROR(VLOOKUP(B293,[2]Sheet4!$F$2:$J$364,4,FALSE),\"\")","v":""},{"$f":"IFERROR(VLOOKUP(B293,[2]Sheet4!$F$2:$J$364,5,FALSE),\"\")","v":""}]
[null,null,{"$f":"IFERROR(VLOOKUP(B294,[2]Sheet4!$F$2:$J$364,2,FALSE),\"\")","v":""},{"$f":"IFERROR(VLOOKUP(B294,[2]Sheet4!$F$2:$J$364,3,FALSE),\"\")","v":""},{"$f":"IFERROR(VLOOKUP(B294,[2]Sheet4!$F$2:$J$364,4,FALSE),\"\")","v":""},{"$f":"IFERROR(VLOOKUP(B294,[2]Sheet4!$F$2:$J$364,5,FALSE),\"\")","v":""}]
[null,null,{"$f":"IFERROR(VLOOKUP(B295,[2]Sheet4!$F$2:$J$364,2,FALSE),\"\")","v":""},{"$f":"IFERROR(VLOOKUP(B295,[2]Sheet4!$F$2:$J$364,3,FALSE),\"\")","v":""},{"$f":"IFERROR(VLOOKUP(B295,[2]Sheet4!$F$2:$J$364,4,FALSE),\"\")","v":""},{"$f":"IFERROR(VLOOKUP(B295,[2]Sheet4!$F$2:$J$364,5,FALSE),\"\")","v":""}]
[null,null,{"$f":"IFERROR(VLOOKUP(B296,[2]Sheet4!$F$2:$J$364,2,FALSE),\"\")","v":""},{"$f":"IFERROR(VLOOKUP(B296,[2]Sheet4!$F$2:$J$364,3,FALSE),\"\")","v":""},{"$f":"IFERROR(VLOOKUP(B296,[2]Sheet4!$F$2:$J$364,4,FALSE),\"\")","v":""},{"$f":"IFERROR(VLOOKUP(B296,[2]Sheet4!$F$2:$J$364,5,FALSE),\"\")","v":""}]
[null,null,{"$f":"IFERROR(VLOOKUP(B297,[2]Sheet4!$F$2:$J$364,2,FALSE),\"\")","v":""},{"$f":"IFERROR(VLOOKUP(B297,[2]Sheet4!$F$2:$J$364,3,FALSE),\"\")","v":""},{"$f":"IFERROR(VLOOKUP(B297,[2]Sheet4!$F$2:$J$364,4,FALSE),\"\")","v":""},{"$f":"IFERROR(VLOOKUP(B297,[2]Sheet4!$F$2:$J$364,5,FALSE),\"\")","v":""}]
[null,null,{"$f":"IFERROR(VLOOKUP(B298,[2]Sheet4!$F$2:$J$364,2,FALSE),\"\")","v":""},{"$f":"IFERROR(VLOOKUP(B298,[2]Sheet4!$F$2:$J$364,3,FALSE),\"\")","v":""},{"$f":"IFERROR(VLOOKUP(B298,[2]Sheet4!$F$2:$J$364,4,FALSE),\"\")","v":""},{"$f":"IFERROR(VLOOKUP(B298,[2]Sheet4!$F$2:$J$364,5,FALSE),\"\")","v":""}]
[null,null,{"$f":"IFERROR(VLOOKUP(B299,[2]Sheet4!$F$2:$J$364,2,FALSE),\"\")","v":""},{"$f":"IFERROR(VLOOKUP(B299,[2]Sheet4!$F$2:$J$364,3,FALSE),\"\")","v":""},{"$f":"IFERROR(VLOOKUP(B299,[2]Sheet4!$F$2:$J$364,4,FALSE),\"\")","v":""},{"$f":"IFERROR(VLOOKUP(B299,[2]Sheet4!$F$2:$J$364,5,FALSE),\"\")","v":""}]
[null,null,{"$f":"IFERROR(VLOOKUP(B300,[2]Sheet4!$F$2:$J$364,2,FALSE),\"\")","v":""},{"$f":"IFERROR(VLOOKUP(B300,[2]Sheet4!$F$2:$J$364,3,FALSE),\"\")","v":""},{"$f":"IFERROR(VLOOKUP(B300,[2]Sheet4!$F$2:$J$364,4,FALSE),\"\")","v":""},{"$f":"IFERROR(VLOOKUP(B300,[2]Sheet4!$F$2:$J$364,5,FALSE),\"\")","v":""}]
[null,null,{"$f":"IFERROR(VLOOKUP(B301,[2]Sheet4!$F$2:$J$364,2,FALSE),\"\")","v":""},{"$f":"IFERROR(VLOOKUP(B301,[2]Sheet4!$F$2:$J$364,3,FALSE),\"\")","v":""},{"$f":"IFERROR(VLOOKUP(B301,[2]Sheet4!$F$2:$J$364,4,FALSE),\"\")","v":""},{"$f":"IFERROR(VLOOKUP(B301,[2]Sheet4!$F$2:$J$364,5,FALSE),\"\")","v":""}]
[null,null,{"$f":"IFERROR(VLOOKUP(B302,[2]Sheet4!$F$2:$J$364,2,FALSE),\"\")","v":""},{"$f":"IFERROR(VLOOKUP(B302,[2]Sheet4!$F$2:$J$364,3,FALSE),\"\")","v":""},{"$f":"IFERROR(VLOOKUP(B302,[2]Sheet4!$F$2:$J$364,4,FALSE),\"\")","v":""},{"$f":"IFERROR(VLOOKUP(B302,[2]Sheet4!$F$2:$J$364,5,FALSE),\"\")","v":""}]
[null,null,{"$f":"IFERROR(VLOOKUP(B303,[2]Sheet4!$F$2:$J$364,2,FALSE),\"\")","v":""},{"$f":"IFERROR(VLOOKUP(B303,[2]Sheet4!$F$2:$J$364,3,FALSE),\"\")","v":""},{"$f":"IFERROR(VLOOKUP(B303,[2]Sheet4!$F$2:$J$364,4,FALSE),\"\")","v":""},{"$f":"IFERROR(VLOOKUP(B303,[2]Sheet4!$F$2:$J$364,5,FALSE),\"\")","v":""}]
[null,null,{"$f":"IFERROR(VLOOKUP(B304,[2]Sheet4!$F$2:$J$364,2,FALSE),\"\")","v":""},{"$f":"IFERROR(VLOOKUP(B304,[2]Sheet4!$F$2:$J$364,3,FALSE),\"\")","v":""},{"$f":"IFERROR(VLOOKUP(B304,[2]Sheet4!$F$2:$J$364,4,FALSE),\"\")","v":""},{"$f":"IFERROR(VLOOKUP(B304,[2]Sheet4!$F$2:$J$364,5,FALSE),\"\")","v":""}]
[null,null,{"$f":"IFERROR(VLOOKUP(B305,[2]Sheet4!$F$2:$J$364,2,FALSE),\"\")","v":""},{"$f":"IFERROR(VLOOKUP(B305,[2]Sheet4!$F$2:$J$364,3,FALSE),\"\")","v":""},{"$f":"IFERROR(VLOOKUP(B305,[2]Sheet4!$F$2:$J$364,4,FALSE),\"\")","v":""},{"$f":"IFERROR(VLOOKUP(B305,[2]Sheet4!$F$2:$J$364,5,FALSE),\"\")","v":""}]
[null,null,{"$f":"IFERROR(VLOOKUP(B306,[2]Sheet4!$F$2:$J$364,2,FALSE),\"\")","v":""},{"$f":"IFERROR(VLOOKUP(B306,[2]Sheet4!$F$2:$J$364,3,FALSE),\"\")","v":""},{"$f":"IFERROR(VLOOKUP(B306,[2]Sheet4!$F$2:$J$364,4,FALSE),\"\")","v":""},{"$f":"IFERROR(VLOOKUP(B306,[2]Sheet4!$F$2:$J$364,5,FALSE),\"\")","v":""}]
[null,null,{"$f":"IFERROR(VLOOKUP(B307,[2]Sheet4!$F$2:$J$364,2,FALSE),\"\")","v":""},{"$f":"IFERROR(VLOOKUP(B307,[2]Sheet4!$F$2:$J$364,3,FALSE),\"\")","v":""},{"$f":"IFERROR(VLOOKUP(B307,[2]Sheet4!$F$2:$J$364,4,FALSE),\"\")","v":""},{"$f":"IFERROR(VLOOKUP(B307,[2]Sheet4!$F$2:$J$364,5,FALSE),\"\")","v":""}]
[null,null,{"$f":"IFERROR(VLOOKUP(B308,[2]Sheet4!$F$2:$J$364,2,FALSE),\"\")","v":""},{"$f":"IFERROR(VLOOKUP(B308,[2]Sheet4!$F$2:$J$364,3,FALSE),\"\")","v":""},{"$f":"IFERROR(VLOOKUP(B308,[2]Sheet4!$F$2:$J$364,4,FALSE),\"\")","v":""},{"$f":"IFERROR(VLOOKUP(B308,[2]Sheet4!$F$2:$J$364,5,FALSE),\"\")","v":""}]
[null,null,{"$f":"IFERROR(VLOOKUP(B309,[2]Sheet4!$F$2:$J$364,2,FALSE),\"\")","v":""},{"$f":"IFERROR(VLOOKUP(B309,[2]Sheet4!$F$2:$J$364,3,FALSE),\"\")","v":""},{"$f":"IFERROR(VLOOKUP(B309,[2]Sheet4!$F$2:$J$364,4,FALSE),\"\")","v":""},{"$f":"IFERROR(VLOOKUP(B309,[2]Sheet4!$F$2:$J$364,5,FALSE),\"\")","v":""}]
[null,null,{"$f":"IFERROR(VLOOKUP(B310,[2]Sheet4!$F$2:$J$364,2,FALSE),\"\")","v":""},{"$f":"IFERROR(VLOOKUP(B310,[2]Sheet4!$F$2:$J$364,3,FALSE),\"\")","v":""},{"$f":"IFERROR(VLOOKUP(B310,[2]Sheet4!$F$2:$J$364,4,FALSE),\"\")","v":""},{"$f":"IFERROR(VLOOKUP(B310,[2]Sheet4!$F$2:$J$364,5,FALSE),\"\")","v":""}]
[null,null,{"$f":"IFERROR(VLOOKUP(B311,[2]Sheet4!$F$2:$J$364,2,FALSE),\"\")","v":""},{"$f":"IFERROR(VLOOKUP(B311,[2]Sheet4!$F$2:$J$364,3,FALSE),\"\")","v":""},{"$f":"IFERROR(VLOOKUP(B311,[2]Sheet4!$F$2:$J$364,4,FALSE),\"\")","v":""},{"$f":"IFERROR(VLOOKUP(B311,[2]Sheet4!$F$2:$J$364,5,FALSE),\"\")","v":""}]
[null,null,{"$f":"IFERROR(VLOOKUP(B312,[2]Sheet4!$F$2:$J$364,2,FALSE),\"\")","v":""},{"$f":"IFERROR(VLOOKUP(B312,[2]Sheet4!$F$2:$J$364,3,FALSE),\"\")","v":""},{"$f":"IFERROR(VLOOKUP(B312,[2]Sheet4!$F$2:$J$364,4,FALSE),\"\")","v":""},{"$f":"IFERROR(VLOOKUP(B312,[2]Sheet4!$F$2:$J$364,5,FALSE),\"\")","v":""}]
[null,null,{"$f":"IFERROR(VLOOKUP(B313,[2]Sheet4!$F$2:$J$364,2,FALSE),\"\")","v":""},{"$f":"IFERROR(VLOOKUP(B313,[2]Sheet4!$F$2:$J$364,3,FALSE),\"\")","v":""},{"$f":"IFERROR(VLOOKUP(B313,[2]Sheet4!$F$2:$J$364,4,FALSE),\"\")","v":""},{"$f":"IFERROR(VLOOKUP(B313,[2]Sheet4!$F$2:$J$364,5,FALSE),\"\")","v":""}]
[null,null,{"$f":"IFERROR(VLOOKUP(B314,[2]Sheet4!$F$2:$J$364,2,FALSE),\"\")","v":""},{"$f":"IFERROR(VLOOKUP(B314,[2]Sheet4!$F$2:$J$364,3,FALSE),\"\")","v":""},{"$f":"IFERROR(VLOOKUP(B314,[2]Sheet4!$F$2:$J$364,4,FALSE),\"\")","v":""},{"$f":"IFERROR(VLOOKUP(B314,[2]Sheet4!$F$2:$J$364,5,FALSE),\"\")","v":""}]
[null,null,{"$f":"IFERROR(VLOOKUP(B315,[2]Sheet4!$F$2:$J$364,2,FALSE),\"\")","v":""},{"$f":"IFERROR(VLOOKUP(B315,[2]Sheet4!$F$2:$J$364,3,FALSE),\"\")","v":""},{"$f":"IFERROR(VLOOKUP(B315,[2]Sheet4!$F$2:$J$364,4,FALSE),\"\")","v":""},{"$f":"IFERROR(VLOOKUP(B315,[2]Sheet4!$F$2:$J$364,5,FALSE),\"\")","v":""}]
[null,null,{"$f":"IFERROR(VLOOKUP(B316,[2]Sheet4!$F$2:$J$364,2,FALSE),\"\")","v":""},{"$f":"IFERROR(VLOOKUP(B316,[2]Sheet4!$F$2:$J$364,3,FALSE),\"\")","v":""},{"$f":"IFERROR(VLOOKUP(B316,[2]Sheet4!$F$2:$J$364,4,FALSE),\"\")","v":""},{"$f":"IFERROR(VLOOKUP(B316,[2]Sheet4!$F$2:$J$364,5,FALSE),\"\")","v":""}]
[null,null,{"$f":"IFERROR(VLOOKUP(B317,[2]Sheet4!$F$2:$J$364,2,FALSE),\"\")","v":""},{"$f":"IFERROR(VLOOKUP(B317,[2]Sheet4!$F$2:$J$364,3,FALSE),\"\")","v":""},{"$f":"IFERROR(VLOOKUP(B317,[2]Sheet4!$F$2:$J$364,4,FALSE),\"\")","v":""},{"$f":"IFERROR(VLOOKUP(B317,[2]Sheet4!$F$2:$J$364,5,FALSE),\"\")","v":""}]
[null,null,{"$f":"IFERROR(VLOOKUP(B318,[2]Sheet4!$F$2:$J$364,2,FALSE),\"\")","v":""},{"$f":"IFERROR(VLOOKUP(B318,[2]Sheet4!$F$2:$J$364,3,FALSE),\"\")","v":""},{"$f":"IFERROR(VLOOKUP(B318,[2]Sheet4!$F$2:$J$364,4,FALSE),\"\")","v":""},{"$f":"IFERROR(VLOOKUP(B318,[2]Sheet4!$F$2:$J$364,5,FALSE),\"\")","v":""}]
[null,null,{"$f":"IFERROR(VLOOKUP(B319,[2]Sheet4!$F$2:$J$364,2,FALSE),\"\")","v":""},{"$f":"IFERROR(VLOOKUP(B319,[2]Sheet4!$F$2:$J$364,3,FALSE),\"\")","v":""},{"$f":"IFERROR(VLOOKUP(B319,[2]Sheet4!$F$2:$J$364,4,FALSE),\"\")","v":""},{"$f":"IFERROR(VLOOKUP(B319,[2]Sheet4!$F$2:$J$364,5,FALSE),\"\")","v":""}]
[null,null,{"$f":"IFERROR(VLOOKUP(B320,[2]Sheet4!$F$2:$J$364,2,FALSE),\"\")","v":""},{"$f":"IFERROR(VLOOKUP(B320,[2]Sheet4!$F$2:$J$364,3,FALSE),\"\")","v":""},{"$f":"IFERROR(VLOOKUP(B320,[2]Sheet4!$F$2:$J$364,4,FALSE),\"\")","v":""},{"$f":"IFERROR(VLOOKUP(B320,[2]Sheet4!$F$2:$J$364,5,FALSE),\"\")","v":""}]
[null,null,{"$f":"IFERROR(VLOOKUP(B321,[2]Sheet4!$F$2:$J$364,2,FALSE),\"\")","v":""},{"$f":"IFERROR(VLOOKUP(B321,[2]Sheet4!$F$2:$J$364,3,FALSE),\"\")","v":""},{"$f":"IFERROR(VLOOKUP(B321,[2]Sheet4!$F$2:$J$364,4,FALSE),\"\")","v":""},{"$f":"IFERROR(VLOOKUP(B321,[2]Sheet4!$F$2:$J$364,5,FALSE),\"\")","v":""}]
[null,null,{"$f":"IFERROR(VLOOKUP(B322,[2]Sheet4!$F$2:$J$364,2,FALSE),\"\")","v":""},{"$f":"IFERROR(VLOOKUP(B322,[2]Sheet4!$F$2:$J$364,3,FALSE),\"\")","v":""},{"$f":"IFERROR(VLOOKUP(B322,[2]Sheet4!$F$2:$J$364,4,FALSE),\"\")","v":""},{"$f":"IFERROR(VLOOKUP(B322,[2]Sheet4!$F$2:$J$364,5,FALSE),\"\")","v":""}]
[null,null,{"$f":"IFERROR(VLOOKUP(B323,[2]Sheet4!$F$2:$J$364,2,FALSE),\"\")","v":""},{"$f":"IFERROR(VLOOKUP(B323,[2]Sheet4!$F$2:$J$364,3,FALSE),\"\")","v":""},{"$f":"IFERROR(VLOOKUP(B323,[2]Sheet4!$F$2:$J$364,4,FALSE),\"\")","v":""},{"$f":"IFERROR(VLOOKUP(B323,[2]Sheet4!$F$2:$J$364,5,FALSE),\"\")","v":""}]
[null,null,{"$f":"IFERROR(VLOOKUP(B324,[2]Sheet4!$F$2:$J$364,2,FALSE),\"\")","v":""},{"$f":"IFERROR(VLOOKUP(B324,[2]Sheet4!$F$2:$J$364,3,FALSE),\"\")","v":""},{"$f":"IFERROR(VLOOKUP(B324,[2]Sheet4!$F$2:$J$364,4,FALSE),\"\")","v":""},{"$f":"IFERROR(VLOOKUP(B324,[2]Sheet4!$F$2:$J$364,5,FALSE),\"\")","v":""}]
[null,null,{"$f":"IFERROR(VLOOKUP(B325,[2]Sheet4!$F$2:$J$364,2,FALSE),\"\")","v":""},{"$f":"IFERROR(VLOOKUP(B325,[2]Sheet4!$F$2:$J$364,3,FALSE),\"\")","v":""},{"$f":"IFERROR(VLOOKUP(B325,[2]Sheet4!$F$2:$J$364,4,FALSE),\"\")","v":""},{"$f":"IFERROR(VLOOKUP(B325,[2]Sheet4!$F$2:$J$364,5,FALSE),\"\")","v":""}]
[null,null,{"$f":"IFERROR(VLOOKUP(B326,[2]Sheet4!$F$2:$J$364,2,FALSE),\"\")","v":""},{"$f":"IFERROR(VLOOKUP(B326,[2]Sheet4!$F$2:$J$364,3,FALSE),\"\")","v":""},{"$f":"IFERROR(VLOOKUP(B326,[2]Sheet4!$F$2:$J$364,4,FALSE),\"\")","v":""},{"$f":"IFERROR(VLOOKUP(B326,[2]Sheet4!$F$2:$J$364,5,FALSE),\"\")","v":""}]
[null,null,{"$f":"IFERROR(VLOOKUP(B327,[2]Sheet4!$F$2:$J$364,2,FALSE),\"\")","v":""},{"$f":"IFERROR(VLOOKUP(B327,[2]Sheet4!$F$2:$J$364,3,FALSE),\"\")","v":""},{"$f":"IFERROR(VLOOKUP(B327,[2]Sheet4!$F$2:$J$364,4,FALSE),\"\")","v":""},{"$f":"IFERROR(VLOOKUP(B327,[2]Sheet4!$F$2:$J$364,5,FALSE),\"\")","v":""}]
[null,null,{"$f":"IFERROR(VLOOKUP(B328,[2]Sheet4!$F$2:$J$364,2,FALSE),\"\")","v":""},{"$f":"IFERROR(VLOOKUP(B328,[2]Sheet4!$F$2:$J$364,3,FALSE),\"\")","v":""},{"$f":"IFERROR(VLOOKUP(B328,[2]Sheet4!$F$2:$J$364,4,FALSE),\"\")","v":""},{"$f":"IFERROR(VLOOKUP(B328,[2]Sheet4!$F$2:$J$364,5,FALSE),\"\")","v":""}]
[null,null,{"$f":"IFERROR(VLOOKUP(B329,[2]Sheet4!$F$2:$J$364,2,FALSE),\"\")","v":""},{"$f":"IFERROR(VLOOKUP(B329,[2]Sheet4!$F$2:$J$364,3,FALSE),\"\")","v":""},{"$f":"IFERROR(VLOOKUP(B329,[2]Sheet4!$F$2:$J$364,4,FALSE),\"\")","v":""},{"$f":"IFERROR(VLOOKUP(B329,[2]Sheet4!$F$2:$J$364,5,FALSE),\"\")","v":""}]
[null,null,{"$f":"IFERROR(VLOOKUP(B330,[2]Sheet4!$F$2:$J$364,2,FALSE),\"\")","v":""},{"$f":"IFERROR(VLOOKUP(B330,[2]Sheet4!$F$2:$J$364,3,FALSE),\"\")","v":""},{"$f":"IFERROR(VLOOKUP(B330,[2]Sheet4!$F$2:$J$364,4,FALSE),\"\")","v":""},{"$f":"IFERROR(VLOOKUP(B330,[2]Sheet4!$F$2:$J$364,5,FALSE),\"\")","v":""}]
[null,null,{"$f":"IFERROR(VLOOKUP(B331,[2]Sheet4!$F$2:$J$364,2,FALSE),\"\")","v":""},{"$f":"IFERROR(VLOOKUP(B331,[2]Sheet4!$F$2:$J$364,3,FALSE),\"\")","v":""},{"$f":"IFERROR(VLOOKUP(B331,[2]Sheet4!$F$2:$J$364,4,FALSE),\"\")","v":""},{"$f":"IFERROR(VLOOKUP(B331,[2]Sheet4!$F$2:$J$364,5,FALSE),\"\")","v":""}]
[null,null,{"$f":"IFERROR(VLOOKUP(B332,[2]Sheet4!$F$2:$J$364,2,FALSE),\"\")","v":""},{"$f":"IFERROR(VLOOKUP(B332,[2]Sheet4!$F$2:$J$364,3,FALSE),\"\")","v":""},{"$f":"IFERROR(VLOOKUP(B332,[2]Sheet4!$F$2:$J$364,4,FALSE),\"\")","v":""},{"$f":"IFERROR(VLOOKUP(B332,[2]Sheet4!$F$2:$J$364,5,FALSE),\"\")","v":""}]
[null,null,{"$f":"IFERROR(VLOOKUP(B333,[2]Sheet4!$F$2:$J$364,2,FALSE),\"\")","v":""},{"$f":"IFERROR(VLOOKUP(B333,[2]Sheet4!$F$2:$J$364,3,FALSE),\"\")","v":""},{"$f":"IFERROR(VLOOKUP(B333,[2]Sheet4!$F$2:$J$364,4,FALSE),\"\")","v":""},{"$f":"IFERROR(VLOOKUP(B333,[2]Sheet4!$F$2:$J$364,5,FALSE),\"\")","v":""}]
[null,null,{"$f":"IFERROR(VLOOKUP(B334,[2]Sheet4!$F$2:$J$364,2,FALSE),\"\")","v":""},{"$f":"IFERROR(VLOOKUP(B334,[2]Sheet4!$F$2:$J$364,3,FALSE),\"\")","v":""},{"$f":"IFERROR(VLOOKUP(B334,[2]Sheet4!$F$2:$J$364,4,FALSE),\"\")","v":""},{"$f":"IFERROR(VLOOKUP(B334,[2]Sheet4!$F$2:$J$364,5,FALSE),\"\")","v":""}]
[null,null,{"$f":"IFERROR(VLOOKUP(B335,[2]Sheet4!$F$2:$J$364,2,FALSE),\"\")","v":""},{"$f":"IFERROR(VLOOKUP(B335,[2]Sheet4!$F$2:$J$364,3,FALSE),\"\")","v":""},{"$f":"IFERROR(VLOOKUP(B335,[2]Sheet4!$F$2:$J$364,4,FALSE),\"\")","v":""},{"$f":"IFERROR(VLOOKUP(B335,[2]Sheet4!$F$2:$J$364,5,FALSE),\"\")","v":""}]
[null,null,{"$f":"IFERROR(VLOOKUP(B336,[2]Sheet4!$F$2:$J$364,2,FALSE),\"\")","v":""},{"$f":"IFERROR(VLOOKUP(B336,[2]Sheet4!$F$2:$J$364,3,FALSE),\"\")","v":""},{"$f":"IFERROR(VLOOKUP(B336,[2]Sheet4!$F$2:$J$364,4,FALSE),\"\")","v":""},{"$f":"IFERROR(VLOOKUP(B336,[2]Sheet4!$F$2:$J$364,5,FALSE),\"\")","v":""}]
[null,null,{"$f":"IFERROR(VLOOKUP(B337,[2]Sheet4!$F$2:$J$364,2,FALSE),\"\")","v":""},{"$f":"IFERROR(VLOOKUP(B337,[2]Sheet4!$F$2:$J$364,3,FALSE),\"\")","v":""},{"$f":"IFERROR(VLOOKUP(B337,[2]Sheet4!$F$2:$J$364,4,FALSE),\"\")","v":""},{"$f":"IFERROR(VLOOKUP(B337,[2]Sheet4!$F$2:$J$364,5,FALSE),\"\")","v":""}]
[null,null,{"$f":"IFERROR(VLOOKUP(B338,[2]Sheet4!$F$2:$J$364,2,FALSE),\"\")","v":""},{"$f":"IFERROR(VLOOKUP(B338,[2]Sheet4!$F$2:$J$364,3,FALSE),\"\")","v":""},{"$f":"IFERROR(VLOOKUP(B338,[2]Sheet4!$F$2:$J$364,4,FALSE),\"\")","v":""},{"$f":"IFERROR(VLOOKUP(B338,[2]Sheet4!$F$2:$J$364,5,FALSE),\"\")","v":""}]
[null,null,{"$f":"IFERROR(VLOOKUP(B339,[2]Sheet4!$F$2:$J$364,2,FALSE),\"\")","v":""},{"$f":"IFERROR(VLOOKUP(B339,[2]Sheet4!$F$2:$J$364,3,FALSE),\"\")","v":""},{"$f":"IFERROR(VLOOKUP(B339,[2]Sheet4!$F$2:$J$364,4,FALSE),\"\")","v":""},{"$f":"IFERROR(VLOOKUP(B339,[2]Sheet4!$F$2:$J$364,5,FALSE),\"\")","v":""}]
[null,null,{"$f":"IFERROR(VLOOKUP(B340,[2]Sheet4!$F$2:$J$364,2,FALSE),\"\")","v":""},{"$f":"IFERROR(VLOOKUP(B340,[2]Sheet4!$F$2:$J$364,3,FALSE),\"\")","v":""},{"$f":"IFERROR(VLOOKUP(B340,[2]Sheet4!$F$2:$J$364,4,FALSE),\"\")","v":""},{"$f":"IFERROR(VLOOKUP(B340,[2]Sheet4!$F$2:$J$364,5,FALSE),\"\")","v":""}]
[null,null,{"$f":"IFERROR(VLOOKUP(B341,[2]Sheet4!$F$2:$J$364,2,FALSE),\"\")","v":""},{"$f":"IFERROR(VLOOKUP(B341,[2]Sheet4!$F$2:$J$364,3,FALSE),\"\")","v":""},{"$f":"IFERROR(VLOOKUP(B341,[2]Sheet4!$F$2:$J$364,4,FALSE),\"\")","v":""},{"$f":"IFERROR(VLOOKUP(B341,[2]Sheet4!$F$2:$J$364,5,FALSE),\"\")","v":""}]
[null,null,{"$f":"IFERROR(VLOOKUP(B342,[2]Sheet4!$F$2:$J$364,2,FALSE),\"\")","v":""},{"$f":"IFERROR(VLOOKUP(B342,[2]Sheet4!$F$2:$J$364,3,FALSE),\"\")","v":""},{"$f":"IFERROR(VLOOKUP(B342,[2]Sheet4!$F$2:$J$364,4,FALSE),\"\")","v":""},{"$f":"IFERROR(VLOOKUP(B342,[2]Sheet4!$F$2:$J$364,5,FALSE),\"\")","v":""}]
[null,null,{"$f":"IFERROR(VLOOKUP(B343,[2]Sheet4!$F$2:$J$364,2,FALSE),\"\")","v":""},{"$f":"IFERROR(VLOOKUP(B343,[2]Sheet4!$F$2:$J$364,3,FALSE),\"\")","v":""},{"$f":"IFERROR(VLOOKUP(B343,[2]Sheet4!$F$2:$J$364,4,FALSE),\"\")","v":""},{"$f":"IFERROR(VLOOKUP(B343,[2]Sheet4!$F$2:$J$364,5,FALSE),\"\")","v":""}]
[null,null,{"$f":"IFERROR(VLOOKUP(B344,[2]Sheet4!$F$2:$J$364,2,FALSE),\"\")","v":""},{"$f":"IFERROR(VLOOKUP(B344,[2]Sheet4!$F$2:$J$364,3,FALSE),\"\")","v":""},{"$f":"IFERROR(VLOOKUP(B344,[2]Sheet4!$F$2:$J$364,4,FALSE),\"\")","v":""},{"$f":"IFERROR(VLOOKUP(B344,[2]Sheet4!$F$2:$J$364,5,FALSE),\"\")","v":""}]
[null,null,{"$f":"IFERROR(VLOOKUP(B345,[2]Sheet4!$F$2:$J$364,2,FALSE),\"\")","v":""},{"$f":"IFERROR(VLOOKUP(B345,[2]Sheet4!$F$2:$J$364,3,FALSE),\"\")","v":""},{"$f":"IFERROR(VLOOKUP(B345,[2]Sheet4!$F$2:$J$364,4,FALSE),\"\")","v":""},{"$f":"IFERROR(VLOOKUP(B345,[2]Sheet4!$F$2:$J$364,5,FALSE),\"\")","v":""}]
[null,null,{"$f":"IFERROR(VLOOKUP(B346,[2]Sheet4!$F$2:$J$364,2,FALSE),\"\")","v":""},{"$f":"IFERROR(VLOOKUP(B346,[2]Sheet4!$F$2:$J$364,3,FALSE),\"\")","v":""},{"$f":"IFERROR(VLOOKUP(B346,[2]Sheet4!$F$2:$J$364,4,FALSE),\"\")","v":""},{"$f":"IFERROR(VLOOKUP(B346,[2]Sheet4!$F$2:$J$364,5,FALSE),\"\")","v":""}]
[null,null,{"$f":"IFERROR(VLOOKUP(B347,[2]Sheet4!$F$2:$J$364,2,FALSE),\"\")","v":""},{"$f":"IFERROR(VLOOKUP(B347,[2]Sheet4!$F$2:$J$364,3,FALSE),\"\")","v":""},{"$f":"IFERROR(VLOOKUP(B347,[2]Sheet4!$F$2:$J$364,4,FALSE),\"\")","v":""},{"$f":"IFERROR(VLOOKUP(B347,[2]Sheet4!$F$2:$J$364,5,FALSE),\"\")","v":""}]
[null,null,{"$f":"IFERROR(VLOOKUP(B348,[2]Sheet4!$F$2:$J$364,2,FALSE),\"\")","v":""},{"$f":"IFERROR(VLOOKUP(B348,[2]Sheet4!$F$2:$J$364,3,FALSE),\"\")","v":""},{"$f":"IFERROR(VLOOKUP(B348,[2]Sheet4!$F$2:$J$364,4,FALSE),\"\")","v":""},{"$f":"IFERROR(VLOOKUP(B348,[2]Sheet4!$F$2:$J$364,5,FALSE),\"\")","v":""}]
[null,null,{"$f":"IFERROR(VLOOKUP(B349,[2]Sheet4!$F$2:$J$364,2,FALSE),\"\")","v":""},{"$f":"IFERROR(VLOOKUP(B349,[2]Sheet4!$F$2:$J$364,3,FALSE),\"\")","v":""},{"$f":"IFERROR(VLOOKUP(B349,[2]Sheet4!$F$2:$J$364,4,FALSE),\"\")","v":""},{"$f":"IFERROR(VLOOKUP(B349,[2]Sheet4!$F$2:$J$364,5,FALSE),\"\")","v":""}]
[null,null,{"$f":"IFERROR(VLOOKUP(B350,[2]Sheet4!$F$2:$J$364,2,FALSE),\"\")","v":""},{"$f":"IFERROR(VLOOKUP(B350,[2]Sheet4!$F$2:$J$364,3,FALSE),\"\")","v":""},{"$f":"IFERROR(VLOOKUP(B350,[2]Sheet4!$F$2:$J$364,4,FALSE),\"\")","v":""},{"$f":"IFERROR(VLOOKUP(B350,[2]Sheet4!$F$2:$J$364,5,FALSE),\"\")","v":""}]
[null,null,{"$f":"IFERROR(VLOOKUP(B351,[2]Sheet4!$F$2:$J$364,2,FALSE),\"\")","v":""},{"$f":"IFERROR(VLOOKUP(B351,[2]Sheet4!$F$2:$J$364,3,FALSE),\"\")","v":""},{"$f":"IFERROR(VLOOKUP(B351,[2]Sheet4!$F$2:$J$364,4,FALSE),\"\")","v":""},{"$f":"IFERROR(VLOOKUP(B351,[2]Sheet4!$F$2:$J$364,5,FALSE),\"\")","v":""}]
[null,null,{"$f":"IFERROR(VLOOKUP(B352,[2]Sheet4!$F$2:$J$364,2,FALSE),\"\")","v":""},{"$f":"IFERROR(VLOOKUP(B352,[2]Sheet4!$F$2:$J$364,3,FALSE),\"\")","v":""},{"$f":"IFERROR(VLOOKUP(B352,[2]Sheet4!$F$2:$J$364,4,FALSE),\"\")","v":""},{"$f":"IFERROR(VLOOKUP(B352,[2]Sheet4!$F$2:$J$364,5,FALSE),\"\")","v":""}]
[null,null,{"$f":"IFERROR(VLOOKUP(B353,[2]Sheet4!$F$2:$J$364,2,FALSE),\"\")","v":""},{"$f":"IFERROR(VLOOKUP(B353,[2]Sheet4!$F$2:$J$364,3,FALSE),\"\")","v":""},{"$f":"IFERROR(VLOOKUP(B353,[2]Sheet4!$F$2:$J$364,4,FALSE),\"\")","v":""},{"$f":"IFERROR(VLOOKUP(B353,[2]Sheet4!$F$2:$J$364,5,FALSE),\"\")","v":""}]
[null,null,{"$f":"IFERROR(VLOOKUP(B354,[2]Sheet4!$F$2:$J$364,2,FALSE),\"\")","v":""},{"$f":"IFERROR(VLOOKUP(B354,[2]Sheet4!$F$2:$J$364,3,FALSE),\"\")","v":""},{"$f":"IFERROR(VLOOKUP(B354,[2]Sheet4!$F$2:$J$364,4,FALSE),\"\")","v":""},{"$f":"IFERROR(VLOOKUP(B354,[2]Sheet4!$F$2:$J$364,5,FALSE),\"\")","v":""}]
[null,null,{"$f":"IFERROR(VLOOKUP(B355,[2]Sheet4!$F$2:$J$364,2,FALSE),\"\")","v":""},{"$f":"IFERROR(VLOOKUP(B355,[2]Sheet4!$F$2:$J$364,3,FALSE),\"\")","v":""},{"$f":"IFERROR(VLOOKUP(B355,[2]Sheet4!$F$2:$J$364,4,FALSE),\"\")","v":""},{"$f":"IFERROR(VLOOKUP(B355,[2]Sheet4!$F$2:$J$364,5,FALSE),\"\")","v":""}]
[null,null,{"$f":"IFERROR(VLOOKUP(B356,[2]Sheet4!$F$2:$J$364,2,FALSE),\"\")","v":""},{"$f":"IFERROR(VLOOKUP(B356,[2]Sheet4!$F$2:$J$364,3,FALSE),\"\")","v":""},{"$f":"IFERROR(VLOOKUP(B356,[2]Sheet4!$F$2:$J$364,4,FALSE),\"\")","v":""},{"$f":"IFERROR(VLOOKUP(B356,[2]Sheet4!$F$2:$J$364,5,FALSE),\"\")","v":""}]
[null,null,{"$f":"IFERROR(VLOOKUP(B357,[2]Sheet4!$F$2:$J$364,2,FALSE),\"\")","v":""},{"$f":"IFERROR(VLOOKUP(B357,[2]Sheet4!$F$2:$J$364,3,FALSE),\"\")","v":""},{"$f":"IFERROR(VLOOKUP(B357,[2]Sheet4!$F$2:$J$364,4,FALSE),\"\")","v":""},{"$f":"IFERROR(VLOOKUP(B357,[2]Sheet4!$F$2:$J$364,5,FALSE),\"\")","v":""}]
[null,null,{"$f":"IFERROR(VLOOKUP(B358,[2]Sheet4!$F$2:$J$364,2,FALSE),\"\")","v":""},{"$f":"IFERROR(VLOOKUP(B358,[2]Sheet4!$F$2:$J$364,3,FALSE),\"\")","v":""},{"$f":"IFERROR(VLOOKUP(B358,[2]Sheet4!$F$2:$J$364,4,FALSE),\"\")","v":""},{"$f":"IFERROR(VLOOKUP(B358,[2]Sheet4!$F$2:$J$364,5,FALSE),\"\")","v":""}]
[null,null,{"$f":"IFERROR(VLOOKUP(B359,[2]Sheet4!$F$2:$J$364,2,FALSE),\"\")","v":""},{"$f":"IFERROR(VLOOKUP(B359,[2]Sheet4!$F$2:$J$364,3,FALSE),\"\")","v":""},{"$f":"IFERROR(VLOOKUP(B359,[2]Sheet4!$F$2:$J$364,4,FALSE),\"\")","v":""},{"$f":"IFERROR(VLOOKUP(B359,[2]Sheet4!$F$2:$J$364,5,FALSE),\"\")","v":""}]
[null,null,{"$f":"IFERROR(VLOOKUP(B360,[2]Sheet4!$F$2:$J$364,2,FALSE),\"\")","v":""},{"$f":"IFERROR(VLOOKUP(B360,[2]Sheet4!$F$2:$J$364,3,FALSE),\"\")","v":""},{"$f":"IFERROR(VLOOKUP(B360,[2]Sheet4!$F$2:$J$364,4,FALSE),\"\")","v":""},{"$f":"IFERROR(VLOOKUP(B360,[2]Sheet4!$F$2:$J$364,5,FALSE),\"\")","v":""}]
[null,null,{"$f":"IFERROR(VLOOKUP(B361,[2]Sheet4!$F$2:$J$364,2,FALSE),\"\")","v":""},{"$f":"IFERROR(VLOOKUP(B361,[2]Sheet4!$F$2:$J$364,3,FALSE),\"\")","v":""},{"$f":"IFERROR(VLOOKUP(B361,[2]Sheet4!$F$2:$J$364,4,FALSE),\"\")","v":""},{"$f":"IFERROR(VLOOKUP(B361,[2]Sheet4!$F$2:$J$364,5,FALSE),\"\")","v":""}]
[null,null,{"$f":"IFERROR(VLOOKUP(B362,[2]Sheet4!$F$2:$J$364,2,FALSE),\"\")","v":""},{"$f":"IFERROR(VLOOKUP(B362,[2]Sheet4!$F$2:$J$364,3,FALSE),\"\")","v":""},{"$f":"IFERROR(VLOOKUP(B362,[2]Sheet4!$F$2:$J$364,4,FALSE),\"\")","v":""},{"$f":"IFERROR(VLOOKUP(B362,[2]Sheet4!$F$2:$J$364,5,FALSE),\"\")","v":""}]
[null,null,{"$f":"IFERROR(VLOOKUP(B363,[2]Sheet4!$F$2:$J$364,2,FALSE),\"\")","v":""},{"$f":"IFERROR(VLOOKUP(B363,[2]Sheet4!$F$2:$J$364,3,FALSE),\"\")","v":""},{"$f":"IFERROR(VLOOKUP(B363,[2]Sheet4!$F$2:$J$364,4,FALSE),\"\")","v":""},{"$f":"IFERROR(VLOOKUP(B363,[2]Sheet4!$F$2:$J$364,5,FALSE),\"\")","v":""}]
[null,null,{"$f":"IFERROR(VLOOKUP(B364,[2]Sheet4!$F$2:$J$364,2,FALSE),\"\")","v":""},{"$f":"IFERROR(VLOOKUP(B364,[2]Sheet4!$F$2:$J$364,3,FALSE),\"\")","v":""},{"$f":"IFERROR(VLOOKUP(B364,[2]Sheet4!$F$2:$J$364,4,FALSE),\"\")","v":""},{"$f":"IFERROR(VLOOKUP(B364,[2]Sheet4!$F$2:$J$364,5,FALSE),\"\")","v":""}]
[null,null,{"$f":"IFERROR(VLOOKUP(B365,[2]Sheet4!$F$2:$J$364,2,FALSE),\"\")","v":""},{"$f":"IFERROR(VLOOKUP(B365,[2]Sheet4!$F$2:$J$364,3,FALSE),\"\")","v":""},{"$f":"IFERROR(VLOOKUP(B365,[2]Sheet4!$F$2:$J$364,4,FALSE),\"\")","v":""},{"$f":"IFERROR(VLOOKUP(B365,[2]Sheet4!$F$2:$J$364,5,FALSE),\"\")","v":""}]
[null,null,{"$f":"IFERROR(VLOOKUP(B366,[2]Sheet4!$F$2:$J$364,2,FALSE),\"\")","v":""},{"$f":"IFERROR(VLOOKUP(B366,[2]Sheet4!$F$2:$J$364,3,FALSE),\"\")","v":""},{"$f":"IFERROR(VLOOKUP(B366,[2]Sheet4!$F$2:$J$364,4,FALSE),\"\")","v":""},{"$f":"IFERROR(VLOOKUP(B366,[2]Sheet4!$F$2:$J$364,5,FALSE),\"\")","v":""}]
[null,null,{"$f":"IFERROR(VLOOKUP(B367,[2]Sheet4!$F$2:$J$364,2,FALSE),\"\")","v":""},{"$f":"IFERROR(VLOOKUP(B367,[2]Sheet4!$F$2:$J$364,3,FALSE),\"\")","v":""},{"$f":"IFERROR(VLOOKUP(B367,[2]Sheet4!$F$2:$J$364,4,FALSE),\"\")","v":""},{"$f":"IFERROR(VLOOKUP(B367,[2]Sheet4!$F$2:$J$364,5,FALSE),\"\")","v":""}]
[null,null,{"$f":"IFERROR(VLOOKUP(B368,[2]Sheet4!$F$2:$J$364,2,FALSE),\"\")","v":""},{"$f":"IFERROR(VLOOKUP(B368,[2]Sheet4!$F$2:$J$364,3,FALSE),\"\")","v":""},{"$f":"IFERROR(VLOOKUP(B368,[2]Sheet4!$F$2:$J$364,4,FALSE),\"\")","v":""},{"$f":"IFERROR(VLOOKUP(B368,[2]Sheet4!$F$2:$J$364,5,FALSE),\"\")","v":""}]
[null,null,{"$f":"IFERROR(VLOOKUP(B369,[2]Sheet4!$F$2:$J$364,2,FALSE),\"\")","v":""},{"$f":"IFERROR(VLOOKUP(B369,[2]Sheet4!$F$2:$J$364,3,FALSE),\"\")","v":""},{"$f":"IFERROR(VLOOKUP(B369,[2]Sheet4!$F$2:$J$364,4,FALSE),\"\")","v":""},{"$f":"IFERROR(VLOOKUP(B369,[2]Sheet4!$F$2:$J$364,5,FALSE),\"\")","v":""}]
[null,null,{"$f":"IFERROR(VLOOKUP(B370,[2]Sheet4!$F$2:$J$364,2,FALSE),\"\")","v":""},{"$f":"IFERROR(VLOOKUP(B370,[2]Sheet4!$F$2:$J$364,3,FALSE),\"\")","v":""},{"$f":"IFERROR(VLOOKUP(B370,[2]Sheet4!$F$2:$J$364,4,FALSE),\"\")","v":""},{"$f":"IFERROR(VLOOKUP(B370,[2]Sheet4!$F$2:$J$364,5,FALSE),\"\")","v":""}]
[null,null,{"$f":"IFERROR(VLOOKUP(B371,[2]Sheet4!$F$2:$J$364,2,FALSE),\"\")","v":""},{"$f":"IFERROR(VLOOKUP(B371,[2]Sheet4!$F$2:$J$364,3,FALSE),\"\")","v":""},{"$f":"IFERROR(VLOOKUP(B371,[2]Sheet4!$F$2:$J$364,4,FALSE),\"\")","v":""},{"$f":"IFERROR(VLOOKUP(B371,[2]Sheet4!$F$2:$J$364,5,FALSE),\"\")","v":""}]
[null,null,{"$f":"IFERROR(VLOOKUP(B372,[2]Sheet4!$F$2:$J$364,2,FALSE),\"\")","v":""},{"$f":"IFERROR(VLOOKUP(B372,[2]Sheet4!$F$2:$J$364,3,FALSE),\"\")","v":""},{"$f":"IFERROR(VLOOKUP(B372,[2]Sheet4!$F$2:$J$364,4,FALSE),\"\")","v":""},{"$f":"IFERROR(VLOOKUP(B372,[2]Sheet4!$F$2:$J$364,5,FALSE),\"\")","v":""}]
[null,null,{"$f":"IFERROR(VLOOKUP(B373,[2]Sheet4!$F$2:$J$364,2,FALSE),\"\")","v":""},{"$f":"IFERROR(VLOOKUP(B373,[2]Sheet4!$F$2:$J$364,3,FALSE),\"\")","v":""},{"$f":"IFERROR(VLOOKUP(B373,[2]Sheet4!$F$2:$J$364,4,FALSE),\"\")","v":""},{"$f":"IFERROR(VLOOKUP(B373,[2]Sheet4!$F$2:$J$364,5,FALSE),\"\")","v":""}]
[null,null,{"$f":"IFERROR(VLOOKUP(B374,[2]Sheet4!$F$2:$J$364,2,FALSE),\"\")","v":""},{"$f":"IFERROR(VLOOKUP(B374,[2]Sheet4!$F$2:$J$364,3,FALSE),\"\")","v":""},{"$f":"IFERROR(VLOOKUP(B374,[2]Sheet4!$F$2:$J$364,4,FALSE),\"\")","v":""},{"$f":"IFERROR(VLOOKUP(B374,[2]Sheet4!$F$2:$J$364,5,FALSE),\"\")","v":""}]
[null,null,{"$f":"IFERROR(VLOOKUP(B375,[2]Sheet4!$F$2:$J$364,2,FALSE),\"\")","v":""},{"$f":"IFERROR(VLOOKUP(B375,[2]Sheet4!$F$2:$J$364,3,FALSE),\"\")","v":""},{"$f":"IFERROR(VLOOKUP(B375,[2]Sheet4!$F$2:$J$364,4,FALSE),\"\")","v":""},{"$f":"IFERROR(VLOOKUP(B375,[2]Sheet4!$F$2:$J$364,5,FALSE),\"\")","v":""}]
[null,null,{"$f":"IFERROR(VLOOKUP(B376,[2]Sheet4!$F$2:$J$364,2,FALSE),\"\")","v":""},{"$f":"IFERROR(VLOOKUP(B376,[2]Sheet4!$F$2:$J$364,3,FALSE),\"\")","v":""},{"$f":"IFERROR(VLOOKUP(B376,[2]Sheet4!$F$2:$J$364,4,FALSE),\"\")","v":""},{"$f":"IFERROR(VLOOKUP(B376,[2]Sheet4!$F$2:$J$364,5,FALSE),\"\")","v":""}]
[null,null,{"$f":"IFERROR(VLOOKUP(B377,[2]Sheet4!$F$2:$J$364,2,FALSE),\"\")","v":""},{"$f":"IFERROR(VLOOKUP(B377,[2]Sheet4!$F$2:$J$364,3,FALSE),\"\")","v":""},{"$f":"IFERROR(VLOOKUP(B377,[2]Sheet4!$F$2:$J$364,4,FALSE),\"\")","v":""},{"$f":"IFERROR(VLOOKUP(B377,[2]Sheet4!$F$2:$J$364,5,FALSE),\"\")","v":""}]
[null,null,{"$f":"IFERROR(VLOOKUP(B378,[2]Sheet4!$F$2:$J$364,2,FALSE),\"\")","v":""},{"$f":"IFERROR(VLOOKUP(B378,[2]Sheet4!$F$2:$J$364,3,FALSE),\"\")","v":""},{"$f":"IFERROR(VLOOKUP(B378,[2]Sheet4!$F$2:$J$364,4,FALSE),\"\")","v":""},{"$f":"IFERROR(VLOOKUP(B378,[2]Sheet4!$F$2:$J$364,5,FALSE),\"\")","v":""}]
[null,null,{"$f":"IFERROR(VLOOKUP(B379,[2]Sheet4!$F$2:$J$364,2,FALSE),\"\")","v":""},{"$f":"IFERROR(VLOOKUP(B379,[2]Sheet4!$F$2:$J$364,3,FALSE),\"\")","v":""},{"$f":"IFERROR(VLOOKUP(B379,[2]Sheet4!$F$2:$J$364,4,FALSE),\"\")","v":""},{"$f":"IFERROR(VLOOKUP(B379,[2]Sheet4!$F$2:$J$364,5,FALSE),\"\")","v":""}]
[null,null,{"$f":"IFERROR(VLOOKUP(B380,[2]Sheet4!$F$2:$J$364,2,FALSE),\"\")","v":""},{"$f":"IFERROR(VLOOKUP(B380,[2]Sheet4!$F$2:$J$364,3,FALSE),\"\")","v":""},{"$f":"IFERROR(VLOOKUP(B380,[2]Sheet4!$F$2:$J$364,4,FALSE),\"\")","v":""},{"$f":"IFERROR(VLOOKUP(B380,[2]Sheet4!$F$2:$J$364,5,FALSE),\"\")","v":""}]
[null,null,{"$f":"IFERROR(VLOOKUP(B381,[2]Sheet4!$F$2:$J$364,2,FALSE),\"\")","v":""},{"$f":"IFERROR(VLOOKUP(B381,[2]Sheet4!$F$2:$J$364,3,FALSE),\"\")","v":""},{"$f":"IFERROR(VLOOKUP(B381,[2]Sheet4!$F$2:$J$364,4,FALSE),\"\")","v":""},{"$f":"IFERROR(VLOOKUP(B381,[2]Sheet4!$F$2:$J$364,5,FALSE),\"\")","v":""}]
[null,null,{"$f":"IFERROR(VLOOKUP(B382,[2]Sheet4!$F$2:$J$364,2,FALSE),\"\")","v":""},{"$f":"IFERROR(VLOOKUP(B382,[2]Sheet4!$F$2:$J$364,3,FALSE),\"\")","v":""},{"$f":"IFERROR(VLOOKUP(B382,[2]Sheet4!$F$2:$J$364,4,FALSE),\"\")","v":""},{"$f":"IFERROR(VLOOKUP(B382,[2]Sheet4!$F$2:$J$364,5,FALSE),\"\")","v":""}]
[null,null,{"$f":"IFERROR(VLOOKUP(B383,[2]Sheet4!$F$2:$J$364,2,FALSE),\"\")","v":""},{"$f":"IFERROR(VLOOKUP(B383,[2]Sheet4!$F$2:$J$364,3,FALSE),\"\")","v":""},{"$f":"IFERROR(VLOOKUP(B383,[2]Sheet4!$F$2:$J$364,4,FALSE),\"\")","v":""},{"$f":"IFERROR(VLOOKUP(B383,[2]Sheet4!$F$2:$J$364,5,FALSE),\"\")","v":""}]
[null,null,{"$f":"IFERROR(VLOOKUP(B384,[2]Sheet4!$F$2:$J$364,2,FALSE),\"\")","v":""},{"$f":"IFERROR(VLOOKUP(B384,[2]Sheet4!$F$2:$J$364,3,FALSE),\"\")","v":""},{"$f":"IFERROR(VLOOKUP(B384,[2]Sheet4!$F$2:$J$364,4,FALSE),\"\")","v":""},{"$f":"IFERROR(VLOOKUP(B384,[2]Sheet4!$F$2:$J$364,5,FALSE),\"\")","v":""}]
[null,null,{"$f":"IFERROR(VLOOKUP(B385,[2]Sheet4!$F$2:$J$364,2,FALSE),\"\")","v":""},{"$f":"IFERROR(VLOOKUP(B385,[2]Sheet4!$F$2:$J$364,3,FALSE),\"\")","v":""},{"$f":"IFERROR(VLOOKUP(B385,[2]Sheet4!$F$2:$J$364,4,FALSE),\"\")","v":""},{"$f":"IFERROR(VLOOKUP(B385,[2]Sheet4!$F$2:$J$364,5,FALSE),\"\")","v":""}]
[null,null,{"$f":"IFERROR(VLOOKUP(B386,[2]Sheet4!$F$2:$J$364,2,FALSE),\"\")","v":""},{"$f":"IFERROR(VLOOKUP(B386,[2]Sheet4!$F$2:$J$364,3,FALSE),\"\")","v":""},{"$f":"IFERROR(VLOOKUP(B386,[2]Sheet4!$F$2:$J$364,4,FALSE),\"\")","v":""},{"$f":"IFERROR(VLOOKUP(B386,[2]Sheet4!$F$2:$J$364,5,FALSE),\"\")","v":""}]
[null,null,{"$f":"IFERROR(VLOOKUP(B387,[2]Sheet4!$F$2:$J$364,2,FALSE),\"\")","v":""},{"$f":"IFERROR(VLOOKUP(B387,[2]Sheet4!$F$2:$J$364,3,FALSE),\"\")","v":""},{"$f":"IFERROR(VLOOKUP(B387,[2]Sheet4!$F$2:$J$364,4,FALSE),\"\")","v":""},{"$f":"IFERROR(VLOOKUP(B387,[2]Sheet4!$F$2:$J$364,5,FALSE),\"\")","v":""}]
[null,null,{"$f":"IFERROR(VLOOKUP(B388,[2]Sheet4!$F$2:$J$364,2,FALSE),\"\")","v":""},{"$f":"IFERROR(VLOOKUP(B388,[2]Sheet4!$F$2:$J$364,3,FALSE),\"\")","v":""},{"$f":"IFERROR(VLOOKUP(B388,[2]Sheet4!$F$2:$J$364,4,FALSE),\"\")","v":""},{"$f":"IFERROR(VLOOKUP(B388,[2]Sheet4!$F$2:$J$364,5,FALSE),\"\")","v":""}]
[null,null,{"$f":"IFERROR(VLOOKUP(B389,[2]Sheet4!$F$2:$J$364,2,FALSE),\"\")","v":""},{"$f":"IFERROR(VLOOKUP(B389,[2]Sheet4!$F$2:$J$364,3,FALSE),\"\")","v":""},{"$f":"IFERROR(VLOOKUP(B389,[2]Sheet4!$F$2:$J$364,4,FALSE),\"\")","v":""},{"$f":"IFERROR(VLOOKUP(B389,[2]Sheet4!$F$2:$J$364,5,FALSE),\"\")","v":""}]
[null,null,{"$f":"IFERROR(VLOOKUP(B390,[2]Sheet4!$F$2:$J$364,2,FALSE),\"\")","v":""},{"$f":"IFERROR(VLOOKUP(B390,[2]Sheet4!$F$2:$J$364,3,FALSE),\"\")","v":""},{"$f":"IFERROR(VLOOKUP(B390,[2]Sheet4!$F$2:$J$364,4,FALSE),\"\")","v":""},{"$f":"IFERROR(VLOOKUP(B390,[2]Sheet4!$F$2:$J$364,5,FALSE),\"\")","v":""}]
[null,null,{"$f":"IFERROR(VLOOKUP(B391,[2]Sheet4!$F$2:$J$364,2,FALSE),\"\")","v":""},{"$f":"IFERROR(VLOOKUP(B391,[2]Sheet4!$F$2:$J$364,3,FALSE),\"\")","v":""},{"$f":"IFERROR(VLOOKUP(B391,[2]Sheet4!$F$2:$J$364,4,FALSE),\"\")","v":""},{"$f":"IFERROR(VLOOKUP(B391,[2]Sheet4!$F$2:$J$364,5,FALSE),\"\")","v":""}]
[null,null,{"$f":"IFERROR(VLOOKUP(B392,[2]Sheet4!$F$2:$J$364,2,FALSE),\"\")","v":""},{"$f":"IFERROR(VLOOKUP(B392,[2]Sheet4!$F$2:$J$364,3,FALSE),\"\")","v":""},{"$f":"IFERROR(VLOOKUP(B392,[2]Sheet4!$F$2:$J$364,4,FALSE),\"\")","v":""},{"$f":"IFERROR(VLOOKUP(B392,[2]Sheet4!$F$2:$J$364,5,FALSE),\"\")","v":""}]
[null,null,{"$f":"IFERROR(VLOOKUP(B393,[2]Sheet4!$F$2:$J$364,2,FALSE),\"\")","v":""},{"$f":"IFERROR(VLOOKUP(B393,[2]Sheet4!$F$2:$J$364,3,FALSE),\"\")","v":""},{"$f":"IFERROR(VLOOKUP(B393,[2]Sheet4!$F$2:$J$364,4,FALSE),\"\")","v":""},{"$f":"IFERROR(VLOOKUP(B393,[2]Sheet4!$F$2:$J$364,5,FALSE),\"\")","v":""}]
[null,null,{"$f":"IFERROR(VLOOKUP(B394,[2]Sheet4!$F$2:$J$364,2,FALSE),\"\")","v":""},{"$f":"IFERROR(VLOOKUP(B394,[2]Sheet4!$F$2:$J$364,3,FALSE),\"\")","v":""},{"$f":"IFERROR(VLOOKUP(B394,[2]Sheet4!$F$2:$J$364,4,FALSE),\"\")","v":""},{"$f":"IFERROR(VLOOKUP(B394,[2]Sheet4!$F$2:$J$364,5,FALSE),\"\")","v":""}]
[null,null,{"$f":"IFERROR(VLOOKUP(B395,[2]Sheet4!$F$2:$J$364,2,FALSE),\"\")","v":""},{"$f":"IFERROR(VLOOKUP(B395,[2]Sheet4!$F$2:$J$364,3,FALSE),\"\")","v":""},{"$f":"IFERROR(VLOOKUP(B395,[2]Sheet4!$F$2:$J$364,4,FALSE),\"\")","v":""},{"$f":"IFERROR(VLOOKUP(B395,[2]Sheet4!$F$2:$J$364,5,FALSE),\"\")","v":""}]
[null,null,{"$f":"IFERROR(VLOOKUP(B396,[2]Sheet4!$F$2:$J$364,2,FALSE),\"\")","v":""},{"$f":"IFERROR(VLOOKUP(B396,[2]Sheet4!$F$2:$J$364,3,FALSE),\"\")","v":""},{"$f":"IFERROR(VLOOKUP(B396,[2]Sheet4!$F$2:$J$364,4,FALSE),\"\")","v":""},{"$f":"IFERROR(VLOOKUP(B396,[2]Sheet4!$F$2:$J$364,5,FALSE),\"\")","v":""}]
[null,null,{"$f":"IFERROR(VLOOKUP(B397,[2]Sheet4!$F$2:$J$364,2,FALSE),\"\")","v":""},{"$f":"IFERROR(VLOOKUP(B397,[2]Sheet4!$F$2:$J$364,3,FALSE),\"\")","v":""},{"$f":"IFERROR(VLOOKUP(B397,[2]Sheet4!$F$2:$J$364,4,FALSE),\"\")","v":""},{"$f":"IFERROR(VLOOKUP(B397,[2]Sheet4!$F$2:$J$364,5,FALSE),\"\")","v":""}]
[null,null,{"$f":"IFERROR(VLOOKUP(B398,[2]Sheet4!$F$2:$J$364,2,FALSE),\"\")","v":""},{"$f":"IFERROR(VLOOKUP(B398,[2]Sheet4!$F$2:$J$364,3,FALSE),\"\")","v":""},{"$f":"IFERROR(VLOOKUP(B398,[2]Sheet4!$F$2:$J$364,4,FALSE),\"\")","v":""},{"$f":"IFERROR(VLOOKUP(B398,[2]Sheet4!$F$2:$J$364,5,FALSE),\"\")","v":""}]
[null,null,{"$f":"IFERROR(VLOOKUP(B399,[2]Sheet4!$F$2:$J$364,2,FALSE),\"\")","v":""},{"$f":"IFERROR(VLOOKUP(B399,[2]Sheet4!$F$2:$J$364,3,FALSE),\"\")","v":""},{"$f":"IFERROR(VLOOKUP(B399,[2]Sheet4!$F$2:$J$364,4,FALSE),\"\")","v":""},{"$f":"IFERROR(VLOOKUP(B399,[2]Sheet4!$F$2:$J$364,5,FALSE),\"\")","v":""}]
[null,null,{"$f":"IFERROR(VLOOKUP(B400,[2]Sheet4!$F$2:$J$364,2,FALSE),\"\")","v":""},{"$f":"IFERROR(VLOOKUP(B400,[2]Sheet4!$F$2:$J$364,3,FALSE),\"\")","v":""},{"$f":"IFERROR(VLOOKUP(B400,[2]Sheet4!$F$2:$J$364,4,FALSE),\"\")","v":""},{"$f":"IFERROR(VLOOKUP(B400,[2]Sheet4!$F$2:$J$364,5,FALSE),\"\")","v":""}]
[null,null,{"$f":"IFERROR(VLOOKUP(B401,[2]Sheet4!$F$2:$J$364,2,FALSE),\"\")","v":""},{"$f":"IFERROR(VLOOKUP(B401,[2]Sheet4!$F$2:$J$364,3,FALSE),\"\")","v":""},{"$f":"IFERROR(VLOOKUP(B401,[2]Sheet4!$F$2:$J$364,4,FALSE),\"\")","v":""},{"$f":"IFERROR(VLOOKUP(B401,[2]Sheet4!$F$2:$J$364,5,FALSE),\"\")","v":""}]
[null,null,{"$f":"IFERROR(VLOOKUP(B402,[2]Sheet4!$F$2:$J$364,2,FALSE),\"\")","v":""},{"$f":"IFERROR(VLOOKUP(B402,[2]Sheet4!$F$2:$J$364,3,FALSE),\"\")","v":""},{"$f":"IFERROR(VLOOKUP(B402,[2]Sheet4!$F$2:$J$364,4,FALSE),\"\")","v":""},{"$f":"IFERROR(VLOOKUP(B402,[2]Sheet4!$F$2:$J$364,5,FALSE),\"\")","v":""}]
[null,null,{"$f":"IFERROR(VLOOKUP(B403,[2]Sheet4!$F$2:$J$364,2,FALSE),\"\")","v":""},{"$f":"IFERROR(VLOOKUP(B403,[2]Sheet4!$F$2:$J$364,3,FALSE),\"\")","v":""},{"$f":"IFERROR(VLOOKUP(B403,[2]Sheet4!$F$2:$J$364,4,FALSE),\"\")","v":""},{"$f":"IFERROR(VLOOKUP(B403,[2]Sheet4!$F$2:$J$364,5,FALSE),\"\")","v":""}]
[null,null,{"$f":"IFERROR(VLOOKUP(B404,[2]Sheet4!$F$2:$J$364,2,FALSE),\"\")","v":""},{"$f":"IFERROR(VLOOKUP(B404,[2]Sheet4!$F$2:$J$364,3,FALSE),\"\")","v":""},{"$f":"IFERROR(VLOOKUP(B404,[2]Sheet4!$F$2:$J$364,4,FALSE),\"\")","v":""},{"$f":"IFERROR(VLOOKUP(B404,[2]Sheet4!$F$2:$J$364,5,FALSE),\"\")","v":""}]
[null,null,{"$f":"IFERROR(VLOOKUP(B405,[2]Sheet4!$F$2:$J$364,2,FALSE),\"\")","v":""},{"$f":"IFERROR(VLOOKUP(B405,[2]Sheet4!$F$2:$J$364,3,FALSE),\"\")","v":""},{"$f":"IFERROR(VLOOKUP(B405,[2]Sheet4!$F$2:$J$364,4,FALSE),\"\")","v":""},{"$f":"IFERROR(VLOOKUP(B405,[2]Sheet4!$F$2:$J$364,5,FALSE),\"\")","v":""}]
[null,null,{"$f":"IFERROR(VLOOKUP(B406,[2]Sheet4!$F$2:$J$364,2,FALSE),\"\")","v":""},{"$f":"IFERROR(VLOOKUP(B406,[2]Sheet4!$F$2:$J$364,3,FALSE),\"\")","v":""},{"$f":"IFERROR(VLOOKUP(B406,[2]Sheet4!$F$2:$J$364,4,FALSE),\"\")","v":""},{"$f":"IFERROR(VLOOKUP(B406,[2]Sheet4!$F$2:$J$364,5,FALSE),\"\")","v":""}]
[null,null,{"$f":"IFERROR(VLOOKUP(B407,[2]Sheet4!$F$2:$J$364,2,FALSE),\"\")","v":""},{"$f":"IFERROR(VLOOKUP(B407,[2]Sheet4!$F$2:$J$364,3,FALSE),\"\")","v":""},{"$f":"IFERROR(VLOOKUP(B407,[2]Sheet4!$F$2:$J$364,4,FALSE),\"\")","v":""},{"$f":"IFERROR(VLOOKUP(B407,[2]Sheet4!$F$2:$J$364,5,FALSE),\"\")","v":""}]
[null,null,{"$f":"IFERROR(VLOOKUP(B408,[2]Sheet4!$F$2:$J$364,2,FALSE),\"\")","v":""},{"$f":"IFERROR(VLOOKUP(B408,[2]Sheet4!$F$2:$J$364,3,FALSE),\"\")","v":""},{"$f":"IFERROR(VLOOKUP(B408,[2]Sheet4!$F$2:$J$364,4,FALSE),\"\")","v":""},{"$f":"IFERROR(VLOOKUP(B408,[2]Sheet4!$F$2:$J$364,5,FALSE),\"\")","v":""}]
[null,null,{"$f":"IFERROR(VLOOKUP(B409,[2]Sheet4!$F$2:$J$364,2,FALSE),\"\")","v":""},{"$f":"IFERROR(VLOOKUP(B409,[2]Sheet4!$F$2:$J$364,3,FALSE),\"\")","v":""},{"$f":"IFERROR(VLOOKUP(B409,[2]Sheet4!$F$2:$J$364,4,FALSE),\"\")","v":""},{"$f":"IFERROR(VLOOKUP(B409,[2]Sheet4!$F$2:$J$364,5,FALSE),\"\")","v":""}]
[null,null,{"$f":"IFERROR(VLOOKUP(B410,[2]Sheet4!$F$2:$J$364,2,FALSE),\"\")","v":""},{"$f":"IFERROR(VLOOKUP(B410,[2]Sheet4!$F$2:$J$364,3,FALSE),\"\")","v":""},{"$f":"IFERROR(VLOOKUP(B410,[2]Sheet4!$F$2:$J$364,4,FALSE),\"\")","v":""},{"$f":"IFERROR(VLOOKUP(B410,[2]Sheet4!$F$2:$J$364,5,FALSE),\"\")","v":""}]
[null,null,{"$f":"IFERROR(VLOOKUP(B411,[2]Sheet4!$F$2:$J$364,2,FALSE),\"\")","v":""},{"$f":"IFERROR(VLOOKUP(B411,[2]Sheet4!$F$2:$J$364,3,FALSE),\"\")","v":""},{"$f":"IFERROR(VLOOKUP(B411,[2]Sheet4!$F$2:$J$364,4,FALSE),\"\")","v":""},{"$f":"IFERROR(VLOOKUP(B411,[2]Sheet4!$F$2:$J$364,5,FALSE),\"\")","v":""}]
[null,null,{"$f":"IFERROR(VLOOKUP(B412,[2]Sheet4!$F$2:$J$364,2,FALSE),\"\")","v":""},{"$f":"IFERROR(VLOOKUP(B412,[2]Sheet4!$F$2:$J$364,3,FALSE),\"\")","v":""},{"$f":"IFERROR(VLOOKUP(B412,[2]Sheet4!$F$2:$J$364,4,FALSE),\"\")","v":""},{"$f":"IFERROR(VLOOKUP(B412,[2]Sheet4!$F$2:$J$364,5,FALSE),\"\")","v":""}]
[null,null,{"$f":"IFERROR(VLOOKUP(B413,[2]Sheet4!$F$2:$J$364,2,FALSE),\"\")","v":""},{"$f":"IFERROR(VLOOKUP(B413,[2]Sheet4!$F$2:$J$364,3,FALSE),\"\")","v":""},{"$f":"IFERROR(VLOOKUP(B413,[2]Sheet4!$F$2:$J$364,4,FALSE),\"\")","v":""},{"$f":"IFERROR(VLOOKUP(B413,[2]Sheet4!$F$2:$J$364,5,FALSE),\"\")","v":""}]
[null,null,{"$f":"IFERROR(VLOOKUP(B414,[2]Sheet4!$F$2:$J$364,2,FALSE),\"\")","v":""},{"$f":"IFERROR(VLOOKUP(B414,[2]Sheet4!$F$2:$J$364,3,FALSE),\"\")","v":""},{"$f":"IFERROR(VLOOKUP(B414,[2]Sheet4!$F$2:$J$364,4,FALSE),\"\")","v":""},{"$f":"IFERROR(VLOOKUP(B414,[2]Sheet4!$F$2:$J$364,5,FALSE),\"\")","v":""}]
[null,null,{"$f":"IFERROR(VLOOKUP(B415,[2]Sheet4!$F$2:$J$364,2,FALSE),\"\")","v":""},{"$f":"IFERROR(VLOOKUP(B415,[2]Sheet4!$F$2:$J$364,3,FALSE),\"\")","v":""},{"$f":"IFERROR(VLOOKUP(B415,[2]Sheet4!$F$2:$J$364,4,FALSE),\"\")","v":""},{"$f":"IFERROR(VLOOKUP(B415,[2]Sheet4!$F$2:$J$364,5,FALSE),\"\")","v":""}]
[null,null,{"$f":"IFERROR(VLOOKUP(B416,[2]Sheet4!$F$2:$J$364,2,FALSE),\"\")","v":""},{"$f":"IFERROR(VLOOKUP(B416,[2]Sheet4!$F$2:$J$364,3,FALSE),\"\")","v":""},{"$f":"IFERROR(VLOOKUP(B416,[2]Sheet4!$F$2:$J$364,4,FALSE),\"\")","v":""},{"$f":"IFERROR(VLOOKUP(B416,[2]Sheet4!$F$2:$J$364,5,FALSE),\"\")","v":""}]
[null,null,{"$f":"IFERROR(VLOOKUP(B417,[2]Sheet4!$F$2:$J$364,2,FALSE),\"\")","v":""},{"$f":"IFERROR(VLOOKUP(B417,[2]Sheet4!$F$2:$J$364,3,FALSE),\"\")","v":""},{"$f":"IFERROR(VLOOKUP(B417,[2]Sheet4!$F$2:$J$364,4,FALSE),\"\")","v":""},{"$f":"IFERROR(VLOOKUP(B417,[2]Sheet4!$F$2:$J$364,5,FALSE),\"\")","v":""}]
[null,null,{"$f":"IFERROR(VLOOKUP(B418,[2]Sheet4!$F$2:$J$364,2,FALSE),\"\")","v":""},{"$f":"IFERROR(VLOOKUP(B418,[2]Sheet4!$F$2:$J$364,3,FALSE),\"\")","v":""},{"$f":"IFERROR(VLOOKUP(B418,[2]Sheet4!$F$2:$J$364,4,FALSE),\"\")","v":""},{"$f":"IFERROR(VLOOKUP(B418,[2]Sheet4!$F$2:$J$364,5,FALSE),\"\")","v":""}]
[null,null,{"$f":"IFERROR(VLOOKUP(B419,[2]Sheet4!$F$2:$J$364,2,FALSE),\"\")","v":""},{"$f":"IFERROR(VLOOKUP(B419,[2]Sheet4!$F$2:$J$364,3,FALSE),\"\")","v":""},{"$f":"IFERROR(VLOOKUP(B419,[2]Sheet4!$F$2:$J$364,4,FALSE),\"\")","v":""},{"$f":"IFERROR(VLOOKUP(B419,[2]Sheet4!$F$2:$J$364,5,FALSE),\"\")","v":""}]
[null,null,{"$f":"IFERROR(VLOOKUP(B420,[2]Sheet4!$F$2:$J$364,2,FALSE),\"\")","v":""},{"$f":"IFERROR(VLOOKUP(B420,[2]Sheet4!$F$2:$J$364,3,FALSE),\"\")","v":""},{"$f":"IFERROR(VLOOKUP(B420,[2]Sheet4!$F$2:$J$364,4,FALSE),\"\")","v":""},{"$f":"IFERROR(VLOOKUP(B420,[2]Sheet4!$F$2:$J$364,5,FALSE),\"\")","v":""}]
[null,null,{"$f":"IFERROR(VLOOKUP(B421,[2]Sheet4!$F$2:$J$364,2,FALSE),\"\")","v":""},{"$f":"IFERROR(VLOOKUP(B421,[2]Sheet4!$F$2:$J$364,3,FALSE),\"\")","v":""},{"$f":"IFERROR(VLOOKUP(B421,[2]Sheet4!$F$2:$J$364,4,FALSE),\"\")","v":""},{"$f":"IFERROR(VLOOKUP(B421,[2]Sheet4!$F$2:$J$364,5,FALSE),\"\")","v":""}]
[null,null,{"$f":"IFERROR(VLOOKUP(B422,[2]Sheet4!$F$2:$J$364,2,FALSE),\"\")","v":""},{"$f":"IFERROR(VLOOKUP(B422,[2]Sheet4!$F$2:$J$364,3,FALSE),\"\")","v":""},{"$f":"IFERROR(VLOOKUP(B422,[2]Sheet4!$F$2:$J$364,4,FALSE),\"\")","v":""},{"$f":"IFERROR(VLOOKUP(B422,[2]Sheet4!$F$2:$J$364,5,FALSE),\"\")","v":""}]
[null,null,{"$f":"IFERROR(VLOOKUP(B423,[2]Sheet4!$F$2:$J$364,2,FALSE),\"\")","v":""},{"$f":"IFERROR(VLOOKUP(B423,[2]Sheet4!$F$2:$J$364,3,FALSE),\"\")","v":""},{"$f":"IFERROR(VLOOKUP(B423,[2]Sheet4!$F$2:$J$364,4,FALSE),\"\")","v":""},{"$f":"IFERROR(VLOOKUP(B423,[2]Sheet4!$F$2:$J$364,5,FALSE),\"\")","v":""}]
[null,null,{"$f":"IFERROR(VLOOKUP(B424,[2]Sheet4!$F$2:$J$364,2,FALSE),\"\")","v":""},{"$f":"IFERROR(VLOOKUP(B424,[2]Sheet4!$F$2:$J$364,3,FALSE),\"\")","v":""},{"$f":"IFERROR(VLOOKUP(B424,[2]Sheet4!$F$2:$J$364,4,FALSE),\"\")","v":""},{"$f":"IFERROR(VLOOKUP(B424,[2]Sheet4!$F$2:$J$364,5,FALSE),\"\")","v":""}]
[null,null,{"$f":"IFERROR(VLOOKUP(B425,[2]Sheet4!$F$2:$J$364,2,FALSE),\"\")","v":""},{"$f":"IFERROR(VLOOKUP(B425,[2]Sheet4!$F$2:$J$364,3,FALSE),\"\")","v":""},{"$f":"IFERROR(VLOOKUP(B425,[2]Sheet4!$F$2:$J$364,4,FALSE),\"\")","v":""},{"$f":"IFERROR(VLOOKUP(B425,[2]Sheet4!$F$2:$J$364,5,FALSE),\"\")","v":""}]
[null,null,{"$f":"IFERROR(VLOOKUP(B426,[2]Sheet4!$F$2:$J$364,2,FALSE),\"\")","v":""},{"$f":"IFERROR(VLOOKUP(B426,[2]Sheet4!$F$2:$J$364,3,FALSE),\"\")","v":""},{"$f":"IFERROR(VLOOKUP(B426,[2]Sheet4!$F$2:$J$364,4,FALSE),\"\")","v":""},{"$f":"IFERROR(VLOOKUP(B426,[2]Sheet4!$F$2:$J$364,5,FALSE),\"\")","v":""}]
[null,null,{"$f":"IFERROR(VLOOKUP(B427,[2]Sheet4!$F$2:$J$364,2,FALSE),\"\")","v":""},{"$f":"IFERROR(VLOOKUP(B427,[2]Sheet4!$F$2:$J$364,3,FALSE),\"\")","v":""},{"$f":"IFERROR(VLOOKUP(B427,[2]Sheet4!$F$2:$J$364,4,FALSE),\"\")","v":""},{"$f":"IFERROR(VLOOKUP(B427,[2]Sheet4!$F$2:$J$364,5,FALSE),\"\")","v":""}]
[null,null,{"$f":"IFERROR(VLOOKUP(B428,[2]Sheet4!$F$2:$J$364,2,FALSE),\"\")","v":""},{"$f":"IFERROR(VLOOKUP(B428,[2]Sheet4!$F$2:$J$364,3,FALSE),\"\")","v":""},{"$f":"IFERROR(VLOOKUP(B428,[2]Sheet4!$F$2:$J$364,4,FALSE),\"\")","v":""},{"$f":"IFERROR(VLOOKUP(B428,[2]Sheet4!$F$2:$J$364,5,FALSE),\"\")","v":""}]
[null,null,{"$f":"IFERROR(VLOOKUP(B429,[2]Sheet4!$F$2:$J$364,2,FALSE),\"\")","v":""},{"$f":"IFERROR(VLOOKUP(B429,[2]Sheet4!$F$2:$J$364,3,FALSE),\"\")","v":""},{"$f":"IFERROR(VLOOKUP(B429,[2]Sheet4!$F$2:$J$364,4,FALSE),\"\")","v":""},{"$f":"IFERROR(VLOOKUP(B429,[2]Sheet4!$F$2:$J$364,5,FALSE),\"\")","v":""}]
[null,null,{"$f":"IFERROR(VLOOKUP(B430,[2]Sheet4!$F$2:$J$364,2,FALSE),\"\")","v":""},{"$f":"IFERROR(VLOOKUP(B430,[2]Sheet4!$F$2:$J$364,3,FALSE),\"\")","v":""},{"$f":"IFERROR(VLOOKUP(B430,[2]Sheet4!$F$2:$J$364,4,FALSE),\"\")","v":""},{"$f":"IFERROR(VLOOKUP(B430,[2]Sheet4!$F$2:$J$364,5,FALSE),\"\")","v":""}]
[null,null,{"$f":"IFERROR(VLOOKUP(B431,[2]Sheet4!$F$2:$J$364,2,FALSE),\"\")","v":""},{"$f":"IFERROR(VLOOKUP(B431,[2]Sheet4!$F$2:$J$364,3,FALSE),\"\")","v":""},{"$f":"IFERROR(VLOOKUP(B431,[2]Sheet4!$F$2:$J$364,4,FALSE),\"\")","v":""},{"$f":"IFERROR(VLOOKUP(B431,[2]Sheet4!$F$2:$J$364,5,FALSE),\"\")","v":""}]
[null,null,{"$f":"IFERROR(VLOOKUP(B432,[2]Sheet4!$F$2:$J$364,2,FALSE),\"\")","v":""},{"$f":"IFERROR(VLOOKUP(B432,[2]Sheet4!$F$2:$J$364,3,FALSE),\"\")","v":""},{"$f":"IFERROR(VLOOKUP(B432,[2]Sheet4!$F$2:$J$364,4,FALSE),\"\")","v":""},{"$f":"IFERROR(VLOOKUP(B432,[2]Sheet4!$F$2:$J$364,5,FALSE),\"\")","v":""}]
[null,null,{"$f":"IFERROR(VLOOKUP(B433,[2]Sheet4!$F$2:$J$364,2,FALSE),\"\")","v":""},{"$f":"IFERROR(VLOOKUP(B433,[2]Sheet4!$F$2:$J$364,3,FALSE),\"\")","v":""},{"$f":"IFERROR(VLOOKUP(B433,[2]Sheet4!$F$2:$J$364,4,FALSE),\"\")","v":""},{"$f":"IFERROR(VLOOKUP(B433,[2]Sheet4!$F$2:$J$364,5,FALSE),\"\")","v":""}]
[null,null,{"$f":"IFERROR(VLOOKUP(B434,[2]Sheet4!$F$2:$J$364,2,FALSE),\"\")","v":""},{"$f":"IFERROR(VLOOKUP(B434,[2]Sheet4!$F$2:$J$364,3,FALSE),\"\")","v":""},{"$f":"IFERROR(VLOOKUP(B434,[2]Sheet4!$F$2:$J$364,4,FALSE),\"\")","v":""},{"$f":"IFERROR(VLOOKUP(B434,[2]Sheet4!$F$2:$J$364,5,FALSE),\"\")","v":""}]
[null,null,{"$f":"IFERROR(VLOOKUP(B435,[2]Sheet4!$F$2:$J$364,2,FALSE),\"\")","v":""},{"$f":"IFERROR(VLOOKUP(B435,[2]Sheet4!$F$2:$J$364,3,FALSE),\"\")","v":""},{"$f":"IFERROR(VLOOKUP(B435,[2]Sheet4!$F$2:$J$364,4,FALSE),\"\")","v":""},{"$f":"IFERROR(VLOOKUP(B435,[2]Sheet4!$F$2:$J$364,5,FALSE),\"\")","v":""}]
[null,null,{"$f":"IFERROR(VLOOKUP(B436,[2]Sheet4!$F$2:$J$364,2,FALSE),\"\")","v":""},{"$f":"IFERROR(VLOOKUP(B436,[2]Sheet4!$F$2:$J$364,3,FALSE),\"\")","v":""},{"$f":"IFERROR(VLOOKUP(B436,[2]Sheet4!$F$2:$J$364,4,FALSE),\"\")","v":""},{"$f":"IFERROR(VLOOKUP(B436,[2]Sheet4!$F$2:$J$364,5,FALSE),\"\")","v":""}]
[null,null,{"$f":"IFERROR(VLOOKUP(B437,[2]Sheet4!$F$2:$J$364,2,FALSE),\"\")","v":""},{"$f":"IFERROR(VLOOKUP(B437,[2]Sheet4!$F$2:$J$364,3,FALSE),\"\")","v":""},{"$f":"IFERROR(VLOOKUP(B437,[2]Sheet4!$F$2:$J$364,4,FALSE),\"\")","v":""},{"$f":"IFERROR(VLOOKUP(B437,[2]Sheet4!$F$2:$J$364,5,FALSE),\"\")","v":""}]
[null,null,{"$f":"IFERROR(VLOOKUP(B438,[2]Sheet4!$F$2:$J$364,2,FALSE),\"\")","v":""},{"$f":"IFERROR(VLOOKUP(B438,[2]Sheet4!$F$2:$J$364,3,FALSE),\"\")","v":""},{"$f":"IFERROR(VLOOKUP(B438,[2]Sheet4!$F$2:$J$364,4,FALSE),\"\")","v":""},{"$f":"IFERROR(VLOOKUP(B438,[2]Sheet4!$F$2:$J$364,5,FALSE),\"\")","v":""}]
[null,null,{"$f":"IFERROR(VLOOKUP(B439,[2]Sheet4!$F$2:$J$364,2,FALSE),\"\")","v":""},{"$f":"IFERROR(VLOOKUP(B439,[2]Sheet4!$F$2:$J$364,3,FALSE),\"\")","v":""},{"$f":"IFERROR(VLOOKUP(B439,[2]Sheet4!$F$2:$J$364,4,FALSE),\"\")","v":""},{"$f":"IFERROR(VLOOKUP(B439,[2]Sheet4!$F$2:$J$364,5,FALSE),\"\")","v":""}]
[null,null,{"$f":"IFERROR(VLOOKUP(B440,[2]Sheet4!$F$2:$J$364,2,FALSE),\"\")","v":""},{"$f":"IFERROR(VLOOKUP(B440,[2]Sheet4!$F$2:$J$364,3,FALSE),\"\")","v":""},{"$f":"IFERROR(VLOOKUP(B440,[2]Sheet4!$F$2:$J$364,4,FALSE),\"\")","v":""},{"$f":"IFERROR(VLOOKUP(B440,[2]Sheet4!$F$2:$J$364,5,FALSE),\"\")","v":""}]
[null,null,{"$f":"IFERROR(VLOOKUP(B441,[2]Sheet4!$F$2:$J$364,2,FALSE),\"\")","v":""},{"$f":"IFERROR(VLOOKUP(B441,[2]Sheet4!$F$2:$J$364,3,FALSE),\"\")","v":""},{"$f":"IFERROR(VLOOKUP(B441,[2]Sheet4!$F$2:$J$364,4,FALSE),\"\")","v":""},{"$f":"IFERROR(VLOOKUP(B441,[2]Sheet4!$F$2:$J$364,5,FALSE),\"\")","v":""}]
[null,null,{"$f":"IFERROR(VLOOKUP(B442,[2]Sheet4!$F$2:$J$364,2,FALSE),\"\")","v":""},{"$f":"IFERROR(VLOOKUP(B442,[2]Sheet4!$F$2:$J$364,3,FALSE),\"\")","v":""},{"$f":"IFERROR(VLOOKUP(B442,[2]Sheet4!$F$2:$J$364,4,FALSE),\"\")","v":""},{"$f":"IFERROR(VLOOKUP(B442,[2]Sheet4!$F$2:$J$364,5,FALSE),\"\")","v":""}]
[null,null,{"$f":"IFERROR(VLOOKUP(B443,[2]Sheet4!$F$2:$J$364,2,FALSE),\"\")","v":""},{"$f":"IFERROR(VLOOKUP(B443,[2]Sheet4!$F$2:$J$364,3,FALSE),\"\")","v":""},{"$f":"IFERROR(VLOOKUP(B443,[2]Sheet4!$F$2:$J$364,4,FALSE),\"\")","v":""},{"$f":"IFERROR(VLOOKUP(B443,[2]Sheet4!$F$2:$J$364,5,FALSE),\"\")","v":""}]
[null,null,{"$f":"IFERROR(VLOOKUP(B444,[2]Sheet4!$F$2:$J$364,2,FALSE),\"\")","v":""},{"$f":"IFERROR(VLOOKUP(B444,[2]Sheet4!$F$2:$J$364,3,FALSE),\"\")","v":""},{"$f":"IFERROR(VLOOKUP(B444,[2]Sheet4!$F$2:$J$364,4,FALSE),\"\")","v":""},{"$f":"IFERROR(VLOOKUP(B444,[2]Sheet4!$F$2:$J$364,5,FALSE),\"\")","v":""}]
[null,null,{"$f":"IFERROR(VLOOKUP(B445,[2]Sheet4!$F$2:$J$364,2,FALSE),\"\")","v":""},{"$f":"IFERROR(VLOOKUP(B445,[2]Sheet4!$F$2:$J$364,3,FALSE),\"\")","v":""},{"$f":"IFERROR(VLOOKUP(B445,[2]Sheet4!$F$2:$J$364,4,FALSE),\"\")","v":""},{"$f":"IFERROR(VLOOKUP(B445,[2]Sheet4!$F$2:$J$364,5,FALSE),\"\")","v":""}]
[null,null,{"$f":"IFERROR(VLOOKUP(B446,[2]Sheet4!$F$2:$J$364,2,FALSE),\"\")","v":""},{"$f":"IFERROR(VLOOKUP(B446,[2]Sheet4!$F$2:$J$364,3,FALSE),\"\")","v":""},{"$f":"IFERROR(VLOOKUP(B446,[2]Sheet4!$F$2:$J$364,4,FALSE),\"\")","v":""},{"$f":"IFERROR(VLOOKUP(B446,[2]Sheet4!$F$2:$J$364,5,FALSE),\"\")","v":""}]
[null,null,{"$f":"IFERROR(VLOOKUP(B447,[2]Sheet4!$F$2:$J$364,2,FALSE),\"\")","v":""},{"$f":"IFERROR(VLOOKUP(B447,[2]Sheet4!$F$2:$J$364,3,FALSE),\"\")","v":""},{"$f":"IFERROR(VLOOKUP(B447,[2]Sheet4!$F$2:$J$364,4,FALSE),\"\")","v":""},{"$f":"IFERROR(VLOOKUP(B447,[2]Sheet4!$F$2:$J$364,5,FALSE),\"\")","v":""}]
[null,null,{"$f":"IFERROR(VLOOKUP(B448,[2]Sheet4!$F$2:$J$364,2,FALSE),\"\")","v":""},{"$f":"IFERROR(VLOOKUP(B448,[2]Sheet4!$F$2:$J$364,3,FALSE),\"\")","v":""},{"$f":"IFERROR(VLOOKUP(B448,[2]Sheet4!$F$2:$J$364,4,FALSE),\"\")","v":""},{"$f":"IFERROR(VLOOKUP(B448,[2]Sheet4!$F$2:$J$364,5,FALSE),\"\")","v":""}]
[null,null,{"$f":"IFERROR(VLOOKUP(B449,[2]Sheet4!$F$2:$J$364,2,FALSE),\"\")","v":""},{"$f":"IFERROR(VLOOKUP(B449,[2]Sheet4!$F$2:$J$364,3,FALSE),\"\")","v":""},{"$f":"IFERROR(VLOOKUP(B449,[2]Sheet4!$F$2:$J$364,4,FALSE),\"\")","v":""},{"$f":"IFERROR(VLOOKUP(B449,[2]Sheet4!$F$2:$J$364,5,FALSE),\"\")","v":""}]
[null,null,{"$f":"IFERROR(VLOOKUP(B450,[2]Sheet4!$F$2:$J$364,2,FALSE),\"\")","v":""},{"$f":"IFERROR(VLOOKUP(B450,[2]Sheet4!$F$2:$J$364,3,FALSE),\"\")","v":""},{"$f":"IFERROR(VLOOKUP(B450,[2]Sheet4!$F$2:$J$364,4,FALSE),\"\")","v":""},{"$f":"IFERROR(VLOOKUP(B450,[2]Sheet4!$F$2:$J$364,5,FALSE),\"\")","v":""}]
[null,null,{"$f":"IFERROR(VLOOKUP(B451,[2]Sheet4!$F$2:$J$364,2,FALSE),\"\")","v":""},{"$f":"IFERROR(VLOOKUP(B451,[2]Sheet4!$F$2:$J$364,3,FALSE),\"\")","v":""},{"$f":"IFERROR(VLOOKUP(B451,[2]Sheet4!$F$2:$J$364,4,FALSE),\"\")","v":""},{"$f":"IFERROR(VLOOKUP(B451,[2]Sheet4!$F$2:$J$364,5,FALSE),\"\")","v":""}]
[null,null,{"$f":"IFERROR(VLOOKUP(B452,[2]Sheet4!$F$2:$J$364,2,FALSE),\"\")","v":""},{"$f":"IFERROR(VLOOKUP(B452,[2]Sheet4!$F$2:$J$364,3,FALSE),\"\")","v":""},{"$f":"IFERROR(VLOOKUP(B452,[2]Sheet4!$F$2:$J$364,4,FALSE),\"\")","v":""},{"$f":"IFERROR(VLOOKUP(B452,[2]Sheet4!$F$2:$J$364,5,FALSE),\"\")","v":""}]
[null,null,{"$f":"IFERROR(VLOOKUP(B453,[2]Sheet4!$F$2:$J$364,2,FALSE),\"\")","v":""},{"$f":"IFERROR(VLOOKUP(B453,[2]Sheet4!$F$2:$J$364,3,FALSE),\"\")","v":""},{"$f":"IFERROR(VLOOKUP(B453,[2]Sheet4!$F$2:$J$364,4,FALSE),\"\")","v":""},{"$f":"IFERROR(VLOOKUP(B453,[2]Sheet4!$F$2:$J$364,5,FALSE),\"\")","v":""}]
[null,null,{"$f":"IFERROR(VLOOKUP(B454,[2]Sheet4!$F$2:$J$364,2,FALSE),\"\")","v":""},{"$f":"IFERROR(VLOOKUP(B454,[2]Sheet4!$F$2:$J$364,3,FALSE),\"\")","v":""},{"$f":"IFERROR(VLOOKUP(B454,[2]Sheet4!$F$2:$J$364,4,FALSE),\"\")","v":""},{"$f":"IFERROR(VLOOKUP(B454,[2]Sheet4!$F$2:$J$364,5,FALSE),\"\")","v":""}]
[null,null,{"$f":"IFERROR(VLOOKUP(B455,[2]Sheet4!$F$2:$J$364,2,FALSE),\"\")","v":""},{"$f":"IFERROR(VLOOKUP(B455,[2]Sheet4!$F$2:$J$364,3,FALSE),\"\")","v":""},{"$f":"IFERROR(VLOOKUP(B455,[2]Sheet4!$F$2:$J$364,4,FALSE),\"\")","v":""},{"$f":"IFERROR(VLOOKUP(B455,[2]Sheet4!$F$2:$J$364,5,FALSE),\"\")","v":""}]
[null,null,{"$f":"IFERROR(VLOOKUP(B456,[2]Sheet4!$F$2:$J$364,2,FALSE),\"\")","v":""},{"$f":"IFERROR(VLOOKUP(B456,[2]Sheet4!$F$2:$J$364,3,FALSE),\"\")","v":""},{"$f":"IFERROR(VLOOKUP(B456,[2]Sheet4!$F$2:$J$364,4,FALSE),\"\")","v":""},{"$f":"IFERROR(VLOOKUP(B456,[2]Sheet4!$F$2:$J$364,5,FALSE),\"\")","v":""}]
[null,null,{"$f":"IFERROR(VLOOKUP(B457,[2]Sheet4!$F$2:$J$364,2,FALSE),\"\")","v":""},{"$f":"IFERROR(VLOOKUP(B457,[2]Sheet4!$F$2:$J$364,3,FALSE),\"\")","v":""},{"$f":"IFERROR(VLOOKUP(B457,[2]Sheet4!$F$2:$J$364,4,FALSE),\"\")","v":""},{"$f":"IFERROR(VLOOKUP(B457,[2]Sheet4!$F$2:$J$364,5,FALSE),\"\")","v":""}]
[null,null,{"$f":"IFERROR(VLOOKUP(B458,[2]Sheet4!$F$2:$J$364,2,FALSE),\"\")","v":""},{"$f":"IFERROR(VLOOKUP(B458,[2]Sheet4!$F$2:$J$364,3,FALSE),\"\")","v":""},{"$f":"IFERROR(VLOOKUP(B458,[2]Sheet4!$F$2:$J$364,4,FALSE),\"\")","v":""},{"$f":"IFERROR(VLOOKUP(B458,[2]Sheet4!$F$2:$J$364,5,FALSE),\"\")","v":""}]
[null,null,{"$f":"IFERROR(VLOOKUP(B459,[2]Sheet4!$F$2:$J$364,2,FALSE),\"\")","v":""},{"$f":"IFERROR(VLOOKUP(B459,[2]Sheet4!$F$2:$J$364,3,FALSE),\"\")","v":""},{"$f":"IFERROR(VLOOKUP(B459,[2]Sheet4!$F$2:$J$364,4,FALSE),\"\")","v":""},{"$f":"IFERROR(VLOOKUP(B459,[2]Sheet4!$F$2:$J$364,5,FALSE),\"\")","v":""}]
[null,null,{"$f":"IFERROR(VLOOKUP(B460,[2]Sheet4!$F$2:$J$364,2,FALSE),\"\")","v":""},{"$f":"IFERROR(VLOOKUP(B460,[2]Sheet4!$F$2:$J$364,3,FALSE),\"\")","v":""},{"$f":"IFERROR(VLOOKUP(B460,[2]Sheet4!$F$2:$J$364,4,FALSE),\"\")","v":""},{"$f":"IFERROR(VLOOKUP(B460,[2]Sheet4!$F$2:$J$364,5,FALSE),\"\")","v":""}]
[null,null,{"$f":"IFERROR(VLOOKUP(B461,[2]Sheet4!$F$2:$J$364,2,FALSE),\"\")","v":""},{"$f":"IFERROR(VLOOKUP(B461,[2]Sheet4!$F$2:$J$364,3,FALSE),\"\")","v":""},{"$f":"IFERROR(VLOOKUP(B461,[2]Sheet4!$F$2:$J$364,4,FALSE),\"\")","v":""},{"$f":"IFERROR(VLOOKUP(B461,[2]Sheet4!$F$2:$J$364,5,FALSE),\"\")","v":""}]
[null,null,{"$f":"IFERROR(VLOOKUP(B462,[2]Sheet4!$F$2:$J$364,2,FALSE),\"\")","v":""},{"$f":"IFERROR(VLOOKUP(B462,[2]Sheet4!$F$2:$J$364,3,FALSE),\"\")","v":""},{"$f":"IFERROR(VLOOKUP(B462,[2]Sheet4!$F$2:$J$364,4,FALSE),\"\")","v":""},{"$f":"IFERROR(VLOOKUP(B462,[2]Sheet4!$F$2:$J$364,5,FALSE),\"\")","v":""}]
[null,null,{"$f":"IFERROR(VLOOKUP(B463,[2]Sheet4!$F$2:$J$364,2,FALSE),\"\")","v":""},{"$f":"IFERROR(VLOOKUP(B463,[2]Sheet4!$F$2:$J$364,3,FALSE),\"\")","v":""},{"$f":"IFERROR(VLOOKUP(B463,[2]Sheet4!$F$2:$J$364,4,FALSE),\"\")","v":""},{"$f":"IFERROR(VLOOKUP(B463,[2]Sheet4!$F$2:$J$364,5,FALSE),\"\")","v":""}]
[null,null,{"$f":"IFERROR(VLOOKUP(B464,[2]Sheet4!$F$2:$J$364,2,FALSE),\"\")","v":""},{"$f":"IFERROR(VLOOKUP(B464,[2]Sheet4!$F$2:$J$364,3,FALSE),\"\")","v":""},{"$f":"IFERROR(VLOOKUP(B464,[2]Sheet4!$F$2:$J$364,4,FALSE),\"\")","v":""},{"$f":"IFERROR(VLOOKUP(B464,[2]Sheet4!$F$2:$J$364,5,FALSE),\"\")","v":""}]
[null,null,{"$f":"IFERROR(VLOOKUP(B465,[2]Sheet4!$F$2:$J$364,2,FALSE),\"\")","v":""},{"$f":"IFERROR(VLOOKUP(B465,[2]Sheet4!$F$2:$J$364,3,FALSE),\"\")","v":""},{"$f":"IFERROR(VLOOKUP(B465,[2]Sheet4!$F$2:$J$364,4,FALSE),\"\")","v":""},{"$f":"IFERROR(VLOOKUP(B465,[2]Sheet4!$F$2:$J$364,5,FALSE),\"\")","v":""}]
[null,null,{"$f":"IFERROR(VLOOKUP(B466,[2]Sheet4!$F$2:$J$364,2,FALSE),\"\")","v":""},{"$f":"IFERROR(VLOOKUP(B466,[2]Sheet4!$F$2:$J$364,3,FALSE),\"\")","v":""},{"$f":"IFERROR(VLOOKUP(B466,[2]Sheet4!$F$2:$J$364,4,FALSE),\"\")","v":""},{"$f":"IFERROR(VLOOKUP(B466,[2]Sheet4!$F$2:$J$364,5,FALSE),\"\")","v":""}]
[null,null,{"$f":"IFERROR(VLOOKUP(B467,[2]Sheet4!$F$2:$J$364,2,FALSE),\"\")","v":""},{"$f":"IFERROR(VLOOKUP(B467,[2]Sheet4!$F$2:$J$364,3,FALSE),\"\")","v":""},{"$f":"IFERROR(VLOOKUP(B467,[2]Sheet4!$F$2:$J$364,4,FALSE),\"\")","v":""},{"$f":"IFERROR(VLOOKUP(B467,[2]Sheet4!$F$2:$J$364,5,FALSE),\"\")","v":""}]
[null,null,{"$f":"IFERROR(VLOOKUP(B468,[2]Sheet4!$F$2:$J$364,2,FALSE),\"\")","v":""},{"$f":"IFERROR(VLOOKUP(B468,[2]Sheet4!$F$2:$J$364,3,FALSE),\"\")","v":""},{"$f":"IFERROR(VLOOKUP(B468,[2]Sheet4!$F$2:$J$364,4,FALSE),\"\")","v":""},{"$f":"IFERROR(VLOOKUP(B468,[2]Sheet4!$F$2:$J$364,5,FALSE),\"\")","v":""}]
[null,null,{"$f":"IFERROR(VLOOKUP(B469,[2]Sheet4!$F$2:$J$364,2,FALSE),\"\")","v":""},{"$f":"IFERROR(VLOOKUP(B469,[2]Sheet4!$F$2:$J$364,3,FALSE),\"\")","v":""},{"$f":"IFERROR(VLOOKUP(B469,[2]Sheet4!$F$2:$J$364,4,FALSE),\"\")","v":""},{"$f":"IFERROR(VLOOKUP(B469,[2]Sheet4!$F$2:$J$364,5,FALSE),\"\")","v":""}]
[null,null,{"$f":"IFERROR(VLOOKUP(B470,[2]Sheet4!$F$2:$J$364,2,FALSE),\"\")","v":""},{"$f":"IFERROR(VLOOKUP(B470,[2]Sheet4!$F$2:$J$364,3,FALSE),\"\")","v":""},{"$f":"IFERROR(VLOOKUP(B470,[2]Sheet4!$F$2:$J$364,4,FALSE),\"\")","v":""},{"$f":"IFERROR(VLOOKUP(B470,[2]Sheet4!$F$2:$J$364,5,FALSE),\"\")","v":""}]
[null,null,{"$f":"IFERROR(VLOOKUP(B471,[2]Sheet4!$F$2:$J$364,2,FALSE),\"\")","v":""},{"$f":"IFERROR(VLOOKUP(B471,[2]Sheet4!$F$2:$J$364,3,FALSE),\"\")","v":""},{"$f":"IFERROR(VLOOKUP(B471,[2]Sheet4!$F$2:$J$364,4,FALSE),\"\")","v":""},{"$f":"IFERROR(VLOOKUP(B471,[2]Sheet4!$F$2:$J$364,5,FALSE),\"\")","v":""}]
[null,null,{"$f":"IFERROR(VLOOKUP(B472,[2]Sheet4!$F$2:$J$364,2,FALSE),\"\")","v":""},{"$f":"IFERROR(VLOOKUP(B472,[2]Sheet4!$F$2:$J$364,3,FALSE),\"\")","v":""},{"$f":"IFERROR(VLOOKUP(B472,[2]Sheet4!$F$2:$J$364,4,FALSE),\"\")","v":""},{"$f":"IFERROR(VLOOKUP(B472,[2]Sheet4!$F$2:$J$364,5,FALSE),\"\")","v":""}]
[null,null,{"$f":"IFERROR(VLOOKUP(B473,[2]Sheet4!$F$2:$J$364,2,FALSE),\"\")","v":""},{"$f":"IFERROR(VLOOKUP(B473,[2]Sheet4!$F$2:$J$364,3,FALSE),\"\")","v":""},{"$f":"IFERROR(VLOOKUP(B473,[2]Sheet4!$F$2:$J$364,4,FALSE),\"\")","v":""},{"$f":"IFERROR(VLOOKUP(B473,[2]Sheet4!$F$2:$J$364,5,FALSE),\"\")","v":""}]
[null,null,{"$f":"IFERROR(VLOOKUP(B474,[2]Sheet4!$F$2:$J$364,2,FALSE),\"\")","v":""},{"$f":"IFERROR(VLOOKUP(B474,[2]Sheet4!$F$2:$J$364,3,FALSE),\"\")","v":""},{"$f":"IFERROR(VLOOKUP(B474,[2]Sheet4!$F$2:$J$364,4,FALSE),\"\")","v":""},{"$f":"IFERROR(VLOOKUP(B474,[2]Sheet4!$F$2:$J$364,5,FALSE),\"\")","v":""}]
[null,null,{"$f":"IFERROR(VLOOKUP(B475,[2]Sheet4!$F$2:$J$364,2,FALSE),\"\")","v":""},{"$f":"IFERROR(VLOOKUP(B475,[2]Sheet4!$F$2:$J$364,3,FALSE),\"\")","v":""},{"$f":"IFERROR(VLOOKUP(B475,[2]Sheet4!$F$2:$J$364,4,FALSE),\"\")","v":""},{"$f":"IFERROR(VLOOKUP(B475,[2]Sheet4!$F$2:$J$364,5,FALSE),\"\")","v":""}]
[null,null,{"$f":"IFERROR(VLOOKUP(B476,[2]Sheet4!$F$2:$J$364,2,FALSE),\"\")","v":""},{"$f":"IFERROR(VLOOKUP(B476,[2]Sheet4!$F$2:$J$364,3,FALSE),\"\")","v":""},{"$f":"IFERROR(VLOOKUP(B476,[2]Sheet4!$F$2:$J$364,4,FALSE),\"\")","v":""},{"$f":"IFERROR(VLOOKUP(B476,[2]Sheet4!$F$2:$J$364,5,FALSE),\"\")","v":""}]
[null,null,{"$f":"IFERROR(VLOOKUP(B477,[2]Sheet4!$F$2:$J$364,2,FALSE),\"\")","v":""},{"$f":"IFERROR(VLOOKUP(B477,[2]Sheet4!$F$2:$J$364,3,FALSE),\"\")","v":""},{"$f":"IFERROR(VLOOKUP(B477,[2]Sheet4!$F$2:$J$364,4,FALSE),\"\")","v":""},{"$f":"IFERROR(VLOOKUP(B477,[2]Sheet4!$F$2:$J$364,5,FALSE),\"\")","v":""}]
[null,null,{"$f":"IFERROR(VLOOKUP(B478,[2]Sheet4!$F$2:$J$364,2,FALSE),\"\")","v":""},{"$f":"IFERROR(VLOOKUP(B478,[2]Sheet4!$F$2:$J$364,3,FALSE),\"\")","v":""},{"$f":"IFERROR(VLOOKUP(B478,[2]Sheet4!$F$2:$J$364,4,FALSE),\"\")","v":""},{"$f":"IFERROR(VLOOKUP(B478,[2]Sheet4!$F$2:$J$364,5,FALSE),\"\")","v":""}]
[null,null,{"$f":"IFERROR(VLOOKUP(B479,[2]Sheet4!$F$2:$J$364,2,FALSE),\"\")","v":""},{"$f":"IFERROR(VLOOKUP(B479,[2]Sheet4!$F$2:$J$364,3,FALSE),\"\")","v":""},{"$f":"IFERROR(VLOOKUP(B479,[2]Sheet4!$F$2:$J$364,4,FALSE),\"\")","v":""},{"$f":"IFERROR(VLOOKUP(B479,[2]Sheet4!$F$2:$J$364,5,FALSE),\"\")","v":""}]
[null,null,{"$f":"IFERROR(VLOOKUP(B480,[2]Sheet4!$F$2:$J$364,2,FALSE),\"\")","v":""},{"$f":"IFERROR(VLOOKUP(B480,[2]Sheet4!$F$2:$J$364,3,FALSE),\"\")","v":""},{"$f":"IFERROR(VLOOKUP(B480,[2]Sheet4!$F$2:$J$364,4,FALSE),\"\")","v":""},{"$f":"IFERROR(VLOOKUP(B480,[2]Sheet4!$F$2:$J$364,5,FALSE),\"\")","v":""}]
[null,null,{"$f":"IFERROR(VLOOKUP(B481,[2]Sheet4!$F$2:$J$364,2,FALSE),\"\")","v":""},{"$f":"IFERROR(VLOOKUP(B481,[2]Sheet4!$F$2:$J$364,3,FALSE),\"\")","v":""},{"$f":"IFERROR(VLOOKUP(B481,[2]Sheet4!$F$2:$J$364,4,FALSE),\"\")","v":""},{"$f":"IFERROR(VLOOKUP(B481,[2]Sheet4!$F$2:$J$364,5,FALSE),\"\")","v":""}]
[null,null,{"$f":"IFERROR(VLOOKUP(B482,[2]Sheet4!$F$2:$J$364,2,FALSE),\"\")","v":""},{"$f":"IFERROR(VLOOKUP(B482,[2]Sheet4!$F$2:$J$364,3,FALSE),\"\")","v":""},{"$f":"IFERROR(VLOOKUP(B482,[2]Sheet4!$F$2:$J$364,4,FALSE),\"\")","v":""},{"$f":"IFERROR(VLOOKUP(B482,[2]Sheet4!$F$2:$J$364,5,FALSE),\"\")","v":""}]
[null,null,{"$f":"IFERROR(VLOOKUP(B483,[2]Sheet4!$F$2:$J$364,2,FALSE),\"\")","v":""},{"$f":"IFERROR(VLOOKUP(B483,[2]Sheet4!$F$2:$J$364,3,FALSE),\"\")","v":""},{"$f":"IFERROR(VLOOKUP(B483,[2]Sheet4!$F$2:$J$364,4,FALSE),\"\")","v":""},{"$f":"IFERROR(VLOOKUP(B483,[2]Sheet4!$F$2:$J$364,5,FALSE),\"\")","v":""}]
[null,null,{"$f":"IFERROR(VLOOKUP(B484,[2]Sheet4!$F$2:$J$364,2,FALSE),\"\")","v":""},{"$f":"IFERROR(VLOOKUP(B484,[2]Sheet4!$F$2:$J$364,3,FALSE),\"\")","v":""},{"$f":"IFERROR(VLOOKUP(B484,[2]Sheet4!$F$2:$J$364,4,FALSE),\"\")","v":""},{"$f":"IFERROR(VLOOKUP(B484,[2]Sheet4!$F$2:$J$364,5,FALSE),\"\")","v":""}]
[null,null,{"$f":"IFERROR(VLOOKUP(B485,[2]Sheet4!$F$2:$J$364,2,FALSE),\"\")","v":""},{"$f":"IFERROR(VLOOKUP(B485,[2]Sheet4!$F$2:$J$364,3,FALSE),\"\")","v":""},{"$f":"IFERROR(VLOOKUP(B485,[2]Sheet4!$F$2:$J$364,4,FALSE),\"\")","v":""},{"$f":"IFERROR(VLOOKUP(B485,[2]Sheet4!$F$2:$J$364,5,FALSE),\"\")","v":""}]
[null,null,{"$f":"IFERROR(VLOOKUP(B486,[2]Sheet4!$F$2:$J$364,2,FALSE),\"\")","v":""},{"$f":"IFERROR(VLOOKUP(B486,[2]Sheet4!$F$2:$J$364,3,FALSE),\"\")","v":""},{"$f":"IFERROR(VLOOKUP(B486,[2]Sheet4!$F$2:$J$364,4,FALSE),\"\")","v":""},{"$f":"IFERROR(VLOOKUP(B486,[2]Sheet4!$F$2:$J$364,5,FALSE),\"\")","v":""}]
[null,null,{"$f":"IFERROR(VLOOKUP(B487,[2]Sheet4!$F$2:$J$364,2,FALSE),\"\")","v":""},{"$f":"IFERROR(VLOOKUP(B487,[2]Sheet4!$F$2:$J$364,3,FALSE),\"\")","v":""},{"$f":"IFERROR(VLOOKUP(B487,[2]Sheet4!$F$2:$J$364,4,FALSE),\"\")","v":""},{"$f":"IFERROR(VLOOKUP(B487,[2]Sheet4!$F$2:$J$364,5,FALSE),\"\")","v":""}]
[null,null,{"$f":"IFERROR(VLOOKUP(B488,[2]Sheet4!$F$2:$J$364,2,FALSE),\"\")","v":""},{"$f":"IFERROR(VLOOKUP(B488,[2]Sheet4!$F$2:$J$364,3,FALSE),\"\")","v":""},{"$f":"IFERROR(VLOOKUP(B488,[2]Sheet4!$F$2:$J$364,4,FALSE),\"\")","v":""},{"$f":"IFERROR(VLOOKUP(B488,[2]Sheet4!$F$2:$J$364,5,FALSE),\"\")","v":""}]
[null,null,{"$f":"IFERROR(VLOOKUP(B489,[2]Sheet4!$F$2:$J$364,2,FALSE),\"\")","v":""},{"$f":"IFERROR(VLOOKUP(B489,[2]Sheet4!$F$2:$J$364,3,FALSE),\"\")","v":""},{"$f":"IFERROR(VLOOKUP(B489,[2]Sheet4!$F$2:$J$364,4,FALSE),\"\")","v":""},{"$f":"IFERROR(VLOOKUP(B489,[2]Sheet4!$F$2:$J$364,5,FALSE),\"\")","v":""}]
[null,null,{"$f":"IFERROR(VLOOKUP(B490,[2]Sheet4!$F$2:$J$364,2,FALSE),\"\")","v":""},{"$f":"IFERROR(VLOOKUP(B490,[2]Sheet4!$F$2:$J$364,3,FALSE),\"\")","v":""},{"$f":"IFERROR(VLOOKUP(B490,[2]Sheet4!$F$2:$J$364,4,FALSE),\"\")","v":""},{"$f":"IFERROR(VLOOKUP(B490,[2]Sheet4!$F$2:$J$364,5,FALSE),\"\")","v":""}]
[null,null,{"$f":"IFERROR(VLOOKUP(B491,[2]Sheet4!$F$2:$J$364,2,FALSE),\"\")","v":""},{"$f":"IFERROR(VLOOKUP(B491,[2]Sheet4!$F$2:$J$364,3,FALSE),\"\")","v":""},{"$f":"IFERROR(VLOOKUP(B491,[2]Sheet4!$F$2:$J$364,4,FALSE),\"\")","v":""},{"$f":"IFERROR(VLOOKUP(B491,[2]Sheet4!$F$2:$J$364,5,FALSE),\"\")","v":""}]
[null,null,{"$f":"IFERROR(VLOOKUP(B492,[2]Sheet4!$F$2:$J$364,2,FALSE),\"\")","v":""},{"$f":"IFERROR(VLOOKUP(B492,[2]Sheet4!$F$2:$J$364,3,FALSE),\"\")","v":""},{"$f":"IFERROR(VLOOKUP(B492,[2]Sheet4!$F$2:$J$364,4,FALSE),\"\")","v":""},{"$f":"IFERROR(VLOOKUP(B492,[2]Sheet4!$F$2:$J$364,5,FALSE),\"\")","v":""}]
[null,null,{"$f":"IFERROR(VLOOKUP(B493,[2]Sheet4!$F$2:$J$364,2,FALSE),\"\")","v":""},{"$f":"IFERROR(VLOOKUP(B493,[2]Sheet4!$F$2:$J$364,3,FALSE),\"\")","v":""},{"$f":"IFERROR(VLOOKUP(B493,[2]Sheet4!$F$2:$J$364,4,FALSE),\"\")","v":""},{"$f":"IFERROR(VLOOKUP(B493,[2]Sheet4!$F$2:$J$364,5,FALSE),\"\")","v":""}]
[null,null,{"$f":"IFERROR(VLOOKUP(B494,[2]Sheet4!$F$2:$J$364,2,FALSE),\"\")","v":""},{"$f":"IFERROR(VLOOKUP(B494,[2]Sheet4!$F$2:$J$364,3,FALSE),\"\")","v":""},{"$f":"IFERROR(VLOOKUP(B494,[2]Sheet4!$F$2:$J$364,4,FALSE),\"\")","v":""},{"$f":"IFERROR(VLOOKUP(B494,[2]Sheet4!$F$2:$J$364,5,FALSE),\"\")","v":""}]
[null,null,{"$f":"IFERROR(VLOOKUP(B495,[2]Sheet4!$F$2:$J$364,2,FALSE),\"\")","v":""},{"$f":"IFERROR(VLOOKUP(B495,[2]Sheet4!$F$2:$J$364,3,FALSE),\"\")","v":""},{"$f":"IFERROR(VLOOKUP(B495,[2]Sheet4!$F$2:$J$364,4,FALSE),\"\")","v":""},{"$f":"IFERROR(VLOOKUP(B495,[2]Sheet4!$F$2:$J$364,5,FALSE),\"\")","v":""}]
[null,null,{"$f":"IFERROR(VLOOKUP(B496,[2]Sheet4!$F$2:$J$364,2,FALSE),\"\")","v":""},{"$f":"IFERROR(VLOOKUP(B496,[2]Sheet4!$F$2:$J$364,3,FALSE),\"\")","v":""},{"$f":"IFERROR(VLOOKUP(B496,[2]Sheet4!$F$2:$J$364,4,FALSE),\"\")","v":""},{"$f":"IFERROR(VLOOKUP(B496,[2]Sheet4!$F$2:$J$364,5,FALSE),\"\")","v":""}]
[null,null,{"$f":"IFERROR(VLOOKUP(B497,[2]Sheet4!$F$2:$J$364,2,FALSE),\"\")","v":""},{"$f":"IFERROR(VLOOKUP(B497,[2]Sheet4!$F$2:$J$364,3,FALSE),\"\")","v":""},{"$f":"IFERROR(VLOOKUP(B497,[2]Sheet4!$F$2:$J$364,4,FALSE),\"\")","v":""},{"$f":"IFERROR(VLOOKUP(B497,[2]Sheet4!$F$2:$J$364,5,FALSE),\"\")","v":""}]
[null,null,{"$f":"IFERROR(VLOOKUP(B498,[2]Sheet4!$F$2:$J$364,2,FALSE),\"\")","v":""},{"$f":"IFERROR(VLOOKUP(B498,[2]Sheet4!$F$2:$J$364,3,FALSE),\"\")","v":""},{"$f":"IFERROR(VLOOKUP(B498,[2]Sheet4!$F$2:$J$364,4,FALSE),\"\")","v":""},{"$f":"IFERROR(VLOOKUP(B498,[2]Sheet4!$F$2:$J$364,5,FALSE),\"\")","v":""}]
[null,null,{"$f":"IFERROR(VLOOKUP(B499,[2]Sheet4!$F$2:$J$364,2,FALSE),\"\")","v":""},{"$f":"IFERROR(VLOOKUP(B499,[2]Sheet4!$F$2:$J$364,3,FALSE),\"\")","v":""},{"$f":"IFERROR(VLOOKUP(B499,[2]Sheet4!$F$2:$J$364,4,FALSE),\"\")","v":""},{"$f":"IFERROR(VLOOKUP(B499,[2]Sheet4!$F$2:$J$364,5,FALSE),\"\")","v":""}]
[null,null,{"$f":"IFERROR(VLOOKUP(B500,[2]Sheet4!$F$2:$J$364,2,FALSE),\"\")","v":""},{"$f":"IFERROR(VLOOKUP(B500,[2]Sheet4!$F$2:$J$364,3,FALSE),\"\")","v":""},{"$f":"IFERROR(VLOOKUP(B500,[2]Sheet4!$F$2:$J$364,4,FALSE),\"\")","v":""},{"$f":"IFERROR(VLOOKUP(B500,[2]Sheet4!$F$2:$J$364,5,FALSE),\"\")","v":""}]
[null,null,{"$f":"IFERROR(VLOOKUP(B501,[2]Sheet4!$F$2:$J$364,2,FALSE),\"\")","v":""},{"$f":"IFERROR(VLOOKUP(B501,[2]Sheet4!$F$2:$J$364,3,FALSE),\"\")","v":""},{"$f":"IFERROR(VLOOKUP(B501,[2]Sheet4!$F$2:$J$364,4,FALSE),\"\")","v":""},{"$f":"IFERROR(VLOOKUP(B501,[2]Sheet4!$F$2:$J$364,5,FALSE),\"\")","v":""}]
[null,null,{"$f":"IFERROR(VLOOKUP(B502,[2]Sheet4!$F$2:$J$364,2,FALSE),\"\")","v":""},{"$f":"IFERROR(VLOOKUP(B502,[2]Sheet4!$F$2:$J$364,3,FALSE),\"\")","v":""},{"$f":"IFERROR(VLOOKUP(B502,[2]Sheet4!$F$2:$J$364,4,FALSE),\"\")","v":""},{"$f":"IFERROR(VLOOKUP(B502,[2]Sheet4!$F$2:$J$364,5,FALSE),\"\")","v":""}]
[null,null,{"$f":"IFERROR(VLOOKUP(B503,[2]Sheet4!$F$2:$J$364,2,FALSE),\"\")","v":""},{"$f":"IFERROR(VLOOKUP(B503,[2]Sheet4!$F$2:$J$364,3,FALSE),\"\")","v":""},{"$f":"IFERROR(VLOOKUP(B503,[2]Sheet4!$F$2:$J$364,4,FALSE),\"\")","v":""},{"$f":"IFERROR(VLOOKUP(B503,[2]Sheet4!$F$2:$J$364,5,FALSE),\"\")","v":""}]
[null,null,{"$f":"IFERROR(VLOOKUP(B504,[2]Sheet4!$F$2:$J$364,2,FALSE),\"\")","v":""},{"$f":"IFERROR(VLOOKUP(B504,[2]Sheet4!$F$2:$J$364,3,FALSE),\"\")","v":""},{"$f":"IFERROR(VLOOKUP(B504,[2]Sheet4!$F$2:$J$364,4,FALSE),\"\")","v":""},{"$f":"IFERROR(VLOOKUP(B504,[2]Sheet4!$F$2:$J$364,5,FALSE),\"\")","v":""}]
[null,null,{"$f":"IFERROR(VLOOKUP(B505,[2]Sheet4!$F$2:$J$364,2,FALSE),\"\")","v":""},{"$f":"IFERROR(VLOOKUP(B505,[2]Sheet4!$F$2:$J$364,3,FALSE),\"\")","v":""},{"$f":"IFERROR(VLOOKUP(B505,[2]Sheet4!$F$2:$J$364,4,FALSE),\"\")","v":""},{"$f":"IFERROR(VLOOKUP(B505,[2]Sheet4!$F$2:$J$364,5,FALSE),\"\")","v":""}]
[null,null,{"$f":"IFERROR(VLOOKUP(B506,[2]Sheet4!$F$2:$J$364,2,FALSE),\"\")","v":""},{"$f":"IFERROR(VLOOKUP(B506,[2]Sheet4!$F$2:$J$364,3,FALSE),\"\")","v":""},{"$f":"IFERROR(VLOOKUP(B506,[2]Sheet4!$F$2:$J$364,4,FALSE),\"\")","v":""},{"$f":"IFERROR(VLOOKUP(B506,[2]Sheet4!$F$2:$J$364,5,FALSE),\"\")","v":""}]
[null,null,{"$f":"IFERROR(VLOOKUP(B507,[2]Sheet4!$F$2:$J$364,2,FALSE),\"\")","v":""},{"$f":"IFERROR(VLOOKUP(B507,[2]Sheet4!$F$2:$J$364,3,FALSE),\"\")","v":""},{"$f":"IFERROR(VLOOKUP(B507,[2]Sheet4!$F$2:$J$364,4,FALSE),\"\")","v":""},{"$f":"IFERROR(VLOOKUP(B507,[2]Sheet4!$F$2:$J$364,5,FALSE),\"\")","v":""}]
[null,null,{"$f":"IFERROR(VLOOKUP(B508,[2]Sheet4!$F$2:$J$364,2,FALSE),\"\")","v":""},{"$f":"IFERROR(VLOOKUP(B508,[2]Sheet4!$F$2:$J$364,3,FALSE),\"\")","v":""},{"$f":"IFERROR(VLOOKUP(B508,[2]Sheet4!$F$2:$J$364,4,FALSE),\"\")","v":""},{"$f":"IFERROR(VLOOKUP(B508,[2]Sheet4!$F$2:$J$364,5,FALSE),\"\")","v":""}]
[null,null,{"$f":"IFERROR(VLOOKUP(B509,[2]Sheet4!$F$2:$J$364,2,FALSE),\"\")","v":""},{"$f":"IFERROR(VLOOKUP(B509,[2]Sheet4!$F$2:$J$364,3,FALSE),\"\")","v":""},{"$f":"IFERROR(VLOOKUP(B509,[2]Sheet4!$F$2:$J$364,4,FALSE),\"\")","v":""},{"$f":"IFERROR(VLOOKUP(B509,[2]Sheet4!$F$2:$J$364,5,FALSE),\"\")","v":""}]
[null,null,{"$f":"IFERROR(VLOOKUP(B510,[2]Sheet4!$F$2:$J$364,2,FALSE),\"\")","v":""},{"$f":"IFERROR(VLOOKUP(B510,[2]Sheet4!$F$2:$J$364,3,FALSE),\"\")","v":""},{"$f":"IFERROR(VLOOKUP(B510,[2]Sheet4!$F$2:$J$364,4,FALSE),\"\")","v":""},{"$f":"IFERROR(VLOOKUP(B510,[2]Sheet4!$F$2:$J$364,5,FALSE),\"\")","v":""}]
[null,null,{"$f":"IFERROR(VLOOKUP(B511,[2]Sheet4!$F$2:$J$364,2,FALSE),\"\")","v":""},{"$f":"IFERROR(VLOOKUP(B511,[2]Sheet4!$F$2:$J$364,3,FALSE),\"\")","v":""},{"$f":"IFERROR(VLOOKUP(B511,[2]Sheet4!$F$2:$J$364,4,FALSE),\"\")","v":""},{"$f":"IFERROR(VLOOKUP(B511,[2]Sheet4!$F$2:$J$364,5,FALSE),\"\")","v":""}]
[null,null,{"$f":"IFERROR(VLOOKUP(B512,[2]Sheet4!$F$2:$J$364,2,FALSE),\"\")","v":""},{"$f":"IFERROR(VLOOKUP(B512,[2]Sheet4!$F$2:$J$364,3,FALSE),\"\")","v":""},{"$f":"IFERROR(VLOOKUP(B512,[2]Sheet4!$F$2:$J$364,4,FALSE),\"\")","v":""},{"$f":"IFERROR(VLOOKUP(B512,[2]Sheet4!$F$2:$J$364,5,FALSE),\"\")","v":""}]
[null,null,{"$f":"IFERROR(VLOOKUP(B513,[2]Sheet4!$F$2:$J$364,2,FALSE),\"\")","v":""},{"$f":"IFERROR(VLOOKUP(B513,[2]Sheet4!$F$2:$J$364,3,FALSE),\"\")","v":""},{"$f":"IFERROR(VLOOKUP(B513,[2]Sheet4!$F$2:$J$364,4,FALSE),\"\")","v":""},{"$f":"IFERROR(VLOOKUP(B513,[2]Sheet4!$F$2:$J$364,5,FALSE),\"\")","v":""}]
[null,null,{"$f":"IFERROR(VLOOKUP(B514,[2]Sheet4!$F$2:$J$364,2,FALSE),\"\")","v":""},{"$f":"IFERROR(VLOOKUP(B514,[2]Sheet4!$F$2:$J$364,3,FALSE),\"\")","v":""},{"$f":"IFERROR(VLOOKUP(B514,[2]Sheet4!$F$2:$J$364,4,FALSE),\"\")","v":""},{"$f":"IFERROR(VLOOKUP(B514,[2]Sheet4!$F$2:$J$364,5,FALSE),\"\")","v":""}]
[null,null,{"$f":"IFERROR(VLOOKUP(B515,[2]Sheet4!$F$2:$J$364,2,FALSE),\"\")","v":""},{"$f":"IFERROR(VLOOKUP(B515,[2]Sheet4!$F$2:$J$364,3,FALSE),\"\")","v":""},{"$f":"IFERROR(VLOOKUP(B515,[2]Sheet4!$F$2:$J$364,4,FALSE),\"\")","v":""},{"$f":"IFERROR(VLOOKUP(B515,[2]Sheet4!$F$2:$J$364,5,FALSE),\"\")","v":""}]
[null,null,{"$f":"IFERROR(VLOOKUP(B516,[2]Sheet4!$F$2:$J$364,2,FALSE),\"\")","v":""},{"$f":"IFERROR(VLOOKUP(B516,[2]Sheet4!$F$2:$J$364,3,FALSE),\"\")","v":""},{"$f":"IFERROR(VLOOKUP(B516,[2]Sheet4!$F$2:$J$364,4,FALSE),\"\")","v":""},{"$f":"IFERROR(VLOOKUP(B516,[2]Sheet4!$F$2:$J$364,5,FALSE),\"\")","v":""}]
[null,null,{"$f":"IFERROR(VLOOKUP(B517,[2]Sheet4!$F$2:$J$364,2,FALSE),\"\")","v":""},{"$f":"IFERROR(VLOOKUP(B517,[2]Sheet4!$F$2:$J$364,3,FALSE),\"\")","v":""},{"$f":"IFERROR(VLOOKUP(B517,[2]Sheet4!$F$2:$J$364,4,FALSE),\"\")","v":""},{"$f":"IFERROR(VLOOKUP(B517,[2]Sheet4!$F$2:$J$364,5,FALSE),\"\")","v":""}]
[null,null,{"$f":"IFERROR(VLOOKUP(B518,[2]Sheet4!$F$2:$J$364,2,FALSE),\"\")","v":""},{"$f":"IFERROR(VLOOKUP(B518,[2]Sheet4!$F$2:$J$364,3,FALSE),\"\")","v":""},{"$f":"IFERROR(VLOOKUP(B518,[2]Sheet4!$F$2:$J$364,4,FALSE),\"\")","v":""},{"$f":"IFERROR(VLOOKUP(B518,[2]Sheet4!$F$2:$J$364,5,FALSE),\"\")","v":""}]
[null,null,{"$f":"IFERROR(VLOOKUP(B519,[2]Sheet4!$F$2:$J$364,2,FALSE),\"\")","v":""},{"$f":"IFERROR(VLOOKUP(B519,[2]Sheet4!$F$2:$J$364,3,FALSE),\"\")","v":""},{"$f":"IFERROR(VLOOKUP(B519,[2]Sheet4!$F$2:$J$364,4,FALSE),\"\")","v":""},{"$f":"IFERROR(VLOOKUP(B519,[2]Sheet4!$F$2:$J$364,5,FALSE),\"\")","v":""}]
[null,null,{"$f":"IFERROR(VLOOKUP(B520,[2]Sheet4!$F$2:$J$364,2,FALSE),\"\")","v":""},{"$f":"IFERROR(VLOOKUP(B520,[2]Sheet4!$F$2:$J$364,3,FALSE),\"\")","v":""},{"$f":"IFERROR(VLOOKUP(B520,[2]Sheet4!$F$2:$J$364,4,FALSE),\"\")","v":""},{"$f":"IFERROR(VLOOKUP(B520,[2]Sheet4!$F$2:$J$364,5,FALSE),\"\")","v":""}]
[null,null,{"$f":"IFERROR(VLOOKUP(B521,[2]Sheet4!$F$2:$J$364,2,FALSE),\"\")","v":""},{"$f":"IFERROR(VLOOKUP(B521,[2]Sheet4!$F$2:$J$364,3,FALSE),\"\")","v":""},{"$f":"IFERROR(VLOOKUP(B521,[2]Sheet4!$F$2:$J$364,4,FALSE),\"\")","v":""},{"$f":"IFERROR(VLOOKUP(B521,[2]Sheet4!$F$2:$J$364,5,FALSE),\"\")","v":""}]
[null,null,{"$f":"IFERROR(VLOOKUP(B522,[2]Sheet4!$F$2:$J$364,2,FALSE),\"\")","v":""},{"$f":"IFERROR(VLOOKUP(B522,[2]Sheet4!$F$2:$J$364,3,FALSE),\"\")","v":""},{"$f":"IFERROR(VLOOKUP(B522,[2]Sheet4!$F$2:$J$364,4,FALSE),\"\")","v":""},{"$f":"IFERROR(VLOOKUP(B522,[2]Sheet4!$F$2:$J$364,5,FALSE),\"\")","v":""}]
[null,null,{"$f":"IFERROR(VLOOKUP(B523,[2]Sheet4!$F$2:$J$364,2,FALSE),\"\")","v":""},{"$f":"IFERROR(VLOOKUP(B523,[2]Sheet4!$F$2:$J$364,3,FALSE),\"\")","v":""},{"$f":"IFERROR(VLOOKUP(B523,[2]Sheet4!$F$2:$J$364,4,FALSE),\"\")","v":""},{"$f":"IFERROR(VLOOKUP(B523,[2]Sheet4!$F$2:$J$364,5,FALSE),\"\")","v":""}]
[null,null,{"$f":"IFERROR(VLOOKUP(B524,[2]Sheet4!$F$2:$J$364,2,FALSE),\"\")","v":""},{"$f":"IFERROR(VLOOKUP(B524,[2]Sheet4!$F$2:$J$364,3,FALSE),\"\")","v":""},{"$f":"IFERROR(VLOOKUP(B524,[2]Sheet4!$F$2:$J$364,4,FALSE),\"\")","v":""},{"$f":"IFERROR(VLOOKUP(B524,[2]Sheet4!$F$2:$J$364,5,FALSE),\"\")","v":""}]
[null,null,{"$f":"IFERROR(VLOOKUP(B525,[2]Sheet4!$F$2:$J$364,2,FALSE),\"\")","v":""},{"$f":"IFERROR(VLOOKUP(B525,[2]Sheet4!$F$2:$J$364,3,FALSE),\"\")","v":""},{"$f":"IFERROR(VLOOKUP(B525,[2]Sheet4!$F$2:$J$364,4,FALSE),\"\")","v":""},{"$f":"IFERROR(VLOOKUP(B525,[2]Sheet4!$F$2:$J$364,5,FALSE),\"\")","v":""}]
[null,null,{"$f":"IFERROR(VLOOKUP(B526,[2]Sheet4!$F$2:$J$364,2,FALSE),\"\")","v":""},{"$f":"IFERROR(VLOOKUP(B526,[2]Sheet4!$F$2:$J$364,3,FALSE),\"\")","v":""},{"$f":"IFERROR(VLOOKUP(B526,[2]Sheet4!$F$2:$J$364,4,FALSE),\"\")","v":""},{"$f":"IFERROR(VLOOKUP(B526,[2]Sheet4!$F$2:$J$364,5,FALSE),\"\")","v":""}]
[null,null,{"$f":"IFERROR(VLOOKUP(B527,[2]Sheet4!$F$2:$J$364,2,FALSE),\"\")","v":""},{"$f":"IFERROR(VLOOKUP(B527,[2]Sheet4!$F$2:$J$364,3,FALSE),\"\")","v":""},{"$f":"IFERROR(VLOOKUP(B527,[2]Sheet4!$F$2:$J$364,4,FALSE),\"\")","v":""},{"$f":"IFERROR(VLOOKUP(B527,[2]Sheet4!$F$2:$J$364,5,FALSE),\"\")","v":""}]
[null,null,{"$f":"IFERROR(VLOOKUP(B528,[2]Sheet4!$F$2:$J$364,2,FALSE),\"\")","v":""},{"$f":"IFERROR(VLOOKUP(B528,[2]Sheet4!$F$2:$J$364,3,FALSE),\"\")","v":""},{"$f":"IFERROR(VLOOKUP(B528,[2]Sheet4!$F$2:$J$364,4,FALSE),\"\")","v":""},{"$f":"IFERROR(VLOOKUP(B528,[2]Sheet4!$F$2:$J$364,5,FALSE),\"\")","v":""}]
[null,null,{"$f":"IFERROR(VLOOKUP(B529,[2]Sheet4!$F$2:$J$364,2,FALSE),\"\")","v":""},{"$f":"IFERROR(VLOOKUP(B529,[2]Sheet4!$F$2:$J$364,3,FALSE),\"\")","v":""},{"$f":"IFERROR(VLOOKUP(B529,[2]Sheet4!$F$2:$J$364,4,FALSE),\"\")","v":""},{"$f":"IFERROR(VLOOKUP(B529,[2]Sheet4!$F$2:$J$364,5,FALSE),\"\")","v":""}]
[null,null,{"$f":"IFERROR(VLOOKUP(B530,[2]Sheet4!$F$2:$J$364,2,FALSE),\"\")","v":""},{"$f":"IFERROR(VLOOKUP(B530,[2]Sheet4!$F$2:$J$364,3,FALSE),\"\")","v":""},{"$f":"IFERROR(VLOOKUP(B530,[2]Sheet4!$F$2:$J$364,4,FALSE),\"\")","v":""},{"$f":"IFERROR(VLOOKUP(B530,[2]Sheet4!$F$2:$J$364,5,FALSE),\"\")","v":""}]
[null,null,{"$f":"IFERROR(VLOOKUP(B531,[2]Sheet4!$F$2:$J$364,2,FALSE),\"\")","v":""},{"$f":"IFERROR(VLOOKUP(B531,[2]Sheet4!$F$2:$J$364,3,FALSE),\"\")","v":""},{"$f":"IFERROR(VLOOKUP(B531,[2]Sheet4!$F$2:$J$364,4,FALSE),\"\")","v":""},{"$f":"IFERROR(VLOOKUP(B531,[2]Sheet4!$F$2:$J$364,5,FALSE),\"\")","v":""}]
[null,null,{"$f":"IFERROR(VLOOKUP(B532,[2]Sheet4!$F$2:$J$364,2,FALSE),\"\")","v":""},{"$f":"IFERROR(VLOOKUP(B532,[2]Sheet4!$F$2:$J$364,3,FALSE),\"\")","v":""},{"$f":"IFERROR(VLOOKUP(B532,[2]Sheet4!$F$2:$J$364,4,FALSE),\"\")","v":""},{"$f":"IFERROR(VLOOKUP(B532,[2]Sheet4!$F$2:$J$364,5,FALSE),\"\")","v":""}]
[null,null,{"$f":"IFERROR(VLOOKUP(B533,[2]Sheet4!$F$2:$J$364,2,FALSE),\"\")","v":""},{"$f":"IFERROR(VLOOKUP(B533,[2]Sheet4!$F$2:$J$364,3,FALSE),\"\")","v":""},{"$f":"IFERROR(VLOOKUP(B533,[2]Sheet4!$F$2:$J$364,4,FALSE),\"\")","v":""},{"$f":"IFERROR(VLOOKUP(B533,[2]Sheet4!$F$2:$J$364,5,FALSE),\"\")","v":""}]
[null,null,{"$f":"IFERROR(VLOOKUP(B534,[2]Sheet4!$F$2:$J$364,2,FALSE),\"\")","v":""},{"$f":"IFERROR(VLOOKUP(B534,[2]Sheet4!$F$2:$J$364,3,FALSE),\"\")","v":""},{"$f":"IFERROR(VLOOKUP(B534,[2]Sheet4!$F$2:$J$364,4,FALSE),\"\")","v":""},{"$f":"IFERROR(VLOOKUP(B534,[2]Sheet4!$F$2:$J$364,5,FALSE),\"\")","v":""}]
[null,null,{"$f":"IFERROR(VLOOKUP(B535,[2]Sheet4!$F$2:$J$364,2,FALSE),\"\")","v":""},{"$f":"IFERROR(VLOOKUP(B535,[2]Sheet4!$F$2:$J$364,3,FALSE),\"\")","v":""},{"$f":"IFERROR(VLOOKUP(B535,[2]Sheet4!$F$2:$J$364,4,FALSE),\"\")","v":""},{"$f":"IFERROR(VLOOKUP(B535,[2]Sheet4!$F$2:$J$364,5,FALSE),\"\")","v":""}]
[null,null,{"$f":"IFERROR(VLOOKUP(B536,[2]Sheet4!$F$2:$J$364,2,FALSE),\"\")","v":""},{"$f":"IFERROR(VLOOKUP(B536,[2]Sheet4!$F$2:$J$364,3,FALSE),\"\")","v":""},{"$f":"IFERROR(VLOOKUP(B536,[2]Sheet4!$F$2:$J$364,4,FALSE),\"\")","v":""},{"$f":"IFERROR(VLOOKUP(B536,[2]Sheet4!$F$2:$J$364,5,FALSE),\"\")","v":""}]
[null,null,{"$f":"IFERROR(VLOOKUP(B537,[2]Sheet4!$F$2:$J$364,2,FALSE),\"\")","v":""},{"$f":"IFERROR(VLOOKUP(B537,[2]Sheet4!$F$2:$J$364,3,FALSE),\"\")","v":""},{"$f":"IFERROR(VLOOKUP(B537,[2]Sheet4!$F$2:$J$364,4,FALSE),\"\")","v":""},{"$f":"IFERROR(VLOOKUP(B537,[2]Sheet4!$F$2:$J$364,5,FALSE),\"\")","v":""}]
[null,null,{"$f":"IFERROR(VLOOKUP(B538,[2]Sheet4!$F$2:$J$364,2,FALSE),\"\")","v":""},{"$f":"IFERROR(VLOOKUP(B538,[2]Sheet4!$F$2:$J$364,3,FALSE),\"\")","v":""},{"$f":"IFERROR(VLOOKUP(B538,[2]Sheet4!$F$2:$J$364,4,FALSE),\"\")","v":""},{"$f":"IFERROR(VLOOKUP(B538,[2]Sheet4!$F$2:$J$364,5,FALSE),\"\")","v":""}]
[null,null,{"$f":"IFERROR(VLOOKUP(B539,[2]Sheet4!$F$2:$J$364,2,FALSE),\"\")","v":""},{"$f":"IFERROR(VLOOKUP(B539,[2]Sheet4!$F$2:$J$364,3,FALSE),\"\")","v":""},{"$f":"IFERROR(VLOOKUP(B539,[2]Sheet4!$F$2:$J$364,4,FALSE),\"\")","v":""},{"$f":"IFERROR(VLOOKUP(B539,[2]Sheet4!$F$2:$J$364,5,FALSE),\"\")","v":""}]
[null,null,{"$f":"IFERROR(VLOOKUP(B540,[2]Sheet4!$F$2:$J$364,2,FALSE),\"\")","v":""},{"$f":"IFERROR(VLOOKUP(B540,[2]Sheet4!$F$2:$J$364,3,FALSE),\"\")","v":""},{"$f":"IFERROR(VLOOKUP(B540,[2]Sheet4!$F$2:$J$364,4,FALSE),\"\")","v":""},{"$f":"IFERROR(VLOOKUP(B540,[2]Sheet4!$F$2:$J$364,5,FALSE),\"\")","v":""}]
[null,null,{"$f":"IFERROR(VLOOKUP(B541,[2]Sheet4!$F$2:$J$364,2,FALSE),\"\")","v":""},{"$f":"IFERROR(VLOOKUP(B541,[2]Sheet4!$F$2:$J$364,3,FALSE),\"\")","v":""},{"$f":"IFERROR(VLOOKUP(B541,[2]Sheet4!$F$2:$J$364,4,FALSE),\"\")","v":""},{"$f":"IFERROR(VLOOKUP(B541,[2]Sheet4!$F$2:$J$364,5,FALSE),\"\")","v":""}]
[null,null,{"$f":"IFERROR(VLOOKUP(B542,[2]Sheet4!$F$2:$J$364,2,FALSE),\"\")","v":""},{"$f":"IFERROR(VLOOKUP(B542,[2]Sheet4!$F$2:$J$364,3,FALSE),\"\")","v":""},{"$f":"IFERROR(VLOOKUP(B542,[2]Sheet4!$F$2:$J$364,4,FALSE),\"\")","v":""},{"$f":"IFERROR(VLOOKUP(B542,[2]Sheet4!$F$2:$J$364,5,FALSE),\"\")","v":""}]
[null,null,{"$f":"IFERROR(VLOOKUP(B543,[2]Sheet4!$F$2:$J$364,2,FALSE),\"\")","v":""},{"$f":"IFERROR(VLOOKUP(B543,[2]Sheet4!$F$2:$J$364,3,FALSE),\"\")","v":""},{"$f":"IFERROR(VLOOKUP(B543,[2]Sheet4!$F$2:$J$364,4,FALSE),\"\")","v":""},{"$f":"IFERROR(VLOOKUP(B543,[2]Sheet4!$F$2:$J$364,5,FALSE),\"\")","v":""}]
[null,null,{"$f":"IFERROR(VLOOKUP(B544,[2]Sheet4!$F$2:$J$364,2,FALSE),\"\")","v":""},{"$f":"IFERROR(VLOOKUP(B544,[2]Sheet4!$F$2:$J$364,3,FALSE),\"\")","v":""},{"$f":"IFERROR(VLOOKUP(B544,[2]Sheet4!$F$2:$J$364,4,FALSE),\"\")","v":""},{"$f":"IFERROR(VLOOKUP(B544,[2]Sheet4!$F$2:$J$364,5,FALSE),\"\")","v":""}]
[null,null,{"$f":"IFERROR(VLOOKUP(B545,[2]Sheet4!$F$2:$J$364,2,FALSE),\"\")","v":""},{"$f":"IFERROR(VLOOKUP(B545,[2]Sheet4!$F$2:$J$364,3,FALSE),\"\")","v":""},{"$f":"IFERROR(VLOOKUP(B545,[2]Sheet4!$F$2:$J$364,4,FALSE),\"\")","v":""},{"$f":"IFERROR(VLOOKUP(B545,[2]Sheet4!$F$2:$J$364,5,FALSE),\"\")","v":""}]
[null,null,{"$f":"IFERROR(VLOOKUP(B546,[2]Sheet4!$F$2:$J$364,2,FALSE),\"\")","v":""},{"$f":"IFERROR(VLOOKUP(B546,[2]Sheet4!$F$2:$J$364,3,FALSE),\"\")","v":""},{"$f":"IFERROR(VLOOKUP(B546,[2]Sheet4!$F$2:$J$364,4,FALSE),\"\")","v":""},{"$f":"IFERROR(VLOOKUP(B546,[2]Sheet4!$F$2:$J$364,5,FALSE),\"\")","v":""}]
[null,null,{"$f":"IFERROR(VLOOKUP(B547,[2]Sheet4!$F$2:$J$364,2,FALSE),\"\")","v":""},{"$f":"IFERROR(VLOOKUP(B547,[2]Sheet4!$F$2:$J$364,3,FALSE),\"\")","v":""},{"$f":"IFERROR(VLOOKUP(B547,[2]Sheet4!$F$2:$J$364,4,FALSE),\"\")","v":""},{"$f":"IFERROR(VLOOKUP(B547,[2]Sheet4!$F$2:$J$364,5,FALSE),\"\")","v":""}]
[null,null,{"$f":"IFERROR(VLOOKUP(B548,[2]Sheet4!$F$2:$J$364,2,FALSE),\"\")","v":""},{"$f":"IFERROR(VLOOKUP(B548,[2]Sheet4!$F$2:$J$364,3,FALSE),\"\")","v":""},{"$f":"IFERROR(VLOOKUP(B548,[2]Sheet4!$F$2:$J$364,4,FALSE),\"\")","v":""},{"$f":"IFERROR(VLOOKUP(B548,[2]Sheet4!$F$2:$J$364,5,FALSE),\"\")","v":""}]
[null,null,{"$f":"IFERROR(VLOOKUP(B549,[2]Sheet4!$F$2:$J$364,2,FALSE),\"\")","v":""},{"$f":"IFERROR(VLOOKUP(B549,[2]Sheet4!$F$2:$J$364,3,FALSE),\"\")","v":""},{"$f":"IFERROR(VLOOKUP(B549,[2]Sheet4!$F$2:$J$364,4,FALSE),\"\")","v":""},{"$f":"IFERROR(VLOOKUP(B549,[2]Sheet4!$F$2:$J$364,5,FALSE),\"\")","v":""}]
[null,null,{"$f":"IFERROR(VLOOKUP(B550,[2]Sheet4!$F$2:$J$364,2,FALSE),\"\")","v":""},{"$f":"IFERROR(VLOOKUP(B550,[2]Sheet4!$F$2:$J$364,3,FALSE),\"\")","v":""},{"$f":"IFERROR(VLOOKUP(B550,[2]Sheet4!$F$2:$J$364,4,FALSE),\"\")","v":""},{"$f":"IFERROR(VLOOKUP(B550,[2]Sheet4!$F$2:$J$364,5,FALSE),\"\")","v":""}]
[null,null,{"$f":"IFERROR(VLOOKUP(B551,[2]Sheet4!$F$2:$J$364,2,FALSE),\"\")","v":""},{"$f":"IFERROR(VLOOKUP(B551,[2]Sheet4!$F$2:$J$364,3,FALSE),\"\")","v":""},{"$f":"IFERROR(VLOOKUP(B551,[2]Sheet4!$F$2:$J$364,4,FALSE),\"\")","v":""},{"$f":"IFERROR(VLOOKUP(B551,[2]Sheet4!$F$2:$J$364,5,FALSE),\"\")","v":""}]
[null,null,{"$f":"IFERROR(VLOOKUP(B552,[2]Sheet4!$F$2:$J$364,2,FALSE),\"\")","v":""},{"$f":"IFERROR(VLOOKUP(B552,[2]Sheet4!$F$2:$J$364,3,FALSE),\"\")","v":""},{"$f":"IFERROR(VLOOKUP(B552,[2]Sheet4!$F$2:$J$364,4,FALSE),\"\")","v":""},{"$f":"IFERROR(VLOOKUP(B552,[2]Sheet4!$F$2:$J$364,5,FALSE),\"\")","v":""}]
[null,null,{"$f":"IFERROR(VLOOKUP(B553,[2]Sheet4!$F$2:$J$364,2,FALSE),\"\")","v":""},{"$f":"IFERROR(VLOOKUP(B553,[2]Sheet4!$F$2:$J$364,3,FALSE),\"\")","v":""},{"$f":"IFERROR(VLOOKUP(B553,[2]Sheet4!$F$2:$J$364,4,FALSE),\"\")","v":""},{"$f":"IFERROR(VLOOKUP(B553,[2]Sheet4!$F$2:$J$364,5,FALSE),\"\")","v":""}]
[null,null,{"$f":"IFERROR(VLOOKUP(B554,[2]Sheet4!$F$2:$J$364,2,FALSE),\"\")","v":""},{"$f":"IFERROR(VLOOKUP(B554,[2]Sheet4!$F$2:$J$364,3,FALSE),\"\")","v":""},{"$f":"IFERROR(VLOOKUP(B554,[2]Sheet4!$F$2:$J$364,4,FALSE),\"\")","v":""},{"$f":"IFERROR(VLOOKUP(B554,[2]Sheet4!$F$2:$J$364,5,FALSE),\"\")","v":""}]
[null,null,{"$f":"IFERROR(VLOOKUP(B555,[2]Sheet4!$F$2:$J$364,2,FALSE),\"\")","v":""},{"$f":"IFERROR(VLOOKUP(B555,[2]Sheet4!$F$2:$J$364,3,FALSE),\"\")","v":""},{"$f":"IFERROR(VLOOKUP(B555,[2]Sheet4!$F$2:$J$364,4,FALSE),\"\")","v":""},{"$f":"IFERROR(VLOOKUP(B555,[2]Sheet4!$F$2:$J$364,5,FALSE),\"\")","v":""}]
[null,null,{"$f":"IFERROR(VLOOKUP(B556,[2]Sheet4!$F$2:$J$364,2,FALSE),\"\")","v":""},{"$f":"IFERROR(VLOOKUP(B556,[2]Sheet4!$F$2:$J$364,3,FALSE),\"\")","v":""},{"$f":"IFERROR(VLOOKUP(B556,[2]Sheet4!$F$2:$J$364,4,FALSE),\"\")","v":""},{"$f":"IFERROR(VLOOKUP(B556,[2]Sheet4!$F$2:$J$364,5,FALSE),\"\")","v":""}]
[null,null,{"$f":"IFERROR(VLOOKUP(B557,[2]Sheet4!$F$2:$J$364,2,FALSE),\"\")","v":""},{"$f":"IFERROR(VLOOKUP(B557,[2]Sheet4!$F$2:$J$364,3,FALSE),\"\")","v":""},{"$f":"IFERROR(VLOOKUP(B557,[2]Sheet4!$F$2:$J$364,4,FALSE),\"\")","v":""},{"$f":"IFERROR(VLOOKUP(B557,[2]Sheet4!$F$2:$J$364,5,FALSE),\"\")","v":""}]
[null,null,{"$f":"IFERROR(VLOOKUP(B558,[2]Sheet4!$F$2:$J$364,2,FALSE),\"\")","v":""},{"$f":"IFERROR(VLOOKUP(B558,[2]Sheet4!$F$2:$J$364,3,FALSE),\"\")","v":""},{"$f":"IFERROR(VLOOKUP(B558,[2]Sheet4!$F$2:$J$364,4,FALSE),\"\")","v":""},{"$f":"IFERROR(VLOOKUP(B558,[2]Sheet4!$F$2:$J$364,5,FALSE),\"\")","v":""}]
[null,null,{"$f":"IFERROR(VLOOKUP(B559,[2]Sheet4!$F$2:$J$364,2,FALSE),\"\")","v":""},{"$f":"IFERROR(VLOOKUP(B559,[2]Sheet4!$F$2:$J$364,3,FALSE),\"\")","v":""},{"$f":"IFERROR(VLOOKUP(B559,[2]Sheet4!$F$2:$J$364,4,FALSE),\"\")","v":""},{"$f":"IFERROR(VLOOKUP(B559,[2]Sheet4!$F$2:$J$364,5,FALSE),\"\")","v":""}]
[null,null,{"$f":"IFERROR(VLOOKUP(B560,[2]Sheet4!$F$2:$J$364,2,FALSE),\"\")","v":""},{"$f":"IFERROR(VLOOKUP(B560,[2]Sheet4!$F$2:$J$364,3,FALSE),\"\")","v":""},{"$f":"IFERROR(VLOOKUP(B560,[2]Sheet4!$F$2:$J$364,4,FALSE),\"\")","v":""},{"$f":"IFERROR(VLOOKUP(B560,[2]Sheet4!$F$2:$J$364,5,FALSE),\"\")","v":""}]
[null,null,{"$f":"IFERROR(VLOOKUP(B561,[2]Sheet4!$F$2:$J$364,2,FALSE),\"\")","v":""},{"$f":"IFERROR(VLOOKUP(B561,[2]Sheet4!$F$2:$J$364,3,FALSE),\"\")","v":""},{"$f":"IFERROR(VLOOKUP(B561,[2]Sheet4!$F$2:$J$364,4,FALSE),\"\")","v":""},{"$f":"IFERROR(VLOOKUP(B561,[2]Sheet4!$F$2:$J$364,5,FALSE),\"\")","v":""}]
[null,null,{"$f":"IFERROR(VLOOKUP(B562,[2]Sheet4!$F$2:$J$364,2,FALSE),\"\")","v":""},{"$f":"IFERROR(VLOOKUP(B562,[2]Sheet4!$F$2:$J$364,3,FALSE),\"\")","v":""},{"$f":"IFERROR(VLOOKUP(B562,[2]Sheet4!$F$2:$J$364,4,FALSE),\"\")","v":""},{"$f":"IFERROR(VLOOKUP(B562,[2]Sheet4!$F$2:$J$364,5,FALSE),\"\")","v":""}]
[null,null,{"$f":"IFERROR(VLOOKUP(B563,[2]Sheet4!$F$2:$J$364,2,FALSE),\"\")","v":""},{"$f":"IFERROR(VLOOKUP(B563,[2]Sheet4!$F$2:$J$364,3,FALSE),\"\")","v":""},{"$f":"IFERROR(VLOOKUP(B563,[2]Sheet4!$F$2:$J$364,4,FALSE),\"\")","v":""},{"$f":"IFERROR(VLOOKUP(B563,[2]Sheet4!$F$2:$J$364,5,FALSE),\"\")","v":""}]
[null,null,{"$f":"IFERROR(VLOOKUP(B564,[2]Sheet4!$F$2:$J$364,2,FALSE),\"\")","v":""},{"$f":"IFERROR(VLOOKUP(B564,[2]Sheet4!$F$2:$J$364,3,FALSE),\"\")","v":""},{"$f":"IFERROR(VLOOKUP(B564,[2]Sheet4!$F$2:$J$364,4,FALSE),\"\")","v":""},{"$f":"IFERROR(VLOOKUP(B564,[2]Sheet4!$F$2:$J$364,5,FALSE),\"\")","v":""}]
[null,null,{"$f":"IFERROR(VLOOKUP(B565,[2]Sheet4!$F$2:$J$364,2,FALSE),\"\")","v":""},{"$f":"IFERROR(VLOOKUP(B565,[2]Sheet4!$F$2:$J$364,3,FALSE),\"\")","v":""},{"$f":"IFERROR(VLOOKUP(B565,[2]Sheet4!$F$2:$J$364,4,FALSE),\"\")","v":""},{"$f":"IFERROR(VLOOKUP(B565,[2]Sheet4!$F$2:$J$364,5,FALSE),\"\")","v":""}]
[null,null,{"$f":"IFERROR(VLOOKUP(B566,[2]Sheet4!$F$2:$J$364,2,FALSE),\"\")","v":""},{"$f":"IFERROR(VLOOKUP(B566,[2]Sheet4!$F$2:$J$364,3,FALSE),\"\")","v":""},{"$f":"IFERROR(VLOOKUP(B566,[2]Sheet4!$F$2:$J$364,4,FALSE),\"\")","v":""},{"$f":"IFERROR(VLOOKUP(B566,[2]Sheet4!$F$2:$J$364,5,FALSE),\"\")","v":""}]
[null,null,{"$f":"IFERROR(VLOOKUP(B567,[2]Sheet4!$F$2:$J$364,2,FALSE),\"\")","v":""},{"$f":"IFERROR(VLOOKUP(B567,[2]Sheet4!$F$2:$J$364,3,FALSE),\"\")","v":""},{"$f":"IFERROR(VLOOKUP(B567,[2]Sheet4!$F$2:$J$364,4,FALSE),\"\")","v":""},{"$f":"IFERROR(VLOOKUP(B567,[2]Sheet4!$F$2:$J$364,5,FALSE),\"\")","v":""}]
[null,null,{"$f":"IFERROR(VLOOKUP(B568,[2]Sheet4!$F$2:$J$364,2,FALSE),\"\")","v":""},{"$f":"IFERROR(VLOOKUP(B568,[2]Sheet4!$F$2:$J$364,3,FALSE),\"\")","v":""},{"$f":"IFERROR(VLOOKUP(B568,[2]Sheet4!$F$2:$J$364,4,FALSE),\"\")","v":""},{"$f":"IFERROR(VLOOKUP(B568,[2]Sheet4!$F$2:$J$364,5,FALSE),\"\")","v":""}]
[null,null,{"$f":"IFERROR(VLOOKUP(B569,[2]Sheet4!$F$2:$J$364,2,FALSE),\"\")","v":""},{"$f":"IFERROR(VLOOKUP(B569,[2]Sheet4!$F$2:$J$364,3,FALSE),\"\")","v":""},{"$f":"IFERROR(VLOOKUP(B569,[2]Sheet4!$F$2:$J$364,4,FALSE),\"\")","v":""},{"$f":"IFERROR(VLOOKUP(B569,[2]Sheet4!$F$2:$J$364,5,FALSE),\"\")","v":""}]
[null,null,{"$f":"IFERROR(VLOOKUP(B570,[2]Sheet4!$F$2:$J$364,2,FALSE),\"\")","v":""},{"$f":"IFERROR(VLOOKUP(B570,[2]Sheet4!$F$2:$J$364,3,FALSE),\"\")","v":""},{"$f":"IFERROR(VLOOKUP(B570,[2]Sheet4!$F$2:$J$364,4,FALSE),\"\")","v":""},{"$f":"IFERROR(VLOOKUP(B570,[2]Sheet4!$F$2:$J$364,5,FALSE),\"\")","v":""}]
[null,null,{"$f":"IFERROR(VLOOKUP(B571,[2]Sheet4!$F$2:$J$364,2,FALSE),\"\")","v":""},{"$f":"IFERROR(VLOOKUP(B571,[2]Sheet4!$F$2:$J$364,3,FALSE),\"\")","v":""},{"$f":"IFERROR(VLOOKUP(B571,[2]Sheet4!$F$2:$J$364,4,FALSE),\"\")","v":""},{"$f":"IFERROR(VLOOKUP(B571,[2]Sheet4!$F$2:$J$364,5,FALSE),\"\")","v":""}]
[null,null,{"$f":"IFERROR(VLOOKUP(B572,[2]Sheet4!$F$2:$J$364,2,FALSE),\"\")","v":""},{"$f":"IFERROR(VLOOKUP(B572,[2]Sheet4!$F$2:$J$364,3,FALSE),\"\")","v":""},{"$f":"IFERROR(VLOOKUP(B572,[2]Sheet4!$F$2:$J$364,4,FALSE),\"\")","v":""},{"$f":"IFERROR(VLOOKUP(B572,[2]Sheet4!$F$2:$J$364,5,FALSE),\"\")","v":""}]
[null,null,{"$f":"IFERROR(VLOOKUP(B573,[2]Sheet4!$F$2:$J$364,2,FALSE),\"\")","v":""},{"$f":"IFERROR(VLOOKUP(B573,[2]Sheet4!$F$2:$J$364,3,FALSE),\"\")","v":""},{"$f":"IFERROR(VLOOKUP(B573,[2]Sheet4!$F$2:$J$364,4,FALSE),\"\")","v":""},{"$f":"IFERROR(VLOOKUP(B573,[2]Sheet4!$F$2:$J$364,5,FALSE),\"\")","v":""}]
[null,null,{"$f":"IFERROR(VLOOKUP(B574,[2]Sheet4!$F$2:$J$364,2,FALSE),\"\")","v":""},{"$f":"IFERROR(VLOOKUP(B574,[2]Sheet4!$F$2:$J$364,3,FALSE),\"\")","v":""},{"$f":"IFERROR(VLOOKUP(B574,[2]Sheet4!$F$2:$J$364,4,FALSE),\"\")","v":""},{"$f":"IFERROR(VLOOKUP(B574,[2]Sheet4!$F$2:$J$364,5,FALSE),\"\")","v":""}]
[null,null,{"$f":"IFERROR(VLOOKUP(B575,[2]Sheet4!$F$2:$J$364,2,FALSE),\"\")","v":""},{"$f":"IFERROR(VLOOKUP(B575,[2]Sheet4!$F$2:$J$364,3,FALSE),\"\")","v":""},{"$f":"IFERROR(VLOOKUP(B575,[2]Sheet4!$F$2:$J$364,4,FALSE),\"\")","v":""},{"$f":"IFERROR(VLOOKUP(B575,[2]Sheet4!$F$2:$J$364,5,FALSE),\"\")","v":""}]
[null,null,{"$f":"IFERROR(VLOOKUP(B576,[2]Sheet4!$F$2:$J$364,2,FALSE),\"\")","v":""},{"$f":"IFERROR(VLOOKUP(B576,[2]Sheet4!$F$2:$J$364,3,FALSE),\"\")","v":""},{"$f":"IFERROR(VLOOKUP(B576,[2]Sheet4!$F$2:$J$364,4,FALSE),\"\")","v":""},{"$f":"IFERROR(VLOOKUP(B576,[2]Sheet4!$F$2:$J$364,5,FALSE),\"\")","v":""}]
[null,null,{"$f":"IFERROR(VLOOKUP(B577,[2]Sheet4!$F$2:$J$364,2,FALSE),\"\")","v":""},{"$f":"IFERROR(VLOOKUP(B577,[2]Sheet4!$F$2:$J$364,3,FALSE),\"\")","v":""},{"$f":"IFERROR(VLOOKUP(B577,[2]Sheet4!$F$2:$J$364,4,FALSE),\"\")","v":""},{"$f":"IFERROR(VLOOKUP(B577,[2]Sheet4!$F$2:$J$364,5,FALSE),\"\")","v":""}]
[null,null,{"$f":"IFERROR(VLOOKUP(B578,[2]Sheet4!$F$2:$J$364,2,FALSE),\"\")","v":""},{"$f":"IFERROR(VLOOKUP(B578,[2]Sheet4!$F$2:$J$364,3,FALSE),\"\")","v":""},{"$f":"IFERROR(VLOOKUP(B578,[2]Sheet4!$F$2:$J$364,4,FALSE),\"\")","v":""},{"$f":"IFERROR(VLOOKUP(B578,[2]Sheet4!$F$2:$J$364,5,FALSE),\"\")","v":""}]
[null,null,{"$f":"IFERROR(VLOOKUP(B579,[2]Sheet4!$F$2:$J$364,2,FALSE),\"\")","v":""},{"$f":"IFERROR(VLOOKUP(B579,[2]Sheet4!$F$2:$J$364,3,FALSE),\"\")","v":""},{"$f":"IFERROR(VLOOKUP(B579,[2]Sheet4!$F$2:$J$364,4,FALSE),\"\")","v":""},{"$f":"IFERROR(VLOOKUP(B579,[2]Sheet4!$F$2:$J$364,5,FALSE),\"\")","v":""}]
[null,null,{"$f":"IFERROR(VLOOKUP(B580,[2]Sheet4!$F$2:$J$364,2,FALSE),\"\")","v":""},{"$f":"IFERROR(VLOOKUP(B580,[2]Sheet4!$F$2:$J$364,3,FALSE),\"\")","v":""},{"$f":"IFERROR(VLOOKUP(B580,[2]Sheet4!$F$2:$J$364,4,FALSE),\"\")","v":""},{"$f":"IFERROR(VLOOKUP(B580,[2]Sheet4!$F$2:$J$364,5,FALSE),\"\")","v":""}]
[null,null,{"$f":"IFERROR(VLOOKUP(B581,[2]Sheet4!$F$2:$J$364,2,FALSE),\"\")","v":""},{"$f":"IFERROR(VLOOKUP(B581,[2]Sheet4!$F$2:$J$364,3,FALSE),\"\")","v":""},{"$f":"IFERROR(VLOOKUP(B581,[2]Sheet4!$F$2:$J$364,4,FALSE),\"\")","v":""},{"$f":"IFERROR(VLOOKUP(B581,[2]Sheet4!$F$2:$J$364,5,FALSE),\"\")","v":""}]
[null,null,{"$f":"IFERROR(VLOOKUP(B582,[2]Sheet4!$F$2:$J$364,2,FALSE),\"\")","v":""},{"$f":"IFERROR(VLOOKUP(B582,[2]Sheet4!$F$2:$J$364,3,FALSE),\"\")","v":""},{"$f":"IFERROR(VLOOKUP(B582,[2]Sheet4!$F$2:$J$364,4,FALSE),\"\")","v":""},{"$f":"IFERROR(VLOOKUP(B582,[2]Sheet4!$F$2:$J$364,5,FALSE),\"\")","v":""}]
[null,null,{"$f":"IFERROR(VLOOKUP(B583,[2]Sheet4!$F$2:$J$364,2,FALSE),\"\")","v":""},{"$f":"IFERROR(VLOOKUP(B583,[2]Sheet4!$F$2:$J$364,3,FALSE),\"\")","v":""},{"$f":"IFERROR(VLOOKUP(B583,[2]Sheet4!$F$2:$J$364,4,FALSE),\"\")","v":""},{"$f":"IFERROR(VLOOKUP(B583,[2]Sheet4!$F$2:$J$364,5,FALSE),\"\")","v":""}]
[null,null,{"$f":"IFERROR(VLOOKUP(B584,[2]Sheet4!$F$2:$J$364,2,FALSE),\"\")","v":""},{"$f":"IFERROR(VLOOKUP(B584,[2]Sheet4!$F$2:$J$364,3,FALSE),\"\")","v":""},{"$f":"IFERROR(VLOOKUP(B584,[2]Sheet4!$F$2:$J$364,4,FALSE),\"\")","v":""},{"$f":"IFERROR(VLOOKUP(B584,[2]Sheet4!$F$2:$J$364,5,FALSE),\"\")","v":""}]
[null,null,{"$f":"IFERROR(VLOOKUP(B585,[2]Sheet4!$F$2:$J$364,2,FALSE),\"\")","v":""},{"$f":"IFERROR(VLOOKUP(B585,[2]Sheet4!$F$2:$J$364,3,FALSE),\"\")","v":""},{"$f":"IFERROR(VLOOKUP(B585,[2]Sheet4!$F$2:$J$364,4,FALSE),\"\")","v":""},{"$f":"IFERROR(VLOOKUP(B585,[2]Sheet4!$F$2:$J$364,5,FALSE),\"\")","v":""}]
[null,null,{"$f":"IFERROR(VLOOKUP(B586,[2]Sheet4!$F$2:$J$364,2,FALSE),\"\")","v":""},{"$f":"IFERROR(VLOOKUP(B586,[2]Sheet4!$F$2:$J$364,3,FALSE),\"\")","v":""},{"$f":"IFERROR(VLOOKUP(B586,[2]Sheet4!$F$2:$J$364,4,FALSE),\"\")","v":""},{"$f":"IFERROR(VLOOKUP(B586,[2]Sheet4!$F$2:$J$364,5,FALSE),\"\")","v":""}]
[null,null,{"$f":"IFERROR(VLOOKUP(B587,[2]Sheet4!$F$2:$J$364,2,FALSE),\"\")","v":""},{"$f":"IFERROR(VLOOKUP(B587,[2]Sheet4!$F$2:$J$364,3,FALSE),\"\")","v":""},{"$f":"IFERROR(VLOOKUP(B587,[2]Sheet4!$F$2:$J$364,4,FALSE),\"\")","v":""},{"$f":"IFERROR(VLOOKUP(B587,[2]Sheet4!$F$2:$J$364,5,FALSE),\"\")","v":""}]
[null,null,{"$f":"IFERROR(VLOOKUP(B588,[2]Sheet4!$F$2:$J$364,2,FALSE),\"\")","v":""},{"$f":"IFERROR(VLOOKUP(B588,[2]Sheet4!$F$2:$J$364,3,FALSE),\"\")","v":""},{"$f":"IFERROR(VLOOKUP(B588,[2]Sheet4!$F$2:$J$364,4,FALSE),\"\")","v":""},{"$f":"IFERROR(VLOOKUP(B588,[2]Sheet4!$F$2:$J$364,5,FALSE),\"\")","v":""}]
[null,null,{"$f":"IFERROR(VLOOKUP(B589,[2]Sheet4!$F$2:$J$364,2,FALSE),\"\")","v":""},{"$f":"IFERROR(VLOOKUP(B589,[2]Sheet4!$F$2:$J$364,3,FALSE),\"\")","v":""},{"$f":"IFERROR(VLOOKUP(B589,[2]Sheet4!$F$2:$J$364,4,FALSE),\"\")","v":""},{"$f":"IFERROR(VLOOKUP(B589,[2]Sheet4!$F$2:$J$364,5,FALSE),\"\")","v":""}]
[null,null,{"$f":"IFERROR(VLOOKUP(B590,[2]Sheet4!$F$2:$J$364,2,FALSE),\"\")","v":""},{"$f":"IFERROR(VLOOKUP(B590,[2]Sheet4!$F$2:$J$364,3,FALSE),\"\")","v":""},{"$f":"IFERROR(VLOOKUP(B590,[2]Sheet4!$F$2:$J$364,4,FALSE),\"\")","v":""},{"$f":"IFERROR(VLOOKUP(B590,[2]Sheet4!$F$2:$J$364,5,FALSE),\"\")","v":""}]
[null,null,{"$f":"IFERROR(VLOOKUP(B591,[2]Sheet4!$F$2:$J$364,2,FALSE),\"\")","v":""},{"$f":"IFERROR(VLOOKUP(B591,[2]Sheet4!$F$2:$J$364,3,FALSE),\"\")","v":""},{"$f":"IFERROR(VLOOKUP(B591,[2]Sheet4!$F$2:$J$364,4,FALSE),\"\")","v":""},{"$f":"IFERROR(VLOOKUP(B591,[2]Sheet4!$F$2:$J$364,5,FALSE),\"\")","v":""}]
[null,null,{"$f":"IFERROR(VLOOKUP(B592,[2]Sheet4!$F$2:$J$364,2,FALSE),\"\")","v":""},{"$f":"IFERROR(VLOOKUP(B592,[2]Sheet4!$F$2:$J$364,3,FALSE),\"\")","v":""},{"$f":"IFERROR(VLOOKUP(B592,[2]Sheet4!$F$2:$J$364,4,FALSE),\"\")","v":""},{"$f":"IFERROR(VLOOKUP(B592,[2]Sheet4!$F$2:$J$364,5,FALSE),\"\")","v":""}]
[null,null,{"$f":"IFERROR(VLOOKUP(B593,[2]Sheet4!$F$2:$J$364,2,FALSE),\"\")","v":""},{"$f":"IFERROR(VLOOKUP(B593,[2]Sheet4!$F$2:$J$364,3,FALSE),\"\")","v":""},{"$f":"IFERROR(VLOOKUP(B593,[2]Sheet4!$F$2:$J$364,4,FALSE),\"\")","v":""},{"$f":"IFERROR(VLOOKUP(B593,[2]Sheet4!$F$2:$J$364,5,FALSE),\"\")","v":""}]
[null,null,{"$f":"IFERROR(VLOOKUP(B594,[2]Sheet4!$F$2:$J$364,2,FALSE),\"\")","v":""},{"$f":"IFERROR(VLOOKUP(B594,[2]Sheet4!$F$2:$J$364,3,FALSE),\"\")","v":""},{"$f":"IFERROR(VLOOKUP(B594,[2]Sheet4!$F$2:$J$364,4,FALSE),\"\")","v":""},{"$f":"IFERROR(VLOOKUP(B594,[2]Sheet4!$F$2:$J$364,5,FALSE),\"\")","v":""}]
[null,null,{"$f":"IFERROR(VLOOKUP(B595,[2]Sheet4!$F$2:$J$364,2,FALSE),\"\")","v":""},{"$f":"IFERROR(VLOOKUP(B595,[2]Sheet4!$F$2:$J$364,3,FALSE),\"\")","v":""},{"$f":"IFERROR(VLOOKUP(B595,[2]Sheet4!$F$2:$J$364,4,FALSE),\"\")","v":""},{"$f":"IFERROR(VLOOKUP(B595,[2]Sheet4!$F$2:$J$364,5,FALSE),\"\")","v":""}]
[null,null,{"$f":"IFERROR(VLOOKUP(B596,[2]Sheet4!$F$2:$J$364,2,FALSE),\"\")","v":""},{"$f":"IFERROR(VLOOKUP(B596,[2]Sheet4!$F$2:$J$364,3,FALSE),\"\")","v":""},{"$f":"IFERROR(VLOOKUP(B596,[2]Sheet4!$F$2:$J$364,4,FALSE),\"\")","v":""},{"$f":"IFERROR(VLOOKUP(B596,[2]Sheet4!$F$2:$J$364,5,FALSE),\"\")","v":""}]
[null,null,{"$f":"IFERROR(VLOOKUP(B597,[2]Sheet4!$F$2:$J$364,2,FALSE),\"\")","v":""},{"$f":"IFERROR(VLOOKUP(B597,[2]Sheet4!$F$2:$J$364,3,FALSE),\"\")","v":""},{"$f":"IFERROR(VLOOKUP(B597,[2]Sheet4!$F$2:$J$364,4,FALSE),\"\")","v":""},{"$f":"IFERROR(VLOOKUP(B597,[2]Sheet4!$F$2:$J$364,5,FALSE),\"\")","v":""}]
[null,null,{"$f":"IFERROR(VLOOKUP(B598,[2]Sheet4!$F$2:$J$364,2,FALSE),\"\")","v":""},{"$f":"IFERROR(VLOOKUP(B598,[2]Sheet4!$F$2:$J$364,3,FALSE),\"\")","v":""},{"$f":"IFERROR(VLOOKUP(B598,[2]Sheet4!$F$2:$J$364,4,FALSE),\"\")","v":""},{"$f":"IFERROR(VLOOKUP(B598,[2]Sheet4!$F$2:$J$364,5,FALSE),\"\")","v":""}]
[null,null,{"$f":"IFERROR(VLOOKUP(B599,[2]Sheet4!$F$2:$J$364,2,FALSE),\"\")","v":""},{"$f":"IFERROR(VLOOKUP(B599,[2]Sheet4!$F$2:$J$364,3,FALSE),\"\")","v":""},{"$f":"IFERROR(VLOOKUP(B599,[2]Sheet4!$F$2:$J$364,4,FALSE),\"\")","v":""},{"$f":"IFERROR(VLOOKUP(B599,[2]Sheet4!$F$2:$J$364,5,FALSE),\"\")","v":""}]
[null,null,{"$f":"IFERROR(VLOOKUP(B600,[2]Sheet4!$F$2:$J$364,2,FALSE),\"\")","v":""},{"$f":"IFERROR(VLOOKUP(B600,[2]Sheet4!$F$2:$J$364,3,FALSE),\"\")","v":""},{"$f":"IFERROR(VLOOKUP(B600,[2]Sheet4!$F$2:$J$364,4,FALSE),\"\")","v":""},{"$f":"IFERROR(VLOOKUP(B600,[2]Sheet4!$F$2:$J$364,5,FALSE),\"\")","v":""}]
[null,null,{"$f":"IFERROR(VLOOKUP(B601,[2]Sheet4!$F$2:$J$364,2,FALSE),\"\")","v":""},{"$f":"IFERROR(VLOOKUP(B601,[2]Sheet4!$F$2:$J$364,3,FALSE),\"\")","v":""},{"$f":"IFERROR(VLOOKUP(B601,[2]Sheet4!$F$2:$J$364,4,FALSE),\"\")","v":""},{"$f":"IFERROR(VLOOKUP(B601,[2]Sheet4!$F$2:$J$364,5,FALSE),\"\")","v":""}]
[null,null,{"$f":"IFERROR(VLOOKUP(B602,[2]Sheet4!$F$2:$J$364,2,FALSE),\"\")","v":""},{"$f":"IFERROR(VLOOKUP(B602,[2]Sheet4!$F$2:$J$364,3,FALSE),\"\")","v":""},{"$f":"IFERROR(VLOOKUP(B602,[2]Sheet4!$F$2:$J$364,4,FALSE),\"\")","v":""},{"$f":"IFERROR(VLOOKUP(B602,[2]Sheet4!$F$2:$J$364,5,FALSE),\"\")","v":""}]
[null,null,{"$f":"IFERROR(VLOOKUP(B603,[2]Sheet4!$F$2:$J$364,2,FALSE),\"\")","v":""},{"$f":"IFERROR(VLOOKUP(B603,[2]Sheet4!$F$2:$J$364,3,FALSE),\"\")","v":""},{"$f":"IFERROR(VLOOKUP(B603,[2]Sheet4!$F$2:$J$364,4,FALSE),\"\")","v":""},{"$f":"IFERROR(VLOOKUP(B603,[2]Sheet4!$F$2:$J$364,5,FALSE),\"\")","v":""}]
[null,null,{"$f":"IFERROR(VLOOKUP(B604,[2]Sheet4!$F$2:$J$364,2,FALSE),\"\")","v":""},{"$f":"IFERROR(VLOOKUP(B604,[2]Sheet4!$F$2:$J$364,3,FALSE),\"\")","v":""},{"$f":"IFERROR(VLOOKUP(B604,[2]Sheet4!$F$2:$J$364,4,FALSE),\"\")","v":""},{"$f":"IFERROR(VLOOKUP(B604,[2]Sheet4!$F$2:$J$364,5,FALSE),\"\")","v":""}]
[null,null,{"$f":"IFERROR(VLOOKUP(B605,[2]Sheet4!$F$2:$J$364,2,FALSE),\"\")","v":""},{"$f":"IFERROR(VLOOKUP(B605,[2]Sheet4!$F$2:$J$364,3,FALSE),\"\")","v":""},{"$f":"IFERROR(VLOOKUP(B605,[2]Sheet4!$F$2:$J$364,4,FALSE),\"\")","v":""},{"$f":"IFERROR(VLOOKUP(B605,[2]Sheet4!$F$2:$J$364,5,FALSE),\"\")","v":""}]
[null,null,{"$f":"IFERROR(VLOOKUP(B606,[2]Sheet4!$F$2:$J$364,2,FALSE),\"\")","v":""},{"$f":"IFERROR(VLOOKUP(B606,[2]Sheet4!$F$2:$J$364,3,FALSE),\"\")","v":""},{"$f":"IFERROR(VLOOKUP(B606,[2]Sheet4!$F$2:$J$364,4,FALSE),\"\")","v":""},{"$f":"IFERROR(VLOOKUP(B606,[2]Sheet4!$F$2:$J$364,5,FALSE),\"\")","v":""}]
[null,null,{"$f":"IFERROR(VLOOKUP(B607,[2]Sheet4!$F$2:$J$364,2,FALSE),\"\")","v":""},{"$f":"IFERROR(VLOOKUP(B607,[2]Sheet4!$F$2:$J$364,3,FALSE),\"\")","v":""},{"$f":"IFERROR(VLOOKUP(B607,[2]Sheet4!$F$2:$J$364,4,FALSE),\"\")","v":""},{"$f":"IFERROR(VLOOKUP(B607,[2]Sheet4!$F$2:$J$364,5,FALSE),\"\")","v":""}]
[null,null,{"$f":"IFERROR(VLOOKUP(B608,[2]Sheet4!$F$2:$J$364,2,FALSE),\"\")","v":""},{"$f":"IFERROR(VLOOKUP(B608,[2]Sheet4!$F$2:$J$364,3,FALSE),\"\")","v":""},{"$f":"IFERROR(VLOOKUP(B608,[2]Sheet4!$F$2:$J$364,4,FALSE),\"\")","v":""},{"$f":"IFERROR(VLOOKUP(B608,[2]Sheet4!$F$2:$J$364,5,FALSE),\"\")","v":""}]
[null,null,{"$f":"IFERROR(VLOOKUP(B609,[2]Sheet4!$F$2:$J$364,2,FALSE),\"\")","v":""},{"$f":"IFERROR(VLOOKUP(B609,[2]Sheet4!$F$2:$J$364,3,FALSE),\"\")","v":""},{"$f":"IFERROR(VLOOKUP(B609,[2]Sheet4!$F$2:$J$364,4,FALSE),\"\")","v":""},{"$f":"IFERROR(VLOOKUP(B609,[2]Sheet4!$F$2:$J$364,5,FALSE),\"\")","v":""}]
[null,null,{"$f":"IFERROR(VLOOKUP(B610,[2]Sheet4!$F$2:$J$364,2,FALSE),\"\")","v":""},{"$f":"IFERROR(VLOOKUP(B610,[2]Sheet4!$F$2:$J$364,3,FALSE),\"\")","v":""},{"$f":"IFERROR(VLOOKUP(B610,[2]Sheet4!$F$2:$J$364,4,FALSE),\"\")","v":""},{"$f":"IFERROR(VLOOKUP(B610,[2]Sheet4!$F$2:$J$364,5,FALSE),\"\")","v":""}]
[null,null,{"$f":"IFERROR(VLOOKUP(B611,[2]Sheet4!$F$2:$J$364,2,FALSE),\"\")","v":""},{"$f":"IFERROR(VLOOKUP(B611,[2]Sheet4!$F$2:$J$364,3,FALSE),\"\")","v":""},{"$f":"IFERROR(VLOOKUP(B611,[2]Sheet4!$F$2:$J$364,4,FALSE),\"\")","v":""},{"$f":"IFERROR(VLOOKUP(B611,[2]Sheet4!$F$2:$J$364,5,FALSE),\"\")","v":""}]
[null,null,{"$f":"IFERROR(VLOOKUP(B612,[2]Sheet4!$F$2:$J$364,2,FALSE),\"\")","v":""},{"$f":"IFERROR(VLOOKUP(B612,[2]Sheet4!$F$2:$J$364,3,FALSE),\"\")","v":""},{"$f":"IFERROR(VLOOKUP(B612,[2]Sheet4!$F$2:$J$364,4,FALSE),\"\")","v":""},{"$f":"IFERROR(VLOOKUP(B612,[2]Sheet4!$F$2:$J$364,5,FALSE),\"\")","v":""}]
[null,null,{"$f":"IFERROR(VLOOKUP(B613,[2]Sheet4!$F$2:$J$364,2,FALSE),\"\")","v":""},{"$f":"IFERROR(VLOOKUP(B613,[2]Sheet4!$F$2:$J$364,3,FALSE),\"\")","v":""},{"$f":"IFERROR(VLOOKUP(B613,[2]Sheet4!$F$2:$J$364,4,FALSE),\"\")","v":""},{"$f":"IFERROR(VLOOKUP(B613,[2]Sheet4!$F$2:$J$364,5,FALSE),\"\")","v":""}]
[null,null,{"$f":"IFERROR(VLOOKUP(B614,[2]Sheet4!$F$2:$J$364,2,FALSE),\"\")","v":""},{"$f":"IFERROR(VLOOKUP(B614,[2]Sheet4!$F$2:$J$364,3,FALSE),\"\")","v":""},{"$f":"IFERROR(VLOOKUP(B614,[2]Sheet4!$F$2:$J$364,4,FALSE),\"\")","v":""},{"$f":"IFERROR(VLOOKUP(B614,[2]Sheet4!$F$2:$J$364,5,FALSE),\"\")","v":""}]
[null,null,{"$f":"IFERROR(VLOOKUP(B615,[2]Sheet4!$F$2:$J$364,2,FALSE),\"\")","v":""},{"$f":"IFERROR(VLOOKUP(B615,[2]Sheet4!$F$2:$J$364,3,FALSE),\"\")","v":""},{"$f":"IFERROR(VLOOKUP(B615,[2]Sheet4!$F$2:$J$364,4,FALSE),\"\")","v":""},{"$f":"IFERROR(VLOOKUP(B615,[2]Sheet4!$F$2:$J$364,5,FALSE),\"\")","v":""}]
[null,null,{"$f":"IFERROR(VLOOKUP(B616,[2]Sheet4!$F$2:$J$364,2,FALSE),\"\")","v":""},{"$f":"IFERROR(VLOOKUP(B616,[2]Sheet4!$F$2:$J$364,3,FALSE),\"\")","v":""},{"$f":"IFERROR(VLOOKUP(B616,[2]Sheet4!$F$2:$J$364,4,FALSE),\"\")","v":""},{"$f":"IFERROR(VLOOKUP(B616,[2]Sheet4!$F$2:$J$364,5,FALSE),\"\")","v":""}]
[null,null,{"$f":"IFERROR(VLOOKUP(B617,[2]Sheet4!$F$2:$J$364,2,FALSE),\"\")","v":""},{"$f":"IFERROR(VLOOKUP(B617,[2]Sheet4!$F$2:$J$364,3,FALSE),\"\")","v":""},{"$f":"IFERROR(VLOOKUP(B617,[2]Sheet4!$F$2:$J$364,4,FALSE),\"\")","v":""},{"$f":"IFERROR(VLOOKUP(B617,[2]Sheet4!$F$2:$J$364,5,FALSE),\"\")","v":""}]
[null,null,{"$f":"IFERROR(VLOOKUP(B618,[2]Sheet4!$F$2:$J$364,2,FALSE),\"\")","v":""},{"$f":"IFERROR(VLOOKUP(B618,[2]Sheet4!$F$2:$J$364,3,FALSE),\"\")","v":""},{"$f":"IFERROR(VLOOKUP(B618,[2]Sheet4!$F$2:$J$364,4,FALSE),\"\")","v":""},{"$f":"IFERROR(VLOOKUP(B618,[2]Sheet4!$F$2:$J$364,5,FALSE),\"\")","v":""}]
[null,null,{"$f":"IFERROR(VLOOKUP(B619,[2]Sheet4!$F$2:$J$364,2,FALSE),\"\")","v":""},{"$f":"IFERROR(VLOOKUP(B619,[2]Sheet4!$F$2:$J$364,3,FALSE),\"\")","v":""},{"$f":"IFERROR(VLOOKUP(B619,[2]Sheet4!$F$2:$J$364,4,FALSE),\"\")","v":""},{"$f":"IFERROR(VLOOKUP(B619,[2]Sheet4!$F$2:$J$364,5,FALSE),\"\")","v":""}]
[null,null,{"$f":"IFERROR(VLOOKUP(B620,[2]Sheet4!$F$2:$J$364,2,FALSE),\"\")","v":""},{"$f":"IFERROR(VLOOKUP(B620,[2]Sheet4!$F$2:$J$364,3,FALSE),\"\")","v":""},{"$f":"IFERROR(VLOOKUP(B620,[2]Sheet4!$F$2:$J$364,4,FALSE),\"\")","v":""},{"$f":"IFERROR(VLOOKUP(B620,[2]Sheet4!$F$2:$J$364,5,FALSE),\"\")","v":""}]
[null,null,{"$f":"IFERROR(VLOOKUP(B621,[2]Sheet4!$F$2:$J$364,2,FALSE),\"\")","v":""},{"$f":"IFERROR(VLOOKUP(B621,[2]Sheet4!$F$2:$J$364,3,FALSE),\"\")","v":""},{"$f":"IFERROR(VLOOKUP(B621,[2]Sheet4!$F$2:$J$364,4,FALSE),\"\")","v":""},{"$f":"IFERROR(VLOOKUP(B621,[2]Sheet4!$F$2:$J$364,5,FALSE),\"\")","v":""}]
[null,null,{"$f":"IFERROR(VLOOKUP(B622,[2]Sheet4!$F$2:$J$364,2,FALSE),\"\")","v":""},{"$f":"IFERROR(VLOOKUP(B622,[2]Sheet4!$F$2:$J$364,3,FALSE),\"\")","v":""},{"$f":"IFERROR(VLOOKUP(B622,[2]Sheet4!$F$2:$J$364,4,FALSE),\"\")","v":""},{"$f":"IFERROR(VLOOKUP(B622,[2]Sheet4!$F$2:$J$364,5,FALSE),\"\")","v":""}]
[null,null,{"$f":"IFERROR(VLOOKUP(B623,[2]Sheet4!$F$2:$J$364,2,FALSE),\"\")","v":""},{"$f":"IFERROR(VLOOKUP(B623,[2]Sheet4!$F$2:$J$364,3,FALSE),\"\")","v":""},{"$f":"IFERROR(VLOOKUP(B623,[2]Sheet4!$F$2:$J$364,4,FALSE),\"\")","v":""},{"$f":"IFERROR(VLOOKUP(B623,[2]Sheet4!$F$2:$J$364,5,FALSE),\"\")","v":""}]
[null,null,{"$f":"IFERROR(VLOOKUP(B624,[2]Sheet4!$F$2:$J$364,2,FALSE),\"\")","v":""},{"$f":"IFERROR(VLOOKUP(B624,[2]Sheet4!$F$2:$J$364,3,FALSE),\"\")","v":""},{"$f":"IFERROR(VLOOKUP(B624,[2]Sheet4!$F$2:$J$364,4,FALSE),\"\")","v":""},{"$f":"IFERROR(VLOOKUP(B624,[2]Sheet4!$F$2:$J$364,5,FALSE),\"\")","v":""}]
[null,null,{"$f":"IFERROR(VLOOKUP(B625,[2]Sheet4!$F$2:$J$364,2,FALSE),\"\")","v":""},{"$f":"IFERROR(VLOOKUP(B625,[2]Sheet4!$F$2:$J$364,3,FALSE),\"\")","v":""},{"$f":"IFERROR(VLOOKUP(B625,[2]Sheet4!$F$2:$J$364,4,FALSE),\"\")","v":""},{"$f":"IFERROR(VLOOKUP(B625,[2]Sheet4!$F$2:$J$364,5,FALSE),\"\")","v":""}]
[null,null,{"$f":"IFERROR(VLOOKUP(B626,[2]Sheet4!$F$2:$J$364,2,FALSE),\"\")","v":""},{"$f":"IFERROR(VLOOKUP(B626,[2]Sheet4!$F$2:$J$364,3,FALSE),\"\")","v":""},{"$f":"IFERROR(VLOOKUP(B626,[2]Sheet4!$F$2:$J$364,4,FALSE),\"\")","v":""},{"$f":"IFERROR(VLOOKUP(B626,[2]Sheet4!$F$2:$J$364,5,FALSE),\"\")","v":""}]
[null,null,{"$f":"IFERROR(VLOOKUP(B627,[2]Sheet4!$F$2:$J$364,2,FALSE),\"\")","v":""},{"$f":"IFERROR(VLOOKUP(B627,[2]Sheet4!$F$2:$J$364,3,FALSE),\"\")","v":""},{"$f":"IFERROR(VLOOKUP(B627,[2]Sheet4!$F$2:$J$364,4,FALSE),\"\")","v":""},{"$f":"IFERROR(VLOOKUP(B627,[2]Sheet4!$F$2:$J$364,5,FALSE),\"\")","v":""}]
[null,null,{"$f":"IFERROR(VLOOKUP(B628,[2]Sheet4!$F$2:$J$364,2,FALSE),\"\")","v":""},{"$f":"IFERROR(VLOOKUP(B628,[2]Sheet4!$F$2:$J$364,3,FALSE),\"\")","v":""},{"$f":"IFERROR(VLOOKUP(B628,[2]Sheet4!$F$2:$J$364,4,FALSE),\"\")","v":""},{"$f":"IFERROR(VLOOKUP(B628,[2]Sheet4!$F$2:$J$364,5,FALSE),\"\")","v":""}]
[null,null,{"$f":"IFERROR(VLOOKUP(B629,[2]Sheet4!$F$2:$J$364,2,FALSE),\"\")","v":""},{"$f":"IFERROR(VLOOKUP(B629,[2]Sheet4!$F$2:$J$364,3,FALSE),\"\")","v":""},{"$f":"IFERROR(VLOOKUP(B629,[2]Sheet4!$F$2:$J$364,4,FALSE),\"\")","v":""},{"$f":"IFERROR(VLOOKUP(B629,[2]Sheet4!$F$2:$J$364,5,FALSE),\"\")","v":""}]
[null,null,{"$f":"IFERROR(VLOOKUP(B630,[2]Sheet4!$F$2:$J$364,2,FALSE),\"\")","v":""},{"$f":"IFERROR(VLOOKUP(B630,[2]Sheet4!$F$2:$J$364,3,FALSE),\"\")","v":""},{"$f":"IFERROR(VLOOKUP(B630,[2]Sheet4!$F$2:$J$364,4,FALSE),\"\")","v":""},{"$f":"IFERROR(VLOOKUP(B630,[2]Sheet4!$F$2:$J$364,5,FALSE),\"\")","v":""}]
[null,null,{"$f":"IFERROR(VLOOKUP(B631,[2]Sheet4!$F$2:$J$364,2,FALSE),\"\")","v":""},{"$f":"IFERROR(VLOOKUP(B631,[2]Sheet4!$F$2:$J$364,3,FALSE),\"\")","v":""},{"$f":"IFERROR(VLOOKUP(B631,[2]Sheet4!$F$2:$J$364,4,FALSE),\"\")","v":""},{"$f":"IFERROR(VLOOKUP(B631,[2]Sheet4!$F$2:$J$364,5,FALSE),\"\")","v":""}]
[null,null,{"$f":"IFERROR(VLOOKUP(B632,[2]Sheet4!$F$2:$J$364,2,FALSE),\"\")","v":""},{"$f":"IFERROR(VLOOKUP(B632,[2]Sheet4!$F$2:$J$364,3,FALSE),\"\")","v":""},{"$f":"IFERROR(VLOOKUP(B632,[2]Sheet4!$F$2:$J$364,4,FALSE),\"\")","v":""},{"$f":"IFERROR(VLOOKUP(B632,[2]Sheet4!$F$2:$J$364,5,FALSE),\"\")","v":""}]
[null,null,{"$f":"IFERROR(VLOOKUP(B633,[2]Sheet4!$F$2:$J$364,2,FALSE),\"\")","v":""},{"$f":"IFERROR(VLOOKUP(B633,[2]Sheet4!$F$2:$J$364,3,FALSE),\"\")","v":""},{"$f":"IFERROR(VLOOKUP(B633,[2]Sheet4!$F$2:$J$364,4,FALSE),\"\")","v":""},{"$f":"IFERROR(VLOOKUP(B633,[2]Sheet4!$F$2:$J$364,5,FALSE),\"\")","v":""}]
[null,null,{"$f":"IFERROR(VLOOKUP(B634,[2]Sheet4!$F$2:$J$364,2,FALSE),\"\")","v":""},{"$f":"IFERROR(VLOOKUP(B634,[2]Sheet4!$F$2:$J$364,3,FALSE),\"\")","v":""},{"$f":"IFERROR(VLOOKUP(B634,[2]Sheet4!$F$2:$J$364,4,FALSE),\"\")","v":""},{"$f":"IFERROR(VLOOKUP(B634,[2]Sheet4!$F$2:$J$364,5,FALSE),\"\")","v":""}]
[null,null,{"$f":"IFERROR(VLOOKUP(B635,[2]Sheet4!$F$2:$J$364,2,FALSE),\"\")","v":""},{"$f":"IFERROR(VLOOKUP(B635,[2]Sheet4!$F$2:$J$364,3,FALSE),\"\")","v":""},{"$f":"IFERROR(VLOOKUP(B635,[2]Sheet4!$F$2:$J$364,4,FALSE),\"\")","v":""},{"$f":"IFERROR(VLOOKUP(B635,[2]Sheet4!$F$2:$J$364,5,FALSE),\"\")","v":""}]
[null,null,{"$f":"IFERROR(VLOOKUP(B636,[2]Sheet4!$F$2:$J$364,2,FALSE),\"\")","v":""},{"$f":"IFERROR(VLOOKUP(B636,[2]Sheet4!$F$2:$J$364,3,FALSE),\"\")","v":""},{"$f":"IFERROR(VLOOKUP(B636,[2]Sheet4!$F$2:$J$364,4,FALSE),\"\")","v":""},{"$f":"IFERROR(VLOOKUP(B636,[2]Sheet4!$F$2:$J$364,5,FALSE),\"\")","v":""}]
[null,null,{"$f":"IFERROR(VLOOKUP(B637,[2]Sheet4!$F$2:$J$364,2,FALSE),\"\")","v":""},{"$f":"IFERROR(VLOOKUP(B637,[2]Sheet4!$F$2:$J$364,3,FALSE),\"\")","v":""},{"$f":"IFERROR(VLOOKUP(B637,[2]Sheet4!$F$2:$J$364,4,FALSE),\"\")","v":""},{"$f":"IFERROR(VLOOKUP(B637,[2]Sheet4!$F$2:$J$364,5,FALSE),\"\")","v":""}]
[null,null,{"$f":"IFERROR(VLOOKUP(B638,[2]Sheet4!$F$2:$J$364,2,FALSE),\"\")","v":""},{"$f":"IFERROR(VLOOKUP(B638,[2]Sheet4!$F$2:$J$364,3,FALSE),\"\")","v":""},{"$f":"IFERROR(VLOOKUP(B638,[2]Sheet4!$F$2:$J$364,4,FALSE),\"\")","v":""},{"$f":"IFERROR(VLOOKUP(B638,[2]Sheet4!$F$2:$J$364,5,FALSE),\"\")","v":""}]
[null,null,{"$f":"IFERROR(VLOOKUP(B639,[2]Sheet4!$F$2:$J$364,2,FALSE),\"\")","v":""},{"$f":"IFERROR(VLOOKUP(B639,[2]Sheet4!$F$2:$J$364,3,FALSE),\"\")","v":""},{"$f":"IFERROR(VLOOKUP(B639,[2]Sheet4!$F$2:$J$364,4,FALSE),\"\")","v":""},{"$f":"IFERROR(VLOOKUP(B639,[2]Sheet4!$F$2:$J$364,5,FALSE),\"\")","v":""}]
[null,null,{"$f":"IFERROR(VLOOKUP(B640,[2]Sheet4!$F$2:$J$364,2,FALSE),\"\")","v":""},{"$f":"IFERROR(VLOOKUP(B640,[2]Sheet4!$F$2:$J$364,3,FALSE),\"\")","v":""},{"$f":"IFERROR(VLOOKUP(B640,[2]Sheet4!$F$2:$J$364,4,FALSE),\"\")","v":""},{"$f":"IFERROR(VLOOKUP(B640,[2]Sheet4!$F$2:$J$364,5,FALSE),\"\")","v":""}]
[null,null,{"$f":"IFERROR(VLOOKUP(B641,[2]Sheet4!$F$2:$J$364,2,FALSE),\"\")","v":""},{"$f":"IFERROR(VLOOKUP(B641,[2]Sheet4!$F$2:$J$364,3,FALSE),\"\")","v":""},{"$f":"IFERROR(VLOOKUP(B641,[2]Sheet4!$F$2:$J$364,4,FALSE),\"\")","v":""},{"$f":"IFERROR(VLOOKUP(B641,[2]Sheet4!$F$2:$J$364,5,FALSE),\"\")","v":""}]
[null,null,{"$f":"IFERROR(VLOOKUP(B642,[2]Sheet4!$F$2:$J$364,2,FALSE),\"\")","v":""},{"$f":"IFERROR(VLOOKUP(B642,[2]Sheet4!$F$2:$J$364,3,FALSE),\"\")","v":""},{"$f":"IFERROR(VLOOKUP(B642,[2]Sheet4!$F$2:$J$364,4,FALSE),\"\")","v":""},{"$f":"IFERROR(VLOOKUP(B642,[2]Sheet4!$F$2:$J$364,5,FALSE),\"\")","v":""}]
[null,null,{"$f":"IFERROR(VLOOKUP(B643,[2]Sheet4!$F$2:$J$364,2,FALSE),\"\")","v":""},{"$f":"IFERROR(VLOOKUP(B643,[2]Sheet4!$F$2:$J$364,3,FALSE),\"\")","v":""},{"$f":"IFERROR(VLOOKUP(B643,[2]Sheet4!$F$2:$J$364,4,FALSE),\"\")","v":""},{"$f":"IFERROR(VLOOKUP(B643,[2]Sheet4!$F$2:$J$364,5,FALSE),\"\")","v":""}]
[null,null,{"$f":"IFERROR(VLOOKUP(B644,[2]Sheet4!$F$2:$J$364,2,FALSE),\"\")","v":""},{"$f":"IFERROR(VLOOKUP(B644,[2]Sheet4!$F$2:$J$364,3,FALSE),\"\")","v":""},{"$f":"IFERROR(VLOOKUP(B644,[2]Sheet4!$F$2:$J$364,4,FALSE),\"\")","v":""},{"$f":"IFERROR(VLOOKUP(B644,[2]Sheet4!$F$2:$J$364,5,FALSE),\"\")","v":""}]
[null,null,{"$f":"IFERROR(VLOOKUP(B645,[2]Sheet4!$F$2:$J$364,2,FALSE),\"\")","v":""},{"$f":"IFERROR(VLOOKUP(B645,[2]Sheet4!$F$2:$J$364,3,FALSE),\"\")","v":""},{"$f":"IFERROR(VLOOKUP(B645,[2]Sheet4!$F$2:$J$364,4,FALSE),\"\")","v":""},{"$f":"IFERROR(VLOOKUP(B645,[2]Sheet4!$F$2:$J$364,5,FALSE),\"\")","v":""}]
[null,null,{"$f":"IFERROR(VLOOKUP(B646,[2]Sheet4!$F$2:$J$364,2,FALSE),\"\")","v":""},{"$f":"IFERROR(VLOOKUP(B646,[2]Sheet4!$F$2:$J$364,3,FALSE),\"\")","v":""},{"$f":"IFERROR(VLOOKUP(B646,[2]Sheet4!$F$2:$J$364,4,FALSE),\"\")","v":""},{"$f":"IFERROR(VLOOKUP(B646,[2]Sheet4!$F$2:$J$364,5,FALSE),\"\")","v":""}]
[null,null,{"$f":"IFERROR(VLOOKUP(B647,[2]Sheet4!$F$2:$J$364,2,FALSE),\"\")","v":""},{"$f":"IFERROR(VLOOKUP(B647,[2]Sheet4!$F$2:$J$364,3,FALSE),\"\")","v":""},{"$f":"IFERROR(VLOOKUP(B647,[2]Sheet4!$F$2:$J$364,4,FALSE),\"\")","v":""},{"$f":"IFERROR(VLOOKUP(B647,[2]Sheet4!$F$2:$J$364,5,FALSE),\"\")","v":""}]
[null,null,{"$f":"IFERROR(VLOOKUP(B648,[2]Sheet4!$F$2:$J$364,2,FALSE),\"\")","v":""},{"$f":"IFERROR(VLOOKUP(B648,[2]Sheet4!$F$2:$J$364,3,FALSE),\"\")","v":""},{"$f":"IFERROR(VLOOKUP(B648,[2]Sheet4!$F$2:$J$364,4,FALSE),\"\")","v":""},{"$f":"IFERROR(VLOOKUP(B648,[2]Sheet4!$F$2:$J$364,5,FALSE),\"\")","v":""}]
[null,null,{"$f":"IFERROR(VLOOKUP(B649,[2]Sheet4!$F$2:$J$364,2,FALSE),\"\")","v":""},{"$f":"IFERROR(VLOOKUP(B649,[2]Sheet4!$F$2:$J$364,3,FALSE),\"\")","v":""},{"$f":"IFERROR(VLOOKUP(B649,[2]Sheet4!$F$2:$J$364,4,FALSE),\"\")","v":""},{"$f":"IFERROR(VLOOKUP(B649,[2]Sheet4!$F$2:$J$364,5,FALSE),\"\")","v":""}]
[null,null,{"$f":"IFERROR(VLOOKUP(B650,[2]Sheet4!$F$2:$J$364,2,FALSE),\"\")","v":""},{"$f":"IFERROR(VLOOKUP(B650,[2]Sheet4!$F$2:$J$364,3,FALSE),\"\")","v":""},{"$f":"IFERROR(VLOOKUP(B650,[2]Sheet4!$F$2:$J$364,4,FALSE),\"\")","v":""},{"$f":"IFERROR(VLOOKUP(B650,[2]Sheet4!$F$2:$J$364,5,FALSE),\"\")","v":""}]
[null,null,{"$f":"IFERROR(VLOOKUP(B651,[2]Sheet4!$F$2:$J$364,2,FALSE),\"\")","v":""},{"$f":"IFERROR(VLOOKUP(B651,[2]Sheet4!$F$2:$J$364,3,FALSE),\"\")","v":""},{"$f":"IFERROR(VLOOKUP(B651,[2]Sheet4!$F$2:$J$364,4,FALSE),\"\")","v":""},{"$f":"IFERROR(VLOOKUP(B651,[2]Sheet4!$F$2:$J$364,5,FALSE),\"\")","v":""}]
[null,null,{"$f":"IFERROR(VLOOKUP(B652,[2]Sheet4!$F$2:$J$364,2,FALSE),\"\")","v":""},{"$f":"IFERROR(VLOOKUP(B652,[2]Sheet4!$F$2:$J$364,3,FALSE),\"\")","v":""},{"$f":"IFERROR(VLOOKUP(B652,[2]Sheet4!$F$2:$J$364,4,FALSE),\"\")","v":""},{"$f":"IFERROR(VLOOKUP(B652,[2]Sheet4!$F$2:$J$364,5,FALSE),\"\")","v":""}]
[null,null,{"$f":"IFERROR(VLOOKUP(B653,[2]Sheet4!$F$2:$J$364,2,FALSE),\"\")","v":""},{"$f":"IFERROR(VLOOKUP(B653,[2]Sheet4!$F$2:$J$364,3,FALSE),\"\")","v":""},{"$f":"IFERROR(VLOOKUP(B653,[2]Sheet4!$F$2:$J$364,4,FALSE),\"\")","v":""},{"$f":"IFERROR(VLOOKUP(B653,[2]Sheet4!$F$2:$J$364,5,FALSE),\"\")","v":""}]
[null,null,{"$f":"IFERROR(VLOOKUP(B654,[2]Sheet4!$F$2:$J$364,2,FALSE),\"\")","v":""},{"$f":"IFERROR(VLOOKUP(B654,[2]Sheet4!$F$2:$J$364,3,FALSE),\"\")","v":""},{"$f":"IFERROR(VLOOKUP(B654,[2]Sheet4!$F$2:$J$364,4,FALSE),\"\")","v":""},{"$f":"IFERROR(VLOOKUP(B654,[2]Sheet4!$F$2:$J$364,5,FALSE),\"\")","v":""}]
[null,null,{"$f":"IFERROR(VLOOKUP(B655,[2]Sheet4!$F$2:$J$364,2,FALSE),\"\")","v":""},{"$f":"IFERROR(VLOOKUP(B655,[2]Sheet4!$F$2:$J$364,3,FALSE),\"\")","v":""},{"$f":"IFERROR(VLOOKUP(B655,[2]Sheet4!$F$2:$J$364,4,FALSE),\"\")","v":""},{"$f":"IFERROR(VLOOKUP(B655,[2]Sheet4!$F$2:$J$364,5,FALSE),\"\")","v":""}]
[null,null,{"$f":"IFERROR(VLOOKUP(B656,[2]Sheet4!$F$2:$J$364,2,FALSE),\"\")","v":""},{"$f":"IFERROR(VLOOKUP(B656,[2]Sheet4!$F$2:$J$364,3,FALSE),\"\")","v":""},{"$f":"IFERROR(VLOOKUP(B656,[2]Sheet4!$F$2:$J$364,4,FALSE),\"\")","v":""},{"$f":"IFERROR(VLOOKUP(B656,[2]Sheet4!$F$2:$J$364,5,FALSE),\"\")","v":""}]
[null,null,{"$f":"IFERROR(VLOOKUP(B657,[2]Sheet4!$F$2:$J$364,2,FALSE),\"\")","v":""},{"$f":"IFERROR(VLOOKUP(B657,[2]Sheet4!$F$2:$J$364,3,FALSE),\"\")","v":""},{"$f":"IFERROR(VLOOKUP(B657,[2]Sheet4!$F$2:$J$364,4,FALSE),\"\")","v":""},{"$f":"IFERROR(VLOOKUP(B657,[2]Sheet4!$F$2:$J$364,5,FALSE),\"\")","v":""}]
[null,null,{"$f":"IFERROR(VLOOKUP(B658,[2]Sheet4!$F$2:$J$364,2,FALSE),\"\")","v":""},{"$f":"IFERROR(VLOOKUP(B658,[2]Sheet4!$F$2:$J$364,3,FALSE),\"\")","v":""},{"$f":"IFERROR(VLOOKUP(B658,[2]Sheet4!$F$2:$J$364,4,FALSE),\"\")","v":""},{"$f":"IFERROR(VLOOKUP(B658,[2]Sheet4!$F$2:$J$364,5,FALSE),\"\")","v":""}]
[null,null,{"$f":"IFERROR(VLOOKUP(B659,[2]Sheet4!$F$2:$J$364,2,FALSE),\"\")","v":""},{"$f":"IFERROR(VLOOKUP(B659,[2]Sheet4!$F$2:$J$364,3,FALSE),\"\")","v":""},{"$f":"IFERROR(VLOOKUP(B659,[2]Sheet4!$F$2:$J$364,4,FALSE),\"\")","v":""},{"$f":"IFERROR(VLOOKUP(B659,[2]Sheet4!$F$2:$J$364,5,FALSE),\"\")","v":""}]
[null,null,{"$f":"IFERROR(VLOOKUP(B660,[2]Sheet4!$F$2:$J$364,2,FALSE),\"\")","v":""},{"$f":"IFERROR(VLOOKUP(B660,[2]Sheet4!$F$2:$J$364,3,FALSE),\"\")","v":""},{"$f":"IFERROR(VLOOKUP(B660,[2]Sheet4!$F$2:$J$364,4,FALSE),\"\")","v":""},{"$f":"IFERROR(VLOOKUP(B660,[2]Sheet4!$F$2:$J$364,5,FALSE),\"\")","v":""}]
[null,null,{"$f":"IFERROR(VLOOKUP(B661,[2]Sheet4!$F$2:$J$364,2,FALSE),\"\")","v":""},{"$f":"IFERROR(VLOOKUP(B661,[2]Sheet4!$F$2:$J$364,3,FALSE),\"\")","v":""},{"$f":"IFERROR(VLOOKUP(B661,[2]Sheet4!$F$2:$J$364,4,FALSE),\"\")","v":""},{"$f":"IFERROR(VLOOKUP(B661,[2]Sheet4!$F$2:$J$364,5,FALSE),\"\")","v":""}]
[null,null,{"$f":"IFERROR(VLOOKUP(B662,[2]Sheet4!$F$2:$J$364,2,FALSE),\"\")","v":""},{"$f":"IFERROR(VLOOKUP(B662,[2]Sheet4!$F$2:$J$364,3,FALSE),\"\")","v":""},{"$f":"IFERROR(VLOOKUP(B662,[2]Sheet4!$F$2:$J$364,4,FALSE),\"\")","v":""},{"$f":"IFERROR(VLOOKUP(B662,[2]Sheet4!$F$2:$J$364,5,FALSE),\"\")","v":""}]
[null,null,{"$f":"IFERROR(VLOOKUP(B663,[2]Sheet4!$F$2:$J$364,2,FALSE),\"\")","v":""},{"$f":"IFERROR(VLOOKUP(B663,[2]Sheet4!$F$2:$J$364,3,FALSE),\"\")","v":""},{"$f":"IFERROR(VLOOKUP(B663,[2]Sheet4!$F$2:$J$364,4,FALSE),\"\")","v":""},{"$f":"IFERROR(VLOOKUP(B663,[2]Sheet4!$F$2:$J$364,5,FALSE),\"\")","v":""}]
[null,null,{"$f":"IFERROR(VLOOKUP(B664,[2]Sheet4!$F$2:$J$364,2,FALSE),\"\")","v":""},{"$f":"IFERROR(VLOOKUP(B664,[2]Sheet4!$F$2:$J$364,3,FALSE),\"\")","v":""},{"$f":"IFERROR(VLOOKUP(B664,[2]Sheet4!$F$2:$J$364,4,FALSE),\"\")","v":""},{"$f":"IFERROR(VLOOKUP(B664,[2]Sheet4!$F$2:$J$364,5,FALSE),\"\")","v":""}]
[null,null,{"$f":"IFERROR(VLOOKUP(B665,[2]Sheet4!$F$2:$J$364,2,FALSE),\"\")","v":""},{"$f":"IFERROR(VLOOKUP(B665,[2]Sheet4!$F$2:$J$364,3,FALSE),\"\")","v":""},{"$f":"IFERROR(VLOOKUP(B665,[2]Sheet4!$F$2:$J$364,4,FALSE),\"\")","v":""},{"$f":"IFERROR(VLOOKUP(B665,[2]Sheet4!$F$2:$J$364,5,FALSE),\"\")","v":""}]
[null,null,{"$f":"IFERROR(VLOOKUP(B666,[2]Sheet4!$F$2:$J$364,2,FALSE),\"\")","v":""},{"$f":"IFERROR(VLOOKUP(B666,[2]Sheet4!$F$2:$J$364,3,FALSE),\"\")","v":""},{"$f":"IFERROR(VLOOKUP(B666,[2]Sheet4!$F$2:$J$364,4,FALSE),\"\")","v":""},{"$f":"IFERROR(VLOOKUP(B666,[2]Sheet4!$F$2:$J$364,5,FALSE),\"\")","v":""}]
[null,null,{"$f":"IFERROR(VLOOKUP(B667,[2]Sheet4!$F$2:$J$364,2,FALSE),\"\")","v":""},{"$f":"IFERROR(VLOOKUP(B667,[2]Sheet4!$F$2:$J$364,3,FALSE),\"\")","v":""},{"$f":"IFERROR(VLOOKUP(B667,[2]Sheet4!$F$2:$J$364,4,FALSE),\"\")","v":""},{"$f":"IFERROR(VLOOKUP(B667,[2]Sheet4!$F$2:$J$364,5,FALSE),\"\")","v":""}]
[null,null,{"$f":"IFERROR(VLOOKUP(B668,[2]Sheet4!$F$2:$J$364,2,FALSE),\"\")","v":""},{"$f":"IFERROR(VLOOKUP(B668,[2]Sheet4!$F$2:$J$364,3,FALSE),\"\")","v":""},{"$f":"IFERROR(VLOOKUP(B668,[2]Sheet4!$F$2:$J$364,4,FALSE),\"\")","v":""},{"$f":"IFERROR(VLOOKUP(B668,[2]Sheet4!$F$2:$J$364,5,FALSE),\"\")","v":""}]
[null,null,{"$f":"IFERROR(VLOOKUP(B669,[2]Sheet4!$F$2:$J$364,2,FALSE),\"\")","v":""},{"$f":"IFERROR(VLOOKUP(B669,[2]Sheet4!$F$2:$J$364,3,FALSE),\"\")","v":""},{"$f":"IFERROR(VLOOKUP(B669,[2]Sheet4!$F$2:$J$364,4,FALSE),\"\")","v":""},{"$f":"IFERROR(VLOOKUP(B669,[2]Sheet4!$F$2:$J$364,5,FALSE),\"\")","v":""}]
[null,null,{"$f":"IFERROR(VLOOKUP(B670,[2]Sheet4!$F$2:$J$364,2,FALSE),\"\")","v":""},{"$f":"IFERROR(VLOOKUP(B670,[2]Sheet4!$F$2:$J$364,3,FALSE),\"\")","v":""},{"$f":"IFERROR(VLOOKUP(B670,[2]Sheet4!$F$2:$J$364,4,FALSE),\"\")","v":""},{"$f":"IFERROR(VLOOKUP(B670,[2]Sheet4!$F$2:$J$364,5,FALSE),\"\")","v":""}]
[null,null,{"$f":"IFERROR(VLOOKUP(B671,[2]Sheet4!$F$2:$J$364,2,FALSE),\"\")","v":""},{"$f":"IFERROR(VLOOKUP(B671,[2]Sheet4!$F$2:$J$364,3,FALSE),\"\")","v":""},{"$f":"IFERROR(VLOOKUP(B671,[2]Sheet4!$F$2:$J$364,4,FALSE),\"\")","v":""},{"$f":"IFERROR(VLOOKUP(B671,[2]Sheet4!$F$2:$J$364,5,FALSE),\"\")","v":""}]
[null,null,{"$f":"IFERROR(VLOOKUP(B672,[2]Sheet4!$F$2:$J$364,2,FALSE),\"\")","v":""},{"$f":"IFERROR(VLOOKUP(B672,[2]Sheet4!$F$2:$J$364,3,FALSE),\"\")","v":""},{"$f":"IFERROR(VLOOKUP(B672,[2]Sheet4!$F$2:$J$364,4,FALSE),\"\")","v":""},{"$f":"IFERROR(VLOOKUP(B672,[2]Sheet4!$F$2:$J$364,5,FALSE),\"\")","v":""}]
[null,null,{"$f":"IFERROR(VLOOKUP(B673,[2]Sheet4!$F$2:$J$364,2,FALSE),\"\")","v":""},{"$f":"IFERROR(VLOOKUP(B673,[2]Sheet4!$F$2:$J$364,3,FALSE),\"\")","v":""},{"$f":"IFERROR(VLOOKUP(B673,[2]Sheet4!$F$2:$J$364,4,FALSE),\"\")","v":""},{"$f":"IFERROR(VLOOKUP(B673,[2]Sheet4!$F$2:$J$364,5,FALSE),\"\")","v":""}]
[null,null,{"$f":"IFERROR(VLOOKUP(B674,[2]Sheet4!$F$2:$J$364,2,FALSE),\"\")","v":""},{"$f":"IFERROR(VLOOKUP(B674,[2]Sheet4!$F$2:$J$364,3,FALSE),\"\")","v":""},{"$f":"IFERROR(VLOOKUP(B674,[2]Sheet4!$F$2:$J$364,4,FALSE),\"\")","v":""},{"$f":"IFERROR(VLOOKUP(B674,[2]Sheet4!$F$2:$J$364,5,FALSE),\"\")","v":""}]
[null,null,{"$f":"IFERROR(VLOOKUP(B675,[2]Sheet4!$F$2:$J$364,2,FALSE),\"\")","v":""},{"$f":"IFERROR(VLOOKUP(B675,[2]Sheet4!$F$2:$J$364,3,FALSE),\"\")","v":""},{"$f":"IFERROR(VLOOKUP(B675,[2]Sheet4!$F$2:$J$364,4,FALSE),\"\")","v":""},{"$f":"IFERROR(VLOOKUP(B675,[2]Sheet4!$F$2:$J$364,5,FALSE),\"\")","v":""}]
[null,null,{"$f":"IFERROR(VLOOKUP(B676,[2]Sheet4!$F$2:$J$364,2,FALSE),\"\")","v":""},{"$f":"IFERROR(VLOOKUP(B676,[2]Sheet4!$F$2:$J$364,3,FALSE),\"\")","v":""},{"$f":"IFERROR(VLOOKUP(B676,[2]Sheet4!$F$2:$J$364,4,FALSE),\"\")","v":""},{"$f":"IFERROR(VLOOKUP(B676,[2]Sheet4!$F$2:$J$364,5,FALSE),\"\")","v":""}]
[null,null,{"$f":"IFERROR(VLOOKUP(B677,[2]Sheet4!$F$2:$J$364,2,FALSE),\"\")","v":""},{"$f":"IFERROR(VLOOKUP(B677,[2]Sheet4!$F$2:$J$364,3,FALSE),\"\")","v":""},{"$f":"IFERROR(VLOOKUP(B677,[2]Sheet4!$F$2:$J$364,4,FALSE),\"\")","v":""},{"$f":"IFERROR(VLOOKUP(B677,[2]Sheet4!$F$2:$J$364,5,FALSE),\"\")","v":""}]
[null,null,{"$f":"IFERROR(VLOOKUP(B678,[2]Sheet4!$F$2:$J$364,2,FALSE),\"\")","v":""},{"$f":"IFERROR(VLOOKUP(B678,[2]Sheet4!$F$2:$J$364,3,FALSE),\"\")","v":""},{"$f":"IFERROR(VLOOKUP(B678,[2]Sheet4!$F$2:$J$364,4,FALSE),\"\")","v":""},{"$f":"IFERROR(VLOOKUP(B678,[2]Sheet4!$F$2:$J$364,5,FALSE),\"\")","v":""}]
[null,null,{"$f":"IFERROR(VLOOKUP(B679,[2]Sheet4!$F$2:$J$364,2,FALSE),\"\")","v":""},{"$f":"IFERROR(VLOOKUP(B679,[2]Sheet4!$F$2:$J$364,3,FALSE),\"\")","v":""},{"$f":"IFERROR(VLOOKUP(B679,[2]Sheet4!$F$2:$J$364,4,FALSE),\"\")","v":""},{"$f":"IFERROR(VLOOKUP(B679,[2]Sheet4!$F$2:$J$364,5,FALSE),\"\")","v":""}]
[null,null,{"$f":"IFERROR(VLOOKUP(B680,[2]Sheet4!$F$2:$J$364,2,FALSE),\"\")","v":""},{"$f":"IFERROR(VLOOKUP(B680,[2]Sheet4!$F$2:$J$364,3,FALSE),\"\")","v":""},{"$f":"IFERROR(VLOOKUP(B680,[2]Sheet4!$F$2:$J$364,4,FALSE),\"\")","v":""},{"$f":"IFERROR(VLOOKUP(B680,[2]Sheet4!$F$2:$J$364,5,FALSE),\"\")","v":""}]
[null,null,{"$f":"IFERROR(VLOOKUP(B681,[2]Sheet4!$F$2:$J$364,2,FALSE),\"\")","v":""},{"$f":"IFERROR(VLOOKUP(B681,[2]Sheet4!$F$2:$J$364,3,FALSE),\"\")","v":""},{"$f":"IFERROR(VLOOKUP(B681,[2]Sheet4!$F$2:$J$364,4,FALSE),\"\")","v":""},{"$f":"IFERROR(VLOOKUP(B681,[2]Sheet4!$F$2:$J$364,5,FALSE),\"\")","v":""}]
[null,null,{"$f":"IFERROR(VLOOKUP(B682,[2]Sheet4!$F$2:$J$364,2,FALSE),\"\")","v":""},{"$f":"IFERROR(VLOOKUP(B682,[2]Sheet4!$F$2:$J$364,3,FALSE),\"\")","v":""},{"$f":"IFERROR(VLOOKUP(B682,[2]Sheet4!$F$2:$J$364,4,FALSE),\"\")","v":""},{"$f":"IFERROR(VLOOKUP(B682,[2]Sheet4!$F$2:$J$364,5,FALSE),\"\")","v":""}]
[null,null,{"$f":"IFERROR(VLOOKUP(B683,[2]Sheet4!$F$2:$J$364,2,FALSE),\"\")","v":""},{"$f":"IFERROR(VLOOKUP(B683,[2]Sheet4!$F$2:$J$364,3,FALSE),\"\")","v":""},{"$f":"IFERROR(VLOOKUP(B683,[2]Sheet4!$F$2:$J$364,4,FALSE),\"\")","v":""},{"$f":"IFERROR(VLOOKUP(B683,[2]Sheet4!$F$2:$J$364,5,FALSE),\"\")","v":""}]
[null,null,{"$f":"IFERROR(VLOOKUP(B684,[2]Sheet4!$F$2:$J$364,2,FALSE),\"\")","v":""},{"$f":"IFERROR(VLOOKUP(B684,[2]Sheet4!$F$2:$J$364,3,FALSE),\"\")","v":""},{"$f":"IFERROR(VLOOKUP(B684,[2]Sheet4!$F$2:$J$364,4,FALSE),\"\")","v":""},{"$f":"IFERROR(VLOOKUP(B684,[2]Sheet4!$F$2:$J$364,5,FALSE),\"\")","v":""}]
[null,null,{"$f":"IFERROR(VLOOKUP(B685,[2]Sheet4!$F$2:$J$364,2,FALSE),\"\")","v":""},{"$f":"IFERROR(VLOOKUP(B685,[2]Sheet4!$F$2:$J$364,3,FALSE),\"\")","v":""},{"$f":"IFERROR(VLOOKUP(B685,[2]Sheet4!$F$2:$J$364,4,FALSE),\"\")","v":""},{"$f":"IFERROR(VLOOKUP(B685,[2]Sheet4!$F$2:$J$364,5,FALSE),\"\")","v":""}]
[null,null,{"$f":"IFERROR(VLOOKUP(B686,[2]Sheet4!$F$2:$J$364,2,FALSE),\"\")","v":""},{"$f":"IFERROR(VLOOKUP(B686,[2]Sheet4!$F$2:$J$364,3,FALSE),\"\")","v":""},{"$f":"IFERROR(VLOOKUP(B686,[2]Sheet4!$F$2:$J$364,4,FALSE),\"\")","v":""},{"$f":"IFERROR(VLOOKUP(B686,[2]Sheet4!$F$2:$J$364,5,FALSE),\"\")","v":""}]
[null,null,{"$f":"IFERROR(VLOOKUP(B687,[2]Sheet4!$F$2:$J$364,2,FALSE),\"\")","v":""},{"$f":"IFERROR(VLOOKUP(B687,[2]Sheet4!$F$2:$J$364,3,FALSE),\"\")","v":""},{"$f":"IFERROR(VLOOKUP(B687,[2]Sheet4!$F$2:$J$364,4,FALSE),\"\")","v":""},{"$f":"IFERROR(VLOOKUP(B687,[2]Sheet4!$F$2:$J$364,5,FALSE),\"\")","v":""}]
[null,null,{"$f":"IFERROR(VLOOKUP(B688,[2]Sheet4!$F$2:$J$364,2,FALSE),\"\")","v":""},{"$f":"IFERROR(VLOOKUP(B688,[2]Sheet4!$F$2:$J$364,3,FALSE),\"\")","v":""},{"$f":"IFERROR(VLOOKUP(B688,[2]Sheet4!$F$2:$J$364,4,FALSE),\"\")","v":""},{"$f":"IFERROR(VLOOKUP(B688,[2]Sheet4!$F$2:$J$364,5,FALSE),\"\")","v":""}]
[null,null,{"$f":"IFERROR(VLOOKUP(B689,[2]Sheet4!$F$2:$J$364,2,FALSE),\"\")","v":""},{"$f":"IFERROR(VLOOKUP(B689,[2]Sheet4!$F$2:$J$364,3,FALSE),\"\")","v":""},{"$f":"IFERROR(VLOOKUP(B689,[2]Sheet4!$F$2:$J$364,4,FALSE),\"\")","v":""},{"$f":"IFERROR(VLOOKUP(B689,[2]Sheet4!$F$2:$J$364,5,FALSE),\"\")","v":""}]
[null,null,{"$f":"IFERROR(VLOOKUP(B690,[2]Sheet4!$F$2:$J$364,2,FALSE),\"\")","v":""},{"$f":"IFERROR(VLOOKUP(B690,[2]Sheet4!$F$2:$J$364,3,FALSE),\"\")","v":""},{"$f":"IFERROR(VLOOKUP(B690,[2]Sheet4!$F$2:$J$364,4,FALSE),\"\")","v":""},{"$f":"IFERROR(VLOOKUP(B690,[2]Sheet4!$F$2:$J$364,5,FALSE),\"\")","v":""}]
[null,null,{"$f":"IFERROR(VLOOKUP(B691,[2]Sheet4!$F$2:$J$364,2,FALSE),\"\")","v":""},{"$f":"IFERROR(VLOOKUP(B691,[2]Sheet4!$F$2:$J$364,3,FALSE),\"\")","v":""},{"$f":"IFERROR(VLOOKUP(B691,[2]Sheet4!$F$2:$J$364,4,FALSE),\"\")","v":""},{"$f":"IFERROR(VLOOKUP(B691,[2]Sheet4!$F$2:$J$364,5,FALSE),\"\")","v":""}]
[null,null,{"$f":"IFERROR(VLOOKUP(B692,[2]Sheet4!$F$2:$J$364,2,FALSE),\"\")","v":""},{"$f":"IFERROR(VLOOKUP(B692,[2]Sheet4!$F$2:$J$364,3,FALSE),\"\")","v":""},{"$f":"IFERROR(VLOOKUP(B692,[2]Sheet4!$F$2:$J$364,4,FALSE),\"\")","v":""},{"$f":"IFERROR(VLOOKUP(B692,[2]Sheet4!$F$2:$J$364,5,FALSE),\"\")","v":""}]
[null,null,{"$f":"IFERROR(VLOOKUP(B693,[2]Sheet4!$F$2:$J$364,2,FALSE),\"\")","v":""},{"$f":"IFERROR(VLOOKUP(B693,[2]Sheet4!$F$2:$J$364,3,FALSE),\"\")","v":""},{"$f":"IFERROR(VLOOKUP(B693,[2]Sheet4!$F$2:$J$364,4,FALSE),\"\")","v":""},{"$f":"IFERROR(VLOOKUP(B693,[2]Sheet4!$F$2:$J$364,5,FALSE),\"\")","v":""}]
[null,null,{"$f":"IFERROR(VLOOKUP(B694,[2]Sheet4!$F$2:$J$364,2,FALSE),\"\")","v":""},{"$f":"IFERROR(VLOOKUP(B694,[2]Sheet4!$F$2:$J$364,3,FALSE),\"\")","v":""},{"$f":"IFERROR(VLOOKUP(B694,[2]Sheet4!$F$2:$J$364,4,FALSE),\"\")","v":""},{"$f":"IFERROR(VLOOKUP(B694,[2]Sheet4!$F$2:$J$364,5,FALSE),\"\")","v":""}]
[null,null,{"$f":"IFERROR(VLOOKUP(B695,[2]Sheet4!$F$2:$J$364,2,FALSE),\"\")","v":""},{"$f":"IFERROR(VLOOKUP(B695,[2]Sheet4!$F$2:$J$364,3,FALSE),\"\")","v":""},{"$f":"IFERROR(VLOOKUP(B695,[2]Sheet4!$F$2:$J$364,4,FALSE),\"\")","v":""},{"$f":"IFERROR(VLOOKUP(B695,[2]Sheet4!$F$2:$J$364,5,FALSE),\"\")","v":""}]
[null,null,{"$f":"IFERROR(VLOOKUP(B696,[2]Sheet4!$F$2:$J$364,2,FALSE),\"\")","v":""},{"$f":"IFERROR(VLOOKUP(B696,[2]Sheet4!$F$2:$J$364,3,FALSE),\"\")","v":""},{"$f":"IFERROR(VLOOKUP(B696,[2]Sheet4!$F$2:$J$364,4,FALSE),\"\")","v":""},{"$f":"IFERROR(VLOOKUP(B696,[2]Sheet4!$F$2:$J$364,5,FALSE),\"\")","v":""}]
[null,null,{"$f":"IFERROR(VLOOKUP(B697,[2]Sheet4!$F$2:$J$364,2,FALSE),\"\")","v":""},{"$f":"IFERROR(VLOOKUP(B697,[2]Sheet4!$F$2:$J$364,3,FALSE),\"\")","v":""},{"$f":"IFERROR(VLOOKUP(B697,[2]Sheet4!$F$2:$J$364,4,FALSE),\"\")","v":""},{"$f":"IFERROR(VLOOKUP(B697,[2]Sheet4!$F$2:$J$364,5,FALSE),\"\")","v":""}]
[null,null,{"$f":"IFERROR(VLOOKUP(B698,[2]Sheet4!$F$2:$J$364,2,FALSE),\"\")","v":""},{"$f":"IFERROR(VLOOKUP(B698,[2]Sheet4!$F$2:$J$364,3,FALSE),\"\")","v":""},{"$f":"IFERROR(VLOOKUP(B698,[2]Sheet4!$F$2:$J$364,4,FALSE),\"\")","v":""},{"$f":"IFERROR(VLOOKUP(B698,[2]Sheet4!$F$2:$J$364,5,FALSE),\"\")","v":""}]
[null,null,{"$f":"IFERROR(VLOOKUP(B699,[2]Sheet4!$F$2:$J$364,2,FALSE),\"\")","v":""},{"$f":"IFERROR(VLOOKUP(B699,[2]Sheet4!$F$2:$J$364,3,FALSE),\"\")","v":""},{"$f":"IFERROR(VLOOKUP(B699,[2]Sheet4!$F$2:$J$364,4,FALSE),\"\")","v":""},{"$f":"IFERROR(VLOOKUP(B699,[2]Sheet4!$F$2:$J$364,5,FALSE),\"\")","v":""}]
[null,null,{"$f":"IFERROR(VLOOKUP(B700,[2]Sheet4!$F$2:$J$364,2,FALSE),\"\")","v":""},{"$f":"IFERROR(VLOOKUP(B700,[2]Sheet4!$F$2:$J$364,3,FALSE),\"\")","v":""},{"$f":"IFERROR(VLOOKUP(B700,[2]Sheet4!$F$2:$J$364,4,FALSE),\"\")","v":""},{"$f":"IFERROR(VLOOKUP(B700,[2]Sheet4!$F$2:$J$364,5,FALSE),\"\")","v":""}]
[null,null,{"$f":"IFERROR(VLOOKUP(B701,[2]Sheet4!$F$2:$J$364,2,FALSE),\"\")","v":""},{"$f":"IFERROR(VLOOKUP(B701,[2]Sheet4!$F$2:$J$364,3,FALSE),\"\")","v":""},{"$f":"IFERROR(VLOOKUP(B701,[2]Sheet4!$F$2:$J$364,4,FALSE),\"\")","v":""},{"$f":"IFERROR(VLOOKUP(B701,[2]Sheet4!$F$2:$J$364,5,FALSE),\"\")","v":""}]
[null,null,{"$f":"IFERROR(VLOOKUP(B702,[2]Sheet4!$F$2:$J$364,2,FALSE),\"\")","v":""},{"$f":"IFERROR(VLOOKUP(B702,[2]Sheet4!$F$2:$J$364,3,FALSE),\"\")","v":""},{"$f":"IFERROR(VLOOKUP(B702,[2]Sheet4!$F$2:$J$364,4,FALSE),\"\")","v":""},{"$f":"IFERROR(VLOOKUP(B702,[2]Sheet4!$F$2:$J$364,5,FALSE),\"\")","v":""}]
[null,null,{"$f":"IFERROR(VLOOKUP(B703,[2]Sheet4!$F$2:$J$364,2,FALSE),\"\")","v":""},{"$f":"IFERROR(VLOOKUP(B703,[2]Sheet4!$F$2:$J$364,3,FALSE),\"\")","v":""},{"$f":"IFERROR(VLOOKUP(B703,[2]Sheet4!$F$2:$J$364,4,FALSE),\"\")","v":""},{"$f":"IFERROR(VLOOKUP(B703,[2]Sheet4!$F$2:$J$364,5,FALSE),\"\")","v":""}]
[null,null,{"$f":"IFERROR(VLOOKUP(B704,[2]Sheet4!$F$2:$J$364,2,FALSE),\"\")","v":""},{"$f":"IFERROR(VLOOKUP(B704,[2]Sheet4!$F$2:$J$364,3,FALSE),\"\")","v":""},{"$f":"IFERROR(VLOOKUP(B704,[2]Sheet4!$F$2:$J$364,4,FALSE),\"\")","v":""},{"$f":"IFERROR(VLOOKUP(B704,[2]Sheet4!$F$2:$J$364,5,FALSE),\"\")","v":""}]
[null,null,{"$f":"IFERROR(VLOOKUP(B705,[2]Sheet4!$F$2:$J$364,2,FALSE),\"\")","v":""},{"$f":"IFERROR(VLOOKUP(B705,[2]Sheet4!$F$2:$J$364,3,FALSE),\"\")","v":""},{"$f":"IFERROR(VLOOKUP(B705,[2]Sheet4!$F$2:$J$364,4,FALSE),\"\")","v":""},{"$f":"IFERROR(VLOOKUP(B705,[2]Sheet4!$F$2:$J$364,5,FALSE),\"\")","v":""}]
[null,null,{"$f":"IFERROR(VLOOKUP(B706,[2]Sheet4!$F$2:$J$364,2,FALSE),\"\")","v":""},{"$f":"IFERROR(VLOOKUP(B706,[2]Sheet4!$F$2:$J$364,3,FALSE),\"\")","v":""},{"$f":"IFERROR(VLOOKUP(B706,[2]Sheet4!$F$2:$J$364,4,FALSE),\"\")","v":""},{"$f":"IFERROR(VLOOKUP(B706,[2]Sheet4!$F$2:$J$364,5,FALSE),\"\")","v":""}]
[null,null,{"$f":"IFERROR(VLOOKUP(B707,[2]Sheet4!$F$2:$J$364,2,FALSE),\"\")","v":""},{"$f":"IFERROR(VLOOKUP(B707,[2]Sheet4!$F$2:$J$364,3,FALSE),\"\")","v":""},{"$f":"IFERROR(VLOOKUP(B707,[2]Sheet4!$F$2:$J$364,4,FALSE),\"\")","v":""},{"$f":"IFERROR(VLOOKUP(B707,[2]Sheet4!$F$2:$J$364,5,FALSE),\"\")","v":""}]
[null,null,{"$f":"IFERROR(VLOOKUP(B708,[2]Sheet4!$F$2:$J$364,2,FALSE),\"\")","v":""},{"$f":"IFERROR(VLOOKUP(B708,[2]Sheet4!$F$2:$J$364,3,FALSE),\"\")","v":""},{"$f":"IFERROR(VLOOKUP(B708,[2]Sheet4!$F$2:$J$364,4,FALSE),\"\")","v":""},{"$f":"IFERROR(VLOOKUP(B708,[2]Sheet4!$F$2:$J$364,5,FALSE),\"\")","v":""}]
[null,null,{"$f":"IFERROR(VLOOKUP(B709,[2]Sheet4!$F$2:$J$364,2,FALSE),\"\")","v":""},{"$f":"IFERROR(VLOOKUP(B709,[2]Sheet4!$F$2:$J$364,3,FALSE),\"\")","v":""},{"$f":"IFERROR(VLOOKUP(B709,[2]Sheet4!$F$2:$J$364,4,FALSE),\"\")","v":""},{"$f":"IFERROR(VLOOKUP(B709,[2]Sheet4!$F$2:$J$364,5,FALSE),\"\")","v":""}]
[null,null,{"$f":"IFERROR(VLOOKUP(B710,[2]Sheet4!$F$2:$J$364,2,FALSE),\"\")","v":""},{"$f":"IFERROR(VLOOKUP(B710,[2]Sheet4!$F$2:$J$364,3,FALSE),\"\")","v":""},{"$f":"IFERROR(VLOOKUP(B710,[2]Sheet4!$F$2:$J$364,4,FALSE),\"\")","v":""},{"$f":"IFERROR(VLOOKUP(B710,[2]Sheet4!$F$2:$J$364,5,FALSE),\"\")","v":""}]
[null,null,{"$f":"IFERROR(VLOOKUP(B711,[2]Sheet4!$F$2:$J$364,2,FALSE),\"\")","v":""},{"$f":"IFERROR(VLOOKUP(B711,[2]Sheet4!$F$2:$J$364,3,FALSE),\"\")","v":""},{"$f":"IFERROR(VLOOKUP(B711,[2]Sheet4!$F$2:$J$364,4,FALSE),\"\")","v":""},{"$f":"IFERROR(VLOOKUP(B711,[2]Sheet4!$F$2:$J$364,5,FALSE),\"\")","v":""}]
[null,null,{"$f":"IFERROR(VLOOKUP(B712,[2]Sheet4!$F$2:$J$364,2,FALSE),\"\")","v":""},{"$f":"IFERROR(VLOOKUP(B712,[2]Sheet4!$F$2:$J$364,3,FALSE),\"\")","v":""},{"$f":"IFERROR(VLOOKUP(B712,[2]Sheet4!$F$2:$J$364,4,FALSE),\"\")","v":""},{"$f":"IFERROR(VLOOKUP(B712,[2]Sheet4!$F$2:$J$364,5,FALSE),\"\")","v":""}]
[null,null,{"$f":"IFERROR(VLOOKUP(B713,[2]Sheet4!$F$2:$J$364,2,FALSE),\"\")","v":""},{"$f":"IFERROR(VLOOKUP(B713,[2]Sheet4!$F$2:$J$364,3,FALSE),\"\")","v":""},{"$f":"IFERROR(VLOOKUP(B713,[2]Sheet4!$F$2:$J$364,4,FALSE),\"\")","v":""},{"$f":"IFERROR(VLOOKUP(B713,[2]Sheet4!$F$2:$J$364,5,FALSE),\"\")","v":""}]
[null,null,{"$f":"IFERROR(VLOOKUP(B714,[2]Sheet4!$F$2:$J$364,2,FALSE),\"\")","v":""},{"$f":"IFERROR(VLOOKUP(B714,[2]Sheet4!$F$2:$J$364,3,FALSE),\"\")","v":""},{"$f":"IFERROR(VLOOKUP(B714,[2]Sheet4!$F$2:$J$364,4,FALSE),\"\")","v":""},{"$f":"IFERROR(VLOOKUP(B714,[2]Sheet4!$F$2:$J$364,5,FALSE),\"\")","v":""}]
[null,null,{"$f":"IFERROR(VLOOKUP(B715,[2]Sheet4!$F$2:$J$364,2,FALSE),\"\")","v":""},{"$f":"IFERROR(VLOOKUP(B715,[2]Sheet4!$F$2:$J$364,3,FALSE),\"\")","v":""},{"$f":"IFERROR(VLOOKUP(B715,[2]Sheet4!$F$2:$J$364,4,FALSE),\"\")","v":""},{"$f":"IFERROR(VLOOKUP(B715,[2]Sheet4!$F$2:$J$364,5,FALSE),\"\")","v":""}]
[null,null,{"$f":"IFERROR(VLOOKUP(B716,[2]Sheet4!$F$2:$J$364,2,FALSE),\"\")","v":""},{"$f":"IFERROR(VLOOKUP(B716,[2]Sheet4!$F$2:$J$364,3,FALSE),\"\")","v":""},{"$f":"IFERROR(VLOOKUP(B716,[2]Sheet4!$F$2:$J$364,4,FALSE),\"\")","v":""},{"$f":"IFERROR(VLOOKUP(B716,[2]Sheet4!$F$2:$J$364,5,FALSE),\"\")","v":""}]
[null,null,{"$f":"IFERROR(VLOOKUP(B717,[2]Sheet4!$F$2:$J$364,2,FALSE),\"\")","v":""},{"$f":"IFERROR(VLOOKUP(B717,[2]Sheet4!$F$2:$J$364,3,FALSE),\"\")","v":""},{"$f":"IFERROR(VLOOKUP(B717,[2]Sheet4!$F$2:$J$364,4,FALSE),\"\")","v":""},{"$f":"IFERROR(VLOOKUP(B717,[2]Sheet4!$F$2:$J$364,5,FALSE),\"\")","v":""}]
[null,null,{"$f":"IFERROR(VLOOKUP(B718,[2]Sheet4!$F$2:$J$364,2,FALSE),\"\")","v":""},{"$f":"IFERROR(VLOOKUP(B718,[2]Sheet4!$F$2:$J$364,3,FALSE),\"\")","v":""},{"$f":"IFERROR(VLOOKUP(B718,[2]Sheet4!$F$2:$J$364,4,FALSE),\"\")","v":""},{"$f":"IFERROR(VLOOKUP(B718,[2]Sheet4!$F$2:$J$364,5,FALSE),\"\")","v":""}]
[null,null,{"$f":"IFERROR(VLOOKUP(B719,[2]Sheet4!$F$2:$J$364,2,FALSE),\"\")","v":""},{"$f":"IFERROR(VLOOKUP(B719,[2]Sheet4!$F$2:$J$364,3,FALSE),\"\")","v":""},{"$f":"IFERROR(VLOOKUP(B719,[2]Sheet4!$F$2:$J$364,4,FALSE),\"\")","v":""},{"$f":"IFERROR(VLOOKUP(B719,[2]Sheet4!$F$2:$J$364,5,FALSE),\"\")","v":""}]
[null,null,{"$f":"IFERROR(VLOOKUP(B720,[2]Sheet4!$F$2:$J$364,2,FALSE),\"\")","v":""},{"$f":"IFERROR(VLOOKUP(B720,[2]Sheet4!$F$2:$J$364,3,FALSE),\"\")","v":""},{"$f":"IFERROR(VLOOKUP(B720,[2]Sheet4!$F$2:$J$364,4,FALSE),\"\")","v":""},{"$f":"IFERROR(VLOOKUP(B720,[2]Sheet4!$F$2:$J$364,5,FALSE),\"\")","v":""}]
[null,null,{"$f":"IFERROR(VLOOKUP(B721,[2]Sheet4!$F$2:$J$364,2,FALSE),\"\")","v":""},{"$f":"IFERROR(VLOOKUP(B721,[2]Sheet4!$F$2:$J$364,3,FALSE),\"\")","v":""},{"$f":"IFERROR(VLOOKUP(B721,[2]Sheet4!$F$2:$J$364,4,FALSE),\"\")","v":""},{"$f":"IFERROR(VLOOKUP(B721,[2]Sheet4!$F$2:$J$364,5,FALSE),\"\")","v":""}]
[null,null,{"$f":"IFERROR(VLOOKUP(B722,[2]Sheet4!$F$2:$J$364,2,FALSE),\"\")","v":""},{"$f":"IFERROR(VLOOKUP(B722,[2]Sheet4!$F$2:$J$364,3,FALSE),\"\")","v":""},{"$f":"IFERROR(VLOOKUP(B722,[2]Sheet4!$F$2:$J$364,4,FALSE),\"\")","v":""},{"$f":"IFERROR(VLOOKUP(B722,[2]Sheet4!$F$2:$J$364,5,FALSE),\"\")","v":""}]
[null,null,{"$f":"IFERROR(VLOOKUP(B723,[2]Sheet4!$F$2:$J$364,2,FALSE),\"\")","v":""},{"$f":"IFERROR(VLOOKUP(B723,[2]Sheet4!$F$2:$J$364,3,FALSE),\"\")","v":""},{"$f":"IFERROR(VLOOKUP(B723,[2]Sheet4!$F$2:$J$364,4,FALSE),\"\")","v":""},{"$f":"IFERROR(VLOOKUP(B723,[2]Sheet4!$F$2:$J$364,5,FALSE),\"\")","v":""}]
[null,null,{"$f":"IFERROR(VLOOKUP(B724,[2]Sheet4!$F$2:$J$364,2,FALSE),\"\")","v":""},{"$f":"IFERROR(VLOOKUP(B724,[2]Sheet4!$F$2:$J$364,3,FALSE),\"\")","v":""},{"$f":"IFERROR(VLOOKUP(B724,[2]Sheet4!$F$2:$J$364,4,FALSE),\"\")","v":""},{"$f":"IFERROR(VLOOKUP(B724,[2]Sheet4!$F$2:$J$364,5,FALSE),\"\")","v":""}]
[null,null,{"$f":"IFERROR(VLOOKUP(B725,[2]Sheet4!$F$2:$J$364,2,FALSE),\"\")","v":""},{"$f":"IFERROR(VLOOKUP(B725,[2]Sheet4!$F$2:$J$364,3,FALSE),\"\")","v":""},{"$f":"IFERROR(VLOOKUP(B725,[2]Sheet4!$F$2:$J$364,4,FALSE),\"\")","v":""},{"$f":"IFERROR(VLOOKUP(B725,[2]Sheet4!$F$2:$J$364,5,FALSE),\"\")","v":""}]
[null,null,{"$f":"IFERROR(VLOOKUP(B726,[2]Sheet4!$F$2:$J$364,2,FALSE),\"\")","v":""},{"$f":"IFERROR(VLOOKUP(B726,[2]Sheet4!$F$2:$J$364,3,FALSE),\"\")","v":""},{"$f":"IFERROR(VLOOKUP(B726,[2]Sheet4!$F$2:$J$364,4,FALSE),\"\")","v":""},{"$f":"IFERROR(VLOOKUP(B726,[2]Sheet4!$F$2:$J$364,5,FALSE),\"\")","v":""}]
[null,null,{"$f":"IFERROR(VLOOKUP(B727,[2]Sheet4!$F$2:$J$364,2,FALSE),\"\")","v":""},{"$f":"IFERROR(VLOOKUP(B727,[2]Sheet4!$F$2:$J$364,3,FALSE),\"\")","v":""},{"$f":"IFERROR(VLOOKUP(B727,[2]Sheet4!$F$2:$J$364,4,FALSE),\"\")","v":""},{"$f":"IFERROR(VLOOKUP(B727,[2]Sheet4!$F$2:$J$364,5,FALSE),\"\")","v":""}]
[null,null,{"$f":"IFERROR(VLOOKUP(B728,[2]Sheet4!$F$2:$J$364,2,FALSE),\"\")","v":""},{"$f":"IFERROR(VLOOKUP(B728,[2]Sheet4!$F$2:$J$364,3,FALSE),\"\")","v":""},{"$f":"IFERROR(VLOOKUP(B728,[2]Sheet4!$F$2:$J$364,4,FALSE),\"\")","v":""},{"$f":"IFERROR(VLOOKUP(B728,[2]Sheet4!$F$2:$J$364,5,FALSE),\"\")","v":""}]
[null,null,{"$f":"IFERROR(VLOOKUP(B729,[2]Sheet4!$F$2:$J$364,2,FALSE),\"\")","v":""},{"$f":"IFERROR(VLOOKUP(B729,[2]Sheet4!$F$2:$J$364,3,FALSE),\"\")","v":""},{"$f":"IFERROR(VLOOKUP(B729,[2]Sheet4!$F$2:$J$364,4,FALSE),\"\")","v":""},{"$f":"IFERROR(VLOOKUP(B729,[2]Sheet4!$F$2:$J$364,5,FALSE),\"\")","v":""}]
[null,null,{"$f":"IFERROR(VLOOKUP(B730,[2]Sheet4!$F$2:$J$364,2,FALSE),\"\")","v":""},{"$f":"IFERROR(VLOOKUP(B730,[2]Sheet4!$F$2:$J$364,3,FALSE),\"\")","v":""},{"$f":"IFERROR(VLOOKUP(B730,[2]Sheet4!$F$2:$J$364,4,FALSE),\"\")","v":""},{"$f":"IFERROR(VLOOKUP(B730,[2]Sheet4!$F$2:$J$364,5,FALSE),\"\")","v":""}]
[null,null,{"$f":"IFERROR(VLOOKUP(B731,[2]Sheet4!$F$2:$J$364,2,FALSE),\"\")","v":""},{"$f":"IFERROR(VLOOKUP(B731,[2]Sheet4!$F$2:$J$364,3,FALSE),\"\")","v":""},{"$f":"IFERROR(VLOOKUP(B731,[2]Sheet4!$F$2:$J$364,4,FALSE),\"\")","v":""},{"$f":"IFERROR(VLOOKUP(B731,[2]Sheet4!$F$2:$J$364,5,FALSE),\"\")","v":""}]
[null,null,{"$f":"IFERROR(VLOOKUP(B732,[2]Sheet4!$F$2:$J$364,2,FALSE),\"\")","v":""},{"$f":"IFERROR(VLOOKUP(B732,[2]Sheet4!$F$2:$J$364,3,FALSE),\"\")","v":""},{"$f":"IFERROR(VLOOKUP(B732,[2]Sheet4!$F$2:$J$364,4,FALSE),\"\")","v":""},{"$f":"IFERROR(VLOOKUP(B732,[2]Sheet4!$F$2:$J$364,5,FALSE),\"\")","v":""}]
[null,null,{"$f":"IFERROR(VLOOKUP(B733,[2]Sheet4!$F$2:$J$364,2,FALSE),\"\")","v":""},{"$f":"IFERROR(VLOOKUP(B733,[2]Sheet4!$F$2:$J$364,3,FALSE),\"\")","v":""},{"$f":"IFERROR(VLOOKUP(B733,[2]Sheet4!$F$2:$J$364,4,FALSE),\"\")","v":""},{"$f":"IFERROR(VLOOKUP(B733,[2]Sheet4!$F$2:$J$364,5,FALSE),\"\")","v":""}]
[null,null,{"$f":"IFERROR(VLOOKUP(B734,[2]Sheet4!$F$2:$J$364,2,FALSE),\"\")","v":""},{"$f":"IFERROR(VLOOKUP(B734,[2]Sheet4!$F$2:$J$364,3,FALSE),\"\")","v":""},{"$f":"IFERROR(VLOOKUP(B734,[2]Sheet4!$F$2:$J$364,4,FALSE),\"\")","v":""},{"$f":"IFERROR(VLOOKUP(B734,[2]Sheet4!$F$2:$J$364,5,FALSE),\"\")","v":""}]
[null,null,{"$f":"IFERROR(VLOOKUP(B735,[2]Sheet4!$F$2:$J$364,2,FALSE),\"\")","v":""},{"$f":"IFERROR(VLOOKUP(B735,[2]Sheet4!$F$2:$J$364,3,FALSE),\"\")","v":""},{"$f":"IFERROR(VLOOKUP(B735,[2]Sheet4!$F$2:$J$364,4,FALSE),\"\")","v":""},{"$f":"IFERROR(VLOOKUP(B735,[2]Sheet4!$F$2:$J$364,5,FALSE),\"\")","v":""}]
[null,null,{"$f":"IFERROR(VLOOKUP(B736,[2]Sheet4!$F$2:$J$364,2,FALSE),\"\")","v":""},{"$f":"IFERROR(VLOOKUP(B736,[2]Sheet4!$F$2:$J$364,3,FALSE),\"\")","v":""},{"$f":"IFERROR(VLOOKUP(B736,[2]Sheet4!$F$2:$J$364,4,FALSE),\"\")","v":""},{"$f":"IFERROR(VLOOKUP(B736,[2]Sheet4!$F$2:$J$364,5,FALSE),\"\")","v":""}]
[null,null,{"$f":"IFERROR(VLOOKUP(B737,[2]Sheet4!$F$2:$J$364,2,FALSE),\"\")","v":""},{"$f":"IFERROR(VLOOKUP(B737,[2]Sheet4!$F$2:$J$364,3,FALSE),\"\")","v":""},{"$f":"IFERROR(VLOOKUP(B737,[2]Sheet4!$F$2:$J$364,4,FALSE),\"\")","v":""},{"$f":"IFERROR(VLOOKUP(B737,[2]Sheet4!$F$2:$J$364,5,FALSE),\"\")","v":""}]
[null,null,{"$f":"IFERROR(VLOOKUP(B738,[2]Sheet4!$F$2:$J$364,2,FALSE),\"\")","v":""},{"$f":"IFERROR(VLOOKUP(B738,[2]Sheet4!$F$2:$J$364,3,FALSE),\"\")","v":""},{"$f":"IFERROR(VLOOKUP(B738,[2]Sheet4!$F$2:$J$364,4,FALSE),\"\")","v":""},{"$f":"IFERROR(VLOOKUP(B738,[2]Sheet4!$F$2:$J$364,5,FALSE),\"\")","v":""}]
[null,null,{"$f":"IFERROR(VLOOKUP(B739,[2]Sheet4!$F$2:$J$364,2,FALSE),\"\")","v":""},{"$f":"IFERROR(VLOOKUP(B739,[2]Sheet4!$F$2:$J$364,3,FALSE),\"\")","v":""},{"$f":"IFERROR(VLOOKUP(B739,[2]Sheet4!$F$2:$J$364,4,FALSE),\"\")","v":""},{"$f":"IFERROR(VLOOKUP(B739,[2]Sheet4!$F$2:$J$364,5,FALSE),\"\")","v":""}]
[null,null,{"$f":"IFERROR(VLOOKUP(B740,[2]Sheet4!$F$2:$J$364,2,FALSE),\"\")","v":""},{"$f":"IFERROR(VLOOKUP(B740,[2]Sheet4!$F$2:$J$364,3,FALSE),\"\")","v":""},{"$f":"IFERROR(VLOOKUP(B740,[2]Sheet4!$F$2:$J$364,4,FALSE),\"\")","v":""},{"$f":"IFERROR(VLOOKUP(B740,[2]Sheet4!$F$2:$J$364,5,FALSE),\"\")","v":""}]
[null,null,{"$f":"IFERROR(VLOOKUP(B741,[2]Sheet4!$F$2:$J$364,2,FALSE),\"\")","v":""},{"$f":"IFERROR(VLOOKUP(B741,[2]Sheet4!$F$2:$J$364,3,FALSE),\"\")","v":""},{"$f":"IFERROR(VLOOKUP(B741,[2]Sheet4!$F$2:$J$364,4,FALSE),\"\")","v":""},{"$f":"IFERROR(VLOOKUP(B741,[2]Sheet4!$F$2:$J$364,5,FALSE),\"\")","v":""}]
[null,null,{"$f":"IFERROR(VLOOKUP(B742,[2]Sheet4!$F$2:$J$364,2,FALSE),\"\")","v":""},{"$f":"IFERROR(VLOOKUP(B742,[2]Sheet4!$F$2:$J$364,3,FALSE),\"\")","v":""},{"$f":"IFERROR(VLOOKUP(B742,[2]Sheet4!$F$2:$J$364,4,FALSE),\"\")","v":""},{"$f":"IFERROR(VLOOKUP(B742,[2]Sheet4!$F$2:$J$364,5,FALSE),\"\")","v":""}]
[null,null,{"$f":"IFERROR(VLOOKUP(B743,[2]Sheet4!$F$2:$J$364,2,FALSE),\"\")","v":""},{"$f":"IFERROR(VLOOKUP(B743,[2]Sheet4!$F$2:$J$364,3,FALSE),\"\")","v":""},{"$f":"IFERROR(VLOOKUP(B743,[2]Sheet4!$F$2:$J$364,4,FALSE),\"\")","v":""},{"$f":"IFERROR(VLOOKUP(B743,[2]Sheet4!$F$2:$J$364,5,FALSE),\"\")","v":""}]
[null,null,{"$f":"IFERROR(VLOOKUP(B744,[2]Sheet4!$F$2:$J$364,2,FALSE),\"\")","v":""},{"$f":"IFERROR(VLOOKUP(B744,[2]Sheet4!$F$2:$J$364,3,FALSE),\"\")","v":""},{"$f":"IFERROR(VLOOKUP(B744,[2]Sheet4!$F$2:$J$364,4,FALSE),\"\")","v":""},{"$f":"IFERROR(VLOOKUP(B744,[2]Sheet4!$F$2:$J$364,5,FALSE),\"\")","v":""}]
[null,null,{"$f":"IFERROR(VLOOKUP(B745,[2]Sheet4!$F$2:$J$364,2,FALSE),\"\")","v":""},{"$f":"IFERROR(VLOOKUP(B745,[2]Sheet4!$F$2:$J$364,3,FALSE),\"\")","v":""},{"$f":"IFERROR(VLOOKUP(B745,[2]Sheet4!$F$2:$J$364,4,FALSE),\"\")","v":""},{"$f":"IFERROR(VLOOKUP(B745,[2]Sheet4!$F$2:$J$364,5,FALSE),\"\")","v":""}]
[null,null,{"$f":"IFERROR(VLOOKUP(B746,[2]Sheet4!$F$2:$J$364,2,FALSE),\"\")","v":""},{"$f":"IFERROR(VLOOKUP(B746,[2]Sheet4!$F$2:$J$364,3,FALSE),\"\")","v":""},{"$f":"IFERROR(VLOOKUP(B746,[2]Sheet4!$F$2:$J$364,4,FALSE),\"\")","v":""},{"$f":"IFERROR(VLOOKUP(B746,[2]Sheet4!$F$2:$J$364,5,FALSE),\"\")","v":""}]
[null,null,{"$f":"IFERROR(VLOOKUP(B747,[2]Sheet4!$F$2:$J$364,2,FALSE),\"\")","v":""},{"$f":"IFERROR(VLOOKUP(B747,[2]Sheet4!$F$2:$J$364,3,FALSE),\"\")","v":""},{"$f":"IFERROR(VLOOKUP(B747,[2]Sheet4!$F$2:$J$364,4,FALSE),\"\")","v":""},{"$f":"IFERROR(VLOOKUP(B747,[2]Sheet4!$F$2:$J$364,5,FALSE),\"\")","v":""}]
[null,null,{"$f":"IFERROR(VLOOKUP(B748,[2]Sheet4!$F$2:$J$364,2,FALSE),\"\")","v":""},{"$f":"IFERROR(VLOOKUP(B748,[2]Sheet4!$F$2:$J$364,3,FALSE),\"\")","v":""},{"$f":"IFERROR(VLOOKUP(B748,[2]Sheet4!$F$2:$J$364,4,FALSE),\"\")","v":""},{"$f":"IFERROR(VLOOKUP(B748,[2]Sheet4!$F$2:$J$364,5,FALSE),\"\")","v":""}]
[null,null,{"$f":"IFERROR(VLOOKUP(B749,[2]Sheet4!$F$2:$J$364,2,FALSE),\"\")","v":""},{"$f":"IFERROR(VLOOKUP(B749,[2]Sheet4!$F$2:$J$364,3,FALSE),\"\")","v":""},{"$f":"IFERROR(VLOOKUP(B749,[2]Sheet4!$F$2:$J$364,4,FALSE),\"\")","v":""},{"$f":"IFERROR(VLOOKUP(B749,[2]Sheet4!$F$2:$J$364,5,FALSE),\"\")","v":""}]
[null,null,{"$f":"IFERROR(VLOOKUP(B750,[2]Sheet4!$F$2:$J$364,2,FALSE),\"\")","v":""},{"$f":"IFERROR(VLOOKUP(B750,[2]Sheet4!$F$2:$J$364,3,FALSE),\"\")","v":""},{"$f":"IFERROR(VLOOKUP(B750,[2]Sheet4!$F$2:$J$364,4,FALSE),\"\")","v":""},{"$f":"IFERROR(VLOOKUP(B750,[2]Sheet4!$F$2:$J$364,5,FALSE),\"\")","v":""}]
[null,null,{"$f":"IFERROR(VLOOKUP(B751,[2]Sheet4!$F$2:$J$364,2,FALSE),\"\")","v":""},{"$f":"IFERROR(VLOOKUP(B751,[2]Sheet4!$F$2:$J$364,3,FALSE),\"\")","v":""},{"$f":"IFERROR(VLOOKUP(B751,[2]Sheet4!$F$2:$J$364,4,FALSE),\"\")","v":""},{"$f":"IFERROR(VLOOKUP(B751,[2]Sheet4!$F$2:$J$364,5,FALSE),\"\")","v":""}]
[null,null,{"$f":"IFERROR(VLOOKUP(B752,[2]Sheet4!$F$2:$J$364,2,FALSE),\"\")","v":""},{"$f":"IFERROR(VLOOKUP(B752,[2]Sheet4!$F$2:$J$364,3,FALSE),\"\")","v":""},{"$f":"IFERROR(VLOOKUP(B752,[2]Sheet4!$F$2:$J$364,4,FALSE),\"\")","v":""},{"$f":"IFERROR(VLOOKUP(B752,[2]Sheet4!$F$2:$J$364,5,FALSE),\"\")","v":""}]
[null,null,{"$f":"IFERROR(VLOOKUP(B753,[2]Sheet4!$F$2:$J$364,2,FALSE),\"\")","v":""},{"$f":"IFERROR(VLOOKUP(B753,[2]Sheet4!$F$2:$J$364,3,FALSE),\"\")","v":""},{"$f":"IFERROR(VLOOKUP(B753,[2]Sheet4!$F$2:$J$364,4,FALSE),\"\")","v":""},{"$f":"IFERROR(VLOOKUP(B753,[2]Sheet4!$F$2:$J$364,5,FALSE),\"\")","v":""}]
[null,null,{"$f":"IFERROR(VLOOKUP(B754,[2]Sheet4!$F$2:$J$364,2,FALSE),\"\")","v":""},{"$f":"IFERROR(VLOOKUP(B754,[2]Sheet4!$F$2:$J$364,3,FALSE),\"\")","v":""},{"$f":"IFERROR(VLOOKUP(B754,[2]Sheet4!$F$2:$J$364,4,FALSE),\"\")","v":""},{"$f":"IFERROR(VLOOKUP(B754,[2]Sheet4!$F$2:$J$364,5,FALSE),\"\")","v":""}]
[null,null,{"$f":"IFERROR(VLOOKUP(B755,[2]Sheet4!$F$2:$J$364,2,FALSE),\"\")","v":""},{"$f":"IFERROR(VLOOKUP(B755,[2]Sheet4!$F$2:$J$364,3,FALSE),\"\")","v":""},{"$f":"IFERROR(VLOOKUP(B755,[2]Sheet4!$F$2:$J$364,4,FALSE),\"\")","v":""},{"$f":"IFERROR(VLOOKUP(B755,[2]Sheet4!$F$2:$J$364,5,FALSE),\"\")","v":""}]
[null,null,{"$f":"IFERROR(VLOOKUP(B756,[2]Sheet4!$F$2:$J$364,2,FALSE),\"\")","v":""},{"$f":"IFERROR(VLOOKUP(B756,[2]Sheet4!$F$2:$J$364,3,FALSE),\"\")","v":""},{"$f":"IFERROR(VLOOKUP(B756,[2]Sheet4!$F$2:$J$364,4,FALSE),\"\")","v":""},{"$f":"IFERROR(VLOOKUP(B756,[2]Sheet4!$F$2:$J$364,5,FALSE),\"\")","v":""}]
[null,null,{"$f":"IFERROR(VLOOKUP(B757,[2]Sheet4!$F$2:$J$364,2,FALSE),\"\")","v":""},{"$f":"IFERROR(VLOOKUP(B757,[2]Sheet4!$F$2:$J$364,3,FALSE),\"\")","v":""},{"$f":"IFERROR(VLOOKUP(B757,[2]Sheet4!$F$2:$J$364,4,FALSE),\"\")","v":""},{"$f":"IFERROR(VLOOKUP(B757,[2]Sheet4!$F$2:$J$364,5,FALSE),\"\")","v":""}]
[null,null,{"$f":"IFERROR(VLOOKUP(B758,[2]Sheet4!$F$2:$J$364,2,FALSE),\"\")","v":""},{"$f":"IFERROR(VLOOKUP(B758,[2]Sheet4!$F$2:$J$364,3,FALSE),\"\")","v":""},{"$f":"IFERROR(VLOOKUP(B758,[2]Sheet4!$F$2:$J$364,4,FALSE),\"\")","v":""},{"$f":"IFERROR(VLOOKUP(B758,[2]Sheet4!$F$2:$J$364,5,FALSE),\"\")","v":""}]
[null,null,{"$f":"IFERROR(VLOOKUP(B759,[2]Sheet4!$F$2:$J$364,2,FALSE),\"\")","v":""},{"$f":"IFERROR(VLOOKUP(B759,[2]Sheet4!$F$2:$J$364,3,FALSE),\"\")","v":""},{"$f":"IFERROR(VLOOKUP(B759,[2]Sheet4!$F$2:$J$364,4,FALSE),\"\")","v":""},{"$f":"IFERROR(VLOOKUP(B759,[2]Sheet4!$F$2:$J$364,5,FALSE),\"\")","v":""}]
[null,null,{"$f":"IFERROR(VLOOKUP(B760,[2]Sheet4!$F$2:$J$364,2,FALSE),\"\")","v":""},{"$f":"IFERROR(VLOOKUP(B760,[2]Sheet4!$F$2:$J$364,3,FALSE),\"\")","v":""},{"$f":"IFERROR(VLOOKUP(B760,[2]Sheet4!$F$2:$J$364,4,FALSE),\"\")","v":""},{"$f":"IFERROR(VLOOKUP(B760,[2]Sheet4!$F$2:$J$364,5,FALSE),\"\")","v":""}]
[null,null,{"$f":"IFERROR(VLOOKUP(B761,[2]Sheet4!$F$2:$J$364,2,FALSE),\"\")","v":""},{"$f":"IFERROR(VLOOKUP(B761,[2]Sheet4!$F$2:$J$364,3,FALSE),\"\")","v":""},{"$f":"IFERROR(VLOOKUP(B761,[2]Sheet4!$F$2:$J$364,4,FALSE),\"\")","v":""},{"$f":"IFERROR(VLOOKUP(B761,[2]Sheet4!$F$2:$J$364,5,FALSE),\"\")","v":""}]
[null,null,{"$f":"IFERROR(VLOOKUP(B762,[2]Sheet4!$F$2:$J$364,2,FALSE),\"\")","v":""},{"$f":"IFERROR(VLOOKUP(B762,[2]Sheet4!$F$2:$J$364,3,FALSE),\"\")","v":""},{"$f":"IFERROR(VLOOKUP(B762,[2]Sheet4!$F$2:$J$364,4,FALSE),\"\")","v":""},{"$f":"IFERROR(VLOOKUP(B762,[2]Sheet4!$F$2:$J$364,5,FALSE),\"\")","v":""}]
[null,null,{"$f":"IFERROR(VLOOKUP(B763,[2]Sheet4!$F$2:$J$364,2,FALSE),\"\")","v":""},{"$f":"IFERROR(VLOOKUP(B763,[2]Sheet4!$F$2:$J$364,3,FALSE),\"\")","v":""},{"$f":"IFERROR(VLOOKUP(B763,[2]Sheet4!$F$2:$J$364,4,FALSE),\"\")","v":""},{"$f":"IFERROR(VLOOKUP(B763,[2]Sheet4!$F$2:$J$364,5,FALSE),\"\")","v":""}]
[null,null,{"$f":"IFERROR(VLOOKUP(B764,[2]Sheet4!$F$2:$J$364,2,FALSE),\"\")","v":""},{"$f":"IFERROR(VLOOKUP(B764,[2]Sheet4!$F$2:$J$364,3,FALSE),\"\")","v":""},{"$f":"IFERROR(VLOOKUP(B764,[2]Sheet4!$F$2:$J$364,4,FALSE),\"\")","v":""},{"$f":"IFERROR(VLOOKUP(B764,[2]Sheet4!$F$2:$J$364,5,FALSE),\"\")","v":""}]
[null,null,{"$f":"IFERROR(VLOOKUP(B765,[2]Sheet4!$F$2:$J$364,2,FALSE),\"\")","v":""},{"$f":"IFERROR(VLOOKUP(B765,[2]Sheet4!$F$2:$J$364,3,FALSE),\"\")","v":""},{"$f":"IFERROR(VLOOKUP(B765,[2]Sheet4!$F$2:$J$364,4,FALSE),\"\")","v":""},{"$f":"IFERROR(VLOOKUP(B765,[2]Sheet4!$F$2:$J$364,5,FALSE),\"\")","v":""}]
[null,null,{"$f":"IFERROR(VLOOKUP(B766,[2]Sheet4!$F$2:$J$364,2,FALSE),\"\")","v":""},{"$f":"IFERROR(VLOOKUP(B766,[2]Sheet4!$F$2:$J$364,3,FALSE),\"\")","v":""},{"$f":"IFERROR(VLOOKUP(B766,[2]Sheet4!$F$2:$J$364,4,FALSE),\"\")","v":""},{"$f":"IFERROR(VLOOKUP(B766,[2]Sheet4!$F$2:$J$364,5,FALSE),\"\")","v":""}]
[null,null,{"$f":"IFERROR(VLOOKUP(B767,[2]Sheet4!$F$2:$J$364,2,FALSE),\"\")","v":""},{"$f":"IFERROR(VLOOKUP(B767,[2]Sheet4!$F$2:$J$364,3,FALSE),\"\")","v":""},{"$f":"IFERROR(VLOOKUP(B767,[2]Sheet4!$F$2:$J$364,4,FALSE),\"\")","v":""},{"$f":"IFERROR(VLOOKUP(B767,[2]Sheet4!$F$2:$J$364,5,FALSE),\"\")","v":""}]
[null,null,{"$f":"IFERROR(VLOOKUP(B768,[2]Sheet4!$F$2:$J$364,2,FALSE),\"\")","v":""},{"$f":"IFERROR(VLOOKUP(B768,[2]Sheet4!$F$2:$J$364,3,FALSE),\"\")","v":""},{"$f":"IFERROR(VLOOKUP(B768,[2]Sheet4!$F$2:$J$364,4,FALSE),\"\")","v":""},{"$f":"IFERROR(VLOOKUP(B768,[2]Sheet4!$F$2:$J$364,5,FALSE),\"\")","v":""}]
[null,null,{"$f":"IFERROR(VLOOKUP(B769,[2]Sheet4!$F$2:$J$364,2,FALSE),\"\")","v":""},{"$f":"IFERROR(VLOOKUP(B769,[2]Sheet4!$F$2:$J$364,3,FALSE),\"\")","v":""},{"$f":"IFERROR(VLOOKUP(B769,[2]Sheet4!$F$2:$J$364,4,FALSE),\"\")","v":""},{"$f":"IFERROR(VLOOKUP(B769,[2]Sheet4!$F$2:$J$364,5,FALSE),\"\")","v":""}]
[null,null,{"$f":"IFERROR(VLOOKUP(B770,[2]Sheet4!$F$2:$J$364,2,FALSE),\"\")","v":""},{"$f":"IFERROR(VLOOKUP(B770,[2]Sheet4!$F$2:$J$364,3,FALSE),\"\")","v":""},{"$f":"IFERROR(VLOOKUP(B770,[2]Sheet4!$F$2:$J$364,4,FALSE),\"\")","v":""},{"$f":"IFERROR(VLOOKUP(B770,[2]Sheet4!$F$2:$J$364,5,FALSE),\"\")","v":""}]
[null,null,{"$f":"IFERROR(VLOOKUP(B771,[2]Sheet4!$F$2:$J$364,2,FALSE),\"\")","v":""},{"$f":"IFERROR(VLOOKUP(B771,[2]Sheet4!$F$2:$J$364,3,FALSE),\"\")","v":""},{"$f":"IFERROR(VLOOKUP(B771,[2]Sheet4!$F$2:$J$364,4,FALSE),\"\")","v":""},{"$f":"IFERROR(VLOOKUP(B771,[2]Sheet4!$F$2:$J$364,5,FALSE),\"\")","v":""}]
[null,null,{"$f":"IFERROR(VLOOKUP(B772,[2]Sheet4!$F$2:$J$364,2,FALSE),\"\")","v":""},{"$f":"IFERROR(VLOOKUP(B772,[2]Sheet4!$F$2:$J$364,3,FALSE),\"\")","v":""},{"$f":"IFERROR(VLOOKUP(B772,[2]Sheet4!$F$2:$J$364,4,FALSE),\"\")","v":""},{"$f":"IFERROR(VLOOKUP(B772,[2]Sheet4!$F$2:$J$364,5,FALSE),\"\")","v":""}]
[null,null,{"$f":"IFERROR(VLOOKUP(B773,[2]Sheet4!$F$2:$J$364,2,FALSE),\"\")","v":""},{"$f":"IFERROR(VLOOKUP(B773,[2]Sheet4!$F$2:$J$364,3,FALSE),\"\")","v":""},{"$f":"IFERROR(VLOOKUP(B773,[2]Sheet4!$F$2:$J$364,4,FALSE),\"\")","v":""},{"$f":"IFERROR(VLOOKUP(B773,[2]Sheet4!$F$2:$J$364,5,FALSE),\"\")","v":""}]
[null,null,{"$f":"IFERROR(VLOOKUP(B774,[2]Sheet4!$F$2:$J$364,2,FALSE),\"\")","v":""},{"$f":"IFERROR(VLOOKUP(B774,[2]Sheet4!$F$2:$J$364,3,FALSE),\"\")","v":""},{"$f":"IFERROR(VLOOKUP(B774,[2]Sheet4!$F$2:$J$364,4,FALSE),\"\")","v":""},{"$f":"IFERROR(VLOOKUP(B774,[2]Sheet4!$F$2:$J$364,5,FALSE),\"\")","v":""}]
[null,null,{"$f":"IFERROR(VLOOKUP(B775,[2]Sheet4!$F$2:$J$364,2,FALSE),\"\")","v":""},{"$f":"IFERROR(VLOOKUP(B775,[2]Sheet4!$F$2:$J$364,3,FALSE),\"\")","v":""},{"$f":"IFERROR(VLOOKUP(B775,[2]Sheet4!$F$2:$J$364,4,FALSE),\"\")","v":""},{"$f":"IFERROR(VLOOKUP(B775,[2]Sheet4!$F$2:$J$364,5,FALSE),\"\")","v":""}]
[null,null,{"$f":"IFERROR(VLOOKUP(B776,[2]Sheet4!$F$2:$J$364,2,FALSE),\"\")","v":""},{"$f":"IFERROR(VLOOKUP(B776,[2]Sheet4!$F$2:$J$364,3,FALSE),\"\")","v":""},{"$f":"IFERROR(VLOOKUP(B776,[2]Sheet4!$F$2:$J$364,4,FALSE),\"\")","v":""},{"$f":"IFERROR(VLOOKUP(B776,[2]Sheet4!$F$2:$J$364,5,FALSE),\"\")","v":""}]
[null,null,{"$f":"IFERROR(VLOOKUP(B777,[2]Sheet4!$F$2:$J$364,2,FALSE),\"\")","v":""},{"$f":"IFERROR(VLOOKUP(B777,[2]Sheet4!$F$2:$J$364,3,FALSE),\"\")","v":""},{"$f":"IFERROR(VLOOKUP(B777,[2]Sheet4!$F$2:$J$364,4,FALSE),\"\")","v":""},{"$f":"IFERROR(VLOOKUP(B777,[2]Sheet4!$F$2:$J$364,5,FALSE),\"\")","v":""}]
[null,null,{"$f":"IFERROR(VLOOKUP(B778,[2]Sheet4!$F$2:$J$364,2,FALSE),\"\")","v":""},{"$f":"IFERROR(VLOOKUP(B778,[2]Sheet4!$F$2:$J$364,3,FALSE),\"\")","v":""},{"$f":"IFERROR(VLOOKUP(B778,[2]Sheet4!$F$2:$J$364,4,FALSE),\"\")","v":""},{"$f":"IFERROR(VLOOKUP(B778,[2]Sheet4!$F$2:$J$364,5,FALSE),\"\")","v":""}]
[null,null,{"$f":"IFERROR(VLOOKUP(B779,[2]Sheet4!$F$2:$J$364,2,FALSE),\"\")","v":""},{"$f":"IFERROR(VLOOKUP(B779,[2]Sheet4!$F$2:$J$364,3,FALSE),\"\")","v":""},{"$f":"IFERROR(VLOOKUP(B779,[2]Sheet4!$F$2:$J$364,4,FALSE),\"\")","v":""},{"$f":"IFERROR(VLOOKUP(B779,[2]Sheet4!$F$2:$J$364,5,FALSE),\"\")","v":""}]
[null,null,{"$f":"IFERROR(VLOOKUP(B780,[2]Sheet4!$F$2:$J$364,2,FALSE),\"\")","v":""},{"$f":"IFERROR(VLOOKUP(B780,[2]Sheet4!$F$2:$J$364,3,FALSE),\"\")","v":""},{"$f":"IFERROR(VLOOKUP(B780,[2]Sheet4!$F$2:$J$364,4,FALSE),\"\")","v":""},{"$f":"IFERROR(VLOOKUP(B780,[2]Sheet4!$F$2:$J$364,5,FALSE),\"\")","v":""}]
[null,null,{"$f":"IFERROR(VLOOKUP(B781,[2]Sheet4!$F$2:$J$364,2,FALSE),\"\")","v":""},{"$f":"IFERROR(VLOOKUP(B781,[2]Sheet4!$F$2:$J$364,3,FALSE),\"\")","v":""},{"$f":"IFERROR(VLOOKUP(B781,[2]Sheet4!$F$2:$J$364,4,FALSE),\"\")","v":""},{"$f":"IFERROR(VLOOKUP(B781,[2]Sheet4!$F$2:$J$364,5,FALSE),\"\")","v":""}]
[null,null,{"$f":"IFERROR(VLOOKUP(B782,[2]Sheet4!$F$2:$J$364,2,FALSE),\"\")","v":""},{"$f":"IFERROR(VLOOKUP(B782,[2]Sheet4!$F$2:$J$364,3,FALSE),\"\")","v":""},{"$f":"IFERROR(VLOOKUP(B782,[2]Sheet4!$F$2:$J$364,4,FALSE),\"\")","v":""},{"$f":"IFERROR(VLOOKUP(B782,[2]Sheet4!$F$2:$J$364,5,FALSE),\"\")","v":""}]
[null,null,{"$f":"IFERROR(VLOOKUP(B783,[2]Sheet4!$F$2:$J$364,2,FALSE),\"\")","v":""},{"$f":"IFERROR(VLOOKUP(B783,[2]Sheet4!$F$2:$J$364,3,FALSE),\"\")","v":""},{"$f":"IFERROR(VLOOKUP(B783,[2]Sheet4!$F$2:$J$364,4,FALSE),\"\")","v":""},{"$f":"IFERROR(VLOOKUP(B783,[2]Sheet4!$F$2:$J$364,5,FALSE),\"\")","v":""}]
[null,null,{"$f":"IFERROR(VLOOKUP(B784,[2]Sheet4!$F$2:$J$364,2,FALSE),\"\")","v":""},{"$f":"IFERROR(VLOOKUP(B784,[2]Sheet4!$F$2:$J$364,3,FALSE),\"\")","v":""},{"$f":"IFERROR(VLOOKUP(B784,[2]Sheet4!$F$2:$J$364,4,FALSE),\"\")","v":""},{"$f":"IFERROR(VLOOKUP(B784,[2]Sheet4!$F$2:$J$364,5,FALSE),\"\")","v":""}]
[null,null,{"$f":"IFERROR(VLOOKUP(B785,[2]Sheet4!$F$2:$J$364,2,FALSE),\"\")","v":""},{"$f":"IFERROR(VLOOKUP(B785,[2]Sheet4!$F$2:$J$364,3,FALSE),\"\")","v":""},{"$f":"IFERROR(VLOOKUP(B785,[2]Sheet4!$F$2:$J$364,4,FALSE),\"\")","v":""},{"$f":"IFERROR(VLOOKUP(B785,[2]Sheet4!$F$2:$J$364,5,FALSE),\"\")","v":""}]
[null,null,{"$f":"IFERROR(VLOOKUP(B786,[2]Sheet4!$F$2:$J$364,2,FALSE),\"\")","v":""},{"$f":"IFERROR(VLOOKUP(B786,[2]Sheet4!$F$2:$J$364,3,FALSE),\"\")","v":""},{"$f":"IFERROR(VLOOKUP(B786,[2]Sheet4!$F$2:$J$364,4,FALSE),\"\")","v":""},{"$f":"IFERROR(VLOOKUP(B786,[2]Sheet4!$F$2:$J$364,5,FALSE),\"\")","v":""}]
[null,null,{"$f":"IFERROR(VLOOKUP(B787,[2]Sheet4!$F$2:$J$364,2,FALSE),\"\")","v":""},{"$f":"IFERROR(VLOOKUP(B787,[2]Sheet4!$F$2:$J$364,3,FALSE),\"\")","v":""},{"$f":"IFERROR(VLOOKUP(B787,[2]Sheet4!$F$2:$J$364,4,FALSE),\"\")","v":""},{"$f":"IFERROR(VLOOKUP(B787,[2]Sheet4!$F$2:$J$364,5,FALSE),\"\")","v":""}]
[null,null,{"$f":"IFERROR(VLOOKUP(B788,[2]Sheet4!$F$2:$J$364,2,FALSE),\"\")","v":""},{"$f":"IFERROR(VLOOKUP(B788,[2]Sheet4!$F$2:$J$364,3,FALSE),\"\")","v":""},{"$f":"IFERROR(VLOOKUP(B788,[2]Sheet4!$F$2:$J$364,4,FALSE),\"\")","v":""},{"$f":"IFERROR(VLOOKUP(B788,[2]Sheet4!$F$2:$J$364,5,FALSE),\"\")","v":""}]
[null,null,{"$f":"IFERROR(VLOOKUP(B789,[2]Sheet4!$F$2:$J$364,2,FALSE),\"\")","v":""},{"$f":"IFERROR(VLOOKUP(B789,[2]Sheet4!$F$2:$J$364,3,FALSE),\"\")","v":""},{"$f":"IFERROR(VLOOKUP(B789,[2]Sheet4!$F$2:$J$364,4,FALSE),\"\")","v":""},{"$f":"IFERROR(VLOOKUP(B789,[2]Sheet4!$F$2:$J$364,5,FALSE),\"\")","v":""}]
[null,null,{"$f":"IFERROR(VLOOKUP(B790,[2]Sheet4!$F$2:$J$364,2,FALSE),\"\")","v":""},{"$f":"IFERROR(VLOOKUP(B790,[2]Sheet4!$F$2:$J$364,3,FALSE),\"\")","v":""},{"$f":"IFERROR(VLOOKUP(B790,[2]Sheet4!$F$2:$J$364,4,FALSE),\"\")","v":""},{"$f":"IFERROR(VLOOKUP(B790,[2]Sheet4!$F$2:$J$364,5,FALSE),\"\")","v":""}]
[null,null,{"$f":"IFERROR(VLOOKUP(B791,[2]Sheet4!$F$2:$J$364,2,FALSE),\"\")","v":""},{"$f":"IFERROR(VLOOKUP(B791,[2]Sheet4!$F$2:$J$364,3,FALSE),\"\")","v":""},{"$f":"IFERROR(VLOOKUP(B791,[2]Sheet4!$F$2:$J$364,4,FALSE),\"\")","v":""},{"$f":"IFERROR(VLOOKUP(B791,[2]Sheet4!$F$2:$J$364,5,FALSE),\"\")","v":""}]
[null,null,{"$f":"IFERROR(VLOOKUP(B792,[2]Sheet4!$F$2:$J$364,2,FALSE),\"\")","v":""},{"$f":"IFERROR(VLOOKUP(B792,[2]Sheet4!$F$2:$J$364,3,FALSE),\"\")","v":""},{"$f":"IFERROR(VLOOKUP(B792,[2]Sheet4!$F$2:$J$364,4,FALSE),\"\")","v":""},{"$f":"IFERROR(VLOOKUP(B792,[2]Sheet4!$F$2:$J$364,5,FALSE),\"\")","v":""}]
[null,null,{"$f":"IFERROR(VLOOKUP(B793,[2]Sheet4!$F$2:$J$364,2,FALSE),\"\")","v":""},{"$f":"IFERROR(VLOOKUP(B793,[2]Sheet4!$F$2:$J$364,3,FALSE),\"\")","v":""},{"$f":"IFERROR(VLOOKUP(B793,[2]Sheet4!$F$2:$J$364,4,FALSE),\"\")","v":""},{"$f":"IFERROR(VLOOKUP(B793,[2]Sheet4!$F$2:$J$364,5,FALSE),\"\")","v":""}]
[null,null,{"$f":"IFERROR(VLOOKUP(B794,[2]Sheet4!$F$2:$J$364,2,FALSE),\"\")","v":""},{"$f":"IFERROR(VLOOKUP(B794,[2]Sheet4!$F$2:$J$364,3,FALSE),\"\")","v":""},{"$f":"IFERROR(VLOOKUP(B794,[2]Sheet4!$F$2:$J$364,4,FALSE),\"\")","v":""},{"$f":"IFERROR(VLOOKUP(B794,[2]Sheet4!$F$2:$J$364,5,FALSE),\"\")","v":""}]
[null,null,{"$f":"IFERROR(VLOOKUP(B795,[2]Sheet4!$F$2:$J$364,2,FALSE),\"\")","v":""},{"$f":"IFERROR(VLOOKUP(B795,[2]Sheet4!$F$2:$J$364,3,FALSE),\"\")","v":""},{"$f":"IFERROR(VLOOKUP(B795,[2]Sheet4!$F$2:$J$364,4,FALSE),\"\")","v":""},{"$f":"IFERROR(VLOOKUP(B795,[2]Sheet4!$F$2:$J$364,5,FALSE),\"\")","v":""}]
[null,null,{"$f":"IFERROR(VLOOKUP(B796,[2]Sheet4!$F$2:$J$364,2,FALSE),\"\")","v":""},{"$f":"IFERROR(VLOOKUP(B796,[2]Sheet4!$F$2:$J$364,3,FALSE),\"\")","v":""},{"$f":"IFERROR(VLOOKUP(B796,[2]Sheet4!$F$2:$J$364,4,FALSE),\"\")","v":""},{"$f":"IFERROR(VLOOKUP(B796,[2]Sheet4!$F$2:$J$364,5,FALSE),\"\")","v":""}]
[null,null,{"$f":"IFERROR(VLOOKUP(B797,[2]Sheet4!$F$2:$J$364,2,FALSE),\"\")","v":""},{"$f":"IFERROR(VLOOKUP(B797,[2]Sheet4!$F$2:$J$364,3,FALSE),\"\")","v":""},{"$f":"IFERROR(VLOOKUP(B797,[2]Sheet4!$F$2:$J$364,4,FALSE),\"\")","v":""},{"$f":"IFERROR(VLOOKUP(B797,[2]Sheet4!$F$2:$J$364,5,FALSE),\"\")","v":""}]
[null,null,{"$f":"IFERROR(VLOOKUP(B798,[2]Sheet4!$F$2:$J$364,2,FALSE),\"\")","v":""},{"$f":"IFERROR(VLOOKUP(B798,[2]Sheet4!$F$2:$J$364,3,FALSE),\"\")","v":""},{"$f":"IFERROR(VLOOKUP(B798,[2]Sheet4!$F$2:$J$364,4,FALSE),\"\")","v":""},{"$f":"IFERROR(VLOOKUP(B798,[2]Sheet4!$F$2:$J$364,5,FALSE),\"\")","v":""}]
[null,null,{"$f":"IFERROR(VLOOKUP(B799,[2]Sheet4!$F$2:$J$364,2,FALSE),\"\")","v":""},{"$f":"IFERROR(VLOOKUP(B799,[2]Sheet4!$F$2:$J$364,3,FALSE),\"\")","v":""},{"$f":"IFERROR(VLOOKUP(B799,[2]Sheet4!$F$2:$J$364,4,FALSE),\"\")","v":""},{"$f":"IFERROR(VLOOKUP(B799,[2]Sheet4!$F$2:$J$364,5,FALSE),\"\")","v":""}]
[null,null,{"$f":"IFERROR(VLOOKUP(B800,[2]Sheet4!$F$2:$J$364,2,FALSE),\"\")","v":""},{"$f":"IFERROR(VLOOKUP(B800,[2]Sheet4!$F$2:$J$364,3,FALSE),\"\")","v":""},{"$f":"IFERROR(VLOOKUP(B800,[2]Sheet4!$F$2:$J$364,4,FALSE),\"\")","v":""},{"$f":"IFERROR(VLOOKUP(B800,[2]Sheet4!$F$2:$J$364,5,FALSE),\"\")","v":""}]
[null,null,{"$f":"IFERROR(VLOOKUP(B801,[2]Sheet4!$F$2:$J$364,2,FALSE),\"\")","v":""},{"$f":"IFERROR(VLOOKUP(B801,[2]Sheet4!$F$2:$J$364,3,FALSE),\"\")","v":""},{"$f":"IFERROR(VLOOKUP(B801,[2]Sheet4!$F$2:$J$364,4,FALSE),\"\")","v":""},{"$f":"IFERROR(VLOOKUP(B801,[2]Sheet4!$F$2:$J$364,5,FALSE),\"\")","v":""}]
[null,null,{"$f":"IFERROR(VLOOKUP(B802,[2]Sheet4!$F$2:$J$364,2,FALSE),\"\")","v":""},{"$f":"IFERROR(VLOOKUP(B802,[2]Sheet4!$F$2:$J$364,3,FALSE),\"\")","v":""},{"$f":"IFERROR(VLOOKUP(B802,[2]Sheet4!$F$2:$J$364,4,FALSE),\"\")","v":""},{"$f":"IFERROR(VLOOKUP(B802,[2]Sheet4!$F$2:$J$364,5,FALSE),\"\")","v":""}]
[null,null,{"$f":"IFERROR(VLOOKUP(B803,[2]Sheet4!$F$2:$J$364,2,FALSE),\"\")","v":""},{"$f":"IFERROR(VLOOKUP(B803,[2]Sheet4!$F$2:$J$364,3,FALSE),\"\")","v":""},{"$f":"IFERROR(VLOOKUP(B803,[2]Sheet4!$F$2:$J$364,4,FALSE),\"\")","v":""},{"$f":"IFERROR(VLOOKUP(B803,[2]Sheet4!$F$2:$J$364,5,FALSE),\"\")","v":""}]
[null,null,{"$f":"IFERROR(VLOOKUP(B804,[2]Sheet4!$F$2:$J$364,2,FALSE),\"\")","v":""},{"$f":"IFERROR(VLOOKUP(B804,[2]Sheet4!$F$2:$J$364,3,FALSE),\"\")","v":""},{"$f":"IFERROR(VLOOKUP(B804,[2]Sheet4!$F$2:$J$364,4,FALSE),\"\")","v":""},{"$f":"IFERROR(VLOOKUP(B804,[2]Sheet4!$F$2:$J$364,5,FALSE),\"\")","v":""}]
[null,null,{"$f":"IFERROR(VLOOKUP(B805,[2]Sheet4!$F$2:$J$364,2,FALSE),\"\")","v":""},{"$f":"IFERROR(VLOOKUP(B805,[2]Sheet4!$F$2:$J$364,3,FALSE),\"\")","v":""},{"$f":"IFERROR(VLOOKUP(B805,[2]Sheet4!$F$2:$J$364,4,FALSE),\"\")","v":""},{"$f":"IFERROR(VLOOKUP(B805,[2]Sheet4!$F$2:$J$364,5,FALSE),\"\")","v":""}]
[null,null,{"$f":"IFERROR(VLOOKUP(B806,[2]Sheet4!$F$2:$J$364,2,FALSE),\"\")","v":""},{"$f":"IFERROR(VLOOKUP(B806,[2]Sheet4!$F$2:$J$364,3,FALSE),\"\")","v":""},{"$f":"IFERROR(VLOOKUP(B806,[2]Sheet4!$F$2:$J$364,4,FALSE),\"\")","v":""},{"$f":"IFERROR(VLOOKUP(B806,[2]Sheet4!$F$2:$J$364,5,FALSE),\"\")","v":""}]
[null,null,{"$f":"IFERROR(VLOOKUP(B807,[2]Sheet4!$F$2:$J$364,2,FALSE),\"\")","v":""},{"$f":"IFERROR(VLOOKUP(B807,[2]Sheet4!$F$2:$J$364,3,FALSE),\"\")","v":""},{"$f":"IFERROR(VLOOKUP(B807,[2]Sheet4!$F$2:$J$364,4,FALSE),\"\")","v":""},{"$f":"IFERROR(VLOOKUP(B807,[2]Sheet4!$F$2:$J$364,5,FALSE),\"\")","v":""}]
[null,null,{"$f":"IFERROR(VLOOKUP(B808,[2]Sheet4!$F$2:$J$364,2,FALSE),\"\")","v":""},{"$f":"IFERROR(VLOOKUP(B808,[2]Sheet4!$F$2:$J$364,3,FALSE),\"\")","v":""},{"$f":"IFERROR(VLOOKUP(B808,[2]Sheet4!$F$2:$J$364,4,FALSE),\"\")","v":""},{"$f":"IFERROR(VLOOKUP(B808,[2]Sheet4!$F$2:$J$364,5,FALSE),\"\")","v":""}]
[null,null,{"$f":"IFERROR(VLOOKUP(B809,[2]Sheet4!$F$2:$J$364,2,FALSE),\"\")","v":""},{"$f":"IFERROR(VLOOKUP(B809,[2]Sheet4!$F$2:$J$364,3,FALSE),\"\")","v":""},{"$f":"IFERROR(VLOOKUP(B809,[2]Sheet4!$F$2:$J$364,4,FALSE),\"\")","v":""},{"$f":"IFERROR(VLOOKUP(B809,[2]Sheet4!$F$2:$J$364,5,FALSE),\"\")","v":""}]
[null,null,{"$f":"IFERROR(VLOOKUP(B810,[2]Sheet4!$F$2:$J$364,2,FALSE),\"\")","v":""},{"$f":"IFERROR(VLOOKUP(B810,[2]Sheet4!$F$2:$J$364,3,FALSE),\"\")","v":""},{"$f":"IFERROR(VLOOKUP(B810,[2]Sheet4!$F$2:$J$364,4,FALSE),\"\")","v":""},{"$f":"IFERROR(VLOOKUP(B810,[2]Sheet4!$F$2:$J$364,5,FALSE),\"\")","v":""}]
[null,null,{"$f":"IFERROR(VLOOKUP(B811,[2]Sheet4!$F$2:$J$364,2,FALSE),\"\")","v":""},{"$f":"IFERROR(VLOOKUP(B811,[2]Sheet4!$F$2:$J$364,3,FALSE),\"\")","v":""},{"$f":"IFERROR(VLOOKUP(B811,[2]Sheet4!$F$2:$J$364,4,FALSE),\"\")","v":""},{"$f":"IFERROR(VLOOKUP(B811,[2]Sheet4!$F$2:$J$364,5,FALSE),\"\")","v":""}]
[null,null,{"$f":"IFERROR(VLOOKUP(B812,[2]Sheet4!$F$2:$J$364,2,FALSE),\"\")","v":""},{"$f":"IFERROR(VLOOKUP(B812,[2]Sheet4!$F$2:$J$364,3,FALSE),\"\")","v":""},{"$f":"IFERROR(VLOOKUP(B812,[2]Sheet4!$F$2:$J$364,4,FALSE),\"\")","v":""},{"$f":"IFERROR(VLOOKUP(B812,[2]Sheet4!$F$2:$J$364,5,FALSE),\"\")","v":""}]
[null,null,{"$f":"IFERROR(VLOOKUP(B813,[2]Sheet4!$F$2:$J$364,2,FALSE),\"\")","v":""},{"$f":"IFERROR(VLOOKUP(B813,[2]Sheet4!$F$2:$J$364,3,FALSE),\"\")","v":""},{"$f":"IFERROR(VLOOKUP(B813,[2]Sheet4!$F$2:$J$364,4,FALSE),\"\")","v":""},{"$f":"IFERROR(VLOOKUP(B813,[2]Sheet4!$F$2:$J$364,5,FALSE),\"\")","v":""}]
[null,null,{"$f":"IFERROR(VLOOKUP(B814,[2]Sheet4!$F$2:$J$364,2,FALSE),\"\")","v":""},{"$f":"IFERROR(VLOOKUP(B814,[2]Sheet4!$F$2:$J$364,3,FALSE),\"\")","v":""},{"$f":"IFERROR(VLOOKUP(B814,[2]Sheet4!$F$2:$J$364,4,FALSE),\"\")","v":""},{"$f":"IFERROR(VLOOKUP(B814,[2]Sheet4!$F$2:$J$364,5,FALSE),\"\")","v":""}]
[null,null,{"$f":"IFERROR(VLOOKUP(B815,[2]Sheet4!$F$2:$J$364,2,FALSE),\"\")","v":""},{"$f":"IFERROR(VLOOKUP(B815,[2]Sheet4!$F$2:$J$364,3,FALSE),\"\")","v":""},{"$f":"IFERROR(VLOOKUP(B815,[2]Sheet4!$F$2:$J$364,4,FALSE),\"\")","v":""},{"$f":"IFERROR(VLOOKUP(B815,[2]Sheet4!$F$2:$J$364,5,FALSE),\"\")","v":""}]
[null,null,{"$f":"IFERROR(VLOOKUP(B816,[2]Sheet4!$F$2:$J$364,2,FALSE),\"\")","v":""},{"$f":"IFERROR(VLOOKUP(B816,[2]Sheet4!$F$2:$J$364,3,FALSE),\"\")","v":""},{"$f":"IFERROR(VLOOKUP(B816,[2]Sheet4!$F$2:$J$364,4,FALSE),\"\")","v":""},{"$f":"IFERROR(VLOOKUP(B816,[2]Sheet4!$F$2:$J$364,5,FALSE),\"\")","v":""}]
[null,null,{"$f":"IFERROR(VLOOKUP(B817,[2]Sheet4!$F$2:$J$364,2,FALSE),\"\")","v":""},{"$f":"IFERROR(VLOOKUP(B817,[2]Sheet4!$F$2:$J$364,3,FALSE),\"\")","v":""},{"$f":"IFERROR(VLOOKUP(B817,[2]Sheet4!$F$2:$J$364,4,FALSE),\"\")","v":""},{"$f":"IFERROR(VLOOKUP(B817,[2]Sheet4!$F$2:$J$364,5,FALSE),\"\")","v":""}]
[null,null,{"$f":"IFERROR(VLOOKUP(B818,[2]Sheet4!$F$2:$J$364,2,FALSE),\"\")","v":""},{"$f":"IFERROR(VLOOKUP(B818,[2]Sheet4!$F$2:$J$364,3,FALSE),\"\")","v":""},{"$f":"IFERROR(VLOOKUP(B818,[2]Sheet4!$F$2:$J$364,4,FALSE),\"\")","v":""},{"$f":"IFERROR(VLOOKUP(B818,[2]Sheet4!$F$2:$J$364,5,FALSE),\"\")","v":""}]
[null,null,{"$f":"IFERROR(VLOOKUP(B819,[2]Sheet4!$F$2:$J$364,2,FALSE),\"\")","v":""},{"$f":"IFERROR(VLOOKUP(B819,[2]Sheet4!$F$2:$J$364,3,FALSE),\"\")","v":""},{"$f":"IFERROR(VLOOKUP(B819,[2]Sheet4!$F$2:$J$364,4,FALSE),\"\")","v":""},{"$f":"IFERROR(VLOOKUP(B819,[2]Sheet4!$F$2:$J$364,5,FALSE),\"\")","v":""}]
[null,null,{"$f":"IFERROR(VLOOKUP(B820,[2]Sheet4!$F$2:$J$364,2,FALSE),\"\")","v":""},{"$f":"IFERROR(VLOOKUP(B820,[2]Sheet4!$F$2:$J$364,3,FALSE),\"\")","v":""},{"$f":"IFERROR(VLOOKUP(B820,[2]Sheet4!$F$2:$J$364,4,FALSE),\"\")","v":""},{"$f":"IFERROR(VLOOKUP(B820,[2]Sheet4!$F$2:$J$364,5,FALSE),\"\")","v":""}]
[null,null,{"$f":"IFERROR(VLOOKUP(B821,[2]Sheet4!$F$2:$J$364,2,FALSE),\"\")","v":""},{"$f":"IFERROR(VLOOKUP(B821,[2]Sheet4!$F$2:$J$364,3,FALSE),\"\")","v":""},{"$f":"IFERROR(VLOOKUP(B821,[2]Sheet4!$F$2:$J$364,4,FALSE),\"\")","v":""},{"$f":"IFERROR(VLOOKUP(B821,[2]Sheet4!$F$2:$J$364,5,FALSE),\"\")","v":""}]
[null,null,{"$f":"IFERROR(VLOOKUP(B822,[2]Sheet4!$F$2:$J$364,2,FALSE),\"\")","v":""},{"$f":"IFERROR(VLOOKUP(B822,[2]Sheet4!$F$2:$J$364,3,FALSE),\"\")","v":""},{"$f":"IFERROR(VLOOKUP(B822,[2]Sheet4!$F$2:$J$364,4,FALSE),\"\")","v":""},{"$f":"IFERROR(VLOOKUP(B822,[2]Sheet4!$F$2:$J$364,5,FALSE),\"\")","v":""}]
[null,null,{"$f":"IFERROR(VLOOKUP(B823,[2]Sheet4!$F$2:$J$364,2,FALSE),\"\")","v":""},{"$f":"IFERROR(VLOOKUP(B823,[2]Sheet4!$F$2:$J$364,3,FALSE),\"\")","v":""},{"$f":"IFERROR(VLOOKUP(B823,[2]Sheet4!$F$2:$J$364,4,FALSE),\"\")","v":""},{"$f":"IFERROR(VLOOKUP(B823,[2]Sheet4!$F$2:$J$364,5,FALSE),\"\")","v":""}]
[null,null,{"$f":"IFERROR(VLOOKUP(B824,[2]Sheet4!$F$2:$J$364,2,FALSE),\"\")","v":""},{"$f":"IFERROR(VLOOKUP(B824,[2]Sheet4!$F$2:$J$364,3,FALSE),\"\")","v":""},{"$f":"IFERROR(VLOOKUP(B824,[2]Sheet4!$F$2:$J$364,4,FALSE),\"\")","v":""},{"$f":"IFERROR(VLOOKUP(B824,[2]Sheet4!$F$2:$J$364,5,FALSE),\"\")","v":""}]
[null,null,{"$f":"IFERROR(VLOOKUP(B825,[2]Sheet4!$F$2:$J$364,2,FALSE),\"\")","v":""},{"$f":"IFERROR(VLOOKUP(B825,[2]Sheet4!$F$2:$J$364,3,FALSE),\"\")","v":""},{"$f":"IFERROR(VLOOKUP(B825,[2]Sheet4!$F$2:$J$364,4,FALSE),\"\")","v":""},{"$f":"IFERROR(VLOOKUP(B825,[2]Sheet4!$F$2:$J$364,5,FALSE),\"\")","v":""}]
[null,null,{"$f":"IFERROR(VLOOKUP(B826,[2]Sheet4!$F$2:$J$364,2,FALSE),\"\")","v":""},{"$f":"IFERROR(VLOOKUP(B826,[2]Sheet4!$F$2:$J$364,3,FALSE),\"\")","v":""},{"$f":"IFERROR(VLOOKUP(B826,[2]Sheet4!$F$2:$J$364,4,FALSE),\"\")","v":""},{"$f":"IFERROR(VLOOKUP(B826,[2]Sheet4!$F$2:$J$364,5,FALSE),\"\")","v":""}]
[null,null,{"$f":"IFERROR(VLOOKUP(B827,[2]Sheet4!$F$2:$J$364,2,FALSE),\"\")","v":""},{"$f":"IFERROR(VLOOKUP(B827,[2]Sheet4!$F$2:$J$364,3,FALSE),\"\")","v":""},{"$f":"IFERROR(VLOOKUP(B827,[2]Sheet4!$F$2:$J$364,4,FALSE),\"\")","v":""},{"$f":"IFERROR(VLOOKUP(B827,[2]Sheet4!$F$2:$J$364,5,FALSE),\"\")","v":""}]
[null,null,{"$f":"IFERROR(VLOOKUP(B828,[2]Sheet4!$F$2:$J$364,2,FALSE),\"\")","v":""},{"$f":"IFERROR(VLOOKUP(B828,[2]Sheet4!$F$2:$J$364,3,FALSE),\"\")","v":""},{"$f":"IFERROR(VLOOKUP(B828,[2]Sheet4!$F$2:$J$364,4,FALSE),\"\")","v":""},{"$f":"IFERROR(VLOOKUP(B828,[2]Sheet4!$F$2:$J$364,5,FALSE),\"\")","v":""}]
[null,null,{"$f":"IFERROR(VLOOKUP(B829,[2]Sheet4!$F$2:$J$364,2,FALSE),\"\")","v":""},{"$f":"IFERROR(VLOOKUP(B829,[2]Sheet4!$F$2:$J$364,3,FALSE),\"\")","v":""},{"$f":"IFERROR(VLOOKUP(B829,[2]Sheet4!$F$2:$J$364,4,FALSE),\"\")","v":""},{"$f":"IFERROR(VLOOKUP(B829,[2]Sheet4!$F$2:$J$364,5,FALSE),\"\")","v":""}]
[null,null,{"$f":"IFERROR(VLOOKUP(B830,[2]Sheet4!$F$2:$J$364,2,FALSE),\"\")","v":""},{"$f":"IFERROR(VLOOKUP(B830,[2]Sheet4!$F$2:$J$364,3,FALSE),\"\")","v":""},{"$f":"IFERROR(VLOOKUP(B830,[2]Sheet4!$F$2:$J$364,4,FALSE),\"\")","v":""},{"$f":"IFERROR(VLOOKUP(B830,[2]Sheet4!$F$2:$J$364,5,FALSE),\"\")","v":""}]
[null,null,{"$f":"IFERROR(VLOOKUP(B831,[2]Sheet4!$F$2:$J$364,2,FALSE),\"\")","v":""},{"$f":"IFERROR(VLOOKUP(B831,[2]Sheet4!$F$2:$J$364,3,FALSE),\"\")","v":""},{"$f":"IFERROR(VLOOKUP(B831,[2]Sheet4!$F$2:$J$364,4,FALSE),\"\")","v":""},{"$f":"IFERROR(VLOOKUP(B831,[2]Sheet4!$F$2:$J$364,5,FALSE),\"\")","v":""}]
[null,null,{"$f":"IFERROR(VLOOKUP(B832,[2]Sheet4!$F$2:$J$364,2,FALSE),\"\")","v":""},{"$f":"IFERROR(VLOOKUP(B832,[2]Sheet4!$F$2:$J$364,3,FALSE),\"\")","v":""},{"$f":"IFERROR(VLOOKUP(B832,[2]Sheet4!$F$2:$J$364,4,FALSE),\"\")","v":""},{"$f":"IFERROR(VLOOKUP(B832,[2]Sheet4!$F$2:$J$364,5,FALSE),\"\")","v":""}]
[null,null,{"$f":"IFERROR(VLOOKUP(B833,[2]Sheet4!$F$2:$J$364,2,FALSE),\"\")","v":""},{"$f":"IFERROR(VLOOKUP(B833,[2]Sheet4!$F$2:$J$364,3,FALSE),\"\")","v":""},{"$f":"IFERROR(VLOOKUP(B833,[2]Sheet4!$F$2:$J$364,4,FALSE),\"\")","v":""},{"$f":"IFERROR(VLOOKUP(B833,[2]Sheet4!$F$2:$J$364,5,FALSE),\"\")","v":""}]
[null,null,{"$f":"IFERROR(VLOOKUP(B834,[2]Sheet4!$F$2:$J$364,2,FALSE),\"\")","v":""},{"$f":"IFERROR(VLOOKUP(B834,[2]Sheet4!$F$2:$J$364,3,FALSE),\"\")","v":""},{"$f":"IFERROR(VLOOKUP(B834,[2]Sheet4!$F$2:$J$364,4,FALSE),\"\")","v":""},{"$f":"IFERROR(VLOOKUP(B834,[2]Sheet4!$F$2:$J$364,5,FALSE),\"\")","v":""}]
[null,null,{"$f":"IFERROR(VLOOKUP(B835,[2]Sheet4!$F$2:$J$364,2,FALSE),\"\")","v":""},{"$f":"IFERROR(VLOOKUP(B835,[2]Sheet4!$F$2:$J$364,3,FALSE),\"\")","v":""},{"$f":"IFERROR(VLOOKUP(B835,[2]Sheet4!$F$2:$J$364,4,FALSE),\"\")","v":""},{"$f":"IFERROR(VLOOKUP(B835,[2]Sheet4!$F$2:$J$364,5,FALSE),\"\")","v":""}]
[null,null,{"$f":"IFERROR(VLOOKUP(B836,[2]Sheet4!$F$2:$J$364,2,FALSE),\"\")","v":""},{"$f":"IFERROR(VLOOKUP(B836,[2]Sheet4!$F$2:$J$364,3,FALSE),\"\")","v":""},{"$f":"IFERROR(VLOOKUP(B836,[2]Sheet4!$F$2:$J$364,4,FALSE),\"\")","v":""},{"$f":"IFERROR(VLOOKUP(B836,[2]Sheet4!$F$2:$J$364,5,FALSE),\"\")","v":""}]
[null,null,{"$f":"IFERROR(VLOOKUP(B837,[2]Sheet4!$F$2:$J$364,2,FALSE),\"\")","v":""},{"$f":"IFERROR(VLOOKUP(B837,[2]Sheet4!$F$2:$J$364,3,FALSE),\"\")","v":""},{"$f":"IFERROR(VLOOKUP(B837,[2]Sheet4!$F$2:$J$364,4,FALSE),\"\")","v":""},{"$f":"IFERROR(VLOOKUP(B837,[2]Sheet4!$F$2:$J$364,5,FALSE),\"\")","v":""}]
[null,null,{"$f":"IFERROR(VLOOKUP(B838,[2]Sheet4!$F$2:$J$364,2,FALSE),\"\")","v":""},{"$f":"IFERROR(VLOOKUP(B838,[2]Sheet4!$F$2:$J$364,3,FALSE),\"\")","v":""},{"$f":"IFERROR(VLOOKUP(B838,[2]Sheet4!$F$2:$J$364,4,FALSE),\"\")","v":""},{"$f":"IFERROR(VLOOKUP(B838,[2]Sheet4!$F$2:$J$364,5,FALSE),\"\")","v":""}]
[null,null,{"$f":"IFERROR(VLOOKUP(B839,[2]Sheet4!$F$2:$J$364,2,FALSE),\"\")","v":""},{"$f":"IFERROR(VLOOKUP(B839,[2]Sheet4!$F$2:$J$364,3,FALSE),\"\")","v":""},{"$f":"IFERROR(VLOOKUP(B839,[2]Sheet4!$F$2:$J$364,4,FALSE),\"\")","v":""},{"$f":"IFERROR(VLOOKUP(B839,[2]Sheet4!$F$2:$J$364,5,FALSE),\"\")","v":""}]
[null,null,{"$f":"IFERROR(VLOOKUP(B840,[2]Sheet4!$F$2:$J$364,2,FALSE),\"\")","v":""},{"$f":"IFERROR(VLOOKUP(B840,[2]Sheet4!$F$2:$J$364,3,FALSE),\"\")","v":""},{"$f":"IFERROR(VLOOKUP(B840,[2]Sheet4!$F$2:$J$364,4,FALSE),\"\")","v":""},{"$f":"IFERROR(VLOOKUP(B840,[2]Sheet4!$F$2:$J$364,5,FALSE),\"\")","v":""}]
[null,null,{"$f":"IFERROR(VLOOKUP(B841,[2]Sheet4!$F$2:$J$364,2,FALSE),\"\")","v":""},{"$f":"IFERROR(VLOOKUP(B841,[2]Sheet4!$F$2:$J$364,3,FALSE),\"\")","v":""},{"$f":"IFERROR(VLOOKUP(B841,[2]Sheet4!$F$2:$J$364,4,FALSE),\"\")","v":""},{"$f":"IFERROR(VLOOKUP(B841,[2]Sheet4!$F$2:$J$364,5,FALSE),\"\")","v":""}]
[null,null,{"$f":"IFERROR(VLOOKUP(B842,[2]Sheet4!$F$2:$J$364,2,FALSE),\"\")","v":""},{"$f":"IFERROR(VLOOKUP(B842,[2]Sheet4!$F$2:$J$364,3,FALSE),\"\")","v":""},{"$f":"IFERROR(VLOOKUP(B842,[2]Sheet4!$F$2:$J$364,4,FALSE),\"\")","v":""},{"$f":"IFERROR(VLOOKUP(B842,[2]Sheet4!$F$2:$J$364,5,FALSE),\"\")","v":""}]
[null,null,{"$f":"IFERROR(VLOOKUP(B843,[2]Sheet4!$F$2:$J$364,2,FALSE),\"\")","v":""},{"$f":"IFERROR(VLOOKUP(B843,[2]Sheet4!$F$2:$J$364,3,FALSE),\"\")","v":""},{"$f":"IFERROR(VLOOKUP(B843,[2]Sheet4!$F$2:$J$364,4,FALSE),\"\")","v":""},{"$f":"IFERROR(VLOOKUP(B843,[2]Sheet4!$F$2:$J$364,5,FALSE),\"\")","v":""}]
[null,null,{"$f":"IFERROR(VLOOKUP(B844,[2]Sheet4!$F$2:$J$364,2,FALSE),\"\")","v":""},{"$f":"IFERROR(VLOOKUP(B844,[2]Sheet4!$F$2:$J$364,3,FALSE),\"\")","v":""},{"$f":"IFERROR(VLOOKUP(B844,[2]Sheet4!$F$2:$J$364,4,FALSE),\"\")","v":""},{"$f":"IFERROR(VLOOKUP(B844,[2]Sheet4!$F$2:$J$364,5,FALSE),\"\")","v":""}]
[null,null,{"$f":"IFERROR(VLOOKUP(B845,[2]Sheet4!$F$2:$J$364,2,FALSE),\"\")","v":""},{"$f":"IFERROR(VLOOKUP(B845,[2]Sheet4!$F$2:$J$364,3,FALSE),\"\")","v":""},{"$f":"IFERROR(VLOOKUP(B845,[2]Sheet4!$F$2:$J$364,4,FALSE),\"\")","v":""},{"$f":"IFERROR(VLOOKUP(B845,[2]Sheet4!$F$2:$J$364,5,FALSE),\"\")","v":""}]
[null,null,{"$f":"IFERROR(VLOOKUP(B846,[2]Sheet4!$F$2:$J$364,2,FALSE),\"\")","v":""},{"$f":"IFERROR(VLOOKUP(B846,[2]Sheet4!$F$2:$J$364,3,FALSE),\"\")","v":""},{"$f":"IFERROR(VLOOKUP(B846,[2]Sheet4!$F$2:$J$364,4,FALSE),\"\")","v":""},{"$f":"IFERROR(VLOOKUP(B846,[2]Sheet4!$F$2:$J$364,5,FALSE),\"\")","v":""}]
[null,null,{"$f":"IFERROR(VLOOKUP(B847,[2]Sheet4!$F$2:$J$364,2,FALSE),\"\")","v":""},{"$f":"IFERROR(VLOOKUP(B847,[2]Sheet4!$F$2:$J$364,3,FALSE),\"\")","v":""},{"$f":"IFERROR(VLOOKUP(B847,[2]Sheet4!$F$2:$J$364,4,FALSE),\"\")","v":""},{"$f":"IFERROR(VLOOKUP(B847,[2]Sheet4!$F$2:$J$364,5,FALSE),\"\")","v":""}]
[null,null,{"$f":"IFERROR(VLOOKUP(B848,[2]Sheet4!$F$2:$J$364,2,FALSE),\"\")","v":""},{"$f":"IFERROR(VLOOKUP(B848,[2]Sheet4!$F$2:$J$364,3,FALSE),\"\")","v":""},{"$f":"IFERROR(VLOOKUP(B848,[2]Sheet4!$F$2:$J$364,4,FALSE),\"\")","v":""},{"$f":"IFERROR(VLOOKUP(B848,[2]Sheet4!$F$2:$J$364,5,FALSE),\"\")","v":""}]
[null,null,{"$f":"IFERROR(VLOOKUP(B849,[2]Sheet4!$F$2:$J$364,2,FALSE),\"\")","v":""},{"$f":"IFERROR(VLOOKUP(B849,[2]Sheet4!$F$2:$J$364,3,FALSE),\"\")","v":""},{"$f":"IFERROR(VLOOKUP(B849,[2]Sheet4!$F$2:$J$364,4,FALSE),\"\")","v":""},{"$f":"IFERROR(VLOOKUP(B849,[2]Sheet4!$F$2:$J$364,5,FALSE),\"\")","v":""}]
[null,null,{"$f":"IFERROR(VLOOKUP(B850,[2]Sheet4!$F$2:$J$364,2,FALSE),\"\")","v":""},{"$f":"IFERROR(VLOOKUP(B850,[2]Sheet4!$F$2:$J$364,3,FALSE),\"\")","v":""},{"$f":"IFERROR(VLOOKUP(B850,[2]Sheet4!$F$2:$J$364,4,FALSE),\"\")","v":""},{"$f":"IFERROR(VLOOKUP(B850,[2]Sheet4!$F$2:$J$364,5,FALSE),\"\")","v":""}]
[null,null,{"$f":"IFERROR(VLOOKUP(B851,[2]Sheet4!$F$2:$J$364,2,FALSE),\"\")","v":""},{"$f":"IFERROR(VLOOKUP(B851,[2]Sheet4!$F$2:$J$364,3,FALSE),\"\")","v":""},{"$f":"IFERROR(VLOOKUP(B851,[2]Sheet4!$F$2:$J$364,4,FALSE),\"\")","v":""},{"$f":"IFERROR(VLOOKUP(B851,[2]Sheet4!$F$2:$J$364,5,FALSE),\"\")","v":""}]
[null,null,{"$f":"IFERROR(VLOOKUP(B852,[2]Sheet4!$F$2:$J$364,2,FALSE),\"\")","v":""},{"$f":"IFERROR(VLOOKUP(B852,[2]Sheet4!$F$2:$J$364,3,FALSE),\"\")","v":""},{"$f":"IFERROR(VLOOKUP(B852,[2]Sheet4!$F$2:$J$364,4,FALSE),\"\")","v":""},{"$f":"IFERROR(VLOOKUP(B852,[2]Sheet4!$F$2:$J$364,5,FALSE),\"\")","v":""}]
[null,null,{"$f":"IFERROR(VLOOKUP(B853,[2]Sheet4!$F$2:$J$364,2,FALSE),\"\")","v":""},{"$f":"IFERROR(VLOOKUP(B853,[2]Sheet4!$F$2:$J$364,3,FALSE),\"\")","v":""},{"$f":"IFERROR(VLOOKUP(B853,[2]Sheet4!$F$2:$J$364,4,FALSE),\"\")","v":""},{"$f":"IFERROR(VLOOKUP(B853,[2]Sheet4!$F$2:$J$364,5,FALSE),\"\")","v":""}]
[null,null,{"$f":"IFERROR(VLOOKUP(B854,[2]Sheet4!$F$2:$J$364,2,FALSE),\"\")","v":""},{"$f":"IFERROR(VLOOKUP(B854,[2]Sheet4!$F$2:$J$364,3,FALSE),\"\")","v":""},{"$f":"IFERROR(VLOOKUP(B854,[2]Sheet4!$F$2:$J$364,4,FALSE),\"\")","v":""},{"$f":"IFERROR(VLOOKUP(B854,[2]Sheet4!$F$2:$J$364,5,FALSE),\"\")","v":""}]
[null,null,{"$f":"IFERROR(VLOOKUP(B855,[2]Sheet4!$F$2:$J$364,2,FALSE),\"\")","v":""},{"$f":"IFERROR(VLOOKUP(B855,[2]Sheet4!$F$2:$J$364,3,FALSE),\"\")","v":""},{"$f":"IFERROR(VLOOKUP(B855,[2]Sheet4!$F$2:$J$364,4,FALSE),\"\")","v":""},{"$f":"IFERROR(VLOOKUP(B855,[2]Sheet4!$F$2:$J$364,5,FALSE),\"\")","v":""}]
[null,null,{"$f":"IFERROR(VLOOKUP(B856,[2]Sheet4!$F$2:$J$364,2,FALSE),\"\")","v":""},{"$f":"IFERROR(VLOOKUP(B856,[2]Sheet4!$F$2:$J$364,3,FALSE),\"\")","v":""},{"$f":"IFERROR(VLOOKUP(B856,[2]Sheet4!$F$2:$J$364,4,FALSE),\"\")","v":""},{"$f":"IFERROR(VLOOKUP(B856,[2]Sheet4!$F$2:$J$364,5,FALSE),\"\")","v":""}]
[null,null,{"$f":"IFERROR(VLOOKUP(B857,[2]Sheet4!$F$2:$J$364,2,FALSE),\"\")","v":""},{"$f":"IFERROR(VLOOKUP(B857,[2]Sheet4!$F$2:$J$364,3,FALSE),\"\")","v":""},{"$f":"IFERROR(VLOOKUP(B857,[2]Sheet4!$F$2:$J$364,4,FALSE),\"\")","v":""},{"$f":"IFERROR(VLOOKUP(B857,[2]Sheet4!$F$2:$J$364,5,FALSE),\"\")","v":""}]
[null,null,{"$f":"IFERROR(VLOOKUP(B858,[2]Sheet4!$F$2:$J$364,2,FALSE),\"\")","v":""},{"$f":"IFERROR(VLOOKUP(B858,[2]Sheet4!$F$2:$J$364,3,FALSE),\"\")","v":""},{"$f":"IFERROR(VLOOKUP(B858,[2]Sheet4!$F$2:$J$364,4,FALSE),\"\")","v":""},{"$f":"IFERROR(VLOOKUP(B858,[2]Sheet4!$F$2:$J$364,5,FALSE),\"\")","v":""}]
[null,null,{"$f":"IFERROR(VLOOKUP(B859,[2]Sheet4!$F$2:$J$364,2,FALSE),\"\")","v":""},{"$f":"IFERROR(VLOOKUP(B859,[2]Sheet4!$F$2:$J$364,3,FALSE),\"\")","v":""},{"$f":"IFERROR(VLOOKUP(B859,[2]Sheet4!$F$2:$J$364,4,FALSE),\"\")","v":""},{"$f":"IFERROR(VLOOKUP(B859,[2]Sheet4!$F$2:$J$364,5,FALSE),\"\")","v":""}]
[null,null,{"$f":"IFERROR(VLOOKUP(B860,[2]Sheet4!$F$2:$J$364,2,FALSE),\"\")","v":""},{"$f":"IFERROR(VLOOKUP(B860,[2]Sheet4!$F$2:$J$364,3,FALSE),\"\")","v":""},{"$f":"IFERROR(VLOOKUP(B860,[2]Sheet4!$F$2:$J$364,4,FALSE),\"\")","v":""},{"$f":"IFERROR(VLOOKUP(B860,[2]Sheet4!$F$2:$J$364,5,FALSE),\"\")","v":""}]
[null,null,{"$f":"IFERROR(VLOOKUP(B861,[2]Sheet4!$F$2:$J$364,2,FALSE),\"\")","v":""},{"$f":"IFERROR(VLOOKUP(B861,[2]Sheet4!$F$2:$J$364,3,FALSE),\"\")","v":""},{"$f":"IFERROR(VLOOKUP(B861,[2]Sheet4!$F$2:$J$364,4,FALSE),\"\")","v":""},{"$f":"IFERROR(VLOOKUP(B861,[2]Sheet4!$F$2:$J$364,5,FALSE),\"\")","v":""}]
[null,null,{"$f":"IFERROR(VLOOKUP(B862,[2]Sheet4!$F$2:$J$364,2,FALSE),\"\")","v":""},{"$f":"IFERROR(VLOOKUP(B862,[2]Sheet4!$F$2:$J$364,3,FALSE),\"\")","v":""},{"$f":"IFERROR(VLOOKUP(B862,[2]Sheet4!$F$2:$J$364,4,FALSE),\"\")","v":""},{"$f":"IFERROR(VLOOKUP(B862,[2]Sheet4!$F$2:$J$364,5,FALSE),\"\")","v":""}]
[null,null,{"$f":"IFERROR(VLOOKUP(B863,[2]Sheet4!$F$2:$J$364,2,FALSE),\"\")","v":""},{"$f":"IFERROR(VLOOKUP(B863,[2]Sheet4!$F$2:$J$364,3,FALSE),\"\")","v":""},{"$f":"IFERROR(VLOOKUP(B863,[2]Sheet4!$F$2:$J$364,4,FALSE),\"\")","v":""},{"$f":"IFERROR(VLOOKUP(B863,[2]Sheet4!$F$2:$J$364,5,FALSE),\"\")","v":""}]
[null,null,{"$f":"IFERROR(VLOOKUP(B864,[2]Sheet4!$F$2:$J$364,2,FALSE),\"\")","v":""},{"$f":"IFERROR(VLOOKUP(B864,[2]Sheet4!$F$2:$J$364,3,FALSE),\"\")","v":""},{"$f":"IFERROR(VLOOKUP(B864,[2]Sheet4!$F$2:$J$364,4,FALSE),\"\")","v":""},{"$f":"IFERROR(VLOOKUP(B864,[2]Sheet4!$F$2:$J$364,5,FALSE),\"\")","v":""}]
[null,null,{"$f":"IFERROR(VLOOKUP(B865,[2]Sheet4!$F$2:$J$364,2,FALSE),\"\")","v":""},{"$f":"IFERROR(VLOOKUP(B865,[2]Sheet4!$F$2:$J$364,3,FALSE),\"\")","v":""},{"$f":"IFERROR(VLOOKUP(B865,[2]Sheet4!$F$2:$J$364,4,FALSE),\"\")","v":""},{"$f":"IFERROR(VLOOKUP(B865,[2]Sheet4!$F$2:$J$364,5,FALSE),\"\")","v":""}]
[null,null,{"$f":"IFERROR(VLOOKUP(B866,[2]Sheet4!$F$2:$J$364,2,FALSE),\"\")","v":""},{"$f":"IFERROR(VLOOKUP(B866,[2]Sheet4!$F$2:$J$364,3,FALSE),\"\")","v":""},{"$f":"IFERROR(VLOOKUP(B866,[2]Sheet4!$F$2:$J$364,4,FALSE),\"\")","v":""},{"$f":"IFERROR(VLOOKUP(B866,[2]Sheet4!$F$2:$J$364,5,FALSE),\"\")","v":""}]
[null,null,{"$f":"IFERROR(VLOOKUP(B867,[2]Sheet4!$F$2:$J$364,2,FALSE),\"\")","v":""},{"$f":"IFERROR(VLOOKUP(B867,[2]Sheet4!$F$2:$J$364,3,FALSE),\"\")","v":""},{"$f":"IFERROR(VLOOKUP(B867,[2]Sheet4!$F$2:$J$364,4,FALSE),\"\")","v":""},{"$f":"IFERROR(VLOOKUP(B867,[2]Sheet4!$F$2:$J$364,5,FALSE),\"\")","v":""}]
[null,null,{"$f":"IFERROR(VLOOKUP(B868,[2]Sheet4!$F$2:$J$364,2,FALSE),\"\")","v":""},{"$f":"IFERROR(VLOOKUP(B868,[2]Sheet4!$F$2:$J$364,3,FALSE),\"\")","v":""},{"$f":"IFERROR(VLOOKUP(B868,[2]Sheet4!$F$2:$J$364,4,FALSE),\"\")","v":""},{"$f":"IFERROR(VLOOKUP(B868,[2]Sheet4!$F$2:$J$364,5,FALSE),\"\")","v":""}]
[null,null,{"$f":"IFERROR(VLOOKUP(B869,[2]Sheet4!$F$2:$J$364,2,FALSE),\"\")","v":""},{"$f":"IFERROR(VLOOKUP(B869,[2]Sheet4!$F$2:$J$364,3,FALSE),\"\")","v":""},{"$f":"IFERROR(VLOOKUP(B869,[2]Sheet4!$F$2:$J$364,4,FALSE),\"\")","v":""},{"$f":"IFERROR(VLOOKUP(B869,[2]Sheet4!$F$2:$J$364,5,FALSE),\"\")","v":""}]
[null,null,{"$f":"IFERROR(VLOOKUP(B870,[2]Sheet4!$F$2:$J$364,2,FALSE),\"\")","v":""},{"$f":"IFERROR(VLOOKUP(B870,[2]Sheet4!$F$2:$J$364,3,FALSE),\"\")","v":""},{"$f":"IFERROR(VLOOKUP(B870,[2]Sheet4!$F$2:$J$364,4,FALSE),\"\")","v":""},{"$f":"IFERROR(VLOOKUP(B870,[2]Sheet4!$F$2:$J$364,5,FALSE),\"\")","v":""}]
[null,null,{"$f":"IFERROR(VLOOKUP(B871,[2]Sheet4!$F$2:$J$364,2,FALSE),\"\")","v":""},{"$f":"IFERROR(VLOOKUP(B871,[2]Sheet4!$F$2:$J$364,3,FALSE),\"\")","v":""},{"$f":"IFERROR(VLOOKUP(B871,[2]Sheet4!$F$2:$J$364,4,FALSE),\"\")","v":""},{"$f":"IFERROR(VLOOKUP(B871,[2]Sheet4!$F$2:$J$364,5,FALSE),\"\")","v":""}]
[null,null,{"$f":"IFERROR(VLOOKUP(B872,[2]Sheet4!$F$2:$J$364,2,FALSE),\"\")","v":""},{"$f":"IFERROR(VLOOKUP(B872,[2]Sheet4!$F$2:$J$364,3,FALSE),\"\")","v":""},{"$f":"IFERROR(VLOOKUP(B872,[2]Sheet4!$F$2:$J$364,4,FALSE),\"\")","v":""},{"$f":"IFERROR(VLOOKUP(B872,[2]Sheet4!$F$2:$J$364,5,FALSE),\"\")","v":""}]
[null,null,{"$f":"IFERROR(VLOOKUP(B873,[2]Sheet4!$F$2:$J$364,2,FALSE),\"\")","v":""},{"$f":"IFERROR(VLOOKUP(B873,[2]Sheet4!$F$2:$J$364,3,FALSE),\"\")","v":""},{"$f":"IFERROR(VLOOKUP(B873,[2]Sheet4!$F$2:$J$364,4,FALSE),\"\")","v":""},{"$f":"IFERROR(VLOOKUP(B873,[2]Sheet4!$F$2:$J$364,5,FALSE),\"\")","v":""}]
[null,null,{"$f":"IFERROR(VLOOKUP(B874,[2]Sheet4!$F$2:$J$364,2,FALSE),\"\")","v":""},{"$f":"IFERROR(VLOOKUP(B874,[2]Sheet4!$F$2:$J$364,3,FALSE),\"\")","v":""},{"$f":"IFERROR(VLOOKUP(B874,[2]Sheet4!$F$2:$J$364,4,FALSE),\"\")","v":""},{"$f":"IFERROR(VLOOKUP(B874,[2]Sheet4!$F$2:$J$364,5,FALSE),\"\")","v":""}]
[null,null,{"$f":"IFERROR(VLOOKUP(B875,[2]Sheet4!$F$2:$J$364,2,FALSE),\"\")","v":""},{"$f":"IFERROR(VLOOKUP(B875,[2]Sheet4!$F$2:$J$364,3,FALSE),\"\")","v":""},{"$f":"IFERROR(VLOOKUP(B875,[2]Sheet4!$F$2:$J$364,4,FALSE),\"\")","v":""},{"$f":"IFERROR(VLOOKUP(B875,[2]Sheet4!$F$2:$J$364,5,FALSE),\"\")","v":""}]
[null,null,{"$f":"IFERROR(VLOOKUP(B876,[2]Sheet4!$F$2:$J$364,2,FALSE),\"\")","v":""},{"$f":"IFERROR(VLOOKUP(B876,[2]Sheet4!$F$2:$J$364,3,FALSE),\"\")","v":""},{"$f":"IFERROR(VLOOKUP(B876,[2]Sheet4!$F$2:$J$364,4,FALSE),\"\")","v":""},{"$f":"IFERROR(VLOOKUP(B876,[2]Sheet4!$F$2:$J$364,5,FALSE),\"\")","v":""}]
[null,null,{"$f":"IFERROR(VLOOKUP(B877,[2]Sheet4!$F$2:$J$364,2,FALSE),\"\")","v":""},{"$f":"IFERROR(VLOOKUP(B877,[2]Sheet4!$F$2:$J$364,3,FALSE),\"\")","v":""},{"$f":"IFERROR(VLOOKUP(B877,[2]Sheet4!$F$2:$J$364,4,FALSE),\"\")","v":""},{"$f":"IFERROR(VLOOKUP(B877,[2]Sheet4!$F$2:$J$364,5,FALSE),\"\")","v":""}]
[null,null,{"$f":"IFERROR(VLOOKUP(B878,[2]Sheet4!$F$2:$J$364,2,FALSE),\"\")","v":""},{"$f":"IFERROR(VLOOKUP(B878,[2]Sheet4!$F$2:$J$364,3,FALSE),\"\")","v":""},{"$f":"IFERROR(VLOOKUP(B878,[2]Sheet4!$F$2:$J$364,4,FALSE),\"\")","v":""},{"$f":"IFERROR(VLOOKUP(B878,[2]Sheet4!$F$2:$J$364,5,FALSE),\"\")","v":""}]
[null,null,{"$f":"IFERROR(VLOOKUP(B879,[2]Sheet4!$F$2:$J$364,2,FALSE),\"\")","v":""},{"$f":"IFERROR(VLOOKUP(B879,[2]Sheet4!$F$2:$J$364,3,FALSE),\"\")","v":""},{"$f":"IFERROR(VLOOKUP(B879,[2]Sheet4!$F$2:$J$364,4,FALSE),\"\")","v":""},{"$f":"IFERROR(VLOOKUP(B879,[2]Sheet4!$F$2:$J$364,5,FALSE),\"\")","v":""}]
[null,null,{"$f":"IFERROR(VLOOKUP(B880,[2]Sheet4!$F$2:$J$364,2,FALSE),\"\")","v":""},{"$f":"IFERROR(VLOOKUP(B880,[2]Sheet4!$F$2:$J$364,3,FALSE),\"\")","v":""},{"$f":"IFERROR(VLOOKUP(B880,[2]Sheet4!$F$2:$J$364,4,FALSE),\"\")","v":""},{"$f":"IFERROR(VLOOKUP(B880,[2]Sheet4!$F$2:$J$364,5,FALSE),\"\")","v":""}]
[null,null,{"$f":"IFERROR(VLOOKUP(B881,[2]Sheet4!$F$2:$J$364,2,FALSE),\"\")","v":""},{"$f":"IFERROR(VLOOKUP(B881,[2]Sheet4!$F$2:$J$364,3,FALSE),\"\")","v":""},{"$f":"IFERROR(VLOOKUP(B881,[2]Sheet4!$F$2:$J$364,4,FALSE),\"\")","v":""},{"$f":"IFERROR(VLOOKUP(B881,[2]Sheet4!$F$2:$J$364,5,FALSE),\"\")","v":""}]
[null,null,{"$f":"IFERROR(VLOOKUP(B882,[2]Sheet4!$F$2:$J$364,2,FALSE),\"\")","v":""},{"$f":"IFERROR(VLOOKUP(B882,[2]Sheet4!$F$2:$J$364,3,FALSE),\"\")","v":""},{"$f":"IFERROR(VLOOKUP(B882,[2]Sheet4!$F$2:$J$364,4,FALSE),\"\")","v":""},{"$f":"IFERROR(VLOOKUP(B882,[2]Sheet4!$F$2:$J$364,5,FALSE),\"\")","v":""}]
[null,null,{"$f":"IFERROR(VLOOKUP(B883,[2]Sheet4!$F$2:$J$364,2,FALSE),\"\")","v":""},{"$f":"IFERROR(VLOOKUP(B883,[2]Sheet4!$F$2:$J$364,3,FALSE),\"\")","v":""},{"$f":"IFERROR(VLOOKUP(B883,[2]Sheet4!$F$2:$J$364,4,FALSE),\"\")","v":""},{"$f":"IFERROR(VLOOKUP(B883,[2]Sheet4!$F$2:$J$364,5,FALSE),\"\")","v":""}]
[null,null,{"$f":"IFERROR(VLOOKUP(B884,[2]Sheet4!$F$2:$J$364,2,FALSE),\"\")","v":""},{"$f":"IFERROR(VLOOKUP(B884,[2]Sheet4!$F$2:$J$364,3,FALSE),\"\")","v":""},{"$f":"IFERROR(VLOOKUP(B884,[2]Sheet4!$F$2:$J$364,4,FALSE),\"\")","v":""},{"$f":"IFERROR(VLOOKUP(B884,[2]Sheet4!$F$2:$J$364,5,FALSE),\"\")","v":""}]
[null,null,{"$f":"IFERROR(VLOOKUP(B885,[2]Sheet4!$F$2:$J$364,2,FALSE),\"\")","v":""},{"$f":"IFERROR(VLOOKUP(B885,[2]Sheet4!$F$2:$J$364,3,FALSE),\"\")","v":""},{"$f":"IFERROR(VLOOKUP(B885,[2]Sheet4!$F$2:$J$364,4,FALSE),\"\")","v":""},{"$f":"IFERROR(VLOOKUP(B885,[2]Sheet4!$F$2:$J$364,5,FALSE),\"\")","v":""}]
[null,null,{"$f":"IFERROR(VLOOKUP(B886,[2]Sheet4!$F$2:$J$364,2,FALSE),\"\")","v":""},{"$f":"IFERROR(VLOOKUP(B886,[2]Sheet4!$F$2:$J$364,3,FALSE),\"\")","v":""},{"$f":"IFERROR(VLOOKUP(B886,[2]Sheet4!$F$2:$J$364,4,FALSE),\"\")","v":""},{"$f":"IFERROR(VLOOKUP(B886,[2]Sheet4!$F$2:$J$364,5,FALSE),\"\")","v":""}]
[null,null,{"$f":"IFERROR(VLOOKUP(B887,[2]Sheet4!$F$2:$J$364,2,FALSE),\"\")","v":""},{"$f":"IFERROR(VLOOKUP(B887,[2]Sheet4!$F$2:$J$364,3,FALSE),\"\")","v":""},{"$f":"IFERROR(VLOOKUP(B887,[2]Sheet4!$F$2:$J$364,4,FALSE),\"\")","v":""},{"$f":"IFERROR(VLOOKUP(B887,[2]Sheet4!$F$2:$J$364,5,FALSE),\"\")","v":""}]
[null,null,{"$f":"IFERROR(VLOOKUP(B888,[2]Sheet4!$F$2:$J$364,2,FALSE),\"\")","v":""},{"$f":"IFERROR(VLOOKUP(B888,[2]Sheet4!$F$2:$J$364,3,FALSE),\"\")","v":""},{"$f":"IFERROR(VLOOKUP(B888,[2]Sheet4!$F$2:$J$364,4,FALSE),\"\")","v":""},{"$f":"IFERROR(VLOOKUP(B888,[2]Sheet4!$F$2:$J$364,5,FALSE),\"\")","v":""}]
[null,null,{"$f":"IFERROR(VLOOKUP(B889,[2]Sheet4!$F$2:$J$364,2,FALSE),\"\")","v":""},{"$f":"IFERROR(VLOOKUP(B889,[2]Sheet4!$F$2:$J$364,3,FALSE),\"\")","v":""},{"$f":"IFERROR(VLOOKUP(B889,[2]Sheet4!$F$2:$J$364,4,FALSE),\"\")","v":""},{"$f":"IFERROR(VLOOKUP(B889,[2]Sheet4!$F$2:$J$364,5,FALSE),\"\")","v":""}]
[null,null,{"$f":"IFERROR(VLOOKUP(B890,[2]Sheet4!$F$2:$J$364,2,FALSE),\"\")","v":""},{"$f":"IFERROR(VLOOKUP(B890,[2]Sheet4!$F$2:$J$364,3,FALSE),\"\")","v":""},{"$f":"IFERROR(VLOOKUP(B890,[2]Sheet4!$F$2:$J$364,4,FALSE),\"\")","v":""},{"$f":"IFERROR(VLOOKUP(B890,[2]Sheet4!$F$2:$J$364,5,FALSE),\"\")","v":""}]
[null,null,{"$f":"IFERROR(VLOOKUP(B891,[2]Sheet4!$F$2:$J$364,2,FALSE),\"\")","v":""},{"$f":"IFERROR(VLOOKUP(B891,[2]Sheet4!$F$2:$J$364,3,FALSE),\"\")","v":""},{"$f":"IFERROR(VLOOKUP(B891,[2]Sheet4!$F$2:$J$364,4,FALSE),\"\")","v":""},{"$f":"IFERROR(VLOOKUP(B891,[2]Sheet4!$F$2:$J$364,5,FALSE),\"\")","v":""}]
[null,null,{"$f":"IFERROR(VLOOKUP(B892,[2]Sheet4!$F$2:$J$364,2,FALSE),\"\")","v":""},{"$f":"IFERROR(VLOOKUP(B892,[2]Sheet4!$F$2:$J$364,3,FALSE),\"\")","v":""},{"$f":"IFERROR(VLOOKUP(B892,[2]Sheet4!$F$2:$J$364,4,FALSE),\"\")","v":""},{"$f":"IFERROR(VLOOKUP(B892,[2]Sheet4!$F$2:$J$364,5,FALSE),\"\")","v":""}]
[null,null,{"$f":"IFERROR(VLOOKUP(B893,[2]Sheet4!$F$2:$J$364,2,FALSE),\"\")","v":""},{"$f":"IFERROR(VLOOKUP(B893,[2]Sheet4!$F$2:$J$364,3,FALSE),\"\")","v":""},{"$f":"IFERROR(VLOOKUP(B893,[2]Sheet4!$F$2:$J$364,4,FALSE),\"\")","v":""},{"$f":"IFERROR(VLOOKUP(B893,[2]Sheet4!$F$2:$J$364,5,FALSE),\"\")","v":""}]
[null,null,{"$f":"IFERROR(VLOOKUP(B894,[2]Sheet4!$F$2:$J$364,2,FALSE),\"\")","v":""},{"$f":"IFERROR(VLOOKUP(B894,[2]Sheet4!$F$2:$J$364,3,FALSE),\"\")","v":""},{"$f":"IFERROR(VLOOKUP(B894,[2]Sheet4!$F$2:$J$364,4,FALSE),\"\")","v":""},{"$f":"IFERROR(VLOOKUP(B894,[2]Sheet4!$F$2:$J$364,5,FALSE),\"\")","v":""}]
[null,null,{"$f":"IFERROR(VLOOKUP(B895,[2]Sheet4!$F$2:$J$364,2,FALSE),\"\")","v":""},{"$f":"IFERROR(VLOOKUP(B895,[2]Sheet4!$F$2:$J$364,3,FALSE),\"\")","v":""},{"$f":"IFERROR(VLOOKUP(B895,[2]Sheet4!$F$2:$J$364,4,FALSE),\"\")","v":""},{"$f":"IFERROR(VLOOKUP(B895,[2]Sheet4!$F$2:$J$364,5,FALSE),\"\")","v":""}]
[null,null,{"$f":"IFERROR(VLOOKUP(B896,[2]Sheet4!$F$2:$J$364,2,FALSE),\"\")","v":""},{"$f":"IFERROR(VLOOKUP(B896,[2]Sheet4!$F$2:$J$364,3,FALSE),\"\")","v":""},{"$f":"IFERROR(VLOOKUP(B896,[2]Sheet4!$F$2:$J$364,4,FALSE),\"\")","v":""},{"$f":"IFERROR(VLOOKUP(B896,[2]Sheet4!$F$2:$J$364,5,FALSE),\"\")","v":""}]
[null,null,{"$f":"IFERROR(VLOOKUP(B897,[2]Sheet4!$F$2:$J$364,2,FALSE),\"\")","v":""},{"$f":"IFERROR(VLOOKUP(B897,[2]Sheet4!$F$2:$J$364,3,FALSE),\"\")","v":""},{"$f":"IFERROR(VLOOKUP(B897,[2]Sheet4!$F$2:$J$364,4,FALSE),\"\")","v":""},{"$f":"IFERROR(VLOOKUP(B897,[2]Sheet4!$F$2:$J$364,5,FALSE),\"\")","v":""}]
[null,null,{"$f":"IFERROR(VLOOKUP(B898,[2]Sheet4!$F$2:$J$364,2,FALSE),\"\")","v":""},{"$f":"IFERROR(VLOOKUP(B898,[2]Sheet4!$F$2:$J$364,3,FALSE),\"\")","v":""},{"$f":"IFERROR(VLOOKUP(B898,[2]Sheet4!$F$2:$J$364,4,FALSE),\"\")","v":""},{"$f":"IFERROR(VLOOKUP(B898,[2]Sheet4!$F$2:$J$364,5,FALSE),\"\")","v":""}]
[null,null,{"$f":"IFERROR(VLOOKUP(B899,[2]Sheet4!$F$2:$J$364,2,FALSE),\"\")","v":""},{"$f":"IFERROR(VLOOKUP(B899,[2]Sheet4!$F$2:$J$364,3,FALSE),\"\")","v":""},{"$f":"IFERROR(VLOOKUP(B899,[2]Sheet4!$F$2:$J$364,4,FALSE),\"\")","v":""},{"$f":"IFERROR(VLOOKUP(B899,[2]Sheet4!$F$2:$J$364,5,FALSE),\"\")","v":""}]
[null,null,{"$f":"IFERROR(VLOOKUP(B900,[2]Sheet4!$F$2:$J$364,2,FALSE),\"\")","v":""},{"$f":"IFERROR(VLOOKUP(B900,[2]Sheet4!$F$2:$J$364,3,FALSE),\"\")","v":""},{"$f":"IFERROR(VLOOKUP(B900,[2]Sheet4!$F$2:$J$364,4,FALSE),\"\")","v":""},{"$f":"IFERROR(VLOOKUP(B900,[2]Sheet4!$F$2:$J$364,5,FALSE),\"\")","v":""}]
[null,null,{"$f":"IFERROR(VLOOKUP(B901,[2]Sheet4!$F$2:$J$364,2,FALSE),\"\")","v":""},{"$f":"IFERROR(VLOOKUP(B901,[2]Sheet4!$F$2:$J$364,3,FALSE),\"\")","v":""},{"$f":"IFERROR(VLOOKUP(B901,[2]Sheet4!$F$2:$J$364,4,FALSE),\"\")","v":""},{"$f":"IFERROR(VLOOKUP(B901,[2]Sheet4!$F$2:$J$364,5,FALSE),\"\")","v":""}]
[null,null,{"$f":"IFERROR(VLOOKUP(B902,[2]Sheet4!$F$2:$J$364,2,FALSE),\"\")","v":""},{"$f":"IFERROR(VLOOKUP(B902,[2]Sheet4!$F$2:$J$364,3,FALSE),\"\")","v":""},{"$f":"IFERROR(VLOOKUP(B902,[2]Sheet4!$F$2:$J$364,4,FALSE),\"\")","v":""},{"$f":"IFERROR(VLOOKUP(B902,[2]Sheet4!$F$2:$J$364,5,FALSE),\"\")","v":""}]
[null,null,{"$f":"IFERROR(VLOOKUP(B903,[2]Sheet4!$F$2:$J$364,2,FALSE),\"\")","v":""},{"$f":"IFERROR(VLOOKUP(B903,[2]Sheet4!$F$2:$J$364,3,FALSE),\"\")","v":""},{"$f":"IFERROR(VLOOKUP(B903,[2]Sheet4!$F$2:$J$364,4,FALSE),\"\")","v":""},{"$f":"IFERROR(VLOOKUP(B903,[2]Sheet4!$F$2:$J$364,5,FALSE),\"\")","v":""}]
[null,null,{"$f":"IFERROR(VLOOKUP(B904,[2]Sheet4!$F$2:$J$364,2,FALSE),\"\")","v":""},{"$f":"IFERROR(VLOOKUP(B904,[2]Sheet4!$F$2:$J$364,3,FALSE),\"\")","v":""},{"$f":"IFERROR(VLOOKUP(B904,[2]Sheet4!$F$2:$J$364,4,FALSE),\"\")","v":""},{"$f":"IFERROR(VLOOKUP(B904,[2]Sheet4!$F$2:$J$364,5,FALSE),\"\")","v":""}]
[null,null,{"$f":"IFERROR(VLOOKUP(B905,[2]Sheet4!$F$2:$J$364,2,FALSE),\"\")","v":""},{"$f":"IFERROR(VLOOKUP(B905,[2]Sheet4!$F$2:$J$364,3,FALSE),\"\")","v":""},{"$f":"IFERROR(VLOOKUP(B905,[2]Sheet4!$F$2:$J$364,4,FALSE),\"\")","v":""},{"$f":"IFERROR(VLOOKUP(B905,[2]Sheet4!$F$2:$J$364,5,FALSE),\"\")","v":""}]
[null,null,{"$f":"IFERROR(VLOOKUP(B906,[2]Sheet4!$F$2:$J$364,2,FALSE),\"\")","v":""},{"$f":"IFERROR(VLOOKUP(B906,[2]Sheet4!$F$2:$J$364,3,FALSE),\"\")","v":""},{"$f":"IFERROR(VLOOKUP(B906,[2]Sheet4!$F$2:$J$364,4,FALSE),\"\")","v":""},{"$f":"IFERROR(VLOOKUP(B906,[2]Sheet4!$F$2:$J$364,5,FALSE),\"\")","v":""}]
[null,null,{"$f":"IFERROR(VLOOKUP(B907,[2]Sheet4!$F$2:$J$364,2,FALSE),\"\")","v":""},{"$f":"IFERROR(VLOOKUP(B907,[2]Sheet4!$F$2:$J$364,3,FALSE),\"\")","v":""},{"$f":"IFERROR(VLOOKUP(B907,[2]Sheet4!$F$2:$J$364,4,FALSE),\"\")","v":""},{"$f":"IFERROR(VLOOKUP(B907,[2]Sheet4!$F$2:$J$364,5,FALSE),\"\")","v":""}]
[null,null,{"$f":"IFERROR(VLOOKUP(B908,[2]Sheet4!$F$2:$J$364,2,FALSE),\"\")","v":""},{"$f":"IFERROR(VLOOKUP(B908,[2]Sheet4!$F$2:$J$364,3,FALSE),\"\")","v":""},{"$f":"IFERROR(VLOOKUP(B908,[2]Sheet4!$F$2:$J$364,4,FALSE),\"\")","v":""},{"$f":"IFERROR(VLOOKUP(B908,[2]Sheet4!$F$2:$J$364,5,FALSE),\"\")","v":""}]
[null,null,{"$f":"IFERROR(VLOOKUP(B909,[2]Sheet4!$F$2:$J$364,2,FALSE),\"\")","v":""},{"$f":"IFERROR(VLOOKUP(B909,[2]Sheet4!$F$2:$J$364,3,FALSE),\"\")","v":""},{"$f":"IFERROR(VLOOKUP(B909,[2]Sheet4!$F$2:$J$364,4,FALSE),\"\")","v":""},{"$f":"IFERROR(VLOOKUP(B909,[2]Sheet4!$F$2:$J$364,5,FALSE),\"\")","v":""}]
[null,null,{"$f":"IFERROR(VLOOKUP(B910,[2]Sheet4!$F$2:$J$364,2,FALSE),\"\")","v":""},{"$f":"IFERROR(VLOOKUP(B910,[2]Sheet4!$F$2:$J$364,3,FALSE),\"\")","v":""},{"$f":"IFERROR(VLOOKUP(B910,[2]Sheet4!$F$2:$J$364,4,FALSE),\"\")","v":""},{"$f":"IFERROR(VLOOKUP(B910,[2]Sheet4!$F$2:$J$364,5,FALSE),\"\")","v":""}]
[null,null,{"$f":"IFERROR(VLOOKUP(B911,[2]Sheet4!$F$2:$J$364,2,FALSE),\"\")","v":""},{"$f":"IFERROR(VLOOKUP(B911,[2]Sheet4!$F$2:$J$364,3,FALSE),\"\")","v":""},{"$f":"IFERROR(VLOOKUP(B911,[2]Sheet4!$F$2:$J$364,4,FALSE),\"\")","v":""},{"$f":"IFERROR(VLOOKUP(B911,[2]Sheet4!$F$2:$J$364,5,FALSE),\"\")","v":""}]
[null,null,{"$f":"IFERROR(VLOOKUP(B912,[2]Sheet4!$F$2:$J$364,2,FALSE),\"\")","v":""},{"$f":"IFERROR(VLOOKUP(B912,[2]Sheet4!$F$2:$J$364,3,FALSE),\"\")","v":""},{"$f":"IFERROR(VLOOKUP(B912,[2]Sheet4!$F$2:$J$364,4,FALSE),\"\")","v":""},{"$f":"IFERROR(VLOOKUP(B912,[2]Sheet4!$F$2:$J$364,5,FALSE),\"\")","v":""}]
[null,null,{"$f":"IFERROR(VLOOKUP(B913,[2]Sheet4!$F$2:$J$364,2,FALSE),\"\")","v":""},{"$f":"IFERROR(VLOOKUP(B913,[2]Sheet4!$F$2:$J$364,3,FALSE),\"\")","v":""},{"$f":"IFERROR(VLOOKUP(B913,[2]Sheet4!$F$2:$J$364,4,FALSE),\"\")","v":""},{"$f":"IFERROR(VLOOKUP(B913,[2]Sheet4!$F$2:$J$364,5,FALSE),\"\")","v":""}]
[null,null,{"$f":"IFERROR(VLOOKUP(B914,[2]Sheet4!$F$2:$J$364,2,FALSE),\"\")","v":""},{"$f":"IFERROR(VLOOKUP(B914,[2]Sheet4!$F$2:$J$364,3,FALSE),\"\")","v":""},{"$f":"IFERROR(VLOOKUP(B914,[2]Sheet4!$F$2:$J$364,4,FALSE),\"\")","v":""},{"$f":"IFERROR(VLOOKUP(B914,[2]Sheet4!$F$2:$J$364,5,FALSE),\"\")","v":""}]
[null,null,{"$f":"IFERROR(VLOOKUP(B915,[2]Sheet4!$F$2:$J$364,2,FALSE),\"\")","v":""},{"$f":"IFERROR(VLOOKUP(B915,[2]Sheet4!$F$2:$J$364,3,FALSE),\"\")","v":""},{"$f":"IFERROR(VLOOKUP(B915,[2]Sheet4!$F$2:$J$364,4,FALSE),\"\")","v":""},{"$f":"IFERROR(VLOOKUP(B915,[2]Sheet4!$F$2:$J$364,5,FALSE),\"\")","v":""}]
[null,null,{"$f":"IFERROR(VLOOKUP(B916,[2]Sheet4!$F$2:$J$364,2,FALSE),\"\")","v":""},{"$f":"IFERROR(VLOOKUP(B916,[2]Sheet4!$F$2:$J$364,3,FALSE),\"\")","v":""},{"$f":"IFERROR(VLOOKUP(B916,[2]Sheet4!$F$2:$J$364,4,FALSE),\"\")","v":""},{"$f":"IFERROR(VLOOKUP(B916,[2]Sheet4!$F$2:$J$364,5,FALSE),\"\")","v":""}]
[null,null,{"$f":"IFERROR(VLOOKUP(B917,[2]Sheet4!$F$2:$J$364,2,FALSE),\"\")","v":""},{"$f":"IFERROR(VLOOKUP(B917,[2]Sheet4!$F$2:$J$364,3,FALSE),\"\")","v":""},{"$f":"IFERROR(VLOOKUP(B917,[2]Sheet4!$F$2:$J$364,4,FALSE),\"\")","v":""},{"$f":"IFERROR(VLOOKUP(B917,[2]Sheet4!$F$2:$J$364,5,FALSE),\"\")","v":""}]
[null,null,{"$f":"IFERROR(VLOOKUP(B918,[2]Sheet4!$F$2:$J$364,2,FALSE),\"\")","v":""},{"$f":"IFERROR(VLOOKUP(B918,[2]Sheet4!$F$2:$J$364,3,FALSE),\"\")","v":""},{"$f":"IFERROR(VLOOKUP(B918,[2]Sheet4!$F$2:$J$364,4,FALSE),\"\")","v":""},{"$f":"IFERROR(VLOOKUP(B918,[2]Sheet4!$F$2:$J$364,5,FALSE),\"\")","v":""}]
[null,null,{"$f":"IFERROR(VLOOKUP(B919,[2]Sheet4!$F$2:$J$364,2,FALSE),\"\")","v":""},{"$f":"IFERROR(VLOOKUP(B919,[2]Sheet4!$F$2:$J$364,3,FALSE),\"\")","v":""},{"$f":"IFERROR(VLOOKUP(B919,[2]Sheet4!$F$2:$J$364,4,FALSE),\"\")","v":""},{"$f":"IFERROR(VLOOKUP(B919,[2]Sheet4!$F$2:$J$364,5,FALSE),\"\")","v":""}]
[null,null,{"$f":"IFERROR(VLOOKUP(B920,[2]Sheet4!$F$2:$J$364,2,FALSE),\"\")","v":""},{"$f":"IFERROR(VLOOKUP(B920,[2]Sheet4!$F$2:$J$364,3,FALSE),\"\")","v":""},{"$f":"IFERROR(VLOOKUP(B920,[2]Sheet4!$F$2:$J$364,4,FALSE),\"\")","v":""},{"$f":"IFERROR(VLOOKUP(B920,[2]Sheet4!$F$2:$J$364,5,FALSE),\"\")","v":""}]
[null,null,{"$f":"IFERROR(VLOOKUP(B921,[2]Sheet4!$F$2:$J$364,2,FALSE),\"\")","v":""},{"$f":"IFERROR(VLOOKUP(B921,[2]Sheet4!$F$2:$J$364,3,FALSE),\"\")","v":""},{"$f":"IFERROR(VLOOKUP(B921,[2]Sheet4!$F$2:$J$364,4,FALSE),\"\")","v":""},{"$f":"IFERROR(VLOOKUP(B921,[2]Sheet4!$F$2:$J$364,5,FALSE),\"\")","v":""}]
[null,null,{"$f":"IFERROR(VLOOKUP(B922,[2]Sheet4!$F$2:$J$364,2,FALSE),\"\")","v":""},{"$f":"IFERROR(VLOOKUP(B922,[2]Sheet4!$F$2:$J$364,3,FALSE),\"\")","v":""},{"$f":"IFERROR(VLOOKUP(B922,[2]Sheet4!$F$2:$J$364,4,FALSE),\"\")","v":""},{"$f":"IFERROR(VLOOKUP(B922,[2]Sheet4!$F$2:$J$364,5,FALSE),\"\")","v":""}]
[null,null,{"$f":"IFERROR(VLOOKUP(B923,[2]Sheet4!$F$2:$J$364,2,FALSE),\"\")","v":""},{"$f":"IFERROR(VLOOKUP(B923,[2]Sheet4!$F$2:$J$364,3,FALSE),\"\")","v":""},{"$f":"IFERROR(VLOOKUP(B923,[2]Sheet4!$F$2:$J$364,4,FALSE),\"\")","v":""},{"$f":"IFERROR(VLOOKUP(B923,[2]Sheet4!$F$2:$J$364,5,FALSE),\"\")","v":""}]
[null,null,{"$f":"IFERROR(VLOOKUP(B924,[2]Sheet4!$F$2:$J$364,2,FALSE),\"\")","v":""},{"$f":"IFERROR(VLOOKUP(B924,[2]Sheet4!$F$2:$J$364,3,FALSE),\"\")","v":""},{"$f":"IFERROR(VLOOKUP(B924,[2]Sheet4!$F$2:$J$364,4,FALSE),\"\")","v":""},{"$f":"IFERROR(VLOOKUP(B924,[2]Sheet4!$F$2:$J$364,5,FALSE),\"\")","v":""}]
[null,null,{"$f":"IFERROR(VLOOKUP(B925,[2]Sheet4!$F$2:$J$364,2,FALSE),\"\")","v":""},{"$f":"IFERROR(VLOOKUP(B925,[2]Sheet4!$F$2:$J$364,3,FALSE),\"\")","v":""},{"$f":"IFERROR(VLOOKUP(B925,[2]Sheet4!$F$2:$J$364,4,FALSE),\"\")","v":""},{"$f":"IFERROR(VLOOKUP(B925,[2]Sheet4!$F$2:$J$364,5,FALSE),\"\")","v":""}]
[null,null,{"$f":"IFERROR(VLOOKUP(B926,[2]Sheet4!$F$2:$J$364,2,FALSE),\"\")","v":""},{"$f":"IFERROR(VLOOKUP(B926,[2]Sheet4!$F$2:$J$364,3,FALSE),\"\")","v":""},{"$f":"IFERROR(VLOOKUP(B926,[2]Sheet4!$F$2:$J$364,4,FALSE),\"\")","v":""},{"$f":"IFERROR(VLOOKUP(B926,[2]Sheet4!$F$2:$J$364,5,FALSE),\"\")","v":""}]
[null,null,{"$f":"IFERROR(VLOOKUP(B927,[2]Sheet4!$F$2:$J$364,2,FALSE),\"\")","v":""},{"$f":"IFERROR(VLOOKUP(B927,[2]Sheet4!$F$2:$J$364,3,FALSE),\"\")","v":""},{"$f":"IFERROR(VLOOKUP(B927,[2]Sheet4!$F$2:$J$364,4,FALSE),\"\")","v":""},{"$f":"IFERROR(VLOOKUP(B927,[2]Sheet4!$F$2:$J$364,5,FALSE),\"\")","v":""}]
[null,null,{"$f":"IFERROR(VLOOKUP(B928,[2]Sheet4!$F$2:$J$364,2,FALSE),\"\")","v":""},{"$f":"IFERROR(VLOOKUP(B928,[2]Sheet4!$F$2:$J$364,3,FALSE),\"\")","v":""},{"$f":"IFERROR(VLOOKUP(B928,[2]Sheet4!$F$2:$J$364,4,FALSE),\"\")","v":""},{"$f":"IFERROR(VLOOKUP(B928,[2]Sheet4!$F$2:$J$364,5,FALSE),\"\")","v":""}]
[null,null,{"$f":"IFERROR(VLOOKUP(B929,[2]Sheet4!$F$2:$J$364,2,FALSE),\"\")","v":""},{"$f":"IFERROR(VLOOKUP(B929,[2]Sheet4!$F$2:$J$364,3,FALSE),\"\")","v":""},{"$f":"IFERROR(VLOOKUP(B929,[2]Sheet4!$F$2:$J$364,4,FALSE),\"\")","v":""},{"$f":"IFERROR(VLOOKUP(B929,[2]Sheet4!$F$2:$J$364,5,FALSE),\"\")","v":""}]
[null,null,{"$f":"IFERROR(VLOOKUP(B930,[2]Sheet4!$F$2:$J$364,2,FALSE),\"\")","v":""},{"$f":"IFERROR(VLOOKUP(B930,[2]Sheet4!$F$2:$J$364,3,FALSE),\"\")","v":""},{"$f":"IFERROR(VLOOKUP(B930,[2]Sheet4!$F$2:$J$364,4,FALSE),\"\")","v":""},{"$f":"IFERROR(VLOOKUP(B930,[2]Sheet4!$F$2:$J$364,5,FALSE),\"\")","v":""}]
[null,null,{"$f":"IFERROR(VLOOKUP(B931,[2]Sheet4!$F$2:$J$364,2,FALSE),\"\")","v":""},{"$f":"IFERROR(VLOOKUP(B931,[2]Sheet4!$F$2:$J$364,3,FALSE),\"\")","v":""},{"$f":"IFERROR(VLOOKUP(B931,[2]Sheet4!$F$2:$J$364,4,FALSE),\"\")","v":""},{"$f":"IFERROR(VLOOKUP(B931,[2]Sheet4!$F$2:$J$364,5,FALSE),\"\")","v":""}]
[null,null,{"$f":"IFERROR(VLOOKUP(B932,[2]Sheet4!$F$2:$J$364,2,FALSE),\"\")","v":""},{"$f":"IFERROR(VLOOKUP(B932,[2]Sheet4!$F$2:$J$364,3,FALSE),\"\")","v":""},{"$f":"IFERROR(VLOOKUP(B932,[2]Sheet4!$F$2:$J$364,4,FALSE),\"\")","v":""},{"$f":"IFERROR(VLOOKUP(B932,[2]Sheet4!$F$2:$J$364,5,FALSE),\"\")","v":""}]
[null,null,{"$f":"IFERROR(VLOOKUP(B933,[2]Sheet4!$F$2:$J$364,2,FALSE),\"\")","v":""},{"$f":"IFERROR(VLOOKUP(B933,[2]Sheet4!$F$2:$J$364,3,FALSE),\"\")","v":""},{"$f":"IFERROR(VLOOKUP(B933,[2]Sheet4!$F$2:$J$364,4,FALSE),\"\")","v":""},{"$f":"IFERROR(VLOOKUP(B933,[2]Sheet4!$F$2:$J$364,5,FALSE),\"\")","v":""}]
[null,null,{"$f":"IFERROR(VLOOKUP(B934,[2]Sheet4!$F$2:$J$364,2,FALSE),\"\")","v":""},{"$f":"IFERROR(VLOOKUP(B934,[2]Sheet4!$F$2:$J$364,3,FALSE),\"\")","v":""},{"$f":"IFERROR(VLOOKUP(B934,[2]Sheet4!$F$2:$J$364,4,FALSE),\"\")","v":""},{"$f":"IFERROR(VLOOKUP(B934,[2]Sheet4!$F$2:$J$364,5,FALSE),\"\")","v":""}]
[null,null,{"$f":"IFERROR(VLOOKUP(B935,[2]Sheet4!$F$2:$J$364,2,FALSE),\"\")","v":""},{"$f":"IFERROR(VLOOKUP(B935,[2]Sheet4!$F$2:$J$364,3,FALSE),\"\")","v":""},{"$f":"IFERROR(VLOOKUP(B935,[2]Sheet4!$F$2:$J$364,4,FALSE),\"\")","v":""},{"$f":"IFERROR(VLOOKUP(B935,[2]Sheet4!$F$2:$J$364,5,FALSE),\"\")","v":""}]
[null,null,{"$f":"IFERROR(VLOOKUP(B936,[2]Sheet4!$F$2:$J$364,2,FALSE),\"\")","v":""},{"$f":"IFERROR(VLOOKUP(B936,[2]Sheet4!$F$2:$J$364,3,FALSE),\"\")","v":""},{"$f":"IFERROR(VLOOKUP(B936,[2]Sheet4!$F$2:$J$364,4,FALSE),\"\")","v":""},{"$f":"IFERROR(VLOOKUP(B936,[2]Sheet4!$F$2:$J$364,5,FALSE),\"\")","v":""}]
[null,null,{"$f":"IFERROR(VLOOKUP(B937,[2]Sheet4!$F$2:$J$364,2,FALSE),\"\")","v":""},{"$f":"IFERROR(VLOOKUP(B937,[2]Sheet4!$F$2:$J$364,3,FALSE),\"\")","v":""},{"$f":"IFERROR(VLOOKUP(B937,[2]Sheet4!$F$2:$J$364,4,FALSE),\"\")","v":""},{"$f":"IFERROR(VLOOKUP(B937,[2]Sheet4!$F$2:$J$364,5,FALSE),\"\")","v":""}]
[null,null,{"$f":"IFERROR(VLOOKUP(B938,[2]Sheet4!$F$2:$J$364,2,FALSE),\"\")","v":""},{"$f":"IFERROR(VLOOKUP(B938,[2]Sheet4!$F$2:$J$364,3,FALSE),\"\")","v":""},{"$f":"IFERROR(VLOOKUP(B938,[2]Sheet4!$F$2:$J$364,4,FALSE),\"\")","v":""},{"$f":"IFERROR(VLOOKUP(B938,[2]Sheet4!$F$2:$J$364,5,FALSE),\"\")","v":""}]
[null,null,{"$f":"IFERROR(VLOOKUP(B939,[2]Sheet4!$F$2:$J$364,2,FALSE),\"\")","v":""},{"$f":"IFERROR(VLOOKUP(B939,[2]Sheet4!$F$2:$J$364,3,FALSE),\"\")","v":""},{"$f":"IFERROR(VLOOKUP(B939,[2]Sheet4!$F$2:$J$364,4,FALSE),\"\")","v":""},{"$f":"IFERROR(VLOOKUP(B939,[2]Sheet4!$F$2:$J$364,5,FALSE),\"\")","v":""}]
[null,null,{"$f":"IFERROR(VLOOKUP(B940,[2]Sheet4!$F$2:$J$364,2,FALSE),\"\")","v":""},{"$f":"IFERROR(VLOOKUP(B940,[2]Sheet4!$F$2:$J$364,3,FALSE),\"\")","v":""},{"$f":"IFERROR(VLOOKUP(B940,[2]Sheet4!$F$2:$J$364,4,FALSE),\"\")","v":""},{"$f":"IFERROR(VLOOKUP(B940,[2]Sheet4!$F$2:$J$364,5,FALSE),\"\")","v":""}]
[null,null,{"$f":"IFERROR(VLOOKUP(B941,[2]Sheet4!$F$2:$J$364,2,FALSE),\"\")","v":""},{"$f":"IFERROR(VLOOKUP(B941,[2]Sheet4!$F$2:$J$364,3,FALSE),\"\")","v":""},{"$f":"IFERROR(VLOOKUP(B941,[2]Sheet4!$F$2:$J$364,4,FALSE),\"\")","v":""},{"$f":"IFERROR(VLOOKUP(B941,[2]Sheet4!$F$2:$J$364,5,FALSE),\"\")","v":""}]
[null,null,{"$f":"IFERROR(VLOOKUP(B942,[2]Sheet4!$F$2:$J$364,2,FALSE),\"\")","v":""},{"$f":"IFERROR(VLOOKUP(B942,[2]Sheet4!$F$2:$J$364,3,FALSE),\"\")","v":""},{"$f":"IFERROR(VLOOKUP(B942,[2]Sheet4!$F$2:$J$364,4,FALSE),\"\")","v":""},{"$f":"IFERROR(VLOOKUP(B942,[2]Sheet4!$F$2:$J$364,5,FALSE),\"\")","v":""}]
[null,null,{"$f":"IFERROR(VLOOKUP(B943,[2]Sheet4!$F$2:$J$364,2,FALSE),\"\")","v":""},{"$f":"IFERROR(VLOOKUP(B943,[2]Sheet4!$F$2:$J$364,3,FALSE),\"\")","v":""},{"$f":"IFERROR(VLOOKUP(B943,[2]Sheet4!$F$2:$J$364,4,FALSE),\"\")","v":""},{"$f":"IFERROR(VLOOKUP(B943,[2]Sheet4!$F$2:$J$364,5,FALSE),\"\")","v":""}]
[null,null,{"$f":"IFERROR(VLOOKUP(B944,[2]Sheet4!$F$2:$J$364,2,FALSE),\"\")","v":""},{"$f":"IFERROR(VLOOKUP(B944,[2]Sheet4!$F$2:$J$364,3,FALSE),\"\")","v":""},{"$f":"IFERROR(VLOOKUP(B944,[2]Sheet4!$F$2:$J$364,4,FALSE),\"\")","v":""},{"$f":"IFERROR(VLOOKUP(B944,[2]Sheet4!$F$2:$J$364,5,FALSE),\"\")","v":""}]
[null,null,{"$f":"IFERROR(VLOOKUP(B945,[2]Sheet4!$F$2:$J$364,2,FALSE),\"\")","v":""},{"$f":"IFERROR(VLOOKUP(B945,[2]Sheet4!$F$2:$J$364,3,FALSE),\"\")","v":""},{"$f":"IFERROR(VLOOKUP(B945,[2]Sheet4!$F$2:$J$364,4,FALSE),\"\")","v":""},{"$f":"IFERROR(VLOOKUP(B945,[2]Sheet4!$F$2:$J$364,5,FALSE),\"\")","v":""}]
[null,null,{"$f":"IFERROR(VLOOKUP(B946,[2]Sheet4!$F$2:$J$364,2,FALSE),\"\")","v":""},{"$f":"IFERROR(VLOOKUP(B946,[2]Sheet4!$F$2:$J$364,3,FALSE),\"\")","v":""},{"$f":"IFERROR(VLOOKUP(B946,[2]Sheet4!$F$2:$J$364,4,FALSE),\"\")","v":""},{"$f":"IFERROR(VLOOKUP(B946,[2]Sheet4!$F$2:$J$364,5,FALSE),\"\")","v":""}]
[null,null,{"$f":"IFERROR(VLOOKUP(B947,[2]Sheet4!$F$2:$J$364,2,FALSE),\"\")","v":""},{"$f":"IFERROR(VLOOKUP(B947,[2]Sheet4!$F$2:$J$364,3,FALSE),\"\")","v":""},{"$f":"IFERROR(VLOOKUP(B947,[2]Sheet4!$F$2:$J$364,4,FALSE),\"\")","v":""},{"$f":"IFERROR(VLOOKUP(B947,[2]Sheet4!$F$2:$J$364,5,FALSE),\"\")","v":""}]
[null,null,{"$f":"IFERROR(VLOOKUP(B948,[2]Sheet4!$F$2:$J$364,2,FALSE),\"\")","v":""},{"$f":"IFERROR(VLOOKUP(B948,[2]Sheet4!$F$2:$J$364,3,FALSE),\"\")","v":""},{"$f":"IFERROR(VLOOKUP(B948,[2]Sheet4!$F$2:$J$364,4,FALSE),\"\")","v":""},{"$f":"IFERROR(VLOOKUP(B948,[2]Sheet4!$F$2:$J$364,5,FALSE),\"\")","v":""}]
[null,null,{"$f":"IFERROR(VLOOKUP(B949,[2]Sheet4!$F$2:$J$364,2,FALSE),\"\")","v":""},{"$f":"IFERROR(VLOOKUP(B949,[2]Sheet4!$F$2:$J$364,3,FALSE),\"\")","v":""},{"$f":"IFERROR(VLOOKUP(B949,[2]Sheet4!$F$2:$J$364,4,FALSE),\"\")","v":""},{"$f":"IFERROR(VLOOKUP(B949,[2]Sheet4!$F$2:$J$364,5,FALSE),\"\")","v":""}]
[null,null,{"$f":"IFERROR(VLOOKUP(B950,[2]Sheet4!$F$2:$J$364,2,FALSE),\"\")","v":""},{"$f":"IFERROR(VLOOKUP(B950,[2]Sheet4!$F$2:$J$364,3,FALSE),\"\")","v":""},{"$f":"IFERROR(VLOOKUP(B950,[2]Sheet4!$F$2:$J$364,4,FALSE),\"\")","v":""},{"$f":"IFERROR(VLOOKUP(B950,[2]Sheet4!$F$2:$J$364,5,FALSE),\"\")","v":""}]
[null,null,{"$f":"IFERROR(VLOOKUP(B951,[2]Sheet4!$F$2:$J$364,2,FALSE),\"\")","v":""},{"$f":"IFERROR(VLOOKUP(B951,[2]Sheet4!$F$2:$J$364,3,FALSE),\"\")","v":""},{"$f":"IFERROR(VLOOKUP(B951,[2]Sheet4!$F$2:$J$364,4,FALSE),\"\")","v":""},{"$f":"IFERROR(VLOOKUP(B951,[2]Sheet4!$F$2:$J$364,5,FALSE),\"\")","v":""}]
[null,null,{"$f":"IFERROR(VLOOKUP(B952,[2]Sheet4!$F$2:$J$364,2,FALSE),\"\")","v":""},{"$f":"IFERROR(VLOOKUP(B952,[2]Sheet4!$F$2:$J$364,3,FALSE),\"\")","v":""},{"$f":"IFERROR(VLOOKUP(B952,[2]Sheet4!$F$2:$J$364,4,FALSE),\"\")","v":""},{"$f":"IFERROR(VLOOKUP(B952,[2]Sheet4!$F$2:$J$364,5,FALSE),\"\")","v":""}]
[null,null,{"$f":"IFERROR(VLOOKUP(B953,[2]Sheet4!$F$2:$J$364,2,FALSE),\"\")","v":""},{"$f":"IFERROR(VLOOKUP(B953,[2]Sheet4!$F$2:$J$364,3,FALSE),\"\")","v":""},{"$f":"IFERROR(VLOOKUP(B953,[2]Sheet4!$F$2:$J$364,4,FALSE),\"\")","v":""},{"$f":"IFERROR(VLOOKUP(B953,[2]Sheet4!$F$2:$J$364,5,FALSE),\"\")","v":""}]
[null,null,{"$f":"IFERROR(VLOOKUP(B954,[2]Sheet4!$F$2:$J$364,2,FALSE),\"\")","v":""},{"$f":"IFERROR(VLOOKUP(B954,[2]Sheet4!$F$2:$J$364,3,FALSE),\"\")","v":""},{"$f":"IFERROR(VLOOKUP(B954,[2]Sheet4!$F$2:$J$364,4,FALSE),\"\")","v":""},{"$f":"IFERROR(VLOOKUP(B954,[2]Sheet4!$F$2:$J$364,5,FALSE),\"\")","v":""}]
[null,null,{"$f":"IFERROR(VLOOKUP(B955,[2]Sheet4!$F$2:$J$364,2,FALSE),\"\")","v":""},{"$f":"IFERROR(VLOOKUP(B955,[2]Sheet4!$F$2:$J$364,3,FALSE),\"\")","v":""},{"$f":"IFERROR(VLOOKUP(B955,[2]Sheet4!$F$2:$J$364,4,FALSE),\"\")","v":""},{"$f":"IFERROR(VLOOKUP(B955,[2]Sheet4!$F$2:$J$364,5,FALSE),\"\")","v":""}]
[null,null,{"$f":"IFERROR(VLOOKUP(B956,[2]Sheet4!$F$2:$J$364,2,FALSE),\"\")","v":""},{"$f":"IFERROR(VLOOKUP(B956,[2]Sheet4!$F$2:$J$364,3,FALSE),\"\")","v":""},{"$f":"IFERROR(VLOOKUP(B956,[2]Sheet4!$F$2:$J$364,4,FALSE),\"\")","v":""},{"$f":"IFERROR(VLOOKUP(B956,[2]Sheet4!$F$2:$J$364,5,FALSE),\"\")","v":""}]
[null,null,{"$f":"IFERROR(VLOOKUP(B957,[2]Sheet4!$F$2:$J$364,2,FALSE),\"\")","v":""},{"$f":"IFERROR(VLOOKUP(B957,[2]Sheet4!$F$2:$J$364,3,FALSE),\"\")","v":""},{"$f":"IFERROR(VLOOKUP(B957,[2]Sheet4!$F$2:$J$364,4,FALSE),\"\")","v":""},{"$f":"IFERROR(VLOOKUP(B957,[2]Sheet4!$F$2:$J$364,5,FALSE),\"\")","v":""}]
[null,null,{"$f":"IFERROR(VLOOKUP(B958,[2]Sheet4!$F$2:$J$364,2,FALSE),\"\")","v":""},{"$f":"IFERROR(VLOOKUP(B958,[2]Sheet4!$F$2:$J$364,3,FALSE),\"\")","v":""},{"$f":"IFERROR(VLOOKUP(B958,[2]Sheet4!$F$2:$J$364,4,FALSE),\"\")","v":""},{"$f":"IFERROR(VLOOKUP(B958,[2]Sheet4!$F$2:$J$364,5,FALSE),\"\")","v":""}]
[null,null,{"$f":"IFERROR(VLOOKUP(B959,[2]Sheet4!$F$2:$J$364,2,FALSE),\"\")","v":""},{"$f":"IFERROR(VLOOKUP(B959,[2]Sheet4!$F$2:$J$364,3,FALSE),\"\")","v":""},{"$f":"IFERROR(VLOOKUP(B959,[2]Sheet4!$F$2:$J$364,4,FALSE),\"\")","v":""},{"$f":"IFERROR(VLOOKUP(B959,[2]Sheet4!$F$2:$J$364,5,FALSE),\"\")","v":""}]
[null,null,{"$f":"IFERROR(VLOOKUP(B960,[2]Sheet4!$F$2:$J$364,2,FALSE),\"\")","v":""},{"$f":"IFERROR(VLOOKUP(B960,[2]Sheet4!$F$2:$J$364,3,FALSE),\"\")","v":""},{"$f":"IFERROR(VLOOKUP(B960,[2]Sheet4!$F$2:$J$364,4,FALSE),\"\")","v":""},{"$f":"IFERROR(VLOOKUP(B960,[2]Sheet4!$F$2:$J$364,5,FALSE),\"\")","v":""}]
[null,null,{"$f":"IFERROR(VLOOKUP(B961,[2]Sheet4!$F$2:$J$364,2,FALSE),\"\")","v":""},{"$f":"IFERROR(VLOOKUP(B961,[2]Sheet4!$F$2:$J$364,3,FALSE),\"\")","v":""},{"$f":"IFERROR(VLOOKUP(B961,[2]Sheet4!$F$2:$J$364,4,FALSE),\"\")","v":""},{"$f":"IFERROR(VLOOKUP(B961,[2]Sheet4!$F$2:$J$364,5,FALSE),\"\")","v":""}]
[null,null,{"$f":"IFERROR(VLOOKUP(B962,[2]Sheet4!$F$2:$J$364,2,FALSE),\"\")","v":""},{"$f":"IFERROR(VLOOKUP(B962,[2]Sheet4!$F$2:$J$364,3,FALSE),\"\")","v":""},{"$f":"IFERROR(VLOOKUP(B962,[2]Sheet4!$F$2:$J$364,4,FALSE),\"\")","v":""},{"$f":"IFERROR(VLOOKUP(B962,[2]Sheet4!$F$2:$J$364,5,FALSE),\"\")","v":""}]
[null,null,{"$f":"IFERROR(VLOOKUP(B963,[2]Sheet4!$F$2:$J$364,2,FALSE),\"\")","v":""},{"$f":"IFERROR(VLOOKUP(B963,[2]Sheet4!$F$2:$J$364,3,FALSE),\"\")","v":""},{"$f":"IFERROR(VLOOKUP(B963,[2]Sheet4!$F$2:$J$364,4,FALSE),\"\")","v":""},{"$f":"IFERROR(VLOOKUP(B963,[2]Sheet4!$F$2:$J$364,5,FALSE),\"\")","v":""}]
[null,null,{"$f":"IFERROR(VLOOKUP(B964,[2]Sheet4!$F$2:$J$364,2,FALSE),\"\")","v":""},{"$f":"IFERROR(VLOOKUP(B964,[2]Sheet4!$F$2:$J$364,3,FALSE),\"\")","v":""},{"$f":"IFERROR(VLOOKUP(B964,[2]Sheet4!$F$2:$J$364,4,FALSE),\"\")","v":""},{"$f":"IFERROR(VLOOKUP(B964,[2]Sheet4!$F$2:$J$364,5,FALSE),\"\")","v":""}]
[null,null,{"$f":"IFERROR(VLOOKUP(B965,[2]Sheet4!$F$2:$J$364,2,FALSE),\"\")","v":""},{"$f":"IFERROR(VLOOKUP(B965,[2]Sheet4!$F$2:$J$364,3,FALSE),\"\")","v":""},{"$f":"IFERROR(VLOOKUP(B965,[2]Sheet4!$F$2:$J$364,4,FALSE),\"\")","v":""},{"$f":"IFERROR(VLOOKUP(B965,[2]Sheet4!$F$2:$J$364,5,FALSE),\"\")","v":""}]
[null,null,{"$f":"IFERROR(VLOOKUP(B966,[2]Sheet4!$F$2:$J$364,2,FALSE),\"\")","v":""},{"$f":"IFERROR(VLOOKUP(B966,[2]Sheet4!$F$2:$J$364,3,FALSE),\"\")","v":""},{"$f":"IFERROR(VLOOKUP(B966,[2]Sheet4!$F$2:$J$364,4,FALSE),\"\")","v":""},{"$f":"IFERROR(VLOOKUP(B966,[2]Sheet4!$F$2:$J$364,5,FALSE),\"\")","v":""}]
[null,null,{"$f":"IFERROR(VLOOKUP(B967,[2]Sheet4!$F$2:$J$364,2,FALSE),\"\")","v":""},{"$f":"IFERROR(VLOOKUP(B967,[2]Sheet4!$F$2:$J$364,3,FALSE),\"\")","v":""},{"$f":"IFERROR(VLOOKUP(B967,[2]Sheet4!$F$2:$J$364,4,FALSE),\"\")","v":""},{"$f":"IFERROR(VLOOKUP(B967,[2]Sheet4!$F$2:$J$364,5,FALSE),\"\")","v":""}]
[null,null,{"$f":"IFERROR(VLOOKUP(B968,[2]Sheet4!$F$2:$J$364,2,FALSE),\"\")","v":""},{"$f":"IFERROR(VLOOKUP(B968,[2]Sheet4!$F$2:$J$364,3,FALSE),\"\")","v":""},{"$f":"IFERROR(VLOOKUP(B968,[2]Sheet4!$F$2:$J$364,4,FALSE),\"\")","v":""},{"$f":"IFERROR(VLOOKUP(B968,[2]Sheet4!$F$2:$J$364,5,FALSE),\"\")","v":""}]
[null,null,{"$f":"IFERROR(VLOOKUP(B969,[2]Sheet4!$F$2:$J$364,2,FALSE),\"\")","v":""},{"$f":"IFERROR(VLOOKUP(B969,[2]Sheet4!$F$2:$J$364,3,FALSE),\"\")","v":""},{"$f":"IFERROR(VLOOKUP(B969,[2]Sheet4!$F$2:$J$364,4,FALSE),\"\")","v":""},{"$f":"IFERROR(VLOOKUP(B969,[2]Sheet4!$F$2:$J$364,5,FALSE),\"\")","v":""}]
[null,null,{"$f":"IFERROR(VLOOKUP(B970,[2]Sheet4!$F$2:$J$364,2,FALSE),\"\")","v":""},{"$f":"IFERROR(VLOOKUP(B970,[2]Sheet4!$F$2:$J$364,3,FALSE),\"\")","v":""},{"$f":"IFERROR(VLOOKUP(B970,[2]Sheet4!$F$2:$J$364,4,FALSE),\"\")","v":""},{"$f":"IFERROR(VLOOKUP(B970,[2]Sheet4!$F$2:$J$364,5,FALSE),\"\")","v":""}]
[null,null,{"$f":"IFERROR(VLOOKUP(B971,[2]Sheet4!$F$2:$J$364,2,FALSE),\"\")","v":""},{"$f":"IFERROR(VLOOKUP(B971,[2]Sheet4!$F$2:$J$364,3,FALSE),\"\")","v":""},{"$f":"IFERROR(VLOOKUP(B971,[2]Sheet4!$F$2:$J$364,4,FALSE),\"\")","v":""},{"$f":"IFERROR(VLOOKUP(B971,[2]Sheet4!$F$2:$J$364,5,FALSE),\"\")","v":""}]
[null,null,{"$f":"IFERROR(VLOOKUP(B972,[2]Sheet4!$F$2:$J$364,2,FALSE),\"\")","v":""},{"$f":"IFERROR(VLOOKUP(B972,[2]Sheet4!$F$2:$J$364,3,FALSE),\"\")","v":""},{"$f":"IFERROR(VLOOKUP(B972,[2]Sheet4!$F$2:$J$364,4,FALSE),\"\")","v":""},{"$f":"IFERROR(VLOOKUP(B972,[2]Sheet4!$F$2:$J$364,5,FALSE),\"\")","v":""}]
[null,null,{"$f":"IFERROR(VLOOKUP(B973,[2]Sheet4!$F$2:$J$364,2,FALSE),\"\")","v":""},{"$f":"IFERROR(VLOOKUP(B973,[2]Sheet4!$F$2:$J$364,3,FALSE),\"\")","v":""},{"$f":"IFERROR(VLOOKUP(B973,[2]Sheet4!$F$2:$J$364,4,FALSE),\"\")","v":""},{"$f":"IFERROR(VLOOKUP(B973,[2]Sheet4!$F$2:$J$364,5,FALSE),\"\")","v":""}]
[null,null,{"$f":"IFERROR(VLOOKUP(B974,[2]Sheet4!$F$2:$J$364,2,FALSE),\"\")","v":""},{"$f":"IFERROR(VLOOKUP(B974,[2]Sheet4!$F$2:$J$364,3,FALSE),\"\")","v":""},{"$f":"IFERROR(VLOOKUP(B974,[2]Sheet4!$F$2:$J$364,4,FALSE),\"\")","v":""},{"$f":"IFERROR(VLOOKUP(B974,[2]Sheet4!$F$2:$J$364,5,FALSE),\"\")","v":""}]
[null,null,{"$f":"IFERROR(VLOOKUP(B975,[2]Sheet4!$F$2:$J$364,2,FALSE),\"\")","v":""},{"$f":"IFERROR(VLOOKUP(B975,[2]Sheet4!$F$2:$J$364,3,FALSE),\"\")","v":""},{"$f":"IFERROR(VLOOKUP(B975,[2]Sheet4!$F$2:$J$364,4,FALSE),\"\")","v":""},{"$f":"IFERROR(VLOOKUP(B975,[2]Sheet4!$F$2:$J$364,5,FALSE),\"\")","v":""}]
[null,null,{"$f":"IFERROR(VLOOKUP(B976,[2]Sheet4!$F$2:$J$364,2,FALSE),\"\")","v":""},{"$f":"IFERROR(VLOOKUP(B976,[2]Sheet4!$F$2:$J$364,3,FALSE),\"\")","v":""},{"$f":"IFERROR(VLOOKUP(B976,[2]Sheet4!$F$2:$J$364,4,FALSE),\"\")","v":""},{"$f":"IFERROR(VLOOKUP(B976,[2]Sheet4!$F$2:$J$364,5,FALSE),\"\")","v":""}]
[null,null,{"$f":"IFERROR(VLOOKUP(B977,[2]Sheet4!$F$2:$J$364,2,FALSE),\"\")","v":""},{"$f":"IFERROR(VLOOKUP(B977,[2]Sheet4!$F$2:$J$364,3,FALSE),\"\")","v":""},{"$f":"IFERROR(VLOOKUP(B977,[2]Sheet4!$F$2:$J$364,4,FALSE),\"\")","v":""},{"$f":"IFERROR(VLOOKUP(B977,[2]Sheet4!$F$2:$J$364,5,FALSE),\"\")","v":""}]
[null,null,{"$f":"IFERROR(VLOOKUP(B978,[2]Sheet4!$F$2:$J$364,2,FALSE),\"\")","v":""},{"$f":"IFERROR(VLOOKUP(B978,[2]Sheet4!$F$2:$J$364,3,FALSE),\"\")","v":""},{"$f":"IFERROR(VLOOKUP(B978,[2]Sheet4!$F$2:$J$364,4,FALSE),\"\")","v":""},{"$f":"IFERROR(VLOOKUP(B978,[2]Sheet4!$F$2:$J$364,5,FALSE),\"\")","v":""}]
[null,null,{"$f":"IFERROR(VLOOKUP(B979,[2]Sheet4!$F$2:$J$364,2,FALSE),\"\")","v":""},{"$f":"IFERROR(VLOOKUP(B979,[2]Sheet4!$F$2:$J$364,3,FALSE),\"\")","v":""},{"$f":"IFERROR(VLOOKUP(B979,[2]Sheet4!$F$2:$J$364,4,FALSE),\"\")","v":""},{"$f":"IFERROR(VLOOKUP(B979,[2]Sheet4!$F$2:$J$364,5,FALSE),\"\")","v":""}]
[null,null,{"$f":"IFERROR(VLOOKUP(B980,[2]Sheet4!$F$2:$J$364,2,FALSE),\"\")","v":""},{"$f":"IFERROR(VLOOKUP(B980,[2]Sheet4!$F$2:$J$364,3,FALSE),\"\")","v":""},{"$f":"IFERROR(VLOOKUP(B980,[2]Sheet4!$F$2:$J$364,4,FALSE),\"\")","v":""},{"$f":"IFERROR(VLOOKUP(B980,[2]Sheet4!$F$2:$J$364,5,FALSE),\"\")","v":""}]
[null,null,{"$f":"IFERROR(VLOOKUP(B981,[2]Sheet4!$F$2:$J$364,2,FALSE),\"\")","v":""},{"$f":"IFERROR(VLOOKUP(B981,[2]Sheet4!$F$2:$J$364,3,FALSE),\"\")","v":""},{"$f":"IFERROR(VLOOKUP(B981,[2]Sheet4!$F$2:$J$364,4,FALSE),\"\")","v":""},{"$f":"IFERROR(VLOOKUP(B981,[2]Sheet4!$F$2:$J$364,5,FALSE),\"\")","v":""}]
[null,null,{"$f":"IFERROR(VLOOKUP(B982,[2]Sheet4!$F$2:$J$364,2,FALSE),\"\")","v":""},{"$f":"IFERROR(VLOOKUP(B982,[2]Sheet4!$F$2:$J$364,3,FALSE),\"\")","v":""},{"$f":"IFERROR(VLOOKUP(B982,[2]Sheet4!$F$2:$J$364,4,FALSE),\"\")","v":""},{"$f":"IFERROR(VLOOKUP(B982,[2]Sheet4!$F$2:$J$364,5,FALSE),\"\")","v":""}]
[null,null,{"$f":"IFERROR(VLOOKUP(B983,[2]Sheet4!$F$2:$J$364,2,FALSE),\"\")","v":""},{"$f":"IFERROR(VLOOKUP(B983,[2]Sheet4!$F$2:$J$364,3,FALSE),\"\")","v":""},{"$f":"IFERROR(VLOOKUP(B983,[2]Sheet4!$F$2:$J$364,4,FALSE),\"\")","v":""},{"$f":"IFERROR(VLOOKUP(B983,[2]Sheet4!$F$2:$J$364,5,FALSE),\"\")","v":""}]
[null,null,{"$f":"IFERROR(VLOOKUP(B984,[2]Sheet4!$F$2:$J$364,2,FALSE),\"\")","v":""},{"$f":"IFERROR(VLOOKUP(B984,[2]Sheet4!$F$2:$J$364,3,FALSE),\"\")","v":""},{"$f":"IFERROR(VLOOKUP(B984,[2]Sheet4!$F$2:$J$364,4,FALSE),\"\")","v":""},{"$f":"IFERROR(VLOOKUP(B984,[2]Sheet4!$F$2:$J$364,5,FALSE),\"\")","v":""}]
[null,null,{"$f":"IFERROR(VLOOKUP(B985,[2]Sheet4!$F$2:$J$364,2,FALSE),\"\")","v":""},{"$f":"IFERROR(VLOOKUP(B985,[2]Sheet4!$F$2:$J$364,3,FALSE),\"\")","v":""},{"$f":"IFERROR(VLOOKUP(B985,[2]Sheet4!$F$2:$J$364,4,FALSE),\"\")","v":""},{"$f":"IFERROR(VLOOKUP(B985,[2]Sheet4!$F$2:$J$364,5,FALSE),\"\")","v":""}]
[null,null,{"$f":"IFERROR(VLOOKUP(B986,[2]Sheet4!$F$2:$J$364,2,FALSE),\"\")","v":""},{"$f":"IFERROR(VLOOKUP(B986,[2]Sheet4!$F$2:$J$364,3,FALSE),\"\")","v":""},{"$f":"IFERROR(VLOOKUP(B986,[2]Sheet4!$F$2:$J$364,4,FALSE),\"\")","v":""},{"$f":"IFERROR(VLOOKUP(B986,[2]Sheet4!$F$2:$J$364,5,FALSE),\"\")","v":""}]
[null,null,{"$f":"IFERROR(VLOOKUP(B987,[2]Sheet4!$F$2:$J$364,2,FALSE),\"\")","v":""},{"$f":"IFERROR(VLOOKUP(B987,[2]Sheet4!$F$2:$J$364,3,FALSE),\"\")","v":""},{"$f":"IFERROR(VLOOKUP(B987,[2]Sheet4!$F$2:$J$364,4,FALSE),\"\")","v":""},{"$f":"IFERROR(VLOOKUP(B987,[2]Sheet4!$F$2:$J$364,5,FALSE),\"\")","v":""}]
[null,null,{"$f":"IFERROR(VLOOKUP(B988,[2]Sheet4!$F$2:$J$364,2,FALSE),\"\")","v":""},{"$f":"IFERROR(VLOOKUP(B988,[2]Sheet4!$F$2:$J$364,3,FALSE),\"\")","v":""},{"$f":"IFERROR(VLOOKUP(B988,[2]Sheet4!$F$2:$J$364,4,FALSE),\"\")","v":""},{"$f":"IFERROR(VLOOKUP(B988,[2]Sheet4!$F$2:$J$364,5,FALSE),\"\")","v":""}]
[null,null,{"$f":"IFERROR(VLOOKUP(B989,[2]Sheet4!$F$2:$J$364,2,FALSE),\"\")","v":""},{"$f":"IFERROR(VLOOKUP(B989,[2]Sheet4!$F$2:$J$364,3,FALSE),\"\")","v":""},{"$f":"IFERROR(VLOOKUP(B989,[2]Sheet4!$F$2:$J$364,4,FALSE),\"\")","v":""},{"$f":"IFERROR(VLOOKUP(B989,[2]Sheet4!$F$2:$J$364,5,FALSE),\"\")","v":""}]
[null,null,{"$f":"IFERROR(VLOOKUP(B990,[2]Sheet4!$F$2:$J$364,2,FALSE),\"\")","v":""},{"$f":"IFERROR(VLOOKUP(B990,[2]Sheet4!$F$2:$J$364,3,FALSE),\"\")","v":""},{"$f":"IFERROR(VLOOKUP(B990,[2]Sheet4!$F$2:$J$364,4,FALSE),\"\")","v":""},{"$f":"IFERROR(VLOOKUP(B990,[2]Sheet4!$F$2:$J$364,5,FALSE),\"\")","v":""}]
[null,null,{"$f":"IFERROR(VLOOKUP(B991,[2]Sheet4!$F$2:$J$364,2,FALSE),\"\")","v":""},{"$f":"IFERROR(VLOOKUP(B991,[2]Sheet4!$F$2:$J$364,3,FALSE),\"\")","v":""},{"$f":"IFERROR(VLOOKUP(B991,[2]Sheet4!$F$2:$J$364,4,FALSE),\"\")","v":""},{"$f":"IFERROR(VLOOKUP(B991,[2]Sheet4!$F$2:$J$364,5,FALSE),\"\")","v":""}]
[null,null,{"$f":"IFERROR(VLOOKUP(B992,[2]Sheet4!$F$2:$J$364,2,FALSE),\"\")","v":""},{"$f":"IFERROR(VLOOKUP(B992,[2]Sheet4!$F$2:$J$364,3,FALSE),\"\")","v":""},{"$f":"IFERROR(VLOOKUP(B992,[2]Sheet4!$F$2:$J$364,4,FALSE),\"\")","v":""},{"$f":"IFERROR(VLOOKUP(B992,[2]Sheet4!$F$2:$J$364,5,FALSE),\"\")","v":""}]
[null,null,{"$f":"IFERROR(VLOOKUP(B993,[2]Sheet4!$F$2:$J$364,2,FALSE),\"\")","v":""},{"$f":"IFERROR(VLOOKUP(B993,[2]Sheet4!$F$2:$J$364,3,FALSE),\"\")","v":""},{"$f":"IFERROR(VLOOKUP(B993,[2]Sheet4!$F$2:$J$364,4,FALSE),\"\")","v":""},{"$f":"IFERROR(VLOOKUP(B993,[2]Sheet4!$F$2:$J$364,5,FALSE),\"\")","v":""}]
[null,null,{"$f":"IFERROR(VLOOKUP(B994,[2]Sheet4!$F$2:$J$364,2,FALSE),\"\")","v":""},{"$f":"IFERROR(VLOOKUP(B994,[2]Sheet4!$F$2:$J$364,3,FALSE),\"\")","v":""},{"$f":"IFERROR(VLOOKUP(B994,[2]Sheet4!$F$2:$J$364,4,FALSE),\"\")","v":""},{"$f":"IFERROR(VLOOKUP(B994,[2]Sheet4!$F$2:$J$364,5,FALSE),\"\")","v":""}]
[null,null,{"$f":"IFERROR(VLOOKUP(B995,[2]Sheet4!$F$2:$J$364,2,FALSE),\"\")","v":""},{"$f":"IFERROR(VLOOKUP(B995,[2]Sheet4!$F$2:$J$364,3,FALSE),\"\")","v":""},{"$f":"IFERROR(VLOOKUP(B995,[2]Sheet4!$F$2:$J$364,4,FALSE),\"\")","v":""},{"$f":"IFERROR(VLOOKUP(B995,[2]Sheet4!$F$2:$J$364,5,FALSE),\"\")","v":""}]
[null,null,{"$f":"IFERROR(VLOOKUP(B996,[2]Sheet4!$F$2:$J$364,2,FALSE),\"\")","v":""},{"$f":"IFERROR(VLOOKUP(B996,[2]Sheet4!$F$2:$J$364,3,FALSE),\"\")","v":""},{"$f":"IFERROR(VLOOKUP(B996,[2]Sheet4!$F$2:$J$364,4,FALSE),\"\")","v":""},{"$f":"IFERROR(VLOOKUP(B996,[2]Sheet4!$F$2:$J$364,5,FALSE),\"\")","v":""}]
[null,null,{"$f":"IFERROR(VLOOKUP(B997,[2]Sheet4!$F$2:$J$364,2,FALSE),\"\")","v":""},{"$f":"IFERROR(VLOOKUP(B997,[2]Sheet4!$F$2:$J$364,3,FALSE),\"\")","v":""},{"$f":"IFERROR(VLOOKUP(B997,[2]Sheet4!$F$2:$J$364,4,FALSE),\"\")","v":""},{"$f":"IFERROR(VLOOKUP(B997,[2]Sheet4!$F$2:$J$364,5,FALSE),\"\")","v":""}]
[null,null,{"$f":"IFERROR(VLOOKUP(B998,[2]Sheet4!$F$2:$J$364,2,FALSE),\"\")","v":""},{"$f":"IFERROR(VLOOKUP(B998,[2]Sheet4!$F$2:$J$364,3,FALSE),\"\")","v":""},{"$f":"IFERROR(VLOOKUP(B998,[2]Sheet4!$F$2:$J$364,4,FALSE),\"\")","v":""},{"$f":"IFERROR(VLOOKUP(B998,[2]Sheet4!$F$2:$J$364,5,FALSE),\"\")","v":""}]
[null,null,{"$f":"IFERROR(VLOOKUP(B999,[2]Sheet4!$F$2:$J$364,2,FALSE),\"\")","v":""},{"$f":"IFERROR(VLOOKUP(B999,[2]Sheet4!$F$2:$J$364,3,FALSE),\"\")","v":""},{"$f":"IFERROR(VLOOKUP(B999,[2]Sheet4!$F$2:$J$364,4,FALSE),\"\")","v":""},{"$f":"IFERROR(VLOOKUP(B999,[2]Sheet4!$F$2:$J$364,5,FALSE),\"\")","v":""}]
[null,null,{"$f":"IFERROR(VLOOKUP(B1000,[2]Sheet4!$F$2:$J$364,2,FALSE),\"\")","v":""},{"$f":"IFERROR(VLOOKUP(B1000,[2]Sheet4!$F$2:$J$364,3,FALSE),\"\")","v":""},{"$f":"IFERROR(VLOOKUP(B1000,[2]Sheet4!$F$2:$J$364,4,FALSE),\"\")","v":""},{"$f":"IFERROR(VLOOKUP(B1000,[2]Sheet4!$F$2:$J$364,5,FALSE),\"\")","v":""}]
[null,null,{"$f":"IFERROR(VLOOKUP(B1001,[2]Sheet4!$F$2:$J$364,2,FALSE),\"\")","v":""},{"$f":"IFERROR(VLOOKUP(B1001,[2]Sheet4!$F$2:$J$364,3,FALSE),\"\")","v":""},{"$f":"IFERROR(VLOOKUP(B1001,[2]Sheet4!$F$2:$J$364,4,FALSE),\"\")","v":""},{"$f":"IFERROR(VLOOKUP(B1001,[2]Sheet4!$F$2:$J$364,5,FALSE),\"\")","v":""}]
[null,null,{"$f":"IFERROR(VLOOKUP(B1002,[2]Sheet4!$F$2:$J$364,2,FALSE),\"\")","v":""},{"$f":"IFERROR(VLOOKUP(B1002,[2]Sheet4!$F$2:$J$364,3,FALSE),\"\")","v":""},{"$f":"IFERROR(VLOOKUP(B1002,[2]Sheet4!$F$2:$J$364,4,FALSE),\"\")","v":""},{"$f":"IFERROR(VLOOKUP(B1002,[2]Sheet4!$F$2:$J$364,5,FALSE),\"\")","v":""}]
[null,null,{"$f":"IFERROR(VLOOKUP(B1003,[2]Sheet4!$F$2:$J$364,2,FALSE),\"\")","v":""},{"$f":"IFERROR(VLOOKUP(B1003,[2]Sheet4!$F$2:$J$364,3,FALSE),\"\")","v":""},{"$f":"IFERROR(VLOOKUP(B1003,[2]Sheet4!$F$2:$J$364,4,FALSE),\"\")","v":""},{"$f":"IFERROR(VLOOKUP(B1003,[2]Sheet4!$F$2:$J$364,5,FALSE),\"\")","v":""}]
[null,null,{"$f":"IFERROR(VLOOKUP(B1004,[2]Sheet4!$F$2:$J$364,2,FALSE),\"\")","v":""},{"$f":"IFERROR(VLOOKUP(B1004,[2]Sheet4!$F$2:$J$364,3,FALSE),\"\")","v":""},{"$f":"IFERROR(VLOOKUP(B1004,[2]Sheet4!$F$2:$J$364,4,FALSE),\"\")","v":""},{"$f":"IFERROR(VLOOKUP(B1004,[2]Sheet4!$F$2:$J$364,5,FALSE),\"\")","v":""}]
[null,null,{"$f":"IFERROR(VLOOKUP(B1005,[2]Sheet4!$F$2:$J$364,2,FALSE),\"\")","v":""},{"$f":"IFERROR(VLOOKUP(B1005,[2]Sheet4!$F$2:$J$364,3,FALSE),\"\")","v":""},{"$f":"IFERROR(VLOOKUP(B1005,[2]Sheet4!$F$2:$J$364,4,FALSE),\"\")","v":""},{"$f":"IFERROR(VLOOKUP(B1005,[2]Sheet4!$F$2:$J$364,5,FALSE),\"\")","v":""}]
[null,null,{"$f":"IFERROR(VLOOKUP(B1006,[2]Sheet4!$F$2:$J$364,2,FALSE),\"\")","v":""},{"$f":"IFERROR(VLOOKUP(B1006,[2]Sheet4!$F$2:$J$364,3,FALSE),\"\")","v":""},{"$f":"IFERROR(VLOOKUP(B1006,[2]Sheet4!$F$2:$J$364,4,FALSE),\"\")","v":""},{"$f":"IFERROR(VLOOKUP(B1006,[2]Sheet4!$F$2:$J$364,5,FALSE),\"\")","v":""}]
[null,null,{"$f":"IFERROR(VLOOKUP(B1007,[2]Sheet4!$F$2:$J$364,2,FALSE),\"\")","v":""},{"$f":"IFERROR(VLOOKUP(B1007,[2]Sheet4!$F$2:$J$364,3,FALSE),\"\")","v":""},{"$f":"IFERROR(VLOOKUP(B1007,[2]Sheet4!$F$2:$J$364,4,FALSE),\"\")","v":""},{"$f":"IFERROR(VLOOKUP(B1007,[2]Sheet4!$F$2:$J$364,5,FALSE),\"\")","v":""}]
[null,null,{"$f":"IFERROR(VLOOKUP(B1008,[2]Sheet4!$F$2:$J$364,2,FALSE),\"\")","v":""},{"$f":"IFERROR(VLOOKUP(B1008,[2]Sheet4!$F$2:$J$364,3,FALSE),\"\")","v":""},{"$f":"IFERROR(VLOOKUP(B1008,[2]Sheet4!$F$2:$J$364,4,FALSE),\"\")","v":""},{"$f":"IFERROR(VLOOKUP(B1008,[2]Sheet4!$F$2:$J$364,5,FALSE),\"\")","v":""}]
[null,null,{"$f":"IFERROR(VLOOKUP(B1009,[2]Sheet4!$F$2:$J$364,2,FALSE),\"\")","v":""},{"$f":"IFERROR(VLOOKUP(B1009,[2]Sheet4!$F$2:$J$364,3,FALSE),\"\")","v":""},{"$f":"IFERROR(VLOOKUP(B1009,[2]Sheet4!$F$2:$J$364,4,FALSE),\"\")","v":""},{"$f":"IFERROR(VLOOKUP(B1009,[2]Sheet4!$F$2:$J$364,5,FALSE),\"\")","v":""}]
[null,null,{"$f":"IFERROR(VLOOKUP(B1010,[2]Sheet4!$F$2:$J$364,2,FALSE),\"\")","v":""},{"$f":"IFERROR(VLOOKUP(B1010,[2]Sheet4!$F$2:$J$364,3,FALSE),\"\")","v":""},{"$f":"IFERROR(VLOOKUP(B1010,[2]Sheet4!$F$2:$J$364,4,FALSE),\"\")","v":""},{"$f":"IFERROR(VLOOKUP(B1010,[2]Sheet4!$F$2:$J$364,5,FALSE),\"\")","v":""}]
[null,null,{"$f":"IFERROR(VLOOKUP(B1011,[2]Sheet4!$F$2:$J$364,2,FALSE),\"\")","v":""},{"$f":"IFERROR(VLOOKUP(B1011,[2]Sheet4!$F$2:$J$364,3,FALSE),\"\")","v":""},{"$f":"IFERROR(VLOOKUP(B1011,[2]Sheet4!$F$2:$J$364,4,FALSE),\"\")","v":""},{"$f":"IFERROR(VLOOKUP(B1011,[2]Sheet4!$F$2:$J$364,5,FALSE),\"\")","v":""}]
[null,null,{"$f":"IFERROR(VLOOKUP(B1012,[2]Sheet4!$F$2:$J$364,2,FALSE),\"\")","v":""},{"$f":"IFERROR(VLOOKUP(B1012,[2]Sheet4!$F$2:$J$364,3,FALSE),\"\")","v":""},{"$f":"IFERROR(VLOOKUP(B1012,[2]Sheet4!$F$2:$J$364,4,FALSE),\"\")","v":""},{"$f":"IFERROR(VLOOKUP(B1012,[2]Sheet4!$F$2:$J$364,5,FALSE),\"\")","v":""}]
[null,null,{"$f":"IFERROR(VLOOKUP(B1013,[2]Sheet4!$F$2:$J$364,2,FALSE),\"\")","v":""},{"$f":"IFERROR(VLOOKUP(B1013,[2]Sheet4!$F$2:$J$364,3,FALSE),\"\")","v":""},{"$f":"IFERROR(VLOOKUP(B1013,[2]Sheet4!$F$2:$J$364,4,FALSE),\"\")","v":""},{"$f":"IFERROR(VLOOKUP(B1013,[2]Sheet4!$F$2:$J$364,5,FALSE),\"\")","v":""}]
[null,null,{"$f":"IFERROR(VLOOKUP(B1014,[2]Sheet4!$F$2:$J$364,2,FALSE),\"\")","v":""},{"$f":"IFERROR(VLOOKUP(B1014,[2]Sheet4!$F$2:$J$364,3,FALSE),\"\")","v":""},{"$f":"IFERROR(VLOOKUP(B1014,[2]Sheet4!$F$2:$J$364,4,FALSE),\"\")","v":""},{"$f":"IFERROR(VLOOKUP(B1014,[2]Sheet4!$F$2:$J$364,5,FALSE),\"\")","v":""}]
[null,null,{"$f":"IFERROR(VLOOKUP(B1015,[2]Sheet4!$F$2:$J$364,2,FALSE),\"\")","v":""},{"$f":"IFERROR(VLOOKUP(B1015,[2]Sheet4!$F$2:$J$364,3,FALSE),\"\")","v":""},{"$f":"IFERROR(VLOOKUP(B1015,[2]Sheet4!$F$2:$J$364,4,FALSE),\"\")","v":""},{"$f":"IFERROR(VLOOKUP(B1015,[2]Sheet4!$F$2:$J$364,5,FALSE),\"\")","v":""}]
[null,null,{"$f":"IFERROR(VLOOKUP(B1016,[2]Sheet4!$F$2:$J$364,2,FALSE),\"\")","v":""},{"$f":"IFERROR(VLOOKUP(B1016,[2]Sheet4!$F$2:$J$364,3,FALSE),\"\")","v":""},{"$f":"IFERROR(VLOOKUP(B1016,[2]Sheet4!$F$2:$J$364,4,FALSE),\"\")","v":""},{"$f":"IFERROR(VLOOKUP(B1016,[2]Sheet4!$F$2:$J$364,5,FALSE),\"\")","v":""}]
[null,null,{"$f":"IFERROR(VLOOKUP(B1017,[2]Sheet4!$F$2:$J$364,2,FALSE),\"\")","v":""},{"$f":"IFERROR(VLOOKUP(B1017,[2]Sheet4!$F$2:$J$364,3,FALSE),\"\")","v":""},{"$f":"IFERROR(VLOOKUP(B1017,[2]Sheet4!$F$2:$J$364,4,FALSE),\"\")","v":""},{"$f":"IFERROR(VLOOKUP(B1017,[2]Sheet4!$F$2:$J$364,5,FALSE),\"\")","v":""}]
[null,null,{"$f":"IFERROR(VLOOKUP(B1018,[2]Sheet4!$F$2:$J$364,2,FALSE),\"\")","v":""},{"$f":"IFERROR(VLOOKUP(B1018,[2]Sheet4!$F$2:$J$364,3,FALSE),\"\")","v":""},{"$f":"IFERROR(VLOOKUP(B1018,[2]Sheet4!$F$2:$J$364,4,FALSE),\"\")","v":""},{"$f":"IFERROR(VLOOKUP(B1018,[2]Sheet4!$F$2:$J$364,5,FALSE),\"\")","v":""}]
[null,null,{"$f":"IFERROR(VLOOKUP(B1019,[2]Sheet4!$F$2:$J$364,2,FALSE),\"\")","v":""},{"$f":"IFERROR(VLOOKUP(B1019,[2]Sheet4!$F$2:$J$364,3,FALSE),\"\")","v":""},{"$f":"IFERROR(VLOOKUP(B1019,[2]Sheet4!$F$2:$J$364,4,FALSE),\"\")","v":""},{"$f":"IFERROR(VLOOKUP(B1019,[2]Sheet4!$F$2:$J$364,5,FALSE),\"\")","v":""}]
[null,null,{"$f":"IFERROR(VLOOKUP(B1020,[2]Sheet4!$F$2:$J$364,2,FALSE),\"\")","v":""},{"$f":"IFERROR(VLOOKUP(B1020,[2]Sheet4!$F$2:$J$364,3,FALSE),\"\")","v":""},{"$f":"IFERROR(VLOOKUP(B1020,[2]Sheet4!$F$2:$J$364,4,FALSE),\"\")","v":""},{"$f":"IFERROR(VLOOKUP(B1020,[2]Sheet4!$F$2:$J$364,5,FALSE),\"\")","v":""}]
[null,null,{"$f":"IFERROR(VLOOKUP(B1021,[2]Sheet4!$F$2:$J$364,2,FALSE),\"\")","v":""},{"$f":"IFERROR(VLOOKUP(B1021,[2]Sheet4!$F$2:$J$364,3,FALSE),\"\")","v":""},{"$f":"IFERROR(VLOOKUP(B1021,[2]Sheet4!$F$2:$J$364,4,FALSE),\"\")","v":""},{"$f":"IFERROR(VLOOKUP(B1021,[2]Sheet4!$F$2:$J$364,5,FALSE),\"\")","v":""}]
[null,null,{"$f":"IFERROR(VLOOKUP(B1022,[2]Sheet4!$F$2:$J$364,2,FALSE),\"\")","v":""},{"$f":"IFERROR(VLOOKUP(B1022,[2]Sheet4!$F$2:$J$364,3,FALSE),\"\")","v":""},{"$f":"IFERROR(VLOOKUP(B1022,[2]Sheet4!$F$2:$J$364,4,FALSE),\"\")","v":""},{"$f":"IFERROR(VLOOKUP(B1022,[2]Sheet4!$F$2:$J$364,5,FALSE),\"\")","v":""}]
[null,null,{"$f":"IFERROR(VLOOKUP(B1023,[2]Sheet4!$F$2:$J$364,2,FALSE),\"\")","v":""},{"$f":"IFERROR(VLOOKUP(B1023,[2]Sheet4!$F$2:$J$364,3,FALSE),\"\")","v":""},{"$f":"IFERROR(VLOOKUP(B1023,[2]Sheet4!$F$2:$J$364,4,FALSE),\"\")","v":""},{"$f":"IFERROR(VLOOKUP(B1023,[2]Sheet4!$F$2:$J$364,5,FALSE),\"\")","v":""}]
[null,null,{"$f":"IFERROR(VLOOKUP(B1024,[2]Sheet4!$F$2:$J$364,2,FALSE),\"\")","v":""},{"$f":"IFERROR(VLOOKUP(B1024,[2]Sheet4!$F$2:$J$364,3,FALSE),\"\")","v":""},{"$f":"IFERROR(VLOOKUP(B1024,[2]Sheet4!$F$2:$J$364,4,FALSE),\"\")","v":""},{"$f":"IFERROR(VLOOKUP(B1024,[2]Sheet4!$F$2:$J$364,5,FALSE),\"\")","v":""}]
[null,null,{"$f":"IFERROR(VLOOKUP(B1025,[2]Sheet4!$F$2:$J$364,2,FALSE),\"\")","v":""},{"$f":"IFERROR(VLOOKUP(B1025,[2]Sheet4!$F$2:$J$364,3,FALSE),\"\")","v":""},{"$f":"IFERROR(VLOOKUP(B1025,[2]Sheet4!$F$2:$J$364,4,FALSE),\"\")","v":""},{"$f":"IFERROR(VLOOKUP(B1025,[2]Sheet4!$F$2:$J$364,5,FALSE),\"\")","v":""}]
[null,null,{"$f":"IFERROR(VLOOKUP(B1026,[2]Sheet4!$F$2:$J$364,2,FALSE),\"\")","v":""},{"$f":"IFERROR(VLOOKUP(B1026,[2]Sheet4!$F$2:$J$364,3,FALSE),\"\")","v":""},{"$f":"IFERROR(VLOOKUP(B1026,[2]Sheet4!$F$2:$J$364,4,FALSE),\"\")","v":""},{"$f":"IFERROR(VLOOKUP(B1026,[2]Sheet4!$F$2:$J$364,5,FALSE),\"\")","v":""}]
[null,null,{"$f":"IFERROR(VLOOKUP(B1027,[2]Sheet4!$F$2:$J$364,2,FALSE),\"\")","v":""},{"$f":"IFERROR(VLOOKUP(B1027,[2]Sheet4!$F$2:$J$364,3,FALSE),\"\")","v":""},{"$f":"IFERROR(VLOOKUP(B1027,[2]Sheet4!$F$2:$J$364,4,FALSE),\"\")","v":""},{"$f":"IFERROR(VLOOKUP(B1027,[2]Sheet4!$F$2:$J$364,5,FALSE),\"\")","v":""}]
[null,null,{"$f":"IFERROR(VLOOKUP(B1028,[2]Sheet4!$F$2:$J$364,2,FALSE),\"\")","v":""},{"$f":"IFERROR(VLOOKUP(B1028,[2]Sheet4!$F$2:$J$364,3,FALSE),\"\")","v":""},{"$f":"IFERROR(VLOOKUP(B1028,[2]Sheet4!$F$2:$J$364,4,FALSE),\"\")","v":""},{"$f":"IFERROR(VLOOKUP(B1028,[2]Sheet4!$F$2:$J$364,5,FALSE),\"\")","v":""}]
[null,null,{"$f":"IFERROR(VLOOKUP(B1029,[2]Sheet4!$F$2:$J$364,2,FALSE),\"\")","v":""},{"$f":"IFERROR(VLOOKUP(B1029,[2]Sheet4!$F$2:$J$364,3,FALSE),\"\")","v":""},{"$f":"IFERROR(VLOOKUP(B1029,[2]Sheet4!$F$2:$J$364,4,FALSE),\"\")","v":""},{"$f":"IFERROR(VLOOKUP(B1029,[2]Sheet4!$F$2:$J$364,5,FALSE),\"\")","v":""}]
[null,null,{"$f":"IFERROR(VLOOKUP(B1030,[2]Sheet4!$F$2:$J$364,2,FALSE),\"\")","v":""},{"$f":"IFERROR(VLOOKUP(B1030,[2]Sheet4!$F$2:$J$364,3,FALSE),\"\")","v":""},{"$f":"IFERROR(VLOOKUP(B1030,[2]Sheet4!$F$2:$J$364,4,FALSE),\"\")","v":""},{"$f":"IFERROR(VLOOKUP(B1030,[2]Sheet4!$F$2:$J$364,5,FALSE),\"\")","v":""}]
[null,null,{"$f":"IFERROR(VLOOKUP(B1031,[2]Sheet4!$F$2:$J$364,2,FALSE),\"\")","v":""},{"$f":"IFERROR(VLOOKUP(B1031,[2]Sheet4!$F$2:$J$364,3,FALSE),\"\")","v":""},{"$f":"IFERROR(VLOOKUP(B1031,[2]Sheet4!$F$2:$J$364,4,FALSE),\"\")","v":""},{"$f":"IFERROR(VLOOKUP(B1031,[2]Sheet4!$F$2:$J$364,5,FALSE),\"\")","v":""}]
[null,null,{"$f":"IFERROR(VLOOKUP(B1032,[2]Sheet4!$F$2:$J$364,2,FALSE),\"\")","v":""},{"$f":"IFERROR(VLOOKUP(B1032,[2]Sheet4!$F$2:$J$364,3,FALSE),\"\")","v":""},{"$f":"IFERROR(VLOOKUP(B1032,[2]Sheet4!$F$2:$J$364,4,FALSE),\"\")","v":""},{"$f":"IFERROR(VLOOKUP(B1032,[2]Sheet4!$F$2:$J$364,5,FALSE),\"\")","v":""}]
[null,null,{"$f":"IFERROR(VLOOKUP(B1033,[2]Sheet4!$F$2:$J$364,2,FALSE),\"\")","v":""},{"$f":"IFERROR(VLOOKUP(B1033,[2]Sheet4!$F$2:$J$364,3,FALSE),\"\")","v":""},{"$f":"IFERROR(VLOOKUP(B1033,[2]Sheet4!$F$2:$J$364,4,FALSE),\"\")","v":""},{"$f":"IFERROR(VLOOKUP(B1033,[2]Sheet4!$F$2:$J$364,5,FALSE),\"\")","v":""}]
[null,null,{"$f":"IFERROR(VLOOKUP(B1034,[2]Sheet4!$F$2:$J$364,2,FALSE),\"\")","v":""},{"$f":"IFERROR(VLOOKUP(B1034,[2]Sheet4!$F$2:$J$364,3,FALSE),\"\")","v":""},{"$f":"IFERROR(VLOOKUP(B1034,[2]Sheet4!$F$2:$J$364,4,FALSE),\"\")","v":""},{"$f":"IFERROR(VLOOKUP(B1034,[2]Sheet4!$F$2:$J$364,5,FALSE),\"\")","v":""}]
[null,null,{"$f":"IFERROR(VLOOKUP(B1035,[2]Sheet4!$F$2:$J$364,2,FALSE),\"\")","v":""},{"$f":"IFERROR(VLOOKUP(B1035,[2]Sheet4!$F$2:$J$364,3,FALSE),\"\")","v":""},{"$f":"IFERROR(VLOOKUP(B1035,[2]Sheet4!$F$2:$J$364,4,FALSE),\"\")","v":""},{"$f":"IFERROR(VLOOKUP(B1035,[2]Sheet4!$F$2:$J$364,5,FALSE),\"\")","v":""}]
[null,null,{"$f":"IFERROR(VLOOKUP(B1036,[2]Sheet4!$F$2:$J$364,2,FALSE),\"\")","v":""},{"$f":"IFERROR(VLOOKUP(B1036,[2]Sheet4!$F$2:$J$364,3,FALSE),\"\")","v":""},{"$f":"IFERROR(VLOOKUP(B1036,[2]Sheet4!$F$2:$J$364,4,FALSE),\"\")","v":""},{"$f":"IFERROR(VLOOKUP(B1036,[2]Sheet4!$F$2:$J$364,5,FALSE),\"\")","v":""}]
[null,null,{"$f":"IFERROR(VLOOKUP(B1037,[2]Sheet4!$F$2:$J$364,2,FALSE),\"\")","v":""},{"$f":"IFERROR(VLOOKUP(B1037,[2]Sheet4!$F$2:$J$364,3,FALSE),\"\")","v":""},{"$f":"IFERROR(VLOOKUP(B1037,[2]Sheet4!$F$2:$J$364,4,FALSE),\"\")","v":""},{"$f":"IFERROR(VLOOKUP(B1037,[2]Sheet4!$F$2:$J$364,5,FALSE),\"\")","v":""}]
[null,null,{"$f":"IFERROR(VLOOKUP(B1038,[2]Sheet4!$F$2:$J$364,2,FALSE),\"\")","v":""},{"$f":"IFERROR(VLOOKUP(B1038,[2]Sheet4!$F$2:$J$364,3,FALSE),\"\")","v":""},{"$f":"IFERROR(VLOOKUP(B1038,[2]Sheet4!$F$2:$J$364,4,FALSE),\"\")","v":""},{"$f":"IFERROR(VLOOKUP(B1038,[2]Sheet4!$F$2:$J$364,5,FALSE),\"\")","v":""}]
[null,null,{"$f":"IFERROR(VLOOKUP(B1039,[2]Sheet4!$F$2:$J$364,2,FALSE),\"\")","v":""},{"$f":"IFERROR(VLOOKUP(B1039,[2]Sheet4!$F$2:$J$364,3,FALSE),\"\")","v":""},{"$f":"IFERROR(VLOOKUP(B1039,[2]Sheet4!$F$2:$J$364,4,FALSE),\"\")","v":""},{"$f":"IFERROR(VLOOKUP(B1039,[2]Sheet4!$F$2:$J$364,5,FALSE),\"\")","v":""}]
[null,null,{"$f":"IFERROR(VLOOKUP(B1040,[2]Sheet4!$F$2:$J$364,2,FALSE),\"\")","v":""},{"$f":"IFERROR(VLOOKUP(B1040,[2]Sheet4!$F$2:$J$364,3,FALSE),\"\")","v":""},{"$f":"IFERROR(VLOOKUP(B1040,[2]Sheet4!$F$2:$J$364,4,FALSE),\"\")","v":""},{"$f":"IFERROR(VLOOKUP(B1040,[2]Sheet4!$F$2:$J$364,5,FALSE),\"\")","v":""}]
[null,null,{"$f":"IFERROR(VLOOKUP(B1041,[2]Sheet4!$F$2:$J$364,2,FALSE),\"\")","v":""},{"$f":"IFERROR(VLOOKUP(B1041,[2]Sheet4!$F$2:$J$364,3,FALSE),\"\")","v":""},{"$f":"IFERROR(VLOOKUP(B1041,[2]Sheet4!$F$2:$J$364,4,FALSE),\"\")","v":""},{"$f":"IFERROR(VLOOKUP(B1041,[2]Sheet4!$F$2:$J$364,5,FALSE),\"\")","v":""}]
[null,null,{"$f":"IFERROR(VLOOKUP(B1042,[2]Sheet4!$F$2:$J$364,2,FALSE),\"\")","v":""},{"$f":"IFERROR(VLOOKUP(B1042,[2]Sheet4!$F$2:$J$364,3,FALSE),\"\")","v":""},{"$f":"IFERROR(VLOOKUP(B1042,[2]Sheet4!$F$2:$J$364,4,FALSE),\"\")","v":""},{"$f":"IFERROR(VLOOKUP(B1042,[2]Sheet4!$F$2:$J$364,5,FALSE),\"\")","v":""}]
[null,null,{"$f":"IFERROR(VLOOKUP(B1043,[2]Sheet4!$F$2:$J$364,2,FALSE),\"\")","v":""},{"$f":"IFERROR(VLOOKUP(B1043,[2]Sheet4!$F$2:$J$364,3,FALSE),\"\")","v":""},{"$f":"IFERROR(VLOOKUP(B1043,[2]Sheet4!$F$2:$J$364,4,FALSE),\"\")","v":""},{"$f":"IFERROR(VLOOKUP(B1043,[2]Sheet4!$F$2:$J$364,5,FALSE),\"\")","v":""}]
[null,null,{"$f":"IFERROR(VLOOKUP(B1044,[2]Sheet4!$F$2:$J$364,2,FALSE),\"\")","v":""},{"$f":"IFERROR(VLOOKUP(B1044,[2]Sheet4!$F$2:$J$364,3,FALSE),\"\")","v":""},{"$f":"IFERROR(VLOOKUP(B1044,[2]Sheet4!$F$2:$J$364,4,FALSE),\"\")","v":""},{"$f":"IFERROR(VLOOKUP(B1044,[2]Sheet4!$F$2:$J$364,5,FALSE),\"\")","v":""}]
[null,null,{"$f":"IFERROR(VLOOKUP(B1045,[2]Sheet4!$F$2:$J$364,2,FALSE),\"\")","v":""},{"$f":"IFERROR(VLOOKUP(B1045,[2]Sheet4!$F$2:$J$364,3,FALSE),\"\")","v":""},{"$f":"IFERROR(VLOOKUP(B1045,[2]Sheet4!$F$2:$J$364,4,FALSE),\"\")","v":""},{"$f":"IFERROR(VLOOKUP(B1045,[2]Sheet4!$F$2:$J$364,5,FALSE),\"\")","v":""}]
[null,null,{"$f":"IFERROR(VLOOKUP(B1046,[2]Sheet4!$F$2:$J$364,2,FALSE),\"\")","v":""},{"$f":"IFERROR(VLOOKUP(B1046,[2]Sheet4!$F$2:$J$364,3,FALSE),\"\")","v":""},{"$f":"IFERROR(VLOOKUP(B1046,[2]Sheet4!$F$2:$J$364,4,FALSE),\"\")","v":""},{"$f":"IFERROR(VLOOKUP(B1046,[2]Sheet4!$F$2:$J$364,5,FALSE),\"\")","v":""}]
[null,null,{"$f":"IFERROR(VLOOKUP(B1047,[2]Sheet4!$F$2:$J$364,2,FALSE),\"\")","v":""},{"$f":"IFERROR(VLOOKUP(B1047,[2]Sheet4!$F$2:$J$364,3,FALSE),\"\")","v":""},{"$f":"IFERROR(VLOOKUP(B1047,[2]Sheet4!$F$2:$J$364,4,FALSE),\"\")","v":""},{"$f":"IFERROR(VLOOKUP(B1047,[2]Sheet4!$F$2:$J$364,5,FALSE),\"\")","v":""}]
[null,null,{"$f":"IFERROR(VLOOKUP(B1048,[2]Sheet4!$F$2:$J$364,2,FALSE),\"\")","v":""},{"$f":"IFERROR(VLOOKUP(B1048,[2]Sheet4!$F$2:$J$364,3,FALSE),\"\")","v":""},{"$f":"IFERROR(VLOOKUP(B1048,[2]Sheet4!$F$2:$J$364,4,FALSE),\"\")","v":""},{"$f":"IFERROR(VLOOKUP(B1048,[2]Sheet4!$F$2:$J$364,5,FALSE),\"\")","v":""}]
[null,null,{"$f":"IFERROR(VLOOKUP(B1049,[2]Sheet4!$F$2:$J$364,2,FALSE),\"\")","v":""},{"$f":"IFERROR(VLOOKUP(B1049,[2]Sheet4!$F$2:$J$364,3,FALSE),\"\")","v":""},{"$f":"IFERROR(VLOOKUP(B1049,[2]Sheet4!$F$2:$J$364,4,FALSE),\"\")","v":""},{"$f":"IFERROR(VLOOKUP(B1049,[2]Sheet4!$F$2:$J$364,5,FALSE),\"\")","v":""}]
[null,null,{"$f":"IFERROR(VLOOKUP(B1050,[2]Sheet4!$F$2:$J$364,2,FALSE),\"\")","v":""},{"$f":"IFERROR(VLOOKUP(B1050,[2]Sheet4!$F$2:$J$364,3,FALSE),\"\")","v":""},{"$f":"IFERROR(VLOOKUP(B1050,[2]Sheet4!$F$2:$J$364,4,FALSE),\"\")","v":""},{"$f":"IFERROR(VLOOKUP(B1050,[2]Sheet4!$F$2:$J$364,5,FALSE),\"\")","v":""}]
[null,null,{"$f":"IFERROR(VLOOKUP(B1051,[2]Sheet4!$F$2:$J$364,2,FALSE),\"\")","v":""},{"$f":"IFERROR(VLOOKUP(B1051,[2]Sheet4!$F$2:$J$364,3,FALSE),\"\")","v":""},{"$f":"IFERROR(VLOOKUP(B1051,[2]Sheet4!$F$2:$J$364,4,FALSE),\"\")","v":""},{"$f":"IFERROR(VLOOKUP(B1051,[2]Sheet4!$F$2:$J$364,5,FALSE),\"\")","v":""}]
[null,null,{"$f":"IFERROR(VLOOKUP(B1052,[2]Sheet4!$F$2:$J$364,2,FALSE),\"\")","v":""},{"$f":"IFERROR(VLOOKUP(B1052,[2]Sheet4!$F$2:$J$364,3,FALSE),\"\")","v":""},{"$f":"IFERROR(VLOOKUP(B1052,[2]Sheet4!$F$2:$J$364,4,FALSE),\"\")","v":""},{"$f":"IFERROR(VLOOKUP(B1052,[2]Sheet4!$F$2:$J$364,5,FALSE),\"\")","v":""}]
[null,null,{"$f":"IFERROR(VLOOKUP(B1053,[2]Sheet4!$F$2:$J$364,2,FALSE),\"\")","v":""},{"$f":"IFERROR(VLOOKUP(B1053,[2]Sheet4!$F$2:$J$364,3,FALSE),\"\")","v":""},{"$f":"IFERROR(VLOOKUP(B1053,[2]Sheet4!$F$2:$J$364,4,FALSE),\"\")","v":""},{"$f":"IFERROR(VLOOKUP(B1053,[2]Sheet4!$F$2:$J$364,5,FALSE),\"\")","v":""}]
[null,null,{"$f":"IFERROR(VLOOKUP(B1054,[2]Sheet4!$F$2:$J$364,2,FALSE),\"\")","v":""},{"$f":"IFERROR(VLOOKUP(B1054,[2]Sheet4!$F$2:$J$364,3,FALSE),\"\")","v":""},{"$f":"IFERROR(VLOOKUP(B1054,[2]Sheet4!$F$2:$J$364,4,FALSE),\"\")","v":""},{"$f":"IFERROR(VLOOKUP(B1054,[2]Sheet4!$F$2:$J$364,5,FALSE),\"\")","v":""}]
[null,null,{"$f":"IFERROR(VLOOKUP(B1055,[2]Sheet4!$F$2:$J$364,2,FALSE),\"\")","v":""},{"$f":"IFERROR(VLOOKUP(B1055,[2]Sheet4!$F$2:$J$364,3,FALSE),\"\")","v":""},{"$f":"IFERROR(VLOOKUP(B1055,[2]Sheet4!$F$2:$J$364,4,FALSE),\"\")","v":""},{"$f":"IFERROR(VLOOKUP(B1055,[2]Sheet4!$F$2:$J$364,5,FALSE),\"\")","v":""}]
[null,null,{"$f":"IFERROR(VLOOKUP(B1056,[2]Sheet4!$F$2:$J$364,2,FALSE),\"\")","v":""},{"$f":"IFERROR(VLOOKUP(B1056,[2]Sheet4!$F$2:$J$364,3,FALSE),\"\")","v":""},{"$f":"IFERROR(VLOOKUP(B1056,[2]Sheet4!$F$2:$J$364,4,FALSE),\"\")","v":""},{"$f":"IFERROR(VLOOKUP(B1056,[2]Sheet4!$F$2:$J$364,5,FALSE),\"\")","v":""}]
[null,null,{"$f":"IFERROR(VLOOKUP(B1057,[2]Sheet4!$F$2:$J$364,2,FALSE),\"\")","v":""},{"$f":"IFERROR(VLOOKUP(B1057,[2]Sheet4!$F$2:$J$364,3,FALSE),\"\")","v":""},{"$f":"IFERROR(VLOOKUP(B1057,[2]Sheet4!$F$2:$J$364,4,FALSE),\"\")","v":""},{"$f":"IFERROR(VLOOKUP(B1057,[2]Sheet4!$F$2:$J$364,5,FALSE),\"\")","v":""}]
[null,null,{"$f":"IFERROR(VLOOKUP(B1058,[2]Sheet4!$F$2:$J$364,2,FALSE),\"\")","v":""},{"$f":"IFERROR(VLOOKUP(B1058,[2]Sheet4!$F$2:$J$364,3,FALSE),\"\")","v":""},{"$f":"IFERROR(VLOOKUP(B1058,[2]Sheet4!$F$2:$J$364,4,FALSE),\"\")","v":""},{"$f":"IFERROR(VLOOKUP(B1058,[2]Sheet4!$F$2:$J$364,5,FALSE),\"\")","v":""}]
[null,null,{"$f":"IFERROR(VLOOKUP(B1059,[2]Sheet4!$F$2:$J$364,2,FALSE),\"\")","v":""},{"$f":"IFERROR(VLOOKUP(B1059,[2]Sheet4!$F$2:$J$364,3,FALSE),\"\")","v":""},{"$f":"IFERROR(VLOOKUP(B1059,[2]Sheet4!$F$2:$J$364,4,FALSE),\"\")","v":""},{"$f":"IFERROR(VLOOKUP(B1059,[2]Sheet4!$F$2:$J$364,5,FALSE),\"\")","v":""}]
[null,null,{"$f":"IFERROR(VLOOKUP(B1060,[2]Sheet4!$F$2:$J$364,2,FALSE),\"\")","v":""},{"$f":"IFERROR(VLOOKUP(B1060,[2]Sheet4!$F$2:$J$364,3,FALSE),\"\")","v":""},{"$f":"IFERROR(VLOOKUP(B1060,[2]Sheet4!$F$2:$J$364,4,FALSE),\"\")","v":""},{"$f":"IFERROR(VLOOKUP(B1060,[2]Sheet4!$F$2:$J$364,5,FALSE),\"\")","v":""}]
[null,null,{"$f":"IFERROR(VLOOKUP(B1061,[2]Sheet4!$F$2:$J$364,2,FALSE),\"\")","v":""},{"$f":"IFERROR(VLOOKUP(B1061,[2]Sheet4!$F$2:$J$364,3,FALSE),\"\")","v":""},{"$f":"IFERROR(VLOOKUP(B1061,[2]Sheet4!$F$2:$J$364,4,FALSE),\"\")","v":""},{"$f":"IFERROR(VLOOKUP(B1061,[2]Sheet4!$F$2:$J$364,5,FALSE),\"\")","v":""}]
[null,null,{"$f":"IFERROR(VLOOKUP(B1062,[2]Sheet4!$F$2:$J$364,2,FALSE),\"\")","v":""},{"$f":"IFERROR(VLOOKUP(B1062,[2]Sheet4!$F$2:$J$364,3,FALSE),\"\")","v":""},{"$f":"IFERROR(VLOOKUP(B1062,[2]Sheet4!$F$2:$J$364,4,FALSE),\"\")","v":""},{"$f":"IFERROR(VLOOKUP(B1062,[2]Sheet4!$F$2:$J$364,5,FALSE),\"\")","v":""}]
[null,null,{"$f":"IFERROR(VLOOKUP(B1063,[2]Sheet4!$F$2:$J$364,2,FALSE),\"\")","v":""},{"$f":"IFERROR(VLOOKUP(B1063,[2]Sheet4!$F$2:$J$364,3,FALSE),\"\")","v":""},{"$f":"IFERROR(VLOOKUP(B1063,[2]Sheet4!$F$2:$J$364,4,FALSE),\"\")","v":""},{"$f":"IFERROR(VLOOKUP(B1063,[2]Sheet4!$F$2:$J$364,5,FALSE),\"\")","v":""}]
[null,null,{"$f":"IFERROR(VLOOKUP(B1064,[2]Sheet4!$F$2:$J$364,2,FALSE),\"\")","v":""},{"$f":"IFERROR(VLOOKUP(B1064,[2]Sheet4!$F$2:$J$364,3,FALSE),\"\")","v":""},{"$f":"IFERROR(VLOOKUP(B1064,[2]Sheet4!$F$2:$J$364,4,FALSE),\"\")","v":""},{"$f":"IFERROR(VLOOKUP(B1064,[2]Sheet4!$F$2:$J$364,5,FALSE),\"\")","v":""}]
[null,null,{"$f":"IFERROR(VLOOKUP(B1065,[2]Sheet4!$F$2:$J$364,2,FALSE),\"\")","v":""},{"$f":"IFERROR(VLOOKUP(B1065,[2]Sheet4!$F$2:$J$364,3,FALSE),\"\")","v":""},{"$f":"IFERROR(VLOOKUP(B1065,[2]Sheet4!$F$2:$J$364,4,FALSE),\"\")","v":""},{"$f":"IFERROR(VLOOKUP(B1065,[2]Sheet4!$F$2:$J$364,5,FALSE),\"\")","v":""}]
[null,null,{"$f":"IFERROR(VLOOKUP(B1066,[2]Sheet4!$F$2:$J$364,2,FALSE),\"\")","v":""},{"$f":"IFERROR(VLOOKUP(B1066,[2]Sheet4!$F$2:$J$364,3,FALSE),\"\")","v":""},{"$f":"IFERROR(VLOOKUP(B1066,[2]Sheet4!$F$2:$J$364,4,FALSE),\"\")","v":""},{"$f":"IFERROR(VLOOKUP(B1066,[2]Sheet4!$F$2:$J$364,5,FALSE),\"\")","v":""}]
[null,null,{"$f":"IFERROR(VLOOKUP(B1067,[2]Sheet4!$F$2:$J$364,2,FALSE),\"\")","v":""},{"$f":"IFERROR(VLOOKUP(B1067,[2]Sheet4!$F$2:$J$364,3,FALSE),\"\")","v":""},{"$f":"IFERROR(VLOOKUP(B1067,[2]Sheet4!$F$2:$J$364,4,FALSE),\"\")","v":""},{"$f":"IFERROR(VLOOKUP(B1067,[2]Sheet4!$F$2:$J$364,5,FALSE),\"\")","v":""}]
[null,null,{"$f":"IFERROR(VLOOKUP(B1068,[2]Sheet4!$F$2:$J$364,2,FALSE),\"\")","v":""},{"$f":"IFERROR(VLOOKUP(B1068,[2]Sheet4!$F$2:$J$364,3,FALSE),\"\")","v":""},{"$f":"IFERROR(VLOOKUP(B1068,[2]Sheet4!$F$2:$J$364,4,FALSE),\"\")","v":""},{"$f":"IFERROR(VLOOKUP(B1068,[2]Sheet4!$F$2:$J$364,5,FALSE),\"\")","v":""}]
[null,null,{"$f":"IFERROR(VLOOKUP(B1069,[2]Sheet4!$F$2:$J$364,2,FALSE),\"\")","v":""},{"$f":"IFERROR(VLOOKUP(B1069,[2]Sheet4!$F$2:$J$364,3,FALSE),\"\")","v":""},{"$f":"IFERROR(VLOOKUP(B1069,[2]Sheet4!$F$2:$J$364,4,FALSE),\"\")","v":""},{"$f":"IFERROR(VLOOKUP(B1069,[2]Sheet4!$F$2:$J$364,5,FALSE),\"\")","v":""}]
[null,null,{"$f":"IFERROR(VLOOKUP(B1070,[2]Sheet4!$F$2:$J$364,2,FALSE),\"\")","v":""},{"$f":"IFERROR(VLOOKUP(B1070,[2]Sheet4!$F$2:$J$364,3,FALSE),\"\")","v":""},{"$f":"IFERROR(VLOOKUP(B1070,[2]Sheet4!$F$2:$J$364,4,FALSE),\"\")","v":""},{"$f":"IFERROR(VLOOKUP(B1070,[2]Sheet4!$F$2:$J$364,5,FALSE),\"\")","v":""}]
[null,null,{"$f":"IFERROR(VLOOKUP(B1071,[2]Sheet4!$F$2:$J$364,2,FALSE),\"\")","v":""},{"$f":"IFERROR(VLOOKUP(B1071,[2]Sheet4!$F$2:$J$364,3,FALSE),\"\")","v":""},{"$f":"IFERROR(VLOOKUP(B1071,[2]Sheet4!$F$2:$J$364,4,FALSE),\"\")","v":""},{"$f":"IFERROR(VLOOKUP(B1071,[2]Sheet4!$F$2:$J$364,5,FALSE),\"\")","v":""}]
[null,null,{"$f":"IFERROR(VLOOKUP(B1072,[2]Sheet4!$F$2:$J$364,2,FALSE),\"\")","v":""},{"$f":"IFERROR(VLOOKUP(B1072,[2]Sheet4!$F$2:$J$364,3,FALSE),\"\")","v":""},{"$f":"IFERROR(VLOOKUP(B1072,[2]Sheet4!$F$2:$J$364,4,FALSE),\"\")","v":""},{"$f":"IFERROR(VLOOKUP(B1072,[2]Sheet4!$F$2:$J$364,5,FALSE),\"\")","v":""}]
[null,null,{"$f":"IFERROR(VLOOKUP(B1073,[2]Sheet4!$F$2:$J$364,2,FALSE),\"\")","v":""},{"$f":"IFERROR(VLOOKUP(B1073,[2]Sheet4!$F$2:$J$364,3,FALSE),\"\")","v":""},{"$f":"IFERROR(VLOOKUP(B1073,[2]Sheet4!$F$2:$J$364,4,FALSE),\"\")","v":""},{"$f":"IFERROR(VLOOKUP(B1073,[2]Sheet4!$F$2:$J$364,5,FALSE),\"\")","v":""}]
[null,null,{"$f":"IFERROR(VLOOKUP(B1074,[2]Sheet4!$F$2:$J$364,2,FALSE),\"\")","v":""},{"$f":"IFERROR(VLOOKUP(B1074,[2]Sheet4!$F$2:$J$364,3,FALSE),\"\")","v":""},{"$f":"IFERROR(VLOOKUP(B1074,[2]Sheet4!$F$2:$J$364,4,FALSE),\"\")","v":""},{"$f":"IFERROR(VLOOKUP(B1074,[2]Sheet4!$F$2:$J$364,5,FALSE),\"\")","v":""}]
[null,null,{"$f":"IFERROR(VLOOKUP(B1075,[2]Sheet4!$F$2:$J$364,2,FALSE),\"\")","v":""},{"$f":"IFERROR(VLOOKUP(B1075,[2]Sheet4!$F$2:$J$364,3,FALSE),\"\")","v":""},{"$f":"IFERROR(VLOOKUP(B1075,[2]Sheet4!$F$2:$J$364,4,FALSE),\"\")","v":""},{"$f":"IFERROR(VLOOKUP(B1075,[2]Sheet4!$F$2:$J$364,5,FALSE),\"\")","v":""}]
[null,null,{"$f":"IFERROR(VLOOKUP(B1076,[2]Sheet4!$F$2:$J$364,2,FALSE),\"\")","v":""},{"$f":"IFERROR(VLOOKUP(B1076,[2]Sheet4!$F$2:$J$364,3,FALSE),\"\")","v":""},{"$f":"IFERROR(VLOOKUP(B1076,[2]Sheet4!$F$2:$J$364,4,FALSE),\"\")","v":""},{"$f":"IFERROR(VLOOKUP(B1076,[2]Sheet4!$F$2:$J$364,5,FALSE),\"\")","v":""}]
[null,null,{"$f":"IFERROR(VLOOKUP(B1077,[2]Sheet4!$F$2:$J$364,2,FALSE),\"\")","v":""},{"$f":"IFERROR(VLOOKUP(B1077,[2]Sheet4!$F$2:$J$364,3,FALSE),\"\")","v":""},{"$f":"IFERROR(VLOOKUP(B1077,[2]Sheet4!$F$2:$J$364,4,FALSE),\"\")","v":""},{"$f":"IFERROR(VLOOKUP(B1077,[2]Sheet4!$F$2:$J$364,5,FALSE),\"\")","v":""}]
[null,null,{"$f":"IFERROR(VLOOKUP(B1078,[2]Sheet4!$F$2:$J$364,2,FALSE),\"\")","v":""},{"$f":"IFERROR(VLOOKUP(B1078,[2]Sheet4!$F$2:$J$364,3,FALSE),\"\")","v":""},{"$f":"IFERROR(VLOOKUP(B1078,[2]Sheet4!$F$2:$J$364,4,FALSE),\"\")","v":""},{"$f":"IFERROR(VLOOKUP(B1078,[2]Sheet4!$F$2:$J$364,5,FALSE),\"\")","v":""}]
[null,null,{"$f":"IFERROR(VLOOKUP(B1079,[2]Sheet4!$F$2:$J$364,2,FALSE),\"\")","v":""},{"$f":"IFERROR(VLOOKUP(B1079,[2]Sheet4!$F$2:$J$364,3,FALSE),\"\")","v":""},{"$f":"IFERROR(VLOOKUP(B1079,[2]Sheet4!$F$2:$J$364,4,FALSE),\"\")","v":""},{"$f":"IFERROR(VLOOKUP(B1079,[2]Sheet4!$F$2:$J$364,5,FALSE),\"\")","v":""}]
[null,null,{"$f":"IFERROR(VLOOKUP(B1080,[2]Sheet4!$F$2:$J$364,2,FALSE),\"\")","v":""},{"$f":"IFERROR(VLOOKUP(B1080,[2]Sheet4!$F$2:$J$364,3,FALSE),\"\")","v":""},{"$f":"IFERROR(VLOOKUP(B1080,[2]Sheet4!$F$2:$J$364,4,FALSE),\"\")","v":""},{"$f":"IFERROR(VLOOKUP(B1080,[2]Sheet4!$F$2:$J$364,5,FALSE),\"\")","v":""}]
[null,null,{"$f":"IFERROR(VLOOKUP(B1081,[2]Sheet4!$F$2:$J$364,2,FALSE),\"\")","v":""},{"$f":"IFERROR(VLOOKUP(B1081,[2]Sheet4!$F$2:$J$364,3,FALSE),\"\")","v":""},{"$f":"IFERROR(VLOOKUP(B1081,[2]Sheet4!$F$2:$J$364,4,FALSE),\"\")","v":""},{"$f":"IFERROR(VLOOKUP(B1081,[2]Sheet4!$F$2:$J$364,5,FALSE),\"\")","v":""}]
[null,null,{"$f":"IFERROR(VLOOKUP(B1082,[2]Sheet4!$F$2:$J$364,2,FALSE),\"\")","v":""},{"$f":"IFERROR(VLOOKUP(B1082,[2]Sheet4!$F$2:$J$364,3,FALSE),\"\")","v":""},{"$f":"IFERROR(VLOOKUP(B1082,[2]Sheet4!$F$2:$J$364,4,FALSE),\"\")","v":""},{"$f":"IFERROR(VLOOKUP(B1082,[2]Sheet4!$F$2:$J$364,5,FALSE),\"\")","v":""}]
[null,null,{"$f":"IFERROR(VLOOKUP(B1083,[2]Sheet4!$F$2:$J$364,2,FALSE),\"\")","v":""},{"$f":"IFERROR(VLOOKUP(B1083,[2]Sheet4!$F$2:$J$364,3,FALSE),\"\")","v":""},{"$f":"IFERROR(VLOOKUP(B1083,[2]Sheet4!$F$2:$J$364,4,FALSE),\"\")","v":""},{"$f":"IFERROR(VLOOKUP(B1083,[2]Sheet4!$F$2:$J$364,5,FALSE),\"\")","v":""}]
[null,null,{"$f":"IFERROR(VLOOKUP(B1084,[2]Sheet4!$F$2:$J$364,2,FALSE),\"\")","v":""},{"$f":"IFERROR(VLOOKUP(B1084,[2]Sheet4!$F$2:$J$364,3,FALSE),\"\")","v":""},{"$f":"IFERROR(VLOOKUP(B1084,[2]Sheet4!$F$2:$J$364,4,FALSE),\"\")","v":""},{"$f":"IFERROR(VLOOKUP(B1084,[2]Sheet4!$F$2:$J$364,5,FALSE),\"\")","v":""}]
[null,null,{"$f":"IFERROR(VLOOKUP(B1085,[2]Sheet4!$F$2:$J$364,2,FALSE),\"\")","v":""},{"$f":"IFERROR(VLOOKUP(B1085,[2]Sheet4!$F$2:$J$364,3,FALSE),\"\")","v":""},{"$f":"IFERROR(VLOOKUP(B1085,[2]Sheet4!$F$2:$J$364,4,FALSE),\"\")","v":""},{"$f":"IFERROR(VLOOKUP(B1085,[2]Sheet4!$F$2:$J$364,5,FALSE),\"\")","v":""}]
[null,null,{"$f":"IFERROR(VLOOKUP(B1086,[2]Sheet4!$F$2:$J$364,2,FALSE),\"\")","v":""},{"$f":"IFERROR(VLOOKUP(B1086,[2]Sheet4!$F$2:$J$364,3,FALSE),\"\")","v":""},{"$f":"IFERROR(VLOOKUP(B1086,[2]Sheet4!$F$2:$J$364,4,FALSE),\"\")","v":""},{"$f":"IFERROR(VLOOKUP(B1086,[2]Sheet4!$F$2:$J$364,5,FALSE),\"\")","v":""}]
[null,null,{"$f":"IFERROR(VLOOKUP(B1087,[2]Sheet4!$F$2:$J$364,2,FALSE),\"\")","v":""},{"$f":"IFERROR(VLOOKUP(B1087,[2]Sheet4!$F$2:$J$364,3,FALSE),\"\")","v":""},{"$f":"IFERROR(VLOOKUP(B1087,[2]Sheet4!$F$2:$J$364,4,FALSE),\"\")","v":""},{"$f":"IFERROR(VLOOKUP(B1087,[2]Sheet4!$F$2:$J$364,5,FALSE),\"\")","v":""}]
[null,null,{"$f":"IFERROR(VLOOKUP(B1088,[2]Sheet4!$F$2:$J$364,2,FALSE),\"\")","v":""},{"$f":"IFERROR(VLOOKUP(B1088,[2]Sheet4!$F$2:$J$364,3,FALSE),\"\")","v":""},{"$f":"IFERROR(VLOOKUP(B1088,[2]Sheet4!$F$2:$J$364,4,FALSE),\"\")","v":""},{"$f":"IFERROR(VLOOKUP(B1088,[2]Sheet4!$F$2:$J$364,5,FALSE),\"\")","v":""}]
[null,null,{"$f":"IFERROR(VLOOKUP(B1089,[2]Sheet4!$F$2:$J$364,2,FALSE),\"\")","v":""},{"$f":"IFERROR(VLOOKUP(B1089,[2]Sheet4!$F$2:$J$364,3,FALSE),\"\")","v":""},{"$f":"IFERROR(VLOOKUP(B1089,[2]Sheet4!$F$2:$J$364,4,FALSE),\"\")","v":""},{"$f":"IFERROR(VLOOKUP(B1089,[2]Sheet4!$F$2:$J$364,5,FALSE),\"\")","v":""}]
[null,null,{"$f":"IFERROR(VLOOKUP(B1090,[2]Sheet4!$F$2:$J$364,2,FALSE),\"\")","v":""},{"$f":"IFERROR(VLOOKUP(B1090,[2]Sheet4!$F$2:$J$364,3,FALSE),\"\")","v":""},{"$f":"IFERROR(VLOOKUP(B1090,[2]Sheet4!$F$2:$J$364,4,FALSE),\"\")","v":""},{"$f":"IFERROR(VLOOKUP(B1090,[2]Sheet4!$F$2:$J$364,5,FALSE),\"\")","v":""}]
[null,null,{"$f":"IFERROR(VLOOKUP(B1091,[2]Sheet4!$F$2:$J$364,2,FALSE),\"\")","v":""},{"$f":"IFERROR(VLOOKUP(B1091,[2]Sheet4!$F$2:$J$364,3,FALSE),\"\")","v":""},{"$f":"IFERROR(VLOOKUP(B1091,[2]Sheet4!$F$2:$J$364,4,FALSE),\"\")","v":""},{"$f":"IFERROR(VLOOKUP(B1091,[2]Sheet4!$F$2:$J$364,5,FALSE),\"\")","v":""}]
[null,null,{"$f":"IFERROR(VLOOKUP(B1092,[2]Sheet4!$F$2:$J$364,2,FALSE),\"\")","v":""},{"$f":"IFERROR(VLOOKUP(B1092,[2]Sheet4!$F$2:$J$364,3,FALSE),\"\")","v":""},{"$f":"IFERROR(VLOOKUP(B1092,[2]Sheet4!$F$2:$J$364,4,FALSE),\"\")","v":""},{"$f":"IFERROR(VLOOKUP(B1092,[2]Sheet4!$F$2:$J$364,5,FALSE),\"\")","v":""}]
[null,null,{"$f":"IFERROR(VLOOKUP(B1093,[2]Sheet4!$F$2:$J$364,2,FALSE),\"\")","v":""},{"$f":"IFERROR(VLOOKUP(B1093,[2]Sheet4!$F$2:$J$364,3,FALSE),\"\")","v":""},{"$f":"IFERROR(VLOOKUP(B1093,[2]Sheet4!$F$2:$J$364,4,FALSE),\"\")","v":""},{"$f":"IFERROR(VLOOKUP(B1093,[2]Sheet4!$F$2:$J$364,5,FALSE),\"\")","v":""}]
[null,null,{"$f":"IFERROR(VLOOKUP(B1094,[2]Sheet4!$F$2:$J$364,2,FALSE),\"\")","v":""},{"$f":"IFERROR(VLOOKUP(B1094,[2]Sheet4!$F$2:$J$364,3,FALSE),\"\")","v":""},{"$f":"IFERROR(VLOOKUP(B1094,[2]Sheet4!$F$2:$J$364,4,FALSE),\"\")","v":""},{"$f":"IFERROR(VLOOKUP(B1094,[2]Sheet4!$F$2:$J$364,5,FALSE),\"\")","v":""}]
[null,null,{"$f":"IFERROR(VLOOKUP(B1095,[2]Sheet4!$F$2:$J$364,2,FALSE),\"\")","v":""},{"$f":"IFERROR(VLOOKUP(B1095,[2]Sheet4!$F$2:$J$364,3,FALSE),\"\")","v":""},{"$f":"IFERROR(VLOOKUP(B1095,[2]Sheet4!$F$2:$J$364,4,FALSE),\"\")","v":""},{"$f":"IFERROR(VLOOKUP(B1095,[2]Sheet4!$F$2:$J$364,5,FALSE),\"\")","v":""}]
[null,null,{"$f":"IFERROR(VLOOKUP(B1096,[2]Sheet4!$F$2:$J$364,2,FALSE),\"\")","v":""},{"$f":"IFERROR(VLOOKUP(B1096,[2]Sheet4!$F$2:$J$364,3,FALSE),\"\")","v":""},{"$f":"IFERROR(VLOOKUP(B1096,[2]Sheet4!$F$2:$J$364,4,FALSE),\"\")","v":""},{"$f":"IFERROR(VLOOKUP(B1096,[2]Sheet4!$F$2:$J$364,5,FALSE),\"\")","v":""}]
[null,null,{"$f":"IFERROR(VLOOKUP(B1097,[2]Sheet4!$F$2:$J$364,2,FALSE),\"\")","v":""},{"$f":"IFERROR(VLOOKUP(B1097,[2]Sheet4!$F$2:$J$364,3,FALSE),\"\")","v":""},{"$f":"IFERROR(VLOOKUP(B1097,[2]Sheet4!$F$2:$J$364,4,FALSE),\"\")","v":""},{"$f":"IFERROR(VLOOKUP(B1097,[2]Sheet4!$F$2:$J$364,5,FALSE),\"\")","v":""}]
[null,null,{"$f":"IFERROR(VLOOKUP(B1098,[2]Sheet4!$F$2:$J$364,2,FALSE),\"\")","v":""},{"$f":"IFERROR(VLOOKUP(B1098,[2]Sheet4!$F$2:$J$364,3,FALSE),\"\")","v":""},{"$f":"IFERROR(VLOOKUP(B1098,[2]Sheet4!$F$2:$J$364,4,FALSE),\"\")","v":""},{"$f":"IFERROR(VLOOKUP(B1098,[2]Sheet4!$F$2:$J$364,5,FALSE),\"\")","v":""}]
[null,null,{"$f":"IFERROR(VLOOKUP(B1099,[2]Sheet4!$F$2:$J$364,2,FALSE),\"\")","v":""},{"$f":"IFERROR(VLOOKUP(B1099,[2]Sheet4!$F$2:$J$364,3,FALSE),\"\")","v":""},{"$f":"IFERROR(VLOOKUP(B1099,[2]Sheet4!$F$2:$J$364,4,FALSE),\"\")","v":""},{"$f":"IFERROR(VLOOKUP(B1099,[2]Sheet4!$F$2:$J$364,5,FALSE),\"\")","v":""}]
[null,null,{"$f":"IFERROR(VLOOKUP(B1100,[2]Sheet4!$F$2:$J$364,2,FALSE),\"\")","v":""},{"$f":"IFERROR(VLOOKUP(B1100,[2]Sheet4!$F$2:$J$364,3,FALSE),\"\")","v":""},{"$f":"IFERROR(VLOOKUP(B1100,[2]Sheet4!$F$2:$J$364,4,FALSE),\"\")","v":""},{"$f":"IFERROR(VLOOKUP(B1100,[2]Sheet4!$F$2:$J$364,5,FALSE),\"\")","v":""}]
[null,null,{"$f":"IFERROR(VLOOKUP(B1101,[2]Sheet4!$F$2:$J$364,2,FALSE),\"\")","v":""},{"$f":"IFERROR(VLOOKUP(B1101,[2]Sheet4!$F$2:$J$364,3,FALSE),\"\")","v":""},{"$f":"IFERROR(VLOOKUP(B1101,[2]Sheet4!$F$2:$J$364,4,FALSE),\"\")","v":""},{"$f":"IFERROR(VLOOKUP(B1101,[2]Sheet4!$F$2:$J$364,5,FALSE),\"\")","v":""}]
[null,null,{"$f":"IFERROR(VLOOKUP(B1102,[2]Sheet4!$F$2:$J$364,2,FALSE),\"\")","v":""},{"$f":"IFERROR(VLOOKUP(B1102,[2]Sheet4!$F$2:$J$364,3,FALSE),\"\")","v":""},{"$f":"IFERROR(VLOOKUP(B1102,[2]Sheet4!$F$2:$J$364,4,FALSE),\"\")","v":""},{"$f":"IFERROR(VLOOKUP(B1102,[2]Sheet4!$F$2:$J$364,5,FALSE),\"\")","v":""}]
[null,null,{"$f":"IFERROR(VLOOKUP(B1103,[2]Sheet4!$F$2:$J$364,2,FALSE),\"\")","v":""},{"$f":"IFERROR(VLOOKUP(B1103,[2]Sheet4!$F$2:$J$364,3,FALSE),\"\")","v":""},{"$f":"IFERROR(VLOOKUP(B1103,[2]Sheet4!$F$2:$J$364,4,FALSE),\"\")","v":""},{"$f":"IFERROR(VLOOKUP(B1103,[2]Sheet4!$F$2:$J$364,5,FALSE),\"\")","v":""}]
[null,null,{"$f":"IFERROR(VLOOKUP(B1104,[2]Sheet4!$F$2:$J$364,2,FALSE),\"\")","v":""},{"$f":"IFERROR(VLOOKUP(B1104,[2]Sheet4!$F$2:$J$364,3,FALSE),\"\")","v":""},{"$f":"IFERROR(VLOOKUP(B1104,[2]Sheet4!$F$2:$J$364,4,FALSE),\"\")","v":""},{"$f":"IFERROR(VLOOKUP(B1104,[2]Sheet4!$F$2:$J$364,5,FALSE),\"\")","v":""}]
[null,null,{"$f":"IFERROR(VLOOKUP(B1105,[2]Sheet4!$F$2:$J$364,2,FALSE),\"\")","v":""},{"$f":"IFERROR(VLOOKUP(B1105,[2]Sheet4!$F$2:$J$364,3,FALSE),\"\")","v":""},{"$f":"IFERROR(VLOOKUP(B1105,[2]Sheet4!$F$2:$J$364,4,FALSE),\"\")","v":""},{"$f":"IFERROR(VLOOKUP(B1105,[2]Sheet4!$F$2:$J$364,5,FALSE),\"\")","v":""}]
[null,null,{"$f":"IFERROR(VLOOKUP(B1106,[2]Sheet4!$F$2:$J$364,2,FALSE),\"\")","v":""},{"$f":"IFERROR(VLOOKUP(B1106,[2]Sheet4!$F$2:$J$364,3,FALSE),\"\")","v":""},{"$f":"IFERROR(VLOOKUP(B1106,[2]Sheet4!$F$2:$J$364,4,FALSE),\"\")","v":""},{"$f":"IFERROR(VLOOKUP(B1106,[2]Sheet4!$F$2:$J$364,5,FALSE),\"\")","v":""}]
[null,null,{"$f":"IFERROR(VLOOKUP(B1107,[2]Sheet4!$F$2:$J$364,2,FALSE),\"\")","v":""},{"$f":"IFERROR(VLOOKUP(B1107,[2]Sheet4!$F$2:$J$364,3,FALSE),\"\")","v":""},{"$f":"IFERROR(VLOOKUP(B1107,[2]Sheet4!$F$2:$J$364,4,FALSE),\"\")","v":""},{"$f":"IFERROR(VLOOKUP(B1107,[2]Sheet4!$F$2:$J$364,5,FALSE),\"\")","v":""}]
[null,null,{"$f":"IFERROR(VLOOKUP(B1108,[2]Sheet4!$F$2:$J$364,2,FALSE),\"\")","v":""},{"$f":"IFERROR(VLOOKUP(B1108,[2]Sheet4!$F$2:$J$364,3,FALSE),\"\")","v":""},{"$f":"IFERROR(VLOOKUP(B1108,[2]Sheet4!$F$2:$J$364,4,FALSE),\"\")","v":""},{"$f":"IFERROR(VLOOKUP(B1108,[2]Sheet4!$F$2:$J$364,5,FALSE),\"\")","v":""}]
[null,null,{"$f":"IFERROR(VLOOKUP(B1109,[2]Sheet4!$F$2:$J$364,2,FALSE),\"\")","v":""},{"$f":"IFERROR(VLOOKUP(B1109,[2]Sheet4!$F$2:$J$364,3,FALSE),\"\")","v":""},{"$f":"IFERROR(VLOOKUP(B1109,[2]Sheet4!$F$2:$J$364,4,FALSE),\"\")","v":""},{"$f":"IFERROR(VLOOKUP(B1109,[2]Sheet4!$F$2:$J$364,5,FALSE),\"\")","v":""}]
[null,null,{"$f":"IFERROR(VLOOKUP(B1110,[2]Sheet4!$F$2:$J$364,2,FALSE),\"\")","v":""},{"$f":"IFERROR(VLOOKUP(B1110,[2]Sheet4!$F$2:$J$364,3,FALSE),\"\")","v":""},{"$f":"IFERROR(VLOOKUP(B1110,[2]Sheet4!$F$2:$J$364,4,FALSE),\"\")","v":""},{"$f":"IFERROR(VLOOKUP(B1110,[2]Sheet4!$F$2:$J$364,5,FALSE),\"\")","v":""}]
[null,null,{"$f":"IFERROR(VLOOKUP(B1111,[2]Sheet4!$F$2:$J$364,2,FALSE),\"\")","v":""},{"$f":"IFERROR(VLOOKUP(B1111,[2]Sheet4!$F$2:$J$364,3,FALSE),\"\")","v":""},{"$f":"IFERROR(VLOOKUP(B1111,[2]Sheet4!$F$2:$J$364,4,FALSE),\"\")","v":""},{"$f":"IFERROR(VLOOKUP(B1111,[2]Sheet4!$F$2:$J$364,5,FALSE),\"\")","v":""}]
[null,null,{"$f":"IFERROR(VLOOKUP(B1112,[2]Sheet4!$F$2:$J$364,2,FALSE),\"\")","v":""},{"$f":"IFERROR(VLOOKUP(B1112,[2]Sheet4!$F$2:$J$364,3,FALSE),\"\")","v":""},{"$f":"IFERROR(VLOOKUP(B1112,[2]Sheet4!$F$2:$J$364,4,FALSE),\"\")","v":""},{"$f":"IFERROR(VLOOKUP(B1112,[2]Sheet4!$F$2:$J$364,5,FALSE),\"\")","v":""}]
[null,null,{"$f":"IFERROR(VLOOKUP(B1113,[2]Sheet4!$F$2:$J$364,2,FALSE),\"\")","v":""},{"$f":"IFERROR(VLOOKUP(B1113,[2]Sheet4!$F$2:$J$364,3,FALSE),\"\")","v":""},{"$f":"IFERROR(VLOOKUP(B1113,[2]Sheet4!$F$2:$J$364,4,FALSE),\"\")","v":""},{"$f":"IFERROR(VLOOKUP(B1113,[2]Sheet4!$F$2:$J$364,5,FALSE),\"\")","v":""}]
[null,null,{"$f":"IFERROR(VLOOKUP(B1114,[2]Sheet4!$F$2:$J$364,2,FALSE),\"\")","v":""},{"$f":"IFERROR(VLOOKUP(B1114,[2]Sheet4!$F$2:$J$364,3,FALSE),\"\")","v":""},{"$f":"IFERROR(VLOOKUP(B1114,[2]Sheet4!$F$2:$J$364,4,FALSE),\"\")","v":""},{"$f":"IFERROR(VLOOKUP(B1114,[2]Sheet4!$F$2:$J$364,5,FALSE),\"\")","v":""}]
[null,null,{"$f":"IFERROR(VLOOKUP(B1115,[2]Sheet4!$F$2:$J$364,2,FALSE),\"\")","v":""},{"$f":"IFERROR(VLOOKUP(B1115,[2]Sheet4!$F$2:$J$364,3,FALSE),\"\")","v":""},{"$f":"IFERROR(VLOOKUP(B1115,[2]Sheet4!$F$2:$J$364,4,FALSE),\"\")","v":""},{"$f":"IFERROR(VLOOKUP(B1115,[2]Sheet4!$F$2:$J$364,5,FALSE),\"\")","v":""}]
[null,null,{"$f":"IFERROR(VLOOKUP(B1116,[2]Sheet4!$F$2:$J$364,2,FALSE),\"\")","v":""},{"$f":"IFERROR(VLOOKUP(B1116,[2]Sheet4!$F$2:$J$364,3,FALSE),\"\")","v":""},{"$f":"IFERROR(VLOOKUP(B1116,[2]Sheet4!$F$2:$J$364,4,FALSE),\"\")","v":""},{"$f":"IFERROR(VLOOKUP(B1116,[2]Sheet4!$F$2:$J$364,5,FALSE),\"\")","v":""}]
[null,null,{"$f":"IFERROR(VLOOKUP(B1117,[2]Sheet4!$F$2:$J$364,2,FALSE),\"\")","v":""},{"$f":"IFERROR(VLOOKUP(B1117,[2]Sheet4!$F$2:$J$364,3,FALSE),\"\")","v":""},{"$f":"IFERROR(VLOOKUP(B1117,[2]Sheet4!$F$2:$J$364,4,FALSE),\"\")","v":""},{"$f":"IFERROR(VLOOKUP(B1117,[2]Sheet4!$F$2:$J$364,5,FALSE),\"\")","v":""}]
[null,null,{"$f":"IFERROR(VLOOKUP(B1118,[2]Sheet4!$F$2:$J$364,2,FALSE),\"\")","v":""},{"$f":"IFERROR(VLOOKUP(B1118,[2]Sheet4!$F$2:$J$364,3,FALSE),\"\")","v":""},{"$f":"IFERROR(VLOOKUP(B1118,[2]Sheet4!$F$2:$J$364,4,FALSE),\"\")","v":""},{"$f":"IFERROR(VLOOKUP(B1118,[2]Sheet4!$F$2:$J$364,5,FALSE),\"\")","v":""}]
[null,null,{"$f":"IFERROR(VLOOKUP(B1119,[2]Sheet4!$F$2:$J$364,2,FALSE),\"\")","v":""},{"$f":"IFERROR(VLOOKUP(B1119,[2]Sheet4!$F$2:$J$364,3,FALSE),\"\")","v":""},{"$f":"IFERROR(VLOOKUP(B1119,[2]Sheet4!$F$2:$J$364,4,FALSE),\"\")","v":""},{"$f":"IFERROR(VLOOKUP(B1119,[2]Sheet4!$F$2:$J$364,5,FALSE),\"\")","v":""}]
[null,null,{"$f":"IFERROR(VLOOKUP(B1120,[2]Sheet4!$F$2:$J$364,2,FALSE),\"\")","v":""},{"$f":"IFERROR(VLOOKUP(B1120,[2]Sheet4!$F$2:$J$364,3,FALSE),\"\")","v":""},{"$f":"IFERROR(VLOOKUP(B1120,[2]Sheet4!$F$2:$J$364,4,FALSE),\"\")","v":""},{"$f":"IFERROR(VLOOKUP(B1120,[2]Sheet4!$F$2:$J$364,5,FALSE),\"\")","v":""}]
[null,null,{"$f":"IFERROR(VLOOKUP(B1121,[2]Sheet4!$F$2:$J$364,2,FALSE),\"\")","v":""},{"$f":"IFERROR(VLOOKUP(B1121,[2]Sheet4!$F$2:$J$364,3,FALSE),\"\")","v":""},{"$f":"IFERROR(VLOOKUP(B1121,[2]Sheet4!$F$2:$J$364,4,FALSE),\"\")","v":""},{"$f":"IFERROR(VLOOKUP(B1121,[2]Sheet4!$F$2:$J$364,5,FALSE),\"\")","v":""}]
[null,null,{"$f":"IFERROR(VLOOKUP(B1122,[2]Sheet4!$F$2:$J$364,2,FALSE),\"\")","v":""},{"$f":"IFERROR(VLOOKUP(B1122,[2]Sheet4!$F$2:$J$364,3,FALSE),\"\")","v":""},{"$f":"IFERROR(VLOOKUP(B1122,[2]Sheet4!$F$2:$J$364,4,FALSE),\"\")","v":""},{"$f":"IFERROR(VLOOKUP(B1122,[2]Sheet4!$F$2:$J$364,5,FALSE),\"\")","v":""}]
[null,null,{"$f":"IFERROR(VLOOKUP(B1123,[2]Sheet4!$F$2:$J$364,2,FALSE),\"\")","v":""},{"$f":"IFERROR(VLOOKUP(B1123,[2]Sheet4!$F$2:$J$364,3,FALSE),\"\")","v":""},{"$f":"IFERROR(VLOOKUP(B1123,[2]Sheet4!$F$2:$J$364,4,FALSE),\"\")","v":""},{"$f":"IFERROR(VLOOKUP(B1123,[2]Sheet4!$F$2:$J$364,5,FALSE),\"\")","v":""}]
[null,null,{"$f":"IFERROR(VLOOKUP(B1124,[2]Sheet4!$F$2:$J$364,2,FALSE),\"\")","v":""},{"$f":"IFERROR(VLOOKUP(B1124,[2]Sheet4!$F$2:$J$364,3,FALSE),\"\")","v":""},{"$f":"IFERROR(VLOOKUP(B1124,[2]Sheet4!$F$2:$J$364,4,FALSE),\"\")","v":""},{"$f":"IFERROR(VLOOKUP(B1124,[2]Sheet4!$F$2:$J$364,5,FALSE),\"\")","v":""}]
[null,null,{"$f":"IFERROR(VLOOKUP(B1125,[2]Sheet4!$F$2:$J$364,2,FALSE),\"\")","v":""},{"$f":"IFERROR(VLOOKUP(B1125,[2]Sheet4!$F$2:$J$364,3,FALSE),\"\")","v":""},{"$f":"IFERROR(VLOOKUP(B1125,[2]Sheet4!$F$2:$J$364,4,FALSE),\"\")","v":""},{"$f":"IFERROR(VLOOKUP(B1125,[2]Sheet4!$F$2:$J$364,5,FALSE),\"\")","v":""}]
[null,null,{"$f":"IFERROR(VLOOKUP(B1126,[2]Sheet4!$F$2:$J$364,2,FALSE),\"\")","v":""},{"$f":"IFERROR(VLOOKUP(B1126,[2]Sheet4!$F$2:$J$364,3,FALSE),\"\")","v":""},{"$f":"IFERROR(VLOOKUP(B1126,[2]Sheet4!$F$2:$J$364,4,FALSE),\"\")","v":""},{"$f":"IFERROR(VLOOKUP(B1126,[2]Sheet4!$F$2:$J$364,5,FALSE),\"\")","v":""}]
[null,null,{"$f":"IFERROR(VLOOKUP(B1127,[2]Sheet4!$F$2:$J$364,2,FALSE),\"\")","v":""},{"$f":"IFERROR(VLOOKUP(B1127,[2]Sheet4!$F$2:$J$364,3,FALSE),\"\")","v":""},{"$f":"IFERROR(VLOOKUP(B1127,[2]Sheet4!$F$2:$J$364,4,FALSE),\"\")","v":""},{"$f":"IFERROR(VLOOKUP(B1127,[2]Sheet4!$F$2:$J$364,5,FALSE),\"\")","v":""}]
[null,null,{"$f":"IFERROR(VLOOKUP(B1128,[2]Sheet4!$F$2:$J$364,2,FALSE),\"\")","v":""},{"$f":"IFERROR(VLOOKUP(B1128,[2]Sheet4!$F$2:$J$364,3,FALSE),\"\")","v":""},{"$f":"IFERROR(VLOOKUP(B1128,[2]Sheet4!$F$2:$J$364,4,FALSE),\"\")","v":""},{"$f":"IFERROR(VLOOKUP(B1128,[2]Sheet4!$F$2:$J$364,5,FALSE),\"\")","v":""}]
[null,null,{"$f":"IFERROR(VLOOKUP(B1129,[2]Sheet4!$F$2:$J$364,2,FALSE),\"\")","v":""},{"$f":"IFERROR(VLOOKUP(B1129,[2]Sheet4!$F$2:$J$364,3,FALSE),\"\")","v":""},{"$f":"IFERROR(VLOOKUP(B1129,[2]Sheet4!$F$2:$J$364,4,FALSE),\"\")","v":""},{"$f":"IFERROR(VLOOKUP(B1129,[2]Sheet4!$F$2:$J$364,5,FALSE),\"\")","v":""}]
[null,null,{"$f":"IFERROR(VLOOKUP(B1130,[2]Sheet4!$F$2:$J$364,2,FALSE),\"\")","v":""},{"$f":"IFERROR(VLOOKUP(B1130,[2]Sheet4!$F$2:$J$364,3,FALSE),\"\")","v":""},{"$f":"IFERROR(VLOOKUP(B1130,[2]Sheet4!$F$2:$J$364,4,FALSE),\"\")","v":""},{"$f":"IFERROR(VLOOKUP(B1130,[2]Sheet4!$F$2:$J$364,5,FALSE),\"\")","v":""}]
[null,null,{"$f":"IFERROR(VLOOKUP(B1131,[2]Sheet4!$F$2:$J$364,2,FALSE),\"\")","v":""},{"$f":"IFERROR(VLOOKUP(B1131,[2]Sheet4!$F$2:$J$364,3,FALSE),\"\")","v":""},{"$f":"IFERROR(VLOOKUP(B1131,[2]Sheet4!$F$2:$J$364,4,FALSE),\"\")","v":""},{"$f":"IFERROR(VLOOKUP(B1131,[2]Sheet4!$F$2:$J$364,5,FALSE),\"\")","v":""}]
[null,null,{"$f":"IFERROR(VLOOKUP(B1132,[2]Sheet4!$F$2:$J$364,2,FALSE),\"\")","v":""},{"$f":"IFERROR(VLOOKUP(B1132,[2]Sheet4!$F$2:$J$364,3,FALSE),\"\")","v":""},{"$f":"IFERROR(VLOOKUP(B1132,[2]Sheet4!$F$2:$J$364,4,FALSE),\"\")","v":""},{"$f":"IFERROR(VLOOKUP(B1132,[2]Sheet4!$F$2:$J$364,5,FALSE),\"\")","v":""}]
[null,null,{"$f":"IFERROR(VLOOKUP(B1133,[2]Sheet4!$F$2:$J$364,2,FALSE),\"\")","v":""},{"$f":"IFERROR(VLOOKUP(B1133,[2]Sheet4!$F$2:$J$364,3,FALSE),\"\")","v":""},{"$f":"IFERROR(VLOOKUP(B1133,[2]Sheet4!$F$2:$J$364,4,FALSE),\"\")","v":""},{"$f":"IFERROR(VLOOKUP(B1133,[2]Sheet4!$F$2:$J$364,5,FALSE),\"\")","v":""}]
[null,null,{"$f":"IFERROR(VLOOKUP(B1134,[2]Sheet4!$F$2:$J$364,2,FALSE),\"\")","v":""},{"$f":"IFERROR(VLOOKUP(B1134,[2]Sheet4!$F$2:$J$364,3,FALSE),\"\")","v":""},{"$f":"IFERROR(VLOOKUP(B1134,[2]Sheet4!$F$2:$J$364,4,FALSE),\"\")","v":""},{"$f":"IFERROR(VLOOKUP(B1134,[2]Sheet4!$F$2:$J$364,5,FALSE),\"\")","v":""}]
[null,null,{"$f":"IFERROR(VLOOKUP(B1135,[2]Sheet4!$F$2:$J$364,2,FALSE),\"\")","v":""},{"$f":"IFERROR(VLOOKUP(B1135,[2]Sheet4!$F$2:$J$364,3,FALSE),\"\")","v":""},{"$f":"IFERROR(VLOOKUP(B1135,[2]Sheet4!$F$2:$J$364,4,FALSE),\"\")","v":""},{"$f":"IFERROR(VLOOKUP(B1135,[2]Sheet4!$F$2:$J$364,5,FALSE),\"\")","v":""}]
[null,null,{"$f":"IFERROR(VLOOKUP(B1136,[2]Sheet4!$F$2:$J$364,2,FALSE),\"\")","v":""},{"$f":"IFERROR(VLOOKUP(B1136,[2]Sheet4!$F$2:$J$364,3,FALSE),\"\")","v":""},{"$f":"IFERROR(VLOOKUP(B1136,[2]Sheet4!$F$2:$J$364,4,FALSE),\"\")","v":""},{"$f":"IFERROR(VLOOKUP(B1136,[2]Sheet4!$F$2:$J$364,5,FALSE),\"\")","v":""}]
[null,null,{"$f":"IFERROR(VLOOKUP(B1137,[2]Sheet4!$F$2:$J$364,2,FALSE),\"\")","v":""},{"$f":"IFERROR(VLOOKUP(B1137,[2]Sheet4!$F$2:$J$364,3,FALSE),\"\")","v":""},{"$f":"IFERROR(VLOOKUP(B1137,[2]Sheet4!$F$2:$J$364,4,FALSE),\"\")","v":""},{"$f":"IFERROR(VLOOKUP(B1137,[2]Sheet4!$F$2:$J$364,5,FALSE),\"\")","v":""}]
[null,null,{"$f":"IFERROR(VLOOKUP(B1138,[2]Sheet4!$F$2:$J$364,2,FALSE),\"\")","v":""},{"$f":"IFERROR(VLOOKUP(B1138,[2]Sheet4!$F$2:$J$364,3,FALSE),\"\")","v":""},{"$f":"IFERROR(VLOOKUP(B1138,[2]Sheet4!$F$2:$J$364,4,FALSE),\"\")","v":""},{"$f":"IFERROR(VLOOKUP(B1138,[2]Sheet4!$F$2:$J$364,5,FALSE),\"\")","v":""}]
[null,null,{"$f":"IFERROR(VLOOKUP(B1139,[2]Sheet4!$F$2:$J$364,2,FALSE),\"\")","v":""},{"$f":"IFERROR(VLOOKUP(B1139,[2]Sheet4!$F$2:$J$364,3,FALSE),\"\")","v":""},{"$f":"IFERROR(VLOOKUP(B1139,[2]Sheet4!$F$2:$J$364,4,FALSE),\"\")","v":""},{"$f":"IFERROR(VLOOKUP(B1139,[2]Sheet4!$F$2:$J$364,5,FALSE),\"\")","v":""}]
[null,null,{"$f":"IFERROR(VLOOKUP(B1140,[2]Sheet4!$F$2:$J$364,2,FALSE),\"\")","v":""},{"$f":"IFERROR(VLOOKUP(B1140,[2]Sheet4!$F$2:$J$364,3,FALSE),\"\")","v":""},{"$f":"IFERROR(VLOOKUP(B1140,[2]Sheet4!$F$2:$J$364,4,FALSE),\"\")","v":""},{"$f":"IFERROR(VLOOKUP(B1140,[2]Sheet4!$F$2:$J$364,5,FALSE),\"\")","v":""}]
[null,null,{"$f":"IFERROR(VLOOKUP(B1141,[2]Sheet4!$F$2:$J$364,2,FALSE),\"\")","v":""},{"$f":"IFERROR(VLOOKUP(B1141,[2]Sheet4!$F$2:$J$364,3,FALSE),\"\")","v":""},{"$f":"IFERROR(VLOOKUP(B1141,[2]Sheet4!$F$2:$J$364,4,FALSE),\"\")","v":""},{"$f":"IFERROR(VLOOKUP(B1141,[2]Sheet4!$F$2:$J$364,5,FALSE),\"\")","v":""}]
[null,null,{"$f":"IFERROR(VLOOKUP(B1142,[2]Sheet4!$F$2:$J$364,2,FALSE),\"\")","v":""},{"$f":"IFERROR(VLOOKUP(B1142,[2]Sheet4!$F$2:$J$364,3,FALSE),\"\")","v":""},{"$f":"IFERROR(VLOOKUP(B1142,[2]Sheet4!$F$2:$J$364,4,FALSE),\"\")","v":""},{"$f":"IFERROR(VLOOKUP(B1142,[2]Sheet4!$F$2:$J$364,5,FALSE),\"\")","v":""}]
[null,null,{"$f":"IFERROR(VLOOKUP(B1143,[2]Sheet4!$F$2:$J$364,2,FALSE),\"\")","v":""},{"$f":"IFERROR(VLOOKUP(B1143,[2]Sheet4!$F$2:$J$364,3,FALSE),\"\")","v":""},{"$f":"IFERROR(VLOOKUP(B1143,[2]Sheet4!$F$2:$J$364,4,FALSE),\"\")","v":""},{"$f":"IFERROR(VLOOKUP(B1143,[2]Sheet4!$F$2:$J$364,5,FALSE),\"\")","v":""}]
[null,null,{"$f":"IFERROR(VLOOKUP(B1144,[2]Sheet4!$F$2:$J$364,2,FALSE),\"\")","v":""},{"$f":"IFERROR(VLOOKUP(B1144,[2]Sheet4!$F$2:$J$364,3,FALSE),\"\")","v":""},{"$f":"IFERROR(VLOOKUP(B1144,[2]Sheet4!$F$2:$J$364,4,FALSE),\"\")","v":""},{"$f":"IFERROR(VLOOKUP(B1144,[2]Sheet4!$F$2:$J$364,5,FALSE),\"\")","v":""}]
[null,null,{"$f":"IFERROR(VLOOKUP(B1145,[2]Sheet4!$F$2:$J$364,2,FALSE),\"\")","v":""},{"$f":"IFERROR(VLOOKUP(B1145,[2]Sheet4!$F$2:$J$364,3,FALSE),\"\")","v":""},{"$f":"IFERROR(VLOOKUP(B1145,[2]Sheet4!$F$2:$J$364,4,FALSE),\"\")","v":""},{"$f":"IFERROR(VLOOKUP(B1145,[2]Sheet4!$F$2:$J$364,5,FALSE),\"\")","v":""}]
[null,null,{"$f":"IFERROR(VLOOKUP(B1146,[2]Sheet4!$F$2:$J$364,2,FALSE),\"\")","v":""},{"$f":"IFERROR(VLOOKUP(B1146,[2]Sheet4!$F$2:$J$364,3,FALSE),\"\")","v":""},{"$f":"IFERROR(VLOOKUP(B1146,[2]Sheet4!$F$2:$J$364,4,FALSE),\"\")","v":""},{"$f":"IFERROR(VLOOKUP(B1146,[2]Sheet4!$F$2:$J$364,5,FALSE),\"\")","v":""}]
[null,null,{"$f":"IFERROR(VLOOKUP(B1147,[2]Sheet4!$F$2:$J$364,2,FALSE),\"\")","v":""},{"$f":"IFERROR(VLOOKUP(B1147,[2]Sheet4!$F$2:$J$364,3,FALSE),\"\")","v":""},{"$f":"IFERROR(VLOOKUP(B1147,[2]Sheet4!$F$2:$J$364,4,FALSE),\"\")","v":""},{"$f":"IFERROR(VLOOKUP(B1147,[2]Sheet4!$F$2:$J$364,5,FALSE),\"\")","v":""}]
[null,null,{"$f":"IFERROR(VLOOKUP(B1148,[2]Sheet4!$F$2:$J$364,2,FALSE),\"\")","v":""},{"$f":"IFERROR(VLOOKUP(B1148,[2]Sheet4!$F$2:$J$364,3,FALSE),\"\")","v":""},{"$f":"IFERROR(VLOOKUP(B1148,[2]Sheet4!$F$2:$J$364,4,FALSE),\"\")","v":""},{"$f":"IFERROR(VLOOKUP(B1148,[2]Sheet4!$F$2:$J$364,5,FALSE),\"\")","v":""}]
[null,null,{"$f":"IFERROR(VLOOKUP(B1149,[2]Sheet4!$F$2:$J$364,2,FALSE),\"\")","v":""},{"$f":"IFERROR(VLOOKUP(B1149,[2]Sheet4!$F$2:$J$364,3,FALSE),\"\")","v":""},{"$f":"IFERROR(VLOOKUP(B1149,[2]Sheet4!$F$2:$J$364,4,FALSE),\"\")","v":""},{"$f":"IFERROR(VLOOKUP(B1149,[2]Sheet4!$F$2:$J$364,5,FALSE),\"\")","v":""}]
[null,null,{"$f":"IFERROR(VLOOKUP(B1150,[2]Sheet4!$F$2:$J$364,2,FALSE),\"\")","v":""},{"$f":"IFERROR(VLOOKUP(B1150,[2]Sheet4!$F$2:$J$364,3,FALSE),\"\")","v":""},{"$f":"IFERROR(VLOOKUP(B1150,[2]Sheet4!$F$2:$J$364,4,FALSE),\"\")","v":""},{"$f":"IFERROR(VLOOKUP(B1150,[2]Sheet4!$F$2:$J$364,5,FALSE),\"\")","v":""}]
[null,null,{"$f":"IFERROR(VLOOKUP(B1151,[2]Sheet4!$F$2:$J$364,2,FALSE),\"\")","v":""},{"$f":"IFERROR(VLOOKUP(B1151,[2]Sheet4!$F$2:$J$364,3,FALSE),\"\")","v":""},{"$f":"IFERROR(VLOOKUP(B1151,[2]Sheet4!$F$2:$J$364,4,FALSE),\"\")","v":""},{"$f":"IFERROR(VLOOKUP(B1151,[2]Sheet4!$F$2:$J$364,5,FALSE),\"\")","v":""}]
[null,null,{"$f":"IFERROR(VLOOKUP(B1152,[2]Sheet4!$F$2:$J$364,2,FALSE),\"\")","v":""},{"$f":"IFERROR(VLOOKUP(B1152,[2]Sheet4!$F$2:$J$364,3,FALSE),\"\")","v":""},{"$f":"IFERROR(VLOOKUP(B1152,[2]Sheet4!$F$2:$J$364,4,FALSE),\"\")","v":""},{"$f":"IFERROR(VLOOKUP(B1152,[2]Sheet4!$F$2:$J$364,5,FALSE),\"\")","v":""}]
[null,null,{"$f":"IFERROR(VLOOKUP(B1153,[2]Sheet4!$F$2:$J$364,2,FALSE),\"\")","v":""},{"$f":"IFERROR(VLOOKUP(B1153,[2]Sheet4!$F$2:$J$364,3,FALSE),\"\")","v":""},{"$f":"IFERROR(VLOOKUP(B1153,[2]Sheet4!$F$2:$J$364,4,FALSE),\"\")","v":""},{"$f":"IFERROR(VLOOKUP(B1153,[2]Sheet4!$F$2:$J$364,5,FALSE),\"\")","v":""}]
[null,null,{"$f":"IFERROR(VLOOKUP(B1154,[2]Sheet4!$F$2:$J$364,2,FALSE),\"\")","v":""},{"$f":"IFERROR(VLOOKUP(B1154,[2]Sheet4!$F$2:$J$364,3,FALSE),\"\")","v":""},{"$f":"IFERROR(VLOOKUP(B1154,[2]Sheet4!$F$2:$J$364,4,FALSE),\"\")","v":""},{"$f":"IFERROR(VLOOKUP(B1154,[2]Sheet4!$F$2:$J$364,5,FALSE),\"\")","v":""}]
[null,null,{"$f":"IFERROR(VLOOKUP(B1155,[2]Sheet4!$F$2:$J$364,2,FALSE),\"\")","v":""},{"$f":"IFERROR(VLOOKUP(B1155,[2]Sheet4!$F$2:$J$364,3,FALSE),\"\")","v":""},{"$f":"IFERROR(VLOOKUP(B1155,[2]Sheet4!$F$2:$J$364,4,FALSE),\"\")","v":""},{"$f":"IFERROR(VLOOKUP(B1155,[2]Sheet4!$F$2:$J$364,5,FALSE),\"\")","v":""}]
[null,null,{"$f":"IFERROR(VLOOKUP(B1156,[2]Sheet4!$F$2:$J$364,2,FALSE),\"\")","v":""},{"$f":"IFERROR(VLOOKUP(B1156,[2]Sheet4!$F$2:$J$364,3,FALSE),\"\")","v":""},{"$f":"IFERROR(VLOOKUP(B1156,[2]Sheet4!$F$2:$J$364,4,FALSE),\"\")","v":""},{"$f":"IFERROR(VLOOKUP(B1156,[2]Sheet4!$F$2:$J$364,5,FALSE),\"\")","v":""}]
[null,null,{"$f":"IFERROR(VLOOKUP(B1157,[2]Sheet4!$F$2:$J$364,2,FALSE),\"\")","v":""},{"$f":"IFERROR(VLOOKUP(B1157,[2]Sheet4!$F$2:$J$364,3,FALSE),\"\")","v":""},{"$f":"IFERROR(VLOOKUP(B1157,[2]Sheet4!$F$2:$J$364,4,FALSE),\"\")","v":""},{"$f":"IFERROR(VLOOKUP(B1157,[2]Sheet4!$F$2:$J$364,5,FALSE),\"\")","v":""}]
[null,null,{"$f":"IFERROR(VLOOKUP(B1158,[2]Sheet4!$F$2:$J$364,2,FALSE),\"\")","v":""},{"$f":"IFERROR(VLOOKUP(B1158,[2]Sheet4!$F$2:$J$364,3,FALSE),\"\")","v":""},{"$f":"IFERROR(VLOOKUP(B1158,[2]Sheet4!$F$2:$J$364,4,FALSE),\"\")","v":""},{"$f":"IFERROR(VLOOKUP(B1158,[2]Sheet4!$F$2:$J$364,5,FALSE),\"\")","v":""}]
[null,null,{"$f":"IFERROR(VLOOKUP(B1159,[2]Sheet4!$F$2:$J$364,2,FALSE),\"\")","v":""},{"$f":"IFERROR(VLOOKUP(B1159,[2]Sheet4!$F$2:$J$364,3,FALSE),\"\")","v":""},{"$f":"IFERROR(VLOOKUP(B1159,[2]Sheet4!$F$2:$J$364,4,FALSE),\"\")","v":""},{"$f":"IFERROR(VLOOKUP(B1159,[2]Sheet4!$F$2:$J$364,5,FALSE),\"\")","v":""}]
[null,null,{"$f":"IFERROR(VLOOKUP(B1160,[2]Sheet4!$F$2:$J$364,2,FALSE),\"\")","v":""},{"$f":"IFERROR(VLOOKUP(B1160,[2]Sheet4!$F$2:$J$364,3,FALSE),\"\")","v":""},{"$f":"IFERROR(VLOOKUP(B1160,[2]Sheet4!$F$2:$J$364,4,FALSE),\"\")","v":""},{"$f":"IFERROR(VLOOKUP(B1160,[2]Sheet4!$F$2:$J$364,5,FALSE),\"\")","v":""}]
[null,null,{"$f":"IFERROR(VLOOKUP(B1161,[2]Sheet4!$F$2:$J$364,2,FALSE),\"\")","v":""},{"$f":"IFERROR(VLOOKUP(B1161,[2]Sheet4!$F$2:$J$364,3,FALSE),\"\")","v":""},{"$f":"IFERROR(VLOOKUP(B1161,[2]Sheet4!$F$2:$J$364,4,FALSE),\"\")","v":""},{"$f":"IFERROR(VLOOKUP(B1161,[2]Sheet4!$F$2:$J$364,5,FALSE),\"\")","v":""}]
[null,null,{"$f":"IFERROR(VLOOKUP(B1162,[2]Sheet4!$F$2:$J$364,2,FALSE),\"\")","v":""},{"$f":"IFERROR(VLOOKUP(B1162,[2]Sheet4!$F$2:$J$364,3,FALSE),\"\")","v":""},{"$f":"IFERROR(VLOOKUP(B1162,[2]Sheet4!$F$2:$J$364,4,FALSE),\"\")","v":""},{"$f":"IFERROR(VLOOKUP(B1162,[2]Sheet4!$F$2:$J$364,5,FALSE),\"\")","v":""}]
[null,null,{"$f":"IFERROR(VLOOKUP(B1163,[2]Sheet4!$F$2:$J$364,2,FALSE),\"\")","v":""},{"$f":"IFERROR(VLOOKUP(B1163,[2]Sheet4!$F$2:$J$364,3,FALSE),\"\")","v":""},{"$f":"IFERROR(VLOOKUP(B1163,[2]Sheet4!$F$2:$J$364,4,FALSE),\"\")","v":""},{"$f":"IFERROR(VLOOKUP(B1163,[2]Sheet4!$F$2:$J$364,5,FALSE),\"\")","v":""}]
[null,null,{"$f":"IFERROR(VLOOKUP(B1164,[2]Sheet4!$F$2:$J$364,2,FALSE),\"\")","v":""},{"$f":"IFERROR(VLOOKUP(B1164,[2]Sheet4!$F$2:$J$364,3,FALSE),\"\")","v":""},{"$f":"IFERROR(VLOOKUP(B1164,[2]Sheet4!$F$2:$J$364,4,FALSE),\"\")","v":""},{"$f":"IFERROR(VLOOKUP(B1164,[2]Sheet4!$F$2:$J$364,5,FALSE),\"\")","v":""}]
[null,null,{"$f":"IFERROR(VLOOKUP(B1165,[2]Sheet4!$F$2:$J$364,2,FALSE),\"\")","v":""},{"$f":"IFERROR(VLOOKUP(B1165,[2]Sheet4!$F$2:$J$364,3,FALSE),\"\")","v":""},{"$f":"IFERROR(VLOOKUP(B1165,[2]Sheet4!$F$2:$J$364,4,FALSE),\"\")","v":""},{"$f":"IFERROR(VLOOKUP(B1165,[2]Sheet4!$F$2:$J$364,5,FALSE),\"\")","v":""}]
[null,null,{"$f":"IFERROR(VLOOKUP(B1166,[2]Sheet4!$F$2:$J$364,2,FALSE),\"\")","v":""},{"$f":"IFERROR(VLOOKUP(B1166,[2]Sheet4!$F$2:$J$364,3,FALSE),\"\")","v":""},{"$f":"IFERROR(VLOOKUP(B1166,[2]Sheet4!$F$2:$J$364,4,FALSE),\"\")","v":""},{"$f":"IFERROR(VLOOKUP(B1166,[2]Sheet4!$F$2:$J$364,5,FALSE),\"\")","v":""}]
[null,null,{"$f":"IFERROR(VLOOKUP(B1167,[2]Sheet4!$F$2:$J$364,2,FALSE),\"\")","v":""},{"$f":"IFERROR(VLOOKUP(B1167,[2]Sheet4!$F$2:$J$364,3,FALSE),\"\")","v":""},{"$f":"IFERROR(VLOOKUP(B1167,[2]Sheet4!$F$2:$J$364,4,FALSE),\"\")","v":""},{"$f":"IFERROR(VLOOKUP(B1167,[2]Sheet4!$F$2:$J$364,5,FALSE),\"\")","v":""}]
[null,null,{"$f":"IFERROR(VLOOKUP(B1168,[2]Sheet4!$F$2:$J$364,2,FALSE),\"\")","v":""},{"$f":"IFERROR(VLOOKUP(B1168,[2]Sheet4!$F$2:$J$364,3,FALSE),\"\")","v":""},{"$f":"IFERROR(VLOOKUP(B1168,[2]Sheet4!$F$2:$J$364,4,FALSE),\"\")","v":""},{"$f":"IFERROR(VLOOKUP(B1168,[2]Sheet4!$F$2:$J$364,5,FALSE),\"\")","v":""}]
[null,null,{"$f":"IFERROR(VLOOKUP(B1169,[2]Sheet4!$F$2:$J$364,2,FALSE),\"\")","v":""},{"$f":"IFERROR(VLOOKUP(B1169,[2]Sheet4!$F$2:$J$364,3,FALSE),\"\")","v":""},{"$f":"IFERROR(VLOOKUP(B1169,[2]Sheet4!$F$2:$J$364,4,FALSE),\"\")","v":""},{"$f":"IFERROR(VLOOKUP(B1169,[2]Sheet4!$F$2:$J$364,5,FALSE),\"\")","v":""}]
[null,null,{"$f":"IFERROR(VLOOKUP(B1170,[2]Sheet4!$F$2:$J$364,2,FALSE),\"\")","v":""},{"$f":"IFERROR(VLOOKUP(B1170,[2]Sheet4!$F$2:$J$364,3,FALSE),\"\")","v":""},{"$f":"IFERROR(VLOOKUP(B1170,[2]Sheet4!$F$2:$J$364,4,FALSE),\"\")","v":""},{"$f":"IFERROR(VLOOKUP(B1170,[2]Sheet4!$F$2:$J$364,5,FALSE),\"\")","v":""}]
[null,null,{"$f":"IFERROR(VLOOKUP(B1171,[2]Sheet4!$F$2:$J$364,2,FALSE),\"\")","v":""},{"$f":"IFERROR(VLOOKUP(B1171,[2]Sheet4!$F$2:$J$364,3,FALSE),\"\")","v":""},{"$f":"IFERROR(VLOOKUP(B1171,[2]Sheet4!$F$2:$J$364,4,FALSE),\"\")","v":""},{"$f":"IFERROR(VLOOKUP(B1171,[2]Sheet4!$F$2:$J$364,5,FALSE),\"\")","v":""}]
[null,null,{"$f":"IFERROR(VLOOKUP(B1172,[2]Sheet4!$F$2:$J$364,2,FALSE),\"\")","v":""},{"$f":"IFERROR(VLOOKUP(B1172,[2]Sheet4!$F$2:$J$364,3,FALSE),\"\")","v":""},{"$f":"IFERROR(VLOOKUP(B1172,[2]Sheet4!$F$2:$J$364,4,FALSE),\"\")","v":""},{"$f":"IFERROR(VLOOKUP(B1172,[2]Sheet4!$F$2:$J$364,5,FALSE),\"\")","v":""}]
[null,null,{"$f":"IFERROR(VLOOKUP(B1173,[2]Sheet4!$F$2:$J$364,2,FALSE),\"\")","v":""},{"$f":"IFERROR(VLOOKUP(B1173,[2]Sheet4!$F$2:$J$364,3,FALSE),\"\")","v":""},{"$f":"IFERROR(VLOOKUP(B1173,[2]Sheet4!$F$2:$J$364,4,FALSE),\"\")","v":""},{"$f":"IFERROR(VLOOKUP(B1173,[2]Sheet4!$F$2:$J$364,5,FALSE),\"\")","v":""}]
[null,null,{"$f":"IFERROR(VLOOKUP(B1174,[2]Sheet4!$F$2:$J$364,2,FALSE),\"\")","v":""},{"$f":"IFERROR(VLOOKUP(B1174,[2]Sheet4!$F$2:$J$364,3,FALSE),\"\")","v":""},{"$f":"IFERROR(VLOOKUP(B1174,[2]Sheet4!$F$2:$J$364,4,FALSE),\"\")","v":""},{"$f":"IFERROR(VLOOKUP(B1174,[2]Sheet4!$F$2:$J$364,5,FALSE),\"\")","v":""}]
[null,null,{"$f":"IFERROR(VLOOKUP(B1175,[2]Sheet4!$F$2:$J$364,2,FALSE),\"\")","v":""},{"$f":"IFERROR(VLOOKUP(B1175,[2]Sheet4!$F$2:$J$364,3,FALSE),\"\")","v":""},{"$f":"IFERROR(VLOOKUP(B1175,[2]Sheet4!$F$2:$J$364,4,FALSE),\"\")","v":""},{"$f":"IFERROR(VLOOKUP(B1175,[2]Sheet4!$F$2:$J$364,5,FALSE),\"\")","v":""}]
[null,null,{"$f":"IFERROR(VLOOKUP(B1176,[2]Sheet4!$F$2:$J$364,2,FALSE),\"\")","v":""},{"$f":"IFERROR(VLOOKUP(B1176,[2]Sheet4!$F$2:$J$364,3,FALSE),\"\")","v":""},{"$f":"IFERROR(VLOOKUP(B1176,[2]Sheet4!$F$2:$J$364,4,FALSE),\"\")","v":""},{"$f":"IFERROR(VLOOKUP(B1176,[2]Sheet4!$F$2:$J$364,5,FALSE),\"\")","v":""}]
[null,null,{"$f":"IFERROR(VLOOKUP(B1177,[2]Sheet4!$F$2:$J$364,2,FALSE),\"\")","v":""},{"$f":"IFERROR(VLOOKUP(B1177,[2]Sheet4!$F$2:$J$364,3,FALSE),\"\")","v":""},{"$f":"IFERROR(VLOOKUP(B1177,[2]Sheet4!$F$2:$J$364,4,FALSE),\"\")","v":""},{"$f":"IFERROR(VLOOKUP(B1177,[2]Sheet4!$F$2:$J$364,5,FALSE),\"\")","v":""}]
[null,null,{"$f":"IFERROR(VLOOKUP(B1178,[2]Sheet4!$F$2:$J$364,2,FALSE),\"\")","v":""},{"$f":"IFERROR(VLOOKUP(B1178,[2]Sheet4!$F$2:$J$364,3,FALSE),\"\")","v":""},{"$f":"IFERROR(VLOOKUP(B1178,[2]Sheet4!$F$2:$J$364,4,FALSE),\"\")","v":""},{"$f":"IFERROR(VLOOKUP(B1178,[2]Sheet4!$F$2:$J$364,5,FALSE),\"\")","v":""}]
[null,null,{"$f":"IFERROR(VLOOKUP(B1179,[2]Sheet4!$F$2:$J$364,2,FALSE),\"\")","v":""},{"$f":"IFERROR(VLOOKUP(B1179,[2]Sheet4!$F$2:$J$364,3,FALSE),\"\")","v":""},{"$f":"IFERROR(VLOOKUP(B1179,[2]Sheet4!$F$2:$J$364,4,FALSE),\"\")","v":""},{"$f":"IFERROR(VLOOKUP(B1179,[2]Sheet4!$F$2:$J$364,5,FALSE),\"\")","v":""}]
[null,null,{"$f":"IFERROR(VLOOKUP(B1180,[2]Sheet4!$F$2:$J$364,2,FALSE),\"\")","v":""},{"$f":"IFERROR(VLOOKUP(B1180,[2]Sheet4!$F$2:$J$364,3,FALSE),\"\")","v":""},{"$f":"IFERROR(VLOOKUP(B1180,[2]Sheet4!$F$2:$J$364,4,FALSE),\"\")","v":""},{"$f":"IFERROR(VLOOKUP(B1180,[2]Sheet4!$F$2:$J$364,5,FALSE),\"\")","v":""}]
[null,null,{"$f":"IFERROR(VLOOKUP(B1181,[2]Sheet4!$F$2:$J$364,2,FALSE),\"\")","v":""},{"$f":"IFERROR(VLOOKUP(B1181,[2]Sheet4!$F$2:$J$364,3,FALSE),\"\")","v":""},{"$f":"IFERROR(VLOOKUP(B1181,[2]Sheet4!$F$2:$J$364,4,FALSE),\"\")","v":""},{"$f":"IFERROR(VLOOKUP(B1181,[2]Sheet4!$F$2:$J$364,5,FALSE),\"\")","v":""}]
[null,null,{"$f":"IFERROR(VLOOKUP(B1182,[2]Sheet4!$F$2:$J$364,2,FALSE),\"\")","v":""},{"$f":"IFERROR(VLOOKUP(B1182,[2]Sheet4!$F$2:$J$364,3,FALSE),\"\")","v":""},{"$f":"IFERROR(VLOOKUP(B1182,[2]Sheet4!$F$2:$J$364,4,FALSE),\"\")","v":""},{"$f":"IFERROR(VLOOKUP(B1182,[2]Sheet4!$F$2:$J$364,5,FALSE),\"\")","v":""}]
[null,null,{"$f":"IFERROR(VLOOKUP(B1183,[2]Sheet4!$F$2:$J$364,2,FALSE),\"\")","v":""},{"$f":"IFERROR(VLOOKUP(B1183,[2]Sheet4!$F$2:$J$364,3,FALSE),\"\")","v":""},{"$f":"IFERROR(VLOOKUP(B1183,[2]Sheet4!$F$2:$J$364,4,FALSE),\"\")","v":""},{"$f":"IFERROR(VLOOKUP(B1183,[2]Sheet4!$F$2:$J$364,5,FALSE),\"\")","v":""}]
[null,null,{"$f":"IFERROR(VLOOKUP(B1184,[2]Sheet4!$F$2:$J$364,2,FALSE),\"\")","v":""},{"$f":"IFERROR(VLOOKUP(B1184,[2]Sheet4!$F$2:$J$364,3,FALSE),\"\")","v":""},{"$f":"IFERROR(VLOOKUP(B1184,[2]Sheet4!$F$2:$J$364,4,FALSE),\"\")","v":""},{"$f":"IFERROR(VLOOKUP(B1184,[2]Sheet4!$F$2:$J$364,5,FALSE),\"\")","v":""}]
[null,null,{"$f":"IFERROR(VLOOKUP(B1185,[2]Sheet4!$F$2:$J$364,2,FALSE),\"\")","v":""},{"$f":"IFERROR(VLOOKUP(B1185,[2]Sheet4!$F$2:$J$364,3,FALSE),\"\")","v":""},{"$f":"IFERROR(VLOOKUP(B1185,[2]Sheet4!$F$2:$J$364,4,FALSE),\"\")","v":""},{"$f":"IFERROR(VLOOKUP(B1185,[2]Sheet4!$F$2:$J$364,5,FALSE),\"\")","v":""}]
[null,null,{"$f":"IFERROR(VLOOKUP(B1186,[2]Sheet4!$F$2:$J$364,2,FALSE),\"\")","v":""},{"$f":"IFERROR(VLOOKUP(B1186,[2]Sheet4!$F$2:$J$364,3,FALSE),\"\")","v":""},{"$f":"IFERROR(VLOOKUP(B1186,[2]Sheet4!$F$2:$J$364,4,FALSE),\"\")","v":""},{"$f":"IFERROR(VLOOKUP(B1186,[2]Sheet4!$F$2:$J$364,5,FALSE),\"\")","v":""}]
[null,null,{"$f":"IFERROR(VLOOKUP(B1187,[2]Sheet4!$F$2:$J$364,2,FALSE),\"\")","v":""},{"$f":"IFERROR(VLOOKUP(B1187,[2]Sheet4!$F$2:$J$364,3,FALSE),\"\")","v":""},{"$f":"IFERROR(VLOOKUP(B1187,[2]Sheet4!$F$2:$J$364,4,FALSE),\"\")","v":""},{"$f":"IFERROR(VLOOKUP(B1187,[2]Sheet4!$F$2:$J$364,5,FALSE),\"\")","v":""}]
[null,null,{"$f":"IFERROR(VLOOKUP(B1188,[2]Sheet4!$F$2:$J$364,2,FALSE),\"\")","v":""},{"$f":"IFERROR(VLOOKUP(B1188,[2]Sheet4!$F$2:$J$364,3,FALSE),\"\")","v":""},{"$f":"IFERROR(VLOOKUP(B1188,[2]Sheet4!$F$2:$J$364,4,FALSE),\"\")","v":""},{"$f":"IFERROR(VLOOKUP(B1188,[2]Sheet4!$F$2:$J$364,5,FALSE),\"\")","v":""}]
[null,null,{"$f":"IFERROR(VLOOKUP(B1189,[2]Sheet4!$F$2:$J$364,2,FALSE),\"\")","v":""},{"$f":"IFERROR(VLOOKUP(B1189,[2]Sheet4!$F$2:$J$364,3,FALSE),\"\")","v":""},{"$f":"IFERROR(VLOOKUP(B1189,[2]Sheet4!$F$2:$J$364,4,FALSE),\"\")","v":""},{"$f":"IFERROR(VLOOKUP(B1189,[2]Sheet4!$F$2:$J$364,5,FALSE),\"\")","v":""}]
[null,null,{"$f":"IFERROR(VLOOKUP(B1190,[2]Sheet4!$F$2:$J$364,2,FALSE),\"\")","v":""},{"$f":"IFERROR(VLOOKUP(B1190,[2]Sheet4!$F$2:$J$364,3,FALSE),\"\")","v":""},{"$f":"IFERROR(VLOOKUP(B1190,[2]Sheet4!$F$2:$J$364,4,FALSE),\"\")","v":""},{"$f":"IFERROR(VLOOKUP(B1190,[2]Sheet4!$F$2:$J$364,5,FALSE),\"\")","v":""}]
[null,null,{"$f":"IFERROR(VLOOKUP(B1191,[2]Sheet4!$F$2:$J$364,2,FALSE),\"\")","v":""},{"$f":"IFERROR(VLOOKUP(B1191,[2]Sheet4!$F$2:$J$364,3,FALSE),\"\")","v":""},{"$f":"IFERROR(VLOOKUP(B1191,[2]Sheet4!$F$2:$J$364,4,FALSE),\"\")","v":""},{"$f":"IFERROR(VLOOKUP(B1191,[2]Sheet4!$F$2:$J$364,5,FALSE),\"\")","v":""}]
[null,null,{"$f":"IFERROR(VLOOKUP(B1192,[2]Sheet4!$F$2:$J$364,2,FALSE),\"\")","v":""},{"$f":"IFERROR(VLOOKUP(B1192,[2]Sheet4!$F$2:$J$364,3,FALSE),\"\")","v":""},{"$f":"IFERROR(VLOOKUP(B1192,[2]Sheet4!$F$2:$J$364,4,FALSE),\"\")","v":""},{"$f":"IFERROR(VLOOKUP(B1192,[2]Sheet4!$F$2:$J$364,5,FALSE),\"\")","v":""}]
[null,null,{"$f":"IFERROR(VLOOKUP(B1193,[2]Sheet4!$F$2:$J$364,2,FALSE),\"\")","v":""},{"$f":"IFERROR(VLOOKUP(B1193,[2]Sheet4!$F$2:$J$364,3,FALSE),\"\")","v":""},{"$f":"IFERROR(VLOOKUP(B1193,[2]Sheet4!$F$2:$J$364,4,FALSE),\"\")","v":""},{"$f":"IFERROR(VLOOKUP(B1193,[2]Sheet4!$F$2:$J$364,5,FALSE),\"\")","v":""}]
[null,null,{"$f":"IFERROR(VLOOKUP(B1194,[2]Sheet4!$F$2:$J$364,2,FALSE),\"\")","v":""},{"$f":"IFERROR(VLOOKUP(B1194,[2]Sheet4!$F$2:$J$364,3,FALSE),\"\")","v":""},{"$f":"IFERROR(VLOOKUP(B1194,[2]Sheet4!$F$2:$J$364,4,FALSE),\"\")","v":""},{"$f":"IFERROR(VLOOKUP(B1194,[2]Sheet4!$F$2:$J$364,5,FALSE),\"\")","v":""}]
[null,null,{"$f":"IFERROR(VLOOKUP(B1195,[2]Sheet4!$F$2:$J$364,2,FALSE),\"\")","v":""},{"$f":"IFERROR(VLOOKUP(B1195,[2]Sheet4!$F$2:$J$364,3,FALSE),\"\")","v":""},{"$f":"IFERROR(VLOOKUP(B1195,[2]Sheet4!$F$2:$J$364,4,FALSE),\"\")","v":""},{"$f":"IFERROR(VLOOKUP(B1195,[2]Sheet4!$F$2:$J$364,5,FALSE),\"\")","v":""}]
[null,null,{"$f":"IFERROR(VLOOKUP(B1196,[2]Sheet4!$F$2:$J$364,2,FALSE),\"\")","v":""},{"$f":"IFERROR(VLOOKUP(B1196,[2]Sheet4!$F$2:$J$364,3,FALSE),\"\")","v":""},{"$f":"IFERROR(VLOOKUP(B1196,[2]Sheet4!$F$2:$J$364,4,FALSE),\"\")","v":""},{"$f":"IFERROR(VLOOKUP(B1196,[2]Sheet4!$F$2:$J$364,5,FALSE),\"\")","v":""}]
[null,null,{"$f":"IFERROR(VLOOKUP(B1197,[2]Sheet4!$F$2:$J$364,2,FALSE),\"\")","v":""},{"$f":"IFERROR(VLOOKUP(B1197,[2]Sheet4!$F$2:$J$364,3,FALSE),\"\")","v":""},{"$f":"IFERROR(VLOOKUP(B1197,[2]Sheet4!$F$2:$J$364,4,FALSE),\"\")","v":""},{"$f":"IFERROR(VLOOKUP(B1197,[2]Sheet4!$F$2:$J$364,5,FALSE),\"\")","v":""}]
[null,null,{"$f":"IFERROR(VLOOKUP(B1198,[2]Sheet4!$F$2:$J$364,2,FALSE),\"\")","v":""},{"$f":"IFERROR(VLOOKUP(B1198,[2]Sheet4!$F$2:$J$364,3,FALSE),\"\")","v":""},{"$f":"IFERROR(VLOOKUP(B1198,[2]Sheet4!$F$2:$J$364,4,FALSE),\"\")","v":""},{"$f":"IFERROR(VLOOKUP(B1198,[2]Sheet4!$F$2:$J$364,5,FALSE),\"\")","v":""}]
[null,null,{"$f":"IFERROR(VLOOKUP(B1199,[2]Sheet4!$F$2:$J$364,2,FALSE),\"\")","v":""},{"$f":"IFERROR(VLOOKUP(B1199,[2]Sheet4!$F$2:$J$364,3,FALSE),\"\")","v":""},{"$f":"IFERROR(VLOOKUP(B1199,[2]Sheet4!$F$2:$J$364,4,FALSE),\"\")","v":""},{"$f":"IFERROR(VLOOKUP(B1199,[2]Sheet4!$F$2:$J$364,5,FALSE),\"\")","v":""}]
[null,null,{"$f":"IFERROR(VLOOKUP(B1200,[2]Sheet4!$F$2:$J$364,2,FALSE),\"\")","v":""},{"$f":"IFERROR(VLOOKUP(B1200,[2]Sheet4!$F$2:$J$364,3,FALSE),\"\")","v":""},{"$f":"IFERROR(VLOOKUP(B1200,[2]Sheet4!$F$2:$J$364,4,FALSE),\"\")","v":""},{"$f":"IFERROR(VLOOKUP(B1200,[2]Sheet4!$F$2:$J$364,5,FALSE),\"\")","v":""}]
[null,null,{"$f":"IFERROR(VLOOKUP(B1201,[2]Sheet4!$F$2:$J$364,2,FALSE),\"\")","v":""},{"$f":"IFERROR(VLOOKUP(B1201,[2]Sheet4!$F$2:$J$364,3,FALSE),\"\")","v":""},{"$f":"IFERROR(VLOOKUP(B1201,[2]Sheet4!$F$2:$J$364,4,FALSE),\"\")","v":""},{"$f":"IFERROR(VLOOKUP(B1201,[2]Sheet4!$F$2:$J$364,5,FALSE),\"\")","v":""}]
[null,null,{"$f":"IFERROR(VLOOKUP(B1202,[2]Sheet4!$F$2:$J$364,2,FALSE),\"\")","v":""},{"$f":"IFERROR(VLOOKUP(B1202,[2]Sheet4!$F$2:$J$364,3,FALSE),\"\")","v":""},{"$f":"IFERROR(VLOOKUP(B1202,[2]Sheet4!$F$2:$J$364,4,FALSE),\"\")","v":""},{"$f":"IFERROR(VLOOKUP(B1202,[2]Sheet4!$F$2:$J$364,5,FALSE),\"\")","v":""}]
[null,null,{"$f":"IFERROR(VLOOKUP(B1203,[2]Sheet4!$F$2:$J$364,2,FALSE),\"\")","v":""},{"$f":"IFERROR(VLOOKUP(B1203,[2]Sheet4!$F$2:$J$364,3,FALSE),\"\")","v":""},{"$f":"IFERROR(VLOOKUP(B1203,[2]Sheet4!$F$2:$J$364,4,FALSE),\"\")","v":""},{"$f":"IFERROR(VLOOKUP(B1203,[2]Sheet4!$F$2:$J$364,5,FALSE),\"\")","v":""}]
[null,null,{"$f":"IFERROR(VLOOKUP(B1204,[2]Sheet4!$F$2:$J$364,2,FALSE),\"\")","v":""},{"$f":"IFERROR(VLOOKUP(B1204,[2]Sheet4!$F$2:$J$364,3,FALSE),\"\")","v":""},{"$f":"IFERROR(VLOOKUP(B1204,[2]Sheet4!$F$2:$J$364,4,FALSE),\"\")","v":""},{"$f":"IFERROR(VLOOKUP(B1204,[2]Sheet4!$F$2:$J$364,5,FALSE),\"\")","v":""}]
[null,null,{"$f":"IFERROR(VLOOKUP(B1205,[2]Sheet4!$F$2:$J$364,2,FALSE),\"\")","v":""},{"$f":"IFERROR(VLOOKUP(B1205,[2]Sheet4!$F$2:$J$364,3,FALSE),\"\")","v":""},{"$f":"IFERROR(VLOOKUP(B1205,[2]Sheet4!$F$2:$J$364,4,FALSE),\"\")","v":""},{"$f":"IFERROR(VLOOKUP(B1205,[2]Sheet4!$F$2:$J$364,5,FALSE),\"\")","v":""}]
[null,null,{"$f":"IFERROR(VLOOKUP(B1206,[2]Sheet4!$F$2:$J$364,2,FALSE),\"\")","v":""},{"$f":"IFERROR(VLOOKUP(B1206,[2]Sheet4!$F$2:$J$364,3,FALSE),\"\")","v":""},{"$f":"IFERROR(VLOOKUP(B1206,[2]Sheet4!$F$2:$J$364,4,FALSE),\"\")","v":""},{"$f":"IFERROR(VLOOKUP(B1206,[2]Sheet4!$F$2:$J$364,5,FALSE),\"\")","v":""}]
[null,null,{"$f":"IFERROR(VLOOKUP(B1207,[2]Sheet4!$F$2:$J$364,2,FALSE),\"\")","v":""},{"$f":"IFERROR(VLOOKUP(B1207,[2]Sheet4!$F$2:$J$364,3,FALSE),\"\")","v":""},{"$f":"IFERROR(VLOOKUP(B1207,[2]Sheet4!$F$2:$J$364,4,FALSE),\"\")","v":""},{"$f":"IFERROR(VLOOKUP(B1207,[2]Sheet4!$F$2:$J$364,5,FALSE),\"\")","v":""}]
[null,null,{"$f":"IFERROR(VLOOKUP(B1208,[2]Sheet4!$F$2:$J$364,2,FALSE),\"\")","v":""},{"$f":"IFERROR(VLOOKUP(B1208,[2]Sheet4!$F$2:$J$364,3,FALSE),\"\")","v":""},{"$f":"IFERROR(VLOOKUP(B1208,[2]Sheet4!$F$2:$J$364,4,FALSE),\"\")","v":""},{"$f":"IFERROR(VLOOKUP(B1208,[2]Sheet4!$F$2:$J$364,5,FALSE),\"\")","v":""}]
[null,null,{"$f":"IFERROR(VLOOKUP(B1209,[2]Sheet4!$F$2:$J$364,2,FALSE),\"\")","v":""},{"$f":"IFERROR(VLOOKUP(B1209,[2]Sheet4!$F$2:$J$364,3,FALSE),\"\")","v":""},{"$f":"IFERROR(VLOOKUP(B1209,[2]Sheet4!$F$2:$J$364,4,FALSE),\"\")","v":""},{"$f":"IFERROR(VLOOKUP(B1209,[2]Sheet4!$F$2:$J$364,5,FALSE),\"\")","v":""}]
[null,null,{"$f":"IFERROR(VLOOKUP(B1210,[2]Sheet4!$F$2:$J$364,2,FALSE),\"\")","v":""},{"$f":"IFERROR(VLOOKUP(B1210,[2]Sheet4!$F$2:$J$364,3,FALSE),\"\")","v":""},{"$f":"IFERROR(VLOOKUP(B1210,[2]Sheet4!$F$2:$J$364,4,FALSE),\"\")","v":""},{"$f":"IFERROR(VLOOKUP(B1210,[2]Sheet4!$F$2:$J$364,5,FALSE),\"\")","v":""}]
[null,null,{"$f":"IFERROR(VLOOKUP(B1211,[2]Sheet4!$F$2:$J$364,2,FALSE),\"\")","v":""},{"$f":"IFERROR(VLOOKUP(B1211,[2]Sheet4!$F$2:$J$364,3,FALSE),\"\")","v":""},{"$f":"IFERROR(VLOOKUP(B1211,[2]Sheet4!$F$2:$J$364,4,FALSE),\"\")","v":""},{"$f":"IFERROR(VLOOKUP(B1211,[2]Sheet4!$F$2:$J$364,5,FALSE),\"\")","v":""}]
[null,null,{"$f":"IFERROR(VLOOKUP(B1212,[2]Sheet4!$F$2:$J$364,2,FALSE),\"\")","v":""},{"$f":"IFERROR(VLOOKUP(B1212,[2]Sheet4!$F$2:$J$364,3,FALSE),\"\")","v":""},{"$f":"IFERROR(VLOOKUP(B1212,[2]Sheet4!$F$2:$J$364,4,FALSE),\"\")","v":""},{"$f":"IFERROR(VLOOKUP(B1212,[2]Sheet4!$F$2:$J$364,5,FALSE),\"\")","v":""}]
[null,null,{"$f":"IFERROR(VLOOKUP(B1213,[2]Sheet4!$F$2:$J$364,2,FALSE),\"\")","v":""},{"$f":"IFERROR(VLOOKUP(B1213,[2]Sheet4!$F$2:$J$364,3,FALSE),\"\")","v":""},{"$f":"IFERROR(VLOOKUP(B1213,[2]Sheet4!$F$2:$J$364,4,FALSE),\"\")","v":""},{"$f":"IFERROR(VLOOKUP(B1213,[2]Sheet4!$F$2:$J$364,5,FALSE),\"\")","v":""}]
[null,null,{"$f":"IFERROR(VLOOKUP(B1214,[2]Sheet4!$F$2:$J$364,2,FALSE),\"\")","v":""},{"$f":"IFERROR(VLOOKUP(B1214,[2]Sheet4!$F$2:$J$364,3,FALSE),\"\")","v":""},{"$f":"IFERROR(VLOOKUP(B1214,[2]Sheet4!$F$2:$J$364,4,FALSE),\"\")","v":""},{"$f":"IFERROR(VLOOKUP(B1214,[2]Sheet4!$F$2:$J$364,5,FALSE),\"\")","v":""}]
[null,null,{"$f":"IFERROR(VLOOKUP(B1215,[2]Sheet4!$F$2:$J$364,2,FALSE),\"\")","v":""},{"$f":"IFERROR(VLOOKUP(B1215,[2]Sheet4!$F$2:$J$364,3,FALSE),\"\")","v":""},{"$f":"IFERROR(VLOOKUP(B1215,[2]Sheet4!$F$2:$J$364,4,FALSE),\"\")","v":""},{"$f":"IFERROR(VLOOKUP(B1215,[2]Sheet4!$F$2:$J$364,5,FALSE),\"\")","v":""}]
[null,null,{"$f":"IFERROR(VLOOKUP(B1216,[2]Sheet4!$F$2:$J$364,2,FALSE),\"\")","v":""},{"$f":"IFERROR(VLOOKUP(B1216,[2]Sheet4!$F$2:$J$364,3,FALSE),\"\")","v":""},{"$f":"IFERROR(VLOOKUP(B1216,[2]Sheet4!$F$2:$J$364,4,FALSE),\"\")","v":""},{"$f":"IFERROR(VLOOKUP(B1216,[2]Sheet4!$F$2:$J$364,5,FALSE),\"\")","v":""}]
[null,null,{"$f":"IFERROR(VLOOKUP(B1217,[2]Sheet4!$F$2:$J$364,2,FALSE),\"\")","v":""},{"$f":"IFERROR(VLOOKUP(B1217,[2]Sheet4!$F$2:$J$364,3,FALSE),\"\")","v":""},{"$f":"IFERROR(VLOOKUP(B1217,[2]Sheet4!$F$2:$J$364,4,FALSE),\"\")","v":""},{"$f":"IFERROR(VLOOKUP(B1217,[2]Sheet4!$F$2:$J$364,5,FALSE),\"\")","v":""}]
[null,null,{"$f":"IFERROR(VLOOKUP(B1218,[2]Sheet4!$F$2:$J$364,2,FALSE),\"\")","v":""},{"$f":"IFERROR(VLOOKUP(B1218,[2]Sheet4!$F$2:$J$364,3,FALSE),\"\")","v":""},{"$f":"IFERROR(VLOOKUP(B1218,[2]Sheet4!$F$2:$J$364,4,FALSE),\"\")","v":""},{"$f":"IFERROR(VLOOKUP(B1218,[2]Sheet4!$F$2:$J$364,5,FALSE),\"\")","v":""}]
[null,null,{"$f":"IFERROR(VLOOKUP(B1219,[2]Sheet4!$F$2:$J$364,2,FALSE),\"\")","v":""},{"$f":"IFERROR(VLOOKUP(B1219,[2]Sheet4!$F$2:$J$364,3,FALSE),\"\")","v":""},{"$f":"IFERROR(VLOOKUP(B1219,[2]Sheet4!$F$2:$J$364,4,FALSE),\"\")","v":""},{"$f":"IFERROR(VLOOKUP(B1219,[2]Sheet4!$F$2:$J$364,5,FALSE),\"\")","v":""}]
[null,null,{"$f":"IFERROR(VLOOKUP(B1220,[2]Sheet4!$F$2:$J$364,2,FALSE),\"\")","v":""},{"$f":"IFERROR(VLOOKUP(B1220,[2]Sheet4!$F$2:$J$364,3,FALSE),\"\")","v":""},{"$f":"IFERROR(VLOOKUP(B1220,[2]Sheet4!$F$2:$J$364,4,FALSE),\"\")","v":""},{"$f":"IFERROR(VLOOKUP(B1220,[2]Sheet4!$F$2:$J$364,5,FALSE),\"\")","v":""}]
[null,null,{"$f":"IFERROR(VLOOKUP(B1221,[2]Sheet4!$F$2:$J$364,2,FALSE),\"\")","v":""},{"$f":"IFERROR(VLOOKUP(B1221,[2]Sheet4!$F$2:$J$364,3,FALSE),\"\")","v":""},{"$f":"IFERROR(VLOOKUP(B1221,[2]Sheet4!$F$2:$J$364,4,FALSE),\"\")","v":""},{"$f":"IFERROR(VLOOKUP(B1221,[2]Sheet4!$F$2:$J$364,5,FALSE),\"\")","v":""}]
[null,null,{"$f":"IFERROR(VLOOKUP(B1222,[2]Sheet4!$F$2:$J$364,2,FALSE),\"\")","v":""},{"$f":"IFERROR(VLOOKUP(B1222,[2]Sheet4!$F$2:$J$364,3,FALSE),\"\")","v":""},{"$f":"IFERROR(VLOOKUP(B1222,[2]Sheet4!$F$2:$J$364,4,FALSE),\"\")","v":""},{"$f":"IFERROR(VLOOKUP(B1222,[2]Sheet4!$F$2:$J$364,5,FALSE),\"\")","v":""}]
[null,null,{"$f":"IFERROR(VLOOKUP(B1223,[2]Sheet4!$F$2:$J$364,2,FALSE),\"\")","v":""},{"$f":"IFERROR(VLOOKUP(B1223,[2]Sheet4!$F$2:$J$364,3,FALSE),\"\")","v":""},{"$f":"IFERROR(VLOOKUP(B1223,[2]Sheet4!$F$2:$J$364,4,FALSE),\"\")","v":""},{"$f":"IFERROR(VLOOKUP(B1223,[2]Sheet4!$F$2:$J$364,5,FALSE),\"\")","v":""}]
[null,null,{"$f":"IFERROR(VLOOKUP(B1224,[2]Sheet4!$F$2:$J$364,2,FALSE),\"\")","v":""},{"$f":"IFERROR(VLOOKUP(B1224,[2]Sheet4!$F$2:$J$364,3,FALSE),\"\")","v":""},{"$f":"IFERROR(VLOOKUP(B1224,[2]Sheet4!$F$2:$J$364,4,FALSE),\"\")","v":""},{"$f":"IFERROR(VLOOKUP(B1224,[2]Sheet4!$F$2:$J$364,5,FALSE),\"\")","v":""}]
[null,null,{"$f":"IFERROR(VLOOKUP(B1225,[2]Sheet4!$F$2:$J$364,2,FALSE),\"\")","v":""},{"$f":"IFERROR(VLOOKUP(B1225,[2]Sheet4!$F$2:$J$364,3,FALSE),\"\")","v":""},{"$f":"IFERROR(VLOOKUP(B1225,[2]Sheet4!$F$2:$J$364,4,FALSE),\"\")","v":""},{"$f":"IFERROR(VLOOKUP(B1225,[2]Sheet4!$F$2:$J$364,5,FALSE),\"\")","v":""}]
[null,null,{"$f":"IFERROR(VLOOKUP(B1226,[2]Sheet4!$F$2:$J$364,2,FALSE),\"\")","v":""},{"$f":"IFERROR(VLOOKUP(B1226,[2]Sheet4!$F$2:$J$364,3,FALSE),\"\")","v":""},{"$f":"IFERROR(VLOOKUP(B1226,[2]Sheet4!$F$2:$J$364,4,FALSE),\"\")","v":""},{"$f":"IFERROR(VLOOKUP(B1226,[2]Sheet4!$F$2:$J$364,5,FALSE),\"\")","v":""}]
[null,null,{"$f":"IFERROR(VLOOKUP(B1227,[2]Sheet4!$F$2:$J$364,2,FALSE),\"\")","v":""},{"$f":"IFERROR(VLOOKUP(B1227,[2]Sheet4!$F$2:$J$364,3,FALSE),\"\")","v":""},{"$f":"IFERROR(VLOOKUP(B1227,[2]Sheet4!$F$2:$J$364,4,FALSE),\"\")","v":""},{"$f":"IFERROR(VLOOKUP(B1227,[2]Sheet4!$F$2:$J$364,5,FALSE),\"\")","v":""}]
[null,null,{"$f":"IFERROR(VLOOKUP(B1228,[2]Sheet4!$F$2:$J$364,2,FALSE),\"\")","v":""},{"$f":"IFERROR(VLOOKUP(B1228,[2]Sheet4!$F$2:$J$364,3,FALSE),\"\")","v":""},{"$f":"IFERROR(VLOOKUP(B1228,[2]Sheet4!$F$2:$J$364,4,FALSE),\"\")","v":""},{"$f":"IFERROR(VLOOKUP(B1228,[2]Sheet4!$F$2:$J$364,5,FALSE),\"\")","v":""}]
[null,null,{"$f":"IFERROR(VLOOKUP(B1229,[2]Sheet4!$F$2:$J$364,2,FALSE),\"\")","v":""},{"$f":"IFERROR(VLOOKUP(B1229,[2]Sheet4!$F$2:$J$364,3,FALSE),\"\")","v":""},{"$f":"IFERROR(VLOOKUP(B1229,[2]Sheet4!$F$2:$J$364,4,FALSE),\"\")","v":""},{"$f":"IFERROR(VLOOKUP(B1229,[2]Sheet4!$F$2:$J$364,5,FALSE),\"\")","v":""}]
[null,null,{"$f":"IFERROR(VLOOKUP(B1230,[2]Sheet4!$F$2:$J$364,2,FALSE),\"\")","v":""},{"$f":"IFERROR(VLOOKUP(B1230,[2]Sheet4!$F$2:$J$364,3,FALSE),\"\")","v":""},{"$f":"IFERROR(VLOOKUP(B1230,[2]Sheet4!$F$2:$J$364,4,FALSE),\"\")","v":""},{"$f":"IFERROR(VLOOKUP(B1230,[2]Sheet4!$F$2:$J$364,5,FALSE),\"\")","v":""}]
[null,null,{"$f":"IFERROR(VLOOKUP(B1231,[2]Sheet4!$F$2:$J$364,2,FALSE),\"\")","v":""},{"$f":"IFERROR(VLOOKUP(B1231,[2]Sheet4!$F$2:$J$364,3,FALSE),\"\")","v":""},{"$f":"IFERROR(VLOOKUP(B1231,[2]Sheet4!$F$2:$J$364,4,FALSE),\"\")","v":""},{"$f":"IFERROR(VLOOKUP(B1231,[2]Sheet4!$F$2:$J$364,5,FALSE),\"\")","v":""}]
[null,null,{"$f":"IFERROR(VLOOKUP(B1232,[2]Sheet4!$F$2:$J$364,2,FALSE),\"\")","v":""},{"$f":"IFERROR(VLOOKUP(B1232,[2]Sheet4!$F$2:$J$364,3,FALSE),\"\")","v":""},{"$f":"IFERROR(VLOOKUP(B1232,[2]Sheet4!$F$2:$J$364,4,FALSE),\"\")","v":""},{"$f":"IFERROR(VLOOKUP(B1232,[2]Sheet4!$F$2:$J$364,5,FALSE),\"\")","v":""}]
[null,null,{"$f":"IFERROR(VLOOKUP(B1233,[2]Sheet4!$F$2:$J$364,2,FALSE),\"\")","v":""},{"$f":"IFERROR(VLOOKUP(B1233,[2]Sheet4!$F$2:$J$364,3,FALSE),\"\")","v":""},{"$f":"IFERROR(VLOOKUP(B1233,[2]Sheet4!$F$2:$J$364,4,FALSE),\"\")","v":""},{"$f":"IFERROR(VLOOKUP(B1233,[2]Sheet4!$F$2:$J$364,5,FALSE),\"\")","v":""}]
[null,null,{"$f":"IFERROR(VLOOKUP(B1234,[2]Sheet4!$F$2:$J$364,2,FALSE),\"\")","v":""},{"$f":"IFERROR(VLOOKUP(B1234,[2]Sheet4!$F$2:$J$364,3,FALSE),\"\")","v":""},{"$f":"IFERROR(VLOOKUP(B1234,[2]Sheet4!$F$2:$J$364,4,FALSE),\"\")","v":""},{"$f":"IFERROR(VLOOKUP(B1234,[2]Sheet4!$F$2:$J$364,5,FALSE),\"\")","v":""}]
[null,null,{"$f":"IFERROR(VLOOKUP(B1235,[2]Sheet4!$F$2:$J$364,2,FALSE),\"\")","v":""},{"$f":"IFERROR(VLOOKUP(B1235,[2]Sheet4!$F$2:$J$364,3,FALSE),\"\")","v":""},{"$f":"IFERROR(VLOOKUP(B1235,[2]Sheet4!$F$2:$J$364,4,FALSE),\"\")","v":""},{"$f":"IFERROR(VLOOKUP(B1235,[2]Sheet4!$F$2:$J$364,5,FALSE),\"\")","v":""}]
[null,null,{"$f":"IFERROR(VLOOKUP(B1236,[2]Sheet4!$F$2:$J$364,2,FALSE),\"\")","v":""},{"$f":"IFERROR(VLOOKUP(B1236,[2]Sheet4!$F$2:$J$364,3,FALSE),\"\")","v":""},{"$f":"IFERROR(VLOOKUP(B1236,[2]Sheet4!$F$2:$J$364,4,FALSE),\"\")","v":""},{"$f":"IFERROR(VLOOKUP(B1236,[2]Sheet4!$F$2:$J$364,5,FALSE),\"\")","v":""}]
[null,null,{"$f":"IFERROR(VLOOKUP(B1237,[2]Sheet4!$F$2:$J$364,2,FALSE),\"\")","v":""},{"$f":"IFERROR(VLOOKUP(B1237,[2]Sheet4!$F$2:$J$364,3,FALSE),\"\")","v":""},{"$f":"IFERROR(VLOOKUP(B1237,[2]Sheet4!$F$2:$J$364,4,FALSE),\"\")","v":""},{"$f":"IFERROR(VLOOKUP(B1237,[2]Sheet4!$F$2:$J$364,5,FALSE),\"\")","v":""}]
[null,null,{"$f":"IFERROR(VLOOKUP(B1238,[2]Sheet4!$F$2:$J$364,2,FALSE),\"\")","v":""},{"$f":"IFERROR(VLOOKUP(B1238,[2]Sheet4!$F$2:$J$364,3,FALSE),\"\")","v":""},{"$f":"IFERROR(VLOOKUP(B1238,[2]Sheet4!$F$2:$J$364,4,FALSE),\"\")","v":""},{"$f":"IFERROR(VLOOKUP(B1238,[2]Sheet4!$F$2:$J$364,5,FALSE),\"\")","v":""}]
[null,null,{"$f":"IFERROR(VLOOKUP(B1239,[2]Sheet4!$F$2:$J$364,2,FALSE),\"\")","v":""},{"$f":"IFERROR(VLOOKUP(B1239,[2]Sheet4!$F$2:$J$364,3,FALSE),\"\")","v":""},{"$f":"IFERROR(VLOOKUP(B1239,[2]Sheet4!$F$2:$J$364,4,FALSE),\"\")","v":""},{"$f":"IFERROR(VLOOKUP(B1239,[2]Sheet4!$F$2:$J$364,5,FALSE),\"\")","v":""}]
[null,null,{"$f":"IFERROR(VLOOKUP(B1240,[2]Sheet4!$F$2:$J$364,2,FALSE),\"\")","v":""},{"$f":"IFERROR(VLOOKUP(B1240,[2]Sheet4!$F$2:$J$364,3,FALSE),\"\")","v":""},{"$f":"IFERROR(VLOOKUP(B1240,[2]Sheet4!$F$2:$J$364,4,FALSE),\"\")","v":""},{"$f":"IFERROR(VLOOKUP(B1240,[2]Sheet4!$F$2:$J$364,5,FALSE),\"\")","v":""}]
[null,null,{"$f":"IFERROR(VLOOKUP(B1241,[2]Sheet4!$F$2:$J$364,2,FALSE),\"\")","v":""},{"$f":"IFERROR(VLOOKUP(B1241,[2]Sheet4!$F$2:$J$364,3,FALSE),\"\")","v":""},{"$f":"IFERROR(VLOOKUP(B1241,[2]Sheet4!$F$2:$J$364,4,FALSE),\"\")","v":""},{"$f":"IFERROR(VLOOKUP(B1241,[2]Sheet4!$F$2:$J$364,5,FALSE),\"\")","v":""}]
[null,null,{"$f":"IFERROR(VLOOKUP(B1242,[2]Sheet4!$F$2:$J$364,2,FALSE),\"\")","v":""},{"$f":"IFERROR(VLOOKUP(B1242,[2]Sheet4!$F$2:$J$364,3,FALSE),\"\")","v":""},{"$f":"IFERROR(VLOOKUP(B1242,[2]Sheet4!$F$2:$J$364,4,FALSE),\"\")","v":""},{"$f":"IFERROR(VLOOKUP(B1242,[2]Sheet4!$F$2:$J$364,5,FALSE),\"\")","v":""}]
[null,null,{"$f":"IFERROR(VLOOKUP(B1243,[2]Sheet4!$F$2:$J$364,2,FALSE),\"\")","v":""},{"$f":"IFERROR(VLOOKUP(B1243,[2]Sheet4!$F$2:$J$364,3,FALSE),\"\")","v":""},{"$f":"IFERROR(VLOOKUP(B1243,[2]Sheet4!$F$2:$J$364,4,FALSE),\"\")","v":""},{"$f":"IFERROR(VLOOKUP(B1243,[2]Sheet4!$F$2:$J$364,5,FALSE),\"\")","v":""}]
[null,null,{"$f":"IFERROR(VLOOKUP(B1244,[2]Sheet4!$F$2:$J$364,2,FALSE),\"\")","v":""},{"$f":"IFERROR(VLOOKUP(B1244,[2]Sheet4!$F$2:$J$364,3,FALSE),\"\")","v":""},{"$f":"IFERROR(VLOOKUP(B1244,[2]Sheet4!$F$2:$J$364,4,FALSE),\"\")","v":""},{"$f":"IFERROR(VLOOKUP(B1244,[2]Sheet4!$F$2:$J$364,5,FALSE),\"\")","v":""}]
[null,null,{"$f":"IFERROR(VLOOKUP(B1245,[2]Sheet4!$F$2:$J$364,2,FALSE),\"\")","v":""},{"$f":"IFERROR(VLOOKUP(B1245,[2]Sheet4!$F$2:$J$364,3,FALSE),\"\")","v":""},{"$f":"IFERROR(VLOOKUP(B1245,[2]Sheet4!$F$2:$J$364,4,FALSE),\"\")","v":""},{"$f":"IFERROR(VLOOKUP(B1245,[2]Sheet4!$F$2:$J$364,5,FALSE),\"\")","v":""}]
[null,null,{"$f":"IFERROR(VLOOKUP(B1246,[2]Sheet4!$F$2:$J$364,2,FALSE),\"\")","v":""},{"$f":"IFERROR(VLOOKUP(B1246,[2]Sheet4!$F$2:$J$364,3,FALSE),\"\")","v":""},{"$f":"IFERROR(VLOOKUP(B1246,[2]Sheet4!$F$2:$J$364,4,FALSE),\"\")","v":""},{"$f":"IFERROR(VLOOKUP(B1246,[2]Sheet4!$F$2:$J$364,5,FALSE),\"\")","v":""}]
[null,null,{"$f":"IFERROR(VLOOKUP(B1247,[2]Sheet4!$F$2:$J$364,2,FALSE),\"\")","v":""},{"$f":"IFERROR(VLOOKUP(B1247,[2]Sheet4!$F$2:$J$364,3,FALSE),\"\")","v":""},{"$f":"IFERROR(VLOOKUP(B1247,[2]Sheet4!$F$2:$J$364,4,FALSE),\"\")","v":""},{"$f":"IFERROR(VLOOKUP(B1247,[2]Sheet4!$F$2:$J$364,5,FALSE),\"\")","v":""}]
[null,null,{"$f":"IFERROR(VLOOKUP(B1248,[2]Sheet4!$F$2:$J$364,2,FALSE),\"\")","v":""},{"$f":"IFERROR(VLOOKUP(B1248,[2]Sheet4!$F$2:$J$364,3,FALSE),\"\")","v":""},{"$f":"IFERROR(VLOOKUP(B1248,[2]Sheet4!$F$2:$J$364,4,FALSE),\"\")","v":""},{"$f":"IFERROR(VLOOKUP(B1248,[2]Sheet4!$F$2:$J$364,5,FALSE),\"\")","v":""}]
[null,null,{"$f":"IFERROR(VLOOKUP(B1249,[2]Sheet4!$F$2:$J$364,2,FALSE),\"\")","v":""},{"$f":"IFERROR(VLOOKUP(B1249,[2]Sheet4!$F$2:$J$364,3,FALSE),\"\")","v":""},{"$f":"IFERROR(VLOOKUP(B1249,[2]Sheet4!$F$2:$J$364,4,FALSE),\"\")","v":""},{"$f":"IFERROR(VLOOKUP(B1249,[2]Sheet4!$F$2:$J$364,5,FALSE),\"\")","v":""}]
[null,null,{"$f":"IFERROR(VLOOKUP(B1250,[2]Sheet4!$F$2:$J$364,2,FALSE),\"\")","v":""},{"$f":"IFERROR(VLOOKUP(B1250,[2]Sheet4!$F$2:$J$364,3,FALSE),\"\")","v":""},{"$f":"IFERROR(VLOOKUP(B1250,[2]Sheet4!$F$2:$J$364,4,FALSE),\"\")","v":""},{"$f":"IFERROR(VLOOKUP(B1250,[2]Sheet4!$F$2:$J$364,5,FALSE),\"\")","v":""}]
[null,null,{"$f":"IFERROR(VLOOKUP(B1251,[2]Sheet4!$F$2:$J$364,2,FALSE),\"\")","v":""},{"$f":"IFERROR(VLOOKUP(B1251,[2]Sheet4!$F$2:$J$364,3,FALSE),\"\")","v":""},{"$f":"IFERROR(VLOOKUP(B1251,[2]Sheet4!$F$2:$J$364,4,FALSE),\"\")","v":""},{"$f":"IFERROR(VLOOKUP(B1251,[2]Sheet4!$F$2:$J$364,5,FALSE),\"\")","v":""}]
[null,null,{"$f":"IFERROR(VLOOKUP(B1252,[2]Sheet4!$F$2:$J$364,2,FALSE),\"\")","v":""},{"$f":"IFERROR(VLOOKUP(B1252,[2]Sheet4!$F$2:$J$364,3,FALSE),\"\")","v":""},{"$f":"IFERROR(VLOOKUP(B1252,[2]Sheet4!$F$2:$J$364,4,FALSE),\"\")","v":""},{"$f":"IFERROR(VLOOKUP(B1252,[2]Sheet4!$F$2:$J$364,5,FALSE),\"\")","v":""}]
[null,null,{"$f":"IFERROR(VLOOKUP(B1253,[2]Sheet4!$F$2:$J$364,2,FALSE),\"\")","v":""},{"$f":"IFERROR(VLOOKUP(B1253,[2]Sheet4!$F$2:$J$364,3,FALSE),\"\")","v":""},{"$f":"IFERROR(VLOOKUP(B1253,[2]Sheet4!$F$2:$J$364,4,FALSE),\"\")","v":""},{"$f":"IFERROR(VLOOKUP(B1253,[2]Sheet4!$F$2:$J$364,5,FALSE),\"\")","v":""}]
[null,null,{"$f":"IFERROR(VLOOKUP(B1254,[2]Sheet4!$F$2:$J$364,2,FALSE),\"\")","v":""},{"$f":"IFERROR(VLOOKUP(B1254,[2]Sheet4!$F$2:$J$364,3,FALSE),\"\")","v":""},{"$f":"IFERROR(VLOOKUP(B1254,[2]Sheet4!$F$2:$J$364,4,FALSE),\"\")","v":""},{"$f":"IFERROR(VLOOKUP(B1254,[2]Sheet4!$F$2:$J$364,5,FALSE),\"\")","v":""}]
[null,null,{"$f":"IFERROR(VLOOKUP(B1255,[2]Sheet4!$F$2:$J$364,2,FALSE),\"\")","v":""},{"$f":"IFERROR(VLOOKUP(B1255,[2]Sheet4!$F$2:$J$364,3,FALSE),\"\")","v":""},{"$f":"IFERROR(VLOOKUP(B1255,[2]Sheet4!$F$2:$J$364,4,FALSE),\"\")","v":""},{"$f":"IFERROR(VLOOKUP(B1255,[2]Sheet4!$F$2:$J$364,5,FALSE),\"\")","v":""}]
[null,null,{"$f":"IFERROR(VLOOKUP(B1256,[2]Sheet4!$F$2:$J$364,2,FALSE),\"\")","v":""},{"$f":"IFERROR(VLOOKUP(B1256,[2]Sheet4!$F$2:$J$364,3,FALSE),\"\")","v":""},{"$f":"IFERROR(VLOOKUP(B1256,[2]Sheet4!$F$2:$J$364,4,FALSE),\"\")","v":""},{"$f":"IFERROR(VLOOKUP(B1256,[2]Sheet4!$F$2:$J$364,5,FALSE),\"\")","v":""}]
[null,null,{"$f":"IFERROR(VLOOKUP(B1257,[2]Sheet4!$F$2:$J$364,2,FALSE),\"\")","v":""},{"$f":"IFERROR(VLOOKUP(B1257,[2]Sheet4!$F$2:$J$364,3,FALSE),\"\")","v":""},{"$f":"IFERROR(VLOOKUP(B1257,[2]Sheet4!$F$2:$J$364,4,FALSE),\"\")","v":""},{"$f":"IFERROR(VLOOKUP(B1257,[2]Sheet4!$F$2:$J$364,5,FALSE),\"\")","v":""}]
[null,null,{"$f":"IFERROR(VLOOKUP(B1258,[2]Sheet4!$F$2:$J$364,2,FALSE),\"\")","v":""},{"$f":"IFERROR(VLOOKUP(B1258,[2]Sheet4!$F$2:$J$364,3,FALSE),\"\")","v":""},{"$f":"IFERROR(VLOOKUP(B1258,[2]Sheet4!$F$2:$J$364,4,FALSE),\"\")","v":""},{"$f":"IFERROR(VLOOKUP(B1258,[2]Sheet4!$F$2:$J$364,5,FALSE),\"\")","v":""}]
[null,null,{"$f":"IFERROR(VLOOKUP(B1259,[2]Sheet4!$F$2:$J$364,2,FALSE),\"\")","v":""},{"$f":"IFERROR(VLOOKUP(B1259,[2]Sheet4!$F$2:$J$364,3,FALSE),\"\")","v":""},{"$f":"IFERROR(VLOOKUP(B1259,[2]Sheet4!$F$2:$J$364,4,FALSE),\"\")","v":""},{"$f":"IFERROR(VLOOKUP(B1259,[2]Sheet4!$F$2:$J$364,5,FALSE),\"\")","v":""}]
[null,null,{"$f":"IFERROR(VLOOKUP(B1260,[2]Sheet4!$F$2:$J$364,2,FALSE),\"\")","v":""},{"$f":"IFERROR(VLOOKUP(B1260,[2]Sheet4!$F$2:$J$364,3,FALSE),\"\")","v":""},{"$f":"IFERROR(VLOOKUP(B1260,[2]Sheet4!$F$2:$J$364,4,FALSE),\"\")","v":""},{"$f":"IFERROR(VLOOKUP(B1260,[2]Sheet4!$F$2:$J$364,5,FALSE),\"\")","v":""}]
[null,null,{"$f":"IFERROR(VLOOKUP(B1261,[2]Sheet4!$F$2:$J$364,2,FALSE),\"\")","v":""},{"$f":"IFERROR(VLOOKUP(B1261,[2]Sheet4!$F$2:$J$364,3,FALSE),\"\")","v":""},{"$f":"IFERROR(VLOOKUP(B1261,[2]Sheet4!$F$2:$J$364,4,FALSE),\"\")","v":""},{"$f":"IFERROR(VLOOKUP(B1261,[2]Sheet4!$F$2:$J$364,5,FALSE),\"\")","v":""}]
[null,null,{"$f":"IFERROR(VLOOKUP(B1262,[2]Sheet4!$F$2:$J$364,2,FALSE),\"\")","v":""},{"$f":"IFERROR(VLOOKUP(B1262,[2]Sheet4!$F$2:$J$364,3,FALSE),\"\")","v":""},{"$f":"IFERROR(VLOOKUP(B1262,[2]Sheet4!$F$2:$J$364,4,FALSE),\"\")","v":""},{"$f":"IFERROR(VLOOKUP(B1262,[2]Sheet4!$F$2:$J$364,5,FALSE),\"\")","v":""}]
[null,null,{"$f":"IFERROR(VLOOKUP(B1263,[2]Sheet4!$F$2:$J$364,2,FALSE),\"\")","v":""},{"$f":"IFERROR(VLOOKUP(B1263,[2]Sheet4!$F$2:$J$364,3,FALSE),\"\")","v":""},{"$f":"IFERROR(VLOOKUP(B1263,[2]Sheet4!$F$2:$J$364,4,FALSE),\"\")","v":""},{"$f":"IFERROR(VLOOKUP(B1263,[2]Sheet4!$F$2:$J$364,5,FALSE),\"\")","v":""}]
[null,null,{"$f":"IFERROR(VLOOKUP(B1264,[2]Sheet4!$F$2:$J$364,2,FALSE),\"\")","v":""},{"$f":"IFERROR(VLOOKUP(B1264,[2]Sheet4!$F$2:$J$364,3,FALSE),\"\")","v":""},{"$f":"IFERROR(VLOOKUP(B1264,[2]Sheet4!$F$2:$J$364,4,FALSE),\"\")","v":""},{"$f":"IFERROR(VLOOKUP(B1264,[2]Sheet4!$F$2:$J$364,5,FALSE),\"\")","v":""}]
[null,null,{"$f":"IFERROR(VLOOKUP(B1265,[2]Sheet4!$F$2:$J$364,2,FALSE),\"\")","v":""},{"$f":"IFERROR(VLOOKUP(B1265,[2]Sheet4!$F$2:$J$364,3,FALSE),\"\")","v":""},{"$f":"IFERROR(VLOOKUP(B1265,[2]Sheet4!$F$2:$J$364,4,FALSE),\"\")","v":""},{"$f":"IFERROR(VLOOKUP(B1265,[2]Sheet4!$F$2:$J$364,5,FALSE),\"\")","v":""}]
[null,null,{"$f":"IFERROR(VLOOKUP(B1266,[2]Sheet4!$F$2:$J$364,2,FALSE),\"\")","v":""},{"$f":"IFERROR(VLOOKUP(B1266,[2]Sheet4!$F$2:$J$364,3,FALSE),\"\")","v":""},{"$f":"IFERROR(VLOOKUP(B1266,[2]Sheet4!$F$2:$J$364,4,FALSE),\"\")","v":""},{"$f":"IFERROR(VLOOKUP(B1266,[2]Sheet4!$F$2:$J$364,5,FALSE),\"\")","v":""}]
[null,null,{"$f":"IFERROR(VLOOKUP(B1267,[2]Sheet4!$F$2:$J$364,2,FALSE),\"\")","v":""},{"$f":"IFERROR(VLOOKUP(B1267,[2]Sheet4!$F$2:$J$364,3,FALSE),\"\")","v":""},{"$f":"IFERROR(VLOOKUP(B1267,[2]Sheet4!$F$2:$J$364,4,FALSE),\"\")","v":""},{"$f":"IFERROR(VLOOKUP(B1267,[2]Sheet4!$F$2:$J$364,5,FALSE),\"\")","v":""}]
[null,null,{"$f":"IFERROR(VLOOKUP(B1268,[2]Sheet4!$F$2:$J$364,2,FALSE),\"\")","v":""},{"$f":"IFERROR(VLOOKUP(B1268,[2]Sheet4!$F$2:$J$364,3,FALSE),\"\")","v":""},{"$f":"IFERROR(VLOOKUP(B1268,[2]Sheet4!$F$2:$J$364,4,FALSE),\"\")","v":""},{"$f":"IFERROR(VLOOKUP(B1268,[2]Sheet4!$F$2:$J$364,5,FALSE),\"\")","v":""}]
[null,null,{"$f":"IFERROR(VLOOKUP(B1269,[2]Sheet4!$F$2:$J$364,2,FALSE),\"\")","v":""},{"$f":"IFERROR(VLOOKUP(B1269,[2]Sheet4!$F$2:$J$364,3,FALSE),\"\")","v":""},{"$f":"IFERROR(VLOOKUP(B1269,[2]Sheet4!$F$2:$J$364,4,FALSE),\"\")","v":""},{"$f":"IFERROR(VLOOKUP(B1269,[2]Sheet4!$F$2:$J$364,5,FALSE),\"\")","v":""}]
[null,null,{"$f":"IFERROR(VLOOKUP(B1270,[2]Sheet4!$F$2:$J$364,2,FALSE),\"\")","v":""},{"$f":"IFERROR(VLOOKUP(B1270,[2]Sheet4!$F$2:$J$364,3,FALSE),\"\")","v":""},{"$f":"IFERROR(VLOOKUP(B1270,[2]Sheet4!$F$2:$J$364,4,FALSE),\"\")","v":""},{"$f":"IFERROR(VLOOKUP(B1270,[2]Sheet4!$F$2:$J$364,5,FALSE),\"\")","v":""}]
[null,null,{"$f":"IFERROR(VLOOKUP(B1271,[2]Sheet4!$F$2:$J$364,2,FALSE),\"\")","v":""},{"$f":"IFERROR(VLOOKUP(B1271,[2]Sheet4!$F$2:$J$364,3,FALSE),\"\")","v":""},{"$f":"IFERROR(VLOOKUP(B1271,[2]Sheet4!$F$2:$J$364,4,FALSE),\"\")","v":""},{"$f":"IFERROR(VLOOKUP(B1271,[2]Sheet4!$F$2:$J$364,5,FALSE),\"\")","v":""}]
[null,null,{"$f":"IFERROR(VLOOKUP(B1272,[2]Sheet4!$F$2:$J$364,2,FALSE),\"\")","v":""},{"$f":"IFERROR(VLOOKUP(B1272,[2]Sheet4!$F$2:$J$364,3,FALSE),\"\")","v":""},{"$f":"IFERROR(VLOOKUP(B1272,[2]Sheet4!$F$2:$J$364,4,FALSE),\"\")","v":""},{"$f":"IFERROR(VLOOKUP(B1272,[2]Sheet4!$F$2:$J$364,5,FALSE),\"\")","v":""}]
[null,null,{"$f":"IFERROR(VLOOKUP(B1273,[2]Sheet4!$F$2:$J$364,2,FALSE),\"\")","v":""},{"$f":"IFERROR(VLOOKUP(B1273,[2]Sheet4!$F$2:$J$364,3,FALSE),\"\")","v":""},{"$f":"IFERROR(VLOOKUP(B1273,[2]Sheet4!$F$2:$J$364,4,FALSE),\"\")","v":""},{"$f":"IFERROR(VLOOKUP(B1273,[2]Sheet4!$F$2:$J$364,5,FALSE),\"\")","v":""}]
[null,null,{"$f":"IFERROR(VLOOKUP(B1274,[2]Sheet4!$F$2:$J$364,2,FALSE),\"\")","v":""},{"$f":"IFERROR(VLOOKUP(B1274,[2]Sheet4!$F$2:$J$364,3,FALSE),\"\")","v":""},{"$f":"IFERROR(VLOOKUP(B1274,[2]Sheet4!$F$2:$J$364,4,FALSE),\"\")","v":""},{"$f":"IFERROR(VLOOKUP(B1274,[2]Sheet4!$F$2:$J$364,5,FALSE),\"\")","v":""}]
[null,null,{"$f":"IFERROR(VLOOKUP(B1275,[2]Sheet4!$F$2:$J$364,2,FALSE),\"\")","v":""},{"$f":"IFERROR(VLOOKUP(B1275,[2]Sheet4!$F$2:$J$364,3,FALSE),\"\")","v":""},{"$f":"IFERROR(VLOOKUP(B1275,[2]Sheet4!$F$2:$J$364,4,FALSE),\"\")","v":""},{"$f":"IFERROR(VLOOKUP(B1275,[2]Sheet4!$F$2:$J$364,5,FALSE),\"\")","v":""}]
[null,null,{"$f":"IFERROR(VLOOKUP(B1276,[2]Sheet4!$F$2:$J$364,2,FALSE),\"\")","v":""},{"$f":"IFERROR(VLOOKUP(B1276,[2]Sheet4!$F$2:$J$364,3,FALSE),\"\")","v":""},{"$f":"IFERROR(VLOOKUP(B1276,[2]Sheet4!$F$2:$J$364,4,FALSE),\"\")","v":""},{"$f":"IFERROR(VLOOKUP(B1276,[2]Sheet4!$F$2:$J$364,5,FALSE),\"\")","v":""}]
[null,null,{"$f":"IFERROR(VLOOKUP(B1277,[2]Sheet4!$F$2:$J$364,2,FALSE),\"\")","v":""},{"$f":"IFERROR(VLOOKUP(B1277,[2]Sheet4!$F$2:$J$364,3,FALSE),\"\")","v":""},{"$f":"IFERROR(VLOOKUP(B1277,[2]Sheet4!$F$2:$J$364,4,FALSE),\"\")","v":""},{"$f":"IFERROR(VLOOKUP(B1277,[2]Sheet4!$F$2:$J$364,5,FALSE),\"\")","v":""}]
[null,null,{"$f":"IFERROR(VLOOKUP(B1278,[2]Sheet4!$F$2:$J$364,2,FALSE),\"\")","v":""},{"$f":"IFERROR(VLOOKUP(B1278,[2]Sheet4!$F$2:$J$364,3,FALSE),\"\")","v":""},{"$f":"IFERROR(VLOOKUP(B1278,[2]Sheet4!$F$2:$J$364,4,FALSE),\"\")","v":""},{"$f":"IFERROR(VLOOKUP(B1278,[2]Sheet4!$F$2:$J$364,5,FALSE),\"\")","v":""}]
[null,null,{"$f":"IFERROR(VLOOKUP(B1279,[2]Sheet4!$F$2:$J$364,2,FALSE),\"\")","v":""},{"$f":"IFERROR(VLOOKUP(B1279,[2]Sheet4!$F$2:$J$364,3,FALSE),\"\")","v":""},{"$f":"IFERROR(VLOOKUP(B1279,[2]Sheet4!$F$2:$J$364,4,FALSE),\"\")","v":""},{"$f":"IFERROR(VLOOKUP(B1279,[2]Sheet4!$F$2:$J$364,5,FALSE),\"\")","v":""}]
[null,null,{"$f":"IFERROR(VLOOKUP(B1280,[2]Sheet4!$F$2:$J$364,2,FALSE),\"\")","v":""},{"$f":"IFERROR(VLOOKUP(B1280,[2]Sheet4!$F$2:$J$364,3,FALSE),\"\")","v":""},{"$f":"IFERROR(VLOOKUP(B1280,[2]Sheet4!$F$2:$J$364,4,FALSE),\"\")","v":""},{"$f":"IFERROR(VLOOKUP(B1280,[2]Sheet4!$F$2:$J$364,5,FALSE),\"\")","v":""}]
[null,null,{"$f":"IFERROR(VLOOKUP(B1281,[2]Sheet4!$F$2:$J$364,2,FALSE),\"\")","v":""},{"$f":"IFERROR(VLOOKUP(B1281,[2]Sheet4!$F$2:$J$364,3,FALSE),\"\")","v":""},{"$f":"IFERROR(VLOOKUP(B1281,[2]Sheet4!$F$2:$J$364,4,FALSE),\"\")","v":""},{"$f":"IFERROR(VLOOKUP(B1281,[2]Sheet4!$F$2:$J$364,5,FALSE),\"\")","v":""}]
[null,null,{"$f":"IFERROR(VLOOKUP(B1282,[2]Sheet4!$F$2:$J$364,2,FALSE),\"\")","v":""},{"$f":"IFERROR(VLOOKUP(B1282,[2]Sheet4!$F$2:$J$364,3,FALSE),\"\")","v":""},{"$f":"IFERROR(VLOOKUP(B1282,[2]Sheet4!$F$2:$J$364,4,FALSE),\"\")","v":""},{"$f":"IFERROR(VLOOKUP(B1282,[2]Sheet4!$F$2:$J$364,5,FALSE),\"\")","v":""}]
[null,null,{"$f":"IFERROR(VLOOKUP(B1283,[2]Sheet4!$F$2:$J$364,2,FALSE),\"\")","v":""},{"$f":"IFERROR(VLOOKUP(B1283,[2]Sheet4!$F$2:$J$364,3,FALSE),\"\")","v":""},{"$f":"IFERROR(VLOOKUP(B1283,[2]Sheet4!$F$2:$J$364,4,FALSE),\"\")","v":""},{"$f":"IFERROR(VLOOKUP(B1283,[2]Sheet4!$F$2:$J$364,5,FALSE),\"\")","v":""}]
[null,null,{"$f":"IFERROR(VLOOKUP(B1284,[2]Sheet4!$F$2:$J$364,2,FALSE),\"\")","v":""},{"$f":"IFERROR(VLOOKUP(B1284,[2]Sheet4!$F$2:$J$364,3,FALSE),\"\")","v":""},{"$f":"IFERROR(VLOOKUP(B1284,[2]Sheet4!$F$2:$J$364,4,FALSE),\"\")","v":""},{"$f":"IFERROR(VLOOKUP(B1284,[2]Sheet4!$F$2:$J$364,5,FALSE),\"\")","v":""}]
[null,null,{"$f":"IFERROR(VLOOKUP(B1285,[2]Sheet4!$F$2:$J$364,2,FALSE),\"\")","v":""},{"$f":"IFERROR(VLOOKUP(B1285,[2]Sheet4!$F$2:$J$364,3,FALSE),\"\")","v":""},{"$f":"IFERROR(VLOOKUP(B1285,[2]Sheet4!$F$2:$J$364,4,FALSE),\"\")","v":""},{"$f":"IFERROR(VLOOKUP(B1285,[2]Sheet4!$F$2:$J$364,5,FALSE),\"\")","v":""}]
[null,null,{"$f":"IFERROR(VLOOKUP(B1286,[2]Sheet4!$F$2:$J$364,2,FALSE),\"\")","v":""},{"$f":"IFERROR(VLOOKUP(B1286,[2]Sheet4!$F$2:$J$364,3,FALSE),\"\")","v":""},{"$f":"IFERROR(VLOOKUP(B1286,[2]Sheet4!$F$2:$J$364,4,FALSE),\"\")","v":""},{"$f":"IFERROR(VLOOKUP(B1286,[2]Sheet4!$F$2:$J$364,5,FALSE),\"\")","v":""}]
[null,null,{"$f":"IFERROR(VLOOKUP(B1287,[2]Sheet4!$F$2:$J$364,2,FALSE),\"\")","v":""},{"$f":"IFERROR(VLOOKUP(B1287,[2]Sheet4!$F$2:$J$364,3,FALSE),\"\")","v":""},{"$f":"IFERROR(VLOOKUP(B1287,[2]Sheet4!$F$2:$J$364,4,FALSE),\"\")","v":""},{"$f":"IFERROR(VLOOKUP(B1287,[2]Sheet4!$F$2:$J$364,5,FALSE),\"\")","v":""}]
[null,null,{"$f":"IFERROR(VLOOKUP(B1288,[2]Sheet4!$F$2:$J$364,2,FALSE),\"\")","v":""},{"$f":"IFERROR(VLOOKUP(B1288,[2]Sheet4!$F$2:$J$364,3,FALSE),\"\")","v":""},{"$f":"IFERROR(VLOOKUP(B1288,[2]Sheet4!$F$2:$J$364,4,FALSE),\"\")","v":""},{"$f":"IFERROR(VLOOKUP(B1288,[2]Sheet4!$F$2:$J$364,5,FALSE),\"\")","v":""}]
[null,null,{"$f":"IFERROR(VLOOKUP(B1289,[2]Sheet4!$F$2:$J$364,2,FALSE),\"\")","v":""},{"$f":"IFERROR(VLOOKUP(B1289,[2]Sheet4!$F$2:$J$364,3,FALSE),\"\")","v":""},{"$f":"IFERROR(VLOOKUP(B1289,[2]Sheet4!$F$2:$J$364,4,FALSE),\"\")","v":""},{"$f":"IFERROR(VLOOKUP(B1289,[2]Sheet4!$F$2:$J$364,5,FALSE),\"\")","v":""}]
[null,null,{"$f":"IFERROR(VLOOKUP(B1290,[2]Sheet4!$F$2:$J$364,2,FALSE),\"\")","v":""},{"$f":"IFERROR(VLOOKUP(B1290,[2]Sheet4!$F$2:$J$364,3,FALSE),\"\")","v":""},{"$f":"IFERROR(VLOOKUP(B1290,[2]Sheet4!$F$2:$J$364,4,FALSE),\"\")","v":""},{"$f":"IFERROR(VLOOKUP(B1290,[2]Sheet4!$F$2:$J$364,5,FALSE),\"\")","v":""}]
[null,null,{"$f":"IFERROR(VLOOKUP(B1291,[2]Sheet4!$F$2:$J$364,2,FALSE),\"\")","v":""},{"$f":"IFERROR(VLOOKUP(B1291,[2]Sheet4!$F$2:$J$364,3,FALSE),\"\")","v":""},{"$f":"IFERROR(VLOOKUP(B1291,[2]Sheet4!$F$2:$J$364,4,FALSE),\"\")","v":""},{"$f":"IFERROR(VLOOKUP(B1291,[2]Sheet4!$F$2:$J$364,5,FALSE),\"\")","v":""}]
[null,null,{"$f":"IFERROR(VLOOKUP(B1292,[2]Sheet4!$F$2:$J$364,2,FALSE),\"\")","v":""},{"$f":"IFERROR(VLOOKUP(B1292,[2]Sheet4!$F$2:$J$364,3,FALSE),\"\")","v":""},{"$f":"IFERROR(VLOOKUP(B1292,[2]Sheet4!$F$2:$J$364,4,FALSE),\"\")","v":""},{"$f":"IFERROR(VLOOKUP(B1292,[2]Sheet4!$F$2:$J$364,5,FALSE),\"\")","v":""}]
[null,null,{"$f":"IFERROR(VLOOKUP(B1293,[2]Sheet4!$F$2:$J$364,2,FALSE),\"\")","v":""},{"$f":"IFERROR(VLOOKUP(B1293,[2]Sheet4!$F$2:$J$364,3,FALSE),\"\")","v":""},{"$f":"IFERROR(VLOOKUP(B1293,[2]Sheet4!$F$2:$J$364,4,FALSE),\"\")","v":""},{"$f":"IFERROR(VLOOKUP(B1293,[2]Sheet4!$F$2:$J$364,5,FALSE),\"\")","v":""}]
[null,null,{"$f":"IFERROR(VLOOKUP(B1294,[2]Sheet4!$F$2:$J$364,2,FALSE),\"\")","v":""},{"$f":"IFERROR(VLOOKUP(B1294,[2]Sheet4!$F$2:$J$364,3,FALSE),\"\")","v":""},{"$f":"IFERROR(VLOOKUP(B1294,[2]Sheet4!$F$2:$J$364,4,FALSE),\"\")","v":""},{"$f":"IFERROR(VLOOKUP(B1294,[2]Sheet4!$F$2:$J$364,5,FALSE),\"\")","v":""}]
[null,null,{"$f":"IFERROR(VLOOKUP(B1295,[2]Sheet4!$F$2:$J$364,2,FALSE),\"\")","v":""},{"$f":"IFERROR(VLOOKUP(B1295,[2]Sheet4!$F$2:$J$364,3,FALSE),\"\")","v":""},{"$f":"IFERROR(VLOOKUP(B1295,[2]Sheet4!$F$2:$J$364,4,FALSE),\"\")","v":""},{"$f":"IFERROR(VLOOKUP(B1295,[2]Sheet4!$F$2:$J$364,5,FALSE),\"\")","v":""}]
[null,null,{"$f":"IFERROR(VLOOKUP(B1296,[2]Sheet4!$F$2:$J$364,2,FALSE),\"\")","v":""},{"$f":"IFERROR(VLOOKUP(B1296,[2]Sheet4!$F$2:$J$364,3,FALSE),\"\")","v":""},{"$f":"IFERROR(VLOOKUP(B1296,[2]Sheet4!$F$2:$J$364,4,FALSE),\"\")","v":""},{"$f":"IFERROR(VLOOKUP(B1296,[2]Sheet4!$F$2:$J$364,5,FALSE),\"\")","v":""}]
[null,null,{"$f":"IFERROR(VLOOKUP(B1297,[2]Sheet4!$F$2:$J$364,2,FALSE),\"\")","v":""},{"$f":"IFERROR(VLOOKUP(B1297,[2]Sheet4!$F$2:$J$364,3,FALSE),\"\")","v":""},{"$f":"IFERROR(VLOOKUP(B1297,[2]Sheet4!$F$2:$J$364,4,FALSE),\"\")","v":""},{"$f":"IFERROR(VLOOKUP(B1297,[2]Sheet4!$F$2:$J$364,5,FALSE),\"\")","v":""}]
[null,null,{"$f":"IFERROR(VLOOKUP(B1298,[2]Sheet4!$F$2:$J$364,2,FALSE),\"\")","v":""},{"$f":"IFERROR(VLOOKUP(B1298,[2]Sheet4!$F$2:$J$364,3,FALSE),\"\")","v":""},{"$f":"IFERROR(VLOOKUP(B1298,[2]Sheet4!$F$2:$J$364,4,FALSE),\"\")","v":""},{"$f":"IFERROR(VLOOKUP(B1298,[2]Sheet4!$F$2:$J$364,5,FALSE),\"\")","v":""}]
[null,null,{"$f":"IFERROR(VLOOKUP(B1299,[2]Sheet4!$F$2:$J$364,2,FALSE),\"\")","v":""},{"$f":"IFERROR(VLOOKUP(B1299,[2]Sheet4!$F$2:$J$364,3,FALSE),\"\")","v":""},{"$f":"IFERROR(VLOOKUP(B1299,[2]Sheet4!$F$2:$J$364,4,FALSE),\"\")","v":""},{"$f":"IFERROR(VLOOKUP(B1299,[2]Sheet4!$F$2:$J$364,5,FALSE),\"\")","v":""}]
[null,null,{"$f":"IFERROR(VLOOKUP(B1300,[2]Sheet4!$F$2:$J$364,2,FALSE),\"\")","v":""},{"$f":"IFERROR(VLOOKUP(B1300,[2]Sheet4!$F$2:$J$364,3,FALSE),\"\")","v":""},{"$f":"IFERROR(VLOOKUP(B1300,[2]Sheet4!$F$2:$J$364,4,FALSE),\"\")","v":""},{"$f":"IFERROR(VLOOKUP(B1300,[2]Sheet4!$F$2:$J$364,5,FALSE),\"\")","v":""}]

{"sheet":"4- INVENTORY BY ROOM & HOTEL","index":7,"n_rows":95,"n_cols":10,"rows_kept":95,"cut":false,"hidden":true,"merged":[]}
[]
[null,"BATCH","Hotel ID","Business Unit","Hotel Commercial Name","Room Type","Total Rooms","Change","New Inventory"]
[null,1,"AT09.VIEAI","BU Northern Europe","NH VIENNA AIRPORT CONFERENCE CENTER","BASDBL",80,"NO",null,{"$f":"IF(AND(H3=\"yes\",I3=0),\"Insert New Value\",\"\")","v":""}]
[null,1,"AT09.VIEAI","BU Northern Europe","NH VIENNA AIRPORT CONFERENCE CENTER","PREDBL",145,"YES",144,""]
[null,1,"AT09.VIEAI","BU Northern Europe","NH VIENNA AIRPORT CONFERENCE CENTER","PRXDBL",105,"NO",null,""]
[null,1,"AT09.VIEAI","BU Northern Europe","NH VIENNA AIRPORT CONFERENCE CENTER","FAMINT",0,"YES",1,""]
[null,1,"AT09.VIEAI","BU Northern Europe","NH VIENNA AIRPORT CONFERENCE CENTER","STDDBL",169,"NO",null,""]
[null,1,"AT09.WIEN","BU Northern Europe","NH WIEN CITY","APADBL",5,"NO",null,""]
[null,1,"AT09.WIEN","BU Northern Europe","NH WIEN CITY","FAMDBL",32,"NO",null,""]
[null,1,"AT09.WIEN","BU Northern Europe","NH WIEN CITY","STDDBL",32,"YES",31,""]
[null,1,"AT09.WIEN","BU Northern Europe","NH WIEN CITY","FAMINT",0,"YES",1,""]
[null,1,"AT09.WIEN","BU Northern Europe","NH WIEN CITY","SUPDBL",36,"NO",null,""]
[null,null,null,null,null,null,null,null,null,""]
[null,null,null,null,null,null,null,null,null,""]
[null,null,null,null,null,null,null,null,null,""]
[null,null,null,null,null,null,null,null,null,""]
[null,null,null,null,null,null,null,null,null,""]
[null,null,null,null,null,null,null,null,null,""]
[null,null,null,null,null,null,null,null,null,""]
[null,null,null,null,null,null,null,null,null,""]
[null,null,null,null,null,null,null,null,null,""]
[null,null,null,null,null,null,null,null,null,""]
[null,null,null,null,null,null,null,null,null,""]
[null,null,null,null,null,null,null,null,null,""]
[null,null,null,null,null,null,null,null,null,""]
[null,null,null,null,null,null,null,null,null,""]
[null,null,null,null,null,null,null,null,null,""]
[null,null,null,null,null,null,null,null,null,""]
[null,null,null,null,null,null,null,null,null,""]
[null,null,null,null,null,null,null,null,null,""]
[null,null,null,null,null,null,null,null,null,""]
[null,null,null,null,null,null,null,null,null,""]
[null,null,null,null,null,null,null,null,null,""]
[null,null,null,null,null,null,null,null,null,""]
[null,null,null,null,null,null,null,null,null,""]
[null,null,null,null,null,null,null,null,null,""]
[null,null,null,null,null,null,null,null,null,""]
[]
[null,null,null,null,null,null,null,null,null,""]
[null,null,null,null,null,null,null,null,null,""]
[null,null,null,null,null,null,null,null,null,""]
[null,null,null,null,null,null,null,null,null,""]
[null,null,null,null,null,null,null,null,null,""]
[null,null,null,null,null,null,null,null,null,""]
[null,null,null,null,null,null,null,null,null,""]
[null,null,null,null,null,null,null,null,null,""]
[null,null,null,null,null,null,null,null,null,""]
[]
[null,null,null,null,null,null,null,null,null,""]
[null,null,null,null,null,null,null,null,null,""]
[null,null,null,null,null,null,null,null,null,""]
[null,null,null,null,null,null,null,null,null,""]
[null,null,null,null,null,null,null,null,null,""]
[null,null,null,null,null,null,null,null,null,""]
[null,null,null,null,null,null,null,null,null,""]
[]
[null,null,null,null,null,null,null,null,null,""]
[null,null,null,null,null,null,null,null,null,""]
[null,null,null,null,null,null,null,null,null,""]
[null,null,null,null,null,null,null,null,null,""]
[null,null,null,null,null,null,null,null,null,""]
[]
[null,null,null,null,null,null,null,null,null,""]
[null,null,null,null,null,null,null,null,null,""]
[null,null,null,null,null,null,null,null,null,""]
[null,null,null,null,null,null,null,null,null,""]
[null,null,null,null,null,null,null,null,null,{"$f":"IF(AND(H67=\"yes\",I67=0),\"Insert New Value\",\"\")","v":""}]
[null,null,null,null,null,null,null,null,null,""]
[null,null,null,null,null,null,null,null,null,""]
[null,null,null,null,null,null,null,null,null,""]
[]
[null,null,null,null,null,null,null,null,null,""]
[null,null,null,null,null,null,null,null,null,""]
[]
[]
[null,null,null,null,null,null,null,null,null,""]
[null,null,null,null,null,null,null,null,null,""]
[null,null,null,null,null,null,null,null,null,""]
[null,null,null,null,null,null,null,null,null,""]
[null,null,null,null,null,null,null,null,null,""]
[null,null,null,null,null,null,null,null,null,""]
[null,null,null,null,null,null,null,null,null,""]
[null,null,null,null,null,null,null,null,null,""]
[null,null,null,null,null,null,null,null,null,""]
[null,null,null,null,null,null,null,null,null,""]
[null,null,null,null,null,null,null,null,null,""]
[null,null,null,null,null,null,null,null,null,""]
[null,null,null,null,null,null,null,null,null,""]
[null,null,null,null,null,null,null,null,null,""]
[]
[null,null,null,null,null,null,null,null,null,""]
[null,null,null,null,null,null,null,null,null,""]
[null,null,null,null,null,null,null,null,null,""]
[null,null,null,null,null,null,null,null,null,""]
[null,null,null,null,null,null,null,null,null,""]

{"sheet":"Sheet3","index":8,"n_rows":28,"n_cols":23,"rows_kept":28,"cut":false,"hidden":true,"merged":[]}
[]
[]
[null,null,null,null,1,1,null,"ROLLAWAY"]
[null,null,null,null,2,2,null,"SOFA BED"]
[null,null,null,null,3,3]
[null,null,null,null,4,4]
[]
[]
[null,null,null,null,"Row Labels","Sum of New",null,null,null,null,null,null,"Row Labels"]
[null,null,null,null,null,0,null,{"$f":"E10","v":0},{"$f":"F10","v":0}]
[null,null,null,null,"Grand Total",0,null,{"$f":"E11","v":"Grand Total"},{"$f":"F11","v":0},null,null,null,"(blank)",{"$f":"M11","v":"(blank)"},{"$f":"VLOOKUP(N11,$H$10:$I$28,2,FALSE)","v":{"$error":"#N/A"}},null,null,null,null,null,null,null,"CXL POLICY"]
[null,null,null,null,null,null,null,0,0,null,null,null,"Grand Total",{"$f":"M12","v":"Grand Total"},{"$f":"VLOOKUP(N12,$H$10:$I$28,2,FALSE)","v":0},null,null,null,null,null,null,null,"16 Hours"]
[null,null,null,null,null,null,null,0,0,null,null,null,null,0,0,null,null,null,null,null,null,null,"18 Hours"]
[null,null,null,null,null,null,null,0,0,null,null,null,null,0,0,null,null,null,null,null,null,null,"24 Hours"]
[null,null,null,null,null,null,null,0,0,null,null,null,null,0,0,null,null,null,null,null,null,null,"48 Hours"]
[null,null,null,null,null,null,null,0,0,null,null,null,null,0,0,null,null,null,null,null,null,null,"72 Hours"]
[null,null,null,null,null,null,null,0,0,null,null,null,null,0,0,null,null,null,null,null,null,null,"7 Days"]
[null,null,null,null,null,null,null,0,0,null,null,null,null,0,0,null,null,null,null,null,null,null,"14 Days"]
[null,null,null,null,null,null,null,0,0,null,null,null,null,0,0,null,null,null,null,null,null,null,"No CXL Allowed"]
[null,null,null,null,null,null,null,0,0,null,null,null,null,0,0]
[null,null,null,null,null,null,null,0,0,null,null,null,null,0,0]
[null,null,null,null,null,null,null,0,0,null,null,null,null,0,0]
[null,null,null,null,null,null,null,0,0,null,null,null,null,0,0]
[null,null,null,null,null,null,null,0,0,null,null,null,null,0,0]
[null,null,null,null,null,null,null,0,0,null,null,null,null,0,0]
[null,null,null,null,null,null,null,0,0,null,null,null,null,0,0]
[null,null,null,null,null,null,null,0,0]
[null,null,null,null,null,null,null,0,0]

{"sheet":"Sheet2","index":9,"n_rows":4,"n_cols":5,"rows_kept":4,"cut":false,"hidden":true,"merged":[]}
[]
[null,"ROOM ONLY "]
[null,"BED & BREAKFAST",null,null,"YES"]
[null,null,null,null,"NO"]

{"sheet":"created","index":10,"n_rows":34,"n_cols":18,"rows_kept":34,"cut":false,"hidden":true,"merged":[]}
[]
[]
[null,null,"Hotel code","Room types to be created","New Room type description","Max. # guest \nwithout extra bed","Max. # guest with extra bed",null,null,null,"HOTEL","RT","Description","Pax Std.","Max. Pax","Tipo Cd.","Tip. Ge. ","Subtipo"]
[null,null,null,null,null,null,null,null,null,null,{"$f":"C4","v":0},{"$f":"D4","v":0},{"$f":"E4","v":0},{"$f":"F4","v":0},{"$f":"G4","v":0},{"$f":"LEFT(L4,3)","v":"0"},{"$f":"LEFT(L4,6)","v":"0"},{"$f":"IF(LEN(L4)=7,\"X\",\"\")","v":""}]
[null,null,null,null,null,null,null,null,null,null,{"$f":"IFERROR(C5,\"\")","v":0},{"$f":"D5","v":0},0,0,0,{"$f":"LEFT(L5,3)","v":"0"},{"$f":"LEFT(L5,6)","v":"0"},{"$f":"IF(LEN(L5)=7,\"X\",\"\")","v":""}]
[null,null,null,null,null,null,null,null,null,null,{"$f":"IFERROR(C6,\"\")","v":0},0,0,0,0,"0","0",""]
[null,null,null,null,null,null,null,null,null,null,0,0,0,0,0,{"$f":"LEFT(L7,3)","v":"0"},"0",""]
[null,null,null,null,null,null,null,null,null,null,0,0,0,0,0,{"$f":"LEFT(L8,3)","v":"0"},"0",""]
[null,null,null,null,null,null,null,null,null,null,0,0,0,0,0,"0","0",""]
[null,null,null,null,null,null,null,null,null,null,0,0,0,0,0,{"$f":"LEFT(L10,3)","v":"0"},"0",""]
[null,null,null,null,null,null,null,null,null,null,0,0,0,0,0,"0","0",""]
[null,null,null,null,null,null,null,null,null,null,0,0,0,0,0,{"$f":"LEFT(L12,3)","v":"0"},"0",""]
[null,null,null,null,null,null,null,null,null,null,0,0,0,0,0,"0","0",""]
[null,null,null,null,null,null,null,null,null,null,0,0,0,0,0,{"$f":"LEFT(L14,3)","v":"0"},"0",""]
[null,null,null,null,null,null,null,null,null,null,0,0,0,0,0,"0","0",""]
[null,null,null,null,null,null,null,null,null,null,0,0,0,0,0,{"$f":"LEFT(L16,3)","v":"0"},"0",""]
[null,null,null,null,null,null,null,null,null,null,0,0,0,0,0,"0","0",""]
[null,null,null,null,null,null,null,null,null,null,0,0,0,0,0,{"$f":"LEFT(L18,3)","v":"0"},"0",""]
[null,null,null,null,null,null,null,null,null,null,0,0,0,0,0,"0","0",""]
[null,null,null,null,null,null,null,null,null,null,0,0,0,0,0,"0","0",""]
[null,null,null,null,null,null,null,null,null,null,0,{"$f":"D21","v":0},0,0,0,"0","0",""]
[null,null,null,null,null,null,null,null,null,null,0,0,0,0,0,"0","0",""]
[null,null,null,null,null,null,null,null,null,null,0,0,0,0,0,"0","0",""]
[null,null,null,null,null,null,null,null,null,null,0,0,0,0,0,"0","0",""]
[null,null,null,null,null,null,null,null,null,null,0,0,0,0,0,"0","0",""]
[null,null,null,null,null,null,null,null,null,null,0,0,0,0,0,"0","0",""]
[null,null,null,null,null,null,null,null,null,null,0,0,0,0,0,"0","0",""]
[null,null,null,null,null,null,null,null,null,null,0,0,0,0,0,"0","0",""]
[null,null,null,null,null,null,null,null,null,null,0,0,0,0,0,"0","0",""]
[null,null,null,null,null,null,null,null,null,null,0,0,0,0,0,"0","0",""]
[null,null,null,null,null,null,null,null,null,null,0,0,0,0,0,"0","0",""]
[null,null,null,null,null,null,null,null,null,null,0,0,0,0,0,"0","0",""]
[null,null,null,null,null,null,null,null,null,null,0,0,0,0,0,"0","0",""]
[null,null,null,null,null,null,null,null,null,null,0,0,0,0,0,"0","0",""]

{"sheet":"deleted","index":11,"n_rows":51,"n_cols":17,"rows_kept":51,"cut":false,"hidden":true,"merged":[]}
[]
[]
[null,"Hotel code","Room types to be deleted","Current Room type description","Max. # guest \nwithout extra bed","Max. # guest with extra bed",null,null,null,"HOTEL","RT","Description","Pax Std.","Max. Pax","Tipo Cd.","Tip. Ge. ","Subtipo"]
[null,null,null,null,null,null,null,null,null,{"$f":"B4","v":0},{"$f":"C4","v":0},{"$f":"D4","v":0},{"$f":"E4","v":0},{"$f":"F4","v":0},{"$f":"LEFT(K4,3)","v":"0"},{"$f":"LEFT(K4,6)","v":"0"},{"$f":"IF(LEN(K4)=7,\"X\",\"\")","v":""}]
[null,null,null,null,null,null,null,null,null,{"$f":"IFERROR(B5,\"\")","v":0},{"$f":"C5","v":0},{"$f":"D5","v":0},{"$f":"E5","v":0},{"$f":"F5","v":0},{"$f":"LEFT(K5,3)","v":"0"},{"$f":"LEFT(K5,6)","v":"0"},{"$f":"IF(LEN(K5)=7,\"X\",\"\")","v":""}]
[null,null,null,null,null,null,null,null,null,{"$f":"IFERROR(B6,\"\")","v":0},0,0,0,0,"0","0",""]
[null,null,null,null,null,null,null,null,null,{"$f":"B7","v":0},0,0,0,0,"0","0",""]
[null,null,null,null,null,null,null,null,null,0,0,0,0,0,"0","0",""]
[null,null,null,null,null,null,null,null,null,0,0,0,0,0,"0","0",""]
[null,null,null,null,null,null,null,null,null,0,0,0,0,0,"0","0",""]
[null,null,null,null,null,null,null,null,null,0,0,0,0,0,"0","0",""]
[null,null,null,null,null,null,null,null,null,0,0,0,0,0,"0","0",""]
[null,null,null,null,null,null,null,null,null,0,0,0,0,0,"0","0",""]
[null,null,null,null,null,null,null,null,null,0,0,0,0,0,"0","0",""]
[null,null,null,null,null,null,null,null,null,0,0,0,0,0,"0","0",""]
[null,null,null,null,null,null,null,null,null,0,0,0,0,0,"0","0",""]
[null,null,null,null,null,null,null,null,null,0,0,0,0,0,"0","0",""]
[null,null,null,null,null,null,null,null,null,0,0,0,0,0,"0","0",""]
[null,null,null,null,null,null,null,null,null,0,0,0,0,0,"0","0",""]
[null,null,null,null,null,null,null,null,null,0,0,0,0,0,"0","0",""]
[null,null,null,null,null,null,null,null,null,0,0,0,0,0,"0","0",""]
[null,null,null,null,null,null,null,null,null,0,0,0,0,0,"0","0",""]
[null,null,null,null,null,null,null,null,null,0,0,0,0,0,"0","0",""]
[null,null,null,null,null,null,null,null,null,{"$f":"IFERROR(B24,\"\")","v":0},0,0,0,0,"0","0",""]
[null,null,null,null,null,null,null,null,null,0,0,0,0,0,"0","0",""]
[null,null,null,null,null,null,null,null,null,0,0,0,0,0,"0","0",""]
[null,null,null,null,null,null,null,null,null,0,0,0,0,0,"0","0",""]
[null,null,null,null,null,null,null,null,null,0,0,0,0,0,"0","0",""]
[null,null,null,null,null,null,null,null,null,0,0,0,0,0,"0","0",""]
[null,null,null,null,null,null,null,null,null,0,0,0,0,0,"0","0",""]
[null,null,null,null,null,null,null,null,null,0,0,0,0,0,"0","0",""]
[null,null,null,null,null,null,null,null,null,0,0,0,0,0,"0","0",""]
[null,null,null,null,null,null,null,null,null,0,0,0,0,0,"0","0",""]
[null,null,null,null,null,null,null,null,null,0,0,0,0,0,"0","0",""]
[null,null,null,null,null,null,null,null,null,0,0,0,0,0,"0","0",""]
[null,null,null,null,null,null,null,null,null,0,0,0,0,0,"0","0",""]
[null,null,null,null,null,null,null,null,null,0,0,0,0,0,"0","0",""]
[null,null,null,null,null,null,null,null,null,0,0,0,0,0,"0","0",""]
[null,null,null,null,null,null,null,null,null,0,0,0,0,0,"0","0",""]
[null,null,null,null,null,null,null,null,null,0,0,0,0,0,"0","0",""]
[null,null,null,null,null,null,null,null,null,0,0,0,0,0,"0","0",""]
[null,null,null,null,null,null,null,null,null,0,0,0,0,0,"0","0",""]
[null,null,null,null,null,null,null,null,null,0,0,0,0,0,"0","0",""]
[null,null,null,null,null,null,null,null,null,0,0,0,0,0,"0","0",""]
[null,null,null,null,null,null,null,null,null,0,0,0,0,0,"0","0",""]
[null,null,null,null,null,null,null,null,null,0,0,0,0,0,"0","0",""]
[null,null,null,null,null,null,null,null,null,0,0,0,0,0,"0","0",""]
[null,null,null,null,null,null,null,null,null,0,0,0,0,0,"0","0",""]
[null,null,null,null,null,null,null,null,null,0,0,0,0,0,"0","0",""]
[null,null,null,null,null,null,null,null,null,0,0,0,0,0,"0","0",""]
[null,null,null,null,null,null,null,null,null,0,0,0,0,0,"0","0",""]

{"sheet":"IT MIGRATION","index":12,"n_rows":66,"n_cols":12,"rows_kept":66,"cut":false,"hidden":true,"merged":[]}
[null,"Change?"]
[]
[null,"Hotel code","Room","New Room Type \n(TMS)","Description","Norma","Max. Pax","Tipo Cd.","TIPOLOGY","ExBed","Special Description","Changes in Extra beds"]
[null,null,"(blank)","(blank)",null,null,null,{"$f":"LEFT(D4,3)","v":"(bl"},{"$f":"LEFT(D4,6)","v":"(blank"},{"$f":"IFERROR(IF(F4<>G4,\"X\",\"\"),\"\")","v":""},{"$f":"IFERROR(IF(VLOOKUP(D4,'3) Room configuration summary'!$I$12:$P$50,7,FALSE)=0,\"-\",VLOOKUP(D4,'3) Room configuration summary'!$I$12:$P$50,7,FALSE)),\"\")","v":""},{"$f":"IFERROR(VLOOKUP(C4,Table2[[Room '#]:[Changes in Extra Beds?]],17,FALSE),\"\")","v":""}]
[null,null,null,null,null,null,null,{"$f":"LEFT(D5,3)","v":""},{"$f":"LEFT(D5,6)","v":""},{"$f":"IFERROR(IF(F5<>G5,\"X\",\"\"),\"\")","v":""},{"$f":"IFERROR(IF(VLOOKUP(D5,'3) Room configuration summary'!$I$12:$P$50,7,FALSE)=0,\"-\",VLOOKUP(D5,'3) Room configuration summary'!$I$12:$P$50,7,FALSE)),\"\")","v":""},{"$f":"IFERROR(VLOOKUP(C5,Table2[[Room '#]:[Changes in Extra Beds?]],17,FALSE),\"\")","v":""}]
[null,null,null,null,null,null,null,"","","",{"$f":"IFERROR(IF(VLOOKUP(D6,'3) Room configuration summary'!$I$12:$P$50,7,FALSE)=0,\"-\",VLOOKUP(D6,'3) Room configuration summary'!$I$12:$P$50,7,FALSE)),\"\")","v":""},{"$f":"IFERROR(VLOOKUP(C6,Table2[[Room '#]:[Changes in Extra Beds?]],17,FALSE),\"\")","v":""}]
[null,null,null,null,null,null,null,"","","",{"$f":"IFERROR(IF(VLOOKUP(D7,'3) Room configuration summary'!$I$12:$P$50,7,FALSE)=0,\"-\",VLOOKUP(D7,'3) Room configuration summary'!$I$12:$P$50,7,FALSE)),\"\")","v":""},{"$f":"IFERROR(VLOOKUP(C7,Table2[[Room '#]:[Changes in Extra Beds?]],17,FALSE),\"\")","v":""}]
[null,null,null,null,null,null,null,"","","",{"$f":"IFERROR(IF(VLOOKUP(D8,'3) Room configuration summary'!$I$12:$P$50,7,FALSE)=0,\"-\",VLOOKUP(D8,'3) Room configuration summary'!$I$12:$P$50,7,FALSE)),\"\")","v":""},{"$f":"IFERROR(VLOOKUP(C8,Table2[[Room '#]:[Changes in Extra Beds?]],17,FALSE),\"\")","v":""}]
[null,null,null,null,null,null,null,"","","",{"$f":"IFERROR(IF(VLOOKUP(D9,'3) Room configuration summary'!$I$12:$P$50,7,FALSE)=0,\"-\",VLOOKUP(D9,'3) Room configuration summary'!$I$12:$P$50,7,FALSE)),\"\")","v":""},{"$f":"IFERROR(VLOOKUP(C9,Table2[[Room '#]:[Changes in Extra Beds?]],17,FALSE),\"\")","v":""}]
[null,null,null,null,null,null,null,"","","",{"$f":"IFERROR(IF(VLOOKUP(D10,'3) Room configuration summary'!$I$12:$P$50,7,FALSE)=0,\"-\",VLOOKUP(D10,'3) Room configuration summary'!$I$12:$P$50,7,FALSE)),\"\")","v":""},{"$f":"IFERROR(VLOOKUP(C10,Table2[[Room '#]:[Changes in Extra Beds?]],17,FALSE),\"\")","v":""}]
[null,null,null,null,null,null,null,"","","",{"$f":"IFERROR(IF(VLOOKUP(D11,'3) Room configuration summary'!$I$12:$P$50,7,FALSE)=0,\"-\",VLOOKUP(D11,'3) Room configuration summary'!$I$12:$P$50,7,FALSE)),\"\")","v":""},{"$f":"IFERROR(VLOOKUP(C11,Table2[[Room '#]:[Changes in Extra Beds?]],17,FALSE),\"\")","v":""}]
[null,null,null,null,null,null,null,"","","",{"$f":"IFERROR(IF(VLOOKUP(D12,'3) Room configuration summary'!$I$12:$P$50,7,FALSE)=0,\"-\",VLOOKUP(D12,'3) Room configuration summary'!$I$12:$P$50,7,FALSE)),\"\")","v":""},{"$f":"IFERROR(VLOOKUP(C12,Table2[[Room '#]:[Changes in Extra Beds?]],17,FALSE),\"\")","v":""}]
[null,null,null,null,null,null,null,"","","",{"$f":"IFERROR(IF(VLOOKUP(D13,'3) Room configuration summary'!$I$12:$P$50,7,FALSE)=0,\"-\",VLOOKUP(D13,'3) Room configuration summary'!$I$12:$P$50,7,FALSE)),\"\")","v":""},{"$f":"IFERROR(VLOOKUP(C13,Table2[[Room '#]:[Changes in Extra Beds?]],17,FALSE),\"\")","v":""}]
[null,null,null,null,null,null,null,"","","",{"$f":"IFERROR(IF(VLOOKUP(D14,'3) Room configuration summary'!$I$12:$P$50,7,FALSE)=0,\"-\",VLOOKUP(D14,'3) Room configuration summary'!$I$12:$P$50,7,FALSE)),\"\")","v":""},{"$f":"IFERROR(VLOOKUP(C14,Table2[[Room '#]:[Changes in Extra Beds?]],17,FALSE),\"\")","v":""}]
[null,null,null,null,null,null,null,"","","",{"$f":"IFERROR(IF(VLOOKUP(D15,'3) Room configuration summary'!$I$12:$P$50,7,FALSE)=0,\"-\",VLOOKUP(D15,'3) Room configuration summary'!$I$12:$P$50,7,FALSE)),\"\")","v":""},{"$f":"IFERROR(VLOOKUP(C15,Table2[[Room '#]:[Changes in Extra Beds?]],17,FALSE),\"\")","v":""}]
[null,null,null,null,null,null,null,"","","",{"$f":"IFERROR(IF(VLOOKUP(D16,'3) Room configuration summary'!$I$12:$P$50,7,FALSE)=0,\"-\",VLOOKUP(D16,'3) Room configuration summary'!$I$12:$P$50,7,FALSE)),\"\")","v":""},{"$f":"IFERROR(VLOOKUP(C16,Table2[[Room '#]:[Changes in Extra Beds?]],17,FALSE),\"\")","v":""}]
[null,null,null,null,null,null,null,"","","",{"$f":"IFERROR(IF(VLOOKUP(D17,'3) Room configuration summary'!$I$12:$P$50,7,FALSE)=0,\"-\",VLOOKUP(D17,'3) Room configuration summary'!$I$12:$P$50,7,FALSE)),\"\")","v":""},{"$f":"IFERROR(VLOOKUP(C17,Table2[[Room '#]:[Changes in Extra Beds?]],17,FALSE),\"\")","v":""}]
[null,null,null,null,null,null,null,"","","",{"$f":"IFERROR(IF(VLOOKUP(D18,'3) Room configuration summary'!$I$12:$P$50,7,FALSE)=0,\"-\",VLOOKUP(D18,'3) Room configuration summary'!$I$12:$P$50,7,FALSE)),\"\")","v":""},{"$f":"IFERROR(VLOOKUP(C18,Table2[[Room '#]:[Changes in Extra Beds?]],17,FALSE),\"\")","v":""}]
[null,null,null,null,null,null,null,"","","",{"$f":"IFERROR(IF(VLOOKUP(D19,'3) Room configuration summary'!$I$12:$P$50,7,FALSE)=0,\"-\",VLOOKUP(D19,'3) Room configuration summary'!$I$12:$P$50,7,FALSE)),\"\")","v":""},{"$f":"IFERROR(VLOOKUP(C19,Table2[[Room '#]:[Changes in Extra Beds?]],17,FALSE),\"\")","v":""}]
[null,null,null,null,null,null,null,"","","",{"$f":"IFERROR(IF(VLOOKUP(D20,'3) Room configuration summary'!$I$12:$P$50,7,FALSE)=0,\"-\",VLOOKUP(D20,'3) Room configuration summary'!$I$12:$P$50,7,FALSE)),\"\")","v":""},{"$f":"IFERROR(VLOOKUP(C20,Table2[[Room '#]:[Changes in Extra Beds?]],17,FALSE),\"\")","v":""}]
[null,null,null,null,null,null,null,"","","",{"$f":"IFERROR(IF(VLOOKUP(D21,'3) Room configuration summary'!$I$12:$P$50,7,FALSE)=0,\"-\",VLOOKUP(D21,'3) Room configuration summary'!$I$12:$P$50,7,FALSE)),\"\")","v":""},{"$f":"IFERROR(VLOOKUP(C21,Table2[[Room '#]:[Changes in Extra Beds?]],17,FALSE),\"\")","v":""}]
[null,null,null,null,null,null,null,"","","",{"$f":"IFERROR(IF(VLOOKUP(D22,'3) Room configuration summary'!$I$12:$P$50,7,FALSE)=0,\"-\",VLOOKUP(D22,'3) Room configuration summary'!$I$12:$P$50,7,FALSE)),\"\")","v":""},{"$f":"IFERROR(VLOOKUP(C22,Table2[[Room '#]:[Changes in Extra Beds?]],17,FALSE),\"\")","v":""}]
[null,null,null,null,null,null,null,"","","",{"$f":"IFERROR(IF(VLOOKUP(D23,'3) Room configuration summary'!$I$12:$P$50,7,FALSE)=0,\"-\",VLOOKUP(D23,'3) Room configuration summary'!$I$12:$P$50,7,FALSE)),\"\")","v":""},{"$f":"IFERROR(VLOOKUP(C23,Table2[[Room '#]:[Changes in Extra Beds?]],17,FALSE),\"\")","v":""}]
[null,null,null,null,null,null,null,"","","",{"$f":"IFERROR(IF(VLOOKUP(D24,'3) Room configuration summary'!$I$12:$P$50,7,FALSE)=0,\"-\",VLOOKUP(D24,'3) Room configuration summary'!$I$12:$P$50,7,FALSE)),\"\")","v":""},{"$f":"IFERROR(VLOOKUP(C24,Table2[[Room '#]:[Changes in Extra Beds?]],17,FALSE),\"\")","v":""}]
[null,null,null,null,null,null,null,"","","",{"$f":"IFERROR(IF(VLOOKUP(D25,'3) Room configuration summary'!$I$12:$P$50,7,FALSE)=0,\"-\",VLOOKUP(D25,'3) Room configuration summary'!$I$12:$P$50,7,FALSE)),\"\")","v":""},{"$f":"IFERROR(VLOOKUP(C25,Table2[[Room '#]:[Changes in Extra Beds?]],17,FALSE),\"\")","v":""}]
[null,null,null,null,null,null,null,"","","",{"$f":"IFERROR(IF(VLOOKUP(D26,'3) Room configuration summary'!$I$12:$P$50,7,FALSE)=0,\"-\",VLOOKUP(D26,'3) Room configuration summary'!$I$12:$P$50,7,FALSE)),\"\")","v":""},{"$f":"IFERROR(VLOOKUP(C26,Table2[[Room '#]:[Changes in Extra Beds?]],17,FALSE),\"\")","v":""}]
[null,null,null,null,null,null,null,"","","",{"$f":"IFERROR(IF(VLOOKUP(D27,'3) Room configuration summary'!$I$12:$P$50,7,FALSE)=0,\"-\",VLOOKUP(D27,'3) Room configuration summary'!$I$12:$P$50,7,FALSE)),\"\")","v":""},{"$f":"IFERROR(VLOOKUP(C27,Table2[[Room '#]:[Changes in Extra Beds?]],17,FALSE),\"\")","v":""}]
[null,null,null,null,null,null,null,"","","",{"$f":"IFERROR(IF(VLOOKUP(D28,'3) Room configuration summary'!$I$12:$P$50,7,FALSE)=0,\"-\",VLOOKUP(D28,'3) Room configuration summary'!$I$12:$P$50,7,FALSE)),\"\")","v":""},{"$f":"IFERROR(VLOOKUP(C28,Table2[[Room '#]:[Changes in Extra Beds?]],17,FALSE),\"\")","v":""}]
[null,null,null,null,null,null,null,"","","",{"$f":"IFERROR(IF(VLOOKUP(D29,'3) Room configuration summary'!$I$12:$P$50,7,FALSE)=0,\"-\",VLOOKUP(D29,'3) Room configuration summary'!$I$12:$P$50,7,FALSE)),\"\")","v":""},{"$f":"IFERROR(VLOOKUP(C29,Table2[[Room '#]:[Changes in Extra Beds?]],17,FALSE),\"\")","v":""}]
[null,null,null,null,null,null,null,"","","",{"$f":"IFERROR(IF(VLOOKUP(D30,'3) Room configuration summary'!$I$12:$P$50,7,FALSE)=0,\"-\",VLOOKUP(D30,'3) Room configuration summary'!$I$12:$P$50,7,FALSE)),\"\")","v":""},{"$f":"IFERROR(VLOOKUP(C30,Table2[[Room '#]:[Changes in Extra Beds?]],17,FALSE),\"\")","v":""}]
[null,null,null,null,null,null,null,"","","",{"$f":"IFERROR(IF(VLOOKUP(D31,'3) Room configuration summary'!$I$12:$P$50,7,FALSE)=0,\"-\",VLOOKUP(D31,'3) Room configuration summary'!$I$12:$P$50,7,FALSE)),\"\")","v":""},{"$f":"IFERROR(VLOOKUP(C31,Table2[[Room '#]:[Changes in Extra Beds?]],17,FALSE),\"\")","v":""}]
[null,null,null,null,null,null,null,"","","",{"$f":"IFERROR(IF(VLOOKUP(D32,'3) Room configuration summary'!$I$12:$P$50,7,FALSE)=0,\"-\",VLOOKUP(D32,'3) Room configuration summary'!$I$12:$P$50,7,FALSE)),\"\")","v":""},{"$f":"IFERROR(VLOOKUP(C32,Table2[[Room '#]:[Changes in Extra Beds?]],17,FALSE),\"\")","v":""}]
[null,null,null,null,null,null,null,"","","",{"$f":"IFERROR(IF(VLOOKUP(D33,'3) Room configuration summary'!$I$12:$P$50,7,FALSE)=0,\"-\",VLOOKUP(D33,'3) Room configuration summary'!$I$12:$P$50,7,FALSE)),\"\")","v":""},{"$f":"IFERROR(VLOOKUP(C33,Table2[[Room '#]:[Changes in Extra Beds?]],17,FALSE),\"\")","v":""}]
[null,null,null,null,null,null,null,"","","",{"$f":"IFERROR(IF(VLOOKUP(D34,'3) Room configuration summary'!$I$12:$P$50,7,FALSE)=0,\"-\",VLOOKUP(D34,'3) Room configuration summary'!$I$12:$P$50,7,FALSE)),\"\")","v":""},{"$f":"IFERROR(VLOOKUP(C34,Table2[[Room '#]:[Changes in Extra Beds?]],17,FALSE),\"\")","v":""}]
[null,null,null,null,null,null,null,"","","",{"$f":"IFERROR(IF(VLOOKUP(D35,'3) Room configuration summary'!$I$12:$P$50,7,FALSE)=0,\"-\",VLOOKUP(D35,'3) Room configuration summary'!$I$12:$P$50,7,FALSE)),\"\")","v":""}]
[null,null,null,null,null,null,null,"","",""]
[null,null,null,null,null,null,null,"","",""]
[null,null,null,null,null,null,null,"","",""]
[null,null,null,null,null,null,null,"","",""]
[null,null,null,null,null,null,null,"","",""]
[null,null,null,null,null,null,null,"","",""]
[null,null,null,null,null,null,null,"","",""]
[null,null,null,null,null,null,null,"","",""]
[null,null,null,null,null,null,null,"","",""]
[null,null,null,null,null,null,null,"","",""]
[null,null,null,null,null,null,null,"","",""]
[null,null,null,null,null,null,null,"","",""]
[null,null,null,null,null,null,null,"","",""]
[null,null,null,null,null,null,null,"","",""]
[null,null,null,null,null,null,null,"","",""]
[null,null,null,null,null,null,null,"","",""]
[null,null,null,null,null,null,null,"","",""]
[null,null,null,null,null,null,null,"","",""]
[null,null,null,null,null,null,null,"","",""]
[null,null,null,null,null,null,null,"","",""]
[null,null,null,null,null,null,null,"","",""]
[null,null,null,null,null,null,null,"","",""]
[null,null,null,null,null,null,null,"","",""]
[null,null,null,null,null,null,null,"","",""]
[null,null,null,null,null,null,null,"","",""]
[null,null,null,null,null,null,null,"","",""]
[null,null,null,null,null,null,null,"","",""]
[null,null,null,null,null,null,null,"","",""]
[null,null,null,null,null,null,null,"","",""]
[null,null,null,null,null,null,null,"","",""]
[null,null,null,null,null,null,null,"","",""]

{"sheet":"IT Overview","index":13,"n_rows":31,"n_cols":23,"rows_kept":31,"cut":false,"hidden":true,"merged":[]}
[]
[null," TO CREATE",null,null,null,null,null,null,null,null,null,null,null,"TO DELETE"]
[]
[null,{"$f":"created!K3","v":"HOTEL"},{"$f":"created!L3","v":"RT"},{"$f":"created!M3","v":"Description"},"Special Description",{"$f":"created!N3","v":"Pax Std."},{"$f":"created!O3","v":"Max. Pax"},{"$f":"created!P3","v":"Tipo Cd."},{"$f":"created!Q3","v":"Tip. Ge. "},{"$f":"created!R3","v":"Subtipo"},null,"Tipo",null,{"$f":"deleted!J3","v":"HOTEL"},{"$f":"deleted!K3","v":"RT"},{"$f":"deleted!L3","v":"Description"},{"$f":"deleted!M3","v":"Pax Std."},{"$f":"deleted!N3","v":"Max. Pax"},{"$f":"deleted!O3","v":"Tipo Cd."},{"$f":"deleted!P3","v":"Tip. Ge. "},{"$f":"deleted!Q3","v":"Subtipo"},null,"Tipo"]
[null,{"$f":"IF(created!K4=0,\"-\",created!K4)","v":"-"},{"$f":"IF(created!L4=0,\"-\",created!L4)","v":"-"},{"$f":"IF(created!M4=0,\"-\",created!M4)","v":"-"},{"$f":"IF(C5=\"-\",\"-\",IF(VLOOKUP(C5,'3) Room configuration summary'!$I$12:$P$50,7,FALSE)=\"0\",\"-\",VLOOKUP(C5,'3) Room configuration summary'!$I$12:$P$50,7,FALSE)))","v":"-"},{"$f":"IF(created!N4=0,\"-\",created!N4)","v":"-"},{"$f":"IF(created!O4=0,\"-\",created!O4)","v":"-"},{"$f":"IF(created!L4=0,\"-\",created!P4)","v":"-"},{"$f":"IF(created!L4=0,\"-\",created!Q4)","v":"-"},{"$f":"created!R4","v":""},{"$f":"IFERROR(VLOOKUP(I5,Table3[Current Type],1,FALSE),\"\")","v":""},{"$f":"IF(I5=\"-\",\"-\",IF(K5=I5,\"\",\"X\"))","v":"-"},null,{"$f":"IF(deleted!J4=0,\"-\",deleted!J4)","v":"-"},{"$f":"IF(deleted!K4=0,\"-\",deleted!K4)","v":"-"},{"$f":"IF(deleted!L4=0,\"-\",deleted!L4)","v":"-"},{"$f":"IF(deleted!M4=0,\"-\",deleted!M4)","v":"-"},{"$f":"IF(deleted!N4=0,\"-\",deleted!N4)","v":"-"},{"$f":"IF(deleted!K4=0,\"-\",deleted!O4)","v":"-"},{"$f":"IF(deleted!K4=0,\"-\",deleted!P4)","v":"-"},{"$f":"deleted!Q4","v":""},{"$f":"IFERROR(VLOOKUP(T5,Table3[New Room Type (TMS)],1,FALSE),\"\")","v":""},{"$f":"IF(T5=\"-\",\"-\",IF(V5=T5,\"\",\"X\"))","v":"-"}]
[null,{"$f":"IF(created!K5=0,\"-\",created!K5)","v":"-"},{"$f":"IF(created!L5=0,\"-\",created!L5)","v":"-"},{"$f":"IF(created!M5=0,\"-\",created!M5)","v":"-"},{"$f":"IF(C6=\"-\",\"-\",IF(VLOOKUP(C6,'3) Room configuration summary'!$I$12:$P$50,7,FALSE)=0,\"-\",VLOOKUP(C6,'3) Room configuration summary'!$I$12:$P$50,7,FALSE)))","v":"-"},{"$f":"IF(created!N5=0,\"-\",created!N5)","v":"-"},{"$f":"IF(created!O5=0,\"-\",created!O5)","v":"-"},{"$f":"IF(created!L5=0,\"-\",created!P5)","v":"-"},{"$f":"IF(created!L5=0,\"-\",created!Q5)","v":"-"},{"$f":"created!R5","v":""},{"$f":"IFERROR(VLOOKUP(I6,Table3[Current Type],1,FALSE),\"\")","v":""},{"$f":"IF(I6=\"-\",\"-\",IF(K6=I6,\"\",\"X\"))","v":"-"},null,{"$f":"IF(deleted!J5=0,\"-\",deleted!J5)","v":"-"},{"$f":"IF(deleted!K5=0,\"-\",deleted!K5)","v":"-"},{"$f":"IF(deleted!L5=0,\"-\",deleted!L5)","v":"-"},{"$f":"IF(deleted!M5=0,\"-\",deleted!M5)","v":"-"},{"$f":"IF(deleted!N5=0,\"-\",deleted!N5)","v":"-"},{"$f":"IF(deleted!K5=0,\"-\",deleted!O5)","v":"-"},{"$f":"IF(deleted!K5=0,\"-\",deleted!P5)","v":"-"},{"$f":"deleted!Q5","v":""},{"$f":"IFERROR(VLOOKUP(T6,Table3[New Room Type (TMS)],1,FALSE),\"\")","v":""},{"$f":"IF(T6=\"-\",\"-\",IF(V6=T6,\"\",\"X\"))","v":"-"}]
[null,{"$f":"IF(created!K6=0,\"-\",created!K6)","v":"-"},{"$f":"IF(created!L6=0,\"-\",created!L6)","v":"-"},{"$f":"IF(created!M6=0,\"-\",created!M6)","v":"-"},{"$f":"IF(C7=\"-\",\"-\",IF(VLOOKUP(C7,'3) Room configuration summary'!$I$12:$P$50,7,FALSE)=0,\"-\",VLOOKUP(C7,'3) Room configuration summary'!$I$12:$P$50,7,FALSE)))","v":"-"},{"$f":"IF(created!N6=0,\"-\",created!N6)","v":"-"},{"$f":"IF(created!O6=0,\"-\",created!O6)","v":"-"},{"$f":"IF(created!L6=0,\"-\",created!P6)","v":"-"},{"$f":"IF(created!L6=0,\"-\",created!Q6)","v":"-"},{"$f":"created!R6","v":""},{"$f":"IFERROR(VLOOKUP(I7,Table3[Current Type],1,FALSE),\"\")","v":""},"-",null,{"$f":"IF(deleted!J6=0,\"-\",deleted!J6)","v":"-"},{"$f":"IF(deleted!K6=0,\"-\",deleted!K6)","v":"-"},{"$f":"IF(deleted!L6=0,\"-\",deleted!L6)","v":"-"},{"$f":"IF(deleted!M6=0,\"-\",deleted!M6)","v":"-"},{"$f":"IF(deleted!N6=0,\"-\",deleted!N6)","v":"-"},{"$f":"IF(deleted!K6=0,\"-\",deleted!O6)","v":"-"},{"$f":"IF(deleted!K6=0,\"-\",deleted!P6)","v":"-"},{"$f":"deleted!Q6","v":""},{"$f":"IFERROR(VLOOKUP(T7,Table3[New Room Type (TMS)],1,FALSE),\"\")","v":""},"-"]
[null,{"$f":"IF(created!K7=0,\"-\",created!K7)","v":"-"},{"$f":"IF(created!L7=0,\"-\",created!L7)","v":"-"},{"$f":"IF(created!M7=0,\"-\",created!M7)","v":"-"},{"$f":"IF(C8=\"-\",\"-\",IF(VLOOKUP(C8,'3) Room configuration summary'!$I$12:$P$50,7,FALSE)=0,\"-\",VLOOKUP(C8,'3) Room configuration summary'!$I$12:$P$50,7,FALSE)))","v":"-"},{"$f":"IF(created!N7=0,\"-\",created!N7)","v":"-"},{"$f":"IF(created!O7=0,\"-\",created!O7)","v":"-"},{"$f":"IF(created!L7=0,\"-\",created!P7)","v":"-"},{"$f":"IF(created!L7=0,\"-\",created!Q7)","v":"-"},{"$f":"created!R7","v":""},{"$f":"IFERROR(VLOOKUP(I8,Table3[Current Type],1,FALSE),\"\")","v":""},"-",null,{"$f":"IF(deleted!J7=0,\"-\",deleted!J7)","v":"-"},{"$f":"IF(deleted!K7=0,\"-\",deleted!K7)","v":"-"},{"$f":"IF(deleted!L7=0,\"-\",deleted!L7)","v":"-"},{"$f":"IF(deleted!M7=0,\"-\",deleted!M7)","v":"-"},{"$f":"IF(deleted!N7=0,\"-\",deleted!N7)","v":"-"},{"$f":"IF(deleted!K7=0,\"-\",deleted!O7)","v":"-"},{"$f":"IF(deleted!K7=0,\"-\",deleted!P7)","v":"-"},{"$f":"deleted!Q7","v":""},{"$f":"IFERROR(VLOOKUP(T8,Table3[New Room Type (TMS)],1,FALSE),\"\")","v":""},"-"]
[null,{"$f":"IF(created!K8=0,\"-\",created!K8)","v":"-"},{"$f":"IF(created!L8=0,\"-\",created!L8)","v":"-"},{"$f":"IF(created!M8=0,\"-\",created!M8)","v":"-"},{"$f":"IF(C9=\"-\",\"-\",IF(VLOOKUP(C9,'3) Room configuration summary'!$I$12:$P$50,7,FALSE)=0,\"-\",VLOOKUP(C9,'3) Room configuration summary'!$I$12:$P$50,7,FALSE)))","v":"-"},{"$f":"IF(created!N8=0,\"-\",created!N8)","v":"-"},{"$f":"IF(created!O8=0,\"-\",created!O8)","v":"-"},{"$f":"IF(created!L8=0,\"-\",created!P8)","v":"-"},{"$f":"IF(created!L8=0,\"-\",created!Q8)","v":"-"},{"$f":"created!R8","v":""},{"$f":"IFERROR(VLOOKUP(I9,Table3[Current Type],1,FALSE),\"\")","v":""},"-",null,{"$f":"IF(deleted!J8=0,\"-\",deleted!J8)","v":"-"},{"$f":"IF(deleted!K8=0,\"-\",deleted!K8)","v":"-"},{"$f":"IF(deleted!L8=0,\"-\",deleted!L8)","v":"-"},{"$f":"IF(deleted!M8=0,\"-\",deleted!M8)","v":"-"},{"$f":"IF(deleted!N8=0,\"-\",deleted!N8)","v":"-"},{"$f":"IF(deleted!K8=0,\"-\",deleted!O8)","v":"-"},{"$f":"IF(deleted!K8=0,\"-\",deleted!P8)","v":"-"},{"$f":"deleted!Q8","v":""},{"$f":"IFERROR(VLOOKUP(T9,Table3[New Room Type (TMS)],1,FALSE),\"\")","v":""},"-"]
[null,{"$f":"IF(created!K9=0,\"-\",created!K9)","v":"-"},{"$f":"IF(created!L9=0,\"-\",created!L9)","v":"-"},{"$f":"IF(created!M9=0,\"-\",created!M9)","v":"-"},{"$f":"IF(C10=\"-\",\"-\",IF(VLOOKUP(C10,'3) Room configuration summary'!$I$12:$P$50,7,FALSE)=0,\"-\",VLOOKUP(C10,'3) Room configuration summary'!$I$12:$P$50,7,FALSE)))","v":"-"},{"$f":"IF(created!N9=0,\"-\",created!N9)","v":"-"},{"$f":"IF(created!O9=0,\"-\",created!O9)","v":"-"},{"$f":"IF(created!L9=0,\"-\",created!P9)","v":"-"},{"$f":"IF(created!L9=0,\"-\",created!Q9)","v":"-"},{"$f":"created!R9","v":""},{"$f":"IFERROR(VLOOKUP(I10,Table3[Current Type],1,FALSE),\"\")","v":""},"-",null,{"$f":"IF(deleted!J9=0,\"-\",deleted!J9)","v":"-"},{"$f":"IF(deleted!K9=0,\"-\",deleted!K9)","v":"-"},{"$f":"IF(deleted!L9=0,\"-\",deleted!L9)","v":"-"},{"$f":"IF(deleted!M9=0,\"-\",deleted!M9)","v":"-"},{"$f":"IF(deleted!N9=0,\"-\",deleted!N9)","v":"-"},{"$f":"IF(deleted!K9=0,\"-\",deleted!O9)","v":"-"},{"$f":"IF(deleted!K9=0,\"-\",deleted!P9)","v":"-"},{"$f":"deleted!Q9","v":""},{"$f":"IFERROR(VLOOKUP(T10,Table3[New Room Type (TMS)],1,FALSE),\"\")","v":""},"-"]
[null,{"$f":"IF(created!K10=0,\"-\",created!K10)","v":"-"},{"$f":"IF(created!L10=0,\"-\",created!L10)","v":"-"},{"$f":"IF(created!M10=0,\"-\",created!M10)","v":"-"},{"$f":"IF(C11=\"-\",\"-\",IF(VLOOKUP(C11,'3) Room configuration summary'!$I$12:$P$50,7,FALSE)=0,\"-\",VLOOKUP(C11,'3) Room configuration summary'!$I$12:$P$50,7,FALSE)))","v":"-"},{"$f":"IF(created!N10=0,\"-\",created!N10)","v":"-"},{"$f":"IF(created!O10=0,\"-\",created!O10)","v":"-"},{"$f":"IF(created!L10=0,\"-\",created!P10)","v":"-"},{"$f":"IF(created!L10=0,\"-\",created!Q10)","v":"-"},{"$f":"created!R10","v":""},{"$f":"IFERROR(VLOOKUP(I11,Table3[Current Type],1,FALSE),\"\")","v":""},"-",null,{"$f":"IF(deleted!J10=0,\"-\",deleted!J10)","v":"-"},{"$f":"IF(deleted!K10=0,\"-\",deleted!K10)","v":"-"},{"$f":"IF(deleted!L10=0,\"-\",deleted!L10)","v":"-"},{"$f":"IF(deleted!M10=0,\"-\",deleted!M10)","v":"-"},{"$f":"IF(deleted!N10=0,\"-\",deleted!N10)","v":"-"},{"$f":"IF(deleted!K10=0,\"-\",deleted!O10)","v":"-"},{"$f":"IF(deleted!K10=0,\"-\",deleted!P10)","v":"-"},{"$f":"deleted!Q10","v":""},{"$f":"IFERROR(VLOOKUP(T11,Table3[New Room Type (TMS)],1,FALSE),\"\")","v":""},"-"]
[null,{"$f":"IF(created!K11=0,\"-\",created!K11)","v":"-"},{"$f":"IF(created!L11=0,\"-\",created!L11)","v":"-"},{"$f":"IF(created!M11=0,\"-\",created!M11)","v":"-"},{"$f":"IF(C12=\"-\",\"-\",IF(VLOOKUP(C12,'3) Room configuration summary'!$I$12:$P$50,7,FALSE)=0,\"-\",VLOOKUP(C12,'3) Room configuration summary'!$I$12:$P$50,7,FALSE)))","v":"-"},{"$f":"IF(created!N11=0,\"-\",created!N11)","v":"-"},{"$f":"IF(created!O11=0,\"-\",created!O11)","v":"-"},{"$f":"IF(created!L11=0,\"-\",created!P11)","v":"-"},{"$f":"IF(created!L11=0,\"-\",created!Q11)","v":"-"},{"$f":"created!R11","v":""},{"$f":"IFERROR(VLOOKUP(I12,Table3[Current Type],1,FALSE),\"\")","v":""},"-",null,{"$f":"IF(deleted!J11=0,\"-\",deleted!J11)","v":"-"},{"$f":"IF(deleted!K11=0,\"-\",deleted!K11)","v":"-"},{"$f":"IF(deleted!L11=0,\"-\",deleted!L11)","v":"-"},{"$f":"IF(deleted!M11=0,\"-\",deleted!M11)","v":"-"},{"$f":"IF(deleted!N11=0,\"-\",deleted!N11)","v":"-"},{"$f":"IF(deleted!K11=0,\"-\",deleted!O11)","v":"-"},{"$f":"IF(deleted!K11=0,\"-\",deleted!P11)","v":"-"},{"$f":"deleted!Q11","v":""},{"$f":"IFERROR(VLOOKUP(T12,Table3[New Room Type (TMS)],1,FALSE),\"\")","v":""},"-"]
[null,{"$f":"IF(created!K12=0,\"-\",created!K12)","v":"-"},{"$f":"IF(created!L12=0,\"-\",created!L12)","v":"-"},{"$f":"IF(created!M12=0,\"-\",created!M12)","v":"-"},{"$f":"IF(C13=\"-\",\"-\",IF(VLOOKUP(C13,'3) Room configuration summary'!$I$12:$P$50,7,FALSE)=0,\"-\",VLOOKUP(C13,'3) Room configuration summary'!$I$12:$P$50,7,FALSE)))","v":"-"},{"$f":"IF(created!N12=0,\"-\",created!N12)","v":"-"},{"$f":"IF(created!O12=0,\"-\",created!O12)","v":"-"},{"$f":"IF(created!L12=0,\"-\",created!P12)","v":"-"},{"$f":"IF(created!L12=0,\"-\",created!Q12)","v":"-"},{"$f":"created!R12","v":""},{"$f":"IFERROR(VLOOKUP(I13,Table3[Current Type],1,FALSE),\"\")","v":""},"-",null,{"$f":"IF(deleted!J12=0,\"-\",deleted!J12)","v":"-"},{"$f":"IF(deleted!K12=0,\"-\",deleted!K12)","v":"-"},{"$f":"IF(deleted!L12=0,\"-\",deleted!L12)","v":"-"},{"$f":"IF(deleted!M12=0,\"-\",deleted!M12)","v":"-"},{"$f":"IF(deleted!N12=0,\"-\",deleted!N12)","v":"-"},{"$f":"IF(deleted!K12=0,\"-\",deleted!O12)","v":"-"},{"$f":"IF(deleted!K12=0,\"-\",deleted!P12)","v":"-"},{"$f":"deleted!Q12","v":""},{"$f":"IFERROR(VLOOKUP(T13,Table3[New Room Type (TMS)],1,FALSE),\"\")","v":""},"-"]
[null,{"$f":"IF(created!K13=0,\"-\",created!K13)","v":"-"},{"$f":"IF(created!L13=0,\"-\",created!L13)","v":"-"},{"$f":"IF(created!M13=0,\"-\",created!M13)","v":"-"},{"$f":"IF(C14=\"-\",\"-\",IF(VLOOKUP(C14,'3) Room configuration summary'!$I$12:$P$50,7,FALSE)=0,\"-\",VLOOKUP(C14,'3) Room configuration summary'!$I$12:$P$50,7,FALSE)))","v":"-"},{"$f":"IF(created!N13=0,\"-\",created!N13)","v":"-"},{"$f":"IF(created!O13=0,\"-\",created!O13)","v":"-"},{"$f":"IF(created!L13=0,\"-\",created!P13)","v":"-"},{"$f":"IF(created!L13=0,\"-\",created!Q13)","v":"-"},{"$f":"created!R13","v":""},{"$f":"IFERROR(VLOOKUP(I14,Table3[Current Type],1,FALSE),\"\")","v":""},"-",null,{"$f":"IF(deleted!J13=0,\"-\",deleted!J13)","v":"-"},{"$f":"IF(deleted!K13=0,\"-\",deleted!K13)","v":"-"},{"$f":"IF(deleted!L13=0,\"-\",deleted!L13)","v":"-"},{"$f":"IF(deleted!M13=0,\"-\",deleted!M13)","v":"-"},{"$f":"IF(deleted!N13=0,\"-\",deleted!N13)","v":"-"},{"$f":"IF(deleted!K13=0,\"-\",deleted!O13)","v":"-"},{"$f":"IF(deleted!K13=0,\"-\",deleted!P13)","v":"-"},{"$f":"deleted!Q13","v":""},{"$f":"IFERROR(VLOOKUP(T14,Table3[New Room Type (TMS)],1,FALSE),\"\")","v":""},"-"]
[null,{"$f":"IF(created!K14=0,\"-\",created!K14)","v":"-"},{"$f":"IF(created!L14=0,\"-\",created!L14)","v":"-"},{"$f":"IF(created!M14=0,\"-\",created!M14)","v":"-"},{"$f":"IF(C15=\"-\",\"-\",IF(VLOOKUP(C15,'3) Room configuration summary'!$I$12:$P$50,7,FALSE)=0,\"-\",VLOOKUP(C15,'3) Room configuration summary'!$I$12:$P$50,7,FALSE)))","v":"-"},{"$f":"IF(created!N14=0,\"-\",created!N14)","v":"-"},{"$f":"IF(created!O14=0,\"-\",created!O14)","v":"-"},{"$f":"IF(created!L14=0,\"-\",created!P14)","v":"-"},{"$f":"IF(created!L14=0,\"-\",created!Q14)","v":"-"},{"$f":"created!R14","v":""},{"$f":"IFERROR(VLOOKUP(I15,Table3[Current Type],1,FALSE),\"\")","v":""},"-",null,{"$f":"IF(deleted!J14=0,\"-\",deleted!J14)","v":"-"},{"$f":"IF(deleted!K14=0,\"-\",deleted!K14)","v":"-"},{"$f":"IF(deleted!L14=0,\"-\",deleted!L14)","v":"-"},{"$f":"IF(deleted!M14=0,\"-\",deleted!M14)","v":"-"},{"$f":"IF(deleted!N14=0,\"-\",deleted!N14)","v":"-"},{"$f":"IF(deleted!K14=0,\"-\",deleted!O14)","v":"-"},{"$f":"IF(deleted!K14=0,\"-\",deleted!P14)","v":"-"},{"$f":"deleted!Q14","v":""},{"$f":"IFERROR(VLOOKUP(T15,Table3[New Room Type (TMS)],1,FALSE),\"\")","v":""},"-"]
[null,{"$f":"IF(created!K15=0,\"-\",created!K15)","v":"-"},{"$f":"IF(created!L15=0,\"-\",created!L15)","v":"-"},{"$f":"IF(created!M15=0,\"-\",created!M15)","v":"-"},{"$f":"IF(C16=\"-\",\"-\",IF(VLOOKUP(C16,'3) Room configuration summary'!$I$12:$P$50,7,FALSE)=0,\"-\",VLOOKUP(C16,'3) Room configuration summary'!$I$12:$P$50,7,FALSE)))","v":"-"},{"$f":"IF(created!N15=0,\"-\",created!N15)","v":"-"},{"$f":"IF(created!O15=0,\"-\",created!O15)","v":"-"},{"$f":"IF(created!L15=0,\"-\",created!P15)","v":"-"},{"$f":"IF(created!L15=0,\"-\",created!Q15)","v":"-"},{"$f":"created!R15","v":""},{"$f":"IFERROR(VLOOKUP(I16,Table3[Current Type],1,FALSE),\"\")","v":""},"-",null,{"$f":"IF(deleted!J15=0,\"-\",deleted!J15)","v":"-"},{"$f":"IF(deleted!K15=0,\"-\",deleted!K15)","v":"-"},{"$f":"IF(deleted!L15=0,\"-\",deleted!L15)","v":"-"},{"$f":"IF(deleted!M15=0,\"-\",deleted!M15)","v":"-"},{"$f":"IF(deleted!N15=0,\"-\",deleted!N15)","v":"-"},{"$f":"IF(deleted!K15=0,\"-\",deleted!O15)","v":"-"},{"$f":"IF(deleted!K15=0,\"-\",deleted!P15)","v":"-"},{"$f":"deleted!Q15","v":""},{"$f":"IFERROR(VLOOKUP(T16,Table3[New Room Type (TMS)],1,FALSE),\"\")","v":""},"-"]
[null,{"$f":"IF(created!K16=0,\"-\",created!K16)","v":"-"},{"$f":"IF(created!L16=0,\"-\",created!L16)","v":"-"},{"$f":"IF(created!M16=0,\"-\",created!M16)","v":"-"},{"$f":"IF(C17=\"-\",\"-\",IF(VLOOKUP(C17,'3) Room configuration summary'!$I$12:$P$50,7,FALSE)=0,\"-\",VLOOKUP(C17,'3) Room configuration summary'!$I$12:$P$50,7,FALSE)))","v":"-"},{"$f":"IF(created!N16=0,\"-\",created!N16)","v":"-"},{"$f":"IF(created!O16=0,\"-\",created!O16)","v":"-"},{"$f":"IF(created!L16=0,\"-\",created!P16)","v":"-"},{"$f":"IF(created!L16=0,\"-\",created!Q16)","v":"-"},{"$f":"created!R16","v":""},{"$f":"IFERROR(VLOOKUP(I17,Table3[Current Type],1,FALSE),\"\")","v":""},"-",null,{"$f":"IF(deleted!J16=0,\"-\",deleted!J16)","v":"-"},{"$f":"IF(deleted!K16=0,\"-\",deleted!K16)","v":"-"},{"$f":"IF(deleted!L16=0,\"-\",deleted!L16)","v":"-"},{"$f":"IF(deleted!M16=0,\"-\",deleted!M16)","v":"-"},{"$f":"IF(deleted!N16=0,\"-\",deleted!N16)","v":"-"},{"$f":"IF(deleted!K16=0,\"-\",deleted!O16)","v":"-"},{"$f":"IF(deleted!K16=0,\"-\",deleted!P16)","v":"-"},{"$f":"deleted!Q16","v":""},{"$f":"IFERROR(VLOOKUP(T17,Table3[New Room Type (TMS)],1,FALSE),\"\")","v":""},"-"]
[null,{"$f":"IF(created!K17=0,\"-\",created!K17)","v":"-"},{"$f":"IF(created!L17=0,\"-\",created!L17)","v":"-"},{"$f":"IF(created!M17=0,\"-\",created!M17)","v":"-"},{"$f":"IF(C18=\"-\",\"-\",IF(VLOOKUP(C18,'3) Room configuration summary'!$I$12:$P$50,7,FALSE)=0,\"-\",VLOOKUP(C18,'3) Room configuration summary'!$I$12:$P$50,7,FALSE)))","v":"-"},{"$f":"IF(created!N17=0,\"-\",created!N17)","v":"-"},{"$f":"IF(created!O17=0,\"-\",created!O17)","v":"-"},{"$f":"IF(created!L17=0,\"-\",created!P17)","v":"-"},{"$f":"IF(created!L17=0,\"-\",created!Q17)","v":"-"},{"$f":"created!R17","v":""},{"$f":"IFERROR(VLOOKUP(I18,Table3[Current Type],1,FALSE),\"\")","v":""},"-",null,{"$f":"IF(deleted!J17=0,\"-\",deleted!J17)","v":"-"},{"$f":"IF(deleted!K17=0,\"-\",deleted!K17)","v":"-"},{"$f":"IF(deleted!L17=0,\"-\",deleted!L17)","v":"-"},{"$f":"IF(deleted!M17=0,\"-\",deleted!M17)","v":"-"},{"$f":"IF(deleted!N17=0,\"-\",deleted!N17)","v":"-"},{"$f":"IF(deleted!K17=0,\"-\",deleted!O17)","v":"-"},{"$f":"IF(deleted!K17=0,\"-\",deleted!P17)","v":"-"},{"$f":"deleted!Q17","v":""},{"$f":"IFERROR(VLOOKUP(T18,Table3[New Room Type (TMS)],1,FALSE),\"\")","v":""},"-"]
[null,{"$f":"IF(created!K18=0,\"-\",created!K18)","v":"-"},{"$f":"IF(created!L18=0,\"-\",created!L18)","v":"-"},{"$f":"IF(created!M18=0,\"-\",created!M18)","v":"-"},{"$f":"IF(C19=\"-\",\"-\",IF(VLOOKUP(C19,'3) Room configuration summary'!$I$12:$P$50,7,FALSE)=0,\"-\",VLOOKUP(C19,'3) Room configuration summary'!$I$12:$P$50,7,FALSE)))","v":"-"},{"$f":"IF(created!N18=0,\"-\",created!N18)","v":"-"},{"$f":"IF(created!O18=0,\"-\",created!O18)","v":"-"},{"$f":"IF(created!L18=0,\"-\",created!P18)","v":"-"},{"$f":"IF(created!L18=0,\"-\",created!Q18)","v":"-"},{"$f":"created!R18","v":""},{"$f":"IFERROR(VLOOKUP(I19,Table3[Current Type],1,FALSE),\"\")","v":""},"-",null,{"$f":"IF(deleted!J18=0,\"-\",deleted!J18)","v":"-"},{"$f":"IF(deleted!K18=0,\"-\",deleted!K18)","v":"-"},{"$f":"IF(deleted!L18=0,\"-\",deleted!L18)","v":"-"},{"$f":"IF(deleted!M18=0,\"-\",deleted!M18)","v":"-"},{"$f":"IF(deleted!N18=0,\"-\",deleted!N18)","v":"-"},{"$f":"IF(deleted!K18=0,\"-\",deleted!O18)","v":"-"},{"$f":"IF(deleted!K18=0,\"-\",deleted!P18)","v":"-"},{"$f":"deleted!Q18","v":""},{"$f":"IFERROR(VLOOKUP(T19,Table3[New Room Type (TMS)],1,FALSE),\"\")","v":""},"-"]
[null,{"$f":"IF(created!K19=0,\"-\",created!K19)","v":"-"},{"$f":"IF(created!L19=0,\"-\",created!L19)","v":"-"},{"$f":"IF(created!M19=0,\"-\",created!M19)","v":"-"},{"$f":"IF(C20=\"-\",\"-\",IF(VLOOKUP(C20,'3) Room configuration summary'!$I$12:$P$50,7,FALSE)=0,\"-\",VLOOKUP(C20,'3) Room configuration summary'!$I$12:$P$50,7,FALSE)))","v":"-"},{"$f":"IF(created!N19=0,\"-\",created!N19)","v":"-"},{"$f":"IF(created!O19=0,\"-\",created!O19)","v":"-"},{"$f":"IF(created!L19=0,\"-\",created!P19)","v":"-"},{"$f":"IF(created!L19=0,\"-\",created!Q19)","v":"-"},{"$f":"created!R19","v":""},{"$f":"IFERROR(VLOOKUP(I20,Table3[Current Type],1,FALSE),\"\")","v":""},"-",null,{"$f":"IF(deleted!J19=0,\"-\",deleted!J19)","v":"-"},{"$f":"IF(deleted!K19=0,\"-\",deleted!K19)","v":"-"},{"$f":"IF(deleted!L19=0,\"-\",deleted!L19)","v":"-"},{"$f":"IF(deleted!M19=0,\"-\",deleted!M19)","v":"-"},{"$f":"IF(deleted!N19=0,\"-\",deleted!N19)","v":"-"},{"$f":"IF(deleted!K19=0,\"-\",deleted!O19)","v":"-"},{"$f":"IF(deleted!K19=0,\"-\",deleted!P19)","v":"-"},{"$f":"deleted!Q19","v":""},{"$f":"IFERROR(VLOOKUP(T20,Table3[New Room Type (TMS)],1,FALSE),\"\")","v":""},"-"]
[null,{"$f":"IF(created!K20=0,\"-\",created!K20)","v":"-"},{"$f":"IF(created!L20=0,\"-\",created!L20)","v":"-"},{"$f":"IF(created!M20=0,\"-\",created!M20)","v":"-"},{"$f":"IF(C21=\"-\",\"-\",IF(VLOOKUP(C21,'3) Room configuration summary'!$I$12:$P$50,7,FALSE)=0,\"-\",VLOOKUP(C21,'3) Room configuration summary'!$I$12:$P$50,7,FALSE)))","v":"-"},{"$f":"IF(created!N20=0,\"-\",created!N20)","v":"-"},{"$f":"IF(created!O20=0,\"-\",created!O20)","v":"-"},{"$f":"IF(created!L20=0,\"-\",created!P20)","v":"-"},{"$f":"IF(created!L20=0,\"-\",created!Q20)","v":"-"},{"$f":"created!R20","v":""},{"$f":"IFERROR(VLOOKUP(I21,Table3[Current Type],1,FALSE),\"\")","v":""},"-",null,{"$f":"IF(deleted!J20=0,\"-\",deleted!J20)","v":"-"},{"$f":"IF(deleted!K20=0,\"-\",deleted!K20)","v":"-"},{"$f":"IF(deleted!L20=0,\"-\",deleted!L20)","v":"-"},{"$f":"IF(deleted!M20=0,\"-\",deleted!M20)","v":"-"},{"$f":"IF(deleted!N20=0,\"-\",deleted!N20)","v":"-"},{"$f":"IF(deleted!K20=0,\"-\",deleted!O20)","v":"-"},{"$f":"IF(deleted!K20=0,\"-\",deleted!P20)","v":"-"},{"$f":"deleted!Q20","v":""},{"$f":"IFERROR(VLOOKUP(T21,Table3[New Room Type (TMS)],1,FALSE),\"\")","v":""},"-"]
[null,{"$f":"IF(created!K21=0,\"-\",created!K21)","v":"-"},{"$f":"IF(created!L21=0,\"-\",created!L21)","v":"-"},{"$f":"IF(created!M21=0,\"-\",created!M21)","v":"-"},{"$f":"IF(C22=\"-\",\"-\",IF(VLOOKUP(C22,'3) Room configuration summary'!$I$12:$P$50,7,FALSE)=0,\"-\",VLOOKUP(C22,'3) Room configuration summary'!$I$12:$P$50,7,FALSE)))","v":"-"},{"$f":"IF(created!N21=0,\"-\",created!N21)","v":"-"},{"$f":"IF(created!O21=0,\"-\",created!O21)","v":"-"},{"$f":"IF(created!L21=0,\"-\",created!P21)","v":"-"},{"$f":"IF(created!L21=0,\"-\",created!Q21)","v":"-"},{"$f":"created!R21","v":""},{"$f":"IFERROR(VLOOKUP(I22,Table3[Current Type],1,FALSE),\"\")","v":""},"-",null,{"$f":"IF(deleted!J21=0,\"-\",deleted!J21)","v":"-"},{"$f":"IF(deleted!K21=0,\"-\",deleted!K21)","v":"-"},{"$f":"IF(deleted!L21=0,\"-\",deleted!L21)","v":"-"},{"$f":"IF(deleted!M21=0,\"-\",deleted!M21)","v":"-"},{"$f":"IF(deleted!N21=0,\"-\",deleted!N21)","v":"-"},{"$f":"IF(deleted!K21=0,\"-\",deleted!O21)","v":"-"},{"$f":"IF(deleted!K21=0,\"-\",deleted!P21)","v":"-"},{"$f":"deleted!Q21","v":""},{"$f":"IFERROR(VLOOKUP(T22,Table3[New Room Type (TMS)],1,FALSE),\"\")","v":""},"-"]
[null,{"$f":"IF(created!K22=0,\"-\",created!K22)","v":"-"},{"$f":"IF(created!L22=0,\"-\",created!L22)","v":"-"},{"$f":"IF(created!M22=0,\"-\",created!M22)","v":"-"},{"$f":"IF(C23=\"-\",\"-\",IF(VLOOKUP(C23,'3) Room configuration summary'!$I$12:$P$50,7,FALSE)=0,\"-\",VLOOKUP(C23,'3) Room configuration summary'!$I$12:$P$50,7,FALSE)))","v":"-"},{"$f":"IF(created!N22=0,\"-\",created!N22)","v":"-"},{"$f":"IF(created!O22=0,\"-\",created!O22)","v":"-"},{"$f":"IF(created!L22=0,\"-\",created!P22)","v":"-"},{"$f":"IF(created!L22=0,\"-\",created!Q22)","v":"-"},{"$f":"created!R22","v":""},{"$f":"IFERROR(VLOOKUP(I23,Table3[Current Type],1,FALSE),\"\")","v":""},"-",null,{"$f":"IF(deleted!J22=0,\"-\",deleted!J22)","v":"-"},{"$f":"IF(deleted!K22=0,\"-\",deleted!K22)","v":"-"},{"$f":"IF(deleted!L22=0,\"-\",deleted!L22)","v":"-"},{"$f":"IF(deleted!M22=0,\"-\",deleted!M22)","v":"-"},{"$f":"IF(deleted!N22=0,\"-\",deleted!N22)","v":"-"},{"$f":"IF(deleted!K22=0,\"-\",deleted!O22)","v":"-"},{"$f":"IF(deleted!K22=0,\"-\",deleted!P22)","v":"-"},{"$f":"deleted!Q22","v":""},{"$f":"IFERROR(VLOOKUP(T23,Table3[New Room Type (TMS)],1,FALSE),\"\")","v":""},"-"]
[null,{"$f":"IF(created!K23=0,\"-\",created!K23)","v":"-"},{"$f":"IF(created!L23=0,\"-\",created!L23)","v":"-"},{"$f":"IF(created!M23=0,\"-\",created!M23)","v":"-"},{"$f":"IF(C24=\"-\",\"-\",IF(VLOOKUP(C24,'3) Room configuration summary'!$I$12:$P$50,7,FALSE)=0,\"-\",VLOOKUP(C24,'3) Room configuration summary'!$I$12:$P$50,7,FALSE)))","v":"-"},{"$f":"IF(created!N23=0,\"-\",created!N23)","v":"-"},{"$f":"IF(created!O23=0,\"-\",created!O23)","v":"-"},{"$f":"IF(created!L23=0,\"-\",created!P23)","v":"-"},{"$f":"IF(created!L23=0,\"-\",created!Q23)","v":"-"},{"$f":"created!R23","v":""},{"$f":"IFERROR(VLOOKUP(I24,Table3[Current Type],1,FALSE),\"\")","v":""},"-",null,{"$f":"IF(deleted!J23=0,\"-\",deleted!J23)","v":"-"},{"$f":"IF(deleted!K23=0,\"-\",deleted!K23)","v":"-"},{"$f":"IF(deleted!L23=0,\"-\",deleted!L23)","v":"-"},{"$f":"IF(deleted!M23=0,\"-\",deleted!M23)","v":"-"},{"$f":"IF(deleted!N23=0,\"-\",deleted!N23)","v":"-"},{"$f":"IF(deleted!K23=0,\"-\",deleted!O23)","v":"-"},{"$f":"IF(deleted!K23=0,\"-\",deleted!P23)","v":"-"},{"$f":"deleted!Q23","v":""},{"$f":"IFERROR(VLOOKUP(T24,Table3[New Room Type (TMS)],1,FALSE),\"\")","v":""},"-"]
[null,{"$f":"IF(created!K24=0,\"-\",created!K24)","v":"-"},{"$f":"IF(created!L24=0,\"-\",created!L24)","v":"-"},{"$f":"IF(created!M24=0,\"-\",created!M24)","v":"-"},{"$f":"IF(C25=\"-\",\"-\",IF(VLOOKUP(C25,'3) Room configuration summary'!$I$12:$P$50,7,FALSE)=0,\"-\",VLOOKUP(C25,'3) Room configuration summary'!$I$12:$P$50,7,FALSE)))","v":"-"},{"$f":"IF(created!N24=0,\"-\",created!N24)","v":"-"},{"$f":"IF(created!O24=0,\"-\",created!O24)","v":"-"},{"$f":"IF(created!L24=0,\"-\",created!P24)","v":"-"},{"$f":"IF(created!L24=0,\"-\",created!Q24)","v":"-"},{"$f":"created!R24","v":""},{"$f":"IFERROR(VLOOKUP(I25,Table3[Current Type],1,FALSE),\"\")","v":""},"-",null,{"$f":"IF(deleted!J24=0,\"-\",deleted!J24)","v":"-"},{"$f":"IF(deleted!K24=0,\"-\",deleted!K24)","v":"-"},{"$f":"IF(deleted!L24=0,\"-\",deleted!L24)","v":"-"},{"$f":"IF(deleted!M24=0,\"-\",deleted!M24)","v":"-"},{"$f":"IF(deleted!N24=0,\"-\",deleted!N24)","v":"-"},{"$f":"IF(deleted!K24=0,\"-\",deleted!O24)","v":"-"},{"$f":"IF(deleted!K24=0,\"-\",deleted!P24)","v":"-"},{"$f":"deleted!Q24","v":""},{"$f":"IFERROR(VLOOKUP(T25,Table3[New Room Type (TMS)],1,FALSE),\"\")","v":""},"-"]
[null,{"$f":"IF(created!K25=0,\"-\",created!K25)","v":"-"},{"$f":"IF(created!L25=0,\"-\",created!L25)","v":"-"},{"$f":"IF(created!M25=0,\"-\",created!M25)","v":"-"},{"$f":"IF(C26=\"-\",\"-\",IF(VLOOKUP(C26,'3) Room configuration summary'!$I$12:$P$50,7,FALSE)=0,\"-\",VLOOKUP(C26,'3) Room configuration summary'!$I$12:$P$50,7,FALSE)))","v":"-"},{"$f":"IF(created!N25=0,\"-\",created!N25)","v":"-"},{"$f":"IF(created!O25=0,\"-\",created!O25)","v":"-"},{"$f":"IF(created!L25=0,\"-\",created!P25)","v":"-"},{"$f":"IF(created!L25=0,\"-\",created!Q25)","v":"-"},{"$f":"created!R25","v":""},{"$f":"IFERROR(VLOOKUP(I26,Table3[Current Type],1,FALSE),\"\")","v":""},"-",null,{"$f":"IF(deleted!J25=0,\"-\",deleted!J25)","v":"-"},{"$f":"IF(deleted!K25=0,\"-\",deleted!K25)","v":"-"},{"$f":"IF(deleted!L25=0,\"-\",deleted!L25)","v":"-"},{"$f":"IF(deleted!M25=0,\"-\",deleted!M25)","v":"-"},{"$f":"IF(deleted!N25=0,\"-\",deleted!N25)","v":"-"},{"$f":"IF(deleted!K25=0,\"-\",deleted!O25)","v":"-"},{"$f":"IF(deleted!K25=0,\"-\",deleted!P25)","v":"-"},{"$f":"deleted!Q25","v":""},{"$f":"IFERROR(VLOOKUP(T26,Table3[New Room Type (TMS)],1,FALSE),\"\")","v":""},"-"]
[null,{"$f":"IF(created!K26=0,\"-\",created!K26)","v":"-"},{"$f":"IF(created!L26=0,\"-\",created!L26)","v":"-"},{"$f":"IF(created!M26=0,\"-\",created!M26)","v":"-"},{"$f":"IF(C27=\"-\",\"-\",IF(VLOOKUP(C27,'3) Room configuration summary'!$I$12:$P$50,7,FALSE)=0,\"-\",VLOOKUP(C27,'3) Room configuration summary'!$I$12:$P$50,7,FALSE)))","v":"-"},{"$f":"IF(created!N26=0,\"-\",created!N26)","v":"-"},{"$f":"IF(created!O26=0,\"-\",created!O26)","v":"-"},{"$f":"IF(created!L26=0,\"-\",created!P26)","v":"-"},{"$f":"IF(created!L26=0,\"-\",created!Q26)","v":"-"},{"$f":"created!R26","v":""},{"$f":"IFERROR(VLOOKUP(I27,Table3[Current Type],1,FALSE),\"\")","v":""},"-",null,{"$f":"IF(deleted!J26=0,\"-\",deleted!J26)","v":"-"},{"$f":"IF(deleted!K26=0,\"-\",deleted!K26)","v":"-"},{"$f":"IF(deleted!L26=0,\"-\",deleted!L26)","v":"-"},{"$f":"IF(deleted!M26=0,\"-\",deleted!M26)","v":"-"},{"$f":"IF(deleted!N26=0,\"-\",deleted!N26)","v":"-"},{"$f":"IF(deleted!K26=0,\"-\",deleted!O26)","v":"-"},{"$f":"IF(deleted!K26=0,\"-\",deleted!P26)","v":"-"},{"$f":"deleted!Q26","v":""},{"$f":"IFERROR(VLOOKUP(T27,Table3[New Room Type (TMS)],1,FALSE),\"\")","v":""},"-"]
[null,{"$f":"IF(created!K27=0,\"-\",created!K27)","v":"-"},{"$f":"IF(created!L27=0,\"-\",created!L27)","v":"-"},{"$f":"IF(created!M27=0,\"-\",created!M27)","v":"-"},{"$f":"IF(C28=\"-\",\"-\",IF(VLOOKUP(C28,'3) Room configuration summary'!$I$12:$P$50,7,FALSE)=0,\"-\",VLOOKUP(C28,'3) Room configuration summary'!$I$12:$P$50,7,FALSE)))","v":"-"},{"$f":"IF(created!N27=0,\"-\",created!N27)","v":"-"},{"$f":"IF(created!O27=0,\"-\",created!O27)","v":"-"},{"$f":"IF(created!L27=0,\"-\",created!P27)","v":"-"},{"$f":"IF(created!L27=0,\"-\",created!Q27)","v":"-"},{"$f":"created!R27","v":""},{"$f":"IFERROR(VLOOKUP(I28,Table3[Current Type],1,FALSE),\"\")","v":""},"-",null,{"$f":"IF(deleted!J27=0,\"-\",deleted!J27)","v":"-"},{"$f":"IF(deleted!K27=0,\"-\",deleted!K27)","v":"-"},{"$f":"IF(deleted!L27=0,\"-\",deleted!L27)","v":"-"},{"$f":"IF(deleted!M27=0,\"-\",deleted!M27)","v":"-"},{"$f":"IF(deleted!N27=0,\"-\",deleted!N27)","v":"-"},{"$f":"IF(deleted!K27=0,\"-\",deleted!O27)","v":"-"},{"$f":"IF(deleted!K27=0,\"-\",deleted!P27)","v":"-"},{"$f":"deleted!Q27","v":""},{"$f":"IFERROR(VLOOKUP(T28,Table3[New Room Type (TMS)],1,FALSE),\"\")","v":""},"-"]
[null,{"$f":"IF(created!K28=0,\"-\",created!K28)","v":"-"},{"$f":"IF(created!L28=0,\"-\",created!L28)","v":"-"},{"$f":"IF(created!M28=0,\"-\",created!M28)","v":"-"},{"$f":"IF(C29=\"-\",\"-\",IF(VLOOKUP(C29,'3) Room configuration summary'!$I$12:$P$50,7,FALSE)=0,\"-\",VLOOKUP(C29,'3) Room configuration summary'!$I$12:$P$50,7,FALSE)))","v":"-"},{"$f":"IF(created!N28=0,\"-\",created!N28)","v":"-"},{"$f":"IF(created!O28=0,\"-\",created!O28)","v":"-"},{"$f":"IF(created!L28=0,\"-\",created!P28)","v":"-"},{"$f":"IF(created!L28=0,\"-\",created!Q28)","v":"-"},{"$f":"created!R28","v":""},{"$f":"IFERROR(VLOOKUP(I29,Table3[Current Type],1,FALSE),\"\")","v":""},"-",null,{"$f":"IF(deleted!J28=0,\"-\",deleted!J28)","v":"-"},{"$f":"IF(deleted!K28=0,\"-\",deleted!K28)","v":"-"},{"$f":"IF(deleted!L28=0,\"-\",deleted!L28)","v":"-"},{"$f":"IF(deleted!M28=0,\"-\",deleted!M28)","v":"-"},{"$f":"IF(deleted!N28=0,\"-\",deleted!N28)","v":"-"},{"$f":"IF(deleted!K28=0,\"-\",deleted!O28)","v":"-"},{"$f":"IF(deleted!K28=0,\"-\",deleted!P28)","v":"-"},{"$f":"deleted!Q28","v":""},{"$f":"IFERROR(VLOOKUP(T29,Table3[New Room Type (TMS)],1,FALSE),\"\")","v":""},"-"]
[null,{"$f":"IF(created!K29=0,\"-\",created!K29)","v":"-"},{"$f":"IF(created!L29=0,\"-\",created!L29)","v":"-"},{"$f":"IF(created!M29=0,\"-\",created!M29)","v":"-"},{"$f":"IF(C30=\"-\",\"-\",IF(VLOOKUP(C30,'3) Room configuration summary'!$I$12:$P$50,7,FALSE)=0,\"-\",VLOOKUP(C30,'3) Room configuration summary'!$I$12:$P$50,7,FALSE)))","v":"-"},{"$f":"IF(created!N29=0,\"-\",created!N29)","v":"-"},{"$f":"IF(created!O29=0,\"-\",created!O29)","v":"-"},{"$f":"IF(created!L29=0,\"-\",created!P29)","v":"-"},{"$f":"IF(created!L29=0,\"-\",created!Q29)","v":"-"},{"$f":"created!R29","v":""},{"$f":"IFERROR(VLOOKUP(I30,Table3[Current Type],1,FALSE),\"\")","v":""},"-",null,{"$f":"IF(deleted!J29=0,\"-\",deleted!J29)","v":"-"},{"$f":"IF(deleted!K29=0,\"-\",deleted!K29)","v":"-"},{"$f":"IF(deleted!L29=0,\"-\",deleted!L29)","v":"-"},{"$f":"IF(deleted!M29=0,\"-\",deleted!M29)","v":"-"},{"$f":"IF(deleted!N29=0,\"-\",deleted!N29)","v":"-"},{"$f":"IF(deleted!K29=0,\"-\",deleted!O29)","v":"-"},{"$f":"IF(deleted!K29=0,\"-\",deleted!P29)","v":"-"},{"$f":"deleted!Q29","v":""},{"$f":"IFERROR(VLOOKUP(T30,Table3[New Room Type (TMS)],1,FALSE),\"\")","v":""},"-"]
[null,{"$f":"IF(created!K30=0,\"-\",created!K30)","v":"-"},{"$f":"IF(created!L30=0,\"-\",created!L30)","v":"-"},{"$f":"IF(created!M30=0,\"-\",created!M30)","v":"-"},{"$f":"IF(C31=\"-\",\"-\",IF(VLOOKUP(C31,'3) Room configuration summary'!$I$12:$P$50,7,FALSE)=0,\"-\",VLOOKUP(C31,'3) Room configuration summary'!$I$12:$P$50,7,FALSE)))","v":"-"},{"$f":"IF(created!N30=0,\"-\",created!N30)","v":"-"},{"$f":"IF(created!O30=0,\"-\",created!O30)","v":"-"},{"$f":"IF(created!L30=0,\"-\",created!P30)","v":"-"},{"$f":"IF(created!L30=0,\"-\",created!Q30)","v":"-"},{"$f":"created!R30","v":""},{"$f":"IFERROR(VLOOKUP(I31,Table3[Current Type],1,FALSE),\"\")","v":""},"-",null,{"$f":"IF(deleted!J30=0,\"-\",deleted!J30)","v":"-"},{"$f":"IF(deleted!K30=0,\"-\",deleted!K30)","v":"-"},{"$f":"IF(deleted!L30=0,\"-\",deleted!L30)","v":"-"},{"$f":"IF(deleted!M30=0,\"-\",deleted!M30)","v":"-"},{"$f":"IF(deleted!N30=0,\"-\",deleted!N30)","v":"-"},{"$f":"IF(deleted!K30=0,\"-\",deleted!O30)","v":"-"},{"$f":"IF(deleted!K30=0,\"-\",deleted!P30)","v":"-"},{"$f":"deleted!Q30","v":""},{"$f":"IFERROR(VLOOKUP(T31,Table3[New Room Type (TMS)],1,FALSE),\"\")","v":""},"-"]

{"sheet":"CheckRoom Contracts","index":14,"n_rows":9,"n_cols":4,"rows_kept":9,"cut":false,"hidden":true,"merged":[]}
[]
[]
[null,"Change?","(All)"]
[]
[null,"Current Room type description","New Room type description","Count of New Room Type \n(TMS)"]
[null,""]
[null,null,"(blank)"]
[null,"(blank)","(blank)"]
[null,"Grand Total"]

{"sheet":"Pricing 3.0 Rate Structure","index":15,"n_rows":35,"n_cols":3,"rows_kept":35,"cut":false,"hidden":true,"merged":[[19,1,28,5]]}
["Urban Hotels - Rate Structure"]
[]
["With Open Pricing"]
["Rate Code","RO","BB"]
["SD1_7-14D","X","X"]
["NHR_SD1","X","X"]
["AP15DMLOS","X","X"]
["NHR_AP15DM","X","X"]
["BAR","X"]
["NHR_BAR","X"]
["FLEXBB",null,"X"]
["NHR_FLEXBB",null,"X"]
["PRO_BF_FRE",null,"X"]
["NHR_PRO_BF",null,"X"]
["PRO_SEASOD","X","X"]
["NHR_PROSED","X","X"]
[]
["Without Open Pricing"]
["Rate Code"]
["AP15-29D","All other rates codes you are currently selling that are part of the Pricing 1.0 structure will be kept as per their current status. No extra mealplans will be configured on channels. F.e: AP15-29D will be kept in Room Only on channels. These rates will be removed as soon as the hotel moved to Open pricing"]
["AP30D"]
["NHR_AP15D"]
["NHR_AP30D"]
["AP14DBB"]
["AP14RO"]
["NHR_AP14BB"]
["NHR_AP14RO"]
["AP_MLOS_01"]
["NHR_AP_M01"]
[]
["Opening/ Refurbishments"]
["For all new openings and refurbished properties we will add the NH_OPENING rate."]
[]
["Airport Hotels"]
["In all airport hotels we will load the Park Sleep & Fly product you have available in TMS. "]

{"sheet":"MAX","index":16,"n_rows":5,"n_cols":2,"rows_kept":5,"cut":false,"hidden":true,"merged":[]}
[]
[]
["Row Labels","Max of # extra beds that fit in the room2"]
["(blank)"]
["Grand Total"]

{"sheet":"BreakfastPrices","index":17,"n_rows":21,"n_cols":2,"rows_kept":21,"cut":false,"hidden":true,"merged":[]}
[]
[null,"Breakfast currencies"]
[]
[]
[]
[]
[]
[]
[]
[null,"Currencies"]
[null,"EUR"]
[null,"MXN"]
[null,"USD"]
[null,"CNY"]
[null,"GBP"]
[null,"ARS"]
[null,"CHF"]
[null,"CLP"]
[null,"ZAR"]
[null,"PLN"]
[null,"COP"]

{"sheet":"CorpRoomTable","index":18,"n_rows":352,"n_cols":9,"rows_kept":352,"cut":false,"hidden":true,"merged":[]}
["TMS","Type","WebCRS","Room description","Bedding","View?","Terrace?","Normal occupancy","Column1"]
["STDDBLK",{"$f":"LEFT(Table1[[#This Row],[TMS]],6)","v":"STDDBL"},null,"Standard Double King","King size","no","no",2,{"$f":"LEN(Table1[[#This Row],[TMS]])","v":7}]
["STDDBLQ",{"$f":"LEFT(Table1[[#This Row],[TMS]],6)","v":"STDDBL"},null,"Standard Double Queen","Queen","no","no",2,{"$f":"LEN(Table1[[#This Row],[TMS]])","v":7}]
["STDDBLT",{"$f":"LEFT(Table1[[#This Row],[TMS]],6)","v":"STDDBL"},null,"Standard Double Twin","Twin","no","no",2,{"$f":"LEN(Table1[[#This Row],[TMS]])","v":7}]
["STEDBWD",{"$f":"LEFT(Table1[[#This Row],[TMS]],6)","v":"STEDBW"},null,"Suite Double View Terrace Double","Double","yes","yes",2,{"$f":"LEN(Table1[[#This Row],[TMS]])","v":7}]
["STEDBWK",{"$f":"LEFT(Table1[[#This Row],[TMS]],6)","v":"STEDBW"},null,"Suite Double View Terrace King","King size","yes","yes",2,{"$f":"LEN(Table1[[#This Row],[TMS]])","v":7}]
["STNDBLD",{"$f":"LEFT(Table1[[#This Row],[TMS]],6)","v":"STNDBL"},null,"Standard New Style Double Double","Double","no","no",2,{"$f":"LEN(Table1[[#This Row],[TMS]])","v":7}]
["STNDBLT",{"$f":"LEFT(Table1[[#This Row],[TMS]],6)","v":"STNDBL"},null,"Standard New Style Double Twin","Twin","no","no",2,{"$f":"LEN(Table1[[#This Row],[TMS]])","v":7}]
["SUPDBLK",{"$f":"LEFT(Table1[[#This Row],[TMS]],6)","v":"SUPDBL"},null,"Superior Double King","King size","no","no",2,{"$f":"LEN(Table1[[#This Row],[TMS]])","v":7}]
["SUPDBVK",{"$f":"LEFT(Table1[[#This Row],[TMS]],6)","v":"SUPDBV"},null,"Superior Double View King","King size","yes","no",2,{"$f":"LEN(Table1[[#This Row],[TMS]])","v":7}]
["SUPDBWK",{"$f":"LEFT(Table1[[#This Row],[TMS]],6)","v":"SUPDBW"},null,"Superior Double View Terrace King","King size","yes","yes",2,{"$f":"LEN(Table1[[#This Row],[TMS]])","v":7}]
["APADBJQ",{"$f":"LEFT(Table1[[#This Row],[TMS]],6)","v":"APADBJ"},null,"Apartment Jr Double Queen","Queen","no","no",2,{"$f":"LEN(Table1[[#This Row],[TMS]])","v":7}]
["APADBL2S",{"$f":"LEFT(Table1[[#This Row],[TMS]],6)","v":"APADBL"},null,"Apartment Double 2 Single","Double","no","no",2,{"$f":"LEN(Table1[[#This Row],[TMS]])","v":8}]
["JSTDBLQ",{"$f":"LEFT(Table1[[#This Row],[TMS]],6)","v":"JSTDBL"},null,"Jr Suite Double Queen","Queen","no","no",2,{"$f":"LEN(Table1[[#This Row],[TMS]])","v":7}]
["JSTDBLT",{"$f":"LEFT(Table1[[#This Row],[TMS]],6)","v":"JSTDBL"},null,"Jr Suite Double Twin","Twin","no","no",2,{"$f":"LEN(Table1[[#This Row],[TMS]])","v":7}]
["STEDBLK",{"$f":"LEFT(Table1[[#This Row],[TMS]],6)","v":"STEDBL"},null,"Suite Double King","King size","no","no",2,{"$f":"LEN(Table1[[#This Row],[TMS]])","v":7}]
["STEDBLT",{"$f":"LEFT(Table1[[#This Row],[TMS]],6)","v":"STEDBL"},null,"Suite Double Twin","Twin","no","no",2,{"$f":"LEN(Table1[[#This Row],[TMS]])","v":7}]
["SUPDBLT",{"$f":"LEFT(Table1[[#This Row],[TMS]],6)","v":"SUPDBL"},null,"Superior Double Twin","Twin","no","no",2,{"$f":"LEN(Table1[[#This Row],[TMS]])","v":7}]
["SUPDBVT",{"$f":"LEFT(Table1[[#This Row],[TMS]],6)","v":"SUPDBV"},null,"Superior Double View Twin","Twin","yes","no",2,{"$f":"LEN(Table1[[#This Row],[TMS]])","v":7}]
["DLUDBLK",{"$f":"LEFT(Table1[[#This Row],[TMS]],6)","v":"DLUDBL"},null,"Deluxe Double King","King size","no","no",2,{"$f":"LEN(Table1[[#This Row],[TMS]])","v":7}]
["DLUDBLQ",{"$f":"LEFT(Table1[[#This Row],[TMS]],6)","v":"DLUDBL"},null,"Deluxe Double Queen","Queen","no","no",2,{"$f":"LEN(Table1[[#This Row],[TMS]])","v":7}]
["DLUDBLT",{"$f":"LEFT(Table1[[#This Row],[TMS]],6)","v":"DLUDBL"},null,"Deluxe Double Twin","Twin","no","no",2,{"$f":"LEN(Table1[[#This Row],[TMS]])","v":7}]
["JSTDBLK",{"$f":"LEFT(Table1[[#This Row],[TMS]],6)","v":"JSTDBL"},null,"Jr Suite Double King","King size","no","no",2,{"$f":"LEN(Table1[[#This Row],[TMS]])","v":7}]
["PSTDBLD",{"$f":"LEFT(Table1[[#This Row],[TMS]],6)","v":"PSTDBL"},null,"Presidential Suite Double Double","Double","no","no",2,{"$f":"LEN(Table1[[#This Row],[TMS]])","v":7}]
["PSTDBVK",{"$f":"LEFT(Table1[[#This Row],[TMS]],6)","v":"PSTDBV"},null,"Presidential Suite Double View King","King size","yes","no",2,{"$f":"LEN(Table1[[#This Row],[TMS]])","v":7}]
["STEDBL2D",{"$f":"LEFT(Table1[[#This Row],[TMS]],6)","v":"STEDBL"},null,"Suite Double 2 Double","Double","no","no",2,{"$f":"LEN(Table1[[#This Row],[TMS]])","v":8}]
["STEDBLD",{"$f":"LEFT(Table1[[#This Row],[TMS]],6)","v":"STEDBL"},null,"Suite Double Double","Double","no","no",4,{"$f":"LEN(Table1[[#This Row],[TMS]])","v":7}]
["SUPDBL2S",{"$f":"LEFT(Table1[[#This Row],[TMS]],6)","v":"SUPDBL"},null,"Superior Double 2 Single","Single","no","no",2,{"$f":"LEN(Table1[[#This Row],[TMS]])","v":8}]
["SUPDBLQ",{"$f":"LEFT(Table1[[#This Row],[TMS]],6)","v":"SUPDBL"},null,"Superior Double Queen","Queen","no","no",2,{"$f":"LEN(Table1[[#This Row],[TMS]])","v":7}]
["JSNDBLK",{"$f":"LEFT(Table1[[#This Row],[TMS]],6)","v":"JSNDBL"},null,"Jr Suite New Style Double King","King size","no","no",2,{"$f":"LEN(Table1[[#This Row],[TMS]])","v":7}]
["PREDBLK",{"$f":"LEFT(Table1[[#This Row],[TMS]],6)","v":"PREDBL"},null,"Premium Double King","King size","no","no",2,{"$f":"LEN(Table1[[#This Row],[TMS]])","v":7}]
["PREDBLQ",{"$f":"LEFT(Table1[[#This Row],[TMS]],6)","v":"PREDBL"},null,"Premium Double Queen","Queen","no","no",2,{"$f":"LEN(Table1[[#This Row],[TMS]])","v":7}]
["PREDBLT",{"$f":"LEFT(Table1[[#This Row],[TMS]],6)","v":"PREDBL"},null,"Premium Double Twin","Twin","no","no",2,{"$f":"LEN(Table1[[#This Row],[TMS]])","v":7}]
["PRXDBLK",{"$f":"LEFT(Table1[[#This Row],[TMS]],6)","v":"PRXDBL"},null,"Premium XL Double King","King size","no","no",2,{"$f":"LEN(Table1[[#This Row],[TMS]])","v":7}]
["PSTDBLK",{"$f":"LEFT(Table1[[#This Row],[TMS]],6)","v":"PSTDBL"},null,"Presidential Suite Double King","King size","no","no",2,{"$f":"LEN(Table1[[#This Row],[TMS]])","v":7}]
["FAMSTEK",{"$f":"LEFT(Table1[[#This Row],[TMS]],6)","v":"FAMSTE"},null,"Family Room Suite King","King size","no","no",3,{"$f":"LEN(Table1[[#This Row],[TMS]])","v":7}]
["JSTDBVD",{"$f":"LEFT(Table1[[#This Row],[TMS]],6)","v":"JSTDBV"},null,"Jr. Suite Double View Double","Double","yes","no",2,{"$f":"LEN(Table1[[#This Row],[TMS]])","v":7}]
["JSTDBVK",{"$f":"LEFT(Table1[[#This Row],[TMS]],6)","v":"JSTDBV"},null,"Jr Suite Double View King","King size","yes","no",2,{"$f":"LEN(Table1[[#This Row],[TMS]])","v":7}]
["SUPDBL2Q",{"$f":"LEFT(Table1[[#This Row],[TMS]],6)","v":"SUPDBL"},null,"","Queen","no","no",2,{"$f":"LEN(Table1[[#This Row],[TMS]])","v":8}]
["JSTDBRK",{"$f":"LEFT(Table1[[#This Row],[TMS]],6)","v":"JSTDBR"},null,"Jr Suite Double Terrace King","King size","no","yes",2,{"$f":"LEN(Table1[[#This Row],[TMS]])","v":7}]
["JSTDBLD",{"$f":"LEFT(Table1[[#This Row],[TMS]],6)","v":"JSTDBL"},null,"Jr Suite Double Double","Queen","no","no",2,{"$f":"LEN(Table1[[#This Row],[TMS]])","v":7}]
["PREDBL2Q",{"$f":"LEFT(Table1[[#This Row],[TMS]],6)","v":"PREDBL"},null,"Premium Double 2 Queen","Queen","no","no",2,{"$f":"LEN(Table1[[#This Row],[TMS]])","v":8}]
["PREDBRD",{"$f":"LEFT(Table1[[#This Row],[TMS]],6)","v":"PREDBR"},null,"Premium Double Terrace Double","Double","no","yes",2,{"$f":"LEN(Table1[[#This Row],[TMS]])","v":7}]
["PREDBRT",{"$f":"LEFT(Table1[[#This Row],[TMS]],6)","v":"PREDBR"},null,"Premium Double Terrace Twin","Twin","no","yes",2,{"$f":"LEN(Table1[[#This Row],[TMS]])","v":7}]
["STDTPL3Q",{"$f":"LEFT(Table1[[#This Row],[TMS]],6)","v":"STDTPL"},null,"Standard Triple 3 Queen","Queen","no","no",3,{"$f":"LEN(Table1[[#This Row],[TMS]])","v":8}]
["STDTPL3T",{"$f":"LEFT(Table1[[#This Row],[TMS]],6)","v":"STDTPL"},null,"Standard Triple","Triple","no","no",3,{"$f":"LEN(Table1[[#This Row],[TMS]])","v":8}]
["STDDBLD",{"$f":"LEFT(Table1[[#This Row],[TMS]],6)","v":"STDDBL"},null,"Standard Double Double","Double","no","no",2,{"$f":"LEN(Table1[[#This Row],[TMS]])","v":7}]
["STEDBVK",{"$f":"LEFT(Table1[[#This Row],[TMS]],6)","v":"STEDBV"},null,"Suite Double View King","King size","yes","no",2,{"$f":"LEN(Table1[[#This Row],[TMS]])","v":7}]
["SUXDBL2D",{"$f":"LEFT(Table1[[#This Row],[TMS]],6)","v":"SUXDBL"},null,"Superior XL Double 2 Double","Double","no","no",4,{"$f":"LEN(Table1[[#This Row],[TMS]])","v":8}]
["SUXDBVK",{"$f":"LEFT(Table1[[#This Row],[TMS]],6)","v":"SUXDBV"},null,"Superior XL Double View King","King size","yes","no",2,{"$f":"LEN(Table1[[#This Row],[TMS]])","v":7}]
["STDTPL3",{"$f":"LEFT(Table1[[#This Row],[TMS]],6)","v":"STDTPL"},null,"Standard Triple","Triple","no","no",3,{"$f":"LEN(Table1[[#This Row],[TMS]])","v":7}]
["FAMDBVD",{"$f":"LEFT(Table1[[#This Row],[TMS]],6)","v":"FAMDBV"},null,"Family Room Double View Double","Double","yes","no",2,{"$f":"LEN(Table1[[#This Row],[TMS]])","v":7}]
["STDDBVD",{"$f":"LEFT(Table1[[#This Row],[TMS]],6)","v":"STDDBV"},null,"Standard Double View Double","Double","yes","no",2,{"$f":"LEN(Table1[[#This Row],[TMS]])","v":7}]
["STDDBVT",{"$f":"LEFT(Table1[[#This Row],[TMS]],6)","v":"STDDBV"},null,"Standard Double View Twin","Twin","yes","no",2,{"$f":"LEN(Table1[[#This Row],[TMS]])","v":7}]
["SUPDBLD",{"$f":"LEFT(Table1[[#This Row],[TMS]],6)","v":"SUPDBL"},null,"Superior Double Double","Double","no","no",2,{"$f":"LEN(Table1[[#This Row],[TMS]])","v":7}]
["SUPDBVD",{"$f":"LEFT(Table1[[#This Row],[TMS]],6)","v":"SUPDBV"},null,"Superior Double View Double","Double","yes","no",2,{"$f":"LEN(Table1[[#This Row],[TMS]])","v":7}]
["APADBL2Q",{"$f":"LEFT(Table1[[#This Row],[TMS]],6)","v":"APADBL"},null,"Apartment Double 2 Queen","Queen","no","no",2,{"$f":"LEN(Table1[[#This Row],[TMS]])","v":8}]
["APADBLD",{"$f":"LEFT(Table1[[#This Row],[TMS]],6)","v":"APADBL"},null,"Apartment Double Double","Double","no","no",2,{"$f":"LEN(Table1[[#This Row],[TMS]])","v":7}]
["FAMDBLK",{"$f":"LEFT(Table1[[#This Row],[TMS]],6)","v":"FAMDBL"},null,"Family Room Double King","King size","no","no",2,{"$f":"LEN(Table1[[#This Row],[TMS]])","v":7}]
["FAMDBLT",{"$f":"LEFT(Table1[[#This Row],[TMS]],6)","v":"FAMDBL"},null,"Family Room Double Twin","Twin","no","no",2,{"$f":"LEN(Table1[[#This Row],[TMS]])","v":7}]
["PRXDBLT",{"$f":"LEFT(Table1[[#This Row],[TMS]],6)","v":"PRXDBL"},null,"Premium XL Double Twin","Twin","no","no",2,{"$f":"LEN(Table1[[#This Row],[TMS]])","v":7}]
["SUXDBLK",{"$f":"LEFT(Table1[[#This Row],[TMS]],6)","v":"SUXDBL"},null,"Superior XL Double King","King size","no","no",2,{"$f":"LEN(Table1[[#This Row],[TMS]])","v":7}]
["SUXDBLT",{"$f":"LEFT(Table1[[#This Row],[TMS]],6)","v":"SUXDBL"},null,"Superior XL Double Twin","Twin","no","no",2,{"$f":"LEN(Table1[[#This Row],[TMS]])","v":7}]
["FAMDBLD",{"$f":"LEFT(Table1[[#This Row],[TMS]],6)","v":"FAMDBL"},null,"Family Room Double Double","Double","no","no",2,{"$f":"LEN(Table1[[#This Row],[TMS]])","v":7}]
["BASDBLK",{"$f":"LEFT(Table1[[#This Row],[TMS]],6)","v":"BASDBL"},null,"Classic Standard King","King size","no","no",2,{"$f":"LEN(Table1[[#This Row],[TMS]])","v":7}]
["BASDBLT",{"$f":"LEFT(Table1[[#This Row],[TMS]],6)","v":"BASDBL"},null,"Classic Standard Twin","Twin","no","no",2,{"$f":"LEN(Table1[[#This Row],[TMS]])","v":7}]
["PREDBVD",{"$f":"LEFT(Table1[[#This Row],[TMS]],6)","v":"PREDBV"},null,"Premium Double View Double","Double","yes","no",2,{"$f":"LEN(Table1[[#This Row],[TMS]])","v":7}]
["PREDBVT",{"$f":"LEFT(Table1[[#This Row],[TMS]],6)","v":"PREDBV"},null,"Premium Double View Twin","Twin","yes","no",2,{"$f":"LEN(Table1[[#This Row],[TMS]])","v":7}]
["PREDBRK",{"$f":"LEFT(Table1[[#This Row],[TMS]],6)","v":"PREDBR"},null,"Premium Double Terrace King","King size","no","yes",2,{"$f":"LEN(Table1[[#This Row],[TMS]])","v":7}]
["STNDBLK",{"$f":"LEFT(Table1[[#This Row],[TMS]],6)","v":"STNDBL"},null,"Standard New Style Double King","King size","no","no",2,{"$f":"LEN(Table1[[#This Row],[TMS]])","v":7}]
["SUNDBRK",{"$f":"LEFT(Table1[[#This Row],[TMS]],6)","v":"SUNDBR"},null,"Superior New Style Double Terrace King","King size","no","yes",2,{"$f":"LEN(Table1[[#This Row],[TMS]])","v":7}]
["SUNDBRT",{"$f":"LEFT(Table1[[#This Row],[TMS]],6)","v":"SUNDBR"},null,"Superior New Style Double Terrace Twin","Twin","no","yes",2,{"$f":"LEN(Table1[[#This Row],[TMS]])","v":7}]
["STEDPXK",{"$f":"LEFT(Table1[[#This Row],[TMS]],6)","v":"STEDPX"},null,"Suite Duplex King","King size","no","no",2,{"$f":"LEN(Table1[[#This Row],[TMS]])","v":7}]
["STXDBLK",{"$f":"LEFT(Table1[[#This Row],[TMS]],6)","v":"STXDBL"},null,"Standard XL Double King","King size","no","no",2,{"$f":"LEN(Table1[[#This Row],[TMS]])","v":7}]
["STNDBLQ",{"$f":"LEFT(Table1[[#This Row],[TMS]],6)","v":"STNDBL"},null,"Standard New Style Double Queen","Queen","no","no",2,{"$f":"LEN(Table1[[#This Row],[TMS]])","v":7}]
["SUNDBLQ",{"$f":"LEFT(Table1[[#This Row],[TMS]],6)","v":"SUNDBL"},null,"Superior New Style Double Queen","Queen","no","no",2,{"$f":"LEN(Table1[[#This Row],[TMS]])","v":7}]
["SUNDBLT",{"$f":"LEFT(Table1[[#This Row],[TMS]],6)","v":"SUNDBL"},null,"Superior New Style Double Twin","Twin","no","no",2,{"$f":"LEN(Table1[[#This Row],[TMS]])","v":7}]
["SUNDBLD",{"$f":"LEFT(Table1[[#This Row],[TMS]],6)","v":"SUNDBL"},null,"Superior New Style Double Double","Double","no","no",2,{"$f":"LEN(Table1[[#This Row],[TMS]])","v":7}]
["PREDBVK",{"$f":"LEFT(Table1[[#This Row],[TMS]],6)","v":"PREDBV"},null,"Premium Double View King","King size","yes","no",2,{"$f":"LEN(Table1[[#This Row],[TMS]])","v":7}]
["PREDBWQ",{"$f":"LEFT(Table1[[#This Row],[TMS]],6)","v":"PREDBW"},null,"Premium Double View Terrace Queen","Queen","yes","yes",2,{"$f":"LEN(Table1[[#This Row],[TMS]])","v":7}]
["STXDBKK",{"$f":"LEFT(Table1[[#This Row],[TMS]],6)","v":"STXDBK"},null,"Standard XL Double King","King size","no","no",2,{"$f":"LEN(Table1[[#This Row],[TMS]])","v":7}]
["STXDBLT",{"$f":"LEFT(Table1[[#This Row],[TMS]],6)","v":"STXDBL"},null,"Standard XL Double Twin","Twin","no","no",2,{"$f":"LEN(Table1[[#This Row],[TMS]])","v":7}]
["SENDBLK",{"$f":"LEFT(Table1[[#This Row],[TMS]],6)","v":"SENDBL"},null,"Suite New Style King","King size","no","no",2,{"$f":"LEN(Table1[[#This Row],[TMS]])","v":7}]
["SENDBLT",{"$f":"LEFT(Table1[[#This Row],[TMS]],6)","v":"SENDBL"},null,"Suite New Style Twin","Twin","no","no",2,{"$f":"LEN(Table1[[#This Row],[TMS]])","v":7}]
["STDDBVK",{"$f":"LEFT(Table1[[#This Row],[TMS]],6)","v":"STDDBV"},null,"Standard Double View King","King size","yes","no",2,{"$f":"LEN(Table1[[#This Row],[TMS]])","v":7}]
["JSTDBWK",{"$f":"LEFT(Table1[[#This Row],[TMS]],6)","v":"JSTDBW"},null,"Jr Suite Double View Terrace King","King size","yes","yes",2,{"$f":"LEN(Table1[[#This Row],[TMS]])","v":7}]
["SUPDBL2K",{"$f":"LEFT(Table1[[#This Row],[TMS]],6)","v":"SUPDBL"},null,"Superior Double 2 King","King size","no","no",2,{"$f":"LEN(Table1[[#This Row],[TMS]])","v":8}]
["JSTDBRD",{"$f":"LEFT(Table1[[#This Row],[TMS]],6)","v":"JSTDBR"},null,"Jr. Suite Double Terrace Double","Double","no","yes",2,{"$f":"LEN(Table1[[#This Row],[TMS]])","v":7}]
["SUPDBRD",{"$f":"LEFT(Table1[[#This Row],[TMS]],6)","v":"SUPDBR"},null,"Superior Double Terrace Double","Double","no","yes",2,{"$f":"LEN(Table1[[#This Row],[TMS]])","v":7}]
["FAMSTED",{"$f":"LEFT(Table1[[#This Row],[TMS]],6)","v":"FAMSTE"},null,"Family Room Suite Double","Double","no","no",2,{"$f":"LEN(Table1[[#This Row],[TMS]])","v":7}]
["PREDBWK",{"$f":"LEFT(Table1[[#This Row],[TMS]],6)","v":"PREDBW"},null,"Premium Double View Terrace  King","King size","yes","yes",2,{"$f":"LEN(Table1[[#This Row],[TMS]])","v":7}]
["FAMDBVT",{"$f":"LEFT(Table1[[#This Row],[TMS]],6)","v":"FAMDBV"},null,"Family Room Double View Twin","Twin","yes","no",4,{"$f":"LEN(Table1[[#This Row],[TMS]])","v":7}]
["STEDBVD",{"$f":"LEFT(Table1[[#This Row],[TMS]],6)","v":"STEDBV"},null,"Suite Double View Double","Double","yes","no",2,{"$f":"LEN(Table1[[#This Row],[TMS]])","v":7}]
["JSNDBVK",{"$f":"LEFT(Table1[[#This Row],[TMS]],6)","v":"JSNDBV"},null,"Jr. Suite New Style Double View King","King size","yes","no",2,{"$f":"LEN(Table1[[#This Row],[TMS]])","v":7}]
["PSTDBWK",{"$f":"LEFT(Table1[[#This Row],[TMS]],6)","v":"PSTDBW"},null,"Presidential Suite Double View Terrace K","King size","yes","yes",2,{"$f":"LEN(Table1[[#This Row],[TMS]])","v":7}]
["SUNDBVK",{"$f":"LEFT(Table1[[#This Row],[TMS]],6)","v":"SUNDBV"},null,"Superior New Style Double View King","King size","yes","no",2,{"$f":"LEN(Table1[[#This Row],[TMS]])","v":7}]
["JSTDBRQ",{"$f":"LEFT(Table1[[#This Row],[TMS]],6)","v":"JSTDBR"},null,"Jr. Suite Double Terrace Queen","Queen","no","yes",2,{"$f":"LEN(Table1[[#This Row],[TMS]])","v":7}]
["STDDBVQ",{"$f":"LEFT(Table1[[#This Row],[TMS]],6)","v":"STDDBV"},null,"Standard Double View Queen","Queen","yes","no",2,{"$f":"LEN(Table1[[#This Row],[TMS]])","v":7}]
["SUPDBL2D",{"$f":"LEFT(Table1[[#This Row],[TMS]],6)","v":"SUPDBL"},null,"Superior Double 2 Double","Double","no","no",2,{"$f":"LEN(Table1[[#This Row],[TMS]])","v":8}]
["SUNDBV2Q",{"$f":"LEFT(Table1[[#This Row],[TMS]],6)","v":"SUNDBV"},null,"Superior New Style Double View 2 Queen","Queen","yes","no",3,{"$f":"LEN(Table1[[#This Row],[TMS]])","v":8}]
["JSNDBL2Q",{"$f":"LEFT(Table1[[#This Row],[TMS]],6)","v":"JSNDBL"},null,"Jr. Suite New Style Double 2 Queen","Queen","no","no",2,{"$f":"LEN(Table1[[#This Row],[TMS]])","v":8}]
["SUPDBVQ",{"$f":"LEFT(Table1[[#This Row],[TMS]],6)","v":"SUPDBV"},null,"Superior Double View Queen","Queen","yes","no",2,{"$f":"LEN(Table1[[#This Row],[TMS]])","v":7}]
["SUPDBWQ",{"$f":"LEFT(Table1[[#This Row],[TMS]],6)","v":"SUPDBW"},null,"Superior Double View Terrace Queen","Queen","yes","yes",2,{"$f":"LEN(Table1[[#This Row],[TMS]])","v":7}]
["SUPDBRK",{"$f":"LEFT(Table1[[#This Row],[TMS]],6)","v":"SUPDBR"},null,"Superior Double Terrace King","King size","no","yes",2,{"$f":"LEN(Table1[[#This Row],[TMS]])","v":7}]
["SUPDBRT",{"$f":"LEFT(Table1[[#This Row],[TMS]],6)","v":"SUPDBR"},null,"Superior Double Terrace Twin","Twin","no","yes",2,{"$f":"LEN(Table1[[#This Row],[TMS]])","v":7}]
["STEDBVT",{"$f":"LEFT(Table1[[#This Row],[TMS]],6)","v":"STEDBV"},null,"Suite Double View Twin","Twin","yes","no",2,{"$f":"LEN(Table1[[#This Row],[TMS]])","v":7}]
["SUNDBLK",{"$f":"LEFT(Table1[[#This Row],[TMS]],6)","v":"SUNDBL"},null,"Superior New Style Double King","King size","no","no",2,{"$f":"LEN(Table1[[#This Row],[TMS]])","v":7}]
["JSNDBLT",{"$f":"LEFT(Table1[[#This Row],[TMS]],6)","v":"JSNDBL"},null,"Jr Suite New Style Double Twin","Twin","no","no",2,{"$f":"LEN(Table1[[#This Row],[TMS]])","v":7}]
["APADBLQ",{"$f":"LEFT(Table1[[#This Row],[TMS]],6)","v":"APADBL"},null,"Apartment Double Queen","Double","no","no",2,{"$f":"LEN(Table1[[#This Row],[TMS]])","v":7}]
["STXDBLD",{"$f":"LEFT(Table1[[#This Row],[TMS]],6)","v":"STXDBL"},null,"Standard XL Double Double","Double","no","no",2,{"$f":"LEN(Table1[[#This Row],[TMS]])","v":7}]
["FAMDBRK",{"$f":"LEFT(Table1[[#This Row],[TMS]],6)","v":"FAMDBR"},null,"Family Room with Terrace King","King size","no","yes",2,{"$f":"LEN(Table1[[#This Row],[TMS]])","v":7}]
["FAMDBRT",{"$f":"LEFT(Table1[[#This Row],[TMS]],6)","v":"FAMDBR"},null,"Family Room with Terrace Twin","Twin","no","yes",2,{"$f":"LEN(Table1[[#This Row],[TMS]])","v":7}]
["FANDBLK",{"$f":"LEFT(Table1[[#This Row],[TMS]],6)","v":"FANDBL"},null,"Family Room New Style Double King","King size","no","no",2,{"$f":"LEN(Table1[[#This Row],[TMS]])","v":7}]
["FANDBLT",{"$f":"LEFT(Table1[[#This Row],[TMS]],6)","v":"FANDBL"},null,"Family Room New Style Double Twin","Twin","no","no",2,{"$f":"LEN(Table1[[#This Row],[TMS]])","v":7}]
["JSTDBRT",{"$f":"LEFT(Table1[[#This Row],[TMS]],6)","v":"JSTDBR"},null,"Jr. Suite Double with terrace Twin","Twin","no","yes",2,{"$f":"LEN(Table1[[#This Row],[TMS]])","v":7}]
["LABDBLK",{"$f":"LEFT(Table1[[#This Row],[TMS]],6)","v":"LABDBL"},null,"Mood Room King","King size","no","no",2,{"$f":"LEN(Table1[[#This Row],[TMS]])","v":7}]
["LABDBLT",{"$f":"LEFT(Table1[[#This Row],[TMS]],6)","v":"LABDBL"},null,"Mood Room Twin","Twin","no","no",2,{"$f":"LEN(Table1[[#This Row],[TMS]])","v":7}]
["PRNDBLK",{"$f":"LEFT(Table1[[#This Row],[TMS]],6)","v":"PRNDBL"},null,"Premium New Style Double King","King size","no","no",2,{"$f":"LEN(Table1[[#This Row],[TMS]])","v":7}]
["PRNDBLT",{"$f":"LEFT(Table1[[#This Row],[TMS]],6)","v":"PRNDBL"},null,"Premium New Style Double Twin","Twin","no","no",2,{"$f":"LEN(Table1[[#This Row],[TMS]])","v":7}]
["FAMDBVK",{"$f":"LEFT(Table1[[#This Row],[TMS]],6)","v":"FAMDBV"},null,"Family Room Double View King","King size","yes","no",2,{"$f":"LEN(Table1[[#This Row],[TMS]])","v":7}]
["JSTDBVQ",{"$f":"LEFT(Table1[[#This Row],[TMS]],6)","v":"JSTDBV"},null,"Junior Suite Double View Queen","Queen","yes","no",2,{"$f":"LEN(Table1[[#This Row],[TMS]])","v":7}]
["JSTDBVT",{"$f":"LEFT(Table1[[#This Row],[TMS]],6)","v":"JSTDBV"},null,"Junior Suite Double River View Twin","Twin","yes","no",2,{"$f":"LEN(Table1[[#This Row],[TMS]])","v":7}]
["PSTDBVD",{"$f":"LEFT(Table1[[#This Row],[TMS]],6)","v":"PSTDBV"},null,"Presidential Suite Double View Double","Double","yes","no",2,{"$f":"LEN(Table1[[#This Row],[TMS]])","v":7}]
["STDDBL2D",{"$f":"LEFT(Table1[[#This Row],[TMS]],6)","v":"STDDBL"},null,"Standard Double 2 Double","Double","no","no",2,{"$f":"LEN(Table1[[#This Row],[TMS]])","v":8}]
["SUPDBWD",{"$f":"LEFT(Table1[[#This Row],[TMS]],6)","v":"SUPDBW"},null,"Superior Double View Terrace Double","Double","yes","yes",2,{"$f":"LEN(Table1[[#This Row],[TMS]])","v":7}]
["SUPDBWT",{"$f":"LEFT(Table1[[#This Row],[TMS]],6)","v":"SUPDBW"},null,"Superior Double View Terrace Twin","Twin","yes","yes",2,{"$f":"LEN(Table1[[#This Row],[TMS]])","v":7}]
["STDDBRD",{"$f":"LEFT(Table1[[#This Row],[TMS]],6)","v":"STDDBR"},null,"Standard Double Terrace Double","Double","no","yes",2,{"$f":"LEN(Table1[[#This Row],[TMS]])","v":7}]
["STDDBRT",{"$f":"LEFT(Table1[[#This Row],[TMS]],6)","v":"STDDBR"},null,"Standard Double Terrace Twin","Twin","no","yes",2,{"$f":"LEN(Table1[[#This Row],[TMS]])","v":7}]
["STDDBL2Q",{"$f":"LEFT(Table1[[#This Row],[TMS]],6)","v":"STDDBL"},null,"Standard Double 2 Queen","Queen","no","no",2,{"$f":"LEN(Table1[[#This Row],[TMS]])","v":8}]
["STEDBRD",{"$f":"LEFT(Table1[[#This Row],[TMS]],6)","v":"STEDBR"},null,"Suite Double Terrace Double","Double","no","yes",2,{"$f":"LEN(Table1[[#This Row],[TMS]])","v":7}]
["DLUDBVK",{"$f":"LEFT(Table1[[#This Row],[TMS]],6)","v":"DLUDBV"},null,"Deluxe Double View King","King size","yes","no",2,{"$f":"LEN(Table1[[#This Row],[TMS]])","v":7}]
["DLUDBVT",{"$f":"LEFT(Table1[[#This Row],[TMS]],6)","v":"DLUDBV"},null,"Deluxe Double View Twin","Twin","yes","no",2,{"$f":"LEN(Table1[[#This Row],[TMS]])","v":7}]
["DLUDBWK",{"$f":"LEFT(Table1[[#This Row],[TMS]],6)","v":"DLUDBW"},null,"Deluxe Double View Terrace King","King size","yes","yes",2,{"$f":"LEN(Table1[[#This Row],[TMS]])","v":7}]
["DLUDBWQ",{"$f":"LEFT(Table1[[#This Row],[TMS]],6)","v":"DLUDBW"},null,"Deluxe Double View Terrace Queen","Queen","yes","yes",2,{"$f":"LEN(Table1[[#This Row],[TMS]])","v":7}]
["FAMDBLQ",{"$f":"LEFT(Table1[[#This Row],[TMS]],6)","v":"FAMDBL"},null,"Family Room Double Queen","Queen","no","no",2,{"$f":"LEN(Table1[[#This Row],[TMS]])","v":7}]
["APADBLT",{"$f":"LEFT(Table1[[#This Row],[TMS]],6)","v":"APADBL"},null,"Apartment Double Twin","Twin","no","no",2,{"$f":"LEN(Table1[[#This Row],[TMS]])","v":7}]
["SUXDBRK",{"$f":"LEFT(Table1[[#This Row],[TMS]],6)","v":"SUXDBR"},null,"Superior XL Double Terrace King","King size","no","yes",2,{"$f":"LEN(Table1[[#This Row],[TMS]])","v":7}]
["SUXDBRT",{"$f":"LEFT(Table1[[#This Row],[TMS]],6)","v":"SUXDBR"},null,"Superior XL Double Terrace Twin","Twin","no","yes",2,{"$f":"LEN(Table1[[#This Row],[TMS]])","v":7}]
["STEDBRT",{"$f":"LEFT(Table1[[#This Row],[TMS]],6)","v":"STEDBR"},null,"Suite Double Terrace Twin","Twin","no","yes",2,{"$f":"LEN(Table1[[#This Row],[TMS]])","v":7}]
["APADBLK",{"$f":"LEFT(Table1[[#This Row],[TMS]],6)","v":"APADBL"},null,"Apartment Double King","Double","no","no",2,{"$f":"LEN(Table1[[#This Row],[TMS]])","v":7}]
["STNDBVQ",{"$f":"LEFT(Table1[[#This Row],[TMS]],6)","v":"STNDBV"},null,"Standard New Style Double View Queen","Queen","yes","no",2,{"$f":"LEN(Table1[[#This Row],[TMS]])","v":7}]
["STNDBVT",{"$f":"LEFT(Table1[[#This Row],[TMS]],6)","v":"STNDBV"},null,"Standard New Style Double View Twin","Twin","yes","no",2,{"$f":"LEN(Table1[[#This Row],[TMS]])","v":7}]
["STNDBVD",{"$f":"LEFT(Table1[[#This Row],[TMS]],6)","v":"STNDBV"},null,"Standard New Style Double View Double","Double","yes","no",2,{"$f":"LEN(Table1[[#This Row],[TMS]])","v":7}]
["PRXDBLD",{"$f":"LEFT(Table1[[#This Row],[TMS]],6)","v":"PRXDBL"},null,"Premium XL Double Double","Double","no","no",2,{"$f":"LEN(Table1[[#This Row],[TMS]])","v":7}]
["STDDBRK",{"$f":"LEFT(Table1[[#This Row],[TMS]],6)","v":"STDDBR"},null,"Standard Double Terrace King","King size","no","yes",2,{"$f":"LEN(Table1[[#This Row],[TMS]])","v":7}]
["STDDBR2Q",{"$f":"LEFT(Table1[[#This Row],[TMS]],6)","v":"STDDBR"},null,"Standard Double Terrace 2 Queen","Queen","no","yes",2,{"$f":"LEN(Table1[[#This Row],[TMS]])","v":8}]
["STDDBW2Q",{"$f":"LEFT(Table1[[#This Row],[TMS]],6)","v":"STDDBW"},null,"Standard Double View Terrace 2 Queen","Queen","yes","yes",2,{"$f":"LEN(Table1[[#This Row],[TMS]])","v":8}]
["STDDBWT",{"$f":"LEFT(Table1[[#This Row],[TMS]],6)","v":"STDDBW"},null,"Standard Double View Terrace Twin","Twin","yes","yes",2,{"$f":"LEN(Table1[[#This Row],[TMS]])","v":7}]
["STEDBR2Q",{"$f":"LEFT(Table1[[#This Row],[TMS]],6)","v":"STEDBR"},null,"Suite Double Terrace 2 Queen","Queen","no","yes",2,{"$f":"LEN(Table1[[#This Row],[TMS]])","v":8}]
["STEDBV2Q",{"$f":"LEFT(Table1[[#This Row],[TMS]],6)","v":"STEDBV"},null,"Suite Double View 2 Queen","Queen","yes","no",2,{"$f":"LEN(Table1[[#This Row],[TMS]])","v":8}]
["SUPDBR2Q",{"$f":"LEFT(Table1[[#This Row],[TMS]],6)","v":"SUPDBR"},null,"Superior Double Terrace 2 Queen","Queen","no","yes",2,{"$f":"LEN(Table1[[#This Row],[TMS]])","v":8}]
["SUPDBW2Q",{"$f":"LEFT(Table1[[#This Row],[TMS]],6)","v":"SUPDBW"},null,"Superior Double View Terrace 2 Queen","Queen","yes","yes",2,{"$f":"LEN(Table1[[#This Row],[TMS]])","v":8}]
["JSNDBLD",{"$f":"LEFT(Table1[[#This Row],[TMS]],6)","v":"JSNDBL"},null,"Jr Suite New Style Double Double","Double","no","no",2,{"$f":"LEN(Table1[[#This Row],[TMS]])","v":7}]
["STEDBRK",{"$f":"LEFT(Table1[[#This Row],[TMS]],6)","v":"STEDBR"},null,"Suite Double Terrace King","King size","no","yes",2,{"$f":"LEN(Table1[[#This Row],[TMS]])","v":7}]
["STEDBLQ",{"$f":"LEFT(Table1[[#This Row],[TMS]],6)","v":"STEDBL"},null,"Suite Double Queen","Queen","no","no",2,{"$f":"LEN(Table1[[#This Row],[TMS]])","v":7}]
["APADBVD",{"$f":"LEFT(Table1[[#This Row],[TMS]],6)","v":"APADBV"},null,"Apartment Double View Double","Double","yes","no",2,{"$f":"LEN(Table1[[#This Row],[TMS]])","v":7}]
["SUXDBLQ",{"$f":"LEFT(Table1[[#This Row],[TMS]],6)","v":"SUXDBL"},null,"Superior XL Double Queen","Queen","no","no",2,{"$f":"LEN(Table1[[#This Row],[TMS]])","v":7}]
["SUXDBLD",{"$f":"LEFT(Table1[[#This Row],[TMS]],6)","v":"SUXDBL"},null,"Superior XL Double Double","Double","no","no",2,{"$f":"LEN(Table1[[#This Row],[TMS]])","v":7}]
["JSTDBV2Q",{"$f":"LEFT(Table1[[#This Row],[TMS]],6)","v":"JSTDBV"},null,"Jr Suite Double View 2 Queen","Queen","yes","no",2,{"$f":"LEN(Table1[[#This Row],[TMS]])","v":8}]
["SUPDBV2Q",{"$f":"LEFT(Table1[[#This Row],[TMS]],6)","v":"SUPDBV"},null,"Superior Double View 2 Queen","Queen","yes","no",2,{"$f":"LEN(Table1[[#This Row],[TMS]])","v":8}]
["PREDBLD",{"$f":"LEFT(Table1[[#This Row],[TMS]],6)","v":"PREDBL"},null,"Premium  Double Double","Double","no","no",2,{"$f":"LEN(Table1[[#This Row],[TMS]])","v":7}]
["PRNDBLD",{"$f":"LEFT(Table1[[#This Row],[TMS]],6)","v":"PRNDBL"},null,"Premium New Style Double Double","Double","no","no",2,{"$f":"LEN(Table1[[#This Row],[TMS]])","v":7}]
["STDDBLE",{"$f":"LEFT(Table1[[#This Row],[TMS]],6)","v":"STDDBL"},null,"Estandard Ejecutiva","","no","no",2,{"$f":"LEN(Table1[[#This Row],[TMS]])","v":7}]
["STDDLBT",{"$f":"LEFT(Table1[[#This Row],[TMS]],6)","v":"STDDLB"},null,"Standard Double Twin","Twin","no","no",2,{"$f":"LEN(Table1[[#This Row],[TMS]])","v":7}]
["SUNDBVT",{"$f":"LEFT(Table1[[#This Row],[TMS]],6)","v":"SUNDBV"},null,"Superior New Style Double View Twin","Twin","yes","no",2,{"$f":"LEN(Table1[[#This Row],[TMS]])","v":7}]
["APA2ROT",{"$f":"LEFT(Table1[[#This Row],[TMS]],6)","v":"APA2RO"},null,"Apartment 2 Rooms Twin","Twin","no","no",4,{"$f":"LEN(Table1[[#This Row],[TMS]])","v":7}]
["APA2RVT",{"$f":"LEFT(Table1[[#This Row],[TMS]],6)","v":"APA2RV"},null,"Apartment 2 Rooms  Ocean View Twin","Twin","yes","no",4,{"$f":"LEN(Table1[[#This Row],[TMS]])","v":7}]
["APADBVT",{"$f":"LEFT(Table1[[#This Row],[TMS]],6)","v":"APADBV"},null,"Apartment Double Pool View Twin","Twin","yes","no",2,{"$f":"LEN(Table1[[#This Row],[TMS]])","v":7}]
["APASUVD",{"$f":"LEFT(Table1[[#This Row],[TMS]],6)","v":"APASUV"},null,"Apartment Superior Ocean View Double","Double","yes","no",2,{"$f":"LEN(Table1[[#This Row],[TMS]])","v":7}]
["APASUVT",{"$f":"LEFT(Table1[[#This Row],[TMS]],6)","v":"APASUV"},null,"Apartment Superior Ocean View Twin","Twin","yes","no",2,{"$f":"LEN(Table1[[#This Row],[TMS]])","v":7}]
["APNDBLD",{"$f":"LEFT(Table1[[#This Row],[TMS]],6)","v":"APNDBL"},null,"Apartment New Style Double Double","Double","no","no",2,{"$f":"LEN(Table1[[#This Row],[TMS]])","v":7}]
["APNDBVD",{"$f":"LEFT(Table1[[#This Row],[TMS]],6)","v":"APNDBV"},null,"Apartment Double View Double","Double","yes","no",2,{"$f":"LEN(Table1[[#This Row],[TMS]])","v":7}]
["DLUDBL2Q",{"$f":"LEFT(Table1[[#This Row],[TMS]],6)","v":"DLUDBL"},null,"Deluxe Double 2 Queen","Queen","no","no",2,{"$f":"LEN(Table1[[#This Row],[TMS]])","v":8}]
["DLUDBV2Q",{"$f":"LEFT(Table1[[#This Row],[TMS]],6)","v":"DLUDBV"},null,"Deluxe Double View 2 Queen","Queen","yes","no",2,{"$f":"LEN(Table1[[#This Row],[TMS]])","v":8}]
["PSTDBWD",{"$f":"LEFT(Table1[[#This Row],[TMS]],6)","v":"PSTDBW"},null,"Pres Suite Double View Terrace Double","Double","yes","yes",2,{"$f":"LEN(Table1[[#This Row],[TMS]])","v":7}]
["STEDBL2Q",{"$f":"LEFT(Table1[[#This Row],[TMS]],6)","v":"STEDBL"},null,"Suite Double 2 Queen","Queen","no","no",2,{"$f":"LEN(Table1[[#This Row],[TMS]])","v":8}]
["STEDBWT",{"$f":"LEFT(Table1[[#This Row],[TMS]],6)","v":"STEDBW"},null,"Suite Double View Terrace Twin","Twin","yes","yes",2,{"$f":"LEN(Table1[[#This Row],[TMS]])","v":7}]
["STDDDBLT",{"$f":"LEFT(Table1[[#This Row],[TMS]],6)","v":"STDDDB"},null,"Standard Double Twin","Twin","no","no",2,{"$f":"LEN(Table1[[#This Row],[TMS]])","v":8}]
["PSTDBV2Q",{"$f":"LEFT(Table1[[#This Row],[TMS]],6)","v":"PSTDBV"},null,"Presidential Suite Double View 2 Queen","Queen","yes","no",2,{"$f":"LEN(Table1[[#This Row],[TMS]])","v":8}]
["STNDBRK",{"$f":"LEFT(Table1[[#This Row],[TMS]],6)","v":"STNDBR"},null,"Standard New Style Double Terrace King","King size","no","yes",2,{"$f":"LEN(Table1[[#This Row],[TMS]])","v":7}]
["STNDBRT",{"$f":"LEFT(Table1[[#This Row],[TMS]],6)","v":"STNDBR"},null,"Standard New Style Double Terrace Twin","Twin","no","yes",2,{"$f":"LEN(Table1[[#This Row],[TMS]])","v":7}]
["CONNECTED",{"$f":"LEFT(Table1[[#This Row],[TMS]],6)","v":"CONNEC"},null,"Connected","Double","no","no",4,{"$f":"LEN(Table1[[#This Row],[TMS]])","v":9}]
["DLUDBRK",{"$f":"LEFT(Table1[[#This Row],[TMS]],6)","v":"DLUDBR"},null,"Deluxe with terrace King","King size","no","yes",2,{"$f":"LEN(Table1[[#This Row],[TMS]])","v":7}]
["STE2RLK",{"$f":"LEFT(Table1[[#This Row],[TMS]],6)","v":"STE2RL"},null,"Suite 2 Bedroom King","King size","no","no",4,{"$f":"LEN(Table1[[#This Row],[TMS]])","v":7}]
["STEDBEK",{"$f":"LEFT(Table1[[#This Row],[TMS]],6)","v":"STEDBE"},null,"Suite Executive King","King size","no","no",2,{"$f":"LEN(Table1[[#This Row],[TMS]])","v":7}]
["VIL1ROK",{"$f":"LEFT(Table1[[#This Row],[TMS]],6)","v":"VIL1RO"},null,"Vila 1 Room King","King size","no","no",2,{"$f":"LEN(Table1[[#This Row],[TMS]])","v":7}]
["VIL2ROK",{"$f":"LEFT(Table1[[#This Row],[TMS]],6)","v":"VIL2RO"},null,"Vila 2 Rooms King","King size","no","no",4,{"$f":"LEN(Table1[[#This Row],[TMS]])","v":7}]
["VILPREK",{"$f":"LEFT(Table1[[#This Row],[TMS]],6)","v":"VILPRE"},null,"Villa Presidencial King","King size","no","no",4,{"$f":"LEN(Table1[[#This Row],[TMS]])","v":7}]
["BASSGKL",{"$f":"LEFT(Table1[[#This Row],[TMS]],6)","v":"BASSGK"},null,"Basic Single","Single","no","no",1,{"$f":"LEN(Table1[[#This Row],[TMS]])","v":7}]
["SUXDBRD",{"$f":"LEFT(Table1[[#This Row],[TMS]],6)","v":"SUXDBR"},null,"Superior XL Double Terrace Double","Double","no","yes",2,{"$f":"LEN(Table1[[#This Row],[TMS]])","v":7}]
["LABDBRK",{"$f":"LEFT(Table1[[#This Row],[TMS]],6)","v":"LABDBR"},null,"Premium Mood Room Terrace King","King size","no","yes",2,{"$f":"LEN(Table1[[#This Row],[TMS]])","v":7}]
["PREDBWT",{"$f":"LEFT(Table1[[#This Row],[TMS]],6)","v":"PREDBW"},null,"Premium Double View Terrace Twin","Twin","yes","yes",2,{"$f":"LEN(Table1[[#This Row],[TMS]])","v":7}]
["PRXDBVK",{"$f":"LEFT(Table1[[#This Row],[TMS]],6)","v":"PRXDBV"},null,"Premium XL Double View King","King size","yes","no",2,{"$f":"LEN(Table1[[#This Row],[TMS]])","v":7}]
["STDDBWD",{"$f":"LEFT(Table1[[#This Row],[TMS]],6)","v":"STDDBW"},null,"Standard Double View Terrace Double","Double","yes","yes",2,{"$f":"LEN(Table1[[#This Row],[TMS]])","v":7}]
["FAMDBWK",{"$f":"LEFT(Table1[[#This Row],[TMS]],6)","v":"FAMDBW"},null,"Family Room Double View Terrace King","King size","yes","yes",2,{"$f":"LEN(Table1[[#This Row],[TMS]])","v":7}]
["STNDBWK",{"$f":"LEFT(Table1[[#This Row],[TMS]],6)","v":"STNDBW"},null,"Standard New Style Double View Terrace K","King size","yes","yes",2,{"$f":"LEN(Table1[[#This Row],[TMS]])","v":7}]
["STNDBWT",{"$f":"LEFT(Table1[[#This Row],[TMS]],6)","v":"STNDBW"},null,"Standard New Style Double View Terrace T","Twin","yes","yes",2,{"$f":"LEN(Table1[[#This Row],[TMS]])","v":7}]
["JSTDBWQ",{"$f":"LEFT(Table1[[#This Row],[TMS]],6)","v":"JSTDBW"},null,"Jr Suite Double View Terrace Queen","Queen","yes","yes",2,{"$f":"LEN(Table1[[#This Row],[TMS]])","v":7}]
["SUXDBVD",{"$f":"LEFT(Table1[[#This Row],[TMS]],6)","v":"SUXDBV"},null,"Superior XL Double View Double","Double","yes","no",2,{"$f":"LEN(Table1[[#This Row],[TMS]])","v":7}]
["SUXDBWD",{"$f":"LEFT(Table1[[#This Row],[TMS]],6)","v":"SUXDBW"},null,"Superior XL Double View Terrace Double","Double","yes","yes",2,{"$f":"LEN(Table1[[#This Row],[TMS]])","v":7}]
["SUXDBWT",{"$f":"LEFT(Table1[[#This Row],[TMS]],6)","v":"SUXDBW"},null,"Superior XL Double View Terrace Twin","Twin","yes","yes",2,{"$f":"LEN(Table1[[#This Row],[TMS]])","v":7}]
["FAMDBWT",{"$f":"LEFT(Table1[[#This Row],[TMS]],6)","v":"FAMDBW"},null,"Family Room Double View Terrace Twin","Twin","yes","yes",2,{"$f":"LEN(Table1[[#This Row],[TMS]])","v":7}]
["SUPDBRQ",{"$f":"LEFT(Table1[[#This Row],[TMS]],6)","v":"SUPDBR"},null,"Superior Double Terrace Queen","Queen","no","yes",2,{"$f":"LEN(Table1[[#This Row],[TMS]])","v":7}]
["BASDBLD",{"$f":"LEFT(Table1[[#This Row],[TMS]],6)","v":"BASDBL"},null,"Basic Double Double","Double","no","no",2,{"$f":"LEN(Table1[[#This Row],[TMS]])","v":7}]
["PREDBVQ",{"$f":"LEFT(Table1[[#This Row],[TMS]],6)","v":"PREDBV"},null,"Premium Double View Queen","Queen","yes","no",2,{"$f":"LEN(Table1[[#This Row],[TMS]])","v":7}]
["PREDBWD",{"$f":"LEFT(Table1[[#This Row],[TMS]],6)","v":"PREDBW"},null,"Premium View Terrace Double","Double","yes","yes",2,{"$f":"LEN(Table1[[#This Row],[TMS]])","v":7}]
["STEDBVQ",{"$f":"LEFT(Table1[[#This Row],[TMS]],6)","v":"STEDBV"},null," Suite Room Double  View Queen","Queen","yes","no",2,{"$f":"LEN(Table1[[#This Row],[TMS]])","v":7}]
["SUPDLBK",{"$f":"LEFT(Table1[[#This Row],[TMS]],6)","v":"SUPDLB"},null,"Superior Double King","King size","no","no",2,{"$f":"LEN(Table1[[#This Row],[TMS]])","v":7}]
["PSTDBV2K",{"$f":"LEFT(Table1[[#This Row],[TMS]],6)","v":"PSTDBV"},null,"Presidential Suite Double View 2 King","King size","yes","no",4,{"$f":"LEN(Table1[[#This Row],[TMS]])","v":8}]
["SUPTL",{"$f":"LEFT(Table1[[#This Row],[TMS]],6)","v":"SUPTL"},null,"Superior Triple","triple","no","no",3,{"$f":"LEN(Table1[[#This Row],[TMS]])","v":5}]
["FAMDLBV",{"$f":"LEFT(Table1[[#This Row],[TMS]],6)","v":"FAMDLB"},null,"Family Room Double View","","no","no",2,{"$f":"LEN(Table1[[#This Row],[TMS]])","v":7}]
["FAMDLBVD",{"$f":"LEFT(Table1[[#This Row],[TMS]],6)","v":"FAMDLB"},null,"Family Room Double View Double","Double","no","no",2,{"$f":"LEN(Table1[[#This Row],[TMS]])","v":8}]
["APADBJT",{"$f":"LEFT(Table1[[#This Row],[TMS]],6)","v":"APADBJ"},null,"Apartment Jr. Double Twin","Twin","no","no",2,{"$f":"LEN(Table1[[#This Row],[TMS]])","v":7}]
["SUXDBVT",{"$f":"LEFT(Table1[[#This Row],[TMS]],6)","v":"SUXDBV"},null,"Superior Room XL Sea View Twin","Twin","yes","no",2,{"$f":"LEN(Table1[[#This Row],[TMS]])","v":7}]
["JSNDBWK",{"$f":"LEFT(Table1[[#This Row],[TMS]],6)","v":"JSNDBW"},null,"Jr Suite New Style Double View Terrace K","King size","yes","yes",2,{"$f":"LEN(Table1[[#This Row],[TMS]])","v":7}]
["STDDBWK",{"$f":"LEFT(Table1[[#This Row],[TMS]],6)","v":"STDDBW"},null,"Standard Double View Terrace King","King size","yes","yes",2,{"$f":"LEN(Table1[[#This Row],[TMS]])","v":7}]
["SUNDBWK",{"$f":"LEFT(Table1[[#This Row],[TMS]],6)","v":"SUNDBW"},null,"Superior New Style Double View Terrace K","King size","yes","yes",2,{"$f":"LEN(Table1[[#This Row],[TMS]])","v":7}]
["SUNDBWT",{"$f":"LEFT(Table1[[#This Row],[TMS]],6)","v":"SUNDBW"},null,"Superior New Style Double View Terrace T","Double","yes","yes",2,{"$f":"LEN(Table1[[#This Row],[TMS]])","v":7}]
["JSNDBWD",{"$f":"LEFT(Table1[[#This Row],[TMS]],6)","v":"JSNDBW"},null,"Panorama Junior Suite","Double","yes","yes",2,{"$f":"LEN(Table1[[#This Row],[TMS]])","v":7}]
["JSTDBWT",{"$f":"LEFT(Table1[[#This Row],[TMS]],6)","v":"JSTDBW"},null,"Jr Suite Double View Terrace Twin","Twin","yes","yes",2,{"$f":"LEN(Table1[[#This Row],[TMS]])","v":7}]
["STEQPLK",{"$f":"LEFT(Table1[[#This Row],[TMS]],6)","v":"STEQPL"},null,"Suite Quadruple King","King size","no","no",4,{"$f":"LEN(Table1[[#This Row],[TMS]])","v":7}]
["STNDBVK",{"$f":"LEFT(Table1[[#This Row],[TMS]],6)","v":"STNDBV"},null,"Standard New Style Double View King","King size","yes","no",2,{"$f":"LEN(Table1[[#This Row],[TMS]])","v":7}]
["SUNDBL2Q",{"$f":"LEFT(Table1[[#This Row],[TMS]],6)","v":"SUNDBL"},null,"Superior New Style Double 2 Queen","Queen","no","no",2,{"$f":"LEN(Table1[[#This Row],[TMS]])","v":8}]
["JSTDBWD",{"$f":"LEFT(Table1[[#This Row],[TMS]],6)","v":"JSTDBW"},null,"Junior Suite with view & terrace Double","Double","yes","yes",2,{"$f":"LEN(Table1[[#This Row],[TMS]])","v":7}]
["PRXDBWK",{"$f":"LEFT(Table1[[#This Row],[TMS]],6)","v":"PRXDBW"},null,"Premium XL Double View Balcony King","King size","yes","yes",2,{"$f":"LEN(Table1[[#This Row],[TMS]])","v":7}]
["SUXDBWK",{"$f":"LEFT(Table1[[#This Row],[TMS]],6)","v":"SUXDBW"},null,"Superior XL Double View Terrace King","King size","yes","yes",2,{"$f":"LEN(Table1[[#This Row],[TMS]])","v":7}]
["DLUDBLD",{"$f":"LEFT(Table1[[#This Row],[TMS]],6)","v":"DLUDBL"},null,"Deluxe Double Double","Double","no","no",2,{"$f":"LEN(Table1[[#This Row],[TMS]])","v":7}]
["FAMDBL2D",{"$f":"LEFT(Table1[[#This Row],[TMS]],6)","v":"FAMDBL"},null,"","Double","no","no",2,{"$f":"LEN(Table1[[#This Row],[TMS]])","v":8}]
["LABDBVK",{"$f":"LEFT(Table1[[#This Row],[TMS]],6)","v":"LABDBV"},null,"Nhow Mood Room View King","King size","yes","no",2,{"$f":"LEN(Table1[[#This Row],[TMS]])","v":7}]
["FAMSTET",{"$f":"LEFT(Table1[[#This Row],[TMS]],6)","v":"FAMSTE"},null,"Family Room Suite Twin","Twin","no","no",2,{"$f":"LEN(Table1[[#This Row],[TMS]])","v":7}]
["DLUDBVD",{"$f":"LEFT(Table1[[#This Row],[TMS]],6)","v":"DLUDBV"},null,"Deluxe Room Sea View Double","Double","yes","no",2,{"$f":"LEN(Table1[[#This Row],[TMS]])","v":7}]
["FAMDLRD",{"$f":"LEFT(Table1[[#This Row],[TMS]],6)","v":"FAMDLR"},null,"Family Deluxe terrace Double","Double","no","yes",4,{"$f":"LEN(Table1[[#This Row],[TMS]])","v":7}]
["FAMDLRT",{"$f":"LEFT(Table1[[#This Row],[TMS]],6)","v":"FAMDLR"},null,"Family Deluxe terrace Twin","Twin","no","yes",4,{"$f":"LEN(Table1[[#This Row],[TMS]])","v":7}]
["FAMDLUD",{"$f":"LEFT(Table1[[#This Row],[TMS]],6)","v":"FAMDLU"},null,"Family Deluxe Double","Double","no","no",4,{"$f":"LEN(Table1[[#This Row],[TMS]])","v":7}]
["FAMDLVD",{"$f":"LEFT(Table1[[#This Row],[TMS]],6)","v":"FAMDLV"},null,"Family Deluxe Sea View Double","Double","yes","no",4,{"$f":"LEN(Table1[[#This Row],[TMS]])","v":7}]
["FAMDLVT",{"$f":"LEFT(Table1[[#This Row],[TMS]],6)","v":"FAMDLV"},null,"Family Deluxe Pool View Twin","Twin","yes","no",4,{"$f":"LEN(Table1[[#This Row],[TMS]])","v":7}]
["JSTFAMD",{"$f":"LEFT(Table1[[#This Row],[TMS]],6)","v":"JSTFAM"},null,"Family Junior Double","Double","no","no",4,{"$f":"LEN(Table1[[#This Row],[TMS]])","v":7}]
["JSXDBVD",{"$f":"LEFT(Table1[[#This Row],[TMS]],6)","v":"JSXDBV"},null,"Jr Suite PuroBeach Double View Double","Double","yes","no",2,{"$f":"LEN(Table1[[#This Row],[TMS]])","v":7}]
["PRXDBVD",{"$f":"LEFT(Table1[[#This Row],[TMS]],6)","v":"PRXDBV"},null,"Premium Puro Beach Sea View Double","Double","yes","no",2,{"$f":"LEN(Table1[[#This Row],[TMS]])","v":7}]
["PRXDBVT",{"$f":"LEFT(Table1[[#This Row],[TMS]],6)","v":"PRXDBV"},null,"Premium Puro Beach Sea View Twin","Twin","yes","no",2,{"$f":"LEN(Table1[[#This Row],[TMS]])","v":7}]
["APA2ROD",{"$f":"LEFT(Table1[[#This Row],[TMS]],6)","v":"APA2RO"},null,"Apartment 2 Rooms Double","Double","no","no",4,{"$f":"LEN(Table1[[#This Row],[TMS]])","v":7}]
["APADBBD",{"$f":"LEFT(Table1[[#This Row],[TMS]],6)","v":"APADBB"},null,"Aparment 1 bdr Marina Beach","Double","no","no",2,{"$f":"LEN(Table1[[#This Row],[TMS]])","v":7}]
["APADBBT",{"$f":"LEFT(Table1[[#This Row],[TMS]],6)","v":"APADBB"},null,"Aparment 1 BDR Marina Beach Twin","Twin","no","no",2,{"$f":"LEN(Table1[[#This Row],[TMS]])","v":7}]
["APADBRD",{"$f":"LEFT(Table1[[#This Row],[TMS]],6)","v":"APADBR"},null,"Aparment 1 BDr with Terrace","Double","no","yes",2,{"$f":"LEN(Table1[[#This Row],[TMS]])","v":7}]
["APADBRT",{"$f":"LEFT(Table1[[#This Row],[TMS]],6)","v":"APADBR"},null,"Aparment 1 BDR with Terrace Twin","Twin","no","yes",2,{"$f":"LEN(Table1[[#This Row],[TMS]])","v":7}]
["APANBRD",{"$f":"LEFT(Table1[[#This Row],[TMS]],6)","v":"APANBR"},null,"Apartment 1BRD Terrace Marina Beach Dobl","Double","no","yes",2,{"$f":"LEN(Table1[[#This Row],[TMS]])","v":7}]
["APANBRT",{"$f":"LEFT(Table1[[#This Row],[TMS]],6)","v":"APANBR"},null,"Aparment 1 BDR with Terrace Marina Beach","","no","yes",2,{"$f":"LEN(Table1[[#This Row],[TMS]])","v":7}]
["STUDBBD",{"$f":"LEFT(Table1[[#This Row],[TMS]],6)","v":"STUDBB"},null,"Studio Marina Beach Double","Double","no","no",2,{"$f":"LEN(Table1[[#This Row],[TMS]])","v":7}]
["STUDBBT",{"$f":"LEFT(Table1[[#This Row],[TMS]],6)","v":"STUDBB"},null,"Studio Double Marina Beach Twin","Twin","no","no",2,{"$f":"LEN(Table1[[#This Row],[TMS]])","v":7}]
["STUDBLD",{"$f":"LEFT(Table1[[#This Row],[TMS]],6)","v":"STUDBL"},null,"Studio Marina Sun Double","Double","no","no",2,{"$f":"LEN(Table1[[#This Row],[TMS]])","v":7}]
["STUDBLT",{"$f":"LEFT(Table1[[#This Row],[TMS]],6)","v":"STUDBL"},null,"Studio Marina Sun Twin","Twin","no","no",2,{"$f":"LEN(Table1[[#This Row],[TMS]])","v":7}]
["STUDBVD",{"$f":"LEFT(Table1[[#This Row],[TMS]],6)","v":"STUDBV"},null,"Studios Marina Deck Double","Double","yes","no",2,{"$f":"LEN(Table1[[#This Row],[TMS]])","v":7}]
["STUDBVT",{"$f":"LEFT(Table1[[#This Row],[TMS]],6)","v":"STUDBV"},null,"Studios Marina Deck Double","","yes","no",2,{"$f":"LEN(Table1[[#This Row],[TMS]])","v":7}]
["STUDXLD",{"$f":"LEFT(Table1[[#This Row],[TMS]],6)","v":"STUDXL"},null,"Studio Family Marina Sun Double","Double","no","no",2,{"$f":"LEN(Table1[[#This Row],[TMS]])","v":7}]
["STUDXLT",{"$f":"LEFT(Table1[[#This Row],[TMS]],6)","v":"STUDXL"},null,"Studio Family Marina Sun Twin","Twin","no","no",2,{"$f":"LEN(Table1[[#This Row],[TMS]])","v":7}]
["APA3RVT",{"$f":"LEFT(Table1[[#This Row],[TMS]],6)","v":"APA3RV"},null,"Apartment 3 Rooms View Twin","Twin","yes","no",6,{"$f":"LEN(Table1[[#This Row],[TMS]])","v":7}]
["APAFAMT",{"$f":"LEFT(Table1[[#This Row],[TMS]],6)","v":"APAFAM"},null,"Apartment 3 Rooms Family Twin","Twin","no","no",6,{"$f":"LEN(Table1[[#This Row],[TMS]])","v":7}]
["STEDBED",{"$f":"LEFT(Table1[[#This Row],[TMS]],6)","v":"STEDBE"},null,"Victoria Suite","Double","no","no",2,{"$f":"LEN(Table1[[#This Row],[TMS]])","v":7}]
["FAMDLUT",{"$f":"LEFT(Table1[[#This Row],[TMS]],6)","v":"FAMDLU"},null,"Family Deluxe","","no","no",2,{"$f":"LEN(Table1[[#This Row],[TMS]])","v":7}]
["STEDBET",{"$f":"LEFT(Table1[[#This Row],[TMS]],6)","v":"STEDBE"},null,"Suite Executive Twin","Twin","no","no",2,{"$f":"LEN(Table1[[#This Row],[TMS]])","v":7}]
["DLUDBVQ",{"$f":"LEFT(Table1[[#This Row],[TMS]],6)","v":"DLUDBV"},null,"Deluxe Double View Queen","Queen","yes","no",2,{"$f":"LEN(Table1[[#This Row],[TMS]])","v":7}]
["FAMQPL",{"$f":"LEFT(Table1[[#This Row],[TMS]],6)","v":"FAMQPL"},null,"Family Room Quadruple","Double","no","no",4,{"$f":"LEN(Table1[[#This Row],[TMS]])","v":6}]
["SUXTPL",{"$f":"LEFT(Table1[[#This Row],[TMS]],6)","v":"SUXTPL"},null,"Superior XL Triple","triple","no","no",3,{"$f":"LEN(Table1[[#This Row],[TMS]])","v":6}]
["STDTPL",{"$f":"LEFT(Table1[[#This Row],[TMS]],6)","v":"STDTPL"},null,"Standard Triple","triple","no","no",3,{"$f":"LEN(Table1[[#This Row],[TMS]])","v":6}]
["STDSGL",{"$f":"LEFT(Table1[[#This Row],[TMS]],6)","v":"STDSGL"},null,"Standard Single","Single","no","no",1,{"$f":"LEN(Table1[[#This Row],[TMS]])","v":6}]
["BASDBL",{"$f":"LEFT(Table1[[#This Row],[TMS]],6)","v":"BASDBL"},null,"Basic Double","Double","no","no",2,{"$f":"LEN(Table1[[#This Row],[TMS]])","v":6}]
["BASDBLQ",{"$f":"LEFT(Table1[[#This Row],[TMS]],6)","v":"BASDBL"},null,"Basic Double Queen","Queen","no","no",2,{"$f":"LEN(Table1[[#This Row],[TMS]])","v":7}]
["STDTPV",{"$f":"LEFT(Table1[[#This Row],[TMS]],6)","v":"STDTPV"},null,"Standard Triple View","triple","yes","no",3,{"$f":"LEN(Table1[[#This Row],[TMS]])","v":6}]
["SUPSGL",{"$f":"LEFT(Table1[[#This Row],[TMS]],6)","v":"SUPSGL"},null,"Superior Single","Single","no","no",1,{"$f":"LEN(Table1[[#This Row],[TMS]])","v":6}]
["SUPSGV",{"$f":"LEFT(Table1[[#This Row],[TMS]],6)","v":"SUPSGV"},null,"Superior Single View","Single","yes","no",1,{"$f":"LEN(Table1[[#This Row],[TMS]])","v":6}]
["STNTPL",{"$f":"LEFT(Table1[[#This Row],[TMS]],6)","v":"STNTPL"},null,"Standard New Style triple","triple","no","no",3,{"$f":"LEN(Table1[[#This Row],[TMS]])","v":6}]
["APAFPL",{"$f":"LEFT(Table1[[#This Row],[TMS]],6)","v":"APAFPL"},null,"Apartment Five Bed",null,"no","no",5,{"$f":"LEN(Table1[[#This Row],[TMS]])","v":6}]
["APASPL",{"$f":"LEFT(Table1[[#This Row],[TMS]],6)","v":"APASPL"},null,"Apartment Six Bed",null,"no","no",6,{"$f":"LEN(Table1[[#This Row],[TMS]])","v":6}]
["APATPV",{"$f":"LEFT(Table1[[#This Row],[TMS]],6)","v":"APATPV"},null,"Apartment Triple View","triple","yes","no",3,{"$f":"LEN(Table1[[#This Row],[TMS]])","v":6}]
["STETPL",{"$f":"LEFT(Table1[[#This Row],[TMS]],6)","v":"STETPL"},null,"Suite Triple","triple","no","no",3,{"$f":"LEN(Table1[[#This Row],[TMS]])","v":6}]
["BASSGL",{"$f":"LEFT(Table1[[#This Row],[TMS]],6)","v":"BASSGL"},null,"Basic Single","single","no","no",1,{"$f":"LEN(Table1[[#This Row],[TMS]])","v":6}]
["STNSGL",{"$f":"LEFT(Table1[[#This Row],[TMS]],6)","v":"STNSGL"},null,"Standard New Style Single","single","no","no",1,{"$f":"LEN(Table1[[#This Row],[TMS]])","v":6}]
["SUPTPL",{"$f":"LEFT(Table1[[#This Row],[TMS]],6)","v":"SUPTPL"},null,"Superior Triple","triple","no","no",3,{"$f":"LEN(Table1[[#This Row],[TMS]])","v":6}]
["STDSGV",{"$f":"LEFT(Table1[[#This Row],[TMS]],6)","v":"STDSGV"},null,"Standard Single View","single","yes","no",1,{"$f":"LEN(Table1[[#This Row],[TMS]])","v":6}]
["FAMTPL",{"$f":"LEFT(Table1[[#This Row],[TMS]],6)","v":"FAMTPL"},null,"Family Room Triple","triple","no","no",3,{"$f":"LEN(Table1[[#This Row],[TMS]])","v":6}]
["FAMTPR",{"$f":"LEFT(Table1[[#This Row],[TMS]],6)","v":"FAMTPR"},null,"Family Room Triple Terrace","triple","no","yes",3,{"$f":"LEN(Table1[[#This Row],[TMS]])","v":6}]
["FAMTPV",{"$f":"LEFT(Table1[[#This Row],[TMS]],6)","v":"FAMTPV"},null,"Family Room Triple View","triple","yes","no",3,{"$f":"LEN(Table1[[#This Row],[TMS]])","v":6}]
["SUPSGR",{"$f":"LEFT(Table1[[#This Row],[TMS]],6)","v":"SUPSGR"},null,"Superior Single Terrace","single","no","yes",1,{"$f":"LEN(Table1[[#This Row],[TMS]])","v":6}]
["PRESGL",{"$f":"LEFT(Table1[[#This Row],[TMS]],6)","v":"PRESGL"},null,"Premium Single","single","no","no",1,{"$f":"LEN(Table1[[#This Row],[TMS]])","v":6}]
["STESGL",{"$f":"LEFT(Table1[[#This Row],[TMS]],6)","v":"STESGL"},null,"Suite Single","single","no","no",1,{"$f":"LEN(Table1[[#This Row],[TMS]])","v":6}]
["FANTPL",{"$f":"LEFT(Table1[[#This Row],[TMS]],6)","v":"FANTPL"},null,"Family Room New Style Triple","triple","no","no",3,{"$f":"LEN(Table1[[#This Row],[TMS]])","v":6}]
["STXTPL",{"$f":"LEFT(Table1[[#This Row],[TMS]],6)","v":"STXTPL"},null,"Standard XL Triple","triple","no","no",3,{"$f":"LEN(Table1[[#This Row],[TMS]])","v":6}]
["STDSGR",{"$f":"LEFT(Table1[[#This Row],[TMS]],6)","v":"STDSGR"},null,"Standard Single Terrace","single","no","yes",1,{"$f":"LEN(Table1[[#This Row],[TMS]])","v":6}]
["FAXXXL",{"$f":"LEFT(Table1[[#This Row],[TMS]],6)","v":"FAXXXL"},null,"Family Room XL",null,"no","no",6,{"$f":"LEN(Table1[[#This Row],[TMS]])","v":6}]
["APASLG",{"$f":"LEFT(Table1[[#This Row],[TMS]],6)","v":"APASLG"},null,"Apartment Single","single","no","no",1,{"$f":"LEN(Table1[[#This Row],[TMS]])","v":6}]
["APATPL",{"$f":"LEFT(Table1[[#This Row],[TMS]],6)","v":"APATPL"},null,"Apartment Triple","triple","no","no",3,{"$f":"LEN(Table1[[#This Row],[TMS]])","v":6}]
["APAQPL",{"$f":"LEFT(Table1[[#This Row],[TMS]],6)","v":"APAQPL"},null,"Apartment Quadruple",null,"no","no",4,{"$f":"LEN(Table1[[#This Row],[TMS]])","v":6}]
["JSTTPL",{"$f":"LEFT(Table1[[#This Row],[TMS]],6)","v":"JSTTPL"},null,"Jr. Suite Triple","triple","no","no",3,{"$f":"LEN(Table1[[#This Row],[TMS]])","v":6}]
["SUNSGL",{"$f":"LEFT(Table1[[#This Row],[TMS]],6)","v":"SUNSGL"},null,"Superior New Style Single","single","no","no",1,{"$f":"LEN(Table1[[#This Row],[TMS]])","v":6}]
["JSDBLK",{"$f":"LEFT(Table1[[#This Row],[TMS]],6)","v":"JSDBLK"},null,"Junior Suite","Double","no","no",2,{"$f":"LEN(Table1[[#This Row],[TMS]])","v":6}]
["FAMQPV",{"$f":"LEFT(Table1[[#This Row],[TMS]],6)","v":"FAMQPV"},null,"Family Room Quadruple View",null,"yes","no",4,{"$f":"LEN(Table1[[#This Row],[TMS]])","v":6}]
["STDQPL",{"$f":"LEFT(Table1[[#This Row],[TMS]],6)","v":"STDQPL"},null,"Standard Quadruple",null,"no","no",4,{"$f":"LEN(Table1[[#This Row],[TMS]])","v":6}]
["SUPQPV",{"$f":"LEFT(Table1[[#This Row],[TMS]],6)","v":"SUPQPV"},null,"Superior Quadruple View",null,"yes","no",4,{"$f":"LEN(Table1[[#This Row],[TMS]])","v":6}]
["APNQPV",{"$f":"LEFT(Table1[[#This Row],[TMS]],6)","v":"APNQPV"},null,"Apartment New Style Quadruple View",null,"yes","no",4,{"$f":"LEN(Table1[[#This Row],[TMS]])","v":6}]
["SUPTPV",{"$f":"LEFT(Table1[[#This Row],[TMS]],6)","v":"SUPTPV"},null,"Superior Triple View","triple","yes","no",3,{"$f":"LEN(Table1[[#This Row],[TMS]])","v":6}]
["DLUSGL",{"$f":"LEFT(Table1[[#This Row],[TMS]],6)","v":"DLUSGL"},null,"Deluxe Single","single","no","no",1,{"$f":"LEN(Table1[[#This Row],[TMS]])","v":6}]
["DLUTPL",{"$f":"LEFT(Table1[[#This Row],[TMS]],6)","v":"DLUTPL"},null,"Deluxe Triple","triple","no","no",3,{"$f":"LEN(Table1[[#This Row],[TMS]])","v":6}]
["JSTQPL",{"$f":"LEFT(Table1[[#This Row],[TMS]],6)","v":"JSTQPL"},null,"Jr Suite Quadruple",null,"no","no",4,{"$f":"LEN(Table1[[#This Row],[TMS]])","v":6}]
["STDSGW",{"$f":"LEFT(Table1[[#This Row],[TMS]],6)","v":"STDSGW"},null,"Standard Single View Terrace","single","yes","yes",1,{"$f":"LEN(Table1[[#This Row],[TMS]])","v":6}]
["STDDGL",{"$f":"LEFT(Table1[[#This Row],[TMS]],6)","v":"STDDGL"},null,"Standard individual","single","no","no",1,{"$f":"LEN(Table1[[#This Row],[TMS]])","v":6}]
["BASDBV",{"$f":"LEFT(Table1[[#This Row],[TMS]],6)","v":"BASDBV"},null,"Basic Single View","single","yes","no",1,{"$f":"LEN(Table1[[#This Row],[TMS]])","v":6}]
["BASSGV",{"$f":"LEFT(Table1[[#This Row],[TMS]],6)","v":"BASSGV"},null,"Basic Single View","single","yes","no",1,{"$f":"LEN(Table1[[#This Row],[TMS]])","v":6}]
["SUNTPL",{"$f":"LEFT(Table1[[#This Row],[TMS]],6)","v":"SUNTPL"},null,"Superior New Style Triple","triple","no","no",3,{"$f":"LEN(Table1[[#This Row],[TMS]])","v":6}]
["SUXQPL",{"$f":"LEFT(Table1[[#This Row],[TMS]],6)","v":"SUXQPL"},null,"Superior XL Quadruple",null,"no","no",4,{"$f":"LEN(Table1[[#This Row],[TMS]])","v":6}]
["PRETPL",{"$f":"LEFT(Table1[[#This Row],[TMS]],6)","v":"PRETPL"},null,"Premium Triple","triple","no","no",3,{"$f":"LEN(Table1[[#This Row],[TMS]])","v":6}]
["STDQPV",{"$f":"LEFT(Table1[[#This Row],[TMS]],6)","v":"STDQPV"},null,"Standard Quadruple Sea View",null,"yes","no",4,{"$f":"LEN(Table1[[#This Row],[TMS]])","v":6}]
["APNDBL",{"$f":"LEFT(Table1[[#This Row],[TMS]],6)","v":"APNDBL"},null,"Apartment New Style Double","Double","no","no",2,{"$f":"LEN(Table1[[#This Row],[TMS]])","v":6}]
["APNDBV",{"$f":"LEFT(Table1[[#This Row],[TMS]],6)","v":"APNDBV"},null,"Apartment Double View","Double","yes",null,2,{"$f":"LEN(Table1[[#This Row],[TMS]])","v":6}]
["STNDBR",{"$f":"LEFT(Table1[[#This Row],[TMS]],6)","v":"STNDBR"},null,"Standard New Style Double Terrace","Double","no","yes",2,{"$f":"LEN(Table1[[#This Row],[TMS]])","v":6}]
["STE2RL",{"$f":"LEFT(Table1[[#This Row],[TMS]],6)","v":"STE2RL"},null,"Suite 2 Bedroom","Queen","no","no",2,{"$f":"LEN(Table1[[#This Row],[TMS]])","v":6}]
["VIL1RO",{"$f":"LEFT(Table1[[#This Row],[TMS]],6)","v":"VIL1RO"},null,"Vila 1 Room","King size","yes","yes",2,{"$f":"LEN(Table1[[#This Row],[TMS]])","v":6}]
["VIL2RO",{"$f":"LEFT(Table1[[#This Row],[TMS]],6)","v":"VIL2RO"},null,"Vila 2 Rooms","King size","yes","yes",2,{"$f":"LEN(Table1[[#This Row],[TMS]])","v":6}]
["VILPRE",{"$f":"LEFT(Table1[[#This Row],[TMS]],6)","v":"VILPRE"},null,"Villa Obama","King size","yes","yes",2,{"$f":"LEN(Table1[[#This Row],[TMS]])","v":6}]
["LABDBR",{"$f":"LEFT(Table1[[#This Row],[TMS]],6)","v":"LABDBR"},null,"Premium Mood Room Terrace","Double","no","yes",2,{"$f":"LEN(Table1[[#This Row],[TMS]])","v":6}]
["SUXSGL",{"$f":"LEFT(Table1[[#This Row],[TMS]],6)","v":"SUXSGL"},null,"Superior Single XL","Single","no","no",2,{"$f":"LEN(Table1[[#This Row],[TMS]])","v":6}]
["SUNDBW",{"$f":"LEFT(Table1[[#This Row],[TMS]],6)","v":"SUNDBW"},null,"Superior New Style Double View Terrace","Double","yes","yes",2,{"$f":"LEN(Table1[[#This Row],[TMS]])","v":6}]
["DLUDLR",{"$f":"LEFT(Table1[[#This Row],[TMS]],6)","v":"DLUDLR"},null,"Deluxe Double with balcony","Double","no","yes",2,{"$f":"LEN(Table1[[#This Row],[TMS]])","v":6}]
["PREDLR",{"$f":"LEFT(Table1[[#This Row],[TMS]],6)","v":"PREDLR"},null,"Premium Double Balcony","Double","no","yes",2,{"$f":"LEN(Table1[[#This Row],[TMS]])","v":6}]
["STEDXV",{"$f":"LEFT(Table1[[#This Row],[TMS]],6)","v":"STEDXV"},null,"Duplex Suite Piazza View","Double","yes","no",2,{"$f":"LEN(Table1[[#This Row],[TMS]])","v":6}]
["PRNDBW",{"$f":"LEFT(Table1[[#This Row],[TMS]],6)","v":"PRNDBW"},null,"Premium New Style Db. View & Terrace","Double","yes","yes",2,{"$f":"LEN(Table1[[#This Row],[TMS]])","v":6}]
["SXNDBL",{"$f":"LEFT(Table1[[#This Row],[TMS]],6)","v":"SXNDBL"},null,"Superior XL New Style","Double","no","no",2,{"$f":"LEN(Table1[[#This Row],[TMS]])","v":6}]
["JSTDPV",{"$f":"LEFT(Table1[[#This Row],[TMS]],6)","v":"JSTDPV"},null,"Jr. Suite Duplex Canal View","Queen","yes","no",2,{"$f":"LEN(Table1[[#This Row],[TMS]])","v":6}]
["PRNDBX",{"$f":"LEFT(Table1[[#This Row],[TMS]],6)","v":"PRNDBX"},null,"Premium XL New Style Double","Queen","yes","no",2,{"$f":"LEN(Table1[[#This Row],[TMS]])","v":6}]
["PSTDPV",{"$f":"LEFT(Table1[[#This Row],[TMS]],6)","v":"PSTDPV"},null,"Presidential Duplex Suite Lagoon View","King size","yes","yes",2,{"$f":"LEN(Table1[[#This Row],[TMS]])","v":6}]
["JSNDBR",{"$f":"LEFT(Table1[[#This Row],[TMS]],6)","v":"JSNDBR"},null,"Jr. Suite New Style Double Terrace","Double","no","yes",2,{"$f":"LEN(Table1[[#This Row],[TMS]])","v":6}]
["SENDBV",{"$f":"LEFT(Table1[[#This Row],[TMS]],6)","v":"SENDBV"},null,"Suite New Style Double View","Double","yes","no",2,{"$f":"LEN(Table1[[#This Row],[TMS]])","v":6}]
["BASSGK",{"$f":"LEFT(Table1[[#This Row],[TMS]],6)","v":"BASSGK"},null,"Basic Single King","Single","no","no",1,{"$f":"LEN(Table1[[#This Row],[TMS]])","v":6}]
["PRXDBW",{"$f":"LEFT(Table1[[#This Row],[TMS]],6)","v":"PRXDBW"},null,"Premium XL Double View Balcony","Queen","yes","yes",2,{"$f":"LEN(Table1[[#This Row],[TMS]])","v":6}]
["LABDBV",{"$f":"LEFT(Table1[[#This Row],[TMS]],6)","v":"LABDBV"},null,"Nhow Mood Room View","Queen","yes","no",2,{"$f":"LEN(Table1[[#This Row],[TMS]])","v":6}]
["FAMDLR",{"$f":"LEFT(Table1[[#This Row],[TMS]],6)","v":"FAMDLR"},null,"Family Deluxe terrace","Double","no","yes",2,{"$f":"LEN(Table1[[#This Row],[TMS]])","v":6}]
["JSTFAM",{"$f":"LEFT(Table1[[#This Row],[TMS]],6)","v":"JSTFAM"},null,"Junior Suite Family","King size","no","no",2,{"$f":"LEN(Table1[[#This Row],[TMS]])","v":6}]
["JSXDBV",{"$f":"LEFT(Table1[[#This Row],[TMS]],6)","v":"JSXDBV"},null,"Jr Suite PuroBeach Double View","King size","yes","yes",2,{"$f":"LEN(Table1[[#This Row],[TMS]])","v":6}]
["APADBR",{"$f":"LEFT(Table1[[#This Row],[TMS]],6)","v":"APADBR"},null,"Aparment 1 BDR with Terrace","Single","no","yes",1,{"$f":"LEN(Table1[[#This Row],[TMS]])","v":6}]
["APANBR",{"$f":"LEFT(Table1[[#This Row],[TMS]],6)","v":"APANBR"},null,"Aparment 1 BDR with Terrace Marina Beach","Single","yes","yes",1,{"$f":"LEN(Table1[[#This Row],[TMS]])","v":6}]
["STUDBB",{"$f":"LEFT(Table1[[#This Row],[TMS]],6)","v":"STUDBB"},null,"Studio Marina Beach","Double","yes","no",2,{"$f":"LEN(Table1[[#This Row],[TMS]])","v":6}]
["STUDBV",{"$f":"LEFT(Table1[[#This Row],[TMS]],6)","v":"STUDBV"},null,"Studios Marina Deck","Double","no","no",2,{"$f":"LEN(Table1[[#This Row],[TMS]])","v":6}]
["STUDXL",{"$f":"LEFT(Table1[[#This Row],[TMS]],6)","v":"STUDXL"},null,"Studio Family Marina Sun","Queen","no","no",2,{"$f":"LEN(Table1[[#This Row],[TMS]])","v":6}]
["APA3RV",{"$f":"LEFT(Table1[[#This Row],[TMS]],6)","v":"APA3RV"},null,"Apartment 3 Rooms View","triple","yes","no",3,{"$f":"LEN(Table1[[#This Row],[TMS]])","v":6}]
["DLNDBL",{"$f":"LEFT(Table1[[#This Row],[TMS]],6)","v":"DLNDBL"},null,"Deluxe Signature","Double","no","no",2,{"$f":"LEN(Table1[[#This Row],[TMS]])","v":6}]
["FAMINTD","FAMINT",null,"Family Interconnecting Double","Double","no","no",4,{"$f":"LEN(Table1[[#This Row],[TMS]])","v":7}]
["FAMINTT","FAMINT",null,"Family Interconnecting Twin","Twin","no","no",4,{"$f":"LEN(Table1[[#This Row],[TMS]])","v":7}]
["FAMINTK","FAMINT",null,"Family Interconnecting King","King size","no","no",4,{"$f":"LEN(Table1[[#This Row],[TMS]])","v":7}]
["FAMINTQ","FAMINT",null,"Family Interconnecting Queen","Queen","no","no",4,{"$f":"LEN(Table1[[#This Row],[TMS]])","v":7}]
["FAMADJD","FAMADJ",null,"Family Adjoin Double","Double","no","no",4,{"$f":"LEN(Table1[[#This Row],[TMS]])","v":7}]
["FAMADJT","FAMADJ",null,"Family Adjoin Twin","Twin","no","no",4,{"$f":"LEN(Table1[[#This Row],[TMS]])","v":7}]
["FAMADJK","FAMADJ",null,"Family Adjoin King","King size","no","no",4,{"$f":"LEN(Table1[[#This Row],[TMS]])","v":7}]
["FAMADJQ","FAMADJ",null,"Family Adjoin Queen","Queen","no","no",4,{"$f":"LEN(Table1[[#This Row],[TMS]])","v":7}]

{"sheet":"CorpRateStructure","index":19,"n_rows":433,"n_cols":11,"rows_kept":433,"cut":false,"hidden":true,"merged":[]}
[null,null,null,"Country","bu","TMS CENTER CODE","HOTEL NAME","HOTEL COMMERCIAL NAME","TYPE","FIRST CURRENCY","SECOND CURRENCY"]
[null,null,null,"Dominican Republic","BU America",null,"Breathless Punta Cana","Breathless Punta Cana","Urban","DOP","$"]
[null,null,null,"Venezuela","BU America","VENE.EDENC","Hesperia Edén Club","Hesperia Edén Club","Urban","VEF"]
[null,null,null,"Venezuela","BU America","VENE.MARGA","Hesperia Isla Margarita","Hesperia Isla Margarita","Urban","VEF"]
[null,null,null,"Venezuela","BU America","VENE.PAGUA","Hesperia Playa El Agua","Hesperia Isla Margarita Playa El Agua","Urban","VEF"]
[null,null,null,"Venezuela","BU America","VECA.WTCVA","Hesperia WTC Valencia","Hesperia WTC Valencia","Urban","VEF"]
["Hesperia Lanzarote","Resort",null,"Mexico","BU America","MXDF.HILTO","Hilton Aeropuerto","Hilton Aeropuerto","Urban","MXN","$"]
["Hesperia Bristol Playa","Resort",null,"Argentina","BU America","ARCC.JULIO","NH 9 de Julio","NH Buenos Aires 9 de Julio","Urban","ARS","$"]
["Hesperia Villamil","Resort",null,"Chile","BU America","CLSC.ANTOF","NH Antofagasta","NH Antofagasta","Urban","CLF","$"]
["Hesperia Sabinal","Resort",null,"Cuba","BU America",null,"NH Capri La Habana","NH Capri La Habana","Urban"]
["Hesperia Playa Dorada","Resort",null,"Mexico","BU America","MXDF.CENHI","NH Centro Histórico","NH Mexico City Centro Histórico","Urban","MXN","$"]
["Sotogrande","Resort",null,"Argentina","BU America","ARCC.CITYA","NH City","NH Buenos Aires City","Urban","ARS","$"]
["Almernara","Resort",null,"Chile","BU America","CLRM.SANTI","NH Ciudad de Santiago","NH Ciudad de Santiago","Urban","CLF","$"]
[null,null,null,"Mexico","BU America","MXVZ.COATZ","NH Coatzacoalcos","NH Coatzacoalcos","Urban","MXN","$"]
[null,null,null,"Mexico","BU America","MXDF.MEXAI","NH Collection Aeropuerto T2 Mexico","NH Collection Mexico City Airport T2","Urban","MXN","$"]
[null,null,null,"Argentina","BU America","ARCC.TOWAR","NH Collection Centro Histórico","NH Collection Buenos Aires Centro Histórico","Urban","ARS","$"]
[null,null,null,"Mexico","BU America","MXJC.HISTO","NH Collection Guadalajara Centro Histórico","NH Collection Guadalajara Centro Histórico","Urban","MXN","$"]
[null,null,null,"Mexico","BU America","MXJC.GUAD","NH Collection Guadalajara Providencia","NH Collection Guadalajara Providencia","Urban","MXN","$"]
[null,null,null,"Argentina","BU America","ARCC.JOUST","NH Collection Jousten","NH Collection Buenos Aires Jousten","Urban","ARS","$"]
[null,null,null,"Argentina","BU America","ARCC.LANCA","NH Collection Lancaster","NH Collection Buenos Aires Lancaster","Urban","ARS","$"]
[null,null,null,"Mexico","BU America","MXGT.LEON","NH Collection León Expo","NH Collection León Expo","Urban","MXN","$"]
[null,null,null,"Mexico","BU America","MXDF.MECIT","NH Collection Mexico City Reforma","NH Collection Mexico City Reforma","Urban","MXN","$"]
[null,null,null,"Mexico","BU America","MXNL.MNREY","NH Collection Monterrey","NH Collection Monterrey","Urban","MXN","$"]
["NH Geneva Airport","Airport",null,"Chile","BU America","CLSC.PSANT","NH Collection Plaza Santiago","NH Collection Plaza Santiago","Urban","CLF","$"]
["NH Zurich Airport","Airport",null,"Colombia","BU America","COBO.ANDIN","NH Collection Royal Andino","NH Collection Bogotá Andino Royal","Urban","COP","$"]
["NH Frankfurt Niederad","Airport",null,"Colombia","BU America","COBO.HACIE","NH Collection Royal Hacienda","NH Collection Bogotá Hacienda Royal","Urban","COP","$"]
["NH Frankfurt Airport","Airport",null,"Colombia","BU America","COCG.MERCE","NH Collection Royal La Merced","NH Collection Cartagena La Merced Royal","Urban","COP","$"]
["NH Frankfurt Airport West","Airport",null,"Colombia","BU America","COME.MEDEL","NH Collection Royal Medellín","NH Collection Medellín Royal","Urban","COP","$"]
["NH Stuttgart Airport","Airport",null,"Ecuador","BU America","ECQU.QUITO","NH Collection Royal Quito","NH Collection Quito Royal","Urban","$"]
["NH Muenchen Airport","Airport",null,"Colombia","BU America","COBA.SMART","NH Collection Royal Smartsuites","NH Collection Barranquilla Smartsuites Royal","Urban","COP","$"]
["NH Barajas","Airport",null,"Colombia","BU America","COBO.BOGOT","NH Collection Royal Teleport","NH Collection Bogotá Teleport Royal","Urban","COP","$"]
["NH Lyon Airport","Airport",null,"Colombia","BU America","COBO.TERRA","NH Collection Royal Terra 100","NH Collection Bogotá Terra 100 Royal","Urban","COP","$"]
["NH Tower Barcelona","Airport",null,"Colombia","BU America","COBO.WTCBO","NH Collection Royal WTC Bogotá","NH Collection Bogotá WTC Royal","Urban","COP","$"]
["NH Best","Airport",null,"Mexico","BU America","MXDF.SNTFE","NH Collection Santa Fe","NH Collection Mexico City Santa Fe","Urban","MXN","$"]
["NH Schiphol Airport","Airport",null,"Argentina","BU America","ARCC.CRILL","NH Crillon","NH Buenos Aires Crillon","Urban","ARS","$"]
["NH Brussels Airport","Airport",null,"Brasil","BU America",null,"NH Curitiba The Five","NH Curitiba The Five","Urban"]
["NH Luxembourg","Airport",null,"Argentina","BU America","ARRR.EDELW","NH Edelweiss","NH Bariloche Edelweiss","Urban","ARS","$"]
["NH Linate","Airport",null,"Argentina","BU America","ARCC.FLORA","NH Florida","NH Buenos Aires Florida","Urban","ARS","$"]
["NH Orio al Serio","Airport",null,"Argentina","BU America","ARBB.PROVI","NH Gran Hotel Provincial","NH Gran Hotel Provincial","Urban","ARS","$"]
["NH Bologna Villanova","Airport",null,"Haiti","BU America","HTOU.HAITI","NH Haiti El Rancho","NH Haiti El Rancho","Urban","$"]
["NH Parco Aragonesi","Airport",null,"Argentina","BU America","ARBB.CASIA","NH Hotel Casino","NH Hotel Casino","Urban","ARS","$"]
[null,null,null,"Chile","BU America","CLSC.IQUIU","NH Iquique","NH Iquique","Urban","CLF","$"]
[null,null,null,"Argentina","BU America","ARCC.LATIN","NH Latino","NH Buenos Aires Latino","Urban","ARS","$"]
[null,null,null,"Argentina","BU America","ARMM.CORDI","NH Mendoza Cordillera","NH Mendoza Cordillera","Urban","ARS","$"]
[null,null,null,"Uruguay","BU America","UYMO.COLUM","NH Montevideo Columbia","NH Montevideo Columbia","Urban","UYU"]
[null,null,null,"Argentina","BU America","ARXX.PANOR","NH Panorama","NH Córdoba Panorama","Urban","ARS","$"]
[null,null,null,"Mexico","BU America","MXPL.PUEBL","NH Puebla Centro Histórico","NH Puebla Centro Histórico","Urban","MXN","$"]
[null,null,null,"Mexico","BU America","MXPL.PUFIN","NH Puebla Finsa","NH Puebla Finsa","Urban","MXN","$"]
[null,null,null,"Dominican Republic","BU America","DOAL.PCANA","NH Punta Cana","NH Punta Cana","Urban","DOP","$"]
[null,null,null,"Mexico","BU America","MXQT.QUERE","NH Queretaro","NH Queretaro","Urban","MXN","$"]
[null,null,null,"Colombia","BU America","COCA.CALI","NH Royal Cali","NH Cali Royal","Urban","COP","$"]
[null,null,null,"Colombia","BU America","COBO.BOHEM","NH Royal La Boheme","NH Bogotá Boheme Royal","Urban","COP","$"]
[null,null,null,"Colombia","BU America","COBO.METRO","NH Royal Metrotel","NH Bogotá Metrotel Royal","Urban","COP","$"]
[null,null,null,"Colombia","BU America","COBO.PAVIL","NH Royal Pavillon","NH Bogotá Pavillon Royal","Urban","COP","$"]
[null,null,null,"Colombia","BU America","COBO.URB26","NH Royal Urban 26","NH Bogotá Urban 26 Royal","Urban","COP","$"]
[null,null,null,"Colombia","BU America","COBO.URB93","NH Royal Urban 93","NH Bogotá Urban 93 Royal","Urban","COP","$"]
[null,null,null,"Colombia","BU America","COCG.CARTA","NH Royal Urban Cartagena","NH Cartagena Urban Royal","Urban","COP","$"]
[null,null,null,"Mexico","BU America","MXSL.SNLPT","NH San Luis Potosí","NH San Luis Potosí","Urban","MXN","$"]
[null,null,null,"Argentina","BU America","ARCC.TANGO","NH Tango","NH Buenos Aires Tango","Urban","ARS","$"]
[null,null,null,"Argentina","BU America","ARXX.URBAN","NH Urbano","NH Córdoba Urbano","Urban","ARS","$"]
[null,null,null,"Mexico","BU America","MXPL.VALDO","NH Valle Dorado","NH Mexico City Valle Dorado","Urban","MXN","$"]
[null,null,null,"Dominican Republic","BU America",null,"Now Garden Punta Cana","Now Garden Punta Cana","Urban","DOP","$"]
[null,null,null,"Dominican Republic","BU America",null,"Now Larimar Punta Cana","Now Larimar Punta Cana","Urban","DOP","$"]
[null,null,null,"Dominican Republic","BU America",null,"Now Onyx Punta Cana","Now Onyx Punta Cana","Urban","DOP","$"]
[null,null,null,"Dominican Republic","BU America","DOAL.ROYBE","Secrets Royal Beach Punta Cana","Secrets Royal Beach Punta Cana","Urban","DOP","$"]
[null,null,null,"The Netherlands","BU Benelux, UK, AF, F","NLNH.VIJVL","d' Vijff Vlieghen","d' Vijff Vlieghen","Urban","EUR"]
[null,null,null,"The Netherlands","BU Benelux, UK, AF, F","NLUT.AMERS","NH Amersfoort","NH Amersfoort","Urban","EUR"]
[null,null,null,"The Netherlands","BU Benelux, UK, AF, F","NLNH.AMSCE","NH Amsterdam Centre","NH Amsterdam Centre","Urban","EUR"]
[null,null,null,"The Netherlands","BU Benelux, UK, AF, F","NLNH.GALAX","NH Amsterdam Noord","NH Amsterdam Noord","Urban","EUR"]
[null,null,null,"The Netherlands","BU Benelux, UK, AF, F","NLNH.MUSIC","NH Amsterdam Zuid","NH Amsterdam Zuid","Urban","EUR"]
[null,null,null,"The Netherlands","BU Benelux, UK, AF, F","NLGE.RIJNH","NH Arnhem Rijnhotel","NH Arnhem Rijnhotel","Urban","EUR"]
[null,null,null,"The Netherlands","BU Benelux, UK, AF, F","NLZH.ATLRO","NH Atlanta Rotterdam","NH Atlanta Rotterdam","Urban","EUR"]
[null,null,null,"The Netherlands","BU Benelux, UK, AF, F","NLZH.ATLDH","NH Atlantic Den Haag","NH Atlantic Den Haag","Urban","EUR"]
[null,null,null,"The Netherlands","BU Benelux, UK, AF, F","NLNB.BEST","NH Best","NH Best","Airport","EUR"]
[null,null,null,"Belgium","BU Benelux, UK, AF, F","BEWV.BRUGG","NH Brugge","NH Brugge","Urban","EUR"]
[null,null,null,"Belgium","BU Benelux, UK, AF, F","BEBR.BRUAI","NH Brussels Airport","NH Brussels Airport","Airport","EUR"]
[null,null,null,"Belgium","BU Benelux, UK, AF, F","BEBR.BRUCI","NH Brussels Louise","NH Brussels Louise","Urban","EUR"]
[null,null,null,"The Netherlands","BU Benelux, UK, AF, F","NLZH.CAPEL","NH Capelle","NH Capelle","Urban","EUR"]
[null,null,null,"The Netherlands","BU Benelux, UK, AF, F","NLNH.CARAN","NH Caransa","NH Amsterdam Caransa","Urban","EUR"]
[null,null,null,"The Netherlands","BU Benelux, UK, AF, F","NLNH.CARLT","NH Carlton Amsterdam","NH Carlton Amsterdam","Urban","EUR"]
[null,null,null,"Belgium","BU Benelux, UK, AF, F","BEBR.EUROP","NH Carrefour de l’Europe","NH Brussels Carrefour de l’Europe","Urban","EUR"]
[null,null,null,"The Netherlands","BU Benelux, UK, AF, F","NLUT.CENUT","NH Centre Utrecht","NH Centre Utrecht","Urban","EUR"]
[null,null,null,"The Netherlands","BU Benelux, UK, AF, F","NLNH.CCAMS","NH City Centre","NH City Centre Amsterdam","Urban","EUR"]
[null,null,null,"The Netherlands","BU Benelux, UK, AF, F","NLNH.BARBI","NH Collection Barbizon Palace","NH Collection Amsterdam Barbizon Palace","Urban","EUR"]
[null,null,null,"Belgium","BU Benelux, UK, AF, F","BEBR.ATLAB","NH Collection Brussels Centre","NH Collection Brussels Centre","Urban","EUR"]
[null,null,null,"The Netherlands","BU Benelux, UK, AF, F","NLNH.DOELE","NH Collection Doelen","NH Collection Amsterdam Doelen","Urban","EUR"]
[null,null,null,"The Netherlands","BU Benelux, UK, AF, F","NLNB.EINDH","NH Collection Eindhoven Centre","NH Collection Eindhoven Centre","Urban","EUR"]
[null,null,null,"The Netherlands","BU Benelux, UK, AF, F","NLNH.KRASN","NH Collection Grand Hotel Krasnapolsky","NH Collection Amsterdam Grand Hotel Krasnapolsky","Urban","EUR"]
[null,null,null,"Belgium","BU Benelux, UK, AF, F","BEBR.SABLO","NH Collection Grand Sablon","NH Collection Brussels Grand Sablon","Urban","EUR"]
[null,null,null,"The Netherlands","BU Benelux, UK, AF, F","NLNB.KONIN","NH Conference Centre Koningshof","NH Eindhoven Conference Centre Koningshof","Urban","EUR"]
[null,null,null,"The Netherlands","BU Benelux, UK, AF, F","NLZH.LEEUW","NH Conference Centre Leeuwenhorst","NH Noordwijk Conference Centre Leeuwenhorst","Urban","EUR"]
[null,null,null,"The Netherlands","BU Benelux, UK, AF, F","NLZH.DHAAG","NH Den Haag","NH Den Haag","Urban","EUR"]
[null,null,null,"The Netherlands","BU Benelux, UK, AF, F","NLNB.GELDR","NH Geldrop","NH Geldrop","Urban","EUR"]
[null,null,null,"Belgium","BU Benelux, UK, AF, F","BEOV.BELFO","NH Gent Belfort","NH Gent Belfort","Urban","EUR"]
[null,null,null,"Belgium","BU Benelux, UK, AF, F","BEOV.PIETE","NH Gent Sint Pieters","NH Gent Sint Pieters","Urban","EUR"]
[null,null,null,"Belgium","BU Benelux, UK, AF, F","BEBR.GPARE","NH Grand Place Arenberg","NH Brussels Grand Place Arenberg","Urban","EUR"]
[null,null,null,"The Netherlands","BU Benelux, UK, AF, F","NLGR.GRON","NH Groningen","NH Groningen","Urban","EUR"]
[null,null,null,"The Netherlands","BU Benelux, UK, AF, F","NLGR.DVILL","NH Hotel de Ville","NH Groningen Hotel de Ville","Urban","EUR"]
[null,null,null,"The Netherlands","BU Benelux, UK, AF, F","NLNH.JANTA","NH Jan Tabak","NH Bussum Jan Tabak","Urban","EUR"]
[null,null,null,"United Kingdom","BU Benelux, UK, AF, F","GBLO.KESIN","NH Kensington","NH London Kensington","Urban","GBP"]
[null,null,null,"Luxembourg","BU Benelux, UK, AF, F","LULU.LUXEM","NH Luxembourg","NH Luxembourg","Airport","EUR"]
[null,null,null,"France","BU Benelux, UK, AF, F","FR69.LYONA","NH Lyon Airport","NH Lyon Airport","Airport","EUR"]
[null,null,null,"The Netherlands","BU Benelux, UK, AF, F","NLLI.MAAST","NH Maastricht","NH Maastricht","Urban","EUR"]
[null,null,null,"The Netherlands","BU Benelux, UK, AF, F","NLNH.MARQU","NH Marquette","NH Heemskerk Marquette","Urban","EUR"]
[null,null,null,"France","BU Benelux, UK, AF, F","FR13.MARSE","NH Marseille Palm Beach","NH Marseille Palm Beach","Urban","EUR"]
[null,null,null,"Belgium","BU Benelux, UK, AF, F","BEAN.MECHE","NH Mechelen","NH Mechelen","Urban","EUR"]
[null,null,null,"The Netherlands","BU Benelux, UK, AF, F","NLNH.MUSEU","NH Museum Quarter","NH Amsterdam Museum Quarter","Urban","EUR"]
[null,null,null,"The Netherlands","BU Benelux, UK, AF, F","NLNH.NAARD","NH Naarden","NH Naarden","Urban","EUR"]
[null,null,null,"France","BU Benelux, UK, AF, F","FR06.NICE","NH Nice","NH Nice","Urban","EUR"]
[null,null,null,"The Netherlands","BU Benelux, UK, AF, F","NLNH.SCHIL","NH Schiller","NH Amsterdam Schiller","Urban","EUR"]
[null,null,null,"The Netherlands","BU Benelux, UK, AF, F","NLNH.SCHIP","NH Schiphol Airport","NH Amsterdam Schiphol Airport","Airport","EUR"]
[null,null,null,"The Netherlands","BU Benelux, UK, AF, F","NLGE.SPARR","NH Sparrenhorst","NH Veluwe Sparrenhorst","Urban","EUR"]
[null,null,null,"Belgium","BU Benelux, UK, AF, F","BEBR.STEPH","NH Stéphanie","NH Brussels Stéphanie","Urban","EUR"]
[null,null,null,"Southafrica","BU Benelux, UK, AF, F",null,"NH The Lord Charles","NH Cape Town The Lord Charles","Urban"]
[null,null,null,"The Netherlands","BU Benelux, UK, AF, F","NLUT.UTREC","NH Utrecht","NH Utrecht","Urban","EUR"]
[null,null,null,"The Netherlands","BU Benelux, UK, AF, F","NLNB.WAALW","NH Waalwijk","NH Waalwijk","Urban","EUR"]
[null,null,null,"The Netherlands","BU Benelux, UK, AF, F","NLNH.ZANDV","NH Zandvoort","NH Zandvoort","Urban","EUR"]
[null,null,null,"The Netherlands","BU Benelux, UK, AF, F","NLZH.ZOETE","NH Zoetermeer","NH Zoetermeer","Urban","EUR"]
[null,null,null,"The Netherlands","BU Benelux, UK, AF, F","NLZH.WROTT","nhow Rotterdam","nhow Rotterdam","Urban","EUR"]
[null,null,null,"Germany","BU Central Europe","DEBE.ALEXA","NH Berlin Alexanderplatz","NH Berlin Alexanderplatz","Urban","EUR"]
[null,null,null,"Germany","BU Central Europe","DEBE.FRALL","NH Berlin City Ost","NH Berlin City Ost","Urban","EUR"]
[null,null,null,"Germany","BU Central Europe","DEBE.CITYW","NH Berlin City West","NH Berlin City West","Urban","EUR"]
[null,null,null,"Germany","BU Central Europe","DEBE.HEINH","NH Berlin Kreuzberg","NH Berlin Kreuzberg","Urban","EUR"]
[null,null,null,"Germany","BU Central Europe","DEBE.KUFUR","NH Berlin Kurfürstendamm","NH Berlin Kurfürstendamm","Urban","EUR"]
[null,null,null,"Germany","BU Central Europe","DEBB.POSTD","NH Berlin Potsdam Conference Center","NH Berlin Potsdam Conference Center","Urban","EUR"]
[null,null,null,"Germany","BU Central Europe","DEBE.PPLAT","NH Berlin Potsdamer Platz","NH Berlin Potsdamer Platz","Urban","EUR"]
[null,null,null,"Germany","BU Central Europe","DEBE.TREP","NH Berlin Treptow","NH Berlin Treptow","Urban","EUR"]
[null,null,null,"Germany","BU Central Europe","DERP.BINGE","NH Bingen","NH Bingen","Urban","EUR"]
[null,null,null,"Romania","BU Central Europe","ROBB.BUCHA","NH Bucharest","NH Bucharest","Urban","EUR"]
[null,null,null,"Hungary","BU Central Europe","HUBU.BUDAP","NH Budapest City","NH Budapest City","Urban","EUR"]
[null,null,null,"Germany","BU Central Europe","DEBE.FRIED","NH Collection Berlin Friedrichstrasse","NH Collection Berlin Mitte Friedrichstrasse","Urban","EUR"]
[null,null,null,"Germany","BU Central Europe","DEBE.MITTE","NH Collection Berlin Mitte","NH Collection Berlin Mitte am Checkpoint Charlie","Urban","EUR"]
[null,null,null,"Germany","BU Central Europe","DESN.DALTM","NH Collection Dresden Altmarkt","NH Collection Dresden Altmarkt","Urban","EUR"]
[null,null,null,"Germany","BU Central Europe","DEHE.FRCIT","NH Collection Frankfurt City","NH Collection Frankfurt City","Urban","EUR"]
[null,null,null,"Germany","BU Central Europe","DEHH.HACIT","NH Collection Hamburg City","NH Collection Hamburg City","Urban","EUR"]
[null,null,null,"Germany","BU Central Europe","DENW.KOMED","NH Collection Köln Mediapark","NH Collection Köln Mediapark","Urban","EUR"]
[null,null,null,"Germany","BU Central Europe","DEBY.NUCIT","NH Collection Nürnberg City","NH Collection Nürnberg City","Urban","EUR"]
[null,null,null,"Czech Republic","BU Central Europe","CZOL.OLOMO","NH Collection Olomouc Congress","NH Collection Olomouc Congress","Urban","EUR"]
[null,null,null,"Austria","BU Central Europe","AT09.ATTER","NH Collection Wien Zentrum","NH Collection Wien Zentrum","Urban","EUR"]
[null,null,null,"Austria","BU Central Europe","AT09.DANUB","NH Danube City","NH Danube City","Urban","EUR"]
[null,null,null,"Austria","BU Central Europe","AT06.GRAZC","NH Graz City","NH Graz City","Urban","EUR"]
[null,null,null,"Germany","BU Central Europe","DEBY.DEGGE","NH Deggendorf","NH Deggendorf","Urban","EUR"]
[null,null,null,"Germany","BU Central Europe","DEST.DESSA","NH Dessau","NH Dessau","Urban","EUR"]
[null,null,null,"Germany","BU Central Europe","DENW.DORTM","NH Dortmund","NH Dortmund","Urban","EUR"]
[null,null,null,"Germany","BU Central Europe","DESN.DRESD","NH Dresden Neustadt","NH Dresden Neustadt","Urban","EUR"]
[null,null,null,"Germany","BU Central Europe","DENW.DUCIT","NH Düsseldorf City","NH Düsseldorf City","Urban","EUR"]
[null,null,null,"Germany","BU Central Europe","DENW.DUNOR","NH Düsseldorf City Nord","NH Düsseldorf City Nord","Urban","EUR"]
[null,null,null,"Germany","BU Central Europe","DENW.DUCCE","NH Düsseldorf Königsallee","NH Düsseldorf Königsallee ","Urban","EUR"]
[null,null,null,"Germany","BU Central Europe","DENW.ESSEN","NH Essen","NH Essen","Urban","EUR"]
[null,null,null,"Germany","BU Central Europe","DEBY.ERLAN","NH Erlangen","NH Erlangen","Urban","EUR"]
[null,null,null,"Germany","BU Central Europe","DEBY.FOFUN","NH Forsthaus Fürth Nürnberg","NH Forsthaus Fürth Nürnberg","Urban","EUR"]
[null,null,null,"Germany","BU Central Europe","DEHE.FRAIR","NH Frankfurt Airport","NH Frankfurt Airport","Airport","EUR"]
[null,null,null,"Germany","BU Central Europe","DEHE.FRHEM","NH Frankfurt Airport West","NH Frankfurt Airport West","Airport","EUR"]
[null,null,null,"Germany","BU Central Europe","DEHE.FRMES","NH Frankfurt Messe","NH Frankfurt Messe","Urban","EUR"]
[null,null,null,"Germany","BU Central Europe","DEHE.MORFE","NH Frankfurt Mörfelden Conference Center","NH Frankfurt Mörfelden Conference Center","Urban","EUR"]
[null,null,null,"Germany","BU Central Europe","DEHE.NIEDE","NH Frankfurt Niederrad","NH Frankfurt Niederrad","Airport","EUR"]
[null,null,null,"Germany","BU Central Europe","DEHE.DIVIF","NH Frankfurt Villa","NH Frankfurt Villa","Urban","EUR"]
[null,null,null,"Switzerland","BU Central Europe","CHFR.FRIBO","NH Fribourg","NH Fribourg","Urban","CHF"]
[null,null,null,"Germany","BU Central Europe","DEBY.FURNU","NH Fürth Nürnberg","NH Fürth Nürnberg","Urban","EUR"]
[null,null,null,"Slovakia","BU Central Europe","SKBL.GTONE","NH Gate One","NH Bratislava Gate One","Urban","EUR"]
[null,null,null,"Switzerland","BU Central Europe","CHGE.GENAI","NH Geneva Airport","NH Geneva Airport","Airport","CHF"]
[null,null,null,"Switzerland","BU Central Europe","CHGE.REX","NH Geneva City","NH Geneva City","Urban","CHF"]
[null,null,null,"Germany","BU Central Europe","DEHH.HAALT","NH Hamburg Altona","NH Hamburg Altona","Urban","EUR"]
[null,null,null,"Germany","BU Central Europe","DEHH.HAMIT","NH Hamburg Mitte","NH Hamburg Mitte","Urban","EUR"]
[null,null,null,"Germany","BU Central Europe","DEBW.HEIDE","NH Heidelberg","NH Heidelberg","Urban","EUR"]
[null,null,null,"Germany","BU Central Europe","DEBW.HIRSC","NH Hirschberg Heidelberg","NH Hirschberg Heidelberg","Urban","EUR"]
[null,null,null,"Germany","BU Central Europe","DEHH.HAHOR","NH Horner Rennbahn","NH Hamburg Horner Rennbahn","Urban","EUR"]
[null,null,null,"Germany","BU Central Europe","DEBY.INGOL","NH Ingolstadt","NH Ingolstadt","Urban","EUR"]
[null,null,null,"Germany","BU Central Europe","DEBY.NORDI","NH Klösterle Nördlingen","NH Klösterle Nördlingen","Urban","EUR"]
[null,null,null,"Germany","BU Central Europe","DENW.KOCIT","NH Köln Altstadt","NH Köln Altstadt","Urban","EUR"]
[null,null,null,"Germany","BU Central Europe","DESN.LEIPZ","NH Leipzig Messe","NH Leipzig Messe","Urban","EUR"]
[null,null,null,"Germany","BU Central Europe","DEBW.LUDWI","NH Ludwigsburg","NH Ludwigsburg","Urban","EUR"]
[null,null,null,"Germany","BU Central Europe","DEST.MAGDE","NH Magdeburg","NH Magdeburg","Urban","EUR"]
[null,null,null,"Germany","BU Central Europe","DEBW.MANHE","NH Mannheim Viernheim","NH Mannheim Viernheim","Urban","EUR"]
[null,null,null,"Germany","BU Central Europe","DEBW.TBA","NH Mannheim","NH Mannheim","Urban","EUR"]
[null,null,null,"Germany","BU Central Europe","DEBY.MUNAI","NH München Airport","NH München Airport","Airport","EUR"]
[null,null,null,"Germany","BU Central Europe","DEBY.MAMRI","NH München City Süd","NH München City Süd","Urban","EUR"]
[null,null,null,"Germany","BU Central Europe","DEBY.KAISE","NH München Deutscher Kaiser","NH München Deutscher Kaiser","Urban","EUR"]
[null,null,null,"Germany","BU Central Europe","DEBY.NEUME","NH München Messe","NH München Messe","Urban","EUR"]
[null,null,null,"Germany","BU Central Europe","DEBY.DORNA","NH München Ost","NH München Ost Conference Center ","Urban","EUR"]
[null,null,null,"Germany","BU Central Europe","DEBY.UNTER","NH München Unterhaching","NH München Unterhaching","Urban","EUR"]
[null,null,null,"Germany","BU Central Europe","DENW.OBERH","NH Oberhausen","NH Oberhausen","Urban","EUR"]
[null,null,null,"Germany","BU Central Europe","DEBB.VOLTA","NH Potsdam","NH Potsdam","Urban","EUR"]
[null,null,null,"Poland","BU Central Europe","PLWP.POZNA","NH Poznan","NH Poznan","Urban","PLN","EUR"]
[null,null,null,"Czech Republic","BU Central Europe","CZPR.PRAGU","NH Prague City","NH Prague City","Urban","EUR"]
[null,null,null,"Austria","BU Central Europe","AT05.SALZB","NH Salzburg City","NH Salzburg City","Urban","EUR"]
[null,null,null,"Germany","BU Central Europe","DEMV.SCHWE","NH Schwerin","NH Schwerin","Urban","EUR"]
[null,null,null,"Germany","BU Central Europe","DEBW.STUAI","NH Stuttgart Airport","NH Stuttgart Airport","Airport","EUR"]
[null,null,null,"Germany","BU Central Europe","DEBW.SINDE","NH Stuttgart Sindelfingen","NH Stuttgart Sindelfingen","Urban","EUR"]
[null,null,null,"Romania","BU Central Europe","ROTM.TIMIS","NH Timisoara","NH Timisoara","Urban","EUR"]
[null,null,null,"Austria","BU Central Europe","AT09.VIEAI","NH Vienna Airport","NH Vienna Airport Conference Center","Urban","EUR"]
[null,null,null,"Germany","BU Central Europe","DEBW.WEINH","NH Weinheim","NH Weinheim","Urban","EUR"]
[null,null,null,"Austria","BU Central Europe","AT09.BELVE","NH Wien Belvedere","NH Wien Belvedere","Urban","EUR"]
[null,null,null,"Austria","BU Central Europe","AT09.WIEN","NH Wien City","NH Wien City","Urban","EUR"]
[null,null,null,"Germany","BU Central Europe","DEHE.AUKWI","NH Wiesbaden","NH Wiesbaden","Urban","EUR"]
[null,null,null,"Switzerland","BU Central Europe","CHZH.ZURAI","NH Zurich Airport","NH Zurich Airport","Airport","CHF"]
[null,null,null,"Germany","BU Central Europe","DEBE.WBERL","nhow Berlin","nhow Berlin","Urban","EUR"]
[null,null,null,"China","BU China","CN13.SHIJI","NH Shijiazhuang Financial Center","NH Shijiazhuang Financial Center","Urban","CNY"]
[null,null,null,"Italy","BU Italy","ITNA.AMDOR","NH Ambassador","NH Napoli Ambassador","Urban","EUR"]
[null,null,null,"Italy","BU Italy","ITAN.ANCON","NH Ancona","NH Ancona","Urban","EUR"]
[null,null,null,"Italy","BU Italy","ITFI.ANGLO","NH Anglo American","NH Firenze Anglo American","Urban","EUR"]
[null,null,null,"Italy","BU Italy","ITBG.BERGA","NH Bergamo","NH Bergamo","Urban","EUR"]
[null,null,null,"Italy","BU Italy","ITBO.BOGAR","NH Bologna de la Gare","NH Bologna de la Gare","Urban","EUR"]
[null,null,null,"Italy","BU Italy","ITBO.BOVIL","NH Bologna Villanova","NH Bologna Villanova","Airport","EUR"]
[null,null,null,"Italy","BU Italy","ITCT.BELLI","NH Catania Centro","NH Catania Centro","Urban","EUR"]
[null,null,null,"Italy","BU Italy","ITRM.GIUST","NH Collection Giustiniano","NH Collection Roma Giustiniano","Urban","EUR"]
[null,null,null,"Italy","BU Italy","ITSA.AMALF","NH Collection Grand Hotel Convento di Amalfi","NH Collection Grand Hotel Convento di Amalfi","Urban","EUR"]
[null,null,null,"Italy","BU Italy","ITGE.MARIN","NH Collection Marina","NH Collection Genova Marina ","Urban","EUR"]
[null,null,null,"Italy","BU Italy","ITVE.PABAR","NH Collection Palazzo Barocci","NH Collection Venezia Palazzo Barocci","Urban","EUR"]
[null,null,null,"Italy","BU Italy","ITRM.CINQU","NH Collection Palazzo Cinquecento","NH Collection Roma Palazzo Cinquecento","Urban","EUR"]
[null,null,null,"Italy","BU Italy","ITTO.CARLI","NH Collection Piazza Carlina","NH Collection Torino Piazza Carlina","Urban","EUR"]
[null,null,null,"Italy","BU Italy","ITFI.ROSSA","NH Collection Porta Rossa","NH Collection Firenze Porta Rossa","Urban","EUR"]
[null,null,null,"Italy","BU Italy","ITMI.MPRES","NH Collection President","NH Collection Milano President","Urban","EUR"]
[null,null,null,"Italy","BU Italy","ITME.TAORM","NH Collection Taormina","NH Collection Taormina","Urban","EUR"]
[null,null,null,"Italy","BU Italy","ITRM.VITTO","NH Collection Vittorio Veneto","NH Collection Roma Vittorio Veneto","Urban","EUR"]
[null,null,null,"Italy","BU Italy","ITMI.CONCO","NH Concordia","NH Milano Concordia","Urban","EUR"]
[null,null,null,"Italy","BU Italy","ITMI.FIERA","NH Fiera","NH Milano Fiera","Urban","EUR"]
[null,null,null,"Italy","BU Italy","ITFI.FIREN","NH Firenze","NH Firenze","Urban","EUR"]
[null,null,null,"Italy","BU Italy","ITGE.PLAZA","NH Genova Centro","NH Genova Centro","Urban","EUR"]
[null,null,null,"Italy","BU Italy","ITMI.VERDI","NH Grand Hotel Verdi","NH Milano Grand Hotel Verdi","Urban","EUR"]
[null,null,null,"Italy","BU Italy","ITSP.SPEZI","NH La Spezia","NH La Spezia","Urban","EUR"]
[null,null,null,"Italy","BU Italy","ITVE.LAGUN","NH Laguna Palace","NH Laguna Palace","Urban","EUR"]
[null,null,null,"Italy","BU Italy","ITRM.LEONA","NH Leonardo Da Vinci","NH Roma Leonardo da Vinci","Urban","EUR"]
[null,null,null,"Italy","BU Italy","ITMI.LINAT","NH Linate","NH Linate","Airport","EUR"]
[null,null,null,"Italy","BU Italy","ITTO.LINGO","NH Lingotto Congress","NH Torino Lingotto Congress","Urban","EUR"]
[null,null,null,"Italy","BU Italy","ITTO.LTECH","NH Lingotto Tech","NH Torino Lingotto Tech","Urban","EUR"]
[null,null,null,"Italy","BU Italy","ITMI.MACHI","NH Machiavelli","NH Milano Machiavelli","Urban","EUR"]
[null,null,null,"Italy","BU Italy","ITMI.MILA2","NH Milano 2","NH Milano 2","Urban","EUR"]
[null,null,null,"Italy","BU Italy","ITMI.RESID","NH Milano 2 Residence","NH Milano 2 Residence","Urban","EUR"]
[null,null,null,"Italy","BU Italy","ITMI.FIORI","NH Milano Congress Centre","NH Milano Congress Centre","Urban","EUR"]
[null,null,null,"Italy","BU Italy","ITMI.TOURI","NH Milano Touring","NH Milano Touring","Urban","EUR"]
[null,null,null,"Italy","BU Italy","ITBG.ORIO","NH Orio al Serio","NH Orio al Serio","Airport","EUR"]
[null,null,null,"Italy","BU Italy","ITPD.MANTE","NH Padova","NH Padova","Urban","EUR"]
[null,null,null,"Italy","BU Italy","ITMI.MOSCO","NH Palazzo Moscova","NH Milano Palazzo Moscova","Urban","EUR"]
[null,null,null,"Italy","BU Italy","ITPA.PALER","NH Palermo","NH Palermo","Urban","EUR"]
[null,null,null,"Italy","BU Italy","ITCT.PARCO","NH Parco Degli Aragonesi Catania","NH Catania Parco Degli Aragonesi","Airport","EUR"]
[null,null,null,"Italy","BU Italy","ITPR.PARMA","NH Parma","NH Parma","Urban","EUR"]
[null,null,null,"Italy","BU Italy","ITPI.CAVAL","NH Pisa","NH Pisa ","Urban","EUR"]
[null,null,null,"Italy","BU Italy","ITLC.PONTE","NH Pontevecchio","NH Lecco Pontevecchio","Urban","EUR"]
[null,null,null,"Italy","BU Italy","ITRA.RAVEN","NH Ravenna","NH Ravenna","Urban","EUR"]
[null,null,null,"Italy","BU Italy","ITTO.STEFA","NH Santo Stefano","NH Torino Santo Stefano","Urban","EUR"]
[null,null,null,"Italy","BU Italy","ITSV.DARSE","NH Savona Darsena","NH Savona Darsena","Urban","EUR"]
[null,null,null,"Italy","BU Italy","ITSI.EXCEL","NH Siena","NH Siena","Urban","EUR"]
[null,null,null,"Italy","BU Italy","ITTO.AMORI","NH Torino Centro","NH Torino Centro","Urban","EUR"]
[null,null,null,"Italy","BU Italy","ITTN.TRENT","NH Trento","NH Trento","Urban","EUR"]
[null,null,null,"Italy","BU Italy","ITTS.TRIES","NH Trieste","NH Trieste","Urban","EUR"]
[null,null,null,"Italy","BU Italy","ITRM.CARPE","NH Villa Carpegna","NH Roma Villa Carpegna","Urban","EUR"]
[null,null,null,"Italy","BU Italy","ITCT.MAURO","NH Villa San Mauro","NH Caltagirone Villa San Mauro","Urban","EUR"]
[null,null,null,"Italy","BU Italy","ITMI.WMILA","nhow Milano","nhow Milano","Urban","EUR"]
[null,null,null,"Spain","BU Spain, Portugal & Andorra","ESMD.CASMA","Casino de Madrid","Casino de Madrid","Urban","EUR"]
[null,null,null,"Spain","BU Spain, Portugal & Andorra","ESMD.BBVA","Centro de Formación BBVA La Moraleja","Centro de Formación BBVA La Moraleja","Urban","EUR"]
[null,null,null,"Spain","BU Spain, Portugal & Andorra","ESGC.BRIST","Hesperia Bristol Playa","Hesperia Bristol Playa","Resort","EUR"]
[null,null,null,"Spain","BU Spain, Portugal & Andorra","ESGC.LANZA","Hesperia Lanzarote","Hesperia Lanzarote","Resort","EUR"]
[null,null,null,"Spain","BU Spain, Portugal & Andorra","ESMD.MADRI","Hesperia Madrid","Hesperia Madrid","Urban","EUR"]
[null,null,null,"Spain","BU Spain, Portugal & Andorra","ESGC.DORAD","Hesperia Playa Dorada","Hesperia Lanzarote Playa Dorada","Resort","EUR"]
[null,null,null,"Spain","BU Spain, Portugal & Andorra","ESBA.PRESI","Hesperia Presidente","NH Hesperia Barcelona Presidente","Urban","EUR"]
[null,null,null,"Spain","BU Spain, Portugal & Andorra","ESBA.JOAN","Hesperia Sant Joan","Hesperia Sant Joan","Urban","EUR"]
[null,null,null,"Spain","BU Spain, Portugal & Andorra","ESSE.SEVIL","Hesperia Sevilla","Hesperia Sevilla","Urban","EUR"]
[null,null,null,"Spain","BU Spain, Portugal & Andorra","ESPO.VIGO","Hesperia Vigo","Hesperia Vigo","Urban","EUR"]
[null,null,null,"Spain","BU Spain, Portugal & Andorra","ESIB.VILLA","Hesperia Villamil","Hesperia Mallorca Villamil","Resort","EUR"]
[null,null,null,"Spain","BU Spain, Portugal & Andorra","ESCA.ALMEN","Hotel Almenara","Hotel Almenara","Resort","EUR"]
[null,null,null,"Spain","BU Spain, Portugal & Andorra","ESCR.ACORU","NH A Coruña Centro","NH A Coruña Centro","Urban","EUR"]
[null,null,null,"Spain","BU Spain, Portugal & Andorra","ESMD.ALCOR","NH Alcorcon","NH Alcorcon","Urban","EUR"]
[null,null,null,"Spain","BU Spain, Portugal & Andorra","ESAI.ALICA","NH Alicante","NH Alicante","Urban","EUR"]
[null,null,null,"Spain","BU Spain, Portugal & Andorra","ESMD.EMBAJ","NH Alonso Martínez","NH Madrid Alonso Martinez","Urban","EUR"]
[null,null,null,"Spain","BU Spain, Portugal & Andorra","ESMU.AMIMU","NH Amistad Murcia","NH Amistad Murcia","Urban","EUR"]
[null,null,null,"Andorra","BU Spain, Portugal & Andorra","AD07.ANDOR","NH Andorra la Vella","NH Hesperia Andorra la Vella","Urban","EUR"]
[null,null,null,"Spain","BU Spain, Portugal & Andorra","ESCR.ATLAN","NH Atlántico","NH A Coruña Atlántico","Urban","EUR"]
[null,null,null,"Spain","BU Spain, Portugal & Andorra","ESMD.SUR","NH Atocha","NH Madrid Atocha","Urban","EUR"]
[null,null,null,"Spain","BU Spain, Portugal & Andorra","ESJE.JEREZ","NH Avenida Jerez","NH Avenida Jerez","Urban","EUR"]
[null,null,null,"Spain","BU Spain, Portugal & Andorra","ESVA.BALAG","NH Bálago","NH Valladolid Bálago","Urban","EUR"]
[null,null,null,"Spain","BU Spain, Portugal & Andorra","ESMD.BALBO","NH Balboa","NH Madrid Balboa","Urban","EUR"]
[null,null,null,"Spain","BU Spain, Portugal & Andorra","ESMD.BARAJ","NH Barajas Airport","NH Madrid Barajas Airport","Airport","EUR"]
[null,null,null,"Spain","BU Spain, Portugal & Andorra","ESBA.BARCE","NH Barcelona Centro","NH Barcelona Centro","Urban","EUR"]
[null,null,null,"Spain","BU Spain, Portugal & Andorra","ESBA.MAR","NH Barcelona del Mar","NH Hesperia Barcelona del Mar","Urban","EUR"]
[null,null,null,"Spain","BU Spain, Portugal & Andorra","ESBA.RALLY","NH Barcelona Stadium","NH Barcelona Stadium","Urban","EUR"]
[null,null,null,"Spain","BU Spain, Portugal & Andorra","ESBA.METRO","NH Barri Gòtic","NH Barcelona Barri Gòtic","Urban","EUR"]
[null,null,null,"Spain","BU Spain, Portugal & Andorra","ESCO.CALIF","NH Califa","NH Córdoba Califa","Urban","EUR"]
[null,null,null,"Spain","BU Spain, Portugal & Andorra","ESMU.CACAR","NH Campo Cartagena","NH Campo Cartagena","Urban","EUR"]
[null,null,null,"Spain","BU Spain, Portugal & Andorra","ESCA.GIBRA","NH Campo de Gibraltar","NH Campo de Gibraltar","Urban","EUR"]
[null,null,null,"Portugal","BU Spain, Portugal & Andorra","PT11.CAMPO","NH Campo Grande","NH Lisboa Campo Grande","Urban","EUR"]
[null,null,null,"Spain","BU Spain, Portugal & Andorra","ESBA.CAMPU","NH Campus","NH Barcelona Campus","Urban","EUR"]
[null,null,null,"Spain","BU Spain, Portugal & Andorra","ESVI.CANAY","NH Canciller Ayala Vitoria","NH Canciller Ayala Vitoria","Urban","EUR"]
[null,null,null,"Spain","BU Spain, Portugal & Andorra","ESMU.CARTA","NH Cartagena","NH Cartagena","Urban","EUR"]
[null,null,null,"Spain","BU Spain, Portugal & Andorra","ESVL.CENTE","NH Center","NH Valencia Center","Urban","EUR"]
[null,null,null,"Spain","BU Spain, Portugal & Andorra","ESMD.BRETO","NH Chamberí","NH Madrid Chamberí","Urban","EUR"]
[null,null,null,"Spain","BU Spain, Portugal & Andorra","ESAL.ALMER","NH Ciudad de Almeria","NH Ciudad de Almeria","Urban","EUR"]
[null,null,null,"Spain","BU Spain, Portugal & Andorra","ESCU.CUENC","NH Ciudad de Cuenca","NH Ciudad de Cuenca","Urban","EUR"]
[null,null,null,"Spain","BU Spain, Portugal & Andorra","ESMD.IMAGE","NH Ciudad de la Imagen","NH Pozuelo Ciudad de la Imagen","Urban","EUR"]
[null,null,null,"Spain","BU Spain, Portugal & Andorra","ESIB.MALLO","NH Ciudad de Mallorca","NH Ciudad de Mallorca","Urban","EUR"]
[null,null,null,"Spain","BU Spain, Portugal & Andorra","ESCB.SANTA","NH Ciudad de Santander","NH Ciudad de Santander","Urban","EUR"]
[null,null,null,"Spain","BU Spain, Portugal & Andorra","ESVL.VALEN","NH Ciudad de Valencia","NH Ciudad de Valencia","Urban","EUR"]
[null,null,null,"Spain","BU Spain, Portugal & Andorra","ESVA.VALLA","NH Ciudad de Valladolid","NH Ciudad de Valladolid","Urban","EUR"]
[null,null,null,"Spain","BU Spain, Portugal & Andorra","ESZZ.CIUZA","NH Ciudad de Zaragoza","NH Ciudad de Zaragoza","Urban","EUR"]
[null,null,null,"Spain","BU Spain, Portugal & Andorra","ESCR.CREAL","NH Ciudad Real","NH Ciudad Real","Urban","EUR"]
[null,null,null,"Spain","BU Spain, Portugal & Andorra","ESTA.REUS","NH Ciutat de Reus","NH Ciutat de Reus","Urban","EUR"]
[null,null,null,"Spain","BU Spain, Portugal & Andorra","ESMD.ABASC","NH Collection Abascal","NH Collection Madrid Abascal ","Urban","EUR"]
[null,null,null,"Spain","BU Spain, Portugal & Andorra","ESCO.AMICO","NH Collection Amistad Córdoba","NH Collection Amistad Córdoba","Urban","EUR"]
[null,null,null,"Spain","BU Spain, Portugal & Andorra","ESSS.ARANZ","NH Collection Aránzazu","NH Collection San Sebastián Aránzazu","Urban","EUR"]
[null,null,null,"Spain","BU Spain, Portugal & Andorra","ESMD.SANVY","NH Collection Colón","NH Collection Madrid Colón","Urban","EUR"]
[null,null,null,"Spain","BU Spain, Portugal & Andorra","ESBA.CONST","NH Collection Constanza","NH Collection Barcelona Constanza","Urban","EUR"]
[null,null,null,"Spain","BU Spain, Portugal & Andorra","ESMD.EUROB","NH Collection Eurobuilding","NH Collection Madrid Eurobuilding","Urban","EUR"]
[null,null,null,"Spain","BU Spain, Portugal & Andorra","ESCR.FINIS","NH Collection Finisterre","NH Collection A Coruña Finisterre","Urban","EUR"]
[null,null,null,"Spain","BU Spain, Portugal & Andorra","ESZZ.GRAHO","NH Collection Gran Hotel","NH Collection Gran Hotel de Zaragoza","Urban","EUR"]
[null,null,null,"Spain","BU Spain, Portugal & Andorra","ESBA.CALDE","NH Collection Gran Hotel Calderón","NH Collection Barcelona Gran Hotel Calderón","Urban","EUR"]
[null,null,null,"Portugal","BU Spain, Portugal & Andorra","PT11.LIBER","NH Collection Liberdade","NH Collection Lisboa Liberdade","Urban","EUR"]
[null,null,null,"Spain","BU Spain, Portugal & Andorra","ESMD.PAZ","NH Collection Palacio de Aranjuez","NH Collection Palacio de Aranjuez","Urban","EUR"]
[null,null,null,"Spain","BU Spain, Portugal & Andorra","ESAS.FERRE","NH Collection Palacio de Avilés","NH Collection Palacio de Avilés","Urban","EUR"]
[null,null,null,"Spain","BU Spain, Portugal & Andorra","ESBU.MERCE","NH Collection Palacio de Burgos","NH Collection Palacio de Burgos","Urban","EUR"]
[null,null,null,"Spain","BU Spain, Portugal & Andorra","ESCC.OQUEN","NH Collection Palacio de Oquendo","NH Collection Cáceres Palacio de Oquendo","Urban","EUR"]
[null,null,null,"Spain","BU Spain, Portugal & Andorra","ESMD.TEPA","NH Collection Palacio de Tepa","NH Collection Madrid Palacio de Tepa","Urban","EUR"]
[null,null,null,"Spain","BU Spain, Portugal & Andorra","ESMD.PRADO","NH Collection Paseo del Prado","NH Collection Madrid Paseo del Prado","Urban","EUR"]
[null,null,null,"Spain","BU Spain, Portugal & Andorra","ESLE.MAYOR","NH Collection Plaza Mayor","NH Collection León Plaza Mayor","Urban","EUR"]
[null,null,null,"Spain","BU Spain, Portugal & Andorra","ESBA.PODIU","NH Collection Pódium","NH Collection Barcelona Pódium","Urban","EUR"]
[null,null,null,"Portugal","BU Spain, Portugal & Andorra","PT13.PORTO","NH Collection Porto Batalha","NH Collection Porto Batalha","Urban","EUR"]
[null,null,null,"Spain","BU Spain, Portugal & Andorra","ESBI.BILBA","NH Collection Ría de Bilbao","NH Collection Ría de Bilbao","Urban","EUR"]
[null,null,null,"Spain","BU Spain, Portugal & Andorra","ESCR.OBRAD","NH Collection Santiago","NH Collection Santiago de Compostela","Urban","EUR"]
[null,null,null,"Spain","BU Spain, Portugal & Andorra","ESSE.CECON","NH Collection Sevilla","NH Collection Sevilla ","Urban","EUR"]
[null,null,null,"Spain","BU Spain, Portugal & Andorra","ESMD.CIBEL","NH Collection Suecia","NH Collection Madrid Suecia","Urban","EUR"]
[null,null,null,"Spain","BU Spain, Portugal & Andorra","ESBA.TOWER","NH Collection Tower","NH Collection Barcelona Tower","Airport","EUR"]
[null,null,null,"Spain","BU Spain, Portugal & Andorra","ESGR.VICTO","NH Collection Victoria","NH Collection Granada Victoria","Urban","EUR"]
[null,null,null,"Spain","BU Spain, Portugal & Andorra","ESPO.PAVIG","NH Collection Vigo","NH Collection Vigo","Urban","EUR"]
[null,null,null,"Spain","BU Spain, Portugal & Andorra","ESBI.VILBI","NH Collection Villa de Bilbao","NH Collection Villa de Bilbao","Urban","EUR"]
[null,null,null,"Spain","BU Spain, Portugal & Andorra","ESBA.CORNE","NH Cornella","NH Cornella","Urban","EUR"]
[null,null,null,"Spain","BU Spain, Portugal & Andorra","ESBI.DEUST","NH Deusto","NH Bilbao Deusto","Urban","EUR"]
[null,null,null,"Spain","BU Spain, Portugal & Andorra","ESBA.DIAGO","NH Diagonal Center","NH Barcelona Diagonal Center","Urban","EUR"]
[null,null,null,"Spain","BU Spain, Portugal & Andorra","ESSS.DONOS","NH Donosti","NH San Sebastián Donosti","Urban","EUR"]
[null,null,null,"Spain","BU Spain, Portugal & Andorra","ESBA.MASTE","NH Eixample","NH Barcelona Eixample","Urban","EUR"]
[null,null,null,"Spain","BU Spain, Portugal & Andorra","ESBA.SANTS","NH Entenza","NH Barcelona Entenza","Urban","EUR"]
[null,null,null,"Spain","BU Spain, Portugal & Andorra","ESBA.FIRA","NH Fira Suites","NH Barcelona Fira Suites","Urban","EUR"]
[null,null,null,"Spain","BU Spain, Portugal & Andorra","ESAS.GIJON","NH Gijon","NH Gijon","Urban","EUR"]
[null,null,null,"Spain","BU Spain, Portugal & Andorra","ESCC.EXTRE","NH Gran Hotel Casino de Extremadura","NH Gran Hotel Casino de Extremadura","Urban","EUR"]
[null,null,null,"Spain","BU Spain, Portugal & Andorra","ESGR.GRANA","NH Granada Centro","NH Granada Centro","Urban","EUR"]
[null,null,null,"Spain","BU Spain, Portugal & Andorra","ESCO.CORDO","NH Guadalquivir","NH Córdoba Guadalquivir","Urban","EUR"]
[null,null,null,"Spain","BU Spain, Portugal & Andorra","ESLO.HEREN","NH Herencia Rioja","NH Logroño Herencia Rioja","Urban","EUR"]
[null,null,null,"Spain","BU Spain, Portugal & Andorra","ESGC.IMPER","NH Imperial Playa","NH Imperial Playa","Urban","EUR"]
[null,null,null,"Spain","BU Spain, Portugal & Andorra","ESNA.IRUNA","NH Iruña Park","NH Pamplona Iruña Park","Urban","EUR"]
[null,null,null,"USA","BU Spain, Portugal & Andorra","USNY.MADIS","NH Jolly Madison Towers","NH New York Jolly Madison Towers","Urban","$"]
[null,null,null,"Spain","BU Spain, Portugal & Andorra","ESBI.AVANZ","NH La Avanzada","NH La Avanzada","Urban","EUR"]
[null,null,null,"Spain","BU Spain, Portugal & Andorra","ESBA.MAQUI","NH La Maquinista","NH Barcelona La Maquinista","Urban","EUR"]
[null,null,null,"Spain","BU Spain, Portugal & Andorra","ESMD.LAGAS","NH Lagasca","NH Madrid Lagasca","Urban","EUR"]
[null,null,null,"Spain","BU Spain, Portugal & Andorra","ESVL.ARTE1","NH Las Artes","NH Valencia Las Artes","Urban","EUR"]
[null,null,null,"Spain","BU Spain, Portugal & Andorra","ESVL.ARTE2","NH Las Ciencias","NH Valencia Las Ciencias","Urban","EUR"]
[null,null,null,"Spain","BU Spain, Portugal & Andorra","ESMD.TABLA","NH Las Tablas","NH Madrid Las Tablas","Urban","EUR"]
[null,null,null,"Spain","BU Spain, Portugal & Andorra","ESMD.LEGAN","NH Leganes","NH Leganes","Urban","EUR"]
[null,null,null,"Spain","BU Spain, Portugal & Andorra","ESBA.CORTS","NH Les Corts","NH Barcelona Les Corts","Urban","EUR"]
[null,null,null,"Spain","BU Spain, Portugal & Andorra","ESLO.LOGRO","NH Logroño","NH Logroño","Urban","EUR"]
[null,null,null,"Spain","BU Spain, Portugal & Andorra","ESHV.LUZHU","NH Luz Huelva","NH Luz Huelva","Urban","EUR"]
[null,null,null,"Spain","BU Spain, Portugal & Andorra","ESMD.PACIF","NH Madrid Sur","NH Madrid Sur","Urban","EUR"]
[null,null,null,"Spain","BU Spain, Portugal & Andorra","ESMA.MALAG","NH Malaga","NH Malaga","Urban","EUR"]
[null,null,null,"Spain","BU Spain, Portugal & Andorra","ESMA.MARBE","NH Marbella","NH Marbella","Urban","EUR"]
[null,null,null,"Spain","BU Spain, Portugal & Andorra","ESCS.MINDO","NH Mindoro","NH Castellón Mindoro","Urban","EUR"]
[null,null,null,"Spain","BU Spain, Portugal & Andorra","ESMU.MURCI","NH Murcia Centro","NH Murcia Centro","Urban","EUR"]
[null,null,null,"Spain","BU Spain, Portugal & Andorra","ESMD.NACIO","NH Nacional","NH Madrid Nacional","Urban","EUR"]
[null,null,null,"Spain","BU Spain, Portugal & Andorra","ESOU.OUREN","NH Ourense","NH Ourense","Urban","EUR"]
[null,null,null,"Spain","BU Spain, Portugal & Andorra","ESSA.CASTE","NH Palacio de Castellanos","NH Salamanca Palacio de Castellanos","Urban","EUR"]
[null,null,null,"Spain","BU Spain, Portugal & Andorra","ESZA.DUERO","NH Palacio del Duero","NH Zamora Palacio del Duero","Urban","EUR"]
[null,null,null,"Spain","BU Spain, Portugal & Andorra","ESMD.PARLA","NH Parla","NH Parla","Urban","EUR"]
[null,null,null,"Spain","BU Spain, Portugal & Andorra","ESMD.HABAN","NH Paseo de la Habana","NH Madrid Paseo de la Habana","Urban","EUR"]
[null,null,null,"Spain","BU Spain, Portugal & Andorra","ESCR.PEREG","NH Peregrino","NH Hesperia Santiago Peregrino","Urban","EUR"]
[null,null,null,"Spain","BU Spain, Portugal & Andorra","ESLL.PIRIN","NH Pirineos","NH Lleida Pirineos","Urban","EUR"]
[null,null,null,"Spain","BU Spain, Portugal & Andorra","ESGC.CANTE","NH Playa las Canteras","NH Las Palmas Playa las Canteras","Urban","EUR"]
[null,null,null,"Spain","BU Spain, Portugal & Andorra","ESSE.ARMAS","NH Plaza de Armas","NH Sevilla Plaza de Armas","Urban","EUR"]
[null,null,null,"Spain","BU Spain, Portugal & Andorra","ESBA.PORTA","NH Porta Barcelona","NH Porta Barcelona","Urban","EUR"]
[null,null,null,"Spain","BU Spain, Portugal & Andorra","ESAS.PRINC","NH Principado","NH Oviedo Principado","Urban","EUR"]
[null,null,null,"Spain","BU Spain, Portugal & Andorra","ESMD.PRIVE","NH Príncipe de Vergara","NH Madrid Príncipe de Vergara","Urban","EUR"]
[null,null,null,"Spain","BU Spain, Portugal & Andorra","ESSA.CATED","NH Puerta de la Catedral","NH Salamanca Puerta de la Catedral","Urban","EUR"]
[null,null,null,"Spain","BU Spain, Portugal & Andorra","ESVL.SAGUN","NH Puerto de Sagunto","NH Puerto de Sagunto","Urban","EUR"]
[null,null,null,"Spain","BU Spain, Portugal & Andorra","ESAI.CRIST","NH Rambla de Alicante","NH Rambla de Alicante","Urban","EUR"]
[null,null,null,"Spain","BU Spain, Portugal & Andorra","ESBA.RAMBL","NH Ramblas","NH Barcelona Ramblas","Urban","EUR"]
[null,null,null,"Spain","BU Spain, Portugal & Andorra","ESMD.RIBER","NH Ribera del Manzanares","NH Madrid Ribera del Manzanares","Urban","EUR"]
[null,null,null,"Spain","BU Spain, Portugal & Andorra","ESMA.PEDRO","NH San Pedro de Alcántara","NH San Pedro de Alcántara","Urban","EUR"]
[null,null,null,"Spain","BU Spain, Portugal & Andorra","ESMD.SSREY","NH San Sebastian de los Reyes","NH San Sebastian de los Reyes","Urban","EUR"]
[null,null,null,"Spain","BU Spain, Portugal & Andorra","ESBA.BOI","NH Sant Boi","NH Sant Boi","Urban","EUR"]
[null,null,null,"Spain","BU Spain, Portugal & Andorra","ESBA.JUST","NH Sant Just","NH Barcelona Sant Just","Urban","EUR"]
[null,null,null,"Spain","BU Spain, Portugal & Andorra","ESBA.NUMAN","NH Sants Barcelona","NH Sants Barcelona","Urban","EUR"]
[null,null,null,"Spain","BU Spain, Portugal & Andorra","ESCA.SOTOG","NH Sotogrande","NH Sotogrande","Resort","EUR"]
[null,null,null,"Spain","BU Spain, Portugal & Andorra","ESZZ.SPORT","NH Sport","NH Sport","Urban","EUR"]
[null,null,null,"Spain","BU Spain, Portugal & Andorra","ESTF.TENER","NH Tenerife","NH Tenerife","Urban","EUR"]
[null,null,null,"Spain","BU Spain, Portugal & Andorra","ESTO.TOLED","NH Toledo","NH Toledo","Urban","EUR"]
[null,null,null,"Spain","BU Spain, Portugal & Andorra","ESCS.TURCO","NH Turcosa","NH Castellón Turcosa","Urban","EUR"]
[null,null,null,"Spain","BU Spain, Portugal & Andorra","ESMD.PARAV","NH Ventas","NH Madrid Ventas","Urban","EUR"]
[null,null,null,"Spain","BU Spain, Portugal & Andorra","ESSE.VIAPO","NH Viapol","NH Sevilla Viapol","Urban","EUR"]
[null,null,null,"Spain","BU Spain, Portugal & Andorra","ESMD.COSLA","NH Villa de Coslada","NH Villa de Coslada","Urban","EUR"]
[null,null,null,"Spain","BU Spain, Portugal & Andorra","ESZZ.ZARAG","NH Zaragoza Centro","NH Zaragoza Centro","Urban","EUR"]
[null,null,null,"Spain","BU Spain, Portugal & Andorra","ESBI.ZUBIA","NH Zubialde","NH Bilbao Zubialde","Urban","EUR"]
[null,null,null,"Spain","BU Spain, Portugal & Andorra","ESMD.ZURBA","NH Zurbano","NH Madrid Zurbano","Urban","EUR"]
[null,null,null,"Mexico","BU America","MXNL.MONFE","NH Monterrey La Fe","NH Monterrey La Fe","Urban","MXN","$"]
[null,null,null,"France","BU Benelux, UK, AF, F","FR13.COLMA","NH Collection Marseille","NH Collection Marseille","Urban","EUR"]
[null,null,null,"Spain","BU Spain, Portugal & Andorra","ESMD.GRVIA","NH Collection Gran Vía","NH Collection Madrid Gran Vía","Urban","EUR"]
[null,null,null,"Italy","BU Italy","ITVE.RIONO","NH Rio Novo","NH Venice Rio Novo","Urban","EUR"]
[null,null,null,"Spain","BU Spain, Portugal & Andorra","ESVL.COVAL","NH Collection Valencia Colón","NH Collection Valencia Colon","Urban","EUR"]
[null,null,null,"Chile","BU America","CLSC.COSTA","NH Collection Casacostanera","NH Collection Santiago Casacostanera","Urban","CLF","$"]
[null,null,null,"Mexico","BU America","MXYN.MERID","NH Collection Mérida Paseo Montejo","NH Collection Mérida Paseo Montejo","Urban","MXN","$"]
[null,null,null,"Mexico","BU America","MXDF.MECIT","NH Mexico City Reforma centro","NH Mexico City Reforma centro","Urban","MXN","$"]
[null,null,null,"Mexico","BU America",null,"TBC (NH Collection Monterrey La Esfera)","TBC (NH Collection Monterrey La Esfera)","Urban","MXN","$"]
[null,null,null,"France","BU Benelux, UK, AF, F","FR31.TOUAI","NH Toulouse Airport","NH Toulouse Airport","Airport","EUR"]
[null,null,null,"Chile","BU America",null,"TBC (NH Heroes de la Concepción)","TBC (NH Heroes de la Concepción Iquique)","Urban","CLF","$"]
[null,null,null,"Germany","BU Central Europe","DESN.LEZEN","NH Leipzig Zentrum","NH Leipzig Zentrum","Urban","EUR"]
[null,null,null,"Italy","BU Italy",null,"TBC (New Hotel in Milan)","TBC (New hotel in Milan)","Urban","EUR"]
[null,null,null,"Panamá","BU America","PA08.URBAN","TBC (NH Urban Royal Panamá)","TBC (NH Urban Royal Panamá)","Urban","$"]
[null,null,null,"United Kingdom","BU Benelux, UK, AF, F","GBLO.WLOND","nhow London","nhow London","Urban","GBP"]
[null,null,null,"The Netherlands","BU Benelux, UK, AF, F","NLNH.WAMST","nhow Amsterdam Rai","nhow Amsterdam Rai","Urban","EUR"]
[null,null,null,"Peru","BU America",null,"TBC (NH Parque Kennedy)","TBC (NH Parque Kennedy)","Urban"]
[null,null,null,"Mexico","BU America","MXQR.CANCU","NH Cancún Airport","NH Cancún Airport","Airport","MXN","$"]
[null,null,null,"Chile","BU America",null,"TBC (nhow La Dehesa)","TBC (nhow La Dehesa)","Urban","CLF","$"]
[null,null,null,"Belgium","BU Benelux, UK, AF, F","BEVA.ANTCE","NH Collection Antwerp Centre","NH Collection Antwerp Centre","Urban","EUR"]
[null,null,null,"Italy","BU Italy",null,"TBC (NH Collection Murano)","TBC (NH Collection Murano)","Urban","EUR"]
[null,null,null,"Spain","BU Spain, Portugal & Andorra",null,"TBC (New Hotel in Santander)","TBC (New Hotel in Santander)","Urban","EUR"]
[null,null,null,"Peru","BU America",null,"TBC (nhow Lima)","TBC (nhow Lima)","Urban"]
[null,null,null,"Germany","BU Central Europe",null,"TBC (New Hotel in Frankfurt)","TBC (New Hotel in Frankfurt)","Urban","EUR"]
[null,null,null,"Germany","BU Central Europe",null,"nhow Frankfurt","nhow Frankfurt","Urban","EUR"]
[null,null,null,"Argentina","BU America",null,"TBC (NH La Recova San Luis)","TBC (NH La Recova San Luis)","Urban","ARS","$"]
[null,null,null,"Panamá","BU America",null,"TBC (NH Ciudad de Panama)","TBC (NH Ciudad de Panama)","Urban"]
[null,null,null,"Ireland","BU Central Europe","IELD.MAKDU","Anantara The Marker Dublin","Anantara The Marker Dublin","Urban","EUR"]
[null,null,null,"Italy","BU Spain, Portugal & Andorra","ITVE.DDOGI","Grand Hotel Dei Dogi","Grand Hotel Dei Dogi","Urban","EUR"]
[null,null,null,"Italy","BU Spain, Portugal & Andorra","ITRM.NAIDI","Anantara Palazzo Naidai Rome Hotel","Anantara Palazzo Naidai Rome Hotel","Urban","EUR"]
[null,null,null,"Italy","BU Spain, Portugal & Andorra","ITVE.BELLI","Bellini Hotel","Bellini Hotel","Urban","EUR"]
[null,null,null,"Italy","BU Italy","ITVE.VERON","NH Collection Palazzo Verona","NH Collection Palazzo Verona","Urban","EUR"]
[null,null,null,"Italy","BU Italy","ITRM.FORIM","NH Collection Fori Imperiali","NH Collection Fori Imperiali","Urban","EUR"]
[null,null,null,"Portugal","BU Spain, Portugal & Andorra","PT11.LILIS","Tivoli Avenida Liberdade","Tivoli Avenida Liberdade Lisboa","Urban","EUR"]
[null,null,null,"Portugal","BU Spain, Portugal & Andorra","PT08.CARVO","Tivoli Carvoeiro","Tivoli Carvoeiro Algarve Resort","Urban","EUR"]
[null,null,null,"Portugal","BU Spain, Portugal & Andorra","PT06.COIMB","Tivoli Coimbra","Tivoli Coimbra","Urban","EUR"]
[null,null,null,"Portugal","BU Spain, Portugal & Andorra","PT07.EVORA","Tivoli Évora Ecoresort","Tivoli Évora Ecoresort","Urban","EUR"]
[null,null,null,"Portugal","BU Spain, Portugal & Andorra","PT08.LAGOS","Tivoli Lagos","Tivoli Lagos Algarve Resort","Urban","EUR"]
[null,null,null,"Portugal","BU Spain, Portugal & Andorra","PT08.PORTI","Tivoli Marina Portimão","Tivoli Marina Portimão Algarve Resort","Urban","EUR"]
[null,null,null,"Portugal","BU Spain, Portugal & Andorra","PT08.MAVIL","Tivoli Marina Vilamoura","Tivoli Marina Vilamoura Algarve Resort","Urban","EUR"]
[null,null,null,"Portugal","BU Spain, Portugal & Andorra","PT11.ORIEN","Tivoli Oriente","Tivoli Oriente Lisboa","Urban","EUR"]
[null,null,null,"Portugal","BU Spain, Portugal & Andorra","PT11.SINSE","Tivoli Palácio de Seteais","Tivoli Palácio de Seteais","Urban","EUR"]
[null,null,null,"Portugal","BU Spain, Portugal & Andorra","PT11.SINTR","Tivoli Sintra","Tivoli Sintra","Urban","EUR"]
[null,null,null,"Portugal","BU Spain, Portugal & Andorra","PT08.VICAL","Tivoli The Residences at Victoria Golf Club","The Residences at Victoria Algarve","Urban","EUR"]
[null,null,null,"Portugal","BU Spain, Portugal & Andorra","PT08.VILAM","Anantara Vilamoura","Anantara Vilamoura Algarve Resort","Urban","EUR"]
[null,null,null,"Spain","BU Spain, Portugal & Andorra","ESMA.VILPA","Anantara Villa Padierna Palace Benahavís Marbella Resort","Anantara Villa Padierna Palace Benahavís Marbella Resort","Urban","EUR"]

{"sheet":"HOTEL INFO","index":20,"n_rows":370,"n_cols":18,"rows_kept":370,"cut":false,"hidden":true,"merged":[]}
[null,null,null,null,null,null,null,null,null,null,null,null,null,null,"CENTER CODE","TMS CENTER CODE","CENTER CODE","TMS CENTER CODE"]
[null,"TMS CENTER CODE","CENTER CODE","HOTEL COMMERCIAL NAME","BUSINESS UNIT (NEW)","COUNTRY","CITY","TYPE","FIRST CURRENCY",null,null,null,null,null,435,"ARCC.JULIO",435,"ARCC.JULIO"]
[null,"ARCC.JULIO",{"$f":"VLOOKUP(B3,$P$2:$Q$367,2,FALSE)","v":435},"NH Buenos Aires 9 de Julio","BU America","Argentina","Buenos Aires","Urban","USD"," - ",null,null,null,null,168,"ARCC.CITYA",168,"ARCC.CITYA"]
[null,"ARCC.CITYA",{"$f":"VLOOKUP(B4,$P$2:$Q$367,2,FALSE)","v":168},"NH Buenos Aires City","BU America","Argentina","Buenos Aires","Urban","USD"," - ",null,null,null,null,492,"ARCC.TOWAR",492,"ARCC.TOWAR"]
[null,"ARCC.TOWAR",492,"NH Collection Buenos Aires Centro Histórico","BU America","Argentina","Buenos Aires","Urban","USD"," - ",null,null,null,null,161,"ARCC.JOUST",161,"ARCC.JOUST"]
[null,"ARCC.JOUST",161,"NH Collection Buenos Aires Jousten","BU America","Argentina","Buenos Aires","Urban","USD"," - ",null,null,null,null,432,"ARCC.LANCA",432,"ARCC.LANCA"]
[null,"ARCC.LANCA",432,"NH Collection Buenos Aires Lancaster","BU America","Argentina","Buenos Aires","Urban","USD"," - ",null,null,null,null,430,"ARCC.CRILL",430,"ARCC.CRILL"]
[null,"ARCC.CRILL",430,"NH Collection Buenos Aires Crillon","BU America","Argentina","Buenos Aires","Urban","USD"," - ",null,null,null,null,638,"ARRR.EDELW",638,"ARRR.EDELW"]
[null,"ARRR.EDELW",638,"NH Bariloche Edelweiss","BU America","Argentina","Bariloche","Urban","USD"," - ",null,null,null,null,160,"ARCC.FLORA",160,"ARCC.FLORA"]
[null,"ARCC.FLORA",160,"NH Buenos Aires Florida","BU America","Argentina","Buenos Aires","Urban","USD"," - ",null,null,null,null,436,"ARBB.PROVI",436,"ARBB.PROVI"]
[null,"ARBB.PROVI",436,"NH Gran Hotel Provincial","BU America","Argentina","Mar del Plata","Urban","USD"," - ",null,null,null,null,461,"ARBB.CASIA",461,"ARBB.CASIA"]
[null,"ARBB.CASIA",461,"NH Hotel Casino","BU America","Argentina","Mar del Plata","Urban","USD"," - ",null,null,null,null,162,"ARCC.LATIN",162,"ARCC.LATIN"]
[null,"ARCC.LATIN",162,"NH Buenos Aires Latino","BU America","Argentina","Buenos Aires","Urban","USD"," - ",null,null,null,null,169,"ARMM.CORDI",169,"ARMM.CORDI"]
[null,"ARMM.CORDI",169,"NH Mendoza Cordillera","BU America","Argentina","Mendoza","Urban","USD"," - ",null,null,null,null,163,"ARXX.PANOR",163,"ARXX.PANOR"]
[null,"ARXX.PANOR",163,"NH Córdoba Panorama","BU America","Argentina","Cordoba (AR)","Urban","USD"," - ",null,null,null,null,433,"ARCC.TANGO",433,"ARCC.TANGO"]
[null,"ARCC.TANGO",433,"NH Buenos Aires Tango","BU America","Argentina","Buenos Aires","Urban","USD"," - ",null,null,null,null,164,"ARXX.URBAN",164,"ARXX.URBAN"]
[null,"ARXX.URBAN",164,"NH Córdoba Urbano","BU America","Argentina","Cordoba (AR)","Urban","USD"," - ",null,null,null,null,410,"AT09.ATTER",410,"AT09.ATTER"]
[null,"AT09.ATTER",410,"NH Collection Wien Zentrum","BU Northern Europe","Austria","Vienna","Urban","EUR"," - ",null,null,null,null,657,"AT09.DANUB",657,"AT09.DANUB"]
[null,"AT09.DANUB",657,"NH Danube City","BU Northern Europe","Austria","Vienna","Urban","EUR"," - ",null,null,null,null,833,"AT06.GRAZC",833,"AT06.GRAZC"]
[null,"AT06.GRAZC",833,"NH Graz City","BU Northern Europe","Austria","Graz","Urban","EUR"," - ",null,null,null,null,413,"AT05.SALZB",413,"AT05.SALZB"]
[null,"AT05.SALZB",413,"NH Collection Salzburg City","BU Northern Europe","Austria","Salzburg","Urban","EUR"," - ",null,null,null,null,414,"AT09.VIEAI",414,"AT09.VIEAI"]
[null,"AT09.VIEAI",414,"NH Vienna Airport Conference Center","BU Northern Europe","Austria","Vienna","Urban","EUR"," - ",null,null,null,null,411,"AT09.BELVE",411,"AT09.BELVE"]
[null,"AT09.BELVE",411,"NH Wien Belvedere","BU Northern Europe","Austria","Vienna","Urban","EUR"," - ",null,null,null,null,415,"AT09.WIEN",415,"AT09.WIEN"]
[null,"AT09.WIEN",415,"NH Wien City","BU Northern Europe","Austria","Vienna","Urban","EUR"," - ",null,null,null,null,346,"BEWV.BRUGG",346,"BEWV.BRUGG"]
[null,"BEWV.BRUGG",346,"NH Brugge","BU Northern Europe","Belgium","Bruges","Urban","EUR"," - ",null,null,null,null,203,"BEBR.BRUAI",203,"BEBR.BRUAI"]
[null,"BEBR.BRUAI",203,"NH Brussels Airport","BU Northern Europe","Belgium","Brussels","Airport","EUR"," - ",null,null,null,null,941,"BEBR.BLOOM",941,"BEBR.BLOOM"]
[null,"BEBR.BLOOM",941,"nhow Brussels Bloom","BU Northern Europe","Belgium","Brussels","Urban","EUR"," - ",null,null,null,null,940,"BEBR.BERLA",940,"BEBR.BERLA"]
[null,"BEBR.BERLA",940,"NH Brussels EU Berlaymont","BU Northern Europe","Belgium","Brussels","Urban","EUR"," - ",null,null,null,null,202,"BEBR.BRUCI",202,"BEBR.BRUCI"]
[null,"BEBR.BRUCI",202,"NH Brussels Louise","BU Northern Europe","Belgium","Brussels","Urban","EUR"," - ",null,null,null,null,627,"BEBR.EUROP",627,"BEBR.EUROP"]
[null,"BEBR.EUROP",627,"NH Brussels Carrefour de l’Europe","BU Northern Europe","Belgium","Brussels","Urban","EUR"," - ",null,null,null,null,242,"BEBR.ATLAB",242,"BEBR.ATLAB"]
[null,"BEBR.ATLAB",242,"NH Collection Brussels Centre","BU Northern Europe","Belgium","Brussels","Urban","EUR"," - ",null,null,null,null,760,"BEBR.SABLO",760,"BEBR.SABLO"]
[null,"BEBR.SABLO",760,"NH Collection Brussels Grand Sablon","BU Northern Europe","Belgium","Brussels","Urban","EUR"," - ",null,null,null,null,345,"BEOV.BELFO",345,"BEOV.BELFO"]
[null,"BEOV.BELFO",345,"NH Gent Belfort","BU Northern Europe","Belgium","Ghent","Urban","EUR"," - ",null,null,null,null,204,"BEBR.GPARE",204,"BEBR.GPARE"]
[null,"BEBR.GPARE",204,"NH Brussels Grand Place Arenberg","BU Northern Europe","Belgium","Brussels","Urban","EUR"," - ",null,null,null,null,408,"BEAN.MECHE",408,"BEAN.MECHE"]
[null,"BEAN.MECHE",408,"NH Mechelen","BU Northern Europe","Belgium","Mechlin","Urban","EUR"," - ",null,null,null,null,201,"BEBR.STEPH",201,"BEBR.STEPH"]
[null,"BEBR.STEPH",201,"NH Brussels Stéphanie","BU Northern Europe","Belgium","Brussels","Urban","EUR"," - ",null,null,null,null,810,"T_0810",810,"T_0810"]
[null,"T_0810",810,"NH Curitiba The Five","BU America","Brasil","Curitiba","Urban","BRL"," - ",null,null,null,null,670,"CLSC.ANTOF",670,"CLSC.ANTOF"]
[null,"CLSC.ANTOF",670,"NH Antofagasta","BU America","Chile","Antofagasta","Urban","USD"," - ",null,null,null,null,166,"CLRM.SANTI",166,"CLRM.SANTI"]
[null,"CLRM.SANTI",166,"NH Ciudad de Santiago","BU America","Chile","Santiago de Chile","Urban","USD"," - ",null,null,null,null,935,"CLSC.COSTA",935,"CLSC.COSTA"]
[null,"CLSC.COSTA",935,"NH Collection Santiago Casacostanera","BU America","Chile","Santiago de Chile","Urban","USD"," - ",null,null,null,null,667,"CLSC.PSANT",667,"CLSC.PSANT"]
[null,"CLSC.PSANT",667,"NH Collection Plaza Santiago","BU America","Chile","Santiago de Chile","Urban","USD"," - ",null,null,null,null,669,"CLSC.IQUIU",669,"CLSC.IQUIU"]
[null,"CLSC.IQUIU",669,"NH Iquique","BU America","Chile","Iquique","Urban","USD"," - ",null,null,null,null,685,"COBO.ANDIN",685,"COBO.ANDIN"]
[null,"COBO.ANDIN",685,"NH Collection Bogotá Andino Royal","BU America","Colombia","Bogota","Urban","COP","USD",null,null,null,null,684,"COBO.HACIE",684,"COBO.HACIE"]
[null,"COBO.HACIE",684,"NH Collection Bogotá Hacienda Royal","BU America","Colombia","Bogota","Urban","COP","USD",null,null,null,null,687,"COME.MEDEL",687,"COME.MEDEL"]
[null,"COME.MEDEL",687,"NH Collection Medellín Royal","BU America","Colombia","Medellin","Urban","COP","USD",null,null,null,null,688,"COBA.SMART",688,"COBA.SMART"]
[null,"COBA.SMART",688,"NH Collection Barranquilla Smartsuites Royal","BU America","Colombia","Barranquilla","Urban","COP","USD",null,null,null,null,683,"COBO.BOGOT",683,"COBO.BOGOT"]
[null,"COBO.BOGOT",683,"NH Collection Bogotá Teleport Royal","BU America","Colombia","Bogota","Urban","COP","USD",null,null,null,null,682,"COBO.TERRA",682,"COBO.TERRA"]
[null,"COBO.TERRA",682,"NH Collection Bogotá Terra 100 Royal","BU America","Colombia","Bogota","Urban","COP","USD",null,null,null,null,680,"COBO.WTCBO",680,"COBO.WTCBO"]
[null,"COBO.WTCBO",680,"NH Collection Bogotá WTC Royal","BU America","Colombia","Bogota","Urban","COP","USD",null,null,null,null,689,"COCA.CALI",689,"COCA.CALI"]
[null,"COCA.CALI",689,"NH Cali Royal","BU America","Colombia","Cali","Urban","COP","USD",null,null,null,null,686,"COBO.BOHEM",686,"COBO.BOHEM"]
[null,"COBO.BOHEM",686,"NH Bogotá Boheme Royal","BU America","Colombia","Bogota","Urban","COP","USD",null,null,null,null,679,"COBO.PAVIL",679,"COBO.PAVIL"]
[null,"COBO.PAVIL",679,"NH Bogotá Pavillon Royal","BU America","Colombia","Bogota","Urban","COP","USD",null,null,null,null,677,"COBO.URB26",677,"COBO.URB26"]
[null,"COBO.URB26",677,"NH Bogotá Urban 26 Royal","BU America","Colombia","Bogota","Urban","COP","USD",null,null,null,null,678,"COBO.URB93",678,"COBO.URB93"]
[null,"COBO.URB93",678,"NH Bogotá Urban 93 Royal","BU America","Colombia","Bogota","Urban","COP","USD",null,null,null,null,690,"COCG.CARTA",690,"COCG.CARTA"]
[null,"COCG.CARTA",690,"NH Cartagena Urban Royal","BU America","Colombia","Cartagena (CO)","Urban","COP","USD",null,null,null,null,366,null,366]
[null,null,{"$error":"#N/A"},"NH Capri La Habana","BU America","Cuba",null,"Urban",{"$error":"#N/A"}," - ",null,null,null,null,957,"T_0957",957,"T_0957"]
[null,"T_0957",957,"NH Collection Victoria La Habana","BU America","Cuba","La Habana","Urban",{"$error":"#N/A"}," - ",null,null,null,null,451,"CZOL.OLOMO",451,"CZOL.OLOMO"]
[null,"CZOL.OLOMO",451,"NH Collection Olomouc Congress","BU Northern Europe","Czech Republic","Olomouc","Urban","EUR"," - ",null,null,null,null,960,"CZPR.COPRA",960,"CZPR.COPRA"]
[null,"CZPR.COPRA",960,"NH Collection Prague","BU Northern Europe","Czech Republic","Prague","Urban","EUR"," - ",null,null,null,null,469,"CZPR.PRAGU",469,"CZPR.PRAGU"]
[null,"CZPR.PRAGU",469,"NH Prague City","BU Northern Europe","Czech Republic","Prague","Urban","EUR"," - ",null,null,null,null,693,"ECQU.QUITO",693,"ECQU.QUITO"]
[null,"ECQU.QUITO",693,"NH Collection Quito Royal","BU America","Ecuador","Quito","Urban","USD"," - ",null,null,null,null,826,"FR13.COLMA",826,"FR13.COLMA"]
[null,"FR13.COLMA",826,"NH Collection Marseille","BU Southern Europe","France","Marseille","Urban","EUR"," - ",null,null,null,null,758,"FR69.LYONA",758,"FR69.LYONA"]
[null,"FR69.LYONA",758,"NH Lyon Airport","BU Southern Europe","France","Lyon","Airport","EUR"," - ",null,null,null,null,753,"FR06.NICE",753,"FR06.NICE"]
[null,"FR06.NICE",753,"NH Nice","BU Southern Europe","France","Nice","Urban","EUR"," - ",null,null,null,null,835,"FR31.TOUAI",835,"FR31.TOUAI"]
[null,"FR31.TOUAI",835,"NH Toulouse Airport","BU Southern Europe","France","Toulouse","Airport","EUR"," - ",null,null,null,null,754,"FR13.MARSE",754,"FR13.MARSE"]
[null,"FR13.MARSE",754,"nhow Marseille","BU Southern Europe","France","Marseille","Urban","EUR"," - ",null,null,null,null,189,"DEBE.ALEXA",189,"DEBE.ALEXA"]
[null,"DEBE.ALEXA",189,"NH Berlin Alexanderplatz","BU Northern Europe","Germany","Berlin","Urban","EUR"," - ",null,null,null,null,256,"DEBE.FRALL",256,"DEBE.FRALL"]
[null,"DEBE.FRALL",{"$f":"VLOOKUP(B68,$P$2:$Q$367,2,FALSE)","v":256},"NH Berlin City Ost","BU Northern Europe","Germany","Berlin","Urban","EUR"," - ",null,null,null,null,198,"DEBE.KUFUR",198,"DEBE.KUFUR"]
[null,"DEBE.KUFUR",198,"NH Berlin Kurfürstendamm","BU Northern Europe","Germany","Berlin","Urban","EUR"," - ",null,null,null,null,442,"DEBE.PPLAT",442,"DEBE.PPLAT"]
[null,"DEBE.PPLAT",442,"NH Berlin Potsdamer Platz","BU Northern Europe","Germany","Berlin","Urban","EUR"," - ",null,null,null,null,194,"DERP.BINGE",194,"DERP.BINGE"]
[null,"DERP.BINGE",194,"NH Bingen","BU Northern Europe","Germany","Bingen am Rhein","Urban","EUR"," - ",null,null,null,null,772,"DEBE.FRIED",772,"DEBE.FRIED"]
[null,"DEBE.FRIED",772,"NH Collection Berlin Mitte Friedrichstrasse","BU Northern Europe","Germany","Berlin","Urban","EUR"," - ",null,null,null,null,190,"DEBE.MITTE",190,"DEBE.MITTE"]
[null,"DEBE.MITTE",190,"NH Collection Berlin Mitte am Checkpoint Charlie","BU Northern Europe","Germany","Berlin","Urban","EUR"," - ",null,null,null,null,443,"DESN.DALTM",443,"DESN.DALTM"]
[null,"DESN.DALTM",443,"NH Collection Dresden Altmarkt","BU Northern Europe","Germany","Dresden","Urban","EUR"," - ",null,null,null,null,290,"DEHE.FRCIT",290,"DEHE.FRCIT"]
[null,"DEHE.FRCIT",290,"NH Collection Frankfurt City","BU Northern Europe","Germany","Frankfurt","Urban","EUR"," - ",null,null,null,null,260,"DEHH.HACIT",260,"DEHH.HACIT"]
[null,"DEHH.HACIT",260,"NH Collection Hamburg City","BU Northern Europe","Germany","Hamburg","Urban","EUR"," - ",null,null,null,null,773,"DENW.KOMED",773,"DENW.KOMED"]
[null,"DENW.KOMED",773,"NH Collection Köln Mediapark","BU Northern Europe","Germany","Cologne","Urban","EUR"," - ",null,null,null,null,271,"DEBY.KAISE",271,"DEBY.KAISE"]
[null,"DEBY.KAISE",271,"NH Collection München Bavaria","BU Northern Europe","Germany","Munich","Urban","EUR"," - ",null,null,null,null,325,"DEBY.NUCIT",325,"DEBY.NUCIT"]
[null,"DEBY.NUCIT",325,"NH Collection Nürnberg City","BU Northern Europe","Germany","Nuremberg","Urban","EUR"," - ",null,null,null,null,182,"DENW.DORTM",182,"DENW.DORTM"]
[null,"DENW.DORTM",182,"NH Dortmund","BU Northern Europe","Germany","Dortmund","Urban","EUR"," - ",null,null,null,null,237,"DESN.DRESD",237,"DESN.DRESD"]
[null,"DESN.DRESD",237,"NH Dresden Neustadt","BU Northern Europe","Germany","Dresden","Urban","EUR"," - ",null,null,null,null,181,"DENW.DUCIT",181,"DENW.DUCIT"]
[null,"DENW.DUCIT",181,"NH Düsseldorf City","BU Northern Europe","Germany","Düsseldorf","Urban","EUR"," - ",null,null,null,null,239,"DENW.DUNOR",239,"DENW.DUNOR"]
[null,"DENW.DUNOR",239,"NH Düsseldorf City Nord","BU Northern Europe","Germany","Düsseldorf","Urban","EUR"," - ",null,null,null,null,419,"DENW.DUCCE",419,"DENW.DUCCE"]
[null,"DENW.DUCCE",419,"NH Düsseldorf Königsallee ","BU Northern Europe","Germany","Düsseldorf","Urban","EUR"," - ",null,null,null,null,252,"DEBY.ERLAN",252,"DEBY.ERLAN"]
[null,"DEBY.ERLAN",252,"NH Erlangen","BU Northern Europe","Germany","Erlangen","Urban","EUR"," - ",null,null,null,null,808,"DENW.ESSEN",808,"DENW.ESSEN"]
[null,"DENW.ESSEN",808,"NH Essen","BU Northern Europe","Germany","Essen","Urban","EUR"," - ",null,null,null,null,187,"DEHE.FRAIR",187,"DEHE.FRAIR"]
[null,"DEHE.FRAIR",187,"NH Frankfurt Airport","BU Northern Europe","Germany","Frankfurt","Airport","EUR"," - ",null,null,null,null,188,"DEHE.FRHEM",188,"DEHE.FRHEM"]
[null,"DEHE.FRHEM",188,"NH Frankfurt Airport West","BU Northern Europe","Germany","Frankfurt","Airport","EUR"," - ",null,null,null,null,460,"DEHE.FRMES",460,"DEHE.FRMES"]
[null,"DEHE.FRMES",460,"NH Frankfurt Messe","BU Northern Europe","Germany","Frankfurt","Urban","EUR"," - ",null,null,null,null,258,"DEHE.NIEDE",258,"DEHE.NIEDE"]
[null,"DEHE.NIEDE",258,"NH Frankfurt Niederrad","BU Northern Europe","Germany","Frankfurt","Airport","EUR"," - ",null,null,null,null,186,"DEHE.DIVIF",186,"DEHE.DIVIF"]
[null,"DEHE.DIVIF",186,"NH Frankfurt Villa","BU Northern Europe","Germany","Frankfurt","Urban","EUR"," - ",null,null,null,null,276,"DEBY.FURNU",276,"DEBY.FURNU"]
[null,"DEBY.FURNU",276,"NH Fürth Nürnberg","BU Northern Europe","Germany","Fürth","Urban","EUR"," - ",null,null,null,null,262,"DEHH.HAALT",262,"DEHH.HAALT"]
[null,"DEHH.HAALT",262,"NH Hamburg Altona","BU Northern Europe","Germany","Hamburg","Urban","EUR"," - ",null,null,null,null,255,"DEHH.HAMIT",255,"DEHH.HAMIT"]
[null,"DEHH.HAMIT",255,"NH Hamburg Mitte","BU Northern Europe","Germany","Hamburg","Urban","EUR"," - ",null,null,null,null,263,"DEBW.HEIDE",263,"DEBW.HEIDE"]
[null,"DEBW.HEIDE",263,"NH Heidelberg","BU Northern Europe","Germany","Heidelberg","Urban","EUR"," - ",null,null,null,null,265,"DEBW.HIRSC",265,"DEBW.HIRSC"]
[null,"DEBW.HIRSC",265,"NH Hirschberg Heidelberg","BU Northern Europe","Germany","Hirschberg","Urban","EUR"," - ",null,null,null,null,261,"DEHH.HAHOR",261,"DEHH.HAHOR"]
[null,"DEHH.HAHOR",261,"NH Hamburg Horner Rennbahn","BU Northern Europe","Germany","Hamburg","Urban","EUR"," - ",null,null,null,null,266,"DEBY.INGOL",266,"DEBY.INGOL"]
[null,"DEBY.INGOL",266,"NH Ingolstadt","BU Northern Europe","Germany","Ingolstadt","Urban","EUR"," - ",null,null,null,null,275,"DEBY.NORDI",275,"DEBY.NORDI"]
[null,"DEBY.NORDI",275,"NH Klösterle Nördlingen","BU Northern Europe","Germany","Nördlingen","Urban","EUR"," - ",null,null,null,null,185,"DENW.KOCIT",185,"DENW.KOCIT"]
[null,"DENW.KOCIT",185,"NH Köln Altstadt","BU Northern Europe","Germany","Cologne","Urban","EUR"," - ",null,null,null,null,268,"DESN.LEIPZ",268,"DESN.LEIPZ"]
[null,"DESN.LEIPZ",268,"NH Leipzig Messe","BU Northern Europe","Germany","Leipzig","Urban","EUR"," - ",null,null,null,null,818,"DESN.LEZEN",818,"DESN.LEZEN"]
[null,"DESN.LEZEN",818,"NH Leipzig Zentrum","BU Northern Europe","Germany","Leipzig","Urban","EUR"," - ",null,null,null,null,457,"DEBW.LUDWI",457,"DEBW.LUDWI"]
[null,"DEBW.LUDWI",457,"NH Ludwigsburg","BU Northern Europe","Germany","Ludwigsburg","Urban","EUR"," - ",null,null,null,null,269,"DEST.MAGDE",269,"DEST.MAGDE"]
[null,"DEST.MAGDE",269,"NH Magdeburg","BU Northern Europe","Germany","Magdeburg","Urban","EUR"," - ",null,null,null,null,819,"DEBW.MANNH",819,"DEBW.MANNH"]
[null,"DEBW.MANNH",819,"NH Mannheim","BU Northern Europe","Germany","Mannheim","Urban","EUR"," - ",null,null,null,null,282,"DEBW.MANHE",282,"DEBW.MANHE"]
[null,"DEBW.MANHE",282,"NH Mannheim Viernheim","BU Northern Europe","Germany","Mannheim","Urban","EUR"," - ",null,null,null,null,270,"DEBY.MUNAI",270,"DEBY.MUNAI"]
[null,"DEBY.MUNAI",270,"NH München Airport","BU Northern Europe","Germany","Munich","Airport","EUR"," - ",null,null,null,null,274,"DEBY.MAMRI",274,"DEBY.MAMRI"]
[null,"DEBY.MAMRI",274,"NH München City Süd","BU Northern Europe","Germany","Munich","Urban","EUR"," - ",null,null,null,null,272,"DEBY.NEUME",272,"DEBY.NEUME"]
[null,"DEBY.NEUME",272,"NH München Messe","BU Northern Europe","Germany","Munich","Urban","EUR"," - ",null,null,null,null,183,"DEBY.DORNA",183,"DEBY.DORNA"]
[null,"DEBY.DORNA",183,"NH München Ost Conference Center ","BU Northern Europe","Germany","Munich","Urban","EUR"," - ",null,null,null,null,273,"DEBY.UNTER",273,"DEBY.UNTER"]
[null,"DEBY.UNTER",273,"NH München Unterhaching","BU Northern Europe","Germany","Munich","Urban","EUR"," - ",null,null,null,null,184,"DENW.OBERH",184,"DENW.OBERH"]
[null,"DENW.OBERH",184,"NH Oberhausen","BU Northern Europe","Germany","Oberhausen","Urban","EUR"," - ",null,null,null,null,278,"DEBB.VOLTA",278,"DEBB.VOLTA"]
[null,"DEBB.VOLTA",278,"NH Potsdam","BU Northern Europe","Germany","Potsdam","Urban","EUR"," - ",null,null,null,null,279,"DEMV.SCHWE",279,"DEMV.SCHWE"]
[null,"DEMV.SCHWE",279,"NH Schwerin","BU Northern Europe","Germany","Schwerin","Urban","EUR"," - ",null,null,null,null,281,"DEBW.STUAI",281,"DEBW.STUAI"]
[null,"DEBW.STUAI",281,"NH Stuttgart Airport","BU Northern Europe","Germany","Stuttgart","Airport","EUR"," - ",null,null,null,null,280,"DEBW.SINDE",280,"DEBW.SINDE"]
[null,"DEBW.SINDE",280,"NH Stuttgart Sindelfingen","BU Northern Europe","Germany","Stuttgart","Urban","EUR"," - ",null,null,null,null,283,"DEBW.WEINH",283,"DEBW.WEINH"]
[null,"DEBW.WEINH",283,"NH Weinheim","BU Northern Europe","Germany","Weinheim","Urban","EUR"," - ",null,null,null,null,285,"DEHE.AUKWI",285,"DEHE.AUKWI"]
[null,"DEHE.AUKWI",285,"NH Wiesbaden","BU Northern Europe","Germany","Wiesbaden","Urban","EUR"," - ",null,null,null,null,458,"DEBE.WBERL",458,"DEBE.WBERL"]
[null,"DEBE.WBERL",458,"nhow Berlin","BU Northern Europe","Germany","Berlin","Urban","EUR"," - ",null,null,null,null,365,"HTOU.HAITI",365,"HTOU.HAITI"]
[null,"HTOU.HAITI",365,"NH Haiti El Rancho","BU America","Haiti","Port au Prince","Urban","USD"," - ",null,null,null,null,291,"HUBU.BUDAP",291,"HUBU.BUDAP"]
[null,"HUBU.BUDAP",291,"NH Budapest City","BU Northern Europe","Hungary","Budapest","Urban","EUR"," - ",null,null,null,null,729,"ITAN.ANCON",729,"ITAN.ANCON"]
[null,"ITAN.ANCON",729,"NH Ancona","BU Southern Europe","Italy","Ancona","Urban","EUR"," - ",null,null,null,null,730,"ITBG.BERGA",730,"ITBG.BERGA"]
[null,"ITBG.BERGA",730,"NH Bergamo","BU Southern Europe","Italy","Bergamo","Urban","EUR"," - ",null,null,null,null,731,"ITBO.BOGAR",731,"ITBO.BOGAR"]
[null,"ITBO.BOGAR",731,"NH Bologna de la Gare","BU Southern Europe","Italy","Bologna","Urban","EUR"," - ",null,null,null,null,732,"ITBO.BOVIL",732,"ITBO.BOVIL"]
[null,"ITBO.BOVIL",732,"NH Bologna Villanova","BU Southern Europe","Italy","Bologna","Airport","EUR"," - ",null,null,null,null,735,"ITCT.BELLI",735,"ITCT.BELLI"]
[null,"ITCT.BELLI",735,"NH Catania Centro","BU Southern Europe","Italy","Catania","Urban","EUR"," - ",null,null,null,null,716,"ITRM.GIUST",716,"ITRM.GIUST"]
[null,"ITRM.GIUST",716,"NH Collection Roma Giustiniano","BU Southern Europe","Italy","Rome","Urban","EUR"," - ",null,null,null,null,718,"ITSA.AMALF",718,"ITSA.AMALF"]
[null,"ITSA.AMALF",718,"NH Collection Grand Hotel Convento di Amalfi","BU Southern Europe","Italy","Amalfi Coast","Urban","EUR"," - ",null,null,null,null,737,"ITGE.MARIN",737,"ITGE.MARIN"]
[null,"ITGE.MARIN",737,"NH Collection Genova Marina ","BU Southern Europe","Italy","Genoa","Urban","EUR"," - ",null,null,null,null,807,"ITRM.CINQU",807,"ITRM.CINQU"]
[null,"ITRM.CINQU",807,"NH Collection Roma Palazzo Cinquecento","BU Southern Europe","Italy","Rome","Urban","EUR"," - ",null,null,null,null,793,"ITTO.CARLI",793,"ITTO.CARLI"]
[null,"ITTO.CARLI",793,"NH Collection Torino Piazza Carlina","BU Southern Europe","Italy","Turin","Urban","EUR"," - ",null,null,null,null,708,"ITMI.VERDI",708,"ITMI.VERDI"]
[null,"ITMI.VERDI",{"$f":"VLOOKUP(B132,$P$2:$Q$367,2,FALSE)","v":708},"NH Collection Milano Porta Nuova","BU Southern Europe","Italy","Milan","Urban","EUR"," - ",null,null,null,null,783,"ITFI.ROSSA",783,"ITFI.ROSSA"]
[null,"ITFI.ROSSA",783,"NH Collection Firenze Porta Rossa","BU Southern Europe","Italy","Florence","Urban","EUR"," - ",null,null,null,null,744,"ITMI.MPRES",744,"ITMI.MPRES"]
[null,"ITMI.MPRES",744,"NH Collection Milano President","BU Southern Europe","Italy","Milan","Urban","EUR"," - ",null,null,null,null,762,"ITRM.LEONA",762,"ITRM.LEONA"]
[null,"ITRM.LEONA",762,"NH Collection Roma Centro","BU Southern Europe","Italy","Rome","Urban","EUR"," - ",null,null,null,null,805,"ITME.TAORM",805,"ITME.TAORM"]
[null,"ITME.TAORM",805,"NH Collection Taormina","BU Southern Europe","Italy","Taormina","Urban","EUR"," - ",null,null,null,null,764,"ITRM.VITTO",764,"ITRM.VITTO"]
[null,"ITRM.VITTO",764,"NH Collection Roma Vittorio Veneto","BU Southern Europe","Italy","Rome","Urban","EUR"," - ",null,null,null,null,757,"ITMI.FIERA",757,"ITMI.FIERA"]
[null,"ITMI.FIERA",757,"NH Milano Fiera","BU Southern Europe","Italy","Milan","Urban","EUR"," - ",null,null,null,null,736,"ITFI.FIREN",736,"ITFI.FIREN"]
[null,"ITFI.FIREN",736,"NH Firenze","BU Southern Europe","Italy","Florence","Urban","EUR"," - ",null,null,null,null,738,"ITGE.PLAZA",738,"ITGE.PLAZA"]
[null,"ITGE.PLAZA",738,"NH Genova Centro","BU Southern Europe","Italy","Genoa","Urban","EUR"," - ",null,null,null,null,740,"ITSP.SPEZI",740,"ITSP.SPEZI"]
[null,"ITSP.SPEZI",740,"NH La Spezia","BU Southern Europe","Italy","La Spezia - Cinque Terre","Urban","EUR"," - ",null,null,null,null,701,"ITVE.LAGUN",701,"ITVE.LAGUN"]
[null,"ITVE.LAGUN",701,"NH Venezia Laguna Palace","BU Southern Europe","Italy","Venice","Urban","EUR"," - ",null,null,null,null,782,"ITMI.LINAT",782,"ITMI.LINAT"]
[null,"ITMI.LINAT",782,"NH Linate","BU Southern Europe","Italy","Milan","Airport","EUR"," - ",null,null,null,null,792,"ITTO.LINGO",792,"ITTO.LINGO"]
[null,"ITTO.LINGO",792,"NH Torino Lingotto Congress","BU Southern Europe","Italy","Turin","Urban","EUR"," - ",null,null,null,null,743,"ITMI.MACHI",743,"ITMI.MACHI"]
[null,"ITMI.MACHI",743,"NH Milano Machiavelli","BU Southern Europe","Italy","Milan","Urban","EUR"," - ",null,null,null,null,742,"ITMI.MILA2",742,"ITMI.MILA2"]
[null,"ITMI.MILA2",742,"NH Milano 2","BU Southern Europe","Italy","Milan","Urban","EUR"," - ",null,null,null,null,771,"ITMI.RESID",771,"ITMI.RESID"]
[null,"ITMI.RESID",771,"NH Milano 2 Residence","BU Southern Europe","Italy","Milan","Urban","EUR"," - ",null,null,null,null,746,"ITMI.FIORI",746,"ITMI.FIORI"]
[null,"ITMI.FIORI",746,"NH Milano Congress Centre","BU Southern Europe","Italy","Milan","Urban","EUR"," - ",null,null,null,null,745,"ITMI.TOURI",745,"ITMI.TOURI"]
[null,"ITMI.TOURI",745,"NH Milano Touring","BU Southern Europe","Italy","Milan","Urban","EUR"," - ",null,null,null,null,747,"ITNA.AMDOR",747,"ITNA.AMDOR"]
[null,"ITNA.AMDOR",747,"NH Napoli Panorama","BU Southern Europe","Italy","Naples","Urban","EUR"," - ",null,null,null,null,706,"ITBG.ORIO",706,"ITBG.ORIO"]
[null,"ITBG.ORIO",706,"NH Orio al Serio","BU Southern Europe","Italy","Bergamo","Airport","EUR"," - ",null,null,null,null,717,"ITPD.MANTE",717,"ITPD.MANTE"]
[null,"ITPD.MANTE",717,"NH Padova","BU Southern Europe","Italy","Padua","Urban","EUR"," - ",null,null,null,null,806,"ITMI.MOSCO",806,"ITMI.MOSCO"]
[null,"ITMI.MOSCO",806,"NH Milano Palazzo Moscova","BU Southern Europe","Italy","Milan","Urban","EUR"," - ",null,null,null,null,748,"ITPA.PALER",748,"ITPA.PALER"]
[null,"ITPA.PALER",748,"NH Palermo","BU Southern Europe","Italy","Palermo","Urban","EUR"," - ",null,null,null,null,720,"ITCT.PARCO",720,"ITCT.PARCO"]
[null,"ITCT.PARCO",720,"NH Catania Parco Degli Aragonesi","BU Southern Europe","Italy","Catania","Airport","EUR"," - ",null,null,null,null,789,"ITPR.PARMA",789,"ITPR.PARMA"]
[null,"ITPR.PARMA",789,"NH Parma","BU Southern Europe","Italy","Parma","Urban","EUR"," - ",null,null,null,null,749,"ITPI.CAVAL",749,"ITPI.CAVAL"]
[null,"ITPI.CAVAL",749,"NH Pisa ","BU Southern Europe","Italy","Pisa","Urban","EUR"," - ",null,null,null,null,741,"ITLC.PONTE",741,"ITLC.PONTE"]
[null,"ITLC.PONTE",741,"NH Lecco Pontevecchio","BU Southern Europe","Italy","Lecco - Lago di Como","Urban","EUR"," - ",null,null,null,null,761,"ITRA.RAVEN",761,"ITRA.RAVEN"]
[null,"ITRA.RAVEN",761,"NH Ravenna","BU Southern Europe","Italy","Ravenna","Urban","EUR"," - ",null,null,null,null,813,"ITVE.RIONO",813,"ITVE.RIONO"]
[null,"ITVE.RIONO",813,"NH Venezia Rio Novo","BU Southern Europe","Italy","Venice","Urban","EUR"," - ",null,null,null,null,702,"ITTO.STEFA",702,"ITTO.STEFA"]
[null,"ITTO.STEFA",702,"NH Torino Santo Stefano","BU Southern Europe","Italy","Turin","Urban","EUR"," - ",null,null,null,null,781,"ITSV.DARSE",781,"ITSV.DARSE"]
[null,"ITSV.DARSE",781,"NH Savona Darsena","BU Southern Europe","Italy","Savona","Urban","EUR"," - ",null,null,null,null,766,"ITSI.EXCEL",766,"ITSI.EXCEL"]
[null,"ITSI.EXCEL",766,"NH Siena","BU Southern Europe","Italy","Sienna","Urban","EUR"," - ",null,null,null,null,767,"ITTO.AMORI",767,"ITTO.AMORI"]
[null,"ITTO.AMORI",767,"NH Torino Centro","BU Southern Europe","Italy","Turin","Urban","EUR"," - ",null,null,null,null,801,"ITTN.TRENT",801,"ITTN.TRENT"]
[null,"ITTN.TRENT",801,"NH Trento","BU Southern Europe","Italy","Trent","Urban","EUR"," - ",null,null,null,null,769,"ITTS.TRIES",769,"ITTS.TRIES"]
[null,"ITTS.TRIES",769,"NH Trieste","BU Southern Europe","Italy","Trieste","Urban","EUR"," - ",null,null,null,null,765,"ITRM.CARPE",765,"ITRM.CARPE"]
[null,"ITRM.CARPE",765,"NH Roma Villa Carpegna","BU Southern Europe","Italy","Rome","Urban","EUR"," - ",null,null,null,null,713,"ITCT.MAURO",713,"ITCT.MAURO"]
[null,"ITCT.MAURO",713,"NH Caltagirone Villa San Mauro","BU Southern Europe","Italy","Caltagirone","Urban","EUR"," - ",null,null,null,null,703,"ITMI.WMILA",703,"ITMI.WMILA"]
[null,"ITMI.WMILA",703,"nhow Milano","BU Southern Europe","Italy","Milan","Urban","EUR"," - ",null,null,null,null,339,"LULU.LUXEM",339,"LULU.LUXEM"]
[null,"LULU.LUXEM",339,"NH Luxembourg","BU Northern Europe","Luxembourg","Luxembourg","Airport","EUR"," - ",null,null,null,null,64,"MXDF.HILTO",64,"MXDF.HILTO"]
[null,"MXDF.HILTO",64,"Hilton Aeropuerto","BU America","Mexico","Mexico City","Urban","MXN","USD",null,null,null,null,76,"MXVZ.COATZ",76,"MXVZ.COATZ"]
[null,"MXVZ.COATZ",76,"NH Coatzacoalcos","BU America","Mexico","Coatzacoalcos","Urban","MXN","USD",null,null,null,null,380,"MXDF.MEXAI",380,"MXDF.MEXAI"]
[null,"MXDF.MEXAI",380,"NH Collection Mexico City Airport T2","BU America","Mexico","Mexico City","Urban","MXN","USD",null,null,null,null,384,"MXJC.GUAD",384,"MXJC.GUAD"]
[null,"MXJC.GUAD",384,"NH Collection Guadalajara Providencia","BU America","Mexico","Guadalajara (MX)","Urban","MXN","USD",null,null,null,null,964,"MXYN.MERID",964,"MXYN.MERID"]
[null,"MXYN.MERID",964,"NH Collection Mérida Paseo Montejo","BU America","Mexico","Merida (MX)","Urban","MXN","USD",null,null,null,null,652,"MXDF.CENHI",652,"MXDF.CENHI"]
[null,"MXDF.CENHI",652,"NH Collection Mexico City Centro Histórico","BU America","Mexico","Mexico City","Urban","MXN","USD",null,null,null,null,74,"MXDF.MECIT",74,"MXDF.MECIT"]
[null,"MXDF.MECIT",74,"NH Collection Mexico City Reforma","BU America","Mexico","Mexico City","Urban","MXN","USD",null,null,null,null,659,"MXNL.MNREY",659,"MXNL.MNREY"]
[null,"MXNL.MNREY",659,"NH Collection Monterrey San Pedro","BU America","Mexico","Monterrey","Urban","MXN","USD",null,null,null,null,332,"MXDF.SNTFE",332,"MXDF.SNTFE"]
[null,"MXDF.SNTFE",332,"NH Collection Mexico City Santa Fe","BU America","Mexico","Mexico City","Urban","MXN","USD",null,null,null,null,817,"MXNL.MONFE",817,"MXNL.MONFE"]
[null,"MXNL.MONFE",817,"NH Monterrey La Fe","BU America","Mexico","Monterrey","Urban","MXN","USD",null,null,null,null,653,"MXPL.PUEBL",653,"MXPL.PUEBL"]
[null,"MXPL.PUEBL",653,"NH Puebla Centro Histórico","BU America","Mexico","Puebla","Urban","MXN","USD",null,null,null,null,816,"MXPL.PUFIN",816,"MXPL.PUFIN"]
[null,"MXPL.PUFIN",816,"NH Puebla Finsa","BU America","Mexico","Puebla","Urban","MXN","USD",null,null,null,null,655,"MXQT.QUERE",655,"MXQT.QUERE"]
[null,"MXQT.QUERE",655,"NH Queretaro","BU America","Mexico","Queretaro","Urban","MXN","USD",null,null,null,null,820,"MXSL.SNLPT",820,"MXSL.SNLPT"]
[null,"MXSL.SNLPT",820,"NH San Luis Potosí","BU America","Mexico","San Luis Potosi","Urban","MXN","USD",null,null,null,null,649,"MXPL.VALDO",649,"MXPL.VALDO"]
[null,"MXPL.VALDO",649,"NH Mexico City Valle Dorado","BU America","Mexico","Mexico City","Urban","MXN","USD",null,null,null,null,347,"PLWP.POZNA",347,"PLWP.POZNA"]
[null,"PLWP.POZNA",347,"NH Poznan","BU Northern Europe","Poland","Poznan","Urban","PLN","EUR",null,null,null,null,651,"PT08.VILAM",651,"PT08.VILAM"]
[null,"PT08.VILAM",651,"Anantara Vilamoura Algarve Resort","BU Southern Europe","Portugal","Vilamoura","Resort","EUR"," - ",null,null,null,null,877,"PT11.LISBO",877,"PT11.LISBO"]
[null,"PT11.LISBO",877,"AVANI Avenida Liberdade Lisbon","BU Southern Europe","Portugal","Lisbon","Urban","EUR"," - ",null,null,null,null,334,"PT11.CAMPO",334,"PT11.CAMPO"]
[null,"PT11.CAMPO",334,"NH Lisboa Campo Grande","BU Southern Europe","Portugal","Lisbon","Urban","EUR"," - ",null,null,null,null,99,"PT11.LIBER",99,"PT11.LIBER"]
[null,"PT11.LIBER",99,"NH Collection Lisboa Liberdade","BU Southern Europe","Portugal","Lisbon","Urban","EUR"," - ",null,null,null,null,632,"PT13.PORTO",632,"PT13.PORTO"]
[null,"PT13.PORTO",632,"NH Collection Porto Batalha","BU Southern Europe","Portugal","Porto","Urban","EUR"," - ",null,null,null,null,887,"PT11.LILIS",887,"PT11.LILIS"]
[null,"PT11.LILIS",887,"Tivoli Avenida Liberdade Lisboa","BU Southern Europe","Portugal","Lisbon","Urban","EUR"," - ",null,null,null,null,853,"PT08.CARVO",853,"PT08.CARVO"]
[null,"PT08.CARVO",853,"Tivoli Carvoeiro Algarve Resort","BU Southern Europe","Portugal","Carvoeiro","Resort","EUR"," - ",null,null,null,null,570,"PT06.COIMB",570,"PT06.COIMB"]
[null,"PT06.COIMB",570,"Tivoli Coimbra","BU Southern Europe","Portugal","Coimbra","Urban","EUR"," - ",null,null,null,null,580,"PT08.LAGOS",580,"PT08.LAGOS"]
[null,"PT08.LAGOS",580,"Tivoli Lagos Algarve Resort","BU Southern Europe","Portugal","Lagos","Resort","EUR"," - ",null,null,null,null,574,"PT08.PORTI",574,"PT08.PORTI"]
[null,"PT08.PORTI",{"$f":"VLOOKUP(B196,$P$2:$Q$367,2,FALSE)","v":574},"Tivoli Marina Portimão Algarve Resort","BU Southern Europe","Portugal","Portimao","Resort","EUR"," - ",null,null,null,null,663,"PT08.MAVIL",663,"PT08.MAVIL"]
[null,"PT08.MAVIL",663,"Tivoli Marina Vilamoura Algarve Resort","BU Southern Europe","Portugal","Vilamoura","Resort","EUR"," - ",null,null,null,null,947,"PT11.ORIEN",947,"PT11.ORIEN"]
[null,"PT11.ORIEN",947,"Tivoli Oriente Lisboa","BU Southern Europe","Portugal","Lisbon","Urban","EUR"," - ",null,null,null,null,795,"PT11.SINSE",795,"PT11.SINSE"]
[null,"PT11.SINSE",795,"Tivoli Palácio de Seteais","BU Southern Europe","Portugal","Sintra","Urban","EUR"," - ",null,null,null,null,832,"PT11.SINTR",832,"PT11.SINTR"]
[null,"PT11.SINTR",832,"Tivoli Sintra","BU Southern Europe","Portugal","Sintra","Urban","EUR"," - ",null,null,null,null,665,"PT08.VICAL",665,"PT08.VICAL"]
[null,"PT08.VICAL",665,"The Residences at Victoria Algarve","BU Southern Europe","Portugal","Vilamoura","Resort","EUR"," - ",null,null,null,null,330,"ROTM.TIMIS",330,"ROTM.TIMIS"]
[null,"ROTM.TIMIS",330,"NH Timisoara","BU Northern Europe","Romania","Timisoara","Urban","EUR"," - ",null,null,null,null,363,"SKBL.GTONE",363,"SKBL.GTONE"]
[null,"SKBL.GTONE",363,"NH Bratislava Gate One","BU Northern Europe","Slovakia","Bratislava","Urban","EUR"," - ",null,null,null,null,429,"ESMA.VILPA",429,"ESMA.VILPA"]
[null,"ESMA.VILPA",429,"Anantara Villa Padierna Palace Benahavís Marbella Resort","BU Southern Europe","Spain","Marbella","Resort","EUR"," - ",null,null,null,null,248,"ESMD.CASMA",248,"ESMD.CASMA"]
[null,"ESMD.CASMA",248,"Casino de Madrid","BU Southern Europe","Spain","Madrid","Urban","EUR"," - ",null,null,null,null,489,"ESMD.BBVA",489,"ESMD.BBVA"]
[null,"ESMD.BBVA",489,"Centro de Formación BBVA La Moraleja","BU Southern Europe","Spain","Madrid","Urban","EUR"," - ",null,null,null,null,311,"ESMD.ALCOR",311,"ESMD.ALCOR"]
[null,"ESMD.ALCOR",311,"NH Alcorcon","BU Southern Europe","Spain","Madrid","Urban","EUR"," - ",null,null,null,null,322,"ESAI.ALICA",322,"ESAI.ALICA"]
[null,"ESAI.ALICA",322,"NH Alicante","BU Southern Europe","Spain","Alicante","Urban","EUR"," - ",null,null,null,null,10,"ESMD.EMBAJ",10,"ESMD.EMBAJ"]
[null,"ESMD.EMBAJ",10,"NH Madrid Alonso Martinez","BU Southern Europe","Spain","Madrid","Urban","EUR"," - ",null,null,null,null,128,"ESMU.AMIMU",128,"ESMU.AMIMU"]
[null,"ESMU.AMIMU",128,"NH Amistad Murcia","BU Southern Europe","Spain","Murcia","Urban","EUR"," - ",null,null,null,null,115,"ESMD.SUR",115,"ESMD.SUR"]
[null,"ESMD.SUR",115,"NH Madrid Atocha","BU Southern Europe","Spain","Madrid","Urban","EUR"," - ",null,null,null,null,133,"ESJE.JEREZ",133,"ESJE.JEREZ"]
[null,"ESJE.JEREZ",133,"NH Avenida Jerez","BU Southern Europe","Spain","Jerez de la Frontera","Urban","EUR"," - ",null,null,null,null,333,"ESVA.BALAG",333,"ESVA.BALAG"]
[null,"ESVA.BALAG",333,"NH Valladolid Bálago","BU Southern Europe","Spain","Valladolid","Urban","EUR"," - ",null,null,null,null,42,"ESMD.BALBO",42,"ESMD.BALBO"]
[null,"ESMD.BALBO",42,"NH Madrid Balboa","BU Southern Europe","Spain","Madrid","Urban","EUR"," - ",null,null,null,null,152,"ESMD.BARAJ",152,"ESMD.BARAJ"]
[null,"ESMD.BARAJ",152,"NH Madrid Barajas Airport","BU Southern Europe","Spain","Madrid","Airport","EUR"," - ",null,null,null,null,106,"ESBA.RALLY",106,"ESBA.RALLY"]
[null,"ESBA.RALLY",106,"NH Barcelona Stadium","BU Southern Europe","Spain","Barcelona","Urban","EUR"," - ",null,null,null,null,32,"ESCO.CALIF",32,"ESCO.CALIF"]
[null,"ESCO.CALIF",32,"NH Córdoba Califa","BU Southern Europe","Spain","Cordoba (ES)","Urban","EUR"," - ",null,null,null,null,581,"ESMU.CACAR",581,"ESMU.CACAR"]
[null,"ESMU.CACAR",581,"NH Campo Cartagena","BU Southern Europe","Spain","Cartagena (ES)","Urban","EUR"," - ",null,null,null,null,300,"ESCA.GIBRA",300,"ESCA.GIBRA"]
[null,"ESCA.GIBRA",300,"NH Campo de Gibraltar","BU Southern Europe","Spain","Algeciras","Urban","EUR"," - ",null,null,null,null,5,"ESVI.CANAY",5,"ESVI.CANAY"]
[null,"ESVI.CANAY",5,"NH Canciller Ayala Vitoria","BU Southern Europe","Spain","Vitoria","Urban","EUR"," - ",null,null,null,null,303,"ESMU.CARTA",303,"ESMU.CARTA"]
[null,"ESMU.CARTA",303,"NH Cartagena","BU Southern Europe","Spain","Cartagena (ES)","Urban","EUR"," - ",null,null,null,null,17,"ESVL.CENTE",17,"ESVL.CENTE"]
[null,"ESVL.CENTE",17,"NH Valencia Center","BU Southern Europe","Spain","Valencia","Urban","EUR"," - ",null,null,null,null,72,"ESMD.BRETO",72,"ESMD.BRETO"]
[null,"ESMD.BRETO",72,"NH Madrid Chamberí","BU Southern Europe","Spain","Madrid","Urban","EUR"," - ",null,null,null,null,138,"ESCU.CUENC",138,"ESCU.CUENC"]
[null,"ESCU.CUENC",138,"NH Ciudad de Cuenca","BU Southern Europe","Spain","Cuenca","Urban","EUR"," - ",null,null,null,null,151,"ESMD.IMAGE",151,"ESMD.IMAGE"]
[null,"ESMD.IMAGE",151,"NH Pozuelo Ciudad de la Imagen","BU Southern Europe","Spain","Madrid","Urban","EUR"," - ",null,null,null,null,113,"ESCB.SANTA",113,"ESCB.SANTA"]
[null,"ESCB.SANTA",113,"NH Ciudad de Santander","BU Southern Europe","Spain","Santander","Urban","EUR"," - ",null,null,null,null,82,"ESVL.VALEN",82,"ESVL.VALEN"]
[null,"ESVL.VALEN",82,"NH Ciudad de Valencia","BU Southern Europe","Spain","Valencia","Urban","EUR"," - ",null,null,null,null,119,"ESVA.VALLA",119,"ESVA.VALLA"]
[null,"ESVA.VALLA",119,"NH Ciudad de Valladolid","BU Southern Europe","Spain","Valladolid","Urban","EUR"," - ",null,null,null,null,2,"ESZZ.CIUZA",2,"ESZZ.CIUZA"]
[null,"ESZZ.CIUZA",2,"NH Ciudad de Zaragoza","BU Southern Europe","Spain","Zaragoza","Urban","EUR"," - ",null,null,null,null,127,"ESCR.CREAL",127,"ESCR.CREAL"]
[null,"ESCR.CREAL",127,"NH Ciudad Real","BU Southern Europe","Spain","Ciudad Real","Urban","EUR"," - ",null,null,null,null,142,"ESTA.REUS",142,"ESTA.REUS"]
[null,"ESTA.REUS",142,"NH Ciutat de Reus","BU Southern Europe","Spain","Reus","Urban","EUR"," - ",null,null,null,null,18,"ESMD.ABASC",18,"ESMD.ABASC"]
[null,"ESMD.ABASC",18,"NH Collection Madrid Abascal ","BU Southern Europe","Spain","Madrid","Urban","EUR"," - ",null,null,null,null,226,"ESCO.AMICO",226,"ESCO.AMICO"]
[null,"ESCO.AMICO",226,"NH Collection Amistad Córdoba","BU Southern Europe","Spain","Cordoba (ES)","Urban","EUR"," - ",null,null,null,null,110,"ESSS.ARANZ",110,"ESSS.ARANZ"]
[null,"ESSS.ARANZ",110,"NH Collection San Sebastián Aránzazu","BU Southern Europe","Spain","San Sebastian","Urban","EUR"," - ",null,null,null,null,71,"ESMD.SANVY",71,"ESMD.SANVY"]
[null,"ESMD.SANVY",71,"NH Collection Madrid Colón","BU Southern Europe","Spain","Madrid","Urban","EUR"," - ",null,null,null,null,327,"ESBA.CONST",327,"ESBA.CONST"]
[null,"ESBA.CONST",327,"NH Collection Barcelona Constanza","BU Southern Europe","Spain","Barcelona","Urban","EUR"," - ",null,null,null,null,94,"ESMD.EUROB",94,"ESMD.EUROB"]
[null,"ESMD.EUROB",94,"NH Collection Madrid Eurobuilding","BU Southern Europe","Spain","Madrid","Urban","EUR"," - ",null,null,null,null,517,"ESCR.CORFI",517,"ESCR.CORFI"]
[null,"ESCR.CORFI",517,"NH Collection A Coruña Finisterre","BU Southern Europe","Spain","A Coruna","Urban","EUR"," - ",null,null,null,null,4,"ESZZ.GRAHO",4,"ESZZ.GRAHO"]
[null,"ESZZ.GRAHO",4,"NH Collection Gran Hotel de Zaragoza","BU Southern Europe","Spain","Zaragoza","Urban","EUR"," - ",null,null,null,null,81,"ESBA.CALDE",81,"ESBA.CALDE"]
[null,"ESBA.CALDE",81,"NH Collection Barcelona Gran Hotel Calderón","BU Southern Europe","Spain","Barcelona","Urban","EUR"," - ",null,null,null,null,495,"ESMD.GRVIA",495,"ESMD.GRVIA"]
[null,"ESMD.GRVIA",495,"NH Collection Madrid Gran Vía","BU Southern Europe","Spain","Madrid","Urban","EUR"," - ",null,null,null,null,301,"ESMD.PAZ",301,"ESMD.PAZ"]
[null,"ESMD.PAZ",301,"NH Collection Palacio de Aranjuez","BU Southern Europe","Spain","Aranjuez","Urban","EUR"," - ",null,null,null,null,149,"ESBU.MERCE",149,"ESBU.MERCE"]
[null,"ESBU.MERCE",149,"NH Collection Palacio de Burgos","BU Southern Europe","Spain","Burgos","Urban","EUR"," - ",null,null,null,null,114,"ESSA.CASTE",114,"ESSA.CASTE"]
[null,"ESSA.CASTE",114,"NH Collection Salamanca Palacio de Castellanos","BU Southern Europe","Spain","Salamanca","Urban","EUR"," - ",null,null,null,null,376,"ESCC.OQUEN",376,"ESCC.OQUEN"]
[null,"ESCC.OQUEN",376,"NH Collection Cáceres Palacio de Oquendo","BU Southern Europe","Spain","Caceres","Urban","EUR"," - ",null,null,null,null,386,"ESMD.TEPA",386,"ESMD.TEPA"]
[null,"ESMD.TEPA",386,"NH Collection Madrid Palacio de Tepa","BU Southern Europe","Spain","Madrid","Urban","EUR"," - ",null,null,null,null,661,"ESMD.PRADO",661,"ESMD.PRADO"]
[null,"ESMD.PRADO",661,"NH Collection Madrid Paseo del Prado","BU Southern Europe","Spain","Madrid","Urban","EUR"," - ",null,null,null,null,321,"ESLE.MAYOR",321,"ESLE.MAYOR"]
[null,"ESLE.MAYOR",321,"NH Collection León Plaza Mayor","BU Southern Europe","Spain","Leon (ES)","Urban","EUR"," - ",null,null,null,null,121,"ESBA.PODIU",121,"ESBA.PODIU"]
[null,"ESBA.PODIU",121,"NH Collection Barcelona Pódium","BU Southern Europe","Spain","Barcelona","Urban","EUR"," - ",null,null,null,null,319,"ESCR.OBRAD",319,"ESCR.OBRAD"]
[null,"ESCR.OBRAD",319,"NH Collection Santiago de Compostela","BU Southern Europe","Spain","Santiago de Compostela","Urban","EUR"," - ",null,null,null,null,35,"ESSE.CECON",35,"ESSE.CECON"]
[null,"ESSE.CECON",35,"NH Collection Sevilla ","BU Southern Europe","Spain","Seville","Urban","EUR"," - ",null,null,null,null,490,"ESMD.CIBEL",490,"ESMD.CIBEL"]
[null,"ESMD.CIBEL",490,"NH Collection Madrid Suecia","BU Southern Europe","Spain","Madrid","Urban","EUR"," - ",null,null,null,null,834,"ESVL.COVAL",834,"ESVL.COVAL"]
[null,"ESVL.COVAL",834,"NH Collection Valencia Colón","BU Southern Europe","Spain","Valencia","Urban","EUR"," - ",null,null,null,null,316,"ESGR.VICTO",316,"ESGR.VICTO"]
[null,"ESGR.VICTO",316,"NH Collection Granada Victoria","BU Southern Europe","Spain","Grenada","Urban","EUR"," - ",null,null,null,null,143,"ESPO.PAVIG",143,"ESPO.PAVIG"]
[null,"ESPO.PAVIG",143,"NH Collection Vigo","BU Southern Europe","Spain","Vigo","Urban","EUR"," - ",null,null,null,null,140,"ESBI.VILBI",140,"ESBI.VILBI"]
[null,"ESBI.VILBI",140,"NH Collection Villa de Bilbao","BU Southern Europe","Spain","Bilbao","Urban","EUR"," - ",null,null,null,null,126,"ESBI.DEUST",126,"ESBI.DEUST"]
[null,"ESBI.DEUST",126,"NH Bilbao Deusto","BU Southern Europe","Spain","Bilbao","Urban","EUR"," - ",null,null,null,null,165,"ESBA.DIAGO",165,"ESBA.DIAGO"]
[null,"ESBA.DIAGO",165,"NH Barcelona Diagonal Center","BU Southern Europe","Spain","Barcelona","Urban","EUR"," - ",null,null,null,null,41,"ESBA.MASTE",41,"ESBA.MASTE"]
[null,"ESBA.MASTE",41,"NH Barcelona Eixample","BU Southern Europe","Spain","Barcelona","Urban","EUR"," - ",null,null,null,null,107,"ESBA.SANTS",107,"ESBA.SANTS"]
[null,"ESBA.SANTS",{"$f":"VLOOKUP(B260,$P$2:$Q$367,2,FALSE)","v":107},"NH Barcelona Entenza","BU Southern Europe","Spain","Barcelona","Urban","EUR"," - ",null,null,null,null,440,"ESAS.GIJON",440,"ESAS.GIJON"]
[null,"ESAS.GIJON",440,"NH Gijon","BU Southern Europe","Spain","Gijon","Urban","EUR"," - ",null,null,null,null,331,"ESCC.EXTRE",331,"ESCC.EXTRE"]
[null,"ESCC.EXTRE",331,"NH Gran Hotel Casino de Extremadura","BU Southern Europe","Spain","Badajoz","Urban","EUR"," - ",null,null,null,null,124,"ESLO.HEREN",124,"ESLO.HEREN"]
[null,"ESLO.HEREN",124,"NH Logroño Herencia Rioja","BU Southern Europe","Spain","Logrono","Urban","EUR"," - ",null,null,null,null,117,"ESGC.IMPER",117,"ESGC.IMPER"]
[null,"ESGC.IMPER",117,"NH Imperial Playa","BU Southern Europe","Spain","Las Palmas de Gran Canaria","Urban","EUR"," - ",null,null,null,null,123,"ESNA.IRUNA",123,"ESNA.IRUNA"]
[null,"ESNA.IRUNA",123,"NH Pamplona Iruña Park","BU Southern Europe","Spain","Pamplona","Urban","EUR"," - ",null,null,null,null,441,"ESBI.AVANZ",441,"ESBI.AVANZ"]
[null,"ESBI.AVANZ",441,"NH La Avanzada","BU Southern Europe","Spain","Bilbao","Urban","EUR"," - ",null,null,null,null,122,"ESMD.LAGAS",122,"ESMD.LAGAS"]
[null,"ESMD.LAGAS",122,"NH Madrid Lagasca","BU Southern Europe","Spain","Madrid","Urban","EUR"," - ",null,null,null,null,27,"ESVL.ARTE1",27,"ESVL.ARTE1"]
[null,"ESVL.ARTE1",27,"NH Valencia Las Artes","BU Southern Europe","Spain","Valencia","Urban","EUR"," - ",null,null,null,null,28,"ESVL.ARTE2",28,"ESVL.ARTE2"]
[null,"ESVL.ARTE2",28,"NH Valencia Las Ciencias","BU Southern Europe","Spain","Valencia","Urban","EUR"," - ",null,null,null,null,378,"ESMD.TABLA",378,"ESMD.TABLA"]
[null,"ESMD.TABLA",378,"NH Madrid Las Tablas","BU Southern Europe","Spain","Madrid","Urban","EUR"," - ",null,null,null,null,145,"ESMD.LEGAN",145,"ESMD.LEGAN"]
[null,"ESMD.LEGAN",145,"NH Leganes","BU Southern Europe","Spain","Madrid","Urban","EUR"," - ",null,null,null,null,104,"ESBA.CORTS",104,"ESBA.CORTS"]
[null,"ESBA.CORTS",104,"NH Barcelona Les Corts","BU Southern Europe","Spain","Barcelona","Urban","EUR"," - ",null,null,null,null,146,"ESLO.LOGRO",146,"ESLO.LOGRO"]
[null,"ESLO.LOGRO",146,"NH Logroño","BU Southern Europe","Spain","Logrono","Urban","EUR"," - ",null,null,null,null,83,"ESHV.LUZHU",83,"ESHV.LUZHU"]
[null,"ESHV.LUZHU",83,"NH Luz Huelva","BU Southern Europe","Spain","Huelva","Urban","EUR"," - ",null,null,null,null,309,"ESMD.PACIF",309,"ESMD.PACIF"]
[null,"ESMD.PACIF",309,"NH Madrid Sur","BU Southern Europe","Spain","Madrid","Urban","EUR"," - ",null,null,null,null,45,"ESMA.MALAG",45,"ESMA.MALAG"]
[null,"ESMA.MALAG",45,"NH Malaga","BU Southern Europe","Spain","Malaga","Urban","EUR"," - ",null,null,null,null,130,"ESMA.MARBE",130,"ESMA.MARBE"]
[null,"ESMA.MARBE",130,"NH Marbella","BU Southern Europe","Spain","Marbella","Urban","EUR"," - ",null,null,null,null,93,"ESCS.MINDO",93,"ESCS.MINDO"]
[null,"ESCS.MINDO",93,"NH Castellón Mindoro","BU Southern Europe","Spain","Castellon","Urban","EUR"," - ",null,null,null,null,19,"ESMD.NACIO",19,"ESMD.NACIO"]
[null,"ESMD.NACIO",19,"NH Madrid Nacional","BU Southern Europe","Spain","Madrid","Urban","EUR"," - ",null,null,null,null,468,"ESOU.OUREN",468,"ESOU.OUREN"]
[null,"ESOU.OUREN",468,"NH Ourense","BU Southern Europe","Spain","Ourense","Urban","EUR"," - ",null,null,null,null,148,"ESZA.DUERO",148,"ESZA.DUERO"]
[null,"ESZA.DUERO",148,"NH Zamora Palacio del Duero","BU Southern Europe","Spain","Zamora","Urban","EUR"," - ",null,null,null,null,73,"ESMD.HABAN",73,"ESMD.HABAN"]
[null,"ESMD.HABAN",73,"NH Madrid Paseo de la Habana","BU Southern Europe","Spain","Madrid","Urban","EUR"," - ",null,null,null,null,132,"ESLL.PIRIN",132,"ESLL.PIRIN"]
[null,"ESLL.PIRIN",132,"NH Lleida Pirineos","BU Southern Europe","Spain","Lleida","Urban","EUR"," - ",null,null,null,null,118,"ESGC.CANTE",118,"ESGC.CANTE"]
[null,"ESGC.CANTE",118,"NH Las Palmas Playa las Canteras","BU Southern Europe","Spain","Las Palmas de Gran Canaria","Urban","EUR"," - ",null,null,null,null,14,"ESSE.ARMAS",14,"ESSE.ARMAS"]
[null,"ESSE.ARMAS",14,"NH Sevilla Plaza de Armas","BU Southern Europe","Spain","Seville","Urban","EUR"," - ",null,null,null,null,125,"ESAS.PRINC",125,"ESAS.PRINC"]
[null,"ESAS.PRINC",125,"NH Oviedo Principado","BU Southern Europe","Spain","Oviedo","Urban","EUR"," - ",null,null,null,null,43,"ESMD.PRIVE",43,"ESMD.PRIVE"]
[null,"ESMD.PRIVE",43,"NH Madrid Príncipe de Vergara","BU Southern Europe","Spain","Madrid","Urban","EUR"," - ",null,null,null,null,371,"ESMD.RIBER",371,"ESMD.RIBER"]
[null,"ESMD.RIBER",371,"NH Madrid Ribera del Manzanares","BU Southern Europe","Spain","Madrid","Urban","EUR"," - ",null,null,null,null,147,"ESMA.PEDRO",147,"ESMA.PEDRO"]
[null,"ESMA.PEDRO",147,"NH San Pedro de Alcántara","BU Southern Europe","Spain","Marbella","Urban","EUR"," - ",null,null,null,null,105,"ESBA.NUMAN",105,"ESBA.NUMAN"]
[null,"ESBA.NUMAN",105,"NH Sants Barcelona","BU Southern Europe","Spain","Barcelona","Urban","EUR"," - ",null,null,null,null,53,"ESZZ.SPORT",53,"ESZZ.SPORT"]
[null,"ESZZ.SPORT",53,"NH Sport","BU Southern Europe","Spain","Zaragoza","Urban","EUR"," - ",null,null,null,null,170,"ESTF.TENER",170,"ESTF.TENER"]
[null,"ESTF.TENER",170,"NH Tenerife","BU Southern Europe","Spain","Santa Cruz de Tenerife","Urban","EUR"," - ",null,null,null,null,21,"ESCS.TURCO",21,"ESCS.TURCO"]
[null,"ESCS.TURCO",21,"NH Castellón Turcosa","BU Southern Europe","Spain","Castellon","Urban","EUR"," - ",null,null,null,null,12,"ESMD.PARAV",12,"ESMD.PARAV"]
[null,"ESMD.PARAV",12,"NH Madrid Ventas","BU Southern Europe","Spain","Madrid","Urban","EUR"," - ",null,null,null,null,24,"ESMD.COSLA",24,"ESMD.COSLA"]
[null,"ESMD.COSLA",24,"NH Villa de Coslada","BU Southern Europe","Spain","Madrid","Urban","EUR"," - ",null,null,null,null,91,"ESMD.ZURBA",91,"ESMD.ZURBA"]
[null,"ESMD.ZURBA",91,"NH Madrid Zurbano","BU Southern Europe","Spain","Madrid","Urban","EUR"," - ",null,null,null,null,178,"CHGE.GENAI",178,"CHGE.GENAI"]
[null,"CHGE.GENAI",178,"NH Geneva Airport","BU Northern Europe","Switzerland","Geneva","Airport","CHF"," - ",null,null,null,null,254,"CHGE.REX",254,"CHGE.REX"]
[null,"CHGE.REX",254,"NH Geneva City","BU Northern Europe","Switzerland","Geneva","Urban","CHF"," - ",null,null,null,null,970,"NLNH.VIJVL",970,"NLNH.VIJVL"]
[null,"NLNH.VIJVL",970,"d' Vijff Vlieghen","BU Northern Europe","The Netherlands","Amsterdam","Urban","EUR"," - ",null,null,null,null,662,"NLUT.AMERS",662,"NLUT.AMERS"]
[null,"NLUT.AMERS",662,"NH Amersfoort","BU Northern Europe","The Netherlands","Amersfoort","Urban","EUR"," - ",null,null,null,null,215,"NLNH.AMSCE",215,"NLNH.AMSCE"]
[null,"NLNH.AMSCE",215,"NH Amsterdam Centre","BU Northern Europe","The Netherlands","Amsterdam","Urban","EUR"," - ",null,null,null,null,208,"NLNH.GALAX",208,"NLNH.GALAX"]
[null,"NLNH.GALAX",208,"NH Amsterdam Noord","BU Northern Europe","The Netherlands","Amsterdam","Urban","EUR"," - ",null,null,null,null,372,"NLNH.MUSIC",372,"NLNH.MUSIC"]
[null,"NLNH.MUSIC",372,"NH Amsterdam Zuid","BU Northern Europe","The Netherlands","Amsterdam","Urban","EUR"," - ",null,null,null,null,247,"NLGE.RIJNH",247,"NLGE.RIJNH"]
[null,"NLGE.RIJNH",247,"NH Arnhem Rijnhotel","BU Northern Europe","The Netherlands","Arnhem","Urban","EUR"," - ",null,null,null,null,235,"NLZH.ATLRO",235,"NLZH.ATLRO"]
[null,"NLZH.ATLRO",235,"NH Atlanta Rotterdam","BU Northern Europe","The Netherlands","Rotterdam","Urban","EUR"," - ",null,null,null,null,375,"NLZH.ATLDH",375,"NLZH.ATLDH"]
[null,"NLZH.ATLDH",375,"NH Atlantic Den Haag","BU Northern Europe","The Netherlands","The Hague","Urban","EUR"," - ",null,null,null,null,244,"NLZH.CAPEL",244,"NLZH.CAPEL"]
[null,"NLZH.CAPEL",244,"NH Capelle","BU Northern Europe","The Netherlands","Capelle aan den Ijssel","Urban","EUR"," - ",null,null,null,null,209,"NLNH.CARAN",209,"NLNH.CARAN"]
[null,"NLNH.CARAN",209,"NH Amsterdam Caransa","BU Northern Europe","The Netherlands","Amsterdam","Urban","EUR"," - ",null,null,null,null,234,"NLUT.CENUT",234,"NLUT.CENUT"]
[null,"NLUT.CENUT",234,"NH Centre Utrecht","BU Northern Europe","The Netherlands","Utrecht","Urban","EUR"," - ",null,null,null,null,214,"NLNH.CCAMS",214,"NLNH.CCAMS"]
[null,"NLNH.CCAMS",214,"NH City Centre Amsterdam","BU Northern Europe","The Netherlands","Amsterdam","Urban","EUR"," - ",null,null,null,null,759,"NLNH.CARLT",759,"NLNH.CARLT"]
[null,"NLNH.CARLT",759,"NH Collection Amsterdam Flower Market","BU Northern Europe","The Netherlands","Amsterdam","Urban","EUR"," - ",null,null,null,null,216,"NLNH.BARBI",216,"NLNH.BARBI"]
[null,"NLNH.BARBI",216,"NH Collection Amsterdam Barbizon Palace","BU Northern Europe","The Netherlands","Amsterdam","Urban","EUR"," - ",null,null,null,null,211,"NLNH.DOELE",211,"NLNH.DOELE"]
[null,"NLNH.DOELE",211,"NH Collection Amsterdam Doelen","BU Northern Europe","The Netherlands","Amsterdam","Urban","EUR"," - ",null,null,null,null,809,"NLNB.EINDH",809,"NLNB.EINDH"]
[null,"NLNB.EINDH",809,"NH Collection Eindhoven Centre","BU Northern Europe","The Netherlands","Eindhoven","Urban","EUR"," - ",null,null,null,null,218,"NLNH.KRASN",218,"NLNH.KRASN"]
[null,"NLNH.KRASN",218,"NH Collection Amsterdam Grand Hotel Krasnapolsky","BU Northern Europe","The Netherlands","Amsterdam","Urban","EUR"," - ",null,null,null,null,948,"NLNB.KONIN",948,"NLNB.KONIN"]
[null,"NLNB.KONIN",948,"NH Eindhoven Conference Centre Koningshof","BU Northern Europe","The Netherlands","Eindhoven","Urban","EUR"," - ",null,null,null,null,949,"NLZH.LEEUW",949,"NLZH.LEEUW"]
[null,"NLZH.LEEUW",949,"NH Noordwijk Conference Centre Leeuwenhorst","BU Northern Europe","The Netherlands","Noordwijkerhout","Urban","EUR"," - ",null,null,null,null,315,"NLZH.DHAAG",315,"NLZH.DHAAG"]
[null,"NLZH.DHAAG",315,"NH Den Haag","BU Northern Europe","The Netherlands","The Hague","Urban","EUR"," - ",null,null,null,null,200,"NLGR.GRON",200,"NLGR.GRON"]
[null,"NLGR.GRON",200,"NH Groningen","BU Northern Europe","The Netherlands","Groningen","Urban","EUR"," - ",null,null,null,null,250,"NLGR.DVILL",250,"NLGR.DVILL"]
[null,"NLGR.DVILL",250,"NH Groningen Hotel de Ville","BU Northern Europe","The Netherlands","Groningen","Urban","EUR"," - ",null,null,null,null,207,"NLNH.JANTA",207,"NLNH.JANTA"]
[null,"NLNH.JANTA",207,"NH Bussum Jan Tabak","BU Northern Europe","The Netherlands","Bussum","Urban","EUR"," - ",null,null,null,null,243,"NLLI.MAAST",243,"NLLI.MAAST"]
[null,"NLLI.MAAST",243,"NH Maastricht","BU Northern Europe","The Netherlands","Maastricht","Urban","EUR"," - ",null,null,null,null,213,"NLNH.MUSEU",213,"NLNH.MUSEU"]
[null,"NLNH.MUSEU",213,"NH Amsterdam Museum Quarter","BU Northern Europe","The Netherlands","Amsterdam","Urban","EUR"," - ",null,null,null,null,219,"NLNH.NAARD",219,"NLNH.NAARD"]
[null,"NLNH.NAARD",{"$f":"VLOOKUP(B324,$P$2:$Q$367,2,FALSE)","v":219},"NH Naarden","BU Northern Europe","The Netherlands","Naarden","Urban","EUR"," - ",null,null,null,null,210,"NLNH.SCHIL",210,"NLNH.SCHIL"]
[null,"NLNH.SCHIL",210,"NH Amsterdam Schiller","BU Northern Europe","The Netherlands","Amsterdam","Urban","EUR"," - ",null,null,null,null,217,"NLNH.SCHIP",217,"NLNH.SCHIP"]
[null,"NLNH.SCHIP",217,"NH Amsterdam Schiphol Airport","BU Northern Europe","The Netherlands","Amsterdam","Airport","EUR"," - ",null,null,null,null,660,"NLGE.SPARR",660,"NLGE.SPARR"]
[null,"NLGE.SPARR",660,"NH Veluwe Sparrenhorst","BU Northern Europe","The Netherlands","Nunspeet","Urban","EUR"," - ",null,null,null,null,221,"NLUT.UTREC",221,"NLUT.UTREC"]
[null,"NLUT.UTREC",221,"NH Utrecht","BU Northern Europe","The Netherlands","Utrecht","Urban","EUR"," - ",null,null,null,null,340,"NLNB.WAALW",340,"NLNB.WAALW"]
[null,"NLNB.WAALW",340,"NH Waalwijk","BU Northern Europe","The Netherlands","Waalwijk","Urban","EUR"," - ",null,null,null,null,222,"NLNH.ZANDV",222,"NLNH.ZANDV"]
[null,"NLNH.ZANDV",222,"NH Zandvoort","BU Northern Europe","The Netherlands","Zandvoort","Urban","EUR"," - ",null,null,null,null,232,"NLZH.ZOETE",232,"NLZH.ZOETE"]
[null,"NLZH.ZOETE",232,"NH Zoetermeer","BU Northern Europe","The Netherlands","Zoetermeer","Urban","EUR"," - ",null,null,null,null,971,"NLZH.WROTT",971,"NLZH.WROTT"]
[null,"NLZH.WROTT",971,"nhow Rotterdam","BU Northern Europe","The Netherlands","Rotterdam","Urban","EUR"," - ",null,null,null,null,751,"GBLO.KESIN",751,"GBLO.KESIN"]
[null,"GBLO.KESIN",751,"NH London Kensington","BU Northern Europe","United Kingdom","London","Urban","GBP"," - ",null,null,null,null,167,"UYMO.COLUM",167,"UYMO.COLUM"]
[null,"UYMO.COLUM",167,"NH Montevideo Columbia","BU America","Uruguay","Montevideo","Urban","USD"," - ",null,null,null,null,629,"USNY.MADIS",629,"USNY.MADIS"]
[null,"USNY.MADIS",629,"NH Collection New York Madison Avenue","BU Southern Europe","USA","New York","Urban","$"," - ",null,null,null,null,968,"PT13.JARDI",968,"PT13.JARDI"]
[null,"PT13.JARDI",968,"NH Porto Jardim","BU Southern Europe","Portugal","Porto","Urban","EUR"," - ",null,null,null,null,425,"ITRM.FORIM",425,"ITRM.FORIM"]
[null,"ITRM.FORIM",425,"NH Collection Roma Fori Imperiali","BU Southern Europe","Italy","Rome","Urban","EUR"," - ",null,null,null,null,577,"AD07.ANDOR",577,"AD07.ANDOR"]
[null,"AD07.ANDOR",577,"NH Andorra la Vella","BU Southern Europe","Andorra","Andorra la Vella","Urban","EUR"," - ",null,null,null,null,937,"BEVA.ANTCE",937,"BEVA.ANTCE"]
[null,"BEVA.ANTCE",937,"NH Collection Antwerp Centre","BU Northern Europe","Belgium","Antwerp","Urban","EUR"," - ",null,null,null,null,70,"IELD.MAKDU",70,"IELD.MAKDU"]
[null,"IELD.MAKDU",70,"Anantara The Marker Dublin","BU Northern Europe","Ireland","Dublin","Urban","EUR"," - ",null,null,null,null,999,"MXQR.CANCU",999,"MXQR.CANCU"]
[null,"MXQR.CANCU",999,"NH Cancún Airport","BU America","Mexico","Cancun","Airport","MXN","USD",null,null,null,null,969,"GBLO.WLOND",969,"GBLO.WLOND"]
[null,"GBLO.WLOND",969,"nhow London","BU Northern Europe","United Kingdom","London","Urban","GBP"," - ",null,null,null,null,491,"NLNH.WAMST",491,"NLNH.WAMST"]
[null,"NLNH.WAMST",491,"nhow Amsterdam Rai","BU Northern Europe","The Netherlands","Amsterdam","Urban","EUR"," - ",null,null,null,null,990,"ITVE.VERON",990,"ITVE.VERON"]
[null,"ITVE.VERON",990,"NH Collection Palazzo Verona","BU Southern Europe","Italy","Verona","Urban","EUR"," - "]
[null,null,{"$error":"#N/A"},"Anantara Sahara Tozeur Resorts & Villas","BU Southern Europe","Tunisia",null,"Resort","EUR"," - ",null,null,null,null,1006,"ITRM.NAIDI",1006,"ITRM.NAIDI"]
[null,"ITRM.NAIDI",1006,"Anantara Palazzo Naiadi Rome Hotel","BU Southern Europe","Italy","Rome","Urban","EUR"," - ",null,null,null,null,1007,"ITVE.DDOGI",1007,"ITVE.DDOGI"]
[null,"ITVE.DDOGI",1007,"NH Collection Venezia Grand Hotel Palazzo Dei Dogi","BU Southern Europe","Italy","Venice","Urban","EUR"," - ",null,null,null,null,1005,"ITVE.BELLI",1005,"ITVE.BELLI"]
[null,"ITVE.BELLI",1005,"NH Venezia Santa Lucia","BU Southern Europe","Italy","Venice","Urban","EUR"," - ",null,null,null,null,1004,"ITFI.GADDI",1004,"ITFI.GADDI"]
[null,"ITFI.GADDI",1004,"NH Collection Firenze Palazzo Gaddi","BU Southern Europe","Italy","Florence","Urban","EUR"," - ",null,null,null,null,1008,"HUBU.NYPAL",1008,"HUBU.NYPAL"]
[null,"HUBU.NYPAL",1008,"Anantara New York Palace Budapest Hotel","BU Northern Europe","Hungary","Budapest","Urban","EUR"," - ",null,null,null,null,1009,"HUBU.NYRES",1009,"HUBU.NYRES"]
[null,"HUBU.NYRES",1009,"NH Collection Budapest City Center","BU Northern Europe","Hungary","Budapest","Urban","EUR"," - ",null,null,null,null,1003,"CZPR.CARLO",1003,"CZPR.CARLO"]
[null,"CZPR.CARLO",1003,"NH Collection Prague Carlo IV","BU Northern Europe","Czech Republic","Prague","Urban","EUR"," - ",null,null,null,null,962,"DENI.HANNO",962,"DENI.HANNO"]
[null,"DENI.HANNO",962,"NH Hannover","BU Northern Europe","Germany","Hannover","Urban","EUR"," - ",null,null,null,null,812,"ITVE.MURVI",812,"ITVE.MURVI"]
[null,"ITVE.MURVI",812,"NH Collection Venezia Murano Villa","BU Southern Europe","Italy","Murano","Urban","EUR"," - ",null,null,null,null,1010,"DKCO.STRAN",1010,"DKCO.STRAN"]
[null,"DKCO.STRAN",1010,"NH Collection Copenhagen","BU Northern Europe","Denmark","Copenhagen","Urban","DKK"," - ",null,null,null,null,1002,"FR06.PLAZA",1002,"FR06.PLAZA"]
[null,"FR06.PLAZA",1002,"Anantara Plaza Nice Hotel","BU Southern Europe","France","Nice","Urban","EUR"," - ",null,null,null,null,1016,"ARGG.SESTE",1016,"ARGG.SESTE"]
[null,"ARGG.SESTE",1016,"NH Santiago del Estero","BU America","Argentina","Santiago del Estero","Urban","USD"," - ",null,null,null,null,821,"DEHE.SPINT",821,"DEHE.SPINT"]
[null,"DEHE.SPINT",821,"NH Collection Frankfurt Spin Tower","BU Northern Europe","Germany","Frankfurt","Urban","EUR"," - ",null,null,null,null,822,"DEHE.WFRAN",822,"DEHE.WFRAN"]
[null,"DEHE.WFRAN",822,"nhow Frankfurt","BU Northern Europe","Germany","Frankfurt","Urban","EUR"," - ",null,null,null,null,1001,"ITVE.MURAN",1001,"ITVE.MURAN"]
[null,"ITVE.MURAN",1001,"TBC (NH Collection Murano)","BU Southern Europe","Italy","Murano","Urban","EUR"," - ",null,null,null,null,1014,"ITMI.MLIFE",1014,"ITMI.MLIFE"]
[null,"ITMI.MLIFE",1014,"NH Collection Milano City Life","BU Southern Europe","Italy","Milan","Urban","EUR"," - ",null,null,null,null,1018,"COCA.BURIO",1018,"COCA.BURIO"]
[null,"COCA.BURIO",1018,"NH Cali Boulevard del Rio","BU America","Colombia","Cali","Urban","COP","USD",null,null,null,null,823,"ITMI.BUEMI",823,"ITMI.BUEMI"]
[null,"ITMI.BUEMI",823,"NH Milano Corso Buenos Aires","BU Southern Europe","Italy","Milan","Urban","EUR"," - "]
[null,null,{"$error":"#N/A"},"TBC (NH Heroes de la Concepción Iquique)","BU America","Chile",null,"Urban","USD"," - "]
[null,null,{"$error":"#N/A"},"NH Mexico City Insurgentes","BU America","Mexico",null,"Urban","MXN","USD"]
[null,null,{"$error":"#N/A"},"TBC (nhow La Dehesa)","BU America","Chile",null,"Urban","USD"," - "]
[null,null,{"$error":"#N/A"},"TBC (New Hotel in Aguascalientes, MX)","BU America","Mexico",null,"Urban","MXN","USD",null,null,null,null,null,"MXGT.LEON",null,"MXGT.LEON"]
[null,"MXGT.LEON",0,"TBC (New Hotel in Guadalajara, MX)","BU America","Mexico","Guadalajara (MX)","Urban","MXN","USD"]
[null,null,{"$error":"#N/A"},"TBC NH Collection Bodega Sogevinus","BU Southern Europe","Portugal",null,"Urban","EUR"," - "]
[null,null,{"$error":"#N/A"},"TBC (nhow Lima)","BU America","Peru",null,"Urban",{"$error":"#N/A"}," - "]

{"sheet":"hotel data base","index":21,"n_rows":398,"n_cols":9,"rows_kept":398,"cut":false,"hidden":true,"merged":[]}
[null,null,null,"TMS CENTER CODE","HOTEL COMMERCIAL NAME","CENTER CODE","BUSINESS UNIT","COUNTRY","CITY"]
[null,null,null,"ARCC.JULIO","NH 9 de Julio",435,"BU America","Argentina","Buenos Aires"]
[null,null,null,"ARCC.CITYA","City Hotel NH",168,"BU America","Argentina","Buenos Aires"]
[null,null,null,"ARCC.TOWAR","NH Collection Centro Histórico",492,"BU America","Argentina","Buenos Aires"]
[null,null,null,"ARCC.JOUST","NH Collection Jousten",161,"BU America","Argentina","Buenos Aires"]
[null,null,null,"ARCC.LANCA","NH Collection Lancaster",432,"BU America","Argentina","Buenos Aires"]
[null,null,null,"ARCC.CRILL","NH Collection Buenos Aires Crillón",430,"BU America","Argentina","Buenos Aires"]
[null,null,null,"ARRR.EDELW","NH Edelweiss",638,"BU America","Argentina","Bariloche"]
[null,null,null,"ARCC.FLORA","NH Florida",160,"BU America","Argentina","Buenos Aires"]
[null,null,null,"ARBB.PROVI","NH Gran Hotel Provincial",436,"BU America","Argentina","Mar del Plata"]
[null,null,null,"ARBB.CASIA","NH Hotel Casino",461,"BU America","Argentina","Mar del Plata"]
[null,null,null,"ARCC.LATIN","NH Latino",162,"BU America","Argentina","Buenos Aires"]
[null,null,null,"ARMM.CORDI","NH Mendoza Cordillera",169,"BU America","Argentina","Mendoza"]
[null,null,null,"ARXX.PANOR","NH Panorama",163,"BU America","Argentina","Cordoba (AR)"]
[null,null,null,"ARCC.TANGO","NH Tango",433,"BU America","Argentina","Buenos Aires"]
[null,null,null,"ARXX.URBAN","NH Urbano",164,"BU America","Argentina","Cordoba (AR)"]
[null,null,null,"AT09.ATTER","NH Collection Wien Zentrum",410,"BU Northern Europe","Austria","Vienna"]
[null,null,null,"AT09.DANUB","NH Danube City",657,"BU Northern Europe","Austria","Vienna"]
[null,null,null,"AT06.GRAZC","NH Graz City",833,"BU Northern Europe","Austria","Graz"]
[null,null,null,"AT05.SALZB","NH Salzburg City",413,"BU Northern Europe","Austria","Salzburg"]
[null,null,null,"AT09.VIEAI","NH Vienna Airport",414,"BU Northern Europe","Austria","Vienna"]
[null,null,null,"AT09.BELVE","NH Wien Belvedere",411,"BU Northern Europe","Austria","Vienna"]
[null,null,null,"AT09.WIEN","NH Wien City",415,"BU Northern Europe","Austria","Vienna"]
[null,null,null,"BEWV.BRUGG","NH Brugge",346,"BU Northern Europe","Belgium","Bruges"]
[null,null,null,"BEBR.BRUAI","NH Brussels Airport",203,"BU Northern Europe","Belgium","Brussels"]
[null,null,null,"BEBR.BLOOM","NH Brussels Bloom",941,"BU Northern Europe","Belgium","Brussels"]
[null,null,null,"BEBR.BERLA","NH Brussels EU Berlaymont",940,"BU Northern Europe","Belgium","Brussels"]
[null,null,null,"BEBR.BRUCI","NH Brussels Louise",202,"BU Northern Europe","Belgium","Brussels"]
[null,null,null,"BEBR.EUROP","NH Carrefour de l’Europe",627,"BU Northern Europe","Belgium","Brussels"]
[null,null,null,"BEBR.ATLAB","NH Collection Brussels Centre",242,"BU Northern Europe","Belgium","Brussels"]
[null,null,null,"BEBR.SABLO","NH Collection Grand Sablon",760,"BU Northern Europe","Belgium","Brussels"]
[null,null,null,"BEOV.BELFO","NH Gent Belfort",345,"BU Northern Europe","Belgium","Ghent"]
[null,null,null,"BEOV.PIETE","NH Gent Sint Pieters",407,"BU Northern Europe","Belgium","Ghent"]
[null,null,null,"BEBR.GPARE","NH Grand Place Arenberg",204,"BU Northern Europe","Belgium","Brussels"]
[null,null,null,"BEAN.MECHE","NH Mechelen",408,"BU Northern Europe","Belgium","Mechlin"]
[null,null,null,"BEBR.STEPH","NH Stéphanie",201,"BU Northern Europe","Belgium","Brussels"]
[null,null,null,"T_0810","NH Curitiba The Five",810,"BU America","Brasil","Curitiba"]
[null,null,null,"CLSC.ANTOF","NH Antofagasta",670,"BU America","Chile","Antofagasta"]
[null,null,null,"CLRM.SANTI","NH Ciudad de Santiago",166,"BU America","Chile","Santiago de Chile"]
[null,null,null,"CLSC.COSTA","NH Collection Casacostanera",935,"BU America","Chile","Santiago de Chile"]
[null,null,null,"CLSC.PSANT","NH Collection Plaza Santiago",667,"BU America","Chile","Santiago de Chile"]
[null,null,null,"CLSC.IQUIU","NH Iquique",669,"BU America","Chile","Iquique"]
[null,null,null,"COBO.ANDIN","NH Collection Royal Andino",685,"BU America","Colombia","Bogota"]
[null,null,null,"COBO.HACIE","NH Collection Royal Hacienda",684,"BU America","Colombia","Bogota"]
[null,null,null,"COME.MEDEL","NH Collection Royal Medellín",687,"BU America","Colombia","Medellin"]
[null,null,null,"COBA.SMART","NH Collection Royal Smartsuites",688,"BU America","Colombia","Barranquilla"]
[null,null,null,"COBO.BOGOT","NH Collection Royal Teleport",683,"BU America","Colombia","Bogota"]
[null,null,null,"COBO.TERRA","NH Collection Royal Terra 100",682,"BU America","Colombia","Bogota"]
[null,null,null,"COBO.WTCBO","NH Collection Royal WTC Bogotá",680,"BU America","Colombia","Bogota"]
[null,null,null,"COCA.CALI","NH Royal Cali",689,"BU America","Colombia","Cali"]
[null,null,null,"COBO.BOHEM","NH Royal La Boheme",686,"BU America","Colombia","Bogota"]
[null,null,null,"COBO.PAVIL","NH Royal Pavillon",679,"BU America","Colombia","Bogota"]
[null,null,null,"COBO.URB26","NH Royal Urban 26",677,"BU America","Colombia","Bogota"]
[null,null,null,"COBO.URB93","NH Royal Urban 93",678,"BU America","Colombia","Bogota"]
[null,null,null,"COCG.CARTA","NH Royal Urban Cartagena",690,"BU America","Colombia","Cartagena (CO)"]
[null,null,null,null,"NH Capri La Habana",366,"BU America","Cuba","La Habana"]
[null,null,null,"T_0957","NH Collection Victoria La Habana",957,"BU America","Cuba","La Habana"]
[null,null,null,"CZOL.OLOMO","NH Collection Olomouc Congress",451,"BU Northern Europe","Czech Republic","Olomouc"]
[null,null,null,"CZPR.COPRA","NH Collection Prague",960,"BU Northern Europe","Czech Republic","Prague"]
[null,null,null,"CZPR.PRAGU","NH Prague City",469,"BU Northern Europe","Czech Republic","Prague"]
[null,null,null,"ECQU.QUITO","NH Collection Royal Quito",693,"BU America","Ecuador","Quito"]
[null,null,null,"FR13.COLMA","NH Collection Marseille",826,"BU Southern Europe","France","Marseille"]
[null,null,null,"FR69.LYONA","NH Lyon Airport",758,"BU Southern Europe","France","Lyon"]
[null,null,null,"FR06.NICE","NH Nice",753,"BU Southern Europe","France","Nice"]
[null,null,null,"FR31.TOUAI","NH Toulouse Airport",835,"BU Southern Europe","France","Toulouse"]
[null,null,null,"FR13.MARSE","nhow Marseille",754,"BU Southern Europe","France","Marseille"]
[null,null,null,"DEBE.ALEXA","NH Berlin Alexanderplatz",189,"BU Northern Europe","Germany","Berlin"]
[null,null,null,"DEBE.FRALL","NH Berlin City Ost",256,"BU Northern Europe","Germany","Berlin"]
[null,null,null,"DEBE.CITYW","NH Berlin City West",337,"BU Northern Europe","Germany","Berlin"]
[null,null,null,"DEBE.KUFUR","NH Berlin Kurfürstendamm",198,"BU Northern Europe","Germany","Berlin"]
[null,null,null,"DEBB.POSTD","NH Berlin Potsdam Conference Center",191,"BU Northern Europe","Germany","Berlin"]
[null,null,null,"DEBE.PPLAT","NH Berlin Potsdamer Platz",442,"BU Northern Europe","Germany","Berlin"]
[null,null,null,"DERP.BINGE","NH Bingen",194,"BU Northern Europe","Germany","Bingen am Rhein"]
[null,null,null,"DEBE.FRIED","NH Collection Berlin Friedrichstrasse",772,"BU Northern Europe","Germany","Berlin"]
[null,null,null,"DEBE.MITTE","NH Collection Berlin Mitte",190,"BU Northern Europe","Germany","Berlin"]
[null,null,null,"DESN.DALTM","NH Collection Dresden Altmarkt",443,"BU Northern Europe","Germany","Dresden"]
[null,null,null,"DEHE.FRCIT","NH Collection Frankfurt City",290,"BU Northern Europe","Germany","Frankfurt"]
[null,null,null,"DEHH.HACIT","NH Collection Hamburg City",260,"BU Northern Europe","Germany","Hamburg"]
[null,null,null,"DENW.KOMED","NH Collection Köln Mediapark",773,"BU Northern Europe","Germany","Cologne"]
[null,null,null,"DEBY.KAISE","NH Collection München Bavaria",271,"BU Northern Europe","Germany","Munich"]
[null,null,null,"DEBY.NUCIT","NH Collection Nürnberg City",325,"BU Northern Europe","Germany","Nuremberg"]
[null,null,null,"DENW.DORTM","NH Dortmund",182,"BU Northern Europe","Germany","Dortmund"]
[null,null,null,"DESN.DRESD","NH Dresden Neustadt",237,"BU Northern Europe","Germany","Dresden"]
[null,null,null,"DENW.DUCIT","NH Düsseldorf City",181,"BU Northern Europe","Germany","Düsseldorf"]
[null,null,null,"DENW.DUNOR","NH Düsseldorf City Nord",239,"BU Northern Europe","Germany","Düsseldorf"]
[null,null,null,"DENW.DUCCE","NH Düsseldorf Königsallee",419,"BU Northern Europe","Germany","Düsseldorf"]
[null,null,null,"DEBY.ERLAN","NH Erlangen",252,"BU Northern Europe","Germany","Erlangen"]
[null,null,null,"DENW.ESSEN","NH Essen",808,"BU Northern Europe","Germany","Essen"]
[null,null,null,"DEHE.FRAIR","NH Frankfurt Airport",187,"BU Northern Europe","Germany","Frankfurt"]
[null,null,null,"DEHE.FRHEM","NH Frankfurt Airport West",188,"BU Northern Europe","Germany","Frankfurt"]
[null,null,null,"DEHE.FRMES","NH Frankfurt Messe",460,"BU Northern Europe","Germany","Frankfurt"]
[null,null,null,"DEHE.MORFE","NH Frankfurt Mörfelden Conference Center",257,"BU Northern Europe","Germany","Frankfurt"]
[null,null,null,"DEHE.NIEDE","NH Frankfurt Niederrad",258,"BU Northern Europe","Germany","Frankfurt"]
[null,null,null,"DEHE.DIVIF","NH Frankfurt Villa",186,"BU Northern Europe","Germany","Frankfurt"]
[null,null,null,"DEBY.FURNU","NH Fürth Nürnberg",276,"BU Northern Europe","Germany","Fürth"]
[null,null,null,"DEHH.HAALT","NH Hamburg Altona",262,"BU Northern Europe","Germany","Hamburg"]
[null,null,null,"DEHH.HAMIT","NH Hamburg Mitte",255,"BU Northern Europe","Germany","Hamburg"]
[null,null,null,"DEBW.HEIDE","NH Heidelberg",263,"BU Northern Europe","Germany","Heidelberg"]
[null,null,null,"DEBW.HIRSC","NH Hirschberg Heidelberg",265,"BU Northern Europe","Germany","Hirschberg"]
[null,null,null,"DEHH.HAHOR","NH Horner Rennbahn",261,"BU Northern Europe","Germany","Hamburg"]
[null,null,null,"DEBY.INGOL","NH Ingolstadt",266,"BU Northern Europe","Germany","Ingolstadt"]
[null,null,null,"DEBY.NORDI","NH Klösterle Nördlingen",275,"BU Northern Europe","Germany","Nördlingen"]
[null,null,null,"DENW.KOCIT","NH Köln Altstadt",185,"BU Northern Europe","Germany","Cologne"]
[null,null,null,"DESN.LEIPZ","NH Leipzig Messe",268,"BU Northern Europe","Germany","Leipzig"]
[null,null,null,"DESN.LEZEN","NH Leipzig Zentrum",818,"BU Northern Europe","Germany","Leipzig"]
[null,null,null,"DEBW.LUDWI","NH Ludwigsburg",457,"BU Northern Europe","Germany","Ludwigsburg"]
[null,null,null,"DEST.MAGDE","NH Magdeburg",269,"BU Northern Europe","Germany","Magdeburg"]
[null,null,null,"DEBW.MANNH","NH Mannheim",819,"BU Northern Europe","Germany","Mannheim"]
[null,null,null,"DEBW.MANHE","NH Mannheim Viernheim",282,"BU Northern Europe","Germany","Mannheim"]
[null,null,null,"DEBY.MUNAI","NH München Airport",270,"BU Northern Europe","Germany","Munich"]
[null,null,null,"DEBY.MAMRI","NH München City Süd",274,"BU Northern Europe","Germany","Munich"]
[null,null,null,"DEBY.NEUME","NH München Messe",272,"BU Northern Europe","Germany","Munich"]
[null,null,null,"DEBY.DORNA","NH München Ost",183,"BU Northern Europe","Germany","Munich"]
[null,null,null,"DEBY.UNTER","NH München Unterhaching",273,"BU Northern Europe","Germany","Munich"]
[null,null,null,"DENW.OBERH","NH Oberhausen",184,"BU Northern Europe","Germany","Oberhausen"]
[null,null,null,"DEBB.VOLTA","NH Potsdam",278,"BU Northern Europe","Germany","Potsdam"]
[null,null,null,"DEMV.SCHWE","NH Schwerin",279,"BU Northern Europe","Germany","Schwerin"]
[null,null,null,"DEBW.STUAI","NH Stuttgart Airport",281,"BU Northern Europe","Germany","Stuttgart"]
[null,null,null,"DEBW.SINDE","NH Stuttgart Sindelfingen",280,"BU Northern Europe","Germany","Stuttgart"]
[null,null,null,"DEBW.WEINH","NH Weinheim",283,"BU Northern Europe","Germany","Weinheim"]
[null,null,null,"DEHE.AUKWI","NH Wiesbaden",285,"BU Northern Europe","Germany","Wiesbaden"]
[null,null,null,"DEBE.WBERL","nhow Berlin",458,"BU Northern Europe","Germany","Berlin"]
[null,null,null,"HTOU.HAITI","NH Haiti El Rancho",365,"BU America","Haiti","Port au Prince"]
[null,null,null,"HUBU.BUDAP","NH Budapest City",291,"BU Northern Europe","Hungary","Budapest"]
[null,null,null,"ITAN.ANCON","NH Ancona",729,"BU Southern Europe","Italy","Ancona"]
[null,null,null,"ITFI.ANGLO","NH Anglo American",710,"BU Southern Europe","Italy","Florence"]
[null,null,null,"ITBG.BERGA","NH Bergamo",730,"BU Southern Europe","Italy","Bergamo"]
[null,null,null,"ITBO.BOGAR","NH Bologna de la Gare",731,"BU Southern Europe","Italy","Bologna"]
[null,null,null,"ITBO.BOVIL","NH Bologna Villanova",732,"BU Southern Europe","Italy","Bologna"]
[null,null,null,"ITCT.BELLI","NH Catania Centro",735,"BU Southern Europe","Italy","Catania"]
[null,null,null,"ITRM.GIUST","NH Collection Giustiniano",716,"BU Southern Europe","Italy","Rome"]
[null,null,null,"ITSA.AMALF","NH Collection Grand Hotel Convento di Amalfi",718,"BU Southern Europe","Italy","Amalfi Coast"]
[null,null,null,"ITGE.MARIN","NH Collection Marina",737,"BU Southern Europe","Italy","Genoa"]
[null,null,null,"ITVE.PABAR","NH Collection Palazzo Barocci",709,"BU Southern Europe","Italy","Venice"]
[null,null,null,"ITRM.CINQU","NH Collection Palazzo Cinquecento",807,"BU Southern Europe","Italy","Rome"]
[null,null,null,"ITTO.CARLI","NH Collection Piazza Carlina",793,"BU Southern Europe","Italy","Turin"]
[null,null,null,"ITMI.VERDI","NH Collection Porta Nuova",708,"BU Southern Europe","Italy","Milan"]
[null,null,null,"ITFI.ROSSA","NH Collection Porta Rossa",783,"BU Southern Europe","Italy","Florence"]
[null,null,null,"ITMI.MPRES","NH Collection President",744,"BU Southern Europe","Italy","Milan"]
[null,null,null,"ITRM.LEONA","NH Collection Roma Centro",762,"BU Southern Europe","Italy","Rome"]
[null,null,null,"ITME.TAORM","NH Collection Taormina",805,"BU Southern Europe","Italy","Taormina"]
[null,null,null,"ITRM.VITTO","NH Collection Vittorio Veneto",764,"BU Southern Europe","Italy","Rome"]
[null,null,null,"ITMI.CONCO","NH Concordia",705,"BU Southern Europe","Italy","Milan"]
[null,null,null,"ITMI.FIERA","NH Fiera",757,"BU Southern Europe","Italy","Milan"]
[null,null,null,"ITFI.FIREN","NH Firenze",736,"BU Southern Europe","Italy","Florence"]
[null,null,null,"ITGE.PLAZA","NH Genova Centro",738,"BU Southern Europe","Italy","Genoa"]
[null,null,null,"ITSP.SPEZI","NH La Spezia",740,"BU Southern Europe","Italy","La Spezia - Cinque Terre"]
[null,null,null,"ITVE.LAGUN","NH Laguna Palace",701,"BU Southern Europe","Italy","Venice"]
[null,null,null,"ITMI.LINAT","NH Linate",782,"BU Southern Europe","Italy","Milan"]
[null,null,null,"ITTO.LINGO","NH Lingotto Congress",792,"BU Southern Europe","Italy","Turin"]
[null,null,null,"ITMI.MACHI","NH Machiavelli",743,"BU Southern Europe","Italy","Milan"]
[null,null,null,"ITMI.MILA2","NH Milano 2",742,"BU Southern Europe","Italy","Milan"]
[null,null,null,"ITMI.RESID","NH Milano 2 Residence",771,"BU Southern Europe","Italy","Milan"]
[null,null,null,"ITMI.FIORI","NH Milano Congress Centre",746,"BU Southern Europe","Italy","Milan"]
[null,null,null,"ITMI.TOURI","NH Milano Touring",745,"BU Southern Europe","Italy","Milan"]
[null,null,null,"ITNA.AMDOR","NH Napoli Panorama",747,"BU Southern Europe","Italy","Naples"]
[null,null,null,"ITBG.ORIO","NH Orio al Serio",706,"BU Southern Europe","Italy","Bergamo"]
[null,null,null,"ITPD.MANTE","NH Padova",717,"BU Southern Europe","Italy","Padua"]
[null,null,null,"ITMI.MOSCO","NH Palazzo Moscova",806,"BU Southern Europe","Italy","Milan"]
[null,null,null,"ITPA.PALER","NH Palermo",748,"BU Southern Europe","Italy","Palermo"]
[null,null,null,"ITCT.PARCO","NH Parco Degli Aragonesi Catania",720,"BU Southern Europe","Italy","Catania"]
[null,null,null,"ITPR.PARMA","NH Parma",789,"BU Southern Europe","Italy","Parma"]
[null,null,null,"ITPI.CAVAL","NH Pisa",749,"BU Southern Europe","Italy","Pisa"]
[null,null,null,"ITLC.PONTE","NH Pontevecchio",741,"BU Southern Europe","Italy","Lecco - Lago di Como"]
[null,null,null,"ITRA.RAVEN","NH Ravenna",761,"BU Southern Europe","Italy","Ravenna"]
[null,null,null,"ITVE.RIONO","NH Rio Novo",813,"BU Southern Europe","Italy","Venice"]
[null,null,null,"ITTO.STEFA","NH Santo Stefano",702,"BU Southern Europe","Italy","Turin"]
[null,null,null,"ITSV.DARSE","NH Savona Darsena",781,"BU Southern Europe","Italy","Savona"]
[null,null,null,"ITSI.EXCEL","NH Siena",766,"BU Southern Europe","Italy","Sienna"]
[null,null,null,"ITTO.AMORI","NH Torino Centro",767,"BU Southern Europe","Italy","Turin"]
[null,null,null,"ITTN.TRENT","NH Trento",801,"BU Southern Europe","Italy","Trent"]
[null,null,null,"ITTS.TRIES","NH Trieste",769,"BU Southern Europe","Italy","Trieste"]
[null,null,null,"ITRM.CARPE","NH Villa Carpegna",765,"BU Southern Europe","Italy","Rome"]
[null,null,null,"ITCT.MAURO","NH Villa San Mauro",713,"BU Southern Europe","Italy","Caltagirone"]
[null,null,null,"ITMI.WMILA","nhow Milano",703,"BU Southern Europe","Italy","Milan"]
[null,null,null,"LULU.LUXEM","NH Luxembourg",339,"BU Northern Europe","Luxembourg","Luxembourg"]
[null,null,null,"MXDF.HILTO","Hilton Aeropuerto",64,"BU America","Mexico","Mexico City"]
[null,null,null,"MXVZ.COATZ","NH Coatzacoalcos",76,"BU America","Mexico","Coatzacoalcos"]
[null,null,null,"MXDF.MEXAI","NH Collection Aeropuerto T2 Mexico",380,"BU America","Mexico","Mexico City"]
[null,null,null,"MXJC.HISTO","NH Collection Guadalajara Centro Histórico",643,"BU America","Mexico","Guadalajara (MX)"]
[null,null,null,"MXJC.GUAD","NH Collection Guadalajara Providencia",384,"BU America","Mexico","Guadalajara (MX)"]
[null,null,null,"MXGT.LEON","NH Collection León Expo",698,"BU America","Mexico","Leon (MX)"]
[null,null,null,"MXYN.MERID","NH Collection Mérida Paseo Montejo",964,"BU America","Mexico","Merida (MX)"]
[null,null,null,"MXDF.CENHI","NH Collection Mexico City Centro Histórico",652,"BU America","Mexico","Mexico City"]
[null,null,null,"MXDF.MECIT","NH Collection Mexico City Reforma",74,"BU America","Mexico","Mexico City"]
[null,null,null,"MXNL.MNREY","NH Collection Monterrey San Pedro",659,"BU America","Mexico","Monterrey"]
[null,null,null,"MXDF.SNTFE","NH Collection Santa Fe",332,"BU America","Mexico","Mexico City"]
[null,null,null,"MXNL.MONFE","NH Monterrey La Fe",817,"BU America","Mexico","Monterrey"]
[null,null,null,"MXPL.PUEBL","NH Puebla Centro Histórico",653,"BU America","Mexico","Puebla"]
[null,null,null,"MXPL.PUFIN","NH Puebla Finsa",816,"BU America","Mexico","Puebla"]
[null,null,null,"MXQT.QUERE","NH Queretaro",655,"BU America","Mexico","Queretaro"]
[null,null,null,"MXSL.SNLPT","NH San Luis Potosí",820,"BU America","Mexico","San Luis Potosi"]
[null,null,null,"MXPL.VALDO","NH Valle Dorado",649,"BU America","Mexico","Mexico City"]
[null,null,null,"PLWP.POZNA","NH Poznan",347,"BU Northern Europe","Poland","Poznan"]
[null,null,null,"PT08.VILAM","Anantara Vilamoura",651,"BU Southern Europe","Portugal","Vilamoura"]
[null,null,null,"PT11.LISBO","Avani Avenida Liberdade",877,"BU Southern Europe","Portugal","Lisbon"]
[null,null,null,"PT11.CAMPO","NH Campo Grande",334,"BU Southern Europe","Portugal","Lisbon"]
[null,null,null,"PT11.LIBER","NH Collection Liberdade",99,"BU Southern Europe","Portugal","Lisbon"]
[null,null,null,"PT13.PORTO","NH Collection Porto Batalha",632,"BU Southern Europe","Portugal","Porto"]
[null,null,null,"PT11.LILIS","Tivoli Avenida Liberdade",887,"BU Southern Europe","Portugal","Lisbon"]
[null,null,null,"PT08.CARVO","Tivoli Carvoeiro",853,"BU Southern Europe","Portugal","Carvoeiro"]
[null,null,null,"PT06.COIMB","Tivoli Coimbra",570,"BU Southern Europe","Portugal","Coimbra"]
[null,null,null,"PT07.EVORA","Tivoli Évora Ecoresort",427,"BU Southern Europe","Portugal","Evora"]
[null,null,null,"PT08.LAGOS","Tivoli Lagos",580,"BU Southern Europe","Portugal","Lagos"]
[null,null,null,"PT08.PORTI","Tivoli Marina Portimão",574,"BU Southern Europe","Portugal","Portimao"]
[null,null,null,"PT08.MAVIL","Tivoli Marina Vilamoura",663,"BU Southern Europe","Portugal","Vilamoura"]
[null,null,null,"PT11.ORIEN","Tivoli Oriente",947,"BU Southern Europe","Portugal","Lisbon"]
[null,null,null,"PT11.SINSE","Tivoli Palácio de Seteais",795,"BU Southern Europe","Portugal","Sintra"]
[null,null,null,"PT11.SINTR","Tivoli Sintra",832,"BU Southern Europe","Portugal","Sintra"]
[null,null,null,"PT08.VICAL","Tivoli The Residences at Victoria Golf Club",665,"BU Southern Europe","Portugal","Vilamoura"]
[null,null,null,"ROBB.BUCHA","NH Bucharest",329,"BU Northern Europe","Romania","Bucharest"]
[null,null,null,"ROTM.TIMIS","NH Timisoara",330,"BU Northern Europe","Romania","Timisoara"]
[null,null,null,"SKBL.GTONE","NH Gate One",363,"BU Northern Europe","Slovakia","Bratislava"]
[null,null,null,"ESMA.VILPA","Anantara Villa Padierna Palace Benahavís Marbella Resort",429,"BU Southern Europe","Spain","Marbella"]
[null,null,null,"ESMD.CASMA","Casino de Madrid",248,"BU Southern Europe","Spain","Madrid"]
[null,null,null,"ESMD.BBVA","Centro de Formación BBVA La Moraleja",489,"BU Southern Europe","Spain","Madrid"]
[null,null,null,"ESMD.ALCOR","NH Alcorcon",311,"BU Southern Europe","Spain","Madrid"]
[null,null,null,"ESAI.ALICA","NH Alicante",322,"BU Southern Europe","Spain","Alicante"]
[null,null,null,"ESMD.EMBAJ","NH Alonso Martínez",10,"BU Southern Europe","Spain","Madrid"]
[null,null,null,"ESMU.AMIMU","NH Amistad Murcia",128,"BU Southern Europe","Spain","Murcia"]
[null,null,null,"ESMD.SUR","NH Atocha",115,"BU Southern Europe","Spain","Madrid"]
[null,null,null,"ESJE.JEREZ","NH Avenida Jerez",133,"BU Southern Europe","Spain","Jerez de la Frontera"]
[null,null,null,"ESVA.BALAG","NH Bálago",333,"BU Southern Europe","Spain","Valladolid"]
[null,null,null,"ESMD.BALBO","NH Balboa",42,"BU Southern Europe","Spain","Madrid"]
[null,null,null,"ESMD.BARAJ","NH Barajas Airport",152,"BU Southern Europe","Spain","Madrid"]
[null,null,null,"ESBA.RALLY","NH Barcelona Stadium",106,"BU Southern Europe","Spain","Barcelona"]
[null,null,null,"ESCO.CALIF","NH Califa",32,"BU Southern Europe","Spain","Cordoba (ES)"]
[null,null,null,"ESMU.CACAR","NH Campo Cartagena",581,"BU Southern Europe","Spain","Cartagena (ES)"]
[null,null,null,"ESCA.GIBRA","NH Campo de Gibraltar",300,"BU Southern Europe","Spain","Algeciras"]
[null,null,null,"ESBA.CAMPU","NH Campus",308,"BU Southern Europe","Spain","Barcelona"]
[null,null,null,"ESVI.CANAY","NH Canciller Ayala Vitoria",5,"BU Southern Europe","Spain","Vitoria"]
[null,null,null,"ESMU.CARTA","NH Cartagena",303,"BU Southern Europe","Spain","Cartagena (ES)"]
[null,null,null,"ESVL.CENTE","NH Center",17,"BU Southern Europe","Spain","Valencia"]
[null,null,null,"ESMD.BRETO","NH Chamberí",72,"BU Southern Europe","Spain","Madrid"]
[null,null,null,"ESAL.ALMER","NH Ciudad de Almeria",31,"BU Southern Europe","Spain","Almeria"]
[null,null,null,"ESCU.CUENC","NH Ciudad de Cuenca",138,"BU Southern Europe","Spain","Cuenca"]
[null,null,null,"ESMD.IMAGE","NH Ciudad de la Imagen",151,"BU Southern Europe","Spain","Madrid"]
[null,null,null,"ESCB.SANTA","NH Ciudad de Santander",113,"BU Southern Europe","Spain","Santander"]
[null,null,null,"ESVL.VALEN","NH Ciudad de Valencia",82,"BU Southern Europe","Spain","Valencia"]
[null,null,null,"ESVA.VALLA","NH Ciudad de Valladolid",119,"BU Southern Europe","Spain","Valladolid"]
[null,null,null,"ESZZ.CIUZA","NH Ciudad de Zaragoza",2,"BU Southern Europe","Spain","Zaragoza"]
[null,null,null,"ESCR.CREAL","NH Ciudad Real",127,"BU Southern Europe","Spain","Ciudad Real"]
[null,null,null,"ESTA.REUS","NH Ciutat de Reus",142,"BU Southern Europe","Spain","Reus"]
[null,null,null,"ESMD.ABASC","NH Collection Abascal",18,"BU Southern Europe","Spain","Madrid"]
[null,null,null,"ESCO.AMICO","NH Collection Amistad Córdoba",226,"BU Southern Europe","Spain","Cordoba (ES)"]
[null,null,null,"ESSS.ARANZ","NH Collection Aránzazu",110,"BU Southern Europe","Spain","San Sebastian"]
[null,null,null,"ESMD.SANVY","NH Collection Colón",71,"BU Southern Europe","Spain","Madrid"]
[null,null,null,"ESBA.CONST","NH Collection Constanza",327,"BU Southern Europe","Spain","Barcelona"]
[null,null,null,"ESMD.EUROB","NH Collection Eurobuilding",94,"BU Southern Europe","Spain","Madrid"]
[null,null,null,"ESCR.CORFI","NH Collection Finisterre",517,"BU Southern Europe","Spain","A Coruna"]
[null,null,null,"ESZZ.GRAHO","NH Collection Gran Hotel",4,"BU Southern Europe","Spain","Zaragoza"]
[null,null,null,"ESBA.CALDE","NH Collection Gran Hotel Calderón",81,"BU Southern Europe","Spain","Barcelona"]
[null,null,null,"ESMD.GRVIA","NH Collection Gran Vía",495,"BU Southern Europe","Spain","Madrid"]
[null,null,null,"ESMD.PAZ","NH Collection Palacio de Aranjuez",301,"BU Southern Europe","Spain","Aranjuez"]
[null,null,null,"ESAS.FERRE","NH Collection Palacio de Avilés",302,"BU Southern Europe","Spain","Aviles"]
[null,null,null,"ESBU.MERCE","NH Collection Palacio de Burgos",149,"BU Southern Europe","Spain","Burgos"]
[null,null,null,"ESSA.CASTE","NH Collection Palacio de Castellanos",114,"BU Southern Europe","Spain","Salamanca"]
[null,null,null,"ESCC.OQUEN","NH Collection Palacio de Oquendo",376,"BU Southern Europe","Spain","Caceres"]
[null,null,null,"ESMD.TEPA","NH Collection Palacio de Tepa",386,"BU Southern Europe","Spain","Madrid"]
[null,null,null,"ESMD.PRADO","NH Collection Paseo del Prado",661,"BU Southern Europe","Spain","Madrid"]
[null,null,null,"ESLE.MAYOR","NH Collection Plaza Mayor",321,"BU Southern Europe","Spain","Leon (ES)"]
[null,null,null,"ESBA.PODIU","NH Collection Pódium",121,"BU Southern Europe","Spain","Barcelona"]
[null,null,null,"ESCR.OBRAD","NH Collection Santiago",319,"BU Southern Europe","Spain","Santiago de Compostela"]
[null,null,null,"ESSE.CECON","NH Collection Sevilla",35,"BU Southern Europe","Spain","Seville"]
[null,null,null,"ESMD.CIBEL","NH Collection Suecia",490,"BU Southern Europe","Spain","Madrid"]
[null,null,null,"ESVL.COVAL","NH Collection Valencia Colón",834,"BU Southern Europe","Spain","Valencia"]
[null,null,null,"ESGR.VICTO","NH Collection Victoria",316,"BU Southern Europe","Spain","Grenada"]
[null,null,null,"ESPO.PAVIG","NH Collection Vigo",143,"BU Southern Europe","Spain","Vigo"]
[null,null,null,"ESBI.VILBI","NH Collection Villa de Bilbao",140,"BU Southern Europe","Spain","Bilbao"]
[null,null,null,"ESBA.CORNE","NH Cornella",30,"BU Southern Europe","Spain","Barcelona"]
[null,null,null,"ESBI.DEUST","NH Deusto",126,"BU Southern Europe","Spain","Bilbao"]
[null,null,null,"ESBA.DIAGO","NH Diagonal Center",165,"BU Southern Europe","Spain","Barcelona"]
[null,null,null,"ESBA.MASTE","NH Eixample",41,"BU Southern Europe","Spain","Barcelona"]
[null,null,null,"ESBA.SANTS","NH Entenza",107,"BU Southern Europe","Spain","Barcelona"]
[null,null,null,"ESAS.GIJON","NH Gijon",440,"BU Southern Europe","Spain","Gijon"]
[null,null,null,"ESCC.EXTRE","NH Gran Hotel Casino de Extremadura",331,"BU Southern Europe","Spain","Badajoz"]
[null,null,null,"ESLO.HEREN","NH Herencia Rioja",124,"BU Southern Europe","Spain","Logrono"]
[null,null,null,"ESGC.IMPER","NH Imperial Playa",117,"BU Southern Europe","Spain","Las Palmas de Gran Canaria"]
[null,null,null,"ESNA.IRUNA","NH Iruña Park",123,"BU Southern Europe","Spain","Pamplona"]
[null,null,null,"ESBI.AVANZ","NH La Avanzada",441,"BU Southern Europe","Spain","Bilbao"]
[null,null,null,"ESMD.LAGAS","NH Lagasca",122,"BU Southern Europe","Spain","Madrid"]
[null,null,null,"ESVL.ARTE1","NH Las Artes",27,"BU Southern Europe","Spain","Valencia"]
[null,null,null,"ESVL.ARTE2","NH Las Ciencias",28,"BU Southern Europe","Spain","Valencia"]
[null,null,null,"ESMD.TABLA","NH Las Tablas",378,"BU Southern Europe","Spain","Madrid"]
[null,null,null,"ESMD.LEGAN","NH Leganes",145,"BU Southern Europe","Spain","Madrid"]
[null,null,null,"ESBA.CORTS","NH Les Corts",104,"BU Southern Europe","Spain","Barcelona"]
[null,null,null,"ESLO.LOGRO","NH Logroño",146,"BU Southern Europe","Spain","Logrono"]
[null,null,null,"ESHV.LUZHU","NH Luz Huelva",83,"BU Southern Europe","Spain","Huelva"]
[null,null,null,"ESMD.PACIF","NH Madrid Sur",309,"BU Southern Europe","Spain","Madrid"]
[null,null,null,"ESMA.MALAG","NH Malaga",45,"BU Southern Europe","Spain","Malaga"]
[null,null,null,"ESMA.MARBE","NH Marbella",130,"BU Southern Europe","Spain","Marbella"]
[null,null,null,"ESCS.MINDO","NH Mindoro",93,"BU Southern Europe","Spain","Castellon"]
[null,null,null,"ESMD.NACIO","NH Nacional",19,"BU Southern Europe","Spain","Madrid"]
[null,null,null,"ESOU.OUREN","NH Ourense",468,"BU Southern Europe","Spain","Ourense"]
[null,null,null,"ESZA.DUERO","NH Palacio del Duero",148,"BU Southern Europe","Spain","Zamora"]
[null,null,null,"ESMD.PARLA","NH Parla",323,"BU Southern Europe","Spain","Madrid"]
[null,null,null,"ESMD.HABAN","NH Paseo de la Habana",73,"BU Southern Europe","Spain","Madrid"]
[null,null,null,"ESLL.PIRIN","NH Pirineos",132,"BU Southern Europe","Spain","Lleida"]
[null,null,null,"ESGC.CANTE","NH Playa las Canteras",118,"BU Southern Europe","Spain","Las Palmas de Gran Canaria"]
[null,null,null,"ESSE.ARMAS","NH Plaza de Armas",14,"BU Southern Europe","Spain","Seville"]
[null,null,null,"ESBA.PORTA","NH Porta Barcelona",229,"BU Southern Europe","Spain","Barcelona"]
[null,null,null,"ESAS.PRINC","NH Principado",125,"BU Southern Europe","Spain","Oviedo"]
[null,null,null,"ESMD.PRIVE","NH Príncipe de Vergara",43,"BU Southern Europe","Spain","Madrid"]
[null,null,null,"ESSA.CATED","NH Puerta de la Catedral",157,"BU Southern Europe","Spain","Salamanca"]
[null,null,null,"ESMD.RIBER","NH Ribera del Manzanares",371,"BU Southern Europe","Spain","Madrid"]
[null,null,null,"ESMA.PEDRO","NH San Pedro de Alcántara",147,"BU Southern Europe","Spain","Marbella"]
[null,null,null,"ESBA.BOI","NH Sant Boi",317,"BU Southern Europe","Spain","Barcelona"]
[null,null,null,"ESBA.NUMAN","NH Sants Barcelona",105,"BU Southern Europe","Spain","Barcelona"]
[null,null,null,"ESZZ.SPORT","NH Sport",53,"BU Southern Europe","Spain","Zaragoza"]
[null,null,null,"ESTF.TENER","NH Tenerife",170,"BU Southern Europe","Spain","Santa Cruz de Tenerife"]
[null,null,null,"ESCS.TURCO","NH Turcosa",21,"BU Southern Europe","Spain","Castellon"]
[null,null,null,"ESMD.PARAV","NH Ventas",12,"BU Southern Europe","Spain","Madrid"]
[null,null,null,"ESSE.VIAPO","NH Viapol",23,"BU Southern Europe","Spain","Seville"]
[null,null,null,"ESMD.COSLA","NH Villa de Coslada",24,"BU Southern Europe","Spain","Madrid"]
[null,null,null,"ESMD.ZURBA","NH Zurbano",91,"BU Southern Europe","Spain","Madrid"]
[null,null,null,"CHFR.FRIBO","NH Fribourg",176,"BU Northern Europe","Switzerland","Fribourg"]
[null,null,null,"CHGE.GENAI","NH Geneva Airport",178,"BU Northern Europe","Switzerland","Geneva"]
[null,null,null,"CHGE.REX","NH Geneva City",254,"BU Northern Europe","Switzerland","Geneva"]
[null,null,null,"NLNH.VIJVL","d' Vijff Vlieghen",970,"BU Northern Europe","The Netherlands","Amsterdam"]
[null,null,null,"NLUT.AMERS","NH Amersfoort",662,"BU Northern Europe","The Netherlands","Amersfoort"]
[null,null,null,"NLNH.AMSCE","NH Amsterdam Centre",215,"BU Northern Europe","The Netherlands","Amsterdam"]
[null,null,null,"NLNH.GALAX","NH Amsterdam Noord",208,"BU Northern Europe","The Netherlands","Amsterdam"]
[null,null,null,"NLNH.MUSIC","NH Amsterdam Zuid",372,"BU Northern Europe","The Netherlands","Amsterdam"]
[null,null,null,"NLGE.RIJNH","NH Arnhem Rijnhotel",247,"BU Northern Europe","The Netherlands","Arnhem"]
[null,null,null,"NLZH.ATLRO","NH Atlanta Rotterdam",235,"BU Northern Europe","The Netherlands","Rotterdam"]
[null,null,null,"NLZH.ATLDH","NH Atlantic Den Haag",375,"BU Northern Europe","The Netherlands","The Hague"]
[null,null,null,"NLNB.BEST","NH Best",246,"BU Northern Europe","The Netherlands","Best"]
[null,null,null,"NLZH.CAPEL","NH Capelle",244,"BU Northern Europe","The Netherlands","Capelle aan den Ijssel"]
[null,null,null,"NLNH.CARAN","NH Caransa",209,"BU Northern Europe","The Netherlands","Amsterdam"]
[null,null,null,"NLUT.CENUT","NH Centre Utrecht",234,"BU Northern Europe","The Netherlands","Utrecht"]
[null,null,null,"NLNH.CCAMS","NH City Centre",214,"BU Northern Europe","The Netherlands","Amsterdam"]
[null,null,null,"NLNH.CARLT","NH Collection Amsterdam Flower Market",759,"BU Northern Europe","The Netherlands","Amsterdam"]
[null,null,null,"NLNH.BARBI","NH Collection Barbizon Palace",216,"BU Northern Europe","The Netherlands","Amsterdam"]
[null,null,null,"NLNH.DOELE","NH Collection Doelen",211,"BU Northern Europe","The Netherlands","Amsterdam"]
[null,null,null,"NLNB.EINDH","NH Collection Eindhoven Centre",809,"BU Northern Europe","The Netherlands","Eindhoven"]
[null,null,null,"NLNH.KRASN","NH Collection Grand Hotel Krasnapolsky",218,"BU Northern Europe","The Netherlands","Amsterdam"]
[null,null,null,"NLNB.KONIN","NH Conference Centre Koningshof",948,"BU Northern Europe","The Netherlands","Eindhoven"]
[null,null,null,"NLZH.LEEUW","NH Conference Centre Leeuwenhorst",949,"BU Northern Europe","The Netherlands","Noordwijkerhout"]
[null,null,null,"NLZH.DHAAG","NH Den Haag",315,"BU Northern Europe","The Netherlands","The Hague"]
[null,null,null,"NLNB.GELDR","NH Geldrop",245,"BU Northern Europe","The Netherlands","Geldrop"]
[null,null,null,"NLGR.GRON","NH Groningen",200,"BU Northern Europe","The Netherlands","Groningen"]
[null,null,null,"NLGR.DVILL","NH Hotel de Ville",250,"BU Northern Europe","The Netherlands","Groningen"]
[null,null,null,"NLNH.JANTA","NH Jan Tabak",207,"BU Northern Europe","The Netherlands","Bussum"]
[null,null,null,"NLLI.MAAST","NH Maastricht",243,"BU Northern Europe","The Netherlands","Maastricht"]
[null,null,null,"NLNH.MUSEU","NH Museum Quarter",213,"BU Northern Europe","The Netherlands","Amsterdam"]
[null,null,null,"NLNH.NAARD","NH Naarden",219,"BU Northern Europe","The Netherlands","Naarden"]
[null,null,null,"NLNH.SCHIL","NH Schiller",210,"BU Northern Europe","The Netherlands","Amsterdam"]
[null,null,null,"NLNH.SCHIP","NH Schiphol Airport",217,"BU Northern Europe","The Netherlands","Amsterdam"]
[null,null,null,"NLGE.SPARR","NH Sparrenhorst",660,"BU Northern Europe","The Netherlands","Nunspeet"]
[null,null,null,"NLUT.UTREC","NH Utrecht",221,"BU Northern Europe","The Netherlands","Utrecht"]
[null,null,null,"NLNB.WAALW","NH Waalwijk",340,"BU Northern Europe","The Netherlands","Waalwijk"]
[null,null,null,"NLNH.ZANDV","NH Zandvoort",222,"BU Northern Europe","The Netherlands","Zandvoort"]
[null,null,null,"NLZH.ZOETE","NH Zoetermeer",232,"BU Northern Europe","The Netherlands","Zoetermeer"]
[null,null,null,"NLZH.WROTT","nhow Rotterdam",971,"BU Northern Europe","The Netherlands","Rotterdam"]
[null,null,null,"GBLO.KESIN","NH Kensington",751,"BU Northern Europe","United Kingdom","London"]
[null,null,null,"UYMO.COLUM","NH Montevideo Columbia",167,"BU America","Uruguay","Montevideo"]
[null,null,null,"USNY.MADIS","NH Collection New York Madison Avenue",629,"BU Southern Europe","USA","New York"]
[null,null,null,"PT13.JARDI","NH Porto Jardim",968,"BU Southern Europe","Portugal","Porto"]
[null,null,null,"ITRM.FORIM","NH Collection Fori Imperiali",425,"BU Southern Europe","Italy","Rome"]
[null,null,null,"AD07.ANDOR","NH Andorra la Vella",577,"BU Southern Europe","Andorra","Andorra la Vella"]
[null,null,null,"BEVA.ANTCE","NH Collection Antwerp Centre",937,"BU Northern Europe","Belgium","Antwerp"]
[null,null,null,"IELD.MAKDU","Anantara The Marker Dublin",70,"BU Northern Europe","Ireland","Dublin"]
[null,null,null,"MXQR.CANCU","NH Cancún Airport",999,"BU America","Mexico","Cancun"]
[null,null,null,"GBLO.WLOND","nhow London",969,"BU Northern Europe","United Kingdom","London"]
[null,null,null,"NLNH.WAMST","nhow Amsterdam Rai",491,"BU Northern Europe","The Netherlands","Amsterdam"]
[null,null,null,"ITVE.VERON","NH Collection Palazzo Verona",990,"BU Southern Europe","Italy","Verona"]
[null,null,null,null,"TBC (NH Collection Murano Villa)",812,"BU Southern Europe","Italy","Murano"]
[null,null,null,"DENI.HANNO","NH Hannover",962,"BU Northern Europe","Germany","Hannover"]
[null,null,null,null,"TBC (NH Collection Murano)",null,"BU Southern Europe","Italy","Murano"]
[null,null,null,null,"TBC (nhow Lima)",null,"BU America","Peru","Lima"]
[null,null,null,null,"TBC (NH Collection Milano City Life)",null,"BU Southern Europe","Italy","Milan"]
[null,null,null,null,"TBC (NH Parque Kennedy)",null,"BU America","Peru","Lima"]
[null,null,null,null,"TBC (NH Buenos Aires Milano)",null,"BU Southern Europe","Italy","Milan"]
[null,null,null,null,"TBC (NH Collection Santander)",null,"BU Southern Europe","Spain","Santander"]
[null,null,null,null,"TBC (NH Heroes de la Concepción)",null,"BU America","Chile","Iquique"]
[null,null,null,null,"NH Mexico City Reforma Centro",null,"BU America","Mexico","Mexico City"]
[null,null,null,null,"TBC (NH Collection Monterrey La Esfera)",null,"BU America","Mexico","Monterrey"]
[null,null,null,null,"TBC (nhow La Dehesa)",null,"BU America","Chile","Santiago de Chile"]
[null,null,null,null,"TBC (La Perla Aguascalientes, MX)",null,"BU America","Mexico","Aguascalientes"]
[null,null,null,"DEHE.SPINT","NH Collection Frankfurt Spin Tower",821,"BU Northern Europe","Germany","Frankfurt"]
[null,null,null,null,"NH Hamburg Zentrum",null,"BU Northern Europe","Germany","Hamburg"]
[null,null,null,null,"nhow Frankfurt",822,"BU Northern Europe","Germany","Frankfurt"]
[null,null,null,null,"TBC (NH Guadalajara EXPO)",null,"BU America","Mexico","Guadalajara (MX)"]
[null,null,null,"PA08.URBAN","TBC (NH Urban Royal Panamá)",815,"BU America","Panama","Panama"]
[null,null,null,null,"TBC NH Collection Bodega Kopke",null,"BU Southern Europe","Portugal","Porto"]
[null,null,null,null,"nhow Hamburg",null,"BU Northern Europe","Germany","Hamburg"]
[null,null,null,null,"Termas de Carratraca",null,"BU Southern Europe","Spain","Málaga"]
[null,null,null,null,"TBC(NH Collection Alicante)",null,"BU Southern Europe","Spain","Alilcante"]
[null,null,null,null,"NH Collection Cagliari",null,"BU Southern Europe","Italy","Cagliari"]
[null,null,null,null,"NH Hamburg ",null,"BU Northern Europe","Germany","Hamburg"]
[null,null,null,"ITRM.NAIDI","Anantara Palazzo Naidai Rome Hotel",1006,"BU Southern Europe","Italy","Rome"]
[null,null,null,"ITVE.DDOGI","Grand Hotel Dei Dogi",1007,"BU Southern Europe","Italy","Venice"]
[null,null,null,"ITVE.BELLI","Bellini Hotel",1005,"BU Southern Europe","Italy","Venice"]
[null,null,null,null,"Palazzo Gaddi",null,"BU Southern Europe","Italy","Florence"]
[null,null,null,"HUBU.NYPAL","Anantara New York Palace Budapest",1008,"BU Northern Europe","Hungary","Budapest"]
[null,null,null,"HUBU.NYRES","NH Collection Budapest City Center",1009,"BU Northern Europe","Hungary","Budapest"]
[null,null,null,"CZPR.CARLO","NH Collection Prague Carlo IV",1003,"BU Northern Europe","Czech Republic","Prague"]
[null,null,null,null,"Anantara Plaza Nice Hotel",null,"BU Southern Europe","France","Nice"]

{"sheet":"VLOOKUP","index":22,"n_rows":15,"n_cols":7,"rows_kept":15,"cut":false,"hidden":true,"merged":[]}
[]
[]
[]
[]
[]
[]
[null,null,null,"B2C rate structures",null,null,"BUs"]
[null,null,null,"Pricing 1.0",null,null,"BU America"]
[null,null,null,"Pricing 1.0 (double currency)",null,null,"BU Benelux, UK, AF, F"]
[null,null,null,"Pricing 1.0 (Italy - General)",null,null,"BU Central Europe"]
[null,null,null,"Pricing 1.0 (Italy - Special)",null,null,"BU Italy"]
[null,null,null,"Pricing 1.0 (Italy RO/BB)",null,null,"BU Spain, Portugal & Andorra"]
[null,null,null,"Pricing 1.0 (nhow)",null,null,"BU China"]
[null,null,null,"Pricing 1.0 (Resorts)"]
[null,null,null,"Pricing 1.0 (China)"]